{"text_format":"1","workbook":"xlsx","n_sheets":34,"sheets":["Details (PB5)","Performance Measures","Centrally Budgeted Equipment","Search Tools","All Detail","PB5 to Access","SAP Import","Data ITS Cost","Data Locations","Data 190s DptDiv","Data TNR CAR FC's for Detail","Data CIs PB6","Data SBP Measures","Measures Table","Data SBP Programs","Programs Active","Budgeted Funds","FC Master","Data FCs NO CAR","Data FCs CAR","Data 190s FCtrs","Data Named Ranges","Data dpt names","Data Lookups","Data Pos to OU","Data WCI","Data CIs PB5 Filter","Data CIs PB5","Data Jobs","Data OUs","Data CIs Removed","Data Jobs Removed","Data FA Lookup","Data WCI by job"],"not_rendered":{"charts":0,"images":0,"macros":1,"external_links":1,"defined_names":89,"comments":14,"pivot_tables":1},"unopened":[],"bounds":{"document_bytes":16777216,"sheet_cells":100000,"rows_first":2000,"rows_last":500,"rows_between":2000,"halvings":0,"cell_chars":16384,"cell_head_chars":4096},"cells_cut":0,"cells_raw":0,"read":"whole","date_system":"1900"}

{"sheet":"Details (PB5)","index":0,"n_rows":69,"n_cols":26,"rows_kept":69,"cut":false,"hidden":false,"merged":[[38,2,38,3],[33,2,33,3],[34,2,34,3],[35,2,35,3],[36,2,36,3],[37,2,37,3],[27,2,28,3],[29,2,29,3],[30,2,30,3],[31,2,31,3],[32,2,32,3],[3,1,3,3],[66,0,66,4],[67,0,67,4],[68,0,68,4],[61,0,61,4],[53,0,53,4],[55,0,55,4],[57,0,57,4],[65,0,65,4],[54,0,54,4],[56,0,56,4],[7,0,8,0],[39,2,39,3],[40,2,40,3],[41,2,41,3],[7,2,8,2],[5,16,8,16],[5,14,8,14],[5,13,8,13],[5,12,8,12],[3,6,3,8],[4,6,4,8],[7,6,7,8],[4,9,4,15],[5,15,8,15],[5,11,8,11],[5,9,8,9],[5,10,8,10]]}
["FY 2025 BUDGET SUBMISSION",null,null,null,null,null,null,null,null,null,null,null,null,null,null,null,null,null,"v1.5",167700,167700,null,"MCE",null,null,"x"]
["Budget Request Details (PB-5)",null,null,null,null,null,null,null,null,{"$f":"T1","v":167700},null,{"$f":"T2","v":12948},null,{"$f":"T3","v":0.17649999999999999},null,null,null,null,null,12948,12948,null,true,null,null,"x"]
[null,null,null,null,null,null,null,null,null,null,null,null,null,null,null,null,null,null,null,0.17649999999999999,0.17649999999999999,null,false,null,null,"x"]
["Name of Budget Request:",null,null,null,"SBP Program:",null,null,null,null,167700,null,12948,null,0.17649999999999999,null,null,"Original Benefits",null,null,"Grand Total",null,null,null,null,null,"x"]
["Budget Request Priority #:",null,"Dpt #:",null,"Dept Name:",null,{"$f":"IF(D5=\"\",\"\",VLOOKUP(D5,'Data dpt names'!A2:B55,2,FALSE))","v":""},null,null,"Benefits Calculations",null,null,null,null,null,null,null,null,null,"Current Benefits","Original Benefits",null,null,null,null,"x"]
[null,null,null,null,null,null,null,null,null,"FICA \n(506010)","Medicare \n(506020)","Medical Insurance \n(506030)","Life Insurance \n(506040)","Retirement \n(506055)","WCI \n(506060)","Total \nBenefits","Comm. Item",null,null,null,null,null,null,null,null,"x"]
["A.  Personnel",null,null,null,null,null,null,null,null,null,null,null,null,null,null,null,null,null,null,null,null,null,null,null,null,"x"]
["Job Title","Assigned","Total FTE","Cost","Budgeted","OU","Annual Cost",null,null,null,null,null,null,null,null,null,null,null,null,null,null,null,null,"Pay",null,"x"]
[null,"Organizational Unit",null,"Dist.","Funds Center","#","Salary","Benefits","Total",null,null,null,null,null,null,null,null,"SPW?",null,null,null,null,null,"Grade","Is A:A Blank","x"]
[null,null,null,null,{"$f":"_xlfn.XLOOKUP(B10,'Data OUs'!Y:Y,'Data OUs'!AD:AD)","v":0},{"$f":"IF(B10=\"\",\"\",VLOOKUP(B10,'Data OUs'!$B:$C,2,FALSE))","v":""},{"$f":"IF(ISBLANK(A10),0,ROUND(_xlfn.XLOOKUP('Details (PB5)'!A10,'Data Jobs'!E:E,'Data Jobs'!J:J,0)*D10*C10,0))","v":0},{"$f":"IF(G10=0,0,P10)","v":0},{"$f":"SUM(G10:H10)","v":0},{"$f":"IF(C10=0,0,IF((ABS(G10)/C10>=$J$2),ROUND($J$2*0.062*C10*D10,0),(ROUND(0.062*G10,0))))","v":0},{"$f":"ROUND(G10*0.0145,0)","v":0},{"$f":"IF(C10-FLOOR(C10,1)>=0.75,ROUND($L$2*D10*ROUND(C10,0),0),ROUND($L$2*D10*FLOOR(C10,1),0))","v":0},{"$f":"IF(C10=0,0,IF(C10<0,ROUND(8.25*12*D10*CEILING(C10,-1),0),ROUND(8.25*12*D10*CEILING(C10,1),0)))","v":0},{"$f":"ROUND(G10*$N$2,0)","v":0},{"$f":"IF(G10<>0,ROUND(G10*_xlfn.XLOOKUP(A10,'Data Jobs'!E:E,'Data Jobs'!I:I,0),0),0)","v":0},{"$f":"SUM(J10:O10)","v":0},{"$f":"IF(X10=\"\",\"\",IF(AND(X10<\"090\",X10>=\"060\"),\"501010\",\"500050\"))","v":"500050"},null,null,null,null,null,null,{"$f":"_xlfn.XLOOKUP(A10,'Data Jobs'!E:E,'Data Jobs'!G:G)","v":0},{"$f":"ISBLANK(A10)","v":true},"x"]
[null,null,null,null,{"$f":"_xlfn.XLOOKUP(B11,'Data OUs'!Y:Y,'Data OUs'!AD:AD)","v":0},{"$f":"IF(B11=\"\",\"\",VLOOKUP(B11,'Data OUs'!$B:$C,2,FALSE))","v":""},{"$f":"IF(ISBLANK(A11),0,ROUND(_xlfn.XLOOKUP('Details (PB5)'!A11,'Data Jobs'!E:E,'Data Jobs'!J:J,0)*D11*C11,0))","v":0},{"$f":"IF(G11=0,0,P11)","v":0},0,0,{"$f":"ROUND(G11*0.0145,0)","v":0},{"$f":"IF(C11-FLOOR(C11,1)>=0.75,ROUND($L$2*D11*ROUND(C11,0),0),ROUND($L$2*D11*FLOOR(C11,1),0))","v":0},{"$f":"IF(C11=0,0,IF(C11<0,ROUND(8.25*12*D11*CEILING(C11,-1),0),ROUND(8.25*12*D11*CEILING(C11,1),0)))","v":0},0,{"$f":"IF(G11<>0,ROUND(G11*_xlfn.XLOOKUP(A11,'Data Jobs'!E:E,'Data Jobs'!I:I,0),0),0)","v":0},0,"500050",null,null,null,null,null,null,{"$f":"_xlfn.XLOOKUP(A11,'Data Jobs'!E:E,'Data Jobs'!G:G)","v":0},{"$f":"ISBLANK(A11)","v":true},"x"]
[null,null,null,null,{"$f":"_xlfn.XLOOKUP(B12,'Data OUs'!Y:Y,'Data OUs'!AD:AD)","v":0},{"$f":"IF(B12=\"\",\"\",VLOOKUP(B12,'Data OUs'!$B:$C,2,FALSE))","v":""},{"$f":"IF(ISBLANK(A12),0,ROUND(_xlfn.XLOOKUP('Details (PB5)'!A12,'Data Jobs'!E:E,'Data Jobs'!J:J,0)*D12*C12,0))","v":0},{"$f":"IF(G12=0,0,P12)","v":0},0,0,0,0,0,0,{"$f":"IF(G12<>0,ROUND(G12*_xlfn.XLOOKUP(A12,'Data Jobs'!E:E,'Data Jobs'!I:I,0),0),0)","v":0},0,"500050",null,null,null,null,null,null,{"$f":"_xlfn.XLOOKUP(A12,'Data Jobs'!E:E,'Data Jobs'!G:G)","v":0},{"$f":"ISBLANK(A12)","v":true},"x"]
[null,null,null,null,{"$f":"_xlfn.XLOOKUP(B13,'Data OUs'!Y:Y,'Data OUs'!AD:AD)","v":0},{"$f":"IF(B13=\"\",\"\",VLOOKUP(B13,'Data OUs'!$B:$C,2,FALSE))","v":""},{"$f":"IF(ISBLANK(A13),0,ROUND(_xlfn.XLOOKUP('Details (PB5)'!A13,'Data Jobs'!E:E,'Data Jobs'!J:J,0)*D13*C13,0))","v":0},0,{"$f":"SUM(G13:H13)","v":0},0,0,0,0,0,{"$f":"IF(G13<>0,ROUND(G13*_xlfn.XLOOKUP(A13,'Data Jobs'!E:E,'Data Jobs'!I:I,0),0),0)","v":0},0,"500050",null,null,null,null,null,null,{"$f":"_xlfn.XLOOKUP(A13,'Data Jobs'!E:E,'Data Jobs'!G:G)","v":0},true,"x"]
[null,null,null,null,{"$f":"_xlfn.XLOOKUP(B14,'Data OUs'!Y:Y,'Data OUs'!AD:AD)","v":0},{"$f":"IF(B14=\"\",\"\",VLOOKUP(B14,'Data OUs'!$B:$C,2,FALSE))","v":""},{"$f":"IF(ISBLANK(A14),0,ROUND(_xlfn.XLOOKUP('Details (PB5)'!A14,'Data Jobs'!E:E,'Data Jobs'!J:J,0)*D14*C14,0))","v":0},0,{"$f":"SUM(G14:H14)","v":0},0,0,0,0,0,{"$f":"IF(G14<>0,ROUND(G14*_xlfn.XLOOKUP(A14,'Data Jobs'!E:E,'Data Jobs'!I:I,0),0),0)","v":0},0,"500050",null,null,null,null,null,null,{"$f":"_xlfn.XLOOKUP(A14,'Data Jobs'!E:E,'Data Jobs'!G:G)","v":0},true,"x"]
[null,null,null,null,{"$f":"_xlfn.XLOOKUP(B15,'Data OUs'!Y:Y,'Data OUs'!AD:AD)","v":0},{"$f":"IF(B15=\"\",\"\",VLOOKUP(B15,'Data OUs'!$B:$C,2,FALSE))","v":""},{"$f":"IF(ISBLANK(A15),0,ROUND(_xlfn.XLOOKUP('Details (PB5)'!A15,'Data Jobs'!E:E,'Data Jobs'!J:J,0)*D15*C15,0))","v":0},0,{"$f":"SUM(G15:H15)","v":0},0,0,0,0,0,{"$f":"IF(G15<>0,ROUND(G15*_xlfn.XLOOKUP(A15,'Data Jobs'!E:E,'Data Jobs'!I:I,0),0),0)","v":0},0,"500050",null,null,null,null,null,null,{"$f":"_xlfn.XLOOKUP(A15,'Data Jobs'!E:E,'Data Jobs'!G:G)","v":0},true,"x"]
[null,null,null,null,{"$f":"_xlfn.XLOOKUP(B16,'Data OUs'!Y:Y,'Data OUs'!AD:AD)","v":0},{"$f":"IF(B16=\"\",\"\",VLOOKUP(B16,'Data OUs'!$B:$C,2,FALSE))","v":""},{"$f":"IF(ISBLANK(A16),0,ROUND(_xlfn.XLOOKUP('Details (PB5)'!A16,'Data Jobs'!E:E,'Data Jobs'!J:J,0)*D16*C16,0))","v":0},0,{"$f":"SUM(G16:H16)","v":0},0,0,0,0,0,{"$f":"IF(G16<>0,ROUND(G16*_xlfn.XLOOKUP(A16,'Data Jobs'!E:E,'Data Jobs'!I:I,0),0),0)","v":0},0,"500050",null,null,null,null,null,null,{"$f":"_xlfn.XLOOKUP(A16,'Data Jobs'!E:E,'Data Jobs'!G:G)","v":0},true,"x"]
[null,null,null,null,{"$f":"_xlfn.XLOOKUP(B17,'Data OUs'!Y:Y,'Data OUs'!AD:AD)","v":0},{"$f":"IF(B17=\"\",\"\",VLOOKUP(B17,'Data OUs'!$B:$C,2,FALSE))","v":""},{"$f":"IF(ISBLANK(A17),0,ROUND(_xlfn.XLOOKUP('Details (PB5)'!A17,'Data Jobs'!E:E,'Data Jobs'!J:J,0)*D17*C17,0))","v":0},0,{"$f":"SUM(G17:H17)","v":0},0,0,0,0,0,{"$f":"IF(G17<>0,ROUND(G17*_xlfn.XLOOKUP(A17,'Data Jobs'!E:E,'Data Jobs'!I:I,0),0),0)","v":0},0,"500050",null,null,null,null,null,null,{"$f":"_xlfn.XLOOKUP(A17,'Data Jobs'!E:E,'Data Jobs'!G:G)","v":0},true,"x"]
[null,null,null,null,{"$f":"_xlfn.XLOOKUP(B18,'Data OUs'!Y:Y,'Data OUs'!AD:AD)","v":0},{"$f":"IF(B18=\"\",\"\",VLOOKUP(B18,'Data OUs'!$B:$C,2,FALSE))","v":""},{"$f":"IF(ISBLANK(A18),0,ROUND(_xlfn.XLOOKUP('Details (PB5)'!A18,'Data Jobs'!E:E,'Data Jobs'!J:J,0)*D18*C18,0))","v":0},0,0,0,0,0,0,0,{"$f":"IF(G18<>0,ROUND(G18*_xlfn.XLOOKUP(A18,'Data Jobs'!E:E,'Data Jobs'!I:I,0),0),0)","v":0},0,"500050",null,null,null,null,null,null,{"$f":"_xlfn.XLOOKUP(A18,'Data Jobs'!E:E,'Data Jobs'!G:G)","v":0},true,"x"]
[null,null,null,null,{"$f":"_xlfn.XLOOKUP(B19,'Data OUs'!Y:Y,'Data OUs'!AD:AD)","v":0},{"$f":"IF(B19=\"\",\"\",VLOOKUP(B19,'Data OUs'!$B:$C,2,FALSE))","v":""},{"$f":"IF(ISBLANK(A19),0,ROUND(_xlfn.XLOOKUP('Details (PB5)'!A19,'Data Jobs'!E:E,'Data Jobs'!J:J,0)*D19*C19,0))","v":0},{"$f":"IF(G19=0,0,P19)","v":0},0,0,{"$f":"ROUND(G19*0.0145,0)","v":0},0,0,0,{"$f":"IF(G19<>0,ROUND(G19*_xlfn.XLOOKUP(A19,'Data Jobs'!E:E,'Data Jobs'!I:I,0),0),0)","v":0},{"$f":"SUM(J19:O19)","v":0},"500050",null,null,null,null,null,null,{"$f":"_xlfn.XLOOKUP(A19,'Data Jobs'!E:E,'Data Jobs'!G:G)","v":0},true,"x"]
[null,null,null,null,null,null,null,null,null,null,null,null,null,null,null,null,null,null,null,null,null,null,null,null,"=isblank(A10)","x"]
["Temporary Employees","One-time or Ongoing:",null,1,null,null,null,{"$f":"IF(G21=0,0,P21)","v":0},{"$f":"SUM(G21:H21)","v":0},{"$f":"(ROUND(0.062*G21,0))","v":0},0,0,0,{"$f":"ROUND(G21*$N$2,0)","v":0},{"$f":"IF(G21<>0,ROUND(G21*0.0016,0),0)","v":0},0,500070,null,null,null,null,null,null,{"$f":"SUMIF(R10:R19,\"Y\",I10:I19)","v":0},null,"x"]
["Overtime","POPS/Non-POPS/Both:",null,1,null,null,null,0,0,{"$f":"(ROUND(0.062*G22,0))","v":0},0,0,0,{"$f":"ROUND(G22*$N$2,0)","v":0},{"$f":"IF(G22<>0,ROUND(G22*0.0016,0),0)","v":0},0,{"$f":"IF(C22=\"POPS\",\"502013\",IF(C22=\"Non-P\",\"502014\",\"502010\"))","v":"502010"},null,null,null,null,null,null,null,null,"x"]
["Shift Differential POPS",null,null,1,null,null,0,{"$f":"IF(G23=0,0,P23)","v":0},{"$f":"SUM(G23:H23)","v":0},{"$f":"IF(C23=0,0,IF((ABS(G23)/C23>=142800),ROUND(128400*0.062*C23*D23,0),(ROUND(0.062*G23,0))))","v":0},{"$f":"ROUND(G23*0.0145,0)","v":0},{"$f":"IF(C23=0,0,IF(C23<0,ROUND(995*12*D23*CEILING(C23,-1),0),IF(AND(C23<1,C23>=0.75),ROUND(995*12*D23,0),ROUND(995*12*D23*FLOOR(C23,1),0))))","v":0},{"$f":"IF(C23=0,0,IF(C23<0,ROUND(8.25*12*D23*CEILING(C23,-1),0),IF(AND(C23<1,C23>=0.75),ROUND(8.25*12*D23,0),ROUND(8.25*12*D23*FLOOR(C23,1),0))))","v":0},{"$f":"ROUND(G23*0.1491,0)","v":0},{"$f":"IF(G23<>0,ROUND(G23*0.0155,0),0)","v":0},{"$f":"SUM(J23:O23)","v":0},501015,null,null,null,null,null,null,"N/A",null,"x"]
["Shift Differential Non-POPS",null,null,1,null,null,0,{"$f":"IF(G24=0,0,P24)","v":0},{"$f":"SUM(G24:H24)","v":0},{"$f":"IF(C24=0,0,IF((ABS(G24)/C24>=142800),ROUND(128400*0.062*C24*D24,0),(ROUND(0.062*G24,0))))","v":0},{"$f":"ROUND(G24*0.0145,0)","v":0},{"$f":"IF(C24=0,0,IF(C24<0,ROUND(995*12*D24*CEILING(C24,-1),0),IF(AND(C24<1,C24>=0.75),ROUND(995*12*D24,0),ROUND(995*12*D24*FLOOR(C24,1),0))))","v":0},{"$f":"IF(C24=0,0,IF(C24<0,ROUND(8.25*12*D24*CEILING(C24,-1),0),IF(AND(C24<1,C24>=0.75),ROUND(8.25*12*D24,0),ROUND(8.25*12*D24*FLOOR(C24,1),0))))","v":0},{"$f":"ROUND(G24*0.1491,0)","v":0},{"$f":"IF(G24<>0,ROUND(G24*0.0016,0),0)","v":0},{"$f":"SUM(J24:O24)","v":0},500055,null,null,null,null,null,null,"N/A",null,"x"]
["TOTAL PERSONNEL",null,{"$f":"SUMPRODUCT(C10:C19,D10:D19)","v":0},null,null,null,{"$f":"SUM(G10:G24)","v":0},{"$f":"SUM(H10:H24)","v":0},{"$f":"SUM(I10:I24)","v":0},{"$f":"SUM(J10:J24)","v":0},{"$f":"SUM(K10:K24)","v":0},0,0,0,0,0,null,null,null,null,null,null,null,null,null,"x"]
[null,null,null,null,null,null,null,null,null,null,null,null,null,null,null,null,null,null,null,null,null,null,null,null,null,"x"]
["B.  Operating",null,null,null,null,null,null,null,null,null,null,null,null,null,null,null,null,null,null,null,null,null,null,null,null,"x"]
["Commitment Item","Commitment Item ","Fund",null,"Budgeted","Func","Commitment","One-time",null,null,null,null,null,null,null,null,null,null,null,null,null,null,null,null,null,"x"]
["Category","Description",null,null,"Funds Center","Area","Item","or Ongoing","Cost",null,null,null,null,null,null,null,null,null,null,null,null,null,null,null,"IS A:A Blank","x"]
[null,null,{"$f":"IF(E30=\"\",\"\",IF(RIGHT(E30,4)=\"0000\",\"Fund?\",RIGHT(E30,4)))","v":""},null,null,{"$f":"IF(E30<>\"\",VLOOKUP(E30,'Data FCs NO CAR'!$B:$J,9,FALSE),\"\")","v":""},{"$f":"IF(B30<>\"\",VLOOKUP(B30,'Data CIs PB5'!$B:$D,3,FALSE),\"\")","v":""},null,null,null,null,null,null,null,null,null,null,null,null,null,null,null,null,null,{"$f":"ISBLANK(A30)","v":true},"x"]
[null,null,"",null,null,{"$f":"IF(E31<>\"\",VLOOKUP(E31,'Data FCs NO CAR'!$B:$J,9,FALSE),\"\")","v":""},{"$f":"IF(B31<>\"\",VLOOKUP(B31,'Data CIs PB5'!$B:$D,3,FALSE),\"\")","v":""},null,null,null,null,null,null,null,null,null,null,null,null,null,null,null,null,null,{"$f":"ISBLANK(A31)","v":true},"x"]
[null,null,"",null,null,{"$f":"IF(E32<>\"\",VLOOKUP(E32,'Data FCs NO CAR'!$B:$J,9,FALSE),\"\")","v":""},{"$f":"IF(B32<>\"\",VLOOKUP(B32,'Data CIs PB5'!$B:$D,3,FALSE),\"\")","v":""},null,null,null,null,null,null,null,null,null,null,null,null,null,null,null,null,null,true,"x"]
[null,null,"",null,null,{"$f":"IF(E33<>\"\",VLOOKUP(E33,'Data FCs NO CAR'!$B:$J,9,FALSE),\"\")","v":""},{"$f":"IF(B33<>\"\",VLOOKUP(B33,'Data CIs PB5'!$B:$D,3,FALSE),\"\")","v":""},null,null,null,null,null,null,null,null,null,null,null,null,null,null,null,null,null,true,"x"]
[null,null,"",null,null,{"$f":"IF(E34<>\"\",VLOOKUP(E34,'Data FCs NO CAR'!$B:$J,9,FALSE),\"\")","v":""},{"$f":"IF(B34<>\"\",VLOOKUP(B34,'Data CIs PB5'!$B:$D,3,FALSE),\"\")","v":""},null,null,null,null,null,null,null,null,null,null,null,null,null,null,null,null,null,true,"x"]
[null,null,"",null,null,{"$f":"IF(E35<>\"\",VLOOKUP(E35,'Data FCs NO CAR'!$B:$J,9,FALSE),\"\")","v":""},{"$f":"IF(B35<>\"\",VLOOKUP(B35,'Data CIs PB5'!$B:$D,3,FALSE),\"\")","v":""},null,null,null,null,null,null,null,null,null,null,null,null,null,null,null,null,null,true,"x"]
[null,null,"",null,null,{"$f":"IF(E36<>\"\",VLOOKUP(E36,'Data FCs NO CAR'!$B:$J,9,FALSE),\"\")","v":""},{"$f":"IF(B36<>\"\",VLOOKUP(B36,'Data CIs PB5'!$B:$D,3,FALSE),\"\")","v":""},null,null,null,null,null,null,null,null,null,null,null,null,null,null,null,null,null,true,"x"]
[null,null,"",null,null,{"$f":"IF(E37<>\"\",VLOOKUP(E37,'Data FCs NO CAR'!$B:$J,9,FALSE),\"\")","v":""},{"$f":"IF(B37<>\"\",VLOOKUP(B37,'Data CIs PB5'!$B:$D,3,FALSE),\"\")","v":""},null,null,null,null,null,null,null,null,null,null,null,null,null,null,null,null,null,true,"x"]
[null,null,"",null,null,{"$f":"IF(E38<>\"\",VLOOKUP(E38,'Data FCs NO CAR'!$B:$J,9,FALSE),\"\")","v":""},{"$f":"IF(B38<>\"\",VLOOKUP(B38,'Data CIs PB5'!$B:$D,3,FALSE),\"\")","v":""},null,null,null,null,null,null,null,null,null,null,null,null,null,null,null,null,null,true,"x"]
[null,null,"",null,null,{"$f":"IF(E39<>\"\",VLOOKUP(E39,'Data FCs NO CAR'!$B:$J,9,FALSE),\"\")","v":""},{"$f":"IF(B39<>\"\",VLOOKUP(B39,'Data CIs PB5'!$B:$D,3,FALSE),\"\")","v":""},null,null,null,null,null,null,null,null,null,null,null,null,null,null,null,null,null,true,"x"]
[null,null,"",null,null,{"$f":"IF(E40<>\"\",VLOOKUP(E40,'Data FCs NO CAR'!$B:$J,9,FALSE),\"\")","v":""},{"$f":"IF(B40<>\"\",VLOOKUP(B40,'Data CIs PB5'!$B:$D,3,FALSE),\"\")","v":""},null,null,null,null,null,null,null,null,null,null,null,null,null,null,null,null,null,true,"x"]
[null,null,"",null,null,{"$f":"IF(E41<>\"\",VLOOKUP(E41,'Data FCs NO CAR'!$B:$J,9,FALSE),\"\")","v":""},{"$f":"IF(B41<>\"\",VLOOKUP(B41,'Data CIs PB5'!$B:$D,3,FALSE),\"\")","v":""},null,null,null,null,null,null,null,null,null,null,null,null,null,null,null,null,null,{"$f":"ISBLANK(A41)","v":true},"x"]
[{"$f":"'Data Named Ranges'!$U$4","v":"Services"},{"$f":"'Data Named Ranges'!$X$19","v":"Cellular (Air) Time Usage"},{"$f":"IF(E42<>\"\",RIGHT(E42,4),\"\")","v":""},null,{"$f":"IF('Centrally Budgeted Equipment'!E24>0,'Centrally Budgeted Equipment'!E11,\"\")","v":""},{"$f":"IF(E42<>\"\",VLOOKUP(E42,'Data FCs NO CAR'!$B:$J,9,FALSE),\"\")","v":""},{"$f":"IF(A42<>\"\",VLOOKUP(B42,'Data CIs PB5'!$B:$D,3,FALSE),\"\")","v":511700},"Ongoing",{"$f":"IF($B$42=\"Cellular (Air) Time Usage\",'Centrally Budgeted Equipment'!E24*500,0)","v":0},null,null,null,null,null,null,null,null,null,null,null,null,null,null,null,null,"x"]
["TOTAL OPERATING",null,null,null,null,null,{"$f":"SUMIF($H$30:$H$42,\"One-time\",$I$30:$I$42)","v":0},{"$f":"SUMIF($H$30:$H$42,\"Ongoing\",$I$30:$I$42)","v":0},{"$f":"SUM(G43:H43)","v":0}]
[]
["ALL CAPITAL EQUIPMENT REQUESTS SHOULD BE LISTED ON FORM PB-6."]
[]
[]
["C.  Space Costs (Operating and Capital) from Space Costs Tab"]
["1. SPACE COSTS OPERATING",null,null,null,null,null,{"$f":"#REF!","v":{"$error":"#REF!"}},{"$f":"#REF!","v":{"$error":"#REF!"}},{"$f":"SUM(G49:H49)","v":{"$error":"#REF!"}}]
["2. SPACE COSTS CAPITAL",null,null,null,null,null,null,null,{"$f":"#REF!","v":{"$error":"#REF!"}}]
["TOTAL SPACE COSTS",null,null,null,null,null,{"$f":"G49+I50","v":{"$error":"#REF!"}},{"$f":"H49","v":{"$error":"#REF!"}},{"$f":"SUM(G51:H51)","v":{"$error":"#REF!"}}]
[]
["C.  Centrally Budgeted Equipment and Capital Related to This Request",null,null,null,null,null,"One-Time $","Ongoing $","Total"]
["CENTRALLY BUDGETED ITS EQUIPMENT",null,null,null,null,null,{"$f":"'Centrally Budgeted Equipment'!E34","v":0},0,{"$f":"G54+H54","v":0},"ITS Capital"]
["CENTRALLY BUDGETED OPERATING",null,null,null,null,null,{"$f":"'All Detail'!H47","v":0},{"$f":"SUM('All Detail'!H49:H54)","v":0},{"$f":"G55+H55","v":0},"TNR Operating"]
["CENTRALLY BUDGETED CAPITAL",null,null,null,null,null,{"$f":"SUMIF('All Detail'!P32:P45,\"One-Time\",'All Detail'!H32:H45)+'All Detail'!H70","v":0},{"$f":"SUMIF('All Detail'!P32:P45,\"Ongoing\",'All Detail'!H32:H45)","v":0},{"$f":"G56+H56","v":0},"ES & TNR Capital"]
["DEPARTMENTAL CAPITAL EQUIPMENT FROM CAPITAL BUDGET REQUEST (PB-6)",null,null,null,null,null,{"$f":"I57","v":0},null,null,"Departmental Capital"]
["TOTAL CENTRALLY BUDGETED EQUIPMENT AND CAPITAL",null,null,null,null,null,{"$f":"SUM(G54:G57)","v":0},{"$f":"SUM(H54:H57)","v":0},{"$f":"SUM(I54:I57)","v":0}]
[]
["TOTALS FOR BUDGET REQUEST",null,null,null,null,null,"One-Time $","Ongoing $","Total"]
["TOTAL REQUESTED PERSONNEL AND OPERATING (A + B)",null,null,null,null,null,{"$f":"G43+IF(C21=\"One-Time\",I21,0)+X21","v":0},{"$f":"H43+$I$25-IF(C21=\"One-Time\",I21,0)-X21","v":0},{"$f":"H61+G61","v":0}]
["TOTAL REQUESTED WITH CAPITAL (A + B + C)",null,null,null,null,null,{"$f":"G61+G58","v":0},{"$f":"H61+H58","v":0},{"$f":"G62+H62","v":0}]
[]
[]
["Do not print"]
["CENTRALLY BUDGETED ITS EQUIPMENT",null,null,null,null,null,{"$f":"'Centrally Budgeted Equipment'!$E34","v":0},0,{"$f":"'Centrally Budgeted Equipment'!$E$34","v":0}]
["CENTRALLY BUDGETED TNR EQUIPMENT",null,null,null,null,null,{"$f":"SUMIF('All Detail'!$P$32:$P$39,\"One-Time\",'All Detail'!$F$32:$F$39)","v":0},{"$f":"SUMIF('All Detail'!$P$32:$P$39,\"Ongoing\",'All Detail'!$F$32:$F$39)","v":0},{"$f":"'All Detail'!$H$45","v":0}]
["CENTRALLY BUDGETED TNR OPERATING",null,null,null,null,null,{"$f":"SUMIF('All Detail'!$P$47:$P$54,\"One-Time\",'All Detail'!$F$47:$F$54)","v":0},{"$f":"SUMIF('All Detail'!$P$47:$P$54,\"Ongoing\",'All Detail'!$F$47:$F$54)","v":0},{"$f":"'All Detail'!$H$55","v":0}]
["CENTRALLY BUDGETED ES EQUIPMENT",null,null,null,null,null,{"$f":"SUMIF('All Detail'!$P$58:$P$62,\"One-Time\",'All Detail'!$F$58:$F$62)","v":0},{"$f":"SUMIF('All Detail'!$P$58:$P$62,\"Ongoing\",'All Detail'!$F$58:$F$62)","v":0},{"$f":"'All Detail'!$H$70","v":0}]

{"sheet":"Performance Measures","index":1,"n_rows":25,"n_cols":16,"rows_kept":25,"cut":false,"hidden":false,"merged":[[1,3,1,11],[15,0,15,11],[4,0,4,11],[5,0,5,11],[1,0,1,2],[2,0,3,2],[2,3,3,6],[2,7,3,8],[2,9,3,11],[22,1,22,2],[23,1,23,2],[24,1,24,2],[21,1,21,2],[16,1,16,2],[17,1,17,2],[18,1,18,2],[19,1,19,2],[20,1,20,2]]}
[]
["Name of Budget Request",null,null,{"$f":"IF('Details (PB5)'!B4=\"\",\"\",'Details (PB5)'!B4)","v":""}]
["Department Name: ",null,null,{"$f":"'Details (PB5)'!G5","v":""},null,null,null,"SBP Program Name:",null,{"$f":"IF('Details (PB5)'!G4=\"\",\"\",'Details (PB5)'!G4)","v":""}]
[]
[" Performance Measures\nList applicable current performance measures from the related program area (from the Program Results Form in SAP). Also list current and new performance measures specifically related to the proposal."]
["Existing Relevant Program Performance Measures"]
["Type","Measure","Measure # in SAP","Actual FY 2022 Measure","Actual FY 2023 Measure","Revised FY 2024 Measure","Projected FY 2025 Measure at Base Level","Projected FY 2025 Measure with Added Funding"," Projected FY 2026 Measure with Added Funding"," Projected FY 2027 Measure with Added Funding"," Projected FY 2028 Measure with Added Funding"," Projected FY 2029 Measure with Added Funding",null,null,null,"Input"]
[{"$f":"IFERROR(INDEX('Data SBP Measures'!E:E,MATCH(C8,'Data SBP Measures'!C:C,0)),\"\")","v":""},null,{"$f":"IFERROR(INDEX('Data SBP Measures'!T:T,MATCH('Performance Measures'!B8&$J$3,'Data SBP Measures'!AH:AH,0)),\"\")","v":""},null,null,null,null,null,null,null,null,null,null,null,null,"Output"]
[{"$f":"IFERROR(INDEX('Data SBP Measures'!E:E,MATCH(C9,'Data SBP Measures'!C:C,0)),\"\")","v":""},null,{"$f":"IFERROR(INDEX('Data SBP Measures'!T:T,MATCH('Performance Measures'!B9&$J$3,'Data SBP Measures'!AH:AH,0)),\"\")","v":""},null,null,null,null,null,null,null,null,null,null,null,null,"Efficiency"]
[{"$f":"IFERROR(INDEX('Data SBP Measures'!E:E,MATCH(C10,'Data SBP Measures'!C:C,0)),\"\")","v":""},null,{"$f":"IFERROR(INDEX('Data SBP Measures'!T:T,MATCH('Performance Measures'!B10&$J$3,'Data SBP Measures'!AH:AH,0)),\"\")","v":""},null,null,null,null,null,null,null,null,null,null,null,null,"Outcome"]
[{"$f":"IFERROR(INDEX('Data SBP Measures'!E:E,MATCH(C11,'Data SBP Measures'!C:C,0)),\"\")","v":""},null,{"$f":"IFERROR(INDEX('Data SBP Measures'!T:T,MATCH('Performance Measures'!B11&$J$3,'Data SBP Measures'!AH:AH,0)),\"\")","v":""},null,null,null,null,null,null,null,null,null,null,null,null,"Outcome"]
[{"$f":"IFERROR(INDEX('Data SBP Measures'!E:E,MATCH(C12,'Data SBP Measures'!C:C,0)),\"\")","v":""},null,{"$f":"IFERROR(INDEX('Data SBP Measures'!T:T,MATCH('Performance Measures'!B12&$J$3,'Data SBP Measures'!AH:AH,0)),\"\")","v":""},null,null,null,null,null,null,null,null,null,null,null,null,"Outcome"]
[{"$f":"IFERROR(INDEX('Data SBP Measures'!E:E,MATCH(C13,'Data SBP Measures'!C:C,0)),\"\")","v":""},null,{"$f":"IFERROR(INDEX('Data SBP Measures'!T:T,MATCH('Performance Measures'!B13&$J$3,'Data SBP Measures'!AH:AH,0)),\"\")","v":""},null,null,null,null,null,null,null,null,null,null,null,null,"Outcome"]
[{"$f":"IFERROR(INDEX('Data SBP Measures'!E:E,MATCH(C14,'Data SBP Measures'!C:C,0)),\"\")","v":""},null,{"$f":"IFERROR(INDEX('Data SBP Measures'!T:T,MATCH('Performance Measures'!B14&$J$3,'Data SBP Measures'!AH:AH,0)),\"\")","v":""},null,null,null,null,null,null,null,null,null,null,null,null,"Outcome"]
[{"$f":"IFERROR(INDEX('Data SBP Measures'!E:E,MATCH(C15,'Data SBP Measures'!C:C,0)),\"\")","v":""},null,{"$f":"IFERROR(INDEX('Data SBP Measures'!T:T,MATCH('Performance Measures'!B15&$J$3,'Data SBP Measures'!AH:AH,0)),\"\")","v":""},null,null,null,null,null,null,null,null,null,null,null,null,"Outcome"]
["New Program-Specific Performance Measures"]
["Type","Measure",null,"Actual FY 2022 Measure","Actual FY 2023 Measure","Revised FY 2024 Measure","Projected FY 2025 Measure at Base Level","Projected FY 2025 Measure with Added Funding"," Projected FY 2026 Measure with Added Funding"," Projected FY 2027 Measure with Added Funding"," Projected FY 2028 Measure with Added Funding"," Projected FY 2029 Measure with Added Funding"]
["Choose an item."]
["Choose an item."]
["Choose an item."]
["Choose an item."]
["Choose an item."]
["Choose an item."]
["Choose an item."]
["Choose an item."]

{"sheet":"Centrally Budgeted Equipment","index":2,"n_rows":344,"n_cols":11,"rows_kept":344,"cut":false,"hidden":false,"merged":[[74,0,74,4],[0,0,0,4],[1,0,1,4],[2,0,2,4],[19,0,23,1],[35,0,35,4],[4,0,4,4]]}
["TRAVIS COUNTY",null,null,null,null,null,null,"Notes:","Vehicle Costing categories and append to this list at the bottom"]
["Centrally Budgeted Equipment"]
["FY 2025 Budget Year - New Program, Staff and/or Equipment"]
[]
["Please enter data in blue outlined cells. Fill in the Fund Center First"]
[]
["Request Name:",null,{"$f":"IF('Details (PB5)'!B4=\"\",\"\",'Details (PB5)'!B4)","v":""}]
["(Same budget request name as  reflected on PB-4/5)"]
[]
[null,null,"Funds Center Name",null,"Funds Ctr. #"]
["Funds Center:",null,{"$f":"IF(OR(E11=\"\",E11=\"Cost Center\",E11=\"????\"),\"\",VLOOKUP(E11,'Data FCs NO CAR'!$B:$D,3))","v":""},null,null,null,null,null,"taken from live example of FY15 PB5 form"]
[null,null,null,null,null,null,null,null,"=IF('Details (PB5)'!$E$5=\"\",'FCs NO CAR'!$B$1:$B$1037,OFFSET('FCs NO CAR'!$Q$1,1,0,COUNTA('FCs NO CAR'!$Q$1:$Q$1839)-1,1))",110,"County Judge Administration"]
[null,null,"Location",null,"Room No.",null,null,null,"If Blank, then = range ITS_Blank",120,"County Judge Juvenile Board"]
["Building:",null,null,null,null,null,null,null,"If Not Blank, then 'FCs NO CAR'!$B$1:$B$1037,OFFSET('FCs NO CAR'!$Q$1,1,0,COUNTA('FCs NO CAR'!$Q$1:$Q$1839)-1,1",200,"County Commissioner-Pct 1 Non-Divisional"]
[null,null,null,null,null,null,null,null,"OFFSET('FCs NO CAR'!$Q$1,1,0,COUNTA('FCs NO CAR'!$Q$1:$Q$1839)-1,1)",300,"County Commissioner Pct 2 Non-Divisional"]
["Electrical:",null,"Is Electrical Service currently available within 8 feet to desired location? \nIf \"No\" or \"Maybe\" please contact Facilities Management at 4-5420 (Gabe Stock)",null,null,null,null,null,"= 1 row below Q1, 0 columns right of Q1, #of rows = count of non-blank rows, 1 column",400,"County Commissioner Pct 3 Non-Divisional"]
[null,null,null,null,null,null,null,{"$f":"COUNTA(H18:H22)-1","v":4},null,610,"County Auditor County Auditor"]
[null,null,null,null,null,null,null,"x",null,710,"County Treasurer Administration"]
[null,null,"New Computer Device \n(Standard)",null,"Quantity Requested",null,null,"i",null,810,"Tax Collector Administration"]
["Please refer to budget instructions for definitions",null,"Personal Computer ",null,null,null,null,"z",null,820,"Tax Collector Public Info & Training"]
[null,null,"Standard Mobile Notebook",null,null,null,null,"z",null,830,"Tax Collector Revenue Management"]
[null,null,"Standard Workstation Notebook",null,null,null,null,"z",null,835,"Tax Collector Central Collections"]
[null,null,"Standard Mobile Tablet"]
[null,null,"Mobile Data Computer (MDC, includes $800 in Central TNR for installation & $500 in Dept Budget for Cellular) ",null,null,null,null,null,null,836,"Tax Collector Central Collections-JP"]
[null,null,null,null,null,null,null,null,null,840,"Tax Collector Motor Vehicle"]
[null,null," New Printer Equipment",null,null,null,null,null,null,850,"Tax Collector Tax Collector"]
[null,null,"Network Laser Printer Basic Functionality: ",null,null,null,null,null,null,870,"Tax Collector Voter Registration"]
[null,null,null,null,null,null,null,null,null,900,"Planning And Budget Non-Divisional"]
[null,null,"New Telephone Equipment",null,null,null,null,null,null,901,"Planning And Budget Cash Investment Managemnt"]
[null,null,"Multi-line Phone",null,null,null,null,null,null,902,"Planning And Budget Gasb 34"]
[null,null,"Dual-line Phone",null,null,null,null,null,null,1000,"General Administration Non Divisional"]
[null,null,"Headset w/base",null,null,null,null,null,null,1141,"Human Resource Management Safety/Loss Prevention Pg"]
[null,null,null,null,null,null,null,null,null,1160,"Human Resource Management Cjc Litigation"]
[null,null,"Total Centrally Budgeted ITS portion to be included on PB-5",null,{"$f":"'All Detail'!H28","v":0},null,null,null,null,1201,"Information & Telecommunications Office Of Executive Mangr"]
[null,null,null,null,null,null,null,null,null,1210,"Information & Telecommunications Administration"]
["For assistance with ITS related equipment please contact the helpdesk at 854-9175",null,null,null,null,null,null,null,null,1230,"Information & Telecommunications Operations"]
[null,null,null,null,null,null,null,null,null,1240,"Information & Telecommunications Technical Support"]
["Please provide electronic copy to PBO and ITS section above with Budget Submission",null,null,null,null,null,null,null,null,1241,"Information & Telecommunications Voice Communications"]
[]
[null,null,"New Vehicle Request",null,null,null,null,null,null,1242,"Information & Telecommunications Production Support"]
[null,null,"Law Enforcement Vehicle ",null,null,null,null,null,null,1250,"Information & Telecommunications User Support Services"]
[null,null,"Law Enforcement Pick-up Responder"]
[null,null,"Sedan or SUV (People Carrier, non-Law Enforcement)",null,null,null,null,null,null,1260,"Information & Telecommunications Systems Development"]
[null,null,"SUV (Parks, On-Site, Off-Road Use)",null,null,null,null,null,null,1261,"Information & Telecommunications Network Services"]
[null,null,"Pickup Truck - Hybrid"]
[null,null,"Pickup Truck - Full EV"]
[null,null,"Pickup with Service Bed/Body",null,null,null,null,null,null,1402,"Facilities Management Groundskeeping"]
[]
[null,"For additional Miscellaneous Fleet Equipment Purchased by TNR (i.e: ATVs, Trailers, Boats, ect.)"]
["CAR FC","CI","Equipment Name",null,"Cost","OneTime/Ongoing"]
[]
["x","x"]
[null,null,null,null,null,null,null,null,null,1405,"Facilities Management Project Management Svcs"]
[null,null,"New Radio Equipment",null,null,null,null,null,null,1413,"Facilities Management Tx Exposition & Heritage"]
[null,null,"Vehicle Radio APX4500 (Admin, Public Works, non-LE, includes $380 for install)",null,null,null,null,null,null,1415,"Facilities Management Building Maintenance"]
[null,null,"Vehicle Radio APX8500 (Law Enforcement, includes $380 for install)"]
[null,null,"APX4000 Entry Level Handheld Radio",null,null,null,null,null,null,1510,"Purchsg & Inventory Mgmt Administration"]
[null,null,"APX6000XE Mid-Tier Handheld Radio",null,null,null,null,null,null,1600,"Veterans Services Non-Divisional"]
[null,null,"APX8000XE Heavy Duty Handheld Radio",null,null,null,null,null,null,1700,"Historical Commission Non Divisional"]
[null,null,"Radio Spare Battery - APX4000",null,null,null,null,null,null,1700,"Historical Commission Non Divisional"]
[null,null,"Radio Spare Battery - APX6000XE/APX8000XE",null,null,null,null,null,null,1700,"Historical Commission Non Divisional"]
[null,null,"Radio Speaker Mic (Wired)",null,null,null,null,null,null,1700,"Historical Commission Non Divisional"]
[null,null,"Radio Single Charger - APX4000",null,null,null,null,null,null,1700,"Historical Commission Non Divisional"]
[null,null,"Radio Single Charger - APX6000XE/APX8000XE",null,null,null,null,null,null,1700,"Historical Commission Non Divisional"]
[null,null,"Radio Bank Charger - APX4000",null,null,null,null,null,null,1700,"Historical Commission Non Divisional"]
[null,null,"Radio Bank Charger - APX6000XE/APX8000XE",null,null,null,null,null,null,1700,"Historical Commission Non Divisional"]
[null,null,null,null,null,null,null,null,null,1910,"County Attorney Civil"]
[null,null,"Fuel/Maintenance",null,null,null,null,null,null,1920,"County Attorney Criminal"]
[null,null,"Heavy Use (Law Enforcement, Daily Driver) Fuel/Maintenance",null,{"$f":"'All Detail'!F49+'All Detail'!F50","v":0},null,null,null,null,1928,"County Attorney Grants Administration"]
[null,null,"Moderate Use (People Mover, Site-Visit Use) Fuel/Maintenance",null,{"$f":"E43+E44","v":0},null,null,null,null,1945,"County Attorney Integrated Traffic Safety"]
[null,null,"Heavy Duty Use Pick-Up Truck Fuel/Maintenance",null,{"$f":"'All Detail'!F53+'All Detail'!F54","v":0}]
[]
[null,null,"Other Departments Equipment/Operating to be included on PB-5",null,{"$f":"'All Detail'!H56+'All Detail'!H70","v":0},null,null,null,null,1201,"Information & Telecommunications Office Of Executive Mangr"]
[null,null,null,null,null,null,null,null,null,1950,"County Attorney Capso"]
["For Radio assistance please contact Adam Johnson at 4-4895. For Vehicle assistance please contact Charles Schoenfield at 4-4658",null,null,null,null,null,null,null,null,1230,"Information & Telecommunications Operations"]
[]
[null,null,"Total Centrally Budget Equipment",null,{"$f":"E73+E34","v":0}]
[null,null,null,null,null,null,null,"Yes",null,2010,"County Clerk Administration"]
["Please provide electronic copy to PBO, ITS, and TNR  with Budget Submission",null,null,null,null,null,null,null,null,1241,"Information & Telecommunications Voice Communications"]
[null,null,null,null,null,null,null,"Maybe",null,2021,"County Clerk Elections 10% Admin Fee"]
[null,null,null,null,null,null,null,null,null,2030,"County Clerk Civil/Probate Division"]
[null,null,null,null,null,null,null,null,null,2040,"County Clerk Criminal"]
[null,null,null,null,null,null,null,null,null,2060,"County Clerk Recording"]
[null,null,null,null,null,null,null,null,null,2101,"District Clerk Civil"]
[null,null,null,null,null,null,null,null,null,2102,"District Clerk Criminal"]
[null,null,null,null,null,null,null,null,null,2111,"District Clerk District Legally Mandated"]
[null,null,null,null,null,null,null,null,null,2112,"District Clerk County Legally Mandated"]
[null,null,null,null,null,null,null,null,null,2210,"Civil Courts District Division"]
[null,null,null,null,null,null,null,null,null,2211,"Civil Courts District Legally Mandated"]
[null,null,null,null,null,null,null,null,null,2220,"Civil Courts County Division"]
[null,null,null,null,null,null,null,null,null,2221,"Civil Courts County Legally Mandated"]
[null,null,null,null,null,null,null,null,null,2310,"District Attorney Administrative Support"]
[null,null,null,null,null,null,null,null,null,2311,"District Attorney Criminal Justice"]
[null,null,null,null,null,null,null,null,null,2312,"District Attorney Civil Justice"]
[null,null,null,null,null,null,null,null,null,2320,"District Attorney Legal/Prosecution"]
[null,null,null,null,null,null,null,null,null,2322,"District Attorney Justice System Civil Justice"]
[null,null,null,null,null,null,null,null,null,2328,"District Attorney Grants Administration"]
[null,null,null,null,null,null,null,null,null,2330,"District Attorney Investigative Support"]
[null,null,null,null,null,null,null,null,null,2371,"District Attorney Forfeited Property"]
[null,null,null,null,null,null,null,null,null,2372,"District Attorney General State"]
[null,null,null,null,null,null,null,null,null,2373,"District Attorney Motor Fuel Tax Fraud"]
[null,null,null,null,null,null,null,null,null,2374,"District Attorney Insurance Fraud"]
[null,null,null,null,null,null,null,null,null,2381,"District Attorney Texas Workers Comp Ins Fd"]
[null,null,null,null,null,null,null,null,null,2382,"District Attorney Orgnzd Crime/Nusnce Abtmt"]
[null,null,null,null,null,null,null,null,null,2383,"District Attorney Auto Theft Prosecution"]
[null,null,null,null,null,null,null,null,null,2391,"District Attorney Dapso"]
[null,null,null,null,null,null,null,null,null,2392,"District Attorney Public Integrity Unit"]
[null,null,null,null,null,null,null,null,null,2410,"Criminal Courts District Division"]
[null,null,null,null,null,null,null,null,null,2411,"Criminal Courts District Legally Mandated"]
[null,null,null,null,null,null,null,null,null,2413,"Criminal Courts 24 Hour Magistration"]
[null,null,null,null,null,null,null,null,null,2420,"Criminal Courts County Division"]
[null,null,null,null,null,null,null,null,null,2421,"Criminal Courts County Legally Mandated"]
[null,null,null,null,null,null,null,null,null,2430,"Criminal Courts Drug Court Program"]
[null,null,null,null,null,null,null,null,null,2500,"Probate Court Non-Divisional"]
[null,null,null,null,null,null,null,null,null,2528,"Probate Court Grants Administration"]
[null,null,null,null,null,null,null,null,null,2601,"Justice Of Peace 1 Civil"]
[null,null,null,null,null,null,null,null,null,2602,"Justice Of Peace 1 Criminal"]
[null,null,null,null,null,null,null,null,null,2701,"Justice Of Peace 2 Civil"]
[null,null,null,null,null,null,null,null,null,2702,"Justice Of Peace 2 Criminal"]
[null,null,null,null,null,null,null,null,null,2703,"Justice Of Peace 2 Accounting Division Civil"]
[null,null,null,null,null,null,null,null,null,2704,"Justice Of Peace 2 Accounting Division Criminal"]
[null,null,null,null,null,null,null,null,null,2801,"Justice Of Peace 3 Civil"]
[null,null,null,null,null,null,null,null,null,2802,"Justice Of Peace 3 Criminal"]
[null,null,null,null,null,null,null,null,null,2901,"Justice Of Peace 4 Civil"]
[null,null,null,null,null,null,null,null,null,2902,"Justice Of Peace 4 Criminal"]
[null,null,null,null,null,null,null,null,null,3001,"Justice Of Peace 5 Civil"]
[null,null,null,null,null,null,null,null,null,3002,"Justice Of Peace 5 Criminal"]
[null,null,null,null,null,null,null,null,null,3101,"Constable 1 Civil"]
[null,null,null,null,null,null,null,null,null,3102,"Constable 1 Criminal"]
[null,null,null,null,null,null,null,null,null,3103,"Constable 1 Absent Student Assist Pro"]
[null,null,null,null,null,null,null,null,null,3201,"Constable 2 Civil"]
[null,null,null,null,null,null,null,null,null,3202,"Constable 2 Criminal"]
[null,null,null,null,null,null,null,null,null,3203,"Constable 2 Absent Student Assist Pro"]
[null,null,null,null,null,null,null,null,null,3228,"Constable 2 Grants Administration"]
[null,null,null,null,null,null,null,null,null,3232,"Constable 2 Criminal"]
[null,null,null,null,null,null,null,null,null,3271,"Constable 2 Forfeited Property"]
[null,null,null,null,null,null,null,null,null,3301,"Constable 3 Civil"]
[null,null,null,null,null,null,null,null,null,3302,"Constable 3 Criminal"]
[null,null,null,null,null,null,null,null,null,3303,"Constable 3 Absent Student Assist Pro"]
[null,null,null,null,null,null,null,null,null,3328,"Constable 3 Grants Administration"]
[null,null,null,null,null,null,null,null,null,3371,"Constable 3 Forfeited Property"]
[null,null,null,null,null,null,null,null,null,3401,"Constable 4 Civil"]
[null,null,null,null,null,null,null,null,null,3402,"Constable 4 Criminal"]
[null,null,null,null,null,null,null,null,null,3403,"Constable 4 Absent Student Assist Pro"]
[null,null,null,null,null,null,null,null,null,3499,"Constable 4 Project Spotlight"]
[null,null,null,null,null,null,null,null,null,3501,"Constable 5 Civil"]
[null,null,null,null,null,null,null,null,null,3502,"Constable 5 Criminal"]
[null,null,null,null,null,null,null,null,null,3503,"Constable 5 Absent Student Assist Pro"]
[null,null,null,null,null,null,null,null,null,3504,"Constable 5 Forfeited Property"]
[null,null,null,null,null,null,null,null,null,3528,"Constable 5 Grants Administration"]
[null,null,null,null,null,null,null,null,null,3600,"Dispute Resolution Center Non Divisional"]
[null,null,null,null,null,null,null,null,null,3705,"Sheriff Support Bureau-Public Saf"]
[null,null,null,null,null,null,null,null,null,3706,"Sheriff Support Bureau-Corr & Reh"]
[null,null,null,null,null,null,null,null,null,3712,"Sheriff County Building Security"]
[null,null,null,null,null,null,null,null,null,3713,"Sheriff Commissary Employees"]
[null,null,null,null,null,null,null,null,null,3715,"Sheriff Commissary"]
[null,null,null,null,null,null,null,null,null,3716,"Sheriff Chaplains"]
[null,null,null,null,null,null,null,null,null,3725,"Sheriff Law Enforcement Bureau"]
[null,null,null,null,null,null,null,null,null,3726,"Sheriff Ctecc Security"]
[null,null,null,null,null,null,null,null,null,3728,"Sheriff Grants Administration"]
[null,null,null,null,null,null,null,null,null,3730,"Sheriff Patrol"]
[null,null,null,null,null,null,null,null,null,3735,"Sheriff Corrections Bureau"]
[null,null,null,null,null,null,null,null,null,3745,"Sheriff Auto Theft Prevention"]
[null,null,null,null,null,null,null,null,null,3749,"Sheriff Medical Services"]
[null,null,null,null,null,null,null,null,null,3750,"Sheriff Mental Health Unit"]
[null,null,null,null,null,null,null,null,null,3751,"Sheriff Federal Forfeited Proprty"]
[null,null,null,null,null,null,null,null,null,3752,"Sheriff State Forteited Property"]
[null,null,null,null,null,null,null,null,null,3753,"Sheriff Auto Theft Task Force"]
[null,null,null,null,null,null,null,null,null,3776,"Sheriff Temp Inmate Housing/Del V"]
[null,null,null,null,null,null,null,null,null,3780,"Sheriff Central Booking"]
[null,null,null,null,null,null,null,null,null,3781,"Sheriff Step"]
[null,null,null,null,null,null,null,null,null,3788,"Sheriff Alcohol/Drug Offender"]
[null,null,null,null,null,null,null,null,null,3789,"Sheriff Victim Services Grant"]
[null,null,null,null,null,null,null,null,null,3790,"Sheriff Inmate Services"]
[null,null,null,null,null,null,null,null,null,3800,"Medical Examiner Non Divisional"]
[null,null,null,null,null,null,null,null,null,3810,"Medical Examiner Administration"]
[null,null,null,null,null,null,null,null,null,3820,"Medical Examiner County Morgue"]
[null,null,null,null,null,null,null,null,null,3910,"Community Superv & Corr County Budget"]
[null,null,null,null,null,null,null,null,null,3920,"Community Superv & Corr Basic Supervision"]
[null,null,null,null,null,null,null,null,null,3925,"Community Superv & Corr Pretrial Services"]
[null,null,null,null,null,null,null,null,null,3926,"Community Superv & Corr Taip- Ccp"]
[null,null,null,null,null,null,null,null,null,3935,"Community Superv & Corr Computer Tracking"]
[null,null,null,null,null,null,null,null,null,3950,"Community Superv & Corr Day Recource Center"]
[null,null,null,null,null,null,null,null,null,3960,"Community Superv & Corr Subs Abuse Inpat Continum"]
[null,null,null,null,null,null,null,null,null,3962,"Community Superv & Corr Mental Impairment Caselds"]
[null,null,null,null,null,null,null,null,null,3963,"Community Superv & Corr Victim Services-Dtp"]
[null,null,null,null,null,null,null,null,null,3964,"Community Superv & Corr Smart-Continuing Care Dtp"]
[null,null,null,null,null,null,null,null,null,3965,"Community Superv & Corr Smart Continuing Care Ccp"]
[null,null,null,null,null,null,null,null,null,3966,"Community Superv & Corr Pretrial Mentally Impaird"]
[null,null,null,null,null,null,null,null,null,3969,"Community Superv & Corr Alcohol & Drug Treatment"]
[null,null,null,null,null,null,null,null,null,3971,"Community Superv & Corr Day Reporting Center- Dtp"]
[null,null,null,null,null,null,null,null,null,3974,"Community Superv & Corr Ccp-Sex Offndr Field Unit"]
[null,null,null,null,null,null,null,null,null,3976,"Community Superv & Corr Ccp-Day Reporting Center"]
[null,null,null,null,null,null,null,null,null,3977,"Community Superv & Corr Ccp-Diagnostic Unit"]
[null,null,null,null,null,null,null,null,null,3978,"Community Superv & Corr Ccp-Subs Abuse Field Unit"]
[null,null,null,null,null,null,null,null,null,3979,"Community Superv & Corr Ccp-Smart Subs Abuse Trt"]
[null,null,null,null,null,null,null,null,null,3983,"Community Superv & Corr Ccp-Supervised Living Ser"]
[null,null,null,null,null,null,null,null,null,3985,"Community Superv & Corr Smart-Subs Abs House Trt"]
[null,null,null,null,null,null,null,null,null,3996,"Community Superv & Corr Taip Intervention Awards"]
[null,null,null,null,null,null,null,null,null,3999,"Community Superv & Corr Project Spotlight"]
[null,null,null,null,null,null,null,null,null,4010,"Tcces Education Services"]
[null,null,null,null,null,null,null,null,null,4020,"Tcces Saca"]
[null,null,null,null,null,null,null,null,null,4200,"Pretrial Services Non-Divisional"]
[null,null,null,null,null,null,null,null,null,4210,"Pretrial Services Central Booking"]
[null,null,null,null,null,null,null,null,null,4300,"Juvenile Public Defender Non-Divisional"]
[null,null,null,null,null,null,null,null,null,4510,"Juvenile Court Administration"]
[null,null,null,null,null,null,null,null,null,4511,"Juvenile Court Planning and Resources"]
[null,null,null,null,null,null,null,null,null,4512,"Juvenile Court Health Services"]
[null,null,null,null,null,null,null,null,null,4513,"Juvenile Court Facility Operations"]
[null,null,null,null,null,null,null,null,null,4515,"Juvenile Court Tea Grant"]
[null,null,null,null,null,null,null,null,null,4517,"Juvenile Court Tjpc-Jjaep Basic"]
[null,null,null,null,null,null,null,null,null,4518,"Juvenile Court Grants Administration"]
[null,null,null,null,null,null,null,null,null,4519,"Juvenile Court Progressive Sanc Lvl 5"]
[null,null,null,null,null,null,null,null,null,4520,"Juvenile Court Court Services"]
[null,null,null,null,null,null,null,null,null,4525,"Juvenile Court Deferred Prosecution Svcs"]
[null,null,null,null,null,null,null,null,null,4530,"Juvenile Court Probation Services"]
[null,null,null,null,null,null,null,null,null,4540,"Juvenile Court Gardner/Betts Detentn Ctr"]
[null,null,null,null,null,null,null,null,null,4542,"Juvenile Court Bridge Teen Arts Project"]
[null,null,null,null,null,null,null,null,null,4550,"Juvenile Court Youth Shelter Program"]
[null,null,null,null,null,null,null,null,null,4560,"Juvenile Court Domestic Relations"]
[null,null,null,null,null,null,null,null,null,4568,"Juvenile Court Tjpc (L) Grant"]
[null,null,null,null,null,null,null,null,null,4569,"Juvenile Court Ehanced Claims"]
[null,null,null,null,null,null,null,null,null,4570,"Juvenile Court C S A T"]
[null,null,null,null,null,null,null,null,null,4571,"Juvenile Court Tjpc (S) Grant"]
[null,null,null,null,null,null,null,null,null,4572,"Juvenile Court Tjpc (U) Grant"]
[null,null,null,null,null,null,null,null,null,4573,"Juvenile Court Substance Abuse Treatment"]
[null,null,null,null,null,null,null,null,null,4574,"Juvenile Court Tjpc- (V) Grant"]
[null,null,null,null,null,null,null,null,null,4575,"Juvenile Court Josats/Csat Treatment"]
[null,null,null,null,null,null,null,null,null,4576,"Juvenile Court Targeted Capacity Expan"]
[null,null,null,null,null,null,null,null,null,4577,"Juvenile Court Jaibg"]
[null,null,null,null,null,null,null,null,null,4578,"Juvenile Court Tjpc (W) Grant"]
[null,null,null,null,null,null,null,null,null,4579,"Juvenile Court Tjpc (Z) Grant"]
[null,null,null,null,null,null,null,null,null,4580,"Juvenile Court Status Offender"]
[null,null,null,null,null,null,null,null,null,4583,"Juvenile Court Interest - Juv Prob Grnts"]
[null,null,null,null,null,null,null,null,null,4584,"Juvenile Court Tjpc (O) Grant"]
[null,null,null,null,null,null,null,null,null,4585,"Juvenile Court Tjpc (F) Grant"]
[null,null,null,null,null,null,null,null,null,4587,"Juvenile Court Iv-E Foster Care"]
[null,null,null,null,null,null,null,null,null,4590,"Juvenile Court Tjpc (A) Grant"]
[null,null,null,null,null,null,null,null,null,4591,"Juvenile Court Tjpc (Y) Grant"]
[null,null,null,null,null,null,null,null,null,4592,"Juvenile Court Tjpc (C) Grant"]
[null,null,null,null,null,null,null,null,null,4598,"Juvenile Court Children'S Mental Health"]
[null,null,null,null,null,null,null,null,null,4599,"Juvenile Court Out-Of-Home Placement"]
[null,null,null,null,null,null,null,null,null,4701,"Emergency Services Emergency Services"]
[null,null,null,null,null,null,null,null,null,4705,"Emergency Services Technology/Communications"]
[null,null,null,null,null,null,null,null,null,4715,"Emergency Services First Reponsder"]
[null,null,null,null,null,null,null,null,null,4720,"Emergency Services Starflight Operations"]
[null,null,null,null,null,null,null,null,null,4721,"Emergency Services Emergency Management"]
[null,null,null,null,null,null,null,null,null,4725,"Emergency Services Fire Marshal"]
[null,null,null,null,null,null,null,null,null,4901,"Tnr (Trans & Natrl Resrc) Common Managemnt Function"]
[null,null,null,null,null,null,null,null,null,4905,"Tnr (Trans & Natrl Resrc) Comprehensive Planning"]
[null,null,null,null,null,null,null,null,null,4906,"Tnr (Trans & Natrl Resrc) Safety Program"]
[null,null,null,null,null,null,null,null,null,4907,"Tnr (Trans & Natrl Resrc) Parks Planning"]
[null,null,null,null,null,null,null,null,null,4908,"Tnr (Trans & Natrl Resrc) Environmental Services"]
[null,null,null,null,null,null,null,null,null,4909,"Tnr (Trans & Natrl Resrc) Balcones Canyonlands Pre"]
[null,null,null,null,null,null,null,null,null,4910,"Tnr (Trans & Natrl Resrc) Intergovernmental Agreemt"]
[null,null,null,null,null,null,null,null,null,4911,"Tnr (Trans & Natrl Resrc) Land Development Services"]
[null,null,null,null,null,null,null,null,null,4915,"Tnr (Trans & Natrl Resrc) Stormwater Management"]
[null,null,null,null,null,null,null,null,null,4917,"Tnr (Trans & Natrl Resrc) Onsite Sewage Facilities"]
[null,null,null,null,null,null,null,null,null,4921,"Tnr (Trans & Natrl Resrc) Genl & Transportn Planing"]
[null,null,null,null,null,null,null,null,null,4925,"Tnr (Trans & Natrl Resrc) Geographic Records Mgmt"]
[null,null,null,null,null,null,null,null,null,4931,"Tnr (Trans & Natrl Resrc) Rd Capacity/Bridge Replmt"]
[null,null,null,null,null,null,null,null,null,4932,"Tnr (Trans & Natrl Resrc) Bond Payment Payroll"]
[null,null,null,null,null,null,null,null,null,4941,"Tnr (Trans & Natrl Resrc) Road & Bridge Maintenance"]
[null,null,null,null,null,null,null,null,null,4943,"Tnr (Trans & Natrl Resrc) Sign Shop Services"]
[null,null,null,null,null,null,null,null,null,4945,"Tnr (Trans & Natrl Resrc) Park Services"]
[null,null,null,null,null,null,null,null,null,4951,"Tnr (Trans & Natrl Resrc) Vehicle/Equip/Bldg. Maint"]
[null,null,null,null,null,null,null,null,null,4952,"Tnr (Trans & Natrl Resrc) Fleet Services"]
[null,null,null,null,null,null,null,null,null,4980,"Tnr (Trans & Natrl Resrc) Environmental & Landfill"]
[null,null,null,null,null,null,null,null,null,4985,"Tnr (Trans & Natrl Resrc) Customer Services"]
[null,null,null,null,null,null,null,null,null,4986,"Tnr (Trans & Natrl Resrc) Perm Impr Bonds 1986-A"]
[null,null,null,null,null,null,null,null,null,4987,"Tnr (Trans & Natrl Resrc) Child Safety Program"]
[null,null,null,null,null,null,null,null,null,4991,"Tnr (Trans & Natrl Resrc) Services To Othr Govrnmts"]
[null,null,null,null,null,null,null,null,null,4993,"Tnr (Trans & Natrl Resrc) Intergovernmental Agreemt"]
[null,null,null,null,null,null,null,null,null,4994,"Tnr (Trans & Natrl Resrc) Private Agencies Contract"]
[null,null,null,null,null,null,null,null,null,4996,"Tnr (Trans & Natrl Resrc) Car Vehicle Central"]
[null,null,null,null,null,null,null,null,null,5300,"Cash Management Non-Divisional"]
[null,null,null,null,null,null,null,null,null,5400,"Civil Service Commission Non-Divisional"]
[null,null,null,null,null,null,null,null,null,5500,"Criminal Justice Planning Non-Divisional"]
[null,null,null,null,null,null,null,null,null,5503,"Criminal Justice Planning Absent Student Assist Pro"]
[null,null,null,null,null,null,null,null,null,5510,"Criminal Justice Planning Office Of Executive Mangr"]
[null,null,null,null,null,null,null,null,null,5515,"Criminal Justice Planning Community Justice Center"]
[null,null,null,null,null,null,null,null,null,5520,"Criminal Justice Planning Communications"]
[null,null,null,null,null,null,null,null,null,5570,"Criminal Justice Planning C S A T"]
[null,null,null,null,null,null,null,null,null,5710,"Records Mang & Comm Resrc Administration"]
[null,null,null,null,null,null,null,null,null,5715,"Records Mang & Comm Resrc Copiers/Central Repairs"]
[null,null,null,null,null,null,null,null,null,5720,"Records Mang & Comm Resrc Records Mang & Communictn"]
[null,null,null,null,null,null,null,null,null,5725,"Records Mang & Comm Resrc Imaging"]
[null,null,null,null,null,null,null,null,null,5730,"Records Mang & Comm Resrc Information Control"]
[null,null,null,null,null,null,null,null,null,5740,"Records Mang & Comm Resrc Law Library (Civil Just)"]
[null,null,null,null,null,null,null,null,null,5741,"Records Mang & Comm Resrc Law Library (Crim Just)"]
[null,null,null,null,null,null,null,null,null,5750,"Records Mang & Comm Resrc Mail"]
[null,null,null,null,null,null,null,null,null,5760,"Records Mang & Comm Resrc Media"]
[null,null,null,null,null,null,null,null,null,5770,"Records Mang & Comm Resrc Records/Consulting"]
[null,null,null,null,null,null,null,null,null,5780,"Records Mang & Comm Resrc Printing"]
[null,null,null,null,null,null,null,null,null,5811,"Health & Human Services Pc-Pflugerville Health Cl"]
[null,null,null,null,null,null,null,null,null,5812,"Health & Human Services Pc-Del Valle Health Cl"]
[null,null,null,null,null,null,null,null,null,5813,"Health & Human Services Pc-Manor Health Clinic"]
[null,null,null,null,null,null,null,null,null,5814,"Health & Human Services Pc-Oak Hill Health Clinic"]
[null,null,null,null,null,null,null,null,null,5815,"Health & Human Services Pc-Jonestown Health Cl"]
[null,null,null,null,null,null,null,null,null,5816,"Health & Human Services Pc-Clinic Services"]
[null,null,null,null,null,null,null,null,null,5817,"Health & Human Services Pc-Medical Services"]
[null,null,null,null,null,null,null,null,null,5821,"Health & Human Services Ehs-Private Sewage"]
[null,null,null,null,null,null,null,null,null,5822,"Health & Human Services Ehs-Consumer & Comm Prot"]
[null,null,null,null,null,null,null,null,null,5823,"Health & Human Services Ehs-Vector Control"]
[null,null,null,null,null,null,null,null,null,5824,"Health & Human Services Ehs-Animal Control"]
[null,null,null,null,null,null,null,null,null,5826,"Health & Human Services Ehs-Animal Center"]
[null,null,null,null,null,null,null,null,null,5830,"Health & Human Services Executive Manager"]
[null,null,null,null,null,null,null,null,null,5831,"Health & Human Services Admin/Atchhs"]
[null,null,null,null,null,null,null,null,null,5832,"Health & Human Services CDBG"]
[null,null,null,null,null,null,null,null,null,5833,"Health & Human Services Financial"]
[null,null,null,null,null,null,null,null,null,5838,"Health & Human Services Grants & Contracts/Atchhs"]
[null,null,null,null,null,null,null,null,null,5840,"Health & Human Services Cdps-Administration"]
[null,null,null,null,null,null,null,null,null,5841,"Health & Human Services Cdps-Immunization Svcs"]
[null,null,null,null,null,null,null,null,null,5842,"Health & Human Services Cdps-Std Services"]
[null,null,null,null,null,null,null,null,null,5843,"Health & Human Services Cdps-Hiv Admin Services"]
[null,null,null,null,null,null,null,null,null,5844,"Health & Human Services Cdps-Tb Services"]
[null,null,null,null,null,null,null,null,null,5845,"Health & Human Services Cdps-Hiv Clinic Services"]
[null,null,null,null,null,null,null,null,null,5850,"Health & Human Services Hhsvs Administrative Svcs"]
[null,null,null,null,null,null,null,null,null,5851,"Health & Human Services District 1"]
[null,null,null,null,null,null,null,null,null,5852,"Health & Human Services District 2"]
[null,null,null,null,null,null,null,null,null,5853,"Health & Human Services District 3"]
[null,null,null,null,null,null,null,null,null,5854,"Health & Human Services Family Support Services"]
[null,null,null,null,null,null,null,null,null,5855,"Health & Human Services Nbrhd-Trasportation"]
[null,null,null,null,null,null,null,null,null,5856,"Health & Human Services Healthy Families"]
[null,null,null,null,null,null,null,null,null,5857,"Health & Human Services Housing Services"]
[null,null,null,null,null,null,null,null,null,5858,"Health & Human Services Coa Weatherization"]
[null,null,null,null,null,null,null,null,null,5860,"Health & Human Services Community Svcs-General"]
[null,null,null,null,null,null,null,null,null,5861,"Health & Human Services Comm Svcs-Deaf Services"]
[null,null,null,null,null,null,null,null,null,5862,"Health & Human Services Community Svcs-Triad"]
[null,null,null,null,null,null,null,null,null,5863,"Health & Human Services Community Svcs-Cps State"]
[null,null,null,null,null,null,null,null,null,5864,"Health & Human Services Community Svcs-Cps County"]
[null,null,null,null,null,null,null,null,null,5865,"Health & Human Services Community Svcs-Rsvp"]
[null,null,null,null,null,null,null,null,null,5866,"Health & Human Services Community Service Admin"]
[null,null,null,null,null,null,null,null,null,5867,"Health & Human Services Youth & Family Services"]
[null,null,null,null,null,null,null,null,null,5868,"Health & Human Services Office Of Childrens Srvcs"]
[null,null,null,null,null,null,null,null,null,5869,"Health & Human Services Childrens Prtnship-TRIAD"]
[null,null,null,null,null,null,null,null,null,5871,"Health & Human Services Research And Planning"]
[null,null,null,null,null,null,null,null,null,5880,"Health & Human Services Hospital District Service"]
[null,null,null,null,null,null,null,null,null,5881,"Health & Human Services Rmap Direct Payments"]
[null,null,null,null,null,null,null,null,null,5891,"Health & Human Services Soc Svcs Agency Contracts"]
[null,null,null,null,null,null,null,null,null,5910,"Emergency Medical Service Starflight"]
[null,null,null,null,null,null,null,null,null,5911,"Starflight - City Intrlocal"]
[null,null,null,null,null,null,null,null,null,5915,"Emergency Medical Service Ems Consolidation"]
[null,null,null,null,null,null,null,null,null,"????","Dept/Div"]

{"sheet":"Search Tools","index":3,"n_rows":812,"n_cols":9,"rows_kept":812,"cut":false,"hidden":false,"merged":[[0,0,0,5]]}
["To search, type any piece of the word into the search box and hit enter. You can copy the results below and paste AS VALUES in the necessary field",null,null,null,null,null,null,"Copy and paste as values "]
["Job Search",null,null,null,"CI Search (full description)",null,"Rollup CI","Commitment item","Category"]
[null,{"$f":"_xlfn._xlws.FILTER('Data Jobs'!E:E,ISNUMBER(SEARCH(B2,'Data Jobs'!E:E)),Table14[Object name])","v":"Object name"},null,null,{"$f":"_xlfn._xlws.FILTER('Data CIs PB5'!A1:E999,ISNUMBER(SEARCH(F2,'Data CIs PB5'!B1:B999)),'Data CIs PB5'!A1:E999)","v":"Short Description"},"Full Description","Rollup CI","Commitment item","Category"]
[null,"Accountant",null,null,0,"SBITA Principal",530023,530025,"Capital Lease and Other Debt Expenses"]
[null,"Accountant Assoc",null,null,0,"Capital Outlay-Aircraft & Boating Equipment",520010,520010,"Capital Outlay Equipment"]
[null,"Accountant Lead",null,null,0,"Capital Outlay-Automobiles",520010,520020,"Capital Outlay Equipment"]
[null,"Accountant Sr",null,null,0,"Capital Outlay-Automotive Repair & Equipment",520010,520030,"Capital Outlay Equipment"]
[null,"Accounting Clerk",null,null,0,"Capital Outlay-Building Maintenance Equipment",520010,520040,"Capital Outlay Equipment"]
[null,"Accreditation Compliance Officer",null,null,0,"Capital Outlay-Computer Equipment",520010,520050,"Capital Outlay Equipment"]
[null,"Admin Services Div Dir Sr",null,null,0,"Capital Outlay-Custodial Equipment",520010,520060,"Capital Outlay Equipment"]
[null,"Admin Services Div Dir Sr Succession",null,null,0,"Capital Outlay-Educational/Communication Equipment",520010,520070,"Capital Outlay Equipment"]
[null,"Administrative Assoc",null,null,0,"Capital Outlay-Election Equipment",520010,520080,"Capital Outlay Equipment"]
[null,"Administrative Asst I",null,null,0,"Capital Outlay-Electrical Equipment",520010,520090,"Capital Outlay Equipment"]
[null,"Administrative Asst II",null,null,0,"Capital Outlay-Groundskeeping Equipment",520010,520100,"Capital Outlay Equipment"]
[null,"Administrative Investigator",null,null,0,"Capital Outlay-Institutional Equipment",520010,520110,"Capital Outlay Equipment"]
[null,"Administrative Services Div Dir",null,null,0,"Capital Outlay-Kitchen Equipment",520010,520120,"Capital Outlay Equipment"]
[null,"Agenda Coordinator",null,null,0,"Capital Outlay-Laboratory Equipment",520010,520130,"Capital Outlay Equipment"]
[null,"Aircraft Maintenance Dir",null,null,0,"Capital Outlay-Law Enforcement Equipment",520010,520140,"Capital Outlay Equipment"]
[null,"Aircraft Mechanic",null,null,0,"Capital Outlay-Medical/Dental/Safety Equipment",520010,520150,"Capital Outlay Equipment"]
[null,"Aircraft Mechanic Sr",null,null,0,"Capital Outlay-Office Equipment",520010,520160,"Capital Outlay Equipment"]
[null,"Application Architect",null,null,0,"Capital Outlay-Office Furniture",520010,520170,"Capital Outlay Equipment"]
[null,"Application Dev Analyst",null,null,0,"Capital Outlay-Other Equipment",520010,520180,"Capital Outlay Equipment"]
[null,"Application Dev Analyst Sr",null,null,0,"Capital Outlay-Recreational Equipment",520010,520190,"Capital Outlay Equipment"]
[null,"Applications Mgr",null,null,0,"Capital Outlay-Road and Highway Equipment",520010,520200,"Capital Outlay Equipment"]
[null,"Architectural Assoc",null,null,0,"Capital Outlay-Software",520010,520210,"Capital Outlay Equipment"]
[null,"Architectural Assoc Sr",null,null,0,"Capital Outlay-Traffic Control/Signage Equipment",520010,520220,"Capital Outlay Equipment"]
[null,"Architectural Asst",null,null,0,"Cap Outlay Mtrl-Assets Under Construction",520010,522100,"Capital Outlay Mtrl"]
[null,"Architectural Division Manager",null,null,0,"Cap Outlay Mtrl-Building Improvements",520010,522010,"Capital Outlay Mtrl"]
[null,"Archives Program Manager",null,null,0,"Cap Outlay Mtrl-Buildings",520010,522020,"Capital Outlay Mtrl"]
[null,"Archivist",null,null,0,"Cap Outlay Mtrl-Improvements Other",520010,522030,"Capital Outlay Mtrl"]
[null,"Assistant Archivist",null,null,0,"Cap Outlay Mtrl-Infrastructure/Improvements",520010,522040,"Capital Outlay Mtrl"]
[null,"Assistant HR Director, Total Rewards",null,null,0,"Cap Outlay Mtrl-Land",520010,522050,"Capital Outlay Mtrl"]
[null,"Assistant Parking Coordinator",null,null,0,"Cap Outlay Mtrl-Land-Right-of-Way",520010,522060,"Capital Outlay Mtrl"]
[null,"Asst Chief Pilot",null,null,0,"Cap Outlay Mtrl-Leasehold Improvements",520010,522070,"Capital Outlay Mtrl"]
[null,"Asst HR Dir Tal Plan Engage",null,null,0,"Cap Outlay Mtrl-Park Improvements",520010,522080,"Capital Outlay Mtrl"]
[null,"Asst Public Works Dir",null,null,0,"Cap Outlay Mtrl-Sign  Traffic Control Equipment",520010,522090,"Capital Outlay Mtrl"]
[null,"Attorney Deputy Chief Sr",null,null,0,"Cap Outlay Sv-Bridges",520010,521010,"Capital Outlay Svc"]
[null,"Attorney I",null,null,0,"Cap Outlay Sv-Building Improvements",520010,521020,"Capital Outlay Svc"]
[null,"Attorney II",null,null,0,"Cap Outlay Sv-Infrastructure Drainage",520010,521030,"Capital Outlay Svc"]
[null,"Attorney III",null,null,0,"Cap Outlay Sv-Infrastructure Roads",520010,521040,"Capital Outlay Svc"]
[null,"Attorney IV",null,null,0,"Cap Outlay Sv-Infrastructure Sidewalks",520010,521050,"Capital Outlay Svc"]
[null,"Attorney V",null,null,0,"Cap Outlay Sv-Installation-Equipment",520010,521085,"Capital Outlay Svc"]
[null,"Attorney VI",null,null,0,"Cap Outlay Sv-Installation-Software",520010,521090,"Capital Outlay Svc"]
[null,"Attorney VII",null,null,0,"Cap Outlay Sv-Park Improvements",520010,521060,"Capital Outlay Svc"]
[null,"Aud Administrative Analyst",null,null,0,"Cap Outlay Sv-Right of Way/Easements",520010,521070,"Capital Outlay Svc"]
[null,"Aud Application Architect I",null,null,0,"Cap Outlay Sv-Road Construction",520010,521080,"Capital Outlay Svc"]
[null,"Aud Application Architect II",null,null,0,"Background Check Services",513010,513010,"County Employment Related Expenses"]
[null,"Aud Application Dev Analyst I",null,null,0,"Employee Assistance Programs",513010,513020,"County Employment Related Expenses"]
[null,"Aud Application Dev Analyst II",null,null,0,"Employee Guaranteed Ride Home",513010,513025,"County Employment Related Expenses"]
[null,"Aud Application Dev Analyst III",null,null,0,"Employee Recognition",513010,513030,"County Employment Related Expenses"]
[null,"Aud Application Security Administrator",null,null,0,"Employee Recruitment Expenses",513010,513040,"County Employment Related Expenses"]
[null,"Aud Application Security Architect I",null,null,0,"Employee Relocation Expenses",513010,513050,"County Employment Related Expenses"]
[null,"Aud Application Security Architect II",null,null,0,"Pre-Employment Testing ",513010,513060,"County Employment Related Expenses"]
[null,"Aud Auditor Assoc I",null,null,0,"Tuition Reimbursement",513070,513070,"County Employment Related Expenses"]
[null,"Aud Auditor Assoc II",null,null,0,"Ad Litems",514010,514010,"Court and Law Enforcement Related Expenditures"]
[null,"Aud Auditor Assoc III",null,null,0,"Confidential Informant Fees",514010,514020,"Court and Law Enforcement Related Expenditures"]
[null,"Aud BI Architect I",null,null,0,"Court Costs",514010,514030,"Court and Law Enforcement Related Expenditures"]
[null,"Aud BI Architect II",null,null,0,"Court Ordered Attorney Fees",514040,514040,"Court and Law Enforcement Related Expenditures"]
[null,"Aud BI Dev Analyst I",null,null,0,"Court Ordered Attorney Fees - CPS Mediations",514040,514060,"Court and Law Enforcement Related Expenditures"]
[null,"Aud BI Dev Analyst II",null,null,0,"Court Ordered Attorney Fees - Non- CPS Juvenile",514040,514080,"Court and Law Enforcement Related Expenditures"]
[null,"Aud BI Dev Analyst III",null,null,0,"Court Ordered Attorney Fees - Non-CPS Contempt",514040,514090,"Court and Law Enforcement Related Expenditures"]
[null,"Aud Business Analyst I",null,null,0,"Court Ordered Attorney Fees - Non-Family",514040,514095,"Court and Law Enforcement Related Expenditures"]
[null,"Aud Business Analyst II",null,null,0,"Court Ordered Attorney Fees-Incidentals",514010,514046,"Court and Law Enforcement Related Expenditures"]
[null,"Aud Business Analyst III",null,null,0,"Court Ordered Atty Fees - Appeals",514048,514048,"Court and Law Enforcement Related Expenditures"]
[null,"Aud Business Consultant I",null,null,0,"Court Ordered Atty Fees - CPS Child Terminations",514040,514050,"Court and Law Enforcement Related Expenditures"]
[null,"Aud Business Consultant I Succession",null,null,0,"Court Ordered Atty Fees - CPS Parent Terminations",514040,514070,"Court and Law Enforcement Related Expenditures"]
[null,"Aud Business Consultant II",null,null,0,"Court Ordered Expert Witness Expenses",514010,514100,"Court and Law Enforcement Related Expenditures"]
[null,"Aud Business Support Manager-ERP",null,null,0,"Court Ordered Investigator Expenses",514010,514110,"Court and Law Enforcement Related Expenditures"]
[null,"Aud County Auditor Chief Asst I",null,null,0,"Court Ordered Lab Testing",514010,514120,"Court and Law Enforcement Related Expenditures"]
[null,"Aud County Auditor Chief Asst II",null,null,0,"Court Ordered Psychological Evaluations",514010,514115,"Court and Law Enforcement Related Expenditures"]
[null,"Aud County Auditor First Asst",null,null,0,"Court Transcripts",514010,514130,"Court and Law Enforcement Related Expenditures"]
[null,"Aud Data Scientist",null,null,0,"Expert Witness Testimony Exp",514010,514140,"Court and Law Enforcement Related Expenditures"]
[null,"Aud ERP System Administrator I",null,null,0,"Extradition Related Travel",514010,514150,"Court and Law Enforcement Related Expenditures"]
[null,"Aud ERP System Administrator II",null,null,0,"Grand Jury Fees",514010,514160,"Court and Law Enforcement Related Expenditures"]
[null,"Aud ERP System Architect I",null,null,0,"Interpretation/Translation  Services-Court",514010,514170,"Court and Law Enforcement Related Expenditures"]
[null,"Aud ERP System Architect II",null,null,0,"Jury Expenses",514010,514180,"Court and Law Enforcement Related Expenditures"]
[null,"Aud Executive Asst",null,null,0,"Medical Exams - Victims",514010,514190,"Court and Law Enforcement Related Expenditures"]
[null,"Aud Fin Aud Anly IV Succession",null,null,0,"Mental Health Attorneys",514010,514200,"Court and Law Enforcement Related Expenditures"]
[null,"Aud Fin Aud Anly VI Succession",null,null,0,"Petit Jury Fees",514010,514210,"Court and Law Enforcement Related Expenditures"]
[null,"AUD Finance/Transparency Support Mgr",null,null,0,"Special Masters",514010,514220,"Court and Law Enforcement Related Expenditures"]
[null,"Aud Financial Audit Mgr",null,null,0,"Specialty Court Attorney Fees",514040,514045,"Court and Law Enforcement Related Expenditures"]
[null,"Aud Financial Auditor Analyst I",null,null,0,"Substitute Court Reporter Charges",514010,514230,"Court and Law Enforcement Related Expenditures"]
[null,"Aud Financial Auditor Analyst II",null,null,0,"Transcript Expenses",514010,514240,"Court and Law Enforcement Related Expenditures"]
[null,"Aud Financial Auditor Analyst III",null,null,0,"Visiting Judges - Contractor Fees",514010,514249,"Court and Law Enforcement Related Expenditures"]
[null,"Aud Financial Auditor Analyst IV",null,null,0,"Visiting Judges - Expense Reimbursement",514010,514250,"Court and Law Enforcement Related Expenditures"]
[null,"Aud Financial Auditor Analyst V",null,null,0,"Witness Expenses",514010,514260,"Court and Law Enforcement Related Expenditures"]
[null,"Aud Financial Auditor Analyst VI",null,null,0,"Auto Liability Premiums",515010,515340,"Insurance Premiums"]
[null,"Aud Financial Systems Director-ERP",null,null,0,"Bonds-Elected Officials",515010,515420,"Insurance Premiums"]
[null,"Aud Lead Data Scientist",null,null,0,"COBRA Stop/Loss Premium Medical-HDHP",515010,515269,"Insurance Premiums"]
[null,"Aud Office Mgr",null,null,0,"COBRA-Premium Medical-CoEPO",515010,515264,"Insurance Premiums"]
[null,"Aud Office Specialist",null,null,0,"COBRA-Premium Medical-CoEPO",515010,515267,"Insurance Premiums"]
[null,"Aud Office Specialist Sr",null,null,0,"COBRA-Premium Medical-Consumer Choice",515010,515268,"Insurance Premiums"]
[null,"Aud Records Analyst Assoc",null,null,0,"COBRA-Premium Medical-EPO",515010,515266,"Insurance Premiums"]
[null,"Aud Records Analyst Lead",null,null,0,"COBRA-Premium Medical-HDHP",515010,515270,"Insurance Premiums"]
[null,"Aud Records Analyst Sr",null,null,0,"COBRA-Premium Medical-PPO",515010,515265,"Insurance Premiums"]
[null,"Aud Senior Data Scientist",null,null,0,"COBRA-Stop/Loss Premium Medical-CoEPO",515010,515261,"Insurance Premiums"]
[null,"Aud Systems Engineer I",null,null,0,"COBRA-Stop/Loss Premium Medical-EPO",515010,515263,"Insurance Premiums"]
[null,"Aud Systems Engineer II",null,null,0,"COBRA-Stop/Loss Premium Medical-PPO",515010,515262,"Insurance Premiums"]
[null,"Aud Systems Engineer III",null,null,0,"E&O Insurance Premiums",515010,515410,"Insurance Premiums"]
[null,"Audit business Long",null,null,0,"Employee Stop/Loss Premium Medical",515010,515001,"Insurance Premiums"]
[null,"Autopsy Tech",null,null,0,"Employee Stop/Loss Premium Medical-CoEPO",515010,515010,"Insurance Premiums"]
[null,"Autopsy Tech Chief",null,null,0,"Employee Stop/Loss Premium Medical-Consumer Choice",515010,515011,"Insurance Premiums"]
[null,"Autopsy Tech Chief Deputy",null,null,0,"Employee Stop/Loss Premium Medical-EPO",515010,515030,"Insurance Premiums"]
[null,"BCP Visitor Center Manager",null,null,0,"Employee Stop/Loss Premium Medical-HDHP",515010,515012,"Insurance Premiums"]
[null,"Benefits Administrator",null,null,0,"Employee Stop/Loss Premium Medical-PPO",515010,515020,"Insurance Premiums"]
[null,"Benefits Manager",null,null,0,"Employee-Premium Medical-CoEPO",515010,515040,"Insurance Premiums"]
[null,"Benefits Specialist",null,null,0,"Employee-Premium Medical-Consumer Choice",515041,515041,"Insurance Premiums"]
[null,"Budget Asst Dir",null,null,0,"Employee-Premium Medical-EPO",515010,515060,"Insurance Premiums"]
[null,"Budget Dir",null,null,0,"Employee-Premium Medical-HDHP",515010,515042,"Insurance Premiums"]
[null,"Building Automation System Specialist",null,null,0,"Employee-Premium Medical-PPO",515010,515050,"Insurance Premiums"]
[null,"Building Energy Manager",null,null,0,"General Insurance Premiums",515010,515320,"Insurance Premiums"]
[null,"Building Maintenance & Repair Div Mgr",null,null,0,"General Insurance Premiums - Conversion",515010,515511,"Insurance Premiums"]
[null,"Building Maintenance & Repr Asst Div Mgr",null,null,0,"General Liability Premiums",515010,515330,"Insurance Premiums"]
[null,"Building Maintenance Coord",null,null,0,"Insurance Premiums Risk Management",515010,515510,"Insurance Premiums"]
[null,"Building Maintenance Div Mgr",null,null,0,"Property Insurance Premiums",515010,515430,"Insurance Premiums"]
[null,"Building Maintenance Supt",null,null,0,"Ret<65 Stop/Loss Prem Medical-Consumer Choice",515010,515111,"Insurance Premiums"]
[null,"Building Maintenance Supv",null,null,0,"Ret<65 Stop/Loss Prem Medical-HDHP",515010,515112,"Insurance Premiums"]
[null,"Building Maintenance Worker",null,null,0,"Ret>65 Stop/Loss Prem Medical-Consumer Choice",515211,515211,"Insurance Premiums"]
[null,"Building Maintenance Worker Sr",null,null,0,"Ret>65 Stop/Loss Prem Medical-HDHP",515010,515212,"Insurance Premiums"]
[null,"Building Operations Division Manager",null,null,0,"Retiree < 65 Stop/Loss Premium Medical-CoEPO",515010,515110,"Insurance Premiums"]
[null,"Building Operations Worker",null,null,0,"Retiree < 65 Stop/Loss Premium Medical-EPO",515010,515130,"Insurance Premiums"]
[null,"Building Security Coordinator",null,null,0,"Retiree < 65 Stop/Loss Premium Medical-PPO",515010,515120,"Insurance Premiums"]
[null,"Building Security Guard",null,null,0,"Retiree >65 Stop/Loss Premium Medical-CO EPO",515010,515210,"Insurance Premiums"]
[null,"Building Security Guard Sr",null,null,0,"Retiree >65 Stop/Loss Premium Medical-EPO",515010,515230,"Insurance Premiums"]
[null,"Building Security Superintendent",null,null,0,"Retiree >65 Stop/Loss Premium Medical-PPO",515010,515220,"Insurance Premiums"]
[null,"Business Analyst Assoc",null,null,0,"Retiree<65-Premium Medical-CoEPO",515010,515140,"Insurance Premiums"]
[null,"Business Analyst I",null,null,0,"Retiree<65-Premium Medical-Consumer Choice",515141,515141,"Insurance Premiums"]
[null,"Business Analyst II",null,null,0,"Retiree<65-Premium Medical-EPO",515010,515160,"Insurance Premiums"]
[null,"Business Analyst III",null,null,0,"Retiree<65-Premium Medical-HDHP",515010,515142,"Insurance Premiums"]
[null,"Business Consultant I",null,null,0,"Retiree<65-Premium Medical-PPO",515010,515150,"Insurance Premiums"]
[null,"Business Consultant II",null,null,0,"Retiree>65-Premium Medical-CoEPO",515010,515240,"Insurance Premiums"]
[null,"Business Continuity Planner",null,null,0,"Retiree>65-Premium Medical-Consumer Choice",515241,515241,"Insurance Premiums"]
[null,"CADD Coordinator",null,null,0,"Retiree>65-Premium Medical-EPO",515010,515260,"Insurance Premiums"]
[null,"Carpenter",null,null,0,"Retiree>65-Premium Medical-HDHP",515242,515243,"Insurance Premiums"]
[null,"Carpenter Assoc",null,null,0,"Retiree>65-Premium Medical-MAPD",515242,515242,"Insurance Premiums"]
[null,"Carpenter Sr",null,null,0,"Retiree>65-Premium Medical-PPO",515010,515250,"Insurance Premiums"]
[null,"Case Worker",null,null,0,"Retiree-Premium Medical-Conversion",515010,515512,"Insurance Premiums"]
[null,"CC Specialist Succession",null,null,0,"Retiree-Stop/Loss Premium Medical-Conversion",515010,515513,"Insurance Premiums"]
[null,"Certified Nursing Asst",null,null,0,"Worker's Compensation Premiums",515010,515310,"Insurance Premiums"]
[null,"CES Dir",null,null,0,"Auto Liability Administrative Expenses",516000,516610,"Loss & Claims"]
[null,"Chaplain",null,null,0,"Benefits Administration",516000,516620,"Loss & Claims"]
[null,"Chaplain Sr",null,null,0,"COBRA Actl Clms/Loss Pmts Medical-Consumer Choice",516000,516311,"Loss & Claims"]
[null,"Chemical Dependency Counselor",null,null,0,"COBRA Actl Clms/Loss Pmts Medical-HDHP",516000,516312,"Loss & Claims"]
[null,"Chemical Dependency Counselor Sr",null,null,0,"COBRA Pharmacy Clms/Loss Pmts Medical-Cons Choice",515593,515593,"Loss & Claims"]
[null,"Chief Counsel",null,null,0,"COBRA Pharmacy Clms/Loss Pmts Medical-EPO",516000,515583,"Loss & Claims"]
[null,"Chief Deputy Emergency Management Coord",null,null,0,"COBRA Pharmacy Clms/Loss Pmts Medical-HDHP",516000,515598,"Loss & Claims"]
[null,"Chief Deputy Emergency Services",null,null,0,"COBRA Pharmacy Clms/Loss Pmts Medical-PPO",516000,515588,"Loss & Claims"]
[null,"Chief Emergency Management Coordinator",null,null,0,"COBRA-Actual Claims/Loss Pmts Medical-CoEPO",516000,516310,"Loss & Claims"]
[null,"Chief Information Security Officer",null,null,0,"COBRA-Actual Claims/Loss Pmts Medical-EPO",516000,516330,"Loss & Claims"]
[null,"Chief Investment Officer",null,null,0,"COBRA-Actual Claims/Loss Pmts Medical-PPO",516000,516320,"Loss & Claims"]
[null,"Chief of Staff to County Commissioner",null,null,0,"COBRA-Admin-CoEPO",516000,516340,"Loss & Claims"]
[null,"Chief of Staff to County Judge",null,null,0,"COBRA-Admin-Consumer Choice",516000,516341,"Loss & Claims"]
[null,"Chief Public Defender",null,null,0,"COBRA-Admin-EPO",516000,516360,"Loss & Claims"]
[null,"Chiller/Boiler Specialist",null,null,0,"COBRA-Admin-HDHP",516000,516342,"Loss & Claims"]
[null,"Civil Service Cmn Asst Program Dir",null,null,0,"COBRA-Admin-PPO",516000,516350,"Loss & Claims"]
[null,"Civil Service Cmn Program Dir",null,null,0,"County Auto-Physical Damage",516000,516410,"Loss & Claims"]
[null,"Clinic Operations Officer",null,null,0,"E&O Actual Claims/Loss Payments",516000,516420,"Loss & Claims"]
[null,"Clinic Supv Chief",null,null,0,"Emp Pharmacy Clms/Loss Pymts Medical-Cons Choice",516000,515590,"Loss & Claims"]
[null,"Clinical Mental Health Professional",null,null,0,"Emp Pharmacy Clms/Loss Pymts Medical-EPO",516000,515580,"Loss & Claims"]
[null,"Clinical Mental Health Professional Ld",null,null,0,"Emp Pharmacy Clms/Loss Pymts Medical-PPO",516000,515585,"Loss & Claims"]
[null,"Clinical Mental Health Professional Sr",null,null,0,"Empl Actl Clms/Loss Pymts Medical-Consumer Choice",516000,516011,"Loss & Claims"]
[null,"Clinical Mental Health Professional Supv",null,null,0,"Empl Actl Clms/Loss Pymts Medical-HDHP",516000,516012,"Loss & Claims"]
[null,"Communications Director",null,null,0,"Employee Actual Claims/Loss Payments Medical-CoEPO",516000,516010,"Loss & Claims"]
[null,"Community and Economic Development Spc",null,null,0,"Employee Actual Claims/Loss Payments Medical-EPO",516000,516030,"Loss & Claims"]
[null,"Community Engagement Specialist",null,null,0,"Employee Actual Claims/Loss Payments Medical-PPO",516000,516020,"Loss & Claims"]
[null,"Community Liaison",null,null,0,"Employee-Admin-CoEPO",516000,516040,"Loss & Claims"]
[null,"Community Liaison Supervisor",null,null,0,"Employee-Admin-Consumer Choice",516000,516041,"Loss & Claims"]
[null,"Compensation Analyst I",null,null,0,"Employee-Admin-EPO",516000,516060,"Loss & Claims"]
[null,"Compensation Analyst II",null,null,0,"Employee-Admin-HDHP",516000,516042,"Loss & Claims"]
[null,"Compensation Analyst Sr",null,null,0,"Employee-Admin-PPO",516000,516050,"Loss & Claims"]
[null,"Compensation Manager",null,null,0,"General Liability Administrative Expenses",516000,516630,"Loss & Claims"]
[null,"Compliance and Grants Administrator",null,null,0,"General Liability Claims",516000,516430,"Loss & Claims"]
[null,"Compliance and Privacy Analyst I",null,null,0,"Insurance Claims Court Filing Fees",516000,516640,"Loss & Claims"]
[null,"Compliance and Privacy Analyst II",null,null,0,"Insurance Claims Court Reporting Expense",516000,516650,"Loss & Claims"]
[null,"Compliance and Privacy Analyst Sr",null,null,0,"Insurance Claims Legal Document/Dupl",516000,516660,"Loss & Claims"]
[null,"Constable Cadet",null,null,0,"Insurance Claims Legal expenses",516000,516670,"Loss & Claims"]
[null,"Constable Communications Specialist",null,null,0,"Insurance Claims Witness Expenses",516000,516680,"Loss & Claims"]
[null,"Constable Communications Specialist Sr",null,null,0,"Internal Property Damage",516000,516440,"Loss & Claims"]
[null,"Constable Communications Specialist Supv",null,null,0,"Internal Property Damage Administrative Expenses",516000,516690,"Loss & Claims"]
[null,"Constable Corporal",null,null,0,"OPEB - All Employees",516000,516810,"Loss & Claims"]
[null,"Constable Deputy",null,null,0,"Patient Centered Outcomes Rsch Institute",516000,516890,"Loss & Claims"]
[null,"Constable Deputy Chief",null,null,0,"Personal Injury Claims",516000,516431,"Loss & Claims"]
[null,"Constable Deputy Sr",null,null,0,"Pharmaceutical Expenses",519634,519634,"Loss & Claims"]
[null,"Constable Lieutenant",null,null,0,"Pharmacy Claims",516000,516000,"Loss & Claims"]
[null,"Constable Sergeant",null,null,0,"Ret<65 Actl Clms/Loss Pmts Medical-Consumer Choice",516000,516111,"Loss & Claims"]
[null,"Contract Compliance Specialist",null,null,0,"Ret<65 Actl Clms/Loss Pmts Medical-HDHP",516000,516112,"Loss & Claims"]
[null,"Cook",null,null,0,"Ret<65 Pharmacy Clms/Loss Pmts Medical-Cons Choice",516000,515591,"Loss & Claims"]
[null,"Corporate Privacy Officer",null,null,0,"Ret<65 Pharmacy Clms/Loss Pmts Medical-EPO",516000,515581,"Loss & Claims"]
[null,"Corporations Managing Director",null,null,0,"Ret<65 Pharmacy Clms/Loss Pmts Medical-HDHP",516000,515596,"Loss & Claims"]
[null,"Corporations Operations Specialist",null,null,0,"Ret<65 Pharmacy Clms/Loss Pmts Medical-PPO",516000,515586,"Loss & Claims"]
[null,"Corporations Program Manager",null,null,0,"Ret>65 Actl Clms/Loss Pmts Medical-Consumer Choice",516000,516211,"Loss & Claims"]
[null,"Corporations Project Coordinator",null,null,0,"Ret>65 Actl Clms/Loss Pmts Medical-HDHP",516000,516212,"Loss & Claims"]
[null,"Corrections Captain",null,null,0,"Ret>65 Pharmacy Clms/Loss Pmts Medical-Cons Choice",516000,515592,"Loss & Claims"]
[null,"Corrections Lieutenant",null,null,0,"Ret>65 Pharmacy Clms/Loss Pmts Medical-Drug Progrm",516000,515595,"Loss & Claims"]
[null,"Corrections Maintenance Worker",null,null,0,"Ret>65 Pharmacy Clms/Loss Pmts Medical-EPO",516000,515582,"Loss & Claims"]
[null,"Corrections Officer",null,null,0,"Ret>65 Pharmacy Clms/Loss Pmts Medical-HDHP",516000,515597,"Loss & Claims"]
[null,"Corrections Officer Sr",null,null,0,"Ret>65 Pharmacy Clms/Loss Pmts Medical-PPO",516000,515587,"Loss & Claims"]
[null,"Corrections Sergeant",null,null,0,"Retiree < 65 Actual Claims/Loss Pmts Medical-CoEPO",516000,516110,"Loss & Claims"]
[null,"Corrections Specialist",null,null,0,"Retiree < 65 Actual Claims/Loss Pmts Medical-EPO",516000,516130,"Loss & Claims"]
[null,"Cost Estimator",null,null,0,"Retiree < 65 Actual Claims/Loss Pmts Medical-PPO",516000,516120,"Loss & Claims"]
[null,"Counselor",null,null,0,"Retiree >65 Actual Claims/Loss Pmts Medical-CO EPO",516000,516210,"Loss & Claims"]
[null,"Counselor Sr",null,null,0,"Retiree >65 Actual Claims/Loss Pmts Medical-EPO",516000,516230,"Loss & Claims"]
[null,"County Clerk Asst Deputy Chief",null,null,0,"Retiree >65 Actual Claims/Loss Pmts Medical-PPO",516000,516220,"Loss & Claims"]
[null,"County Clerk Deputy Chief",null,null,0,"Retiree- Actual Claims/Loss Pmts Medical-PPO Conv",516000,516441,"Loss & Claims"]
[null,"County Commissioners Court Specialist",null,null,0,"Retiree<65-Admin-CoEPO",516000,516140,"Loss & Claims"]
[null,"County Executive for Tch and Ops",null,null,0,"Retiree<65-Admin-Consumer Choice",516000,516141,"Loss & Claims"]
[null,"County/District Attorney Div Dir",null,null,0,"Retiree<65-Admin-EPO",516000,516160,"Loss & Claims"]
[null,"County/District Attorney Div Dir Asst",null,null,0,"Retiree<65-Admin-HDHP",516000,516142,"Loss & Claims"]
[null,"County/District Clerk Asst Div Dir",null,null,0,"Retiree<65-Admin-PPO",516000,516150,"Loss & Claims"]
[null,"County/District Clerk Div Dir",null,null,0,"Retiree>65-Admin-CoEPO",516000,516240,"Loss & Claims"]
[null,"County/District Clerk Div Dir Succession",null,null,0,"Retiree>65-Admin-Consumer Choice",516000,516241,"Loss & Claims"]
[null,"Court Bailiff",null,null,0,"Retiree>65-Admin-EPO",516000,516260,"Loss & Claims"]
[null,"Court Clerk Asst",null,null,0,"Retiree>65-Admin-HDHP",516000,516242,"Loss & Claims"]
[null,"Court Clerk I",null,null,0,"Retiree>65-Admin-PPO",516000,516250,"Loss & Claims"]
[null,"Court Clerk I",null,null,0,"Retiree>65-Premium Medical-MAPD",516000,515599,"Loss & Claims"]
[null,"Court Clerk II",null,null,0,"Retiree-Actual Claims/Loss Pmts Medical-CoEPO Conv",516000,516442,"Loss & Claims"]
[null,"Court Clerk II Sr",null,null,0,"Retiree-Actual Claims/Loss Pmts Medical-EPO-Conv",516000,516443,"Loss & Claims"]
[null,"Court Legal Mgmt Adm Dir",null,null,0,"Retiree-Admin-Conversion",516000,516444,"Loss & Claims"]
[null,"Court Operations Officer",null,null,0,"Third Party Attorney Fee Claims",516000,516460,"Loss & Claims"]
[null,"Court Reporter",null,null,0,"Third Party Auto Claims",516000,516470,"Loss & Claims"]
[null,"Court Services Director",null,null,0,"Third Party Property Damage",516000,516480,"Loss & Claims"]
[null,"Court Services Mgmt Adm Coord",null,null,0,"Third Party Property Damage-Starflight",516000,516490,"Loss & Claims"]
[null,"Court Services Program Mgr",null,null,0,"Unemployment Insurance Actual Claims",516000,516500,"Loss & Claims"]
[null,"Court Services Program Mgr Succession",null,null,0,"Worker's Comp Claims-Active Employee",516000,516510,"Loss & Claims"]
[null,"Crime Analyst",null,null,0,"Worker's Comp-Medical Bill Auditing",516000,516700,"Loss & Claims"]
[null,"Crime Analyst Sr",null,null,0,"Worker's Comp-Third Party Adm",516000,516710,"Loss & Claims"]
[null,"Crime Analyst Supervisor",null,null,0,"Agency Contracts - Conversion",518010,518002,"Miscellaneous Operating"]
[null,"Crime Scene & Evidence Manager",null,null,0,"Appropriations to Other Public Entities",517010,517010,"Miscellaneous Operating"]
[null,"Crime Scene Specialist",null,null,0,"PSF Distribution to ISDs",517010,517015,"Miscellaneous Operating"]
[null,"Crime Scene Specialist Lead",null,null,0,"Subrecipient - Purchased Services - Conversion",518010,518001,"Miscellaneous Operating"]
[null,"CSCD Accounting Specialist I",null,null,0,"Subrecipient-Operating Expenses",518010,518030,"Miscellaneous Operating"]
[null,"CSCD Accounting Specialist II",null,null,0,"Subrecipient-Other ",518010,518120,"Miscellaneous Operating"]
[null,"CSCD Accounting Specialist III",null,null,0,"Subrecipient-Overtime",518010,518020,"Miscellaneous Operating"]
[null,"CSCD Accounting Specialist IV",null,null,0,"Subrecipient-Salaries",518010,518010,"Miscellaneous Operating"]
[null,"CSCD Accounting Specialist V",null,null,0,"Subrecipient-Travel",518010,518110,"Miscellaneous Operating"]
[null,"CSCD Assistant Director",null,null,0,"Arbitrage Rebate Payment",519010,519010,"Miscellaneous Operating Expenditures"]
[null,"CSCD Business Analyst I",null,null,0,"County Contribution to Grants",519880,519880,"Miscellaneous Operating Expenditures"]
[null,"CSCD Business Analyst II",null,null,0,"Inmate Trust Fund Distribution",519020,519020,"Miscellaneous Operating Expenditures"]
[null,"CSCD Business Analyst III",null,null,0,"Interest Expense",519030,519030,"Miscellaneous Operating Expenditures"]
[null,"CSCD Business Analyst IV",null,null,0,"Licenses & Permits",519040,519040,"Miscellaneous Operating Expenditures"]
[null,"CSCD Case Work Specialist I",null,null,0,"Other Miscellaneous Expenditure",519080,519080,"Miscellaneous Operating Expenditures"]
[null,"CSCD Case Work Specialist II",null,null,0,"Prior Year Expenditures/Revenues",519050,519050,"Miscellaneous Operating Expenditures"]
[null,"CSCD Case Work Specialist III",null,null,0,"Property Taxes",519060,519060,"Miscellaneous Operating Expenditures"]
[null,"CSCD Case Work Specialist IV",null,null,0,"Refunds Exp",519070,519070,"Miscellaneous Operating Expenditures"]
[null,"CSCD Chemical Dependency Counselor I",null,null,0,"County Contribution to Grants",595010,595010,"Operating Transfers"]
[null,"CSCD Chemical Dependency Counselor II",null,null,0,"Fund Fin Exp Offset-Other-Operating Tran",595100,595100,"Operating Transfers"]
[null,"CSCD Clinical Mental Health Pf II",null,null,0,"Fund Fin Rev Offset-Transfers Out",595099,595099,"Operating Transfers"]
[null,"CSCD Clinical Mental Health Professional",null,null,0,"Transfers to After School Youth Enrchmt",590149,590149,"Operating Transfers"]
[null,"CSCD Counselor I",null,null,0,"Transfers to Balcones Canyonland Pres Fd",590115,590115,"Operating Transfers"]
[null,"CSCD Counselor II",null,null,0,"Transfers to Child Welfare Jury Donations Fund",590155,590155,"Operating Transfers"]
[null,"CSCD Counselor III",null,null,0,"Transfers to Consolidated Debt Service Fd",593001,593001,"Operating Transfers"]
[null,"CSCD Counselor IV",null,null,0,"Transfers to Contractual Capital Proj Fd",594050,594050,"Operating Transfers"]
[null,"CSCD Division Director I",null,null,0,"Transfers to Courthouse Security Fd",590111,590111,"Operating Transfers"]
[null,"CSCD Division Director II",null,null,0,"Transfers to Debt Service-Taxable Fd",593005,593005,"Operating Transfers"]
[null,"CSCD Division Director III",null,null,0,"Transfers to Dispute Resolution Center Fd",590104,590104,"Operating Transfers"]
[null,"CSCD Executive Assistant I",null,null,0,"Transfers to Employee Health Benefit Fd",598956,598956,"Operating Transfers"]
[null,"CSCD Executive Assistant II",null,null,0,"Transfers to General Fd",590001,590001,"Operating Transfers"]
[null,"CSCD Executive Assistant III",null,null,0,"Transfers to Juv Justice Alternative Edu",590107,590107,"Operating Transfers"]
[null,"CSCD Executive Assistant IV",null,null,0,"Transfers to Juvenile Deferred Prosecution Fd",590114,590114,"Operating Transfers"]
[null,"CSCD Financial Analyst I",null,null,0,"Transfers to OOG Criminal Justice Division-StateFd",592058,592058,"Operating Transfers"]
[null,"CSCD Financial Analyst II",null,null,0,"Transfers to Other Funds",595020,595020,"Operating Transfers"]
[null,"CSCD Human Resources Specialist I",null,null,0,"Transfers to Professional Prosecuters Fd",590122,590122,"Operating Transfers"]
[null,"CSCD Human Resources Specialist II",null,null,0,"Transfers to Rd and Bridge Fd",590145,590145,"Operating Transfers"]
[null,"CSCD Human Resources Specialist III",null,null,0,"Transfers to Rec Mgmt & Pres Fd",590110,590110,"Operating Transfers"]
[null,"CSCD Human Resources Specialist IV",null,null,0,"Transfers to Refunding Debt Service Fd",593002,593002,"Operating Transfers"]
[null,"CSCD Intake Specialist I",null,null,0,"Transfers to Self Insurance Fd",598955,598955,"Operating Transfers"]
[null,"CSCD Intake Specialist II",null,null,0,"Transfers to Texas Dept of Transportation Fd",592031,592031,"Operating Transfers"]
[null,"CSCD Intake Specialist III",null,null,0,"Transfers to Texas Water Dev Board-Fed Cap Fd",592041,592041,"Operating Transfers"]
[null,"CSCD Internal Auditor",null,null,0,"Transfers to Travis Co Bee Cave Rd Dist 1 Fd",593004,593004,"Operating Transfers"]
[null,"CSCD Office Manager I",null,null,0,"Transfers to Truancy Court Fd",590126,590126,"Operating Transfers"]
[null,"CSCD Office Manager II",null,null,0,"Transfers to Tx Dpt of Crm Js Cmty Justice Asst Di",592045,592045,"Operating Transfers"]
[null,"CSCD Office Specialist I",null,null,0,"Transfers to Tx Exposition and Heritage",590003,590003,"Operating Transfers"]
[null,"CSCD Office Specialist II",null,null,0,"Transfers to Voter Registration Fd",590105,590105,"Operating Transfers"]
[null,"CSCD Office Specialist III",null,null,0,"Transfers-Grant Match - Conversion",595030,595030,"Operating Transfers"]
[null,"CSCD Office Specialist IV",null,null,0,"Trfrs to Perm Imprvmnt Bds Series 2000-Parks",594076,594076,"Operating Transfers"]
[null,"CSCD Planner I",null,null,0,"Trfrs to UnLtd Tax Rd Bds Series 1998A",594077,594077,"Operating Transfers"]
[null,"CSCD Planner II",null,null,0,"Trfrs to UnLtd Tax Rd Bds Series 1999",594078,594078,"Operating Transfers"]
[null,"CSCD Probation Officer Court",null,null,0,"Trfrs to UnLtd Tax Rd Bds Series 2000",594079,594079,"Operating Transfers"]
[null,"CSCD Probation Officer I",null,null,0,"Trfrs to UnLtd Tax Rd Bds Series 2001",594080,594080,"Operating Transfers"]
[null,"CSCD Probation Officer II",null,null,0,"Actuarial Services",511010,511180,"Services"]
[null,"CSCD Probation Officer III",null,null,0,"Administration Costs-IDC Posts",511750,511750,"Services"]
[null,"CSCD Probation Officer IV",null,null,0,"Administration Costs-Manual",511751,511751,"Services"]
[null,"CSCD Probation Officer Substance Use",null,null,0,"Advertising/Public Notification Services",511010,511680,"Services"]
[null,"CSCD Psychologist",null,null,0,"Agency Dues and Memberships",511010,511760,"Services"]
[null,"CSCD Re-Entry Program Coord",null,null,0,"Air Transport Services",511010,511490,"Services"]
[null,"CSCD Residential Specialist I",null,null,0,"Ambulance Service",511010,511500,"Services"]
[null,"CSCD Residential Specialist II",null,null,0,"Animal Service Programs",511010,511290,"Services"]
[null,"CSCD Residential Specialist III",null,null,0,"Arbitrage Calculation Service",511190,511190,"Services"]
[null,"CSCD Residential Specialist IV",null,null,0,"Arbitration/Mediation",511010,511240,"Services"]
[null,"CSCD Social Worker",null,null,0,"Armored Motor Service",511010,511510,"Services"]
[null,"CSCD Technician I",null,null,0,"Auditing Services",511010,511200,"Services"]
[null,"CSCD Technician II",null,null,0,"Automobile Repairs & Maintenance",511010,511520,"Services"]
[null,"CSCD Technician III",null,null,0,"Bank Service Charges",511210,511210,"Services"]
[null,"CSCD Training Manager I",null,null,0,"Building Repairs & Maintenance",511010,511530,"Services"]
[null,"CSCD Training Specialist I",null,null,0,"Cable TV Service",511460,511485,"Services"]
[null,"CSCD Training Specialist II",null,null,0,"Case Management Services",511010,511130,"Services"]
[null,"CSCD Training Specialist Sr - PO",null,null,0,"Cellular (Air) Time Usage",511010,511700,"Services"]
[null,"CSCD Unit Manager I",null,null,0,"Cellular Phone Allowance",511710,511710,"Services"]
[null,"CSCD Unit Manager II",null,null,0,"Child & Youth Development",511010,511300,"Services"]
[null,"Custodial Services Superintendent",null,null,0,"Child/Elderly Care",511010,511310,"Services"]
[null,"Custodian",null,null,0,"Cloud Based Subscription Services",511550,511671,"Services"]
[null,"Custodian Lead",null,null,0,"Construction Services",511010,511973,"Services"]
[null,"Custodian Services Supv",null,null,0,"Counseling Services",511010,511010,"Services"]
[null,"Customer Support Analyst",null,null,0,"COVID Response Distributions",511010,511231,"Services"]
[null,"Customer Support Analyst Sr",null,null,0,"Custodial Services",511010,511770,"Services"]
[null,"Customer Support Mgr",null,null,0,"Dental Services",511010,511020,"Services"]
[null,"Customer Support Supervisor",null,null,0,"Disposal Service",511010,511920,"Services"]
[null,"Customer Support Supervisor Succession",null,null,0,"Electric Utilities YE Accr",511461,511461,"Services"]
[null,"Customer Support Tech",null,null,0,"Electrical Service",511460,511460,"Services"]
[null,"Data Architect",null,null,0,"Environmental Impact Services",511010,511780,"Services"]
[null,"Database Administrator",null,null,0,"Exterminating Services",511010,511790,"Services"]
[null,"Dept Safety Program Administrator",null,null,0,"External Placement Prisoners/Juveniles",511800,511800,"Services"]
[null,"Deputy Emergency Management Coordinator",null,null,0,"Financial Consulting Services",511010,511220,"Services"]
[null,"Dev Svcs Long Range Planning Div Dir",null,null,0,"Food Bank Assistance",511330,511330,"Services"]
[null,"Development Services Division Manager",null,null,0,"Food Voucher Assistance",511340,511340,"Services"]
[null,"Digital Forensic Analyst",null,null,0,"Furniture & Office Equipment Repairs & Maintenance",511010,511540,"Services"]
[null,"Dir Econ Dev & Strategic Investments",null,null,0,"Gifts",511010,511350,"Services"]
[null,"Director of Holistic Practice",null,null,0,"Grounds Maintenance Services",511010,511610,"Services"]
[null,"Director of Policy and Analytics",null,null,0,"Hardware/Software Install Services",511010,511810,"Services"]
[null,"Director of Trials and Training",null,null,0,"Hardware/Software Maintenance",511550,511550,"Services"]
[null,"Dispatcher",null,null,0,"Hauling",511010,511819,"Services"]
[null,"District Clerk Deputy Chief",null,null,0,"Hazardous Material Removal",511010,511830,"Services"]
[null,"District Park Mgr",null,null,0,"Helicopter Repairs & Maintenance",511010,511560,"Services"]
[null,"Div Chief Clinical Performance & Edu",null,null,0,"Hospitalization Services",511010,511030,"Services"]
[null,"Diversity, Equity, and Inclusion Officer",null,null,0,"Indigent Medical Care - Conversion",511010,511123,"Services"]
[null,"Division Manager",null,null,0,"Info Retrieval Svs",511010,511875,"Services"]
[null,"Economic & Strategic Planning Mg Dir",null,null,0,"Interment Services",511360,511360,"Services"]
[null,"Education Instructional Specialist",null,null,0,"Interpretation/Translation  Services-Other",511010,511850,"Services"]
[null,"Elections Administrator Asst",null,null,0,"Investigative Services",511860,511860,"Services"]
[null,"Elections Coord Sr",null,null,0,"IT Consulting",511010,511870,"Services"]
[null,"Elections Div Dir",null,null,0,"Lab Services",511010,511840,"Services"]
[null,"Elections Mgmt Coord",null,null,0,"Land Surveying",511010,511140,"Services"]
[null,"Electrician",null,null,0,"Laundry Services",511010,511880,"Services"]
[null,"Electrician Master",null,null,0,"LCRA Oversight Fee",511010,511856,"Services"]
[null,"Electronic Security Coordinator",null,null,0,"Legal Advisory Services ",511010,511250,"Services"]
[null,"Electronic Security Coordinator Sr",null,null,0,"Legally Required Advert/Public Notif. Service",511681,511681,"Services"]
[null,"Electronic Security Supervisor",null,null,0,"Legislative Services",511010,511260,"Services"]
[null,"Emergency Radio Communications Mgr",null,null,0,"Long distance ",511010,511720,"Services"]
[null,"Employee Relations Partner I",null,null,0,"Non Employee Educational Services",511010,511370,"Services"]
[null,"Employee Relations Partner II",null,null,0,"Non Hazardous Waste Hauling/Removal",511010,511820,"Services"]
[null,"Employee Relations Partner Sr",null,null,0,"North Campus Operating & Maintenance Exp",511630,511625,"Services"]
[null,"EMS Training Captain",null,null,0,"Notary Services",511010,511270,"Services"]
[null,"Enforcement Officer I",null,null,0,"Nursing Services",511010,511040,"Services"]
[null,"Enforcement Officer II",null,null,0,"Oil/Gas Service",511460,511470,"Services"]
[null,"Enforcement Officer Sr",null,null,0,"Omni Services",511010,511855,"Services"]
[null,"Engineer",null,null,0,"Other Consulting Services",511010,511890,"Services"]
[null,"Engineer Sr",null,null,0,"Other Equipment Repairs & Maintenance",511010,511620,"Services"]
[null,"Engineering Assoc",null,null,0,"Other Financial Services",511010,511230,"Services"]
[null,"Engineering Div Mgr",null,null,0,"Other Human Services - Conversion",511010,511442,"Services"]
[null,"Engineering Inspector Specialist",null,null,0,"Other Legal Services",511010,511280,"Services"]
[null,"Engineering Inspector Specialist Sr",null,null,0,"Other Medical Services",511010,511120,"Services"]
[null,"Engineering Specialist",null,null,0,"Other Professional Services - Conversion",511010,511972,"Services"]
[null,"Engineering Specialist Sr",null,null,0,"Other Purchased Services - Conversion",511010,511971,"Services"]
[null,"Engineering Tech",null,null,0,"Other Real Estate Services",511010,511170,"Services"]
[null,"Engineering Tech Sr",null,null,0,"Other Services",511010,511900,"Services"]
[null,"Environmental Program Mgr",null,null,0,"Other Social Services",511010,511440,"Services"]
[null,"Environmental Project Mgr",null,null,0,"Outside Agency Contracts - Conversion",511010,511441,"Services"]
[null,"Environmental Specialist",null,null,0,"Pharmacist Services",511010,511050,"Services"]
[null,"Environmental Specialist Sr",null,null,0,"Physician Services",511010,511060,"Services"]
[null,"Environmental Supervisor",null,null,0,"Pool Operation Services",511010,511885,"Services"]
[null,"Environmental Technician",null,null,0,"Postal/Freight out Services",511010,511730,"Services"]
[null,"Equipment Operator Foreman",null,null,0,"Printing Services",511010,511910,"Services"]
[null,"Equipment Operator I",null,null,0,"Property Appraisal Services",511010,511150,"Services"]
[null,"Equipment Operator II",null,null,0,"Property Management Services",511010,511160,"Services"]
[null,"Equipment Operator III",null,null,0,"Psychiatric Services",511010,511070,"Services"]
[null,"Equipment Tech",null,null,0,"Psychiatric/Psychological Evaluation Services-Conv",511010,511122,"Services"]
[null,"Evidence Tech",null,null,0,"Psychological Services",511010,511080,"Services"]
[null,"Evidence Tech Lead",null,null,0,"Public Health Programs",511010,511380,"Services"]
[null,"Executive Asst",null,null,0,"Radios/TV Communication Repairs & Maintenance",511010,511570,"Services"]
[null,"Executive Asst-Elected Official",null,null,0,"Reimbursable Construction Services",511010,511930,"Services"]
[null,"Executive Asst-Elected OfficialSn",null,null,0,"Rent Application Fee for MHPD",511010,511396,"Services"]
[null,"Exposition Center Coordinator",null,null,0,"Rent Assistance",511390,511390,"Services"]
[null,"Exposition Center Mgr",null,null,0,"Rent Assistance - Best Single Source",511395,511395,"Services"]
[null,"Facilities Mechanical Engineer",null,null,0,"Rent-Building & Land",511630,511630,"Services"]
[null,"Facilities Project Inspector",null,null,0,"Rent-EDP Equipment/Software",511550,511640,"Services"]
[null,"Facilities Project Mgr",null,null,0,"Rent-Office Equipment",511650,511650,"Services"]
[null,"Facilities Project Mgr Sr",null,null,0,"Rent-Other Machinery & Equipment",511010,511670,"Services"]
[null,"Financial Analyst",null,null,0,"Rent-Polling Places",511010,511660,"Services"]
[null,"Financial Analyst Lead",null,null,0,"Residential Services - Conversion",511010,511121,"Services"]
[null,"Financial Analyst Sr",null,null,0,"Road Machinery & Equipment Repairs & Maintenance",511010,511580,"Services"]
[null,"Financial Mgr",null,null,0,"Road Repairs & Maintenance",511010,511590,"Services"]
[null,"Financial Mgr Sr",null,null,0,"Security Services",511010,511940,"Services"]
[null,"Financial Mgr Succession",null,null,0,"Septic Tank Repairs & Maintenance",511010,511600,"Services"]
[null,"Financial Mgr Succession",null,null,0,"Substance Abuse Program-Conversion",511010,511124,"Services"]
[null,"Fire Education Outreach Coordinator",null,null,0,"Substance Abuse Screening",511010,511090,"Services"]
[null,"Fire Marshal",null,null,0,"Temp Personnel Services-Clerical/Managerial/Exec",511010,511950,"Services"]
[null,"Fire Marshal Asst",null,null,0,"Transportation Assistance",511010,511400,"Services"]
[null,"Fire Marshal Deputy Asst I",null,null,0,"Treatment Services",511010,511100,"Services"]
[null,"Fire Marshal Deputy Asst II",null,null,0,"Tree Mitigation Services",511010,511145,"Services"]
[null,"Fire Marshal Deputy Asst III",null,null,0,"Trunk Lines",511010,511740,"Services"]
[null,"Fire Plans Examiner",null,null,0,"Uniform Rental Service",511010,511960,"Services"]
[null,"Fleet Div Mgr",null,null,0,"Utilities - Conversion",511460,511459,"Services"]
[null,"Fleet Services Associate",null,null,0,"Utility Assistance ",511410,511410,"Services"]
[null,"Fleet Services Coord",null,null,0,"Utility Assistance -CEAP CoPay - Conversion",511010,511411,"Services"]
[null,"Flight Paramedic",null,null,0,"Utility Assistance -CEAP Energy Crisis - Conv",511010,511412,"Services"]
[null,"Flight Paramedic Sr",null,null,0,"Utility Assistance -Donations - Conversion",511010,511413,"Services"]
[null,"Flight Registered Nurse",null,null,0,"Utility Assistance -Indigents - Conversion",511010,511414,"Services"]
[null,"Flight Registered Nurse Sr",null,null,0,"Utility Assistance-Best Single Source",511417,511417,"Services"]
[null,"Floodplain Project Manager",null,null,0,"Utility Assistance-CEAP Elderly - Conversion",511010,511415,"Services"]
[null,"Food Services Mgr",null,null,0,"Utility Assistance-FEMA - Conversion",511010,511416,"Services"]
[null,"Food Services Supv",null,null,0,"Veterinary Services",511010,511110,"Services"]
[null,"Forensic Accountant",null,null,0,"Volunteer Service Mgmt",511010,511420,"Services"]
[null,"Forensic Accountant Sr",null,null,0,"Water Resource Dev Sv",511010,511980,"Services"]
[null,"Forensic Media Evidence Specialist",null,null,0,"Water/Sewer Service",511460,511480,"Services"]
[null,"GIS Analyst",null,null,0,"Water/Sewer Utilities YE Accr",511471,511471,"Services"]
[null,"GIS Coord",null,null,0,"Wetland Mitigation",511010,511146,"Services"]
[null,"GIS Manager",null,null,0,"Workforce Development",511010,511430,"Services"]
[null,"GIS Specialist",null,null,0,"Aircraft and Boating Supplies & Equipment",510010,510010,"Supplies & Equipment"]
[null,"Grants Administrator",null,null,0,"Books",510010,510020,"Supplies & Equipment"]
[null,"Grants Manager",null,null,0,"Building Maintenance Supplies & Equipment",510010,510030,"Supplies & Equipment"]
[null,"Graphic Artist",null,null,0,"Chemical Supplies & Equipment",510010,510040,"Supplies & Equipment"]
[null,"Graphic Fabrication Tech",null,null,0,"Clothing & Uniforms",510010,510050,"Supplies & Equipment"]
[null,"Groundskeeper",null,null,0,"Communication Supplies & Equipment",510010,510060,"Supplies & Equipment"]
[null,"Groundskeeper Lead",null,null,0,"Computer Equipment & Peripherals",510010,510070,"Supplies & Equipment"]
[null,"Groundskeeper Supv",null,null,0,"CSCD Grant Designated Equipment",510010,510035,"Supplies & Equipment"]
[null,"Guardian Ad Litem I",null,null,0,"Currency Exchange Diff",510010,510980,"Supplies & Equipment"]
[null,"Guardian Ad Litem II",null,null,0,"Custodial Supplies & Equipment",510010,510080,"Supplies & Equipment"]
[null,"Guardian Ad Litem Sr",null,null,0,"Drug & Pharmaceuticals Supplies",510010,510090,"Supplies & Equipment"]
[null,"Health & Wellness Program Administrator",null,null,0,"Early Payment Discount-Contra",510010,510999,"Supplies & Equipment"]
[null,"Health Services Supv",null,null,0,"Electrical Supplies & Equipment",510010,510100,"Supplies & Equipment"]
[null,"Helicopter Pilot",null,null,0,"Food & Groceries",510010,510110,"Supplies & Equipment"]
[null,"Helicopter Pilot Chief Flight",null,null,0,"Fuel",510120,510120,"Supplies & Equipment"]
[null,"Helicopter Pilot Sr",null,null,0,"Groundskeeping Supplies & Equipment",510010,510130,"Supplies & Equipment"]
[null,"HHS Chief Deputy",null,null,0,"Hardware Supplies & Equipment",510010,510140,"Supplies & Equipment"]
[null,"HHS Div Dir",null,null,0,"Indisutrial Supplies & Equipment",510010,510360,"Supplies & Equipment"]
[null,"HIPAA Compliance and Privacy Auditor",null,null,0,"Initial Entry of Stock Balances (conversion)",510010,510499,"Supplies & Equipment"]
[null,"HIPAA Compliance and Privacy Officer",null,null,0,"Institutional Equipment",510010,510150,"Supplies & Equipment"]
[null,"Histology Technician",null,null,0,"Kitchen Supplies & Equipment",510010,510160,"Supplies & Equipment"]
[null,"Home Energy Auditor",null,null,0,"Laboratory Supplies & Equipment",510010,510170,"Supplies & Equipment"]
[null,"Home Repair Supv",null,null,0,"Law Enforcement Supplies & Equipment",510010,510180,"Supplies & Equipment"]
[null,"Housekeeper",null,null,0,"Material Reclass YE",510010,510498,"Supplies & Equipment"]
[null,"HRIS Analyst",null,null,0,"Material Reimbursement",510010,510497,"Supplies & Equipment"]
[null,"HRIS Specialist",null,null,0,"Medical/Dental Supplies & Equipment",510010,510190,"Supplies & Equipment"]
[null,"Human Resources Analyst I",null,null,0,"Office Equipment",510010,510200,"Supplies & Equipment"]
[null,"Human Resources Analyst II",null,null,0,"Office Furniture",510010,510210,"Supplies & Equipment"]
[null,"Human Resources Analyst Sr",null,null,0,"Office Supplies",510010,510220,"Supplies & Equipment"]
[null,"Human Resources Asst I",null,null,0,"Office Supplies/Equipment - Conversion",510010,510230,"Supplies & Equipment"]
[null,"Human Resources Asst II",null,null,0,"Oils & Lubricants",510120,510125,"Supplies & Equipment"]
[null,"Human Resources Asst Sr",null,null,0,"Other Supplies & Equipment",510010,510240,"Supplies & Equipment"]
[null,"Human Resources Finance and Adm Mgr",null,null,0,"Paint Supplies & Equipment",510010,510250,"Supplies & Equipment"]
[null,"Human Resources Mgmt Dir",null,null,0,"Procurement Shipping",510010,510990,"Supplies & Equipment"]
[null,"Human Resources Mgr I",null,null,0,"Prompt Pay Interest Expense",510010,510900,"Supplies & Equipment"]
[null,"Human Resources Mgr II",null,null,0,"Recreational Supplies & Equipment",510010,510270,"Supplies & Equipment"]
[null,"Human Resources Specialist I",null,null,0,"Road and Highway Supplies & Equipment",510010,510280,"Supplies & Equipment"]
[null,"Human Resources Specialist II",null,null,0,"Road Material-Asphaltic",510010,510290,"Supplies & Equipment"]
[null,"Human Resources Specialist Sr",null,null,0,"Road Material-Non Asphaltic",510010,510300,"Supplies & Equipment"]
[null,"HVAC Refrigeration Mechanic",null,null,0,"Safety Supplies & Equipment",510010,510260,"Supplies & Equipment"]
[null,"Hydrogeologist",null,null,0,"Software",510010,510310,"Supplies & Equipment"]
[null,"Hydrogeologist Sr",null,null,0,"Textile and Linen Supplies",510010,510320,"Supplies & Equipment"]
[null,"Imaging Div Mgr",null,null,0,"Traffic Control/Signage Supplies & Equipment",510010,510330,"Supplies & Equipment"]
[null,"Imaging Lab Supervisor",null,null,0,"Vehicle Supplies & Equipment",510010,510340,"Supplies & Equipment"]
[null,"Imaging Production Tech",null,null,0,"Veterinary/Livestock Supplies & Equipment",510010,510350,"Supplies & Equipment"]
[null,"Imaging Production Tech Senior",null,null,0,"Weatherization Material PPV",510403,510403,"Supplies & Equipment"]
[null,"Information Security Analyst",null,null,0,"Weatherization Material Purchased",510010,510400,"Supplies & Equipment"]
[null,"Information Security Analyst Sr",null,null,0,"Weatherization Material Scrap/Diff",510010,510402,"Supplies & Equipment"]
[null,"Information Security Architect",null,null,0,"Weatherization Material Used",510010,510401,"Supplies & Equipment"]
[null,"Information Systems Auditor",null,null,0,"Inhouse Training/Online Courses",512010,512020,"Travel & Professional Development"]
[null,"Information Technology Director",null,null,0,"Professional Licenses",512010,512030,"Travel & Professional Development"]
[null,"Information Technology Div Dir",null,null,0,"Professional Membership",512010,512040,"Travel & Professional Development"]
[null,"Infrastructure Architect",null,null,0,"Registration Conferences/Seminars",512010,512050,"Travel & Professional Development"]
[null,"Inmate Mental Health & CES Dir",null,null,0,"Routine Mileage",512100,512100,"Travel & Professional Development"]
[null,"Intergovernmental Relations Officer",null,null,0,"Subscriptions & Publications",512010,512060,"Travel & Professional Development"]
[null,"Intergovernmental Relations Specialist",null,null,0,"Training Facility - Rental Expense",512010,512080,"Travel & Professional Development"]
[null,"Interior Designer",null,null,0,"Training Material/Books",512010,512070,"Travel & Professional Development"]
[null,"Internal Auditor",null,null,0,"Travel Encumbrances",512010,512010,"Travel & Professional Development"]
[null,"Interpreter",null,null,0,"Travel Imputed Income",512010,512115,"Travel & Professional Development"]
[null,"Interpreter Language/Court Sr",null,null,0,"Travel-Lodging  Meals & Other",512010,512090,"Travel & Professional Development"]
[null,"Interpreter Sr",null,null,0,"Travel-Mileage",512010,512110,"Travel & Professional Development"]
[null,"Inventory Specialist"]
[null,"Investigations & Morgue Operations Chief"]
[null,"Investigations Chief"]
[null,"Investigations Lieutenant"]
[null,"Investigations Supervisor"]
[null,"Investigator"]
[null,"Investigator Senior"]
[null,"Investment Manager"]
[null,"Irrigation Specialist"]
[null,"IT Disaster Recovery Analyst"]
[null,"IT Dpt Div Mgr"]
[null,"Judicial Aide"]
[null,"Judicial Aide Specialist"]
[null,"Judicial Executive Assistant"]
[null,"Justice of the Peace Court Administrator"]
[null,"Justice Planning Div Dir"]
[null,"Juvenile Case Mgr"]
[null,"Juvenile Case Work Mgr"]
[null,"Juvenile Detention Officer Asst"]
[null,"Juvenile Detention Officer I"]
[null,"Juvenile Detention Officer II"]
[null,"Juvenile Detention Officer III"]
[null,"Juvenile Detention Officer Lead"]
[null,"Juvenile Facilities Division Director"]
[null,"Juvenile Facilities Mgr"]
[null,"Juvenile Probation Deputy Chief"]
[null,"Juvenile Probation Dir"]
[null,"Juvenile Probation Div Dir"]
[null,"Juvenile Probation Div Mgr"]
[null,"Juvenile Probation Finance Director"]
[null,"Juvenile Probation Officer Asst"]
[null,"Juvenile Probation Officer I"]
[null,"Juvenile Probation Officer II"]
[null,"Juvenile Probation Officer III"]
[null,"Juvenile Probation Officer Lead"]
[null,"Juvenile Probation Security Center Coord"]
[null,"Juvenile Rsdnt Treatment Officer Asst"]
[null,"Juvenile Rsdnt Treatment Officer I"]
[null,"Juvenile Rsdnt Treatment Officer II"]
[null,"Juvenile Rsdnt Treatment Officer III"]
[null,"Juvenile Rsdnt Treatment Officer Lead"]
[null,"Juvenile Rsdnt Treatment Officer Sr"]
[null,"Juvenile Shift Supv"]
[null,"JvP Dir of Accreditation & Compliance"]
[null,"Law Clerk I"]
[null,"Law Clerk II"]
[null,"Law Enforcement Captain"]
[null,"Law Enforcement Detective"]
[null,"Law Enforcement Lieutenant"]
[null,"Law Enforcement Sergeant"]
[null,"Law Enforcement Sheriff Deputy"]
[null,"Law Enforcement Sheriff Deputy Sr"]
[null,"Law Enforcement Specialist"]
[null,"Law Librarian"]
[null,"Law Library Director"]
[null,"Law Library Tech Services Mgr"]
[null,"LE Sheriff Cadet"]
[null,"Learning & Development Coordinator Sr"]
[null,"Leave Coordinator"]
[null,"Legal Director"]
[null,"Legal Secretary"]
[null,"Legal Secretary Sr"]
[null,"Legal Secretary Sr Succession"]
[null,"Legal Services Program Mgr"]
[null,"Licensed Vocational Nurse"]
[null,"Life Safety Manager"]
[null,"Locksmith"]
[null,"Long Range Planning Mgr"]
[null,"Mailroom Services Asst"]
[null,"Mailroom Services Asst Sr"]
[null,"Marketable Skills Program Mgr"]
[null,"ME Chief Operations Officer"]
[null,"ME Investigator Chief"]
[null,"ME Investigator Deputy Chief"]
[null,"ME Investigator I"]
[null,"ME Investigator II"]
[null,"Mechanic Automotive"]
[null,"Mechanic Equipment"]
[null,"Mechanic Lead"]
[null,"Mechanic Supervisor"]
[null,"Media Operations Mgr"]
[null,"Media Producer"]
[null,"Medical Assistant"]
[null,"Medical Assistant Sr"]
[null,"Medical Services Dir"]
[null,"Medical Supv Chief"]
[null,"Mover"]
[null,"Multimedia Information Specialist"]
[null,"Natural Resources Env Qlty Div Dir"]
[null,"Natural Resources Program Mgr"]
[null,"Natural Resources Program Mgr Succession"]
[null,"Natural Resources Specialist"]
[null,"Natural Resources Specialist Senior"]
[null,"Natural Resources Supervisor"]
[null,"Natural Resources Tech"]
[null,"Network Architect"]
[null,"Network Engineer"]
[null,"Network Engineer Sr"]
[null,"Occupational Health Safety Engineer"]
[null,"Off-Duty Facilitator"]
[null,"Office Asst"]
[null,"Office Mgr"]
[null,"Office Mgr Sr"]
[null,"Office Mgr Sr Succession"]
[null,"Office Specialist"]
[null,"Office Specialist Sr"]
[null,"Office Supv"]
[null,"Operations Dir"]
[null,"Painter"]
[null,"Paralegal"]
[null,"Paralegal Sr"]
[null,"Paralegal Sr Succession"]
[null,"Park Forester"]
[null,"Park Land Management Supervisor"]
[null,"Park Land Management Technician"]
[null,"Park Land Manager"]
[null,"Park Land Resource Manager"]
[null,"Park Maintenance Foreman"]
[null,"Park Maintenance Worker"]
[null,"Park Maintenance Worker Sr"]
[null,"Park Operations Specialist"]
[null,"Park Ranger"]
[null,"Park Ranger Cadet"]
[null,"Park Ranger Chief"]
[null,"Park Ranger Corporal"]
[null,"Park Ranger Investigator"]
[null,"Park Ranger Lieutenant"]
[null,"Park Ranger Sr"]
[null,"Park Ranger Supv"]
[null,"Park Reservation Specialist"]
[null,"Park Supv I"]
[null,"Park Supv II"]
[null,"Parking Coordinator"]
[null,"Parks Div Asst Dir"]
[null,"Parks Div Dir"]
[null,"Parks Div Dir Succession"]
[null,"Parks Manager"]
[null,"Pharmacist"]
[null,"Pharmacy Tech"]
[null,"Physician Asst Nurse Practitioner"]
[null,"Physician I"]
[null,"Physician II"]
[null,"PID Managing Director"]
[null,"PkDivAsstDirPbcSftRsrcProtctn"]
[null,"Planner"]
[null,"Planner II"]
[null,"Planner Mgmt Research Asst"]
[null,"Planner Mgmt Research Specialist"]
[null,"Planner Mgmt Research Specialist Assoc"]
[null,"Planner Mgmt Research Specialist Sr"]
[null,"Planner Sr"]
[null,"Planning & Budget Analyst I"]
[null,"Planning & Budget Analyst II"]
[null,"Planning & Budget Analyst III"]
[null,"Planning & Budget Analyst Sr"]
[null,"Planning & Budget Ld Operational Analyst"]
[null,"Planning Mgr"]
[null,"Planning Project Mgr"]
[null,"Plumber"]
[null,"Plumber Master"]
[null,"PREA Coordinator"]
[null,"Pretrial Div Dir"]
[null,"Pretrial Mgr"]
[null,"Pretrial Officer I"]
[null,"Pretrial Officer II"]
[null,"Pretrial Officer III"]
[null,"Pretrial Officer Sr"]
[null,"Probate Auditor"]
[null,"Probate Auditor Sr"]
[null,"Probate Court Administrator"]
[null,"Program Coord"]
[null,"Program Dir"]
[null,"Program Generalist Sr"]
[null,"Program Manager"]
[null,"Program Manager Sr"]
[null,"Project Coordinator"]
[null,"Project Mgr"]
[null,"Project Mgr Div Mgr"]
[null,"Psychiatrist"]
[null,"Psychological Svcs Mgr"]
[null,"Psychologist"]
[null,"Psychology Intern"]
[null,"Public Defender Mental Health"]
[null,"Public Information & Social Media Spc"]
[null,"Public Information Officer Sr"]
[null,"Public Information Specialist"]
[null,"Public Works Dir"]
[null,"Pur Asset Coordinator"]
[null,"Pur Asset Specialist"]
[null,"Pur Assistant HUB Director"]
[null,"Pur Asst Purchasing Agent"]
[null,"Pur Business Analyst I"]
[null,"Pur Business Analyst II"]
[null,"Pur Community Liaison"]
[null,"Pur Contract Compliance Director"]
[null,"Pur Contract Compliance Monitor"]
[null,"Pur Contract Compliance Officer"]
[null,"Pur HUB Program Director"]
[null,"Pur HUB Specialist"]
[null,"Pur Operations & Procurement Director"]
[null,"Pur Operations Consultant"]
[null,"Pur Operations Program Coordinator"]
[null,"Pur Operations Project Coordinator I"]
[null,"Pur Operations Project Coordinator II"]
[null,"Pur Operations Project Manager I"]
[null,"Pur Operations Specialist I"]
[null,"Pur Operations Specialist II"]
[null,"Pur Procurement Specialist I"]
[null,"Pur Procurement Specialist II"]
[null,"Pur Procurement Specialist III"]
[null,"Pur Project Manager II"]
[null,"Pur Senior Procurement Specialist"]
[null,"Pur Support Specialist I"]
[null,"Pur Support Specialist II"]
[null,"Pur Support Specialist III"]
[null,"Racial and Social Justice Officer"]
[null,"Real Estate Div Mgr"]
[null,"Recording Specialist I"]
[null,"Recording Specialist II"]
[null,"Recording Specialist Sr"]
[null,"Records Analyst"]
[null,"Records Analyst Assoc"]
[null,"Records Analyst Asst"]
[null,"Records Analyst Supv"]
[null,"Records Management Officer"]
[null,"Recruiter I"]
[null,"Recruiter II"]
[null,"Registered Nurse Charge Nurse"]
[null,"Registered Nurse I"]
[null,"Registered Nurse II"]
[null,"Reprographics Production Tech"]
[null,"Reprographics Production Tech Lead"]
[null,"Reprographics Supervisor"]
[null,"Retirement Specialist"]
[null,"Right Of Way Agent"]
[null,"Right Of Way Agent Succession"]
[null,"Risk Management Supervisor"]
[null,"Risk Manager"]
[null,"Risk Safety Analyst I"]
[null,"Risk Safety Analyst II"]
[null,"Risk Safety Analyst Sr"]
[null,"Risk Safety Specialist I"]
[null,"Risk Safety Specialist II"]
[null,"Road Maintenance Mgr"]
[null,"Road Maintenance Supv"]
[null,"Road Maintenance Worker I"]
[null,"Road Maintenance Worker II"]
[null,"Road Maintenance Worker III"]
[null,"Road Maintenance Worker Lead"]
[null,"Road Maintenance Worker Sr (Signs)"]
[null,"Road Maintenance Worker Trainee"]
[null,"Safety Specialist I"]
[null,"Security Center Coordinator"]
[null,"Security Center Operator"]
[null,"Security Center Supervisor"]
[null,"Security Coord"]
[null,"Security Manager"]
[null,"Senior Capital Analyst"]
[null,"Senior Recruiter"]
[null,"Sheriff Deputy-Facilities"]
[null,"Sheriff Fleet Services Coord"]
[null,"Shipping Receiving Supply Asst"]
[null,"Small Equipment Tech"]
[null,"Social Services Aide"]
[null,"Social Services Asst"]
[null,"Social Services Dir"]
[null,"Social Services JV Supervision Ofr I"]
[null,"Social Services JV Supervision Ofr II"]
[null,"Social Services Mgr"]
[null,"Social Services Program Administrator"]
[null,"Social Services Program Coord"]
[null,"Social Services Program Specialist"]
[null,"Social Services Program Specialist Assoc"]
[null,"Social Worker"]
[null,"STAR Flight Outreach Coordinator"]
[null,"STAR Flight Safety Officer"]
[null,"StarFt Director of Aviation Operations"]
[null,"StarFt Director of Medical Operations"]
[null,"Strategic Advisor"]
[null,"Strategic Planning Mgr"]
[null,"Support Services Mgr"]
[null,"Support Services Supervisor"]
[null,"Supportive Case Manager"]
[null,"Survey Crew Spc"]
[null,"Survey Crew Tech"]
[null,"Survey Records Mgr"]
[null,"Systems Analyst"]
[null,"Systems Analyst Sr"]
[null,"Systems Architect"]
[null,"Systems Engineer"]
[null,"Systems Engineer Sr"]
[null,"Systems Operations Mgr"]
[null,"Talent Planning & Engagement Manager"]
[null,"Tax Assessor-Collector Deputy Chf"]
[null,"Tax Assessor-Collector Div Dir"]
[null,"Tax Office Manager"]
[null,"Tax Office Program Coordinator"]
[null,"Tax Specialist I"]
[null,"Tax Specialist II"]
[null,"Tax Specialist III"]
[null,"Tax Specialist IV"]
[null,"Tax Supv"]
[null,"TCSO Sr Recruiter"]
[null,"Technical Trainer"]
[null,"Technical Writer"]
[null,"Technology & Operations Chief Deputy"]
[null,"Telecomm 911 Asst Mgr"]
[null,"Telecomm 911 Mgr"]
[null,"Telecomm 911 Specialist"]
[null,"Telecomm 911 Specialist Sr"]
[null,"Telecomm 911 Specialist Supv"]
[null,"TNR Chief Deputy"]
[null,"Toxicologist"]
[null,"Toxicologist Chief"]
[null,"Toxicologist Deputy Chief"]
[null,"Toxicologist Laboratory Tech"]
[null,"Training Education Coord I"]
[null,"Training Education Coord II"]
[null,"Training Education Coord Sr"]
[null,"Training Supervisor"]
[null,"Trauma Informed Care Program Adm"]
[null,"Trauma Informed Care Specialist"]
[null,"Veterans Services Officer"]
[null,"Veterans Services Officer Assistant Sr"]
[null,"Veterans Services Specialist"]
[null,"Veterans Svcs Ofcr Asst"]
[null,"Victim Counselor"]
[null,"Victim Counselor Sr"]
[null,"Victim Witness Services Div Dir"]
[null,"Video Engineer"]
[null,"Virtual Training Coordinator"]
[null,"Visitor Center Outreach Coordinator"]
[null,"Volunteer Coord"]
[null,"Voter Reg Outreach Program Coord"]
[null,"Warehouse Coordinator"]
[null,"Warehouse Manager"]
[null,"Warehouse Operator"]
[null,"Web Manager"]
[null,"Webmaster"]
[null,"Webmaster Sr"]
[null,"Wildfire Mitigation Officer"]
[null,"Wildfire Mitigation Specialist"]
[null,"Work Order Coordinator"]
[null,"X-Ray Technician"]

{"sheet":"All Detail","index":4,"n_rows":70,"n_cols":19,"rows_kept":70,"cut":false,"hidden":true,"merged":[]}
["Dept/ Div","Request Name","ITS Description","Unit Cost","Qty.","New","Replacement","Total","Funds Center","ITS Div","CI","FA","Dpt","Reference","Category","OneT/Ong","Location","Room"]
[{"$f":"+'Centrally Budgeted Equipment'!$E$11","v":0},{"$f":"+'Centrally Budgeted Equipment'!$C$7","v":""},"Computer Network Port",0,{"$f":"SUM('Centrally Budgeted Equipment'!$E$20:$E$22)","v":0},{"$f":"ROUND(D2*E2,0)","v":0},null,{"$f":"+F2+G2","v":0},{"$f":"IF(L2=\"\",\"\",VLOOKUP(VALUE(N2),'Data 190s DptDiv'!$A$2:$E$91,5))","v":{"$error":"#N/A"}},30,510070,{"$f":"IF(A2=\"????\",\"\",INDEX('Data FA Lookup'!A:A,MATCH(VALUE(A2),'Data FA Lookup'!D:D,0)))","v":{"$error":"#N/A"}},{"$f":"IF(A2=\"????\",\"\",LEFT(A2,3))","v":"0"},{"$f":"M2&L2","v":{"$error":"#N/A"}},"ITS","One-Time",{"$f":"'Centrally Budgeted Equipment'!$C$14","v":0},{"$f":"'Centrally Budgeted Equipment'!$E$14","v":0}]
[{"$f":"+'Centrally Budgeted Equipment'!$E$11","v":0},{"$f":"+'Centrally Budgeted Equipment'!$C$7","v":""},"Printers NW Port",0,{"$f":"SUM('Centrally Budgeted Equipment'!$E$27:$E$27)","v":0},{"$f":"ROUND(D3*E3,0)","v":0},null,{"$f":"+F3+G3","v":0},{"$f":"IF(L3=\"\",\"\",VLOOKUP(VALUE(N3),'Data 190s DptDiv'!$A$2:$E$91,5))","v":{"$error":"#N/A"}},30,510070,{"$f":"IF(A3=\"????\",\"\",INDEX('Data FA Lookup'!A:A,MATCH(A3,'Data FA Lookup'!D:D,0)))","v":{"$error":"#N/A"}},{"$f":"IF(A3=\"????\",\"\",LEFT(A3,3))","v":"0"},{"$f":"M3&L3","v":{"$error":"#N/A"}},"ITS","One-Time",{"$f":"'Centrally Budgeted Equipment'!$C$14","v":0},{"$f":"'Centrally Budgeted Equipment'!$E$14","v":0}]
[{"$f":"+'Centrally Budgeted Equipment'!$E$11","v":0},{"$f":"+'Centrally Budgeted Equipment'!$C$7","v":""},{"$f":"+'Data ITS Cost'!B7","v":"Personal Computer"},1700,{"$f":"+'Centrally Budgeted Equipment'!E20","v":0},{"$f":"ROUND(D4*E4,0)","v":0},null,{"$f":"+F4+G4","v":0},{"$f":"IF(L4=\"\",\"\",VLOOKUP(VALUE(N4),'Data 190s DptDiv'!$A$2:$E$91,5))","v":{"$error":"#N/A"}},50,510070,{"$f":"IF(A4=\"????\",\"\",INDEX('Data FA Lookup'!A:A,MATCH(A4,'Data FA Lookup'!D:D,0)))","v":{"$error":"#N/A"}},"0",{"$error":"#N/A"},"ITS","One-Time",{"$f":"'Centrally Budgeted Equipment'!$C$14","v":0},{"$f":"'Centrally Budgeted Equipment'!$E$14","v":0}]
[{"$f":"+'Centrally Budgeted Equipment'!$E$11","v":0},{"$f":"+'Centrally Budgeted Equipment'!$C$7","v":""},{"$f":"+'Data ITS Cost'!C7","v":"Standard Mobile Notebook"},1800,{"$f":"+'Centrally Budgeted Equipment'!E21","v":0},0,null,0,{"$f":"IF(L5=\"\",\"\",VLOOKUP(VALUE(N5),'Data 190s DptDiv'!$A$2:$E$91,5))","v":{"$error":"#N/A"}},50,510070,{"$f":"IF(A5=\"????\",\"\",INDEX('Data FA Lookup'!A:A,MATCH(A5,'Data FA Lookup'!D:D,0)))","v":{"$error":"#N/A"}},"0",{"$error":"#N/A"},"ITS","One-Time",{"$f":"'Centrally Budgeted Equipment'!$C$14","v":0},{"$f":"'Centrally Budgeted Equipment'!$E$14","v":0}]
[{"$f":"+'Centrally Budgeted Equipment'!$E$11","v":0},{"$f":"+'Centrally Budgeted Equipment'!$C$7","v":""},{"$f":"+'Data ITS Cost'!D7","v":"Standard Workstation Notebook"},2600,{"$f":"+'Centrally Budgeted Equipment'!E22","v":0},0,null,0,{"$f":"IF(L6=\"\",\"\",VLOOKUP(VALUE(N6),'Data 190s DptDiv'!$A$2:$E$91,5))","v":{"$error":"#N/A"}},50,510070,{"$f":"IF(A6=\"????\",\"\",INDEX('Data FA Lookup'!A:A,MATCH(A6,'Data FA Lookup'!D:D,0)))","v":{"$error":"#N/A"}},"0",{"$error":"#N/A"},"ITS","One-Time",{"$f":"'Centrally Budgeted Equipment'!$C$14","v":0},{"$f":"'Centrally Budgeted Equipment'!$E$14","v":0}]
[{"$f":"+'Centrally Budgeted Equipment'!$E$11","v":0},{"$f":"+'Centrally Budgeted Equipment'!$C$7","v":""},{"$f":"+'Data ITS Cost'!E7","v":"Standard Mobile Tablet"},0,{"$f":"+'Centrally Budgeted Equipment'!E23","v":0},0,null,0,{"$f":"IF(L7=\"\",\"\",VLOOKUP(VALUE(N7),'Data 190s DptDiv'!$A$2:$E$91,5))","v":{"$error":"#N/A"}},50,510070,{"$f":"IF(A7=\"????\",\"\",INDEX('Data FA Lookup'!A:A,MATCH(A7,'Data FA Lookup'!D:D,0)))","v":{"$error":"#N/A"}},{"$f":"IF(A7=\"????\",\"\",LEFT(A7,3))","v":"0"},{"$f":"M7&L7","v":{"$error":"#N/A"}},"ITS","One-Time",{"$f":"'Centrally Budgeted Equipment'!$C$14","v":0},{"$f":"'Centrally Budgeted Equipment'!$E$14","v":0}]
[{"$f":"+'Centrally Budgeted Equipment'!$E$11","v":0},{"$f":"+'Centrally Budgeted Equipment'!$C$7","v":""},{"$f":"+'Data ITS Cost'!F7","v":"Mobile Data Computer (MDC)"},5000,{"$f":"+'Centrally Budgeted Equipment'!E24","v":0},0,null,0,{"$f":"IF(L8=\"\",\"\",VLOOKUP(VALUE(N8),'Data 190s DptDiv'!$A$2:$E$91,5))","v":{"$error":"#N/A"}},50,510070,{"$f":"IF(A8=\"????\",\"\",INDEX('Data FA Lookup'!A:A,MATCH(A8,'Data FA Lookup'!D:D,0)))","v":{"$error":"#N/A"}},"0",{"$error":"#N/A"},"ITS","One-Time",{"$f":"'Centrally Budgeted Equipment'!$C$14","v":0},{"$f":"'Centrally Budgeted Equipment'!$E$14","v":0}]
[{"$f":"+'Centrally Budgeted Equipment'!$E$11","v":0},{"$f":"+'Centrally Budgeted Equipment'!$C$7","v":""},{"$f":"+'Data ITS Cost'!H7","v":"Network Laser Basic"},2500,{"$f":"+'Centrally Budgeted Equipment'!E27","v":0},0,null,0,{"$f":"IF(L9=\"\",\"\",VLOOKUP(VALUE(N9),'Data 190s DptDiv'!$A$2:$E$91,5))","v":{"$error":"#N/A"}},50,510070,{"$f":"IF(A9=\"????\",\"\",INDEX('Data FA Lookup'!A:A,MATCH(A9,'Data FA Lookup'!D:D,0)))","v":{"$error":"#N/A"}},"0",{"$error":"#N/A"},"ITS","One-Time",{"$f":"'Centrally Budgeted Equipment'!$C$14","v":0},{"$f":"'Centrally Budgeted Equipment'!$E$14","v":0}]
[{"$f":"+'Centrally Budgeted Equipment'!$E$11","v":0},{"$f":"+'Centrally Budgeted Equipment'!$C$7","v":""},"Security/Network Related Licenses-Desktops",0,{"$f":"+'Centrally Budgeted Equipment'!E20","v":0},{"$f":"ROUND(D10*E10,0)","v":0},null,{"$f":"+F10+G10","v":0},{"$f":"IF(L10=\"\",\"\",VLOOKUP(VALUE(N10),'Data 190s DptDiv'!$A$2:$E$91,5))","v":{"$error":"#N/A"}},30,510310,{"$f":"IF(A10=\"????\",\"\",INDEX('Data FA Lookup'!A:A,MATCH(A10,'Data FA Lookup'!D:D,0)))","v":{"$error":"#N/A"}},"0",{"$error":"#N/A"},"ITS","One-Time",{"$f":"'Centrally Budgeted Equipment'!$C$14","v":0},{"$f":"'Centrally Budgeted Equipment'!$E$14","v":0}]
[{"$f":"+'Centrally Budgeted Equipment'!$E$11","v":0},{"$f":"+'Centrally Budgeted Equipment'!$C$7","v":""},"Security/Network Related Licenses-Notebooks",0,{"$f":"SUM('Centrally Budgeted Equipment'!$E$21:$E$24)","v":0},0,null,0,{"$f":"IF(L11=\"\",\"\",VLOOKUP(VALUE(N11),'Data 190s DptDiv'!$A$2:$E$91,5))","v":{"$error":"#N/A"}},30,510310,{"$f":"IF(A11=\"????\",\"\",INDEX('Data FA Lookup'!A:A,MATCH(A11,'Data FA Lookup'!D:D,0)))","v":{"$error":"#N/A"}},"0",{"$error":"#N/A"},"ITS","One-Time",{"$f":"'Centrally Budgeted Equipment'!$C$14","v":0},{"$f":"'Centrally Budgeted Equipment'!$E$14","v":0}]
[{"$f":"+'Centrally Budgeted Equipment'!$E$11","v":0},{"$f":"+'Centrally Budgeted Equipment'!$C$7","v":""},"ISM Software - VOIP",0,{"$f":"SUM('Centrally Budgeted Equipment'!$E$30:$E$31)","v":0},0,null,0,{"$f":"IF(L12=\"\",\"\",VLOOKUP(VALUE(N12),'Data 190s DptDiv'!$A$2:$E$91,5))","v":{"$error":"#N/A"}},30,510310,{"$f":"IF(A12=\"????\",\"\",INDEX('Data FA Lookup'!A:A,MATCH(A12,'Data FA Lookup'!D:D,0)))","v":{"$error":"#N/A"}},"0",{"$error":"#N/A"},"ITS","One-Time",{"$f":"'Centrally Budgeted Equipment'!$C$14","v":0},{"$f":"'Centrally Budgeted Equipment'!$E$14","v":0}]
[{"$f":"+'Centrally Budgeted Equipment'!$E$11","v":0},{"$f":"+'Centrally Budgeted Equipment'!$C$7","v":""},"Desktop Enterprise Software",0,{"$f":"SUM('Centrally Budgeted Equipment'!$E$20:$E$24)","v":0},0,null,0,{"$f":"IF(L13=\"\",\"\",VLOOKUP(VALUE(N13),'Data 190s DptDiv'!$A$2:$E$91,5))","v":{"$error":"#N/A"}},50,510310,{"$f":"IF(A13=\"????\",\"\",INDEX('Data FA Lookup'!A:A,MATCH(A13,'Data FA Lookup'!D:D,0)))","v":{"$error":"#N/A"}},"0",{"$error":"#N/A"},"ITS","One-Time",{"$f":"'Centrally Budgeted Equipment'!$C$14","v":0},{"$f":"'Centrally Budgeted Equipment'!$E$14","v":0}]
[{"$f":"+'Centrally Budgeted Equipment'!$E$11","v":0},{"$f":"+'Centrally Budgeted Equipment'!$C$7","v":""},"CAD Mobile Client Software",500,{"$f":"+'Centrally Budgeted Equipment'!$E$24","v":0},0,null,0,{"$f":"IF(L14=\"\",\"\",VLOOKUP(VALUE(N14),'Data 190s DptDiv'!$A$2:$E$91,5))","v":{"$error":"#N/A"}},50,510310,{"$f":"IF(A14=\"????\",\"\",INDEX('Data FA Lookup'!A:A,MATCH(A14,'Data FA Lookup'!D:D,0)))","v":{"$error":"#N/A"}},"0",{"$error":"#N/A"},"ITS","One-Time",{"$f":"'Centrally Budgeted Equipment'!$C$14","v":0},{"$f":"'Centrally Budgeted Equipment'!$E$14","v":0}]
[{"$f":"+'Centrally Budgeted Equipment'!$E$11","v":0},{"$f":"+'Centrally Budgeted Equipment'!$C$7","v":""},"UC (voip) 7965 Branded Phone",340,{"$f":"+'Centrally Budgeted Equipment'!E30","v":0},0,null,0,{"$f":"IF(L15=\"\",\"\",VLOOKUP(VALUE(N15),'Data 190s DptDiv'!$A$2:$E$91,5))","v":{"$error":"#N/A"}},30,510060,{"$f":"IF(A15=\"????\",\"\",INDEX('Data FA Lookup'!A:A,MATCH(A15,'Data FA Lookup'!D:D,0)))","v":{"$error":"#N/A"}},"0",{"$error":"#N/A"},"ITS","One-Time",{"$f":"'Centrally Budgeted Equipment'!$C$14","v":0},{"$f":"'Centrally Budgeted Equipment'!$E$14","v":0}]
[{"$f":"+'Centrally Budgeted Equipment'!$E$11","v":0},{"$f":"+'Centrally Budgeted Equipment'!$C$7","v":""},"UC (voip) 7945 Branded Phone",340,{"$f":"+'Centrally Budgeted Equipment'!E31","v":0},0,null,0,{"$f":"IF(L16=\"\",\"\",VLOOKUP(VALUE(N16),'Data 190s DptDiv'!$A$2:$E$91,5))","v":{"$error":"#N/A"}},30,510060,{"$f":"IF(A16=\"????\",\"\",INDEX('Data FA Lookup'!A:A,MATCH(A16,'Data FA Lookup'!D:D,0)))","v":{"$error":"#N/A"}},"0",{"$error":"#N/A"},"ITS","One-Time",{"$f":"'Centrally Budgeted Equipment'!$C$14","v":0},{"$f":"'Centrally Budgeted Equipment'!$E$14","v":0}]
[{"$f":"+'Centrally Budgeted Equipment'!$E$11","v":0},{"$f":"+'Centrally Budgeted Equipment'!$C$7","v":""},"Headset w/base (VOIP)",170,{"$f":"+'Centrally Budgeted Equipment'!E32","v":0},0,null,0,{"$f":"IF(L17=\"\",\"\",VLOOKUP(VALUE(N17),'Data 190s DptDiv'!$A$2:$E$91,5))","v":{"$error":"#N/A"}},30,510060,{"$f":"IF(A17=\"????\",\"\",INDEX('Data FA Lookup'!A:A,MATCH(A17,'Data FA Lookup'!D:D,0)))","v":{"$error":"#N/A"}},"0",{"$error":"#N/A"},"ITS","One-Time",{"$f":"'Centrally Budgeted Equipment'!$C$14","v":0},{"$f":"'Centrally Budgeted Equipment'!$E$14","v":0}]
[{"$f":"+'Centrally Budgeted Equipment'!$E$11","v":0},{"$f":"+'Centrally Budgeted Equipment'!$C$7","v":""},"Computer Network Port Maintenance",0,{"$f":"SUM('Centrally Budgeted Equipment'!$E$20:$E$24)","v":0},{"$f":"ROUND(D18*E18,0)","v":0},null,{"$f":"+F18+G18","v":0},{"$f":"IF(L18=\"\",\"\",VLOOKUP(VALUE(N18),'Data 190s DptDiv'!$A$2:$E$91,5))","v":{"$error":"#N/A"}},30,511550,{"$f":"IF(A18=\"????\",\"\",INDEX('Data FA Lookup'!A:A,MATCH(A18,'Data FA Lookup'!D:D,0)))","v":{"$error":"#N/A"}},"0",{"$error":"#N/A"},"ITS","One-Time",{"$f":"'Centrally Budgeted Equipment'!$C$14","v":0},{"$f":"'Centrally Budgeted Equipment'!$E$14","v":0}]
[{"$f":"+'Centrally Budgeted Equipment'!$E$11","v":0},{"$f":"+'Centrally Budgeted Equipment'!$C$7","v":""},"Printer Network Port Maintenance",0,{"$f":"SUM('Centrally Budgeted Equipment'!$E$27:$E$27)","v":0},0,null,0,{"$f":"IF(L19=\"\",\"\",VLOOKUP(VALUE(N19),'Data 190s DptDiv'!$A$2:$E$91,5))","v":{"$error":"#N/A"}},30,511550,{"$f":"IF(A19=\"????\",\"\",INDEX('Data FA Lookup'!A:A,MATCH(A19,'Data FA Lookup'!D:D,0)))","v":{"$error":"#N/A"}},"0",{"$error":"#N/A"},"ITS","One-Time",{"$f":"'Centrally Budgeted Equipment'!$C$14","v":0},{"$f":"'Centrally Budgeted Equipment'!$E$14","v":0}]
[{"$f":"+'Centrally Budgeted Equipment'!$E$11","v":0},{"$f":"+'Centrally Budgeted Equipment'!$C$7","v":""},"CAD Mobile Client Maintenance",0,{"$f":"+'Centrally Budgeted Equipment'!$E$24","v":0},0,null,0,{"$f":"IF(L20=\"\",\"\",VLOOKUP(VALUE(N20),'Data 190s DptDiv'!$A$2:$E$91,5))","v":{"$error":"#N/A"}},30,511550,{"$f":"IF(A20=\"????\",\"\",INDEX('Data FA Lookup'!A:A,MATCH(A20,'Data FA Lookup'!D:D,0)))","v":{"$error":"#N/A"}},"0",{"$error":"#N/A"},"ITS","One-Time",{"$f":"'Centrally Budgeted Equipment'!$C$14","v":0},{"$f":"'Centrally Budgeted Equipment'!$E$14","v":0}]
[{"$f":"+'Centrally Budgeted Equipment'!$E$11","v":0},{"$f":"+'Centrally Budgeted Equipment'!$C$7","v":""},"Persystent Software Maintenance",0,{"$f":"+'Centrally Budgeted Equipment'!$E$24","v":0},0,null,0,{"$f":"IF(L21=\"\",\"\",VLOOKUP(VALUE(N21),'Data 190s DptDiv'!$A$2:$E$91,5))","v":{"$error":"#N/A"}},30,511550,{"$f":"IF(A21=\"????\",\"\",INDEX('Data FA Lookup'!A:A,MATCH(A21,'Data FA Lookup'!D:D,0)))","v":{"$error":"#N/A"}},"0",{"$error":"#N/A"},"ITS","One-Time",{"$f":"'Centrally Budgeted Equipment'!$C$14","v":0},{"$f":"'Centrally Budgeted Equipment'!$E$14","v":0}]
[{"$f":"+'Centrally Budgeted Equipment'!$E$11","v":0},{"$f":"+'Centrally Budgeted Equipment'!$C$7","v":""},"Security/NW Related Software Maint-Desktop",0,{"$f":"+'Centrally Budgeted Equipment'!E20","v":0},0,null,0,{"$f":"IF(L22=\"\",\"\",VLOOKUP(VALUE(N22),'Data 190s DptDiv'!$A$2:$E$91,5))","v":{"$error":"#N/A"}},30,511550,{"$f":"IF(A22=\"????\",\"\",INDEX('Data FA Lookup'!A:A,MATCH(A22,'Data FA Lookup'!D:D,0)))","v":{"$error":"#N/A"}},"0",{"$error":"#N/A"},"ITS","One-Time",{"$f":"'Centrally Budgeted Equipment'!$C$14","v":0},{"$f":"'Centrally Budgeted Equipment'!$E$14","v":0}]
[{"$f":"+'Centrally Budgeted Equipment'!$E$11","v":0},{"$f":"+'Centrally Budgeted Equipment'!$C$7","v":""},"Security/NW Related Software Maint-Notebookl",0,{"$f":"SUM('Centrally Budgeted Equipment'!$E$21:$E$24)","v":0},0,null,0,{"$f":"IF(L23=\"\",\"\",VLOOKUP(VALUE(N23),'Data 190s DptDiv'!$A$2:$E$91,5))","v":{"$error":"#N/A"}},30,511550,{"$f":"IF(A23=\"????\",\"\",INDEX('Data FA Lookup'!A:A,MATCH(A23,'Data FA Lookup'!D:D,0)))","v":{"$error":"#N/A"}},"0",{"$error":"#N/A"},"ITS","One-Time",{"$f":"'Centrally Budgeted Equipment'!$C$14","v":0},{"$f":"'Centrally Budgeted Equipment'!$E$14","v":0}]
[{"$f":"+'Centrally Budgeted Equipment'!$E$11","v":0},{"$f":"+'Centrally Budgeted Equipment'!$C$7","v":""},"Standard Communication Voice & Data",0,{"$f":"SUM('Centrally Budgeted Equipment'!$E$20:$E$24)","v":0},{"$f":"ROUND(D24*E24,0)","v":0},null,{"$f":"+F24+G24","v":0},{"$f":"IF(L24=\"\",\"\",VLOOKUP(VALUE(N24),'Data 190s DptDiv'!$A$2:$E$91,5))","v":{"$error":"#N/A"}},30,511810,{"$f":"IF(A24=\"????\",\"\",INDEX('Data FA Lookup'!A:A,MATCH(A24,'Data FA Lookup'!D:D,0)))","v":{"$error":"#N/A"}},{"$f":"IF(A24=\"????\",\"\",LEFT(A24,3))","v":"0"},{"$f":"M24&L24","v":{"$error":"#N/A"}},"ITS","One-Time",{"$f":"'Centrally Budgeted Equipment'!$C$14","v":0},{"$f":"'Centrally Budgeted Equipment'!$E$14","v":0}]
[{"$f":"+'Centrally Budgeted Equipment'!$E$11","v":0},{"$f":"+'Centrally Budgeted Equipment'!$C$7","v":""},"Printers Std Comm Voice & Data Cable",0,{"$f":"SUM('Centrally Budgeted Equipment'!$E$27:$E$27)","v":0},{"$f":"ROUND(D25*E25,0)","v":0},null,{"$f":"+F25+G25","v":0},{"$f":"IF(L25=\"\",\"\",VLOOKUP(VALUE(N25),'Data 190s DptDiv'!$A$2:$E$91,5))","v":{"$error":"#N/A"}},30,511810,{"$f":"IF(A25=\"????\",\"\",INDEX('Data FA Lookup'!A:A,MATCH(A25,'Data FA Lookup'!D:D,0)))","v":{"$error":"#N/A"}},"0",{"$error":"#N/A"},"ITS","One-Time",{"$f":"'Centrally Budgeted Equipment'!$C$14","v":0},{"$f":"'Centrally Budgeted Equipment'!$E$14","v":0}]
[{"$f":"+'Centrally Budgeted Equipment'!$E$11","v":0},{"$f":"+'Centrally Budgeted Equipment'!$C$7","v":""},"Standard Communication Voice & Data (VOIP)",0,{"$f":"SUM('Centrally Budgeted Equipment'!$E$30:$E$31)","v":0},{"$f":"ROUND(D26*E26,0)","v":0},null,{"$f":"+F26+G26","v":0},{"$f":"IF(L26=\"\",\"\",VLOOKUP(VALUE(N26),'Data 190s DptDiv'!$A$2:$E$91,5))","v":{"$error":"#N/A"}},30,511810,{"$f":"IF(A26=\"????\",\"\",INDEX('Data FA Lookup'!A:A,MATCH(A26,'Data FA Lookup'!D:D,0)))","v":{"$error":"#N/A"}},"0",{"$error":"#N/A"},"ITS","One-Time",{"$f":"'Centrally Budgeted Equipment'!$C$14","v":0},{"$f":"'Centrally Budgeted Equipment'!$E$14","v":0}]
[{"$f":"+'Centrally Budgeted Equipment'!$E$11","v":0},{"$f":"+'Centrally Budgeted Equipment'!$C$7","v":""},"Annual Wireless Service and Card ",500,0,{"$f":"ROUND(D27*E27,0)","v":0},null,{"$f":"+F27+G27","v":0},{"$f":"IF(L27=\"\",\"\",VLOOKUP(VALUE(N27),'Data 190s DptDiv'!$A$2:$E$91,5))","v":{"$error":"#N/A"}},50,511700,{"$f":"IF(A27=\"????\",\"\",INDEX('Data FA Lookup'!A:A,MATCH(A27,'Data FA Lookup'!D:D,0)))","v":{"$error":"#N/A"}},{"$f":"IF(A27=\"????\",\"\",LEFT(A27,3))","v":"0"},{"$f":"M27&L27","v":{"$error":"#N/A"}},"ITS","One-Time",{"$f":"'Centrally Budgeted Equipment'!$C$14","v":0},{"$f":"'Centrally Budgeted Equipment'!$E$14","v":0},"No longer budgeted centrally"]
["    Grand Total ITS",null,null,null,null,{"$f":"SUM(F2:F27)","v":0},{"$f":"SUM(G2:G27)","v":0},{"$f":"SUM(H2:H27)","v":0}]
[]
[null,null,null,null,null,null,null,null,null,null,null,null,"",""]
["TNR",null,null,null,null,null,null,null,null,null,null,null,null,""]
[{"$f":"+'Centrally Budgeted Equipment'!$E$11","v":0},{"$f":"+'Centrally Budgeted Equipment'!$C$7","v":""},"Vehicle Mounting HW",{"$f":"'Data ITS Cost'!F60","v":300},{"$f":"+'Centrally Budgeted Equipment'!$E$24","v":0},{"$f":"ROUND(D32*E32,0)","v":0},null,{"$f":"+F32+G32","v":0},1498060001,50,510070,{"$f":"IF(A32=\"????\",\"\",INDEX('Data FA Lookup'!A:A,MATCH(A32,'Data FA Lookup'!D:D,0)))","v":{"$error":"#N/A"}},"0",{"$error":"#N/A"},"TNR","One-Time","Capital"]
[{"$f":"+'Centrally Budgeted Equipment'!$E$11","v":0},{"$f":"+'Centrally Budgeted Equipment'!$C$7","v":""},"Vehicle Mounting Install",{"$f":"'Data ITS Cost'!F61","v":500},{"$f":"+'Centrally Budgeted Equipment'!$E$24","v":0},0,null,0,1498060001,50,511810,{"$f":"IF(A33=\"????\",\"\",INDEX('Data FA Lookup'!A:A,MATCH(A33,'Data FA Lookup'!D:D,0)))","v":{"$error":"#N/A"}},{"$f":"IF(A33=\"????\",\"\",LEFT(A33,3))","v":"0"},{"$f":"M33&L33","v":{"$error":"#N/A"}},"TNR","One-Time","Capital"]
[{"$f":"+'Centrally Budgeted Equipment'!$E$11","v":0},{"$f":"+'Centrally Budgeted Equipment'!$C$7","v":""},"Law Enforcement Vehicle ",88349,{"$f":"'Centrally Budgeted Equipment'!E41","v":0},0,null,0,{"$f":"_xlfn.XLOOKUP((A34),'Data TNR CAR FC''s for Detail'!A:A,'Data TNR CAR FC''s for Detail'!B:B,_xlfn.XLOOKUP(VALUE(LEFT(A34,3)),'Data TNR CAR FC''s for Detail'!A:A,'Data TNR CAR FC''s for Detail'!B:B))","v":{"$error":"#N/A"}},50,520020,{"$f":"IF(A34=\"????\",\"\",INDEX('Data FA Lookup'!A:A,MATCH(A34,'Data FA Lookup'!D:D,0)))","v":{"$error":"#N/A"}},"0",{"$error":"#N/A"},"TNR","One-Time","Capital"]
[{"$f":"+'Centrally Budgeted Equipment'!$E$11","v":0},null,"Law Enforcement Pick-up F-150 Responder",88565,{"$f":"'Centrally Budgeted Equipment'!E42","v":0},{"$f":"ROUND(D35*E35,0)","v":0},null,{"$f":"+F35+G35","v":0},{"$f":"_xlfn.XLOOKUP((A35),'Data TNR CAR FC''s for Detail'!A:A,'Data TNR CAR FC''s for Detail'!B:B,_xlfn.XLOOKUP(VALUE(LEFT(A35,3)),'Data TNR CAR FC''s for Detail'!A:A,'Data TNR CAR FC''s for Detail'!B:B))","v":{"$error":"#N/A"}},50,520020,{"$f":"IF(A35=\"????\",\"\",INDEX('Data FA Lookup'!A:A,MATCH(A35,'Data FA Lookup'!D:D,0)))","v":{"$error":"#N/A"}},{"$f":"IF(A35=\"????\",\"\",LEFT(A35,3))","v":"0"},{"$f":"M35&L35","v":{"$error":"#N/A"}},"TNR","One-Time","Capital"]
[{"$f":"+'Centrally Budgeted Equipment'!$E$11","v":0},{"$f":"+'Centrally Budgeted Equipment'!$C$7","v":""},"Sedan or SUV (People Carrier, non-LE)",60610,{"$f":"'Centrally Budgeted Equipment'!E43","v":0},0,null,0,{"$f":"_xlfn.XLOOKUP((A36),'Data TNR CAR FC''s for Detail'!A:A,'Data TNR CAR FC''s for Detail'!B:B,_xlfn.XLOOKUP(VALUE(LEFT(A36,3)),'Data TNR CAR FC''s for Detail'!A:A,'Data TNR CAR FC''s for Detail'!B:B))","v":{"$error":"#N/A"}},50,520020,{"$f":"IF(A36=\"????\",\"\",INDEX('Data FA Lookup'!A:A,MATCH(A36,'Data FA Lookup'!D:D,0)))","v":{"$error":"#N/A"}},"0",{"$error":"#N/A"},"TNR","One-Time","Capital"]
[{"$f":"+'Centrally Budgeted Equipment'!$E$11","v":0},{"$f":"+'Centrally Budgeted Equipment'!$C$7","v":""},"SUV (Parks, On-Site, Off-Road Use)",71500,{"$f":"'Centrally Budgeted Equipment'!E44","v":0},0,null,0,{"$f":"_xlfn.XLOOKUP((A37),'Data TNR CAR FC''s for Detail'!A:A,'Data TNR CAR FC''s for Detail'!B:B,_xlfn.XLOOKUP(VALUE(LEFT(A37,3)),'Data TNR CAR FC''s for Detail'!A:A,'Data TNR CAR FC''s for Detail'!B:B))","v":{"$error":"#N/A"}},50,520020,{"$f":"IF(A37=\"????\",\"\",INDEX('Data FA Lookup'!A:A,MATCH(A37,'Data FA Lookup'!D:D,0)))","v":{"$error":"#N/A"}},"0",{"$error":"#N/A"},"TNR","One-Time","Capital"]
[{"$f":"+'Centrally Budgeted Equipment'!$E$11","v":0},{"$f":"+'Centrally Budgeted Equipment'!$C$7","v":""},"Pickup Truck F-150 Hybrid",67223,{"$f":"'Centrally Budgeted Equipment'!E45","v":0},0,null,0,{"$f":"_xlfn.XLOOKUP((A38),'Data TNR CAR FC''s for Detail'!A:A,'Data TNR CAR FC''s for Detail'!B:B,_xlfn.XLOOKUP(VALUE(LEFT(A38,3)),'Data TNR CAR FC''s for Detail'!A:A,'Data TNR CAR FC''s for Detail'!B:B))","v":{"$error":"#N/A"}},50,520020,{"$f":"IF(A38=\"????\",\"\",INDEX('Data FA Lookup'!A:A,MATCH(A38,'Data FA Lookup'!D:D,0)))","v":{"$error":"#N/A"}},"0",{"$error":"#N/A"},"TNR","One-Time","Capital"]
[{"$f":"+'Centrally Budgeted Equipment'!$E$11","v":0},null,"Ford Lightning EV Pick-up",67220,{"$f":"'Centrally Budgeted Equipment'!E46","v":0},{"$f":"ROUND(D39*E39,0)","v":0},null,{"$f":"+F39+G39","v":0},{"$f":"_xlfn.XLOOKUP((A39),'Data TNR CAR FC''s for Detail'!A:A,'Data TNR CAR FC''s for Detail'!B:B,_xlfn.XLOOKUP(VALUE(LEFT(A39,3)),'Data TNR CAR FC''s for Detail'!A:A,'Data TNR CAR FC''s for Detail'!B:B))","v":{"$error":"#N/A"}},50,520020,{"$f":"IF(A39=\"????\",\"\",INDEX('Data FA Lookup'!A:A,MATCH(A39,'Data FA Lookup'!D:D,0)))","v":{"$error":"#N/A"}},{"$f":"IF(A39=\"????\",\"\",LEFT(A39,3))","v":"0"},{"$f":"M39&L39","v":{"$error":"#N/A"}},"TNR","One-Time","Capital"]
[{"$f":"+'Centrally Budgeted Equipment'!$E$11","v":0},null,"Pickup with Service Bed/Body",90385,{"$f":"'Centrally Budgeted Equipment'!E47","v":0},{"$f":"ROUND(D40*E40,0)","v":0},null,{"$f":"+F40+G40","v":0},{"$f":"_xlfn.XLOOKUP((A40),'Data TNR CAR FC''s for Detail'!A:A,'Data TNR CAR FC''s for Detail'!B:B,_xlfn.XLOOKUP(VALUE(LEFT(A40,3)),'Data TNR CAR FC''s for Detail'!A:A,'Data TNR CAR FC''s for Detail'!B:B))","v":{"$error":"#N/A"}},50,520020,{"$f":"IF(A40=\"????\",\"\",INDEX('Data FA Lookup'!A:A,MATCH(A40,'Data FA Lookup'!D:D,0)))","v":{"$error":"#N/A"}},{"$f":"IF(A40=\"????\",\"\",LEFT(A40,3))","v":"0"},{"$f":"M40&L40","v":{"$error":"#N/A"}},"TNR","One-Time","Capital"]
[]
["CAR"]
[{"$f":"+'Centrally Budgeted Equipment'!$E$11","v":0},null,{"$f":"'Centrally Budgeted Equipment'!C51","v":0},1,{"$f":"'Centrally Budgeted Equipment'!E51","v":0},{"$f":"ROUND(D43*E43,0)","v":0},null,{"$f":"+F43+G43","v":0},{"$f":"'Centrally Budgeted Equipment'!A51","v":0},50,{"$f":"'Centrally Budgeted Equipment'!B51","v":0},{"$f":"IF(A43=\"????\",\"\",INDEX('Data FA Lookup'!A:A,MATCH(A43,'Data FA Lookup'!D:D,0)))","v":{"$error":"#N/A"}},{"$f":"IF(A43=\"????\",\"\",LEFT(A43,3))","v":"0"},{"$f":"M43&L43","v":{"$error":"#N/A"}},"TNR",{"$f":"'Centrally Budgeted Equipment'!F51","v":0},"Capital"]
[]
["Equipment",null,null,null,null,{"$f":"SUM(F32:F44)","v":0},null,{"$f":"SUM(H32:H44)","v":0}]
[]
[{"$f":"+'Centrally Budgeted Equipment'!$E$11","v":0},{"$f":"+'Centrally Budgeted Equipment'!$C$7","v":""},"Radio Installation",380,{"$f":"E58+E59","v":0},{"$f":"ROUND(D47*E47,0)","v":0},null,{"$f":"+F47+G47","v":0},1490350001,50,510340,{"$f":"IF(A47=\"????\",\"\",INDEX('Data FA Lookup'!A:A,MATCH(A47,'Data FA Lookup'!D:D,0)))","v":{"$error":"#N/A"}},{"$f":"IF(A47=\"????\",\"\",LEFT(A47,3))","v":"0"},{"$f":"M47&L47","v":{"$error":"#N/A"}},"TNR","One-Time","Operating"]
[]
[{"$f":"+'Centrally Budgeted Equipment'!$E$11","v":0},{"$f":"+'Centrally Budgeted Equipment'!$C$7","v":""},"Heavy Use (Law Enforcement, Daily Driver) Fuel",3214,{"$f":"E34+E35","v":0},{"$f":"ROUND(D49*E49,0)","v":0},null,{"$f":"+F49+G49","v":0},1490350001,50,510120,{"$f":"IF(A49=\"????\",\"\",INDEX('Data FA Lookup'!A:A,MATCH(A49,'Data FA Lookup'!D:D,0)))","v":{"$error":"#N/A"}},{"$f":"IF(A49=\"????\",\"\",LEFT(A49,3))","v":"0"},{"$f":"M49&L49","v":{"$error":"#N/A"}},"TNR","Ongoing","Operating"]
[{"$f":"+'Centrally Budgeted Equipment'!$E$11","v":0},{"$f":"+'Centrally Budgeted Equipment'!$C$7","v":""},"Heavy Use (Law Enforcement, Daily Driver) Maintenance",1478,{"$f":"E49","v":0},0,null,0,1490350001,50,511520,{"$f":"IF(A50=\"????\",\"\",INDEX('Data FA Lookup'!A:A,MATCH(A50,'Data FA Lookup'!D:D,0)))","v":{"$error":"#N/A"}},"0",{"$error":"#N/A"},"TNR","Ongoing","Operating"]
[{"$f":"+'Centrally Budgeted Equipment'!$E$11","v":0},{"$f":"+'Centrally Budgeted Equipment'!$C$7","v":""},"Moderate Use (People Mover, Site-Visit Use) Fuel",1986,{"$f":"E36+E37","v":0},0,null,0,1490350001,50,510120,{"$f":"IF(A51=\"????\",\"\",INDEX('Data FA Lookup'!A:A,MATCH(A51,'Data FA Lookup'!D:D,0)))","v":{"$error":"#N/A"}},"0",{"$error":"#N/A"},"TNR","Ongoing","Operating"]
[{"$f":"+'Centrally Budgeted Equipment'!$E$11","v":0},{"$f":"+'Centrally Budgeted Equipment'!$C$7","v":""},"Moderate Use (People Mover, Site-Visit Use) Maintenance",914,{"$f":"E51","v":0},0,null,0,1490350001,50,511520,{"$f":"IF(A52=\"????\",\"\",INDEX('Data FA Lookup'!A:A,MATCH(A52,'Data FA Lookup'!D:D,0)))","v":{"$error":"#N/A"}},"0",{"$error":"#N/A"},"TNR","Ongoing","Operating"]
[{"$f":"+'Centrally Budgeted Equipment'!$E$11","v":0},{"$f":"+'Centrally Budgeted Equipment'!$C$7","v":""},"Heavy Duty Use Pick-Up Truck Fuel",2603,{"$f":"E38*0.5+E39*0.5+E40","v":0},0,null,0,1490350001,50,510120,{"$f":"IF(A53=\"????\",\"\",INDEX('Data FA Lookup'!A:A,MATCH(A53,'Data FA Lookup'!D:D,0)))","v":{"$error":"#N/A"}},"0",{"$error":"#N/A"},"TNR","Ongoing","Operating"]
[{"$f":"+'Centrally Budgeted Equipment'!$E$11","v":0},{"$f":"+'Centrally Budgeted Equipment'!$C$7","v":""},"Heavy Duty Use Pick-Up Truck Maintenance",1197,{"$f":"E38+E39*0.8+E40","v":0},0,null,0,1490350001,50,511520,{"$f":"IF(A54=\"????\",\"\",INDEX('Data FA Lookup'!A:A,MATCH(A54,'Data FA Lookup'!D:D,0)))","v":{"$error":"#N/A"}},"0",{"$error":"#N/A"},"TNR","Ongoing","Operating"]
["Operating",null,null,null,null,{"$f":"SUM(F47:F54)","v":0},null,{"$f":"SUM(H47:H54)","v":0}]
["    Grand Total TNR",null,null,null,null,{"$f":"SUM(F45,F55)","v":0},null,{"$f":"SUM(H45,H55)","v":0}]
[]
[{"$f":"+'Centrally Budgeted Equipment'!$E$11","v":0},{"$f":"+'Centrally Budgeted Equipment'!$C$7","v":""},"Vehicle Radio APX4500 (Admin, Public Works, non-LE)",5823,{"$f":"'Centrally Budgeted Equipment'!E55","v":0},{"$f":"ROUND(D58*E58,0)","v":0},null,{"$f":"+F58+G58","v":0},1478000001,50,520070,{"$f":"IF(A58=\"????\",\"\",INDEX('Data FA Lookup'!A:A,MATCH(A58,'Data FA Lookup'!D:D,0)))","v":{"$error":"#N/A"}},{"$f":"IF(A58=\"????\",\"\",LEFT(A58,3))","v":"0"},{"$f":"M58&L58","v":{"$error":"#N/A"}},"ES","One-Time","Capital"]
[{"$f":"+'Centrally Budgeted Equipment'!$E$11","v":0},{"$f":"+'Centrally Budgeted Equipment'!$C$7","v":""},"Vehicle Radio APX8500 (Law Enforcement)",10353,{"$f":"'Centrally Budgeted Equipment'!E56","v":0},{"$f":"ROUND(D59*E59,0)","v":0},null,{"$f":"+F59+G59","v":0},1478000001,50,520070,{"$f":"IF(A59=\"????\",\"\",INDEX('Data FA Lookup'!A:A,MATCH(A59,'Data FA Lookup'!D:D,0)))","v":{"$error":"#N/A"}},{"$f":"IF(A59=\"????\",\"\",LEFT(A59,3))","v":"0"},{"$f":"M59&L59","v":{"$error":"#N/A"}},"ES","One-Time","Capital"]
[{"$f":"+'Centrally Budgeted Equipment'!$E$11","v":0},{"$f":"+'Centrally Budgeted Equipment'!$C$7","v":""},"Handheld Radio APX4000 ",5816,{"$f":"'Centrally Budgeted Equipment'!E57","v":0},{"$f":"ROUND(D60*E60,0)","v":0},null,{"$f":"+F60+G60","v":0},1478000001,50,520070,{"$f":"IF(A60=\"????\",\"\",INDEX('Data FA Lookup'!A:A,MATCH(A60,'Data FA Lookup'!D:D,0)))","v":{"$error":"#N/A"}},{"$f":"IF(A60=\"????\",\"\",LEFT(A60,3))","v":"0"},{"$f":"M60&L60","v":{"$error":"#N/A"}},"ES","One-Time","Capital"]
[{"$f":"+'Centrally Budgeted Equipment'!$E$11","v":0},{"$f":"+'Centrally Budgeted Equipment'!$C$7","v":""},"Handheld Radio APX6000XE",8625,{"$f":"'Centrally Budgeted Equipment'!E58","v":0},{"$f":"ROUND(D61*E61,0)","v":0},null,{"$f":"+F61+G61","v":0},1478000001,50,520070,{"$f":"IF(A61=\"????\",\"\",INDEX('Data FA Lookup'!A:A,MATCH(A61,'Data FA Lookup'!D:D,0)))","v":{"$error":"#N/A"}},{"$f":"IF(A61=\"????\",\"\",LEFT(A61,3))","v":"0"},{"$f":"M61&L61","v":{"$error":"#N/A"}},"ES","One-Time","Capital"]
[{"$f":"+'Centrally Budgeted Equipment'!$E$11","v":0},{"$f":"+'Centrally Budgeted Equipment'!$C$7","v":""},"Handheld Radio APX8000XE",11074,{"$f":"'Centrally Budgeted Equipment'!E59","v":0},{"$f":"ROUND(D62*E62,0)","v":0},null,{"$f":"+F62+G62","v":0},1478000001,50,520070,{"$f":"IF(A62=\"????\",\"\",INDEX('Data FA Lookup'!A:A,MATCH(A62,'Data FA Lookup'!D:D,0)))","v":{"$error":"#N/A"}},{"$f":"IF(A62=\"????\",\"\",LEFT(A62,3))","v":"0"},{"$f":"M62&L62","v":{"$error":"#N/A"}},"ES","One-Time","Capital"]
[{"$f":"+'Centrally Budgeted Equipment'!$E$11","v":0},{"$f":"+'Centrally Budgeted Equipment'!$C$7","v":""},"Spare Battery APX4000 ",97,{"$f":"'Centrally Budgeted Equipment'!E60","v":0},{"$f":"ROUND(D63*E63,0)","v":0},null,{"$f":"+F63+G63","v":0},1478000001,50,510340,{"$f":"IF(A63=\"????\",\"\",INDEX('Data FA Lookup'!A:A,MATCH(A63,'Data FA Lookup'!D:D,0)))","v":{"$error":"#N/A"}},{"$f":"IF(A63=\"????\",\"\",LEFT(A63,3))","v":"0"},{"$f":"M63&L63","v":{"$error":"#N/A"}},"ES","One-Time","Capital"]
[{"$f":"+'Centrally Budgeted Equipment'!$E$11","v":0},{"$f":"+'Centrally Budgeted Equipment'!$C$7","v":""},"Spare Battery APX6000XE/APX8000XE",105,{"$f":"'Centrally Budgeted Equipment'!E61","v":0},0,null,0,1478000001,50,510340,{"$f":"IF(A64=\"????\",\"\",INDEX('Data FA Lookup'!A:A,MATCH(A64,'Data FA Lookup'!D:D,0)))","v":{"$error":"#N/A"}},"0",{"$error":"#N/A"},"ES","One-Time","Capital"]
[{"$f":"+'Centrally Budgeted Equipment'!$E$11","v":0},{"$f":"+'Centrally Budgeted Equipment'!$C$7","v":""},"Speaker Mic",147,{"$f":"'Centrally Budgeted Equipment'!E62","v":0},0,null,0,1478000001,50,510340,{"$f":"IF(A65=\"????\",\"\",INDEX('Data FA Lookup'!A:A,MATCH(A65,'Data FA Lookup'!D:D,0)))","v":{"$error":"#N/A"}},"0",{"$error":"#N/A"},"ES","One-Time","Capital"]
[{"$f":"+'Centrally Budgeted Equipment'!$E$11","v":0},{"$f":"+'Centrally Budgeted Equipment'!$C$7","v":""},"Single Charger APX4000 ",69,{"$f":"'Centrally Budgeted Equipment'!E63","v":0},0,null,0,1478000001,50,510340,{"$f":"IF(A66=\"????\",\"\",INDEX('Data FA Lookup'!A:A,MATCH(A66,'Data FA Lookup'!D:D,0)))","v":{"$error":"#N/A"}},"0",{"$error":"#N/A"},"ES","One-Time","Capital"]
[{"$f":"+'Centrally Budgeted Equipment'!$E$11","v":0},{"$f":"+'Centrally Budgeted Equipment'!$C$7","v":""},"Single Charger APX6000XE/APX8000XE",141,{"$f":"'Centrally Budgeted Equipment'!E64","v":0},0,null,0,1478000001,50,510340,{"$f":"IF(A67=\"????\",\"\",INDEX('Data FA Lookup'!A:A,MATCH(A67,'Data FA Lookup'!D:D,0)))","v":{"$error":"#N/A"}},"0",{"$error":"#N/A"},"ES","One-Time","Capital"]
[{"$f":"+'Centrally Budgeted Equipment'!$E$11","v":0},{"$f":"+'Centrally Budgeted Equipment'!$C$7","v":""},"Bank Charger APX4000 ",589,{"$f":"'Centrally Budgeted Equipment'!E65","v":0},0,null,0,1478000001,50,510340,{"$f":"IF(A68=\"????\",\"\",INDEX('Data FA Lookup'!A:A,MATCH(A68,'Data FA Lookup'!D:D,0)))","v":{"$error":"#N/A"}},"0",{"$error":"#N/A"},"ES","One-Time","Capital"]
[{"$f":"+'Centrally Budgeted Equipment'!$E$11","v":0},{"$f":"+'Centrally Budgeted Equipment'!$C$7","v":""},"Bank Charger APX6000XE/APX8000XE",973,{"$f":"'Centrally Budgeted Equipment'!E66","v":0},0,null,0,1478000001,50,510340,{"$f":"IF(A69=\"????\",\"\",INDEX('Data FA Lookup'!A:A,MATCH(A69,'Data FA Lookup'!D:D,0)))","v":{"$error":"#N/A"}},"0",{"$error":"#N/A"},"ES","One-Time","Capital"]
["    Grand Total ES",null,null,null,null,{"$f":"SUM(F58:F69)","v":0},null,{"$f":"SUM(H58:H69)","v":0}]

{"sheet":"PB5 to Access","index":5,"n_rows":2,"n_cols":110,"rows_kept":2,"cut":false,"hidden":true,"merged":[]}
["ID","FYR","Option","Rank","Fund","Dept","PkgName","SpaceIssue","FundingLikely","MCE Request?","Budget Reduction?","Revenue Related?","PriorityArea","Legislative Issue?","OtherChange?","OtherChangeDescrip","BudgetSubmission","PkgDescription","PBORecommendation","OrgGenFundAmt-Old","OrgGenFundAmtCalc","OrgGenFundOngAmtCalc","OrgGenFundOneTAmtCalc","OrgOngPersonnel","OrgOngOperating","OrgOneTPersonnel","OrgOneTOperating","OrgOtherFundAmt","OrgITSCompAmt","OrgCentOperating","OrgCentCap","OrgOtherCapAmt","OrgFTE","RevGenFundAmt-Old","RevGenFundOngAmt-Old","RevGenFundOneTAmt-Old","RevGenFundAmtCalc","RevGenFundOngAmtCalc","RevGenFundOneTAmtCalc","RevOngPersonnel","RevOngOperating","RevOneTPersonnel","RevOneTOperating","RevOtherFundAmt","RevITSCompAmt","RevCentCap","RevCentOperating","RevOtherCapAmt","RevFTE","PrelimGenFundAmt-Old","PrelimGenFundOngAmt-Old","PrelimGenFundOneTAmt-Old","PrelimGenFundAmtCalc","PrelimGenFundOngAmtCalc","PrelimGenFundOneTAmtCalc","PrelimOngPersonnel","PrelimOngOperating","PrelimOneTPersonnel","PrelimOneTOperating","PrelimOtherFundAmt","PrelimITSCompAmt","PrelimCentOperating","PrelimCentCap","PrelimOtherCapAmt","PrelimFTE","AdoptGenFundAmt-Old","AdoptGenFundOngAmt-Old","AdoptGenFundOneTAmt-Old","AdoptedGenFundAmtCalc","AdoptedGenFundOngAmtCalc","AdoptedGenFundOneTAmtCalc","AdoptedOngPersonnel","AdoptedOngOperating","AdoptedOneTPersonnel","AdoptedOneTOperating","AdoptOtherFundAmt","AdoptITSCompAmt","AdoptCentOperating","AdoptCentCap","AdoptOtherCapAmt","AdoptFTE","CCPref_Fund","CCPref_DontFund","CCPref_Discuss","CC_Pref_Notes","LastUpdate","HTEDptNum","HTEFundNum","SAP_BudType","Is_Earmark","CAR_Earmark_Amnt","Allocated_Earmark_Amnt","ReqEarmarkAmnt","RecEarmarkAmnt","Earmark_Name","Earmark_Type","On_BAW","CentralBudChange","WriteupCategory","Not_Recommended","ITS_Assessment","Not_Adopted","ReqCount","Security Related","Org Review Related","SBPPrograms","SBPProgramsFC","ExecSummaryCat","COVID?","Budget Hearing?"]
[null,{"$f":"YEAR(NOW())+1","v":2025},null,{"$f":"'Details (PB5)'!B5","v":0},{"$f":"IF('Details (PB5)'!D10=\"\",RIGHT('Details (PB5)'!E30,4),RIGHT('Details (PB5)'!E10,4))","v":""},{"$f":"'Details (PB5)'!$D$5","v":0},{"$f":"'Details (PB5)'!B4","v":0},false,"",false,false,false,"None",false,false,"",false,{"$f":"G2","v":0},null,0,{"$f":"V2+W2","v":0},{"$f":"X2+Y2","v":0},{"$f":"Z2+AA2","v":0},{"$f":"'Details (PB5)'!H61-'Details (PB5)'!H43","v":0},{"$f":"'Details (PB5)'!$H$43+'Details (PB5)'!H$55","v":0},{"$f":"'Details (PB5)'!G61-'Details (PB5)'!G43","v":0},{"$f":"'Details (PB5)'!$G$43","v":0},0,{"$f":"'Details (PB5)'!$I$54","v":0},{"$f":"'Details (PB5)'!I55","v":0},{"$f":"'Details (PB5)'!$I$56","v":0},{"$f":"'Details (PB5)'!I57","v":0},{"$f":"'Details (PB5)'!C25","v":0},0,0,0,0,0,0,0,0,0,0,0,0,null,null,0,0,0,0,0,0,0,0,0,0,0,0,1,0,null,null,0,0,0,0,0,0,0,0,0,0,0,0,1,0,null,null,0,0,0,0,0,"",{"$f":"NOW()","v":45392.580780324075},0,0,"N/A",false,null,null,0,0,null,null,false,false,null,0,false,0,null,null,null,"","",null,false,false]

{"sheet":"SAP Import","index":6,"n_rows":97,"n_cols":12,"rows_kept":97,"cut":false,"hidden":true,"merged":[]}
["Line","Sender/Receiver","Commitment Item","Commitment Item Name","Fund Center","Fund","Function Area","Funded Program","Budget Type","Amount","DK","Text"]
[{"$f":"IF('Details (PB5)'!I10<>0,1,\"\")","v":""},null,{"$f":"IF(A2<>\"\",'Details (PB5)'!Q10,\"\")","v":""},null,{"$f":"IF(A2<>\"\",'Details (PB5)'!E10,\"\")","v":""},{"$f":"RIGHT(E2,4)","v":""},{"$f":"IF(A2<>\"\",INDEX('Data FA Lookup'!A:A,MATCH(E2,'Data FA Lookup'!D:D,0)),\"\")","v":""},"NON-FUNDED-PROGRAM",{"$f":"IF(E2<>\"\",IF('Details (PB5)'!$R$10=\"Y\",1,2),\"\")","v":""},{"$f":"IF(A2<>\"\",'Details (PB5)'!G10,\"\")","v":""},1,{"$f":"IF(A2<>\"\",'Details (PB5)'!$B$4,\"\")","v":""}]
[{"$f":"IF($A$2<>\"\",2,\"\")","v":""},null,{"$f":"IF($A$2<>\"\",506010,\"\")","v":""},null,{"$f":"$E$2","v":""},{"$f":"$F$2","v":""},{"$f":"IF(A3<>\"\",INDEX('Data FA Lookup'!A:A,MATCH(E3,'Data FA Lookup'!D:D,0)),\"\")","v":""},"NON-FUNDED-PROGRAM",{"$f":"IF(E3<>\"\",IF('Details (PB5)'!$R$10=\"Y\",1,2),\"\")","v":""},{"$f":"IF($A$2<>\"\",'Details (PB5)'!J$10,\"\")","v":""},1,{"$f":"IF(A3<>\"\",'Details (PB5)'!$B$4,\"\")","v":""}]
[{"$f":"IF($A$2<>\"\",3,\"\")","v":""},null,{"$f":"IF($A$2<>\"\",506020,\"\")","v":""},null,"","",{"$f":"IF(A4<>\"\",INDEX('Data FA Lookup'!A:A,MATCH(E4,'Data FA Lookup'!D:D,0)),\"\")","v":""},"NON-FUNDED-PROGRAM",{"$f":"IF(E4<>\"\",IF('Details (PB5)'!$R$10=\"Y\",1,2),\"\")","v":""},{"$f":"IF($A$2<>\"\",'Details (PB5)'!K$10,\"\")","v":""},1,{"$f":"IF(A4<>\"\",'Details (PB5)'!$B$4,\"\")","v":""}]
[{"$f":"IF($A$2<>\"\",4,\"\")","v":""},null,{"$f":"IF($A$2<>\"\",506030,\"\")","v":""},null,"","",{"$f":"IF(A5<>\"\",INDEX('Data FA Lookup'!A:A,MATCH(E5,'Data FA Lookup'!D:D,0)),\"\")","v":""},"NON-FUNDED-PROGRAM",{"$f":"IF(E5<>\"\",IF('Details (PB5)'!$R$10=\"Y\",1,2),\"\")","v":""},{"$f":"IF($A$2<>\"\",'Details (PB5)'!L$10,\"\")","v":""},1,{"$f":"IF(A5<>\"\",'Details (PB5)'!$B$4,\"\")","v":""}]
[{"$f":"IF($A$2<>\"\",5,\"\")","v":""},null,{"$f":"IF($A$2<>\"\",506040,\"\")","v":""},null,"","",{"$f":"IF(A6<>\"\",INDEX('Data FA Lookup'!A:A,MATCH(E6,'Data FA Lookup'!D:D,0)),\"\")","v":""},"NON-FUNDED-PROGRAM",{"$f":"IF(E6<>\"\",IF('Details (PB5)'!$R$10=\"Y\",1,2),\"\")","v":""},{"$f":"IF($A$2<>\"\",'Details (PB5)'!M$10,\"\")","v":""},1,{"$f":"IF(A6<>\"\",'Details (PB5)'!$B$4,\"\")","v":""}]
[{"$f":"IF($A$2<>\"\",6,\"\")","v":""},null,{"$f":"IF($A$2<>\"\",506055,\"\")","v":""},null,"","",{"$f":"IF(A7<>\"\",INDEX('Data FA Lookup'!A:A,MATCH(E7,'Data FA Lookup'!D:D,0)),\"\")","v":""},"NON-FUNDED-PROGRAM",{"$f":"IF(E7<>\"\",IF('Details (PB5)'!$R$10=\"Y\",1,2),\"\")","v":""},{"$f":"IF($A$2<>\"\",'Details (PB5)'!N$10,\"\")","v":""},1,{"$f":"IF(A7<>\"\",'Details (PB5)'!$B$4,\"\")","v":""}]
[{"$f":"IF($A$2<>\"\",7,\"\")","v":""},null,{"$f":"IF($A$2<>\"\",506060,\"\")","v":""},null,"","",{"$f":"IF(A8<>\"\",INDEX('Data FA Lookup'!A:A,MATCH(E8,'Data FA Lookup'!D:D,0)),\"\")","v":""},"NON-FUNDED-PROGRAM",{"$f":"IF(E8<>\"\",IF('Details (PB5)'!$R$10=\"Y\",1,2),\"\")","v":""},{"$f":"IF($A$2<>\"\",'Details (PB5)'!O$10,\"\")","v":""},1,{"$f":"IF(A8<>\"\",'Details (PB5)'!$B$4,\"\")","v":""}]
[{"$f":"IF('Details (PB5)'!I11<>0,8,\"\")","v":""},null,{"$f":"IF(A9<>\"\",'Details (PB5)'!Q11,\"\")","v":""},null,{"$f":"IF(A9<>\"\",'Details (PB5)'!E11,\"\")","v":""},{"$f":"RIGHT(E9,4)","v":""},{"$f":"IF(A9<>\"\",INDEX('Data FA Lookup'!A:A,MATCH(E9,'Data FA Lookup'!D:D,0)),\"\")","v":""},"NON-FUNDED-PROGRAM",{"$f":"IF(E9<>\"\",IF('Details (PB5)'!$R$11=\"Y\",1,2),\"\")","v":""},{"$f":"IF(A9<>\"\",'Details (PB5)'!G11,\"\")","v":""},1,{"$f":"IF(A9<>\"\",'Details (PB5)'!$B$4,\"\")","v":""}]
[{"$f":"IF($A$9<>\"\",9,\"\")","v":""},null,{"$f":"IF($A$9<>\"\",506010,\"\")","v":""},null,{"$f":"$E$9","v":""},{"$f":"$F$9","v":""},{"$f":"IF(A10<>\"\",INDEX('Data FA Lookup'!A:A,MATCH(E10,'Data FA Lookup'!D:D,0)),\"\")","v":""},"NON-FUNDED-PROGRAM",{"$f":"IF(E10<>\"\",IF('Details (PB5)'!$R$11=\"Y\",1,2),\"\")","v":""},{"$f":"IF($A$9<>\"\",'Details (PB5)'!J$11,\"\")","v":""},1,{"$f":"IF(A10<>\"\",'Details (PB5)'!$B$4,\"\")","v":""}]
[{"$f":"IF($A$9<>\"\",10,\"\")","v":""},null,{"$f":"IF($A$9<>\"\",506020,\"\")","v":""},null,"","",{"$f":"IF(A11<>\"\",INDEX('Data FA Lookup'!A:A,MATCH(E11,'Data FA Lookup'!D:D,0)),\"\")","v":""},"NON-FUNDED-PROGRAM",{"$f":"IF(E11<>\"\",IF('Details (PB5)'!$R$11=\"Y\",1,2),\"\")","v":""},{"$f":"IF($A$9<>\"\",'Details (PB5)'!K$11,\"\")","v":""},1,{"$f":"IF(A11<>\"\",'Details (PB5)'!$B$4,\"\")","v":""}]
[{"$f":"IF($A$9<>\"\",11,\"\")","v":""},null,{"$f":"IF($A$9<>\"\",506030,\"\")","v":""},null,"","",{"$f":"IF(A12<>\"\",INDEX('Data FA Lookup'!A:A,MATCH(E12,'Data FA Lookup'!D:D,0)),\"\")","v":""},"NON-FUNDED-PROGRAM",{"$f":"IF(E12<>\"\",IF('Details (PB5)'!$R$11=\"Y\",1,2),\"\")","v":""},{"$f":"IF($A$9<>\"\",'Details (PB5)'!L$11,\"\")","v":""},1,{"$f":"IF(A12<>\"\",'Details (PB5)'!$B$4,\"\")","v":""}]
[{"$f":"IF($A$9<>\"\",12,\"\")","v":""},null,{"$f":"IF($A$9<>\"\",506040,\"\")","v":""},null,"","",{"$f":"IF(A13<>\"\",INDEX('Data FA Lookup'!A:A,MATCH(E13,'Data FA Lookup'!D:D,0)),\"\")","v":""},"NON-FUNDED-PROGRAM",{"$f":"IF(E13<>\"\",IF('Details (PB5)'!$R$11=\"Y\",1,2),\"\")","v":""},{"$f":"IF($A$9<>\"\",'Details (PB5)'!M$11,\"\")","v":""},1,{"$f":"IF(A13<>\"\",'Details (PB5)'!$B$4,\"\")","v":""}]
[{"$f":"IF($A$9<>\"\",13,\"\")","v":""},null,{"$f":"IF($A$9<>\"\",506055,\"\")","v":""},null,"","",{"$f":"IF(A14<>\"\",INDEX('Data FA Lookup'!A:A,MATCH(E14,'Data FA Lookup'!D:D,0)),\"\")","v":""},"NON-FUNDED-PROGRAM",{"$f":"IF(E14<>\"\",IF('Details (PB5)'!$R$11=\"Y\",1,2),\"\")","v":""},{"$f":"IF($A$9<>\"\",'Details (PB5)'!N$11,\"\")","v":""},1,{"$f":"IF(A14<>\"\",'Details (PB5)'!$B$4,\"\")","v":""}]
[{"$f":"IF($A$9<>\"\",14,\"\")","v":""},null,{"$f":"IF($A$9<>\"\",506060,\"\")","v":""},null,"","",{"$f":"IF(A15<>\"\",INDEX('Data FA Lookup'!A:A,MATCH(E15,'Data FA Lookup'!D:D,0)),\"\")","v":""},"NON-FUNDED-PROGRAM",{"$f":"IF(E15<>\"\",IF('Details (PB5)'!$R$11=\"Y\",1,2),\"\")","v":""},{"$f":"IF($A$9<>\"\",'Details (PB5)'!O$11,\"\")","v":""},1,{"$f":"IF(A15<>\"\",'Details (PB5)'!$B$4,\"\")","v":""}]
[{"$f":"IF('Details (PB5)'!I12<>0,15,\"\")","v":""},null,{"$f":"IF(A16<>\"\",'Details (PB5)'!Q12,\"\")","v":""},null,{"$f":"IF(A16<>\"\",'Details (PB5)'!E12,\"\")","v":""},{"$f":"RIGHT(E16,4)","v":""},{"$f":"IF(A16<>\"\",INDEX('Data FA Lookup'!A:A,MATCH(E16,'Data FA Lookup'!D:D,0)),\"\")","v":""},"NON-FUNDED-PROGRAM",{"$f":"IF(E16<>\"\",IF('Details (PB5)'!$R$12=\"Y\",1,2),\"\")","v":""},{"$f":"IF(A16<>\"\",'Details (PB5)'!G12,\"\")","v":""},1,{"$f":"IF(A16<>\"\",'Details (PB5)'!$B$4,\"\")","v":""}]
[{"$f":"IF($A$16<>\"\",16,\"\")","v":""},null,{"$f":"IF($A$16<>\"\",506010,\"\")","v":""},null,{"$f":"$E$16","v":""},{"$f":"RIGHT(E17,4)","v":""},{"$f":"IF(A17<>\"\",INDEX('Data FA Lookup'!A:A,MATCH(E17,'Data FA Lookup'!D:D,0)),\"\")","v":""},"NON-FUNDED-PROGRAM",{"$f":"IF(E17<>\"\",IF('Details (PB5)'!$R$12=\"Y\",1,2),\"\")","v":""},{"$f":"IF($A$16<>\"\",'Details (PB5)'!J$12,\"\")","v":""},1,{"$f":"IF(A17<>\"\",'Details (PB5)'!$B$4,\"\")","v":""}]
[{"$f":"IF($A$16<>\"\",17,\"\")","v":""},null,{"$f":"IF($A$16<>\"\",506020,\"\")","v":""},null,"","",{"$f":"IF(A18<>\"\",INDEX('Data FA Lookup'!A:A,MATCH(E18,'Data FA Lookup'!D:D,0)),\"\")","v":""},"NON-FUNDED-PROGRAM",{"$f":"IF(E18<>\"\",IF('Details (PB5)'!$R$12=\"Y\",1,2),\"\")","v":""},{"$f":"IF($A$16<>\"\",'Details (PB5)'!K$12,\"\")","v":""},1,{"$f":"IF(A18<>\"\",'Details (PB5)'!$B$4,\"\")","v":""}]
[{"$f":"IF($A$16<>\"\",18,\"\")","v":""},null,{"$f":"IF($A$16<>\"\",506030,\"\")","v":""},null,"","",{"$f":"IF(A19<>\"\",INDEX('Data FA Lookup'!A:A,MATCH(E19,'Data FA Lookup'!D:D,0)),\"\")","v":""},"NON-FUNDED-PROGRAM",{"$f":"IF(E19<>\"\",IF('Details (PB5)'!$R$12=\"Y\",1,2),\"\")","v":""},{"$f":"IF($A$16<>\"\",'Details (PB5)'!L$12,\"\")","v":""},1,{"$f":"IF(A19<>\"\",'Details (PB5)'!$B$4,\"\")","v":""}]
[{"$f":"IF($A$16<>\"\",19,\"\")","v":""},null,{"$f":"IF($A$16<>\"\",506040,\"\")","v":""},null,"","",{"$f":"IF(A20<>\"\",INDEX('Data FA Lookup'!A:A,MATCH(E20,'Data FA Lookup'!D:D,0)),\"\")","v":""},"NON-FUNDED-PROGRAM",{"$f":"IF(E20<>\"\",IF('Details (PB5)'!$R$12=\"Y\",1,2),\"\")","v":""},{"$f":"IF($A$16<>\"\",'Details (PB5)'!M$12,\"\")","v":""},1,{"$f":"IF(A20<>\"\",'Details (PB5)'!$B$4,\"\")","v":""}]
[{"$f":"IF($A$16<>\"\",20,\"\")","v":""},null,{"$f":"IF($A$16<>\"\",506055,\"\")","v":""},null,"","",{"$f":"IF(A21<>\"\",INDEX('Data FA Lookup'!A:A,MATCH(E21,'Data FA Lookup'!D:D,0)),\"\")","v":""},"NON-FUNDED-PROGRAM",{"$f":"IF(E21<>\"\",IF('Details (PB5)'!$R$12=\"Y\",1,2),\"\")","v":""},{"$f":"IF($A$16<>\"\",'Details (PB5)'!N$12,\"\")","v":""},1,{"$f":"IF(A21<>\"\",'Details (PB5)'!$B$4,\"\")","v":""}]
[{"$f":"IF($A$16<>\"\",21,\"\")","v":""},null,{"$f":"IF($A$16<>\"\",506060,\"\")","v":""},null,"","",{"$f":"IF(A22<>\"\",INDEX('Data FA Lookup'!A:A,MATCH(E22,'Data FA Lookup'!D:D,0)),\"\")","v":""},"NON-FUNDED-PROGRAM",{"$f":"IF(E22<>\"\",IF('Details (PB5)'!$R$12=\"Y\",1,2),\"\")","v":""},{"$f":"IF($A$16<>\"\",'Details (PB5)'!O$12,\"\")","v":""},1,{"$f":"IF(A22<>\"\",'Details (PB5)'!$B$4,\"\")","v":""}]
[{"$f":"IF('Details (PB5)'!I13<>0,22,\"\")","v":""},null,{"$f":"IF(A23<>\"\",'Details (PB5)'!Q13,\"\")","v":""},null,{"$f":"IF(A23<>\"\",'Details (PB5)'!E13,\"\")","v":""},"",{"$f":"IF(A23<>\"\",INDEX('Data FA Lookup'!A:A,MATCH(E23,'Data FA Lookup'!D:D,0)),\"\")","v":""},"NON-FUNDED-PROGRAM",{"$f":"IF(E23<>\"\",IF('Details (PB5)'!$R$13=\"Y\",1,2),\"\")","v":""},{"$f":"IF(A23<>\"\",'Details (PB5)'!G13,\"\")","v":""},1,{"$f":"IF(A23<>\"\",'Details (PB5)'!$B$4,\"\")","v":""}]
[{"$f":"IF($A$23<>\"\",23,\"\")","v":""},null,{"$f":"IF($A$23<>\"\",506010,\"\")","v":""},null,{"$f":"$E$23","v":""},"",{"$f":"IF(A24<>\"\",INDEX('Data FA Lookup'!A:A,MATCH(E24,'Data FA Lookup'!D:D,0)),\"\")","v":""},"NON-FUNDED-PROGRAM",{"$f":"IF(E24<>\"\",IF('Details (PB5)'!$R$13=\"Y\",1,2),\"\")","v":""},{"$f":"IF($A$23<>\"\",'Details (PB5)'!J$13,\"\")","v":""},1,{"$f":"IF(A24<>\"\",'Details (PB5)'!$B$4,\"\")","v":""}]
[{"$f":"IF($A$23<>\"\",24,\"\")","v":""},null,{"$f":"IF($A$23<>\"\",506020,\"\")","v":""},null,"","",{"$f":"IF(A25<>\"\",INDEX('Data FA Lookup'!A:A,MATCH(E25,'Data FA Lookup'!D:D,0)),\"\")","v":""},"NON-FUNDED-PROGRAM",{"$f":"IF(E25<>\"\",IF('Details (PB5)'!$R$13=\"Y\",1,2),\"\")","v":""},{"$f":"IF($A$23<>\"\",'Details (PB5)'!K$13,\"\")","v":""},1,{"$f":"IF(A25<>\"\",'Details (PB5)'!$B$4,\"\")","v":""}]
[{"$f":"IF($A$23<>\"\",25,\"\")","v":""},null,{"$f":"IF($A$23<>\"\",506030,\"\")","v":""},null,"","",{"$f":"IF(A26<>\"\",INDEX('Data FA Lookup'!A:A,MATCH(E26,'Data FA Lookup'!D:D,0)),\"\")","v":""},"NON-FUNDED-PROGRAM",{"$f":"IF(E26<>\"\",IF('Details (PB5)'!$R$13=\"Y\",1,2),\"\")","v":""},{"$f":"IF($A$23<>\"\",'Details (PB5)'!L$13,\"\")","v":""},1,{"$f":"IF(A26<>\"\",'Details (PB5)'!$B$4,\"\")","v":""}]
[{"$f":"IF($A$23<>\"\",26,\"\")","v":""},null,{"$f":"IF($A$23<>\"\",506040,\"\")","v":""},null,"","",{"$f":"IF(A27<>\"\",INDEX('Data FA Lookup'!A:A,MATCH(E27,'Data FA Lookup'!D:D,0)),\"\")","v":""},"NON-FUNDED-PROGRAM",{"$f":"IF(E27<>\"\",IF('Details (PB5)'!$R$13=\"Y\",1,2),\"\")","v":""},{"$f":"IF($A$23<>\"\",'Details (PB5)'!M$13,\"\")","v":""},1,{"$f":"IF(A27<>\"\",'Details (PB5)'!$B$4,\"\")","v":""}]
[{"$f":"IF($A$23<>\"\",27,\"\")","v":""},null,{"$f":"IF($A$23<>\"\",506055,\"\")","v":""},null,"","",{"$f":"IF(A28<>\"\",INDEX('Data FA Lookup'!A:A,MATCH(E28,'Data FA Lookup'!D:D,0)),\"\")","v":""},"NON-FUNDED-PROGRAM",{"$f":"IF(E28<>\"\",IF('Details (PB5)'!$R$13=\"Y\",1,2),\"\")","v":""},{"$f":"IF($A$23<>\"\",'Details (PB5)'!N$13,\"\")","v":""},1,{"$f":"IF(A28<>\"\",'Details (PB5)'!$B$4,\"\")","v":""}]
[{"$f":"IF($A$23<>\"\",28,\"\")","v":""},null,{"$f":"IF($A$23<>\"\",506060,\"\")","v":""},null,"","",{"$f":"IF(A29<>\"\",INDEX('Data FA Lookup'!A:A,MATCH(E29,'Data FA Lookup'!D:D,0)),\"\")","v":""},"NON-FUNDED-PROGRAM",{"$f":"IF(E29<>\"\",IF('Details (PB5)'!$R$13=\"Y\",1,2),\"\")","v":""},{"$f":"IF($A$23<>\"\",'Details (PB5)'!O$13,\"\")","v":""},1,{"$f":"IF(A29<>\"\",'Details (PB5)'!$B$4,\"\")","v":""}]
[{"$f":"IF('Details (PB5)'!I14<>0,29,\"\")","v":""},null,{"$f":"IF(A30<>\"\",'Details (PB5)'!Q14,\"\")","v":""},null,{"$f":"IF(A30<>\"\",'Details (PB5)'!E14,\"\")","v":""},"",{"$f":"IF(A30<>\"\",INDEX('Data FA Lookup'!A:A,MATCH(E30,'Data FA Lookup'!D:D,0)),\"\")","v":""},"NON-FUNDED-PROGRAM",{"$f":"IF(E30<>\"\",IF('Details (PB5)'!$R$14=\"Y\",1,2),\"\")","v":""},{"$f":"IF(A30<>\"\",'Details (PB5)'!G14,\"\")","v":""},1,{"$f":"IF(A30<>\"\",'Details (PB5)'!$B$4,\"\")","v":""}]
[{"$f":"IF($A$30<>\"\",30,\"\")","v":""},null,{"$f":"IF($A$30<>\"\",506010,\"\")","v":""},null,{"$f":"$E$30","v":""},"",{"$f":"IF(A31<>\"\",INDEX('Data FA Lookup'!A:A,MATCH(E31,'Data FA Lookup'!D:D,0)),\"\")","v":""},"NON-FUNDED-PROGRAM",{"$f":"IF(E31<>\"\",IF('Details (PB5)'!$R$14=\"Y\",1,2),\"\")","v":""},{"$f":"IF($A$30<>\"\",'Details (PB5)'!J$14,\"\")","v":""},1,{"$f":"IF(A31<>\"\",'Details (PB5)'!$B$4,\"\")","v":""}]
[{"$f":"IF($A$30<>\"\",31,\"\")","v":""},null,{"$f":"IF($A$30<>\"\",506020,\"\")","v":""},null,"","",{"$f":"IF(A32<>\"\",INDEX('Data FA Lookup'!A:A,MATCH(E32,'Data FA Lookup'!D:D,0)),\"\")","v":""},"NON-FUNDED-PROGRAM",{"$f":"IF(E32<>\"\",IF('Details (PB5)'!$R$14=\"Y\",1,2),\"\")","v":""},{"$f":"IF($A$30<>\"\",'Details (PB5)'!K$14,\"\")","v":""},1,{"$f":"IF(A32<>\"\",'Details (PB5)'!$B$4,\"\")","v":""}]
[{"$f":"IF($A$30<>\"\",32,\"\")","v":""},null,{"$f":"IF($A$30<>\"\",506030,\"\")","v":""},null,"","",{"$f":"IF(A33<>\"\",INDEX('Data FA Lookup'!A:A,MATCH(E33,'Data FA Lookup'!D:D,0)),\"\")","v":""},"NON-FUNDED-PROGRAM",{"$f":"IF(E33<>\"\",IF('Details (PB5)'!$R$14=\"Y\",1,2),\"\")","v":""},{"$f":"IF($A$30<>\"\",'Details (PB5)'!L$14,\"\")","v":""},1,{"$f":"IF(A33<>\"\",'Details (PB5)'!$B$4,\"\")","v":""}]
[{"$f":"IF($A$30<>\"\",33,\"\")","v":""},null,{"$f":"IF($A$30<>\"\",506040,\"\")","v":""},null,"","",{"$f":"IF(A34<>\"\",INDEX('Data FA Lookup'!A:A,MATCH(E34,'Data FA Lookup'!D:D,0)),\"\")","v":""},"NON-FUNDED-PROGRAM",{"$f":"IF(E34<>\"\",IF('Details (PB5)'!$R$14=\"Y\",1,2),\"\")","v":""},{"$f":"IF($A$30<>\"\",'Details (PB5)'!M$14,\"\")","v":""},1,{"$f":"IF(A34<>\"\",'Details (PB5)'!$B$4,\"\")","v":""}]
[{"$f":"IF($A$30<>\"\",34,\"\")","v":""},null,{"$f":"IF($A$30<>\"\",506055,\"\")","v":""},null,"","",{"$f":"IF(A35<>\"\",INDEX('Data FA Lookup'!A:A,MATCH(E35,'Data FA Lookup'!D:D,0)),\"\")","v":""},"NON-FUNDED-PROGRAM",{"$f":"IF(E35<>\"\",IF('Details (PB5)'!$R$14=\"Y\",1,2),\"\")","v":""},{"$f":"IF($A$30<>\"\",'Details (PB5)'!N$14,\"\")","v":""},1,{"$f":"IF(A35<>\"\",'Details (PB5)'!$B$4,\"\")","v":""}]
[{"$f":"IF($A$30<>\"\",35,\"\")","v":""},null,{"$f":"IF($A$30<>\"\",506060,\"\")","v":""},null,"","",{"$f":"IF(A36<>\"\",INDEX('Data FA Lookup'!A:A,MATCH(E36,'Data FA Lookup'!D:D,0)),\"\")","v":""},"NON-FUNDED-PROGRAM",{"$f":"IF(E36<>\"\",IF('Details (PB5)'!$R$14=\"Y\",1,2),\"\")","v":""},{"$f":"IF($A$30<>\"\",'Details (PB5)'!O$14,\"\")","v":""},1,{"$f":"IF(A36<>\"\",'Details (PB5)'!$B$4,\"\")","v":""}]
[{"$f":"IF('Details (PB5)'!I15<>0,36,\"\")","v":""},null,{"$f":"IF(A37<>\"\",'Details (PB5)'!Q15,\"\")","v":""},null,{"$f":"IF(A37<>\"\",'Details (PB5)'!E15,\"\")","v":""},"",{"$f":"IF(A37<>\"\",INDEX('Data FA Lookup'!A:A,MATCH(E37,'Data FA Lookup'!D:D,0)),\"\")","v":""},"NON-FUNDED-PROGRAM",{"$f":"IF(E37<>\"\",IF('Details (PB5)'!$R$15=\"Y\",1,2),\"\")","v":""},{"$f":"IF(A37<>\"\",'Details (PB5)'!G15,\"\")","v":""},1,{"$f":"IF(A37<>\"\",'Details (PB5)'!$B$4,\"\")","v":""}]
[{"$f":"IF($A$37<>\"\",37,\"\")","v":""},null,{"$f":"IF($A$37<>\"\",506010,\"\")","v":""},null,{"$f":"$E$37","v":""},"",{"$f":"IF(A38<>\"\",INDEX('Data FA Lookup'!A:A,MATCH(E38,'Data FA Lookup'!D:D,0)),\"\")","v":""},"NON-FUNDED-PROGRAM",{"$f":"IF(E38<>\"\",IF('Details (PB5)'!$R$15=\"Y\",1,2),\"\")","v":""},{"$f":"IF($A$37<>\"\",'Details (PB5)'!J$15,\"\")","v":""},1,{"$f":"IF(A38<>\"\",'Details (PB5)'!$B$4,\"\")","v":""}]
[{"$f":"IF($A$37<>\"\",38,\"\")","v":""},null,{"$f":"IF($A$37<>\"\",506020,\"\")","v":""},null,"","",{"$f":"IF(A39<>\"\",INDEX('Data FA Lookup'!A:A,MATCH(E39,'Data FA Lookup'!D:D,0)),\"\")","v":""},"NON-FUNDED-PROGRAM",{"$f":"IF(E39<>\"\",IF('Details (PB5)'!$R$15=\"Y\",1,2),\"\")","v":""},{"$f":"IF($A$37<>\"\",'Details (PB5)'!K$15,\"\")","v":""},1,{"$f":"IF(A39<>\"\",'Details (PB5)'!$B$4,\"\")","v":""}]
[{"$f":"IF($A$37<>\"\",39,\"\")","v":""},null,{"$f":"IF($A$37<>\"\",506030,\"\")","v":""},null,"","",{"$f":"IF(A40<>\"\",INDEX('Data FA Lookup'!A:A,MATCH(E40,'Data FA Lookup'!D:D,0)),\"\")","v":""},"NON-FUNDED-PROGRAM",{"$f":"IF(E40<>\"\",IF('Details (PB5)'!$R$15=\"Y\",1,2),\"\")","v":""},{"$f":"IF($A$37<>\"\",'Details (PB5)'!L$15,\"\")","v":""},1,{"$f":"IF(A40<>\"\",'Details (PB5)'!$B$4,\"\")","v":""}]
[{"$f":"IF($A$37<>\"\",40,\"\")","v":""},null,{"$f":"IF($A$37<>\"\",506040,\"\")","v":""},null,"","",{"$f":"IF(A41<>\"\",INDEX('Data FA Lookup'!A:A,MATCH(E41,'Data FA Lookup'!D:D,0)),\"\")","v":""},"NON-FUNDED-PROGRAM",{"$f":"IF(E41<>\"\",IF('Details (PB5)'!$R$15=\"Y\",1,2),\"\")","v":""},{"$f":"IF($A$37<>\"\",'Details (PB5)'!M$15,\"\")","v":""},1,{"$f":"IF(A41<>\"\",'Details (PB5)'!$B$4,\"\")","v":""}]
[{"$f":"IF($A$37<>\"\",41,\"\")","v":""},null,{"$f":"IF($A$37<>\"\",506055,\"\")","v":""},null,"","",{"$f":"IF(A42<>\"\",INDEX('Data FA Lookup'!A:A,MATCH(E42,'Data FA Lookup'!D:D,0)),\"\")","v":""},"NON-FUNDED-PROGRAM",{"$f":"IF(E42<>\"\",IF('Details (PB5)'!$R$15=\"Y\",1,2),\"\")","v":""},{"$f":"IF($A$37<>\"\",'Details (PB5)'!N$15,\"\")","v":""},1,{"$f":"IF(A42<>\"\",'Details (PB5)'!$B$4,\"\")","v":""}]
[{"$f":"IF($A$37<>\"\",42,\"\")","v":""},null,{"$f":"IF($A$37<>\"\",506060,\"\")","v":""},null,"","",{"$f":"IF(A43<>\"\",INDEX('Data FA Lookup'!A:A,MATCH(E43,'Data FA Lookup'!D:D,0)),\"\")","v":""},"NON-FUNDED-PROGRAM",{"$f":"IF(E43<>\"\",IF('Details (PB5)'!$R$15=\"Y\",1,2),\"\")","v":""},{"$f":"IF($A$37<>\"\",'Details (PB5)'!O$15,\"\")","v":""},1,{"$f":"IF(A43<>\"\",'Details (PB5)'!$B$4,\"\")","v":""}]
[{"$f":"IF('Details (PB5)'!I16<>0,43,\"\")","v":""},null,{"$f":"IF(A44<>\"\",'Details (PB5)'!Q16,\"\")","v":""},null,{"$f":"IF(A44<>\"\",'Details (PB5)'!E16,\"\")","v":""},"",{"$f":"IF(A44<>\"\",INDEX('Data FA Lookup'!A:A,MATCH(E44,'Data FA Lookup'!D:D,0)),\"\")","v":""},"NON-FUNDED-PROGRAM",{"$f":"IF(E44<>\"\",IF('Details (PB5)'!$R$16=\"Y\",1,2),\"\")","v":""},{"$f":"IF(A44<>\"\",'Details (PB5)'!G16,\"\")","v":""},1,{"$f":"IF(A44<>\"\",'Details (PB5)'!$B$4,\"\")","v":""}]
[{"$f":"IF($A$44<>\"\",44,\"\")","v":""},null,{"$f":"IF($A$44<>\"\",506010,\"\")","v":""},null,{"$f":"$E$44","v":""},"",{"$f":"IF(A45<>\"\",INDEX('Data FA Lookup'!A:A,MATCH(E45,'Data FA Lookup'!D:D,0)),\"\")","v":""},"NON-FUNDED-PROGRAM",{"$f":"IF(E45<>\"\",IF('Details (PB5)'!$R$16=\"Y\",1,2),\"\")","v":""},{"$f":"IF($A$44<>\"\",'Details (PB5)'!J$16,\"\")","v":""},1,{"$f":"IF(A45<>\"\",'Details (PB5)'!$B$4,\"\")","v":""}]
[{"$f":"IF($A$44<>\"\",45,\"\")","v":""},null,{"$f":"IF($A$44<>\"\",506020,\"\")","v":""},null,"","",{"$f":"IF(A46<>\"\",INDEX('Data FA Lookup'!A:A,MATCH(E46,'Data FA Lookup'!D:D,0)),\"\")","v":""},"NON-FUNDED-PROGRAM",{"$f":"IF(E46<>\"\",IF('Details (PB5)'!$R$16=\"Y\",1,2),\"\")","v":""},{"$f":"IF($A$44<>\"\",'Details (PB5)'!K$16,\"\")","v":""},1,{"$f":"IF(A46<>\"\",'Details (PB5)'!$B$4,\"\")","v":""}]
[{"$f":"IF($A$44<>\"\",46,\"\")","v":""},null,{"$f":"IF($A$44<>\"\",506030,\"\")","v":""},null,"","",{"$f":"IF(A47<>\"\",INDEX('Data FA Lookup'!A:A,MATCH(E47,'Data FA Lookup'!D:D,0)),\"\")","v":""},"NON-FUNDED-PROGRAM",{"$f":"IF(E47<>\"\",IF('Details (PB5)'!$R$16=\"Y\",1,2),\"\")","v":""},{"$f":"IF($A$44<>\"\",'Details (PB5)'!L$16,\"\")","v":""},1,{"$f":"IF(A47<>\"\",'Details (PB5)'!$B$4,\"\")","v":""}]
[{"$f":"IF($A$44<>\"\",47,\"\")","v":""},null,{"$f":"IF($A$44<>\"\",506040,\"\")","v":""},null,"","",{"$f":"IF(A48<>\"\",INDEX('Data FA Lookup'!A:A,MATCH(E48,'Data FA Lookup'!D:D,0)),\"\")","v":""},"NON-FUNDED-PROGRAM",{"$f":"IF(E48<>\"\",IF('Details (PB5)'!$R$16=\"Y\",1,2),\"\")","v":""},{"$f":"IF($A$44<>\"\",'Details (PB5)'!M$16,\"\")","v":""},1,{"$f":"IF(A48<>\"\",'Details (PB5)'!$B$4,\"\")","v":""}]
[{"$f":"IF($A$44<>\"\",48,\"\")","v":""},null,{"$f":"IF($A$44<>\"\",506055,\"\")","v":""},null,"","",{"$f":"IF(A49<>\"\",INDEX('Data FA Lookup'!A:A,MATCH(E49,'Data FA Lookup'!D:D,0)),\"\")","v":""},"NON-FUNDED-PROGRAM",{"$f":"IF(E49<>\"\",IF('Details (PB5)'!$R$16=\"Y\",1,2),\"\")","v":""},{"$f":"IF($A$44<>\"\",'Details (PB5)'!N$16,\"\")","v":""},1,{"$f":"IF(A49<>\"\",'Details (PB5)'!$B$4,\"\")","v":""}]
[{"$f":"IF($A$44<>\"\",49,\"\")","v":""},null,{"$f":"IF($A$44<>\"\",506060,\"\")","v":""},null,"","",{"$f":"IF(A50<>\"\",INDEX('Data FA Lookup'!A:A,MATCH(E50,'Data FA Lookup'!D:D,0)),\"\")","v":""},"NON-FUNDED-PROGRAM",{"$f":"IF(E50<>\"\",IF('Details (PB5)'!$R$16=\"Y\",1,2),\"\")","v":""},{"$f":"IF($A$44<>\"\",'Details (PB5)'!O$16,\"\")","v":""},1,{"$f":"IF(A50<>\"\",'Details (PB5)'!$B$4,\"\")","v":""}]
[{"$f":"IF('Details (PB5)'!I17<>0,50,\"\")","v":""},null,{"$f":"IF(A51<>\"\",'Details (PB5)'!Q17,\"\")","v":""},null,{"$f":"IF(A51<>\"\",'Details (PB5)'!E17,\"\")","v":""},"",{"$f":"IF(A51<>\"\",INDEX('Data FA Lookup'!A:A,MATCH(E51,'Data FA Lookup'!D:D,0)),\"\")","v":""},"NON-FUNDED-PROGRAM",{"$f":"IF(E51<>\"\",IF('Details (PB5)'!$R$17=\"Y\",1,2),\"\")","v":""},{"$f":"IF(A51<>\"\",'Details (PB5)'!G17,\"\")","v":""},1,{"$f":"IF(A51<>\"\",'Details (PB5)'!$B$4,\"\")","v":""}]
[{"$f":"IF($A$51<>\"\",51,\"\")","v":""},null,{"$f":"IF($A$51<>\"\",506010,\"\")","v":""},null,{"$f":"$E$51","v":""},"",{"$f":"IF(A52<>\"\",INDEX('Data FA Lookup'!A:A,MATCH(E52,'Data FA Lookup'!D:D,0)),\"\")","v":""},"NON-FUNDED-PROGRAM",{"$f":"IF(E52<>\"\",IF('Details (PB5)'!$R$17=\"Y\",1,2),\"\")","v":""},{"$f":"IF($A$51<>\"\",'Details (PB5)'!J$17,\"\")","v":""},1,{"$f":"IF(A52<>\"\",'Details (PB5)'!$B$4,\"\")","v":""}]
[{"$f":"IF($A$51<>\"\",52,\"\")","v":""},null,{"$f":"IF($A$51<>\"\",506020,\"\")","v":""},null,"","",{"$f":"IF(A53<>\"\",INDEX('Data FA Lookup'!A:A,MATCH(E53,'Data FA Lookup'!D:D,0)),\"\")","v":""},"NON-FUNDED-PROGRAM",{"$f":"IF(E53<>\"\",IF('Details (PB5)'!$R$17=\"Y\",1,2),\"\")","v":""},{"$f":"IF($A$51<>\"\",'Details (PB5)'!K$17,\"\")","v":""},1,{"$f":"IF(A53<>\"\",'Details (PB5)'!$B$4,\"\")","v":""}]
[{"$f":"IF($A$51<>\"\",53,\"\")","v":""},null,{"$f":"IF($A$51<>\"\",506030,\"\")","v":""},null,"","",{"$f":"IF(A54<>\"\",INDEX('Data FA Lookup'!A:A,MATCH(E54,'Data FA Lookup'!D:D,0)),\"\")","v":""},"NON-FUNDED-PROGRAM",{"$f":"IF(E54<>\"\",IF('Details (PB5)'!$R$17=\"Y\",1,2),\"\")","v":""},{"$f":"IF($A$51<>\"\",'Details (PB5)'!L$17,\"\")","v":""},1,{"$f":"IF(A54<>\"\",'Details (PB5)'!$B$4,\"\")","v":""}]
[{"$f":"IF($A$51<>\"\",54,\"\")","v":""},null,{"$f":"IF($A$51<>\"\",506040,\"\")","v":""},null,"","",{"$f":"IF(A55<>\"\",INDEX('Data FA Lookup'!A:A,MATCH(E55,'Data FA Lookup'!D:D,0)),\"\")","v":""},"NON-FUNDED-PROGRAM",{"$f":"IF(E55<>\"\",IF('Details (PB5)'!$R$17=\"Y\",1,2),\"\")","v":""},{"$f":"IF($A$51<>\"\",'Details (PB5)'!M$17,\"\")","v":""},1,{"$f":"IF(A55<>\"\",'Details (PB5)'!$B$4,\"\")","v":""}]
[{"$f":"IF($A$51<>\"\",55,\"\")","v":""},null,{"$f":"IF($A$51<>\"\",506055,\"\")","v":""},null,"","",{"$f":"IF(A56<>\"\",INDEX('Data FA Lookup'!A:A,MATCH(E56,'Data FA Lookup'!D:D,0)),\"\")","v":""},"NON-FUNDED-PROGRAM",{"$f":"IF(E56<>\"\",IF('Details (PB5)'!$R$17=\"Y\",1,2),\"\")","v":""},{"$f":"IF($A$51<>\"\",'Details (PB5)'!N$17,\"\")","v":""},1,{"$f":"IF(A56<>\"\",'Details (PB5)'!$B$4,\"\")","v":""}]
[{"$f":"IF($A$51<>\"\",56,\"\")","v":""},null,{"$f":"IF($A$51<>\"\",506060,\"\")","v":""},null,"","",{"$f":"IF(A57<>\"\",INDEX('Data FA Lookup'!A:A,MATCH(E57,'Data FA Lookup'!D:D,0)),\"\")","v":""},"NON-FUNDED-PROGRAM",{"$f":"IF(E57<>\"\",IF('Details (PB5)'!$R$17=\"Y\",1,2),\"\")","v":""},{"$f":"IF($A$51<>\"\",'Details (PB5)'!O$17,\"\")","v":""},1,{"$f":"IF(A57<>\"\",'Details (PB5)'!$B$4,\"\")","v":""}]
[{"$f":"IF('Details (PB5)'!I18<>0,57,\"\")","v":""},null,{"$f":"IF(A58<>\"\",'Details (PB5)'!Q18,\"\")","v":""},null,{"$f":"IF(A58<>\"\",'Details (PB5)'!E18,\"\")","v":""},"",{"$f":"IF(A58<>\"\",INDEX('Data FA Lookup'!A:A,MATCH(E58,'Data FA Lookup'!D:D,0)),\"\")","v":""},"NON-FUNDED-PROGRAM",{"$f":"IF(E58<>\"\",IF('Details (PB5)'!$R$18=\"Y\",1,2),\"\")","v":""},{"$f":"IF(A58<>\"\",'Details (PB5)'!G18,\"\")","v":""},1,{"$f":"IF(A58<>\"\",'Details (PB5)'!$B$4,\"\")","v":""}]
[{"$f":"IF($A$58<>\"\",58,\"\")","v":""},null,{"$f":"IF($A$58<>\"\",506010,\"\")","v":""},null,{"$f":"$E$58","v":""},"",{"$f":"IF(A59<>\"\",INDEX('Data FA Lookup'!A:A,MATCH(E59,'Data FA Lookup'!D:D,0)),\"\")","v":""},"NON-FUNDED-PROGRAM",{"$f":"IF(E59<>\"\",IF('Details (PB5)'!$R$18=\"Y\",1,2),\"\")","v":""},{"$f":"IF($A$58<>\"\",'Details (PB5)'!J$18,\"\")","v":""},1,{"$f":"IF(A59<>\"\",'Details (PB5)'!$B$4,\"\")","v":""}]
[{"$f":"IF($A$58<>\"\",59,\"\")","v":""},null,{"$f":"IF($A$58<>\"\",506020,\"\")","v":""},null,"","",{"$f":"IF(A60<>\"\",INDEX('Data FA Lookup'!A:A,MATCH(E60,'Data FA Lookup'!D:D,0)),\"\")","v":""},"NON-FUNDED-PROGRAM",{"$f":"IF(E60<>\"\",IF('Details (PB5)'!$R$18=\"Y\",1,2),\"\")","v":""},{"$f":"IF($A$58<>\"\",'Details (PB5)'!K$18,\"\")","v":""},1,{"$f":"IF(A60<>\"\",'Details (PB5)'!$B$4,\"\")","v":""}]
[{"$f":"IF($A$58<>\"\",60,\"\")","v":""},null,{"$f":"IF($A$58<>\"\",506030,\"\")","v":""},null,"","",{"$f":"IF(A61<>\"\",INDEX('Data FA Lookup'!A:A,MATCH(E61,'Data FA Lookup'!D:D,0)),\"\")","v":""},"NON-FUNDED-PROGRAM",{"$f":"IF(E61<>\"\",IF('Details (PB5)'!$R$18=\"Y\",1,2),\"\")","v":""},{"$f":"IF($A$58<>\"\",'Details (PB5)'!L$18,\"\")","v":""},1,{"$f":"IF(A61<>\"\",'Details (PB5)'!$B$4,\"\")","v":""}]
[{"$f":"IF($A$58<>\"\",61,\"\")","v":""},null,{"$f":"IF($A$58<>\"\",506040,\"\")","v":""},null,"","",{"$f":"IF(A62<>\"\",INDEX('Data FA Lookup'!A:A,MATCH(E62,'Data FA Lookup'!D:D,0)),\"\")","v":""},"NON-FUNDED-PROGRAM",{"$f":"IF(E62<>\"\",IF('Details (PB5)'!$R$18=\"Y\",1,2),\"\")","v":""},{"$f":"IF($A$58<>\"\",'Details (PB5)'!M$18,\"\")","v":""},1,{"$f":"IF(A62<>\"\",'Details (PB5)'!$B$4,\"\")","v":""}]
[{"$f":"IF($A$58<>\"\",62,\"\")","v":""},null,{"$f":"IF($A$58<>\"\",506055,\"\")","v":""},null,"","",{"$f":"IF(A63<>\"\",INDEX('Data FA Lookup'!A:A,MATCH(E63,'Data FA Lookup'!D:D,0)),\"\")","v":""},"NON-FUNDED-PROGRAM",{"$f":"IF(E63<>\"\",IF('Details (PB5)'!$R$18=\"Y\",1,2),\"\")","v":""},{"$f":"IF($A$58<>\"\",'Details (PB5)'!N$18,\"\")","v":""},1,{"$f":"IF(A63<>\"\",'Details (PB5)'!$B$4,\"\")","v":""}]
[{"$f":"IF($A$58<>\"\",63,\"\")","v":""},null,{"$f":"IF($A$58<>\"\",506060,\"\")","v":""},null,"","",{"$f":"IF(A64<>\"\",INDEX('Data FA Lookup'!A:A,MATCH(E64,'Data FA Lookup'!D:D,0)),\"\")","v":""},"NON-FUNDED-PROGRAM",{"$f":"IF(E64<>\"\",IF('Details (PB5)'!$R$18=\"Y\",1,2),\"\")","v":""},{"$f":"IF($A$58<>\"\",'Details (PB5)'!O$18,\"\")","v":""},1,{"$f":"IF(A64<>\"\",'Details (PB5)'!$B$4,\"\")","v":""}]
[{"$f":"IF('Details (PB5)'!I19<>0,64,\"\")","v":""},null,{"$f":"IF(A65<>\"\",'Details (PB5)'!Q19,\"\")","v":""},null,{"$f":"IF(A65<>\"\",'Details (PB5)'!E19,\"\")","v":""},"",{"$f":"IF(A65<>\"\",INDEX('Data FA Lookup'!A:A,MATCH(E65,'Data FA Lookup'!D:D,0)),\"\")","v":""},"NON-FUNDED-PROGRAM",{"$f":"IF(E65<>\"\",IF('Details (PB5)'!$R$19=\"Y\",1,2),\"\")","v":""},{"$f":"IF(A65<>\"\",'Details (PB5)'!G19,\"\")","v":""},1,{"$f":"IF(A65<>\"\",'Details (PB5)'!$B$4,\"\")","v":""}]
[{"$f":"IF($A$65<>\"\",65,\"\")","v":""},null,{"$f":"IF($A$65<>\"\",506010,\"\")","v":""},null,{"$f":"$E$65","v":""},"",{"$f":"IF(A66<>\"\",INDEX('Data FA Lookup'!A:A,MATCH(E66,'Data FA Lookup'!D:D,0)),\"\")","v":""},"NON-FUNDED-PROGRAM",{"$f":"IF(E66<>\"\",IF('Details (PB5)'!$R$19=\"Y\",1,2),\"\")","v":""},{"$f":"IF($A$65<>\"\",'Details (PB5)'!J$19,\"\")","v":""},1,{"$f":"IF(A66<>\"\",'Details (PB5)'!$B$4,\"\")","v":""}]
[{"$f":"IF($A$65<>\"\",66,\"\")","v":""},null,{"$f":"IF($A$65<>\"\",506020,\"\")","v":""},null,"","",{"$f":"IF(A67<>\"\",INDEX('Data FA Lookup'!A:A,MATCH(E67,'Data FA Lookup'!D:D,0)),\"\")","v":""},"NON-FUNDED-PROGRAM",{"$f":"IF(E67<>\"\",IF('Details (PB5)'!$R$19=\"Y\",1,2),\"\")","v":""},{"$f":"IF($A$65<>\"\",'Details (PB5)'!K$19,\"\")","v":""},1,{"$f":"IF(A67<>\"\",'Details (PB5)'!$B$4,\"\")","v":""}]
[{"$f":"IF($A$65<>\"\",67,\"\")","v":""},null,{"$f":"IF($A$65<>\"\",506030,\"\")","v":""},null,"","",{"$f":"IF(A68<>\"\",INDEX('Data FA Lookup'!A:A,MATCH(E68,'Data FA Lookup'!D:D,0)),\"\")","v":""},"NON-FUNDED-PROGRAM",{"$f":"IF(E68<>\"\",IF('Details (PB5)'!$R$19=\"Y\",1,2),\"\")","v":""},{"$f":"IF($A$65<>\"\",'Details (PB5)'!L$19,\"\")","v":""},1,{"$f":"IF(A68<>\"\",'Details (PB5)'!$B$4,\"\")","v":""}]
[{"$f":"IF($A$65<>\"\",68,\"\")","v":""},null,{"$f":"IF($A$65<>\"\",506040,\"\")","v":""},null,"","",{"$f":"IF(A69<>\"\",INDEX('Data FA Lookup'!A:A,MATCH(E69,'Data FA Lookup'!D:D,0)),\"\")","v":""},"NON-FUNDED-PROGRAM",{"$f":"IF(E69<>\"\",IF('Details (PB5)'!$R$19=\"Y\",1,2),\"\")","v":""},{"$f":"IF($A$65<>\"\",'Details (PB5)'!M$19,\"\")","v":""},1,{"$f":"IF(A69<>\"\",'Details (PB5)'!$B$4,\"\")","v":""}]
[{"$f":"IF($A$65<>\"\",69,\"\")","v":""},null,{"$f":"IF($A$65<>\"\",506055,\"\")","v":""},null,"","",{"$f":"IF(A70<>\"\",INDEX('Data FA Lookup'!A:A,MATCH(E70,'Data FA Lookup'!D:D,0)),\"\")","v":""},"NON-FUNDED-PROGRAM",{"$f":"IF(E70<>\"\",IF('Details (PB5)'!$R$19=\"Y\",1,2),\"\")","v":""},{"$f":"IF($A$65<>\"\",'Details (PB5)'!N$19,\"\")","v":""},1,{"$f":"IF(A70<>\"\",'Details (PB5)'!$B$4,\"\")","v":""}]
[{"$f":"IF($A$65<>\"\",70,\"\")","v":""},null,{"$f":"IF($A$65<>\"\",506060,\"\")","v":""},null,"","",{"$f":"IF(A71<>\"\",INDEX('Data FA Lookup'!A:A,MATCH(E71,'Data FA Lookup'!D:D,0)),\"\")","v":""},"NON-FUNDED-PROGRAM",{"$f":"IF(E71<>\"\",IF('Details (PB5)'!$R$19=\"Y\",1,2),\"\")","v":""},{"$f":"IF($A$65<>\"\",'Details (PB5)'!O$19,\"\")","v":""},1,{"$f":"IF(A71<>\"\",'Details (PB5)'!$B$4,\"\")","v":""}]
[{"$f":"IF('Details (PB5)'!I21<>0,71,\"\")","v":""},null,{"$f":"IF(A72<>\"\",'Details (PB5)'!Q21,\"\")","v":""},null,{"$f":"IF(A72<>\"\",'Details (PB5)'!E21,\"\")","v":""},"",{"$f":"IF(A72<>\"\",INDEX('Data FA Lookup'!A:A,MATCH(E72,'Data FA Lookup'!D:D,0)),\"\")","v":""},"NON-FUNDED-PROGRAM",{"$f":"IF(E72<>\"\",IF('Details (PB5)'!$C$21=\"One-time\",1,2),\"\")","v":""},{"$f":"IF(A72<>\"\",'Details (PB5)'!G$21,\"\")","v":""},1,{"$f":"IF(A72<>\"\",'Details (PB5)'!$B$4,\"\")","v":""}]
[{"$f":"IF($A$72<>\"\",72,\"\")","v":""},null,{"$f":"IF($A$72<>\"\",506010,\"\")","v":""},null,{"$f":"$E$72","v":""},"",{"$f":"IF(A73<>\"\",INDEX('Data FA Lookup'!A:A,MATCH(E73,'Data FA Lookup'!D:D,0)),\"\")","v":""},"NON-FUNDED-PROGRAM",{"$f":"IF(E73<>\"\",IF('Details (PB5)'!$C$21=\"One-time\",1,2),\"\")","v":""},{"$f":"IF(A73<>\"\",'Details (PB5)'!J$21,\"\")","v":""},1,{"$f":"IF(A73<>\"\",'Details (PB5)'!$B$4,\"\")","v":""}]
[{"$f":"IF($A$72<>\"\",73,\"\")","v":""},null,{"$f":"IF($A$72<>\"\",506020,\"\")","v":""},null,"","",{"$f":"IF(A74<>\"\",INDEX('Data FA Lookup'!A:A,MATCH(E74,'Data FA Lookup'!D:D,0)),\"\")","v":""},"NON-FUNDED-PROGRAM",{"$f":"IF(E74<>\"\",IF('Details (PB5)'!$C$21=\"One-time\",1,2),\"\")","v":""},{"$f":"IF(A74<>\"\",'Details (PB5)'!K$21,\"\")","v":""},1,{"$f":"IF(A74<>\"\",'Details (PB5)'!$B$4,\"\")","v":""}]
[{"$f":"IF($A$72<>\"\",74,\"\")","v":""},null,{"$f":"IF($A$72<>\"\",506030,\"\")","v":""},null,"","",{"$f":"IF(A75<>\"\",INDEX('Data FA Lookup'!A:A,MATCH(E75,'Data FA Lookup'!D:D,0)),\"\")","v":""},"NON-FUNDED-PROGRAM",{"$f":"IF(E75<>\"\",IF('Details (PB5)'!$C$21=\"One-time\",1,2),\"\")","v":""},{"$f":"IF(A75<>\"\",'Details (PB5)'!L$21,\"\")","v":""},1,{"$f":"IF(A75<>\"\",'Details (PB5)'!$B$4,\"\")","v":""}]
[{"$f":"IF($A$72<>\"\",75,\"\")","v":""},null,{"$f":"IF($A$72<>\"\",506040,\"\")","v":""},null,"","",{"$f":"IF(A76<>\"\",INDEX('Data FA Lookup'!A:A,MATCH(E76,'Data FA Lookup'!D:D,0)),\"\")","v":""},"NON-FUNDED-PROGRAM",{"$f":"IF(E76<>\"\",IF('Details (PB5)'!$C$21=\"One-time\",1,2),\"\")","v":""},{"$f":"IF(A76<>\"\",'Details (PB5)'!M$21,\"\")","v":""},1,{"$f":"IF(A76<>\"\",'Details (PB5)'!$B$4,\"\")","v":""}]
[{"$f":"IF($A$72<>\"\",76,\"\")","v":""},null,{"$f":"IF($A$72<>\"\",506055,\"\")","v":""},null,"","",{"$f":"IF(A77<>\"\",INDEX('Data FA Lookup'!A:A,MATCH(E77,'Data FA Lookup'!D:D,0)),\"\")","v":""},"NON-FUNDED-PROGRAM",{"$f":"IF(E77<>\"\",IF('Details (PB5)'!$C$21=\"One-time\",1,2),\"\")","v":""},{"$f":"IF(A77<>\"\",'Details (PB5)'!N$21,\"\")","v":""},1,{"$f":"IF(A77<>\"\",'Details (PB5)'!$B$4,\"\")","v":""}]
[{"$f":"IF($A$72<>\"\",77,\"\")","v":""},null,{"$f":"IF($A$72<>\"\",506060,\"\")","v":""},null,"","",{"$f":"IF(A78<>\"\",INDEX('Data FA Lookup'!A:A,MATCH(E78,'Data FA Lookup'!D:D,0)),\"\")","v":""},"NON-FUNDED-PROGRAM",{"$f":"IF(E78<>\"\",IF('Details (PB5)'!$C$21=\"One-time\",1,2),\"\")","v":""},{"$f":"IF(A78<>\"\",'Details (PB5)'!O$21,\"\")","v":""},1,{"$f":"IF(A78<>\"\",'Details (PB5)'!$B$4,\"\")","v":""}]
[{"$f":"IF('Details (PB5)'!I22<>0,78,\"\")","v":""},null,{"$f":"IF(A79<>\"\",'Details (PB5)'!Q22,\"\")","v":""},null,{"$f":"IF(A79<>\"\",'Details (PB5)'!E22,\"\")","v":""},{"$f":"RIGHT(E79,4)","v":""},{"$f":"IF(A79<>\"\",INDEX('Data FA Lookup'!A:A,MATCH(E79,'Data FA Lookup'!D:D,0)),\"\")","v":""},"NON-FUNDED-PROGRAM",{"$f":"IF(E79<>\"\",2,\"\")","v":""},{"$f":"IF(A79<>\"\",'Details (PB5)'!G$22,\"\")","v":""},1,{"$f":"IF(A79<>\"\",'Details (PB5)'!$B$4,\"\")","v":""}]
[{"$f":"IF($A$79<>\"\",79,\"\")","v":""},null,{"$f":"IF($A$79<>\"\",506010,\"\")","v":""},null,{"$f":"$E$79","v":""},{"$f":"RIGHT(E80,4)","v":""},{"$f":"IF(A80<>\"\",INDEX('Data FA Lookup'!A:A,MATCH(E80,'Data FA Lookup'!D:D,0)),\"\")","v":""},"NON-FUNDED-PROGRAM",{"$f":"IF(E80<>\"\",2,\"\")","v":""},{"$f":"IF(A80<>\"\",'Details (PB5)'!J$22,\"\")","v":""},1,{"$f":"IF(A80<>\"\",'Details (PB5)'!$B$4,\"\")","v":""}]
[{"$f":"IF($A$79<>\"\",80,\"\")","v":""},null,{"$f":"IF($A$79<>\"\",506020,\"\")","v":""},null,"","",{"$f":"IF(A81<>\"\",INDEX('Data FA Lookup'!A:A,MATCH(E81,'Data FA Lookup'!D:D,0)),\"\")","v":""},"NON-FUNDED-PROGRAM","",{"$f":"IF(A81<>\"\",'Details (PB5)'!K$22,\"\")","v":""},1,{"$f":"IF(A81<>\"\",'Details (PB5)'!$B$4,\"\")","v":""}]
[{"$f":"IF($A$79<>\"\",81,\"\")","v":""},null,{"$f":"IF($A$79<>\"\",506030,\"\")","v":""},null,"","",{"$f":"IF(A82<>\"\",INDEX('Data FA Lookup'!A:A,MATCH(E82,'Data FA Lookup'!D:D,0)),\"\")","v":""},"NON-FUNDED-PROGRAM","",{"$f":"IF(A82<>\"\",'Details (PB5)'!L$22,\"\")","v":""},1,{"$f":"IF(A82<>\"\",'Details (PB5)'!$B$4,\"\")","v":""}]
[{"$f":"IF($A$79<>\"\",82,\"\")","v":""},null,{"$f":"IF($A$79<>\"\",506040,\"\")","v":""},null,"","",{"$f":"IF(A83<>\"\",INDEX('Data FA Lookup'!A:A,MATCH(E83,'Data FA Lookup'!D:D,0)),\"\")","v":""},"NON-FUNDED-PROGRAM","",{"$f":"IF(A83<>\"\",'Details (PB5)'!M$22,\"\")","v":""},1,{"$f":"IF(A83<>\"\",'Details (PB5)'!$B$4,\"\")","v":""}]
[{"$f":"IF($A$79<>\"\",83,\"\")","v":""},null,{"$f":"IF($A$79<>\"\",506055,\"\")","v":""},null,"","",{"$f":"IF(A84<>\"\",INDEX('Data FA Lookup'!A:A,MATCH(E84,'Data FA Lookup'!D:D,0)),\"\")","v":""},"NON-FUNDED-PROGRAM","",{"$f":"IF(A84<>\"\",'Details (PB5)'!N$22,\"\")","v":""},1,{"$f":"IF(A84<>\"\",'Details (PB5)'!$B$4,\"\")","v":""}]
[{"$f":"IF($A$79<>\"\",84,\"\")","v":""},null,{"$f":"IF($A$79<>\"\",506060,\"\")","v":""},null,"","",{"$f":"IF(A85<>\"\",INDEX('Data FA Lookup'!A:A,MATCH(E85,'Data FA Lookup'!D:D,0)),\"\")","v":""},"NON-FUNDED-PROGRAM","",{"$f":"IF(A85<>\"\",'Details (PB5)'!O$22,\"\")","v":""},1,{"$f":"IF(A85<>\"\",'Details (PB5)'!$B$4,\"\")","v":""}]
[{"$f":"IF('Details (PB5)'!I30<>0,85,\"\")","v":""},null,{"$f":"IF(A86<>\"\",'Details (PB5)'!G30,\"\")","v":""},null,{"$f":"IF(A86<>\"\",'Details (PB5)'!E30,\"\")","v":""},{"$f":"IF(A86<>\"\",'Details (PB5)'!C30,\"\")","v":""},{"$f":"IF(A86<>\"\",INDEX('Data FA Lookup'!A:A,MATCH(E86,'Data FA Lookup'!D:D,0)),\"\")","v":""},"NON-FUNDED-PROGRAM",{"$f":"IF(E86<>\"\",IF('Details (PB5)'!H30=\"One-time\",1,2),\"\")","v":""},{"$f":"IF(A86<>\"\",'Details (PB5)'!I30,\"\")","v":""},1,{"$f":"IF(A86<>\"\",'Details (PB5)'!$B$4,\"\")","v":""}]
[{"$f":"IF('Details (PB5)'!I31<>0,86,\"\")","v":""},null,{"$f":"IF(A87<>\"\",'Details (PB5)'!G31,\"\")","v":""},null,{"$f":"IF(A87<>\"\",'Details (PB5)'!E31,\"\")","v":""},{"$f":"IF(A87<>\"\",'Details (PB5)'!C31,\"\")","v":""},{"$f":"IF(A87<>\"\",INDEX('Data FA Lookup'!A:A,MATCH(E87,'Data FA Lookup'!D:D,0)),\"\")","v":""},"NON-FUNDED-PROGRAM",{"$f":"IF(E87<>\"\",IF('Details (PB5)'!H31=\"One-time\",1,2),\"\")","v":""},{"$f":"IF(A87<>\"\",'Details (PB5)'!I31,\"\")","v":""},1,{"$f":"IF(A87<>\"\",'Details (PB5)'!$B$4,\"\")","v":""}]
[{"$f":"IF('Details (PB5)'!I32<>0,87,\"\")","v":""},null,{"$f":"IF(A88<>\"\",'Details (PB5)'!G32,\"\")","v":""},null,{"$f":"IF(A88<>\"\",'Details (PB5)'!E32,\"\")","v":""},{"$f":"IF(A88<>\"\",'Details (PB5)'!C32,\"\")","v":""},{"$f":"IF(A88<>\"\",INDEX('Data FA Lookup'!A:A,MATCH(E88,'Data FA Lookup'!D:D,0)),\"\")","v":""},"NON-FUNDED-PROGRAM",{"$f":"IF(E88<>\"\",IF('Details (PB5)'!H32=\"One-time\",1,2),\"\")","v":""},{"$f":"IF(A88<>\"\",'Details (PB5)'!I32,\"\")","v":""},1,{"$f":"IF(A88<>\"\",'Details (PB5)'!$B$4,\"\")","v":""}]
[{"$f":"IF('Details (PB5)'!I33<>0,88,\"\")","v":""},null,{"$f":"IF(A89<>\"\",'Details (PB5)'!G33,\"\")","v":""},null,{"$f":"IF(A89<>\"\",'Details (PB5)'!E33,\"\")","v":""},{"$f":"IF(A89<>\"\",'Details (PB5)'!C33,\"\")","v":""},{"$f":"IF(A89<>\"\",INDEX('Data FA Lookup'!A:A,MATCH(E89,'Data FA Lookup'!D:D,0)),\"\")","v":""},"NON-FUNDED-PROGRAM",{"$f":"IF(E89<>\"\",IF('Details (PB5)'!H33=\"One-time\",1,2),\"\")","v":""},{"$f":"IF(A89<>\"\",'Details (PB5)'!I33,\"\")","v":""},1,{"$f":"IF(A89<>\"\",'Details (PB5)'!$B$4,\"\")","v":""}]
[{"$f":"IF('Details (PB5)'!I34<>0,89,\"\")","v":""},null,{"$f":"IF(A90<>\"\",'Details (PB5)'!G34,\"\")","v":""},null,{"$f":"IF(A90<>\"\",'Details (PB5)'!E34,\"\")","v":""},{"$f":"IF(A90<>\"\",'Details (PB5)'!C34,\"\")","v":""},{"$f":"IF(A90<>\"\",INDEX('Data FA Lookup'!A:A,MATCH(E90,'Data FA Lookup'!D:D,0)),\"\")","v":""},"NON-FUNDED-PROGRAM",{"$f":"IF(E90<>\"\",IF('Details (PB5)'!H34=\"One-time\",1,2),\"\")","v":""},{"$f":"IF(A90<>\"\",'Details (PB5)'!I34,\"\")","v":""},1,{"$f":"IF(A90<>\"\",'Details (PB5)'!$B$4,\"\")","v":""}]
[{"$f":"IF('Details (PB5)'!I35<>0,90,\"\")","v":""},null,{"$f":"IF(A91<>\"\",'Details (PB5)'!G35,\"\")","v":""},null,{"$f":"IF(A91<>\"\",'Details (PB5)'!E35,\"\")","v":""},{"$f":"IF(A91<>\"\",'Details (PB5)'!C35,\"\")","v":""},{"$f":"IF(A91<>\"\",INDEX('Data FA Lookup'!A:A,MATCH(E91,'Data FA Lookup'!D:D,0)),\"\")","v":""},"NON-FUNDED-PROGRAM",{"$f":"IF(E91<>\"\",IF('Details (PB5)'!H35=\"One-time\",1,2),\"\")","v":""},{"$f":"IF(A91<>\"\",'Details (PB5)'!I35,\"\")","v":""},1,{"$f":"IF(A91<>\"\",'Details (PB5)'!$B$4,\"\")","v":""}]
[{"$f":"IF('Details (PB5)'!I36<>0,91,\"\")","v":""},null,{"$f":"IF(A92<>\"\",'Details (PB5)'!G36,\"\")","v":""},null,{"$f":"IF(A92<>\"\",'Details (PB5)'!E36,\"\")","v":""},{"$f":"IF(A92<>\"\",'Details (PB5)'!C36,\"\")","v":""},{"$f":"IF(A92<>\"\",INDEX('Data FA Lookup'!A:A,MATCH(E92,'Data FA Lookup'!D:D,0)),\"\")","v":""},"NON-FUNDED-PROGRAM",{"$f":"IF(E92<>\"\",IF('Details (PB5)'!H36=\"One-time\",1,2),\"\")","v":""},{"$f":"IF(A92<>\"\",'Details (PB5)'!I36,\"\")","v":""},1,{"$f":"IF(A92<>\"\",'Details (PB5)'!$B$4,\"\")","v":""}]
[{"$f":"IF('Details (PB5)'!I37<>0,92,\"\")","v":""},null,{"$f":"IF(A93<>\"\",'Details (PB5)'!G37,\"\")","v":""},null,{"$f":"IF(A93<>\"\",'Details (PB5)'!E37,\"\")","v":""},{"$f":"IF(A93<>\"\",'Details (PB5)'!C37,\"\")","v":""},{"$f":"IF(A93<>\"\",INDEX('Data FA Lookup'!A:A,MATCH(E93,'Data FA Lookup'!D:D,0)),\"\")","v":""},"NON-FUNDED-PROGRAM",{"$f":"IF(E93<>\"\",IF('Details (PB5)'!H37=\"One-time\",1,2),\"\")","v":""},{"$f":"IF(A93<>\"\",'Details (PB5)'!I37,\"\")","v":""},1,{"$f":"IF(A93<>\"\",'Details (PB5)'!$B$4,\"\")","v":""}]
[{"$f":"IF('Details (PB5)'!I38<>0,93,\"\")","v":""},null,{"$f":"IF(A94<>\"\",'Details (PB5)'!G38,\"\")","v":""},null,{"$f":"IF(A94<>\"\",'Details (PB5)'!E38,\"\")","v":""},{"$f":"IF(A94<>\"\",'Details (PB5)'!C38,\"\")","v":""},{"$f":"IF(A94<>\"\",INDEX('Data FA Lookup'!A:A,MATCH(E94,'Data FA Lookup'!D:D,0)),\"\")","v":""},"NON-FUNDED-PROGRAM",{"$f":"IF(E94<>\"\",IF('Details (PB5)'!H38=\"One-time\",1,2),\"\")","v":""},{"$f":"IF(A94<>\"\",'Details (PB5)'!I38,\"\")","v":""},1,{"$f":"IF(A94<>\"\",'Details (PB5)'!$B$4,\"\")","v":""}]
[{"$f":"IF('Details (PB5)'!I39<>0,94,\"\")","v":""},null,{"$f":"IF(A95<>\"\",'Details (PB5)'!G39,\"\")","v":""},null,{"$f":"IF(A95<>\"\",'Details (PB5)'!E39,\"\")","v":""},{"$f":"IF(A95<>\"\",'Details (PB5)'!C39,\"\")","v":""},{"$f":"IF(A95<>\"\",INDEX('Data FA Lookup'!A:A,MATCH(E95,'Data FA Lookup'!D:D,0)),\"\")","v":""},"NON-FUNDED-PROGRAM",{"$f":"IF(E95<>\"\",IF('Details (PB5)'!H39=\"One-time\",1,2),\"\")","v":""},{"$f":"IF(A95<>\"\",'Details (PB5)'!I39,\"\")","v":""},1,{"$f":"IF(A95<>\"\",'Details (PB5)'!$B$4,\"\")","v":""}]
[{"$f":"IF('Details (PB5)'!I40<>0,ROW(A95)-1,\"\")","v":""},null,{"$f":"IF(A96<>\"\",'Details (PB5)'!G40,\"\")","v":""},null,{"$f":"IF(A96<>\"\",'Details (PB5)'!E40,\"\")","v":""},{"$f":"IF(A96<>\"\",'Details (PB5)'!C40,\"\")","v":""},{"$f":"IF(A96<>\"\",INDEX('Data FA Lookup'!A:A,MATCH(E96,'Data FA Lookup'!D:D,0)),\"\")","v":""},"NON-FUNDED-PROGRAM",{"$f":"IF(E96<>\"\",IF('Details (PB5)'!H40=\"One-time\",1,2),\"\")","v":""},{"$f":"IF(A96<>\"\",'Details (PB5)'!I40,\"\")","v":""},1,{"$f":"IF(A96<>\"\",'Details (PB5)'!$B$4,\"\")","v":""}]
[{"$f":"IF('Details (PB5)'!I41<>0,ROW(A96)-1,\"\")","v":""},null,{"$f":"IF(A97<>\"\",'Details (PB5)'!G41,\"\")","v":""},null,{"$f":"IF(A97<>\"\",'Details (PB5)'!E41,\"\")","v":""},{"$f":"IF(A97<>\"\",'Details (PB5)'!C41,\"\")","v":""},{"$f":"IF(A97<>\"\",INDEX('Data FA Lookup'!A:A,MATCH(E97,'Data FA Lookup'!D:D,0)),\"\")","v":""},"NON-FUNDED-PROGRAM",{"$f":"IF(E97<>\"\",IF('Details (PB5)'!H41=\"One-time\",1,2),\"\")","v":""},{"$f":"IF(A97<>\"\",'Details (PB5)'!I41,\"\")","v":""},1,{"$f":"IF(A97<>\"\",'Details (PB5)'!$B$4,\"\")","v":""}]

{"sheet":"Data ITS Cost","index":7,"n_rows":69,"n_cols":19,"rows_kept":69,"cut":false,"hidden":true,"merged":[[5,1,5,5],[5,9,5,11]]}
["Travis County",null,null,null,null,null,null,null,null,null,null,null,null,null,"Legend, Notations:"]
["Computer & Telecommunication Equipment",null,null,null,null,null,null,null,null,null,null,null,null,null,"Revised from FY15 costs"]
["FY 22 Budget Year - New Initiative",null,null,null,null,null,null,null,null,null,null,null,null,null,null,null,null,null," Please delete the CATV column as we do not manage this"]
["Source:","Sheryl Holder & CANT HABBARD"]
["Maintenance / Refresh","Annual"]
[null,"Computer Device",null,null,null,null,null,null,null,"Telephone Equipment"]
[null,"Personal Computer","Standard Mobile Notebook","Standard Workstation Notebook","Standard Mobile Tablet","Mobile Data Computer (MDC)",null,"Network Laser Basic",null,"Headset w/base","UC (VOIP) 7965 Branded Phone","UC (VOIP) 7945 Branded Phone"]
["Hardware"]
["Equipment",1200,1500,1750,2200,5500,null,2500]
["Vehicle Mounting HW",null,null,null,null,0]
["Network Port",0,0,0,0,null,null,0]
["  Total Equip (3001)",1200,1500,1750,2200,5500,null,2500,null,0,0,0,null,14650]
[]
["Software"]
["Device Office Licensing",0,0,0,0,0]
["Windows Vista Business All Lng Upg/SA Pack MVL Platform w/MDOP"]
["Core CALClient Access Lic All Lng Lic/SA Pack MVL Platform Device CAL",0,0,0,0,0]
["Enterprise CAL AllLng SAStepUP MVL Platform from Core DeviceCAL w/ Svcs",0,0,0,0,0]
["Application Sfw",0,0,0,0,0]
[]
["CAD Mobile Client/NetMotion Sfw",null,null,null,null,1000]
[]
["Network/Security",0,0,0,0,0]
[]
["      Total Novell",0,0,0,0,0,null,0,null,0,0,0]
[]
["        Total Security/Network",0,0,0,0,0,null,0,null,0,0,0]
[]
["Phone ISM Licenses",null,null,null,null,null,null,null,null,null,180,180]
[]
["        Total Software (510310)",0,0,0,0,1000,null,0,null,0,180,180,null,1360]
[]
["Other Equipment"]
["Equipment",null,null,null,null,null,null,null,null,150,310,310]
["PBX Port Costs"]
["  Total Other Equipment (510060)",0,0,0,null,0,null,0,null,150,310,310,0,770]
[]
["Annual Wireless Service and Card (511710)",null,null,null,null,500,null,null,null,null,null,null,null,500]
[]
[]
[]
["Maintenance"]
["Network Port",0,0,0,0,0,0,0]
[]
["CAD Mobile Client & NetMotion",null,null,null,null,201]
[]
["Persystent",null,null,null,null,0]
[]
[]
["Security",0,0,0,0,0]
[]
["NetIQ",0,0,0,0,0,null,0,null,0]
[]
["        Total Security/Network",0,0,0,0,0,null,0]
[]
[]
["        Total Maintenance (511550)",0,0,0,0,201,null,0,null,0,null,null,null,201]
[]
["Outside Services"]
["Installation",0,0,0,0,300]
["Vehicle Mounting Install",null,null,null,null,500]
[]
["Network Standard Communication Voice & Data Cable",800,800,800,800,800,null,800,null,null,800,825]
[]
["CATV Cabling & Outlet",null,null,null,null,null,null,null,null,null,null,null,null,null,"possibly $15 per month per unit, depending upon pending negotiations between Purchasing and TWC"]
["    Total Outside Services (6099)",800,800,800,800,1600,null,800,null,0,800,825,null,7225]
[]
[]
["      Grand Total",2000,2300,2550,3000,8801,null,3300,null,150,1290,1315,null,24706]

{"sheet":"Data Locations","index":8,"n_rows":106,"n_cols":3,"rows_kept":106,"cut":false,"hidden":true,"merged":[]}
["Person Work Loctn",null,"Pull from Work locations spreadsheet in SAP Ref lookups"]
["1100 Smith Road"]
["1101 Nueces"]
["11920 Wilson Parke Ave."]
["1210 Corvell City Road"]
["14000 Summit Drive"]
["200 W 8th St"]
["2003 Guadalupe Street"]
["205 West 9th Street"]
["209 West 9th Street"]
["2433 Ridgepoint Drive"]
["311 West 11th Street"]
["501 W. 11th Street"]
["509 West 9th Street"]
["5325 Airport Blvd."]
["5412 Lockhart Highway"]
["5501 Airport Blvd"]
["700 Lavaca Street"]
["8011-A Cameron Road - DO NOT USE"]
["8011-B Cameron Road - DO NOT USE"]
["9301 Johnny Morris Road"]
["Airport Training Facility"]
["Alliance Work Partners"]
["ARIC"]
["ARIC:Research and Planning (TCSO):OFF"]
["Arkansas Bend Park"]
["Austin Ridge"]
["Austin Ridge:Special Crimes (TCSO):OFF"]
["Austin State Hospital (TCSO):Offsite"]
["Balcones Canyon Lands Preserve"]
["Bee Creek Park/Sports Complex"]
["Blackwell-Thurman CJC"]
["Bob Wentz Park"]
["Brizendene House"]
["Civil and Family Courts Facility"]
["Clinic - Del Valle - DO NOT USE"]
["Clinic - Downtown - DO NOT USE"]
["CoA Center for Child Protection"]
["Comanche Trail"]
["CTECC"]
["Cyrus One Data Center"]
["East District Parks"]
["East Metro"]
["East Service Center"]
["EOB"]
["Expo Center"]
["Former Forensic Center/Sobering Center"]
["Gardner Betts Juvenile Center"]
["Gault Building"]
["Hamilton Pool Park"]
["Heman Marion Sweatt Courthouse"]
["Highland Mall"]
["Holt Building"]
["Holt Building - DO NOT USE"]
["Housing and Weatherization Services"]
["James T. Collier East Command Center"]
["Mansfield Dam Park"]
["Medical Examiner’s Office"]
["Mental Health Unit"]
["Motorola (TCSO):OFFSITE"]
["Ned Granger Building"]
["Northeast Metro Park (NEMP)"]
["Northshore"]
["NREQ Field Office-BCP"]
["Offsite Austin/TC HHS Svcs Dept"]
["Offsite: APD Main Office"]
["Pace Bend Park"]
["Palm Square"]
["PNR West"]
["Post Road"]
["Precinct Four Office Building"]
["Precinct One Office Building"]
["Precinct Three Office Building"]
["Precinct Two Office Building"]
["Price Daniel Sr Building"]
["Reimers Ranch Park"]
["Richard Moya Park"]
["River Ridge Elementary"]
["Ronald Earle Building"]
["Ruiz Building"]
["Rusk Building"]
["SMART Building"]
["SMART Building B - DO NOT USE"]
["Smith Road Building"]
["Southeast Metro Park (SEMP)"]
["Starflight Maintenance Hangar"]
["Steiner Ranch Area Elementary School"]
["TASBO"]
["TC Community Center-Del Valle"]
["TC Community Center-Jonestown"]
["TC Community Center-Manor"]
["TC Community Center-Oak Hill"]
["TC Community Center-Pflugerville"]
["TCCC at Del Valle"]
["TCSO Military Hold:No-site"]
["Tom Hughes Park"]
["Travis County Jail"]
["Travis County Tax Office-Satellite 1"]
["Travis State Jail"]
["University Medical Cntr at Brackenridge"]
["University Savings Building"]
["Webberville Park"]
["Wells Branch Elementary"]
["West Command Center"]
["West District Parks"]
["West Service Center"]

{"sheet":"Data 190s DptDiv","index":9,"n_rows":91,"n_cols":28,"rows_kept":91,"cut":false,"hidden":true,"merged":[]}
["Reference","FA","Dpt","Department/Division","Funds Center","Name","CAR?",null,"Match","Reference # Constructor\\",null,"Check by running S-KI4_38000038 - index of FCs",null,null,null,null,null,null,null,null,"List of 190 CAR FCs","as of 1/30/2024","Cost Center","Name","Description","Person Responsible","Department","Functional Area"]
[{"$f":"VALUE(J2)","v":1011110},1110,101,"Ctl Computer CAR-County Judge-GenAdm",1908000001,null,"CAR",null,{"$f":"MATCH(E2,W:W,0)","v":2},{"$f":"C2&B2","v":"1011110"},null,"FY16 Revisions (2/10 meeting Sumers, Broussard, Holder)",null,null,null,null,null,null,null,null,"pull from CC and Functions SAP ref - lookups folder",{"$f":"MATCH(W2,E:E,0)","v":2},1908000001,"190-101CARGenAdm0001","Ctl Computer CAR-County Judge-GenAdm","Chief Info Ofr","190","1110"]
[1011230,1230,101,"Ctl Computer CAR-County Judge-JuvSvs",1908010001,null,"CAR",null,{"$f":"MATCH(E3,W:W,0)","v":3},"1011230",null,"Remove duplicate values in Column A (Dept + Func Area)",null,null,null,null,null,null,null,null,"filter on 190, CAR only",{"$f":"MATCH(W3,E:E,0)","v":3},1908010001,"190-101CARJuvSvs0001","Ctl Computer CAR-County Judge-JuvSvs","Chief Info Ofr","190","1230"]
[1021110,1110,102,"Ctl Computer CAR-CC Pct 1-GenAdm",1908020001,null,"CAR",null,4,"1021110",null,"Replace Dept/Division description with FC 190 description",null,null,null,null,null,null,null,null,"compare to current list. Add as needed",4,1908020001,"190-102CARGenAdm0001","Ctl Computer CAR-CC Pct 1-GenAdm","Chief Info Ofr","190","1110"]
[1031110,1110,103,"Ctl Computer CAR-CC Pct 2-GenAdm",1908030001,null,"CAR",null,5,"1031110",null,"Replenish Dpt and FA codes (Reference values - must build manually from Dpt and FA)",null,null,null,null,null,null,null,null,null,5,1908030001,"190-103CARGenAdm0001","Ctl Computer CAR-CC Pct 2-GenAdm","Chief Info Ofr","190","1110"]
[1041110,1110,104,"Ctl Computer CAR-CC Pct 3-GenAdm",1908040001,null,"CAR",null,6,"1041110",null,"Need to replenish FC values for 190 that correspond to the new constructed Reference #'s",null,null,null,null,null,null,null,null,null,6,1908040001,"190-104CARGenAdm0001","Ctl Computer CAR-CC Pct 3-GenAdm","Chief Info Ofr","190","1110"]
[1051110,1110,105,"Ctl Computer CAR-CC Pct 4-GenAdm",1908050001,null,"CAR",null,7,"1051110","x","Remove building Dpt value from HT.E Div #, replace with a mid( of Funds Centers",null,null,null,null,null,null,null,null,null,7,1908050001,"190-105CARGenAdm0001","Ctl Computer CAR-CC Pct 4-GenAdm","Chief Info Ofr","190","1110"]
[1061120,1120,106,"Ctl Computer CAR-County Auditor-FinAdm",1908060001,null,"CAR",null,8,"1061120","x","Delete F and D HT.E columns, trigger Dpt code value from A values",null,null,null,null,null,null,null,null,null,8,1908060001,"190-106CARFinAdm0001","Ctl Computer CAR-County Auditor-FinAdm","Chief Info Ofr","190","1120"]
[1071120,1120,107,"Ctl Computer CAR-County Treasurer-FinAdm",1908070001,null,"CAR",null,9,"1071120",null,null,null,null,null,null,null,null,null,null,null,9,1908070001,"190-107CARFinAdm0001","Ctl Computer CAR-County Treasurer-FinAdm","Chief Info Ofr","190","1120"]
[1081130,1130,108,"Ctl Computer CAR-Tax Collector-TaxAdm",1908080001,null,"CAR",null,10,"1081130",null,"FY17 - no revisions needed - no new dpt 190 CCs",null,null,null,null,null,null,null,null,null,10,1908080001,"190-108CARTaxAdm0001","Ctl Computer CAR-Tax Collector-TaxAdm","Chief Info Ofr","190","1130"]
[1081150,1150,108,"Ctl Computer CAR-Tax Collector-ElnAdm",1908100001,null,"CAR",null,12,"1081150",null,null,null,null,null,null,null,null,null,null,null,12,1908090001,"190-108CARCrmJs0001","Ctl Computer CAR-Tax Collector-CrmJs","Chief Info Ofr","190","1210"]
[1081210,1210,108,"Ctl Computer CAR-Tax Collector-CrmJs",1908090001,null,"CAR",null,11,"1081210",null,"FY 18 - no revisions. No new 190 CAR FC's",null,null,null,null,null,null,null,null,null,11,1908100001,"190-108CARElnAdm0001","Ctl Computer CAR-Tax Collector-ElnAdm","Chief Info Ofr","190","1150"]
[1091120,1120,109,"Ctl Computer CAR-PBO-FinAdm",1908110001,null,"CAR",null,13,"1091120",null,null,null,null,null,null,null,null,null,null,null,13,1908110001,"190-109CARFinAdm0001","Ctl Computer CAR-PBO-FinAdm","Chief Info Ofr","190","1120"]
[1101110,1110,110,"Ctl Computer CAR-General Adm-GenAdm",1908120001,null,"CAR",null,14,"1101110",null,"FY 19 - No revisions (1/7/2019)",null,null,null,null,null,null,null,null,null,14,1908120001,"190-110CARGenAdm0001","Ctl Computer CAR-General Adm-GenAdm","Chief Info Ofr","190","1110"]
[1101510,1510,110,"Ctl Computer CAR-General Adm-Hlhcare",1908130001,null,"CAR",null,15,"1101510",null,null,null,null,null,null,null,null,null,null,null,15,1908130001,"190-110CARHlh0001","Ctl Computer CAR-General Adm-Hlhcare","Chief Info Ofr","190","1510"]
[1101610,1610,110,"Ctl Computer CAR-General Adm-EconDev",1908140001,null,"CAR",null,16,"1101610",null,"FY 23 - no new 190 CAR FCs",null,null,null,null,null,null,null,null,null,16,1908140001,"190-110CAREcon0001","Ctl Computer CAR-General Adm-EconDev","Chief Info Ofr","190","1610"]
[1111110,1110,111,"Ctl Computer CAR-HRMD-GenAdm",1908150001,null,"CAR",null,17,"1111110",null,null,null,null,null,null,null,null,null,null,null,17,1908150001,"190-111CARGenAdm0001","Ctl Computer CAR-HRMD-GenAdm","Chief Info Ofr","190","1110"]
[1121110,1110,112,"Ctl Computer CAR-ITS-GenAdm",1908160001,null,"CAR",null,18,"1121110",null,"FY 24 no new FCs (141 should be present, need to talk to ITS)",null,null,null,null,null,null,null,null,null,18,1908160001,"190-112CARGenAdm0001","Ctl Computer CAR-ITS-GenAdm","Chief Info Ofr","190","1110"]
[1131610,1610,113,"Ctl Computer CAR-EXPO Center-EconDev",1908170001,null,"CAR",null,19,"1131610",null,null,null,null,null,null,null,null,null,null,null,19,1908170001,"190-113CAREcon0001","Ctl Computer CAR-EXPO Center-EconDev","Chief Info Ofr","190","1610"]
[1141140,1140,114,"Ctl Computer CAR-Facilities Mgmt-FacMgmt",1908180001,null,"CAR",null,20,"1141140",null,null,null,null,null,null,null,null,null,null,null,20,1908180001,"190-114CARFac0001","Ctl Computer CAR-Facilities Mgmt-FacMgmt","Chief Info Ofr","190","1140"]
[1141610,1610,114,"Ctl Computer CAR-Facilities Mgmt-EconDev",1908190001,null,"CAR",null,21,"1141610",null,null,null,null,null,null,null,null,null,null,null,21,1908190001,"190-114CAREcon0001","Ctl Computer CAR-Facilities Mgmt-EconDev","Chief Info Ofr","190","1610"]
[1151120,1120,115,"Ctl Computer CAR-Purchasing-FinAdm",1908200001,null,"CAR",null,22,"1151120",null,null,null,null,null,null,null,null,null,null,null,22,1908200001,"190-115CARFinAdm0001","Ctl Computer CAR-Purchasing-FinAdm","Chief Info Ofr","190","1120"]
[1161530,1530,116,"Ctl Computer CAR-Veterans Svs-HumanSvs",1908210001,null,"CAR",null,23,"1161530",null,null,null,null,null,null,null,null,null,null,null,23,1908210001,"190-116CARHuman0001","Ctl Computer CAR-Veterans Svs-HumanSvs","Chief Info Ofr","190","1530"]
[1171630,1630,117,"Ctl Computer CAR-Historical Comm-Cul&Edu",1908220001,null,"CAR",null,24,"1171630",null,null,null,null,null,null,null,null,null,null,null,24,1908220001,"190-117CARCulEdu0001","Ctl Computer CAR-Historical Comm-Cul&Edu","Chief Info Ofr","190","1630"]
[1181530,1530,118,"Ctl Computer CAR-Agr Ext Serv-HumanSvs",1908230001,null,"CAR",null,25,"1181530",null,null,null,null,null,null,null,null,null,null,null,25,1908230001,"190-118CARHuman0001","Ctl Computer CAR-Agr Ext Serv-HumanSvs","Chief Info Ofr","190","1530"]
[1191210,1210,119,"Ctl Computer CAR-County Attorney-CrmJs",1908250001,null,"CAR",null,27,"1191210",null,null,null,null,null,null,null,null,null,null,null,27,1908240001,"190-119CARCivJs0001","Ctl Computer CAR-County Attorney-CivJs","Chief Info Ofr","190","1220"]
[1191220,1220,119,"Ctl Computer CAR-County Attorney-CivJs",1908240001,null,"CAR",null,26,"1191220",null,null,null,null,null,null,null,null,null,null,null,26,1908250001,"190-119CARCrmJs0001","Ctl Computer CAR-County Attorney-CrmJs","Chief Info Ofr","190","1210"]
[1201110,1110,120,"Ctl Computer CAR-County Clerk-GenAdm",1908260001,null,"CAR",null,28,"1201110",null,null,null,null,null,null,null,null,null,null,null,28,1908260001,"190-120CARGenAdm0001","Ctl Computer CAR-County Clerk-GenAdm","Chief Info Ofr","190","1110"]
[1201150,1150,120,"Ctl Computer CAR-County Clerk-ElnAdm",1908270001,null,"CAR",null,29,"1201150",null,null,null,null,null,null,null,null,null,null,null,29,1908270001,"190-120CARElnAdm0001","Ctl Computer CAR-County Clerk-ElnAdm","Chief Info Ofr","190","1150"]
[1201210,1210,120,"Ctl Computer CAR-County Clerk-CrmJs",1908290001,null,"CAR",null,31,"1201210",null,null,null,null,null,null,null,null,null,null,null,31,1908280001,"190-120CARCivJs0001","Ctl Computer CAR-County Clerk-CivJs","Chief Info Ofr","190","1220"]
[1201220,1220,120,"Ctl Computer CAR-County Clerk-CivJs",1908280001,null,"CAR",null,30,"1201220",null,null,null,null,null,null,null,null,null,null,null,30,1908290001,"190-120CARCrmJs0001","Ctl Computer CAR-County Clerk-CrmJs","Chief Info Ofr","190","1210"]
[1211210,1210,121,"Ctl Computer CAR-District Clerk-CrmJs",1908310001,null,"CAR",null,33,"1211210",null,null,null,null,null,null,null,null,null,null,null,33,1908300001,"190-121CARCivJs0001","Ctl Computer CAR-District Clerk-CivJs","Chief Info Ofr","190","1220"]
[1211220,1220,121,"Ctl Computer CAR-District Clerk-CivJs",1908300001,null,"CAR",null,32,"1211220",null,null,null,null,null,null,null,null,null,null,null,32,1908310001,"190-121CARCrmJs0001","Ctl Computer CAR-District Clerk-CrmJs","Chief Info Ofr","190","1210"]
[{"$f":"VALUE(J34)","v":1221220},1220,122,"Ctl Computer CAR-Civil Courts-CivJs",1908320001,null,"CAR",null,34,{"$f":"C34&B34","v":"1221220"},null,null,null,null,null,null,null,null,null,null,null,34,1908320001,"190-122CARCivJs0001","Ctl Computer CAR-Civil Courts-CivJs","Chief Info Ofr","190","1220"]
[1231210,1210,123,"Ctl Computer CAR-District Attorney-CrmJs",1908330001,null,"CAR",null,35,"1231210",null,null,null,null,null,null,null,null,null,null,null,35,1908330001,"190-123CARCrmJs0001","Ctl Computer CAR-District Attorney-CrmJs","Chief Info Ofr","190","1210"]
[1231220,1220,123,"Ctl Computer CAR-District Attorney-CivJs",1908340001,null,"CAR",null,36,"1231220",null,null,null,null,null,null,null,null,null,null,null,36,1908340001,"190-123CARCivJs0001","Ctl Computer CAR-District Attorney-CivJs","Chief Info Ofr","190","1220"]
[1241210,1210,124,"Ctl Computer CAR-Criminal Courts-CrmJs",1908350001,null,"CAR",null,37,"1241210",null,null,null,null,null,null,null,null,null,null,null,37,1908350001,"190-124CARCrmJs0001","Ctl Computer CAR-Criminal Courts-CrmJs","Chief Info Ofr","190","1210"]
[1251220,1220,125,"Ctl Computer CAR-Probate Court-CivJs",1908360001,null,"CAR",null,38,"1251220",null,null,null,null,null,null,null,null,null,null,null,38,1908360001,"190-125CARCivJs0001","Ctl Computer CAR-Probate Court-CivJs","Chief Info Ofr","190","1220"]
[1261210,1210,126,"Ctl Computer CAR-JP 1-CrmJs",1908380001,null,"CAR",null,40,"1261210",null,null,null,null,null,null,null,null,null,null,null,40,1908370001,"190-126CARCivJs0001","Ctl Computer CAR-JP 1-CivJs","Chief Info Ofr","190","1220"]
[1261220,1220,126,"Ctl Computer CAR-JP 1-CivJs",1908370001,null,"CAR",null,39,"1261220",null,null,null,null,null,null,null,null,null,null,null,39,1908380001,"190-126CARCrmJs0001","Ctl Computer CAR-JP 1-CrmJs","Chief Info Ofr","190","1210"]
[1271210,1210,127,"Ctl Computer CAR-JP 2-CrmJs",1908400001,null,"CAR",null,42,"1271210",null,null,null,null,null,null,null,null,null,null,null,42,1908390001,"190-127CARCivJs0001","Ctl Computer CAR-JP 2-CivJs","Chief Info Ofr","190","1220"]
[1271220,1220,127,"Ctl Computer CAR-JP 2-CivJs",1908390001,null,"CAR",null,41,"1271220",null,null,null,null,null,null,null,null,null,null,null,41,1908400001,"190-127CARCrmJs0001","Ctl Computer CAR-JP 2-CrmJs","Chief Info Ofr","190","1210"]
[1281210,1210,128,"Ctl Computer CAR-JP 3-CrmJs",1908420001,null,"CAR",null,44,"1281210",null,null,null,null,null,null,null,null,null,null,null,44,1908410001,"190-128CARCivJs0001","Ctl Computer CAR-JP 3-CivJs","Chief Info Ofr","190","1220"]
[1281220,1220,128,"Ctl Computer CAR-JP 3-CivJs",1908410001,null,"CAR",null,43,"1281220",null,null,null,null,null,null,null,null,null,null,null,43,1908420001,"190-128CARCrmJs0001","Ctl Computer CAR-JP 3-CrmJs","Chief Info Ofr","190","1210"]
[1291210,1210,129,"Ctl Computer CAR-JP 4-CrmJs",1908440001,null,"CAR",null,46,"1291210",null,null,null,null,null,null,null,null,null,null,null,46,1908430001,"190-129CARCivJs0001","Ctl Computer CAR-JP 4-CivJs","Chief Info Ofr","190","1220"]
[1291220,1220,129,"Ctl Computer CAR-JP 4-CivJs",1908430001,null,"CAR",null,45,"1291220",null,null,null,null,null,null,null,null,null,null,null,45,1908440001,"190-129CARCrmJs0001","Ctl Computer CAR-JP 4-CrmJs","Chief Info Ofr","190","1210"]
[1301210,1210,130,"Ctl Computer CAR-JP 5-CrmJs",1908460001,null,"CAR",null,48,"1301210",null,null,null,null,null,null,null,null,null,null,null,48,1908450001,"190-130CARCivJs0001","Ctl Computer CAR-JP 5-CivJs","Chief Info Ofr","190","1220"]
[1301220,1220,130,"Ctl Computer CAR-JP 5-CivJs",1908450001,null,"CAR",null,47,"1301220",null,null,null,null,null,null,null,null,null,null,null,47,1908460001,"190-130CARCrmJs0001","Ctl Computer CAR-JP 5-CrmJs","Chief Info Ofr","190","1210"]
[1311310,1310,131,"Ctl Computer CAR-Constable 1-LE",1908470001,null,"CAR",null,49,"1311310",null,null,null,null,null,null,null,null,null,null,null,49,1908470001,"190-131CARLE0001","Ctl Computer CAR-Constable 1-LE","Chief Info Ofr","190","1310"]
[1321310,1310,132,"Ctl Computer CAR-Constable 2-LE",1908480001,null,"CAR",null,50,"1321310",null,null,null,null,null,null,null,null,null,null,null,50,1908480001,"190-132CARLE0001","Ctl Computer CAR-Constable 2-LE","Chief Info Ofr","190","1310"]
[1331310,1310,133,"Ctl Computer CAR-Constable 3-LE",1908490001,null,"CAR",null,51,"1331310",null,null,null,null,null,null,null,null,null,null,null,51,1908490001,"190-133CARLE0001","Ctl Computer CAR-Constable 3-LE","Chief Info Ofr","190","1310"]
[1341310,1310,134,"Ctl Computer CAR-Constable 4-LE",1908500001,null,"CAR",null,52,"1341310",null,null,null,null,null,null,null,null,null,null,null,52,1908500001,"190-134CARLE0001","Ctl Computer CAR-Constable 4-LE","Chief Info Ofr","190","1310"]
[1351310,1310,135,"Ctl Computer CAR-Constable 5-LE",1908510001,null,"CAR",null,53,"1351310",null,null,null,null,null,null,null,null,null,null,null,53,1908510001,"190-135CARLE0001","Ctl Computer CAR-Constable 5-LE","Chief Info Ofr","190","1310"]
[1361220,1220,136,"Ctl Computer CAR-Dispute Resol Ctr-CivJs",1908520001,null,"CAR",null,54,"1361220",null,null,null,null,null,null,null,null,null,null,null,54,1908520001,"190-136CARCivJs0001","Ctl Computer CAR-Dispute Resol Ctr-CivJs","Chief Info Ofr","190","1220"]
[1371310,1310,137,"Ctl Computer CAR-Sheriff-LE",1908530001,null,"CAR",null,55,"1371310",null,null,null,null,null,null,null,null,null,null,null,55,1908530001,"190-137CARLE0001","Ctl Computer CAR-Sheriff-LE","Chief Info Ofr","190","1310"]
[1371410,1410,137,"Ctl Computer CAR-Sheriff-HsgBkg",1908540001,null,"CAR",null,56,"1371410",null,null,null,null,null,null,null,null,null,null,null,56,1908540001,"190-137CARHsgBkg0001","Ctl Computer CAR-Sheriff-HsgBkg","Chief Info Ofr","190","1410"]
[1381310,1310,138,"Ctl Computer CAR-Medical Examiner-LE",1908550001,null,"CAR",null,57,"1381310",null,null,null,null,null,null,null,null,null,null,null,57,1908550001,"190-138CARLE0001","Ctl Computer CAR-Medical Examiner-LE","Chief Info Ofr","190","1310"]
[1391420,1420,139,"Ctl Computer CAR-CSCD-Svsn",1908560001,null,"CAR",null,58,"1391420",null,null,null,null,null,null,null,null,null,null,null,58,1908560001,"190-139CARSvsn0001","Ctl Computer CAR-CSCD-Svsn","Chief Info Ofr","190","1420"]
[1401420,1420,140,"Ctl Computer CAR-TCCES-Svsn",1908570001,null,"CAR",null,59,"1401420",null,null,null,null,null,null,null,null,null,null,null,59,1908570001,"190-140CARSvsn0001","Ctl Computer CAR-TCCES-Svsn","Chief Info Ofr","190","1420"]
[1421410,1410,142,"Ctl Computer CAR-Pretrial Svs-HsgBkg",1908590001,null,"CAR",null,61,"1421410",null,null,null,null,null,null,null,null,null,null,null,61,1908580001,"190-142CARSvsn0001","Ctl Computer CAR-Pretrial Services-Svsn","Chief Info Ofr","190","1420"]
[1421420,1420,142,"Ctl Computer CAR-Pretrial Services-Svsn",1908580001,null,"CAR",null,60,"1421420",null,null,null,null,null,null,null,null,null,null,null,60,1908590001,"190-142CARHsgBkg0001","Ctl Computer CAR-Pretrial Svs-HsgBkg","Chief Info Ofr","190","1410"]
[1431230,1230,143,"Ctl Computer CAR-Juv Public Dfdr-JuvSvs",1908600001,null,"CAR",null,62,"1431230",null,null,null,null,null,null,null,null,null,null,null,62,1908600001,"190-143CARJuvSvs0001","Ctl Computer CAR-Juv Public Dfdr-JuvSvs","Chief Info Ofr","190","1230"]
[1441210,1210,144,"Ctl Computer CAR-Public Defender-CrimJs",1908890001,null,"CAR",null,91,"1441210",null,null,null,null,null,null,null,null,null,null,null,64,1908610001,"190-145CARJuvSvs0001","Ctl Computer CAR-Juv Probation-JuvSvs","Chief Info Ofr","190","1230"]
[1451230,1230,145,"Ctl Computer CAR-Juv Probation-JuvSvs",1908610001,null,"CAR",null,63,"1451230",null,null,null,null,null,null,null,null,null,null,null,66,1908620001,"190-147CARHlh0001","Ctl Computer CAR-Emergency Svs-Hlhcare","Chief Info Ofr","190","1510"]
[1471320,1320,147,"Ctl Computer CAR-Emergency Svs-EmrgMgmt",1908630001,null,"CAR",null,65,"1471320",null,null,null,null,null,null,null,null,null,null,null,65,1908630001,"190-147CAREmrg0001","Ctl Computer CAR-Emergency Svs-EmrgMgmt","Chief Info Ofr","190","1320"]
[{"$f":"VALUE(J66)","v":1471510},1510,147,"Ctl Computer CAR-Emergency Svs-Hlhcare",1908620001,null,"CAR",null,64,{"$f":"C66&B66","v":"1471510"},null,null,null,null,null,null,null,null,null,null,null,70,1908640001,"190-149CARRdBg0001","Ctl Computer CAR-TNR-RdBg","Chief Info Ofr","190","1710"]
[1491140,1140,149,"Ctl Computer CAR-TNR-FacMgmt",1908670001,null,"CAR",null,{"$f":"MATCH(E67,W:W,0)","v":69},"1491140",null,null,null,null,null,null,null,null,null,null,null,{"$f":"MATCH(W67,E:E,0)","v":69},1908650001,"190-149CARParks0001","Ctl Computer CAR-TNR-Parks&Rec","Chief Info Ofr","190","1630"]
[1491530,1530,149,"Ctl Computer CAR-TNR-HumanSvs",1908710001,null,"CAR",null,73,"1491530",null,null,null,null,null,null,null,null,null,null,null,73,1908660001,"190-149CARConser0001","Ctl Computer CAR-TNR-ConservNR","Chief Info Ofr","190","1750"]
[1491630,1630,149,"Ctl Computer CAR-TNR-Parks&Rec",1908650001,null,"CAR",null,67,"1491630",null,null,null,null,null,null,null,null,null,null,null,67,1908670001,"190-149CARFac0001","Ctl Computer CAR-TNR-FacMgmt","Chief Info Ofr","190","1140"]
[1491710,1710,149,"Ctl Computer CAR-TNR-RdBg",1908640001,null,"CAR",null,66,"1491710",null,null,null,null,null,null,null,null,null,null,null,71,1908680001,"190-149CARDrng0001","Ctl Computer CAR-TNR-Drng","Chief Info Ofr","190","1730"]
[1491730,1730,149,"Ctl Computer CAR-TNR-Drng",1908680001,null,"CAR",null,70,"1491730",null,null,null,null,null,null,null,null,null,null,null,74,1908690001,"190-149CARSntn0001","Ctl Computer CAR-TNR-Sanitation","Chief Info Ofr","190","1760"]
[1491740,1740,149,"Ctl Computer CAR-TNR-DevRegIn",1908700001,null,"CAR",null,72,"1491740",null,null,null,null,null,null,null,null,null,null,null,72,1908700001,"190-149CARDevReg0001","Ctl Computer CAR-TNR-DevRegIn","Chief Info Ofr","190","1740"]
[1491750,1750,149,"Ctl Computer CAR-TNR-ConservNR",1908660001,null,"CAR",null,68,"1491750",null,null,null,null,null,null,null,null,null,null,null,68,1908710001,"190-149CARHuman0001","Ctl Computer CAR-TNR-HumanSvs","Chief Info Ofr","190","1530"]
[1491760,1760,149,"Ctl Computer CAR-TNR-Sanitation",1908690001,null,"CAR",null,71,"1491760",null,null,null,null,null,null,null,null,null,null,null,75,1908720001,"190-154CARGenAdm0001","Ctl Computer CAR-Civil Service-GenAdm","Chief Info Ofr","190","1110"]
[1541110,1110,154,"Ctl Computer CAR-Civil Service-GenAdm",1908720001,null,"CAR",null,74,"1541110",null,null,null,null,null,null,null,null,null,null,null,76,1908730001,"190-155CARCrmJs0001","Ctl Computer CAR-CJP-CrmJs","Chief Info Ofr","190","1210"]
[1551210,1210,155,"Ctl Computer CAR-CJP-CrmJs",1908730001,null,"CAR",null,75,"1551210",null,null,null,null,null,null,null,null,null,null,null,81,1908740001,"190-155CARHlh0001","Ctl Computer CAR-CJP-Hlhcare","Chief Info Ofr","190","1510"]
[1551230,1230,155,"Ctl Computer CAR-CJP-JuvSvs",1908770001,null,"CAR",null,79,"1551230",null,null,null,null,null,null,null,null,null,null,null,79,1908750001,"190-155CAREmrg0001","Ctl Computer CAR-CJP-EmrgMgmt","Chief Info Ofr","190","1320"]
[1551310,1310,155,"Ctl Computer CAR-CJP-LE",1908780001,null,"CAR",null,80,"1551310",null,null,null,null,null,null,null,null,null,null,null,80,1908760001,"190-155CARSvsn0001","Ctl Computer CAR-CJP-Svsn","Chief Info Ofr","190","1420"]
[1551320,1320,155,"Ctl Computer CAR-CJP-EmrgMgmt",1908750001,null,"CAR",null,77,"1551320",null,null,null,null,null,null,null,null,null,null,null,77,1908770001,"190-155CARJuvSvs0001","Ctl Computer CAR-CJP-JuvSvs","Chief Info Ofr","190","1230"]
[1551420,1420,155,"Ctl Computer CAR-CJP-Svsn",1908760001,null,"CAR",null,78,"1551420",null,null,null,null,null,null,null,null,null,null,null,78,1908780001,"190-155CARLE0001","Ctl Computer CAR-CJP-LE","Chief Info Ofr","190","1310"]
[1551510,1510,155,"Ctl Computer CAR-CJP-Hlhcare",1908740001,null,"CAR",null,76,"1551510",null,null,null,null,null,null,null,null,null,null,null,82,1908790001,"190-157CARGenAdm0001","Ctl Computer CAR-CRS-GenAdm","Chief Info Ofr","190","1110"]
[1571110,1110,157,"Ctl Computer CAR-RMCR-GenAdm",1908790001,null,"CAR",null,81,"1571110",null,null,null,null,null,null,null,null,null,null,null,84,1908800001,"190-157CARCivJs0001","Ctl Computer CAR-CRS-CivJs","Chief Info Ofr","190","1220"]
[1571210,1210,157,"Ctl Computer CAR-RMCR-CrmJs",1908810001,null,"CAR",null,83,"1571210",null,null,null,null,null,null,null,null,null,null,null,83,1908810001,"190-157CARCrmJs0001","Ctl Computer CAR-CRS-CrmJs","Chief Info Ofr","190","1210"]
[1571220,1220,157,"Ctl Computer CAR-RMCR-CivJs",1908800001,null,"CAR",null,82,"1571220",null,null,null,null,null,null,null,null,null,null,null,86,1908820001,"190-158CARHlh0001","Ctl Computer CAR-HHS-Hlhcare","Chief Info Ofr","190","1510"]
[1581230,1230,158,"Ctl Computer CAR-HHS-JuvSvs",1908850001,null,"CAR",null,87,"1581230",null,null,null,null,null,null,null,null,null,null,null,87,1908830001,"190-158CARPbcHlh0001","Ctl Computer CAR-HHS-PbcHlh","Chief Info Ofr","190","1520"]
[1581510,1510,158,"Ctl Computer CAR-HHS-Hlhcare",1908820001,null,"CAR",null,84,"1581510",null,null,null,null,null,null,null,null,null,null,null,88,1908840001,"190-158CARHuman0001","Ctl Computer CAR-HHS-HumanSvs","Chief Info Ofr","190","1530"]
[1581520,1520,158,"Ctl Computer CAR-HHS-PbcHlh",1908830001,null,"CAR",null,85,"1581520",null,null,null,null,null,null,null,null,null,null,null,85,1908850001,"190-158CARJuvSvs0001","Ctl Computer CAR-HHS-JuvSvs","Chief Info Ofr","190","1230"]
[1581530,1530,158,"Ctl Computer CAR-HHS-HumanSvs",1908840001,null,"CAR",null,86,"1581530",null,null,null,null,null,null,null,null,null,null,null,89,1908860001,"190-159CARHlh0001","Ctl Computer CAR-EMS-Hlhcare","Chief Info Ofr","190","1510"]
[1591510,1510,159,"Ctl Computer CAR-EMS-Hlhcare",1908860001,null,"CAR",null,88,"1591510",null,null,null,null,null,null,null,null,null,null,null,91,1908870001,"190-193CARCivJs0001","Ctl Computer CAR-Legally Mtd Fees-CivJs","Chief Info Ofr","190","1220"]
[1931210,1210,193,"Ctl Computer CAR-Legally Mtd Fees-CrmJs",1908880001,null,"CAR",null,90,"1931210",null,null,null,null,null,null,null,null,null,null,null,90,1908880001,"190-194CARCrmJs0001","Ctl Computer CAR-Legally Mtd Fees-CrmJs","Chief Info Ofr","190","1210"]
[1931220,1220,193,"Ctl Computer CAR-Legally Mtd Fees-CivJs",1908870001,null,"CAR",null,89,"1931220",null,null,null,null,null,null,null,null,null,null,null,63,1908890001,"190-144CARPD0001","Ctl Computer CAR-Public Defender-CrimJs","Chief Info Ofr","190","1210"]

{"sheet":"Data TNR CAR FC's for Detail","index":10,"n_rows":54,"n_cols":14,"rows_kept":54,"cut":false,"hidden":true,"merged":[]}
["DptNum","TNR CAR FC",null,null,"DptName",null,null,null,"Removed","DptNum","TNR CAR FC",null,null,"DptName"]
[101,1498040001,"149CARGenAdm0001","TNR CAR-GenAdm GF","County Judge",null,null,null,null,1490160001,1498020001,"149CARSanitation0001","TNR CAR-Sanitation GF","TNR ONSITE SEWAGE"]
[102,1498040001,"149CARGenAdm0001","TNR CAR-GenAdm GF","County Commissioner - Precinct One"]
[103,1498040001,"149CARGenAdm0001","TNR CAR-GenAdm GF","County Commissioner - Precinct Two"]
[104,1498040001,"149CARGenAdm0001","TNR CAR-GenAdm GF","County Commissioner - Precinct Three"]
[105,1498040001,"149CARGenAdm0001","TNR CAR-GenAdm GF","County Commissioner - Precinct Four"]
[106,1498040001,"149CARGenAdm0001","TNR CAR-GenAdm GF","County Auditor"]
[107,1498040001,"149CARGenAdm0001","TNR CAR-GenAdm GF","County Treasurer"]
[108,1498040001,"149CARGenAdm0001","TNR CAR-GenAdm GF","Tax Assessor - Collector"]
[109,1498040001,"149CARGenAdm0001","TNR CAR-GenAdm GF","Planning and Budget"]
[110,1498040001,"149CARGenAdm0001","TNR CAR-GenAdm GF","General Administration"]
[111,1498040001,"149CARGenAdm0001","TNR CAR-GenAdm GF","Human Resources Management"]
[112,1498040001,"149CARGenAdm0001","TNR CAR-GenAdm GF","Information Technology Services (ITS)"]
[114,1498040001,"149CARGenAdm0001","TNR CAR-GenAdm GF","Facilities Management"]
[115,1498040001,"149CARGenAdm0001","TNR CAR-GenAdm GF","Purchasing"]
[116,1498040001,"149CARGenAdm0001","TNR CAR-GenAdm GF","Veterans Services"]
[117,1498040001,"149CARGenAdm0001","TNR CAR-GenAdm GF","Historical Commission"]
[119,1498050001,"149CARCrmJs0001","TNR CAR-CrmJs GF","County Attorney"]
[120,1498040001,"149CARGenAdm0001","TNR CAR-GenAdm GF","County Clerk"]
[121,1498040001,"149CARGenAdm0001","TNR CAR-GenAdm GF","District Clerk"]
[122,1498050001,"149CARCrmJs0001","TNR CAR-CrmJs GF","Civil Courts"]
[123,1498050001,"149CARCrmJs0001","TNR CAR-CrmJs GF","District Attorney"]
[124,1498050001,"149CARCrmJs0001","TNR CAR-CrmJs GF","Criminal Courts"]
[125,1498050001,"149CARCrmJs0001","TNR CAR-CrmJs GF","Probate Court"]
[126,1498050001,"149CARCrmJs0001","TNR CAR-CrmJs GF","Justice of the Peace - Precinct One"]
[127,1498050001,"149CARCrmJs0001","TNR CAR-CrmJs GF","Justice of the Peace - Precinct Two"]
[128,1498050001,"149CARCrmJs0001","TNR CAR-CrmJs GF","Justice of the Peace - Precinct Three"]
[129,1498050001,"149CARCrmJs0001","TNR CAR-CrmJs GF","Justice of the Peace - Precinct Four"]
[130,1498050001,"149CARCrmJs0001","TNR CAR-CrmJs GF","Justice of the Peace - Precinct Five"]
[131,1498060001,"149CARLE0001","TNR CAR-LE GF","Constable - Precinct One"]
[132,1498060001,"149CARLE0001","TNR CAR-LE GF","Constable - Precinct Two"]
[133,1498060001,"149CARLE0001","TNR CAR-LE GF","Constable - Precinct Three"]
[134,1498060001,"149CARLE0001","TNR CAR-LE GF","Constable - Precinct Four"]
[135,1498060001,"149CARLE0001","TNR CAR-LE GF","Constable - Precinct Five"]
[136,1498050001,"149CARCrmJs0001","TNR CAR-CrmJs GF","Dispute Resolution Center"]
[137,1498060001,"149CARLE0001","TNR CAR-LE GF","Sheriff"]
[1370440001,1498050001,"149CARCrmJs0001","TNR CAR-CrmJs GF","SHERIFF CORRECTIONS"]
[138,1498040001,"149CARGenAdm0001","TNR CAR-GenAdm GF","Medical Examiner"]
[139,1498050001,"149CARCrmJs0001","TNR CAR-CrmJs GF","Community Supervision and Corrections"]
[140,1498050001,"149CARCrmJs0001","TNR CAR-CrmJs GF","Counseling and Education Services"]
[142,1498050001,"149CARCrmJs0001","TNR CAR-CrmJs GF","Pretrial Services"]
[143,1498050001,"149CARCrmJs0001","TNR CAR-CrmJs GF","Juvenile Public Defender"]
[144,1498050001,"149CARCrmJs0001","TNR CAR-CrmJs GF","Public Defender's Office"]
[145,1498050001,"149CARCrmJs0001","TNR CAR-CrmJs GF","Juvenile Probation"]
[147,1498080001,"149CARHumSv0001","TNR CAR-HumSv GF","Emergency Services"]
[149,1498040001,"149CARGenAdm0001","TNR CAR-GenAdm GF","TNR"]
[1490350145,1498000001,"149CARRdBg0001","TNR CAR- Roads & Bridges GF","TNR FLEET ROAD & BRIDGE FUND"]
[1490220001,1498030001,"149CARParksRec0001","TNR CAR- Parks & Rec GF","TNR PARKS"]
[1490200001,1498000001,"149CARRdBg0001","TNR CAR- Roads & Bridges GF","TNR ROAD MAINTENANCE"]
[154,1498050001,"149CARCrmJs0001","TNR CAR-CrmJs GF","Civil Service Commission"]
[155,1498050001,"149CARCrmJs0001","TNR CAR-CrmJs GF","Justice Planning"]
[157,1498040001,"149CARGenAdm0001","TNR CAR-GenAdm GF","Communications and Records Services"]
[158,1498080001,"149CARHumSv0001","TNR CAR-HumSv GF","Health and Human Services"]
[159,1498080001,"149CARHumSv0001","TNR CAR-HumSv GF","Emergency Medical Services"]

{"sheet":"Data CIs PB6","index":11,"n_rows":84,"n_cols":19,"rows_kept":84,"cut":false,"hidden":true,"merged":[]}
["Full Description","Short Description","Commitment Item","AVC CI","Rollup Exclusion","FY 19 no change","Removed -->",null,"Full Description","Short Description","Commitment Item","AVC CI","Rollup Exclusion",null,"Miscellaneous Centrally Budgeted Equipment Dropdown",null,null,null,"Manually Derived"]
["Aircraft and Boating Supplies & Equipment","Arcrft&Boat Sup&Eqp",510010,510010,null,null,null,null,"Cap Outlay Sv-Bridges","CpOtSv-Bridges",521010,521010,null,null,"Full Description","Short Description","Commitment Item","AVC CI"]
["Automobile Repairs & Maintenance","Auto Reprs&Mnt",511520,511010,null,null,null,null,"Cap Outlay Sv-Building Improvements","CpOtSv-Bldg Imp",521020,521020,null,null,"Maintenance","Maintenance",511520,511520]
["Building Maintenance Supplies & Equipment","Bldg Mnt Sup&Eqp",510030,510010,null,null,null,null,"Cap Outlay Sv-Infrastructure Drainage","CpOtSv-InfraDrng",521030,521030,null,null,"Fuel","Fuel",510120,510120]
["Building Repairs & Maintenance","Bldg Reprs&Mnt",511530,511010,null,null,null,null,"Cap Outlay Sv-Infrastructure Roads","CpOtSv-Infra Rds",521040,521040,null,null,"Capital Outlay-Aircraft & Boating Equipment","CapOut-Arcrft&BtEqp",520010,522010]
["Cap Outlay Mtrl-Building Improvements","CpOtMt-Bldg Imp",522010,522010,null,null,null,null,"Cap Outlay Sv-Infrastructure Sidewalks","CpOtSv-Infra Sdwlks",521050,521050,null,null,"Capital Outlay-Automobiles","CapOut-Autos",520020,522010]
["Cap Outlay Mtrl-Buildings","CpOtMt-Bldgs",522020,522010,null,null,null,null,"Cap Outlay Sv-Installation-Equipment","CpOtSv-Install Eqp",521085,521085,null,null,"Capital Outlay-Automotive Repair & Equipment","CapOut-Auto Repr&Eqp",520030,522010]
["Cap Outlay Mtrl-Improvements Other","CpOtMt-Imp Oth",522030,522010,null,null,null,null,"Cap Outlay Sv-Installation-Software","CpOtSv-Install Sfw",521090,521090,null,null,"Capital Outlay-Building Maintenance Equipment","CapOut-Bldg Mnt Eqp",520040,522010]
["Cap Outlay Mtrl-Infrastructure/Improvements","CpOtMt-Infra/Imp",522040,522010,null,null,null,null,"Cap Outlay Sv-Park Improvements","CpOtSv-Park Imp",521060,521060,null,null,"Capital Outlay-Computer Equipment","CapOut-Cmp Eqp",520050,522010]
["Cap Outlay Mtrl-Land","CpOtMt-Land",522050,522010,null,null,null,null,"Cap Outlay Sv-Right of Way/Easements","CpOtSv-ROWEasmnt",521070,521070,null,null,"Capital Outlay-Custodial Equipment","CapOut-Custodial Eqp",520060,522010]
["Cap Outlay Mtrl-Land-Right-of-Way","CpOtMt-Land-ROW",522060,522010,null,null,null,null,"Cap Outlay Sv-Road Construction","CpOtSv-Rd Cnstn",521080,521080,null,null,"Capital Outlay-Educational/Communication Equipment","CapOut-Edu/Comm Eqp",520070,522010]
["Cap Outlay Mtrl-Leasehold Improvements","CpOtMt-LHI",522070,522010,null,null,null,null,"CSCD Grant Designated Equipment","CSCDGrtEqp",510035,510010,null,null,"Capital Outlay-Election Equipment","CapOut-Election Eqp",520080,522010]
["Cap Outlay Mtrl-Park Improvements","CpOtMt-Park Imp",522080,522010,null,null,null,null,null,null,null,null,null,null,"Capital Outlay-Electrical Equipment","CapOut-ElectricalEqp",520090,522010]
["Cap Outlay Mtrl-Sign Traffic Control Equipment","CpOtMt-SignTfcCtrlEq",522090,522010,null,null,null,null,null,null,null,null,null,null,"Capital Outlay-Groundskeeping Equipment","CapOut-Grndkpg Eqp",520100,522010]
["Cap Outlay Sv-Installation-Software","CpOtSv-Install Sfw",521090,522010,null,null,null,null,null,null,null,null,null,null,"Capital Outlay-Institutional Equipment","CapOut-InstitutnlEqp",520110,522010]
["Capital Outlay-Aircraft & Boating Equipment","CapOut-Arcrft&BtEqp",520010,522010,null,null,null,null,null,null,null,null,null,null,"Capital Outlay-Kitchen Equipment","CapOut-Kitchen Eqp",520120,522010]
["Capital Outlay-Automobiles","CapOut-Autos",520020,522010,null,null,null,null,null,null,null,null,null,null,"Capital Outlay-Laboratory Equipment","CapOut-LaboratoryEqp",520130,522010]
["Capital Outlay-Automotive Repair & Equipment","CapOut-Auto Repr&Eqp",520030,522010,null,null,null,null,null,null,null,null,null,null,"Capital Outlay-Law Enforcement Equipment","CapOut-Law Enf Eqp",520140,522010]
["Capital Outlay-Building Maintenance Equipment","CapOut-Bldg Mnt Eqp",520040,522010,null,null,null,null,null,null,null,null,null,null,"Capital Outlay-Medical/Dental/Safety Equipment","CapOut-MedDntlSftyEq",520150,522010]
["Capital Outlay-Computer Equipment","CapOut-Cmp Eqp",520050,522010,null,null,null,null,null,null,null,null,null,null,"Capital Outlay-Office Equipment","CapOut-Ofc Eqp",520160,522010]
["Capital Outlay-Custodial Equipment","CapOut-Custodial Eqp",520060,522010,null,null,null,null,null,null,null,null,null,null,"Capital Outlay-Office Furniture","CapOut-Ofc Furn",520170,522010]
["Capital Outlay-Educational/Communication Equipment","CapOut-Edu/Comm Eqp",520070,522010,null,null,null,null,null,null,null,null,null,null,"Capital Outlay-Other Equipment","CapOut-Oth Eqp",520180,522010]
["Capital Outlay-Election Equipment","CapOut-Election Eqp",520080,522010,null,null,null,null,null,null,null,null,null,null,"Capital Outlay-Recreational Equipment","CapOut-Rec Eqp",520190,522010]
["Capital Outlay-Electrical Equipment","CapOut-ElectricalEqp",520090,522010,null,null,null,null,null,null,null,null,null,null,"Capital Outlay-Road and Highway Equipment","CapOut-Rd & HwyEqp",520200,522010]
["Capital Outlay-Groundskeeping Equipment","CapOut-Grndkpg Eqp",520100,522010,null,null,null,null,null,null,null,null,null,null,"Capital Outlay-Software","CapOut-Sfw",520210,522010]
["Capital Outlay-Institutional Equipment","CapOut-InstitutnlEqp",520110,522010,null,null,null,null,null,null,null,null,null,null,"Capital Outlay-Traffic Control/Signage Equipment","CapOut-TfcCtrl/SgEqp",520220,522010]
["Capital Outlay-Kitchen Equipment","CapOut-Kitchen Eqp",520120,522010,null,null,null,null,null,null,null,null,null,null,"Cap Outlay Sv-Installation-Software","CpOtSv-Install Sfw",521090,522010]
["Capital Outlay-Laboratory Equipment","CapOut-LaboratoryEqp",520130,522010,null,null,null,null,null,null,null,null,null,null,"Cap Outlay Mtrl-Building Improvements","CpOtMt-Bldg Imp",522010,522010]
["Capital Outlay-Law Enforcement Equipment","CapOut-Law Enf Eqp",520140,522010,null,null,null,null,null,null,null,null,null,null,"Cap Outlay Mtrl-Buildings","CpOtMt-Bldgs",522020,522010]
["Capital Outlay-Medical/Dental/Safety Equipment","CapOut-MedDntlSftyEq",520150,522010,null,null,null,null,null,null,null,null,null,null,"Cap Outlay Mtrl-Improvements Other","CpOtMt-Imp Oth",522030,522010]
["Capital Outlay-Office Equipment","CapOut-Ofc Eqp",520160,522010,null,null,null,null,null,null,null,null,null,null,"Cap Outlay Mtrl-Infrastructure/Improvements","CpOtMt-Infra/Imp",522040,522010]
["Capital Outlay-Office Furniture","CapOut-Ofc Furn",520170,522010,null,null,null,null,null,null,null,null,null,null,"Cap Outlay Mtrl-Land","CpOtMt-Land",522050,522010]
["Capital Outlay-Other Equipment","CapOut-Oth Eqp",520180,522010,null,null,null,null,null,null,null,null,null,null,"Cap Outlay Mtrl-Land-Right-of-Way","CpOtMt-Land-ROW",522060,522010]
["Capital Outlay-Recreational Equipment","CapOut-Rec Eqp",520190,522010,null,null,null,null,null,null,null,null,null,null,"Cap Outlay Mtrl-Leasehold Improvements","CpOtMt-LHI",522070,522010]
["Capital Outlay-Road and Highway Equipment","CapOut-Rd & HwyEqp",520200,522010,null,null,null,null,null,null,null,null,null,null,"Cap Outlay Mtrl-Park Improvements","CpOtMt-Park Imp",522080,522010]
["Capital Outlay-Software","CapOut-Sfw",520210,522010,null,null,null,null,null,null,null,null,null,null,"Cap Outlay Mtrl-Sign Traffic Control Equipment","CpOtMt-SignTfcCtrlEq",522090,522010]
["Capital Outlay-Traffic Control/Signage Equipment","CapOut-TfcCtrl/SgEqp",520220,522010]
["Chemical Supplies & Equipment","Chemical Sup&Eqp",510040,510010]
["Clothing & Uniforms","Clothing & Uniforms",510050,510010]
["Communication Supplies & Equipment","Comm Sup&Eqp",510060,510010]
["Computer Equipment & Peripherals","CmpEqp & Peripherals",510070,510010]
["Construction Services","Cnstn Sv",511973,511010]
["Custodial Supplies & Equipment","Custodial Sup&Eqp",510080,510010]
["Disposal Service","Disposal Sv",511920,511010]
["Electrical Supplies & Equipment","Electrical Sup&Eqp",510100,510010]
["Environmental Impact Services","Env Impact Sv",511780,511010]
["Furniture & Office Equipment Repairs & Maintenance","Furn&OfcEqpReprs&Mnt",511540,511010]
["Groundskeeping Supplies & Equipment","Grndkpg Sup&Eqp",510130,510010]
["Hardware Supplies & Equipment","Hdw Sup&Eqp",510140,510010]
["Hardware/Software Install Services","Hdw/Sfw Install Sv",511810,511010]
["Hardware/Software Maintenance","Hdw/Sfw Mnt",511550,511550]
["Hazardous Material Removal","Hz Mat Removal",511830,511010]
["Helicopter/Aircraft Repairs & Maintenance","Helicopter Reprs&Mnt",511560,511010]
["Industrial Supplies & Equipment","Industrial Sup&Eqp",510360,510010]
["Information Retrieval/Data Services","Info Retrieval Svs",511875,511010]
["Institutional Equipment","Institutional Eqp",510150,510010]
["IT Consulting","IT Cslt",511870,511010]
["Kitchen Supplies & Equipment","Kitchen Sup&Eqp",510160,510010]
["Laboratory Supplies & Equipment","Laboratory Sup&Eqp",510170,510010]
["Law Enforcement Supplies & Equipment","Law Enf Sup&Eqp",510180,510010]
["Medical/Dental Supplies & Equipment","Med/Dental Sup&Eqp",510190,510010]
["Non Hazardous Waste Hauling/Removal","NonHz Removal",511820,511010]
["Office Equipment","Ofc Eqp",510200,510010]
["Office Furniture","Ofc Furn",510210,510010]
["Office Supplies","Ofc Sup",510220,510010]
["Other Consulting Services","Oth Cslt Sv",511890,511010]
["Other Equipment Repairs & Maintenance","Oth Eqp Reprs&Mnt",511620,511010]
["Other Services","Oth Sv",511900,511010]
["Other Supplies & Equipment","Oth Sup&Eqp",510240,510010]
["Paint Supplies & Equipment","Paint Sup&Eqp",510250,510010]
["Radios/TV Communication Repairs & Maintenance","RadiosTVCommReprsMnt",511570,511570,"EMS"]
["Recreational Supplies & Equipment","Recreational Sup&Eqp",510270,510010]
["Reimbursable Construction Services","Rmb Cnstn Sv",511930,511010]
["Road and Highway Supplies & Equipment","Rd & Hwy Sup&Eqp",510280,510010]
["Road Machinery & Equipment Repairs & Maintenance","Rd Mach&EqpReprs&Mnt",511580,511010]
["Road Material-Asphaltic","Rd Mat-Asphaltic",510290,510010]
["Road Material-Non Asphaltic","Rd Mat-NonAsphaltc",510300,510010]
["Road Repairs & Maintenance","Rd Reprs&Mnt",511590,511010]
["Safety Supplies & Equipment","Safety Sup&Eqp",510260,510010]
["Septic Tank Repairs & Maintenance","Septic TankReprs&Mnt",511600,511010]
["Software","Software",510310,510010]
["Traffic Control/Signage Supplies & Equipment","Tfc Ctrl/Sg Sup&Eqp",510330,510010]
["Vehicle Supplies & Equipment","Vehicle Sup&Eqp",510340,510340,"TNR"]
["Veterinary/Livestock Supplies & Equipment","Vet/Livestck Sup&Eqp",510350,510010]

{"sheet":"Data SBP Measures","index":12,"n_rows":3627,"n_cols":35,"rows_kept":2250,"cut":true,"hidden":true,"merged":[],"bounds":{"rows_first":1000,"rows_last":250,"rows_between":1000,"halvings":1}}
["Program name","Long name","PM Performance Measure","Dpt Concat","PM Type",null,"Program name","Long name",null,null,"Program name","Long name","PM Type",null,null,null,null,"SBP Measures Table in SAP Lookups.",null,"PM Performance Measure","Department","Active Status","PM Program","PM Unit of Measure","PM Type","PM Reporting Category","PM Data Source","PM Projection Assumptions","PM Calculation Method Pt 1","PM Calculation Method Pt 2","Program name","Long name","medium name","Concat Measure Lookup","SBP Program Name"]
[{"$f":"'Data SBP Measures'!$AI11&\" - \"&'Data SBP Measures'!$U11","v":"Accounting Department - 108"},{"$f":"'Data SBP Measures'!$AF11","v":"# of ACH payments to jurisdictions"},{"$f":"'Data SBP Measures'!$T11","v":"101"},{"$f":"'Data SBP Measures'!$U11&B2","v":"108# of ACH payments to jurisdictions"},{"$f":"'Data SBP Measures'!$Y11","v":"EACH"},null,{"$f":"'Performance Measures'!J3","v":""},null,null,null,"Accounting Department - 108","# of ACH payments to jurisdictions",null,null,null,null,null,"Updated ",null,"1","106","Y","178","Auditor's Office","PERCENT","OUTCOME","ADOPTEDBUD",null,null,null,"Auditor's Office","Unqualified audit opinion (as measured by financial data & transactions) (100%=unqualified)",null,{"$f":"'Data SBP Measures'!$AF2&'Data SBP Measures'!$AE2& \" - \"& 'Data SBP Measures'!$U2","v":"Unqualified audit opinion (as measured by financial data & transactions) (100%=unqualified)Auditor's Office - 106"},{"$f":"_xlfn.XLOOKUP(VALUE(W2),'Data SBP Programs'!O:O,'Data SBP Programs'!S:S)","v":"Auditor's Office"}]
[{"$f":"'Data SBP Measures'!$AI2442&\" - \"&'Data SBP Measures'!$U2442","v":"Accounting Department - 108"},{"$f":"'Data SBP Measures'!$AF2442","v":"# of ACH transactions (MV related)"},{"$f":"'Data SBP Measures'!$T2442","v":"3055"},{"$f":"'Data SBP Measures'!$U2442&B3","v":"108# of ACH transactions (MV related)"},{"$f":"'Data SBP Measures'!$Y2442","v":"EACH"},null,null,null,null,null,"Accounting Department - 108","# of ACH transactions (MV related)",null,null,null,null,null,"2024-01-31",null,"1000","149","Y","132","On-Site Wastewater","PERCENT","OUTCOME","BLACKBOOK",null,null,null,"On-Site Wastewater","% of Construction Inspections completed the next day",null,{"$f":"'Data SBP Measures'!$AF3&'Data SBP Measures'!$AE3& \" - \"& 'Data SBP Measures'!$U3","v":"% of Construction Inspections completed the next dayOn-Site Wastewater - 149"},{"$f":"_xlfn.XLOOKUP(VALUE(W3),'Data SBP Programs'!O:O,'Data SBP Programs'!S:S)","v":"On-Site Wastewater"}]
[{"$f":"'Data SBP Measures'!$AI2444&\" - \"&'Data SBP Measures'!$U2444","v":"Accounting Department - 108"},{"$f":"'Data SBP Measures'!$AF2444","v":"# of deposits (Main Office, Satellite, FSD, PT)"},{"$f":"'Data SBP Measures'!$T2444","v":"3057"},{"$f":"'Data SBP Measures'!$U2444&B4","v":"108# of deposits (Main Office, Satellite, FSD, PT)"},{"$f":"'Data SBP Measures'!$Y2444","v":"EACH"},null,null,null,null,null,"Accounting Department - 108","# of deposits (Main Office, Satellite, FSD, PT)",null,null,null,null,null,"Program name by long name",null,"1001","149","Y","132","On-Site Wastewater","PERCENT","OUTCOME","BLACKBOOK",null,null,null,"On-Site Wastewater","% of Driveway Inspections Completed the next day",null,{"$f":"'Data SBP Measures'!$AF4&'Data SBP Measures'!$AE4& \" - \"& 'Data SBP Measures'!$U4","v":"% of Driveway Inspections Completed the next dayOn-Site Wastewater - 149"},{"$f":"_xlfn.XLOOKUP(VALUE(W4),'Data SBP Programs'!O:O,'Data SBP Programs'!S:S)","v":"On-Site Wastewater"}]
[{"$f":"'Data SBP Measures'!$AI2441&\" - \"&'Data SBP Measures'!$U2441","v":"Accounting Department - 108"},{"$f":"'Data SBP Measures'!$AF2441","v":"# of FTEs"},{"$f":"'Data SBP Measures'!$T2441","v":"3054"},{"$f":"'Data SBP Measures'!$U2441&B5","v":"108# of FTEs"},{"$f":"'Data SBP Measures'!$Y2441","v":"EACH"},null,null,null,null,null,"Accounting Department - 108","# of FTEs",null,null,null,null,null,null,null,"1002","149","Y","132","On-Site Wastewater","PERCENT","OUTCOME","BLACKBOOK",null,null,null,"On-Site Wastewater","% of Subdivision Plans reviewed in 45 days",null,{"$f":"'Data SBP Measures'!$AF5&'Data SBP Measures'!$AE5& \" - \"& 'Data SBP Measures'!$U5","v":"% of Subdivision Plans reviewed in 45 daysOn-Site Wastewater - 149"},{"$f":"_xlfn.XLOOKUP(VALUE(W5),'Data SBP Programs'!O:O,'Data SBP Programs'!S:S)","v":"On-Site Wastewater"}]
[{"$f":"'Data SBP Measures'!$AI97&\" - \"&'Data SBP Measures'!$U97","v":"Accounting Department - 108"},{"$f":"'Data SBP Measures'!$AF97","v":"# of motor vehicle refund checks issued"},{"$f":"'Data SBP Measures'!$T97","v":"113"},{"$f":"'Data SBP Measures'!$U97&B6","v":"108# of motor vehicle refund checks issued"},{"$f":"'Data SBP Measures'!$Y97","v":"EACH"},null,null,null,null,null,"Accounting Department - 108","# of motor vehicle refund checks issued",null,null,null,null,null,null,null,"1003","149","Y","133","Park Services","ACRES","OUTPUT","ADOPTEDBUD",null,null,null,"Park Services","Acres Treated with Prescribed Burns",null,{"$f":"'Data SBP Measures'!$AF6&'Data SBP Measures'!$AE6& \" - \"& 'Data SBP Measures'!$U6","v":"Acres Treated with Prescribed BurnsPark Services - 149"},{"$f":"_xlfn.XLOOKUP(VALUE(W6),'Data SBP Programs'!O:O,'Data SBP Programs'!S:S)","v":"Park Services"}]
[{"$f":"'Data SBP Measures'!$AI115&\" - \"&'Data SBP Measures'!$U115","v":"Accounting Department - 108"},{"$f":"'Data SBP Measures'!$AF115","v":"# of tax refund checks audited and issued"},{"$f":"'Data SBP Measures'!$T115","v":"115"},{"$f":"'Data SBP Measures'!$U115&B7","v":"108# of tax refund checks audited and issued"},{"$f":"'Data SBP Measures'!$Y115","v":"EACH"},null,null,null,null,null,"Accounting Department - 108","# of tax refund checks audited and issued",null,null,null,null,null,null,null,"1005","149","Y","133","Park Services","EACH","OUTPUT","BLACKBOOK",null,null,null,"Park Services","Number of Native Trees Planted",null,{"$f":"'Data SBP Measures'!$AF7&'Data SBP Measures'!$AE7& \" - \"& 'Data SBP Measures'!$U7","v":"Number of Native Trees PlantedPark Services - 149"},{"$f":"_xlfn.XLOOKUP(VALUE(W7),'Data SBP Programs'!O:O,'Data SBP Programs'!S:S)","v":"Park Services"}]
[{"$f":"'Data SBP Measures'!$AI2443&\" - \"&'Data SBP Measures'!$U2443","v":"Accounting Department - 108"},{"$f":"'Data SBP Measures'!$AF2443","v":"# of transactions (Cash, CC, ACH (push and pull), Check)"},{"$f":"'Data SBP Measures'!$T2443","v":"3056"},{"$f":"'Data SBP Measures'!$U2443&B8","v":"108# of transactions (Cash, CC, ACH (push and pull), Check)"},{"$f":"'Data SBP Measures'!$Y2443","v":"EACH"},null,null,null,null,null,"Accounting Department - 108","# of transactions (Cash, CC, ACH (push and pull), Check)",null,null,null,null,null,null,null,"1006","149","Y","133","Park Services","EACH","OUTPUT","BLACKBOOK",null,null,null,"Park Services","Number of Priority 1 Hazardous Trees Removed or Pruned",null,{"$f":"'Data SBP Measures'!$AF8&'Data SBP Measures'!$AE8& \" - \"& 'Data SBP Measures'!$U8","v":"Number of Priority 1 Hazardous Trees Removed or PrunedPark Services - 149"},{"$f":"_xlfn.XLOOKUP(VALUE(W8),'Data SBP Programs'!O:O,'Data SBP Programs'!S:S)","v":"Park Services"}]
[{"$f":"'Data SBP Measures'!$AI2221&\" - \"&'Data SBP Measures'!$U2221","v":"Accounting Division - 121"},{"$f":"'Data SBP Measures'!$AF2221","v":"# of AG cases"},{"$f":"'Data SBP Measures'!$T2221","v":"2738"},{"$f":"'Data SBP Measures'!$U2221&B9","v":"121# of AG cases"},{"$f":"'Data SBP Measures'!$Y2221","v":"EACH"},null,null,null,null,null,"Accounting Division - 121","# of AG cases",null,null,null,null,null,null,null,"1007","149","Y","133","Park Services","EACH","OUTPUT","ADOPTEDBUD",null,null,null,"Park Services","Number of Self-initiated Park Ranger Patrols",null,{"$f":"'Data SBP Measures'!$AF9&'Data SBP Measures'!$AE9& \" - \"& 'Data SBP Measures'!$U9","v":"Number of Self-initiated Park Ranger PatrolsPark Services - 149"},{"$f":"_xlfn.XLOOKUP(VALUE(W9),'Data SBP Programs'!O:O,'Data SBP Programs'!S:S)","v":"Park Services"}]
[{"$f":"'Data SBP Measures'!$AI2222&\" - \"&'Data SBP Measures'!$U2222","v":"Accounting Division - 121"},{"$f":"'Data SBP Measures'!$AF2222","v":"# of appeals processed"},{"$f":"'Data SBP Measures'!$T2222","v":"2739"},{"$f":"'Data SBP Measures'!$U2222&B10","v":"121# of appeals processed"},{"$f":"'Data SBP Measures'!$Y2222","v":"EACH"},null,null,null,null,null,"Accounting Division - 121","# of appeals processed",null,null,null,null,null,null,null,"1008","149","Y","133","Park Services","EACH","OUTPUT","BLACKBOOK",null,null,null,"Park Services","Number of Social Media Followers",null,{"$f":"'Data SBP Measures'!$AF10&'Data SBP Measures'!$AE10& \" - \"& 'Data SBP Measures'!$U10","v":"Number of Social Media FollowersPark Services - 149"},{"$f":"_xlfn.XLOOKUP(VALUE(W10),'Data SBP Programs'!O:O,'Data SBP Programs'!S:S)","v":"Park Services"}]
[{"$f":"'Data SBP Measures'!$AI2234&\" - \"&'Data SBP Measures'!$U2234","v":"Accounting Division - 121"},{"$f":"'Data SBP Measures'!$AF2234","v":"# of Civil bonds received and recorded"},{"$f":"'Data SBP Measures'!$T2234","v":"2751"},{"$f":"'Data SBP Measures'!$U2234&B11","v":"121# of Civil bonds received and recorded"},{"$f":"'Data SBP Measures'!$Y2234","v":"EACH"},null,null,null,null,null,"Accounting Division - 121","# of Civil bonds received and recorded",null,null,null,null,null,null,null,"101","108","Y","18","Accounting Department","EACH","OUTPUT","NEITHER",null,null,null,"Accounting Department","# of ACH payments to jurisdictions",null,{"$f":"'Data SBP Measures'!$AF11&'Data SBP Measures'!$AE11& \" - \"& 'Data SBP Measures'!$U11","v":"# of ACH payments to jurisdictionsAccounting Department - 108"},{"$f":"_xlfn.XLOOKUP(VALUE(W11),'Data SBP Programs'!O:O,'Data SBP Programs'!S:S)","v":"Accounting Department"}]
[{"$f":"'Data SBP Measures'!$AI2220&\" - \"&'Data SBP Measures'!$U2220","v":"Accounting Division - 121"},{"$f":"'Data SBP Measures'!$AF2220","v":"# of CPS cases"},{"$f":"'Data SBP Measures'!$T2220","v":"2737"},{"$f":"'Data SBP Measures'!$U2220&B12","v":"121# of CPS cases"},{"$f":"'Data SBP Measures'!$Y2220","v":"EACH"},null,null,null,null,null,"Accounting Division - 121","# of CPS cases",null,null,null,null,null,null,null,"1013","149","Y","134","Planning and Geographic Information Systems (GIS)","EACH","OUTPUT","BLACKBOOK",null,null,null,"Planning and Geographic Information Systems (GIS)","# of 1-1 meetings attended",null,{"$f":"'Data SBP Measures'!$AF12&'Data SBP Measures'!$AE12& \" - \"& 'Data SBP Measures'!$U12","v":"# of 1-1 meetings attendedPlanning and Geographic Information Systems (GIS) - 149"},{"$f":"_xlfn.XLOOKUP(VALUE(W12),'Data SBP Programs'!O:O,'Data SBP Programs'!S:S)","v":"Planning and Geographic Information Systems (GIS)"}]
[{"$f":"'Data SBP Measures'!$AI782&\" - \"&'Data SBP Measures'!$U782","v":"Accounting Division - 121"},{"$f":"'Data SBP Measures'!$AF782","v":"# of Criminal Bonds received and recorded"},{"$f":"'Data SBP Measures'!$T782","v":"1841"},{"$f":"'Data SBP Measures'!$U782&B13","v":"121# of Criminal Bonds received and recorded"},{"$f":"'Data SBP Measures'!$Y782","v":"EACH"},null,null,null,null,null,"Accounting Division - 121","# of Criminal Bonds received and recorded",null,null,null,null,null,null,null,"1014","149","Y","134","Planning and Geographic Information Systems (GIS)","EACH","OUTPUT","BLACKBOOK",null,null,null,"Planning and Geographic Information Systems (GIS)","# of alternative public engagement efforts completed",null,{"$f":"'Data SBP Measures'!$AF13&'Data SBP Measures'!$AE13& \" - \"& 'Data SBP Measures'!$U13","v":"# of alternative public engagement efforts completedPlanning and Geographic Information Systems (GIS) - 149"},{"$f":"_xlfn.XLOOKUP(VALUE(W13),'Data SBP Programs'!O:O,'Data SBP Programs'!S:S)","v":"Planning and Geographic Information Systems (GIS)"}]
[{"$f":"'Data SBP Measures'!$AI783&\" - \"&'Data SBP Measures'!$U783","v":"Accounting Division - 121"},{"$f":"'Data SBP Measures'!$AF783","v":"# of Criminal Bonds received and recorded"},{"$f":"'Data SBP Measures'!$T783","v":"1841"},{"$f":"'Data SBP Measures'!$U783&B14","v":"121# of Criminal Bonds received and recorded"},{"$f":"'Data SBP Measures'!$Y783","v":"EACH"},null,null,null,null,null,"Accounting Division - 121","# of Criminal Bonds received and recorded",null,null,null,null,null,null,null,"1015","149","Y","134","Planning and Geographic Information Systems (GIS)","EACH","OUTPUT","BLACKBOOK",null,null,null,"Planning and Geographic Information Systems (GIS)","# of bill analysis completed by TNR staff",null,{"$f":"'Data SBP Measures'!$AF14&'Data SBP Measures'!$AE14& \" - \"& 'Data SBP Measures'!$U14","v":"# of bill analysis completed by TNR staffPlanning and Geographic Information Systems (GIS) - 149"},{"$f":"_xlfn.XLOOKUP(VALUE(W14),'Data SBP Programs'!O:O,'Data SBP Programs'!S:S)","v":"Planning and Geographic Information Systems (GIS)"}]
[{"$f":"'Data SBP Measures'!$AI784&\" - \"&'Data SBP Measures'!$U784","v":"Accounting Division - 121"},{"$f":"'Data SBP Measures'!$AF784","v":"# of Criminal Bonds received and recorded"},{"$f":"'Data SBP Measures'!$T784","v":"1841"},{"$f":"'Data SBP Measures'!$U784&B15","v":"121# of Criminal Bonds received and recorded"},{"$f":"'Data SBP Measures'!$Y784","v":"EACH"},null,null,null,null,null,"Accounting Division - 121","# of Criminal Bonds received and recorded",null,null,null,null,null,null,null,"1018","149","Y","134","Planning and Geographic Information Systems (GIS)","EACH","OUTPUT","BLACKBOOK",null,null,null,"Planning and Geographic Information Systems (GIS)","# of interim committees monitored",null,{"$f":"'Data SBP Measures'!$AF15&'Data SBP Measures'!$AE15& \" - \"& 'Data SBP Measures'!$U15","v":"# of interim committees monitoredPlanning and Geographic Information Systems (GIS) - 149"},{"$f":"_xlfn.XLOOKUP(VALUE(W15),'Data SBP Programs'!O:O,'Data SBP Programs'!S:S)","v":"Planning and Geographic Information Systems (GIS)"}]
[{"$f":"'Data SBP Measures'!$AI2235&\" - \"&'Data SBP Measures'!$U2235","v":"Accounting Division - 121"},{"$f":"'Data SBP Measures'!$AF2235","v":"# of Criminal Bonds received and recorded"},{"$f":"'Data SBP Measures'!$T2235","v":"2752"},{"$f":"'Data SBP Measures'!$U2235&B16","v":"121# of Criminal Bonds received and recorded"},{"$f":"'Data SBP Measures'!$Y2235","v":"EACH"},null,null,null,null,null,"Accounting Division - 121","# of Criminal Bonds received and recorded",null,null,null,null,null,null,null,"1019","149","Y","134","Planning and Geographic Information Systems (GIS)","EACH","OUTPUT","BLACKBOOK",null,null,null,"Planning and Geographic Information Systems (GIS)","# of joint committee meetings attended",null,{"$f":"'Data SBP Measures'!$AF16&'Data SBP Measures'!$AE16& \" - \"& 'Data SBP Measures'!$U16","v":"# of joint committee meetings attendedPlanning and Geographic Information Systems (GIS) - 149"},{"$f":"_xlfn.XLOOKUP(VALUE(W16),'Data SBP Programs'!O:O,'Data SBP Programs'!S:S)","v":"Planning and Geographic Information Systems (GIS)"}]
[{"$f":"'Data SBP Measures'!$AI2219&\" - \"&'Data SBP Measures'!$U2219","v":"Accounting Division - 121"},{"$f":"'Data SBP Measures'!$AF2219","v":"# of dispositions"},{"$f":"'Data SBP Measures'!$T2219","v":"2736"},{"$f":"'Data SBP Measures'!$U2219&B17","v":"121# of dispositions"},{"$f":"'Data SBP Measures'!$Y2219","v":"EACH"},null,null,null,null,null,"Accounting Division - 121","# of dispositions",null,null,null,null,null,null,null,"1024","149","Y","134","Planning and Geographic Information Systems (GIS)","EACH","OUTPUT","BLACKBOOK",null,null,null,"Planning and Geographic Information Systems (GIS)","# of regional group meetings/conf calls attended",null,{"$f":"'Data SBP Measures'!$AF17&'Data SBP Measures'!$AE17& \" - \"& 'Data SBP Measures'!$U17","v":"# of regional group meetings/conf calls attendedPlanning and Geographic Information Systems (GIS) - 149"},{"$f":"_xlfn.XLOOKUP(VALUE(W17),'Data SBP Programs'!O:O,'Data SBP Programs'!S:S)","v":"Planning and Geographic Information Systems (GIS)"}]
[{"$f":"'Data SBP Measures'!$AI2230&\" - \"&'Data SBP Measures'!$U2230","v":"Accounting Division - 121"},{"$f":"'Data SBP Measures'!$AF2230","v":"# of historical Civil files reviewed and verified for financial quality assurance (SPW #3)"},{"$f":"'Data SBP Measures'!$T2230","v":"2748"},{"$f":"'Data SBP Measures'!$U2230&B18","v":"121# of historical Civil files reviewed and verified for financial quality assurance (SPW #3)"},{"$f":"'Data SBP Measures'!$Y2230","v":"EACH"},null,null,null,null,null,"Accounting Division - 121","# of historical Civil files reviewed and verified for financial quality assurance (SPW #3)",null,null,null,null,null,null,null,"1027","149","Y","134","Planning and Geographic Information Systems (GIS)","PERCENT","OUTCOME","BLACKBOOK",null,null,null,"Planning and Geographic Information Systems (GIS)","% Completed - Develop Vision, Goals, Objectives, and Policies",null,{"$f":"'Data SBP Measures'!$AF18&'Data SBP Measures'!$AE18& \" - \"& 'Data SBP Measures'!$U18","v":"% Completed - Develop Vision, Goals, Objectives, and PoliciesPlanning and Geographic Information Systems (GIS) - 149"},{"$f":"_xlfn.XLOOKUP(VALUE(W18),'Data SBP Programs'!O:O,'Data SBP Programs'!S:S)","v":"Planning and Geographic Information Systems (GIS)"}]
[{"$f":"'Data SBP Measures'!$AI2231&\" - \"&'Data SBP Measures'!$U2231","v":"Accounting Division - 121"},{"$f":"'Data SBP Measures'!$AF2231","v":"# of historical Criminal files reviwed and verified for financial quality assurance (SPW#4)"},{"$f":"'Data SBP Measures'!$T2231","v":"2749"},{"$f":"'Data SBP Measures'!$U2231&B19","v":"121# of historical Criminal files reviwed and verified for financial quality assurance (SPW#4)"},{"$f":"'Data SBP Measures'!$Y2231","v":"EACH"},null,null,null,null,null,"Accounting Division - 121","# of historical Criminal files reviwed and verified for financial quality assurance (SPW#4)",null,null,null,null,null,null,null,"1030","149","Y","134","Planning and Geographic Information Systems (GIS)","PERCENT","OUTCOME","BLACKBOOK",null,null,null,"Planning and Geographic Information Systems (GIS)","% Completed  - Develop Draft county Multi-modal Plan",null,{"$f":"'Data SBP Measures'!$AF19&'Data SBP Measures'!$AE19& \" - \"& 'Data SBP Measures'!$U19","v":"% Completed  - Develop Draft county Multi-modal PlanPlanning and Geographic Information Systems (GIS) - 149"},{"$f":"_xlfn.XLOOKUP(VALUE(W19),'Data SBP Programs'!O:O,'Data SBP Programs'!S:S)","v":"Planning and Geographic Information Systems (GIS)"}]
[{"$f":"'Data SBP Measures'!$AI795&\" - \"&'Data SBP Measures'!$U795","v":"Accounting Division - 121"},{"$f":"'Data SBP Measures'!$AF795","v":"# of new or reopened Family cases filed\n"},{"$f":"'Data SBP Measures'!$T795","v":"1863"},{"$f":"'Data SBP Measures'!$U795&B20","v":"121# of new or reopened Family cases filed\n"},{"$f":"'Data SBP Measures'!$Y795","v":"EACH"},null,null,null,null,null,"Accounting Division - 121","# of new or reopened Family cases filed\n",null,null,null,null,null,null,null,"1034","149","Y","134","Planning and Geographic Information Systems (GIS)","PERCENT","OUTCOME","BLACKBOOK",null,null,null,"Planning and Geographic Information Systems (GIS)","% of TC residents engaged in Public Engagement Program - Develop Vision, Goals, Objectives",null,{"$f":"'Data SBP Measures'!$AF20&'Data SBP Measures'!$AE20& \" - \"& 'Data SBP Measures'!$U20","v":"% of TC residents engaged in Public Engagement Program - Develop Vision, Goals, ObjectivesPlanning and Geographic Information Systems (GIS) - 149"},{"$f":"_xlfn.XLOOKUP(VALUE(W20),'Data SBP Programs'!O:O,'Data SBP Programs'!S:S)","v":"Planning and Geographic Information Systems (GIS)"}]
[{"$f":"'Data SBP Measures'!$AI744&\" - \"&'Data SBP Measures'!$U744","v":"Accounting Division - 121"},{"$f":"'Data SBP Measures'!$AF744","v":"# of production entries in FACTS"},{"$f":"'Data SBP Measures'!$T744","v":"1819"},{"$f":"'Data SBP Measures'!$U744&B21","v":"121# of production entries in FACTS"},{"$f":"'Data SBP Measures'!$Y744","v":"EACH"},null,null,null,null,null,"Accounting Division - 121","# of production entries in FACTS",null,null,null,null,null,null,null,"1035","149","Y","134","Planning and Geographic Information Systems (GIS)","PERCENT","OUTCOME","BLACKBOOK",null,null,null,"Planning and Geographic Information Systems (GIS)","% of TC residents engaged in Public Engagement Ph 2",null,{"$f":"'Data SBP Measures'!$AF21&'Data SBP Measures'!$AE21& \" - \"& 'Data SBP Measures'!$U21","v":"% of TC residents engaged in Public Engagement Ph 2Planning and Geographic Information Systems (GIS) - 149"},{"$f":"_xlfn.XLOOKUP(VALUE(W21),'Data SBP Programs'!O:O,'Data SBP Programs'!S:S)","v":"Planning and Geographic Information Systems (GIS)"}]
[{"$f":"'Data SBP Measures'!$AI745&\" - \"&'Data SBP Measures'!$U745","v":"Accounting Division - 121"},{"$f":"'Data SBP Measures'!$AF745","v":"# of production entries in FACTS"},{"$f":"'Data SBP Measures'!$T745","v":"1819"},{"$f":"'Data SBP Measures'!$U745&B22","v":"121# of production entries in FACTS"},{"$f":"'Data SBP Measures'!$Y745","v":"EACH"},null,null,null,null,null,"Accounting Division - 121","# of production entries in FACTS",null,null,null,null,null,null,null,"1036","149","Y","134","Planning and Geographic Information Systems (GIS)","DAYS","OUTCOME","BLACKBOOK",null,null,null,"Planning and Geographic Information Systems (GIS)","Average data maintenance turnaround time",null,{"$f":"'Data SBP Measures'!$AF22&'Data SBP Measures'!$AE22& \" - \"& 'Data SBP Measures'!$U22","v":"Average data maintenance turnaround timePlanning and Geographic Information Systems (GIS) - 149"},{"$f":"_xlfn.XLOOKUP(VALUE(W22),'Data SBP Programs'!O:O,'Data SBP Programs'!S:S)","v":"Planning and Geographic Information Systems (GIS)"}]
[{"$f":"'Data SBP Measures'!$AI746&\" - \"&'Data SBP Measures'!$U746","v":"Accounting Division - 121"},{"$f":"'Data SBP Measures'!$AF746","v":"# of production entries in FACTS"},{"$f":"'Data SBP Measures'!$T746","v":"1819"},{"$f":"'Data SBP Measures'!$U746&B23","v":"121# of production entries in FACTS"},{"$f":"'Data SBP Measures'!$Y746","v":"EACH"},null,null,null,null,null,"Accounting Division - 121","# of production entries in FACTS",null,null,null,null,null,null,null,"1037","149","Y","134","Planning and Geographic Information Systems (GIS)","DAYS","OUTCOME","BLACKBOOK",null,null,null,"Planning and Geographic Information Systems (GIS)","Average project timeline development",null,{"$f":"'Data SBP Measures'!$AF23&'Data SBP Measures'!$AE23& \" - \"& 'Data SBP Measures'!$U23","v":"Average project timeline developmentPlanning and Geographic Information Systems (GIS) - 149"},{"$f":"_xlfn.XLOOKUP(VALUE(W23),'Data SBP Programs'!O:O,'Data SBP Programs'!S:S)","v":"Planning and Geographic Information Systems (GIS)"}]
[{"$f":"'Data SBP Measures'!$AI2233&\" - \"&'Data SBP Measures'!$U2233","v":"Accounting Division - 121"},{"$f":"'Data SBP Measures'!$AF2233","v":"# of Registry accounts"},{"$f":"'Data SBP Measures'!$T2233","v":"2750"},{"$f":"'Data SBP Measures'!$U2233&B24","v":"121# of Registry accounts"},{"$f":"'Data SBP Measures'!$Y2233","v":"EACH"},null,null,null,null,null,"Accounting Division - 121","# of Registry accounts",null,null,null,null,null,null,null,"1038","149","Y","135","Public Works – CIP","PERCENT","OUTCOME","BLACKBOOK",null,null,null,"Public Works – CIP","% of Projects on schedule & under budget - Roadway safety/reconstruction",null,{"$f":"'Data SBP Measures'!$AF24&'Data SBP Measures'!$AE24& \" - \"& 'Data SBP Measures'!$U24","v":"% of Projects on schedule & under budget - Roadway safety/reconstructionPublic Works – CIP - 149"},{"$f":"_xlfn.XLOOKUP(VALUE(W24),'Data SBP Programs'!O:O,'Data SBP Programs'!S:S)","v":"Public Works – CIP"}]
[{"$f":"'Data SBP Measures'!$AI2229&\" - \"&'Data SBP Measures'!$U2229","v":"Accounting Division - 121"},{"$f":"'Data SBP Measures'!$AF2229","v":"$ Amount of Delinquent court costs collected"},{"$f":"'Data SBP Measures'!$T2229","v":"2747"},{"$f":"'Data SBP Measures'!$U2229&B25","v":"121$ Amount of Delinquent court costs collected"},{"$f":"'Data SBP Measures'!$Y2229","v":"DOLLARS"},null,null,null,null,null,"Accounting Division - 121","$ Amount of Delinquent court costs collected",null,null,null,null,null,null,null,"1039","149","Y","135","Public Works – CIP","PERCENT","OUTCOME","BLACKBOOK",null,null,null,"Public Works – CIP","% of Projects on schedule & under budget - Added roadway capacity",null,{"$f":"'Data SBP Measures'!$AF25&'Data SBP Measures'!$AE25& \" - \"& 'Data SBP Measures'!$U25","v":"% of Projects on schedule & under budget - Added roadway capacityPublic Works – CIP - 149"},{"$f":"_xlfn.XLOOKUP(VALUE(W25),'Data SBP Programs'!O:O,'Data SBP Programs'!S:S)","v":"Public Works – CIP"}]
[{"$f":"'Data SBP Measures'!$AI776&\" - \"&'Data SBP Measures'!$U776","v":"Accounting Division - 121"},{"$f":"'Data SBP Measures'!$AF776","v":"Appeals processed"},{"$f":"'Data SBP Measures'!$T776","v":"1838"},{"$f":"'Data SBP Measures'!$U776&B26","v":"121Appeals processed"},{"$f":"'Data SBP Measures'!$Y776","v":"EACH"},null,null,null,null,null,"Accounting Division - 121","Appeals processed",null,null,null,null,null,null,null,"1040","149","Y","135","Public Works – CIP","PERCENT","OUTCOME","BLACKBOOK",null,null,null,"Public Works – CIP","% of Projects on schedule & under budget - Substandard road",null,{"$f":"'Data SBP Measures'!$AF26&'Data SBP Measures'!$AE26& \" - \"& 'Data SBP Measures'!$U26","v":"% of Projects on schedule & under budget - Substandard roadPublic Works – CIP - 149"},{"$f":"_xlfn.XLOOKUP(VALUE(W26),'Data SBP Programs'!O:O,'Data SBP Programs'!S:S)","v":"Public Works – CIP"}]
[{"$f":"'Data SBP Measures'!$AI777&\" - \"&'Data SBP Measures'!$U777","v":"Accounting Division - 121"},{"$f":"'Data SBP Measures'!$AF777","v":"Appeals processed"},{"$f":"'Data SBP Measures'!$T777","v":"1838"},{"$f":"'Data SBP Measures'!$U777&B27","v":"121Appeals processed"},{"$f":"'Data SBP Measures'!$Y777","v":"EACH"},null,null,null,null,null,"Accounting Division - 121","Appeals processed",null,null,null,null,null,null,null,"1041","149","Y","135","Public Works – CIP","PERCENT","OUTCOME","BLACKBOOK",null,null,null,"Public Works – CIP","% of Projects on schedule & under budget - Bridge replacement/rehab",null,{"$f":"'Data SBP Measures'!$AF27&'Data SBP Measures'!$AE27& \" - \"& 'Data SBP Measures'!$U27","v":"% of Projects on schedule & under budget - Bridge replacement/rehabPublic Works – CIP - 149"},{"$f":"_xlfn.XLOOKUP(VALUE(W27),'Data SBP Programs'!O:O,'Data SBP Programs'!S:S)","v":"Public Works – CIP"}]
[{"$f":"'Data SBP Measures'!$AI778&\" - \"&'Data SBP Measures'!$U778","v":"Accounting Division - 121"},{"$f":"'Data SBP Measures'!$AF778","v":"Appeals processed"},{"$f":"'Data SBP Measures'!$T778","v":"1838"},{"$f":"'Data SBP Measures'!$U778&B28","v":"121Appeals processed"},{"$f":"'Data SBP Measures'!$Y778","v":"EACH"},null,null,null,null,null,"Accounting Division - 121","Appeals processed",null,null,null,null,null,null,null,"1042","149","Y","135","Public Works – CIP","PERCENT","OUTCOME","BLACKBOOK",null,null,null,"Public Works – CIP","% of Projects on schedule & under budget - Sidewalk & trail projects",null,{"$f":"'Data SBP Measures'!$AF28&'Data SBP Measures'!$AE28& \" - \"& 'Data SBP Measures'!$U28","v":"% of Projects on schedule & under budget - Sidewalk & trail projectsPublic Works – CIP - 149"},{"$f":"_xlfn.XLOOKUP(VALUE(W28),'Data SBP Programs'!O:O,'Data SBP Programs'!S:S)","v":"Public Works – CIP"}]
[{"$f":"'Data SBP Measures'!$AI752&\" - \"&'Data SBP Measures'!$U752","v":"Accounting Division - 121"},{"$f":"'Data SBP Measures'!$AF752","v":"Capias/warrant issued"},{"$f":"'Data SBP Measures'!$T752","v":"1828"},{"$f":"'Data SBP Measures'!$U752&B29","v":"121Capias/warrant issued"},{"$f":"'Data SBP Measures'!$Y752","v":"EACH"},null,null,null,null,null,"Accounting Division - 121","Capias/warrant issued",null,null,null,null,null,null,null,"1043","149","Y","135","Public Works – CIP","PERCENT","OUTCOME","BLACKBOOK",null,null,null,"Public Works – CIP","% of Projects on schedule & under budget - Drainage Improvement",null,{"$f":"'Data SBP Measures'!$AF29&'Data SBP Measures'!$AE29& \" - \"& 'Data SBP Measures'!$U29","v":"% of Projects on schedule & under budget - Drainage ImprovementPublic Works – CIP - 149"},{"$f":"_xlfn.XLOOKUP(VALUE(W29),'Data SBP Programs'!O:O,'Data SBP Programs'!S:S)","v":"Public Works – CIP"}]
[{"$f":"'Data SBP Measures'!$AI753&\" - \"&'Data SBP Measures'!$U753","v":"Accounting Division - 121"},{"$f":"'Data SBP Measures'!$AF753","v":"Capias/warrant issued"},{"$f":"'Data SBP Measures'!$T753","v":"1828"},{"$f":"'Data SBP Measures'!$U753&B30","v":"121Capias/warrant issued"},{"$f":"'Data SBP Measures'!$Y753","v":"EACH"},null,null,null,null,null,"Accounting Division - 121","Capias/warrant issued",null,null,null,null,null,null,null,"1044","149","Y","135","Public Works – CIP","PERCENT","OUTCOME","BLACKBOOK",null,null,null,"Public Works – CIP","% of Projects on schedule & under budget - Park Improvements",null,{"$f":"'Data SBP Measures'!$AF30&'Data SBP Measures'!$AE30& \" - \"& 'Data SBP Measures'!$U30","v":"% of Projects on schedule & under budget - Park ImprovementsPublic Works – CIP - 149"},{"$f":"_xlfn.XLOOKUP(VALUE(W30),'Data SBP Programs'!O:O,'Data SBP Programs'!S:S)","v":"Public Works – CIP"}]
[{"$f":"'Data SBP Measures'!$AI754&\" - \"&'Data SBP Measures'!$U754","v":"Accounting Division - 121"},{"$f":"'Data SBP Measures'!$AF754","v":"Capias/warrant issued"},{"$f":"'Data SBP Measures'!$T754","v":"1828"},{"$f":"'Data SBP Measures'!$U754&B31","v":"121Capias/warrant issued"},{"$f":"'Data SBP Measures'!$Y754","v":"EACH"},null,null,null,null,null,"Accounting Division - 121","Capias/warrant issued",null,null,null,null,null,null,null,"1045","149","Y","135","Public Works – CIP","PERCENT","OUTCOME","BLACKBOOK",null,null,null,"Public Works – CIP","Percent of bridges with sufficiency ratings below 60",null,{"$f":"'Data SBP Measures'!$AF31&'Data SBP Measures'!$AE31& \" - \"& 'Data SBP Measures'!$U31","v":"Percent of bridges with sufficiency ratings below 60Public Works – CIP - 149"},{"$f":"_xlfn.XLOOKUP(VALUE(W31),'Data SBP Programs'!O:O,'Data SBP Programs'!S:S)","v":"Public Works – CIP"}]
[{"$f":"'Data SBP Measures'!$AI755&\" - \"&'Data SBP Measures'!$U755","v":"Accounting Division - 121"},{"$f":"'Data SBP Measures'!$AF755","v":"Capias/warrant returned"},{"$f":"'Data SBP Measures'!$T755","v":"1829"},{"$f":"'Data SBP Measures'!$U755&B32","v":"121Capias/warrant returned"},{"$f":"'Data SBP Measures'!$Y755","v":"EACH"},null,null,null,null,null,"Accounting Division - 121","Capias/warrant returned",null,null,null,null,null,null,null,"1046","149","Y","136","Public Works - Survey","EACH","OUTCOME","BLACKBOOK",null,null,null,"Public Works - Survey","Number of in-house drainage project surveys.",null,{"$f":"'Data SBP Measures'!$AF32&'Data SBP Measures'!$AE32& \" - \"& 'Data SBP Measures'!$U32","v":"Number of in-house drainage project surveys.Public Works - Survey - 149"},{"$f":"_xlfn.XLOOKUP(VALUE(W32),'Data SBP Programs'!O:O,'Data SBP Programs'!S:S)","v":"Public Works - Survey"}]
[{"$f":"'Data SBP Measures'!$AI756&\" - \"&'Data SBP Measures'!$U756","v":"Accounting Division - 121"},{"$f":"'Data SBP Measures'!$AF756","v":"Capias/warrant returned"},{"$f":"'Data SBP Measures'!$T756","v":"1829"},{"$f":"'Data SBP Measures'!$U756&B33","v":"121Capias/warrant returned"},{"$f":"'Data SBP Measures'!$Y756","v":"EACH"},null,null,null,null,null,"Accounting Division - 121","Capias/warrant returned",null,null,null,null,null,null,null,"1047","149","Y","136","Public Works - Survey","EACH","OUTCOME","BLACKBOOK",null,null,null,"Public Works - Survey","Number of Parks and other county property surveys.",null,{"$f":"'Data SBP Measures'!$AF33&'Data SBP Measures'!$AE33& \" - \"& 'Data SBP Measures'!$U33","v":"Number of Parks and other county property surveys.Public Works - Survey - 149"},{"$f":"_xlfn.XLOOKUP(VALUE(W33),'Data SBP Programs'!O:O,'Data SBP Programs'!S:S)","v":"Public Works - Survey"}]
[{"$f":"'Data SBP Measures'!$AI757&\" - \"&'Data SBP Measures'!$U757","v":"Accounting Division - 121"},{"$f":"'Data SBP Measures'!$AF757","v":"Capias/warrant returned"},{"$f":"'Data SBP Measures'!$T757","v":"1829"},{"$f":"'Data SBP Measures'!$U757&B34","v":"121Capias/warrant returned"},{"$f":"'Data SBP Measures'!$Y757","v":"EACH"},null,null,null,null,null,"Accounting Division - 121","Capias/warrant returned",null,null,null,null,null,null,null,"1048","149","Y","136","Public Works - Survey","EACH","OUTCOME","BLACKBOOK",null,null,null,"Public Works - Survey","# of right-of-way or easement acquisition documents prepared",null,{"$f":"'Data SBP Measures'!$AF34&'Data SBP Measures'!$AE34& \" - \"& 'Data SBP Measures'!$U34","v":"# of right-of-way or easement acquisition documents preparedPublic Works - Survey - 149"},{"$f":"_xlfn.XLOOKUP(VALUE(W34),'Data SBP Programs'!O:O,'Data SBP Programs'!S:S)","v":"Public Works - Survey"}]
[{"$f":"'Data SBP Measures'!$AI785&\" - \"&'Data SBP Measures'!$U785","v":"Accounting Division - 121"},{"$f":"'Data SBP Measures'!$AF785","v":"Cash Bonds refunded - Criminal"},{"$f":"'Data SBP Measures'!$T785","v":"1842"},{"$f":"'Data SBP Measures'!$U785&B35","v":"121Cash Bonds refunded - Criminal"},{"$f":"'Data SBP Measures'!$Y785","v":"EACH"},null,null,null,null,null,"Accounting Division - 121","Cash Bonds refunded - Criminal",null,null,null,null,null,null,null,"1049","149","Y","136","Public Works - Survey","EACH","OUTPUT","BLACKBOOK",null,null,null,"Public Works - Survey","Number of road improvement/topo surveys",null,{"$f":"'Data SBP Measures'!$AF35&'Data SBP Measures'!$AE35& \" - \"& 'Data SBP Measures'!$U35","v":"Number of road improvement/topo surveysPublic Works - Survey - 149"},{"$f":"_xlfn.XLOOKUP(VALUE(W35),'Data SBP Programs'!O:O,'Data SBP Programs'!S:S)","v":"Public Works - Survey"}]
[{"$f":"'Data SBP Measures'!$AI786&\" - \"&'Data SBP Measures'!$U786","v":"Accounting Division - 121"},{"$f":"'Data SBP Measures'!$AF786","v":"Cash Bonds refunded - Criminal"},{"$f":"'Data SBP Measures'!$T786","v":"1842"},{"$f":"'Data SBP Measures'!$U786&B36","v":"121Cash Bonds refunded - Criminal"},{"$f":"'Data SBP Measures'!$Y786","v":"EACH"},null,null,null,null,null,"Accounting Division - 121","Cash Bonds refunded - Criminal",null,null,null,null,null,null,null,"1050","149","Y","136","Public Works - Survey","EACH","OUTPUT","BLACKBOOK",null,null,null,"Public Works - Survey","Number of surveys by outside survey companies managed.",null,{"$f":"'Data SBP Measures'!$AF36&'Data SBP Measures'!$AE36& \" - \"& 'Data SBP Measures'!$U36","v":"Number of surveys by outside survey companies managed.Public Works - Survey - 149"},{"$f":"_xlfn.XLOOKUP(VALUE(W36),'Data SBP Programs'!O:O,'Data SBP Programs'!S:S)","v":"Public Works - Survey"}]
[{"$f":"'Data SBP Measures'!$AI787&\" - \"&'Data SBP Measures'!$U787","v":"Accounting Division - 121"},{"$f":"'Data SBP Measures'!$AF787","v":"Cash Bonds refunded - Criminal"},{"$f":"'Data SBP Measures'!$T787","v":"1842"},{"$f":"'Data SBP Measures'!$U787&B37","v":"121Cash Bonds refunded - Criminal"},{"$f":"'Data SBP Measures'!$Y787","v":"EACH"},null,null,null,null,null,"Accounting Division - 121","Cash Bonds refunded - Criminal",null,null,null,null,null,null,null,"1051","149","Y","136","Public Works - Survey","EACH","OUTPUT","BLACKBOOK",null,null,null,"Public Works - Survey","Total # of survey work orders, requests, questions addressed",null,{"$f":"'Data SBP Measures'!$AF37&'Data SBP Measures'!$AE37& \" - \"& 'Data SBP Measures'!$U37","v":"Total # of survey work orders, requests, questions addressedPublic Works - Survey - 149"},{"$f":"_xlfn.XLOOKUP(VALUE(W37),'Data SBP Programs'!O:O,'Data SBP Programs'!S:S)","v":"Public Works - Survey"}]
[{"$f":"'Data SBP Measures'!$AI767&\" - \"&'Data SBP Measures'!$U767","v":"Accounting Division - 121"},{"$f":"'Data SBP Measures'!$AF767","v":"Dispositions"},{"$f":"'Data SBP Measures'!$T767","v":"1834"},{"$f":"'Data SBP Measures'!$U767&B38","v":"121Dispositions"},{"$f":"'Data SBP Measures'!$Y767","v":"EACH"},null,null,null,null,null,"Accounting Division - 121","Dispositions",null,null,null,null,null,null,null,"1053","149","Y","138","Road & Bridge","FEET","OUTPUT","BLACKBOOK",null,null,null,"Road & Bridge","# linear feet of  Pedestrian Way sidewalks/curb ramps",null,{"$f":"'Data SBP Measures'!$AF38&'Data SBP Measures'!$AE38& \" - \"& 'Data SBP Measures'!$U38","v":"# linear feet of  Pedestrian Way sidewalks/curb rampsRoad & Bridge - 149"},{"$f":"_xlfn.XLOOKUP(VALUE(W38),'Data SBP Programs'!O:O,'Data SBP Programs'!S:S)","v":"Road & Bridge"}]
[{"$f":"'Data SBP Measures'!$AI768&\" - \"&'Data SBP Measures'!$U768","v":"Accounting Division - 121"},{"$f":"'Data SBP Measures'!$AF768","v":"Dispositions"},{"$f":"'Data SBP Measures'!$T768","v":"1834"},{"$f":"'Data SBP Measures'!$U768&B39","v":"121Dispositions"},{"$f":"'Data SBP Measures'!$Y768","v":"EACH"},null,null,null,null,null,"Accounting Division - 121","Dispositions",null,null,null,null,null,null,null,"1054","149","Y","138","Road & Bridge","EACH","OUTPUT","BLACKBOOK",null,null,null,"Road & Bridge","# of Litter Response",null,{"$f":"'Data SBP Measures'!$AF39&'Data SBP Measures'!$AE39& \" - \"& 'Data SBP Measures'!$U39","v":"# of Litter ResponseRoad & Bridge - 149"},{"$f":"_xlfn.XLOOKUP(VALUE(W39),'Data SBP Programs'!O:O,'Data SBP Programs'!S:S)","v":"Road & Bridge"}]
[{"$f":"'Data SBP Measures'!$AI769&\" - \"&'Data SBP Measures'!$U769","v":"Accounting Division - 121"},{"$f":"'Data SBP Measures'!$AF769","v":"Dispositions"},{"$f":"'Data SBP Measures'!$T769","v":"1834"},{"$f":"'Data SBP Measures'!$U769&B40","v":"121Dispositions"},{"$f":"'Data SBP Measures'!$Y769","v":"EACH"},null,null,null,null,null,"Accounting Division - 121","Dispositions",null,null,null,null,null,null,null,"1055","149","Y","138","Road & Bridge","MILES","OUTPUT","BLACKBOOK",null,null,null,"Road & Bridge","# of miles Brush Removal",null,{"$f":"'Data SBP Measures'!$AF40&'Data SBP Measures'!$AE40& \" - \"& 'Data SBP Measures'!$U40","v":"# of miles Brush RemovalRoad & Bridge - 149"},{"$f":"_xlfn.XLOOKUP(VALUE(W40),'Data SBP Programs'!O:O,'Data SBP Programs'!S:S)","v":"Road & Bridge"}]
[{"$f":"'Data SBP Measures'!$AI788&\" - \"&'Data SBP Measures'!$U788","v":"Accounting Division - 121"},{"$f":"'Data SBP Measures'!$AF788","v":"Expunctions processed"},{"$f":"'Data SBP Measures'!$T788","v":"1843"},{"$f":"'Data SBP Measures'!$U788&B41","v":"121Expunctions processed"},{"$f":"'Data SBP Measures'!$Y788","v":"EACH"},null,null,null,null,null,"Accounting Division - 121","Expunctions processed",null,null,null,null,null,null,null,"1056","149","Y","138","Road & Bridge","MILES","OUTPUT","BLACKBOOK",null,null,null,"Road & Bridge","# of miles Herbicide Applied",null,{"$f":"'Data SBP Measures'!$AF41&'Data SBP Measures'!$AE41& \" - \"& 'Data SBP Measures'!$U41","v":"# of miles Herbicide AppliedRoad & Bridge - 149"},{"$f":"_xlfn.XLOOKUP(VALUE(W41),'Data SBP Programs'!O:O,'Data SBP Programs'!S:S)","v":"Road & Bridge"}]
[{"$f":"'Data SBP Measures'!$AI789&\" - \"&'Data SBP Measures'!$U789","v":"Accounting Division - 121"},{"$f":"'Data SBP Measures'!$AF789","v":"Expunctions processed"},{"$f":"'Data SBP Measures'!$T789","v":"1843"},{"$f":"'Data SBP Measures'!$U789&B42","v":"121Expunctions processed"},{"$f":"'Data SBP Measures'!$Y789","v":"EACH"},null,null,null,null,null,"Accounting Division - 121","Expunctions processed",null,null,null,null,null,null,null,"1057","149","Y","138","Road & Bridge","MILES","OUTPUT","BLACKBOOK",null,null,null,"Road & Bridge","# of miles Mowed",null,{"$f":"'Data SBP Measures'!$AF42&'Data SBP Measures'!$AE42& \" - \"& 'Data SBP Measures'!$U42","v":"# of miles MowedRoad & Bridge - 149"},{"$f":"_xlfn.XLOOKUP(VALUE(W42),'Data SBP Programs'!O:O,'Data SBP Programs'!S:S)","v":"Road & Bridge"}]
[{"$f":"'Data SBP Measures'!$AI790&\" - \"&'Data SBP Measures'!$U790","v":"Accounting Division - 121"},{"$f":"'Data SBP Measures'!$AF790","v":"Expunctions processed"},{"$f":"'Data SBP Measures'!$T790","v":"1843"},{"$f":"'Data SBP Measures'!$U790&B43","v":"121Expunctions processed"},{"$f":"'Data SBP Measures'!$Y790","v":"EACH"},null,null,null,null,null,"Accounting Division - 121","Expunctions processed",null,null,null,null,null,null,null,"1058","149","Y","138","Road & Bridge","MILES","OUTPUT","BLACKBOOK",null,null,null,"Road & Bridge","# of miles of Pothole Patching",null,{"$f":"'Data SBP Measures'!$AF43&'Data SBP Measures'!$AE43& \" - \"& 'Data SBP Measures'!$U43","v":"# of miles of Pothole PatchingRoad & Bridge - 149"},{"$f":"_xlfn.XLOOKUP(VALUE(W43),'Data SBP Programs'!O:O,'Data SBP Programs'!S:S)","v":"Road & Bridge"}]
[{"$f":"'Data SBP Measures'!$AI770&\" - \"&'Data SBP Measures'!$U770","v":"Accounting Division - 121"},{"$f":"'Data SBP Measures'!$AF770","v":"Incompetency judgment prepared"},{"$f":"'Data SBP Measures'!$T770","v":"1835"},{"$f":"'Data SBP Measures'!$U770&B44","v":"121Incompetency judgment prepared"},{"$f":"'Data SBP Measures'!$Y770","v":"EACH"},null,null,null,null,null,"Accounting Division - 121","Incompetency judgment prepared",null,null,null,null,null,null,null,"1059","149","Y","138","Road & Bridge","MILES","OUTPUT","BLACKBOOK",null,null,null,"Road & Bridge","# of miles of Rd Recycling /Edge Maint",null,{"$f":"'Data SBP Measures'!$AF44&'Data SBP Measures'!$AE44& \" - \"& 'Data SBP Measures'!$U44","v":"# of miles of Rd Recycling /Edge MaintRoad & Bridge - 149"},{"$f":"_xlfn.XLOOKUP(VALUE(W44),'Data SBP Programs'!O:O,'Data SBP Programs'!S:S)","v":"Road & Bridge"}]
[{"$f":"'Data SBP Measures'!$AI771&\" - \"&'Data SBP Measures'!$U771","v":"Accounting Division - 121"},{"$f":"'Data SBP Measures'!$AF771","v":"Incompetency judgment prepared"},{"$f":"'Data SBP Measures'!$T771","v":"1835"},{"$f":"'Data SBP Measures'!$U771&B45","v":"121Incompetency judgment prepared"},{"$f":"'Data SBP Measures'!$Y771","v":"EACH"},null,null,null,null,null,"Accounting Division - 121","Incompetency judgment prepared",null,null,null,null,null,null,null,"1060","149","Y","138","Road & Bridge","MILES","OUTPUT","BLACKBOOK",null,null,null,"Road & Bridge","# of miles of Surface Treatments",null,{"$f":"'Data SBP Measures'!$AF45&'Data SBP Measures'!$AE45& \" - \"& 'Data SBP Measures'!$U45","v":"# of miles of Surface TreatmentsRoad & Bridge - 149"},{"$f":"_xlfn.XLOOKUP(VALUE(W45),'Data SBP Programs'!O:O,'Data SBP Programs'!S:S)","v":"Road & Bridge"}]
[{"$f":"'Data SBP Measures'!$AI772&\" - \"&'Data SBP Measures'!$U772","v":"Accounting Division - 121"},{"$f":"'Data SBP Measures'!$AF772","v":"Incompetency judgment prepared"},{"$f":"'Data SBP Measures'!$T772","v":"1835"},{"$f":"'Data SBP Measures'!$U772&B46","v":"121Incompetency judgment prepared"},{"$f":"'Data SBP Measures'!$Y772","v":"EACH"},null,null,null,null,null,"Accounting Division - 121","Incompetency judgment prepared",null,null,null,null,null,null,null,"1061","149","Y","138","Road & Bridge","MILES","OUTPUT","BLACKBOOK",null,null,null,"Road & Bridge","# of miles Roadway Striping",null,{"$f":"'Data SBP Measures'!$AF46&'Data SBP Measures'!$AE46& \" - \"& 'Data SBP Measures'!$U46","v":"# of miles Roadway StripingRoad & Bridge - 149"},{"$f":"_xlfn.XLOOKUP(VALUE(W46),'Data SBP Programs'!O:O,'Data SBP Programs'!S:S)","v":"Road & Bridge"}]
[{"$f":"'Data SBP Measures'!$AI764&\" - \"&'Data SBP Measures'!$U764","v":"Accounting Division - 121"},{"$f":"'Data SBP Measures'!$AF764","v":"Indictment & information"},{"$f":"'Data SBP Measures'!$T764","v":"1833"},{"$f":"'Data SBP Measures'!$U764&B47","v":"121Indictment & information"},{"$f":"'Data SBP Measures'!$Y764","v":"EACH"},null,null,null,null,null,"Accounting Division - 121","Indictment & information",null,null,null,null,null,null,null,"1062","149","Y","138","Road & Bridge","EACH","OUTPUT","BLACKBOOK",null,null,null,"Road & Bridge","# of Secondary Drainage Project    (< 500 Man-hours)",null,{"$f":"'Data SBP Measures'!$AF47&'Data SBP Measures'!$AE47& \" - \"& 'Data SBP Measures'!$U47","v":"# of Secondary Drainage Project    (< 500 Man-hours)Road & Bridge - 149"},{"$f":"_xlfn.XLOOKUP(VALUE(W47),'Data SBP Programs'!O:O,'Data SBP Programs'!S:S)","v":"Road & Bridge"}]
[{"$f":"'Data SBP Measures'!$AI765&\" - \"&'Data SBP Measures'!$U765","v":"Accounting Division - 121"},{"$f":"'Data SBP Measures'!$AF765","v":"Indictment & information"},{"$f":"'Data SBP Measures'!$T765","v":"1833"},{"$f":"'Data SBP Measures'!$U765&B48","v":"121Indictment & information"},{"$f":"'Data SBP Measures'!$Y765","v":"EACH"},null,null,null,null,null,"Accounting Division - 121","Indictment & information",null,null,null,null,null,null,null,"1063","149","Y","138","Road & Bridge","EACH","OUTPUT","BLACKBOOK",null,null,null,"Road & Bridge","# of Secondary Drainage Project    (> 500 Man-hours)",null,{"$f":"'Data SBP Measures'!$AF48&'Data SBP Measures'!$AE48& \" - \"& 'Data SBP Measures'!$U48","v":"# of Secondary Drainage Project    (> 500 Man-hours)Road & Bridge - 149"},{"$f":"_xlfn.XLOOKUP(VALUE(W48),'Data SBP Programs'!O:O,'Data SBP Programs'!S:S)","v":"Road & Bridge"}]
[{"$f":"'Data SBP Measures'!$AI766&\" - \"&'Data SBP Measures'!$U766","v":"Accounting Division - 121"},{"$f":"'Data SBP Measures'!$AF766","v":"Indictment & information"},{"$f":"'Data SBP Measures'!$T766","v":"1833"},{"$f":"'Data SBP Measures'!$U766&B49","v":"121Indictment & information"},{"$f":"'Data SBP Measures'!$Y766","v":"EACH"},null,null,null,null,null,"Accounting Division - 121","Indictment & information",null,null,null,null,null,null,null,"1064","149","Y","138","Road & Bridge","EACH","OUTPUT","BLACKBOOK",null,null,null,"Road & Bridge","# of Traffic Signs Maintained",null,{"$f":"'Data SBP Measures'!$AF49&'Data SBP Measures'!$AE49& \" - \"& 'Data SBP Measures'!$U49","v":"# of Traffic Signs MaintainedRoad & Bridge - 149"},{"$f":"_xlfn.XLOOKUP(VALUE(W49),'Data SBP Programs'!O:O,'Data SBP Programs'!S:S)","v":"Road & Bridge"}]
[{"$f":"'Data SBP Measures'!$AI796&\" - \"&'Data SBP Measures'!$U796","v":"Accounting Division - 121"},{"$f":"'Data SBP Measures'!$AF796","v":"IV-D case billings sent (per quarter)"},{"$f":"'Data SBP Measures'!$T796","v":"1880"},{"$f":"'Data SBP Measures'!$U796&B50","v":"121IV-D case billings sent (per quarter)"},{"$f":"'Data SBP Measures'!$Y796","v":"EACH"},null,null,null,null,null,"Accounting Division - 121","IV-D case billings sent (per quarter)",null,null,null,null,null,null,null,"1065","149","Y","138","Road & Bridge","MILES","OUTPUT","BLACKBOOK",null,null,null,"Road & Bridge","# of miles of Rehabilitation",null,{"$f":"'Data SBP Measures'!$AF50&'Data SBP Measures'!$AE50& \" - \"& 'Data SBP Measures'!$U50","v":"# of miles of RehabilitationRoad & Bridge - 149"},{"$f":"_xlfn.XLOOKUP(VALUE(W50),'Data SBP Programs'!O:O,'Data SBP Programs'!S:S)","v":"Road & Bridge"}]
[{"$f":"'Data SBP Measures'!$AI797&\" - \"&'Data SBP Measures'!$U797","v":"Accounting Division - 121"},{"$f":"'Data SBP Measures'!$AF797","v":"IV-D case billings sent (per quarter)"},{"$f":"'Data SBP Measures'!$T797","v":"1880"},{"$f":"'Data SBP Measures'!$U797&B51","v":"121IV-D case billings sent (per quarter)"},{"$f":"'Data SBP Measures'!$Y797","v":"EACH"},null,null,null,null,null,"Accounting Division - 121","IV-D case billings sent (per quarter)",null,null,null,null,null,null,null,"1066","149","Y","139","Sign Shop Services","EACH","OUTPUT","BLACKBOOK",null,null,null,"Sign Shop Services","# of signs fabricated",null,{"$f":"'Data SBP Measures'!$AF51&'Data SBP Measures'!$AE51& \" - \"& 'Data SBP Measures'!$U51","v":"# of signs fabricatedSign Shop Services - 149"},{"$f":"_xlfn.XLOOKUP(VALUE(W51),'Data SBP Programs'!O:O,'Data SBP Programs'!S:S)","v":"Sign Shop Services"}]
[{"$f":"'Data SBP Measures'!$AI773&\" - \"&'Data SBP Measures'!$U773","v":"Accounting Division - 121"},{"$f":"'Data SBP Measures'!$AF773","v":"Judgdments prepared"},{"$f":"'Data SBP Measures'!$T773","v":"1837"},{"$f":"'Data SBP Measures'!$U773&B52","v":"121Judgdments prepared"},{"$f":"'Data SBP Measures'!$Y773","v":"EACH"},null,null,null,null,null,"Accounting Division - 121","Judgdments prepared",null,null,null,null,null,null,null,"1067","149","Y","139","Sign Shop Services","PERCENT","OUTCOME","BLACKBOOK",null,null,null,"Sign Shop Services","% customer rating good or excellent",null,{"$f":"'Data SBP Measures'!$AF52&'Data SBP Measures'!$AE52& \" - \"& 'Data SBP Measures'!$U52","v":"% customer rating good or excellentSign Shop Services - 149"},{"$f":"_xlfn.XLOOKUP(VALUE(W52),'Data SBP Programs'!O:O,'Data SBP Programs'!S:S)","v":"Sign Shop Services"}]
[{"$f":"'Data SBP Measures'!$AI774&\" - \"&'Data SBP Measures'!$U774","v":"Accounting Division - 121"},{"$f":"'Data SBP Measures'!$AF774","v":"Judgdments prepared"},{"$f":"'Data SBP Measures'!$T774","v":"1837"},{"$f":"'Data SBP Measures'!$U774&B53","v":"121Judgdments prepared"},{"$f":"'Data SBP Measures'!$Y774","v":"EACH"},null,null,null,null,null,"Accounting Division - 121","Judgdments prepared",null,null,null,null,null,null,null,"1072","149","Y","140","TNR Human Resources","PERCENT","OUTCOME","BLACKBOOK",null,null,null,"TNR Human Resources","Percent of training participants rating training as good or excellent",null,{"$f":"'Data SBP Measures'!$AF53&'Data SBP Measures'!$AE53& \" - \"& 'Data SBP Measures'!$U53","v":"Percent of training participants rating training as good or excellentTNR Human Resources - 149"},{"$f":"_xlfn.XLOOKUP(VALUE(W53),'Data SBP Programs'!O:O,'Data SBP Programs'!S:S)","v":"TNR Human Resources"}]
[{"$f":"'Data SBP Measures'!$AI775&\" - \"&'Data SBP Measures'!$U775","v":"Accounting Division - 121"},{"$f":"'Data SBP Measures'!$AF775","v":"Judgdments prepared"},{"$f":"'Data SBP Measures'!$T775","v":"1837"},{"$f":"'Data SBP Measures'!$U775&B54","v":"121Judgdments prepared"},{"$f":"'Data SBP Measures'!$Y775","v":"EACH"},null,null,null,null,null,"Accounting Division - 121","Judgdments prepared",null,null,null,null,null,null,null,"1077","149","Y","142","TNR-Records Management","DOLLARS","OUTCOME","BLACKBOOK",null,null,null,"TNR-Records Management","Annual contracted services to digitize permanent retention records",null,{"$f":"'Data SBP Measures'!$AF54&'Data SBP Measures'!$AE54& \" - \"& 'Data SBP Measures'!$U54","v":"Annual contracted services to digitize permanent retention recordsTNR-Records Management - 149"},{"$f":"_xlfn.XLOOKUP(VALUE(W54),'Data SBP Programs'!O:O,'Data SBP Programs'!S:S)","v":"TNR-Records Management"}]
[{"$f":"'Data SBP Measures'!$AI761&\" - \"&'Data SBP Measures'!$U761","v":"Accounting Division - 121"},{"$f":"'Data SBP Measures'!$AF761","v":"Pen Packets prepared"},{"$f":"'Data SBP Measures'!$T761","v":"1832"},{"$f":"'Data SBP Measures'!$U761&B55","v":"121Pen Packets prepared"},{"$f":"'Data SBP Measures'!$Y761","v":"EACH"},null,null,null,null,null,"Accounting Division - 121","Pen Packets prepared",null,null,null,null,null,null,null,"1078","149","Y","142","TNR-Records Management","EACH","OUTPUT","BLACKBOOK",null,null,null,"TNR-Records Management","Number of Plan sets digitized (revised)",null,{"$f":"'Data SBP Measures'!$AF55&'Data SBP Measures'!$AE55& \" - \"& 'Data SBP Measures'!$U55","v":"Number of Plan sets digitized (revised)TNR-Records Management - 149"},{"$f":"_xlfn.XLOOKUP(VALUE(W55),'Data SBP Programs'!O:O,'Data SBP Programs'!S:S)","v":"TNR-Records Management"}]
[{"$f":"'Data SBP Measures'!$AI762&\" - \"&'Data SBP Measures'!$U762","v":"Accounting Division - 121"},{"$f":"'Data SBP Measures'!$AF762","v":"Pen Packets prepared"},{"$f":"'Data SBP Measures'!$T762","v":"1832"},{"$f":"'Data SBP Measures'!$U762&B56","v":"121Pen Packets prepared"},{"$f":"'Data SBP Measures'!$Y762","v":"EACH"},null,null,null,null,null,"Accounting Division - 121","Pen Packets prepared",null,null,null,null,null,null,null,"1079","149","Y","141","TNR-Administrative Support","PERCENT","OUTCOME","BLACKBOOK",null,null,null,"TNR-Administrative Support","Internal users satisfied or better based on annual customer service satisfaction survey",null,{"$f":"'Data SBP Measures'!$AF56&'Data SBP Measures'!$AE56& \" - \"& 'Data SBP Measures'!$U56","v":"Internal users satisfied or better based on annual customer service satisfaction surveyTNR-Administrative Support - 149"},{"$f":"_xlfn.XLOOKUP(VALUE(W56),'Data SBP Programs'!O:O,'Data SBP Programs'!S:S)","v":"TNR-Administrative Support"}]
[{"$f":"'Data SBP Measures'!$AI763&\" - \"&'Data SBP Measures'!$U763","v":"Accounting Division - 121"},{"$f":"'Data SBP Measures'!$AF763","v":"Pen Packets prepared"},{"$f":"'Data SBP Measures'!$T763","v":"1832"},{"$f":"'Data SBP Measures'!$U763&B57","v":"121Pen Packets prepared"},{"$f":"'Data SBP Measures'!$Y763","v":"EACH"},null,null,null,null,null,"Accounting Division - 121","Pen Packets prepared",null,null,null,null,null,null,null,"1080","149","Y","142","TNR-Records Management","EACH","OUTPUT","BLACKBOOK",null,null,null,"TNR-Records Management","large-format pages scanned by contracted service.",null,{"$f":"'Data SBP Measures'!$AF57&'Data SBP Measures'!$AE57& \" - \"& 'Data SBP Measures'!$U57","v":"large-format pages scanned by contracted service.TNR-Records Management - 149"},{"$f":"_xlfn.XLOOKUP(VALUE(W57),'Data SBP Programs'!O:O,'Data SBP Programs'!S:S)","v":"TNR-Records Management"}]
[{"$f":"'Data SBP Measures'!$AI779&\" - \"&'Data SBP Measures'!$U779","v":"Accounting Division - 121"},{"$f":"'Data SBP Measures'!$AF779","v":"Post-conviction writs processed"},{"$f":"'Data SBP Measures'!$T779","v":"1839"},{"$f":"'Data SBP Measures'!$U779&B58","v":"121Post-conviction writs processed"},{"$f":"'Data SBP Measures'!$Y779","v":"EACH"},null,null,null,null,null,"Accounting Division - 121","Post-conviction writs processed",null,null,null,null,null,null,null,"1081","149","Y","142","TNR-Records Management","EACH","OUTCOME","BLACKBOOK",null,null,null,"TNR-Records Management","pages per year scanned, indexed and linked to records system by internal staffing",null,{"$f":"'Data SBP Measures'!$AF58&'Data SBP Measures'!$AE58& \" - \"& 'Data SBP Measures'!$U58","v":"pages per year scanned, indexed and linked to records system by internal staffingTNR-Records Management - 149"},{"$f":"_xlfn.XLOOKUP(VALUE(W58),'Data SBP Programs'!O:O,'Data SBP Programs'!S:S)","v":"TNR-Records Management"}]
[{"$f":"'Data SBP Measures'!$AI780&\" - \"&'Data SBP Measures'!$U780","v":"Accounting Division - 121"},{"$f":"'Data SBP Measures'!$AF780","v":"Post-conviction writs processed"},{"$f":"'Data SBP Measures'!$T780","v":"1839"},{"$f":"'Data SBP Measures'!$U780&B59","v":"121Post-conviction writs processed"},{"$f":"'Data SBP Measures'!$Y780","v":"EACH"},null,null,null,null,null,"Accounting Division - 121","Post-conviction writs processed",null,null,null,null,null,null,null,"1082","149","Y","143","TNR-Safety","HOURS","EFFICIENCY","BLACKBOOK",null,null,null,"TNR-Safety","Average Hours spent per claim",null,{"$f":"'Data SBP Measures'!$AF59&'Data SBP Measures'!$AE59& \" - \"& 'Data SBP Measures'!$U59","v":"Average Hours spent per claimTNR-Safety - 149"},{"$f":"_xlfn.XLOOKUP(VALUE(W59),'Data SBP Programs'!O:O,'Data SBP Programs'!S:S)","v":"TNR-Safety"}]
[{"$f":"'Data SBP Measures'!$AI781&\" - \"&'Data SBP Measures'!$U781","v":"Accounting Division - 121"},{"$f":"'Data SBP Measures'!$AF781","v":"Post-conviction writs processed"},{"$f":"'Data SBP Measures'!$T781","v":"1839"},{"$f":"'Data SBP Measures'!$U781&B60","v":"121Post-conviction writs processed"},{"$f":"'Data SBP Measures'!$Y781","v":"EACH"},null,null,null,null,null,"Accounting Division - 121","Post-conviction writs processed",null,null,null,null,null,null,null,"1083","149","Y","143","TNR-Safety","EACH","OUTPUT","BLACKBOOK",null,null,null,"TNR-Safety","Number of Property Loss Claims",null,{"$f":"'Data SBP Measures'!$AF60&'Data SBP Measures'!$AE60& \" - \"& 'Data SBP Measures'!$U60","v":"Number of Property Loss ClaimsTNR-Safety - 149"},{"$f":"_xlfn.XLOOKUP(VALUE(W60),'Data SBP Programs'!O:O,'Data SBP Programs'!S:S)","v":"TNR-Safety"}]
[{"$f":"'Data SBP Measures'!$AI758&\" - \"&'Data SBP Measures'!$U758","v":"Accounting Division - 121"},{"$f":"'Data SBP Measures'!$AF758","v":"Subpoenas processed"},{"$f":"'Data SBP Measures'!$T758","v":"1830"},{"$f":"'Data SBP Measures'!$U758&B61","v":"121Subpoenas processed"},{"$f":"'Data SBP Measures'!$Y758","v":"EACH"},null,null,null,null,null,"Accounting Division - 121","Subpoenas processed",null,null,null,null,null,null,null,"1084","149","Y","143","TNR-Safety","PERCENT","OUTCOME","BLACKBOOK",null,null,null,"TNR-Safety","Percent of reduction in preventable collisions",null,{"$f":"'Data SBP Measures'!$AF61&'Data SBP Measures'!$AE61& \" - \"& 'Data SBP Measures'!$U61","v":"Percent of reduction in preventable collisionsTNR-Safety - 149"},{"$f":"_xlfn.XLOOKUP(VALUE(W61),'Data SBP Programs'!O:O,'Data SBP Programs'!S:S)","v":"TNR-Safety"}]
[{"$f":"'Data SBP Measures'!$AI759&\" - \"&'Data SBP Measures'!$U759","v":"Accounting Division - 121"},{"$f":"'Data SBP Measures'!$AF759","v":"Subpoenas processed"},{"$f":"'Data SBP Measures'!$T759","v":"1830"},{"$f":"'Data SBP Measures'!$U759&B62","v":"121Subpoenas processed"},{"$f":"'Data SBP Measures'!$Y759","v":"EACH"},null,null,null,null,null,"Accounting Division - 121","Subpoenas processed",null,null,null,null,null,null,null,"1085","149","Y","143","TNR-Safety","PERCENT","INPUT","BLACKBOOK",null,null,null,"TNR-Safety","Percent of staff hours investigating property loss incidents",null,{"$f":"'Data SBP Measures'!$AF62&'Data SBP Measures'!$AE62& \" - \"& 'Data SBP Measures'!$U62","v":"Percent of staff hours investigating property loss incidentsTNR-Safety - 149"},{"$f":"_xlfn.XLOOKUP(VALUE(W62),'Data SBP Programs'!O:O,'Data SBP Programs'!S:S)","v":"TNR-Safety"}]
[{"$f":"'Data SBP Measures'!$AI760&\" - \"&'Data SBP Measures'!$U760","v":"Accounting Division - 121"},{"$f":"'Data SBP Measures'!$AF760","v":"Subpoenas processed"},{"$f":"'Data SBP Measures'!$T760","v":"1830"},{"$f":"'Data SBP Measures'!$U760&B63","v":"121Subpoenas processed"},{"$f":"'Data SBP Measures'!$Y760","v":"EACH"},null,null,null,null,null,"Accounting Division - 121","Subpoenas processed",null,null,null,null,null,null,null,"1090","158","Y","145","CDBG Administration","PERCENT","OUTCOME","ADOPTEDBUD",null,null,null,"CDBG Administration","Increase % of services to areas of very low/low opportunity",null,{"$f":"'Data SBP Measures'!$AF63&'Data SBP Measures'!$AE63& \" - \"& 'Data SBP Measures'!$U63","v":"Increase % of services to areas of very low/low opportunityCDBG Administration - 158"},{"$f":"_xlfn.XLOOKUP(VALUE(W63),'Data SBP Programs'!O:O,'Data SBP Programs'!S:S)","v":"CDBG Administration"}]
[{"$f":"'Data SBP Measures'!$AI523&\" - \"&'Data SBP Measures'!$U523","v":"Administration - 108"},{"$f":"'Data SBP Measures'!$AF523","v":"# of hours involved (Staff time)"},{"$f":"'Data SBP Measures'!$T523","v":"158"},{"$f":"'Data SBP Measures'!$U523&B64","v":"108# of hours involved (Staff time)"},{"$f":"'Data SBP Measures'!$Y523","v":"HOURS"},null,null,null,null,null,"Administration - 108","# of hours involved (Staff time)",null,null,null,null,null,null,null,"1091","158","Y","145","CDBG Administration","EACH","OUTPUT","ADOPTEDBUD",null,null,null,"CDBG Administration","Affirmatively Further Fair Housing as required",null,{"$f":"'Data SBP Measures'!$AF64&'Data SBP Measures'!$AE64& \" - \"& 'Data SBP Measures'!$U64","v":"Affirmatively Further Fair Housing as requiredCDBG Administration - 158"},{"$f":"_xlfn.XLOOKUP(VALUE(W64),'Data SBP Programs'!O:O,'Data SBP Programs'!S:S)","v":"CDBG Administration"}]
[{"$f":"'Data SBP Measures'!$AI502&\" - \"&'Data SBP Measures'!$U502","v":"Administration - 108"},{"$f":"'Data SBP Measures'!$AF502","v":"# of reports completed on time (Monitor compliance with target)"},{"$f":"'Data SBP Measures'!$T502","v":"155"},{"$f":"'Data SBP Measures'!$U502&B65","v":"108# of reports completed on time (Monitor compliance with target)"},{"$f":"'Data SBP Measures'!$Y502","v":"EACH"},null,null,null,null,null,"Administration - 108","# of reports completed on time (Monitor compliance with target)",null,null,null,null,null,null,null,"1092","158","Y","145","CDBG Administration","EACH","OUTCOME","ADOPTEDBUD",null,null,null,"CDBG Administration","Meet HUD required spending ratio by August 1st",null,{"$f":"'Data SBP Measures'!$AF65&'Data SBP Measures'!$AE65& \" - \"& 'Data SBP Measures'!$U65","v":"Meet HUD required spending ratio by August 1stCDBG Administration - 158"},{"$f":"_xlfn.XLOOKUP(VALUE(W65),'Data SBP Programs'!O:O,'Data SBP Programs'!S:S)","v":"CDBG Administration"}]
[{"$f":"'Data SBP Measures'!$AI492&\" - \"&'Data SBP Measures'!$U492","v":"Administration - 108"},{"$f":"'Data SBP Measures'!$AF492","v":"# of reports input"},{"$f":"'Data SBP Measures'!$T492","v":"154"},{"$f":"'Data SBP Measures'!$U492&B66","v":"108# of reports input"},{"$f":"'Data SBP Measures'!$Y492","v":"EACH"},null,null,null,null,null,"Administration - 108","# of reports input",null,null,null,null,null,null,null,"1093","158","Y","145","CDBG Administration","EACH","OUTCOME","ADOPTEDBUD",null,null,null,"CDBG Administration","Successful completion of monitoring visit by HUD personnel - findings.",null,{"$f":"'Data SBP Measures'!$AF66&'Data SBP Measures'!$AE66& \" - \"& 'Data SBP Measures'!$U66","v":"Successful completion of monitoring visit by HUD personnel - findings.CDBG Administration - 158"},{"$f":"_xlfn.XLOOKUP(VALUE(W66),'Data SBP Programs'!O:O,'Data SBP Programs'!S:S)","v":"CDBG Administration"}]
[{"$f":"'Data SBP Measures'!$AI513&\" - \"&'Data SBP Measures'!$U513","v":"Administration - 108"},{"$f":"'Data SBP Measures'!$AF513","v":"# of resources (FTEs)"},{"$f":"'Data SBP Measures'!$T513","v":"157"},{"$f":"'Data SBP Measures'!$U513&B67","v":"108# of resources (FTEs)"},{"$f":"'Data SBP Measures'!$Y513","v":"FTE"},null,null,null,null,null,"Administration - 108","# of resources (FTEs)",null,null,null,null,null,null,null,"1094","158","Y","146","Child Protective Services Reintegration Project (CRP)","PERCENT","OUTCOME","ADOPTEDBUD",null,null,null,"Child Protective Services Reintegration Project (CRP)","Percentage  of families who  successfully/voluntary discharge post reintegration",null,{"$f":"'Data SBP Measures'!$AF67&'Data SBP Measures'!$AE67& \" - \"& 'Data SBP Measures'!$U67","v":"Percentage  of families who  successfully/voluntary discharge post reintegrationChild Protective Services Reintegration Project (CRP) - 158"},{"$f":"_xlfn.XLOOKUP(VALUE(W67),'Data SBP Programs'!O:O,'Data SBP Programs'!S:S)","v":"Child Protective Services Reintegration Project (CRP)"}]
[{"$f":"'Data SBP Measures'!$AI552&\" - \"&'Data SBP Measures'!$U552","v":"Administration - 108"},{"$f":"'Data SBP Measures'!$AF552","v":"# strategic goals"},{"$f":"'Data SBP Measures'!$T552","v":"161"},{"$f":"'Data SBP Measures'!$U552&B68","v":"108# strategic goals"},{"$f":"'Data SBP Measures'!$Y552","v":"EACH"},null,null,null,null,null,"Administration - 108","# strategic goals",null,null,null,null,null,null,null,"1095","158","Y","146","Child Protective Services Reintegration Project (CRP)","EACH","OUTCOME","NEITHER",null,null,null,"Child Protective Services Reintegration Project (CRP)","Number of children who are residing in the community 6 mo after CPS case closure",null,{"$f":"'Data SBP Measures'!$AF68&'Data SBP Measures'!$AE68& \" - \"& 'Data SBP Measures'!$U68","v":"Number of children who are residing in the community 6 mo after CPS case closureChild Protective Services Reintegration Project (CRP) - 158"},{"$f":"_xlfn.XLOOKUP(VALUE(W68),'Data SBP Programs'!O:O,'Data SBP Programs'!S:S)","v":"Child Protective Services Reintegration Project (CRP)"}]
[{"$f":"'Data SBP Measures'!$AI2713&\" - \"&'Data SBP Measures'!$U2713","v":"Administration - 108"},{"$f":"'Data SBP Measures'!$AF2713","v":"% of goals actively monitored"},{"$f":"'Data SBP Measures'!$T2713","v":"3328"},{"$f":"'Data SBP Measures'!$U2713&B69","v":"108% of goals actively monitored"},{"$f":"'Data SBP Measures'!$Y2713","v":"PERCENT"},null,null,null,null,null,"Administration - 108","% of goals actively monitored",null,null,null,null,null,null,null,"1096","158","Y","146","Child Protective Services Reintegration Project (CRP)","EACH","OUTCOME","NEITHER",null,null,null,"Child Protective Services Reintegration Project (CRP)","Number of children/youth who are reintegrated into the community post CPS placement",null,{"$f":"'Data SBP Measures'!$AF69&'Data SBP Measures'!$AE69& \" - \"& 'Data SBP Measures'!$U69","v":"Number of children/youth who are reintegrated into the community post CPS placementChild Protective Services Reintegration Project (CRP) - 158"},{"$f":"_xlfn.XLOOKUP(VALUE(W69),'Data SBP Programs'!O:O,'Data SBP Programs'!S:S)","v":"Child Protective Services Reintegration Project (CRP)"}]
[{"$f":"'Data SBP Measures'!$AI2715&\" - \"&'Data SBP Measures'!$U2715","v":"Administration - 108"},{"$f":"'Data SBP Measures'!$AF2715","v":"% of goals completed"},{"$f":"'Data SBP Measures'!$T2715","v":"3330"},{"$f":"'Data SBP Measures'!$U2715&B70","v":"108% of goals completed"},{"$f":"'Data SBP Measures'!$Y2715","v":"PERCENT"},null,null,null,null,null,"Administration - 108","% of goals completed",null,null,null,null,null,null,null,"1097","158","Y","146","Child Protective Services Reintegration Project (CRP)","EACH","INPUT","NEITHER",null,null,null,"Child Protective Services Reintegration Project (CRP)","Number of families enrolled into the program post screening",null,{"$f":"'Data SBP Measures'!$AF70&'Data SBP Measures'!$AE70& \" - \"& 'Data SBP Measures'!$U70","v":"Number of families enrolled into the program post screeningChild Protective Services Reintegration Project (CRP) - 158"},{"$f":"_xlfn.XLOOKUP(VALUE(W70),'Data SBP Programs'!O:O,'Data SBP Programs'!S:S)","v":"Child Protective Services Reintegration Project (CRP)"}]
[{"$f":"'Data SBP Measures'!$AI2714&\" - \"&'Data SBP Measures'!$U2714","v":"Administration - 108"},{"$f":"'Data SBP Measures'!$AF2714","v":"% of goals on target"},{"$f":"'Data SBP Measures'!$T2714","v":"3329"},{"$f":"'Data SBP Measures'!$U2714&B71","v":"108% of goals on target"},{"$f":"'Data SBP Measures'!$Y2714","v":"PERCENT"},null,null,null,null,null,"Administration - 108","% of goals on target",null,null,null,null,null,null,null,"1098","158","Y","146","Child Protective Services Reintegration Project (CRP)","EACH","OUTPUT","NEITHER",null,null,null,"Child Protective Services Reintegration Project (CRP)","Number of families screened for program services and eligibility",null,{"$f":"'Data SBP Measures'!$AF71&'Data SBP Measures'!$AE71& \" - \"& 'Data SBP Measures'!$U71","v":"Number of families screened for program services and eligibilityChild Protective Services Reintegration Project (CRP) - 158"},{"$f":"_xlfn.XLOOKUP(VALUE(W71),'Data SBP Programs'!O:O,'Data SBP Programs'!S:S)","v":"Child Protective Services Reintegration Project (CRP)"}]
[{"$f":"'Data SBP Measures'!$AI509&\" - \"&'Data SBP Measures'!$U509","v":"Administration - 108"},{"$f":"'Data SBP Measures'!$AF509","v":"% of regular and on time reports"},{"$f":"'Data SBP Measures'!$T509","v":"156"},{"$f":"'Data SBP Measures'!$U509&B72","v":"108% of regular and on time reports"},{"$f":"'Data SBP Measures'!$Y509","v":"PERCENT"},null,null,null,null,null,"Administration - 108","% of regular and on time reports",null,null,null,null,null,null,null,"1099","158","Y","146","Child Protective Services Reintegration Project (CRP)","EACH","OUTPUT","NEITHER",null,null,null,"Child Protective Services Reintegration Project (CRP)","Number of unduplicated families served during the fiscal year",null,{"$f":"'Data SBP Measures'!$AF72&'Data SBP Measures'!$AE72& \" - \"& 'Data SBP Measures'!$U72","v":"Number of unduplicated families served during the fiscal yearChild Protective Services Reintegration Project (CRP) - 158"},{"$f":"_xlfn.XLOOKUP(VALUE(W72),'Data SBP Programs'!O:O,'Data SBP Programs'!S:S)","v":"Child Protective Services Reintegration Project (CRP)"}]
[{"$f":"'Data SBP Measures'!$AI2433&\" - \"&'Data SBP Measures'!$U2433","v":"Administration - 112"},{"$f":"'Data SBP Measures'!$AF2433","v":"# of invoices paid with interest -TX Gov Code § 2251.021"},{"$f":"'Data SBP Measures'!$T2433","v":"302"},{"$f":"'Data SBP Measures'!$U2433&B73","v":"112# of invoices paid with interest -TX Gov Code § 2251.021"},{"$f":"'Data SBP Measures'!$Y2433","v":"EACH"},null,null,null,null,null,"Administration - 112","# of invoices paid with interest -TX Gov Code § 2251.021",null,null,null,null,null,null,null,"1100","158","Y","147","Family First","PERCENT","OUTCOME","NEITHER",null,null,null,"Family First","Percentage of children removed from their home by DFPS at case closure\n",null,{"$f":"'Data SBP Measures'!$AF73&'Data SBP Measures'!$AE73& \" - \"& 'Data SBP Measures'!$U73","v":"Percentage of children removed from their home by DFPS at case closure\nFamily First - 158"},{"$f":"_xlfn.XLOOKUP(VALUE(W73),'Data SBP Programs'!O:O,'Data SBP Programs'!S:S)","v":"Family First"}]
[{"$f":"'Data SBP Measures'!$AI2422&\" - \"&'Data SBP Measures'!$U2422","v":"Administration - 112"},{"$f":"'Data SBP Measures'!$AF2422","v":"# of total Purchase Orders over 90 days"},{"$f":"'Data SBP Measures'!$T2422","v":"301"},{"$f":"'Data SBP Measures'!$U2422&B74","v":"112# of total Purchase Orders over 90 days"},{"$f":"'Data SBP Measures'!$Y2422","v":"EACH"},null,null,null,null,null,"Administration - 112","# of total Purchase Orders over 90 days",null,null,null,null,null,null,null,"1102","158","Y","147","Family First","PERCENT","OUTCOME","ADOPTEDBUD",null,null,null,"Family First","Percentage of parents that successfully complete the Nurturing Parenting Program",null,{"$f":"'Data SBP Measures'!$AF74&'Data SBP Measures'!$AE74& \" - \"& 'Data SBP Measures'!$U74","v":"Percentage of parents that successfully complete the Nurturing Parenting ProgramFamily First - 158"},{"$f":"_xlfn.XLOOKUP(VALUE(W74),'Data SBP Programs'!O:O,'Data SBP Programs'!S:S)","v":"Family First"}]
[{"$f":"'Data SBP Measures'!$AI2436&\" - \"&'Data SBP Measures'!$U2436","v":"Administration - 112"},{"$f":"'Data SBP Measures'!$AF2436","v":"% of computer devices replaced with no data loss"},{"$f":"'Data SBP Measures'!$T2436","v":"303"},{"$f":"'Data SBP Measures'!$U2436&B75","v":"112% of computer devices replaced with no data loss"},{"$f":"'Data SBP Measures'!$Y2436","v":"PERCENT"},null,null,null,null,null,"Administration - 112","% of computer devices replaced with no data loss",null,null,null,null,null,null,null,"1103","158","Y","147","Family First","EACH","OUTPUT","NEITHER",null,null,null,"Family First","Number of unduplicated families served",null,{"$f":"'Data SBP Measures'!$AF75&'Data SBP Measures'!$AE75& \" - \"& 'Data SBP Measures'!$U75","v":"Number of unduplicated families servedFamily First - 158"},{"$f":"_xlfn.XLOOKUP(VALUE(W75),'Data SBP Programs'!O:O,'Data SBP Programs'!S:S)","v":"Family First"}]
[{"$f":"'Data SBP Measures'!$AI1986&\" - \"&'Data SBP Measures'!$U1986","v":"Administration - 138"},{"$f":"'Data SBP Measures'!$AF1986","v":"Cremation Authorizations Issued – Travis County"},{"$f":"'Data SBP Measures'!$T1986","v":"2574"},{"$f":"'Data SBP Measures'!$U1986&B76","v":"138Cremation Authorizations Issued – Travis County"},{"$f":"'Data SBP Measures'!$Y1986","v":"EACH"},null,null,null,null,null,"Administration - 138","Cremation Authorizations Issued – Travis County",null,null,null,null,null,null,null,"1104","158","Y","148","engAGE Travis County","HOURS","INPUT","NEITHER",null,null,null,"engAGE Travis County","Number of volunteer service hours contributed",null,{"$f":"'Data SBP Measures'!$AF76&'Data SBP Measures'!$AE76& \" - \"& 'Data SBP Measures'!$U76","v":"Number of volunteer service hours contributedengAGE Travis County - 158"},{"$f":"_xlfn.XLOOKUP(VALUE(W76),'Data SBP Programs'!O:O,'Data SBP Programs'!S:S)","v":"engAGE Travis County"}]
[{"$f":"'Data SBP Measures'!$AI1987&\" - \"&'Data SBP Measures'!$U1987","v":"Administration - 138"},{"$f":"'Data SBP Measures'!$AF1987","v":"Death Certifications Issued – Travis County"},{"$f":"'Data SBP Measures'!$T1987","v":"2575"},{"$f":"'Data SBP Measures'!$U1987&B77","v":"138Death Certifications Issued – Travis County"},{"$f":"'Data SBP Measures'!$Y1987","v":"EACH"},null,null,null,null,null,"Administration - 138","Death Certifications Issued – Travis County",null,null,null,null,null,null,null,"1105","158","Y","148","engAGE Travis County","PERCENT","OUTCOME","ADOPTEDBUD",null,null,null,"engAGE Travis County","% of volunteers reporting more purposeful lives",null,{"$f":"'Data SBP Measures'!$AF77&'Data SBP Measures'!$AE77& \" - \"& 'Data SBP Measures'!$U77","v":"% of volunteers reporting more purposeful livesengAGE Travis County - 158"},{"$f":"_xlfn.XLOOKUP(VALUE(W77),'Data SBP Programs'!O:O,'Data SBP Programs'!S:S)","v":"engAGE Travis County"}]
[{"$f":"'Data SBP Measures'!$AI1988&\" - \"&'Data SBP Measures'!$U1988","v":"Administration - 138"},{"$f":"'Data SBP Measures'!$AF1988","v":"Records Requests for Documents & Information"},{"$f":"'Data SBP Measures'!$T1988","v":"2576"},{"$f":"'Data SBP Measures'!$U1988&B78","v":"138Records Requests for Documents & Information"},{"$f":"'Data SBP Measures'!$Y1988","v":"EACH"},null,null,null,null,null,"Administration - 138","Records Requests for Documents & Information",null,null,null,null,null,null,null,"1106","158","Y","148","engAGE Travis County","DOLLARS","OUTCOME","ADOPTEDBUD",null,null,null,"engAGE Travis County","Added dollar value of volunteer support to agencies",null,{"$f":"'Data SBP Measures'!$AF78&'Data SBP Measures'!$AE78& \" - \"& 'Data SBP Measures'!$U78","v":"Added dollar value of volunteer support to agenciesengAGE Travis County - 158"},{"$f":"_xlfn.XLOOKUP(VALUE(W78),'Data SBP Programs'!O:O,'Data SBP Programs'!S:S)","v":"engAGE Travis County"}]
[{"$f":"'Data SBP Measures'!$AI3020&\" - \"&'Data SBP Measures'!$U3020","v":"Administration - Accounting - 120"},{"$f":"'Data SBP Measures'!$AF3020","v":"Amount of Custodial Deposits at Year End"},{"$f":"'Data SBP Measures'!$T3020","v":"439"},{"$f":"'Data SBP Measures'!$U3020&B79","v":"120Amount of Custodial Deposits at Year End"},{"$f":"'Data SBP Measures'!$Y3020","v":"DOLLARS"},null,null,null,null,null,"Administration - Accounting - 120","Amount of Custodial Deposits at Year End",null,null,null,null,null,null,null,"1107","158","Y","148","engAGE Travis County","EACH","OUTPUT","NEITHER",null,null,null,"engAGE Travis County","Number of active volunteers",null,{"$f":"'Data SBP Measures'!$AF79&'Data SBP Measures'!$AE79& \" - \"& 'Data SBP Measures'!$U79","v":"Number of active volunteersengAGE Travis County - 158"},{"$f":"_xlfn.XLOOKUP(VALUE(W79),'Data SBP Programs'!O:O,'Data SBP Programs'!S:S)","v":"engAGE Travis County"}]
[{"$f":"'Data SBP Measures'!$AI3021&\" - \"&'Data SBP Measures'!$U3021","v":"Administration - Accounting - 120"},{"$f":"'Data SBP Measures'!$AF3021","v":"Hours on Audit and Review of Daily work"},{"$f":"'Data SBP Measures'!$T3021","v":"441"},{"$f":"'Data SBP Measures'!$U3021&B80","v":"120Hours on Audit and Review of Daily work"},{"$f":"'Data SBP Measures'!$Y3021","v":"HOURS"},null,null,null,null,null,"Administration - Accounting - 120","Hours on Audit and Review of Daily work",null,null,null,null,null,null,null,"1108","158","Y","150","Office of the Chief Deputy: Community Liaison\n","PERCENT","OUTCOME","ADOPTEDBUD",null,null,null,"Office of the Chief Deputy: Community Liaison\n","% of activities that generate new leads and partnerships",null,{"$f":"'Data SBP Measures'!$AF80&'Data SBP Measures'!$AE80& \" - \"& 'Data SBP Measures'!$U80","v":"% of activities that generate new leads and partnershipsOffice of the Chief Deputy: Community Liaison\n - 158"},{"$f":"_xlfn.XLOOKUP(VALUE(W80),'Data SBP Programs'!O:O,'Data SBP Programs'!S:S)","v":"Office of the Chief Deputy: Community Liaison\n"}]
[{"$f":"'Data SBP Measures'!$AI3022&\" - \"&'Data SBP Measures'!$U3022","v":"Administration - Accounting - 120"},{"$f":"'Data SBP Measures'!$AF3022","v":"Hours on Bank Reconcilations/Financial Reports"},{"$f":"'Data SBP Measures'!$T3022","v":"442"},{"$f":"'Data SBP Measures'!$U3022&B81","v":"120Hours on Bank Reconcilations/Financial Reports"},{"$f":"'Data SBP Measures'!$Y3022","v":"HOURS"},null,null,null,null,null,"Administration - Accounting - 120","Hours on Bank Reconcilations/Financial Reports",null,null,null,null,null,null,null,"1109","158","Y","150","Office of the Chief Deputy: Community Liaison\n","EACH","OUTPUT","NEITHER",null,null,null,"Office of the Chief Deputy: Community Liaison\n","# of forums/collaborations/events organized or facilitated",null,{"$f":"'Data SBP Measures'!$AF81&'Data SBP Measures'!$AE81& \" - \"& 'Data SBP Measures'!$U81","v":"# of forums/collaborations/events organized or facilitatedOffice of the Chief Deputy: Community Liaison\n - 158"},{"$f":"_xlfn.XLOOKUP(VALUE(W81),'Data SBP Programs'!O:O,'Data SBP Programs'!S:S)","v":"Office of the Chief Deputy: Community Liaison\n"}]
[{"$f":"'Data SBP Measures'!$AI3023&\" - \"&'Data SBP Measures'!$U3023","v":"Administration - Accounting - 120"},{"$f":"'Data SBP Measures'!$AF3023","v":"Hours on Billing"},{"$f":"'Data SBP Measures'!$T3023","v":"443"},{"$f":"'Data SBP Measures'!$U3023&B82","v":"120Hours on Billing"},{"$f":"'Data SBP Measures'!$Y3023","v":"HOURS"},null,null,null,null,null,"Administration - Accounting - 120","Hours on Billing",null,null,null,null,null,null,null,"1110","158","Y","150","Office of the Chief Deputy: Community Liaison\n","EACH","OUTPUT","NEITHER",null,null,null,"Office of the Chief Deputy: Community Liaison\n","# of TA sessions provided to HHS divisions and CBOs",null,{"$f":"'Data SBP Measures'!$AF82&'Data SBP Measures'!$AE82& \" - \"& 'Data SBP Measures'!$U82","v":"# of TA sessions provided to HHS divisions and CBOsOffice of the Chief Deputy: Community Liaison\n - 158"},{"$f":"_xlfn.XLOOKUP(VALUE(W82),'Data SBP Programs'!O:O,'Data SBP Programs'!S:S)","v":"Office of the Chief Deputy: Community Liaison\n"}]
[{"$f":"'Data SBP Measures'!$AI3024&\" - \"&'Data SBP Measures'!$U3024","v":"Administration - Accounting - 120"},{"$f":"'Data SBP Measures'!$AF3024","v":"Hours on Disbursements"},{"$f":"'Data SBP Measures'!$T3024","v":"444"},{"$f":"'Data SBP Measures'!$U3024&B83","v":"120Hours on Disbursements"},{"$f":"'Data SBP Measures'!$Y3024","v":"HOURS"},null,null,null,null,null,"Administration - Accounting - 120","Hours on Disbursements",null,null,null,null,null,null,null,"1111","158","Y","153","Family Support Services Division","EACH","EFFICIENCY","NEITHER",null,null,null,"Family Support Services Division","Average number of payments processed by caseworker per month",null,{"$f":"'Data SBP Measures'!$AF83&'Data SBP Measures'!$AE83& \" - \"& 'Data SBP Measures'!$U83","v":"Average number of payments processed by caseworker per monthFamily Support Services Division - 158"},{"$f":"_xlfn.XLOOKUP(VALUE(W83),'Data SBP Programs'!O:O,'Data SBP Programs'!S:S)","v":"Family Support Services Division"}]
[{"$f":"'Data SBP Measures'!$AI3025&\" - \"&'Data SBP Measures'!$U3025","v":"Administration - Accounting - 120"},{"$f":"'Data SBP Measures'!$AF3025","v":"Hours on Election Billing"},{"$f":"'Data SBP Measures'!$T3025","v":"445"},{"$f":"'Data SBP Measures'!$U3025&B84","v":"120Hours on Election Billing"},{"$f":"'Data SBP Measures'!$Y3025","v":"HOURS"},null,null,null,null,null,"Administration - Accounting - 120","Hours on Election Billing",null,null,null,null,null,null,null,"1113","158","Y","153","Family Support Services Division","EACH","OUTPUT","NEITHER",null,null,null,"Family Support Services Division","# of HH's that received Burials",null,{"$f":"'Data SBP Measures'!$AF84&'Data SBP Measures'!$AE84& \" - \"& 'Data SBP Measures'!$U84","v":"# of HH's that received BurialsFamily Support Services Division - 158"},{"$f":"_xlfn.XLOOKUP(VALUE(W84),'Data SBP Programs'!O:O,'Data SBP Programs'!S:S)","v":"Family Support Services Division"}]
[{"$f":"'Data SBP Measures'!$AI3026&\" - \"&'Data SBP Measures'!$U3026","v":"Administration - Accounting - 120"},{"$f":"'Data SBP Measures'!$AF3026","v":"Hours on Interest Bearing Deposits"},{"$f":"'Data SBP Measures'!$T3026","v":"446"},{"$f":"'Data SBP Measures'!$U3026&B85","v":"120Hours on Interest Bearing Deposits"},{"$f":"'Data SBP Measures'!$Y3026","v":"HOURS"},null,null,null,null,null,"Administration - Accounting - 120","Hours on Interest Bearing Deposits",null,null,null,null,null,null,null,"1115","158","Y","153","Family Support Services Division","EACH","OUTPUT","ADOPTEDBUD",null,null,null,"Family Support Services Division","# of HH's that received Food Pantry",null,{"$f":"'Data SBP Measures'!$AF85&'Data SBP Measures'!$AE85& \" - \"& 'Data SBP Measures'!$U85","v":"# of HH's that received Food PantryFamily Support Services Division - 158"},{"$f":"_xlfn.XLOOKUP(VALUE(W85),'Data SBP Programs'!O:O,'Data SBP Programs'!S:S)","v":"Family Support Services Division"}]
[{"$f":"'Data SBP Measures'!$AI3027&\" - \"&'Data SBP Measures'!$U3027","v":"Administration - Accounting - 120"},{"$f":"'Data SBP Measures'!$AF3027","v":"Hours on Unclaimed Property Reporting"},{"$f":"'Data SBP Measures'!$T3027","v":"447"},{"$f":"'Data SBP Measures'!$U3027&B86","v":"120Hours on Unclaimed Property Reporting"},{"$f":"'Data SBP Measures'!$Y3027","v":"HOURS"},null,null,null,null,null,"Administration - Accounting - 120","Hours on Unclaimed Property Reporting",null,null,null,null,null,null,null,"1116","158","Y","153","Family Support Services Division","EACH","OUTPUT","NEITHER",null,null,null,"Family Support Services Division","# of HH's that received Prescriptions",null,{"$f":"'Data SBP Measures'!$AF86&'Data SBP Measures'!$AE86& \" - \"& 'Data SBP Measures'!$U86","v":"# of HH's that received PrescriptionsFamily Support Services Division - 158"},{"$f":"_xlfn.XLOOKUP(VALUE(W86),'Data SBP Programs'!O:O,'Data SBP Programs'!S:S)","v":"Family Support Services Division"}]
[{"$f":"'Data SBP Measures'!$AI3028&\" - \"&'Data SBP Measures'!$U3028","v":"Administration - Accounting - 120"},{"$f":"'Data SBP Measures'!$AF3028","v":"Hours on Year End IRS Reporting"},{"$f":"'Data SBP Measures'!$T3028","v":"448"},{"$f":"'Data SBP Measures'!$U3028&B87","v":"120Hours on Year End IRS Reporting"},{"$f":"'Data SBP Measures'!$Y3028","v":"HOURS"},null,null,null,null,null,"Administration - Accounting - 120","Hours on Year End IRS Reporting",null,null,null,null,null,null,null,"1117","158","Y","153","Family Support Services Division","EACH","OUTPUT","ADOPTEDBUD",null,null,null,"Family Support Services Division","# of HH's that received Rent/Mortgage",null,{"$f":"'Data SBP Measures'!$AF87&'Data SBP Measures'!$AE87& \" - \"& 'Data SBP Measures'!$U87","v":"# of HH's that received Rent/MortgageFamily Support Services Division - 158"},{"$f":"_xlfn.XLOOKUP(VALUE(W87),'Data SBP Programs'!O:O,'Data SBP Programs'!S:S)","v":"Family Support Services Division"}]
[{"$f":"'Data SBP Measures'!$AI3029&\" - \"&'Data SBP Measures'!$U3029","v":"Administration - Accounting - 120"},{"$f":"'Data SBP Measures'!$AF3029","v":"Hours Printing and Mailing Monthly Statements"},{"$f":"'Data SBP Measures'!$T3029","v":"449"},{"$f":"'Data SBP Measures'!$U3029&B88","v":"120Hours Printing and Mailing Monthly Statements"},{"$f":"'Data SBP Measures'!$Y3029","v":"HOURS"},null,null,null,null,null,"Administration - Accounting - 120","Hours Printing and Mailing Monthly Statements",null,null,null,null,null,null,null,"1118","158","Y","153","Family Support Services Division","EACH","OUTPUT","NEITHER",null,null,null,"Family Support Services Division","# of HH's that received SW services",null,{"$f":"'Data SBP Measures'!$AF88&'Data SBP Measures'!$AE88& \" - \"& 'Data SBP Measures'!$U88","v":"# of HH's that received SW servicesFamily Support Services Division - 158"},{"$f":"_xlfn.XLOOKUP(VALUE(W88),'Data SBP Programs'!O:O,'Data SBP Programs'!S:S)","v":"Family Support Services Division"}]
[{"$f":"'Data SBP Measures'!$AI3030&\" - \"&'Data SBP Measures'!$U3030","v":"Administration - Accounting - 120"},{"$f":"'Data SBP Measures'!$AF3030","v":"Hours Spent on Scanning"},{"$f":"'Data SBP Measures'!$T3030","v":"450"},{"$f":"'Data SBP Measures'!$U3030&B89","v":"120Hours Spent on Scanning"},{"$f":"'Data SBP Measures'!$Y3030","v":"HOURS"},null,null,null,null,null,"Administration - Accounting - 120","Hours Spent on Scanning",null,null,null,null,null,null,null,"1119","158","Y","153","Family Support Services Division","EACH","OUTPUT","ADOPTEDBUD",null,null,null,"Family Support Services Division","# of HH's that received Utilities",null,{"$f":"'Data SBP Measures'!$AF89&'Data SBP Measures'!$AE89& \" - \"& 'Data SBP Measures'!$U89","v":"# of HH's that received UtilitiesFamily Support Services Division - 158"},{"$f":"_xlfn.XLOOKUP(VALUE(W89),'Data SBP Programs'!O:O,'Data SBP Programs'!S:S)","v":"Family Support Services Division"}]
[{"$f":"'Data SBP Measures'!$AI3031&\" - \"&'Data SBP Measures'!$U3031","v":"Administration - Accounting - 120"},{"$f":"'Data SBP Measures'!$AF3031","v":"Number of Checks Processed"},{"$f":"'Data SBP Measures'!$T3031","v":"452"},{"$f":"'Data SBP Measures'!$U3031&B90","v":"120Number of Checks Processed"},{"$f":"'Data SBP Measures'!$Y3031","v":"EACH"},null,null,null,null,null,"Administration - Accounting - 120","Number of Checks Processed",null,null,null,null,null,null,null,"1120","158","Y","153","Family Support Services Division","PERCENT","OUTCOME","ADOPTEDBUD",null,null,null,"Family Support Services Division","% of Customer Surveys Satisfied or Very Satisfied",null,{"$f":"'Data SBP Measures'!$AF90&'Data SBP Measures'!$AE90& \" - \"& 'Data SBP Measures'!$U90","v":"% of Customer Surveys Satisfied or Very SatisfiedFamily Support Services Division - 158"},{"$f":"_xlfn.XLOOKUP(VALUE(W90),'Data SBP Programs'!O:O,'Data SBP Programs'!S:S)","v":"Family Support Services Division"}]
[{"$f":"'Data SBP Measures'!$AI3032&\" - \"&'Data SBP Measures'!$U3032","v":"Administration - Accounting - 120"},{"$f":"'Data SBP Measures'!$AF3032","v":"Number of Closed Interest-Bearing Court Registry Deposits"},{"$f":"'Data SBP Measures'!$T3032","v":"453"},{"$f":"'Data SBP Measures'!$U3032&B91","v":"120Number of Closed Interest-Bearing Court Registry Deposits"},{"$f":"'Data SBP Measures'!$Y3032","v":"EACH"},null,null,null,null,null,"Administration - Accounting - 120","Number of Closed Interest-Bearing Court Registry Deposits",null,null,null,null,null,null,null,"1122","158","Y","153","Family Support Services Division","DOLLARS","OUTPUT","NEITHER",null,null,null,"Family Support Services Division","Amount expended for Burials",null,{"$f":"'Data SBP Measures'!$AF91&'Data SBP Measures'!$AE91& \" - \"& 'Data SBP Measures'!$U91","v":"Amount expended for BurialsFamily Support Services Division - 158"},{"$f":"_xlfn.XLOOKUP(VALUE(W91),'Data SBP Programs'!O:O,'Data SBP Programs'!S:S)","v":"Family Support Services Division"}]
[{"$f":"'Data SBP Measures'!$AI3033&\" - \"&'Data SBP Measures'!$U3033","v":"Administration - Accounting - 120"},{"$f":"'Data SBP Measures'!$AF3033","v":"Number of Custodial Accounts"},{"$f":"'Data SBP Measures'!$T3033","v":"454"},{"$f":"'Data SBP Measures'!$U3033&B92","v":"120Number of Custodial Accounts"},{"$f":"'Data SBP Measures'!$Y3033","v":"EACH"},null,null,null,null,null,"Administration - Accounting - 120","Number of Custodial Accounts",null,null,null,null,null,null,null,"1123","158","Y","153","Family Support Services Division","DOLLARS","OUTPUT","NEITHER",null,null,null,"Family Support Services Division","Amount expended for Food Pantry",null,{"$f":"'Data SBP Measures'!$AF92&'Data SBP Measures'!$AE92& \" - \"& 'Data SBP Measures'!$U92","v":"Amount expended for Food PantryFamily Support Services Division - 158"},{"$f":"_xlfn.XLOOKUP(VALUE(W92),'Data SBP Programs'!O:O,'Data SBP Programs'!S:S)","v":"Family Support Services Division"}]
[{"$f":"'Data SBP Measures'!$AI3034&\" - \"&'Data SBP Measures'!$U3034","v":"Administration - Accounting - 120"},{"$f":"'Data SBP Measures'!$AF3034","v":"Number of Customer Statements Mailed"},{"$f":"'Data SBP Measures'!$T3034","v":"455"},{"$f":"'Data SBP Measures'!$U3034&B93","v":"120Number of Customer Statements Mailed"},{"$f":"'Data SBP Measures'!$Y3034","v":"EACH"},null,null,null,null,null,"Administration - Accounting - 120","Number of Customer Statements Mailed",null,null,null,null,null,null,null,"1124","158","Y","153","Family Support Services Division","DOLLARS","OUTPUT","NEITHER",null,null,null,"Family Support Services Division","Amount expended for Prescription",null,{"$f":"'Data SBP Measures'!$AF93&'Data SBP Measures'!$AE93& \" - \"& 'Data SBP Measures'!$U93","v":"Amount expended for PrescriptionFamily Support Services Division - 158"},{"$f":"_xlfn.XLOOKUP(VALUE(W93),'Data SBP Programs'!O:O,'Data SBP Programs'!S:S)","v":"Family Support Services Division"}]
[{"$f":"'Data SBP Measures'!$AI3035&\" - \"&'Data SBP Measures'!$U3035","v":"Administration - Accounting - 120"},{"$f":"'Data SBP Measures'!$AF3035","v":"Number of Election Invoices Processed"},{"$f":"'Data SBP Measures'!$T3035","v":"456"},{"$f":"'Data SBP Measures'!$U3035&B94","v":"120Number of Election Invoices Processed"},{"$f":"'Data SBP Measures'!$Y3035","v":"EACH"},null,null,null,null,null,"Administration - Accounting - 120","Number of Election Invoices Processed",null,null,null,null,null,null,null,"1125","158","Y","153","Family Support Services Division","DOLLARS","OUTPUT","NEITHER",null,null,null,"Family Support Services Division","Amount expended for Rent/Mortgage",null,{"$f":"'Data SBP Measures'!$AF94&'Data SBP Measures'!$AE94& \" - \"& 'Data SBP Measures'!$U94","v":"Amount expended for Rent/MortgageFamily Support Services Division - 158"},{"$f":"_xlfn.XLOOKUP(VALUE(W94),'Data SBP Programs'!O:O,'Data SBP Programs'!S:S)","v":"Family Support Services Division"}]
[{"$f":"'Data SBP Measures'!$AI3036&\" - \"&'Data SBP Measures'!$U3036","v":"Administration - Accounting - 120"},{"$f":"'Data SBP Measures'!$AF3036","v":"Revenue Transferred to Treasurer"},{"$f":"'Data SBP Measures'!$T3036","v":"457"},{"$f":"'Data SBP Measures'!$U3036&B95","v":"120Revenue Transferred to Treasurer"},{"$f":"'Data SBP Measures'!$Y3036","v":"DOLLARS"},null,null,null,null,null,"Administration - Accounting - 120","Revenue Transferred to Treasurer",null,null,null,null,null,null,null,"1126","158","Y","153","Family Support Services Division","DOLLARS","OUTPUT","NEITHER",null,null,null,"Family Support Services Division","Amount expended for Utilities",null,{"$f":"'Data SBP Measures'!$AF95&'Data SBP Measures'!$AE95& \" - \"& 'Data SBP Measures'!$U95","v":"Amount expended for UtilitiesFamily Support Services Division - 158"},{"$f":"_xlfn.XLOOKUP(VALUE(W95),'Data SBP Programs'!O:O,'Data SBP Programs'!S:S)","v":"Family Support Services Division"}]
[{"$f":"'Data SBP Measures'!$AI3043&\" - \"&'Data SBP Measures'!$U3043","v":"Administration - Computer Resources - 120"},{"$f":"'Data SBP Measures'!$AF3043","v":"ENR - Pageviews"},{"$f":"'Data SBP Measures'!$T3043","v":"476"},{"$f":"'Data SBP Measures'!$U3043&B96","v":"120ENR - Pageviews"},{"$f":"'Data SBP Measures'!$Y3043","v":"EACH"},null,null,null,null,null,"Administration - Computer Resources - 120","ENR - Pageviews",null,null,null,null,null,null,null,"1129","158","Y","155","Healthy Families Travis County","PERCENT","OUTCOME","NEITHER",null,null,null,"Healthy Families Travis County","Percentage of children who achieve age-appropriate development",null,{"$f":"'Data SBP Measures'!$AF96&'Data SBP Measures'!$AE96& \" - \"& 'Data SBP Measures'!$U96","v":"Percentage of children who achieve age-appropriate developmentHealthy Families Travis County - 158"},{"$f":"_xlfn.XLOOKUP(VALUE(W96),'Data SBP Programs'!O:O,'Data SBP Programs'!S:S)","v":"Healthy Families Travis County"}]
[{"$f":"'Data SBP Measures'!$AI3044&\" - \"&'Data SBP Measures'!$U3044","v":"Administration - Computer Resources - 120"},{"$f":"'Data SBP Measures'!$AF3044","v":"ENR - Sessions"},{"$f":"'Data SBP Measures'!$T3044","v":"477"},{"$f":"'Data SBP Measures'!$U3044&B97","v":"120ENR - Sessions"},{"$f":"'Data SBP Measures'!$Y3044","v":"EACH"},null,null,null,null,null,"Administration - Computer Resources - 120","ENR - Sessions",null,null,null,null,null,null,null,"113","108","Y","18","Accounting Department","EACH","OUTPUT","NEITHER",null,null,null,"Accounting Department","# of motor vehicle refund checks issued",null,{"$f":"'Data SBP Measures'!$AF97&'Data SBP Measures'!$AE97& \" - \"& 'Data SBP Measures'!$U97","v":"# of motor vehicle refund checks issuedAccounting Department - 108"},{"$f":"_xlfn.XLOOKUP(VALUE(W97),'Data SBP Programs'!O:O,'Data SBP Programs'!S:S)","v":"Accounting Department"}]
[{"$f":"'Data SBP Measures'!$AI3045&\" - \"&'Data SBP Measures'!$U3045","v":"Administration - Computer Resources - 120"},{"$f":"'Data SBP Measures'!$AF3045","v":"ENR - Users"},{"$f":"'Data SBP Measures'!$T3045","v":"478"},{"$f":"'Data SBP Measures'!$U3045&B98","v":"120ENR - Users"},{"$f":"'Data SBP Measures'!$Y3045","v":"EACH"},null,null,null,null,null,"Administration - Computer Resources - 120","ENR - Users",null,null,null,null,null,null,null,"1130","158","Y","155","Healthy Families Travis County","PERCENT","OUTCOME","NEITHER",null,null,null,"Healthy Families Travis County","Percentage of children who received age-appropriate immunizations within expected guidelines",null,{"$f":"'Data SBP Measures'!$AF98&'Data SBP Measures'!$AE98& \" - \"& 'Data SBP Measures'!$U98","v":"Percentage of children who received age-appropriate immunizations within expected guidelinesHealthy Families Travis County - 158"},{"$f":"_xlfn.XLOOKUP(VALUE(W98),'Data SBP Programs'!O:O,'Data SBP Programs'!S:S)","v":"Healthy Families Travis County"}]
[{"$f":"'Data SBP Measures'!$AI3046&\" - \"&'Data SBP Measures'!$U3046","v":"Administration - Computer Resources - 120"},{"$f":"'Data SBP Measures'!$AF3046","v":"Facebook likes"},{"$f":"'Data SBP Measures'!$T3046","v":"479"},{"$f":"'Data SBP Measures'!$U3046&B99","v":"120Facebook likes"},{"$f":"'Data SBP Measures'!$Y3046","v":"EACH"},null,null,null,null,null,"Administration - Computer Resources - 120","Facebook likes",null,null,null,null,null,null,null,"1131","158","Y","155","Healthy Families Travis County","PERCENT","OUTCOME","NEITHER",null,null,null,"Healthy Families Travis County","Percntage of children who attend age-appropriate well-child checks within expected guidelines",null,{"$f":"'Data SBP Measures'!$AF99&'Data SBP Measures'!$AE99& \" - \"& 'Data SBP Measures'!$U99","v":"Percntage of children who attend age-appropriate well-child checks within expected guidelinesHealthy Families Travis County - 158"},{"$f":"_xlfn.XLOOKUP(VALUE(W99),'Data SBP Programs'!O:O,'Data SBP Programs'!S:S)","v":"Healthy Families Travis County"}]
[{"$f":"'Data SBP Measures'!$AI3047&\" - \"&'Data SBP Measures'!$U3047","v":"Administration - Computer Resources - 120"},{"$f":"'Data SBP Measures'!$AF3047","v":"Hours spent managing and updating website"},{"$f":"'Data SBP Measures'!$T3047","v":"480"},{"$f":"'Data SBP Measures'!$U3047&B100","v":"120Hours spent managing and updating website"},{"$f":"'Data SBP Measures'!$Y3047","v":"HOURS"},null,null,null,null,null,"Administration - Computer Resources - 120","Hours spent managing and updating website",null,null,null,null,null,null,null,"1132","158","Y","155","Healthy Families Travis County","PERCENT","OUTCOME","ADOPTEDBUD",null,null,null,"Healthy Families Travis County","Percentage of families with no substantiated finding of child abuse or neglect",null,{"$f":"'Data SBP Measures'!$AF100&'Data SBP Measures'!$AE100& \" - \"& 'Data SBP Measures'!$U100","v":"Percentage of families with no substantiated finding of child abuse or neglectHealthy Families Travis County - 158"},{"$f":"_xlfn.XLOOKUP(VALUE(W100),'Data SBP Programs'!O:O,'Data SBP Programs'!S:S)","v":"Healthy Families Travis County"}]
[{"$f":"'Data SBP Measures'!$AI3048&\" - \"&'Data SBP Measures'!$U3048","v":"Administration - Computer Resources - 120"},{"$f":"'Data SBP Measures'!$AF3048","v":"Hours spent on social media and photography"},{"$f":"'Data SBP Measures'!$T3048","v":"482"},{"$f":"'Data SBP Measures'!$U3048&B101","v":"120Hours spent on social media and photography"},{"$f":"'Data SBP Measures'!$Y3048","v":"HOURS"},null,null,null,null,null,"Administration - Computer Resources - 120","Hours spent on social media and photography",null,null,null,null,null,null,null,"1133","158","Y","155","Healthy Families Travis County","EACH","OUTPUT","NEITHER",null,null,null,"Healthy Families Travis County","Total number of families served including both assessment and home visiting",null,{"$f":"'Data SBP Measures'!$AF101&'Data SBP Measures'!$AE101& \" - \"& 'Data SBP Measures'!$U101","v":"Total number of families served including both assessment and home visitingHealthy Families Travis County - 158"},{"$f":"_xlfn.XLOOKUP(VALUE(W101),'Data SBP Programs'!O:O,'Data SBP Programs'!S:S)","v":"Healthy Families Travis County"}]
[{"$f":"'Data SBP Measures'!$AI3064&\" - \"&'Data SBP Measures'!$U3064","v":"Administration - Computer Resources - 120"},{"$f":"'Data SBP Measures'!$AF3064","v":"Number of active projects"},{"$f":"'Data SBP Measures'!$T3064","v":"507"},{"$f":"'Data SBP Measures'!$U3064&B102","v":"120Number of active projects"},{"$f":"'Data SBP Measures'!$Y3064","v":"EACH"},null,null,null,null,null,"Administration - Computer Resources - 120","Number of active projects",null,null,null,null,null,null,null,"1134","158","Y","156","Housing Services","PERCENT","OUTCOME","NEITHER",null,null,null,"Housing Services","% of DOE WAP expenditures completed",null,{"$f":"'Data SBP Measures'!$AF102&'Data SBP Measures'!$AE102& \" - \"& 'Data SBP Measures'!$U102","v":"% of DOE WAP expenditures completedHousing Services - 158"},{"$f":"_xlfn.XLOOKUP(VALUE(W102),'Data SBP Programs'!O:O,'Data SBP Programs'!S:S)","v":"Housing Services"}]
[{"$f":"'Data SBP Measures'!$AI3060&\" - \"&'Data SBP Measures'!$U3060","v":"Administration - Computer Resources - 120"},{"$f":"'Data SBP Measures'!$AF3060","v":"Number of backups"},{"$f":"'Data SBP Measures'!$T3060","v":"500"},{"$f":"'Data SBP Measures'!$U3060&B103","v":"120Number of backups"},{"$f":"'Data SBP Measures'!$Y3060","v":"EACH"},null,null,null,null,null,"Administration - Computer Resources - 120","Number of backups",null,null,null,null,null,null,null,"1135","158","Y","156","Housing Services","PERCENT","OUTCOME","NEITHER",null,null,null,"Housing Services","% of homes completed within 90 days of assessment",null,{"$f":"'Data SBP Measures'!$AF103&'Data SBP Measures'!$AE103& \" - \"& 'Data SBP Measures'!$U103","v":"% of homes completed within 90 days of assessmentHousing Services - 158"},{"$f":"_xlfn.XLOOKUP(VALUE(W103),'Data SBP Programs'!O:O,'Data SBP Programs'!S:S)","v":"Housing Services"}]
[{"$f":"'Data SBP Measures'!$AI3041&\" - \"&'Data SBP Measures'!$U3041","v":"Administration - Computer Resources - 120"},{"$f":"'Data SBP Measures'!$AF3041","v":"Number of computer problems Addressed"},{"$f":"'Data SBP Measures'!$T3041","v":"470"},{"$f":"'Data SBP Measures'!$U3041&B104","v":"120Number of computer problems Addressed"},{"$f":"'Data SBP Measures'!$Y3041","v":"EACH"},null,null,null,null,null,"Administration - Computer Resources - 120","Number of computer problems Addressed",null,null,null,null,null,null,null,"1136","158","Y","156","Housing Services","PERCENT","OUTCOME","NEITHER",null,null,null,"Housing Services","% of LIHEAP WAP expenditures completed",null,{"$f":"'Data SBP Measures'!$AF104&'Data SBP Measures'!$AE104& \" - \"& 'Data SBP Measures'!$U104","v":"% of LIHEAP WAP expenditures completedHousing Services - 158"},{"$f":"_xlfn.XLOOKUP(VALUE(W104),'Data SBP Programs'!O:O,'Data SBP Programs'!S:S)","v":"Housing Services"}]
[{"$f":"'Data SBP Measures'!$AI3038&\" - \"&'Data SBP Measures'!$U3038","v":"Administration - Computer Resources - 120"},{"$f":"'Data SBP Measures'!$AF3038","v":"Number of Data- bases Issues/ Questions Addressed"},{"$f":"'Data SBP Measures'!$T3038","v":"465"},{"$f":"'Data SBP Measures'!$U3038&B105","v":"120Number of Data- bases Issues/ Questions Addressed"},{"$f":"'Data SBP Measures'!$Y3038","v":"EACH"},null,null,null,null,null,"Administration - Computer Resources - 120","Number of Data- bases Issues/ Questions Addressed",null,null,null,null,null,null,null,"1137","158","Y","156","Housing Services","EACH","OUTPUT","ADOPTEDBUD",null,null,null,"Housing Services","Number of Homes/Dwellings receiving home repair",null,{"$f":"'Data SBP Measures'!$AF105&'Data SBP Measures'!$AE105& \" - \"& 'Data SBP Measures'!$U105","v":"Number of Homes/Dwellings receiving home repairHousing Services - 158"},{"$f":"_xlfn.XLOOKUP(VALUE(W105),'Data SBP Programs'!O:O,'Data SBP Programs'!S:S)","v":"Housing Services"}]
[{"$f":"'Data SBP Measures'!$AI3039&\" - \"&'Data SBP Measures'!$U3039","v":"Administration - Computer Resources - 120"},{"$f":"'Data SBP Measures'!$AF3039","v":"Number of Database Deployments"},{"$f":"'Data SBP Measures'!$T3039","v":"467"},{"$f":"'Data SBP Measures'!$U3039&B106","v":"120Number of Database Deployments"},{"$f":"'Data SBP Measures'!$Y3039","v":"EACH"},null,null,null,null,null,"Administration - Computer Resources - 120","Number of Database Deployments",null,null,null,null,null,null,null,"1138","158","Y","156","Housing Services","EACH","OUTPUT","ADOPTEDBUD",null,null,null,"Housing Services","Number of unduplicated clients served",null,{"$f":"'Data SBP Measures'!$AF106&'Data SBP Measures'!$AE106& \" - \"& 'Data SBP Measures'!$U106","v":"Number of unduplicated clients servedHousing Services - 158"},{"$f":"_xlfn.XLOOKUP(VALUE(W106),'Data SBP Programs'!O:O,'Data SBP Programs'!S:S)","v":"Housing Services"}]
[{"$f":"'Data SBP Measures'!$AI3040&\" - \"&'Data SBP Measures'!$U3040","v":"Administration - Computer Resources - 120"},{"$f":"'Data SBP Measures'!$AF3040","v":"Number of Databases"},{"$f":"'Data SBP Measures'!$T3040","v":"468"},{"$f":"'Data SBP Measures'!$U3040&B107","v":"120Number of Databases"},{"$f":"'Data SBP Measures'!$Y3040","v":"EACH"},null,null,null,null,null,"Administration - Computer Resources - 120","Number of Databases",null,null,null,null,null,null,null,"1139","158","Y","157","Neighborhood Conference Committee (NCC)","PERCENT","OUTCOME","NEITHER",null,null,null,"Neighborhood Conference Committee (NCC)","% of administrative terminations",null,{"$f":"'Data SBP Measures'!$AF107&'Data SBP Measures'!$AE107& \" - \"& 'Data SBP Measures'!$U107","v":"% of administrative terminationsNeighborhood Conference Committee (NCC) - 158"},{"$f":"_xlfn.XLOOKUP(VALUE(W107),'Data SBP Programs'!O:O,'Data SBP Programs'!S:S)","v":"Neighborhood Conference Committee (NCC)"}]
[{"$f":"'Data SBP Measures'!$AI3037&\" - \"&'Data SBP Measures'!$U3037","v":"Administration - Computer Resources - 120"},{"$f":"'Data SBP Measures'!$AF3037","v":"Number of Information Technology projects in progress"},{"$f":"'Data SBP Measures'!$T3037","v":"459"},{"$f":"'Data SBP Measures'!$U3037&B108","v":"120Number of Information Technology projects in progress"},{"$f":"'Data SBP Measures'!$Y3037","v":"EACH"},null,null,null,null,null,"Administration - Computer Resources - 120","Number of Information Technology projects in progress",null,null,null,null,null,null,null,"1140","158","Y","157","Neighborhood Conference Committee (NCC)","PERCENT","OUTCOME","ADOPTEDBUD",null,null,null,"Neighborhood Conference Committee (NCC)","% of cases completed successfully",null,{"$f":"'Data SBP Measures'!$AF108&'Data SBP Measures'!$AE108& \" - \"& 'Data SBP Measures'!$U108","v":"% of cases completed successfullyNeighborhood Conference Committee (NCC) - 158"},{"$f":"_xlfn.XLOOKUP(VALUE(W108),'Data SBP Programs'!O:O,'Data SBP Programs'!S:S)","v":"Neighborhood Conference Committee (NCC)"}]
[{"$f":"'Data SBP Measures'!$AI3042&\" - \"&'Data SBP Measures'!$U3042","v":"Administration - Computer Resources - 120"},{"$f":"'Data SBP Measures'!$AF3042","v":"Number of reports designed"},{"$f":"'Data SBP Measures'!$T3042","v":"472"},{"$f":"'Data SBP Measures'!$U3042&B109","v":"120Number of reports designed"},{"$f":"'Data SBP Measures'!$Y3042","v":"EACH"},null,null,null,null,null,"Administration - Computer Resources - 120","Number of reports designed",null,null,null,null,null,null,null,"1141","158","Y","157","Neighborhood Conference Committee (NCC)","PERCENT","OUTCOME","ADOPTEDBUD",null,null,null,"Neighborhood Conference Committee (NCC)","% of juveniles reoffending within one year/recidivism",null,{"$f":"'Data SBP Measures'!$AF109&'Data SBP Measures'!$AE109& \" - \"& 'Data SBP Measures'!$U109","v":"% of juveniles reoffending within one year/recidivismNeighborhood Conference Committee (NCC) - 158"},{"$f":"_xlfn.XLOOKUP(VALUE(W109),'Data SBP Programs'!O:O,'Data SBP Programs'!S:S)","v":"Neighborhood Conference Committee (NCC)"}]
[{"$f":"'Data SBP Measures'!$AI3061&\" - \"&'Data SBP Measures'!$U3061","v":"Administration - Computer Resources - 120"},{"$f":"'Data SBP Measures'!$AF3061","v":"Number of system implementations/ upgrades"},{"$f":"'Data SBP Measures'!$T3061","v":"504"},{"$f":"'Data SBP Measures'!$U3061&B110","v":"120Number of system implementations/ upgrades"},{"$f":"'Data SBP Measures'!$Y3061","v":"EACH"},null,null,null,null,null,"Administration - Computer Resources - 120","Number of system implementations/ upgrades",null,null,null,null,null,null,null,"1142","158","Y","157","Neighborhood Conference Committee (NCC)","EACH","INPUT","NEITHER",null,null,null,"Neighborhood Conference Committee (NCC)","# of cases referred to NCC program from Juvenile Court",null,{"$f":"'Data SBP Measures'!$AF110&'Data SBP Measures'!$AE110& \" - \"& 'Data SBP Measures'!$U110","v":"# of cases referred to NCC program from Juvenile CourtNeighborhood Conference Committee (NCC) - 158"},{"$f":"_xlfn.XLOOKUP(VALUE(W110),'Data SBP Programs'!O:O,'Data SBP Programs'!S:S)","v":"Neighborhood Conference Committee (NCC)"}]
[{"$f":"'Data SBP Measures'!$AI3062&\" - \"&'Data SBP Measures'!$U3062","v":"Administration - Computer Resources - 120"},{"$f":"'Data SBP Measures'!$AF3062","v":"Number of web pages and updates"},{"$f":"'Data SBP Measures'!$T3062","v":"505"},{"$f":"'Data SBP Measures'!$U3062&B111","v":"120Number of web pages and updates"},{"$f":"'Data SBP Measures'!$Y3062","v":"EACH"},null,null,null,null,null,"Administration - Computer Resources - 120","Number of web pages and updates",null,null,null,null,null,null,null,"1143","158","Y","159","Parenting in Recovery","PERCENT","OUTCOME","NEITHER",null,null,null,"Parenting in Recovery","PIR/FDTC percentage of children without a recurrence of maltreatment within a 24 month period post program discharge",null,{"$f":"'Data SBP Measures'!$AF111&'Data SBP Measures'!$AE111& \" - \"& 'Data SBP Measures'!$U111","v":"PIR/FDTC percentage of children without a recurrence of maltreatment within a 24 month period post program dischargeParenting in Recovery - 158"},{"$f":"_xlfn.XLOOKUP(VALUE(W111),'Data SBP Programs'!O:O,'Data SBP Programs'!S:S)","v":"Parenting in Recovery"}]
[{"$f":"'Data SBP Measures'!$AI3063&\" - \"&'Data SBP Measures'!$U3063","v":"Administration - Computer Resources - 120"},{"$f":"'Data SBP Measures'!$AF3063","v":"Person hours devoted to computer management activities"},{"$f":"'Data SBP Measures'!$T3063","v":"506"},{"$f":"'Data SBP Measures'!$U3063&B112","v":"120Person hours devoted to computer management activities"},{"$f":"'Data SBP Measures'!$Y3063","v":"HOURS"},null,null,null,null,null,"Administration - Computer Resources - 120","Person hours devoted to computer management activities",null,null,null,null,null,null,null,"1144","158","Y","159","Parenting in Recovery","PERCENT","OUTCOME","ADOPTEDBUD",null,null,null,"Parenting in Recovery","PIR/FDTC percentage children who are in care of a parent at discharge",null,{"$f":"'Data SBP Measures'!$AF112&'Data SBP Measures'!$AE112& \" - \"& 'Data SBP Measures'!$U112","v":"PIR/FDTC percentage children who are in care of a parent at dischargeParenting in Recovery - 158"},{"$f":"_xlfn.XLOOKUP(VALUE(W112),'Data SBP Programs'!O:O,'Data SBP Programs'!S:S)","v":"Parenting in Recovery"}]
[{"$f":"'Data SBP Measures'!$AI3050&\" - \"&'Data SBP Measures'!$U3050","v":"Administration - Computer Resources - 120"},{"$f":"'Data SBP Measures'!$AF3050","v":"TCC search (includes web & deed records searches) - Sessions"},{"$f":"'Data SBP Measures'!$T3050","v":"490"},{"$f":"'Data SBP Measures'!$U3050&B113","v":"120TCC search (includes web & deed records searches) - Sessions"},{"$f":"'Data SBP Measures'!$Y3050","v":"EACH"},null,null,null,null,null,"Administration - Computer Resources - 120","TCC search (includes web & deed records searches) - Sessions",null,null,null,null,null,null,null,"1145","158","Y","159","Parenting in Recovery","PERCENT","OUTCOME","NEITHER",null,null,null,"Parenting in Recovery","PIR/FDTC percentage of children who demonstrate either improvement in or stability in obtaining  developmental milestones",null,{"$f":"'Data SBP Measures'!$AF113&'Data SBP Measures'!$AE113& \" - \"& 'Data SBP Measures'!$U113","v":"PIR/FDTC percentage of children who demonstrate either improvement in or stability in obtaining  developmental milestonesParenting in Recovery - 158"},{"$f":"_xlfn.XLOOKUP(VALUE(W113),'Data SBP Programs'!O:O,'Data SBP Programs'!S:S)","v":"Parenting in Recovery"}]
[{"$f":"'Data SBP Measures'!$AI3051&\" - \"&'Data SBP Measures'!$U3051","v":"Administration - Computer Resources - 120"},{"$f":"'Data SBP Measures'!$AF3051","v":"TCC search (includes web & deed records searches) - Users"},{"$f":"'Data SBP Measures'!$T3051","v":"491"},{"$f":"'Data SBP Measures'!$U3051&B114","v":"120TCC search (includes web & deed records searches) - Users"},{"$f":"'Data SBP Measures'!$Y3051","v":"EACH"},null,null,null,null,null,"Administration - Computer Resources - 120","TCC search (includes web & deed records searches) - Users",null,null,null,null,null,null,null,"1146","158","Y","159","Parenting in Recovery","PERCENT","OUTCOME","NEITHER",null,null,null,"Parenting in Recovery","PIR/FDTC percentage of participants that successfully discharge from program",null,{"$f":"'Data SBP Measures'!$AF114&'Data SBP Measures'!$AE114& \" - \"& 'Data SBP Measures'!$U114","v":"PIR/FDTC percentage of participants that successfully discharge from programParenting in Recovery - 158"},{"$f":"_xlfn.XLOOKUP(VALUE(W114),'Data SBP Programs'!O:O,'Data SBP Programs'!S:S)","v":"Parenting in Recovery"}]
[{"$f":"'Data SBP Measures'!$AI3049&\" - \"&'Data SBP Measures'!$U3049","v":"Administration - Computer Resources - 120"},{"$f":"'Data SBP Measures'!$AF3049","v":"TCC search (includes web & deed records searches) - Views"},{"$f":"'Data SBP Measures'!$T3049","v":"489"},{"$f":"'Data SBP Measures'!$U3049&B115","v":"120TCC search (includes web & deed records searches) - Views"},{"$f":"'Data SBP Measures'!$Y3049","v":"EACH"},null,null,null,null,null,"Administration - Computer Resources - 120","TCC search (includes web & deed records searches) - Views",null,null,null,null,null,null,null,"115","108","Y","18","Accounting Department","EACH","OUTPUT","NEITHER",null,null,null,"Accounting Department","# of tax refund checks audited and issued",null,{"$f":"'Data SBP Measures'!$AF115&'Data SBP Measures'!$AE115& \" - \"& 'Data SBP Measures'!$U115","v":"# of tax refund checks audited and issuedAccounting Department - 108"},{"$f":"_xlfn.XLOOKUP(VALUE(W115),'Data SBP Programs'!O:O,'Data SBP Programs'!S:S)","v":"Accounting Department"}]
[{"$f":"'Data SBP Measures'!$AI3052&\" - \"&'Data SBP Measures'!$U3052","v":"Administration - Computer Resources - 120"},{"$f":"'Data SBP Measures'!$AF3052","v":"TravisCountyClerk.org - Pageviews"},{"$f":"'Data SBP Measures'!$T3052","v":"492"},{"$f":"'Data SBP Measures'!$U3052&B116","v":"120TravisCountyClerk.org - Pageviews"},{"$f":"'Data SBP Measures'!$Y3052","v":"EACH"},null,null,null,null,null,"Administration - Computer Resources - 120","TravisCountyClerk.org - Pageviews",null,null,null,null,null,null,null,"1151","158","Y","159","Parenting in Recovery","PERCENT","OUTPUT","NEITHER",null,null,null,"Parenting in Recovery","PIR/FDTC percentage of participants able to access residential substance abuse treatment within 10 days",null,{"$f":"'Data SBP Measures'!$AF116&'Data SBP Measures'!$AE116& \" - \"& 'Data SBP Measures'!$U116","v":"PIR/FDTC percentage of participants able to access residential substance abuse treatment within 10 daysParenting in Recovery - 158"},{"$f":"_xlfn.XLOOKUP(VALUE(W116),'Data SBP Programs'!O:O,'Data SBP Programs'!S:S)","v":"Parenting in Recovery"}]
[{"$f":"'Data SBP Measures'!$AI3053&\" - \"&'Data SBP Measures'!$U3053","v":"Administration - Computer Resources - 120"},{"$f":"'Data SBP Measures'!$AF3053","v":"TravisCountyClerk.org - Sessions"},{"$f":"'Data SBP Measures'!$T3053","v":"493"},{"$f":"'Data SBP Measures'!$U3053&B117","v":"120TravisCountyClerk.org - Sessions"},{"$f":"'Data SBP Measures'!$Y3053","v":"EACH"},null,null,null,null,null,"Administration - Computer Resources - 120","TravisCountyClerk.org - Sessions",null,null,null,null,null,null,null,"1152","158","Y","159","Parenting in Recovery","PERCENT","OUTPUT","NEITHER",null,null,null,"Parenting in Recovery","PIR/FDTC percentage of participants that complete residential substance abuse treatment",null,{"$f":"'Data SBP Measures'!$AF117&'Data SBP Measures'!$AE117& \" - \"& 'Data SBP Measures'!$U117","v":"PIR/FDTC percentage of participants that complete residential substance abuse treatmentParenting in Recovery - 158"},{"$f":"_xlfn.XLOOKUP(VALUE(W117),'Data SBP Programs'!O:O,'Data SBP Programs'!S:S)","v":"Parenting in Recovery"}]
[{"$f":"'Data SBP Measures'!$AI3054&\" - \"&'Data SBP Measures'!$U3054","v":"Administration - Computer Resources - 120"},{"$f":"'Data SBP Measures'!$AF3054","v":"TravisCountyClerk.org - Users"},{"$f":"'Data SBP Measures'!$T3054","v":"494"},{"$f":"'Data SBP Measures'!$U3054&B118","v":"120TravisCountyClerk.org - Users"},{"$f":"'Data SBP Measures'!$Y3054","v":"EACH"},null,null,null,null,null,"Administration - Computer Resources - 120","TravisCountyClerk.org - Users",null,null,null,null,null,null,null,"1153","158","Y","159","Parenting in Recovery","EACH","OUTPUT","NEITHER",null,null,null,"Parenting in Recovery","PIR/FDTC number of unduplicated adults served by the program during the fiscal year",null,{"$f":"'Data SBP Measures'!$AF118&'Data SBP Measures'!$AE118& \" - \"& 'Data SBP Measures'!$U118","v":"PIR/FDTC number of unduplicated adults served by the program during the fiscal yearParenting in Recovery - 158"},{"$f":"_xlfn.XLOOKUP(VALUE(W118),'Data SBP Programs'!O:O,'Data SBP Programs'!S:S)","v":"Parenting in Recovery"}]
[{"$f":"'Data SBP Measures'!$AI3055&\" - \"&'Data SBP Measures'!$U3055","v":"Administration - Computer Resources - 120"},{"$f":"'Data SBP Measures'!$AF3055","v":"Twitter Followers"},{"$f":"'Data SBP Measures'!$T3055","v":"495"},{"$f":"'Data SBP Measures'!$U3055&B119","v":"120Twitter Followers"},{"$f":"'Data SBP Measures'!$Y3055","v":"EACH"},null,null,null,null,null,"Administration - Computer Resources - 120","Twitter Followers",null,null,null,null,null,null,null,"1155","158","Y","161","Research & Planning Division","PERCENT","OUTCOME","ADOPTEDBUD",null,null,null,"Research & Planning Division","Percent of customers who report that R&P facilitation helped them make progress on the group's goals",null,{"$f":"'Data SBP Measures'!$AF119&'Data SBP Measures'!$AE119& \" - \"& 'Data SBP Measures'!$U119","v":"Percent of customers who report that R&P facilitation helped them make progress on the group's goalsResearch & Planning Division - 158"},{"$f":"_xlfn.XLOOKUP(VALUE(W119),'Data SBP Programs'!O:O,'Data SBP Programs'!S:S)","v":"Research & Planning Division"}]
[{"$f":"'Data SBP Measures'!$AI3056&\" - \"&'Data SBP Measures'!$U3056","v":"Administration - Computer Resources - 120"},{"$f":"'Data SBP Measures'!$AF3056","v":"VoteTravis.com - Pageviews"},{"$f":"'Data SBP Measures'!$T3056","v":"496"},{"$f":"'Data SBP Measures'!$U3056&B120","v":"120VoteTravis.com - Pageviews"},{"$f":"'Data SBP Measures'!$Y3056","v":"EACH"},null,null,null,null,null,"Administration - Computer Resources - 120","VoteTravis.com - Pageviews",null,null,null,null,null,null,null,"1156","158","Y","161","Research & Planning Division","PERCENT","OUTCOME","ADOPTEDBUD",null,null,null,"Research & Planning Division","Percent of contracted service providers who report that the support or technical assistance provided was Good or Excellent",null,{"$f":"'Data SBP Measures'!$AF120&'Data SBP Measures'!$AE120& \" - \"& 'Data SBP Measures'!$U120","v":"Percent of contracted service providers who report that the support or technical assistance provided was Good or ExcellentResearch & Planning Division - 158"},{"$f":"_xlfn.XLOOKUP(VALUE(W120),'Data SBP Programs'!O:O,'Data SBP Programs'!S:S)","v":"Research & Planning Division"}]
[{"$f":"'Data SBP Measures'!$AI3057&\" - \"&'Data SBP Measures'!$U3057","v":"Administration - Computer Resources - 120"},{"$f":"'Data SBP Measures'!$AF3057","v":"VoteTravis.com - Sessions"},{"$f":"'Data SBP Measures'!$T3057","v":"497"},{"$f":"'Data SBP Measures'!$U3057&B121","v":"120VoteTravis.com - Sessions"},{"$f":"'Data SBP Measures'!$Y3057","v":"EACH"},null,null,null,null,null,"Administration - Computer Resources - 120","VoteTravis.com - Sessions",null,null,null,null,null,null,null,"1157","158","Y","161","Research & Planning Division","PERCENT","OUTCOME","ADOPTEDBUD",null,null,null,"Research & Planning Division","Percent of customers who report that they used information provided by R&P one of the following ways: Learn more about our community; Make or influence funding decisions; Make or influence policy decisions; Make or influence program changes; Make or influence system changes; and/or Write grants or receive funding",null,{"$f":"'Data SBP Measures'!$AF121&'Data SBP Measures'!$AE121& \" - \"& 'Data SBP Measures'!$U121","v":"Percent of customers who report that they used information provided by R&P one of the following ways: Learn more about our community; Make or influence funding decisions; Make or influence policy decisions; Make or influence program changes; Make or influence system changes; and/or Write grants or receive fundingResearch & Planning Division - 158"},{"$f":"_xlfn.XLOOKUP(VALUE(W121),'Data SBP Programs'!O:O,'Data SBP Programs'!S:S)","v":"Research & Planning Division"}]
[{"$f":"'Data SBP Measures'!$AI3058&\" - \"&'Data SBP Measures'!$U3058","v":"Administration - Computer Resources - 120"},{"$f":"'Data SBP Measures'!$AF3058","v":"VoteTravis.com - Users"},{"$f":"'Data SBP Measures'!$T3058","v":"498"},{"$f":"'Data SBP Measures'!$U3058&B122","v":"120VoteTravis.com - Users"},{"$f":"'Data SBP Measures'!$Y3058","v":"EACH"},null,null,null,null,null,"Administration - Computer Resources - 120","VoteTravis.com - Users",null,null,null,null,null,null,null,"1158","158","Y","161","Research & Planning Division","EACH","OUTPUT","NEITHER",null,null,null,"Research & Planning Division","Number of contracts managed by programmatic or performance staff (duplicated across programmatic and performance staff)",null,{"$f":"'Data SBP Measures'!$AF122&'Data SBP Measures'!$AE122& \" - \"& 'Data SBP Measures'!$U122","v":"Number of contracts managed by programmatic or performance staff (duplicated across programmatic and performance staff)Research & Planning Division - 158"},{"$f":"_xlfn.XLOOKUP(VALUE(W122),'Data SBP Programs'!O:O,'Data SBP Programs'!S:S)","v":"Research & Planning Division"}]
[{"$f":"'Data SBP Measures'!$AI2626&\" - \"&'Data SBP Measures'!$U2626","v":"Administration\n - 140"},{"$f":"'Data SBP Measures'!$AF2626","v":"# of Scheduled Trainings - In-House"},{"$f":"'Data SBP Measures'!$T2626","v":"3237"},{"$f":"'Data SBP Measures'!$U2626&B123","v":"140# of Scheduled Trainings - In-House"},{"$f":"'Data SBP Measures'!$Y2626","v":"EACH"},null,null,null,null,null,"Administration\n - 140","# of Scheduled Trainings - In-House",null,null,null,null,null,null,null,"1159","158","Y","161","Research & Planning Division","EACH","OUTPUT","NEITHER",null,null,null,"Research & Planning Division","Number of work sessions facilitated",null,{"$f":"'Data SBP Measures'!$AF123&'Data SBP Measures'!$AE123& \" - \"& 'Data SBP Measures'!$U123","v":"Number of work sessions facilitatedResearch & Planning Division - 158"},{"$f":"_xlfn.XLOOKUP(VALUE(W123),'Data SBP Programs'!O:O,'Data SBP Programs'!S:S)","v":"Research & Planning Division"}]
[{"$f":"'Data SBP Measures'!$AI2627&\" - \"&'Data SBP Measures'!$U2627","v":"Administration\n - 140"},{"$f":"'Data SBP Measures'!$AF2627","v":"# of Scheduled Trainings - Outside"},{"$f":"'Data SBP Measures'!$T2627","v":"3238"},{"$f":"'Data SBP Measures'!$U2627&B124","v":"140# of Scheduled Trainings - Outside"},{"$f":"'Data SBP Measures'!$Y2627","v":"EACH"},null,null,null,null,null,"Administration\n - 140","# of Scheduled Trainings - Outside",null,null,null,null,null,null,null,"1160","158","Y","161","Research & Planning Division","EACH","OUTPUT","NEITHER",null,null,null,"Research & Planning Division","Number of groups or processes in which R&P participated and contributed",null,{"$f":"'Data SBP Measures'!$AF124&'Data SBP Measures'!$AE124& \" - \"& 'Data SBP Measures'!$U124","v":"Number of groups or processes in which R&P participated and contributedResearch & Planning Division - 158"},{"$f":"_xlfn.XLOOKUP(VALUE(W124),'Data SBP Programs'!O:O,'Data SBP Programs'!S:S)","v":"Research & Planning Division"}]
[{"$f":"'Data SBP Measures'!$AI2620&\" - \"&'Data SBP Measures'!$U2620","v":"Administration\n - 140"},{"$f":"'Data SBP Measures'!$AF2620","v":"% of Calls Abandoned"},{"$f":"'Data SBP Measures'!$T2620","v":"3231"},{"$f":"'Data SBP Measures'!$U2620&B125","v":"140% of Calls Abandoned"},{"$f":"'Data SBP Measures'!$Y2620","v":"EACH"},null,null,null,null,null,"Administration\n - 140","% of Calls Abandoned",null,null,null,null,null,null,null,"1161","158","Y","161","Research & Planning Division","EACH","OUTPUT","NEITHER",null,null,null,"Research & Planning Division","Number of groups or processes provided planning support or coordination",null,{"$f":"'Data SBP Measures'!$AF125&'Data SBP Measures'!$AE125& \" - \"& 'Data SBP Measures'!$U125","v":"Number of groups or processes provided planning support or coordinationResearch & Planning Division - 158"},{"$f":"_xlfn.XLOOKUP(VALUE(W125),'Data SBP Programs'!O:O,'Data SBP Programs'!S:S)","v":"Research & Planning Division"}]
[{"$f":"'Data SBP Measures'!$AI2624&\" - \"&'Data SBP Measures'!$U2624","v":"Administration\n - 140"},{"$f":"'Data SBP Measures'!$AF2624","v":"% of clients stated phone agent was knowledgeable and provided clear instructions"},{"$f":"'Data SBP Measures'!$T2624","v":"3235"},{"$f":"'Data SBP Measures'!$U2624&B126","v":"140% of clients stated phone agent was knowledgeable and provided clear instructions"},{"$f":"'Data SBP Measures'!$Y2624","v":"PERCENT"},null,null,null,null,null,"Administration\n - 140","% of clients stated phone agent was knowledgeable and provided clear instructions",null,null,null,null,null,null,null,"1163","158","Y","161","Research & Planning Division","EACH","OUTPUT","NEITHER",null,null,null,"Research & Planning Division","Number of project management, measurement, and other management tools/instruments developed",null,{"$f":"'Data SBP Measures'!$AF126&'Data SBP Measures'!$AE126& \" - \"& 'Data SBP Measures'!$U126","v":"Number of project management, measurement, and other management tools/instruments developedResearch & Planning Division - 158"},{"$f":"_xlfn.XLOOKUP(VALUE(W126),'Data SBP Programs'!O:O,'Data SBP Programs'!S:S)","v":"Research & Planning Division"}]
[{"$f":"'Data SBP Measures'!$AI2622&\" - \"&'Data SBP Measures'!$U2622","v":"Administration\n - 140"},{"$f":"'Data SBP Measures'!$AF2622","v":"Average Handle Time - English (Call)"},{"$f":"'Data SBP Measures'!$T2622","v":"3233"},{"$f":"'Data SBP Measures'!$U2622&B127","v":"140Average Handle Time - English (Call)"},{"$f":"'Data SBP Measures'!$Y2622","v":"MINUTES"},null,null,null,null,null,"Administration\n - 140","Average Handle Time - English (Call)",null,null,null,null,null,null,null,"1164","158","Y","161","Research & Planning Division","EACH","OUTPUT","NEITHER",null,null,null,"Research & Planning Division","Number of reports completed",null,{"$f":"'Data SBP Measures'!$AF127&'Data SBP Measures'!$AE127& \" - \"& 'Data SBP Measures'!$U127","v":"Number of reports completedResearch & Planning Division - 158"},{"$f":"_xlfn.XLOOKUP(VALUE(W127),'Data SBP Programs'!O:O,'Data SBP Programs'!S:S)","v":"Research & Planning Division"}]
[{"$f":"'Data SBP Measures'!$AI2623&\" - \"&'Data SBP Measures'!$U2623","v":"Administration\n - 140"},{"$f":"'Data SBP Measures'!$AF2623","v":"Average Handle Time - Spanish (Call)"},{"$f":"'Data SBP Measures'!$T2623","v":"3234"},{"$f":"'Data SBP Measures'!$U2623&B128","v":"140Average Handle Time - Spanish (Call)"},{"$f":"'Data SBP Measures'!$Y2623","v":"MINUTES"},null,null,null,null,null,"Administration\n - 140","Average Handle Time - Spanish (Call)",null,null,null,null,null,null,null,"1165","158","Y","161","Research & Planning Division","EACH","OUTPUT","NEITHER",null,null,null,"Research & Planning Division","Number of times data or information-related technical assistance or training was provided",null,{"$f":"'Data SBP Measures'!$AF128&'Data SBP Measures'!$AE128& \" - \"& 'Data SBP Measures'!$U128","v":"Number of times data or information-related technical assistance or training was providedResearch & Planning Division - 158"},{"$f":"_xlfn.XLOOKUP(VALUE(W128),'Data SBP Programs'!O:O,'Data SBP Programs'!S:S)","v":"Research & Planning Division"}]
[{"$f":"'Data SBP Measures'!$AI2621&\" - \"&'Data SBP Measures'!$U2621","v":"Administration\n - 140"},{"$f":"'Data SBP Measures'!$AF2621","v":"Average Handle Time Total (Call)"},{"$f":"'Data SBP Measures'!$T2621","v":"3232"},{"$f":"'Data SBP Measures'!$U2621&B129","v":"140Average Handle Time Total (Call)"},{"$f":"'Data SBP Measures'!$Y2621","v":"MINUTES"},null,null,null,null,null,"Administration\n - 140","Average Handle Time Total (Call)",null,null,null,null,null,null,null,"1166","158","Y","161","Research & Planning Division","EACH","OUTPUT","NEITHER",null,null,null,"Research & Planning Division","Number of times program- or performance-related technical assistance or training was provided",null,{"$f":"'Data SBP Measures'!$AF129&'Data SBP Measures'!$AE129& \" - \"& 'Data SBP Measures'!$U129","v":"Number of times program- or performance-related technical assistance or training was providedResearch & Planning Division - 158"},{"$f":"_xlfn.XLOOKUP(VALUE(W129),'Data SBP Programs'!O:O,'Data SBP Programs'!S:S)","v":"Research & Planning Division"}]
[{"$f":"'Data SBP Measures'!$AI2618&\" - \"&'Data SBP Measures'!$U2618","v":"Administration\n - 140"},{"$f":"'Data SBP Measures'!$AF2618","v":"Total # of Calls Presented"},{"$f":"'Data SBP Measures'!$T2618","v":"3229"},{"$f":"'Data SBP Measures'!$U2618&B130","v":"140Total # of Calls Presented"},{"$f":"'Data SBP Measures'!$Y2618","v":"EACH"},null,null,null,null,null,"Administration\n - 140","Total # of Calls Presented",null,null,null,null,null,null,null,"1167","158","Y","162","Services for the Deaf and Hard of Hearing","PERCENT","OUTCOME","NEITHER",null,null,null,"Services for the Deaf and Hard of Hearing","% of clients reporting satisfaction with quality of services",null,{"$f":"'Data SBP Measures'!$AF130&'Data SBP Measures'!$AE130& \" - \"& 'Data SBP Measures'!$U130","v":"% of clients reporting satisfaction with quality of servicesServices for the Deaf and Hard of Hearing - 158"},{"$f":"_xlfn.XLOOKUP(VALUE(W130),'Data SBP Programs'!O:O,'Data SBP Programs'!S:S)","v":"Services for the Deaf and Hard of Hearing"}]
[{"$f":"'Data SBP Measures'!$AI2619&\" - \"&'Data SBP Measures'!$U2619","v":"Administration\n - 140"},{"$f":"'Data SBP Measures'!$AF2619","v":"Total # of Calls Processed"},{"$f":"'Data SBP Measures'!$T2619","v":"3230"},{"$f":"'Data SBP Measures'!$U2619&B131","v":"140Total # of Calls Processed"},{"$f":"'Data SBP Measures'!$Y2619","v":"EACH"},null,null,null,null,null,"Administration\n - 140","Total # of Calls Processed",null,null,null,null,null,null,null,"1168","158","Y","162","Services for the Deaf and Hard of Hearing","PERCENT","OUTCOME","ADOPTEDBUD",null,null,null,"Services for the Deaf and Hard of Hearing","Percentage of Interpreter requests successfully filled",null,{"$f":"'Data SBP Measures'!$AF131&'Data SBP Measures'!$AE131& \" - \"& 'Data SBP Measures'!$U131","v":"Percentage of Interpreter requests successfully filledServices for the Deaf and Hard of Hearing - 158"},{"$f":"_xlfn.XLOOKUP(VALUE(W131),'Data SBP Programs'!O:O,'Data SBP Programs'!S:S)","v":"Services for the Deaf and Hard of Hearing"}]
[{"$f":"'Data SBP Measures'!$AI2625&\" - \"&'Data SBP Measures'!$U2625","v":"Administration\n - 140"},{"$f":"'Data SBP Measures'!$AF2625","v":"Total # of Scheduled Trainings"},{"$f":"'Data SBP Measures'!$T2625","v":"3236"},{"$f":"'Data SBP Measures'!$U2625&B132","v":"140Total # of Scheduled Trainings"},{"$f":"'Data SBP Measures'!$Y2625","v":"EACH"},null,null,null,null,null,"Administration\n - 140","Total # of Scheduled Trainings",null,null,null,null,null,null,null,"1169","158","Y","162","Services for the Deaf and Hard of Hearing","EACH","OUTPUT","NEITHER",null,null,null,"Services for the Deaf and Hard of Hearing","Number of Duplicated clients served: Case Management",null,{"$f":"'Data SBP Measures'!$AF132&'Data SBP Measures'!$AE132& \" - \"& 'Data SBP Measures'!$U132","v":"Number of Duplicated clients served: Case ManagementServices for the Deaf and Hard of Hearing - 158"},{"$f":"_xlfn.XLOOKUP(VALUE(W132),'Data SBP Programs'!O:O,'Data SBP Programs'!S:S)","v":"Services for the Deaf and Hard of Hearing"}]
[{"$f":"'Data SBP Measures'!$AI3537&\" - \"&'Data SBP Measures'!$U3537","v":"Administrative - 114"},{"$f":"'Data SBP Measures'!$AF3537","v":"% of acceptable invoices processed within dept deadlines"},{"$f":"'Data SBP Measures'!$T3537","v":"862"},{"$f":"'Data SBP Measures'!$U3537&B133","v":"114% of acceptable invoices processed within dept deadlines"},{"$f":"'Data SBP Measures'!$Y3537","v":"PERCENT"},null,null,null,null,null,"Administrative - 114","% of acceptable invoices processed within dept deadlines",null,null,null,null,null,null,null,"1170","158","Y","162","Services for the Deaf and Hard of Hearing","EACH","OUTPUT","NEITHER",null,null,null,"Services for the Deaf and Hard of Hearing","Number of Duplicated clients served: Interpreter Services",null,{"$f":"'Data SBP Measures'!$AF133&'Data SBP Measures'!$AE133& \" - \"& 'Data SBP Measures'!$U133","v":"Number of Duplicated clients served: Interpreter ServicesServices for the Deaf and Hard of Hearing - 158"},{"$f":"_xlfn.XLOOKUP(VALUE(W133),'Data SBP Programs'!O:O,'Data SBP Programs'!S:S)","v":"Services for the Deaf and Hard of Hearing"}]
[{"$f":"'Data SBP Measures'!$AI3539&\" - \"&'Data SBP Measures'!$U3539","v":"Administrative - 114"},{"$f":"'Data SBP Measures'!$AF3539","v":"% of budget transfers processed within dept deadlines"},{"$f":"'Data SBP Measures'!$T3539","v":"864"},{"$f":"'Data SBP Measures'!$U3539&B134","v":"114% of budget transfers processed within dept deadlines"},{"$f":"'Data SBP Measures'!$Y3539","v":"PERCENT"},null,null,null,null,null,"Administrative - 114","% of budget transfers processed within dept deadlines",null,null,null,null,null,null,null,"1171","158","Y","162","Services for the Deaf and Hard of Hearing","EACH","OUTPUT","NEITHER",null,null,null,"Services for the Deaf and Hard of Hearing","Number of hours of service: Case Management",null,{"$f":"'Data SBP Measures'!$AF134&'Data SBP Measures'!$AE134& \" - \"& 'Data SBP Measures'!$U134","v":"Number of hours of service: Case ManagementServices for the Deaf and Hard of Hearing - 158"},{"$f":"_xlfn.XLOOKUP(VALUE(W134),'Data SBP Programs'!O:O,'Data SBP Programs'!S:S)","v":"Services for the Deaf and Hard of Hearing"}]
[{"$f":"'Data SBP Measures'!$AI3538&\" - \"&'Data SBP Measures'!$U3538","v":"Administrative - 114"},{"$f":"'Data SBP Measures'!$AF3538","v":"% of correct contract mods processed within deadlines"},{"$f":"'Data SBP Measures'!$T3538","v":"863"},{"$f":"'Data SBP Measures'!$U3538&B135","v":"114% of correct contract mods processed within deadlines"},{"$f":"'Data SBP Measures'!$Y3538","v":"PERCENT"},null,null,null,null,null,"Administrative - 114","% of correct contract mods processed within deadlines",null,null,null,null,null,null,null,"1172","158","Y","162","Services for the Deaf and Hard of Hearing","EACH","OUTPUT","NEITHER",null,null,null,"Services for the Deaf and Hard of Hearing","Number of hours of service: Interpreter Services",null,{"$f":"'Data SBP Measures'!$AF135&'Data SBP Measures'!$AE135& \" - \"& 'Data SBP Measures'!$U135","v":"Number of hours of service: Interpreter ServicesServices for the Deaf and Hard of Hearing - 158"},{"$f":"_xlfn.XLOOKUP(VALUE(W135),'Data SBP Programs'!O:O,'Data SBP Programs'!S:S)","v":"Services for the Deaf and Hard of Hearing"}]
[{"$f":"'Data SBP Measures'!$AI3536&\" - \"&'Data SBP Measures'!$U3536","v":"Administrative - 114"},{"$f":"'Data SBP Measures'!$AF3536","v":"% of correct pay applications processed within deadlines"},{"$f":"'Data SBP Measures'!$T3536","v":"861"},{"$f":"'Data SBP Measures'!$U3536&B136","v":"114% of correct pay applications processed within deadlines"},{"$f":"'Data SBP Measures'!$Y3536","v":"PERCENT"},null,null,null,null,null,"Administrative - 114","% of correct pay applications processed within deadlines",null,null,null,null,null,null,null,"1173","158","Y","162","Services for the Deaf and Hard of Hearing","EACH","OUTPUT","NEITHER",null,null,null,"Services for the Deaf and Hard of Hearing","Number of Unduplicated clients served: Case Management",null,{"$f":"'Data SBP Measures'!$AF136&'Data SBP Measures'!$AE136& \" - \"& 'Data SBP Measures'!$U136","v":"Number of Unduplicated clients served: Case ManagementServices for the Deaf and Hard of Hearing - 158"},{"$f":"_xlfn.XLOOKUP(VALUE(W136),'Data SBP Programs'!O:O,'Data SBP Programs'!S:S)","v":"Services for the Deaf and Hard of Hearing"}]
[{"$f":"'Data SBP Measures'!$AI3541&\" - \"&'Data SBP Measures'!$U3541","v":"Administrative - 114"},{"$f":"'Data SBP Measures'!$AF3541","v":"% of correct time sheets processed within County deadlines"},{"$f":"'Data SBP Measures'!$T3541","v":"866"},{"$f":"'Data SBP Measures'!$U3541&B137","v":"114% of correct time sheets processed within County deadlines"},{"$f":"'Data SBP Measures'!$Y3541","v":"PERCENT"},null,null,null,null,null,"Administrative - 114","% of correct time sheets processed within County deadlines",null,null,null,null,null,null,null,"1174","158","Y","162","Services for the Deaf and Hard of Hearing","EACH","OUTPUT","NEITHER",null,null,null,"Services for the Deaf and Hard of Hearing","Number of Unduplicated clients served: Interpreter Services",null,{"$f":"'Data SBP Measures'!$AF137&'Data SBP Measures'!$AE137& \" - \"& 'Data SBP Measures'!$U137","v":"Number of Unduplicated clients served: Interpreter ServicesServices for the Deaf and Hard of Hearing - 158"},{"$f":"_xlfn.XLOOKUP(VALUE(W137),'Data SBP Programs'!O:O,'Data SBP Programs'!S:S)","v":"Services for the Deaf and Hard of Hearing"}]
[{"$f":"'Data SBP Measures'!$AI3543&\" - \"&'Data SBP Measures'!$U3543","v":"Administrative - 114"},{"$f":"'Data SBP Measures'!$AF3543","v":"% of employees receiving appropriate training hours"},{"$f":"'Data SBP Measures'!$T3543","v":"868"},{"$f":"'Data SBP Measures'!$U3543&B138","v":"114% of employees receiving appropriate training hours"},{"$f":"'Data SBP Measures'!$Y3543","v":"PERCENT"},null,null,null,null,null,"Administrative - 114","% of employees receiving appropriate training hours",null,null,null,null,null,null,null,"1175","158","Y","163","Social Service Agency Contracts: Access to Basic Supports","EACH","OUTPUT","NEITHER",null,null,null,"Social Service Agency Contracts: Access to Basic Supports","Number of meals or meal equivalents provided",null,{"$f":"'Data SBP Measures'!$AF138&'Data SBP Measures'!$AE138& \" - \"& 'Data SBP Measures'!$U138","v":"Number of meals or meal equivalents providedSocial Service Agency Contracts: Access to Basic Supports - 158"},{"$f":"_xlfn.XLOOKUP(VALUE(W138),'Data SBP Programs'!O:O,'Data SBP Programs'!S:S)","v":"Social Service Agency Contracts: Access to Basic Supports"}]
[{"$f":"'Data SBP Measures'!$AI3542&\" - \"&'Data SBP Measures'!$U3542","v":"Administrative - 114"},{"$f":"'Data SBP Measures'!$AF3542","v":"% of personnel forms processed within dept deadlines"},{"$f":"'Data SBP Measures'!$T3542","v":"867"},{"$f":"'Data SBP Measures'!$U3542&B139","v":"114% of personnel forms processed within dept deadlines"},{"$f":"'Data SBP Measures'!$Y3542","v":"PERCENT"},null,null,null,null,null,"Administrative - 114","% of personnel forms processed within dept deadlines",null,null,null,null,null,null,null,"1175","158","Y","163","Social Service Agency Contracts: Access to Basic Supports","EACH","OUTPUT","NEITHER",null,null,null,"Social Service Agency Contracts: Access to Basic Supports","Number of meals or meal equivalents provided",null,{"$f":"'Data SBP Measures'!$AF139&'Data SBP Measures'!$AE139& \" - \"& 'Data SBP Measures'!$U139","v":"Number of meals or meal equivalents providedSocial Service Agency Contracts: Access to Basic Supports - 158"},{"$f":"_xlfn.XLOOKUP(VALUE(W139),'Data SBP Programs'!O:O,'Data SBP Programs'!S:S)","v":"Social Service Agency Contracts: Access to Basic Supports"}]
[{"$f":"'Data SBP Measures'!$AI3540&\" - \"&'Data SBP Measures'!$U3540","v":"Administrative - 114"},{"$f":"'Data SBP Measures'!$AF3540","v":"% of purchase requisition processed within dept deadlines"},{"$f":"'Data SBP Measures'!$T3540","v":"865"},{"$f":"'Data SBP Measures'!$U3540&B140","v":"114% of purchase requisition processed within dept deadlines"},{"$f":"'Data SBP Measures'!$Y3540","v":"PERCENT"},null,null,null,null,null,"Administrative - 114","% of purchase requisition processed within dept deadlines",null,null,null,null,null,null,null,"1176","158","Y","163","Social Service Agency Contracts: Access to Basic Supports","EACH","OUTPUT","NEITHER",null,null,null,"Social Service Agency Contracts: Access to Basic Supports","Number of unduplicated Food clients served",null,{"$f":"'Data SBP Measures'!$AF140&'Data SBP Measures'!$AE140& \" - \"& 'Data SBP Measures'!$U140","v":"Number of unduplicated Food clients servedSocial Service Agency Contracts: Access to Basic Supports - 158"},{"$f":"_xlfn.XLOOKUP(VALUE(W140),'Data SBP Programs'!O:O,'Data SBP Programs'!S:S)","v":"Social Service Agency Contracts: Access to Basic Supports"}]
[{"$f":"'Data SBP Measures'!$AI1623&\" - \"&'Data SBP Measures'!$U1623","v":"Adult Education Classes - 140"},{"$f":"'Data SBP Measures'!$AF1623","v":"% of client’s stated gained insight to new ideas and available resources."},{"$f":"'Data SBP Measures'!$T1623","v":"2331"},{"$f":"'Data SBP Measures'!$U1623&B141","v":"140% of client’s stated gained insight to new ideas and available resources."},{"$f":"'Data SBP Measures'!$Y1623","v":"PERCENT"},null,null,null,null,null,"Adult Education Classes - 140","% of client’s stated gained insight to new ideas and available resources.",null,null,null,null,null,null,null,"1176","158","Y","163","Social Service Agency Contracts: Access to Basic Supports","EACH","OUTPUT","NEITHER",null,null,null,"Social Service Agency Contracts: Access to Basic Supports","Number of unduplicated Food clients served",null,{"$f":"'Data SBP Measures'!$AF141&'Data SBP Measures'!$AE141& \" - \"& 'Data SBP Measures'!$U141","v":"Number of unduplicated Food clients servedSocial Service Agency Contracts: Access to Basic Supports - 158"},{"$f":"_xlfn.XLOOKUP(VALUE(W141),'Data SBP Programs'!O:O,'Data SBP Programs'!S:S)","v":"Social Service Agency Contracts: Access to Basic Supports"}]
[{"$f":"'Data SBP Measures'!$AI1624&\" - \"&'Data SBP Measures'!$U1624","v":"Adult Education Classes - 140"},{"$f":"'Data SBP Measures'!$AF1624","v":"% of client’s stated gained insight to new ideas and available resources."},{"$f":"'Data SBP Measures'!$T1624","v":"2331"},{"$f":"'Data SBP Measures'!$U1624&B142","v":"140% of client’s stated gained insight to new ideas and available resources."},{"$f":"'Data SBP Measures'!$Y1624","v":"PERCENT"},null,null,null,null,null,"Adult Education Classes - 140","% of client’s stated gained insight to new ideas and available resources.",null,null,null,null,null,null,null,"1177","158","Y","163","Social Service Agency Contracts: Access to Basic Supports","EACH","OUTPUT","NEITHER",null,null,null,"Social Service Agency Contracts: Access to Basic Supports","Number of unduplicated Legal Rights and Benefits clients served",null,{"$f":"'Data SBP Measures'!$AF142&'Data SBP Measures'!$AE142& \" - \"& 'Data SBP Measures'!$U142","v":"Number of unduplicated Legal Rights and Benefits clients servedSocial Service Agency Contracts: Access to Basic Supports - 158"},{"$f":"_xlfn.XLOOKUP(VALUE(W142),'Data SBP Programs'!O:O,'Data SBP Programs'!S:S)","v":"Social Service Agency Contracts: Access to Basic Supports"}]
[{"$f":"'Data SBP Measures'!$AI1625&\" - \"&'Data SBP Measures'!$U1625","v":"Adult Education Classes - 140"},{"$f":"'Data SBP Measures'!$AF1625","v":"% of client’s stated gained insight to new ideas and available resources."},{"$f":"'Data SBP Measures'!$T1625","v":"2331"},{"$f":"'Data SBP Measures'!$U1625&B143","v":"140% of client’s stated gained insight to new ideas and available resources."},{"$f":"'Data SBP Measures'!$Y1625","v":"PERCENT"},null,null,null,null,null,"Adult Education Classes - 140","% of client’s stated gained insight to new ideas and available resources.",null,null,null,null,null,null,null,"1177","158","Y","163","Social Service Agency Contracts: Access to Basic Supports","EACH","OUTPUT","NEITHER",null,null,null,"Social Service Agency Contracts: Access to Basic Supports","Number of unduplicated Legal Rights and Benefits clients served",null,{"$f":"'Data SBP Measures'!$AF143&'Data SBP Measures'!$AE143& \" - \"& 'Data SBP Measures'!$U143","v":"Number of unduplicated Legal Rights and Benefits clients servedSocial Service Agency Contracts: Access to Basic Supports - 158"},{"$f":"_xlfn.XLOOKUP(VALUE(W143),'Data SBP Programs'!O:O,'Data SBP Programs'!S:S)","v":"Social Service Agency Contracts: Access to Basic Supports"}]
[{"$f":"'Data SBP Measures'!$AI1626&\" - \"&'Data SBP Measures'!$U1626","v":"Adult Education Classes - 140"},{"$f":"'Data SBP Measures'!$AF1626","v":"% of client’s stated scheduling for the class was convenient."},{"$f":"'Data SBP Measures'!$T1626","v":"2332"},{"$f":"'Data SBP Measures'!$U1626&B144","v":"140% of client’s stated scheduling for the class was convenient."},{"$f":"'Data SBP Measures'!$Y1626","v":"PERCENT"},null,null,null,null,null,"Adult Education Classes - 140","% of client’s stated scheduling for the class was convenient.",null,null,null,null,null,null,null,"1178","158","Y","163","Social Service Agency Contracts: Access to Basic Supports","EACH","OUTPUT","NEITHER",null,null,null,"Social Service Agency Contracts: Access to Basic Supports","Number of trips provided",null,{"$f":"'Data SBP Measures'!$AF144&'Data SBP Measures'!$AE144& \" - \"& 'Data SBP Measures'!$U144","v":"Number of trips providedSocial Service Agency Contracts: Access to Basic Supports - 158"},{"$f":"_xlfn.XLOOKUP(VALUE(W144),'Data SBP Programs'!O:O,'Data SBP Programs'!S:S)","v":"Social Service Agency Contracts: Access to Basic Supports"}]
[{"$f":"'Data SBP Measures'!$AI1627&\" - \"&'Data SBP Measures'!$U1627","v":"Adult Education Classes - 140"},{"$f":"'Data SBP Measures'!$AF1627","v":"% of client’s stated scheduling for the class was convenient."},{"$f":"'Data SBP Measures'!$T1627","v":"2332"},{"$f":"'Data SBP Measures'!$U1627&B145","v":"140% of client’s stated scheduling for the class was convenient."},{"$f":"'Data SBP Measures'!$Y1627","v":"PERCENT"},null,null,null,null,null,"Adult Education Classes - 140","% of client’s stated scheduling for the class was convenient.",null,null,null,null,null,null,null,"1178","158","Y","163","Social Service Agency Contracts: Access to Basic Supports","EACH","OUTPUT","NEITHER",null,null,null,"Social Service Agency Contracts: Access to Basic Supports","Number of trips provided",null,{"$f":"'Data SBP Measures'!$AF145&'Data SBP Measures'!$AE145& \" - \"& 'Data SBP Measures'!$U145","v":"Number of trips providedSocial Service Agency Contracts: Access to Basic Supports - 158"},{"$f":"_xlfn.XLOOKUP(VALUE(W145),'Data SBP Programs'!O:O,'Data SBP Programs'!S:S)","v":"Social Service Agency Contracts: Access to Basic Supports"}]
[{"$f":"'Data SBP Measures'!$AI1628&\" - \"&'Data SBP Measures'!$U1628","v":"Adult Education Classes - 140"},{"$f":"'Data SBP Measures'!$AF1628","v":"% of client’s stated scheduling for the class was convenient."},{"$f":"'Data SBP Measures'!$T1628","v":"2332"},{"$f":"'Data SBP Measures'!$U1628&B146","v":"140% of client’s stated scheduling for the class was convenient."},{"$f":"'Data SBP Measures'!$Y1628","v":"PERCENT"},null,null,null,null,null,"Adult Education Classes - 140","% of client’s stated scheduling for the class was convenient.",null,null,null,null,null,null,null,"1179","158","Y","163","Social Service Agency Contracts: Access to Basic Supports","EACH","OUTPUT","NEITHER",null,null,null,"Social Service Agency Contracts: Access to Basic Supports","Number of unduplicated Transportation clients served",null,{"$f":"'Data SBP Measures'!$AF146&'Data SBP Measures'!$AE146& \" - \"& 'Data SBP Measures'!$U146","v":"Number of unduplicated Transportation clients servedSocial Service Agency Contracts: Access to Basic Supports - 158"},{"$f":"_xlfn.XLOOKUP(VALUE(W146),'Data SBP Programs'!O:O,'Data SBP Programs'!S:S)","v":"Social Service Agency Contracts: Access to Basic Supports"}]
[{"$f":"'Data SBP Measures'!$AI1620&\" - \"&'Data SBP Measures'!$U1620","v":"Adult Education Classes - 140"},{"$f":"'Data SBP Measures'!$AF1620","v":"% of clients indicating the class will help avoid future law violations."},{"$f":"'Data SBP Measures'!$T1620","v":"2330"},{"$f":"'Data SBP Measures'!$U1620&B147","v":"140% of clients indicating the class will help avoid future law violations."},{"$f":"'Data SBP Measures'!$Y1620","v":"PERCENT"},null,null,null,null,null,"Adult Education Classes - 140","% of clients indicating the class will help avoid future law violations.",null,null,null,null,null,null,null,"1179","158","Y","163","Social Service Agency Contracts: Access to Basic Supports","EACH","OUTPUT","NEITHER",null,null,null,"Social Service Agency Contracts: Access to Basic Supports","Number of unduplicated Transportation clients served",null,{"$f":"'Data SBP Measures'!$AF147&'Data SBP Measures'!$AE147& \" - \"& 'Data SBP Measures'!$U147","v":"Number of unduplicated Transportation clients servedSocial Service Agency Contracts: Access to Basic Supports - 158"},{"$f":"_xlfn.XLOOKUP(VALUE(W147),'Data SBP Programs'!O:O,'Data SBP Programs'!S:S)","v":"Social Service Agency Contracts: Access to Basic Supports"}]
[{"$f":"'Data SBP Measures'!$AI1621&\" - \"&'Data SBP Measures'!$U1621","v":"Adult Education Classes - 140"},{"$f":"'Data SBP Measures'!$AF1621","v":"% of clients indicating the class will help avoid future law violations."},{"$f":"'Data SBP Measures'!$T1621","v":"2330"},{"$f":"'Data SBP Measures'!$U1621&B148","v":"140% of clients indicating the class will help avoid future law violations."},{"$f":"'Data SBP Measures'!$Y1621","v":"PERCENT"},null,null,null,null,null,"Adult Education Classes - 140","% of clients indicating the class will help avoid future law violations.",null,null,null,null,null,null,null,"1180","158","Y","164","Social Service Agency Contracts: Behavioral Health","PERCENT","OUTCOME","NEITHER",null,null,null,"Social Service Agency Contracts: Behavioral Health","Percent of clients with improved mental health",null,{"$f":"'Data SBP Measures'!$AF148&'Data SBP Measures'!$AE148& \" - \"& 'Data SBP Measures'!$U148","v":"Percent of clients with improved mental healthSocial Service Agency Contracts: Behavioral Health - 158"},{"$f":"_xlfn.XLOOKUP(VALUE(W148),'Data SBP Programs'!O:O,'Data SBP Programs'!S:S)","v":"Social Service Agency Contracts: Behavioral Health"}]
[{"$f":"'Data SBP Measures'!$AI1622&\" - \"&'Data SBP Measures'!$U1622","v":"Adult Education Classes - 140"},{"$f":"'Data SBP Measures'!$AF1622","v":"% of clients indicating the class will help avoid future law violations."},{"$f":"'Data SBP Measures'!$T1622","v":"2330"},{"$f":"'Data SBP Measures'!$U1622&B149","v":"140% of clients indicating the class will help avoid future law violations."},{"$f":"'Data SBP Measures'!$Y1622","v":"PERCENT"},null,null,null,null,null,"Adult Education Classes - 140","% of clients indicating the class will help avoid future law violations.",null,null,null,null,null,null,null,"1183","158","Y","165","Social Service Agency Contracts: Child and Youth Development","PERCENT","OUTCOME","NEITHER",null,null,null,"Social Service Agency Contracts: Child and Youth Development","Percent of parents/caregivers/staff with an increase in skills that support nurturing and responsive environments for healthy child development",null,{"$f":"'Data SBP Measures'!$AF149&'Data SBP Measures'!$AE149& \" - \"& 'Data SBP Measures'!$U149","v":"Percent of parents/caregivers/staff with an increase in skills that support nurturing and responsive environments for healthy child developmentSocial Service Agency Contracts: Child and Youth Development - 158"},{"$f":"_xlfn.XLOOKUP(VALUE(W149),'Data SBP Programs'!O:O,'Data SBP Programs'!S:S)","v":"Social Service Agency Contracts: Child and Youth Development"}]
[{"$f":"'Data SBP Measures'!$AI1616&\" - \"&'Data SBP Measures'!$U1616","v":"Adult Education Classes - 140"},{"$f":"'Data SBP Measures'!$AF1616","v":"% of clients indicating they benefited from an increase of knowledge"},{"$f":"'Data SBP Measures'!$T1616","v":"2329"},{"$f":"'Data SBP Measures'!$U1616&B150","v":"140% of clients indicating they benefited from an increase of knowledge"},{"$f":"'Data SBP Measures'!$Y1616","v":"PERCENT"},null,null,null,null,null,"Adult Education Classes - 140","% of clients indicating they benefited from an increase of knowledge",null,null,null,null,null,null,null,"1184","158","Y","165","Social Service Agency Contracts: Child and Youth Development","PERCENT","OUTCOME","NEITHER",null,null,null,"Social Service Agency Contracts: Child and Youth Development","Percent of child and youth service providers that maintain or increase quality rating",null,{"$f":"'Data SBP Measures'!$AF150&'Data SBP Measures'!$AE150& \" - \"& 'Data SBP Measures'!$U150","v":"Percent of child and youth service providers that maintain or increase quality ratingSocial Service Agency Contracts: Child and Youth Development - 158"},{"$f":"_xlfn.XLOOKUP(VALUE(W150),'Data SBP Programs'!O:O,'Data SBP Programs'!S:S)","v":"Social Service Agency Contracts: Child and Youth Development"}]
[{"$f":"'Data SBP Measures'!$AI1617&\" - \"&'Data SBP Measures'!$U1617","v":"Adult Education Classes - 140"},{"$f":"'Data SBP Measures'!$AF1617","v":"% of clients indicating they benefited from an increase of knowledge"},{"$f":"'Data SBP Measures'!$T1617","v":"2329"},{"$f":"'Data SBP Measures'!$U1617&B151","v":"140% of clients indicating they benefited from an increase of knowledge"},{"$f":"'Data SBP Measures'!$Y1617","v":"PERCENT"},null,null,null,null,null,"Adult Education Classes - 140","% of clients indicating they benefited from an increase of knowledge",null,null,null,null,null,null,null,"1185","158","Y","165","Social Service Agency Contracts: Child and Youth Development","PERCENT","OUTCOME","NEITHER",null,null,null,"Social Service Agency Contracts: Child and Youth Development","Percent of children and youth who demonstrate academic success and workforce readiness",null,{"$f":"'Data SBP Measures'!$AF151&'Data SBP Measures'!$AE151& \" - \"& 'Data SBP Measures'!$U151","v":"Percent of children and youth who demonstrate academic success and workforce readinessSocial Service Agency Contracts: Child and Youth Development - 158"},{"$f":"_xlfn.XLOOKUP(VALUE(W151),'Data SBP Programs'!O:O,'Data SBP Programs'!S:S)","v":"Social Service Agency Contracts: Child and Youth Development"}]
[{"$f":"'Data SBP Measures'!$AI1618&\" - \"&'Data SBP Measures'!$U1618","v":"Adult Education Classes - 140"},{"$f":"'Data SBP Measures'!$AF1618","v":"% of clients indicating they benefited from an increase of knowledge"},{"$f":"'Data SBP Measures'!$T1618","v":"2329"},{"$f":"'Data SBP Measures'!$U1618&B152","v":"140% of clients indicating they benefited from an increase of knowledge"},{"$f":"'Data SBP Measures'!$Y1618","v":"PERCENT"},null,null,null,null,null,"Adult Education Classes - 140","% of clients indicating they benefited from an increase of knowledge",null,null,null,null,null,null,null,"1186","158","Y","165","Social Service Agency Contracts: Child and Youth Development","PERCENT","OUTCOME","NEITHER",null,null,null,"Social Service Agency Contracts: Child and Youth Development","Percent of children and youth who demonstrate healthy social and emotional behaviors",null,{"$f":"'Data SBP Measures'!$AF152&'Data SBP Measures'!$AE152& \" - \"& 'Data SBP Measures'!$U152","v":"Percent of children and youth who demonstrate healthy social and emotional behaviorsSocial Service Agency Contracts: Child and Youth Development - 158"},{"$f":"_xlfn.XLOOKUP(VALUE(W152),'Data SBP Programs'!O:O,'Data SBP Programs'!S:S)","v":"Social Service Agency Contracts: Child and Youth Development"}]
[{"$f":"'Data SBP Measures'!$AI1779&\" - \"&'Data SBP Measures'!$U1779","v":"Adult Education Classes - 140"},{"$f":"'Data SBP Measures'!$AF1779","v":"12-Hour Cognitive Life Skills I (CL1) # of classes"},{"$f":"'Data SBP Measures'!$T1779","v":"2425"},{"$f":"'Data SBP Measures'!$U1779&B153","v":"14012-Hour Cognitive Life Skills I (CL1) # of classes"},{"$f":"'Data SBP Measures'!$Y1779","v":"EACH"},null,null,null,null,null,"Adult Education Classes - 140","12-Hour Cognitive Life Skills I (CL1) # of classes",null,null,null,null,null,null,null,"1187","158","Y","165","Social Service Agency Contracts: Child and Youth Development","EACH","OUTPUT","NEITHER",null,null,null,"Social Service Agency Contracts: Child and Youth Development","Number of unduplicated children and youth served",null,{"$f":"'Data SBP Measures'!$AF153&'Data SBP Measures'!$AE153& \" - \"& 'Data SBP Measures'!$U153","v":"Number of unduplicated children and youth servedSocial Service Agency Contracts: Child and Youth Development - 158"},{"$f":"_xlfn.XLOOKUP(VALUE(W153),'Data SBP Programs'!O:O,'Data SBP Programs'!S:S)","v":"Social Service Agency Contracts: Child and Youth Development"}]
[{"$f":"'Data SBP Measures'!$AI1780&\" - \"&'Data SBP Measures'!$U1780","v":"Adult Education Classes - 140"},{"$f":"'Data SBP Measures'!$AF1780","v":"12-Hour Cognitive Life Skills I (CL1) # of classes"},{"$f":"'Data SBP Measures'!$T1780","v":"2425"},{"$f":"'Data SBP Measures'!$U1780&B154","v":"14012-Hour Cognitive Life Skills I (CL1) # of classes"},{"$f":"'Data SBP Measures'!$Y1780","v":"EACH"},null,null,null,null,null,"Adult Education Classes - 140","12-Hour Cognitive Life Skills I (CL1) # of classes",null,null,null,null,null,null,null,"1189","158","Y","167","Social Service Agency Contracts: Housing Continuum","PERCENT","OUTCOME","NEITHER",null,null,null,"Social Service Agency Contracts: Housing Continuum","Percent of unduplicated clients that reported increased knowledge or skills in addressing their housing problems",null,{"$f":"'Data SBP Measures'!$AF154&'Data SBP Measures'!$AE154& \" - \"& 'Data SBP Measures'!$U154","v":"Percent of unduplicated clients that reported increased knowledge or skills in addressing their housing problemsSocial Service Agency Contracts: Housing Continuum - 158"},{"$f":"_xlfn.XLOOKUP(VALUE(W154),'Data SBP Programs'!O:O,'Data SBP Programs'!S:S)","v":"Social Service Agency Contracts: Housing Continuum"}]
[{"$f":"'Data SBP Measures'!$AI1781&\" - \"&'Data SBP Measures'!$U1781","v":"Adult Education Classes - 140"},{"$f":"'Data SBP Measures'!$AF1781","v":"12-Hour Cognitive Life Skills I (CL1) # of classes"},{"$f":"'Data SBP Measures'!$T1781","v":"2425"},{"$f":"'Data SBP Measures'!$U1781&B155","v":"14012-Hour Cognitive Life Skills I (CL1) # of classes"},{"$f":"'Data SBP Measures'!$Y1781","v":"EACH"},null,null,null,null,null,"Adult Education Classes - 140","12-Hour Cognitive Life Skills I (CL1) # of classes",null,null,null,null,null,null,null,"1190","158","Y","167","Social Service Agency Contracts: Housing Continuum","PERCENT","OUTCOME","NEITHER",null,null,null,"Social Service Agency Contracts: Housing Continuum","Percent of Emergency Shelter clients who transition into safe and stable housing at program exit",null,{"$f":"'Data SBP Measures'!$AF155&'Data SBP Measures'!$AE155& \" - \"& 'Data SBP Measures'!$U155","v":"Percent of Emergency Shelter clients who transition into safe and stable housing at program exitSocial Service Agency Contracts: Housing Continuum - 158"},{"$f":"_xlfn.XLOOKUP(VALUE(W155),'Data SBP Programs'!O:O,'Data SBP Programs'!S:S)","v":"Social Service Agency Contracts: Housing Continuum"}]
[{"$f":"'Data SBP Measures'!$AI1776&\" - \"&'Data SBP Measures'!$U1776","v":"Adult Education Classes - 140"},{"$f":"'Data SBP Measures'!$AF1776","v":"12-Hour Cognitive Life Skills I (CL1) # of clients completing"},{"$f":"'Data SBP Measures'!$T1776","v":"2424"},{"$f":"'Data SBP Measures'!$U1776&B156","v":"14012-Hour Cognitive Life Skills I (CL1) # of clients completing"},{"$f":"'Data SBP Measures'!$Y1776","v":"EACH"},null,null,null,null,null,"Adult Education Classes - 140","12-Hour Cognitive Life Skills I (CL1) # of clients completing",null,null,null,null,null,null,null,"1191","158","Y","167","Social Service Agency Contracts: Housing Continuum","PERCENT","OUTCOME","NEITHER",null,null,null,"Social Service Agency Contracts: Housing Continuum","Percent of Transitional Housing clients/households who transition into safe and stable housing at program exit",null,{"$f":"'Data SBP Measures'!$AF156&'Data SBP Measures'!$AE156& \" - \"& 'Data SBP Measures'!$U156","v":"Percent of Transitional Housing clients/households who transition into safe and stable housing at program exitSocial Service Agency Contracts: Housing Continuum - 158"},{"$f":"_xlfn.XLOOKUP(VALUE(W156),'Data SBP Programs'!O:O,'Data SBP Programs'!S:S)","v":"Social Service Agency Contracts: Housing Continuum"}]
[{"$f":"'Data SBP Measures'!$AI1777&\" - \"&'Data SBP Measures'!$U1777","v":"Adult Education Classes - 140"},{"$f":"'Data SBP Measures'!$AF1777","v":"12-Hour Cognitive Life Skills I (CL1) # of clients completing"},{"$f":"'Data SBP Measures'!$T1777","v":"2424"},{"$f":"'Data SBP Measures'!$U1777&B157","v":"14012-Hour Cognitive Life Skills I (CL1) # of clients completing"},{"$f":"'Data SBP Measures'!$Y1777","v":"EACH"},null,null,null,null,null,"Adult Education Classes - 140","12-Hour Cognitive Life Skills I (CL1) # of clients completing",null,null,null,null,null,null,null,"1192","158","Y","167","Social Service Agency Contracts: Housing Continuum","EACH","OUTPUT","NEITHER",null,null,null,"Social Service Agency Contracts: Housing Continuum","Number of unduplicated clients served",null,{"$f":"'Data SBP Measures'!$AF157&'Data SBP Measures'!$AE157& \" - \"& 'Data SBP Measures'!$U157","v":"Number of unduplicated clients servedSocial Service Agency Contracts: Housing Continuum - 158"},{"$f":"_xlfn.XLOOKUP(VALUE(W157),'Data SBP Programs'!O:O,'Data SBP Programs'!S:S)","v":"Social Service Agency Contracts: Housing Continuum"}]
[{"$f":"'Data SBP Measures'!$AI1778&\" - \"&'Data SBP Measures'!$U1778","v":"Adult Education Classes - 140"},{"$f":"'Data SBP Measures'!$AF1778","v":"12-Hour Cognitive Life Skills I (CL1) # of clients completing"},{"$f":"'Data SBP Measures'!$T1778","v":"2424"},{"$f":"'Data SBP Measures'!$U1778&B158","v":"14012-Hour Cognitive Life Skills I (CL1) # of clients completing"},{"$f":"'Data SBP Measures'!$Y1778","v":"EACH"},null,null,null,null,null,"Adult Education Classes - 140","12-Hour Cognitive Life Skills I (CL1) # of clients completing",null,null,null,null,null,null,null,"1194","158","Y","168","Social Service Agency Contracts: Public Health","EACH","OUTPUT","NEITHER",null,null,null,"Social Service Agency Contracts: Public Health","Number of unduplicated clients living with HIV served",null,{"$f":"'Data SBP Measures'!$AF158&'Data SBP Measures'!$AE158& \" - \"& 'Data SBP Measures'!$U158","v":"Number of unduplicated clients living with HIV servedSocial Service Agency Contracts: Public Health - 158"},{"$f":"_xlfn.XLOOKUP(VALUE(W158),'Data SBP Programs'!O:O,'Data SBP Programs'!S:S)","v":"Social Service Agency Contracts: Public Health"}]
[{"$f":"'Data SBP Measures'!$AI1773&\" - \"&'Data SBP Measures'!$U1773","v":"Adult Education Classes - 140"},{"$f":"'Data SBP Measures'!$AF1773","v":"12-Hour Cognitive Life Skills I (CL1) # of clients referred to class"},{"$f":"'Data SBP Measures'!$T1773","v":"2423"},{"$f":"'Data SBP Measures'!$U1773&B159","v":"14012-Hour Cognitive Life Skills I (CL1) # of clients referred to class"},{"$f":"'Data SBP Measures'!$Y1773","v":"EACH"},null,null,null,null,null,"Adult Education Classes - 140","12-Hour Cognitive Life Skills I (CL1) # of clients referred to class",null,null,null,null,null,null,null,"1195","158","Y","169","Social Service Agency Contracts: Safety Intervention Svcs","PERCENT","OUTCOME","NEITHER",null,null,null,"Social Service Agency Contracts: Safety Intervention Svcs","Percent of clients making progress toward their trauma adjustment goals",null,{"$f":"'Data SBP Measures'!$AF159&'Data SBP Measures'!$AE159& \" - \"& 'Data SBP Measures'!$U159","v":"Percent of clients making progress toward their trauma adjustment goalsSocial Service Agency Contracts: Safety Intervention Svcs - 158"},{"$f":"_xlfn.XLOOKUP(VALUE(W159),'Data SBP Programs'!O:O,'Data SBP Programs'!S:S)","v":"Social Service Agency Contracts: Safety Intervention Svcs"}]
[{"$f":"'Data SBP Measures'!$AI1774&\" - \"&'Data SBP Measures'!$U1774","v":"Adult Education Classes - 140"},{"$f":"'Data SBP Measures'!$AF1774","v":"12-Hour Cognitive Life Skills I (CL1) # of clients referred to class"},{"$f":"'Data SBP Measures'!$T1774","v":"2423"},{"$f":"'Data SBP Measures'!$U1774&B160","v":"14012-Hour Cognitive Life Skills I (CL1) # of clients referred to class"},{"$f":"'Data SBP Measures'!$Y1774","v":"EACH"},null,null,null,null,null,"Adult Education Classes - 140","12-Hour Cognitive Life Skills I (CL1) # of clients referred to class",null,null,null,null,null,null,null,"1196","158","Y","169","Social Service Agency Contracts: Safety Intervention Svcs","PERCENT","OUTCOME","NEITHER",null,null,null,"Social Service Agency Contracts: Safety Intervention Svcs","Percent of children and youth who exit program into permanent living situations",null,{"$f":"'Data SBP Measures'!$AF160&'Data SBP Measures'!$AE160& \" - \"& 'Data SBP Measures'!$U160","v":"Percent of children and youth who exit program into permanent living situationsSocial Service Agency Contracts: Safety Intervention Svcs - 158"},{"$f":"_xlfn.XLOOKUP(VALUE(W160),'Data SBP Programs'!O:O,'Data SBP Programs'!S:S)","v":"Social Service Agency Contracts: Safety Intervention Svcs"}]
[{"$f":"'Data SBP Measures'!$AI1775&\" - \"&'Data SBP Measures'!$U1775","v":"Adult Education Classes - 140"},{"$f":"'Data SBP Measures'!$AF1775","v":"12-Hour Cognitive Life Skills I (CL1) # of clients referred to class"},{"$f":"'Data SBP Measures'!$T1775","v":"2423"},{"$f":"'Data SBP Measures'!$U1775&B161","v":"14012-Hour Cognitive Life Skills I (CL1) # of clients referred to class"},{"$f":"'Data SBP Measures'!$Y1775","v":"EACH"},null,null,null,null,null,"Adult Education Classes - 140","12-Hour Cognitive Life Skills I (CL1) # of clients referred to class",null,null,null,null,null,null,null,"1197","158","Y","169","Social Service Agency Contracts: Safety Intervention Svcs","PERCENT","OUTCOME","NEITHER",null,null,null,"Social Service Agency Contracts: Safety Intervention Svcs","Percent of clients who exit shelter to a location that does not include the person who was previously abusive",null,{"$f":"'Data SBP Measures'!$AF161&'Data SBP Measures'!$AE161& \" - \"& 'Data SBP Measures'!$U161","v":"Percent of clients who exit shelter to a location that does not include the person who was previously abusiveSocial Service Agency Contracts: Safety Intervention Svcs - 158"},{"$f":"_xlfn.XLOOKUP(VALUE(W161),'Data SBP Programs'!O:O,'Data SBP Programs'!S:S)","v":"Social Service Agency Contracts: Safety Intervention Svcs"}]
[{"$f":"'Data SBP Measures'!$AI1585&\" - \"&'Data SBP Measures'!$U1585","v":"Adult Education Classes - 140"},{"$f":"'Data SBP Measures'!$AF1585","v":"20-Hour Multiple Offender/Felony # of classes"},{"$f":"'Data SBP Measures'!$T1585","v":"2319"},{"$f":"'Data SBP Measures'!$U1585&B162","v":"14020-Hour Multiple Offender/Felony # of classes"},{"$f":"'Data SBP Measures'!$Y1585","v":"EACH"},null,null,null,null,null,"Adult Education Classes - 140","20-Hour Multiple Offender/Felony # of classes",null,null,null,null,null,null,null,"1198","158","Y","169","Social Service Agency Contracts: Safety Intervention Svcs","EACH","OUTPUT","NEITHER",null,null,null,"Social Service Agency Contracts: Safety Intervention Svcs","Number of shelter bed nights provided",null,{"$f":"'Data SBP Measures'!$AF162&'Data SBP Measures'!$AE162& \" - \"& 'Data SBP Measures'!$U162","v":"Number of shelter bed nights providedSocial Service Agency Contracts: Safety Intervention Svcs - 158"},{"$f":"_xlfn.XLOOKUP(VALUE(W162),'Data SBP Programs'!O:O,'Data SBP Programs'!S:S)","v":"Social Service Agency Contracts: Safety Intervention Svcs"}]
[{"$f":"'Data SBP Measures'!$AI1586&\" - \"&'Data SBP Measures'!$U1586","v":"Adult Education Classes - 140"},{"$f":"'Data SBP Measures'!$AF1586","v":"20-Hour Multiple Offender/Felony # of classes"},{"$f":"'Data SBP Measures'!$T1586","v":"2319"},{"$f":"'Data SBP Measures'!$U1586&B163","v":"14020-Hour Multiple Offender/Felony # of classes"},{"$f":"'Data SBP Measures'!$Y1586","v":"EACH"},null,null,null,null,null,"Adult Education Classes - 140","20-Hour Multiple Offender/Felony # of classes",null,null,null,null,null,null,null,"1199","158","Y","169","Social Service Agency Contracts: Safety Intervention Svcs","EACH","OUTPUT","NEITHER",null,null,null,"Social Service Agency Contracts: Safety Intervention Svcs","Number of unduplicated clients served",null,{"$f":"'Data SBP Measures'!$AF163&'Data SBP Measures'!$AE163& \" - \"& 'Data SBP Measures'!$U163","v":"Number of unduplicated clients servedSocial Service Agency Contracts: Safety Intervention Svcs - 158"},{"$f":"_xlfn.XLOOKUP(VALUE(W163),'Data SBP Programs'!O:O,'Data SBP Programs'!S:S)","v":"Social Service Agency Contracts: Safety Intervention Svcs"}]
[{"$f":"'Data SBP Measures'!$AI1587&\" - \"&'Data SBP Measures'!$U1587","v":"Adult Education Classes - 140"},{"$f":"'Data SBP Measures'!$AF1587","v":"20-Hour Multiple Offender/Felony # of classes"},{"$f":"'Data SBP Measures'!$T1587","v":"2319"},{"$f":"'Data SBP Measures'!$U1587&B164","v":"14020-Hour Multiple Offender/Felony # of classes"},{"$f":"'Data SBP Measures'!$Y1587","v":"EACH"},null,null,null,null,null,"Adult Education Classes - 140","20-Hour Multiple Offender/Felony # of classes",null,null,null,null,null,null,null,"1200","158","Y","170","Social Service Agency Contracts: Support Svc Comm Living","PERCENT","OUTCOME","NEITHER",null,null,null,"Social Service Agency Contracts: Support Svc Comm Living","Percent of clients who report that the service helped them live independently at home",null,{"$f":"'Data SBP Measures'!$AF164&'Data SBP Measures'!$AE164& \" - \"& 'Data SBP Measures'!$U164","v":"Percent of clients who report that the service helped them live independently at homeSocial Service Agency Contracts: Support Svc Comm Living - 158"},{"$f":"_xlfn.XLOOKUP(VALUE(W164),'Data SBP Programs'!O:O,'Data SBP Programs'!S:S)","v":"Social Service Agency Contracts: Support Svc Comm Living"}]
[{"$f":"'Data SBP Measures'!$AI1582&\" - \"&'Data SBP Measures'!$U1582","v":"Adult Education Classes - 140"},{"$f":"'Data SBP Measures'!$AF1582","v":"20-Hour Multiple Offender/Felony # of clients completing"},{"$f":"'Data SBP Measures'!$T1582","v":"2318"},{"$f":"'Data SBP Measures'!$U1582&B165","v":"14020-Hour Multiple Offender/Felony # of clients completing"},{"$f":"'Data SBP Measures'!$Y1582","v":"EACH"},null,null,null,null,null,"Adult Education Classes - 140","20-Hour Multiple Offender/Felony # of clients completing",null,null,null,null,null,null,null,"1201","158","Y","170","Social Service Agency Contracts: Support Svc Comm Living","PERCENT","OUTCOME","NEITHER",null,null,null,"Social Service Agency Contracts: Support Svc Comm Living","Percent of clients who report that services helped them stay connected or engaged with the community",null,{"$f":"'Data SBP Measures'!$AF165&'Data SBP Measures'!$AE165& \" - \"& 'Data SBP Measures'!$U165","v":"Percent of clients who report that services helped them stay connected or engaged with the communitySocial Service Agency Contracts: Support Svc Comm Living - 158"},{"$f":"_xlfn.XLOOKUP(VALUE(W165),'Data SBP Programs'!O:O,'Data SBP Programs'!S:S)","v":"Social Service Agency Contracts: Support Svc Comm Living"}]
[{"$f":"'Data SBP Measures'!$AI1583&\" - \"&'Data SBP Measures'!$U1583","v":"Adult Education Classes - 140"},{"$f":"'Data SBP Measures'!$AF1583","v":"20-Hour Multiple Offender/Felony # of clients completing"},{"$f":"'Data SBP Measures'!$T1583","v":"2318"},{"$f":"'Data SBP Measures'!$U1583&B166","v":"14020-Hour Multiple Offender/Felony # of clients completing"},{"$f":"'Data SBP Measures'!$Y1583","v":"EACH"},null,null,null,null,null,"Adult Education Classes - 140","20-Hour Multiple Offender/Felony # of clients completing",null,null,null,null,null,null,null,"1202","158","Y","170","Social Service Agency Contracts: Support Svc Comm Living","EACH","OUTPUT","NEITHER",null,null,null,"Social Service Agency Contracts: Support Svc Comm Living","Number of unduplicated clients served",null,{"$f":"'Data SBP Measures'!$AF166&'Data SBP Measures'!$AE166& \" - \"& 'Data SBP Measures'!$U166","v":"Number of unduplicated clients servedSocial Service Agency Contracts: Support Svc Comm Living - 158"},{"$f":"_xlfn.XLOOKUP(VALUE(W166),'Data SBP Programs'!O:O,'Data SBP Programs'!S:S)","v":"Social Service Agency Contracts: Support Svc Comm Living"}]
[{"$f":"'Data SBP Measures'!$AI1584&\" - \"&'Data SBP Measures'!$U1584","v":"Adult Education Classes - 140"},{"$f":"'Data SBP Measures'!$AF1584","v":"20-Hour Multiple Offender/Felony # of clients completing"},{"$f":"'Data SBP Measures'!$T1584","v":"2318"},{"$f":"'Data SBP Measures'!$U1584&B167","v":"14020-Hour Multiple Offender/Felony # of clients completing"},{"$f":"'Data SBP Measures'!$Y1584","v":"EACH"},null,null,null,null,null,"Adult Education Classes - 140","20-Hour Multiple Offender/Felony # of clients completing",null,null,null,null,null,null,null,"1203","158","Y","171","Social Service Agency Contracts: Workforce Development","PERCENT","OUTCOME","NEITHER",null,null,null,"Social Service Agency Contracts: Workforce Development","Percent of individuals earning a wage of at least $12/hr",null,{"$f":"'Data SBP Measures'!$AF167&'Data SBP Measures'!$AE167& \" - \"& 'Data SBP Measures'!$U167","v":"Percent of individuals earning a wage of at least $12/hrSocial Service Agency Contracts: Workforce Development - 158"},{"$f":"_xlfn.XLOOKUP(VALUE(W167),'Data SBP Programs'!O:O,'Data SBP Programs'!S:S)","v":"Social Service Agency Contracts: Workforce Development"}]
[{"$f":"'Data SBP Measures'!$AI1579&\" - \"&'Data SBP Measures'!$U1579","v":"Adult Education Classes - 140"},{"$f":"'Data SBP Measures'!$AF1579","v":"20-Hour Multiple Offender/Felony # of clients referred to class"},{"$f":"'Data SBP Measures'!$T1579","v":"2317"},{"$f":"'Data SBP Measures'!$U1579&B168","v":"14020-Hour Multiple Offender/Felony # of clients referred to class"},{"$f":"'Data SBP Measures'!$Y1579","v":"EACH"},null,null,null,null,null,"Adult Education Classes - 140","20-Hour Multiple Offender/Felony # of clients referred to class",null,null,null,null,null,null,null,"1204","158","Y","171","Social Service Agency Contracts: Workforce Development","PERCENT","OUTCOME","NEITHER",null,null,null,"Social Service Agency Contracts: Workforce Development","Percent of individuals maintaining employment for 6 months",null,{"$f":"'Data SBP Measures'!$AF168&'Data SBP Measures'!$AE168& \" - \"& 'Data SBP Measures'!$U168","v":"Percent of individuals maintaining employment for 6 monthsSocial Service Agency Contracts: Workforce Development - 158"},{"$f":"_xlfn.XLOOKUP(VALUE(W168),'Data SBP Programs'!O:O,'Data SBP Programs'!S:S)","v":"Social Service Agency Contracts: Workforce Development"}]
[{"$f":"'Data SBP Measures'!$AI1580&\" - \"&'Data SBP Measures'!$U1580","v":"Adult Education Classes - 140"},{"$f":"'Data SBP Measures'!$AF1580","v":"20-Hour Multiple Offender/Felony # of clients referred to class"},{"$f":"'Data SBP Measures'!$T1580","v":"2317"},{"$f":"'Data SBP Measures'!$U1580&B169","v":"14020-Hour Multiple Offender/Felony # of clients referred to class"},{"$f":"'Data SBP Measures'!$Y1580","v":"EACH"},null,null,null,null,null,"Adult Education Classes - 140","20-Hour Multiple Offender/Felony # of clients referred to class",null,null,null,null,null,null,null,"1205","158","Y","171","Social Service Agency Contracts: Workforce Development","PERCENT","OUTCOME","NEITHER",null,null,null,"Social Service Agency Contracts: Workforce Development","Percent of individuals obtaining employment",null,{"$f":"'Data SBP Measures'!$AF169&'Data SBP Measures'!$AE169& \" - \"& 'Data SBP Measures'!$U169","v":"Percent of individuals obtaining employmentSocial Service Agency Contracts: Workforce Development - 158"},{"$f":"_xlfn.XLOOKUP(VALUE(W169),'Data SBP Programs'!O:O,'Data SBP Programs'!S:S)","v":"Social Service Agency Contracts: Workforce Development"}]
[{"$f":"'Data SBP Measures'!$AI1581&\" - \"&'Data SBP Measures'!$U1581","v":"Adult Education Classes - 140"},{"$f":"'Data SBP Measures'!$AF1581","v":"20-Hour Multiple Offender/Felony # of clients referred to class"},{"$f":"'Data SBP Measures'!$T1581","v":"2317"},{"$f":"'Data SBP Measures'!$U1581&B170","v":"14020-Hour Multiple Offender/Felony # of clients referred to class"},{"$f":"'Data SBP Measures'!$Y1581","v":"EACH"},null,null,null,null,null,"Adult Education Classes - 140","20-Hour Multiple Offender/Felony # of clients referred to class",null,null,null,null,null,null,null,"1206","158","Y","171","Social Service Agency Contracts: Workforce Development","EACH","OUTPUT","NEITHER",null,null,null,"Social Service Agency Contracts: Workforce Development","Number of unduplicated clients served",null,{"$f":"'Data SBP Measures'!$AF170&'Data SBP Measures'!$AE170& \" - \"& 'Data SBP Measures'!$U170","v":"Number of unduplicated clients servedSocial Service Agency Contracts: Workforce Development - 158"},{"$f":"_xlfn.XLOOKUP(VALUE(W170),'Data SBP Programs'!O:O,'Data SBP Programs'!S:S)","v":"Social Service Agency Contracts: Workforce Development"}]
[{"$f":"'Data SBP Measures'!$AI1595&\" - \"&'Data SBP Measures'!$U1595","v":"Adult Education Classes - 140"},{"$f":"'Data SBP Measures'!$AF1595","v":"8-Hour Assault/Misdemeanor # of classes"},{"$f":"'Data SBP Measures'!$T1595","v":"2322"},{"$f":"'Data SBP Measures'!$U1595&B171","v":"1408-Hour Assault/Misdemeanor # of classes"},{"$f":"'Data SBP Measures'!$Y1595","v":"EACH"},null,null,null,null,null,"Adult Education Classes - 140","8-Hour Assault/Misdemeanor # of classes",null,null,null,null,null,null,null,"1207","158","Y","172","Texas A&M AgriLife Extension Service","EACH","OUTPUT","ADOPTEDBUD",null,null,null,"Texas A&M AgriLife Extension Service","Educational contacts reached by Volunteers\n",null,{"$f":"'Data SBP Measures'!$AF171&'Data SBP Measures'!$AE171& \" - \"& 'Data SBP Measures'!$U171","v":"Educational contacts reached by Volunteers\nTexas A&M AgriLife Extension Service - 158"},{"$f":"_xlfn.XLOOKUP(VALUE(W171),'Data SBP Programs'!O:O,'Data SBP Programs'!S:S)","v":"Texas A&M AgriLife Extension Service"}]
[{"$f":"'Data SBP Measures'!$AI1596&\" - \"&'Data SBP Measures'!$U1596","v":"Adult Education Classes - 140"},{"$f":"'Data SBP Measures'!$AF1596","v":"8-Hour Assault/Misdemeanor # of classes"},{"$f":"'Data SBP Measures'!$T1596","v":"2322"},{"$f":"'Data SBP Measures'!$U1596&B172","v":"1408-Hour Assault/Misdemeanor # of classes"},{"$f":"'Data SBP Measures'!$Y1596","v":"EACH"},null,null,null,null,null,"Adult Education Classes - 140","8-Hour Assault/Misdemeanor # of classes",null,null,null,null,null,null,null,"1208","158","Y","172","Texas A&M AgriLife Extension Service","EACH","OUTPUT","ADOPTEDBUD",null,null,null,"Texas A&M AgriLife Extension Service","Educational Programs Presented",null,{"$f":"'Data SBP Measures'!$AF172&'Data SBP Measures'!$AE172& \" - \"& 'Data SBP Measures'!$U172","v":"Educational Programs PresentedTexas A&M AgriLife Extension Service - 158"},{"$f":"_xlfn.XLOOKUP(VALUE(W172),'Data SBP Programs'!O:O,'Data SBP Programs'!S:S)","v":"Texas A&M AgriLife Extension Service"}]
[{"$f":"'Data SBP Measures'!$AI1597&\" - \"&'Data SBP Measures'!$U1597","v":"Adult Education Classes - 140"},{"$f":"'Data SBP Measures'!$AF1597","v":"8-Hour Assault/Misdemeanor # of classes"},{"$f":"'Data SBP Measures'!$T1597","v":"2322"},{"$f":"'Data SBP Measures'!$U1597&B173","v":"1408-Hour Assault/Misdemeanor # of classes"},{"$f":"'Data SBP Measures'!$Y1597","v":"EACH"},null,null,null,null,null,"Adult Education Classes - 140","8-Hour Assault/Misdemeanor # of classes",null,null,null,null,null,null,null,"1209","158","Y","172","Texas A&M AgriLife Extension Service","EACH","OUTPUT","ADOPTEDBUD",null,null,null,"Texas A&M AgriLife Extension Service","Office/Site/Phone/Email Contacts",null,{"$f":"'Data SBP Measures'!$AF173&'Data SBP Measures'!$AE173& \" - \"& 'Data SBP Measures'!$U173","v":"Office/Site/Phone/Email ContactsTexas A&M AgriLife Extension Service - 158"},{"$f":"_xlfn.XLOOKUP(VALUE(W173),'Data SBP Programs'!O:O,'Data SBP Programs'!S:S)","v":"Texas A&M AgriLife Extension Service"}]
[{"$f":"'Data SBP Measures'!$AI1592&\" - \"&'Data SBP Measures'!$U1592","v":"Adult Education Classes - 140"},{"$f":"'Data SBP Measures'!$AF1592","v":"8-Hour Assault/Misdemeanor # of clients completing"},{"$f":"'Data SBP Measures'!$T1592","v":"2321"},{"$f":"'Data SBP Measures'!$U1592&B174","v":"1408-Hour Assault/Misdemeanor # of clients completing"},{"$f":"'Data SBP Measures'!$Y1592","v":"EACH"},null,null,null,null,null,"Adult Education Classes - 140","8-Hour Assault/Misdemeanor # of clients completing",null,null,null,null,null,null,null,"121","108","Y","21","Information Technology Division","PERCENT","OUTPUT","ADOPTEDBUD",null,null,null,"Information Technology Division","% of technology projects completed",null,{"$f":"'Data SBP Measures'!$AF174&'Data SBP Measures'!$AE174& \" - \"& 'Data SBP Measures'!$U174","v":"% of technology projects completedInformation Technology Division - 108"},{"$f":"_xlfn.XLOOKUP(VALUE(W174),'Data SBP Programs'!O:O,'Data SBP Programs'!S:S)","v":"Information Technology Division"}]
[{"$f":"'Data SBP Measures'!$AI1593&\" - \"&'Data SBP Measures'!$U1593","v":"Adult Education Classes - 140"},{"$f":"'Data SBP Measures'!$AF1593","v":"8-Hour Assault/Misdemeanor # of clients completing"},{"$f":"'Data SBP Measures'!$T1593","v":"2321"},{"$f":"'Data SBP Measures'!$U1593&B175","v":"1408-Hour Assault/Misdemeanor # of clients completing"},{"$f":"'Data SBP Measures'!$Y1593","v":"EACH"},null,null,null,null,null,"Adult Education Classes - 140","8-Hour Assault/Misdemeanor # of clients completing",null,null,null,null,null,null,null,"1210","158","Y","172","Texas A&M AgriLife Extension Service","EACH","OUTPUT","NEITHER",null,null,null,"Texas A&M AgriLife Extension Service","Total Educational Contacts Reached\n",null,{"$f":"'Data SBP Measures'!$AF175&'Data SBP Measures'!$AE175& \" - \"& 'Data SBP Measures'!$U175","v":"Total Educational Contacts Reached\nTexas A&M AgriLife Extension Service - 158"},{"$f":"_xlfn.XLOOKUP(VALUE(W175),'Data SBP Programs'!O:O,'Data SBP Programs'!S:S)","v":"Texas A&M AgriLife Extension Service"}]
[{"$f":"'Data SBP Measures'!$AI1594&\" - \"&'Data SBP Measures'!$U1594","v":"Adult Education Classes - 140"},{"$f":"'Data SBP Measures'!$AF1594","v":"8-Hour Assault/Misdemeanor # of clients completing"},{"$f":"'Data SBP Measures'!$T1594","v":"2321"},{"$f":"'Data SBP Measures'!$U1594&B176","v":"1408-Hour Assault/Misdemeanor # of clients completing"},{"$f":"'Data SBP Measures'!$Y1594","v":"EACH"},null,null,null,null,null,"Adult Education Classes - 140","8-Hour Assault/Misdemeanor # of clients completing",null,null,null,null,null,null,null,"1211","158","Y","172","Texas A&M AgriLife Extension Service","EACH","OUTPUT","NEITHER",null,null,null,"Texas A&M AgriLife Extension Service","Volunteers Trained",null,{"$f":"'Data SBP Measures'!$AF176&'Data SBP Measures'!$AE176& \" - \"& 'Data SBP Measures'!$U176","v":"Volunteers TrainedTexas A&M AgriLife Extension Service - 158"},{"$f":"_xlfn.XLOOKUP(VALUE(W176),'Data SBP Programs'!O:O,'Data SBP Programs'!S:S)","v":"Texas A&M AgriLife Extension Service"}]
[{"$f":"'Data SBP Measures'!$AI1589&\" - \"&'Data SBP Measures'!$U1589","v":"Adult Education Classes - 140"},{"$f":"'Data SBP Measures'!$AF1589","v":"8-Hour Assault/Misdemeanor # of clients referred to class"},{"$f":"'Data SBP Measures'!$T1589","v":"2320"},{"$f":"'Data SBP Measures'!$U1589&B177","v":"1408-Hour Assault/Misdemeanor # of clients referred to class"},{"$f":"'Data SBP Measures'!$Y1589","v":"EACH"},null,null,null,null,null,"Adult Education Classes - 140","8-Hour Assault/Misdemeanor # of clients referred to class",null,null,null,null,null,null,null,"1212","158","Y","173","The Children’s Partnership/Community Partners for Children","PERCENT","OUTCOME","NEITHER",null,null,null,"The Children’s Partnership/Community Partners for Children","Percentage of children/youth who are maintained in their homes at the time of discharge from the program",null,{"$f":"'Data SBP Measures'!$AF177&'Data SBP Measures'!$AE177& \" - \"& 'Data SBP Measures'!$U177","v":"Percentage of children/youth who are maintained in their homes at the time of discharge from the programThe Children’s Partnership/Community Partners for Children - 158"},{"$f":"_xlfn.XLOOKUP(VALUE(W177),'Data SBP Programs'!O:O,'Data SBP Programs'!S:S)","v":"The Children’s Partnership/Community Partners for Children"}]
[{"$f":"'Data SBP Measures'!$AI1590&\" - \"&'Data SBP Measures'!$U1590","v":"Adult Education Classes - 140"},{"$f":"'Data SBP Measures'!$AF1590","v":"8-Hour Assault/Misdemeanor # of clients referred to class"},{"$f":"'Data SBP Measures'!$T1590","v":"2320"},{"$f":"'Data SBP Measures'!$U1590&B178","v":"1408-Hour Assault/Misdemeanor # of clients referred to class"},{"$f":"'Data SBP Measures'!$Y1590","v":"EACH"},null,null,null,null,null,"Adult Education Classes - 140","8-Hour Assault/Misdemeanor # of clients referred to class",null,null,null,null,null,null,null,"1213","158","Y","173","The Children’s Partnership/Community Partners for Children","PERCENT","OUTCOME","NEITHER",null,null,null,"The Children’s Partnership/Community Partners for Children","Percentage of children/youth who maintained/improved school attendance",null,{"$f":"'Data SBP Measures'!$AF178&'Data SBP Measures'!$AE178& \" - \"& 'Data SBP Measures'!$U178","v":"Percentage of children/youth who maintained/improved school attendanceThe Children’s Partnership/Community Partners for Children - 158"},{"$f":"_xlfn.XLOOKUP(VALUE(W178),'Data SBP Programs'!O:O,'Data SBP Programs'!S:S)","v":"The Children’s Partnership/Community Partners for Children"}]
[{"$f":"'Data SBP Measures'!$AI1591&\" - \"&'Data SBP Measures'!$U1591","v":"Adult Education Classes - 140"},{"$f":"'Data SBP Measures'!$AF1591","v":"8-Hour Assault/Misdemeanor # of clients referred to class"},{"$f":"'Data SBP Measures'!$T1591","v":"2320"},{"$f":"'Data SBP Measures'!$U1591&B179","v":"1408-Hour Assault/Misdemeanor # of clients referred to class"},{"$f":"'Data SBP Measures'!$Y1591","v":"EACH"},null,null,null,null,null,"Adult Education Classes - 140","8-Hour Assault/Misdemeanor # of clients referred to class",null,null,null,null,null,null,null,"1214","158","Y","173","The Children’s Partnership/Community Partners for Children","PERCENT","OUTCOME","NEITHER",null,null,null,"The Children’s Partnership/Community Partners for Children","Percentage  of children/youth who reduced their delinquent behavior",null,{"$f":"'Data SBP Measures'!$AF179&'Data SBP Measures'!$AE179& \" - \"& 'Data SBP Measures'!$U179","v":"Percentage  of children/youth who reduced their delinquent behaviorThe Children’s Partnership/Community Partners for Children - 158"},{"$f":"_xlfn.XLOOKUP(VALUE(W179),'Data SBP Programs'!O:O,'Data SBP Programs'!S:S)","v":"The Children’s Partnership/Community Partners for Children"}]
[{"$f":"'Data SBP Measures'!$AI1576&\" - \"&'Data SBP Measures'!$U1576","v":"Adult Education Classes - 140"},{"$f":"'Data SBP Measures'!$AF1576","v":"8-Hour Check Writing (CW) # of classes"},{"$f":"'Data SBP Measures'!$T1576","v":"2316"},{"$f":"'Data SBP Measures'!$U1576&B180","v":"1408-Hour Check Writing (CW) # of classes"},{"$f":"'Data SBP Measures'!$Y1576","v":"EACH"},null,null,null,null,null,"Adult Education Classes - 140","8-Hour Check Writing (CW) # of classes",null,null,null,null,null,null,null,"1215","158","Y","173","The Children’s Partnership/Community Partners for Children","PERCENT","OUTCOME","ADOPTEDBUD",null,null,null,"The Children’s Partnership/Community Partners for Children","Percentage of children/youth and their families that indicated increased self sufficiency through either meeting their goals or a voluntary exit from the program",null,{"$f":"'Data SBP Measures'!$AF180&'Data SBP Measures'!$AE180& \" - \"& 'Data SBP Measures'!$U180","v":"Percentage of children/youth and their families that indicated increased self sufficiency through either meeting their goals or a voluntary exit from the programThe Children’s Partnership/Community Partners for Children - 158"},{"$f":"_xlfn.XLOOKUP(VALUE(W180),'Data SBP Programs'!O:O,'Data SBP Programs'!S:S)","v":"The Children’s Partnership/Community Partners for Children"}]
[{"$f":"'Data SBP Measures'!$AI1577&\" - \"&'Data SBP Measures'!$U1577","v":"Adult Education Classes - 140"},{"$f":"'Data SBP Measures'!$AF1577","v":"8-Hour Check Writing (CW) # of classes"},{"$f":"'Data SBP Measures'!$T1577","v":"2316"},{"$f":"'Data SBP Measures'!$U1577&B181","v":"1408-Hour Check Writing (CW) # of classes"},{"$f":"'Data SBP Measures'!$Y1577","v":"EACH"},null,null,null,null,null,"Adult Education Classes - 140","8-Hour Check Writing (CW) # of classes",null,null,null,null,null,null,null,"1216","158","Y","173","The Children’s Partnership/Community Partners for Children","EACH","INPUT","NEITHER",null,null,null,"The Children’s Partnership/Community Partners for Children","Number of children enrolled by TCP",null,{"$f":"'Data SBP Measures'!$AF181&'Data SBP Measures'!$AE181& \" - \"& 'Data SBP Measures'!$U181","v":"Number of children enrolled by TCPThe Children’s Partnership/Community Partners for Children - 158"},{"$f":"_xlfn.XLOOKUP(VALUE(W181),'Data SBP Programs'!O:O,'Data SBP Programs'!S:S)","v":"The Children’s Partnership/Community Partners for Children"}]
[{"$f":"'Data SBP Measures'!$AI1578&\" - \"&'Data SBP Measures'!$U1578","v":"Adult Education Classes - 140"},{"$f":"'Data SBP Measures'!$AF1578","v":"8-Hour Check Writing (CW) # of classes"},{"$f":"'Data SBP Measures'!$T1578","v":"2316"},{"$f":"'Data SBP Measures'!$U1578&B182","v":"1408-Hour Check Writing (CW) # of classes"},{"$f":"'Data SBP Measures'!$Y1578","v":"EACH"},null,null,null,null,null,"Adult Education Classes - 140","8-Hour Check Writing (CW) # of classes",null,null,null,null,null,null,null,"1217","158","Y","173","The Children’s Partnership/Community Partners for Children","EACH","OUTPUT","NEITHER",null,null,null,"The Children’s Partnership/Community Partners for Children","Number of children staffed at CPC",null,{"$f":"'Data SBP Measures'!$AF182&'Data SBP Measures'!$AE182& \" - \"& 'Data SBP Measures'!$U182","v":"Number of children staffed at CPCThe Children’s Partnership/Community Partners for Children - 158"},{"$f":"_xlfn.XLOOKUP(VALUE(W182),'Data SBP Programs'!O:O,'Data SBP Programs'!S:S)","v":"The Children’s Partnership/Community Partners for Children"}]
[{"$f":"'Data SBP Measures'!$AI1573&\" - \"&'Data SBP Measures'!$U1573","v":"Adult Education Classes - 140"},{"$f":"'Data SBP Measures'!$AF1573","v":"8-Hour Check Writing (CW) # of clients completing"},{"$f":"'Data SBP Measures'!$T1573","v":"2315"},{"$f":"'Data SBP Measures'!$U1573&B183","v":"1408-Hour Check Writing (CW) # of clients completing"},{"$f":"'Data SBP Measures'!$Y1573","v":"EACH"},null,null,null,null,null,"Adult Education Classes - 140","8-Hour Check Writing (CW) # of clients completing",null,null,null,null,null,null,null,"1218","158","Y","173","The Children’s Partnership/Community Partners for Children","EACH","OUTPUT","NEITHER",null,null,null,"The Children’s Partnership/Community Partners for Children","Number of families served by TCP",null,{"$f":"'Data SBP Measures'!$AF183&'Data SBP Measures'!$AE183& \" - \"& 'Data SBP Measures'!$U183","v":"Number of families served by TCPThe Children’s Partnership/Community Partners for Children - 158"},{"$f":"_xlfn.XLOOKUP(VALUE(W183),'Data SBP Programs'!O:O,'Data SBP Programs'!S:S)","v":"The Children’s Partnership/Community Partners for Children"}]
[{"$f":"'Data SBP Measures'!$AI1574&\" - \"&'Data SBP Measures'!$U1574","v":"Adult Education Classes - 140"},{"$f":"'Data SBP Measures'!$AF1574","v":"8-Hour Check Writing (CW) # of clients completing"},{"$f":"'Data SBP Measures'!$T1574","v":"2315"},{"$f":"'Data SBP Measures'!$U1574&B184","v":"1408-Hour Check Writing (CW) # of clients completing"},{"$f":"'Data SBP Measures'!$Y1574","v":"EACH"},null,null,null,null,null,"Adult Education Classes - 140","8-Hour Check Writing (CW) # of clients completing",null,null,null,null,null,null,null,"1219","158","Y","174","The Travis County Children’s Protective Service Board","EACH","OUTPUT","NEITHER",null,null,null,"The Travis County Children’s Protective Service Board","Number of CPS Petitions filed in a fiscal year",null,{"$f":"'Data SBP Measures'!$AF184&'Data SBP Measures'!$AE184& \" - \"& 'Data SBP Measures'!$U184","v":"Number of CPS Petitions filed in a fiscal yearThe Travis County Children’s Protective Service Board - 158"},{"$f":"_xlfn.XLOOKUP(VALUE(W184),'Data SBP Programs'!O:O,'Data SBP Programs'!S:S)","v":"The Travis County Children’s Protective Service Board"}]
[{"$f":"'Data SBP Measures'!$AI1575&\" - \"&'Data SBP Measures'!$U1575","v":"Adult Education Classes - 140"},{"$f":"'Data SBP Measures'!$AF1575","v":"8-Hour Check Writing (CW) # of clients completing"},{"$f":"'Data SBP Measures'!$T1575","v":"2315"},{"$f":"'Data SBP Measures'!$U1575&B185","v":"1408-Hour Check Writing (CW) # of clients completing"},{"$f":"'Data SBP Measures'!$Y1575","v":"EACH"},null,null,null,null,null,"Adult Education Classes - 140","8-Hour Check Writing (CW) # of clients completing",null,null,null,null,null,null,null,"1220","158","Y","174","The Travis County Children’s Protective Service Board","EACH","INPUT","NEITHER",null,null,null,"The Travis County Children’s Protective Service Board","Number of new children entering foster care annually",null,{"$f":"'Data SBP Measures'!$AF185&'Data SBP Measures'!$AE185& \" - \"& 'Data SBP Measures'!$U185","v":"Number of new children entering foster care annuallyThe Travis County Children’s Protective Service Board - 158"},{"$f":"_xlfn.XLOOKUP(VALUE(W185),'Data SBP Programs'!O:O,'Data SBP Programs'!S:S)","v":"The Travis County Children’s Protective Service Board"}]
[{"$f":"'Data SBP Measures'!$AI1570&\" - \"&'Data SBP Measures'!$U1570","v":"Adult Education Classes - 140"},{"$f":"'Data SBP Measures'!$AF1570","v":"8-Hour Check Writing (CW) # of clients referred to class"},{"$f":"'Data SBP Measures'!$T1570","v":"2314"},{"$f":"'Data SBP Measures'!$U1570&B186","v":"1408-Hour Check Writing (CW) # of clients referred to class"},{"$f":"'Data SBP Measures'!$Y1570","v":"EACH"},null,null,null,null,null,"Adult Education Classes - 140","8-Hour Check Writing (CW) # of clients referred to class",null,null,null,null,null,null,null,"1221","158","Y","174","The Travis County Children’s Protective Service Board","EACH","OUTPUT","NEITHER",null,null,null,"The Travis County Children’s Protective Service Board","Number of CPS referrals assigned for investigation",null,{"$f":"'Data SBP Measures'!$AF186&'Data SBP Measures'!$AE186& \" - \"& 'Data SBP Measures'!$U186","v":"Number of CPS referrals assigned for investigationThe Travis County Children’s Protective Service Board - 158"},{"$f":"_xlfn.XLOOKUP(VALUE(W186),'Data SBP Programs'!O:O,'Data SBP Programs'!S:S)","v":"The Travis County Children’s Protective Service Board"}]
[{"$f":"'Data SBP Measures'!$AI1571&\" - \"&'Data SBP Measures'!$U1571","v":"Adult Education Classes - 140"},{"$f":"'Data SBP Measures'!$AF1571","v":"8-Hour Check Writing (CW) # of clients referred to class"},{"$f":"'Data SBP Measures'!$T1571","v":"2314"},{"$f":"'Data SBP Measures'!$U1571&B187","v":"1408-Hour Check Writing (CW) # of clients referred to class"},{"$f":"'Data SBP Measures'!$Y1571","v":"EACH"},null,null,null,null,null,"Adult Education Classes - 140","8-Hour Check Writing (CW) # of clients referred to class",null,null,null,null,null,null,null,"1222","158","Y","174","The Travis County Children’s Protective Service Board","EACH","OUTPUT","NEITHER",null,null,null,"The Travis County Children’s Protective Service Board","Average number of children in foster care per month",null,{"$f":"'Data SBP Measures'!$AF187&'Data SBP Measures'!$AE187& \" - \"& 'Data SBP Measures'!$U187","v":"Average number of children in foster care per monthThe Travis County Children’s Protective Service Board - 158"},{"$f":"_xlfn.XLOOKUP(VALUE(W187),'Data SBP Programs'!O:O,'Data SBP Programs'!S:S)","v":"The Travis County Children’s Protective Service Board"}]
[{"$f":"'Data SBP Measures'!$AI1572&\" - \"&'Data SBP Measures'!$U1572","v":"Adult Education Classes - 140"},{"$f":"'Data SBP Measures'!$AF1572","v":"8-Hour Check Writing (CW) # of clients referred to class"},{"$f":"'Data SBP Measures'!$T1572","v":"2314"},{"$f":"'Data SBP Measures'!$U1572&B188","v":"1408-Hour Check Writing (CW) # of clients referred to class"},{"$f":"'Data SBP Measures'!$Y1572","v":"EACH"},null,null,null,null,null,"Adult Education Classes - 140","8-Hour Check Writing (CW) # of clients referred to class",null,null,null,null,null,null,null,"1223","158","Y","174","The Travis County Children’s Protective Service Board","EACH","OUTPUT","NEITHER",null,null,null,"The Travis County Children’s Protective Service Board","Average number of families receiving Family Based Safety services",null,{"$f":"'Data SBP Measures'!$AF188&'Data SBP Measures'!$AE188& \" - \"& 'Data SBP Measures'!$U188","v":"Average number of families receiving Family Based Safety servicesThe Travis County Children’s Protective Service Board - 158"},{"$f":"_xlfn.XLOOKUP(VALUE(W188),'Data SBP Programs'!O:O,'Data SBP Programs'!S:S)","v":"The Travis County Children’s Protective Service Board"}]
[{"$f":"'Data SBP Measures'!$AI1791&\" - \"&'Data SBP Measures'!$U1791","v":"Adult Education Classes - 140"},{"$f":"'Data SBP Measures'!$AF1791","v":"8-Hour Prostitution Deterrent Solication class (John Class)  # In English"},{"$f":"'Data SBP Measures'!$T1791","v":"2429"},{"$f":"'Data SBP Measures'!$U1791&B189","v":"1408-Hour Prostitution Deterrent Solication class (John Class)  # In English"},{"$f":"'Data SBP Measures'!$Y1791","v":"EACH"},null,null,null,null,null,"Adult Education Classes - 140","8-Hour Prostitution Deterrent Solication class (John Class)  # In English",null,null,null,null,null,null,null,"1224","158","Y","173","The Children’s Partnership/Community Partners for Children","PERCENT","OUTCOME","ADOPTEDBUD",null,null,null,"The Children’s Partnership/Community Partners for Children","Percentage of children who received residential treatment services had a decrese in their involvement in CPS and or JuvProbation",null,{"$f":"'Data SBP Measures'!$AF189&'Data SBP Measures'!$AE189& \" - \"& 'Data SBP Measures'!$U189","v":"Percentage of children who received residential treatment services had a decrese in their involvement in CPS and or JuvProbationThe Children’s Partnership/Community Partners for Children - 158"},{"$f":"_xlfn.XLOOKUP(VALUE(W189),'Data SBP Programs'!O:O,'Data SBP Programs'!S:S)","v":"The Children’s Partnership/Community Partners for Children"}]
[{"$f":"'Data SBP Measures'!$AI1792&\" - \"&'Data SBP Measures'!$U1792","v":"Adult Education Classes - 140"},{"$f":"'Data SBP Measures'!$AF1792","v":"8-Hour Prostitution Deterrent Solication class (John Class)  # In English"},{"$f":"'Data SBP Measures'!$T1792","v":"2429"},{"$f":"'Data SBP Measures'!$U1792&B190","v":"1408-Hour Prostitution Deterrent Solication class (John Class)  # In English"},{"$f":"'Data SBP Measures'!$Y1792","v":"EACH"},null,null,null,null,null,"Adult Education Classes - 140","8-Hour Prostitution Deterrent Solication class (John Class)  # In English",null,null,null,null,null,null,null,"1225","158","Y","173","The Children’s Partnership/Community Partners for Children","PERCENT","OUTCOME","NEITHER",null,null,null,"The Children’s Partnership/Community Partners for Children","Percentage of children who are reintegrated to a home after completion of residential treatment",null,{"$f":"'Data SBP Measures'!$AF190&'Data SBP Measures'!$AE190& \" - \"& 'Data SBP Measures'!$U190","v":"Percentage of children who are reintegrated to a home after completion of residential treatmentThe Children’s Partnership/Community Partners for Children - 158"},{"$f":"_xlfn.XLOOKUP(VALUE(W190),'Data SBP Programs'!O:O,'Data SBP Programs'!S:S)","v":"The Children’s Partnership/Community Partners for Children"}]
[{"$f":"'Data SBP Measures'!$AI1793&\" - \"&'Data SBP Measures'!$U1793","v":"Adult Education Classes - 140"},{"$f":"'Data SBP Measures'!$AF1793","v":"8-Hour Prostitution Deterrent Solication class (John Class)  # In English"},{"$f":"'Data SBP Measures'!$T1793","v":"2429"},{"$f":"'Data SBP Measures'!$U1793&B191","v":"1408-Hour Prostitution Deterrent Solication class (John Class)  # In English"},{"$f":"'Data SBP Measures'!$Y1793","v":"EACH"},null,null,null,null,null,"Adult Education Classes - 140","8-Hour Prostitution Deterrent Solication class (John Class)  # In English",null,null,null,null,null,null,null,"1226","158","Y","173","The Children’s Partnership/Community Partners for Children","EACH","OUTPUT","NEITHER",null,null,null,"The Children’s Partnership/Community Partners for Children","Number of children/youth enrolled in TRIAD program to access residential treatment for severe emotional disturbance and at-risk behaviors",null,{"$f":"'Data SBP Measures'!$AF191&'Data SBP Measures'!$AE191& \" - \"& 'Data SBP Measures'!$U191","v":"Number of children/youth enrolled in TRIAD program to access residential treatment for severe emotional disturbance and at-risk behaviorsThe Children’s Partnership/Community Partners for Children - 158"},{"$f":"_xlfn.XLOOKUP(VALUE(W191),'Data SBP Programs'!O:O,'Data SBP Programs'!S:S)","v":"The Children’s Partnership/Community Partners for Children"}]
[{"$f":"'Data SBP Measures'!$AI1785&\" - \"&'Data SBP Measures'!$U1785","v":"Adult Education Classes - 140"},{"$f":"'Data SBP Measures'!$AF1785","v":"8-Hour Prostitution Deterrent Solication class (John Class) # of client completing"},{"$f":"'Data SBP Measures'!$T1785","v":"2427"},{"$f":"'Data SBP Measures'!$U1785&B192","v":"1408-Hour Prostitution Deterrent Solication class (John Class) # of client completing"},{"$f":"'Data SBP Measures'!$Y1785","v":"EACH"},null,null,null,null,null,"Adult Education Classes - 140","8-Hour Prostitution Deterrent Solication class (John Class) # of client completing",null,null,null,null,null,null,null,"1227","158","Y","173","The Children’s Partnership/Community Partners for Children","EACH","OUTPUT","NEITHER",null,null,null,"The Children’s Partnership/Community Partners for Children","Number of children served with care coordination services enrolled in both TCP and CPC bridge programs",null,{"$f":"'Data SBP Measures'!$AF192&'Data SBP Measures'!$AE192& \" - \"& 'Data SBP Measures'!$U192","v":"Number of children served with care coordination services enrolled in both TCP and CPC bridge programsThe Children’s Partnership/Community Partners for Children - 158"},{"$f":"_xlfn.XLOOKUP(VALUE(W192),'Data SBP Programs'!O:O,'Data SBP Programs'!S:S)","v":"The Children’s Partnership/Community Partners for Children"}]
[{"$f":"'Data SBP Measures'!$AI1786&\" - \"&'Data SBP Measures'!$U1786","v":"Adult Education Classes - 140"},{"$f":"'Data SBP Measures'!$AF1786","v":"8-Hour Prostitution Deterrent Solication class (John Class) # of client completing"},{"$f":"'Data SBP Measures'!$T1786","v":"2427"},{"$f":"'Data SBP Measures'!$U1786&B193","v":"1408-Hour Prostitution Deterrent Solication class (John Class) # of client completing"},{"$f":"'Data SBP Measures'!$Y1786","v":"EACH"},null,null,null,null,null,"Adult Education Classes - 140","8-Hour Prostitution Deterrent Solication class (John Class) # of client completing",null,null,null,null,null,null,null,"1228","158","Y","173","The Children’s Partnership/Community Partners for Children","EACH","OUTPUT","NEITHER",null,null,null,"The Children’s Partnership/Community Partners for Children","Number of families served with Parent Liaison Services",null,{"$f":"'Data SBP Measures'!$AF193&'Data SBP Measures'!$AE193& \" - \"& 'Data SBP Measures'!$U193","v":"Number of families served with Parent Liaison ServicesThe Children’s Partnership/Community Partners for Children - 158"},{"$f":"_xlfn.XLOOKUP(VALUE(W193),'Data SBP Programs'!O:O,'Data SBP Programs'!S:S)","v":"The Children’s Partnership/Community Partners for Children"}]
[{"$f":"'Data SBP Measures'!$AI1787&\" - \"&'Data SBP Measures'!$U1787","v":"Adult Education Classes - 140"},{"$f":"'Data SBP Measures'!$AF1787","v":"8-Hour Prostitution Deterrent Solication class (John Class) # of client completing"},{"$f":"'Data SBP Measures'!$T1787","v":"2427"},{"$f":"'Data SBP Measures'!$U1787&B194","v":"1408-Hour Prostitution Deterrent Solication class (John Class) # of client completing"},{"$f":"'Data SBP Measures'!$Y1787","v":"EACH"},null,null,null,null,null,"Adult Education Classes - 140","8-Hour Prostitution Deterrent Solication class (John Class) # of client completing",null,null,null,null,null,null,null,"124","108","Y","21","Information Technology Division","EACH","OUTPUT","ADOPTEDBUD",null,null,null,"Information Technology Division","# Data Analysis Requests",null,{"$f":"'Data SBP Measures'!$AF194&'Data SBP Measures'!$AE194& \" - \"& 'Data SBP Measures'!$U194","v":"# Data Analysis RequestsInformation Technology Division - 108"},{"$f":"_xlfn.XLOOKUP(VALUE(W194),'Data SBP Programs'!O:O,'Data SBP Programs'!S:S)","v":"Information Technology Division"}]
[{"$f":"'Data SBP Measures'!$AI1782&\" - \"&'Data SBP Measures'!$U1782","v":"Adult Education Classes - 140"},{"$f":"'Data SBP Measures'!$AF1782","v":"8-Hour Prostitution Deterrent Solication class (John Class) # of client referred to class"},{"$f":"'Data SBP Measures'!$T1782","v":"2426"},{"$f":"'Data SBP Measures'!$U1782&B195","v":"1408-Hour Prostitution Deterrent Solication class (John Class) # of client referred to class"},{"$f":"'Data SBP Measures'!$Y1782","v":"EACH"},null,null,null,null,null,"Adult Education Classes - 140","8-Hour Prostitution Deterrent Solication class (John Class) # of client referred to class",null,null,null,null,null,null,null,"1240","158","Y","177","Work-Based Learning/Summer Youth Employment","PERCENT","OUTCOME","NEITHER",null,null,null,"Work-Based Learning/Summer Youth Employment","% of employers satisfied with youth employment experience",null,{"$f":"'Data SBP Measures'!$AF195&'Data SBP Measures'!$AE195& \" - \"& 'Data SBP Measures'!$U195","v":"% of employers satisfied with youth employment experienceWork-Based Learning/Summer Youth Employment - 158"},{"$f":"_xlfn.XLOOKUP(VALUE(W195),'Data SBP Programs'!O:O,'Data SBP Programs'!S:S)","v":"Work-Based Learning/Summer Youth Employment"}]
[{"$f":"'Data SBP Measures'!$AI1783&\" - \"&'Data SBP Measures'!$U1783","v":"Adult Education Classes - 140"},{"$f":"'Data SBP Measures'!$AF1783","v":"8-Hour Prostitution Deterrent Solication class (John Class) # of client referred to class"},{"$f":"'Data SBP Measures'!$T1783","v":"2426"},{"$f":"'Data SBP Measures'!$U1783&B196","v":"1408-Hour Prostitution Deterrent Solication class (John Class) # of client referred to class"},{"$f":"'Data SBP Measures'!$Y1783","v":"EACH"},null,null,null,null,null,"Adult Education Classes - 140","8-Hour Prostitution Deterrent Solication class (John Class) # of client referred to class",null,null,null,null,null,null,null,"1241","158","Y","177","Work-Based Learning/Summer Youth Employment","PERCENT","OUTCOME","NEITHER",null,null,null,"Work-Based Learning/Summer Youth Employment","% of youth completing Job Readiness Training",null,{"$f":"'Data SBP Measures'!$AF196&'Data SBP Measures'!$AE196& \" - \"& 'Data SBP Measures'!$U196","v":"% of youth completing Job Readiness TrainingWork-Based Learning/Summer Youth Employment - 158"},{"$f":"_xlfn.XLOOKUP(VALUE(W196),'Data SBP Programs'!O:O,'Data SBP Programs'!S:S)","v":"Work-Based Learning/Summer Youth Employment"}]
[{"$f":"'Data SBP Measures'!$AI1784&\" - \"&'Data SBP Measures'!$U1784","v":"Adult Education Classes - 140"},{"$f":"'Data SBP Measures'!$AF1784","v":"8-Hour Prostitution Deterrent Solication class (John Class) # of client referred to class"},{"$f":"'Data SBP Measures'!$T1784","v":"2426"},{"$f":"'Data SBP Measures'!$U1784&B197","v":"1408-Hour Prostitution Deterrent Solication class (John Class) # of client referred to class"},{"$f":"'Data SBP Measures'!$Y1784","v":"EACH"},null,null,null,null,null,"Adult Education Classes - 140","8-Hour Prostitution Deterrent Solication class (John Class) # of client referred to class",null,null,null,null,null,null,null,"1242","158","Y","177","Work-Based Learning/Summer Youth Employment","PERCENT","OUTCOME","ADOPTEDBUD",null,null,null,"Work-Based Learning/Summer Youth Employment","% of youth employed",null,{"$f":"'Data SBP Measures'!$AF197&'Data SBP Measures'!$AE197& \" - \"& 'Data SBP Measures'!$U197","v":"% of youth employedWork-Based Learning/Summer Youth Employment - 158"},{"$f":"_xlfn.XLOOKUP(VALUE(W197),'Data SBP Programs'!O:O,'Data SBP Programs'!S:S)","v":"Work-Based Learning/Summer Youth Employment"}]
[{"$f":"'Data SBP Measures'!$AI1788&\" - \"&'Data SBP Measures'!$U1788","v":"Adult Education Classes - 140"},{"$f":"'Data SBP Measures'!$AF1788","v":"8-Hour Prostitution Deterrent Solication class (John Class) Total # of classes"},{"$f":"'Data SBP Measures'!$T1788","v":"2428"},{"$f":"'Data SBP Measures'!$U1788&B198","v":"1408-Hour Prostitution Deterrent Solication class (John Class) Total # of classes"},{"$f":"'Data SBP Measures'!$Y1788","v":"EACH"},null,null,null,null,null,"Adult Education Classes - 140","8-Hour Prostitution Deterrent Solication class (John Class) Total # of classes",null,null,null,null,null,null,null,"1243","158","Y","177","Work-Based Learning/Summer Youth Employment","PERCENT","OUTCOME","NEITHER",null,null,null,"Work-Based Learning/Summer Youth Employment","% of youth satisfied with youth employment experience",null,{"$f":"'Data SBP Measures'!$AF198&'Data SBP Measures'!$AE198& \" - \"& 'Data SBP Measures'!$U198","v":"% of youth satisfied with youth employment experienceWork-Based Learning/Summer Youth Employment - 158"},{"$f":"_xlfn.XLOOKUP(VALUE(W198),'Data SBP Programs'!O:O,'Data SBP Programs'!S:S)","v":"Work-Based Learning/Summer Youth Employment"}]
[{"$f":"'Data SBP Measures'!$AI1789&\" - \"&'Data SBP Measures'!$U1789","v":"Adult Education Classes - 140"},{"$f":"'Data SBP Measures'!$AF1789","v":"8-Hour Prostitution Deterrent Solication class (John Class) Total # of classes"},{"$f":"'Data SBP Measures'!$T1789","v":"2428"},{"$f":"'Data SBP Measures'!$U1789&B199","v":"1408-Hour Prostitution Deterrent Solication class (John Class) Total # of classes"},{"$f":"'Data SBP Measures'!$Y1789","v":"EACH"},null,null,null,null,null,"Adult Education Classes - 140","8-Hour Prostitution Deterrent Solication class (John Class) Total # of classes",null,null,null,null,null,null,null,"1244","158","Y","177","Work-Based Learning/Summer Youth Employment","EACH","OUTPUT","NEITHER",null,null,null,"Work-Based Learning/Summer Youth Employment","Number of unduplicated youth served",null,{"$f":"'Data SBP Measures'!$AF199&'Data SBP Measures'!$AE199& \" - \"& 'Data SBP Measures'!$U199","v":"Number of unduplicated youth servedWork-Based Learning/Summer Youth Employment - 158"},{"$f":"_xlfn.XLOOKUP(VALUE(W199),'Data SBP Programs'!O:O,'Data SBP Programs'!S:S)","v":"Work-Based Learning/Summer Youth Employment"}]
[{"$f":"'Data SBP Measures'!$AI1790&\" - \"&'Data SBP Measures'!$U1790","v":"Adult Education Classes - 140"},{"$f":"'Data SBP Measures'!$AF1790","v":"8-Hour Prostitution Deterrent Solication class (John Class) Total # of classes"},{"$f":"'Data SBP Measures'!$T1790","v":"2428"},{"$f":"'Data SBP Measures'!$U1790&B200","v":"1408-Hour Prostitution Deterrent Solication class (John Class) Total # of classes"},{"$f":"'Data SBP Measures'!$Y1790","v":"EACH"},null,null,null,null,null,"Adult Education Classes - 140","8-Hour Prostitution Deterrent Solication class (John Class) Total # of classes",null,null,null,null,null,null,null,"1245","158","Y","177","Work-Based Learning/Summer Youth Employment","EACH","OUTPUT","NEITHER",null,null,null,"Work-Based Learning/Summer Youth Employment","Number of youth employed",null,{"$f":"'Data SBP Measures'!$AF200&'Data SBP Measures'!$AE200& \" - \"& 'Data SBP Measures'!$U200","v":"Number of youth employedWork-Based Learning/Summer Youth Employment - 158"},{"$f":"_xlfn.XLOOKUP(VALUE(W200),'Data SBP Programs'!O:O,'Data SBP Programs'!S:S)","v":"Work-Based Learning/Summer Youth Employment"}]
[{"$f":"'Data SBP Measures'!$AI1604&\" - \"&'Data SBP Measures'!$U1604","v":"Adult Education Classes - 140"},{"$f":"'Data SBP Measures'!$AF1604","v":"8-Hour Shoplifting # of classes"},{"$f":"'Data SBP Measures'!$T1604","v":"2325"},{"$f":"'Data SBP Measures'!$U1604&B201","v":"1408-Hour Shoplifting # of classes"},{"$f":"'Data SBP Measures'!$Y1604","v":"EACH"},null,null,null,null,null,"Adult Education Classes - 140","8-Hour Shoplifting # of classes",null,null,null,null,null,null,null,"1246","158","Y","177","Work-Based Learning/Summer Youth Employment","EACH","OUTPUT","NEITHER",null,null,null,"Work-Based Learning/Summer Youth Employment","Number of youth offered employment",null,{"$f":"'Data SBP Measures'!$AF201&'Data SBP Measures'!$AE201& \" - \"& 'Data SBP Measures'!$U201","v":"Number of youth offered employmentWork-Based Learning/Summer Youth Employment - 158"},{"$f":"_xlfn.XLOOKUP(VALUE(W201),'Data SBP Programs'!O:O,'Data SBP Programs'!S:S)","v":"Work-Based Learning/Summer Youth Employment"}]
[{"$f":"'Data SBP Measures'!$AI1605&\" - \"&'Data SBP Measures'!$U1605","v":"Adult Education Classes - 140"},{"$f":"'Data SBP Measures'!$AF1605","v":"8-Hour Shoplifting # of classes"},{"$f":"'Data SBP Measures'!$T1605","v":"2325"},{"$f":"'Data SBP Measures'!$U1605&B202","v":"1408-Hour Shoplifting # of classes"},{"$f":"'Data SBP Measures'!$Y1605","v":"EACH"},null,null,null,null,null,"Adult Education Classes - 140","8-Hour Shoplifting # of classes",null,null,null,null,null,null,null,"1247","155","Y","179","Justice Planning","EACH","OUTPUT","BLACKBOOK",null,null,null,"Justice Planning","# programs planned",null,{"$f":"'Data SBP Measures'!$AF202&'Data SBP Measures'!$AE202& \" - \"& 'Data SBP Measures'!$U202","v":"# programs plannedJustice Planning - 155"},{"$f":"_xlfn.XLOOKUP(VALUE(W202),'Data SBP Programs'!O:O,'Data SBP Programs'!S:S)","v":"Justice Planning"}]
[{"$f":"'Data SBP Measures'!$AI1606&\" - \"&'Data SBP Measures'!$U1606","v":"Adult Education Classes - 140"},{"$f":"'Data SBP Measures'!$AF1606","v":"8-Hour Shoplifting # of classes"},{"$f":"'Data SBP Measures'!$T1606","v":"2325"},{"$f":"'Data SBP Measures'!$U1606&B203","v":"1408-Hour Shoplifting # of classes"},{"$f":"'Data SBP Measures'!$Y1606","v":"EACH"},null,null,null,null,null,"Adult Education Classes - 140","8-Hour Shoplifting # of classes",null,null,null,null,null,null,null,"1248","155","Y","179","Justice Planning","EACH","OUTPUT","BLACKBOOK",null,null,null,"Justice Planning","# programs implemented",null,{"$f":"'Data SBP Measures'!$AF203&'Data SBP Measures'!$AE203& \" - \"& 'Data SBP Measures'!$U203","v":"# programs implementedJustice Planning - 155"},{"$f":"_xlfn.XLOOKUP(VALUE(W203),'Data SBP Programs'!O:O,'Data SBP Programs'!S:S)","v":"Justice Planning"}]
[{"$f":"'Data SBP Measures'!$AI1601&\" - \"&'Data SBP Measures'!$U1601","v":"Adult Education Classes - 140"},{"$f":"'Data SBP Measures'!$AF1601","v":"8-Hour Shoplifting # of clients completing"},{"$f":"'Data SBP Measures'!$T1601","v":"2324"},{"$f":"'Data SBP Measures'!$U1601&B204","v":"1408-Hour Shoplifting # of clients completing"},{"$f":"'Data SBP Measures'!$Y1601","v":"EACH"},null,null,null,null,null,"Adult Education Classes - 140","8-Hour Shoplifting # of clients completing",null,null,null,null,null,null,null,"1249","155","Y","179","Justice Planning","EACH","OUTPUT","BLACKBOOK",null,null,null,"Justice Planning","# programs evaluated",null,{"$f":"'Data SBP Measures'!$AF204&'Data SBP Measures'!$AE204& \" - \"& 'Data SBP Measures'!$U204","v":"# programs evaluatedJustice Planning - 155"},{"$f":"_xlfn.XLOOKUP(VALUE(W204),'Data SBP Programs'!O:O,'Data SBP Programs'!S:S)","v":"Justice Planning"}]
[{"$f":"'Data SBP Measures'!$AI1602&\" - \"&'Data SBP Measures'!$U1602","v":"Adult Education Classes - 140"},{"$f":"'Data SBP Measures'!$AF1602","v":"8-Hour Shoplifting # of clients completing"},{"$f":"'Data SBP Measures'!$T1602","v":"2324"},{"$f":"'Data SBP Measures'!$U1602&B205","v":"1408-Hour Shoplifting # of clients completing"},{"$f":"'Data SBP Measures'!$Y1602","v":"EACH"},null,null,null,null,null,"Adult Education Classes - 140","8-Hour Shoplifting # of clients completing",null,null,null,null,null,null,null,"1255","155","Y","181","Mental Health Public Defender","EACH","INPUT","BLACKBOOK",null,null,null,"Mental Health Public Defender","Misdemeanor Cause #'s MH appointed (MHPD, CAPDS & PDO)",null,{"$f":"'Data SBP Measures'!$AF205&'Data SBP Measures'!$AE205& \" - \"& 'Data SBP Measures'!$U205","v":"Misdemeanor Cause #'s MH appointed (MHPD, CAPDS & PDO)Mental Health Public Defender - 155"},{"$f":"_xlfn.XLOOKUP(VALUE(W205),'Data SBP Programs'!O:O,'Data SBP Programs'!S:S)","v":"Mental Health Public Defender"}]
[{"$f":"'Data SBP Measures'!$AI1603&\" - \"&'Data SBP Measures'!$U1603","v":"Adult Education Classes - 140"},{"$f":"'Data SBP Measures'!$AF1603","v":"8-Hour Shoplifting # of clients completing"},{"$f":"'Data SBP Measures'!$T1603","v":"2324"},{"$f":"'Data SBP Measures'!$U1603&B206","v":"1408-Hour Shoplifting # of clients completing"},{"$f":"'Data SBP Measures'!$Y1603","v":"EACH"},null,null,null,null,null,"Adult Education Classes - 140","8-Hour Shoplifting # of clients completing",null,null,null,null,null,null,null,"1256","155","Y","181","Mental Health Public Defender","EACH","INPUT","BLACKBOOK",null,null,null,"Mental Health Public Defender","Misdemeanor cause #'s w/ incompetent to stand trial finding (MHPD, CAPDS & PDO)",null,{"$f":"'Data SBP Measures'!$AF206&'Data SBP Measures'!$AE206& \" - \"& 'Data SBP Measures'!$U206","v":"Misdemeanor cause #'s w/ incompetent to stand trial finding (MHPD, CAPDS & PDO)Mental Health Public Defender - 155"},{"$f":"_xlfn.XLOOKUP(VALUE(W206),'Data SBP Programs'!O:O,'Data SBP Programs'!S:S)","v":"Mental Health Public Defender"}]
[{"$f":"'Data SBP Measures'!$AI1598&\" - \"&'Data SBP Measures'!$U1598","v":"Adult Education Classes - 140"},{"$f":"'Data SBP Measures'!$AF1598","v":"8-Hour Shoplifting # of clients referred to class"},{"$f":"'Data SBP Measures'!$T1598","v":"2323"},{"$f":"'Data SBP Measures'!$U1598&B207","v":"1408-Hour Shoplifting # of clients referred to class"},{"$f":"'Data SBP Measures'!$Y1598","v":"EACH"},null,null,null,null,null,"Adult Education Classes - 140","8-Hour Shoplifting # of clients referred to class",null,null,null,null,null,null,null,"1257","155","Y","181","Mental Health Public Defender","EACH","OUTPUT","BLACKBOOK",null,null,null,"Mental Health Public Defender","MHPD represented misdemeanor cause #'s w/ competency issue",null,{"$f":"'Data SBP Measures'!$AF207&'Data SBP Measures'!$AE207& \" - \"& 'Data SBP Measures'!$U207","v":"MHPD represented misdemeanor cause #'s w/ competency issueMental Health Public Defender - 155"},{"$f":"_xlfn.XLOOKUP(VALUE(W207),'Data SBP Programs'!O:O,'Data SBP Programs'!S:S)","v":"Mental Health Public Defender"}]
[{"$f":"'Data SBP Measures'!$AI1599&\" - \"&'Data SBP Measures'!$U1599","v":"Adult Education Classes - 140"},{"$f":"'Data SBP Measures'!$AF1599","v":"8-Hour Shoplifting # of clients referred to class"},{"$f":"'Data SBP Measures'!$T1599","v":"2323"},{"$f":"'Data SBP Measures'!$U1599&B208","v":"1408-Hour Shoplifting # of clients referred to class"},{"$f":"'Data SBP Measures'!$Y1599","v":"EACH"},null,null,null,null,null,"Adult Education Classes - 140","8-Hour Shoplifting # of clients referred to class",null,null,null,null,null,null,null,"1258","155","Y","181","Mental Health Public Defender","EACH","OUTPUT","ADOPTEDBUD",null,null,null,"Mental Health Public Defender","Total # of New Misdemeanor cause #'s appointed to MHPD during FY",null,{"$f":"'Data SBP Measures'!$AF208&'Data SBP Measures'!$AE208& \" - \"& 'Data SBP Measures'!$U208","v":"Total # of New Misdemeanor cause #'s appointed to MHPD during FYMental Health Public Defender - 155"},{"$f":"_xlfn.XLOOKUP(VALUE(W208),'Data SBP Programs'!O:O,'Data SBP Programs'!S:S)","v":"Mental Health Public Defender"}]
[{"$f":"'Data SBP Measures'!$AI1600&\" - \"&'Data SBP Measures'!$U1600","v":"Adult Education Classes - 140"},{"$f":"'Data SBP Measures'!$AF1600","v":"8-Hour Shoplifting # of clients referred to class"},{"$f":"'Data SBP Measures'!$T1600","v":"2323"},{"$f":"'Data SBP Measures'!$U1600&B209","v":"1408-Hour Shoplifting # of clients referred to class"},{"$f":"'Data SBP Measures'!$Y1600","v":"EACH"},null,null,null,null,null,"Adult Education Classes - 140","8-Hour Shoplifting # of clients referred to class",null,null,null,null,null,null,null,"1260","155","Y","181","Mental Health Public Defender","EACH","OUTCOME","ADOPTEDBUD",null,null,null,"Mental Health Public Defender","MHPD represented misdemeanor cause #'s resolved without conviction",null,{"$f":"'Data SBP Measures'!$AF209&'Data SBP Measures'!$AE209& \" - \"& 'Data SBP Measures'!$U209","v":"MHPD represented misdemeanor cause #'s resolved without convictionMental Health Public Defender - 155"},{"$f":"_xlfn.XLOOKUP(VALUE(W209),'Data SBP Programs'!O:O,'Data SBP Programs'!S:S)","v":"Mental Health Public Defender"}]
[{"$f":"'Data SBP Measures'!$AI1613&\" - \"&'Data SBP Measures'!$U1613","v":"Adult Education Classes - 140"},{"$f":"'Data SBP Measures'!$AF1613","v":"8-Hour Spanish # of classes"},{"$f":"'Data SBP Measures'!$T1613","v":"2328"},{"$f":"'Data SBP Measures'!$U1613&B210","v":"1408-Hour Spanish # of classes"},{"$f":"'Data SBP Measures'!$Y1613","v":"EACH"},null,null,null,null,null,"Adult Education Classes - 140","8-Hour Spanish # of classes",null,null,null,null,null,null,null,"1261","155","Y","181","Mental Health Public Defender","EACH","OUTPUT","BLACKBOOK",null,null,null,"Mental Health Public Defender","Number of initiated community linkages",null,{"$f":"'Data SBP Measures'!$AF210&'Data SBP Measures'!$AE210& \" - \"& 'Data SBP Measures'!$U210","v":"Number of initiated community linkagesMental Health Public Defender - 155"},{"$f":"_xlfn.XLOOKUP(VALUE(W210),'Data SBP Programs'!O:O,'Data SBP Programs'!S:S)","v":"Mental Health Public Defender"}]
[{"$f":"'Data SBP Measures'!$AI1614&\" - \"&'Data SBP Measures'!$U1614","v":"Adult Education Classes - 140"},{"$f":"'Data SBP Measures'!$AF1614","v":"8-Hour Spanish # of classes"},{"$f":"'Data SBP Measures'!$T1614","v":"2328"},{"$f":"'Data SBP Measures'!$U1614&B211","v":"1408-Hour Spanish # of classes"},{"$f":"'Data SBP Measures'!$Y1614","v":"EACH"},null,null,null,null,null,"Adult Education Classes - 140","8-Hour Spanish # of classes",null,null,null,null,null,null,null,"1262","155","Y","181","Mental Health Public Defender","EACH","OUTCOME","ADOPTEDBUD",null,null,null,"Mental Health Public Defender","Number of completed  community linkages",null,{"$f":"'Data SBP Measures'!$AF211&'Data SBP Measures'!$AE211& \" - \"& 'Data SBP Measures'!$U211","v":"Number of completed  community linkagesMental Health Public Defender - 155"},{"$f":"_xlfn.XLOOKUP(VALUE(W211),'Data SBP Programs'!O:O,'Data SBP Programs'!S:S)","v":"Mental Health Public Defender"}]
[{"$f":"'Data SBP Measures'!$AI1615&\" - \"&'Data SBP Measures'!$U1615","v":"Adult Education Classes - 140"},{"$f":"'Data SBP Measures'!$AF1615","v":"8-Hour Spanish # of classes"},{"$f":"'Data SBP Measures'!$T1615","v":"2328"},{"$f":"'Data SBP Measures'!$U1615&B212","v":"1408-Hour Spanish # of classes"},{"$f":"'Data SBP Measures'!$Y1615","v":"EACH"},null,null,null,null,null,"Adult Education Classes - 140","8-Hour Spanish # of classes",null,null,null,null,null,null,null,"1263","155","Y","181","Mental Health Public Defender","EACH","OUTPUT","BLACKBOOK",null,null,null,"Mental Health Public Defender","Number of mental health/criminal defense seminars sponsored",null,{"$f":"'Data SBP Measures'!$AF212&'Data SBP Measures'!$AE212& \" - \"& 'Data SBP Measures'!$U212","v":"Number of mental health/criminal defense seminars sponsoredMental Health Public Defender - 155"},{"$f":"_xlfn.XLOOKUP(VALUE(W212),'Data SBP Programs'!O:O,'Data SBP Programs'!S:S)","v":"Mental Health Public Defender"}]
[{"$f":"'Data SBP Measures'!$AI1610&\" - \"&'Data SBP Measures'!$U1610","v":"Adult Education Classes - 140"},{"$f":"'Data SBP Measures'!$AF1610","v":"8-Hour Spanish # of clients completing"},{"$f":"'Data SBP Measures'!$T1610","v":"2327"},{"$f":"'Data SBP Measures'!$U1610&B213","v":"1408-Hour Spanish # of clients completing"},{"$f":"'Data SBP Measures'!$Y1610","v":"EACH"},null,null,null,null,null,"Adult Education Classes - 140","8-Hour Spanish # of clients completing",null,null,null,null,null,null,null,"1264","155","Y","181","Mental Health Public Defender","EACH","OUTCOME","BLACKBOOK",null,null,null,"Mental Health Public Defender","Number of criminal justice professionals/attorneys trained",null,{"$f":"'Data SBP Measures'!$AF213&'Data SBP Measures'!$AE213& \" - \"& 'Data SBP Measures'!$U213","v":"Number of criminal justice professionals/attorneys trainedMental Health Public Defender - 155"},{"$f":"_xlfn.XLOOKUP(VALUE(W213),'Data SBP Programs'!O:O,'Data SBP Programs'!S:S)","v":"Mental Health Public Defender"}]
[{"$f":"'Data SBP Measures'!$AI1611&\" - \"&'Data SBP Measures'!$U1611","v":"Adult Education Classes - 140"},{"$f":"'Data SBP Measures'!$AF1611","v":"8-Hour Spanish # of clients completing"},{"$f":"'Data SBP Measures'!$T1611","v":"2327"},{"$f":"'Data SBP Measures'!$U1611&B214","v":"1408-Hour Spanish # of clients completing"},{"$f":"'Data SBP Measures'!$Y1611","v":"EACH"},null,null,null,null,null,"Adult Education Classes - 140","8-Hour Spanish # of clients completing",null,null,null,null,null,null,null,"1265","155","Y","182","Office of Child Representation","EACH","INPUT","BLACKBOOK",null,null,null,"Office of Child Representation","Number of new clients accepted per fiscal year",null,{"$f":"'Data SBP Measures'!$AF214&'Data SBP Measures'!$AE214& \" - \"& 'Data SBP Measures'!$U214","v":"Number of new clients accepted per fiscal yearOffice of Child Representation - 155"},{"$f":"_xlfn.XLOOKUP(VALUE(W214),'Data SBP Programs'!O:O,'Data SBP Programs'!S:S)","v":"Office of Child Representation"}]
[{"$f":"'Data SBP Measures'!$AI1612&\" - \"&'Data SBP Measures'!$U1612","v":"Adult Education Classes - 140"},{"$f":"'Data SBP Measures'!$AF1612","v":"8-Hour Spanish # of clients completing"},{"$f":"'Data SBP Measures'!$T1612","v":"2327"},{"$f":"'Data SBP Measures'!$U1612&B215","v":"1408-Hour Spanish # of clients completing"},{"$f":"'Data SBP Measures'!$Y1612","v":"EACH"},null,null,null,null,null,"Adult Education Classes - 140","8-Hour Spanish # of clients completing",null,null,null,null,null,null,null,"1266","155","Y","182","Office of Child Representation","EACH","INPUT","BLACKBOOK",null,null,null,"Office of Child Representation","Number of clients served per fiscal year (new & continuing)",null,{"$f":"'Data SBP Measures'!$AF215&'Data SBP Measures'!$AE215& \" - \"& 'Data SBP Measures'!$U215","v":"Number of clients served per fiscal year (new & continuing)Office of Child Representation - 155"},{"$f":"_xlfn.XLOOKUP(VALUE(W215),'Data SBP Programs'!O:O,'Data SBP Programs'!S:S)","v":"Office of Child Representation"}]
[{"$f":"'Data SBP Measures'!$AI1607&\" - \"&'Data SBP Measures'!$U1607","v":"Adult Education Classes - 140"},{"$f":"'Data SBP Measures'!$AF1607","v":"8-Hour Spanish # of clients referred to class"},{"$f":"'Data SBP Measures'!$T1607","v":"2326"},{"$f":"'Data SBP Measures'!$U1607&B216","v":"1408-Hour Spanish # of clients referred to class"},{"$f":"'Data SBP Measures'!$Y1607","v":"EACH"},null,null,null,null,null,"Adult Education Classes - 140","8-Hour Spanish # of clients referred to class",null,null,null,null,null,null,null,"1267","155","Y","182","Office of Child Representation","EACH","INPUT","BLACKBOOK",null,null,null,"Office of Child Representation","Number of new cases accepted per fiscal year",null,{"$f":"'Data SBP Measures'!$AF216&'Data SBP Measures'!$AE216& \" - \"& 'Data SBP Measures'!$U216","v":"Number of new cases accepted per fiscal yearOffice of Child Representation - 155"},{"$f":"_xlfn.XLOOKUP(VALUE(W216),'Data SBP Programs'!O:O,'Data SBP Programs'!S:S)","v":"Office of Child Representation"}]
[{"$f":"'Data SBP Measures'!$AI1608&\" - \"&'Data SBP Measures'!$U1608","v":"Adult Education Classes - 140"},{"$f":"'Data SBP Measures'!$AF1608","v":"8-Hour Spanish # of clients referred to class"},{"$f":"'Data SBP Measures'!$T1608","v":"2326"},{"$f":"'Data SBP Measures'!$U1608&B217","v":"1408-Hour Spanish # of clients referred to class"},{"$f":"'Data SBP Measures'!$Y1608","v":"EACH"},null,null,null,null,null,"Adult Education Classes - 140","8-Hour Spanish # of clients referred to class",null,null,null,null,null,null,null,"1268","155","Y","182","Office of Child Representation","EACH","OUTPUT","ADOPTEDBUD",null,null,null,"Office of Child Representation","Number of cases handled per fiscal year (new and continuing)",null,{"$f":"'Data SBP Measures'!$AF217&'Data SBP Measures'!$AE217& \" - \"& 'Data SBP Measures'!$U217","v":"Number of cases handled per fiscal year (new and continuing)Office of Child Representation - 155"},{"$f":"_xlfn.XLOOKUP(VALUE(W217),'Data SBP Programs'!O:O,'Data SBP Programs'!S:S)","v":"Office of Child Representation"}]
[{"$f":"'Data SBP Measures'!$AI1609&\" - \"&'Data SBP Measures'!$U1609","v":"Adult Education Classes - 140"},{"$f":"'Data SBP Measures'!$AF1609","v":"8-Hour Spanish # of clients referred to class"},{"$f":"'Data SBP Measures'!$T1609","v":"2326"},{"$f":"'Data SBP Measures'!$U1609&B218","v":"1408-Hour Spanish # of clients referred to class"},{"$f":"'Data SBP Measures'!$Y1609","v":"EACH"},null,null,null,null,null,"Adult Education Classes - 140","8-Hour Spanish # of clients referred to class",null,null,null,null,null,null,null,"1269","155","Y","182","Office of Child Representation","EACH","OUTPUT","BLACKBOOK",null,null,null,"Office of Child Representation","# of safety assessments conducted by social worker (1 FTE)",null,{"$f":"'Data SBP Measures'!$AF218&'Data SBP Measures'!$AE218& \" - \"& 'Data SBP Measures'!$U218","v":"# of safety assessments conducted by social worker (1 FTE)Office of Child Representation - 155"},{"$f":"_xlfn.XLOOKUP(VALUE(W218),'Data SBP Programs'!O:O,'Data SBP Programs'!S:S)","v":"Office of Child Representation"}]
[{"$f":"'Data SBP Measures'!$AI1567&\" - \"&'Data SBP Measures'!$U1567","v":"Adult Education Classes - 140"},{"$f":"'Data SBP Measures'!$AF1567","v":"Total # of Classes"},{"$f":"'Data SBP Measures'!$T1567","v":"2313"},{"$f":"'Data SBP Measures'!$U1567&B219","v":"140Total # of Classes"},{"$f":"'Data SBP Measures'!$Y1567","v":"EACH"},null,null,null,null,null,"Adult Education Classes - 140","Total # of Classes",null,null,null,null,null,null,null,"1270","155","Y","182","Office of Child Representation","EACH","OUTPUT","ADOPTEDBUD",null,null,null,"Office of Child Representation","Number of clients who received social work case management",null,{"$f":"'Data SBP Measures'!$AF219&'Data SBP Measures'!$AE219& \" - \"& 'Data SBP Measures'!$U219","v":"Number of clients who received social work case managementOffice of Child Representation - 155"},{"$f":"_xlfn.XLOOKUP(VALUE(W219),'Data SBP Programs'!O:O,'Data SBP Programs'!S:S)","v":"Office of Child Representation"}]
[{"$f":"'Data SBP Measures'!$AI1568&\" - \"&'Data SBP Measures'!$U1568","v":"Adult Education Classes - 140"},{"$f":"'Data SBP Measures'!$AF1568","v":"Total # of Classes"},{"$f":"'Data SBP Measures'!$T1568","v":"2313"},{"$f":"'Data SBP Measures'!$U1568&B220","v":"140Total # of Classes"},{"$f":"'Data SBP Measures'!$Y1568","v":"EACH"},null,null,null,null,null,"Adult Education Classes - 140","Total # of Classes",null,null,null,null,null,null,null,"1272","155","Y","182","Office of Child Representation","PERCENT","OUTCOME","ADOPTEDBUD",null,null,null,"Office of Child Representation","% of surveys with min overall rating of “Good” or better",null,{"$f":"'Data SBP Measures'!$AF220&'Data SBP Measures'!$AE220& \" - \"& 'Data SBP Measures'!$U220","v":"% of surveys with min overall rating of “Good” or betterOffice of Child Representation - 155"},{"$f":"_xlfn.XLOOKUP(VALUE(W220),'Data SBP Programs'!O:O,'Data SBP Programs'!S:S)","v":"Office of Child Representation"}]
[{"$f":"'Data SBP Measures'!$AI1569&\" - \"&'Data SBP Measures'!$U1569","v":"Adult Education Classes - 140"},{"$f":"'Data SBP Measures'!$AF1569","v":"Total # of Classes"},{"$f":"'Data SBP Measures'!$T1569","v":"2313"},{"$f":"'Data SBP Measures'!$U1569&B221","v":"140Total # of Classes"},{"$f":"'Data SBP Measures'!$Y1569","v":"EACH"},null,null,null,null,null,"Adult Education Classes - 140","Total # of Classes",null,null,null,null,null,null,null,"1273","155","Y","182","Office of Child Representation","EACH","OUTPUT","BLACKBOOK",null,null,null,"Office of Child Representation","# of trainings OCR took part/hosted re child welfare topics",null,{"$f":"'Data SBP Measures'!$AF221&'Data SBP Measures'!$AE221& \" - \"& 'Data SBP Measures'!$U221","v":"# of trainings OCR took part/hosted re child welfare topicsOffice of Child Representation - 155"},{"$f":"_xlfn.XLOOKUP(VALUE(W221),'Data SBP Programs'!O:O,'Data SBP Programs'!S:S)","v":"Office of Child Representation"}]
[{"$f":"'Data SBP Measures'!$AI1564&\" - \"&'Data SBP Measures'!$U1564","v":"Adult Education Classes - 140"},{"$f":"'Data SBP Measures'!$AF1564","v":"Total # of clients completing the Adult Education classes"},{"$f":"'Data SBP Measures'!$T1564","v":"2312"},{"$f":"'Data SBP Measures'!$U1564&B222","v":"140Total # of clients completing the Adult Education classes"},{"$f":"'Data SBP Measures'!$Y1564","v":"EACH"},null,null,null,null,null,"Adult Education Classes - 140","Total # of clients completing the Adult Education classes",null,null,null,null,null,null,null,"1274","155","Y","182","Office of Child Representation","EACH","INPUT","BLACKBOOK",null,null,null,"Office of Child Representation","Average # of OCR Attorneys with Full Caseload",null,{"$f":"'Data SBP Measures'!$AF222&'Data SBP Measures'!$AE222& \" - \"& 'Data SBP Measures'!$U222","v":"Average # of OCR Attorneys with Full CaseloadOffice of Child Representation - 155"},{"$f":"_xlfn.XLOOKUP(VALUE(W222),'Data SBP Programs'!O:O,'Data SBP Programs'!S:S)","v":"Office of Child Representation"}]
[{"$f":"'Data SBP Measures'!$AI1565&\" - \"&'Data SBP Measures'!$U1565","v":"Adult Education Classes - 140"},{"$f":"'Data SBP Measures'!$AF1565","v":"Total # of clients completing the Adult Education classes"},{"$f":"'Data SBP Measures'!$T1565","v":"2312"},{"$f":"'Data SBP Measures'!$U1565&B223","v":"140Total # of clients completing the Adult Education classes"},{"$f":"'Data SBP Measures'!$Y1565","v":"EACH"},null,null,null,null,null,"Adult Education Classes - 140","Total # of clients completing the Adult Education classes",null,null,null,null,null,null,null,"1275","155","Y","182","Office of Child Representation","EACH","INPUT","BLACKBOOK",null,null,null,"Office of Child Representation","Average # of OCR Social Workers with Full Caseload",null,{"$f":"'Data SBP Measures'!$AF223&'Data SBP Measures'!$AE223& \" - \"& 'Data SBP Measures'!$U223","v":"Average # of OCR Social Workers with Full CaseloadOffice of Child Representation - 155"},{"$f":"_xlfn.XLOOKUP(VALUE(W223),'Data SBP Programs'!O:O,'Data SBP Programs'!S:S)","v":"Office of Child Representation"}]
[{"$f":"'Data SBP Measures'!$AI1566&\" - \"&'Data SBP Measures'!$U1566","v":"Adult Education Classes - 140"},{"$f":"'Data SBP Measures'!$AF1566","v":"Total # of clients completing the Adult Education classes"},{"$f":"'Data SBP Measures'!$T1566","v":"2312"},{"$f":"'Data SBP Measures'!$U1566&B224","v":"140Total # of clients completing the Adult Education classes"},{"$f":"'Data SBP Measures'!$Y1566","v":"EACH"},null,null,null,null,null,"Adult Education Classes - 140","Total # of clients completing the Adult Education classes",null,null,null,null,null,null,null,"1276","137","Y","52","Auto Theft Task Force","EACH","OUTCOME","ADOPTEDBUD",null,null,null,"Auto Theft Task Force","No. of recovered cars",null,{"$f":"'Data SBP Measures'!$AF224&'Data SBP Measures'!$AE224& \" - \"& 'Data SBP Measures'!$U224","v":"No. of recovered carsAuto Theft Task Force - 137"},{"$f":"_xlfn.XLOOKUP(VALUE(W224),'Data SBP Programs'!O:O,'Data SBP Programs'!S:S)","v":"Auto Theft Task Force"}]
[{"$f":"'Data SBP Measures'!$AI1561&\" - \"&'Data SBP Measures'!$U1561","v":"Adult Education Classes - 140"},{"$f":"'Data SBP Measures'!$AF1561","v":"Total # of clients referred to the Adult Education classes"},{"$f":"'Data SBP Measures'!$T1561","v":"2311"},{"$f":"'Data SBP Measures'!$U1561&B225","v":"140Total # of clients referred to the Adult Education classes"},{"$f":"'Data SBP Measures'!$Y1561","v":"EACH"},null,null,null,null,null,"Adult Education Classes - 140","Total # of clients referred to the Adult Education classes",null,null,null,null,null,null,null,"1276","137","Y","52","Auto Theft Task Force","EACH","OUTCOME","ADOPTEDBUD",null,null,null,"Auto Theft Task Force","No. of recovered cars",null,{"$f":"'Data SBP Measures'!$AF225&'Data SBP Measures'!$AE225& \" - \"& 'Data SBP Measures'!$U225","v":"No. of recovered carsAuto Theft Task Force - 137"},{"$f":"_xlfn.XLOOKUP(VALUE(W225),'Data SBP Programs'!O:O,'Data SBP Programs'!S:S)","v":"Auto Theft Task Force"}]
[{"$f":"'Data SBP Measures'!$AI1562&\" - \"&'Data SBP Measures'!$U1562","v":"Adult Education Classes - 140"},{"$f":"'Data SBP Measures'!$AF1562","v":"Total # of clients referred to the Adult Education classes"},{"$f":"'Data SBP Measures'!$T1562","v":"2311"},{"$f":"'Data SBP Measures'!$U1562&B226","v":"140Total # of clients referred to the Adult Education classes"},{"$f":"'Data SBP Measures'!$Y1562","v":"EACH"},null,null,null,null,null,"Adult Education Classes - 140","Total # of clients referred to the Adult Education classes",null,null,null,null,null,null,null,"1277","137","Y","52","Auto Theft Task Force","EACH","INPUT","ADOPTEDBUD",null,null,null,"Auto Theft Task Force","No. 68-A Inspections",null,{"$f":"'Data SBP Measures'!$AF226&'Data SBP Measures'!$AE226& \" - \"& 'Data SBP Measures'!$U226","v":"No. 68-A InspectionsAuto Theft Task Force - 137"},{"$f":"_xlfn.XLOOKUP(VALUE(W226),'Data SBP Programs'!O:O,'Data SBP Programs'!S:S)","v":"Auto Theft Task Force"}]
[{"$f":"'Data SBP Measures'!$AI1563&\" - \"&'Data SBP Measures'!$U1563","v":"Adult Education Classes - 140"},{"$f":"'Data SBP Measures'!$AF1563","v":"Total # of clients referred to the Adult Education classes"},{"$f":"'Data SBP Measures'!$T1563","v":"2311"},{"$f":"'Data SBP Measures'!$U1563&B227","v":"140Total # of clients referred to the Adult Education classes"},{"$f":"'Data SBP Measures'!$Y1563","v":"EACH"},null,null,null,null,null,"Adult Education Classes - 140","Total # of clients referred to the Adult Education classes",null,null,null,null,null,null,null,"1277","137","Y","52","Auto Theft Task Force","EACH","INPUT","ADOPTEDBUD",null,null,null,"Auto Theft Task Force","No. 68-A Inspections",null,{"$f":"'Data SBP Measures'!$AF227&'Data SBP Measures'!$AE227& \" - \"& 'Data SBP Measures'!$U227","v":"No. 68-A InspectionsAuto Theft Task Force - 137"},{"$f":"_xlfn.XLOOKUP(VALUE(W227),'Data SBP Programs'!O:O,'Data SBP Programs'!S:S)","v":"Auto Theft Task Force"}]
[{"$f":"'Data SBP Measures'!$AI1550&\" - \"&'Data SBP Measures'!$U1550","v":"Adult Probation CSCD - 139"},{"$f":"'Data SBP Measures'!$AF1550","v":"Average # of direct cases"},{"$f":"'Data SBP Measures'!$T1550","v":"2300"},{"$f":"'Data SBP Measures'!$U1550&B228","v":"139Average # of direct cases"},{"$f":"'Data SBP Measures'!$Y1550","v":"EACH"},null,null,null,null,null,"Adult Probation CSCD - 139","Average # of direct cases",null,null,null,null,null,null,null,"1278","137","Y","52","Auto Theft Task Force","EACH","INPUT","ADOPTEDBUD",null,null,null,"Auto Theft Task Force","No. of salvage yard inspections",null,{"$f":"'Data SBP Measures'!$AF228&'Data SBP Measures'!$AE228& \" - \"& 'Data SBP Measures'!$U228","v":"No. of salvage yard inspectionsAuto Theft Task Force - 137"},{"$f":"_xlfn.XLOOKUP(VALUE(W228),'Data SBP Programs'!O:O,'Data SBP Programs'!S:S)","v":"Auto Theft Task Force"}]
[{"$f":"'Data SBP Measures'!$AI1555&\" - \"&'Data SBP Measures'!$U1555","v":"Adult Probation CSCD - 139"},{"$f":"'Data SBP Measures'!$AF1555","v":"Average Caseloads: Non - specialized"},{"$f":"'Data SBP Measures'!$T1555","v":"2306"},{"$f":"'Data SBP Measures'!$U1555&B229","v":"139Average Caseloads: Non - specialized"},{"$f":"'Data SBP Measures'!$Y1555","v":"EACH"},null,null,null,null,null,"Adult Probation CSCD - 139","Average Caseloads: Non - specialized",null,null,null,null,null,null,null,"1278","137","Y","52","Auto Theft Task Force","EACH","INPUT","ADOPTEDBUD",null,null,null,"Auto Theft Task Force","No. of salvage yard inspections",null,{"$f":"'Data SBP Measures'!$AF229&'Data SBP Measures'!$AE229& \" - \"& 'Data SBP Measures'!$U229","v":"No. of salvage yard inspectionsAuto Theft Task Force - 137"},{"$f":"_xlfn.XLOOKUP(VALUE(W229),'Data SBP Programs'!O:O,'Data SBP Programs'!S:S)","v":"Auto Theft Task Force"}]
[{"$f":"'Data SBP Measures'!$AI1554&\" - \"&'Data SBP Measures'!$U1554","v":"Adult Probation CSCD - 139"},{"$f":"'Data SBP Measures'!$AF1554","v":"Average Caseloads: Specialized"},{"$f":"'Data SBP Measures'!$T1554","v":"2305"},{"$f":"'Data SBP Measures'!$U1554&B230","v":"139Average Caseloads: Specialized"},{"$f":"'Data SBP Measures'!$Y1554","v":"EACH"},null,null,null,null,null,"Adult Probation CSCD - 139","Average Caseloads: Specialized",null,null,null,null,null,null,null,"1279","137","Y","52","Auto Theft Task Force","EACH","INPUT","ADOPTEDBUD",null,null,null,"Auto Theft Task Force","No. of bait ops",null,{"$f":"'Data SBP Measures'!$AF230&'Data SBP Measures'!$AE230& \" - \"& 'Data SBP Measures'!$U230","v":"No. of bait opsAuto Theft Task Force - 137"},{"$f":"_xlfn.XLOOKUP(VALUE(W230),'Data SBP Programs'!O:O,'Data SBP Programs'!S:S)","v":"Auto Theft Task Force"}]
[{"$f":"'Data SBP Measures'!$AI1553&\" - \"&'Data SBP Measures'!$U1553","v":"Adult Probation CSCD - 139"},{"$f":"'Data SBP Measures'!$AF1553","v":"Collected County funds"},{"$f":"'Data SBP Measures'!$T1553","v":"2304"},{"$f":"'Data SBP Measures'!$U1553&B231","v":"139Collected County funds"},{"$f":"'Data SBP Measures'!$Y1553","v":"DOLLARS"},null,null,null,null,null,"Adult Probation CSCD - 139","Collected County funds",null,null,null,null,null,null,null,"1279","137","Y","52","Auto Theft Task Force","EACH","INPUT","ADOPTEDBUD",null,null,null,"Auto Theft Task Force","No. of bait ops",null,{"$f":"'Data SBP Measures'!$AF231&'Data SBP Measures'!$AE231& \" - \"& 'Data SBP Measures'!$U231","v":"No. of bait opsAuto Theft Task Force - 137"},{"$f":"_xlfn.XLOOKUP(VALUE(W231),'Data SBP Programs'!O:O,'Data SBP Programs'!S:S)","v":"Auto Theft Task Force"}]
[{"$f":"'Data SBP Measures'!$AI1551&\" - \"&'Data SBP Measures'!$U1551","v":"Adult Probation CSCD - 139"},{"$f":"'Data SBP Measures'!$AF1551","v":"Community service restitution hours completed"},{"$f":"'Data SBP Measures'!$T1551","v":"2302"},{"$f":"'Data SBP Measures'!$U1551&B232","v":"139Community service restitution hours completed"},{"$f":"'Data SBP Measures'!$Y1551","v":"HOURS"},null,null,null,null,null,"Adult Probation CSCD - 139","Community service restitution hours completed",null,null,null,null,null,null,null,"128","108","Y","21","Information Technology Division","EACH","OUTCOME","NEITHER",null,null,null,"Information Technology Division","% response within 1 hour",null,{"$f":"'Data SBP Measures'!$AF232&'Data SBP Measures'!$AE232& \" - \"& 'Data SBP Measures'!$U232","v":"% response within 1 hourInformation Technology Division - 108"},{"$f":"_xlfn.XLOOKUP(VALUE(W232),'Data SBP Programs'!O:O,'Data SBP Programs'!S:S)","v":"Information Technology Division"}]
[{"$f":"'Data SBP Measures'!$AI1558&\" - \"&'Data SBP Measures'!$U1558","v":"Adult Probation CSCD - 139"},{"$f":"'Data SBP Measures'!$AF1558","v":"Felony revocation rate"},{"$f":"'Data SBP Measures'!$T1558","v":"2309"},{"$f":"'Data SBP Measures'!$U1558&B233","v":"139Felony revocation rate"},{"$f":"'Data SBP Measures'!$Y1558","v":"PERCENT"},null,null,null,null,null,"Adult Probation CSCD - 139","Felony revocation rate",null,null,null,null,null,null,null,"1280","137","Y","52","Auto Theft Task Force","EACH","INPUT","ADOPTEDBUD",null,null,null,"Auto Theft Task Force","No. of Public Outreach",null,{"$f":"'Data SBP Measures'!$AF233&'Data SBP Measures'!$AE233& \" - \"& 'Data SBP Measures'!$U233","v":"No. of Public OutreachAuto Theft Task Force - 137"},{"$f":"_xlfn.XLOOKUP(VALUE(W233),'Data SBP Programs'!O:O,'Data SBP Programs'!S:S)","v":"Auto Theft Task Force"}]
[{"$f":"'Data SBP Measures'!$AI1796&\" - \"&'Data SBP Measures'!$U1796","v":"Adult Probation CSCD - 139"},{"$f":"'Data SBP Measures'!$AF1796","v":"Felony technical violations rate"},{"$f":"'Data SBP Measures'!$T1796","v":"2433"},{"$f":"'Data SBP Measures'!$U1796&B234","v":"139Felony technical violations rate"},{"$f":"'Data SBP Measures'!$Y1796","v":"PERCENT"},null,null,null,null,null,"Adult Probation CSCD - 139","Felony technical violations rate",null,null,null,null,null,null,null,"1280","137","Y","52","Auto Theft Task Force","EACH","INPUT","ADOPTEDBUD",null,null,null,"Auto Theft Task Force","No. of Public Outreach",null,{"$f":"'Data SBP Measures'!$AF234&'Data SBP Measures'!$AE234& \" - \"& 'Data SBP Measures'!$U234","v":"No. of Public OutreachAuto Theft Task Force - 137"},{"$f":"_xlfn.XLOOKUP(VALUE(W234),'Data SBP Programs'!O:O,'Data SBP Programs'!S:S)","v":"Auto Theft Task Force"}]
[{"$f":"'Data SBP Measures'!$AI1556&\" - \"&'Data SBP Measures'!$U1556","v":"Adult Probation CSCD - 139"},{"$f":"'Data SBP Measures'!$AF1556","v":"Misdemeanor revocation rate"},{"$f":"'Data SBP Measures'!$T1556","v":"2307"},{"$f":"'Data SBP Measures'!$U1556&B235","v":"139Misdemeanor revocation rate"},{"$f":"'Data SBP Measures'!$Y1556","v":"PERCENT"},null,null,null,null,null,"Adult Probation CSCD - 139","Misdemeanor revocation rate",null,null,null,null,null,null,null,"1281","137","Y","185","Facilities - Call Center / Mail Room / Laundry / Warehouse\n","EACH","INPUT","ADOPTEDBUD",null,null,null,"Facilities - Call Center / Mail Room / Laundry / Warehouse\n","No. of calls received",null,{"$f":"'Data SBP Measures'!$AF235&'Data SBP Measures'!$AE235& \" - \"& 'Data SBP Measures'!$U235","v":"No. of calls receivedFacilities - Call Center / Mail Room / Laundry / Warehouse\n - 137"},{"$f":"_xlfn.XLOOKUP(VALUE(W235),'Data SBP Programs'!O:O,'Data SBP Programs'!S:S)","v":"Facilities - Call Center / Mail Room / Laundry / Warehouse\n"}]
[{"$f":"'Data SBP Measures'!$AI1794&\" - \"&'Data SBP Measures'!$U1794","v":"Adult Probation CSCD - 139"},{"$f":"'Data SBP Measures'!$AF1794","v":"Misdemeanor technical violations rate"},{"$f":"'Data SBP Measures'!$T1794","v":"2431"},{"$f":"'Data SBP Measures'!$U1794&B236","v":"139Misdemeanor technical violations rate"},{"$f":"'Data SBP Measures'!$Y1794","v":"PERCENT"},null,null,null,null,null,"Adult Probation CSCD - 139","Misdemeanor technical violations rate",null,null,null,null,null,null,null,"1282","137","Y","54","Canine","EACH","INPUT","ADOPTEDBUD",null,null,null,"Canine","No. of K9 searches",null,{"$f":"'Data SBP Measures'!$AF236&'Data SBP Measures'!$AE236& \" - \"& 'Data SBP Measures'!$U236","v":"No. of K9 searchesCanine - 137"},{"$f":"_xlfn.XLOOKUP(VALUE(W236),'Data SBP Programs'!O:O,'Data SBP Programs'!S:S)","v":"Canine"}]
[{"$f":"'Data SBP Measures'!$AI1552&\" - \"&'Data SBP Measures'!$U1552","v":"Adult Probation CSCD - 139"},{"$f":"'Data SBP Measures'!$AF1552","v":"Restitution disbursements"},{"$f":"'Data SBP Measures'!$T1552","v":"2303"},{"$f":"'Data SBP Measures'!$U1552&B237","v":"139Restitution disbursements"},{"$f":"'Data SBP Measures'!$Y1552","v":"DOLLARS"},null,null,null,null,null,"Adult Probation CSCD - 139","Restitution disbursements",null,null,null,null,null,null,null,"1283","137","Y","54","Canine","EACH","INPUT","ADOPTEDBUD",null,null,null,"Canine","No of calls for K9 assistances",null,{"$f":"'Data SBP Measures'!$AF237&'Data SBP Measures'!$AE237& \" - \"& 'Data SBP Measures'!$U237","v":"No of calls for K9 assistancesCanine - 137"},{"$f":"_xlfn.XLOOKUP(VALUE(W237),'Data SBP Programs'!O:O,'Data SBP Programs'!S:S)","v":"Canine"}]
[{"$f":"'Data SBP Measures'!$AI1560&\" - \"&'Data SBP Measures'!$U1560","v":"Adult Probation CSCD - 139"},{"$f":"'Data SBP Measures'!$AF1560","v":"Statewide Felony revocation rate"},{"$f":"'Data SBP Measures'!$T1560","v":"2310"},{"$f":"'Data SBP Measures'!$U1560&B238","v":"139Statewide Felony revocation rate"},{"$f":"'Data SBP Measures'!$Y1560","v":"PERCENT"},null,null,null,null,null,"Adult Probation CSCD - 139","Statewide Felony revocation rate",null,null,null,null,null,null,null,"1284","137","Y","54","Canine","EACH","INPUT","ADOPTEDBUD",null,null,null,"Canine","No. of citations issued by K9 officers",null,{"$f":"'Data SBP Measures'!$AF238&'Data SBP Measures'!$AE238& \" - \"& 'Data SBP Measures'!$U238","v":"No. of citations issued by K9 officersCanine - 137"},{"$f":"_xlfn.XLOOKUP(VALUE(W238),'Data SBP Programs'!O:O,'Data SBP Programs'!S:S)","v":"Canine"}]
[{"$f":"'Data SBP Measures'!$AI1797&\" - \"&'Data SBP Measures'!$U1797","v":"Adult Probation CSCD - 139"},{"$f":"'Data SBP Measures'!$AF1797","v":"Statewide Felony technical violations rate"},{"$f":"'Data SBP Measures'!$T1797","v":"2434"},{"$f":"'Data SBP Measures'!$U1797&B239","v":"139Statewide Felony technical violations rate"},{"$f":"'Data SBP Measures'!$Y1797","v":"PERCENT"},null,null,null,null,null,"Adult Probation CSCD - 139","Statewide Felony technical violations rate",null,null,null,null,null,null,null,"1285","137","Y","55","Central Booking","EACH","INPUT","ADOPTEDBUD",null,null,null,"Central Booking","No. of arrest processed",null,{"$f":"'Data SBP Measures'!$AF239&'Data SBP Measures'!$AE239& \" - \"& 'Data SBP Measures'!$U239","v":"No. of arrest processedCentral Booking - 137"},{"$f":"_xlfn.XLOOKUP(VALUE(W239),'Data SBP Programs'!O:O,'Data SBP Programs'!S:S)","v":"Central Booking"}]
[{"$f":"'Data SBP Measures'!$AI1557&\" - \"&'Data SBP Measures'!$U1557","v":"Adult Probation CSCD - 139"},{"$f":"'Data SBP Measures'!$AF1557","v":"Statewide misdemeanor revocation rate"},{"$f":"'Data SBP Measures'!$T1557","v":"2308"},{"$f":"'Data SBP Measures'!$U1557&B240","v":"139Statewide misdemeanor revocation rate"},{"$f":"'Data SBP Measures'!$Y1557","v":"PERCENT"},null,null,null,null,null,"Adult Probation CSCD - 139","Statewide misdemeanor revocation rate",null,null,null,null,null,null,null,"1285","137","Y","55","Central Booking","EACH","INPUT","ADOPTEDBUD",null,null,null,"Central Booking","No. of arrest processed",null,{"$f":"'Data SBP Measures'!$AF240&'Data SBP Measures'!$AE240& \" - \"& 'Data SBP Measures'!$U240","v":"No. of arrest processedCentral Booking - 137"},{"$f":"_xlfn.XLOOKUP(VALUE(W240),'Data SBP Programs'!O:O,'Data SBP Programs'!S:S)","v":"Central Booking"}]
[{"$f":"'Data SBP Measures'!$AI1795&\" - \"&'Data SBP Measures'!$U1795","v":"Adult Probation CSCD - 139"},{"$f":"'Data SBP Measures'!$AF1795","v":"Statewide Misdemeanor technical violations rate"},{"$f":"'Data SBP Measures'!$T1795","v":"2432"},{"$f":"'Data SBP Measures'!$U1795&B241","v":"139Statewide Misdemeanor technical violations rate"},{"$f":"'Data SBP Measures'!$Y1795","v":"PERCENT"},null,null,null,null,null,"Adult Probation CSCD - 139","Statewide Misdemeanor technical violations rate",null,null,null,null,null,null,null,"1285","137","Y","55","Central Booking","EACH","INPUT","ADOPTEDBUD",null,null,null,"Central Booking","No. of arrest processed",null,{"$f":"'Data SBP Measures'!$AF241&'Data SBP Measures'!$AE241& \" - \"& 'Data SBP Measures'!$U241","v":"No. of arrest processedCentral Booking - 137"},{"$f":"_xlfn.XLOOKUP(VALUE(W241),'Data SBP Programs'!O:O,'Data SBP Programs'!S:S)","v":"Central Booking"}]
[{"$f":"'Data SBP Measures'!$AI1772&\" - \"&'Data SBP Measures'!$U1772","v":"Alcohol & Drug Classes/Programs - 140"},{"$f":"'Data SBP Measures'!$AF1772","v":"% of client’s stated scheduling for the class was convenient."},{"$f":"'Data SBP Measures'!$T1772","v":"2422"},{"$f":"'Data SBP Measures'!$U1772&B242","v":"140% of client’s stated scheduling for the class was convenient."},{"$f":"'Data SBP Measures'!$Y1772","v":"PERCENT"},null,null,null,null,null,"Alcohol & Drug Classes/Programs - 140","% of client’s stated scheduling for the class was convenient.",null,null,null,null,null,null,null,"1286","137","Y","55","Central Booking","EACH","INPUT","ADOPTEDBUD",null,null,null,"Central Booking","No. of bonds processed",null,{"$f":"'Data SBP Measures'!$AF242&'Data SBP Measures'!$AE242& \" - \"& 'Data SBP Measures'!$U242","v":"No. of bonds processedCentral Booking - 137"},{"$f":"_xlfn.XLOOKUP(VALUE(W242),'Data SBP Programs'!O:O,'Data SBP Programs'!S:S)","v":"Central Booking"}]
[{"$f":"'Data SBP Measures'!$AI1724&\" - \"&'Data SBP Measures'!$U1724","v":"Alcohol & Drug Classes/Programs - 140"},{"$f":"'Data SBP Measures'!$AF1724","v":"% of clients successfully completing classes"},{"$f":"'Data SBP Measures'!$T1724","v":"2378"},{"$f":"'Data SBP Measures'!$U1724&B243","v":"140% of clients successfully completing classes"},{"$f":"'Data SBP Measures'!$Y1724","v":"PERCENT"},null,null,null,null,null,"Alcohol & Drug Classes/Programs - 140","% of clients successfully completing classes",null,null,null,null,null,null,null,"1286","137","Y","55","Central Booking","EACH","INPUT","ADOPTEDBUD",null,null,null,"Central Booking","No. of bonds processed",null,{"$f":"'Data SBP Measures'!$AF243&'Data SBP Measures'!$AE243& \" - \"& 'Data SBP Measures'!$U243","v":"No. of bonds processedCentral Booking - 137"},{"$f":"_xlfn.XLOOKUP(VALUE(W243),'Data SBP Programs'!O:O,'Data SBP Programs'!S:S)","v":"Central Booking"}]
[{"$f":"'Data SBP Measures'!$AI1771&\" - \"&'Data SBP Measures'!$U1771","v":"Alcohol & Drug Classes/Programs - 140"},{"$f":"'Data SBP Measures'!$AF1771","v":"% of clients that felt they gained insight to new ideas and available resources"},{"$f":"'Data SBP Measures'!$T1771","v":"2421"},{"$f":"'Data SBP Measures'!$U1771&B244","v":"140% of clients that felt they gained insight to new ideas and available resources"},{"$f":"'Data SBP Measures'!$Y1771","v":"PERCENT"},null,null,null,null,null,"Alcohol & Drug Classes/Programs - 140","% of clients that felt they gained insight to new ideas and available resources",null,null,null,null,null,null,null,"1286","137","Y","55","Central Booking","EACH","INPUT","ADOPTEDBUD",null,null,null,"Central Booking","No. of bonds processed",null,{"$f":"'Data SBP Measures'!$AF244&'Data SBP Measures'!$AE244& \" - \"& 'Data SBP Measures'!$U244","v":"No. of bonds processedCentral Booking - 137"},{"$f":"_xlfn.XLOOKUP(VALUE(W244),'Data SBP Programs'!O:O,'Data SBP Programs'!S:S)","v":"Central Booking"}]
[{"$f":"'Data SBP Measures'!$AI1770&\" - \"&'Data SBP Measures'!$U1770","v":"Alcohol & Drug Classes/Programs - 140"},{"$f":"'Data SBP Measures'!$AF1770","v":"% of clients that felt this class will help avoid future law violations"},{"$f":"'Data SBP Measures'!$T1770","v":"2420"},{"$f":"'Data SBP Measures'!$U1770&B245","v":"140% of clients that felt this class will help avoid future law violations"},{"$f":"'Data SBP Measures'!$Y1770","v":"PERCENT"},null,null,null,null,null,"Alcohol & Drug Classes/Programs - 140","% of clients that felt this class will help avoid future law violations",null,null,null,null,null,null,null,"1287","137","Y","55","Central Booking","EACH","INPUT","ADOPTEDBUD",null,null,null,"Central Booking","No. of releases processed",null,{"$f":"'Data SBP Measures'!$AF245&'Data SBP Measures'!$AE245& \" - \"& 'Data SBP Measures'!$U245","v":"No. of releases processedCentral Booking - 137"},{"$f":"_xlfn.XLOOKUP(VALUE(W245),'Data SBP Programs'!O:O,'Data SBP Programs'!S:S)","v":"Central Booking"}]
[{"$f":"'Data SBP Measures'!$AI1752&\" - \"&'Data SBP Measures'!$U1752","v":"Alcohol & Drug Classes/Programs - 140"},{"$f":"'Data SBP Measures'!$AF1752","v":"12-Hour AOD Education Class # In English"},{"$f":"'Data SBP Measures'!$T1752","v":"2404"},{"$f":"'Data SBP Measures'!$U1752&B246","v":"14012-Hour AOD Education Class # In English"},{"$f":"'Data SBP Measures'!$Y1752","v":"EACH"},null,null,null,null,null,"Alcohol & Drug Classes/Programs - 140","12-Hour AOD Education Class # In English",null,null,null,null,null,null,null,"1287","137","Y","55","Central Booking","EACH","INPUT","ADOPTEDBUD",null,null,null,"Central Booking","No. of releases processed",null,{"$f":"'Data SBP Measures'!$AF246&'Data SBP Measures'!$AE246& \" - \"& 'Data SBP Measures'!$U246","v":"No. of releases processedCentral Booking - 137"},{"$f":"_xlfn.XLOOKUP(VALUE(W246),'Data SBP Programs'!O:O,'Data SBP Programs'!S:S)","v":"Central Booking"}]
[{"$f":"'Data SBP Measures'!$AI1753&\" - \"&'Data SBP Measures'!$U1753","v":"Alcohol & Drug Classes/Programs - 140"},{"$f":"'Data SBP Measures'!$AF1753","v":"12-Hour AOD Education Class # In Spanish"},{"$f":"'Data SBP Measures'!$T1753","v":"2405"},{"$f":"'Data SBP Measures'!$U1753&B247","v":"14012-Hour AOD Education Class # In Spanish"},{"$f":"'Data SBP Measures'!$Y1753","v":"EACH"},null,null,null,null,null,"Alcohol & Drug Classes/Programs - 140","12-Hour AOD Education Class # In Spanish",null,null,null,null,null,null,null,"1287","137","Y","55","Central Booking","EACH","INPUT","ADOPTEDBUD",null,null,null,"Central Booking","No. of releases processed",null,{"$f":"'Data SBP Measures'!$AF247&'Data SBP Measures'!$AE247& \" - \"& 'Data SBP Measures'!$U247","v":"No. of releases processedCentral Booking - 137"},{"$f":"_xlfn.XLOOKUP(VALUE(W247),'Data SBP Programs'!O:O,'Data SBP Programs'!S:S)","v":"Central Booking"}]
[{"$f":"'Data SBP Measures'!$AI1750&\" - \"&'Data SBP Measures'!$U1750","v":"Alcohol & Drug Classes/Programs - 140"},{"$f":"'Data SBP Measures'!$AF1750","v":"12-Hour AOD Education Class # of clients completing"},{"$f":"'Data SBP Measures'!$T1750","v":"2402"},{"$f":"'Data SBP Measures'!$U1750&B248","v":"14012-Hour AOD Education Class # of clients completing"},{"$f":"'Data SBP Measures'!$Y1750","v":"EACH"},null,null,null,null,null,"Alcohol & Drug Classes/Programs - 140","12-Hour AOD Education Class # of clients completing",null,null,null,null,null,null,null,"1288","137","Y","56","Central Records","EACH","INPUT","ADOPTEDBUD",null,null,null,"Central Records","No. of name check requests",null,{"$f":"'Data SBP Measures'!$AF248&'Data SBP Measures'!$AE248& \" - \"& 'Data SBP Measures'!$U248","v":"No. of name check requestsCentral Records - 137"},{"$f":"_xlfn.XLOOKUP(VALUE(W248),'Data SBP Programs'!O:O,'Data SBP Programs'!S:S)","v":"Central Records"}]
[{"$f":"'Data SBP Measures'!$AI1749&\" - \"&'Data SBP Measures'!$U1749","v":"Alcohol & Drug Classes/Programs - 140"},{"$f":"'Data SBP Measures'!$AF1749","v":"12-Hour AOD Education Class # of clients registered"},{"$f":"'Data SBP Measures'!$T1749","v":"2401"},{"$f":"'Data SBP Measures'!$U1749&B249","v":"14012-Hour AOD Education Class # of clients registered"},{"$f":"'Data SBP Measures'!$Y1749","v":"EACH"},null,null,null,null,null,"Alcohol & Drug Classes/Programs - 140","12-Hour AOD Education Class # of clients registered",null,null,null,null,null,null,null,"1289","137","Y","56","Central Records","EACH","INPUT","ADOPTEDBUD",null,null,null,"Central Records","No. of reports entered",null,{"$f":"'Data SBP Measures'!$AF249&'Data SBP Measures'!$AE249& \" - \"& 'Data SBP Measures'!$U249","v":"No. of reports enteredCentral Records - 137"},{"$f":"_xlfn.XLOOKUP(VALUE(W249),'Data SBP Programs'!O:O,'Data SBP Programs'!S:S)","v":"Central Records"}]
[{"$f":"'Data SBP Measures'!$AI1751&\" - \"&'Data SBP Measures'!$U1751","v":"Alcohol & Drug Classes/Programs - 140"},{"$f":"'Data SBP Measures'!$AF1751","v":"12-Hour AOD Education Class Total # of classes"},{"$f":"'Data SBP Measures'!$T1751","v":"2403"},{"$f":"'Data SBP Measures'!$U1751&B250","v":"14012-Hour AOD Education Class Total # of classes"},{"$f":"'Data SBP Measures'!$Y1751","v":"EACH"},null,null,null,null,null,"Alcohol & Drug Classes/Programs - 140","12-Hour AOD Education Class Total # of classes",null,null,null,null,null,null,null,"129","108","Y","21","Information Technology Division","EACH","OUTPUT","NEITHER",null,null,null,"Information Technology Division","# of training sessions held",null,{"$f":"'Data SBP Measures'!$AF250&'Data SBP Measures'!$AE250& \" - \"& 'Data SBP Measures'!$U250","v":"# of training sessions heldInformation Technology Division - 108"},{"$f":"_xlfn.XLOOKUP(VALUE(W250),'Data SBP Programs'!O:O,'Data SBP Programs'!S:S)","v":"Information Technology Division"}]
[{"$f":"'Data SBP Measures'!$AI1729&\" - \"&'Data SBP Measures'!$U1729","v":"Alcohol & Drug Classes/Programs - 140"},{"$f":"'Data SBP Measures'!$AF1729","v":"12-Hour DWI Education Class # In English"},{"$f":"'Data SBP Measures'!$T1729","v":"2382"},{"$f":"'Data SBP Measures'!$U1729&B251","v":"14012-Hour DWI Education Class # In English"},{"$f":"'Data SBP Measures'!$Y1729","v":"EACH"},null,null,null,null,null,"Alcohol & Drug Classes/Programs - 140","12-Hour DWI Education Class # In English",null,null,null,null,null,null,null,"1290","137","Y","56","Central Records","EACH","INPUT","ADOPTEDBUD",null,null,null,"Central Records","No. of UCR reports read",null,{"$f":"'Data SBP Measures'!$AF251&'Data SBP Measures'!$AE251& \" - \"& 'Data SBP Measures'!$U251","v":"No. of UCR reports readCentral Records - 137"},{"$f":"_xlfn.XLOOKUP(VALUE(W251),'Data SBP Programs'!O:O,'Data SBP Programs'!S:S)","v":"Central Records"}]
[{"$f":"'Data SBP Measures'!$AI1730&\" - \"&'Data SBP Measures'!$U1730","v":"Alcohol & Drug Classes/Programs - 140"},{"$f":"'Data SBP Measures'!$AF1730","v":"12-Hour DWI Education Class # In Spanish"},{"$f":"'Data SBP Measures'!$T1730","v":"2383"},{"$f":"'Data SBP Measures'!$U1730&B252","v":"14012-Hour DWI Education Class # In Spanish"},{"$f":"'Data SBP Measures'!$Y1730","v":"EACH"},null,null,null,null,null,"Alcohol & Drug Classes/Programs - 140","12-Hour DWI Education Class # In Spanish",null,null,null,null,null,null,null,"1291","137","Y","56","Central Records","EACH","INPUT","ADOPTEDBUD",null,null,null,"Central Records","No. of expunctions",null,{"$f":"'Data SBP Measures'!$AF252&'Data SBP Measures'!$AE252& \" - \"& 'Data SBP Measures'!$U252","v":"No. of expunctionsCentral Records - 137"},{"$f":"_xlfn.XLOOKUP(VALUE(W252),'Data SBP Programs'!O:O,'Data SBP Programs'!S:S)","v":"Central Records"}]
[{"$f":"'Data SBP Measures'!$AI1727&\" - \"&'Data SBP Measures'!$U1727","v":"Alcohol & Drug Classes/Programs - 140"},{"$f":"'Data SBP Measures'!$AF1727","v":"12-Hour DWI Education Class # of clients completing"},{"$f":"'Data SBP Measures'!$T1727","v":"2380"},{"$f":"'Data SBP Measures'!$U1727&B253","v":"14012-Hour DWI Education Class # of clients completing"},{"$f":"'Data SBP Measures'!$Y1727","v":"EACH"},null,null,null,null,null,"Alcohol & Drug Classes/Programs - 140","12-Hour DWI Education Class # of clients completing",null,null,null,null,null,null,null,"1292","137","Y","56","Central Records","EACH","INPUT","ADOPTEDBUD",null,null,null,"Central Records","No. of citations entered",null,{"$f":"'Data SBP Measures'!$AF253&'Data SBP Measures'!$AE253& \" - \"& 'Data SBP Measures'!$U253","v":"No. of citations enteredCentral Records - 137"},{"$f":"_xlfn.XLOOKUP(VALUE(W253),'Data SBP Programs'!O:O,'Data SBP Programs'!S:S)","v":"Central Records"}]
[{"$f":"'Data SBP Measures'!$AI1725&\" - \"&'Data SBP Measures'!$U1725","v":"Alcohol & Drug Classes/Programs - 140"},{"$f":"'Data SBP Measures'!$AF1725","v":"12-Hour DWI Education Class # of clients registered"},{"$f":"'Data SBP Measures'!$T1725","v":"2379"},{"$f":"'Data SBP Measures'!$U1725&B254","v":"14012-Hour DWI Education Class # of clients registered"},{"$f":"'Data SBP Measures'!$Y1725","v":"EACH"},null,null,null,null,null,"Alcohol & Drug Classes/Programs - 140","12-Hour DWI Education Class # of clients registered",null,null,null,null,null,null,null,"1294","137","Y","57","Central Warrants","DOLLARS","INPUT","ADOPTEDBUD",null,null,null,"Central Warrants","Balance of outstanding warrants",null,{"$f":"'Data SBP Measures'!$AF254&'Data SBP Measures'!$AE254& \" - \"& 'Data SBP Measures'!$U254","v":"Balance of outstanding warrantsCentral Warrants - 137"},{"$f":"_xlfn.XLOOKUP(VALUE(W254),'Data SBP Programs'!O:O,'Data SBP Programs'!S:S)","v":"Central Warrants"}]
[{"$f":"'Data SBP Measures'!$AI1728&\" - \"&'Data SBP Measures'!$U1728","v":"Alcohol & Drug Classes/Programs - 140"},{"$f":"'Data SBP Measures'!$AF1728","v":"12-Hour DWI Education Class Total # of classes"},{"$f":"'Data SBP Measures'!$T1728","v":"2381"},{"$f":"'Data SBP Measures'!$U1728&B255","v":"14012-Hour DWI Education Class Total # of classes"},{"$f":"'Data SBP Measures'!$Y1728","v":"EACH"},null,null,null,null,null,"Alcohol & Drug Classes/Programs - 140","12-Hour DWI Education Class Total # of classes",null,null,null,null,null,null,null,"1295","137","Y","57","Central Warrants","EACH","INPUT","ADOPTEDBUD",null,null,null,"Central Warrants","No. of warrant checks performed",null,{"$f":"'Data SBP Measures'!$AF255&'Data SBP Measures'!$AE255& \" - \"& 'Data SBP Measures'!$U255","v":"No. of warrant checks performedCentral Warrants - 137"},{"$f":"_xlfn.XLOOKUP(VALUE(W255),'Data SBP Programs'!O:O,'Data SBP Programs'!S:S)","v":"Central Warrants"}]
[{"$f":"'Data SBP Measures'!$AI1741&\" - \"&'Data SBP Measures'!$U1741","v":"Alcohol & Drug Classes/Programs - 140"},{"$f":"'Data SBP Measures'!$AF1741","v":"15-Hour Drug Edu. Class # In English"},{"$f":"'Data SBP Measures'!$T1741","v":"2393"},{"$f":"'Data SBP Measures'!$U1741&B256","v":"14015-Hour Drug Edu. Class # In English"},{"$f":"'Data SBP Measures'!$Y1741","v":"EACH"},null,null,null,null,null,"Alcohol & Drug Classes/Programs - 140","15-Hour Drug Edu. Class # In English",null,null,null,null,null,null,null,"1296","137","Y","57","Central Warrants","EACH","INPUT","ADOPTEDBUD",null,null,null,"Central Warrants","No. of warrants executed",null,{"$f":"'Data SBP Measures'!$AF256&'Data SBP Measures'!$AE256& \" - \"& 'Data SBP Measures'!$U256","v":"No. of warrants executedCentral Warrants - 137"},{"$f":"_xlfn.XLOOKUP(VALUE(W256),'Data SBP Programs'!O:O,'Data SBP Programs'!S:S)","v":"Central Warrants"}]
[{"$f":"'Data SBP Measures'!$AI1742&\" - \"&'Data SBP Measures'!$U1742","v":"Alcohol & Drug Classes/Programs - 140"},{"$f":"'Data SBP Measures'!$AF1742","v":"15-Hour Drug Edu. Class # In Spanish"},{"$f":"'Data SBP Measures'!$T1742","v":"2394"},{"$f":"'Data SBP Measures'!$U1742&B257","v":"14015-Hour Drug Edu. Class # In Spanish"},{"$f":"'Data SBP Measures'!$Y1742","v":"EACH"},null,null,null,null,null,"Alcohol & Drug Classes/Programs - 140","15-Hour Drug Edu. Class # In Spanish",null,null,null,null,null,null,null,"1297","137","Y","57","Central Warrants","EACH","INPUT","ADOPTEDBUD",null,null,null,"Central Warrants","No. of warrants recalled",null,{"$f":"'Data SBP Measures'!$AF257&'Data SBP Measures'!$AE257& \" - \"& 'Data SBP Measures'!$U257","v":"No. of warrants recalledCentral Warrants - 137"},{"$f":"_xlfn.XLOOKUP(VALUE(W257),'Data SBP Programs'!O:O,'Data SBP Programs'!S:S)","v":"Central Warrants"}]
[{"$f":"'Data SBP Measures'!$AI1739&\" - \"&'Data SBP Measures'!$U1739","v":"Alcohol & Drug Classes/Programs - 140"},{"$f":"'Data SBP Measures'!$AF1739","v":"15-Hour Drug Edu. Class # of clients completing"},{"$f":"'Data SBP Measures'!$T1739","v":"2391"},{"$f":"'Data SBP Measures'!$U1739&B258","v":"14015-Hour Drug Edu. Class # of clients completing"},{"$f":"'Data SBP Measures'!$Y1739","v":"EACH"},null,null,null,null,null,"Alcohol & Drug Classes/Programs - 140","15-Hour Drug Edu. Class # of clients completing",null,null,null,null,null,null,null,"1298","137","Y","57","Central Warrants","EACH","INPUT","ADOPTEDBUD",null,null,null,"Central Warrants","No. of warrants received",null,{"$f":"'Data SBP Measures'!$AF258&'Data SBP Measures'!$AE258& \" - \"& 'Data SBP Measures'!$U258","v":"No. of warrants receivedCentral Warrants - 137"},{"$f":"_xlfn.XLOOKUP(VALUE(W258),'Data SBP Programs'!O:O,'Data SBP Programs'!S:S)","v":"Central Warrants"}]
[{"$f":"'Data SBP Measures'!$AI1738&\" - \"&'Data SBP Measures'!$U1738","v":"Alcohol & Drug Classes/Programs - 140"},{"$f":"'Data SBP Measures'!$AF1738","v":"15-Hour Drug Edu. Class # of clients registered"},{"$f":"'Data SBP Measures'!$T1738","v":"2390"},{"$f":"'Data SBP Measures'!$U1738&B259","v":"14015-Hour Drug Edu. Class # of clients registered"},{"$f":"'Data SBP Measures'!$Y1738","v":"EACH"},null,null,null,null,null,"Alcohol & Drug Classes/Programs - 140","15-Hour Drug Edu. Class # of clients registered",null,null,null,null,null,null,null,"1299","137","Y","58","Chaplain","EACH","INPUT","ADOPTEDBUD",null,null,null,"Chaplain","Attendance at activities",null,{"$f":"'Data SBP Measures'!$AF259&'Data SBP Measures'!$AE259& \" - \"& 'Data SBP Measures'!$U259","v":"Attendance at activitiesChaplain - 137"},{"$f":"_xlfn.XLOOKUP(VALUE(W259),'Data SBP Programs'!O:O,'Data SBP Programs'!S:S)","v":"Chaplain"}]
[{"$f":"'Data SBP Measures'!$AI1740&\" - \"&'Data SBP Measures'!$U1740","v":"Alcohol & Drug Classes/Programs - 140"},{"$f":"'Data SBP Measures'!$AF1740","v":"15-Hour Drug Edu. Class Total # of classes"},{"$f":"'Data SBP Measures'!$T1740","v":"2392"},{"$f":"'Data SBP Measures'!$U1740&B260","v":"14015-Hour Drug Edu. Class Total # of classes"},{"$f":"'Data SBP Measures'!$Y1740","v":"EACH"},null,null,null,null,null,"Alcohol & Drug Classes/Programs - 140","15-Hour Drug Edu. Class Total # of classes",null,null,null,null,null,null,null,"13","106","Y","178","Auditor's Office","PERCENT","OUTCOME","ADOPTEDBUD",null,null,null,"Auditor's Office","% employees using direct deposit instead of paper check",null,{"$f":"'Data SBP Measures'!$AF260&'Data SBP Measures'!$AE260& \" - \"& 'Data SBP Measures'!$U260","v":"% employees using direct deposit instead of paper checkAuditor's Office - 106"},{"$f":"_xlfn.XLOOKUP(VALUE(W260),'Data SBP Programs'!O:O,'Data SBP Programs'!S:S)","v":"Auditor's Office"}]
[{"$f":"'Data SBP Measures'!$AI1735&\" - \"&'Data SBP Measures'!$U1735","v":"Alcohol & Drug Classes/Programs - 140"},{"$f":"'Data SBP Measures'!$AF1735","v":"30-Hour DWI Intervention # In English"},{"$f":"'Data SBP Measures'!$T1735","v":"2388"},{"$f":"'Data SBP Measures'!$U1735&B261","v":"14030-Hour DWI Intervention # In English"},{"$f":"'Data SBP Measures'!$Y1735","v":"EACH"},null,null,null,null,null,"Alcohol & Drug Classes/Programs - 140","30-Hour DWI Intervention # In English",null,null,null,null,null,null,null,"1300","137","Y","58","Chaplain","EACH","INPUT","ADOPTEDBUD",null,null,null,"Chaplain","No. of activities",null,{"$f":"'Data SBP Measures'!$AF261&'Data SBP Measures'!$AE261& \" - \"& 'Data SBP Measures'!$U261","v":"No. of activitiesChaplain - 137"},{"$f":"_xlfn.XLOOKUP(VALUE(W261),'Data SBP Programs'!O:O,'Data SBP Programs'!S:S)","v":"Chaplain"}]
[{"$f":"'Data SBP Measures'!$AI1736&\" - \"&'Data SBP Measures'!$U1736","v":"Alcohol & Drug Classes/Programs - 140"},{"$f":"'Data SBP Measures'!$AF1736","v":"30-Hour DWI Intervention # In Spanish"},{"$f":"'Data SBP Measures'!$T1736","v":"2389"},{"$f":"'Data SBP Measures'!$U1736&B262","v":"14030-Hour DWI Intervention # In Spanish"},{"$f":"'Data SBP Measures'!$Y1736","v":"EACH"},null,null,null,null,null,"Alcohol & Drug Classes/Programs - 140","30-Hour DWI Intervention # In Spanish",null,null,null,null,null,null,null,"1301","137","Y","59","CJIS - Arrest/Expunction/Fugitive/Misuse ID/Parole/StateXfer","EACH","INPUT","ADOPTEDBUD",null,null,null,"CJIS - Arrest/Expunction/Fugitive/Misuse ID/Parole/StateXfer","No. of Data Quality Resolutions",null,{"$f":"'Data SBP Measures'!$AF262&'Data SBP Measures'!$AE262& \" - \"& 'Data SBP Measures'!$U262","v":"No. of Data Quality ResolutionsCJIS - Arrest/Expunction/Fugitive/Misuse ID/Parole/StateXfer - 137"},{"$f":"_xlfn.XLOOKUP(VALUE(W262),'Data SBP Programs'!O:O,'Data SBP Programs'!S:S)","v":"CJIS - Arrest/Expunction/Fugitive/Misuse ID/Parole/StateXfer"}]
[{"$f":"'Data SBP Measures'!$AI1733&\" - \"&'Data SBP Measures'!$U1733","v":"Alcohol & Drug Classes/Programs - 140"},{"$f":"'Data SBP Measures'!$AF1733","v":"30-Hour DWI Intervention # of clients completing"},{"$f":"'Data SBP Measures'!$T1733","v":"2386"},{"$f":"'Data SBP Measures'!$U1733&B263","v":"14030-Hour DWI Intervention # of clients completing"},{"$f":"'Data SBP Measures'!$Y1733","v":"EACH"},null,null,null,null,null,"Alcohol & Drug Classes/Programs - 140","30-Hour DWI Intervention # of clients completing",null,null,null,null,null,null,null,"1303","137","Y","59","CJIS - Arrest/Expunction/Fugitive/Misuse ID/Parole/StateXfer","EACH","INPUT","ADOPTEDBUD",null,null,null,"CJIS - Arrest/Expunction/Fugitive/Misuse ID/Parole/StateXfer","No. of New Arrest Rpt'd to DPS",null,{"$f":"'Data SBP Measures'!$AF263&'Data SBP Measures'!$AE263& \" - \"& 'Data SBP Measures'!$U263","v":"No. of New Arrest Rpt'd to DPSCJIS - Arrest/Expunction/Fugitive/Misuse ID/Parole/StateXfer - 137"},{"$f":"_xlfn.XLOOKUP(VALUE(W263),'Data SBP Programs'!O:O,'Data SBP Programs'!S:S)","v":"CJIS - Arrest/Expunction/Fugitive/Misuse ID/Parole/StateXfer"}]
[{"$f":"'Data SBP Measures'!$AI1732&\" - \"&'Data SBP Measures'!$U1732","v":"Alcohol & Drug Classes/Programs - 140"},{"$f":"'Data SBP Measures'!$AF1732","v":"30-Hour DWI Intervention # of clients registered"},{"$f":"'Data SBP Measures'!$T1732","v":"2385"},{"$f":"'Data SBP Measures'!$U1732&B264","v":"14030-Hour DWI Intervention # of clients registered"},{"$f":"'Data SBP Measures'!$Y1732","v":"EACH"},null,null,null,null,null,"Alcohol & Drug Classes/Programs - 140","30-Hour DWI Intervention # of clients registered",null,null,null,null,null,null,null,"131","108","Y","21","Information Technology Division","PERCENT","EFFICIENCY","ADOPTEDBUD",null,null,null,"Information Technology Division","% indicating transfer of learning",null,{"$f":"'Data SBP Measures'!$AF264&'Data SBP Measures'!$AE264& \" - \"& 'Data SBP Measures'!$U264","v":"% indicating transfer of learningInformation Technology Division - 108"},{"$f":"_xlfn.XLOOKUP(VALUE(W264),'Data SBP Programs'!O:O,'Data SBP Programs'!S:S)","v":"Information Technology Division"}]
[{"$f":"'Data SBP Measures'!$AI1734&\" - \"&'Data SBP Measures'!$U1734","v":"Alcohol & Drug Classes/Programs - 140"},{"$f":"'Data SBP Measures'!$AF1734","v":"30-Hour DWI Intervention Total # of classes"},{"$f":"'Data SBP Measures'!$T1734","v":"2387"},{"$f":"'Data SBP Measures'!$U1734&B265","v":"14030-Hour DWI Intervention Total # of classes"},{"$f":"'Data SBP Measures'!$Y1734","v":"EACH"},null,null,null,null,null,"Alcohol & Drug Classes/Programs - 140","30-Hour DWI Intervention Total # of classes",null,null,null,null,null,null,null,"1311","137","Y","59","CJIS - Arrest/Expunction/Fugitive/Misuse ID/Parole/StateXfer","EACH","INPUT","ADOPTEDBUD",null,null,null,"CJIS - Arrest/Expunction/Fugitive/Misuse ID/Parole/StateXfer","No. of Identity Cases",null,{"$f":"'Data SBP Measures'!$AF265&'Data SBP Measures'!$AE265& \" - \"& 'Data SBP Measures'!$U265","v":"No. of Identity CasesCJIS - Arrest/Expunction/Fugitive/Misuse ID/Parole/StateXfer - 137"},{"$f":"_xlfn.XLOOKUP(VALUE(W265),'Data SBP Programs'!O:O,'Data SBP Programs'!S:S)","v":"CJIS - Arrest/Expunction/Fugitive/Misuse ID/Parole/StateXfer"}]
[{"$f":"'Data SBP Measures'!$AI1766&\" - \"&'Data SBP Measures'!$U1766","v":"Alcohol & Drug Classes/Programs - 140"},{"$f":"'Data SBP Measures'!$AF1766","v":"45-Hour Cognitive Behavior  # of clients completing"},{"$f":"'Data SBP Measures'!$T1766","v":"2417"},{"$f":"'Data SBP Measures'!$U1766&B266","v":"14045-Hour Cognitive Behavior  # of clients completing"},{"$f":"'Data SBP Measures'!$Y1766","v":"EACH"},null,null,null,null,null,"Alcohol & Drug Classes/Programs - 140","45-Hour Cognitive Behavior  # of clients completing",null,null,null,null,null,null,null,"1312","137","Y","59","CJIS - Arrest/Expunction/Fugitive/Misuse ID/Parole/StateXfer","EACH","INPUT","ADOPTEDBUD",null,null,null,"CJIS - Arrest/Expunction/Fugitive/Misuse ID/Parole/StateXfer","No. of Non-Disclosures",null,{"$f":"'Data SBP Measures'!$AF266&'Data SBP Measures'!$AE266& \" - \"& 'Data SBP Measures'!$U266","v":"No. of Non-DisclosuresCJIS - Arrest/Expunction/Fugitive/Misuse ID/Parole/StateXfer - 137"},{"$f":"_xlfn.XLOOKUP(VALUE(W266),'Data SBP Programs'!O:O,'Data SBP Programs'!S:S)","v":"CJIS - Arrest/Expunction/Fugitive/Misuse ID/Parole/StateXfer"}]
[{"$f":"'Data SBP Measures'!$AI1765&\" - \"&'Data SBP Measures'!$U1765","v":"Alcohol & Drug Classes/Programs - 140"},{"$f":"'Data SBP Measures'!$AF1765","v":"45-Hour Cognitive Behavior  # of clients registered"},{"$f":"'Data SBP Measures'!$T1765","v":"2416"},{"$f":"'Data SBP Measures'!$U1765&B267","v":"14045-Hour Cognitive Behavior  # of clients registered"},{"$f":"'Data SBP Measures'!$Y1765","v":"EACH"},null,null,null,null,null,"Alcohol & Drug Classes/Programs - 140","45-Hour Cognitive Behavior  # of clients registered",null,null,null,null,null,null,null,"1315","137","Y","59","CJIS - Arrest/Expunction/Fugitive/Misuse ID/Parole/StateXfer","EACH","INPUT","ADOPTEDBUD",null,null,null,"CJIS - Arrest/Expunction/Fugitive/Misuse ID/Parole/StateXfer","No. of expunctions closed",null,{"$f":"'Data SBP Measures'!$AF267&'Data SBP Measures'!$AE267& \" - \"& 'Data SBP Measures'!$U267","v":"No. of expunctions closedCJIS - Arrest/Expunction/Fugitive/Misuse ID/Parole/StateXfer - 137"},{"$f":"_xlfn.XLOOKUP(VALUE(W267),'Data SBP Programs'!O:O,'Data SBP Programs'!S:S)","v":"CJIS - Arrest/Expunction/Fugitive/Misuse ID/Parole/StateXfer"}]
[{"$f":"'Data SBP Measures'!$AI1767&\" - \"&'Data SBP Measures'!$U1767","v":"Alcohol & Drug Classes/Programs - 140"},{"$f":"'Data SBP Measures'!$AF1767","v":"45-Hour Cognitive Behavior  Total # of classes"},{"$f":"'Data SBP Measures'!$T1767","v":"2418"},{"$f":"'Data SBP Measures'!$U1767&B268","v":"14045-Hour Cognitive Behavior  Total # of classes"},{"$f":"'Data SBP Measures'!$Y1767","v":"EACH"},null,null,null,null,null,"Alcohol & Drug Classes/Programs - 140","45-Hour Cognitive Behavior  Total # of classes",null,null,null,null,null,null,null,"1316","137","Y","59","CJIS - Arrest/Expunction/Fugitive/Misuse ID/Parole/StateXfer","EACH","INPUT","ADOPTEDBUD",null,null,null,"CJIS - Arrest/Expunction/Fugitive/Misuse ID/Parole/StateXfer","No. of Sealing Orders",null,{"$f":"'Data SBP Measures'!$AF268&'Data SBP Measures'!$AE268& \" - \"& 'Data SBP Measures'!$U268","v":"No. of Sealing OrdersCJIS - Arrest/Expunction/Fugitive/Misuse ID/Parole/StateXfer - 137"},{"$f":"_xlfn.XLOOKUP(VALUE(W268),'Data SBP Programs'!O:O,'Data SBP Programs'!S:S)","v":"CJIS - Arrest/Expunction/Fugitive/Misuse ID/Parole/StateXfer"}]
[{"$f":"'Data SBP Measures'!$AI1755&\" - \"&'Data SBP Measures'!$U1755","v":"Alcohol & Drug Classes/Programs - 140"},{"$f":"'Data SBP Measures'!$AF1755","v":"6-Hour Minor In Possession # of clients completing"},{"$f":"'Data SBP Measures'!$T1755","v":"2407"},{"$f":"'Data SBP Measures'!$U1755&B269","v":"1406-Hour Minor In Possession # of clients completing"},{"$f":"'Data SBP Measures'!$Y1755","v":"EACH"},null,null,null,null,null,"Alcohol & Drug Classes/Programs - 140","6-Hour Minor In Possession # of clients completing",null,null,null,null,null,null,null,"1317","137","Y","59","CJIS - Arrest/Expunction/Fugitive/Misuse ID/Parole/StateXfer","EACH","INPUT","ADOPTEDBUD",null,null,null,"CJIS - Arrest/Expunction/Fugitive/Misuse ID/Parole/StateXfer","No. of Documents Rec'd & Entered",null,{"$f":"'Data SBP Measures'!$AF269&'Data SBP Measures'!$AE269& \" - \"& 'Data SBP Measures'!$U269","v":"No. of Documents Rec'd & EnteredCJIS - Arrest/Expunction/Fugitive/Misuse ID/Parole/StateXfer - 137"},{"$f":"_xlfn.XLOOKUP(VALUE(W269),'Data SBP Programs'!O:O,'Data SBP Programs'!S:S)","v":"CJIS - Arrest/Expunction/Fugitive/Misuse ID/Parole/StateXfer"}]
[{"$f":"'Data SBP Measures'!$AI1754&\" - \"&'Data SBP Measures'!$U1754","v":"Alcohol & Drug Classes/Programs - 140"},{"$f":"'Data SBP Measures'!$AF1754","v":"6-Hour Minor In Possession # of clients registered"},{"$f":"'Data SBP Measures'!$T1754","v":"2406"},{"$f":"'Data SBP Measures'!$U1754&B270","v":"1406-Hour Minor In Possession # of clients registered"},{"$f":"'Data SBP Measures'!$Y1754","v":"EACH"},null,null,null,null,null,"Alcohol & Drug Classes/Programs - 140","6-Hour Minor In Possession # of clients registered",null,null,null,null,null,null,null,"1318","137","Y","59","CJIS - Arrest/Expunction/Fugitive/Misuse ID/Parole/StateXfer","EACH","INPUT","ADOPTEDBUD",null,null,null,"CJIS - Arrest/Expunction/Fugitive/Misuse ID/Parole/StateXfer","No. of State Transfers",null,{"$f":"'Data SBP Measures'!$AF270&'Data SBP Measures'!$AE270& \" - \"& 'Data SBP Measures'!$U270","v":"No. of State TransfersCJIS - Arrest/Expunction/Fugitive/Misuse ID/Parole/StateXfer - 137"},{"$f":"_xlfn.XLOOKUP(VALUE(W270),'Data SBP Programs'!O:O,'Data SBP Programs'!S:S)","v":"CJIS - Arrest/Expunction/Fugitive/Misuse ID/Parole/StateXfer"}]
[{"$f":"'Data SBP Measures'!$AI1756&\" - \"&'Data SBP Measures'!$U1756","v":"Alcohol & Drug Classes/Programs - 140"},{"$f":"'Data SBP Measures'!$AF1756","v":"6-Hour Minor In Possession Total # of classes"},{"$f":"'Data SBP Measures'!$T1756","v":"2408"},{"$f":"'Data SBP Measures'!$U1756&B271","v":"1406-Hour Minor In Possession Total # of classes"},{"$f":"'Data SBP Measures'!$Y1756","v":"EACH"},null,null,null,null,null,"Alcohol & Drug Classes/Programs - 140","6-Hour Minor In Possession Total # of classes",null,null,null,null,null,null,null,"132","108","Y","21","Information Technology Division","EACH","OUTPUT","NEITHER",null,null,null,"Information Technology Division","# of procedures written or updated",null,{"$f":"'Data SBP Measures'!$AF271&'Data SBP Measures'!$AE271& \" - \"& 'Data SBP Measures'!$U271","v":"# of procedures written or updatedInformation Technology Division - 108"},{"$f":"_xlfn.XLOOKUP(VALUE(W271),'Data SBP Programs'!O:O,'Data SBP Programs'!S:S)","v":"Information Technology Division"}]
[{"$f":"'Data SBP Measures'!$AI1748&\" - \"&'Data SBP Measures'!$U1748","v":"Alcohol & Drug Classes/Programs - 140"},{"$f":"'Data SBP Measures'!$AF1748","v":"8-Hour AOD Education Class # In Spanish"},{"$f":"'Data SBP Measures'!$T1748","v":"2400"},{"$f":"'Data SBP Measures'!$U1748&B272","v":"1408-Hour AOD Education Class # In Spanish"},{"$f":"'Data SBP Measures'!$Y1748","v":"EACH"},null,null,null,null,null,"Alcohol & Drug Classes/Programs - 140","8-Hour AOD Education Class # In Spanish",null,null,null,null,null,null,null,"1321","137","Y","59","CJIS - Arrest/Expunction/Fugitive/Misuse ID/Parole/StateXfer","EACH","INPUT","ADOPTEDBUD",null,null,null,"CJIS - Arrest/Expunction/Fugitive/Misuse ID/Parole/StateXfer","No. of Parole Wrt. Withdrawals",null,{"$f":"'Data SBP Measures'!$AF272&'Data SBP Measures'!$AE272& \" - \"& 'Data SBP Measures'!$U272","v":"No. of Parole Wrt. WithdrawalsCJIS - Arrest/Expunction/Fugitive/Misuse ID/Parole/StateXfer - 137"},{"$f":"_xlfn.XLOOKUP(VALUE(W272),'Data SBP Programs'!O:O,'Data SBP Programs'!S:S)","v":"CJIS - Arrest/Expunction/Fugitive/Misuse ID/Parole/StateXfer"}]
[{"$f":"'Data SBP Measures'!$AI1745&\" - \"&'Data SBP Measures'!$U1745","v":"Alcohol & Drug Classes/Programs - 140"},{"$f":"'Data SBP Measures'!$AF1745","v":"8-Hour AOD Education Class # of clients completing"},{"$f":"'Data SBP Measures'!$T1745","v":"2397"},{"$f":"'Data SBP Measures'!$U1745&B273","v":"1408-Hour AOD Education Class # of clients completing"},{"$f":"'Data SBP Measures'!$Y1745","v":"EACH"},null,null,null,null,null,"Alcohol & Drug Classes/Programs - 140","8-Hour AOD Education Class # of clients completing",null,null,null,null,null,null,null,"1322","137","Y","59","CJIS - Arrest/Expunction/Fugitive/Misuse ID/Parole/StateXfer","EACH","INPUT","ADOPTEDBUD",null,null,null,"CJIS - Arrest/Expunction/Fugitive/Misuse ID/Parole/StateXfer","No. of Parole Revocations Rec'd",null,{"$f":"'Data SBP Measures'!$AF273&'Data SBP Measures'!$AE273& \" - \"& 'Data SBP Measures'!$U273","v":"No. of Parole Revocations Rec'dCJIS - Arrest/Expunction/Fugitive/Misuse ID/Parole/StateXfer - 137"},{"$f":"_xlfn.XLOOKUP(VALUE(W273),'Data SBP Programs'!O:O,'Data SBP Programs'!S:S)","v":"CJIS - Arrest/Expunction/Fugitive/Misuse ID/Parole/StateXfer"}]
[{"$f":"'Data SBP Measures'!$AI1744&\" - \"&'Data SBP Measures'!$U1744","v":"Alcohol & Drug Classes/Programs - 140"},{"$f":"'Data SBP Measures'!$AF1744","v":"8-Hour AOD Education Class # of clients registered"},{"$f":"'Data SBP Measures'!$T1744","v":"2396"},{"$f":"'Data SBP Measures'!$U1744&B274","v":"1408-Hour AOD Education Class # of clients registered"},{"$f":"'Data SBP Measures'!$Y1744","v":"EACH"},null,null,null,null,null,"Alcohol & Drug Classes/Programs - 140","8-Hour AOD Education Class # of clients registered",null,null,null,null,null,null,null,"1325","137","Y","59","CJIS - Arrest/Expunction/Fugitive/Misuse ID/Parole/StateXfer","EACH","INPUT","ADOPTEDBUD",null,null,null,"CJIS - Arrest/Expunction/Fugitive/Misuse ID/Parole/StateXfer","No. of Fugitive From Justice Filed",null,{"$f":"'Data SBP Measures'!$AF274&'Data SBP Measures'!$AE274& \" - \"& 'Data SBP Measures'!$U274","v":"No. of Fugitive From Justice FiledCJIS - Arrest/Expunction/Fugitive/Misuse ID/Parole/StateXfer - 137"},{"$f":"_xlfn.XLOOKUP(VALUE(W274),'Data SBP Programs'!O:O,'Data SBP Programs'!S:S)","v":"CJIS - Arrest/Expunction/Fugitive/Misuse ID/Parole/StateXfer"}]
[{"$f":"'Data SBP Measures'!$AI1746&\" - \"&'Data SBP Measures'!$U1746","v":"Alcohol & Drug Classes/Programs - 140"},{"$f":"'Data SBP Measures'!$AF1746","v":"8-Hour AOD Education Class Total # of classes"},{"$f":"'Data SBP Measures'!$T1746","v":"2398"},{"$f":"'Data SBP Measures'!$U1746&B275","v":"1408-Hour AOD Education Class Total # of classes"},{"$f":"'Data SBP Measures'!$Y1746","v":"EACH"},null,null,null,null,null,"Alcohol & Drug Classes/Programs - 140","8-Hour AOD Education Class Total # of classes",null,null,null,null,null,null,null,"1328","137","Y","59","CJIS - Arrest/Expunction/Fugitive/Misuse ID/Parole/StateXfer","EACH","INPUT","ADOPTEDBUD",null,null,null,"CJIS - Arrest/Expunction/Fugitive/Misuse ID/Parole/StateXfer","No. of FFJ Extradited",null,{"$f":"'Data SBP Measures'!$AF275&'Data SBP Measures'!$AE275& \" - \"& 'Data SBP Measures'!$U275","v":"No. of FFJ ExtraditedCJIS - Arrest/Expunction/Fugitive/Misuse ID/Parole/StateXfer - 137"},{"$f":"_xlfn.XLOOKUP(VALUE(W275),'Data SBP Programs'!O:O,'Data SBP Programs'!S:S)","v":"CJIS - Arrest/Expunction/Fugitive/Misuse ID/Parole/StateXfer"}]
[{"$f":"'Data SBP Measures'!$AI1763&\" - \"&'Data SBP Measures'!$U1763","v":"Alcohol & Drug Classes/Programs - 140"},{"$f":"'Data SBP Measures'!$AF1763","v":"8-Hour Marijuana # of clients completing"},{"$f":"'Data SBP Measures'!$T1763","v":"2414"},{"$f":"'Data SBP Measures'!$U1763&B276","v":"1408-Hour Marijuana # of clients completing"},{"$f":"'Data SBP Measures'!$Y1763","v":"EACH"},null,null,null,null,null,"Alcohol & Drug Classes/Programs - 140","8-Hour Marijuana # of clients completing",null,null,null,null,null,null,null,"1329","137","Y","60","Classification-Records - CSTU / Property\n","EACH","INPUT","ADOPTEDBUD",null,null,null,"Classification-Records - CSTU / Property\n","No. JMT inmate reviews",null,{"$f":"'Data SBP Measures'!$AF276&'Data SBP Measures'!$AE276& \" - \"& 'Data SBP Measures'!$U276","v":"No. JMT inmate reviewsClassification-Records - CSTU / Property\n - 137"},{"$f":"_xlfn.XLOOKUP(VALUE(W276),'Data SBP Programs'!O:O,'Data SBP Programs'!S:S)","v":"Classification-Records - CSTU / Property\n"}]
[{"$f":"'Data SBP Measures'!$AI1762&\" - \"&'Data SBP Measures'!$U1762","v":"Alcohol & Drug Classes/Programs - 140"},{"$f":"'Data SBP Measures'!$AF1762","v":"8-Hour Marijuana # of clients registered"},{"$f":"'Data SBP Measures'!$T1762","v":"2413"},{"$f":"'Data SBP Measures'!$U1762&B277","v":"1408-Hour Marijuana # of clients registered"},{"$f":"'Data SBP Measures'!$Y1762","v":"EACH"},null,null,null,null,null,"Alcohol & Drug Classes/Programs - 140","8-Hour Marijuana # of clients registered",null,null,null,null,null,null,null,"1330","137","Y","60","Classification-Records - CSTU / Property\n","EACH","INPUT","ADOPTEDBUD",null,null,null,"Classification-Records - CSTU / Property\n","No. of Bldg to Bldg inmate moves",null,{"$f":"'Data SBP Measures'!$AF277&'Data SBP Measures'!$AE277& \" - \"& 'Data SBP Measures'!$U277","v":"No. of Bldg to Bldg inmate movesClassification-Records - CSTU / Property\n - 137"},{"$f":"_xlfn.XLOOKUP(VALUE(W277),'Data SBP Programs'!O:O,'Data SBP Programs'!S:S)","v":"Classification-Records - CSTU / Property\n"}]
[{"$f":"'Data SBP Measures'!$AI1764&\" - \"&'Data SBP Measures'!$U1764","v":"Alcohol & Drug Classes/Programs - 140"},{"$f":"'Data SBP Measures'!$AF1764","v":"8-Hour Marijuana Total # of classes"},{"$f":"'Data SBP Measures'!$T1764","v":"2415"},{"$f":"'Data SBP Measures'!$U1764&B278","v":"1408-Hour Marijuana Total # of classes"},{"$f":"'Data SBP Measures'!$Y1764","v":"EACH"},null,null,null,null,null,"Alcohol & Drug Classes/Programs - 140","8-Hour Marijuana Total # of classes",null,null,null,null,null,null,null,"1331","137","Y","60","Classification-Records - CSTU / Property\n","EACH","INPUT","ADOPTEDBUD",null,null,null,"Classification-Records - CSTU / Property\n","No. of in-house moves",null,{"$f":"'Data SBP Measures'!$AF278&'Data SBP Measures'!$AE278& \" - \"& 'Data SBP Measures'!$U278","v":"No. of in-house movesClassification-Records - CSTU / Property\n - 137"},{"$f":"_xlfn.XLOOKUP(VALUE(W278),'Data SBP Programs'!O:O,'Data SBP Programs'!S:S)","v":"Classification-Records - CSTU / Property\n"}]
[{"$f":"'Data SBP Measures'!$AI1760&\" - \"&'Data SBP Measures'!$U1760","v":"Alcohol & Drug Classes/Programs - 140"},{"$f":"'Data SBP Measures'!$AF1760","v":"8-Hour Public Intoxication # of clients completing"},{"$f":"'Data SBP Measures'!$T1760","v":"2411"},{"$f":"'Data SBP Measures'!$U1760&B279","v":"1408-Hour Public Intoxication # of clients completing"},{"$f":"'Data SBP Measures'!$Y1760","v":"EACH"},null,null,null,null,null,"Alcohol & Drug Classes/Programs - 140","8-Hour Public Intoxication # of clients completing",null,null,null,null,null,null,null,"1332","137","Y","60","Classification-Records - CSTU / Property\n","EACH","INPUT","ADOPTEDBUD",null,null,null,"Classification-Records - CSTU / Property\n","No. of inmates classified",null,{"$f":"'Data SBP Measures'!$AF279&'Data SBP Measures'!$AE279& \" - \"& 'Data SBP Measures'!$U279","v":"No. of inmates classifiedClassification-Records - CSTU / Property\n - 137"},{"$f":"_xlfn.XLOOKUP(VALUE(W279),'Data SBP Programs'!O:O,'Data SBP Programs'!S:S)","v":"Classification-Records - CSTU / Property\n"}]
[{"$f":"'Data SBP Measures'!$AI1759&\" - \"&'Data SBP Measures'!$U1759","v":"Alcohol & Drug Classes/Programs - 140"},{"$f":"'Data SBP Measures'!$AF1759","v":"8-Hour Public Intoxication # of clients registered"},{"$f":"'Data SBP Measures'!$T1759","v":"2410"},{"$f":"'Data SBP Measures'!$U1759&B280","v":"1408-Hour Public Intoxication # of clients registered"},{"$f":"'Data SBP Measures'!$Y1759","v":"EACH"},null,null,null,null,null,"Alcohol & Drug Classes/Programs - 140","8-Hour Public Intoxication # of clients registered",null,null,null,null,null,null,null,"1333","137","Y","60","Classification-Records - CSTU / Property\n","EACH","INPUT","ADOPTEDBUD",null,null,null,"Classification-Records - CSTU / Property\n","Transfer CBF - TCCC",null,{"$f":"'Data SBP Measures'!$AF280&'Data SBP Measures'!$AE280& \" - \"& 'Data SBP Measures'!$U280","v":"Transfer CBF - TCCCClassification-Records - CSTU / Property\n - 137"},{"$f":"_xlfn.XLOOKUP(VALUE(W280),'Data SBP Programs'!O:O,'Data SBP Programs'!S:S)","v":"Classification-Records - CSTU / Property\n"}]
[{"$f":"'Data SBP Measures'!$AI1761&\" - \"&'Data SBP Measures'!$U1761","v":"Alcohol & Drug Classes/Programs - 140"},{"$f":"'Data SBP Measures'!$AF1761","v":"8-Hour Public Intoxication Total # of classes"},{"$f":"'Data SBP Measures'!$T1761","v":"2412"},{"$f":"'Data SBP Measures'!$U1761&B281","v":"1408-Hour Public Intoxication Total # of classes"},{"$f":"'Data SBP Measures'!$Y1761","v":"EACH"},null,null,null,null,null,"Alcohol & Drug Classes/Programs - 140","8-Hour Public Intoxication Total # of classes",null,null,null,null,null,null,null,"1334","137","Y","60","Classification-Records - CSTU / Property\n","EACH","INPUT","ADOPTEDBUD",null,null,null,"Classification-Records - CSTU / Property\n","Transfer CBF – TCJ",null,{"$f":"'Data SBP Measures'!$AF281&'Data SBP Measures'!$AE281& \" - \"& 'Data SBP Measures'!$U281","v":"Transfer CBF – TCJClassification-Records - CSTU / Property\n - 137"},{"$f":"_xlfn.XLOOKUP(VALUE(W281),'Data SBP Programs'!O:O,'Data SBP Programs'!S:S)","v":"Classification-Records - CSTU / Property\n"}]
[{"$f":"'Data SBP Measures'!$AI1768&\" - \"&'Data SBP Measures'!$U1768","v":"Alcohol & Drug Classes/Programs - 140"},{"$f":"'Data SBP Measures'!$AF1768","v":"CES “Client Evaluation” % of clients that felt benefited of increased knowledge"},{"$f":"'Data SBP Measures'!$T1768","v":"2419"},{"$f":"'Data SBP Measures'!$U1768&B282","v":"140CES “Client Evaluation” % of clients that felt benefited of increased knowledge"},{"$f":"'Data SBP Measures'!$Y1768","v":"PERCENT"},null,null,null,null,null,"Alcohol & Drug Classes/Programs - 140","CES “Client Evaluation” % of clients that felt benefited of increased knowledge",null,null,null,null,null,null,null,"1335","137","Y","60","Classification-Records - CSTU / Property\n","EACH","INPUT","ADOPTEDBUD",null,null,null,"Classification-Records - CSTU / Property\n","Transfer TCCC – TCJ",null,{"$f":"'Data SBP Measures'!$AF282&'Data SBP Measures'!$AE282& \" - \"& 'Data SBP Measures'!$U282","v":"Transfer TCCC – TCJClassification-Records - CSTU / Property\n - 137"},{"$f":"_xlfn.XLOOKUP(VALUE(W282),'Data SBP Programs'!O:O,'Data SBP Programs'!S:S)","v":"Classification-Records - CSTU / Property\n"}]
[{"$f":"'Data SBP Measures'!$AI1722&\" - \"&'Data SBP Measures'!$U1722","v":"Alcohol & Drug Classes/Programs - 140"},{"$f":"'Data SBP Measures'!$AF1722","v":"ECLASS # of class registrations"},{"$f":"'Data SBP Measures'!$T1722","v":"2376"},{"$f":"'Data SBP Measures'!$U1722&B283","v":"140ECLASS # of class registrations"},{"$f":"'Data SBP Measures'!$Y1722","v":"EACH"},null,null,null,null,null,"Alcohol & Drug Classes/Programs - 140","ECLASS # of class registrations",null,null,null,null,null,null,null,"1336","137","Y","60","Classification-Records - CSTU / Property\n","EACH","INPUT","ADOPTEDBUD",null,null,null,"Classification-Records - CSTU / Property\n","Transfer TCJ – TCCC",null,{"$f":"'Data SBP Measures'!$AF283&'Data SBP Measures'!$AE283& \" - \"& 'Data SBP Measures'!$U283","v":"Transfer TCJ – TCCCClassification-Records - CSTU / Property\n - 137"},{"$f":"_xlfn.XLOOKUP(VALUE(W283),'Data SBP Programs'!O:O,'Data SBP Programs'!S:S)","v":"Classification-Records - CSTU / Property\n"}]
[{"$f":"'Data SBP Measures'!$AI1731&\" - \"&'Data SBP Measures'!$U1731","v":"Alcohol & Drug Classes/Programs - 140"},{"$f":"'Data SBP Measures'!$AF1731","v":"Pre-Test/Post Test % increase in Knowledge"},{"$f":"'Data SBP Measures'!$T1731","v":"2384"},{"$f":"'Data SBP Measures'!$U1731&B284","v":"140Pre-Test/Post Test % increase in Knowledge"},{"$f":"'Data SBP Measures'!$Y1731","v":"PERCENT"},null,null,null,null,null,"Alcohol & Drug Classes/Programs - 140","Pre-Test/Post Test % increase in Knowledge",null,null,null,null,null,null,null,"1337","137","Y","60","Classification-Records - CSTU / Property\n","EACH","INPUT","ADOPTEDBUD",null,null,null,"Classification-Records - CSTU / Property\n","No. of inmate PREA interviews",null,{"$f":"'Data SBP Measures'!$AF284&'Data SBP Measures'!$AE284& \" - \"& 'Data SBP Measures'!$U284","v":"No. of inmate PREA interviewsClassification-Records - CSTU / Property\n - 137"},{"$f":"_xlfn.XLOOKUP(VALUE(W284),'Data SBP Programs'!O:O,'Data SBP Programs'!S:S)","v":"Classification-Records - CSTU / Property\n"}]
[{"$f":"'Data SBP Measures'!$AI1743&\" - \"&'Data SBP Measures'!$U1743","v":"Alcohol & Drug Classes/Programs - 140"},{"$f":"'Data SBP Measures'!$AF1743","v":"Pre-Test/Post Test % increase in Knowledge"},{"$f":"'Data SBP Measures'!$T1743","v":"2395"},{"$f":"'Data SBP Measures'!$U1743&B285","v":"140Pre-Test/Post Test % increase in Knowledge"},{"$f":"'Data SBP Measures'!$Y1743","v":"PERCENT"},null,null,null,null,null,"Alcohol & Drug Classes/Programs - 140","Pre-Test/Post Test % increase in Knowledge",null,null,null,null,null,null,null,"1338","137","Y","60","Classification-Records - CSTU / Property\n","EACH","INPUT","ADOPTEDBUD",null,null,null,"Classification-Records - CSTU / Property\n","No. of inmate reclasses due to PREA",null,{"$f":"'Data SBP Measures'!$AF285&'Data SBP Measures'!$AE285& \" - \"& 'Data SBP Measures'!$U285","v":"No. of inmate reclasses due to PREAClassification-Records - CSTU / Property\n - 137"},{"$f":"_xlfn.XLOOKUP(VALUE(W285),'Data SBP Programs'!O:O,'Data SBP Programs'!S:S)","v":"Classification-Records - CSTU / Property\n"}]
[{"$f":"'Data SBP Measures'!$AI1757&\" - \"&'Data SBP Measures'!$U1757","v":"Alcohol & Drug Classes/Programs - 140"},{"$f":"'Data SBP Measures'!$AF1757","v":"Pre-Test/Post Test % increase in Knowledge"},{"$f":"'Data SBP Measures'!$T1757","v":"2409"},{"$f":"'Data SBP Measures'!$U1757&B286","v":"140Pre-Test/Post Test % increase in Knowledge"},{"$f":"'Data SBP Measures'!$Y1757","v":"PERCENT"},null,null,null,null,null,"Alcohol & Drug Classes/Programs - 140","Pre-Test/Post Test % increase in Knowledge",null,null,null,null,null,null,null,"1339","137","Y","81","Human Resources - Recruiting","HOURS","INPUT","ADOPTEDBUD",null,null,null,"Human Resources - Recruiting","No. of recruitment opportunities",null,{"$f":"'Data SBP Measures'!$AF286&'Data SBP Measures'!$AE286& \" - \"& 'Data SBP Measures'!$U286","v":"No. of recruitment opportunitiesHuman Resources - Recruiting - 137"},{"$f":"_xlfn.XLOOKUP(VALUE(W286),'Data SBP Programs'!O:O,'Data SBP Programs'!S:S)","v":"Human Resources - Recruiting"}]
[{"$f":"'Data SBP Measures'!$AI1721&\" - \"&'Data SBP Measures'!$U1721","v":"Alcohol & Drug Classes/Programs - 140"},{"$f":"'Data SBP Measures'!$AF1721","v":"Total # of AOD classes"},{"$f":"'Data SBP Measures'!$T1721","v":"2375"},{"$f":"'Data SBP Measures'!$U1721&B287","v":"140Total # of AOD classes"},{"$f":"'Data SBP Measures'!$Y1721","v":"EACH"},null,null,null,null,null,"Alcohol & Drug Classes/Programs - 140","Total # of AOD classes",null,null,null,null,null,null,null,"1340","137","Y","81","Human Resources - Recruiting","EACH","INPUT","ADOPTEDBUD",null,null,null,"Human Resources - Recruiting","Staff hrs on recruitment",null,{"$f":"'Data SBP Measures'!$AF287&'Data SBP Measures'!$AE287& \" - \"& 'Data SBP Measures'!$U287","v":"Staff hrs on recruitmentHuman Resources - Recruiting - 137"},{"$f":"_xlfn.XLOOKUP(VALUE(W287),'Data SBP Programs'!O:O,'Data SBP Programs'!S:S)","v":"Human Resources - Recruiting"}]
[{"$f":"'Data SBP Measures'!$AI1720&\" - \"&'Data SBP Measures'!$U1720","v":"Alcohol & Drug Classes/Programs - 140"},{"$f":"'Data SBP Measures'!$AF1720","v":"Total # of clients completing AOD classes"},{"$f":"'Data SBP Measures'!$T1720","v":"2374"},{"$f":"'Data SBP Measures'!$U1720&B288","v":"140Total # of clients completing AOD classes"},{"$f":"'Data SBP Measures'!$Y1720","v":"EACH"},null,null,null,null,null,"Alcohol & Drug Classes/Programs - 140","Total # of clients completing AOD classes",null,null,null,null,null,null,null,"1341","137","Y","64","Correctional Security","Y/N","INPUT","ADOPTEDBUD",null,null,null,"Correctional Security","Jail Standards Certification Yes/No (1 = Y, 0=N)",null,{"$f":"'Data SBP Measures'!$AF288&'Data SBP Measures'!$AE288& \" - \"& 'Data SBP Measures'!$U288","v":"Jail Standards Certification Yes/No (1 = Y, 0=N)Correctional Security - 137"},{"$f":"_xlfn.XLOOKUP(VALUE(W288),'Data SBP Programs'!O:O,'Data SBP Programs'!S:S)","v":"Correctional Security"}]
[{"$f":"'Data SBP Measures'!$AI1719&\" - \"&'Data SBP Measures'!$U1719","v":"Alcohol & Drug Classes/Programs - 140"},{"$f":"'Data SBP Measures'!$AF1719","v":"Total # of clients registered in AOD classes"},{"$f":"'Data SBP Measures'!$T1719","v":"2373"},{"$f":"'Data SBP Measures'!$U1719&B289","v":"140Total # of clients registered in AOD classes"},{"$f":"'Data SBP Measures'!$Y1719","v":"EACH"},null,null,null,null,null,"Alcohol & Drug Classes/Programs - 140","Total # of clients registered in AOD classes",null,null,null,null,null,null,null,"1341","137","Y","64","Correctional Security","Y/N","INPUT","ADOPTEDBUD",null,null,null,"Correctional Security","Jail Standards Certification Yes/No (1 = Y, 0=N)",null,{"$f":"'Data SBP Measures'!$AF289&'Data SBP Measures'!$AE289& \" - \"& 'Data SBP Measures'!$U289","v":"Jail Standards Certification Yes/No (1 = Y, 0=N)Correctional Security - 137"},{"$f":"_xlfn.XLOOKUP(VALUE(W289),'Data SBP Programs'!O:O,'Data SBP Programs'!S:S)","v":"Correctional Security"}]
[{"$f":"'Data SBP Measures'!$AI1723&\" - \"&'Data SBP Measures'!$U1723","v":"Alcohol & Drug Classes/Programs - 140"},{"$f":"'Data SBP Measures'!$AF1723","v":"Total # of Counselor hours saved"},{"$f":"'Data SBP Measures'!$T1723","v":"2377"},{"$f":"'Data SBP Measures'!$U1723&B290","v":"140Total # of Counselor hours saved"},{"$f":"'Data SBP Measures'!$Y1723","v":"HOURS"},null,null,null,null,null,"Alcohol & Drug Classes/Programs - 140","Total # of Counselor hours saved",null,null,null,null,null,null,null,"1341","137","Y","64","Correctional Security","Y/N","INPUT","ADOPTEDBUD",null,null,null,"Correctional Security","Jail Standards Certification Yes/No (1 = Y, 0=N)",null,{"$f":"'Data SBP Measures'!$AF290&'Data SBP Measures'!$AE290& \" - \"& 'Data SBP Measures'!$U290","v":"Jail Standards Certification Yes/No (1 = Y, 0=N)Correctional Security - 137"},{"$f":"_xlfn.XLOOKUP(VALUE(W290),'Data SBP Programs'!O:O,'Data SBP Programs'!S:S)","v":"Correctional Security"}]
[{"$f":"'Data SBP Measures'!$AI2241&\" - \"&'Data SBP Measures'!$U2241","v":"Application Development & Production Support - 112"},{"$f":"'Data SBP Measures'!$AF2241","v":"# of dashboards/visualizations created"},{"$f":"'Data SBP Measures'!$T2241","v":"2763"},{"$f":"'Data SBP Measures'!$U2241&B291","v":"112# of dashboards/visualizations created"},{"$f":"'Data SBP Measures'!$Y2241","v":"EACH"},null,null,null,null,null,"Application Development & Production Support - 112","# of dashboards/visualizations created",null,null,null,null,null,null,null,"1346","137","Y","67","Courthouse Security","EACH","INPUT","ADOPTEDBUD",null,null,null,"Courthouse Security","No. of arrests involving weapons or drugs",null,{"$f":"'Data SBP Measures'!$AF291&'Data SBP Measures'!$AE291& \" - \"& 'Data SBP Measures'!$U291","v":"No. of arrests involving weapons or drugsCourthouse Security - 137"},{"$f":"_xlfn.XLOOKUP(VALUE(W291),'Data SBP Programs'!O:O,'Data SBP Programs'!S:S)","v":"Courthouse Security"}]
[{"$f":"'Data SBP Measures'!$AI2243&\" - \"&'Data SBP Measures'!$U2243","v":"Application Development & Production Support - 112"},{"$f":"'Data SBP Measures'!$AF2243","v":"# of enhancements, bug fixes, and automated solutions implemented"},{"$f":"'Data SBP Measures'!$T2243","v":"2767"},{"$f":"'Data SBP Measures'!$U2243&B292","v":"112# of enhancements, bug fixes, and automated solutions implemented"},{"$f":"'Data SBP Measures'!$Y2243","v":"EACH"},null,null,null,null,null,"Application Development & Production Support - 112","# of enhancements, bug fixes, and automated solutions implemented",null,null,null,null,null,null,null,"1346","137","Y","67","Courthouse Security","EACH","INPUT","ADOPTEDBUD",null,null,null,"Courthouse Security","No. of arrests involving weapons or drugs",null,{"$f":"'Data SBP Measures'!$AF292&'Data SBP Measures'!$AE292& \" - \"& 'Data SBP Measures'!$U292","v":"No. of arrests involving weapons or drugsCourthouse Security - 137"},{"$f":"_xlfn.XLOOKUP(VALUE(W292),'Data SBP Programs'!O:O,'Data SBP Programs'!S:S)","v":"Courthouse Security"}]
[{"$f":"'Data SBP Measures'!$AI2242&\" - \"&'Data SBP Measures'!$U2242","v":"Application Development & Production Support - 112"},{"$f":"'Data SBP Measures'!$AF2242","v":"# staff hours on incidents"},{"$f":"'Data SBP Measures'!$T2242","v":"2765"},{"$f":"'Data SBP Measures'!$U2242&B293","v":"112# staff hours on incidents"},{"$f":"'Data SBP Measures'!$Y2242","v":"EACH"},null,null,null,null,null,"Application Development & Production Support - 112","# staff hours on incidents",null,null,null,null,null,null,null,"1347","137","Y","67","Courthouse Security","EACH","INPUT","ADOPTEDBUD",null,null,null,"Courthouse Security","No. of citations issued  by Courthouse Security",null,{"$f":"'Data SBP Measures'!$AF293&'Data SBP Measures'!$AE293& \" - \"& 'Data SBP Measures'!$U293","v":"No. of citations issued  by Courthouse SecurityCourthouse Security - 137"},{"$f":"_xlfn.XLOOKUP(VALUE(W293),'Data SBP Programs'!O:O,'Data SBP Programs'!S:S)","v":"Courthouse Security"}]
[{"$f":"'Data SBP Measures'!$AI2238&\" - \"&'Data SBP Measures'!$U2238","v":"Application Development & Production Support - 112"},{"$f":"'Data SBP Measures'!$AF2238","v":"% EDS incidents acknowledged"},{"$f":"'Data SBP Measures'!$T2238","v":"2760"},{"$f":"'Data SBP Measures'!$U2238&B294","v":"112% EDS incidents acknowledged"},{"$f":"'Data SBP Measures'!$Y2238","v":"PERCENT"},null,null,null,null,null,"Application Development & Production Support - 112","% EDS incidents acknowledged",null,null,null,null,null,null,null,"1347","137","Y","67","Courthouse Security","EACH","INPUT","ADOPTEDBUD",null,null,null,"Courthouse Security","No. of citations issued  by Courthouse Security",null,{"$f":"'Data SBP Measures'!$AF294&'Data SBP Measures'!$AE294& \" - \"& 'Data SBP Measures'!$U294","v":"No. of citations issued  by Courthouse SecurityCourthouse Security - 137"},{"$f":"_xlfn.XLOOKUP(VALUE(W294),'Data SBP Programs'!O:O,'Data SBP Programs'!S:S)","v":"Courthouse Security"}]
[{"$f":"'Data SBP Measures'!$AI2239&\" - \"&'Data SBP Measures'!$U2239","v":"Application Development & Production Support - 112"},{"$f":"'Data SBP Measures'!$AF2239","v":"% EDS restored P1 within 2 hours"},{"$f":"'Data SBP Measures'!$T2239","v":"2761"},{"$f":"'Data SBP Measures'!$U2239&B295","v":"112% EDS restored P1 within 2 hours"},{"$f":"'Data SBP Measures'!$Y2239","v":"PERCENT"},null,null,null,null,null,"Application Development & Production Support - 112","% EDS restored P1 within 2 hours",null,null,null,null,null,null,null,"1348","137","Y","67","Courthouse Security","EACH","INPUT","ADOPTEDBUD",null,null,null,"Courthouse Security","No. of other arrests",null,{"$f":"'Data SBP Measures'!$AF295&'Data SBP Measures'!$AE295& \" - \"& 'Data SBP Measures'!$U295","v":"No. of other arrestsCourthouse Security - 137"},{"$f":"_xlfn.XLOOKUP(VALUE(W295),'Data SBP Programs'!O:O,'Data SBP Programs'!S:S)","v":"Courthouse Security"}]
[{"$f":"'Data SBP Measures'!$AI2240&\" - \"&'Data SBP Measures'!$U2240","v":"Application Development & Production Support - 112"},{"$f":"'Data SBP Measures'!$AF2240","v":"% EDS restored P2 within 4 hours"},{"$f":"'Data SBP Measures'!$T2240","v":"2762"},{"$f":"'Data SBP Measures'!$U2240&B296","v":"112% EDS restored P2 within 4 hours"},{"$f":"'Data SBP Measures'!$Y2240","v":"PERCENT"},null,null,null,null,null,"Application Development & Production Support - 112","% EDS restored P2 within 4 hours",null,null,null,null,null,null,null,"1348","137","Y","67","Courthouse Security","EACH","INPUT","ADOPTEDBUD",null,null,null,"Courthouse Security","No. of other arrests",null,{"$f":"'Data SBP Measures'!$AF296&'Data SBP Measures'!$AE296& \" - \"& 'Data SBP Measures'!$U296","v":"No. of other arrestsCourthouse Security - 137"},{"$f":"_xlfn.XLOOKUP(VALUE(W296),'Data SBP Programs'!O:O,'Data SBP Programs'!S:S)","v":"Courthouse Security"}]
[{"$f":"'Data SBP Measures'!$AI2484&\" - \"&'Data SBP Measures'!$U2484","v":"Application Development & Production Support - 112"},{"$f":"'Data SBP Measures'!$AF2484","v":"Average # of hours to resolve incidents"},{"$f":"'Data SBP Measures'!$T2484","v":"313"},{"$f":"'Data SBP Measures'!$U2484&B297","v":"112Average # of hours to resolve incidents"},{"$f":"'Data SBP Measures'!$Y2484","v":"HOURS"},null,null,null,null,null,"Application Development & Production Support - 112","Average # of hours to resolve incidents",null,null,null,null,null,null,null,"1349","137","Y","67","Courthouse Security","EACH","INPUT","ADOPTEDBUD",null,null,null,"Courthouse Security","No. of security screenings",null,{"$f":"'Data SBP Measures'!$AF297&'Data SBP Measures'!$AE297& \" - \"& 'Data SBP Measures'!$U297","v":"No. of security screeningsCourthouse Security - 137"},{"$f":"_xlfn.XLOOKUP(VALUE(W297),'Data SBP Programs'!O:O,'Data SBP Programs'!S:S)","v":"Courthouse Security"}]
[{"$f":"'Data SBP Measures'!$AI2244&\" - \"&'Data SBP Measures'!$U2244","v":"Application Development & Production Support - 112"},{"$f":"'Data SBP Measures'!$AF2244","v":"Satisfaction survey value"},{"$f":"'Data SBP Measures'!$T2244","v":"2769"},{"$f":"'Data SBP Measures'!$U2244&B298","v":"112Satisfaction survey value"},{"$f":"'Data SBP Measures'!$Y2244","v":"PERCENT"},null,null,null,null,null,"Application Development & Production Support - 112","Satisfaction survey value",null,null,null,null,null,null,null,"1349","137","Y","67","Courthouse Security","EACH","INPUT","ADOPTEDBUD",null,null,null,"Courthouse Security","No. of security screenings",null,{"$f":"'Data SBP Measures'!$AF298&'Data SBP Measures'!$AE298& \" - \"& 'Data SBP Measures'!$U298","v":"No. of security screeningsCourthouse Security - 137"},{"$f":"_xlfn.XLOOKUP(VALUE(W298),'Data SBP Programs'!O:O,'Data SBP Programs'!S:S)","v":"Courthouse Security"}]
[{"$f":"'Data SBP Measures'!$AI2475&\" - \"&'Data SBP Measures'!$U2475","v":"Application Development & Production Support - 112"},{"$f":"'Data SBP Measures'!$AF2475","v":"Total # of Priority  1 & 2 Incidents"},{"$f":"'Data SBP Measures'!$T2475","v":"312"},{"$f":"'Data SBP Measures'!$U2475&B299","v":"112Total # of Priority  1 & 2 Incidents"},{"$f":"'Data SBP Measures'!$Y2475","v":"EACH"},null,null,null,null,null,"Application Development & Production Support - 112","Total # of Priority  1 & 2 Incidents",null,null,null,null,null,null,null,"1356","137","Y","70","Crisis Intervention Team","EACH","INPUT","ADOPTEDBUD",null,null,null,"Crisis Intervention Team","Calls generating a case number",null,{"$f":"'Data SBP Measures'!$AF299&'Data SBP Measures'!$AE299& \" - \"& 'Data SBP Measures'!$U299","v":"Calls generating a case numberCrisis Intervention Team - 137"},{"$f":"_xlfn.XLOOKUP(VALUE(W299),'Data SBP Programs'!O:O,'Data SBP Programs'!S:S)","v":"Crisis Intervention Team"}]
[{"$f":"'Data SBP Measures'!$AI2464&\" - \"&'Data SBP Measures'!$U2464","v":"Application Development & Production Support - 112"},{"$f":"'Data SBP Measures'!$AF2464","v":"Total staff hours spent on Priority Incidents"},{"$f":"'Data SBP Measures'!$T2464","v":"311"},{"$f":"'Data SBP Measures'!$U2464&B300","v":"112Total staff hours spent on Priority Incidents"},{"$f":"'Data SBP Measures'!$Y2464","v":"HOURS"},null,null,null,null,null,"Application Development & Production Support - 112","Total staff hours spent on Priority Incidents",null,null,null,null,null,null,null,"1357","137","Y","70","Crisis Intervention Team","EACH","INPUT","ADOPTEDBUD",null,null,null,"Crisis Intervention Team","MHU calls inside the city limits",null,{"$f":"'Data SBP Measures'!$AF300&'Data SBP Measures'!$AE300& \" - \"& 'Data SBP Measures'!$U300","v":"MHU calls inside the city limitsCrisis Intervention Team - 137"},{"$f":"_xlfn.XLOOKUP(VALUE(W300),'Data SBP Programs'!O:O,'Data SBP Programs'!S:S)","v":"Crisis Intervention Team"}]
[{"$f":"'Data SBP Measures'!$AI2930&\" - \"&'Data SBP Measures'!$U2930","v":"Archives - 112"},{"$f":"'Data SBP Measures'!$AF2930","v":"Cu. Ft. Archival Documents Preserved"},{"$f":"'Data SBP Measures'!$T2930","v":"3442"},{"$f":"'Data SBP Measures'!$U2930&B301","v":"112Cu. Ft. Archival Documents Preserved"},{"$f":"'Data SBP Measures'!$Y2930","v":"EACH"},null,null,null,null,null,"Archives - 112","Cu. Ft. Archival Documents Preserved",null,null,null,null,null,null,null,"1358","137","Y","70","Crisis Intervention Team","EACH","INPUT","ADOPTEDBUD",null,null,null,"Crisis Intervention Team","MHU calls outside the city limits",null,{"$f":"'Data SBP Measures'!$AF301&'Data SBP Measures'!$AE301& \" - \"& 'Data SBP Measures'!$U301","v":"MHU calls outside the city limitsCrisis Intervention Team - 137"},{"$f":"_xlfn.XLOOKUP(VALUE(W301),'Data SBP Programs'!O:O,'Data SBP Programs'!S:S)","v":"Crisis Intervention Team"}]
[{"$f":"'Data SBP Measures'!$AI2932&\" - \"&'Data SBP Measures'!$U2932","v":"Archives - 112"},{"$f":"'Data SBP Measures'!$AF2932","v":"History Day"},{"$f":"'Data SBP Measures'!$T2932","v":"3444"},{"$f":"'Data SBP Measures'!$U2932&B302","v":"112History Day"},{"$f":"'Data SBP Measures'!$Y2932","v":"EACH"},null,null,null,null,null,"Archives - 112","History Day",null,null,null,null,null,null,null,"1359","137","Y","70","Crisis Intervention Team","EACH","INPUT","ADOPTEDBUD",null,null,null,"Crisis Intervention Team","No. of people deferred from jail",null,{"$f":"'Data SBP Measures'!$AF302&'Data SBP Measures'!$AE302& \" - \"& 'Data SBP Measures'!$U302","v":"No. of people deferred from jailCrisis Intervention Team - 137"},{"$f":"_xlfn.XLOOKUP(VALUE(W302),'Data SBP Programs'!O:O,'Data SBP Programs'!S:S)","v":"Crisis Intervention Team"}]
[{"$f":"'Data SBP Measures'!$AI2931&\" - \"&'Data SBP Measures'!$U2931","v":"Archives - 112"},{"$f":"'Data SBP Measures'!$AF2931","v":"Researchers/Patrons Served"},{"$f":"'Data SBP Measures'!$T2931","v":"3443"},{"$f":"'Data SBP Measures'!$U2931&B303","v":"112Researchers/Patrons Served"},{"$f":"'Data SBP Measures'!$Y2931","v":"EACH"},null,null,null,null,null,"Archives - 112","Researchers/Patrons Served",null,null,null,null,null,null,null,"1360","137","Y","70","Crisis Intervention Team","EACH","INPUT","ADOPTEDBUD",null,null,null,"Crisis Intervention Team","No. transported to mental health facilities",null,{"$f":"'Data SBP Measures'!$AF303&'Data SBP Measures'!$AE303& \" - \"& 'Data SBP Measures'!$U303","v":"No. transported to mental health facilitiesCrisis Intervention Team - 137"},{"$f":"_xlfn.XLOOKUP(VALUE(W303),'Data SBP Programs'!O:O,'Data SBP Programs'!S:S)","v":"Crisis Intervention Team"}]
[{"$f":"'Data SBP Measures'!$AI651&\" - \"&'Data SBP Measures'!$U651","v":"Auditor's Office - 106"},{"$f":"'Data SBP Measures'!$AF651","v":"# of grant reports"},{"$f":"'Data SBP Measures'!$T651","v":"17"},{"$f":"'Data SBP Measures'!$U651&B304","v":"106# of grant reports"},{"$f":"'Data SBP Measures'!$Y651","v":"EACH"},null,null,null,null,null,"Auditor's Office - 106","# of grant reports",null,null,null,null,null,null,null,"1361","137","Y","70","Crisis Intervention Team","HOURS","INPUT","ADOPTEDBUD",null,null,null,"Crisis Intervention Team","Staff hrs at ASH as baliff",null,{"$f":"'Data SBP Measures'!$AF304&'Data SBP Measures'!$AE304& \" - \"& 'Data SBP Measures'!$U304","v":"Staff hrs at ASH as baliffCrisis Intervention Team - 137"},{"$f":"_xlfn.XLOOKUP(VALUE(W304),'Data SBP Programs'!O:O,'Data SBP Programs'!S:S)","v":"Crisis Intervention Team"}]
[{"$f":"'Data SBP Measures'!$AI468&\" - \"&'Data SBP Measures'!$U468","v":"Auditor's Office - 106"},{"$f":"'Data SBP Measures'!$AF468","v":"# of grants"},{"$f":"'Data SBP Measures'!$T468","v":"15"},{"$f":"'Data SBP Measures'!$U468&B305","v":"106# of grants"},{"$f":"'Data SBP Measures'!$Y468","v":"EACH"},null,null,null,null,null,"Auditor's Office - 106","# of grants",null,null,null,null,null,null,null,"1362","137","Y","72","Dispatch / Communication","EACH","INPUT","ADOPTEDBUD",null,null,null,"Dispatch / Communication","No. of incoming calls",null,{"$f":"'Data SBP Measures'!$AF305&'Data SBP Measures'!$AE305& \" - \"& 'Data SBP Measures'!$U305","v":"No. of incoming callsDispatch / Communication - 137"},{"$f":"_xlfn.XLOOKUP(VALUE(W305),'Data SBP Programs'!O:O,'Data SBP Programs'!S:S)","v":"Dispatch / Communication"}]
[{"$f":"'Data SBP Measures'!$AI2010&\" - \"&'Data SBP Measures'!$U2010","v":"Auditor's Office - 106"},{"$f":"'Data SBP Measures'!$AF2010","v":"# of SAP improvement work items completed (sunset after 2026 actuals)"},{"$f":"'Data SBP Measures'!$T2010","v":"26"},{"$f":"'Data SBP Measures'!$U2010&B306","v":"106# of SAP improvement work items completed (sunset after 2026 actuals)"},{"$f":"'Data SBP Measures'!$Y2010","v":"EACH"},null,null,null,null,null,"Auditor's Office - 106","# of SAP improvement work items completed (sunset after 2026 actuals)",null,null,null,null,null,null,null,"1363","137","Y","72","Dispatch / Communication","EACH","INPUT","ADOPTEDBUD",null,null,null,"Dispatch / Communication","No. of incoming admin calls",null,{"$f":"'Data SBP Measures'!$AF306&'Data SBP Measures'!$AE306& \" - \"& 'Data SBP Measures'!$U306","v":"No. of incoming admin callsDispatch / Communication - 137"},{"$f":"_xlfn.XLOOKUP(VALUE(W306),'Data SBP Programs'!O:O,'Data SBP Programs'!S:S)","v":"Dispatch / Communication"}]
[{"$f":"'Data SBP Measures'!$AI1849&\" - \"&'Data SBP Measures'!$U1849","v":"Auditor's Office - 106"},{"$f":"'Data SBP Measures'!$AF1849","v":"# of SAP upgrade/enhancement work items completed (sunset after 2026 actuals)"},{"$f":"'Data SBP Measures'!$T1849","v":"25"},{"$f":"'Data SBP Measures'!$U1849&B307","v":"106# of SAP upgrade/enhancement work items completed (sunset after 2026 actuals)"},{"$f":"'Data SBP Measures'!$Y1849","v":"EACH"},null,null,null,null,null,"Auditor's Office - 106","# of SAP upgrade/enhancement work items completed (sunset after 2026 actuals)",null,null,null,null,null,null,null,"1364","137","Y","72","Dispatch / Communication","EACH","INPUT","ADOPTEDBUD",null,null,null,"Dispatch / Communication","No. of units per radio operators",null,{"$f":"'Data SBP Measures'!$AF307&'Data SBP Measures'!$AE307& \" - \"& 'Data SBP Measures'!$U307","v":"No. of units per radio operatorsDispatch / Communication - 137"},{"$f":"_xlfn.XLOOKUP(VALUE(W307),'Data SBP Programs'!O:O,'Data SBP Programs'!S:S)","v":"Dispatch / Communication"}]
[{"$f":"'Data SBP Measures'!$AI260&\" - \"&'Data SBP Measures'!$U260","v":"Auditor's Office - 106"},{"$f":"'Data SBP Measures'!$AF260","v":"% employees using direct deposit instead of paper check"},{"$f":"'Data SBP Measures'!$T260","v":"13"},{"$f":"'Data SBP Measures'!$U260&B308","v":"106% employees using direct deposit instead of paper check"},{"$f":"'Data SBP Measures'!$Y260","v":"PERCENT"},null,null,null,null,null,"Auditor's Office - 106","% employees using direct deposit instead of paper check",null,null,null,null,null,null,null,"1365","137","Y","72","Dispatch / Communication","DAYS","INPUT","ADOPTEDBUD",null,null,null,"Dispatch / Communication","Average days per month non-compliant with NENA standards",null,{"$f":"'Data SBP Measures'!$AF308&'Data SBP Measures'!$AE308& \" - \"& 'Data SBP Measures'!$U308","v":"Average days per month non-compliant with NENA standardsDispatch / Communication - 137"},{"$f":"_xlfn.XLOOKUP(VALUE(W308),'Data SBP Programs'!O:O,'Data SBP Programs'!S:S)","v":"Dispatch / Communication"}]
[{"$f":"'Data SBP Measures'!$AI541&\" - \"&'Data SBP Measures'!$U541","v":"Auditor's Office - 106"},{"$f":"'Data SBP Measures'!$AF541","v":"% Grantor reports on time"},{"$f":"'Data SBP Measures'!$T541","v":"16"},{"$f":"'Data SBP Measures'!$U541&B309","v":"106% Grantor reports on time"},{"$f":"'Data SBP Measures'!$Y541","v":"PERCENT"},null,null,null,null,null,"Auditor's Office - 106","% Grantor reports on time",null,null,null,null,null,null,null,"1366","137","Y","79","Traffic - CVE / DWI / HEAT / Impound / MOTORS","EACH","INPUT","ADOPTEDBUD",null,null,null,"Traffic - CVE / DWI / HEAT / Impound / MOTORS","No. of violator contacts (County)",null,{"$f":"'Data SBP Measures'!$AF309&'Data SBP Measures'!$AE309& \" - \"& 'Data SBP Measures'!$U309","v":"No. of violator contacts (County)Traffic - CVE / DWI / HEAT / Impound / MOTORS - 137"},{"$f":"_xlfn.XLOOKUP(VALUE(W309),'Data SBP Programs'!O:O,'Data SBP Programs'!S:S)","v":"Traffic - CVE / DWI / HEAT / Impound / MOTORS"}]
[{"$f":"'Data SBP Measures'!$AI333&\" - \"&'Data SBP Measures'!$U333","v":"Auditor's Office - 106"},{"$f":"'Data SBP Measures'!$AF333","v":"% of annual manual checks created to address payroll errors"},{"$f":"'Data SBP Measures'!$T333","v":"14"},{"$f":"'Data SBP Measures'!$U333&B310","v":"106% of annual manual checks created to address payroll errors"},{"$f":"'Data SBP Measures'!$Y333","v":"PERCENT"},null,null,null,null,null,"Auditor's Office - 106","% of annual manual checks created to address payroll errors",null,null,null,null,null,null,null,"1367","137","Y","79","Traffic - CVE / DWI / HEAT / Impound / MOTORS","EACH","INPUT","ADOPTEDBUD",null,null,null,"Traffic - CVE / DWI / HEAT / Impound / MOTORS","No. of DWI arrests (unit specific)",null,{"$f":"'Data SBP Measures'!$AF310&'Data SBP Measures'!$AE310& \" - \"& 'Data SBP Measures'!$U310","v":"No. of DWI arrests (unit specific)Traffic - CVE / DWI / HEAT / Impound / MOTORS - 137"},{"$f":"_xlfn.XLOOKUP(VALUE(W310),'Data SBP Programs'!O:O,'Data SBP Programs'!S:S)","v":"Traffic - CVE / DWI / HEAT / Impound / MOTORS"}]
[{"$f":"'Data SBP Measures'!$AI2038&\" - \"&'Data SBP Measures'!$U2038","v":"Auditor's Office - 106"},{"$f":"'Data SBP Measures'!$AF2038","v":"% of vendors payments paid electronically (ACH/EFT)"},{"$f":"'Data SBP Measures'!$T2038","v":"2621"},{"$f":"'Data SBP Measures'!$U2038&B311","v":"106% of vendors payments paid electronically (ACH/EFT)"},{"$f":"'Data SBP Measures'!$Y2038","v":"PERCENT"},null,null,null,null,null,"Auditor's Office - 106","% of vendors payments paid electronically (ACH/EFT)",null,null,null,null,null,null,null,"1368","137","Y","79","Traffic - CVE / DWI / HEAT / Impound / MOTORS","EACH","INPUT","ADOPTEDBUD",null,null,null,"Traffic - CVE / DWI / HEAT / Impound / MOTORS","No. of DWI arrests (County)",null,{"$f":"'Data SBP Measures'!$AF311&'Data SBP Measures'!$AE311& \" - \"& 'Data SBP Measures'!$U311","v":"No. of DWI arrests (County)Traffic - CVE / DWI / HEAT / Impound / MOTORS - 137"},{"$f":"_xlfn.XLOOKUP(VALUE(W311),'Data SBP Programs'!O:O,'Data SBP Programs'!S:S)","v":"Traffic - CVE / DWI / HEAT / Impound / MOTORS"}]
[{"$f":"'Data SBP Measures'!$AI3475&\" - \"&'Data SBP Measures'!$U3475","v":"Auditor's Office - 106"},{"$f":"'Data SBP Measures'!$AF3475","v":"% paid invoiced amts. compliant w/Prompt Payment Act req'ts"},{"$f":"'Data SBP Measures'!$T3475","v":"8"},{"$f":"'Data SBP Measures'!$U3475&B312","v":"106% paid invoiced amts. compliant w/Prompt Payment Act req'ts"},{"$f":"'Data SBP Measures'!$Y3475","v":"PERCENT"},null,null,null,null,null,"Auditor's Office - 106","% paid invoiced amts. compliant w/Prompt Payment Act req'ts",null,null,null,null,null,null,null,"1369","137","Y","74","Estray","EACH","INPUT","ADOPTEDBUD",null,null,null,"Estray","No. of impounded animals",null,{"$f":"'Data SBP Measures'!$AF312&'Data SBP Measures'!$AE312& \" - \"& 'Data SBP Measures'!$U312","v":"No. of impounded animalsEstray - 137"},{"$f":"_xlfn.XLOOKUP(VALUE(W312),'Data SBP Programs'!O:O,'Data SBP Programs'!S:S)","v":"Estray"}]
[{"$f":"'Data SBP Measures'!$AI2950&\" - \"&'Data SBP Measures'!$U2950","v":"Auditor's Office - 106"},{"$f":"'Data SBP Measures'!$AF2950","v":"% SAP environment in total effort migrated to new systems by 12/31/2027"},{"$f":"'Data SBP Measures'!$T2950","v":"3472"},{"$f":"'Data SBP Measures'!$U2950&B313","v":"106% SAP environment in total effort migrated to new systems by 12/31/2027"},{"$f":"'Data SBP Measures'!$Y2950","v":"PERCENT"},null,null,null,null,null,"Auditor's Office - 106","% SAP environment in total effort migrated to new systems by 12/31/2027",null,null,null,null,null,null,null,"1370","137","Y","74","Estray","EACH","INPUT","ADOPTEDBUD",null,null,null,"Estray","No. of calls for service",null,{"$f":"'Data SBP Measures'!$AF313&'Data SBP Measures'!$AE313& \" - \"& 'Data SBP Measures'!$U313","v":"No. of calls for serviceEstray - 137"},{"$f":"_xlfn.XLOOKUP(VALUE(W313),'Data SBP Programs'!O:O,'Data SBP Programs'!S:S)","v":"Estray"}]
[{"$f":"'Data SBP Measures'!$AI1548&\" - \"&'Data SBP Measures'!$U1548","v":"Auditor's Office - 106"},{"$f":"'Data SBP Measures'!$AF1548","v":"% SAP help desk tickets that met service time targets"},{"$f":"'Data SBP Measures'!$T1548","v":"23"},{"$f":"'Data SBP Measures'!$U1548&B314","v":"106% SAP help desk tickets that met service time targets"},{"$f":"'Data SBP Measures'!$Y1548","v":"PERCENT"},null,null,null,null,null,"Auditor's Office - 106","% SAP help desk tickets that met service time targets",null,null,null,null,null,null,null,"1371","137","Y","74","Estray","EACH","INPUT","ADOPTEDBUD",null,null,null,"Estray","No. of City call outs",null,{"$f":"'Data SBP Measures'!$AF314&'Data SBP Measures'!$AE314& \" - \"& 'Data SBP Measures'!$U314","v":"No. of City call outsEstray - 137"},{"$f":"_xlfn.XLOOKUP(VALUE(W314),'Data SBP Programs'!O:O,'Data SBP Programs'!S:S)","v":"Estray"}]
[{"$f":"'Data SBP Measures'!$AI831&\" - \"&'Data SBP Measures'!$U831","v":"Auditor's Office - 106"},{"$f":"'Data SBP Measures'!$AF831","v":"% Single Audit Act grant reports filed by required due dates"},{"$f":"'Data SBP Measures'!$T831","v":"19"},{"$f":"'Data SBP Measures'!$U831&B315","v":"106% Single Audit Act grant reports filed by required due dates"},{"$f":"'Data SBP Measures'!$Y831","v":"PERCENT"},null,null,null,null,null,"Auditor's Office - 106","% Single Audit Act grant reports filed by required due dates",null,null,null,null,null,null,null,"1372","137","Y","74","Estray","EACH","INPUT","ADOPTEDBUD",null,null,null,"Estray","No. of animals auctioned",null,{"$f":"'Data SBP Measures'!$AF315&'Data SBP Measures'!$AE315& \" - \"& 'Data SBP Measures'!$U315","v":"No. of animals auctionedEstray - 137"},{"$f":"_xlfn.XLOOKUP(VALUE(W315),'Data SBP Programs'!O:O,'Data SBP Programs'!S:S)","v":"Estray"}]
[{"$f":"'Data SBP Measures'!$AI2465&\" - \"&'Data SBP Measures'!$U2465","v":"Auditor's Office - 106"},{"$f":"'Data SBP Measures'!$AF2465","v":"% Unplanned downtime on Financial Transparency Portal 24x7"},{"$f":"'Data SBP Measures'!$T2465","v":"3110"},{"$f":"'Data SBP Measures'!$U2465&B316","v":"106% Unplanned downtime on Financial Transparency Portal 24x7"},{"$f":"'Data SBP Measures'!$Y2465","v":"PERCENT"},null,null,null,null,null,"Auditor's Office - 106","% Unplanned downtime on Financial Transparency Portal 24x7",null,null,null,null,null,null,null,"1373","137","Y","74","Estray","EACH","INPUT","ADOPTEDBUD",null,null,null,"Estray","No. of hours spent on animal management",null,{"$f":"'Data SBP Measures'!$AF316&'Data SBP Measures'!$AE316& \" - \"& 'Data SBP Measures'!$U316","v":"No. of hours spent on animal managementEstray - 137"},{"$f":"_xlfn.XLOOKUP(VALUE(W316),'Data SBP Programs'!O:O,'Data SBP Programs'!S:S)","v":"Estray"}]
[{"$f":"'Data SBP Measures'!$AI917&\" - \"&'Data SBP Measures'!$U917","v":"Auditor's Office - 106"},{"$f":"'Data SBP Measures'!$AF917","v":"Annual Comprehensive Financial Report filed by March 31 deadline\n"},{"$f":"'Data SBP Measures'!$T917","v":"2"},{"$f":"'Data SBP Measures'!$U917&B317","v":"106Annual Comprehensive Financial Report filed by March 31 deadline\n"},{"$f":"'Data SBP Measures'!$Y917","v":"PERCENT"},null,null,null,null,null,"Auditor's Office - 106","Annual Comprehensive Financial Report filed by March 31 deadline\n",null,null,null,null,null,null,null,"1374","137","Y","77","Finance","EACH","INPUT","ADOPTEDBUD",null,null,null,"Finance","Registered alarm sites",null,{"$f":"'Data SBP Measures'!$AF317&'Data SBP Measures'!$AE317& \" - \"& 'Data SBP Measures'!$U317","v":"Registered alarm sitesFinance - 137"},{"$f":"_xlfn.XLOOKUP(VALUE(W317),'Data SBP Programs'!O:O,'Data SBP Programs'!S:S)","v":"Finance"}]
[{"$f":"'Data SBP Measures'!$AI3059&\" - \"&'Data SBP Measures'!$U3059","v":"Auditor's Office - 106"},{"$f":"'Data SBP Measures'!$AF3059","v":"General Fund actual revenue to final budget as % (Annual Comprehensive Financial Report basis)"},{"$f":"'Data SBP Measures'!$T3059","v":"5"},{"$f":"'Data SBP Measures'!$U3059&B318","v":"106General Fund actual revenue to final budget as % (Annual Comprehensive Financial Report basis)"},{"$f":"'Data SBP Measures'!$Y3059","v":"PERCENT"},null,null,null,null,null,"Auditor's Office - 106","General Fund actual revenue to final budget as % (Annual Comprehensive Financial Report basis)",null,null,null,null,null,null,null,"1375","137","Y","77","Finance","EACH","INPUT","ADOPTEDBUD",null,null,null,"Finance","No. of P.O.s issued",null,{"$f":"'Data SBP Measures'!$AF318&'Data SBP Measures'!$AE318& \" - \"& 'Data SBP Measures'!$U318","v":"No. of P.O.s issuedFinance - 137"},{"$f":"_xlfn.XLOOKUP(VALUE(W318),'Data SBP Programs'!O:O,'Data SBP Programs'!S:S)","v":"Finance"}]
[{"$f":"'Data SBP Measures'!$AI2785&\" - \"&'Data SBP Measures'!$U2785","v":"Auditor's Office - 106"},{"$f":"'Data SBP Measures'!$AF2785","v":"REC continuous auditing programs implemented\n"},{"$f":"'Data SBP Measures'!$T2785","v":"3366"},{"$f":"'Data SBP Measures'!$U2785&B319","v":"106REC continuous auditing programs implemented\n"},{"$f":"'Data SBP Measures'!$Y2785","v":"EACH"},null,null,null,null,null,"Auditor's Office - 106","REC continuous auditing programs implemented\n",null,null,null,null,null,null,null,"1376","137","Y","77","Finance","EACH","INPUT","ADOPTEDBUD",null,null,null,"Finance","No. of IWF cash transactions received",null,{"$f":"'Data SBP Measures'!$AF319&'Data SBP Measures'!$AE319& \" - \"& 'Data SBP Measures'!$U319","v":"No. of IWF cash transactions receivedFinance - 137"},{"$f":"_xlfn.XLOOKUP(VALUE(W319),'Data SBP Programs'!O:O,'Data SBP Programs'!S:S)","v":"Finance"}]
[{"$f":"'Data SBP Measures'!$AI2784&\" - \"&'Data SBP Measures'!$U2784","v":"Auditor's Office - 106"},{"$f":"'Data SBP Measures'!$AF2784","v":"REC special projects/statutory reviews completed"},{"$f":"'Data SBP Measures'!$T2784","v":"3365"},{"$f":"'Data SBP Measures'!$U2784&B320","v":"106REC special projects/statutory reviews completed"},{"$f":"'Data SBP Measures'!$Y2784","v":"EACH"},null,null,null,null,null,"Auditor's Office - 106","REC special projects/statutory reviews completed",null,null,null,null,null,null,null,"1377","137","Y","77","Finance","EACH","INPUT","ADOPTEDBUD",null,null,null,"Finance","How many medical invoices are processed",null,{"$f":"'Data SBP Measures'!$AF320&'Data SBP Measures'!$AE320& \" - \"& 'Data SBP Measures'!$U320","v":"How many medical invoices are processedFinance - 137"},{"$f":"_xlfn.XLOOKUP(VALUE(W320),'Data SBP Programs'!O:O,'Data SBP Programs'!S:S)","v":"Finance"}]
[{"$f":"'Data SBP Measures'!$AI2415&\" - \"&'Data SBP Measures'!$U2415","v":"Auditor's Office - 106"},{"$f":"'Data SBP Measures'!$AF2415","v":"Receive Certificate of Excellence (GFOA) designation"},{"$f":"'Data SBP Measures'!$T2415","v":"3"},{"$f":"'Data SBP Measures'!$U2415&B321","v":"106Receive Certificate of Excellence (GFOA) designation"},{"$f":"'Data SBP Measures'!$Y2415","v":"PERCENT"},null,null,null,null,null,"Auditor's Office - 106","Receive Certificate of Excellence (GFOA) designation",null,null,null,null,null,null,null,"1378","137","Y","77","Finance","EACH","INPUT","ADOPTEDBUD",null,null,null,"Finance","How many ITF’s are posted:  Window, Mail",null,{"$f":"'Data SBP Measures'!$AF321&'Data SBP Measures'!$AE321& \" - \"& 'Data SBP Measures'!$U321","v":"How many ITF’s are posted:  Window, MailFinance - 137"},{"$f":"_xlfn.XLOOKUP(VALUE(W321),'Data SBP Programs'!O:O,'Data SBP Programs'!S:S)","v":"Finance"}]
[{"$f":"'Data SBP Measures'!$AI3010&\" - \"&'Data SBP Measures'!$U3010","v":"Auditor's Office - 106"},{"$f":"'Data SBP Measures'!$AF3010","v":"Receive Texas Comptroller stars for transparency (sunset after 2021 actuals)"},{"$f":"'Data SBP Measures'!$T3010","v":"4"},{"$f":"'Data SBP Measures'!$U3010&B322","v":"106Receive Texas Comptroller stars for transparency (sunset after 2021 actuals)"},{"$f":"'Data SBP Measures'!$Y3010","v":"RATING_C"},null,null,null,null,null,"Auditor's Office - 106","Receive Texas Comptroller stars for transparency (sunset after 2021 actuals)",null,null,null,null,null,null,null,"1379","137","Y","77","Finance","EACH","INPUT","ADOPTEDBUD",null,null,null,"Finance","How many vehicle inspections are entered.",null,{"$f":"'Data SBP Measures'!$AF322&'Data SBP Measures'!$AE322& \" - \"& 'Data SBP Measures'!$U322","v":"How many vehicle inspections are entered.Finance - 137"},{"$f":"_xlfn.XLOOKUP(VALUE(W322),'Data SBP Programs'!O:O,'Data SBP Programs'!S:S)","v":"Finance"}]
[{"$f":"'Data SBP Measures'!$AI1172&\" - \"&'Data SBP Measures'!$U1172","v":"Auditor's Office - 106"},{"$f":"'Data SBP Measures'!$AF1172","v":"Unplanned SAP production server downtime from 6am- 9pm M-F"},{"$f":"'Data SBP Measures'!$T1172","v":"21"},{"$f":"'Data SBP Measures'!$U1172&B323","v":"106Unplanned SAP production server downtime from 6am- 9pm M-F"},{"$f":"'Data SBP Measures'!$Y1172","v":"PERCENT"},null,null,null,null,null,"Auditor's Office - 106","Unplanned SAP production server downtime from 6am- 9pm M-F",null,null,null,null,null,null,null,"1382","137","Y","79","Traffic - CVE / DWI / HEAT / Impound / MOTORS","EACH","INPUT","ADOPTEDBUD",null,null,null,"Traffic - CVE / DWI / HEAT / Impound / MOTORS","No. of Collisions Worked",null,{"$f":"'Data SBP Measures'!$AF323&'Data SBP Measures'!$AE323& \" - \"& 'Data SBP Measures'!$U323","v":"No. of Collisions WorkedTraffic - CVE / DWI / HEAT / Impound / MOTORS - 137"},{"$f":"_xlfn.XLOOKUP(VALUE(W323),'Data SBP Programs'!O:O,'Data SBP Programs'!S:S)","v":"Traffic - CVE / DWI / HEAT / Impound / MOTORS"}]
[{"$f":"'Data SBP Measures'!$AI2&\" - \"&'Data SBP Measures'!$U2","v":"Auditor's Office - 106"},{"$f":"'Data SBP Measures'!$AF2","v":"Unqualified audit opinion (as measured by financial data & transactions) (100%=unqualified)"},{"$f":"'Data SBP Measures'!$T2","v":"1"},{"$f":"'Data SBP Measures'!$U2&B324","v":"106Unqualified audit opinion (as measured by financial data & transactions) (100%=unqualified)"},{"$f":"'Data SBP Measures'!$Y2","v":"PERCENT"},null,null,null,null,null,"Auditor's Office - 106","Unqualified audit opinion (as measured by financial data & transactions) (100%=unqualified)",null,null,null,null,null,null,null,"1383","137","Y","79","Traffic - CVE / DWI / HEAT / Impound / MOTORS","EACH","INPUT","ADOPTEDBUD",null,null,null,"Traffic - CVE / DWI / HEAT / Impound / MOTORS","No. of Selective Traffic Assignments",null,{"$f":"'Data SBP Measures'!$AF324&'Data SBP Measures'!$AE324& \" - \"& 'Data SBP Measures'!$U324","v":"No. of Selective Traffic AssignmentsTraffic - CVE / DWI / HEAT / Impound / MOTORS - 137"},{"$f":"_xlfn.XLOOKUP(VALUE(W324),'Data SBP Programs'!O:O,'Data SBP Programs'!S:S)","v":"Traffic - CVE / DWI / HEAT / Impound / MOTORS"}]
[{"$f":"'Data SBP Measures'!$AI2635&\" - \"&'Data SBP Measures'!$U2635","v":"Austin/Travis County Family Violence Task Force\n - 140"},{"$f":"'Data SBP Measures'!$AF2635","v":"% of successful completion of 3 FV Awareness Events"},{"$f":"'Data SBP Measures'!$T2635","v":"3249"},{"$f":"'Data SBP Measures'!$U2635&B325","v":"140% of successful completion of 3 FV Awareness Events"},{"$f":"'Data SBP Measures'!$Y2635","v":"PERCENT"},null,null,null,null,null,"Austin/Travis County Family Violence Task Force\n - 140","% of successful completion of 3 FV Awareness Events",null,null,null,null,null,null,null,"1384","137","Y","79","Traffic - CVE / DWI / HEAT / Impound / MOTORS","EACH","INPUT","ADOPTEDBUD",null,null,null,"Traffic - CVE / DWI / HEAT / Impound / MOTORS","No. of Citations Written/Submitted",null,{"$f":"'Data SBP Measures'!$AF325&'Data SBP Measures'!$AE325& \" - \"& 'Data SBP Measures'!$U325","v":"No. of Citations Written/SubmittedTraffic - CVE / DWI / HEAT / Impound / MOTORS - 137"},{"$f":"_xlfn.XLOOKUP(VALUE(W325),'Data SBP Programs'!O:O,'Data SBP Programs'!S:S)","v":"Traffic - CVE / DWI / HEAT / Impound / MOTORS"}]
[{"$f":"'Data SBP Measures'!$AI2634&\" - \"&'Data SBP Measures'!$U2634","v":"Austin/Travis County Family Violence Task Force\n - 140"},{"$f":"'Data SBP Measures'!$AF2634","v":"% of successful completion of 6 Task Force Speakers"},{"$f":"'Data SBP Measures'!$T2634","v":"3248"},{"$f":"'Data SBP Measures'!$U2634&B326","v":"140% of successful completion of 6 Task Force Speakers"},{"$f":"'Data SBP Measures'!$Y2634","v":"PERCENT"},null,null,null,null,null,"Austin/Travis County Family Violence Task Force\n - 140","% of successful completion of 6 Task Force Speakers",null,null,null,null,null,null,null,"1385","137","Y","79","Traffic - CVE / DWI / HEAT / Impound / MOTORS","EACH","INPUT","ADOPTEDBUD",null,null,null,"Traffic - CVE / DWI / HEAT / Impound / MOTORS","No. of Traffic Surveys",null,{"$f":"'Data SBP Measures'!$AF326&'Data SBP Measures'!$AE326& \" - \"& 'Data SBP Measures'!$U326","v":"No. of Traffic SurveysTraffic - CVE / DWI / HEAT / Impound / MOTORS - 137"},{"$f":"_xlfn.XLOOKUP(VALUE(W326),'Data SBP Programs'!O:O,'Data SBP Programs'!S:S)","v":"Traffic - CVE / DWI / HEAT / Impound / MOTORS"}]
[{"$f":"'Data SBP Measures'!$AI2636&\" - \"&'Data SBP Measures'!$U2636","v":"Austin/Travis County Family Violence Task Force\n - 140"},{"$f":"'Data SBP Measures'!$AF2636","v":"Total # of FV Trainings"},{"$f":"'Data SBP Measures'!$T2636","v":"3250"},{"$f":"'Data SBP Measures'!$U2636&B327","v":"140Total # of FV Trainings"},{"$f":"'Data SBP Measures'!$Y2636","v":"EACH"},null,null,null,null,null,"Austin/Travis County Family Violence Task Force\n - 140","Total # of FV Trainings",null,null,null,null,null,null,null,"1386","137","Y","79","Traffic - CVE / DWI / HEAT / Impound / MOTORS","EACH","INPUT","ADOPTEDBUD",null,null,null,"Traffic - CVE / DWI / HEAT / Impound / MOTORS","No. of Special Assignments",null,{"$f":"'Data SBP Measures'!$AF327&'Data SBP Measures'!$AE327& \" - \"& 'Data SBP Measures'!$U327","v":"No. of Special AssignmentsTraffic - CVE / DWI / HEAT / Impound / MOTORS - 137"},{"$f":"_xlfn.XLOOKUP(VALUE(W327),'Data SBP Programs'!O:O,'Data SBP Programs'!S:S)","v":"Traffic - CVE / DWI / HEAT / Impound / MOTORS"}]
[{"$f":"'Data SBP Measures'!$AI2633&\" - \"&'Data SBP Measures'!$U2633","v":"Austin/Travis County Family Violence Task Force\n - 140"},{"$f":"'Data SBP Measures'!$AF2633","v":"Total # of Governance Committee Meetings"},{"$f":"'Data SBP Measures'!$T2633","v":"3247"},{"$f":"'Data SBP Measures'!$U2633&B328","v":"140Total # of Governance Committee Meetings"},{"$f":"'Data SBP Measures'!$Y2633","v":"EACH"},null,null,null,null,null,"Austin/Travis County Family Violence Task Force\n - 140","Total # of Governance Committee Meetings",null,null,null,null,null,null,null,"1395","137","Y","81","Human Resources - Recruiting","EACH","INPUT","ADOPTEDBUD",null,null,null,"Human Resources - Recruiting","No. of applicant packets received",null,{"$f":"'Data SBP Measures'!$AF328&'Data SBP Measures'!$AE328& \" - \"& 'Data SBP Measures'!$U328","v":"No. of applicant packets receivedHuman Resources - Recruiting - 137"},{"$f":"_xlfn.XLOOKUP(VALUE(W328),'Data SBP Programs'!O:O,'Data SBP Programs'!S:S)","v":"Human Resources - Recruiting"}]
[{"$f":"'Data SBP Measures'!$AI2632&\" - \"&'Data SBP Measures'!$U2632","v":"Austin/Travis County Family Violence Task Force\n - 140"},{"$f":"'Data SBP Measures'!$AF2632","v":"Total # of Task Force Meetings"},{"$f":"'Data SBP Measures'!$T2632","v":"3246"},{"$f":"'Data SBP Measures'!$U2632&B329","v":"140Total # of Task Force Meetings"},{"$f":"'Data SBP Measures'!$Y2632","v":"EACH"},null,null,null,null,null,"Austin/Travis County Family Violence Task Force\n - 140","Total # of Task Force Meetings",null,null,null,null,null,null,null,"1396","137","Y","81","Human Resources - Recruiting","EACH","INPUT","ADOPTEDBUD",null,null,null,"Human Resources - Recruiting","No. of applicant packets reviewed",null,{"$f":"'Data SBP Measures'!$AF329&'Data SBP Measures'!$AE329& \" - \"& 'Data SBP Measures'!$U329","v":"No. of applicant packets reviewedHuman Resources - Recruiting - 137"},{"$f":"_xlfn.XLOOKUP(VALUE(W329),'Data SBP Programs'!O:O,'Data SBP Programs'!S:S)","v":"Human Resources - Recruiting"}]
[{"$f":"'Data SBP Measures'!$AI1898&\" - \"&'Data SBP Measures'!$U1898","v":"Austin-TC EMS Interlocal - 159"},{"$f":"'Data SBP Measures'!$AF1898","v":"ATCEMS Grade of Service (Goal: 90% or >)"},{"$f":"'Data SBP Measures'!$T1898","v":"2547"},{"$f":"'Data SBP Measures'!$U1898&B330","v":"159ATCEMS Grade of Service (Goal: 90% or >)"},{"$f":"'Data SBP Measures'!$Y1898","v":"PERCENT"},null,null,null,null,null,"Austin-TC EMS Interlocal - 159","ATCEMS Grade of Service (Goal: 90% or >)",null,null,null,null,null,null,null,"1397","137","Y","81","Human Resources - Recruiting","EACH","INPUT","ADOPTEDBUD",null,null,null,"Human Resources - Recruiting","No. of community events / projects",null,{"$f":"'Data SBP Measures'!$AF330&'Data SBP Measures'!$AE330& \" - \"& 'Data SBP Measures'!$U330","v":"No. of community events / projectsHuman Resources - Recruiting - 137"},{"$f":"_xlfn.XLOOKUP(VALUE(W330),'Data SBP Programs'!O:O,'Data SBP Programs'!S:S)","v":"Human Resources - Recruiting"}]
[{"$f":"'Data SBP Measures'!$AI1899&\" - \"&'Data SBP Measures'!$U1899","v":"Austin-TC EMS Interlocal - 159"},{"$f":"'Data SBP Measures'!$AF1899","v":"Total County Responses"},{"$f":"'Data SBP Measures'!$T1899","v":"2548"},{"$f":"'Data SBP Measures'!$U1899&B331","v":"159Total County Responses"},{"$f":"'Data SBP Measures'!$Y1899","v":"EACH"},null,null,null,null,null,"Austin-TC EMS Interlocal - 159","Total County Responses",null,null,null,null,null,null,null,"1398","137","Y","81","Human Resources - Recruiting","EACH","INPUT","ADOPTEDBUD",null,null,null,"Human Resources - Recruiting","No. of applicants DQd",null,{"$f":"'Data SBP Measures'!$AF331&'Data SBP Measures'!$AE331& \" - \"& 'Data SBP Measures'!$U331","v":"No. of applicants DQdHuman Resources - Recruiting - 137"},{"$f":"_xlfn.XLOOKUP(VALUE(W331),'Data SBP Programs'!O:O,'Data SBP Programs'!S:S)","v":"Human Resources - Recruiting"}]
[{"$f":"'Data SBP Measures'!$AI226&\" - \"&'Data SBP Measures'!$U226","v":"Auto Theft Task Force - 137"},{"$f":"'Data SBP Measures'!$AF226","v":"No. 68-A Inspections"},{"$f":"'Data SBP Measures'!$T226","v":"1277"},{"$f":"'Data SBP Measures'!$U226&B332","v":"137No. 68-A Inspections"},{"$f":"'Data SBP Measures'!$Y226","v":"EACH"},null,null,null,null,null,"Auto Theft Task Force - 137","No. 68-A Inspections",null,null,null,null,null,null,null,"1399","137","Y","81","Human Resources - Recruiting","EACH","INPUT","ADOPTEDBUD",null,null,null,"Human Resources - Recruiting","No. of applicants hired",null,{"$f":"'Data SBP Measures'!$AF332&'Data SBP Measures'!$AE332& \" - \"& 'Data SBP Measures'!$U332","v":"No. of applicants hiredHuman Resources - Recruiting - 137"},{"$f":"_xlfn.XLOOKUP(VALUE(W332),'Data SBP Programs'!O:O,'Data SBP Programs'!S:S)","v":"Human Resources - Recruiting"}]
[{"$f":"'Data SBP Measures'!$AI227&\" - \"&'Data SBP Measures'!$U227","v":"Auto Theft Task Force - 137"},{"$f":"'Data SBP Measures'!$AF227","v":"No. 68-A Inspections"},{"$f":"'Data SBP Measures'!$T227","v":"1277"},{"$f":"'Data SBP Measures'!$U227&B333","v":"137No. 68-A Inspections"},{"$f":"'Data SBP Measures'!$Y227","v":"EACH"},null,null,null,null,null,"Auto Theft Task Force - 137","No. 68-A Inspections",null,null,null,null,null,null,null,"14","106","Y","178","Auditor's Office","PERCENT","OUTCOME","ADOPTEDBUD",null,null,null,"Auditor's Office","% of annual manual checks created to address payroll errors",null,{"$f":"'Data SBP Measures'!$AF333&'Data SBP Measures'!$AE333& \" - \"& 'Data SBP Measures'!$U333","v":"% of annual manual checks created to address payroll errorsAuditor's Office - 106"},{"$f":"_xlfn.XLOOKUP(VALUE(W333),'Data SBP Programs'!O:O,'Data SBP Programs'!S:S)","v":"Auditor's Office"}]
[{"$f":"'Data SBP Measures'!$AI230&\" - \"&'Data SBP Measures'!$U230","v":"Auto Theft Task Force - 137"},{"$f":"'Data SBP Measures'!$AF230","v":"No. of bait ops"},{"$f":"'Data SBP Measures'!$T230","v":"1279"},{"$f":"'Data SBP Measures'!$U230&B334","v":"137No. of bait ops"},{"$f":"'Data SBP Measures'!$Y230","v":"EACH"},null,null,null,null,null,"Auto Theft Task Force - 137","No. of bait ops",null,null,null,null,null,null,null,"1400","137","Y","81","Human Resources - Recruiting","EACH","INPUT","ADOPTEDBUD",null,null,null,"Human Resources - Recruiting","No. of interview boards",null,{"$f":"'Data SBP Measures'!$AF334&'Data SBP Measures'!$AE334& \" - \"& 'Data SBP Measures'!$U334","v":"No. of interview boardsHuman Resources - Recruiting - 137"},{"$f":"_xlfn.XLOOKUP(VALUE(W334),'Data SBP Programs'!O:O,'Data SBP Programs'!S:S)","v":"Human Resources - Recruiting"}]
[{"$f":"'Data SBP Measures'!$AI231&\" - \"&'Data SBP Measures'!$U231","v":"Auto Theft Task Force - 137"},{"$f":"'Data SBP Measures'!$AF231","v":"No. of bait ops"},{"$f":"'Data SBP Measures'!$T231","v":"1279"},{"$f":"'Data SBP Measures'!$U231&B335","v":"137No. of bait ops"},{"$f":"'Data SBP Measures'!$Y231","v":"EACH"},null,null,null,null,null,"Auto Theft Task Force - 137","No. of bait ops",null,null,null,null,null,null,null,"1401","137","Y","81","Human Resources - Recruiting","EACH","INPUT","ADOPTEDBUD",null,null,null,"Human Resources - Recruiting","No. of PAF generated",null,{"$f":"'Data SBP Measures'!$AF335&'Data SBP Measures'!$AE335& \" - \"& 'Data SBP Measures'!$U335","v":"No. of PAF generatedHuman Resources - Recruiting - 137"},{"$f":"_xlfn.XLOOKUP(VALUE(W335),'Data SBP Programs'!O:O,'Data SBP Programs'!S:S)","v":"Human Resources - Recruiting"}]
[{"$f":"'Data SBP Measures'!$AI233&\" - \"&'Data SBP Measures'!$U233","v":"Auto Theft Task Force - 137"},{"$f":"'Data SBP Measures'!$AF233","v":"No. of Public Outreach"},{"$f":"'Data SBP Measures'!$T233","v":"1280"},{"$f":"'Data SBP Measures'!$U233&B336","v":"137No. of Public Outreach"},{"$f":"'Data SBP Measures'!$Y233","v":"EACH"},null,null,null,null,null,"Auto Theft Task Force - 137","No. of Public Outreach",null,null,null,null,null,null,null,"1402","137","Y","81","Human Resources - Recruiting","HOURS","INPUT","ADOPTEDBUD",null,null,null,"Human Resources - Recruiting","Staff hrs for applicant testing / boards",null,{"$f":"'Data SBP Measures'!$AF336&'Data SBP Measures'!$AE336& \" - \"& 'Data SBP Measures'!$U336","v":"Staff hrs for applicant testing / boardsHuman Resources - Recruiting - 137"},{"$f":"_xlfn.XLOOKUP(VALUE(W336),'Data SBP Programs'!O:O,'Data SBP Programs'!S:S)","v":"Human Resources - Recruiting"}]
[{"$f":"'Data SBP Measures'!$AI234&\" - \"&'Data SBP Measures'!$U234","v":"Auto Theft Task Force - 137"},{"$f":"'Data SBP Measures'!$AF234","v":"No. of Public Outreach"},{"$f":"'Data SBP Measures'!$T234","v":"1280"},{"$f":"'Data SBP Measures'!$U234&B337","v":"137No. of Public Outreach"},{"$f":"'Data SBP Measures'!$Y234","v":"EACH"},null,null,null,null,null,"Auto Theft Task Force - 137","No. of Public Outreach",null,null,null,null,null,null,null,"1403","137","Y","79","Traffic - CVE / DWI / HEAT / Impound / MOTORS","EACH","INPUT","ADOPTEDBUD",null,null,null,"Traffic - CVE / DWI / HEAT / Impound / MOTORS","No. of vehicles impounded",null,{"$f":"'Data SBP Measures'!$AF337&'Data SBP Measures'!$AE337& \" - \"& 'Data SBP Measures'!$U337","v":"No. of vehicles impoundedTraffic - CVE / DWI / HEAT / Impound / MOTORS - 137"},{"$f":"_xlfn.XLOOKUP(VALUE(W337),'Data SBP Programs'!O:O,'Data SBP Programs'!S:S)","v":"Traffic - CVE / DWI / HEAT / Impound / MOTORS"}]
[{"$f":"'Data SBP Measures'!$AI224&\" - \"&'Data SBP Measures'!$U224","v":"Auto Theft Task Force - 137"},{"$f":"'Data SBP Measures'!$AF224","v":"No. of recovered cars"},{"$f":"'Data SBP Measures'!$T224","v":"1276"},{"$f":"'Data SBP Measures'!$U224&B338","v":"137No. of recovered cars"},{"$f":"'Data SBP Measures'!$Y224","v":"EACH"},null,null,null,null,null,"Auto Theft Task Force - 137","No. of recovered cars",null,null,null,null,null,null,null,"1404","137","Y","79","Traffic - CVE / DWI / HEAT / Impound / MOTORS","EACH","INPUT","ADOPTEDBUD",null,null,null,"Traffic - CVE / DWI / HEAT / Impound / MOTORS","No. of vehicles storage facilites inspected",null,{"$f":"'Data SBP Measures'!$AF338&'Data SBP Measures'!$AE338& \" - \"& 'Data SBP Measures'!$U338","v":"No. of vehicles storage facilites inspectedTraffic - CVE / DWI / HEAT / Impound / MOTORS - 137"},{"$f":"_xlfn.XLOOKUP(VALUE(W338),'Data SBP Programs'!O:O,'Data SBP Programs'!S:S)","v":"Traffic - CVE / DWI / HEAT / Impound / MOTORS"}]
[{"$f":"'Data SBP Measures'!$AI225&\" - \"&'Data SBP Measures'!$U225","v":"Auto Theft Task Force - 137"},{"$f":"'Data SBP Measures'!$AF225","v":"No. of recovered cars"},{"$f":"'Data SBP Measures'!$T225","v":"1276"},{"$f":"'Data SBP Measures'!$U225&B339","v":"137No. of recovered cars"},{"$f":"'Data SBP Measures'!$Y225","v":"EACH"},null,null,null,null,null,"Auto Theft Task Force - 137","No. of recovered cars",null,null,null,null,null,null,null,"1405","137","Y","79","Traffic - CVE / DWI / HEAT / Impound / MOTORS","EACH","INPUT","ADOPTEDBUD",null,null,null,"Traffic - CVE / DWI / HEAT / Impound / MOTORS","No. of wreckers inspected",null,{"$f":"'Data SBP Measures'!$AF339&'Data SBP Measures'!$AE339& \" - \"& 'Data SBP Measures'!$U339","v":"No. of wreckers inspectedTraffic - CVE / DWI / HEAT / Impound / MOTORS - 137"},{"$f":"_xlfn.XLOOKUP(VALUE(W339),'Data SBP Programs'!O:O,'Data SBP Programs'!S:S)","v":"Traffic - CVE / DWI / HEAT / Impound / MOTORS"}]
[{"$f":"'Data SBP Measures'!$AI228&\" - \"&'Data SBP Measures'!$U228","v":"Auto Theft Task Force - 137"},{"$f":"'Data SBP Measures'!$AF228","v":"No. of salvage yard inspections"},{"$f":"'Data SBP Measures'!$T228","v":"1278"},{"$f":"'Data SBP Measures'!$U228&B340","v":"137No. of salvage yard inspections"},{"$f":"'Data SBP Measures'!$Y228","v":"EACH"},null,null,null,null,null,"Auto Theft Task Force - 137","No. of salvage yard inspections",null,null,null,null,null,null,null,"1406","137","Y","79","Traffic - CVE / DWI / HEAT / Impound / MOTORS","DOLLARS","INPUT","ADOPTEDBUD",null,null,null,"Traffic - CVE / DWI / HEAT / Impound / MOTORS","Fees collected for wrecker inspections",null,{"$f":"'Data SBP Measures'!$AF340&'Data SBP Measures'!$AE340& \" - \"& 'Data SBP Measures'!$U340","v":"Fees collected for wrecker inspectionsTraffic - CVE / DWI / HEAT / Impound / MOTORS - 137"},{"$f":"_xlfn.XLOOKUP(VALUE(W340),'Data SBP Programs'!O:O,'Data SBP Programs'!S:S)","v":"Traffic - CVE / DWI / HEAT / Impound / MOTORS"}]
[{"$f":"'Data SBP Measures'!$AI229&\" - \"&'Data SBP Measures'!$U229","v":"Auto Theft Task Force - 137"},{"$f":"'Data SBP Measures'!$AF229","v":"No. of salvage yard inspections"},{"$f":"'Data SBP Measures'!$T229","v":"1278"},{"$f":"'Data SBP Measures'!$U229&B341","v":"137No. of salvage yard inspections"},{"$f":"'Data SBP Measures'!$Y229","v":"EACH"},null,null,null,null,null,"Auto Theft Task Force - 137","No. of salvage yard inspections",null,null,null,null,null,null,null,"1407","137","Y","79","Traffic - CVE / DWI / HEAT / Impound / MOTORS","EACH","INPUT","ADOPTEDBUD",null,null,null,"Traffic - CVE / DWI / HEAT / Impound / MOTORS","No. of auctions attended",null,{"$f":"'Data SBP Measures'!$AF341&'Data SBP Measures'!$AE341& \" - \"& 'Data SBP Measures'!$U341","v":"No. of auctions attendedTraffic - CVE / DWI / HEAT / Impound / MOTORS - 137"},{"$f":"_xlfn.XLOOKUP(VALUE(W341),'Data SBP Programs'!O:O,'Data SBP Programs'!S:S)","v":"Traffic - CVE / DWI / HEAT / Impound / MOTORS"}]
[{"$f":"'Data SBP Measures'!$AI3009&\" - \"&'Data SBP Measures'!$U3009","v":"Budget - 109"},{"$f":"'Data SBP Measures'!$AF3009","v":"Accuracy of General Fund expenditure estimate compared to actuals"},{"$f":"'Data SBP Measures'!$T3009","v":"38"},{"$f":"'Data SBP Measures'!$U3009&B342","v":"109Accuracy of General Fund expenditure estimate compared to actuals"},{"$f":"'Data SBP Measures'!$Y3009","v":"PERCENT"},null,null,null,null,null,"Budget - 109","Accuracy of General Fund expenditure estimate compared to actuals",null,null,null,null,null,null,null,"1408","137","Y","79","Traffic - CVE / DWI / HEAT / Impound / MOTORS","DOLLARS","INPUT","ADOPTEDBUD",null,null,null,"Traffic - CVE / DWI / HEAT / Impound / MOTORS","Funds received from auctioned vehicles",null,{"$f":"'Data SBP Measures'!$AF342&'Data SBP Measures'!$AE342& \" - \"& 'Data SBP Measures'!$U342","v":"Funds received from auctioned vehiclesTraffic - CVE / DWI / HEAT / Impound / MOTORS - 137"},{"$f":"_xlfn.XLOOKUP(VALUE(W342),'Data SBP Programs'!O:O,'Data SBP Programs'!S:S)","v":"Traffic - CVE / DWI / HEAT / Impound / MOTORS"}]
[{"$f":"'Data SBP Measures'!$AI2662&\" - \"&'Data SBP Measures'!$U2662","v":"Budget - 109"},{"$f":"'Data SBP Measures'!$AF2662","v":"County bond rating - Standard and Poor's (AAA=1, AA =2; ... ; D=15)"},{"$f":"'Data SBP Measures'!$T2662","v":"33"},{"$f":"'Data SBP Measures'!$U2662&B343","v":"109County bond rating - Standard and Poor's (AAA=1, AA =2; ... ; D=15)"},{"$f":"'Data SBP Measures'!$Y2662","v":"RATING_SP"},null,null,null,null,null,"Budget - 109","County bond rating - Standard and Poor's (AAA=1, AA =2; ... ; D=15)",null,null,null,null,null,null,null,"1409","137","Y","84","Inmate Programs and Education - Library","PERCENT","INPUT","ADOPTEDBUD",null,null,null,"Inmate Programs and Education - Library","% of inmates seen by psychiatrist w/in 7 days of being ID",null,{"$f":"'Data SBP Measures'!$AF343&'Data SBP Measures'!$AE343& \" - \"& 'Data SBP Measures'!$U343","v":"% of inmates seen by psychiatrist w/in 7 days of being IDInmate Programs and Education - Library - 137"},{"$f":"_xlfn.XLOOKUP(VALUE(W343),'Data SBP Programs'!O:O,'Data SBP Programs'!S:S)","v":"Inmate Programs and Education - Library"}]
[{"$f":"'Data SBP Measures'!$AI3007&\" - \"&'Data SBP Measures'!$U3007","v":"Budget - 109"},{"$f":"'Data SBP Measures'!$AF3007","v":"End of Year Balance of Allocated Reserve"},{"$f":"'Data SBP Measures'!$T3007","v":"36"},{"$f":"'Data SBP Measures'!$U3007&B344","v":"109End of Year Balance of Allocated Reserve"},{"$f":"'Data SBP Measures'!$Y3007","v":"EACH"},null,null,null,null,null,"Budget - 109","End of Year Balance of Allocated Reserve",null,null,null,null,null,null,null,"1409","137","Y","84","Inmate Programs and Education - Library","PERCENT","INPUT","ADOPTEDBUD",null,null,null,"Inmate Programs and Education - Library","% of inmates seen by psychiatrist w/in 7 days of being ID",null,{"$f":"'Data SBP Measures'!$AF344&'Data SBP Measures'!$AE344& \" - \"& 'Data SBP Measures'!$U344","v":"% of inmates seen by psychiatrist w/in 7 days of being IDInmate Programs and Education - Library - 137"},{"$f":"_xlfn.XLOOKUP(VALUE(W344),'Data SBP Programs'!O:O,'Data SBP Programs'!S:S)","v":"Inmate Programs and Education - Library"}]
[{"$f":"'Data SBP Measures'!$AI2827&\" - \"&'Data SBP Measures'!$U2827","v":"Budget - 109"},{"$f":"'Data SBP Measures'!$AF2827","v":"Number of budget adjustments processed"},{"$f":"'Data SBP Measures'!$T2827","v":"34"},{"$f":"'Data SBP Measures'!$U2827&B345","v":"109Number of budget adjustments processed"},{"$f":"'Data SBP Measures'!$Y2827","v":"EACH"},null,null,null,null,null,"Budget - 109","Number of budget adjustments processed",null,null,null,null,null,null,null,"1409","137","Y","84","Inmate Programs and Education - Library","PERCENT","INPUT","ADOPTEDBUD",null,null,null,"Inmate Programs and Education - Library","% of inmates seen by psychiatrist w/in 7 days of being ID",null,{"$f":"'Data SBP Measures'!$AF345&'Data SBP Measures'!$AE345& \" - \"& 'Data SBP Measures'!$U345","v":"% of inmates seen by psychiatrist w/in 7 days of being IDInmate Programs and Education - Library - 137"},{"$f":"_xlfn.XLOOKUP(VALUE(W345),'Data SBP Programs'!O:O,'Data SBP Programs'!S:S)","v":"Inmate Programs and Education - Library"}]
[{"$f":"'Data SBP Measures'!$AI2972&\" - \"&'Data SBP Measures'!$U2972","v":"Budget - 109"},{"$f":"'Data SBP Measures'!$AF2972","v":"Number of personnel action forms processed"},{"$f":"'Data SBP Measures'!$T2972","v":"35"},{"$f":"'Data SBP Measures'!$U2972&B346","v":"109Number of personnel action forms processed"},{"$f":"'Data SBP Measures'!$Y2972","v":"EACH"},null,null,null,null,null,"Budget - 109","Number of personnel action forms processed",null,null,null,null,null,null,null,"1410","137","Y","84","Inmate Programs and Education - Library","HOURS","INPUT","ADOPTEDBUD",null,null,null,"Inmate Programs and Education - Library","Hrs of Program Staff Supervision per week.",null,{"$f":"'Data SBP Measures'!$AF346&'Data SBP Measures'!$AE346& \" - \"& 'Data SBP Measures'!$U346","v":"Hrs of Program Staff Supervision per week.Inmate Programs and Education - Library - 137"},{"$f":"_xlfn.XLOOKUP(VALUE(W346),'Data SBP Programs'!O:O,'Data SBP Programs'!S:S)","v":"Inmate Programs and Education - Library"}]
[{"$f":"'Data SBP Measures'!$AI3008&\" - \"&'Data SBP Measures'!$U3008","v":"Budget - 109"},{"$f":"'Data SBP Measures'!$AF3008","v":"Percent of Allocated Reserve Spent"},{"$f":"'Data SBP Measures'!$T3008","v":"37"},{"$f":"'Data SBP Measures'!$U3008&B347","v":"109Percent of Allocated Reserve Spent"},{"$f":"'Data SBP Measures'!$Y3008","v":"PERCENT"},null,null,null,null,null,"Budget - 109","Percent of Allocated Reserve Spent",null,null,null,null,null,null,null,"1410","137","Y","84","Inmate Programs and Education - Library","HOURS","INPUT","ADOPTEDBUD",null,null,null,"Inmate Programs and Education - Library","Hrs of Program Staff Supervision per week.",null,{"$f":"'Data SBP Measures'!$AF347&'Data SBP Measures'!$AE347& \" - \"& 'Data SBP Measures'!$U347","v":"Hrs of Program Staff Supervision per week.Inmate Programs and Education - Library - 137"},{"$f":"_xlfn.XLOOKUP(VALUE(W347),'Data SBP Programs'!O:O,'Data SBP Programs'!S:S)","v":"Inmate Programs and Education - Library"}]
[{"$f":"'Data SBP Measures'!$AI2537&\" - \"&'Data SBP Measures'!$U2537","v":"Budget - 109"},{"$f":"'Data SBP Measures'!$AF2537","v":"Percentage of PBO budget recommendations in Adopted Budget"},{"$f":"'Data SBP Measures'!$T2537","v":"32"},{"$f":"'Data SBP Measures'!$U2537&B348","v":"109Percentage of PBO budget recommendations in Adopted Budget"},{"$f":"'Data SBP Measures'!$Y2537","v":"PERCENT"},null,null,null,null,null,"Budget - 109","Percentage of PBO budget recommendations in Adopted Budget",null,null,null,null,null,null,null,"1410","137","Y","84","Inmate Programs and Education - Library","HOURS","INPUT","ADOPTEDBUD",null,null,null,"Inmate Programs and Education - Library","Hrs of Program Staff Supervision per week.",null,{"$f":"'Data SBP Measures'!$AF348&'Data SBP Measures'!$AE348& \" - \"& 'Data SBP Measures'!$U348","v":"Hrs of Program Staff Supervision per week.Inmate Programs and Education - Library - 137"},{"$f":"_xlfn.XLOOKUP(VALUE(W348),'Data SBP Programs'!O:O,'Data SBP Programs'!S:S)","v":"Inmate Programs and Education - Library"}]
[{"$f":"'Data SBP Measures'!$AI2456&\" - \"&'Data SBP Measures'!$U2456","v":"Budget - 109"},{"$f":"'Data SBP Measures'!$AF2456","v":"Total Capital Fund value of budget requests reviewed for Preliminary Budget"},{"$f":"'Data SBP Measures'!$T2456","v":"31"},{"$f":"'Data SBP Measures'!$U2456&B349","v":"109Total Capital Fund value of budget requests reviewed for Preliminary Budget"},{"$f":"'Data SBP Measures'!$Y2456","v":"EACH"},null,null,null,null,null,"Budget - 109","Total Capital Fund value of budget requests reviewed for Preliminary Budget",null,null,null,null,null,null,null,"1411","137","Y","84","Inmate Programs and Education - Library","EACH","INPUT","ADOPTEDBUD",null,null,null,"Inmate Programs and Education - Library","No. of active volunteers at FY end.",null,{"$f":"'Data SBP Measures'!$AF349&'Data SBP Measures'!$AE349& \" - \"& 'Data SBP Measures'!$U349","v":"No. of active volunteers at FY end.Inmate Programs and Education - Library - 137"},{"$f":"_xlfn.XLOOKUP(VALUE(W349),'Data SBP Programs'!O:O,'Data SBP Programs'!S:S)","v":"Inmate Programs and Education - Library"}]
[{"$f":"'Data SBP Measures'!$AI2336&\" - \"&'Data SBP Measures'!$U2336","v":"Budget - 109"},{"$f":"'Data SBP Measures'!$AF2336","v":"Total General Fund value of budget requests reviewed for Preliminary Budget"},{"$f":"'Data SBP Measures'!$T2336","v":"29"},{"$f":"'Data SBP Measures'!$U2336&B350","v":"109Total General Fund value of budget requests reviewed for Preliminary Budget"},{"$f":"'Data SBP Measures'!$Y2336","v":"EACH"},null,null,null,null,null,"Budget - 109","Total General Fund value of budget requests reviewed for Preliminary Budget",null,null,null,null,null,null,null,"1411","137","Y","84","Inmate Programs and Education - Library","EACH","INPUT","ADOPTEDBUD",null,null,null,"Inmate Programs and Education - Library","No. of active volunteers at FY end.",null,{"$f":"'Data SBP Measures'!$AF350&'Data SBP Measures'!$AE350& \" - \"& 'Data SBP Measures'!$U350","v":"No. of active volunteers at FY end.Inmate Programs and Education - Library - 137"},{"$f":"_xlfn.XLOOKUP(VALUE(W350),'Data SBP Programs'!O:O,'Data SBP Programs'!S:S)","v":"Inmate Programs and Education - Library"}]
[{"$f":"'Data SBP Measures'!$AI2265&\" - \"&'Data SBP Measures'!$U2265","v":"Budget - 109"},{"$f":"'Data SBP Measures'!$AF2265","v":"Total number of budget requests reviewed for Preliminary Budget"},{"$f":"'Data SBP Measures'!$T2265","v":"28"},{"$f":"'Data SBP Measures'!$U2265&B351","v":"109Total number of budget requests reviewed for Preliminary Budget"},{"$f":"'Data SBP Measures'!$Y2265","v":"EACH"},null,null,null,null,null,"Budget - 109","Total number of budget requests reviewed for Preliminary Budget",null,null,null,null,null,null,null,"1411","137","Y","84","Inmate Programs and Education - Library","EACH","INPUT","ADOPTEDBUD",null,null,null,"Inmate Programs and Education - Library","No. of active volunteers at FY end.",null,{"$f":"'Data SBP Measures'!$AF351&'Data SBP Measures'!$AE351& \" - \"& 'Data SBP Measures'!$U351","v":"No. of active volunteers at FY end.Inmate Programs and Education - Library - 137"},{"$f":"_xlfn.XLOOKUP(VALUE(W351),'Data SBP Programs'!O:O,'Data SBP Programs'!S:S)","v":"Inmate Programs and Education - Library"}]
[{"$f":"'Data SBP Measures'!$AI2416&\" - \"&'Data SBP Measures'!$U2416","v":"Budget - 109"},{"$f":"'Data SBP Measures'!$AF2416","v":"Total Other Fund value of budget requests reviewed for Preliminary Budget"},{"$f":"'Data SBP Measures'!$T2416","v":"30"},{"$f":"'Data SBP Measures'!$U2416&B352","v":"109Total Other Fund value of budget requests reviewed for Preliminary Budget"},{"$f":"'Data SBP Measures'!$Y2416","v":"EACH"},null,null,null,null,null,"Budget - 109","Total Other Fund value of budget requests reviewed for Preliminary Budget",null,null,null,null,null,null,null,"1412","137","Y","84","Inmate Programs and Education - Library","EACH","INPUT","ADOPTEDBUD",null,null,null,"Inmate Programs and Education - Library","No. of Counselor follow-ups completed by counseling staff.",null,{"$f":"'Data SBP Measures'!$AF352&'Data SBP Measures'!$AE352& \" - \"& 'Data SBP Measures'!$U352","v":"No. of Counselor follow-ups completed by counseling staff.Inmate Programs and Education - Library - 137"},{"$f":"_xlfn.XLOOKUP(VALUE(W352),'Data SBP Programs'!O:O,'Data SBP Programs'!S:S)","v":"Inmate Programs and Education - Library"}]
[{"$f":"'Data SBP Measures'!$AI237&\" - \"&'Data SBP Measures'!$U237","v":"Canine - 137"},{"$f":"'Data SBP Measures'!$AF237","v":"No of calls for K9 assistances"},{"$f":"'Data SBP Measures'!$T237","v":"1283"},{"$f":"'Data SBP Measures'!$U237&B353","v":"137No of calls for K9 assistances"},{"$f":"'Data SBP Measures'!$Y237","v":"EACH"},null,null,null,null,null,"Canine - 137","No of calls for K9 assistances",null,null,null,null,null,null,null,"1412","137","Y","84","Inmate Programs and Education - Library","EACH","INPUT","ADOPTEDBUD",null,null,null,"Inmate Programs and Education - Library","No. of Counselor follow-ups completed by counseling staff.",null,{"$f":"'Data SBP Measures'!$AF353&'Data SBP Measures'!$AE353& \" - \"& 'Data SBP Measures'!$U353","v":"No. of Counselor follow-ups completed by counseling staff.Inmate Programs and Education - Library - 137"},{"$f":"_xlfn.XLOOKUP(VALUE(W353),'Data SBP Programs'!O:O,'Data SBP Programs'!S:S)","v":"Inmate Programs and Education - Library"}]
[{"$f":"'Data SBP Measures'!$AI2166&\" - \"&'Data SBP Measures'!$U2166","v":"Canine - 137"},{"$f":"'Data SBP Measures'!$AF2166","v":"No. of article searches"},{"$f":"'Data SBP Measures'!$T2166","v":"2691"},{"$f":"'Data SBP Measures'!$U2166&B354","v":"137No. of article searches"},{"$f":"'Data SBP Measures'!$Y2166","v":"EACH"},null,null,null,null,null,"Canine - 137","No. of article searches",null,null,null,null,null,null,null,"1412","137","Y","84","Inmate Programs and Education - Library","EACH","INPUT","ADOPTEDBUD",null,null,null,"Inmate Programs and Education - Library","No. of Counselor follow-ups completed by counseling staff.",null,{"$f":"'Data SBP Measures'!$AF354&'Data SBP Measures'!$AE354& \" - \"& 'Data SBP Measures'!$U354","v":"No. of Counselor follow-ups completed by counseling staff.Inmate Programs and Education - Library - 137"},{"$f":"_xlfn.XLOOKUP(VALUE(W354),'Data SBP Programs'!O:O,'Data SBP Programs'!S:S)","v":"Inmate Programs and Education - Library"}]
[{"$f":"'Data SBP Measures'!$AI2167&\" - \"&'Data SBP Measures'!$U2167","v":"Canine - 137"},{"$f":"'Data SBP Measures'!$AF2167","v":"No. of Assists-Patrol/Vice/SWAT"},{"$f":"'Data SBP Measures'!$T2167","v":"2692"},{"$f":"'Data SBP Measures'!$U2167&B355","v":"137No. of Assists-Patrol/Vice/SWAT"},{"$f":"'Data SBP Measures'!$Y2167","v":"EACH"},null,null,null,null,null,"Canine - 137","No. of Assists-Patrol/Vice/SWAT",null,null,null,null,null,null,null,"1413","137","Y","84","Inmate Programs and Education - Library","EACH","INPUT","ADOPTEDBUD",null,null,null,"Inmate Programs and Education - Library","No. of cases coordinated w/ mental health docket",null,{"$f":"'Data SBP Measures'!$AF355&'Data SBP Measures'!$AE355& \" - \"& 'Data SBP Measures'!$U355","v":"No. of cases coordinated w/ mental health docketInmate Programs and Education - Library - 137"},{"$f":"_xlfn.XLOOKUP(VALUE(W355),'Data SBP Programs'!O:O,'Data SBP Programs'!S:S)","v":"Inmate Programs and Education - Library"}]
[{"$f":"'Data SBP Measures'!$AI238&\" - \"&'Data SBP Measures'!$U238","v":"Canine - 137"},{"$f":"'Data SBP Measures'!$AF238","v":"No. of citations issued by K9 officers"},{"$f":"'Data SBP Measures'!$T238","v":"1284"},{"$f":"'Data SBP Measures'!$U238&B356","v":"137No. of citations issued by K9 officers"},{"$f":"'Data SBP Measures'!$Y238","v":"EACH"},null,null,null,null,null,"Canine - 137","No. of citations issued by K9 officers",null,null,null,null,null,null,null,"1413","137","Y","84","Inmate Programs and Education - Library","EACH","INPUT","ADOPTEDBUD",null,null,null,"Inmate Programs and Education - Library","No. of cases coordinated w/ mental health docket",null,{"$f":"'Data SBP Measures'!$AF356&'Data SBP Measures'!$AE356& \" - \"& 'Data SBP Measures'!$U356","v":"No. of cases coordinated w/ mental health docketInmate Programs and Education - Library - 137"},{"$f":"_xlfn.XLOOKUP(VALUE(W356),'Data SBP Programs'!O:O,'Data SBP Programs'!S:S)","v":"Inmate Programs and Education - Library"}]
[{"$f":"'Data SBP Measures'!$AI2163&\" - \"&'Data SBP Measures'!$U2163","v":"Canine - 137"},{"$f":"'Data SBP Measures'!$AF2163","v":"No. of jail searches"},{"$f":"'Data SBP Measures'!$T2163","v":"2689"},{"$f":"'Data SBP Measures'!$U2163&B357","v":"137No. of jail searches"},{"$f":"'Data SBP Measures'!$Y2163","v":"EACH"},null,null,null,null,null,"Canine - 137","No. of jail searches",null,null,null,null,null,null,null,"1413","137","Y","84","Inmate Programs and Education - Library","EACH","INPUT","ADOPTEDBUD",null,null,null,"Inmate Programs and Education - Library","No. of cases coordinated w/ mental health docket",null,{"$f":"'Data SBP Measures'!$AF357&'Data SBP Measures'!$AE357& \" - \"& 'Data SBP Measures'!$U357","v":"No. of cases coordinated w/ mental health docketInmate Programs and Education - Library - 137"},{"$f":"_xlfn.XLOOKUP(VALUE(W357),'Data SBP Programs'!O:O,'Data SBP Programs'!S:S)","v":"Inmate Programs and Education - Library"}]
[{"$f":"'Data SBP Measures'!$AI2159&\" - \"&'Data SBP Measures'!$U2159","v":"Canine - 137"},{"$f":"'Data SBP Measures'!$AF2159","v":"No. of K9 apprehension"},{"$f":"'Data SBP Measures'!$T2159","v":"2685"},{"$f":"'Data SBP Measures'!$U2159&B358","v":"137No. of K9 apprehension"},{"$f":"'Data SBP Measures'!$Y2159","v":"EACH"},null,null,null,null,null,"Canine - 137","No. of K9 apprehension",null,null,null,null,null,null,null,"1414","137","Y","84","Inmate Programs and Education - Library","EACH","INPUT","ADOPTEDBUD",null,null,null,"Inmate Programs and Education - Library","No. of GED tests taken",null,{"$f":"'Data SBP Measures'!$AF358&'Data SBP Measures'!$AE358& \" - \"& 'Data SBP Measures'!$U358","v":"No. of GED tests takenInmate Programs and Education - Library - 137"},{"$f":"_xlfn.XLOOKUP(VALUE(W358),'Data SBP Programs'!O:O,'Data SBP Programs'!S:S)","v":"Inmate Programs and Education - Library"}]
[{"$f":"'Data SBP Measures'!$AI236&\" - \"&'Data SBP Measures'!$U236","v":"Canine - 137"},{"$f":"'Data SBP Measures'!$AF236","v":"No. of K9 searches"},{"$f":"'Data SBP Measures'!$T236","v":"1282"},{"$f":"'Data SBP Measures'!$U236&B359","v":"137No. of K9 searches"},{"$f":"'Data SBP Measures'!$Y236","v":"EACH"},null,null,null,null,null,"Canine - 137","No. of K9 searches",null,null,null,null,null,null,null,"1414","137","Y","84","Inmate Programs and Education - Library","EACH","INPUT","ADOPTEDBUD",null,null,null,"Inmate Programs and Education - Library","No. of GED tests taken",null,{"$f":"'Data SBP Measures'!$AF359&'Data SBP Measures'!$AE359& \" - \"& 'Data SBP Measures'!$U359","v":"No. of GED tests takenInmate Programs and Education - Library - 137"},{"$f":"_xlfn.XLOOKUP(VALUE(W359),'Data SBP Programs'!O:O,'Data SBP Programs'!S:S)","v":"Inmate Programs and Education - Library"}]
[{"$f":"'Data SBP Measures'!$AI2160&\" - \"&'Data SBP Measures'!$U2160","v":"Canine - 137"},{"$f":"'Data SBP Measures'!$AF2160","v":"No. of K9 team felony arrests"},{"$f":"'Data SBP Measures'!$T2160","v":"2686"},{"$f":"'Data SBP Measures'!$U2160&B360","v":"137No. of K9 team felony arrests"},{"$f":"'Data SBP Measures'!$Y2160","v":"EACH"},null,null,null,null,null,"Canine - 137","No. of K9 team felony arrests",null,null,null,null,null,null,null,"1414","137","Y","84","Inmate Programs and Education - Library","EACH","INPUT","ADOPTEDBUD",null,null,null,"Inmate Programs and Education - Library","No. of GED tests taken",null,{"$f":"'Data SBP Measures'!$AF360&'Data SBP Measures'!$AE360& \" - \"& 'Data SBP Measures'!$U360","v":"No. of GED tests takenInmate Programs and Education - Library - 137"},{"$f":"_xlfn.XLOOKUP(VALUE(W360),'Data SBP Programs'!O:O,'Data SBP Programs'!S:S)","v":"Inmate Programs and Education - Library"}]
[{"$f":"'Data SBP Measures'!$AI2161&\" - \"&'Data SBP Measures'!$U2161","v":"Canine - 137"},{"$f":"'Data SBP Measures'!$AF2161","v":"No. of K9 team misd arrests"},{"$f":"'Data SBP Measures'!$T2161","v":"2687"},{"$f":"'Data SBP Measures'!$U2161&B361","v":"137No. of K9 team misd arrests"},{"$f":"'Data SBP Measures'!$Y2161","v":"EACH"},null,null,null,null,null,"Canine - 137","No. of K9 team misd arrests",null,null,null,null,null,null,null,"1415","137","Y","84","Inmate Programs and Education - Library","EACH","INPUT","ADOPTEDBUD",null,null,null,"Inmate Programs and Education - Library","No. of inmates requiring PSY services at booking",null,{"$f":"'Data SBP Measures'!$AF361&'Data SBP Measures'!$AE361& \" - \"& 'Data SBP Measures'!$U361","v":"No. of inmates requiring PSY services at bookingInmate Programs and Education - Library - 137"},{"$f":"_xlfn.XLOOKUP(VALUE(W361),'Data SBP Programs'!O:O,'Data SBP Programs'!S:S)","v":"Inmate Programs and Education - Library"}]
[{"$f":"'Data SBP Measures'!$AI2165&\" - \"&'Data SBP Measures'!$U2165","v":"Canine - 137"},{"$f":"'Data SBP Measures'!$AF2165","v":"No. of narcotics searches"},{"$f":"'Data SBP Measures'!$T2165","v":"2690"},{"$f":"'Data SBP Measures'!$U2165&B362","v":"137No. of narcotics searches"},{"$f":"'Data SBP Measures'!$Y2165","v":"EACH"},null,null,null,null,null,"Canine - 137","No. of narcotics searches",null,null,null,null,null,null,null,"1415","137","Y","84","Inmate Programs and Education - Library","EACH","INPUT","ADOPTEDBUD",null,null,null,"Inmate Programs and Education - Library","No. of inmates requiring PSY services at booking",null,{"$f":"'Data SBP Measures'!$AF362&'Data SBP Measures'!$AE362& \" - \"& 'Data SBP Measures'!$U362","v":"No. of inmates requiring PSY services at bookingInmate Programs and Education - Library - 137"},{"$f":"_xlfn.XLOOKUP(VALUE(W362),'Data SBP Programs'!O:O,'Data SBP Programs'!S:S)","v":"Inmate Programs and Education - Library"}]
[{"$f":"'Data SBP Measures'!$AI2162&\" - \"&'Data SBP Measures'!$U2162","v":"Canine - 137"},{"$f":"'Data SBP Measures'!$AF2162","v":"No. of Person searches"},{"$f":"'Data SBP Measures'!$T2162","v":"2688"},{"$f":"'Data SBP Measures'!$U2162&B363","v":"137No. of Person searches"},{"$f":"'Data SBP Measures'!$Y2162","v":"EACH"},null,null,null,null,null,"Canine - 137","No. of Person searches",null,null,null,null,null,null,null,"1415","137","Y","84","Inmate Programs and Education - Library","EACH","INPUT","ADOPTEDBUD",null,null,null,"Inmate Programs and Education - Library","No. of inmates requiring PSY services at booking",null,{"$f":"'Data SBP Measures'!$AF363&'Data SBP Measures'!$AE363& \" - \"& 'Data SBP Measures'!$U363","v":"No. of inmates requiring PSY services at bookingInmate Programs and Education - Library - 137"},{"$f":"_xlfn.XLOOKUP(VALUE(W363),'Data SBP Programs'!O:O,'Data SBP Programs'!S:S)","v":"Inmate Programs and Education - Library"}]
[{"$f":"'Data SBP Measures'!$AI1808&\" - \"&'Data SBP Measures'!$U1808","v":"Case Management - 142"},{"$f":"'Data SBP Measures'!$AF1808","v":"Alcohol Monitoring Caseload per Officer"},{"$f":"'Data SBP Measures'!$T1808","v":"2455"},{"$f":"'Data SBP Measures'!$U1808&B364","v":"142Alcohol Monitoring Caseload per Officer"},{"$f":"'Data SBP Measures'!$Y1808","v":"EACH"},null,null,null,null,null,"Case Management - 142","Alcohol Monitoring Caseload per Officer",null,null,null,null,null,null,null,"1416","137","Y","84","Inmate Programs and Education - Library","EACH","INPUT","ADOPTEDBUD",null,null,null,"Inmate Programs and Education - Library","Mental Health ratings of inmates requiring PSY services",null,{"$f":"'Data SBP Measures'!$AF364&'Data SBP Measures'!$AE364& \" - \"& 'Data SBP Measures'!$U364","v":"Mental Health ratings of inmates requiring PSY servicesInmate Programs and Education - Library - 137"},{"$f":"_xlfn.XLOOKUP(VALUE(W364),'Data SBP Programs'!O:O,'Data SBP Programs'!S:S)","v":"Inmate Programs and Education - Library"}]
[{"$f":"'Data SBP Measures'!$AI1803&\" - \"&'Data SBP Measures'!$U1803","v":"Case Management - 142"},{"$f":"'Data SBP Measures'!$AF1803","v":"Alcohol Monitoring Cases"},{"$f":"'Data SBP Measures'!$T1803","v":"2450"},{"$f":"'Data SBP Measures'!$U1803&B365","v":"142Alcohol Monitoring Cases"},{"$f":"'Data SBP Measures'!$Y1803","v":"EACH"},null,null,null,null,null,"Case Management - 142","Alcohol Monitoring Cases",null,null,null,null,null,null,null,"1416","137","Y","84","Inmate Programs and Education - Library","EACH","INPUT","ADOPTEDBUD",null,null,null,"Inmate Programs and Education - Library","Mental Health ratings of inmates requiring PSY services",null,{"$f":"'Data SBP Measures'!$AF365&'Data SBP Measures'!$AE365& \" - \"& 'Data SBP Measures'!$U365","v":"Mental Health ratings of inmates requiring PSY servicesInmate Programs and Education - Library - 137"},{"$f":"_xlfn.XLOOKUP(VALUE(W365),'Data SBP Programs'!O:O,'Data SBP Programs'!S:S)","v":"Inmate Programs and Education - Library"}]
[{"$f":"'Data SBP Measures'!$AI1810&\" - \"&'Data SBP Measures'!$U1810","v":"Case Management - 142"},{"$f":"'Data SBP Measures'!$AF1810","v":"Domestic Violence Caseload per Officer"},{"$f":"'Data SBP Measures'!$T1810","v":"2457"},{"$f":"'Data SBP Measures'!$U1810&B366","v":"142Domestic Violence Caseload per Officer"},{"$f":"'Data SBP Measures'!$Y1810","v":"EACH"},null,null,null,null,null,"Case Management - 142","Domestic Violence Caseload per Officer",null,null,null,null,null,null,null,"1416","137","Y","84","Inmate Programs and Education - Library","EACH","INPUT","ADOPTEDBUD",null,null,null,"Inmate Programs and Education - Library","Mental Health ratings of inmates requiring PSY services",null,{"$f":"'Data SBP Measures'!$AF366&'Data SBP Measures'!$AE366& \" - \"& 'Data SBP Measures'!$U366","v":"Mental Health ratings of inmates requiring PSY servicesInmate Programs and Education - Library - 137"},{"$f":"_xlfn.XLOOKUP(VALUE(W366),'Data SBP Programs'!O:O,'Data SBP Programs'!S:S)","v":"Inmate Programs and Education - Library"}]
[{"$f":"'Data SBP Measures'!$AI1805&\" - \"&'Data SBP Measures'!$U1805","v":"Case Management - 142"},{"$f":"'Data SBP Measures'!$AF1805","v":"Domestic Violence Cases"},{"$f":"'Data SBP Measures'!$T1805","v":"2452"},{"$f":"'Data SBP Measures'!$U1805&B367","v":"142Domestic Violence Cases"},{"$f":"'Data SBP Measures'!$Y1805","v":"EACH"},null,null,null,null,null,"Case Management - 142","Domestic Violence Cases",null,null,null,null,null,null,null,"1417","137","Y","84","Inmate Programs and Education - Library","EACH","INPUT","ADOPTEDBUD",null,null,null,"Inmate Programs and Education - Library","No. of Post GED/HS Educational and Vocational classes offered",null,{"$f":"'Data SBP Measures'!$AF367&'Data SBP Measures'!$AE367& \" - \"& 'Data SBP Measures'!$U367","v":"No. of Post GED/HS Educational and Vocational classes offeredInmate Programs and Education - Library - 137"},{"$f":"_xlfn.XLOOKUP(VALUE(W367),'Data SBP Programs'!O:O,'Data SBP Programs'!S:S)","v":"Inmate Programs and Education - Library"}]
[{"$f":"'Data SBP Measures'!$AI1809&\" - \"&'Data SBP Measures'!$U1809","v":"Case Management - 142"},{"$f":"'Data SBP Measures'!$AF1809","v":"Electronic Monitoring Caseload per Officer"},{"$f":"'Data SBP Measures'!$T1809","v":"2456"},{"$f":"'Data SBP Measures'!$U1809&B368","v":"142Electronic Monitoring Caseload per Officer"},{"$f":"'Data SBP Measures'!$Y1809","v":"EACH"},null,null,null,null,null,"Case Management - 142","Electronic Monitoring Caseload per Officer",null,null,null,null,null,null,null,"1417","137","Y","84","Inmate Programs and Education - Library","EACH","INPUT","ADOPTEDBUD",null,null,null,"Inmate Programs and Education - Library","No. of Post GED/HS Educational and Vocational classes offered",null,{"$f":"'Data SBP Measures'!$AF368&'Data SBP Measures'!$AE368& \" - \"& 'Data SBP Measures'!$U368","v":"No. of Post GED/HS Educational and Vocational classes offeredInmate Programs and Education - Library - 137"},{"$f":"_xlfn.XLOOKUP(VALUE(W368),'Data SBP Programs'!O:O,'Data SBP Programs'!S:S)","v":"Inmate Programs and Education - Library"}]
[{"$f":"'Data SBP Measures'!$AI1804&\" - \"&'Data SBP Measures'!$U1804","v":"Case Management - 142"},{"$f":"'Data SBP Measures'!$AF1804","v":"Electronic Monitoring Cases"},{"$f":"'Data SBP Measures'!$T1804","v":"2451"},{"$f":"'Data SBP Measures'!$U1804&B369","v":"142Electronic Monitoring Cases"},{"$f":"'Data SBP Measures'!$Y1804","v":"EACH"},null,null,null,null,null,"Case Management - 142","Electronic Monitoring Cases",null,null,null,null,null,null,null,"1417","137","Y","84","Inmate Programs and Education - Library","EACH","INPUT","ADOPTEDBUD",null,null,null,"Inmate Programs and Education - Library","No. of Post GED/HS Educational and Vocational classes offered",null,{"$f":"'Data SBP Measures'!$AF369&'Data SBP Measures'!$AE369& \" - \"& 'Data SBP Measures'!$U369","v":"No. of Post GED/HS Educational and Vocational classes offeredInmate Programs and Education - Library - 137"},{"$f":"_xlfn.XLOOKUP(VALUE(W369),'Data SBP Programs'!O:O,'Data SBP Programs'!S:S)","v":"Inmate Programs and Education - Library"}]
[{"$f":"'Data SBP Measures'!$AI1811&\" - \"&'Data SBP Measures'!$U1811","v":"Case Management - 142"},{"$f":"'Data SBP Measures'!$AF1811","v":"Mental Health Caseload per Officer"},{"$f":"'Data SBP Measures'!$T1811","v":"2458"},{"$f":"'Data SBP Measures'!$U1811&B370","v":"142Mental Health Caseload per Officer"},{"$f":"'Data SBP Measures'!$Y1811","v":"EACH"},null,null,null,null,null,"Case Management - 142","Mental Health Caseload per Officer",null,null,null,null,null,null,null,"1418","137","Y","84","Inmate Programs and Education - Library","EACH","INPUT","ADOPTEDBUD",null,null,null,"Inmate Programs and Education - Library","No. of Re-Entry Plans completed",null,{"$f":"'Data SBP Measures'!$AF370&'Data SBP Measures'!$AE370& \" - \"& 'Data SBP Measures'!$U370","v":"No. of Re-Entry Plans completedInmate Programs and Education - Library - 137"},{"$f":"_xlfn.XLOOKUP(VALUE(W370),'Data SBP Programs'!O:O,'Data SBP Programs'!S:S)","v":"Inmate Programs and Education - Library"}]
[{"$f":"'Data SBP Measures'!$AI1806&\" - \"&'Data SBP Measures'!$U1806","v":"Case Management - 142"},{"$f":"'Data SBP Measures'!$AF1806","v":"Mental Health Cases"},{"$f":"'Data SBP Measures'!$T1806","v":"2453"},{"$f":"'Data SBP Measures'!$U1806&B371","v":"142Mental Health Cases"},{"$f":"'Data SBP Measures'!$Y1806","v":"EACH"},null,null,null,null,null,"Case Management - 142","Mental Health Cases",null,null,null,null,null,null,null,"1418","137","Y","84","Inmate Programs and Education - Library","EACH","INPUT","ADOPTEDBUD",null,null,null,"Inmate Programs and Education - Library","No. of Re-Entry Plans completed",null,{"$f":"'Data SBP Measures'!$AF371&'Data SBP Measures'!$AE371& \" - \"& 'Data SBP Measures'!$U371","v":"No. of Re-Entry Plans completedInmate Programs and Education - Library - 137"},{"$f":"_xlfn.XLOOKUP(VALUE(W371),'Data SBP Programs'!O:O,'Data SBP Programs'!S:S)","v":"Inmate Programs and Education - Library"}]
[{"$f":"'Data SBP Measures'!$AI1812&\" - \"&'Data SBP Measures'!$U1812","v":"Case Management - 142"},{"$f":"'Data SBP Measures'!$AF1812","v":"Supervision Caseload per Officer"},{"$f":"'Data SBP Measures'!$T1812","v":"2459"},{"$f":"'Data SBP Measures'!$U1812&B372","v":"142Supervision Caseload per Officer"},{"$f":"'Data SBP Measures'!$Y1812","v":"EACH"},null,null,null,null,null,"Case Management - 142","Supervision Caseload per Officer",null,null,null,null,null,null,null,"1418","137","Y","84","Inmate Programs and Education - Library","EACH","INPUT","ADOPTEDBUD",null,null,null,"Inmate Programs and Education - Library","No. of Re-Entry Plans completed",null,{"$f":"'Data SBP Measures'!$AF372&'Data SBP Measures'!$AE372& \" - \"& 'Data SBP Measures'!$U372","v":"No. of Re-Entry Plans completedInmate Programs and Education - Library - 137"},{"$f":"_xlfn.XLOOKUP(VALUE(W372),'Data SBP Programs'!O:O,'Data SBP Programs'!S:S)","v":"Inmate Programs and Education - Library"}]
[{"$f":"'Data SBP Measures'!$AI1807&\" - \"&'Data SBP Measures'!$U1807","v":"Case Management - 142"},{"$f":"'Data SBP Measures'!$AF1807","v":"Supervision Cases"},{"$f":"'Data SBP Measures'!$T1807","v":"2454"},{"$f":"'Data SBP Measures'!$U1807&B373","v":"142Supervision Cases"},{"$f":"'Data SBP Measures'!$Y1807","v":"EACH"},null,null,null,null,null,"Case Management - 142","Supervision Cases",null,null,null,null,null,null,null,"1419","137","Y","84","Inmate Programs and Education - Library","EACH","INPUT","ADOPTEDBUD",null,null,null,"Inmate Programs and Education - Library","No. of screening questionnaires completed by counseling staff",null,{"$f":"'Data SBP Measures'!$AF373&'Data SBP Measures'!$AE373& \" - \"& 'Data SBP Measures'!$U373","v":"No. of screening questionnaires completed by counseling staffInmate Programs and Education - Library - 137"},{"$f":"_xlfn.XLOOKUP(VALUE(W373),'Data SBP Programs'!O:O,'Data SBP Programs'!S:S)","v":"Inmate Programs and Education - Library"}]
[{"$f":"'Data SBP Measures'!$AI64&\" - \"&'Data SBP Measures'!$U64","v":"CDBG Administration - 158"},{"$f":"'Data SBP Measures'!$AF64","v":"Affirmatively Further Fair Housing as required"},{"$f":"'Data SBP Measures'!$T64","v":"1091"},{"$f":"'Data SBP Measures'!$U64&B374","v":"158Affirmatively Further Fair Housing as required"},{"$f":"'Data SBP Measures'!$Y64","v":"EACH"},null,null,null,null,null,"CDBG Administration - 158","Affirmatively Further Fair Housing as required",null,null,null,null,null,null,null,"1419","137","Y","84","Inmate Programs and Education - Library","EACH","INPUT","ADOPTEDBUD",null,null,null,"Inmate Programs and Education - Library","No. of screening questionnaires completed by counseling staff",null,{"$f":"'Data SBP Measures'!$AF374&'Data SBP Measures'!$AE374& \" - \"& 'Data SBP Measures'!$U374","v":"No. of screening questionnaires completed by counseling staffInmate Programs and Education - Library - 137"},{"$f":"_xlfn.XLOOKUP(VALUE(W374),'Data SBP Programs'!O:O,'Data SBP Programs'!S:S)","v":"Inmate Programs and Education - Library"}]
[{"$f":"'Data SBP Measures'!$AI63&\" - \"&'Data SBP Measures'!$U63","v":"CDBG Administration - 158"},{"$f":"'Data SBP Measures'!$AF63","v":"Increase % of services to areas of very low/low opportunity"},{"$f":"'Data SBP Measures'!$T63","v":"1090"},{"$f":"'Data SBP Measures'!$U63&B375","v":"158Increase % of services to areas of very low/low opportunity"},{"$f":"'Data SBP Measures'!$Y63","v":"PERCENT"},null,null,null,null,null,"CDBG Administration - 158","Increase % of services to areas of very low/low opportunity",null,null,null,null,null,null,null,"1419","137","Y","84","Inmate Programs and Education - Library","EACH","INPUT","ADOPTEDBUD",null,null,null,"Inmate Programs and Education - Library","No. of screening questionnaires completed by counseling staff",null,{"$f":"'Data SBP Measures'!$AF375&'Data SBP Measures'!$AE375& \" - \"& 'Data SBP Measures'!$U375","v":"No. of screening questionnaires completed by counseling staffInmate Programs and Education - Library - 137"},{"$f":"_xlfn.XLOOKUP(VALUE(W375),'Data SBP Programs'!O:O,'Data SBP Programs'!S:S)","v":"Inmate Programs and Education - Library"}]
[{"$f":"'Data SBP Measures'!$AI65&\" - \"&'Data SBP Measures'!$U65","v":"CDBG Administration - 158"},{"$f":"'Data SBP Measures'!$AF65","v":"Meet HUD required spending ratio by August 1st"},{"$f":"'Data SBP Measures'!$T65","v":"1092"},{"$f":"'Data SBP Measures'!$U65&B376","v":"158Meet HUD required spending ratio by August 1st"},{"$f":"'Data SBP Measures'!$Y65","v":"EACH"},null,null,null,null,null,"CDBG Administration - 158","Meet HUD required spending ratio by August 1st",null,null,null,null,null,null,null,"1420","137","Y","84","Inmate Programs and Education - Library","EACH","INPUT","ADOPTEDBUD",null,null,null,"Inmate Programs and Education - Library","No. of Substance Use Disorder classes offered",null,{"$f":"'Data SBP Measures'!$AF376&'Data SBP Measures'!$AE376& \" - \"& 'Data SBP Measures'!$U376","v":"No. of Substance Use Disorder classes offeredInmate Programs and Education - Library - 137"},{"$f":"_xlfn.XLOOKUP(VALUE(W376),'Data SBP Programs'!O:O,'Data SBP Programs'!S:S)","v":"Inmate Programs and Education - Library"}]
[{"$f":"'Data SBP Measures'!$AI66&\" - \"&'Data SBP Measures'!$U66","v":"CDBG Administration - 158"},{"$f":"'Data SBP Measures'!$AF66","v":"Successful completion of monitoring visit by HUD personnel - findings."},{"$f":"'Data SBP Measures'!$T66","v":"1093"},{"$f":"'Data SBP Measures'!$U66&B377","v":"158Successful completion of monitoring visit by HUD personnel - findings."},{"$f":"'Data SBP Measures'!$Y66","v":"EACH"},null,null,null,null,null,"CDBG Administration - 158","Successful completion of monitoring visit by HUD personnel - findings.",null,null,null,null,null,null,null,"1420","137","Y","84","Inmate Programs and Education - Library","EACH","INPUT","ADOPTEDBUD",null,null,null,"Inmate Programs and Education - Library","No. of Substance Use Disorder classes offered",null,{"$f":"'Data SBP Measures'!$AF377&'Data SBP Measures'!$AE377& \" - \"& 'Data SBP Measures'!$U377","v":"No. of Substance Use Disorder classes offeredInmate Programs and Education - Library - 137"},{"$f":"_xlfn.XLOOKUP(VALUE(W377),'Data SBP Programs'!O:O,'Data SBP Programs'!S:S)","v":"Inmate Programs and Education - Library"}]
[{"$f":"'Data SBP Measures'!$AI2960&\" - \"&'Data SBP Measures'!$U2960","v":"Central Booking - 137"},{"$f":"'Data SBP Measures'!$AF2960","v":"Average no of daily bookings"},{"$f":"'Data SBP Measures'!$T2960","v":"3482"},{"$f":"'Data SBP Measures'!$U2960&B378","v":"137Average no of daily bookings"},{"$f":"'Data SBP Measures'!$Y2960","v":"EACH"},null,null,null,null,null,"Central Booking - 137","Average no of daily bookings",null,null,null,null,null,null,null,"1420","137","Y","84","Inmate Programs and Education - Library","EACH","INPUT","ADOPTEDBUD",null,null,null,"Inmate Programs and Education - Library","No. of Substance Use Disorder classes offered",null,{"$f":"'Data SBP Measures'!$AF378&'Data SBP Measures'!$AE378& \" - \"& 'Data SBP Measures'!$U378","v":"No. of Substance Use Disorder classes offeredInmate Programs and Education - Library - 137"},{"$f":"_xlfn.XLOOKUP(VALUE(W378),'Data SBP Programs'!O:O,'Data SBP Programs'!S:S)","v":"Inmate Programs and Education - Library"}]
[{"$f":"'Data SBP Measures'!$AI2961&\" - \"&'Data SBP Measures'!$U2961","v":"Central Booking - 137"},{"$f":"'Data SBP Measures'!$AF2961","v":"Average no of daily bookings"},{"$f":"'Data SBP Measures'!$T2961","v":"3482"},{"$f":"'Data SBP Measures'!$U2961&B379","v":"137Average no of daily bookings"},{"$f":"'Data SBP Measures'!$Y2961","v":"EACH"},null,null,null,null,null,"Central Booking - 137","Average no of daily bookings",null,null,null,null,null,null,null,"1421","137","Y","84","Inmate Programs and Education - Library","EACH","INPUT","ADOPTEDBUD",null,null,null,"Inmate Programs and Education - Library","No. of Women, Children and Families classes offered",null,{"$f":"'Data SBP Measures'!$AF379&'Data SBP Measures'!$AE379& \" - \"& 'Data SBP Measures'!$U379","v":"No. of Women, Children and Families classes offeredInmate Programs and Education - Library - 137"},{"$f":"_xlfn.XLOOKUP(VALUE(W379),'Data SBP Programs'!O:O,'Data SBP Programs'!S:S)","v":"Inmate Programs and Education - Library"}]
[{"$f":"'Data SBP Measures'!$AI2962&\" - \"&'Data SBP Measures'!$U2962","v":"Central Booking - 137"},{"$f":"'Data SBP Measures'!$AF2962","v":"Average no of daily bookings"},{"$f":"'Data SBP Measures'!$T2962","v":"3482"},{"$f":"'Data SBP Measures'!$U2962&B380","v":"137Average no of daily bookings"},{"$f":"'Data SBP Measures'!$Y2962","v":"EACH"},null,null,null,null,null,"Central Booking - 137","Average no of daily bookings",null,null,null,null,null,null,null,"1421","137","Y","84","Inmate Programs and Education - Library","EACH","INPUT","ADOPTEDBUD",null,null,null,"Inmate Programs and Education - Library","No. of Women, Children and Families classes offered",null,{"$f":"'Data SBP Measures'!$AF380&'Data SBP Measures'!$AE380& \" - \"& 'Data SBP Measures'!$U380","v":"No. of Women, Children and Families classes offeredInmate Programs and Education - Library - 137"},{"$f":"_xlfn.XLOOKUP(VALUE(W380),'Data SBP Programs'!O:O,'Data SBP Programs'!S:S)","v":"Inmate Programs and Education - Library"}]
[{"$f":"'Data SBP Measures'!$AI239&\" - \"&'Data SBP Measures'!$U239","v":"Central Booking - 137"},{"$f":"'Data SBP Measures'!$AF239","v":"No. of arrest processed"},{"$f":"'Data SBP Measures'!$T239","v":"1285"},{"$f":"'Data SBP Measures'!$U239&B381","v":"137No. of arrest processed"},{"$f":"'Data SBP Measures'!$Y239","v":"EACH"},null,null,null,null,null,"Central Booking - 137","No. of arrest processed",null,null,null,null,null,null,null,"1421","137","Y","84","Inmate Programs and Education - Library","EACH","INPUT","ADOPTEDBUD",null,null,null,"Inmate Programs and Education - Library","No. of Women, Children and Families classes offered",null,{"$f":"'Data SBP Measures'!$AF381&'Data SBP Measures'!$AE381& \" - \"& 'Data SBP Measures'!$U381","v":"No. of Women, Children and Families classes offeredInmate Programs and Education - Library - 137"},{"$f":"_xlfn.XLOOKUP(VALUE(W381),'Data SBP Programs'!O:O,'Data SBP Programs'!S:S)","v":"Inmate Programs and Education - Library"}]
[{"$f":"'Data SBP Measures'!$AI240&\" - \"&'Data SBP Measures'!$U240","v":"Central Booking - 137"},{"$f":"'Data SBP Measures'!$AF240","v":"No. of arrest processed"},{"$f":"'Data SBP Measures'!$T240","v":"1285"},{"$f":"'Data SBP Measures'!$U240&B382","v":"137No. of arrest processed"},{"$f":"'Data SBP Measures'!$Y240","v":"EACH"},null,null,null,null,null,"Central Booking - 137","No. of arrest processed",null,null,null,null,null,null,null,"1422","137","Y","84","Inmate Programs and Education - Library","EACH","INPUT","ADOPTEDBUD",null,null,null,"Inmate Programs and Education - Library","No. of Youth & Veteran Programming classes offered",null,{"$f":"'Data SBP Measures'!$AF382&'Data SBP Measures'!$AE382& \" - \"& 'Data SBP Measures'!$U382","v":"No. of Youth & Veteran Programming classes offeredInmate Programs and Education - Library - 137"},{"$f":"_xlfn.XLOOKUP(VALUE(W382),'Data SBP Programs'!O:O,'Data SBP Programs'!S:S)","v":"Inmate Programs and Education - Library"}]
[{"$f":"'Data SBP Measures'!$AI241&\" - \"&'Data SBP Measures'!$U241","v":"Central Booking - 137"},{"$f":"'Data SBP Measures'!$AF241","v":"No. of arrest processed"},{"$f":"'Data SBP Measures'!$T241","v":"1285"},{"$f":"'Data SBP Measures'!$U241&B383","v":"137No. of arrest processed"},{"$f":"'Data SBP Measures'!$Y241","v":"EACH"},null,null,null,null,null,"Central Booking - 137","No. of arrest processed",null,null,null,null,null,null,null,"1422","137","Y","84","Inmate Programs and Education - Library","EACH","INPUT","ADOPTEDBUD",null,null,null,"Inmate Programs and Education - Library","No. of Youth & Veteran Programming classes offered",null,{"$f":"'Data SBP Measures'!$AF383&'Data SBP Measures'!$AE383& \" - \"& 'Data SBP Measures'!$U383","v":"No. of Youth & Veteran Programming classes offeredInmate Programs and Education - Library - 137"},{"$f":"_xlfn.XLOOKUP(VALUE(W383),'Data SBP Programs'!O:O,'Data SBP Programs'!S:S)","v":"Inmate Programs and Education - Library"}]
[{"$f":"'Data SBP Measures'!$AI242&\" - \"&'Data SBP Measures'!$U242","v":"Central Booking - 137"},{"$f":"'Data SBP Measures'!$AF242","v":"No. of bonds processed"},{"$f":"'Data SBP Measures'!$T242","v":"1286"},{"$f":"'Data SBP Measures'!$U242&B384","v":"137No. of bonds processed"},{"$f":"'Data SBP Measures'!$Y242","v":"EACH"},null,null,null,null,null,"Central Booking - 137","No. of bonds processed",null,null,null,null,null,null,null,"1422","137","Y","84","Inmate Programs and Education - Library","EACH","INPUT","ADOPTEDBUD",null,null,null,"Inmate Programs and Education - Library","No. of Youth & Veteran Programming classes offered",null,{"$f":"'Data SBP Measures'!$AF384&'Data SBP Measures'!$AE384& \" - \"& 'Data SBP Measures'!$U384","v":"No. of Youth & Veteran Programming classes offeredInmate Programs and Education - Library - 137"},{"$f":"_xlfn.XLOOKUP(VALUE(W384),'Data SBP Programs'!O:O,'Data SBP Programs'!S:S)","v":"Inmate Programs and Education - Library"}]
[{"$f":"'Data SBP Measures'!$AI243&\" - \"&'Data SBP Measures'!$U243","v":"Central Booking - 137"},{"$f":"'Data SBP Measures'!$AF243","v":"No. of bonds processed"},{"$f":"'Data SBP Measures'!$T243","v":"1286"},{"$f":"'Data SBP Measures'!$U243&B385","v":"137No. of bonds processed"},{"$f":"'Data SBP Measures'!$Y243","v":"EACH"},null,null,null,null,null,"Central Booking - 137","No. of bonds processed",null,null,null,null,null,null,null,"1423","137","Y","84","Inmate Programs and Education - Library","EACH","INPUT","ADOPTEDBUD",null,null,null,"Inmate Programs and Education - Library","Number of interns per semester",null,{"$f":"'Data SBP Measures'!$AF385&'Data SBP Measures'!$AE385& \" - \"& 'Data SBP Measures'!$U385","v":"Number of interns per semesterInmate Programs and Education - Library - 137"},{"$f":"_xlfn.XLOOKUP(VALUE(W385),'Data SBP Programs'!O:O,'Data SBP Programs'!S:S)","v":"Inmate Programs and Education - Library"}]
[{"$f":"'Data SBP Measures'!$AI244&\" - \"&'Data SBP Measures'!$U244","v":"Central Booking - 137"},{"$f":"'Data SBP Measures'!$AF244","v":"No. of bonds processed"},{"$f":"'Data SBP Measures'!$T244","v":"1286"},{"$f":"'Data SBP Measures'!$U244&B386","v":"137No. of bonds processed"},{"$f":"'Data SBP Measures'!$Y244","v":"EACH"},null,null,null,null,null,"Central Booking - 137","No. of bonds processed",null,null,null,null,null,null,null,"1423","137","Y","84","Inmate Programs and Education - Library","EACH","INPUT","ADOPTEDBUD",null,null,null,"Inmate Programs and Education - Library","Number of interns per semester",null,{"$f":"'Data SBP Measures'!$AF386&'Data SBP Measures'!$AE386& \" - \"& 'Data SBP Measures'!$U386","v":"Number of interns per semesterInmate Programs and Education - Library - 137"},{"$f":"_xlfn.XLOOKUP(VALUE(W386),'Data SBP Programs'!O:O,'Data SBP Programs'!S:S)","v":"Inmate Programs and Education - Library"}]
[{"$f":"'Data SBP Measures'!$AI245&\" - \"&'Data SBP Measures'!$U245","v":"Central Booking - 137"},{"$f":"'Data SBP Measures'!$AF245","v":"No. of releases processed"},{"$f":"'Data SBP Measures'!$T245","v":"1287"},{"$f":"'Data SBP Measures'!$U245&B387","v":"137No. of releases processed"},{"$f":"'Data SBP Measures'!$Y245","v":"EACH"},null,null,null,null,null,"Central Booking - 137","No. of releases processed",null,null,null,null,null,null,null,"1423","137","Y","84","Inmate Programs and Education - Library","EACH","INPUT","ADOPTEDBUD",null,null,null,"Inmate Programs and Education - Library","Number of interns per semester",null,{"$f":"'Data SBP Measures'!$AF387&'Data SBP Measures'!$AE387& \" - \"& 'Data SBP Measures'!$U387","v":"Number of interns per semesterInmate Programs and Education - Library - 137"},{"$f":"_xlfn.XLOOKUP(VALUE(W387),'Data SBP Programs'!O:O,'Data SBP Programs'!S:S)","v":"Inmate Programs and Education - Library"}]
[{"$f":"'Data SBP Measures'!$AI246&\" - \"&'Data SBP Measures'!$U246","v":"Central Booking - 137"},{"$f":"'Data SBP Measures'!$AF246","v":"No. of releases processed"},{"$f":"'Data SBP Measures'!$T246","v":"1287"},{"$f":"'Data SBP Measures'!$U246&B388","v":"137No. of releases processed"},{"$f":"'Data SBP Measures'!$Y246","v":"EACH"},null,null,null,null,null,"Central Booking - 137","No. of releases processed",null,null,null,null,null,null,null,"1424","137","Y","84","Inmate Programs and Education - Library","PERCENT","INPUT","ADOPTEDBUD",null,null,null,"Inmate Programs and Education - Library","Percent of inmate follow-ups appointments which are bumped.",null,{"$f":"'Data SBP Measures'!$AF388&'Data SBP Measures'!$AE388& \" - \"& 'Data SBP Measures'!$U388","v":"Percent of inmate follow-ups appointments which are bumped.Inmate Programs and Education - Library - 137"},{"$f":"_xlfn.XLOOKUP(VALUE(W388),'Data SBP Programs'!O:O,'Data SBP Programs'!S:S)","v":"Inmate Programs and Education - Library"}]
[{"$f":"'Data SBP Measures'!$AI247&\" - \"&'Data SBP Measures'!$U247","v":"Central Booking - 137"},{"$f":"'Data SBP Measures'!$AF247","v":"No. of releases processed"},{"$f":"'Data SBP Measures'!$T247","v":"1287"},{"$f":"'Data SBP Measures'!$U247&B389","v":"137No. of releases processed"},{"$f":"'Data SBP Measures'!$Y247","v":"EACH"},null,null,null,null,null,"Central Booking - 137","No. of releases processed",null,null,null,null,null,null,null,"1424","137","Y","84","Inmate Programs and Education - Library","PERCENT","INPUT","ADOPTEDBUD",null,null,null,"Inmate Programs and Education - Library","Percent of inmate follow-ups appointments which are bumped.",null,{"$f":"'Data SBP Measures'!$AF389&'Data SBP Measures'!$AE389& \" - \"& 'Data SBP Measures'!$U389","v":"Percent of inmate follow-ups appointments which are bumped.Inmate Programs and Education - Library - 137"},{"$f":"_xlfn.XLOOKUP(VALUE(W389),'Data SBP Programs'!O:O,'Data SBP Programs'!S:S)","v":"Inmate Programs and Education - Library"}]
[{"$f":"'Data SBP Measures'!$AI2957&\" - \"&'Data SBP Measures'!$U2957","v":"Central Booking - 137"},{"$f":"'Data SBP Measures'!$AF2957","v":"No. of times contraband was found"},{"$f":"'Data SBP Measures'!$T2957","v":"3481"},{"$f":"'Data SBP Measures'!$U2957&B390","v":"137No. of times contraband was found"},{"$f":"'Data SBP Measures'!$Y2957","v":"EACH"},null,null,null,null,null,"Central Booking - 137","No. of times contraband was found",null,null,null,null,null,null,null,"1424","137","Y","84","Inmate Programs and Education - Library","PERCENT","INPUT","ADOPTEDBUD",null,null,null,"Inmate Programs and Education - Library","Percent of inmate follow-ups appointments which are bumped.",null,{"$f":"'Data SBP Measures'!$AF390&'Data SBP Measures'!$AE390& \" - \"& 'Data SBP Measures'!$U390","v":"Percent of inmate follow-ups appointments which are bumped.Inmate Programs and Education - Library - 137"},{"$f":"_xlfn.XLOOKUP(VALUE(W390),'Data SBP Programs'!O:O,'Data SBP Programs'!S:S)","v":"Inmate Programs and Education - Library"}]
[{"$f":"'Data SBP Measures'!$AI2958&\" - \"&'Data SBP Measures'!$U2958","v":"Central Booking - 137"},{"$f":"'Data SBP Measures'!$AF2958","v":"No. of times contraband was found"},{"$f":"'Data SBP Measures'!$T2958","v":"3481"},{"$f":"'Data SBP Measures'!$U2958&B391","v":"137No. of times contraband was found"},{"$f":"'Data SBP Measures'!$Y2958","v":"EACH"},null,null,null,null,null,"Central Booking - 137","No. of times contraband was found",null,null,null,null,null,null,null,"1425","137","Y","84","Inmate Programs and Education - Library","EACH","INPUT","ADOPTEDBUD",null,null,null,"Inmate Programs and Education - Library","Psychiatric Provider Chart Audits for Quality Assurance per year for each provider.",null,{"$f":"'Data SBP Measures'!$AF391&'Data SBP Measures'!$AE391& \" - \"& 'Data SBP Measures'!$U391","v":"Psychiatric Provider Chart Audits for Quality Assurance per year for each provider.Inmate Programs and Education - Library - 137"},{"$f":"_xlfn.XLOOKUP(VALUE(W391),'Data SBP Programs'!O:O,'Data SBP Programs'!S:S)","v":"Inmate Programs and Education - Library"}]
[{"$f":"'Data SBP Measures'!$AI2959&\" - \"&'Data SBP Measures'!$U2959","v":"Central Booking - 137"},{"$f":"'Data SBP Measures'!$AF2959","v":"No. of times contraband was found"},{"$f":"'Data SBP Measures'!$T2959","v":"3481"},{"$f":"'Data SBP Measures'!$U2959&B392","v":"137No. of times contraband was found"},{"$f":"'Data SBP Measures'!$Y2959","v":"EACH"},null,null,null,null,null,"Central Booking - 137","No. of times contraband was found",null,null,null,null,null,null,null,"1425","137","Y","84","Inmate Programs and Education - Library","EACH","INPUT","ADOPTEDBUD",null,null,null,"Inmate Programs and Education - Library","Psychiatric Provider Chart Audits for Quality Assurance per year for each provider.",null,{"$f":"'Data SBP Measures'!$AF392&'Data SBP Measures'!$AE392& \" - \"& 'Data SBP Measures'!$U392","v":"Psychiatric Provider Chart Audits for Quality Assurance per year for each provider.Inmate Programs and Education - Library - 137"},{"$f":"_xlfn.XLOOKUP(VALUE(W392),'Data SBP Programs'!O:O,'Data SBP Programs'!S:S)","v":"Inmate Programs and Education - Library"}]
[{"$f":"'Data SBP Measures'!$AI2963&\" - \"&'Data SBP Measures'!$U2963","v":"Central Records - 137"},{"$f":"'Data SBP Measures'!$AF2963","v":"No. of Case Jackets & items filed with CJ"},{"$f":"'Data SBP Measures'!$T2963","v":"3483"},{"$f":"'Data SBP Measures'!$U2963&B393","v":"137No. of Case Jackets & items filed with CJ"},{"$f":"'Data SBP Measures'!$Y2963","v":"EACH"},null,null,null,null,null,"Central Records - 137","No. of Case Jackets & items filed with CJ",null,null,null,null,null,null,null,"1425","137","Y","84","Inmate Programs and Education - Library","EACH","INPUT","ADOPTEDBUD",null,null,null,"Inmate Programs and Education - Library","Psychiatric Provider Chart Audits for Quality Assurance per year for each provider.",null,{"$f":"'Data SBP Measures'!$AF393&'Data SBP Measures'!$AE393& \" - \"& 'Data SBP Measures'!$U393","v":"Psychiatric Provider Chart Audits for Quality Assurance per year for each provider.Inmate Programs and Education - Library - 137"},{"$f":"_xlfn.XLOOKUP(VALUE(W393),'Data SBP Programs'!O:O,'Data SBP Programs'!S:S)","v":"Inmate Programs and Education - Library"}]
[{"$f":"'Data SBP Measures'!$AI253&\" - \"&'Data SBP Measures'!$U253","v":"Central Records - 137"},{"$f":"'Data SBP Measures'!$AF253","v":"No. of citations entered"},{"$f":"'Data SBP Measures'!$T253","v":"1292"},{"$f":"'Data SBP Measures'!$U253&B394","v":"137No. of citations entered"},{"$f":"'Data SBP Measures'!$Y253","v":"EACH"},null,null,null,null,null,"Central Records - 137","No. of citations entered",null,null,null,null,null,null,null,"1426","137","Y","87","Kitchen","EACH","INPUT","ADOPTEDBUD",null,null,null,"Kitchen","No. of meals prepared",null,{"$f":"'Data SBP Measures'!$AF394&'Data SBP Measures'!$AE394& \" - \"& 'Data SBP Measures'!$U394","v":"No. of meals preparedKitchen - 137"},{"$f":"_xlfn.XLOOKUP(VALUE(W394),'Data SBP Programs'!O:O,'Data SBP Programs'!S:S)","v":"Kitchen"}]
[{"$f":"'Data SBP Measures'!$AI252&\" - \"&'Data SBP Measures'!$U252","v":"Central Records - 137"},{"$f":"'Data SBP Measures'!$AF252","v":"No. of expunctions"},{"$f":"'Data SBP Measures'!$T252","v":"1291"},{"$f":"'Data SBP Measures'!$U252&B395","v":"137No. of expunctions"},{"$f":"'Data SBP Measures'!$Y252","v":"EACH"},null,null,null,null,null,"Central Records - 137","No. of expunctions",null,null,null,null,null,null,null,"1427","137","Y","88","Lake Patrol","EACH","INPUT","ADOPTEDBUD",null,null,null,"Lake Patrol","No. of Calls For Service",null,{"$f":"'Data SBP Measures'!$AF395&'Data SBP Measures'!$AE395& \" - \"& 'Data SBP Measures'!$U395","v":"No. of Calls For ServiceLake Patrol - 137"},{"$f":"_xlfn.XLOOKUP(VALUE(W395),'Data SBP Programs'!O:O,'Data SBP Programs'!S:S)","v":"Lake Patrol"}]
[{"$f":"'Data SBP Measures'!$AI248&\" - \"&'Data SBP Measures'!$U248","v":"Central Records - 137"},{"$f":"'Data SBP Measures'!$AF248","v":"No. of name check requests"},{"$f":"'Data SBP Measures'!$T248","v":"1288"},{"$f":"'Data SBP Measures'!$U248&B396","v":"137No. of name check requests"},{"$f":"'Data SBP Measures'!$Y248","v":"EACH"},null,null,null,null,null,"Central Records - 137","No. of name check requests",null,null,null,null,null,null,null,"1428","137","Y","88","Lake Patrol","EACH","INPUT","ADOPTEDBUD",null,null,null,"Lake Patrol","No. of Public Contacts",null,{"$f":"'Data SBP Measures'!$AF396&'Data SBP Measures'!$AE396& \" - \"& 'Data SBP Measures'!$U396","v":"No. of Public ContactsLake Patrol - 137"},{"$f":"_xlfn.XLOOKUP(VALUE(W396),'Data SBP Programs'!O:O,'Data SBP Programs'!S:S)","v":"Lake Patrol"}]
[{"$f":"'Data SBP Measures'!$AI249&\" - \"&'Data SBP Measures'!$U249","v":"Central Records - 137"},{"$f":"'Data SBP Measures'!$AF249","v":"No. of reports entered"},{"$f":"'Data SBP Measures'!$T249","v":"1289"},{"$f":"'Data SBP Measures'!$U249&B397","v":"137No. of reports entered"},{"$f":"'Data SBP Measures'!$Y249","v":"EACH"},null,null,null,null,null,"Central Records - 137","No. of reports entered",null,null,null,null,null,null,null,"1429","137","Y","88","Lake Patrol","EACH","INPUT","ADOPTEDBUD",null,null,null,"Lake Patrol","No. of Special Assignments",null,{"$f":"'Data SBP Measures'!$AF397&'Data SBP Measures'!$AE397& \" - \"& 'Data SBP Measures'!$U397","v":"No. of Special AssignmentsLake Patrol - 137"},{"$f":"_xlfn.XLOOKUP(VALUE(W397),'Data SBP Programs'!O:O,'Data SBP Programs'!S:S)","v":"Lake Patrol"}]
[{"$f":"'Data SBP Measures'!$AI2964&\" - \"&'Data SBP Measures'!$U2964","v":"Central Records - 137"},{"$f":"'Data SBP Measures'!$AF2964","v":"No. of requests for police reports"},{"$f":"'Data SBP Measures'!$T2964","v":"3484"},{"$f":"'Data SBP Measures'!$U2964&B398","v":"137No. of requests for police reports"},{"$f":"'Data SBP Measures'!$Y2964","v":"EACH"},null,null,null,null,null,"Central Records - 137","No. of requests for police reports",null,null,null,null,null,null,null,"1430","137","Y","88","Lake Patrol","EACH","INPUT","ADOPTEDBUD",null,null,null,"Lake Patrol","No. Boat Collisions",null,{"$f":"'Data SBP Measures'!$AF398&'Data SBP Measures'!$AE398& \" - \"& 'Data SBP Measures'!$U398","v":"No. Boat CollisionsLake Patrol - 137"},{"$f":"_xlfn.XLOOKUP(VALUE(W398),'Data SBP Programs'!O:O,'Data SBP Programs'!S:S)","v":"Lake Patrol"}]
[{"$f":"'Data SBP Measures'!$AI251&\" - \"&'Data SBP Measures'!$U251","v":"Central Records - 137"},{"$f":"'Data SBP Measures'!$AF251","v":"No. of UCR reports read"},{"$f":"'Data SBP Measures'!$T251","v":"1290"},{"$f":"'Data SBP Measures'!$U251&B399","v":"137No. of UCR reports read"},{"$f":"'Data SBP Measures'!$Y251","v":"EACH"},null,null,null,null,null,"Central Records - 137","No. of UCR reports read",null,null,null,null,null,null,null,"1431","137","Y","88","Lake Patrol","EACH","INPUT","ADOPTEDBUD",null,null,null,"Lake Patrol","No. of Dive / SAR Operations",null,{"$f":"'Data SBP Measures'!$AF399&'Data SBP Measures'!$AE399& \" - \"& 'Data SBP Measures'!$U399","v":"No. of Dive / SAR OperationsLake Patrol - 137"},{"$f":"_xlfn.XLOOKUP(VALUE(W399),'Data SBP Programs'!O:O,'Data SBP Programs'!S:S)","v":"Lake Patrol"}]
[{"$f":"'Data SBP Measures'!$AI2966&\" - \"&'Data SBP Measures'!$U2966","v":"Central Warrants - 137"},{"$f":"'Data SBP Measures'!$AF2966","v":"# of TCIC Validation Data Entry complete"},{"$f":"'Data SBP Measures'!$T2966","v":"3486"},{"$f":"'Data SBP Measures'!$U2966&B400","v":"137# of TCIC Validation Data Entry complete"},{"$f":"'Data SBP Measures'!$Y2966","v":"EACH"},null,null,null,null,null,"Central Warrants - 137","# of TCIC Validation Data Entry complete",null,null,null,null,null,null,null,"1432","137","Y","185","Facilities - Call Center / Mail Room / Laundry / Warehouse\n","EACH","INPUT","ADOPTEDBUD",null,null,null,"Facilities - Call Center / Mail Room / Laundry / Warehouse\n","Pounds of laundry processed",null,{"$f":"'Data SBP Measures'!$AF400&'Data SBP Measures'!$AE400& \" - \"& 'Data SBP Measures'!$U400","v":"Pounds of laundry processedFacilities - Call Center / Mail Room / Laundry / Warehouse\n - 137"},{"$f":"_xlfn.XLOOKUP(VALUE(W400),'Data SBP Programs'!O:O,'Data SBP Programs'!S:S)","v":"Facilities - Call Center / Mail Room / Laundry / Warehouse\n"}]
[{"$f":"'Data SBP Measures'!$AI2967&\" - \"&'Data SBP Measures'!$U2967","v":"Central Warrants - 137"},{"$f":"'Data SBP Measures'!$AF2967","v":"# of TCIC/NCIC Record Second Party Check completed"},{"$f":"'Data SBP Measures'!$T2967","v":"3487"},{"$f":"'Data SBP Measures'!$U2967&B401","v":"137# of TCIC/NCIC Record Second Party Check completed"},{"$f":"'Data SBP Measures'!$Y2967","v":"EACH"},null,null,null,null,null,"Central Warrants - 137","# of TCIC/NCIC Record Second Party Check completed",null,null,null,null,null,null,null,"1435","137","Y","91","Life Safety","EACH","INPUT","ADOPTEDBUD",null,null,null,"Life Safety","Jail Standards Certification Yes/No (1 = Y, 0=N)",null,{"$f":"'Data SBP Measures'!$AF401&'Data SBP Measures'!$AE401& \" - \"& 'Data SBP Measures'!$U401","v":"Jail Standards Certification Yes/No (1 = Y, 0=N)Life Safety - 137"},{"$f":"_xlfn.XLOOKUP(VALUE(W401),'Data SBP Programs'!O:O,'Data SBP Programs'!S:S)","v":"Life Safety"}]
[{"$f":"'Data SBP Measures'!$AI2968&\" - \"&'Data SBP Measures'!$U2968","v":"Central Warrants - 137"},{"$f":"'Data SBP Measures'!$AF2968","v":"# of warrants due for validation"},{"$f":"'Data SBP Measures'!$T2968","v":"3488"},{"$f":"'Data SBP Measures'!$U2968&B402","v":"137# of warrants due for validation"},{"$f":"'Data SBP Measures'!$Y2968","v":"EACH"},null,null,null,null,null,"Central Warrants - 137","# of warrants due for validation",null,null,null,null,null,null,null,"1436","137","Y","185","Facilities - Call Center / Mail Room / Laundry / Warehouse\n","EACH","INPUT","ADOPTEDBUD",null,null,null,"Facilities - Call Center / Mail Room / Laundry / Warehouse\n","No. of pieces of mail screened",null,{"$f":"'Data SBP Measures'!$AF402&'Data SBP Measures'!$AE402& \" - \"& 'Data SBP Measures'!$U402","v":"No. of pieces of mail screenedFacilities - Call Center / Mail Room / Laundry / Warehouse\n - 137"},{"$f":"_xlfn.XLOOKUP(VALUE(W402),'Data SBP Programs'!O:O,'Data SBP Programs'!S:S)","v":"Facilities - Call Center / Mail Room / Laundry / Warehouse\n"}]
[{"$f":"'Data SBP Measures'!$AI254&\" - \"&'Data SBP Measures'!$U254","v":"Central Warrants - 137"},{"$f":"'Data SBP Measures'!$AF254","v":"Balance of outstanding warrants"},{"$f":"'Data SBP Measures'!$T254","v":"1294"},{"$f":"'Data SBP Measures'!$U254&B403","v":"137Balance of outstanding warrants"},{"$f":"'Data SBP Measures'!$Y254","v":"DOLLARS"},null,null,null,null,null,"Central Warrants - 137","Balance of outstanding warrants",null,null,null,null,null,null,null,"1437","137","Y","93","Maintenance","HOURS","INPUT","ADOPTEDBUD",null,null,null,"Maintenance","Hours spent on work orders",null,{"$f":"'Data SBP Measures'!$AF403&'Data SBP Measures'!$AE403& \" - \"& 'Data SBP Measures'!$U403","v":"Hours spent on work ordersMaintenance - 137"},{"$f":"_xlfn.XLOOKUP(VALUE(W403),'Data SBP Programs'!O:O,'Data SBP Programs'!S:S)","v":"Maintenance"}]
[{"$f":"'Data SBP Measures'!$AI2965&\" - \"&'Data SBP Measures'!$U2965","v":"Central Warrants - 137"},{"$f":"'Data SBP Measures'!$AF2965","v":"Condition of Bond Record Packets Entered"},{"$f":"'Data SBP Measures'!$T2965","v":"3485"},{"$f":"'Data SBP Measures'!$U2965&B404","v":"137Condition of Bond Record Packets Entered"},{"$f":"'Data SBP Measures'!$Y2965","v":"EACH"},null,null,null,null,null,"Central Warrants - 137","Condition of Bond Record Packets Entered",null,null,null,null,null,null,null,"1438","137","Y","93","Maintenance","EACH","INPUT","ADOPTEDBUD",null,null,null,"Maintenance","No. of work orders received",null,{"$f":"'Data SBP Measures'!$AF404&'Data SBP Measures'!$AE404& \" - \"& 'Data SBP Measures'!$U404","v":"No. of work orders receivedMaintenance - 137"},{"$f":"_xlfn.XLOOKUP(VALUE(W404),'Data SBP Programs'!O:O,'Data SBP Programs'!S:S)","v":"Maintenance"}]
[{"$f":"'Data SBP Measures'!$AI255&\" - \"&'Data SBP Measures'!$U255","v":"Central Warrants - 137"},{"$f":"'Data SBP Measures'!$AF255","v":"No. of warrant checks performed"},{"$f":"'Data SBP Measures'!$T255","v":"1295"},{"$f":"'Data SBP Measures'!$U255&B405","v":"137No. of warrant checks performed"},{"$f":"'Data SBP Measures'!$Y255","v":"EACH"},null,null,null,null,null,"Central Warrants - 137","No. of warrant checks performed",null,null,null,null,null,null,null,"1439","137","Y","93","Maintenance","EACH","INPUT","ADOPTEDBUD",null,null,null,"Maintenance","No. of work orders completed",null,{"$f":"'Data SBP Measures'!$AF405&'Data SBP Measures'!$AE405& \" - \"& 'Data SBP Measures'!$U405","v":"No. of work orders completedMaintenance - 137"},{"$f":"_xlfn.XLOOKUP(VALUE(W405),'Data SBP Programs'!O:O,'Data SBP Programs'!S:S)","v":"Maintenance"}]
[{"$f":"'Data SBP Measures'!$AI256&\" - \"&'Data SBP Measures'!$U256","v":"Central Warrants - 137"},{"$f":"'Data SBP Measures'!$AF256","v":"No. of warrants executed"},{"$f":"'Data SBP Measures'!$T256","v":"1296"},{"$f":"'Data SBP Measures'!$U256&B406","v":"137No. of warrants executed"},{"$f":"'Data SBP Measures'!$Y256","v":"EACH"},null,null,null,null,null,"Central Warrants - 137","No. of warrants executed",null,null,null,null,null,null,null,"1441","137","Y","69","CID - Major Crimes / Special Crimes / Environmental / Support","PERCENT","INPUT","ADOPTEDBUD",null,null,null,"CID - Major Crimes / Special Crimes / Environmental / Support","% of CID cases cleared",null,{"$f":"'Data SBP Measures'!$AF406&'Data SBP Measures'!$AE406& \" - \"& 'Data SBP Measures'!$U406","v":"% of CID cases clearedCID - Major Crimes / Special Crimes / Environmental / Support - 137"},{"$f":"_xlfn.XLOOKUP(VALUE(W406),'Data SBP Programs'!O:O,'Data SBP Programs'!S:S)","v":"CID - Major Crimes / Special Crimes / Environmental / Support"}]
[{"$f":"'Data SBP Measures'!$AI257&\" - \"&'Data SBP Measures'!$U257","v":"Central Warrants - 137"},{"$f":"'Data SBP Measures'!$AF257","v":"No. of warrants recalled"},{"$f":"'Data SBP Measures'!$T257","v":"1297"},{"$f":"'Data SBP Measures'!$U257&B407","v":"137No. of warrants recalled"},{"$f":"'Data SBP Measures'!$Y257","v":"EACH"},null,null,null,null,null,"Central Warrants - 137","No. of warrants recalled",null,null,null,null,null,null,null,"1442","137","Y","69","CID - Major Crimes / Special Crimes / Environmental / Support","PERCENT","INPUT","ADOPTEDBUD",null,null,null,"CID - Major Crimes / Special Crimes / Environmental / Support","% of Juvenile cases cleared",null,{"$f":"'Data SBP Measures'!$AF407&'Data SBP Measures'!$AE407& \" - \"& 'Data SBP Measures'!$U407","v":"% of Juvenile cases clearedCID - Major Crimes / Special Crimes / Environmental / Support - 137"},{"$f":"_xlfn.XLOOKUP(VALUE(W407),'Data SBP Programs'!O:O,'Data SBP Programs'!S:S)","v":"CID - Major Crimes / Special Crimes / Environmental / Support"}]
[{"$f":"'Data SBP Measures'!$AI258&\" - \"&'Data SBP Measures'!$U258","v":"Central Warrants - 137"},{"$f":"'Data SBP Measures'!$AF258","v":"No. of warrants received"},{"$f":"'Data SBP Measures'!$T258","v":"1298"},{"$f":"'Data SBP Measures'!$U258&B408","v":"137No. of warrants received"},{"$f":"'Data SBP Measures'!$Y258","v":"EACH"},null,null,null,null,null,"Central Warrants - 137","No. of warrants received",null,null,null,null,null,null,null,"1444","137","Y","69","CID - Major Crimes / Special Crimes / Environmental / Support","EACH","INPUT","ADOPTEDBUD",null,null,null,"CID - Major Crimes / Special Crimes / Environmental / Support","No. of arrests by detectives",null,{"$f":"'Data SBP Measures'!$AF408&'Data SBP Measures'!$AE408& \" - \"& 'Data SBP Measures'!$U408","v":"No. of arrests by detectivesCID - Major Crimes / Special Crimes / Environmental / Support - 137"},{"$f":"_xlfn.XLOOKUP(VALUE(W408),'Data SBP Programs'!O:O,'Data SBP Programs'!S:S)","v":"CID - Major Crimes / Special Crimes / Environmental / Support"}]
[{"$f":"'Data SBP Measures'!$AI2970&\" - \"&'Data SBP Measures'!$U2970","v":"Central Warrants - 137"},{"$f":"'Data SBP Measures'!$AF2970","v":"Phone Calls Total"},{"$f":"'Data SBP Measures'!$T2970","v":"3490"},{"$f":"'Data SBP Measures'!$U2970&B409","v":"137Phone Calls Total"},{"$f":"'Data SBP Measures'!$Y2970","v":"EACH"},null,null,null,null,null,"Central Warrants - 137","Phone Calls Total",null,null,null,null,null,null,null,"1445","137","Y","95","Marketable Skills","DOLLARS","INPUT","ADOPTEDBUD",null,null,null,"Marketable Skills","Cost of projects (MS)",null,{"$f":"'Data SBP Measures'!$AF409&'Data SBP Measures'!$AE409& \" - \"& 'Data SBP Measures'!$U409","v":"Cost of projects (MS)Marketable Skills - 137"},{"$f":"_xlfn.XLOOKUP(VALUE(W409),'Data SBP Programs'!O:O,'Data SBP Programs'!S:S)","v":"Marketable Skills"}]
[{"$f":"'Data SBP Measures'!$AI2969&\" - \"&'Data SBP Measures'!$U2969","v":"Central Warrants - 137"},{"$f":"'Data SBP Measures'!$AF2969","v":"TDC and Federal Inmate Detainer & Release Letters"},{"$f":"'Data SBP Measures'!$T2969","v":"3489"},{"$f":"'Data SBP Measures'!$U2969&B410","v":"137TDC and Federal Inmate Detainer & Release Letters"},{"$f":"'Data SBP Measures'!$Y2969","v":"EACH"},null,null,null,null,null,"Central Warrants - 137","TDC and Federal Inmate Detainer & Release Letters",null,null,null,null,null,null,null,"1446","137","Y","95","Marketable Skills","HOURS","INPUT","ADOPTEDBUD",null,null,null,"Marketable Skills","Hrs spent on work orders (MS)",null,{"$f":"'Data SBP Measures'!$AF410&'Data SBP Measures'!$AE410& \" - \"& 'Data SBP Measures'!$U410","v":"Hrs spent on work orders (MS)Marketable Skills - 137"},{"$f":"_xlfn.XLOOKUP(VALUE(W410),'Data SBP Programs'!O:O,'Data SBP Programs'!S:S)","v":"Marketable Skills"}]
[{"$f":"'Data SBP Measures'!$AI2759&\" - \"&'Data SBP Measures'!$U2759","v":"Centralized Court Collections - 108"},{"$f":"'Data SBP Measures'!$AF2759","v":"CC - # Cases Recalled/Paid in Full"},{"$f":"'Data SBP Measures'!$T2759","v":"3345"},{"$f":"'Data SBP Measures'!$U2759&B411","v":"108CC - # Cases Recalled/Paid in Full"},{"$f":"'Data SBP Measures'!$Y2759","v":"EACH"},null,null,null,null,null,"Centralized Court Collections - 108","CC - # Cases Recalled/Paid in Full",null,null,null,null,null,null,null,"1447","137","Y","95","Marketable Skills","EACH","INPUT","ADOPTEDBUD",null,null,null,"Marketable Skills","No. of participants (SWAP)",null,{"$f":"'Data SBP Measures'!$AF411&'Data SBP Measures'!$AE411& \" - \"& 'Data SBP Measures'!$U411","v":"No. of participants (SWAP)Marketable Skills - 137"},{"$f":"_xlfn.XLOOKUP(VALUE(W411),'Data SBP Programs'!O:O,'Data SBP Programs'!S:S)","v":"Marketable Skills"}]
[{"$f":"'Data SBP Measures'!$AI2760&\" - \"&'Data SBP Measures'!$U2760","v":"Centralized Court Collections - 108"},{"$f":"'Data SBP Measures'!$AF2760","v":"CC - # Cases Recalled/Paid in Full"},{"$f":"'Data SBP Measures'!$T2760","v":"3345"},{"$f":"'Data SBP Measures'!$U2760&B412","v":"108CC - # Cases Recalled/Paid in Full"},{"$f":"'Data SBP Measures'!$Y2760","v":"EACH"},null,null,null,null,null,"Centralized Court Collections - 108","CC - # Cases Recalled/Paid in Full",null,null,null,null,null,null,null,"1448","137","Y","95","Marketable Skills","EACH","INPUT","ADOPTEDBUD",null,null,null,"Marketable Skills","Project work orders (MS)",null,{"$f":"'Data SBP Measures'!$AF412&'Data SBP Measures'!$AE412& \" - \"& 'Data SBP Measures'!$U412","v":"Project work orders (MS)Marketable Skills - 137"},{"$f":"_xlfn.XLOOKUP(VALUE(W412),'Data SBP Programs'!O:O,'Data SBP Programs'!S:S)","v":"Marketable Skills"}]
[{"$f":"'Data SBP Measures'!$AI2761&\" - \"&'Data SBP Measures'!$U2761","v":"Centralized Court Collections - 108"},{"$f":"'Data SBP Measures'!$AF2761","v":"CC - # Cases Recalled/Paid in Full"},{"$f":"'Data SBP Measures'!$T2761","v":"3345"},{"$f":"'Data SBP Measures'!$U2761&B413","v":"108CC - # Cases Recalled/Paid in Full"},{"$f":"'Data SBP Measures'!$Y2761","v":"EACH"},null,null,null,null,null,"Centralized Court Collections - 108","CC - # Cases Recalled/Paid in Full",null,null,null,null,null,null,null,"1450","137","Y","96","Medical, Mental and Dental Services","EACH","INPUT","ADOPTEDBUD",null,null,null,"Medical, Mental and Dental Services","No. of prescriptions filled",null,{"$f":"'Data SBP Measures'!$AF413&'Data SBP Measures'!$AE413& \" - \"& 'Data SBP Measures'!$U413","v":"No. of prescriptions filledMedical, Mental and Dental Services - 137"},{"$f":"_xlfn.XLOOKUP(VALUE(W413),'Data SBP Programs'!O:O,'Data SBP Programs'!S:S)","v":"Medical, Mental and Dental Services"}]
[{"$f":"'Data SBP Measures'!$AI2753&\" - \"&'Data SBP Measures'!$U2753","v":"Centralized Court Collections - 108"},{"$f":"'Data SBP Measures'!$AF2753","v":"CC - # New Cases To Manage"},{"$f":"'Data SBP Measures'!$T2753","v":"3343"},{"$f":"'Data SBP Measures'!$U2753&B414","v":"108CC - # New Cases To Manage"},{"$f":"'Data SBP Measures'!$Y2753","v":"EACH"},null,null,null,null,null,"Centralized Court Collections - 108","CC - # New Cases To Manage",null,null,null,null,null,null,null,"1450","137","Y","96","Medical, Mental and Dental Services","EACH","INPUT","ADOPTEDBUD",null,null,null,"Medical, Mental and Dental Services","No. of prescriptions filled",null,{"$f":"'Data SBP Measures'!$AF414&'Data SBP Measures'!$AE414& \" - \"& 'Data SBP Measures'!$U414","v":"No. of prescriptions filledMedical, Mental and Dental Services - 137"},{"$f":"_xlfn.XLOOKUP(VALUE(W414),'Data SBP Programs'!O:O,'Data SBP Programs'!S:S)","v":"Medical, Mental and Dental Services"}]
[{"$f":"'Data SBP Measures'!$AI2754&\" - \"&'Data SBP Measures'!$U2754","v":"Centralized Court Collections - 108"},{"$f":"'Data SBP Measures'!$AF2754","v":"CC - # New Cases To Manage"},{"$f":"'Data SBP Measures'!$T2754","v":"3343"},{"$f":"'Data SBP Measures'!$U2754&B415","v":"108CC - # New Cases To Manage"},{"$f":"'Data SBP Measures'!$Y2754","v":"EACH"},null,null,null,null,null,"Centralized Court Collections - 108","CC - # New Cases To Manage",null,null,null,null,null,null,null,"1450","137","Y","96","Medical, Mental and Dental Services","EACH","INPUT","ADOPTEDBUD",null,null,null,"Medical, Mental and Dental Services","No. of prescriptions filled",null,{"$f":"'Data SBP Measures'!$AF415&'Data SBP Measures'!$AE415& \" - \"& 'Data SBP Measures'!$U415","v":"No. of prescriptions filledMedical, Mental and Dental Services - 137"},{"$f":"_xlfn.XLOOKUP(VALUE(W415),'Data SBP Programs'!O:O,'Data SBP Programs'!S:S)","v":"Medical, Mental and Dental Services"}]
[{"$f":"'Data SBP Measures'!$AI2755&\" - \"&'Data SBP Measures'!$U2755","v":"Centralized Court Collections - 108"},{"$f":"'Data SBP Measures'!$AF2755","v":"CC - # New Cases To Manage"},{"$f":"'Data SBP Measures'!$T2755","v":"3343"},{"$f":"'Data SBP Measures'!$U2755&B416","v":"108CC - # New Cases To Manage"},{"$f":"'Data SBP Measures'!$Y2755","v":"EACH"},null,null,null,null,null,"Centralized Court Collections - 108","CC - # New Cases To Manage",null,null,null,null,null,null,null,"1450","137","Y","96","Medical, Mental and Dental Services","EACH","INPUT","ADOPTEDBUD",null,null,null,"Medical, Mental and Dental Services","No. of prescriptions filled",null,{"$f":"'Data SBP Measures'!$AF416&'Data SBP Measures'!$AE416& \" - \"& 'Data SBP Measures'!$U416","v":"No. of prescriptions filledMedical, Mental and Dental Services - 137"},{"$f":"_xlfn.XLOOKUP(VALUE(W416),'Data SBP Programs'!O:O,'Data SBP Programs'!S:S)","v":"Medical, Mental and Dental Services"}]
[{"$f":"'Data SBP Measures'!$AI2762&\" - \"&'Data SBP Measures'!$U2762","v":"Centralized Court Collections - 108"},{"$f":"'Data SBP Measures'!$AF2762","v":"CC - # of Bills of Cost/Past Due Letters"},{"$f":"'Data SBP Measures'!$T2762","v":"3346"},{"$f":"'Data SBP Measures'!$U2762&B417","v":"108CC - # of Bills of Cost/Past Due Letters"},{"$f":"'Data SBP Measures'!$Y2762","v":"EACH"},null,null,null,null,null,"Centralized Court Collections - 108","CC - # of Bills of Cost/Past Due Letters",null,null,null,null,null,null,null,"1450","137","Y","96","Medical, Mental and Dental Services","EACH","INPUT","ADOPTEDBUD",null,null,null,"Medical, Mental and Dental Services","No. of prescriptions filled",null,{"$f":"'Data SBP Measures'!$AF417&'Data SBP Measures'!$AE417& \" - \"& 'Data SBP Measures'!$U417","v":"No. of prescriptions filledMedical, Mental and Dental Services - 137"},{"$f":"_xlfn.XLOOKUP(VALUE(W417),'Data SBP Programs'!O:O,'Data SBP Programs'!S:S)","v":"Medical, Mental and Dental Services"}]
[{"$f":"'Data SBP Measures'!$AI2763&\" - \"&'Data SBP Measures'!$U2763","v":"Centralized Court Collections - 108"},{"$f":"'Data SBP Measures'!$AF2763","v":"CC - # of Bills of Cost/Past Due Letters"},{"$f":"'Data SBP Measures'!$T2763","v":"3346"},{"$f":"'Data SBP Measures'!$U2763&B418","v":"108CC - # of Bills of Cost/Past Due Letters"},{"$f":"'Data SBP Measures'!$Y2763","v":"EACH"},null,null,null,null,null,"Centralized Court Collections - 108","CC - # of Bills of Cost/Past Due Letters",null,null,null,null,null,null,null,"1450","137","Y","96","Medical, Mental and Dental Services","EACH","INPUT","ADOPTEDBUD",null,null,null,"Medical, Mental and Dental Services","No. of prescriptions filled",null,{"$f":"'Data SBP Measures'!$AF418&'Data SBP Measures'!$AE418& \" - \"& 'Data SBP Measures'!$U418","v":"No. of prescriptions filledMedical, Mental and Dental Services - 137"},{"$f":"_xlfn.XLOOKUP(VALUE(W418),'Data SBP Programs'!O:O,'Data SBP Programs'!S:S)","v":"Medical, Mental and Dental Services"}]
[{"$f":"'Data SBP Measures'!$AI2764&\" - \"&'Data SBP Measures'!$U2764","v":"Centralized Court Collections - 108"},{"$f":"'Data SBP Measures'!$AF2764","v":"CC - # of Bills of Cost/Past Due Letters"},{"$f":"'Data SBP Measures'!$T2764","v":"3346"},{"$f":"'Data SBP Measures'!$U2764&B419","v":"108CC - # of Bills of Cost/Past Due Letters"},{"$f":"'Data SBP Measures'!$Y2764","v":"EACH"},null,null,null,null,null,"Centralized Court Collections - 108","CC - # of Bills of Cost/Past Due Letters",null,null,null,null,null,null,null,"1451","137","Y","96","Medical, Mental and Dental Services","EACH","INPUT","ADOPTEDBUD",null,null,null,"Medical, Mental and Dental Services","No. of contract versus staff hours",null,{"$f":"'Data SBP Measures'!$AF419&'Data SBP Measures'!$AE419& \" - \"& 'Data SBP Measures'!$U419","v":"No. of contract versus staff hoursMedical, Mental and Dental Services - 137"},{"$f":"_xlfn.XLOOKUP(VALUE(W419),'Data SBP Programs'!O:O,'Data SBP Programs'!S:S)","v":"Medical, Mental and Dental Services"}]
[{"$f":"'Data SBP Measures'!$AI2756&\" - \"&'Data SBP Measures'!$U2756","v":"Centralized Court Collections - 108"},{"$f":"'Data SBP Measures'!$AF2756","v":"CC - # of Payment Plan Applications"},{"$f":"'Data SBP Measures'!$T2756","v":"3344"},{"$f":"'Data SBP Measures'!$U2756&B420","v":"108CC - # of Payment Plan Applications"},{"$f":"'Data SBP Measures'!$Y2756","v":"EACH"},null,null,null,null,null,"Centralized Court Collections - 108","CC - # of Payment Plan Applications",null,null,null,null,null,null,null,"1451","137","Y","96","Medical, Mental and Dental Services","EACH","INPUT","ADOPTEDBUD",null,null,null,"Medical, Mental and Dental Services","No. of contract versus staff hours",null,{"$f":"'Data SBP Measures'!$AF420&'Data SBP Measures'!$AE420& \" - \"& 'Data SBP Measures'!$U420","v":"No. of contract versus staff hoursMedical, Mental and Dental Services - 137"},{"$f":"_xlfn.XLOOKUP(VALUE(W420),'Data SBP Programs'!O:O,'Data SBP Programs'!S:S)","v":"Medical, Mental and Dental Services"}]
[{"$f":"'Data SBP Measures'!$AI2757&\" - \"&'Data SBP Measures'!$U2757","v":"Centralized Court Collections - 108"},{"$f":"'Data SBP Measures'!$AF2757","v":"CC - # of Payment Plan Applications"},{"$f":"'Data SBP Measures'!$T2757","v":"3344"},{"$f":"'Data SBP Measures'!$U2757&B421","v":"108CC - # of Payment Plan Applications"},{"$f":"'Data SBP Measures'!$Y2757","v":"EACH"},null,null,null,null,null,"Centralized Court Collections - 108","CC - # of Payment Plan Applications",null,null,null,null,null,null,null,"1451","137","Y","96","Medical, Mental and Dental Services","EACH","INPUT","ADOPTEDBUD",null,null,null,"Medical, Mental and Dental Services","No. of contract versus staff hours",null,{"$f":"'Data SBP Measures'!$AF421&'Data SBP Measures'!$AE421& \" - \"& 'Data SBP Measures'!$U421","v":"No. of contract versus staff hoursMedical, Mental and Dental Services - 137"},{"$f":"_xlfn.XLOOKUP(VALUE(W421),'Data SBP Programs'!O:O,'Data SBP Programs'!S:S)","v":"Medical, Mental and Dental Services"}]
[{"$f":"'Data SBP Measures'!$AI2758&\" - \"&'Data SBP Measures'!$U2758","v":"Centralized Court Collections - 108"},{"$f":"'Data SBP Measures'!$AF2758","v":"CC - # of Payment Plan Applications"},{"$f":"'Data SBP Measures'!$T2758","v":"3344"},{"$f":"'Data SBP Measures'!$U2758&B422","v":"108CC - # of Payment Plan Applications"},{"$f":"'Data SBP Measures'!$Y2758","v":"EACH"},null,null,null,null,null,"Centralized Court Collections - 108","CC - # of Payment Plan Applications",null,null,null,null,null,null,null,"1451","137","Y","96","Medical, Mental and Dental Services","EACH","INPUT","ADOPTEDBUD",null,null,null,"Medical, Mental and Dental Services","No. of contract versus staff hours",null,{"$f":"'Data SBP Measures'!$AF422&'Data SBP Measures'!$AE422& \" - \"& 'Data SBP Measures'!$U422","v":"No. of contract versus staff hoursMedical, Mental and Dental Services - 137"},{"$f":"_xlfn.XLOOKUP(VALUE(W422),'Data SBP Programs'!O:O,'Data SBP Programs'!S:S)","v":"Medical, Mental and Dental Services"}]
[{"$f":"'Data SBP Measures'!$AI2765&\" - \"&'Data SBP Measures'!$U2765","v":"Centralized Court Collections - 108"},{"$f":"'Data SBP Measures'!$AF2765","v":"CC - # Telephone/Email Contact/Due Diligence"},{"$f":"'Data SBP Measures'!$T2765","v":"3347"},{"$f":"'Data SBP Measures'!$U2765&B423","v":"108CC - # Telephone/Email Contact/Due Diligence"},{"$f":"'Data SBP Measures'!$Y2765","v":"EACH"},null,null,null,null,null,"Centralized Court Collections - 108","CC - # Telephone/Email Contact/Due Diligence",null,null,null,null,null,null,null,"1451","137","Y","96","Medical, Mental and Dental Services","EACH","INPUT","ADOPTEDBUD",null,null,null,"Medical, Mental and Dental Services","No. of contract versus staff hours",null,{"$f":"'Data SBP Measures'!$AF423&'Data SBP Measures'!$AE423& \" - \"& 'Data SBP Measures'!$U423","v":"No. of contract versus staff hoursMedical, Mental and Dental Services - 137"},{"$f":"_xlfn.XLOOKUP(VALUE(W423),'Data SBP Programs'!O:O,'Data SBP Programs'!S:S)","v":"Medical, Mental and Dental Services"}]
[{"$f":"'Data SBP Measures'!$AI2766&\" - \"&'Data SBP Measures'!$U2766","v":"Centralized Court Collections - 108"},{"$f":"'Data SBP Measures'!$AF2766","v":"CC - # Telephone/Email Contact/Due Diligence"},{"$f":"'Data SBP Measures'!$T2766","v":"3347"},{"$f":"'Data SBP Measures'!$U2766&B424","v":"108CC - # Telephone/Email Contact/Due Diligence"},{"$f":"'Data SBP Measures'!$Y2766","v":"EACH"},null,null,null,null,null,"Centralized Court Collections - 108","CC - # Telephone/Email Contact/Due Diligence",null,null,null,null,null,null,null,"1451","137","Y","96","Medical, Mental and Dental Services","EACH","INPUT","ADOPTEDBUD",null,null,null,"Medical, Mental and Dental Services","No. of contract versus staff hours",null,{"$f":"'Data SBP Measures'!$AF424&'Data SBP Measures'!$AE424& \" - \"& 'Data SBP Measures'!$U424","v":"No. of contract versus staff hoursMedical, Mental and Dental Services - 137"},{"$f":"_xlfn.XLOOKUP(VALUE(W424),'Data SBP Programs'!O:O,'Data SBP Programs'!S:S)","v":"Medical, Mental and Dental Services"}]
[{"$f":"'Data SBP Measures'!$AI2767&\" - \"&'Data SBP Measures'!$U2767","v":"Centralized Court Collections - 108"},{"$f":"'Data SBP Measures'!$AF2767","v":"CC - # Telephone/Email Contact/Due Diligence"},{"$f":"'Data SBP Measures'!$T2767","v":"3347"},{"$f":"'Data SBP Measures'!$U2767&B425","v":"108CC - # Telephone/Email Contact/Due Diligence"},{"$f":"'Data SBP Measures'!$Y2767","v":"EACH"},null,null,null,null,null,"Centralized Court Collections - 108","CC - # Telephone/Email Contact/Due Diligence",null,null,null,null,null,null,null,"1452","137","Y","96","Medical, Mental and Dental Services","EACH","INPUT","ADOPTEDBUD",null,null,null,"Medical, Mental and Dental Services","No. of intake evaluations in CBF",null,{"$f":"'Data SBP Measures'!$AF425&'Data SBP Measures'!$AE425& \" - \"& 'Data SBP Measures'!$U425","v":"No. of intake evaluations in CBFMedical, Mental and Dental Services - 137"},{"$f":"_xlfn.XLOOKUP(VALUE(W425),'Data SBP Programs'!O:O,'Data SBP Programs'!S:S)","v":"Medical, Mental and Dental Services"}]
[{"$f":"'Data SBP Measures'!$AI2774&\" - \"&'Data SBP Measures'!$U2774","v":"Centralized Court Collections - 108"},{"$f":"'Data SBP Measures'!$AF2774","v":"DC - # Cases Recalled/Paid in Full"},{"$f":"'Data SBP Measures'!$T2774","v":"3350"},{"$f":"'Data SBP Measures'!$U2774&B426","v":"108DC - # Cases Recalled/Paid in Full"},{"$f":"'Data SBP Measures'!$Y2774","v":"EACH"},null,null,null,null,null,"Centralized Court Collections - 108","DC - # Cases Recalled/Paid in Full",null,null,null,null,null,null,null,"1452","137","Y","96","Medical, Mental and Dental Services","EACH","INPUT","ADOPTEDBUD",null,null,null,"Medical, Mental and Dental Services","No. of intake evaluations in CBF",null,{"$f":"'Data SBP Measures'!$AF426&'Data SBP Measures'!$AE426& \" - \"& 'Data SBP Measures'!$U426","v":"No. of intake evaluations in CBFMedical, Mental and Dental Services - 137"},{"$f":"_xlfn.XLOOKUP(VALUE(W426),'Data SBP Programs'!O:O,'Data SBP Programs'!S:S)","v":"Medical, Mental and Dental Services"}]
[{"$f":"'Data SBP Measures'!$AI2775&\" - \"&'Data SBP Measures'!$U2775","v":"Centralized Court Collections - 108"},{"$f":"'Data SBP Measures'!$AF2775","v":"DC - # Cases Recalled/Paid in Full"},{"$f":"'Data SBP Measures'!$T2775","v":"3350"},{"$f":"'Data SBP Measures'!$U2775&B427","v":"108DC - # Cases Recalled/Paid in Full"},{"$f":"'Data SBP Measures'!$Y2775","v":"EACH"},null,null,null,null,null,"Centralized Court Collections - 108","DC - # Cases Recalled/Paid in Full",null,null,null,null,null,null,null,"1452","137","Y","96","Medical, Mental and Dental Services","EACH","INPUT","ADOPTEDBUD",null,null,null,"Medical, Mental and Dental Services","No. of intake evaluations in CBF",null,{"$f":"'Data SBP Measures'!$AF427&'Data SBP Measures'!$AE427& \" - \"& 'Data SBP Measures'!$U427","v":"No. of intake evaluations in CBFMedical, Mental and Dental Services - 137"},{"$f":"_xlfn.XLOOKUP(VALUE(W427),'Data SBP Programs'!O:O,'Data SBP Programs'!S:S)","v":"Medical, Mental and Dental Services"}]
[{"$f":"'Data SBP Measures'!$AI2776&\" - \"&'Data SBP Measures'!$U2776","v":"Centralized Court Collections - 108"},{"$f":"'Data SBP Measures'!$AF2776","v":"DC - # Cases Recalled/Paid in Full"},{"$f":"'Data SBP Measures'!$T2776","v":"3350"},{"$f":"'Data SBP Measures'!$U2776&B428","v":"108DC - # Cases Recalled/Paid in Full"},{"$f":"'Data SBP Measures'!$Y2776","v":"EACH"},null,null,null,null,null,"Centralized Court Collections - 108","DC - # Cases Recalled/Paid in Full",null,null,null,null,null,null,null,"1452","137","Y","96","Medical, Mental and Dental Services","EACH","INPUT","ADOPTEDBUD",null,null,null,"Medical, Mental and Dental Services","No. of intake evaluations in CBF",null,{"$f":"'Data SBP Measures'!$AF428&'Data SBP Measures'!$AE428& \" - \"& 'Data SBP Measures'!$U428","v":"No. of intake evaluations in CBFMedical, Mental and Dental Services - 137"},{"$f":"_xlfn.XLOOKUP(VALUE(W428),'Data SBP Programs'!O:O,'Data SBP Programs'!S:S)","v":"Medical, Mental and Dental Services"}]
[{"$f":"'Data SBP Measures'!$AI2768&\" - \"&'Data SBP Measures'!$U2768","v":"Centralized Court Collections - 108"},{"$f":"'Data SBP Measures'!$AF2768","v":"DC - # New Cases To Manage"},{"$f":"'Data SBP Measures'!$T2768","v":"3348"},{"$f":"'Data SBP Measures'!$U2768&B429","v":"108DC - # New Cases To Manage"},{"$f":"'Data SBP Measures'!$Y2768","v":"EACH"},null,null,null,null,null,"Centralized Court Collections - 108","DC - # New Cases To Manage",null,null,null,null,null,null,null,"1452","137","Y","96","Medical, Mental and Dental Services","EACH","INPUT","ADOPTEDBUD",null,null,null,"Medical, Mental and Dental Services","No. of intake evaluations in CBF",null,{"$f":"'Data SBP Measures'!$AF429&'Data SBP Measures'!$AE429& \" - \"& 'Data SBP Measures'!$U429","v":"No. of intake evaluations in CBFMedical, Mental and Dental Services - 137"},{"$f":"_xlfn.XLOOKUP(VALUE(W429),'Data SBP Programs'!O:O,'Data SBP Programs'!S:S)","v":"Medical, Mental and Dental Services"}]
[{"$f":"'Data SBP Measures'!$AI2769&\" - \"&'Data SBP Measures'!$U2769","v":"Centralized Court Collections - 108"},{"$f":"'Data SBP Measures'!$AF2769","v":"DC - # New Cases To Manage"},{"$f":"'Data SBP Measures'!$T2769","v":"3348"},{"$f":"'Data SBP Measures'!$U2769&B430","v":"108DC - # New Cases To Manage"},{"$f":"'Data SBP Measures'!$Y2769","v":"EACH"},null,null,null,null,null,"Centralized Court Collections - 108","DC - # New Cases To Manage",null,null,null,null,null,null,null,"1452","137","Y","96","Medical, Mental and Dental Services","EACH","INPUT","ADOPTEDBUD",null,null,null,"Medical, Mental and Dental Services","No. of intake evaluations in CBF",null,{"$f":"'Data SBP Measures'!$AF430&'Data SBP Measures'!$AE430& \" - \"& 'Data SBP Measures'!$U430","v":"No. of intake evaluations in CBFMedical, Mental and Dental Services - 137"},{"$f":"_xlfn.XLOOKUP(VALUE(W430),'Data SBP Programs'!O:O,'Data SBP Programs'!S:S)","v":"Medical, Mental and Dental Services"}]
[{"$f":"'Data SBP Measures'!$AI2770&\" - \"&'Data SBP Measures'!$U2770","v":"Centralized Court Collections - 108"},{"$f":"'Data SBP Measures'!$AF2770","v":"DC - # New Cases To Manage"},{"$f":"'Data SBP Measures'!$T2770","v":"3348"},{"$f":"'Data SBP Measures'!$U2770&B431","v":"108DC - # New Cases To Manage"},{"$f":"'Data SBP Measures'!$Y2770","v":"EACH"},null,null,null,null,null,"Centralized Court Collections - 108","DC - # New Cases To Manage",null,null,null,null,null,null,null,"1453","137","Y","96","Medical, Mental and Dental Services","EACH","INPUT","ADOPTEDBUD",null,null,null,"Medical, Mental and Dental Services","No. of individuals referred to Emergency Room on intake",null,{"$f":"'Data SBP Measures'!$AF431&'Data SBP Measures'!$AE431& \" - \"& 'Data SBP Measures'!$U431","v":"No. of individuals referred to Emergency Room on intakeMedical, Mental and Dental Services - 137"},{"$f":"_xlfn.XLOOKUP(VALUE(W431),'Data SBP Programs'!O:O,'Data SBP Programs'!S:S)","v":"Medical, Mental and Dental Services"}]
[{"$f":"'Data SBP Measures'!$AI2777&\" - \"&'Data SBP Measures'!$U2777","v":"Centralized Court Collections - 108"},{"$f":"'Data SBP Measures'!$AF2777","v":"DC - # of Bills of Cost/Past Due Letters"},{"$f":"'Data SBP Measures'!$T2777","v":"3351"},{"$f":"'Data SBP Measures'!$U2777&B432","v":"108DC - # of Bills of Cost/Past Due Letters"},{"$f":"'Data SBP Measures'!$Y2777","v":"EACH"},null,null,null,null,null,"Centralized Court Collections - 108","DC - # of Bills of Cost/Past Due Letters",null,null,null,null,null,null,null,"1453","137","Y","96","Medical, Mental and Dental Services","EACH","INPUT","ADOPTEDBUD",null,null,null,"Medical, Mental and Dental Services","No. of individuals referred to Emergency Room on intake",null,{"$f":"'Data SBP Measures'!$AF432&'Data SBP Measures'!$AE432& \" - \"& 'Data SBP Measures'!$U432","v":"No. of individuals referred to Emergency Room on intakeMedical, Mental and Dental Services - 137"},{"$f":"_xlfn.XLOOKUP(VALUE(W432),'Data SBP Programs'!O:O,'Data SBP Programs'!S:S)","v":"Medical, Mental and Dental Services"}]
[{"$f":"'Data SBP Measures'!$AI2778&\" - \"&'Data SBP Measures'!$U2778","v":"Centralized Court Collections - 108"},{"$f":"'Data SBP Measures'!$AF2778","v":"DC - # of Bills of Cost/Past Due Letters"},{"$f":"'Data SBP Measures'!$T2778","v":"3351"},{"$f":"'Data SBP Measures'!$U2778&B433","v":"108DC - # of Bills of Cost/Past Due Letters"},{"$f":"'Data SBP Measures'!$Y2778","v":"EACH"},null,null,null,null,null,"Centralized Court Collections - 108","DC - # of Bills of Cost/Past Due Letters",null,null,null,null,null,null,null,"1453","137","Y","96","Medical, Mental and Dental Services","EACH","INPUT","ADOPTEDBUD",null,null,null,"Medical, Mental and Dental Services","No. of individuals referred to Emergency Room on intake",null,{"$f":"'Data SBP Measures'!$AF433&'Data SBP Measures'!$AE433& \" - \"& 'Data SBP Measures'!$U433","v":"No. of individuals referred to Emergency Room on intakeMedical, Mental and Dental Services - 137"},{"$f":"_xlfn.XLOOKUP(VALUE(W433),'Data SBP Programs'!O:O,'Data SBP Programs'!S:S)","v":"Medical, Mental and Dental Services"}]
[{"$f":"'Data SBP Measures'!$AI2779&\" - \"&'Data SBP Measures'!$U2779","v":"Centralized Court Collections - 108"},{"$f":"'Data SBP Measures'!$AF2779","v":"DC - # of Bills of Cost/Past Due Letters"},{"$f":"'Data SBP Measures'!$T2779","v":"3351"},{"$f":"'Data SBP Measures'!$U2779&B434","v":"108DC - # of Bills of Cost/Past Due Letters"},{"$f":"'Data SBP Measures'!$Y2779","v":"EACH"},null,null,null,null,null,"Centralized Court Collections - 108","DC - # of Bills of Cost/Past Due Letters",null,null,null,null,null,null,null,"1453","137","Y","96","Medical, Mental and Dental Services","EACH","INPUT","ADOPTEDBUD",null,null,null,"Medical, Mental and Dental Services","No. of individuals referred to Emergency Room on intake",null,{"$f":"'Data SBP Measures'!$AF434&'Data SBP Measures'!$AE434& \" - \"& 'Data SBP Measures'!$U434","v":"No. of individuals referred to Emergency Room on intakeMedical, Mental and Dental Services - 137"},{"$f":"_xlfn.XLOOKUP(VALUE(W434),'Data SBP Programs'!O:O,'Data SBP Programs'!S:S)","v":"Medical, Mental and Dental Services"}]
[{"$f":"'Data SBP Measures'!$AI2771&\" - \"&'Data SBP Measures'!$U2771","v":"Centralized Court Collections - 108"},{"$f":"'Data SBP Measures'!$AF2771","v":"DC - # of Payment Plan Applications"},{"$f":"'Data SBP Measures'!$T2771","v":"3349"},{"$f":"'Data SBP Measures'!$U2771&B435","v":"108DC - # of Payment Plan Applications"},{"$f":"'Data SBP Measures'!$Y2771","v":"EACH"},null,null,null,null,null,"Centralized Court Collections - 108","DC - # of Payment Plan Applications",null,null,null,null,null,null,null,"1453","137","Y","96","Medical, Mental and Dental Services","EACH","INPUT","ADOPTEDBUD",null,null,null,"Medical, Mental and Dental Services","No. of individuals referred to Emergency Room on intake",null,{"$f":"'Data SBP Measures'!$AF435&'Data SBP Measures'!$AE435& \" - \"& 'Data SBP Measures'!$U435","v":"No. of individuals referred to Emergency Room on intakeMedical, Mental and Dental Services - 137"},{"$f":"_xlfn.XLOOKUP(VALUE(W435),'Data SBP Programs'!O:O,'Data SBP Programs'!S:S)","v":"Medical, Mental and Dental Services"}]
[{"$f":"'Data SBP Measures'!$AI2772&\" - \"&'Data SBP Measures'!$U2772","v":"Centralized Court Collections - 108"},{"$f":"'Data SBP Measures'!$AF2772","v":"DC - # of Payment Plan Applications"},{"$f":"'Data SBP Measures'!$T2772","v":"3349"},{"$f":"'Data SBP Measures'!$U2772&B436","v":"108DC - # of Payment Plan Applications"},{"$f":"'Data SBP Measures'!$Y2772","v":"EACH"},null,null,null,null,null,"Centralized Court Collections - 108","DC - # of Payment Plan Applications",null,null,null,null,null,null,null,"1453","137","Y","96","Medical, Mental and Dental Services","EACH","INPUT","ADOPTEDBUD",null,null,null,"Medical, Mental and Dental Services","No. of individuals referred to Emergency Room on intake",null,{"$f":"'Data SBP Measures'!$AF436&'Data SBP Measures'!$AE436& \" - \"& 'Data SBP Measures'!$U436","v":"No. of individuals referred to Emergency Room on intakeMedical, Mental and Dental Services - 137"},{"$f":"_xlfn.XLOOKUP(VALUE(W436),'Data SBP Programs'!O:O,'Data SBP Programs'!S:S)","v":"Medical, Mental and Dental Services"}]
[{"$f":"'Data SBP Measures'!$AI2773&\" - \"&'Data SBP Measures'!$U2773","v":"Centralized Court Collections - 108"},{"$f":"'Data SBP Measures'!$AF2773","v":"DC - # of Payment Plan Applications"},{"$f":"'Data SBP Measures'!$T2773","v":"3349"},{"$f":"'Data SBP Measures'!$U2773&B437","v":"108DC - # of Payment Plan Applications"},{"$f":"'Data SBP Measures'!$Y2773","v":"EACH"},null,null,null,null,null,"Centralized Court Collections - 108","DC - # of Payment Plan Applications",null,null,null,null,null,null,null,"1463","137","Y","99","Patrol","EACH","INPUT","ADOPTEDBUD",null,null,null,"Patrol","No. arson offenses",null,{"$f":"'Data SBP Measures'!$AF437&'Data SBP Measures'!$AE437& \" - \"& 'Data SBP Measures'!$U437","v":"No. arson offensesPatrol - 137"},{"$f":"_xlfn.XLOOKUP(VALUE(W437),'Data SBP Programs'!O:O,'Data SBP Programs'!S:S)","v":"Patrol"}]
[{"$f":"'Data SBP Measures'!$AI2780&\" - \"&'Data SBP Measures'!$U2780","v":"Centralized Court Collections - 108"},{"$f":"'Data SBP Measures'!$AF2780","v":"DC - # Telephone/Email Contact/Due Diligence"},{"$f":"'Data SBP Measures'!$T2780","v":"3352"},{"$f":"'Data SBP Measures'!$U2780&B438","v":"108DC - # Telephone/Email Contact/Due Diligence"},{"$f":"'Data SBP Measures'!$Y2780","v":"EACH"},null,null,null,null,null,"Centralized Court Collections - 108","DC - # Telephone/Email Contact/Due Diligence",null,null,null,null,null,null,null,"1464","137","Y","99","Patrol","EACH","INPUT","ADOPTEDBUD",null,null,null,"Patrol","No. false alarms responded to",null,{"$f":"'Data SBP Measures'!$AF438&'Data SBP Measures'!$AE438& \" - \"& 'Data SBP Measures'!$U438","v":"No. false alarms responded toPatrol - 137"},{"$f":"_xlfn.XLOOKUP(VALUE(W438),'Data SBP Programs'!O:O,'Data SBP Programs'!S:S)","v":"Patrol"}]
[{"$f":"'Data SBP Measures'!$AI2781&\" - \"&'Data SBP Measures'!$U2781","v":"Centralized Court Collections - 108"},{"$f":"'Data SBP Measures'!$AF2781","v":"DC - # Telephone/Email Contact/Due Diligence"},{"$f":"'Data SBP Measures'!$T2781","v":"3352"},{"$f":"'Data SBP Measures'!$U2781&B439","v":"108DC - # Telephone/Email Contact/Due Diligence"},{"$f":"'Data SBP Measures'!$Y2781","v":"EACH"},null,null,null,null,null,"Centralized Court Collections - 108","DC - # Telephone/Email Contact/Due Diligence",null,null,null,null,null,null,null,"1465","137","Y","99","Patrol","EACH","INPUT","ADOPTEDBUD",null,null,null,"Patrol","No. gang related incidents",null,{"$f":"'Data SBP Measures'!$AF439&'Data SBP Measures'!$AE439& \" - \"& 'Data SBP Measures'!$U439","v":"No. gang related incidentsPatrol - 137"},{"$f":"_xlfn.XLOOKUP(VALUE(W439),'Data SBP Programs'!O:O,'Data SBP Programs'!S:S)","v":"Patrol"}]
[{"$f":"'Data SBP Measures'!$AI2782&\" - \"&'Data SBP Measures'!$U2782","v":"Centralized Court Collections - 108"},{"$f":"'Data SBP Measures'!$AF2782","v":"DC - # Telephone/Email Contact/Due Diligence"},{"$f":"'Data SBP Measures'!$T2782","v":"3352"},{"$f":"'Data SBP Measures'!$U2782&B440","v":"108DC - # Telephone/Email Contact/Due Diligence"},{"$f":"'Data SBP Measures'!$Y2782","v":"EACH"},null,null,null,null,null,"Centralized Court Collections - 108","DC - # Telephone/Email Contact/Due Diligence",null,null,null,null,null,null,null,"1466","137","Y","99","Patrol","EACH","INPUT","ADOPTEDBUD",null,null,null,"Patrol","No. LE officers killed or assaulted",null,{"$f":"'Data SBP Measures'!$AF440&'Data SBP Measures'!$AE440& \" - \"& 'Data SBP Measures'!$U440","v":"No. LE officers killed or assaultedPatrol - 137"},{"$f":"_xlfn.XLOOKUP(VALUE(W440),'Data SBP Programs'!O:O,'Data SBP Programs'!S:S)","v":"Patrol"}]
[{"$f":"'Data SBP Measures'!$AI2747&\" - \"&'Data SBP Measures'!$U2747","v":"Centralized Court Collections - 108"},{"$f":"'Data SBP Measures'!$AF2747","v":"JP - # Cases Recalled/Paid in Full"},{"$f":"'Data SBP Measures'!$T2747","v":"3341"},{"$f":"'Data SBP Measures'!$U2747&B441","v":"108JP - # Cases Recalled/Paid in Full"},{"$f":"'Data SBP Measures'!$Y2747","v":"EACH"},null,null,null,null,null,"Centralized Court Collections - 108","JP - # Cases Recalled/Paid in Full",null,null,null,null,null,null,null,"1467","137","Y","99","Patrol","EACH","INPUT","ADOPTEDBUD",null,null,null,"Patrol","No. of accidents",null,{"$f":"'Data SBP Measures'!$AF441&'Data SBP Measures'!$AE441& \" - \"& 'Data SBP Measures'!$U441","v":"No. of accidentsPatrol - 137"},{"$f":"_xlfn.XLOOKUP(VALUE(W441),'Data SBP Programs'!O:O,'Data SBP Programs'!S:S)","v":"Patrol"}]
[{"$f":"'Data SBP Measures'!$AI2748&\" - \"&'Data SBP Measures'!$U2748","v":"Centralized Court Collections - 108"},{"$f":"'Data SBP Measures'!$AF2748","v":"JP - # Cases Recalled/Paid in Full"},{"$f":"'Data SBP Measures'!$T2748","v":"3341"},{"$f":"'Data SBP Measures'!$U2748&B442","v":"108JP - # Cases Recalled/Paid in Full"},{"$f":"'Data SBP Measures'!$Y2748","v":"EACH"},null,null,null,null,null,"Centralized Court Collections - 108","JP - # Cases Recalled/Paid in Full",null,null,null,null,null,null,null,"1468","137","Y","99","Patrol","EACH","INPUT","ADOPTEDBUD",null,null,null,"Patrol","No. of citations issued",null,{"$f":"'Data SBP Measures'!$AF442&'Data SBP Measures'!$AE442& \" - \"& 'Data SBP Measures'!$U442","v":"No. of citations issuedPatrol - 137"},{"$f":"_xlfn.XLOOKUP(VALUE(W442),'Data SBP Programs'!O:O,'Data SBP Programs'!S:S)","v":"Patrol"}]
[{"$f":"'Data SBP Measures'!$AI2749&\" - \"&'Data SBP Measures'!$U2749","v":"Centralized Court Collections - 108"},{"$f":"'Data SBP Measures'!$AF2749","v":"JP - # Cases Recalled/Paid in Full"},{"$f":"'Data SBP Measures'!$T2749","v":"3341"},{"$f":"'Data SBP Measures'!$U2749&B443","v":"108JP - # Cases Recalled/Paid in Full"},{"$f":"'Data SBP Measures'!$Y2749","v":"EACH"},null,null,null,null,null,"Centralized Court Collections - 108","JP - # Cases Recalled/Paid in Full",null,null,null,null,null,null,null,"1469","137","Y","99","Patrol","EACH","INPUT","ADOPTEDBUD",null,null,null,"Patrol","No. of incidents",null,{"$f":"'Data SBP Measures'!$AF443&'Data SBP Measures'!$AE443& \" - \"& 'Data SBP Measures'!$U443","v":"No. of incidentsPatrol - 137"},{"$f":"_xlfn.XLOOKUP(VALUE(W443),'Data SBP Programs'!O:O,'Data SBP Programs'!S:S)","v":"Patrol"}]
[{"$f":"'Data SBP Measures'!$AI2738&\" - \"&'Data SBP Measures'!$U2738","v":"Centralized Court Collections - 108"},{"$f":"'Data SBP Measures'!$AF2738","v":"JP - # New Cases To Manage"},{"$f":"'Data SBP Measures'!$T2738","v":"3338"},{"$f":"'Data SBP Measures'!$U2738&B444","v":"108JP - # New Cases To Manage"},{"$f":"'Data SBP Measures'!$Y2738","v":"EACH"},null,null,null,null,null,"Centralized Court Collections - 108","JP - # New Cases To Manage",null,null,null,null,null,null,null,"1470","137","Y","99","Patrol","EACH","INPUT","ADOPTEDBUD",null,null,null,"Patrol","No. of offenses reported",null,{"$f":"'Data SBP Measures'!$AF444&'Data SBP Measures'!$AE444& \" - \"& 'Data SBP Measures'!$U444","v":"No. of offenses reportedPatrol - 137"},{"$f":"_xlfn.XLOOKUP(VALUE(W444),'Data SBP Programs'!O:O,'Data SBP Programs'!S:S)","v":"Patrol"}]
[{"$f":"'Data SBP Measures'!$AI2739&\" - \"&'Data SBP Measures'!$U2739","v":"Centralized Court Collections - 108"},{"$f":"'Data SBP Measures'!$AF2739","v":"JP - # New Cases To Manage"},{"$f":"'Data SBP Measures'!$T2739","v":"3338"},{"$f":"'Data SBP Measures'!$U2739&B445","v":"108JP - # New Cases To Manage"},{"$f":"'Data SBP Measures'!$Y2739","v":"EACH"},null,null,null,null,null,"Centralized Court Collections - 108","JP - # New Cases To Manage",null,null,null,null,null,null,null,"1471","137","Y","99","Patrol","EACH","INPUT","ADOPTEDBUD",null,null,null,"Patrol","No. of persons over 18 arrested",null,{"$f":"'Data SBP Measures'!$AF445&'Data SBP Measures'!$AE445& \" - \"& 'Data SBP Measures'!$U445","v":"No. of persons over 18 arrestedPatrol - 137"},{"$f":"_xlfn.XLOOKUP(VALUE(W445),'Data SBP Programs'!O:O,'Data SBP Programs'!S:S)","v":"Patrol"}]
[{"$f":"'Data SBP Measures'!$AI2740&\" - \"&'Data SBP Measures'!$U2740","v":"Centralized Court Collections - 108"},{"$f":"'Data SBP Measures'!$AF2740","v":"JP - # New Cases To Manage"},{"$f":"'Data SBP Measures'!$T2740","v":"3338"},{"$f":"'Data SBP Measures'!$U2740&B446","v":"108JP - # New Cases To Manage"},{"$f":"'Data SBP Measures'!$Y2740","v":"EACH"},null,null,null,null,null,"Centralized Court Collections - 108","JP - # New Cases To Manage",null,null,null,null,null,null,null,"1472","137","Y","99","Patrol","EACH","INPUT","ADOPTEDBUD",null,null,null,"Patrol","No. of persons under 17 arrested",null,{"$f":"'Data SBP Measures'!$AF446&'Data SBP Measures'!$AE446& \" - \"& 'Data SBP Measures'!$U446","v":"No. of persons under 17 arrestedPatrol - 137"},{"$f":"_xlfn.XLOOKUP(VALUE(W446),'Data SBP Programs'!O:O,'Data SBP Programs'!S:S)","v":"Patrol"}]
[{"$f":"'Data SBP Measures'!$AI2741&\" - \"&'Data SBP Measures'!$U2741","v":"Centralized Court Collections - 108"},{"$f":"'Data SBP Measures'!$AF2741","v":"JP - # of Bills of Cost/Past Due Letters"},{"$f":"'Data SBP Measures'!$T2741","v":"3339"},{"$f":"'Data SBP Measures'!$U2741&B447","v":"108JP - # of Bills of Cost/Past Due Letters"},{"$f":"'Data SBP Measures'!$Y2741","v":"EACH"},null,null,null,null,null,"Centralized Court Collections - 108","JP - # of Bills of Cost/Past Due Letters",null,null,null,null,null,null,null,"1473","137","Y","99","Patrol","EACH","INPUT","ADOPTEDBUD",null,null,null,"Patrol","No. patrol arrests",null,{"$f":"'Data SBP Measures'!$AF447&'Data SBP Measures'!$AE447& \" - \"& 'Data SBP Measures'!$U447","v":"No. patrol arrestsPatrol - 137"},{"$f":"_xlfn.XLOOKUP(VALUE(W447),'Data SBP Programs'!O:O,'Data SBP Programs'!S:S)","v":"Patrol"}]
[{"$f":"'Data SBP Measures'!$AI2742&\" - \"&'Data SBP Measures'!$U2742","v":"Centralized Court Collections - 108"},{"$f":"'Data SBP Measures'!$AF2742","v":"JP - # of Bills of Cost/Past Due Letters"},{"$f":"'Data SBP Measures'!$T2742","v":"3339"},{"$f":"'Data SBP Measures'!$U2742&B448","v":"108JP - # of Bills of Cost/Past Due Letters"},{"$f":"'Data SBP Measures'!$Y2742","v":"EACH"},null,null,null,null,null,"Centralized Court Collections - 108","JP - # of Bills of Cost/Past Due Letters",null,null,null,null,null,null,null,"1474","137","Y","99","Patrol","EACH","INPUT","ADOPTEDBUD",null,null,null,"Patrol","No. weapons seized",null,{"$f":"'Data SBP Measures'!$AF448&'Data SBP Measures'!$AE448& \" - \"& 'Data SBP Measures'!$U448","v":"No. weapons seizedPatrol - 137"},{"$f":"_xlfn.XLOOKUP(VALUE(W448),'Data SBP Programs'!O:O,'Data SBP Programs'!S:S)","v":"Patrol"}]
[{"$f":"'Data SBP Measures'!$AI2743&\" - \"&'Data SBP Measures'!$U2743","v":"Centralized Court Collections - 108"},{"$f":"'Data SBP Measures'!$AF2743","v":"JP - # of Bills of Cost/Past Due Letters"},{"$f":"'Data SBP Measures'!$T2743","v":"3339"},{"$f":"'Data SBP Measures'!$U2743&B449","v":"108JP - # of Bills of Cost/Past Due Letters"},{"$f":"'Data SBP Measures'!$Y2743","v":"EACH"},null,null,null,null,null,"Centralized Court Collections - 108","JP - # of Bills of Cost/Past Due Letters",null,null,null,null,null,null,null,"1475","137","Y","99","Patrol","DOLLARS","INPUT","ADOPTEDBUD",null,null,null,"Patrol","Value of property recovered",null,{"$f":"'Data SBP Measures'!$AF449&'Data SBP Measures'!$AE449& \" - \"& 'Data SBP Measures'!$U449","v":"Value of property recoveredPatrol - 137"},{"$f":"_xlfn.XLOOKUP(VALUE(W449),'Data SBP Programs'!O:O,'Data SBP Programs'!S:S)","v":"Patrol"}]
[{"$f":"'Data SBP Measures'!$AI2744&\" - \"&'Data SBP Measures'!$U2744","v":"Centralized Court Collections - 108"},{"$f":"'Data SBP Measures'!$AF2744","v":"JP - # of Payment Plan Applications"},{"$f":"'Data SBP Measures'!$T2744","v":"3340"},{"$f":"'Data SBP Measures'!$U2744&B450","v":"108JP - # of Payment Plan Applications"},{"$f":"'Data SBP Measures'!$Y2744","v":"EACH"},null,null,null,null,null,"Centralized Court Collections - 108","JP - # of Payment Plan Applications",null,null,null,null,null,null,null,"1476","137","Y","99","Patrol","DOLLARS","INPUT","ADOPTEDBUD",null,null,null,"Patrol","Value of property stolen",null,{"$f":"'Data SBP Measures'!$AF450&'Data SBP Measures'!$AE450& \" - \"& 'Data SBP Measures'!$U450","v":"Value of property stolenPatrol - 137"},{"$f":"_xlfn.XLOOKUP(VALUE(W450),'Data SBP Programs'!O:O,'Data SBP Programs'!S:S)","v":"Patrol"}]
[{"$f":"'Data SBP Measures'!$AI2745&\" - \"&'Data SBP Measures'!$U2745","v":"Centralized Court Collections - 108"},{"$f":"'Data SBP Measures'!$AF2745","v":"JP - # of Payment Plan Applications"},{"$f":"'Data SBP Measures'!$T2745","v":"3340"},{"$f":"'Data SBP Measures'!$U2745&B451","v":"108JP - # of Payment Plan Applications"},{"$f":"'Data SBP Measures'!$Y2745","v":"EACH"},null,null,null,null,null,"Centralized Court Collections - 108","JP - # of Payment Plan Applications",null,null,null,null,null,null,null,"1477","137","Y","60","Classification-Records - CSTU / Property\n","EACH","INPUT","ADOPTEDBUD",null,null,null,"Classification-Records - CSTU / Property\n","No. of arrests processed",null,{"$f":"'Data SBP Measures'!$AF451&'Data SBP Measures'!$AE451& \" - \"& 'Data SBP Measures'!$U451","v":"No. of arrests processedClassification-Records - CSTU / Property\n - 137"},{"$f":"_xlfn.XLOOKUP(VALUE(W451),'Data SBP Programs'!O:O,'Data SBP Programs'!S:S)","v":"Classification-Records - CSTU / Property\n"}]
[{"$f":"'Data SBP Measures'!$AI2746&\" - \"&'Data SBP Measures'!$U2746","v":"Centralized Court Collections - 108"},{"$f":"'Data SBP Measures'!$AF2746","v":"JP - # of Payment Plan Applications"},{"$f":"'Data SBP Measures'!$T2746","v":"3340"},{"$f":"'Data SBP Measures'!$U2746&B452","v":"108JP - # of Payment Plan Applications"},{"$f":"'Data SBP Measures'!$Y2746","v":"EACH"},null,null,null,null,null,"Centralized Court Collections - 108","JP - # of Payment Plan Applications",null,null,null,null,null,null,null,"1478","137","Y","60","Classification-Records - CSTU / Property\n","EACH","INPUT","ADOPTEDBUD",null,null,null,"Classification-Records - CSTU / Property\n","No. of bonds processed",null,{"$f":"'Data SBP Measures'!$AF452&'Data SBP Measures'!$AE452& \" - \"& 'Data SBP Measures'!$U452","v":"No. of bonds processedClassification-Records - CSTU / Property\n - 137"},{"$f":"_xlfn.XLOOKUP(VALUE(W452),'Data SBP Programs'!O:O,'Data SBP Programs'!S:S)","v":"Classification-Records - CSTU / Property\n"}]
[{"$f":"'Data SBP Measures'!$AI2750&\" - \"&'Data SBP Measures'!$U2750","v":"Centralized Court Collections - 108"},{"$f":"'Data SBP Measures'!$AF2750","v":"JP - # Telephone/Email Contact/Due Diligence"},{"$f":"'Data SBP Measures'!$T2750","v":"3342"},{"$f":"'Data SBP Measures'!$U2750&B453","v":"108JP - # Telephone/Email Contact/Due Diligence"},{"$f":"'Data SBP Measures'!$Y2750","v":"EACH"},null,null,null,null,null,"Centralized Court Collections - 108","JP - # Telephone/Email Contact/Due Diligence",null,null,null,null,null,null,null,"1479","137","Y","60","Classification-Records - CSTU / Property\n","EACH","INPUT","ADOPTEDBUD",null,null,null,"Classification-Records - CSTU / Property\n","No. of releases processed",null,{"$f":"'Data SBP Measures'!$AF453&'Data SBP Measures'!$AE453& \" - \"& 'Data SBP Measures'!$U453","v":"No. of releases processedClassification-Records - CSTU / Property\n - 137"},{"$f":"_xlfn.XLOOKUP(VALUE(W453),'Data SBP Programs'!O:O,'Data SBP Programs'!S:S)","v":"Classification-Records - CSTU / Property\n"}]
[{"$f":"'Data SBP Measures'!$AI2751&\" - \"&'Data SBP Measures'!$U2751","v":"Centralized Court Collections - 108"},{"$f":"'Data SBP Measures'!$AF2751","v":"JP - # Telephone/Email Contact/Due Diligence"},{"$f":"'Data SBP Measures'!$T2751","v":"3342"},{"$f":"'Data SBP Measures'!$U2751&B454","v":"108JP - # Telephone/Email Contact/Due Diligence"},{"$f":"'Data SBP Measures'!$Y2751","v":"EACH"},null,null,null,null,null,"Centralized Court Collections - 108","JP - # Telephone/Email Contact/Due Diligence",null,null,null,null,null,null,null,"1481","137","Y","102","Research, Planning and Incident Management","Y/N","INPUT","ADOPTEDBUD",null,null,null,"Research, Planning and Incident Management","Compliance with Jail Standards Yes/No (1 = Y, 0=N)",null,{"$f":"'Data SBP Measures'!$AF454&'Data SBP Measures'!$AE454& \" - \"& 'Data SBP Measures'!$U454","v":"Compliance with Jail Standards Yes/No (1 = Y, 0=N)Research, Planning and Incident Management - 137"},{"$f":"_xlfn.XLOOKUP(VALUE(W454),'Data SBP Programs'!O:O,'Data SBP Programs'!S:S)","v":"Research, Planning and Incident Management"}]
[{"$f":"'Data SBP Measures'!$AI2752&\" - \"&'Data SBP Measures'!$U2752","v":"Centralized Court Collections - 108"},{"$f":"'Data SBP Measures'!$AF2752","v":"JP - # Telephone/Email Contact/Due Diligence"},{"$f":"'Data SBP Measures'!$T2752","v":"3342"},{"$f":"'Data SBP Measures'!$U2752&B455","v":"108JP - # Telephone/Email Contact/Due Diligence"},{"$f":"'Data SBP Measures'!$Y2752","v":"EACH"},null,null,null,null,null,"Centralized Court Collections - 108","JP - # Telephone/Email Contact/Due Diligence",null,null,null,null,null,null,null,"1482","137","Y","102","Research, Planning and Incident Management","Y/N","INPUT","ADOPTEDBUD",null,null,null,"Research, Planning and Incident Management","Compliance with Grant Audits Yes/No (1 = Y, 0=N)",null,{"$f":"'Data SBP Measures'!$AF455&'Data SBP Measures'!$AE455& \" - \"& 'Data SBP Measures'!$U455","v":"Compliance with Grant Audits Yes/No (1 = Y, 0=N)Research, Planning and Incident Management - 137"},{"$f":"_xlfn.XLOOKUP(VALUE(W455),'Data SBP Programs'!O:O,'Data SBP Programs'!S:S)","v":"Research, Planning and Incident Management"}]
[{"$f":"'Data SBP Measures'!$AI259&\" - \"&'Data SBP Measures'!$U259","v":"Chaplain - 137"},{"$f":"'Data SBP Measures'!$AF259","v":"Attendance at activities"},{"$f":"'Data SBP Measures'!$T259","v":"1299"},{"$f":"'Data SBP Measures'!$U259&B456","v":"137Attendance at activities"},{"$f":"'Data SBP Measures'!$Y259","v":"EACH"},null,null,null,null,null,"Chaplain - 137","Attendance at activities",null,null,null,null,null,null,null,"1483","137","Y","102","Research, Planning and Incident Management","DOLLARS","INPUT","ADOPTEDBUD",null,null,null,"Research, Planning and Incident Management","Grant funds received",null,{"$f":"'Data SBP Measures'!$AF456&'Data SBP Measures'!$AE456& \" - \"& 'Data SBP Measures'!$U456","v":"Grant funds receivedResearch, Planning and Incident Management - 137"},{"$f":"_xlfn.XLOOKUP(VALUE(W456),'Data SBP Programs'!O:O,'Data SBP Programs'!S:S)","v":"Research, Planning and Incident Management"}]
[{"$f":"'Data SBP Measures'!$AI261&\" - \"&'Data SBP Measures'!$U261","v":"Chaplain - 137"},{"$f":"'Data SBP Measures'!$AF261","v":"No. of activities"},{"$f":"'Data SBP Measures'!$T261","v":"1300"},{"$f":"'Data SBP Measures'!$U261&B457","v":"137No. of activities"},{"$f":"'Data SBP Measures'!$Y261","v":"EACH"},null,null,null,null,null,"Chaplain - 137","No. of activities",null,null,null,null,null,null,null,"1484","137","Y","102","Research, Planning and Incident Management","Y/N","INPUT","ADOPTEDBUD",null,null,null,"Research, Planning and Incident Management","NIMS Compliance Yes/No (1 = Y, 0=N)",null,{"$f":"'Data SBP Measures'!$AF457&'Data SBP Measures'!$AE457& \" - \"& 'Data SBP Measures'!$U457","v":"NIMS Compliance Yes/No (1 = Y, 0=N)Research, Planning and Incident Management - 137"},{"$f":"_xlfn.XLOOKUP(VALUE(W457),'Data SBP Programs'!O:O,'Data SBP Programs'!S:S)","v":"Research, Planning and Incident Management"}]
[{"$f":"'Data SBP Measures'!$AI2468&\" - \"&'Data SBP Measures'!$U2468","v":"Chaplain - 137"},{"$f":"'Data SBP Measures'!$AF2468","v":"No. of bibles requested"},{"$f":"'Data SBP Measures'!$T2468","v":"3113"},{"$f":"'Data SBP Measures'!$U2468&B458","v":"137No. of bibles requested"},{"$f":"'Data SBP Measures'!$Y2468","v":"EACH"},null,null,null,null,null,"Chaplain - 137","No. of bibles requested",null,null,null,null,null,null,null,"1485","137","Y","102","Research, Planning and Incident Management","EACH","INPUT","ADOPTEDBUD",null,null,null,"Research, Planning and Incident Management","No. of incidents responded to",null,{"$f":"'Data SBP Measures'!$AF458&'Data SBP Measures'!$AE458& \" - \"& 'Data SBP Measures'!$U458","v":"No. of incidents responded toResearch, Planning and Incident Management - 137"},{"$f":"_xlfn.XLOOKUP(VALUE(W458),'Data SBP Programs'!O:O,'Data SBP Programs'!S:S)","v":"Research, Planning and Incident Management"}]
[{"$f":"'Data SBP Measures'!$AI2469&\" - \"&'Data SBP Measures'!$U2469","v":"Chaplain - 137"},{"$f":"'Data SBP Measures'!$AF2469","v":"No. of Books/magazines requested"},{"$f":"'Data SBP Measures'!$T2469","v":"3114"},{"$f":"'Data SBP Measures'!$U2469&B459","v":"137No. of Books/magazines requested"},{"$f":"'Data SBP Measures'!$Y2469","v":"EACH"},null,null,null,null,null,"Chaplain - 137","No. of Books/magazines requested",null,null,null,null,null,null,null,"1486","137","Y","104","Reserves","EACH","INPUT","ADOPTEDBUD",null,null,null,"Reserves","No. of reserved deputies",null,{"$f":"'Data SBP Measures'!$AF459&'Data SBP Measures'!$AE459& \" - \"& 'Data SBP Measures'!$U459","v":"No. of reserved deputiesReserves - 137"},{"$f":"_xlfn.XLOOKUP(VALUE(W459),'Data SBP Programs'!O:O,'Data SBP Programs'!S:S)","v":"Reserves"}]
[{"$f":"'Data SBP Measures'!$AI2466&\" - \"&'Data SBP Measures'!$U2466","v":"Chaplain - 137"},{"$f":"'Data SBP Measures'!$AF2466","v":"No. of inmate request to Chaplain Services"},{"$f":"'Data SBP Measures'!$T2466","v":"3111"},{"$f":"'Data SBP Measures'!$U2466&B460","v":"137No. of inmate request to Chaplain Services"},{"$f":"'Data SBP Measures'!$Y2466","v":"EACH"},null,null,null,null,null,"Chaplain - 137","No. of inmate request to Chaplain Services",null,null,null,null,null,null,null,"1487","137","Y","104","Reserves","EACH","INPUT","ADOPTEDBUD",null,null,null,"Reserves","No. of hours worked",null,{"$f":"'Data SBP Measures'!$AF460&'Data SBP Measures'!$AE460& \" - \"& 'Data SBP Measures'!$U460","v":"No. of hours workedReserves - 137"},{"$f":"_xlfn.XLOOKUP(VALUE(W460),'Data SBP Programs'!O:O,'Data SBP Programs'!S:S)","v":"Reserves"}]
[{"$f":"'Data SBP Measures'!$AI2467&\" - \"&'Data SBP Measures'!$U2467","v":"Chaplain - 137"},{"$f":"'Data SBP Measures'!$AF2467","v":"No. of One on One Visits"},{"$f":"'Data SBP Measures'!$T2467","v":"3112"},{"$f":"'Data SBP Measures'!$U2467&B461","v":"137No. of One on One Visits"},{"$f":"'Data SBP Measures'!$Y2467","v":"EACH"},null,null,null,null,null,"Chaplain - 137","No. of One on One Visits",null,null,null,null,null,null,null,"1488","137","Y","104","Reserves","EACH","INPUT","ADOPTEDBUD",null,null,null,"Reserves","Special Assignments / Stings",null,{"$f":"'Data SBP Measures'!$AF461&'Data SBP Measures'!$AE461& \" - \"& 'Data SBP Measures'!$U461","v":"Special Assignments / StingsReserves - 137"},{"$f":"_xlfn.XLOOKUP(VALUE(W461),'Data SBP Programs'!O:O,'Data SBP Programs'!S:S)","v":"Reserves"}]
[{"$f":"'Data SBP Measures'!$AI2470&\" - \"&'Data SBP Measures'!$U2470","v":"Chaplain - 137"},{"$f":"'Data SBP Measures'!$AF2470","v":"No. of requests - classes/diet/mangnifying lenses"},{"$f":"'Data SBP Measures'!$T2470","v":"3115"},{"$f":"'Data SBP Measures'!$U2470&B462","v":"137No. of requests - classes/diet/mangnifying lenses"},{"$f":"'Data SBP Measures'!$Y2470","v":"EACH"},null,null,null,null,null,"Chaplain - 137","No. of requests - classes/diet/mangnifying lenses",null,null,null,null,null,null,null,"1492","137","Y","103","School Resource Officers (SRO)","EACH","INPUT","ADOPTEDBUD",null,null,null,"School Resource Officers (SRO)","No. student contacts",null,{"$f":"'Data SBP Measures'!$AF462&'Data SBP Measures'!$AE462& \" - \"& 'Data SBP Measures'!$U462","v":"No. student contactsSchool Resource Officers (SRO) - 137"},{"$f":"_xlfn.XLOOKUP(VALUE(W462),'Data SBP Programs'!O:O,'Data SBP Programs'!S:S)","v":"School Resource Officers (SRO)"}]
[{"$f":"'Data SBP Measures'!$AI708&\" - \"&'Data SBP Measures'!$U708","v":"Check Division - 119"},{"$f":"'Data SBP Measures'!$AF708","v":"Dollar amount of checks filed"},{"$f":"'Data SBP Measures'!$T708","v":"1768"},{"$f":"'Data SBP Measures'!$U708&B463","v":"119Dollar amount of checks filed"},{"$f":"'Data SBP Measures'!$Y708","v":"DOLLARS"},null,null,null,null,null,"Check Division - 119","Dollar amount of checks filed",null,null,null,null,null,null,null,"1493","137","Y","103","School Resource Officers (SRO)","EACH","INPUT","ADOPTEDBUD",null,null,null,"School Resource Officers (SRO)","No. of campus arrests",null,{"$f":"'Data SBP Measures'!$AF463&'Data SBP Measures'!$AE463& \" - \"& 'Data SBP Measures'!$U463","v":"No. of campus arrestsSchool Resource Officers (SRO) - 137"},{"$f":"_xlfn.XLOOKUP(VALUE(W463),'Data SBP Programs'!O:O,'Data SBP Programs'!S:S)","v":"School Resource Officers (SRO)"}]
[{"$f":"'Data SBP Measures'!$AI709&\" - \"&'Data SBP Measures'!$U709","v":"Check Division - 119"},{"$f":"'Data SBP Measures'!$AF709","v":"Dollar amount of restitution received"},{"$f":"'Data SBP Measures'!$T709","v":"1769"},{"$f":"'Data SBP Measures'!$U709&B464","v":"119Dollar amount of restitution received"},{"$f":"'Data SBP Measures'!$Y709","v":"DOLLARS"},null,null,null,null,null,"Check Division - 119","Dollar amount of restitution received",null,null,null,null,null,null,null,"1494","137","Y","103","School Resource Officers (SRO)","EACH","INPUT","ADOPTEDBUD",null,null,null,"School Resource Officers (SRO)","No. of campus outreach",null,{"$f":"'Data SBP Measures'!$AF464&'Data SBP Measures'!$AE464& \" - \"& 'Data SBP Measures'!$U464","v":"No. of campus outreachSchool Resource Officers (SRO) - 137"},{"$f":"_xlfn.XLOOKUP(VALUE(W464),'Data SBP Programs'!O:O,'Data SBP Programs'!S:S)","v":"School Resource Officers (SRO)"}]
[{"$f":"'Data SBP Measures'!$AI710&\" - \"&'Data SBP Measures'!$U710","v":"Check Division - 119"},{"$f":"'Data SBP Measures'!$AF710","v":"Dollar amount of statutory fees received"},{"$f":"'Data SBP Measures'!$T710","v":"1770"},{"$f":"'Data SBP Measures'!$U710&B465","v":"119Dollar amount of statutory fees received"},{"$f":"'Data SBP Measures'!$Y710","v":"DOLLARS"},null,null,null,null,null,"Check Division - 119","Dollar amount of statutory fees received",null,null,null,null,null,null,null,"1495","137","Y","69","CID - Major Crimes / Special Crimes / Environmental / Support","EACH","INPUT","ADOPTEDBUD",null,null,null,"CID - Major Crimes / Special Crimes / Environmental / Support","CID cases assigned",null,{"$f":"'Data SBP Measures'!$AF465&'Data SBP Measures'!$AE465& \" - \"& 'Data SBP Measures'!$U465","v":"CID cases assignedCID - Major Crimes / Special Crimes / Environmental / Support - 137"},{"$f":"_xlfn.XLOOKUP(VALUE(W465),'Data SBP Programs'!O:O,'Data SBP Programs'!S:S)","v":"CID - Major Crimes / Special Crimes / Environmental / Support"}]
[{"$f":"'Data SBP Measures'!$AI707&\" - \"&'Data SBP Measures'!$U707","v":"Check Division - 119"},{"$f":"'Data SBP Measures'!$AF707","v":"Number of checks filed"},{"$f":"'Data SBP Measures'!$T707","v":"1767"},{"$f":"'Data SBP Measures'!$U707&B466","v":"119Number of checks filed"},{"$f":"'Data SBP Measures'!$Y707","v":"EACH"},null,null,null,null,null,"Check Division - 119","Number of checks filed",null,null,null,null,null,null,null,"1496","137","Y","69","CID - Major Crimes / Special Crimes / Environmental / Support","EACH","INPUT","ADOPTEDBUD",null,null,null,"CID - Major Crimes / Special Crimes / Environmental / Support","Juvenile cases assigned",null,{"$f":"'Data SBP Measures'!$AF466&'Data SBP Measures'!$AE466& \" - \"& 'Data SBP Measures'!$U466","v":"Juvenile cases assignedCID - Major Crimes / Special Crimes / Environmental / Support - 137"},{"$f":"_xlfn.XLOOKUP(VALUE(W466),'Data SBP Programs'!O:O,'Data SBP Programs'!S:S)","v":"CID - Major Crimes / Special Crimes / Environmental / Support"}]
[{"$f":"'Data SBP Measures'!$AI68&\" - \"&'Data SBP Measures'!$U68","v":"Child Protective Services Reintegration Project (CRP) - 158"},{"$f":"'Data SBP Measures'!$AF68","v":"Number of children who are residing in the community 6 mo after CPS case closure"},{"$f":"'Data SBP Measures'!$T68","v":"1095"},{"$f":"'Data SBP Measures'!$U68&B467","v":"158Number of children who are residing in the community 6 mo after CPS case closure"},{"$f":"'Data SBP Measures'!$Y68","v":"EACH"},null,null,null,null,null,"Child Protective Services Reintegration Project (CRP) - 158","Number of children who are residing in the community 6 mo after CPS case closure",null,null,null,null,null,null,null,"1498","137","Y","69","CID - Major Crimes / Special Crimes / Environmental / Support","EACH","INPUT","ADOPTEDBUD",null,null,null,"CID - Major Crimes / Special Crimes / Environmental / Support","No. of family violence cases",null,{"$f":"'Data SBP Measures'!$AF467&'Data SBP Measures'!$AE467& \" - \"& 'Data SBP Measures'!$U467","v":"No. of family violence casesCID - Major Crimes / Special Crimes / Environmental / Support - 137"},{"$f":"_xlfn.XLOOKUP(VALUE(W467),'Data SBP Programs'!O:O,'Data SBP Programs'!S:S)","v":"CID - Major Crimes / Special Crimes / Environmental / Support"}]
[{"$f":"'Data SBP Measures'!$AI69&\" - \"&'Data SBP Measures'!$U69","v":"Child Protective Services Reintegration Project (CRP) - 158"},{"$f":"'Data SBP Measures'!$AF69","v":"Number of children/youth who are reintegrated into the community post CPS placement"},{"$f":"'Data SBP Measures'!$T69","v":"1096"},{"$f":"'Data SBP Measures'!$U69&B468","v":"158Number of children/youth who are reintegrated into the community post CPS placement"},{"$f":"'Data SBP Measures'!$Y69","v":"EACH"},null,null,null,null,null,"Child Protective Services Reintegration Project (CRP) - 158","Number of children/youth who are reintegrated into the community post CPS placement",null,null,null,null,null,null,null,"15","106","Y","178","Auditor's Office","EACH","OUTPUT","ADOPTEDBUD",null,null,null,"Auditor's Office","# of grants",null,{"$f":"'Data SBP Measures'!$AF468&'Data SBP Measures'!$AE468& \" - \"& 'Data SBP Measures'!$U468","v":"# of grantsAuditor's Office - 106"},{"$f":"_xlfn.XLOOKUP(VALUE(W468),'Data SBP Programs'!O:O,'Data SBP Programs'!S:S)","v":"Auditor's Office"}]
[{"$f":"'Data SBP Measures'!$AI70&\" - \"&'Data SBP Measures'!$U70","v":"Child Protective Services Reintegration Project (CRP) - 158"},{"$f":"'Data SBP Measures'!$AF70","v":"Number of families enrolled into the program post screening"},{"$f":"'Data SBP Measures'!$T70","v":"1097"},{"$f":"'Data SBP Measures'!$U70&B469","v":"158Number of families enrolled into the program post screening"},{"$f":"'Data SBP Measures'!$Y70","v":"EACH"},null,null,null,null,null,"Child Protective Services Reintegration Project (CRP) - 158","Number of families enrolled into the program post screening",null,null,null,null,null,null,null,"1504","137","Y","106","Special Weapons & Tactical Unit (SWAT)","EACH","INPUT","ADOPTEDBUD",null,null,null,"Special Weapons & Tactical Unit (SWAT)","Call outs / unplanned Incidents",null,{"$f":"'Data SBP Measures'!$AF469&'Data SBP Measures'!$AE469& \" - \"& 'Data SBP Measures'!$U469","v":"Call outs / unplanned IncidentsSpecial Weapons & Tactical Unit (SWAT) - 137"},{"$f":"_xlfn.XLOOKUP(VALUE(W469),'Data SBP Programs'!O:O,'Data SBP Programs'!S:S)","v":"Special Weapons & Tactical Unit (SWAT)"}]
[{"$f":"'Data SBP Measures'!$AI71&\" - \"&'Data SBP Measures'!$U71","v":"Child Protective Services Reintegration Project (CRP) - 158"},{"$f":"'Data SBP Measures'!$AF71","v":"Number of families screened for program services and eligibility"},{"$f":"'Data SBP Measures'!$T71","v":"1098"},{"$f":"'Data SBP Measures'!$U71&B470","v":"158Number of families screened for program services and eligibility"},{"$f":"'Data SBP Measures'!$Y71","v":"EACH"},null,null,null,null,null,"Child Protective Services Reintegration Project (CRP) - 158","Number of families screened for program services and eligibility",null,null,null,null,null,null,null,"1510","137","Y","108","Transportation","EACH","INPUT","ADOPTEDBUD",null,null,null,"Transportation","No. of bench/ooc  warrants",null,{"$f":"'Data SBP Measures'!$AF470&'Data SBP Measures'!$AE470& \" - \"& 'Data SBP Measures'!$U470","v":"No. of bench/ooc  warrantsTransportation - 137"},{"$f":"_xlfn.XLOOKUP(VALUE(W470),'Data SBP Programs'!O:O,'Data SBP Programs'!S:S)","v":"Transportation"}]
[{"$f":"'Data SBP Measures'!$AI72&\" - \"&'Data SBP Measures'!$U72","v":"Child Protective Services Reintegration Project (CRP) - 158"},{"$f":"'Data SBP Measures'!$AF72","v":"Number of unduplicated families served during the fiscal year"},{"$f":"'Data SBP Measures'!$T72","v":"1099"},{"$f":"'Data SBP Measures'!$U72&B471","v":"158Number of unduplicated families served during the fiscal year"},{"$f":"'Data SBP Measures'!$Y72","v":"EACH"},null,null,null,null,null,"Child Protective Services Reintegration Project (CRP) - 158","Number of unduplicated families served during the fiscal year",null,null,null,null,null,null,null,"1511","137","Y","108","Transportation","EACH","INPUT","ADOPTEDBUD",null,null,null,"Transportation","No. of court arrests transported",null,{"$f":"'Data SBP Measures'!$AF471&'Data SBP Measures'!$AE471& \" - \"& 'Data SBP Measures'!$U471","v":"No. of court arrests transportedTransportation - 137"},{"$f":"_xlfn.XLOOKUP(VALUE(W471),'Data SBP Programs'!O:O,'Data SBP Programs'!S:S)","v":"Transportation"}]
[{"$f":"'Data SBP Measures'!$AI67&\" - \"&'Data SBP Measures'!$U67","v":"Child Protective Services Reintegration Project (CRP) - 158"},{"$f":"'Data SBP Measures'!$AF67","v":"Percentage  of families who  successfully/voluntary discharge post reintegration"},{"$f":"'Data SBP Measures'!$T67","v":"1094"},{"$f":"'Data SBP Measures'!$U67&B472","v":"158Percentage  of families who  successfully/voluntary discharge post reintegration"},{"$f":"'Data SBP Measures'!$Y67","v":"PERCENT"},null,null,null,null,null,"Child Protective Services Reintegration Project (CRP) - 158","Percentage  of families who  successfully/voluntary discharge post reintegration",null,null,null,null,null,null,null,"1512","137","Y","108","Transportation","EACH","INPUT","ADOPTEDBUD",null,null,null,"Transportation","No. of inmates transported to court",null,{"$f":"'Data SBP Measures'!$AF472&'Data SBP Measures'!$AE472& \" - \"& 'Data SBP Measures'!$U472","v":"No. of inmates transported to courtTransportation - 137"},{"$f":"_xlfn.XLOOKUP(VALUE(W472),'Data SBP Programs'!O:O,'Data SBP Programs'!S:S)","v":"Transportation"}]
[{"$f":"'Data SBP Measures'!$AI406&\" - \"&'Data SBP Measures'!$U406","v":"CID - Major Crimes / Special Crimes / Environmental / Support - 137"},{"$f":"'Data SBP Measures'!$AF406","v":"% of CID cases cleared"},{"$f":"'Data SBP Measures'!$T406","v":"1441"},{"$f":"'Data SBP Measures'!$U406&B473","v":"137% of CID cases cleared"},{"$f":"'Data SBP Measures'!$Y406","v":"PERCENT"},null,null,null,null,null,"CID - Major Crimes / Special Crimes / Environmental / Support - 137","% of CID cases cleared",null,null,null,null,null,null,null,"1513","137","Y","108","Transportation","EACH","INPUT","ADOPTEDBUD",null,null,null,"Transportation","No. of inmates transported to TDCJ",null,{"$f":"'Data SBP Measures'!$AF473&'Data SBP Measures'!$AE473& \" - \"& 'Data SBP Measures'!$U473","v":"No. of inmates transported to TDCJTransportation - 137"},{"$f":"_xlfn.XLOOKUP(VALUE(W473),'Data SBP Programs'!O:O,'Data SBP Programs'!S:S)","v":"Transportation"}]
[{"$f":"'Data SBP Measures'!$AI407&\" - \"&'Data SBP Measures'!$U407","v":"CID - Major Crimes / Special Crimes / Environmental / Support - 137"},{"$f":"'Data SBP Measures'!$AF407","v":"% of Juvenile cases cleared"},{"$f":"'Data SBP Measures'!$T407","v":"1442"},{"$f":"'Data SBP Measures'!$U407&B474","v":"137% of Juvenile cases cleared"},{"$f":"'Data SBP Measures'!$Y407","v":"PERCENT"},null,null,null,null,null,"CID - Major Crimes / Special Crimes / Environmental / Support - 137","% of Juvenile cases cleared",null,null,null,null,null,null,null,"1514","137","Y","108","Transportation","EACH","INPUT","ADOPTEDBUD",null,null,null,"Transportation","No. Texas Youth Commission transports",null,{"$f":"'Data SBP Measures'!$AF474&'Data SBP Measures'!$AE474& \" - \"& 'Data SBP Measures'!$U474","v":"No. Texas Youth Commission transportsTransportation - 137"},{"$f":"_xlfn.XLOOKUP(VALUE(W474),'Data SBP Programs'!O:O,'Data SBP Programs'!S:S)","v":"Transportation"}]
[{"$f":"'Data SBP Measures'!$AI465&\" - \"&'Data SBP Measures'!$U465","v":"CID - Major Crimes / Special Crimes / Environmental / Support - 137"},{"$f":"'Data SBP Measures'!$AF465","v":"CID cases assigned"},{"$f":"'Data SBP Measures'!$T465","v":"1495"},{"$f":"'Data SBP Measures'!$U465&B475","v":"137CID cases assigned"},{"$f":"'Data SBP Measures'!$Y465","v":"EACH"},null,null,null,null,null,"CID - Major Crimes / Special Crimes / Environmental / Support - 137","CID cases assigned",null,null,null,null,null,null,null,"1516","137","Y","108","Transportation","EACH","INPUT","ADOPTEDBUD",null,null,null,"Transportation","No of Out of State Warrants",null,{"$f":"'Data SBP Measures'!$AF475&'Data SBP Measures'!$AE475& \" - \"& 'Data SBP Measures'!$U475","v":"No of Out of State WarrantsTransportation - 137"},{"$f":"_xlfn.XLOOKUP(VALUE(W475),'Data SBP Programs'!O:O,'Data SBP Programs'!S:S)","v":"Transportation"}]
[{"$f":"'Data SBP Measures'!$AI466&\" - \"&'Data SBP Measures'!$U466","v":"CID - Major Crimes / Special Crimes / Environmental / Support - 137"},{"$f":"'Data SBP Measures'!$AF466","v":"Juvenile cases assigned"},{"$f":"'Data SBP Measures'!$T466","v":"1496"},{"$f":"'Data SBP Measures'!$U466&B476","v":"137Juvenile cases assigned"},{"$f":"'Data SBP Measures'!$Y466","v":"EACH"},null,null,null,null,null,"CID - Major Crimes / Special Crimes / Environmental / Support - 137","Juvenile cases assigned",null,null,null,null,null,null,null,"1517","137","Y","108","Transportation","EACH","INPUT","ADOPTEDBUD",null,null,null,"Transportation","No. of Mental Health Transports",null,{"$f":"'Data SBP Measures'!$AF476&'Data SBP Measures'!$AE476& \" - \"& 'Data SBP Measures'!$U476","v":"No. of Mental Health TransportsTransportation - 137"},{"$f":"_xlfn.XLOOKUP(VALUE(W476),'Data SBP Programs'!O:O,'Data SBP Programs'!S:S)","v":"Transportation"}]
[{"$f":"'Data SBP Measures'!$AI408&\" - \"&'Data SBP Measures'!$U408","v":"CID - Major Crimes / Special Crimes / Environmental / Support - 137"},{"$f":"'Data SBP Measures'!$AF408","v":"No. of arrests by detectives"},{"$f":"'Data SBP Measures'!$T408","v":"1444"},{"$f":"'Data SBP Measures'!$U408&B477","v":"137No. of arrests by detectives"},{"$f":"'Data SBP Measures'!$Y408","v":"EACH"},null,null,null,null,null,"CID - Major Crimes / Special Crimes / Environmental / Support - 137","No. of arrests by detectives",null,null,null,null,null,null,null,"1519","137","Y","109","Victim Services","EACH","INPUT","ADOPTEDBUD",null,null,null,"Victim Services","No. of victims served",null,{"$f":"'Data SBP Measures'!$AF477&'Data SBP Measures'!$AE477& \" - \"& 'Data SBP Measures'!$U477","v":"No. of victims servedVictim Services - 137"},{"$f":"_xlfn.XLOOKUP(VALUE(W477),'Data SBP Programs'!O:O,'Data SBP Programs'!S:S)","v":"Victim Services"}]
[{"$f":"'Data SBP Measures'!$AI467&\" - \"&'Data SBP Measures'!$U467","v":"CID - Major Crimes / Special Crimes / Environmental / Support - 137"},{"$f":"'Data SBP Measures'!$AF467","v":"No. of family violence cases"},{"$f":"'Data SBP Measures'!$T467","v":"1498"},{"$f":"'Data SBP Measures'!$U467&B478","v":"137No. of family violence cases"},{"$f":"'Data SBP Measures'!$Y467","v":"EACH"},null,null,null,null,null,"CID - Major Crimes / Special Crimes / Environmental / Support - 137","No. of family violence cases",null,null,null,null,null,null,null,"1520","137","Y","79","Traffic - CVE / DWI / HEAT / Impound / MOTORS","EACH","INPUT","ADOPTEDBUD",null,null,null,"Traffic - CVE / DWI / HEAT / Impound / MOTORS","No. of Commercial Motor Vehicle Inspections",null,{"$f":"'Data SBP Measures'!$AF478&'Data SBP Measures'!$AE478& \" - \"& 'Data SBP Measures'!$U478","v":"No. of Commercial Motor Vehicle InspectionsTraffic - CVE / DWI / HEAT / Impound / MOTORS - 137"},{"$f":"_xlfn.XLOOKUP(VALUE(W478),'Data SBP Programs'!O:O,'Data SBP Programs'!S:S)","v":"Traffic - CVE / DWI / HEAT / Impound / MOTORS"}]
[{"$f":"'Data SBP Measures'!$AI485&\" - \"&'Data SBP Measures'!$U485","v":"CID - Major Crimes / Special Crimes / Environmental / Support - 137"},{"$f":"'Data SBP Measures'!$AF485","v":"No. of metal crimes"},{"$f":"'Data SBP Measures'!$T485","v":"1527"},{"$f":"'Data SBP Measures'!$U485&B479","v":"137No. of metal crimes"},{"$f":"'Data SBP Measures'!$Y485","v":"EACH"},null,null,null,null,null,"CID - Major Crimes / Special Crimes / Environmental / Support - 137","No. of metal crimes",null,null,null,null,null,null,null,"1521","137","Y","79","Traffic - CVE / DWI / HEAT / Impound / MOTORS","EACH","INPUT","ADOPTEDBUD",null,null,null,"Traffic - CVE / DWI / HEAT / Impound / MOTORS","No. CMV Collisions",null,{"$f":"'Data SBP Measures'!$AF479&'Data SBP Measures'!$AE479& \" - \"& 'Data SBP Measures'!$U479","v":"No. CMV CollisionsTraffic - CVE / DWI / HEAT / Impound / MOTORS - 137"},{"$f":"_xlfn.XLOOKUP(VALUE(W479),'Data SBP Programs'!O:O,'Data SBP Programs'!S:S)","v":"Traffic - CVE / DWI / HEAT / Impound / MOTORS"}]
[{"$f":"'Data SBP Measures'!$AI484&\" - \"&'Data SBP Measures'!$U484","v":"CID - Major Crimes / Special Crimes / Environmental / Support - 137"},{"$f":"'Data SBP Measures'!$AF484","v":"No. of site inspections"},{"$f":"'Data SBP Measures'!$T484","v":"1526"},{"$f":"'Data SBP Measures'!$U484&B480","v":"137No. of site inspections"},{"$f":"'Data SBP Measures'!$Y484","v":"EACH"},null,null,null,null,null,"CID - Major Crimes / Special Crimes / Environmental / Support - 137","No. of site inspections",null,null,null,null,null,null,null,"1522","137","Y","79","Traffic - CVE / DWI / HEAT / Impound / MOTORS","EACH","INPUT","ADOPTEDBUD",null,null,null,"Traffic - CVE / DWI / HEAT / Impound / MOTORS","No. of Federal Violations",null,{"$f":"'Data SBP Measures'!$AF480&'Data SBP Measures'!$AE480& \" - \"& 'Data SBP Measures'!$U480","v":"No. of Federal ViolationsTraffic - CVE / DWI / HEAT / Impound / MOTORS - 137"},{"$f":"_xlfn.XLOOKUP(VALUE(W480),'Data SBP Programs'!O:O,'Data SBP Programs'!S:S)","v":"Traffic - CVE / DWI / HEAT / Impound / MOTORS"}]
[{"$f":"'Data SBP Measures'!$AI1115&\" - \"&'Data SBP Measures'!$U1115","v":"Civil - 127"},{"$f":"'Data SBP Measures'!$AF1115","v":"Active cases"},{"$f":"'Data SBP Measures'!$T1115","v":"2081"},{"$f":"'Data SBP Measures'!$U1115&B481","v":"127Active cases"},{"$f":"'Data SBP Measures'!$Y1115","v":"EACH"},null,null,null,null,null,"Civil - 127","Active cases",null,null,null,null,null,null,null,"1523","137","Y","79","Traffic - CVE / DWI / HEAT / Impound / MOTORS","EACH","INPUT","ADOPTEDBUD",null,null,null,"Traffic - CVE / DWI / HEAT / Impound / MOTORS","No. of State Violations",null,{"$f":"'Data SBP Measures'!$AF481&'Data SBP Measures'!$AE481& \" - \"& 'Data SBP Measures'!$U481","v":"No. of State ViolationsTraffic - CVE / DWI / HEAT / Impound / MOTORS - 137"},{"$f":"_xlfn.XLOOKUP(VALUE(W481),'Data SBP Programs'!O:O,'Data SBP Programs'!S:S)","v":"Traffic - CVE / DWI / HEAT / Impound / MOTORS"}]
[{"$f":"'Data SBP Measures'!$AI1116&\" - \"&'Data SBP Measures'!$U1116","v":"Civil - 127"},{"$f":"'Data SBP Measures'!$AF1116","v":"Active cases"},{"$f":"'Data SBP Measures'!$T1116","v":"2081"},{"$f":"'Data SBP Measures'!$U1116&B482","v":"127Active cases"},{"$f":"'Data SBP Measures'!$Y1116","v":"EACH"},null,null,null,null,null,"Civil - 127","Active cases",null,null,null,null,null,null,null,"1524","137","Y","79","Traffic - CVE / DWI / HEAT / Impound / MOTORS","EACH","INPUT","ADOPTEDBUD",null,null,null,"Traffic - CVE / DWI / HEAT / Impound / MOTORS","No. of Out of Service Violations",null,{"$f":"'Data SBP Measures'!$AF482&'Data SBP Measures'!$AE482& \" - \"& 'Data SBP Measures'!$U482","v":"No. of Out of Service ViolationsTraffic - CVE / DWI / HEAT / Impound / MOTORS - 137"},{"$f":"_xlfn.XLOOKUP(VALUE(W482),'Data SBP Programs'!O:O,'Data SBP Programs'!S:S)","v":"Traffic - CVE / DWI / HEAT / Impound / MOTORS"}]
[{"$f":"'Data SBP Measures'!$AI1117&\" - \"&'Data SBP Measures'!$U1117","v":"Civil - 127"},{"$f":"'Data SBP Measures'!$AF1117","v":"Active cases"},{"$f":"'Data SBP Measures'!$T1117","v":"2081"},{"$f":"'Data SBP Measures'!$U1117&B483","v":"127Active cases"},{"$f":"'Data SBP Measures'!$Y1117","v":"EACH"},null,null,null,null,null,"Civil - 127","Active cases",null,null,null,null,null,null,null,"1525","137","Y","79","Traffic - CVE / DWI / HEAT / Impound / MOTORS","EACH","INPUT","ADOPTEDBUD",null,null,null,"Traffic - CVE / DWI / HEAT / Impound / MOTORS","No. of Accident Reconstructions (HEAT/Motors)",null,{"$f":"'Data SBP Measures'!$AF483&'Data SBP Measures'!$AE483& \" - \"& 'Data SBP Measures'!$U483","v":"No. of Accident Reconstructions (HEAT/Motors)Traffic - CVE / DWI / HEAT / Impound / MOTORS - 137"},{"$f":"_xlfn.XLOOKUP(VALUE(W483),'Data SBP Programs'!O:O,'Data SBP Programs'!S:S)","v":"Traffic - CVE / DWI / HEAT / Impound / MOTORS"}]
[{"$f":"'Data SBP Measures'!$AI1118&\" - \"&'Data SBP Measures'!$U1118","v":"Civil - 127"},{"$f":"'Data SBP Measures'!$AF1118","v":"Active cases"},{"$f":"'Data SBP Measures'!$T1118","v":"2081"},{"$f":"'Data SBP Measures'!$U1118&B484","v":"127Active cases"},{"$f":"'Data SBP Measures'!$Y1118","v":"EACH"},null,null,null,null,null,"Civil - 127","Active cases",null,null,null,null,null,null,null,"1526","137","Y","69","CID - Major Crimes / Special Crimes / Environmental / Support","EACH","INPUT","ADOPTEDBUD",null,null,null,"CID - Major Crimes / Special Crimes / Environmental / Support","No. of site inspections",null,{"$f":"'Data SBP Measures'!$AF484&'Data SBP Measures'!$AE484& \" - \"& 'Data SBP Measures'!$U484","v":"No. of site inspectionsCID - Major Crimes / Special Crimes / Environmental / Support - 137"},{"$f":"_xlfn.XLOOKUP(VALUE(W484),'Data SBP Programs'!O:O,'Data SBP Programs'!S:S)","v":"CID - Major Crimes / Special Crimes / Environmental / Support"}]
[{"$f":"'Data SBP Measures'!$AI1119&\" - \"&'Data SBP Measures'!$U1119","v":"Civil - 127"},{"$f":"'Data SBP Measures'!$AF1119","v":"Added cases"},{"$f":"'Data SBP Measures'!$T1119","v":"2082"},{"$f":"'Data SBP Measures'!$U1119&B485","v":"127Added cases"},{"$f":"'Data SBP Measures'!$Y1119","v":"EACH"},null,null,null,null,null,"Civil - 127","Added cases",null,null,null,null,null,null,null,"1527","137","Y","69","CID - Major Crimes / Special Crimes / Environmental / Support","EACH","INPUT","ADOPTEDBUD",null,null,null,"CID - Major Crimes / Special Crimes / Environmental / Support","No. of metal crimes",null,{"$f":"'Data SBP Measures'!$AF485&'Data SBP Measures'!$AE485& \" - \"& 'Data SBP Measures'!$U485","v":"No. of metal crimesCID - Major Crimes / Special Crimes / Environmental / Support - 137"},{"$f":"_xlfn.XLOOKUP(VALUE(W485),'Data SBP Programs'!O:O,'Data SBP Programs'!S:S)","v":"CID - Major Crimes / Special Crimes / Environmental / Support"}]
[{"$f":"'Data SBP Measures'!$AI1120&\" - \"&'Data SBP Measures'!$U1120","v":"Civil - 127"},{"$f":"'Data SBP Measures'!$AF1120","v":"Added cases"},{"$f":"'Data SBP Measures'!$T1120","v":"2082"},{"$f":"'Data SBP Measures'!$U1120&B486","v":"127Added cases"},{"$f":"'Data SBP Measures'!$Y1120","v":"EACH"},null,null,null,null,null,"Civil - 127","Added cases",null,null,null,null,null,null,null,"1528","137","Y","183","Police Psychologist","EACH","INPUT","ADOPTEDBUD",null,null,null,"Police Psychologist","No. of psychological tests administered",null,{"$f":"'Data SBP Measures'!$AF486&'Data SBP Measures'!$AE486& \" - \"& 'Data SBP Measures'!$U486","v":"No. of psychological tests administeredPolice Psychologist - 137"},{"$f":"_xlfn.XLOOKUP(VALUE(W486),'Data SBP Programs'!O:O,'Data SBP Programs'!S:S)","v":"Police Psychologist"}]
[{"$f":"'Data SBP Measures'!$AI1121&\" - \"&'Data SBP Measures'!$U1121","v":"Civil - 127"},{"$f":"'Data SBP Measures'!$AF1121","v":"Added cases"},{"$f":"'Data SBP Measures'!$T1121","v":"2082"},{"$f":"'Data SBP Measures'!$U1121&B487","v":"127Added cases"},{"$f":"'Data SBP Measures'!$Y1121","v":"EACH"},null,null,null,null,null,"Civil - 127","Added cases",null,null,null,null,null,null,null,"1529","137","Y","183","Police Psychologist","EACH","INPUT","ADOPTEDBUD",null,null,null,"Police Psychologist","No. of psychological tests failed",null,{"$f":"'Data SBP Measures'!$AF487&'Data SBP Measures'!$AE487& \" - \"& 'Data SBP Measures'!$U487","v":"No. of psychological tests failedPolice Psychologist - 137"},{"$f":"_xlfn.XLOOKUP(VALUE(W487),'Data SBP Programs'!O:O,'Data SBP Programs'!S:S)","v":"Police Psychologist"}]
[{"$f":"'Data SBP Measures'!$AI1122&\" - \"&'Data SBP Measures'!$U1122","v":"Civil - 127"},{"$f":"'Data SBP Measures'!$AF1122","v":"Added cases"},{"$f":"'Data SBP Measures'!$T1122","v":"2082"},{"$f":"'Data SBP Measures'!$U1122&B488","v":"127Added cases"},{"$f":"'Data SBP Measures'!$Y1122","v":"EACH"},null,null,null,null,null,"Civil - 127","Added cases",null,null,null,null,null,null,null,"1530","137","Y","183","Police Psychologist","EACH","INPUT","ADOPTEDBUD",null,null,null,"Police Psychologist","No. of pyschological therapy sessions",null,{"$f":"'Data SBP Measures'!$AF488&'Data SBP Measures'!$AE488& \" - \"& 'Data SBP Measures'!$U488","v":"No. of pyschological therapy sessionsPolice Psychologist - 137"},{"$f":"_xlfn.XLOOKUP(VALUE(W488),'Data SBP Programs'!O:O,'Data SBP Programs'!S:S)","v":"Police Psychologist"}]
[{"$f":"'Data SBP Measures'!$AI1123&\" - \"&'Data SBP Measures'!$U1123","v":"Civil - 127"},{"$f":"'Data SBP Measures'!$AF1123","v":"Disposed Cases"},{"$f":"'Data SBP Measures'!$T1123","v":"2083"},{"$f":"'Data SBP Measures'!$U1123&B489","v":"127Disposed Cases"},{"$f":"'Data SBP Measures'!$Y1123","v":"EACH"},null,null,null,null,null,"Civil - 127","Disposed Cases",null,null,null,null,null,null,null,"1531","137","Y","183","Police Psychologist","HOURS","INPUT","ADOPTEDBUD",null,null,null,"Police Psychologist","No. of hours psychological training offered",null,{"$f":"'Data SBP Measures'!$AF489&'Data SBP Measures'!$AE489& \" - \"& 'Data SBP Measures'!$U489","v":"No. of hours psychological training offeredPolice Psychologist - 137"},{"$f":"_xlfn.XLOOKUP(VALUE(W489),'Data SBP Programs'!O:O,'Data SBP Programs'!S:S)","v":"Police Psychologist"}]
[{"$f":"'Data SBP Measures'!$AI1124&\" - \"&'Data SBP Measures'!$U1124","v":"Civil - 127"},{"$f":"'Data SBP Measures'!$AF1124","v":"Disposed Cases"},{"$f":"'Data SBP Measures'!$T1124","v":"2083"},{"$f":"'Data SBP Measures'!$U1124&B490","v":"127Disposed Cases"},{"$f":"'Data SBP Measures'!$Y1124","v":"EACH"},null,null,null,null,null,"Civil - 127","Disposed Cases",null,null,null,null,null,null,null,"1533","137","Y","183","Police Psychologist","EACH","INPUT","ADOPTEDBUD",null,null,null,"Police Psychologist","No of critical incident debriefs/diffusings",null,{"$f":"'Data SBP Measures'!$AF490&'Data SBP Measures'!$AE490& \" - \"& 'Data SBP Measures'!$U490","v":"No of critical incident debriefs/diffusingsPolice Psychologist - 137"},{"$f":"_xlfn.XLOOKUP(VALUE(W490),'Data SBP Programs'!O:O,'Data SBP Programs'!S:S)","v":"Police Psychologist"}]
[{"$f":"'Data SBP Measures'!$AI1125&\" - \"&'Data SBP Measures'!$U1125","v":"Civil - 127"},{"$f":"'Data SBP Measures'!$AF1125","v":"Disposed Cases"},{"$f":"'Data SBP Measures'!$T1125","v":"2083"},{"$f":"'Data SBP Measures'!$U1125&B491","v":"127Disposed Cases"},{"$f":"'Data SBP Measures'!$Y1125","v":"EACH"},null,null,null,null,null,"Civil - 127","Disposed Cases",null,null,null,null,null,null,null,"1535","109","Y","13","Corporations","EACH","OUTPUT","ADOPTEDBUD",null,null,null,"Corporations","Number of issuances TCHFC",null,{"$f":"'Data SBP Measures'!$AF491&'Data SBP Measures'!$AE491& \" - \"& 'Data SBP Measures'!$U491","v":"Number of issuances TCHFCCorporations - 109"},{"$f":"_xlfn.XLOOKUP(VALUE(W491),'Data SBP Programs'!O:O,'Data SBP Programs'!S:S)","v":"Corporations"}]
[{"$f":"'Data SBP Measures'!$AI1126&\" - \"&'Data SBP Measures'!$U1126","v":"Civil - 127"},{"$f":"'Data SBP Measures'!$AF1126","v":"Disposed Cases"},{"$f":"'Data SBP Measures'!$T1126","v":"2083"},{"$f":"'Data SBP Measures'!$U1126&B492","v":"127Disposed Cases"},{"$f":"'Data SBP Measures'!$Y1126","v":"EACH"},null,null,null,null,null,"Civil - 127","Disposed Cases",null,null,null,null,null,null,null,"154","108","Y","22","Administration","EACH","OUTPUT","NEITHER",null,null,null,"Administration","# of reports input",null,{"$f":"'Data SBP Measures'!$AF492&'Data SBP Measures'!$AE492& \" - \"& 'Data SBP Measures'!$U492","v":"# of reports inputAdministration - 108"},{"$f":"_xlfn.XLOOKUP(VALUE(W492),'Data SBP Programs'!O:O,'Data SBP Programs'!S:S)","v":"Administration"}]
[{"$f":"'Data SBP Measures'!$AI2150&\" - \"&'Data SBP Measures'!$U2150","v":"Civil - 127"},{"$f":"'Data SBP Measures'!$AF2150","v":"Percentage of Cases Disposed"},{"$f":"'Data SBP Measures'!$T2150","v":"2683"},{"$f":"'Data SBP Measures'!$U2150&B493","v":"127Percentage of Cases Disposed"},{"$f":"'Data SBP Measures'!$Y2150","v":"PERCENT"},null,null,null,null,null,"Civil - 127","Percentage of Cases Disposed",null,null,null,null,null,null,null,"1540","109","Y","12","Investment Management","HOURS","INPUT","ADOPTEDBUD",null,null,null,"Investment Management","FTE hours spent developing, implementing and managing depository bank service contract",null,{"$f":"'Data SBP Measures'!$AF493&'Data SBP Measures'!$AE493& \" - \"& 'Data SBP Measures'!$U493","v":"FTE hours spent developing, implementing and managing depository bank service contractInvestment Management - 109"},{"$f":"_xlfn.XLOOKUP(VALUE(W493),'Data SBP Programs'!O:O,'Data SBP Programs'!S:S)","v":"Investment Management"}]
[{"$f":"'Data SBP Measures'!$AI2151&\" - \"&'Data SBP Measures'!$U2151","v":"Civil - 127"},{"$f":"'Data SBP Measures'!$AF2151","v":"Percentage of Cases Disposed"},{"$f":"'Data SBP Measures'!$T2151","v":"2683"},{"$f":"'Data SBP Measures'!$U2151&B494","v":"127Percentage of Cases Disposed"},{"$f":"'Data SBP Measures'!$Y2151","v":"PERCENT"},null,null,null,null,null,"Civil - 127","Percentage of Cases Disposed",null,null,null,null,null,null,null,"1541","109","Y","12","Investment Management","DOLLARS","OUTCOME","ADOPTEDBUD",null,null,null,"Investment Management","Compensating balances and interest earned in excess of bank service costs",null,{"$f":"'Data SBP Measures'!$AF494&'Data SBP Measures'!$AE494& \" - \"& 'Data SBP Measures'!$U494","v":"Compensating balances and interest earned in excess of bank service costsInvestment Management - 109"},{"$f":"_xlfn.XLOOKUP(VALUE(W494),'Data SBP Programs'!O:O,'Data SBP Programs'!S:S)","v":"Investment Management"}]
[{"$f":"'Data SBP Measures'!$AI2152&\" - \"&'Data SBP Measures'!$U2152","v":"Civil - 127"},{"$f":"'Data SBP Measures'!$AF2152","v":"Percentage of Cases Disposed"},{"$f":"'Data SBP Measures'!$T2152","v":"2683"},{"$f":"'Data SBP Measures'!$U2152&B495","v":"127Percentage of Cases Disposed"},{"$f":"'Data SBP Measures'!$Y2152","v":"PERCENT"},null,null,null,null,null,"Civil - 127","Percentage of Cases Disposed",null,null,null,null,null,null,null,"1542","149","Y","131","Natural Resources Program","EACH","OUTCOME","BLACKBOOK",null,null,null,"Natural Resources Program","Number of participation certificates issued by Travis County BCCP for endangered species take during development\n",null,{"$f":"'Data SBP Measures'!$AF495&'Data SBP Measures'!$AE495& \" - \"& 'Data SBP Measures'!$U495","v":"Number of participation certificates issued by Travis County BCCP for endangered species take during development\nNatural Resources Program - 149"},{"$f":"_xlfn.XLOOKUP(VALUE(W495),'Data SBP Programs'!O:O,'Data SBP Programs'!S:S)","v":"Natural Resources Program"}]
[{"$f":"'Data SBP Measures'!$AI2153&\" - \"&'Data SBP Measures'!$U2153","v":"Civil - 127"},{"$f":"'Data SBP Measures'!$AF2153","v":"Percentage of Cases Disposed"},{"$f":"'Data SBP Measures'!$T2153","v":"2683"},{"$f":"'Data SBP Measures'!$U2153&B496","v":"127Percentage of Cases Disposed"},{"$f":"'Data SBP Measures'!$Y2153","v":"PERCENT"},null,null,null,null,null,"Civil - 127","Percentage of Cases Disposed",null,null,null,null,null,null,null,"1543","149","Y","131","Natural Resources Program","ACRES","OUTCOME","BLACKBOOK",null,null,null,"Natural Resources Program","Number of acres acquired/protected by TC for the BCP",null,{"$f":"'Data SBP Measures'!$AF496&'Data SBP Measures'!$AE496& \" - \"& 'Data SBP Measures'!$U496","v":"Number of acres acquired/protected by TC for the BCPNatural Resources Program - 149"},{"$f":"_xlfn.XLOOKUP(VALUE(W496),'Data SBP Programs'!O:O,'Data SBP Programs'!S:S)","v":"Natural Resources Program"}]
[{"$f":"'Data SBP Measures'!$AI1174&\" - \"&'Data SBP Measures'!$U1174","v":"Civil - 128"},{"$f":"'Data SBP Measures'!$AF1174","v":"Debt Claim Case Dispositions"},{"$f":"'Data SBP Measures'!$T1174","v":"2100"},{"$f":"'Data SBP Measures'!$U1174&B497","v":"128Debt Claim Case Dispositions"},{"$f":"'Data SBP Measures'!$Y1174","v":"EACH"},null,null,null,null,null,"Civil - 128","Debt Claim Case Dispositions",null,null,null,null,null,null,null,"1544","149","Y","131","Natural Resources Program","EACH","OUTCOME","BLACKBOOK",null,null,null,"Natural Resources Program","Total number of caves protected by BCCP partners\n",null,{"$f":"'Data SBP Measures'!$AF497&'Data SBP Measures'!$AE497& \" - \"& 'Data SBP Measures'!$U497","v":"Total number of caves protected by BCCP partners\nNatural Resources Program - 149"},{"$f":"_xlfn.XLOOKUP(VALUE(W497),'Data SBP Programs'!O:O,'Data SBP Programs'!S:S)","v":"Natural Resources Program"}]
[{"$f":"'Data SBP Measures'!$AI1175&\" - \"&'Data SBP Measures'!$U1175","v":"Civil - 128"},{"$f":"'Data SBP Measures'!$AF1175","v":"Debt Claim Case Dispositions"},{"$f":"'Data SBP Measures'!$T1175","v":"2100"},{"$f":"'Data SBP Measures'!$U1175&B498","v":"128Debt Claim Case Dispositions"},{"$f":"'Data SBP Measures'!$Y1175","v":"EACH"},null,null,null,null,null,"Civil - 128","Debt Claim Case Dispositions",null,null,null,null,null,null,null,"1546","149","Y","132","On-Site Wastewater","EACH","OUTCOME","BLACKBOOK",null,null,null,"On-Site Wastewater","# of OSSF verifications (for Development Permits)",null,{"$f":"'Data SBP Measures'!$AF498&'Data SBP Measures'!$AE498& \" - \"& 'Data SBP Measures'!$U498","v":"# of OSSF verifications (for Development Permits)On-Site Wastewater - 149"},{"$f":"_xlfn.XLOOKUP(VALUE(W498),'Data SBP Programs'!O:O,'Data SBP Programs'!S:S)","v":"On-Site Wastewater"}]
[{"$f":"'Data SBP Measures'!$AI1176&\" - \"&'Data SBP Measures'!$U1176","v":"Civil - 128"},{"$f":"'Data SBP Measures'!$AF1176","v":"Debt Claim Case Dispositions"},{"$f":"'Data SBP Measures'!$T1176","v":"2100"},{"$f":"'Data SBP Measures'!$U1176&B499","v":"128Debt Claim Case Dispositions"},{"$f":"'Data SBP Measures'!$Y1176","v":"EACH"},null,null,null,null,null,"Civil - 128","Debt Claim Case Dispositions",null,null,null,null,null,null,null,"1547","149","Y","142","TNR-Records Management","PERCENT","OUTCOME","BLACKBOOK",null,null,null,"TNR-Records Management","Internal users satisfied or better based on annual customer service satisfaction survey\n",null,{"$f":"'Data SBP Measures'!$AF499&'Data SBP Measures'!$AE499& \" - \"& 'Data SBP Measures'!$U499","v":"Internal users satisfied or better based on annual customer service satisfaction survey\nTNR-Records Management - 149"},{"$f":"_xlfn.XLOOKUP(VALUE(W499),'Data SBP Programs'!O:O,'Data SBP Programs'!S:S)","v":"TNR-Records Management"}]
[{"$f":"'Data SBP Measures'!$AI1157&\" - \"&'Data SBP Measures'!$U1157","v":"Civil - 128"},{"$f":"'Data SBP Measures'!$AF1157","v":"Debt Claim Cases Filed"},{"$f":"'Data SBP Measures'!$T1157","v":"2095"},{"$f":"'Data SBP Measures'!$U1157&B500","v":"128Debt Claim Cases Filed"},{"$f":"'Data SBP Measures'!$Y1157","v":"EACH"},null,null,null,null,null,"Civil - 128","Debt Claim Cases Filed",null,null,null,null,null,null,null,"1548","149","Y","131","Natural Resources Program","EACH","OUTPUT","BLACKBOOK",null,null,null,"Natural Resources Program","Number of hours surveying GCWA",null,{"$f":"'Data SBP Measures'!$AF500&'Data SBP Measures'!$AE500& \" - \"& 'Data SBP Measures'!$U500","v":"Number of hours surveying GCWANatural Resources Program - 149"},{"$f":"_xlfn.XLOOKUP(VALUE(W500),'Data SBP Programs'!O:O,'Data SBP Programs'!S:S)","v":"Natural Resources Program"}]
[{"$f":"'Data SBP Measures'!$AI1158&\" - \"&'Data SBP Measures'!$U1158","v":"Civil - 128"},{"$f":"'Data SBP Measures'!$AF1158","v":"Debt Claim Cases Filed"},{"$f":"'Data SBP Measures'!$T1158","v":"2095"},{"$f":"'Data SBP Measures'!$U1158&B501","v":"128Debt Claim Cases Filed"},{"$f":"'Data SBP Measures'!$Y1158","v":"EACH"},null,null,null,null,null,"Civil - 128","Debt Claim Cases Filed",null,null,null,null,null,null,null,"1549","149","Y","131","Natural Resources Program","EACH","OUTPUT","BLACKBOOK",null,null,null,"Natural Resources Program","Number of hours surveying BCVI",null,{"$f":"'Data SBP Measures'!$AF501&'Data SBP Measures'!$AE501& \" - \"& 'Data SBP Measures'!$U501","v":"Number of hours surveying BCVINatural Resources Program - 149"},{"$f":"_xlfn.XLOOKUP(VALUE(W501),'Data SBP Programs'!O:O,'Data SBP Programs'!S:S)","v":"Natural Resources Program"}]
[{"$f":"'Data SBP Measures'!$AI1159&\" - \"&'Data SBP Measures'!$U1159","v":"Civil - 128"},{"$f":"'Data SBP Measures'!$AF1159","v":"Debt Claim Cases Filed"},{"$f":"'Data SBP Measures'!$T1159","v":"2095"},{"$f":"'Data SBP Measures'!$U1159&B502","v":"128Debt Claim Cases Filed"},{"$f":"'Data SBP Measures'!$Y1159","v":"EACH"},null,null,null,null,null,"Civil - 128","Debt Claim Cases Filed",null,null,null,null,null,null,null,"155","108","Y","22","Administration","EACH","OUTCOME","NEITHER",null,null,null,"Administration","# of reports completed on time (Monitor compliance with target)",null,{"$f":"'Data SBP Measures'!$AF502&'Data SBP Measures'!$AE502& \" - \"& 'Data SBP Measures'!$U502","v":"# of reports completed on time (Monitor compliance with target)Administration - 108"},{"$f":"_xlfn.XLOOKUP(VALUE(W502),'Data SBP Programs'!O:O,'Data SBP Programs'!S:S)","v":"Administration"}]
[{"$f":"'Data SBP Measures'!$AI2804&\" - \"&'Data SBP Measures'!$U2804","v":"Civil - 128"},{"$f":"'Data SBP Measures'!$AF2804","v":"Debt Claim Hearings"},{"$f":"'Data SBP Measures'!$T2804","v":"3393"},{"$f":"'Data SBP Measures'!$U2804&B503","v":"128Debt Claim Hearings"},{"$f":"'Data SBP Measures'!$Y2804","v":"EACH"},null,null,null,null,null,"Civil - 128","Debt Claim Hearings",null,null,null,null,null,null,null,"1550","149","Y","132","On-Site Wastewater","EACH","OUTPUT","BLACKBOOK",null,null,null,"On-Site Wastewater","# of OSSF permit reviews",null,{"$f":"'Data SBP Measures'!$AF503&'Data SBP Measures'!$AE503& \" - \"& 'Data SBP Measures'!$U503","v":"# of OSSF permit reviewsOn-Site Wastewater - 149"},{"$f":"_xlfn.XLOOKUP(VALUE(W503),'Data SBP Programs'!O:O,'Data SBP Programs'!S:S)","v":"On-Site Wastewater"}]
[{"$f":"'Data SBP Measures'!$AI2805&\" - \"&'Data SBP Measures'!$U2805","v":"Civil - 128"},{"$f":"'Data SBP Measures'!$AF2805","v":"Debt Claim Hearings"},{"$f":"'Data SBP Measures'!$T2805","v":"3393"},{"$f":"'Data SBP Measures'!$U2805&B504","v":"128Debt Claim Hearings"},{"$f":"'Data SBP Measures'!$Y2805","v":"EACH"},null,null,null,null,null,"Civil - 128","Debt Claim Hearings",null,null,null,null,null,null,null,"1551","155","Y","179","Justice Planning","EACH","OUTPUT","ADOPTEDBUD",null,null,null,"Justice Planning","# of internal and external data requests completed.",null,{"$f":"'Data SBP Measures'!$AF504&'Data SBP Measures'!$AE504& \" - \"& 'Data SBP Measures'!$U504","v":"# of internal and external data requests completed.Justice Planning - 155"},{"$f":"_xlfn.XLOOKUP(VALUE(W504),'Data SBP Programs'!O:O,'Data SBP Programs'!S:S)","v":"Justice Planning"}]
[{"$f":"'Data SBP Measures'!$AI2806&\" - \"&'Data SBP Measures'!$U2806","v":"Civil - 128"},{"$f":"'Data SBP Measures'!$AF2806","v":"Debt Claim Hearings"},{"$f":"'Data SBP Measures'!$T2806","v":"3393"},{"$f":"'Data SBP Measures'!$U2806&B505","v":"128Debt Claim Hearings"},{"$f":"'Data SBP Measures'!$Y2806","v":"EACH"},null,null,null,null,null,"Civil - 128","Debt Claim Hearings",null,null,null,null,null,null,null,"1552","155","Y","297","Workforce Development Taskforce (WD)\n","EACH","OUTPUT","BLACKBOOK",null,null,null,"Workforce Development Taskforce (WD)\n","# of employers contacted",null,{"$f":"'Data SBP Measures'!$AF505&'Data SBP Measures'!$AE505& \" - \"& 'Data SBP Measures'!$U505","v":"# of employers contactedWorkforce Development Taskforce (WD)\n - 155"},{"$f":"_xlfn.XLOOKUP(VALUE(W505),'Data SBP Programs'!O:O,'Data SBP Programs'!S:S)","v":"Workforce Development Taskforce (WD)\n"}]
[{"$f":"'Data SBP Measures'!$AI2810&\" - \"&'Data SBP Measures'!$U2810","v":"Civil - 128"},{"$f":"'Data SBP Measures'!$AF2810","v":"Eviction Hearings"},{"$f":"'Data SBP Measures'!$T2810","v":"3395"},{"$f":"'Data SBP Measures'!$U2810&B506","v":"128Eviction Hearings"},{"$f":"'Data SBP Measures'!$Y2810","v":"EACH"},null,null,null,null,null,"Civil - 128","Eviction Hearings",null,null,null,null,null,null,null,"1553","155","Y","297","Workforce Development Taskforce (WD)\n","EACH","OUTPUT","BLACKBOOK",null,null,null,"Workforce Development Taskforce (WD)\n","# of housing providers contacted",null,{"$f":"'Data SBP Measures'!$AF506&'Data SBP Measures'!$AE506& \" - \"& 'Data SBP Measures'!$U506","v":"# of housing providers contactedWorkforce Development Taskforce (WD)\n - 155"},{"$f":"_xlfn.XLOOKUP(VALUE(W506),'Data SBP Programs'!O:O,'Data SBP Programs'!S:S)","v":"Workforce Development Taskforce (WD)\n"}]
[{"$f":"'Data SBP Measures'!$AI2811&\" - \"&'Data SBP Measures'!$U2811","v":"Civil - 128"},{"$f":"'Data SBP Measures'!$AF2811","v":"Eviction Hearings"},{"$f":"'Data SBP Measures'!$T2811","v":"3395"},{"$f":"'Data SBP Measures'!$U2811&B507","v":"128Eviction Hearings"},{"$f":"'Data SBP Measures'!$Y2811","v":"EACH"},null,null,null,null,null,"Civil - 128","Eviction Hearings",null,null,null,null,null,null,null,"1554","155","Y","179","Justice Planning","EACH","OUTPUT","BLACKBOOK",null,null,null,"Justice Planning","# of collaborative meetings attended and/or facilitated",null,{"$f":"'Data SBP Measures'!$AF507&'Data SBP Measures'!$AE507& \" - \"& 'Data SBP Measures'!$U507","v":"# of collaborative meetings attended and/or facilitatedJustice Planning - 155"},{"$f":"_xlfn.XLOOKUP(VALUE(W507),'Data SBP Programs'!O:O,'Data SBP Programs'!S:S)","v":"Justice Planning"}]
[{"$f":"'Data SBP Measures'!$AI2812&\" - \"&'Data SBP Measures'!$U2812","v":"Civil - 128"},{"$f":"'Data SBP Measures'!$AF2812","v":"Eviction Hearings"},{"$f":"'Data SBP Measures'!$T2812","v":"3395"},{"$f":"'Data SBP Measures'!$U2812&B508","v":"128Eviction Hearings"},{"$f":"'Data SBP Measures'!$Y2812","v":"EACH"},null,null,null,null,null,"Civil - 128","Eviction Hearings",null,null,null,null,null,null,null,"1556","155","Y","179","Justice Planning","EACH","OUTPUT","BLACKBOOK",null,null,null,"Justice Planning","# of internal and/or external training sessions conducted or attended",null,{"$f":"'Data SBP Measures'!$AF508&'Data SBP Measures'!$AE508& \" - \"& 'Data SBP Measures'!$U508","v":"# of internal and/or external training sessions conducted or attendedJustice Planning - 155"},{"$f":"_xlfn.XLOOKUP(VALUE(W508),'Data SBP Programs'!O:O,'Data SBP Programs'!S:S)","v":"Justice Planning"}]
[{"$f":"'Data SBP Measures'!$AI1169&\" - \"&'Data SBP Measures'!$U1169","v":"Civil - 128"},{"$f":"'Data SBP Measures'!$AF1169","v":"Evictions and Landlord Tenant Case Dispositions"},{"$f":"'Data SBP Measures'!$T1169","v":"2099"},{"$f":"'Data SBP Measures'!$U1169&B509","v":"128Evictions and Landlord Tenant Case Dispositions"},{"$f":"'Data SBP Measures'!$Y1169","v":"EACH"},null,null,null,null,null,"Civil - 128","Evictions and Landlord Tenant Case Dispositions",null,null,null,null,null,null,null,"156","108","Y","22","Administration","PERCENT","EFFICIENCY","NEITHER",null,null,null,"Administration","% of regular and on time reports",null,{"$f":"'Data SBP Measures'!$AF509&'Data SBP Measures'!$AE509& \" - \"& 'Data SBP Measures'!$U509","v":"% of regular and on time reportsAdministration - 108"},{"$f":"_xlfn.XLOOKUP(VALUE(W509),'Data SBP Programs'!O:O,'Data SBP Programs'!S:S)","v":"Administration"}]
[{"$f":"'Data SBP Measures'!$AI1170&\" - \"&'Data SBP Measures'!$U1170","v":"Civil - 128"},{"$f":"'Data SBP Measures'!$AF1170","v":"Evictions and Landlord Tenant Case Dispositions"},{"$f":"'Data SBP Measures'!$T1170","v":"2099"},{"$f":"'Data SBP Measures'!$U1170&B510","v":"128Evictions and Landlord Tenant Case Dispositions"},{"$f":"'Data SBP Measures'!$Y1170","v":"EACH"},null,null,null,null,null,"Civil - 128","Evictions and Landlord Tenant Case Dispositions",null,null,null,null,null,null,null,"1567","112","Y","30","Enterprise Infrastructure Services","PERCENT","OUTCOME","BLACKBOOK",null,null,null,"Enterprise Infrastructure Services","% of SLM Restored – Priority 1 Incidents",null,{"$f":"'Data SBP Measures'!$AF510&'Data SBP Measures'!$AE510& \" - \"& 'Data SBP Measures'!$U510","v":"% of SLM Restored – Priority 1 IncidentsEnterprise Infrastructure Services - 112"},{"$f":"_xlfn.XLOOKUP(VALUE(W510),'Data SBP Programs'!O:O,'Data SBP Programs'!S:S)","v":"Enterprise Infrastructure Services"}]
[{"$f":"'Data SBP Measures'!$AI1171&\" - \"&'Data SBP Measures'!$U1171","v":"Civil - 128"},{"$f":"'Data SBP Measures'!$AF1171","v":"Evictions and Landlord Tenant Case Dispositions"},{"$f":"'Data SBP Measures'!$T1171","v":"2099"},{"$f":"'Data SBP Measures'!$U1171&B511","v":"128Evictions and Landlord Tenant Case Dispositions"},{"$f":"'Data SBP Measures'!$Y1171","v":"EACH"},null,null,null,null,null,"Civil - 128","Evictions and Landlord Tenant Case Dispositions",null,null,null,null,null,null,null,"1568","112","Y","30","Enterprise Infrastructure Services","PERCENT","OUTCOME","BLACKBOOK",null,null,null,"Enterprise Infrastructure Services","% of LAN/WAN Restored – Priority 1 Incidents",null,{"$f":"'Data SBP Measures'!$AF511&'Data SBP Measures'!$AE511& \" - \"& 'Data SBP Measures'!$U511","v":"% of LAN/WAN Restored – Priority 1 IncidentsEnterprise Infrastructure Services - 112"},{"$f":"_xlfn.XLOOKUP(VALUE(W511),'Data SBP Programs'!O:O,'Data SBP Programs'!S:S)","v":"Enterprise Infrastructure Services"}]
[{"$f":"'Data SBP Measures'!$AI1154&\" - \"&'Data SBP Measures'!$U1154","v":"Civil - 128"},{"$f":"'Data SBP Measures'!$AF1154","v":"Evictions and Landlord Tenant Cases Filed"},{"$f":"'Data SBP Measures'!$T1154","v":"2094"},{"$f":"'Data SBP Measures'!$U1154&B512","v":"128Evictions and Landlord Tenant Cases Filed"},{"$f":"'Data SBP Measures'!$Y1154","v":"EACH"},null,null,null,null,null,"Civil - 128","Evictions and Landlord Tenant Cases Filed",null,null,null,null,null,null,null,"1569","112","Y","30","Enterprise Infrastructure Services","PERCENT","OUTCOME","BLACKBOOK",null,null,null,"Enterprise Infrastructure Services","% of Services Desk/Ops Restored – Priority 1 Incidents",null,{"$f":"'Data SBP Measures'!$AF512&'Data SBP Measures'!$AE512& \" - \"& 'Data SBP Measures'!$U512","v":"% of Services Desk/Ops Restored – Priority 1 IncidentsEnterprise Infrastructure Services - 112"},{"$f":"_xlfn.XLOOKUP(VALUE(W512),'Data SBP Programs'!O:O,'Data SBP Programs'!S:S)","v":"Enterprise Infrastructure Services"}]
[{"$f":"'Data SBP Measures'!$AI1155&\" - \"&'Data SBP Measures'!$U1155","v":"Civil - 128"},{"$f":"'Data SBP Measures'!$AF1155","v":"Evictions and Landlord Tenant Cases Filed"},{"$f":"'Data SBP Measures'!$T1155","v":"2094"},{"$f":"'Data SBP Measures'!$U1155&B513","v":"128Evictions and Landlord Tenant Cases Filed"},{"$f":"'Data SBP Measures'!$Y1155","v":"EACH"},null,null,null,null,null,"Civil - 128","Evictions and Landlord Tenant Cases Filed",null,null,null,null,null,null,null,"157","108","Y","22","Administration","FTE","INPUT","NEITHER",null,null,null,"Administration","# of resources (FTEs)",null,{"$f":"'Data SBP Measures'!$AF513&'Data SBP Measures'!$AE513& \" - \"& 'Data SBP Measures'!$U513","v":"# of resources (FTEs)Administration - 108"},{"$f":"_xlfn.XLOOKUP(VALUE(W513),'Data SBP Programs'!O:O,'Data SBP Programs'!S:S)","v":"Administration"}]
[{"$f":"'Data SBP Measures'!$AI1156&\" - \"&'Data SBP Measures'!$U1156","v":"Civil - 128"},{"$f":"'Data SBP Measures'!$AF1156","v":"Evictions and Landlord Tenant Cases Filed"},{"$f":"'Data SBP Measures'!$T1156","v":"2094"},{"$f":"'Data SBP Measures'!$U1156&B514","v":"128Evictions and Landlord Tenant Cases Filed"},{"$f":"'Data SBP Measures'!$Y1156","v":"EACH"},null,null,null,null,null,"Civil - 128","Evictions and Landlord Tenant Cases Filed",null,null,null,null,null,null,null,"1570","112","Y","30","Enterprise Infrastructure Services","PERCENT","OUTCOME","BLACKBOOK",null,null,null,"Enterprise Infrastructure Services","% of Tier 2 Restored – Priority 1 Incidents",null,{"$f":"'Data SBP Measures'!$AF514&'Data SBP Measures'!$AE514& \" - \"& 'Data SBP Measures'!$U514","v":"% of Tier 2 Restored – Priority 1 IncidentsEnterprise Infrastructure Services - 112"},{"$f":"_xlfn.XLOOKUP(VALUE(W514),'Data SBP Programs'!O:O,'Data SBP Programs'!S:S)","v":"Enterprise Infrastructure Services"}]
[{"$f":"'Data SBP Measures'!$AI2807&\" - \"&'Data SBP Measures'!$U2807","v":"Civil - 128"},{"$f":"'Data SBP Measures'!$AF2807","v":"Small Claim Hearings"},{"$f":"'Data SBP Measures'!$T2807","v":"3394"},{"$f":"'Data SBP Measures'!$U2807&B515","v":"128Small Claim Hearings"},{"$f":"'Data SBP Measures'!$Y2807","v":"EACH"},null,null,null,null,null,"Civil - 128","Small Claim Hearings",null,null,null,null,null,null,null,"1571","112","Y","30","Enterprise Infrastructure Services","PERCENT","OUTCOME","BLACKBOOK",null,null,null,"Enterprise Infrastructure Services","% of AIM Restored – Priority 1 Incidents",null,{"$f":"'Data SBP Measures'!$AF515&'Data SBP Measures'!$AE515& \" - \"& 'Data SBP Measures'!$U515","v":"% of AIM Restored – Priority 1 IncidentsEnterprise Infrastructure Services - 112"},{"$f":"_xlfn.XLOOKUP(VALUE(W515),'Data SBP Programs'!O:O,'Data SBP Programs'!S:S)","v":"Enterprise Infrastructure Services"}]
[{"$f":"'Data SBP Measures'!$AI2808&\" - \"&'Data SBP Measures'!$U2808","v":"Civil - 128"},{"$f":"'Data SBP Measures'!$AF2808","v":"Small Claim Hearings"},{"$f":"'Data SBP Measures'!$T2808","v":"3394"},{"$f":"'Data SBP Measures'!$U2808&B516","v":"128Small Claim Hearings"},{"$f":"'Data SBP Measures'!$Y2808","v":"EACH"},null,null,null,null,null,"Civil - 128","Small Claim Hearings",null,null,null,null,null,null,null,"1573","112","Y","30","Enterprise Infrastructure Services","PERCENT","OUTCOME","BLACKBOOK",null,null,null,"Enterprise Infrastructure Services","% of UC Restored – Priority 1 Incidents",null,{"$f":"'Data SBP Measures'!$AF516&'Data SBP Measures'!$AE516& \" - \"& 'Data SBP Measures'!$U516","v":"% of UC Restored – Priority 1 IncidentsEnterprise Infrastructure Services - 112"},{"$f":"_xlfn.XLOOKUP(VALUE(W516),'Data SBP Programs'!O:O,'Data SBP Programs'!S:S)","v":"Enterprise Infrastructure Services"}]
[{"$f":"'Data SBP Measures'!$AI2809&\" - \"&'Data SBP Measures'!$U2809","v":"Civil - 128"},{"$f":"'Data SBP Measures'!$AF2809","v":"Small Claim Hearings"},{"$f":"'Data SBP Measures'!$T2809","v":"3394"},{"$f":"'Data SBP Measures'!$U2809&B517","v":"128Small Claim Hearings"},{"$f":"'Data SBP Measures'!$Y2809","v":"EACH"},null,null,null,null,null,"Civil - 128","Small Claim Hearings",null,null,null,null,null,null,null,"1574","112","Y","30","Enterprise Infrastructure Services","PERCENT","OUTCOME","BLACKBOOK",null,null,null,"Enterprise Infrastructure Services","% of SiteOps Restored – Priority 1 Incidents",null,{"$f":"'Data SBP Measures'!$AF517&'Data SBP Measures'!$AE517& \" - \"& 'Data SBP Measures'!$U517","v":"% of SiteOps Restored – Priority 1 IncidentsEnterprise Infrastructure Services - 112"},{"$f":"_xlfn.XLOOKUP(VALUE(W517),'Data SBP Programs'!O:O,'Data SBP Programs'!S:S)","v":"Enterprise Infrastructure Services"}]
[{"$f":"'Data SBP Measures'!$AI1166&\" - \"&'Data SBP Measures'!$U1166","v":"Civil - 128"},{"$f":"'Data SBP Measures'!$AF1166","v":"Small Claims Case Dispositions"},{"$f":"'Data SBP Measures'!$T1166","v":"2098"},{"$f":"'Data SBP Measures'!$U1166&B518","v":"128Small Claims Case Dispositions"},{"$f":"'Data SBP Measures'!$Y1166","v":"EACH"},null,null,null,null,null,"Civil - 128","Small Claims Case Dispositions",null,null,null,null,null,null,null,"1575","112","Y","30","Enterprise Infrastructure Services","PERCENT","OUTCOME","BLACKBOOK",null,null,null,"Enterprise Infrastructure Services","% of Overall EIS Restored – Priority 1 Incidents",null,{"$f":"'Data SBP Measures'!$AF518&'Data SBP Measures'!$AE518& \" - \"& 'Data SBP Measures'!$U518","v":"% of Overall EIS Restored – Priority 1 IncidentsEnterprise Infrastructure Services - 112"},{"$f":"_xlfn.XLOOKUP(VALUE(W518),'Data SBP Programs'!O:O,'Data SBP Programs'!S:S)","v":"Enterprise Infrastructure Services"}]
[{"$f":"'Data SBP Measures'!$AI1167&\" - \"&'Data SBP Measures'!$U1167","v":"Civil - 128"},{"$f":"'Data SBP Measures'!$AF1167","v":"Small Claims Case Dispositions"},{"$f":"'Data SBP Measures'!$T1167","v":"2098"},{"$f":"'Data SBP Measures'!$U1167&B519","v":"128Small Claims Case Dispositions"},{"$f":"'Data SBP Measures'!$Y1167","v":"EACH"},null,null,null,null,null,"Civil - 128","Small Claims Case Dispositions",null,null,null,null,null,null,null,"1576","112","Y","30","Enterprise Infrastructure Services","PERCENT","OUTCOME","BLACKBOOK",null,null,null,"Enterprise Infrastructure Services","% of SLM Restored – Priority 2 Incidents",null,{"$f":"'Data SBP Measures'!$AF519&'Data SBP Measures'!$AE519& \" - \"& 'Data SBP Measures'!$U519","v":"% of SLM Restored – Priority 2 IncidentsEnterprise Infrastructure Services - 112"},{"$f":"_xlfn.XLOOKUP(VALUE(W519),'Data SBP Programs'!O:O,'Data SBP Programs'!S:S)","v":"Enterprise Infrastructure Services"}]
[{"$f":"'Data SBP Measures'!$AI1168&\" - \"&'Data SBP Measures'!$U1168","v":"Civil - 128"},{"$f":"'Data SBP Measures'!$AF1168","v":"Small Claims Case Dispositions"},{"$f":"'Data SBP Measures'!$T1168","v":"2098"},{"$f":"'Data SBP Measures'!$U1168&B520","v":"128Small Claims Case Dispositions"},{"$f":"'Data SBP Measures'!$Y1168","v":"EACH"},null,null,null,null,null,"Civil - 128","Small Claims Case Dispositions",null,null,null,null,null,null,null,"1577","112","Y","30","Enterprise Infrastructure Services","PERCENT","OUTCOME","BLACKBOOK",null,null,null,"Enterprise Infrastructure Services","% of LAN/WAN Restored – Priority 2 Incidents",null,{"$f":"'Data SBP Measures'!$AF520&'Data SBP Measures'!$AE520& \" - \"& 'Data SBP Measures'!$U520","v":"% of LAN/WAN Restored – Priority 2 IncidentsEnterprise Infrastructure Services - 112"},{"$f":"_xlfn.XLOOKUP(VALUE(W520),'Data SBP Programs'!O:O,'Data SBP Programs'!S:S)","v":"Enterprise Infrastructure Services"}]
[{"$f":"'Data SBP Measures'!$AI1151&\" - \"&'Data SBP Measures'!$U1151","v":"Civil - 128"},{"$f":"'Data SBP Measures'!$AF1151","v":"Small Claims Cases Filed"},{"$f":"'Data SBP Measures'!$T1151","v":"2093"},{"$f":"'Data SBP Measures'!$U1151&B521","v":"128Small Claims Cases Filed"},{"$f":"'Data SBP Measures'!$Y1151","v":"EACH"},null,null,null,null,null,"Civil - 128","Small Claims Cases Filed",null,null,null,null,null,null,null,"1578","112","Y","30","Enterprise Infrastructure Services","PERCENT","OUTCOME","BLACKBOOK",null,null,null,"Enterprise Infrastructure Services","% of Services Desk/Ops Restored – Priority 2 Incidents",null,{"$f":"'Data SBP Measures'!$AF521&'Data SBP Measures'!$AE521& \" - \"& 'Data SBP Measures'!$U521","v":"% of Services Desk/Ops Restored – Priority 2 IncidentsEnterprise Infrastructure Services - 112"},{"$f":"_xlfn.XLOOKUP(VALUE(W521),'Data SBP Programs'!O:O,'Data SBP Programs'!S:S)","v":"Enterprise Infrastructure Services"}]
[{"$f":"'Data SBP Measures'!$AI1152&\" - \"&'Data SBP Measures'!$U1152","v":"Civil - 128"},{"$f":"'Data SBP Measures'!$AF1152","v":"Small Claims Cases Filed"},{"$f":"'Data SBP Measures'!$T1152","v":"2093"},{"$f":"'Data SBP Measures'!$U1152&B522","v":"128Small Claims Cases Filed"},{"$f":"'Data SBP Measures'!$Y1152","v":"EACH"},null,null,null,null,null,"Civil - 128","Small Claims Cases Filed",null,null,null,null,null,null,null,"1579","112","Y","30","Enterprise Infrastructure Services","PERCENT","OUTCOME","BLACKBOOK",null,null,null,"Enterprise Infrastructure Services","% of Tier 2 Restored – Priority 2 Incidents",null,{"$f":"'Data SBP Measures'!$AF522&'Data SBP Measures'!$AE522& \" - \"& 'Data SBP Measures'!$U522","v":"% of Tier 2 Restored – Priority 2 IncidentsEnterprise Infrastructure Services - 112"},{"$f":"_xlfn.XLOOKUP(VALUE(W522),'Data SBP Programs'!O:O,'Data SBP Programs'!S:S)","v":"Enterprise Infrastructure Services"}]
[{"$f":"'Data SBP Measures'!$AI1153&\" - \"&'Data SBP Measures'!$U1153","v":"Civil - 128"},{"$f":"'Data SBP Measures'!$AF1153","v":"Small Claims Cases Filed"},{"$f":"'Data SBP Measures'!$T1153","v":"2093"},{"$f":"'Data SBP Measures'!$U1153&B523","v":"128Small Claims Cases Filed"},{"$f":"'Data SBP Measures'!$Y1153","v":"EACH"},null,null,null,null,null,"Civil - 128","Small Claims Cases Filed",null,null,null,null,null,null,null,"158","108","Y","22","Administration","HOURS","OUTPUT","NEITHER",null,null,null,"Administration","# of hours involved (Staff time)",null,{"$f":"'Data SBP Measures'!$AF523&'Data SBP Measures'!$AE523& \" - \"& 'Data SBP Measures'!$U523","v":"# of hours involved (Staff time)Administration - 108"},{"$f":"_xlfn.XLOOKUP(VALUE(W523),'Data SBP Programs'!O:O,'Data SBP Programs'!S:S)","v":"Administration"}]
[{"$f":"'Data SBP Measures'!$AI1163&\" - \"&'Data SBP Measures'!$U1163","v":"Civil - 128"},{"$f":"'Data SBP Measures'!$AF1163","v":"Total Civil Cases Filed"},{"$f":"'Data SBP Measures'!$T1163","v":"2097"},{"$f":"'Data SBP Measures'!$U1163&B524","v":"128Total Civil Cases Filed"},{"$f":"'Data SBP Measures'!$Y1163","v":"EACH"},null,null,null,null,null,"Civil - 128","Total Civil Cases Filed",null,null,null,null,null,null,null,"1580","112","Y","30","Enterprise Infrastructure Services","PERCENT","OUTCOME","BLACKBOOK",null,null,null,"Enterprise Infrastructure Services","% of AIM Restored – Priority 2 Incidents",null,{"$f":"'Data SBP Measures'!$AF524&'Data SBP Measures'!$AE524& \" - \"& 'Data SBP Measures'!$U524","v":"% of AIM Restored – Priority 2 IncidentsEnterprise Infrastructure Services - 112"},{"$f":"_xlfn.XLOOKUP(VALUE(W524),'Data SBP Programs'!O:O,'Data SBP Programs'!S:S)","v":"Enterprise Infrastructure Services"}]
[{"$f":"'Data SBP Measures'!$AI1164&\" - \"&'Data SBP Measures'!$U1164","v":"Civil - 128"},{"$f":"'Data SBP Measures'!$AF1164","v":"Total Civil Cases Filed"},{"$f":"'Data SBP Measures'!$T1164","v":"2097"},{"$f":"'Data SBP Measures'!$U1164&B525","v":"128Total Civil Cases Filed"},{"$f":"'Data SBP Measures'!$Y1164","v":"EACH"},null,null,null,null,null,"Civil - 128","Total Civil Cases Filed",null,null,null,null,null,null,null,"1582","112","Y","30","Enterprise Infrastructure Services","PERCENT","OUTCOME","BLACKBOOK",null,null,null,"Enterprise Infrastructure Services","% of UC Restored – Priority 2 Incidents",null,{"$f":"'Data SBP Measures'!$AF525&'Data SBP Measures'!$AE525& \" - \"& 'Data SBP Measures'!$U525","v":"% of UC Restored – Priority 2 IncidentsEnterprise Infrastructure Services - 112"},{"$f":"_xlfn.XLOOKUP(VALUE(W525),'Data SBP Programs'!O:O,'Data SBP Programs'!S:S)","v":"Enterprise Infrastructure Services"}]
[{"$f":"'Data SBP Measures'!$AI1165&\" - \"&'Data SBP Measures'!$U1165","v":"Civil - 128"},{"$f":"'Data SBP Measures'!$AF1165","v":"Total Civil Cases Filed"},{"$f":"'Data SBP Measures'!$T1165","v":"2097"},{"$f":"'Data SBP Measures'!$U1165&B526","v":"128Total Civil Cases Filed"},{"$f":"'Data SBP Measures'!$Y1165","v":"EACH"},null,null,null,null,null,"Civil - 128","Total Civil Cases Filed",null,null,null,null,null,null,null,"1583","112","Y","30","Enterprise Infrastructure Services","PERCENT","OUTCOME","BLACKBOOK",null,null,null,"Enterprise Infrastructure Services","% of SiteOps Restored – Priority 2 Incidents",null,{"$f":"'Data SBP Measures'!$AF526&'Data SBP Measures'!$AE526& \" - \"& 'Data SBP Measures'!$U526","v":"% of SiteOps Restored – Priority 2 IncidentsEnterprise Infrastructure Services - 112"},{"$f":"_xlfn.XLOOKUP(VALUE(W526),'Data SBP Programs'!O:O,'Data SBP Programs'!S:S)","v":"Enterprise Infrastructure Services"}]
[{"$f":"'Data SBP Measures'!$AI1177&\" - \"&'Data SBP Measures'!$U1177","v":"Civil - 128"},{"$f":"'Data SBP Measures'!$AF1177","v":"Total Civil Dispositions"},{"$f":"'Data SBP Measures'!$T1177","v":"2101"},{"$f":"'Data SBP Measures'!$U1177&B527","v":"128Total Civil Dispositions"},{"$f":"'Data SBP Measures'!$Y1177","v":"EACH"},null,null,null,null,null,"Civil - 128","Total Civil Dispositions",null,null,null,null,null,null,null,"1584","112","Y","30","Enterprise Infrastructure Services","PERCENT","OUTCOME","BLACKBOOK",null,null,null,"Enterprise Infrastructure Services","% of Overall EIS Restored – Priority 2 Incidents",null,{"$f":"'Data SBP Measures'!$AF527&'Data SBP Measures'!$AE527& \" - \"& 'Data SBP Measures'!$U527","v":"% of Overall EIS Restored – Priority 2 IncidentsEnterprise Infrastructure Services - 112"},{"$f":"_xlfn.XLOOKUP(VALUE(W527),'Data SBP Programs'!O:O,'Data SBP Programs'!S:S)","v":"Enterprise Infrastructure Services"}]
[{"$f":"'Data SBP Measures'!$AI1178&\" - \"&'Data SBP Measures'!$U1178","v":"Civil - 128"},{"$f":"'Data SBP Measures'!$AF1178","v":"Total Civil Dispositions"},{"$f":"'Data SBP Measures'!$T1178","v":"2101"},{"$f":"'Data SBP Measures'!$U1178&B528","v":"128Total Civil Dispositions"},{"$f":"'Data SBP Measures'!$Y1178","v":"EACH"},null,null,null,null,null,"Civil - 128","Total Civil Dispositions",null,null,null,null,null,null,null,"1585","112","Y","30","Enterprise Infrastructure Services","PERCENT","OUTCOME","BLACKBOOK",null,null,null,"Enterprise Infrastructure Services","% of SLM Restored – Priority 3 Incidents",null,{"$f":"'Data SBP Measures'!$AF528&'Data SBP Measures'!$AE528& \" - \"& 'Data SBP Measures'!$U528","v":"% of SLM Restored – Priority 3 IncidentsEnterprise Infrastructure Services - 112"},{"$f":"_xlfn.XLOOKUP(VALUE(W528),'Data SBP Programs'!O:O,'Data SBP Programs'!S:S)","v":"Enterprise Infrastructure Services"}]
[{"$f":"'Data SBP Measures'!$AI1179&\" - \"&'Data SBP Measures'!$U1179","v":"Civil - 128"},{"$f":"'Data SBP Measures'!$AF1179","v":"Total Civil Dispositions"},{"$f":"'Data SBP Measures'!$T1179","v":"2101"},{"$f":"'Data SBP Measures'!$U1179&B529","v":"128Total Civil Dispositions"},{"$f":"'Data SBP Measures'!$Y1179","v":"EACH"},null,null,null,null,null,"Civil - 128","Total Civil Dispositions",null,null,null,null,null,null,null,"1586","112","Y","30","Enterprise Infrastructure Services","PERCENT","OUTCOME","BLACKBOOK",null,null,null,"Enterprise Infrastructure Services","% of LAN/WAN Restored – Priority 3 Incidents",null,{"$f":"'Data SBP Measures'!$AF529&'Data SBP Measures'!$AE529& \" - \"& 'Data SBP Measures'!$U529","v":"% of LAN/WAN Restored – Priority 3 IncidentsEnterprise Infrastructure Services - 112"},{"$f":"_xlfn.XLOOKUP(VALUE(W529),'Data SBP Programs'!O:O,'Data SBP Programs'!S:S)","v":"Enterprise Infrastructure Services"}]
[{"$f":"'Data SBP Measures'!$AI2816&\" - \"&'Data SBP Measures'!$U2816","v":"Civil - 128"},{"$f":"'Data SBP Measures'!$AF2816","v":"Total Civil Hearings Held"},{"$f":"'Data SBP Measures'!$T2816","v":"3397"},{"$f":"'Data SBP Measures'!$U2816&B530","v":"128Total Civil Hearings Held"},{"$f":"'Data SBP Measures'!$Y2816","v":"EACH"},null,null,null,null,null,"Civil - 128","Total Civil Hearings Held",null,null,null,null,null,null,null,"1587","112","Y","30","Enterprise Infrastructure Services","PERCENT","OUTCOME","BLACKBOOK",null,null,null,"Enterprise Infrastructure Services","% of Services Desk/Ops Restored – Priority 3 Incidents",null,{"$f":"'Data SBP Measures'!$AF530&'Data SBP Measures'!$AE530& \" - \"& 'Data SBP Measures'!$U530","v":"% of Services Desk/Ops Restored – Priority 3 IncidentsEnterprise Infrastructure Services - 112"},{"$f":"_xlfn.XLOOKUP(VALUE(W530),'Data SBP Programs'!O:O,'Data SBP Programs'!S:S)","v":"Enterprise Infrastructure Services"}]
[{"$f":"'Data SBP Measures'!$AI2817&\" - \"&'Data SBP Measures'!$U2817","v":"Civil - 128"},{"$f":"'Data SBP Measures'!$AF2817","v":"Total Civil Hearings Held"},{"$f":"'Data SBP Measures'!$T2817","v":"3397"},{"$f":"'Data SBP Measures'!$U2817&B531","v":"128Total Civil Hearings Held"},{"$f":"'Data SBP Measures'!$Y2817","v":"EACH"},null,null,null,null,null,"Civil - 128","Total Civil Hearings Held",null,null,null,null,null,null,null,"1588","112","Y","30","Enterprise Infrastructure Services","PERCENT","OUTCOME","BLACKBOOK",null,null,null,"Enterprise Infrastructure Services","% of Tier 2 Restored – Priority 3 Incidents",null,{"$f":"'Data SBP Measures'!$AF531&'Data SBP Measures'!$AE531& \" - \"& 'Data SBP Measures'!$U531","v":"% of Tier 2 Restored – Priority 3 IncidentsEnterprise Infrastructure Services - 112"},{"$f":"_xlfn.XLOOKUP(VALUE(W531),'Data SBP Programs'!O:O,'Data SBP Programs'!S:S)","v":"Enterprise Infrastructure Services"}]
[{"$f":"'Data SBP Measures'!$AI2818&\" - \"&'Data SBP Measures'!$U2818","v":"Civil - 128"},{"$f":"'Data SBP Measures'!$AF2818","v":"Total Civil Hearings Held"},{"$f":"'Data SBP Measures'!$T2818","v":"3397"},{"$f":"'Data SBP Measures'!$U2818&B532","v":"128Total Civil Hearings Held"},{"$f":"'Data SBP Measures'!$Y2818","v":"EACH"},null,null,null,null,null,"Civil - 128","Total Civil Hearings Held",null,null,null,null,null,null,null,"1589","112","Y","30","Enterprise Infrastructure Services","PERCENT","OUTCOME","BLACKBOOK",null,null,null,"Enterprise Infrastructure Services","% of AIM Restored – Priority 3 Incidents",null,{"$f":"'Data SBP Measures'!$AF532&'Data SBP Measures'!$AE532& \" - \"& 'Data SBP Measures'!$U532","v":"% of AIM Restored – Priority 3 IncidentsEnterprise Infrastructure Services - 112"},{"$f":"_xlfn.XLOOKUP(VALUE(W532),'Data SBP Programs'!O:O,'Data SBP Programs'!S:S)","v":"Enterprise Infrastructure Services"}]
[{"$f":"'Data SBP Measures'!$AI1160&\" - \"&'Data SBP Measures'!$U1160","v":"Civil - 128"},{"$f":"'Data SBP Measures'!$AF1160","v":"Truant Conduct Cases Filed"},{"$f":"'Data SBP Measures'!$T1160","v":"2096"},{"$f":"'Data SBP Measures'!$U1160&B533","v":"128Truant Conduct Cases Filed"},{"$f":"'Data SBP Measures'!$Y1160","v":"EACH"},null,null,null,null,null,"Civil - 128","Truant Conduct Cases Filed",null,null,null,null,null,null,null,"1591","112","Y","30","Enterprise Infrastructure Services","PERCENT","OUTCOME","BLACKBOOK",null,null,null,"Enterprise Infrastructure Services","% of UC Restored – Priority 3 Incidents",null,{"$f":"'Data SBP Measures'!$AF533&'Data SBP Measures'!$AE533& \" - \"& 'Data SBP Measures'!$U533","v":"% of UC Restored – Priority 3 IncidentsEnterprise Infrastructure Services - 112"},{"$f":"_xlfn.XLOOKUP(VALUE(W533),'Data SBP Programs'!O:O,'Data SBP Programs'!S:S)","v":"Enterprise Infrastructure Services"}]
[{"$f":"'Data SBP Measures'!$AI1161&\" - \"&'Data SBP Measures'!$U1161","v":"Civil - 128"},{"$f":"'Data SBP Measures'!$AF1161","v":"Truant Conduct Cases Filed"},{"$f":"'Data SBP Measures'!$T1161","v":"2096"},{"$f":"'Data SBP Measures'!$U1161&B534","v":"128Truant Conduct Cases Filed"},{"$f":"'Data SBP Measures'!$Y1161","v":"EACH"},null,null,null,null,null,"Civil - 128","Truant Conduct Cases Filed",null,null,null,null,null,null,null,"1592","112","Y","30","Enterprise Infrastructure Services","PERCENT","OUTCOME","BLACKBOOK",null,null,null,"Enterprise Infrastructure Services","% of SiteOps Restored – Priority 3 Incidents",null,{"$f":"'Data SBP Measures'!$AF534&'Data SBP Measures'!$AE534& \" - \"& 'Data SBP Measures'!$U534","v":"% of SiteOps Restored – Priority 3 IncidentsEnterprise Infrastructure Services - 112"},{"$f":"_xlfn.XLOOKUP(VALUE(W534),'Data SBP Programs'!O:O,'Data SBP Programs'!S:S)","v":"Enterprise Infrastructure Services"}]
[{"$f":"'Data SBP Measures'!$AI1162&\" - \"&'Data SBP Measures'!$U1162","v":"Civil - 128"},{"$f":"'Data SBP Measures'!$AF1162","v":"Truant Conduct Cases Filed"},{"$f":"'Data SBP Measures'!$T1162","v":"2096"},{"$f":"'Data SBP Measures'!$U1162&B535","v":"128Truant Conduct Cases Filed"},{"$f":"'Data SBP Measures'!$Y1162","v":"EACH"},null,null,null,null,null,"Civil - 128","Truant Conduct Cases Filed",null,null,null,null,null,null,null,"1593","112","Y","30","Enterprise Infrastructure Services","PERCENT","OUTCOME","BLACKBOOK",null,null,null,"Enterprise Infrastructure Services","% of Overall EIS Restored – Priority 3 Incidents",null,{"$f":"'Data SBP Measures'!$AF535&'Data SBP Measures'!$AE535& \" - \"& 'Data SBP Measures'!$U535","v":"% of Overall EIS Restored – Priority 3 IncidentsEnterprise Infrastructure Services - 112"},{"$f":"_xlfn.XLOOKUP(VALUE(W535),'Data SBP Programs'!O:O,'Data SBP Programs'!S:S)","v":"Enterprise Infrastructure Services"}]
[{"$f":"'Data SBP Measures'!$AI2813&\" - \"&'Data SBP Measures'!$U2813","v":"Civil - 128"},{"$f":"'Data SBP Measures'!$AF2813","v":"Truant Conduct Hearings"},{"$f":"'Data SBP Measures'!$T2813","v":"3396"},{"$f":"'Data SBP Measures'!$U2813&B536","v":"128Truant Conduct Hearings"},{"$f":"'Data SBP Measures'!$Y2813","v":"EACH"},null,null,null,null,null,"Civil - 128","Truant Conduct Hearings",null,null,null,null,null,null,null,"1594","112","Y","30","Enterprise Infrastructure Services","PERCENT","OUTCOME","BLACKBOOK",null,null,null,"Enterprise Infrastructure Services","% of SLM Resolved – Priority 4 Incidents",null,{"$f":"'Data SBP Measures'!$AF536&'Data SBP Measures'!$AE536& \" - \"& 'Data SBP Measures'!$U536","v":"% of SLM Resolved – Priority 4 IncidentsEnterprise Infrastructure Services - 112"},{"$f":"_xlfn.XLOOKUP(VALUE(W536),'Data SBP Programs'!O:O,'Data SBP Programs'!S:S)","v":"Enterprise Infrastructure Services"}]
[{"$f":"'Data SBP Measures'!$AI2814&\" - \"&'Data SBP Measures'!$U2814","v":"Civil - 128"},{"$f":"'Data SBP Measures'!$AF2814","v":"Truant Conduct Hearings"},{"$f":"'Data SBP Measures'!$T2814","v":"3396"},{"$f":"'Data SBP Measures'!$U2814&B537","v":"128Truant Conduct Hearings"},{"$f":"'Data SBP Measures'!$Y2814","v":"EACH"},null,null,null,null,null,"Civil - 128","Truant Conduct Hearings",null,null,null,null,null,null,null,"1595","112","Y","30","Enterprise Infrastructure Services","PERCENT","OUTCOME","BLACKBOOK",null,null,null,"Enterprise Infrastructure Services","% of LAN/WAN Resolved – Priority 4 Incidents",null,{"$f":"'Data SBP Measures'!$AF537&'Data SBP Measures'!$AE537& \" - \"& 'Data SBP Measures'!$U537","v":"% of LAN/WAN Resolved – Priority 4 IncidentsEnterprise Infrastructure Services - 112"},{"$f":"_xlfn.XLOOKUP(VALUE(W537),'Data SBP Programs'!O:O,'Data SBP Programs'!S:S)","v":"Enterprise Infrastructure Services"}]
[{"$f":"'Data SBP Measures'!$AI2815&\" - \"&'Data SBP Measures'!$U2815","v":"Civil - 128"},{"$f":"'Data SBP Measures'!$AF2815","v":"Truant Conduct Hearings"},{"$f":"'Data SBP Measures'!$T2815","v":"3396"},{"$f":"'Data SBP Measures'!$U2815&B538","v":"128Truant Conduct Hearings"},{"$f":"'Data SBP Measures'!$Y2815","v":"EACH"},null,null,null,null,null,"Civil - 128","Truant Conduct Hearings",null,null,null,null,null,null,null,"1596","112","Y","30","Enterprise Infrastructure Services","PERCENT","OUTCOME","BLACKBOOK",null,null,null,"Enterprise Infrastructure Services","% of Services Desk/Ops Resolved – Priority 4 Incidents",null,{"$f":"'Data SBP Measures'!$AF538&'Data SBP Measures'!$AE538& \" - \"& 'Data SBP Measures'!$U538","v":"% of Services Desk/Ops Resolved – Priority 4 IncidentsEnterprise Infrastructure Services - 112"},{"$f":"_xlfn.XLOOKUP(VALUE(W538),'Data SBP Programs'!O:O,'Data SBP Programs'!S:S)","v":"Enterprise Infrastructure Services"}]
[{"$f":"'Data SBP Measures'!$AI1463&\" - \"&'Data SBP Measures'!$U1463","v":"Civil - 133"},{"$f":"'Data SBP Measures'!$AF1463","v":"Citations Executed"},{"$f":"'Data SBP Measures'!$T1463","v":"2256"},{"$f":"'Data SBP Measures'!$U1463&B539","v":"133Citations Executed"},{"$f":"'Data SBP Measures'!$Y1463","v":"EACH"},null,null,null,null,null,"Civil - 133","Citations Executed",null,null,null,null,null,null,null,"1597","112","Y","30","Enterprise Infrastructure Services","PERCENT","OUTCOME","BLACKBOOK",null,null,null,"Enterprise Infrastructure Services","% of Tier 2 Resolved – Priority 4 Incidents",null,{"$f":"'Data SBP Measures'!$AF539&'Data SBP Measures'!$AE539& \" - \"& 'Data SBP Measures'!$U539","v":"% of Tier 2 Resolved – Priority 4 IncidentsEnterprise Infrastructure Services - 112"},{"$f":"_xlfn.XLOOKUP(VALUE(W539),'Data SBP Programs'!O:O,'Data SBP Programs'!S:S)","v":"Enterprise Infrastructure Services"}]
[{"$f":"'Data SBP Measures'!$AI1462&\" - \"&'Data SBP Measures'!$U1462","v":"Civil - 133"},{"$f":"'Data SBP Measures'!$AF1462","v":"Citations Received"},{"$f":"'Data SBP Measures'!$T1462","v":"2255"},{"$f":"'Data SBP Measures'!$U1462&B540","v":"133Citations Received"},{"$f":"'Data SBP Measures'!$Y1462","v":"EACH"},null,null,null,null,null,"Civil - 133","Citations Received",null,null,null,null,null,null,null,"1598","112","Y","30","Enterprise Infrastructure Services","PERCENT","OUTCOME","BLACKBOOK",null,null,null,"Enterprise Infrastructure Services","% of AIM Resolved – Priority 4 Incidents",null,{"$f":"'Data SBP Measures'!$AF540&'Data SBP Measures'!$AE540& \" - \"& 'Data SBP Measures'!$U540","v":"% of AIM Resolved – Priority 4 IncidentsEnterprise Infrastructure Services - 112"},{"$f":"_xlfn.XLOOKUP(VALUE(W540),'Data SBP Programs'!O:O,'Data SBP Programs'!S:S)","v":"Enterprise Infrastructure Services"}]
[{"$f":"'Data SBP Measures'!$AI1464&\" - \"&'Data SBP Measures'!$U1464","v":"Civil - 133"},{"$f":"'Data SBP Measures'!$AF1464","v":"Service of Forcible Evictions (avg. days)"},{"$f":"'Data SBP Measures'!$T1464","v":"2259"},{"$f":"'Data SBP Measures'!$U1464&B541","v":"133Service of Forcible Evictions (avg. days)"},{"$f":"'Data SBP Measures'!$Y1464","v":"DAYS"},null,null,null,null,null,"Civil - 133","Service of Forcible Evictions (avg. days)",null,null,null,null,null,null,null,"16","106","Y","178","Auditor's Office","PERCENT","OUTCOME","ADOPTEDBUD",null,null,null,"Auditor's Office","% Grantor reports on time",null,{"$f":"'Data SBP Measures'!$AF541&'Data SBP Measures'!$AE541& \" - \"& 'Data SBP Measures'!$U541","v":"% Grantor reports on timeAuditor's Office - 106"},{"$f":"_xlfn.XLOOKUP(VALUE(W541),'Data SBP Programs'!O:O,'Data SBP Programs'!S:S)","v":"Auditor's Office"}]
[{"$f":"'Data SBP Measures'!$AI1466&\" - \"&'Data SBP Measures'!$U1466","v":"Civil - 133"},{"$f":"'Data SBP Measures'!$AF1466","v":"Service of Non-Forcible Evictions (avg. days)"},{"$f":"'Data SBP Measures'!$T1466","v":"2260"},{"$f":"'Data SBP Measures'!$U1466&B542","v":"133Service of Non-Forcible Evictions (avg. days)"},{"$f":"'Data SBP Measures'!$Y1466","v":"DAYS"},null,null,null,null,null,"Civil - 133","Service of Non-Forcible Evictions (avg. days)",null,null,null,null,null,null,null,"1600","112","Y","30","Enterprise Infrastructure Services","PERCENT","OUTCOME","BLACKBOOK",null,null,null,"Enterprise Infrastructure Services","% of UC Resolved – Priority 4 Incidents",null,{"$f":"'Data SBP Measures'!$AF542&'Data SBP Measures'!$AE542& \" - \"& 'Data SBP Measures'!$U542","v":"% of UC Resolved – Priority 4 IncidentsEnterprise Infrastructure Services - 112"},{"$f":"_xlfn.XLOOKUP(VALUE(W542),'Data SBP Programs'!O:O,'Data SBP Programs'!S:S)","v":"Enterprise Infrastructure Services"}]
[{"$f":"'Data SBP Measures'!$AI1483&\" - \"&'Data SBP Measures'!$U1483","v":"Civil & Criminal Process - 135"},{"$f":"'Data SBP Measures'!$AF1483","v":"All Civil & Criminal Process received and processed"},{"$f":"'Data SBP Measures'!$T1483","v":"2286"},{"$f":"'Data SBP Measures'!$U1483&B543","v":"135All Civil & Criminal Process received and processed"},{"$f":"'Data SBP Measures'!$Y1483","v":"EACH"},null,null,null,null,null,"Civil & Criminal Process - 135","All Civil & Criminal Process received and processed",null,null,null,null,null,null,null,"1601","112","Y","30","Enterprise Infrastructure Services","PERCENT","OUTCOME","BLACKBOOK",null,null,null,"Enterprise Infrastructure Services","% of SiteOps Resolved – Priority 4 Incidents",null,{"$f":"'Data SBP Measures'!$AF543&'Data SBP Measures'!$AE543& \" - \"& 'Data SBP Measures'!$U543","v":"% of SiteOps Resolved – Priority 4 IncidentsEnterprise Infrastructure Services - 112"},{"$f":"_xlfn.XLOOKUP(VALUE(W543),'Data SBP Programs'!O:O,'Data SBP Programs'!S:S)","v":"Enterprise Infrastructure Services"}]
[{"$f":"'Data SBP Measures'!$AI1484&\" - \"&'Data SBP Measures'!$U1484","v":"Civil & Criminal Process - 135"},{"$f":"'Data SBP Measures'!$AF1484","v":"All Civil & Criminal Process received and processed"},{"$f":"'Data SBP Measures'!$T1484","v":"2286"},{"$f":"'Data SBP Measures'!$U1484&B544","v":"135All Civil & Criminal Process received and processed"},{"$f":"'Data SBP Measures'!$Y1484","v":"EACH"},null,null,null,null,null,"Civil & Criminal Process - 135","All Civil & Criminal Process received and processed",null,null,null,null,null,null,null,"1602","112","Y","30","Enterprise Infrastructure Services","PERCENT","OUTCOME","BLACKBOOK",null,null,null,"Enterprise Infrastructure Services","% of Overall EIS Resolved – Priority 4 Incidents",null,{"$f":"'Data SBP Measures'!$AF544&'Data SBP Measures'!$AE544& \" - \"& 'Data SBP Measures'!$U544","v":"% of Overall EIS Resolved – Priority 4 IncidentsEnterprise Infrastructure Services - 112"},{"$f":"_xlfn.XLOOKUP(VALUE(W544),'Data SBP Programs'!O:O,'Data SBP Programs'!S:S)","v":"Enterprise Infrastructure Services"}]
[{"$f":"'Data SBP Measures'!$AI1485&\" - \"&'Data SBP Measures'!$U1485","v":"Civil & Criminal Process - 135"},{"$f":"'Data SBP Measures'!$AF1485","v":"All Civil & Criminal Process received and processed"},{"$f":"'Data SBP Measures'!$T1485","v":"2286"},{"$f":"'Data SBP Measures'!$U1485&B545","v":"135All Civil & Criminal Process received and processed"},{"$f":"'Data SBP Measures'!$Y1485","v":"EACH"},null,null,null,null,null,"Civil & Criminal Process - 135","All Civil & Criminal Process received and processed",null,null,null,null,null,null,null,"1603","112","Y","30","Enterprise Infrastructure Services","PERCENT","OUTCOME","ADOPTEDBUD",null,null,null,"Enterprise Infrastructure Services","% of SiteOps Request tickets acknowledged",null,{"$f":"'Data SBP Measures'!$AF545&'Data SBP Measures'!$AE545& \" - \"& 'Data SBP Measures'!$U545","v":"% of SiteOps Request tickets acknowledgedEnterprise Infrastructure Services - 112"},{"$f":"_xlfn.XLOOKUP(VALUE(W545),'Data SBP Programs'!O:O,'Data SBP Programs'!S:S)","v":"Enterprise Infrastructure Services"}]
[{"$f":"'Data SBP Measures'!$AI1486&\" - \"&'Data SBP Measures'!$U1486","v":"Civil & Criminal Process - 135"},{"$f":"'Data SBP Measures'!$AF1486","v":"All Civil & Criminal Process received and processed"},{"$f":"'Data SBP Measures'!$T1486","v":"2286"},{"$f":"'Data SBP Measures'!$U1486&B546","v":"135All Civil & Criminal Process received and processed"},{"$f":"'Data SBP Measures'!$Y1486","v":"EACH"},null,null,null,null,null,"Civil & Criminal Process - 135","All Civil & Criminal Process received and processed",null,null,null,null,null,null,null,"1604","112","Y","30","Enterprise Infrastructure Services","PERCENT","OUTCOME","BLACKBOOK",null,null,null,"Enterprise Infrastructure Services","% of Emergency Changes",null,{"$f":"'Data SBP Measures'!$AF546&'Data SBP Measures'!$AE546& \" - \"& 'Data SBP Measures'!$U546","v":"% of Emergency ChangesEnterprise Infrastructure Services - 112"},{"$f":"_xlfn.XLOOKUP(VALUE(W546),'Data SBP Programs'!O:O,'Data SBP Programs'!S:S)","v":"Enterprise Infrastructure Services"}]
[{"$f":"'Data SBP Measures'!$AI1487&\" - \"&'Data SBP Measures'!$U1487","v":"Civil & Criminal Process - 135"},{"$f":"'Data SBP Measures'!$AF1487","v":"All Civil & Criminal Process received and processed"},{"$f":"'Data SBP Measures'!$T1487","v":"2286"},{"$f":"'Data SBP Measures'!$U1487&B547","v":"135All Civil & Criminal Process received and processed"},{"$f":"'Data SBP Measures'!$Y1487","v":"EACH"},null,null,null,null,null,"Civil & Criminal Process - 135","All Civil & Criminal Process received and processed",null,null,null,null,null,null,null,"1605","149","Y","140","TNR Human Resources","EACH","OUTCOME","BLACKBOOK",null,null,null,"TNR Human Resources","# of Promotions per Calendar Year",null,{"$f":"'Data SBP Measures'!$AF547&'Data SBP Measures'!$AE547& \" - \"& 'Data SBP Measures'!$U547","v":"# of Promotions per Calendar YearTNR Human Resources - 149"},{"$f":"_xlfn.XLOOKUP(VALUE(W547),'Data SBP Programs'!O:O,'Data SBP Programs'!S:S)","v":"TNR Human Resources"}]
[{"$f":"'Data SBP Measures'!$AI1488&\" - \"&'Data SBP Measures'!$U1488","v":"Civil & Criminal Process - 135"},{"$f":"'Data SBP Measures'!$AF1488","v":"All Civil & Criminal Process received and processed"},{"$f":"'Data SBP Measures'!$T1488","v":"2286"},{"$f":"'Data SBP Measures'!$U1488&B548","v":"135All Civil & Criminal Process received and processed"},{"$f":"'Data SBP Measures'!$Y1488","v":"EACH"},null,null,null,null,null,"Civil & Criminal Process - 135","All Civil & Criminal Process received and processed",null,null,null,null,null,null,null,"1606","149","Y","140","TNR Human Resources","YEARS","OUTCOME","BLACKBOOK",null,null,null,"TNR Human Resources","Average years of Service as of 4/1 of Each Year",null,{"$f":"'Data SBP Measures'!$AF548&'Data SBP Measures'!$AE548& \" - \"& 'Data SBP Measures'!$U548","v":"Average years of Service as of 4/1 of Each YearTNR Human Resources - 149"},{"$f":"_xlfn.XLOOKUP(VALUE(W548),'Data SBP Programs'!O:O,'Data SBP Programs'!S:S)","v":"TNR Human Resources"}]
[{"$f":"'Data SBP Measures'!$AI1489&\" - \"&'Data SBP Measures'!$U1489","v":"Civil & Criminal Process - 135"},{"$f":"'Data SBP Measures'!$AF1489","v":"All Civil & Criminal Process received and processed"},{"$f":"'Data SBP Measures'!$T1489","v":"2286"},{"$f":"'Data SBP Measures'!$U1489&B549","v":"135All Civil & Criminal Process received and processed"},{"$f":"'Data SBP Measures'!$Y1489","v":"EACH"},null,null,null,null,null,"Civil & Criminal Process - 135","All Civil & Criminal Process received and processed",null,null,null,null,null,null,null,"1607","149","Y","140","TNR Human Resources","PERCENT","OUTCOME","BLACKBOOK",null,null,null,"TNR Human Resources","% of Overall Positive Reviews",null,{"$f":"'Data SBP Measures'!$AF549&'Data SBP Measures'!$AE549& \" - \"& 'Data SBP Measures'!$U549","v":"% of Overall Positive ReviewsTNR Human Resources - 149"},{"$f":"_xlfn.XLOOKUP(VALUE(W549),'Data SBP Programs'!O:O,'Data SBP Programs'!S:S)","v":"TNR Human Resources"}]
[{"$f":"'Data SBP Measures'!$AI1490&\" - \"&'Data SBP Measures'!$U1490","v":"Civil & Criminal Process - 135"},{"$f":"'Data SBP Measures'!$AF1490","v":"All Civil & Criminal Process received and processed"},{"$f":"'Data SBP Measures'!$T1490","v":"2286"},{"$f":"'Data SBP Measures'!$U1490&B550","v":"135All Civil & Criminal Process received and processed"},{"$f":"'Data SBP Measures'!$Y1490","v":"EACH"},null,null,null,null,null,"Civil & Criminal Process - 135","All Civil & Criminal Process received and processed",null,null,null,null,null,null,null,"1608","108","Y","23","Motor Vehicle","EACH","INPUT","NEITHER",null,null,null,"Motor Vehicle","Customers Served-main office",null,{"$f":"'Data SBP Measures'!$AF550&'Data SBP Measures'!$AE550& \" - \"& 'Data SBP Measures'!$U550","v":"Customers Served-main officeMotor Vehicle - 108"},{"$f":"_xlfn.XLOOKUP(VALUE(W550),'Data SBP Programs'!O:O,'Data SBP Programs'!S:S)","v":"Motor Vehicle"}]
[{"$f":"'Data SBP Measures'!$AI1491&\" - \"&'Data SBP Measures'!$U1491","v":"Civil & Criminal Process - 135"},{"$f":"'Data SBP Measures'!$AF1491","v":"All Civil & Criminal Process received and processed"},{"$f":"'Data SBP Measures'!$T1491","v":"2286"},{"$f":"'Data SBP Measures'!$U1491&B551","v":"135All Civil & Criminal Process received and processed"},{"$f":"'Data SBP Measures'!$Y1491","v":"EACH"},null,null,null,null,null,"Civil & Criminal Process - 135","All Civil & Criminal Process received and processed",null,null,null,null,null,null,null,"1609","108","Y","23","Motor Vehicle","EACH","OUTPUT","NEITHER",null,null,null,"Motor Vehicle","Customers Rejected-main office",null,{"$f":"'Data SBP Measures'!$AF551&'Data SBP Measures'!$AE551& \" - \"& 'Data SBP Measures'!$U551","v":"Customers Rejected-main officeMotor Vehicle - 108"},{"$f":"_xlfn.XLOOKUP(VALUE(W551),'Data SBP Programs'!O:O,'Data SBP Programs'!S:S)","v":"Motor Vehicle"}]
[{"$f":"'Data SBP Measures'!$AI1492&\" - \"&'Data SBP Measures'!$U1492","v":"Civil & Criminal Process - 135"},{"$f":"'Data SBP Measures'!$AF1492","v":"All Civil & Criminal Process received and processed"},{"$f":"'Data SBP Measures'!$T1492","v":"2286"},{"$f":"'Data SBP Measures'!$U1492&B552","v":"135All Civil & Criminal Process received and processed"},{"$f":"'Data SBP Measures'!$Y1492","v":"EACH"},null,null,null,null,null,"Civil & Criminal Process - 135","All Civil & Criminal Process received and processed",null,null,null,null,null,null,null,"161","108","Y","22","Administration","EACH","INPUT","NEITHER",null,null,null,"Administration","# strategic goals",null,{"$f":"'Data SBP Measures'!$AF552&'Data SBP Measures'!$AE552& \" - \"& 'Data SBP Measures'!$U552","v":"# strategic goalsAdministration - 108"},{"$f":"_xlfn.XLOOKUP(VALUE(W552),'Data SBP Programs'!O:O,'Data SBP Programs'!S:S)","v":"Administration"}]
[{"$f":"'Data SBP Measures'!$AI1493&\" - \"&'Data SBP Measures'!$U1493","v":"Civil & Criminal Process - 135"},{"$f":"'Data SBP Measures'!$AF1493","v":"All Civil & Criminal Process received and processed"},{"$f":"'Data SBP Measures'!$T1493","v":"2286"},{"$f":"'Data SBP Measures'!$U1493&B553","v":"135All Civil & Criminal Process received and processed"},{"$f":"'Data SBP Measures'!$Y1493","v":"EACH"},null,null,null,null,null,"Civil & Criminal Process - 135","All Civil & Criminal Process received and processed",null,null,null,null,null,null,null,"1610","108","Y","23","Motor Vehicle","EACH","INPUT","NEITHER",null,null,null,"Motor Vehicle","In person Transactions- main office",null,{"$f":"'Data SBP Measures'!$AF553&'Data SBP Measures'!$AE553& \" - \"& 'Data SBP Measures'!$U553","v":"In person Transactions- main officeMotor Vehicle - 108"},{"$f":"_xlfn.XLOOKUP(VALUE(W553),'Data SBP Programs'!O:O,'Data SBP Programs'!S:S)","v":"Motor Vehicle"}]
[{"$f":"'Data SBP Measures'!$AI1494&\" - \"&'Data SBP Measures'!$U1494","v":"Civil & Criminal Process - 135"},{"$f":"'Data SBP Measures'!$AF1494","v":"Class C Warrants Cleared by CN5 Collection"},{"$f":"'Data SBP Measures'!$T1494","v":"2287"},{"$f":"'Data SBP Measures'!$U1494&B554","v":"135Class C Warrants Cleared by CN5 Collection"},{"$f":"'Data SBP Measures'!$Y1494","v":"EACH"},null,null,null,null,null,"Civil & Criminal Process - 135","Class C Warrants Cleared by CN5 Collection",null,null,null,null,null,null,null,"1611","108","Y","23","Motor Vehicle","EACH","INPUT","NEITHER",null,null,null,"Motor Vehicle","Electronic transactions-main office",null,{"$f":"'Data SBP Measures'!$AF554&'Data SBP Measures'!$AE554& \" - \"& 'Data SBP Measures'!$U554","v":"Electronic transactions-main officeMotor Vehicle - 108"},{"$f":"_xlfn.XLOOKUP(VALUE(W554),'Data SBP Programs'!O:O,'Data SBP Programs'!S:S)","v":"Motor Vehicle"}]
[{"$f":"'Data SBP Measures'!$AI1495&\" - \"&'Data SBP Measures'!$U1495","v":"Civil & Criminal Process - 135"},{"$f":"'Data SBP Measures'!$AF1495","v":"Class C Warrants Cleared by CN5 Collection"},{"$f":"'Data SBP Measures'!$T1495","v":"2287"},{"$f":"'Data SBP Measures'!$U1495&B555","v":"135Class C Warrants Cleared by CN5 Collection"},{"$f":"'Data SBP Measures'!$Y1495","v":"EACH"},null,null,null,null,null,"Civil & Criminal Process - 135","Class C Warrants Cleared by CN5 Collection",null,null,null,null,null,null,null,"1612","108","Y","23","Motor Vehicle","EACH","INPUT","NEITHER",null,null,null,"Motor Vehicle","Dealers/Fleets-main office",null,{"$f":"'Data SBP Measures'!$AF555&'Data SBP Measures'!$AE555& \" - \"& 'Data SBP Measures'!$U555","v":"Dealers/Fleets-main officeMotor Vehicle - 108"},{"$f":"_xlfn.XLOOKUP(VALUE(W555),'Data SBP Programs'!O:O,'Data SBP Programs'!S:S)","v":"Motor Vehicle"}]
[{"$f":"'Data SBP Measures'!$AI1496&\" - \"&'Data SBP Measures'!$U1496","v":"Civil & Criminal Process - 135"},{"$f":"'Data SBP Measures'!$AF1496","v":"Class C Warrants Cleared by CN5 Collection"},{"$f":"'Data SBP Measures'!$T1496","v":"2287"},{"$f":"'Data SBP Measures'!$U1496&B556","v":"135Class C Warrants Cleared by CN5 Collection"},{"$f":"'Data SBP Measures'!$Y1496","v":"EACH"},null,null,null,null,null,"Civil & Criminal Process - 135","Class C Warrants Cleared by CN5 Collection",null,null,null,null,null,null,null,"1613","108","Y","23","Motor Vehicle","EACH","INPUT","ADOPTEDBUD",null,null,null,"Motor Vehicle","Titles-main office",null,{"$f":"'Data SBP Measures'!$AF556&'Data SBP Measures'!$AE556& \" - \"& 'Data SBP Measures'!$U556","v":"Titles-main officeMotor Vehicle - 108"},{"$f":"_xlfn.XLOOKUP(VALUE(W556),'Data SBP Programs'!O:O,'Data SBP Programs'!S:S)","v":"Motor Vehicle"}]
[{"$f":"'Data SBP Measures'!$AI1497&\" - \"&'Data SBP Measures'!$U1497","v":"Civil & Criminal Process - 135"},{"$f":"'Data SBP Measures'!$AF1497","v":"Class C Warrants Cleared by CN5 Collection"},{"$f":"'Data SBP Measures'!$T1497","v":"2287"},{"$f":"'Data SBP Measures'!$U1497&B557","v":"135Class C Warrants Cleared by CN5 Collection"},{"$f":"'Data SBP Measures'!$Y1497","v":"EACH"},null,null,null,null,null,"Civil & Criminal Process - 135","Class C Warrants Cleared by CN5 Collection",null,null,null,null,null,null,null,"1614","108","Y","23","Motor Vehicle","EACH","INPUT","ADOPTEDBUD",null,null,null,"Motor Vehicle","Registrations-main office",null,{"$f":"'Data SBP Measures'!$AF557&'Data SBP Measures'!$AE557& \" - \"& 'Data SBP Measures'!$U557","v":"Registrations-main officeMotor Vehicle - 108"},{"$f":"_xlfn.XLOOKUP(VALUE(W557),'Data SBP Programs'!O:O,'Data SBP Programs'!S:S)","v":"Motor Vehicle"}]
[{"$f":"'Data SBP Measures'!$AI1498&\" - \"&'Data SBP Measures'!$U1498","v":"Civil & Criminal Process - 135"},{"$f":"'Data SBP Measures'!$AF1498","v":"Class C Warrants Cleared by CN5 Collection"},{"$f":"'Data SBP Measures'!$T1498","v":"2287"},{"$f":"'Data SBP Measures'!$U1498&B558","v":"135Class C Warrants Cleared by CN5 Collection"},{"$f":"'Data SBP Measures'!$Y1498","v":"EACH"},null,null,null,null,null,"Civil & Criminal Process - 135","Class C Warrants Cleared by CN5 Collection",null,null,null,null,null,null,null,"1615","108","Y","23","Motor Vehicle","MINUTES","OUTCOME","ADOPTEDBUD",null,null,null,"Motor Vehicle","Waiting Time-main office",null,{"$f":"'Data SBP Measures'!$AF558&'Data SBP Measures'!$AE558& \" - \"& 'Data SBP Measures'!$U558","v":"Waiting Time-main officeMotor Vehicle - 108"},{"$f":"_xlfn.XLOOKUP(VALUE(W558),'Data SBP Programs'!O:O,'Data SBP Programs'!S:S)","v":"Motor Vehicle"}]
[{"$f":"'Data SBP Measures'!$AI1499&\" - \"&'Data SBP Measures'!$U1499","v":"Civil & Criminal Process - 135"},{"$f":"'Data SBP Measures'!$AF1499","v":"Class C Warrants Cleared by CN5 Collection"},{"$f":"'Data SBP Measures'!$T1499","v":"2287"},{"$f":"'Data SBP Measures'!$U1499&B559","v":"135Class C Warrants Cleared by CN5 Collection"},{"$f":"'Data SBP Measures'!$Y1499","v":"EACH"},null,null,null,null,null,"Civil & Criminal Process - 135","Class C Warrants Cleared by CN5 Collection",null,null,null,null,null,null,null,"1616","108","Y","23","Motor Vehicle","EACH","INPUT","NEITHER",null,null,null,"Motor Vehicle","Customers Served-sat office",null,{"$f":"'Data SBP Measures'!$AF559&'Data SBP Measures'!$AE559& \" - \"& 'Data SBP Measures'!$U559","v":"Customers Served-sat officeMotor Vehicle - 108"},{"$f":"_xlfn.XLOOKUP(VALUE(W559),'Data SBP Programs'!O:O,'Data SBP Programs'!S:S)","v":"Motor Vehicle"}]
[{"$f":"'Data SBP Measures'!$AI1500&\" - \"&'Data SBP Measures'!$U1500","v":"Civil & Criminal Process - 135"},{"$f":"'Data SBP Measures'!$AF1500","v":"Class C Warrants Cleared by CN5 Collection"},{"$f":"'Data SBP Measures'!$T1500","v":"2287"},{"$f":"'Data SBP Measures'!$U1500&B560","v":"135Class C Warrants Cleared by CN5 Collection"},{"$f":"'Data SBP Measures'!$Y1500","v":"EACH"},null,null,null,null,null,"Civil & Criminal Process - 135","Class C Warrants Cleared by CN5 Collection",null,null,null,null,null,null,null,"1617","108","Y","23","Motor Vehicle","EACH","OUTPUT","NEITHER",null,null,null,"Motor Vehicle","Customers Rejected-sat office",null,{"$f":"'Data SBP Measures'!$AF560&'Data SBP Measures'!$AE560& \" - \"& 'Data SBP Measures'!$U560","v":"Customers Rejected-sat officeMotor Vehicle - 108"},{"$f":"_xlfn.XLOOKUP(VALUE(W560),'Data SBP Programs'!O:O,'Data SBP Programs'!S:S)","v":"Motor Vehicle"}]
[{"$f":"'Data SBP Measures'!$AI1501&\" - \"&'Data SBP Measures'!$U1501","v":"Civil & Criminal Process - 135"},{"$f":"'Data SBP Measures'!$AF1501","v":"Class C Warrants Cleared by CN5 Collection"},{"$f":"'Data SBP Measures'!$T1501","v":"2287"},{"$f":"'Data SBP Measures'!$U1501&B561","v":"135Class C Warrants Cleared by CN5 Collection"},{"$f":"'Data SBP Measures'!$Y1501","v":"EACH"},null,null,null,null,null,"Civil & Criminal Process - 135","Class C Warrants Cleared by CN5 Collection",null,null,null,null,null,null,null,"1618","108","Y","23","Motor Vehicle","EACH","INPUT","NEITHER",null,null,null,"Motor Vehicle","In person Transactions-sat office",null,{"$f":"'Data SBP Measures'!$AF561&'Data SBP Measures'!$AE561& \" - \"& 'Data SBP Measures'!$U561","v":"In person Transactions-sat officeMotor Vehicle - 108"},{"$f":"_xlfn.XLOOKUP(VALUE(W561),'Data SBP Programs'!O:O,'Data SBP Programs'!S:S)","v":"Motor Vehicle"}]
[{"$f":"'Data SBP Measures'!$AI1502&\" - \"&'Data SBP Measures'!$U1502","v":"Civil & Criminal Process - 135"},{"$f":"'Data SBP Measures'!$AF1502","v":"Class C Warrants Cleared by CN5 Collection"},{"$f":"'Data SBP Measures'!$T1502","v":"2287"},{"$f":"'Data SBP Measures'!$U1502&B562","v":"135Class C Warrants Cleared by CN5 Collection"},{"$f":"'Data SBP Measures'!$Y1502","v":"EACH"},null,null,null,null,null,"Civil & Criminal Process - 135","Class C Warrants Cleared by CN5 Collection",null,null,null,null,null,null,null,"1620","108","Y","23","Motor Vehicle","EACH","INPUT","ADOPTEDBUD",null,null,null,"Motor Vehicle","Titles-sat office",null,{"$f":"'Data SBP Measures'!$AF562&'Data SBP Measures'!$AE562& \" - \"& 'Data SBP Measures'!$U562","v":"Titles-sat officeMotor Vehicle - 108"},{"$f":"_xlfn.XLOOKUP(VALUE(W562),'Data SBP Programs'!O:O,'Data SBP Programs'!S:S)","v":"Motor Vehicle"}]
[{"$f":"'Data SBP Measures'!$AI1503&\" - \"&'Data SBP Measures'!$U1503","v":"Civil & Criminal Process - 135"},{"$f":"'Data SBP Measures'!$AF1503","v":"Class C Warrants Cleared by CN5 Collection"},{"$f":"'Data SBP Measures'!$T1503","v":"2287"},{"$f":"'Data SBP Measures'!$U1503&B563","v":"135Class C Warrants Cleared by CN5 Collection"},{"$f":"'Data SBP Measures'!$Y1503","v":"EACH"},null,null,null,null,null,"Civil & Criminal Process - 135","Class C Warrants Cleared by CN5 Collection",null,null,null,null,null,null,null,"1621","108","Y","23","Motor Vehicle","EACH","INPUT","ADOPTEDBUD",null,null,null,"Motor Vehicle","Registrations-sat office",null,{"$f":"'Data SBP Measures'!$AF563&'Data SBP Measures'!$AE563& \" - \"& 'Data SBP Measures'!$U563","v":"Registrations-sat officeMotor Vehicle - 108"},{"$f":"_xlfn.XLOOKUP(VALUE(W563),'Data SBP Programs'!O:O,'Data SBP Programs'!S:S)","v":"Motor Vehicle"}]
[{"$f":"'Data SBP Measures'!$AI1504&\" - \"&'Data SBP Measures'!$U1504","v":"Civil & Criminal Process - 135"},{"$f":"'Data SBP Measures'!$AF1504","v":"Class C Warrants Cleared by CN5 Collection"},{"$f":"'Data SBP Measures'!$T1504","v":"2287"},{"$f":"'Data SBP Measures'!$U1504&B564","v":"135Class C Warrants Cleared by CN5 Collection"},{"$f":"'Data SBP Measures'!$Y1504","v":"EACH"},null,null,null,null,null,"Civil & Criminal Process - 135","Class C Warrants Cleared by CN5 Collection",null,null,null,null,null,null,null,"1622","108","Y","23","Motor Vehicle","MINUTES","OUTCOME","ADOPTEDBUD",null,null,null,"Motor Vehicle","Waiting Time-sat office",null,{"$f":"'Data SBP Measures'!$AF564&'Data SBP Measures'!$AE564& \" - \"& 'Data SBP Measures'!$U564","v":"Waiting Time-sat officeMotor Vehicle - 108"},{"$f":"_xlfn.XLOOKUP(VALUE(W564),'Data SBP Programs'!O:O,'Data SBP Programs'!S:S)","v":"Motor Vehicle"}]
[{"$f":"'Data SBP Measures'!$AI1505&\" - \"&'Data SBP Measures'!$U1505","v":"Civil & Criminal Process - 135"},{"$f":"'Data SBP Measures'!$AF1505","v":"Class C Warrants Received (per year)"},{"$f":"'Data SBP Measures'!$T1505","v":"2288"},{"$f":"'Data SBP Measures'!$U1505&B565","v":"135Class C Warrants Received (per year)"},{"$f":"'Data SBP Measures'!$Y1505","v":"EACH"},null,null,null,null,null,"Civil & Criminal Process - 135","Class C Warrants Received (per year)",null,null,null,null,null,null,null,"1623","108","Y","23","Motor Vehicle","EACH","INPUT","NEITHER",null,null,null,"Motor Vehicle","Customers Served-title svc",null,{"$f":"'Data SBP Measures'!$AF565&'Data SBP Measures'!$AE565& \" - \"& 'Data SBP Measures'!$U565","v":"Customers Served-title svcMotor Vehicle - 108"},{"$f":"_xlfn.XLOOKUP(VALUE(W565),'Data SBP Programs'!O:O,'Data SBP Programs'!S:S)","v":"Motor Vehicle"}]
[{"$f":"'Data SBP Measures'!$AI1506&\" - \"&'Data SBP Measures'!$U1506","v":"Civil & Criminal Process - 135"},{"$f":"'Data SBP Measures'!$AF1506","v":"Class C Warrants Received (per year)"},{"$f":"'Data SBP Measures'!$T1506","v":"2288"},{"$f":"'Data SBP Measures'!$U1506&B566","v":"135Class C Warrants Received (per year)"},{"$f":"'Data SBP Measures'!$Y1506","v":"EACH"},null,null,null,null,null,"Civil & Criminal Process - 135","Class C Warrants Received (per year)",null,null,null,null,null,null,null,"1624","108","Y","23","Motor Vehicle","EACH","OUTCOME","NEITHER",null,null,null,"Motor Vehicle","Customers Rejected-title svc",null,{"$f":"'Data SBP Measures'!$AF566&'Data SBP Measures'!$AE566& \" - \"& 'Data SBP Measures'!$U566","v":"Customers Rejected-title svcMotor Vehicle - 108"},{"$f":"_xlfn.XLOOKUP(VALUE(W566),'Data SBP Programs'!O:O,'Data SBP Programs'!S:S)","v":"Motor Vehicle"}]
[{"$f":"'Data SBP Measures'!$AI1507&\" - \"&'Data SBP Measures'!$U1507","v":"Civil & Criminal Process - 135"},{"$f":"'Data SBP Measures'!$AF1507","v":"Class C Warrants Received (per year)"},{"$f":"'Data SBP Measures'!$T1507","v":"2288"},{"$f":"'Data SBP Measures'!$U1507&B567","v":"135Class C Warrants Received (per year)"},{"$f":"'Data SBP Measures'!$Y1507","v":"EACH"},null,null,null,null,null,"Civil & Criminal Process - 135","Class C Warrants Received (per year)",null,null,null,null,null,null,null,"1625","108","Y","23","Motor Vehicle","EACH","INPUT","NEITHER",null,null,null,"Motor Vehicle","Titles-title svc",null,{"$f":"'Data SBP Measures'!$AF567&'Data SBP Measures'!$AE567& \" - \"& 'Data SBP Measures'!$U567","v":"Titles-title svcMotor Vehicle - 108"},{"$f":"_xlfn.XLOOKUP(VALUE(W567),'Data SBP Programs'!O:O,'Data SBP Programs'!S:S)","v":"Motor Vehicle"}]
[{"$f":"'Data SBP Measures'!$AI1508&\" - \"&'Data SBP Measures'!$U1508","v":"Civil & Criminal Process - 135"},{"$f":"'Data SBP Measures'!$AF1508","v":"Class C Warrants Received (per year)"},{"$f":"'Data SBP Measures'!$T1508","v":"2288"},{"$f":"'Data SBP Measures'!$U1508&B568","v":"135Class C Warrants Received (per year)"},{"$f":"'Data SBP Measures'!$Y1508","v":"EACH"},null,null,null,null,null,"Civil & Criminal Process - 135","Class C Warrants Received (per year)",null,null,null,null,null,null,null,"1626","108","Y","23","Motor Vehicle","EACH","INPUT","NEITHER",null,null,null,"Motor Vehicle","Registrations-title svc",null,{"$f":"'Data SBP Measures'!$AF568&'Data SBP Measures'!$AE568& \" - \"& 'Data SBP Measures'!$U568","v":"Registrations-title svcMotor Vehicle - 108"},{"$f":"_xlfn.XLOOKUP(VALUE(W568),'Data SBP Programs'!O:O,'Data SBP Programs'!S:S)","v":"Motor Vehicle"}]
[{"$f":"'Data SBP Measures'!$AI1509&\" - \"&'Data SBP Measures'!$U1509","v":"Civil & Criminal Process - 135"},{"$f":"'Data SBP Measures'!$AF1509","v":"Class C Warrants Received (per year)"},{"$f":"'Data SBP Measures'!$T1509","v":"2288"},{"$f":"'Data SBP Measures'!$U1509&B569","v":"135Class C Warrants Received (per year)"},{"$f":"'Data SBP Measures'!$Y1509","v":"EACH"},null,null,null,null,null,"Civil & Criminal Process - 135","Class C Warrants Received (per year)",null,null,null,null,null,null,null,"1627","108","Y","23","Motor Vehicle","MINUTES","OUTCOME","NEITHER",null,null,null,"Motor Vehicle","Waiting Time-title svc",null,{"$f":"'Data SBP Measures'!$AF569&'Data SBP Measures'!$AE569& \" - \"& 'Data SBP Measures'!$U569","v":"Waiting Time-title svcMotor Vehicle - 108"},{"$f":"_xlfn.XLOOKUP(VALUE(W569),'Data SBP Programs'!O:O,'Data SBP Programs'!S:S)","v":"Motor Vehicle"}]
[{"$f":"'Data SBP Measures'!$AI1510&\" - \"&'Data SBP Measures'!$U1510","v":"Civil & Criminal Process - 135"},{"$f":"'Data SBP Measures'!$AF1510","v":"Class C Warrants Received (per year)"},{"$f":"'Data SBP Measures'!$T1510","v":"2288"},{"$f":"'Data SBP Measures'!$U1510&B570","v":"135Class C Warrants Received (per year)"},{"$f":"'Data SBP Measures'!$Y1510","v":"EACH"},null,null,null,null,null,"Civil & Criminal Process - 135","Class C Warrants Received (per year)",null,null,null,null,null,null,null,"1634","145","Y","122","Domestic Relations Office","EACH","INPUT","ADOPTEDBUD",null,null,null,"Domestic Relations Office","Total Number of ICSS Cases",null,{"$f":"'Data SBP Measures'!$AF570&'Data SBP Measures'!$AE570& \" - \"& 'Data SBP Measures'!$U570","v":"Total Number of ICSS CasesDomestic Relations Office - 145"},{"$f":"_xlfn.XLOOKUP(VALUE(W570),'Data SBP Programs'!O:O,'Data SBP Programs'!S:S)","v":"Domestic Relations Office"}]
[{"$f":"'Data SBP Measures'!$AI1511&\" - \"&'Data SBP Measures'!$U1511","v":"Civil & Criminal Process - 135"},{"$f":"'Data SBP Measures'!$AF1511","v":"Class C Warrants Received (per year)"},{"$f":"'Data SBP Measures'!$T1511","v":"2288"},{"$f":"'Data SBP Measures'!$U1511&B571","v":"135Class C Warrants Received (per year)"},{"$f":"'Data SBP Measures'!$Y1511","v":"EACH"},null,null,null,null,null,"Civil & Criminal Process - 135","Class C Warrants Received (per year)",null,null,null,null,null,null,null,"1634","145","Y","122","Domestic Relations Office","EACH","INPUT","ADOPTEDBUD",null,null,null,"Domestic Relations Office","Total Number of ICSS Cases",null,{"$f":"'Data SBP Measures'!$AF571&'Data SBP Measures'!$AE571& \" - \"& 'Data SBP Measures'!$U571","v":"Total Number of ICSS CasesDomestic Relations Office - 145"},{"$f":"_xlfn.XLOOKUP(VALUE(W571),'Data SBP Programs'!O:O,'Data SBP Programs'!S:S)","v":"Domestic Relations Office"}]
[{"$f":"'Data SBP Measures'!$AI1512&\" - \"&'Data SBP Measures'!$U1512","v":"Civil & Criminal Process - 135"},{"$f":"'Data SBP Measures'!$AF1512","v":"Class C Warrants Received (per year)"},{"$f":"'Data SBP Measures'!$T1512","v":"2288"},{"$f":"'Data SBP Measures'!$U1512&B572","v":"135Class C Warrants Received (per year)"},{"$f":"'Data SBP Measures'!$Y1512","v":"EACH"},null,null,null,null,null,"Civil & Criminal Process - 135","Class C Warrants Received (per year)",null,null,null,null,null,null,null,"1635","145","Y","122","Domestic Relations Office","PERCENT","OUTCOME","ADOPTEDBUD",null,null,null,"Domestic Relations Office","% Collection on ICSS Current Child Support",null,{"$f":"'Data SBP Measures'!$AF572&'Data SBP Measures'!$AE572& \" - \"& 'Data SBP Measures'!$U572","v":"% Collection on ICSS Current Child SupportDomestic Relations Office - 145"},{"$f":"_xlfn.XLOOKUP(VALUE(W572),'Data SBP Programs'!O:O,'Data SBP Programs'!S:S)","v":"Domestic Relations Office"}]
[{"$f":"'Data SBP Measures'!$AI1513&\" - \"&'Data SBP Measures'!$U1513","v":"Civil & Criminal Process - 135"},{"$f":"'Data SBP Measures'!$AF1513","v":"Class C Warrants Received (per year)"},{"$f":"'Data SBP Measures'!$T1513","v":"2288"},{"$f":"'Data SBP Measures'!$U1513&B573","v":"135Class C Warrants Received (per year)"},{"$f":"'Data SBP Measures'!$Y1513","v":"EACH"},null,null,null,null,null,"Civil & Criminal Process - 135","Class C Warrants Received (per year)",null,null,null,null,null,null,null,"1635","145","Y","122","Domestic Relations Office","PERCENT","OUTCOME","ADOPTEDBUD",null,null,null,"Domestic Relations Office","% Collection on ICSS Current Child Support",null,{"$f":"'Data SBP Measures'!$AF573&'Data SBP Measures'!$AE573& \" - \"& 'Data SBP Measures'!$U573","v":"% Collection on ICSS Current Child SupportDomestic Relations Office - 145"},{"$f":"_xlfn.XLOOKUP(VALUE(W573),'Data SBP Programs'!O:O,'Data SBP Programs'!S:S)","v":"Domestic Relations Office"}]
[{"$f":"'Data SBP Measures'!$AI1514&\" - \"&'Data SBP Measures'!$U1514","v":"Civil & Criminal Process - 135"},{"$f":"'Data SBP Measures'!$AF1514","v":"Class C Warrants Received (per year)"},{"$f":"'Data SBP Measures'!$T1514","v":"2288"},{"$f":"'Data SBP Measures'!$U1514&B574","v":"135Class C Warrants Received (per year)"},{"$f":"'Data SBP Measures'!$Y1514","v":"EACH"},null,null,null,null,null,"Civil & Criminal Process - 135","Class C Warrants Received (per year)",null,null,null,null,null,null,null,"1637","145","Y","122","Domestic Relations Office","EACH","INPUT","ADOPTEDBUD",null,null,null,"Domestic Relations Office","Number of DRO and OAG probationers supervised",null,{"$f":"'Data SBP Measures'!$AF574&'Data SBP Measures'!$AE574& \" - \"& 'Data SBP Measures'!$U574","v":"Number of DRO and OAG probationers supervisedDomestic Relations Office - 145"},{"$f":"_xlfn.XLOOKUP(VALUE(W574),'Data SBP Programs'!O:O,'Data SBP Programs'!S:S)","v":"Domestic Relations Office"}]
[{"$f":"'Data SBP Measures'!$AI1515&\" - \"&'Data SBP Measures'!$U1515","v":"Civil & Criminal Process - 135"},{"$f":"'Data SBP Measures'!$AF1515","v":"Class C Warrants Received (per year)"},{"$f":"'Data SBP Measures'!$T1515","v":"2288"},{"$f":"'Data SBP Measures'!$U1515&B575","v":"135Class C Warrants Received (per year)"},{"$f":"'Data SBP Measures'!$Y1515","v":"EACH"},null,null,null,null,null,"Civil & Criminal Process - 135","Class C Warrants Received (per year)",null,null,null,null,null,null,null,"1637","145","Y","122","Domestic Relations Office","EACH","INPUT","ADOPTEDBUD",null,null,null,"Domestic Relations Office","Number of DRO and OAG probationers supervised",null,{"$f":"'Data SBP Measures'!$AF575&'Data SBP Measures'!$AE575& \" - \"& 'Data SBP Measures'!$U575","v":"Number of DRO and OAG probationers supervisedDomestic Relations Office - 145"},{"$f":"_xlfn.XLOOKUP(VALUE(W575),'Data SBP Programs'!O:O,'Data SBP Programs'!S:S)","v":"Domestic Relations Office"}]
[{"$f":"'Data SBP Measures'!$AI1516&\" - \"&'Data SBP Measures'!$U1516","v":"Civil & Criminal Process - 135"},{"$f":"'Data SBP Measures'!$AF1516","v":"Disabled Parking Citations Issued"},{"$f":"'Data SBP Measures'!$T1516","v":"2289"},{"$f":"'Data SBP Measures'!$U1516&B576","v":"135Disabled Parking Citations Issued"},{"$f":"'Data SBP Measures'!$Y1516","v":"EACH"},null,null,null,null,null,"Civil & Criminal Process - 135","Disabled Parking Citations Issued",null,null,null,null,null,null,null,"1638","145","Y","122","Domestic Relations Office","PERCENT","EFFICIENCY","ADOPTEDBUD",null,null,null,"Domestic Relations Office","Average Collection Ratio - Community Supervision",null,{"$f":"'Data SBP Measures'!$AF576&'Data SBP Measures'!$AE576& \" - \"& 'Data SBP Measures'!$U576","v":"Average Collection Ratio - Community SupervisionDomestic Relations Office - 145"},{"$f":"_xlfn.XLOOKUP(VALUE(W576),'Data SBP Programs'!O:O,'Data SBP Programs'!S:S)","v":"Domestic Relations Office"}]
[{"$f":"'Data SBP Measures'!$AI1517&\" - \"&'Data SBP Measures'!$U1517","v":"Civil & Criminal Process - 135"},{"$f":"'Data SBP Measures'!$AF1517","v":"Disabled Parking Citations Issued"},{"$f":"'Data SBP Measures'!$T1517","v":"2289"},{"$f":"'Data SBP Measures'!$U1517&B577","v":"135Disabled Parking Citations Issued"},{"$f":"'Data SBP Measures'!$Y1517","v":"EACH"},null,null,null,null,null,"Civil & Criminal Process - 135","Disabled Parking Citations Issued",null,null,null,null,null,null,null,"1638","145","Y","122","Domestic Relations Office","PERCENT","EFFICIENCY","ADOPTEDBUD",null,null,null,"Domestic Relations Office","Average Collection Ratio - Community Supervision",null,{"$f":"'Data SBP Measures'!$AF577&'Data SBP Measures'!$AE577& \" - \"& 'Data SBP Measures'!$U577","v":"Average Collection Ratio - Community SupervisionDomestic Relations Office - 145"},{"$f":"_xlfn.XLOOKUP(VALUE(W577),'Data SBP Programs'!O:O,'Data SBP Programs'!S:S)","v":"Domestic Relations Office"}]
[{"$f":"'Data SBP Measures'!$AI1518&\" - \"&'Data SBP Measures'!$U1518","v":"Civil & Criminal Process - 135"},{"$f":"'Data SBP Measures'!$AF1518","v":"Disabled Parking Citations Issued"},{"$f":"'Data SBP Measures'!$T1518","v":"2289"},{"$f":"'Data SBP Measures'!$U1518&B578","v":"135Disabled Parking Citations Issued"},{"$f":"'Data SBP Measures'!$Y1518","v":"EACH"},null,null,null,null,null,"Civil & Criminal Process - 135","Disabled Parking Citations Issued",null,null,null,null,null,null,null,"1639","145","Y","122","Domestic Relations Office","EACH","INPUT","ADOPTEDBUD",null,null,null,"Domestic Relations Office","Total number of Guardian cases",null,{"$f":"'Data SBP Measures'!$AF578&'Data SBP Measures'!$AE578& \" - \"& 'Data SBP Measures'!$U578","v":"Total number of Guardian casesDomestic Relations Office - 145"},{"$f":"_xlfn.XLOOKUP(VALUE(W578),'Data SBP Programs'!O:O,'Data SBP Programs'!S:S)","v":"Domestic Relations Office"}]
[{"$f":"'Data SBP Measures'!$AI1519&\" - \"&'Data SBP Measures'!$U1519","v":"Civil & Criminal Process - 135"},{"$f":"'Data SBP Measures'!$AF1519","v":"Disabled Parking Citations Issued"},{"$f":"'Data SBP Measures'!$T1519","v":"2289"},{"$f":"'Data SBP Measures'!$U1519&B579","v":"135Disabled Parking Citations Issued"},{"$f":"'Data SBP Measures'!$Y1519","v":"EACH"},null,null,null,null,null,"Civil & Criminal Process - 135","Disabled Parking Citations Issued",null,null,null,null,null,null,null,"1639","145","Y","122","Domestic Relations Office","EACH","INPUT","ADOPTEDBUD",null,null,null,"Domestic Relations Office","Total number of Guardian cases",null,{"$f":"'Data SBP Measures'!$AF579&'Data SBP Measures'!$AE579& \" - \"& 'Data SBP Measures'!$U579","v":"Total number of Guardian casesDomestic Relations Office - 145"},{"$f":"_xlfn.XLOOKUP(VALUE(W579),'Data SBP Programs'!O:O,'Data SBP Programs'!S:S)","v":"Domestic Relations Office"}]
[{"$f":"'Data SBP Measures'!$AI1520&\" - \"&'Data SBP Measures'!$U1520","v":"Civil & Criminal Process - 135"},{"$f":"'Data SBP Measures'!$AF1520","v":"Disabled Parking Citations Issued"},{"$f":"'Data SBP Measures'!$T1520","v":"2289"},{"$f":"'Data SBP Measures'!$U1520&B580","v":"135Disabled Parking Citations Issued"},{"$f":"'Data SBP Measures'!$Y1520","v":"EACH"},null,null,null,null,null,"Civil & Criminal Process - 135","Disabled Parking Citations Issued",null,null,null,null,null,null,null,"1644","145","Y","121","Detention Services","PERCENT","OUTCOME","ADOPTEDBUD",null,null,null,"Detention Services","Percentage compliance with TJJD audit standards (Detention)",null,{"$f":"'Data SBP Measures'!$AF580&'Data SBP Measures'!$AE580& \" - \"& 'Data SBP Measures'!$U580","v":"Percentage compliance with TJJD audit standards (Detention)Detention Services - 145"},{"$f":"_xlfn.XLOOKUP(VALUE(W580),'Data SBP Programs'!O:O,'Data SBP Programs'!S:S)","v":"Detention Services"}]
[{"$f":"'Data SBP Measures'!$AI1521&\" - \"&'Data SBP Measures'!$U1521","v":"Civil & Criminal Process - 135"},{"$f":"'Data SBP Measures'!$AF1521","v":"Disabled Parking Citations Issued"},{"$f":"'Data SBP Measures'!$T1521","v":"2289"},{"$f":"'Data SBP Measures'!$U1521&B581","v":"135Disabled Parking Citations Issued"},{"$f":"'Data SBP Measures'!$Y1521","v":"EACH"},null,null,null,null,null,"Civil & Criminal Process - 135","Disabled Parking Citations Issued",null,null,null,null,null,null,null,"1644","145","Y","121","Detention Services","PERCENT","OUTCOME","ADOPTEDBUD",null,null,null,"Detention Services","Percentage compliance with TJJD audit standards (Detention)",null,{"$f":"'Data SBP Measures'!$AF581&'Data SBP Measures'!$AE581& \" - \"& 'Data SBP Measures'!$U581","v":"Percentage compliance with TJJD audit standards (Detention)Detention Services - 145"},{"$f":"_xlfn.XLOOKUP(VALUE(W581),'Data SBP Programs'!O:O,'Data SBP Programs'!S:S)","v":"Detention Services"}]
[{"$f":"'Data SBP Measures'!$AI1522&\" - \"&'Data SBP Measures'!$U1522","v":"Civil & Criminal Process - 135"},{"$f":"'Data SBP Measures'!$AF1522","v":"Disabled Parking Citations Issued"},{"$f":"'Data SBP Measures'!$T1522","v":"2289"},{"$f":"'Data SBP Measures'!$U1522&B582","v":"135Disabled Parking Citations Issued"},{"$f":"'Data SBP Measures'!$Y1522","v":"EACH"},null,null,null,null,null,"Civil & Criminal Process - 135","Disabled Parking Citations Issued",null,null,null,null,null,null,null,"1646","145","Y","120","Court Services","PERCENT","OUTCOME","ADOPTEDBUD",null,null,null,"Court Services","Percent of Successfully Completing (NCC)",null,{"$f":"'Data SBP Measures'!$AF582&'Data SBP Measures'!$AE582& \" - \"& 'Data SBP Measures'!$U582","v":"Percent of Successfully Completing (NCC)Court Services - 145"},{"$f":"_xlfn.XLOOKUP(VALUE(W582),'Data SBP Programs'!O:O,'Data SBP Programs'!S:S)","v":"Court Services"}]
[{"$f":"'Data SBP Measures'!$AI1523&\" - \"&'Data SBP Measures'!$U1523","v":"Civil & Criminal Process - 135"},{"$f":"'Data SBP Measures'!$AF1523","v":"Disabled Parking Citations Issued"},{"$f":"'Data SBP Measures'!$T1523","v":"2289"},{"$f":"'Data SBP Measures'!$U1523&B583","v":"135Disabled Parking Citations Issued"},{"$f":"'Data SBP Measures'!$Y1523","v":"EACH"},null,null,null,null,null,"Civil & Criminal Process - 135","Disabled Parking Citations Issued",null,null,null,null,null,null,null,"1646","145","Y","120","Court Services","PERCENT","OUTCOME","ADOPTEDBUD",null,null,null,"Court Services","Percent of Successfully Completing (NCC)",null,{"$f":"'Data SBP Measures'!$AF583&'Data SBP Measures'!$AE583& \" - \"& 'Data SBP Measures'!$U583","v":"Percent of Successfully Completing (NCC)Court Services - 145"},{"$f":"_xlfn.XLOOKUP(VALUE(W583),'Data SBP Programs'!O:O,'Data SBP Programs'!S:S)","v":"Court Services"}]
[{"$f":"'Data SBP Measures'!$AI1524&\" - \"&'Data SBP Measures'!$U1524","v":"Civil & Criminal Process - 135"},{"$f":"'Data SBP Measures'!$AF1524","v":"Disabled Parking Citations Issued"},{"$f":"'Data SBP Measures'!$T1524","v":"2289"},{"$f":"'Data SBP Measures'!$U1524&B584","v":"135Disabled Parking Citations Issued"},{"$f":"'Data SBP Measures'!$Y1524","v":"EACH"},null,null,null,null,null,"Civil & Criminal Process - 135","Disabled Parking Citations Issued",null,null,null,null,null,null,null,"1646","145","Y","120","Court Services","PERCENT","OUTCOME","ADOPTEDBUD",null,null,null,"Court Services","Percent of Successfully Completing (NCC)",null,{"$f":"'Data SBP Measures'!$AF584&'Data SBP Measures'!$AE584& \" - \"& 'Data SBP Measures'!$U584","v":"Percent of Successfully Completing (NCC)Court Services - 145"},{"$f":"_xlfn.XLOOKUP(VALUE(W584),'Data SBP Programs'!O:O,'Data SBP Programs'!S:S)","v":"Court Services"}]
[{"$f":"'Data SBP Measures'!$AI1525&\" - \"&'Data SBP Measures'!$U1525","v":"Civil & Criminal Process - 135"},{"$f":"'Data SBP Measures'!$AF1525","v":"Disabled Parking Citations Issued"},{"$f":"'Data SBP Measures'!$T1525","v":"2289"},{"$f":"'Data SBP Measures'!$U1525&B585","v":"135Disabled Parking Citations Issued"},{"$f":"'Data SBP Measures'!$Y1525","v":"EACH"},null,null,null,null,null,"Civil & Criminal Process - 135","Disabled Parking Citations Issued",null,null,null,null,null,null,null,"1646","145","Y","120","Court Services","PERCENT","OUTCOME","ADOPTEDBUD",null,null,null,"Court Services","Percent of Successfully Completing (NCC)",null,{"$f":"'Data SBP Measures'!$AF585&'Data SBP Measures'!$AE585& \" - \"& 'Data SBP Measures'!$U585","v":"Percent of Successfully Completing (NCC)Court Services - 145"},{"$f":"_xlfn.XLOOKUP(VALUE(W585),'Data SBP Programs'!O:O,'Data SBP Programs'!S:S)","v":"Court Services"}]
[{"$f":"'Data SBP Measures'!$AI1526&\" - \"&'Data SBP Measures'!$U1526","v":"Civil & Criminal Process - 135"},{"$f":"'Data SBP Measures'!$AF1526","v":"Disabled Parking Citations Issued"},{"$f":"'Data SBP Measures'!$T1526","v":"2289"},{"$f":"'Data SBP Measures'!$U1526&B586","v":"135Disabled Parking Citations Issued"},{"$f":"'Data SBP Measures'!$Y1526","v":"EACH"},null,null,null,null,null,"Civil & Criminal Process - 135","Disabled Parking Citations Issued",null,null,null,null,null,null,null,"1646","145","Y","120","Court Services","PERCENT","OUTCOME","ADOPTEDBUD",null,null,null,"Court Services","Percent of Successfully Completing (NCC)",null,{"$f":"'Data SBP Measures'!$AF586&'Data SBP Measures'!$AE586& \" - \"& 'Data SBP Measures'!$U586","v":"Percent of Successfully Completing (NCC)Court Services - 145"},{"$f":"_xlfn.XLOOKUP(VALUE(W586),'Data SBP Programs'!O:O,'Data SBP Programs'!S:S)","v":"Court Services"}]
[{"$f":"'Data SBP Measures'!$AI1528&\" - \"&'Data SBP Measures'!$U1528","v":"Civil & Criminal Process - 135"},{"$f":"'Data SBP Measures'!$AF1528","v":"Illegally Used Placards Seized"},{"$f":"'Data SBP Measures'!$T1528","v":"2290"},{"$f":"'Data SBP Measures'!$U1528&B587","v":"135Illegally Used Placards Seized"},{"$f":"'Data SBP Measures'!$Y1528","v":"EACH"},null,null,null,null,null,"Civil & Criminal Process - 135","Illegally Used Placards Seized",null,null,null,null,null,null,null,"1646","145","Y","120","Court Services","PERCENT","OUTCOME","ADOPTEDBUD",null,null,null,"Court Services","Percent of Successfully Completing (NCC)",null,{"$f":"'Data SBP Measures'!$AF587&'Data SBP Measures'!$AE587& \" - \"& 'Data SBP Measures'!$U587","v":"Percent of Successfully Completing (NCC)Court Services - 145"},{"$f":"_xlfn.XLOOKUP(VALUE(W587),'Data SBP Programs'!O:O,'Data SBP Programs'!S:S)","v":"Court Services"}]
[{"$f":"'Data SBP Measures'!$AI1529&\" - \"&'Data SBP Measures'!$U1529","v":"Civil & Criminal Process - 135"},{"$f":"'Data SBP Measures'!$AF1529","v":"Illegally Used Placards Seized"},{"$f":"'Data SBP Measures'!$T1529","v":"2290"},{"$f":"'Data SBP Measures'!$U1529&B588","v":"135Illegally Used Placards Seized"},{"$f":"'Data SBP Measures'!$Y1529","v":"EACH"},null,null,null,null,null,"Civil & Criminal Process - 135","Illegally Used Placards Seized",null,null,null,null,null,null,null,"1646","145","Y","120","Court Services","PERCENT","OUTCOME","ADOPTEDBUD",null,null,null,"Court Services","Percent of Successfully Completing (NCC)",null,{"$f":"'Data SBP Measures'!$AF588&'Data SBP Measures'!$AE588& \" - \"& 'Data SBP Measures'!$U588","v":"Percent of Successfully Completing (NCC)Court Services - 145"},{"$f":"_xlfn.XLOOKUP(VALUE(W588),'Data SBP Programs'!O:O,'Data SBP Programs'!S:S)","v":"Court Services"}]
[{"$f":"'Data SBP Measures'!$AI1530&\" - \"&'Data SBP Measures'!$U1530","v":"Civil & Criminal Process - 135"},{"$f":"'Data SBP Measures'!$AF1530","v":"Illegally Used Placards Seized"},{"$f":"'Data SBP Measures'!$T1530","v":"2290"},{"$f":"'Data SBP Measures'!$U1530&B589","v":"135Illegally Used Placards Seized"},{"$f":"'Data SBP Measures'!$Y1530","v":"EACH"},null,null,null,null,null,"Civil & Criminal Process - 135","Illegally Used Placards Seized",null,null,null,null,null,null,null,"1647","145","Y","120","Court Services","PERCENT","OUTCOME","ADOPTEDBUD",null,null,null,"Court Services","Percent of Successfully Completing (Sole Sanction)",null,{"$f":"'Data SBP Measures'!$AF589&'Data SBP Measures'!$AE589& \" - \"& 'Data SBP Measures'!$U589","v":"Percent of Successfully Completing (Sole Sanction)Court Services - 145"},{"$f":"_xlfn.XLOOKUP(VALUE(W589),'Data SBP Programs'!O:O,'Data SBP Programs'!S:S)","v":"Court Services"}]
[{"$f":"'Data SBP Measures'!$AI1531&\" - \"&'Data SBP Measures'!$U1531","v":"Civil & Criminal Process - 135"},{"$f":"'Data SBP Measures'!$AF1531","v":"Illegally Used Placards Seized"},{"$f":"'Data SBP Measures'!$T1531","v":"2290"},{"$f":"'Data SBP Measures'!$U1531&B590","v":"135Illegally Used Placards Seized"},{"$f":"'Data SBP Measures'!$Y1531","v":"EACH"},null,null,null,null,null,"Civil & Criminal Process - 135","Illegally Used Placards Seized",null,null,null,null,null,null,null,"1647","145","Y","120","Court Services","PERCENT","OUTCOME","ADOPTEDBUD",null,null,null,"Court Services","Percent of Successfully Completing (Sole Sanction)",null,{"$f":"'Data SBP Measures'!$AF590&'Data SBP Measures'!$AE590& \" - \"& 'Data SBP Measures'!$U590","v":"Percent of Successfully Completing (Sole Sanction)Court Services - 145"},{"$f":"_xlfn.XLOOKUP(VALUE(W590),'Data SBP Programs'!O:O,'Data SBP Programs'!S:S)","v":"Court Services"}]
[{"$f":"'Data SBP Measures'!$AI1532&\" - \"&'Data SBP Measures'!$U1532","v":"Civil & Criminal Process - 135"},{"$f":"'Data SBP Measures'!$AF1532","v":"Illegally Used Placards Seized"},{"$f":"'Data SBP Measures'!$T1532","v":"2290"},{"$f":"'Data SBP Measures'!$U1532&B591","v":"135Illegally Used Placards Seized"},{"$f":"'Data SBP Measures'!$Y1532","v":"EACH"},null,null,null,null,null,"Civil & Criminal Process - 135","Illegally Used Placards Seized",null,null,null,null,null,null,null,"1647","145","Y","120","Court Services","PERCENT","OUTCOME","ADOPTEDBUD",null,null,null,"Court Services","Percent of Successfully Completing (Sole Sanction)",null,{"$f":"'Data SBP Measures'!$AF591&'Data SBP Measures'!$AE591& \" - \"& 'Data SBP Measures'!$U591","v":"Percent of Successfully Completing (Sole Sanction)Court Services - 145"},{"$f":"_xlfn.XLOOKUP(VALUE(W591),'Data SBP Programs'!O:O,'Data SBP Programs'!S:S)","v":"Court Services"}]
[{"$f":"'Data SBP Measures'!$AI1533&\" - \"&'Data SBP Measures'!$U1533","v":"Civil & Criminal Process - 135"},{"$f":"'Data SBP Measures'!$AF1533","v":"Illegally Used Placards Seized"},{"$f":"'Data SBP Measures'!$T1533","v":"2290"},{"$f":"'Data SBP Measures'!$U1533&B592","v":"135Illegally Used Placards Seized"},{"$f":"'Data SBP Measures'!$Y1533","v":"EACH"},null,null,null,null,null,"Civil & Criminal Process - 135","Illegally Used Placards Seized",null,null,null,null,null,null,null,"1647","145","Y","120","Court Services","PERCENT","OUTCOME","ADOPTEDBUD",null,null,null,"Court Services","Percent of Successfully Completing (Sole Sanction)",null,{"$f":"'Data SBP Measures'!$AF592&'Data SBP Measures'!$AE592& \" - \"& 'Data SBP Measures'!$U592","v":"Percent of Successfully Completing (Sole Sanction)Court Services - 145"},{"$f":"_xlfn.XLOOKUP(VALUE(W592),'Data SBP Programs'!O:O,'Data SBP Programs'!S:S)","v":"Court Services"}]
[{"$f":"'Data SBP Measures'!$AI1534&\" - \"&'Data SBP Measures'!$U1534","v":"Civil & Criminal Process - 135"},{"$f":"'Data SBP Measures'!$AF1534","v":"Illegally Used Placards Seized"},{"$f":"'Data SBP Measures'!$T1534","v":"2290"},{"$f":"'Data SBP Measures'!$U1534&B593","v":"135Illegally Used Placards Seized"},{"$f":"'Data SBP Measures'!$Y1534","v":"EACH"},null,null,null,null,null,"Civil & Criminal Process - 135","Illegally Used Placards Seized",null,null,null,null,null,null,null,"1647","145","Y","120","Court Services","PERCENT","OUTCOME","ADOPTEDBUD",null,null,null,"Court Services","Percent of Successfully Completing (Sole Sanction)",null,{"$f":"'Data SBP Measures'!$AF593&'Data SBP Measures'!$AE593& \" - \"& 'Data SBP Measures'!$U593","v":"Percent of Successfully Completing (Sole Sanction)Court Services - 145"},{"$f":"_xlfn.XLOOKUP(VALUE(W593),'Data SBP Programs'!O:O,'Data SBP Programs'!S:S)","v":"Court Services"}]
[{"$f":"'Data SBP Measures'!$AI1535&\" - \"&'Data SBP Measures'!$U1535","v":"Civil & Criminal Process - 135"},{"$f":"'Data SBP Measures'!$AF1535","v":"Illegally Used Placards Seized"},{"$f":"'Data SBP Measures'!$T1535","v":"2290"},{"$f":"'Data SBP Measures'!$U1535&B594","v":"135Illegally Used Placards Seized"},{"$f":"'Data SBP Measures'!$Y1535","v":"EACH"},null,null,null,null,null,"Civil & Criminal Process - 135","Illegally Used Placards Seized",null,null,null,null,null,null,null,"1647","145","Y","120","Court Services","PERCENT","OUTCOME","ADOPTEDBUD",null,null,null,"Court Services","Percent of Successfully Completing (Sole Sanction)",null,{"$f":"'Data SBP Measures'!$AF594&'Data SBP Measures'!$AE594& \" - \"& 'Data SBP Measures'!$U594","v":"Percent of Successfully Completing (Sole Sanction)Court Services - 145"},{"$f":"_xlfn.XLOOKUP(VALUE(W594),'Data SBP Programs'!O:O,'Data SBP Programs'!S:S)","v":"Court Services"}]
[{"$f":"'Data SBP Measures'!$AI1536&\" - \"&'Data SBP Measures'!$U1536","v":"Civil & Criminal Process - 135"},{"$f":"'Data SBP Measures'!$AF1536","v":"Illegally Used Placards Seized"},{"$f":"'Data SBP Measures'!$T1536","v":"2290"},{"$f":"'Data SBP Measures'!$U1536&B595","v":"135Illegally Used Placards Seized"},{"$f":"'Data SBP Measures'!$Y1536","v":"EACH"},null,null,null,null,null,"Civil & Criminal Process - 135","Illegally Used Placards Seized",null,null,null,null,null,null,null,"1647","145","Y","120","Court Services","PERCENT","OUTCOME","ADOPTEDBUD",null,null,null,"Court Services","Percent of Successfully Completing (Sole Sanction)",null,{"$f":"'Data SBP Measures'!$AF595&'Data SBP Measures'!$AE595& \" - \"& 'Data SBP Measures'!$U595","v":"Percent of Successfully Completing (Sole Sanction)Court Services - 145"},{"$f":"_xlfn.XLOOKUP(VALUE(W595),'Data SBP Programs'!O:O,'Data SBP Programs'!S:S)","v":"Court Services"}]
[{"$f":"'Data SBP Measures'!$AI1537&\" - \"&'Data SBP Measures'!$U1537","v":"Civil & Criminal Process - 135"},{"$f":"'Data SBP Measures'!$AF1537","v":"Illegally Used Placards Seized"},{"$f":"'Data SBP Measures'!$T1537","v":"2290"},{"$f":"'Data SBP Measures'!$U1537&B596","v":"135Illegally Used Placards Seized"},{"$f":"'Data SBP Measures'!$Y1537","v":"EACH"},null,null,null,null,null,"Civil & Criminal Process - 135","Illegally Used Placards Seized",null,null,null,null,null,null,null,"1648","145","Y","120","Court Services","PERCENT","OUTCOME","ADOPTEDBUD",null,null,null,"Court Services","Percent of Successfully Completing (Second Chance)",null,{"$f":"'Data SBP Measures'!$AF596&'Data SBP Measures'!$AE596& \" - \"& 'Data SBP Measures'!$U596","v":"Percent of Successfully Completing (Second Chance)Court Services - 145"},{"$f":"_xlfn.XLOOKUP(VALUE(W596),'Data SBP Programs'!O:O,'Data SBP Programs'!S:S)","v":"Court Services"}]
[{"$f":"'Data SBP Measures'!$AI1538&\" - \"&'Data SBP Measures'!$U1538","v":"Civil & Criminal Process - 135"},{"$f":"'Data SBP Measures'!$AF1538","v":"Illegally Used Placards Seized"},{"$f":"'Data SBP Measures'!$T1538","v":"2290"},{"$f":"'Data SBP Measures'!$U1538&B597","v":"135Illegally Used Placards Seized"},{"$f":"'Data SBP Measures'!$Y1538","v":"EACH"},null,null,null,null,null,"Civil & Criminal Process - 135","Illegally Used Placards Seized",null,null,null,null,null,null,null,"1648","145","Y","120","Court Services","PERCENT","OUTCOME","ADOPTEDBUD",null,null,null,"Court Services","Percent of Successfully Completing (Second Chance)",null,{"$f":"'Data SBP Measures'!$AF597&'Data SBP Measures'!$AE597& \" - \"& 'Data SBP Measures'!$U597","v":"Percent of Successfully Completing (Second Chance)Court Services - 145"},{"$f":"_xlfn.XLOOKUP(VALUE(W597),'Data SBP Programs'!O:O,'Data SBP Programs'!S:S)","v":"Court Services"}]
[{"$f":"'Data SBP Measures'!$AI3353&\" - \"&'Data SBP Measures'!$U3353","v":"Civil Courts - 122"},{"$f":"'Data SBP Measures'!$AF3353","v":"Clearance Rate (Disposition/Filings)"},{"$f":"'Data SBP Measures'!$T3353","v":"723"},{"$f":"'Data SBP Measures'!$U3353&B598","v":"122Clearance Rate (Disposition/Filings)"},{"$f":"'Data SBP Measures'!$Y3353","v":"PERCENT"},null,null,null,null,null,"Civil Courts - 122","Clearance Rate (Disposition/Filings)",null,null,null,null,null,null,null,"1648","145","Y","120","Court Services","PERCENT","OUTCOME","ADOPTEDBUD",null,null,null,"Court Services","Percent of Successfully Completing (Second Chance)",null,{"$f":"'Data SBP Measures'!$AF598&'Data SBP Measures'!$AE598& \" - \"& 'Data SBP Measures'!$U598","v":"Percent of Successfully Completing (Second Chance)Court Services - 145"},{"$f":"_xlfn.XLOOKUP(VALUE(W598),'Data SBP Programs'!O:O,'Data SBP Programs'!S:S)","v":"Court Services"}]
[{"$f":"'Data SBP Measures'!$AI3354&\" - \"&'Data SBP Measures'!$U3354","v":"Civil Courts - 122"},{"$f":"'Data SBP Measures'!$AF3354","v":"Clearance Rate (Disposition/Filings)"},{"$f":"'Data SBP Measures'!$T3354","v":"723"},{"$f":"'Data SBP Measures'!$U3354&B599","v":"122Clearance Rate (Disposition/Filings)"},{"$f":"'Data SBP Measures'!$Y3354","v":"PERCENT"},null,null,null,null,null,"Civil Courts - 122","Clearance Rate (Disposition/Filings)",null,null,null,null,null,null,null,"1648","145","Y","120","Court Services","PERCENT","OUTCOME","ADOPTEDBUD",null,null,null,"Court Services","Percent of Successfully Completing (Second Chance)",null,{"$f":"'Data SBP Measures'!$AF599&'Data SBP Measures'!$AE599& \" - \"& 'Data SBP Measures'!$U599","v":"Percent of Successfully Completing (Second Chance)Court Services - 145"},{"$f":"_xlfn.XLOOKUP(VALUE(W599),'Data SBP Programs'!O:O,'Data SBP Programs'!S:S)","v":"Court Services"}]
[{"$f":"'Data SBP Measures'!$AI3355&\" - \"&'Data SBP Measures'!$U3355","v":"Civil Courts - 122"},{"$f":"'Data SBP Measures'!$AF3355","v":"Clearance Rate (Disposition/Filings)"},{"$f":"'Data SBP Measures'!$T3355","v":"723"},{"$f":"'Data SBP Measures'!$U3355&B600","v":"122Clearance Rate (Disposition/Filings)"},{"$f":"'Data SBP Measures'!$Y3355","v":"PERCENT"},null,null,null,null,null,"Civil Courts - 122","Clearance Rate (Disposition/Filings)",null,null,null,null,null,null,null,"1648","145","Y","120","Court Services","PERCENT","OUTCOME","ADOPTEDBUD",null,null,null,"Court Services","Percent of Successfully Completing (Second Chance)",null,{"$f":"'Data SBP Measures'!$AF600&'Data SBP Measures'!$AE600& \" - \"& 'Data SBP Measures'!$U600","v":"Percent of Successfully Completing (Second Chance)Court Services - 145"},{"$f":"_xlfn.XLOOKUP(VALUE(W600),'Data SBP Programs'!O:O,'Data SBP Programs'!S:S)","v":"Court Services"}]
[{"$f":"'Data SBP Measures'!$AI3356&\" - \"&'Data SBP Measures'!$U3356","v":"Civil Courts - 122"},{"$f":"'Data SBP Measures'!$AF3356","v":"Clearance Rate (Disposition/Filings)"},{"$f":"'Data SBP Measures'!$T3356","v":"723"},{"$f":"'Data SBP Measures'!$U3356&B601","v":"122Clearance Rate (Disposition/Filings)"},{"$f":"'Data SBP Measures'!$Y3356","v":"PERCENT"},null,null,null,null,null,"Civil Courts - 122","Clearance Rate (Disposition/Filings)",null,null,null,null,null,null,null,"1648","145","Y","120","Court Services","PERCENT","OUTCOME","ADOPTEDBUD",null,null,null,"Court Services","Percent of Successfully Completing (Second Chance)",null,{"$f":"'Data SBP Measures'!$AF601&'Data SBP Measures'!$AE601& \" - \"& 'Data SBP Measures'!$U601","v":"Percent of Successfully Completing (Second Chance)Court Services - 145"},{"$f":"_xlfn.XLOOKUP(VALUE(W601),'Data SBP Programs'!O:O,'Data SBP Programs'!S:S)","v":"Court Services"}]
[{"$f":"'Data SBP Measures'!$AI3357&\" - \"&'Data SBP Measures'!$U3357","v":"Civil Courts - 122"},{"$f":"'Data SBP Measures'!$AF3357","v":"Clearance Rate (Disposition/Filings)"},{"$f":"'Data SBP Measures'!$T3357","v":"723"},{"$f":"'Data SBP Measures'!$U3357&B602","v":"122Clearance Rate (Disposition/Filings)"},{"$f":"'Data SBP Measures'!$Y3357","v":"PERCENT"},null,null,null,null,null,"Civil Courts - 122","Clearance Rate (Disposition/Filings)",null,null,null,null,null,null,null,"1648","145","Y","120","Court Services","PERCENT","OUTCOME","ADOPTEDBUD",null,null,null,"Court Services","Percent of Successfully Completing (Second Chance)",null,{"$f":"'Data SBP Measures'!$AF602&'Data SBP Measures'!$AE602& \" - \"& 'Data SBP Measures'!$U602","v":"Percent of Successfully Completing (Second Chance)Court Services - 145"},{"$f":"_xlfn.XLOOKUP(VALUE(W602),'Data SBP Programs'!O:O,'Data SBP Programs'!S:S)","v":"Court Services"}]
[{"$f":"'Data SBP Measures'!$AI3358&\" - \"&'Data SBP Measures'!$U3358","v":"Civil Courts - 122"},{"$f":"'Data SBP Measures'!$AF3358","v":"Clearance Rate (Disposition/Filings)"},{"$f":"'Data SBP Measures'!$T3358","v":"723"},{"$f":"'Data SBP Measures'!$U3358&B603","v":"122Clearance Rate (Disposition/Filings)"},{"$f":"'Data SBP Measures'!$Y3358","v":"PERCENT"},null,null,null,null,null,"Civil Courts - 122","Clearance Rate (Disposition/Filings)",null,null,null,null,null,null,null,"1649","145","Y","120","Court Services","PERCENT","OUTCOME","ADOPTEDBUD",null,null,null,"Court Services","Percent of Successfully Completing (Deferred Prosecution)",null,{"$f":"'Data SBP Measures'!$AF603&'Data SBP Measures'!$AE603& \" - \"& 'Data SBP Measures'!$U603","v":"Percent of Successfully Completing (Deferred Prosecution)Court Services - 145"},{"$f":"_xlfn.XLOOKUP(VALUE(W603),'Data SBP Programs'!O:O,'Data SBP Programs'!S:S)","v":"Court Services"}]
[{"$f":"'Data SBP Measures'!$AI3359&\" - \"&'Data SBP Measures'!$U3359","v":"Civil Courts - 122"},{"$f":"'Data SBP Measures'!$AF3359","v":"Clearance Rate (Disposition/Filings)"},{"$f":"'Data SBP Measures'!$T3359","v":"723"},{"$f":"'Data SBP Measures'!$U3359&B604","v":"122Clearance Rate (Disposition/Filings)"},{"$f":"'Data SBP Measures'!$Y3359","v":"PERCENT"},null,null,null,null,null,"Civil Courts - 122","Clearance Rate (Disposition/Filings)",null,null,null,null,null,null,null,"1649","145","Y","120","Court Services","PERCENT","OUTCOME","ADOPTEDBUD",null,null,null,"Court Services","Percent of Successfully Completing (Deferred Prosecution)",null,{"$f":"'Data SBP Measures'!$AF604&'Data SBP Measures'!$AE604& \" - \"& 'Data SBP Measures'!$U604","v":"Percent of Successfully Completing (Deferred Prosecution)Court Services - 145"},{"$f":"_xlfn.XLOOKUP(VALUE(W604),'Data SBP Programs'!O:O,'Data SBP Programs'!S:S)","v":"Court Services"}]
[{"$f":"'Data SBP Measures'!$AI3360&\" - \"&'Data SBP Measures'!$U3360","v":"Civil Courts - 122"},{"$f":"'Data SBP Measures'!$AF3360","v":"Clearance Rate (Disposition/Filings)"},{"$f":"'Data SBP Measures'!$T3360","v":"723"},{"$f":"'Data SBP Measures'!$U3360&B605","v":"122Clearance Rate (Disposition/Filings)"},{"$f":"'Data SBP Measures'!$Y3360","v":"PERCENT"},null,null,null,null,null,"Civil Courts - 122","Clearance Rate (Disposition/Filings)",null,null,null,null,null,null,null,"1649","145","Y","120","Court Services","PERCENT","OUTCOME","ADOPTEDBUD",null,null,null,"Court Services","Percent of Successfully Completing (Deferred Prosecution)",null,{"$f":"'Data SBP Measures'!$AF605&'Data SBP Measures'!$AE605& \" - \"& 'Data SBP Measures'!$U605","v":"Percent of Successfully Completing (Deferred Prosecution)Court Services - 145"},{"$f":"_xlfn.XLOOKUP(VALUE(W605),'Data SBP Programs'!O:O,'Data SBP Programs'!S:S)","v":"Court Services"}]
[{"$f":"'Data SBP Measures'!$AI3361&\" - \"&'Data SBP Measures'!$U3361","v":"Civil Courts - 122"},{"$f":"'Data SBP Measures'!$AF3361","v":"Clearance Rate (Disposition/Filings)"},{"$f":"'Data SBP Measures'!$T3361","v":"723"},{"$f":"'Data SBP Measures'!$U3361&B606","v":"122Clearance Rate (Disposition/Filings)"},{"$f":"'Data SBP Measures'!$Y3361","v":"PERCENT"},null,null,null,null,null,"Civil Courts - 122","Clearance Rate (Disposition/Filings)",null,null,null,null,null,null,null,"1649","145","Y","120","Court Services","PERCENT","OUTCOME","ADOPTEDBUD",null,null,null,"Court Services","Percent of Successfully Completing (Deferred Prosecution)",null,{"$f":"'Data SBP Measures'!$AF606&'Data SBP Measures'!$AE606& \" - \"& 'Data SBP Measures'!$U606","v":"Percent of Successfully Completing (Deferred Prosecution)Court Services - 145"},{"$f":"_xlfn.XLOOKUP(VALUE(W606),'Data SBP Programs'!O:O,'Data SBP Programs'!S:S)","v":"Court Services"}]
[{"$f":"'Data SBP Measures'!$AI3362&\" - \"&'Data SBP Measures'!$U3362","v":"Civil Courts - 122"},{"$f":"'Data SBP Measures'!$AF3362","v":"Clearance Rate (Disposition/Filings)"},{"$f":"'Data SBP Measures'!$T3362","v":"723"},{"$f":"'Data SBP Measures'!$U3362&B607","v":"122Clearance Rate (Disposition/Filings)"},{"$f":"'Data SBP Measures'!$Y3362","v":"PERCENT"},null,null,null,null,null,"Civil Courts - 122","Clearance Rate (Disposition/Filings)",null,null,null,null,null,null,null,"1649","145","Y","120","Court Services","PERCENT","OUTCOME","ADOPTEDBUD",null,null,null,"Court Services","Percent of Successfully Completing (Deferred Prosecution)",null,{"$f":"'Data SBP Measures'!$AF607&'Data SBP Measures'!$AE607& \" - \"& 'Data SBP Measures'!$U607","v":"Percent of Successfully Completing (Deferred Prosecution)Court Services - 145"},{"$f":"_xlfn.XLOOKUP(VALUE(W607),'Data SBP Programs'!O:O,'Data SBP Programs'!S:S)","v":"Court Services"}]
[{"$f":"'Data SBP Measures'!$AI3363&\" - \"&'Data SBP Measures'!$U3363","v":"Civil Courts - 122"},{"$f":"'Data SBP Measures'!$AF3363","v":"Clearance Rate (Disposition/Filings)"},{"$f":"'Data SBP Measures'!$T3363","v":"723"},{"$f":"'Data SBP Measures'!$U3363&B608","v":"122Clearance Rate (Disposition/Filings)"},{"$f":"'Data SBP Measures'!$Y3363","v":"PERCENT"},null,null,null,null,null,"Civil Courts - 122","Clearance Rate (Disposition/Filings)",null,null,null,null,null,null,null,"1649","145","Y","120","Court Services","PERCENT","OUTCOME","ADOPTEDBUD",null,null,null,"Court Services","Percent of Successfully Completing (Deferred Prosecution)",null,{"$f":"'Data SBP Measures'!$AF608&'Data SBP Measures'!$AE608& \" - \"& 'Data SBP Measures'!$U608","v":"Percent of Successfully Completing (Deferred Prosecution)Court Services - 145"},{"$f":"_xlfn.XLOOKUP(VALUE(W608),'Data SBP Programs'!O:O,'Data SBP Programs'!S:S)","v":"Court Services"}]
[{"$f":"'Data SBP Measures'!$AI3364&\" - \"&'Data SBP Measures'!$U3364","v":"Civil Courts - 122"},{"$f":"'Data SBP Measures'!$AF3364","v":"Clearance Rate (Disposition/Filings)"},{"$f":"'Data SBP Measures'!$T3364","v":"723"},{"$f":"'Data SBP Measures'!$U3364&B609","v":"122Clearance Rate (Disposition/Filings)"},{"$f":"'Data SBP Measures'!$Y3364","v":"PERCENT"},null,null,null,null,null,"Civil Courts - 122","Clearance Rate (Disposition/Filings)",null,null,null,null,null,null,null,"1649","145","Y","120","Court Services","PERCENT","OUTCOME","ADOPTEDBUD",null,null,null,"Court Services","Percent of Successfully Completing (Deferred Prosecution)",null,{"$f":"'Data SBP Measures'!$AF609&'Data SBP Measures'!$AE609& \" - \"& 'Data SBP Measures'!$U609","v":"Percent of Successfully Completing (Deferred Prosecution)Court Services - 145"},{"$f":"_xlfn.XLOOKUP(VALUE(W609),'Data SBP Programs'!O:O,'Data SBP Programs'!S:S)","v":"Court Services"}]
[{"$f":"'Data SBP Measures'!$AI3365&\" - \"&'Data SBP Measures'!$U3365","v":"Civil Courts - 122"},{"$f":"'Data SBP Measures'!$AF3365","v":"Clearance Rate (Disposition/Filings)"},{"$f":"'Data SBP Measures'!$T3365","v":"723"},{"$f":"'Data SBP Measures'!$U3365&B610","v":"122Clearance Rate (Disposition/Filings)"},{"$f":"'Data SBP Measures'!$Y3365","v":"PERCENT"},null,null,null,null,null,"Civil Courts - 122","Clearance Rate (Disposition/Filings)",null,null,null,null,null,null,null,"1653","145","Y","124","Juvenile Probation Support Services","PERCENT","OUTCOME","ADOPTEDBUD",null,null,null,"Juvenile Probation Support Services","% of Projects Implemented by established timeline",null,{"$f":"'Data SBP Measures'!$AF610&'Data SBP Measures'!$AE610& \" - \"& 'Data SBP Measures'!$U610","v":"% of Projects Implemented by established timelineJuvenile Probation Support Services - 145"},{"$f":"_xlfn.XLOOKUP(VALUE(W610),'Data SBP Programs'!O:O,'Data SBP Programs'!S:S)","v":"Juvenile Probation Support Services"}]
[{"$f":"'Data SBP Measures'!$AI3366&\" - \"&'Data SBP Measures'!$U3366","v":"Civil Courts - 122"},{"$f":"'Data SBP Measures'!$AF3366","v":"Clearance Rate (Disposition/Filings)"},{"$f":"'Data SBP Measures'!$T3366","v":"723"},{"$f":"'Data SBP Measures'!$U3366&B611","v":"122Clearance Rate (Disposition/Filings)"},{"$f":"'Data SBP Measures'!$Y3366","v":"PERCENT"},null,null,null,null,null,"Civil Courts - 122","Clearance Rate (Disposition/Filings)",null,null,null,null,null,null,null,"1653","145","Y","124","Juvenile Probation Support Services","PERCENT","OUTCOME","ADOPTEDBUD",null,null,null,"Juvenile Probation Support Services","% of Projects Implemented by established timeline",null,{"$f":"'Data SBP Measures'!$AF611&'Data SBP Measures'!$AE611& \" - \"& 'Data SBP Measures'!$U611","v":"% of Projects Implemented by established timelineJuvenile Probation Support Services - 145"},{"$f":"_xlfn.XLOOKUP(VALUE(W611),'Data SBP Programs'!O:O,'Data SBP Programs'!S:S)","v":"Juvenile Probation Support Services"}]
[{"$f":"'Data SBP Measures'!$AI3367&\" - \"&'Data SBP Measures'!$U3367","v":"Civil Courts - 122"},{"$f":"'Data SBP Measures'!$AF3367","v":"Clearance Rate (Disposition/Filings)"},{"$f":"'Data SBP Measures'!$T3367","v":"723"},{"$f":"'Data SBP Measures'!$U3367&B612","v":"122Clearance Rate (Disposition/Filings)"},{"$f":"'Data SBP Measures'!$Y3367","v":"PERCENT"},null,null,null,null,null,"Civil Courts - 122","Clearance Rate (Disposition/Filings)",null,null,null,null,null,null,null,"1655","124","Y","50","District Courts Division","EACH","OUTPUT","NEITHER",null,null,null,"District Courts Division","Number of public data displays",null,{"$f":"'Data SBP Measures'!$AF612&'Data SBP Measures'!$AE612& \" - \"& 'Data SBP Measures'!$U612","v":"Number of public data displaysDistrict Courts Division - 124"},{"$f":"_xlfn.XLOOKUP(VALUE(W612),'Data SBP Programs'!O:O,'Data SBP Programs'!S:S)","v":"District Courts Division"}]
[{"$f":"'Data SBP Measures'!$AI3368&\" - \"&'Data SBP Measures'!$U3368","v":"Civil Courts - 122"},{"$f":"'Data SBP Measures'!$AF3368","v":"Clearance Rate (Disposition/Filings)"},{"$f":"'Data SBP Measures'!$T3368","v":"723"},{"$f":"'Data SBP Measures'!$U3368&B613","v":"122Clearance Rate (Disposition/Filings)"},{"$f":"'Data SBP Measures'!$Y3368","v":"PERCENT"},null,null,null,null,null,"Civil Courts - 122","Clearance Rate (Disposition/Filings)",null,null,null,null,null,null,null,"1656","124","Y","50","District Courts Division","EACH","OUTPUT","NEITHER",null,null,null,"District Courts Division","Number of invoices processed automatically",null,{"$f":"'Data SBP Measures'!$AF613&'Data SBP Measures'!$AE613& \" - \"& 'Data SBP Measures'!$U613","v":"Number of invoices processed automaticallyDistrict Courts Division - 124"},{"$f":"_xlfn.XLOOKUP(VALUE(W613),'Data SBP Programs'!O:O,'Data SBP Programs'!S:S)","v":"District Courts Division"}]
[{"$f":"'Data SBP Measures'!$AI3369&\" - \"&'Data SBP Measures'!$U3369","v":"Civil Courts - 122"},{"$f":"'Data SBP Measures'!$AF3369","v":"Clearance Rate (Disposition/Filings)"},{"$f":"'Data SBP Measures'!$T3369","v":"723"},{"$f":"'Data SBP Measures'!$U3369&B614","v":"122Clearance Rate (Disposition/Filings)"},{"$f":"'Data SBP Measures'!$Y3369","v":"PERCENT"},null,null,null,null,null,"Civil Courts - 122","Clearance Rate (Disposition/Filings)",null,null,null,null,null,null,null,"1657","124","Y","50","District Courts Division","PERCENT","OUTCOME","NEITHER",null,null,null,"District Courts Division","Percent of invoices processed automatically",null,{"$f":"'Data SBP Measures'!$AF614&'Data SBP Measures'!$AE614& \" - \"& 'Data SBP Measures'!$U614","v":"Percent of invoices processed automaticallyDistrict Courts Division - 124"},{"$f":"_xlfn.XLOOKUP(VALUE(W614),'Data SBP Programs'!O:O,'Data SBP Programs'!S:S)","v":"District Courts Division"}]
[{"$f":"'Data SBP Measures'!$AI3370&\" - \"&'Data SBP Measures'!$U3370","v":"Civil Courts - 122"},{"$f":"'Data SBP Measures'!$AF3370","v":"Clearance Rate (Disposition/Filings)"},{"$f":"'Data SBP Measures'!$T3370","v":"723"},{"$f":"'Data SBP Measures'!$U3370&B615","v":"122Clearance Rate (Disposition/Filings)"},{"$f":"'Data SBP Measures'!$Y3370","v":"PERCENT"},null,null,null,null,null,"Civil Courts - 122","Clearance Rate (Disposition/Filings)",null,null,null,null,null,null,null,"1658","124","Y","50","District Courts Division","Y/N","OUTCOME","NEITHER",null,null,null,"District Courts Division","Percent of invoices processed automatically >99% (Y=1, N=0)",null,{"$f":"'Data SBP Measures'!$AF615&'Data SBP Measures'!$AE615& \" - \"& 'Data SBP Measures'!$U615","v":"Percent of invoices processed automatically >99% (Y=1, N=0)District Courts Division - 124"},{"$f":"_xlfn.XLOOKUP(VALUE(W615),'Data SBP Programs'!O:O,'Data SBP Programs'!S:S)","v":"District Courts Division"}]
[{"$f":"'Data SBP Measures'!$AI3371&\" - \"&'Data SBP Measures'!$U3371","v":"Civil Courts - 122"},{"$f":"'Data SBP Measures'!$AF3371","v":"Clearance Rate (Disposition/Filings)"},{"$f":"'Data SBP Measures'!$T3371","v":"723"},{"$f":"'Data SBP Measures'!$U3371&B616","v":"122Clearance Rate (Disposition/Filings)"},{"$f":"'Data SBP Measures'!$Y3371","v":"PERCENT"},null,null,null,null,null,"Civil Courts - 122","Clearance Rate (Disposition/Filings)",null,null,null,null,null,null,null,"1659","124","Y","50","District Courts Division","EACH","OUTPUT","NEITHER",null,null,null,"District Courts Division","Number of dashboards used by other departments",null,{"$f":"'Data SBP Measures'!$AF616&'Data SBP Measures'!$AE616& \" - \"& 'Data SBP Measures'!$U616","v":"Number of dashboards used by other departmentsDistrict Courts Division - 124"},{"$f":"_xlfn.XLOOKUP(VALUE(W616),'Data SBP Programs'!O:O,'Data SBP Programs'!S:S)","v":"District Courts Division"}]
[{"$f":"'Data SBP Measures'!$AI3372&\" - \"&'Data SBP Measures'!$U3372","v":"Civil Courts - 122"},{"$f":"'Data SBP Measures'!$AF3372","v":"Clearance Rate (Disposition/Filings)"},{"$f":"'Data SBP Measures'!$T3372","v":"723"},{"$f":"'Data SBP Measures'!$U3372&B617","v":"122Clearance Rate (Disposition/Filings)"},{"$f":"'Data SBP Measures'!$Y3372","v":"PERCENT"},null,null,null,null,null,"Civil Courts - 122","Clearance Rate (Disposition/Filings)",null,null,null,null,null,null,null,"1660","124","Y","51","County Courts Division","EACH","OUTPUT","NEITHER",null,null,null,"County Courts Division","Number of public data displays",null,{"$f":"'Data SBP Measures'!$AF617&'Data SBP Measures'!$AE617& \" - \"& 'Data SBP Measures'!$U617","v":"Number of public data displaysCounty Courts Division - 124"},{"$f":"_xlfn.XLOOKUP(VALUE(W617),'Data SBP Programs'!O:O,'Data SBP Programs'!S:S)","v":"County Courts Division"}]
[{"$f":"'Data SBP Measures'!$AI3373&\" - \"&'Data SBP Measures'!$U3373","v":"Civil Courts - 122"},{"$f":"'Data SBP Measures'!$AF3373","v":"Clearance Rate (Disposition/Filings)"},{"$f":"'Data SBP Measures'!$T3373","v":"723"},{"$f":"'Data SBP Measures'!$U3373&B618","v":"122Clearance Rate (Disposition/Filings)"},{"$f":"'Data SBP Measures'!$Y3373","v":"PERCENT"},null,null,null,null,null,"Civil Courts - 122","Clearance Rate (Disposition/Filings)",null,null,null,null,null,null,null,"1661","124","Y","51","County Courts Division","EACH","OUTPUT","NEITHER",null,null,null,"County Courts Division","Number of invoices processed automatically",null,{"$f":"'Data SBP Measures'!$AF618&'Data SBP Measures'!$AE618& \" - \"& 'Data SBP Measures'!$U618","v":"Number of invoices processed automaticallyCounty Courts Division - 124"},{"$f":"_xlfn.XLOOKUP(VALUE(W618),'Data SBP Programs'!O:O,'Data SBP Programs'!S:S)","v":"County Courts Division"}]
[{"$f":"'Data SBP Measures'!$AI3374&\" - \"&'Data SBP Measures'!$U3374","v":"Civil Courts - 122"},{"$f":"'Data SBP Measures'!$AF3374","v":"Clearance Rate (Disposition/Filings)"},{"$f":"'Data SBP Measures'!$T3374","v":"723"},{"$f":"'Data SBP Measures'!$U3374&B619","v":"122Clearance Rate (Disposition/Filings)"},{"$f":"'Data SBP Measures'!$Y3374","v":"PERCENT"},null,null,null,null,null,"Civil Courts - 122","Clearance Rate (Disposition/Filings)",null,null,null,null,null,null,null,"1662","124","Y","51","County Courts Division","PERCENT","OUTCOME","NEITHER",null,null,null,"County Courts Division","Percent of invoices processed automatically",null,{"$f":"'Data SBP Measures'!$AF619&'Data SBP Measures'!$AE619& \" - \"& 'Data SBP Measures'!$U619","v":"Percent of invoices processed automaticallyCounty Courts Division - 124"},{"$f":"_xlfn.XLOOKUP(VALUE(W619),'Data SBP Programs'!O:O,'Data SBP Programs'!S:S)","v":"County Courts Division"}]
[{"$f":"'Data SBP Measures'!$AI3375&\" - \"&'Data SBP Measures'!$U3375","v":"Civil Courts - 122"},{"$f":"'Data SBP Measures'!$AF3375","v":"Clearance Rate (Disposition/Filings)"},{"$f":"'Data SBP Measures'!$T3375","v":"723"},{"$f":"'Data SBP Measures'!$U3375&B620","v":"122Clearance Rate (Disposition/Filings)"},{"$f":"'Data SBP Measures'!$Y3375","v":"PERCENT"},null,null,null,null,null,"Civil Courts - 122","Clearance Rate (Disposition/Filings)",null,null,null,null,null,null,null,"1663","124","Y","51","County Courts Division","Y/N","OUTCOME","NEITHER",null,null,null,"County Courts Division","Percent of invoices processed automatically >99% (Y=1, N=0)\n",null,{"$f":"'Data SBP Measures'!$AF620&'Data SBP Measures'!$AE620& \" - \"& 'Data SBP Measures'!$U620","v":"Percent of invoices processed automatically >99% (Y=1, N=0)\nCounty Courts Division - 124"},{"$f":"_xlfn.XLOOKUP(VALUE(W620),'Data SBP Programs'!O:O,'Data SBP Programs'!S:S)","v":"County Courts Division"}]
[{"$f":"'Data SBP Measures'!$AI3376&\" - \"&'Data SBP Measures'!$U3376","v":"Civil Courts - 122"},{"$f":"'Data SBP Measures'!$AF3376","v":"Clearance Rate (Disposition/Filings)"},{"$f":"'Data SBP Measures'!$T3376","v":"723"},{"$f":"'Data SBP Measures'!$U3376&B621","v":"122Clearance Rate (Disposition/Filings)"},{"$f":"'Data SBP Measures'!$Y3376","v":"PERCENT"},null,null,null,null,null,"Civil Courts - 122","Clearance Rate (Disposition/Filings)",null,null,null,null,null,null,null,"1664","124","Y","51","County Courts Division","EACH","OUTPUT","NEITHER",null,null,null,"County Courts Division","Number of dashboards used by other departments",null,{"$f":"'Data SBP Measures'!$AF621&'Data SBP Measures'!$AE621& \" - \"& 'Data SBP Measures'!$U621","v":"Number of dashboards used by other departmentsCounty Courts Division - 124"},{"$f":"_xlfn.XLOOKUP(VALUE(W621),'Data SBP Programs'!O:O,'Data SBP Programs'!S:S)","v":"County Courts Division"}]
[{"$f":"'Data SBP Measures'!$AI3377&\" - \"&'Data SBP Measures'!$U3377","v":"Civil Courts - 122"},{"$f":"'Data SBP Measures'!$AF3377","v":"Clearance Rate (Disposition/Filings)"},{"$f":"'Data SBP Measures'!$T3377","v":"723"},{"$f":"'Data SBP Measures'!$U3377&B622","v":"122Clearance Rate (Disposition/Filings)"},{"$f":"'Data SBP Measures'!$Y3377","v":"PERCENT"},null,null,null,null,null,"Civil Courts - 122","Clearance Rate (Disposition/Filings)",null,null,null,null,null,null,null,"1665","137","Y","99","Patrol","PERCENT","EFFICIENCY","ADOPTEDBUD",null,null,null,"Patrol","Percentage of priority 1 calls responded to in < 9 mins",null,{"$f":"'Data SBP Measures'!$AF622&'Data SBP Measures'!$AE622& \" - \"& 'Data SBP Measures'!$U622","v":"Percentage of priority 1 calls responded to in < 9 minsPatrol - 137"},{"$f":"_xlfn.XLOOKUP(VALUE(W622),'Data SBP Programs'!O:O,'Data SBP Programs'!S:S)","v":"Patrol"}]
[{"$f":"'Data SBP Measures'!$AI3378&\" - \"&'Data SBP Measures'!$U3378","v":"Civil Courts - 122"},{"$f":"'Data SBP Measures'!$AF3378","v":"Clearance Rate (Disposition/Filings)"},{"$f":"'Data SBP Measures'!$T3378","v":"723"},{"$f":"'Data SBP Measures'!$U3378&B623","v":"122Clearance Rate (Disposition/Filings)"},{"$f":"'Data SBP Measures'!$Y3378","v":"PERCENT"},null,null,null,null,null,"Civil Courts - 122","Clearance Rate (Disposition/Filings)",null,null,null,null,null,null,null,"1666","137","Y","99","Patrol","PERCENT","EFFICIENCY","ADOPTEDBUD",null,null,null,"Patrol","Percentage of priority 1 calls responded to in > 15 mins",null,{"$f":"'Data SBP Measures'!$AF623&'Data SBP Measures'!$AE623& \" - \"& 'Data SBP Measures'!$U623","v":"Percentage of priority 1 calls responded to in > 15 minsPatrol - 137"},{"$f":"_xlfn.XLOOKUP(VALUE(W623),'Data SBP Programs'!O:O,'Data SBP Programs'!S:S)","v":"Patrol"}]
[{"$f":"'Data SBP Measures'!$AI3379&\" - \"&'Data SBP Measures'!$U3379","v":"Civil Courts - 122"},{"$f":"'Data SBP Measures'!$AF3379","v":"Clearance Rate (Disposition/Filings)"},{"$f":"'Data SBP Measures'!$T3379","v":"723"},{"$f":"'Data SBP Measures'!$U3379&B624","v":"122Clearance Rate (Disposition/Filings)"},{"$f":"'Data SBP Measures'!$Y3379","v":"PERCENT"},null,null,null,null,null,"Civil Courts - 122","Clearance Rate (Disposition/Filings)",null,null,null,null,null,null,null,"1667","137","Y","99","Patrol","EACH","INPUT","ADOPTEDBUD",null,null,null,"Patrol","Number of priority 1 calls",null,{"$f":"'Data SBP Measures'!$AF624&'Data SBP Measures'!$AE624& \" - \"& 'Data SBP Measures'!$U624","v":"Number of priority 1 callsPatrol - 137"},{"$f":"_xlfn.XLOOKUP(VALUE(W624),'Data SBP Programs'!O:O,'Data SBP Programs'!S:S)","v":"Patrol"}]
[{"$f":"'Data SBP Measures'!$AI3380&\" - \"&'Data SBP Measures'!$U3380","v":"Civil Courts - 122"},{"$f":"'Data SBP Measures'!$AF3380","v":"Clearance Rate (Disposition/Filings)"},{"$f":"'Data SBP Measures'!$T3380","v":"723"},{"$f":"'Data SBP Measures'!$U3380&B625","v":"122Clearance Rate (Disposition/Filings)"},{"$f":"'Data SBP Measures'!$Y3380","v":"PERCENT"},null,null,null,null,null,"Civil Courts - 122","Clearance Rate (Disposition/Filings)",null,null,null,null,null,null,null,"1668","102","Y","187","County Commissioner Precinct One","EACH","OUTPUT","ADOPTEDBUD",null,null,null,"County Commissioner Precinct One","Number of agenda items sponsored",null,{"$f":"'Data SBP Measures'!$AF625&'Data SBP Measures'!$AE625& \" - \"& 'Data SBP Measures'!$U625","v":"Number of agenda items sponsoredCounty Commissioner Precinct One - 102"},{"$f":"_xlfn.XLOOKUP(VALUE(W625),'Data SBP Programs'!O:O,'Data SBP Programs'!S:S)","v":"County Commissioner Precinct One"}]
[{"$f":"'Data SBP Measures'!$AI3381&\" - \"&'Data SBP Measures'!$U3381","v":"Civil Courts - 122"},{"$f":"'Data SBP Measures'!$AF3381","v":"Clearance Rate (Disposition/Filings)"},{"$f":"'Data SBP Measures'!$T3381","v":"723"},{"$f":"'Data SBP Measures'!$U3381&B626","v":"122Clearance Rate (Disposition/Filings)"},{"$f":"'Data SBP Measures'!$Y3381","v":"PERCENT"},null,null,null,null,null,"Civil Courts - 122","Clearance Rate (Disposition/Filings)",null,null,null,null,null,null,null,"1669","102","Y","187","County Commissioner Precinct One","EACH","INPUT","ADOPTEDBUD",null,null,null,"County Commissioner Precinct One","# of committees & boards on which the Commissioner serves",null,{"$f":"'Data SBP Measures'!$AF626&'Data SBP Measures'!$AE626& \" - \"& 'Data SBP Measures'!$U626","v":"# of committees & boards on which the Commissioner servesCounty Commissioner Precinct One - 102"},{"$f":"_xlfn.XLOOKUP(VALUE(W626),'Data SBP Programs'!O:O,'Data SBP Programs'!S:S)","v":"County Commissioner Precinct One"}]
[{"$f":"'Data SBP Measures'!$AI3324&\" - \"&'Data SBP Measures'!$U3324","v":"Civil Courts - 122"},{"$f":"'Data SBP Measures'!$AF3324","v":"Number of Cases Disposed"},{"$f":"'Data SBP Measures'!$T3324","v":"722"},{"$f":"'Data SBP Measures'!$U3324&B627","v":"122Number of Cases Disposed"},{"$f":"'Data SBP Measures'!$Y3324","v":"EACH"},null,null,null,null,null,"Civil Courts - 122","Number of Cases Disposed",null,null,null,null,null,null,null,"1670","102","Y","187","County Commissioner Precinct One","EACH","OUTPUT","ADOPTEDBUD",null,null,null,"County Commissioner Precinct One","Number of special projects",null,{"$f":"'Data SBP Measures'!$AF627&'Data SBP Measures'!$AE627& \" - \"& 'Data SBP Measures'!$U627","v":"Number of special projectsCounty Commissioner Precinct One - 102"},{"$f":"_xlfn.XLOOKUP(VALUE(W627),'Data SBP Programs'!O:O,'Data SBP Programs'!S:S)","v":"County Commissioner Precinct One"}]
[{"$f":"'Data SBP Measures'!$AI3325&\" - \"&'Data SBP Measures'!$U3325","v":"Civil Courts - 122"},{"$f":"'Data SBP Measures'!$AF3325","v":"Number of Cases Disposed"},{"$f":"'Data SBP Measures'!$T3325","v":"722"},{"$f":"'Data SBP Measures'!$U3325&B628","v":"122Number of Cases Disposed"},{"$f":"'Data SBP Measures'!$Y3325","v":"EACH"},null,null,null,null,null,"Civil Courts - 122","Number of Cases Disposed",null,null,null,null,null,null,null,"1671","102","Y","187","County Commissioner Precinct One","EACH","OUTPUT","ADOPTEDBUD",null,null,null,"County Commissioner Precinct One","Number of letters written on behalf of constituents",null,{"$f":"'Data SBP Measures'!$AF628&'Data SBP Measures'!$AE628& \" - \"& 'Data SBP Measures'!$U628","v":"Number of letters written on behalf of constituentsCounty Commissioner Precinct One - 102"},{"$f":"_xlfn.XLOOKUP(VALUE(W628),'Data SBP Programs'!O:O,'Data SBP Programs'!S:S)","v":"County Commissioner Precinct One"}]
[{"$f":"'Data SBP Measures'!$AI3326&\" - \"&'Data SBP Measures'!$U3326","v":"Civil Courts - 122"},{"$f":"'Data SBP Measures'!$AF3326","v":"Number of Cases Disposed"},{"$f":"'Data SBP Measures'!$T3326","v":"722"},{"$f":"'Data SBP Measures'!$U3326&B629","v":"122Number of Cases Disposed"},{"$f":"'Data SBP Measures'!$Y3326","v":"EACH"},null,null,null,null,null,"Civil Courts - 122","Number of Cases Disposed",null,null,null,null,null,null,null,"1672","102","Y","187","County Commissioner Precinct One","EACH","OUTPUT","ADOPTEDBUD",null,null,null,"County Commissioner Precinct One","Number of speeches/presentations given on various topics",null,{"$f":"'Data SBP Measures'!$AF629&'Data SBP Measures'!$AE629& \" - \"& 'Data SBP Measures'!$U629","v":"Number of speeches/presentations given on various topicsCounty Commissioner Precinct One - 102"},{"$f":"_xlfn.XLOOKUP(VALUE(W629),'Data SBP Programs'!O:O,'Data SBP Programs'!S:S)","v":"County Commissioner Precinct One"}]
[{"$f":"'Data SBP Measures'!$AI3327&\" - \"&'Data SBP Measures'!$U3327","v":"Civil Courts - 122"},{"$f":"'Data SBP Measures'!$AF3327","v":"Number of Cases Disposed"},{"$f":"'Data SBP Measures'!$T3327","v":"722"},{"$f":"'Data SBP Measures'!$U3327&B630","v":"122Number of Cases Disposed"},{"$f":"'Data SBP Measures'!$Y3327","v":"EACH"},null,null,null,null,null,"Civil Courts - 122","Number of Cases Disposed",null,null,null,null,null,null,null,"1673","103","Y","188","County Commissioner Precinct Two","PERCENT","OUTPUT","ADOPTEDBUD",null,null,null,"County Commissioner Precinct Two","Percentage of Commissioners Court meetings attended",null,{"$f":"'Data SBP Measures'!$AF630&'Data SBP Measures'!$AE630& \" - \"& 'Data SBP Measures'!$U630","v":"Percentage of Commissioners Court meetings attendedCounty Commissioner Precinct Two - 103"},{"$f":"_xlfn.XLOOKUP(VALUE(W630),'Data SBP Programs'!O:O,'Data SBP Programs'!S:S)","v":"County Commissioner Precinct Two"}]
[{"$f":"'Data SBP Measures'!$AI3328&\" - \"&'Data SBP Measures'!$U3328","v":"Civil Courts - 122"},{"$f":"'Data SBP Measures'!$AF3328","v":"Number of Cases Disposed"},{"$f":"'Data SBP Measures'!$T3328","v":"722"},{"$f":"'Data SBP Measures'!$U3328&B631","v":"122Number of Cases Disposed"},{"$f":"'Data SBP Measures'!$Y3328","v":"EACH"},null,null,null,null,null,"Civil Courts - 122","Number of Cases Disposed",null,null,null,null,null,null,null,"1675","103","Y","188","County Commissioner Precinct Two","EACH","OUTPUT","ADOPTEDBUD",null,null,null,"County Commissioner Precinct Two","Community events and meetings",null,{"$f":"'Data SBP Measures'!$AF631&'Data SBP Measures'!$AE631& \" - \"& 'Data SBP Measures'!$U631","v":"Community events and meetingsCounty Commissioner Precinct Two - 103"},{"$f":"_xlfn.XLOOKUP(VALUE(W631),'Data SBP Programs'!O:O,'Data SBP Programs'!S:S)","v":"County Commissioner Precinct Two"}]
[{"$f":"'Data SBP Measures'!$AI3329&\" - \"&'Data SBP Measures'!$U3329","v":"Civil Courts - 122"},{"$f":"'Data SBP Measures'!$AF3329","v":"Number of Cases Disposed"},{"$f":"'Data SBP Measures'!$T3329","v":"722"},{"$f":"'Data SBP Measures'!$U3329&B632","v":"122Number of Cases Disposed"},{"$f":"'Data SBP Measures'!$Y3329","v":"EACH"},null,null,null,null,null,"Civil Courts - 122","Number of Cases Disposed",null,null,null,null,null,null,null,"1681","105","Y","190","County Commissioner Precinct Four","EACH","OUTPUT","ADOPTEDBUD",null,null,null,"County Commissioner Precinct Four","Quarterly Newsletter",null,{"$f":"'Data SBP Measures'!$AF632&'Data SBP Measures'!$AE632& \" - \"& 'Data SBP Measures'!$U632","v":"Quarterly NewsletterCounty Commissioner Precinct Four - 105"},{"$f":"_xlfn.XLOOKUP(VALUE(W632),'Data SBP Programs'!O:O,'Data SBP Programs'!S:S)","v":"County Commissioner Precinct Four"}]
[{"$f":"'Data SBP Measures'!$AI3330&\" - \"&'Data SBP Measures'!$U3330","v":"Civil Courts - 122"},{"$f":"'Data SBP Measures'!$AF3330","v":"Number of Cases Disposed"},{"$f":"'Data SBP Measures'!$T3330","v":"722"},{"$f":"'Data SBP Measures'!$U3330&B633","v":"122Number of Cases Disposed"},{"$f":"'Data SBP Measures'!$Y3330","v":"EACH"},null,null,null,null,null,"Civil Courts - 122","Number of Cases Disposed",null,null,null,null,null,null,null,"1682","105","Y","190","County Commissioner Precinct Four","EACH","OUTPUT","ADOPTEDBUD",null,null,null,"County Commissioner Precinct Four","# of referrals made to HHS",null,{"$f":"'Data SBP Measures'!$AF633&'Data SBP Measures'!$AE633& \" - \"& 'Data SBP Measures'!$U633","v":"# of referrals made to HHSCounty Commissioner Precinct Four - 105"},{"$f":"_xlfn.XLOOKUP(VALUE(W633),'Data SBP Programs'!O:O,'Data SBP Programs'!S:S)","v":"County Commissioner Precinct Four"}]
[{"$f":"'Data SBP Measures'!$AI3331&\" - \"&'Data SBP Measures'!$U3331","v":"Civil Courts - 122"},{"$f":"'Data SBP Measures'!$AF3331","v":"Number of Cases Disposed"},{"$f":"'Data SBP Measures'!$T3331","v":"722"},{"$f":"'Data SBP Measures'!$U3331&B634","v":"122Number of Cases Disposed"},{"$f":"'Data SBP Measures'!$Y3331","v":"EACH"},null,null,null,null,null,"Civil Courts - 122","Number of Cases Disposed",null,null,null,null,null,null,null,"1683","105","Y","190","County Commissioner Precinct Four","EACH","OUTPUT","ADOPTEDBUD",null,null,null,"County Commissioner Precinct Four","# of referrals made to TNR",null,{"$f":"'Data SBP Measures'!$AF634&'Data SBP Measures'!$AE634& \" - \"& 'Data SBP Measures'!$U634","v":"# of referrals made to TNRCounty Commissioner Precinct Four - 105"},{"$f":"_xlfn.XLOOKUP(VALUE(W634),'Data SBP Programs'!O:O,'Data SBP Programs'!S:S)","v":"County Commissioner Precinct Four"}]
[{"$f":"'Data SBP Measures'!$AI3332&\" - \"&'Data SBP Measures'!$U3332","v":"Civil Courts - 122"},{"$f":"'Data SBP Measures'!$AF3332","v":"Number of Cases Disposed"},{"$f":"'Data SBP Measures'!$T3332","v":"722"},{"$f":"'Data SBP Measures'!$U3332&B635","v":"122Number of Cases Disposed"},{"$f":"'Data SBP Measures'!$Y3332","v":"EACH"},null,null,null,null,null,"Civil Courts - 122","Number of Cases Disposed",null,null,null,null,null,null,null,"1684","105","Y","190","County Commissioner Precinct Four","EACH","OUTPUT","ADOPTEDBUD",null,null,null,"County Commissioner Precinct Four","# of referrals made to other depts within or outside of TC",null,{"$f":"'Data SBP Measures'!$AF635&'Data SBP Measures'!$AE635& \" - \"& 'Data SBP Measures'!$U635","v":"# of referrals made to other depts within or outside of TCCounty Commissioner Precinct Four - 105"},{"$f":"_xlfn.XLOOKUP(VALUE(W635),'Data SBP Programs'!O:O,'Data SBP Programs'!S:S)","v":"County Commissioner Precinct Four"}]
[{"$f":"'Data SBP Measures'!$AI3333&\" - \"&'Data SBP Measures'!$U3333","v":"Civil Courts - 122"},{"$f":"'Data SBP Measures'!$AF3333","v":"Number of Cases Disposed"},{"$f":"'Data SBP Measures'!$T3333","v":"722"},{"$f":"'Data SBP Measures'!$U3333&B636","v":"122Number of Cases Disposed"},{"$f":"'Data SBP Measures'!$Y3333","v":"EACH"},null,null,null,null,null,"Civil Courts - 122","Number of Cases Disposed",null,null,null,null,null,null,null,"1685","105","Y","190","County Commissioner Precinct Four","EACH","OUTPUT","ADOPTEDBUD",null,null,null,"County Commissioner Precinct Four","Neighborhood Metings Established /year",null,{"$f":"'Data SBP Measures'!$AF636&'Data SBP Measures'!$AE636& \" - \"& 'Data SBP Measures'!$U636","v":"Neighborhood Metings Established /yearCounty Commissioner Precinct Four - 105"},{"$f":"_xlfn.XLOOKUP(VALUE(W636),'Data SBP Programs'!O:O,'Data SBP Programs'!S:S)","v":"County Commissioner Precinct Four"}]
[{"$f":"'Data SBP Measures'!$AI3334&\" - \"&'Data SBP Measures'!$U3334","v":"Civil Courts - 122"},{"$f":"'Data SBP Measures'!$AF3334","v":"Number of Cases Disposed"},{"$f":"'Data SBP Measures'!$T3334","v":"722"},{"$f":"'Data SBP Measures'!$U3334&B637","v":"122Number of Cases Disposed"},{"$f":"'Data SBP Measures'!$Y3334","v":"EACH"},null,null,null,null,null,"Civil Courts - 122","Number of Cases Disposed",null,null,null,null,null,null,null,"1686","107","Y","191","County Treasurer","PERCENT","INPUT","ADOPTEDBUD",null,null,null,"County Treasurer","% of receipts deposited within two working days",null,{"$f":"'Data SBP Measures'!$AF637&'Data SBP Measures'!$AE637& \" - \"& 'Data SBP Measures'!$U637","v":"% of receipts deposited within two working daysCounty Treasurer - 107"},{"$f":"_xlfn.XLOOKUP(VALUE(W637),'Data SBP Programs'!O:O,'Data SBP Programs'!S:S)","v":"County Treasurer"}]
[{"$f":"'Data SBP Measures'!$AI3335&\" - \"&'Data SBP Measures'!$U3335","v":"Civil Courts - 122"},{"$f":"'Data SBP Measures'!$AF3335","v":"Number of Cases Disposed"},{"$f":"'Data SBP Measures'!$T3335","v":"722"},{"$f":"'Data SBP Measures'!$U3335&B638","v":"122Number of Cases Disposed"},{"$f":"'Data SBP Measures'!$Y3335","v":"EACH"},null,null,null,null,null,"Civil Courts - 122","Number of Cases Disposed",null,null,null,null,null,null,null,"1687","107","Y","191","County Treasurer","EACH","OUTPUT","ADOPTEDBUD",null,null,null,"County Treasurer","Warrants drawn on controlled disbursement account allowing for immediate use of excess funds for investing",null,{"$f":"'Data SBP Measures'!$AF638&'Data SBP Measures'!$AE638& \" - \"& 'Data SBP Measures'!$U638","v":"Warrants drawn on controlled disbursement account allowing for immediate use of excess funds for investingCounty Treasurer - 107"},{"$f":"_xlfn.XLOOKUP(VALUE(W638),'Data SBP Programs'!O:O,'Data SBP Programs'!S:S)","v":"County Treasurer"}]
[{"$f":"'Data SBP Measures'!$AI3336&\" - \"&'Data SBP Measures'!$U3336","v":"Civil Courts - 122"},{"$f":"'Data SBP Measures'!$AF3336","v":"Number of Cases Disposed"},{"$f":"'Data SBP Measures'!$T3336","v":"722"},{"$f":"'Data SBP Measures'!$U3336&B639","v":"122Number of Cases Disposed"},{"$f":"'Data SBP Measures'!$Y3336","v":"EACH"},null,null,null,null,null,"Civil Courts - 122","Number of Cases Disposed",null,null,null,null,null,null,null,"1688","107","Y","191","County Treasurer","EACH","INPUT","ADOPTEDBUD",null,null,null,"County Treasurer","# of cash receipts processed",null,{"$f":"'Data SBP Measures'!$AF639&'Data SBP Measures'!$AE639& \" - \"& 'Data SBP Measures'!$U639","v":"# of cash receipts processedCounty Treasurer - 107"},{"$f":"_xlfn.XLOOKUP(VALUE(W639),'Data SBP Programs'!O:O,'Data SBP Programs'!S:S)","v":"County Treasurer"}]
[{"$f":"'Data SBP Measures'!$AI3337&\" - \"&'Data SBP Measures'!$U3337","v":"Civil Courts - 122"},{"$f":"'Data SBP Measures'!$AF3337","v":"Number of Cases Disposed"},{"$f":"'Data SBP Measures'!$T3337","v":"722"},{"$f":"'Data SBP Measures'!$U3337&B640","v":"122Number of Cases Disposed"},{"$f":"'Data SBP Measures'!$Y3337","v":"EACH"},null,null,null,null,null,"Civil Courts - 122","Number of Cases Disposed",null,null,null,null,null,null,null,"1689","107","Y","191","County Treasurer","EACH","OUTPUT","ADOPTEDBUD",null,null,null,"County Treasurer","# of warrants (jury,claims) processed",null,{"$f":"'Data SBP Measures'!$AF640&'Data SBP Measures'!$AE640& \" - \"& 'Data SBP Measures'!$U640","v":"# of warrants (jury,claims) processedCounty Treasurer - 107"},{"$f":"_xlfn.XLOOKUP(VALUE(W640),'Data SBP Programs'!O:O,'Data SBP Programs'!S:S)","v":"County Treasurer"}]
[{"$f":"'Data SBP Measures'!$AI3338&\" - \"&'Data SBP Measures'!$U3338","v":"Civil Courts - 122"},{"$f":"'Data SBP Measures'!$AF3338","v":"Number of Cases Disposed"},{"$f":"'Data SBP Measures'!$T3338","v":"722"},{"$f":"'Data SBP Measures'!$U3338&B641","v":"122Number of Cases Disposed"},{"$f":"'Data SBP Measures'!$Y3338","v":"EACH"},null,null,null,null,null,"Civil Courts - 122","Number of Cases Disposed",null,null,null,null,null,null,null,"1690","107","Y","191","County Treasurer","DOLLARS","EFFICIENCY","ADOPTEDBUD",null,null,null,"County Treasurer","Service fee retained for prompt filing of state reports",null,{"$f":"'Data SBP Measures'!$AF641&'Data SBP Measures'!$AE641& \" - \"& 'Data SBP Measures'!$U641","v":"Service fee retained for prompt filing of state reportsCounty Treasurer - 107"},{"$f":"_xlfn.XLOOKUP(VALUE(W641),'Data SBP Programs'!O:O,'Data SBP Programs'!S:S)","v":"County Treasurer"}]
[{"$f":"'Data SBP Measures'!$AI3339&\" - \"&'Data SBP Measures'!$U3339","v":"Civil Courts - 122"},{"$f":"'Data SBP Measures'!$AF3339","v":"Number of Cases Disposed"},{"$f":"'Data SBP Measures'!$T3339","v":"722"},{"$f":"'Data SBP Measures'!$U3339&B642","v":"122Number of Cases Disposed"},{"$f":"'Data SBP Measures'!$Y3339","v":"EACH"},null,null,null,null,null,"Civil Courts - 122","Number of Cases Disposed",null,null,null,null,null,null,null,"1691","107","Y","191","County Treasurer","EACH","OUTPUT","ADOPTEDBUD",null,null,null,"County Treasurer","# of reports filed",null,{"$f":"'Data SBP Measures'!$AF642&'Data SBP Measures'!$AE642& \" - \"& 'Data SBP Measures'!$U642","v":"# of reports filedCounty Treasurer - 107"},{"$f":"_xlfn.XLOOKUP(VALUE(W642),'Data SBP Programs'!O:O,'Data SBP Programs'!S:S)","v":"County Treasurer"}]
[{"$f":"'Data SBP Measures'!$AI3340&\" - \"&'Data SBP Measures'!$U3340","v":"Civil Courts - 122"},{"$f":"'Data SBP Measures'!$AF3340","v":"Number of Cases Disposed"},{"$f":"'Data SBP Measures'!$T3340","v":"722"},{"$f":"'Data SBP Measures'!$U3340&B643","v":"122Number of Cases Disposed"},{"$f":"'Data SBP Measures'!$Y3340","v":"EACH"},null,null,null,null,null,"Civil Courts - 122","Number of Cases Disposed",null,null,null,null,null,null,null,"1692","107","Y","191","County Treasurer","PERCENT","EFFICIENCY","ADOPTEDBUD",null,null,null,"County Treasurer","% by which County assets are collateralized",null,{"$f":"'Data SBP Measures'!$AF643&'Data SBP Measures'!$AE643& \" - \"& 'Data SBP Measures'!$U643","v":"% by which County assets are collateralizedCounty Treasurer - 107"},{"$f":"_xlfn.XLOOKUP(VALUE(W643),'Data SBP Programs'!O:O,'Data SBP Programs'!S:S)","v":"County Treasurer"}]
[{"$f":"'Data SBP Measures'!$AI3341&\" - \"&'Data SBP Measures'!$U3341","v":"Civil Courts - 122"},{"$f":"'Data SBP Measures'!$AF3341","v":"Number of Cases Disposed"},{"$f":"'Data SBP Measures'!$T3341","v":"722"},{"$f":"'Data SBP Measures'!$U3341&B644","v":"122Number of Cases Disposed"},{"$f":"'Data SBP Measures'!$Y3341","v":"EACH"},null,null,null,null,null,"Civil Courts - 122","Number of Cases Disposed",null,null,null,null,null,null,null,"1693","107","Y","191","County Treasurer","EACH","OUTPUT","ADOPTEDBUD",null,null,null,"County Treasurer","# of bank accounts requiring collateral",null,{"$f":"'Data SBP Measures'!$AF644&'Data SBP Measures'!$AE644& \" - \"& 'Data SBP Measures'!$U644","v":"# of bank accounts requiring collateralCounty Treasurer - 107"},{"$f":"_xlfn.XLOOKUP(VALUE(W644),'Data SBP Programs'!O:O,'Data SBP Programs'!S:S)","v":"County Treasurer"}]
[{"$f":"'Data SBP Measures'!$AI3342&\" - \"&'Data SBP Measures'!$U3342","v":"Civil Courts - 122"},{"$f":"'Data SBP Measures'!$AF3342","v":"Number of Cases Disposed"},{"$f":"'Data SBP Measures'!$T3342","v":"722"},{"$f":"'Data SBP Measures'!$U3342&B645","v":"122Number of Cases Disposed"},{"$f":"'Data SBP Measures'!$Y3342","v":"EACH"},null,null,null,null,null,"Civil Courts - 122","Number of Cases Disposed",null,null,null,null,null,null,null,"1694","110","Y","192","Intergovernmental Relations","PERCENT","INPUT","ADOPTEDBUD",null,null,null,"Intergovernmental Relations","Percentage of filed bills and constitutional amendments tracked",null,{"$f":"'Data SBP Measures'!$AF645&'Data SBP Measures'!$AE645& \" - \"& 'Data SBP Measures'!$U645","v":"Percentage of filed bills and constitutional amendments trackedIntergovernmental Relations - 110"},{"$f":"_xlfn.XLOOKUP(VALUE(W645),'Data SBP Programs'!O:O,'Data SBP Programs'!S:S)","v":"Intergovernmental Relations"}]
[{"$f":"'Data SBP Measures'!$AI3343&\" - \"&'Data SBP Measures'!$U3343","v":"Civil Courts - 122"},{"$f":"'Data SBP Measures'!$AF3343","v":"Number of Cases Disposed"},{"$f":"'Data SBP Measures'!$T3343","v":"722"},{"$f":"'Data SBP Measures'!$U3343&B646","v":"122Number of Cases Disposed"},{"$f":"'Data SBP Measures'!$Y3343","v":"EACH"},null,null,null,null,null,"Civil Courts - 122","Number of Cases Disposed",null,null,null,null,null,null,null,"1695","110","Y","192","Intergovernmental Relations","PERCENT","OUTPUT","ADOPTEDBUD",null,null,null,"Intergovernmental Relations","Percentage of filed bills and JRs tracked",null,{"$f":"'Data SBP Measures'!$AF646&'Data SBP Measures'!$AE646& \" - \"& 'Data SBP Measures'!$U646","v":"Percentage of filed bills and JRs trackedIntergovernmental Relations - 110"},{"$f":"_xlfn.XLOOKUP(VALUE(W646),'Data SBP Programs'!O:O,'Data SBP Programs'!S:S)","v":"Intergovernmental Relations"}]
[{"$f":"'Data SBP Measures'!$AI3344&\" - \"&'Data SBP Measures'!$U3344","v":"Civil Courts - 122"},{"$f":"'Data SBP Measures'!$AF3344","v":"Number of Cases Disposed"},{"$f":"'Data SBP Measures'!$T3344","v":"722"},{"$f":"'Data SBP Measures'!$U3344&B647","v":"122Number of Cases Disposed"},{"$f":"'Data SBP Measures'!$Y3344","v":"EACH"},null,null,null,null,null,"Civil Courts - 122","Number of Cases Disposed",null,null,null,null,null,null,null,"1696","110","Y","192","Intergovernmental Relations","PERCENT","OUTPUT","ADOPTEDBUD",null,null,null,"Intergovernmental Relations","Percentage of ATLAS assignments completed by analysts",null,{"$f":"'Data SBP Measures'!$AF647&'Data SBP Measures'!$AE647& \" - \"& 'Data SBP Measures'!$U647","v":"Percentage of ATLAS assignments completed by analystsIntergovernmental Relations - 110"},{"$f":"_xlfn.XLOOKUP(VALUE(W647),'Data SBP Programs'!O:O,'Data SBP Programs'!S:S)","v":"Intergovernmental Relations"}]
[{"$f":"'Data SBP Measures'!$AI3345&\" - \"&'Data SBP Measures'!$U3345","v":"Civil Courts - 122"},{"$f":"'Data SBP Measures'!$AF3345","v":"Number of Cases Disposed"},{"$f":"'Data SBP Measures'!$T3345","v":"722"},{"$f":"'Data SBP Measures'!$U3345&B648","v":"122Number of Cases Disposed"},{"$f":"'Data SBP Measures'!$Y3345","v":"EACH"},null,null,null,null,null,"Civil Courts - 122","Number of Cases Disposed",null,null,null,null,null,null,null,"1697","110","Y","192","Intergovernmental Relations","EACH","INPUT","ADOPTEDBUD",null,null,null,"Intergovernmental Relations","Number of Legislative Priorities set by Court",null,{"$f":"'Data SBP Measures'!$AF648&'Data SBP Measures'!$AE648& \" - \"& 'Data SBP Measures'!$U648","v":"Number of Legislative Priorities set by CourtIntergovernmental Relations - 110"},{"$f":"_xlfn.XLOOKUP(VALUE(W648),'Data SBP Programs'!O:O,'Data SBP Programs'!S:S)","v":"Intergovernmental Relations"}]
[{"$f":"'Data SBP Measures'!$AI3346&\" - \"&'Data SBP Measures'!$U3346","v":"Civil Courts - 122"},{"$f":"'Data SBP Measures'!$AF3346","v":"Number of Cases Disposed"},{"$f":"'Data SBP Measures'!$T3346","v":"722"},{"$f":"'Data SBP Measures'!$U3346&B649","v":"122Number of Cases Disposed"},{"$f":"'Data SBP Measures'!$Y3346","v":"EACH"},null,null,null,null,null,"Civil Courts - 122","Number of Cases Disposed",null,null,null,null,null,null,null,"1698","110","Y","192","Intergovernmental Relations","PERCENT","OUTCOME","ADOPTEDBUD",null,null,null,"Intergovernmental Relations","Percentage of Legislative Priorities accomplished",null,{"$f":"'Data SBP Measures'!$AF649&'Data SBP Measures'!$AE649& \" - \"& 'Data SBP Measures'!$U649","v":"Percentage of Legislative Priorities accomplishedIntergovernmental Relations - 110"},{"$f":"_xlfn.XLOOKUP(VALUE(W649),'Data SBP Programs'!O:O,'Data SBP Programs'!S:S)","v":"Intergovernmental Relations"}]
[{"$f":"'Data SBP Measures'!$AI3347&\" - \"&'Data SBP Measures'!$U3347","v":"Civil Courts - 122"},{"$f":"'Data SBP Measures'!$AF3347","v":"Number of Cases Disposed"},{"$f":"'Data SBP Measures'!$T3347","v":"722"},{"$f":"'Data SBP Measures'!$U3347&B650","v":"122Number of Cases Disposed"},{"$f":"'Data SBP Measures'!$Y3347","v":"EACH"},null,null,null,null,null,"Civil Courts - 122","Number of Cases Disposed",null,null,null,null,null,null,null,"1699","110","Y","192","Intergovernmental Relations","EACH","INPUT","ADOPTEDBUD",null,null,null,"Intergovernmental Relations","Number of Interim Charges Tracked",null,{"$f":"'Data SBP Measures'!$AF650&'Data SBP Measures'!$AE650& \" - \"& 'Data SBP Measures'!$U650","v":"Number of Interim Charges TrackedIntergovernmental Relations - 110"},{"$f":"_xlfn.XLOOKUP(VALUE(W650),'Data SBP Programs'!O:O,'Data SBP Programs'!S:S)","v":"Intergovernmental Relations"}]
[{"$f":"'Data SBP Measures'!$AI3348&\" - \"&'Data SBP Measures'!$U3348","v":"Civil Courts - 122"},{"$f":"'Data SBP Measures'!$AF3348","v":"Number of Cases Disposed"},{"$f":"'Data SBP Measures'!$T3348","v":"722"},{"$f":"'Data SBP Measures'!$U3348&B651","v":"122Number of Cases Disposed"},{"$f":"'Data SBP Measures'!$Y3348","v":"EACH"},null,null,null,null,null,"Civil Courts - 122","Number of Cases Disposed",null,null,null,null,null,null,null,"17","106","Y","178","Auditor's Office","EACH","OUTCOME","ADOPTEDBUD",null,null,null,"Auditor's Office","# of grant reports",null,{"$f":"'Data SBP Measures'!$AF651&'Data SBP Measures'!$AE651& \" - \"& 'Data SBP Measures'!$U651","v":"# of grant reportsAuditor's Office - 106"},{"$f":"_xlfn.XLOOKUP(VALUE(W651),'Data SBP Programs'!O:O,'Data SBP Programs'!S:S)","v":"Auditor's Office"}]
[{"$f":"'Data SBP Measures'!$AI3349&\" - \"&'Data SBP Measures'!$U3349","v":"Civil Courts - 122"},{"$f":"'Data SBP Measures'!$AF3349","v":"Number of Cases Disposed"},{"$f":"'Data SBP Measures'!$T3349","v":"722"},{"$f":"'Data SBP Measures'!$U3349&B652","v":"122Number of Cases Disposed"},{"$f":"'Data SBP Measures'!$Y3349","v":"EACH"},null,null,null,null,null,"Civil Courts - 122","Number of Cases Disposed",null,null,null,null,null,null,null,"1700","110","Y","192","Intergovernmental Relations","PERCENT","OUTPUT","ADOPTEDBUD",null,null,null,"Intergovernmental Relations","Percentage of Interim Charges Tracked",null,{"$f":"'Data SBP Measures'!$AF652&'Data SBP Measures'!$AE652& \" - \"& 'Data SBP Measures'!$U652","v":"Percentage of Interim Charges TrackedIntergovernmental Relations - 110"},{"$f":"_xlfn.XLOOKUP(VALUE(W652),'Data SBP Programs'!O:O,'Data SBP Programs'!S:S)","v":"Intergovernmental Relations"}]
[{"$f":"'Data SBP Measures'!$AI3350&\" - \"&'Data SBP Measures'!$U3350","v":"Civil Courts - 122"},{"$f":"'Data SBP Measures'!$AF3350","v":"Number of Cases Disposed"},{"$f":"'Data SBP Measures'!$T3350","v":"722"},{"$f":"'Data SBP Measures'!$U3350&B653","v":"122Number of Cases Disposed"},{"$f":"'Data SBP Measures'!$Y3350","v":"EACH"},null,null,null,null,null,"Civil Courts - 122","Number of Cases Disposed",null,null,null,null,null,null,null,"1701","110","Y","192","Intergovernmental Relations","EACH","OUTPUT","ADOPTEDBUD",null,null,null,"Intergovernmental Relations","Number of Interim Cmte. Mtgs. Monitored",null,{"$f":"'Data SBP Measures'!$AF653&'Data SBP Measures'!$AE653& \" - \"& 'Data SBP Measures'!$U653","v":"Number of Interim Cmte. Mtgs. MonitoredIntergovernmental Relations - 110"},{"$f":"_xlfn.XLOOKUP(VALUE(W653),'Data SBP Programs'!O:O,'Data SBP Programs'!S:S)","v":"Intergovernmental Relations"}]
[{"$f":"'Data SBP Measures'!$AI3351&\" - \"&'Data SBP Measures'!$U3351","v":"Civil Courts - 122"},{"$f":"'Data SBP Measures'!$AF3351","v":"Number of Cases Disposed"},{"$f":"'Data SBP Measures'!$T3351","v":"722"},{"$f":"'Data SBP Measures'!$U3351&B654","v":"122Number of Cases Disposed"},{"$f":"'Data SBP Measures'!$Y3351","v":"EACH"},null,null,null,null,null,"Civil Courts - 122","Number of Cases Disposed",null,null,null,null,null,null,null,"1702","110","Y","192","Intergovernmental Relations","EACH","OUTPUT","ADOPTEDBUD",null,null,null,"Intergovernmental Relations","Number of Interim Cmte. Mtgs. Testified",null,{"$f":"'Data SBP Measures'!$AF654&'Data SBP Measures'!$AE654& \" - \"& 'Data SBP Measures'!$U654","v":"Number of Interim Cmte. Mtgs. TestifiedIntergovernmental Relations - 110"},{"$f":"_xlfn.XLOOKUP(VALUE(W654),'Data SBP Programs'!O:O,'Data SBP Programs'!S:S)","v":"Intergovernmental Relations"}]
[{"$f":"'Data SBP Measures'!$AI3352&\" - \"&'Data SBP Measures'!$U3352","v":"Civil Courts - 122"},{"$f":"'Data SBP Measures'!$AF3352","v":"Number of Cases Disposed"},{"$f":"'Data SBP Measures'!$T3352","v":"722"},{"$f":"'Data SBP Measures'!$U3352&B655","v":"122Number of Cases Disposed"},{"$f":"'Data SBP Measures'!$Y3352","v":"EACH"},null,null,null,null,null,"Civil Courts - 122","Number of Cases Disposed",null,null,null,null,null,null,null,"1703","110","Y","192","Intergovernmental Relations","EACH","OUTPUT","ADOPTEDBUD",null,null,null,"Intergovernmental Relations","Number of mtgs. of Intgovtal. Reltns. liaisons",null,{"$f":"'Data SBP Measures'!$AF655&'Data SBP Measures'!$AE655& \" - \"& 'Data SBP Measures'!$U655","v":"Number of mtgs. of Intgovtal. Reltns. liaisonsIntergovernmental Relations - 110"},{"$f":"_xlfn.XLOOKUP(VALUE(W655),'Data SBP Programs'!O:O,'Data SBP Programs'!S:S)","v":"Intergovernmental Relations"}]
[{"$f":"'Data SBP Measures'!$AI3295&\" - \"&'Data SBP Measures'!$U3295","v":"Civil Courts - 122"},{"$f":"'Data SBP Measures'!$AF3295","v":"Number of Cases Filed"},{"$f":"'Data SBP Measures'!$T3295","v":"721"},{"$f":"'Data SBP Measures'!$U3295&B656","v":"122Number of Cases Filed"},{"$f":"'Data SBP Measures'!$Y3295","v":"EACH"},null,null,null,null,null,"Civil Courts - 122","Number of Cases Filed",null,null,null,null,null,null,null,"1704","110","Y","192","Intergovernmental Relations","EACH","OUTCOME","ADOPTEDBUD",null,null,null,"Intergovernmental Relations","Outreach meetings with other institutions",null,{"$f":"'Data SBP Measures'!$AF656&'Data SBP Measures'!$AE656& \" - \"& 'Data SBP Measures'!$U656","v":"Outreach meetings with other institutionsIntergovernmental Relations - 110"},{"$f":"_xlfn.XLOOKUP(VALUE(W656),'Data SBP Programs'!O:O,'Data SBP Programs'!S:S)","v":"Intergovernmental Relations"}]
[{"$f":"'Data SBP Measures'!$AI3296&\" - \"&'Data SBP Measures'!$U3296","v":"Civil Courts - 122"},{"$f":"'Data SBP Measures'!$AF3296","v":"Number of Cases Filed"},{"$f":"'Data SBP Measures'!$T3296","v":"721"},{"$f":"'Data SBP Measures'!$U3296&B657","v":"122Number of Cases Filed"},{"$f":"'Data SBP Measures'!$Y3296","v":"EACH"},null,null,null,null,null,"Civil Courts - 122","Number of Cases Filed",null,null,null,null,null,null,null,"1705","110","Y","193","Regional Policy Development","EACH","OUTPUT","ADOPTEDBUD",null,null,null,"Regional Policy Development","Number of intergovernmental body meetings attended",null,{"$f":"'Data SBP Measures'!$AF657&'Data SBP Measures'!$AE657& \" - \"& 'Data SBP Measures'!$U657","v":"Number of intergovernmental body meetings attendedRegional Policy Development - 110"},{"$f":"_xlfn.XLOOKUP(VALUE(W657),'Data SBP Programs'!O:O,'Data SBP Programs'!S:S)","v":"Regional Policy Development"}]
[{"$f":"'Data SBP Measures'!$AI3297&\" - \"&'Data SBP Measures'!$U3297","v":"Civil Courts - 122"},{"$f":"'Data SBP Measures'!$AF3297","v":"Number of Cases Filed"},{"$f":"'Data SBP Measures'!$T3297","v":"721"},{"$f":"'Data SBP Measures'!$U3297&B658","v":"122Number of Cases Filed"},{"$f":"'Data SBP Measures'!$Y3297","v":"EACH"},null,null,null,null,null,"Civil Courts - 122","Number of Cases Filed",null,null,null,null,null,null,null,"1706","110","Y","193","Regional Policy Development","EACH","OUTPUT","NEITHER",null,null,null,"Regional Policy Development","Number of governing body meetings attended",null,{"$f":"'Data SBP Measures'!$AF658&'Data SBP Measures'!$AE658& \" - \"& 'Data SBP Measures'!$U658","v":"Number of governing body meetings attendedRegional Policy Development - 110"},{"$f":"_xlfn.XLOOKUP(VALUE(W658),'Data SBP Programs'!O:O,'Data SBP Programs'!S:S)","v":"Regional Policy Development"}]
[{"$f":"'Data SBP Measures'!$AI3298&\" - \"&'Data SBP Measures'!$U3298","v":"Civil Courts - 122"},{"$f":"'Data SBP Measures'!$AF3298","v":"Number of Cases Filed"},{"$f":"'Data SBP Measures'!$T3298","v":"721"},{"$f":"'Data SBP Measures'!$U3298&B659","v":"122Number of Cases Filed"},{"$f":"'Data SBP Measures'!$Y3298","v":"EACH"},null,null,null,null,null,"Civil Courts - 122","Number of Cases Filed",null,null,null,null,null,null,null,"1707","110","Y","193","Regional Policy Development","EACH","OUTPUT","ADOPTEDBUD",null,null,null,"Regional Policy Development","Number of meetings with key elected and civic leaders",null,{"$f":"'Data SBP Measures'!$AF659&'Data SBP Measures'!$AE659& \" - \"& 'Data SBP Measures'!$U659","v":"Number of meetings with key elected and civic leadersRegional Policy Development - 110"},{"$f":"_xlfn.XLOOKUP(VALUE(W659),'Data SBP Programs'!O:O,'Data SBP Programs'!S:S)","v":"Regional Policy Development"}]
[{"$f":"'Data SBP Measures'!$AI3299&\" - \"&'Data SBP Measures'!$U3299","v":"Civil Courts - 122"},{"$f":"'Data SBP Measures'!$AF3299","v":"Number of Cases Filed"},{"$f":"'Data SBP Measures'!$T3299","v":"721"},{"$f":"'Data SBP Measures'!$U3299&B660","v":"122Number of Cases Filed"},{"$f":"'Data SBP Measures'!$Y3299","v":"EACH"},null,null,null,null,null,"Civil Courts - 122","Number of Cases Filed",null,null,null,null,null,null,null,"1708","110","Y","193","Regional Policy Development","EACH","OUTPUT","ADOPTEDBUD",null,null,null,"Regional Policy Development","Number of regional planning documents drafted and adopted",null,{"$f":"'Data SBP Measures'!$AF660&'Data SBP Measures'!$AE660& \" - \"& 'Data SBP Measures'!$U660","v":"Number of regional planning documents drafted and adoptedRegional Policy Development - 110"},{"$f":"_xlfn.XLOOKUP(VALUE(W660),'Data SBP Programs'!O:O,'Data SBP Programs'!S:S)","v":"Regional Policy Development"}]
[{"$f":"'Data SBP Measures'!$AI3300&\" - \"&'Data SBP Measures'!$U3300","v":"Civil Courts - 122"},{"$f":"'Data SBP Measures'!$AF3300","v":"Number of Cases Filed"},{"$f":"'Data SBP Measures'!$T3300","v":"721"},{"$f":"'Data SBP Measures'!$U3300&B661","v":"122Number of Cases Filed"},{"$f":"'Data SBP Measures'!$Y3300","v":"EACH"},null,null,null,null,null,"Civil Courts - 122","Number of Cases Filed",null,null,null,null,null,null,null,"1709","110","Y","194","Leadership Recruitment & Appointment","EACH","INPUT","ADOPTEDBUD",null,null,null,"Leadership Recruitment & Appointment","Number of appointments/ reappointments processed",null,{"$f":"'Data SBP Measures'!$AF661&'Data SBP Measures'!$AE661& \" - \"& 'Data SBP Measures'!$U661","v":"Number of appointments/ reappointments processedLeadership Recruitment & Appointment - 110"},{"$f":"_xlfn.XLOOKUP(VALUE(W661),'Data SBP Programs'!O:O,'Data SBP Programs'!S:S)","v":"Leadership Recruitment & Appointment"}]
[{"$f":"'Data SBP Measures'!$AI3301&\" - \"&'Data SBP Measures'!$U3301","v":"Civil Courts - 122"},{"$f":"'Data SBP Measures'!$AF3301","v":"Number of Cases Filed"},{"$f":"'Data SBP Measures'!$T3301","v":"721"},{"$f":"'Data SBP Measures'!$U3301&B662","v":"122Number of Cases Filed"},{"$f":"'Data SBP Measures'!$Y3301","v":"EACH"},null,null,null,null,null,"Civil Courts - 122","Number of Cases Filed",null,null,null,null,null,null,null,"1710","110","Y","194","Leadership Recruitment & Appointment","EACH","OUTPUT","ADOPTEDBUD",null,null,null,"Leadership Recruitment & Appointment","Number of UAP Call for Applications issued",null,{"$f":"'Data SBP Measures'!$AF662&'Data SBP Measures'!$AE662& \" - \"& 'Data SBP Measures'!$U662","v":"Number of UAP Call for Applications issuedLeadership Recruitment & Appointment - 110"},{"$f":"_xlfn.XLOOKUP(VALUE(W662),'Data SBP Programs'!O:O,'Data SBP Programs'!S:S)","v":"Leadership Recruitment & Appointment"}]
[{"$f":"'Data SBP Measures'!$AI3302&\" - \"&'Data SBP Measures'!$U3302","v":"Civil Courts - 122"},{"$f":"'Data SBP Measures'!$AF3302","v":"Number of Cases Filed"},{"$f":"'Data SBP Measures'!$T3302","v":"721"},{"$f":"'Data SBP Measures'!$U3302&B663","v":"122Number of Cases Filed"},{"$f":"'Data SBP Measures'!$Y3302","v":"EACH"},null,null,null,null,null,"Civil Courts - 122","Number of Cases Filed",null,null,null,null,null,null,null,"1711","110","Y","194","Leadership Recruitment & Appointment","EACH","OUTCOME","ADOPTEDBUD",null,null,null,"Leadership Recruitment & Appointment","Number of applications received",null,{"$f":"'Data SBP Measures'!$AF663&'Data SBP Measures'!$AE663& \" - \"& 'Data SBP Measures'!$U663","v":"Number of applications receivedLeadership Recruitment & Appointment - 110"},{"$f":"_xlfn.XLOOKUP(VALUE(W663),'Data SBP Programs'!O:O,'Data SBP Programs'!S:S)","v":"Leadership Recruitment & Appointment"}]
[{"$f":"'Data SBP Measures'!$AI3303&\" - \"&'Data SBP Measures'!$U3303","v":"Civil Courts - 122"},{"$f":"'Data SBP Measures'!$AF3303","v":"Number of Cases Filed"},{"$f":"'Data SBP Measures'!$T3303","v":"721"},{"$f":"'Data SBP Measures'!$U3303&B664","v":"122Number of Cases Filed"},{"$f":"'Data SBP Measures'!$Y3303","v":"EACH"},null,null,null,null,null,"Civil Courts - 122","Number of Cases Filed",null,null,null,null,null,null,null,"1712","110","Y","194","Leadership Recruitment & Appointment","EACH","INPUT","ADOPTEDBUD",null,null,null,"Leadership Recruitment & Appointment","Number of Court appointments facilitated",null,{"$f":"'Data SBP Measures'!$AF664&'Data SBP Measures'!$AE664& \" - \"& 'Data SBP Measures'!$U664","v":"Number of Court appointments facilitatedLeadership Recruitment & Appointment - 110"},{"$f":"_xlfn.XLOOKUP(VALUE(W664),'Data SBP Programs'!O:O,'Data SBP Programs'!S:S)","v":"Leadership Recruitment & Appointment"}]
[{"$f":"'Data SBP Measures'!$AI3304&\" - \"&'Data SBP Measures'!$U3304","v":"Civil Courts - 122"},{"$f":"'Data SBP Measures'!$AF3304","v":"Number of Cases Filed"},{"$f":"'Data SBP Measures'!$T3304","v":"721"},{"$f":"'Data SBP Measures'!$U3304&B665","v":"122Number of Cases Filed"},{"$f":"'Data SBP Measures'!$Y3304","v":"EACH"},null,null,null,null,null,"Civil Courts - 122","Number of Cases Filed",null,null,null,null,null,null,null,"1713","111","Y","195","HR Compensation","EACH","OUTPUT","ADOPTEDBUD",null,null,null,"HR Compensation","# of Job Titles Benchmarked",null,{"$f":"'Data SBP Measures'!$AF665&'Data SBP Measures'!$AE665& \" - \"& 'Data SBP Measures'!$U665","v":"# of Job Titles BenchmarkedHR Compensation - 111"},{"$f":"_xlfn.XLOOKUP(VALUE(W665),'Data SBP Programs'!O:O,'Data SBP Programs'!S:S)","v":"HR Compensation"}]
[{"$f":"'Data SBP Measures'!$AI3305&\" - \"&'Data SBP Measures'!$U3305","v":"Civil Courts - 122"},{"$f":"'Data SBP Measures'!$AF3305","v":"Number of Cases Filed"},{"$f":"'Data SBP Measures'!$T3305","v":"721"},{"$f":"'Data SBP Measures'!$U3305&B666","v":"122Number of Cases Filed"},{"$f":"'Data SBP Measures'!$Y3305","v":"EACH"},null,null,null,null,null,"Civil Courts - 122","Number of Cases Filed",null,null,null,null,null,null,null,"1716","111","Y","198","Risk Management Self Insurance Fund","EACH","INPUT","ADOPTEDBUD",null,null,null,"Risk Management Self Insurance Fund","# Workers Comp Claims",null,{"$f":"'Data SBP Measures'!$AF666&'Data SBP Measures'!$AE666& \" - \"& 'Data SBP Measures'!$U666","v":"# Workers Comp ClaimsRisk Management Self Insurance Fund - 111"},{"$f":"_xlfn.XLOOKUP(VALUE(W666),'Data SBP Programs'!O:O,'Data SBP Programs'!S:S)","v":"Risk Management Self Insurance Fund"}]
[{"$f":"'Data SBP Measures'!$AI3306&\" - \"&'Data SBP Measures'!$U3306","v":"Civil Courts - 122"},{"$f":"'Data SBP Measures'!$AF3306","v":"Number of Cases Filed"},{"$f":"'Data SBP Measures'!$T3306","v":"721"},{"$f":"'Data SBP Measures'!$U3306&B667","v":"122Number of Cases Filed"},{"$f":"'Data SBP Measures'!$Y3306","v":"EACH"},null,null,null,null,null,"Civil Courts - 122","Number of Cases Filed",null,null,null,null,null,null,null,"1716","111","Y","198","Risk Management Self Insurance Fund","EACH","INPUT","ADOPTEDBUD",null,null,null,"Risk Management Self Insurance Fund","# Workers Comp Claims",null,{"$f":"'Data SBP Measures'!$AF667&'Data SBP Measures'!$AE667& \" - \"& 'Data SBP Measures'!$U667","v":"# Workers Comp ClaimsRisk Management Self Insurance Fund - 111"},{"$f":"_xlfn.XLOOKUP(VALUE(W667),'Data SBP Programs'!O:O,'Data SBP Programs'!S:S)","v":"Risk Management Self Insurance Fund"}]
[{"$f":"'Data SBP Measures'!$AI3307&\" - \"&'Data SBP Measures'!$U3307","v":"Civil Courts - 122"},{"$f":"'Data SBP Measures'!$AF3307","v":"Number of Cases Filed"},{"$f":"'Data SBP Measures'!$T3307","v":"721"},{"$f":"'Data SBP Measures'!$U3307&B668","v":"122Number of Cases Filed"},{"$f":"'Data SBP Measures'!$Y3307","v":"EACH"},null,null,null,null,null,"Civil Courts - 122","Number of Cases Filed",null,null,null,null,null,null,null,"1716","111","Y","198","Risk Management Self Insurance Fund","EACH","INPUT","ADOPTEDBUD",null,null,null,"Risk Management Self Insurance Fund","# Workers Comp Claims",null,{"$f":"'Data SBP Measures'!$AF668&'Data SBP Measures'!$AE668& \" - \"& 'Data SBP Measures'!$U668","v":"# Workers Comp ClaimsRisk Management Self Insurance Fund - 111"},{"$f":"_xlfn.XLOOKUP(VALUE(W668),'Data SBP Programs'!O:O,'Data SBP Programs'!S:S)","v":"Risk Management Self Insurance Fund"}]
[{"$f":"'Data SBP Measures'!$AI3308&\" - \"&'Data SBP Measures'!$U3308","v":"Civil Courts - 122"},{"$f":"'Data SBP Measures'!$AF3308","v":"Number of Cases Filed"},{"$f":"'Data SBP Measures'!$T3308","v":"721"},{"$f":"'Data SBP Measures'!$U3308&B669","v":"122Number of Cases Filed"},{"$f":"'Data SBP Measures'!$Y3308","v":"EACH"},null,null,null,null,null,"Civil Courts - 122","Number of Cases Filed",null,null,null,null,null,null,null,"1717","111","Y","198","Risk Management Self Insurance Fund","EACH","INPUT","ADOPTEDBUD",null,null,null,"Risk Management Self Insurance Fund","# Workers Comp Claims Report only",null,{"$f":"'Data SBP Measures'!$AF669&'Data SBP Measures'!$AE669& \" - \"& 'Data SBP Measures'!$U669","v":"# Workers Comp Claims Report onlyRisk Management Self Insurance Fund - 111"},{"$f":"_xlfn.XLOOKUP(VALUE(W669),'Data SBP Programs'!O:O,'Data SBP Programs'!S:S)","v":"Risk Management Self Insurance Fund"}]
[{"$f":"'Data SBP Measures'!$AI3309&\" - \"&'Data SBP Measures'!$U3309","v":"Civil Courts - 122"},{"$f":"'Data SBP Measures'!$AF3309","v":"Number of Cases Filed"},{"$f":"'Data SBP Measures'!$T3309","v":"721"},{"$f":"'Data SBP Measures'!$U3309&B670","v":"122Number of Cases Filed"},{"$f":"'Data SBP Measures'!$Y3309","v":"EACH"},null,null,null,null,null,"Civil Courts - 122","Number of Cases Filed",null,null,null,null,null,null,null,"1717","111","Y","198","Risk Management Self Insurance Fund","EACH","INPUT","ADOPTEDBUD",null,null,null,"Risk Management Self Insurance Fund","# Workers Comp Claims Report only",null,{"$f":"'Data SBP Measures'!$AF670&'Data SBP Measures'!$AE670& \" - \"& 'Data SBP Measures'!$U670","v":"# Workers Comp Claims Report onlyRisk Management Self Insurance Fund - 111"},{"$f":"_xlfn.XLOOKUP(VALUE(W670),'Data SBP Programs'!O:O,'Data SBP Programs'!S:S)","v":"Risk Management Self Insurance Fund"}]
[{"$f":"'Data SBP Measures'!$AI3310&\" - \"&'Data SBP Measures'!$U3310","v":"Civil Courts - 122"},{"$f":"'Data SBP Measures'!$AF3310","v":"Number of Cases Filed"},{"$f":"'Data SBP Measures'!$T3310","v":"721"},{"$f":"'Data SBP Measures'!$U3310&B671","v":"122Number of Cases Filed"},{"$f":"'Data SBP Measures'!$Y3310","v":"EACH"},null,null,null,null,null,"Civil Courts - 122","Number of Cases Filed",null,null,null,null,null,null,null,"1717","111","Y","198","Risk Management Self Insurance Fund","EACH","INPUT","ADOPTEDBUD",null,null,null,"Risk Management Self Insurance Fund","# Workers Comp Claims Report only",null,{"$f":"'Data SBP Measures'!$AF671&'Data SBP Measures'!$AE671& \" - \"& 'Data SBP Measures'!$U671","v":"# Workers Comp Claims Report onlyRisk Management Self Insurance Fund - 111"},{"$f":"_xlfn.XLOOKUP(VALUE(W671),'Data SBP Programs'!O:O,'Data SBP Programs'!S:S)","v":"Risk Management Self Insurance Fund"}]
[{"$f":"'Data SBP Measures'!$AI3311&\" - \"&'Data SBP Measures'!$U3311","v":"Civil Courts - 122"},{"$f":"'Data SBP Measures'!$AF3311","v":"Number of Cases Filed"},{"$f":"'Data SBP Measures'!$T3311","v":"721"},{"$f":"'Data SBP Measures'!$U3311&B672","v":"122Number of Cases Filed"},{"$f":"'Data SBP Measures'!$Y3311","v":"EACH"},null,null,null,null,null,"Civil Courts - 122","Number of Cases Filed",null,null,null,null,null,null,null,"1718","111","Y","198","Risk Management Self Insurance Fund","EACH","INPUT","ADOPTEDBUD",null,null,null,"Risk Management Self Insurance Fund","# Workers Comp Claims Medical only",null,{"$f":"'Data SBP Measures'!$AF672&'Data SBP Measures'!$AE672& \" - \"& 'Data SBP Measures'!$U672","v":"# Workers Comp Claims Medical onlyRisk Management Self Insurance Fund - 111"},{"$f":"_xlfn.XLOOKUP(VALUE(W672),'Data SBP Programs'!O:O,'Data SBP Programs'!S:S)","v":"Risk Management Self Insurance Fund"}]
[{"$f":"'Data SBP Measures'!$AI3312&\" - \"&'Data SBP Measures'!$U3312","v":"Civil Courts - 122"},{"$f":"'Data SBP Measures'!$AF3312","v":"Number of Cases Filed"},{"$f":"'Data SBP Measures'!$T3312","v":"721"},{"$f":"'Data SBP Measures'!$U3312&B673","v":"122Number of Cases Filed"},{"$f":"'Data SBP Measures'!$Y3312","v":"EACH"},null,null,null,null,null,"Civil Courts - 122","Number of Cases Filed",null,null,null,null,null,null,null,"1718","111","Y","198","Risk Management Self Insurance Fund","EACH","INPUT","ADOPTEDBUD",null,null,null,"Risk Management Self Insurance Fund","# Workers Comp Claims Medical only",null,{"$f":"'Data SBP Measures'!$AF673&'Data SBP Measures'!$AE673& \" - \"& 'Data SBP Measures'!$U673","v":"# Workers Comp Claims Medical onlyRisk Management Self Insurance Fund - 111"},{"$f":"_xlfn.XLOOKUP(VALUE(W673),'Data SBP Programs'!O:O,'Data SBP Programs'!S:S)","v":"Risk Management Self Insurance Fund"}]
[{"$f":"'Data SBP Measures'!$AI3313&\" - \"&'Data SBP Measures'!$U3313","v":"Civil Courts - 122"},{"$f":"'Data SBP Measures'!$AF3313","v":"Number of Cases Filed"},{"$f":"'Data SBP Measures'!$T3313","v":"721"},{"$f":"'Data SBP Measures'!$U3313&B674","v":"122Number of Cases Filed"},{"$f":"'Data SBP Measures'!$Y3313","v":"EACH"},null,null,null,null,null,"Civil Courts - 122","Number of Cases Filed",null,null,null,null,null,null,null,"1718","111","Y","198","Risk Management Self Insurance Fund","EACH","INPUT","ADOPTEDBUD",null,null,null,"Risk Management Self Insurance Fund","# Workers Comp Claims Medical only",null,{"$f":"'Data SBP Measures'!$AF674&'Data SBP Measures'!$AE674& \" - \"& 'Data SBP Measures'!$U674","v":"# Workers Comp Claims Medical onlyRisk Management Self Insurance Fund - 111"},{"$f":"_xlfn.XLOOKUP(VALUE(W674),'Data SBP Programs'!O:O,'Data SBP Programs'!S:S)","v":"Risk Management Self Insurance Fund"}]
[{"$f":"'Data SBP Measures'!$AI3314&\" - \"&'Data SBP Measures'!$U3314","v":"Civil Courts - 122"},{"$f":"'Data SBP Measures'!$AF3314","v":"Number of Cases Filed"},{"$f":"'Data SBP Measures'!$T3314","v":"721"},{"$f":"'Data SBP Measures'!$U3314&B675","v":"122Number of Cases Filed"},{"$f":"'Data SBP Measures'!$Y3314","v":"EACH"},null,null,null,null,null,"Civil Courts - 122","Number of Cases Filed",null,null,null,null,null,null,null,"1719","111","Y","198","Risk Management Self Insurance Fund","EACH","INPUT","ADOPTEDBUD",null,null,null,"Risk Management Self Insurance Fund","# Workers Comp Claims Indemnity",null,{"$f":"'Data SBP Measures'!$AF675&'Data SBP Measures'!$AE675& \" - \"& 'Data SBP Measures'!$U675","v":"# Workers Comp Claims IndemnityRisk Management Self Insurance Fund - 111"},{"$f":"_xlfn.XLOOKUP(VALUE(W675),'Data SBP Programs'!O:O,'Data SBP Programs'!S:S)","v":"Risk Management Self Insurance Fund"}]
[{"$f":"'Data SBP Measures'!$AI3315&\" - \"&'Data SBP Measures'!$U3315","v":"Civil Courts - 122"},{"$f":"'Data SBP Measures'!$AF3315","v":"Number of Cases Filed"},{"$f":"'Data SBP Measures'!$T3315","v":"721"},{"$f":"'Data SBP Measures'!$U3315&B676","v":"122Number of Cases Filed"},{"$f":"'Data SBP Measures'!$Y3315","v":"EACH"},null,null,null,null,null,"Civil Courts - 122","Number of Cases Filed",null,null,null,null,null,null,null,"1719","111","Y","198","Risk Management Self Insurance Fund","EACH","INPUT","ADOPTEDBUD",null,null,null,"Risk Management Self Insurance Fund","# Workers Comp Claims Indemnity",null,{"$f":"'Data SBP Measures'!$AF676&'Data SBP Measures'!$AE676& \" - \"& 'Data SBP Measures'!$U676","v":"# Workers Comp Claims IndemnityRisk Management Self Insurance Fund - 111"},{"$f":"_xlfn.XLOOKUP(VALUE(W676),'Data SBP Programs'!O:O,'Data SBP Programs'!S:S)","v":"Risk Management Self Insurance Fund"}]
[{"$f":"'Data SBP Measures'!$AI3316&\" - \"&'Data SBP Measures'!$U3316","v":"Civil Courts - 122"},{"$f":"'Data SBP Measures'!$AF3316","v":"Number of Cases Filed"},{"$f":"'Data SBP Measures'!$T3316","v":"721"},{"$f":"'Data SBP Measures'!$U3316&B677","v":"122Number of Cases Filed"},{"$f":"'Data SBP Measures'!$Y3316","v":"EACH"},null,null,null,null,null,"Civil Courts - 122","Number of Cases Filed",null,null,null,null,null,null,null,"1719","111","Y","198","Risk Management Self Insurance Fund","EACH","INPUT","ADOPTEDBUD",null,null,null,"Risk Management Self Insurance Fund","# Workers Comp Claims Indemnity",null,{"$f":"'Data SBP Measures'!$AF677&'Data SBP Measures'!$AE677& \" - \"& 'Data SBP Measures'!$U677","v":"# Workers Comp Claims IndemnityRisk Management Self Insurance Fund - 111"},{"$f":"_xlfn.XLOOKUP(VALUE(W677),'Data SBP Programs'!O:O,'Data SBP Programs'!S:S)","v":"Risk Management Self Insurance Fund"}]
[{"$f":"'Data SBP Measures'!$AI3317&\" - \"&'Data SBP Measures'!$U3317","v":"Civil Courts - 122"},{"$f":"'Data SBP Measures'!$AF3317","v":"Number of Cases Filed"},{"$f":"'Data SBP Measures'!$T3317","v":"721"},{"$f":"'Data SBP Measures'!$U3317&B678","v":"122Number of Cases Filed"},{"$f":"'Data SBP Measures'!$Y3317","v":"EACH"},null,null,null,null,null,"Civil Courts - 122","Number of Cases Filed",null,null,null,null,null,null,null,"1720","111","Y","198","Risk Management Self Insurance Fund","DOLLARS","OUTCOME","ADOPTEDBUD",null,null,null,"Risk Management Self Insurance Fund","Average cost of Claim to Fund",null,{"$f":"'Data SBP Measures'!$AF678&'Data SBP Measures'!$AE678& \" - \"& 'Data SBP Measures'!$U678","v":"Average cost of Claim to FundRisk Management Self Insurance Fund - 111"},{"$f":"_xlfn.XLOOKUP(VALUE(W678),'Data SBP Programs'!O:O,'Data SBP Programs'!S:S)","v":"Risk Management Self Insurance Fund"}]
[{"$f":"'Data SBP Measures'!$AI3318&\" - \"&'Data SBP Measures'!$U3318","v":"Civil Courts - 122"},{"$f":"'Data SBP Measures'!$AF3318","v":"Number of Cases Filed"},{"$f":"'Data SBP Measures'!$T3318","v":"721"},{"$f":"'Data SBP Measures'!$U3318&B679","v":"122Number of Cases Filed"},{"$f":"'Data SBP Measures'!$Y3318","v":"EACH"},null,null,null,null,null,"Civil Courts - 122","Number of Cases Filed",null,null,null,null,null,null,null,"1720","111","Y","198","Risk Management Self Insurance Fund","DOLLARS","OUTCOME","ADOPTEDBUD",null,null,null,"Risk Management Self Insurance Fund","Average cost of Claim to Fund",null,{"$f":"'Data SBP Measures'!$AF679&'Data SBP Measures'!$AE679& \" - \"& 'Data SBP Measures'!$U679","v":"Average cost of Claim to FundRisk Management Self Insurance Fund - 111"},{"$f":"_xlfn.XLOOKUP(VALUE(W679),'Data SBP Programs'!O:O,'Data SBP Programs'!S:S)","v":"Risk Management Self Insurance Fund"}]
[{"$f":"'Data SBP Measures'!$AI3319&\" - \"&'Data SBP Measures'!$U3319","v":"Civil Courts - 122"},{"$f":"'Data SBP Measures'!$AF3319","v":"Number of Cases Filed"},{"$f":"'Data SBP Measures'!$T3319","v":"721"},{"$f":"'Data SBP Measures'!$U3319&B680","v":"122Number of Cases Filed"},{"$f":"'Data SBP Measures'!$Y3319","v":"EACH"},null,null,null,null,null,"Civil Courts - 122","Number of Cases Filed",null,null,null,null,null,null,null,"1720","111","Y","198","Risk Management Self Insurance Fund","DOLLARS","OUTCOME","ADOPTEDBUD",null,null,null,"Risk Management Self Insurance Fund","Average cost of Claim to Fund",null,{"$f":"'Data SBP Measures'!$AF680&'Data SBP Measures'!$AE680& \" - \"& 'Data SBP Measures'!$U680","v":"Average cost of Claim to FundRisk Management Self Insurance Fund - 111"},{"$f":"_xlfn.XLOOKUP(VALUE(W680),'Data SBP Programs'!O:O,'Data SBP Programs'!S:S)","v":"Risk Management Self Insurance Fund"}]
[{"$f":"'Data SBP Measures'!$AI3320&\" - \"&'Data SBP Measures'!$U3320","v":"Civil Courts - 122"},{"$f":"'Data SBP Measures'!$AF3320","v":"Number of Cases Filed"},{"$f":"'Data SBP Measures'!$T3320","v":"721"},{"$f":"'Data SBP Measures'!$U3320&B681","v":"122Number of Cases Filed"},{"$f":"'Data SBP Measures'!$Y3320","v":"EACH"},null,null,null,null,null,"Civil Courts - 122","Number of Cases Filed",null,null,null,null,null,null,null,"1729","111","Y","199","Employee Health Benefit","DOLLARS","OUTCOME","ADOPTEDBUD",null,null,null,"Employee Health Benefit","Cost of Healthcare Per Active EE",null,{"$f":"'Data SBP Measures'!$AF681&'Data SBP Measures'!$AE681& \" - \"& 'Data SBP Measures'!$U681","v":"Cost of Healthcare Per Active EEEmployee Health Benefit - 111"},{"$f":"_xlfn.XLOOKUP(VALUE(W681),'Data SBP Programs'!O:O,'Data SBP Programs'!S:S)","v":"Employee Health Benefit"}]
[{"$f":"'Data SBP Measures'!$AI3321&\" - \"&'Data SBP Measures'!$U3321","v":"Civil Courts - 122"},{"$f":"'Data SBP Measures'!$AF3321","v":"Number of Cases Filed"},{"$f":"'Data SBP Measures'!$T3321","v":"721"},{"$f":"'Data SBP Measures'!$U3321&B682","v":"122Number of Cases Filed"},{"$f":"'Data SBP Measures'!$Y3321","v":"EACH"},null,null,null,null,null,"Civil Courts - 122","Number of Cases Filed",null,null,null,null,null,null,null,"1730","111","Y","199","Employee Health Benefit","DOLLARS","OUTCOME","ADOPTEDBUD",null,null,null,"Employee Health Benefit","Cost of Healthcare per Retirees EE",null,{"$f":"'Data SBP Measures'!$AF682&'Data SBP Measures'!$AE682& \" - \"& 'Data SBP Measures'!$U682","v":"Cost of Healthcare per Retirees EEEmployee Health Benefit - 111"},{"$f":"_xlfn.XLOOKUP(VALUE(W682),'Data SBP Programs'!O:O,'Data SBP Programs'!S:S)","v":"Employee Health Benefit"}]
[{"$f":"'Data SBP Measures'!$AI3322&\" - \"&'Data SBP Measures'!$U3322","v":"Civil Courts - 122"},{"$f":"'Data SBP Measures'!$AF3322","v":"Number of Cases Filed"},{"$f":"'Data SBP Measures'!$T3322","v":"721"},{"$f":"'Data SBP Measures'!$U3322&B683","v":"122Number of Cases Filed"},{"$f":"'Data SBP Measures'!$Y3322","v":"EACH"},null,null,null,null,null,"Civil Courts - 122","Number of Cases Filed",null,null,null,null,null,null,null,"1732","111","Y","200","Travis County Employee Health Clinic","PERCENT","OUTCOME","NEITHER",null,null,null,"Travis County Employee Health Clinic","% of health plan EEs participating in CARE events",null,{"$f":"'Data SBP Measures'!$AF683&'Data SBP Measures'!$AE683& \" - \"& 'Data SBP Measures'!$U683","v":"% of health plan EEs participating in CARE eventsTravis County Employee Health Clinic - 111"},{"$f":"_xlfn.XLOOKUP(VALUE(W683),'Data SBP Programs'!O:O,'Data SBP Programs'!S:S)","v":"Travis County Employee Health Clinic"}]
[{"$f":"'Data SBP Measures'!$AI3323&\" - \"&'Data SBP Measures'!$U3323","v":"Civil Courts - 122"},{"$f":"'Data SBP Measures'!$AF3323","v":"Number of Cases Filed"},{"$f":"'Data SBP Measures'!$T3323","v":"721"},{"$f":"'Data SBP Measures'!$U3323&B684","v":"122Number of Cases Filed"},{"$f":"'Data SBP Measures'!$Y3323","v":"EACH"},null,null,null,null,null,"Civil Courts - 122","Number of Cases Filed",null,null,null,null,null,null,null,"1733","111","Y","199","Employee Health Benefit","PERCENT","OUTCOME","NEITHER",null,null,null,"Employee Health Benefit","Overall Healthcare cost to Budget",null,{"$f":"'Data SBP Measures'!$AF684&'Data SBP Measures'!$AE684& \" - \"& 'Data SBP Measures'!$U684","v":"Overall Healthcare cost to BudgetEmployee Health Benefit - 111"},{"$f":"_xlfn.XLOOKUP(VALUE(W684),'Data SBP Programs'!O:O,'Data SBP Programs'!S:S)","v":"Employee Health Benefit"}]
[{"$f":"'Data SBP Measures'!$AI3266&\" - \"&'Data SBP Measures'!$U3266","v":"Civil Courts - 122"},{"$f":"'Data SBP Measures'!$AF3266","v":"Number of Settings and Announcements"},{"$f":"'Data SBP Measures'!$T3266","v":"720"},{"$f":"'Data SBP Measures'!$U3266&B685","v":"122Number of Settings and Announcements"},{"$f":"'Data SBP Measures'!$Y3266","v":"EACH"},null,null,null,null,null,"Civil Courts - 122","Number of Settings and Announcements",null,null,null,null,null,null,null,"1736","111","Y","200","Travis County Employee Health Clinic","DOLLARS","OUTCOME","NEITHER",null,null,null,"Travis County Employee Health Clinic","Net Savings to the Medical Plan\n",null,{"$f":"'Data SBP Measures'!$AF685&'Data SBP Measures'!$AE685& \" - \"& 'Data SBP Measures'!$U685","v":"Net Savings to the Medical Plan\nTravis County Employee Health Clinic - 111"},{"$f":"_xlfn.XLOOKUP(VALUE(W685),'Data SBP Programs'!O:O,'Data SBP Programs'!S:S)","v":"Travis County Employee Health Clinic"}]
[{"$f":"'Data SBP Measures'!$AI3267&\" - \"&'Data SBP Measures'!$U3267","v":"Civil Courts - 122"},{"$f":"'Data SBP Measures'!$AF3267","v":"Number of Settings and Announcements"},{"$f":"'Data SBP Measures'!$T3267","v":"720"},{"$f":"'Data SBP Measures'!$U3267&B686","v":"122Number of Settings and Announcements"},{"$f":"'Data SBP Measures'!$Y3267","v":"EACH"},null,null,null,null,null,"Civil Courts - 122","Number of Settings and Announcements",null,null,null,null,null,null,null,"1737","111","Y","200","Travis County Employee Health Clinic","PERCENT","OUTCOME","ADOPTEDBUD",null,null,null,"Travis County Employee Health Clinic","% of Patients Served vs. Health Plan Participant",null,{"$f":"'Data SBP Measures'!$AF686&'Data SBP Measures'!$AE686& \" - \"& 'Data SBP Measures'!$U686","v":"% of Patients Served vs. Health Plan ParticipantTravis County Employee Health Clinic - 111"},{"$f":"_xlfn.XLOOKUP(VALUE(W686),'Data SBP Programs'!O:O,'Data SBP Programs'!S:S)","v":"Travis County Employee Health Clinic"}]
[{"$f":"'Data SBP Measures'!$AI3268&\" - \"&'Data SBP Measures'!$U3268","v":"Civil Courts - 122"},{"$f":"'Data SBP Measures'!$AF3268","v":"Number of Settings and Announcements"},{"$f":"'Data SBP Measures'!$T3268","v":"720"},{"$f":"'Data SBP Measures'!$U3268&B687","v":"122Number of Settings and Announcements"},{"$f":"'Data SBP Measures'!$Y3268","v":"EACH"},null,null,null,null,null,"Civil Courts - 122","Number of Settings and Announcements",null,null,null,null,null,null,null,"1745","111","Y","202","Talent, Planning & Engagement","DAYS","EFFICIENCY","ADOPTEDBUD",null,null,null,"Talent, Planning & Engagement","Average Days to Close an ER Issue",null,{"$f":"'Data SBP Measures'!$AF687&'Data SBP Measures'!$AE687& \" - \"& 'Data SBP Measures'!$U687","v":"Average Days to Close an ER IssueTalent, Planning & Engagement - 111"},{"$f":"_xlfn.XLOOKUP(VALUE(W687),'Data SBP Programs'!O:O,'Data SBP Programs'!S:S)","v":"Talent, Planning & Engagement"}]
[{"$f":"'Data SBP Measures'!$AI3269&\" - \"&'Data SBP Measures'!$U3269","v":"Civil Courts - 122"},{"$f":"'Data SBP Measures'!$AF3269","v":"Number of Settings and Announcements"},{"$f":"'Data SBP Measures'!$T3269","v":"720"},{"$f":"'Data SBP Measures'!$U3269&B688","v":"122Number of Settings and Announcements"},{"$f":"'Data SBP Measures'!$Y3269","v":"EACH"},null,null,null,null,null,"Civil Courts - 122","Number of Settings and Announcements",null,null,null,null,null,null,null,"1746","111","Y","202","Talent, Planning & Engagement","PERCENT","OUTCOME","ADOPTEDBUD",null,null,null,"Talent, Planning & Engagement","% of ees reporting to Commissioner Court who receive a formal review",null,{"$f":"'Data SBP Measures'!$AF688&'Data SBP Measures'!$AE688& \" - \"& 'Data SBP Measures'!$U688","v":"% of ees reporting to Commissioner Court who receive a formal reviewTalent, Planning & Engagement - 111"},{"$f":"_xlfn.XLOOKUP(VALUE(W688),'Data SBP Programs'!O:O,'Data SBP Programs'!S:S)","v":"Talent, Planning & Engagement"}]
[{"$f":"'Data SBP Measures'!$AI3270&\" - \"&'Data SBP Measures'!$U3270","v":"Civil Courts - 122"},{"$f":"'Data SBP Measures'!$AF3270","v":"Number of Settings and Announcements"},{"$f":"'Data SBP Measures'!$T3270","v":"720"},{"$f":"'Data SBP Measures'!$U3270&B689","v":"122Number of Settings and Announcements"},{"$f":"'Data SBP Measures'!$Y3270","v":"EACH"},null,null,null,null,null,"Civil Courts - 122","Number of Settings and Announcements",null,null,null,null,null,null,null,"1748","115","Y","203","Purchasing Office","PERCENT","OUTCOME","ADOPTEDBUD",null,null,null,"Purchasing Office","Customer Satisfaction",null,{"$f":"'Data SBP Measures'!$AF689&'Data SBP Measures'!$AE689& \" - \"& 'Data SBP Measures'!$U689","v":"Customer SatisfactionPurchasing Office - 115"},{"$f":"_xlfn.XLOOKUP(VALUE(W689),'Data SBP Programs'!O:O,'Data SBP Programs'!S:S)","v":"Purchasing Office"}]
[{"$f":"'Data SBP Measures'!$AI3271&\" - \"&'Data SBP Measures'!$U3271","v":"Civil Courts - 122"},{"$f":"'Data SBP Measures'!$AF3271","v":"Number of Settings and Announcements"},{"$f":"'Data SBP Measures'!$T3271","v":"720"},{"$f":"'Data SBP Measures'!$U3271&B690","v":"122Number of Settings and Announcements"},{"$f":"'Data SBP Measures'!$Y3271","v":"EACH"},null,null,null,null,null,"Civil Courts - 122","Number of Settings and Announcements",null,null,null,null,null,null,null,"1749","115","Y","296","Purchasing Office Procurement (115)","EACH","OUTPUT","BLACKBOOK",null,null,null,"Purchasing Office Procurement (115)","Number of purchase orders processed",null,{"$f":"'Data SBP Measures'!$AF690&'Data SBP Measures'!$AE690& \" - \"& 'Data SBP Measures'!$U690","v":"Number of purchase orders processedPurchasing Office Procurement (115) - 115"},{"$f":"_xlfn.XLOOKUP(VALUE(W690),'Data SBP Programs'!O:O,'Data SBP Programs'!S:S)","v":"Purchasing Office Procurement (115)"}]
[{"$f":"'Data SBP Measures'!$AI3272&\" - \"&'Data SBP Measures'!$U3272","v":"Civil Courts - 122"},{"$f":"'Data SBP Measures'!$AF3272","v":"Number of Settings and Announcements"},{"$f":"'Data SBP Measures'!$T3272","v":"720"},{"$f":"'Data SBP Measures'!$U3272&B691","v":"122Number of Settings and Announcements"},{"$f":"'Data SBP Measures'!$Y3272","v":"EACH"},null,null,null,null,null,"Civil Courts - 122","Number of Settings and Announcements",null,null,null,null,null,null,null,"1750","115","Y","296","Purchasing Office Procurement (115)","PERCENT","OUTCOME","BLACKBOOK",null,null,null,"Purchasing Office Procurement (115)","Percentage of non-contract purchase orders processed",null,{"$f":"'Data SBP Measures'!$AF691&'Data SBP Measures'!$AE691& \" - \"& 'Data SBP Measures'!$U691","v":"Percentage of non-contract purchase orders processedPurchasing Office Procurement (115) - 115"},{"$f":"_xlfn.XLOOKUP(VALUE(W691),'Data SBP Programs'!O:O,'Data SBP Programs'!S:S)","v":"Purchasing Office Procurement (115)"}]
[{"$f":"'Data SBP Measures'!$AI3273&\" - \"&'Data SBP Measures'!$U3273","v":"Civil Courts - 122"},{"$f":"'Data SBP Measures'!$AF3273","v":"Number of Settings and Announcements"},{"$f":"'Data SBP Measures'!$T3273","v":"720"},{"$f":"'Data SBP Measures'!$U3273&B692","v":"122Number of Settings and Announcements"},{"$f":"'Data SBP Measures'!$Y3273","v":"EACH"},null,null,null,null,null,"Civil Courts - 122","Number of Settings and Announcements",null,null,null,null,null,null,null,"1751","115","Y","296","Purchasing Office Procurement (115)","EACH","OUTPUT","BLACKBOOK",null,null,null,"Purchasing Office Procurement (115)","Number of active contracts managed",null,{"$f":"'Data SBP Measures'!$AF692&'Data SBP Measures'!$AE692& \" - \"& 'Data SBP Measures'!$U692","v":"Number of active contracts managedPurchasing Office Procurement (115) - 115"},{"$f":"_xlfn.XLOOKUP(VALUE(W692),'Data SBP Programs'!O:O,'Data SBP Programs'!S:S)","v":"Purchasing Office Procurement (115)"}]
[{"$f":"'Data SBP Measures'!$AI3274&\" - \"&'Data SBP Measures'!$U3274","v":"Civil Courts - 122"},{"$f":"'Data SBP Measures'!$AF3274","v":"Number of Settings and Announcements"},{"$f":"'Data SBP Measures'!$T3274","v":"720"},{"$f":"'Data SBP Measures'!$U3274&B693","v":"122Number of Settings and Announcements"},{"$f":"'Data SBP Measures'!$Y3274","v":"EACH"},null,null,null,null,null,"Civil Courts - 122","Number of Settings and Announcements",null,null,null,null,null,null,null,"1752","115","Y","205","Purchasing Office HUB","PERCENT","OUTCOME","ADOPTEDBUD",null,null,null,"Purchasing Office HUB","Total HUB % participation",null,{"$f":"'Data SBP Measures'!$AF693&'Data SBP Measures'!$AE693& \" - \"& 'Data SBP Measures'!$U693","v":"Total HUB % participationPurchasing Office HUB - 115"},{"$f":"_xlfn.XLOOKUP(VALUE(W693),'Data SBP Programs'!O:O,'Data SBP Programs'!S:S)","v":"Purchasing Office HUB"}]
[{"$f":"'Data SBP Measures'!$AI3275&\" - \"&'Data SBP Measures'!$U3275","v":"Civil Courts - 122"},{"$f":"'Data SBP Measures'!$AF3275","v":"Number of Settings and Announcements"},{"$f":"'Data SBP Measures'!$T3275","v":"720"},{"$f":"'Data SBP Measures'!$U3275&B694","v":"122Number of Settings and Announcements"},{"$f":"'Data SBP Measures'!$Y3275","v":"EACH"},null,null,null,null,null,"Civil Courts - 122","Number of Settings and Announcements",null,null,null,null,null,null,null,"1754","115","Y","204","Purchasing Office Fixed Assets","EACH","OUTPUT","ADOPTEDBUD",null,null,null,"Purchasing Office Fixed Assets","Number of assets inventoried",null,{"$f":"'Data SBP Measures'!$AF694&'Data SBP Measures'!$AE694& \" - \"& 'Data SBP Measures'!$U694","v":"Number of assets inventoriedPurchasing Office Fixed Assets - 115"},{"$f":"_xlfn.XLOOKUP(VALUE(W694),'Data SBP Programs'!O:O,'Data SBP Programs'!S:S)","v":"Purchasing Office Fixed Assets"}]
[{"$f":"'Data SBP Measures'!$AI3276&\" - \"&'Data SBP Measures'!$U3276","v":"Civil Courts - 122"},{"$f":"'Data SBP Measures'!$AF3276","v":"Number of Settings and Announcements"},{"$f":"'Data SBP Measures'!$T3276","v":"720"},{"$f":"'Data SBP Measures'!$U3276&B695","v":"122Number of Settings and Announcements"},{"$f":"'Data SBP Measures'!$Y3276","v":"EACH"},null,null,null,null,null,"Civil Courts - 122","Number of Settings and Announcements",null,null,null,null,null,null,null,"1755","115","Y","203","Purchasing Office","HOURS","INPUT","BLACKBOOK",null,null,null,"Purchasing Office","Number of staff development (external) training hours provided to professional staff",null,{"$f":"'Data SBP Measures'!$AF695&'Data SBP Measures'!$AE695& \" - \"& 'Data SBP Measures'!$U695","v":"Number of staff development (external) training hours provided to professional staffPurchasing Office - 115"},{"$f":"_xlfn.XLOOKUP(VALUE(W695),'Data SBP Programs'!O:O,'Data SBP Programs'!S:S)","v":"Purchasing Office"}]
[{"$f":"'Data SBP Measures'!$AI3277&\" - \"&'Data SBP Measures'!$U3277","v":"Civil Courts - 122"},{"$f":"'Data SBP Measures'!$AF3277","v":"Number of Settings and Announcements"},{"$f":"'Data SBP Measures'!$T3277","v":"720"},{"$f":"'Data SBP Measures'!$U3277&B696","v":"122Number of Settings and Announcements"},{"$f":"'Data SBP Measures'!$Y3277","v":"EACH"},null,null,null,null,null,"Civil Courts - 122","Number of Settings and Announcements",null,null,null,null,null,null,null,"1756","115","Y","203","Purchasing Office","HOURS","INPUT","BLACKBOOK",null,null,null,"Purchasing Office","Number of staff development (internal) training hours provided to professional staff",null,{"$f":"'Data SBP Measures'!$AF696&'Data SBP Measures'!$AE696& \" - \"& 'Data SBP Measures'!$U696","v":"Number of staff development (internal) training hours provided to professional staffPurchasing Office - 115"},{"$f":"_xlfn.XLOOKUP(VALUE(W696),'Data SBP Programs'!O:O,'Data SBP Programs'!S:S)","v":"Purchasing Office"}]
[{"$f":"'Data SBP Measures'!$AI3278&\" - \"&'Data SBP Measures'!$U3278","v":"Civil Courts - 122"},{"$f":"'Data SBP Measures'!$AF3278","v":"Number of Settings and Announcements"},{"$f":"'Data SBP Measures'!$T3278","v":"720"},{"$f":"'Data SBP Measures'!$U3278&B697","v":"122Number of Settings and Announcements"},{"$f":"'Data SBP Measures'!$Y3278","v":"EACH"},null,null,null,null,null,"Civil Courts - 122","Number of Settings and Announcements",null,null,null,null,null,null,null,"1757","115","Y","203","Purchasing Office","PERCENT","OUTCOME","BLACKBOOK",null,null,null,"Purchasing Office","Percentage of certified eligible procurement staff\n",null,{"$f":"'Data SBP Measures'!$AF697&'Data SBP Measures'!$AE697& \" - \"& 'Data SBP Measures'!$U697","v":"Percentage of certified eligible procurement staff\nPurchasing Office - 115"},{"$f":"_xlfn.XLOOKUP(VALUE(W697),'Data SBP Programs'!O:O,'Data SBP Programs'!S:S)","v":"Purchasing Office"}]
[{"$f":"'Data SBP Measures'!$AI3279&\" - \"&'Data SBP Measures'!$U3279","v":"Civil Courts - 122"},{"$f":"'Data SBP Measures'!$AF3279","v":"Number of Settings and Announcements"},{"$f":"'Data SBP Measures'!$T3279","v":"720"},{"$f":"'Data SBP Measures'!$U3279&B698","v":"122Number of Settings and Announcements"},{"$f":"'Data SBP Measures'!$Y3279","v":"EACH"},null,null,null,null,null,"Civil Courts - 122","Number of Settings and Announcements",null,null,null,null,null,null,null,"1758","115","Y","205","Purchasing Office HUB","EACH","OUTCOME","ADOPTEDBUD",null,null,null,"Purchasing Office HUB","Number of Businesses Assisted in Readiness Training Program",null,{"$f":"'Data SBP Measures'!$AF698&'Data SBP Measures'!$AE698& \" - \"& 'Data SBP Measures'!$U698","v":"Number of Businesses Assisted in Readiness Training ProgramPurchasing Office HUB - 115"},{"$f":"_xlfn.XLOOKUP(VALUE(W698),'Data SBP Programs'!O:O,'Data SBP Programs'!S:S)","v":"Purchasing Office HUB"}]
[{"$f":"'Data SBP Measures'!$AI3280&\" - \"&'Data SBP Measures'!$U3280","v":"Civil Courts - 122"},{"$f":"'Data SBP Measures'!$AF3280","v":"Number of Settings and Announcements"},{"$f":"'Data SBP Measures'!$T3280","v":"720"},{"$f":"'Data SBP Measures'!$U3280&B699","v":"122Number of Settings and Announcements"},{"$f":"'Data SBP Measures'!$Y3280","v":"EACH"},null,null,null,null,null,"Civil Courts - 122","Number of Settings and Announcements",null,null,null,null,null,null,null,"1759","117","Y","206","Historical Commission","EACH","OUTCOME","ADOPTEDBUD",null,null,null,"Historical Commission","# of special projects",null,{"$f":"'Data SBP Measures'!$AF699&'Data SBP Measures'!$AE699& \" - \"& 'Data SBP Measures'!$U699","v":"# of special projectsHistorical Commission - 117"},{"$f":"_xlfn.XLOOKUP(VALUE(W699),'Data SBP Programs'!O:O,'Data SBP Programs'!S:S)","v":"Historical Commission"}]
[{"$f":"'Data SBP Measures'!$AI3281&\" - \"&'Data SBP Measures'!$U3281","v":"Civil Courts - 122"},{"$f":"'Data SBP Measures'!$AF3281","v":"Number of Settings and Announcements"},{"$f":"'Data SBP Measures'!$T3281","v":"720"},{"$f":"'Data SBP Measures'!$U3281&B700","v":"122Number of Settings and Announcements"},{"$f":"'Data SBP Measures'!$Y3281","v":"EACH"},null,null,null,null,null,"Civil Courts - 122","Number of Settings and Announcements",null,null,null,null,null,null,null,"1760","117","Y","206","Historical Commission","HOURS","INPUT","ADOPTEDBUD",null,null,null,"Historical Commission","Volunteer hours contributed",null,{"$f":"'Data SBP Measures'!$AF700&'Data SBP Measures'!$AE700& \" - \"& 'Data SBP Measures'!$U700","v":"Volunteer hours contributedHistorical Commission - 117"},{"$f":"_xlfn.XLOOKUP(VALUE(W700),'Data SBP Programs'!O:O,'Data SBP Programs'!S:S)","v":"Historical Commission"}]
[{"$f":"'Data SBP Measures'!$AI3282&\" - \"&'Data SBP Measures'!$U3282","v":"Civil Courts - 122"},{"$f":"'Data SBP Measures'!$AF3282","v":"Number of Settings and Announcements"},{"$f":"'Data SBP Measures'!$T3282","v":"720"},{"$f":"'Data SBP Measures'!$U3282&B701","v":"122Number of Settings and Announcements"},{"$f":"'Data SBP Measures'!$Y3282","v":"EACH"},null,null,null,null,null,"Civil Courts - 122","Number of Settings and Announcements",null,null,null,null,null,null,null,"1761","117","Y","206","Historical Commission","EACH","OUTPUT","ADOPTEDBUD",null,null,null,"Historical Commission","Publications sponsored",null,{"$f":"'Data SBP Measures'!$AF701&'Data SBP Measures'!$AE701& \" - \"& 'Data SBP Measures'!$U701","v":"Publications sponsoredHistorical Commission - 117"},{"$f":"_xlfn.XLOOKUP(VALUE(W701),'Data SBP Programs'!O:O,'Data SBP Programs'!S:S)","v":"Historical Commission"}]
[{"$f":"'Data SBP Measures'!$AI3283&\" - \"&'Data SBP Measures'!$U3283","v":"Civil Courts - 122"},{"$f":"'Data SBP Measures'!$AF3283","v":"Number of Settings and Announcements"},{"$f":"'Data SBP Measures'!$T3283","v":"720"},{"$f":"'Data SBP Measures'!$U3283&B702","v":"122Number of Settings and Announcements"},{"$f":"'Data SBP Measures'!$Y3283","v":"EACH"},null,null,null,null,null,"Civil Courts - 122","Number of Settings and Announcements",null,null,null,null,null,null,null,"1762","117","Y","206","Historical Commission","EACH","OUTPUT","ADOPTEDBUD",null,null,null,"Historical Commission","Markers sponsored",null,{"$f":"'Data SBP Measures'!$AF702&'Data SBP Measures'!$AE702& \" - \"& 'Data SBP Measures'!$U702","v":"Markers sponsoredHistorical Commission - 117"},{"$f":"_xlfn.XLOOKUP(VALUE(W702),'Data SBP Programs'!O:O,'Data SBP Programs'!S:S)","v":"Historical Commission"}]
[{"$f":"'Data SBP Measures'!$AI3284&\" - \"&'Data SBP Measures'!$U3284","v":"Civil Courts - 122"},{"$f":"'Data SBP Measures'!$AF3284","v":"Number of Settings and Announcements"},{"$f":"'Data SBP Measures'!$T3284","v":"720"},{"$f":"'Data SBP Measures'!$U3284&B703","v":"122Number of Settings and Announcements"},{"$f":"'Data SBP Measures'!$Y3284","v":"EACH"},null,null,null,null,null,"Civil Courts - 122","Number of Settings and Announcements",null,null,null,null,null,null,null,"1763","119","Y","207","Civil Divisions","HOURS","OUTPUT","ADOPTEDBUD",null,null,null,"Civil Divisions","Billable hours per attorney and paralegal per year",null,{"$f":"'Data SBP Measures'!$AF703&'Data SBP Measures'!$AE703& \" - \"& 'Data SBP Measures'!$U703","v":"Billable hours per attorney and paralegal per yearCivil Divisions - 119"},{"$f":"_xlfn.XLOOKUP(VALUE(W703),'Data SBP Programs'!O:O,'Data SBP Programs'!S:S)","v":"Civil Divisions"}]
[{"$f":"'Data SBP Measures'!$AI3285&\" - \"&'Data SBP Measures'!$U3285","v":"Civil Courts - 122"},{"$f":"'Data SBP Measures'!$AF3285","v":"Number of Settings and Announcements"},{"$f":"'Data SBP Measures'!$T3285","v":"720"},{"$f":"'Data SBP Measures'!$U3285&B704","v":"122Number of Settings and Announcements"},{"$f":"'Data SBP Measures'!$Y3285","v":"EACH"},null,null,null,null,null,"Civil Courts - 122","Number of Settings and Announcements",null,null,null,null,null,null,null,"1763","119","Y","207","Civil Divisions","HOURS","OUTPUT","ADOPTEDBUD",null,null,null,"Civil Divisions","Billable hours per attorney and paralegal per year",null,{"$f":"'Data SBP Measures'!$AF704&'Data SBP Measures'!$AE704& \" - \"& 'Data SBP Measures'!$U704","v":"Billable hours per attorney and paralegal per yearCivil Divisions - 119"},{"$f":"_xlfn.XLOOKUP(VALUE(W704),'Data SBP Programs'!O:O,'Data SBP Programs'!S:S)","v":"Civil Divisions"}]
[{"$f":"'Data SBP Measures'!$AI3286&\" - \"&'Data SBP Measures'!$U3286","v":"Civil Courts - 122"},{"$f":"'Data SBP Measures'!$AF3286","v":"Number of Settings and Announcements"},{"$f":"'Data SBP Measures'!$T3286","v":"720"},{"$f":"'Data SBP Measures'!$U3286&B705","v":"122Number of Settings and Announcements"},{"$f":"'Data SBP Measures'!$Y3286","v":"EACH"},null,null,null,null,null,"Civil Courts - 122","Number of Settings and Announcements",null,null,null,null,null,null,null,"1764","119","Y","207","Civil Divisions","PERCENT","OUTCOME","ADOPTEDBUD",null,null,null,"Civil Divisions","Property Tax Collection Rate",null,{"$f":"'Data SBP Measures'!$AF705&'Data SBP Measures'!$AE705& \" - \"& 'Data SBP Measures'!$U705","v":"Property Tax Collection RateCivil Divisions - 119"},{"$f":"_xlfn.XLOOKUP(VALUE(W705),'Data SBP Programs'!O:O,'Data SBP Programs'!S:S)","v":"Civil Divisions"}]
[{"$f":"'Data SBP Measures'!$AI3287&\" - \"&'Data SBP Measures'!$U3287","v":"Civil Courts - 122"},{"$f":"'Data SBP Measures'!$AF3287","v":"Number of Settings and Announcements"},{"$f":"'Data SBP Measures'!$T3287","v":"720"},{"$f":"'Data SBP Measures'!$U3287&B706","v":"122Number of Settings and Announcements"},{"$f":"'Data SBP Measures'!$Y3287","v":"EACH"},null,null,null,null,null,"Civil Courts - 122","Number of Settings and Announcements",null,null,null,null,null,null,null,"1764","119","Y","207","Civil Divisions","PERCENT","OUTCOME","ADOPTEDBUD",null,null,null,"Civil Divisions","Property Tax Collection Rate",null,{"$f":"'Data SBP Measures'!$AF706&'Data SBP Measures'!$AE706& \" - \"& 'Data SBP Measures'!$U706","v":"Property Tax Collection RateCivil Divisions - 119"},{"$f":"_xlfn.XLOOKUP(VALUE(W706),'Data SBP Programs'!O:O,'Data SBP Programs'!S:S)","v":"Civil Divisions"}]
[{"$f":"'Data SBP Measures'!$AI3288&\" - \"&'Data SBP Measures'!$U3288","v":"Civil Courts - 122"},{"$f":"'Data SBP Measures'!$AF3288","v":"Number of Settings and Announcements"},{"$f":"'Data SBP Measures'!$T3288","v":"720"},{"$f":"'Data SBP Measures'!$U3288&B707","v":"122Number of Settings and Announcements"},{"$f":"'Data SBP Measures'!$Y3288","v":"EACH"},null,null,null,null,null,"Civil Courts - 122","Number of Settings and Announcements",null,null,null,null,null,null,null,"1767","119","Y","208","Check Division","EACH","INPUT","ADOPTEDBUD",null,null,null,"Check Division","Number of checks filed",null,{"$f":"'Data SBP Measures'!$AF707&'Data SBP Measures'!$AE707& \" - \"& 'Data SBP Measures'!$U707","v":"Number of checks filedCheck Division - 119"},{"$f":"_xlfn.XLOOKUP(VALUE(W707),'Data SBP Programs'!O:O,'Data SBP Programs'!S:S)","v":"Check Division"}]
[{"$f":"'Data SBP Measures'!$AI3289&\" - \"&'Data SBP Measures'!$U3289","v":"Civil Courts - 122"},{"$f":"'Data SBP Measures'!$AF3289","v":"Number of Settings and Announcements"},{"$f":"'Data SBP Measures'!$T3289","v":"720"},{"$f":"'Data SBP Measures'!$U3289&B708","v":"122Number of Settings and Announcements"},{"$f":"'Data SBP Measures'!$Y3289","v":"EACH"},null,null,null,null,null,"Civil Courts - 122","Number of Settings and Announcements",null,null,null,null,null,null,null,"1768","119","Y","208","Check Division","DOLLARS","INPUT","BLACKBOOK",null,null,null,"Check Division","Dollar amount of checks filed",null,{"$f":"'Data SBP Measures'!$AF708&'Data SBP Measures'!$AE708& \" - \"& 'Data SBP Measures'!$U708","v":"Dollar amount of checks filedCheck Division - 119"},{"$f":"_xlfn.XLOOKUP(VALUE(W708),'Data SBP Programs'!O:O,'Data SBP Programs'!S:S)","v":"Check Division"}]
[{"$f":"'Data SBP Measures'!$AI3290&\" - \"&'Data SBP Measures'!$U3290","v":"Civil Courts - 122"},{"$f":"'Data SBP Measures'!$AF3290","v":"Number of Settings and Announcements"},{"$f":"'Data SBP Measures'!$T3290","v":"720"},{"$f":"'Data SBP Measures'!$U3290&B709","v":"122Number of Settings and Announcements"},{"$f":"'Data SBP Measures'!$Y3290","v":"EACH"},null,null,null,null,null,"Civil Courts - 122","Number of Settings and Announcements",null,null,null,null,null,null,null,"1769","119","Y","208","Check Division","DOLLARS","OUTPUT","ADOPTEDBUD",null,null,null,"Check Division","Dollar amount of restitution received",null,{"$f":"'Data SBP Measures'!$AF709&'Data SBP Measures'!$AE709& \" - \"& 'Data SBP Measures'!$U709","v":"Dollar amount of restitution receivedCheck Division - 119"},{"$f":"_xlfn.XLOOKUP(VALUE(W709),'Data SBP Programs'!O:O,'Data SBP Programs'!S:S)","v":"Check Division"}]
[{"$f":"'Data SBP Measures'!$AI3291&\" - \"&'Data SBP Measures'!$U3291","v":"Civil Courts - 122"},{"$f":"'Data SBP Measures'!$AF3291","v":"Number of Settings and Announcements"},{"$f":"'Data SBP Measures'!$T3291","v":"720"},{"$f":"'Data SBP Measures'!$U3291&B710","v":"122Number of Settings and Announcements"},{"$f":"'Data SBP Measures'!$Y3291","v":"EACH"},null,null,null,null,null,"Civil Courts - 122","Number of Settings and Announcements",null,null,null,null,null,null,null,"1770","119","Y","208","Check Division","DOLLARS","OUTPUT","BLACKBOOK",null,null,null,"Check Division","Dollar amount of statutory fees received",null,{"$f":"'Data SBP Measures'!$AF710&'Data SBP Measures'!$AE710& \" - \"& 'Data SBP Measures'!$U710","v":"Dollar amount of statutory fees receivedCheck Division - 119"},{"$f":"_xlfn.XLOOKUP(VALUE(W710),'Data SBP Programs'!O:O,'Data SBP Programs'!S:S)","v":"Check Division"}]
[{"$f":"'Data SBP Measures'!$AI3292&\" - \"&'Data SBP Measures'!$U3292","v":"Civil Courts - 122"},{"$f":"'Data SBP Measures'!$AF3292","v":"Number of Settings and Announcements"},{"$f":"'Data SBP Measures'!$T3292","v":"720"},{"$f":"'Data SBP Measures'!$U3292&B711","v":"122Number of Settings and Announcements"},{"$f":"'Data SBP Measures'!$Y3292","v":"EACH"},null,null,null,null,null,"Civil Courts - 122","Number of Settings and Announcements",null,null,null,null,null,null,null,"1771","119","Y","209","Comprehensive Underage Drinking Prevention","EACH","OUTPUT","BLACKBOOK",null,null,null,"Comprehensive Underage Drinking Prevention","Presentations and community events",null,{"$f":"'Data SBP Measures'!$AF711&'Data SBP Measures'!$AE711& \" - \"& 'Data SBP Measures'!$U711","v":"Presentations and community eventsComprehensive Underage Drinking Prevention - 119"},{"$f":"_xlfn.XLOOKUP(VALUE(W711),'Data SBP Programs'!O:O,'Data SBP Programs'!S:S)","v":"Comprehensive Underage Drinking Prevention"}]
[{"$f":"'Data SBP Measures'!$AI3293&\" - \"&'Data SBP Measures'!$U3293","v":"Civil Courts - 122"},{"$f":"'Data SBP Measures'!$AF3293","v":"Number of Settings and Announcements"},{"$f":"'Data SBP Measures'!$T3293","v":"720"},{"$f":"'Data SBP Measures'!$U3293&B712","v":"122Number of Settings and Announcements"},{"$f":"'Data SBP Measures'!$Y3293","v":"EACH"},null,null,null,null,null,"Civil Courts - 122","Number of Settings and Announcements",null,null,null,null,null,null,null,"1772","119","Y","209","Comprehensive Underage Drinking Prevention","EACH","OUTPUT","BLACKBOOK",null,null,null,"Comprehensive Underage Drinking Prevention","# of parternships with collaborating agencies",null,{"$f":"'Data SBP Measures'!$AF712&'Data SBP Measures'!$AE712& \" - \"& 'Data SBP Measures'!$U712","v":"# of parternships with collaborating agenciesComprehensive Underage Drinking Prevention - 119"},{"$f":"_xlfn.XLOOKUP(VALUE(W712),'Data SBP Programs'!O:O,'Data SBP Programs'!S:S)","v":"Comprehensive Underage Drinking Prevention"}]
[{"$f":"'Data SBP Measures'!$AI3294&\" - \"&'Data SBP Measures'!$U3294","v":"Civil Courts - 122"},{"$f":"'Data SBP Measures'!$AF3294","v":"Number of Settings and Announcements"},{"$f":"'Data SBP Measures'!$T3294","v":"720"},{"$f":"'Data SBP Measures'!$U3294&B713","v":"122Number of Settings and Announcements"},{"$f":"'Data SBP Measures'!$Y3294","v":"EACH"},null,null,null,null,null,"Civil Courts - 122","Number of Settings and Announcements",null,null,null,null,null,null,null,"1773","119","Y","209","Comprehensive Underage Drinking Prevention","EACH","OUTPUT","BLACKBOOK",null,null,null,"Comprehensive Underage Drinking Prevention","# of press releases submitted to existing news sources",null,{"$f":"'Data SBP Measures'!$AF713&'Data SBP Measures'!$AE713& \" - \"& 'Data SBP Measures'!$U713","v":"# of press releases submitted to existing news sourcesComprehensive Underage Drinking Prevention - 119"},{"$f":"_xlfn.XLOOKUP(VALUE(W713),'Data SBP Programs'!O:O,'Data SBP Programs'!S:S)","v":"Comprehensive Underage Drinking Prevention"}]
[{"$f":"'Data SBP Measures'!$AI3382&\" - \"&'Data SBP Measures'!$U3382","v":"Civil Courts - 122"},{"$f":"'Data SBP Measures'!$AF3382","v":"Percentage of Cases Disposed Over 18 Months Old"},{"$f":"'Data SBP Measures'!$T3382","v":"724"},{"$f":"'Data SBP Measures'!$U3382&B714","v":"122Percentage of Cases Disposed Over 18 Months Old"},{"$f":"'Data SBP Measures'!$Y3382","v":"PERCENT"},null,null,null,null,null,"Civil Courts - 122","Percentage of Cases Disposed Over 18 Months Old",null,null,null,null,null,null,null,"1774","119","Y","209","Comprehensive Underage Drinking Prevention","EACH","OUTPUT","BLACKBOOK",null,null,null,"Comprehensive Underage Drinking Prevention","# of information produced and distributed to target audience",null,{"$f":"'Data SBP Measures'!$AF714&'Data SBP Measures'!$AE714& \" - \"& 'Data SBP Measures'!$U714","v":"# of information produced and distributed to target audienceComprehensive Underage Drinking Prevention - 119"},{"$f":"_xlfn.XLOOKUP(VALUE(W714),'Data SBP Programs'!O:O,'Data SBP Programs'!S:S)","v":"Comprehensive Underage Drinking Prevention"}]
[{"$f":"'Data SBP Measures'!$AI3383&\" - \"&'Data SBP Measures'!$U3383","v":"Civil Courts - 122"},{"$f":"'Data SBP Measures'!$AF3383","v":"Percentage of Cases Disposed Over 18 Months Old"},{"$f":"'Data SBP Measures'!$T3383","v":"724"},{"$f":"'Data SBP Measures'!$U3383&B715","v":"122Percentage of Cases Disposed Over 18 Months Old"},{"$f":"'Data SBP Measures'!$Y3383","v":"PERCENT"},null,null,null,null,null,"Civil Courts - 122","Percentage of Cases Disposed Over 18 Months Old",null,null,null,null,null,null,null,"1775","119","Y","209","Comprehensive Underage Drinking Prevention","EACH","OUTCOME","ADOPTEDBUD",null,null,null,"Comprehensive Underage Drinking Prevention","# People Reached",null,{"$f":"'Data SBP Measures'!$AF715&'Data SBP Measures'!$AE715& \" - \"& 'Data SBP Measures'!$U715","v":"# People ReachedComprehensive Underage Drinking Prevention - 119"},{"$f":"_xlfn.XLOOKUP(VALUE(W715),'Data SBP Programs'!O:O,'Data SBP Programs'!S:S)","v":"Comprehensive Underage Drinking Prevention"}]
[{"$f":"'Data SBP Measures'!$AI3384&\" - \"&'Data SBP Measures'!$U3384","v":"Civil Courts - 122"},{"$f":"'Data SBP Measures'!$AF3384","v":"Percentage of Cases Disposed Over 18 Months Old"},{"$f":"'Data SBP Measures'!$T3384","v":"724"},{"$f":"'Data SBP Measures'!$U3384&B716","v":"122Percentage of Cases Disposed Over 18 Months Old"},{"$f":"'Data SBP Measures'!$Y3384","v":"PERCENT"},null,null,null,null,null,"Civil Courts - 122","Percentage of Cases Disposed Over 18 Months Old",null,null,null,null,null,null,null,"1776","119","Y","210","Criminal Division - Records / Intake & Criminal Trial Courts","EACH","INPUT","BLACKBOOK",null,null,null,"Criminal Division - Records / Intake & Criminal Trial Courts","# of cases entered into TechShare",null,{"$f":"'Data SBP Measures'!$AF716&'Data SBP Measures'!$AE716& \" - \"& 'Data SBP Measures'!$U716","v":"# of cases entered into TechShareCriminal Division - Records / Intake & Criminal Trial Courts - 119"},{"$f":"_xlfn.XLOOKUP(VALUE(W716),'Data SBP Programs'!O:O,'Data SBP Programs'!S:S)","v":"Criminal Division - Records / Intake & Criminal Trial Courts"}]
[{"$f":"'Data SBP Measures'!$AI3385&\" - \"&'Data SBP Measures'!$U3385","v":"Civil Courts - 122"},{"$f":"'Data SBP Measures'!$AF3385","v":"Percentage of Cases Disposed Over 18 Months Old"},{"$f":"'Data SBP Measures'!$T3385","v":"724"},{"$f":"'Data SBP Measures'!$U3385&B717","v":"122Percentage of Cases Disposed Over 18 Months Old"},{"$f":"'Data SBP Measures'!$Y3385","v":"PERCENT"},null,null,null,null,null,"Civil Courts - 122","Percentage of Cases Disposed Over 18 Months Old",null,null,null,null,null,null,null,"1777","119","Y","210","Criminal Division - Records / Intake & Criminal Trial Courts","EACH","OUTPUT","ADOPTEDBUD",null,null,null,"Criminal Division - Records / Intake & Criminal Trial Courts","# of cases filed",null,{"$f":"'Data SBP Measures'!$AF717&'Data SBP Measures'!$AE717& \" - \"& 'Data SBP Measures'!$U717","v":"# of cases filedCriminal Division - Records / Intake & Criminal Trial Courts - 119"},{"$f":"_xlfn.XLOOKUP(VALUE(W717),'Data SBP Programs'!O:O,'Data SBP Programs'!S:S)","v":"Criminal Division - Records / Intake & Criminal Trial Courts"}]
[{"$f":"'Data SBP Measures'!$AI3386&\" - \"&'Data SBP Measures'!$U3386","v":"Civil Courts - 122"},{"$f":"'Data SBP Measures'!$AF3386","v":"Percentage of Cases Disposed Over 18 Months Old"},{"$f":"'Data SBP Measures'!$T3386","v":"724"},{"$f":"'Data SBP Measures'!$U3386&B718","v":"122Percentage of Cases Disposed Over 18 Months Old"},{"$f":"'Data SBP Measures'!$Y3386","v":"PERCENT"},null,null,null,null,null,"Civil Courts - 122","Percentage of Cases Disposed Over 18 Months Old",null,null,null,null,null,null,null,"1778","119","Y","210","Criminal Division - Records / Intake & Criminal Trial Courts","EACH","OUTPUT","BLACKBOOK",null,null,null,"Criminal Division - Records / Intake & Criminal Trial Courts","# of cases set on contested dockets",null,{"$f":"'Data SBP Measures'!$AF718&'Data SBP Measures'!$AE718& \" - \"& 'Data SBP Measures'!$U718","v":"# of cases set on contested docketsCriminal Division - Records / Intake & Criminal Trial Courts - 119"},{"$f":"_xlfn.XLOOKUP(VALUE(W718),'Data SBP Programs'!O:O,'Data SBP Programs'!S:S)","v":"Criminal Division - Records / Intake & Criminal Trial Courts"}]
[{"$f":"'Data SBP Measures'!$AI3387&\" - \"&'Data SBP Measures'!$U3387","v":"Civil Courts - 122"},{"$f":"'Data SBP Measures'!$AF3387","v":"Percentage of Cases Disposed Over 18 Months Old"},{"$f":"'Data SBP Measures'!$T3387","v":"724"},{"$f":"'Data SBP Measures'!$U3387&B719","v":"122Percentage of Cases Disposed Over 18 Months Old"},{"$f":"'Data SBP Measures'!$Y3387","v":"PERCENT"},null,null,null,null,null,"Civil Courts - 122","Percentage of Cases Disposed Over 18 Months Old",null,null,null,null,null,null,null,"1779","119","Y","210","Criminal Division - Records / Intake & Criminal Trial Courts","EACH","OUTPUT","BLACKBOOK",null,null,null,"Criminal Division - Records / Intake & Criminal Trial Courts","# of cases set on all daily dockets",null,{"$f":"'Data SBP Measures'!$AF719&'Data SBP Measures'!$AE719& \" - \"& 'Data SBP Measures'!$U719","v":"# of cases set on all daily docketsCriminal Division - Records / Intake & Criminal Trial Courts - 119"},{"$f":"_xlfn.XLOOKUP(VALUE(W719),'Data SBP Programs'!O:O,'Data SBP Programs'!S:S)","v":"Criminal Division - Records / Intake & Criminal Trial Courts"}]
[{"$f":"'Data SBP Measures'!$AI3388&\" - \"&'Data SBP Measures'!$U3388","v":"Civil Courts - 122"},{"$f":"'Data SBP Measures'!$AF3388","v":"Percentage of Cases Disposed Over 18 Months Old"},{"$f":"'Data SBP Measures'!$T3388","v":"724"},{"$f":"'Data SBP Measures'!$U3388&B720","v":"122Percentage of Cases Disposed Over 18 Months Old"},{"$f":"'Data SBP Measures'!$Y3388","v":"PERCENT"},null,null,null,null,null,"Civil Courts - 122","Percentage of Cases Disposed Over 18 Months Old",null,null,null,null,null,null,null,"1781","119","Y","210","Criminal Division - Records / Intake & Criminal Trial Courts","EACH","OUTPUT","BLACKBOOK",null,null,null,"Criminal Division - Records / Intake & Criminal Trial Courts","# of cases set on Expedited Dockets",null,{"$f":"'Data SBP Measures'!$AF720&'Data SBP Measures'!$AE720& \" - \"& 'Data SBP Measures'!$U720","v":"# of cases set on Expedited DocketsCriminal Division - Records / Intake & Criminal Trial Courts - 119"},{"$f":"_xlfn.XLOOKUP(VALUE(W720),'Data SBP Programs'!O:O,'Data SBP Programs'!S:S)","v":"Criminal Division - Records / Intake & Criminal Trial Courts"}]
[{"$f":"'Data SBP Measures'!$AI3389&\" - \"&'Data SBP Measures'!$U3389","v":"Civil Courts - 122"},{"$f":"'Data SBP Measures'!$AF3389","v":"Percentage of Cases Disposed Over 18 Months Old"},{"$f":"'Data SBP Measures'!$T3389","v":"724"},{"$f":"'Data SBP Measures'!$U3389&B721","v":"122Percentage of Cases Disposed Over 18 Months Old"},{"$f":"'Data SBP Measures'!$Y3389","v":"PERCENT"},null,null,null,null,null,"Civil Courts - 122","Percentage of Cases Disposed Over 18 Months Old",null,null,null,null,null,null,null,"1782","119","Y","210","Criminal Division - Records / Intake & Criminal Trial Courts","EACH","OUTCOME","BLACKBOOK",null,null,null,"Criminal Division - Records / Intake & Criminal Trial Courts","# of cases Disposed",null,{"$f":"'Data SBP Measures'!$AF721&'Data SBP Measures'!$AE721& \" - \"& 'Data SBP Measures'!$U721","v":"# of cases DisposedCriminal Division - Records / Intake & Criminal Trial Courts - 119"},{"$f":"_xlfn.XLOOKUP(VALUE(W721),'Data SBP Programs'!O:O,'Data SBP Programs'!S:S)","v":"Criminal Division - Records / Intake & Criminal Trial Courts"}]
[{"$f":"'Data SBP Measures'!$AI3390&\" - \"&'Data SBP Measures'!$U3390","v":"Civil Courts - 122"},{"$f":"'Data SBP Measures'!$AF3390","v":"Percentage of Cases Disposed Over 18 Months Old"},{"$f":"'Data SBP Measures'!$T3390","v":"724"},{"$f":"'Data SBP Measures'!$U3390&B722","v":"122Percentage of Cases Disposed Over 18 Months Old"},{"$f":"'Data SBP Measures'!$Y3390","v":"PERCENT"},null,null,null,null,null,"Civil Courts - 122","Percentage of Cases Disposed Over 18 Months Old",null,null,null,null,null,null,null,"1784","119","Y","210","Criminal Division - Records / Intake & Criminal Trial Courts","EACH","OUTPUT","BLACKBOOK",null,null,null,"Criminal Division - Records / Intake & Criminal Trial Courts","Average # of defendants participating in treatment alternative courts (measured on the first of each month)",null,{"$f":"'Data SBP Measures'!$AF722&'Data SBP Measures'!$AE722& \" - \"& 'Data SBP Measures'!$U722","v":"Average # of defendants participating in treatment alternative courts (measured on the first of each month)Criminal Division - Records / Intake & Criminal Trial Courts - 119"},{"$f":"_xlfn.XLOOKUP(VALUE(W722),'Data SBP Programs'!O:O,'Data SBP Programs'!S:S)","v":"Criminal Division - Records / Intake & Criminal Trial Courts"}]
[{"$f":"'Data SBP Measures'!$AI3391&\" - \"&'Data SBP Measures'!$U3391","v":"Civil Courts - 122"},{"$f":"'Data SBP Measures'!$AF3391","v":"Percentage of Cases Disposed Over 18 Months Old"},{"$f":"'Data SBP Measures'!$T3391","v":"724"},{"$f":"'Data SBP Measures'!$U3391&B723","v":"122Percentage of Cases Disposed Over 18 Months Old"},{"$f":"'Data SBP Measures'!$Y3391","v":"PERCENT"},null,null,null,null,null,"Civil Courts - 122","Percentage of Cases Disposed Over 18 Months Old",null,null,null,null,null,null,null,"1785","119","Y","210","Criminal Division - Records / Intake & Criminal Trial Courts","EACH","OUTCOME","ADOPTEDBUD",null,null,null,"Criminal Division - Records / Intake & Criminal Trial Courts","# of applicants placed in diversion programs",null,{"$f":"'Data SBP Measures'!$AF723&'Data SBP Measures'!$AE723& \" - \"& 'Data SBP Measures'!$U723","v":"# of applicants placed in diversion programsCriminal Division - Records / Intake & Criminal Trial Courts - 119"},{"$f":"_xlfn.XLOOKUP(VALUE(W723),'Data SBP Programs'!O:O,'Data SBP Programs'!S:S)","v":"Criminal Division - Records / Intake & Criminal Trial Courts"}]
[{"$f":"'Data SBP Measures'!$AI3392&\" - \"&'Data SBP Measures'!$U3392","v":"Civil Courts - 122"},{"$f":"'Data SBP Measures'!$AF3392","v":"Percentage of Cases Disposed Over 18 Months Old"},{"$f":"'Data SBP Measures'!$T3392","v":"724"},{"$f":"'Data SBP Measures'!$U3392&B724","v":"122Percentage of Cases Disposed Over 18 Months Old"},{"$f":"'Data SBP Measures'!$Y3392","v":"PERCENT"},null,null,null,null,null,"Civil Courts - 122","Percentage of Cases Disposed Over 18 Months Old",null,null,null,null,null,null,null,"1786","119","Y","210","Criminal Division - Records / Intake & Criminal Trial Courts","EACH","OUTPUT","ADOPTEDBUD",null,null,null,"Criminal Division - Records / Intake & Criminal Trial Courts","# of instances of discovery sent",null,{"$f":"'Data SBP Measures'!$AF724&'Data SBP Measures'!$AE724& \" - \"& 'Data SBP Measures'!$U724","v":"# of instances of discovery sentCriminal Division - Records / Intake & Criminal Trial Courts - 119"},{"$f":"_xlfn.XLOOKUP(VALUE(W724),'Data SBP Programs'!O:O,'Data SBP Programs'!S:S)","v":"Criminal Division - Records / Intake & Criminal Trial Courts"}]
[{"$f":"'Data SBP Measures'!$AI3393&\" - \"&'Data SBP Measures'!$U3393","v":"Civil Courts - 122"},{"$f":"'Data SBP Measures'!$AF3393","v":"Percentage of Cases Disposed Over 18 Months Old"},{"$f":"'Data SBP Measures'!$T3393","v":"724"},{"$f":"'Data SBP Measures'!$U3393&B725","v":"122Percentage of Cases Disposed Over 18 Months Old"},{"$f":"'Data SBP Measures'!$Y3393","v":"PERCENT"},null,null,null,null,null,"Civil Courts - 122","Percentage of Cases Disposed Over 18 Months Old",null,null,null,null,null,null,null,"1787","119","Y","210","Criminal Division - Records / Intake & Criminal Trial Courts","EACH","OUTPUT","BLACKBOOK",null,null,null,"Criminal Division - Records / Intake & Criminal Trial Courts","# of Morton Act Compliance Statements Completed",null,{"$f":"'Data SBP Measures'!$AF725&'Data SBP Measures'!$AE725& \" - \"& 'Data SBP Measures'!$U725","v":"# of Morton Act Compliance Statements CompletedCriminal Division - Records / Intake & Criminal Trial Courts - 119"},{"$f":"_xlfn.XLOOKUP(VALUE(W725),'Data SBP Programs'!O:O,'Data SBP Programs'!S:S)","v":"Criminal Division - Records / Intake & Criminal Trial Courts"}]
[{"$f":"'Data SBP Measures'!$AI3394&\" - \"&'Data SBP Measures'!$U3394","v":"Civil Courts - 122"},{"$f":"'Data SBP Measures'!$AF3394","v":"Percentage of Cases Disposed Over 18 Months Old"},{"$f":"'Data SBP Measures'!$T3394","v":"724"},{"$f":"'Data SBP Measures'!$U3394&B726","v":"122Percentage of Cases Disposed Over 18 Months Old"},{"$f":"'Data SBP Measures'!$Y3394","v":"PERCENT"},null,null,null,null,null,"Civil Courts - 122","Percentage of Cases Disposed Over 18 Months Old",null,null,null,null,null,null,null,"1788","119","Y","211","Criminal Division - Truancy","EACH","INPUT","BLACKBOOK",null,null,null,"Criminal Division - Truancy","# of truancy referrals received",null,{"$f":"'Data SBP Measures'!$AF726&'Data SBP Measures'!$AE726& \" - \"& 'Data SBP Measures'!$U726","v":"# of truancy referrals receivedCriminal Division - Truancy - 119"},{"$f":"_xlfn.XLOOKUP(VALUE(W726),'Data SBP Programs'!O:O,'Data SBP Programs'!S:S)","v":"Criminal Division - Truancy"}]
[{"$f":"'Data SBP Measures'!$AI3395&\" - \"&'Data SBP Measures'!$U3395","v":"Civil Courts - 122"},{"$f":"'Data SBP Measures'!$AF3395","v":"Percentage of Cases Disposed Over 18 Months Old"},{"$f":"'Data SBP Measures'!$T3395","v":"724"},{"$f":"'Data SBP Measures'!$U3395&B727","v":"122Percentage of Cases Disposed Over 18 Months Old"},{"$f":"'Data SBP Measures'!$Y3395","v":"PERCENT"},null,null,null,null,null,"Civil Courts - 122","Percentage of Cases Disposed Over 18 Months Old",null,null,null,null,null,null,null,"1789","119","Y","211","Criminal Division - Truancy","EACH","OUTPUT","BLACKBOOK",null,null,null,"Criminal Division - Truancy","# of petitions to adjudicate filed",null,{"$f":"'Data SBP Measures'!$AF727&'Data SBP Measures'!$AE727& \" - \"& 'Data SBP Measures'!$U727","v":"# of petitions to adjudicate filedCriminal Division - Truancy - 119"},{"$f":"_xlfn.XLOOKUP(VALUE(W727),'Data SBP Programs'!O:O,'Data SBP Programs'!S:S)","v":"Criminal Division - Truancy"}]
[{"$f":"'Data SBP Measures'!$AI3396&\" - \"&'Data SBP Measures'!$U3396","v":"Civil Courts - 122"},{"$f":"'Data SBP Measures'!$AF3396","v":"Percentage of Cases Disposed Over 18 Months Old"},{"$f":"'Data SBP Measures'!$T3396","v":"724"},{"$f":"'Data SBP Measures'!$U3396&B728","v":"122Percentage of Cases Disposed Over 18 Months Old"},{"$f":"'Data SBP Measures'!$Y3396","v":"PERCENT"},null,null,null,null,null,"Civil Courts - 122","Percentage of Cases Disposed Over 18 Months Old",null,null,null,null,null,null,null,"1790","119","Y","211","Criminal Division - Truancy","EACH","OUTPUT","BLACKBOOK",null,null,null,"Criminal Division - Truancy","# of initial hearings",null,{"$f":"'Data SBP Measures'!$AF728&'Data SBP Measures'!$AE728& \" - \"& 'Data SBP Measures'!$U728","v":"# of initial hearingsCriminal Division - Truancy - 119"},{"$f":"_xlfn.XLOOKUP(VALUE(W728),'Data SBP Programs'!O:O,'Data SBP Programs'!S:S)","v":"Criminal Division - Truancy"}]
[{"$f":"'Data SBP Measures'!$AI3397&\" - \"&'Data SBP Measures'!$U3397","v":"Civil Courts - 122"},{"$f":"'Data SBP Measures'!$AF3397","v":"Percentage of Cases Disposed Over 18 Months Old"},{"$f":"'Data SBP Measures'!$T3397","v":"724"},{"$f":"'Data SBP Measures'!$U3397&B729","v":"122Percentage of Cases Disposed Over 18 Months Old"},{"$f":"'Data SBP Measures'!$Y3397","v":"PERCENT"},null,null,null,null,null,"Civil Courts - 122","Percentage of Cases Disposed Over 18 Months Old",null,null,null,null,null,null,null,"1791","119","Y","212","Criminal Division - Environmental","EACH","OUTPUT","ADOPTEDBUD",null,null,null,"Criminal Division - Environmental","# of Polluted Sites Investigated & Closed",null,{"$f":"'Data SBP Measures'!$AF729&'Data SBP Measures'!$AE729& \" - \"& 'Data SBP Measures'!$U729","v":"# of Polluted Sites Investigated & ClosedCriminal Division - Environmental - 119"},{"$f":"_xlfn.XLOOKUP(VALUE(W729),'Data SBP Programs'!O:O,'Data SBP Programs'!S:S)","v":"Criminal Division - Environmental"}]
[{"$f":"'Data SBP Measures'!$AI3398&\" - \"&'Data SBP Measures'!$U3398","v":"Civil Courts - 122"},{"$f":"'Data SBP Measures'!$AF3398","v":"Percentage of Cases Disposed Over 18 Months Old"},{"$f":"'Data SBP Measures'!$T3398","v":"724"},{"$f":"'Data SBP Measures'!$U3398&B730","v":"122Percentage of Cases Disposed Over 18 Months Old"},{"$f":"'Data SBP Measures'!$Y3398","v":"PERCENT"},null,null,null,null,null,"Civil Courts - 122","Percentage of Cases Disposed Over 18 Months Old",null,null,null,null,null,null,null,"1792","119","Y","212","Criminal Division - Environmental","EACH","INPUT","BLACKBOOK",null,null,null,"Criminal Division - Environmental","Environmental Consultations",null,{"$f":"'Data SBP Measures'!$AF730&'Data SBP Measures'!$AE730& \" - \"& 'Data SBP Measures'!$U730","v":"Environmental ConsultationsCriminal Division - Environmental - 119"},{"$f":"_xlfn.XLOOKUP(VALUE(W730),'Data SBP Programs'!O:O,'Data SBP Programs'!S:S)","v":"Criminal Division - Environmental"}]
[{"$f":"'Data SBP Measures'!$AI3399&\" - \"&'Data SBP Measures'!$U3399","v":"Civil Courts - 122"},{"$f":"'Data SBP Measures'!$AF3399","v":"Percentage of Cases Disposed Over 18 Months Old"},{"$f":"'Data SBP Measures'!$T3399","v":"724"},{"$f":"'Data SBP Measures'!$U3399&B731","v":"122Percentage of Cases Disposed Over 18 Months Old"},{"$f":"'Data SBP Measures'!$Y3399","v":"PERCENT"},null,null,null,null,null,"Civil Courts - 122","Percentage of Cases Disposed Over 18 Months Old",null,null,null,null,null,null,null,"1793","119","Y","213","Criminal Division - Family Violence & Protective Order Div","EACH","INPUT","BLACKBOOK",null,null,null,"Criminal Division - Family Violence & Protective Order Div","# cases entered into TechShare",null,{"$f":"'Data SBP Measures'!$AF731&'Data SBP Measures'!$AE731& \" - \"& 'Data SBP Measures'!$U731","v":"# cases entered into TechShareCriminal Division - Family Violence & Protective Order Div - 119"},{"$f":"_xlfn.XLOOKUP(VALUE(W731),'Data SBP Programs'!O:O,'Data SBP Programs'!S:S)","v":"Criminal Division - Family Violence & Protective Order Div"}]
[{"$f":"'Data SBP Measures'!$AI3400&\" - \"&'Data SBP Measures'!$U3400","v":"Civil Courts - 122"},{"$f":"'Data SBP Measures'!$AF3400","v":"Percentage of Cases Disposed Over 18 Months Old"},{"$f":"'Data SBP Measures'!$T3400","v":"724"},{"$f":"'Data SBP Measures'!$U3400&B732","v":"122Percentage of Cases Disposed Over 18 Months Old"},{"$f":"'Data SBP Measures'!$Y3400","v":"PERCENT"},null,null,null,null,null,"Civil Courts - 122","Percentage of Cases Disposed Over 18 Months Old",null,null,null,null,null,null,null,"1794","119","Y","213","Criminal Division - Family Violence & Protective Order Div","EACH","OUTPUT","BLACKBOOK",null,null,null,"Criminal Division - Family Violence & Protective Order Div","# hearings / case settings",null,{"$f":"'Data SBP Measures'!$AF732&'Data SBP Measures'!$AE732& \" - \"& 'Data SBP Measures'!$U732","v":"# hearings / case settingsCriminal Division - Family Violence & Protective Order Div - 119"},{"$f":"_xlfn.XLOOKUP(VALUE(W732),'Data SBP Programs'!O:O,'Data SBP Programs'!S:S)","v":"Criminal Division - Family Violence & Protective Order Div"}]
[{"$f":"'Data SBP Measures'!$AI3401&\" - \"&'Data SBP Measures'!$U3401","v":"Civil Courts - 122"},{"$f":"'Data SBP Measures'!$AF3401","v":"Percentage of Cases Disposed Over 18 Months Old"},{"$f":"'Data SBP Measures'!$T3401","v":"724"},{"$f":"'Data SBP Measures'!$U3401&B733","v":"122Percentage of Cases Disposed Over 18 Months Old"},{"$f":"'Data SBP Measures'!$Y3401","v":"PERCENT"},null,null,null,null,null,"Civil Courts - 122","Percentage of Cases Disposed Over 18 Months Old",null,null,null,null,null,null,null,"1795","119","Y","213","Criminal Division - Family Violence & Protective Order Div","EACH","OUTPUT","BLACKBOOK",null,null,null,"Criminal Division - Family Violence & Protective Order Div","# PO applications screened",null,{"$f":"'Data SBP Measures'!$AF733&'Data SBP Measures'!$AE733& \" - \"& 'Data SBP Measures'!$U733","v":"# PO applications screenedCriminal Division - Family Violence & Protective Order Div - 119"},{"$f":"_xlfn.XLOOKUP(VALUE(W733),'Data SBP Programs'!O:O,'Data SBP Programs'!S:S)","v":"Criminal Division - Family Violence & Protective Order Div"}]
[{"$f":"'Data SBP Measures'!$AI3402&\" - \"&'Data SBP Measures'!$U3402","v":"Civil Courts - 122"},{"$f":"'Data SBP Measures'!$AF3402","v":"Percentage of Cases Disposed Over 18 Months Old"},{"$f":"'Data SBP Measures'!$T3402","v":"724"},{"$f":"'Data SBP Measures'!$U3402&B734","v":"122Percentage of Cases Disposed Over 18 Months Old"},{"$f":"'Data SBP Measures'!$Y3402","v":"PERCENT"},null,null,null,null,null,"Civil Courts - 122","Percentage of Cases Disposed Over 18 Months Old",null,null,null,null,null,null,null,"1796","119","Y","213","Criminal Division - Family Violence & Protective Order Div","EACH","OUTPUT","ADOPTEDBUD",null,null,null,"Criminal Division - Family Violence & Protective Order Div","# PO filed",null,{"$f":"'Data SBP Measures'!$AF734&'Data SBP Measures'!$AE734& \" - \"& 'Data SBP Measures'!$U734","v":"# PO filedCriminal Division - Family Violence & Protective Order Div - 119"},{"$f":"_xlfn.XLOOKUP(VALUE(W734),'Data SBP Programs'!O:O,'Data SBP Programs'!S:S)","v":"Criminal Division - Family Violence & Protective Order Div"}]
[{"$f":"'Data SBP Measures'!$AI3403&\" - \"&'Data SBP Measures'!$U3403","v":"Civil Courts - 122"},{"$f":"'Data SBP Measures'!$AF3403","v":"Percentage of Cases Disposed Over 18 Months Old"},{"$f":"'Data SBP Measures'!$T3403","v":"724"},{"$f":"'Data SBP Measures'!$U3403&B735","v":"122Percentage of Cases Disposed Over 18 Months Old"},{"$f":"'Data SBP Measures'!$Y3403","v":"PERCENT"},null,null,null,null,null,"Civil Courts - 122","Percentage of Cases Disposed Over 18 Months Old",null,null,null,null,null,null,null,"1797","119","Y","213","Criminal Division - Family Violence & Protective Order Div","EACH","OUTPUT","BLACKBOOK",null,null,null,"Criminal Division - Family Violence & Protective Order Div","# PO court appearances",null,{"$f":"'Data SBP Measures'!$AF735&'Data SBP Measures'!$AE735& \" - \"& 'Data SBP Measures'!$U735","v":"# PO court appearancesCriminal Division - Family Violence & Protective Order Div - 119"},{"$f":"_xlfn.XLOOKUP(VALUE(W735),'Data SBP Programs'!O:O,'Data SBP Programs'!S:S)","v":"Criminal Division - Family Violence & Protective Order Div"}]
[{"$f":"'Data SBP Measures'!$AI3404&\" - \"&'Data SBP Measures'!$U3404","v":"Civil Courts - 122"},{"$f":"'Data SBP Measures'!$AF3404","v":"Percentage of Cases Disposed Over 18 Months Old"},{"$f":"'Data SBP Measures'!$T3404","v":"724"},{"$f":"'Data SBP Measures'!$U3404&B736","v":"122Percentage of Cases Disposed Over 18 Months Old"},{"$f":"'Data SBP Measures'!$Y3404","v":"PERCENT"},null,null,null,null,null,"Civil Courts - 122","Percentage of Cases Disposed Over 18 Months Old",null,null,null,null,null,null,null,"1799","119","Y","213","Criminal Division - Family Violence & Protective Order Div","EACH","OUTPUT","BLACKBOOK",null,null,null,"Criminal Division - Family Violence & Protective Order Div","Total # PO disposed of by other methods",null,{"$f":"'Data SBP Measures'!$AF736&'Data SBP Measures'!$AE736& \" - \"& 'Data SBP Measures'!$U736","v":"Total # PO disposed of by other methodsCriminal Division - Family Violence & Protective Order Div - 119"},{"$f":"_xlfn.XLOOKUP(VALUE(W736),'Data SBP Programs'!O:O,'Data SBP Programs'!S:S)","v":"Criminal Division - Family Violence & Protective Order Div"}]
[{"$f":"'Data SBP Measures'!$AI3405&\" - \"&'Data SBP Measures'!$U3405","v":"Civil Courts - 122"},{"$f":"'Data SBP Measures'!$AF3405","v":"Percentage of Cases Disposed Over 18 Months Old"},{"$f":"'Data SBP Measures'!$T3405","v":"724"},{"$f":"'Data SBP Measures'!$U3405&B737","v":"122Percentage of Cases Disposed Over 18 Months Old"},{"$f":"'Data SBP Measures'!$Y3405","v":"PERCENT"},null,null,null,null,null,"Civil Courts - 122","Percentage of Cases Disposed Over 18 Months Old",null,null,null,null,null,null,null,"1805","121","Y","214","Jury Management Office","DOLLARS","OUTPUT","ADOPTEDBUD",null,null,null,"Jury Management Office","Revenue generated by passport application activities",null,{"$f":"'Data SBP Measures'!$AF737&'Data SBP Measures'!$AE737& \" - \"& 'Data SBP Measures'!$U737","v":"Revenue generated by passport application activitiesJury Management Office - 121"},{"$f":"_xlfn.XLOOKUP(VALUE(W737),'Data SBP Programs'!O:O,'Data SBP Programs'!S:S)","v":"Jury Management Office"}]
[{"$f":"'Data SBP Measures'!$AI3406&\" - \"&'Data SBP Measures'!$U3406","v":"Civil Courts - 122"},{"$f":"'Data SBP Measures'!$AF3406","v":"Percentage of Cases Disposed Over 18 Months Old"},{"$f":"'Data SBP Measures'!$T3406","v":"724"},{"$f":"'Data SBP Measures'!$U3406&B738","v":"122Percentage of Cases Disposed Over 18 Months Old"},{"$f":"'Data SBP Measures'!$Y3406","v":"PERCENT"},null,null,null,null,null,"Civil Courts - 122","Percentage of Cases Disposed Over 18 Months Old",null,null,null,null,null,null,null,"1806","121","Y","215","Tech Support Development and Quality Assurance","EACH","OUTCOME","NEITHER",null,null,null,"Tech Support Development and Quality Assurance","# of attorneys and court officers with access to court documents online through the AARO system",null,{"$f":"'Data SBP Measures'!$AF738&'Data SBP Measures'!$AE738& \" - \"& 'Data SBP Measures'!$U738","v":"# of attorneys and court officers with access to court documents online through the AARO systemTech Support Development and Quality Assurance - 121"},{"$f":"_xlfn.XLOOKUP(VALUE(W738),'Data SBP Programs'!O:O,'Data SBP Programs'!S:S)","v":"Civil Division (Family)"}]
[{"$f":"'Data SBP Measures'!$AI3407&\" - \"&'Data SBP Measures'!$U3407","v":"Civil Courts - 122"},{"$f":"'Data SBP Measures'!$AF3407","v":"Percentage of Cases Disposed Over 18 Months Old"},{"$f":"'Data SBP Measures'!$T3407","v":"724"},{"$f":"'Data SBP Measures'!$U3407&B739","v":"122Percentage of Cases Disposed Over 18 Months Old"},{"$f":"'Data SBP Measures'!$Y3407","v":"PERCENT"},null,null,null,null,null,"Civil Courts - 122","Percentage of Cases Disposed Over 18 Months Old",null,null,null,null,null,null,null,"1809","121","Y","218","General Litigation/Government Division","EACH","INPUT","NEITHER",null,null,null,"General Litigation/Government Division","# production entries in FACTS",null,{"$f":"'Data SBP Measures'!$AF739&'Data SBP Measures'!$AE739& \" - \"& 'Data SBP Measures'!$U739","v":"# production entries in FACTSGeneral Litigation/Government Division - 121"},{"$f":"_xlfn.XLOOKUP(VALUE(W739),'Data SBP Programs'!O:O,'Data SBP Programs'!S:S)","v":"General Litigation/Government Division"}]
[{"$f":"'Data SBP Measures'!$AI3408&\" - \"&'Data SBP Measures'!$U3408","v":"Civil Courts - 122"},{"$f":"'Data SBP Measures'!$AF3408","v":"Percentage of Cases Disposed Over 18 Months Old"},{"$f":"'Data SBP Measures'!$T3408","v":"724"},{"$f":"'Data SBP Measures'!$U3408&B740","v":"122Percentage of Cases Disposed Over 18 Months Old"},{"$f":"'Data SBP Measures'!$Y3408","v":"PERCENT"},null,null,null,null,null,"Civil Courts - 122","Percentage of Cases Disposed Over 18 Months Old",null,null,null,null,null,null,null,"1810","121","Y","215","Tech Support Development and Quality Assurance","EACH","OUTPUT","NEITHER",null,null,null,"Tech Support Development and Quality Assurance","# of Gen. Lit/Govt. production entries reviewed/audited for quality assurance",null,{"$f":"'Data SBP Measures'!$AF740&'Data SBP Measures'!$AE740& \" - \"& 'Data SBP Measures'!$U740","v":"# of Gen. Lit/Govt. production entries reviewed/audited for quality assuranceTech Support Development and Quality Assurance - 121"},{"$f":"_xlfn.XLOOKUP(VALUE(W740),'Data SBP Programs'!O:O,'Data SBP Programs'!S:S)","v":"Civil Division (Family)"}]
[{"$f":"'Data SBP Measures'!$AI3409&\" - \"&'Data SBP Measures'!$U3409","v":"Civil Courts - 122"},{"$f":"'Data SBP Measures'!$AF3409","v":"Percentage of Cases Disposed Over 18 Months Old"},{"$f":"'Data SBP Measures'!$T3409","v":"724"},{"$f":"'Data SBP Measures'!$U3409&B741","v":"122Percentage of Cases Disposed Over 18 Months Old"},{"$f":"'Data SBP Measures'!$Y3409","v":"PERCENT"},null,null,null,null,null,"Civil Courts - 122","Percentage of Cases Disposed Over 18 Months Old",null,null,null,null,null,null,null,"1813","121","Y","215","Tech Support Development and Quality Assurance","EACH","INPUT","ADOPTEDBUD",null,null,null,"Tech Support Development and Quality Assurance","# Family production entries in FACTS",null,{"$f":"'Data SBP Measures'!$AF741&'Data SBP Measures'!$AE741& \" - \"& 'Data SBP Measures'!$U741","v":"# Family production entries in FACTSTech Support Development and Quality Assurance - 121"},{"$f":"_xlfn.XLOOKUP(VALUE(W741),'Data SBP Programs'!O:O,'Data SBP Programs'!S:S)","v":"Civil Division (Family)"}]
[{"$f":"'Data SBP Measures'!$AI3410&\" - \"&'Data SBP Measures'!$U3410","v":"Civil Courts - 122"},{"$f":"'Data SBP Measures'!$AF3410","v":"Percentage of Cases Disposed Over 18 Months Old"},{"$f":"'Data SBP Measures'!$T3410","v":"724"},{"$f":"'Data SBP Measures'!$U3410&B742","v":"122Percentage of Cases Disposed Over 18 Months Old"},{"$f":"'Data SBP Measures'!$Y3410","v":"PERCENT"},null,null,null,null,null,"Civil Courts - 122","Percentage of Cases Disposed Over 18 Months Old",null,null,null,null,null,null,null,"1814","121","Y","215","Tech Support Development and Quality Assurance","EACH","OUTPUT","NEITHER",null,null,null,"Tech Support Development and Quality Assurance","# Family entries reviewed",null,{"$f":"'Data SBP Measures'!$AF742&'Data SBP Measures'!$AE742& \" - \"& 'Data SBP Measures'!$U742","v":"# Family entries reviewedTech Support Development and Quality Assurance - 121"},{"$f":"_xlfn.XLOOKUP(VALUE(W742),'Data SBP Programs'!O:O,'Data SBP Programs'!S:S)","v":"Civil Division (Family)"}]
[{"$f":"'Data SBP Measures'!$AI2127&\" - \"&'Data SBP Measures'!$U2127","v":"Civil Department - 130"},{"$f":"'Data SBP Measures'!$AF2127","v":"Cases Appealed"},{"$f":"'Data SBP Measures'!$T2127","v":"2665"},{"$f":"'Data SBP Measures'!$U2127&B743","v":"130Cases Appealed"},{"$f":"'Data SBP Measures'!$Y2127","v":"EACH"},null,null,null,null,null,"Civil Department - 130","Cases Appealed",null,null,null,null,null,null,null,"1816","121","Y","215","Tech Support Development and Quality Assurance","EACH","INPUT","ADOPTEDBUD",null,null,null,"Tech Support Development and Quality Assurance","# of new or reopened Criminal cases filed",null,{"$f":"'Data SBP Measures'!$AF743&'Data SBP Measures'!$AE743& \" - \"& 'Data SBP Measures'!$U743","v":"# of new or reopened Criminal cases filedTech Support Development and Quality Assurance - 121"},{"$f":"_xlfn.XLOOKUP(VALUE(W743),'Data SBP Programs'!O:O,'Data SBP Programs'!S:S)","v":"Civil Division (Family)"}]
[{"$f":"'Data SBP Measures'!$AI2128&\" - \"&'Data SBP Measures'!$U2128","v":"Civil Department - 130"},{"$f":"'Data SBP Measures'!$AF2128","v":"Cases Appealed"},{"$f":"'Data SBP Measures'!$T2128","v":"2665"},{"$f":"'Data SBP Measures'!$U2128&B744","v":"130Cases Appealed"},{"$f":"'Data SBP Measures'!$Y2128","v":"EACH"},null,null,null,null,null,"Civil Department - 130","Cases Appealed",null,null,null,null,null,null,null,"1819","121","Y","219","Criminal Division","EACH","INPUT","ADOPTEDBUD",null,null,null,"Criminal Division","# of production entries in FACTS",null,{"$f":"'Data SBP Measures'!$AF744&'Data SBP Measures'!$AE744& \" - \"& 'Data SBP Measures'!$U744","v":"# of production entries in FACTSCriminal Division - 121"},{"$f":"_xlfn.XLOOKUP(VALUE(W744),'Data SBP Programs'!O:O,'Data SBP Programs'!S:S)","v":"Accounting Division"}]
[{"$f":"'Data SBP Measures'!$AI2129&\" - \"&'Data SBP Measures'!$U2129","v":"Civil Department - 130"},{"$f":"'Data SBP Measures'!$AF2129","v":"Cases Appealed"},{"$f":"'Data SBP Measures'!$T2129","v":"2665"},{"$f":"'Data SBP Measures'!$U2129&B745","v":"130Cases Appealed"},{"$f":"'Data SBP Measures'!$Y2129","v":"EACH"},null,null,null,null,null,"Civil Department - 130","Cases Appealed",null,null,null,null,null,null,null,"1819","121","Y","219","Criminal Division","EACH","INPUT","ADOPTEDBUD",null,null,null,"Criminal Division","# of production entries in FACTS",null,{"$f":"'Data SBP Measures'!$AF745&'Data SBP Measures'!$AE745& \" - \"& 'Data SBP Measures'!$U745","v":"# of production entries in FACTSCriminal Division - 121"},{"$f":"_xlfn.XLOOKUP(VALUE(W745),'Data SBP Programs'!O:O,'Data SBP Programs'!S:S)","v":"Accounting Division"}]
[{"$f":"'Data SBP Measures'!$AI2130&\" - \"&'Data SBP Measures'!$U2130","v":"Civil Department - 130"},{"$f":"'Data SBP Measures'!$AF2130","v":"Cases Appealed"},{"$f":"'Data SBP Measures'!$T2130","v":"2665"},{"$f":"'Data SBP Measures'!$U2130&B746","v":"130Cases Appealed"},{"$f":"'Data SBP Measures'!$Y2130","v":"EACH"},null,null,null,null,null,"Civil Department - 130","Cases Appealed",null,null,null,null,null,null,null,"1819","121","Y","219","Criminal Division","EACH","INPUT","ADOPTEDBUD",null,null,null,"Criminal Division","# of production entries in FACTS",null,{"$f":"'Data SBP Measures'!$AF746&'Data SBP Measures'!$AE746& \" - \"& 'Data SBP Measures'!$U746","v":"# of production entries in FACTSCriminal Division - 121"},{"$f":"_xlfn.XLOOKUP(VALUE(W746),'Data SBP Programs'!O:O,'Data SBP Programs'!S:S)","v":"Accounting Division"}]
[{"$f":"'Data SBP Measures'!$AI2123&\" - \"&'Data SBP Measures'!$U2123","v":"Civil Department - 130"},{"$f":"'Data SBP Measures'!$AF2123","v":"Cases resolved within 6-8 months of file date or sooner"},{"$f":"'Data SBP Measures'!$T2123","v":"2664"},{"$f":"'Data SBP Measures'!$U2123&B747","v":"130Cases resolved within 6-8 months of file date or sooner"},{"$f":"'Data SBP Measures'!$Y2123","v":"EACH"},null,null,null,null,null,"Civil Department - 130","Cases resolved within 6-8 months of file date or sooner",null,null,null,null,null,null,null,"1821","121","Y","215","Tech Support Development and Quality Assurance","EACH","OUTPUT","NEITHER",null,null,null,"Tech Support Development and Quality Assurance","# of dispositions",null,{"$f":"'Data SBP Measures'!$AF747&'Data SBP Measures'!$AE747& \" - \"& 'Data SBP Measures'!$U747","v":"# of dispositionsTech Support Development and Quality Assurance - 121"},{"$f":"_xlfn.XLOOKUP(VALUE(W747),'Data SBP Programs'!O:O,'Data SBP Programs'!S:S)","v":"Civil Division (Family)"}]
[{"$f":"'Data SBP Measures'!$AI2124&\" - \"&'Data SBP Measures'!$U2124","v":"Civil Department - 130"},{"$f":"'Data SBP Measures'!$AF2124","v":"Cases resolved within 6-8 months of file date or sooner"},{"$f":"'Data SBP Measures'!$T2124","v":"2664"},{"$f":"'Data SBP Measures'!$U2124&B748","v":"130Cases resolved within 6-8 months of file date or sooner"},{"$f":"'Data SBP Measures'!$Y2124","v":"EACH"},null,null,null,null,null,"Civil Department - 130","Cases resolved within 6-8 months of file date or sooner",null,null,null,null,null,null,null,"1822","121","Y","215","Tech Support Development and Quality Assurance","EACH","OUTPUT","NEITHER",null,null,null,"Tech Support Development and Quality Assurance","# of documents entered in the document management system",null,{"$f":"'Data SBP Measures'!$AF748&'Data SBP Measures'!$AE748& \" - \"& 'Data SBP Measures'!$U748","v":"# of documents entered in the document management systemTech Support Development and Quality Assurance - 121"},{"$f":"_xlfn.XLOOKUP(VALUE(W748),'Data SBP Programs'!O:O,'Data SBP Programs'!S:S)","v":"Civil Division (Family)"}]
[{"$f":"'Data SBP Measures'!$AI2125&\" - \"&'Data SBP Measures'!$U2125","v":"Civil Department - 130"},{"$f":"'Data SBP Measures'!$AF2125","v":"Cases resolved within 6-8 months of file date or sooner"},{"$f":"'Data SBP Measures'!$T2125","v":"2664"},{"$f":"'Data SBP Measures'!$U2125&B749","v":"130Cases resolved within 6-8 months of file date or sooner"},{"$f":"'Data SBP Measures'!$Y2125","v":"EACH"},null,null,null,null,null,"Civil Department - 130","Cases resolved within 6-8 months of file date or sooner",null,null,null,null,null,null,null,"1823","121","Y","215","Tech Support Development and Quality Assurance","EACH","OUTPUT","NEITHER",null,null,null,"Tech Support Development and Quality Assurance","# e-files processed by civil, family and criminal division clerks (includes accepted and rejected)",null,{"$f":"'Data SBP Measures'!$AF749&'Data SBP Measures'!$AE749& \" - \"& 'Data SBP Measures'!$U749","v":"# e-files processed by civil, family and criminal division clerks (includes accepted and rejected)Tech Support Development and Quality Assurance - 121"},{"$f":"_xlfn.XLOOKUP(VALUE(W749),'Data SBP Programs'!O:O,'Data SBP Programs'!S:S)","v":"Civil Division (Family)"}]
[{"$f":"'Data SBP Measures'!$AI2126&\" - \"&'Data SBP Measures'!$U2126","v":"Civil Department - 130"},{"$f":"'Data SBP Measures'!$AF2126","v":"Cases resolved within 6-8 months of file date or sooner"},{"$f":"'Data SBP Measures'!$T2126","v":"2664"},{"$f":"'Data SBP Measures'!$U2126&B750","v":"130Cases resolved within 6-8 months of file date or sooner"},{"$f":"'Data SBP Measures'!$Y2126","v":"EACH"},null,null,null,null,null,"Civil Department - 130","Cases resolved within 6-8 months of file date or sooner",null,null,null,null,null,null,null,"1824","121","Y","215","Tech Support Development and Quality Assurance","EACH","OUTPUT","NEITHER",null,null,null,"Tech Support Development and Quality Assurance","# documents processed through Agency Upload by civil/family/criminal clerks",null,{"$f":"'Data SBP Measures'!$AF750&'Data SBP Measures'!$AE750& \" - \"& 'Data SBP Measures'!$U750","v":"# documents processed through Agency Upload by civil/family/criminal clerksTech Support Development and Quality Assurance - 121"},{"$f":"_xlfn.XLOOKUP(VALUE(W750),'Data SBP Programs'!O:O,'Data SBP Programs'!S:S)","v":"Civil Division (Family)"}]
[{"$f":"'Data SBP Measures'!$AI2201&\" - \"&'Data SBP Measures'!$U2201","v":"Civil Department - 130"},{"$f":"'Data SBP Measures'!$AF2201","v":"Court ordered actions completed via paperless workflow"},{"$f":"'Data SBP Measures'!$T2201","v":"2725"},{"$f":"'Data SBP Measures'!$U2201&B751","v":"130Court ordered actions completed via paperless workflow"},{"$f":"'Data SBP Measures'!$Y2201","v":"EACH"},null,null,null,null,null,"Civil Department - 130","Court ordered actions completed via paperless workflow",null,null,null,null,null,null,null,"1825","121","Y","215","Tech Support Development and Quality Assurance","EACH","OUTPUT","NEITHER",null,null,null,"Tech Support Development and Quality Assurance","# Appeals and Record requests via Appeals Creator application",null,{"$f":"'Data SBP Measures'!$AF751&'Data SBP Measures'!$AE751& \" - \"& 'Data SBP Measures'!$U751","v":"# Appeals and Record requests via Appeals Creator applicationTech Support Development and Quality Assurance - 121"},{"$f":"_xlfn.XLOOKUP(VALUE(W751),'Data SBP Programs'!O:O,'Data SBP Programs'!S:S)","v":"Civil Division (Family)"}]
[{"$f":"'Data SBP Measures'!$AI2202&\" - \"&'Data SBP Measures'!$U2202","v":"Civil Department - 130"},{"$f":"'Data SBP Measures'!$AF2202","v":"Court ordered actions completed via paperless workflow"},{"$f":"'Data SBP Measures'!$T2202","v":"2725"},{"$f":"'Data SBP Measures'!$U2202&B752","v":"130Court ordered actions completed via paperless workflow"},{"$f":"'Data SBP Measures'!$Y2202","v":"EACH"},null,null,null,null,null,"Civil Department - 130","Court ordered actions completed via paperless workflow",null,null,null,null,null,null,null,"1828","121","Y","219","Criminal Division","EACH","OUTPUT","NEITHER",null,null,null,"Criminal Division","Capias/warrant issued",null,{"$f":"'Data SBP Measures'!$AF752&'Data SBP Measures'!$AE752& \" - \"& 'Data SBP Measures'!$U752","v":"Capias/warrant issuedCriminal Division - 121"},{"$f":"_xlfn.XLOOKUP(VALUE(W752),'Data SBP Programs'!O:O,'Data SBP Programs'!S:S)","v":"Accounting Division"}]
[{"$f":"'Data SBP Measures'!$AI2203&\" - \"&'Data SBP Measures'!$U2203","v":"Civil Department - 130"},{"$f":"'Data SBP Measures'!$AF2203","v":"Court ordered actions completed via paperless workflow"},{"$f":"'Data SBP Measures'!$T2203","v":"2725"},{"$f":"'Data SBP Measures'!$U2203&B753","v":"130Court ordered actions completed via paperless workflow"},{"$f":"'Data SBP Measures'!$Y2203","v":"EACH"},null,null,null,null,null,"Civil Department - 130","Court ordered actions completed via paperless workflow",null,null,null,null,null,null,null,"1828","121","Y","219","Criminal Division","EACH","OUTPUT","NEITHER",null,null,null,"Criminal Division","Capias/warrant issued",null,{"$f":"'Data SBP Measures'!$AF753&'Data SBP Measures'!$AE753& \" - \"& 'Data SBP Measures'!$U753","v":"Capias/warrant issuedCriminal Division - 121"},{"$f":"_xlfn.XLOOKUP(VALUE(W753),'Data SBP Programs'!O:O,'Data SBP Programs'!S:S)","v":"Accounting Division"}]
[{"$f":"'Data SBP Measures'!$AI2204&\" - \"&'Data SBP Measures'!$U2204","v":"Civil Department - 130"},{"$f":"'Data SBP Measures'!$AF2204","v":"Court ordered actions completed via paperless workflow"},{"$f":"'Data SBP Measures'!$T2204","v":"2725"},{"$f":"'Data SBP Measures'!$U2204&B754","v":"130Court ordered actions completed via paperless workflow"},{"$f":"'Data SBP Measures'!$Y2204","v":"EACH"},null,null,null,null,null,"Civil Department - 130","Court ordered actions completed via paperless workflow",null,null,null,null,null,null,null,"1828","121","Y","219","Criminal Division","EACH","OUTPUT","NEITHER",null,null,null,"Criminal Division","Capias/warrant issued",null,{"$f":"'Data SBP Measures'!$AF754&'Data SBP Measures'!$AE754& \" - \"& 'Data SBP Measures'!$U754","v":"Capias/warrant issuedCriminal Division - 121"},{"$f":"_xlfn.XLOOKUP(VALUE(W754),'Data SBP Programs'!O:O,'Data SBP Programs'!S:S)","v":"Accounting Division"}]
[{"$f":"'Data SBP Measures'!$AI2078&\" - \"&'Data SBP Measures'!$U2078","v":"Civil Department - 130"},{"$f":"'Data SBP Measures'!$AF2078","v":"Driver’s License Revocation Hearings"},{"$f":"'Data SBP Measures'!$T2078","v":"2649"},{"$f":"'Data SBP Measures'!$U2078&B755","v":"130Driver’s License Revocation Hearings"},{"$f":"'Data SBP Measures'!$Y2078","v":"EACH"},null,null,null,null,null,"Civil Department - 130","Driver’s License Revocation Hearings",null,null,null,null,null,null,null,"1829","121","Y","219","Criminal Division","EACH","OUTPUT","NEITHER",null,null,null,"Criminal Division","Capias/warrant returned",null,{"$f":"'Data SBP Measures'!$AF755&'Data SBP Measures'!$AE755& \" - \"& 'Data SBP Measures'!$U755","v":"Capias/warrant returnedCriminal Division - 121"},{"$f":"_xlfn.XLOOKUP(VALUE(W755),'Data SBP Programs'!O:O,'Data SBP Programs'!S:S)","v":"Accounting Division"}]
[{"$f":"'Data SBP Measures'!$AI2079&\" - \"&'Data SBP Measures'!$U2079","v":"Civil Department - 130"},{"$f":"'Data SBP Measures'!$AF2079","v":"Driver’s License Revocation Hearings"},{"$f":"'Data SBP Measures'!$T2079","v":"2649"},{"$f":"'Data SBP Measures'!$U2079&B756","v":"130Driver’s License Revocation Hearings"},{"$f":"'Data SBP Measures'!$Y2079","v":"EACH"},null,null,null,null,null,"Civil Department - 130","Driver’s License Revocation Hearings",null,null,null,null,null,null,null,"1829","121","Y","219","Criminal Division","EACH","OUTPUT","NEITHER",null,null,null,"Criminal Division","Capias/warrant returned",null,{"$f":"'Data SBP Measures'!$AF756&'Data SBP Measures'!$AE756& \" - \"& 'Data SBP Measures'!$U756","v":"Capias/warrant returnedCriminal Division - 121"},{"$f":"_xlfn.XLOOKUP(VALUE(W756),'Data SBP Programs'!O:O,'Data SBP Programs'!S:S)","v":"Accounting Division"}]
[{"$f":"'Data SBP Measures'!$AI2080&\" - \"&'Data SBP Measures'!$U2080","v":"Civil Department - 130"},{"$f":"'Data SBP Measures'!$AF2080","v":"Driver’s License Revocation Hearings"},{"$f":"'Data SBP Measures'!$T2080","v":"2649"},{"$f":"'Data SBP Measures'!$U2080&B757","v":"130Driver’s License Revocation Hearings"},{"$f":"'Data SBP Measures'!$Y2080","v":"EACH"},null,null,null,null,null,"Civil Department - 130","Driver’s License Revocation Hearings",null,null,null,null,null,null,null,"1829","121","Y","219","Criminal Division","EACH","OUTPUT","NEITHER",null,null,null,"Criminal Division","Capias/warrant returned",null,{"$f":"'Data SBP Measures'!$AF757&'Data SBP Measures'!$AE757& \" - \"& 'Data SBP Measures'!$U757","v":"Capias/warrant returnedCriminal Division - 121"},{"$f":"_xlfn.XLOOKUP(VALUE(W757),'Data SBP Programs'!O:O,'Data SBP Programs'!S:S)","v":"Accounting Division"}]
[{"$f":"'Data SBP Measures'!$AI2081&\" - \"&'Data SBP Measures'!$U2081","v":"Civil Department - 130"},{"$f":"'Data SBP Measures'!$AF2081","v":"Driver’s License Revocation Hearings"},{"$f":"'Data SBP Measures'!$T2081","v":"2649"},{"$f":"'Data SBP Measures'!$U2081&B758","v":"130Driver’s License Revocation Hearings"},{"$f":"'Data SBP Measures'!$Y2081","v":"EACH"},null,null,null,null,null,"Civil Department - 130","Driver’s License Revocation Hearings",null,null,null,null,null,null,null,"1830","121","Y","219","Criminal Division","EACH","OUTPUT","NEITHER",null,null,null,"Criminal Division","Subpoenas processed",null,{"$f":"'Data SBP Measures'!$AF758&'Data SBP Measures'!$AE758& \" - \"& 'Data SBP Measures'!$U758","v":"Subpoenas processedCriminal Division - 121"},{"$f":"_xlfn.XLOOKUP(VALUE(W758),'Data SBP Programs'!O:O,'Data SBP Programs'!S:S)","v":"Accounting Division"}]
[{"$f":"'Data SBP Measures'!$AI2131&\" - \"&'Data SBP Measures'!$U2131","v":"Civil Department - 130"},{"$f":"'Data SBP Measures'!$AF2131","v":"Hearings Scheduled & Held"},{"$f":"'Data SBP Measures'!$T2131","v":"2666"},{"$f":"'Data SBP Measures'!$U2131&B759","v":"130Hearings Scheduled & Held"},{"$f":"'Data SBP Measures'!$Y2131","v":"EACH"},null,null,null,null,null,"Civil Department - 130","Hearings Scheduled & Held",null,null,null,null,null,null,null,"1830","121","Y","219","Criminal Division","EACH","OUTPUT","NEITHER",null,null,null,"Criminal Division","Subpoenas processed",null,{"$f":"'Data SBP Measures'!$AF759&'Data SBP Measures'!$AE759& \" - \"& 'Data SBP Measures'!$U759","v":"Subpoenas processedCriminal Division - 121"},{"$f":"_xlfn.XLOOKUP(VALUE(W759),'Data SBP Programs'!O:O,'Data SBP Programs'!S:S)","v":"Accounting Division"}]
[{"$f":"'Data SBP Measures'!$AI2132&\" - \"&'Data SBP Measures'!$U2132","v":"Civil Department - 130"},{"$f":"'Data SBP Measures'!$AF2132","v":"Hearings Scheduled & Held"},{"$f":"'Data SBP Measures'!$T2132","v":"2666"},{"$f":"'Data SBP Measures'!$U2132&B760","v":"130Hearings Scheduled & Held"},{"$f":"'Data SBP Measures'!$Y2132","v":"EACH"},null,null,null,null,null,"Civil Department - 130","Hearings Scheduled & Held",null,null,null,null,null,null,null,"1830","121","Y","219","Criminal Division","EACH","OUTPUT","NEITHER",null,null,null,"Criminal Division","Subpoenas processed",null,{"$f":"'Data SBP Measures'!$AF760&'Data SBP Measures'!$AE760& \" - \"& 'Data SBP Measures'!$U760","v":"Subpoenas processedCriminal Division - 121"},{"$f":"_xlfn.XLOOKUP(VALUE(W760),'Data SBP Programs'!O:O,'Data SBP Programs'!S:S)","v":"Accounting Division"}]
[{"$f":"'Data SBP Measures'!$AI2133&\" - \"&'Data SBP Measures'!$U2133","v":"Civil Department - 130"},{"$f":"'Data SBP Measures'!$AF2133","v":"Hearings Scheduled & Held"},{"$f":"'Data SBP Measures'!$T2133","v":"2666"},{"$f":"'Data SBP Measures'!$U2133&B761","v":"130Hearings Scheduled & Held"},{"$f":"'Data SBP Measures'!$Y2133","v":"EACH"},null,null,null,null,null,"Civil Department - 130","Hearings Scheduled & Held",null,null,null,null,null,null,null,"1832","121","Y","219","Criminal Division","EACH","OUTPUT","NEITHER",null,null,null,"Criminal Division","Pen Packets prepared",null,{"$f":"'Data SBP Measures'!$AF761&'Data SBP Measures'!$AE761& \" - \"& 'Data SBP Measures'!$U761","v":"Pen Packets preparedCriminal Division - 121"},{"$f":"_xlfn.XLOOKUP(VALUE(W761),'Data SBP Programs'!O:O,'Data SBP Programs'!S:S)","v":"Accounting Division"}]
[{"$f":"'Data SBP Measures'!$AI2134&\" - \"&'Data SBP Measures'!$U2134","v":"Civil Department - 130"},{"$f":"'Data SBP Measures'!$AF2134","v":"Hearings Scheduled & Held"},{"$f":"'Data SBP Measures'!$T2134","v":"2666"},{"$f":"'Data SBP Measures'!$U2134&B762","v":"130Hearings Scheduled & Held"},{"$f":"'Data SBP Measures'!$Y2134","v":"EACH"},null,null,null,null,null,"Civil Department - 130","Hearings Scheduled & Held",null,null,null,null,null,null,null,"1832","121","Y","219","Criminal Division","EACH","OUTPUT","NEITHER",null,null,null,"Criminal Division","Pen Packets prepared",null,{"$f":"'Data SBP Measures'!$AF762&'Data SBP Measures'!$AE762& \" - \"& 'Data SBP Measures'!$U762","v":"Pen Packets preparedCriminal Division - 121"},{"$f":"_xlfn.XLOOKUP(VALUE(W762),'Data SBP Programs'!O:O,'Data SBP Programs'!S:S)","v":"Accounting Division"}]
[{"$f":"'Data SBP Measures'!$AI1431&\" - \"&'Data SBP Measures'!$U1431","v":"Civil Department - 130"},{"$f":"'Data SBP Measures'!$AF1431","v":"Number of cases filed"},{"$f":"'Data SBP Measures'!$T1431","v":"2226"},{"$f":"'Data SBP Measures'!$U1431&B763","v":"130Number of cases filed"},{"$f":"'Data SBP Measures'!$Y1431","v":"EACH"},null,null,null,null,null,"Civil Department - 130","Number of cases filed",null,null,null,null,null,null,null,"1832","121","Y","219","Criminal Division","EACH","OUTPUT","NEITHER",null,null,null,"Criminal Division","Pen Packets prepared",null,{"$f":"'Data SBP Measures'!$AF763&'Data SBP Measures'!$AE763& \" - \"& 'Data SBP Measures'!$U763","v":"Pen Packets preparedCriminal Division - 121"},{"$f":"_xlfn.XLOOKUP(VALUE(W763),'Data SBP Programs'!O:O,'Data SBP Programs'!S:S)","v":"Accounting Division"}]
[{"$f":"'Data SBP Measures'!$AI1432&\" - \"&'Data SBP Measures'!$U1432","v":"Civil Department - 130"},{"$f":"'Data SBP Measures'!$AF1432","v":"Number of cases filed"},{"$f":"'Data SBP Measures'!$T1432","v":"2226"},{"$f":"'Data SBP Measures'!$U1432&B764","v":"130Number of cases filed"},{"$f":"'Data SBP Measures'!$Y1432","v":"EACH"},null,null,null,null,null,"Civil Department - 130","Number of cases filed",null,null,null,null,null,null,null,"1833","121","Y","219","Criminal Division","EACH","INPUT","NEITHER",null,null,null,"Criminal Division","Indictment & information",null,{"$f":"'Data SBP Measures'!$AF764&'Data SBP Measures'!$AE764& \" - \"& 'Data SBP Measures'!$U764","v":"Indictment & informationCriminal Division - 121"},{"$f":"_xlfn.XLOOKUP(VALUE(W764),'Data SBP Programs'!O:O,'Data SBP Programs'!S:S)","v":"Accounting Division"}]
[{"$f":"'Data SBP Measures'!$AI1433&\" - \"&'Data SBP Measures'!$U1433","v":"Civil Department - 130"},{"$f":"'Data SBP Measures'!$AF1433","v":"Number of cases filed"},{"$f":"'Data SBP Measures'!$T1433","v":"2226"},{"$f":"'Data SBP Measures'!$U1433&B765","v":"130Number of cases filed"},{"$f":"'Data SBP Measures'!$Y1433","v":"EACH"},null,null,null,null,null,"Civil Department - 130","Number of cases filed",null,null,null,null,null,null,null,"1833","121","Y","219","Criminal Division","EACH","INPUT","NEITHER",null,null,null,"Criminal Division","Indictment & information",null,{"$f":"'Data SBP Measures'!$AF765&'Data SBP Measures'!$AE765& \" - \"& 'Data SBP Measures'!$U765","v":"Indictment & informationCriminal Division - 121"},{"$f":"_xlfn.XLOOKUP(VALUE(W765),'Data SBP Programs'!O:O,'Data SBP Programs'!S:S)","v":"Accounting Division"}]
[{"$f":"'Data SBP Measures'!$AI1434&\" - \"&'Data SBP Measures'!$U1434","v":"Civil Department - 130"},{"$f":"'Data SBP Measures'!$AF1434","v":"Number of cases filed"},{"$f":"'Data SBP Measures'!$T1434","v":"2226"},{"$f":"'Data SBP Measures'!$U1434&B766","v":"130Number of cases filed"},{"$f":"'Data SBP Measures'!$Y1434","v":"EACH"},null,null,null,null,null,"Civil Department - 130","Number of cases filed",null,null,null,null,null,null,null,"1833","121","Y","219","Criminal Division","EACH","INPUT","NEITHER",null,null,null,"Criminal Division","Indictment & information",null,{"$f":"'Data SBP Measures'!$AF766&'Data SBP Measures'!$AE766& \" - \"& 'Data SBP Measures'!$U766","v":"Indictment & informationCriminal Division - 121"},{"$f":"_xlfn.XLOOKUP(VALUE(W766),'Data SBP Programs'!O:O,'Data SBP Programs'!S:S)","v":"Accounting Division"}]
[{"$f":"'Data SBP Measures'!$AI1440&\" - \"&'Data SBP Measures'!$U1440","v":"Civil Department - 130"},{"$f":"'Data SBP Measures'!$AF1440","v":"Number of trials resulting in a final disposition"},{"$f":"'Data SBP Measures'!$T1440","v":"2232"},{"$f":"'Data SBP Measures'!$U1440&B767","v":"130Number of trials resulting in a final disposition"},{"$f":"'Data SBP Measures'!$Y1440","v":"EACH"},null,null,null,null,null,"Civil Department - 130","Number of trials resulting in a final disposition",null,null,null,null,null,null,null,"1834","121","Y","219","Criminal Division","EACH","INPUT","ADOPTEDBUD",null,null,null,"Criminal Division","Dispositions",null,{"$f":"'Data SBP Measures'!$AF767&'Data SBP Measures'!$AE767& \" - \"& 'Data SBP Measures'!$U767","v":"DispositionsCriminal Division - 121"},{"$f":"_xlfn.XLOOKUP(VALUE(W767),'Data SBP Programs'!O:O,'Data SBP Programs'!S:S)","v":"Accounting Division"}]
[{"$f":"'Data SBP Measures'!$AI1441&\" - \"&'Data SBP Measures'!$U1441","v":"Civil Department - 130"},{"$f":"'Data SBP Measures'!$AF1441","v":"Number of trials resulting in a final disposition"},{"$f":"'Data SBP Measures'!$T1441","v":"2232"},{"$f":"'Data SBP Measures'!$U1441&B768","v":"130Number of trials resulting in a final disposition"},{"$f":"'Data SBP Measures'!$Y1441","v":"EACH"},null,null,null,null,null,"Civil Department - 130","Number of trials resulting in a final disposition",null,null,null,null,null,null,null,"1834","121","Y","219","Criminal Division","EACH","INPUT","ADOPTEDBUD",null,null,null,"Criminal Division","Dispositions",null,{"$f":"'Data SBP Measures'!$AF768&'Data SBP Measures'!$AE768& \" - \"& 'Data SBP Measures'!$U768","v":"DispositionsCriminal Division - 121"},{"$f":"_xlfn.XLOOKUP(VALUE(W768),'Data SBP Programs'!O:O,'Data SBP Programs'!S:S)","v":"Accounting Division"}]
[{"$f":"'Data SBP Measures'!$AI1442&\" - \"&'Data SBP Measures'!$U1442","v":"Civil Department - 130"},{"$f":"'Data SBP Measures'!$AF1442","v":"Number of trials resulting in a final disposition"},{"$f":"'Data SBP Measures'!$T1442","v":"2232"},{"$f":"'Data SBP Measures'!$U1442&B769","v":"130Number of trials resulting in a final disposition"},{"$f":"'Data SBP Measures'!$Y1442","v":"EACH"},null,null,null,null,null,"Civil Department - 130","Number of trials resulting in a final disposition",null,null,null,null,null,null,null,"1834","121","Y","219","Criminal Division","EACH","INPUT","ADOPTEDBUD",null,null,null,"Criminal Division","Dispositions",null,{"$f":"'Data SBP Measures'!$AF769&'Data SBP Measures'!$AE769& \" - \"& 'Data SBP Measures'!$U769","v":"DispositionsCriminal Division - 121"},{"$f":"_xlfn.XLOOKUP(VALUE(W769),'Data SBP Programs'!O:O,'Data SBP Programs'!S:S)","v":"Accounting Division"}]
[{"$f":"'Data SBP Measures'!$AI1443&\" - \"&'Data SBP Measures'!$U1443","v":"Civil Department - 130"},{"$f":"'Data SBP Measures'!$AF1443","v":"Number of trials resulting in a final disposition"},{"$f":"'Data SBP Measures'!$T1443","v":"2232"},{"$f":"'Data SBP Measures'!$U1443&B770","v":"130Number of trials resulting in a final disposition"},{"$f":"'Data SBP Measures'!$Y1443","v":"EACH"},null,null,null,null,null,"Civil Department - 130","Number of trials resulting in a final disposition",null,null,null,null,null,null,null,"1835","121","Y","219","Criminal Division","EACH","OUTPUT","NEITHER",null,null,null,"Criminal Division","Incompetency judgment prepared",null,{"$f":"'Data SBP Measures'!$AF770&'Data SBP Measures'!$AE770& \" - \"& 'Data SBP Measures'!$U770","v":"Incompetency judgment preparedCriminal Division - 121"},{"$f":"_xlfn.XLOOKUP(VALUE(W770),'Data SBP Programs'!O:O,'Data SBP Programs'!S:S)","v":"Accounting Division"}]
[{"$f":"'Data SBP Measures'!$AI1435&\" - \"&'Data SBP Measures'!$U1435","v":"Civil Department - 130"},{"$f":"'Data SBP Measures'!$AF1435","v":"Percentage of cases disposed"},{"$f":"'Data SBP Measures'!$T1435","v":"2228"},{"$f":"'Data SBP Measures'!$U1435&B771","v":"130Percentage of cases disposed"},{"$f":"'Data SBP Measures'!$Y1435","v":"PERCENT"},null,null,null,null,null,"Civil Department - 130","Percentage of cases disposed",null,null,null,null,null,null,null,"1835","121","Y","219","Criminal Division","EACH","OUTPUT","NEITHER",null,null,null,"Criminal Division","Incompetency judgment prepared",null,{"$f":"'Data SBP Measures'!$AF771&'Data SBP Measures'!$AE771& \" - \"& 'Data SBP Measures'!$U771","v":"Incompetency judgment preparedCriminal Division - 121"},{"$f":"_xlfn.XLOOKUP(VALUE(W771),'Data SBP Programs'!O:O,'Data SBP Programs'!S:S)","v":"Accounting Division"}]
[{"$f":"'Data SBP Measures'!$AI1436&\" - \"&'Data SBP Measures'!$U1436","v":"Civil Department - 130"},{"$f":"'Data SBP Measures'!$AF1436","v":"Percentage of cases disposed"},{"$f":"'Data SBP Measures'!$T1436","v":"2228"},{"$f":"'Data SBP Measures'!$U1436&B772","v":"130Percentage of cases disposed"},{"$f":"'Data SBP Measures'!$Y1436","v":"PERCENT"},null,null,null,null,null,"Civil Department - 130","Percentage of cases disposed",null,null,null,null,null,null,null,"1835","121","Y","219","Criminal Division","EACH","OUTPUT","NEITHER",null,null,null,"Criminal Division","Incompetency judgment prepared",null,{"$f":"'Data SBP Measures'!$AF772&'Data SBP Measures'!$AE772& \" - \"& 'Data SBP Measures'!$U772","v":"Incompetency judgment preparedCriminal Division - 121"},{"$f":"_xlfn.XLOOKUP(VALUE(W772),'Data SBP Programs'!O:O,'Data SBP Programs'!S:S)","v":"Accounting Division"}]
[{"$f":"'Data SBP Measures'!$AI1437&\" - \"&'Data SBP Measures'!$U1437","v":"Civil Department - 130"},{"$f":"'Data SBP Measures'!$AF1437","v":"Percentage of cases disposed"},{"$f":"'Data SBP Measures'!$T1437","v":"2228"},{"$f":"'Data SBP Measures'!$U1437&B773","v":"130Percentage of cases disposed"},{"$f":"'Data SBP Measures'!$Y1437","v":"PERCENT"},null,null,null,null,null,"Civil Department - 130","Percentage of cases disposed",null,null,null,null,null,null,null,"1837","121","Y","219","Criminal Division","EACH","OUTPUT","NEITHER",null,null,null,"Criminal Division","Judgdments prepared",null,{"$f":"'Data SBP Measures'!$AF773&'Data SBP Measures'!$AE773& \" - \"& 'Data SBP Measures'!$U773","v":"Judgdments preparedCriminal Division - 121"},{"$f":"_xlfn.XLOOKUP(VALUE(W773),'Data SBP Programs'!O:O,'Data SBP Programs'!S:S)","v":"Accounting Division"}]
[{"$f":"'Data SBP Measures'!$AI1438&\" - \"&'Data SBP Measures'!$U1438","v":"Civil Department - 130"},{"$f":"'Data SBP Measures'!$AF1438","v":"Percentage of cases disposed"},{"$f":"'Data SBP Measures'!$T1438","v":"2228"},{"$f":"'Data SBP Measures'!$U1438&B774","v":"130Percentage of cases disposed"},{"$f":"'Data SBP Measures'!$Y1438","v":"PERCENT"},null,null,null,null,null,"Civil Department - 130","Percentage of cases disposed",null,null,null,null,null,null,null,"1837","121","Y","219","Criminal Division","EACH","OUTPUT","NEITHER",null,null,null,"Criminal Division","Judgdments prepared",null,{"$f":"'Data SBP Measures'!$AF774&'Data SBP Measures'!$AE774& \" - \"& 'Data SBP Measures'!$U774","v":"Judgdments preparedCriminal Division - 121"},{"$f":"_xlfn.XLOOKUP(VALUE(W774),'Data SBP Programs'!O:O,'Data SBP Programs'!S:S)","v":"Accounting Division"}]
[{"$f":"'Data SBP Measures'!$AI2119&\" - \"&'Data SBP Measures'!$U2119","v":"Civil Department - 130"},{"$f":"'Data SBP Measures'!$AF2119","v":"Total Cases Disposed"},{"$f":"'Data SBP Measures'!$T2119","v":"2663"},{"$f":"'Data SBP Measures'!$U2119&B775","v":"130Total Cases Disposed"},{"$f":"'Data SBP Measures'!$Y2119","v":"EACH"},null,null,null,null,null,"Civil Department - 130","Total Cases Disposed",null,null,null,null,null,null,null,"1837","121","Y","219","Criminal Division","EACH","OUTPUT","NEITHER",null,null,null,"Criminal Division","Judgdments prepared",null,{"$f":"'Data SBP Measures'!$AF775&'Data SBP Measures'!$AE775& \" - \"& 'Data SBP Measures'!$U775","v":"Judgdments preparedCriminal Division - 121"},{"$f":"_xlfn.XLOOKUP(VALUE(W775),'Data SBP Programs'!O:O,'Data SBP Programs'!S:S)","v":"Accounting Division"}]
[{"$f":"'Data SBP Measures'!$AI2120&\" - \"&'Data SBP Measures'!$U2120","v":"Civil Department - 130"},{"$f":"'Data SBP Measures'!$AF2120","v":"Total Cases Disposed"},{"$f":"'Data SBP Measures'!$T2120","v":"2663"},{"$f":"'Data SBP Measures'!$U2120&B776","v":"130Total Cases Disposed"},{"$f":"'Data SBP Measures'!$Y2120","v":"EACH"},null,null,null,null,null,"Civil Department - 130","Total Cases Disposed",null,null,null,null,null,null,null,"1838","121","Y","219","Criminal Division","EACH","OUTPUT","NEITHER",null,null,null,"Criminal Division","Appeals processed",null,{"$f":"'Data SBP Measures'!$AF776&'Data SBP Measures'!$AE776& \" - \"& 'Data SBP Measures'!$U776","v":"Appeals processedCriminal Division - 121"},{"$f":"_xlfn.XLOOKUP(VALUE(W776),'Data SBP Programs'!O:O,'Data SBP Programs'!S:S)","v":"Accounting Division"}]
[{"$f":"'Data SBP Measures'!$AI2121&\" - \"&'Data SBP Measures'!$U2121","v":"Civil Department - 130"},{"$f":"'Data SBP Measures'!$AF2121","v":"Total Cases Disposed"},{"$f":"'Data SBP Measures'!$T2121","v":"2663"},{"$f":"'Data SBP Measures'!$U2121&B777","v":"130Total Cases Disposed"},{"$f":"'Data SBP Measures'!$Y2121","v":"EACH"},null,null,null,null,null,"Civil Department - 130","Total Cases Disposed",null,null,null,null,null,null,null,"1838","121","Y","219","Criminal Division","EACH","OUTPUT","NEITHER",null,null,null,"Criminal Division","Appeals processed",null,{"$f":"'Data SBP Measures'!$AF777&'Data SBP Measures'!$AE777& \" - \"& 'Data SBP Measures'!$U777","v":"Appeals processedCriminal Division - 121"},{"$f":"_xlfn.XLOOKUP(VALUE(W777),'Data SBP Programs'!O:O,'Data SBP Programs'!S:S)","v":"Accounting Division"}]
[{"$f":"'Data SBP Measures'!$AI2122&\" - \"&'Data SBP Measures'!$U2122","v":"Civil Department - 130"},{"$f":"'Data SBP Measures'!$AF2122","v":"Total Cases Disposed"},{"$f":"'Data SBP Measures'!$T2122","v":"2663"},{"$f":"'Data SBP Measures'!$U2122&B778","v":"130Total Cases Disposed"},{"$f":"'Data SBP Measures'!$Y2122","v":"EACH"},null,null,null,null,null,"Civil Department - 130","Total Cases Disposed",null,null,null,null,null,null,null,"1838","121","Y","219","Criminal Division","EACH","OUTPUT","NEITHER",null,null,null,"Criminal Division","Appeals processed",null,{"$f":"'Data SBP Measures'!$AF778&'Data SBP Measures'!$AE778& \" - \"& 'Data SBP Measures'!$U778","v":"Appeals processedCriminal Division - 121"},{"$f":"_xlfn.XLOOKUP(VALUE(W778),'Data SBP Programs'!O:O,'Data SBP Programs'!S:S)","v":"Accounting Division"}]
[{"$f":"'Data SBP Measures'!$AI1272&\" - \"&'Data SBP Measures'!$U1272","v":"Civil Division - 129"},{"$f":"'Data SBP Measures'!$AF1272","v":"# New Civil Cases Filed:"},{"$f":"'Data SBP Measures'!$T1272","v":"2165"},{"$f":"'Data SBP Measures'!$U1272&B779","v":"129# New Civil Cases Filed:"},{"$f":"'Data SBP Measures'!$Y1272","v":"EACH"},null,null,null,null,null,"Civil Division - 129","# New Civil Cases Filed:",null,null,null,null,null,null,null,"1839","121","Y","219","Criminal Division","EACH","OUTPUT","NEITHER",null,null,null,"Criminal Division","Post-conviction writs processed",null,{"$f":"'Data SBP Measures'!$AF779&'Data SBP Measures'!$AE779& \" - \"& 'Data SBP Measures'!$U779","v":"Post-conviction writs processedCriminal Division - 121"},{"$f":"_xlfn.XLOOKUP(VALUE(W779),'Data SBP Programs'!O:O,'Data SBP Programs'!S:S)","v":"Accounting Division"}]
[{"$f":"'Data SBP Measures'!$AI1273&\" - \"&'Data SBP Measures'!$U1273","v":"Civil Division - 129"},{"$f":"'Data SBP Measures'!$AF1273","v":"# New Civil Cases Filed:"},{"$f":"'Data SBP Measures'!$T1273","v":"2165"},{"$f":"'Data SBP Measures'!$U1273&B780","v":"129# New Civil Cases Filed:"},{"$f":"'Data SBP Measures'!$Y1273","v":"EACH"},null,null,null,null,null,"Civil Division - 129","# New Civil Cases Filed:",null,null,null,null,null,null,null,"1839","121","Y","219","Criminal Division","EACH","OUTPUT","NEITHER",null,null,null,"Criminal Division","Post-conviction writs processed",null,{"$f":"'Data SBP Measures'!$AF780&'Data SBP Measures'!$AE780& \" - \"& 'Data SBP Measures'!$U780","v":"Post-conviction writs processedCriminal Division - 121"},{"$f":"_xlfn.XLOOKUP(VALUE(W780),'Data SBP Programs'!O:O,'Data SBP Programs'!S:S)","v":"Accounting Division"}]
[{"$f":"'Data SBP Measures'!$AI1274&\" - \"&'Data SBP Measures'!$U1274","v":"Civil Division - 129"},{"$f":"'Data SBP Measures'!$AF1274","v":"# New Civil Cases Filed:"},{"$f":"'Data SBP Measures'!$T1274","v":"2165"},{"$f":"'Data SBP Measures'!$U1274&B781","v":"129# New Civil Cases Filed:"},{"$f":"'Data SBP Measures'!$Y1274","v":"EACH"},null,null,null,null,null,"Civil Division - 129","# New Civil Cases Filed:",null,null,null,null,null,null,null,"1839","121","Y","219","Criminal Division","EACH","OUTPUT","NEITHER",null,null,null,"Criminal Division","Post-conviction writs processed",null,{"$f":"'Data SBP Measures'!$AF781&'Data SBP Measures'!$AE781& \" - \"& 'Data SBP Measures'!$U781","v":"Post-conviction writs processedCriminal Division - 121"},{"$f":"_xlfn.XLOOKUP(VALUE(W781),'Data SBP Programs'!O:O,'Data SBP Programs'!S:S)","v":"Accounting Division"}]
[{"$f":"'Data SBP Measures'!$AI1266&\" - \"&'Data SBP Measures'!$U1266","v":"Civil Division - 129"},{"$f":"'Data SBP Measures'!$AF1266","v":"# of Active Cases"},{"$f":"'Data SBP Measures'!$T1266","v":"2163"},{"$f":"'Data SBP Measures'!$U1266&B782","v":"129# of Active Cases"},{"$f":"'Data SBP Measures'!$Y1266","v":"EACH"},null,null,null,null,null,"Civil Division - 129","# of Active Cases",null,null,null,null,null,null,null,"1841","121","Y","219","Criminal Division","EACH","OUTPUT","NEITHER",null,null,null,"Criminal Division","# of Criminal Bonds received and recorded",null,{"$f":"'Data SBP Measures'!$AF782&'Data SBP Measures'!$AE782& \" - \"& 'Data SBP Measures'!$U782","v":"# of Criminal Bonds received and recordedCriminal Division - 121"},{"$f":"_xlfn.XLOOKUP(VALUE(W782),'Data SBP Programs'!O:O,'Data SBP Programs'!S:S)","v":"Accounting Division"}]
[{"$f":"'Data SBP Measures'!$AI1267&\" - \"&'Data SBP Measures'!$U1267","v":"Civil Division - 129"},{"$f":"'Data SBP Measures'!$AF1267","v":"# of Active Cases"},{"$f":"'Data SBP Measures'!$T1267","v":"2163"},{"$f":"'Data SBP Measures'!$U1267&B783","v":"129# of Active Cases"},{"$f":"'Data SBP Measures'!$Y1267","v":"EACH"},null,null,null,null,null,"Civil Division - 129","# of Active Cases",null,null,null,null,null,null,null,"1841","121","Y","219","Criminal Division","EACH","OUTPUT","NEITHER",null,null,null,"Criminal Division","# of Criminal Bonds received and recorded",null,{"$f":"'Data SBP Measures'!$AF783&'Data SBP Measures'!$AE783& \" - \"& 'Data SBP Measures'!$U783","v":"# of Criminal Bonds received and recordedCriminal Division - 121"},{"$f":"_xlfn.XLOOKUP(VALUE(W783),'Data SBP Programs'!O:O,'Data SBP Programs'!S:S)","v":"Accounting Division"}]
[{"$f":"'Data SBP Measures'!$AI1268&\" - \"&'Data SBP Measures'!$U1268","v":"Civil Division - 129"},{"$f":"'Data SBP Measures'!$AF1268","v":"# of Active Cases"},{"$f":"'Data SBP Measures'!$T1268","v":"2163"},{"$f":"'Data SBP Measures'!$U1268&B784","v":"129# of Active Cases"},{"$f":"'Data SBP Measures'!$Y1268","v":"EACH"},null,null,null,null,null,"Civil Division - 129","# of Active Cases",null,null,null,null,null,null,null,"1841","121","Y","219","Criminal Division","EACH","OUTPUT","NEITHER",null,null,null,"Criminal Division","# of Criminal Bonds received and recorded",null,{"$f":"'Data SBP Measures'!$AF784&'Data SBP Measures'!$AE784& \" - \"& 'Data SBP Measures'!$U784","v":"# of Criminal Bonds received and recordedCriminal Division - 121"},{"$f":"_xlfn.XLOOKUP(VALUE(W784),'Data SBP Programs'!O:O,'Data SBP Programs'!S:S)","v":"Accounting Division"}]
[{"$f":"'Data SBP Measures'!$AI1297&\" - \"&'Data SBP Measures'!$U1297","v":"Civil Division - 129"},{"$f":"'Data SBP Measures'!$AF1297","v":"# of Cases Dismissed"},{"$f":"'Data SBP Measures'!$T1297","v":"2173"},{"$f":"'Data SBP Measures'!$U1297&B785","v":"129# of Cases Dismissed"},{"$f":"'Data SBP Measures'!$Y1297","v":"EACH"},null,null,null,null,null,"Civil Division - 129","# of Cases Dismissed",null,null,null,null,null,null,null,"1842","121","Y","219","Criminal Division","EACH","OUTPUT","NEITHER",null,null,null,"Criminal Division","Cash Bonds refunded - Criminal",null,{"$f":"'Data SBP Measures'!$AF785&'Data SBP Measures'!$AE785& \" - \"& 'Data SBP Measures'!$U785","v":"Cash Bonds refunded - CriminalCriminal Division - 121"},{"$f":"_xlfn.XLOOKUP(VALUE(W785),'Data SBP Programs'!O:O,'Data SBP Programs'!S:S)","v":"Accounting Division"}]
[{"$f":"'Data SBP Measures'!$AI1298&\" - \"&'Data SBP Measures'!$U1298","v":"Civil Division - 129"},{"$f":"'Data SBP Measures'!$AF1298","v":"# of Cases Dismissed"},{"$f":"'Data SBP Measures'!$T1298","v":"2173"},{"$f":"'Data SBP Measures'!$U1298&B786","v":"129# of Cases Dismissed"},{"$f":"'Data SBP Measures'!$Y1298","v":"EACH"},null,null,null,null,null,"Civil Division - 129","# of Cases Dismissed",null,null,null,null,null,null,null,"1842","121","Y","219","Criminal Division","EACH","OUTPUT","NEITHER",null,null,null,"Criminal Division","Cash Bonds refunded - Criminal",null,{"$f":"'Data SBP Measures'!$AF786&'Data SBP Measures'!$AE786& \" - \"& 'Data SBP Measures'!$U786","v":"Cash Bonds refunded - CriminalCriminal Division - 121"},{"$f":"_xlfn.XLOOKUP(VALUE(W786),'Data SBP Programs'!O:O,'Data SBP Programs'!S:S)","v":"Accounting Division"}]
[{"$f":"'Data SBP Measures'!$AI1299&\" - \"&'Data SBP Measures'!$U1299","v":"Civil Division - 129"},{"$f":"'Data SBP Measures'!$AF1299","v":"# of Cases Dismissed"},{"$f":"'Data SBP Measures'!$T1299","v":"2173"},{"$f":"'Data SBP Measures'!$U1299&B787","v":"129# of Cases Dismissed"},{"$f":"'Data SBP Measures'!$Y1299","v":"EACH"},null,null,null,null,null,"Civil Division - 129","# of Cases Dismissed",null,null,null,null,null,null,null,"1842","121","Y","219","Criminal Division","EACH","OUTPUT","NEITHER",null,null,null,"Criminal Division","Cash Bonds refunded - Criminal",null,{"$f":"'Data SBP Measures'!$AF787&'Data SBP Measures'!$AE787& \" - \"& 'Data SBP Measures'!$U787","v":"Cash Bonds refunded - CriminalCriminal Division - 121"},{"$f":"_xlfn.XLOOKUP(VALUE(W787),'Data SBP Programs'!O:O,'Data SBP Programs'!S:S)","v":"Accounting Division"}]
[{"$f":"'Data SBP Measures'!$AI1284&\" - \"&'Data SBP Measures'!$U1284","v":"Civil Division - 129"},{"$f":"'Data SBP Measures'!$AF1284","v":"# of Citations Issued"},{"$f":"'Data SBP Measures'!$T1284","v":"2169"},{"$f":"'Data SBP Measures'!$U1284&B788","v":"129# of Citations Issued"},{"$f":"'Data SBP Measures'!$Y1284","v":"EACH"},null,null,null,null,null,"Civil Division - 129","# of Citations Issued",null,null,null,null,null,null,null,"1843","121","Y","219","Criminal Division","EACH","OUTPUT","NEITHER",null,null,null,"Criminal Division","Expunctions processed",null,{"$f":"'Data SBP Measures'!$AF788&'Data SBP Measures'!$AE788& \" - \"& 'Data SBP Measures'!$U788","v":"Expunctions processedCriminal Division - 121"},{"$f":"_xlfn.XLOOKUP(VALUE(W788),'Data SBP Programs'!O:O,'Data SBP Programs'!S:S)","v":"Accounting Division"}]
[{"$f":"'Data SBP Measures'!$AI1285&\" - \"&'Data SBP Measures'!$U1285","v":"Civil Division - 129"},{"$f":"'Data SBP Measures'!$AF1285","v":"# of Citations Issued"},{"$f":"'Data SBP Measures'!$T1285","v":"2169"},{"$f":"'Data SBP Measures'!$U1285&B789","v":"129# of Citations Issued"},{"$f":"'Data SBP Measures'!$Y1285","v":"EACH"},null,null,null,null,null,"Civil Division - 129","# of Citations Issued",null,null,null,null,null,null,null,"1843","121","Y","219","Criminal Division","EACH","OUTPUT","NEITHER",null,null,null,"Criminal Division","Expunctions processed",null,{"$f":"'Data SBP Measures'!$AF789&'Data SBP Measures'!$AE789& \" - \"& 'Data SBP Measures'!$U789","v":"Expunctions processedCriminal Division - 121"},{"$f":"_xlfn.XLOOKUP(VALUE(W789),'Data SBP Programs'!O:O,'Data SBP Programs'!S:S)","v":"Accounting Division"}]
[{"$f":"'Data SBP Measures'!$AI1286&\" - \"&'Data SBP Measures'!$U1286","v":"Civil Division - 129"},{"$f":"'Data SBP Measures'!$AF1286","v":"# of Citations Issued"},{"$f":"'Data SBP Measures'!$T1286","v":"2169"},{"$f":"'Data SBP Measures'!$U1286&B790","v":"129# of Citations Issued"},{"$f":"'Data SBP Measures'!$Y1286","v":"EACH"},null,null,null,null,null,"Civil Division - 129","# of Citations Issued",null,null,null,null,null,null,null,"1843","121","Y","219","Criminal Division","EACH","OUTPUT","NEITHER",null,null,null,"Criminal Division","Expunctions processed",null,{"$f":"'Data SBP Measures'!$AF790&'Data SBP Measures'!$AE790& \" - \"& 'Data SBP Measures'!$U790","v":"Expunctions processedCriminal Division - 121"},{"$f":"_xlfn.XLOOKUP(VALUE(W790),'Data SBP Programs'!O:O,'Data SBP Programs'!S:S)","v":"Accounting Division"}]
[{"$f":"'Data SBP Measures'!$AI1260&\" - \"&'Data SBP Measures'!$U1260","v":"Civil Division - 129"},{"$f":"'Data SBP Measures'!$AF1260","v":"# of Clerks to process cases filed"},{"$f":"'Data SBP Measures'!$T1260","v":"2161"},{"$f":"'Data SBP Measures'!$U1260&B791","v":"129# of Clerks to process cases filed"},{"$f":"'Data SBP Measures'!$Y1260","v":"FTE"},null,null,null,null,null,"Civil Division - 129","# of Clerks to process cases filed",null,null,null,null,null,null,null,"1845","121","Y","214","Jury Management Office","EACH","OUTPUT","ADOPTEDBUD",null,null,null,"Jury Management Office","Jury summonses sent",null,{"$f":"'Data SBP Measures'!$AF791&'Data SBP Measures'!$AE791& \" - \"& 'Data SBP Measures'!$U791","v":"Jury summonses sentJury Management Office - 121"},{"$f":"_xlfn.XLOOKUP(VALUE(W791),'Data SBP Programs'!O:O,'Data SBP Programs'!S:S)","v":"Jury Management Office"}]
[{"$f":"'Data SBP Measures'!$AI1261&\" - \"&'Data SBP Measures'!$U1261","v":"Civil Division - 129"},{"$f":"'Data SBP Measures'!$AF1261","v":"# of Clerks to process cases filed"},{"$f":"'Data SBP Measures'!$T1261","v":"2161"},{"$f":"'Data SBP Measures'!$U1261&B792","v":"129# of Clerks to process cases filed"},{"$f":"'Data SBP Measures'!$Y1261","v":"FTE"},null,null,null,null,null,"Civil Division - 129","# of Clerks to process cases filed",null,null,null,null,null,null,null,"1851","121","Y","214","Jury Management Office","EACH","INPUT","NEITHER",null,null,null,"Jury Management Office","Passport applications",null,{"$f":"'Data SBP Measures'!$AF792&'Data SBP Measures'!$AE792& \" - \"& 'Data SBP Measures'!$U792","v":"Passport applicationsJury Management Office - 121"},{"$f":"_xlfn.XLOOKUP(VALUE(W792),'Data SBP Programs'!O:O,'Data SBP Programs'!S:S)","v":"Jury Management Office"}]
[{"$f":"'Data SBP Measures'!$AI1262&\" - \"&'Data SBP Measures'!$U1262","v":"Civil Division - 129"},{"$f":"'Data SBP Measures'!$AF1262","v":"# of Clerks to process cases filed"},{"$f":"'Data SBP Measures'!$T1262","v":"2161"},{"$f":"'Data SBP Measures'!$U1262&B793","v":"129# of Clerks to process cases filed"},{"$f":"'Data SBP Measures'!$Y1262","v":"FTE"},null,null,null,null,null,"Civil Division - 129","# of Clerks to process cases filed",null,null,null,null,null,null,null,"1852","121","Y","218","General Litigation/Government Division","EACH","INPUT","ADOPTEDBUD",null,null,null,"General Litigation/Government Division","# of new or reopened Gen. Lit./Govt. cases filed\n",null,{"$f":"'Data SBP Measures'!$AF793&'Data SBP Measures'!$AE793& \" - \"& 'Data SBP Measures'!$U793","v":"# of new or reopened Gen. Lit./Govt. cases filed\nGeneral Litigation/Government Division - 121"},{"$f":"_xlfn.XLOOKUP(VALUE(W793),'Data SBP Programs'!O:O,'Data SBP Programs'!S:S)","v":"General Litigation/Government Division"}]
[{"$f":"'Data SBP Measures'!$AI1303&\" - \"&'Data SBP Measures'!$U1303","v":"Civil Division - 129"},{"$f":"'Data SBP Measures'!$AF1303","v":"# of Disposed Closed Cases:"},{"$f":"'Data SBP Measures'!$T1303","v":"2175"},{"$f":"'Data SBP Measures'!$U1303&B794","v":"129# of Disposed Closed Cases:"},{"$f":"'Data SBP Measures'!$Y1303","v":"EACH"},null,null,null,null,null,"Civil Division - 129","# of Disposed Closed Cases:",null,null,null,null,null,null,null,"1853","121","Y","218","General Litigation/Government Division","EACH","INPUT","NEITHER",null,null,null,"General Litigation/Government Division","# of amended petitions",null,{"$f":"'Data SBP Measures'!$AF794&'Data SBP Measures'!$AE794& \" - \"& 'Data SBP Measures'!$U794","v":"# of amended petitionsGeneral Litigation/Government Division - 121"},{"$f":"_xlfn.XLOOKUP(VALUE(W794),'Data SBP Programs'!O:O,'Data SBP Programs'!S:S)","v":"General Litigation/Government Division"}]
[{"$f":"'Data SBP Measures'!$AI1304&\" - \"&'Data SBP Measures'!$U1304","v":"Civil Division - 129"},{"$f":"'Data SBP Measures'!$AF1304","v":"# of Disposed Closed Cases:"},{"$f":"'Data SBP Measures'!$T1304","v":"2175"},{"$f":"'Data SBP Measures'!$U1304&B795","v":"129# of Disposed Closed Cases:"},{"$f":"'Data SBP Measures'!$Y1304","v":"EACH"},null,null,null,null,null,"Civil Division - 129","# of Disposed Closed Cases:",null,null,null,null,null,null,null,"1863","121","Y","217","Civil Division (Family)","EACH","INPUT","ADOPTEDBUD",null,null,null,"Civil Division (Family)","# of new or reopened Family cases filed\n",null,{"$f":"'Data SBP Measures'!$AF795&'Data SBP Measures'!$AE795& \" - \"& 'Data SBP Measures'!$U795","v":"# of new or reopened Family cases filed\nCivil Division (Family) - 121"},{"$f":"_xlfn.XLOOKUP(VALUE(W795),'Data SBP Programs'!O:O,'Data SBP Programs'!S:S)","v":"Accounting Division"}]
[{"$f":"'Data SBP Measures'!$AI1305&\" - \"&'Data SBP Measures'!$U1305","v":"Civil Division - 129"},{"$f":"'Data SBP Measures'!$AF1305","v":"# of Disposed Closed Cases:"},{"$f":"'Data SBP Measures'!$T1305","v":"2175"},{"$f":"'Data SBP Measures'!$U1305&B796","v":"129# of Disposed Closed Cases:"},{"$f":"'Data SBP Measures'!$Y1305","v":"EACH"},null,null,null,null,null,"Civil Division - 129","# of Disposed Closed Cases:",null,null,null,null,null,null,null,"1880","121","Y","216","Accounting Division","EACH","OUTPUT","NEITHER",null,null,null,"Accounting Division","IV-D case billings sent (per quarter)",null,{"$f":"'Data SBP Measures'!$AF796&'Data SBP Measures'!$AE796& \" - \"& 'Data SBP Measures'!$U796","v":"IV-D case billings sent (per quarter)Accounting Division - 121"},{"$f":"_xlfn.XLOOKUP(VALUE(W796),'Data SBP Programs'!O:O,'Data SBP Programs'!S:S)","v":"Accounting Division"}]
[{"$f":"'Data SBP Measures'!$AI2315&\" - \"&'Data SBP Measures'!$U2315","v":"Civil Division - 129"},{"$f":"'Data SBP Measures'!$AF2315","v":"# of E-File Submissions Processed"},{"$f":"'Data SBP Measures'!$T2315","v":"2879"},{"$f":"'Data SBP Measures'!$U2315&B797","v":"129# of E-File Submissions Processed"},{"$f":"'Data SBP Measures'!$Y2315","v":"EACH"},null,null,null,null,null,"Civil Division - 129","# of E-File Submissions Processed",null,null,null,null,null,null,null,"1880","121","Y","217","Civil Division (Family)","EACH","OUTPUT","NEITHER",null,null,null,"Civil Division (Family)","IV-D case billings sent (per quarter)",null,{"$f":"'Data SBP Measures'!$AF797&'Data SBP Measures'!$AE797& \" - \"& 'Data SBP Measures'!$U797","v":"IV-D case billings sent (per quarter)Civil Division (Family) - 121"},{"$f":"_xlfn.XLOOKUP(VALUE(W797),'Data SBP Programs'!O:O,'Data SBP Programs'!S:S)","v":"Accounting Division"}]
[{"$f":"'Data SBP Measures'!$AI2316&\" - \"&'Data SBP Measures'!$U2316","v":"Civil Division - 129"},{"$f":"'Data SBP Measures'!$AF2316","v":"# of E-File Submissions Processed"},{"$f":"'Data SBP Measures'!$T2316","v":"2879"},{"$f":"'Data SBP Measures'!$U2316&B798","v":"129# of E-File Submissions Processed"},{"$f":"'Data SBP Measures'!$Y2316","v":"EACH"},null,null,null,null,null,"Civil Division - 129","# of E-File Submissions Processed",null,null,null,null,null,null,null,"1881","125","Y","220","Mental Health","EACH","INPUT","BOTH",null,null,null,"Mental Health","Applications filed for court-ordered MH services, except meds",null,{"$f":"'Data SBP Measures'!$AF798&'Data SBP Measures'!$AE798& \" - \"& 'Data SBP Measures'!$U798","v":"Applications filed for court-ordered MH services, except medsMental Health - 125"},{"$f":"_xlfn.XLOOKUP(VALUE(W798),'Data SBP Programs'!O:O,'Data SBP Programs'!S:S)","v":"Mental Health"}]
[{"$f":"'Data SBP Measures'!$AI2317&\" - \"&'Data SBP Measures'!$U2317","v":"Civil Division - 129"},{"$f":"'Data SBP Measures'!$AF2317","v":"# of E-File Submissions Processed"},{"$f":"'Data SBP Measures'!$T2317","v":"2879"},{"$f":"'Data SBP Measures'!$U2317&B799","v":"129# of E-File Submissions Processed"},{"$f":"'Data SBP Measures'!$Y2317","v":"EACH"},null,null,null,null,null,"Civil Division - 129","# of E-File Submissions Processed",null,null,null,null,null,null,null,"1881","125","Y","220","Mental Health","EACH","INPUT","BOTH",null,null,null,"Mental Health","Applications filed for court-ordered MH services, except meds",null,{"$f":"'Data SBP Measures'!$AF799&'Data SBP Measures'!$AE799& \" - \"& 'Data SBP Measures'!$U799","v":"Applications filed for court-ordered MH services, except medsMental Health - 125"},{"$f":"_xlfn.XLOOKUP(VALUE(W799),'Data SBP Programs'!O:O,'Data SBP Programs'!S:S)","v":"Mental Health"}]
[{"$f":"'Data SBP Measures'!$AI1288&\" - \"&'Data SBP Measures'!$U1288","v":"Civil Division - 129"},{"$f":"'Data SBP Measures'!$AF1288","v":"# of Hearings Held"},{"$f":"'Data SBP Measures'!$T1288","v":"2170"},{"$f":"'Data SBP Measures'!$U1288&B800","v":"129# of Hearings Held"},{"$f":"'Data SBP Measures'!$Y1288","v":"EACH"},null,null,null,null,null,"Civil Division - 129","# of Hearings Held",null,null,null,null,null,null,null,"1882","125","Y","220","Mental Health","EACH","INPUT","BLACKBOOK",null,null,null,"Mental Health","Psychoactive medication applications filed, civil & criminal",null,{"$f":"'Data SBP Measures'!$AF800&'Data SBP Measures'!$AE800& \" - \"& 'Data SBP Measures'!$U800","v":"Psychoactive medication applications filed, civil & criminalMental Health - 125"},{"$f":"_xlfn.XLOOKUP(VALUE(W800),'Data SBP Programs'!O:O,'Data SBP Programs'!S:S)","v":"Mental Health"}]
[{"$f":"'Data SBP Measures'!$AI1289&\" - \"&'Data SBP Measures'!$U1289","v":"Civil Division - 129"},{"$f":"'Data SBP Measures'!$AF1289","v":"# of Hearings Held"},{"$f":"'Data SBP Measures'!$T1289","v":"2170"},{"$f":"'Data SBP Measures'!$U1289&B801","v":"129# of Hearings Held"},{"$f":"'Data SBP Measures'!$Y1289","v":"EACH"},null,null,null,null,null,"Civil Division - 129","# of Hearings Held",null,null,null,null,null,null,null,"1882","125","Y","220","Mental Health","EACH","INPUT","BLACKBOOK",null,null,null,"Mental Health","Psychoactive medication applications filed, civil & criminal",null,{"$f":"'Data SBP Measures'!$AF801&'Data SBP Measures'!$AE801& \" - \"& 'Data SBP Measures'!$U801","v":"Psychoactive medication applications filed, civil & criminalMental Health - 125"},{"$f":"_xlfn.XLOOKUP(VALUE(W801),'Data SBP Programs'!O:O,'Data SBP Programs'!S:S)","v":"Mental Health"}]
[{"$f":"'Data SBP Measures'!$AI1290&\" - \"&'Data SBP Measures'!$U1290","v":"Civil Division - 129"},{"$f":"'Data SBP Measures'!$AF1290","v":"# of Hearings Held"},{"$f":"'Data SBP Measures'!$T1290","v":"2170"},{"$f":"'Data SBP Measures'!$U1290&B802","v":"129# of Hearings Held"},{"$f":"'Data SBP Measures'!$Y1290","v":"EACH"},null,null,null,null,null,"Civil Division - 129","# of Hearings Held",null,null,null,null,null,null,null,"1883","125","Y","220","Mental Health","EACH","INPUT","NEITHER",null,null,null,"Mental Health","Probable cause hearings held",null,{"$f":"'Data SBP Measures'!$AF802&'Data SBP Measures'!$AE802& \" - \"& 'Data SBP Measures'!$U802","v":"Probable cause hearings heldMental Health - 125"},{"$f":"_xlfn.XLOOKUP(VALUE(W802),'Data SBP Programs'!O:O,'Data SBP Programs'!S:S)","v":"Mental Health"}]
[{"$f":"'Data SBP Measures'!$AI1269&\" - \"&'Data SBP Measures'!$U1269","v":"Civil Division - 129"},{"$f":"'Data SBP Measures'!$AF1269","v":"# of Inactive Cases"},{"$f":"'Data SBP Measures'!$T1269","v":"2164"},{"$f":"'Data SBP Measures'!$U1269&B803","v":"129# of Inactive Cases"},{"$f":"'Data SBP Measures'!$Y1269","v":"EACH"},null,null,null,null,null,"Civil Division - 129","# of Inactive Cases",null,null,null,null,null,null,null,"1883","125","Y","220","Mental Health","EACH","INPUT","NEITHER",null,null,null,"Mental Health","Probable cause hearings held",null,{"$f":"'Data SBP Measures'!$AF803&'Data SBP Measures'!$AE803& \" - \"& 'Data SBP Measures'!$U803","v":"Probable cause hearings heldMental Health - 125"},{"$f":"_xlfn.XLOOKUP(VALUE(W803),'Data SBP Programs'!O:O,'Data SBP Programs'!S:S)","v":"Mental Health"}]
[{"$f":"'Data SBP Measures'!$AI1270&\" - \"&'Data SBP Measures'!$U1270","v":"Civil Division - 129"},{"$f":"'Data SBP Measures'!$AF1270","v":"# of Inactive Cases"},{"$f":"'Data SBP Measures'!$T1270","v":"2164"},{"$f":"'Data SBP Measures'!$U1270&B804","v":"129# of Inactive Cases"},{"$f":"'Data SBP Measures'!$Y1270","v":"EACH"},null,null,null,null,null,"Civil Division - 129","# of Inactive Cases",null,null,null,null,null,null,null,"1886","125","Y","220","Mental Health","PERCENT","OUTCOME","NEITHER",null,null,null,"Mental Health","% of cases when Judge evaluates OPC app by deadline",null,{"$f":"'Data SBP Measures'!$AF804&'Data SBP Measures'!$AE804& \" - \"& 'Data SBP Measures'!$U804","v":"% of cases when Judge evaluates OPC app by deadlineMental Health - 125"},{"$f":"_xlfn.XLOOKUP(VALUE(W804),'Data SBP Programs'!O:O,'Data SBP Programs'!S:S)","v":"Mental Health"}]
[{"$f":"'Data SBP Measures'!$AI1271&\" - \"&'Data SBP Measures'!$U1271","v":"Civil Division - 129"},{"$f":"'Data SBP Measures'!$AF1271","v":"# of Inactive Cases"},{"$f":"'Data SBP Measures'!$T1271","v":"2164"},{"$f":"'Data SBP Measures'!$U1271&B805","v":"129# of Inactive Cases"},{"$f":"'Data SBP Measures'!$Y1271","v":"EACH"},null,null,null,null,null,"Civil Division - 129","# of Inactive Cases",null,null,null,null,null,null,null,"1886","125","Y","220","Mental Health","PERCENT","OUTCOME","NEITHER",null,null,null,"Mental Health","% of cases when Judge evaluates OPC app by deadline",null,{"$f":"'Data SBP Measures'!$AF805&'Data SBP Measures'!$AE805& \" - \"& 'Data SBP Measures'!$U805","v":"% of cases when Judge evaluates OPC app by deadlineMental Health - 125"},{"$f":"_xlfn.XLOOKUP(VALUE(W805),'Data SBP Programs'!O:O,'Data SBP Programs'!S:S)","v":"Mental Health"}]
[{"$f":"'Data SBP Measures'!$AI1294&\" - \"&'Data SBP Measures'!$U1294","v":"Civil Division - 129"},{"$f":"'Data SBP Measures'!$AF1294","v":"# of Judgments Issued"},{"$f":"'Data SBP Measures'!$T1294","v":"2172"},{"$f":"'Data SBP Measures'!$U1294&B806","v":"129# of Judgments Issued"},{"$f":"'Data SBP Measures'!$Y1294","v":"EACH"},null,null,null,null,null,"Civil Division - 129","# of Judgments Issued",null,null,null,null,null,null,null,"1887","125","Y","220","Mental Health","PERCENT","OUTCOME","NEITHER",null,null,null,"Mental Health","% of cases when PC hearings w/in time required by statute (72 hours)",null,{"$f":"'Data SBP Measures'!$AF806&'Data SBP Measures'!$AE806& \" - \"& 'Data SBP Measures'!$U806","v":"% of cases when PC hearings w/in time required by statute (72 hours)Mental Health - 125"},{"$f":"_xlfn.XLOOKUP(VALUE(W806),'Data SBP Programs'!O:O,'Data SBP Programs'!S:S)","v":"Mental Health"}]
[{"$f":"'Data SBP Measures'!$AI1295&\" - \"&'Data SBP Measures'!$U1295","v":"Civil Division - 129"},{"$f":"'Data SBP Measures'!$AF1295","v":"# of Judgments Issued"},{"$f":"'Data SBP Measures'!$T1295","v":"2172"},{"$f":"'Data SBP Measures'!$U1295&B807","v":"129# of Judgments Issued"},{"$f":"'Data SBP Measures'!$Y1295","v":"EACH"},null,null,null,null,null,"Civil Division - 129","# of Judgments Issued",null,null,null,null,null,null,null,"1887","125","Y","220","Mental Health","PERCENT","OUTCOME","NEITHER",null,null,null,"Mental Health","% of cases when PC hearings w/in time required by statute (72 hours)",null,{"$f":"'Data SBP Measures'!$AF807&'Data SBP Measures'!$AE807& \" - \"& 'Data SBP Measures'!$U807","v":"% of cases when PC hearings w/in time required by statute (72 hours)Mental Health - 125"},{"$f":"_xlfn.XLOOKUP(VALUE(W807),'Data SBP Programs'!O:O,'Data SBP Programs'!S:S)","v":"Mental Health"}]
[{"$f":"'Data SBP Measures'!$AI1296&\" - \"&'Data SBP Measures'!$U1296","v":"Civil Division - 129"},{"$f":"'Data SBP Measures'!$AF1296","v":"# of Judgments Issued"},{"$f":"'Data SBP Measures'!$T1296","v":"2172"},{"$f":"'Data SBP Measures'!$U1296&B808","v":"129# of Judgments Issued"},{"$f":"'Data SBP Measures'!$Y1296","v":"EACH"},null,null,null,null,null,"Civil Division - 129","# of Judgments Issued",null,null,null,null,null,null,null,"1888","125","Y","220","Mental Health","PERCENT","OUTCOME","NEITHER",null,null,null,"Mental Health","% of cases when case disposed w/in time required by statute (30 days, to include any continuance)",null,{"$f":"'Data SBP Measures'!$AF808&'Data SBP Measures'!$AE808& \" - \"& 'Data SBP Measures'!$U808","v":"% of cases when case disposed w/in time required by statute (30 days, to include any continuance)Mental Health - 125"},{"$f":"_xlfn.XLOOKUP(VALUE(W808),'Data SBP Programs'!O:O,'Data SBP Programs'!S:S)","v":"Mental Health"}]
[{"$f":"'Data SBP Measures'!$AI1275&\" - \"&'Data SBP Measures'!$U1275","v":"Civil Division - 129"},{"$f":"'Data SBP Measures'!$AF1275","v":"# of New Civil Cases Debt"},{"$f":"'Data SBP Measures'!$T1275","v":"2166"},{"$f":"'Data SBP Measures'!$U1275&B809","v":"129# of New Civil Cases Debt"},{"$f":"'Data SBP Measures'!$Y1275","v":"EACH"},null,null,null,null,null,"Civil Division - 129","# of New Civil Cases Debt",null,null,null,null,null,null,null,"1888","125","Y","220","Mental Health","PERCENT","OUTCOME","NEITHER",null,null,null,"Mental Health","% of cases when case disposed w/in time required by statute (30 days, to include any continuance)",null,{"$f":"'Data SBP Measures'!$AF809&'Data SBP Measures'!$AE809& \" - \"& 'Data SBP Measures'!$U809","v":"% of cases when case disposed w/in time required by statute (30 days, to include any continuance)Mental Health - 125"},{"$f":"_xlfn.XLOOKUP(VALUE(W809),'Data SBP Programs'!O:O,'Data SBP Programs'!S:S)","v":"Mental Health"}]
[{"$f":"'Data SBP Measures'!$AI1276&\" - \"&'Data SBP Measures'!$U1276","v":"Civil Division - 129"},{"$f":"'Data SBP Measures'!$AF1276","v":"# of New Civil Cases Debt"},{"$f":"'Data SBP Measures'!$T1276","v":"2166"},{"$f":"'Data SBP Measures'!$U1276&B810","v":"129# of New Civil Cases Debt"},{"$f":"'Data SBP Measures'!$Y1276","v":"EACH"},null,null,null,null,null,"Civil Division - 129","# of New Civil Cases Debt",null,null,null,null,null,null,null,"1889","125","Y","221","Probate","EACH","INPUT","NEITHER",null,null,null,"Probate","Will-probate cases filed during FY",null,{"$f":"'Data SBP Measures'!$AF810&'Data SBP Measures'!$AE810& \" - \"& 'Data SBP Measures'!$U810","v":"Will-probate cases filed during FYProbate - 125"},{"$f":"_xlfn.XLOOKUP(VALUE(W810),'Data SBP Programs'!O:O,'Data SBP Programs'!S:S)","v":"Probate"}]
[{"$f":"'Data SBP Measures'!$AI1277&\" - \"&'Data SBP Measures'!$U1277","v":"Civil Division - 129"},{"$f":"'Data SBP Measures'!$AF1277","v":"# of New Civil Cases Debt"},{"$f":"'Data SBP Measures'!$T1277","v":"2166"},{"$f":"'Data SBP Measures'!$U1277&B811","v":"129# of New Civil Cases Debt"},{"$f":"'Data SBP Measures'!$Y1277","v":"EACH"},null,null,null,null,null,"Civil Division - 129","# of New Civil Cases Debt",null,null,null,null,null,null,null,"1889","125","Y","221","Probate","EACH","INPUT","NEITHER",null,null,null,"Probate","Will-probate cases filed during FY",null,{"$f":"'Data SBP Measures'!$AF811&'Data SBP Measures'!$AE811& \" - \"& 'Data SBP Measures'!$U811","v":"Will-probate cases filed during FYProbate - 125"},{"$f":"_xlfn.XLOOKUP(VALUE(W811),'Data SBP Programs'!O:O,'Data SBP Programs'!S:S)","v":"Probate"}]
[{"$f":"'Data SBP Measures'!$AI1278&\" - \"&'Data SBP Measures'!$U1278","v":"Civil Division - 129"},{"$f":"'Data SBP Measures'!$AF1278","v":"# of New Civil Cases Landlord Tenant"},{"$f":"'Data SBP Measures'!$T1278","v":"2167"},{"$f":"'Data SBP Measures'!$U1278&B812","v":"129# of New Civil Cases Landlord Tenant"},{"$f":"'Data SBP Measures'!$Y1278","v":"EACH"},null,null,null,null,null,"Civil Division - 129","# of New Civil Cases Landlord Tenant",null,null,null,null,null,null,null,"1889","125","Y","221","Probate","EACH","INPUT","NEITHER",null,null,null,"Probate","Will-probate cases filed during FY",null,{"$f":"'Data SBP Measures'!$AF812&'Data SBP Measures'!$AE812& \" - \"& 'Data SBP Measures'!$U812","v":"Will-probate cases filed during FYProbate - 125"},{"$f":"_xlfn.XLOOKUP(VALUE(W812),'Data SBP Programs'!O:O,'Data SBP Programs'!S:S)","v":"Probate"}]
[{"$f":"'Data SBP Measures'!$AI1279&\" - \"&'Data SBP Measures'!$U1279","v":"Civil Division - 129"},{"$f":"'Data SBP Measures'!$AF1279","v":"# of New Civil Cases Landlord Tenant"},{"$f":"'Data SBP Measures'!$T1279","v":"2167"},{"$f":"'Data SBP Measures'!$U1279&B813","v":"129# of New Civil Cases Landlord Tenant"},{"$f":"'Data SBP Measures'!$Y1279","v":"EACH"},null,null,null,null,null,"Civil Division - 129","# of New Civil Cases Landlord Tenant",null,null,null,null,null,null,null,"1890","125","Y","221","Probate","EACH","OUTPUT","BOTH",null,null,null,"Probate","Court grants application for probate of decedent’s will",null,{"$f":"'Data SBP Measures'!$AF813&'Data SBP Measures'!$AE813& \" - \"& 'Data SBP Measures'!$U813","v":"Court grants application for probate of decedent’s willProbate - 125"},{"$f":"_xlfn.XLOOKUP(VALUE(W813),'Data SBP Programs'!O:O,'Data SBP Programs'!S:S)","v":"Probate"}]
[{"$f":"'Data SBP Measures'!$AI1280&\" - \"&'Data SBP Measures'!$U1280","v":"Civil Division - 129"},{"$f":"'Data SBP Measures'!$AF1280","v":"# of New Civil Cases Landlord Tenant"},{"$f":"'Data SBP Measures'!$T1280","v":"2167"},{"$f":"'Data SBP Measures'!$U1280&B814","v":"129# of New Civil Cases Landlord Tenant"},{"$f":"'Data SBP Measures'!$Y1280","v":"EACH"},null,null,null,null,null,"Civil Division - 129","# of New Civil Cases Landlord Tenant",null,null,null,null,null,null,null,"1890","125","Y","221","Probate","EACH","OUTPUT","BOTH",null,null,null,"Probate","Court grants application for probate of decedent’s will",null,{"$f":"'Data SBP Measures'!$AF814&'Data SBP Measures'!$AE814& \" - \"& 'Data SBP Measures'!$U814","v":"Court grants application for probate of decedent’s willProbate - 125"},{"$f":"_xlfn.XLOOKUP(VALUE(W814),'Data SBP Programs'!O:O,'Data SBP Programs'!S:S)","v":"Probate"}]
[{"$f":"'Data SBP Measures'!$AI1281&\" - \"&'Data SBP Measures'!$U1281","v":"Civil Division - 129"},{"$f":"'Data SBP Measures'!$AF1281","v":"# of New Civil Cases Small Claims"},{"$f":"'Data SBP Measures'!$T1281","v":"2168"},{"$f":"'Data SBP Measures'!$U1281&B815","v":"129# of New Civil Cases Small Claims"},{"$f":"'Data SBP Measures'!$Y1281","v":"EACH"},null,null,null,null,null,"Civil Division - 129","# of New Civil Cases Small Claims",null,null,null,null,null,null,null,"1890","125","Y","221","Probate","EACH","OUTPUT","BOTH",null,null,null,"Probate","Court grants application for probate of decedent’s will",null,{"$f":"'Data SBP Measures'!$AF815&'Data SBP Measures'!$AE815& \" - \"& 'Data SBP Measures'!$U815","v":"Court grants application for probate of decedent’s willProbate - 125"},{"$f":"_xlfn.XLOOKUP(VALUE(W815),'Data SBP Programs'!O:O,'Data SBP Programs'!S:S)","v":"Probate"}]
[{"$f":"'Data SBP Measures'!$AI1282&\" - \"&'Data SBP Measures'!$U1282","v":"Civil Division - 129"},{"$f":"'Data SBP Measures'!$AF1282","v":"# of New Civil Cases Small Claims"},{"$f":"'Data SBP Measures'!$T1282","v":"2168"},{"$f":"'Data SBP Measures'!$U1282&B816","v":"129# of New Civil Cases Small Claims"},{"$f":"'Data SBP Measures'!$Y1282","v":"EACH"},null,null,null,null,null,"Civil Division - 129","# of New Civil Cases Small Claims",null,null,null,null,null,null,null,"1892","125","Y","221","Probate","EACH","OUTPUT","NEITHER",null,null,null,"Probate","Other will-probate cases disposed of w/o will probate",null,{"$f":"'Data SBP Measures'!$AF816&'Data SBP Measures'!$AE816& \" - \"& 'Data SBP Measures'!$U816","v":"Other will-probate cases disposed of w/o will probateProbate - 125"},{"$f":"_xlfn.XLOOKUP(VALUE(W816),'Data SBP Programs'!O:O,'Data SBP Programs'!S:S)","v":"Probate"}]
[{"$f":"'Data SBP Measures'!$AI1283&\" - \"&'Data SBP Measures'!$U1283","v":"Civil Division - 129"},{"$f":"'Data SBP Measures'!$AF1283","v":"# of New Civil Cases Small Claims"},{"$f":"'Data SBP Measures'!$T1283","v":"2168"},{"$f":"'Data SBP Measures'!$U1283&B817","v":"129# of New Civil Cases Small Claims"},{"$f":"'Data SBP Measures'!$Y1283","v":"EACH"},null,null,null,null,null,"Civil Division - 129","# of New Civil Cases Small Claims",null,null,null,null,null,null,null,"1892","125","Y","221","Probate","EACH","OUTPUT","NEITHER",null,null,null,"Probate","Other will-probate cases disposed of w/o will probate",null,{"$f":"'Data SBP Measures'!$AF817&'Data SBP Measures'!$AE817& \" - \"& 'Data SBP Measures'!$U817","v":"Other will-probate cases disposed of w/o will probateProbate - 125"},{"$f":"_xlfn.XLOOKUP(VALUE(W817),'Data SBP Programs'!O:O,'Data SBP Programs'!S:S)","v":"Probate"}]
[{"$f":"'Data SBP Measures'!$AI1291&\" - \"&'Data SBP Measures'!$U1291","v":"Civil Division - 129"},{"$f":"'Data SBP Measures'!$AF1291","v":"# of Post Judg. Remedies"},{"$f":"'Data SBP Measures'!$T1291","v":"2171"},{"$f":"'Data SBP Measures'!$U1291&B818","v":"129# of Post Judg. Remedies"},{"$f":"'Data SBP Measures'!$Y1291","v":"EACH"},null,null,null,null,null,"Civil Division - 129","# of Post Judg. Remedies",null,null,null,null,null,null,null,"1892","125","Y","221","Probate","EACH","OUTPUT","NEITHER",null,null,null,"Probate","Other will-probate cases disposed of w/o will probate",null,{"$f":"'Data SBP Measures'!$AF818&'Data SBP Measures'!$AE818& \" - \"& 'Data SBP Measures'!$U818","v":"Other will-probate cases disposed of w/o will probateProbate - 125"},{"$f":"_xlfn.XLOOKUP(VALUE(W818),'Data SBP Programs'!O:O,'Data SBP Programs'!S:S)","v":"Probate"}]
[{"$f":"'Data SBP Measures'!$AI1292&\" - \"&'Data SBP Measures'!$U1292","v":"Civil Division - 129"},{"$f":"'Data SBP Measures'!$AF1292","v":"# of Post Judg. Remedies"},{"$f":"'Data SBP Measures'!$T1292","v":"2171"},{"$f":"'Data SBP Measures'!$U1292&B819","v":"129# of Post Judg. Remedies"},{"$f":"'Data SBP Measures'!$Y1292","v":"EACH"},null,null,null,null,null,"Civil Division - 129","# of Post Judg. Remedies",null,null,null,null,null,null,null,"1893","125","Y","221","Probate","EACH","INPUT","NEITHER",null,null,null,"Probate","Heirship cases filed during FY",null,{"$f":"'Data SBP Measures'!$AF819&'Data SBP Measures'!$AE819& \" - \"& 'Data SBP Measures'!$U819","v":"Heirship cases filed during FYProbate - 125"},{"$f":"_xlfn.XLOOKUP(VALUE(W819),'Data SBP Programs'!O:O,'Data SBP Programs'!S:S)","v":"Probate"}]
[{"$f":"'Data SBP Measures'!$AI1293&\" - \"&'Data SBP Measures'!$U1293","v":"Civil Division - 129"},{"$f":"'Data SBP Measures'!$AF1293","v":"# of Post Judg. Remedies"},{"$f":"'Data SBP Measures'!$T1293","v":"2171"},{"$f":"'Data SBP Measures'!$U1293&B820","v":"129# of Post Judg. Remedies"},{"$f":"'Data SBP Measures'!$Y1293","v":"EACH"},null,null,null,null,null,"Civil Division - 129","# of Post Judg. Remedies",null,null,null,null,null,null,null,"1893","125","Y","221","Probate","EACH","INPUT","NEITHER",null,null,null,"Probate","Heirship cases filed during FY",null,{"$f":"'Data SBP Measures'!$AF820&'Data SBP Measures'!$AE820& \" - \"& 'Data SBP Measures'!$U820","v":"Heirship cases filed during FYProbate - 125"},{"$f":"_xlfn.XLOOKUP(VALUE(W820),'Data SBP Programs'!O:O,'Data SBP Programs'!S:S)","v":"Probate"}]
[{"$f":"'Data SBP Measures'!$AI1300&\" - \"&'Data SBP Measures'!$U1300","v":"Civil Division - 129"},{"$f":"'Data SBP Measures'!$AF1300","v":"% Disposition Rate (disposed cases divided by new cases filed)"},{"$f":"'Data SBP Measures'!$T1300","v":"2174"},{"$f":"'Data SBP Measures'!$U1300&B821","v":"129% Disposition Rate (disposed cases divided by new cases filed)"},{"$f":"'Data SBP Measures'!$Y1300","v":"PERCENT"},null,null,null,null,null,"Civil Division - 129","% Disposition Rate (disposed cases divided by new cases filed)",null,null,null,null,null,null,null,"1893","125","Y","221","Probate","EACH","INPUT","NEITHER",null,null,null,"Probate","Heirship cases filed during FY",null,{"$f":"'Data SBP Measures'!$AF821&'Data SBP Measures'!$AE821& \" - \"& 'Data SBP Measures'!$U821","v":"Heirship cases filed during FYProbate - 125"},{"$f":"_xlfn.XLOOKUP(VALUE(W821),'Data SBP Programs'!O:O,'Data SBP Programs'!S:S)","v":"Probate"}]
[{"$f":"'Data SBP Measures'!$AI1301&\" - \"&'Data SBP Measures'!$U1301","v":"Civil Division - 129"},{"$f":"'Data SBP Measures'!$AF1301","v":"% Disposition Rate (disposed cases divided by new cases filed)"},{"$f":"'Data SBP Measures'!$T1301","v":"2174"},{"$f":"'Data SBP Measures'!$U1301&B822","v":"129% Disposition Rate (disposed cases divided by new cases filed)"},{"$f":"'Data SBP Measures'!$Y1301","v":"PERCENT"},null,null,null,null,null,"Civil Division - 129","% Disposition Rate (disposed cases divided by new cases filed)",null,null,null,null,null,null,null,"1894","125","Y","221","Probate","EACH","OUTPUT","BLACKBOOK",null,null,null,"Probate","Court orders heirship of decedent",null,{"$f":"'Data SBP Measures'!$AF822&'Data SBP Measures'!$AE822& \" - \"& 'Data SBP Measures'!$U822","v":"Court orders heirship of decedentProbate - 125"},{"$f":"_xlfn.XLOOKUP(VALUE(W822),'Data SBP Programs'!O:O,'Data SBP Programs'!S:S)","v":"Probate"}]
[{"$f":"'Data SBP Measures'!$AI1302&\" - \"&'Data SBP Measures'!$U1302","v":"Civil Division - 129"},{"$f":"'Data SBP Measures'!$AF1302","v":"% Disposition Rate (disposed cases divided by new cases filed)"},{"$f":"'Data SBP Measures'!$T1302","v":"2174"},{"$f":"'Data SBP Measures'!$U1302&B823","v":"129% Disposition Rate (disposed cases divided by new cases filed)"},{"$f":"'Data SBP Measures'!$Y1302","v":"PERCENT"},null,null,null,null,null,"Civil Division - 129","% Disposition Rate (disposed cases divided by new cases filed)",null,null,null,null,null,null,null,"1894","125","Y","221","Probate","EACH","OUTPUT","BLACKBOOK",null,null,null,"Probate","Court orders heirship of decedent",null,{"$f":"'Data SBP Measures'!$AF823&'Data SBP Measures'!$AE823& \" - \"& 'Data SBP Measures'!$U823","v":"Court orders heirship of decedentProbate - 125"},{"$f":"_xlfn.XLOOKUP(VALUE(W823),'Data SBP Programs'!O:O,'Data SBP Programs'!S:S)","v":"Probate"}]
[{"$f":"'Data SBP Measures'!$AI1263&\" - \"&'Data SBP Measures'!$U1263","v":"Civil Division - 129"},{"$f":"'Data SBP Measures'!$AF1263","v":"Total pending Cases"},{"$f":"'Data SBP Measures'!$T1263","v":"2162"},{"$f":"'Data SBP Measures'!$U1263&B824","v":"129Total pending Cases"},{"$f":"'Data SBP Measures'!$Y1263","v":"EACH"},null,null,null,null,null,"Civil Division - 129","Total pending Cases",null,null,null,null,null,null,null,"1894","125","Y","221","Probate","EACH","OUTPUT","BLACKBOOK",null,null,null,"Probate","Court orders heirship of decedent",null,{"$f":"'Data SBP Measures'!$AF824&'Data SBP Measures'!$AE824& \" - \"& 'Data SBP Measures'!$U824","v":"Court orders heirship of decedentProbate - 125"},{"$f":"_xlfn.XLOOKUP(VALUE(W824),'Data SBP Programs'!O:O,'Data SBP Programs'!S:S)","v":"Probate"}]
[{"$f":"'Data SBP Measures'!$AI1264&\" - \"&'Data SBP Measures'!$U1264","v":"Civil Division - 129"},{"$f":"'Data SBP Measures'!$AF1264","v":"Total pending Cases"},{"$f":"'Data SBP Measures'!$T1264","v":"2162"},{"$f":"'Data SBP Measures'!$U1264&B825","v":"129Total pending Cases"},{"$f":"'Data SBP Measures'!$Y1264","v":"EACH"},null,null,null,null,null,"Civil Division - 129","Total pending Cases",null,null,null,null,null,null,null,"1898","125","Y","221","Probate","EACH","INPUT","BLACKBOOK",null,null,null,"Probate","Small estate affidavits filed during FY",null,{"$f":"'Data SBP Measures'!$AF825&'Data SBP Measures'!$AE825& \" - \"& 'Data SBP Measures'!$U825","v":"Small estate affidavits filed during FYProbate - 125"},{"$f":"_xlfn.XLOOKUP(VALUE(W825),'Data SBP Programs'!O:O,'Data SBP Programs'!S:S)","v":"Probate"}]
[{"$f":"'Data SBP Measures'!$AI1265&\" - \"&'Data SBP Measures'!$U1265","v":"Civil Division - 129"},{"$f":"'Data SBP Measures'!$AF1265","v":"Total pending Cases"},{"$f":"'Data SBP Measures'!$T1265","v":"2162"},{"$f":"'Data SBP Measures'!$U1265&B826","v":"129Total pending Cases"},{"$f":"'Data SBP Measures'!$Y1265","v":"EACH"},null,null,null,null,null,"Civil Division - 129","Total pending Cases",null,null,null,null,null,null,null,"1898","125","Y","221","Probate","EACH","INPUT","BLACKBOOK",null,null,null,"Probate","Small estate affidavits filed during FY",null,{"$f":"'Data SBP Measures'!$AF826&'Data SBP Measures'!$AE826& \" - \"& 'Data SBP Measures'!$U826","v":"Small estate affidavits filed during FYProbate - 125"},{"$f":"_xlfn.XLOOKUP(VALUE(W826),'Data SBP Programs'!O:O,'Data SBP Programs'!S:S)","v":"Probate"}]
[{"$f":"'Data SBP Measures'!$AI751&\" - \"&'Data SBP Measures'!$U751","v":"Civil Division (Family) - 121"},{"$f":"'Data SBP Measures'!$AF751","v":"# Appeals and Record requests via Appeals Creator application"},{"$f":"'Data SBP Measures'!$T751","v":"1825"},{"$f":"'Data SBP Measures'!$U751&B827","v":"121# Appeals and Record requests via Appeals Creator application"},{"$f":"'Data SBP Measures'!$Y751","v":"EACH"},null,null,null,null,null,"Civil Division (Family) - 121","# Appeals and Record requests via Appeals Creator application",null,null,null,null,null,null,null,"1898","125","Y","221","Probate","EACH","INPUT","BLACKBOOK",null,null,null,"Probate","Small estate affidavits filed during FY",null,{"$f":"'Data SBP Measures'!$AF827&'Data SBP Measures'!$AE827& \" - \"& 'Data SBP Measures'!$U827","v":"Small estate affidavits filed during FYProbate - 125"},{"$f":"_xlfn.XLOOKUP(VALUE(W827),'Data SBP Programs'!O:O,'Data SBP Programs'!S:S)","v":"Probate"}]
[{"$f":"'Data SBP Measures'!$AI750&\" - \"&'Data SBP Measures'!$U750","v":"Civil Division (Family) - 121"},{"$f":"'Data SBP Measures'!$AF750","v":"# documents processed through Agency Upload by civil/family/criminal clerks"},{"$f":"'Data SBP Measures'!$T750","v":"1824"},{"$f":"'Data SBP Measures'!$U750&B828","v":"121# documents processed through Agency Upload by civil/family/criminal clerks"},{"$f":"'Data SBP Measures'!$Y750","v":"EACH"},null,null,null,null,null,"Civil Division (Family) - 121","# documents processed through Agency Upload by civil/family/criminal clerks",null,null,null,null,null,null,null,"1899","125","Y","221","Probate","EACH","OUTPUT","NEITHER",null,null,null,"Probate","Small Estate Affidavits approved during FY",null,{"$f":"'Data SBP Measures'!$AF828&'Data SBP Measures'!$AE828& \" - \"& 'Data SBP Measures'!$U828","v":"Small Estate Affidavits approved during FYProbate - 125"},{"$f":"_xlfn.XLOOKUP(VALUE(W828),'Data SBP Programs'!O:O,'Data SBP Programs'!S:S)","v":"Probate"}]
[{"$f":"'Data SBP Measures'!$AI749&\" - \"&'Data SBP Measures'!$U749","v":"Civil Division (Family) - 121"},{"$f":"'Data SBP Measures'!$AF749","v":"# e-files processed by civil, family and criminal division clerks (includes accepted and rejected)"},{"$f":"'Data SBP Measures'!$T749","v":"1823"},{"$f":"'Data SBP Measures'!$U749&B829","v":"121# e-files processed by civil, family and criminal division clerks (includes accepted and rejected)"},{"$f":"'Data SBP Measures'!$Y749","v":"EACH"},null,null,null,null,null,"Civil Division (Family) - 121","# e-files processed by civil, family and criminal division clerks (includes accepted and rejected)",null,null,null,null,null,null,null,"1899","125","Y","221","Probate","EACH","OUTPUT","NEITHER",null,null,null,"Probate","Small Estate Affidavits approved during FY",null,{"$f":"'Data SBP Measures'!$AF829&'Data SBP Measures'!$AE829& \" - \"& 'Data SBP Measures'!$U829","v":"Small Estate Affidavits approved during FYProbate - 125"},{"$f":"_xlfn.XLOOKUP(VALUE(W829),'Data SBP Programs'!O:O,'Data SBP Programs'!S:S)","v":"Probate"}]
[{"$f":"'Data SBP Measures'!$AI742&\" - \"&'Data SBP Measures'!$U742","v":"Civil Division (Family) - 121"},{"$f":"'Data SBP Measures'!$AF742","v":"# Family entries reviewed"},{"$f":"'Data SBP Measures'!$T742","v":"1814"},{"$f":"'Data SBP Measures'!$U742&B830","v":"121# Family entries reviewed"},{"$f":"'Data SBP Measures'!$Y742","v":"EACH"},null,null,null,null,null,"Civil Division (Family) - 121","# Family entries reviewed",null,null,null,null,null,null,null,"1899","125","Y","221","Probate","EACH","OUTPUT","NEITHER",null,null,null,"Probate","Small Estate Affidavits approved during FY",null,{"$f":"'Data SBP Measures'!$AF830&'Data SBP Measures'!$AE830& \" - \"& 'Data SBP Measures'!$U830","v":"Small Estate Affidavits approved during FYProbate - 125"},{"$f":"_xlfn.XLOOKUP(VALUE(W830),'Data SBP Programs'!O:O,'Data SBP Programs'!S:S)","v":"Probate"}]
[{"$f":"'Data SBP Measures'!$AI741&\" - \"&'Data SBP Measures'!$U741","v":"Civil Division (Family) - 121"},{"$f":"'Data SBP Measures'!$AF741","v":"# Family production entries in FACTS"},{"$f":"'Data SBP Measures'!$T741","v":"1813"},{"$f":"'Data SBP Measures'!$U741&B831","v":"121# Family production entries in FACTS"},{"$f":"'Data SBP Measures'!$Y741","v":"EACH"},null,null,null,null,null,"Civil Division (Family) - 121","# Family production entries in FACTS",null,null,null,null,null,null,null,"19","106","Y","178","Auditor's Office","PERCENT","OUTCOME","ADOPTEDBUD",null,null,null,"Auditor's Office","% Single Audit Act grant reports filed by required due dates",null,{"$f":"'Data SBP Measures'!$AF831&'Data SBP Measures'!$AE831& \" - \"& 'Data SBP Measures'!$U831","v":"% Single Audit Act grant reports filed by required due datesAuditor's Office - 106"},{"$f":"_xlfn.XLOOKUP(VALUE(W831),'Data SBP Programs'!O:O,'Data SBP Programs'!S:S)","v":"Auditor's Office"}]
[{"$f":"'Data SBP Measures'!$AI738&\" - \"&'Data SBP Measures'!$U738","v":"Civil Division (Family) - 121"},{"$f":"'Data SBP Measures'!$AF738","v":"# of attorneys and court officers with access to court documents online through the AARO system"},{"$f":"'Data SBP Measures'!$T738","v":"1806"},{"$f":"'Data SBP Measures'!$U738&B832","v":"121# of attorneys and court officers with access to court documents online through the AARO system"},{"$f":"'Data SBP Measures'!$Y738","v":"EACH"},null,null,null,null,null,"Civil Division (Family) - 121","# of attorneys and court officers with access to court documents online through the AARO system",null,null,null,null,null,null,null,"1900","125","Y","221","Probate","EACH","OUTPUT","NEITHER",null,null,null,"Probate","Small Estate Affidavits denied during FY",null,{"$f":"'Data SBP Measures'!$AF832&'Data SBP Measures'!$AE832& \" - \"& 'Data SBP Measures'!$U832","v":"Small Estate Affidavits denied during FYProbate - 125"},{"$f":"_xlfn.XLOOKUP(VALUE(W832),'Data SBP Programs'!O:O,'Data SBP Programs'!S:S)","v":"Probate"}]
[{"$f":"'Data SBP Measures'!$AI2225&\" - \"&'Data SBP Measures'!$U2225","v":"Civil Division (Family) - 121"},{"$f":"'Data SBP Measures'!$AF2225","v":"# of Criminal production entries reviewed/audited for quality assurance"},{"$f":"'Data SBP Measures'!$T2225","v":"2743"},{"$f":"'Data SBP Measures'!$U2225&B833","v":"121# of Criminal production entries reviewed/audited for quality assurance"},{"$f":"'Data SBP Measures'!$Y2225","v":"EACH"},null,null,null,null,null,"Civil Division (Family) - 121","# of Criminal production entries reviewed/audited for quality assurance",null,null,null,null,null,null,null,"1900","125","Y","221","Probate","EACH","OUTPUT","NEITHER",null,null,null,"Probate","Small Estate Affidavits denied during FY",null,{"$f":"'Data SBP Measures'!$AF833&'Data SBP Measures'!$AE833& \" - \"& 'Data SBP Measures'!$U833","v":"Small Estate Affidavits denied during FYProbate - 125"},{"$f":"_xlfn.XLOOKUP(VALUE(W833),'Data SBP Programs'!O:O,'Data SBP Programs'!S:S)","v":"Probate"}]
[{"$f":"'Data SBP Measures'!$AI747&\" - \"&'Data SBP Measures'!$U747","v":"Civil Division (Family) - 121"},{"$f":"'Data SBP Measures'!$AF747","v":"# of dispositions"},{"$f":"'Data SBP Measures'!$T747","v":"1821"},{"$f":"'Data SBP Measures'!$U747&B834","v":"121# of dispositions"},{"$f":"'Data SBP Measures'!$Y747","v":"EACH"},null,null,null,null,null,"Civil Division (Family) - 121","# of dispositions",null,null,null,null,null,null,null,"1900","125","Y","221","Probate","EACH","OUTPUT","NEITHER",null,null,null,"Probate","Small Estate Affidavits denied during FY",null,{"$f":"'Data SBP Measures'!$AF834&'Data SBP Measures'!$AE834& \" - \"& 'Data SBP Measures'!$U834","v":"Small Estate Affidavits denied during FYProbate - 125"},{"$f":"_xlfn.XLOOKUP(VALUE(W834),'Data SBP Programs'!O:O,'Data SBP Programs'!S:S)","v":"Probate"}]
[{"$f":"'Data SBP Measures'!$AI748&\" - \"&'Data SBP Measures'!$U748","v":"Civil Division (Family) - 121"},{"$f":"'Data SBP Measures'!$AF748","v":"# of documents entered in the document management system"},{"$f":"'Data SBP Measures'!$T748","v":"1822"},{"$f":"'Data SBP Measures'!$U748&B835","v":"121# of documents entered in the document management system"},{"$f":"'Data SBP Measures'!$Y748","v":"EACH"},null,null,null,null,null,"Civil Division (Family) - 121","# of documents entered in the document management system",null,null,null,null,null,null,null,"1901","125","Y","221","Probate","PERCENT","EFFICIENCY","BOTH",null,null,null,"Probate","Clearance rates for will-probate cases during FY",null,{"$f":"'Data SBP Measures'!$AF835&'Data SBP Measures'!$AE835& \" - \"& 'Data SBP Measures'!$U835","v":"Clearance rates for will-probate cases during FYProbate - 125"},{"$f":"_xlfn.XLOOKUP(VALUE(W835),'Data SBP Programs'!O:O,'Data SBP Programs'!S:S)","v":"Probate"}]
[{"$f":"'Data SBP Measures'!$AI2227&\" - \"&'Data SBP Measures'!$U2227","v":"Civil Division (Family) - 121"},{"$f":"'Data SBP Measures'!$AF2227","v":"# of documents prepared for conversion"},{"$f":"'Data SBP Measures'!$T2227","v":"2745"},{"$f":"'Data SBP Measures'!$U2227&B836","v":"121# of documents prepared for conversion"},{"$f":"'Data SBP Measures'!$Y2227","v":"EACH"},null,null,null,null,null,"Civil Division (Family) - 121","# of documents prepared for conversion",null,null,null,null,null,null,null,"1901","125","Y","221","Probate","PERCENT","EFFICIENCY","BOTH",null,null,null,"Probate","Clearance rates for will-probate cases during FY",null,{"$f":"'Data SBP Measures'!$AF836&'Data SBP Measures'!$AE836& \" - \"& 'Data SBP Measures'!$U836","v":"Clearance rates for will-probate cases during FYProbate - 125"},{"$f":"_xlfn.XLOOKUP(VALUE(W836),'Data SBP Programs'!O:O,'Data SBP Programs'!S:S)","v":"Probate"}]
[{"$f":"'Data SBP Measures'!$AI740&\" - \"&'Data SBP Measures'!$U740","v":"Civil Division (Family) - 121"},{"$f":"'Data SBP Measures'!$AF740","v":"# of Gen. Lit/Govt. production entries reviewed/audited for quality assurance"},{"$f":"'Data SBP Measures'!$T740","v":"1810"},{"$f":"'Data SBP Measures'!$U740&B837","v":"121# of Gen. Lit/Govt. production entries reviewed/audited for quality assurance"},{"$f":"'Data SBP Measures'!$Y740","v":"EACH"},null,null,null,null,null,"Civil Division (Family) - 121","# of Gen. Lit/Govt. production entries reviewed/audited for quality assurance",null,null,null,null,null,null,null,"1901","125","Y","221","Probate","PERCENT","EFFICIENCY","BOTH",null,null,null,"Probate","Clearance rates for will-probate cases during FY",null,{"$f":"'Data SBP Measures'!$AF837&'Data SBP Measures'!$AE837& \" - \"& 'Data SBP Measures'!$U837","v":"Clearance rates for will-probate cases during FYProbate - 125"},{"$f":"_xlfn.XLOOKUP(VALUE(W837),'Data SBP Programs'!O:O,'Data SBP Programs'!S:S)","v":"Probate"}]
[{"$f":"'Data SBP Measures'!$AI743&\" - \"&'Data SBP Measures'!$U743","v":"Civil Division (Family) - 121"},{"$f":"'Data SBP Measures'!$AF743","v":"# of new or reopened Criminal cases filed"},{"$f":"'Data SBP Measures'!$T743","v":"1816"},{"$f":"'Data SBP Measures'!$U743&B838","v":"121# of new or reopened Criminal cases filed"},{"$f":"'Data SBP Measures'!$Y743","v":"EACH"},null,null,null,null,null,"Civil Division (Family) - 121","# of new or reopened Criminal cases filed",null,null,null,null,null,null,null,"1902","125","Y","221","Probate","PERCENT","EFFICIENCY","BOTH",null,null,null,"Probate","Clearance rates for heirship cases during FY",null,{"$f":"'Data SBP Measures'!$AF838&'Data SBP Measures'!$AE838& \" - \"& 'Data SBP Measures'!$U838","v":"Clearance rates for heirship cases during FYProbate - 125"},{"$f":"_xlfn.XLOOKUP(VALUE(W838),'Data SBP Programs'!O:O,'Data SBP Programs'!S:S)","v":"Probate"}]
[{"$f":"'Data SBP Measures'!$AI2228&\" - \"&'Data SBP Measures'!$U2228","v":"Civil Division (Family) - 121"},{"$f":"'Data SBP Measures'!$AF2228","v":"# of pages converted to electronic format"},{"$f":"'Data SBP Measures'!$T2228","v":"2746"},{"$f":"'Data SBP Measures'!$U2228&B839","v":"121# of pages converted to electronic format"},{"$f":"'Data SBP Measures'!$Y2228","v":"EACH"},null,null,null,null,null,"Civil Division (Family) - 121","# of pages converted to electronic format",null,null,null,null,null,null,null,"1902","125","Y","221","Probate","PERCENT","EFFICIENCY","BOTH",null,null,null,"Probate","Clearance rates for heirship cases during FY",null,{"$f":"'Data SBP Measures'!$AF839&'Data SBP Measures'!$AE839& \" - \"& 'Data SBP Measures'!$U839","v":"Clearance rates for heirship cases during FYProbate - 125"},{"$f":"_xlfn.XLOOKUP(VALUE(W839),'Data SBP Programs'!O:O,'Data SBP Programs'!S:S)","v":"Probate"}]
[{"$f":"'Data SBP Measures'!$AI2226&\" - \"&'Data SBP Measures'!$U2226","v":"Civil Division (Family) - 121"},{"$f":"'Data SBP Measures'!$AF2226","v":"Civil/criminal documents scanned into DMS"},{"$f":"'Data SBP Measures'!$T2226","v":"2744"},{"$f":"'Data SBP Measures'!$U2226&B840","v":"121Civil/criminal documents scanned into DMS"},{"$f":"'Data SBP Measures'!$Y2226","v":"EACH"},null,null,null,null,null,"Civil Division (Family) - 121","Civil/criminal documents scanned into DMS",null,null,null,null,null,null,null,"1902","125","Y","221","Probate","PERCENT","EFFICIENCY","BOTH",null,null,null,"Probate","Clearance rates for heirship cases during FY",null,{"$f":"'Data SBP Measures'!$AF840&'Data SBP Measures'!$AE840& \" - \"& 'Data SBP Measures'!$U840","v":"Clearance rates for heirship cases during FYProbate - 125"},{"$f":"_xlfn.XLOOKUP(VALUE(W840),'Data SBP Programs'!O:O,'Data SBP Programs'!S:S)","v":"Probate"}]
[{"$f":"'Data SBP Measures'!$AI703&\" - \"&'Data SBP Measures'!$U703","v":"Civil Divisions - 119"},{"$f":"'Data SBP Measures'!$AF703","v":"Billable hours per attorney and paralegal per year"},{"$f":"'Data SBP Measures'!$T703","v":"1763"},{"$f":"'Data SBP Measures'!$U703&B841","v":"119Billable hours per attorney and paralegal per year"},{"$f":"'Data SBP Measures'!$Y703","v":"HOURS"},null,null,null,null,null,"Civil Divisions - 119","Billable hours per attorney and paralegal per year",null,null,null,null,null,null,null,"1903","125","Y","221","Probate","PERCENT","EFFICIENCY","BOTH",null,null,null,"Probate","Clearance rates for small estate affidavit cases during FY",null,{"$f":"'Data SBP Measures'!$AF841&'Data SBP Measures'!$AE841& \" - \"& 'Data SBP Measures'!$U841","v":"Clearance rates for small estate affidavit cases during FYProbate - 125"},{"$f":"_xlfn.XLOOKUP(VALUE(W841),'Data SBP Programs'!O:O,'Data SBP Programs'!S:S)","v":"Probate"}]
[{"$f":"'Data SBP Measures'!$AI704&\" - \"&'Data SBP Measures'!$U704","v":"Civil Divisions - 119"},{"$f":"'Data SBP Measures'!$AF704","v":"Billable hours per attorney and paralegal per year"},{"$f":"'Data SBP Measures'!$T704","v":"1763"},{"$f":"'Data SBP Measures'!$U704&B842","v":"119Billable hours per attorney and paralegal per year"},{"$f":"'Data SBP Measures'!$Y704","v":"HOURS"},null,null,null,null,null,"Civil Divisions - 119","Billable hours per attorney and paralegal per year",null,null,null,null,null,null,null,"1903","125","Y","221","Probate","PERCENT","EFFICIENCY","BOTH",null,null,null,"Probate","Clearance rates for small estate affidavit cases during FY",null,{"$f":"'Data SBP Measures'!$AF842&'Data SBP Measures'!$AE842& \" - \"& 'Data SBP Measures'!$U842","v":"Clearance rates for small estate affidavit cases during FYProbate - 125"},{"$f":"_xlfn.XLOOKUP(VALUE(W842),'Data SBP Programs'!O:O,'Data SBP Programs'!S:S)","v":"Probate"}]
[{"$f":"'Data SBP Measures'!$AI705&\" - \"&'Data SBP Measures'!$U705","v":"Civil Divisions - 119"},{"$f":"'Data SBP Measures'!$AF705","v":"Property Tax Collection Rate"},{"$f":"'Data SBP Measures'!$T705","v":"1764"},{"$f":"'Data SBP Measures'!$U705&B843","v":"119Property Tax Collection Rate"},{"$f":"'Data SBP Measures'!$Y705","v":"PERCENT"},null,null,null,null,null,"Civil Divisions - 119","Property Tax Collection Rate",null,null,null,null,null,null,null,"1903","125","Y","221","Probate","PERCENT","EFFICIENCY","BOTH",null,null,null,"Probate","Clearance rates for small estate affidavit cases during FY",null,{"$f":"'Data SBP Measures'!$AF843&'Data SBP Measures'!$AE843& \" - \"& 'Data SBP Measures'!$U843","v":"Clearance rates for small estate affidavit cases during FYProbate - 125"},{"$f":"_xlfn.XLOOKUP(VALUE(W843),'Data SBP Programs'!O:O,'Data SBP Programs'!S:S)","v":"Probate"}]
[{"$f":"'Data SBP Measures'!$AI706&\" - \"&'Data SBP Measures'!$U706","v":"Civil Divisions - 119"},{"$f":"'Data SBP Measures'!$AF706","v":"Property Tax Collection Rate"},{"$f":"'Data SBP Measures'!$T706","v":"1764"},{"$f":"'Data SBP Measures'!$U706&B844","v":"119Property Tax Collection Rate"},{"$f":"'Data SBP Measures'!$Y706","v":"PERCENT"},null,null,null,null,null,"Civil Divisions - 119","Property Tax Collection Rate",null,null,null,null,null,null,null,"1915","125","Y","221","Probate","EACH","INPUT","BLACKBOOK",null,null,null,"Probate","Hearings on the record: regular docket",null,{"$f":"'Data SBP Measures'!$AF844&'Data SBP Measures'!$AE844& \" - \"& 'Data SBP Measures'!$U844","v":"Hearings on the record: regular docketProbate - 125"},{"$f":"_xlfn.XLOOKUP(VALUE(W844),'Data SBP Programs'!O:O,'Data SBP Programs'!S:S)","v":"Probate"}]
[{"$f":"'Data SBP Measures'!$AI914&\" - \"&'Data SBP Measures'!$U914","v":"Civil Litigation - 125"},{"$f":"'Data SBP Measures'!$AF914","v":"# of available jury settings"},{"$f":"'Data SBP Measures'!$T914","v":"1992"},{"$f":"'Data SBP Measures'!$U914&B845","v":"125# of available jury settings"},{"$f":"'Data SBP Measures'!$Y914","v":"EACH"},null,null,null,null,null,"Civil Litigation - 125","# of available jury settings",null,null,null,null,null,null,null,"1915","125","Y","221","Probate","EACH","INPUT","BLACKBOOK",null,null,null,"Probate","Hearings on the record: regular docket",null,{"$f":"'Data SBP Measures'!$AF845&'Data SBP Measures'!$AE845& \" - \"& 'Data SBP Measures'!$U845","v":"Hearings on the record: regular docketProbate - 125"},{"$f":"_xlfn.XLOOKUP(VALUE(W845),'Data SBP Programs'!O:O,'Data SBP Programs'!S:S)","v":"Probate"}]
[{"$f":"'Data SBP Measures'!$AI910&\" - \"&'Data SBP Measures'!$U910","v":"Civil Litigation - 125"},{"$f":"'Data SBP Measures'!$AF910","v":"# of civil cases filed during FY"},{"$f":"'Data SBP Measures'!$T910","v":"1980"},{"$f":"'Data SBP Measures'!$U910&B846","v":"125# of civil cases filed during FY"},{"$f":"'Data SBP Measures'!$Y910","v":"EACH"},null,null,null,null,null,"Civil Litigation - 125","# of civil cases filed during FY",null,null,null,null,null,null,null,"1915","125","Y","221","Probate","EACH","INPUT","BLACKBOOK",null,null,null,"Probate","Hearings on the record: regular docket",null,{"$f":"'Data SBP Measures'!$AF846&'Data SBP Measures'!$AE846& \" - \"& 'Data SBP Measures'!$U846","v":"Hearings on the record: regular docketProbate - 125"},{"$f":"_xlfn.XLOOKUP(VALUE(W846),'Data SBP Programs'!O:O,'Data SBP Programs'!S:S)","v":"Probate"}]
[{"$f":"'Data SBP Measures'!$AI911&\" - \"&'Data SBP Measures'!$U911","v":"Civil Litigation - 125"},{"$f":"'Data SBP Measures'!$AF911","v":"# of civil cases nonsuited or dismissed (including DWOP)"},{"$f":"'Data SBP Measures'!$T911","v":"1982"},{"$f":"'Data SBP Measures'!$U911&B847","v":"125# of civil cases nonsuited or dismissed (including DWOP)"},{"$f":"'Data SBP Measures'!$Y911","v":"EACH"},null,null,null,null,null,"Civil Litigation - 125","# of civil cases nonsuited or dismissed (including DWOP)",null,null,null,null,null,null,null,"1916","125","Y","221","Probate","EACH","INPUT","NEITHER",null,null,null,"Probate","Hearings on the record: uncontested docket",null,{"$f":"'Data SBP Measures'!$AF847&'Data SBP Measures'!$AE847& \" - \"& 'Data SBP Measures'!$U847","v":"Hearings on the record: uncontested docketProbate - 125"},{"$f":"_xlfn.XLOOKUP(VALUE(W847),'Data SBP Programs'!O:O,'Data SBP Programs'!S:S)","v":"Probate"}]
[{"$f":"'Data SBP Measures'!$AI912&\" - \"&'Data SBP Measures'!$U912","v":"Civil Litigation - 125"},{"$f":"'Data SBP Measures'!$AF912","v":"# of hearings in civil cases"},{"$f":"'Data SBP Measures'!$T912","v":"1990"},{"$f":"'Data SBP Measures'!$U912&B848","v":"125# of hearings in civil cases"},{"$f":"'Data SBP Measures'!$Y912","v":"EACH"},null,null,null,null,null,"Civil Litigation - 125","# of hearings in civil cases",null,null,null,null,null,null,null,"1916","125","Y","221","Probate","EACH","INPUT","NEITHER",null,null,null,"Probate","Hearings on the record: uncontested docket",null,{"$f":"'Data SBP Measures'!$AF848&'Data SBP Measures'!$AE848& \" - \"& 'Data SBP Measures'!$U848","v":"Hearings on the record: uncontested docketProbate - 125"},{"$f":"_xlfn.XLOOKUP(VALUE(W848),'Data SBP Programs'!O:O,'Data SBP Programs'!S:S)","v":"Probate"}]
[{"$f":"'Data SBP Measures'!$AI915&\" - \"&'Data SBP Measures'!$U915","v":"Civil Litigation - 125"},{"$f":"'Data SBP Measures'!$AF915","v":"# of jury trials held"},{"$f":"'Data SBP Measures'!$T915","v":"1993"},{"$f":"'Data SBP Measures'!$U915&B849","v":"125# of jury trials held"},{"$f":"'Data SBP Measures'!$Y915","v":"EACH"},null,null,null,null,null,"Civil Litigation - 125","# of jury trials held",null,null,null,null,null,null,null,"1916","125","Y","221","Probate","EACH","INPUT","NEITHER",null,null,null,"Probate","Hearings on the record: uncontested docket",null,{"$f":"'Data SBP Measures'!$AF849&'Data SBP Measures'!$AE849& \" - \"& 'Data SBP Measures'!$U849","v":"Hearings on the record: uncontested docketProbate - 125"},{"$f":"_xlfn.XLOOKUP(VALUE(W849),'Data SBP Programs'!O:O,'Data SBP Programs'!S:S)","v":"Probate"}]
[{"$f":"'Data SBP Measures'!$AI913&\" - \"&'Data SBP Measures'!$U913","v":"Civil Litigation - 125"},{"$f":"'Data SBP Measures'!$AF913","v":"# of jury trials set during FY\n"},{"$f":"'Data SBP Measures'!$T913","v":"1991"},{"$f":"'Data SBP Measures'!$U913&B850","v":"125# of jury trials set during FY\n"},{"$f":"'Data SBP Measures'!$Y913","v":"EACH"},null,null,null,null,null,"Civil Litigation - 125","# of jury trials set during FY\n",null,null,null,null,null,null,null,"1921","125","Y","221","Probate","EACH","INPUT","NEITHER",null,null,null,"Probate","# annual & final accounts filed in dep. admins. during FY",null,{"$f":"'Data SBP Measures'!$AF850&'Data SBP Measures'!$AE850& \" - \"& 'Data SBP Measures'!$U850","v":"# annual & final accounts filed in dep. admins. during FYProbate - 125"},{"$f":"_xlfn.XLOOKUP(VALUE(W850),'Data SBP Programs'!O:O,'Data SBP Programs'!S:S)","v":"Probate"}]
[{"$f":"'Data SBP Measures'!$AI916&\" - \"&'Data SBP Measures'!$U916","v":"Civil Litigation - 125"},{"$f":"'Data SBP Measures'!$AF916","v":"# of jury-trial cases settled prior to hearing\n"},{"$f":"'Data SBP Measures'!$T916","v":"1994"},{"$f":"'Data SBP Measures'!$U916&B851","v":"125# of jury-trial cases settled prior to hearing\n"},{"$f":"'Data SBP Measures'!$Y916","v":"EACH"},null,null,null,null,null,"Civil Litigation - 125","# of jury-trial cases settled prior to hearing\n",null,null,null,null,null,null,null,"1921","125","Y","221","Probate","EACH","INPUT","NEITHER",null,null,null,"Probate","# annual & final accounts filed in dep. admins. during FY",null,{"$f":"'Data SBP Measures'!$AF851&'Data SBP Measures'!$AE851& \" - \"& 'Data SBP Measures'!$U851","v":"# annual & final accounts filed in dep. admins. during FYProbate - 125"},{"$f":"_xlfn.XLOOKUP(VALUE(W851),'Data SBP Programs'!O:O,'Data SBP Programs'!S:S)","v":"Probate"}]
[{"$f":"'Data SBP Measures'!$AI921&\" - \"&'Data SBP Measures'!$U921","v":"Civil Processing - 126"},{"$f":"'Data SBP Measures'!$AF921","v":"Number of civil cases filed"},{"$f":"'Data SBP Measures'!$T921","v":"2008"},{"$f":"'Data SBP Measures'!$U921&B852","v":"126Number of civil cases filed"},{"$f":"'Data SBP Measures'!$Y921","v":"EACH"},null,null,null,null,null,"Civil Processing - 126","Number of civil cases filed",null,null,null,null,null,null,null,"1921","125","Y","221","Probate","EACH","INPUT","NEITHER",null,null,null,"Probate","# annual & final accounts filed in dep. admins. during FY",null,{"$f":"'Data SBP Measures'!$AF852&'Data SBP Measures'!$AE852& \" - \"& 'Data SBP Measures'!$U852","v":"# annual & final accounts filed in dep. admins. during FYProbate - 125"},{"$f":"_xlfn.XLOOKUP(VALUE(W852),'Data SBP Programs'!O:O,'Data SBP Programs'!S:S)","v":"Probate"}]
[{"$f":"'Data SBP Measures'!$AI922&\" - \"&'Data SBP Measures'!$U922","v":"Civil Processing - 126"},{"$f":"'Data SBP Measures'!$AF922","v":"Number of civil cases filed"},{"$f":"'Data SBP Measures'!$T922","v":"2008"},{"$f":"'Data SBP Measures'!$U922&B853","v":"126Number of civil cases filed"},{"$f":"'Data SBP Measures'!$Y922","v":"EACH"},null,null,null,null,null,"Civil Processing - 126","Number of civil cases filed",null,null,null,null,null,null,null,"1922","125","Y","221","Probate","EACH","OUTPUT","NEITHER",null,null,null,"Probate","# annual & final accounts approved in dep. admins. during FY",null,{"$f":"'Data SBP Measures'!$AF853&'Data SBP Measures'!$AE853& \" - \"& 'Data SBP Measures'!$U853","v":"# annual & final accounts approved in dep. admins. during FYProbate - 125"},{"$f":"_xlfn.XLOOKUP(VALUE(W853),'Data SBP Programs'!O:O,'Data SBP Programs'!S:S)","v":"Probate"}]
[{"$f":"'Data SBP Measures'!$AI923&\" - \"&'Data SBP Measures'!$U923","v":"Civil Processing - 126"},{"$f":"'Data SBP Measures'!$AF923","v":"Number of civil cases filed"},{"$f":"'Data SBP Measures'!$T923","v":"2008"},{"$f":"'Data SBP Measures'!$U923&B854","v":"126Number of civil cases filed"},{"$f":"'Data SBP Measures'!$Y923","v":"EACH"},null,null,null,null,null,"Civil Processing - 126","Number of civil cases filed",null,null,null,null,null,null,null,"1922","125","Y","221","Probate","EACH","OUTPUT","NEITHER",null,null,null,"Probate","# annual & final accounts approved in dep. admins. during FY",null,{"$f":"'Data SBP Measures'!$AF854&'Data SBP Measures'!$AE854& \" - \"& 'Data SBP Measures'!$U854","v":"# annual & final accounts approved in dep. admins. during FYProbate - 125"},{"$f":"_xlfn.XLOOKUP(VALUE(W854),'Data SBP Programs'!O:O,'Data SBP Programs'!S:S)","v":"Probate"}]
[{"$f":"'Data SBP Measures'!$AI924&\" - \"&'Data SBP Measures'!$U924","v":"Civil Processing - 126"},{"$f":"'Data SBP Measures'!$AF924","v":"Number of civil cases held heard by judge"},{"$f":"'Data SBP Measures'!$T924","v":"2009"},{"$f":"'Data SBP Measures'!$U924&B855","v":"126Number of civil cases held heard by judge"},{"$f":"'Data SBP Measures'!$Y924","v":"EACH"},null,null,null,null,null,"Civil Processing - 126","Number of civil cases held heard by judge",null,null,null,null,null,null,null,"1922","125","Y","221","Probate","EACH","OUTPUT","NEITHER",null,null,null,"Probate","# annual & final accounts approved in dep. admins. during FY",null,{"$f":"'Data SBP Measures'!$AF855&'Data SBP Measures'!$AE855& \" - \"& 'Data SBP Measures'!$U855","v":"# annual & final accounts approved in dep. admins. during FYProbate - 125"},{"$f":"_xlfn.XLOOKUP(VALUE(W855),'Data SBP Programs'!O:O,'Data SBP Programs'!S:S)","v":"Probate"}]
[{"$f":"'Data SBP Measures'!$AI925&\" - \"&'Data SBP Measures'!$U925","v":"Civil Processing - 126"},{"$f":"'Data SBP Measures'!$AF925","v":"Number of civil cases held heard by judge"},{"$f":"'Data SBP Measures'!$T925","v":"2009"},{"$f":"'Data SBP Measures'!$U925&B856","v":"126Number of civil cases held heard by judge"},{"$f":"'Data SBP Measures'!$Y925","v":"EACH"},null,null,null,null,null,"Civil Processing - 126","Number of civil cases held heard by judge",null,null,null,null,null,null,null,"1923","125","Y","221","Probate","PERCENT","EFFICIENCY","NEITHER",null,null,null,"Probate","Clearance rates: annual & final accounts filed in dep admins during FY",null,{"$f":"'Data SBP Measures'!$AF856&'Data SBP Measures'!$AE856& \" - \"& 'Data SBP Measures'!$U856","v":"Clearance rates: annual & final accounts filed in dep admins during FYProbate - 125"},{"$f":"_xlfn.XLOOKUP(VALUE(W856),'Data SBP Programs'!O:O,'Data SBP Programs'!S:S)","v":"Probate"}]
[{"$f":"'Data SBP Measures'!$AI926&\" - \"&'Data SBP Measures'!$U926","v":"Civil Processing - 126"},{"$f":"'Data SBP Measures'!$AF926","v":"Number of civil cases held heard by judge"},{"$f":"'Data SBP Measures'!$T926","v":"2009"},{"$f":"'Data SBP Measures'!$U926&B857","v":"126Number of civil cases held heard by judge"},{"$f":"'Data SBP Measures'!$Y926","v":"EACH"},null,null,null,null,null,"Civil Processing - 126","Number of civil cases held heard by judge",null,null,null,null,null,null,null,"1923","125","Y","221","Probate","PERCENT","EFFICIENCY","NEITHER",null,null,null,"Probate","Clearance rates: annual & final accounts filed in dep admins during FY",null,{"$f":"'Data SBP Measures'!$AF857&'Data SBP Measures'!$AE857& \" - \"& 'Data SBP Measures'!$U857","v":"Clearance rates: annual & final accounts filed in dep admins during FYProbate - 125"},{"$f":"_xlfn.XLOOKUP(VALUE(W857),'Data SBP Programs'!O:O,'Data SBP Programs'!S:S)","v":"Probate"}]
[{"$f":"'Data SBP Measures'!$AI936&\" - \"&'Data SBP Measures'!$U936","v":"Civil Processing - 126"},{"$f":"'Data SBP Measures'!$AF936","v":"Number of employees (FTE’s) to process cases"},{"$f":"'Data SBP Measures'!$T936","v":"2013"},{"$f":"'Data SBP Measures'!$U936&B858","v":"126Number of employees (FTE’s) to process cases"},{"$f":"'Data SBP Measures'!$Y936","v":"EACH"},null,null,null,null,null,"Civil Processing - 126","Number of employees (FTE’s) to process cases",null,null,null,null,null,null,null,"1923","125","Y","221","Probate","PERCENT","EFFICIENCY","NEITHER",null,null,null,"Probate","Clearance rates: annual & final accounts filed in dep admins during FY",null,{"$f":"'Data SBP Measures'!$AF858&'Data SBP Measures'!$AE858& \" - \"& 'Data SBP Measures'!$U858","v":"Clearance rates: annual & final accounts filed in dep admins during FYProbate - 125"},{"$f":"_xlfn.XLOOKUP(VALUE(W858),'Data SBP Programs'!O:O,'Data SBP Programs'!S:S)","v":"Probate"}]
[{"$f":"'Data SBP Measures'!$AI937&\" - \"&'Data SBP Measures'!$U937","v":"Civil Processing - 126"},{"$f":"'Data SBP Measures'!$AF937","v":"Number of employees (FTE’s) to process cases"},{"$f":"'Data SBP Measures'!$T937","v":"2013"},{"$f":"'Data SBP Measures'!$U937&B859","v":"126Number of employees (FTE’s) to process cases"},{"$f":"'Data SBP Measures'!$Y937","v":"EACH"},null,null,null,null,null,"Civil Processing - 126","Number of employees (FTE’s) to process cases",null,null,null,null,null,null,null,"1928","125","Y","221","Probate","EACH","OUTPUT","NEITHER",null,null,null,"Probate","# orders signed for other appls not requiring record hearing",null,{"$f":"'Data SBP Measures'!$AF859&'Data SBP Measures'!$AE859& \" - \"& 'Data SBP Measures'!$U859","v":"# orders signed for other appls not requiring record hearingProbate - 125"},{"$f":"_xlfn.XLOOKUP(VALUE(W859),'Data SBP Programs'!O:O,'Data SBP Programs'!S:S)","v":"Probate"}]
[{"$f":"'Data SBP Measures'!$AI938&\" - \"&'Data SBP Measures'!$U938","v":"Civil Processing - 126"},{"$f":"'Data SBP Measures'!$AF938","v":"Number of employees (FTE’s) to process cases"},{"$f":"'Data SBP Measures'!$T938","v":"2013"},{"$f":"'Data SBP Measures'!$U938&B860","v":"126Number of employees (FTE’s) to process cases"},{"$f":"'Data SBP Measures'!$Y938","v":"EACH"},null,null,null,null,null,"Civil Processing - 126","Number of employees (FTE’s) to process cases",null,null,null,null,null,null,null,"1928","125","Y","221","Probate","EACH","OUTPUT","NEITHER",null,null,null,"Probate","# orders signed for other appls not requiring record hearing",null,{"$f":"'Data SBP Measures'!$AF860&'Data SBP Measures'!$AE860& \" - \"& 'Data SBP Measures'!$U860","v":"# orders signed for other appls not requiring record hearingProbate - 125"},{"$f":"_xlfn.XLOOKUP(VALUE(W860),'Data SBP Programs'!O:O,'Data SBP Programs'!S:S)","v":"Probate"}]
[{"$f":"'Data SBP Measures'!$AI930&\" - \"&'Data SBP Measures'!$U930","v":"Civil Processing - 126"},{"$f":"'Data SBP Measures'!$AF930","v":"Number of motions filed (New)"},{"$f":"'Data SBP Measures'!$T930","v":"2011"},{"$f":"'Data SBP Measures'!$U930&B861","v":"126Number of motions filed (New)"},{"$f":"'Data SBP Measures'!$Y930","v":"EACH"},null,null,null,null,null,"Civil Processing - 126","Number of motions filed (New)",null,null,null,null,null,null,null,"1928","125","Y","221","Probate","EACH","OUTPUT","NEITHER",null,null,null,"Probate","# orders signed for other appls not requiring record hearing",null,{"$f":"'Data SBP Measures'!$AF861&'Data SBP Measures'!$AE861& \" - \"& 'Data SBP Measures'!$U861","v":"# orders signed for other appls not requiring record hearingProbate - 125"},{"$f":"_xlfn.XLOOKUP(VALUE(W861),'Data SBP Programs'!O:O,'Data SBP Programs'!S:S)","v":"Probate"}]
[{"$f":"'Data SBP Measures'!$AI931&\" - \"&'Data SBP Measures'!$U931","v":"Civil Processing - 126"},{"$f":"'Data SBP Measures'!$AF931","v":"Number of motions filed (New)"},{"$f":"'Data SBP Measures'!$T931","v":"2011"},{"$f":"'Data SBP Measures'!$U931&B862","v":"126Number of motions filed (New)"},{"$f":"'Data SBP Measures'!$Y931","v":"EACH"},null,null,null,null,null,"Civil Processing - 126","Number of motions filed (New)",null,null,null,null,null,null,null,"1931","125","Y","222","Guardianship","EACH","INPUT","NEITHER",null,null,null,"Guardianship","Cases where the need for a guardianship is investigated by the Court, which includes a statutorily required on-site visit",null,{"$f":"'Data SBP Measures'!$AF862&'Data SBP Measures'!$AE862& \" - \"& 'Data SBP Measures'!$U862","v":"Cases where the need for a guardianship is investigated by the Court, which includes a statutorily required on-site visitGuardianship - 125"},{"$f":"_xlfn.XLOOKUP(VALUE(W862),'Data SBP Programs'!O:O,'Data SBP Programs'!S:S)","v":"Guardianship"}]
[{"$f":"'Data SBP Measures'!$AI932&\" - \"&'Data SBP Measures'!$U932","v":"Civil Processing - 126"},{"$f":"'Data SBP Measures'!$AF932","v":"Number of motions filed (New)"},{"$f":"'Data SBP Measures'!$T932","v":"2011"},{"$f":"'Data SBP Measures'!$U932&B863","v":"126Number of motions filed (New)"},{"$f":"'Data SBP Measures'!$Y932","v":"EACH"},null,null,null,null,null,"Civil Processing - 126","Number of motions filed (New)",null,null,null,null,null,null,null,"1931","125","Y","222","Guardianship","EACH","INPUT","NEITHER",null,null,null,"Guardianship","Cases where the need for a guardianship is investigated by the Court, which includes a statutorily required on-site visit",null,{"$f":"'Data SBP Measures'!$AF863&'Data SBP Measures'!$AE863& \" - \"& 'Data SBP Measures'!$U863","v":"Cases where the need for a guardianship is investigated by the Court, which includes a statutorily required on-site visitGuardianship - 125"},{"$f":"_xlfn.XLOOKUP(VALUE(W863),'Data SBP Programs'!O:O,'Data SBP Programs'!S:S)","v":"Guardianship"}]
[{"$f":"'Data SBP Measures'!$AI927&\" - \"&'Data SBP Measures'!$U927","v":"Civil Processing - 126"},{"$f":"'Data SBP Measures'!$AF927","v":"Number of Peace Bond reviewed (New)"},{"$f":"'Data SBP Measures'!$T927","v":"2010"},{"$f":"'Data SBP Measures'!$U927&B864","v":"126Number of Peace Bond reviewed (New)"},{"$f":"'Data SBP Measures'!$Y927","v":"EACH"},null,null,null,null,null,"Civil Processing - 126","Number of Peace Bond reviewed (New)",null,null,null,null,null,null,null,"1931","125","Y","222","Guardianship","EACH","INPUT","NEITHER",null,null,null,"Guardianship","Cases where the need for a guardianship is investigated by the Court, which includes a statutorily required on-site visit",null,{"$f":"'Data SBP Measures'!$AF864&'Data SBP Measures'!$AE864& \" - \"& 'Data SBP Measures'!$U864","v":"Cases where the need for a guardianship is investigated by the Court, which includes a statutorily required on-site visitGuardianship - 125"},{"$f":"_xlfn.XLOOKUP(VALUE(W864),'Data SBP Programs'!O:O,'Data SBP Programs'!S:S)","v":"Guardianship"}]
[{"$f":"'Data SBP Measures'!$AI928&\" - \"&'Data SBP Measures'!$U928","v":"Civil Processing - 126"},{"$f":"'Data SBP Measures'!$AF928","v":"Number of Peace Bond reviewed (New)"},{"$f":"'Data SBP Measures'!$T928","v":"2010"},{"$f":"'Data SBP Measures'!$U928&B865","v":"126Number of Peace Bond reviewed (New)"},{"$f":"'Data SBP Measures'!$Y928","v":"EACH"},null,null,null,null,null,"Civil Processing - 126","Number of Peace Bond reviewed (New)",null,null,null,null,null,null,null,"1941","125","Y","222","Guardianship","EACH","INPUT","NEITHER",null,null,null,"Guardianship","Chapter 48 protective orders filed by APS & County Atty",null,{"$f":"'Data SBP Measures'!$AF865&'Data SBP Measures'!$AE865& \" - \"& 'Data SBP Measures'!$U865","v":"Chapter 48 protective orders filed by APS & County AttyGuardianship - 125"},{"$f":"_xlfn.XLOOKUP(VALUE(W865),'Data SBP Programs'!O:O,'Data SBP Programs'!S:S)","v":"Guardianship"}]
[{"$f":"'Data SBP Measures'!$AI929&\" - \"&'Data SBP Measures'!$U929","v":"Civil Processing - 126"},{"$f":"'Data SBP Measures'!$AF929","v":"Number of Peace Bond reviewed (New)"},{"$f":"'Data SBP Measures'!$T929","v":"2010"},{"$f":"'Data SBP Measures'!$U929&B866","v":"126Number of Peace Bond reviewed (New)"},{"$f":"'Data SBP Measures'!$Y929","v":"EACH"},null,null,null,null,null,"Civil Processing - 126","Number of Peace Bond reviewed (New)",null,null,null,null,null,null,null,"1941","125","Y","222","Guardianship","EACH","INPUT","NEITHER",null,null,null,"Guardianship","Chapter 48 protective orders filed by APS & County Atty",null,{"$f":"'Data SBP Measures'!$AF866&'Data SBP Measures'!$AE866& \" - \"& 'Data SBP Measures'!$U866","v":"Chapter 48 protective orders filed by APS & County AttyGuardianship - 125"},{"$f":"_xlfn.XLOOKUP(VALUE(W866),'Data SBP Programs'!O:O,'Data SBP Programs'!S:S)","v":"Guardianship"}]
[{"$f":"'Data SBP Measures'!$AI933&\" - \"&'Data SBP Measures'!$U933","v":"Civil Processing - 126"},{"$f":"'Data SBP Measures'!$AF933","v":"Percentage of civil cases dismissed (by plaintiff)"},{"$f":"'Data SBP Measures'!$T933","v":"2012"},{"$f":"'Data SBP Measures'!$U933&B867","v":"126Percentage of civil cases dismissed (by plaintiff)"},{"$f":"'Data SBP Measures'!$Y933","v":"PERCENT"},null,null,null,null,null,"Civil Processing - 126","Percentage of civil cases dismissed (by plaintiff)",null,null,null,null,null,null,null,"1941","125","Y","222","Guardianship","EACH","INPUT","NEITHER",null,null,null,"Guardianship","Chapter 48 protective orders filed by APS & County Atty",null,{"$f":"'Data SBP Measures'!$AF867&'Data SBP Measures'!$AE867& \" - \"& 'Data SBP Measures'!$U867","v":"Chapter 48 protective orders filed by APS & County AttyGuardianship - 125"},{"$f":"_xlfn.XLOOKUP(VALUE(W867),'Data SBP Programs'!O:O,'Data SBP Programs'!S:S)","v":"Guardianship"}]
[{"$f":"'Data SBP Measures'!$AI934&\" - \"&'Data SBP Measures'!$U934","v":"Civil Processing - 126"},{"$f":"'Data SBP Measures'!$AF934","v":"Percentage of civil cases dismissed (by plaintiff)"},{"$f":"'Data SBP Measures'!$T934","v":"2012"},{"$f":"'Data SBP Measures'!$U934&B868","v":"126Percentage of civil cases dismissed (by plaintiff)"},{"$f":"'Data SBP Measures'!$Y934","v":"PERCENT"},null,null,null,null,null,"Civil Processing - 126","Percentage of civil cases dismissed (by plaintiff)",null,null,null,null,null,null,null,"1942","125","Y","222","Guardianship","EACH","INPUT","NEITHER",null,null,null,"Guardianship","Applications for guardianship filed",null,{"$f":"'Data SBP Measures'!$AF868&'Data SBP Measures'!$AE868& \" - \"& 'Data SBP Measures'!$U868","v":"Applications for guardianship filedGuardianship - 125"},{"$f":"_xlfn.XLOOKUP(VALUE(W868),'Data SBP Programs'!O:O,'Data SBP Programs'!S:S)","v":"Guardianship"}]
[{"$f":"'Data SBP Measures'!$AI935&\" - \"&'Data SBP Measures'!$U935","v":"Civil Processing - 126"},{"$f":"'Data SBP Measures'!$AF935","v":"Percentage of civil cases dismissed (by plaintiff)"},{"$f":"'Data SBP Measures'!$T935","v":"2012"},{"$f":"'Data SBP Measures'!$U935&B869","v":"126Percentage of civil cases dismissed (by plaintiff)"},{"$f":"'Data SBP Measures'!$Y935","v":"PERCENT"},null,null,null,null,null,"Civil Processing - 126","Percentage of civil cases dismissed (by plaintiff)",null,null,null,null,null,null,null,"1942","125","Y","222","Guardianship","EACH","INPUT","NEITHER",null,null,null,"Guardianship","Applications for guardianship filed",null,{"$f":"'Data SBP Measures'!$AF869&'Data SBP Measures'!$AE869& \" - \"& 'Data SBP Measures'!$U869","v":"Applications for guardianship filedGuardianship - 125"},{"$f":"_xlfn.XLOOKUP(VALUE(W869),'Data SBP Programs'!O:O,'Data SBP Programs'!S:S)","v":"Guardianship"}]
[{"$f":"'Data SBP Measures'!$AI3439&\" - \"&'Data SBP Measures'!$U3439","v":"Civil Rights Unit - 123"},{"$f":"'Data SBP Measures'!$AF3439","v":"# of convictions"},{"$f":"'Data SBP Measures'!$T3439","v":"756"},{"$f":"'Data SBP Measures'!$U3439&B870","v":"123# of convictions"},{"$f":"'Data SBP Measures'!$Y3439","v":"EACH"},null,null,null,null,null,"Civil Rights Unit - 123","# of convictions",null,null,null,null,null,null,null,"1942","125","Y","222","Guardianship","EACH","INPUT","NEITHER",null,null,null,"Guardianship","Applications for guardianship filed",null,{"$f":"'Data SBP Measures'!$AF870&'Data SBP Measures'!$AE870& \" - \"& 'Data SBP Measures'!$U870","v":"Applications for guardianship filedGuardianship - 125"},{"$f":"_xlfn.XLOOKUP(VALUE(W870),'Data SBP Programs'!O:O,'Data SBP Programs'!S:S)","v":"Guardianship"}]
[{"$f":"'Data SBP Measures'!$AI2260&\" - \"&'Data SBP Measures'!$U2260","v":"Civil Rights Unit - 123"},{"$f":"'Data SBP Measures'!$AF2260","v":"# of declination letters released"},{"$f":"'Data SBP Measures'!$T2260","v":"2780"},{"$f":"'Data SBP Measures'!$U2260&B871","v":"123# of declination letters released"},{"$f":"'Data SBP Measures'!$Y2260","v":"EACH"},null,null,null,null,null,"Civil Rights Unit - 123","# of declination letters released",null,null,null,null,null,null,null,"1943","125","Y","222","Guardianship","EACH","OUTPUT","BOTH",null,null,null,"Guardianship","Applications for guardianship granted",null,{"$f":"'Data SBP Measures'!$AF871&'Data SBP Measures'!$AE871& \" - \"& 'Data SBP Measures'!$U871","v":"Applications for guardianship grantedGuardianship - 125"},{"$f":"_xlfn.XLOOKUP(VALUE(W871),'Data SBP Programs'!O:O,'Data SBP Programs'!S:S)","v":"Guardianship"}]
[{"$f":"'Data SBP Measures'!$AI3438&\" - \"&'Data SBP Measures'!$U3438","v":"Civil Rights Unit - 123"},{"$f":"'Data SBP Measures'!$AF3438","v":"# of dispositions"},{"$f":"'Data SBP Measures'!$T3438","v":"755"},{"$f":"'Data SBP Measures'!$U3438&B872","v":"123# of dispositions"},{"$f":"'Data SBP Measures'!$Y3438","v":"EACH"},null,null,null,null,null,"Civil Rights Unit - 123","# of dispositions",null,null,null,null,null,null,null,"1943","125","Y","222","Guardianship","EACH","OUTPUT","BOTH",null,null,null,"Guardianship","Applications for guardianship granted",null,{"$f":"'Data SBP Measures'!$AF872&'Data SBP Measures'!$AE872& \" - \"& 'Data SBP Measures'!$U872","v":"Applications for guardianship grantedGuardianship - 125"},{"$f":"_xlfn.XLOOKUP(VALUE(W872),'Data SBP Programs'!O:O,'Data SBP Programs'!S:S)","v":"Guardianship"}]
[{"$f":"'Data SBP Measures'!$AI3437&\" - \"&'Data SBP Measures'!$U3437","v":"Civil Rights Unit - 123"},{"$f":"'Data SBP Measures'!$AF3437","v":"# of jury trials"},{"$f":"'Data SBP Measures'!$T3437","v":"754"},{"$f":"'Data SBP Measures'!$U3437&B873","v":"123# of jury trials"},{"$f":"'Data SBP Measures'!$Y3437","v":"EACH"},null,null,null,null,null,"Civil Rights Unit - 123","# of jury trials",null,null,null,null,null,null,null,"1943","125","Y","222","Guardianship","EACH","OUTPUT","BOTH",null,null,null,"Guardianship","Applications for guardianship granted",null,{"$f":"'Data SBP Measures'!$AF873&'Data SBP Measures'!$AE873& \" - \"& 'Data SBP Measures'!$U873","v":"Applications for guardianship grantedGuardianship - 125"},{"$f":"_xlfn.XLOOKUP(VALUE(W873),'Data SBP Programs'!O:O,'Data SBP Programs'!S:S)","v":"Guardianship"}]
[{"$f":"'Data SBP Measures'!$AI3449&\" - \"&'Data SBP Measures'!$U3449","v":"Civil Rights Unit - 123"},{"$f":"'Data SBP Measures'!$AF3449","v":"# of juvenile dispositions"},{"$f":"'Data SBP Measures'!$T3449","v":"767"},{"$f":"'Data SBP Measures'!$U3449&B874","v":"123# of juvenile dispositions"},{"$f":"'Data SBP Measures'!$Y3449","v":"EACH"},null,null,null,null,null,"Civil Rights Unit - 123","# of juvenile dispositions",null,null,null,null,null,null,null,"1946","125","Y","222","Guardianship","PERCENT","EFFICIENCY","BOTH",null,null,null,"Guardianship","Clearance rates for guardianship cases during FY",null,{"$f":"'Data SBP Measures'!$AF874&'Data SBP Measures'!$AE874& \" - \"& 'Data SBP Measures'!$U874","v":"Clearance rates for guardianship cases during FYGuardianship - 125"},{"$f":"_xlfn.XLOOKUP(VALUE(W874),'Data SBP Programs'!O:O,'Data SBP Programs'!S:S)","v":"Guardianship"}]
[{"$f":"'Data SBP Measures'!$AI3448&\" - \"&'Data SBP Measures'!$U3448","v":"Civil Rights Unit - 123"},{"$f":"'Data SBP Measures'!$AF3448","v":"# of juvenile petitions filed"},{"$f":"'Data SBP Measures'!$T3448","v":"766"},{"$f":"'Data SBP Measures'!$U3448&B875","v":"123# of juvenile petitions filed"},{"$f":"'Data SBP Measures'!$Y3448","v":"EACH"},null,null,null,null,null,"Civil Rights Unit - 123","# of juvenile petitions filed",null,null,null,null,null,null,null,"1946","125","Y","222","Guardianship","PERCENT","EFFICIENCY","BOTH",null,null,null,"Guardianship","Clearance rates for guardianship cases during FY",null,{"$f":"'Data SBP Measures'!$AF875&'Data SBP Measures'!$AE875& \" - \"& 'Data SBP Measures'!$U875","v":"Clearance rates for guardianship cases during FYGuardianship - 125"},{"$f":"_xlfn.XLOOKUP(VALUE(W875),'Data SBP Programs'!O:O,'Data SBP Programs'!S:S)","v":"Guardianship"}]
[{"$f":"'Data SBP Measures'!$AI3440&\" - \"&'Data SBP Measures'!$U3440","v":"Civil Rights Unit - 123"},{"$f":"'Data SBP Measures'!$AF3440","v":"# of motions to revoke probation"},{"$f":"'Data SBP Measures'!$T3440","v":"757"},{"$f":"'Data SBP Measures'!$U3440&B876","v":"123# of motions to revoke probation"},{"$f":"'Data SBP Measures'!$Y3440","v":"EACH"},null,null,null,null,null,"Civil Rights Unit - 123","# of motions to revoke probation",null,null,null,null,null,null,null,"1946","125","Y","222","Guardianship","PERCENT","EFFICIENCY","BOTH",null,null,null,"Guardianship","Clearance rates for guardianship cases during FY",null,{"$f":"'Data SBP Measures'!$AF876&'Data SBP Measures'!$AE876& \" - \"& 'Data SBP Measures'!$U876","v":"Clearance rates for guardianship cases during FYGuardianship - 125"},{"$f":"_xlfn.XLOOKUP(VALUE(W876),'Data SBP Programs'!O:O,'Data SBP Programs'!S:S)","v":"Guardianship"}]
[{"$f":"'Data SBP Measures'!$AI3441&\" - \"&'Data SBP Measures'!$U3441","v":"Civil Rights Unit - 123"},{"$f":"'Data SBP Measures'!$AF3441","v":"# of statements of fact"},{"$f":"'Data SBP Measures'!$T3441","v":"758"},{"$f":"'Data SBP Measures'!$U3441&B877","v":"123# of statements of fact"},{"$f":"'Data SBP Measures'!$Y3441","v":"EACH"},null,null,null,null,null,"Civil Rights Unit - 123","# of statements of fact",null,null,null,null,null,null,null,"1953","125","Y","222","Guardianship","EACH","INPUT","NEITHER",null,null,null,"Guardianship","# total active guardianships at FY mid-point (180 days)",null,{"$f":"'Data SBP Measures'!$AF877&'Data SBP Measures'!$AE877& \" - \"& 'Data SBP Measures'!$U877","v":"# total active guardianships at FY mid-point (180 days)Guardianship - 125"},{"$f":"_xlfn.XLOOKUP(VALUE(W877),'Data SBP Programs'!O:O,'Data SBP Programs'!S:S)","v":"Guardianship"}]
[{"$f":"'Data SBP Measures'!$AI2258&\" - \"&'Data SBP Measures'!$U2258","v":"Civil Rights Unit - 123"},{"$f":"'Data SBP Measures'!$AF2258","v":"Civil Rights Investigations Closed"},{"$f":"'Data SBP Measures'!$T2258","v":"2779"},{"$f":"'Data SBP Measures'!$U2258&B878","v":"123Civil Rights Investigations Closed"},{"$f":"'Data SBP Measures'!$Y2258","v":"EACH"},null,null,null,null,null,"Civil Rights Unit - 123","Civil Rights Investigations Closed",null,null,null,null,null,null,null,"1953","125","Y","222","Guardianship","EACH","INPUT","NEITHER",null,null,null,"Guardianship","# total active guardianships at FY mid-point (180 days)",null,{"$f":"'Data SBP Measures'!$AF878&'Data SBP Measures'!$AE878& \" - \"& 'Data SBP Measures'!$U878","v":"# total active guardianships at FY mid-point (180 days)Guardianship - 125"},{"$f":"_xlfn.XLOOKUP(VALUE(W878),'Data SBP Programs'!O:O,'Data SBP Programs'!S:S)","v":"Guardianship"}]
[{"$f":"'Data SBP Measures'!$AI3472&\" - \"&'Data SBP Measures'!$U3472","v":"Civil Rights Unit - 123"},{"$f":"'Data SBP Measures'!$AF3472","v":"Civil Rights investigations opened\n"},{"$f":"'Data SBP Measures'!$T3472","v":"793"},{"$f":"'Data SBP Measures'!$U3472&B879","v":"123Civil Rights investigations opened\n"},{"$f":"'Data SBP Measures'!$Y3472","v":"EACH"},null,null,null,null,null,"Civil Rights Unit - 123","Civil Rights investigations opened\n",null,null,null,null,null,null,null,"1953","125","Y","222","Guardianship","EACH","INPUT","NEITHER",null,null,null,"Guardianship","# total active guardianships at FY mid-point (180 days)",null,{"$f":"'Data SBP Measures'!$AF879&'Data SBP Measures'!$AE879& \" - \"& 'Data SBP Measures'!$U879","v":"# total active guardianships at FY mid-point (180 days)Guardianship - 125"},{"$f":"_xlfn.XLOOKUP(VALUE(W879),'Data SBP Programs'!O:O,'Data SBP Programs'!S:S)","v":"Guardianship"}]
[{"$f":"'Data SBP Measures'!$AI3473&\" - \"&'Data SBP Measures'!$U3473","v":"Civil Rights Unit - 123"},{"$f":"'Data SBP Measures'!$AF3473","v":"Civil Rights investigations presented to a GJ\n"},{"$f":"'Data SBP Measures'!$T3473","v":"794"},{"$f":"'Data SBP Measures'!$U3473&B880","v":"123Civil Rights investigations presented to a GJ\n"},{"$f":"'Data SBP Measures'!$Y3473","v":"EACH"},null,null,null,null,null,"Civil Rights Unit - 123","Civil Rights investigations presented to a GJ\n",null,null,null,null,null,null,null,"1957","125","Y","222","Guardianship","EACH","INPUT","BLACKBOOK",null,null,null,"Guardianship","# of hearings on guardianship matters",null,{"$f":"'Data SBP Measures'!$AF880&'Data SBP Measures'!$AE880& \" - \"& 'Data SBP Measures'!$U880","v":"# of hearings on guardianship mattersGuardianship - 125"},{"$f":"_xlfn.XLOOKUP(VALUE(W880),'Data SBP Programs'!O:O,'Data SBP Programs'!S:S)","v":"Guardianship"}]
[{"$f":"'Data SBP Measures'!$AI2306&\" - \"&'Data SBP Measures'!$U2306","v":"Civil Rights Unit - 123"},{"$f":"'Data SBP Measures'!$AF2306","v":"DNA case reviews"},{"$f":"'Data SBP Measures'!$T2306","v":"2853"},{"$f":"'Data SBP Measures'!$U2306&B881","v":"123DNA case reviews"},{"$f":"'Data SBP Measures'!$Y2306","v":"EACH"},null,null,null,null,null,"Civil Rights Unit - 123","DNA case reviews",null,null,null,null,null,null,null,"1957","125","Y","222","Guardianship","EACH","INPUT","BLACKBOOK",null,null,null,"Guardianship","# of hearings on guardianship matters",null,{"$f":"'Data SBP Measures'!$AF881&'Data SBP Measures'!$AE881& \" - \"& 'Data SBP Measures'!$U881","v":"# of hearings on guardianship mattersGuardianship - 125"},{"$f":"_xlfn.XLOOKUP(VALUE(W881),'Data SBP Programs'!O:O,'Data SBP Programs'!S:S)","v":"Guardianship"}]
[{"$f":"'Data SBP Measures'!$AI2305&\" - \"&'Data SBP Measures'!$U2305","v":"Civil Rights Unit - 123"},{"$f":"'Data SBP Measures'!$AF2305","v":"Non-Travis County cases reviewed & referred to other agency"},{"$f":"'Data SBP Measures'!$T2305","v":"2852"},{"$f":"'Data SBP Measures'!$U2305&B882","v":"123Non-Travis County cases reviewed & referred to other agency"},{"$f":"'Data SBP Measures'!$Y2305","v":"EACH"},null,null,null,null,null,"Civil Rights Unit - 123","Non-Travis County cases reviewed & referred to other agency",null,null,null,null,null,null,null,"1957","125","Y","222","Guardianship","EACH","INPUT","BLACKBOOK",null,null,null,"Guardianship","# of hearings on guardianship matters",null,{"$f":"'Data SBP Measures'!$AF882&'Data SBP Measures'!$AE882& \" - \"& 'Data SBP Measures'!$U882","v":"# of hearings on guardianship mattersGuardianship - 125"},{"$f":"_xlfn.XLOOKUP(VALUE(W882),'Data SBP Programs'!O:O,'Data SBP Programs'!S:S)","v":"Guardianship"}]
[{"$f":"'Data SBP Measures'!$AI3431&\" - \"&'Data SBP Measures'!$U3431","v":"Civil Rights Unit - 123"},{"$f":"'Data SBP Measures'!$AF3431","v":"Number of appellate briefs filed"},{"$f":"'Data SBP Measures'!$T3431","v":"746"},{"$f":"'Data SBP Measures'!$U3431&B883","v":"123Number of appellate briefs filed"},{"$f":"'Data SBP Measures'!$Y3431","v":"EACH"},null,null,null,null,null,"Civil Rights Unit - 123","Number of appellate briefs filed",null,null,null,null,null,null,null,"1960","125","Y","222","Guardianship","EACH","INPUT","BOTH",null,null,null,"Guardianship","# of Guardian annual & final reports filed during FY",null,{"$f":"'Data SBP Measures'!$AF883&'Data SBP Measures'!$AE883& \" - \"& 'Data SBP Measures'!$U883","v":"# of Guardian annual & final reports filed during FYGuardianship - 125"},{"$f":"_xlfn.XLOOKUP(VALUE(W883),'Data SBP Programs'!O:O,'Data SBP Programs'!S:S)","v":"Guardianship"}]
[{"$f":"'Data SBP Measures'!$AI3434&\" - \"&'Data SBP Measures'!$U3434","v":"Civil Rights Unit - 123"},{"$f":"'Data SBP Measures'!$AF3434","v":"Number of conviction integrity reviews initiated"},{"$f":"'Data SBP Measures'!$T3434","v":"749"},{"$f":"'Data SBP Measures'!$U3434&B884","v":"123Number of conviction integrity reviews initiated"},{"$f":"'Data SBP Measures'!$Y3434","v":"EACH"},null,null,null,null,null,"Civil Rights Unit - 123","Number of conviction integrity reviews initiated",null,null,null,null,null,null,null,"1960","125","Y","222","Guardianship","EACH","INPUT","BOTH",null,null,null,"Guardianship","# of Guardian annual & final reports filed during FY",null,{"$f":"'Data SBP Measures'!$AF884&'Data SBP Measures'!$AE884& \" - \"& 'Data SBP Measures'!$U884","v":"# of Guardian annual & final reports filed during FYGuardianship - 125"},{"$f":"_xlfn.XLOOKUP(VALUE(W884),'Data SBP Programs'!O:O,'Data SBP Programs'!S:S)","v":"Guardianship"}]
[{"$f":"'Data SBP Measures'!$AI3433&\" - \"&'Data SBP Measures'!$U3433","v":"Civil Rights Unit - 123"},{"$f":"'Data SBP Measures'!$AF3433","v":"Number of habeas applications reviewed"},{"$f":"'Data SBP Measures'!$T3433","v":"748"},{"$f":"'Data SBP Measures'!$U3433&B885","v":"123Number of habeas applications reviewed"},{"$f":"'Data SBP Measures'!$Y3433","v":"EACH"},null,null,null,null,null,"Civil Rights Unit - 123","Number of habeas applications reviewed",null,null,null,null,null,null,null,"1960","125","Y","222","Guardianship","EACH","INPUT","BOTH",null,null,null,"Guardianship","# of Guardian annual & final reports filed during FY",null,{"$f":"'Data SBP Measures'!$AF885&'Data SBP Measures'!$AE885& \" - \"& 'Data SBP Measures'!$U885","v":"# of Guardian annual & final reports filed during FYGuardianship - 125"},{"$f":"_xlfn.XLOOKUP(VALUE(W885),'Data SBP Programs'!O:O,'Data SBP Programs'!S:S)","v":"Guardianship"}]
[{"$f":"'Data SBP Measures'!$AI3436&\" - \"&'Data SBP Measures'!$U3436","v":"Civil Rights Unit - 123"},{"$f":"'Data SBP Measures'!$AF3436","v":"Number of Legal Consultations by Appellate Attorneys"},{"$f":"'Data SBP Measures'!$T3436","v":"752"},{"$f":"'Data SBP Measures'!$U3436&B886","v":"123Number of Legal Consultations by Appellate Attorneys"},{"$f":"'Data SBP Measures'!$Y3436","v":"EACH"},null,null,null,null,null,"Civil Rights Unit - 123","Number of Legal Consultations by Appellate Attorneys",null,null,null,null,null,null,null,"1961","125","Y","222","Guardianship","EACH","OUTPUT","NEITHER",null,null,null,"Guardianship","# of Guardian annual & final reports approved during FY",null,{"$f":"'Data SBP Measures'!$AF886&'Data SBP Measures'!$AE886& \" - \"& 'Data SBP Measures'!$U886","v":"# of Guardian annual & final reports approved during FYGuardianship - 125"},{"$f":"_xlfn.XLOOKUP(VALUE(W886),'Data SBP Programs'!O:O,'Data SBP Programs'!S:S)","v":"Guardianship"}]
[{"$f":"'Data SBP Measures'!$AI3435&\" - \"&'Data SBP Measures'!$U3435","v":"Civil Rights Unit - 123"},{"$f":"'Data SBP Measures'!$AF3435","v":"Number of oral arguments in appellate courts"},{"$f":"'Data SBP Measures'!$T3435","v":"750"},{"$f":"'Data SBP Measures'!$U3435&B887","v":"123Number of oral arguments in appellate courts"},{"$f":"'Data SBP Measures'!$Y3435","v":"EACH"},null,null,null,null,null,"Civil Rights Unit - 123","Number of oral arguments in appellate courts",null,null,null,null,null,null,null,"1961","125","Y","222","Guardianship","EACH","OUTPUT","NEITHER",null,null,null,"Guardianship","# of Guardian annual & final reports approved during FY",null,{"$f":"'Data SBP Measures'!$AF887&'Data SBP Measures'!$AE887& \" - \"& 'Data SBP Measures'!$U887","v":"# of Guardian annual & final reports approved during FYGuardianship - 125"},{"$f":"_xlfn.XLOOKUP(VALUE(W887),'Data SBP Programs'!O:O,'Data SBP Programs'!S:S)","v":"Guardianship"}]
[{"$f":"'Data SBP Measures'!$AI3432&\" - \"&'Data SBP Measures'!$U3432","v":"Civil Rights Unit - 123"},{"$f":"'Data SBP Measures'!$AF3432","v":"Percentage of briefs filed on or before second deadline"},{"$f":"'Data SBP Measures'!$T3432","v":"747"},{"$f":"'Data SBP Measures'!$U3432&B888","v":"123Percentage of briefs filed on or before second deadline"},{"$f":"'Data SBP Measures'!$Y3432","v":"PERCENT"},null,null,null,null,null,"Civil Rights Unit - 123","Percentage of briefs filed on or before second deadline",null,null,null,null,null,null,null,"1961","125","Y","222","Guardianship","EACH","OUTPUT","NEITHER",null,null,null,"Guardianship","# of Guardian annual & final reports approved during FY",null,{"$f":"'Data SBP Measures'!$AF888&'Data SBP Measures'!$AE888& \" - \"& 'Data SBP Measures'!$U888","v":"# of Guardian annual & final reports approved during FYGuardianship - 125"},{"$f":"_xlfn.XLOOKUP(VALUE(W888),'Data SBP Programs'!O:O,'Data SBP Programs'!S:S)","v":"Guardianship"}]
[{"$f":"'Data SBP Measures'!$AI1853&\" - \"&'Data SBP Measures'!$U1853","v":"Civil Service Commission - 154"},{"$f":"'Data SBP Measures'!$AF1853","v":"# of advancement exams"},{"$f":"'Data SBP Measures'!$T1853","v":"2502"},{"$f":"'Data SBP Measures'!$U1853&B889","v":"154# of advancement exams"},{"$f":"'Data SBP Measures'!$Y1853","v":"EACH"},null,null,null,null,null,"Civil Service Commission - 154","# of advancement exams",null,null,null,null,null,null,null,"1962","125","Y","222","Guardianship","PERCENT","EFFICIENCY","BLACKBOOK",null,null,null,"Guardianship","Clearance rates for Guardian annual & final reports",null,{"$f":"'Data SBP Measures'!$AF889&'Data SBP Measures'!$AE889& \" - \"& 'Data SBP Measures'!$U889","v":"Clearance rates for Guardian annual & final reportsGuardianship - 125"},{"$f":"_xlfn.XLOOKUP(VALUE(W889),'Data SBP Programs'!O:O,'Data SBP Programs'!S:S)","v":"Guardianship"}]
[{"$f":"'Data SBP Measures'!$AI1848&\" - \"&'Data SBP Measures'!$U1848","v":"Civil Service Commission - 154"},{"$f":"'Data SBP Measures'!$AF1848","v":"# of grievances received"},{"$f":"'Data SBP Measures'!$T1848","v":"2499"},{"$f":"'Data SBP Measures'!$U1848&B890","v":"154# of grievances received"},{"$f":"'Data SBP Measures'!$Y1848","v":"EACH"},null,null,null,null,null,"Civil Service Commission - 154","# of grievances received",null,null,null,null,null,null,null,"1962","125","Y","222","Guardianship","PERCENT","EFFICIENCY","BLACKBOOK",null,null,null,"Guardianship","Clearance rates for Guardian annual & final reports",null,{"$f":"'Data SBP Measures'!$AF890&'Data SBP Measures'!$AE890& \" - \"& 'Data SBP Measures'!$U890","v":"Clearance rates for Guardian annual & final reportsGuardianship - 125"},{"$f":"_xlfn.XLOOKUP(VALUE(W890),'Data SBP Programs'!O:O,'Data SBP Programs'!S:S)","v":"Guardianship"}]
[{"$f":"'Data SBP Measures'!$AI1851&\" - \"&'Data SBP Measures'!$U1851","v":"Civil Service Commission - 154"},{"$f":"'Data SBP Measures'!$AF1851","v":"# of hearings conducted"},{"$f":"'Data SBP Measures'!$T1851","v":"2500"},{"$f":"'Data SBP Measures'!$U1851&B891","v":"154# of hearings conducted"},{"$f":"'Data SBP Measures'!$Y1851","v":"EACH"},null,null,null,null,null,"Civil Service Commission - 154","# of hearings conducted",null,null,null,null,null,null,null,"1962","125","Y","222","Guardianship","PERCENT","EFFICIENCY","BLACKBOOK",null,null,null,"Guardianship","Clearance rates for Guardian annual & final reports",null,{"$f":"'Data SBP Measures'!$AF891&'Data SBP Measures'!$AE891& \" - \"& 'Data SBP Measures'!$U891","v":"Clearance rates for Guardian annual & final reportsGuardianship - 125"},{"$f":"_xlfn.XLOOKUP(VALUE(W891),'Data SBP Programs'!O:O,'Data SBP Programs'!S:S)","v":"Guardianship"}]
[{"$f":"'Data SBP Measures'!$AI1854&\" - \"&'Data SBP Measures'!$U1854","v":"Civil Service Commission - 154"},{"$f":"'Data SBP Measures'!$AF1854","v":"# of promotional applications"},{"$f":"'Data SBP Measures'!$T1854","v":"2503"},{"$f":"'Data SBP Measures'!$U1854&B892","v":"154# of promotional applications"},{"$f":"'Data SBP Measures'!$Y1854","v":"EACH"},null,null,null,null,null,"Civil Service Commission - 154","# of promotional applications",null,null,null,null,null,null,null,"1965","125","Y","222","Guardianship","EACH","OUTPUT","BLACKBOOK",null,null,null,"Guardianship","# of visits of wards & proposed wards by Court staff during FY",null,{"$f":"'Data SBP Measures'!$AF892&'Data SBP Measures'!$AE892& \" - \"& 'Data SBP Measures'!$U892","v":"# of visits of wards & proposed wards by Court staff during FYGuardianship - 125"},{"$f":"_xlfn.XLOOKUP(VALUE(W892),'Data SBP Programs'!O:O,'Data SBP Programs'!S:S)","v":"Guardianship"}]
[{"$f":"'Data SBP Measures'!$AI1855&\" - \"&'Data SBP Measures'!$U1855","v":"Civil Service Commission - 154"},{"$f":"'Data SBP Measures'!$AF1855","v":"# of promotional exams administered"},{"$f":"'Data SBP Measures'!$T1855","v":"2504"},{"$f":"'Data SBP Measures'!$U1855&B893","v":"154# of promotional exams administered"},{"$f":"'Data SBP Measures'!$Y1855","v":"EACH"},null,null,null,null,null,"Civil Service Commission - 154","# of promotional exams administered",null,null,null,null,null,null,null,"1965","125","Y","222","Guardianship","EACH","OUTPUT","BLACKBOOK",null,null,null,"Guardianship","# of visits of wards & proposed wards by Court staff during FY",null,{"$f":"'Data SBP Measures'!$AF893&'Data SBP Measures'!$AE893& \" - \"& 'Data SBP Measures'!$U893","v":"# of visits of wards & proposed wards by Court staff during FYGuardianship - 125"},{"$f":"_xlfn.XLOOKUP(VALUE(W893),'Data SBP Programs'!O:O,'Data SBP Programs'!S:S)","v":"Guardianship"}]
[{"$f":"'Data SBP Measures'!$AI1856&\" - \"&'Data SBP Measures'!$U1856","v":"Civil Service Commission - 154"},{"$f":"'Data SBP Measures'!$AF1856","v":"# of promotional review boards"},{"$f":"'Data SBP Measures'!$T1856","v":"2505"},{"$f":"'Data SBP Measures'!$U1856&B894","v":"154# of promotional review boards"},{"$f":"'Data SBP Measures'!$Y1856","v":"EACH"},null,null,null,null,null,"Civil Service Commission - 154","# of promotional review boards",null,null,null,null,null,null,null,"1965","125","Y","222","Guardianship","EACH","OUTPUT","BLACKBOOK",null,null,null,"Guardianship","# of visits of wards & proposed wards by Court staff during FY",null,{"$f":"'Data SBP Measures'!$AF894&'Data SBP Measures'!$AE894& \" - \"& 'Data SBP Measures'!$U894","v":"# of visits of wards & proposed wards by Court staff during FYGuardianship - 125"},{"$f":"_xlfn.XLOOKUP(VALUE(W894),'Data SBP Programs'!O:O,'Data SBP Programs'!S:S)","v":"Guardianship"}]
[{"$f":"'Data SBP Measures'!$AI1852&\" - \"&'Data SBP Measures'!$U1852","v":"Civil Service Commission - 154"},{"$f":"'Data SBP Measures'!$AF1852","v":"# of regular meetings"},{"$f":"'Data SBP Measures'!$T1852","v":"2501"},{"$f":"'Data SBP Measures'!$U1852&B895","v":"154# of regular meetings"},{"$f":"'Data SBP Measures'!$Y1852","v":"EACH"},null,null,null,null,null,"Civil Service Commission - 154","# of regular meetings",null,null,null,null,null,null,null,"1966","125","Y","222","Guardianship","EACH","OUTPUT","BLACKBOOK",null,null,null,"Guardianship","# of visits of wards & proposed wards by Court Visitors during FY",null,{"$f":"'Data SBP Measures'!$AF895&'Data SBP Measures'!$AE895& \" - \"& 'Data SBP Measures'!$U895","v":"# of visits of wards & proposed wards by Court Visitors during FYGuardianship - 125"},{"$f":"_xlfn.XLOOKUP(VALUE(W895),'Data SBP Programs'!O:O,'Data SBP Programs'!S:S)","v":"Guardianship"}]
[{"$f":"'Data SBP Measures'!$AI1859&\" - \"&'Data SBP Measures'!$U1859","v":"Civil Service Commission - 154"},{"$f":"'Data SBP Measures'!$AF1859","v":"# open records requests answered"},{"$f":"'Data SBP Measures'!$T1859","v":"2508"},{"$f":"'Data SBP Measures'!$U1859&B896","v":"154# open records requests answered"},{"$f":"'Data SBP Measures'!$Y1859","v":"EACH"},null,null,null,null,null,"Civil Service Commission - 154","# open records requests answered",null,null,null,null,null,null,null,"1966","125","Y","222","Guardianship","EACH","OUTPUT","BLACKBOOK",null,null,null,"Guardianship","# of visits of wards & proposed wards by Court Visitors during FY",null,{"$f":"'Data SBP Measures'!$AF896&'Data SBP Measures'!$AE896& \" - \"& 'Data SBP Measures'!$U896","v":"# of visits of wards & proposed wards by Court Visitors during FYGuardianship - 125"},{"$f":"_xlfn.XLOOKUP(VALUE(W896),'Data SBP Programs'!O:O,'Data SBP Programs'!S:S)","v":"Guardianship"}]
[{"$f":"'Data SBP Measures'!$AI1858&\" - \"&'Data SBP Measures'!$U1858","v":"Civil Service Commission - 154"},{"$f":"'Data SBP Measures'!$AF1858","v":"# patrol exams administered"},{"$f":"'Data SBP Measures'!$T1858","v":"2507"},{"$f":"'Data SBP Measures'!$U1858&B897","v":"154# patrol exams administered"},{"$f":"'Data SBP Measures'!$Y1858","v":"EACH"},null,null,null,null,null,"Civil Service Commission - 154","# patrol exams administered",null,null,null,null,null,null,null,"1966","125","Y","222","Guardianship","EACH","OUTPUT","BLACKBOOK",null,null,null,"Guardianship","# of visits of wards & proposed wards by Court Visitors during FY",null,{"$f":"'Data SBP Measures'!$AF897&'Data SBP Measures'!$AE897& \" - \"& 'Data SBP Measures'!$U897","v":"# of visits of wards & proposed wards by Court Visitors during FYGuardianship - 125"},{"$f":"_xlfn.XLOOKUP(VALUE(W897),'Data SBP Programs'!O:O,'Data SBP Programs'!S:S)","v":"Guardianship"}]
[{"$f":"'Data SBP Measures'!$AI1857&\" - \"&'Data SBP Measures'!$U1857","v":"Civil Service Commission - 154"},{"$f":"'Data SBP Measures'!$AF1857","v":"# patrol review boards"},{"$f":"'Data SBP Measures'!$T1857","v":"2506"},{"$f":"'Data SBP Measures'!$U1857&B898","v":"154# patrol review boards"},{"$f":"'Data SBP Measures'!$Y1857","v":"EACH"},null,null,null,null,null,"Civil Service Commission - 154","# patrol review boards",null,null,null,null,null,null,null,"1970","125","Y","222","Guardianship","EACH","INPUT","BLACKBOOK",null,null,null,"Guardianship","# of Guardian annual & final accounts filed during FY",null,{"$f":"'Data SBP Measures'!$AF898&'Data SBP Measures'!$AE898& \" - \"& 'Data SBP Measures'!$U898","v":"# of Guardian annual & final accounts filed during FYGuardianship - 125"},{"$f":"_xlfn.XLOOKUP(VALUE(W898),'Data SBP Programs'!O:O,'Data SBP Programs'!S:S)","v":"Guardianship"}]
[{"$f":"'Data SBP Measures'!$AI1448&\" - \"&'Data SBP Measures'!$U1448","v":"Civil Unit - 131"},{"$f":"'Data SBP Measures'!$AF1448","v":"# of documents received"},{"$f":"'Data SBP Measures'!$T1448","v":"2237"},{"$f":"'Data SBP Measures'!$U1448&B899","v":"131# of documents received"},{"$f":"'Data SBP Measures'!$Y1448","v":"EACH"},null,null,null,null,null,"Civil Unit - 131","# of documents received",null,null,null,null,null,null,null,"1970","125","Y","222","Guardianship","EACH","INPUT","BLACKBOOK",null,null,null,"Guardianship","# of Guardian annual & final accounts filed during FY",null,{"$f":"'Data SBP Measures'!$AF899&'Data SBP Measures'!$AE899& \" - \"& 'Data SBP Measures'!$U899","v":"# of Guardian annual & final accounts filed during FYGuardianship - 125"},{"$f":"_xlfn.XLOOKUP(VALUE(W899),'Data SBP Programs'!O:O,'Data SBP Programs'!S:S)","v":"Guardianship"}]
[{"$f":"'Data SBP Measures'!$AI1449&\" - \"&'Data SBP Measures'!$U1449","v":"Civil Unit - 131"},{"$f":"'Data SBP Measures'!$AF1449","v":"# of documents served"},{"$f":"'Data SBP Measures'!$T1449","v":"2238"},{"$f":"'Data SBP Measures'!$U1449&B900","v":"131# of documents served"},{"$f":"'Data SBP Measures'!$Y1449","v":"EACH"},null,null,null,null,null,"Civil Unit - 131","# of documents served",null,null,null,null,null,null,null,"1970","125","Y","222","Guardianship","EACH","INPUT","BLACKBOOK",null,null,null,"Guardianship","# of Guardian annual & final accounts filed during FY",null,{"$f":"'Data SBP Measures'!$AF900&'Data SBP Measures'!$AE900& \" - \"& 'Data SBP Measures'!$U900","v":"# of Guardian annual & final accounts filed during FYGuardianship - 125"},{"$f":"_xlfn.XLOOKUP(VALUE(W900),'Data SBP Programs'!O:O,'Data SBP Programs'!S:S)","v":"Guardianship"}]
[{"$f":"'Data SBP Measures'!$AI1450&\" - \"&'Data SBP Measures'!$U1450","v":"Civil Unit - 131"},{"$f":"'Data SBP Measures'!$AF1450","v":"% of documents processed"},{"$f":"'Data SBP Measures'!$T1450","v":"2239"},{"$f":"'Data SBP Measures'!$U1450&B901","v":"131% of documents processed"},{"$f":"'Data SBP Measures'!$Y1450","v":"PERCENT"},null,null,null,null,null,"Civil Unit - 131","% of documents processed",null,null,null,null,null,null,null,"1971","125","Y","222","Guardianship","EACH","OUTPUT","NEITHER",null,null,null,"Guardianship","# of Guardian annual & final accounts approved during FY",null,{"$f":"'Data SBP Measures'!$AF901&'Data SBP Measures'!$AE901& \" - \"& 'Data SBP Measures'!$U901","v":"# of Guardian annual & final accounts approved during FYGuardianship - 125"},{"$f":"_xlfn.XLOOKUP(VALUE(W901),'Data SBP Programs'!O:O,'Data SBP Programs'!S:S)","v":"Guardianship"}]
[{"$f":"'Data SBP Measures'!$AI1456&\" - \"&'Data SBP Measures'!$U1456","v":"Civil Unit - 132"},{"$f":"'Data SBP Measures'!$AF1456","v":"Civil Paper Attempts"},{"$f":"'Data SBP Measures'!$T1456","v":"2245"},{"$f":"'Data SBP Measures'!$U1456&B902","v":"132Civil Paper Attempts"},{"$f":"'Data SBP Measures'!$Y1456","v":"EACH"},null,null,null,null,null,"Civil Unit - 132","Civil Paper Attempts",null,null,null,null,null,null,null,"1971","125","Y","222","Guardianship","EACH","OUTPUT","NEITHER",null,null,null,"Guardianship","# of Guardian annual & final accounts approved during FY",null,{"$f":"'Data SBP Measures'!$AF902&'Data SBP Measures'!$AE902& \" - \"& 'Data SBP Measures'!$U902","v":"# of Guardian annual & final accounts approved during FYGuardianship - 125"},{"$f":"_xlfn.XLOOKUP(VALUE(W902),'Data SBP Programs'!O:O,'Data SBP Programs'!S:S)","v":"Guardianship"}]
[{"$f":"'Data SBP Measures'!$AI1455&\" - \"&'Data SBP Measures'!$U1455","v":"Civil Unit - 132"},{"$f":"'Data SBP Measures'!$AF1455","v":"Total Civil Papers"},{"$f":"'Data SBP Measures'!$T1455","v":"2244"},{"$f":"'Data SBP Measures'!$U1455&B903","v":"132Total Civil Papers"},{"$f":"'Data SBP Measures'!$Y1455","v":"EACH"},null,null,null,null,null,"Civil Unit - 132","Total Civil Papers",null,null,null,null,null,null,null,"1971","125","Y","222","Guardianship","EACH","OUTPUT","NEITHER",null,null,null,"Guardianship","# of Guardian annual & final accounts approved during FY",null,{"$f":"'Data SBP Measures'!$AF903&'Data SBP Measures'!$AE903& \" - \"& 'Data SBP Measures'!$U903","v":"# of Guardian annual & final accounts approved during FYGuardianship - 125"},{"$f":"_xlfn.XLOOKUP(VALUE(W903),'Data SBP Programs'!O:O,'Data SBP Programs'!S:S)","v":"Guardianship"}]
[{"$f":"'Data SBP Measures'!$AI2343&\" - \"&'Data SBP Measures'!$U2343","v":"Civil Unit - 134"},{"$f":"'Data SBP Measures'!$AF2343","v":"% of Civil papers cleared within the legally mandated timeframes"},{"$f":"'Data SBP Measures'!$T2343","v":"2904"},{"$f":"'Data SBP Measures'!$U2343&B904","v":"134% of Civil papers cleared within the legally mandated timeframes"},{"$f":"'Data SBP Measures'!$Y2343","v":"PERCENT"},null,null,null,null,null,"Civil Unit - 134","% of Civil papers cleared within the legally mandated timeframes",null,null,null,null,null,null,null,"1972","125","Y","222","Guardianship","PERCENT","EFFICIENCY","BLACKBOOK",null,null,null,"Guardianship","Clearance rates for Guardian annual & final accounts",null,{"$f":"'Data SBP Measures'!$AF904&'Data SBP Measures'!$AE904& \" - \"& 'Data SBP Measures'!$U904","v":"Clearance rates for Guardian annual & final accountsGuardianship - 125"},{"$f":"_xlfn.XLOOKUP(VALUE(W904),'Data SBP Programs'!O:O,'Data SBP Programs'!S:S)","v":"Guardianship"}]
[{"$f":"'Data SBP Measures'!$AI1478&\" - \"&'Data SBP Measures'!$U1478","v":"Civil Unit - 134"},{"$f":"'Data SBP Measures'!$AF1478","v":"Civil Process executed"},{"$f":"'Data SBP Measures'!$T1478","v":"2278"},{"$f":"'Data SBP Measures'!$U1478&B905","v":"134Civil Process executed"},{"$f":"'Data SBP Measures'!$Y1478","v":"EACH"},null,null,null,null,null,"Civil Unit - 134","Civil Process executed",null,null,null,null,null,null,null,"1972","125","Y","222","Guardianship","PERCENT","EFFICIENCY","BLACKBOOK",null,null,null,"Guardianship","Clearance rates for Guardian annual & final accounts",null,{"$f":"'Data SBP Measures'!$AF905&'Data SBP Measures'!$AE905& \" - \"& 'Data SBP Measures'!$U905","v":"Clearance rates for Guardian annual & final accountsGuardianship - 125"},{"$f":"_xlfn.XLOOKUP(VALUE(W905),'Data SBP Programs'!O:O,'Data SBP Programs'!S:S)","v":"Guardianship"}]
[{"$f":"'Data SBP Measures'!$AI3065&\" - \"&'Data SBP Measures'!$U3065","v":"Civil/Collections Team - 120"},{"$f":"'Data SBP Measures'!$AF3065","v":"Abstracts"},{"$f":"'Data SBP Measures'!$T3065","v":"509"},{"$f":"'Data SBP Measures'!$U3065&B906","v":"120Abstracts"},{"$f":"'Data SBP Measures'!$Y3065","v":"EACH"},null,null,null,null,null,"Civil/Collections Team - 120","Abstracts",null,null,null,null,null,null,null,"1972","125","Y","222","Guardianship","PERCENT","EFFICIENCY","BLACKBOOK",null,null,null,"Guardianship","Clearance rates for Guardian annual & final accounts",null,{"$f":"'Data SBP Measures'!$AF906&'Data SBP Measures'!$AE906& \" - \"& 'Data SBP Measures'!$U906","v":"Clearance rates for Guardian annual & final accountsGuardianship - 125"},{"$f":"_xlfn.XLOOKUP(VALUE(W906),'Data SBP Programs'!O:O,'Data SBP Programs'!S:S)","v":"Guardianship"}]
[{"$f":"'Data SBP Measures'!$AI3066&\" - \"&'Data SBP Measures'!$U3066","v":"Civil/Collections Team - 120"},{"$f":"'Data SBP Measures'!$AF3066","v":"Appeals"},{"$f":"'Data SBP Measures'!$T3066","v":"510"},{"$f":"'Data SBP Measures'!$U3066&B907","v":"120Appeals"},{"$f":"'Data SBP Measures'!$Y3066","v":"EACH"},null,null,null,null,null,"Civil/Collections Team - 120","Appeals",null,null,null,null,null,null,null,"1977","125","Y","222","Guardianship","EACH","OUTPUT","NEITHER",null,null,null,"Guardianship","# orders signed for other applications not requiring record hearing",null,{"$f":"'Data SBP Measures'!$AF907&'Data SBP Measures'!$AE907& \" - \"& 'Data SBP Measures'!$U907","v":"# orders signed for other applications not requiring record hearingGuardianship - 125"},{"$f":"_xlfn.XLOOKUP(VALUE(W907),'Data SBP Programs'!O:O,'Data SBP Programs'!S:S)","v":"Guardianship"}]
[{"$f":"'Data SBP Measures'!$AI3067&\" - \"&'Data SBP Measures'!$U3067","v":"Civil/Collections Team - 120"},{"$f":"'Data SBP Measures'!$AF3067","v":"Average Number of Day to Process Abstracts of Judgment"},{"$f":"'Data SBP Measures'!$T3067","v":"511"},{"$f":"'Data SBP Measures'!$U3067&B908","v":"120Average Number of Day to Process Abstracts of Judgment"},{"$f":"'Data SBP Measures'!$Y3067","v":"DAYS"},null,null,null,null,null,"Civil/Collections Team - 120","Average Number of Day to Process Abstracts of Judgment",null,null,null,null,null,null,null,"1977","125","Y","222","Guardianship","EACH","OUTPUT","NEITHER",null,null,null,"Guardianship","# orders signed for other applications not requiring record hearing",null,{"$f":"'Data SBP Measures'!$AF908&'Data SBP Measures'!$AE908& \" - \"& 'Data SBP Measures'!$U908","v":"# orders signed for other applications not requiring record hearingGuardianship - 125"},{"$f":"_xlfn.XLOOKUP(VALUE(W908),'Data SBP Programs'!O:O,'Data SBP Programs'!S:S)","v":"Guardianship"}]
[{"$f":"'Data SBP Measures'!$AI3068&\" - \"&'Data SBP Measures'!$U3068","v":"Civil/Collections Team - 120"},{"$f":"'Data SBP Measures'!$AF3068","v":"Average Number of Days to Process Citations"},{"$f":"'Data SBP Measures'!$T3068","v":"512"},{"$f":"'Data SBP Measures'!$U3068&B909","v":"120Average Number of Days to Process Citations"},{"$f":"'Data SBP Measures'!$Y3068","v":"DAYS"},null,null,null,null,null,"Civil/Collections Team - 120","Average Number of Days to Process Citations",null,null,null,null,null,null,null,"1977","125","Y","222","Guardianship","EACH","OUTPUT","NEITHER",null,null,null,"Guardianship","# orders signed for other applications not requiring record hearing",null,{"$f":"'Data SBP Measures'!$AF909&'Data SBP Measures'!$AE909& \" - \"& 'Data SBP Measures'!$U909","v":"# orders signed for other applications not requiring record hearingGuardianship - 125"},{"$f":"_xlfn.XLOOKUP(VALUE(W909),'Data SBP Programs'!O:O,'Data SBP Programs'!S:S)","v":"Guardianship"}]
[{"$f":"'Data SBP Measures'!$AI3069&\" - \"&'Data SBP Measures'!$U3069","v":"Civil/Collections Team - 120"},{"$f":"'Data SBP Measures'!$AF3069","v":"Average Number of Days to Process Writs of Execution"},{"$f":"'Data SBP Measures'!$T3069","v":"513"},{"$f":"'Data SBP Measures'!$U3069&B910","v":"120Average Number of Days to Process Writs of Execution"},{"$f":"'Data SBP Measures'!$Y3069","v":"DAYS"},null,null,null,null,null,"Civil/Collections Team - 120","Average Number of Days to Process Writs of Execution",null,null,null,null,null,null,null,"1980","125","Y","223","Civil Litigation","EACH","INPUT","NEITHER",null,null,null,"Civil Litigation","# of civil cases filed during FY",null,{"$f":"'Data SBP Measures'!$AF910&'Data SBP Measures'!$AE910& \" - \"& 'Data SBP Measures'!$U910","v":"# of civil cases filed during FYCivil Litigation - 125"},{"$f":"_xlfn.XLOOKUP(VALUE(W910),'Data SBP Programs'!O:O,'Data SBP Programs'!S:S)","v":"Civil Litigation"}]
[{"$f":"'Data SBP Measures'!$AI3186&\" - \"&'Data SBP Measures'!$U3186","v":"Civil/Collections Team - 120"},{"$f":"'Data SBP Measures'!$AF3186","v":"Bond Forfeiture Cases Filed"},{"$f":"'Data SBP Measures'!$T3186","v":"640"},{"$f":"'Data SBP Measures'!$U3186&B911","v":"120Bond Forfeiture Cases Filed"},{"$f":"'Data SBP Measures'!$Y3186","v":"EACH"},null,null,null,null,null,"Civil/Collections Team - 120","Bond Forfeiture Cases Filed",null,null,null,null,null,null,null,"1982","125","Y","223","Civil Litigation","EACH","OUTPUT","NEITHER",null,null,null,"Civil Litigation","# of civil cases nonsuited or dismissed (including DWOP)",null,{"$f":"'Data SBP Measures'!$AF911&'Data SBP Measures'!$AE911& \" - \"& 'Data SBP Measures'!$U911","v":"# of civil cases nonsuited or dismissed (including DWOP)Civil Litigation - 125"},{"$f":"_xlfn.XLOOKUP(VALUE(W911),'Data SBP Programs'!O:O,'Data SBP Programs'!S:S)","v":"Civil Litigation"}]
[{"$f":"'Data SBP Measures'!$AI3079&\" - \"&'Data SBP Measures'!$U3079","v":"Civil/Collections Team - 120"},{"$f":"'Data SBP Measures'!$AF3079","v":"Civil Cases Filed"},{"$f":"'Data SBP Measures'!$T3079","v":"523"},{"$f":"'Data SBP Measures'!$U3079&B912","v":"120Civil Cases Filed"},{"$f":"'Data SBP Measures'!$Y3079","v":"EACH"},null,null,null,null,null,"Civil/Collections Team - 120","Civil Cases Filed",null,null,null,null,null,null,null,"1990","125","Y","223","Civil Litigation","EACH","INPUT","BOTH",null,null,null,"Civil Litigation","# of hearings in civil cases",null,{"$f":"'Data SBP Measures'!$AF912&'Data SBP Measures'!$AE912& \" - \"& 'Data SBP Measures'!$U912","v":"# of hearings in civil casesCivil Litigation - 125"},{"$f":"_xlfn.XLOOKUP(VALUE(W912),'Data SBP Programs'!O:O,'Data SBP Programs'!S:S)","v":"Civil Litigation"}]
[{"$f":"'Data SBP Measures'!$AI3070&\" - \"&'Data SBP Measures'!$U3070","v":"Civil/Collections Team - 120"},{"$f":"'Data SBP Measures'!$AF3070","v":"Civil Citations Issued"},{"$f":"'Data SBP Measures'!$T3070","v":"514"},{"$f":"'Data SBP Measures'!$U3070&B913","v":"120Civil Citations Issued"},{"$f":"'Data SBP Measures'!$Y3070","v":"EACH"},null,null,null,null,null,"Civil/Collections Team - 120","Civil Citations Issued",null,null,null,null,null,null,null,"1991","125","Y","223","Civil Litigation","EACH","INPUT","NEITHER",null,null,null,"Civil Litigation","# of jury trials set during FY\n",null,{"$f":"'Data SBP Measures'!$AF913&'Data SBP Measures'!$AE913& \" - \"& 'Data SBP Measures'!$U913","v":"# of jury trials set during FY\nCivil Litigation - 125"},{"$f":"_xlfn.XLOOKUP(VALUE(W913),'Data SBP Programs'!O:O,'Data SBP Programs'!S:S)","v":"Civil Litigation"}]
[{"$f":"'Data SBP Measures'!$AI3071&\" - \"&'Data SBP Measures'!$U3071","v":"Civil/Collections Team - 120"},{"$f":"'Data SBP Measures'!$AF3071","v":"Civil Customer Service Email Requests"},{"$f":"'Data SBP Measures'!$T3071","v":"515"},{"$f":"'Data SBP Measures'!$U3071&B914","v":"120Civil Customer Service Email Requests"},{"$f":"'Data SBP Measures'!$Y3071","v":"EACH"},null,null,null,null,null,"Civil/Collections Team - 120","Civil Customer Service Email Requests",null,null,null,null,null,null,null,"1992","125","Y","223","Civil Litigation","EACH","INPUT","NEITHER",null,null,null,"Civil Litigation","# of available jury settings",null,{"$f":"'Data SBP Measures'!$AF914&'Data SBP Measures'!$AE914& \" - \"& 'Data SBP Measures'!$U914","v":"# of available jury settingsCivil Litigation - 125"},{"$f":"_xlfn.XLOOKUP(VALUE(W914),'Data SBP Programs'!O:O,'Data SBP Programs'!S:S)","v":"Civil Litigation"}]
[{"$f":"'Data SBP Measures'!$AI3072&\" - \"&'Data SBP Measures'!$U3072","v":"Civil/Collections Team - 120"},{"$f":"'Data SBP Measures'!$AF3072","v":"Civil Customer Service In-Person"},{"$f":"'Data SBP Measures'!$T3072","v":"516"},{"$f":"'Data SBP Measures'!$U3072&B915","v":"120Civil Customer Service In-Person"},{"$f":"'Data SBP Measures'!$Y3072","v":"EACH"},null,null,null,null,null,"Civil/Collections Team - 120","Civil Customer Service In-Person",null,null,null,null,null,null,null,"1993","125","Y","223","Civil Litigation","EACH","INPUT","NEITHER",null,null,null,"Civil Litigation","# of jury trials held",null,{"$f":"'Data SBP Measures'!$AF915&'Data SBP Measures'!$AE915& \" - \"& 'Data SBP Measures'!$U915","v":"# of jury trials heldCivil Litigation - 125"},{"$f":"_xlfn.XLOOKUP(VALUE(W915),'Data SBP Programs'!O:O,'Data SBP Programs'!S:S)","v":"Civil Litigation"}]
[{"$f":"'Data SBP Measures'!$AI3073&\" - \"&'Data SBP Measures'!$U3073","v":"Civil/Collections Team - 120"},{"$f":"'Data SBP Measures'!$AF3073","v":"Civil Customer Service Phone"},{"$f":"'Data SBP Measures'!$T3073","v":"517"},{"$f":"'Data SBP Measures'!$U3073&B916","v":"120Civil Customer Service Phone"},{"$f":"'Data SBP Measures'!$Y3073","v":"EACH"},null,null,null,null,null,"Civil/Collections Team - 120","Civil Customer Service Phone",null,null,null,null,null,null,null,"1994","125","Y","223","Civil Litigation","EACH","OUTPUT","NEITHER",null,null,null,"Civil Litigation","# of jury-trial cases settled prior to hearing\n",null,{"$f":"'Data SBP Measures'!$AF916&'Data SBP Measures'!$AE916& \" - \"& 'Data SBP Measures'!$U916","v":"# of jury-trial cases settled prior to hearing\nCivil Litigation - 125"},{"$f":"_xlfn.XLOOKUP(VALUE(W916),'Data SBP Programs'!O:O,'Data SBP Programs'!S:S)","v":"Civil Litigation"}]
[{"$f":"'Data SBP Measures'!$AI3077&\" - \"&'Data SBP Measures'!$U3077","v":"Civil/Collections Team - 120"},{"$f":"'Data SBP Measures'!$AF3077","v":"Civil General Search Requests"},{"$f":"'Data SBP Measures'!$T3077","v":"521"},{"$f":"'Data SBP Measures'!$U3077&B917","v":"120Civil General Search Requests"},{"$f":"'Data SBP Measures'!$Y3077","v":"EACH"},null,null,null,null,null,"Civil/Collections Team - 120","Civil General Search Requests",null,null,null,null,null,null,null,"2","106","Y","178","Auditor's Office","PERCENT","OUTCOME","ADOPTEDBUD",null,null,null,"Auditor's Office","Annual Comprehensive Financial Report filed by March 31 deadline\n",null,{"$f":"'Data SBP Measures'!$AF917&'Data SBP Measures'!$AE917& \" - \"& 'Data SBP Measures'!$U917","v":"Annual Comprehensive Financial Report filed by March 31 deadline\nAuditor's Office - 106"},{"$f":"_xlfn.XLOOKUP(VALUE(W917),'Data SBP Programs'!O:O,'Data SBP Programs'!S:S)","v":"Auditor's Office"}]
[{"$f":"'Data SBP Measures'!$AI2630&\" - \"&'Data SBP Measures'!$U2630","v":"Civil/Collections Team - 120"},{"$f":"'Data SBP Measures'!$AF2630","v":"Copies Processed"},{"$f":"'Data SBP Measures'!$T2630","v":"3244"},{"$f":"'Data SBP Measures'!$U2630&B918","v":"120Copies Processed"},{"$f":"'Data SBP Measures'!$Y2630","v":"EACH"},null,null,null,null,null,"Civil/Collections Team - 120","Copies Processed",null,null,null,null,null,null,null,"2001","125","Y","225","Condemnation","EACH","INPUT","BOTH",null,null,null,"Condemnation","# of condemnation cases filed to date of final order, disposition, of award",null,{"$f":"'Data SBP Measures'!$AF918&'Data SBP Measures'!$AE918& \" - \"& 'Data SBP Measures'!$U918","v":"# of condemnation cases filed to date of final order, disposition, of awardCondemnation - 125"},{"$f":"_xlfn.XLOOKUP(VALUE(W918),'Data SBP Programs'!O:O,'Data SBP Programs'!S:S)","v":"Condemnation"}]
[{"$f":"'Data SBP Measures'!$AI3074&\" - \"&'Data SBP Measures'!$U3074","v":"Civil/Collections Team - 120"},{"$f":"'Data SBP Measures'!$AF3074","v":"Difference b/w Document File Date and Document Entry Date"},{"$f":"'Data SBP Measures'!$T3074","v":"518"},{"$f":"'Data SBP Measures'!$U3074&B919","v":"120Difference b/w Document File Date and Document Entry Date"},{"$f":"'Data SBP Measures'!$Y3074","v":"DAYS"},null,null,null,null,null,"Civil/Collections Team - 120","Difference b/w Document File Date and Document Entry Date",null,null,null,null,null,null,null,"2002","125","Y","225","Condemnation","EACH","OUTPUT","NEITHER",null,null,null,"Condemnation","# of condemnation cases transferred to CCL after appeal or objection\n",null,{"$f":"'Data SBP Measures'!$AF919&'Data SBP Measures'!$AE919& \" - \"& 'Data SBP Measures'!$U919","v":"# of condemnation cases transferred to CCL after appeal or objection\nCondemnation - 125"},{"$f":"_xlfn.XLOOKUP(VALUE(W919),'Data SBP Programs'!O:O,'Data SBP Programs'!S:S)","v":"Condemnation"}]
[{"$f":"'Data SBP Measures'!$AI3075&\" - \"&'Data SBP Measures'!$U3075","v":"Civil/Collections Team - 120"},{"$f":"'Data SBP Measures'!$AF3075","v":"Documents Scanned"},{"$f":"'Data SBP Measures'!$T3075","v":"519"},{"$f":"'Data SBP Measures'!$U3075&B920","v":"120Documents Scanned"},{"$f":"'Data SBP Measures'!$Y3075","v":"EACH"},null,null,null,null,null,"Civil/Collections Team - 120","Documents Scanned",null,null,null,null,null,null,null,"2003","125","Y","225","Condemnation","EACH","OUTPUT","NEITHER",null,null,null,"Condemnation","# of condemnation orders signed",null,{"$f":"'Data SBP Measures'!$AF920&'Data SBP Measures'!$AE920& \" - \"& 'Data SBP Measures'!$U920","v":"# of condemnation orders signedCondemnation - 125"},{"$f":"_xlfn.XLOOKUP(VALUE(W920),'Data SBP Programs'!O:O,'Data SBP Programs'!S:S)","v":"Condemnation"}]
[{"$f":"'Data SBP Measures'!$AI3087&\" - \"&'Data SBP Measures'!$U3087","v":"Civil/Collections Team - 120"},{"$f":"'Data SBP Measures'!$AF3087","v":"Documents Scanned and Indexed"},{"$f":"'Data SBP Measures'!$T3087","v":"531"},{"$f":"'Data SBP Measures'!$U3087&B921","v":"120Documents Scanned and Indexed"},{"$f":"'Data SBP Measures'!$Y3087","v":"EACH"},null,null,null,null,null,"Civil/Collections Team - 120","Documents Scanned and Indexed",null,null,null,null,null,null,null,"2008","126","Y","226","Civil Processing","EACH","OUTPUT","ADOPTEDBUD",null,null,null,"Civil Processing","Number of civil cases filed",null,{"$f":"'Data SBP Measures'!$AF921&'Data SBP Measures'!$AE921& \" - \"& 'Data SBP Measures'!$U921","v":"Number of civil cases filedCivil Processing - 126"},{"$f":"_xlfn.XLOOKUP(VALUE(W921),'Data SBP Programs'!O:O,'Data SBP Programs'!S:S)","v":"Civil Processing"}]
[{"$f":"'Data SBP Measures'!$AI2631&\" - \"&'Data SBP Measures'!$U2631","v":"Civil/Collections Team - 120"},{"$f":"'Data SBP Measures'!$AF2631","v":"eFiling processed"},{"$f":"'Data SBP Measures'!$T2631","v":"3245"},{"$f":"'Data SBP Measures'!$U2631&B922","v":"120eFiling processed"},{"$f":"'Data SBP Measures'!$Y2631","v":"EACH"},null,null,null,null,null,"Civil/Collections Team - 120","eFiling processed",null,null,null,null,null,null,null,"2008","126","Y","226","Civil Processing","EACH","OUTPUT","ADOPTEDBUD",null,null,null,"Civil Processing","Number of civil cases filed",null,{"$f":"'Data SBP Measures'!$AF922&'Data SBP Measures'!$AE922& \" - \"& 'Data SBP Measures'!$U922","v":"Number of civil cases filedCivil Processing - 126"},{"$f":"_xlfn.XLOOKUP(VALUE(W922),'Data SBP Programs'!O:O,'Data SBP Programs'!S:S)","v":"Civil Processing"}]
[{"$f":"'Data SBP Measures'!$AI3076&\" - \"&'Data SBP Measures'!$U3076","v":"Civil/Collections Team - 120"},{"$f":"'Data SBP Measures'!$AF3076","v":"Executions"},{"$f":"'Data SBP Measures'!$T3076","v":"520"},{"$f":"'Data SBP Measures'!$U3076&B923","v":"120Executions"},{"$f":"'Data SBP Measures'!$Y3076","v":"EACH"},null,null,null,null,null,"Civil/Collections Team - 120","Executions",null,null,null,null,null,null,null,"2008","126","Y","226","Civil Processing","EACH","OUTPUT","ADOPTEDBUD",null,null,null,"Civil Processing","Number of civil cases filed",null,{"$f":"'Data SBP Measures'!$AF923&'Data SBP Measures'!$AE923& \" - \"& 'Data SBP Measures'!$U923","v":"Number of civil cases filedCivil Processing - 126"},{"$f":"_xlfn.XLOOKUP(VALUE(W923),'Data SBP Programs'!O:O,'Data SBP Programs'!S:S)","v":"Civil Processing"}]
[{"$f":"'Data SBP Measures'!$AI3078&\" - \"&'Data SBP Measures'!$U3078","v":"Civil/Collections Team - 120"},{"$f":"'Data SBP Measures'!$AF3078","v":"Judgments"},{"$f":"'Data SBP Measures'!$T3078","v":"522"},{"$f":"'Data SBP Measures'!$U3078&B924","v":"120Judgments"},{"$f":"'Data SBP Measures'!$Y3078","v":"EACH"},null,null,null,null,null,"Civil/Collections Team - 120","Judgments",null,null,null,null,null,null,null,"2009","126","Y","226","Civil Processing","EACH","OUTPUT","ADOPTEDBUD",null,null,null,"Civil Processing","Number of civil cases held heard by judge",null,{"$f":"'Data SBP Measures'!$AF924&'Data SBP Measures'!$AE924& \" - \"& 'Data SBP Measures'!$U924","v":"Number of civil cases held heard by judgeCivil Processing - 126"},{"$f":"_xlfn.XLOOKUP(VALUE(W924),'Data SBP Programs'!O:O,'Data SBP Programs'!S:S)","v":"Civil Processing"}]
[{"$f":"'Data SBP Measures'!$AI3080&\" - \"&'Data SBP Measures'!$U3080","v":"Civil/Collections Team - 120"},{"$f":"'Data SBP Measures'!$AF3080","v":"Notings"},{"$f":"'Data SBP Measures'!$T3080","v":"524"},{"$f":"'Data SBP Measures'!$U3080&B925","v":"120Notings"},{"$f":"'Data SBP Measures'!$Y3080","v":"EACH"},null,null,null,null,null,"Civil/Collections Team - 120","Notings",null,null,null,null,null,null,null,"2009","126","Y","226","Civil Processing","EACH","OUTPUT","ADOPTEDBUD",null,null,null,"Civil Processing","Number of civil cases held heard by judge",null,{"$f":"'Data SBP Measures'!$AF925&'Data SBP Measures'!$AE925& \" - \"& 'Data SBP Measures'!$U925","v":"Number of civil cases held heard by judgeCivil Processing - 126"},{"$f":"_xlfn.XLOOKUP(VALUE(W925),'Data SBP Programs'!O:O,'Data SBP Programs'!S:S)","v":"Civil Processing"}]
[{"$f":"'Data SBP Measures'!$AI3081&\" - \"&'Data SBP Measures'!$U3081","v":"Civil/Collections Team - 120"},{"$f":"'Data SBP Measures'!$AF3081","v":"Other Issuances"},{"$f":"'Data SBP Measures'!$T3081","v":"525"},{"$f":"'Data SBP Measures'!$U3081&B926","v":"120Other Issuances"},{"$f":"'Data SBP Measures'!$Y3081","v":"EACH"},null,null,null,null,null,"Civil/Collections Team - 120","Other Issuances",null,null,null,null,null,null,null,"2009","126","Y","226","Civil Processing","EACH","OUTPUT","ADOPTEDBUD",null,null,null,"Civil Processing","Number of civil cases held heard by judge",null,{"$f":"'Data SBP Measures'!$AF926&'Data SBP Measures'!$AE926& \" - \"& 'Data SBP Measures'!$U926","v":"Number of civil cases held heard by judgeCivil Processing - 126"},{"$f":"_xlfn.XLOOKUP(VALUE(W926),'Data SBP Programs'!O:O,'Data SBP Programs'!S:S)","v":"Civil Processing"}]
[{"$f":"'Data SBP Measures'!$AI3190&\" - \"&'Data SBP Measures'!$U3190","v":"Civil/Collections Team - 120"},{"$f":"'Data SBP Measures'!$AF3190","v":"Protective Order Cases Filed"},{"$f":"'Data SBP Measures'!$T3190","v":"645"},{"$f":"'Data SBP Measures'!$U3190&B927","v":"120Protective Order Cases Filed"},{"$f":"'Data SBP Measures'!$Y3190","v":"EACH"},null,null,null,null,null,"Civil/Collections Team - 120","Protective Order Cases Filed",null,null,null,null,null,null,null,"2010","126","Y","226","Civil Processing","EACH","OUTPUT","ADOPTEDBUD",null,null,null,"Civil Processing","Number of Peace Bond reviewed (New)",null,{"$f":"'Data SBP Measures'!$AF927&'Data SBP Measures'!$AE927& \" - \"& 'Data SBP Measures'!$U927","v":"Number of Peace Bond reviewed (New)Civil Processing - 126"},{"$f":"_xlfn.XLOOKUP(VALUE(W927),'Data SBP Programs'!O:O,'Data SBP Programs'!S:S)","v":"Civil Processing"}]
[{"$f":"'Data SBP Measures'!$AI3082&\" - \"&'Data SBP Measures'!$U3082","v":"Civil/Collections Team - 120"},{"$f":"'Data SBP Measures'!$AF3082","v":"Subpoenas"},{"$f":"'Data SBP Measures'!$T3082","v":"526"},{"$f":"'Data SBP Measures'!$U3082&B928","v":"120Subpoenas"},{"$f":"'Data SBP Measures'!$Y3082","v":"EACH"},null,null,null,null,null,"Civil/Collections Team - 120","Subpoenas",null,null,null,null,null,null,null,"2010","126","Y","226","Civil Processing","EACH","OUTPUT","ADOPTEDBUD",null,null,null,"Civil Processing","Number of Peace Bond reviewed (New)",null,{"$f":"'Data SBP Measures'!$AF928&'Data SBP Measures'!$AE928& \" - \"& 'Data SBP Measures'!$U928","v":"Number of Peace Bond reviewed (New)Civil Processing - 126"},{"$f":"_xlfn.XLOOKUP(VALUE(W928),'Data SBP Programs'!O:O,'Data SBP Programs'!S:S)","v":"Civil Processing"}]
[{"$f":"'Data SBP Measures'!$AI2170&\" - \"&'Data SBP Measures'!$U2170","v":"CJIS - Arrest/Expunction/Fugitive/Misuse ID/Parole/StateXfer - 137"},{"$f":"'Data SBP Measures'!$AF2170","v":"No. of Added Charges"},{"$f":"'Data SBP Measures'!$T2170","v":"2695"},{"$f":"'Data SBP Measures'!$U2170&B929","v":"137No. of Added Charges"},{"$f":"'Data SBP Measures'!$Y2170","v":"EACH"},null,null,null,null,null,"CJIS - Arrest/Expunction/Fugitive/Misuse ID/Parole/StateXfer - 137","No. of Added Charges",null,null,null,null,null,null,null,"2010","126","Y","226","Civil Processing","EACH","OUTPUT","ADOPTEDBUD",null,null,null,"Civil Processing","Number of Peace Bond reviewed (New)",null,{"$f":"'Data SBP Measures'!$AF929&'Data SBP Measures'!$AE929& \" - \"& 'Data SBP Measures'!$U929","v":"Number of Peace Bond reviewed (New)Civil Processing - 126"},{"$f":"_xlfn.XLOOKUP(VALUE(W929),'Data SBP Programs'!O:O,'Data SBP Programs'!S:S)","v":"Civil Processing"}]
[{"$f":"'Data SBP Measures'!$AI2168&\" - \"&'Data SBP Measures'!$U2168","v":"CJIS - Arrest/Expunction/Fugitive/Misuse ID/Parole/StateXfer - 137"},{"$f":"'Data SBP Measures'!$AF2168","v":"No. of APD Fingerprint Request"},{"$f":"'Data SBP Measures'!$T2168","v":"2693"},{"$f":"'Data SBP Measures'!$U2168&B930","v":"137No. of APD Fingerprint Request"},{"$f":"'Data SBP Measures'!$Y2168","v":"EACH"},null,null,null,null,null,"CJIS - Arrest/Expunction/Fugitive/Misuse ID/Parole/StateXfer - 137","No. of APD Fingerprint Request",null,null,null,null,null,null,null,"2011","126","Y","226","Civil Processing","EACH","OUTPUT","ADOPTEDBUD",null,null,null,"Civil Processing","Number of motions filed (New)",null,{"$f":"'Data SBP Measures'!$AF930&'Data SBP Measures'!$AE930& \" - \"& 'Data SBP Measures'!$U930","v":"Number of motions filed (New)Civil Processing - 126"},{"$f":"_xlfn.XLOOKUP(VALUE(W930),'Data SBP Programs'!O:O,'Data SBP Programs'!S:S)","v":"Civil Processing"}]
[{"$f":"'Data SBP Measures'!$AI2169&\" - \"&'Data SBP Measures'!$U2169","v":"CJIS - Arrest/Expunction/Fugitive/Misuse ID/Parole/StateXfer - 137"},{"$f":"'Data SBP Measures'!$AF2169","v":"No. of APD Pkg # Merges"},{"$f":"'Data SBP Measures'!$T2169","v":"2694"},{"$f":"'Data SBP Measures'!$U2169&B931","v":"137No. of APD Pkg # Merges"},{"$f":"'Data SBP Measures'!$Y2169","v":"EACH"},null,null,null,null,null,"CJIS - Arrest/Expunction/Fugitive/Misuse ID/Parole/StateXfer - 137","No. of APD Pkg # Merges",null,null,null,null,null,null,null,"2011","126","Y","226","Civil Processing","EACH","OUTPUT","ADOPTEDBUD",null,null,null,"Civil Processing","Number of motions filed (New)",null,{"$f":"'Data SBP Measures'!$AF931&'Data SBP Measures'!$AE931& \" - \"& 'Data SBP Measures'!$U931","v":"Number of motions filed (New)Civil Processing - 126"},{"$f":"_xlfn.XLOOKUP(VALUE(W931),'Data SBP Programs'!O:O,'Data SBP Programs'!S:S)","v":"Civil Processing"}]
[{"$f":"'Data SBP Measures'!$AI262&\" - \"&'Data SBP Measures'!$U262","v":"CJIS - Arrest/Expunction/Fugitive/Misuse ID/Parole/StateXfer - 137"},{"$f":"'Data SBP Measures'!$AF262","v":"No. of Data Quality Resolutions"},{"$f":"'Data SBP Measures'!$T262","v":"1301"},{"$f":"'Data SBP Measures'!$U262&B932","v":"137No. of Data Quality Resolutions"},{"$f":"'Data SBP Measures'!$Y262","v":"EACH"},null,null,null,null,null,"CJIS - Arrest/Expunction/Fugitive/Misuse ID/Parole/StateXfer - 137","No. of Data Quality Resolutions",null,null,null,null,null,null,null,"2011","126","Y","226","Civil Processing","EACH","OUTPUT","ADOPTEDBUD",null,null,null,"Civil Processing","Number of motions filed (New)",null,{"$f":"'Data SBP Measures'!$AF932&'Data SBP Measures'!$AE932& \" - \"& 'Data SBP Measures'!$U932","v":"Number of motions filed (New)Civil Processing - 126"},{"$f":"_xlfn.XLOOKUP(VALUE(W932),'Data SBP Programs'!O:O,'Data SBP Programs'!S:S)","v":"Civil Processing"}]
[{"$f":"'Data SBP Measures'!$AI269&\" - \"&'Data SBP Measures'!$U269","v":"CJIS - Arrest/Expunction/Fugitive/Misuse ID/Parole/StateXfer - 137"},{"$f":"'Data SBP Measures'!$AF269","v":"No. of Documents Rec'd & Entered"},{"$f":"'Data SBP Measures'!$T269","v":"1317"},{"$f":"'Data SBP Measures'!$U269&B933","v":"137No. of Documents Rec'd & Entered"},{"$f":"'Data SBP Measures'!$Y269","v":"EACH"},null,null,null,null,null,"CJIS - Arrest/Expunction/Fugitive/Misuse ID/Parole/StateXfer - 137","No. of Documents Rec'd & Entered",null,null,null,null,null,null,null,"2012","126","Y","226","Civil Processing","PERCENT","OUTCOME","ADOPTEDBUD",null,null,null,"Civil Processing","Percentage of civil cases dismissed (by plaintiff)",null,{"$f":"'Data SBP Measures'!$AF933&'Data SBP Measures'!$AE933& \" - \"& 'Data SBP Measures'!$U933","v":"Percentage of civil cases dismissed (by plaintiff)Civil Processing - 126"},{"$f":"_xlfn.XLOOKUP(VALUE(W933),'Data SBP Programs'!O:O,'Data SBP Programs'!S:S)","v":"Civil Processing"}]
[{"$f":"'Data SBP Measures'!$AI2171&\" - \"&'Data SBP Measures'!$U2171","v":"CJIS - Arrest/Expunction/Fugitive/Misuse ID/Parole/StateXfer - 137"},{"$f":"'Data SBP Measures'!$AF2171","v":"No. of Documents Rec'd & Entered"},{"$f":"'Data SBP Measures'!$T2171","v":"2696"},{"$f":"'Data SBP Measures'!$U2171&B934","v":"137No. of Documents Rec'd & Entered"},{"$f":"'Data SBP Measures'!$Y2171","v":"EACH"},null,null,null,null,null,"CJIS - Arrest/Expunction/Fugitive/Misuse ID/Parole/StateXfer - 137","No. of Documents Rec'd & Entered",null,null,null,null,null,null,null,"2012","126","Y","226","Civil Processing","PERCENT","OUTCOME","ADOPTEDBUD",null,null,null,"Civil Processing","Percentage of civil cases dismissed (by plaintiff)",null,{"$f":"'Data SBP Measures'!$AF934&'Data SBP Measures'!$AE934& \" - \"& 'Data SBP Measures'!$U934","v":"Percentage of civil cases dismissed (by plaintiff)Civil Processing - 126"},{"$f":"_xlfn.XLOOKUP(VALUE(W934),'Data SBP Programs'!O:O,'Data SBP Programs'!S:S)","v":"Civil Processing"}]
[{"$f":"'Data SBP Measures'!$AI2172&\" - \"&'Data SBP Measures'!$U2172","v":"CJIS - Arrest/Expunction/Fugitive/Misuse ID/Parole/StateXfer - 137"},{"$f":"'Data SBP Measures'!$AF2172","v":"No. of Emails From Victims"},{"$f":"'Data SBP Measures'!$T2172","v":"2697"},{"$f":"'Data SBP Measures'!$U2172&B935","v":"137No. of Emails From Victims"},{"$f":"'Data SBP Measures'!$Y2172","v":"EACH"},null,null,null,null,null,"CJIS - Arrest/Expunction/Fugitive/Misuse ID/Parole/StateXfer - 137","No. of Emails From Victims",null,null,null,null,null,null,null,"2012","126","Y","226","Civil Processing","PERCENT","OUTCOME","ADOPTEDBUD",null,null,null,"Civil Processing","Percentage of civil cases dismissed (by plaintiff)",null,{"$f":"'Data SBP Measures'!$AF935&'Data SBP Measures'!$AE935& \" - \"& 'Data SBP Measures'!$U935","v":"Percentage of civil cases dismissed (by plaintiff)Civil Processing - 126"},{"$f":"_xlfn.XLOOKUP(VALUE(W935),'Data SBP Programs'!O:O,'Data SBP Programs'!S:S)","v":"Civil Processing"}]
[{"$f":"'Data SBP Measures'!$AI267&\" - \"&'Data SBP Measures'!$U267","v":"CJIS - Arrest/Expunction/Fugitive/Misuse ID/Parole/StateXfer - 137"},{"$f":"'Data SBP Measures'!$AF267","v":"No. of expunctions closed"},{"$f":"'Data SBP Measures'!$T267","v":"1315"},{"$f":"'Data SBP Measures'!$U267&B936","v":"137No. of expunctions closed"},{"$f":"'Data SBP Measures'!$Y267","v":"EACH"},null,null,null,null,null,"CJIS - Arrest/Expunction/Fugitive/Misuse ID/Parole/StateXfer - 137","No. of expunctions closed",null,null,null,null,null,null,null,"2013","126","Y","226","Civil Processing","EACH","INPUT","ADOPTEDBUD",null,null,null,"Civil Processing","Number of employees (FTE’s) to process cases",null,{"$f":"'Data SBP Measures'!$AF936&'Data SBP Measures'!$AE936& \" - \"& 'Data SBP Measures'!$U936","v":"Number of employees (FTE’s) to process casesCivil Processing - 126"},{"$f":"_xlfn.XLOOKUP(VALUE(W936),'Data SBP Programs'!O:O,'Data SBP Programs'!S:S)","v":"Civil Processing"}]
[{"$f":"'Data SBP Measures'!$AI275&\" - \"&'Data SBP Measures'!$U275","v":"CJIS - Arrest/Expunction/Fugitive/Misuse ID/Parole/StateXfer - 137"},{"$f":"'Data SBP Measures'!$AF275","v":"No. of FFJ Extradited"},{"$f":"'Data SBP Measures'!$T275","v":"1328"},{"$f":"'Data SBP Measures'!$U275&B937","v":"137No. of FFJ Extradited"},{"$f":"'Data SBP Measures'!$Y275","v":"EACH"},null,null,null,null,null,"CJIS - Arrest/Expunction/Fugitive/Misuse ID/Parole/StateXfer - 137","No. of FFJ Extradited",null,null,null,null,null,null,null,"2013","126","Y","226","Civil Processing","EACH","INPUT","ADOPTEDBUD",null,null,null,"Civil Processing","Number of employees (FTE’s) to process cases",null,{"$f":"'Data SBP Measures'!$AF937&'Data SBP Measures'!$AE937& \" - \"& 'Data SBP Measures'!$U937","v":"Number of employees (FTE’s) to process casesCivil Processing - 126"},{"$f":"_xlfn.XLOOKUP(VALUE(W937),'Data SBP Programs'!O:O,'Data SBP Programs'!S:S)","v":"Civil Processing"}]
[{"$f":"'Data SBP Measures'!$AI274&\" - \"&'Data SBP Measures'!$U274","v":"CJIS - Arrest/Expunction/Fugitive/Misuse ID/Parole/StateXfer - 137"},{"$f":"'Data SBP Measures'!$AF274","v":"No. of Fugitive From Justice Filed"},{"$f":"'Data SBP Measures'!$T274","v":"1325"},{"$f":"'Data SBP Measures'!$U274&B938","v":"137No. of Fugitive From Justice Filed"},{"$f":"'Data SBP Measures'!$Y274","v":"EACH"},null,null,null,null,null,"CJIS - Arrest/Expunction/Fugitive/Misuse ID/Parole/StateXfer - 137","No. of Fugitive From Justice Filed",null,null,null,null,null,null,null,"2013","126","Y","226","Civil Processing","EACH","INPUT","ADOPTEDBUD",null,null,null,"Civil Processing","Number of employees (FTE’s) to process cases",null,{"$f":"'Data SBP Measures'!$AF938&'Data SBP Measures'!$AE938& \" - \"& 'Data SBP Measures'!$U938","v":"Number of employees (FTE’s) to process casesCivil Processing - 126"},{"$f":"_xlfn.XLOOKUP(VALUE(W938),'Data SBP Programs'!O:O,'Data SBP Programs'!S:S)","v":"Civil Processing"}]
[{"$f":"'Data SBP Measures'!$AI265&\" - \"&'Data SBP Measures'!$U265","v":"CJIS - Arrest/Expunction/Fugitive/Misuse ID/Parole/StateXfer - 137"},{"$f":"'Data SBP Measures'!$AF265","v":"No. of Identity Cases"},{"$f":"'Data SBP Measures'!$T265","v":"1311"},{"$f":"'Data SBP Measures'!$U265&B939","v":"137No. of Identity Cases"},{"$f":"'Data SBP Measures'!$Y265","v":"EACH"},null,null,null,null,null,"CJIS - Arrest/Expunction/Fugitive/Misuse ID/Parole/StateXfer - 137","No. of Identity Cases",null,null,null,null,null,null,null,"2014","126","Y","227","Criminal","EACH","OUTPUT","ADOPTEDBUD",null,null,null,"Criminal","Number of Class C cases filed (formerly Traffic cases filed)",null,{"$f":"'Data SBP Measures'!$AF939&'Data SBP Measures'!$AE939& \" - \"& 'Data SBP Measures'!$U939","v":"Number of Class C cases filed (formerly Traffic cases filed)Criminal - 126"},{"$f":"_xlfn.XLOOKUP(VALUE(W939),'Data SBP Programs'!O:O,'Data SBP Programs'!S:S)","v":"Criminal"}]
[{"$f":"'Data SBP Measures'!$AI2174&\" - \"&'Data SBP Measures'!$U2174","v":"CJIS - Arrest/Expunction/Fugitive/Misuse ID/Parole/StateXfer - 137"},{"$f":"'Data SBP Measures'!$AF2174","v":"No. of Identity Cases"},{"$f":"'Data SBP Measures'!$T2174","v":"2699"},{"$f":"'Data SBP Measures'!$U2174&B940","v":"137No. of Identity Cases"},{"$f":"'Data SBP Measures'!$Y2174","v":"EACH"},null,null,null,null,null,"CJIS - Arrest/Expunction/Fugitive/Misuse ID/Parole/StateXfer - 137","No. of Identity Cases",null,null,null,null,null,null,null,"2014","126","Y","227","Criminal","EACH","OUTPUT","ADOPTEDBUD",null,null,null,"Criminal","Number of Class C cases filed (formerly Traffic cases filed)",null,{"$f":"'Data SBP Measures'!$AF940&'Data SBP Measures'!$AE940& \" - \"& 'Data SBP Measures'!$U940","v":"Number of Class C cases filed (formerly Traffic cases filed)Criminal - 126"},{"$f":"_xlfn.XLOOKUP(VALUE(W940),'Data SBP Programs'!O:O,'Data SBP Programs'!S:S)","v":"Criminal"}]
[{"$f":"'Data SBP Measures'!$AI2173&\" - \"&'Data SBP Measures'!$U2173","v":"CJIS - Arrest/Expunction/Fugitive/Misuse ID/Parole/StateXfer - 137"},{"$f":"'Data SBP Measures'!$AF2173","v":"No. of ISF Transfers"},{"$f":"'Data SBP Measures'!$T2173","v":"2698"},{"$f":"'Data SBP Measures'!$U2173&B941","v":"137No. of ISF Transfers"},{"$f":"'Data SBP Measures'!$Y2173","v":"EACH"},null,null,null,null,null,"CJIS - Arrest/Expunction/Fugitive/Misuse ID/Parole/StateXfer - 137","No. of ISF Transfers",null,null,null,null,null,null,null,"2014","126","Y","227","Criminal","EACH","OUTPUT","ADOPTEDBUD",null,null,null,"Criminal","Number of Class C cases filed (formerly Traffic cases filed)",null,{"$f":"'Data SBP Measures'!$AF941&'Data SBP Measures'!$AE941& \" - \"& 'Data SBP Measures'!$U941","v":"Number of Class C cases filed (formerly Traffic cases filed)Criminal - 126"},{"$f":"_xlfn.XLOOKUP(VALUE(W941),'Data SBP Programs'!O:O,'Data SBP Programs'!S:S)","v":"Criminal"}]
[{"$f":"'Data SBP Measures'!$AI2176&\" - \"&'Data SBP Measures'!$U2176","v":"CJIS - Arrest/Expunction/Fugitive/Misuse ID/Parole/StateXfer - 137"},{"$f":"'Data SBP Measures'!$AF2176","v":"No. of JMOV's"},{"$f":"'Data SBP Measures'!$T2176","v":"2700"},{"$f":"'Data SBP Measures'!$U2176&B942","v":"137No. of JMOV's"},{"$f":"'Data SBP Measures'!$Y2176","v":"EACH"},null,null,null,null,null,"CJIS - Arrest/Expunction/Fugitive/Misuse ID/Parole/StateXfer - 137","No. of JMOV's",null,null,null,null,null,null,null,"2014","126","Y","227","Criminal","EACH","OUTPUT","ADOPTEDBUD",null,null,null,"Criminal","Number of Class C cases filed (formerly Traffic cases filed)",null,{"$f":"'Data SBP Measures'!$AF942&'Data SBP Measures'!$AE942& \" - \"& 'Data SBP Measures'!$U942","v":"Number of Class C cases filed (formerly Traffic cases filed)Criminal - 126"},{"$f":"_xlfn.XLOOKUP(VALUE(W942),'Data SBP Programs'!O:O,'Data SBP Programs'!S:S)","v":"Criminal"}]
[{"$f":"'Data SBP Measures'!$AI2177&\" - \"&'Data SBP Measures'!$U2177","v":"CJIS - Arrest/Expunction/Fugitive/Misuse ID/Parole/StateXfer - 137"},{"$f":"'Data SBP Measures'!$AF2177","v":"No. of Merged ID Issues"},{"$f":"'Data SBP Measures'!$T2177","v":"2701"},{"$f":"'Data SBP Measures'!$U2177&B943","v":"137No. of Merged ID Issues"},{"$f":"'Data SBP Measures'!$Y2177","v":"EACH"},null,null,null,null,null,"CJIS - Arrest/Expunction/Fugitive/Misuse ID/Parole/StateXfer - 137","No. of Merged ID Issues",null,null,null,null,null,null,null,"2014","126","Y","227","Criminal","EACH","OUTPUT","ADOPTEDBUD",null,null,null,"Criminal","Number of Class C cases filed (formerly Traffic cases filed)",null,{"$f":"'Data SBP Measures'!$AF943&'Data SBP Measures'!$AE943& \" - \"& 'Data SBP Measures'!$U943","v":"Number of Class C cases filed (formerly Traffic cases filed)Criminal - 126"},{"$f":"_xlfn.XLOOKUP(VALUE(W943),'Data SBP Programs'!O:O,'Data SBP Programs'!S:S)","v":"Criminal"}]
[{"$f":"'Data SBP Measures'!$AI263&\" - \"&'Data SBP Measures'!$U263","v":"CJIS - Arrest/Expunction/Fugitive/Misuse ID/Parole/StateXfer - 137"},{"$f":"'Data SBP Measures'!$AF263","v":"No. of New Arrest Rpt'd to DPS"},{"$f":"'Data SBP Measures'!$T263","v":"1303"},{"$f":"'Data SBP Measures'!$U263&B944","v":"137No. of New Arrest Rpt'd to DPS"},{"$f":"'Data SBP Measures'!$Y263","v":"EACH"},null,null,null,null,null,"CJIS - Arrest/Expunction/Fugitive/Misuse ID/Parole/StateXfer - 137","No. of New Arrest Rpt'd to DPS",null,null,null,null,null,null,null,"2015","126","Y","227","Criminal","EACH","OUTPUT","ADOPTEDBUD",null,null,null,"Criminal","Number of Pre-trials Scheduled",null,{"$f":"'Data SBP Measures'!$AF944&'Data SBP Measures'!$AE944& \" - \"& 'Data SBP Measures'!$U944","v":"Number of Pre-trials ScheduledCriminal - 126"},{"$f":"_xlfn.XLOOKUP(VALUE(W944),'Data SBP Programs'!O:O,'Data SBP Programs'!S:S)","v":"Criminal"}]
[{"$f":"'Data SBP Measures'!$AI266&\" - \"&'Data SBP Measures'!$U266","v":"CJIS - Arrest/Expunction/Fugitive/Misuse ID/Parole/StateXfer - 137"},{"$f":"'Data SBP Measures'!$AF266","v":"No. of Non-Disclosures"},{"$f":"'Data SBP Measures'!$T266","v":"1312"},{"$f":"'Data SBP Measures'!$U266&B945","v":"137No. of Non-Disclosures"},{"$f":"'Data SBP Measures'!$Y266","v":"EACH"},null,null,null,null,null,"CJIS - Arrest/Expunction/Fugitive/Misuse ID/Parole/StateXfer - 137","No. of Non-Disclosures",null,null,null,null,null,null,null,"2015","126","Y","227","Criminal","EACH","OUTPUT","ADOPTEDBUD",null,null,null,"Criminal","Number of Pre-trials Scheduled",null,{"$f":"'Data SBP Measures'!$AF945&'Data SBP Measures'!$AE945& \" - \"& 'Data SBP Measures'!$U945","v":"Number of Pre-trials ScheduledCriminal - 126"},{"$f":"_xlfn.XLOOKUP(VALUE(W945),'Data SBP Programs'!O:O,'Data SBP Programs'!S:S)","v":"Criminal"}]
[{"$f":"'Data SBP Measures'!$AI2178&\" - \"&'Data SBP Measures'!$U2178","v":"CJIS - Arrest/Expunction/Fugitive/Misuse ID/Parole/StateXfer - 137"},{"$f":"'Data SBP Measures'!$AF2178","v":"No. of OOC Arrest"},{"$f":"'Data SBP Measures'!$T2178","v":"2702"},{"$f":"'Data SBP Measures'!$U2178&B946","v":"137No. of OOC Arrest"},{"$f":"'Data SBP Measures'!$Y2178","v":"EACH"},null,null,null,null,null,"CJIS - Arrest/Expunction/Fugitive/Misuse ID/Parole/StateXfer - 137","No. of OOC Arrest",null,null,null,null,null,null,null,"2015","126","Y","227","Criminal","EACH","OUTPUT","ADOPTEDBUD",null,null,null,"Criminal","Number of Pre-trials Scheduled",null,{"$f":"'Data SBP Measures'!$AF946&'Data SBP Measures'!$AE946& \" - \"& 'Data SBP Measures'!$U946","v":"Number of Pre-trials ScheduledCriminal - 126"},{"$f":"_xlfn.XLOOKUP(VALUE(W946),'Data SBP Programs'!O:O,'Data SBP Programs'!S:S)","v":"Criminal"}]
[{"$f":"'Data SBP Measures'!$AI2179&\" - \"&'Data SBP Measures'!$U2179","v":"CJIS - Arrest/Expunction/Fugitive/Misuse ID/Parole/StateXfer - 137"},{"$f":"'Data SBP Measures'!$AF2179","v":"No. of OOS Arrest"},{"$f":"'Data SBP Measures'!$T2179","v":"2703"},{"$f":"'Data SBP Measures'!$U2179&B947","v":"137No. of OOS Arrest"},{"$f":"'Data SBP Measures'!$Y2179","v":"EACH"},null,null,null,null,null,"CJIS - Arrest/Expunction/Fugitive/Misuse ID/Parole/StateXfer - 137","No. of OOS Arrest",null,null,null,null,null,null,null,"2015","126","Y","227","Criminal","EACH","OUTPUT","ADOPTEDBUD",null,null,null,"Criminal","Number of Pre-trials Scheduled",null,{"$f":"'Data SBP Measures'!$AF947&'Data SBP Measures'!$AE947& \" - \"& 'Data SBP Measures'!$U947","v":"Number of Pre-trials ScheduledCriminal - 126"},{"$f":"_xlfn.XLOOKUP(VALUE(W947),'Data SBP Programs'!O:O,'Data SBP Programs'!S:S)","v":"Criminal"}]
[{"$f":"'Data SBP Measures'!$AI273&\" - \"&'Data SBP Measures'!$U273","v":"CJIS - Arrest/Expunction/Fugitive/Misuse ID/Parole/StateXfer - 137"},{"$f":"'Data SBP Measures'!$AF273","v":"No. of Parole Revocations Rec'd"},{"$f":"'Data SBP Measures'!$T273","v":"1322"},{"$f":"'Data SBP Measures'!$U273&B948","v":"137No. of Parole Revocations Rec'd"},{"$f":"'Data SBP Measures'!$Y273","v":"EACH"},null,null,null,null,null,"CJIS - Arrest/Expunction/Fugitive/Misuse ID/Parole/StateXfer - 137","No. of Parole Revocations Rec'd",null,null,null,null,null,null,null,"2015","126","Y","227","Criminal","EACH","OUTPUT","ADOPTEDBUD",null,null,null,"Criminal","Number of Pre-trials Scheduled",null,{"$f":"'Data SBP Measures'!$AF948&'Data SBP Measures'!$AE948& \" - \"& 'Data SBP Measures'!$U948","v":"Number of Pre-trials ScheduledCriminal - 126"},{"$f":"_xlfn.XLOOKUP(VALUE(W948),'Data SBP Programs'!O:O,'Data SBP Programs'!S:S)","v":"Criminal"}]
[{"$f":"'Data SBP Measures'!$AI272&\" - \"&'Data SBP Measures'!$U272","v":"CJIS - Arrest/Expunction/Fugitive/Misuse ID/Parole/StateXfer - 137"},{"$f":"'Data SBP Measures'!$AF272","v":"No. of Parole Wrt. Withdrawals"},{"$f":"'Data SBP Measures'!$T272","v":"1321"},{"$f":"'Data SBP Measures'!$U272&B949","v":"137No. of Parole Wrt. Withdrawals"},{"$f":"'Data SBP Measures'!$Y272","v":"EACH"},null,null,null,null,null,"CJIS - Arrest/Expunction/Fugitive/Misuse ID/Parole/StateXfer - 137","No. of Parole Wrt. Withdrawals",null,null,null,null,null,null,null,"2016","126","Y","227","Criminal","EACH","OUTPUT","ADOPTEDBUD",null,null,null,"Criminal","Number of Criminal Truancy Cases filed (violation sunset 9/1/15)",null,{"$f":"'Data SBP Measures'!$AF949&'Data SBP Measures'!$AE949& \" - \"& 'Data SBP Measures'!$U949","v":"Number of Criminal Truancy Cases filed (violation sunset 9/1/15)Criminal - 126"},{"$f":"_xlfn.XLOOKUP(VALUE(W949),'Data SBP Programs'!O:O,'Data SBP Programs'!S:S)","v":"Criminal"}]
[{"$f":"'Data SBP Measures'!$AI2180&\" - \"&'Data SBP Measures'!$U2180","v":"CJIS - Arrest/Expunction/Fugitive/Misuse ID/Parole/StateXfer - 137"},{"$f":"'Data SBP Measures'!$AF2180","v":"No. of Petitions received"},{"$f":"'Data SBP Measures'!$T2180","v":"2704"},{"$f":"'Data SBP Measures'!$U2180&B950","v":"137No. of Petitions received"},{"$f":"'Data SBP Measures'!$Y2180","v":"EACH"},null,null,null,null,null,"CJIS - Arrest/Expunction/Fugitive/Misuse ID/Parole/StateXfer - 137","No. of Petitions received",null,null,null,null,null,null,null,"2016","126","Y","227","Criminal","EACH","OUTPUT","ADOPTEDBUD",null,null,null,"Criminal","Number of Criminal Truancy Cases filed (violation sunset 9/1/15)",null,{"$f":"'Data SBP Measures'!$AF950&'Data SBP Measures'!$AE950& \" - \"& 'Data SBP Measures'!$U950","v":"Number of Criminal Truancy Cases filed (violation sunset 9/1/15)Criminal - 126"},{"$f":"_xlfn.XLOOKUP(VALUE(W950),'Data SBP Programs'!O:O,'Data SBP Programs'!S:S)","v":"Criminal"}]
[{"$f":"'Data SBP Measures'!$AI2181&\" - \"&'Data SBP Measures'!$U2181","v":"CJIS - Arrest/Expunction/Fugitive/Misuse ID/Parole/StateXfer - 137"},{"$f":"'Data SBP Measures'!$AF2181","v":"No. of Pre-signed Waivers Rec'd"},{"$f":"'Data SBP Measures'!$T2181","v":"2705"},{"$f":"'Data SBP Measures'!$U2181&B951","v":"137No. of Pre-signed Waivers Rec'd"},{"$f":"'Data SBP Measures'!$Y2181","v":"EACH"},null,null,null,null,null,"CJIS - Arrest/Expunction/Fugitive/Misuse ID/Parole/StateXfer - 137","No. of Pre-signed Waivers Rec'd",null,null,null,null,null,null,null,"2016","126","Y","227","Criminal","EACH","OUTPUT","ADOPTEDBUD",null,null,null,"Criminal","Number of Criminal Truancy Cases filed (violation sunset 9/1/15)",null,{"$f":"'Data SBP Measures'!$AF951&'Data SBP Measures'!$AE951& \" - \"& 'Data SBP Measures'!$U951","v":"Number of Criminal Truancy Cases filed (violation sunset 9/1/15)Criminal - 126"},{"$f":"_xlfn.XLOOKUP(VALUE(W951),'Data SBP Programs'!O:O,'Data SBP Programs'!S:S)","v":"Criminal"}]
[{"$f":"'Data SBP Measures'!$AI2182&\" - \"&'Data SBP Measures'!$U2182","v":"CJIS - Arrest/Expunction/Fugitive/Misuse ID/Parole/StateXfer - 137"},{"$f":"'Data SBP Measures'!$AF2182","v":"No. of Research Request"},{"$f":"'Data SBP Measures'!$T2182","v":"2706"},{"$f":"'Data SBP Measures'!$U2182&B952","v":"137No. of Research Request"},{"$f":"'Data SBP Measures'!$Y2182","v":"EACH"},null,null,null,null,null,"CJIS - Arrest/Expunction/Fugitive/Misuse ID/Parole/StateXfer - 137","No. of Research Request",null,null,null,null,null,null,null,"2016","126","Y","227","Criminal","EACH","OUTPUT","ADOPTEDBUD",null,null,null,"Criminal","Number of Criminal Truancy Cases filed (violation sunset 9/1/15)",null,{"$f":"'Data SBP Measures'!$AF952&'Data SBP Measures'!$AE952& \" - \"& 'Data SBP Measures'!$U952","v":"Number of Criminal Truancy Cases filed (violation sunset 9/1/15)Criminal - 126"},{"$f":"_xlfn.XLOOKUP(VALUE(W952),'Data SBP Programs'!O:O,'Data SBP Programs'!S:S)","v":"Criminal"}]
[{"$f":"'Data SBP Measures'!$AI2183&\" - \"&'Data SBP Measures'!$U2183","v":"CJIS - Arrest/Expunction/Fugitive/Misuse ID/Parole/StateXfer - 137"},{"$f":"'Data SBP Measures'!$AF2183","v":"No. of SAFPF Transfers"},{"$f":"'Data SBP Measures'!$T2183","v":"2707"},{"$f":"'Data SBP Measures'!$U2183&B953","v":"137No. of SAFPF Transfers"},{"$f":"'Data SBP Measures'!$Y2183","v":"EACH"},null,null,null,null,null,"CJIS - Arrest/Expunction/Fugitive/Misuse ID/Parole/StateXfer - 137","No. of SAFPF Transfers",null,null,null,null,null,null,null,"2016","126","Y","227","Criminal","EACH","OUTPUT","ADOPTEDBUD",null,null,null,"Criminal","Number of Criminal Truancy Cases filed (violation sunset 9/1/15)",null,{"$f":"'Data SBP Measures'!$AF953&'Data SBP Measures'!$AE953& \" - \"& 'Data SBP Measures'!$U953","v":"Number of Criminal Truancy Cases filed (violation sunset 9/1/15)Criminal - 126"},{"$f":"_xlfn.XLOOKUP(VALUE(W953),'Data SBP Programs'!O:O,'Data SBP Programs'!S:S)","v":"Criminal"}]
[{"$f":"'Data SBP Measures'!$AI268&\" - \"&'Data SBP Measures'!$U268","v":"CJIS - Arrest/Expunction/Fugitive/Misuse ID/Parole/StateXfer - 137"},{"$f":"'Data SBP Measures'!$AF268","v":"No. of Sealing Orders"},{"$f":"'Data SBP Measures'!$T268","v":"1316"},{"$f":"'Data SBP Measures'!$U268&B954","v":"137No. of Sealing Orders"},{"$f":"'Data SBP Measures'!$Y268","v":"EACH"},null,null,null,null,null,"CJIS - Arrest/Expunction/Fugitive/Misuse ID/Parole/StateXfer - 137","No. of Sealing Orders",null,null,null,null,null,null,null,"2017","126","Y","227","Criminal","EACH","OUTPUT","ADOPTEDBUD",null,null,null,"Criminal","Number of Warrants Issued",null,{"$f":"'Data SBP Measures'!$AF954&'Data SBP Measures'!$AE954& \" - \"& 'Data SBP Measures'!$U954","v":"Number of Warrants IssuedCriminal - 126"},{"$f":"_xlfn.XLOOKUP(VALUE(W954),'Data SBP Programs'!O:O,'Data SBP Programs'!S:S)","v":"Criminal"}]
[{"$f":"'Data SBP Measures'!$AI2184&\" - \"&'Data SBP Measures'!$U2184","v":"CJIS - Arrest/Expunction/Fugitive/Misuse ID/Parole/StateXfer - 137"},{"$f":"'Data SBP Measures'!$AF2184","v":"No. of State Jail Transfers"},{"$f":"'Data SBP Measures'!$T2184","v":"2708"},{"$f":"'Data SBP Measures'!$U2184&B955","v":"137No. of State Jail Transfers"},{"$f":"'Data SBP Measures'!$Y2184","v":"EACH"},null,null,null,null,null,"CJIS - Arrest/Expunction/Fugitive/Misuse ID/Parole/StateXfer - 137","No. of State Jail Transfers",null,null,null,null,null,null,null,"2017","126","Y","227","Criminal","EACH","OUTPUT","ADOPTEDBUD",null,null,null,"Criminal","Number of Warrants Issued",null,{"$f":"'Data SBP Measures'!$AF955&'Data SBP Measures'!$AE955& \" - \"& 'Data SBP Measures'!$U955","v":"Number of Warrants IssuedCriminal - 126"},{"$f":"_xlfn.XLOOKUP(VALUE(W955),'Data SBP Programs'!O:O,'Data SBP Programs'!S:S)","v":"Criminal"}]
[{"$f":"'Data SBP Measures'!$AI270&\" - \"&'Data SBP Measures'!$U270","v":"CJIS - Arrest/Expunction/Fugitive/Misuse ID/Parole/StateXfer - 137"},{"$f":"'Data SBP Measures'!$AF270","v":"No. of State Transfers"},{"$f":"'Data SBP Measures'!$T270","v":"1318"},{"$f":"'Data SBP Measures'!$U270&B956","v":"137No. of State Transfers"},{"$f":"'Data SBP Measures'!$Y270","v":"EACH"},null,null,null,null,null,"CJIS - Arrest/Expunction/Fugitive/Misuse ID/Parole/StateXfer - 137","No. of State Transfers",null,null,null,null,null,null,null,"2017","126","Y","227","Criminal","EACH","OUTPUT","ADOPTEDBUD",null,null,null,"Criminal","Number of Warrants Issued",null,{"$f":"'Data SBP Measures'!$AF956&'Data SBP Measures'!$AE956& \" - \"& 'Data SBP Measures'!$U956","v":"Number of Warrants IssuedCriminal - 126"},{"$f":"_xlfn.XLOOKUP(VALUE(W956),'Data SBP Programs'!O:O,'Data SBP Programs'!S:S)","v":"Criminal"}]
[{"$f":"'Data SBP Measures'!$AI2185&\" - \"&'Data SBP Measures'!$U2185","v":"CJIS - Arrest/Expunction/Fugitive/Misuse ID/Parole/StateXfer - 137"},{"$f":"'Data SBP Measures'!$AF2185","v":"No. of Waivers Signed"},{"$f":"'Data SBP Measures'!$T2185","v":"2709"},{"$f":"'Data SBP Measures'!$U2185&B957","v":"137No. of Waivers Signed"},{"$f":"'Data SBP Measures'!$Y2185","v":"EACH"},null,null,null,null,null,"CJIS - Arrest/Expunction/Fugitive/Misuse ID/Parole/StateXfer - 137","No. of Waivers Signed",null,null,null,null,null,null,null,"2017","126","Y","227","Criminal","EACH","OUTPUT","ADOPTEDBUD",null,null,null,"Criminal","Number of Warrants Issued",null,{"$f":"'Data SBP Measures'!$AF957&'Data SBP Measures'!$AE957& \" - \"& 'Data SBP Measures'!$U957","v":"Number of Warrants IssuedCriminal - 126"},{"$f":"_xlfn.XLOOKUP(VALUE(W957),'Data SBP Programs'!O:O,'Data SBP Programs'!S:S)","v":"Criminal"}]
[{"$f":"'Data SBP Measures'!$AI2951&\" - \"&'Data SBP Measures'!$U2951","v":"Classification-Records - CSTU / Property\n - 137"},{"$f":"'Data SBP Measures'!$AF2951","v":"Average Daily Population"},{"$f":"'Data SBP Measures'!$T2951","v":"3474"},{"$f":"'Data SBP Measures'!$U2951&B958","v":"137Average Daily Population"},{"$f":"'Data SBP Measures'!$Y2951","v":"EACH"},null,null,null,null,null,"Classification-Records - CSTU / Property\n - 137","Average Daily Population",null,null,null,null,null,null,null,"2017","126","Y","227","Criminal","EACH","OUTPUT","ADOPTEDBUD",null,null,null,"Criminal","Number of Warrants Issued",null,{"$f":"'Data SBP Measures'!$AF958&'Data SBP Measures'!$AE958& \" - \"& 'Data SBP Measures'!$U958","v":"Number of Warrants IssuedCriminal - 126"},{"$f":"_xlfn.XLOOKUP(VALUE(W958),'Data SBP Programs'!O:O,'Data SBP Programs'!S:S)","v":"Criminal"}]
[{"$f":"'Data SBP Measures'!$AI2956&\" - \"&'Data SBP Measures'!$U2956","v":"Classification-Records - CSTU / Property\n - 137"},{"$f":"'Data SBP Measures'!$AF2956","v":"MH ADP % - YRLY"},{"$f":"'Data SBP Measures'!$T2956","v":"3479"},{"$f":"'Data SBP Measures'!$U2956&B959","v":"137MH ADP % - YRLY"},{"$f":"'Data SBP Measures'!$Y2956","v":"PERCENT"},null,null,null,null,null,"Classification-Records - CSTU / Property\n - 137","MH ADP % - YRLY",null,null,null,null,null,null,null,"2018","126","Y","227","Criminal","EACH","OUTPUT","ADOPTEDBUD",null,null,null,"Criminal","Number of cases sent to Omni",null,{"$f":"'Data SBP Measures'!$AF959&'Data SBP Measures'!$AE959& \" - \"& 'Data SBP Measures'!$U959","v":"Number of cases sent to OmniCriminal - 126"},{"$f":"_xlfn.XLOOKUP(VALUE(W959),'Data SBP Programs'!O:O,'Data SBP Programs'!S:S)","v":"Criminal"}]
[{"$f":"'Data SBP Measures'!$AI2953&\" - \"&'Data SBP Measures'!$U2953","v":"Classification-Records - CSTU / Property\n - 137"},{"$f":"'Data SBP Measures'!$AF2953","v":"MH ADP Female"},{"$f":"'Data SBP Measures'!$T2953","v":"3476"},{"$f":"'Data SBP Measures'!$U2953&B960","v":"137MH ADP Female"},{"$f":"'Data SBP Measures'!$Y2953","v":"EACH"},null,null,null,null,null,"Classification-Records - CSTU / Property\n - 137","MH ADP Female",null,null,null,null,null,null,null,"2018","126","Y","227","Criminal","EACH","OUTPUT","ADOPTEDBUD",null,null,null,"Criminal","Number of cases sent to Omni",null,{"$f":"'Data SBP Measures'!$AF960&'Data SBP Measures'!$AE960& \" - \"& 'Data SBP Measures'!$U960","v":"Number of cases sent to OmniCriminal - 126"},{"$f":"_xlfn.XLOOKUP(VALUE(W960),'Data SBP Programs'!O:O,'Data SBP Programs'!S:S)","v":"Criminal"}]
[{"$f":"'Data SBP Measures'!$AI2954&\" - \"&'Data SBP Measures'!$U2954","v":"Classification-Records - CSTU / Property\n - 137"},{"$f":"'Data SBP Measures'!$AF2954","v":"MH ADP Male"},{"$f":"'Data SBP Measures'!$T2954","v":"3477"},{"$f":"'Data SBP Measures'!$U2954&B961","v":"137MH ADP Male"},{"$f":"'Data SBP Measures'!$Y2954","v":"EACH"},null,null,null,null,null,"Classification-Records - CSTU / Property\n - 137","MH ADP Male",null,null,null,null,null,null,null,"2018","126","Y","227","Criminal","EACH","OUTPUT","ADOPTEDBUD",null,null,null,"Criminal","Number of cases sent to Omni",null,{"$f":"'Data SBP Measures'!$AF961&'Data SBP Measures'!$AE961& \" - \"& 'Data SBP Measures'!$U961","v":"Number of cases sent to OmniCriminal - 126"},{"$f":"_xlfn.XLOOKUP(VALUE(W961),'Data SBP Programs'!O:O,'Data SBP Programs'!S:S)","v":"Criminal"}]
[{"$f":"'Data SBP Measures'!$AI2955&\" - \"&'Data SBP Measures'!$U2955","v":"Classification-Records - CSTU / Property\n - 137"},{"$f":"'Data SBP Measures'!$AF2955","v":"MH ADP TOTAL - AVERAGE"},{"$f":"'Data SBP Measures'!$T2955","v":"3478"},{"$f":"'Data SBP Measures'!$U2955&B962","v":"137MH ADP TOTAL - AVERAGE"},{"$f":"'Data SBP Measures'!$Y2955","v":"EACH"},null,null,null,null,null,"Classification-Records - CSTU / Property\n - 137","MH ADP TOTAL - AVERAGE",null,null,null,null,null,null,null,"2018","126","Y","227","Criminal","EACH","OUTPUT","ADOPTEDBUD",null,null,null,"Criminal","Number of cases sent to Omni",null,{"$f":"'Data SBP Measures'!$AF962&'Data SBP Measures'!$AE962& \" - \"& 'Data SBP Measures'!$U962","v":"Number of cases sent to OmniCriminal - 126"},{"$f":"_xlfn.XLOOKUP(VALUE(W962),'Data SBP Programs'!O:O,'Data SBP Programs'!S:S)","v":"Criminal"}]
[{"$f":"'Data SBP Measures'!$AI276&\" - \"&'Data SBP Measures'!$U276","v":"Classification-Records - CSTU / Property\n - 137"},{"$f":"'Data SBP Measures'!$AF276","v":"No. JMT inmate reviews"},{"$f":"'Data SBP Measures'!$T276","v":"1329"},{"$f":"'Data SBP Measures'!$U276&B963","v":"137No. JMT inmate reviews"},{"$f":"'Data SBP Measures'!$Y276","v":"EACH"},null,null,null,null,null,"Classification-Records - CSTU / Property\n - 137","No. JMT inmate reviews",null,null,null,null,null,null,null,"2018","126","Y","227","Criminal","EACH","OUTPUT","ADOPTEDBUD",null,null,null,"Criminal","Number of cases sent to Omni",null,{"$f":"'Data SBP Measures'!$AF963&'Data SBP Measures'!$AE963& \" - \"& 'Data SBP Measures'!$U963","v":"Number of cases sent to OmniCriminal - 126"},{"$f":"_xlfn.XLOOKUP(VALUE(W963),'Data SBP Programs'!O:O,'Data SBP Programs'!S:S)","v":"Criminal"}]
[{"$f":"'Data SBP Measures'!$AI451&\" - \"&'Data SBP Measures'!$U451","v":"Classification-Records - CSTU / Property\n - 137"},{"$f":"'Data SBP Measures'!$AF451","v":"No. of arrests processed"},{"$f":"'Data SBP Measures'!$T451","v":"1477"},{"$f":"'Data SBP Measures'!$U451&B964","v":"137No. of arrests processed"},{"$f":"'Data SBP Measures'!$Y451","v":"EACH"},null,null,null,null,null,"Classification-Records - CSTU / Property\n - 137","No. of arrests processed",null,null,null,null,null,null,null,"2019","126","Y","227","Criminal","EACH","OUTPUT","ADOPTEDBUD",null,null,null,"Criminal","Number of Toll cases filed",null,{"$f":"'Data SBP Measures'!$AF964&'Data SBP Measures'!$AE964& \" - \"& 'Data SBP Measures'!$U964","v":"Number of Toll cases filedCriminal - 126"},{"$f":"_xlfn.XLOOKUP(VALUE(W964),'Data SBP Programs'!O:O,'Data SBP Programs'!S:S)","v":"Criminal"}]
[{"$f":"'Data SBP Measures'!$AI277&\" - \"&'Data SBP Measures'!$U277","v":"Classification-Records - CSTU / Property\n - 137"},{"$f":"'Data SBP Measures'!$AF277","v":"No. of Bldg to Bldg inmate moves"},{"$f":"'Data SBP Measures'!$T277","v":"1330"},{"$f":"'Data SBP Measures'!$U277&B965","v":"137No. of Bldg to Bldg inmate moves"},{"$f":"'Data SBP Measures'!$Y277","v":"EACH"},null,null,null,null,null,"Classification-Records - CSTU / Property\n - 137","No. of Bldg to Bldg inmate moves",null,null,null,null,null,null,null,"2019","126","Y","227","Criminal","EACH","OUTPUT","ADOPTEDBUD",null,null,null,"Criminal","Number of Toll cases filed",null,{"$f":"'Data SBP Measures'!$AF965&'Data SBP Measures'!$AE965& \" - \"& 'Data SBP Measures'!$U965","v":"Number of Toll cases filedCriminal - 126"},{"$f":"_xlfn.XLOOKUP(VALUE(W965),'Data SBP Programs'!O:O,'Data SBP Programs'!S:S)","v":"Criminal"}]
[{"$f":"'Data SBP Measures'!$AI452&\" - \"&'Data SBP Measures'!$U452","v":"Classification-Records - CSTU / Property\n - 137"},{"$f":"'Data SBP Measures'!$AF452","v":"No. of bonds processed"},{"$f":"'Data SBP Measures'!$T452","v":"1478"},{"$f":"'Data SBP Measures'!$U452&B966","v":"137No. of bonds processed"},{"$f":"'Data SBP Measures'!$Y452","v":"EACH"},null,null,null,null,null,"Classification-Records - CSTU / Property\n - 137","No. of bonds processed",null,null,null,null,null,null,null,"2019","126","Y","227","Criminal","EACH","OUTPUT","ADOPTEDBUD",null,null,null,"Criminal","Number of Toll cases filed",null,{"$f":"'Data SBP Measures'!$AF966&'Data SBP Measures'!$AE966& \" - \"& 'Data SBP Measures'!$U966","v":"Number of Toll cases filedCriminal - 126"},{"$f":"_xlfn.XLOOKUP(VALUE(W966),'Data SBP Programs'!O:O,'Data SBP Programs'!S:S)","v":"Criminal"}]
[{"$f":"'Data SBP Measures'!$AI278&\" - \"&'Data SBP Measures'!$U278","v":"Classification-Records - CSTU / Property\n - 137"},{"$f":"'Data SBP Measures'!$AF278","v":"No. of in-house moves"},{"$f":"'Data SBP Measures'!$T278","v":"1331"},{"$f":"'Data SBP Measures'!$U278&B967","v":"137No. of in-house moves"},{"$f":"'Data SBP Measures'!$Y278","v":"EACH"},null,null,null,null,null,"Classification-Records - CSTU / Property\n - 137","No. of in-house moves",null,null,null,null,null,null,null,"2019","126","Y","227","Criminal","EACH","OUTPUT","ADOPTEDBUD",null,null,null,"Criminal","Number of Toll cases filed",null,{"$f":"'Data SBP Measures'!$AF967&'Data SBP Measures'!$AE967& \" - \"& 'Data SBP Measures'!$U967","v":"Number of Toll cases filedCriminal - 126"},{"$f":"_xlfn.XLOOKUP(VALUE(W967),'Data SBP Programs'!O:O,'Data SBP Programs'!S:S)","v":"Criminal"}]
[{"$f":"'Data SBP Measures'!$AI284&\" - \"&'Data SBP Measures'!$U284","v":"Classification-Records - CSTU / Property\n - 137"},{"$f":"'Data SBP Measures'!$AF284","v":"No. of inmate PREA interviews"},{"$f":"'Data SBP Measures'!$T284","v":"1337"},{"$f":"'Data SBP Measures'!$U284&B968","v":"137No. of inmate PREA interviews"},{"$f":"'Data SBP Measures'!$Y284","v":"EACH"},null,null,null,null,null,"Classification-Records - CSTU / Property\n - 137","No. of inmate PREA interviews",null,null,null,null,null,null,null,"2019","126","Y","227","Criminal","EACH","OUTPUT","ADOPTEDBUD",null,null,null,"Criminal","Number of Toll cases filed",null,{"$f":"'Data SBP Measures'!$AF968&'Data SBP Measures'!$AE968& \" - \"& 'Data SBP Measures'!$U968","v":"Number of Toll cases filedCriminal - 126"},{"$f":"_xlfn.XLOOKUP(VALUE(W968),'Data SBP Programs'!O:O,'Data SBP Programs'!S:S)","v":"Criminal"}]
[{"$f":"'Data SBP Measures'!$AI285&\" - \"&'Data SBP Measures'!$U285","v":"Classification-Records - CSTU / Property\n - 137"},{"$f":"'Data SBP Measures'!$AF285","v":"No. of inmate reclasses due to PREA"},{"$f":"'Data SBP Measures'!$T285","v":"1338"},{"$f":"'Data SBP Measures'!$U285&B969","v":"137No. of inmate reclasses due to PREA"},{"$f":"'Data SBP Measures'!$Y285","v":"EACH"},null,null,null,null,null,"Classification-Records - CSTU / Property\n - 137","No. of inmate reclasses due to PREA",null,null,null,null,null,null,null,"2020","126","Y","227","Criminal","EACH","OUTPUT","ADOPTEDBUD",null,null,null,"Criminal","Pieces of mail processed (New)",null,{"$f":"'Data SBP Measures'!$AF969&'Data SBP Measures'!$AE969& \" - \"& 'Data SBP Measures'!$U969","v":"Pieces of mail processed (New)Criminal - 126"},{"$f":"_xlfn.XLOOKUP(VALUE(W969),'Data SBP Programs'!O:O,'Data SBP Programs'!S:S)","v":"Criminal"}]
[{"$f":"'Data SBP Measures'!$AI279&\" - \"&'Data SBP Measures'!$U279","v":"Classification-Records - CSTU / Property\n - 137"},{"$f":"'Data SBP Measures'!$AF279","v":"No. of inmates classified"},{"$f":"'Data SBP Measures'!$T279","v":"1332"},{"$f":"'Data SBP Measures'!$U279&B970","v":"137No. of inmates classified"},{"$f":"'Data SBP Measures'!$Y279","v":"EACH"},null,null,null,null,null,"Classification-Records - CSTU / Property\n - 137","No. of inmates classified",null,null,null,null,null,null,null,"2020","126","Y","227","Criminal","EACH","OUTPUT","ADOPTEDBUD",null,null,null,"Criminal","Pieces of mail processed (New)",null,{"$f":"'Data SBP Measures'!$AF970&'Data SBP Measures'!$AE970& \" - \"& 'Data SBP Measures'!$U970","v":"Pieces of mail processed (New)Criminal - 126"},{"$f":"_xlfn.XLOOKUP(VALUE(W970),'Data SBP Programs'!O:O,'Data SBP Programs'!S:S)","v":"Criminal"}]
[{"$f":"'Data SBP Measures'!$AI2187&\" - \"&'Data SBP Measures'!$U2187","v":"Classification-Records - CSTU / Property\n - 137"},{"$f":"'Data SBP Measures'!$AF2187","v":"No. of new PREA allegations/incidents reported"},{"$f":"'Data SBP Measures'!$T2187","v":"2710"},{"$f":"'Data SBP Measures'!$U2187&B971","v":"137No. of new PREA allegations/incidents reported"},{"$f":"'Data SBP Measures'!$Y2187","v":"EACH"},null,null,null,null,null,"Classification-Records - CSTU / Property\n - 137","No. of new PREA allegations/incidents reported",null,null,null,null,null,null,null,"2020","126","Y","227","Criminal","EACH","OUTPUT","ADOPTEDBUD",null,null,null,"Criminal","Pieces of mail processed (New)",null,{"$f":"'Data SBP Measures'!$AF971&'Data SBP Measures'!$AE971& \" - \"& 'Data SBP Measures'!$U971","v":"Pieces of mail processed (New)Criminal - 126"},{"$f":"_xlfn.XLOOKUP(VALUE(W971),'Data SBP Programs'!O:O,'Data SBP Programs'!S:S)","v":"Criminal"}]
[{"$f":"'Data SBP Measures'!$AI2188&\" - \"&'Data SBP Measures'!$U2188","v":"Classification-Records - CSTU / Property\n - 137"},{"$f":"'Data SBP Measures'!$AF2188","v":"No. of PREA investigations completed"},{"$f":"'Data SBP Measures'!$T2188","v":"2711"},{"$f":"'Data SBP Measures'!$U2188&B972","v":"137No. of PREA investigations completed"},{"$f":"'Data SBP Measures'!$Y2188","v":"EACH"},null,null,null,null,null,"Classification-Records - CSTU / Property\n - 137","No. of PREA investigations completed",null,null,null,null,null,null,null,"2020","126","Y","227","Criminal","EACH","OUTPUT","ADOPTEDBUD",null,null,null,"Criminal","Pieces of mail processed (New)",null,{"$f":"'Data SBP Measures'!$AF972&'Data SBP Measures'!$AE972& \" - \"& 'Data SBP Measures'!$U972","v":"Pieces of mail processed (New)Criminal - 126"},{"$f":"_xlfn.XLOOKUP(VALUE(W972),'Data SBP Programs'!O:O,'Data SBP Programs'!S:S)","v":"Criminal"}]
[{"$f":"'Data SBP Measures'!$AI453&\" - \"&'Data SBP Measures'!$U453","v":"Classification-Records - CSTU / Property\n - 137"},{"$f":"'Data SBP Measures'!$AF453","v":"No. of releases processed"},{"$f":"'Data SBP Measures'!$T453","v":"1479"},{"$f":"'Data SBP Measures'!$U453&B973","v":"137No. of releases processed"},{"$f":"'Data SBP Measures'!$Y453","v":"EACH"},null,null,null,null,null,"Classification-Records - CSTU / Property\n - 137","No. of releases processed",null,null,null,null,null,null,null,"2020","126","Y","227","Criminal","EACH","OUTPUT","ADOPTEDBUD",null,null,null,"Criminal","Pieces of mail processed (New)",null,{"$f":"'Data SBP Measures'!$AF973&'Data SBP Measures'!$AE973& \" - \"& 'Data SBP Measures'!$U973","v":"Pieces of mail processed (New)Criminal - 126"},{"$f":"_xlfn.XLOOKUP(VALUE(W973),'Data SBP Programs'!O:O,'Data SBP Programs'!S:S)","v":"Criminal"}]
[{"$f":"'Data SBP Measures'!$AI2189&\" - \"&'Data SBP Measures'!$U2189","v":"Classification-Records - CSTU / Property\n - 137"},{"$f":"'Data SBP Measures'!$AF2189","v":"No. of substantiated cases of sexual abuse"},{"$f":"'Data SBP Measures'!$T2189","v":"2712"},{"$f":"'Data SBP Measures'!$U2189&B974","v":"137No. of substantiated cases of sexual abuse"},{"$f":"'Data SBP Measures'!$Y2189","v":"EACH"},null,null,null,null,null,"Classification-Records - CSTU / Property\n - 137","No. of substantiated cases of sexual abuse",null,null,null,null,null,null,null,"2021","126","Y","227","Criminal","EACH","OUTPUT","ADOPTEDBUD",null,null,null,"Criminal","Number of telephone calls received (New)",null,{"$f":"'Data SBP Measures'!$AF974&'Data SBP Measures'!$AE974& \" - \"& 'Data SBP Measures'!$U974","v":"Number of telephone calls received (New)Criminal - 126"},{"$f":"_xlfn.XLOOKUP(VALUE(W974),'Data SBP Programs'!O:O,'Data SBP Programs'!S:S)","v":"Criminal"}]
[{"$f":"'Data SBP Measures'!$AI2952&\" - \"&'Data SBP Measures'!$U2952","v":"Classification-Records - CSTU / Property\n - 137"},{"$f":"'Data SBP Measures'!$AF2952","v":"Pop count of last day of FY"},{"$f":"'Data SBP Measures'!$T2952","v":"3475"},{"$f":"'Data SBP Measures'!$U2952&B975","v":"137Pop count of last day of FY"},{"$f":"'Data SBP Measures'!$Y2952","v":"EACH"},null,null,null,null,null,"Classification-Records - CSTU / Property\n - 137","Pop count of last day of FY",null,null,null,null,null,null,null,"2021","126","Y","227","Criminal","EACH","OUTPUT","ADOPTEDBUD",null,null,null,"Criminal","Number of telephone calls received (New)",null,{"$f":"'Data SBP Measures'!$AF975&'Data SBP Measures'!$AE975& \" - \"& 'Data SBP Measures'!$U975","v":"Number of telephone calls received (New)Criminal - 126"},{"$f":"_xlfn.XLOOKUP(VALUE(W975),'Data SBP Programs'!O:O,'Data SBP Programs'!S:S)","v":"Criminal"}]
[{"$f":"'Data SBP Measures'!$AI280&\" - \"&'Data SBP Measures'!$U280","v":"Classification-Records - CSTU / Property\n - 137"},{"$f":"'Data SBP Measures'!$AF280","v":"Transfer CBF - TCCC"},{"$f":"'Data SBP Measures'!$T280","v":"1333"},{"$f":"'Data SBP Measures'!$U280&B976","v":"137Transfer CBF - TCCC"},{"$f":"'Data SBP Measures'!$Y280","v":"EACH"},null,null,null,null,null,"Classification-Records - CSTU / Property\n - 137","Transfer CBF - TCCC",null,null,null,null,null,null,null,"2021","126","Y","227","Criminal","EACH","OUTPUT","ADOPTEDBUD",null,null,null,"Criminal","Number of telephone calls received (New)",null,{"$f":"'Data SBP Measures'!$AF976&'Data SBP Measures'!$AE976& \" - \"& 'Data SBP Measures'!$U976","v":"Number of telephone calls received (New)Criminal - 126"},{"$f":"_xlfn.XLOOKUP(VALUE(W976),'Data SBP Programs'!O:O,'Data SBP Programs'!S:S)","v":"Criminal"}]
[{"$f":"'Data SBP Measures'!$AI281&\" - \"&'Data SBP Measures'!$U281","v":"Classification-Records - CSTU / Property\n - 137"},{"$f":"'Data SBP Measures'!$AF281","v":"Transfer CBF – TCJ"},{"$f":"'Data SBP Measures'!$T281","v":"1334"},{"$f":"'Data SBP Measures'!$U281&B977","v":"137Transfer CBF – TCJ"},{"$f":"'Data SBP Measures'!$Y281","v":"EACH"},null,null,null,null,null,"Classification-Records - CSTU / Property\n - 137","Transfer CBF – TCJ",null,null,null,null,null,null,null,"2021","126","Y","227","Criminal","EACH","OUTPUT","ADOPTEDBUD",null,null,null,"Criminal","Number of telephone calls received (New)",null,{"$f":"'Data SBP Measures'!$AF977&'Data SBP Measures'!$AE977& \" - \"& 'Data SBP Measures'!$U977","v":"Number of telephone calls received (New)Criminal - 126"},{"$f":"_xlfn.XLOOKUP(VALUE(W977),'Data SBP Programs'!O:O,'Data SBP Programs'!S:S)","v":"Criminal"}]
[{"$f":"'Data SBP Measures'!$AI282&\" - \"&'Data SBP Measures'!$U282","v":"Classification-Records - CSTU / Property\n - 137"},{"$f":"'Data SBP Measures'!$AF282","v":"Transfer TCCC – TCJ"},{"$f":"'Data SBP Measures'!$T282","v":"1335"},{"$f":"'Data SBP Measures'!$U282&B978","v":"137Transfer TCCC – TCJ"},{"$f":"'Data SBP Measures'!$Y282","v":"EACH"},null,null,null,null,null,"Classification-Records - CSTU / Property\n - 137","Transfer TCCC – TCJ",null,null,null,null,null,null,null,"2021","126","Y","227","Criminal","EACH","OUTPUT","ADOPTEDBUD",null,null,null,"Criminal","Number of telephone calls received (New)",null,{"$f":"'Data SBP Measures'!$AF978&'Data SBP Measures'!$AE978& \" - \"& 'Data SBP Measures'!$U978","v":"Number of telephone calls received (New)Criminal - 126"},{"$f":"_xlfn.XLOOKUP(VALUE(W978),'Data SBP Programs'!O:O,'Data SBP Programs'!S:S)","v":"Criminal"}]
[{"$f":"'Data SBP Measures'!$AI283&\" - \"&'Data SBP Measures'!$U283","v":"Classification-Records - CSTU / Property\n - 137"},{"$f":"'Data SBP Measures'!$AF283","v":"Transfer TCJ – TCCC"},{"$f":"'Data SBP Measures'!$T283","v":"1336"},{"$f":"'Data SBP Measures'!$U283&B979","v":"137Transfer TCJ – TCCC"},{"$f":"'Data SBP Measures'!$Y283","v":"EACH"},null,null,null,null,null,"Classification-Records - CSTU / Property\n - 137","Transfer TCJ – TCCC",null,null,null,null,null,null,null,"2022","126","Y","227","Criminal","EACH","OUTPUT","ADOPTEDBUD",null,null,null,"Criminal","Number of faxes/emails received for processing (New)",null,{"$f":"'Data SBP Measures'!$AF979&'Data SBP Measures'!$AE979& \" - \"& 'Data SBP Measures'!$U979","v":"Number of faxes/emails received for processing (New)Criminal - 126"},{"$f":"_xlfn.XLOOKUP(VALUE(W979),'Data SBP Programs'!O:O,'Data SBP Programs'!S:S)","v":"Criminal"}]
[{"$f":"'Data SBP Measures'!$AI2728&\" - \"&'Data SBP Measures'!$U2728","v":"Clinical Performance and Education - 159"},{"$f":"'Data SBP Measures'!$AF2728","v":"# of coordination meetings with City of Austin EMS/OMD"},{"$f":"'Data SBP Measures'!$T2728","v":"3334"},{"$f":"'Data SBP Measures'!$U2728&B980","v":"159# of coordination meetings with City of Austin EMS/OMD"},{"$f":"'Data SBP Measures'!$Y2728","v":"EACH"},null,null,null,null,null,"Clinical Performance and Education - 159","# of coordination meetings with City of Austin EMS/OMD",null,null,null,null,null,null,null,"2022","126","Y","227","Criminal","EACH","OUTPUT","ADOPTEDBUD",null,null,null,"Criminal","Number of faxes/emails received for processing (New)",null,{"$f":"'Data SBP Measures'!$AF980&'Data SBP Measures'!$AE980& \" - \"& 'Data SBP Measures'!$U980","v":"Number of faxes/emails received for processing (New)Criminal - 126"},{"$f":"_xlfn.XLOOKUP(VALUE(W980),'Data SBP Programs'!O:O,'Data SBP Programs'!S:S)","v":"Criminal"}]
[{"$f":"'Data SBP Measures'!$AI2729&\" - \"&'Data SBP Measures'!$U2729","v":"Clinical Performance and Education - 159"},{"$f":"'Data SBP Measures'!$AF2729","v":"# of coordination meetings with City of Austin EMS/OMD"},{"$f":"'Data SBP Measures'!$T2729","v":"3334"},{"$f":"'Data SBP Measures'!$U2729&B981","v":"159# of coordination meetings with City of Austin EMS/OMD"},{"$f":"'Data SBP Measures'!$Y2729","v":"EACH"},null,null,null,null,null,"Clinical Performance and Education - 159","# of coordination meetings with City of Austin EMS/OMD",null,null,null,null,null,null,null,"2022","126","Y","227","Criminal","EACH","OUTPUT","ADOPTEDBUD",null,null,null,"Criminal","Number of faxes/emails received for processing (New)",null,{"$f":"'Data SBP Measures'!$AF981&'Data SBP Measures'!$AE981& \" - \"& 'Data SBP Measures'!$U981","v":"Number of faxes/emails received for processing (New)Criminal - 126"},{"$f":"_xlfn.XLOOKUP(VALUE(W981),'Data SBP Programs'!O:O,'Data SBP Programs'!S:S)","v":"Criminal"}]
[{"$f":"'Data SBP Measures'!$AI2730&\" - \"&'Data SBP Measures'!$U2730","v":"Clinical Performance and Education - 159"},{"$f":"'Data SBP Measures'!$AF2730","v":"# of coordination meetings with City of Austin EMS/OMD"},{"$f":"'Data SBP Measures'!$T2730","v":"3334"},{"$f":"'Data SBP Measures'!$U2730&B982","v":"159# of coordination meetings with City of Austin EMS/OMD"},{"$f":"'Data SBP Measures'!$Y2730","v":"EACH"},null,null,null,null,null,"Clinical Performance and Education - 159","# of coordination meetings with City of Austin EMS/OMD",null,null,null,null,null,null,null,"2022","126","Y","227","Criminal","EACH","OUTPUT","ADOPTEDBUD",null,null,null,"Criminal","Number of faxes/emails received for processing (New)",null,{"$f":"'Data SBP Measures'!$AF982&'Data SBP Measures'!$AE982& \" - \"& 'Data SBP Measures'!$U982","v":"Number of faxes/emails received for processing (New)Criminal - 126"},{"$f":"_xlfn.XLOOKUP(VALUE(W982),'Data SBP Programs'!O:O,'Data SBP Programs'!S:S)","v":"Criminal"}]
[{"$f":"'Data SBP Measures'!$AI2731&\" - \"&'Data SBP Measures'!$U2731","v":"Clinical Performance and Education - 159"},{"$f":"'Data SBP Measures'!$AF2731","v":"# of coordination meetings with City of Austin EMS/OMD"},{"$f":"'Data SBP Measures'!$T2731","v":"3334"},{"$f":"'Data SBP Measures'!$U2731&B983","v":"159# of coordination meetings with City of Austin EMS/OMD"},{"$f":"'Data SBP Measures'!$Y2731","v":"EACH"},null,null,null,null,null,"Clinical Performance and Education - 159","# of coordination meetings with City of Austin EMS/OMD",null,null,null,null,null,null,null,"2022","126","Y","227","Criminal","EACH","OUTPUT","ADOPTEDBUD",null,null,null,"Criminal","Number of faxes/emails received for processing (New)",null,{"$f":"'Data SBP Measures'!$AF983&'Data SBP Measures'!$AE983& \" - \"& 'Data SBP Measures'!$U983","v":"Number of faxes/emails received for processing (New)Criminal - 126"},{"$f":"_xlfn.XLOOKUP(VALUE(W983),'Data SBP Programs'!O:O,'Data SBP Programs'!S:S)","v":"Criminal"}]
[{"$f":"'Data SBP Measures'!$AI2732&\" - \"&'Data SBP Measures'!$U2732","v":"Clinical Performance and Education - 159"},{"$f":"'Data SBP Measures'!$AF2732","v":"# of multi-agency training events"},{"$f":"'Data SBP Measures'!$T2732","v":"3335"},{"$f":"'Data SBP Measures'!$U2732&B984","v":"159# of multi-agency training events"},{"$f":"'Data SBP Measures'!$Y2732","v":"EACH"},null,null,null,null,null,"Clinical Performance and Education - 159","# of multi-agency training events",null,null,null,null,null,null,null,"2023","126","Y","227","Criminal","EACH","OUTPUT","ADOPTEDBUD",null,null,null,"Criminal","Number of motions filed (New)",null,{"$f":"'Data SBP Measures'!$AF984&'Data SBP Measures'!$AE984& \" - \"& 'Data SBP Measures'!$U984","v":"Number of motions filed (New)Criminal - 126"},{"$f":"_xlfn.XLOOKUP(VALUE(W984),'Data SBP Programs'!O:O,'Data SBP Programs'!S:S)","v":"Criminal"}]
[{"$f":"'Data SBP Measures'!$AI2733&\" - \"&'Data SBP Measures'!$U2733","v":"Clinical Performance and Education - 159"},{"$f":"'Data SBP Measures'!$AF2733","v":"# of multi-agency training events"},{"$f":"'Data SBP Measures'!$T2733","v":"3335"},{"$f":"'Data SBP Measures'!$U2733&B985","v":"159# of multi-agency training events"},{"$f":"'Data SBP Measures'!$Y2733","v":"EACH"},null,null,null,null,null,"Clinical Performance and Education - 159","# of multi-agency training events",null,null,null,null,null,null,null,"2023","126","Y","227","Criminal","EACH","OUTPUT","ADOPTEDBUD",null,null,null,"Criminal","Number of motions filed (New)",null,{"$f":"'Data SBP Measures'!$AF985&'Data SBP Measures'!$AE985& \" - \"& 'Data SBP Measures'!$U985","v":"Number of motions filed (New)Criminal - 126"},{"$f":"_xlfn.XLOOKUP(VALUE(W985),'Data SBP Programs'!O:O,'Data SBP Programs'!S:S)","v":"Criminal"}]
[{"$f":"'Data SBP Measures'!$AI2734&\" - \"&'Data SBP Measures'!$U2734","v":"Clinical Performance and Education - 159"},{"$f":"'Data SBP Measures'!$AF2734","v":"# of multi-agency training events"},{"$f":"'Data SBP Measures'!$T2734","v":"3335"},{"$f":"'Data SBP Measures'!$U2734&B986","v":"159# of multi-agency training events"},{"$f":"'Data SBP Measures'!$Y2734","v":"EACH"},null,null,null,null,null,"Clinical Performance and Education - 159","# of multi-agency training events",null,null,null,null,null,null,null,"2023","126","Y","227","Criminal","EACH","OUTPUT","ADOPTEDBUD",null,null,null,"Criminal","Number of motions filed (New)",null,{"$f":"'Data SBP Measures'!$AF986&'Data SBP Measures'!$AE986& \" - \"& 'Data SBP Measures'!$U986","v":"Number of motions filed (New)Criminal - 126"},{"$f":"_xlfn.XLOOKUP(VALUE(W986),'Data SBP Programs'!O:O,'Data SBP Programs'!S:S)","v":"Criminal"}]
[{"$f":"'Data SBP Measures'!$AI2735&\" - \"&'Data SBP Measures'!$U2735","v":"Clinical Performance and Education - 159"},{"$f":"'Data SBP Measures'!$AF2735","v":"# of multi-agency training events"},{"$f":"'Data SBP Measures'!$T2735","v":"3335"},{"$f":"'Data SBP Measures'!$U2735&B987","v":"159# of multi-agency training events"},{"$f":"'Data SBP Measures'!$Y2735","v":"EACH"},null,null,null,null,null,"Clinical Performance and Education - 159","# of multi-agency training events",null,null,null,null,null,null,null,"2023","126","Y","227","Criminal","EACH","OUTPUT","ADOPTEDBUD",null,null,null,"Criminal","Number of motions filed (New)",null,{"$f":"'Data SBP Measures'!$AF987&'Data SBP Measures'!$AE987& \" - \"& 'Data SBP Measures'!$U987","v":"Number of motions filed (New)Criminal - 126"},{"$f":"_xlfn.XLOOKUP(VALUE(W987),'Data SBP Programs'!O:O,'Data SBP Programs'!S:S)","v":"Criminal"}]
[{"$f":"'Data SBP Measures'!$AI2720&\" - \"&'Data SBP Measures'!$U2720","v":"Clinical Performance and Education - 159"},{"$f":"'Data SBP Measures'!$AF2720","v":"# of providers credentialed"},{"$f":"'Data SBP Measures'!$T2720","v":"3332"},{"$f":"'Data SBP Measures'!$U2720&B988","v":"159# of providers credentialed"},{"$f":"'Data SBP Measures'!$Y2720","v":"EACH"},null,null,null,null,null,"Clinical Performance and Education - 159","# of providers credentialed",null,null,null,null,null,null,null,"2023","126","Y","227","Criminal","EACH","OUTPUT","ADOPTEDBUD",null,null,null,"Criminal","Number of motions filed (New)",null,{"$f":"'Data SBP Measures'!$AF988&'Data SBP Measures'!$AE988& \" - \"& 'Data SBP Measures'!$U988","v":"Number of motions filed (New)Criminal - 126"},{"$f":"_xlfn.XLOOKUP(VALUE(W988),'Data SBP Programs'!O:O,'Data SBP Programs'!S:S)","v":"Criminal"}]
[{"$f":"'Data SBP Measures'!$AI2721&\" - \"&'Data SBP Measures'!$U2721","v":"Clinical Performance and Education - 159"},{"$f":"'Data SBP Measures'!$AF2721","v":"# of providers credentialed"},{"$f":"'Data SBP Measures'!$T2721","v":"3332"},{"$f":"'Data SBP Measures'!$U2721&B989","v":"159# of providers credentialed"},{"$f":"'Data SBP Measures'!$Y2721","v":"EACH"},null,null,null,null,null,"Clinical Performance and Education - 159","# of providers credentialed",null,null,null,null,null,null,null,"2024","126","Y","227","Criminal","EACH","OUTCOME","ADOPTEDBUD",null,null,null,"Criminal","Number of cases sent to Collections (New)",null,{"$f":"'Data SBP Measures'!$AF989&'Data SBP Measures'!$AE989& \" - \"& 'Data SBP Measures'!$U989","v":"Number of cases sent to Collections (New)Criminal - 126"},{"$f":"_xlfn.XLOOKUP(VALUE(W989),'Data SBP Programs'!O:O,'Data SBP Programs'!S:S)","v":"Criminal"}]
[{"$f":"'Data SBP Measures'!$AI2722&\" - \"&'Data SBP Measures'!$U2722","v":"Clinical Performance and Education - 159"},{"$f":"'Data SBP Measures'!$AF2722","v":"# of providers credentialed"},{"$f":"'Data SBP Measures'!$T2722","v":"3332"},{"$f":"'Data SBP Measures'!$U2722&B990","v":"159# of providers credentialed"},{"$f":"'Data SBP Measures'!$Y2722","v":"EACH"},null,null,null,null,null,"Clinical Performance and Education - 159","# of providers credentialed",null,null,null,null,null,null,null,"2024","126","Y","227","Criminal","EACH","OUTCOME","ADOPTEDBUD",null,null,null,"Criminal","Number of cases sent to Collections (New)",null,{"$f":"'Data SBP Measures'!$AF990&'Data SBP Measures'!$AE990& \" - \"& 'Data SBP Measures'!$U990","v":"Number of cases sent to Collections (New)Criminal - 126"},{"$f":"_xlfn.XLOOKUP(VALUE(W990),'Data SBP Programs'!O:O,'Data SBP Programs'!S:S)","v":"Criminal"}]
[{"$f":"'Data SBP Measures'!$AI2723&\" - \"&'Data SBP Measures'!$U2723","v":"Clinical Performance and Education - 159"},{"$f":"'Data SBP Measures'!$AF2723","v":"# of providers credentialed"},{"$f":"'Data SBP Measures'!$T2723","v":"3332"},{"$f":"'Data SBP Measures'!$U2723&B991","v":"159# of providers credentialed"},{"$f":"'Data SBP Measures'!$Y2723","v":"EACH"},null,null,null,null,null,"Clinical Performance and Education - 159","# of providers credentialed",null,null,null,null,null,null,null,"2024","126","Y","227","Criminal","EACH","OUTCOME","ADOPTEDBUD",null,null,null,"Criminal","Number of cases sent to Collections (New)",null,{"$f":"'Data SBP Measures'!$AF991&'Data SBP Measures'!$AE991& \" - \"& 'Data SBP Measures'!$U991","v":"Number of cases sent to Collections (New)Criminal - 126"},{"$f":"_xlfn.XLOOKUP(VALUE(W991),'Data SBP Programs'!O:O,'Data SBP Programs'!S:S)","v":"Criminal"}]
[{"$f":"'Data SBP Measures'!$AI2724&\" - \"&'Data SBP Measures'!$U2724","v":"Clinical Performance and Education - 159"},{"$f":"'Data SBP Measures'!$AF2724","v":"# of revisions/enhancements to operating guidelines"},{"$f":"'Data SBP Measures'!$T2724","v":"3333"},{"$f":"'Data SBP Measures'!$U2724&B992","v":"159# of revisions/enhancements to operating guidelines"},{"$f":"'Data SBP Measures'!$Y2724","v":"EACH"},null,null,null,null,null,"Clinical Performance and Education - 159","# of revisions/enhancements to operating guidelines",null,null,null,null,null,null,null,"2024","126","Y","227","Criminal","EACH","OUTCOME","ADOPTEDBUD",null,null,null,"Criminal","Number of cases sent to Collections (New)",null,{"$f":"'Data SBP Measures'!$AF992&'Data SBP Measures'!$AE992& \" - \"& 'Data SBP Measures'!$U992","v":"Number of cases sent to Collections (New)Criminal - 126"},{"$f":"_xlfn.XLOOKUP(VALUE(W992),'Data SBP Programs'!O:O,'Data SBP Programs'!S:S)","v":"Criminal"}]
[{"$f":"'Data SBP Measures'!$AI2725&\" - \"&'Data SBP Measures'!$U2725","v":"Clinical Performance and Education - 159"},{"$f":"'Data SBP Measures'!$AF2725","v":"# of revisions/enhancements to operating guidelines"},{"$f":"'Data SBP Measures'!$T2725","v":"3333"},{"$f":"'Data SBP Measures'!$U2725&B993","v":"159# of revisions/enhancements to operating guidelines"},{"$f":"'Data SBP Measures'!$Y2725","v":"EACH"},null,null,null,null,null,"Clinical Performance and Education - 159","# of revisions/enhancements to operating guidelines",null,null,null,null,null,null,null,"2024","126","Y","227","Criminal","EACH","OUTCOME","ADOPTEDBUD",null,null,null,"Criminal","Number of cases sent to Collections (New)",null,{"$f":"'Data SBP Measures'!$AF993&'Data SBP Measures'!$AE993& \" - \"& 'Data SBP Measures'!$U993","v":"Number of cases sent to Collections (New)Criminal - 126"},{"$f":"_xlfn.XLOOKUP(VALUE(W993),'Data SBP Programs'!O:O,'Data SBP Programs'!S:S)","v":"Criminal"}]
[{"$f":"'Data SBP Measures'!$AI2726&\" - \"&'Data SBP Measures'!$U2726","v":"Clinical Performance and Education - 159"},{"$f":"'Data SBP Measures'!$AF2726","v":"# of revisions/enhancements to operating guidelines"},{"$f":"'Data SBP Measures'!$T2726","v":"3333"},{"$f":"'Data SBP Measures'!$U2726&B994","v":"159# of revisions/enhancements to operating guidelines"},{"$f":"'Data SBP Measures'!$Y2726","v":"EACH"},null,null,null,null,null,"Clinical Performance and Education - 159","# of revisions/enhancements to operating guidelines",null,null,null,null,null,null,null,"2025","126","Y","227","Criminal","EACH","OUTCOME","ADOPTEDBUD",null,null,null,"Criminal","Number of cases processed after online payment accepted (New)",null,{"$f":"'Data SBP Measures'!$AF994&'Data SBP Measures'!$AE994& \" - \"& 'Data SBP Measures'!$U994","v":"Number of cases processed after online payment accepted (New)Criminal - 126"},{"$f":"_xlfn.XLOOKUP(VALUE(W994),'Data SBP Programs'!O:O,'Data SBP Programs'!S:S)","v":"Criminal"}]
[{"$f":"'Data SBP Measures'!$AI2727&\" - \"&'Data SBP Measures'!$U2727","v":"Clinical Performance and Education - 159"},{"$f":"'Data SBP Measures'!$AF2727","v":"# of revisions/enhancements to operating guidelines"},{"$f":"'Data SBP Measures'!$T2727","v":"3333"},{"$f":"'Data SBP Measures'!$U2727&B995","v":"159# of revisions/enhancements to operating guidelines"},{"$f":"'Data SBP Measures'!$Y2727","v":"EACH"},null,null,null,null,null,"Clinical Performance and Education - 159","# of revisions/enhancements to operating guidelines",null,null,null,null,null,null,null,"2025","126","Y","227","Criminal","EACH","OUTCOME","ADOPTEDBUD",null,null,null,"Criminal","Number of cases processed after online payment accepted (New)",null,{"$f":"'Data SBP Measures'!$AF995&'Data SBP Measures'!$AE995& \" - \"& 'Data SBP Measures'!$U995","v":"Number of cases processed after online payment accepted (New)Criminal - 126"},{"$f":"_xlfn.XLOOKUP(VALUE(W995),'Data SBP Programs'!O:O,'Data SBP Programs'!S:S)","v":"Criminal"}]
[{"$f":"'Data SBP Measures'!$AI2716&\" - \"&'Data SBP Measures'!$U2716","v":"Clinical Performance and Education - 159"},{"$f":"'Data SBP Measures'!$AF2716","v":"% of care providers receiving quarterly education"},{"$f":"'Data SBP Measures'!$T2716","v":"3331"},{"$f":"'Data SBP Measures'!$U2716&B996","v":"159% of care providers receiving quarterly education"},{"$f":"'Data SBP Measures'!$Y2716","v":"PERCENT"},null,null,null,null,null,"Clinical Performance and Education - 159","% of care providers receiving quarterly education",null,null,null,null,null,null,null,"2025","126","Y","227","Criminal","EACH","OUTCOME","ADOPTEDBUD",null,null,null,"Criminal","Number of cases processed after online payment accepted (New)",null,{"$f":"'Data SBP Measures'!$AF996&'Data SBP Measures'!$AE996& \" - \"& 'Data SBP Measures'!$U996","v":"Number of cases processed after online payment accepted (New)Criminal - 126"},{"$f":"_xlfn.XLOOKUP(VALUE(W996),'Data SBP Programs'!O:O,'Data SBP Programs'!S:S)","v":"Criminal"}]
[{"$f":"'Data SBP Measures'!$AI2717&\" - \"&'Data SBP Measures'!$U2717","v":"Clinical Performance and Education - 159"},{"$f":"'Data SBP Measures'!$AF2717","v":"% of care providers receiving quarterly education"},{"$f":"'Data SBP Measures'!$T2717","v":"3331"},{"$f":"'Data SBP Measures'!$U2717&B997","v":"159% of care providers receiving quarterly education"},{"$f":"'Data SBP Measures'!$Y2717","v":"PERCENT"},null,null,null,null,null,"Clinical Performance and Education - 159","% of care providers receiving quarterly education",null,null,null,null,null,null,null,"2025","126","Y","227","Criminal","EACH","OUTCOME","ADOPTEDBUD",null,null,null,"Criminal","Number of cases processed after online payment accepted (New)",null,{"$f":"'Data SBP Measures'!$AF997&'Data SBP Measures'!$AE997& \" - \"& 'Data SBP Measures'!$U997","v":"Number of cases processed after online payment accepted (New)Criminal - 126"},{"$f":"_xlfn.XLOOKUP(VALUE(W997),'Data SBP Programs'!O:O,'Data SBP Programs'!S:S)","v":"Criminal"}]
[{"$f":"'Data SBP Measures'!$AI2718&\" - \"&'Data SBP Measures'!$U2718","v":"Clinical Performance and Education - 159"},{"$f":"'Data SBP Measures'!$AF2718","v":"% of care providers receiving quarterly education"},{"$f":"'Data SBP Measures'!$T2718","v":"3331"},{"$f":"'Data SBP Measures'!$U2718&B998","v":"159% of care providers receiving quarterly education"},{"$f":"'Data SBP Measures'!$Y2718","v":"PERCENT"},null,null,null,null,null,"Clinical Performance and Education - 159","% of care providers receiving quarterly education",null,null,null,null,null,null,null,"2025","126","Y","227","Criminal","EACH","OUTCOME","ADOPTEDBUD",null,null,null,"Criminal","Number of cases processed after online payment accepted (New)",null,{"$f":"'Data SBP Measures'!$AF998&'Data SBP Measures'!$AE998& \" - \"& 'Data SBP Measures'!$U998","v":"Number of cases processed after online payment accepted (New)Criminal - 126"},{"$f":"_xlfn.XLOOKUP(VALUE(W998),'Data SBP Programs'!O:O,'Data SBP Programs'!S:S)","v":"Criminal"}]
[{"$f":"'Data SBP Measures'!$AI2719&\" - \"&'Data SBP Measures'!$U2719","v":"Clinical Performance and Education - 159"},{"$f":"'Data SBP Measures'!$AF2719","v":"% of care providers receiving quarterly education"},{"$f":"'Data SBP Measures'!$T2719","v":"3331"},{"$f":"'Data SBP Measures'!$U2719&B999","v":"159% of care providers receiving quarterly education"},{"$f":"'Data SBP Measures'!$Y2719","v":"PERCENT"},null,null,null,null,null,"Clinical Performance and Education - 159","% of care providers receiving quarterly education",null,null,null,null,null,null,null,"2026","126","Y","227","Criminal","FTE","INPUT","ADOPTEDBUD",null,null,null,"Criminal","Number of Employees to process cases",null,{"$f":"'Data SBP Measures'!$AF999&'Data SBP Measures'!$AE999& \" - \"& 'Data SBP Measures'!$U999","v":"Number of Employees to process casesCriminal - 126"},{"$f":"_xlfn.XLOOKUP(VALUE(W999),'Data SBP Programs'!O:O,'Data SBP Programs'!S:S)","v":"Criminal"}]
[{"$f":"'Data SBP Measures'!$AI3174&\" - \"&'Data SBP Measures'!$U3174","v":"Communications & Training - 108"},{"$f":"'Data SBP Measures'!$AF3174","v":"Abandoned Calls"},{"$f":"'Data SBP Measures'!$T3174","v":"63"},{"$f":"'Data SBP Measures'!$U3174&B1000","v":"108Abandoned Calls"},{"$f":"'Data SBP Measures'!$Y3174","v":"EACH"},null,null,null,null,null,"Communications & Training - 108","Abandoned Calls",null,null,null,null,null,null,null,"2026","126","Y","227","Criminal","FTE","INPUT","ADOPTEDBUD",null,null,null,"Criminal","Number of Employees to process cases",null,{"$f":"'Data SBP Measures'!$AF1000&'Data SBP Measures'!$AE1000& \" - \"& 'Data SBP Measures'!$U1000","v":"Number of Employees to process casesCriminal - 126"},{"$f":"_xlfn.XLOOKUP(VALUE(W1000),'Data SBP Programs'!O:O,'Data SBP Programs'!S:S)","v":"Criminal"}]
[{"$f":"'Data SBP Measures'!$AI2438&\" - \"&'Data SBP Measures'!$U2438","v":"Communications & Training - 108"},{"$f":"'Data SBP Measures'!$AF2438","v":"Call Duration"},{"$f":"'Data SBP Measures'!$T2438","v":"3051"},{"$f":"'Data SBP Measures'!$U2438&B1002","v":"108Call Duration"},{"$f":"'Data SBP Measures'!$Y2438","v":"EACH"},null,null,null,null,null,"Communications & Training - 108","Call Duration",null,null,null,null,null,null,null,"2026","126","Y","227","Criminal","FTE","INPUT","ADOPTEDBUD",null,null,null,"Criminal","Number of Employees to process cases",null,{"$f":"'Data SBP Measures'!$AF1002&'Data SBP Measures'!$AE1002& \" - \"& 'Data SBP Measures'!$U1002","v":"Number of Employees to process casesCriminal - 126"},{"$f":"_xlfn.XLOOKUP(VALUE(W1002),'Data SBP Programs'!O:O,'Data SBP Programs'!S:S)","v":"Criminal"}]
[{"$f":"'Data SBP Measures'!$AI3206&\" - \"&'Data SBP Measures'!$U3206","v":"Communications & Training - 108"},{"$f":"'Data SBP Measures'!$AF3206","v":"Eligible Employees Certified by TACA"},{"$f":"'Data SBP Measures'!$T3206","v":"66"},{"$f":"'Data SBP Measures'!$U3206&B1003","v":"108Eligible Employees Certified by TACA"},{"$f":"'Data SBP Measures'!$Y3206","v":"PERCENT"},null,null,null,null,null,"Communications & Training - 108","Eligible Employees Certified by TACA",null,null,null,null,null,null,null,"2026","126","Y","227","Criminal","FTE","INPUT","ADOPTEDBUD",null,null,null,"Criminal","Number of Employees to process cases",null,{"$f":"'Data SBP Measures'!$AF1003&'Data SBP Measures'!$AE1003& \" - \"& 'Data SBP Measures'!$U1003","v":"Number of Employees to process casesCriminal - 126"},{"$f":"_xlfn.XLOOKUP(VALUE(W1003),'Data SBP Programs'!O:O,'Data SBP Programs'!S:S)","v":"Criminal"}]
[{"$f":"'Data SBP Measures'!$AI3163&\" - \"&'Data SBP Measures'!$U3163","v":"Communications & Training - 108"},{"$f":"'Data SBP Measures'!$AF3163","v":"Service Demand Met"},{"$f":"'Data SBP Measures'!$T3163","v":"62"},{"$f":"'Data SBP Measures'!$U3163&B1006","v":"108Service Demand Met"},{"$f":"'Data SBP Measures'!$Y3163","v":"EACH"},null,null,null,null,null,"Communications & Training - 108","Service Demand Met",null,null,null,null,null,null,null,"2027","126","Y","227","Criminal","DOLLARS","EFFICIENCY","ADOPTEDBUD",null,null,null,"Criminal","Cost per case filed",null,{"$f":"'Data SBP Measures'!$AF1006&'Data SBP Measures'!$AE1006& \" - \"& 'Data SBP Measures'!$U1006","v":"Cost per case filedCriminal - 126"},{"$f":"_xlfn.XLOOKUP(VALUE(W1006),'Data SBP Programs'!O:O,'Data SBP Programs'!S:S)","v":"Criminal"}]
[{"$f":"'Data SBP Measures'!$AI3217&\" - \"&'Data SBP Measures'!$U3217","v":"Communications & Training - 108"},{"$f":"'Data SBP Measures'!$AF3217","v":"TACA Certification Training Savings"},{"$f":"'Data SBP Measures'!$T3217","v":"67"},{"$f":"'Data SBP Measures'!$U3217&B1008","v":"108TACA Certification Training Savings"},{"$f":"'Data SBP Measures'!$Y3217","v":"DOLLARS"},null,null,null,null,null,"Communications & Training - 108","TACA Certification Training Savings",null,null,null,null,null,null,null,"2027","126","Y","227","Criminal","DOLLARS","EFFICIENCY","ADOPTEDBUD",null,null,null,"Criminal","Cost per case filed",null,{"$f":"'Data SBP Measures'!$AF1008&'Data SBP Measures'!$AE1008& \" - \"& 'Data SBP Measures'!$U1008","v":"Cost per case filedCriminal - 126"},{"$f":"_xlfn.XLOOKUP(VALUE(W1008),'Data SBP Programs'!O:O,'Data SBP Programs'!S:S)","v":"Criminal"}]
[{"$f":"'Data SBP Measures'!$AI712&\" - \"&'Data SBP Measures'!$U712","v":"Comprehensive Underage Drinking Prevention - 119"},{"$f":"'Data SBP Measures'!$AF712","v":"# of parternships with collaborating agencies"},{"$f":"'Data SBP Measures'!$T712","v":"1772"},{"$f":"'Data SBP Measures'!$U712&B1011","v":"119# of parternships with collaborating agencies"},{"$f":"'Data SBP Measures'!$Y712","v":"EACH"},null,null,null,null,null,"Comprehensive Underage Drinking Prevention - 119","# of parternships with collaborating agencies",null,null,null,null,null,null,null,"2028","126","Y","227","Criminal","PERCENT","OUTCOME","ADOPTEDBUD",null,null,null,"Criminal","Percentage of disposed to cases filed",null,{"$f":"'Data SBP Measures'!$AF1011&'Data SBP Measures'!$AE1011& \" - \"& 'Data SBP Measures'!$U1011","v":"Percentage of disposed to cases filedCriminal - 126"},{"$f":"_xlfn.XLOOKUP(VALUE(W1011),'Data SBP Programs'!O:O,'Data SBP Programs'!S:S)","v":"Criminal"}]
[{"$f":"'Data SBP Measures'!$AI711&\" - \"&'Data SBP Measures'!$U711","v":"Comprehensive Underage Drinking Prevention - 119"},{"$f":"'Data SBP Measures'!$AF711","v":"Presentations and community events"},{"$f":"'Data SBP Measures'!$T711","v":"1771"},{"$f":"'Data SBP Measures'!$U711&B1014","v":"119Presentations and community events"},{"$f":"'Data SBP Measures'!$Y711","v":"EACH"},null,null,null,null,null,"Comprehensive Underage Drinking Prevention - 119","Presentations and community events",null,null,null,null,null,null,null,"2029","126","Y","228","Juvenile Division","EACH","OUTPUT","ADOPTEDBUD",null,null,null,"Juvenile Division","Number of cases assigned to the Juvenile Case Manager",null,{"$f":"'Data SBP Measures'!$AF1014&'Data SBP Measures'!$AE1014& \" - \"& 'Data SBP Measures'!$U1014","v":"Number of cases assigned to the Juvenile Case ManagerJuvenile Division - 126"},{"$f":"_xlfn.XLOOKUP(VALUE(W1014),'Data SBP Programs'!O:O,'Data SBP Programs'!S:S)","v":"Juvenile Division"}]
[{"$f":"'Data SBP Measures'!$AI919&\" - \"&'Data SBP Measures'!$U919","v":"Condemnation - 125"},{"$f":"'Data SBP Measures'!$AF919","v":"# of condemnation cases transferred to CCL after appeal or objection\n"},{"$f":"'Data SBP Measures'!$T919","v":"2002"},{"$f":"'Data SBP Measures'!$U919&B1016","v":"125# of condemnation cases transferred to CCL after appeal or objection\n"},{"$f":"'Data SBP Measures'!$Y919","v":"EACH"},null,null,null,null,null,"Condemnation - 125","# of condemnation cases transferred to CCL after appeal or objection\n",null,null,null,null,null,null,null,"2030","126","Y","228","Juvenile Division","EACH","OUTPUT","ADOPTEDBUD",null,null,null,"Juvenile Division","Number of dockets attended by juveniles (held)",null,{"$f":"'Data SBP Measures'!$AF1016&'Data SBP Measures'!$AE1016& \" - \"& 'Data SBP Measures'!$U1016","v":"Number of dockets attended by juveniles (held)Juvenile Division - 126"},{"$f":"_xlfn.XLOOKUP(VALUE(W1016),'Data SBP Programs'!O:O,'Data SBP Programs'!S:S)","v":"Juvenile Division"}]
[{"$f":"'Data SBP Measures'!$AI920&\" - \"&'Data SBP Measures'!$U920","v":"Condemnation - 125"},{"$f":"'Data SBP Measures'!$AF920","v":"# of condemnation orders signed"},{"$f":"'Data SBP Measures'!$T920","v":"2003"},{"$f":"'Data SBP Measures'!$U920&B1017","v":"125# of condemnation orders signed"},{"$f":"'Data SBP Measures'!$Y920","v":"EACH"},null,null,null,null,null,"Condemnation - 125","# of condemnation orders signed",null,null,null,null,null,null,null,"2030","126","Y","228","Juvenile Division","EACH","OUTPUT","ADOPTEDBUD",null,null,null,"Juvenile Division","Number of dockets attended by juveniles (held)",null,{"$f":"'Data SBP Measures'!$AF1017&'Data SBP Measures'!$AE1017& \" - \"& 'Data SBP Measures'!$U1017","v":"Number of dockets attended by juveniles (held)Juvenile Division - 126"},{"$f":"_xlfn.XLOOKUP(VALUE(W1017),'Data SBP Programs'!O:O,'Data SBP Programs'!S:S)","v":"Juvenile Division"}]
[{"$f":"'Data SBP Measures'!$AI1999&\" - \"&'Data SBP Measures'!$U1999","v":"Corporations - 109"},{"$f":"'Data SBP Measures'!$AF1999","v":"Number of Issuances - Other Corporations\n"},{"$f":"'Data SBP Measures'!$T1999","v":"2583"},{"$f":"'Data SBP Measures'!$U1999&B1021","v":"109Number of Issuances - Other Corporations\n"},{"$f":"'Data SBP Measures'!$Y1999","v":"EACH"},null,null,null,null,null,"Corporations - 109","Number of Issuances - Other Corporations\n",null,null,null,null,null,null,null,"2032","126","Y","228","Juvenile Division","EACH","OUTPUT","ADOPTEDBUD",null,null,null,"Juvenile Division","Number of parent contacts conducted",null,{"$f":"'Data SBP Measures'!$AF1021&'Data SBP Measures'!$AE1021& \" - \"& 'Data SBP Measures'!$U1021","v":"Number of parent contacts conductedJuvenile Division - 126"},{"$f":"_xlfn.XLOOKUP(VALUE(W1021),'Data SBP Programs'!O:O,'Data SBP Programs'!S:S)","v":"Juvenile Division"}]
[{"$f":"'Data SBP Measures'!$AI491&\" - \"&'Data SBP Measures'!$U491","v":"Corporations - 109"},{"$f":"'Data SBP Measures'!$AF491","v":"Number of issuances TCHFC"},{"$f":"'Data SBP Measures'!$T491","v":"1535"},{"$f":"'Data SBP Measures'!$U491&B1022","v":"109Number of issuances TCHFC"},{"$f":"'Data SBP Measures'!$Y491","v":"EACH"},null,null,null,null,null,"Corporations - 109","Number of issuances TCHFC",null,null,null,null,null,null,null,"2033","126","Y","228","Juvenile Division","EACH","OUTPUT","ADOPTEDBUD",null,null,null,"Juvenile Division","Number of truancy referrals to Truancy Prosecutor",null,{"$f":"'Data SBP Measures'!$AF1022&'Data SBP Measures'!$AE1022& \" - \"& 'Data SBP Measures'!$U1022","v":"Number of truancy referrals to Truancy ProsecutorJuvenile Division - 126"},{"$f":"_xlfn.XLOOKUP(VALUE(W1022),'Data SBP Programs'!O:O,'Data SBP Programs'!S:S)","v":"Juvenile Division"}]
[{"$f":"'Data SBP Measures'!$AI2693&\" - \"&'Data SBP Measures'!$U2693","v":"Correctional Security - 137"},{"$f":"'Data SBP Measures'!$AF2693","v":"Gang Related Activity"},{"$f":"'Data SBP Measures'!$T2693","v":"3311"},{"$f":"'Data SBP Measures'!$U2693&B1025","v":"137Gang Related Activity"},{"$f":"'Data SBP Measures'!$Y2693","v":"EACH"},null,null,null,null,null,"Correctional Security - 137","Gang Related Activity",null,null,null,null,null,null,null,"2034","126","Y","228","Juvenile Division","EACH","OUTPUT","ADOPTEDBUD",null,null,null,"Juvenile Division","Number of students or parents referred for services",null,{"$f":"'Data SBP Measures'!$AF1025&'Data SBP Measures'!$AE1025& \" - \"& 'Data SBP Measures'!$U1025","v":"Number of students or parents referred for servicesJuvenile Division - 126"},{"$f":"_xlfn.XLOOKUP(VALUE(W1025),'Data SBP Programs'!O:O,'Data SBP Programs'!S:S)","v":"Juvenile Division"}]
[{"$f":"'Data SBP Measures'!$AI288&\" - \"&'Data SBP Measures'!$U288","v":"Correctional Security - 137"},{"$f":"'Data SBP Measures'!$AF288","v":"Jail Standards Certification Yes/No (1 = Y, 0=N)"},{"$f":"'Data SBP Measures'!$T288","v":"1341"},{"$f":"'Data SBP Measures'!$U288&B1027","v":"137Jail Standards Certification Yes/No (1 = Y, 0=N)"},{"$f":"'Data SBP Measures'!$Y288","v":"Y/N"},null,null,null,null,null,"Correctional Security - 137","Jail Standards Certification Yes/No (1 = Y, 0=N)",null,null,null,null,null,null,null,"2035","126","Y","228","Juvenile Division","EACH","OUTCOME","ADOPTEDBUD",null,null,null,"Juvenile Division","Number of Civil Truancy cases filed (New)",null,{"$f":"'Data SBP Measures'!$AF1027&'Data SBP Measures'!$AE1027& \" - \"& 'Data SBP Measures'!$U1027","v":"Number of Civil Truancy cases filed (New)Juvenile Division - 126"},{"$f":"_xlfn.XLOOKUP(VALUE(W1027),'Data SBP Programs'!O:O,'Data SBP Programs'!S:S)","v":"Juvenile Division"}]
[{"$f":"'Data SBP Measures'!$AI2674&\" - \"&'Data SBP Measures'!$U2674","v":"Correctional Security - 137"},{"$f":"'Data SBP Measures'!$AF2674","v":"Mandatory OT"},{"$f":"'Data SBP Measures'!$T2674","v":"3305"},{"$f":"'Data SBP Measures'!$U2674&B1030","v":"137Mandatory OT"},{"$f":"'Data SBP Measures'!$Y2674","v":"HOURS"},null,null,null,null,null,"Correctional Security - 137","Mandatory OT",null,null,null,null,null,null,null,"2037","126","Y","228","Juvenile Division","EACH","OUTCOME","ADOPTEDBUD",null,null,null,"Juvenile Division","Number of Parent Contributing to Non-attendance filed (New)",null,{"$f":"'Data SBP Measures'!$AF1030&'Data SBP Measures'!$AE1030& \" - \"& 'Data SBP Measures'!$U1030","v":"Number of Parent Contributing to Non-attendance filed (New)Juvenile Division - 126"},{"$f":"_xlfn.XLOOKUP(VALUE(W1030),'Data SBP Programs'!O:O,'Data SBP Programs'!S:S)","v":"Juvenile Division"}]
[{"$f":"'Data SBP Measures'!$AI2490&\" - \"&'Data SBP Measures'!$U2490","v":"Correctional Security - 137"},{"$f":"'Data SBP Measures'!$AF2490","v":"No. of ATWs"},{"$f":"'Data SBP Measures'!$T2490","v":"3144"},{"$f":"'Data SBP Measures'!$U2490&B1033","v":"137No. of ATWs"},{"$f":"'Data SBP Measures'!$Y2490","v":"EACH"},null,null,null,null,null,"Correctional Security - 137","No. of ATWs",null,null,null,null,null,null,null,"2038","126","Y","228","Juvenile Division","FTE","INPUT","ADOPTEDBUD",null,null,null,"Juvenile Division","Number of employees to process cases",null,{"$f":"'Data SBP Measures'!$AF1033&'Data SBP Measures'!$AE1033& \" - \"& 'Data SBP Measures'!$U1033","v":"Number of employees to process casesJuvenile Division - 126"},{"$f":"_xlfn.XLOOKUP(VALUE(W1033),'Data SBP Programs'!O:O,'Data SBP Programs'!S:S)","v":"Juvenile Division"}]
[{"$f":"'Data SBP Measures'!$AI2492&\" - \"&'Data SBP Measures'!$U2492","v":"Correctional Security - 137"},{"$f":"'Data SBP Measures'!$AF2492","v":"No. of ATWs"},{"$f":"'Data SBP Measures'!$T2492","v":"3144"},{"$f":"'Data SBP Measures'!$U2492&B1035","v":"137No. of ATWs"},{"$f":"'Data SBP Measures'!$Y2492","v":"EACH"},null,null,null,null,null,"Correctional Security - 137","No. of ATWs",null,null,null,null,null,null,null,"2039","127","Y","229","Official Fees Accounting Division","EACH","OUTPUT","ADOPTEDBUD",null,null,null,"Official Fees Accounting Division","Daily – Maintain general and subsidiary ledgers in CivilServe, Odyssey, QuickBooks & Excel 10 Offices X 251 = 2510\n",null,{"$f":"'Data SBP Measures'!$AF1035&'Data SBP Measures'!$AE1035& \" - \"& 'Data SBP Measures'!$U1035","v":"Daily – Maintain general and subsidiary ledgers in CivilServe, Odyssey, QuickBooks & Excel 10 Offices X 251 = 2510\nOfficial Fees Accounting Division - 127"},{"$f":"_xlfn.XLOOKUP(VALUE(W1035),'Data SBP Programs'!O:O,'Data SBP Programs'!S:S)","v":"Official Fees Accounting Division"}]
[{"$f":"'Data SBP Measures'!$AI2502&\" - \"&'Data SBP Measures'!$U2502","v":"Correctional Security - 137"},{"$f":"'Data SBP Measures'!$AF2502","v":"No. of C-TAC deployments"},{"$f":"'Data SBP Measures'!$T2502","v":"3148"},{"$f":"'Data SBP Measures'!$U2502&B1036","v":"137No. of C-TAC deployments"},{"$f":"'Data SBP Measures'!$Y2502","v":"EACH"},null,null,null,null,null,"Correctional Security - 137","No. of C-TAC deployments",null,null,null,null,null,null,null,"2040","127","Y","229","Official Fees Accounting Division","EACH","OUTPUT","ADOPTEDBUD",null,null,null,"Official Fees Accounting Division","Daily – reconcile receipts to reports generated from both manned & virtual cashier stations 41 accounts X 251 = 10291",null,{"$f":"'Data SBP Measures'!$AF1036&'Data SBP Measures'!$AE1036& \" - \"& 'Data SBP Measures'!$U1036","v":"Daily – reconcile receipts to reports generated from both manned & virtual cashier stations 41 accounts X 251 = 10291Official Fees Accounting Division - 127"},{"$f":"_xlfn.XLOOKUP(VALUE(W1036),'Data SBP Programs'!O:O,'Data SBP Programs'!S:S)","v":"Official Fees Accounting Division"}]
[{"$f":"'Data SBP Measures'!$AI2497&\" - \"&'Data SBP Measures'!$U2497","v":"Correctional Security - 137"},{"$f":"'Data SBP Measures'!$AF2497","v":"No. of C-TAC transfers"},{"$f":"'Data SBP Measures'!$T2497","v":"3146"},{"$f":"'Data SBP Measures'!$U2497&B1040","v":"137No. of C-TAC transfers"},{"$f":"'Data SBP Measures'!$Y2497","v":"EACH"},null,null,null,null,null,"Correctional Security - 137","No. of C-TAC transfers",null,null,null,null,null,null,null,"2042","127","Y","229","Official Fees Accounting Division","EACH","OUTPUT","ADOPTEDBUD",null,null,null,"Official Fees Accounting Division","Daily – Balance credit card receipts to transactions reports generated from the vendor software (VeriFone, Online Portal, E-File and EZ-NetPay) identify & correct discrepancies 4 accounts X 5 Offices X 251 = 5020",null,{"$f":"'Data SBP Measures'!$AF1040&'Data SBP Measures'!$AE1040& \" - \"& 'Data SBP Measures'!$U1040","v":"Daily – Balance credit card receipts to transactions reports generated from the vendor software (VeriFone, Online Portal, E-File and EZ-NetPay) identify & correct discrepancies 4 accounts X 5 Offices X 251 = 5020Official Fees Accounting Division - 127"},{"$f":"_xlfn.XLOOKUP(VALUE(W1040),'Data SBP Programs'!O:O,'Data SBP Programs'!S:S)","v":"Official Fees Accounting Division"}]
[{"$f":"'Data SBP Measures'!$AI2498&\" - \"&'Data SBP Measures'!$U2498","v":"Correctional Security - 137"},{"$f":"'Data SBP Measures'!$AF2498","v":"No. of C-TAC transfers"},{"$f":"'Data SBP Measures'!$T2498","v":"3146"},{"$f":"'Data SBP Measures'!$U2498&B1041","v":"137No. of C-TAC transfers"},{"$f":"'Data SBP Measures'!$Y2498","v":"EACH"},null,null,null,null,null,"Correctional Security - 137","No. of C-TAC transfers",null,null,null,null,null,null,null,"2042","127","Y","229","Official Fees Accounting Division","EACH","OUTPUT","ADOPTEDBUD",null,null,null,"Official Fees Accounting Division","Daily – Balance credit card receipts to transactions reports generated from the vendor software (VeriFone, Online Portal, E-File and EZ-NetPay) identify & correct discrepancies 4 accounts X 5 Offices X 251 = 5020",null,{"$f":"'Data SBP Measures'!$AF1041&'Data SBP Measures'!$AE1041& \" - \"& 'Data SBP Measures'!$U1041","v":"Daily – Balance credit card receipts to transactions reports generated from the vendor software (VeriFone, Online Portal, E-File and EZ-NetPay) identify & correct discrepancies 4 accounts X 5 Offices X 251 = 5020Official Fees Accounting Division - 127"},{"$f":"_xlfn.XLOOKUP(VALUE(W1041),'Data SBP Programs'!O:O,'Data SBP Programs'!S:S)","v":"Official Fees Accounting Division"}]
[{"$f":"'Data SBP Measures'!$AI2495&\" - \"&'Data SBP Measures'!$U2495","v":"Correctional Security - 137"},{"$f":"'Data SBP Measures'!$AF2495","v":"No. of Emergency Responses"},{"$f":"'Data SBP Measures'!$T2495","v":"3145"},{"$f":"'Data SBP Measures'!$U2495&B1044","v":"137No. of Emergency Responses"},{"$f":"'Data SBP Measures'!$Y2495","v":"EACH"},null,null,null,null,null,"Correctional Security - 137","No. of Emergency Responses",null,null,null,null,null,null,null,"2044","127","Y","229","Official Fees Accounting Division","EACH","OUTPUT","ADOPTEDBUD",null,null,null,"Official Fees Accounting Division","Daily – review credit card settlements & post deposits to odyssey 33 accounts X 251 = 8283",null,{"$f":"'Data SBP Measures'!$AF1044&'Data SBP Measures'!$AE1044& \" - \"& 'Data SBP Measures'!$U1044","v":"Daily – review credit card settlements & post deposits to odyssey 33 accounts X 251 = 8283Official Fees Accounting Division - 127"},{"$f":"_xlfn.XLOOKUP(VALUE(W1044),'Data SBP Programs'!O:O,'Data SBP Programs'!S:S)","v":"Official Fees Accounting Division"}]
[{"$f":"'Data SBP Measures'!$AI2696&\" - \"&'Data SBP Measures'!$U2696","v":"Correctional Security - 137"},{"$f":"'Data SBP Measures'!$AF2696","v":"No. of EPOs added to list"},{"$f":"'Data SBP Measures'!$T2696","v":"3312"},{"$f":"'Data SBP Measures'!$U2696&B1046","v":"137No. of EPOs added to list"},{"$f":"'Data SBP Measures'!$Y2696","v":"EACH"},null,null,null,null,null,"Correctional Security - 137","No. of EPOs added to list",null,null,null,null,null,null,null,"2045","127","Y","229","Official Fees Accounting Division","EACH","OUTPUT","ADOPTEDBUD",null,null,null,"Official Fees Accounting Division","Daily – prepare bank transfers between the credit card accounts and other bank accounts 33 accounts X 251 = 8283",null,{"$f":"'Data SBP Measures'!$AF1046&'Data SBP Measures'!$AE1046& \" - \"& 'Data SBP Measures'!$U1046","v":"Daily – prepare bank transfers between the credit card accounts and other bank accounts 33 accounts X 251 = 8283Official Fees Accounting Division - 127"},{"$f":"_xlfn.XLOOKUP(VALUE(W1046),'Data SBP Programs'!O:O,'Data SBP Programs'!S:S)","v":"Official Fees Accounting Division"}]
[{"$f":"'Data SBP Measures'!$AI2699&\" - \"&'Data SBP Measures'!$U2699","v":"Correctional Security - 137"},{"$f":"'Data SBP Measures'!$AF2699","v":"No. of EPOs removed from the list"},{"$f":"'Data SBP Measures'!$T2699","v":"3313"},{"$f":"'Data SBP Measures'!$U2699&B1049","v":"137No. of EPOs removed from the list"},{"$f":"'Data SBP Measures'!$Y2699","v":"EACH"},null,null,null,null,null,"Correctional Security - 137","No. of EPOs removed from the list",null,null,null,null,null,null,null,"2046","127","Y","229","Official Fees Accounting Division","EACH","OUTPUT","ADOPTEDBUD",null,null,null,"Official Fees Accounting Division","Daily  - produce remittance reports for Official Fees & post in SAP 10 accounts X 251 = 2510",null,{"$f":"'Data SBP Measures'!$AF1049&'Data SBP Measures'!$AE1049& \" - \"& 'Data SBP Measures'!$U1049","v":"Daily  - produce remittance reports for Official Fees & post in SAP 10 accounts X 251 = 2510Official Fees Accounting Division - 127"},{"$f":"_xlfn.XLOOKUP(VALUE(W1049),'Data SBP Programs'!O:O,'Data SBP Programs'!S:S)","v":"Official Fees Accounting Division"}]
[{"$f":"'Data SBP Measures'!$AI2700&\" - \"&'Data SBP Measures'!$U2700","v":"Correctional Security - 137"},{"$f":"'Data SBP Measures'!$AF2700","v":"No. of EPOs removed from the list"},{"$f":"'Data SBP Measures'!$T2700","v":"3313"},{"$f":"'Data SBP Measures'!$U2700&B1050","v":"137No. of EPOs removed from the list"},{"$f":"'Data SBP Measures'!$Y2700","v":"EACH"},null,null,null,null,null,"Correctional Security - 137","No. of EPOs removed from the list",null,null,null,null,null,null,null,"2047","127","Y","229","Official Fees Accounting Division","EACH","OUTPUT","ADOPTEDBUD",null,null,null,"Official Fees Accounting Division","Daily  - remit Official Fees to the County Treasurer via bank transfer 10 accounts X 251 = 2510",null,{"$f":"'Data SBP Measures'!$AF1050&'Data SBP Measures'!$AE1050& \" - \"& 'Data SBP Measures'!$U1050","v":"Daily  - remit Official Fees to the County Treasurer via bank transfer 10 accounts X 251 = 2510Official Fees Accounting Division - 127"},{"$f":"_xlfn.XLOOKUP(VALUE(W1050),'Data SBP Programs'!O:O,'Data SBP Programs'!S:S)","v":"Official Fees Accounting Division"}]
[{"$f":"'Data SBP Measures'!$AI2668&\" - \"&'Data SBP Measures'!$U2668","v":"Correctional Security - 137"},{"$f":"'Data SBP Measures'!$AF2668","v":"No. of hours assisting other agencies"},{"$f":"'Data SBP Measures'!$T2668","v":"3303"},{"$f":"'Data SBP Measures'!$U2668&B1054","v":"137No. of hours assisting other agencies"},{"$f":"'Data SBP Measures'!$Y2668","v":"HOURS"},null,null,null,null,null,"Correctional Security - 137","No. of hours assisting other agencies",null,null,null,null,null,null,null,"2049","127","Y","229","Official Fees Accounting Division","EACH","OUTPUT","ADOPTEDBUD",null,null,null,"Official Fees Accounting Division","Daily – monitor &post bond transactions to the excel subsidiary ledger and transfer applied funds from the Bond to the Operating  Account 5 accounts X 251 = 1255",null,{"$f":"'Data SBP Measures'!$AF1054&'Data SBP Measures'!$AE1054& \" - \"& 'Data SBP Measures'!$U1054","v":"Daily – monitor &post bond transactions to the excel subsidiary ledger and transfer applied funds from the Bond to the Operating  Account 5 accounts X 251 = 1255Official Fees Accounting Division - 127"},{"$f":"_xlfn.XLOOKUP(VALUE(W1054),'Data SBP Programs'!O:O,'Data SBP Programs'!S:S)","v":"Official Fees Accounting Division"}]
[{"$f":"'Data SBP Measures'!$AI2669&\" - \"&'Data SBP Measures'!$U2669","v":"Correctional Security - 137"},{"$f":"'Data SBP Measures'!$AF2669","v":"No. of hours assisting other agencies"},{"$f":"'Data SBP Measures'!$T2669","v":"3303"},{"$f":"'Data SBP Measures'!$U2669&B1055","v":"137No. of hours assisting other agencies"},{"$f":"'Data SBP Measures'!$Y2669","v":"HOURS"},null,null,null,null,null,"Correctional Security - 137","No. of hours assisting other agencies",null,null,null,null,null,null,null,"2049","127","Y","229","Official Fees Accounting Division","EACH","OUTPUT","ADOPTEDBUD",null,null,null,"Official Fees Accounting Division","Daily – monitor &post bond transactions to the excel subsidiary ledger and transfer applied funds from the Bond to the Operating  Account 5 accounts X 251 = 1255",null,{"$f":"'Data SBP Measures'!$AF1055&'Data SBP Measures'!$AE1055& \" - \"& 'Data SBP Measures'!$U1055","v":"Daily – monitor &post bond transactions to the excel subsidiary ledger and transfer applied funds from the Bond to the Operating  Account 5 accounts X 251 = 1255Official Fees Accounting Division - 127"},{"$f":"_xlfn.XLOOKUP(VALUE(W1055),'Data SBP Programs'!O:O,'Data SBP Programs'!S:S)","v":"Official Fees Accounting Division"}]
[{"$f":"'Data SBP Measures'!$AI2682&\" - \"&'Data SBP Measures'!$U2682","v":"Correctional Security - 137"},{"$f":"'Data SBP Measures'!$AF2682","v":"No. of hours on events trainings presentation"},{"$f":"'Data SBP Measures'!$T2682","v":"3307"},{"$f":"'Data SBP Measures'!$U2682&B1059","v":"137No. of hours on events trainings presentation"},{"$f":"'Data SBP Measures'!$Y2682","v":"HOURS"},null,null,null,null,null,"Correctional Security - 137","No. of hours on events trainings presentation",null,null,null,null,null,null,null,"2051","127","Y","229","Official Fees Accounting Division","EACH","OUTPUT","ADOPTEDBUD",null,null,null,"Official Fees Accounting Division","Daily – post LEOSE, Forfeited Funds, and Abandoned Vehicle transactions to the general ledger and maintain backup documentation for fund allocations  & expenditures 7 accounts X 251 = 1757, 8 accounts X 251 = 2008 (started 2015)",null,{"$f":"'Data SBP Measures'!$AF1059&'Data SBP Measures'!$AE1059& \" - \"& 'Data SBP Measures'!$U1059","v":"Daily – post LEOSE, Forfeited Funds, and Abandoned Vehicle transactions to the general ledger and maintain backup documentation for fund allocations  & expenditures 7 accounts X 251 = 1757, 8 accounts X 251 = 2008 (started 2015)Official Fees Accounting Division - 127"},{"$f":"_xlfn.XLOOKUP(VALUE(W1059),'Data SBP Programs'!O:O,'Data SBP Programs'!S:S)","v":"Official Fees Accounting Division"}]
[{"$f":"'Data SBP Measures'!$AI2665&\" - \"&'Data SBP Measures'!$U2665","v":"Correctional Security - 137"},{"$f":"'Data SBP Measures'!$AF2665","v":"No. of hours on jail cases"},{"$f":"'Data SBP Measures'!$T2665","v":"3302"},{"$f":"'Data SBP Measures'!$U2665&B1060","v":"137No. of hours on jail cases"},{"$f":"'Data SBP Measures'!$Y2665","v":"HOURS"},null,null,null,null,null,"Correctional Security - 137","No. of hours on jail cases",null,null,null,null,null,null,null,"2052","127","Y","229","Official Fees Accounting Division","EACH","OUTPUT","ADOPTEDBUD",null,null,null,"Official Fees Accounting Division","Annual -prepare state and Federal Forfeited Funds Reports 2 Reports X 5CN = 10",null,{"$f":"'Data SBP Measures'!$AF1060&'Data SBP Measures'!$AE1060& \" - \"& 'Data SBP Measures'!$U1060","v":"Annual -prepare state and Federal Forfeited Funds Reports 2 Reports X 5CN = 10Official Fees Accounting Division - 127"},{"$f":"_xlfn.XLOOKUP(VALUE(W1060),'Data SBP Programs'!O:O,'Data SBP Programs'!S:S)","v":"Official Fees Accounting Division"}]
[{"$f":"'Data SBP Measures'!$AI2671&\" - \"&'Data SBP Measures'!$U2671","v":"Correctional Security - 137"},{"$f":"'Data SBP Measures'!$AF2671","v":"No. of hours on LE cases"},{"$f":"'Data SBP Measures'!$T2671","v":"3304"},{"$f":"'Data SBP Measures'!$U2671&B1063","v":"137No. of hours on LE cases"},{"$f":"'Data SBP Measures'!$Y2671","v":"HOURS"},null,null,null,null,null,"Correctional Security - 137","No. of hours on LE cases",null,null,null,null,null,null,null,"2053","127","Y","229","Official Fees Accounting Division","EACH","OUTPUT","ADOPTEDBUD",null,null,null,"Official Fees Accounting Division","Daily –Compare bank transactions to CivilServe and Odyssey GL transactions, identify errors and document corrections 41 accounts X 251 = 10291\n",null,{"$f":"'Data SBP Measures'!$AF1063&'Data SBP Measures'!$AE1063& \" - \"& 'Data SBP Measures'!$U1063","v":"Daily –Compare bank transactions to CivilServe and Odyssey GL transactions, identify errors and document corrections 41 accounts X 251 = 10291\nOfficial Fees Accounting Division - 127"},{"$f":"_xlfn.XLOOKUP(VALUE(W1063),'Data SBP Programs'!O:O,'Data SBP Programs'!S:S)","v":"Official Fees Accounting Division"}]
[{"$f":"'Data SBP Measures'!$AI2673&\" - \"&'Data SBP Measures'!$U2673","v":"Correctional Security - 137"},{"$f":"'Data SBP Measures'!$AF2673","v":"No. of hours on LE cases"},{"$f":"'Data SBP Measures'!$T2673","v":"3304"},{"$f":"'Data SBP Measures'!$U2673&B1065","v":"137No. of hours on LE cases"},{"$f":"'Data SBP Measures'!$Y2673","v":"HOURS"},null,null,null,null,null,"Correctional Security - 137","No. of hours on LE cases",null,null,null,null,null,null,null,"2054","127","Y","229","Official Fees Accounting Division","EACH","OUTPUT","ADOPTEDBUD",null,null,null,"Official Fees Accounting Division","Monthly – complete bank reconciliations by the 5th business day after month end and obtain elected officials signature 41 accounts X 251 = 10291",null,{"$f":"'Data SBP Measures'!$AF1065&'Data SBP Measures'!$AE1065& \" - \"& 'Data SBP Measures'!$U1065","v":"Monthly – complete bank reconciliations by the 5th business day after month end and obtain elected officials signature 41 accounts X 251 = 10291Official Fees Accounting Division - 127"},{"$f":"_xlfn.XLOOKUP(VALUE(W1065),'Data SBP Programs'!O:O,'Data SBP Programs'!S:S)","v":"Official Fees Accounting Division"}]
[{"$f":"'Data SBP Measures'!$AI2688&\" - \"&'Data SBP Measures'!$U2688","v":"Correctional Security - 137"},{"$f":"'Data SBP Measures'!$AF2688","v":"No. of hrs processing mail"},{"$f":"'Data SBP Measures'!$T2688","v":"3309"},{"$f":"'Data SBP Measures'!$U2688&B1068","v":"137No. of hrs processing mail"},{"$f":"'Data SBP Measures'!$Y2688","v":"EACH"},null,null,null,null,null,"Correctional Security - 137","No. of hrs processing mail",null,null,null,null,null,null,null,"2056","127","Y","229","Official Fees Accounting Division","EACH","OUTPUT","ADOPTEDBUD",null,null,null,"Official Fees Accounting Division","Monthly –submit statements to elected officials for review & signature and forward to the auditor by the 5th business day after month end 18 accounts X 12 = 216",null,{"$f":"'Data SBP Measures'!$AF1068&'Data SBP Measures'!$AE1068& \" - \"& 'Data SBP Measures'!$U1068","v":"Monthly –submit statements to elected officials for review & signature and forward to the auditor by the 5th business day after month end 18 accounts X 12 = 216Official Fees Accounting Division - 127"},{"$f":"_xlfn.XLOOKUP(VALUE(W1068),'Data SBP Programs'!O:O,'Data SBP Programs'!S:S)","v":"Official Fees Accounting Division"}]
[{"$f":"'Data SBP Measures'!$AI2499&\" - \"&'Data SBP Measures'!$U2499","v":"Correctional Security - 137"},{"$f":"'Data SBP Measures'!$AF2499","v":"No. of vehicle inspections"},{"$f":"'Data SBP Measures'!$T2499","v":"3147"},{"$f":"'Data SBP Measures'!$U2499&B1069","v":"137No. of vehicle inspections"},{"$f":"'Data SBP Measures'!$Y2499","v":"EACH"},null,null,null,null,null,"Correctional Security - 137","No. of vehicle inspections",null,null,null,null,null,null,null,"2056","127","Y","229","Official Fees Accounting Division","EACH","OUTPUT","ADOPTEDBUD",null,null,null,"Official Fees Accounting Division","Monthly –submit statements to elected officials for review & signature and forward to the auditor by the 5th business day after month end 18 accounts X 12 = 216",null,{"$f":"'Data SBP Measures'!$AF1069&'Data SBP Measures'!$AE1069& \" - \"& 'Data SBP Measures'!$U1069","v":"Monthly –submit statements to elected officials for review & signature and forward to the auditor by the 5th business day after month end 18 accounts X 12 = 216Official Fees Accounting Division - 127"},{"$f":"_xlfn.XLOOKUP(VALUE(W1069),'Data SBP Programs'!O:O,'Data SBP Programs'!S:S)","v":"Official Fees Accounting Division"}]
[{"$f":"'Data SBP Measures'!$AI2678&\" - \"&'Data SBP Measures'!$U2678","v":"Correctional Security - 137"},{"$f":"'Data SBP Measures'!$AF2678","v":"Total  Hours"},{"$f":"'Data SBP Measures'!$T2678","v":"3306"},{"$f":"'Data SBP Measures'!$U2678&B1073","v":"137Total  Hours"},{"$f":"'Data SBP Measures'!$Y2678","v":"HOURS"},null,null,null,null,null,"Correctional Security - 137","Total  Hours",null,null,null,null,null,null,null,"2058","127","Y","229","Official Fees Accounting Division","EACH","OUTPUT","ADOPTEDBUD",null,null,null,"Official Fees Accounting Division","Monthly –submit Official Fee Report including State Court Costs to elected officials for review & signature and remit funds to the Treasurer by the 5th business day after month end 5 accounts X 12 = 60",null,{"$f":"'Data SBP Measures'!$AF1073&'Data SBP Measures'!$AE1073& \" - \"& 'Data SBP Measures'!$U1073","v":"Monthly –submit Official Fee Report including State Court Costs to elected officials for review & signature and remit funds to the Treasurer by the 5th business day after month end 5 accounts X 12 = 60Official Fees Accounting Division - 127"},{"$f":"_xlfn.XLOOKUP(VALUE(W1073),'Data SBP Programs'!O:O,'Data SBP Programs'!S:S)","v":"Official Fees Accounting Division"}]
[{"$f":"'Data SBP Measures'!$AI2679&\" - \"&'Data SBP Measures'!$U2679","v":"Correctional Security - 137"},{"$f":"'Data SBP Measures'!$AF2679","v":"Total  Hours"},{"$f":"'Data SBP Measures'!$T2679","v":"3306"},{"$f":"'Data SBP Measures'!$U2679&B1074","v":"137Total  Hours"},{"$f":"'Data SBP Measures'!$Y2679","v":"HOURS"},null,null,null,null,null,"Correctional Security - 137","Total  Hours",null,null,null,null,null,null,null,"2059","127","Y","229","Official Fees Accounting Division","EACH","OUTPUT","ADOPTEDBUD",null,null,null,"Official Fees Accounting Division","Monthly prepare disbursement reports and remittance checks for funds due to other entities including, fines, costs & fees 41 accounts X 251 = 10291",null,{"$f":"'Data SBP Measures'!$AF1074&'Data SBP Measures'!$AE1074& \" - \"& 'Data SBP Measures'!$U1074","v":"Monthly prepare disbursement reports and remittance checks for funds due to other entities including, fines, costs & fees 41 accounts X 251 = 10291Official Fees Accounting Division - 127"},{"$f":"_xlfn.XLOOKUP(VALUE(W1074),'Data SBP Programs'!O:O,'Data SBP Programs'!S:S)","v":"Official Fees Accounting Division"}]
[{"$f":"'Data SBP Measures'!$AI633&\" - \"&'Data SBP Measures'!$U633","v":"County Commissioner Precinct Four - 105"},{"$f":"'Data SBP Measures'!$AF633","v":"# of referrals made to HHS"},{"$f":"'Data SBP Measures'!$T633","v":"1682"},{"$f":"'Data SBP Measures'!$U633&B1078","v":"105# of referrals made to HHS"},{"$f":"'Data SBP Measures'!$Y633","v":"EACH"},null,null,null,null,null,"County Commissioner Precinct Four - 105","# of referrals made to HHS",null,null,null,null,null,null,null,"2060","127","Y","229","Official Fees Accounting Division","EACH","OUTPUT","ADOPTEDBUD",null,null,null,"Official Fees Accounting Division","Monthly -prepare GASB34 Report in Auditor requested format using export file from Odyssey 5 accounts X 12 = 60",null,{"$f":"'Data SBP Measures'!$AF1078&'Data SBP Measures'!$AE1078& \" - \"& 'Data SBP Measures'!$U1078","v":"Monthly -prepare GASB34 Report in Auditor requested format using export file from Odyssey 5 accounts X 12 = 60Official Fees Accounting Division - 127"},{"$f":"_xlfn.XLOOKUP(VALUE(W1078),'Data SBP Programs'!O:O,'Data SBP Programs'!S:S)","v":"Official Fees Accounting Division"}]
[{"$f":"'Data SBP Measures'!$AI635&\" - \"&'Data SBP Measures'!$U635","v":"County Commissioner Precinct Four - 105"},{"$f":"'Data SBP Measures'!$AF635","v":"# of referrals made to other depts within or outside of TC"},{"$f":"'Data SBP Measures'!$T635","v":"1684"},{"$f":"'Data SBP Measures'!$U635&B1079","v":"105# of referrals made to other depts within or outside of TC"},{"$f":"'Data SBP Measures'!$Y635","v":"EACH"},null,null,null,null,null,"County Commissioner Precinct Four - 105","# of referrals made to other depts within or outside of TC",null,null,null,null,null,null,null,"2061","127","Y","229","Official Fees Accounting Division","EACH","OUTPUT","ADOPTEDBUD",null,null,null,"Official Fees Accounting Division","Monthly –submit GASG34 Report to elected officials for review & signature and forward to the Auditor by the 10th business day after month end 5 accounts X 12 = 60",null,{"$f":"'Data SBP Measures'!$AF1079&'Data SBP Measures'!$AE1079& \" - \"& 'Data SBP Measures'!$U1079","v":"Monthly –submit GASG34 Report to elected officials for review & signature and forward to the Auditor by the 10th business day after month end 5 accounts X 12 = 60Official Fees Accounting Division - 127"},{"$f":"_xlfn.XLOOKUP(VALUE(W1079),'Data SBP Programs'!O:O,'Data SBP Programs'!S:S)","v":"Official Fees Accounting Division"}]
[{"$f":"'Data SBP Measures'!$AI632&\" - \"&'Data SBP Measures'!$U632","v":"County Commissioner Precinct Four - 105"},{"$f":"'Data SBP Measures'!$AF632","v":"Quarterly Newsletter"},{"$f":"'Data SBP Measures'!$T632","v":"1681"},{"$f":"'Data SBP Measures'!$U632&B1082","v":"105Quarterly Newsletter"},{"$f":"'Data SBP Measures'!$Y632","v":"EACH"},null,null,null,null,null,"County Commissioner Precinct Four - 105","Quarterly Newsletter",null,null,null,null,null,null,null,"2062","127","Y","229","Official Fees Accounting Division","EACH","OUTPUT","ADOPTEDBUD",null,null,null,"Official Fees Accounting Division","Monthly - maintain statistical collection reports by GL ,fund, tender method and line item 10 Officials X 12 = 120",null,{"$f":"'Data SBP Measures'!$AF1082&'Data SBP Measures'!$AE1082& \" - \"& 'Data SBP Measures'!$U1082","v":"Monthly - maintain statistical collection reports by GL ,fund, tender method and line item 10 Officials X 12 = 120Official Fees Accounting Division - 127"},{"$f":"_xlfn.XLOOKUP(VALUE(W1082),'Data SBP Programs'!O:O,'Data SBP Programs'!S:S)","v":"Official Fees Accounting Division"}]
[{"$f":"'Data SBP Measures'!$AI625&\" - \"&'Data SBP Measures'!$U625","v":"County Commissioner Precinct One - 102"},{"$f":"'Data SBP Measures'!$AF625","v":"Number of agenda items sponsored"},{"$f":"'Data SBP Measures'!$T625","v":"1668"},{"$f":"'Data SBP Measures'!$U625&B1084","v":"102Number of agenda items sponsored"},{"$f":"'Data SBP Measures'!$Y625","v":"EACH"},null,null,null,null,null,"County Commissioner Precinct One - 102","Number of agenda items sponsored",null,null,null,null,null,null,null,"2063","127","Y","229","Official Fees Accounting Division","EACH","OUTPUT","ADOPTEDBUD",null,null,null,"Official Fees Accounting Division","\"Monthly – Post month-end and year-end journal entries to SAP",null,{"$f":"'Data SBP Measures'!$AF1084&'Data SBP Measures'!$AE1084& \" - \"& 'Data SBP Measures'!$U1084","v":"\"Monthly – Post month-end and year-end journal entries to SAPOfficial Fees Accounting Division - 127"},{"$f":"_xlfn.XLOOKUP(VALUE(W1084),'Data SBP Programs'!O:O,'Data SBP Programs'!S:S)","v":"Official Fees Accounting Division"}]
[{"$f":"'Data SBP Measures'!$AI629&\" - \"&'Data SBP Measures'!$U629","v":"County Commissioner Precinct One - 102"},{"$f":"'Data SBP Measures'!$AF629","v":"Number of speeches/presentations given on various topics"},{"$f":"'Data SBP Measures'!$T629","v":"1672"},{"$f":"'Data SBP Measures'!$U629&B1087","v":"102Number of speeches/presentations given on various topics"},{"$f":"'Data SBP Measures'!$Y629","v":"EACH"},null,null,null,null,null,"County Commissioner Precinct One - 102","Number of speeches/presentations given on various topics",null,null,null,null,null,null,null,"2065","127","Y","229","Official Fees Accounting Division","EACH","OUTPUT","ADOPTEDBUD",null,null,null,"Official Fees Accounting Division","Monthly/Annual –monitor & maintain monthly & annual case filing statistics to be used in projecting the annual Target Revenue Estimate 10 Officials X 12 = 120",null,{"$f":"'Data SBP Measures'!$AF1087&'Data SBP Measures'!$AE1087& \" - \"& 'Data SBP Measures'!$U1087","v":"Monthly/Annual –monitor & maintain monthly & annual case filing statistics to be used in projecting the annual Target Revenue Estimate 10 Officials X 12 = 120Official Fees Accounting Division - 127"},{"$f":"_xlfn.XLOOKUP(VALUE(W1087),'Data SBP Programs'!O:O,'Data SBP Programs'!S:S)","v":"Official Fees Accounting Division"}]
[{"$f":"'Data SBP Measures'!$AI3003&\" - \"&'Data SBP Measures'!$U3003","v":"County Commissioner Precinct Three - 104"},{"$f":"'Data SBP Measures'!$AF3003","v":"Number of inquiries responded to"},{"$f":"'Data SBP Measures'!$T3003","v":"3551"},{"$f":"'Data SBP Measures'!$U3003&B1088","v":"104Number of inquiries responded to"},{"$f":"'Data SBP Measures'!$Y3003","v":"EACH"},null,null,null,null,null,"County Commissioner Precinct Three - 104","Number of inquiries responded to",null,null,null,null,null,null,null,"2065","127","Y","229","Official Fees Accounting Division","EACH","OUTPUT","ADOPTEDBUD",null,null,null,"Official Fees Accounting Division","Monthly/Annual –monitor & maintain monthly & annual case filing statistics to be used in projecting the annual Target Revenue Estimate 10 Officials X 12 = 120",null,{"$f":"'Data SBP Measures'!$AF1088&'Data SBP Measures'!$AE1088& \" - \"& 'Data SBP Measures'!$U1088","v":"Monthly/Annual –monitor & maintain monthly & annual case filing statistics to be used in projecting the annual Target Revenue Estimate 10 Officials X 12 = 120Official Fees Accounting Division - 127"},{"$f":"_xlfn.XLOOKUP(VALUE(W1088),'Data SBP Programs'!O:O,'Data SBP Programs'!S:S)","v":"Official Fees Accounting Division"}]
[{"$f":"'Data SBP Measures'!$AI631&\" - \"&'Data SBP Measures'!$U631","v":"County Commissioner Precinct Two - 103"},{"$f":"'Data SBP Measures'!$AF631","v":"Community events and meetings"},{"$f":"'Data SBP Measures'!$T631","v":"1675"},{"$f":"'Data SBP Measures'!$U631&B1092","v":"103Community events and meetings"},{"$f":"'Data SBP Measures'!$Y631","v":"EACH"},null,null,null,null,null,"County Commissioner Precinct Two - 103","Community events and meetings",null,null,null,null,null,null,null,"2067","127","Y","229","Official Fees Accounting Division","EACH","OUTPUT","ADOPTEDBUD",null,null,null,"Official Fees Accounting Division","Monthly - maintain OCA Collection Improvement Reports 5 JP’s X 12 = 60",null,{"$f":"'Data SBP Measures'!$AF1092&'Data SBP Measures'!$AE1092& \" - \"& 'Data SBP Measures'!$U1092","v":"Monthly - maintain OCA Collection Improvement Reports 5 JP’s X 12 = 60Official Fees Accounting Division - 127"},{"$f":"_xlfn.XLOOKUP(VALUE(W1092),'Data SBP Programs'!O:O,'Data SBP Programs'!S:S)","v":"Official Fees Accounting Division"}]
[{"$f":"'Data SBP Measures'!$AI2200&\" - \"&'Data SBP Measures'!$U2200","v":"County Commissioner Precinct Two - 103"},{"$f":"'Data SBP Measures'!$AF2200","v":"Disaster preparedness meetings and events"},{"$f":"'Data SBP Measures'!$T2200","v":"2723"},{"$f":"'Data SBP Measures'!$U2200&B1093","v":"103Disaster preparedness meetings and events"},{"$f":"'Data SBP Measures'!$Y2200","v":"EACH"},null,null,null,null,null,"County Commissioner Precinct Two - 103","Disaster preparedness meetings and events",null,null,null,null,null,null,null,"2068","127","Y","229","Official Fees Accounting Division","EACH","OUTPUT","ADOPTEDBUD",null,null,null,"Official Fees Accounting Division","Monthly/Annual – Submit Collection Improvement Reports to OCA 5 JP’s X 12 = 60 (Monthly), 5 JP’s X 1 = 5 (Annual)",null,{"$f":"'Data SBP Measures'!$AF1093&'Data SBP Measures'!$AE1093& \" - \"& 'Data SBP Measures'!$U1093","v":"Monthly/Annual – Submit Collection Improvement Reports to OCA 5 JP’s X 12 = 60 (Monthly), 5 JP’s X 1 = 5 (Annual)Official Fees Accounting Division - 127"},{"$f":"_xlfn.XLOOKUP(VALUE(W1093),'Data SBP Programs'!O:O,'Data SBP Programs'!S:S)","v":"Official Fees Accounting Division"}]
[{"$f":"'Data SBP Measures'!$AI3509&\" - \"&'Data SBP Measures'!$U3509","v":"County Courts Division - 124"},{"$f":"'Data SBP Measures'!$AF3509","v":"# Cases disposed ÷ # Courts"},{"$f":"'Data SBP Measures'!$T3509","v":"834"},{"$f":"'Data SBP Measures'!$U3509&B1097","v":"124# Cases disposed ÷ # Courts"},{"$f":"'Data SBP Measures'!$Y3509","v":"EACH"},null,null,null,null,null,"County Courts Division - 124","# Cases disposed ÷ # Courts",null,null,null,null,null,null,null,"207","108","Y","24","Property Tax Collections","EACH","INPUT","NEITHER",null,null,null,"Property Tax Collections","Original Tax Roll # Parcels",null,{"$f":"'Data SBP Measures'!$AF1097&'Data SBP Measures'!$AE1097& \" - \"& 'Data SBP Measures'!$U1097","v":"Original Tax Roll # ParcelsProperty Tax Collections - 108"},{"$f":"_xlfn.XLOOKUP(VALUE(W1097),'Data SBP Programs'!O:O,'Data SBP Programs'!S:S)","v":"Property Tax Collections"}]
[{"$f":"'Data SBP Measures'!$AI3511&\" - \"&'Data SBP Measures'!$U3511","v":"County Courts Division - 124"},{"$f":"'Data SBP Measures'!$AF3511","v":"# Cases on the docket each Sep. 30 ÷ # Courts"},{"$f":"'Data SBP Measures'!$T3511","v":"836"},{"$f":"'Data SBP Measures'!$U3511&B1098","v":"124# Cases on the docket each Sep. 30 ÷ # Courts"},{"$f":"'Data SBP Measures'!$Y3511","v":"EACH"},null,null,null,null,null,"County Courts Division - 124","# Cases on the docket each Sep. 30 ÷ # Courts",null,null,null,null,null,null,null,"2070","127","Y","229","Official Fees Accounting Division","EACH","OUTPUT","ADOPTEDBUD",null,null,null,"Official Fees Accounting Division","Annual -  prepare  unclaimed property reports & present to elected officials for signature and submit with fund remittances to the Treasure or State Comptroller 10 offices X 2 reports = 20",null,{"$f":"'Data SBP Measures'!$AF1098&'Data SBP Measures'!$AE1098& \" - \"& 'Data SBP Measures'!$U1098","v":"Annual -  prepare  unclaimed property reports & present to elected officials for signature and submit with fund remittances to the Treasure or State Comptroller 10 offices X 2 reports = 20Official Fees Accounting Division - 127"},{"$f":"_xlfn.XLOOKUP(VALUE(W1098),'Data SBP Programs'!O:O,'Data SBP Programs'!S:S)","v":"Official Fees Accounting Division"}]
[{"$f":"'Data SBP Measures'!$AI3515&\" - \"&'Data SBP Measures'!$U3515","v":"County Courts Division - 124"},{"$f":"'Data SBP Measures'!$AF3515","v":"% of attorneys evaluated for competency"},{"$f":"'Data SBP Measures'!$T3515","v":"840"},{"$f":"'Data SBP Measures'!$U3515&B1102","v":"124% of attorneys evaluated for competency"},{"$f":"'Data SBP Measures'!$Y3515","v":"PERCENT"},null,null,null,null,null,"County Courts Division - 124","% of attorneys evaluated for competency",null,null,null,null,null,null,null,"2072","127","Y","229","Official Fees Accounting Division","EACH","OUTCOME","ADOPTEDBUD",null,null,null,"Official Fees Accounting Division","Comply with statutory requirements for Criminal fund deposits and remittance 41 accounts X 251 = 10291",null,{"$f":"'Data SBP Measures'!$AF1102&'Data SBP Measures'!$AE1102& \" - \"& 'Data SBP Measures'!$U1102","v":"Comply with statutory requirements for Criminal fund deposits and remittance 41 accounts X 251 = 10291Official Fees Accounting Division - 127"},{"$f":"_xlfn.XLOOKUP(VALUE(W1102),'Data SBP Programs'!O:O,'Data SBP Programs'!S:S)","v":"Official Fees Accounting Division"}]
[{"$f":"'Data SBP Measures'!$AI2063&\" - \"&'Data SBP Measures'!$U2063","v":"County Courts Division - 124"},{"$f":"'Data SBP Measures'!$AF2063","v":"% of cases granted a bond at BRD"},{"$f":"'Data SBP Measures'!$T2063","v":"2646"},{"$f":"'Data SBP Measures'!$U2063&B1103","v":"124% of cases granted a bond at BRD"},{"$f":"'Data SBP Measures'!$Y2063","v":"PERCENT"},null,null,null,null,null,"County Courts Division - 124","% of cases granted a bond at BRD",null,null,null,null,null,null,null,"2072","127","Y","229","Official Fees Accounting Division","EACH","OUTCOME","ADOPTEDBUD",null,null,null,"Official Fees Accounting Division","Comply with statutory requirements for Criminal fund deposits and remittance 41 accounts X 251 = 10291",null,{"$f":"'Data SBP Measures'!$AF1103&'Data SBP Measures'!$AE1103& \" - \"& 'Data SBP Measures'!$U1103","v":"Comply with statutory requirements for Criminal fund deposits and remittance 41 accounts X 251 = 10291Official Fees Accounting Division - 127"},{"$f":"_xlfn.XLOOKUP(VALUE(W1103),'Data SBP Programs'!O:O,'Data SBP Programs'!S:S)","v":"Official Fees Accounting Division"}]
[{"$f":"'Data SBP Measures'!$AI3503&\" - \"&'Data SBP Measures'!$U3503","v":"County Courts Division - 124"},{"$f":"'Data SBP Measures'!$AF3503","v":"Cases pending at the end of each fiscal year"},{"$f":"'Data SBP Measures'!$T3503","v":"827"},{"$f":"'Data SBP Measures'!$U3503&B1106","v":"124Cases pending at the end of each fiscal year"},{"$f":"'Data SBP Measures'!$Y3503","v":"EACH"},null,null,null,null,null,"County Courts Division - 124","Cases pending at the end of each fiscal year",null,null,null,null,null,null,null,"2074","127","Y","229","Official Fees Accounting Division","EACH","OUTCOME","ADOPTEDBUD",null,null,null,"Official Fees Accounting Division","Comply with GAAP guidelines & Auditor directives and prepare monthly bank reconciliations by the 5th business day after month end 41 accounts X 251 = 10291",null,{"$f":"'Data SBP Measures'!$AF1106&'Data SBP Measures'!$AE1106& \" - \"& 'Data SBP Measures'!$U1106","v":"Comply with GAAP guidelines & Auditor directives and prepare monthly bank reconciliations by the 5th business day after month end 41 accounts X 251 = 10291Official Fees Accounting Division - 127"},{"$f":"_xlfn.XLOOKUP(VALUE(W1106),'Data SBP Programs'!O:O,'Data SBP Programs'!S:S)","v":"Official Fees Accounting Division"}]
[{"$f":"'Data SBP Measures'!$AI3504&\" - \"&'Data SBP Measures'!$U3504","v":"County Courts Division - 124"},{"$f":"'Data SBP Measures'!$AF3504","v":"Cases reaching the dockets"},{"$f":"'Data SBP Measures'!$T3504","v":"828"},{"$f":"'Data SBP Measures'!$U3504&B1107","v":"124Cases reaching the dockets"},{"$f":"'Data SBP Measures'!$Y3504","v":"EACH"},null,null,null,null,null,"County Courts Division - 124","Cases reaching the dockets",null,null,null,null,null,null,null,"2074","127","Y","229","Official Fees Accounting Division","EACH","OUTCOME","ADOPTEDBUD",null,null,null,"Official Fees Accounting Division","Comply with GAAP guidelines & Auditor directives and prepare monthly bank reconciliations by the 5th business day after month end 41 accounts X 251 = 10291",null,{"$f":"'Data SBP Measures'!$AF1107&'Data SBP Measures'!$AE1107& \" - \"& 'Data SBP Measures'!$U1107","v":"Comply with GAAP guidelines & Auditor directives and prepare monthly bank reconciliations by the 5th business day after month end 41 accounts X 251 = 10291Official Fees Accounting Division - 127"},{"$f":"_xlfn.XLOOKUP(VALUE(W1107),'Data SBP Programs'!O:O,'Data SBP Programs'!S:S)","v":"Official Fees Accounting Division"}]
[{"$f":"'Data SBP Measures'!$AI621&\" - \"&'Data SBP Measures'!$U621","v":"County Courts Division - 124"},{"$f":"'Data SBP Measures'!$AF621","v":"Number of dashboards used by other departments"},{"$f":"'Data SBP Measures'!$T621","v":"1664"},{"$f":"'Data SBP Measures'!$U621&B1111","v":"124Number of dashboards used by other departments"},{"$f":"'Data SBP Measures'!$Y621","v":"EACH"},null,null,null,null,null,"County Courts Division - 124","Number of dashboards used by other departments",null,null,null,null,null,null,null,"2076","127","Y","229","Official Fees Accounting Division","EACH","OUTCOME","ADOPTEDBUD",null,null,null,"Official Fees Accounting Division","Comply with Auditor directives and submit GAAP compliant GASB34 reports to the Auditor by the 10th business day after month end 5 accounts X 12 = 60",null,{"$f":"'Data SBP Measures'!$AF1111&'Data SBP Measures'!$AE1111& \" - \"& 'Data SBP Measures'!$U1111","v":"Comply with Auditor directives and submit GAAP compliant GASB34 reports to the Auditor by the 10th business day after month end 5 accounts X 12 = 60Official Fees Accounting Division - 127"},{"$f":"_xlfn.XLOOKUP(VALUE(W1111),'Data SBP Programs'!O:O,'Data SBP Programs'!S:S)","v":"Official Fees Accounting Division"}]
[{"$f":"'Data SBP Measures'!$AI618&\" - \"&'Data SBP Measures'!$U618","v":"County Courts Division - 124"},{"$f":"'Data SBP Measures'!$AF618","v":"Number of invoices processed automatically"},{"$f":"'Data SBP Measures'!$T618","v":"1661"},{"$f":"'Data SBP Measures'!$U618&B1112","v":"124Number of invoices processed automatically"},{"$f":"'Data SBP Measures'!$Y618","v":"EACH"},null,null,null,null,null,"County Courts Division - 124","Number of invoices processed automatically",null,null,null,null,null,null,null,"2077","127","Y","229","Official Fees Accounting Division","EACH","OUTCOME","ADOPTEDBUD",null,null,null,"Official Fees Accounting Division","Annual – Financial Audits – Work with administration to implement policies and procedures that will gain a rating of “Adequate” or better for each office 10 offices X 1.5 Audits= 15 (Financial Audit or Financial Portion of Audits)",null,{"$f":"'Data SBP Measures'!$AF1112&'Data SBP Measures'!$AE1112& \" - \"& 'Data SBP Measures'!$U1112","v":"Annual – Financial Audits – Work with administration to implement policies and procedures that will gain a rating of “Adequate” or better for each office 10 offices X 1.5 Audits= 15 (Financial Audit or Financial Portion of Audits)Official Fees Accounting Division - 127"},{"$f":"_xlfn.XLOOKUP(VALUE(W1112),'Data SBP Programs'!O:O,'Data SBP Programs'!S:S)","v":"Official Fees Accounting Division"}]
[{"$f":"'Data SBP Measures'!$AI3502&\" - \"&'Data SBP Measures'!$U3502","v":"County Courts Division - 124"},{"$f":"'Data SBP Measures'!$AF3502","v":"Total # of County Courts"},{"$f":"'Data SBP Measures'!$T3502","v":"826"},{"$f":"'Data SBP Measures'!$U3502&B1116","v":"124Total # of County Courts"},{"$f":"'Data SBP Measures'!$Y3502","v":"EACH"},null,null,null,null,null,"County Courts Division - 124","Total # of County Courts",null,null,null,null,null,null,null,"2081","127","Y","230","Civil","EACH","INPUT","ADOPTEDBUD",null,null,null,"Civil","Active cases",null,{"$f":"'Data SBP Measures'!$AF1116&'Data SBP Measures'!$AE1116& \" - \"& 'Data SBP Measures'!$U1116","v":"Active casesCivil - 127"},{"$f":"_xlfn.XLOOKUP(VALUE(W1116),'Data SBP Programs'!O:O,'Data SBP Programs'!S:S)","v":"Civil"}]
[{"$f":"'Data SBP Measures'!$AI3506&\" - \"&'Data SBP Measures'!$U3506","v":"County Courts Division - 124"},{"$f":"'Data SBP Measures'!$AF3506","v":"Total # of dispositions"},{"$f":"'Data SBP Measures'!$T3506","v":"830"},{"$f":"'Data SBP Measures'!$U3506&B1117","v":"124Total # of dispositions"},{"$f":"'Data SBP Measures'!$Y3506","v":"EACH"},null,null,null,null,null,"County Courts Division - 124","Total # of dispositions",null,null,null,null,null,null,null,"2081","127","Y","230","Civil","EACH","INPUT","ADOPTEDBUD",null,null,null,"Civil","Active cases",null,{"$f":"'Data SBP Measures'!$AF1117&'Data SBP Measures'!$AE1117& \" - \"& 'Data SBP Measures'!$U1117","v":"Active casesCivil - 127"},{"$f":"_xlfn.XLOOKUP(VALUE(W1117),'Data SBP Programs'!O:O,'Data SBP Programs'!S:S)","v":"Civil"}]
[{"$f":"'Data SBP Measures'!$AI640&\" - \"&'Data SBP Measures'!$U640","v":"County Treasurer - 107"},{"$f":"'Data SBP Measures'!$AF640","v":"# of warrants (jury,claims) processed"},{"$f":"'Data SBP Measures'!$T640","v":"1689"},{"$f":"'Data SBP Measures'!$U640&B1121","v":"107# of warrants (jury,claims) processed"},{"$f":"'Data SBP Measures'!$Y640","v":"EACH"},null,null,null,null,null,"County Treasurer - 107","# of warrants (jury,claims) processed",null,null,null,null,null,null,null,"2082","127","Y","230","Civil","EACH","INPUT","ADOPTEDBUD",null,null,null,"Civil","Added cases",null,{"$f":"'Data SBP Measures'!$AF1121&'Data SBP Measures'!$AE1121& \" - \"& 'Data SBP Measures'!$U1121","v":"Added casesCivil - 127"},{"$f":"_xlfn.XLOOKUP(VALUE(W1121),'Data SBP Programs'!O:O,'Data SBP Programs'!S:S)","v":"Civil"}]
[{"$f":"'Data SBP Measures'!$AI643&\" - \"&'Data SBP Measures'!$U643","v":"County Treasurer - 107"},{"$f":"'Data SBP Measures'!$AF643","v":"% by which County assets are collateralized"},{"$f":"'Data SBP Measures'!$T643","v":"1692"},{"$f":"'Data SBP Measures'!$U643&B1122","v":"107% by which County assets are collateralized"},{"$f":"'Data SBP Measures'!$Y643","v":"PERCENT"},null,null,null,null,null,"County Treasurer - 107","% by which County assets are collateralized",null,null,null,null,null,null,null,"2082","127","Y","230","Civil","EACH","INPUT","ADOPTEDBUD",null,null,null,"Civil","Added cases",null,{"$f":"'Data SBP Measures'!$AF1122&'Data SBP Measures'!$AE1122& \" - \"& 'Data SBP Measures'!$U1122","v":"Added casesCivil - 127"},{"$f":"_xlfn.XLOOKUP(VALUE(W1122),'Data SBP Programs'!O:O,'Data SBP Programs'!S:S)","v":"Civil"}]
[{"$f":"'Data SBP Measures'!$AI638&\" - \"&'Data SBP Measures'!$U638","v":"County Treasurer - 107"},{"$f":"'Data SBP Measures'!$AF638","v":"Warrants drawn on controlled disbursement account allowing for immediate use of excess funds for investing"},{"$f":"'Data SBP Measures'!$T638","v":"1687"},{"$f":"'Data SBP Measures'!$U638&B1125","v":"107Warrants drawn on controlled disbursement account allowing for immediate use of excess funds for investing"},{"$f":"'Data SBP Measures'!$Y638","v":"EACH"},null,null,null,null,null,"County Treasurer - 107","Warrants drawn on controlled disbursement account allowing for immediate use of excess funds for investing",null,null,null,null,null,null,null,"2083","127","Y","230","Civil","EACH","OUTPUT","ADOPTEDBUD",null,null,null,"Civil","Disposed Cases",null,{"$f":"'Data SBP Measures'!$AF1125&'Data SBP Measures'!$AE1125& \" - \"& 'Data SBP Measures'!$U1125","v":"Disposed CasesCivil - 127"},{"$f":"_xlfn.XLOOKUP(VALUE(W1125),'Data SBP Programs'!O:O,'Data SBP Programs'!S:S)","v":"Civil"}]
[{"$f":"'Data SBP Measures'!$AI3546&\" - \"&'Data SBP Measures'!$U3546","v":"Court Administration - 145"},{"$f":"'Data SBP Measures'!$AF3546","v":"Average percent decrease in monthly error rate"},{"$f":"'Data SBP Measures'!$T3546","v":"886"},{"$f":"'Data SBP Measures'!$U3546&B1126","v":"145Average percent decrease in monthly error rate"},{"$f":"'Data SBP Measures'!$Y3546","v":"PERCENT"},null,null,null,null,null,"Court Administration - 145","Average percent decrease in monthly error rate",null,null,null,null,null,null,null,"2083","127","Y","230","Civil","EACH","OUTPUT","ADOPTEDBUD",null,null,null,"Civil","Disposed Cases",null,{"$f":"'Data SBP Measures'!$AF1126&'Data SBP Measures'!$AE1126& \" - \"& 'Data SBP Measures'!$U1126","v":"Disposed CasesCivil - 127"},{"$f":"_xlfn.XLOOKUP(VALUE(W1126),'Data SBP Programs'!O:O,'Data SBP Programs'!S:S)","v":"Civil"}]
[{"$f":"'Data SBP Measures'!$AI603&\" - \"&'Data SBP Measures'!$U603","v":"Court Services - 145"},{"$f":"'Data SBP Measures'!$AF603","v":"Percent of Successfully Completing (Deferred Prosecution)"},{"$f":"'Data SBP Measures'!$T603","v":"1649"},{"$f":"'Data SBP Measures'!$U603&B1130","v":"145Percent of Successfully Completing (Deferred Prosecution)"},{"$f":"'Data SBP Measures'!$Y603","v":"PERCENT"},null,null,null,null,null,"Court Services - 145","Percent of Successfully Completing (Deferred Prosecution)",null,null,null,null,null,null,null,"2086","127","Y","231","Criminal","EACH","EFFICIENCY","ADOPTEDBUD",null,null,null,"Criminal","Active cases",null,{"$f":"'Data SBP Measures'!$AF1130&'Data SBP Measures'!$AE1130& \" - \"& 'Data SBP Measures'!$U1130","v":"Active casesCriminal - 127"},{"$f":"_xlfn.XLOOKUP(VALUE(W1130),'Data SBP Programs'!O:O,'Data SBP Programs'!S:S)","v":"Criminal"}]
[{"$f":"'Data SBP Measures'!$AI605&\" - \"&'Data SBP Measures'!$U605","v":"Court Services - 145"},{"$f":"'Data SBP Measures'!$AF605","v":"Percent of Successfully Completing (Deferred Prosecution)"},{"$f":"'Data SBP Measures'!$T605","v":"1649"},{"$f":"'Data SBP Measures'!$U605&B1132","v":"145Percent of Successfully Completing (Deferred Prosecution)"},{"$f":"'Data SBP Measures'!$Y605","v":"PERCENT"},null,null,null,null,null,"Court Services - 145","Percent of Successfully Completing (Deferred Prosecution)",null,null,null,null,null,null,null,"2087","127","Y","231","Criminal","EACH","INPUT","ADOPTEDBUD",null,null,null,"Criminal","Added cases",null,{"$f":"'Data SBP Measures'!$AF1132&'Data SBP Measures'!$AE1132& \" - \"& 'Data SBP Measures'!$U1132","v":"Added casesCriminal - 127"},{"$f":"_xlfn.XLOOKUP(VALUE(W1132),'Data SBP Programs'!O:O,'Data SBP Programs'!S:S)","v":"Criminal"}]
[{"$f":"'Data SBP Measures'!$AI608&\" - \"&'Data SBP Measures'!$U608","v":"Court Services - 145"},{"$f":"'Data SBP Measures'!$AF608","v":"Percent of Successfully Completing (Deferred Prosecution)"},{"$f":"'Data SBP Measures'!$T608","v":"1649"},{"$f":"'Data SBP Measures'!$U608&B1135","v":"145Percent of Successfully Completing (Deferred Prosecution)"},{"$f":"'Data SBP Measures'!$Y608","v":"PERCENT"},null,null,null,null,null,"Court Services - 145","Percent of Successfully Completing (Deferred Prosecution)",null,null,null,null,null,null,null,"2087","127","Y","231","Criminal","EACH","INPUT","ADOPTEDBUD",null,null,null,"Criminal","Added cases",null,{"$f":"'Data SBP Measures'!$AF1135&'Data SBP Measures'!$AE1135& \" - \"& 'Data SBP Measures'!$U1135","v":"Added casesCriminal - 127"},{"$f":"_xlfn.XLOOKUP(VALUE(W1135),'Data SBP Programs'!O:O,'Data SBP Programs'!S:S)","v":"Criminal"}]
[{"$f":"'Data SBP Measures'!$AI609&\" - \"&'Data SBP Measures'!$U609","v":"Court Services - 145"},{"$f":"'Data SBP Measures'!$AF609","v":"Percent of Successfully Completing (Deferred Prosecution)"},{"$f":"'Data SBP Measures'!$T609","v":"1649"},{"$f":"'Data SBP Measures'!$U609&B1136","v":"145Percent of Successfully Completing (Deferred Prosecution)"},{"$f":"'Data SBP Measures'!$Y609","v":"PERCENT"},null,null,null,null,null,"Court Services - 145","Percent of Successfully Completing (Deferred Prosecution)",null,null,null,null,null,null,null,"2087","127","Y","231","Criminal","EACH","INPUT","ADOPTEDBUD",null,null,null,"Criminal","Added cases",null,{"$f":"'Data SBP Measures'!$AF1136&'Data SBP Measures'!$AE1136& \" - \"& 'Data SBP Measures'!$U1136","v":"Added casesCriminal - 127"},{"$f":"_xlfn.XLOOKUP(VALUE(W1136),'Data SBP Programs'!O:O,'Data SBP Programs'!S:S)","v":"Criminal"}]
[{"$f":"'Data SBP Measures'!$AI585&\" - \"&'Data SBP Measures'!$U585","v":"Court Services - 145"},{"$f":"'Data SBP Measures'!$AF585","v":"Percent of Successfully Completing (NCC)"},{"$f":"'Data SBP Measures'!$T585","v":"1646"},{"$f":"'Data SBP Measures'!$U585&B1140","v":"145Percent of Successfully Completing (NCC)"},{"$f":"'Data SBP Measures'!$Y585","v":"PERCENT"},null,null,null,null,null,"Court Services - 145","Percent of Successfully Completing (NCC)",null,null,null,null,null,null,null,"2088","127","Y","231","Criminal","EACH","OUTPUT","ADOPTEDBUD",null,null,null,"Criminal","Disposed Cases",null,{"$f":"'Data SBP Measures'!$AF1140&'Data SBP Measures'!$AE1140& \" - \"& 'Data SBP Measures'!$U1140","v":"Disposed CasesCriminal - 127"},{"$f":"_xlfn.XLOOKUP(VALUE(W1140),'Data SBP Programs'!O:O,'Data SBP Programs'!S:S)","v":"Criminal"}]
[{"$f":"'Data SBP Measures'!$AI586&\" - \"&'Data SBP Measures'!$U586","v":"Court Services - 145"},{"$f":"'Data SBP Measures'!$AF586","v":"Percent of Successfully Completing (NCC)"},{"$f":"'Data SBP Measures'!$T586","v":"1646"},{"$f":"'Data SBP Measures'!$U586&B1141","v":"145Percent of Successfully Completing (NCC)"},{"$f":"'Data SBP Measures'!$Y586","v":"PERCENT"},null,null,null,null,null,"Court Services - 145","Percent of Successfully Completing (NCC)",null,null,null,null,null,null,null,"2088","127","Y","231","Criminal","EACH","OUTPUT","ADOPTEDBUD",null,null,null,"Criminal","Disposed Cases",null,{"$f":"'Data SBP Measures'!$AF1141&'Data SBP Measures'!$AE1141& \" - \"& 'Data SBP Measures'!$U1141","v":"Disposed CasesCriminal - 127"},{"$f":"_xlfn.XLOOKUP(VALUE(W1141),'Data SBP Programs'!O:O,'Data SBP Programs'!S:S)","v":"Criminal"}]
[{"$f":"'Data SBP Measures'!$AI596&\" - \"&'Data SBP Measures'!$U596","v":"Court Services - 145"},{"$f":"'Data SBP Measures'!$AF596","v":"Percent of Successfully Completing (Second Chance)"},{"$f":"'Data SBP Measures'!$T596","v":"1648"},{"$f":"'Data SBP Measures'!$U596&B1144","v":"145Percent of Successfully Completing (Second Chance)"},{"$f":"'Data SBP Measures'!$Y596","v":"PERCENT"},null,null,null,null,null,"Court Services - 145","Percent of Successfully Completing (Second Chance)",null,null,null,null,null,null,null,"209","108","Y","24","Property Tax Collections","EACH","INPUT","NEITHER",null,null,null,"Property Tax Collections","# Special Inventory Dealers",null,{"$f":"'Data SBP Measures'!$AF1144&'Data SBP Measures'!$AE1144& \" - \"& 'Data SBP Measures'!$U1144","v":"# Special Inventory DealersProperty Tax Collections - 108"},{"$f":"_xlfn.XLOOKUP(VALUE(W1144),'Data SBP Programs'!O:O,'Data SBP Programs'!S:S)","v":"Property Tax Collections"}]
[{"$f":"'Data SBP Measures'!$AI597&\" - \"&'Data SBP Measures'!$U597","v":"Court Services - 145"},{"$f":"'Data SBP Measures'!$AF597","v":"Percent of Successfully Completing (Second Chance)"},{"$f":"'Data SBP Measures'!$T597","v":"1648"},{"$f":"'Data SBP Measures'!$U597&B1145","v":"145Percent of Successfully Completing (Second Chance)"},{"$f":"'Data SBP Measures'!$Y597","v":"PERCENT"},null,null,null,null,null,"Court Services - 145","Percent of Successfully Completing (Second Chance)",null,null,null,null,null,null,null,"2090","127","Y","232","Juvenile Case Manager","EACH","OUTPUT","ADOPTEDBUD",null,null,null,"Juvenile Case Manager","Cases Assigned to Juvenile Case Manager",null,{"$f":"'Data SBP Measures'!$AF1145&'Data SBP Measures'!$AE1145& \" - \"& 'Data SBP Measures'!$U1145","v":"Cases Assigned to Juvenile Case ManagerJuvenile Case Manager - 127"},{"$f":"_xlfn.XLOOKUP(VALUE(W1145),'Data SBP Programs'!O:O,'Data SBP Programs'!S:S)","v":"Juvenile Case Manager"}]
[{"$f":"'Data SBP Measures'!$AI601&\" - \"&'Data SBP Measures'!$U601","v":"Court Services - 145"},{"$f":"'Data SBP Measures'!$AF601","v":"Percent of Successfully Completing (Second Chance)"},{"$f":"'Data SBP Measures'!$T601","v":"1648"},{"$f":"'Data SBP Measures'!$U601&B1149","v":"145Percent of Successfully Completing (Second Chance)"},{"$f":"'Data SBP Measures'!$Y601","v":"PERCENT"},null,null,null,null,null,"Court Services - 145","Percent of Successfully Completing (Second Chance)",null,null,null,null,null,null,null,"2092","127","Y","232","Juvenile Case Manager","EACH","EFFICIENCY","ADOPTEDBUD",null,null,null,"Juvenile Case Manager","Total on Docket",null,{"$f":"'Data SBP Measures'!$AF1149&'Data SBP Measures'!$AE1149& \" - \"& 'Data SBP Measures'!$U1149","v":"Total on DocketJuvenile Case Manager - 127"},{"$f":"_xlfn.XLOOKUP(VALUE(W1149),'Data SBP Programs'!O:O,'Data SBP Programs'!S:S)","v":"Juvenile Case Manager"}]
[{"$f":"'Data SBP Measures'!$AI589&\" - \"&'Data SBP Measures'!$U589","v":"Court Services - 145"},{"$f":"'Data SBP Measures'!$AF589","v":"Percent of Successfully Completing (Sole Sanction)"},{"$f":"'Data SBP Measures'!$T589","v":"1647"},{"$f":"'Data SBP Measures'!$U589&B1151","v":"145Percent of Successfully Completing (Sole Sanction)"},{"$f":"'Data SBP Measures'!$Y589","v":"PERCENT"},null,null,null,null,null,"Court Services - 145","Percent of Successfully Completing (Sole Sanction)",null,null,null,null,null,null,null,"2093","128","Y","233","Civil","EACH","INPUT","ADOPTEDBUD",null,null,null,"Civil","Small Claims Cases Filed",null,{"$f":"'Data SBP Measures'!$AF1151&'Data SBP Measures'!$AE1151& \" - \"& 'Data SBP Measures'!$U1151","v":"Small Claims Cases FiledCivil - 128"},{"$f":"_xlfn.XLOOKUP(VALUE(W1151),'Data SBP Programs'!O:O,'Data SBP Programs'!S:S)","v":"Civil"}]
[{"$f":"'Data SBP Measures'!$AI592&\" - \"&'Data SBP Measures'!$U592","v":"Court Services - 145"},{"$f":"'Data SBP Measures'!$AF592","v":"Percent of Successfully Completing (Sole Sanction)"},{"$f":"'Data SBP Measures'!$T592","v":"1647"},{"$f":"'Data SBP Measures'!$U592&B1154","v":"145Percent of Successfully Completing (Sole Sanction)"},{"$f":"'Data SBP Measures'!$Y592","v":"PERCENT"},null,null,null,null,null,"Court Services - 145","Percent of Successfully Completing (Sole Sanction)",null,null,null,null,null,null,null,"2094","128","Y","233","Civil","EACH","INPUT","ADOPTEDBUD",null,null,null,"Civil","Evictions and Landlord Tenant Cases Filed",null,{"$f":"'Data SBP Measures'!$AF1154&'Data SBP Measures'!$AE1154& \" - \"& 'Data SBP Measures'!$U1154","v":"Evictions and Landlord Tenant Cases FiledCivil - 128"},{"$f":"_xlfn.XLOOKUP(VALUE(W1154),'Data SBP Programs'!O:O,'Data SBP Programs'!S:S)","v":"Civil"}]
[{"$f":"'Data SBP Measures'!$AI593&\" - \"&'Data SBP Measures'!$U593","v":"Court Services - 145"},{"$f":"'Data SBP Measures'!$AF593","v":"Percent of Successfully Completing (Sole Sanction)"},{"$f":"'Data SBP Measures'!$T593","v":"1647"},{"$f":"'Data SBP Measures'!$U593&B1155","v":"145Percent of Successfully Completing (Sole Sanction)"},{"$f":"'Data SBP Measures'!$Y593","v":"PERCENT"},null,null,null,null,null,"Court Services - 145","Percent of Successfully Completing (Sole Sanction)",null,null,null,null,null,null,null,"2094","128","Y","233","Civil","EACH","INPUT","ADOPTEDBUD",null,null,null,"Civil","Evictions and Landlord Tenant Cases Filed",null,{"$f":"'Data SBP Measures'!$AF1155&'Data SBP Measures'!$AE1155& \" - \"& 'Data SBP Measures'!$U1155","v":"Evictions and Landlord Tenant Cases FiledCivil - 128"},{"$f":"_xlfn.XLOOKUP(VALUE(W1155),'Data SBP Programs'!O:O,'Data SBP Programs'!S:S)","v":"Civil"}]
[{"$f":"'Data SBP Measures'!$AI292&\" - \"&'Data SBP Measures'!$U292","v":"Courthouse Security - 137"},{"$f":"'Data SBP Measures'!$AF292","v":"No. of arrests involving weapons or drugs"},{"$f":"'Data SBP Measures'!$T292","v":"1346"},{"$f":"'Data SBP Measures'!$U292&B1159","v":"137No. of arrests involving weapons or drugs"},{"$f":"'Data SBP Measures'!$Y292","v":"EACH"},null,null,null,null,null,"Courthouse Security - 137","No. of arrests involving weapons or drugs",null,null,null,null,null,null,null,"2095","128","Y","233","Civil","EACH","INPUT","ADOPTEDBUD",null,null,null,"Civil","Debt Claim Cases Filed",null,{"$f":"'Data SBP Measures'!$AF1159&'Data SBP Measures'!$AE1159& \" - \"& 'Data SBP Measures'!$U1159","v":"Debt Claim Cases FiledCivil - 128"},{"$f":"_xlfn.XLOOKUP(VALUE(W1159),'Data SBP Programs'!O:O,'Data SBP Programs'!S:S)","v":"Civil"}]
[{"$f":"'Data SBP Measures'!$AI293&\" - \"&'Data SBP Measures'!$U293","v":"Courthouse Security - 137"},{"$f":"'Data SBP Measures'!$AF293","v":"No. of citations issued  by Courthouse Security"},{"$f":"'Data SBP Measures'!$T293","v":"1347"},{"$f":"'Data SBP Measures'!$U293&B1160","v":"137No. of citations issued  by Courthouse Security"},{"$f":"'Data SBP Measures'!$Y293","v":"EACH"},null,null,null,null,null,"Courthouse Security - 137","No. of citations issued  by Courthouse Security",null,null,null,null,null,null,null,"2096","128","Y","233","Civil","EACH","INPUT","ADOPTEDBUD",null,null,null,"Civil","Truant Conduct Cases Filed",null,{"$f":"'Data SBP Measures'!$AF1160&'Data SBP Measures'!$AE1160& \" - \"& 'Data SBP Measures'!$U1160","v":"Truant Conduct Cases FiledCivil - 128"},{"$f":"_xlfn.XLOOKUP(VALUE(W1160),'Data SBP Programs'!O:O,'Data SBP Programs'!S:S)","v":"Civil"}]
[{"$f":"'Data SBP Measures'!$AI295&\" - \"&'Data SBP Measures'!$U295","v":"Courthouse Security - 137"},{"$f":"'Data SBP Measures'!$AF295","v":"No. of other arrests"},{"$f":"'Data SBP Measures'!$T295","v":"1348"},{"$f":"'Data SBP Measures'!$U295&B1164","v":"137No. of other arrests"},{"$f":"'Data SBP Measures'!$Y295","v":"EACH"},null,null,null,null,null,"Courthouse Security - 137","No. of other arrests",null,null,null,null,null,null,null,"2097","128","Y","233","Civil","EACH","INPUT","ADOPTEDBUD",null,null,null,"Civil","Total Civil Cases Filed",null,{"$f":"'Data SBP Measures'!$AF1164&'Data SBP Measures'!$AE1164& \" - \"& 'Data SBP Measures'!$U1164","v":"Total Civil Cases FiledCivil - 128"},{"$f":"_xlfn.XLOOKUP(VALUE(W1164),'Data SBP Programs'!O:O,'Data SBP Programs'!S:S)","v":"Civil"}]
[{"$f":"'Data SBP Measures'!$AI296&\" - \"&'Data SBP Measures'!$U296","v":"Courthouse Security - 137"},{"$f":"'Data SBP Measures'!$AF296","v":"No. of other arrests"},{"$f":"'Data SBP Measures'!$T296","v":"1348"},{"$f":"'Data SBP Measures'!$U296&B1165","v":"137No. of other arrests"},{"$f":"'Data SBP Measures'!$Y296","v":"EACH"},null,null,null,null,null,"Courthouse Security - 137","No. of other arrests",null,null,null,null,null,null,null,"2097","128","Y","233","Civil","EACH","INPUT","ADOPTEDBUD",null,null,null,"Civil","Total Civil Cases Filed",null,{"$f":"'Data SBP Measures'!$AF1165&'Data SBP Measures'!$AE1165& \" - \"& 'Data SBP Measures'!$U1165","v":"Total Civil Cases FiledCivil - 128"},{"$f":"_xlfn.XLOOKUP(VALUE(W1165),'Data SBP Programs'!O:O,'Data SBP Programs'!S:S)","v":"Civil"}]
[{"$f":"'Data SBP Measures'!$AI297&\" - \"&'Data SBP Measures'!$U297","v":"Courthouse Security - 137"},{"$f":"'Data SBP Measures'!$AF297","v":"No. of security screenings"},{"$f":"'Data SBP Measures'!$T297","v":"1349"},{"$f":"'Data SBP Measures'!$U297&B1168","v":"137No. of security screenings"},{"$f":"'Data SBP Measures'!$Y297","v":"EACH"},null,null,null,null,null,"Courthouse Security - 137","No. of security screenings",null,null,null,null,null,null,null,"2098","128","Y","233","Civil","EACH","OUTCOME","ADOPTEDBUD",null,null,null,"Civil","Small Claims Case Dispositions",null,{"$f":"'Data SBP Measures'!$AF1168&'Data SBP Measures'!$AE1168& \" - \"& 'Data SBP Measures'!$U1168","v":"Small Claims Case DispositionsCivil - 128"},{"$f":"_xlfn.XLOOKUP(VALUE(W1168),'Data SBP Programs'!O:O,'Data SBP Programs'!S:S)","v":"Civil"}]
[{"$f":"'Data SBP Measures'!$AI2480&\" - \"&'Data SBP Measures'!$U2480","v":"Courthouse Security - 137"},{"$f":"'Data SBP Measures'!$AF2480","v":"No. of Total Arrests"},{"$f":"'Data SBP Measures'!$T2480","v":"3123"},{"$f":"'Data SBP Measures'!$U2480&B1170","v":"137No. of Total Arrests"},{"$f":"'Data SBP Measures'!$Y2480","v":"EACH"},null,null,null,null,null,"Courthouse Security - 137","No. of Total Arrests",null,null,null,null,null,null,null,"2099","128","Y","233","Civil","EACH","OUTCOME","ADOPTEDBUD",null,null,null,"Civil","Evictions and Landlord Tenant Case Dispositions",null,{"$f":"'Data SBP Measures'!$AF1170&'Data SBP Measures'!$AE1170& \" - \"& 'Data SBP Measures'!$U1170","v":"Evictions and Landlord Tenant Case DispositionsCivil - 128"},{"$f":"_xlfn.XLOOKUP(VALUE(W1170),'Data SBP Programs'!O:O,'Data SBP Programs'!S:S)","v":"Civil"}]
[{"$f":"'Data SBP Measures'!$AI1644&\" - \"&'Data SBP Measures'!$U1644","v":"Crime Victims Fund - 140"},{"$f":"'Data SBP Measures'!$AF1644","v":"Cost of Volunteer Service Hours ($24.66 -2014)"},{"$f":"'Data SBP Measures'!$T1644","v":"2348"},{"$f":"'Data SBP Measures'!$U1644&B1173","v":"140Cost of Volunteer Service Hours ($24.66 -2014)"},{"$f":"'Data SBP Measures'!$Y1644","v":"DOLLARS"},null,null,null,null,null,"Crime Victims Fund - 140","Cost of Volunteer Service Hours ($24.66 -2014)",null,null,null,null,null,null,null,"210","108","Y","24","Property Tax Collections","DOLLARS","OUTCOME","NEITHER",null,null,null,"Property Tax Collections","Resolved District Court Appeal - $ Total Value Loss",null,{"$f":"'Data SBP Measures'!$AF1173&'Data SBP Measures'!$AE1173& \" - \"& 'Data SBP Measures'!$U1173","v":"Resolved District Court Appeal - $ Total Value LossProperty Tax Collections - 108"},{"$f":"_xlfn.XLOOKUP(VALUE(W1173),'Data SBP Programs'!O:O,'Data SBP Programs'!S:S)","v":"Property Tax Collections"}]
[{"$f":"'Data SBP Measures'!$AI1641&\" - \"&'Data SBP Measures'!$U1641","v":"Crime Victims Fund - 140"},{"$f":"'Data SBP Measures'!$AF1641","v":"Total # of Crime Victims served"},{"$f":"'Data SBP Measures'!$T1641","v":"2345"},{"$f":"'Data SBP Measures'!$U1641&B1174","v":"140Total # of Crime Victims served"},{"$f":"'Data SBP Measures'!$Y1641","v":"EACH"},null,null,null,null,null,"Crime Victims Fund - 140","Total # of Crime Victims served",null,null,null,null,null,null,null,"2100","128","Y","233","Civil","EACH","OUTCOME","ADOPTEDBUD",null,null,null,"Civil","Debt Claim Case Dispositions",null,{"$f":"'Data SBP Measures'!$AF1174&'Data SBP Measures'!$AE1174& \" - \"& 'Data SBP Measures'!$U1174","v":"Debt Claim Case DispositionsCivil - 128"},{"$f":"_xlfn.XLOOKUP(VALUE(W1174),'Data SBP Programs'!O:O,'Data SBP Programs'!S:S)","v":"Civil"}]
[{"$f":"'Data SBP Measures'!$AI1006&\" - \"&'Data SBP Measures'!$U1006","v":"Criminal - 126"},{"$f":"'Data SBP Measures'!$AF1006","v":"Cost per case filed"},{"$f":"'Data SBP Measures'!$T1006","v":"2027"},{"$f":"'Data SBP Measures'!$U1006&B1178","v":"126Cost per case filed"},{"$f":"'Data SBP Measures'!$Y1006","v":"DOLLARS"},null,null,null,null,null,"Criminal - 126","Cost per case filed",null,null,null,null,null,null,null,"2101","128","Y","233","Civil","EACH","OUTCOME","ADOPTEDBUD",null,null,null,"Civil","Total Civil Dispositions",null,{"$f":"'Data SBP Measures'!$AF1178&'Data SBP Measures'!$AE1178& \" - \"& 'Data SBP Measures'!$U1178","v":"Total Civil DispositionsCivil - 128"},{"$f":"_xlfn.XLOOKUP(VALUE(W1178),'Data SBP Programs'!O:O,'Data SBP Programs'!S:S)","v":"Civil"}]
[{"$f":"'Data SBP Measures'!$AI1007&\" - \"&'Data SBP Measures'!$U1007","v":"Criminal - 126"},{"$f":"'Data SBP Measures'!$AF1007","v":"Cost per case filed"},{"$f":"'Data SBP Measures'!$T1007","v":"2027"},{"$f":"'Data SBP Measures'!$U1007&B1179","v":"126Cost per case filed"},{"$f":"'Data SBP Measures'!$Y1007","v":"DOLLARS"},null,null,null,null,null,"Criminal - 126","Cost per case filed",null,null,null,null,null,null,null,"2101","128","Y","233","Civil","EACH","OUTCOME","ADOPTEDBUD",null,null,null,"Civil","Total Civil Dispositions",null,{"$f":"'Data SBP Measures'!$AF1179&'Data SBP Measures'!$AE1179& \" - \"& 'Data SBP Measures'!$U1179","v":"Total Civil DispositionsCivil - 128"},{"$f":"_xlfn.XLOOKUP(VALUE(W1179),'Data SBP Programs'!O:O,'Data SBP Programs'!S:S)","v":"Civil"}]
[{"$f":"'Data SBP Measures'!$AI994&\" - \"&'Data SBP Measures'!$U994","v":"Criminal - 126"},{"$f":"'Data SBP Measures'!$AF994","v":"Number of cases processed after online payment accepted (New)"},{"$f":"'Data SBP Measures'!$T994","v":"2025"},{"$f":"'Data SBP Measures'!$U994&B1181","v":"126Number of cases processed after online payment accepted (New)"},{"$f":"'Data SBP Measures'!$Y994","v":"EACH"},null,null,null,null,null,"Criminal - 126","Number of cases processed after online payment accepted (New)",null,null,null,null,null,null,null,"2102","128","Y","234","Criminal","EACH","INPUT","ADOPTEDBUD",null,null,null,"Criminal","New cases filed – Traffic",null,{"$f":"'Data SBP Measures'!$AF1181&'Data SBP Measures'!$AE1181& \" - \"& 'Data SBP Measures'!$U1181","v":"New cases filed – TrafficCriminal - 128"},{"$f":"_xlfn.XLOOKUP(VALUE(W1181),'Data SBP Programs'!O:O,'Data SBP Programs'!S:S)","v":"Criminal"}]
[{"$f":"'Data SBP Measures'!$AI997&\" - \"&'Data SBP Measures'!$U997","v":"Criminal - 126"},{"$f":"'Data SBP Measures'!$AF997","v":"Number of cases processed after online payment accepted (New)"},{"$f":"'Data SBP Measures'!$T997","v":"2025"},{"$f":"'Data SBP Measures'!$U997&B1184","v":"126Number of cases processed after online payment accepted (New)"},{"$f":"'Data SBP Measures'!$Y997","v":"EACH"},null,null,null,null,null,"Criminal - 126","Number of cases processed after online payment accepted (New)",null,null,null,null,null,null,null,"2102","128","Y","234","Criminal","EACH","INPUT","ADOPTEDBUD",null,null,null,"Criminal","New cases filed – Traffic",null,{"$f":"'Data SBP Measures'!$AF1184&'Data SBP Measures'!$AE1184& \" - \"& 'Data SBP Measures'!$U1184","v":"New cases filed – TrafficCriminal - 128"},{"$f":"_xlfn.XLOOKUP(VALUE(W1184),'Data SBP Programs'!O:O,'Data SBP Programs'!S:S)","v":"Criminal"}]
[{"$f":"'Data SBP Measures'!$AI990&\" - \"&'Data SBP Measures'!$U990","v":"Criminal - 126"},{"$f":"'Data SBP Measures'!$AF990","v":"Number of cases sent to Collections (New)"},{"$f":"'Data SBP Measures'!$T990","v":"2024"},{"$f":"'Data SBP Measures'!$U990&B1187","v":"126Number of cases sent to Collections (New)"},{"$f":"'Data SBP Measures'!$Y990","v":"EACH"},null,null,null,null,null,"Criminal - 126","Number of cases sent to Collections (New)",null,null,null,null,null,null,null,"2103","128","Y","234","Criminal","EACH","INPUT","ADOPTEDBUD",null,null,null,"Criminal","New cases filed – Non-Traffic",null,{"$f":"'Data SBP Measures'!$AF1187&'Data SBP Measures'!$AE1187& \" - \"& 'Data SBP Measures'!$U1187","v":"New cases filed – Non-TrafficCriminal - 128"},{"$f":"_xlfn.XLOOKUP(VALUE(W1187),'Data SBP Programs'!O:O,'Data SBP Programs'!S:S)","v":"Criminal"}]
[{"$f":"'Data SBP Measures'!$AI992&\" - \"&'Data SBP Measures'!$U992","v":"Criminal - 126"},{"$f":"'Data SBP Measures'!$AF992","v":"Number of cases sent to Collections (New)"},{"$f":"'Data SBP Measures'!$T992","v":"2024"},{"$f":"'Data SBP Measures'!$U992&B1189","v":"126Number of cases sent to Collections (New)"},{"$f":"'Data SBP Measures'!$Y992","v":"EACH"},null,null,null,null,null,"Criminal - 126","Number of cases sent to Collections (New)",null,null,null,null,null,null,null,"2103","128","Y","234","Criminal","EACH","INPUT","ADOPTEDBUD",null,null,null,"Criminal","New cases filed – Non-Traffic",null,{"$f":"'Data SBP Measures'!$AF1189&'Data SBP Measures'!$AE1189& \" - \"& 'Data SBP Measures'!$U1189","v":"New cases filed – Non-TrafficCriminal - 128"},{"$f":"_xlfn.XLOOKUP(VALUE(W1189),'Data SBP Programs'!O:O,'Data SBP Programs'!S:S)","v":"Criminal"}]
[{"$f":"'Data SBP Measures'!$AI960&\" - \"&'Data SBP Measures'!$U960","v":"Criminal - 126"},{"$f":"'Data SBP Measures'!$AF960","v":"Number of cases sent to Omni"},{"$f":"'Data SBP Measures'!$T960","v":"2018"},{"$f":"'Data SBP Measures'!$U960&B1192","v":"126Number of cases sent to Omni"},{"$f":"'Data SBP Measures'!$Y960","v":"EACH"},null,null,null,null,null,"Criminal - 126","Number of cases sent to Omni",null,null,null,null,null,null,null,"2104","128","Y","234","Criminal","EACH","INPUT","ADOPTEDBUD",null,null,null,"Criminal","Total Criminal Cases Filed",null,{"$f":"'Data SBP Measures'!$AF1192&'Data SBP Measures'!$AE1192& \" - \"& 'Data SBP Measures'!$U1192","v":"Total Criminal Cases FiledCriminal - 128"},{"$f":"_xlfn.XLOOKUP(VALUE(W1192),'Data SBP Programs'!O:O,'Data SBP Programs'!S:S)","v":"Criminal"}]
[{"$f":"'Data SBP Measures'!$AI961&\" - \"&'Data SBP Measures'!$U961","v":"Criminal - 126"},{"$f":"'Data SBP Measures'!$AF961","v":"Number of cases sent to Omni"},{"$f":"'Data SBP Measures'!$T961","v":"2018"},{"$f":"'Data SBP Measures'!$U961&B1193","v":"126Number of cases sent to Omni"},{"$f":"'Data SBP Measures'!$Y961","v":"EACH"},null,null,null,null,null,"Criminal - 126","Number of cases sent to Omni",null,null,null,null,null,null,null,"2104","128","Y","234","Criminal","EACH","INPUT","ADOPTEDBUD",null,null,null,"Criminal","Total Criminal Cases Filed",null,{"$f":"'Data SBP Measures'!$AF1193&'Data SBP Measures'!$AE1193& \" - \"& 'Data SBP Measures'!$U1193","v":"Total Criminal Cases FiledCriminal - 128"},{"$f":"_xlfn.XLOOKUP(VALUE(W1193),'Data SBP Programs'!O:O,'Data SBP Programs'!S:S)","v":"Criminal"}]
[{"$f":"'Data SBP Measures'!$AI940&\" - \"&'Data SBP Measures'!$U940","v":"Criminal - 126"},{"$f":"'Data SBP Measures'!$AF940","v":"Number of Class C cases filed (formerly Traffic cases filed)"},{"$f":"'Data SBP Measures'!$T940","v":"2014"},{"$f":"'Data SBP Measures'!$U940&B1197","v":"126Number of Class C cases filed (formerly Traffic cases filed)"},{"$f":"'Data SBP Measures'!$Y940","v":"EACH"},null,null,null,null,null,"Criminal - 126","Number of Class C cases filed (formerly Traffic cases filed)",null,null,null,null,null,null,null,"2110","128","Y","234","Criminal","EACH","OUTCOME","ADOPTEDBUD",null,null,null,"Criminal","Total Criminal Cases Disposed\n",null,{"$f":"'Data SBP Measures'!$AF1197&'Data SBP Measures'!$AE1197& \" - \"& 'Data SBP Measures'!$U1197","v":"Total Criminal Cases Disposed\nCriminal - 128"},{"$f":"_xlfn.XLOOKUP(VALUE(W1197),'Data SBP Programs'!O:O,'Data SBP Programs'!S:S)","v":"Criminal"}]
[{"$f":"'Data SBP Measures'!$AI941&\" - \"&'Data SBP Measures'!$U941","v":"Criminal - 126"},{"$f":"'Data SBP Measures'!$AF941","v":"Number of Class C cases filed (formerly Traffic cases filed)"},{"$f":"'Data SBP Measures'!$T941","v":"2014"},{"$f":"'Data SBP Measures'!$U941&B1198","v":"126Number of Class C cases filed (formerly Traffic cases filed)"},{"$f":"'Data SBP Measures'!$Y941","v":"EACH"},null,null,null,null,null,"Criminal - 126","Number of Class C cases filed (formerly Traffic cases filed)",null,null,null,null,null,null,null,"2110","128","Y","234","Criminal","EACH","OUTCOME","ADOPTEDBUD",null,null,null,"Criminal","Total Criminal Cases Disposed\n",null,{"$f":"'Data SBP Measures'!$AF1198&'Data SBP Measures'!$AE1198& \" - \"& 'Data SBP Measures'!$U1198","v":"Total Criminal Cases Disposed\nCriminal - 128"},{"$f":"_xlfn.XLOOKUP(VALUE(W1198),'Data SBP Programs'!O:O,'Data SBP Programs'!S:S)","v":"Criminal"}]
[{"$f":"'Data SBP Measures'!$AI943&\" - \"&'Data SBP Measures'!$U943","v":"Criminal - 126"},{"$f":"'Data SBP Measures'!$AF943","v":"Number of Class C cases filed (formerly Traffic cases filed)"},{"$f":"'Data SBP Measures'!$T943","v":"2014"},{"$f":"'Data SBP Measures'!$U943&B1200","v":"126Number of Class C cases filed (formerly Traffic cases filed)"},{"$f":"'Data SBP Measures'!$Y943","v":"EACH"},null,null,null,null,null,"Criminal - 126","Number of Class C cases filed (formerly Traffic cases filed)",null,null,null,null,null,null,null,"2110","128","Y","234","Criminal","EACH","OUTCOME","ADOPTEDBUD",null,null,null,"Criminal","Total Criminal Cases Disposed\n",null,{"$f":"'Data SBP Measures'!$AF1200&'Data SBP Measures'!$AE1200& \" - \"& 'Data SBP Measures'!$U1200","v":"Total Criminal Cases Disposed\nCriminal - 128"},{"$f":"_xlfn.XLOOKUP(VALUE(W1200),'Data SBP Programs'!O:O,'Data SBP Programs'!S:S)","v":"Criminal"}]
[{"$f":"'Data SBP Measures'!$AI951&\" - \"&'Data SBP Measures'!$U951","v":"Criminal - 126"},{"$f":"'Data SBP Measures'!$AF951","v":"Number of Criminal Truancy Cases filed (violation sunset 9/1/15)"},{"$f":"'Data SBP Measures'!$T951","v":"2016"},{"$f":"'Data SBP Measures'!$U951&B1203","v":"126Number of Criminal Truancy Cases filed (violation sunset 9/1/15)"},{"$f":"'Data SBP Measures'!$Y951","v":"EACH"},null,null,null,null,null,"Criminal - 126","Number of Criminal Truancy Cases filed (violation sunset 9/1/15)",null,null,null,null,null,null,null,"2111","128","Y","234","Criminal","EACH","OUTPUT","ADOPTEDBUD",null,null,null,"Criminal","Pre-Trial Hearings",null,{"$f":"'Data SBP Measures'!$AF1203&'Data SBP Measures'!$AE1203& \" - \"& 'Data SBP Measures'!$U1203","v":"Pre-Trial HearingsCriminal - 128"},{"$f":"_xlfn.XLOOKUP(VALUE(W1203),'Data SBP Programs'!O:O,'Data SBP Programs'!S:S)","v":"Criminal"}]
[{"$f":"'Data SBP Measures'!$AI999&\" - \"&'Data SBP Measures'!$U999","v":"Criminal - 126"},{"$f":"'Data SBP Measures'!$AF999","v":"Number of Employees to process cases"},{"$f":"'Data SBP Measures'!$T999","v":"2026"},{"$f":"'Data SBP Measures'!$U999&B1206","v":"126Number of Employees to process cases"},{"$f":"'Data SBP Measures'!$Y999","v":"FTE"},null,null,null,null,null,"Criminal - 126","Number of Employees to process cases",null,null,null,null,null,null,null,"2112","128","Y","234","Criminal","EACH","OUTPUT","ADOPTEDBUD",null,null,null,"Criminal","Trial By Court Hearings",null,{"$f":"'Data SBP Measures'!$AF1206&'Data SBP Measures'!$AE1206& \" - \"& 'Data SBP Measures'!$U1206","v":"Trial By Court HearingsCriminal - 128"},{"$f":"_xlfn.XLOOKUP(VALUE(W1206),'Data SBP Programs'!O:O,'Data SBP Programs'!S:S)","v":"Criminal"}]
[{"$f":"'Data SBP Measures'!$AI1001&\" - \"&'Data SBP Measures'!$U1001","v":"Criminal - 126"},{"$f":"'Data SBP Measures'!$AF1001","v":"Number of Employees to process cases"},{"$f":"'Data SBP Measures'!$T1001","v":"2026"},{"$f":"'Data SBP Measures'!$U1001&B1208","v":"126Number of Employees to process cases"},{"$f":"'Data SBP Measures'!$Y1001","v":"FTE"},null,null,null,null,null,"Criminal - 126","Number of Employees to process cases",null,null,null,null,null,null,null,"2112","128","Y","234","Criminal","EACH","OUTPUT","ADOPTEDBUD",null,null,null,"Criminal","Trial By Court Hearings",null,{"$f":"'Data SBP Measures'!$AF1208&'Data SBP Measures'!$AE1208& \" - \"& 'Data SBP Measures'!$U1208","v":"Trial By Court HearingsCriminal - 128"},{"$f":"_xlfn.XLOOKUP(VALUE(W1208),'Data SBP Programs'!O:O,'Data SBP Programs'!S:S)","v":"Criminal"}]
[{"$f":"'Data SBP Measures'!$AI979&\" - \"&'Data SBP Measures'!$U979","v":"Criminal - 126"},{"$f":"'Data SBP Measures'!$AF979","v":"Number of faxes/emails received for processing (New)"},{"$f":"'Data SBP Measures'!$T979","v":"2022"},{"$f":"'Data SBP Measures'!$U979&B1211","v":"126Number of faxes/emails received for processing (New)"},{"$f":"'Data SBP Measures'!$Y979","v":"EACH"},null,null,null,null,null,"Criminal - 126","Number of faxes/emails received for processing (New)",null,null,null,null,null,null,null,"2113","128","Y","234","Criminal","EACH","OUTPUT","ADOPTEDBUD",null,null,null,"Criminal","Jury Trial Hearings",null,{"$f":"'Data SBP Measures'!$AF1211&'Data SBP Measures'!$AE1211& \" - \"& 'Data SBP Measures'!$U1211","v":"Jury Trial HearingsCriminal - 128"},{"$f":"_xlfn.XLOOKUP(VALUE(W1211),'Data SBP Programs'!O:O,'Data SBP Programs'!S:S)","v":"Criminal"}]
[{"$f":"'Data SBP Measures'!$AI980&\" - \"&'Data SBP Measures'!$U980","v":"Criminal - 126"},{"$f":"'Data SBP Measures'!$AF980","v":"Number of faxes/emails received for processing (New)"},{"$f":"'Data SBP Measures'!$T980","v":"2022"},{"$f":"'Data SBP Measures'!$U980&B1212","v":"126Number of faxes/emails received for processing (New)"},{"$f":"'Data SBP Measures'!$Y980","v":"EACH"},null,null,null,null,null,"Criminal - 126","Number of faxes/emails received for processing (New)",null,null,null,null,null,null,null,"2113","128","Y","234","Criminal","EACH","OUTPUT","ADOPTEDBUD",null,null,null,"Criminal","Jury Trial Hearings",null,{"$f":"'Data SBP Measures'!$AF1212&'Data SBP Measures'!$AE1212& \" - \"& 'Data SBP Measures'!$U1212","v":"Jury Trial HearingsCriminal - 128"},{"$f":"_xlfn.XLOOKUP(VALUE(W1212),'Data SBP Programs'!O:O,'Data SBP Programs'!S:S)","v":"Criminal"}]
[{"$f":"'Data SBP Measures'!$AI984&\" - \"&'Data SBP Measures'!$U984","v":"Criminal - 126"},{"$f":"'Data SBP Measures'!$AF984","v":"Number of motions filed (New)"},{"$f":"'Data SBP Measures'!$T984","v":"2023"},{"$f":"'Data SBP Measures'!$U984&B1216","v":"126Number of motions filed (New)"},{"$f":"'Data SBP Measures'!$Y984","v":"EACH"},null,null,null,null,null,"Criminal - 126","Number of motions filed (New)",null,null,null,null,null,null,null,"2114","128","Y","234","Criminal","EACH","OUTPUT","ADOPTEDBUD",null,null,null,"Criminal","Show Cause Hearings",null,{"$f":"'Data SBP Measures'!$AF1216&'Data SBP Measures'!$AE1216& \" - \"& 'Data SBP Measures'!$U1216","v":"Show Cause HearingsCriminal - 128"},{"$f":"_xlfn.XLOOKUP(VALUE(W1216),'Data SBP Programs'!O:O,'Data SBP Programs'!S:S)","v":"Criminal"}]
[{"$f":"'Data SBP Measures'!$AI985&\" - \"&'Data SBP Measures'!$U985","v":"Criminal - 126"},{"$f":"'Data SBP Measures'!$AF985","v":"Number of motions filed (New)"},{"$f":"'Data SBP Measures'!$T985","v":"2023"},{"$f":"'Data SBP Measures'!$U985&B1217","v":"126Number of motions filed (New)"},{"$f":"'Data SBP Measures'!$Y985","v":"EACH"},null,null,null,null,null,"Criminal - 126","Number of motions filed (New)",null,null,null,null,null,null,null,"2114","128","Y","234","Criminal","EACH","OUTPUT","ADOPTEDBUD",null,null,null,"Criminal","Show Cause Hearings",null,{"$f":"'Data SBP Measures'!$AF1217&'Data SBP Measures'!$AE1217& \" - \"& 'Data SBP Measures'!$U1217","v":"Show Cause HearingsCriminal - 128"},{"$f":"_xlfn.XLOOKUP(VALUE(W1217),'Data SBP Programs'!O:O,'Data SBP Programs'!S:S)","v":"Criminal"}]
[{"$f":"'Data SBP Measures'!$AI987&\" - \"&'Data SBP Measures'!$U987","v":"Criminal - 126"},{"$f":"'Data SBP Measures'!$AF987","v":"Number of motions filed (New)"},{"$f":"'Data SBP Measures'!$T987","v":"2023"},{"$f":"'Data SBP Measures'!$U987&B1219","v":"126Number of motions filed (New)"},{"$f":"'Data SBP Measures'!$Y987","v":"EACH"},null,null,null,null,null,"Criminal - 126","Number of motions filed (New)",null,null,null,null,null,null,null,"2114","128","Y","234","Criminal","EACH","OUTPUT","ADOPTEDBUD",null,null,null,"Criminal","Show Cause Hearings",null,{"$f":"'Data SBP Measures'!$AF1219&'Data SBP Measures'!$AE1219& \" - \"& 'Data SBP Measures'!$U1219","v":"Show Cause HearingsCriminal - 128"},{"$f":"_xlfn.XLOOKUP(VALUE(W1219),'Data SBP Programs'!O:O,'Data SBP Programs'!S:S)","v":"Criminal"}]
[{"$f":"'Data SBP Measures'!$AI945&\" - \"&'Data SBP Measures'!$U945","v":"Criminal - 126"},{"$f":"'Data SBP Measures'!$AF945","v":"Number of Pre-trials Scheduled"},{"$f":"'Data SBP Measures'!$T945","v":"2015"},{"$f":"'Data SBP Measures'!$U945&B1222","v":"126Number of Pre-trials Scheduled"},{"$f":"'Data SBP Measures'!$Y945","v":"EACH"},null,null,null,null,null,"Criminal - 126","Number of Pre-trials Scheduled",null,null,null,null,null,null,null,"2116","128","Y","234","Criminal","EACH","OUTPUT","ADOPTEDBUD",null,null,null,"Criminal","Juvenile/Minor Hearings",null,{"$f":"'Data SBP Measures'!$AF1222&'Data SBP Measures'!$AE1222& \" - \"& 'Data SBP Measures'!$U1222","v":"Juvenile/Minor HearingsCriminal - 128"},{"$f":"_xlfn.XLOOKUP(VALUE(W1222),'Data SBP Programs'!O:O,'Data SBP Programs'!S:S)","v":"Criminal"}]
[{"$f":"'Data SBP Measures'!$AI948&\" - \"&'Data SBP Measures'!$U948","v":"Criminal - 126"},{"$f":"'Data SBP Measures'!$AF948","v":"Number of Pre-trials Scheduled"},{"$f":"'Data SBP Measures'!$T948","v":"2015"},{"$f":"'Data SBP Measures'!$U948&B1225","v":"126Number of Pre-trials Scheduled"},{"$f":"'Data SBP Measures'!$Y948","v":"EACH"},null,null,null,null,null,"Criminal - 126","Number of Pre-trials Scheduled",null,null,null,null,null,null,null,"2116","128","Y","234","Criminal","EACH","OUTPUT","ADOPTEDBUD",null,null,null,"Criminal","Juvenile/Minor Hearings",null,{"$f":"'Data SBP Measures'!$AF1225&'Data SBP Measures'!$AE1225& \" - \"& 'Data SBP Measures'!$U1225","v":"Juvenile/Minor HearingsCriminal - 128"},{"$f":"_xlfn.XLOOKUP(VALUE(W1225),'Data SBP Programs'!O:O,'Data SBP Programs'!S:S)","v":"Criminal"}]
[{"$f":"'Data SBP Measures'!$AI975&\" - \"&'Data SBP Measures'!$U975","v":"Criminal - 126"},{"$f":"'Data SBP Measures'!$AF975","v":"Number of telephone calls received (New)"},{"$f":"'Data SBP Measures'!$T975","v":"2021"},{"$f":"'Data SBP Measures'!$U975&B1227","v":"126Number of telephone calls received (New)"},{"$f":"'Data SBP Measures'!$Y975","v":"EACH"},null,null,null,null,null,"Criminal - 126","Number of telephone calls received (New)",null,null,null,null,null,null,null,"2117","128","Y","234","Criminal","EACH","OUTPUT","ADOPTEDBUD",null,null,null,"Criminal","Truancy Hearings",null,{"$f":"'Data SBP Measures'!$AF1227&'Data SBP Measures'!$AE1227& \" - \"& 'Data SBP Measures'!$U1227","v":"Truancy HearingsCriminal - 128"},{"$f":"_xlfn.XLOOKUP(VALUE(W1227),'Data SBP Programs'!O:O,'Data SBP Programs'!S:S)","v":"Criminal"}]
[{"$f":"'Data SBP Measures'!$AI978&\" - \"&'Data SBP Measures'!$U978","v":"Criminal - 126"},{"$f":"'Data SBP Measures'!$AF978","v":"Number of telephone calls received (New)"},{"$f":"'Data SBP Measures'!$T978","v":"2021"},{"$f":"'Data SBP Measures'!$U978&B1230","v":"126Number of telephone calls received (New)"},{"$f":"'Data SBP Measures'!$Y978","v":"EACH"},null,null,null,null,null,"Criminal - 126","Number of telephone calls received (New)",null,null,null,null,null,null,null,"2117","128","Y","234","Criminal","EACH","OUTPUT","ADOPTEDBUD",null,null,null,"Criminal","Truancy Hearings",null,{"$f":"'Data SBP Measures'!$AF1230&'Data SBP Measures'!$AE1230& \" - \"& 'Data SBP Measures'!$U1230","v":"Truancy HearingsCriminal - 128"},{"$f":"_xlfn.XLOOKUP(VALUE(W1230),'Data SBP Programs'!O:O,'Data SBP Programs'!S:S)","v":"Criminal"}]
[{"$f":"'Data SBP Measures'!$AI964&\" - \"&'Data SBP Measures'!$U964","v":"Criminal - 126"},{"$f":"'Data SBP Measures'!$AF964","v":"Number of Toll cases filed"},{"$f":"'Data SBP Measures'!$T964","v":"2019"},{"$f":"'Data SBP Measures'!$U964&B1231","v":"126Number of Toll cases filed"},{"$f":"'Data SBP Measures'!$Y964","v":"EACH"},null,null,null,null,null,"Criminal - 126","Number of Toll cases filed",null,null,null,null,null,null,null,"2118","128","Y","234","Criminal","EACH","OUTPUT","ADOPTEDBUD",null,null,null,"Criminal","Truancy Show Cause Hearings",null,{"$f":"'Data SBP Measures'!$AF1231&'Data SBP Measures'!$AE1231& \" - \"& 'Data SBP Measures'!$U1231","v":"Truancy Show Cause HearingsCriminal - 128"},{"$f":"_xlfn.XLOOKUP(VALUE(W1231),'Data SBP Programs'!O:O,'Data SBP Programs'!S:S)","v":"Criminal"}]
[{"$f":"'Data SBP Measures'!$AI968&\" - \"&'Data SBP Measures'!$U968","v":"Criminal - 126"},{"$f":"'Data SBP Measures'!$AF968","v":"Number of Toll cases filed"},{"$f":"'Data SBP Measures'!$T968","v":"2019"},{"$f":"'Data SBP Measures'!$U968&B1235","v":"126Number of Toll cases filed"},{"$f":"'Data SBP Measures'!$Y968","v":"EACH"},null,null,null,null,null,"Criminal - 126","Number of Toll cases filed",null,null,null,null,null,null,null,"2118","128","Y","234","Criminal","EACH","OUTPUT","ADOPTEDBUD",null,null,null,"Criminal","Truancy Show Cause Hearings",null,{"$f":"'Data SBP Measures'!$AF1235&'Data SBP Measures'!$AE1235& \" - \"& 'Data SBP Measures'!$U1235","v":"Truancy Show Cause HearingsCriminal - 128"},{"$f":"_xlfn.XLOOKUP(VALUE(W1235),'Data SBP Programs'!O:O,'Data SBP Programs'!S:S)","v":"Criminal"}]
[{"$f":"'Data SBP Measures'!$AI954&\" - \"&'Data SBP Measures'!$U954","v":"Criminal - 126"},{"$f":"'Data SBP Measures'!$AF954","v":"Number of Warrants Issued"},{"$f":"'Data SBP Measures'!$T954","v":"2017"},{"$f":"'Data SBP Measures'!$U954&B1236","v":"126Number of Warrants Issued"},{"$f":"'Data SBP Measures'!$Y954","v":"EACH"},null,null,null,null,null,"Criminal - 126","Number of Warrants Issued",null,null,null,null,null,null,null,"2119","128","Y","234","Criminal","EACH","OUTPUT","ADOPTEDBUD",null,null,null,"Criminal","Parent Contributing Hearings",null,{"$f":"'Data SBP Measures'!$AF1236&'Data SBP Measures'!$AE1236& \" - \"& 'Data SBP Measures'!$U1236","v":"Parent Contributing HearingsCriminal - 128"},{"$f":"_xlfn.XLOOKUP(VALUE(W1236),'Data SBP Programs'!O:O,'Data SBP Programs'!S:S)","v":"Criminal"}]
[{"$f":"'Data SBP Measures'!$AI956&\" - \"&'Data SBP Measures'!$U956","v":"Criminal - 126"},{"$f":"'Data SBP Measures'!$AF956","v":"Number of Warrants Issued"},{"$f":"'Data SBP Measures'!$T956","v":"2017"},{"$f":"'Data SBP Measures'!$U956&B1238","v":"126Number of Warrants Issued"},{"$f":"'Data SBP Measures'!$Y956","v":"EACH"},null,null,null,null,null,"Criminal - 126","Number of Warrants Issued",null,null,null,null,null,null,null,"2119","128","Y","234","Criminal","EACH","OUTPUT","ADOPTEDBUD",null,null,null,"Criminal","Parent Contributing Hearings",null,{"$f":"'Data SBP Measures'!$AF1238&'Data SBP Measures'!$AE1238& \" - \"& 'Data SBP Measures'!$U1238","v":"Parent Contributing HearingsCriminal - 128"},{"$f":"_xlfn.XLOOKUP(VALUE(W1238),'Data SBP Programs'!O:O,'Data SBP Programs'!S:S)","v":"Criminal"}]
[{"$f":"'Data SBP Measures'!$AI1009&\" - \"&'Data SBP Measures'!$U1009","v":"Criminal - 126"},{"$f":"'Data SBP Measures'!$AF1009","v":"Percentage of disposed to cases filed"},{"$f":"'Data SBP Measures'!$T1009","v":"2028"},{"$f":"'Data SBP Measures'!$U1009&B1241","v":"126Percentage of disposed to cases filed"},{"$f":"'Data SBP Measures'!$Y1009","v":"PERCENT"},null,null,null,null,null,"Criminal - 126","Percentage of disposed to cases filed",null,null,null,null,null,null,null,"212","108","Y","24","Property Tax Collections","EACH","OUTPUT","NEITHER",null,null,null,"Property Tax Collections","Contracts for Future Taxes Assessed & Escrowed - # Parcels",null,{"$f":"'Data SBP Measures'!$AF1241&'Data SBP Measures'!$AE1241& \" - \"& 'Data SBP Measures'!$U1241","v":"Contracts for Future Taxes Assessed & Escrowed - # ParcelsProperty Tax Collections - 108"},{"$f":"_xlfn.XLOOKUP(VALUE(W1241),'Data SBP Programs'!O:O,'Data SBP Programs'!S:S)","v":"Property Tax Collections"}]
[{"$f":"'Data SBP Measures'!$AI1012&\" - \"&'Data SBP Measures'!$U1012","v":"Criminal - 126"},{"$f":"'Data SBP Measures'!$AF1012","v":"Percentage of disposed to cases filed"},{"$f":"'Data SBP Measures'!$T1012","v":"2028"},{"$f":"'Data SBP Measures'!$U1012&B1244","v":"126Percentage of disposed to cases filed"},{"$f":"'Data SBP Measures'!$Y1012","v":"PERCENT"},null,null,null,null,null,"Criminal - 126","Percentage of disposed to cases filed",null,null,null,null,null,null,null,"2121","128","Y","234","Criminal","EACH","OUTPUT","ADOPTEDBUD",null,null,null,"Criminal","Total Trial Hearings",null,{"$f":"'Data SBP Measures'!$AF1244&'Data SBP Measures'!$AE1244& \" - \"& 'Data SBP Measures'!$U1244","v":"Total Trial HearingsCriminal - 128"},{"$f":"_xlfn.XLOOKUP(VALUE(W1244),'Data SBP Programs'!O:O,'Data SBP Programs'!S:S)","v":"Criminal"}]
[{"$f":"'Data SBP Measures'!$AI969&\" - \"&'Data SBP Measures'!$U969","v":"Criminal - 126"},{"$f":"'Data SBP Measures'!$AF969","v":"Pieces of mail processed (New)"},{"$f":"'Data SBP Measures'!$T969","v":"2020"},{"$f":"'Data SBP Measures'!$U969&B1246","v":"126Pieces of mail processed (New)"},{"$f":"'Data SBP Measures'!$Y969","v":"EACH"},null,null,null,null,null,"Criminal - 126","Pieces of mail processed (New)",null,null,null,null,null,null,null,"2121","128","Y","234","Criminal","EACH","OUTPUT","ADOPTEDBUD",null,null,null,"Criminal","Total Trial Hearings",null,{"$f":"'Data SBP Measures'!$AF1246&'Data SBP Measures'!$AE1246& \" - \"& 'Data SBP Measures'!$U1246","v":"Total Trial HearingsCriminal - 128"},{"$f":"_xlfn.XLOOKUP(VALUE(W1246),'Data SBP Programs'!O:O,'Data SBP Programs'!S:S)","v":"Criminal"}]
[{"$f":"'Data SBP Measures'!$AI972&\" - \"&'Data SBP Measures'!$U972","v":"Criminal - 126"},{"$f":"'Data SBP Measures'!$AF972","v":"Pieces of mail processed (New)"},{"$f":"'Data SBP Measures'!$T972","v":"2020"},{"$f":"'Data SBP Measures'!$U972&B1249","v":"126Pieces of mail processed (New)"},{"$f":"'Data SBP Measures'!$Y972","v":"EACH"},null,null,null,null,null,"Criminal - 126","Pieces of mail processed (New)",null,null,null,null,null,null,null,"2122","128","Y","234","Criminal","EACH","OUTPUT","ADOPTEDBUD",null,null,null,"Criminal","Warrants Issued",null,{"$f":"'Data SBP Measures'!$AF1249&'Data SBP Measures'!$AE1249& \" - \"& 'Data SBP Measures'!$U1249","v":"Warrants IssuedCriminal - 128"},{"$f":"_xlfn.XLOOKUP(VALUE(W1249),'Data SBP Programs'!O:O,'Data SBP Programs'!S:S)","v":"Criminal"}]
[{"$f":"'Data SBP Measures'!$AI973&\" - \"&'Data SBP Measures'!$U973","v":"Criminal - 126"},{"$f":"'Data SBP Measures'!$AF973","v":"Pieces of mail processed (New)"},{"$f":"'Data SBP Measures'!$T973","v":"2020"},{"$f":"'Data SBP Measures'!$U973&B1250","v":"126Pieces of mail processed (New)"},{"$f":"'Data SBP Measures'!$Y973","v":"EACH"},null,null,null,null,null,"Criminal - 126","Pieces of mail processed (New)",null,null,null,null,null,null,null,"2122","128","Y","234","Criminal","EACH","OUTPUT","ADOPTEDBUD",null,null,null,"Criminal","Warrants Issued",null,{"$f":"'Data SBP Measures'!$AF1250&'Data SBP Measures'!$AE1250& \" - \"& 'Data SBP Measures'!$U1250","v":"Warrants IssuedCriminal - 128"},{"$f":"_xlfn.XLOOKUP(VALUE(W1250),'Data SBP Programs'!O:O,'Data SBP Programs'!S:S)","v":"Criminal"}]
[{"$f":"'Data SBP Measures'!$AI1130&\" - \"&'Data SBP Measures'!$U1130","v":"Criminal - 127"},{"$f":"'Data SBP Measures'!$AF1130","v":"Active cases"},{"$f":"'Data SBP Measures'!$T1130","v":"2086"},{"$f":"'Data SBP Measures'!$U1130&B1254","v":"127Active cases"},{"$f":"'Data SBP Measures'!$Y1130","v":"EACH"},null,null,null,null,null,"Criminal - 127","Active cases",null,null,null,null,null,null,null,"2133","128","Y","235","Juvenile Case Manager","EACH","OUTPUT","ADOPTEDBUD",null,null,null,"Juvenile Case Manager","Number of  Parents/Students who attended a JCM class\n",null,{"$f":"'Data SBP Measures'!$AF1254&'Data SBP Measures'!$AE1254& \" - \"& 'Data SBP Measures'!$U1254","v":"Number of  Parents/Students who attended a JCM class\nJuvenile Case Manager - 128"},{"$f":"_xlfn.XLOOKUP(VALUE(W1254),'Data SBP Programs'!O:O,'Data SBP Programs'!S:S)","v":"Juvenile Case Manager"}]
[{"$f":"'Data SBP Measures'!$AI1131&\" - \"&'Data SBP Measures'!$U1131","v":"Criminal - 127"},{"$f":"'Data SBP Measures'!$AF1131","v":"Active cases"},{"$f":"'Data SBP Measures'!$T1131","v":"2086"},{"$f":"'Data SBP Measures'!$U1131&B1255","v":"127Active cases"},{"$f":"'Data SBP Measures'!$Y1131","v":"EACH"},null,null,null,null,null,"Criminal - 127","Active cases",null,null,null,null,null,null,null,"2134","128","Y","235","Juvenile Case Manager","EACH","OUTPUT","ADOPTEDBUD",null,null,null,"Juvenile Case Manager","Number of referrals made for services",null,{"$f":"'Data SBP Measures'!$AF1255&'Data SBP Measures'!$AE1255& \" - \"& 'Data SBP Measures'!$U1255","v":"Number of referrals made for servicesJuvenile Case Manager - 128"},{"$f":"_xlfn.XLOOKUP(VALUE(W1255),'Data SBP Programs'!O:O,'Data SBP Programs'!S:S)","v":"Juvenile Case Manager"}]
[{"$f":"'Data SBP Measures'!$AI1133&\" - \"&'Data SBP Measures'!$U1133","v":"Criminal - 127"},{"$f":"'Data SBP Measures'!$AF1133","v":"Added cases"},{"$f":"'Data SBP Measures'!$T1133","v":"2087"},{"$f":"'Data SBP Measures'!$U1133&B1257","v":"127Added cases"},{"$f":"'Data SBP Measures'!$Y1133","v":"EACH"},null,null,null,null,null,"Criminal - 127","Added cases",null,null,null,null,null,null,null,"214","108","Y","24","Property Tax Collections","EACH","OUTPUT","NEITHER",null,null,null,"Property Tax Collections","# Exempt Property Assessed (estimated for future year)",null,{"$f":"'Data SBP Measures'!$AF1257&'Data SBP Measures'!$AE1257& \" - \"& 'Data SBP Measures'!$U1257","v":"# Exempt Property Assessed (estimated for future year)Property Tax Collections - 108"},{"$f":"_xlfn.XLOOKUP(VALUE(W1257),'Data SBP Programs'!O:O,'Data SBP Programs'!S:S)","v":"Property Tax Collections"}]
[{"$f":"'Data SBP Measures'!$AI1136&\" - \"&'Data SBP Measures'!$U1136","v":"Criminal - 127"},{"$f":"'Data SBP Measures'!$AF1136","v":"Added cases"},{"$f":"'Data SBP Measures'!$T1136","v":"2087"},{"$f":"'Data SBP Measures'!$U1136&B1260","v":"127Added cases"},{"$f":"'Data SBP Measures'!$Y1136","v":"EACH"},null,null,null,null,null,"Criminal - 127","Added cases",null,null,null,null,null,null,null,"2161","129","Y","236","Civil Division","FTE","INPUT","ADOPTEDBUD",null,null,null,"Civil Division","# of Clerks to process cases filed",null,{"$f":"'Data SBP Measures'!$AF1260&'Data SBP Measures'!$AE1260& \" - \"& 'Data SBP Measures'!$U1260","v":"# of Clerks to process cases filedCivil Division - 129"},{"$f":"_xlfn.XLOOKUP(VALUE(W1260),'Data SBP Programs'!O:O,'Data SBP Programs'!S:S)","v":"Civil Division"}]
[{"$f":"'Data SBP Measures'!$AI1139&\" - \"&'Data SBP Measures'!$U1139","v":"Criminal - 127"},{"$f":"'Data SBP Measures'!$AF1139","v":"Disposed Cases"},{"$f":"'Data SBP Measures'!$T1139","v":"2088"},{"$f":"'Data SBP Measures'!$U1139&B1263","v":"127Disposed Cases"},{"$f":"'Data SBP Measures'!$Y1139","v":"EACH"},null,null,null,null,null,"Criminal - 127","Disposed Cases",null,null,null,null,null,null,null,"2162","129","Y","236","Civil Division","EACH","INPUT","ADOPTEDBUD",null,null,null,"Civil Division","Total pending Cases",null,{"$f":"'Data SBP Measures'!$AF1263&'Data SBP Measures'!$AE1263& \" - \"& 'Data SBP Measures'!$U1263","v":"Total pending CasesCivil Division - 129"},{"$f":"_xlfn.XLOOKUP(VALUE(W1263),'Data SBP Programs'!O:O,'Data SBP Programs'!S:S)","v":"Civil Division"}]
[{"$f":"'Data SBP Measures'!$AI1141&\" - \"&'Data SBP Measures'!$U1141","v":"Criminal - 127"},{"$f":"'Data SBP Measures'!$AF1141","v":"Disposed Cases"},{"$f":"'Data SBP Measures'!$T1141","v":"2088"},{"$f":"'Data SBP Measures'!$U1141&B1265","v":"127Disposed Cases"},{"$f":"'Data SBP Measures'!$Y1141","v":"EACH"},null,null,null,null,null,"Criminal - 127","Disposed Cases",null,null,null,null,null,null,null,"2162","129","Y","236","Civil Division","EACH","INPUT","ADOPTEDBUD",null,null,null,"Civil Division","Total pending Cases",null,{"$f":"'Data SBP Measures'!$AF1265&'Data SBP Measures'!$AE1265& \" - \"& 'Data SBP Measures'!$U1265","v":"Total pending CasesCivil Division - 129"},{"$f":"_xlfn.XLOOKUP(VALUE(W1265),'Data SBP Programs'!O:O,'Data SBP Programs'!S:S)","v":"Civil Division"}]
[{"$f":"'Data SBP Measures'!$AI2156&\" - \"&'Data SBP Measures'!$U2156","v":"Criminal - 127"},{"$f":"'Data SBP Measures'!$AF2156","v":"Percentage of Cases Disposed"},{"$f":"'Data SBP Measures'!$T2156","v":"2684"},{"$f":"'Data SBP Measures'!$U2156&B1268","v":"127Percentage of Cases Disposed"},{"$f":"'Data SBP Measures'!$Y2156","v":"PERCENT"},null,null,null,null,null,"Criminal - 127","Percentage of Cases Disposed",null,null,null,null,null,null,null,"2163","129","Y","236","Civil Division","EACH","INPUT","ADOPTEDBUD",null,null,null,"Civil Division","# of Active Cases",null,{"$f":"'Data SBP Measures'!$AF1268&'Data SBP Measures'!$AE1268& \" - \"& 'Data SBP Measures'!$U1268","v":"# of Active CasesCivil Division - 129"},{"$f":"_xlfn.XLOOKUP(VALUE(W1268),'Data SBP Programs'!O:O,'Data SBP Programs'!S:S)","v":"Civil Division"}]
[{"$f":"'Data SBP Measures'!$AI2157&\" - \"&'Data SBP Measures'!$U2157","v":"Criminal - 127"},{"$f":"'Data SBP Measures'!$AF2157","v":"Percentage of Cases Disposed"},{"$f":"'Data SBP Measures'!$T2157","v":"2684"},{"$f":"'Data SBP Measures'!$U2157&B1269","v":"127Percentage of Cases Disposed"},{"$f":"'Data SBP Measures'!$Y2157","v":"PERCENT"},null,null,null,null,null,"Criminal - 127","Percentage of Cases Disposed",null,null,null,null,null,null,null,"2164","129","Y","236","Civil Division","EACH","INPUT","ADOPTEDBUD",null,null,null,"Civil Division","# of Inactive Cases",null,{"$f":"'Data SBP Measures'!$AF1269&'Data SBP Measures'!$AE1269& \" - \"& 'Data SBP Measures'!$U1269","v":"# of Inactive CasesCivil Division - 129"},{"$f":"_xlfn.XLOOKUP(VALUE(W1269),'Data SBP Programs'!O:O,'Data SBP Programs'!S:S)","v":"Civil Division"}]
[{"$f":"'Data SBP Measures'!$AI1213&\" - \"&'Data SBP Measures'!$U1213","v":"Criminal - 128"},{"$f":"'Data SBP Measures'!$AF1213","v":"Jury Trial Hearings"},{"$f":"'Data SBP Measures'!$T1213","v":"2113"},{"$f":"'Data SBP Measures'!$U1213&B1273","v":"128Jury Trial Hearings"},{"$f":"'Data SBP Measures'!$Y1213","v":"EACH"},null,null,null,null,null,"Criminal - 128","Jury Trial Hearings",null,null,null,null,null,null,null,"2165","129","Y","236","Civil Division","EACH","INPUT","ADOPTEDBUD",null,null,null,"Civil Division","# New Civil Cases Filed:",null,{"$f":"'Data SBP Measures'!$AF1273&'Data SBP Measures'!$AE1273& \" - \"& 'Data SBP Measures'!$U1273","v":"# New Civil Cases Filed:Civil Division - 129"},{"$f":"_xlfn.XLOOKUP(VALUE(W1273),'Data SBP Programs'!O:O,'Data SBP Programs'!S:S)","v":"Civil Division"}]
[{"$f":"'Data SBP Measures'!$AI1214&\" - \"&'Data SBP Measures'!$U1214","v":"Criminal - 128"},{"$f":"'Data SBP Measures'!$AF1214","v":"Jury Trial Hearings"},{"$f":"'Data SBP Measures'!$T1214","v":"2113"},{"$f":"'Data SBP Measures'!$U1214&B1274","v":"128Jury Trial Hearings"},{"$f":"'Data SBP Measures'!$Y1214","v":"EACH"},null,null,null,null,null,"Criminal - 128","Jury Trial Hearings",null,null,null,null,null,null,null,"2165","129","Y","236","Civil Division","EACH","INPUT","ADOPTEDBUD",null,null,null,"Civil Division","# New Civil Cases Filed:",null,{"$f":"'Data SBP Measures'!$AF1274&'Data SBP Measures'!$AE1274& \" - \"& 'Data SBP Measures'!$U1274","v":"# New Civil Cases Filed:Civil Division - 129"},{"$f":"_xlfn.XLOOKUP(VALUE(W1274),'Data SBP Programs'!O:O,'Data SBP Programs'!S:S)","v":"Civil Division"}]
[{"$f":"'Data SBP Measures'!$AI1221&\" - \"&'Data SBP Measures'!$U1221","v":"Criminal - 128"},{"$f":"'Data SBP Measures'!$AF1221","v":"Juvenile/Minor Hearings"},{"$f":"'Data SBP Measures'!$T1221","v":"2116"},{"$f":"'Data SBP Measures'!$U1221&B1276","v":"128Juvenile/Minor Hearings"},{"$f":"'Data SBP Measures'!$Y1221","v":"EACH"},null,null,null,null,null,"Criminal - 128","Juvenile/Minor Hearings",null,null,null,null,null,null,null,"2166","129","Y","236","Civil Division","EACH","INPUT","ADOPTEDBUD",null,null,null,"Civil Division","# of New Civil Cases Debt",null,{"$f":"'Data SBP Measures'!$AF1276&'Data SBP Measures'!$AE1276& \" - \"& 'Data SBP Measures'!$U1276","v":"# of New Civil Cases DebtCivil Division - 129"},{"$f":"_xlfn.XLOOKUP(VALUE(W1276),'Data SBP Programs'!O:O,'Data SBP Programs'!S:S)","v":"Civil Division"}]
[{"$f":"'Data SBP Measures'!$AI1224&\" - \"&'Data SBP Measures'!$U1224","v":"Criminal - 128"},{"$f":"'Data SBP Measures'!$AF1224","v":"Juvenile/Minor Hearings"},{"$f":"'Data SBP Measures'!$T1224","v":"2116"},{"$f":"'Data SBP Measures'!$U1224&B1279","v":"128Juvenile/Minor Hearings"},{"$f":"'Data SBP Measures'!$Y1224","v":"EACH"},null,null,null,null,null,"Criminal - 128","Juvenile/Minor Hearings",null,null,null,null,null,null,null,"2167","129","Y","236","Civil Division","EACH","INPUT","ADOPTEDBUD",null,null,null,"Civil Division","# of New Civil Cases Landlord Tenant",null,{"$f":"'Data SBP Measures'!$AF1279&'Data SBP Measures'!$AE1279& \" - \"& 'Data SBP Measures'!$U1279","v":"# of New Civil Cases Landlord TenantCivil Division - 129"},{"$f":"_xlfn.XLOOKUP(VALUE(W1279),'Data SBP Programs'!O:O,'Data SBP Programs'!S:S)","v":"Civil Division"}]
[{"$f":"'Data SBP Measures'!$AI1186&\" - \"&'Data SBP Measures'!$U1186","v":"Criminal - 128"},{"$f":"'Data SBP Measures'!$AF1186","v":"New cases filed – Non-Traffic"},{"$f":"'Data SBP Measures'!$T1186","v":"2103"},{"$f":"'Data SBP Measures'!$U1186&B1282","v":"128New cases filed – Non-Traffic"},{"$f":"'Data SBP Measures'!$Y1186","v":"EACH"},null,null,null,null,null,"Criminal - 128","New cases filed – Non-Traffic",null,null,null,null,null,null,null,"2168","129","Y","236","Civil Division","EACH","INPUT","ADOPTEDBUD",null,null,null,"Civil Division","# of New Civil Cases Small Claims",null,{"$f":"'Data SBP Measures'!$AF1282&'Data SBP Measures'!$AE1282& \" - \"& 'Data SBP Measures'!$U1282","v":"# of New Civil Cases Small ClaimsCivil Division - 129"},{"$f":"_xlfn.XLOOKUP(VALUE(W1282),'Data SBP Programs'!O:O,'Data SBP Programs'!S:S)","v":"Civil Division"}]
[{"$f":"'Data SBP Measures'!$AI1188&\" - \"&'Data SBP Measures'!$U1188","v":"Criminal - 128"},{"$f":"'Data SBP Measures'!$AF1188","v":"New cases filed – Non-Traffic"},{"$f":"'Data SBP Measures'!$T1188","v":"2103"},{"$f":"'Data SBP Measures'!$U1188&B1284","v":"128New cases filed – Non-Traffic"},{"$f":"'Data SBP Measures'!$Y1188","v":"EACH"},null,null,null,null,null,"Criminal - 128","New cases filed – Non-Traffic",null,null,null,null,null,null,null,"2169","129","Y","236","Civil Division","EACH","OUTPUT","ADOPTEDBUD",null,null,null,"Civil Division","# of Citations Issued",null,{"$f":"'Data SBP Measures'!$AF1284&'Data SBP Measures'!$AE1284& \" - \"& 'Data SBP Measures'!$U1284","v":"# of Citations IssuedCivil Division - 129"},{"$f":"_xlfn.XLOOKUP(VALUE(W1284),'Data SBP Programs'!O:O,'Data SBP Programs'!S:S)","v":"Civil Division"}]
[{"$f":"'Data SBP Measures'!$AI1181&\" - \"&'Data SBP Measures'!$U1181","v":"Criminal - 128"},{"$f":"'Data SBP Measures'!$AF1181","v":"New cases filed – Traffic"},{"$f":"'Data SBP Measures'!$T1181","v":"2102"},{"$f":"'Data SBP Measures'!$U1181&B1287","v":"128New cases filed – Traffic"},{"$f":"'Data SBP Measures'!$Y1181","v":"EACH"},null,null,null,null,null,"Criminal - 128","New cases filed – Traffic",null,null,null,null,null,null,null,"217","108","Y","24","Property Tax Collections","EACH","INPUT","NEITHER",null,null,null,"Property Tax Collections","Tax Lien Transfer Releases",null,{"$f":"'Data SBP Measures'!$AF1287&'Data SBP Measures'!$AE1287& \" - \"& 'Data SBP Measures'!$U1287","v":"Tax Lien Transfer ReleasesProperty Tax Collections - 108"},{"$f":"_xlfn.XLOOKUP(VALUE(W1287),'Data SBP Programs'!O:O,'Data SBP Programs'!S:S)","v":"Property Tax Collections"}]
[{"$f":"'Data SBP Measures'!$AI1182&\" - \"&'Data SBP Measures'!$U1182","v":"Criminal - 128"},{"$f":"'Data SBP Measures'!$AF1182","v":"New cases filed – Traffic"},{"$f":"'Data SBP Measures'!$T1182","v":"2102"},{"$f":"'Data SBP Measures'!$U1182&B1288","v":"128New cases filed – Traffic"},{"$f":"'Data SBP Measures'!$Y1182","v":"EACH"},null,null,null,null,null,"Criminal - 128","New cases filed – Traffic",null,null,null,null,null,null,null,"2170","129","Y","236","Civil Division","EACH","OUTPUT","ADOPTEDBUD",null,null,null,"Civil Division","# of Hearings Held",null,{"$f":"'Data SBP Measures'!$AF1288&'Data SBP Measures'!$AE1288& \" - \"& 'Data SBP Measures'!$U1288","v":"# of Hearings HeldCivil Division - 129"},{"$f":"_xlfn.XLOOKUP(VALUE(W1288),'Data SBP Programs'!O:O,'Data SBP Programs'!S:S)","v":"Civil Division"}]
[{"$f":"'Data SBP Measures'!$AI1237&\" - \"&'Data SBP Measures'!$U1237","v":"Criminal - 128"},{"$f":"'Data SBP Measures'!$AF1237","v":"Parent Contributing Hearings"},{"$f":"'Data SBP Measures'!$T1237","v":"2119"},{"$f":"'Data SBP Measures'!$U1237&B1292","v":"128Parent Contributing Hearings"},{"$f":"'Data SBP Measures'!$Y1237","v":"EACH"},null,null,null,null,null,"Criminal - 128","Parent Contributing Hearings",null,null,null,null,null,null,null,"2171","129","Y","236","Civil Division","EACH","OUTPUT","ADOPTEDBUD",null,null,null,"Civil Division","# of Post Judg. Remedies",null,{"$f":"'Data SBP Measures'!$AF1292&'Data SBP Measures'!$AE1292& \" - \"& 'Data SBP Measures'!$U1292","v":"# of Post Judg. RemediesCivil Division - 129"},{"$f":"_xlfn.XLOOKUP(VALUE(W1292),'Data SBP Programs'!O:O,'Data SBP Programs'!S:S)","v":"Civil Division"}]
[{"$f":"'Data SBP Measures'!$AI1238&\" - \"&'Data SBP Measures'!$U1238","v":"Criminal - 128"},{"$f":"'Data SBP Measures'!$AF1238","v":"Parent Contributing Hearings"},{"$f":"'Data SBP Measures'!$T1238","v":"2119"},{"$f":"'Data SBP Measures'!$U1238&B1293","v":"128Parent Contributing Hearings"},{"$f":"'Data SBP Measures'!$Y1238","v":"EACH"},null,null,null,null,null,"Criminal - 128","Parent Contributing Hearings",null,null,null,null,null,null,null,"2171","129","Y","236","Civil Division","EACH","OUTPUT","ADOPTEDBUD",null,null,null,"Civil Division","# of Post Judg. Remedies",null,{"$f":"'Data SBP Measures'!$AF1293&'Data SBP Measures'!$AE1293& \" - \"& 'Data SBP Measures'!$U1293","v":"# of Post Judg. RemediesCivil Division - 129"},{"$f":"_xlfn.XLOOKUP(VALUE(W1293),'Data SBP Programs'!O:O,'Data SBP Programs'!S:S)","v":"Civil Division"}]
[{"$f":"'Data SBP Measures'!$AI1240&\" - \"&'Data SBP Measures'!$U1240","v":"Criminal - 128"},{"$f":"'Data SBP Measures'!$AF1240","v":"Parent Contributing Hearings"},{"$f":"'Data SBP Measures'!$T1240","v":"2119"},{"$f":"'Data SBP Measures'!$U1240&B1295","v":"128Parent Contributing Hearings"},{"$f":"'Data SBP Measures'!$Y1240","v":"EACH"},null,null,null,null,null,"Criminal - 128","Parent Contributing Hearings",null,null,null,null,null,null,null,"2172","129","Y","236","Civil Division","EACH","OUTPUT","ADOPTEDBUD",null,null,null,"Civil Division","# of Judgments Issued",null,{"$f":"'Data SBP Measures'!$AF1295&'Data SBP Measures'!$AE1295& \" - \"& 'Data SBP Measures'!$U1295","v":"# of Judgments IssuedCivil Division - 129"},{"$f":"_xlfn.XLOOKUP(VALUE(W1295),'Data SBP Programs'!O:O,'Data SBP Programs'!S:S)","v":"Civil Division"}]
[{"$f":"'Data SBP Measures'!$AI1203&\" - \"&'Data SBP Measures'!$U1203","v":"Criminal - 128"},{"$f":"'Data SBP Measures'!$AF1203","v":"Pre-Trial Hearings"},{"$f":"'Data SBP Measures'!$T1203","v":"2111"},{"$f":"'Data SBP Measures'!$U1203&B1298","v":"128Pre-Trial Hearings"},{"$f":"'Data SBP Measures'!$Y1203","v":"EACH"},null,null,null,null,null,"Criminal - 128","Pre-Trial Hearings",null,null,null,null,null,null,null,"2173","129","Y","236","Civil Division","EACH","OUTPUT","ADOPTEDBUD",null,null,null,"Civil Division","# of Cases Dismissed",null,{"$f":"'Data SBP Measures'!$AF1298&'Data SBP Measures'!$AE1298& \" - \"& 'Data SBP Measures'!$U1298","v":"# of Cases DismissedCivil Division - 129"},{"$f":"_xlfn.XLOOKUP(VALUE(W1298),'Data SBP Programs'!O:O,'Data SBP Programs'!S:S)","v":"Civil Division"}]
[{"$f":"'Data SBP Measures'!$AI1216&\" - \"&'Data SBP Measures'!$U1216","v":"Criminal - 128"},{"$f":"'Data SBP Measures'!$AF1216","v":"Show Cause Hearings"},{"$f":"'Data SBP Measures'!$T1216","v":"2114"},{"$f":"'Data SBP Measures'!$U1216&B1301","v":"128Show Cause Hearings"},{"$f":"'Data SBP Measures'!$Y1216","v":"EACH"},null,null,null,null,null,"Criminal - 128","Show Cause Hearings",null,null,null,null,null,null,null,"2174","129","Y","236","Civil Division","PERCENT","EFFICIENCY","ADOPTEDBUD",null,null,null,"Civil Division","% Disposition Rate (disposed cases divided by new cases filed)",null,{"$f":"'Data SBP Measures'!$AF1301&'Data SBP Measures'!$AE1301& \" - \"& 'Data SBP Measures'!$U1301","v":"% Disposition Rate (disposed cases divided by new cases filed)Civil Division - 129"},{"$f":"_xlfn.XLOOKUP(VALUE(W1301),'Data SBP Programs'!O:O,'Data SBP Programs'!S:S)","v":"Civil Division"}]
[{"$f":"'Data SBP Measures'!$AI1218&\" - \"&'Data SBP Measures'!$U1218","v":"Criminal - 128"},{"$f":"'Data SBP Measures'!$AF1218","v":"Show Cause Hearings"},{"$f":"'Data SBP Measures'!$T1218","v":"2114"},{"$f":"'Data SBP Measures'!$U1218&B1303","v":"128Show Cause Hearings"},{"$f":"'Data SBP Measures'!$Y1218","v":"EACH"},null,null,null,null,null,"Criminal - 128","Show Cause Hearings",null,null,null,null,null,null,null,"2175","129","Y","236","Civil Division","EACH","OUTCOME","ADOPTEDBUD",null,null,null,"Civil Division","# of Disposed Closed Cases:",null,{"$f":"'Data SBP Measures'!$AF1303&'Data SBP Measures'!$AE1303& \" - \"& 'Data SBP Measures'!$U1303","v":"# of Disposed Closed Cases:Civil Division - 129"},{"$f":"_xlfn.XLOOKUP(VALUE(W1303),'Data SBP Programs'!O:O,'Data SBP Programs'!S:S)","v":"Civil Division"}]
[{"$f":"'Data SBP Measures'!$AI1196&\" - \"&'Data SBP Measures'!$U1196","v":"Criminal - 128"},{"$f":"'Data SBP Measures'!$AF1196","v":"Total Criminal Cases Disposed\n"},{"$f":"'Data SBP Measures'!$T1196","v":"2110"},{"$f":"'Data SBP Measures'!$U1196&B1306","v":"128Total Criminal Cases Disposed\n"},{"$f":"'Data SBP Measures'!$Y1196","v":"EACH"},null,null,null,null,null,"Criminal - 128","Total Criminal Cases Disposed\n",null,null,null,null,null,null,null,"2176","129","Y","237","Criminal","FTE","INPUT","ADOPTEDBUD",null,null,null,"Criminal","# of Clerks to process cases filed:",null,{"$f":"'Data SBP Measures'!$AF1306&'Data SBP Measures'!$AE1306& \" - \"& 'Data SBP Measures'!$U1306","v":"# of Clerks to process cases filed:Criminal - 129"},{"$f":"_xlfn.XLOOKUP(VALUE(W1306),'Data SBP Programs'!O:O,'Data SBP Programs'!S:S)","v":"Criminal"}]
[{"$f":"'Data SBP Measures'!$AI1199&\" - \"&'Data SBP Measures'!$U1199","v":"Criminal - 128"},{"$f":"'Data SBP Measures'!$AF1199","v":"Total Criminal Cases Disposed\n"},{"$f":"'Data SBP Measures'!$T1199","v":"2110"},{"$f":"'Data SBP Measures'!$U1199&B1309","v":"128Total Criminal Cases Disposed\n"},{"$f":"'Data SBP Measures'!$Y1199","v":"EACH"},null,null,null,null,null,"Criminal - 128","Total Criminal Cases Disposed\n",null,null,null,null,null,null,null,"2176","129","Y","237","Criminal","FTE","INPUT","ADOPTEDBUD",null,null,null,"Criminal","# of Clerks to process cases filed:",null,{"$f":"'Data SBP Measures'!$AF1309&'Data SBP Measures'!$AE1309& \" - \"& 'Data SBP Measures'!$U1309","v":"# of Clerks to process cases filed:Criminal - 129"},{"$f":"_xlfn.XLOOKUP(VALUE(W1309),'Data SBP Programs'!O:O,'Data SBP Programs'!S:S)","v":"Criminal"}]
[{"$f":"'Data SBP Measures'!$AI1190&\" - \"&'Data SBP Measures'!$U1190","v":"Criminal - 128"},{"$f":"'Data SBP Measures'!$AF1190","v":"Total Criminal Cases Filed"},{"$f":"'Data SBP Measures'!$T1190","v":"2104"},{"$f":"'Data SBP Measures'!$U1190&B1311","v":"128Total Criminal Cases Filed"},{"$f":"'Data SBP Measures'!$Y1190","v":"EACH"},null,null,null,null,null,"Criminal - 128","Total Criminal Cases Filed",null,null,null,null,null,null,null,"2176","129","Y","237","Criminal","FTE","INPUT","ADOPTEDBUD",null,null,null,"Criminal","# of Clerks to process cases filed:",null,{"$f":"'Data SBP Measures'!$AF1311&'Data SBP Measures'!$AE1311& \" - \"& 'Data SBP Measures'!$U1311","v":"# of Clerks to process cases filed:Criminal - 129"},{"$f":"_xlfn.XLOOKUP(VALUE(W1311),'Data SBP Programs'!O:O,'Data SBP Programs'!S:S)","v":"Criminal"}]
[{"$f":"'Data SBP Measures'!$AI1191&\" - \"&'Data SBP Measures'!$U1191","v":"Criminal - 128"},{"$f":"'Data SBP Measures'!$AF1191","v":"Total Criminal Cases Filed"},{"$f":"'Data SBP Measures'!$T1191","v":"2104"},{"$f":"'Data SBP Measures'!$U1191&B1312","v":"128Total Criminal Cases Filed"},{"$f":"'Data SBP Measures'!$Y1191","v":"EACH"},null,null,null,null,null,"Criminal - 128","Total Criminal Cases Filed",null,null,null,null,null,null,null,"2177","129","Y","237","Criminal","EACH","INPUT","ADOPTEDBUD",null,null,null,"Criminal","Total pending Cases:",null,{"$f":"'Data SBP Measures'!$AF1312&'Data SBP Measures'!$AE1312& \" - \"& 'Data SBP Measures'!$U1312","v":"Total pending Cases:Criminal - 129"},{"$f":"_xlfn.XLOOKUP(VALUE(W1312),'Data SBP Programs'!O:O,'Data SBP Programs'!S:S)","v":"Criminal"}]
[{"$f":"'Data SBP Measures'!$AI1193&\" - \"&'Data SBP Measures'!$U1193","v":"Criminal - 128"},{"$f":"'Data SBP Measures'!$AF1193","v":"Total Criminal Cases Filed"},{"$f":"'Data SBP Measures'!$T1193","v":"2104"},{"$f":"'Data SBP Measures'!$U1193&B1314","v":"128Total Criminal Cases Filed"},{"$f":"'Data SBP Measures'!$Y1193","v":"EACH"},null,null,null,null,null,"Criminal - 128","Total Criminal Cases Filed",null,null,null,null,null,null,null,"2177","129","Y","237","Criminal","EACH","INPUT","ADOPTEDBUD",null,null,null,"Criminal","Total pending Cases:",null,{"$f":"'Data SBP Measures'!$AF1314&'Data SBP Measures'!$AE1314& \" - \"& 'Data SBP Measures'!$U1314","v":"Total pending Cases:Criminal - 129"},{"$f":"_xlfn.XLOOKUP(VALUE(W1314),'Data SBP Programs'!O:O,'Data SBP Programs'!S:S)","v":"Criminal"}]
[{"$f":"'Data SBP Measures'!$AI1243&\" - \"&'Data SBP Measures'!$U1243","v":"Criminal - 128"},{"$f":"'Data SBP Measures'!$AF1243","v":"Total Trial Hearings"},{"$f":"'Data SBP Measures'!$T1243","v":"2121"},{"$f":"'Data SBP Measures'!$U1243&B1317","v":"128Total Trial Hearings"},{"$f":"'Data SBP Measures'!$Y1243","v":"EACH"},null,null,null,null,null,"Criminal - 128","Total Trial Hearings",null,null,null,null,null,null,null,"2177","129","Y","237","Criminal","EACH","INPUT","ADOPTEDBUD",null,null,null,"Criminal","Total pending Cases:",null,{"$f":"'Data SBP Measures'!$AF1317&'Data SBP Measures'!$AE1317& \" - \"& 'Data SBP Measures'!$U1317","v":"Total pending Cases:Criminal - 129"},{"$f":"_xlfn.XLOOKUP(VALUE(W1317),'Data SBP Programs'!O:O,'Data SBP Programs'!S:S)","v":"Criminal"}]
[{"$f":"'Data SBP Measures'!$AI1246&\" - \"&'Data SBP Measures'!$U1246","v":"Criminal - 128"},{"$f":"'Data SBP Measures'!$AF1246","v":"Total Trial Hearings"},{"$f":"'Data SBP Measures'!$T1246","v":"2121"},{"$f":"'Data SBP Measures'!$U1246&B1320","v":"128Total Trial Hearings"},{"$f":"'Data SBP Measures'!$Y1246","v":"EACH"},null,null,null,null,null,"Criminal - 128","Total Trial Hearings",null,null,null,null,null,null,null,"2178","129","Y","237","Criminal","EACH","INPUT","ADOPTEDBUD",null,null,null,"Criminal","# of Active Cases",null,{"$f":"'Data SBP Measures'!$AF1320&'Data SBP Measures'!$AE1320& \" - \"& 'Data SBP Measures'!$U1320","v":"# of Active CasesCriminal - 129"},{"$f":"_xlfn.XLOOKUP(VALUE(W1320),'Data SBP Programs'!O:O,'Data SBP Programs'!S:S)","v":"Criminal"}]
[{"$f":"'Data SBP Measures'!$AI1207&\" - \"&'Data SBP Measures'!$U1207","v":"Criminal - 128"},{"$f":"'Data SBP Measures'!$AF1207","v":"Trial By Court Hearings"},{"$f":"'Data SBP Measures'!$T1207","v":"2112"},{"$f":"'Data SBP Measures'!$U1207&B1322","v":"128Trial By Court Hearings"},{"$f":"'Data SBP Measures'!$Y1207","v":"EACH"},null,null,null,null,null,"Criminal - 128","Trial By Court Hearings",null,null,null,null,null,null,null,"2178","129","Y","237","Criminal","EACH","INPUT","ADOPTEDBUD",null,null,null,"Criminal","# of Active Cases",null,{"$f":"'Data SBP Measures'!$AF1322&'Data SBP Measures'!$AE1322& \" - \"& 'Data SBP Measures'!$U1322","v":"# of Active CasesCriminal - 129"},{"$f":"_xlfn.XLOOKUP(VALUE(W1322),'Data SBP Programs'!O:O,'Data SBP Programs'!S:S)","v":"Criminal"}]
[{"$f":"'Data SBP Measures'!$AI1210&\" - \"&'Data SBP Measures'!$U1210","v":"Criminal - 128"},{"$f":"'Data SBP Measures'!$AF1210","v":"Trial By Court Hearings"},{"$f":"'Data SBP Measures'!$T1210","v":"2112"},{"$f":"'Data SBP Measures'!$U1210&B1325","v":"128Trial By Court Hearings"},{"$f":"'Data SBP Measures'!$Y1210","v":"EACH"},null,null,null,null,null,"Criminal - 128","Trial By Court Hearings",null,null,null,null,null,null,null,"2179","129","Y","237","Criminal","EACH","INPUT","ADOPTEDBUD",null,null,null,"Criminal","# of Inactive Cases",null,{"$f":"'Data SBP Measures'!$AF1325&'Data SBP Measures'!$AE1325& \" - \"& 'Data SBP Measures'!$U1325","v":"# of Inactive CasesCriminal - 129"},{"$f":"_xlfn.XLOOKUP(VALUE(W1325),'Data SBP Programs'!O:O,'Data SBP Programs'!S:S)","v":"Criminal"}]
[{"$f":"'Data SBP Measures'!$AI1228&\" - \"&'Data SBP Measures'!$U1228","v":"Criminal - 128"},{"$f":"'Data SBP Measures'!$AF1228","v":"Truancy Hearings"},{"$f":"'Data SBP Measures'!$T1228","v":"2117"},{"$f":"'Data SBP Measures'!$U1228&B1328","v":"128Truancy Hearings"},{"$f":"'Data SBP Measures'!$Y1228","v":"EACH"},null,null,null,null,null,"Criminal - 128","Truancy Hearings",null,null,null,null,null,null,null,"2179","129","Y","237","Criminal","EACH","INPUT","ADOPTEDBUD",null,null,null,"Criminal","# of Inactive Cases",null,{"$f":"'Data SBP Measures'!$AF1328&'Data SBP Measures'!$AE1328& \" - \"& 'Data SBP Measures'!$U1328","v":"# of Inactive CasesCriminal - 129"},{"$f":"_xlfn.XLOOKUP(VALUE(W1328),'Data SBP Programs'!O:O,'Data SBP Programs'!S:S)","v":"Criminal"}]
[{"$f":"'Data SBP Measures'!$AI1230&\" - \"&'Data SBP Measures'!$U1230","v":"Criminal - 128"},{"$f":"'Data SBP Measures'!$AF1230","v":"Truancy Hearings"},{"$f":"'Data SBP Measures'!$T1230","v":"2117"},{"$f":"'Data SBP Measures'!$U1230&B1330","v":"128Truancy Hearings"},{"$f":"'Data SBP Measures'!$Y1230","v":"EACH"},null,null,null,null,null,"Criminal - 128","Truancy Hearings",null,null,null,null,null,null,null,"218","108","Y","24","Property Tax Collections","EACH","OUTPUT","NEITHER",null,null,null,"Property Tax Collections","Mobile Home Liens Filed",null,{"$f":"'Data SBP Measures'!$AF1330&'Data SBP Measures'!$AE1330& \" - \"& 'Data SBP Measures'!$U1330","v":"Mobile Home Liens FiledProperty Tax Collections - 108"},{"$f":"_xlfn.XLOOKUP(VALUE(W1330),'Data SBP Programs'!O:O,'Data SBP Programs'!S:S)","v":"Property Tax Collections"}]
[{"$f":"'Data SBP Measures'!$AI1231&\" - \"&'Data SBP Measures'!$U1231","v":"Criminal - 128"},{"$f":"'Data SBP Measures'!$AF1231","v":"Truancy Show Cause Hearings"},{"$f":"'Data SBP Measures'!$T1231","v":"2118"},{"$f":"'Data SBP Measures'!$U1231&B1331","v":"128Truancy Show Cause Hearings"},{"$f":"'Data SBP Measures'!$Y1231","v":"EACH"},null,null,null,null,null,"Criminal - 128","Truancy Show Cause Hearings",null,null,null,null,null,null,null,"2180","129","Y","237","Criminal","EACH","INPUT","ADOPTEDBUD",null,null,null,"Criminal","# New Criminal Cases Filed:",null,{"$f":"'Data SBP Measures'!$AF1331&'Data SBP Measures'!$AE1331& \" - \"& 'Data SBP Measures'!$U1331","v":"# New Criminal Cases Filed:Criminal - 129"},{"$f":"_xlfn.XLOOKUP(VALUE(W1331),'Data SBP Programs'!O:O,'Data SBP Programs'!S:S)","v":"Criminal"}]
[{"$f":"'Data SBP Measures'!$AI1233&\" - \"&'Data SBP Measures'!$U1233","v":"Criminal - 128"},{"$f":"'Data SBP Measures'!$AF1233","v":"Truancy Show Cause Hearings"},{"$f":"'Data SBP Measures'!$T1233","v":"2118"},{"$f":"'Data SBP Measures'!$U1233&B1333","v":"128Truancy Show Cause Hearings"},{"$f":"'Data SBP Measures'!$Y1233","v":"EACH"},null,null,null,null,null,"Criminal - 128","Truancy Show Cause Hearings",null,null,null,null,null,null,null,"2180","129","Y","237","Criminal","EACH","INPUT","ADOPTEDBUD",null,null,null,"Criminal","# New Criminal Cases Filed:",null,{"$f":"'Data SBP Measures'!$AF1333&'Data SBP Measures'!$AE1333& \" - \"& 'Data SBP Measures'!$U1333","v":"# New Criminal Cases Filed:Criminal - 129"},{"$f":"_xlfn.XLOOKUP(VALUE(W1333),'Data SBP Programs'!O:O,'Data SBP Programs'!S:S)","v":"Criminal"}]
[{"$f":"'Data SBP Measures'!$AI1247&\" - \"&'Data SBP Measures'!$U1247","v":"Criminal - 128"},{"$f":"'Data SBP Measures'!$AF1247","v":"Warrants Issued"},{"$f":"'Data SBP Measures'!$T1247","v":"2122"},{"$f":"'Data SBP Measures'!$U1247&B1336","v":"128Warrants Issued"},{"$f":"'Data SBP Measures'!$Y1247","v":"EACH"},null,null,null,null,null,"Criminal - 128","Warrants Issued",null,null,null,null,null,null,null,"2180","129","Y","237","Criminal","EACH","INPUT","ADOPTEDBUD",null,null,null,"Criminal","# New Criminal Cases Filed:",null,{"$f":"'Data SBP Measures'!$AF1336&'Data SBP Measures'!$AE1336& \" - \"& 'Data SBP Measures'!$U1336","v":"# New Criminal Cases Filed:Criminal - 129"},{"$f":"_xlfn.XLOOKUP(VALUE(W1336),'Data SBP Programs'!O:O,'Data SBP Programs'!S:S)","v":"Criminal"}]
[{"$f":"'Data SBP Measures'!$AI1250&\" - \"&'Data SBP Measures'!$U1250","v":"Criminal - 128"},{"$f":"'Data SBP Measures'!$AF1250","v":"Warrants Issued"},{"$f":"'Data SBP Measures'!$T1250","v":"2122"},{"$f":"'Data SBP Measures'!$U1250&B1339","v":"128Warrants Issued"},{"$f":"'Data SBP Measures'!$Y1250","v":"EACH"},null,null,null,null,null,"Criminal - 128","Warrants Issued",null,null,null,null,null,null,null,"2181","129","Y","237","Criminal","EACH","OUTPUT","ADOPTEDBUD",null,null,null,"Criminal","Hearings Held",null,{"$f":"'Data SBP Measures'!$AF1339&'Data SBP Measures'!$AE1339& \" - \"& 'Data SBP Measures'!$U1339","v":"Hearings HeldCriminal - 129"},{"$f":"_xlfn.XLOOKUP(VALUE(W1339),'Data SBP Programs'!O:O,'Data SBP Programs'!S:S)","v":"Criminal"}]
[{"$f":"'Data SBP Measures'!$AI1331&\" - \"&'Data SBP Measures'!$U1331","v":"Criminal - 129"},{"$f":"'Data SBP Measures'!$AF1331","v":"# New Criminal Cases Filed:"},{"$f":"'Data SBP Measures'!$T1331","v":"2180"},{"$f":"'Data SBP Measures'!$U1331&B1341","v":"129# New Criminal Cases Filed:"},{"$f":"'Data SBP Measures'!$Y1331","v":"EACH"},null,null,null,null,null,"Criminal - 129","# New Criminal Cases Filed:",null,null,null,null,null,null,null,"2181","129","Y","237","Criminal","EACH","OUTPUT","ADOPTEDBUD",null,null,null,"Criminal","Hearings Held",null,{"$f":"'Data SBP Measures'!$AF1341&'Data SBP Measures'!$AE1341& \" - \"& 'Data SBP Measures'!$U1341","v":"Hearings HeldCriminal - 129"},{"$f":"_xlfn.XLOOKUP(VALUE(W1341),'Data SBP Programs'!O:O,'Data SBP Programs'!S:S)","v":"Criminal"}]
[{"$f":"'Data SBP Measures'!$AI1334&\" - \"&'Data SBP Measures'!$U1334","v":"Criminal - 129"},{"$f":"'Data SBP Measures'!$AF1334","v":"# New Criminal Cases Filed:"},{"$f":"'Data SBP Measures'!$T1334","v":"2180"},{"$f":"'Data SBP Measures'!$U1334&B1344","v":"129# New Criminal Cases Filed:"},{"$f":"'Data SBP Measures'!$Y1334","v":"EACH"},null,null,null,null,null,"Criminal - 129","# New Criminal Cases Filed:",null,null,null,null,null,null,null,"2182","129","Y","237","Criminal","EACH","OUTPUT","ADOPTEDBUD",null,null,null,"Criminal","Warrants Issued",null,{"$f":"'Data SBP Measures'!$AF1344&'Data SBP Measures'!$AE1344& \" - \"& 'Data SBP Measures'!$U1344","v":"Warrants IssuedCriminal - 129"},{"$f":"_xlfn.XLOOKUP(VALUE(W1344),'Data SBP Programs'!O:O,'Data SBP Programs'!S:S)","v":"Criminal"}]
[{"$f":"'Data SBP Measures'!$AI1318&\" - \"&'Data SBP Measures'!$U1318","v":"Criminal - 129"},{"$f":"'Data SBP Measures'!$AF1318","v":"# of Active Cases"},{"$f":"'Data SBP Measures'!$T1318","v":"2178"},{"$f":"'Data SBP Measures'!$U1318&B1347","v":"129# of Active Cases"},{"$f":"'Data SBP Measures'!$Y1318","v":"EACH"},null,null,null,null,null,"Criminal - 129","# of Active Cases",null,null,null,null,null,null,null,"2182","129","Y","237","Criminal","EACH","OUTPUT","ADOPTEDBUD",null,null,null,"Criminal","Warrants Issued",null,{"$f":"'Data SBP Measures'!$AF1347&'Data SBP Measures'!$AE1347& \" - \"& 'Data SBP Measures'!$U1347","v":"Warrants IssuedCriminal - 129"},{"$f":"_xlfn.XLOOKUP(VALUE(W1347),'Data SBP Programs'!O:O,'Data SBP Programs'!S:S)","v":"Criminal"}]
[{"$f":"'Data SBP Measures'!$AI1320&\" - \"&'Data SBP Measures'!$U1320","v":"Criminal - 129"},{"$f":"'Data SBP Measures'!$AF1320","v":"# of Active Cases"},{"$f":"'Data SBP Measures'!$T1320","v":"2178"},{"$f":"'Data SBP Measures'!$U1320&B1349","v":"129# of Active Cases"},{"$f":"'Data SBP Measures'!$Y1320","v":"EACH"},null,null,null,null,null,"Criminal - 129","# of Active Cases",null,null,null,null,null,null,null,"2183","129","Y","237","Criminal","EACH","OUTPUT","ADOPTEDBUD",null,null,null,"Criminal","TCCC Referrals",null,{"$f":"'Data SBP Measures'!$AF1349&'Data SBP Measures'!$AE1349& \" - \"& 'Data SBP Measures'!$U1349","v":"TCCC ReferralsCriminal - 129"},{"$f":"_xlfn.XLOOKUP(VALUE(W1349),'Data SBP Programs'!O:O,'Data SBP Programs'!S:S)","v":"Criminal"}]
[{"$f":"'Data SBP Measures'!$AI1321&\" - \"&'Data SBP Measures'!$U1321","v":"Criminal - 129"},{"$f":"'Data SBP Measures'!$AF1321","v":"# of Active Cases"},{"$f":"'Data SBP Measures'!$T1321","v":"2178"},{"$f":"'Data SBP Measures'!$U1321&B1350","v":"129# of Active Cases"},{"$f":"'Data SBP Measures'!$Y1321","v":"EACH"},null,null,null,null,null,"Criminal - 129","# of Active Cases",null,null,null,null,null,null,null,"2183","129","Y","237","Criminal","EACH","OUTPUT","ADOPTEDBUD",null,null,null,"Criminal","TCCC Referrals",null,{"$f":"'Data SBP Measures'!$AF1350&'Data SBP Measures'!$AE1350& \" - \"& 'Data SBP Measures'!$U1350","v":"TCCC ReferralsCriminal - 129"},{"$f":"_xlfn.XLOOKUP(VALUE(W1350),'Data SBP Programs'!O:O,'Data SBP Programs'!S:S)","v":"Criminal"}]
[{"$f":"'Data SBP Measures'!$AI1323&\" - \"&'Data SBP Measures'!$U1323","v":"Criminal - 129"},{"$f":"'Data SBP Measures'!$AF1323","v":"# of Active Cases"},{"$f":"'Data SBP Measures'!$T1323","v":"2178"},{"$f":"'Data SBP Measures'!$U1323&B1352","v":"129# of Active Cases"},{"$f":"'Data SBP Measures'!$Y1323","v":"EACH"},null,null,null,null,null,"Criminal - 129","# of Active Cases",null,null,null,null,null,null,null,"2183","129","Y","237","Criminal","EACH","OUTPUT","ADOPTEDBUD",null,null,null,"Criminal","TCCC Referrals",null,{"$f":"'Data SBP Measures'!$AF1352&'Data SBP Measures'!$AE1352& \" - \"& 'Data SBP Measures'!$U1352","v":"TCCC ReferralsCriminal - 129"},{"$f":"_xlfn.XLOOKUP(VALUE(W1352),'Data SBP Programs'!O:O,'Data SBP Programs'!S:S)","v":"Criminal"}]
[{"$f":"'Data SBP Measures'!$AI1308&\" - \"&'Data SBP Measures'!$U1308","v":"Criminal - 129"},{"$f":"'Data SBP Measures'!$AF1308","v":"# of Clerks to process cases filed:"},{"$f":"'Data SBP Measures'!$T1308","v":"2176"},{"$f":"'Data SBP Measures'!$U1308&B1355","v":"129# of Clerks to process cases filed:"},{"$f":"'Data SBP Measures'!$Y1308","v":"FTE"},null,null,null,null,null,"Criminal - 129","# of Clerks to process cases filed:",null,null,null,null,null,null,null,"2184","129","Y","237","Criminal","EACH","OUTPUT","ADOPTEDBUD",null,null,null,"Criminal","Dispositions w/o Hearings",null,{"$f":"'Data SBP Measures'!$AF1355&'Data SBP Measures'!$AE1355& \" - \"& 'Data SBP Measures'!$U1355","v":"Dispositions w/o HearingsCriminal - 129"},{"$f":"_xlfn.XLOOKUP(VALUE(W1355),'Data SBP Programs'!O:O,'Data SBP Programs'!S:S)","v":"Criminal"}]
[{"$f":"'Data SBP Measures'!$AI1311&\" - \"&'Data SBP Measures'!$U1311","v":"Criminal - 129"},{"$f":"'Data SBP Measures'!$AF1311","v":"# of Clerks to process cases filed:"},{"$f":"'Data SBP Measures'!$T1311","v":"2176"},{"$f":"'Data SBP Measures'!$U1311&B1358","v":"129# of Clerks to process cases filed:"},{"$f":"'Data SBP Measures'!$Y1311","v":"FTE"},null,null,null,null,null,"Criminal - 129","# of Clerks to process cases filed:",null,null,null,null,null,null,null,"2184","129","Y","237","Criminal","EACH","OUTPUT","ADOPTEDBUD",null,null,null,"Criminal","Dispositions w/o Hearings",null,{"$f":"'Data SBP Measures'!$AF1358&'Data SBP Measures'!$AE1358& \" - \"& 'Data SBP Measures'!$U1358","v":"Dispositions w/o HearingsCriminal - 129"},{"$f":"_xlfn.XLOOKUP(VALUE(W1358),'Data SBP Programs'!O:O,'Data SBP Programs'!S:S)","v":"Criminal"}]
[{"$f":"'Data SBP Measures'!$AI1380&\" - \"&'Data SBP Measures'!$U1380","v":"Criminal - 129"},{"$f":"'Data SBP Measures'!$AF1380","v":"# of Disposed Closed Cases:"},{"$f":"'Data SBP Measures'!$T1380","v":"2188"},{"$f":"'Data SBP Measures'!$U1380&B1360","v":"129# of Disposed Closed Cases:"},{"$f":"'Data SBP Measures'!$Y1380","v":"EACH"},null,null,null,null,null,"Criminal - 129","# of Disposed Closed Cases:",null,null,null,null,null,null,null,"2184","129","Y","237","Criminal","EACH","OUTPUT","ADOPTEDBUD",null,null,null,"Criminal","Dispositions w/o Hearings",null,{"$f":"'Data SBP Measures'!$AF1360&'Data SBP Measures'!$AE1360& \" - \"& 'Data SBP Measures'!$U1360","v":"Dispositions w/o HearingsCriminal - 129"},{"$f":"_xlfn.XLOOKUP(VALUE(W1360),'Data SBP Programs'!O:O,'Data SBP Programs'!S:S)","v":"Criminal"}]
[{"$f":"'Data SBP Measures'!$AI1383&\" - \"&'Data SBP Measures'!$U1383","v":"Criminal - 129"},{"$f":"'Data SBP Measures'!$AF1383","v":"# of Disposed Closed Cases:"},{"$f":"'Data SBP Measures'!$T1383","v":"2188"},{"$f":"'Data SBP Measures'!$U1383&B1363","v":"129# of Disposed Closed Cases:"},{"$f":"'Data SBP Measures'!$Y1383","v":"EACH"},null,null,null,null,null,"Criminal - 129","# of Disposed Closed Cases:",null,null,null,null,null,null,null,"2185","129","Y","237","Criminal","EACH","OUTPUT","ADOPTEDBUD",null,null,null,"Criminal","Dismissed by Prosecution",null,{"$f":"'Data SBP Measures'!$AF1363&'Data SBP Measures'!$AE1363& \" - \"& 'Data SBP Measures'!$U1363","v":"Dismissed by ProsecutionCriminal - 129"},{"$f":"_xlfn.XLOOKUP(VALUE(W1363),'Data SBP Programs'!O:O,'Data SBP Programs'!S:S)","v":"Criminal"}]
[{"$f":"'Data SBP Measures'!$AI1325&\" - \"&'Data SBP Measures'!$U1325","v":"Criminal - 129"},{"$f":"'Data SBP Measures'!$AF1325","v":"# of Inactive Cases"},{"$f":"'Data SBP Measures'!$T1325","v":"2179"},{"$f":"'Data SBP Measures'!$U1325&B1366","v":"129# of Inactive Cases"},{"$f":"'Data SBP Measures'!$Y1325","v":"EACH"},null,null,null,null,null,"Criminal - 129","# of Inactive Cases",null,null,null,null,null,null,null,"2185","129","Y","237","Criminal","EACH","OUTPUT","ADOPTEDBUD",null,null,null,"Criminal","Dismissed by Prosecution",null,{"$f":"'Data SBP Measures'!$AF1366&'Data SBP Measures'!$AE1366& \" - \"& 'Data SBP Measures'!$U1366","v":"Dismissed by ProsecutionCriminal - 129"},{"$f":"_xlfn.XLOOKUP(VALUE(W1366),'Data SBP Programs'!O:O,'Data SBP Programs'!S:S)","v":"Criminal"}]
[{"$f":"'Data SBP Measures'!$AI1327&\" - \"&'Data SBP Measures'!$U1327","v":"Criminal - 129"},{"$f":"'Data SBP Measures'!$AF1327","v":"# of Inactive Cases"},{"$f":"'Data SBP Measures'!$T1327","v":"2179"},{"$f":"'Data SBP Measures'!$U1327&B1368","v":"129# of Inactive Cases"},{"$f":"'Data SBP Measures'!$Y1327","v":"EACH"},null,null,null,null,null,"Criminal - 129","# of Inactive Cases",null,null,null,null,null,null,null,"2186","129","Y","237","Criminal","EACH","OUTPUT","ADOPTEDBUD",null,null,null,"Criminal","Compliance Dismissals",null,{"$f":"'Data SBP Measures'!$AF1368&'Data SBP Measures'!$AE1368& \" - \"& 'Data SBP Measures'!$U1368","v":"Compliance DismissalsCriminal - 129"},{"$f":"_xlfn.XLOOKUP(VALUE(W1368),'Data SBP Programs'!O:O,'Data SBP Programs'!S:S)","v":"Criminal"}]
[{"$f":"'Data SBP Measures'!$AI1328&\" - \"&'Data SBP Measures'!$U1328","v":"Criminal - 129"},{"$f":"'Data SBP Measures'!$AF1328","v":"# of Inactive Cases"},{"$f":"'Data SBP Measures'!$T1328","v":"2179"},{"$f":"'Data SBP Measures'!$U1328&B1369","v":"129# of Inactive Cases"},{"$f":"'Data SBP Measures'!$Y1328","v":"EACH"},null,null,null,null,null,"Criminal - 129","# of Inactive Cases",null,null,null,null,null,null,null,"2186","129","Y","237","Criminal","EACH","OUTPUT","ADOPTEDBUD",null,null,null,"Criminal","Compliance Dismissals",null,{"$f":"'Data SBP Measures'!$AF1369&'Data SBP Measures'!$AE1369& \" - \"& 'Data SBP Measures'!$U1369","v":"Compliance DismissalsCriminal - 129"},{"$f":"_xlfn.XLOOKUP(VALUE(W1369),'Data SBP Programs'!O:O,'Data SBP Programs'!S:S)","v":"Criminal"}]
[{"$f":"'Data SBP Measures'!$AI1373&\" - \"&'Data SBP Measures'!$U1373","v":"Criminal - 129"},{"$f":"'Data SBP Measures'!$AF1373","v":"% Disposition Rate (disposed cases divided by new cases filed)"},{"$f":"'Data SBP Measures'!$T1373","v":"2187"},{"$f":"'Data SBP Measures'!$U1373&B1371","v":"129% Disposition Rate (disposed cases divided by new cases filed)"},{"$f":"'Data SBP Measures'!$Y1373","v":"PERCENT"},null,null,null,null,null,"Criminal - 129","% Disposition Rate (disposed cases divided by new cases filed)",null,null,null,null,null,null,null,"2186","129","Y","237","Criminal","EACH","OUTPUT","ADOPTEDBUD",null,null,null,"Criminal","Compliance Dismissals",null,{"$f":"'Data SBP Measures'!$AF1371&'Data SBP Measures'!$AE1371& \" - \"& 'Data SBP Measures'!$U1371","v":"Compliance DismissalsCriminal - 129"},{"$f":"_xlfn.XLOOKUP(VALUE(W1371),'Data SBP Programs'!O:O,'Data SBP Programs'!S:S)","v":"Criminal"}]
[{"$f":"'Data SBP Measures'!$AI1376&\" - \"&'Data SBP Measures'!$U1376","v":"Criminal - 129"},{"$f":"'Data SBP Measures'!$AF1376","v":"% Disposition Rate (disposed cases divided by new cases filed)"},{"$f":"'Data SBP Measures'!$T1376","v":"2187"},{"$f":"'Data SBP Measures'!$U1376&B1374","v":"129% Disposition Rate (disposed cases divided by new cases filed)"},{"$f":"'Data SBP Measures'!$Y1376","v":"PERCENT"},null,null,null,null,null,"Criminal - 129","% Disposition Rate (disposed cases divided by new cases filed)",null,null,null,null,null,null,null,"2187","129","Y","237","Criminal","PERCENT","EFFICIENCY","ADOPTEDBUD",null,null,null,"Criminal","% Disposition Rate (disposed cases divided by new cases filed)",null,{"$f":"'Data SBP Measures'!$AF1374&'Data SBP Measures'!$AE1374& \" - \"& 'Data SBP Measures'!$U1374","v":"% Disposition Rate (disposed cases divided by new cases filed)Criminal - 129"},{"$f":"_xlfn.XLOOKUP(VALUE(W1374),'Data SBP Programs'!O:O,'Data SBP Programs'!S:S)","v":"Criminal"}]
[{"$f":"'Data SBP Measures'!$AI1367&\" - \"&'Data SBP Measures'!$U1367","v":"Criminal - 129"},{"$f":"'Data SBP Measures'!$AF1367","v":"Compliance Dismissals"},{"$f":"'Data SBP Measures'!$T1367","v":"2186"},{"$f":"'Data SBP Measures'!$U1367&B1377","v":"129Compliance Dismissals"},{"$f":"'Data SBP Measures'!$Y1367","v":"EACH"},null,null,null,null,null,"Criminal - 129","Compliance Dismissals",null,null,null,null,null,null,null,"2187","129","Y","237","Criminal","PERCENT","EFFICIENCY","ADOPTEDBUD",null,null,null,"Criminal","% Disposition Rate (disposed cases divided by new cases filed)",null,{"$f":"'Data SBP Measures'!$AF1377&'Data SBP Measures'!$AE1377& \" - \"& 'Data SBP Measures'!$U1377","v":"% Disposition Rate (disposed cases divided by new cases filed)Criminal - 129"},{"$f":"_xlfn.XLOOKUP(VALUE(W1377),'Data SBP Programs'!O:O,'Data SBP Programs'!S:S)","v":"Criminal"}]
[{"$f":"'Data SBP Measures'!$AI1369&\" - \"&'Data SBP Measures'!$U1369","v":"Criminal - 129"},{"$f":"'Data SBP Measures'!$AF1369","v":"Compliance Dismissals"},{"$f":"'Data SBP Measures'!$T1369","v":"2186"},{"$f":"'Data SBP Measures'!$U1369&B1379","v":"129Compliance Dismissals"},{"$f":"'Data SBP Measures'!$Y1369","v":"EACH"},null,null,null,null,null,"Criminal - 129","Compliance Dismissals",null,null,null,null,null,null,null,"2188","129","Y","237","Criminal","EACH","OUTCOME","ADOPTEDBUD",null,null,null,"Criminal","# of Disposed Closed Cases:",null,{"$f":"'Data SBP Measures'!$AF1379&'Data SBP Measures'!$AE1379& \" - \"& 'Data SBP Measures'!$U1379","v":"# of Disposed Closed Cases:Criminal - 129"},{"$f":"_xlfn.XLOOKUP(VALUE(W1379),'Data SBP Programs'!O:O,'Data SBP Programs'!S:S)","v":"Criminal"}]
[{"$f":"'Data SBP Measures'!$AI1372&\" - \"&'Data SBP Measures'!$U1372","v":"Criminal - 129"},{"$f":"'Data SBP Measures'!$AF1372","v":"Compliance Dismissals"},{"$f":"'Data SBP Measures'!$T1372","v":"2186"},{"$f":"'Data SBP Measures'!$U1372&B1382","v":"129Compliance Dismissals"},{"$f":"'Data SBP Measures'!$Y1372","v":"EACH"},null,null,null,null,null,"Criminal - 129","Compliance Dismissals",null,null,null,null,null,null,null,"2188","129","Y","237","Criminal","EACH","OUTCOME","ADOPTEDBUD",null,null,null,"Criminal","# of Disposed Closed Cases:",null,{"$f":"'Data SBP Measures'!$AF1382&'Data SBP Measures'!$AE1382& \" - \"& 'Data SBP Measures'!$U1382","v":"# of Disposed Closed Cases:Criminal - 129"},{"$f":"_xlfn.XLOOKUP(VALUE(W1382),'Data SBP Programs'!O:O,'Data SBP Programs'!S:S)","v":"Criminal"}]
[{"$f":"'Data SBP Measures'!$AI1363&\" - \"&'Data SBP Measures'!$U1363","v":"Criminal - 129"},{"$f":"'Data SBP Measures'!$AF1363","v":"Dismissed by Prosecution"},{"$f":"'Data SBP Measures'!$T1363","v":"2185"},{"$f":"'Data SBP Measures'!$U1363&B1385","v":"129Dismissed by Prosecution"},{"$f":"'Data SBP Measures'!$Y1363","v":"EACH"},null,null,null,null,null,"Criminal - 129","Dismissed by Prosecution",null,null,null,null,null,null,null,"219","108","Y","24","Property Tax Collections","EACH","OUTPUT","NEITHER",null,null,null,"Property Tax Collections","Mobile Home Lien Releases",null,{"$f":"'Data SBP Measures'!$AF1385&'Data SBP Measures'!$AE1385& \" - \"& 'Data SBP Measures'!$U1385","v":"Mobile Home Lien ReleasesProperty Tax Collections - 108"},{"$f":"_xlfn.XLOOKUP(VALUE(W1385),'Data SBP Programs'!O:O,'Data SBP Programs'!S:S)","v":"Property Tax Collections"}]
[{"$f":"'Data SBP Measures'!$AI1365&\" - \"&'Data SBP Measures'!$U1365","v":"Criminal - 129"},{"$f":"'Data SBP Measures'!$AF1365","v":"Dismissed by Prosecution"},{"$f":"'Data SBP Measures'!$T1365","v":"2185"},{"$f":"'Data SBP Measures'!$U1365&B1387","v":"129Dismissed by Prosecution"},{"$f":"'Data SBP Measures'!$Y1365","v":"EACH"},null,null,null,null,null,"Criminal - 129","Dismissed by Prosecution",null,null,null,null,null,null,null,"2207","130","Y","240","Criminal Department","EACH","INPUT","ADOPTEDBUD",null,null,null,"Criminal Department","Class C Misdemeanors Filed",null,{"$f":"'Data SBP Measures'!$AF1387&'Data SBP Measures'!$AE1387& \" - \"& 'Data SBP Measures'!$U1387","v":"Class C Misdemeanors FiledCriminal Department - 130"},{"$f":"_xlfn.XLOOKUP(VALUE(W1387),'Data SBP Programs'!O:O,'Data SBP Programs'!S:S)","v":"Criminal Department"}]
[{"$f":"'Data SBP Measures'!$AI1366&\" - \"&'Data SBP Measures'!$U1366","v":"Criminal - 129"},{"$f":"'Data SBP Measures'!$AF1366","v":"Dismissed by Prosecution"},{"$f":"'Data SBP Measures'!$T1366","v":"2185"},{"$f":"'Data SBP Measures'!$U1366&B1388","v":"129Dismissed by Prosecution"},{"$f":"'Data SBP Measures'!$Y1366","v":"EACH"},null,null,null,null,null,"Criminal - 129","Dismissed by Prosecution",null,null,null,null,null,null,null,"2207","130","Y","240","Criminal Department","EACH","INPUT","ADOPTEDBUD",null,null,null,"Criminal Department","Class C Misdemeanors Filed",null,{"$f":"'Data SBP Measures'!$AF1388&'Data SBP Measures'!$AE1388& \" - \"& 'Data SBP Measures'!$U1388","v":"Class C Misdemeanors FiledCriminal Department - 130"},{"$f":"_xlfn.XLOOKUP(VALUE(W1388),'Data SBP Programs'!O:O,'Data SBP Programs'!S:S)","v":"Criminal Department"}]
[{"$f":"'Data SBP Measures'!$AI1356&\" - \"&'Data SBP Measures'!$U1356","v":"Criminal - 129"},{"$f":"'Data SBP Measures'!$AF1356","v":"Dispositions w/o Hearings"},{"$f":"'Data SBP Measures'!$T1356","v":"2184"},{"$f":"'Data SBP Measures'!$U1356&B1390","v":"129Dispositions w/o Hearings"},{"$f":"'Data SBP Measures'!$Y1356","v":"EACH"},null,null,null,null,null,"Criminal - 129","Dispositions w/o Hearings",null,null,null,null,null,null,null,"2207","130","Y","240","Criminal Department","EACH","INPUT","ADOPTEDBUD",null,null,null,"Criminal Department","Class C Misdemeanors Filed",null,{"$f":"'Data SBP Measures'!$AF1390&'Data SBP Measures'!$AE1390& \" - \"& 'Data SBP Measures'!$U1390","v":"Class C Misdemeanors FiledCriminal Department - 130"},{"$f":"_xlfn.XLOOKUP(VALUE(W1390),'Data SBP Programs'!O:O,'Data SBP Programs'!S:S)","v":"Criminal Department"}]
[{"$f":"'Data SBP Measures'!$AI1359&\" - \"&'Data SBP Measures'!$U1359","v":"Criminal - 129"},{"$f":"'Data SBP Measures'!$AF1359","v":"Dispositions w/o Hearings"},{"$f":"'Data SBP Measures'!$T1359","v":"2184"},{"$f":"'Data SBP Measures'!$U1359&B1393","v":"129Dispositions w/o Hearings"},{"$f":"'Data SBP Measures'!$Y1359","v":"EACH"},null,null,null,null,null,"Criminal - 129","Dispositions w/o Hearings",null,null,null,null,null,null,null,"2207","130","Y","240","Criminal Department","EACH","INPUT","ADOPTEDBUD",null,null,null,"Criminal Department","Class C Misdemeanors Filed",null,{"$f":"'Data SBP Measures'!$AF1393&'Data SBP Measures'!$AE1393& \" - \"& 'Data SBP Measures'!$U1393","v":"Class C Misdemeanors FiledCriminal Department - 130"},{"$f":"_xlfn.XLOOKUP(VALUE(W1393),'Data SBP Programs'!O:O,'Data SBP Programs'!S:S)","v":"Criminal Department"}]
[{"$f":"'Data SBP Measures'!$AI1338&\" - \"&'Data SBP Measures'!$U1338","v":"Criminal - 129"},{"$f":"'Data SBP Measures'!$AF1338","v":"Hearings Held"},{"$f":"'Data SBP Measures'!$T1338","v":"2181"},{"$f":"'Data SBP Measures'!$U1338&B1396","v":"129Hearings Held"},{"$f":"'Data SBP Measures'!$Y1338","v":"EACH"},null,null,null,null,null,"Criminal - 129","Hearings Held",null,null,null,null,null,null,null,"2210","130","Y","240","Criminal Department","EACH","INPUT","ADOPTEDBUD",null,null,null,"Criminal Department","Class A & B Jail Magistrate Warnings (excluding cite & release)",null,{"$f":"'Data SBP Measures'!$AF1396&'Data SBP Measures'!$AE1396& \" - \"& 'Data SBP Measures'!$U1396","v":"Class A & B Jail Magistrate Warnings (excluding cite & release)Criminal Department - 130"},{"$f":"_xlfn.XLOOKUP(VALUE(W1396),'Data SBP Programs'!O:O,'Data SBP Programs'!S:S)","v":"Criminal Department"}]
[{"$f":"'Data SBP Measures'!$AI1340&\" - \"&'Data SBP Measures'!$U1340","v":"Criminal - 129"},{"$f":"'Data SBP Measures'!$AF1340","v":"Hearings Held"},{"$f":"'Data SBP Measures'!$T1340","v":"2181"},{"$f":"'Data SBP Measures'!$U1340&B1398","v":"129Hearings Held"},{"$f":"'Data SBP Measures'!$Y1340","v":"EACH"},null,null,null,null,null,"Criminal - 129","Hearings Held",null,null,null,null,null,null,null,"2210","130","Y","240","Criminal Department","EACH","INPUT","ADOPTEDBUD",null,null,null,"Criminal Department","Class A & B Jail Magistrate Warnings (excluding cite & release)",null,{"$f":"'Data SBP Measures'!$AF1398&'Data SBP Measures'!$AE1398& \" - \"& 'Data SBP Measures'!$U1398","v":"Class A & B Jail Magistrate Warnings (excluding cite & release)Criminal Department - 130"},{"$f":"_xlfn.XLOOKUP(VALUE(W1398),'Data SBP Programs'!O:O,'Data SBP Programs'!S:S)","v":"Criminal Department"}]
[{"$f":"'Data SBP Measures'!$AI1349&\" - \"&'Data SBP Measures'!$U1349","v":"Criminal - 129"},{"$f":"'Data SBP Measures'!$AF1349","v":"TCCC Referrals"},{"$f":"'Data SBP Measures'!$T1349","v":"2183"},{"$f":"'Data SBP Measures'!$U1349&B1401","v":"129TCCC Referrals"},{"$f":"'Data SBP Measures'!$Y1349","v":"EACH"},null,null,null,null,null,"Criminal - 129","TCCC Referrals",null,null,null,null,null,null,null,"2210","130","Y","240","Criminal Department","EACH","INPUT","ADOPTEDBUD",null,null,null,"Criminal Department","Class A & B Jail Magistrate Warnings (excluding cite & release)",null,{"$f":"'Data SBP Measures'!$AF1401&'Data SBP Measures'!$AE1401& \" - \"& 'Data SBP Measures'!$U1401","v":"Class A & B Jail Magistrate Warnings (excluding cite & release)Criminal Department - 130"},{"$f":"_xlfn.XLOOKUP(VALUE(W1401),'Data SBP Programs'!O:O,'Data SBP Programs'!S:S)","v":"Criminal Department"}]
[{"$f":"'Data SBP Measures'!$AI1352&\" - \"&'Data SBP Measures'!$U1352","v":"Criminal - 129"},{"$f":"'Data SBP Measures'!$AF1352","v":"TCCC Referrals"},{"$f":"'Data SBP Measures'!$T1352","v":"2183"},{"$f":"'Data SBP Measures'!$U1352&B1404","v":"129TCCC Referrals"},{"$f":"'Data SBP Measures'!$Y1352","v":"EACH"},null,null,null,null,null,"Criminal - 129","TCCC Referrals",null,null,null,null,null,null,null,"2211","130","Y","240","Criminal Department","EACH","INPUT","ADOPTEDBUD",null,null,null,"Criminal Department","Felony Jail Magistrate Warnings",null,{"$f":"'Data SBP Measures'!$AF1404&'Data SBP Measures'!$AE1404& \" - \"& 'Data SBP Measures'!$U1404","v":"Felony Jail Magistrate WarningsCriminal Department - 130"},{"$f":"_xlfn.XLOOKUP(VALUE(W1404),'Data SBP Programs'!O:O,'Data SBP Programs'!S:S)","v":"Criminal Department"}]
[{"$f":"'Data SBP Measures'!$AI1354&\" - \"&'Data SBP Measures'!$U1354","v":"Criminal - 129"},{"$f":"'Data SBP Measures'!$AF1354","v":"TCCC Referrals"},{"$f":"'Data SBP Measures'!$T1354","v":"2183"},{"$f":"'Data SBP Measures'!$U1354&B1406","v":"129TCCC Referrals"},{"$f":"'Data SBP Measures'!$Y1354","v":"EACH"},null,null,null,null,null,"Criminal - 129","TCCC Referrals",null,null,null,null,null,null,null,"2211","130","Y","240","Criminal Department","EACH","INPUT","ADOPTEDBUD",null,null,null,"Criminal Department","Felony Jail Magistrate Warnings",null,{"$f":"'Data SBP Measures'!$AF1406&'Data SBP Measures'!$AE1406& \" - \"& 'Data SBP Measures'!$U1406","v":"Felony Jail Magistrate WarningsCriminal Department - 130"},{"$f":"_xlfn.XLOOKUP(VALUE(W1406),'Data SBP Programs'!O:O,'Data SBP Programs'!S:S)","v":"Criminal Department"}]
[{"$f":"'Data SBP Measures'!$AI1312&\" - \"&'Data SBP Measures'!$U1312","v":"Criminal - 129"},{"$f":"'Data SBP Measures'!$AF1312","v":"Total pending Cases:"},{"$f":"'Data SBP Measures'!$T1312","v":"2177"},{"$f":"'Data SBP Measures'!$U1312&B1407","v":"129Total pending Cases:"},{"$f":"'Data SBP Measures'!$Y1312","v":"EACH"},null,null,null,null,null,"Criminal - 129","Total pending Cases:",null,null,null,null,null,null,null,"2211","130","Y","240","Criminal Department","EACH","INPUT","ADOPTEDBUD",null,null,null,"Criminal Department","Felony Jail Magistrate Warnings",null,{"$f":"'Data SBP Measures'!$AF1407&'Data SBP Measures'!$AE1407& \" - \"& 'Data SBP Measures'!$U1407","v":"Felony Jail Magistrate WarningsCriminal Department - 130"},{"$f":"_xlfn.XLOOKUP(VALUE(W1407),'Data SBP Programs'!O:O,'Data SBP Programs'!S:S)","v":"Criminal Department"}]
[{"$f":"'Data SBP Measures'!$AI1314&\" - \"&'Data SBP Measures'!$U1314","v":"Criminal - 129"},{"$f":"'Data SBP Measures'!$AF1314","v":"Total pending Cases:"},{"$f":"'Data SBP Measures'!$T1314","v":"2177"},{"$f":"'Data SBP Measures'!$U1314&B1409","v":"129Total pending Cases:"},{"$f":"'Data SBP Measures'!$Y1314","v":"EACH"},null,null,null,null,null,"Criminal - 129","Total pending Cases:",null,null,null,null,null,null,null,"2215","130","Y","240","Criminal Department","EACH","OUTCOME","ADOPTEDBUD",null,null,null,"Criminal Department","Warrant Letters Issued",null,{"$f":"'Data SBP Measures'!$AF1409&'Data SBP Measures'!$AE1409& \" - \"& 'Data SBP Measures'!$U1409","v":"Warrant Letters IssuedCriminal Department - 130"},{"$f":"_xlfn.XLOOKUP(VALUE(W1409),'Data SBP Programs'!O:O,'Data SBP Programs'!S:S)","v":"Criminal Department"}]
[{"$f":"'Data SBP Measures'!$AI1317&\" - \"&'Data SBP Measures'!$U1317","v":"Criminal - 129"},{"$f":"'Data SBP Measures'!$AF1317","v":"Total pending Cases:"},{"$f":"'Data SBP Measures'!$T1317","v":"2177"},{"$f":"'Data SBP Measures'!$U1317&B1412","v":"129Total pending Cases:"},{"$f":"'Data SBP Measures'!$Y1317","v":"EACH"},null,null,null,null,null,"Criminal - 129","Total pending Cases:",null,null,null,null,null,null,null,"2215","130","Y","240","Criminal Department","EACH","OUTCOME","ADOPTEDBUD",null,null,null,"Criminal Department","Warrant Letters Issued",null,{"$f":"'Data SBP Measures'!$AF1412&'Data SBP Measures'!$AE1412& \" - \"& 'Data SBP Measures'!$U1412","v":"Warrant Letters IssuedCriminal Department - 130"},{"$f":"_xlfn.XLOOKUP(VALUE(W1412),'Data SBP Programs'!O:O,'Data SBP Programs'!S:S)","v":"Criminal Department"}]
[{"$f":"'Data SBP Measures'!$AI1345&\" - \"&'Data SBP Measures'!$U1345","v":"Criminal - 129"},{"$f":"'Data SBP Measures'!$AF1345","v":"Warrants Issued"},{"$f":"'Data SBP Measures'!$T1345","v":"2182"},{"$f":"'Data SBP Measures'!$U1345&B1415","v":"129Warrants Issued"},{"$f":"'Data SBP Measures'!$Y1345","v":"EACH"},null,null,null,null,null,"Criminal - 129","Warrants Issued",null,null,null,null,null,null,null,"2215","130","Y","240","Criminal Department","EACH","OUTCOME","ADOPTEDBUD",null,null,null,"Criminal Department","Warrant Letters Issued",null,{"$f":"'Data SBP Measures'!$AF1415&'Data SBP Measures'!$AE1415& \" - \"& 'Data SBP Measures'!$U1415","v":"Warrant Letters IssuedCriminal Department - 130"},{"$f":"_xlfn.XLOOKUP(VALUE(W1415),'Data SBP Programs'!O:O,'Data SBP Programs'!S:S)","v":"Criminal Department"}]
[{"$f":"'Data SBP Measures'!$AI1347&\" - \"&'Data SBP Measures'!$U1347","v":"Criminal - 129"},{"$f":"'Data SBP Measures'!$AF1347","v":"Warrants Issued"},{"$f":"'Data SBP Measures'!$T1347","v":"2182"},{"$f":"'Data SBP Measures'!$U1347&B1417","v":"129Warrants Issued"},{"$f":"'Data SBP Measures'!$Y1347","v":"EACH"},null,null,null,null,null,"Criminal - 129","Warrants Issued",null,null,null,null,null,null,null,"2217","130","Y","240","Criminal Department","EACH","OUTPUT","ADOPTEDBUD",null,null,null,"Criminal Department","Class C Warrants Issued",null,{"$f":"'Data SBP Measures'!$AF1417&'Data SBP Measures'!$AE1417& \" - \"& 'Data SBP Measures'!$U1417","v":"Class C Warrants IssuedCriminal Department - 130"},{"$f":"_xlfn.XLOOKUP(VALUE(W1417),'Data SBP Programs'!O:O,'Data SBP Programs'!S:S)","v":"Criminal Department"}]
[{"$f":"'Data SBP Measures'!$AI1473&\" - \"&'Data SBP Measures'!$U1473","v":"Criminal - 133"},{"$f":"'Data SBP Measures'!$AF1473","v":"Parking Mobility Citations Issued (County Wide)"},{"$f":"'Data SBP Measures'!$T1473","v":"2267"},{"$f":"'Data SBP Measures'!$U1473&B1420","v":"133Parking Mobility Citations Issued (County Wide)"},{"$f":"'Data SBP Measures'!$Y1473","v":"EACH"},null,null,null,null,null,"Criminal - 133","Parking Mobility Citations Issued (County Wide)",null,null,null,null,null,null,null,"2217","130","Y","240","Criminal Department","EACH","OUTPUT","ADOPTEDBUD",null,null,null,"Criminal Department","Class C Warrants Issued",null,{"$f":"'Data SBP Measures'!$AF1420&'Data SBP Measures'!$AE1420& \" - \"& 'Data SBP Measures'!$U1420","v":"Class C Warrants IssuedCriminal Department - 130"},{"$f":"_xlfn.XLOOKUP(VALUE(W1420),'Data SBP Programs'!O:O,'Data SBP Programs'!S:S)","v":"Criminal Department"}]
[{"$f":"'Data SBP Measures'!$AI1470&\" - \"&'Data SBP Measures'!$U1470","v":"Criminal - 133"},{"$f":"'Data SBP Measures'!$AF1470","v":"Patrol Service-Shady Hollow(hrs.)"},{"$f":"'Data SBP Measures'!$T1470","v":"2264"},{"$f":"'Data SBP Measures'!$U1470&B1423","v":"133Patrol Service-Shady Hollow(hrs.)"},{"$f":"'Data SBP Measures'!$Y1470","v":"HOURS"},null,null,null,null,null,"Criminal - 133","Patrol Service-Shady Hollow(hrs.)",null,null,null,null,null,null,null,"222","108","Y","24","Property Tax Collections","EACH","OUTPUT","NEITHER",null,null,null,"Property Tax Collections","# Actual Effective Tax Rate Calculations",null,{"$f":"'Data SBP Measures'!$AF1423&'Data SBP Measures'!$AE1423& \" - \"& 'Data SBP Measures'!$U1423","v":"# Actual Effective Tax Rate CalculationsProperty Tax Collections - 108"},{"$f":"_xlfn.XLOOKUP(VALUE(W1423),'Data SBP Programs'!O:O,'Data SBP Programs'!S:S)","v":"Property Tax Collections"}]
[{"$f":"'Data SBP Measures'!$AI1471&\" - \"&'Data SBP Measures'!$U1471","v":"Criminal - 133"},{"$f":"'Data SBP Measures'!$AF1471","v":"Warrants cleared over a year old"},{"$f":"'Data SBP Measures'!$T1471","v":"2265"},{"$f":"'Data SBP Measures'!$U1471&B1425","v":"133Warrants cleared over a year old"},{"$f":"'Data SBP Measures'!$Y1471","v":"EACH"},null,null,null,null,null,"Criminal - 133","Warrants cleared over a year old",null,null,null,null,null,null,null,"2222","130","Y","240","Criminal Department","EACH","INPUT","ADOPTEDBUD",null,null,null,"Criminal Department","Field Release Citations Filed",null,{"$f":"'Data SBP Measures'!$AF1425&'Data SBP Measures'!$AE1425& \" - \"& 'Data SBP Measures'!$U1425","v":"Field Release Citations FiledCriminal Department - 130"},{"$f":"_xlfn.XLOOKUP(VALUE(W1425),'Data SBP Programs'!O:O,'Data SBP Programs'!S:S)","v":"Criminal Department"}]
[{"$f":"'Data SBP Measures'!$AI1468&\" - \"&'Data SBP Measures'!$U1468","v":"Criminal - 133"},{"$f":"'Data SBP Measures'!$AF1468","v":"Warrants Executed"},{"$f":"'Data SBP Measures'!$T1468","v":"2262"},{"$f":"'Data SBP Measures'!$U1468&B1426","v":"133Warrants Executed"},{"$f":"'Data SBP Measures'!$Y1468","v":"EACH"},null,null,null,null,null,"Criminal - 133","Warrants Executed",null,null,null,null,null,null,null,"2222","130","Y","240","Criminal Department","EACH","INPUT","ADOPTEDBUD",null,null,null,"Criminal Department","Field Release Citations Filed",null,{"$f":"'Data SBP Measures'!$AF1426&'Data SBP Measures'!$AE1426& \" - \"& 'Data SBP Measures'!$U1426","v":"Field Release Citations FiledCriminal Department - 130"},{"$f":"_xlfn.XLOOKUP(VALUE(W1426),'Data SBP Programs'!O:O,'Data SBP Programs'!S:S)","v":"Criminal Department"}]
[{"$f":"'Data SBP Measures'!$AI2097&\" - \"&'Data SBP Measures'!$U2097","v":"Criminal Department - 130"},{"$f":"'Data SBP Measures'!$AF2097","v":"% of Active Cases vs. Cases Disposed"},{"$f":"'Data SBP Measures'!$T2097","v":"2659"},{"$f":"'Data SBP Measures'!$U2097&B1428","v":"130% of Active Cases vs. Cases Disposed"},{"$f":"'Data SBP Measures'!$Y2097","v":"PERCENT"},null,null,null,null,null,"Criminal Department - 130","% of Active Cases vs. Cases Disposed",null,null,null,null,null,null,null,"2222","130","Y","240","Criminal Department","EACH","INPUT","ADOPTEDBUD",null,null,null,"Criminal Department","Field Release Citations Filed",null,{"$f":"'Data SBP Measures'!$AF1428&'Data SBP Measures'!$AE1428& \" - \"& 'Data SBP Measures'!$U1428","v":"Field Release Citations FiledCriminal Department - 130"},{"$f":"_xlfn.XLOOKUP(VALUE(W1428),'Data SBP Programs'!O:O,'Data SBP Programs'!S:S)","v":"Criminal Department"}]
[{"$f":"'Data SBP Measures'!$AI2100&\" - \"&'Data SBP Measures'!$U2100","v":"Criminal Department - 130"},{"$f":"'Data SBP Measures'!$AF2100","v":"% of Active Cases vs. Cases Disposed"},{"$f":"'Data SBP Measures'!$T2100","v":"2659"},{"$f":"'Data SBP Measures'!$U2100&B1431","v":"130% of Active Cases vs. Cases Disposed"},{"$f":"'Data SBP Measures'!$Y2100","v":"PERCENT"},null,null,null,null,null,"Criminal Department - 130","% of Active Cases vs. Cases Disposed",null,null,null,null,null,null,null,"2226","130","Y","239","Civil Department","EACH","INPUT","ADOPTEDBUD",null,null,null,"Civil Department","Number of cases filed",null,{"$f":"'Data SBP Measures'!$AF1431&'Data SBP Measures'!$AE1431& \" - \"& 'Data SBP Measures'!$U1431","v":"Number of cases filedCivil Department - 130"},{"$f":"_xlfn.XLOOKUP(VALUE(W1431),'Data SBP Programs'!O:O,'Data SBP Programs'!S:S)","v":"Civil Department"}]
[{"$f":"'Data SBP Measures'!$AI2103&\" - \"&'Data SBP Measures'!$U2103","v":"Criminal Department - 130"},{"$f":"'Data SBP Measures'!$AF2103","v":"% of Active Cases vs. Cases Disposed"},{"$f":"'Data SBP Measures'!$T2103","v":"2659"},{"$f":"'Data SBP Measures'!$U2103&B1434","v":"130% of Active Cases vs. Cases Disposed"},{"$f":"'Data SBP Measures'!$Y2103","v":"PERCENT"},null,null,null,null,null,"Criminal Department - 130","% of Active Cases vs. Cases Disposed",null,null,null,null,null,null,null,"2226","130","Y","239","Civil Department","EACH","INPUT","ADOPTEDBUD",null,null,null,"Civil Department","Number of cases filed",null,{"$f":"'Data SBP Measures'!$AF1434&'Data SBP Measures'!$AE1434& \" - \"& 'Data SBP Measures'!$U1434","v":"Number of cases filedCivil Department - 130"},{"$f":"_xlfn.XLOOKUP(VALUE(W1434),'Data SBP Programs'!O:O,'Data SBP Programs'!S:S)","v":"Civil Department"}]
[{"$f":"'Data SBP Measures'!$AI2836&\" - \"&'Data SBP Measures'!$U2836","v":"Criminal Department - 130"},{"$f":"'Data SBP Measures'!$AF2836","v":"% of Cite & Release Appeared"},{"$f":"'Data SBP Measures'!$T2836","v":"3401"},{"$f":"'Data SBP Measures'!$U2836&B1436","v":"130% of Cite & Release Appeared"},{"$f":"'Data SBP Measures'!$Y2836","v":"PERCENT"},null,null,null,null,null,"Criminal Department - 130","% of Cite & Release Appeared",null,null,null,null,null,null,null,"2228","130","Y","239","Civil Department","PERCENT","OUTCOME","ADOPTEDBUD",null,null,null,"Civil Department","Percentage of cases disposed",null,{"$f":"'Data SBP Measures'!$AF1436&'Data SBP Measures'!$AE1436& \" - \"& 'Data SBP Measures'!$U1436","v":"Percentage of cases disposedCivil Department - 130"},{"$f":"_xlfn.XLOOKUP(VALUE(W1436),'Data SBP Programs'!O:O,'Data SBP Programs'!S:S)","v":"Civil Department"}]
[{"$f":"'Data SBP Measures'!$AI2839&\" - \"&'Data SBP Measures'!$U2839","v":"Criminal Department - 130"},{"$f":"'Data SBP Measures'!$AF2839","v":"% of Cite & Release Appeared"},{"$f":"'Data SBP Measures'!$T2839","v":"3401"},{"$f":"'Data SBP Measures'!$U2839&B1439","v":"130% of Cite & Release Appeared"},{"$f":"'Data SBP Measures'!$Y2839","v":"PERCENT"},null,null,null,null,null,"Criminal Department - 130","% of Cite & Release Appeared",null,null,null,null,null,null,null,"223","108","Y","24","Property Tax Collections","EACH","OUTPUT","NEITHER",null,null,null,"Property Tax Collections","# Estimated Effective Tax Rate Calculations",null,{"$f":"'Data SBP Measures'!$AF1439&'Data SBP Measures'!$AE1439& \" - \"& 'Data SBP Measures'!$U1439","v":"# Estimated Effective Tax Rate CalculationsProperty Tax Collections - 108"},{"$f":"_xlfn.XLOOKUP(VALUE(W1439),'Data SBP Programs'!O:O,'Data SBP Programs'!S:S)","v":"Property Tax Collections"}]
[{"$f":"'Data SBP Measures'!$AI2842&\" - \"&'Data SBP Measures'!$U2842","v":"Criminal Department - 130"},{"$f":"'Data SBP Measures'!$AF2842","v":"% of Cite & Release Failure to Appear"},{"$f":"'Data SBP Measures'!$T2842","v":"3402"},{"$f":"'Data SBP Measures'!$U2842&B1442","v":"130% of Cite & Release Failure to Appear"},{"$f":"'Data SBP Measures'!$Y2842","v":"PERCENT"},null,null,null,null,null,"Criminal Department - 130","% of Cite & Release Failure to Appear",null,null,null,null,null,null,null,"2232","130","Y","239","Civil Department","EACH","OUTPUT","ADOPTEDBUD",null,null,null,"Civil Department","Number of trials resulting in a final disposition",null,{"$f":"'Data SBP Measures'!$AF1442&'Data SBP Measures'!$AE1442& \" - \"& 'Data SBP Measures'!$U1442","v":"Number of trials resulting in a final dispositionCivil Department - 130"},{"$f":"_xlfn.XLOOKUP(VALUE(W1442),'Data SBP Programs'!O:O,'Data SBP Programs'!S:S)","v":"Civil Department"}]
[{"$f":"'Data SBP Measures'!$AI2844&\" - \"&'Data SBP Measures'!$U2844","v":"Criminal Department - 130"},{"$f":"'Data SBP Measures'!$AF2844","v":"% of Cite & Release Failure to Appear"},{"$f":"'Data SBP Measures'!$T2844","v":"3402"},{"$f":"'Data SBP Measures'!$U2844&B1444","v":"130% of Cite & Release Failure to Appear"},{"$f":"'Data SBP Measures'!$Y2844","v":"PERCENT"},null,null,null,null,null,"Criminal Department - 130","% of Cite & Release Failure to Appear",null,null,null,null,null,null,null,"2233","131","Y","241","Security","EACH","INPUT","ADOPTEDBUD",null,null,null,"Security","Call for Service",null,{"$f":"'Data SBP Measures'!$AF1444&'Data SBP Measures'!$AE1444& \" - \"& 'Data SBP Measures'!$U1444","v":"Call for ServiceSecurity - 131"},{"$f":"_xlfn.XLOOKUP(VALUE(W1444),'Data SBP Programs'!O:O,'Data SBP Programs'!S:S)","v":"Security"}]
[{"$f":"'Data SBP Measures'!$AI2845&\" - \"&'Data SBP Measures'!$U2845","v":"Criminal Department - 130"},{"$f":"'Data SBP Measures'!$AF2845","v":"% of Cite & Release Failure to Appear"},{"$f":"'Data SBP Measures'!$T2845","v":"3402"},{"$f":"'Data SBP Measures'!$U2845&B1445","v":"130% of Cite & Release Failure to Appear"},{"$f":"'Data SBP Measures'!$Y2845","v":"PERCENT"},null,null,null,null,null,"Criminal Department - 130","% of Cite & Release Failure to Appear",null,null,null,null,null,null,null,"2234","131","Y","241","Security","EACH","OUTPUT","ADOPTEDBUD",null,null,null,"Security","Calls Cleared",null,{"$f":"'Data SBP Measures'!$AF1445&'Data SBP Measures'!$AE1445& \" - \"& 'Data SBP Measures'!$U1445","v":"Calls ClearedSecurity - 131"},{"$f":"_xlfn.XLOOKUP(VALUE(W1445),'Data SBP Programs'!O:O,'Data SBP Programs'!S:S)","v":"Security"}]
[{"$f":"'Data SBP Measures'!$AI2847&\" - \"&'Data SBP Measures'!$U2847","v":"Criminal Department - 130"},{"$f":"'Data SBP Measures'!$AF2847","v":"% of Cite & Release Failure to Appear"},{"$f":"'Data SBP Measures'!$T2847","v":"3402"},{"$f":"'Data SBP Measures'!$U2847&B1447","v":"130% of Cite & Release Failure to Appear"},{"$f":"'Data SBP Measures'!$Y2847","v":"PERCENT"},null,null,null,null,null,"Criminal Department - 130","% of Cite & Release Failure to Appear",null,null,null,null,null,null,null,"2236","131","Y","241","Security","HOURS","INPUT","ADOPTEDBUD",null,null,null,"Security","# of hours per staff",null,{"$f":"'Data SBP Measures'!$AF1447&'Data SBP Measures'!$AE1447& \" - \"& 'Data SBP Measures'!$U1447","v":"# of hours per staffSecurity - 131"},{"$f":"_xlfn.XLOOKUP(VALUE(W1447),'Data SBP Programs'!O:O,'Data SBP Programs'!S:S)","v":"Security"}]
[{"$f":"'Data SBP Measures'!$AI2850&\" - \"&'Data SBP Measures'!$U2850","v":"Criminal Department - 130"},{"$f":"'Data SBP Measures'!$AF2850","v":"% of Cite & Release Reduced/Rejected"},{"$f":"'Data SBP Measures'!$T2850","v":"3403"},{"$f":"'Data SBP Measures'!$U2850&B1450","v":"130% of Cite & Release Reduced/Rejected"},{"$f":"'Data SBP Measures'!$Y2850","v":"PERCENT"},null,null,null,null,null,"Criminal Department - 130","% of Cite & Release Reduced/Rejected",null,null,null,null,null,null,null,"2239","131","Y","242","Civil Unit","PERCENT","OUTCOME","ADOPTEDBUD",null,null,null,"Civil Unit","% of documents processed",null,{"$f":"'Data SBP Measures'!$AF1450&'Data SBP Measures'!$AE1450& \" - \"& 'Data SBP Measures'!$U1450","v":"% of documents processedCivil Unit - 131"},{"$f":"_xlfn.XLOOKUP(VALUE(W1450),'Data SBP Programs'!O:O,'Data SBP Programs'!S:S)","v":"Civil Unit"}]
[{"$f":"'Data SBP Measures'!$AI2853&\" - \"&'Data SBP Measures'!$U2853","v":"Criminal Department - 130"},{"$f":"'Data SBP Measures'!$AF2853","v":"% of Cite & Release Reduced/Rejected"},{"$f":"'Data SBP Measures'!$T2853","v":"3403"},{"$f":"'Data SBP Measures'!$U2853&B1453","v":"130% of Cite & Release Reduced/Rejected"},{"$f":"'Data SBP Measures'!$Y2853","v":"PERCENT"},null,null,null,null,null,"Criminal Department - 130","% of Cite & Release Reduced/Rejected",null,null,null,null,null,null,null,"2241","131","Y","243","Criminal Unit","EACH","OUTPUT","ADOPTEDBUD",null,null,null,"Criminal Unit","Warrants Received",null,{"$f":"'Data SBP Measures'!$AF1453&'Data SBP Measures'!$AE1453& \" - \"& 'Data SBP Measures'!$U1453","v":"Warrants ReceivedCriminal Unit - 131"},{"$f":"_xlfn.XLOOKUP(VALUE(W1453),'Data SBP Programs'!O:O,'Data SBP Programs'!S:S)","v":"Criminal Unit"}]
[{"$f":"'Data SBP Measures'!$AI2855&\" - \"&'Data SBP Measures'!$U2855","v":"Criminal Department - 130"},{"$f":"'Data SBP Measures'!$AF2855","v":"% of Cite & Release Reduced/Rejected"},{"$f":"'Data SBP Measures'!$T2855","v":"3403"},{"$f":"'Data SBP Measures'!$U2855&B1455","v":"130% of Cite & Release Reduced/Rejected"},{"$f":"'Data SBP Measures'!$Y2855","v":"PERCENT"},null,null,null,null,null,"Criminal Department - 130","% of Cite & Release Reduced/Rejected",null,null,null,null,null,null,null,"2244","132","Y","244","Civil Unit","EACH","OUTPUT","ADOPTEDBUD",null,null,null,"Civil Unit","Total Civil Papers",null,{"$f":"'Data SBP Measures'!$AF1455&'Data SBP Measures'!$AE1455& \" - \"& 'Data SBP Measures'!$U1455","v":"Total Civil PapersCivil Unit - 132"},{"$f":"_xlfn.XLOOKUP(VALUE(W1455),'Data SBP Programs'!O:O,'Data SBP Programs'!S:S)","v":"Civil Unit"}]
[{"$f":"'Data SBP Measures'!$AI2907&\" - \"&'Data SBP Measures'!$U2907","v":"Criminal Department - 130"},{"$f":"'Data SBP Measures'!$AF2907","v":"% of DWLI Class B - Degree Remains"},{"$f":"'Data SBP Measures'!$T2907","v":"3411"},{"$f":"'Data SBP Measures'!$U2907&B1458","v":"130% of DWLI Class B - Degree Remains"},{"$f":"'Data SBP Measures'!$Y2907","v":"PERCENT"},null,null,null,null,null,"Criminal Department - 130","% of DWLI Class B - Degree Remains",null,null,null,null,null,null,null,"2249","132","Y","245","Criminal Unit","EACH","OUTPUT","ADOPTEDBUD",null,null,null,"Criminal Unit","Warrants Cleared",null,{"$f":"'Data SBP Measures'!$AF1458&'Data SBP Measures'!$AE1458& \" - \"& 'Data SBP Measures'!$U1458","v":"Warrants ClearedCriminal Unit - 132"},{"$f":"_xlfn.XLOOKUP(VALUE(W1458),'Data SBP Programs'!O:O,'Data SBP Programs'!S:S)","v":"Criminal Unit"}]
[{"$f":"'Data SBP Measures'!$AI2910&\" - \"&'Data SBP Measures'!$U2910","v":"Criminal Department - 130"},{"$f":"'Data SBP Measures'!$AF2910","v":"% of DWLI Class B - Degree Remains"},{"$f":"'Data SBP Measures'!$T2910","v":"3411"},{"$f":"'Data SBP Measures'!$U2910&B1461","v":"130% of DWLI Class B - Degree Remains"},{"$f":"'Data SBP Measures'!$Y2910","v":"PERCENT"},null,null,null,null,null,"Criminal Department - 130","% of DWLI Class B - Degree Remains",null,null,null,null,null,null,null,"2253","132","Y","247","Security Unit","EACH","INPUT","ADOPTEDBUD",null,null,null,"Security Unit","Front Entry Totals",null,{"$f":"'Data SBP Measures'!$AF1461&'Data SBP Measures'!$AE1461& \" - \"& 'Data SBP Measures'!$U1461","v":"Front Entry TotalsSecurity Unit - 132"},{"$f":"_xlfn.XLOOKUP(VALUE(W1461),'Data SBP Programs'!O:O,'Data SBP Programs'!S:S)","v":"Security Unit"}]
[{"$f":"'Data SBP Measures'!$AI2898&\" - \"&'Data SBP Measures'!$U2898","v":"Criminal Department - 130"},{"$f":"'Data SBP Measures'!$AF2898","v":"% of DWLI Class B Cases Rejected"},{"$f":"'Data SBP Measures'!$T2898","v":"3410"},{"$f":"'Data SBP Measures'!$U2898&B1463","v":"130% of DWLI Class B Cases Rejected"},{"$f":"'Data SBP Measures'!$Y2898","v":"PERCENT"},null,null,null,null,null,"Criminal Department - 130","% of DWLI Class B Cases Rejected",null,null,null,null,null,null,null,"2256","133","Y","248","Civil","EACH","OUTPUT","ADOPTEDBUD",null,null,null,"Civil","Citations Executed",null,{"$f":"'Data SBP Measures'!$AF1463&'Data SBP Measures'!$AE1463& \" - \"& 'Data SBP Measures'!$U1463","v":"Citations ExecutedCivil - 133"},{"$f":"_xlfn.XLOOKUP(VALUE(W1463),'Data SBP Programs'!O:O,'Data SBP Programs'!S:S)","v":"Civil"}]
[{"$f":"'Data SBP Measures'!$AI2899&\" - \"&'Data SBP Measures'!$U2899","v":"Criminal Department - 130"},{"$f":"'Data SBP Measures'!$AF2899","v":"% of DWLI Class B Cases Rejected"},{"$f":"'Data SBP Measures'!$T2899","v":"3410"},{"$f":"'Data SBP Measures'!$U2899&B1464","v":"130% of DWLI Class B Cases Rejected"},{"$f":"'Data SBP Measures'!$Y2899","v":"PERCENT"},null,null,null,null,null,"Criminal Department - 130","% of DWLI Class B Cases Rejected",null,null,null,null,null,null,null,"2259","133","Y","248","Civil","DAYS","OUTCOME","NEITHER",null,null,null,"Civil","Service of Forcible Evictions (avg. days)",null,{"$f":"'Data SBP Measures'!$AF1464&'Data SBP Measures'!$AE1464& \" - \"& 'Data SBP Measures'!$U1464","v":"Service of Forcible Evictions (avg. days)Civil - 133"},{"$f":"_xlfn.XLOOKUP(VALUE(W1464),'Data SBP Programs'!O:O,'Data SBP Programs'!S:S)","v":"Civil"}]
[{"$f":"'Data SBP Measures'!$AI2901&\" - \"&'Data SBP Measures'!$U2901","v":"Criminal Department - 130"},{"$f":"'Data SBP Measures'!$AF2901","v":"% of DWLI Class B Cases Rejected"},{"$f":"'Data SBP Measures'!$T2901","v":"3410"},{"$f":"'Data SBP Measures'!$U2901&B1466","v":"130% of DWLI Class B Cases Rejected"},{"$f":"'Data SBP Measures'!$Y2901","v":"PERCENT"},null,null,null,null,null,"Criminal Department - 130","% of DWLI Class B Cases Rejected",null,null,null,null,null,null,null,"2260","133","Y","248","Civil","DAYS","OUTCOME","NEITHER",null,null,null,"Civil","Service of Non-Forcible Evictions (avg. days)",null,{"$f":"'Data SBP Measures'!$AF1466&'Data SBP Measures'!$AE1466& \" - \"& 'Data SBP Measures'!$U1466","v":"Service of Non-Forcible Evictions (avg. days)Civil - 133"},{"$f":"_xlfn.XLOOKUP(VALUE(W1466),'Data SBP Programs'!O:O,'Data SBP Programs'!S:S)","v":"Civil"}]
[{"$f":"'Data SBP Measures'!$AI2904&\" - \"&'Data SBP Measures'!$U2904","v":"Criminal Department - 130"},{"$f":"'Data SBP Measures'!$AF2904","v":"% of DWLI Class B Cases Rejected"},{"$f":"'Data SBP Measures'!$T2904","v":"3410"},{"$f":"'Data SBP Measures'!$U2904&B1469","v":"130% of DWLI Class B Cases Rejected"},{"$f":"'Data SBP Measures'!$Y2904","v":"PERCENT"},null,null,null,null,null,"Criminal Department - 130","% of DWLI Class B Cases Rejected",null,null,null,null,null,null,null,"2263","133","Y","249","Criminal","EACH","OUTPUT","NEITHER",null,null,null,"Criminal","Traffic Citations",null,{"$f":"'Data SBP Measures'!$AF1469&'Data SBP Measures'!$AE1469& \" - \"& 'Data SBP Measures'!$U1469","v":"Traffic CitationsCriminal - 133"},{"$f":"_xlfn.XLOOKUP(VALUE(W1469),'Data SBP Programs'!O:O,'Data SBP Programs'!S:S)","v":"Criminal"}]
[{"$f":"'Data SBP Measures'!$AI2893&\" - \"&'Data SBP Measures'!$U2893","v":"Criminal Department - 130"},{"$f":"'Data SBP Measures'!$AF2893","v":"% of DWLI Class B Reductions (Now Class C)"},{"$f":"'Data SBP Measures'!$T2893","v":"3409"},{"$f":"'Data SBP Measures'!$U2893&B1472","v":"130% of DWLI Class B Reductions (Now Class C)"},{"$f":"'Data SBP Measures'!$Y2893","v":"PERCENT"},null,null,null,null,null,"Criminal Department - 130","% of DWLI Class B Reductions (Now Class C)",null,null,null,null,null,null,null,"2266","133","Y","249","Criminal","EACH","OUTPUT","NEITHER",null,null,null,"Criminal","Parking Mobility Violations Approved(County Wide)",null,{"$f":"'Data SBP Measures'!$AF1472&'Data SBP Measures'!$AE1472& \" - \"& 'Data SBP Measures'!$U1472","v":"Parking Mobility Violations Approved(County Wide)Criminal - 133"},{"$f":"_xlfn.XLOOKUP(VALUE(W1472),'Data SBP Programs'!O:O,'Data SBP Programs'!S:S)","v":"Criminal"}]
[{"$f":"'Data SBP Measures'!$AI2895&\" - \"&'Data SBP Measures'!$U2895","v":"Criminal Department - 130"},{"$f":"'Data SBP Measures'!$AF2895","v":"% of DWLI Class B Reductions (Now Class C)"},{"$f":"'Data SBP Measures'!$T2895","v":"3409"},{"$f":"'Data SBP Measures'!$U2895&B1474","v":"130% of DWLI Class B Reductions (Now Class C)"},{"$f":"'Data SBP Measures'!$Y2895","v":"PERCENT"},null,null,null,null,null,"Criminal Department - 130","% of DWLI Class B Reductions (Now Class C)",null,null,null,null,null,null,null,"2268","133","Y","249","Criminal","EACH","OUTPUT","NEITHER",null,null,null,"Criminal","Parking Mobility Citations Settled(County Wide)",null,{"$f":"'Data SBP Measures'!$AF1474&'Data SBP Measures'!$AE1474& \" - \"& 'Data SBP Measures'!$U1474","v":"Parking Mobility Citations Settled(County Wide)Criminal - 133"},{"$f":"_xlfn.XLOOKUP(VALUE(W1474),'Data SBP Programs'!O:O,'Data SBP Programs'!S:S)","v":"Criminal"}]
[{"$f":"'Data SBP Measures'!$AI2884&\" - \"&'Data SBP Measures'!$U2884","v":"Criminal Department - 130"},{"$f":"'Data SBP Measures'!$AF2884","v":"% of Theft Class B - Degree Remains"},{"$f":"'Data SBP Measures'!$T2884","v":"3408"},{"$f":"'Data SBP Measures'!$U2884&B1477","v":"130% of Theft Class B - Degree Remains"},{"$f":"'Data SBP Measures'!$Y2884","v":"PERCENT"},null,null,null,null,null,"Criminal Department - 130","% of Theft Class B - Degree Remains",null,null,null,null,null,null,null,"2276","133","Y","251","Emissions Task Force","EACH","OUTPUT","ADOPTEDBUD",null,null,null,"Emissions Task Force","Registration Violations",null,{"$f":"'Data SBP Measures'!$AF1477&'Data SBP Measures'!$AE1477& \" - \"& 'Data SBP Measures'!$U1477","v":"Registration ViolationsEmissions Task Force - 133"},{"$f":"_xlfn.XLOOKUP(VALUE(W1477),'Data SBP Programs'!O:O,'Data SBP Programs'!S:S)","v":"Emissions Task Force"}]
[{"$f":"'Data SBP Measures'!$AI2887&\" - \"&'Data SBP Measures'!$U2887","v":"Criminal Department - 130"},{"$f":"'Data SBP Measures'!$AF2887","v":"% of Theft Class B - Degree Remains"},{"$f":"'Data SBP Measures'!$T2887","v":"3408"},{"$f":"'Data SBP Measures'!$U2887&B1480","v":"130% of Theft Class B - Degree Remains"},{"$f":"'Data SBP Measures'!$Y2887","v":"PERCENT"},null,null,null,null,null,"Criminal Department - 130","% of Theft Class B - Degree Remains",null,null,null,null,null,null,null,"2280","134","Y","253","Criminal Unit","EACH","OUTPUT","ADOPTEDBUD",null,null,null,"Criminal Unit","Warrant executed",null,{"$f":"'Data SBP Measures'!$AF1480&'Data SBP Measures'!$AE1480& \" - \"& 'Data SBP Measures'!$U1480","v":"Warrant executedCriminal Unit - 134"},{"$f":"_xlfn.XLOOKUP(VALUE(W1480),'Data SBP Programs'!O:O,'Data SBP Programs'!S:S)","v":"Criminal Unit"}]
[{"$f":"'Data SBP Measures'!$AI2889&\" - \"&'Data SBP Measures'!$U2889","v":"Criminal Department - 130"},{"$f":"'Data SBP Measures'!$AF2889","v":"% of Theft Class B - Degree Remains"},{"$f":"'Data SBP Measures'!$T2889","v":"3408"},{"$f":"'Data SBP Measures'!$U2889&B1482","v":"130% of Theft Class B - Degree Remains"},{"$f":"'Data SBP Measures'!$Y2889","v":"PERCENT"},null,null,null,null,null,"Criminal Department - 130","% of Theft Class B - Degree Remains",null,null,null,null,null,null,null,"2282","134","Y","255","Security Unit","EACH","OUTPUT","ADOPTEDBUD",null,null,null,"Security Unit","Number visitors screened",null,{"$f":"'Data SBP Measures'!$AF1482&'Data SBP Measures'!$AE1482& \" - \"& 'Data SBP Measures'!$U1482","v":"Number visitors screenedSecurity Unit - 134"},{"$f":"_xlfn.XLOOKUP(VALUE(W1482),'Data SBP Programs'!O:O,'Data SBP Programs'!S:S)","v":"Security Unit"}]
[{"$f":"'Data SBP Measures'!$AI2890&\" - \"&'Data SBP Measures'!$U2890","v":"Criminal Department - 130"},{"$f":"'Data SBP Measures'!$AF2890","v":"% of Theft Class B - Degree Remains"},{"$f":"'Data SBP Measures'!$T2890","v":"3408"},{"$f":"'Data SBP Measures'!$U2890&B1483","v":"130% of Theft Class B - Degree Remains"},{"$f":"'Data SBP Measures'!$Y2890","v":"PERCENT"},null,null,null,null,null,"Criminal Department - 130","% of Theft Class B - Degree Remains",null,null,null,null,null,null,null,"2286","135","Y","256","Civil & Criminal Process","EACH","INPUT","ADOPTEDBUD",null,null,null,"Civil & Criminal Process","All Civil & Criminal Process received and processed",null,{"$f":"'Data SBP Measures'!$AF1483&'Data SBP Measures'!$AE1483& \" - \"& 'Data SBP Measures'!$U1483","v":"All Civil & Criminal Process received and processedCivil & Criminal Process - 135"},{"$f":"_xlfn.XLOOKUP(VALUE(W1483),'Data SBP Programs'!O:O,'Data SBP Programs'!S:S)","v":"Civil & Criminal Process"}]
[{"$f":"'Data SBP Measures'!$AI2878&\" - \"&'Data SBP Measures'!$U2878","v":"Criminal Department - 130"},{"$f":"'Data SBP Measures'!$AF2878","v":"% of Theft Class B Cases Rejected"},{"$f":"'Data SBP Measures'!$T2878","v":"3407"},{"$f":"'Data SBP Measures'!$U2878&B1485","v":"130% of Theft Class B Cases Rejected"},{"$f":"'Data SBP Measures'!$Y2878","v":"PERCENT"},null,null,null,null,null,"Criminal Department - 130","% of Theft Class B Cases Rejected",null,null,null,null,null,null,null,"2286","135","Y","256","Civil & Criminal Process","EACH","INPUT","ADOPTEDBUD",null,null,null,"Civil & Criminal Process","All Civil & Criminal Process received and processed",null,{"$f":"'Data SBP Measures'!$AF1485&'Data SBP Measures'!$AE1485& \" - \"& 'Data SBP Measures'!$U1485","v":"All Civil & Criminal Process received and processedCivil & Criminal Process - 135"},{"$f":"_xlfn.XLOOKUP(VALUE(W1485),'Data SBP Programs'!O:O,'Data SBP Programs'!S:S)","v":"Civil & Criminal Process"}]
[{"$f":"'Data SBP Measures'!$AI2881&\" - \"&'Data SBP Measures'!$U2881","v":"Criminal Department - 130"},{"$f":"'Data SBP Measures'!$AF2881","v":"% of Theft Class B Cases Rejected"},{"$f":"'Data SBP Measures'!$T2881","v":"3407"},{"$f":"'Data SBP Measures'!$U2881&B1488","v":"130% of Theft Class B Cases Rejected"},{"$f":"'Data SBP Measures'!$Y2881","v":"PERCENT"},null,null,null,null,null,"Criminal Department - 130","% of Theft Class B Cases Rejected",null,null,null,null,null,null,null,"2286","135","Y","256","Civil & Criminal Process","EACH","INPUT","ADOPTEDBUD",null,null,null,"Civil & Criminal Process","All Civil & Criminal Process received and processed",null,{"$f":"'Data SBP Measures'!$AF1488&'Data SBP Measures'!$AE1488& \" - \"& 'Data SBP Measures'!$U1488","v":"All Civil & Criminal Process received and processedCivil & Criminal Process - 135"},{"$f":"_xlfn.XLOOKUP(VALUE(W1488),'Data SBP Programs'!O:O,'Data SBP Programs'!S:S)","v":"Civil & Criminal Process"}]
[{"$f":"'Data SBP Measures'!$AI2870&\" - \"&'Data SBP Measures'!$U2870","v":"Criminal Department - 130"},{"$f":"'Data SBP Measures'!$AF2870","v":"% of Theft Class B Reductions (Now Class C)"},{"$f":"'Data SBP Measures'!$T2870","v":"3406"},{"$f":"'Data SBP Measures'!$U2870&B1491","v":"130% of Theft Class B Reductions (Now Class C)"},{"$f":"'Data SBP Measures'!$Y2870","v":"PERCENT"},null,null,null,null,null,"Criminal Department - 130","% of Theft Class B Reductions (Now Class C)",null,null,null,null,null,null,null,"2286","135","Y","256","Civil & Criminal Process","EACH","INPUT","ADOPTEDBUD",null,null,null,"Civil & Criminal Process","All Civil & Criminal Process received and processed",null,{"$f":"'Data SBP Measures'!$AF1491&'Data SBP Measures'!$AE1491& \" - \"& 'Data SBP Measures'!$U1491","v":"All Civil & Criminal Process received and processedCivil & Criminal Process - 135"},{"$f":"_xlfn.XLOOKUP(VALUE(W1491),'Data SBP Programs'!O:O,'Data SBP Programs'!S:S)","v":"Civil & Criminal Process"}]
[{"$f":"'Data SBP Measures'!$AI2872&\" - \"&'Data SBP Measures'!$U2872","v":"Criminal Department - 130"},{"$f":"'Data SBP Measures'!$AF2872","v":"% of Theft Class B Reductions (Now Class C)"},{"$f":"'Data SBP Measures'!$T2872","v":"3406"},{"$f":"'Data SBP Measures'!$U2872&B1493","v":"130% of Theft Class B Reductions (Now Class C)"},{"$f":"'Data SBP Measures'!$Y2872","v":"PERCENT"},null,null,null,null,null,"Criminal Department - 130","% of Theft Class B Reductions (Now Class C)",null,null,null,null,null,null,null,"2286","135","Y","256","Civil & Criminal Process","EACH","INPUT","ADOPTEDBUD",null,null,null,"Civil & Criminal Process","All Civil & Criminal Process received and processed",null,{"$f":"'Data SBP Measures'!$AF1493&'Data SBP Measures'!$AE1493& \" - \"& 'Data SBP Measures'!$U1493","v":"All Civil & Criminal Process received and processedCivil & Criminal Process - 135"},{"$f":"_xlfn.XLOOKUP(VALUE(W1493),'Data SBP Programs'!O:O,'Data SBP Programs'!S:S)","v":"Civil & Criminal Process"}]
[{"$f":"'Data SBP Measures'!$AI2875&\" - \"&'Data SBP Measures'!$U2875","v":"Criminal Department - 130"},{"$f":"'Data SBP Measures'!$AF2875","v":"% of Theft Class B Reductions (Now Class C)"},{"$f":"'Data SBP Measures'!$T2875","v":"3406"},{"$f":"'Data SBP Measures'!$U2875&B1496","v":"130% of Theft Class B Reductions (Now Class C)"},{"$f":"'Data SBP Measures'!$Y2875","v":"PERCENT"},null,null,null,null,null,"Criminal Department - 130","% of Theft Class B Reductions (Now Class C)",null,null,null,null,null,null,null,"2287","135","Y","256","Civil & Criminal Process","EACH","OUTPUT","ADOPTEDBUD",null,null,null,"Civil & Criminal Process","Class C Warrants Cleared by CN5 Collection",null,{"$f":"'Data SBP Measures'!$AF1496&'Data SBP Measures'!$AE1496& \" - \"& 'Data SBP Measures'!$U1496","v":"Class C Warrants Cleared by CN5 CollectionCivil & Criminal Process - 135"},{"$f":"_xlfn.XLOOKUP(VALUE(W1496),'Data SBP Programs'!O:O,'Data SBP Programs'!S:S)","v":"Civil & Criminal Process"}]
[{"$f":"'Data SBP Measures'!$AI1396&\" - \"&'Data SBP Measures'!$U1396","v":"Criminal Department - 130"},{"$f":"'Data SBP Measures'!$AF1396","v":"Class A & B Jail Magistrate Warnings (excluding cite & release)"},{"$f":"'Data SBP Measures'!$T1396","v":"2210"},{"$f":"'Data SBP Measures'!$U1396&B1499","v":"130Class A & B Jail Magistrate Warnings (excluding cite & release)"},{"$f":"'Data SBP Measures'!$Y1396","v":"EACH"},null,null,null,null,null,"Criminal Department - 130","Class A & B Jail Magistrate Warnings (excluding cite & release)",null,null,null,null,null,null,null,"2287","135","Y","256","Civil & Criminal Process","EACH","OUTPUT","ADOPTEDBUD",null,null,null,"Civil & Criminal Process","Class C Warrants Cleared by CN5 Collection",null,{"$f":"'Data SBP Measures'!$AF1499&'Data SBP Measures'!$AE1499& \" - \"& 'Data SBP Measures'!$U1499","v":"Class C Warrants Cleared by CN5 CollectionCivil & Criminal Process - 135"},{"$f":"_xlfn.XLOOKUP(VALUE(W1499),'Data SBP Programs'!O:O,'Data SBP Programs'!S:S)","v":"Civil & Criminal Process"}]
[{"$f":"'Data SBP Measures'!$AI1398&\" - \"&'Data SBP Measures'!$U1398","v":"Criminal Department - 130"},{"$f":"'Data SBP Measures'!$AF1398","v":"Class A & B Jail Magistrate Warnings (excluding cite & release)"},{"$f":"'Data SBP Measures'!$T1398","v":"2210"},{"$f":"'Data SBP Measures'!$U1398&B1501","v":"130Class A & B Jail Magistrate Warnings (excluding cite & release)"},{"$f":"'Data SBP Measures'!$Y1398","v":"EACH"},null,null,null,null,null,"Criminal Department - 130","Class A & B Jail Magistrate Warnings (excluding cite & release)",null,null,null,null,null,null,null,"2287","135","Y","256","Civil & Criminal Process","EACH","OUTPUT","ADOPTEDBUD",null,null,null,"Civil & Criminal Process","Class C Warrants Cleared by CN5 Collection",null,{"$f":"'Data SBP Measures'!$AF1501&'Data SBP Measures'!$AE1501& \" - \"& 'Data SBP Measures'!$U1501","v":"Class C Warrants Cleared by CN5 CollectionCivil & Criminal Process - 135"},{"$f":"_xlfn.XLOOKUP(VALUE(W1501),'Data SBP Programs'!O:O,'Data SBP Programs'!S:S)","v":"Civil & Criminal Process"}]
[{"$f":"'Data SBP Measures'!$AI1399&\" - \"&'Data SBP Measures'!$U1399","v":"Criminal Department - 130"},{"$f":"'Data SBP Measures'!$AF1399","v":"Class A & B Jail Magistrate Warnings (excluding cite & release)"},{"$f":"'Data SBP Measures'!$T1399","v":"2210"},{"$f":"'Data SBP Measures'!$U1399&B1502","v":"130Class A & B Jail Magistrate Warnings (excluding cite & release)"},{"$f":"'Data SBP Measures'!$Y1399","v":"EACH"},null,null,null,null,null,"Criminal Department - 130","Class A & B Jail Magistrate Warnings (excluding cite & release)",null,null,null,null,null,null,null,"2287","135","Y","256","Civil & Criminal Process","EACH","OUTPUT","ADOPTEDBUD",null,null,null,"Civil & Criminal Process","Class C Warrants Cleared by CN5 Collection",null,{"$f":"'Data SBP Measures'!$AF1502&'Data SBP Measures'!$AE1502& \" - \"& 'Data SBP Measures'!$U1502","v":"Class C Warrants Cleared by CN5 CollectionCivil & Criminal Process - 135"},{"$f":"_xlfn.XLOOKUP(VALUE(W1502),'Data SBP Programs'!O:O,'Data SBP Programs'!S:S)","v":"Civil & Criminal Process"}]
[{"$f":"'Data SBP Measures'!$AI1401&\" - \"&'Data SBP Measures'!$U1401","v":"Criminal Department - 130"},{"$f":"'Data SBP Measures'!$AF1401","v":"Class A & B Jail Magistrate Warnings (excluding cite & release)"},{"$f":"'Data SBP Measures'!$T1401","v":"2210"},{"$f":"'Data SBP Measures'!$U1401&B1504","v":"130Class A & B Jail Magistrate Warnings (excluding cite & release)"},{"$f":"'Data SBP Measures'!$Y1401","v":"EACH"},null,null,null,null,null,"Criminal Department - 130","Class A & B Jail Magistrate Warnings (excluding cite & release)",null,null,null,null,null,null,null,"2287","135","Y","256","Civil & Criminal Process","EACH","OUTPUT","ADOPTEDBUD",null,null,null,"Civil & Criminal Process","Class C Warrants Cleared by CN5 Collection",null,{"$f":"'Data SBP Measures'!$AF1504&'Data SBP Measures'!$AE1504& \" - \"& 'Data SBP Measures'!$U1504","v":"Class C Warrants Cleared by CN5 CollectionCivil & Criminal Process - 135"},{"$f":"_xlfn.XLOOKUP(VALUE(W1504),'Data SBP Programs'!O:O,'Data SBP Programs'!S:S)","v":"Civil & Criminal Process"}]
[{"$f":"'Data SBP Measures'!$AI2092&\" - \"&'Data SBP Measures'!$U2092","v":"Criminal Department - 130"},{"$f":"'Data SBP Measures'!$AF2092","v":"Class A & B Misdeameanors - Arrest Warrants Issued"},{"$f":"'Data SBP Measures'!$T2092","v":"2657"},{"$f":"'Data SBP Measures'!$U2092&B1507","v":"130Class A & B Misdeameanors - Arrest Warrants Issued"},{"$f":"'Data SBP Measures'!$Y2092","v":"EACH"},null,null,null,null,null,"Criminal Department - 130","Class A & B Misdeameanors - Arrest Warrants Issued",null,null,null,null,null,null,null,"2288","135","Y","256","Civil & Criminal Process","EACH","INPUT","ADOPTEDBUD",null,null,null,"Civil & Criminal Process","Class C Warrants Received (per year)",null,{"$f":"'Data SBP Measures'!$AF1507&'Data SBP Measures'!$AE1507& \" - \"& 'Data SBP Measures'!$U1507","v":"Class C Warrants Received (per year)Civil & Criminal Process - 135"},{"$f":"_xlfn.XLOOKUP(VALUE(W1507),'Data SBP Programs'!O:O,'Data SBP Programs'!S:S)","v":"Civil & Criminal Process"}]
[{"$f":"'Data SBP Measures'!$AI2095&\" - \"&'Data SBP Measures'!$U2095","v":"Criminal Department - 130"},{"$f":"'Data SBP Measures'!$AF2095","v":"Class A & B Misdeameanors - Arrest Warrants Issued"},{"$f":"'Data SBP Measures'!$T2095","v":"2657"},{"$f":"'Data SBP Measures'!$U2095&B1510","v":"130Class A & B Misdeameanors - Arrest Warrants Issued"},{"$f":"'Data SBP Measures'!$Y2095","v":"EACH"},null,null,null,null,null,"Criminal Department - 130","Class A & B Misdeameanors - Arrest Warrants Issued",null,null,null,null,null,null,null,"2288","135","Y","256","Civil & Criminal Process","EACH","INPUT","ADOPTEDBUD",null,null,null,"Civil & Criminal Process","Class C Warrants Received (per year)",null,{"$f":"'Data SBP Measures'!$AF1510&'Data SBP Measures'!$AE1510& \" - \"& 'Data SBP Measures'!$U1510","v":"Class C Warrants Received (per year)Civil & Criminal Process - 135"},{"$f":"_xlfn.XLOOKUP(VALUE(W1510),'Data SBP Programs'!O:O,'Data SBP Programs'!S:S)","v":"Civil & Criminal Process"}]
[{"$f":"'Data SBP Measures'!$AI2820&\" - \"&'Data SBP Measures'!$U2820","v":"Criminal Department - 130"},{"$f":"'Data SBP Measures'!$AF2820","v":"Class C Dispositions"},{"$f":"'Data SBP Measures'!$T2820","v":"3399"},{"$f":"'Data SBP Measures'!$U2820&B1512","v":"130Class C Dispositions"},{"$f":"'Data SBP Measures'!$Y2820","v":"EACH"},null,null,null,null,null,"Criminal Department - 130","Class C Dispositions",null,null,null,null,null,null,null,"2288","135","Y","256","Civil & Criminal Process","EACH","INPUT","ADOPTEDBUD",null,null,null,"Civil & Criminal Process","Class C Warrants Received (per year)",null,{"$f":"'Data SBP Measures'!$AF1512&'Data SBP Measures'!$AE1512& \" - \"& 'Data SBP Measures'!$U1512","v":"Class C Warrants Received (per year)Civil & Criminal Process - 135"},{"$f":"_xlfn.XLOOKUP(VALUE(W1512),'Data SBP Programs'!O:O,'Data SBP Programs'!S:S)","v":"Civil & Criminal Process"}]
[{"$f":"'Data SBP Measures'!$AI2823&\" - \"&'Data SBP Measures'!$U2823","v":"Criminal Department - 130"},{"$f":"'Data SBP Measures'!$AF2823","v":"Class C Dispositions"},{"$f":"'Data SBP Measures'!$T2823","v":"3399"},{"$f":"'Data SBP Measures'!$U2823&B1515","v":"130Class C Dispositions"},{"$f":"'Data SBP Measures'!$Y2823","v":"EACH"},null,null,null,null,null,"Criminal Department - 130","Class C Dispositions",null,null,null,null,null,null,null,"2288","135","Y","256","Civil & Criminal Process","EACH","INPUT","ADOPTEDBUD",null,null,null,"Civil & Criminal Process","Class C Warrants Received (per year)",null,{"$f":"'Data SBP Measures'!$AF1515&'Data SBP Measures'!$AE1515& \" - \"& 'Data SBP Measures'!$U1515","v":"Class C Warrants Received (per year)Civil & Criminal Process - 135"},{"$f":"_xlfn.XLOOKUP(VALUE(W1515),'Data SBP Programs'!O:O,'Data SBP Programs'!S:S)","v":"Civil & Criminal Process"}]
[{"$f":"'Data SBP Measures'!$AI2826&\" - \"&'Data SBP Measures'!$U2826","v":"Criminal Department - 130"},{"$f":"'Data SBP Measures'!$AF2826","v":"Class C Dispositions"},{"$f":"'Data SBP Measures'!$T2826","v":"3399"},{"$f":"'Data SBP Measures'!$U2826&B1518","v":"130Class C Dispositions"},{"$f":"'Data SBP Measures'!$Y2826","v":"EACH"},null,null,null,null,null,"Criminal Department - 130","Class C Dispositions",null,null,null,null,null,null,null,"2289","135","Y","256","Civil & Criminal Process","EACH","OUTPUT","ADOPTEDBUD",null,null,null,"Civil & Criminal Process","Disabled Parking Citations Issued",null,{"$f":"'Data SBP Measures'!$AF1518&'Data SBP Measures'!$AE1518& \" - \"& 'Data SBP Measures'!$U1518","v":"Disabled Parking Citations IssuedCivil & Criminal Process - 135"},{"$f":"_xlfn.XLOOKUP(VALUE(W1518),'Data SBP Programs'!O:O,'Data SBP Programs'!S:S)","v":"Civil & Criminal Process"}]
[{"$f":"'Data SBP Measures'!$AI1388&\" - \"&'Data SBP Measures'!$U1388","v":"Criminal Department - 130"},{"$f":"'Data SBP Measures'!$AF1388","v":"Class C Misdemeanors Filed"},{"$f":"'Data SBP Measures'!$T1388","v":"2207"},{"$f":"'Data SBP Measures'!$U1388&B1520","v":"130Class C Misdemeanors Filed"},{"$f":"'Data SBP Measures'!$Y1388","v":"EACH"},null,null,null,null,null,"Criminal Department - 130","Class C Misdemeanors Filed",null,null,null,null,null,null,null,"2289","135","Y","256","Civil & Criminal Process","EACH","OUTPUT","ADOPTEDBUD",null,null,null,"Civil & Criminal Process","Disabled Parking Citations Issued",null,{"$f":"'Data SBP Measures'!$AF1520&'Data SBP Measures'!$AE1520& \" - \"& 'Data SBP Measures'!$U1520","v":"Disabled Parking Citations IssuedCivil & Criminal Process - 135"},{"$f":"_xlfn.XLOOKUP(VALUE(W1520),'Data SBP Programs'!O:O,'Data SBP Programs'!S:S)","v":"Civil & Criminal Process"}]
[{"$f":"'Data SBP Measures'!$AI1389&\" - \"&'Data SBP Measures'!$U1389","v":"Criminal Department - 130"},{"$f":"'Data SBP Measures'!$AF1389","v":"Class C Misdemeanors Filed"},{"$f":"'Data SBP Measures'!$T1389","v":"2207"},{"$f":"'Data SBP Measures'!$U1389&B1521","v":"130Class C Misdemeanors Filed"},{"$f":"'Data SBP Measures'!$Y1389","v":"EACH"},null,null,null,null,null,"Criminal Department - 130","Class C Misdemeanors Filed",null,null,null,null,null,null,null,"2289","135","Y","256","Civil & Criminal Process","EACH","OUTPUT","ADOPTEDBUD",null,null,null,"Civil & Criminal Process","Disabled Parking Citations Issued",null,{"$f":"'Data SBP Measures'!$AF1521&'Data SBP Measures'!$AE1521& \" - \"& 'Data SBP Measures'!$U1521","v":"Disabled Parking Citations IssuedCivil & Criminal Process - 135"},{"$f":"_xlfn.XLOOKUP(VALUE(W1521),'Data SBP Programs'!O:O,'Data SBP Programs'!S:S)","v":"Civil & Criminal Process"}]
[{"$f":"'Data SBP Measures'!$AI1392&\" - \"&'Data SBP Measures'!$U1392","v":"Criminal Department - 130"},{"$f":"'Data SBP Measures'!$AF1392","v":"Class C Misdemeanors Filed"},{"$f":"'Data SBP Measures'!$T1392","v":"2207"},{"$f":"'Data SBP Measures'!$U1392&B1524","v":"130Class C Misdemeanors Filed"},{"$f":"'Data SBP Measures'!$Y1392","v":"EACH"},null,null,null,null,null,"Criminal Department - 130","Class C Misdemeanors Filed",null,null,null,null,null,null,null,"2289","135","Y","256","Civil & Criminal Process","EACH","OUTPUT","ADOPTEDBUD",null,null,null,"Civil & Criminal Process","Disabled Parking Citations Issued",null,{"$f":"'Data SBP Measures'!$AF1524&'Data SBP Measures'!$AE1524& \" - \"& 'Data SBP Measures'!$U1524","v":"Disabled Parking Citations IssuedCivil & Criminal Process - 135"},{"$f":"_xlfn.XLOOKUP(VALUE(W1524),'Data SBP Programs'!O:O,'Data SBP Programs'!S:S)","v":"Civil & Criminal Process"}]
[{"$f":"'Data SBP Measures'!$AI1416&\" - \"&'Data SBP Measures'!$U1416","v":"Criminal Department - 130"},{"$f":"'Data SBP Measures'!$AF1416","v":"Class C Warrants Issued"},{"$f":"'Data SBP Measures'!$T1416","v":"2217"},{"$f":"'Data SBP Measures'!$U1416&B1526","v":"130Class C Warrants Issued"},{"$f":"'Data SBP Measures'!$Y1416","v":"EACH"},null,null,null,null,null,"Criminal Department - 130","Class C Warrants Issued",null,null,null,null,null,null,null,"2289","135","Y","256","Civil & Criminal Process","EACH","OUTPUT","ADOPTEDBUD",null,null,null,"Civil & Criminal Process","Disabled Parking Citations Issued",null,{"$f":"'Data SBP Measures'!$AF1526&'Data SBP Measures'!$AE1526& \" - \"& 'Data SBP Measures'!$U1526","v":"Disabled Parking Citations IssuedCivil & Criminal Process - 135"},{"$f":"_xlfn.XLOOKUP(VALUE(W1526),'Data SBP Programs'!O:O,'Data SBP Programs'!S:S)","v":"Civil & Criminal Process"}]
[{"$f":"'Data SBP Measures'!$AI1419&\" - \"&'Data SBP Measures'!$U1419","v":"Criminal Department - 130"},{"$f":"'Data SBP Measures'!$AF1419","v":"Class C Warrants Issued"},{"$f":"'Data SBP Measures'!$T1419","v":"2217"},{"$f":"'Data SBP Measures'!$U1419&B1529","v":"130Class C Warrants Issued"},{"$f":"'Data SBP Measures'!$Y1419","v":"EACH"},null,null,null,null,null,"Criminal Department - 130","Class C Warrants Issued",null,null,null,null,null,null,null,"2290","135","Y","256","Civil & Criminal Process","EACH","OUTPUT","ADOPTEDBUD",null,null,null,"Civil & Criminal Process","Illegally Used Placards Seized",null,{"$f":"'Data SBP Measures'!$AF1529&'Data SBP Measures'!$AE1529& \" - \"& 'Data SBP Measures'!$U1529","v":"Illegally Used Placards SeizedCivil & Criminal Process - 135"},{"$f":"_xlfn.XLOOKUP(VALUE(W1529),'Data SBP Programs'!O:O,'Data SBP Programs'!S:S)","v":"Civil & Criminal Process"}]
[{"$f":"'Data SBP Measures'!$AI1421&\" - \"&'Data SBP Measures'!$U1421","v":"Criminal Department - 130"},{"$f":"'Data SBP Measures'!$AF1421","v":"Class C Warrants Issued"},{"$f":"'Data SBP Measures'!$T1421","v":"2217"},{"$f":"'Data SBP Measures'!$U1421&B1531","v":"130Class C Warrants Issued"},{"$f":"'Data SBP Measures'!$Y1421","v":"EACH"},null,null,null,null,null,"Criminal Department - 130","Class C Warrants Issued",null,null,null,null,null,null,null,"2290","135","Y","256","Civil & Criminal Process","EACH","OUTPUT","ADOPTEDBUD",null,null,null,"Civil & Criminal Process","Illegally Used Placards Seized",null,{"$f":"'Data SBP Measures'!$AF1531&'Data SBP Measures'!$AE1531& \" - \"& 'Data SBP Measures'!$U1531","v":"Illegally Used Placards SeizedCivil & Criminal Process - 135"},{"$f":"_xlfn.XLOOKUP(VALUE(W1531),'Data SBP Programs'!O:O,'Data SBP Programs'!S:S)","v":"Civil & Criminal Process"}]
[{"$f":"'Data SBP Measures'!$AI2206&\" - \"&'Data SBP Measures'!$U2206","v":"Criminal Department - 130"},{"$f":"'Data SBP Measures'!$AF2206","v":"Court ordered actions completed via paperless workflow"},{"$f":"'Data SBP Measures'!$T2206","v":"2726"},{"$f":"'Data SBP Measures'!$U2206&B1534","v":"130Court ordered actions completed via paperless workflow"},{"$f":"'Data SBP Measures'!$Y2206","v":"EACH"},null,null,null,null,null,"Criminal Department - 130","Court ordered actions completed via paperless workflow",null,null,null,null,null,null,null,"2290","135","Y","256","Civil & Criminal Process","EACH","OUTPUT","ADOPTEDBUD",null,null,null,"Civil & Criminal Process","Illegally Used Placards Seized",null,{"$f":"'Data SBP Measures'!$AF1534&'Data SBP Measures'!$AE1534& \" - \"& 'Data SBP Measures'!$U1534","v":"Illegally Used Placards SeizedCivil & Criminal Process - 135"},{"$f":"_xlfn.XLOOKUP(VALUE(W1534),'Data SBP Programs'!O:O,'Data SBP Programs'!S:S)","v":"Civil & Criminal Process"}]
[{"$f":"'Data SBP Measures'!$AI2209&\" - \"&'Data SBP Measures'!$U2209","v":"Criminal Department - 130"},{"$f":"'Data SBP Measures'!$AF2209","v":"Court ordered actions completed via paperless workflow"},{"$f":"'Data SBP Measures'!$T2209","v":"2726"},{"$f":"'Data SBP Measures'!$U2209&B1537","v":"130Court ordered actions completed via paperless workflow"},{"$f":"'Data SBP Measures'!$Y2209","v":"EACH"},null,null,null,null,null,"Criminal Department - 130","Court ordered actions completed via paperless workflow",null,null,null,null,null,null,null,"2290","135","Y","256","Civil & Criminal Process","EACH","OUTPUT","ADOPTEDBUD",null,null,null,"Civil & Criminal Process","Illegally Used Placards Seized",null,{"$f":"'Data SBP Measures'!$AF1537&'Data SBP Measures'!$AE1537& \" - \"& 'Data SBP Measures'!$U1537","v":"Illegally Used Placards SeizedCivil & Criminal Process - 135"},{"$f":"_xlfn.XLOOKUP(VALUE(W1537),'Data SBP Programs'!O:O,'Data SBP Programs'!S:S)","v":"Civil & Criminal Process"}]
[{"$f":"'Data SBP Measures'!$AI2211&\" - \"&'Data SBP Measures'!$U2211","v":"Criminal Department - 130"},{"$f":"'Data SBP Measures'!$AF2211","v":"Court ordered actions completed via paperless workflow"},{"$f":"'Data SBP Measures'!$T2211","v":"2726"},{"$f":"'Data SBP Measures'!$U2211&B1539","v":"130Court ordered actions completed via paperless workflow"},{"$f":"'Data SBP Measures'!$Y2211","v":"EACH"},null,null,null,null,null,"Criminal Department - 130","Court ordered actions completed via paperless workflow",null,null,null,null,null,null,null,"2291","136","Y","258","Dispute Resolution Center","EACH","OUTPUT","ADOPTEDBUD",null,null,null,"Dispute Resolution Center","Number of people served: Training Services",null,{"$f":"'Data SBP Measures'!$AF1539&'Data SBP Measures'!$AE1539& \" - \"& 'Data SBP Measures'!$U1539","v":"Number of people served: Training ServicesDispute Resolution Center - 136"},{"$f":"_xlfn.XLOOKUP(VALUE(W1539),'Data SBP Programs'!O:O,'Data SBP Programs'!S:S)","v":"Dispute Resolution Center"}]
[{"$f":"'Data SBP Measures'!$AI2105&\" - \"&'Data SBP Measures'!$U2105","v":"Criminal Department - 130"},{"$f":"'Data SBP Measures'!$AF2105","v":"Criminal Hearings Scheduled & Held"},{"$f":"'Data SBP Measures'!$T2105","v":"2661"},{"$f":"'Data SBP Measures'!$U2105&B1540","v":"130Criminal Hearings Scheduled & Held"},{"$f":"'Data SBP Measures'!$Y2105","v":"EACH"},null,null,null,null,null,"Criminal Department - 130","Criminal Hearings Scheduled & Held",null,null,null,null,null,null,null,"2292","136","Y","258","Dispute Resolution Center","EACH","OUTPUT","ADOPTEDBUD",null,null,null,"Dispute Resolution Center","Number of people served: ADR Services",null,{"$f":"'Data SBP Measures'!$AF1540&'Data SBP Measures'!$AE1540& \" - \"& 'Data SBP Measures'!$U1540","v":"Number of people served: ADR ServicesDispute Resolution Center - 136"},{"$f":"_xlfn.XLOOKUP(VALUE(W1540),'Data SBP Programs'!O:O,'Data SBP Programs'!S:S)","v":"Dispute Resolution Center"}]
[{"$f":"'Data SBP Measures'!$AI2108&\" - \"&'Data SBP Measures'!$U2108","v":"Criminal Department - 130"},{"$f":"'Data SBP Measures'!$AF2108","v":"Criminal Hearings Scheduled & Held"},{"$f":"'Data SBP Measures'!$T2108","v":"2661"},{"$f":"'Data SBP Measures'!$U2108&B1543","v":"130Criminal Hearings Scheduled & Held"},{"$f":"'Data SBP Measures'!$Y2108","v":"EACH"},null,null,null,null,null,"Criminal Department - 130","Criminal Hearings Scheduled & Held",null,null,null,null,null,null,null,"2295","136","Y","258","Dispute Resolution Center","PERCENT","OUTCOME","ADOPTEDBUD",null,null,null,"Dispute Resolution Center","% Cases Diverted from Court",null,{"$f":"'Data SBP Measures'!$AF1543&'Data SBP Measures'!$AE1543& \" - \"& 'Data SBP Measures'!$U1543","v":"% Cases Diverted from CourtDispute Resolution Center - 136"},{"$f":"_xlfn.XLOOKUP(VALUE(W1543),'Data SBP Programs'!O:O,'Data SBP Programs'!S:S)","v":"Dispute Resolution Center"}]
[{"$f":"'Data SBP Measures'!$AI2110&\" - \"&'Data SBP Measures'!$U2110","v":"Criminal Department - 130"},{"$f":"'Data SBP Measures'!$AF2110","v":"Criminal Hearings Scheduled & Held"},{"$f":"'Data SBP Measures'!$T2110","v":"2661"},{"$f":"'Data SBP Measures'!$U2110&B1545","v":"130Criminal Hearings Scheduled & Held"},{"$f":"'Data SBP Measures'!$Y2110","v":"EACH"},null,null,null,null,null,"Criminal Department - 130","Criminal Hearings Scheduled & Held",null,null,null,null,null,null,null,"2297","136","Y","258","Dispute Resolution Center","PERCENT","OUTCOME","ADOPTEDBUD",null,null,null,"Dispute Resolution Center","% Clients Satisfied with Mediation",null,{"$f":"'Data SBP Measures'!$AF1545&'Data SBP Measures'!$AE1545& \" - \"& 'Data SBP Measures'!$U1545","v":"% Clients Satisfied with MediationDispute Resolution Center - 136"},{"$f":"_xlfn.XLOOKUP(VALUE(W1545),'Data SBP Programs'!O:O,'Data SBP Programs'!S:S)","v":"Dispute Resolution Center"}]
[{"$f":"'Data SBP Measures'!$AI2864&\" - \"&'Data SBP Measures'!$U2864","v":"Criminal Department - 130"},{"$f":"'Data SBP Measures'!$AF2864","v":"DWLI Class B Cases Filed"},{"$f":"'Data SBP Measures'!$T2864","v":"3405"},{"$f":"'Data SBP Measures'!$U2864&B1548","v":"130DWLI Class B Cases Filed"},{"$f":"'Data SBP Measures'!$Y2864","v":"EACH"},null,null,null,null,null,"Criminal Department - 130","DWLI Class B Cases Filed",null,null,null,null,null,null,null,"23","106","Y","178","Auditor's Office","PERCENT","OUTCOME","BOTH",null,null,null,"Auditor's Office","% SAP help desk tickets that met service time targets",null,{"$f":"'Data SBP Measures'!$AF1548&'Data SBP Measures'!$AE1548& \" - \"& 'Data SBP Measures'!$U1548","v":"% SAP help desk tickets that met service time targetsAuditor's Office - 106"},{"$f":"_xlfn.XLOOKUP(VALUE(W1548),'Data SBP Programs'!O:O,'Data SBP Programs'!S:S)","v":"Auditor's Office"}]
[{"$f":"'Data SBP Measures'!$AI2866&\" - \"&'Data SBP Measures'!$U2866","v":"Criminal Department - 130"},{"$f":"'Data SBP Measures'!$AF2866","v":"DWLI Class B Cases Filed"},{"$f":"'Data SBP Measures'!$T2866","v":"3405"},{"$f":"'Data SBP Measures'!$U2866&B1550","v":"130DWLI Class B Cases Filed"},{"$f":"'Data SBP Measures'!$Y2866","v":"EACH"},null,null,null,null,null,"Criminal Department - 130","DWLI Class B Cases Filed",null,null,null,null,null,null,null,"2300","139","Y","264","Adult Probation CSCD","EACH","OUTPUT","ADOPTEDBUD",null,null,null,"Adult Probation CSCD","Average # of direct cases",null,{"$f":"'Data SBP Measures'!$AF1550&'Data SBP Measures'!$AE1550& \" - \"& 'Data SBP Measures'!$U1550","v":"Average # of direct casesAdult Probation CSCD - 139"},{"$f":"_xlfn.XLOOKUP(VALUE(W1550),'Data SBP Programs'!O:O,'Data SBP Programs'!S:S)","v":"Adult Probation CSCD"}]
[{"$f":"'Data SBP Measures'!$AI2869&\" - \"&'Data SBP Measures'!$U2869","v":"Criminal Department - 130"},{"$f":"'Data SBP Measures'!$AF2869","v":"DWLI Class B Cases Filed"},{"$f":"'Data SBP Measures'!$T2869","v":"3405"},{"$f":"'Data SBP Measures'!$U2869&B1553","v":"130DWLI Class B Cases Filed"},{"$f":"'Data SBP Measures'!$Y2869","v":"EACH"},null,null,null,null,null,"Criminal Department - 130","DWLI Class B Cases Filed",null,null,null,null,null,null,null,"2304","139","Y","264","Adult Probation CSCD","DOLLARS","OUTCOME","ADOPTEDBUD",null,null,null,"Adult Probation CSCD","Collected County funds",null,{"$f":"'Data SBP Measures'!$AF1553&'Data SBP Measures'!$AE1553& \" - \"& 'Data SBP Measures'!$U1553","v":"Collected County fundsAdult Probation CSCD - 139"},{"$f":"_xlfn.XLOOKUP(VALUE(W1553),'Data SBP Programs'!O:O,'Data SBP Programs'!S:S)","v":"Adult Probation CSCD"}]
[{"$f":"'Data SBP Measures'!$AI2073&\" - \"&'Data SBP Measures'!$U2073","v":"Criminal Department - 130"},{"$f":"'Data SBP Measures'!$AF2073","v":"Emergency Protection Orders"},{"$f":"'Data SBP Measures'!$T2073","v":"2648"},{"$f":"'Data SBP Measures'!$U2073&B1556","v":"130Emergency Protection Orders"},{"$f":"'Data SBP Measures'!$Y2073","v":"EACH"},null,null,null,null,null,"Criminal Department - 130","Emergency Protection Orders",null,null,null,null,null,null,null,"2307","139","Y","264","Adult Probation CSCD","PERCENT","OUTCOME","ADOPTEDBUD",null,null,null,"Adult Probation CSCD","Misdemeanor revocation rate",null,{"$f":"'Data SBP Measures'!$AF1556&'Data SBP Measures'!$AE1556& \" - \"& 'Data SBP Measures'!$U1556","v":"Misdemeanor revocation rateAdult Probation CSCD - 139"},{"$f":"_xlfn.XLOOKUP(VALUE(W1556),'Data SBP Programs'!O:O,'Data SBP Programs'!S:S)","v":"Adult Probation CSCD"}]
[{"$f":"'Data SBP Measures'!$AI2075&\" - \"&'Data SBP Measures'!$U2075","v":"Criminal Department - 130"},{"$f":"'Data SBP Measures'!$AF2075","v":"Emergency Protection Orders"},{"$f":"'Data SBP Measures'!$T2075","v":"2648"},{"$f":"'Data SBP Measures'!$U2075&B1558","v":"130Emergency Protection Orders"},{"$f":"'Data SBP Measures'!$Y2075","v":"EACH"},null,null,null,null,null,"Criminal Department - 130","Emergency Protection Orders",null,null,null,null,null,null,null,"2309","139","Y","264","Adult Probation CSCD","PERCENT","OUTCOME","ADOPTEDBUD",null,null,null,"Adult Probation CSCD","Felony revocation rate",null,{"$f":"'Data SBP Measures'!$AF1558&'Data SBP Measures'!$AE1558& \" - \"& 'Data SBP Measures'!$U1558","v":"Felony revocation rateAdult Probation CSCD - 139"},{"$f":"_xlfn.XLOOKUP(VALUE(W1558),'Data SBP Programs'!O:O,'Data SBP Programs'!S:S)","v":"Adult Probation CSCD"}]
[{"$f":"'Data SBP Measures'!$AI2076&\" - \"&'Data SBP Measures'!$U2076","v":"Criminal Department - 130"},{"$f":"'Data SBP Measures'!$AF2076","v":"Emergency Protection Orders"},{"$f":"'Data SBP Measures'!$T2076","v":"2648"},{"$f":"'Data SBP Measures'!$U2076&B1559","v":"130Emergency Protection Orders"},{"$f":"'Data SBP Measures'!$Y2076","v":"EACH"},null,null,null,null,null,"Criminal Department - 130","Emergency Protection Orders",null,null,null,null,null,null,null,"231","108","Y","24","Property Tax Collections","EACH","INPUT","ADOPTEDBUD",null,null,null,"Property Tax Collections","# of mailed payments processed",null,{"$f":"'Data SBP Measures'!$AF1559&'Data SBP Measures'!$AE1559& \" - \"& 'Data SBP Measures'!$U1559","v":"# of mailed payments processedProperty Tax Collections - 108"},{"$f":"_xlfn.XLOOKUP(VALUE(W1559),'Data SBP Programs'!O:O,'Data SBP Programs'!S:S)","v":"Property Tax Collections"}]
[{"$f":"'Data SBP Measures'!$AI2065&\" - \"&'Data SBP Measures'!$U2065","v":"Criminal Department - 130"},{"$f":"'Data SBP Measures'!$AF2065","v":"Examining Trials Scheduled"},{"$f":"'Data SBP Measures'!$T2065","v":"2647"},{"$f":"'Data SBP Measures'!$U2065&B1562","v":"130Examining Trials Scheduled"},{"$f":"'Data SBP Measures'!$Y2065","v":"EACH"},null,null,null,null,null,"Criminal Department - 130","Examining Trials Scheduled",null,null,null,null,null,null,null,"2311","140","Y","265","Adult Education Classes","EACH","OUTPUT","ADOPTEDBUD",null,null,null,"Adult Education Classes","Total # of clients referred to the Adult Education classes",null,{"$f":"'Data SBP Measures'!$AF1562&'Data SBP Measures'!$AE1562& \" - \"& 'Data SBP Measures'!$U1562","v":"Total # of clients referred to the Adult Education classesAdult Education Classes - 140"},{"$f":"_xlfn.XLOOKUP(VALUE(W1562),'Data SBP Programs'!O:O,'Data SBP Programs'!S:S)","v":"Adult Education Classes"}]
[{"$f":"'Data SBP Measures'!$AI2067&\" - \"&'Data SBP Measures'!$U2067","v":"Criminal Department - 130"},{"$f":"'Data SBP Measures'!$AF2067","v":"Examining Trials Scheduled"},{"$f":"'Data SBP Measures'!$T2067","v":"2647"},{"$f":"'Data SBP Measures'!$U2067&B1564","v":"130Examining Trials Scheduled"},{"$f":"'Data SBP Measures'!$Y2067","v":"EACH"},null,null,null,null,null,"Criminal Department - 130","Examining Trials Scheduled",null,null,null,null,null,null,null,"2312","140","Y","265","Adult Education Classes","EACH","OUTPUT","ADOPTEDBUD",null,null,null,"Adult Education Classes","Total # of clients completing the Adult Education classes",null,{"$f":"'Data SBP Measures'!$AF1564&'Data SBP Measures'!$AE1564& \" - \"& 'Data SBP Measures'!$U1564","v":"Total # of clients completing the Adult Education classesAdult Education Classes - 140"},{"$f":"_xlfn.XLOOKUP(VALUE(W1564),'Data SBP Programs'!O:O,'Data SBP Programs'!S:S)","v":"Adult Education Classes"}]
[{"$f":"'Data SBP Measures'!$AI2070&\" - \"&'Data SBP Measures'!$U2070","v":"Criminal Department - 130"},{"$f":"'Data SBP Measures'!$AF2070","v":"Examining Trials Scheduled"},{"$f":"'Data SBP Measures'!$T2070","v":"2647"},{"$f":"'Data SBP Measures'!$U2070&B1567","v":"130Examining Trials Scheduled"},{"$f":"'Data SBP Measures'!$Y2070","v":"EACH"},null,null,null,null,null,"Criminal Department - 130","Examining Trials Scheduled",null,null,null,null,null,null,null,"2313","140","Y","265","Adult Education Classes","EACH","OUTPUT","BLACKBOOK",null,null,null,"Adult Education Classes","Total # of Classes",null,{"$f":"'Data SBP Measures'!$AF1567&'Data SBP Measures'!$AE1567& \" - \"& 'Data SBP Measures'!$U1567","v":"Total # of ClassesAdult Education Classes - 140"},{"$f":"_xlfn.XLOOKUP(VALUE(W1567),'Data SBP Programs'!O:O,'Data SBP Programs'!S:S)","v":"Adult Education Classes"}]
[{"$f":"'Data SBP Measures'!$AI2113&\" - \"&'Data SBP Measures'!$U2113","v":"Criminal Department - 130"},{"$f":"'Data SBP Measures'!$AF2113","v":"Felony Arrest Warrants Issued"},{"$f":"'Data SBP Measures'!$T2113","v":"2662"},{"$f":"'Data SBP Measures'!$U2113&B1569","v":"130Felony Arrest Warrants Issued"},{"$f":"'Data SBP Measures'!$Y2113","v":"EACH"},null,null,null,null,null,"Criminal Department - 130","Felony Arrest Warrants Issued",null,null,null,null,null,null,null,"2313","140","Y","265","Adult Education Classes","EACH","OUTPUT","BLACKBOOK",null,null,null,"Adult Education Classes","Total # of Classes",null,{"$f":"'Data SBP Measures'!$AF1569&'Data SBP Measures'!$AE1569& \" - \"& 'Data SBP Measures'!$U1569","v":"Total # of ClassesAdult Education Classes - 140"},{"$f":"_xlfn.XLOOKUP(VALUE(W1569),'Data SBP Programs'!O:O,'Data SBP Programs'!S:S)","v":"Adult Education Classes"}]
[{"$f":"'Data SBP Measures'!$AI2116&\" - \"&'Data SBP Measures'!$U2116","v":"Criminal Department - 130"},{"$f":"'Data SBP Measures'!$AF2116","v":"Felony Arrest Warrants Issued"},{"$f":"'Data SBP Measures'!$T2116","v":"2662"},{"$f":"'Data SBP Measures'!$U2116&B1572","v":"130Felony Arrest Warrants Issued"},{"$f":"'Data SBP Measures'!$Y2116","v":"EACH"},null,null,null,null,null,"Criminal Department - 130","Felony Arrest Warrants Issued",null,null,null,null,null,null,null,"2314","140","Y","265","Adult Education Classes","EACH","OUTPUT","BLACKBOOK",null,null,null,"Adult Education Classes","8-Hour Check Writing (CW) # of clients referred to class",null,{"$f":"'Data SBP Measures'!$AF1572&'Data SBP Measures'!$AE1572& \" - \"& 'Data SBP Measures'!$U1572","v":"8-Hour Check Writing (CW) # of clients referred to classAdult Education Classes - 140"},{"$f":"_xlfn.XLOOKUP(VALUE(W1572),'Data SBP Programs'!O:O,'Data SBP Programs'!S:S)","v":"Adult Education Classes"}]
[{"$f":"'Data SBP Measures'!$AI2117&\" - \"&'Data SBP Measures'!$U2117","v":"Criminal Department - 130"},{"$f":"'Data SBP Measures'!$AF2117","v":"Felony Arrest Warrants Issued"},{"$f":"'Data SBP Measures'!$T2117","v":"2662"},{"$f":"'Data SBP Measures'!$U2117&B1573","v":"130Felony Arrest Warrants Issued"},{"$f":"'Data SBP Measures'!$Y2117","v":"EACH"},null,null,null,null,null,"Criminal Department - 130","Felony Arrest Warrants Issued",null,null,null,null,null,null,null,"2315","140","Y","265","Adult Education Classes","EACH","OUTPUT","BLACKBOOK",null,null,null,"Adult Education Classes","8-Hour Check Writing (CW) # of clients completing",null,{"$f":"'Data SBP Measures'!$AF1573&'Data SBP Measures'!$AE1573& \" - \"& 'Data SBP Measures'!$U1573","v":"8-Hour Check Writing (CW) # of clients completingAdult Education Classes - 140"},{"$f":"_xlfn.XLOOKUP(VALUE(W1573),'Data SBP Programs'!O:O,'Data SBP Programs'!S:S)","v":"Adult Education Classes"}]
[{"$f":"'Data SBP Measures'!$AI1404&\" - \"&'Data SBP Measures'!$U1404","v":"Criminal Department - 130"},{"$f":"'Data SBP Measures'!$AF1404","v":"Felony Jail Magistrate Warnings"},{"$f":"'Data SBP Measures'!$T1404","v":"2211"},{"$f":"'Data SBP Measures'!$U1404&B1577","v":"130Felony Jail Magistrate Warnings"},{"$f":"'Data SBP Measures'!$Y1404","v":"EACH"},null,null,null,null,null,"Criminal Department - 130","Felony Jail Magistrate Warnings",null,null,null,null,null,null,null,"2316","140","Y","265","Adult Education Classes","EACH","OUTPUT","BLACKBOOK",null,null,null,"Adult Education Classes","8-Hour Check Writing (CW) # of classes",null,{"$f":"'Data SBP Measures'!$AF1577&'Data SBP Measures'!$AE1577& \" - \"& 'Data SBP Measures'!$U1577","v":"8-Hour Check Writing (CW) # of classesAdult Education Classes - 140"},{"$f":"_xlfn.XLOOKUP(VALUE(W1577),'Data SBP Programs'!O:O,'Data SBP Programs'!S:S)","v":"Adult Education Classes"}]
[{"$f":"'Data SBP Measures'!$AI1405&\" - \"&'Data SBP Measures'!$U1405","v":"Criminal Department - 130"},{"$f":"'Data SBP Measures'!$AF1405","v":"Felony Jail Magistrate Warnings"},{"$f":"'Data SBP Measures'!$T1405","v":"2211"},{"$f":"'Data SBP Measures'!$U1405&B1578","v":"130Felony Jail Magistrate Warnings"},{"$f":"'Data SBP Measures'!$Y1405","v":"EACH"},null,null,null,null,null,"Criminal Department - 130","Felony Jail Magistrate Warnings",null,null,null,null,null,null,null,"2316","140","Y","265","Adult Education Classes","EACH","OUTPUT","BLACKBOOK",null,null,null,"Adult Education Classes","8-Hour Check Writing (CW) # of classes",null,{"$f":"'Data SBP Measures'!$AF1578&'Data SBP Measures'!$AE1578& \" - \"& 'Data SBP Measures'!$U1578","v":"8-Hour Check Writing (CW) # of classesAdult Education Classes - 140"},{"$f":"_xlfn.XLOOKUP(VALUE(W1578),'Data SBP Programs'!O:O,'Data SBP Programs'!S:S)","v":"Adult Education Classes"}]
[{"$f":"'Data SBP Measures'!$AI1408&\" - \"&'Data SBP Measures'!$U1408","v":"Criminal Department - 130"},{"$f":"'Data SBP Measures'!$AF1408","v":"Felony Jail Magistrate Warnings"},{"$f":"'Data SBP Measures'!$T1408","v":"2211"},{"$f":"'Data SBP Measures'!$U1408&B1581","v":"130Felony Jail Magistrate Warnings"},{"$f":"'Data SBP Measures'!$Y1408","v":"EACH"},null,null,null,null,null,"Criminal Department - 130","Felony Jail Magistrate Warnings",null,null,null,null,null,null,null,"2317","140","Y","265","Adult Education Classes","EACH","OUTPUT","BLACKBOOK",null,null,null,"Adult Education Classes","20-Hour Multiple Offender/Felony # of clients referred to class",null,{"$f":"'Data SBP Measures'!$AF1581&'Data SBP Measures'!$AE1581& \" - \"& 'Data SBP Measures'!$U1581","v":"20-Hour Multiple Offender/Felony # of clients referred to classAdult Education Classes - 140"},{"$f":"_xlfn.XLOOKUP(VALUE(W1581),'Data SBP Programs'!O:O,'Data SBP Programs'!S:S)","v":"Adult Education Classes"}]
[{"$f":"'Data SBP Measures'!$AI1425&\" - \"&'Data SBP Measures'!$U1425","v":"Criminal Department - 130"},{"$f":"'Data SBP Measures'!$AF1425","v":"Field Release Citations Filed"},{"$f":"'Data SBP Measures'!$T1425","v":"2222"},{"$f":"'Data SBP Measures'!$U1425&B1583","v":"130Field Release Citations Filed"},{"$f":"'Data SBP Measures'!$Y1425","v":"EACH"},null,null,null,null,null,"Criminal Department - 130","Field Release Citations Filed",null,null,null,null,null,null,null,"2318","140","Y","265","Adult Education Classes","EACH","OUTPUT","BLACKBOOK",null,null,null,"Adult Education Classes","20-Hour Multiple Offender/Felony # of clients completing",null,{"$f":"'Data SBP Measures'!$AF1583&'Data SBP Measures'!$AE1583& \" - \"& 'Data SBP Measures'!$U1583","v":"20-Hour Multiple Offender/Felony # of clients completingAdult Education Classes - 140"},{"$f":"_xlfn.XLOOKUP(VALUE(W1583),'Data SBP Programs'!O:O,'Data SBP Programs'!S:S)","v":"Adult Education Classes"}]
[{"$f":"'Data SBP Measures'!$AI1428&\" - \"&'Data SBP Measures'!$U1428","v":"Criminal Department - 130"},{"$f":"'Data SBP Measures'!$AF1428","v":"Field Release Citations Filed"},{"$f":"'Data SBP Measures'!$T1428","v":"2222"},{"$f":"'Data SBP Measures'!$U1428&B1586","v":"130Field Release Citations Filed"},{"$f":"'Data SBP Measures'!$Y1428","v":"EACH"},null,null,null,null,null,"Criminal Department - 130","Field Release Citations Filed",null,null,null,null,null,null,null,"2319","140","Y","265","Adult Education Classes","EACH","OUTPUT","BLACKBOOK",null,null,null,"Adult Education Classes","20-Hour Multiple Offender/Felony # of classes",null,{"$f":"'Data SBP Measures'!$AF1586&'Data SBP Measures'!$AE1586& \" - \"& 'Data SBP Measures'!$U1586","v":"20-Hour Multiple Offender/Felony # of classesAdult Education Classes - 140"},{"$f":"_xlfn.XLOOKUP(VALUE(W1586),'Data SBP Programs'!O:O,'Data SBP Programs'!S:S)","v":"Adult Education Classes"}]
[{"$f":"'Data SBP Measures'!$AI1430&\" - \"&'Data SBP Measures'!$U1430","v":"Criminal Department - 130"},{"$f":"'Data SBP Measures'!$AF1430","v":"Field Release Citations Filed"},{"$f":"'Data SBP Measures'!$T1430","v":"2222"},{"$f":"'Data SBP Measures'!$U1430&B1588","v":"130Field Release Citations Filed"},{"$f":"'Data SBP Measures'!$Y1430","v":"EACH"},null,null,null,null,null,"Criminal Department - 130","Field Release Citations Filed",null,null,null,null,null,null,null,"232","108","Y","24","Property Tax Collections","EACH","INPUT","ADOPTEDBUD",null,null,null,"Property Tax Collections","# of walked in payments processed",null,{"$f":"'Data SBP Measures'!$AF1588&'Data SBP Measures'!$AE1588& \" - \"& 'Data SBP Measures'!$U1588","v":"# of walked in payments processedProperty Tax Collections - 108"},{"$f":"_xlfn.XLOOKUP(VALUE(W1588),'Data SBP Programs'!O:O,'Data SBP Programs'!S:S)","v":"Property Tax Collections"}]
[{"$f":"'Data SBP Measures'!$AI2085&\" - \"&'Data SBP Measures'!$U2085","v":"Criminal Department - 130"},{"$f":"'Data SBP Measures'!$AF2085","v":"Possession of Marijuana Cases Filed"},{"$f":"'Data SBP Measures'!$T2085","v":"2651"},{"$f":"'Data SBP Measures'!$U2085&B1591","v":"130Possession of Marijuana Cases Filed"},{"$f":"'Data SBP Measures'!$Y2085","v":"EACH"},null,null,null,null,null,"Criminal Department - 130","Possession of Marijuana Cases Filed",null,null,null,null,null,null,null,"2320","140","Y","265","Adult Education Classes","EACH","OUTPUT","BLACKBOOK",null,null,null,"Adult Education Classes","8-Hour Assault/Misdemeanor # of clients referred to class",null,{"$f":"'Data SBP Measures'!$AF1591&'Data SBP Measures'!$AE1591& \" - \"& 'Data SBP Measures'!$U1591","v":"8-Hour Assault/Misdemeanor # of clients referred to classAdult Education Classes - 140"},{"$f":"_xlfn.XLOOKUP(VALUE(W1591),'Data SBP Programs'!O:O,'Data SBP Programs'!S:S)","v":"Adult Education Classes"}]
[{"$f":"'Data SBP Measures'!$AI2086&\" - \"&'Data SBP Measures'!$U2086","v":"Criminal Department - 130"},{"$f":"'Data SBP Measures'!$AF2086","v":"Possession of Marijuana Cases Filed"},{"$f":"'Data SBP Measures'!$T2086","v":"2651"},{"$f":"'Data SBP Measures'!$U2086&B1592","v":"130Possession of Marijuana Cases Filed"},{"$f":"'Data SBP Measures'!$Y2086","v":"EACH"},null,null,null,null,null,"Criminal Department - 130","Possession of Marijuana Cases Filed",null,null,null,null,null,null,null,"2321","140","Y","265","Adult Education Classes","EACH","OUTPUT","BLACKBOOK",null,null,null,"Adult Education Classes","8-Hour Assault/Misdemeanor # of clients completing",null,{"$f":"'Data SBP Measures'!$AF1592&'Data SBP Measures'!$AE1592& \" - \"& 'Data SBP Measures'!$U1592","v":"8-Hour Assault/Misdemeanor # of clients completingAdult Education Classes - 140"},{"$f":"_xlfn.XLOOKUP(VALUE(W1592),'Data SBP Programs'!O:O,'Data SBP Programs'!S:S)","v":"Adult Education Classes"}]
[{"$f":"'Data SBP Measures'!$AI2856&\" - \"&'Data SBP Measures'!$U2856","v":"Criminal Department - 130"},{"$f":"'Data SBP Measures'!$AF2856","v":"Theft Class B Cases Filed"},{"$f":"'Data SBP Measures'!$T2856","v":"3404"},{"$f":"'Data SBP Measures'!$U2856&B1596","v":"130Theft Class B Cases Filed"},{"$f":"'Data SBP Measures'!$Y2856","v":"EACH"},null,null,null,null,null,"Criminal Department - 130","Theft Class B Cases Filed",null,null,null,null,null,null,null,"2322","140","Y","265","Adult Education Classes","EACH","OUTPUT","BLACKBOOK",null,null,null,"Adult Education Classes","8-Hour Assault/Misdemeanor # of classes",null,{"$f":"'Data SBP Measures'!$AF1596&'Data SBP Measures'!$AE1596& \" - \"& 'Data SBP Measures'!$U1596","v":"8-Hour Assault/Misdemeanor # of classesAdult Education Classes - 140"},{"$f":"_xlfn.XLOOKUP(VALUE(W1596),'Data SBP Programs'!O:O,'Data SBP Programs'!S:S)","v":"Adult Education Classes"}]
[{"$f":"'Data SBP Measures'!$AI2857&\" - \"&'Data SBP Measures'!$U2857","v":"Criminal Department - 130"},{"$f":"'Data SBP Measures'!$AF2857","v":"Theft Class B Cases Filed"},{"$f":"'Data SBP Measures'!$T2857","v":"3404"},{"$f":"'Data SBP Measures'!$U2857&B1597","v":"130Theft Class B Cases Filed"},{"$f":"'Data SBP Measures'!$Y2857","v":"EACH"},null,null,null,null,null,"Criminal Department - 130","Theft Class B Cases Filed",null,null,null,null,null,null,null,"2322","140","Y","265","Adult Education Classes","EACH","OUTPUT","BLACKBOOK",null,null,null,"Adult Education Classes","8-Hour Assault/Misdemeanor # of classes",null,{"$f":"'Data SBP Measures'!$AF1597&'Data SBP Measures'!$AE1597& \" - \"& 'Data SBP Measures'!$U1597","v":"8-Hour Assault/Misdemeanor # of classesAdult Education Classes - 140"},{"$f":"_xlfn.XLOOKUP(VALUE(W1597),'Data SBP Programs'!O:O,'Data SBP Programs'!S:S)","v":"Adult Education Classes"}]
[{"$f":"'Data SBP Measures'!$AI2861&\" - \"&'Data SBP Measures'!$U2861","v":"Criminal Department - 130"},{"$f":"'Data SBP Measures'!$AF2861","v":"Theft Class B Cases Filed"},{"$f":"'Data SBP Measures'!$T2861","v":"3404"},{"$f":"'Data SBP Measures'!$U2861&B1601","v":"130Theft Class B Cases Filed"},{"$f":"'Data SBP Measures'!$Y2861","v":"EACH"},null,null,null,null,null,"Criminal Department - 130","Theft Class B Cases Filed",null,null,null,null,null,null,null,"2324","140","Y","265","Adult Education Classes","EACH","OUTPUT","BLACKBOOK",null,null,null,"Adult Education Classes","8-Hour Shoplifting # of clients completing",null,{"$f":"'Data SBP Measures'!$AF1601&'Data SBP Measures'!$AE1601& \" - \"& 'Data SBP Measures'!$U1601","v":"8-Hour Shoplifting # of clients completingAdult Education Classes - 140"},{"$f":"_xlfn.XLOOKUP(VALUE(W1601),'Data SBP Programs'!O:O,'Data SBP Programs'!S:S)","v":"Adult Education Classes"}]
[{"$f":"'Data SBP Measures'!$AI2862&\" - \"&'Data SBP Measures'!$U2862","v":"Criminal Department - 130"},{"$f":"'Data SBP Measures'!$AF2862","v":"Theft Class B Cases Filed"},{"$f":"'Data SBP Measures'!$T2862","v":"3404"},{"$f":"'Data SBP Measures'!$U2862&B1602","v":"130Theft Class B Cases Filed"},{"$f":"'Data SBP Measures'!$Y2862","v":"EACH"},null,null,null,null,null,"Criminal Department - 130","Theft Class B Cases Filed",null,null,null,null,null,null,null,"2324","140","Y","265","Adult Education Classes","EACH","OUTPUT","BLACKBOOK",null,null,null,"Adult Education Classes","8-Hour Shoplifting # of clients completing",null,{"$f":"'Data SBP Measures'!$AF1602&'Data SBP Measures'!$AE1602& \" - \"& 'Data SBP Measures'!$U1602","v":"8-Hour Shoplifting # of clients completingAdult Education Classes - 140"},{"$f":"_xlfn.XLOOKUP(VALUE(W1602),'Data SBP Programs'!O:O,'Data SBP Programs'!S:S)","v":"Adult Education Classes"}]
[{"$f":"'Data SBP Measures'!$AI2831&\" - \"&'Data SBP Measures'!$U2831","v":"Criminal Department - 130"},{"$f":"'Data SBP Measures'!$AF2831","v":"Violation of Promise/Failure to Appear Cases Filed"},{"$f":"'Data SBP Measures'!$T2831","v":"3400"},{"$f":"'Data SBP Measures'!$U2831&B1606","v":"130Violation of Promise/Failure to Appear Cases Filed"},{"$f":"'Data SBP Measures'!$Y2831","v":"EACH"},null,null,null,null,null,"Criminal Department - 130","Violation of Promise/Failure to Appear Cases Filed",null,null,null,null,null,null,null,"2325","140","Y","265","Adult Education Classes","EACH","OUTPUT","BLACKBOOK",null,null,null,"Adult Education Classes","8-Hour Shoplifting # of classes",null,{"$f":"'Data SBP Measures'!$AF1606&'Data SBP Measures'!$AE1606& \" - \"& 'Data SBP Measures'!$U1606","v":"8-Hour Shoplifting # of classesAdult Education Classes - 140"},{"$f":"_xlfn.XLOOKUP(VALUE(W1606),'Data SBP Programs'!O:O,'Data SBP Programs'!S:S)","v":"Adult Education Classes"}]
[{"$f":"'Data SBP Measures'!$AI2832&\" - \"&'Data SBP Measures'!$U2832","v":"Criminal Department - 130"},{"$f":"'Data SBP Measures'!$AF2832","v":"Violation of Promise/Failure to Appear Cases Filed"},{"$f":"'Data SBP Measures'!$T2832","v":"3400"},{"$f":"'Data SBP Measures'!$U2832&B1607","v":"130Violation of Promise/Failure to Appear Cases Filed"},{"$f":"'Data SBP Measures'!$Y2832","v":"EACH"},null,null,null,null,null,"Criminal Department - 130","Violation of Promise/Failure to Appear Cases Filed",null,null,null,null,null,null,null,"2326","140","Y","265","Adult Education Classes","EACH","OUTPUT","BLACKBOOK",null,null,null,"Adult Education Classes","8-Hour Spanish # of clients referred to class",null,{"$f":"'Data SBP Measures'!$AF1607&'Data SBP Measures'!$AE1607& \" - \"& 'Data SBP Measures'!$U1607","v":"8-Hour Spanish # of clients referred to classAdult Education Classes - 140"},{"$f":"_xlfn.XLOOKUP(VALUE(W1607),'Data SBP Programs'!O:O,'Data SBP Programs'!S:S)","v":"Adult Education Classes"}]
[{"$f":"'Data SBP Measures'!$AI1409&\" - \"&'Data SBP Measures'!$U1409","v":"Criminal Department - 130"},{"$f":"'Data SBP Measures'!$AF1409","v":"Warrant Letters Issued"},{"$f":"'Data SBP Measures'!$T1409","v":"2215"},{"$f":"'Data SBP Measures'!$U1409&B1610","v":"130Warrant Letters Issued"},{"$f":"'Data SBP Measures'!$Y1409","v":"EACH"},null,null,null,null,null,"Criminal Department - 130","Warrant Letters Issued",null,null,null,null,null,null,null,"2327","140","Y","265","Adult Education Classes","EACH","OUTPUT","BLACKBOOK",null,null,null,"Adult Education Classes","8-Hour Spanish # of clients completing",null,{"$f":"'Data SBP Measures'!$AF1610&'Data SBP Measures'!$AE1610& \" - \"& 'Data SBP Measures'!$U1610","v":"8-Hour Spanish # of clients completingAdult Education Classes - 140"},{"$f":"_xlfn.XLOOKUP(VALUE(W1610),'Data SBP Programs'!O:O,'Data SBP Programs'!S:S)","v":"Adult Education Classes"}]
[{"$f":"'Data SBP Measures'!$AI1410&\" - \"&'Data SBP Measures'!$U1410","v":"Criminal Department - 130"},{"$f":"'Data SBP Measures'!$AF1410","v":"Warrant Letters Issued"},{"$f":"'Data SBP Measures'!$T1410","v":"2215"},{"$f":"'Data SBP Measures'!$U1410&B1611","v":"130Warrant Letters Issued"},{"$f":"'Data SBP Measures'!$Y1410","v":"EACH"},null,null,null,null,null,"Criminal Department - 130","Warrant Letters Issued",null,null,null,null,null,null,null,"2327","140","Y","265","Adult Education Classes","EACH","OUTPUT","BLACKBOOK",null,null,null,"Adult Education Classes","8-Hour Spanish # of clients completing",null,{"$f":"'Data SBP Measures'!$AF1611&'Data SBP Measures'!$AE1611& \" - \"& 'Data SBP Measures'!$U1611","v":"8-Hour Spanish # of clients completingAdult Education Classes - 140"},{"$f":"_xlfn.XLOOKUP(VALUE(W1611),'Data SBP Programs'!O:O,'Data SBP Programs'!S:S)","v":"Adult Education Classes"}]
[{"$f":"'Data SBP Measures'!$AI1414&\" - \"&'Data SBP Measures'!$U1414","v":"Criminal Department - 130"},{"$f":"'Data SBP Measures'!$AF1414","v":"Warrant Letters Issued"},{"$f":"'Data SBP Measures'!$T1414","v":"2215"},{"$f":"'Data SBP Measures'!$U1414&B1615","v":"130Warrant Letters Issued"},{"$f":"'Data SBP Measures'!$Y1414","v":"EACH"},null,null,null,null,null,"Criminal Department - 130","Warrant Letters Issued",null,null,null,null,null,null,null,"2328","140","Y","265","Adult Education Classes","EACH","OUTPUT","BLACKBOOK",null,null,null,"Adult Education Classes","8-Hour Spanish # of classes",null,{"$f":"'Data SBP Measures'!$AF1615&'Data SBP Measures'!$AE1615& \" - \"& 'Data SBP Measures'!$U1615","v":"8-Hour Spanish # of classesAdult Education Classes - 140"},{"$f":"_xlfn.XLOOKUP(VALUE(W1615),'Data SBP Programs'!O:O,'Data SBP Programs'!S:S)","v":"Adult Education Classes"}]
[{"$f":"'Data SBP Measures'!$AI1415&\" - \"&'Data SBP Measures'!$U1415","v":"Criminal Department - 130"},{"$f":"'Data SBP Measures'!$AF1415","v":"Warrant Letters Issued"},{"$f":"'Data SBP Measures'!$T1415","v":"2215"},{"$f":"'Data SBP Measures'!$U1415&B1616","v":"130Warrant Letters Issued"},{"$f":"'Data SBP Measures'!$Y1415","v":"EACH"},null,null,null,null,null,"Criminal Department - 130","Warrant Letters Issued",null,null,null,null,null,null,null,"2329","140","Y","265","Adult Education Classes","PERCENT","OUTCOME","ADOPTEDBUD",null,null,null,"Adult Education Classes","% of clients indicating they benefited from an increase of knowledge",null,{"$f":"'Data SBP Measures'!$AF1616&'Data SBP Measures'!$AE1616& \" - \"& 'Data SBP Measures'!$U1616","v":"% of clients indicating they benefited from an increase of knowledgeAdult Education Classes - 140"},{"$f":"_xlfn.XLOOKUP(VALUE(W1616),'Data SBP Programs'!O:O,'Data SBP Programs'!S:S)","v":"Adult Education Classes"}]
[{"$f":"'Data SBP Measures'!$AI732&\" - \"&'Data SBP Measures'!$U732","v":"Criminal Division - Family Violence & Protective Order Div - 119"},{"$f":"'Data SBP Measures'!$AF732","v":"# hearings / case settings"},{"$f":"'Data SBP Measures'!$T732","v":"1794"},{"$f":"'Data SBP Measures'!$U732&B1620","v":"119# hearings / case settings"},{"$f":"'Data SBP Measures'!$Y732","v":"EACH"},null,null,null,null,null,"Criminal Division - Family Violence & Protective Order Div - 119","# hearings / case settings",null,null,null,null,null,null,null,"2330","140","Y","265","Adult Education Classes","PERCENT","OUTCOME","ADOPTEDBUD",null,null,null,"Adult Education Classes","% of clients indicating the class will help avoid future law violations.",null,{"$f":"'Data SBP Measures'!$AF1620&'Data SBP Measures'!$AE1620& \" - \"& 'Data SBP Measures'!$U1620","v":"% of clients indicating the class will help avoid future law violations.Adult Education Classes - 140"},{"$f":"_xlfn.XLOOKUP(VALUE(W1620),'Data SBP Programs'!O:O,'Data SBP Programs'!S:S)","v":"Adult Education Classes"}]
[{"$f":"'Data SBP Measures'!$AI733&\" - \"&'Data SBP Measures'!$U733","v":"Criminal Division - Family Violence & Protective Order Div - 119"},{"$f":"'Data SBP Measures'!$AF733","v":"# PO applications screened"},{"$f":"'Data SBP Measures'!$T733","v":"1795"},{"$f":"'Data SBP Measures'!$U733&B1621","v":"119# PO applications screened"},{"$f":"'Data SBP Measures'!$Y733","v":"EACH"},null,null,null,null,null,"Criminal Division - Family Violence & Protective Order Div - 119","# PO applications screened",null,null,null,null,null,null,null,"2330","140","Y","265","Adult Education Classes","PERCENT","OUTCOME","ADOPTEDBUD",null,null,null,"Adult Education Classes","% of clients indicating the class will help avoid future law violations.",null,{"$f":"'Data SBP Measures'!$AF1621&'Data SBP Measures'!$AE1621& \" - \"& 'Data SBP Measures'!$U1621","v":"% of clients indicating the class will help avoid future law violations.Adult Education Classes - 140"},{"$f":"_xlfn.XLOOKUP(VALUE(W1621),'Data SBP Programs'!O:O,'Data SBP Programs'!S:S)","v":"Adult Education Classes"}]
[{"$f":"'Data SBP Measures'!$AI723&\" - \"&'Data SBP Measures'!$U723","v":"Criminal Division - Records / Intake & Criminal Trial Courts - 119"},{"$f":"'Data SBP Measures'!$AF723","v":"# of applicants placed in diversion programs"},{"$f":"'Data SBP Measures'!$T723","v":"1785"},{"$f":"'Data SBP Measures'!$U723&B1625","v":"119# of applicants placed in diversion programs"},{"$f":"'Data SBP Measures'!$Y723","v":"EACH"},null,null,null,null,null,"Criminal Division - Records / Intake & Criminal Trial Courts - 119","# of applicants placed in diversion programs",null,null,null,null,null,null,null,"2331","140","Y","265","Adult Education Classes","PERCENT","OUTCOME","ADOPTEDBUD",null,null,null,"Adult Education Classes","% of client’s stated gained insight to new ideas and available resources.",null,{"$f":"'Data SBP Measures'!$AF1625&'Data SBP Measures'!$AE1625& \" - \"& 'Data SBP Measures'!$U1625","v":"% of client’s stated gained insight to new ideas and available resources.Adult Education Classes - 140"},{"$f":"_xlfn.XLOOKUP(VALUE(W1625),'Data SBP Programs'!O:O,'Data SBP Programs'!S:S)","v":"Adult Education Classes"}]
[{"$f":"'Data SBP Measures'!$AI721&\" - \"&'Data SBP Measures'!$U721","v":"Criminal Division - Records / Intake & Criminal Trial Courts - 119"},{"$f":"'Data SBP Measures'!$AF721","v":"# of cases Disposed"},{"$f":"'Data SBP Measures'!$T721","v":"1782"},{"$f":"'Data SBP Measures'!$U721&B1626","v":"119# of cases Disposed"},{"$f":"'Data SBP Measures'!$Y721","v":"EACH"},null,null,null,null,null,"Criminal Division - Records / Intake & Criminal Trial Courts - 119","# of cases Disposed",null,null,null,null,null,null,null,"2332","140","Y","265","Adult Education Classes","PERCENT","OUTCOME","BLACKBOOK",null,null,null,"Adult Education Classes","% of client’s stated scheduling for the class was convenient.",null,{"$f":"'Data SBP Measures'!$AF1626&'Data SBP Measures'!$AE1626& \" - \"& 'Data SBP Measures'!$U1626","v":"% of client’s stated scheduling for the class was convenient.Adult Education Classes - 140"},{"$f":"_xlfn.XLOOKUP(VALUE(W1626),'Data SBP Programs'!O:O,'Data SBP Programs'!S:S)","v":"Adult Education Classes"}]
[{"$f":"'Data SBP Measures'!$AI719&\" - \"&'Data SBP Measures'!$U719","v":"Criminal Division - Records / Intake & Criminal Trial Courts - 119"},{"$f":"'Data SBP Measures'!$AF719","v":"# of cases set on all daily dockets"},{"$f":"'Data SBP Measures'!$T719","v":"1779"},{"$f":"'Data SBP Measures'!$U719&B1629","v":"119# of cases set on all daily dockets"},{"$f":"'Data SBP Measures'!$Y719","v":"EACH"},null,null,null,null,null,"Criminal Division - Records / Intake & Criminal Trial Courts - 119","# of cases set on all daily dockets",null,null,null,null,null,null,null,"2333","140","Y","266","Juvenile Education Classes","EACH","OUTPUT","ADOPTEDBUD",null,null,null,"Juvenile Education Classes","Total # of clients referred to the Juvenile Education classes",null,{"$f":"'Data SBP Measures'!$AF1629&'Data SBP Measures'!$AE1629& \" - \"& 'Data SBP Measures'!$U1629","v":"Total # of clients referred to the Juvenile Education classesJuvenile Education Classes - 140"},{"$f":"_xlfn.XLOOKUP(VALUE(W1629),'Data SBP Programs'!O:O,'Data SBP Programs'!S:S)","v":"Juvenile Education Classes"}]
[{"$f":"'Data SBP Measures'!$AI718&\" - \"&'Data SBP Measures'!$U718","v":"Criminal Division - Records / Intake & Criminal Trial Courts - 119"},{"$f":"'Data SBP Measures'!$AF718","v":"# of cases set on contested dockets"},{"$f":"'Data SBP Measures'!$T718","v":"1778"},{"$f":"'Data SBP Measures'!$U718&B1630","v":"119# of cases set on contested dockets"},{"$f":"'Data SBP Measures'!$Y718","v":"EACH"},null,null,null,null,null,"Criminal Division - Records / Intake & Criminal Trial Courts - 119","# of cases set on contested dockets",null,null,null,null,null,null,null,"2334","140","Y","266","Juvenile Education Classes","EACH","OUTPUT","ADOPTEDBUD",null,null,null,"Juvenile Education Classes","Total # of clients completing the Juvenile Education classes",null,{"$f":"'Data SBP Measures'!$AF1630&'Data SBP Measures'!$AE1630& \" - \"& 'Data SBP Measures'!$U1630","v":"Total # of clients completing the Juvenile Education classesJuvenile Education Classes - 140"},{"$f":"_xlfn.XLOOKUP(VALUE(W1630),'Data SBP Programs'!O:O,'Data SBP Programs'!S:S)","v":"Juvenile Education Classes"}]
[{"$f":"'Data SBP Measures'!$AI722&\" - \"&'Data SBP Measures'!$U722","v":"Criminal Division - Records / Intake & Criminal Trial Courts - 119"},{"$f":"'Data SBP Measures'!$AF722","v":"Average # of defendants participating in treatment alternative courts (measured on the first of each month)"},{"$f":"'Data SBP Measures'!$T722","v":"1784"},{"$f":"'Data SBP Measures'!$U722&B1634","v":"119Average # of defendants participating in treatment alternative courts (measured on the first of each month)"},{"$f":"'Data SBP Measures'!$Y722","v":"EACH"},null,null,null,null,null,"Criminal Division - Records / Intake & Criminal Trial Courts - 119","Average # of defendants participating in treatment alternative courts (measured on the first of each month)",null,null,null,null,null,null,null,"2338","140","Y","266","Juvenile Education Classes","EACH","OUTPUT","BLACKBOOK",null,null,null,"Juvenile Education Classes","8-Hour Juvenile Anger Mgmt. # of classes",null,{"$f":"'Data SBP Measures'!$AF1634&'Data SBP Measures'!$AE1634& \" - \"& 'Data SBP Measures'!$U1634","v":"8-Hour Juvenile Anger Mgmt. # of classesJuvenile Education Classes - 140"},{"$f":"_xlfn.XLOOKUP(VALUE(W1634),'Data SBP Programs'!O:O,'Data SBP Programs'!S:S)","v":"Juvenile Education Classes"}]
[{"$f":"'Data SBP Measures'!$AI728&\" - \"&'Data SBP Measures'!$U728","v":"Criminal Division - Truancy - 119"},{"$f":"'Data SBP Measures'!$AF728","v":"# of initial hearings"},{"$f":"'Data SBP Measures'!$T728","v":"1790"},{"$f":"'Data SBP Measures'!$U728&B1635","v":"119# of initial hearings"},{"$f":"'Data SBP Measures'!$Y728","v":"EACH"},null,null,null,null,null,"Criminal Division - Truancy - 119","# of initial hearings",null,null,null,null,null,null,null,"2339","140","Y","266","Juvenile Education Classes","EACH","OUTPUT","BLACKBOOK",null,null,null,"Juvenile Education Classes","8-Hour Youth Misdemeanor I # of clients referred to class",null,{"$f":"'Data SBP Measures'!$AF1635&'Data SBP Measures'!$AE1635& \" - \"& 'Data SBP Measures'!$U1635","v":"8-Hour Youth Misdemeanor I # of clients referred to classJuvenile Education Classes - 140"},{"$f":"_xlfn.XLOOKUP(VALUE(W1635),'Data SBP Programs'!O:O,'Data SBP Programs'!S:S)","v":"Juvenile Education Classes"}]
[{"$f":"'Data SBP Measures'!$AI1454&\" - \"&'Data SBP Measures'!$U1454","v":"Criminal Unit - 131"},{"$f":"'Data SBP Measures'!$AF1454","v":"Warrants Executed"},{"$f":"'Data SBP Measures'!$T1454","v":"2242"},{"$f":"'Data SBP Measures'!$U1454&B1639","v":"131Warrants Executed"},{"$f":"'Data SBP Measures'!$Y1454","v":"EACH"},null,null,null,null,null,"Criminal Unit - 131","Warrants Executed",null,null,null,null,null,null,null,"2343","140","Y","266","Juvenile Education Classes","EACH","OUTPUT","BLACKBOOK",null,null,null,"Juvenile Education Classes","6-Hour Minor In Possession # of clients completing",null,{"$f":"'Data SBP Measures'!$AF1639&'Data SBP Measures'!$AE1639& \" - \"& 'Data SBP Measures'!$U1639","v":"6-Hour Minor In Possession # of clients completingJuvenile Education Classes - 140"},{"$f":"_xlfn.XLOOKUP(VALUE(W1639),'Data SBP Programs'!O:O,'Data SBP Programs'!S:S)","v":"Juvenile Education Classes"}]
[{"$f":"'Data SBP Measures'!$AI1453&\" - \"&'Data SBP Measures'!$U1453","v":"Criminal Unit - 131"},{"$f":"'Data SBP Measures'!$AF1453","v":"Warrants Received"},{"$f":"'Data SBP Measures'!$T1453","v":"2241"},{"$f":"'Data SBP Measures'!$U1453&B1640","v":"131Warrants Received"},{"$f":"'Data SBP Measures'!$Y1453","v":"EACH"},null,null,null,null,null,"Criminal Unit - 131","Warrants Received",null,null,null,null,null,null,null,"2344","140","Y","266","Juvenile Education Classes","EACH","OUTPUT","BLACKBOOK",null,null,null,"Juvenile Education Classes","6-Hour Minor In Possession # of classes",null,{"$f":"'Data SBP Measures'!$AF1640&'Data SBP Measures'!$AE1640& \" - \"& 'Data SBP Measures'!$U1640","v":"6-Hour Minor In Possession # of classesJuvenile Education Classes - 140"},{"$f":"_xlfn.XLOOKUP(VALUE(W1640),'Data SBP Programs'!O:O,'Data SBP Programs'!S:S)","v":"Juvenile Education Classes"}]
[{"$f":"'Data SBP Measures'!$AI2342&\" - \"&'Data SBP Measures'!$U2342","v":"Criminal Unit - 134"},{"$f":"'Data SBP Measures'!$AF2342","v":"% of issued warrants successfully served"},{"$f":"'Data SBP Measures'!$T2342","v":"2903"},{"$f":"'Data SBP Measures'!$U2342&B1644","v":"134% of issued warrants successfully served"},{"$f":"'Data SBP Measures'!$Y2342","v":"PERCENT"},null,null,null,null,null,"Criminal Unit - 134","% of issued warrants successfully served",null,null,null,null,null,null,null,"2348","140","Y","267","Crime Victims Fund","DOLLARS","EFFICIENCY","BLACKBOOK",null,null,null,"Crime Victims Fund","Cost of Volunteer Service Hours ($24.66 -2014)",null,{"$f":"'Data SBP Measures'!$AF1644&'Data SBP Measures'!$AE1644& \" - \"& 'Data SBP Measures'!$U1644","v":"Cost of Volunteer Service Hours ($24.66 -2014)Crime Victims Fund - 140"},{"$f":"_xlfn.XLOOKUP(VALUE(W1644),'Data SBP Programs'!O:O,'Data SBP Programs'!S:S)","v":"Crime Victims Fund"}]
[{"$f":"'Data SBP Measures'!$AI1480&\" - \"&'Data SBP Measures'!$U1480","v":"Criminal Unit - 134"},{"$f":"'Data SBP Measures'!$AF1480","v":"Warrant executed"},{"$f":"'Data SBP Measures'!$T1480","v":"2280"},{"$f":"'Data SBP Measures'!$U1480&B1645","v":"134Warrant executed"},{"$f":"'Data SBP Measures'!$Y1480","v":"EACH"},null,null,null,null,null,"Criminal Unit - 134","Warrant executed",null,null,null,null,null,null,null,"2349","140","Y","268","Intake & Assessments","EACH","OUTPUT","BLACKBOOK",null,null,null,"Intake & Assessments","Total # of AOD Asmts & Family Violence Asmts",null,{"$f":"'Data SBP Measures'!$AF1645&'Data SBP Measures'!$AE1645& \" - \"& 'Data SBP Measures'!$U1645","v":"Total # of AOD Asmts & Family Violence AsmtsIntake & Assessments - 140"},{"$f":"_xlfn.XLOOKUP(VALUE(W1645),'Data SBP Programs'!O:O,'Data SBP Programs'!S:S)","v":"Intake & Assessments"}]
[{"$f":"'Data SBP Measures'!$AI299&\" - \"&'Data SBP Measures'!$U299","v":"Crisis Intervention Team - 137"},{"$f":"'Data SBP Measures'!$AF299","v":"Calls generating a case number"},{"$f":"'Data SBP Measures'!$T299","v":"1356"},{"$f":"'Data SBP Measures'!$U299&B1648","v":"137Calls generating a case number"},{"$f":"'Data SBP Measures'!$Y299","v":"EACH"},null,null,null,null,null,"Crisis Intervention Team - 137","Calls generating a case number",null,null,null,null,null,null,null,"2350","140","Y","268","Intake & Assessments","EACH","OUTPUT","BLACKBOOK",null,null,null,"Intake & Assessments","# of Electronic ASI’s completed (Phase 1)",null,{"$f":"'Data SBP Measures'!$AF1648&'Data SBP Measures'!$AE1648& \" - \"& 'Data SBP Measures'!$U1648","v":"# of Electronic ASI’s completed (Phase 1)Intake & Assessments - 140"},{"$f":"_xlfn.XLOOKUP(VALUE(W1648),'Data SBP Programs'!O:O,'Data SBP Programs'!S:S)","v":"Intake & Assessments"}]
[{"$f":"'Data SBP Measures'!$AI2980&\" - \"&'Data SBP Measures'!$U2980","v":"Crisis Intervention Team - 137"},{"$f":"'Data SBP Measures'!$AF2980","v":"CIT Assist Other Calls "},{"$f":"'Data SBP Measures'!$T2980","v":"3507"},{"$f":"'Data SBP Measures'!$U2980&B1649","v":"137CIT Assist Other Calls "},{"$f":"'Data SBP Measures'!$Y2980","v":"EACH"},null,null,null,null,null,"Crisis Intervention Team - 137","CIT Assist Other Calls ",null,null,null,null,null,null,null,"2350","140","Y","268","Intake & Assessments","EACH","OUTPUT","BLACKBOOK",null,null,null,"Intake & Assessments","# of Electronic ASI’s completed (Phase 1)",null,{"$f":"'Data SBP Measures'!$AF1649&'Data SBP Measures'!$AE1649& \" - \"& 'Data SBP Measures'!$U1649","v":"# of Electronic ASI’s completed (Phase 1)Intake & Assessments - 140"},{"$f":"_xlfn.XLOOKUP(VALUE(W1649),'Data SBP Programs'!O:O,'Data SBP Programs'!S:S)","v":"Intake & Assessments"}]
[{"$f":"'Data SBP Measures'!$AI2973&\" - \"&'Data SBP Measures'!$U2973","v":"Crisis Intervention Team - 137"},{"$f":"'Data SBP Measures'!$AF2973","v":"MH Calls - Patrol & Cit "},{"$f":"'Data SBP Measures'!$T2973","v":"3500"},{"$f":"'Data SBP Measures'!$U2973&B1653","v":"137MH Calls - Patrol & Cit "},{"$f":"'Data SBP Measures'!$Y2973","v":"EACH"},null,null,null,null,null,"Crisis Intervention Team - 137","MH Calls - Patrol & Cit ",null,null,null,null,null,null,null,"2351","140","Y","268","Intake & Assessments","EACH","OUTPUT","ADOPTEDBUD",null,null,null,"Intake & Assessments","# of AOD Asmts completed (Phase 2)",null,{"$f":"'Data SBP Measures'!$AF1653&'Data SBP Measures'!$AE1653& \" - \"& 'Data SBP Measures'!$U1653","v":"# of AOD Asmts completed (Phase 2)Intake & Assessments - 140"},{"$f":"_xlfn.XLOOKUP(VALUE(W1653),'Data SBP Programs'!O:O,'Data SBP Programs'!S:S)","v":"Intake & Assessments"}]
[{"$f":"'Data SBP Measures'!$AI300&\" - \"&'Data SBP Measures'!$U300","v":"Crisis Intervention Team - 137"},{"$f":"'Data SBP Measures'!$AF300","v":"MHU calls inside the city limits"},{"$f":"'Data SBP Measures'!$T300","v":"1357"},{"$f":"'Data SBP Measures'!$U300&B1655","v":"137MHU calls inside the city limits"},{"$f":"'Data SBP Measures'!$Y300","v":"EACH"},null,null,null,null,null,"Crisis Intervention Team - 137","MHU calls inside the city limits",null,null,null,null,null,null,null,"2352","140","Y","268","Intake & Assessments","EACH","OUTPUT","ADOPTEDBUD",null,null,null,"Intake & Assessments","# of Family Violence Asmts completed",null,{"$f":"'Data SBP Measures'!$AF1655&'Data SBP Measures'!$AE1655& \" - \"& 'Data SBP Measures'!$U1655","v":"# of Family Violence Asmts completedIntake & Assessments - 140"},{"$f":"_xlfn.XLOOKUP(VALUE(W1655),'Data SBP Programs'!O:O,'Data SBP Programs'!S:S)","v":"Intake & Assessments"}]
[{"$f":"'Data SBP Measures'!$AI2978&\" - \"&'Data SBP Measures'!$U2978","v":"Crisis Intervention Team - 137"},{"$f":"'Data SBP Measures'!$AF2978","v":"No. of jail calls (TCJ & TCCC) "},{"$f":"'Data SBP Measures'!$T2978","v":"3505"},{"$f":"'Data SBP Measures'!$U2978&B1658","v":"137No. of jail calls (TCJ & TCCC) "},{"$f":"'Data SBP Measures'!$Y2978","v":"EACH"},null,null,null,null,null,"Crisis Intervention Team - 137","No. of jail calls (TCJ & TCCC) ",null,null,null,null,null,null,null,"2353","140","Y","268","Intake & Assessments","EACH","OUTPUT","BLACKBOOK",null,null,null,"Intake & Assessments","Alcohol and other Drug Total # referred",null,{"$f":"'Data SBP Measures'!$AF1658&'Data SBP Measures'!$AE1658& \" - \"& 'Data SBP Measures'!$U1658","v":"Alcohol and other Drug Total # referredIntake & Assessments - 140"},{"$f":"_xlfn.XLOOKUP(VALUE(W1658),'Data SBP Programs'!O:O,'Data SBP Programs'!S:S)","v":"Intake & Assessments"}]
[{"$f":"'Data SBP Measures'!$AI2486&\" - \"&'Data SBP Measures'!$U2486","v":"Crisis Intervention Team - 137"},{"$f":"'Data SBP Measures'!$AF2486","v":"No. of mental health transfers / opc"},{"$f":"'Data SBP Measures'!$T2486","v":"3139"},{"$f":"'Data SBP Measures'!$U2486&B1659","v":"137No. of mental health transfers / opc"},{"$f":"'Data SBP Measures'!$Y2486","v":"EACH"},null,null,null,null,null,"Crisis Intervention Team - 137","No. of mental health transfers / opc",null,null,null,null,null,null,null,"2353","140","Y","268","Intake & Assessments","EACH","OUTPUT","BLACKBOOK",null,null,null,"Intake & Assessments","Alcohol and other Drug Total # referred",null,{"$f":"'Data SBP Measures'!$AF1659&'Data SBP Measures'!$AE1659& \" - \"& 'Data SBP Measures'!$U1659","v":"Alcohol and other Drug Total # referredIntake & Assessments - 140"},{"$f":"_xlfn.XLOOKUP(VALUE(W1659),'Data SBP Programs'!O:O,'Data SBP Programs'!S:S)","v":"Intake & Assessments"}]
[{"$f":"'Data SBP Measures'!$AI303&\" - \"&'Data SBP Measures'!$U303","v":"Crisis Intervention Team - 137"},{"$f":"'Data SBP Measures'!$AF303","v":"No. transported to mental health facilities"},{"$f":"'Data SBP Measures'!$T303","v":"1360"},{"$f":"'Data SBP Measures'!$U303&B1663","v":"137No. transported to mental health facilities"},{"$f":"'Data SBP Measures'!$Y303","v":"EACH"},null,null,null,null,null,"Crisis Intervention Team - 137","No. transported to mental health facilities",null,null,null,null,null,null,null,"2355","140","Y","268","Intake & Assessments","EACH","OUTPUT","BLACKBOOK",null,null,null,"Intake & Assessments","Alcohol and other Drug # of Probation",null,{"$f":"'Data SBP Measures'!$AF1663&'Data SBP Measures'!$AE1663& \" - \"& 'Data SBP Measures'!$U1663","v":"Alcohol and other Drug # of ProbationIntake & Assessments - 140"},{"$f":"_xlfn.XLOOKUP(VALUE(W1663),'Data SBP Programs'!O:O,'Data SBP Programs'!S:S)","v":"Intake & Assessments"}]
[{"$f":"'Data SBP Measures'!$AI304&\" - \"&'Data SBP Measures'!$U304","v":"Crisis Intervention Team - 137"},{"$f":"'Data SBP Measures'!$AF304","v":"Staff hrs at ASH as baliff"},{"$f":"'Data SBP Measures'!$T304","v":"1361"},{"$f":"'Data SBP Measures'!$U304&B1664","v":"137Staff hrs at ASH as baliff"},{"$f":"'Data SBP Measures'!$Y304","v":"HOURS"},null,null,null,null,null,"Crisis Intervention Team - 137","Staff hrs at ASH as baliff",null,null,null,null,null,null,null,"2355","140","Y","268","Intake & Assessments","EACH","OUTPUT","BLACKBOOK",null,null,null,"Intake & Assessments","Alcohol and other Drug # of Probation",null,{"$f":"'Data SBP Measures'!$AF1664&'Data SBP Measures'!$AE1664& \" - \"& 'Data SBP Measures'!$U1664","v":"Alcohol and other Drug # of ProbationIntake & Assessments - 140"},{"$f":"_xlfn.XLOOKUP(VALUE(W1664),'Data SBP Programs'!O:O,'Data SBP Programs'!S:S)","v":"Intake & Assessments"}]
[{"$f":"'Data SBP Measures'!$AI3518&\" - \"&'Data SBP Measures'!$U3518","v":"Custodial Operations - 114"},{"$f":"'Data SBP Measures'!$AF3518","v":"Custodian work orders completed"},{"$f":"'Data SBP Measures'!$T3518","v":"843"},{"$f":"'Data SBP Measures'!$U3518&B1667","v":"114Custodian work orders completed"},{"$f":"'Data SBP Measures'!$Y3518","v":"EACH"},null,null,null,null,null,"Custodial Operations - 114","Custodian work orders completed",null,null,null,null,null,null,null,"2356","140","Y","268","Intake & Assessments","EACH","OUTPUT","BLACKBOOK",null,null,null,"Intake & Assessments","Alcohol and other Drug # of Other",null,{"$f":"'Data SBP Measures'!$AF1667&'Data SBP Measures'!$AE1667& \" - \"& 'Data SBP Measures'!$U1667","v":"Alcohol and other Drug # of OtherIntake & Assessments - 140"},{"$f":"_xlfn.XLOOKUP(VALUE(W1667),'Data SBP Programs'!O:O,'Data SBP Programs'!S:S)","v":"Intake & Assessments"}]
[{"$f":"'Data SBP Measures'!$AI2428&\" - \"&'Data SBP Measures'!$U2428","v":"Custodial Operations - 114"},{"$f":"'Data SBP Measures'!$AF2428","v":"Custodian work orders received"},{"$f":"'Data SBP Measures'!$T2428","v":"3013"},{"$f":"'Data SBP Measures'!$U2428&B1668","v":"114Custodian work orders received"},{"$f":"'Data SBP Measures'!$Y2428","v":"EACH"},null,null,null,null,null,"Custodial Operations - 114","Custodian work orders received",null,null,null,null,null,null,null,"2356","140","Y","268","Intake & Assessments","EACH","OUTPUT","BLACKBOOK",null,null,null,"Intake & Assessments","Alcohol and other Drug # of Other",null,{"$f":"'Data SBP Measures'!$AF1668&'Data SBP Measures'!$AE1668& \" - \"& 'Data SBP Measures'!$U1668","v":"Alcohol and other Drug # of OtherIntake & Assessments - 140"},{"$f":"_xlfn.XLOOKUP(VALUE(W1668),'Data SBP Programs'!O:O,'Data SBP Programs'!S:S)","v":"Intake & Assessments"}]
[{"$f":"'Data SBP Measures'!$AI2427&\" - \"&'Data SBP Measures'!$U2427","v":"Custodial Operations - 114"},{"$f":"'Data SBP Measures'!$AF2427","v":"Total facility SF cleaned/Meeting cleaning timelines"},{"$f":"'Data SBP Measures'!$T2427","v":"3012"},{"$f":"'Data SBP Measures'!$U2427&B1672","v":"114Total facility SF cleaned/Meeting cleaning timelines"},{"$f":"'Data SBP Measures'!$Y2427","v":"PERCENT"},null,null,null,null,null,"Custodial Operations - 114","Total facility SF cleaned/Meeting cleaning timelines",null,null,null,null,null,null,null,"2358","140","Y","268","Intake & Assessments","PERCENT","OUTPUT","BLACKBOOK",null,null,null,"Intake & Assessments","% of AOD with MH needs",null,{"$f":"'Data SBP Measures'!$AF1672&'Data SBP Measures'!$AE1672& \" - \"& 'Data SBP Measures'!$U1672","v":"% of AOD with MH needsIntake & Assessments - 140"},{"$f":"_xlfn.XLOOKUP(VALUE(W1672),'Data SBP Programs'!O:O,'Data SBP Programs'!S:S)","v":"Intake & Assessments"}]
[{"$f":"'Data SBP Measures'!$AI2431&\" - \"&'Data SBP Measures'!$U2431","v":"Custodial Operations - 114"},{"$f":"'Data SBP Measures'!$AF2431","v":"Total facility SF Outsourced/Meeting cleaning timelines"},{"$f":"'Data SBP Measures'!$T2431","v":"3016"},{"$f":"'Data SBP Measures'!$U2431&B1674","v":"114Total facility SF Outsourced/Meeting cleaning timelines"},{"$f":"'Data SBP Measures'!$Y2431","v":"PERCENT"},null,null,null,null,null,"Custodial Operations - 114","Total facility SF Outsourced/Meeting cleaning timelines",null,null,null,null,null,null,null,"2358","140","Y","268","Intake & Assessments","PERCENT","OUTPUT","BLACKBOOK",null,null,null,"Intake & Assessments","% of AOD with MH needs",null,{"$f":"'Data SBP Measures'!$AF1674&'Data SBP Measures'!$AE1674& \" - \"& 'Data SBP Measures'!$U1674","v":"% of AOD with MH needsIntake & Assessments - 140"},{"$f":"_xlfn.XLOOKUP(VALUE(W1674),'Data SBP Programs'!O:O,'Data SBP Programs'!S:S)","v":"Intake & Assessments"}]
[{"$f":"'Data SBP Measures'!$AI3574&\" - \"&'Data SBP Measures'!$U3574","v":"Customer Service - 149"},{"$f":"'Data SBP Measures'!$AF3574","v":"# of indigent Burials"},{"$f":"'Data SBP Measures'!$T3574","v":"933"},{"$f":"'Data SBP Measures'!$U3574&B1677","v":"149# of indigent Burials"},{"$f":"'Data SBP Measures'!$Y3574","v":"EACH"},null,null,null,null,null,"Customer Service - 149","# of indigent Burials",null,null,null,null,null,null,null,"2359","140","Y","268","Intake & Assessments","PERCENT","OUTCOME","BLACKBOOK",null,null,null,"Intake & Assessments","% of clients completing AOD Asmt within thirty days after referral date.",null,{"$f":"'Data SBP Measures'!$AF1677&'Data SBP Measures'!$AE1677& \" - \"& 'Data SBP Measures'!$U1677","v":"% of clients completing AOD Asmt within thirty days after referral date.Intake & Assessments - 140"},{"$f":"_xlfn.XLOOKUP(VALUE(W1677),'Data SBP Programs'!O:O,'Data SBP Programs'!S:S)","v":"Intake & Assessments"}]
[{"$f":"'Data SBP Measures'!$AI3548&\" - \"&'Data SBP Measures'!$U3548","v":"Detention Services - 145"},{"$f":"'Data SBP Measures'!$AF3548","v":"Average Daily Population"},{"$f":"'Data SBP Measures'!$T3548","v":"893"},{"$f":"'Data SBP Measures'!$U3548&B1678","v":"145Average Daily Population"},{"$f":"'Data SBP Measures'!$Y3548","v":"EACH"},null,null,null,null,null,"Detention Services - 145","Average Daily Population",null,null,null,null,null,null,null,"236","108","Y","24","Property Tax Collections","EACH","OUTPUT","NEITHER",null,null,null,"Property Tax Collections","# Refund Applications Issued",null,{"$f":"'Data SBP Measures'!$AF1678&'Data SBP Measures'!$AE1678& \" - \"& 'Data SBP Measures'!$U1678","v":"# Refund Applications IssuedProperty Tax Collections - 108"},{"$f":"_xlfn.XLOOKUP(VALUE(W1678),'Data SBP Programs'!O:O,'Data SBP Programs'!S:S)","v":"Property Tax Collections"}]
[{"$f":"'Data SBP Measures'!$AI3575&\" - \"&'Data SBP Measures'!$U3575","v":"Development Services and Long Range Planning - 149"},{"$f":"'Data SBP Measures'!$AF3575","v":"# of cases dev Enforcement Group referred to Cty Atty"},{"$f":"'Data SBP Measures'!$T3575","v":"937"},{"$f":"'Data SBP Measures'!$U3575&B1682","v":"149# of cases dev Enforcement Group referred to Cty Atty"},{"$f":"'Data SBP Measures'!$Y3575","v":"EACH"},null,null,null,null,null,"Development Services and Long Range Planning - 149","# of cases dev Enforcement Group referred to Cty Atty",null,null,null,null,null,null,null,"2361","140","Y","268","Intake & Assessments","PERCENT","OUTCOME","ADOPTEDBUD",null,null,null,"Intake & Assessments","% of clients receiving final court disposition within 1 year after completing AOD Asmt.",null,{"$f":"'Data SBP Measures'!$AF1682&'Data SBP Measures'!$AE1682& \" - \"& 'Data SBP Measures'!$U1682","v":"% of clients receiving final court disposition within 1 year after completing AOD Asmt.Intake & Assessments - 140"},{"$f":"_xlfn.XLOOKUP(VALUE(W1682),'Data SBP Programs'!O:O,'Data SBP Programs'!S:S)","v":"Intake & Assessments"}]
[{"$f":"'Data SBP Measures'!$AI3576&\" - \"&'Data SBP Measures'!$U3576","v":"Development Services and Long Range Planning - 149"},{"$f":"'Data SBP Measures'!$AF3576","v":"# of complaints development Enforcement Group investigated"},{"$f":"'Data SBP Measures'!$T3576","v":"938"},{"$f":"'Data SBP Measures'!$U3576&B1683","v":"149# of complaints development Enforcement Group investigated"},{"$f":"'Data SBP Measures'!$Y3576","v":"EACH"},null,null,null,null,null,"Development Services and Long Range Planning - 149","# of complaints development Enforcement Group investigated",null,null,null,null,null,null,null,"2361","140","Y","268","Intake & Assessments","PERCENT","OUTCOME","ADOPTEDBUD",null,null,null,"Intake & Assessments","% of clients receiving final court disposition within 1 year after completing AOD Asmt.",null,{"$f":"'Data SBP Measures'!$AF1683&'Data SBP Measures'!$AE1683& \" - \"& 'Data SBP Measures'!$U1683","v":"% of clients receiving final court disposition within 1 year after completing AOD Asmt.Intake & Assessments - 140"},{"$f":"_xlfn.XLOOKUP(VALUE(W1683),'Data SBP Programs'!O:O,'Data SBP Programs'!S:S)","v":"Intake & Assessments"}]
[{"$f":"'Data SBP Measures'!$AI3579&\" - \"&'Data SBP Measures'!$U3579","v":"Development Services and Long Range Planning - 149"},{"$f":"'Data SBP Measures'!$AF3579","v":"# of Long-form plats / Updates reviewed  (not approved)"},{"$f":"'Data SBP Measures'!$T3579","v":"942"},{"$f":"'Data SBP Measures'!$U3579&B1686","v":"149# of Long-form plats / Updates reviewed  (not approved)"},{"$f":"'Data SBP Measures'!$Y3579","v":"EACH"},null,null,null,null,null,"Development Services and Long Range Planning - 149","# of Long-form plats / Updates reviewed  (not approved)",null,null,null,null,null,null,null,"2362","140","Y","268","Intake & Assessments","EACH","OUTPUT","BLACKBOOK",null,null,null,"Intake & Assessments","Family Violence Total # referred",null,{"$f":"'Data SBP Measures'!$AF1686&'Data SBP Measures'!$AE1686& \" - \"& 'Data SBP Measures'!$U1686","v":"Family Violence Total # referredIntake & Assessments - 140"},{"$f":"_xlfn.XLOOKUP(VALUE(W1686),'Data SBP Programs'!O:O,'Data SBP Programs'!S:S)","v":"Intake & Assessments"}]
[{"$f":"'Data SBP Measures'!$AI3581&\" - \"&'Data SBP Measures'!$U3581","v":"Development Services and Long Range Planning - 149"},{"$f":"'Data SBP Measures'!$AF3581","v":"# of street acceptance requests process"},{"$f":"'Data SBP Measures'!$T3581","v":"945"},{"$f":"'Data SBP Measures'!$U3581&B1687","v":"149# of street acceptance requests process"},{"$f":"'Data SBP Measures'!$Y3581","v":"EACH"},null,null,null,null,null,"Development Services and Long Range Planning - 149","# of street acceptance requests process",null,null,null,null,null,null,null,"2362","140","Y","268","Intake & Assessments","EACH","OUTPUT","BLACKBOOK",null,null,null,"Intake & Assessments","Family Violence Total # referred",null,{"$f":"'Data SBP Measures'!$AF1687&'Data SBP Measures'!$AE1687& \" - \"& 'Data SBP Measures'!$U1687","v":"Family Violence Total # referredIntake & Assessments - 140"},{"$f":"_xlfn.XLOOKUP(VALUE(W1687),'Data SBP Programs'!O:O,'Data SBP Programs'!S:S)","v":"Intake & Assessments"}]
[{"$f":"'Data SBP Measures'!$AI3580&\" - \"&'Data SBP Measures'!$U3580","v":"Development Services and Long Range Planning - 149"},{"$f":"'Data SBP Measures'!$AF3580","v":"# Res/Sm Cmcl Type  A/B permits*# permits rvwed (not issued)"},{"$f":"'Data SBP Measures'!$T3580","v":"943"},{"$f":"'Data SBP Measures'!$U3580&B1691","v":"149# Res/Sm Cmcl Type  A/B permits*# permits rvwed (not issued)"},{"$f":"'Data SBP Measures'!$Y3580","v":"EACH"},null,null,null,null,null,"Development Services and Long Range Planning - 149","# Res/Sm Cmcl Type  A/B permits*# permits rvwed (not issued)",null,null,null,null,null,null,null,"2364","140","Y","268","Intake & Assessments","EACH","OUTPUT","BLACKBOOK",null,null,null,"Intake & Assessments","Family Violence # of Probation",null,{"$f":"'Data SBP Measures'!$AF1691&'Data SBP Measures'!$AE1691& \" - \"& 'Data SBP Measures'!$U1691","v":"Family Violence # of ProbationIntake & Assessments - 140"},{"$f":"_xlfn.XLOOKUP(VALUE(W1691),'Data SBP Programs'!O:O,'Data SBP Programs'!S:S)","v":"Intake & Assessments"}]
[{"$f":"'Data SBP Measures'!$AI3586&\" - \"&'Data SBP Measures'!$U3586","v":"Development Services and Long Range Planning - 149"},{"$f":"'Data SBP Measures'!$AF3586","v":"% of Amended Plats reviewed within 15 / 5 days"},{"$f":"'Data SBP Measures'!$T3586","v":"951"},{"$f":"'Data SBP Measures'!$U3586&B1693","v":"149% of Amended Plats reviewed within 15 / 5 days"},{"$f":"'Data SBP Measures'!$Y3586","v":"PERCENT"},null,null,null,null,null,"Development Services and Long Range Planning - 149","% of Amended Plats reviewed within 15 / 5 days",null,null,null,null,null,null,null,"2364","140","Y","268","Intake & Assessments","EACH","OUTPUT","BLACKBOOK",null,null,null,"Intake & Assessments","Family Violence # of Probation",null,{"$f":"'Data SBP Measures'!$AF1693&'Data SBP Measures'!$AE1693& \" - \"& 'Data SBP Measures'!$U1693","v":"Family Violence # of ProbationIntake & Assessments - 140"},{"$f":"_xlfn.XLOOKUP(VALUE(W1693),'Data SBP Programs'!O:O,'Data SBP Programs'!S:S)","v":"Intake & Assessments"}]
[{"$f":"'Data SBP Measures'!$AI3589&\" - \"&'Data SBP Measures'!$U3589","v":"Development Services and Long Range Planning - 149"},{"$f":"'Data SBP Measures'!$AF3589","v":"% of Fiscal Accounts established within 10 days"},{"$f":"'Data SBP Measures'!$T3589","v":"955"},{"$f":"'Data SBP Measures'!$U3589&B1696","v":"149% of Fiscal Accounts established within 10 days"},{"$f":"'Data SBP Measures'!$Y3589","v":"PERCENT"},null,null,null,null,null,"Development Services and Long Range Planning - 149","% of Fiscal Accounts established within 10 days",null,null,null,null,null,null,null,"2365","140","Y","268","Intake & Assessments","EACH","OUTPUT","BLACKBOOK",null,null,null,"Intake & Assessments","Family Violence # of Other",null,{"$f":"'Data SBP Measures'!$AF1696&'Data SBP Measures'!$AE1696& \" - \"& 'Data SBP Measures'!$U1696","v":"Family Violence # of OtherIntake & Assessments - 140"},{"$f":"_xlfn.XLOOKUP(VALUE(W1696),'Data SBP Programs'!O:O,'Data SBP Programs'!S:S)","v":"Intake & Assessments"}]
[{"$f":"'Data SBP Measures'!$AI3590&\" - \"&'Data SBP Measures'!$U3590","v":"Development Services and Long Range Planning - 149"},{"$f":"'Data SBP Measures'!$AF3590","v":"% of lg commercial & subdivision Type \"A\" or \"B\" permits comments issued w/i 25 working days of initial review, 7 days for re-submittals"},{"$f":"'Data SBP Measures'!$T3590","v":"956"},{"$f":"'Data SBP Measures'!$U3590&B1697","v":"149% of lg commercial & subdivision Type \"A\" or \"B\" permits comments issued w/i 25 working days of initial review, 7 days for re-submittals"},{"$f":"'Data SBP Measures'!$Y3590","v":"PERCENT"},null,null,null,null,null,"Development Services and Long Range Planning - 149","% of lg commercial & subdivision Type \"A\" or \"B\" permits comments issued w/i 25 working days of initial review, 7 days for re-submittals",null,null,null,null,null,null,null,"2366","140","Y","268","Intake & Assessments","PERCENT","OUTPUT","BLACKBOOK",null,null,null,"Intake & Assessments","% of FV Asmts with AOD Recommendations",null,{"$f":"'Data SBP Measures'!$AF1697&'Data SBP Measures'!$AE1697& \" - \"& 'Data SBP Measures'!$U1697","v":"% of FV Asmts with AOD RecommendationsIntake & Assessments - 140"},{"$f":"_xlfn.XLOOKUP(VALUE(W1697),'Data SBP Programs'!O:O,'Data SBP Programs'!S:S)","v":"Intake & Assessments"}]
[{"$f":"'Data SBP Measures'!$AI3594&\" - \"&'Data SBP Measures'!$U3594","v":"Development Services and Long Range Planning - 149"},{"$f":"'Data SBP Measures'!$AF3594","v":"% of subdivision streets submitted for acceptance to Court w/i 45 calendar days of completion of Required Document items"},{"$f":"'Data SBP Measures'!$T3594","v":"961"},{"$f":"'Data SBP Measures'!$U3594&B1701","v":"149% of subdivision streets submitted for acceptance to Court w/i 45 calendar days of completion of Required Document items"},{"$f":"'Data SBP Measures'!$Y3594","v":"PERCENT"},null,null,null,null,null,"Development Services and Long Range Planning - 149","% of subdivision streets submitted for acceptance to Court w/i 45 calendar days of completion of Required Document items",null,null,null,null,null,null,null,"2367","140","Y","268","Intake & Assessments","PERCENT","OUTPUT","BLACKBOOK",null,null,null,"Intake & Assessments","% of Spanish FV Asmts",null,{"$f":"'Data SBP Measures'!$AF1701&'Data SBP Measures'!$AE1701& \" - \"& 'Data SBP Measures'!$U1701","v":"% of Spanish FV AsmtsIntake & Assessments - 140"},{"$f":"_xlfn.XLOOKUP(VALUE(W1701),'Data SBP Programs'!O:O,'Data SBP Programs'!S:S)","v":"Intake & Assessments"}]
[{"$f":"'Data SBP Measures'!$AI3595&\" - \"&'Data SBP Measures'!$U3595","v":"Development Services and Long Range Planning - 149"},{"$f":"'Data SBP Measures'!$AF3595","v":"% of Type \"A\" res dev permits comments issued w/i 10 working days; Type \"B\" w/i 21 working days"},{"$f":"'Data SBP Measures'!$T3595","v":"962"},{"$f":"'Data SBP Measures'!$U3595&B1702","v":"149% of Type \"A\" res dev permits comments issued w/i 10 working days; Type \"B\" w/i 21 working days"},{"$f":"'Data SBP Measures'!$Y3595","v":"PERCENT"},null,null,null,null,null,"Development Services and Long Range Planning - 149","% of Type \"A\" res dev permits comments issued w/i 10 working days; Type \"B\" w/i 21 working days",null,null,null,null,null,null,null,"2367","140","Y","268","Intake & Assessments","PERCENT","OUTPUT","BLACKBOOK",null,null,null,"Intake & Assessments","% of Spanish FV Asmts",null,{"$f":"'Data SBP Measures'!$AF1702&'Data SBP Measures'!$AE1702& \" - \"& 'Data SBP Measures'!$U1702","v":"% of Spanish FV AsmtsIntake & Assessments - 140"},{"$f":"_xlfn.XLOOKUP(VALUE(W1702),'Data SBP Programs'!O:O,'Data SBP Programs'!S:S)","v":"Intake & Assessments"}]
[{"$f":"'Data SBP Measures'!$AI306&\" - \"&'Data SBP Measures'!$U306","v":"Dispatch / Communication - 137"},{"$f":"'Data SBP Measures'!$AF306","v":"No. of incoming admin calls"},{"$f":"'Data SBP Measures'!$T306","v":"1363"},{"$f":"'Data SBP Measures'!$U306&B1705","v":"137No. of incoming admin calls"},{"$f":"'Data SBP Measures'!$Y306","v":"EACH"},null,null,null,null,null,"Dispatch / Communication - 137","No. of incoming admin calls",null,null,null,null,null,null,null,"2368","140","Y","268","Intake & Assessments","PERCENT","OUTPUT","BLACKBOOK",null,null,null,"Intake & Assessments","% of FV with MH needs",null,{"$f":"'Data SBP Measures'!$AF1705&'Data SBP Measures'!$AE1705& \" - \"& 'Data SBP Measures'!$U1705","v":"% of FV with MH needsIntake & Assessments - 140"},{"$f":"_xlfn.XLOOKUP(VALUE(W1705),'Data SBP Programs'!O:O,'Data SBP Programs'!S:S)","v":"Intake & Assessments"}]
[{"$f":"'Data SBP Measures'!$AI305&\" - \"&'Data SBP Measures'!$U305","v":"Dispatch / Communication - 137"},{"$f":"'Data SBP Measures'!$AF305","v":"No. of incoming calls"},{"$f":"'Data SBP Measures'!$T305","v":"1362"},{"$f":"'Data SBP Measures'!$U305&B1706","v":"137No. of incoming calls"},{"$f":"'Data SBP Measures'!$Y305","v":"EACH"},null,null,null,null,null,"Dispatch / Communication - 137","No. of incoming calls",null,null,null,null,null,null,null,"2369","140","Y","268","Intake & Assessments","PERCENT","OUTPUT","BLACKBOOK",null,null,null,"Intake & Assessments","% of Enhanced/Felony FV Asmts",null,{"$f":"'Data SBP Measures'!$AF1706&'Data SBP Measures'!$AE1706& \" - \"& 'Data SBP Measures'!$U1706","v":"% of Enhanced/Felony FV AsmtsIntake & Assessments - 140"},{"$f":"_xlfn.XLOOKUP(VALUE(W1706),'Data SBP Programs'!O:O,'Data SBP Programs'!S:S)","v":"Intake & Assessments"}]
[{"$f":"'Data SBP Measures'!$AI1544&\" - \"&'Data SBP Measures'!$U1544","v":"Dispute Resolution Center - 136"},{"$f":"'Data SBP Measures'!$AF1544","v":"% Court Related Referrals"},{"$f":"'Data SBP Measures'!$T1544","v":"2296"},{"$f":"'Data SBP Measures'!$U1544&B1710","v":"136% Court Related Referrals"},{"$f":"'Data SBP Measures'!$Y1544","v":"PERCENT"},null,null,null,null,null,"Dispute Resolution Center - 136","% Court Related Referrals",null,null,null,null,null,null,null,"2370","140","Y","268","Intake & Assessments","PERCENT","EFFICIENCY","BLACKBOOK",null,null,null,"Intake & Assessments","% of clients completing FV Asmt within thirty days after referral date.",null,{"$f":"'Data SBP Measures'!$AF1710&'Data SBP Measures'!$AE1710& \" - \"& 'Data SBP Measures'!$U1710","v":"% of clients completing FV Asmt within thirty days after referral date.Intake & Assessments - 140"},{"$f":"_xlfn.XLOOKUP(VALUE(W1710),'Data SBP Programs'!O:O,'Data SBP Programs'!S:S)","v":"Intake & Assessments"}]
[{"$f":"'Data SBP Measures'!$AI1542&\" - \"&'Data SBP Measures'!$U1542","v":"Dispute Resolution Center - 136"},{"$f":"'Data SBP Measures'!$AF1542","v":"Estimated Savings to Travis County Through Diverted Court Cases"},{"$f":"'Data SBP Measures'!$T1542","v":"2294"},{"$f":"'Data SBP Measures'!$U1542&B1712","v":"136Estimated Savings to Travis County Through Diverted Court Cases"},{"$f":"'Data SBP Measures'!$Y1542","v":"DOLLARS"},null,null,null,null,null,"Dispute Resolution Center - 136","Estimated Savings to Travis County Through Diverted Court Cases",null,null,null,null,null,null,null,"2370","140","Y","268","Intake & Assessments","PERCENT","EFFICIENCY","BLACKBOOK",null,null,null,"Intake & Assessments","% of clients completing FV Asmt within thirty days after referral date.",null,{"$f":"'Data SBP Measures'!$AF1712&'Data SBP Measures'!$AE1712& \" - \"& 'Data SBP Measures'!$U1712","v":"% of clients completing FV Asmt within thirty days after referral date.Intake & Assessments - 140"},{"$f":"_xlfn.XLOOKUP(VALUE(W1712),'Data SBP Programs'!O:O,'Data SBP Programs'!S:S)","v":"Intake & Assessments"}]
[{"$f":"'Data SBP Measures'!$AI1540&\" - \"&'Data SBP Measures'!$U1540","v":"Dispute Resolution Center - 136"},{"$f":"'Data SBP Measures'!$AF1540","v":"Number of people served: ADR Services"},{"$f":"'Data SBP Measures'!$T1540","v":"2292"},{"$f":"'Data SBP Measures'!$U1540&B1715","v":"136Number of people served: ADR Services"},{"$f":"'Data SBP Measures'!$Y1540","v":"EACH"},null,null,null,null,null,"Dispute Resolution Center - 136","Number of people served: ADR Services",null,null,null,null,null,null,null,"2371","140","Y","268","Intake & Assessments","PERCENT","EFFICIENCY","BLACKBOOK",null,null,null,"Intake & Assessments","% of clients receiving final court disposition within 180 days after completing FV Asmt.",null,{"$f":"'Data SBP Measures'!$AF1715&'Data SBP Measures'!$AE1715& \" - \"& 'Data SBP Measures'!$U1715","v":"% of clients receiving final court disposition within 180 days after completing FV Asmt.Intake & Assessments - 140"},{"$f":"_xlfn.XLOOKUP(VALUE(W1715),'Data SBP Programs'!O:O,'Data SBP Programs'!S:S)","v":"Intake & Assessments"}]
[{"$f":"'Data SBP Measures'!$AI1539&\" - \"&'Data SBP Measures'!$U1539","v":"Dispute Resolution Center - 136"},{"$f":"'Data SBP Measures'!$AF1539","v":"Number of people served: Training Services"},{"$f":"'Data SBP Measures'!$T1539","v":"2291"},{"$f":"'Data SBP Measures'!$U1539&B1716","v":"136Number of people served: Training Services"},{"$f":"'Data SBP Measures'!$Y1539","v":"EACH"},null,null,null,null,null,"Dispute Resolution Center - 136","Number of people served: Training Services",null,null,null,null,null,null,null,"2372","140","Y","268","Intake & Assessments","PERCENT","EFFICIENCY","ADOPTEDBUD",null,null,null,"Intake & Assessments","% of clients receiving final court disposition within 1 year after completing FV Asmt.",null,{"$f":"'Data SBP Measures'!$AF1716&'Data SBP Measures'!$AE1716& \" - \"& 'Data SBP Measures'!$U1716","v":"% of clients receiving final court disposition within 1 year after completing FV Asmt.Intake & Assessments - 140"},{"$f":"_xlfn.XLOOKUP(VALUE(W1716),'Data SBP Programs'!O:O,'Data SBP Programs'!S:S)","v":"Intake & Assessments"}]
[{"$f":"'Data SBP Measures'!$AI3493&\" - \"&'Data SBP Measures'!$U3493","v":"District Courts Division - 124"},{"$f":"'Data SBP Measures'!$AF3493","v":"# of cases in specialty court programs/dockets"},{"$f":"'Data SBP Measures'!$T3493","v":"817"},{"$f":"'Data SBP Measures'!$U3493&B1720","v":"124# of cases in specialty court programs/dockets"},{"$f":"'Data SBP Measures'!$Y3493","v":"EACH"},null,null,null,null,null,"District Courts Division - 124","# of cases in specialty court programs/dockets",null,null,null,null,null,null,null,"2374","140","Y","269","Alcohol & Drug Classes/Programs","EACH","OUTPUT","ADOPTEDBUD",null,null,null,"Alcohol & Drug Classes/Programs","Total # of clients completing AOD classes",null,{"$f":"'Data SBP Measures'!$AF1720&'Data SBP Measures'!$AE1720& \" - \"& 'Data SBP Measures'!$U1720","v":"Total # of clients completing AOD classesAlcohol & Drug Classes/Programs - 140"},{"$f":"_xlfn.XLOOKUP(VALUE(W1720),'Data SBP Programs'!O:O,'Data SBP Programs'!S:S)","v":"Alcohol & Drug Classes/Programs"}]
[{"$f":"'Data SBP Measures'!$AI3499&\" - \"&'Data SBP Measures'!$U3499","v":"District Courts Division - 124"},{"$f":"'Data SBP Measures'!$AF3499","v":"% of appointments made w/in stautory time frame"},{"$f":"'Data SBP Measures'!$T3499","v":"823"},{"$f":"'Data SBP Measures'!$U3499&B1721","v":"124% of appointments made w/in stautory time frame"},{"$f":"'Data SBP Measures'!$Y3499","v":"PERCENT"},null,null,null,null,null,"District Courts Division - 124","% of appointments made w/in stautory time frame",null,null,null,null,null,null,null,"2375","140","Y","269","Alcohol & Drug Classes/Programs","EACH","OUTPUT","ADOPTEDBUD",null,null,null,"Alcohol & Drug Classes/Programs","Total # of AOD classes",null,{"$f":"'Data SBP Measures'!$AF1721&'Data SBP Measures'!$AE1721& \" - \"& 'Data SBP Measures'!$U1721","v":"Total # of AOD classesAlcohol & Drug Classes/Programs - 140"},{"$f":"_xlfn.XLOOKUP(VALUE(W1721),'Data SBP Programs'!O:O,'Data SBP Programs'!S:S)","v":"Alcohol & Drug Classes/Programs"}]
[{"$f":"'Data SBP Measures'!$AI3494&\" - \"&'Data SBP Measures'!$U3494","v":"District Courts Division - 124"},{"$f":"'Data SBP Measures'!$AF3494","v":"Amount spent on indigent attorney fees"},{"$f":"'Data SBP Measures'!$T3494","v":"818"},{"$f":"'Data SBP Measures'!$U3494&B1724","v":"124Amount spent on indigent attorney fees"},{"$f":"'Data SBP Measures'!$Y3494","v":"DOLLARS"},null,null,null,null,null,"District Courts Division - 124","Amount spent on indigent attorney fees",null,null,null,null,null,null,null,"2378","140","Y","269","Alcohol & Drug Classes/Programs","PERCENT","OUTCOME","BLACKBOOK",null,null,null,"Alcohol & Drug Classes/Programs","% of clients successfully completing classes",null,{"$f":"'Data SBP Measures'!$AF1724&'Data SBP Measures'!$AE1724& \" - \"& 'Data SBP Measures'!$U1724","v":"% of clients successfully completing classesAlcohol & Drug Classes/Programs - 140"},{"$f":"_xlfn.XLOOKUP(VALUE(W1724),'Data SBP Programs'!O:O,'Data SBP Programs'!S:S)","v":"Alcohol & Drug Classes/Programs"}]
[{"$f":"'Data SBP Measures'!$AI3491&\" - \"&'Data SBP Measures'!$U3491","v":"District Courts Division - 124"},{"$f":"'Data SBP Measures'!$AF3491","v":"Cases on dockets each September 30th"},{"$f":"'Data SBP Measures'!$T3491","v":"815"},{"$f":"'Data SBP Measures'!$U3491&B1725","v":"124Cases on dockets each September 30th"},{"$f":"'Data SBP Measures'!$Y3491","v":"EACH"},null,null,null,null,null,"District Courts Division - 124","Cases on dockets each September 30th",null,null,null,null,null,null,null,"2379","140","Y","269","Alcohol & Drug Classes/Programs","EACH","OUTPUT","BLACKBOOK",null,null,null,"Alcohol & Drug Classes/Programs","12-Hour DWI Education Class # of clients registered",null,{"$f":"'Data SBP Measures'!$AF1725&'Data SBP Measures'!$AE1725& \" - \"& 'Data SBP Measures'!$U1725","v":"12-Hour DWI Education Class # of clients registeredAlcohol & Drug Classes/Programs - 140"},{"$f":"_xlfn.XLOOKUP(VALUE(W1725),'Data SBP Programs'!O:O,'Data SBP Programs'!S:S)","v":"Alcohol & Drug Classes/Programs"}]
[{"$f":"'Data SBP Measures'!$AI3501&\" - \"&'Data SBP Measures'!$U3501","v":"District Courts Division - 124"},{"$f":"'Data SBP Measures'!$AF3501","v":"Clearance Ratio  > 90% (Y=1, N=0)"},{"$f":"'Data SBP Measures'!$T3501","v":"825"},{"$f":"'Data SBP Measures'!$U3501&B1729","v":"124Clearance Ratio  > 90% (Y=1, N=0)"},{"$f":"'Data SBP Measures'!$Y3501","v":"Y/N"},null,null,null,null,null,"District Courts Division - 124","Clearance Ratio  > 90% (Y=1, N=0)",null,null,null,null,null,null,null,"2382","140","Y","269","Alcohol & Drug Classes/Programs","EACH","OUTPUT","BLACKBOOK",null,null,null,"Alcohol & Drug Classes/Programs","12-Hour DWI Education Class # In English",null,{"$f":"'Data SBP Measures'!$AF1729&'Data SBP Measures'!$AE1729& \" - \"& 'Data SBP Measures'!$U1729","v":"12-Hour DWI Education Class # In EnglishAlcohol & Drug Classes/Programs - 140"},{"$f":"_xlfn.XLOOKUP(VALUE(W1729),'Data SBP Programs'!O:O,'Data SBP Programs'!S:S)","v":"Alcohol & Drug Classes/Programs"}]
[{"$f":"'Data SBP Measures'!$AI613&\" - \"&'Data SBP Measures'!$U613","v":"District Courts Division - 124"},{"$f":"'Data SBP Measures'!$AF613","v":"Number of invoices processed automatically"},{"$f":"'Data SBP Measures'!$T613","v":"1656"},{"$f":"'Data SBP Measures'!$U613&B1731","v":"124Number of invoices processed automatically"},{"$f":"'Data SBP Measures'!$Y613","v":"EACH"},null,null,null,null,null,"District Courts Division - 124","Number of invoices processed automatically",null,null,null,null,null,null,null,"2384","140","Y","269","Alcohol & Drug Classes/Programs","PERCENT","OUTCOME","BLACKBOOK",null,null,null,"Alcohol & Drug Classes/Programs","Pre-Test/Post Test % increase in Knowledge",null,{"$f":"'Data SBP Measures'!$AF1731&'Data SBP Measures'!$AE1731& \" - \"& 'Data SBP Measures'!$U1731","v":"Pre-Test/Post Test % increase in KnowledgeAlcohol & Drug Classes/Programs - 140"},{"$f":"_xlfn.XLOOKUP(VALUE(W1731),'Data SBP Programs'!O:O,'Data SBP Programs'!S:S)","v":"Alcohol & Drug Classes/Programs"}]
[{"$f":"'Data SBP Measures'!$AI615&\" - \"&'Data SBP Measures'!$U615","v":"District Courts Division - 124"},{"$f":"'Data SBP Measures'!$AF615","v":"Percent of invoices processed automatically >99% (Y=1, N=0)"},{"$f":"'Data SBP Measures'!$T615","v":"1658"},{"$f":"'Data SBP Measures'!$U615&B1734","v":"124Percent of invoices processed automatically >99% (Y=1, N=0)"},{"$f":"'Data SBP Measures'!$Y615","v":"Y/N"},null,null,null,null,null,"District Courts Division - 124","Percent of invoices processed automatically >99% (Y=1, N=0)",null,null,null,null,null,null,null,"2387","140","Y","269","Alcohol & Drug Classes/Programs","EACH","OUTPUT","BLACKBOOK",null,null,null,"Alcohol & Drug Classes/Programs","30-Hour DWI Intervention Total # of classes",null,{"$f":"'Data SBP Measures'!$AF1734&'Data SBP Measures'!$AE1734& \" - \"& 'Data SBP Measures'!$U1734","v":"30-Hour DWI Intervention Total # of classesAlcohol & Drug Classes/Programs - 140"},{"$f":"_xlfn.XLOOKUP(VALUE(W1734),'Data SBP Programs'!O:O,'Data SBP Programs'!S:S)","v":"Alcohol & Drug Classes/Programs"}]
[{"$f":"'Data SBP Measures'!$AI3492&\" - \"&'Data SBP Measures'!$U3492","v":"District Courts Division - 124"},{"$f":"'Data SBP Measures'!$AF3492","v":"Total # of dispositions"},{"$f":"'Data SBP Measures'!$T3492","v":"816"},{"$f":"'Data SBP Measures'!$U3492&B1735","v":"124Total # of dispositions"},{"$f":"'Data SBP Measures'!$Y3492","v":"EACH"},null,null,null,null,null,"District Courts Division - 124","Total # of dispositions",null,null,null,null,null,null,null,"2388","140","Y","269","Alcohol & Drug Classes/Programs","EACH","OUTPUT","BLACKBOOK",null,null,null,"Alcohol & Drug Classes/Programs","30-Hour DWI Intervention # In English",null,{"$f":"'Data SBP Measures'!$AF1735&'Data SBP Measures'!$AE1735& \" - \"& 'Data SBP Measures'!$U1735","v":"30-Hour DWI Intervention # In EnglishAlcohol & Drug Classes/Programs - 140"},{"$f":"_xlfn.XLOOKUP(VALUE(W1735),'Data SBP Programs'!O:O,'Data SBP Programs'!S:S)","v":"Alcohol & Drug Classes/Programs"}]
[{"$f":"'Data SBP Measures'!$AI3454&\" - \"&'Data SBP Measures'!$U3454","v":"Diversion, Youth Justice, & Violence Prevention\n - 123"},{"$f":"'Data SBP Measures'!$AF3454","v":"# of informations filed"},{"$f":"'Data SBP Measures'!$T3454","v":"772"},{"$f":"'Data SBP Measures'!$U3454&B1739","v":"123# of informations filed"},{"$f":"'Data SBP Measures'!$Y3454","v":"EACH"},null,null,null,null,null,"Diversion, Youth Justice, & Violence Prevention\n - 123","# of informations filed",null,null,null,null,null,null,null,"2391","140","Y","269","Alcohol & Drug Classes/Programs","EACH","OUTPUT","BLACKBOOK",null,null,null,"Alcohol & Drug Classes/Programs","15-Hour Drug Edu. Class # of clients completing",null,{"$f":"'Data SBP Measures'!$AF1739&'Data SBP Measures'!$AE1739& \" - \"& 'Data SBP Measures'!$U1739","v":"15-Hour Drug Edu. Class # of clients completingAlcohol & Drug Classes/Programs - 140"},{"$f":"_xlfn.XLOOKUP(VALUE(W1739),'Data SBP Programs'!O:O,'Data SBP Programs'!S:S)","v":"Alcohol & Drug Classes/Programs"}]
[{"$f":"'Data SBP Measures'!$AI3477&\" - \"&'Data SBP Measures'!$U3477","v":"Diversion, Youth Justice, & Violence Prevention\n - 123"},{"$f":"'Data SBP Measures'!$AF3477","v":"# of mental health felony cases handled by the team"},{"$f":"'Data SBP Measures'!$T3477","v":"804"},{"$f":"'Data SBP Measures'!$U3477&B1740","v":"123# of mental health felony cases handled by the team"},{"$f":"'Data SBP Measures'!$Y3477","v":"EACH"},null,null,null,null,null,"Diversion, Youth Justice, & Violence Prevention\n - 123","# of mental health felony cases handled by the team",null,null,null,null,null,null,null,"2392","140","Y","269","Alcohol & Drug Classes/Programs","EACH","OUTPUT","BLACKBOOK",null,null,null,"Alcohol & Drug Classes/Programs","15-Hour Drug Edu. Class Total # of classes",null,{"$f":"'Data SBP Measures'!$AF1740&'Data SBP Measures'!$AE1740& \" - \"& 'Data SBP Measures'!$U1740","v":"15-Hour Drug Edu. Class Total # of classesAlcohol & Drug Classes/Programs - 140"},{"$f":"_xlfn.XLOOKUP(VALUE(W1740),'Data SBP Programs'!O:O,'Data SBP Programs'!S:S)","v":"Alcohol & Drug Classes/Programs"}]
[{"$f":"'Data SBP Measures'!$AI3458&\" - \"&'Data SBP Measures'!$U3458","v":"Diversion, Youth Justice, & Violence Prevention\n - 123"},{"$f":"'Data SBP Measures'!$AF3458","v":"# of Mobile Device Warrants and Orders"},{"$f":"'Data SBP Measures'!$T3458","v":"776"},{"$f":"'Data SBP Measures'!$U3458&B1742","v":"123# of Mobile Device Warrants and Orders"},{"$f":"'Data SBP Measures'!$Y3458","v":"EACH"},null,null,null,null,null,"Diversion, Youth Justice, & Violence Prevention\n - 123","# of Mobile Device Warrants and Orders",null,null,null,null,null,null,null,"2394","140","Y","269","Alcohol & Drug Classes/Programs","EACH","OUTPUT","BLACKBOOK",null,null,null,"Alcohol & Drug Classes/Programs","15-Hour Drug Edu. Class # In Spanish",null,{"$f":"'Data SBP Measures'!$AF1742&'Data SBP Measures'!$AE1742& \" - \"& 'Data SBP Measures'!$U1742","v":"15-Hour Drug Edu. Class # In SpanishAlcohol & Drug Classes/Programs - 140"},{"$f":"_xlfn.XLOOKUP(VALUE(W1742),'Data SBP Programs'!O:O,'Data SBP Programs'!S:S)","v":"Alcohol & Drug Classes/Programs"}]
[{"$f":"'Data SBP Measures'!$AI3456&\" - \"&'Data SBP Measures'!$U3456","v":"Diversion, Youth Justice, & Violence Prevention\n - 123"},{"$f":"'Data SBP Measures'!$AF3456","v":"Avg days b/t date received and information on all cases"},{"$f":"'Data SBP Measures'!$T3456","v":"774"},{"$f":"'Data SBP Measures'!$U3456&B1745","v":"123Avg days b/t date received and information on all cases"},{"$f":"'Data SBP Measures'!$Y3456","v":"DAYS"},null,null,null,null,null,"Diversion, Youth Justice, & Violence Prevention\n - 123","Avg days b/t date received and information on all cases",null,null,null,null,null,null,null,"2397","140","Y","269","Alcohol & Drug Classes/Programs","EACH","OUTPUT","BLACKBOOK",null,null,null,"Alcohol & Drug Classes/Programs","8-Hour AOD Education Class # of clients completing",null,{"$f":"'Data SBP Measures'!$AF1745&'Data SBP Measures'!$AE1745& \" - \"& 'Data SBP Measures'!$U1745","v":"8-Hour AOD Education Class # of clients completingAlcohol & Drug Classes/Programs - 140"},{"$f":"_xlfn.XLOOKUP(VALUE(W1745),'Data SBP Programs'!O:O,'Data SBP Programs'!S:S)","v":"Alcohol & Drug Classes/Programs"}]
[{"$f":"'Data SBP Measures'!$AI2936&\" - \"&'Data SBP Measures'!$U2936","v":"Document Imaging - 112"},{"$f":"'Data SBP Measures'!$AF2936","v":"Images Scanned"},{"$f":"'Data SBP Measures'!$T2936","v":"3448"},{"$f":"'Data SBP Measures'!$U2936&B1748","v":"112Images Scanned"},{"$f":"'Data SBP Measures'!$Y2936","v":"EACH"},null,null,null,null,null,"Document Imaging - 112","Images Scanned",null,null,null,null,null,null,null,"2400","140","Y","269","Alcohol & Drug Classes/Programs","EACH","OUTPUT","BLACKBOOK",null,null,null,"Alcohol & Drug Classes/Programs","8-Hour AOD Education Class # In Spanish",null,{"$f":"'Data SBP Measures'!$AF1748&'Data SBP Measures'!$AE1748& \" - \"& 'Data SBP Measures'!$U1748","v":"8-Hour AOD Education Class # In SpanishAlcohol & Drug Classes/Programs - 140"},{"$f":"_xlfn.XLOOKUP(VALUE(W1748),'Data SBP Programs'!O:O,'Data SBP Programs'!S:S)","v":"Alcohol & Drug Classes/Programs"}]
[{"$f":"'Data SBP Measures'!$AI573&\" - \"&'Data SBP Measures'!$U573","v":"Domestic Relations Office - 145"},{"$f":"'Data SBP Measures'!$AF573","v":"% Collection on ICSS Current Child Support"},{"$f":"'Data SBP Measures'!$T573","v":"1635"},{"$f":"'Data SBP Measures'!$U573&B1750","v":"145% Collection on ICSS Current Child Support"},{"$f":"'Data SBP Measures'!$Y573","v":"PERCENT"},null,null,null,null,null,"Domestic Relations Office - 145","% Collection on ICSS Current Child Support",null,null,null,null,null,null,null,"2402","140","Y","269","Alcohol & Drug Classes/Programs","EACH","OUTPUT","BLACKBOOK",null,null,null,"Alcohol & Drug Classes/Programs","12-Hour AOD Education Class # of clients completing",null,{"$f":"'Data SBP Measures'!$AF1750&'Data SBP Measures'!$AE1750& \" - \"& 'Data SBP Measures'!$U1750","v":"12-Hour AOD Education Class # of clients completingAlcohol & Drug Classes/Programs - 140"},{"$f":"_xlfn.XLOOKUP(VALUE(W1750),'Data SBP Programs'!O:O,'Data SBP Programs'!S:S)","v":"Alcohol & Drug Classes/Programs"}]
[{"$f":"'Data SBP Measures'!$AI574&\" - \"&'Data SBP Measures'!$U574","v":"Domestic Relations Office - 145"},{"$f":"'Data SBP Measures'!$AF574","v":"Number of DRO and OAG probationers supervised"},{"$f":"'Data SBP Measures'!$T574","v":"1637"},{"$f":"'Data SBP Measures'!$U574&B1753","v":"145Number of DRO and OAG probationers supervised"},{"$f":"'Data SBP Measures'!$Y574","v":"EACH"},null,null,null,null,null,"Domestic Relations Office - 145","Number of DRO and OAG probationers supervised",null,null,null,null,null,null,null,"2405","140","Y","269","Alcohol & Drug Classes/Programs","EACH","OUTPUT","BLACKBOOK",null,null,null,"Alcohol & Drug Classes/Programs","12-Hour AOD Education Class # In Spanish",null,{"$f":"'Data SBP Measures'!$AF1753&'Data SBP Measures'!$AE1753& \" - \"& 'Data SBP Measures'!$U1753","v":"12-Hour AOD Education Class # In SpanishAlcohol & Drug Classes/Programs - 140"},{"$f":"_xlfn.XLOOKUP(VALUE(W1753),'Data SBP Programs'!O:O,'Data SBP Programs'!S:S)","v":"Alcohol & Drug Classes/Programs"}]
[{"$f":"'Data SBP Measures'!$AI575&\" - \"&'Data SBP Measures'!$U575","v":"Domestic Relations Office - 145"},{"$f":"'Data SBP Measures'!$AF575","v":"Number of DRO and OAG probationers supervised"},{"$f":"'Data SBP Measures'!$T575","v":"1637"},{"$f":"'Data SBP Measures'!$U575&B1754","v":"145Number of DRO and OAG probationers supervised"},{"$f":"'Data SBP Measures'!$Y575","v":"EACH"},null,null,null,null,null,"Domestic Relations Office - 145","Number of DRO and OAG probationers supervised",null,null,null,null,null,null,null,"2406","140","Y","269","Alcohol & Drug Classes/Programs","EACH","OUTPUT","BLACKBOOK",null,null,null,"Alcohol & Drug Classes/Programs","6-Hour Minor In Possession # of clients registered",null,{"$f":"'Data SBP Measures'!$AF1754&'Data SBP Measures'!$AE1754& \" - \"& 'Data SBP Measures'!$U1754","v":"6-Hour Minor In Possession # of clients registeredAlcohol & Drug Classes/Programs - 140"},{"$f":"_xlfn.XLOOKUP(VALUE(W1754),'Data SBP Programs'!O:O,'Data SBP Programs'!S:S)","v":"Alcohol & Drug Classes/Programs"}]
[{"$f":"'Data SBP Measures'!$AI571&\" - \"&'Data SBP Measures'!$U571","v":"Domestic Relations Office - 145"},{"$f":"'Data SBP Measures'!$AF571","v":"Total Number of ICSS Cases"},{"$f":"'Data SBP Measures'!$T571","v":"1634"},{"$f":"'Data SBP Measures'!$U571&B1758","v":"145Total Number of ICSS Cases"},{"$f":"'Data SBP Measures'!$Y571","v":"EACH"},null,null,null,null,null,"Domestic Relations Office - 145","Total Number of ICSS Cases",null,null,null,null,null,null,null,"241","108","Y","24","Property Tax Collections","EACH","OUTPUT","ADOPTEDBUD",null,null,null,"Property Tax Collections","Taxpayer Telephone Calls Abandoned*",null,{"$f":"'Data SBP Measures'!$AF1758&'Data SBP Measures'!$AE1758& \" - \"& 'Data SBP Measures'!$U1758","v":"Taxpayer Telephone Calls Abandoned*Property Tax Collections - 108"},{"$f":"_xlfn.XLOOKUP(VALUE(W1758),'Data SBP Programs'!O:O,'Data SBP Programs'!S:S)","v":"Property Tax Collections"}]
[{"$f":"'Data SBP Measures'!$AI2062&\" - \"&'Data SBP Measures'!$U2062","v":"Economic & Strategic Planning - 109"},{"$f":"'Data SBP Measures'!$AF2062","v":"% annual survey respondents reporting satisfaction with divisional support, availability, and accessibility for space and program planning"},{"$f":"'Data SBP Measures'!$T2062","v":"2645"},{"$f":"'Data SBP Measures'!$U2062&B1759","v":"109% annual survey respondents reporting satisfaction with divisional support, availability, and accessibility for space and program planning"},{"$f":"'Data SBP Measures'!$Y2062","v":"PERCENT"},null,null,null,null,null,"Economic & Strategic Planning - 109","% annual survey respondents reporting satisfaction with divisional support, availability, and accessibility for space and program planning",null,null,null,null,null,null,null,"2410","140","Y","269","Alcohol & Drug Classes/Programs","EACH","OUTPUT","BLACKBOOK",null,null,null,"Alcohol & Drug Classes/Programs","8-Hour Public Intoxication # of clients registered",null,{"$f":"'Data SBP Measures'!$AF1759&'Data SBP Measures'!$AE1759& \" - \"& 'Data SBP Measures'!$U1759","v":"8-Hour Public Intoxication # of clients registeredAlcohol & Drug Classes/Programs - 140"},{"$f":"_xlfn.XLOOKUP(VALUE(W1759),'Data SBP Programs'!O:O,'Data SBP Programs'!S:S)","v":"Alcohol & Drug Classes/Programs"}]
[{"$f":"'Data SBP Measures'!$AI3011&\" - \"&'Data SBP Measures'!$U3011","v":"Economic & Strategic Planning - 109"},{"$f":"'Data SBP Measures'!$AF3011","v":"% of Facilities with a documented plan"},{"$f":"'Data SBP Measures'!$T3011","v":"40"},{"$f":"'Data SBP Measures'!$U3011&B1761","v":"109% of Facilities with a documented plan"},{"$f":"'Data SBP Measures'!$Y3011","v":"PERCENT"},null,null,null,null,null,"Economic & Strategic Planning - 109","% of Facilities with a documented plan",null,null,null,null,null,null,null,"2412","140","Y","269","Alcohol & Drug Classes/Programs","EACH","OUTPUT","BLACKBOOK",null,null,null,"Alcohol & Drug Classes/Programs","8-Hour Public Intoxication Total # of classes",null,{"$f":"'Data SBP Measures'!$AF1761&'Data SBP Measures'!$AE1761& \" - \"& 'Data SBP Measures'!$U1761","v":"8-Hour Public Intoxication Total # of classesAlcohol & Drug Classes/Programs - 140"},{"$f":"_xlfn.XLOOKUP(VALUE(W1761),'Data SBP Programs'!O:O,'Data SBP Programs'!S:S)","v":"Alcohol & Drug Classes/Programs"}]
[{"$f":"'Data SBP Measures'!$AI3013&\" - \"&'Data SBP Measures'!$U3013","v":"Economic & Strategic Planning - 109"},{"$f":"'Data SBP Measures'!$AF3013","v":"Total jobs required by Chapter 381 economic development agreements"},{"$f":"'Data SBP Measures'!$T3013","v":"42"},{"$f":"'Data SBP Measures'!$U3013&B1764","v":"109Total jobs required by Chapter 381 economic development agreements"},{"$f":"'Data SBP Measures'!$Y3013","v":"EACH"},null,null,null,null,null,"Economic & Strategic Planning - 109","Total jobs required by Chapter 381 economic development agreements",null,null,null,null,null,null,null,"2415","140","Y","269","Alcohol & Drug Classes/Programs","EACH","OUTPUT","BLACKBOOK",null,null,null,"Alcohol & Drug Classes/Programs","8-Hour Marijuana Total # of classes",null,{"$f":"'Data SBP Measures'!$AF1764&'Data SBP Measures'!$AE1764& \" - \"& 'Data SBP Measures'!$U1764","v":"8-Hour Marijuana Total # of classesAlcohol & Drug Classes/Programs - 140"},{"$f":"_xlfn.XLOOKUP(VALUE(W1764),'Data SBP Programs'!O:O,'Data SBP Programs'!S:S)","v":"Alcohol & Drug Classes/Programs"}]
[{"$f":"'Data SBP Measures'!$AI3129&\" - \"&'Data SBP Measures'!$U3129","v":"Elections Division - 120"},{"$f":"'Data SBP Measures'!$AF3129","v":"# of C&E reports received and processed"},{"$f":"'Data SBP Measures'!$T3129","v":"579"},{"$f":"'Data SBP Measures'!$U3129&B1767","v":"120# of C&E reports received and processed"},{"$f":"'Data SBP Measures'!$Y3129","v":"EACH"},null,null,null,null,null,"Elections Division - 120","# of C&E reports received and processed",null,null,null,null,null,null,null,"2418","140","Y","269","Alcohol & Drug Classes/Programs","EACH","OUTPUT","BLACKBOOK",null,null,null,"Alcohol & Drug Classes/Programs","45-Hour Cognitive Behavior  Total # of classes",null,{"$f":"'Data SBP Measures'!$AF1767&'Data SBP Measures'!$AE1767& \" - \"& 'Data SBP Measures'!$U1767","v":"45-Hour Cognitive Behavior  Total # of classesAlcohol & Drug Classes/Programs - 140"},{"$f":"_xlfn.XLOOKUP(VALUE(W1767),'Data SBP Programs'!O:O,'Data SBP Programs'!S:S)","v":"Alcohol & Drug Classes/Programs"}]
[{"$f":"'Data SBP Measures'!$AI3131&\" - \"&'Data SBP Measures'!$U3131","v":"Elections Division - 120"},{"$f":"'Data SBP Measures'!$AF3131","v":"# of customer assisted"},{"$f":"'Data SBP Measures'!$T3131","v":"582"},{"$f":"'Data SBP Measures'!$U3131&B1769","v":"120# of customer assisted"},{"$f":"'Data SBP Measures'!$Y3131","v":"EACH"},null,null,null,null,null,"Elections Division - 120","# of customer assisted",null,null,null,null,null,null,null,"242","108","Y","24","Property Tax Collections","EACH","OUTPUT","NEITHER",null,null,null,"Property Tax Collections","#Problem Accts Researched & Resolved (Mail & Referrals & Email)",null,{"$f":"'Data SBP Measures'!$AF1769&'Data SBP Measures'!$AE1769& \" - \"& 'Data SBP Measures'!$U1769","v":"#Problem Accts Researched & Resolved (Mail & Referrals & Email)Property Tax Collections - 108"},{"$f":"_xlfn.XLOOKUP(VALUE(W1769),'Data SBP Programs'!O:O,'Data SBP Programs'!S:S)","v":"Property Tax Collections"}]
[{"$f":"'Data SBP Measures'!$AI3122&\" - \"&'Data SBP Measures'!$U3122","v":"Elections Division - 120"},{"$f":"'Data SBP Measures'!$AF3122","v":"# of ED voters"},{"$f":"'Data SBP Measures'!$T3122","v":"572"},{"$f":"'Data SBP Measures'!$U3122&B1772","v":"120# of ED voters"},{"$f":"'Data SBP Measures'!$Y3122","v":"EACH"},null,null,null,null,null,"Elections Division - 120","# of ED voters",null,null,null,null,null,null,null,"2422","140","Y","269","Alcohol & Drug Classes/Programs","PERCENT","OUTCOME","BLACKBOOK",null,null,null,"Alcohol & Drug Classes/Programs","% of client’s stated scheduling for the class was convenient.",null,{"$f":"'Data SBP Measures'!$AF1772&'Data SBP Measures'!$AE1772& \" - \"& 'Data SBP Measures'!$U1772","v":"% of client’s stated scheduling for the class was convenient.Alcohol & Drug Classes/Programs - 140"},{"$f":"_xlfn.XLOOKUP(VALUE(W1772),'Data SBP Programs'!O:O,'Data SBP Programs'!S:S)","v":"Alcohol & Drug Classes/Programs"}]
[{"$f":"'Data SBP Measures'!$AI3112&\" - \"&'Data SBP Measures'!$U3112","v":"Elections Division - 120"},{"$f":"'Data SBP Measures'!$AF3112","v":"# of ED workers trained"},{"$f":"'Data SBP Measures'!$T3112","v":"561"},{"$f":"'Data SBP Measures'!$U3112&B1773","v":"120# of ED workers trained"},{"$f":"'Data SBP Measures'!$Y3112","v":"EACH"},null,null,null,null,null,"Elections Division - 120","# of ED workers trained",null,null,null,null,null,null,null,"2423","140","Y","265","Adult Education Classes","EACH","OUTPUT","BLACKBOOK",null,null,null,"Adult Education Classes","12-Hour Cognitive Life Skills I (CL1) # of clients referred to class",null,{"$f":"'Data SBP Measures'!$AF1773&'Data SBP Measures'!$AE1773& \" - \"& 'Data SBP Measures'!$U1773","v":"12-Hour Cognitive Life Skills I (CL1) # of clients referred to classAdult Education Classes - 140"},{"$f":"_xlfn.XLOOKUP(VALUE(W1773),'Data SBP Programs'!O:O,'Data SBP Programs'!S:S)","v":"Adult Education Classes"}]
[{"$f":"'Data SBP Measures'!$AI3111&\" - \"&'Data SBP Measures'!$U3111","v":"Elections Division - 120"},{"$f":"'Data SBP Measures'!$AF3111","v":"# of EV poll workers  recruited, assigned and confirmed"},{"$f":"'Data SBP Measures'!$T3111","v":"560"},{"$f":"'Data SBP Measures'!$U3111&B1777","v":"120# of EV poll workers  recruited, assigned and confirmed"},{"$f":"'Data SBP Measures'!$Y3111","v":"EACH"},null,null,null,null,null,"Elections Division - 120","# of EV poll workers  recruited, assigned and confirmed",null,null,null,null,null,null,null,"2424","140","Y","265","Adult Education Classes","EACH","OUTPUT","BLACKBOOK",null,null,null,"Adult Education Classes","12-Hour Cognitive Life Skills I (CL1) # of clients completing",null,{"$f":"'Data SBP Measures'!$AF1777&'Data SBP Measures'!$AE1777& \" - \"& 'Data SBP Measures'!$U1777","v":"12-Hour Cognitive Life Skills I (CL1) # of clients completingAdult Education Classes - 140"},{"$f":"_xlfn.XLOOKUP(VALUE(W1777),'Data SBP Programs'!O:O,'Data SBP Programs'!S:S)","v":"Adult Education Classes"}]
[{"$f":"'Data SBP Measures'!$AI3117&\" - \"&'Data SBP Measures'!$U3117","v":"Elections Division - 120"},{"$f":"'Data SBP Measures'!$AF3117","v":"# of EV voters"},{"$f":"'Data SBP Measures'!$T3117","v":"567"},{"$f":"'Data SBP Measures'!$U3117&B1778","v":"120# of EV voters"},{"$f":"'Data SBP Measures'!$Y3117","v":"EACH"},null,null,null,null,null,"Elections Division - 120","# of EV voters",null,null,null,null,null,null,null,"2424","140","Y","265","Adult Education Classes","EACH","OUTPUT","BLACKBOOK",null,null,null,"Adult Education Classes","12-Hour Cognitive Life Skills I (CL1) # of clients completing",null,{"$f":"'Data SBP Measures'!$AF1778&'Data SBP Measures'!$AE1778& \" - \"& 'Data SBP Measures'!$U1778","v":"12-Hour Cognitive Life Skills I (CL1) # of clients completingAdult Education Classes - 140"},{"$f":"_xlfn.XLOOKUP(VALUE(W1778),'Data SBP Programs'!O:O,'Data SBP Programs'!S:S)","v":"Adult Education Classes"}]
[{"$f":"'Data SBP Measures'!$AI3132&\" - \"&'Data SBP Measures'!$U3132","v":"Elections Division - 120"},{"$f":"'Data SBP Measures'!$AF3132","v":"# of financial statements processed and published"},{"$f":"'Data SBP Measures'!$T3132","v":"583"},{"$f":"'Data SBP Measures'!$U3132&B1780","v":"120# of financial statements processed and published"},{"$f":"'Data SBP Measures'!$Y3132","v":"EACH"},null,null,null,null,null,"Elections Division - 120","# of financial statements processed and published",null,null,null,null,null,null,null,"2425","140","Y","265","Adult Education Classes","EACH","OUTPUT","BLACKBOOK",null,null,null,"Adult Education Classes","12-Hour Cognitive Life Skills I (CL1) # of classes",null,{"$f":"'Data SBP Measures'!$AF1780&'Data SBP Measures'!$AE1780& \" - \"& 'Data SBP Measures'!$U1780","v":"12-Hour Cognitive Life Skills I (CL1) # of classesAdult Education Classes - 140"},{"$f":"_xlfn.XLOOKUP(VALUE(W1780),'Data SBP Programs'!O:O,'Data SBP Programs'!S:S)","v":"Adult Education Classes"}]
[{"$f":"'Data SBP Measures'!$AI3113&\" - \"&'Data SBP Measures'!$U3113","v":"Elections Division - 120"},{"$f":"'Data SBP Measures'!$AF3113","v":"# of hrs between polls closing and release of results (average)"},{"$f":"'Data SBP Measures'!$T3113","v":"562"},{"$f":"'Data SBP Measures'!$U3113&B1783","v":"120# of hrs between polls closing and release of results (average)"},{"$f":"'Data SBP Measures'!$Y3113","v":"HOURS"},null,null,null,null,null,"Elections Division - 120","# of hrs between polls closing and release of results (average)",null,null,null,null,null,null,null,"2426","140","Y","265","Adult Education Classes","EACH","OUTPUT","BLACKBOOK",null,null,null,"Adult Education Classes","8-Hour Prostitution Deterrent Solication class (John Class) # of client referred to class",null,{"$f":"'Data SBP Measures'!$AF1783&'Data SBP Measures'!$AE1783& \" - \"& 'Data SBP Measures'!$U1783","v":"8-Hour Prostitution Deterrent Solication class (John Class) # of client referred to classAdult Education Classes - 140"},{"$f":"_xlfn.XLOOKUP(VALUE(W1783),'Data SBP Programs'!O:O,'Data SBP Programs'!S:S)","v":"Adult Education Classes"}]
[{"$f":"'Data SBP Measures'!$AI3126&\" - \"&'Data SBP Measures'!$U3126","v":"Elections Division - 120"},{"$f":"'Data SBP Measures'!$AF3126","v":"# of hrs spent on EV and ED vote history verification"},{"$f":"'Data SBP Measures'!$T3126","v":"576"},{"$f":"'Data SBP Measures'!$U3126&B1786","v":"120# of hrs spent on EV and ED vote history verification"},{"$f":"'Data SBP Measures'!$Y3126","v":"HOURS"},null,null,null,null,null,"Elections Division - 120","# of hrs spent on EV and ED vote history verification",null,null,null,null,null,null,null,"2427","140","Y","265","Adult Education Classes","EACH","OUTPUT","BLACKBOOK",null,null,null,"Adult Education Classes","8-Hour Prostitution Deterrent Solication class (John Class) # of client completing",null,{"$f":"'Data SBP Measures'!$AF1786&'Data SBP Measures'!$AE1786& \" - \"& 'Data SBP Measures'!$U1786","v":"8-Hour Prostitution Deterrent Solication class (John Class) # of client completingAdult Education Classes - 140"},{"$f":"_xlfn.XLOOKUP(VALUE(W1786),'Data SBP Programs'!O:O,'Data SBP Programs'!S:S)","v":"Adult Education Classes"}]
[{"$f":"'Data SBP Measures'!$AI3114&\" - \"&'Data SBP Measures'!$U3114","v":"Elections Division - 120"},{"$f":"'Data SBP Measures'!$AF3114","v":"# of hrs spent prep ED training materials"},{"$f":"'Data SBP Measures'!$T3114","v":"563"},{"$f":"'Data SBP Measures'!$U3114&B1788","v":"120# of hrs spent prep ED training materials"},{"$f":"'Data SBP Measures'!$Y3114","v":"HOURS"},null,null,null,null,null,"Elections Division - 120","# of hrs spent prep ED training materials",null,null,null,null,null,null,null,"2428","140","Y","265","Adult Education Classes","EACH","OUTPUT","BLACKBOOK",null,null,null,"Adult Education Classes","8-Hour Prostitution Deterrent Solication class (John Class) Total # of classes",null,{"$f":"'Data SBP Measures'!$AF1788&'Data SBP Measures'!$AE1788& \" - \"& 'Data SBP Measures'!$U1788","v":"8-Hour Prostitution Deterrent Solication class (John Class) Total # of classesAdult Education Classes - 140"},{"$f":"_xlfn.XLOOKUP(VALUE(W1788),'Data SBP Programs'!O:O,'Data SBP Programs'!S:S)","v":"Adult Education Classes"}]
[{"$f":"'Data SBP Measures'!$AI3101&\" - \"&'Data SBP Measures'!$U3101","v":"Elections Division - 120"},{"$f":"'Data SBP Measures'!$AF3101","v":"# of hrs spent preparing training materials"},{"$f":"'Data SBP Measures'!$T3101","v":"549"},{"$f":"'Data SBP Measures'!$U3101&B1791","v":"120# of hrs spent preparing training materials"},{"$f":"'Data SBP Measures'!$Y3101","v":"HOURS"},null,null,null,null,null,"Elections Division - 120","# of hrs spent preparing training materials",null,null,null,null,null,null,null,"2429","140","Y","265","Adult Education Classes","EACH","OUTPUT","BLACKBOOK",null,null,null,"Adult Education Classes","8-Hour Prostitution Deterrent Solication class (John Class)  # In English",null,{"$f":"'Data SBP Measures'!$AF1791&'Data SBP Measures'!$AE1791& \" - \"& 'Data SBP Measures'!$U1791","v":"8-Hour Prostitution Deterrent Solication class (John Class)  # In EnglishAdult Education Classes - 140"},{"$f":"_xlfn.XLOOKUP(VALUE(W1791),'Data SBP Programs'!O:O,'Data SBP Programs'!S:S)","v":"Adult Education Classes"}]
[{"$f":"'Data SBP Measures'!$AI3102&\" - \"&'Data SBP Measures'!$U3102","v":"Elections Division - 120"},{"$f":"'Data SBP Measures'!$AF3102","v":"# of hrs spent preparing voting materials"},{"$f":"'Data SBP Measures'!$T3102","v":"550"},{"$f":"'Data SBP Measures'!$U3102&B1792","v":"120# of hrs spent preparing voting materials"},{"$f":"'Data SBP Measures'!$Y3102","v":"HOURS"},null,null,null,null,null,"Elections Division - 120","# of hrs spent preparing voting materials",null,null,null,null,null,null,null,"2429","140","Y","265","Adult Education Classes","EACH","OUTPUT","BLACKBOOK",null,null,null,"Adult Education Classes","8-Hour Prostitution Deterrent Solication class (John Class)  # In English",null,{"$f":"'Data SBP Measures'!$AF1792&'Data SBP Measures'!$AE1792& \" - \"& 'Data SBP Measures'!$U1792","v":"8-Hour Prostitution Deterrent Solication class (John Class)  # In EnglishAdult Education Classes - 140"},{"$f":"_xlfn.XLOOKUP(VALUE(W1792),'Data SBP Programs'!O:O,'Data SBP Programs'!S:S)","v":"Adult Education Classes"}]
[{"$f":"'Data SBP Measures'!$AI3125&\" - \"&'Data SBP Measures'!$U3125","v":"Elections Division - 120"},{"$f":"'Data SBP Measures'!$AF3125","v":"# of hrs to configure, troubleshoot and maintain voting equipment"},{"$f":"'Data SBP Measures'!$T3125","v":"575"},{"$f":"'Data SBP Measures'!$U3125&B1796","v":"120# of hrs to configure, troubleshoot and maintain voting equipment"},{"$f":"'Data SBP Measures'!$Y3125","v":"HOURS"},null,null,null,null,null,"Elections Division - 120","# of hrs to configure, troubleshoot and maintain voting equipment",null,null,null,null,null,null,null,"2433","139","Y","264","Adult Probation CSCD","PERCENT","OUTCOME","ADOPTEDBUD",null,null,null,"Adult Probation CSCD","Felony technical violations rate",null,{"$f":"'Data SBP Measures'!$AF1796&'Data SBP Measures'!$AE1796& \" - \"& 'Data SBP Measures'!$U1796","v":"Felony technical violations rateAdult Probation CSCD - 139"},{"$f":"_xlfn.XLOOKUP(VALUE(W1796),'Data SBP Programs'!O:O,'Data SBP Programs'!S:S)","v":"Adult Probation CSCD"}]
[{"$f":"'Data SBP Measures'!$AI3096&\" - \"&'Data SBP Measures'!$U3096","v":"Elections Division - 120"},{"$f":"'Data SBP Measures'!$AF3096","v":"# of Mail apps received and processed"},{"$f":"'Data SBP Measures'!$T3096","v":"540"},{"$f":"'Data SBP Measures'!$U3096&B1797","v":"120# of Mail apps received and processed"},{"$f":"'Data SBP Measures'!$Y3096","v":"EACH"},null,null,null,null,null,"Elections Division - 120","# of Mail apps received and processed",null,null,null,null,null,null,null,"2434","139","Y","264","Adult Probation CSCD","PERCENT","OUTCOME","ADOPTEDBUD",null,null,null,"Adult Probation CSCD","Statewide Felony technical violations rate",null,{"$f":"'Data SBP Measures'!$AF1797&'Data SBP Measures'!$AE1797& \" - \"& 'Data SBP Measures'!$U1797","v":"Statewide Felony technical violations rateAdult Probation CSCD - 139"},{"$f":"_xlfn.XLOOKUP(VALUE(W1797),'Data SBP Programs'!O:O,'Data SBP Programs'!S:S)","v":"Adult Probation CSCD"}]
[{"$f":"'Data SBP Measures'!$AI3141&\" - \"&'Data SBP Measures'!$U3141","v":"Elections Division - 120"},{"$f":"'Data SBP Measures'!$AF3141","v":"# of mandated elections held"},{"$f":"'Data SBP Measures'!$T3141","v":"593"},{"$f":"'Data SBP Measures'!$U3141&B1799","v":"120# of mandated elections held"},{"$f":"'Data SBP Measures'!$Y3141","v":"EACH"},null,null,null,null,null,"Elections Division - 120","# of mandated elections held",null,null,null,null,null,null,null,"2437","142","Y","272","Investigations","EACH","INPUT","ADOPTEDBUD",null,null,null,"Investigations","Number of Personal Bond interviews conducted",null,{"$f":"'Data SBP Measures'!$AF1799&'Data SBP Measures'!$AE1799& \" - \"& 'Data SBP Measures'!$U1799","v":"Number of Personal Bond interviews conductedInvestigations - 142"},{"$f":"_xlfn.XLOOKUP(VALUE(W1799),'Data SBP Programs'!O:O,'Data SBP Programs'!S:S)","v":"Investigations"}]
[{"$f":"'Data SBP Measures'!$AI3119&\" - \"&'Data SBP Measures'!$U3119","v":"Elections Division - 120"},{"$f":"'Data SBP Measures'!$AF3119","v":"# of precincts involved in elections"},{"$f":"'Data SBP Measures'!$T3119","v":"569"},{"$f":"'Data SBP Measures'!$U3119&B1802","v":"120# of precincts involved in elections"},{"$f":"'Data SBP Measures'!$Y3119","v":"EACH"},null,null,null,null,null,"Elections Division - 120","# of precincts involved in elections",null,null,null,null,null,null,null,"245","108","Y","24","Property Tax Collections","EACH","OUTPUT","NEITHER",null,null,null,"Property Tax Collections","Parcels Required Additional Time to Pay because of Value Dispute",null,{"$f":"'Data SBP Measures'!$AF1802&'Data SBP Measures'!$AE1802& \" - \"& 'Data SBP Measures'!$U1802","v":"Parcels Required Additional Time to Pay because of Value DisputeProperty Tax Collections - 108"},{"$f":"_xlfn.XLOOKUP(VALUE(W1802),'Data SBP Programs'!O:O,'Data SBP Programs'!S:S)","v":"Property Tax Collections"}]
[{"$f":"'Data SBP Measures'!$AI3121&\" - \"&'Data SBP Measures'!$U3121","v":"Elections Division - 120"},{"$f":"'Data SBP Measures'!$AF3121","v":"# of total Ballots processed"},{"$f":"'Data SBP Measures'!$T3121","v":"571"},{"$f":"'Data SBP Measures'!$U3121&B1805","v":"120# of total Ballots processed"},{"$f":"'Data SBP Measures'!$Y3121","v":"EACH"},null,null,null,null,null,"Elections Division - 120","# of total Ballots processed",null,null,null,null,null,null,null,"2452","142","Y","270","Case Management","EACH","INPUT","ADOPTEDBUD",null,null,null,"Case Management","Domestic Violence Cases",null,{"$f":"'Data SBP Measures'!$AF1805&'Data SBP Measures'!$AE1805& \" - \"& 'Data SBP Measures'!$U1805","v":"Domestic Violence CasesCase Management - 142"},{"$f":"_xlfn.XLOOKUP(VALUE(W1805),'Data SBP Programs'!O:O,'Data SBP Programs'!S:S)","v":"Case Management"}]
[{"$f":"'Data SBP Measures'!$AI3140&\" - \"&'Data SBP Measures'!$U3140","v":"Elections Division - 120"},{"$f":"'Data SBP Measures'!$AF3140","v":"Contracts negotiated for elections services and/or equipment"},{"$f":"'Data SBP Measures'!$T3140","v":"592"},{"$f":"'Data SBP Measures'!$U3140&B1807","v":"120Contracts negotiated for elections services and/or equipment"},{"$f":"'Data SBP Measures'!$Y3140","v":"EACH"},null,null,null,null,null,"Elections Division - 120","Contracts negotiated for elections services and/or equipment",null,null,null,null,null,null,null,"2454","142","Y","270","Case Management","EACH","INPUT","ADOPTEDBUD",null,null,null,"Case Management","Supervision Cases",null,{"$f":"'Data SBP Measures'!$AF1807&'Data SBP Measures'!$AE1807& \" - \"& 'Data SBP Measures'!$U1807","v":"Supervision CasesCase Management - 142"},{"$f":"_xlfn.XLOOKUP(VALUE(W1807),'Data SBP Programs'!O:O,'Data SBP Programs'!S:S)","v":"Case Management"}]
[{"$f":"'Data SBP Measures'!$AI3116&\" - \"&'Data SBP Measures'!$U3116","v":"Elections Division - 120"},{"$f":"'Data SBP Measures'!$AF3116","v":"Hrs. inspect and prepare, deliver & pick up equip & materials"},{"$f":"'Data SBP Measures'!$T3116","v":"566"},{"$f":"'Data SBP Measures'!$U3116&B1810","v":"120Hrs. inspect and prepare, deliver & pick up equip & materials"},{"$f":"'Data SBP Measures'!$Y3116","v":"HOURS"},null,null,null,null,null,"Elections Division - 120","Hrs. inspect and prepare, deliver & pick up equip & materials",null,null,null,null,null,null,null,"2457","142","Y","270","Case Management","EACH","EFFICIENCY","ADOPTEDBUD",null,null,null,"Case Management","Domestic Violence Caseload per Officer",null,{"$f":"'Data SBP Measures'!$AF1810&'Data SBP Measures'!$AE1810& \" - \"& 'Data SBP Measures'!$U1810","v":"Domestic Violence Caseload per OfficerCase Management - 142"},{"$f":"_xlfn.XLOOKUP(VALUE(W1810),'Data SBP Programs'!O:O,'Data SBP Programs'!S:S)","v":"Case Management"}]
[{"$f":"'Data SBP Measures'!$AI3142&\" - \"&'Data SBP Measures'!$U3142","v":"Elections Division - 120"},{"$f":"'Data SBP Measures'!$AF3142","v":"Other elections held"},{"$f":"'Data SBP Measures'!$T3142","v":"594"},{"$f":"'Data SBP Measures'!$U3142&B1811","v":"120Other elections held"},{"$f":"'Data SBP Measures'!$Y3142","v":"EACH"},null,null,null,null,null,"Elections Division - 120","Other elections held",null,null,null,null,null,null,null,"2458","142","Y","270","Case Management","EACH","EFFICIENCY","ADOPTEDBUD",null,null,null,"Case Management","Mental Health Caseload per Officer",null,{"$f":"'Data SBP Measures'!$AF1811&'Data SBP Measures'!$AE1811& \" - \"& 'Data SBP Measures'!$U1811","v":"Mental Health Caseload per OfficerCase Management - 142"},{"$f":"_xlfn.XLOOKUP(VALUE(W1811),'Data SBP Programs'!O:O,'Data SBP Programs'!S:S)","v":"Case Management"}]
[{"$f":"'Data SBP Measures'!$AI2380&\" - \"&'Data SBP Measures'!$U2380","v":"Emergency Management - 147"},{"$f":"'Data SBP Measures'!$AF2380","v":"Community preparedness surveys conducted"},{"$f":"'Data SBP Measures'!$T2380","v":"2953"},{"$f":"'Data SBP Measures'!$U2380&B1815","v":"147Community preparedness surveys conducted"},{"$f":"'Data SBP Measures'!$Y2380","v":"EACH"},null,null,null,null,null,"Emergency Management - 147","Community preparedness surveys conducted",null,null,null,null,null,null,null,"2461","142","Y","271","Specialty Courts","EACH","INPUT","ADOPTEDBUD",null,null,null,"Specialty Courts","Drug Ct - Number of new enrollments in the program",null,{"$f":"'Data SBP Measures'!$AF1815&'Data SBP Measures'!$AE1815& \" - \"& 'Data SBP Measures'!$U1815","v":"Drug Ct - Number of new enrollments in the programSpecialty Courts - 142"},{"$f":"_xlfn.XLOOKUP(VALUE(W1815),'Data SBP Programs'!O:O,'Data SBP Programs'!S:S)","v":"Specialty Courts"}]
[{"$f":"'Data SBP Measures'!$AI2381&\" - \"&'Data SBP Measures'!$U2381","v":"Emergency Management - 147"},{"$f":"'Data SBP Measures'!$AF2381","v":"County personnel achieved NIMS training compliance"},{"$f":"'Data SBP Measures'!$T2381","v":"2954"},{"$f":"'Data SBP Measures'!$U2381&B1816","v":"147County personnel achieved NIMS training compliance"},{"$f":"'Data SBP Measures'!$Y2381","v":"PERCENT"},null,null,null,null,null,"Emergency Management - 147","County personnel achieved NIMS training compliance",null,null,null,null,null,null,null,"2462","142","Y","271","Specialty Courts","EACH","OUTPUT","ADOPTEDBUD",null,null,null,"Specialty Courts","Drug Ct - Number of participants served in the program",null,{"$f":"'Data SBP Measures'!$AF1816&'Data SBP Measures'!$AE1816& \" - \"& 'Data SBP Measures'!$U1816","v":"Drug Ct - Number of participants served in the programSpecialty Courts - 142"},{"$f":"_xlfn.XLOOKUP(VALUE(W1816),'Data SBP Programs'!O:O,'Data SBP Programs'!S:S)","v":"Specialty Courts"}]
[{"$f":"'Data SBP Measures'!$AI2379&\" - \"&'Data SBP Measures'!$U2379","v":"Emergency Management - 147"},{"$f":"'Data SBP Measures'!$AF2379","v":"Emergency management related training deliveries given or arranged"},{"$f":"'Data SBP Measures'!$T2379","v":"2952"},{"$f":"'Data SBP Measures'!$U2379&B1818","v":"147Emergency management related training deliveries given or arranged"},{"$f":"'Data SBP Measures'!$Y2379","v":"EACH"},null,null,null,null,null,"Emergency Management - 147","Emergency management related training deliveries given or arranged",null,null,null,null,null,null,null,"2464","142","Y","271","Specialty Courts","EACH","INPUT","ADOPTEDBUD",null,null,null,"Specialty Courts","DWI Ct - Number assessed to participate in the program",null,{"$f":"'Data SBP Measures'!$AF1818&'Data SBP Measures'!$AE1818& \" - \"& 'Data SBP Measures'!$U1818","v":"DWI Ct - Number assessed to participate in the programSpecialty Courts - 142"},{"$f":"_xlfn.XLOOKUP(VALUE(W1818),'Data SBP Programs'!O:O,'Data SBP Programs'!S:S)","v":"Specialty Courts"}]
[{"$f":"'Data SBP Measures'!$AI2384&\" - \"&'Data SBP Measures'!$U2384","v":"Emergency Management - 147"},{"$f":"'Data SBP Measures'!$AF2384","v":"Local Emergency Planning Committee inquiries received"},{"$f":"'Data SBP Measures'!$T2384","v":"2957"},{"$f":"'Data SBP Measures'!$U2384&B1821","v":"147Local Emergency Planning Committee inquiries received"},{"$f":"'Data SBP Measures'!$Y2384","v":"EACH"},null,null,null,null,null,"Emergency Management - 147","Local Emergency Planning Committee inquiries received",null,null,null,null,null,null,null,"2467","142","Y","271","Specialty Courts","PERCENT","OUTCOME","ADOPTEDBUD",null,null,null,"Specialty Courts","DWI Ct - Percentage that successfully complete the program",null,{"$f":"'Data SBP Measures'!$AF1821&'Data SBP Measures'!$AE1821& \" - \"& 'Data SBP Measures'!$U1821","v":"DWI Ct - Percentage that successfully complete the programSpecialty Courts - 142"},{"$f":"_xlfn.XLOOKUP(VALUE(W1821),'Data SBP Programs'!O:O,'Data SBP Programs'!S:S)","v":"Specialty Courts"}]
[{"$f":"'Data SBP Measures'!$AI1477&\" - \"&'Data SBP Measures'!$U1477","v":"Emissions Task Force - 133"},{"$f":"'Data SBP Measures'!$AF1477","v":"Registration Violations"},{"$f":"'Data SBP Measures'!$T1477","v":"2276"},{"$f":"'Data SBP Measures'!$U1477&B1824","v":"133Registration Violations"},{"$f":"'Data SBP Measures'!$Y1477","v":"EACH"},null,null,null,null,null,"Emissions Task Force - 133","Registration Violations",null,null,null,null,null,null,null,"2469","143","Y","273","Juvenile Public Defender","EACH","INPUT","ADOPTEDBUD",null,null,null,"Juvenile Public Defender","Number of cases represented by the Juvenile Public Defender",null,{"$f":"'Data SBP Measures'!$AF1824&'Data SBP Measures'!$AE1824& \" - \"& 'Data SBP Measures'!$U1824","v":"Number of cases represented by the Juvenile Public DefenderJuvenile Public Defender - 143"},{"$f":"_xlfn.XLOOKUP(VALUE(W1824),'Data SBP Programs'!O:O,'Data SBP Programs'!S:S)","v":"Juvenile Public Defender"}]
[{"$f":"'Data SBP Measures'!$AI682&\" - \"&'Data SBP Measures'!$U682","v":"Employee Health Benefit - 111"},{"$f":"'Data SBP Measures'!$AF682","v":"Cost of Healthcare per Retirees EE"},{"$f":"'Data SBP Measures'!$T682","v":"1730"},{"$f":"'Data SBP Measures'!$U682&B1826","v":"111Cost of Healthcare per Retirees EE"},{"$f":"'Data SBP Measures'!$Y682","v":"DOLLARS"},null,null,null,null,null,"Employee Health Benefit - 111","Cost of Healthcare per Retirees EE",null,null,null,null,null,null,null,"247","108","Y","24","Property Tax Collections","EACH","OUTPUT","NEITHER",null,null,null,"Property Tax Collections","Negotiated Lawsuit Partial Pay Agreements",null,{"$f":"'Data SBP Measures'!$AF1826&'Data SBP Measures'!$AE1826& \" - \"& 'Data SBP Measures'!$U1826","v":"Negotiated Lawsuit Partial Pay AgreementsProperty Tax Collections - 108"},{"$f":"_xlfn.XLOOKUP(VALUE(W1826),'Data SBP Programs'!O:O,'Data SBP Programs'!S:S)","v":"Property Tax Collections"}]
[{"$f":"'Data SBP Measures'!$AI78&\" - \"&'Data SBP Measures'!$U78","v":"engAGE Travis County - 158"},{"$f":"'Data SBP Measures'!$AF78","v":"Added dollar value of volunteer support to agencies"},{"$f":"'Data SBP Measures'!$T78","v":"1106"},{"$f":"'Data SBP Measures'!$U78&B1829","v":"158Added dollar value of volunteer support to agencies"},{"$f":"'Data SBP Measures'!$Y78","v":"DOLLARS"},null,null,null,null,null,"engAGE Travis County - 158","Added dollar value of volunteer support to agencies",null,null,null,null,null,null,null,"2471","143","Y","273","Juvenile Public Defender","HOURS","OUTPUT","ADOPTEDBUD",null,null,null,"Juvenile Public Defender","Hours of continuining legal education hours sponsored",null,{"$f":"'Data SBP Measures'!$AF1829&'Data SBP Measures'!$AE1829& \" - \"& 'Data SBP Measures'!$U1829","v":"Hours of continuining legal education hours sponsoredJuvenile Public Defender - 143"},{"$f":"_xlfn.XLOOKUP(VALUE(W1829),'Data SBP Programs'!O:O,'Data SBP Programs'!S:S)","v":"Juvenile Public Defender"}]
[{"$f":"'Data SBP Measures'!$AI79&\" - \"&'Data SBP Measures'!$U79","v":"engAGE Travis County - 158"},{"$f":"'Data SBP Measures'!$AF79","v":"Number of active volunteers"},{"$f":"'Data SBP Measures'!$T79","v":"1107"},{"$f":"'Data SBP Measures'!$U79&B1830","v":"158Number of active volunteers"},{"$f":"'Data SBP Measures'!$Y79","v":"EACH"},null,null,null,null,null,"engAGE Travis County - 158","Number of active volunteers",null,null,null,null,null,null,null,"2471","143","Y","273","Juvenile Public Defender","HOURS","OUTPUT","ADOPTEDBUD",null,null,null,"Juvenile Public Defender","Hours of continuining legal education hours sponsored",null,{"$f":"'Data SBP Measures'!$AF1830&'Data SBP Measures'!$AE1830& \" - \"& 'Data SBP Measures'!$U1830","v":"Hours of continuining legal education hours sponsoredJuvenile Public Defender - 143"},{"$f":"_xlfn.XLOOKUP(VALUE(W1830),'Data SBP Programs'!O:O,'Data SBP Programs'!S:S)","v":"Juvenile Public Defender"}]
[{"$f":"'Data SBP Measures'!$AI524&\" - \"&'Data SBP Measures'!$U524","v":"Enterprise Infrastructure Services - 112"},{"$f":"'Data SBP Measures'!$AF524","v":"% of AIM Restored – Priority 2 Incidents"},{"$f":"'Data SBP Measures'!$T524","v":"1580"},{"$f":"'Data SBP Measures'!$U524&B1834","v":"112% of AIM Restored – Priority 2 Incidents"},{"$f":"'Data SBP Measures'!$Y524","v":"PERCENT"},null,null,null,null,null,"Enterprise Infrastructure Services - 112","% of AIM Restored – Priority 2 Incidents",null,null,null,null,null,null,null,"2472","143","Y","273","Juvenile Public Defender","EACH","EFFICIENCY","ADOPTEDBUD",null,null,null,"Juvenile Public Defender","Average number of cases per attorney",null,{"$f":"'Data SBP Measures'!$AF1834&'Data SBP Measures'!$AE1834& \" - \"& 'Data SBP Measures'!$U1834","v":"Average number of cases per attorneyJuvenile Public Defender - 143"},{"$f":"_xlfn.XLOOKUP(VALUE(W1834),'Data SBP Programs'!O:O,'Data SBP Programs'!S:S)","v":"Juvenile Public Defender"}]
[{"$f":"'Data SBP Measures'!$AI532&\" - \"&'Data SBP Measures'!$U532","v":"Enterprise Infrastructure Services - 112"},{"$f":"'Data SBP Measures'!$AF532","v":"% of AIM Restored – Priority 3 Incidents"},{"$f":"'Data SBP Measures'!$T532","v":"1589"},{"$f":"'Data SBP Measures'!$U532&B1835","v":"112% of AIM Restored – Priority 3 Incidents"},{"$f":"'Data SBP Measures'!$Y532","v":"PERCENT"},null,null,null,null,null,"Enterprise Infrastructure Services - 112","% of AIM Restored – Priority 3 Incidents",null,null,null,null,null,null,null,"2473","112","Y","301","Privacy Office\n","PERCENT","OUTCOME","ADOPTEDBUD",null,null,null,"Privacy Office\n","% employees trained within required 30-day timeframe",null,{"$f":"'Data SBP Measures'!$AF1835&'Data SBP Measures'!$AE1835& \" - \"& 'Data SBP Measures'!$U1835","v":"% employees trained within required 30-day timeframePrivacy Office\n - 112"},{"$f":"_xlfn.XLOOKUP(VALUE(W1835),'Data SBP Programs'!O:O,'Data SBP Programs'!S:S)","v":"Privacy Office\n"}]
[{"$f":"'Data SBP Measures'!$AI537&\" - \"&'Data SBP Measures'!$U537","v":"Enterprise Infrastructure Services - 112"},{"$f":"'Data SBP Measures'!$AF537","v":"% of LAN/WAN Resolved – Priority 4 Incidents"},{"$f":"'Data SBP Measures'!$T537","v":"1595"},{"$f":"'Data SBP Measures'!$U537&B1837","v":"112% of LAN/WAN Resolved – Priority 4 Incidents"},{"$f":"'Data SBP Measures'!$Y537","v":"PERCENT"},null,null,null,null,null,"Enterprise Infrastructure Services - 112","% of LAN/WAN Resolved – Priority 4 Incidents",null,null,null,null,null,null,null,"2486","147","Y","276","Fire Marshal","EACH","OUTPUT","ADOPTEDBUD",null,null,null,"Fire Marshal","Number of Fires Investigated",null,{"$f":"'Data SBP Measures'!$AF1837&'Data SBP Measures'!$AE1837& \" - \"& 'Data SBP Measures'!$U1837","v":"Number of Fires InvestigatedFire Marshal - 147"},{"$f":"_xlfn.XLOOKUP(VALUE(W1837),'Data SBP Programs'!O:O,'Data SBP Programs'!S:S)","v":"Fire Marshal"}]
[{"$f":"'Data SBP Measures'!$AI529&\" - \"&'Data SBP Measures'!$U529","v":"Enterprise Infrastructure Services - 112"},{"$f":"'Data SBP Measures'!$AF529","v":"% of LAN/WAN Restored – Priority 3 Incidents"},{"$f":"'Data SBP Measures'!$T529","v":"1586"},{"$f":"'Data SBP Measures'!$U529&B1840","v":"112% of LAN/WAN Restored – Priority 3 Incidents"},{"$f":"'Data SBP Measures'!$Y529","v":"PERCENT"},null,null,null,null,null,"Enterprise Infrastructure Services - 112","% of LAN/WAN Restored – Priority 3 Incidents",null,null,null,null,null,null,null,"249","108","Y","24","Property Tax Collections","EACH","OUTPUT","NEITHER",null,null,null,"Property Tax Collections","Partial Pay Agreement ACH Contract",null,{"$f":"'Data SBP Measures'!$AF1840&'Data SBP Measures'!$AE1840& \" - \"& 'Data SBP Measures'!$U1840","v":"Partial Pay Agreement ACH ContractProperty Tax Collections - 108"},{"$f":"_xlfn.XLOOKUP(VALUE(W1840),'Data SBP Programs'!O:O,'Data SBP Programs'!S:S)","v":"Property Tax Collections"}]
[{"$f":"'Data SBP Measures'!$AI527&\" - \"&'Data SBP Measures'!$U527","v":"Enterprise Infrastructure Services - 112"},{"$f":"'Data SBP Measures'!$AF527","v":"% of Overall EIS Restored – Priority 2 Incidents"},{"$f":"'Data SBP Measures'!$T527","v":"1584"},{"$f":"'Data SBP Measures'!$U527&B1843","v":"112% of Overall EIS Restored – Priority 2 Incidents"},{"$f":"'Data SBP Measures'!$Y527","v":"PERCENT"},null,null,null,null,null,"Enterprise Infrastructure Services - 112","% of Overall EIS Restored – Priority 2 Incidents",null,null,null,null,null,null,null,"2492","147","Y","276","Fire Marshal","EACH","OUTPUT","ADOPTEDBUD",null,null,null,"Fire Marshal","Number of Fire Code Inspections",null,{"$f":"'Data SBP Measures'!$AF1843&'Data SBP Measures'!$AE1843& \" - \"& 'Data SBP Measures'!$U1843","v":"Number of Fire Code InspectionsFire Marshal - 147"},{"$f":"_xlfn.XLOOKUP(VALUE(W1843),'Data SBP Programs'!O:O,'Data SBP Programs'!S:S)","v":"Fire Marshal"}]
[{"$f":"'Data SBP Measures'!$AI538&\" - \"&'Data SBP Measures'!$U538","v":"Enterprise Infrastructure Services - 112"},{"$f":"'Data SBP Measures'!$AF538","v":"% of Services Desk/Ops Resolved – Priority 4 Incidents"},{"$f":"'Data SBP Measures'!$T538","v":"1596"},{"$f":"'Data SBP Measures'!$U538&B1845","v":"112% of Services Desk/Ops Resolved – Priority 4 Incidents"},{"$f":"'Data SBP Measures'!$Y538","v":"PERCENT"},null,null,null,null,null,"Enterprise Infrastructure Services - 112","% of Services Desk/Ops Resolved – Priority 4 Incidents",null,null,null,null,null,null,null,"2494","147","Y","276","Fire Marshal","EACH","INPUT","ADOPTEDBUD",null,null,null,"Fire Marshal","Construction Plans Reviewed",null,{"$f":"'Data SBP Measures'!$AF1845&'Data SBP Measures'!$AE1845& \" - \"& 'Data SBP Measures'!$U1845","v":"Construction Plans ReviewedFire Marshal - 147"},{"$f":"_xlfn.XLOOKUP(VALUE(W1845),'Data SBP Programs'!O:O,'Data SBP Programs'!S:S)","v":"Fire Marshal"}]
[{"$f":"'Data SBP Measures'!$AI530&\" - \"&'Data SBP Measures'!$U530","v":"Enterprise Infrastructure Services - 112"},{"$f":"'Data SBP Measures'!$AF530","v":"% of Services Desk/Ops Restored – Priority 3 Incidents"},{"$f":"'Data SBP Measures'!$T530","v":"1587"},{"$f":"'Data SBP Measures'!$U530&B1848","v":"112% of Services Desk/Ops Restored – Priority 3 Incidents"},{"$f":"'Data SBP Measures'!$Y530","v":"PERCENT"},null,null,null,null,null,"Enterprise Infrastructure Services - 112","% of Services Desk/Ops Restored – Priority 3 Incidents",null,null,null,null,null,null,null,"2499","154","Y","279","Civil Service Commission","EACH","INPUT","ADOPTEDBUD",null,null,null,"Civil Service Commission","# of grievances received",null,{"$f":"'Data SBP Measures'!$AF1848&'Data SBP Measures'!$AE1848& \" - \"& 'Data SBP Measures'!$U1848","v":"# of grievances receivedCivil Service Commission - 154"},{"$f":"_xlfn.XLOOKUP(VALUE(W1848),'Data SBP Programs'!O:O,'Data SBP Programs'!S:S)","v":"Civil Service Commission"}]
[{"$f":"'Data SBP Measures'!$AI545&\" - \"&'Data SBP Measures'!$U545","v":"Enterprise Infrastructure Services - 112"},{"$f":"'Data SBP Measures'!$AF545","v":"% of SiteOps Request tickets acknowledged"},{"$f":"'Data SBP Measures'!$T545","v":"1603"},{"$f":"'Data SBP Measures'!$U545&B1849","v":"112% of SiteOps Request tickets acknowledged"},{"$f":"'Data SBP Measures'!$Y545","v":"PERCENT"},null,null,null,null,null,"Enterprise Infrastructure Services - 112","% of SiteOps Request tickets acknowledged",null,null,null,null,null,null,null,"25","106","Y","178","Auditor's Office","EACH","OUTPUT","ADOPTEDBUD",null,null,null,"Auditor's Office","# of SAP upgrade/enhancement work items completed (sunset after 2026 actuals)",null,{"$f":"'Data SBP Measures'!$AF1849&'Data SBP Measures'!$AE1849& \" - \"& 'Data SBP Measures'!$U1849","v":"# of SAP upgrade/enhancement work items completed (sunset after 2026 actuals)Auditor's Office - 106"},{"$f":"_xlfn.XLOOKUP(VALUE(W1849),'Data SBP Programs'!O:O,'Data SBP Programs'!S:S)","v":"Auditor's Office"}]
[{"$f":"'Data SBP Measures'!$AI534&\" - \"&'Data SBP Measures'!$U534","v":"Enterprise Infrastructure Services - 112"},{"$f":"'Data SBP Measures'!$AF534","v":"% of SiteOps Restored – Priority 3 Incidents"},{"$f":"'Data SBP Measures'!$T534","v":"1592"},{"$f":"'Data SBP Measures'!$U534&B1853","v":"112% of SiteOps Restored – Priority 3 Incidents"},{"$f":"'Data SBP Measures'!$Y534","v":"PERCENT"},null,null,null,null,null,"Enterprise Infrastructure Services - 112","% of SiteOps Restored – Priority 3 Incidents",null,null,null,null,null,null,null,"2502","154","Y","279","Civil Service Commission","EACH","INPUT","ADOPTEDBUD",null,null,null,"Civil Service Commission","# of advancement exams",null,{"$f":"'Data SBP Measures'!$AF1853&'Data SBP Measures'!$AE1853& \" - \"& 'Data SBP Measures'!$U1853","v":"# of advancement examsCivil Service Commission - 154"},{"$f":"_xlfn.XLOOKUP(VALUE(W1853),'Data SBP Programs'!O:O,'Data SBP Programs'!S:S)","v":"Civil Service Commission"}]
[{"$f":"'Data SBP Measures'!$AI536&\" - \"&'Data SBP Measures'!$U536","v":"Enterprise Infrastructure Services - 112"},{"$f":"'Data SBP Measures'!$AF536","v":"% of SLM Resolved – Priority 4 Incidents"},{"$f":"'Data SBP Measures'!$T536","v":"1594"},{"$f":"'Data SBP Measures'!$U536&B1854","v":"112% of SLM Resolved – Priority 4 Incidents"},{"$f":"'Data SBP Measures'!$Y536","v":"PERCENT"},null,null,null,null,null,"Enterprise Infrastructure Services - 112","% of SLM Resolved – Priority 4 Incidents",null,null,null,null,null,null,null,"2503","154","Y","279","Civil Service Commission","EACH","INPUT","ADOPTEDBUD",null,null,null,"Civil Service Commission","# of promotional applications",null,{"$f":"'Data SBP Measures'!$AF1854&'Data SBP Measures'!$AE1854& \" - \"& 'Data SBP Measures'!$U1854","v":"# of promotional applicationsCivil Service Commission - 154"},{"$f":"_xlfn.XLOOKUP(VALUE(W1854),'Data SBP Programs'!O:O,'Data SBP Programs'!S:S)","v":"Civil Service Commission"}]
[{"$f":"'Data SBP Measures'!$AI519&\" - \"&'Data SBP Measures'!$U519","v":"Enterprise Infrastructure Services - 112"},{"$f":"'Data SBP Measures'!$AF519","v":"% of SLM Restored – Priority 2 Incidents"},{"$f":"'Data SBP Measures'!$T519","v":"1576"},{"$f":"'Data SBP Measures'!$U519&B1856","v":"112% of SLM Restored – Priority 2 Incidents"},{"$f":"'Data SBP Measures'!$Y519","v":"PERCENT"},null,null,null,null,null,"Enterprise Infrastructure Services - 112","% of SLM Restored – Priority 2 Incidents",null,null,null,null,null,null,null,"2505","154","Y","279","Civil Service Commission","EACH","OUTPUT","ADOPTEDBUD",null,null,null,"Civil Service Commission","# of promotional review boards",null,{"$f":"'Data SBP Measures'!$AF1856&'Data SBP Measures'!$AE1856& \" - \"& 'Data SBP Measures'!$U1856","v":"# of promotional review boardsCivil Service Commission - 154"},{"$f":"_xlfn.XLOOKUP(VALUE(W1856),'Data SBP Programs'!O:O,'Data SBP Programs'!S:S)","v":"Civil Service Commission"}]
[{"$f":"'Data SBP Measures'!$AI514&\" - \"&'Data SBP Measures'!$U514","v":"Enterprise Infrastructure Services - 112"},{"$f":"'Data SBP Measures'!$AF514","v":"% of Tier 2 Restored – Priority 1 Incidents"},{"$f":"'Data SBP Measures'!$T514","v":"1570"},{"$f":"'Data SBP Measures'!$U514&B1859","v":"112% of Tier 2 Restored – Priority 1 Incidents"},{"$f":"'Data SBP Measures'!$Y514","v":"PERCENT"},null,null,null,null,null,"Enterprise Infrastructure Services - 112","% of Tier 2 Restored – Priority 1 Incidents",null,null,null,null,null,null,null,"2508","154","Y","279","Civil Service Commission","EACH","OUTPUT","ADOPTEDBUD",null,null,null,"Civil Service Commission","# open records requests answered",null,{"$f":"'Data SBP Measures'!$AF1859&'Data SBP Measures'!$AE1859& \" - \"& 'Data SBP Measures'!$U1859","v":"# open records requests answeredCivil Service Commission - 154"},{"$f":"_xlfn.XLOOKUP(VALUE(W1859),'Data SBP Programs'!O:O,'Data SBP Programs'!S:S)","v":"Civil Service Commission"}]
[{"$f":"'Data SBP Measures'!$AI542&\" - \"&'Data SBP Measures'!$U542","v":"Enterprise Infrastructure Services - 112"},{"$f":"'Data SBP Measures'!$AF542","v":"% of UC Resolved – Priority 4 Incidents"},{"$f":"'Data SBP Measures'!$T542","v":"1600"},{"$f":"'Data SBP Measures'!$U542&B1862","v":"112% of UC Resolved – Priority 4 Incidents"},{"$f":"'Data SBP Measures'!$Y542","v":"PERCENT"},null,null,null,null,null,"Enterprise Infrastructure Services - 112","% of UC Resolved – Priority 4 Incidents",null,null,null,null,null,null,null,"2525","155","Y","285","Law Library","PERCENT","EFFICIENCY","BLACKBOOK",null,null,null,"Law Library","Percentage of reference & research requests completed on day of inquiry",null,{"$f":"'Data SBP Measures'!$AF1862&'Data SBP Measures'!$AE1862& \" - \"& 'Data SBP Measures'!$U1862","v":"Percentage of reference & research requests completed on day of inquiryLaw Library - 155"},{"$f":"_xlfn.XLOOKUP(VALUE(W1862),'Data SBP Programs'!O:O,'Data SBP Programs'!S:S)","v":"Law Library"}]
[{"$f":"'Data SBP Measures'!$AI525&\" - \"&'Data SBP Measures'!$U525","v":"Enterprise Infrastructure Services - 112"},{"$f":"'Data SBP Measures'!$AF525","v":"% of UC Restored – Priority 2 Incidents"},{"$f":"'Data SBP Measures'!$T525","v":"1582"},{"$f":"'Data SBP Measures'!$U525&B1864","v":"112% of UC Restored – Priority 2 Incidents"},{"$f":"'Data SBP Measures'!$Y525","v":"PERCENT"},null,null,null,null,null,"Enterprise Infrastructure Services - 112","% of UC Restored – Priority 2 Incidents",null,null,null,null,null,null,null,"2525","155","Y","285","Law Library","PERCENT","EFFICIENCY","BLACKBOOK",null,null,null,"Law Library","Percentage of reference & research requests completed on day of inquiry",null,{"$f":"'Data SBP Measures'!$AF1864&'Data SBP Measures'!$AE1864& \" - \"& 'Data SBP Measures'!$U1864","v":"Percentage of reference & research requests completed on day of inquiryLaw Library - 155"},{"$f":"_xlfn.XLOOKUP(VALUE(W1864),'Data SBP Programs'!O:O,'Data SBP Programs'!S:S)","v":"Law Library"}]
[{"$f":"'Data SBP Measures'!$AI3607&\" - \"&'Data SBP Measures'!$U3607","v":"Environmental Quality - 149"},{"$f":"'Data SBP Measures'!$AF3607","v":"Annual revenue generated by County recycling program."},{"$f":"'Data SBP Measures'!$T3607","v":"977"},{"$f":"'Data SBP Measures'!$U3607&B1867","v":"149Annual revenue generated by County recycling program."},{"$f":"'Data SBP Measures'!$Y3607","v":"DOLLARS"},null,null,null,null,null,"Environmental Quality - 149","Annual revenue generated by County recycling program.",null,null,null,null,null,null,null,"2526","155","Y","285","Law Library","EACH","OUTPUT","BLACKBOOK",null,null,null,"Law Library","Number of patrons assisted",null,{"$f":"'Data SBP Measures'!$AF1867&'Data SBP Measures'!$AE1867& \" - \"& 'Data SBP Measures'!$U1867","v":"Number of patrons assistedLaw Library - 155"},{"$f":"_xlfn.XLOOKUP(VALUE(W1867),'Data SBP Programs'!O:O,'Data SBP Programs'!S:S)","v":"Law Library"}]
[{"$f":"'Data SBP Measures'!$AI3604&\" - \"&'Data SBP Measures'!$U3604","v":"Environmental Quality - 149"},{"$f":"'Data SBP Measures'!$AF3604","v":"Average CapMetro rides taken by County employees"},{"$f":"'Data SBP Measures'!$T3604","v":"973"},{"$f":"'Data SBP Measures'!$U3604&B1868","v":"149Average CapMetro rides taken by County employees"},{"$f":"'Data SBP Measures'!$Y3604","v":"EACH"},null,null,null,null,null,"Environmental Quality - 149","Average CapMetro rides taken by County employees",null,null,null,null,null,null,null,"2526","155","Y","285","Law Library","EACH","OUTPUT","BLACKBOOK",null,null,null,"Law Library","Number of patrons assisted",null,{"$f":"'Data SBP Measures'!$AF1868&'Data SBP Measures'!$AE1868& \" - \"& 'Data SBP Measures'!$U1868","v":"Number of patrons assistedLaw Library - 155"},{"$f":"_xlfn.XLOOKUP(VALUE(W1868),'Data SBP Programs'!O:O,'Data SBP Programs'!S:S)","v":"Law Library"}]
[{"$f":"'Data SBP Measures'!$AI3602&\" - \"&'Data SBP Measures'!$U3602","v":"Environmental Quality - 149"},{"$f":"'Data SBP Measures'!$AF3602","v":"Days/year when ozone standards not met"},{"$f":"'Data SBP Measures'!$T3602","v":"971"},{"$f":"'Data SBP Measures'!$U3602&B1872","v":"149Days/year when ozone standards not met"},{"$f":"'Data SBP Measures'!$Y3602","v":"EACH"},null,null,null,null,null,"Environmental Quality - 149","Days/year when ozone standards not met",null,null,null,null,null,null,null,"2528","155","Y","285","Law Library","EACH","OUTPUT","BLACKBOOK",null,null,null,"Law Library","Number of patrons assisted by family law reference attorneys",null,{"$f":"'Data SBP Measures'!$AF1872&'Data SBP Measures'!$AE1872& \" - \"& 'Data SBP Measures'!$U1872","v":"Number of patrons assisted by family law reference attorneysLaw Library - 155"},{"$f":"_xlfn.XLOOKUP(VALUE(W1872),'Data SBP Programs'!O:O,'Data SBP Programs'!S:S)","v":"Law Library"}]
[{"$f":"'Data SBP Measures'!$AI3598&\" - \"&'Data SBP Measures'!$U3598","v":"Environmental Quality - 149"},{"$f":"'Data SBP Measures'!$AF3598","v":"Development & CIP projects reviewed for SWP3 and ESC"},{"$f":"'Data SBP Measures'!$T3598","v":"967"},{"$f":"'Data SBP Measures'!$U3598&B1873","v":"149Development & CIP projects reviewed for SWP3 and ESC"},{"$f":"'Data SBP Measures'!$Y3598","v":"EACH"},null,null,null,null,null,"Environmental Quality - 149","Development & CIP projects reviewed for SWP3 and ESC",null,null,null,null,null,null,null,"2528","155","Y","285","Law Library","EACH","OUTPUT","BLACKBOOK",null,null,null,"Law Library","Number of patrons assisted by family law reference attorneys",null,{"$f":"'Data SBP Measures'!$AF1873&'Data SBP Measures'!$AE1873& \" - \"& 'Data SBP Measures'!$U1873","v":"Number of patrons assisted by family law reference attorneysLaw Library - 155"},{"$f":"_xlfn.XLOOKUP(VALUE(W1873),'Data SBP Programs'!O:O,'Data SBP Programs'!S:S)","v":"Law Library"}]
[{"$f":"'Data SBP Measures'!$AI3597&\" - \"&'Data SBP Measures'!$U3597","v":"Environmental Quality - 149"},{"$f":"'Data SBP Measures'!$AF3597","v":"Percent of water bodies fishable and swimmable"},{"$f":"'Data SBP Measures'!$T3597","v":"966"},{"$f":"'Data SBP Measures'!$U3597&B1875","v":"149Percent of water bodies fishable and swimmable"},{"$f":"'Data SBP Measures'!$Y3597","v":"PERCENT"},null,null,null,null,null,"Environmental Quality - 149","Percent of water bodies fishable and swimmable",null,null,null,null,null,null,null,"2529","155","Y","285","Law Library","EACH","OUTPUT","BLACKBOOK",null,null,null,"Law Library","Pages of forms, brochures, web pages created or updated in English",null,{"$f":"'Data SBP Measures'!$AF1875&'Data SBP Measures'!$AE1875& \" - \"& 'Data SBP Measures'!$U1875","v":"Pages of forms, brochures, web pages created or updated in EnglishLaw Library - 155"},{"$f":"_xlfn.XLOOKUP(VALUE(W1875),'Data SBP Programs'!O:O,'Data SBP Programs'!S:S)","v":"Law Library"}]
[{"$f":"'Data SBP Measures'!$AI313&\" - \"&'Data SBP Measures'!$U313","v":"Estray - 137"},{"$f":"'Data SBP Measures'!$AF313","v":"No. of calls for service"},{"$f":"'Data SBP Measures'!$T313","v":"1370"},{"$f":"'Data SBP Measures'!$U313&B1878","v":"137No. of calls for service"},{"$f":"'Data SBP Measures'!$Y313","v":"EACH"},null,null,null,null,null,"Estray - 137","No. of calls for service",null,null,null,null,null,null,null,"253","108","Y","24","Property Tax Collections","EACH","OUTPUT","NEITHER",null,null,null,"Property Tax Collections","# Quarterly Letter of Intent’s Evaluated &  Processed",null,{"$f":"'Data SBP Measures'!$AF1878&'Data SBP Measures'!$AE1878& \" - \"& 'Data SBP Measures'!$U1878","v":"# Quarterly Letter of Intent’s Evaluated &  ProcessedProperty Tax Collections - 108"},{"$f":"_xlfn.XLOOKUP(VALUE(W1878),'Data SBP Programs'!O:O,'Data SBP Programs'!S:S)","v":"Property Tax Collections"}]
[{"$f":"'Data SBP Measures'!$AI312&\" - \"&'Data SBP Measures'!$U312","v":"Estray - 137"},{"$f":"'Data SBP Measures'!$AF312","v":"No. of impounded animals"},{"$f":"'Data SBP Measures'!$T312","v":"1369"},{"$f":"'Data SBP Measures'!$U312&B1881","v":"137No. of impounded animals"},{"$f":"'Data SBP Measures'!$Y312","v":"EACH"},null,null,null,null,null,"Estray - 137","No. of impounded animals",null,null,null,null,null,null,null,"2530","155","Y","285","Law Library","EACH","OUTPUT","BLACKBOOK",null,null,null,"Law Library","Number of forms, brochures, web pages created, updated, or translated into Spanish",null,{"$f":"'Data SBP Measures'!$AF1881&'Data SBP Measures'!$AE1881& \" - \"& 'Data SBP Measures'!$U1881","v":"Number of forms, brochures, web pages created, updated, or translated into SpanishLaw Library - 155"},{"$f":"_xlfn.XLOOKUP(VALUE(W1881),'Data SBP Programs'!O:O,'Data SBP Programs'!S:S)","v":"Law Library"}]
[{"$f":"'Data SBP Measures'!$AI2255&\" - \"&'Data SBP Measures'!$U2255","v":"Exposition Center - 114"},{"$f":"'Data SBP Measures'!$AF2255","v":"# of events"},{"$f":"'Data SBP Measures'!$T2255","v":"2774"},{"$f":"'Data SBP Measures'!$U2255&B1883","v":"114# of events"},{"$f":"'Data SBP Measures'!$Y2255","v":"EACH"},null,null,null,null,null,"Exposition Center - 114","# of events",null,null,null,null,null,null,null,"2533","110","Y","287","Media Services","EACH","OUTCOME","ADOPTEDBUD",null,null,null,"Media Services","Non Commissioner Court Meeting Videos",null,{"$f":"'Data SBP Measures'!$AF1883&'Data SBP Measures'!$AE1883& \" - \"& 'Data SBP Measures'!$U1883","v":"Non Commissioner Court Meeting VideosMedia Services - 110"},{"$f":"_xlfn.XLOOKUP(VALUE(W1883),'Data SBP Programs'!O:O,'Data SBP Programs'!S:S)","v":"Media Services"}]
[{"$f":"'Data SBP Measures'!$AI2252&\" - \"&'Data SBP Measures'!$U2252","v":"Exposition Center - 114"},{"$f":"'Data SBP Measures'!$AF2252","v":"# of preventative maintenance work orders"},{"$f":"'Data SBP Measures'!$T2252","v":"2773"},{"$f":"'Data SBP Measures'!$U2252&B1886","v":"114# of preventative maintenance work orders"},{"$f":"'Data SBP Measures'!$Y2252","v":"EACH"},null,null,null,null,null,"Exposition Center - 114","# of preventative maintenance work orders",null,null,null,null,null,null,null,"2536","110","Y","287","Media Services","HOURS","INPUT","BLACKBOOK",null,null,null,"Media Services","New Web Only Videos Staff Hours",null,{"$f":"'Data SBP Measures'!$AF1886&'Data SBP Measures'!$AE1886& \" - \"& 'Data SBP Measures'!$U1886","v":"New Web Only Videos Staff HoursMedia Services - 110"},{"$f":"_xlfn.XLOOKUP(VALUE(W1886),'Data SBP Programs'!O:O,'Data SBP Programs'!S:S)","v":"Media Services"}]
[{"$f":"'Data SBP Measures'!$AI2253&\" - \"&'Data SBP Measures'!$U2253","v":"Exposition Center - 114"},{"$f":"'Data SBP Measures'!$AF2253","v":"# of preventative maintenance work orders"},{"$f":"'Data SBP Measures'!$T2253","v":"2773"},{"$f":"'Data SBP Measures'!$U2253&B1887","v":"114# of preventative maintenance work orders"},{"$f":"'Data SBP Measures'!$Y2253","v":"EACH"},null,null,null,null,null,"Exposition Center - 114","# of preventative maintenance work orders",null,null,null,null,null,null,null,"2537","110","Y","287","Media Services","EACH","OUTPUT","BLACKBOOK",null,null,null,"Media Services","Multifunction Rooms Support",null,{"$f":"'Data SBP Measures'!$AF1887&'Data SBP Measures'!$AE1887& \" - \"& 'Data SBP Measures'!$U1887","v":"Multifunction Rooms SupportMedia Services - 110"},{"$f":"_xlfn.XLOOKUP(VALUE(W1887),'Data SBP Programs'!O:O,'Data SBP Programs'!S:S)","v":"Media Services"}]
[{"$f":"'Data SBP Measures'!$AI2249&\" - \"&'Data SBP Measures'!$U2249","v":"Exposition Center - 114"},{"$f":"'Data SBP Measures'!$AF2249","v":"Total Revenues"},{"$f":"'Data SBP Measures'!$T2249","v":"2771"},{"$f":"'Data SBP Measures'!$U2249&B1891","v":"114Total Revenues"},{"$f":"'Data SBP Measures'!$Y2249","v":"DOLLARS"},null,null,null,null,null,"Exposition Center - 114","Total Revenues",null,null,null,null,null,null,null,"2540","110","Y","287","Media Services","HOURS","INPUT","BLACKBOOK",null,null,null,"Media Services","Multifunction Room Video Production Staff Hours",null,{"$f":"'Data SBP Measures'!$AF1891&'Data SBP Measures'!$AE1891& \" - \"& 'Data SBP Measures'!$U1891","v":"Multifunction Room Video Production Staff HoursMedia Services - 110"},{"$f":"_xlfn.XLOOKUP(VALUE(W1891),'Data SBP Programs'!O:O,'Data SBP Programs'!S:S)","v":"Media Services"}]
[{"$f":"'Data SBP Measures'!$AI2507&\" - \"&'Data SBP Measures'!$U2507","v":"Facilities - Call Center / Mail Room / Laundry / Warehouse\n - 137"},{"$f":"'Data SBP Measures'!$AF2507","v":"Labor cost savings"},{"$f":"'Data SBP Measures'!$T2507","v":"3151"},{"$f":"'Data SBP Measures'!$U2507&B1892","v":"137Labor cost savings"},{"$f":"'Data SBP Measures'!$Y2507","v":"DOLLARS"},null,null,null,null,null,"Facilities - Call Center / Mail Room / Laundry / Warehouse\n - 137","Labor cost savings",null,null,null,null,null,null,null,"2541","110","Y","287","Media Services","HOURS","INPUT","BLACKBOOK",null,null,null,"Media Services","Administrative Tasks Staff Hours",null,{"$f":"'Data SBP Measures'!$AF1892&'Data SBP Measures'!$AE1892& \" - \"& 'Data SBP Measures'!$U1892","v":"Administrative Tasks Staff HoursMedia Services - 110"},{"$f":"_xlfn.XLOOKUP(VALUE(W1892),'Data SBP Programs'!O:O,'Data SBP Programs'!S:S)","v":"Media Services"}]
[{"$f":"'Data SBP Measures'!$AI2286&\" - \"&'Data SBP Measures'!$U2286","v":"Facilities - Call Center / Mail Room / Laundry / Warehouse\n - 137"},{"$f":"'Data SBP Measures'!$AF2286","v":"No. of contraband notices"},{"$f":"'Data SBP Measures'!$T2286","v":"2817"},{"$f":"'Data SBP Measures'!$U2286&B1894","v":"137No. of contraband notices"},{"$f":"'Data SBP Measures'!$Y2286","v":"EACH"},null,null,null,null,null,"Facilities - Call Center / Mail Room / Laundry / Warehouse\n - 137","No. of contraband notices",null,null,null,null,null,null,null,"2543","110","Y","287","Media Services","EACH","OUTPUT","BLACKBOOK",null,null,null,"Media Services","Dub/Copy Requests",null,{"$f":"'Data SBP Measures'!$AF1894&'Data SBP Measures'!$AE1894& \" - \"& 'Data SBP Measures'!$U1894","v":"Dub/Copy RequestsMedia Services - 110"},{"$f":"_xlfn.XLOOKUP(VALUE(W1894),'Data SBP Programs'!O:O,'Data SBP Programs'!S:S)","v":"Media Services"}]
[{"$f":"'Data SBP Measures'!$AI2505&\" - \"&'Data SBP Measures'!$U2505","v":"Facilities - Call Center / Mail Room / Laundry / Warehouse\n - 137"},{"$f":"'Data SBP Measures'!$AF2505","v":"No. of loads washed"},{"$f":"'Data SBP Measures'!$T2505","v":"3149"},{"$f":"'Data SBP Measures'!$U2505&B1897","v":"137No. of loads washed"},{"$f":"'Data SBP Measures'!$Y2505","v":"EACH"},null,null,null,null,null,"Facilities - Call Center / Mail Room / Laundry / Warehouse\n - 137","No. of loads washed",null,null,null,null,null,null,null,"2546","110","Y","287","Media Services","HOURS","OUTPUT","BLACKBOOK",null,null,null,"Media Services","Graphics Projects Staff Hours",null,{"$f":"'Data SBP Measures'!$AF1897&'Data SBP Measures'!$AE1897& \" - \"& 'Data SBP Measures'!$U1897","v":"Graphics Projects Staff HoursMedia Services - 110"},{"$f":"_xlfn.XLOOKUP(VALUE(W1897),'Data SBP Programs'!O:O,'Data SBP Programs'!S:S)","v":"Media Services"}]
[{"$f":"'Data SBP Measures'!$AI75&\" - \"&'Data SBP Measures'!$U75","v":"Family First - 158"},{"$f":"'Data SBP Measures'!$AF75","v":"Number of unduplicated families served"},{"$f":"'Data SBP Measures'!$T75","v":"1103"},{"$f":"'Data SBP Measures'!$U75&B1900","v":"158Number of unduplicated families served"},{"$f":"'Data SBP Measures'!$Y75","v":"EACH"},null,null,null,null,null,"Family First - 158","Number of unduplicated families served",null,null,null,null,null,null,null,"255","108","Y","24","Property Tax Collections","EACH","OUTPUT","NEITHER",null,null,null,"Property Tax Collections","# Certified Mail Processed",null,{"$f":"'Data SBP Measures'!$AF1900&'Data SBP Measures'!$AE1900& \" - \"& 'Data SBP Measures'!$U1900","v":"# Certified Mail ProcessedProperty Tax Collections - 108"},{"$f":"_xlfn.XLOOKUP(VALUE(W1900),'Data SBP Programs'!O:O,'Data SBP Programs'!S:S)","v":"Property Tax Collections"}]
[{"$f":"'Data SBP Measures'!$AI74&\" - \"&'Data SBP Measures'!$U74","v":"Family First - 158"},{"$f":"'Data SBP Measures'!$AF74","v":"Percentage of parents that successfully complete the Nurturing Parenting Program"},{"$f":"'Data SBP Measures'!$T74","v":"1102"},{"$f":"'Data SBP Measures'!$U74&B1902","v":"158Percentage of parents that successfully complete the Nurturing Parenting Program"},{"$f":"'Data SBP Measures'!$Y74","v":"PERCENT"},null,null,null,null,null,"Family First - 158","Percentage of parents that successfully complete the Nurturing Parenting Program",null,null,null,null,null,null,null,"2551","159","Y","290","STAR Flight","EACH","OUTPUT","ADOPTEDBUD",null,null,null,"STAR Flight","Number of Patient Transports",null,{"$f":"'Data SBP Measures'!$AF1902&'Data SBP Measures'!$AE1902& \" - \"& 'Data SBP Measures'!$U1902","v":"Number of Patient TransportsSTAR Flight - 159"},{"$f":"_xlfn.XLOOKUP(VALUE(W1902),'Data SBP Programs'!O:O,'Data SBP Programs'!S:S)","v":"STAR Flight"}]
[{"$f":"'Data SBP Measures'!$AI85&\" - \"&'Data SBP Measures'!$U85","v":"Family Support Services Division - 158"},{"$f":"'Data SBP Measures'!$AF85","v":"# of HH's that received Food Pantry"},{"$f":"'Data SBP Measures'!$T85","v":"1115"},{"$f":"'Data SBP Measures'!$U85&B1905","v":"158# of HH's that received Food Pantry"},{"$f":"'Data SBP Measures'!$Y85","v":"EACH"},null,null,null,null,null,"Family Support Services Division - 158","# of HH's that received Food Pantry",null,null,null,null,null,null,null,"2551","159","Y","290","STAR Flight","EACH","OUTPUT","ADOPTEDBUD",null,null,null,"STAR Flight","Number of Patient Transports",null,{"$f":"'Data SBP Measures'!$AF1905&'Data SBP Measures'!$AE1905& \" - \"& 'Data SBP Measures'!$U1905","v":"Number of Patient TransportsSTAR Flight - 159"},{"$f":"_xlfn.XLOOKUP(VALUE(W1905),'Data SBP Programs'!O:O,'Data SBP Programs'!S:S)","v":"STAR Flight"}]
[{"$f":"'Data SBP Measures'!$AI88&\" - \"&'Data SBP Measures'!$U88","v":"Family Support Services Division - 158"},{"$f":"'Data SBP Measures'!$AF88","v":"# of HH's that received SW services"},{"$f":"'Data SBP Measures'!$T88","v":"1118"},{"$f":"'Data SBP Measures'!$U88&B1908","v":"158# of HH's that received SW services"},{"$f":"'Data SBP Measures'!$Y88","v":"EACH"},null,null,null,null,null,"Family Support Services Division - 158","# of HH's that received SW services",null,null,null,null,null,null,null,"2552","159","Y","290","STAR Flight","EACH","OUTPUT","ADOPTEDBUD",null,null,null,"STAR Flight","Non Travis County Patient Transports",null,{"$f":"'Data SBP Measures'!$AF1908&'Data SBP Measures'!$AE1908& \" - \"& 'Data SBP Measures'!$U1908","v":"Non Travis County Patient TransportsSTAR Flight - 159"},{"$f":"_xlfn.XLOOKUP(VALUE(W1908),'Data SBP Programs'!O:O,'Data SBP Programs'!S:S)","v":"STAR Flight"}]
[{"$f":"'Data SBP Measures'!$AI90&\" - \"&'Data SBP Measures'!$U90","v":"Family Support Services Division - 158"},{"$f":"'Data SBP Measures'!$AF90","v":"% of Customer Surveys Satisfied or Very Satisfied"},{"$f":"'Data SBP Measures'!$T90","v":"1120"},{"$f":"'Data SBP Measures'!$U90&B1910","v":"158% of Customer Surveys Satisfied or Very Satisfied"},{"$f":"'Data SBP Measures'!$Y90","v":"PERCENT"},null,null,null,null,null,"Family Support Services Division - 158","% of Customer Surveys Satisfied or Very Satisfied",null,null,null,null,null,null,null,"2552","159","Y","290","STAR Flight","EACH","OUTPUT","ADOPTEDBUD",null,null,null,"STAR Flight","Non Travis County Patient Transports",null,{"$f":"'Data SBP Measures'!$AF1910&'Data SBP Measures'!$AE1910& \" - \"& 'Data SBP Measures'!$U1910","v":"Non Travis County Patient TransportsSTAR Flight - 159"},{"$f":"_xlfn.XLOOKUP(VALUE(W1910),'Data SBP Programs'!O:O,'Data SBP Programs'!S:S)","v":"STAR Flight"}]
[{"$f":"'Data SBP Measures'!$AI91&\" - \"&'Data SBP Measures'!$U91","v":"Family Support Services Division - 158"},{"$f":"'Data SBP Measures'!$AF91","v":"Amount expended for Burials"},{"$f":"'Data SBP Measures'!$T91","v":"1122"},{"$f":"'Data SBP Measures'!$U91&B1911","v":"158Amount expended for Burials"},{"$f":"'Data SBP Measures'!$Y91","v":"DOLLARS"},null,null,null,null,null,"Family Support Services Division - 158","Amount expended for Burials",null,null,null,null,null,null,null,"2552","159","Y","290","STAR Flight","EACH","OUTPUT","ADOPTEDBUD",null,null,null,"STAR Flight","Non Travis County Patient Transports",null,{"$f":"'Data SBP Measures'!$AF1911&'Data SBP Measures'!$AE1911& \" - \"& 'Data SBP Measures'!$U1911","v":"Non Travis County Patient TransportsSTAR Flight - 159"},{"$f":"_xlfn.XLOOKUP(VALUE(W1911),'Data SBP Programs'!O:O,'Data SBP Programs'!S:S)","v":"STAR Flight"}]
[{"$f":"'Data SBP Measures'!$AI93&\" - \"&'Data SBP Measures'!$U93","v":"Family Support Services Division - 158"},{"$f":"'Data SBP Measures'!$AF93","v":"Amount expended for Prescription"},{"$f":"'Data SBP Measures'!$T93","v":"1124"},{"$f":"'Data SBP Measures'!$U93&B1913","v":"158Amount expended for Prescription"},{"$f":"'Data SBP Measures'!$Y93","v":"DOLLARS"},null,null,null,null,null,"Family Support Services Division - 158","Amount expended for Prescription",null,null,null,null,null,null,null,"2552","159","Y","290","STAR Flight","EACH","OUTPUT","ADOPTEDBUD",null,null,null,"STAR Flight","Non Travis County Patient Transports",null,{"$f":"'Data SBP Measures'!$AF1913&'Data SBP Measures'!$AE1913& \" - \"& 'Data SBP Measures'!$U1913","v":"Non Travis County Patient TransportsSTAR Flight - 159"},{"$f":"_xlfn.XLOOKUP(VALUE(W1913),'Data SBP Programs'!O:O,'Data SBP Programs'!S:S)","v":"STAR Flight"}]
[{"$f":"'Data SBP Measures'!$AI83&\" - \"&'Data SBP Measures'!$U83","v":"Family Support Services Division - 158"},{"$f":"'Data SBP Measures'!$AF83","v":"Average number of payments processed by caseworker per month"},{"$f":"'Data SBP Measures'!$T83","v":"1111"},{"$f":"'Data SBP Measures'!$U83&B1916","v":"158Average number of payments processed by caseworker per month"},{"$f":"'Data SBP Measures'!$Y83","v":"EACH"},null,null,null,null,null,"Family Support Services Division - 158","Average number of payments processed by caseworker per month",null,null,null,null,null,null,null,"2553","159","Y","290","STAR Flight","EACH","OUTPUT","ADOPTEDBUD",null,null,null,"STAR Flight","Number of Search and Rescue Missions",null,{"$f":"'Data SBP Measures'!$AF1916&'Data SBP Measures'!$AE1916& \" - \"& 'Data SBP Measures'!$U1916","v":"Number of Search and Rescue MissionsSTAR Flight - 159"},{"$f":"_xlfn.XLOOKUP(VALUE(W1916),'Data SBP Programs'!O:O,'Data SBP Programs'!S:S)","v":"STAR Flight"}]
[{"$f":"'Data SBP Measures'!$AI320&\" - \"&'Data SBP Measures'!$U320","v":"Finance - 137"},{"$f":"'Data SBP Measures'!$AF320","v":"How many medical invoices are processed"},{"$f":"'Data SBP Measures'!$T320","v":"1377"},{"$f":"'Data SBP Measures'!$U320&B1919","v":"137How many medical invoices are processed"},{"$f":"'Data SBP Measures'!$Y320","v":"EACH"},null,null,null,null,null,"Finance - 137","How many medical invoices are processed",null,null,null,null,null,null,null,"2553","159","Y","290","STAR Flight","EACH","OUTPUT","ADOPTEDBUD",null,null,null,"STAR Flight","Number of Search and Rescue Missions",null,{"$f":"'Data SBP Measures'!$AF1919&'Data SBP Measures'!$AE1919& \" - \"& 'Data SBP Measures'!$U1919","v":"Number of Search and Rescue MissionsSTAR Flight - 159"},{"$f":"_xlfn.XLOOKUP(VALUE(W1919),'Data SBP Programs'!O:O,'Data SBP Programs'!S:S)","v":"STAR Flight"}]
[{"$f":"'Data SBP Measures'!$AI319&\" - \"&'Data SBP Measures'!$U319","v":"Finance - 137"},{"$f":"'Data SBP Measures'!$AF319","v":"No. of IWF cash transactions received"},{"$f":"'Data SBP Measures'!$T319","v":"1376"},{"$f":"'Data SBP Measures'!$U319&B1921","v":"137No. of IWF cash transactions received"},{"$f":"'Data SBP Measures'!$Y319","v":"EACH"},null,null,null,null,null,"Finance - 137","No. of IWF cash transactions received",null,null,null,null,null,null,null,"2553","159","Y","290","STAR Flight","EACH","OUTPUT","ADOPTEDBUD",null,null,null,"STAR Flight","Number of Search and Rescue Missions",null,{"$f":"'Data SBP Measures'!$AF1921&'Data SBP Measures'!$AE1921& \" - \"& 'Data SBP Measures'!$U1921","v":"Number of Search and Rescue MissionsSTAR Flight - 159"},{"$f":"_xlfn.XLOOKUP(VALUE(W1921),'Data SBP Programs'!O:O,'Data SBP Programs'!S:S)","v":"STAR Flight"}]
[{"$f":"'Data SBP Measures'!$AI2912&\" - \"&'Data SBP Measures'!$U2912","v":"Financial Services - 149"},{"$f":"'Data SBP Measures'!$AF2912","v":"% of customers satisfied with services \n"},{"$f":"'Data SBP Measures'!$T2912","v":"3412"},{"$f":"'Data SBP Measures'!$U2912&B1924","v":"149% of customers satisfied with services \n"},{"$f":"'Data SBP Measures'!$Y2912","v":"PERCENT"},null,null,null,null,null,"Financial Services - 149","% of customers satisfied with services \n",null,null,null,null,null,null,null,"2554","159","Y","290","STAR Flight","EACH","OUTPUT","ADOPTEDBUD",null,null,null,"STAR Flight","Number of Law Enformcement Missions",null,{"$f":"'Data SBP Measures'!$AF1924&'Data SBP Measures'!$AE1924& \" - \"& 'Data SBP Measures'!$U1924","v":"Number of Law Enformcement MissionsSTAR Flight - 159"},{"$f":"_xlfn.XLOOKUP(VALUE(W1924),'Data SBP Programs'!O:O,'Data SBP Programs'!S:S)","v":"STAR Flight"}]
[{"$f":"'Data SBP Measures'!$AI1844&\" - \"&'Data SBP Measures'!$U1844","v":"Fire Marshal - 147"},{"$f":"'Data SBP Measures'!$AF1844","v":"Fire Code Permits Issued"},{"$f":"'Data SBP Measures'!$T1844","v":"2493"},{"$f":"'Data SBP Measures'!$U1844&B1927","v":"147Fire Code Permits Issued"},{"$f":"'Data SBP Measures'!$Y1844","v":"EACH"},null,null,null,null,null,"Fire Marshal - 147","Fire Code Permits Issued",null,null,null,null,null,null,null,"2554","159","Y","290","STAR Flight","EACH","OUTPUT","ADOPTEDBUD",null,null,null,"STAR Flight","Number of Law Enformcement Missions",null,{"$f":"'Data SBP Measures'!$AF1927&'Data SBP Measures'!$AE1927& \" - \"& 'Data SBP Measures'!$U1927","v":"Number of Law Enformcement MissionsSTAR Flight - 159"},{"$f":"_xlfn.XLOOKUP(VALUE(W1927),'Data SBP Programs'!O:O,'Data SBP Programs'!S:S)","v":"STAR Flight"}]
[{"$f":"'Data SBP Measures'!$AI1847&\" - \"&'Data SBP Measures'!$U1847","v":"Fire Marshal - 147"},{"$f":"'Data SBP Measures'!$AF1847","v":"Number of County Buildings Inspected"},{"$f":"'Data SBP Measures'!$T1847","v":"2496"},{"$f":"'Data SBP Measures'!$U1847&B1929","v":"147Number of County Buildings Inspected"},{"$f":"'Data SBP Measures'!$Y1847","v":"EACH"},null,null,null,null,null,"Fire Marshal - 147","Number of County Buildings Inspected",null,null,null,null,null,null,null,"2557","159","Y","290","STAR Flight","EACH","OUTPUT","ADOPTEDBUD",null,null,null,"STAR Flight","Missions missed due to mechanical failure",null,{"$f":"'Data SBP Measures'!$AF1929&'Data SBP Measures'!$AE1929& \" - \"& 'Data SBP Measures'!$U1929","v":"Missions missed due to mechanical failureSTAR Flight - 159"},{"$f":"_xlfn.XLOOKUP(VALUE(W1929),'Data SBP Programs'!O:O,'Data SBP Programs'!S:S)","v":"STAR Flight"}]
[{"$f":"'Data SBP Measures'!$AI1842&\" - \"&'Data SBP Measures'!$U1842","v":"Fire Marshal - 147"},{"$f":"'Data SBP Measures'!$AF1842","v":"Number of Criminal Charges filed"},{"$f":"'Data SBP Measures'!$T1842","v":"2491"},{"$f":"'Data SBP Measures'!$U1842&B1930","v":"147Number of Criminal Charges filed"},{"$f":"'Data SBP Measures'!$Y1842","v":"EACH"},null,null,null,null,null,"Fire Marshal - 147","Number of Criminal Charges filed",null,null,null,null,null,null,null,"2557","159","Y","290","STAR Flight","EACH","OUTPUT","ADOPTEDBUD",null,null,null,"STAR Flight","Missions missed due to mechanical failure",null,{"$f":"'Data SBP Measures'!$AF1930&'Data SBP Measures'!$AE1930& \" - \"& 'Data SBP Measures'!$U1930","v":"Missions missed due to mechanical failureSTAR Flight - 159"},{"$f":"_xlfn.XLOOKUP(VALUE(W1930),'Data SBP Programs'!O:O,'Data SBP Programs'!S:S)","v":"STAR Flight"}]
[{"$f":"'Data SBP Measures'!$AI1846&\" - \"&'Data SBP Measures'!$U1846","v":"Fire Marshal - 147"},{"$f":"'Data SBP Measures'!$AF1846","v":"Number of Fire Education and Training Initiatives (includes JFIP)"},{"$f":"'Data SBP Measures'!$T1846","v":"2495"},{"$f":"'Data SBP Measures'!$U1846&B1932","v":"147Number of Fire Education and Training Initiatives (includes JFIP)"},{"$f":"'Data SBP Measures'!$Y1846","v":"EACH"},null,null,null,null,null,"Fire Marshal - 147","Number of Fire Education and Training Initiatives (includes JFIP)",null,null,null,null,null,null,null,"2557","159","Y","290","STAR Flight","EACH","OUTPUT","ADOPTEDBUD",null,null,null,"STAR Flight","Missions missed due to mechanical failure",null,{"$f":"'Data SBP Measures'!$AF1932&'Data SBP Measures'!$AE1932& \" - \"& 'Data SBP Measures'!$U1932","v":"Missions missed due to mechanical failureSTAR Flight - 159"},{"$f":"_xlfn.XLOOKUP(VALUE(W1932),'Data SBP Programs'!O:O,'Data SBP Programs'!S:S)","v":"STAR Flight"}]
[{"$f":"'Data SBP Measures'!$AI1839&\" - \"&'Data SBP Measures'!$U1839","v":"Fire Marshal - 147"},{"$f":"'Data SBP Measures'!$AF1839","v":"Number of Fires Determined to be Arson"},{"$f":"'Data SBP Measures'!$T1839","v":"2489"},{"$f":"'Data SBP Measures'!$U1839&B1935","v":"147Number of Fires Determined to be Arson"},{"$f":"'Data SBP Measures'!$Y1839","v":"EACH"},null,null,null,null,null,"Fire Marshal - 147","Number of Fires Determined to be Arson",null,null,null,null,null,null,null,"2557","159","Y","290","STAR Flight","EACH","OUTPUT","ADOPTEDBUD",null,null,null,"STAR Flight","Missions missed due to mechanical failure",null,{"$f":"'Data SBP Measures'!$AF1935&'Data SBP Measures'!$AE1935& \" - \"& 'Data SBP Measures'!$U1935","v":"Missions missed due to mechanical failureSTAR Flight - 159"},{"$f":"_xlfn.XLOOKUP(VALUE(W1935),'Data SBP Programs'!O:O,'Data SBP Programs'!S:S)","v":"STAR Flight"}]
[{"$f":"'Data SBP Measures'!$AI3609&\" - \"&'Data SBP Measures'!$U3609","v":"Fleet Services - 149"},{"$f":"'Data SBP Measures'!$AF3609","v":"# Of vehicles & equip per mechanic slot"},{"$f":"'Data SBP Measures'!$T3609","v":"979"},{"$f":"'Data SBP Measures'!$U3609&B1938","v":"149# Of vehicles & equip per mechanic slot"},{"$f":"'Data SBP Measures'!$Y3609","v":"EACH"},null,null,null,null,null,"Fleet Services - 149","# Of vehicles & equip per mechanic slot",null,null,null,null,null,null,null,"2558","159","Y","290","STAR Flight","EACH","OUTCOME","ADOPTEDBUD",null,null,null,"STAR Flight","Missions missed due to busy. Does not include missed auto launches within Travis County",null,{"$f":"'Data SBP Measures'!$AF1938&'Data SBP Measures'!$AE1938& \" - \"& 'Data SBP Measures'!$U1938","v":"Missions missed due to busy. Does not include missed auto launches within Travis CountySTAR Flight - 159"},{"$f":"_xlfn.XLOOKUP(VALUE(W1938),'Data SBP Programs'!O:O,'Data SBP Programs'!S:S)","v":"STAR Flight"}]
[{"$f":"'Data SBP Measures'!$AI2053&\" - \"&'Data SBP Measures'!$U2053","v":"Fleet Services - 149"},{"$f":"'Data SBP Measures'!$AF2053","v":"% of Preventive Maintenance work orders over Repair work orders"},{"$f":"'Data SBP Measures'!$T2053","v":"2636"},{"$f":"'Data SBP Measures'!$U2053&B1940","v":"149% of Preventive Maintenance work orders over Repair work orders"},{"$f":"'Data SBP Measures'!$Y2053","v":"PERCENT"},null,null,null,null,null,"Fleet Services - 149","% of Preventive Maintenance work orders over Repair work orders",null,null,null,null,null,null,null,"2558","159","Y","290","STAR Flight","EACH","OUTCOME","ADOPTEDBUD",null,null,null,"STAR Flight","Missions missed due to busy. Does not include missed auto launches within Travis County",null,{"$f":"'Data SBP Measures'!$AF1940&'Data SBP Measures'!$AE1940& \" - \"& 'Data SBP Measures'!$U1940","v":"Missions missed due to busy. Does not include missed auto launches within Travis CountySTAR Flight - 159"},{"$f":"_xlfn.XLOOKUP(VALUE(W1940),'Data SBP Programs'!O:O,'Data SBP Programs'!S:S)","v":"STAR Flight"}]
[{"$f":"'Data SBP Measures'!$AI2052&\" - \"&'Data SBP Measures'!$U2052","v":"General Administration - 120"},{"$f":"'Data SBP Measures'!$AF2052","v":"Hours spent creating, editing, and updating office policies and procedures"},{"$f":"'Data SBP Measures'!$T2052","v":"2635"},{"$f":"'Data SBP Measures'!$U2052&B1943","v":"120Hours spent creating, editing, and updating office policies and procedures"},{"$f":"'Data SBP Measures'!$Y2052","v":"EACH"},null,null,null,null,null,"General Administration - 120","Hours spent creating, editing, and updating office policies and procedures",null,null,null,null,null,null,null,"2559","159","Y","290","STAR Flight","EACH","OUTCOME","ADOPTEDBUD",null,null,null,"STAR Flight","HEMS missed due to weather",null,{"$f":"'Data SBP Measures'!$AF1943&'Data SBP Measures'!$AE1943& \" - \"& 'Data SBP Measures'!$U1943","v":"HEMS missed due to weatherSTAR Flight - 159"},{"$f":"_xlfn.XLOOKUP(VALUE(W1943),'Data SBP Programs'!O:O,'Data SBP Programs'!S:S)","v":"STAR Flight"}]
[{"$f":"'Data SBP Measures'!$AI2224&\" - \"&'Data SBP Measures'!$U2224","v":"General Litigation/Government Division - 121"},{"$f":"'Data SBP Measures'!$AF2224","v":"# of Appeals"},{"$f":"'Data SBP Measures'!$T2224","v":"2741"},{"$f":"'Data SBP Measures'!$U2224&B1946","v":"121# of Appeals"},{"$f":"'Data SBP Measures'!$Y2224","v":"EACH"},null,null,null,null,null,"General Litigation/Government Division - 121","# of Appeals",null,null,null,null,null,null,null,"2559","159","Y","290","STAR Flight","EACH","OUTCOME","ADOPTEDBUD",null,null,null,"STAR Flight","HEMS missed due to weather",null,{"$f":"'Data SBP Measures'!$AF1946&'Data SBP Measures'!$AE1946& \" - \"& 'Data SBP Measures'!$U1946","v":"HEMS missed due to weatherSTAR Flight - 159"},{"$f":"_xlfn.XLOOKUP(VALUE(W1946),'Data SBP Programs'!O:O,'Data SBP Programs'!S:S)","v":"STAR Flight"}]
[{"$f":"'Data SBP Measures'!$AI793&\" - \"&'Data SBP Measures'!$U793","v":"General Litigation/Government Division - 121"},{"$f":"'Data SBP Measures'!$AF793","v":"# of new or reopened Gen. Lit./Govt. cases filed\n"},{"$f":"'Data SBP Measures'!$T793","v":"1852"},{"$f":"'Data SBP Measures'!$U793&B1948","v":"121# of new or reopened Gen. Lit./Govt. cases filed\n"},{"$f":"'Data SBP Measures'!$Y793","v":"EACH"},null,null,null,null,null,"General Litigation/Government Division - 121","# of new or reopened Gen. Lit./Govt. cases filed\n",null,null,null,null,null,null,null,"2559","159","Y","290","STAR Flight","EACH","OUTCOME","ADOPTEDBUD",null,null,null,"STAR Flight","HEMS missed due to weather",null,{"$f":"'Data SBP Measures'!$AF1948&'Data SBP Measures'!$AE1948& \" - \"& 'Data SBP Measures'!$U1948","v":"HEMS missed due to weatherSTAR Flight - 159"},{"$f":"_xlfn.XLOOKUP(VALUE(W1948),'Data SBP Programs'!O:O,'Data SBP Programs'!S:S)","v":"STAR Flight"}]
[{"$f":"'Data SBP Measures'!$AI739&\" - \"&'Data SBP Measures'!$U739","v":"General Litigation/Government Division - 121"},{"$f":"'Data SBP Measures'!$AF739","v":"# production entries in FACTS"},{"$f":"'Data SBP Measures'!$T739","v":"1809"},{"$f":"'Data SBP Measures'!$U739&B1949","v":"121# production entries in FACTS"},{"$f":"'Data SBP Measures'!$Y739","v":"EACH"},null,null,null,null,null,"General Litigation/Government Division - 121","# production entries in FACTS",null,null,null,null,null,null,null,"2559","159","Y","290","STAR Flight","EACH","OUTCOME","ADOPTEDBUD",null,null,null,"STAR Flight","HEMS missed due to weather",null,{"$f":"'Data SBP Measures'!$AF1949&'Data SBP Measures'!$AE1949& \" - \"& 'Data SBP Measures'!$U1949","v":"HEMS missed due to weatherSTAR Flight - 159"},{"$f":"_xlfn.XLOOKUP(VALUE(W1949),'Data SBP Programs'!O:O,'Data SBP Programs'!S:S)","v":"STAR Flight"}]
[{"$f":"'Data SBP Measures'!$AI3524&\" - \"&'Data SBP Measures'!$U3524","v":"Groundskeeping - 114"},{"$f":"'Data SBP Measures'!$AF3524","v":"Average Days to Complete Routine Work Orders"},{"$f":"'Data SBP Measures'!$T3524","v":"849"},{"$f":"'Data SBP Measures'!$U3524&B1951","v":"114Average Days to Complete Routine Work Orders"},{"$f":"'Data SBP Measures'!$Y3524","v":"DAYS"},null,null,null,null,null,"Groundskeeping - 114","Average Days to Complete Routine Work Orders",null,null,null,null,null,null,null,"2560","159","Y","290","STAR Flight","PERCENT","OUTCOME","ADOPTEDBUD",null,null,null,"STAR Flight","Availability 24/7 Aircraft",null,{"$f":"'Data SBP Measures'!$AF1951&'Data SBP Measures'!$AE1951& \" - \"& 'Data SBP Measures'!$U1951","v":"Availability 24/7 AircraftSTAR Flight - 159"},{"$f":"_xlfn.XLOOKUP(VALUE(W1951),'Data SBP Programs'!O:O,'Data SBP Programs'!S:S)","v":"STAR Flight"}]
[{"$f":"'Data SBP Measures'!$AI3522&\" - \"&'Data SBP Measures'!$U3522","v":"Groundskeeping - 114"},{"$f":"'Data SBP Measures'!$AF3522","v":"Work Orders Completed"},{"$f":"'Data SBP Measures'!$T3522","v":"847"},{"$f":"'Data SBP Measures'!$U3522&B1954","v":"114Work Orders Completed"},{"$f":"'Data SBP Measures'!$Y3522","v":"EACH"},null,null,null,null,null,"Groundskeeping - 114","Work Orders Completed",null,null,null,null,null,null,null,"2560","159","Y","290","STAR Flight","PERCENT","OUTCOME","ADOPTEDBUD",null,null,null,"STAR Flight","Availability 24/7 Aircraft",null,{"$f":"'Data SBP Measures'!$AF1954&'Data SBP Measures'!$AE1954& \" - \"& 'Data SBP Measures'!$U1954","v":"Availability 24/7 AircraftSTAR Flight - 159"},{"$f":"_xlfn.XLOOKUP(VALUE(W1954),'Data SBP Programs'!O:O,'Data SBP Programs'!S:S)","v":"STAR Flight"}]
[{"$f":"'Data SBP Measures'!$AI903&\" - \"&'Data SBP Measures'!$U903","v":"Guardianship - 125"},{"$f":"'Data SBP Measures'!$AF903","v":"# of Guardian annual & final accounts approved during FY"},{"$f":"'Data SBP Measures'!$T903","v":"1971"},{"$f":"'Data SBP Measures'!$U903&B1957","v":"125# of Guardian annual & final accounts approved during FY"},{"$f":"'Data SBP Measures'!$Y903","v":"EACH"},null,null,null,null,null,"Guardianship - 125","# of Guardian annual & final accounts approved during FY",null,null,null,null,null,null,null,"2560","159","Y","290","STAR Flight","PERCENT","OUTCOME","ADOPTEDBUD",null,null,null,"STAR Flight","Availability 24/7 Aircraft",null,{"$f":"'Data SBP Measures'!$AF1957&'Data SBP Measures'!$AE1957& \" - \"& 'Data SBP Measures'!$U1957","v":"Availability 24/7 AircraftSTAR Flight - 159"},{"$f":"_xlfn.XLOOKUP(VALUE(W1957),'Data SBP Programs'!O:O,'Data SBP Programs'!S:S)","v":"STAR Flight"}]
[{"$f":"'Data SBP Measures'!$AI899&\" - \"&'Data SBP Measures'!$U899","v":"Guardianship - 125"},{"$f":"'Data SBP Measures'!$AF899","v":"# of Guardian annual & final accounts filed during FY"},{"$f":"'Data SBP Measures'!$T899","v":"1970"},{"$f":"'Data SBP Measures'!$U899&B1959","v":"125# of Guardian annual & final accounts filed during FY"},{"$f":"'Data SBP Measures'!$Y899","v":"EACH"},null,null,null,null,null,"Guardianship - 125","# of Guardian annual & final accounts filed during FY",null,null,null,null,null,null,null,"2561","159","Y","290","STAR Flight","PERCENT","OUTCOME","ADOPTEDBUD",null,null,null,"STAR Flight","Availability12/7 Aircraft",null,{"$f":"'Data SBP Measures'!$AF1959&'Data SBP Measures'!$AE1959& \" - \"& 'Data SBP Measures'!$U1959","v":"Availability12/7 AircraftSTAR Flight - 159"},{"$f":"_xlfn.XLOOKUP(VALUE(W1959),'Data SBP Programs'!O:O,'Data SBP Programs'!S:S)","v":"STAR Flight"}]
[{"$f":"'Data SBP Measures'!$AI887&\" - \"&'Data SBP Measures'!$U887","v":"Guardianship - 125"},{"$f":"'Data SBP Measures'!$AF887","v":"# of Guardian annual & final reports approved during FY"},{"$f":"'Data SBP Measures'!$T887","v":"1961"},{"$f":"'Data SBP Measures'!$U887&B1962","v":"125# of Guardian annual & final reports approved during FY"},{"$f":"'Data SBP Measures'!$Y887","v":"EACH"},null,null,null,null,null,"Guardianship - 125","# of Guardian annual & final reports approved during FY",null,null,null,null,null,null,null,"2561","159","Y","290","STAR Flight","PERCENT","OUTCOME","ADOPTEDBUD",null,null,null,"STAR Flight","Availability12/7 Aircraft",null,{"$f":"'Data SBP Measures'!$AF1962&'Data SBP Measures'!$AE1962& \" - \"& 'Data SBP Measures'!$U1962","v":"Availability12/7 AircraftSTAR Flight - 159"},{"$f":"_xlfn.XLOOKUP(VALUE(W1962),'Data SBP Programs'!O:O,'Data SBP Programs'!S:S)","v":"STAR Flight"}]
[{"$f":"'Data SBP Measures'!$AI884&\" - \"&'Data SBP Measures'!$U884","v":"Guardianship - 125"},{"$f":"'Data SBP Measures'!$AF884","v":"# of Guardian annual & final reports filed during FY"},{"$f":"'Data SBP Measures'!$T884","v":"1960"},{"$f":"'Data SBP Measures'!$U884&B1965","v":"125# of Guardian annual & final reports filed during FY"},{"$f":"'Data SBP Measures'!$Y884","v":"EACH"},null,null,null,null,null,"Guardianship - 125","# of Guardian annual & final reports filed during FY",null,null,null,null,null,null,null,"2562","159","Y","290","STAR Flight","PERCENT","OUTCOME","ADOPTEDBUD",null,null,null,"STAR Flight","Availability 3rd Aircraft- Not staffed or inservice",null,{"$f":"'Data SBP Measures'!$AF1965&'Data SBP Measures'!$AE1965& \" - \"& 'Data SBP Measures'!$U1965","v":"Availability 3rd Aircraft- Not staffed or inserviceSTAR Flight - 159"},{"$f":"_xlfn.XLOOKUP(VALUE(W1965),'Data SBP Programs'!O:O,'Data SBP Programs'!S:S)","v":"STAR Flight"}]
[{"$f":"'Data SBP Measures'!$AI880&\" - \"&'Data SBP Measures'!$U880","v":"Guardianship - 125"},{"$f":"'Data SBP Measures'!$AF880","v":"# of hearings on guardianship matters"},{"$f":"'Data SBP Measures'!$T880","v":"1957"},{"$f":"'Data SBP Measures'!$U880&B1967","v":"125# of hearings on guardianship matters"},{"$f":"'Data SBP Measures'!$Y880","v":"EACH"},null,null,null,null,null,"Guardianship - 125","# of hearings on guardianship matters",null,null,null,null,null,null,null,"2562","159","Y","290","STAR Flight","PERCENT","OUTCOME","ADOPTEDBUD",null,null,null,"STAR Flight","Availability 3rd Aircraft- Not staffed or inservice",null,{"$f":"'Data SBP Measures'!$AF1967&'Data SBP Measures'!$AE1967& \" - \"& 'Data SBP Measures'!$U1967","v":"Availability 3rd Aircraft- Not staffed or inserviceSTAR Flight - 159"},{"$f":"_xlfn.XLOOKUP(VALUE(W1967),'Data SBP Programs'!O:O,'Data SBP Programs'!S:S)","v":"STAR Flight"}]
[{"$f":"'Data SBP Measures'!$AI881&\" - \"&'Data SBP Measures'!$U881","v":"Guardianship - 125"},{"$f":"'Data SBP Measures'!$AF881","v":"# of hearings on guardianship matters"},{"$f":"'Data SBP Measures'!$T881","v":"1957"},{"$f":"'Data SBP Measures'!$U881&B1968","v":"125# of hearings on guardianship matters"},{"$f":"'Data SBP Measures'!$Y881","v":"EACH"},null,null,null,null,null,"Guardianship - 125","# of hearings on guardianship matters",null,null,null,null,null,null,null,"2562","159","Y","290","STAR Flight","PERCENT","OUTCOME","ADOPTEDBUD",null,null,null,"STAR Flight","Availability 3rd Aircraft- Not staffed or inservice",null,{"$f":"'Data SBP Measures'!$AF1968&'Data SBP Measures'!$AE1968& \" - \"& 'Data SBP Measures'!$U1968","v":"Availability 3rd Aircraft- Not staffed or inserviceSTAR Flight - 159"},{"$f":"_xlfn.XLOOKUP(VALUE(W1968),'Data SBP Programs'!O:O,'Data SBP Programs'!S:S)","v":"STAR Flight"}]
[{"$f":"'Data SBP Measures'!$AI892&\" - \"&'Data SBP Measures'!$U892","v":"Guardianship - 125"},{"$f":"'Data SBP Measures'!$AF892","v":"# of visits of wards & proposed wards by Court staff during FY"},{"$f":"'Data SBP Measures'!$T892","v":"1965"},{"$f":"'Data SBP Measures'!$U892&B1970","v":"125# of visits of wards & proposed wards by Court staff during FY"},{"$f":"'Data SBP Measures'!$Y892","v":"EACH"},null,null,null,null,null,"Guardianship - 125","# of visits of wards & proposed wards by Court staff during FY",null,null,null,null,null,null,null,"2562","159","Y","290","STAR Flight","PERCENT","OUTCOME","ADOPTEDBUD",null,null,null,"STAR Flight","Availability 3rd Aircraft- Not staffed or inservice",null,{"$f":"'Data SBP Measures'!$AF1970&'Data SBP Measures'!$AE1970& \" - \"& 'Data SBP Measures'!$U1970","v":"Availability 3rd Aircraft- Not staffed or inserviceSTAR Flight - 159"},{"$f":"_xlfn.XLOOKUP(VALUE(W1970),'Data SBP Programs'!O:O,'Data SBP Programs'!S:S)","v":"STAR Flight"}]
[{"$f":"'Data SBP Measures'!$AI895&\" - \"&'Data SBP Measures'!$U895","v":"Guardianship - 125"},{"$f":"'Data SBP Measures'!$AF895","v":"# of visits of wards & proposed wards by Court Visitors during FY"},{"$f":"'Data SBP Measures'!$T895","v":"1966"},{"$f":"'Data SBP Measures'!$U895&B1973","v":"125# of visits of wards & proposed wards by Court Visitors during FY"},{"$f":"'Data SBP Measures'!$Y895","v":"EACH"},null,null,null,null,null,"Guardianship - 125","# of visits of wards & proposed wards by Court Visitors during FY",null,null,null,null,null,null,null,"2565","159","Y","290","STAR Flight","PERCENT","OUTCOME","ADOPTEDBUD",null,null,null,"STAR Flight","Public Relations Request Processed Within 5 Business Days.",null,{"$f":"'Data SBP Measures'!$AF1973&'Data SBP Measures'!$AE1973& \" - \"& 'Data SBP Measures'!$U1973","v":"Public Relations Request Processed Within 5 Business Days.STAR Flight - 159"},{"$f":"_xlfn.XLOOKUP(VALUE(W1973),'Data SBP Programs'!O:O,'Data SBP Programs'!S:S)","v":"STAR Flight"}]
[{"$f":"'Data SBP Measures'!$AI907&\" - \"&'Data SBP Measures'!$U907","v":"Guardianship - 125"},{"$f":"'Data SBP Measures'!$AF907","v":"# orders signed for other applications not requiring record hearing"},{"$f":"'Data SBP Measures'!$T907","v":"1977"},{"$f":"'Data SBP Measures'!$U907&B1976","v":"125# orders signed for other applications not requiring record hearing"},{"$f":"'Data SBP Measures'!$Y907","v":"EACH"},null,null,null,null,null,"Guardianship - 125","# orders signed for other applications not requiring record hearing",null,null,null,null,null,null,null,"2565","159","Y","290","STAR Flight","PERCENT","OUTCOME","ADOPTEDBUD",null,null,null,"STAR Flight","Public Relations Request Processed Within 5 Business Days.",null,{"$f":"'Data SBP Measures'!$AF1976&'Data SBP Measures'!$AE1976& \" - \"& 'Data SBP Measures'!$U1976","v":"Public Relations Request Processed Within 5 Business Days.STAR Flight - 159"},{"$f":"_xlfn.XLOOKUP(VALUE(W1976),'Data SBP Programs'!O:O,'Data SBP Programs'!S:S)","v":"STAR Flight"}]
[{"$f":"'Data SBP Measures'!$AI909&\" - \"&'Data SBP Measures'!$U909","v":"Guardianship - 125"},{"$f":"'Data SBP Measures'!$AF909","v":"# orders signed for other applications not requiring record hearing"},{"$f":"'Data SBP Measures'!$T909","v":"1977"},{"$f":"'Data SBP Measures'!$U909&B1978","v":"125# orders signed for other applications not requiring record hearing"},{"$f":"'Data SBP Measures'!$Y909","v":"EACH"},null,null,null,null,null,"Guardianship - 125","# orders signed for other applications not requiring record hearing",null,null,null,null,null,null,null,"2565","159","Y","290","STAR Flight","PERCENT","OUTCOME","ADOPTEDBUD",null,null,null,"STAR Flight","Public Relations Request Processed Within 5 Business Days.",null,{"$f":"'Data SBP Measures'!$AF1978&'Data SBP Measures'!$AE1978& \" - \"& 'Data SBP Measures'!$U1978","v":"Public Relations Request Processed Within 5 Business Days.STAR Flight - 159"},{"$f":"_xlfn.XLOOKUP(VALUE(W1978),'Data SBP Programs'!O:O,'Data SBP Programs'!S:S)","v":"STAR Flight"}]
[{"$f":"'Data SBP Measures'!$AI879&\" - \"&'Data SBP Measures'!$U879","v":"Guardianship - 125"},{"$f":"'Data SBP Measures'!$AF879","v":"# total active guardianships at FY mid-point (180 days)"},{"$f":"'Data SBP Measures'!$T879","v":"1953"},{"$f":"'Data SBP Measures'!$U879&B1981","v":"125# total active guardianships at FY mid-point (180 days)"},{"$f":"'Data SBP Measures'!$Y879","v":"EACH"},null,null,null,null,null,"Guardianship - 125","# total active guardianships at FY mid-point (180 days)",null,null,null,null,null,null,null,"257","108","Y","24","Property Tax Collections","DOLLARS","OUTCOME","ADOPTEDBUD",null,null,null,"Property Tax Collections","Delinquent Collection amounts ALL",null,{"$f":"'Data SBP Measures'!$AF1981&'Data SBP Measures'!$AE1981& \" - \"& 'Data SBP Measures'!$U1981","v":"Delinquent Collection amounts ALLProperty Tax Collections - 108"},{"$f":"_xlfn.XLOOKUP(VALUE(W1981),'Data SBP Programs'!O:O,'Data SBP Programs'!S:S)","v":"Property Tax Collections"}]
[{"$f":"'Data SBP Measures'!$AI870&\" - \"&'Data SBP Measures'!$U870","v":"Guardianship - 125"},{"$f":"'Data SBP Measures'!$AF870","v":"Applications for guardianship filed"},{"$f":"'Data SBP Measures'!$T870","v":"1942"},{"$f":"'Data SBP Measures'!$U870&B1984","v":"125Applications for guardianship filed"},{"$f":"'Data SBP Measures'!$Y870","v":"EACH"},null,null,null,null,null,"Guardianship - 125","Applications for guardianship filed",null,null,null,null,null,null,null,"2572","138","Y","260","Investigations","EACH","OUTPUT","ADOPTEDBUD",null,null,null,"Investigations","Certification Cases (CT)",null,{"$f":"'Data SBP Measures'!$AF1984&'Data SBP Measures'!$AE1984& \" - \"& 'Data SBP Measures'!$U1984","v":"Certification Cases (CT)Investigations - 138"},{"$f":"_xlfn.XLOOKUP(VALUE(W1984),'Data SBP Programs'!O:O,'Data SBP Programs'!S:S)","v":"Investigations"}]
[{"$f":"'Data SBP Measures'!$AI872&\" - \"&'Data SBP Measures'!$U872","v":"Guardianship - 125"},{"$f":"'Data SBP Measures'!$AF872","v":"Applications for guardianship granted"},{"$f":"'Data SBP Measures'!$T872","v":"1943"},{"$f":"'Data SBP Measures'!$U872&B1986","v":"125Applications for guardianship granted"},{"$f":"'Data SBP Measures'!$Y872","v":"EACH"},null,null,null,null,null,"Guardianship - 125","Applications for guardianship granted",null,null,null,null,null,null,null,"2574","138","Y","259","Administration","EACH","OUTPUT","ADOPTEDBUD",null,null,null,"Administration","Cremation Authorizations Issued – Travis County",null,{"$f":"'Data SBP Measures'!$AF1986&'Data SBP Measures'!$AE1986& \" - \"& 'Data SBP Measures'!$U1986","v":"Cremation Authorizations Issued – Travis CountyAdministration - 138"},{"$f":"_xlfn.XLOOKUP(VALUE(W1986),'Data SBP Programs'!O:O,'Data SBP Programs'!S:S)","v":"Administration"}]
[{"$f":"'Data SBP Measures'!$AI873&\" - \"&'Data SBP Measures'!$U873","v":"Guardianship - 125"},{"$f":"'Data SBP Measures'!$AF873","v":"Applications for guardianship granted"},{"$f":"'Data SBP Measures'!$T873","v":"1943"},{"$f":"'Data SBP Measures'!$U873&B1987","v":"125Applications for guardianship granted"},{"$f":"'Data SBP Measures'!$Y873","v":"EACH"},null,null,null,null,null,"Guardianship - 125","Applications for guardianship granted",null,null,null,null,null,null,null,"2575","138","Y","259","Administration","EACH","OUTPUT","ADOPTEDBUD",null,null,null,"Administration","Death Certifications Issued – Travis County",null,{"$f":"'Data SBP Measures'!$AF1987&'Data SBP Measures'!$AE1987& \" - \"& 'Data SBP Measures'!$U1987","v":"Death Certifications Issued – Travis CountyAdministration - 138"},{"$f":"_xlfn.XLOOKUP(VALUE(W1987),'Data SBP Programs'!O:O,'Data SBP Programs'!S:S)","v":"Administration"}]
[{"$f":"'Data SBP Measures'!$AI863&\" - \"&'Data SBP Measures'!$U863","v":"Guardianship - 125"},{"$f":"'Data SBP Measures'!$AF863","v":"Cases where the need for a guardianship is investigated by the Court, which includes a statutorily required on-site visit"},{"$f":"'Data SBP Measures'!$T863","v":"1931"},{"$f":"'Data SBP Measures'!$U863&B1989","v":"125Cases where the need for a guardianship is investigated by the Court, which includes a statutorily required on-site visit"},{"$f":"'Data SBP Measures'!$Y863","v":"EACH"},null,null,null,null,null,"Guardianship - 125","Cases where the need for a guardianship is investigated by the Court, which includes a statutorily required on-site visit",null,null,null,null,null,null,null,"2577","138","Y","263","Pathology","EACH","OUTPUT","ADOPTEDBUD",null,null,null,"Pathology","Travis County Autopsies",null,{"$f":"'Data SBP Measures'!$AF1989&'Data SBP Measures'!$AE1989& \" - \"& 'Data SBP Measures'!$U1989","v":"Travis County AutopsiesPathology - 138"},{"$f":"_xlfn.XLOOKUP(VALUE(W1989),'Data SBP Programs'!O:O,'Data SBP Programs'!S:S)","v":"Pathology"}]
[{"$f":"'Data SBP Measures'!$AI866&\" - \"&'Data SBP Measures'!$U866","v":"Guardianship - 125"},{"$f":"'Data SBP Measures'!$AF866","v":"Chapter 48 protective orders filed by APS & County Atty"},{"$f":"'Data SBP Measures'!$T866","v":"1941"},{"$f":"'Data SBP Measures'!$U866&B1992","v":"125Chapter 48 protective orders filed by APS & County Atty"},{"$f":"'Data SBP Measures'!$Y866","v":"EACH"},null,null,null,null,null,"Guardianship - 125","Chapter 48 protective orders filed by APS & County Atty",null,null,null,null,null,null,null,"2578","138","Y","263","Pathology","EACH","OUTPUT","ADOPTEDBUD",null,null,null,"Pathology","Travis County External Exams",null,{"$f":"'Data SBP Measures'!$AF1992&'Data SBP Measures'!$AE1992& \" - \"& 'Data SBP Measures'!$U1992","v":"Travis County External ExamsPathology - 138"},{"$f":"_xlfn.XLOOKUP(VALUE(W1992),'Data SBP Programs'!O:O,'Data SBP Programs'!S:S)","v":"Pathology"}]
[{"$f":"'Data SBP Measures'!$AI905&\" - \"&'Data SBP Measures'!$U905","v":"Guardianship - 125"},{"$f":"'Data SBP Measures'!$AF905","v":"Clearance rates for Guardian annual & final accounts"},{"$f":"'Data SBP Measures'!$T905","v":"1972"},{"$f":"'Data SBP Measures'!$U905&B1995","v":"125Clearance rates for Guardian annual & final accounts"},{"$f":"'Data SBP Measures'!$Y905","v":"PERCENT"},null,null,null,null,null,"Guardianship - 125","Clearance rates for Guardian annual & final accounts",null,null,null,null,null,null,null,"258","108","Y","24","Property Tax Collections","PERCENT","OUTCOME","NEITHER",null,null,null,"Property Tax Collections","On-time Collection Rate TCO",null,{"$f":"'Data SBP Measures'!$AF1995&'Data SBP Measures'!$AE1995& \" - \"& 'Data SBP Measures'!$U1995","v":"On-time Collection Rate TCOProperty Tax Collections - 108"},{"$f":"_xlfn.XLOOKUP(VALUE(W1995),'Data SBP Programs'!O:O,'Data SBP Programs'!S:S)","v":"Property Tax Collections"}]
[{"$f":"'Data SBP Measures'!$AI890&\" - \"&'Data SBP Measures'!$U890","v":"Guardianship - 125"},{"$f":"'Data SBP Measures'!$AF890","v":"Clearance rates for Guardian annual & final reports"},{"$f":"'Data SBP Measures'!$T890","v":"1962"},{"$f":"'Data SBP Measures'!$U890&B1998","v":"125Clearance rates for Guardian annual & final reports"},{"$f":"'Data SBP Measures'!$Y890","v":"PERCENT"},null,null,null,null,null,"Guardianship - 125","Clearance rates for Guardian annual & final reports",null,null,null,null,null,null,null,"2582","116","Y","176","Veterans Services","EACH","OUTPUT","ADOPTEDBUD",null,null,null,"Veterans Services","# of Referrals",null,{"$f":"'Data SBP Measures'!$AF1998&'Data SBP Measures'!$AE1998& \" - \"& 'Data SBP Measures'!$U1998","v":"# of ReferralsVeterans Services - 116"},{"$f":"_xlfn.XLOOKUP(VALUE(W1998),'Data SBP Programs'!O:O,'Data SBP Programs'!S:S)","v":"Veterans Services"}]
[{"$f":"'Data SBP Measures'!$AI874&\" - \"&'Data SBP Measures'!$U874","v":"Guardianship - 125"},{"$f":"'Data SBP Measures'!$AF874","v":"Clearance rates for guardianship cases during FY"},{"$f":"'Data SBP Measures'!$T874","v":"1946"},{"$f":"'Data SBP Measures'!$U874&B2000","v":"125Clearance rates for guardianship cases during FY"},{"$f":"'Data SBP Measures'!$Y874","v":"PERCENT"},null,null,null,null,null,"Guardianship - 125","Clearance rates for guardianship cases during FY",null,null,null,null,null,null,null,"2585","112","Y","301","Privacy Office\n","EACH","OUTPUT","ADOPTEDBUD",null,null,null,"Privacy Office\n","Assessments & audits conducted",null,{"$f":"'Data SBP Measures'!$AF2000&'Data SBP Measures'!$AE2000& \" - \"& 'Data SBP Measures'!$U2000","v":"Assessments & audits conductedPrivacy Office\n - 112"},{"$f":"_xlfn.XLOOKUP(VALUE(W2000),'Data SBP Programs'!O:O,'Data SBP Programs'!S:S)","v":"Privacy Office\n"}]
[{"$f":"'Data SBP Measures'!$AI3570&\" - \"&'Data SBP Measures'!$U3570","v":"Health Services - 145"},{"$f":"'Data SBP Measures'!$AF3570","v":"Number of juveniles receiving individual and group therapy"},{"$f":"'Data SBP Measures'!$T3570","v":"930"},{"$f":"'Data SBP Measures'!$U3570&B2003","v":"145Number of juveniles receiving individual and group therapy"},{"$f":"'Data SBP Measures'!$Y3570","v":"EACH"},null,null,null,null,null,"Health Services - 145","Number of juveniles receiving individual and group therapy",null,null,null,null,null,null,null,"259","108","Y","24","Property Tax Collections","PERCENT","OUTCOME","NEITHER",null,null,null,"Property Tax Collections","Total Collection Rate TCO",null,{"$f":"'Data SBP Measures'!$AF2003&'Data SBP Measures'!$AE2003& \" - \"& 'Data SBP Measures'!$U2003","v":"Total Collection Rate TCOProperty Tax Collections - 108"},{"$f":"_xlfn.XLOOKUP(VALUE(W2003),'Data SBP Programs'!O:O,'Data SBP Programs'!S:S)","v":"Property Tax Collections"}]
[{"$f":"'Data SBP Measures'!$AI3550&\" - \"&'Data SBP Measures'!$U3550","v":"Health Services - 145"},{"$f":"'Data SBP Measures'!$AF3550","v":"Number of Psychologicals Administered"},{"$f":"'Data SBP Measures'!$T3550","v":"907"},{"$f":"'Data SBP Measures'!$U3550&B2005","v":"145Number of Psychologicals Administered"},{"$f":"'Data SBP Measures'!$Y3550","v":"EACH"},null,null,null,null,null,"Health Services - 145","Number of Psychologicals Administered",null,null,null,null,null,null,null,"2590","155","Y","285","Law Library","EACH","OUTPUT","BLACKBOOK",null,null,null,"Law Library","Number of patrons assisted by driver's license reference attorneys",null,{"$f":"'Data SBP Measures'!$AF2005&'Data SBP Measures'!$AE2005& \" - \"& 'Data SBP Measures'!$U2005","v":"Number of patrons assisted by driver's license reference attorneysLaw Library - 155"},{"$f":"_xlfn.XLOOKUP(VALUE(W2005),'Data SBP Programs'!O:O,'Data SBP Programs'!S:S)","v":"Law Library"}]
[{"$f":"'Data SBP Measures'!$AI3551&\" - \"&'Data SBP Measures'!$U3551","v":"Health Services - 145"},{"$f":"'Data SBP Measures'!$AF3551","v":"Number of Psychologicals Administered"},{"$f":"'Data SBP Measures'!$T3551","v":"907"},{"$f":"'Data SBP Measures'!$U3551&B2006","v":"145Number of Psychologicals Administered"},{"$f":"'Data SBP Measures'!$Y3551","v":"EACH"},null,null,null,null,null,"Health Services - 145","Number of Psychologicals Administered",null,null,null,null,null,null,null,"2590","155","Y","285","Law Library","EACH","OUTPUT","BLACKBOOK",null,null,null,"Law Library","Number of patrons assisted by driver's license reference attorneys",null,{"$f":"'Data SBP Measures'!$AF2006&'Data SBP Measures'!$AE2006& \" - \"& 'Data SBP Measures'!$U2006","v":"Number of patrons assisted by driver's license reference attorneysLaw Library - 155"},{"$f":"_xlfn.XLOOKUP(VALUE(W2006),'Data SBP Programs'!O:O,'Data SBP Programs'!S:S)","v":"Law Library"}]
[{"$f":"'Data SBP Measures'!$AI3553&\" - \"&'Data SBP Measures'!$U3553","v":"Health Services - 145"},{"$f":"'Data SBP Measures'!$AF3553","v":"Total Number of Juveniles Medically Assessed"},{"$f":"'Data SBP Measures'!$T3553","v":"909"},{"$f":"'Data SBP Measures'!$U3553&B2008","v":"145Total Number of Juveniles Medically Assessed"},{"$f":"'Data SBP Measures'!$Y3553","v":"EACH"},null,null,null,null,null,"Health Services - 145","Total Number of Juveniles Medically Assessed",null,null,null,null,null,null,null,"2591","115","Y","292","Purchasing Office Compliance","EACH","INPUT","ADOPTEDBUD",null,null,null,"Purchasing Office Compliance","# of Better Builder projects monitored\n",null,{"$f":"'Data SBP Measures'!$AF2008&'Data SBP Measures'!$AE2008& \" - \"& 'Data SBP Measures'!$U2008","v":"# of Better Builder projects monitored\nPurchasing Office Compliance - 115"},{"$f":"_xlfn.XLOOKUP(VALUE(W2008),'Data SBP Programs'!O:O,'Data SBP Programs'!S:S)","v":"Purchasing Office Compliance"}]
[{"$f":"'Data SBP Measures'!$AI100&\" - \"&'Data SBP Measures'!$U100","v":"Healthy Families Travis County - 158"},{"$f":"'Data SBP Measures'!$AF100","v":"Percentage of families with no substantiated finding of child abuse or neglect"},{"$f":"'Data SBP Measures'!$T100","v":"1132"},{"$f":"'Data SBP Measures'!$U100&B2011","v":"158Percentage of families with no substantiated finding of child abuse or neglect"},{"$f":"'Data SBP Measures'!$Y100","v":"PERCENT"},null,null,null,null,null,"Healthy Families Travis County - 158","Percentage of families with no substantiated finding of child abuse or neglect",null,null,null,null,null,null,null,"260","108","Y","24","Property Tax Collections","EACH","OUTPUT","NEITHER",null,null,null,"Property Tax Collections","# Of February Delinquent Tax Statements mailed",null,{"$f":"'Data SBP Measures'!$AF2011&'Data SBP Measures'!$AE2011& \" - \"& 'Data SBP Measures'!$U2011","v":"# Of February Delinquent Tax Statements mailedProperty Tax Collections - 108"},{"$f":"_xlfn.XLOOKUP(VALUE(W2011),'Data SBP Programs'!O:O,'Data SBP Programs'!S:S)","v":"Property Tax Collections"}]
[{"$f":"'Data SBP Measures'!$AI699&\" - \"&'Data SBP Measures'!$U699","v":"Historical Commission - 117"},{"$f":"'Data SBP Measures'!$AF699","v":"# of special projects"},{"$f":"'Data SBP Measures'!$T699","v":"1759"},{"$f":"'Data SBP Measures'!$U699&B2014","v":"117# of special projects"},{"$f":"'Data SBP Measures'!$Y699","v":"EACH"},null,null,null,null,null,"Historical Commission - 117","# of special projects",null,null,null,null,null,null,null,"2602","137","Y","103","School Resource Officers (SRO)","EACH","INPUT","ADOPTEDBUD",null,null,null,"School Resource Officers (SRO)","No. of juvenile campus arrests",null,{"$f":"'Data SBP Measures'!$AF2014&'Data SBP Measures'!$AE2014& \" - \"& 'Data SBP Measures'!$U2014","v":"No. of juvenile campus arrestsSchool Resource Officers (SRO) - 137"},{"$f":"_xlfn.XLOOKUP(VALUE(W2014),'Data SBP Programs'!O:O,'Data SBP Programs'!S:S)","v":"School Resource Officers (SRO)"}]
[{"$f":"'Data SBP Measures'!$AI700&\" - \"&'Data SBP Measures'!$U700","v":"Historical Commission - 117"},{"$f":"'Data SBP Measures'!$AF700","v":"Volunteer hours contributed"},{"$f":"'Data SBP Measures'!$T700","v":"1760"},{"$f":"'Data SBP Measures'!$U700&B2017","v":"117Volunteer hours contributed"},{"$f":"'Data SBP Measures'!$Y700","v":"HOURS"},null,null,null,null,null,"Historical Commission - 117","Volunteer hours contributed",null,null,null,null,null,null,null,"2605","137","Y","103","School Resource Officers (SRO)","EACH","INPUT","ADOPTEDBUD",null,null,null,"School Resource Officers (SRO)","No. of mentoring hours",null,{"$f":"'Data SBP Measures'!$AF2017&'Data SBP Measures'!$AE2017& \" - \"& 'Data SBP Measures'!$U2017","v":"No. of mentoring hoursSchool Resource Officers (SRO) - 137"},{"$f":"_xlfn.XLOOKUP(VALUE(W2017),'Data SBP Programs'!O:O,'Data SBP Programs'!S:S)","v":"School Resource Officers (SRO)"}]
[{"$f":"'Data SBP Measures'!$AI2982&\" - \"&'Data SBP Measures'!$U2982","v":"Hospital Visitation Unit - 137"},{"$f":"'Data SBP Measures'!$AF2982","v":"Average inmates hospitalized month"},{"$f":"'Data SBP Measures'!$T2982","v":"3515"},{"$f":"'Data SBP Measures'!$U2982&B2019","v":"137Average inmates hospitalized month"},{"$f":"'Data SBP Measures'!$Y2982","v":"EACH"},null,null,null,null,null,"Hospital Visitation Unit - 137","Average inmates hospitalized month",null,null,null,null,null,null,null,"2607","137","Y","103","School Resource Officers (SRO)","EACH","INPUT","ADOPTEDBUD",null,null,null,"School Resource Officers (SRO)","No. of parent meeting",null,{"$f":"'Data SBP Measures'!$AF2019&'Data SBP Measures'!$AE2019& \" - \"& 'Data SBP Measures'!$U2019","v":"No. of parent meetingSchool Resource Officers (SRO) - 137"},{"$f":"_xlfn.XLOOKUP(VALUE(W2019),'Data SBP Programs'!O:O,'Data SBP Programs'!S:S)","v":"School Resource Officers (SRO)"}]
[{"$f":"'Data SBP Measures'!$AI2984&\" - \"&'Data SBP Measures'!$U2984","v":"Hospital Visitation Unit - 137"},{"$f":"'Data SBP Measures'!$AF2984","v":"Total no of hospital hours"},{"$f":"'Data SBP Measures'!$T2984","v":"3517"},{"$f":"'Data SBP Measures'!$U2984&B2022","v":"137Total no of hospital hours"},{"$f":"'Data SBP Measures'!$Y2984","v":"HOURS"},null,null,null,null,null,"Hospital Visitation Unit - 137","Total no of hospital hours",null,null,null,null,null,null,null,"2610","137","Y","103","School Resource Officers (SRO)","EACH","INPUT","ADOPTEDBUD",null,null,null,"School Resource Officers (SRO)","No. of K9 searches",null,{"$f":"'Data SBP Measures'!$AF2022&'Data SBP Measures'!$AE2022& \" - \"& 'Data SBP Measures'!$U2022","v":"No. of K9 searchesSchool Resource Officers (SRO) - 137"},{"$f":"_xlfn.XLOOKUP(VALUE(W2022),'Data SBP Programs'!O:O,'Data SBP Programs'!S:S)","v":"School Resource Officers (SRO)"}]
[{"$f":"'Data SBP Measures'!$AI2990&\" - \"&'Data SBP Measures'!$U2990","v":"Hospital Visitation Unit - 137"},{"$f":"'Data SBP Measures'!$AF2990","v":"Total no of HVU hours"},{"$f":"'Data SBP Measures'!$T2990","v":"3523"},{"$f":"'Data SBP Measures'!$U2990&B2024","v":"137Total no of HVU hours"},{"$f":"'Data SBP Measures'!$Y2990","v":"HOURS"},null,null,null,null,null,"Hospital Visitation Unit - 137","Total no of HVU hours",null,null,null,null,null,null,null,"2612","137","Y","84","Inmate Programs and Education - Library","EACH","INPUT","ADOPTEDBUD",null,null,null,"Inmate Programs and Education - Library","No. of PSY patient with mild mental health needs (MH1)",null,{"$f":"'Data SBP Measures'!$AF2024&'Data SBP Measures'!$AE2024& \" - \"& 'Data SBP Measures'!$U2024","v":"No. of PSY patient with mild mental health needs (MH1)Inmate Programs and Education - Library - 137"},{"$f":"_xlfn.XLOOKUP(VALUE(W2024),'Data SBP Programs'!O:O,'Data SBP Programs'!S:S)","v":"Inmate Programs and Education - Library"}]
[{"$f":"'Data SBP Measures'!$AI2989&\" - \"&'Data SBP Measures'!$U2989","v":"Hospital Visitation Unit - 137"},{"$f":"'Data SBP Measures'!$AF2989","v":"Total no of HVU runs"},{"$f":"'Data SBP Measures'!$T2989","v":"3522"},{"$f":"'Data SBP Measures'!$U2989&B2025","v":"137Total no of HVU runs"},{"$f":"'Data SBP Measures'!$Y2989","v":"EACH"},null,null,null,null,null,"Hospital Visitation Unit - 137","Total no of HVU runs",null,null,null,null,null,null,null,"2612","137","Y","84","Inmate Programs and Education - Library","EACH","INPUT","ADOPTEDBUD",null,null,null,"Inmate Programs and Education - Library","No. of PSY patient with mild mental health needs (MH1)",null,{"$f":"'Data SBP Measures'!$AF2025&'Data SBP Measures'!$AE2025& \" - \"& 'Data SBP Measures'!$U2025","v":"No. of PSY patient with mild mental health needs (MH1)Inmate Programs and Education - Library - 137"},{"$f":"_xlfn.XLOOKUP(VALUE(W2025),'Data SBP Programs'!O:O,'Data SBP Programs'!S:S)","v":"Inmate Programs and Education - Library"}]
[{"$f":"'Data SBP Measures'!$AI102&\" - \"&'Data SBP Measures'!$U102","v":"Housing Services - 158"},{"$f":"'Data SBP Measures'!$AF102","v":"% of DOE WAP expenditures completed"},{"$f":"'Data SBP Measures'!$T102","v":"1134"},{"$f":"'Data SBP Measures'!$U102&B2028","v":"158% of DOE WAP expenditures completed"},{"$f":"'Data SBP Measures'!$Y102","v":"PERCENT"},null,null,null,null,null,"Housing Services - 158","% of DOE WAP expenditures completed",null,null,null,null,null,null,null,"2613","137","Y","84","Inmate Programs and Education - Library","EACH","INPUT","ADOPTEDBUD",null,null,null,"Inmate Programs and Education - Library","No. of PSY patient with moderate mental health needs (MH2)",null,{"$f":"'Data SBP Measures'!$AF2028&'Data SBP Measures'!$AE2028& \" - \"& 'Data SBP Measures'!$U2028","v":"No. of PSY patient with moderate mental health needs (MH2)Inmate Programs and Education - Library - 137"},{"$f":"_xlfn.XLOOKUP(VALUE(W2028),'Data SBP Programs'!O:O,'Data SBP Programs'!S:S)","v":"Inmate Programs and Education - Library"}]
[{"$f":"'Data SBP Measures'!$AI104&\" - \"&'Data SBP Measures'!$U104","v":"Housing Services - 158"},{"$f":"'Data SBP Measures'!$AF104","v":"% of LIHEAP WAP expenditures completed"},{"$f":"'Data SBP Measures'!$T104","v":"1136"},{"$f":"'Data SBP Measures'!$U104&B2030","v":"158% of LIHEAP WAP expenditures completed"},{"$f":"'Data SBP Measures'!$Y104","v":"PERCENT"},null,null,null,null,null,"Housing Services - 158","% of LIHEAP WAP expenditures completed",null,null,null,null,null,null,null,"2614","137","Y","84","Inmate Programs and Education - Library","EACH","INPUT","ADOPTEDBUD",null,null,null,"Inmate Programs and Education - Library","No. of PSY patient with severe mental health needs (MH3)",null,{"$f":"'Data SBP Measures'!$AF2030&'Data SBP Measures'!$AE2030& \" - \"& 'Data SBP Measures'!$U2030","v":"No. of PSY patient with severe mental health needs (MH3)Inmate Programs and Education - Library - 137"},{"$f":"_xlfn.XLOOKUP(VALUE(W2030),'Data SBP Programs'!O:O,'Data SBP Programs'!S:S)","v":"Inmate Programs and Education - Library"}]
[{"$f":"'Data SBP Measures'!$AI2793&\" - \"&'Data SBP Measures'!$U2793","v":"HR Administration - 111"},{"$f":"'Data SBP Measures'!$AF2793","v":"# of Staff recognized in Employee Appreciatation Court Resolution"},{"$f":"'Data SBP Measures'!$T2793","v":"3382"},{"$f":"'Data SBP Measures'!$U2793&B2033","v":"111# of Staff recognized in Employee Appreciatation Court Resolution"},{"$f":"'Data SBP Measures'!$Y2793","v":"EACH"},null,null,null,null,null,"HR Administration - 111","# of Staff recognized in Employee Appreciatation Court Resolution",null,null,null,null,null,null,null,"2617","137","Y","106","Special Weapons & Tactical Unit (SWAT)","EACH","INPUT","ADOPTEDBUD",null,null,null,"Special Weapons & Tactical Unit (SWAT)","No. of planned missions",null,{"$f":"'Data SBP Measures'!$AF2033&'Data SBP Measures'!$AE2033& \" - \"& 'Data SBP Measures'!$U2033","v":"No. of planned missionsSpecial Weapons & Tactical Unit (SWAT) - 137"},{"$f":"_xlfn.XLOOKUP(VALUE(W2033),'Data SBP Programs'!O:O,'Data SBP Programs'!S:S)","v":"Special Weapons & Tactical Unit (SWAT)"}]
[{"$f":"'Data SBP Measures'!$AI2798&\" - \"&'Data SBP Measures'!$U2798","v":"HR Administration - 111"},{"$f":"'Data SBP Measures'!$AF2798","v":"Adverse Impacts (penalties, late fees, etc.) on the Operating Budget"},{"$f":"'Data SBP Measures'!$T2798","v":"3387"},{"$f":"'Data SBP Measures'!$U2798&B2036","v":"111Adverse Impacts (penalties, late fees, etc.) on the Operating Budget"},{"$f":"'Data SBP Measures'!$Y2798","v":"DOLLARS"},null,null,null,null,null,"HR Administration - 111","Adverse Impacts (penalties, late fees, etc.) on the Operating Budget",null,null,null,null,null,null,null,"262","108","Y","24","Property Tax Collections","EACH","OUTPUT","NEITHER",null,null,null,"Property Tax Collections","# Of demand letters",null,{"$f":"'Data SBP Measures'!$AF2036&'Data SBP Measures'!$AE2036& \" - \"& 'Data SBP Measures'!$U2036","v":"# Of demand lettersProperty Tax Collections - 108"},{"$f":"_xlfn.XLOOKUP(VALUE(W2036),'Data SBP Programs'!O:O,'Data SBP Programs'!S:S)","v":"Property Tax Collections"}]
[{"$f":"'Data SBP Measures'!$AI2794&\" - \"&'Data SBP Measures'!$U2794","v":"HR Administration - 111"},{"$f":"'Data SBP Measures'!$AF2794","v":"Average # of HRMD General Information Line calls answered"},{"$f":"'Data SBP Measures'!$T2794","v":"3383"},{"$f":"'Data SBP Measures'!$U2794&B2038","v":"111Average # of HRMD General Information Line calls answered"},{"$f":"'Data SBP Measures'!$Y2794","v":"EACH"},null,null,null,null,null,"HR Administration - 111","Average # of HRMD General Information Line calls answered",null,null,null,null,null,null,null,"2621","106","Y","178","Auditor's Office","PERCENT","OUTCOME","ADOPTEDBUD",null,null,null,"Auditor's Office","% of vendors payments paid electronically (ACH/EFT)",null,{"$f":"'Data SBP Measures'!$AF2038&'Data SBP Measures'!$AE2038& \" - \"& 'Data SBP Measures'!$U2038","v":"% of vendors payments paid electronically (ACH/EFT)Auditor's Office - 106"},{"$f":"_xlfn.XLOOKUP(VALUE(W2038),'Data SBP Programs'!O:O,'Data SBP Programs'!S:S)","v":"Auditor's Office"}]
[{"$f":"'Data SBP Measures'!$AI2190&\" - \"&'Data SBP Measures'!$U2190","v":"HR Administration - 111"},{"$f":"'Data SBP Measures'!$AF2190","v":"Percent Results \"Appropriate Support\" provided from survey from staff"},{"$f":"'Data SBP Measures'!$T2190","v":"2713"},{"$f":"'Data SBP Measures'!$U2190&B2041","v":"111Percent Results \"Appropriate Support\" provided from survey from staff"},{"$f":"'Data SBP Measures'!$Y2190","v":"PERCENT"},null,null,null,null,null,"HR Administration - 111","Percent Results \"Appropriate Support\" provided from survey from staff",null,null,null,null,null,null,null,"2624","140","Y","293","Phoenix Court - Prostitution Prevention Program","EACH","OUTPUT","ADOPTEDBUD",null,null,null,"Phoenix Court - Prostitution Prevention Program","New Participants Enrolled",null,{"$f":"'Data SBP Measures'!$AF2041&'Data SBP Measures'!$AE2041& \" - \"& 'Data SBP Measures'!$U2041","v":"New Participants EnrolledPhoenix Court - Prostitution Prevention Program - 140"},{"$f":"_xlfn.XLOOKUP(VALUE(W2041),'Data SBP Programs'!O:O,'Data SBP Programs'!S:S)","v":"Phoenix Court - Prostitution Prevention Program"}]
[{"$f":"'Data SBP Measures'!$AI2350&\" - \"&'Data SBP Measures'!$U2350","v":"HR Compensation - 111"},{"$f":"'Data SBP Measures'!$AF2350","v":"% of Jobs Changed PG as Result of Market Analysis"},{"$f":"'Data SBP Measures'!$T2350","v":"2926"},{"$f":"'Data SBP Measures'!$U2350&B2043","v":"111% of Jobs Changed PG as Result of Market Analysis"},{"$f":"'Data SBP Measures'!$Y2350","v":"PERCENT"},null,null,null,null,null,"HR Compensation - 111","% of Jobs Changed PG as Result of Market Analysis",null,null,null,null,null,null,null,"2626","140","Y","293","Phoenix Court - Prostitution Prevention Program","EACH","OUTPUT","BLACKBOOK",null,null,null,"Phoenix Court - Prostitution Prevention Program","# of clients referred to either IOP or IP Substance Abuse TX.",null,{"$f":"'Data SBP Measures'!$AF2043&'Data SBP Measures'!$AE2043& \" - \"& 'Data SBP Measures'!$U2043","v":"# of clients referred to either IOP or IP Substance Abuse TX.Phoenix Court - Prostitution Prevention Program - 140"},{"$f":"_xlfn.XLOOKUP(VALUE(W2043),'Data SBP Programs'!O:O,'Data SBP Programs'!S:S)","v":"Phoenix Court - Prostitution Prevention Program"}]
[{"$f":"'Data SBP Measures'!$AI2358&\" - \"&'Data SBP Measures'!$U2358","v":"HR Compensation - 111"},{"$f":"'Data SBP Measures'!$AF2358","v":"Career Ladders Processed"},{"$f":"'Data SBP Measures'!$T2358","v":"2933"},{"$f":"'Data SBP Measures'!$U2358&B2044","v":"111Career Ladders Processed"},{"$f":"'Data SBP Measures'!$Y2358","v":"EACH"},null,null,null,null,null,"HR Compensation - 111","Career Ladders Processed",null,null,null,null,null,null,null,"2627","140","Y","293","Phoenix Court - Prostitution Prevention Program","EACH","OUTPUT","BLACKBOOK",null,null,null,"Phoenix Court - Prostitution Prevention Program","# Completed either IOP or IP Substance Abuse TX.",null,{"$f":"'Data SBP Measures'!$AF2044&'Data SBP Measures'!$AE2044& \" - \"& 'Data SBP Measures'!$U2044","v":"# Completed either IOP or IP Substance Abuse TX.Phoenix Court - Prostitution Prevention Program - 140"},{"$f":"_xlfn.XLOOKUP(VALUE(W2044),'Data SBP Programs'!O:O,'Data SBP Programs'!S:S)","v":"Phoenix Court - Prostitution Prevention Program"}]
[{"$f":"'Data SBP Measures'!$AI2355&\" - \"&'Data SBP Measures'!$U2355","v":"HR Compensation - 111"},{"$f":"'Data SBP Measures'!$AF2355","v":"Involuntary Terminations Processed"},{"$f":"'Data SBP Measures'!$T2355","v":"2930"},{"$f":"'Data SBP Measures'!$U2355&B2047","v":"111Involuntary Terminations Processed"},{"$f":"'Data SBP Measures'!$Y2355","v":"EACH"},null,null,null,null,null,"HR Compensation - 111","Involuntary Terminations Processed",null,null,null,null,null,null,null,"263","108","Y","24","Property Tax Collections","EACH","OUTPUT","NEITHER",null,null,null,"Property Tax Collections","# Of searches for taxpayer contact via Accurint Data Base",null,{"$f":"'Data SBP Measures'!$AF2047&'Data SBP Measures'!$AE2047& \" - \"& 'Data SBP Measures'!$U2047","v":"# Of searches for taxpayer contact via Accurint Data BaseProperty Tax Collections - 108"},{"$f":"_xlfn.XLOOKUP(VALUE(W2047),'Data SBP Programs'!O:O,'Data SBP Programs'!S:S)","v":"Property Tax Collections"}]
[{"$f":"'Data SBP Measures'!$AI2360&\" - \"&'Data SBP Measures'!$U2360","v":"HR Compensation - 111"},{"$f":"'Data SBP Measures'!$AF2360","v":"Promotions Processed"},{"$f":"'Data SBP Measures'!$T2360","v":"2935"},{"$f":"'Data SBP Measures'!$U2360&B2049","v":"111Promotions Processed"},{"$f":"'Data SBP Measures'!$Y2360","v":"EACH"},null,null,null,null,null,"HR Compensation - 111","Promotions Processed",null,null,null,null,null,null,null,"2631","140","Y","293","Phoenix Court - Prostitution Prevention Program","PERCENT","OUTCOME","ADOPTEDBUD",null,null,null,"Phoenix Court - Prostitution Prevention Program","% of clients who have a decrease in trauma triggers",null,{"$f":"'Data SBP Measures'!$AF2049&'Data SBP Measures'!$AE2049& \" - \"& 'Data SBP Measures'!$U2049","v":"% of clients who have a decrease in trauma triggersPhoenix Court - Prostitution Prevention Program - 140"},{"$f":"_xlfn.XLOOKUP(VALUE(W2049),'Data SBP Programs'!O:O,'Data SBP Programs'!S:S)","v":"Phoenix Court - Prostitution Prevention Program"}]
[{"$f":"'Data SBP Measures'!$AI2357&\" - \"&'Data SBP Measures'!$U2357","v":"HR Compensation - 111"},{"$f":"'Data SBP Measures'!$AF2357","v":"Salary Changes Processed"},{"$f":"'Data SBP Measures'!$T2357","v":"2932"},{"$f":"'Data SBP Measures'!$U2357&B2052","v":"111Salary Changes Processed"},{"$f":"'Data SBP Measures'!$Y2357","v":"EACH"},null,null,null,null,null,"HR Compensation - 111","Salary Changes Processed",null,null,null,null,null,null,null,"2635","120","Y","33","General Administration","EACH","INPUT","ADOPTEDBUD",null,null,null,"General Administration","Hours spent creating, editing, and updating office policies and procedures",null,{"$f":"'Data SBP Measures'!$AF2052&'Data SBP Measures'!$AE2052& \" - \"& 'Data SBP Measures'!$U2052","v":"Hours spent creating, editing, and updating office policies and proceduresGeneral Administration - 120"},{"$f":"_xlfn.XLOOKUP(VALUE(W2052),'Data SBP Programs'!O:O,'Data SBP Programs'!S:S)","v":"General Administration"}]
[{"$f":"'Data SBP Measures'!$AI2363&\" - \"&'Data SBP Measures'!$U2363","v":"HR Compensation - 111"},{"$f":"'Data SBP Measures'!$AF2363","v":"SAP HELP Desk Tickets Processed"},{"$f":"'Data SBP Measures'!$T2363","v":"2938"},{"$f":"'Data SBP Measures'!$U2363&B2054","v":"111SAP HELP Desk Tickets Processed"},{"$f":"'Data SBP Measures'!$Y2363","v":"EACH"},null,null,null,null,null,"HR Compensation - 111","SAP HELP Desk Tickets Processed",null,null,null,null,null,null,null,"2637","149","Y","130","Fleet Services","PERCENT","EFFICIENCY","BLACKBOOK",null,null,null,"Fleet Services","% of Direct labor vs Indirect Labor",null,{"$f":"'Data SBP Measures'!$AF2054&'Data SBP Measures'!$AE2054& \" - \"& 'Data SBP Measures'!$U2054","v":"% of Direct labor vs Indirect LaborFleet Services - 149"},{"$f":"_xlfn.XLOOKUP(VALUE(W2054),'Data SBP Programs'!O:O,'Data SBP Programs'!S:S)","v":"Fleet Services"}]
[{"$f":"'Data SBP Measures'!$AI2993&\" - \"&'Data SBP Measures'!$U2993","v":"Human Resources - Recruiting - 137"},{"$f":"'Data SBP Measures'!$AF2993","v":"Background - Total Files Processed "},{"$f":"'Data SBP Measures'!$T2993","v":"3526"},{"$f":"'Data SBP Measures'!$U2993&B2057","v":"137Background - Total Files Processed "},{"$f":"'Data SBP Measures'!$Y2993","v":"EACH"},null,null,null,null,null,"Human Resources - Recruiting - 137","Background - Total Files Processed ",null,null,null,null,null,null,null,"264","108","Y","24","Property Tax Collections","EACH","OUTPUT","NEITHER",null,null,null,"Property Tax Collections","# Records Adjusted due to Resale",null,{"$f":"'Data SBP Measures'!$AF2057&'Data SBP Measures'!$AE2057& \" - \"& 'Data SBP Measures'!$U2057","v":"# Records Adjusted due to ResaleProperty Tax Collections - 108"},{"$f":"_xlfn.XLOOKUP(VALUE(W2057),'Data SBP Programs'!O:O,'Data SBP Programs'!S:S)","v":"Property Tax Collections"}]
[{"$f":"'Data SBP Measures'!$AI2473&\" - \"&'Data SBP Measures'!$U2473","v":"Human Resources - Recruiting - 137"},{"$f":"'Data SBP Measures'!$AF2473","v":"No in attendance - estimate"},{"$f":"'Data SBP Measures'!$T2473","v":"3118"},{"$f":"'Data SBP Measures'!$U2473&B2060","v":"137No in attendance - estimate"},{"$f":"'Data SBP Measures'!$Y2473","v":"EACH"},null,null,null,null,null,"Human Resources - Recruiting - 137","No in attendance - estimate",null,null,null,null,null,null,null,"2642","132","Y","294","Telecommunications","EACH","INPUT","ADOPTEDBUD",null,null,null,"Telecommunications","Haz. Traffic Violations",null,{"$f":"'Data SBP Measures'!$AF2060&'Data SBP Measures'!$AE2060& \" - \"& 'Data SBP Measures'!$U2060","v":"Haz. Traffic ViolationsTelecommunications - 132"},{"$f":"_xlfn.XLOOKUP(VALUE(W2060),'Data SBP Programs'!O:O,'Data SBP Programs'!S:S)","v":"Telecommunications"}]
[{"$f":"'Data SBP Measures'!$AI328&\" - \"&'Data SBP Measures'!$U328","v":"Human Resources - Recruiting - 137"},{"$f":"'Data SBP Measures'!$AF328","v":"No. of applicant packets received"},{"$f":"'Data SBP Measures'!$T328","v":"1395"},{"$f":"'Data SBP Measures'!$U328&B2062","v":"137No. of applicant packets received"},{"$f":"'Data SBP Measures'!$Y328","v":"EACH"},null,null,null,null,null,"Human Resources - Recruiting - 137","No. of applicant packets received",null,null,null,null,null,null,null,"2645","109","Y","11","Economic & Strategic Planning","PERCENT","OUTPUT","ADOPTEDBUD",null,null,null,"Economic & Strategic Planning","% annual survey respondents reporting satisfaction with divisional support, availability, and accessibility for space and program planning",null,{"$f":"'Data SBP Measures'!$AF2062&'Data SBP Measures'!$AE2062& \" - \"& 'Data SBP Measures'!$U2062","v":"% annual survey respondents reporting satisfaction with divisional support, availability, and accessibility for space and program planningEconomic & Strategic Planning - 109"},{"$f":"_xlfn.XLOOKUP(VALUE(W2062),'Data SBP Programs'!O:O,'Data SBP Programs'!S:S)","v":"Economic & Strategic Planning"}]
[{"$f":"'Data SBP Measures'!$AI329&\" - \"&'Data SBP Measures'!$U329","v":"Human Resources - Recruiting - 137"},{"$f":"'Data SBP Measures'!$AF329","v":"No. of applicant packets reviewed"},{"$f":"'Data SBP Measures'!$T329","v":"1396"},{"$f":"'Data SBP Measures'!$U329&B2063","v":"137No. of applicant packets reviewed"},{"$f":"'Data SBP Measures'!$Y329","v":"EACH"},null,null,null,null,null,"Human Resources - Recruiting - 137","No. of applicant packets reviewed",null,null,null,null,null,null,null,"2646","124","Y","51","County Courts Division","PERCENT","OUTPUT","NEITHER",null,null,null,"County Courts Division","% of cases granted a bond at BRD",null,{"$f":"'Data SBP Measures'!$AF2063&'Data SBP Measures'!$AE2063& \" - \"& 'Data SBP Measures'!$U2063","v":"% of cases granted a bond at BRDCounty Courts Division - 124"},{"$f":"_xlfn.XLOOKUP(VALUE(W2063),'Data SBP Programs'!O:O,'Data SBP Programs'!S:S)","v":"County Courts Division"}]
[{"$f":"'Data SBP Measures'!$AI332&\" - \"&'Data SBP Measures'!$U332","v":"Human Resources - Recruiting - 137"},{"$f":"'Data SBP Measures'!$AF332","v":"No. of applicants hired"},{"$f":"'Data SBP Measures'!$T332","v":"1399"},{"$f":"'Data SBP Measures'!$U332&B2066","v":"137No. of applicants hired"},{"$f":"'Data SBP Measures'!$Y332","v":"EACH"},null,null,null,null,null,"Human Resources - Recruiting - 137","No. of applicants hired",null,null,null,null,null,null,null,"2647","130","Y","240","Criminal Department","EACH","INPUT","ADOPTEDBUD",null,null,null,"Criminal Department","Examining Trials Scheduled",null,{"$f":"'Data SBP Measures'!$AF2066&'Data SBP Measures'!$AE2066& \" - \"& 'Data SBP Measures'!$U2066","v":"Examining Trials ScheduledCriminal Department - 130"},{"$f":"_xlfn.XLOOKUP(VALUE(W2066),'Data SBP Programs'!O:O,'Data SBP Programs'!S:S)","v":"Criminal Department"}]
[{"$f":"'Data SBP Measures'!$AI330&\" - \"&'Data SBP Measures'!$U330","v":"Human Resources - Recruiting - 137"},{"$f":"'Data SBP Measures'!$AF330","v":"No. of community events / projects"},{"$f":"'Data SBP Measures'!$T330","v":"1397"},{"$f":"'Data SBP Measures'!$U330&B2068","v":"137No. of community events / projects"},{"$f":"'Data SBP Measures'!$Y330","v":"EACH"},null,null,null,null,null,"Human Resources - Recruiting - 137","No. of community events / projects",null,null,null,null,null,null,null,"2647","130","Y","240","Criminal Department","EACH","INPUT","ADOPTEDBUD",null,null,null,"Criminal Department","Examining Trials Scheduled",null,{"$f":"'Data SBP Measures'!$AF2068&'Data SBP Measures'!$AE2068& \" - \"& 'Data SBP Measures'!$U2068","v":"Examining Trials ScheduledCriminal Department - 130"},{"$f":"_xlfn.XLOOKUP(VALUE(W2068),'Data SBP Programs'!O:O,'Data SBP Programs'!S:S)","v":"Criminal Department"}]
[{"$f":"'Data SBP Measures'!$AI334&\" - \"&'Data SBP Measures'!$U334","v":"Human Resources - Recruiting - 137"},{"$f":"'Data SBP Measures'!$AF334","v":"No. of interview boards"},{"$f":"'Data SBP Measures'!$T334","v":"1400"},{"$f":"'Data SBP Measures'!$U334&B2071","v":"137No. of interview boards"},{"$f":"'Data SBP Measures'!$Y334","v":"EACH"},null,null,null,null,null,"Human Resources - Recruiting - 137","No. of interview boards",null,null,null,null,null,null,null,"2648","130","Y","240","Criminal Department","EACH","INPUT","ADOPTEDBUD",null,null,null,"Criminal Department","Emergency Protection Orders",null,{"$f":"'Data SBP Measures'!$AF2071&'Data SBP Measures'!$AE2071& \" - \"& 'Data SBP Measures'!$U2071","v":"Emergency Protection OrdersCriminal Department - 130"},{"$f":"_xlfn.XLOOKUP(VALUE(W2071),'Data SBP Programs'!O:O,'Data SBP Programs'!S:S)","v":"Criminal Department"}]
[{"$f":"'Data SBP Measures'!$AI286&\" - \"&'Data SBP Measures'!$U286","v":"Human Resources - Recruiting - 137"},{"$f":"'Data SBP Measures'!$AF286","v":"No. of recruitment opportunities"},{"$f":"'Data SBP Measures'!$T286","v":"1339"},{"$f":"'Data SBP Measures'!$U286&B2073","v":"137No. of recruitment opportunities"},{"$f":"'Data SBP Measures'!$Y286","v":"HOURS"},null,null,null,null,null,"Human Resources - Recruiting - 137","No. of recruitment opportunities",null,null,null,null,null,null,null,"2648","130","Y","240","Criminal Department","EACH","INPUT","ADOPTEDBUD",null,null,null,"Criminal Department","Emergency Protection Orders",null,{"$f":"'Data SBP Measures'!$AF2073&'Data SBP Measures'!$AE2073& \" - \"& 'Data SBP Measures'!$U2073","v":"Emergency Protection OrdersCriminal Department - 130"},{"$f":"_xlfn.XLOOKUP(VALUE(W2073),'Data SBP Programs'!O:O,'Data SBP Programs'!S:S)","v":"Criminal Department"}]
[{"$f":"'Data SBP Measures'!$AI2476&\" - \"&'Data SBP Measures'!$U2476","v":"Human Resources - Recruiting - 137"},{"$f":"'Data SBP Measures'!$AF2476","v":"No. of volunteer hours - costing"},{"$f":"'Data SBP Measures'!$T2476","v":"3120"},{"$f":"'Data SBP Measures'!$U2476&B2076","v":"137No. of volunteer hours - costing"},{"$f":"'Data SBP Measures'!$Y2476","v":"EACH"},null,null,null,null,null,"Human Resources - Recruiting - 137","No. of volunteer hours - costing",null,null,null,null,null,null,null,"2648","130","Y","240","Criminal Department","EACH","INPUT","ADOPTEDBUD",null,null,null,"Criminal Department","Emergency Protection Orders",null,{"$f":"'Data SBP Measures'!$AF2076&'Data SBP Measures'!$AE2076& \" - \"& 'Data SBP Measures'!$U2076","v":"Emergency Protection OrdersCriminal Department - 130"},{"$f":"_xlfn.XLOOKUP(VALUE(W2076),'Data SBP Programs'!O:O,'Data SBP Programs'!S:S)","v":"Criminal Department"}]
[{"$f":"'Data SBP Measures'!$AI2651&\" - \"&'Data SBP Measures'!$U2651","v":"Human Resources - Recruiting - 137"},{"$f":"'Data SBP Measures'!$AF2651","v":"No. of volunteer hours - costing"},{"$f":"'Data SBP Measures'!$T2651","v":"3280"},{"$f":"'Data SBP Measures'!$U2651&B2077","v":"137No. of volunteer hours - costing"},{"$f":"'Data SBP Measures'!$Y2651","v":"HOURS"},null,null,null,null,null,"Human Resources - Recruiting - 137","No. of volunteer hours - costing",null,null,null,null,null,null,null,"2648","130","Y","240","Criminal Department","EACH","INPUT","ADOPTEDBUD",null,null,null,"Criminal Department","Emergency Protection Orders",null,{"$f":"'Data SBP Measures'!$AF2077&'Data SBP Measures'!$AE2077& \" - \"& 'Data SBP Measures'!$U2077","v":"Emergency Protection OrdersCriminal Department - 130"},{"$f":"_xlfn.XLOOKUP(VALUE(W2077),'Data SBP Programs'!O:O,'Data SBP Programs'!S:S)","v":"Criminal Department"}]
[{"$f":"'Data SBP Measures'!$AI2346&\" - \"&'Data SBP Measures'!$U2346","v":"Information Security - 112"},{"$f":"'Data SBP Measures'!$AF2346","v":"# of cybersecurity risks monitored in the Risk Register"},{"$f":"'Data SBP Measures'!$T2346","v":"2919"},{"$f":"'Data SBP Measures'!$U2346&B2081","v":"112# of cybersecurity risks monitored in the Risk Register"},{"$f":"'Data SBP Measures'!$Y2346","v":"EACH"},null,null,null,null,null,"Information Security - 112","# of cybersecurity risks monitored in the Risk Register",null,null,null,null,null,null,null,"2649","130","Y","239","Civil Department","EACH","OUTPUT","ADOPTEDBUD",null,null,null,"Civil Department","Driver’s License Revocation Hearings",null,{"$f":"'Data SBP Measures'!$AF2081&'Data SBP Measures'!$AE2081& \" - \"& 'Data SBP Measures'!$U2081","v":"Driver’s License Revocation HearingsCivil Department - 130"},{"$f":"_xlfn.XLOOKUP(VALUE(W2081),'Data SBP Programs'!O:O,'Data SBP Programs'!S:S)","v":"Civil Department"}]
[{"$f":"'Data SBP Measures'!$AI2345&\" - \"&'Data SBP Measures'!$U2345","v":"Information Security - 112"},{"$f":"'Data SBP Measures'!$AF2345","v":"% participation in Travis County Cybersecurity Awareness training."},{"$f":"'Data SBP Measures'!$T2345","v":"2918"},{"$f":"'Data SBP Measures'!$U2345&B2082","v":"112% participation in Travis County Cybersecurity Awareness training."},{"$f":"'Data SBP Measures'!$Y2345","v":"PERCENT"},null,null,null,null,null,"Information Security - 112","% participation in Travis County Cybersecurity Awareness training.",null,null,null,null,null,null,null,"265","108","Y","24","Property Tax Collections","EACH","OUTPUT","NEITHER",null,null,null,"Property Tax Collections","Litigation Letters (LITLTR2)",null,{"$f":"'Data SBP Measures'!$AF2082&'Data SBP Measures'!$AE2082& \" - \"& 'Data SBP Measures'!$U2082","v":"Litigation Letters (LITLTR2)Property Tax Collections - 108"},{"$f":"_xlfn.XLOOKUP(VALUE(W2082),'Data SBP Programs'!O:O,'Data SBP Programs'!S:S)","v":"Property Tax Collections"}]
[{"$f":"'Data SBP Measures'!$AI271&\" - \"&'Data SBP Measures'!$U271","v":"Information Technology Division - 108"},{"$f":"'Data SBP Measures'!$AF271","v":"# of procedures written or updated"},{"$f":"'Data SBP Measures'!$T271","v":"132"},{"$f":"'Data SBP Measures'!$U271&B2085","v":"108# of procedures written or updated"},{"$f":"'Data SBP Measures'!$Y271","v":"EACH"},null,null,null,null,null,"Information Technology Division - 108","# of procedures written or updated",null,null,null,null,null,null,null,"2651","130","Y","240","Criminal Department","EACH","OUTPUT","ADOPTEDBUD",null,null,null,"Criminal Department","Possession of Marijuana Cases Filed",null,{"$f":"'Data SBP Measures'!$AF2085&'Data SBP Measures'!$AE2085& \" - \"& 'Data SBP Measures'!$U2085","v":"Possession of Marijuana Cases FiledCriminal Department - 130"},{"$f":"_xlfn.XLOOKUP(VALUE(W2085),'Data SBP Programs'!O:O,'Data SBP Programs'!S:S)","v":"Criminal Department"}]
[{"$f":"'Data SBP Measures'!$AI2528&\" - \"&'Data SBP Measures'!$U2528","v":"Information Technology Division - 108"},{"$f":"'Data SBP Measures'!$AF2528","v":"% Decrease of public data requests"},{"$f":"'Data SBP Measures'!$T2528","v":"3195"},{"$f":"'Data SBP Measures'!$U2528&B2087","v":"108% Decrease of public data requests"},{"$f":"'Data SBP Measures'!$Y2528","v":"PERCENT"},null,null,null,null,null,"Information Technology Division - 108","% Decrease of public data requests",null,null,null,null,null,null,null,"2651","130","Y","240","Criminal Department","EACH","OUTPUT","ADOPTEDBUD",null,null,null,"Criminal Department","Possession of Marijuana Cases Filed",null,{"$f":"'Data SBP Measures'!$AF2087&'Data SBP Measures'!$AE2087& \" - \"& 'Data SBP Measures'!$U2087","v":"Possession of Marijuana Cases FiledCriminal Department - 130"},{"$f":"_xlfn.XLOOKUP(VALUE(W2087),'Data SBP Programs'!O:O,'Data SBP Programs'!S:S)","v":"Criminal Department"}]
[{"$f":"'Data SBP Measures'!$AI174&\" - \"&'Data SBP Measures'!$U174","v":"Information Technology Division - 108"},{"$f":"'Data SBP Measures'!$AF174","v":"% of technology projects completed"},{"$f":"'Data SBP Measures'!$T174","v":"121"},{"$f":"'Data SBP Measures'!$U174&B2090","v":"108% of technology projects completed"},{"$f":"'Data SBP Measures'!$Y174","v":"PERCENT"},null,null,null,null,null,"Information Technology Division - 108","% of technology projects completed",null,null,null,null,null,null,null,"2657","130","Y","240","Criminal Department","EACH","INPUT","ADOPTEDBUD",null,null,null,"Criminal Department","Class A & B Misdeameanors - Arrest Warrants Issued",null,{"$f":"'Data SBP Measures'!$AF2090&'Data SBP Measures'!$AE2090& \" - \"& 'Data SBP Measures'!$U2090","v":"Class A & B Misdeameanors - Arrest Warrants IssuedCriminal Department - 130"},{"$f":"_xlfn.XLOOKUP(VALUE(W2090),'Data SBP Programs'!O:O,'Data SBP Programs'!S:S)","v":"Criminal Department"}]
[{"$f":"'Data SBP Measures'!$AI2061&\" - \"&'Data SBP Measures'!$U2061","v":"Information Technology Division - 108"},{"$f":"'Data SBP Measures'!$AF2061","v":"Average ticket turnaround time"},{"$f":"'Data SBP Measures'!$T2061","v":"2643"},{"$f":"'Data SBP Measures'!$U2061&B2092","v":"108Average ticket turnaround time"},{"$f":"'Data SBP Measures'!$Y2061","v":"HOURS"},null,null,null,null,null,"Information Technology Division - 108","Average ticket turnaround time",null,null,null,null,null,null,null,"2657","130","Y","240","Criminal Department","EACH","INPUT","ADOPTEDBUD",null,null,null,"Criminal Department","Class A & B Misdeameanors - Arrest Warrants Issued",null,{"$f":"'Data SBP Measures'!$AF2092&'Data SBP Measures'!$AE2092& \" - \"& 'Data SBP Measures'!$U2092","v":"Class A & B Misdeameanors - Arrest Warrants IssuedCriminal Department - 130"},{"$f":"_xlfn.XLOOKUP(VALUE(W2092),'Data SBP Programs'!O:O,'Data SBP Programs'!S:S)","v":"Criminal Department"}]
[{"$f":"'Data SBP Measures'!$AI345&\" - \"&'Data SBP Measures'!$U345","v":"Inmate Programs and Education - Library - 137"},{"$f":"'Data SBP Measures'!$AF345","v":"% of inmates seen by psychiatrist w/in 7 days of being ID"},{"$f":"'Data SBP Measures'!$T345","v":"1409"},{"$f":"'Data SBP Measures'!$U345&B2095","v":"137% of inmates seen by psychiatrist w/in 7 days of being ID"},{"$f":"'Data SBP Measures'!$Y345","v":"PERCENT"},null,null,null,null,null,"Inmate Programs and Education - Library - 137","% of inmates seen by psychiatrist w/in 7 days of being ID",null,null,null,null,null,null,null,"2657","130","Y","240","Criminal Department","EACH","INPUT","ADOPTEDBUD",null,null,null,"Criminal Department","Class A & B Misdeameanors - Arrest Warrants Issued",null,{"$f":"'Data SBP Measures'!$AF2095&'Data SBP Measures'!$AE2095& \" - \"& 'Data SBP Measures'!$U2095","v":"Class A & B Misdeameanors - Arrest Warrants IssuedCriminal Department - 130"},{"$f":"_xlfn.XLOOKUP(VALUE(W2095),'Data SBP Programs'!O:O,'Data SBP Programs'!S:S)","v":"Criminal Department"}]
[{"$f":"'Data SBP Measures'!$AI346&\" - \"&'Data SBP Measures'!$U346","v":"Inmate Programs and Education - Library - 137"},{"$f":"'Data SBP Measures'!$AF346","v":"Hrs of Program Staff Supervision per week."},{"$f":"'Data SBP Measures'!$T346","v":"1410"},{"$f":"'Data SBP Measures'!$U346&B2096","v":"137Hrs of Program Staff Supervision per week."},{"$f":"'Data SBP Measures'!$Y346","v":"HOURS"},null,null,null,null,null,"Inmate Programs and Education - Library - 137","Hrs of Program Staff Supervision per week.",null,null,null,null,null,null,null,"2657","130","Y","240","Criminal Department","EACH","INPUT","ADOPTEDBUD",null,null,null,"Criminal Department","Class A & B Misdeameanors - Arrest Warrants Issued",null,{"$f":"'Data SBP Measures'!$AF2096&'Data SBP Measures'!$AE2096& \" - \"& 'Data SBP Measures'!$U2096","v":"Class A & B Misdeameanors - Arrest Warrants IssuedCriminal Department - 130"},{"$f":"_xlfn.XLOOKUP(VALUE(W2096),'Data SBP Programs'!O:O,'Data SBP Programs'!S:S)","v":"Criminal Department"}]
[{"$f":"'Data SBP Measures'!$AI365&\" - \"&'Data SBP Measures'!$U365","v":"Inmate Programs and Education - Library - 137"},{"$f":"'Data SBP Measures'!$AF365","v":"Mental Health ratings of inmates requiring PSY services"},{"$f":"'Data SBP Measures'!$T365","v":"1416"},{"$f":"'Data SBP Measures'!$U365&B2100","v":"137Mental Health ratings of inmates requiring PSY services"},{"$f":"'Data SBP Measures'!$Y365","v":"EACH"},null,null,null,null,null,"Inmate Programs and Education - Library - 137","Mental Health ratings of inmates requiring PSY services",null,null,null,null,null,null,null,"2659","130","Y","240","Criminal Department","PERCENT","OUTCOME","ADOPTEDBUD",null,null,null,"Criminal Department","% of Active Cases vs. Cases Disposed",null,{"$f":"'Data SBP Measures'!$AF2100&'Data SBP Measures'!$AE2100& \" - \"& 'Data SBP Measures'!$U2100","v":"% of Active Cases vs. Cases DisposedCriminal Department - 130"},{"$f":"_xlfn.XLOOKUP(VALUE(W2100),'Data SBP Programs'!O:O,'Data SBP Programs'!S:S)","v":"Criminal Department"}]
[{"$f":"'Data SBP Measures'!$AI366&\" - \"&'Data SBP Measures'!$U366","v":"Inmate Programs and Education - Library - 137"},{"$f":"'Data SBP Measures'!$AF366","v":"Mental Health ratings of inmates requiring PSY services"},{"$f":"'Data SBP Measures'!$T366","v":"1416"},{"$f":"'Data SBP Measures'!$U366&B2101","v":"137Mental Health ratings of inmates requiring PSY services"},{"$f":"'Data SBP Measures'!$Y366","v":"EACH"},null,null,null,null,null,"Inmate Programs and Education - Library - 137","Mental Health ratings of inmates requiring PSY services",null,null,null,null,null,null,null,"2659","130","Y","240","Criminal Department","PERCENT","OUTCOME","ADOPTEDBUD",null,null,null,"Criminal Department","% of Active Cases vs. Cases Disposed",null,{"$f":"'Data SBP Measures'!$AF2101&'Data SBP Measures'!$AE2101& \" - \"& 'Data SBP Measures'!$U2101","v":"% of Active Cases vs. Cases DisposedCriminal Department - 130"},{"$f":"_xlfn.XLOOKUP(VALUE(W2101),'Data SBP Programs'!O:O,'Data SBP Programs'!S:S)","v":"Criminal Department"}]
[{"$f":"'Data SBP Measures'!$AI351&\" - \"&'Data SBP Measures'!$U351","v":"Inmate Programs and Education - Library - 137"},{"$f":"'Data SBP Measures'!$AF351","v":"No. of active volunteers at FY end."},{"$f":"'Data SBP Measures'!$T351","v":"1411"},{"$f":"'Data SBP Measures'!$U351&B2104","v":"137No. of active volunteers at FY end."},{"$f":"'Data SBP Measures'!$Y351","v":"EACH"},null,null,null,null,null,"Inmate Programs and Education - Library - 137","No. of active volunteers at FY end.",null,null,null,null,null,null,null,"266","108","Y","24","Property Tax Collections","EACH","OUTPUT","NEITHER",null,null,null,"Property Tax Collections","# Lawsuits Filed",null,{"$f":"'Data SBP Measures'!$AF2104&'Data SBP Measures'!$AE2104& \" - \"& 'Data SBP Measures'!$U2104","v":"# Lawsuits FiledProperty Tax Collections - 108"},{"$f":"_xlfn.XLOOKUP(VALUE(W2104),'Data SBP Programs'!O:O,'Data SBP Programs'!S:S)","v":"Property Tax Collections"}]
[{"$f":"'Data SBP Measures'!$AI356&\" - \"&'Data SBP Measures'!$U356","v":"Inmate Programs and Education - Library - 137"},{"$f":"'Data SBP Measures'!$AF356","v":"No. of cases coordinated w/ mental health docket"},{"$f":"'Data SBP Measures'!$T356","v":"1413"},{"$f":"'Data SBP Measures'!$U356&B2106","v":"137No. of cases coordinated w/ mental health docket"},{"$f":"'Data SBP Measures'!$Y356","v":"EACH"},null,null,null,null,null,"Inmate Programs and Education - Library - 137","No. of cases coordinated w/ mental health docket",null,null,null,null,null,null,null,"2661","130","Y","240","Criminal Department","EACH","OUTPUT","ADOPTEDBUD",null,null,null,"Criminal Department","Criminal Hearings Scheduled & Held",null,{"$f":"'Data SBP Measures'!$AF2106&'Data SBP Measures'!$AE2106& \" - \"& 'Data SBP Measures'!$U2106","v":"Criminal Hearings Scheduled & HeldCriminal Department - 130"},{"$f":"_xlfn.XLOOKUP(VALUE(W2106),'Data SBP Programs'!O:O,'Data SBP Programs'!S:S)","v":"Criminal Department"}]
[{"$f":"'Data SBP Measures'!$AI353&\" - \"&'Data SBP Measures'!$U353","v":"Inmate Programs and Education - Library - 137"},{"$f":"'Data SBP Measures'!$AF353","v":"No. of Counselor follow-ups completed by counseling staff."},{"$f":"'Data SBP Measures'!$T353","v":"1412"},{"$f":"'Data SBP Measures'!$U353&B2109","v":"137No. of Counselor follow-ups completed by counseling staff."},{"$f":"'Data SBP Measures'!$Y353","v":"EACH"},null,null,null,null,null,"Inmate Programs and Education - Library - 137","No. of Counselor follow-ups completed by counseling staff.",null,null,null,null,null,null,null,"2661","130","Y","240","Criminal Department","EACH","OUTPUT","ADOPTEDBUD",null,null,null,"Criminal Department","Criminal Hearings Scheduled & Held",null,{"$f":"'Data SBP Measures'!$AF2109&'Data SBP Measures'!$AE2109& \" - \"& 'Data SBP Measures'!$U2109","v":"Criminal Hearings Scheduled & HeldCriminal Department - 130"},{"$f":"_xlfn.XLOOKUP(VALUE(W2109),'Data SBP Programs'!O:O,'Data SBP Programs'!S:S)","v":"Criminal Department"}]
[{"$f":"'Data SBP Measures'!$AI358&\" - \"&'Data SBP Measures'!$U358","v":"Inmate Programs and Education - Library - 137"},{"$f":"'Data SBP Measures'!$AF358","v":"No. of GED tests taken"},{"$f":"'Data SBP Measures'!$T358","v":"1414"},{"$f":"'Data SBP Measures'!$U358&B2111","v":"137No. of GED tests taken"},{"$f":"'Data SBP Measures'!$Y358","v":"EACH"},null,null,null,null,null,"Inmate Programs and Education - Library - 137","No. of GED tests taken",null,null,null,null,null,null,null,"2661","130","Y","240","Criminal Department","EACH","OUTPUT","ADOPTEDBUD",null,null,null,"Criminal Department","Criminal Hearings Scheduled & Held",null,{"$f":"'Data SBP Measures'!$AF2111&'Data SBP Measures'!$AE2111& \" - \"& 'Data SBP Measures'!$U2111","v":"Criminal Hearings Scheduled & HeldCriminal Department - 130"},{"$f":"_xlfn.XLOOKUP(VALUE(W2111),'Data SBP Programs'!O:O,'Data SBP Programs'!S:S)","v":"Criminal Department"}]
[{"$f":"'Data SBP Measures'!$AI361&\" - \"&'Data SBP Measures'!$U361","v":"Inmate Programs and Education - Library - 137"},{"$f":"'Data SBP Measures'!$AF361","v":"No. of inmates requiring PSY services at booking"},{"$f":"'Data SBP Measures'!$T361","v":"1415"},{"$f":"'Data SBP Measures'!$U361&B2114","v":"137No. of inmates requiring PSY services at booking"},{"$f":"'Data SBP Measures'!$Y361","v":"EACH"},null,null,null,null,null,"Inmate Programs and Education - Library - 137","No. of inmates requiring PSY services at booking",null,null,null,null,null,null,null,"2662","130","Y","240","Criminal Department","EACH","INPUT","ADOPTEDBUD",null,null,null,"Criminal Department","Felony Arrest Warrants Issued",null,{"$f":"'Data SBP Measures'!$AF2114&'Data SBP Measures'!$AE2114& \" - \"& 'Data SBP Measures'!$U2114","v":"Felony Arrest Warrants IssuedCriminal Department - 130"},{"$f":"_xlfn.XLOOKUP(VALUE(W2114),'Data SBP Programs'!O:O,'Data SBP Programs'!S:S)","v":"Criminal Department"}]
[{"$f":"'Data SBP Measures'!$AI362&\" - \"&'Data SBP Measures'!$U362","v":"Inmate Programs and Education - Library - 137"},{"$f":"'Data SBP Measures'!$AF362","v":"No. of inmates requiring PSY services at booking"},{"$f":"'Data SBP Measures'!$T362","v":"1415"},{"$f":"'Data SBP Measures'!$U362&B2115","v":"137No. of inmates requiring PSY services at booking"},{"$f":"'Data SBP Measures'!$Y362","v":"EACH"},null,null,null,null,null,"Inmate Programs and Education - Library - 137","No. of inmates requiring PSY services at booking",null,null,null,null,null,null,null,"2662","130","Y","240","Criminal Department","EACH","INPUT","ADOPTEDBUD",null,null,null,"Criminal Department","Felony Arrest Warrants Issued",null,{"$f":"'Data SBP Measures'!$AF2115&'Data SBP Measures'!$AE2115& \" - \"& 'Data SBP Measures'!$U2115","v":"Felony Arrest Warrants IssuedCriminal Department - 130"},{"$f":"_xlfn.XLOOKUP(VALUE(W2115),'Data SBP Programs'!O:O,'Data SBP Programs'!S:S)","v":"Criminal Department"}]
[{"$f":"'Data SBP Measures'!$AI369&\" - \"&'Data SBP Measures'!$U369","v":"Inmate Programs and Education - Library - 137"},{"$f":"'Data SBP Measures'!$AF369","v":"No. of Post GED/HS Educational and Vocational classes offered"},{"$f":"'Data SBP Measures'!$T369","v":"1417"},{"$f":"'Data SBP Measures'!$U369&B2119","v":"137No. of Post GED/HS Educational and Vocational classes offered"},{"$f":"'Data SBP Measures'!$Y369","v":"EACH"},null,null,null,null,null,"Inmate Programs and Education - Library - 137","No. of Post GED/HS Educational and Vocational classes offered",null,null,null,null,null,null,null,"2663","130","Y","239","Civil Department","EACH","OUTPUT","ADOPTEDBUD",null,null,null,"Civil Department","Total Cases Disposed",null,{"$f":"'Data SBP Measures'!$AF2119&'Data SBP Measures'!$AE2119& \" - \"& 'Data SBP Measures'!$U2119","v":"Total Cases DisposedCivil Department - 130"},{"$f":"_xlfn.XLOOKUP(VALUE(W2119),'Data SBP Programs'!O:O,'Data SBP Programs'!S:S)","v":"Civil Department"}]
[{"$f":"'Data SBP Measures'!$AI2024&\" - \"&'Data SBP Measures'!$U2024","v":"Inmate Programs and Education - Library - 137"},{"$f":"'Data SBP Measures'!$AF2024","v":"No. of PSY patient with mild mental health needs (MH1)"},{"$f":"'Data SBP Measures'!$T2024","v":"2612"},{"$f":"'Data SBP Measures'!$U2024&B2120","v":"137No. of PSY patient with mild mental health needs (MH1)"},{"$f":"'Data SBP Measures'!$Y2024","v":"EACH"},null,null,null,null,null,"Inmate Programs and Education - Library - 137","No. of PSY patient with mild mental health needs (MH1)",null,null,null,null,null,null,null,"2663","130","Y","239","Civil Department","EACH","OUTPUT","ADOPTEDBUD",null,null,null,"Civil Department","Total Cases Disposed",null,{"$f":"'Data SBP Measures'!$AF2120&'Data SBP Measures'!$AE2120& \" - \"& 'Data SBP Measures'!$U2120","v":"Total Cases DisposedCivil Department - 130"},{"$f":"_xlfn.XLOOKUP(VALUE(W2120),'Data SBP Programs'!O:O,'Data SBP Programs'!S:S)","v":"Civil Department"}]
[{"$f":"'Data SBP Measures'!$AI2027&\" - \"&'Data SBP Measures'!$U2027","v":"Inmate Programs and Education - Library - 137"},{"$f":"'Data SBP Measures'!$AF2027","v":"No. of PSY patient with moderate mental health needs (MH2)"},{"$f":"'Data SBP Measures'!$T2027","v":"2613"},{"$f":"'Data SBP Measures'!$U2027&B2123","v":"137No. of PSY patient with moderate mental health needs (MH2)"},{"$f":"'Data SBP Measures'!$Y2027","v":"EACH"},null,null,null,null,null,"Inmate Programs and Education - Library - 137","No. of PSY patient with moderate mental health needs (MH2)",null,null,null,null,null,null,null,"2664","130","Y","239","Civil Department","EACH","OUTCOME","ADOPTEDBUD",null,null,null,"Civil Department","Cases resolved within 6-8 months of file date or sooner",null,{"$f":"'Data SBP Measures'!$AF2123&'Data SBP Measures'!$AE2123& \" - \"& 'Data SBP Measures'!$U2123","v":"Cases resolved within 6-8 months of file date or soonerCivil Department - 130"},{"$f":"_xlfn.XLOOKUP(VALUE(W2123),'Data SBP Programs'!O:O,'Data SBP Programs'!S:S)","v":"Civil Department"}]
[{"$f":"'Data SBP Measures'!$AI2029&\" - \"&'Data SBP Measures'!$U2029","v":"Inmate Programs and Education - Library - 137"},{"$f":"'Data SBP Measures'!$AF2029","v":"No. of PSY patient with moderate mental health needs (MH2)"},{"$f":"'Data SBP Measures'!$T2029","v":"2613"},{"$f":"'Data SBP Measures'!$U2029&B2125","v":"137No. of PSY patient with moderate mental health needs (MH2)"},{"$f":"'Data SBP Measures'!$Y2029","v":"EACH"},null,null,null,null,null,"Inmate Programs and Education - Library - 137","No. of PSY patient with moderate mental health needs (MH2)",null,null,null,null,null,null,null,"2664","130","Y","239","Civil Department","EACH","OUTCOME","ADOPTEDBUD",null,null,null,"Civil Department","Cases resolved within 6-8 months of file date or sooner",null,{"$f":"'Data SBP Measures'!$AF2125&'Data SBP Measures'!$AE2125& \" - \"& 'Data SBP Measures'!$U2125","v":"Cases resolved within 6-8 months of file date or soonerCivil Department - 130"},{"$f":"_xlfn.XLOOKUP(VALUE(W2125),'Data SBP Programs'!O:O,'Data SBP Programs'!S:S)","v":"Civil Department"}]
[{"$f":"'Data SBP Measures'!$AI370&\" - \"&'Data SBP Measures'!$U370","v":"Inmate Programs and Education - Library - 137"},{"$f":"'Data SBP Measures'!$AF370","v":"No. of Re-Entry Plans completed"},{"$f":"'Data SBP Measures'!$T370","v":"1418"},{"$f":"'Data SBP Measures'!$U370&B2129","v":"137No. of Re-Entry Plans completed"},{"$f":"'Data SBP Measures'!$Y370","v":"EACH"},null,null,null,null,null,"Inmate Programs and Education - Library - 137","No. of Re-Entry Plans completed",null,null,null,null,null,null,null,"2665","130","Y","239","Civil Department","EACH","OUTPUT","ADOPTEDBUD",null,null,null,"Civil Department","Cases Appealed",null,{"$f":"'Data SBP Measures'!$AF2129&'Data SBP Measures'!$AE2129& \" - \"& 'Data SBP Measures'!$U2129","v":"Cases AppealedCivil Department - 130"},{"$f":"_xlfn.XLOOKUP(VALUE(W2129),'Data SBP Programs'!O:O,'Data SBP Programs'!S:S)","v":"Civil Department"}]
[{"$f":"'Data SBP Measures'!$AI371&\" - \"&'Data SBP Measures'!$U371","v":"Inmate Programs and Education - Library - 137"},{"$f":"'Data SBP Measures'!$AF371","v":"No. of Re-Entry Plans completed"},{"$f":"'Data SBP Measures'!$T371","v":"1418"},{"$f":"'Data SBP Measures'!$U371&B2130","v":"137No. of Re-Entry Plans completed"},{"$f":"'Data SBP Measures'!$Y371","v":"EACH"},null,null,null,null,null,"Inmate Programs and Education - Library - 137","No. of Re-Entry Plans completed",null,null,null,null,null,null,null,"2665","130","Y","239","Civil Department","EACH","OUTPUT","ADOPTEDBUD",null,null,null,"Civil Department","Cases Appealed",null,{"$f":"'Data SBP Measures'!$AF2130&'Data SBP Measures'!$AE2130& \" - \"& 'Data SBP Measures'!$U2130","v":"Cases AppealedCivil Department - 130"},{"$f":"_xlfn.XLOOKUP(VALUE(W2130),'Data SBP Programs'!O:O,'Data SBP Programs'!S:S)","v":"Civil Department"}]
[{"$f":"'Data SBP Measures'!$AI374&\" - \"&'Data SBP Measures'!$U374","v":"Inmate Programs and Education - Library - 137"},{"$f":"'Data SBP Measures'!$AF374","v":"No. of screening questionnaires completed by counseling staff"},{"$f":"'Data SBP Measures'!$T374","v":"1419"},{"$f":"'Data SBP Measures'!$U374&B2133","v":"137No. of screening questionnaires completed by counseling staff"},{"$f":"'Data SBP Measures'!$Y374","v":"EACH"},null,null,null,null,null,"Inmate Programs and Education - Library - 137","No. of screening questionnaires completed by counseling staff",null,null,null,null,null,null,null,"2666","130","Y","239","Civil Department","EACH","OUTPUT","ADOPTEDBUD",null,null,null,"Civil Department","Hearings Scheduled & Held",null,{"$f":"'Data SBP Measures'!$AF2133&'Data SBP Measures'!$AE2133& \" - \"& 'Data SBP Measures'!$U2133","v":"Hearings Scheduled & HeldCivil Department - 130"},{"$f":"_xlfn.XLOOKUP(VALUE(W2133),'Data SBP Programs'!O:O,'Data SBP Programs'!S:S)","v":"Civil Department"}]
[{"$f":"'Data SBP Measures'!$AI375&\" - \"&'Data SBP Measures'!$U375","v":"Inmate Programs and Education - Library - 137"},{"$f":"'Data SBP Measures'!$AF375","v":"No. of screening questionnaires completed by counseling staff"},{"$f":"'Data SBP Measures'!$T375","v":"1419"},{"$f":"'Data SBP Measures'!$U375&B2134","v":"137No. of screening questionnaires completed by counseling staff"},{"$f":"'Data SBP Measures'!$Y375","v":"EACH"},null,null,null,null,null,"Inmate Programs and Education - Library - 137","No. of screening questionnaires completed by counseling staff",null,null,null,null,null,null,null,"2666","130","Y","239","Civil Department","EACH","OUTPUT","ADOPTEDBUD",null,null,null,"Civil Department","Hearings Scheduled & Held",null,{"$f":"'Data SBP Measures'!$AF2134&'Data SBP Measures'!$AE2134& \" - \"& 'Data SBP Measures'!$U2134","v":"Hearings Scheduled & HeldCivil Department - 130"},{"$f":"_xlfn.XLOOKUP(VALUE(W2134),'Data SBP Programs'!O:O,'Data SBP Programs'!S:S)","v":"Civil Department"}]
[{"$f":"'Data SBP Measures'!$AI379&\" - \"&'Data SBP Measures'!$U379","v":"Inmate Programs and Education - Library - 137"},{"$f":"'Data SBP Measures'!$AF379","v":"No. of Women, Children and Families classes offered"},{"$f":"'Data SBP Measures'!$T379","v":"1421"},{"$f":"'Data SBP Measures'!$U379&B2138","v":"137No. of Women, Children and Families classes offered"},{"$f":"'Data SBP Measures'!$Y379","v":"EACH"},null,null,null,null,null,"Inmate Programs and Education - Library - 137","No. of Women, Children and Families classes offered",null,null,null,null,null,null,null,"2671","116","Y","176","Veterans Services","EACH","INPUT","NEITHER",null,null,null,"Veterans Services","# of Customer Satisfaction Surveys Returned",null,{"$f":"'Data SBP Measures'!$AF2138&'Data SBP Measures'!$AE2138& \" - \"& 'Data SBP Measures'!$U2138","v":"# of Customer Satisfaction Surveys ReturnedVeterans Services - 116"},{"$f":"_xlfn.XLOOKUP(VALUE(W2138),'Data SBP Programs'!O:O,'Data SBP Programs'!S:S)","v":"Veterans Services"}]
[{"$f":"'Data SBP Measures'!$AI380&\" - \"&'Data SBP Measures'!$U380","v":"Inmate Programs and Education - Library - 137"},{"$f":"'Data SBP Measures'!$AF380","v":"No. of Women, Children and Families classes offered"},{"$f":"'Data SBP Measures'!$T380","v":"1421"},{"$f":"'Data SBP Measures'!$U380&B2139","v":"137No. of Women, Children and Families classes offered"},{"$f":"'Data SBP Measures'!$Y380","v":"EACH"},null,null,null,null,null,"Inmate Programs and Education - Library - 137","No. of Women, Children and Families classes offered",null,null,null,null,null,null,null,"2672","116","Y","176","Veterans Services","PERCENT","OUTCOME","ADOPTEDBUD",null,null,null,"Veterans Services","% of Customers with Overall Satisfaction based on Customer Survey Results",null,{"$f":"'Data SBP Measures'!$AF2139&'Data SBP Measures'!$AE2139& \" - \"& 'Data SBP Measures'!$U2139","v":"% of Customers with Overall Satisfaction based on Customer Survey ResultsVeterans Services - 116"},{"$f":"_xlfn.XLOOKUP(VALUE(W2139),'Data SBP Programs'!O:O,'Data SBP Programs'!S:S)","v":"Veterans Services"}]
[{"$f":"'Data SBP Measures'!$AI383&\" - \"&'Data SBP Measures'!$U383","v":"Inmate Programs and Education - Library - 137"},{"$f":"'Data SBP Measures'!$AF383","v":"No. of Youth & Veteran Programming classes offered"},{"$f":"'Data SBP Measures'!$T383","v":"1422"},{"$f":"'Data SBP Measures'!$U383&B2142","v":"137No. of Youth & Veteran Programming classes offered"},{"$f":"'Data SBP Measures'!$Y383","v":"EACH"},null,null,null,null,null,"Inmate Programs and Education - Library - 137","No. of Youth & Veteran Programming classes offered",null,null,null,null,null,null,null,"2676","116","Y","176","Veterans Services","EACH","OUTPUT","ADOPTEDBUD",null,null,null,"Veterans Services","# of Job Fairs Participated In Per Year",null,{"$f":"'Data SBP Measures'!$AF2142&'Data SBP Measures'!$AE2142& \" - \"& 'Data SBP Measures'!$U2142","v":"# of Job Fairs Participated In Per YearVeterans Services - 116"},{"$f":"_xlfn.XLOOKUP(VALUE(W2142),'Data SBP Programs'!O:O,'Data SBP Programs'!S:S)","v":"Veterans Services"}]
[{"$f":"'Data SBP Measures'!$AI385&\" - \"&'Data SBP Measures'!$U385","v":"Inmate Programs and Education - Library - 137"},{"$f":"'Data SBP Measures'!$AF385","v":"Number of interns per semester"},{"$f":"'Data SBP Measures'!$T385","v":"1423"},{"$f":"'Data SBP Measures'!$U385&B2144","v":"137Number of interns per semester"},{"$f":"'Data SBP Measures'!$Y385","v":"EACH"},null,null,null,null,null,"Inmate Programs and Education - Library - 137","Number of interns per semester",null,null,null,null,null,null,null,"2678","116","Y","176","Veterans Services","EACH","OUTPUT","ADOPTEDBUD",null,null,null,"Veterans Services","# of Travis County VSO Events Sponsored",null,{"$f":"'Data SBP Measures'!$AF2144&'Data SBP Measures'!$AE2144& \" - \"& 'Data SBP Measures'!$U2144","v":"# of Travis County VSO Events SponsoredVeterans Services - 116"},{"$f":"_xlfn.XLOOKUP(VALUE(W2144),'Data SBP Programs'!O:O,'Data SBP Programs'!S:S)","v":"Veterans Services"}]
[{"$f":"'Data SBP Measures'!$AI389&\" - \"&'Data SBP Measures'!$U389","v":"Inmate Programs and Education - Library - 137"},{"$f":"'Data SBP Measures'!$AF389","v":"Percent of inmate follow-ups appointments which are bumped."},{"$f":"'Data SBP Measures'!$T389","v":"1424"},{"$f":"'Data SBP Measures'!$U389&B2148","v":"137Percent of inmate follow-ups appointments which are bumped."},{"$f":"'Data SBP Measures'!$Y389","v":"PERCENT"},null,null,null,null,null,"Inmate Programs and Education - Library - 137","Percent of inmate follow-ups appointments which are bumped.",null,null,null,null,null,null,null,"2681","116","Y","176","Veterans Services","EACH","OUTPUT","NEITHER",null,null,null,"Veterans Services","# of Active MOU's With Internal and External Partners",null,{"$f":"'Data SBP Measures'!$AF2148&'Data SBP Measures'!$AE2148& \" - \"& 'Data SBP Measures'!$U2148","v":"# of Active MOU's With Internal and External PartnersVeterans Services - 116"},{"$f":"_xlfn.XLOOKUP(VALUE(W2148),'Data SBP Programs'!O:O,'Data SBP Programs'!S:S)","v":"Veterans Services"}]
[{"$f":"'Data SBP Measures'!$AI390&\" - \"&'Data SBP Measures'!$U390","v":"Inmate Programs and Education - Library - 137"},{"$f":"'Data SBP Measures'!$AF390","v":"Percent of inmate follow-ups appointments which are bumped."},{"$f":"'Data SBP Measures'!$T390","v":"1424"},{"$f":"'Data SBP Measures'!$U390&B2149","v":"137Percent of inmate follow-ups appointments which are bumped."},{"$f":"'Data SBP Measures'!$Y390","v":"PERCENT"},null,null,null,null,null,"Inmate Programs and Education - Library - 137","Percent of inmate follow-ups appointments which are bumped.",null,null,null,null,null,null,null,"2682","116","Y","176","Veterans Services","EACH","INPUT","ADOPTEDBUD",null,null,null,"Veterans Services","# of Total Trainings Attended per year",null,{"$f":"'Data SBP Measures'!$AF2149&'Data SBP Measures'!$AE2149& \" - \"& 'Data SBP Measures'!$U2149","v":"# of Total Trainings Attended per yearVeterans Services - 116"},{"$f":"_xlfn.XLOOKUP(VALUE(W2149),'Data SBP Programs'!O:O,'Data SBP Programs'!S:S)","v":"Veterans Services"}]
[{"$f":"'Data SBP Measures'!$AI393&\" - \"&'Data SBP Measures'!$U393","v":"Inmate Programs and Education - Library - 137"},{"$f":"'Data SBP Measures'!$AF393","v":"Psychiatric Provider Chart Audits for Quality Assurance per year for each provider."},{"$f":"'Data SBP Measures'!$T393","v":"1425"},{"$f":"'Data SBP Measures'!$U393&B2152","v":"137Psychiatric Provider Chart Audits for Quality Assurance per year for each provider."},{"$f":"'Data SBP Measures'!$Y393","v":"EACH"},null,null,null,null,null,"Inmate Programs and Education - Library - 137","Psychiatric Provider Chart Audits for Quality Assurance per year for each provider.",null,null,null,null,null,null,null,"2683","127","Y","230","Civil","PERCENT","OUTCOME","ADOPTEDBUD",null,null,null,"Civil","Percentage of Cases Disposed",null,{"$f":"'Data SBP Measures'!$AF2152&'Data SBP Measures'!$AE2152& \" - \"& 'Data SBP Measures'!$U2152","v":"Percentage of Cases DisposedCivil - 127"},{"$f":"_xlfn.XLOOKUP(VALUE(W2152),'Data SBP Programs'!O:O,'Data SBP Programs'!S:S)","v":"Civil"}]
[{"$f":"'Data SBP Measures'!$AI1651&\" - \"&'Data SBP Measures'!$U1651","v":"Intake & Assessments - 140"},{"$f":"'Data SBP Measures'!$AF1651","v":"# of AOD Asmts completed (Phase 2)"},{"$f":"'Data SBP Measures'!$T1651","v":"2351"},{"$f":"'Data SBP Measures'!$U1651&B2153","v":"140# of AOD Asmts completed (Phase 2)"},{"$f":"'Data SBP Measures'!$Y1651","v":"EACH"},null,null,null,null,null,"Intake & Assessments - 140","# of AOD Asmts completed (Phase 2)",null,null,null,null,null,null,null,"2683","127","Y","230","Civil","PERCENT","OUTCOME","ADOPTEDBUD",null,null,null,"Civil","Percentage of Cases Disposed",null,{"$f":"'Data SBP Measures'!$AF2153&'Data SBP Measures'!$AE2153& \" - \"& 'Data SBP Measures'!$U2153","v":"Percentage of Cases DisposedCivil - 127"},{"$f":"_xlfn.XLOOKUP(VALUE(W2153),'Data SBP Programs'!O:O,'Data SBP Programs'!S:S)","v":"Civil"}]
[{"$f":"'Data SBP Measures'!$AI1649&\" - \"&'Data SBP Measures'!$U1649","v":"Intake & Assessments - 140"},{"$f":"'Data SBP Measures'!$AF1649","v":"# of Electronic ASI’s completed (Phase 1)"},{"$f":"'Data SBP Measures'!$T1649","v":"2350"},{"$f":"'Data SBP Measures'!$U1649&B2157","v":"140# of Electronic ASI’s completed (Phase 1)"},{"$f":"'Data SBP Measures'!$Y1649","v":"EACH"},null,null,null,null,null,"Intake & Assessments - 140","# of Electronic ASI’s completed (Phase 1)",null,null,null,null,null,null,null,"2684","127","Y","231","Criminal","PERCENT","OUTCOME","ADOPTEDBUD",null,null,null,"Criminal","Percentage of Cases Disposed",null,{"$f":"'Data SBP Measures'!$AF2157&'Data SBP Measures'!$AE2157& \" - \"& 'Data SBP Measures'!$U2157","v":"Percentage of Cases DisposedCriminal - 127"},{"$f":"_xlfn.XLOOKUP(VALUE(W2157),'Data SBP Programs'!O:O,'Data SBP Programs'!S:S)","v":"Criminal"}]
[{"$f":"'Data SBP Measures'!$AI1650&\" - \"&'Data SBP Measures'!$U1650","v":"Intake & Assessments - 140"},{"$f":"'Data SBP Measures'!$AF1650","v":"# of Electronic ASI’s completed (Phase 1)"},{"$f":"'Data SBP Measures'!$T1650","v":"2350"},{"$f":"'Data SBP Measures'!$U1650&B2158","v":"140# of Electronic ASI’s completed (Phase 1)"},{"$f":"'Data SBP Measures'!$Y1650","v":"EACH"},null,null,null,null,null,"Intake & Assessments - 140","# of Electronic ASI’s completed (Phase 1)",null,null,null,null,null,null,null,"2684","127","Y","231","Criminal","PERCENT","OUTCOME","ADOPTEDBUD",null,null,null,"Criminal","Percentage of Cases Disposed",null,{"$f":"'Data SBP Measures'!$AF2158&'Data SBP Measures'!$AE2158& \" - \"& 'Data SBP Measures'!$U2158","v":"Percentage of Cases DisposedCriminal - 127"},{"$f":"_xlfn.XLOOKUP(VALUE(W2158),'Data SBP Programs'!O:O,'Data SBP Programs'!S:S)","v":"Criminal"}]
[{"$f":"'Data SBP Measures'!$AI1656&\" - \"&'Data SBP Measures'!$U1656","v":"Intake & Assessments - 140"},{"$f":"'Data SBP Measures'!$AF1656","v":"# of Family Violence Asmts completed"},{"$f":"'Data SBP Measures'!$T1656","v":"2352"},{"$f":"'Data SBP Measures'!$U1656&B2161","v":"140# of Family Violence Asmts completed"},{"$f":"'Data SBP Measures'!$Y1656","v":"EACH"},null,null,null,null,null,"Intake & Assessments - 140","# of Family Violence Asmts completed",null,null,null,null,null,null,null,"2687","137","Y","54","Canine","EACH","OUTPUT","ADOPTEDBUD",null,null,null,"Canine","No. of K9 team misd arrests",null,{"$f":"'Data SBP Measures'!$AF2161&'Data SBP Measures'!$AE2161& \" - \"& 'Data SBP Measures'!$U2161","v":"No. of K9 team misd arrestsCanine - 137"},{"$f":"_xlfn.XLOOKUP(VALUE(W2161),'Data SBP Programs'!O:O,'Data SBP Programs'!S:S)","v":"Canine"}]
[{"$f":"'Data SBP Measures'!$AI1673&\" - \"&'Data SBP Measures'!$U1673","v":"Intake & Assessments - 140"},{"$f":"'Data SBP Measures'!$AF1673","v":"% of AOD with MH needs"},{"$f":"'Data SBP Measures'!$T1673","v":"2358"},{"$f":"'Data SBP Measures'!$U1673&B2163","v":"140% of AOD with MH needs"},{"$f":"'Data SBP Measures'!$Y1673","v":"PERCENT"},null,null,null,null,null,"Intake & Assessments - 140","% of AOD with MH needs",null,null,null,null,null,null,null,"2689","137","Y","54","Canine","EACH","OUTPUT","ADOPTEDBUD",null,null,null,"Canine","No. of jail searches",null,{"$f":"'Data SBP Measures'!$AF2163&'Data SBP Measures'!$AE2163& \" - \"& 'Data SBP Measures'!$U2163","v":"No. of jail searchesCanine - 137"},{"$f":"_xlfn.XLOOKUP(VALUE(W2163),'Data SBP Programs'!O:O,'Data SBP Programs'!S:S)","v":"Canine"}]
[{"$f":"'Data SBP Measures'!$AI1677&\" - \"&'Data SBP Measures'!$U1677","v":"Intake & Assessments - 140"},{"$f":"'Data SBP Measures'!$AF1677","v":"% of clients completing AOD Asmt within thirty days after referral date."},{"$f":"'Data SBP Measures'!$T1677","v":"2359"},{"$f":"'Data SBP Measures'!$U1677&B2167","v":"140% of clients completing AOD Asmt within thirty days after referral date."},{"$f":"'Data SBP Measures'!$Y1677","v":"PERCENT"},null,null,null,null,null,"Intake & Assessments - 140","% of clients completing AOD Asmt within thirty days after referral date.",null,null,null,null,null,null,null,"2692","137","Y","54","Canine","EACH","OUTPUT","ADOPTEDBUD",null,null,null,"Canine","No. of Assists-Patrol/Vice/SWAT",null,{"$f":"'Data SBP Measures'!$AF2167&'Data SBP Measures'!$AE2167& \" - \"& 'Data SBP Measures'!$U2167","v":"No. of Assists-Patrol/Vice/SWATCanine - 137"},{"$f":"_xlfn.XLOOKUP(VALUE(W2167),'Data SBP Programs'!O:O,'Data SBP Programs'!S:S)","v":"Canine"}]
[{"$f":"'Data SBP Measures'!$AI1710&\" - \"&'Data SBP Measures'!$U1710","v":"Intake & Assessments - 140"},{"$f":"'Data SBP Measures'!$AF1710","v":"% of clients completing FV Asmt within thirty days after referral date."},{"$f":"'Data SBP Measures'!$T1710","v":"2370"},{"$f":"'Data SBP Measures'!$U1710&B2168","v":"140% of clients completing FV Asmt within thirty days after referral date."},{"$f":"'Data SBP Measures'!$Y1710","v":"PERCENT"},null,null,null,null,null,"Intake & Assessments - 140","% of clients completing FV Asmt within thirty days after referral date.",null,null,null,null,null,null,null,"2693","137","Y","59","CJIS - Arrest/Expunction/Fugitive/Misuse ID/Parole/StateXfer","EACH","INPUT","ADOPTEDBUD",null,null,null,"CJIS - Arrest/Expunction/Fugitive/Misuse ID/Parole/StateXfer","No. of APD Fingerprint Request",null,{"$f":"'Data SBP Measures'!$AF2168&'Data SBP Measures'!$AE2168& \" - \"& 'Data SBP Measures'!$U2168","v":"No. of APD Fingerprint RequestCJIS - Arrest/Expunction/Fugitive/Misuse ID/Parole/StateXfer - 137"},{"$f":"_xlfn.XLOOKUP(VALUE(W2168),'Data SBP Programs'!O:O,'Data SBP Programs'!S:S)","v":"CJIS - Arrest/Expunction/Fugitive/Misuse ID/Parole/StateXfer"}]
[{"$f":"'Data SBP Measures'!$AI1682&\" - \"&'Data SBP Measures'!$U1682","v":"Intake & Assessments - 140"},{"$f":"'Data SBP Measures'!$AF1682","v":"% of clients receiving final court disposition within 1 year after completing AOD Asmt."},{"$f":"'Data SBP Measures'!$T1682","v":"2361"},{"$f":"'Data SBP Measures'!$U1682&B2171","v":"140% of clients receiving final court disposition within 1 year after completing AOD Asmt."},{"$f":"'Data SBP Measures'!$Y1682","v":"PERCENT"},null,null,null,null,null,"Intake & Assessments - 140","% of clients receiving final court disposition within 1 year after completing AOD Asmt.",null,null,null,null,null,null,null,"2696","137","Y","59","CJIS - Arrest/Expunction/Fugitive/Misuse ID/Parole/StateXfer","EACH","INPUT","ADOPTEDBUD",null,null,null,"CJIS - Arrest/Expunction/Fugitive/Misuse ID/Parole/StateXfer","No. of Documents Rec'd & Entered",null,{"$f":"'Data SBP Measures'!$AF2171&'Data SBP Measures'!$AE2171& \" - \"& 'Data SBP Measures'!$U2171","v":"No. of Documents Rec'd & EnteredCJIS - Arrest/Expunction/Fugitive/Misuse ID/Parole/StateXfer - 137"},{"$f":"_xlfn.XLOOKUP(VALUE(W2171),'Data SBP Programs'!O:O,'Data SBP Programs'!S:S)","v":"CJIS - Arrest/Expunction/Fugitive/Misuse ID/Parole/StateXfer"}]
[{"$f":"'Data SBP Measures'!$AI1683&\" - \"&'Data SBP Measures'!$U1683","v":"Intake & Assessments - 140"},{"$f":"'Data SBP Measures'!$AF1683","v":"% of clients receiving final court disposition within 1 year after completing AOD Asmt."},{"$f":"'Data SBP Measures'!$T1683","v":"2361"},{"$f":"'Data SBP Measures'!$U1683&B2172","v":"140% of clients receiving final court disposition within 1 year after completing AOD Asmt."},{"$f":"'Data SBP Measures'!$Y1683","v":"PERCENT"},null,null,null,null,null,"Intake & Assessments - 140","% of clients receiving final court disposition within 1 year after completing AOD Asmt.",null,null,null,null,null,null,null,"2697","137","Y","59","CJIS - Arrest/Expunction/Fugitive/Misuse ID/Parole/StateXfer","EACH","INPUT","ADOPTEDBUD",null,null,null,"CJIS - Arrest/Expunction/Fugitive/Misuse ID/Parole/StateXfer","No. of Emails From Victims",null,{"$f":"'Data SBP Measures'!$AF2172&'Data SBP Measures'!$AE2172& \" - \"& 'Data SBP Measures'!$U2172","v":"No. of Emails From VictimsCJIS - Arrest/Expunction/Fugitive/Misuse ID/Parole/StateXfer - 137"},{"$f":"_xlfn.XLOOKUP(VALUE(W2172),'Data SBP Programs'!O:O,'Data SBP Programs'!S:S)","v":"CJIS - Arrest/Expunction/Fugitive/Misuse ID/Parole/StateXfer"}]
[{"$f":"'Data SBP Measures'!$AI1718&\" - \"&'Data SBP Measures'!$U1718","v":"Intake & Assessments - 140"},{"$f":"'Data SBP Measures'!$AF1718","v":"% of clients receiving final court disposition within 1 year after completing FV Asmt."},{"$f":"'Data SBP Measures'!$T1718","v":"2372"},{"$f":"'Data SBP Measures'!$U1718&B2176","v":"140% of clients receiving final court disposition within 1 year after completing FV Asmt."},{"$f":"'Data SBP Measures'!$Y1718","v":"PERCENT"},null,null,null,null,null,"Intake & Assessments - 140","% of clients receiving final court disposition within 1 year after completing FV Asmt.",null,null,null,null,null,null,null,"2700","137","Y","59","CJIS - Arrest/Expunction/Fugitive/Misuse ID/Parole/StateXfer","EACH","INPUT","ADOPTEDBUD",null,null,null,"CJIS - Arrest/Expunction/Fugitive/Misuse ID/Parole/StateXfer","No. of JMOV's",null,{"$f":"'Data SBP Measures'!$AF2176&'Data SBP Measures'!$AE2176& \" - \"& 'Data SBP Measures'!$U2176","v":"No. of JMOV'sCJIS - Arrest/Expunction/Fugitive/Misuse ID/Parole/StateXfer - 137"},{"$f":"_xlfn.XLOOKUP(VALUE(W2176),'Data SBP Programs'!O:O,'Data SBP Programs'!S:S)","v":"CJIS - Arrest/Expunction/Fugitive/Misuse ID/Parole/StateXfer"}]
[{"$f":"'Data SBP Measures'!$AI1679&\" - \"&'Data SBP Measures'!$U1679","v":"Intake & Assessments - 140"},{"$f":"'Data SBP Measures'!$AF1679","v":"% of clients receiving final court disposition within 180 days after completing AOD Asmt."},{"$f":"'Data SBP Measures'!$T1679","v":"2360"},{"$f":"'Data SBP Measures'!$U1679&B2177","v":"140% of clients receiving final court disposition within 180 days after completing AOD Asmt."},{"$f":"'Data SBP Measures'!$Y1679","v":"PERCENT"},null,null,null,null,null,"Intake & Assessments - 140","% of clients receiving final court disposition within 180 days after completing AOD Asmt.",null,null,null,null,null,null,null,"2701","137","Y","59","CJIS - Arrest/Expunction/Fugitive/Misuse ID/Parole/StateXfer","EACH","INPUT","ADOPTEDBUD",null,null,null,"CJIS - Arrest/Expunction/Fugitive/Misuse ID/Parole/StateXfer","No. of Merged ID Issues",null,{"$f":"'Data SBP Measures'!$AF2177&'Data SBP Measures'!$AE2177& \" - \"& 'Data SBP Measures'!$U2177","v":"No. of Merged ID IssuesCJIS - Arrest/Expunction/Fugitive/Misuse ID/Parole/StateXfer - 137"},{"$f":"_xlfn.XLOOKUP(VALUE(W2177),'Data SBP Programs'!O:O,'Data SBP Programs'!S:S)","v":"CJIS - Arrest/Expunction/Fugitive/Misuse ID/Parole/StateXfer"}]
[{"$f":"'Data SBP Measures'!$AI1713&\" - \"&'Data SBP Measures'!$U1713","v":"Intake & Assessments - 140"},{"$f":"'Data SBP Measures'!$AF1713","v":"% of clients receiving final court disposition within 180 days after completing FV Asmt."},{"$f":"'Data SBP Measures'!$T1713","v":"2371"},{"$f":"'Data SBP Measures'!$U1713&B2180","v":"140% of clients receiving final court disposition within 180 days after completing FV Asmt."},{"$f":"'Data SBP Measures'!$Y1713","v":"PERCENT"},null,null,null,null,null,"Intake & Assessments - 140","% of clients receiving final court disposition within 180 days after completing FV Asmt.",null,null,null,null,null,null,null,"2704","137","Y","59","CJIS - Arrest/Expunction/Fugitive/Misuse ID/Parole/StateXfer","EACH","INPUT","ADOPTEDBUD",null,null,null,"CJIS - Arrest/Expunction/Fugitive/Misuse ID/Parole/StateXfer","No. of Petitions received",null,{"$f":"'Data SBP Measures'!$AF2180&'Data SBP Measures'!$AE2180& \" - \"& 'Data SBP Measures'!$U2180","v":"No. of Petitions receivedCJIS - Arrest/Expunction/Fugitive/Misuse ID/Parole/StateXfer - 137"},{"$f":"_xlfn.XLOOKUP(VALUE(W2180),'Data SBP Programs'!O:O,'Data SBP Programs'!S:S)","v":"CJIS - Arrest/Expunction/Fugitive/Misuse ID/Parole/StateXfer"}]
[{"$f":"'Data SBP Measures'!$AI1715&\" - \"&'Data SBP Measures'!$U1715","v":"Intake & Assessments - 140"},{"$f":"'Data SBP Measures'!$AF1715","v":"% of clients receiving final court disposition within 180 days after completing FV Asmt."},{"$f":"'Data SBP Measures'!$T1715","v":"2371"},{"$f":"'Data SBP Measures'!$U1715&B2182","v":"140% of clients receiving final court disposition within 180 days after completing FV Asmt."},{"$f":"'Data SBP Measures'!$Y1715","v":"PERCENT"},null,null,null,null,null,"Intake & Assessments - 140","% of clients receiving final court disposition within 180 days after completing FV Asmt.",null,null,null,null,null,null,null,"2706","137","Y","59","CJIS - Arrest/Expunction/Fugitive/Misuse ID/Parole/StateXfer","EACH","INPUT","ADOPTEDBUD",null,null,null,"CJIS - Arrest/Expunction/Fugitive/Misuse ID/Parole/StateXfer","No. of Research Request",null,{"$f":"'Data SBP Measures'!$AF2182&'Data SBP Measures'!$AE2182& \" - \"& 'Data SBP Measures'!$U2182","v":"No. of Research RequestCJIS - Arrest/Expunction/Fugitive/Misuse ID/Parole/StateXfer - 137"},{"$f":"_xlfn.XLOOKUP(VALUE(W2182),'Data SBP Programs'!O:O,'Data SBP Programs'!S:S)","v":"CJIS - Arrest/Expunction/Fugitive/Misuse ID/Parole/StateXfer"}]
[{"$f":"'Data SBP Measures'!$AI1697&\" - \"&'Data SBP Measures'!$U1697","v":"Intake & Assessments - 140"},{"$f":"'Data SBP Measures'!$AF1697","v":"% of FV Asmts with AOD Recommendations"},{"$f":"'Data SBP Measures'!$T1697","v":"2366"},{"$f":"'Data SBP Measures'!$U1697&B2186","v":"140% of FV Asmts with AOD Recommendations"},{"$f":"'Data SBP Measures'!$Y1697","v":"PERCENT"},null,null,null,null,null,"Intake & Assessments - 140","% of FV Asmts with AOD Recommendations",null,null,null,null,null,null,null,"271","108","Y","24","Property Tax Collections","EACH","OUTPUT","NEITHER",null,null,null,"Property Tax Collections","# Fees Reversed",null,{"$f":"'Data SBP Measures'!$AF2186&'Data SBP Measures'!$AE2186& \" - \"& 'Data SBP Measures'!$U2186","v":"# Fees ReversedProperty Tax Collections - 108"},{"$f":"_xlfn.XLOOKUP(VALUE(W2186),'Data SBP Programs'!O:O,'Data SBP Programs'!S:S)","v":"Property Tax Collections"}]
[{"$f":"'Data SBP Measures'!$AI1698&\" - \"&'Data SBP Measures'!$U1698","v":"Intake & Assessments - 140"},{"$f":"'Data SBP Measures'!$AF1698","v":"% of FV Asmts with AOD Recommendations"},{"$f":"'Data SBP Measures'!$T1698","v":"2366"},{"$f":"'Data SBP Measures'!$U1698&B2187","v":"140% of FV Asmts with AOD Recommendations"},{"$f":"'Data SBP Measures'!$Y1698","v":"PERCENT"},null,null,null,null,null,"Intake & Assessments - 140","% of FV Asmts with AOD Recommendations",null,null,null,null,null,null,null,"2710","137","Y","60","Classification-Records - CSTU / Property\n","EACH","INPUT","ADOPTEDBUD",null,null,null,"Classification-Records - CSTU / Property\n","No. of new PREA allegations/incidents reported",null,{"$f":"'Data SBP Measures'!$AF2187&'Data SBP Measures'!$AE2187& \" - \"& 'Data SBP Measures'!$U2187","v":"No. of new PREA allegations/incidents reportedClassification-Records - CSTU / Property\n - 137"},{"$f":"_xlfn.XLOOKUP(VALUE(W2187),'Data SBP Programs'!O:O,'Data SBP Programs'!S:S)","v":"Classification-Records - CSTU / Property\n"}]
[{"$f":"'Data SBP Measures'!$AI1704&\" - \"&'Data SBP Measures'!$U1704","v":"Intake & Assessments - 140"},{"$f":"'Data SBP Measures'!$AF1704","v":"% of FV with MH needs"},{"$f":"'Data SBP Measures'!$T1704","v":"2368"},{"$f":"'Data SBP Measures'!$U1704&B2190","v":"140% of FV with MH needs"},{"$f":"'Data SBP Measures'!$Y1704","v":"PERCENT"},null,null,null,null,null,"Intake & Assessments - 140","% of FV with MH needs",null,null,null,null,null,null,null,"2713","111","Y","196","HR Administration","PERCENT","OUTCOME","ADOPTEDBUD",null,null,null,"HR Administration","Percent Results \"Appropriate Support\" provided from survey from staff",null,{"$f":"'Data SBP Measures'!$AF2190&'Data SBP Measures'!$AE2190& \" - \"& 'Data SBP Measures'!$U2190","v":"Percent Results \"Appropriate Support\" provided from survey from staffHR Administration - 111"},{"$f":"_xlfn.XLOOKUP(VALUE(W2190),'Data SBP Programs'!O:O,'Data SBP Programs'!S:S)","v":"HR Administration"}]
[{"$f":"'Data SBP Measures'!$AI1705&\" - \"&'Data SBP Measures'!$U1705","v":"Intake & Assessments - 140"},{"$f":"'Data SBP Measures'!$AF1705","v":"% of FV with MH needs"},{"$f":"'Data SBP Measures'!$T1705","v":"2368"},{"$f":"'Data SBP Measures'!$U1705&B2191","v":"140% of FV with MH needs"},{"$f":"'Data SBP Measures'!$Y1705","v":"PERCENT"},null,null,null,null,null,"Intake & Assessments - 140","% of FV with MH needs",null,null,null,null,null,null,null,"2714","111","Y","198","Risk Management Self Insurance Fund","EACH","OUTCOME","NEITHER",null,null,null,"Risk Management Self Insurance Fund","Avg # of days lost time per claim for WC",null,{"$f":"'Data SBP Measures'!$AF2191&'Data SBP Measures'!$AE2191& \" - \"& 'Data SBP Measures'!$U2191","v":"Avg # of days lost time per claim for WCRisk Management Self Insurance Fund - 111"},{"$f":"_xlfn.XLOOKUP(VALUE(W2191),'Data SBP Programs'!O:O,'Data SBP Programs'!S:S)","v":"Risk Management Self Insurance Fund"}]
[{"$f":"'Data SBP Measures'!$AI1700&\" - \"&'Data SBP Measures'!$U1700","v":"Intake & Assessments - 140"},{"$f":"'Data SBP Measures'!$AF1700","v":"% of Spanish FV Asmts"},{"$f":"'Data SBP Measures'!$T1700","v":"2367"},{"$f":"'Data SBP Measures'!$U1700&B2195","v":"140% of Spanish FV Asmts"},{"$f":"'Data SBP Measures'!$Y1700","v":"PERCENT"},null,null,null,null,null,"Intake & Assessments - 140","% of Spanish FV Asmts",null,null,null,null,null,null,null,"2716","155","Y","180","Office of Parent Representation","PERCENT","OUTCOME","ADOPTEDBUD",null,null,null,"Office of Parent Representation","% of cases resolved without trial",null,{"$f":"'Data SBP Measures'!$AF2195&'Data SBP Measures'!$AE2195& \" - \"& 'Data SBP Measures'!$U2195","v":"% of cases resolved without trialOffice of Parent Representation - 155"},{"$f":"_xlfn.XLOOKUP(VALUE(W2195),'Data SBP Programs'!O:O,'Data SBP Programs'!S:S)","v":"Office of Parent Representation"}]
[{"$f":"'Data SBP Measures'!$AI1702&\" - \"&'Data SBP Measures'!$U1702","v":"Intake & Assessments - 140"},{"$f":"'Data SBP Measures'!$AF1702","v":"% of Spanish FV Asmts"},{"$f":"'Data SBP Measures'!$T1702","v":"2367"},{"$f":"'Data SBP Measures'!$U1702&B2197","v":"140% of Spanish FV Asmts"},{"$f":"'Data SBP Measures'!$Y1702","v":"PERCENT"},null,null,null,null,null,"Intake & Assessments - 140","% of Spanish FV Asmts",null,null,null,null,null,null,null,"2719","155","Y","180","Office of Parent Representation","EACH","INPUT","ADOPTEDBUD",null,null,null,"Office of Parent Representation","# of new cases assigned to OPR",null,{"$f":"'Data SBP Measures'!$AF2197&'Data SBP Measures'!$AE2197& \" - \"& 'Data SBP Measures'!$U2197","v":"# of new cases assigned to OPROffice of Parent Representation - 155"},{"$f":"_xlfn.XLOOKUP(VALUE(W2197),'Data SBP Programs'!O:O,'Data SBP Programs'!S:S)","v":"Office of Parent Representation"}]
[{"$f":"'Data SBP Measures'!$AI1668&\" - \"&'Data SBP Measures'!$U1668","v":"Intake & Assessments - 140"},{"$f":"'Data SBP Measures'!$AF1668","v":"Alcohol and other Drug # of Other"},{"$f":"'Data SBP Measures'!$T1668","v":"2356"},{"$f":"'Data SBP Measures'!$U1668&B2200","v":"140Alcohol and other Drug # of Other"},{"$f":"'Data SBP Measures'!$Y1668","v":"EACH"},null,null,null,null,null,"Intake & Assessments - 140","Alcohol and other Drug # of Other",null,null,null,null,null,null,null,"2723","103","Y","188","County Commissioner Precinct Two","EACH","OUTPUT","ADOPTEDBUD",null,null,null,"County Commissioner Precinct Two","Disaster preparedness meetings and events",null,{"$f":"'Data SBP Measures'!$AF2200&'Data SBP Measures'!$AE2200& \" - \"& 'Data SBP Measures'!$U2200","v":"Disaster preparedness meetings and eventsCounty Commissioner Precinct Two - 103"},{"$f":"_xlfn.XLOOKUP(VALUE(W2200),'Data SBP Programs'!O:O,'Data SBP Programs'!S:S)","v":"County Commissioner Precinct Two"}]
[{"$f":"'Data SBP Measures'!$AI1660&\" - \"&'Data SBP Measures'!$U1660","v":"Intake & Assessments - 140"},{"$f":"'Data SBP Measures'!$AF1660","v":"Alcohol and other Drug # of Pretrial"},{"$f":"'Data SBP Measures'!$T1660","v":"2354"},{"$f":"'Data SBP Measures'!$U1660&B2201","v":"140Alcohol and other Drug # of Pretrial"},{"$f":"'Data SBP Measures'!$Y1660","v":"EACH"},null,null,null,null,null,"Intake & Assessments - 140","Alcohol and other Drug # of Pretrial",null,null,null,null,null,null,null,"2725","130","Y","239","Civil Department","EACH","OUTPUT","ADOPTEDBUD",null,null,null,"Civil Department","Court ordered actions completed via paperless workflow",null,{"$f":"'Data SBP Measures'!$AF2201&'Data SBP Measures'!$AE2201& \" - \"& 'Data SBP Measures'!$U2201","v":"Court ordered actions completed via paperless workflowCivil Department - 130"},{"$f":"_xlfn.XLOOKUP(VALUE(W2201),'Data SBP Programs'!O:O,'Data SBP Programs'!S:S)","v":"Civil Department"}]
[{"$f":"'Data SBP Measures'!$AI1664&\" - \"&'Data SBP Measures'!$U1664","v":"Intake & Assessments - 140"},{"$f":"'Data SBP Measures'!$AF1664","v":"Alcohol and other Drug # of Probation"},{"$f":"'Data SBP Measures'!$T1664","v":"2355"},{"$f":"'Data SBP Measures'!$U1664&B2205","v":"140Alcohol and other Drug # of Probation"},{"$f":"'Data SBP Measures'!$Y1664","v":"EACH"},null,null,null,null,null,"Intake & Assessments - 140","Alcohol and other Drug # of Probation",null,null,null,null,null,null,null,"2726","130","Y","240","Criminal Department","EACH","OUTPUT","ADOPTEDBUD",null,null,null,"Criminal Department","Court ordered actions completed via paperless workflow",null,{"$f":"'Data SBP Measures'!$AF2205&'Data SBP Measures'!$AE2205& \" - \"& 'Data SBP Measures'!$U2205","v":"Court ordered actions completed via paperless workflowCriminal Department - 130"},{"$f":"_xlfn.XLOOKUP(VALUE(W2205),'Data SBP Programs'!O:O,'Data SBP Programs'!S:S)","v":"Criminal Department"}]
[{"$f":"'Data SBP Measures'!$AI1665&\" - \"&'Data SBP Measures'!$U1665","v":"Intake & Assessments - 140"},{"$f":"'Data SBP Measures'!$AF1665","v":"Alcohol and other Drug # of Probation"},{"$f":"'Data SBP Measures'!$T1665","v":"2355"},{"$f":"'Data SBP Measures'!$U1665&B2206","v":"140Alcohol and other Drug # of Probation"},{"$f":"'Data SBP Measures'!$Y1665","v":"EACH"},null,null,null,null,null,"Intake & Assessments - 140","Alcohol and other Drug # of Probation",null,null,null,null,null,null,null,"2726","130","Y","240","Criminal Department","EACH","OUTPUT","ADOPTEDBUD",null,null,null,"Criminal Department","Court ordered actions completed via paperless workflow",null,{"$f":"'Data SBP Measures'!$AF2206&'Data SBP Measures'!$AE2206& \" - \"& 'Data SBP Measures'!$U2206","v":"Court ordered actions completed via paperless workflowCriminal Department - 130"},{"$f":"_xlfn.XLOOKUP(VALUE(W2206),'Data SBP Programs'!O:O,'Data SBP Programs'!S:S)","v":"Criminal Department"}]
[{"$f":"'Data SBP Measures'!$AI1659&\" - \"&'Data SBP Measures'!$U1659","v":"Intake & Assessments - 140"},{"$f":"'Data SBP Measures'!$AF1659","v":"Alcohol and other Drug Total # referred"},{"$f":"'Data SBP Measures'!$T1659","v":"2353"},{"$f":"'Data SBP Measures'!$U1659&B2209","v":"140Alcohol and other Drug Total # referred"},{"$f":"'Data SBP Measures'!$Y1659","v":"EACH"},null,null,null,null,null,"Intake & Assessments - 140","Alcohol and other Drug Total # referred",null,null,null,null,null,null,null,"2726","130","Y","240","Criminal Department","EACH","OUTPUT","ADOPTEDBUD",null,null,null,"Criminal Department","Court ordered actions completed via paperless workflow",null,{"$f":"'Data SBP Measures'!$AF2209&'Data SBP Measures'!$AE2209& \" - \"& 'Data SBP Measures'!$U2209","v":"Court ordered actions completed via paperless workflowCriminal Department - 130"},{"$f":"_xlfn.XLOOKUP(VALUE(W2209),'Data SBP Programs'!O:O,'Data SBP Programs'!S:S)","v":"Criminal Department"}]
[{"$f":"'Data SBP Measures'!$AI1694&\" - \"&'Data SBP Measures'!$U1694","v":"Intake & Assessments - 140"},{"$f":"'Data SBP Measures'!$AF1694","v":"Family Violence # of Other"},{"$f":"'Data SBP Measures'!$T1694","v":"2365"},{"$f":"'Data SBP Measures'!$U1694&B2210","v":"140Family Violence # of Other"},{"$f":"'Data SBP Measures'!$Y1694","v":"EACH"},null,null,null,null,null,"Intake & Assessments - 140","Family Violence # of Other",null,null,null,null,null,null,null,"2726","130","Y","240","Criminal Department","EACH","OUTPUT","ADOPTEDBUD",null,null,null,"Criminal Department","Court ordered actions completed via paperless workflow",null,{"$f":"'Data SBP Measures'!$AF2210&'Data SBP Measures'!$AE2210& \" - \"& 'Data SBP Measures'!$U2210","v":"Court ordered actions completed via paperless workflowCriminal Department - 130"},{"$f":"_xlfn.XLOOKUP(VALUE(W2210),'Data SBP Programs'!O:O,'Data SBP Programs'!S:S)","v":"Criminal Department"}]
[{"$f":"'Data SBP Measures'!$AI1689&\" - \"&'Data SBP Measures'!$U1689","v":"Intake & Assessments - 140"},{"$f":"'Data SBP Measures'!$AF1689","v":"Family Violence # of Pretrial"},{"$f":"'Data SBP Measures'!$T1689","v":"2363"},{"$f":"'Data SBP Measures'!$U1689&B2214","v":"140Family Violence # of Pretrial"},{"$f":"'Data SBP Measures'!$Y1689","v":"EACH"},null,null,null,null,null,"Intake & Assessments - 140","Family Violence # of Pretrial",null,null,null,null,null,null,null,"2731","132","Y","246","Interlocal Agreement","EACH","INPUT","ADOPTEDBUD",null,null,null,"Interlocal Agreement","Incidents",null,{"$f":"'Data SBP Measures'!$AF2214&'Data SBP Measures'!$AE2214& \" - \"& 'Data SBP Measures'!$U2214","v":"IncidentsInterlocal Agreement - 132"},{"$f":"_xlfn.XLOOKUP(VALUE(W2214),'Data SBP Programs'!O:O,'Data SBP Programs'!S:S)","v":"Interlocal Agreement"}]
[{"$f":"'Data SBP Measures'!$AI1691&\" - \"&'Data SBP Measures'!$U1691","v":"Intake & Assessments - 140"},{"$f":"'Data SBP Measures'!$AF1691","v":"Family Violence # of Probation"},{"$f":"'Data SBP Measures'!$T1691","v":"2364"},{"$f":"'Data SBP Measures'!$U1691&B2216","v":"140Family Violence # of Probation"},{"$f":"'Data SBP Measures'!$Y1691","v":"EACH"},null,null,null,null,null,"Intake & Assessments - 140","Family Violence # of Probation",null,null,null,null,null,null,null,"2733","121","Y","214","Jury Management Office","EACH","OUTPUT","NEITHER",null,null,null,"Jury Management Office","# of jury panels",null,{"$f":"'Data SBP Measures'!$AF2216&'Data SBP Measures'!$AE2216& \" - \"& 'Data SBP Measures'!$U2216","v":"# of jury panelsJury Management Office - 121"},{"$f":"_xlfn.XLOOKUP(VALUE(W2216),'Data SBP Programs'!O:O,'Data SBP Programs'!S:S)","v":"Jury Management Office"}]
[{"$f":"'Data SBP Measures'!$AI1685&\" - \"&'Data SBP Measures'!$U1685","v":"Intake & Assessments - 140"},{"$f":"'Data SBP Measures'!$AF1685","v":"Family Violence Total # referred"},{"$f":"'Data SBP Measures'!$T1685","v":"2362"},{"$f":"'Data SBP Measures'!$U1685&B2219","v":"140Family Violence Total # referred"},{"$f":"'Data SBP Measures'!$Y1685","v":"EACH"},null,null,null,null,null,"Intake & Assessments - 140","Family Violence Total # referred",null,null,null,null,null,null,null,"2736","121","Y","217","Civil Division (Family)","EACH","INPUT","ADOPTEDBUD",null,null,null,"Civil Division (Family)","# of dispositions",null,{"$f":"'Data SBP Measures'!$AF2219&'Data SBP Measures'!$AE2219& \" - \"& 'Data SBP Measures'!$U2219","v":"# of dispositionsCivil Division (Family) - 121"},{"$f":"_xlfn.XLOOKUP(VALUE(W2219),'Data SBP Programs'!O:O,'Data SBP Programs'!S:S)","v":"Accounting Division"}]
[{"$f":"'Data SBP Measures'!$AI1686&\" - \"&'Data SBP Measures'!$U1686","v":"Intake & Assessments - 140"},{"$f":"'Data SBP Measures'!$AF1686","v":"Family Violence Total # referred"},{"$f":"'Data SBP Measures'!$T1686","v":"2362"},{"$f":"'Data SBP Measures'!$U1686&B2220","v":"140Family Violence Total # referred"},{"$f":"'Data SBP Measures'!$Y1686","v":"EACH"},null,null,null,null,null,"Intake & Assessments - 140","Family Violence Total # referred",null,null,null,null,null,null,null,"2737","121","Y","217","Civil Division (Family)","EACH","INPUT","ADOPTEDBUD",null,null,null,"Civil Division (Family)","# of CPS cases",null,{"$f":"'Data SBP Measures'!$AF2220&'Data SBP Measures'!$AE2220& \" - \"& 'Data SBP Measures'!$U2220","v":"# of CPS casesCivil Division (Family) - 121"},{"$f":"_xlfn.XLOOKUP(VALUE(W2220),'Data SBP Programs'!O:O,'Data SBP Programs'!S:S)","v":"Accounting Division"}]
[{"$f":"'Data SBP Measures'!$AI1647&\" - \"&'Data SBP Measures'!$U1647","v":"Intake & Assessments - 140"},{"$f":"'Data SBP Measures'!$AF1647","v":"Total # of AOD Asmts & Family Violence Asmts"},{"$f":"'Data SBP Measures'!$T1647","v":"2349"},{"$f":"'Data SBP Measures'!$U1647&B2224","v":"140Total # of AOD Asmts & Family Violence Asmts"},{"$f":"'Data SBP Measures'!$Y1647","v":"EACH"},null,null,null,null,null,"Intake & Assessments - 140","Total # of AOD Asmts & Family Violence Asmts",null,null,null,null,null,null,null,"2741","121","Y","218","General Litigation/Government Division","EACH","INPUT","ADOPTEDBUD",null,null,null,"General Litigation/Government Division","# of Appeals",null,{"$f":"'Data SBP Measures'!$AF2224&'Data SBP Measures'!$AE2224& \" - \"& 'Data SBP Measures'!$U2224","v":"# of AppealsGeneral Litigation/Government Division - 121"},{"$f":"_xlfn.XLOOKUP(VALUE(W2224),'Data SBP Programs'!O:O,'Data SBP Programs'!S:S)","v":"General Litigation/Government Division"}]
[{"$f":"'Data SBP Measures'!$AI650&\" - \"&'Data SBP Measures'!$U650","v":"Intergovernmental Relations - 110"},{"$f":"'Data SBP Measures'!$AF650","v":"Number of Interim Charges Tracked"},{"$f":"'Data SBP Measures'!$T650","v":"1699"},{"$f":"'Data SBP Measures'!$U650&B2225","v":"110Number of Interim Charges Tracked"},{"$f":"'Data SBP Measures'!$Y650","v":"EACH"},null,null,null,null,null,"Intergovernmental Relations - 110","Number of Interim Charges Tracked",null,null,null,null,null,null,null,"2743","121","Y","215","Tech Support Development and Quality Assurance","EACH","OUTPUT","NEITHER",null,null,null,"Tech Support Development and Quality Assurance","# of Criminal production entries reviewed/audited for quality assurance",null,{"$f":"'Data SBP Measures'!$AF2225&'Data SBP Measures'!$AE2225& \" - \"& 'Data SBP Measures'!$U2225","v":"# of Criminal production entries reviewed/audited for quality assuranceTech Support Development and Quality Assurance - 121"},{"$f":"_xlfn.XLOOKUP(VALUE(W2225),'Data SBP Programs'!O:O,'Data SBP Programs'!S:S)","v":"Civil Division (Family)"}]
[{"$f":"'Data SBP Measures'!$AI648&\" - \"&'Data SBP Measures'!$U648","v":"Intergovernmental Relations - 110"},{"$f":"'Data SBP Measures'!$AF648","v":"Number of Legislative Priorities set by Court"},{"$f":"'Data SBP Measures'!$T648","v":"1697"},{"$f":"'Data SBP Measures'!$U648&B2228","v":"110Number of Legislative Priorities set by Court"},{"$f":"'Data SBP Measures'!$Y648","v":"EACH"},null,null,null,null,null,"Intergovernmental Relations - 110","Number of Legislative Priorities set by Court",null,null,null,null,null,null,null,"2746","121","Y","215","Tech Support Development and Quality Assurance","EACH","OUTPUT","NEITHER",null,null,null,"Tech Support Development and Quality Assurance","# of pages converted to electronic format",null,{"$f":"'Data SBP Measures'!$AF2228&'Data SBP Measures'!$AE2228& \" - \"& 'Data SBP Measures'!$U2228","v":"# of pages converted to electronic formatTech Support Development and Quality Assurance - 121"},{"$f":"_xlfn.XLOOKUP(VALUE(W2228),'Data SBP Programs'!O:O,'Data SBP Programs'!S:S)","v":"Civil Division (Family)"}]
[{"$f":"'Data SBP Measures'!$AI655&\" - \"&'Data SBP Measures'!$U655","v":"Intergovernmental Relations - 110"},{"$f":"'Data SBP Measures'!$AF655","v":"Number of mtgs. of Intgovtal. Reltns. liaisons"},{"$f":"'Data SBP Measures'!$T655","v":"1703"},{"$f":"'Data SBP Measures'!$U655&B2229","v":"110Number of mtgs. of Intgovtal. Reltns. liaisons"},{"$f":"'Data SBP Measures'!$Y655","v":"EACH"},null,null,null,null,null,"Intergovernmental Relations - 110","Number of mtgs. of Intgovtal. Reltns. liaisons",null,null,null,null,null,null,null,"2747","121","Y","216","Accounting Division","DOLLARS","OUTPUT","ADOPTEDBUD",null,null,null,"Accounting Division","$ Amount of Delinquent court costs collected",null,{"$f":"'Data SBP Measures'!$AF2229&'Data SBP Measures'!$AE2229& \" - \"& 'Data SBP Measures'!$U2229","v":"$ Amount of Delinquent court costs collectedAccounting Division - 121"},{"$f":"_xlfn.XLOOKUP(VALUE(W2229),'Data SBP Programs'!O:O,'Data SBP Programs'!S:S)","v":"Accounting Division"}]
[{"$f":"'Data SBP Measures'!$AI646&\" - \"&'Data SBP Measures'!$U646","v":"Intergovernmental Relations - 110"},{"$f":"'Data SBP Measures'!$AF646","v":"Percentage of filed bills and JRs tracked"},{"$f":"'Data SBP Measures'!$T646","v":"1695"},{"$f":"'Data SBP Measures'!$U646&B2233","v":"110Percentage of filed bills and JRs tracked"},{"$f":"'Data SBP Measures'!$Y646","v":"PERCENT"},null,null,null,null,null,"Intergovernmental Relations - 110","Percentage of filed bills and JRs tracked",null,null,null,null,null,null,null,"2750","121","Y","216","Accounting Division","EACH","INPUT","NEITHER",null,null,null,"Accounting Division","# of Registry accounts",null,{"$f":"'Data SBP Measures'!$AF2233&'Data SBP Measures'!$AE2233& \" - \"& 'Data SBP Measures'!$U2233","v":"# of Registry accountsAccounting Division - 121"},{"$f":"_xlfn.XLOOKUP(VALUE(W2233),'Data SBP Programs'!O:O,'Data SBP Programs'!S:S)","v":"Accounting Division"}]
[{"$f":"'Data SBP Measures'!$AI649&\" - \"&'Data SBP Measures'!$U649","v":"Intergovernmental Relations - 110"},{"$f":"'Data SBP Measures'!$AF649","v":"Percentage of Legislative Priorities accomplished"},{"$f":"'Data SBP Measures'!$T649","v":"1698"},{"$f":"'Data SBP Measures'!$U649&B2235","v":"110Percentage of Legislative Priorities accomplished"},{"$f":"'Data SBP Measures'!$Y649","v":"PERCENT"},null,null,null,null,null,"Intergovernmental Relations - 110","Percentage of Legislative Priorities accomplished",null,null,null,null,null,null,null,"2752","121","Y","216","Accounting Division","EACH","INPUT","NEITHER",null,null,null,"Accounting Division","# of Criminal Bonds received and recorded",null,{"$f":"'Data SBP Measures'!$AF2235&'Data SBP Measures'!$AE2235& \" - \"& 'Data SBP Measures'!$U2235","v":"# of Criminal Bonds received and recordedAccounting Division - 121"},{"$f":"_xlfn.XLOOKUP(VALUE(W2235),'Data SBP Programs'!O:O,'Data SBP Programs'!S:S)","v":"Accounting Division"}]
[{"$f":"'Data SBP Measures'!$AI2512&\" - \"&'Data SBP Measures'!$U2512","v":"Internal Affairs - 137"},{"$f":"'Data SBP Measures'!$AF2512","v":"No of audio files reviewed"},{"$f":"'Data SBP Measures'!$T2512","v":"3167"},{"$f":"'Data SBP Measures'!$U2512&B2238","v":"137No of audio files reviewed"},{"$f":"'Data SBP Measures'!$Y2512","v":"EACH"},null,null,null,null,null,"Internal Affairs - 137","No of audio files reviewed",null,null,null,null,null,null,null,"2760","112","Y","29","Application Development & Production Support","PERCENT","OUTPUT","BLACKBOOK",null,null,null,"Application Development & Production Support","% EDS incidents acknowledged",null,{"$f":"'Data SBP Measures'!$AF2238&'Data SBP Measures'!$AE2238& \" - \"& 'Data SBP Measures'!$U2238","v":"% EDS incidents acknowledgedApplication Development & Production Support - 112"},{"$f":"_xlfn.XLOOKUP(VALUE(W2238),'Data SBP Programs'!O:O,'Data SBP Programs'!S:S)","v":"Application Development & Production Support"}]
[{"$f":"'Data SBP Measures'!$AI2511&\" - \"&'Data SBP Measures'!$U2511","v":"Internal Affairs - 137"},{"$f":"'Data SBP Measures'!$AF2511","v":"No of photos reviewed"},{"$f":"'Data SBP Measures'!$T2511","v":"3166"},{"$f":"'Data SBP Measures'!$U2511&B2239","v":"137No of photos reviewed"},{"$f":"'Data SBP Measures'!$Y2511","v":"EACH"},null,null,null,null,null,"Internal Affairs - 137","No of photos reviewed",null,null,null,null,null,null,null,"2761","112","Y","29","Application Development & Production Support","PERCENT","OUTPUT","BLACKBOOK",null,null,null,"Application Development & Production Support","% EDS restored P1 within 2 hours",null,{"$f":"'Data SBP Measures'!$AF2239&'Data SBP Measures'!$AE2239& \" - \"& 'Data SBP Measures'!$U2239","v":"% EDS restored P1 within 2 hoursApplication Development & Production Support - 112"},{"$f":"_xlfn.XLOOKUP(VALUE(W2239),'Data SBP Programs'!O:O,'Data SBP Programs'!S:S)","v":"Application Development & Production Support"}]
[{"$f":"'Data SBP Measures'!$AI2309&\" - \"&'Data SBP Measures'!$U2309","v":"Investigations - 123"},{"$f":"'Data SBP Measures'!$AF2309","v":"# of subpoenas served for vehicular crimes"},{"$f":"'Data SBP Measures'!$T2309","v":"2861"},{"$f":"'Data SBP Measures'!$U2309&B2243","v":"123# of subpoenas served for vehicular crimes"},{"$f":"'Data SBP Measures'!$Y2309","v":"EACH"},null,null,null,null,null,"Investigations - 123","# of subpoenas served for vehicular crimes",null,null,null,null,null,null,null,"2767","112","Y","29","Application Development & Production Support","EACH","OUTPUT","BLACKBOOK",null,null,null,"Application Development & Production Support","# of enhancements, bug fixes, and automated solutions implemented",null,{"$f":"'Data SBP Measures'!$AF2243&'Data SBP Measures'!$AE2243& \" - \"& 'Data SBP Measures'!$U2243","v":"# of enhancements, bug fixes, and automated solutions implementedApplication Development & Production Support - 112"},{"$f":"_xlfn.XLOOKUP(VALUE(W2243),'Data SBP Programs'!O:O,'Data SBP Programs'!S:S)","v":"Application Development & Production Support"}]
[{"$f":"'Data SBP Measures'!$AI2310&\" - \"&'Data SBP Measures'!$U2310","v":"Investigations - 123"},{"$f":"'Data SBP Measures'!$AF2310","v":"# of victim/witness contacts"},{"$f":"'Data SBP Measures'!$T2310","v":"2862"},{"$f":"'Data SBP Measures'!$U2310&B2244","v":"123# of victim/witness contacts"},{"$f":"'Data SBP Measures'!$Y2310","v":"EACH"},null,null,null,null,null,"Investigations - 123","# of victim/witness contacts",null,null,null,null,null,null,null,"2769","112","Y","29","Application Development & Production Support","PERCENT","OUTCOME","BLACKBOOK",null,null,null,"Application Development & Production Support","Satisfaction survey value",null,{"$f":"'Data SBP Measures'!$AF2244&'Data SBP Measures'!$AE2244& \" - \"& 'Data SBP Measures'!$U2244","v":"Satisfaction survey valueApplication Development & Production Support - 112"},{"$f":"_xlfn.XLOOKUP(VALUE(W2244),'Data SBP Programs'!O:O,'Data SBP Programs'!S:S)","v":"Application Development & Production Support"}]
[{"$f":"'Data SBP Measures'!$AI1983&\" - \"&'Data SBP Measures'!$U1983","v":"Investigations - 138"},{"$f":"'Data SBP Measures'!$AF1983","v":"Non-Reportable Death Investigations (NR)"},{"$f":"'Data SBP Measures'!$T1983","v":"2571"},{"$f":"'Data SBP Measures'!$U1983&B2247","v":"138Non-Reportable Death Investigations (NR)"},{"$f":"'Data SBP Measures'!$Y1983","v":"EACH"},null,null,null,null,null,"Investigations - 138","Non-Reportable Death Investigations (NR)",null,null,null,null,null,null,null,"2770","114","Y","295","Exposition Center","DOLLARS","INPUT","ADOPTEDBUD",null,null,null,"Exposition Center","Total Expenditures",null,{"$f":"'Data SBP Measures'!$AF2247&'Data SBP Measures'!$AE2247& \" - \"& 'Data SBP Measures'!$U2247","v":"Total ExpendituresExposition Center - 114"},{"$f":"_xlfn.XLOOKUP(VALUE(W2247),'Data SBP Programs'!O:O,'Data SBP Programs'!S:S)","v":"Exposition Center"}]
[{"$f":"'Data SBP Measures'!$AI1982&\" - \"&'Data SBP Measures'!$U1982","v":"Investigations - 138"},{"$f":"'Data SBP Measures'!$AF1982","v":"Sign-out Cases (SO)"},{"$f":"'Data SBP Measures'!$T1982","v":"2570"},{"$f":"'Data SBP Measures'!$U1982&B2248","v":"138Sign-out Cases (SO)"},{"$f":"'Data SBP Measures'!$Y1982","v":"EACH"},null,null,null,null,null,"Investigations - 138","Sign-out Cases (SO)",null,null,null,null,null,null,null,"2771","114","Y","295","Exposition Center","DOLLARS","INPUT","ADOPTEDBUD",null,null,null,"Exposition Center","Total Revenues",null,{"$f":"'Data SBP Measures'!$AF2248&'Data SBP Measures'!$AE2248& \" - \"& 'Data SBP Measures'!$U2248","v":"Total RevenuesExposition Center - 114"},{"$f":"_xlfn.XLOOKUP(VALUE(W2248),'Data SBP Programs'!O:O,'Data SBP Programs'!S:S)","v":"Exposition Center"}]
[{"$f":"'Data SBP Measures'!$AI1801&\" - \"&'Data SBP Measures'!$U1801","v":"Investigations - 142"},{"$f":"'Data SBP Measures'!$AF1801","v":"Number of defendants screened for out-of-custody indigence"},{"$f":"'Data SBP Measures'!$T1801","v":"2440"},{"$f":"'Data SBP Measures'!$U1801&B2252","v":"142Number of defendants screened for out-of-custody indigence"},{"$f":"'Data SBP Measures'!$Y1801","v":"EACH"},null,null,null,null,null,"Investigations - 142","Number of defendants screened for out-of-custody indigence",null,null,null,null,null,null,null,"2773","114","Y","295","Exposition Center","EACH","OUTPUT","ADOPTEDBUD",null,null,null,"Exposition Center","# of preventative maintenance work orders",null,{"$f":"'Data SBP Measures'!$AF2252&'Data SBP Measures'!$AE2252& \" - \"& 'Data SBP Measures'!$U2252","v":"# of preventative maintenance work ordersExposition Center - 114"},{"$f":"_xlfn.XLOOKUP(VALUE(W2252),'Data SBP Programs'!O:O,'Data SBP Programs'!S:S)","v":"Exposition Center"}]
[{"$f":"'Data SBP Measures'!$AI494&\" - \"&'Data SBP Measures'!$U494","v":"Investment Management - 109"},{"$f":"'Data SBP Measures'!$AF494","v":"Compensating balances and interest earned in excess of bank service costs"},{"$f":"'Data SBP Measures'!$T494","v":"1541"},{"$f":"'Data SBP Measures'!$U494&B2254","v":"109Compensating balances and interest earned in excess of bank service costs"},{"$f":"'Data SBP Measures'!$Y494","v":"DOLLARS"},null,null,null,null,null,"Investment Management - 109","Compensating balances and interest earned in excess of bank service costs",null,null,null,null,null,null,null,"2774","114","Y","295","Exposition Center","EACH","OUTPUT","ADOPTEDBUD",null,null,null,"Exposition Center","# of events",null,{"$f":"'Data SBP Measures'!$AF2254&'Data SBP Measures'!$AE2254& \" - \"& 'Data SBP Measures'!$U2254","v":"# of eventsExposition Center - 114"},{"$f":"_xlfn.XLOOKUP(VALUE(W2254),'Data SBP Programs'!O:O,'Data SBP Programs'!S:S)","v":"Exposition Center"}]
[{"$f":"'Data SBP Measures'!$AI2256&\" - \"&'Data SBP Measures'!$U2256","v":"Investment Management - 109"},{"$f":"'Data SBP Measures'!$AF2256","v":"Portfolio yield over 12 month rolling 2-year treasury"},{"$f":"'Data SBP Measures'!$T2256","v":"2777"},{"$f":"'Data SBP Measures'!$U2256&B2257","v":"109Portfolio yield over 12 month rolling 2-year treasury"},{"$f":"'Data SBP Measures'!$Y2256","v":"EACH"},null,null,null,null,null,"Investment Management - 109","Portfolio yield over 12 month rolling 2-year treasury",null,null,null,null,null,null,null,"2778","109","Y","12","Investment Management","DOLLARS","OUTCOME","ADOPTEDBUD",null,null,null,"Investment Management","Interest earned per dollar of departmental costs\n",null,{"$f":"'Data SBP Measures'!$AF2257&'Data SBP Measures'!$AE2257& \" - \"& 'Data SBP Measures'!$U2257","v":"Interest earned per dollar of departmental costs\nInvestment Management - 109"},{"$f":"_xlfn.XLOOKUP(VALUE(W2257),'Data SBP Programs'!O:O,'Data SBP Programs'!S:S)","v":"Investment Management"}]
[{"$f":"'Data SBP Measures'!$AI2943&\" - \"&'Data SBP Measures'!$U2943","v":"IT/Planning and Research - 145"},{"$f":"'Data SBP Measures'!$AF2943","v":"Data processes automated annually"},{"$f":"'Data SBP Measures'!$T2943","v":"3460"},{"$f":"'Data SBP Measures'!$U2943&B2258","v":"145Data processes automated annually"},{"$f":"'Data SBP Measures'!$Y2943","v":"EACH"},null,null,null,null,null,"IT/Planning and Research - 145","Data processes automated annually",null,null,null,null,null,null,null,"2779","123","Y","49","Civil Rights Unit","EACH","OUTPUT","NEITHER",null,null,null,"Civil Rights Unit","Civil Rights Investigations Closed",null,{"$f":"'Data SBP Measures'!$AF2258&'Data SBP Measures'!$AE2258& \" - \"& 'Data SBP Measures'!$U2258","v":"Civil Rights Investigations ClosedCivil Rights Unit - 123"},{"$f":"_xlfn.XLOOKUP(VALUE(W2258),'Data SBP Programs'!O:O,'Data SBP Programs'!S:S)","v":"Civil Rights Unit"}]
[{"$f":"'Data SBP Measures'!$AI2942&\" - \"&'Data SBP Measures'!$U2942","v":"IT/Planning and Research - 145"},{"$f":"'Data SBP Measures'!$AF2942","v":"Percent of service requests and issues resolved within the prescribed service level agreements"},{"$f":"'Data SBP Measures'!$T2942","v":"3459"},{"$f":"'Data SBP Measures'!$U2942&B2262","v":"145Percent of service requests and issues resolved within the prescribed service level agreements"},{"$f":"'Data SBP Measures'!$Y2942","v":"PERCENT"},null,null,null,null,null,"IT/Planning and Research - 145","Percent of service requests and issues resolved within the prescribed service level agreements",null,null,null,null,null,null,null,"2797","132","Y","294","Telecommunications","EACH","INPUT","ADOPTEDBUD",null,null,null,"Telecommunications","Total Incidents",null,{"$f":"'Data SBP Measures'!$AF2262&'Data SBP Measures'!$AE2262& \" - \"& 'Data SBP Measures'!$U2262","v":"Total IncidentsTelecommunications - 132"},{"$f":"_xlfn.XLOOKUP(VALUE(W2262),'Data SBP Programs'!O:O,'Data SBP Programs'!S:S)","v":"Telecommunications"}]
[{"$f":"'Data SBP Measures'!$AI2217&\" - \"&'Data SBP Measures'!$U2217","v":"Jury Management Office - 121"},{"$f":"'Data SBP Measures'!$AF2217","v":"# of contacts (phone, email, mail, walk-in) related to jury service inquiries"},{"$f":"'Data SBP Measures'!$T2217","v":"2734"},{"$f":"'Data SBP Measures'!$U2217&B2263","v":"121# of contacts (phone, email, mail, walk-in) related to jury service inquiries"},{"$f":"'Data SBP Measures'!$Y2217","v":"EACH"},null,null,null,null,null,"Jury Management Office - 121","# of contacts (phone, email, mail, walk-in) related to jury service inquiries",null,null,null,null,null,null,null,"2798","158","Y","164","Social Service Agency Contracts: Behavioral Health","EACH","OUTPUT","NEITHER",null,null,null,"Social Service Agency Contracts: Behavioral Health","Number of clients served",null,{"$f":"'Data SBP Measures'!$AF2263&'Data SBP Measures'!$AE2263& \" - \"& 'Data SBP Measures'!$U2263","v":"Number of clients servedSocial Service Agency Contracts: Behavioral Health - 158"},{"$f":"_xlfn.XLOOKUP(VALUE(W2263),'Data SBP Programs'!O:O,'Data SBP Programs'!S:S)","v":"Social Service Agency Contracts: Behavioral Health"}]
[{"$f":"'Data SBP Measures'!$AI791&\" - \"&'Data SBP Measures'!$U791","v":"Jury Management Office - 121"},{"$f":"'Data SBP Measures'!$AF791","v":"Jury summonses sent"},{"$f":"'Data SBP Measures'!$T791","v":"1845"},{"$f":"'Data SBP Measures'!$U791&B2266","v":"121Jury summonses sent"},{"$f":"'Data SBP Measures'!$Y791","v":"EACH"},null,null,null,null,null,"Jury Management Office - 121","Jury summonses sent",null,null,null,null,null,null,null,"280","108","Y","24","Property Tax Collections","EACH","OUTPUT","NEITHER",null,null,null,"Property Tax Collections","# Of Fees disbursed",null,{"$f":"'Data SBP Measures'!$AF2266&'Data SBP Measures'!$AE2266& \" - \"& 'Data SBP Measures'!$U2266","v":"# Of Fees disbursedProperty Tax Collections - 108"},{"$f":"_xlfn.XLOOKUP(VALUE(W2266),'Data SBP Programs'!O:O,'Data SBP Programs'!S:S)","v":"Property Tax Collections"}]
[{"$f":"'Data SBP Measures'!$AI792&\" - \"&'Data SBP Measures'!$U792","v":"Jury Management Office - 121"},{"$f":"'Data SBP Measures'!$AF792","v":"Passport applications"},{"$f":"'Data SBP Measures'!$T792","v":"1851"},{"$f":"'Data SBP Measures'!$U792&B2267","v":"121Passport applications"},{"$f":"'Data SBP Measures'!$Y792","v":"EACH"},null,null,null,null,null,"Jury Management Office - 121","Passport applications",null,null,null,null,null,null,null,"2800","158","Y","164","Social Service Agency Contracts: Behavioral Health","PERCENT","OUTCOME","NEITHER",null,null,null,"Social Service Agency Contracts: Behavioral Health","Percent of clients who are connected to additional needed services and resources",null,{"$f":"'Data SBP Measures'!$AF2267&'Data SBP Measures'!$AE2267& \" - \"& 'Data SBP Measures'!$U2267","v":"Percent of clients who are connected to additional needed services and resourcesSocial Service Agency Contracts: Behavioral Health - 158"},{"$f":"_xlfn.XLOOKUP(VALUE(W2267),'Data SBP Programs'!O:O,'Data SBP Programs'!S:S)","v":"Social Service Agency Contracts: Behavioral Health"}]
[{"$f":"'Data SBP Measures'!$AI508&\" - \"&'Data SBP Measures'!$U508","v":"Justice Planning - 155"},{"$f":"'Data SBP Measures'!$AF508","v":"# of internal and/or external training sessions conducted or attended"},{"$f":"'Data SBP Measures'!$T508","v":"1556"},{"$f":"'Data SBP Measures'!$U508&B2271","v":"155# of internal and/or external training sessions conducted or attended"},{"$f":"'Data SBP Measures'!$Y508","v":"EACH"},null,null,null,null,null,"Justice Planning - 155","# of internal and/or external training sessions conducted or attended",null,null,null,null,null,null,null,"2804","158","Y","168","Social Service Agency Contracts: Public Health","PERCENT","OUTCOME","NEITHER",null,null,null,"Social Service Agency Contracts: Public Health","Percent of clients who report using prevention strategies",null,{"$f":"'Data SBP Measures'!$AF2271&'Data SBP Measures'!$AE2271& \" - \"& 'Data SBP Measures'!$U2271","v":"Percent of clients who report using prevention strategiesSocial Service Agency Contracts: Public Health - 158"},{"$f":"_xlfn.XLOOKUP(VALUE(W2271),'Data SBP Programs'!O:O,'Data SBP Programs'!S:S)","v":"Social Service Agency Contracts: Public Health"}]
[{"$f":"'Data SBP Measures'!$AI204&\" - \"&'Data SBP Measures'!$U204","v":"Justice Planning - 155"},{"$f":"'Data SBP Measures'!$AF204","v":"# programs evaluated"},{"$f":"'Data SBP Measures'!$T204","v":"1249"},{"$f":"'Data SBP Measures'!$U204&B2273","v":"155# programs evaluated"},{"$f":"'Data SBP Measures'!$Y204","v":"EACH"},null,null,null,null,null,"Justice Planning - 155","# programs evaluated",null,null,null,null,null,null,null,"2806","158","Y","163","Social Service Agency Contracts: Access to Basic Supports","PERCENT","OUTCOME","NEITHER",null,null,null,"Social Service Agency Contracts: Access to Basic Supports","Percentage of total pounds provided that is fresh produce",null,{"$f":"'Data SBP Measures'!$AF2273&'Data SBP Measures'!$AE2273& \" - \"& 'Data SBP Measures'!$U2273","v":"Percentage of total pounds provided that is fresh produceSocial Service Agency Contracts: Access to Basic Supports - 158"},{"$f":"_xlfn.XLOOKUP(VALUE(W2273),'Data SBP Programs'!O:O,'Data SBP Programs'!S:S)","v":"Social Service Agency Contracts: Access to Basic Supports"}]
[{"$f":"'Data SBP Measures'!$AI1145&\" - \"&'Data SBP Measures'!$U1145","v":"Juvenile Case Manager - 127"},{"$f":"'Data SBP Measures'!$AF1145","v":"Cases Assigned to Juvenile Case Manager"},{"$f":"'Data SBP Measures'!$T1145","v":"2090"},{"$f":"'Data SBP Measures'!$U1145&B2276","v":"127Cases Assigned to Juvenile Case Manager"},{"$f":"'Data SBP Measures'!$Y1145","v":"EACH"},null,null,null,null,null,"Juvenile Case Manager - 127","Cases Assigned to Juvenile Case Manager",null,null,null,null,null,null,null,"2807","158","Y","163","Social Service Agency Contracts: Access to Basic Supports","PERCENT","OUTCOME","NEITHER",null,null,null,"Social Service Agency Contracts: Access to Basic Supports","Percentage of clients who report that they are growing their own food",null,{"$f":"'Data SBP Measures'!$AF2276&'Data SBP Measures'!$AE2276& \" - \"& 'Data SBP Measures'!$U2276","v":"Percentage of clients who report that they are growing their own foodSocial Service Agency Contracts: Access to Basic Supports - 158"},{"$f":"_xlfn.XLOOKUP(VALUE(W2276),'Data SBP Programs'!O:O,'Data SBP Programs'!S:S)","v":"Social Service Agency Contracts: Access to Basic Supports"}]
[{"$f":"'Data SBP Measures'!$AI1146&\" - \"&'Data SBP Measures'!$U1146","v":"Juvenile Case Manager - 127"},{"$f":"'Data SBP Measures'!$AF1146","v":"Cases Assigned to Juvenile Case Manager"},{"$f":"'Data SBP Measures'!$T1146","v":"2090"},{"$f":"'Data SBP Measures'!$U1146&B2277","v":"127Cases Assigned to Juvenile Case Manager"},{"$f":"'Data SBP Measures'!$Y1146","v":"EACH"},null,null,null,null,null,"Juvenile Case Manager - 127","Cases Assigned to Juvenile Case Manager",null,null,null,null,null,null,null,"2808","158","Y","163","Social Service Agency Contracts: Access to Basic Supports","PERCENT","OUTCOME","NEITHER",null,null,null,"Social Service Agency Contracts: Access to Basic Supports","Percentage of immigration applications approved",null,{"$f":"'Data SBP Measures'!$AF2277&'Data SBP Measures'!$AE2277& \" - \"& 'Data SBP Measures'!$U2277","v":"Percentage of immigration applications approvedSocial Service Agency Contracts: Access to Basic Supports - 158"},{"$f":"_xlfn.XLOOKUP(VALUE(W2277),'Data SBP Programs'!O:O,'Data SBP Programs'!S:S)","v":"Social Service Agency Contracts: Access to Basic Supports"}]
[{"$f":"'Data SBP Measures'!$AI1143&\" - \"&'Data SBP Measures'!$U1143","v":"Juvenile Case Manager - 127"},{"$f":"'Data SBP Measures'!$AF1143","v":"Number of Cases Filed"},{"$f":"'Data SBP Measures'!$T1143","v":"2089"},{"$f":"'Data SBP Measures'!$U1143&B2281","v":"127Number of Cases Filed"},{"$f":"'Data SBP Measures'!$Y1143","v":"EACH"},null,null,null,null,null,"Juvenile Case Manager - 127","Number of Cases Filed",null,null,null,null,null,null,null,"281","108","Y","19","Voter Registration Division","EACH","OUTPUT","ADOPTEDBUD",null,null,null,"Voter Registration Division","# Documents received and processed",null,{"$f":"'Data SBP Measures'!$AF2281&'Data SBP Measures'!$AE2281& \" - \"& 'Data SBP Measures'!$U2281","v":"# Documents received and processedVoter Registration Division - 108"},{"$f":"_xlfn.XLOOKUP(VALUE(W2281),'Data SBP Programs'!O:O,'Data SBP Programs'!S:S)","v":"Voter Registration Division"}]
[{"$f":"'Data SBP Measures'!$AI1149&\" - \"&'Data SBP Measures'!$U1149","v":"Juvenile Case Manager - 127"},{"$f":"'Data SBP Measures'!$AF1149","v":"Total on Docket"},{"$f":"'Data SBP Measures'!$T1149","v":"2092"},{"$f":"'Data SBP Measures'!$U1149&B2282","v":"127Total on Docket"},{"$f":"'Data SBP Measures'!$Y1149","v":"EACH"},null,null,null,null,null,"Juvenile Case Manager - 127","Total on Docket",null,null,null,null,null,null,null,"2810","158","Y","170","Social Service Agency Contracts: Support Svc Comm Living","PERCENT","OUTCOME","NEITHER",null,null,null,"Social Service Agency Contracts: Support Svc Comm Living","Percent of clients who are connected to and/or remain in school or work due to services\n",null,{"$f":"'Data SBP Measures'!$AF2282&'Data SBP Measures'!$AE2282& \" - \"& 'Data SBP Measures'!$U2282","v":"Percent of clients who are connected to and/or remain in school or work due to services\nSocial Service Agency Contracts: Support Svc Comm Living - 158"},{"$f":"_xlfn.XLOOKUP(VALUE(W2282),'Data SBP Programs'!O:O,'Data SBP Programs'!S:S)","v":"Social Service Agency Contracts: Support Svc Comm Living"}]
[{"$f":"'Data SBP Measures'!$AI2448&\" - \"&'Data SBP Measures'!$U2448","v":"Juvenile Case Manager - 128"},{"$f":"'Data SBP Measures'!$AF2448","v":"Meetings JCM held with student or parent"},{"$f":"'Data SBP Measures'!$T2448","v":"3077"},{"$f":"'Data SBP Measures'!$U2448&B2285","v":"128Meetings JCM held with student or parent"},{"$f":"'Data SBP Measures'!$Y2448","v":"EACH"},null,null,null,null,null,"Juvenile Case Manager - 128","Meetings JCM held with student or parent",null,null,null,null,null,null,null,"2816","137","Y","185","Facilities - Call Center / Mail Room / Laundry / Warehouse\n","EACH","INPUT","ADOPTEDBUD",null,null,null,"Facilities - Call Center / Mail Room / Laundry / Warehouse\n","No. of grievances/requests",null,{"$f":"'Data SBP Measures'!$AF2285&'Data SBP Measures'!$AE2285& \" - \"& 'Data SBP Measures'!$U2285","v":"No. of grievances/requestsFacilities - Call Center / Mail Room / Laundry / Warehouse\n - 137"},{"$f":"_xlfn.XLOOKUP(VALUE(W2285),'Data SBP Programs'!O:O,'Data SBP Programs'!S:S)","v":"Facilities - Call Center / Mail Room / Laundry / Warehouse\n"}]
[{"$f":"'Data SBP Measures'!$AI1253&\" - \"&'Data SBP Measures'!$U1253","v":"Juvenile Case Manager - 128"},{"$f":"'Data SBP Measures'!$AF1253","v":"Number of  Parents/Students who attended a JCM class\n"},{"$f":"'Data SBP Measures'!$T1253","v":"2133"},{"$f":"'Data SBP Measures'!$U1253&B2286","v":"128Number of  Parents/Students who attended a JCM class\n"},{"$f":"'Data SBP Measures'!$Y1253","v":"EACH"},null,null,null,null,null,"Juvenile Case Manager - 128","Number of  Parents/Students who attended a JCM class\n",null,null,null,null,null,null,null,"2817","137","Y","185","Facilities - Call Center / Mail Room / Laundry / Warehouse\n","EACH","OUTPUT","ADOPTEDBUD",null,null,null,"Facilities - Call Center / Mail Room / Laundry / Warehouse\n","No. of contraband notices",null,{"$f":"'Data SBP Measures'!$AF2286&'Data SBP Measures'!$AE2286& \" - \"& 'Data SBP Measures'!$U2286","v":"No. of contraband noticesFacilities - Call Center / Mail Room / Laundry / Warehouse\n - 137"},{"$f":"_xlfn.XLOOKUP(VALUE(W2286),'Data SBP Programs'!O:O,'Data SBP Programs'!S:S)","v":"Facilities - Call Center / Mail Room / Laundry / Warehouse\n"}]
[{"$f":"'Data SBP Measures'!$AI1255&\" - \"&'Data SBP Measures'!$U1255","v":"Juvenile Case Manager - 128"},{"$f":"'Data SBP Measures'!$AF1255","v":"Number of referrals made for services"},{"$f":"'Data SBP Measures'!$T1255","v":"2134"},{"$f":"'Data SBP Measures'!$U1255&B2290","v":"128Number of referrals made for services"},{"$f":"'Data SBP Measures'!$Y1255","v":"EACH"},null,null,null,null,null,"Juvenile Case Manager - 128","Number of referrals made for services",null,null,null,null,null,null,null,"2822","115","Y","292","Purchasing Office Compliance","EACH","OUTPUT","BLACKBOOK",null,null,null,"Purchasing Office Compliance","# of total wage or safety issues reported (Better Builder and EDSI)",null,{"$f":"'Data SBP Measures'!$AF2290&'Data SBP Measures'!$AE2290& \" - \"& 'Data SBP Measures'!$U2290","v":"# of total wage or safety issues reported (Better Builder and EDSI)Purchasing Office Compliance - 115"},{"$f":"_xlfn.XLOOKUP(VALUE(W2290),'Data SBP Programs'!O:O,'Data SBP Programs'!S:S)","v":"Purchasing Office Compliance"}]
[{"$f":"'Data SBP Measures'!$AI2388&\" - \"&'Data SBP Measures'!$U2388","v":"Juvenile Case Manager - 129"},{"$f":"'Data SBP Measures'!$AF2388","v":"# of Employees:"},{"$f":"'Data SBP Measures'!$T2388","v":"2960"},{"$f":"'Data SBP Measures'!$U2388&B2292","v":"129# of Employees:"},{"$f":"'Data SBP Measures'!$Y2388","v":"EACH"},null,null,null,null,null,"Juvenile Case Manager - 129","# of Employees:",null,null,null,null,null,null,null,"2825","115","Y","203","Purchasing Office","DOLLARS","OUTCOME","BLACKBOOK",null,null,null,"Purchasing Office","Rebate Revenue",null,{"$f":"'Data SBP Measures'!$AF2292&'Data SBP Measures'!$AE2292& \" - \"& 'Data SBP Measures'!$U2292","v":"Rebate RevenuePurchasing Office - 115"},{"$f":"_xlfn.XLOOKUP(VALUE(W2292),'Data SBP Programs'!O:O,'Data SBP Programs'!S:S)","v":"Purchasing Office"}]
[{"$f":"'Data SBP Measures'!$AI2391&\" - \"&'Data SBP Measures'!$U2391","v":"Juvenile Case Manager - 129"},{"$f":"'Data SBP Measures'!$AF2391","v":"# of Interns:"},{"$f":"'Data SBP Measures'!$T2391","v":"2961"},{"$f":"'Data SBP Measures'!$U2391&B2295","v":"129# of Interns:"},{"$f":"'Data SBP Measures'!$Y2391","v":"EACH"},null,null,null,null,null,"Juvenile Case Manager - 129","# of Interns:",null,null,null,null,null,null,null,"283","108","Y","19","Voter Registration Division","EACH","OUTPUT","NEITHER",null,null,null,"Voter Registration Division","# Voters cancelled",null,{"$f":"'Data SBP Measures'!$AF2295&'Data SBP Measures'!$AE2295& \" - \"& 'Data SBP Measures'!$U2295","v":"# Voters cancelledVoter Registration Division - 108"},{"$f":"_xlfn.XLOOKUP(VALUE(W2295),'Data SBP Programs'!O:O,'Data SBP Programs'!S:S)","v":"Voter Registration Division"}]
[{"$f":"'Data SBP Measures'!$AI2400&\" - \"&'Data SBP Measures'!$U2400","v":"Juvenile Case Manager - 129"},{"$f":"'Data SBP Measures'!$AF2400","v":"# of Students not enrolled in school at their initial Hearing:"},{"$f":"'Data SBP Measures'!$T2400","v":"2966"},{"$f":"'Data SBP Measures'!$U2400&B2296","v":"129# of Students not enrolled in school at their initial Hearing:"},{"$f":"'Data SBP Measures'!$Y2400","v":"EACH"},null,null,null,null,null,"Juvenile Case Manager - 129","# of Students not enrolled in school at their initial Hearing:",null,null,null,null,null,null,null,"2831","115","Y","205","Purchasing Office HUB","EACH","OUTCOME","BLACKBOOK",null,null,null,"Purchasing Office HUB","# of Training and Outreach events hosted or supported",null,{"$f":"'Data SBP Measures'!$AF2296&'Data SBP Measures'!$AE2296& \" - \"& 'Data SBP Measures'!$U2296","v":"# of Training and Outreach events hosted or supportedPurchasing Office HUB - 115"},{"$f":"_xlfn.XLOOKUP(VALUE(W2296),'Data SBP Programs'!O:O,'Data SBP Programs'!S:S)","v":"Purchasing Office HUB"}]
[{"$f":"'Data SBP Measures'!$AI2423&\" - \"&'Data SBP Measures'!$U2423","v":"Juvenile Case Manager - 129"},{"$f":"'Data SBP Measures'!$AF2423","v":"% Juvenile Compliance Rate (Juvenile Compliance Dismissals divided by the # of new filings)"},{"$f":"'Data SBP Measures'!$T2423","v":"3010"},{"$f":"'Data SBP Measures'!$U2423&B2300","v":"129% Juvenile Compliance Rate (Juvenile Compliance Dismissals divided by the # of new filings)"},{"$f":"'Data SBP Measures'!$Y2423","v":"PERCENT"},null,null,null,null,null,"Juvenile Case Manager - 129","% Juvenile Compliance Rate (Juvenile Compliance Dismissals divided by the # of new filings)",null,null,null,null,null,null,null,"2840","115","Y","296","Purchasing Office Procurement (115)","EACH","OUTPUT","ADOPTEDBUD",null,null,null,"Purchasing Office Procurement (115)","# of informal solicitations",null,{"$f":"'Data SBP Measures'!$AF2300&'Data SBP Measures'!$AE2300& \" - \"& 'Data SBP Measures'!$U2300","v":"# of informal solicitationsPurchasing Office Procurement (115) - 115"},{"$f":"_xlfn.XLOOKUP(VALUE(W2300),'Data SBP Programs'!O:O,'Data SBP Programs'!S:S)","v":"Purchasing Office Procurement (115)"}]
[{"$f":"'Data SBP Measures'!$AI2424&\" - \"&'Data SBP Measures'!$U2424","v":"Juvenile Case Manager - 129"},{"$f":"'Data SBP Measures'!$AF2424","v":"% Juvenile Compliance Rate (Juvenile Compliance Dismissals divided by the # of new filings)"},{"$f":"'Data SBP Measures'!$T2424","v":"3010"},{"$f":"'Data SBP Measures'!$U2424&B2301","v":"129% Juvenile Compliance Rate (Juvenile Compliance Dismissals divided by the # of new filings)"},{"$f":"'Data SBP Measures'!$Y2424","v":"PERCENT"},null,null,null,null,null,"Juvenile Case Manager - 129","% Juvenile Compliance Rate (Juvenile Compliance Dismissals divided by the # of new filings)",null,null,null,null,null,null,null,"2841","115","Y","296","Purchasing Office Procurement (115)","EACH","OUTPUT","ADOPTEDBUD",null,null,null,"Purchasing Office Procurement (115)","# of Cooperative purchases",null,{"$f":"'Data SBP Measures'!$AF2301&'Data SBP Measures'!$AE2301& \" - \"& 'Data SBP Measures'!$U2301","v":"# of Cooperative purchasesPurchasing Office Procurement (115) - 115"},{"$f":"_xlfn.XLOOKUP(VALUE(W2301),'Data SBP Programs'!O:O,'Data SBP Programs'!S:S)","v":"Purchasing Office Procurement (115)"}]
[{"$f":"'Data SBP Measures'!$AI2420&\" - \"&'Data SBP Measures'!$U2420","v":"Juvenile Case Manager - 129"},{"$f":"'Data SBP Measures'!$AF2420","v":"% PCNA Compliance Rate (PCNA Deferral Compliance Dismissals divided by the # of new filings)"},{"$f":"'Data SBP Measures'!$T2420","v":"3009"},{"$f":"'Data SBP Measures'!$U2420&B2304","v":"129% PCNA Compliance Rate (PCNA Deferral Compliance Dismissals divided by the # of new filings)"},{"$f":"'Data SBP Measures'!$Y2420","v":"PERCENT"},null,null,null,null,null,"Juvenile Case Manager - 129","% PCNA Compliance Rate (PCNA Deferral Compliance Dismissals divided by the # of new filings)",null,null,null,null,null,null,null,"285","108","Y","19","Voter Registration Division","PERCENT","OUTCOME","NEITHER",null,null,null,"Voter Registration Division","% of Eligible Voters Registered",null,{"$f":"'Data SBP Measures'!$AF2304&'Data SBP Measures'!$AE2304& \" - \"& 'Data SBP Measures'!$U2304","v":"% of Eligible Voters RegisteredVoter Registration Division - 108"},{"$f":"_xlfn.XLOOKUP(VALUE(W2304),'Data SBP Programs'!O:O,'Data SBP Programs'!S:S)","v":"Voter Registration Division"}]
[{"$f":"'Data SBP Measures'!$AI2421&\" - \"&'Data SBP Measures'!$U2421","v":"Juvenile Case Manager - 129"},{"$f":"'Data SBP Measures'!$AF2421","v":"% PCNA Compliance Rate (PCNA Deferral Compliance Dismissals divided by the # of new filings)"},{"$f":"'Data SBP Measures'!$T2421","v":"3009"},{"$f":"'Data SBP Measures'!$U2421&B2305","v":"129% PCNA Compliance Rate (PCNA Deferral Compliance Dismissals divided by the # of new filings)"},{"$f":"'Data SBP Measures'!$Y2421","v":"PERCENT"},null,null,null,null,null,"Juvenile Case Manager - 129","% PCNA Compliance Rate (PCNA Deferral Compliance Dismissals divided by the # of new filings)",null,null,null,null,null,null,null,"2852","123","Y","49","Civil Rights Unit","EACH","OUTPUT","NEITHER",null,null,null,"Civil Rights Unit","Non-Travis County cases reviewed & referred to other agency",null,{"$f":"'Data SBP Measures'!$AF2305&'Data SBP Measures'!$AE2305& \" - \"& 'Data SBP Measures'!$U2305","v":"Non-Travis County cases reviewed & referred to other agencyCivil Rights Unit - 123"},{"$f":"_xlfn.XLOOKUP(VALUE(W2305),'Data SBP Programs'!O:O,'Data SBP Programs'!S:S)","v":"Civil Rights Unit"}]
[{"$f":"'Data SBP Measures'!$AI2399&\" - \"&'Data SBP Measures'!$U2399","v":"Juvenile Case Manager - 129"},{"$f":"'Data SBP Measures'!$AF2399","v":"Cases assigned to JCM:"},{"$f":"'Data SBP Measures'!$T2399","v":"2965"},{"$f":"'Data SBP Measures'!$U2399&B2309","v":"129Cases assigned to JCM:"},{"$f":"'Data SBP Measures'!$Y2399","v":"EACH"},null,null,null,null,null,"Juvenile Case Manager - 129","Cases assigned to JCM:",null,null,null,null,null,null,null,"2861","123","Y","47","Investigations","EACH","OUTPUT","NEITHER",null,null,null,"Investigations","# of subpoenas served for vehicular crimes",null,{"$f":"'Data SBP Measures'!$AF2309&'Data SBP Measures'!$AE2309& \" - \"& 'Data SBP Measures'!$U2309","v":"# of subpoenas served for vehicular crimesInvestigations - 123"},{"$f":"_xlfn.XLOOKUP(VALUE(W2309),'Data SBP Programs'!O:O,'Data SBP Programs'!S:S)","v":"Investigations"}]
[{"$f":"'Data SBP Measures'!$AI2414&\" - \"&'Data SBP Measures'!$U2414","v":"Juvenile Case Manager - 129"},{"$f":"'Data SBP Measures'!$AF2414","v":"Dispositions-Truant Conduct Contempt"},{"$f":"'Data SBP Measures'!$T2414","v":"2998"},{"$f":"'Data SBP Measures'!$U2414&B2311","v":"129Dispositions-Truant Conduct Contempt"},{"$f":"'Data SBP Measures'!$Y2414","v":"EACH"},null,null,null,null,null,"Juvenile Case Manager - 129","Dispositions-Truant Conduct Contempt",null,null,null,null,null,null,null,"287","108","Y","19","Voter Registration Division","EACH","OUTCOME","NEITHER",null,null,null,"Voter Registration Division","# Voter outreach events",null,{"$f":"'Data SBP Measures'!$AF2311&'Data SBP Measures'!$AE2311& \" - \"& 'Data SBP Measures'!$U2311","v":"# Voter outreach eventsVoter Registration Division - 108"},{"$f":"_xlfn.XLOOKUP(VALUE(W2311),'Data SBP Programs'!O:O,'Data SBP Programs'!S:S)","v":"Voter Registration Division"}]
[{"$f":"'Data SBP Measures'!$AI2410&\" - \"&'Data SBP Measures'!$U2410","v":"Juvenile Case Manager - 129"},{"$f":"'Data SBP Measures'!$AF2410","v":"Juvenile Showcause (Remedial) Hearings:"},{"$f":"'Data SBP Measures'!$T2410","v":"2988"},{"$f":"'Data SBP Measures'!$U2410&B2314","v":"129Juvenile Showcause (Remedial) Hearings:"},{"$f":"'Data SBP Measures'!$Y2410","v":"EACH"},null,null,null,null,null,"Juvenile Case Manager - 129","Juvenile Showcause (Remedial) Hearings:",null,null,null,null,null,null,null,"2877","155","Y","297","Workforce Development Taskforce (WD)\n","EACH","OUTCOME","ADOPTEDBUD",null,null,null,"Workforce Development Taskforce (WD)\n","# of ex-offenders sustaining employment for 6 months",null,{"$f":"'Data SBP Measures'!$AF2314&'Data SBP Measures'!$AE2314& \" - \"& 'Data SBP Measures'!$U2314","v":"# of ex-offenders sustaining employment for 6 monthsWorkforce Development Taskforce (WD)\n - 155"},{"$f":"_xlfn.XLOOKUP(VALUE(W2314),'Data SBP Programs'!O:O,'Data SBP Programs'!S:S)","v":"Workforce Development Taskforce (WD)\n"}]
[{"$f":"'Data SBP Measures'!$AI2411&\" - \"&'Data SBP Measures'!$U2411","v":"Juvenile Case Manager - 129"},{"$f":"'Data SBP Measures'!$AF2411","v":"Juvenile Showcause (Remedial) Hearings:"},{"$f":"'Data SBP Measures'!$T2411","v":"2988"},{"$f":"'Data SBP Measures'!$U2411&B2315","v":"129Juvenile Showcause (Remedial) Hearings:"},{"$f":"'Data SBP Measures'!$Y2411","v":"EACH"},null,null,null,null,null,"Juvenile Case Manager - 129","Juvenile Showcause (Remedial) Hearings:",null,null,null,null,null,null,null,"2879","129","Y","236","Civil Division","EACH","INPUT","ADOPTEDBUD",null,null,null,"Civil Division","# of E-File Submissions Processed",null,{"$f":"'Data SBP Measures'!$AF2315&'Data SBP Measures'!$AE2315& \" - \"& 'Data SBP Measures'!$U2315","v":"# of E-File Submissions ProcessedCivil Division - 129"},{"$f":"_xlfn.XLOOKUP(VALUE(W2315),'Data SBP Programs'!O:O,'Data SBP Programs'!S:S)","v":"Civil Division"}]
[{"$f":"'Data SBP Measures'!$AI2409&\" - \"&'Data SBP Measures'!$U2409","v":"Juvenile Case Manager - 129"},{"$f":"'Data SBP Measures'!$AF2409","v":"PCNA Showcause (Remedial) Hearings:"},{"$f":"'Data SBP Measures'!$T2409","v":"2981"},{"$f":"'Data SBP Measures'!$U2409&B2319","v":"129PCNA Showcause (Remedial) Hearings:"},{"$f":"'Data SBP Measures'!$Y2409","v":"EACH"},null,null,null,null,null,"Juvenile Case Manager - 129","PCNA Showcause (Remedial) Hearings:",null,null,null,null,null,null,null,"2880","155","Y","181","Mental Health Public Defender","EACH","OUTPUT","BLACKBOOK",null,null,null,"Mental Health Public Defender","Total # of MHPD misdemeanor cause #'s pending at start of FY",null,{"$f":"'Data SBP Measures'!$AF2319&'Data SBP Measures'!$AE2319& \" - \"& 'Data SBP Measures'!$U2319","v":"Total # of MHPD misdemeanor cause #'s pending at start of FYMental Health Public Defender - 155"},{"$f":"_xlfn.XLOOKUP(VALUE(W2319),'Data SBP Programs'!O:O,'Data SBP Programs'!S:S)","v":"Mental Health Public Defender"}]
[{"$f":"'Data SBP Measures'!$AI2392&\" - \"&'Data SBP Measures'!$U2392","v":"Juvenile Case Manager - 129"},{"$f":"'Data SBP Measures'!$AF2392","v":"Truant Conduct referrals:"},{"$f":"'Data SBP Measures'!$T2392","v":"2962"},{"$f":"'Data SBP Measures'!$U2392&B2320","v":"129Truant Conduct referrals:"},{"$f":"'Data SBP Measures'!$Y2392","v":"EACH"},null,null,null,null,null,"Juvenile Case Manager - 129","Truant Conduct referrals:",null,null,null,null,null,null,null,"2881","155","Y","181","Mental Health Public Defender","EACH","OUTPUT","BLACKBOOK",null,null,null,"Mental Health Public Defender","Total misdemeanor cause #'s represented by MHPD attorneys during FY(measures 2880 + 1258)",null,{"$f":"'Data SBP Measures'!$AF2320&'Data SBP Measures'!$AE2320& \" - \"& 'Data SBP Measures'!$U2320","v":"Total misdemeanor cause #'s represented by MHPD attorneys during FY(measures 2880 + 1258)Mental Health Public Defender - 155"},{"$f":"_xlfn.XLOOKUP(VALUE(W2320),'Data SBP Programs'!O:O,'Data SBP Programs'!S:S)","v":"Mental Health Public Defender"}]
[{"$f":"'Data SBP Measures'!$AI2406&\" - \"&'Data SBP Measures'!$U2406","v":"Juvenile Case Manager - 129"},{"$f":"'Data SBP Measures'!$AF2406","v":"Truant Conduct Showcause (Remedial) Hearings:"},{"$f":"'Data SBP Measures'!$T2406","v":"2974"},{"$f":"'Data SBP Measures'!$U2406&B2323","v":"129Truant Conduct Showcause (Remedial) Hearings:"},{"$f":"'Data SBP Measures'!$Y2406","v":"EACH"},null,null,null,null,null,"Juvenile Case Manager - 129","Truant Conduct Showcause (Remedial) Hearings:",null,null,null,null,null,null,null,"2884","155","Y","181","Mental Health Public Defender","EACH","INPUT","BLACKBOOK",null,null,null,"Mental Health Public Defender","Total SJF & F3 cause #'s MH appointed during FY (MHPD, CAPDS & PDO)",null,{"$f":"'Data SBP Measures'!$AF2323&'Data SBP Measures'!$AE2323& \" - \"& 'Data SBP Measures'!$U2323","v":"Total SJF & F3 cause #'s MH appointed during FY (MHPD, CAPDS & PDO)Mental Health Public Defender - 155"},{"$f":"_xlfn.XLOOKUP(VALUE(W2323),'Data SBP Programs'!O:O,'Data SBP Programs'!S:S)","v":"Mental Health Public Defender"}]
[{"$f":"'Data SBP Measures'!$AI1014&\" - \"&'Data SBP Measures'!$U1014","v":"Juvenile Division - 126"},{"$f":"'Data SBP Measures'!$AF1014","v":"Number of cases assigned to the Juvenile Case Manager"},{"$f":"'Data SBP Measures'!$T1014","v":"2029"},{"$f":"'Data SBP Measures'!$U1014&B2324","v":"126Number of cases assigned to the Juvenile Case Manager"},{"$f":"'Data SBP Measures'!$Y1014","v":"EACH"},null,null,null,null,null,"Juvenile Division - 126","Number of cases assigned to the Juvenile Case Manager",null,null,null,null,null,null,null,"2885","155","Y","181","Mental Health Public Defender","EACH","OUTPUT","BLACKBOOK",null,null,null,"Mental Health Public Defender","Total # of MHPD SJF & F3 cause #'s pending at start of FY",null,{"$f":"'Data SBP Measures'!$AF2324&'Data SBP Measures'!$AE2324& \" - \"& 'Data SBP Measures'!$U2324","v":"Total # of MHPD SJF & F3 cause #'s pending at start of FYMental Health Public Defender - 155"},{"$f":"_xlfn.XLOOKUP(VALUE(W2324),'Data SBP Programs'!O:O,'Data SBP Programs'!S:S)","v":"Mental Health Public Defender"}]
[{"$f":"'Data SBP Measures'!$AI1016&\" - \"&'Data SBP Measures'!$U1016","v":"Juvenile Division - 126"},{"$f":"'Data SBP Measures'!$AF1016","v":"Number of dockets attended by juveniles (held)"},{"$f":"'Data SBP Measures'!$T1016","v":"2030"},{"$f":"'Data SBP Measures'!$U1016&B2328","v":"126Number of dockets attended by juveniles (held)"},{"$f":"'Data SBP Measures'!$Y1016","v":"EACH"},null,null,null,null,null,"Juvenile Division - 126","Number of dockets attended by juveniles (held)",null,null,null,null,null,null,null,"2889","155","Y","181","Mental Health Public Defender","EACH","INPUT","BLACKBOOK",null,null,null,"Mental Health Public Defender","SJF & F3 cause #'s w/ incompetent to stand trial finding (MHPD, CAPDS & PDO)",null,{"$f":"'Data SBP Measures'!$AF2328&'Data SBP Measures'!$AE2328& \" - \"& 'Data SBP Measures'!$U2328","v":"SJF & F3 cause #'s w/ incompetent to stand trial finding (MHPD, CAPDS & PDO)Mental Health Public Defender - 155"},{"$f":"_xlfn.XLOOKUP(VALUE(W2328),'Data SBP Programs'!O:O,'Data SBP Programs'!S:S)","v":"Mental Health Public Defender"}]
[{"$f":"'Data SBP Measures'!$AI1032&\" - \"&'Data SBP Measures'!$U1032","v":"Juvenile Division - 126"},{"$f":"'Data SBP Measures'!$AF1032","v":"Number of employees to process cases"},{"$f":"'Data SBP Measures'!$T1032","v":"2038"},{"$f":"'Data SBP Measures'!$U1032&B2330","v":"126Number of employees to process cases"},{"$f":"'Data SBP Measures'!$Y1032","v":"FTE"},null,null,null,null,null,"Juvenile Division - 126","Number of employees to process cases",null,null,null,null,null,null,null,"2890","155","Y","181","Mental Health Public Defender","EACH","OUTPUT","BLACKBOOK",null,null,null,"Mental Health Public Defender","# of new MHPD SJF & F3 cause #'s w/ competency issue",null,{"$f":"'Data SBP Measures'!$AF2330&'Data SBP Measures'!$AE2330& \" - \"& 'Data SBP Measures'!$U2330","v":"# of new MHPD SJF & F3 cause #'s w/ competency issueMental Health Public Defender - 155"},{"$f":"_xlfn.XLOOKUP(VALUE(W2330),'Data SBP Programs'!O:O,'Data SBP Programs'!S:S)","v":"Mental Health Public Defender"}]
[{"$f":"'Data SBP Measures'!$AI1019&\" - \"&'Data SBP Measures'!$U1019","v":"Juvenile Division - 126"},{"$f":"'Data SBP Measures'!$AF1019","v":"Number of juvenile contacts conducted"},{"$f":"'Data SBP Measures'!$T1019","v":"2031"},{"$f":"'Data SBP Measures'!$U1019&B2333","v":"126Number of juvenile contacts conducted"},{"$f":"'Data SBP Measures'!$Y1019","v":"EACH"},null,null,null,null,null,"Juvenile Division - 126","Number of juvenile contacts conducted",null,null,null,null,null,null,null,"2894","155","Y","181","Mental Health Public Defender","PERCENT","OUTCOME","BLACKBOOK",null,null,null,"Mental Health Public Defender","% MHPD represented SJF & F3 cause #'s resolved without conviction (measure 2893/2892 or 3337)",null,{"$f":"'Data SBP Measures'!$AF2333&'Data SBP Measures'!$AE2333& \" - \"& 'Data SBP Measures'!$U2333","v":"% MHPD represented SJF & F3 cause #'s resolved without conviction (measure 2893/2892 or 3337)Mental Health Public Defender - 155"},{"$f":"_xlfn.XLOOKUP(VALUE(W2333),'Data SBP Programs'!O:O,'Data SBP Programs'!S:S)","v":"Mental Health Public Defender"}]
[{"$f":"'Data SBP Measures'!$AI1028&\" - \"&'Data SBP Measures'!$U1028","v":"Juvenile Division - 126"},{"$f":"'Data SBP Measures'!$AF1028","v":"Number of Non-truancy cases filed (New)"},{"$f":"'Data SBP Measures'!$T1028","v":"2036"},{"$f":"'Data SBP Measures'!$U1028&B2334","v":"126Number of Non-truancy cases filed (New)"},{"$f":"'Data SBP Measures'!$Y1028","v":"EACH"},null,null,null,null,null,"Juvenile Division - 126","Number of Non-truancy cases filed (New)",null,null,null,null,null,null,null,"2895","155","Y","181","Mental Health Public Defender","PERCENT","OUTCOME","BLACKBOOK",null,null,null,"Mental Health Public Defender","% of new MHPD misdemeanor cause #'s w/ competency issue (measure 1257/measure 1258)",null,{"$f":"'Data SBP Measures'!$AF2334&'Data SBP Measures'!$AE2334& \" - \"& 'Data SBP Measures'!$U2334","v":"% of new MHPD misdemeanor cause #'s w/ competency issue (measure 1257/measure 1258)Mental Health Public Defender - 155"},{"$f":"_xlfn.XLOOKUP(VALUE(W2334),'Data SBP Programs'!O:O,'Data SBP Programs'!S:S)","v":"Mental Health Public Defender"}]
[{"$f":"'Data SBP Measures'!$AI1030&\" - \"&'Data SBP Measures'!$U1030","v":"Juvenile Division - 126"},{"$f":"'Data SBP Measures'!$AF1030","v":"Number of Parent Contributing to Non-attendance filed (New)"},{"$f":"'Data SBP Measures'!$T1030","v":"2037"},{"$f":"'Data SBP Measures'!$U1030&B2338","v":"126Number of Parent Contributing to Non-attendance filed (New)"},{"$f":"'Data SBP Measures'!$Y1030","v":"EACH"},null,null,null,null,null,"Juvenile Division - 126","Number of Parent Contributing to Non-attendance filed (New)",null,null,null,null,null,null,null,"2900","158","Y","172","Texas A&M AgriLife Extension Service","PERCENT","OUTCOME","NEITHER",null,null,null,"Texas A&M AgriLife Extension Service","Percentage of students wanting a job related to science",null,{"$f":"'Data SBP Measures'!$AF2338&'Data SBP Measures'!$AE2338& \" - \"& 'Data SBP Measures'!$U2338","v":"Percentage of students wanting a job related to scienceTexas A&M AgriLife Extension Service - 158"},{"$f":"_xlfn.XLOOKUP(VALUE(W2338),'Data SBP Programs'!O:O,'Data SBP Programs'!S:S)","v":"Texas A&M AgriLife Extension Service"}]
[{"$f":"'Data SBP Measures'!$AI1031&\" - \"&'Data SBP Measures'!$U1031","v":"Juvenile Division - 126"},{"$f":"'Data SBP Measures'!$AF1031","v":"Number of Parent Contributing to Non-attendance filed (New)"},{"$f":"'Data SBP Measures'!$T1031","v":"2037"},{"$f":"'Data SBP Measures'!$U1031&B2339","v":"126Number of Parent Contributing to Non-attendance filed (New)"},{"$f":"'Data SBP Measures'!$Y1031","v":"EACH"},null,null,null,null,null,"Juvenile Division - 126","Number of Parent Contributing to Non-attendance filed (New)",null,null,null,null,null,null,null,"2901","158","Y","174","The Travis County Children’s Protective Service Board","PERCENT","OUTCOME","ADOPTEDBUD",null,null,null,"The Travis County Children’s Protective Service Board","Percentage of CPS board budget expended on products and services for children and families involved in the child welfare system",null,{"$f":"'Data SBP Measures'!$AF2339&'Data SBP Measures'!$AE2339& \" - \"& 'Data SBP Measures'!$U2339","v":"Percentage of CPS board budget expended on products and services for children and families involved in the child welfare systemThe Travis County Children’s Protective Service Board - 158"},{"$f":"_xlfn.XLOOKUP(VALUE(W2339),'Data SBP Programs'!O:O,'Data SBP Programs'!S:S)","v":"The Travis County Children’s Protective Service Board"}]
[{"$f":"'Data SBP Measures'!$AI1025&\" - \"&'Data SBP Measures'!$U1025","v":"Juvenile Division - 126"},{"$f":"'Data SBP Measures'!$AF1025","v":"Number of students or parents referred for services"},{"$f":"'Data SBP Measures'!$T1025","v":"2034"},{"$f":"'Data SBP Measures'!$U1025&B2341","v":"126Number of students or parents referred for services"},{"$f":"'Data SBP Measures'!$Y1025","v":"EACH"},null,null,null,null,null,"Juvenile Division - 126","Number of students or parents referred for services",null,null,null,null,null,null,null,"2902","145","Y","119","Court Administration","EACH","OUTPUT","ADOPTEDBUD",null,null,null,"Court Administration","Monthly average of records sealed",null,{"$f":"'Data SBP Measures'!$AF2341&'Data SBP Measures'!$AE2341& \" - \"& 'Data SBP Measures'!$U2341","v":"Monthly average of records sealedCourt Administration - 145"},{"$f":"_xlfn.XLOOKUP(VALUE(W2341),'Data SBP Programs'!O:O,'Data SBP Programs'!S:S)","v":"Court Administration"}]
[{"$f":"'Data SBP Measures'!$AI1640&\" - \"&'Data SBP Measures'!$U1640","v":"Juvenile Education Classes - 140"},{"$f":"'Data SBP Measures'!$AF1640","v":"6-Hour Minor In Possession # of classes"},{"$f":"'Data SBP Measures'!$T1640","v":"2344"},{"$f":"'Data SBP Measures'!$U1640&B2344","v":"1406-Hour Minor In Possession # of classes"},{"$f":"'Data SBP Measures'!$Y1640","v":"EACH"},null,null,null,null,null,"Juvenile Education Classes - 140","6-Hour Minor In Possession # of classes",null,null,null,null,null,null,null,"291","108","Y","19","Voter Registration Division","EACH","OUTPUT","NEITHER",null,null,null,"Voter Registration Division","# Correspondence mail",null,{"$f":"'Data SBP Measures'!$AF2344&'Data SBP Measures'!$AE2344& \" - \"& 'Data SBP Measures'!$U2344","v":"# Correspondence mailVoter Registration Division - 108"},{"$f":"_xlfn.XLOOKUP(VALUE(W2344),'Data SBP Programs'!O:O,'Data SBP Programs'!S:S)","v":"Voter Registration Division"}]
[{"$f":"'Data SBP Measures'!$AI1634&\" - \"&'Data SBP Measures'!$U1634","v":"Juvenile Education Classes - 140"},{"$f":"'Data SBP Measures'!$AF1634","v":"8-Hour Juvenile Anger Mgmt. # of classes"},{"$f":"'Data SBP Measures'!$T1634","v":"2338"},{"$f":"'Data SBP Measures'!$U1634&B2347","v":"1408-Hour Juvenile Anger Mgmt. # of classes"},{"$f":"'Data SBP Measures'!$Y1634","v":"EACH"},null,null,null,null,null,"Juvenile Education Classes - 140","8-Hour Juvenile Anger Mgmt. # of classes",null,null,null,null,null,null,null,"292","108","Y","19","Voter Registration Division","EACH","OUTPUT","ADOPTEDBUD",null,null,null,"Voter Registration Division","# Total TEAM records processed (imports, exports, errors/rejects)",null,{"$f":"'Data SBP Measures'!$AF2347&'Data SBP Measures'!$AE2347& \" - \"& 'Data SBP Measures'!$U2347","v":"# Total TEAM records processed (imports, exports, errors/rejects)Voter Registration Division - 108"},{"$f":"_xlfn.XLOOKUP(VALUE(W2347),'Data SBP Programs'!O:O,'Data SBP Programs'!S:S)","v":"Voter Registration Division"}]
[{"$f":"'Data SBP Measures'!$AI1632&\" - \"&'Data SBP Measures'!$U1632","v":"Juvenile Education Classes - 140"},{"$f":"'Data SBP Measures'!$AF1632","v":"8-Hour Juvenile Anger Mgmt. # of clients referred to class"},{"$f":"'Data SBP Measures'!$T1632","v":"2336"},{"$f":"'Data SBP Measures'!$U1632&B2349","v":"1408-Hour Juvenile Anger Mgmt. # of clients referred to class"},{"$f":"'Data SBP Measures'!$Y1632","v":"EACH"},null,null,null,null,null,"Juvenile Education Classes - 140","8-Hour Juvenile Anger Mgmt. # of clients referred to class",null,null,null,null,null,null,null,"2922","133","Y","251","Emissions Task Force","PERCENT","OUTCOME","ADOPTEDBUD",null,null,null,"Emissions Task Force","% of Investigations Closed",null,{"$f":"'Data SBP Measures'!$AF2349&'Data SBP Measures'!$AE2349& \" - \"& 'Data SBP Measures'!$U2349","v":"% of Investigations ClosedEmissions Task Force - 133"},{"$f":"_xlfn.XLOOKUP(VALUE(W2349),'Data SBP Programs'!O:O,'Data SBP Programs'!S:S)","v":"Emissions Task Force"}]
[{"$f":"'Data SBP Measures'!$AI1635&\" - \"&'Data SBP Measures'!$U1635","v":"Juvenile Education Classes - 140"},{"$f":"'Data SBP Measures'!$AF1635","v":"8-Hour Youth Misdemeanor I # of clients referred to class"},{"$f":"'Data SBP Measures'!$T1635","v":"2339"},{"$f":"'Data SBP Measures'!$U1635&B2352","v":"1408-Hour Youth Misdemeanor I # of clients referred to class"},{"$f":"'Data SBP Measures'!$Y1635","v":"EACH"},null,null,null,null,null,"Juvenile Education Classes - 140","8-Hour Youth Misdemeanor I # of clients referred to class",null,null,null,null,null,null,null,"2928","111","Y","195","HR Compensation","EACH","OUTPUT","NEITHER",null,null,null,"HR Compensation","Interdepartment Changes Processed",null,{"$f":"'Data SBP Measures'!$AF2352&'Data SBP Measures'!$AE2352& \" - \"& 'Data SBP Measures'!$U2352","v":"Interdepartment Changes ProcessedHR Compensation - 111"},{"$f":"_xlfn.XLOOKUP(VALUE(W2352),'Data SBP Programs'!O:O,'Data SBP Programs'!S:S)","v":"HR Compensation"}]
[{"$f":"'Data SBP Measures'!$AI1631&\" - \"&'Data SBP Measures'!$U1631","v":"Juvenile Education Classes - 140"},{"$f":"'Data SBP Measures'!$AF1631","v":"Total # of Classes"},{"$f":"'Data SBP Measures'!$T1631","v":"2335"},{"$f":"'Data SBP Measures'!$U1631&B2353","v":"140Total # of Classes"},{"$f":"'Data SBP Measures'!$Y1631","v":"EACH"},null,null,null,null,null,"Juvenile Education Classes - 140","Total # of Classes",null,null,null,null,null,null,null,"2929","111","Y","195","HR Compensation","EACH","OUTPUT","NEITHER",null,null,null,"HR Compensation","Voluntary Terminations Processed",null,{"$f":"'Data SBP Measures'!$AF2353&'Data SBP Measures'!$AE2353& \" - \"& 'Data SBP Measures'!$U2353","v":"Voluntary Terminations ProcessedHR Compensation - 111"},{"$f":"_xlfn.XLOOKUP(VALUE(W2353),'Data SBP Programs'!O:O,'Data SBP Programs'!S:S)","v":"HR Compensation"}]
[{"$f":"'Data SBP Measures'!$AI611&\" - \"&'Data SBP Measures'!$U611","v":"Juvenile Probation Support Services - 145"},{"$f":"'Data SBP Measures'!$AF611","v":"% of Projects Implemented by established timeline"},{"$f":"'Data SBP Measures'!$T611","v":"1653"},{"$f":"'Data SBP Measures'!$U611&B2357","v":"145% of Projects Implemented by established timeline"},{"$f":"'Data SBP Measures'!$Y611","v":"PERCENT"},null,null,null,null,null,"Juvenile Probation Support Services - 145","% of Projects Implemented by established timeline",null,null,null,null,null,null,null,"2932","111","Y","195","HR Compensation","EACH","OUTPUT","NEITHER",null,null,null,"HR Compensation","Salary Changes Processed",null,{"$f":"'Data SBP Measures'!$AF2357&'Data SBP Measures'!$AE2357& \" - \"& 'Data SBP Measures'!$U2357","v":"Salary Changes ProcessedHR Compensation - 111"},{"$f":"_xlfn.XLOOKUP(VALUE(W2357),'Data SBP Programs'!O:O,'Data SBP Programs'!S:S)","v":"HR Compensation"}]
[{"$f":"'Data SBP Measures'!$AI1831&\" - \"&'Data SBP Measures'!$U1831","v":"Juvenile Public Defender - 143"},{"$f":"'Data SBP Measures'!$AF1831","v":"Average number of cases per attorney"},{"$f":"'Data SBP Measures'!$T1831","v":"2472"},{"$f":"'Data SBP Measures'!$U1831&B2358","v":"143Average number of cases per attorney"},{"$f":"'Data SBP Measures'!$Y1831","v":"EACH"},null,null,null,null,null,"Juvenile Public Defender - 143","Average number of cases per attorney",null,null,null,null,null,null,null,"2933","111","Y","195","HR Compensation","EACH","OUTPUT","NEITHER",null,null,null,"HR Compensation","Career Ladders Processed",null,{"$f":"'Data SBP Measures'!$AF2358&'Data SBP Measures'!$AE2358& \" - \"& 'Data SBP Measures'!$U2358","v":"Career Ladders ProcessedHR Compensation - 111"},{"$f":"_xlfn.XLOOKUP(VALUE(W2358),'Data SBP Programs'!O:O,'Data SBP Programs'!S:S)","v":"HR Compensation"}]
[{"$f":"'Data SBP Measures'!$AI1833&\" - \"&'Data SBP Measures'!$U1833","v":"Juvenile Public Defender - 143"},{"$f":"'Data SBP Measures'!$AF1833","v":"Average number of cases per attorney"},{"$f":"'Data SBP Measures'!$T1833","v":"2472"},{"$f":"'Data SBP Measures'!$U1833&B2360","v":"143Average number of cases per attorney"},{"$f":"'Data SBP Measures'!$Y1833","v":"EACH"},null,null,null,null,null,"Juvenile Public Defender - 143","Average number of cases per attorney",null,null,null,null,null,null,null,"2935","111","Y","195","HR Compensation","EACH","OUTPUT","NEITHER",null,null,null,"HR Compensation","Promotions Processed",null,{"$f":"'Data SBP Measures'!$AF2360&'Data SBP Measures'!$AE2360& \" - \"& 'Data SBP Measures'!$U2360","v":"Promotions ProcessedHR Compensation - 111"},{"$f":"_xlfn.XLOOKUP(VALUE(W2360),'Data SBP Programs'!O:O,'Data SBP Programs'!S:S)","v":"HR Compensation"}]
[{"$f":"'Data SBP Measures'!$AI1828&\" - \"&'Data SBP Measures'!$U1828","v":"Juvenile Public Defender - 143"},{"$f":"'Data SBP Measures'!$AF1828","v":"Hours of continuining legal education hours sponsored"},{"$f":"'Data SBP Measures'!$T1828","v":"2471"},{"$f":"'Data SBP Measures'!$U1828&B2363","v":"143Hours of continuining legal education hours sponsored"},{"$f":"'Data SBP Measures'!$Y1828","v":"HOURS"},null,null,null,null,null,"Juvenile Public Defender - 143","Hours of continuining legal education hours sponsored",null,null,null,null,null,null,null,"2938","111","Y","195","HR Compensation","EACH","OUTPUT","NEITHER",null,null,null,"HR Compensation","SAP HELP Desk Tickets Processed",null,{"$f":"'Data SBP Measures'!$AF2363&'Data SBP Measures'!$AE2363& \" - \"& 'Data SBP Measures'!$U2363","v":"SAP HELP Desk Tickets ProcessedHR Compensation - 111"},{"$f":"_xlfn.XLOOKUP(VALUE(W2363),'Data SBP Programs'!O:O,'Data SBP Programs'!S:S)","v":"HR Compensation"}]
[{"$f":"'Data SBP Measures'!$AI1822&\" - \"&'Data SBP Measures'!$U1822","v":"Juvenile Public Defender - 143"},{"$f":"'Data SBP Measures'!$AF1822","v":"Number of cases represented by the Juvenile Public Defender"},{"$f":"'Data SBP Measures'!$T1822","v":"2469"},{"$f":"'Data SBP Measures'!$U1822&B2366","v":"143Number of cases represented by the Juvenile Public Defender"},{"$f":"'Data SBP Measures'!$Y1822","v":"EACH"},null,null,null,null,null,"Juvenile Public Defender - 143","Number of cases represented by the Juvenile Public Defender",null,null,null,null,null,null,null,"2940","147","Y","278","Technology & Communications","EACH","OUTPUT","ADOPTEDBUD",null,null,null,"Technology & Communications","Number of TriTech CAD-Mobile Client Licenses Assigned to Travis County as \"Other Agencies Dispatched\"",null,{"$f":"'Data SBP Measures'!$AF2366&'Data SBP Measures'!$AE2366& \" - \"& 'Data SBP Measures'!$U2366","v":"Number of TriTech CAD-Mobile Client Licenses Assigned to Travis County as \"Other Agencies Dispatched\"Technology & Communications - 147"},{"$f":"_xlfn.XLOOKUP(VALUE(W2366),'Data SBP Programs'!O:O,'Data SBP Programs'!S:S)","v":"Technology & Communications"}]
[{"$f":"'Data SBP Measures'!$AI1824&\" - \"&'Data SBP Measures'!$U1824","v":"Juvenile Public Defender - 143"},{"$f":"'Data SBP Measures'!$AF1824","v":"Number of cases represented by the Juvenile Public Defender"},{"$f":"'Data SBP Measures'!$T1824","v":"2469"},{"$f":"'Data SBP Measures'!$U1824&B2368","v":"143Number of cases represented by the Juvenile Public Defender"},{"$f":"'Data SBP Measures'!$Y1824","v":"EACH"},null,null,null,null,null,"Juvenile Public Defender - 143","Number of cases represented by the Juvenile Public Defender",null,null,null,null,null,null,null,"2942","147","Y","278","Technology & Communications","PERCENT","OUTCOME","ADOPTEDBUD",null,null,null,"Technology & Communications","Percentage of CAD Incidents Specific to Travis County",null,{"$f":"'Data SBP Measures'!$AF2368&'Data SBP Measures'!$AE2368& \" - \"& 'Data SBP Measures'!$U2368","v":"Percentage of CAD Incidents Specific to Travis CountyTechnology & Communications - 147"},{"$f":"_xlfn.XLOOKUP(VALUE(W2368),'Data SBP Programs'!O:O,'Data SBP Programs'!S:S)","v":"Technology & Communications"}]
[{"$f":"'Data SBP Measures'!$AI394&\" - \"&'Data SBP Measures'!$U394","v":"Kitchen - 137"},{"$f":"'Data SBP Measures'!$AF394","v":"No. of meals prepared"},{"$f":"'Data SBP Measures'!$T394","v":"1426"},{"$f":"'Data SBP Measures'!$U394&B2371","v":"137No. of meals prepared"},{"$f":"'Data SBP Measures'!$Y394","v":"EACH"},null,null,null,null,null,"Kitchen - 137","No. of meals prepared",null,null,null,null,null,null,null,"2945","147","Y","278","Technology & Communications","PERCENT","OUTCOME","ADOPTEDBUD",null,null,null,"Technology & Communications","Uptime Availability Percentage for Public Safety Computer Network CTECC IT",null,{"$f":"'Data SBP Measures'!$AF2371&'Data SBP Measures'!$AE2371& \" - \"& 'Data SBP Measures'!$U2371","v":"Uptime Availability Percentage for Public Safety Computer Network CTECC ITTechnology & Communications - 147"},{"$f":"_xlfn.XLOOKUP(VALUE(W2371),'Data SBP Programs'!O:O,'Data SBP Programs'!S:S)","v":"Technology & Communications"}]
[{"$f":"'Data SBP Measures'!$AI2995&\" - \"&'Data SBP Measures'!$U2995","v":"Kitchen - 137"},{"$f":"'Data SBP Measures'!$AF2995","v":"No. of trays"},{"$f":"'Data SBP Measures'!$T2995","v":"3531"},{"$f":"'Data SBP Measures'!$U2995&B2372","v":"137No. of trays"},{"$f":"'Data SBP Measures'!$Y2995","v":"EACH"},null,null,null,null,null,"Kitchen - 137","No. of trays",null,null,null,null,null,null,null,"2946","147","Y","278","Technology & Communications","PERCENT","OUTCOME","ADOPTEDBUD",null,null,null,"Technology & Communications","Uptime Availability Percentage for Public Safety Computer Premium AC Power CTECC IT",null,{"$f":"'Data SBP Measures'!$AF2372&'Data SBP Measures'!$AE2372& \" - \"& 'Data SBP Measures'!$U2372","v":"Uptime Availability Percentage for Public Safety Computer Premium AC Power CTECC ITTechnology & Communications - 147"},{"$f":"_xlfn.XLOOKUP(VALUE(W2372),'Data SBP Programs'!O:O,'Data SBP Programs'!S:S)","v":"Technology & Communications"}]
[{"$f":"'Data SBP Measures'!$AI396&\" - \"&'Data SBP Measures'!$U396","v":"Lake Patrol - 137"},{"$f":"'Data SBP Measures'!$AF396","v":"No. of Public Contacts"},{"$f":"'Data SBP Measures'!$T396","v":"1428"},{"$f":"'Data SBP Measures'!$U396&B2376","v":"137No. of Public Contacts"},{"$f":"'Data SBP Measures'!$Y396","v":"EACH"},null,null,null,null,null,"Lake Patrol - 137","No. of Public Contacts",null,null,null,null,null,null,null,"295","108","Y","19","Voter Registration Division","EACH","OUTPUT","NEITHER",null,null,null,"Voter Registration Division","Street Index Updates",null,{"$f":"'Data SBP Measures'!$AF2376&'Data SBP Measures'!$AE2376& \" - \"& 'Data SBP Measures'!$U2376","v":"Street Index UpdatesVoter Registration Division - 108"},{"$f":"_xlfn.XLOOKUP(VALUE(W2376),'Data SBP Programs'!O:O,'Data SBP Programs'!S:S)","v":"Voter Registration Division"}]
[{"$f":"'Data SBP Measures'!$AI397&\" - \"&'Data SBP Measures'!$U397","v":"Lake Patrol - 137"},{"$f":"'Data SBP Measures'!$AF397","v":"No. of Special Assignments"},{"$f":"'Data SBP Measures'!$T397","v":"1429"},{"$f":"'Data SBP Measures'!$U397&B2377","v":"137No. of Special Assignments"},{"$f":"'Data SBP Measures'!$Y397","v":"EACH"},null,null,null,null,null,"Lake Patrol - 137","No. of Special Assignments",null,null,null,null,null,null,null,"2950","147","Y","278","Technology & Communications","EACH","OUTPUT","ADOPTEDBUD",null,null,null,"Technology & Communications","Number of Travis County \"Associate\" Subscriber Radios on RRS",null,{"$f":"'Data SBP Measures'!$AF2377&'Data SBP Measures'!$AE2377& \" - \"& 'Data SBP Measures'!$U2377","v":"Number of Travis County \"Associate\" Subscriber Radios on RRSTechnology & Communications - 147"},{"$f":"_xlfn.XLOOKUP(VALUE(W2377),'Data SBP Programs'!O:O,'Data SBP Programs'!S:S)","v":"Technology & Communications"}]
[{"$f":"'Data SBP Measures'!$AI1880&\" - \"&'Data SBP Measures'!$U1880","v":"Law Library - 155"},{"$f":"'Data SBP Measures'!$AF1880","v":"Number of forms, brochures, web pages created, updated, or translated into Spanish"},{"$f":"'Data SBP Measures'!$T1880","v":"2530"},{"$f":"'Data SBP Measures'!$U1880&B2379","v":"155Number of forms, brochures, web pages created, updated, or translated into Spanish"},{"$f":"'Data SBP Measures'!$Y1880","v":"EACH"},null,null,null,null,null,"Law Library - 155","Number of forms, brochures, web pages created, updated, or translated into Spanish",null,null,null,null,null,null,null,"2952","147","Y","275","Emergency Management","EACH","OUTPUT","ADOPTEDBUD",null,null,null,"Emergency Management","Emergency management related training deliveries given or arranged",null,{"$f":"'Data SBP Measures'!$AF2379&'Data SBP Measures'!$AE2379& \" - \"& 'Data SBP Measures'!$U2379","v":"Emergency management related training deliveries given or arrangedEmergency Management - 147"},{"$f":"_xlfn.XLOOKUP(VALUE(W2379),'Data SBP Programs'!O:O,'Data SBP Programs'!S:S)","v":"Emergency Management"}]
[{"$f":"'Data SBP Measures'!$AI1866&\" - \"&'Data SBP Measures'!$U1866","v":"Law Library - 155"},{"$f":"'Data SBP Measures'!$AF1866","v":"Number of patrons assisted"},{"$f":"'Data SBP Measures'!$T1866","v":"2526"},{"$f":"'Data SBP Measures'!$U1866&B2382","v":"155Number of patrons assisted"},{"$f":"'Data SBP Measures'!$Y1866","v":"EACH"},null,null,null,null,null,"Law Library - 155","Number of patrons assisted",null,null,null,null,null,null,null,"2955","147","Y","275","Emergency Management","EACH","OUTPUT","ADOPTEDBUD",null,null,null,"Emergency Management","After Action Reviews completed",null,{"$f":"'Data SBP Measures'!$AF2382&'Data SBP Measures'!$AE2382& \" - \"& 'Data SBP Measures'!$U2382","v":"After Action Reviews completedEmergency Management - 147"},{"$f":"_xlfn.XLOOKUP(VALUE(W2382),'Data SBP Programs'!O:O,'Data SBP Programs'!S:S)","v":"Emergency Management"}]
[{"$f":"'Data SBP Measures'!$AI1869&\" - \"&'Data SBP Measures'!$U1869","v":"Law Library - 155"},{"$f":"'Data SBP Measures'!$AF1869","v":"Number of patrons assisted"},{"$f":"'Data SBP Measures'!$T1869","v":"2526"},{"$f":"'Data SBP Measures'!$U1869&B2385","v":"155Number of patrons assisted"},{"$f":"'Data SBP Measures'!$Y1869","v":"EACH"},null,null,null,null,null,"Law Library - 155","Number of patrons assisted",null,null,null,null,null,null,null,"2958","147","Y","275","Emergency Management","EACH","OUTPUT","ADOPTEDBUD",null,null,null,"Emergency Management","Community engagements supporting emergency management planning conducted",null,{"$f":"'Data SBP Measures'!$AF2385&'Data SBP Measures'!$AE2385& \" - \"& 'Data SBP Measures'!$U2385","v":"Community engagements supporting emergency management planning conductedEmergency Management - 147"},{"$f":"_xlfn.XLOOKUP(VALUE(W2385),'Data SBP Programs'!O:O,'Data SBP Programs'!S:S)","v":"Emergency Management"}]
[{"$f":"'Data SBP Measures'!$AI2005&\" - \"&'Data SBP Measures'!$U2005","v":"Law Library - 155"},{"$f":"'Data SBP Measures'!$AF2005","v":"Number of patrons assisted by driver's license reference attorneys"},{"$f":"'Data SBP Measures'!$T2005","v":"2590"},{"$f":"'Data SBP Measures'!$U2005&B2387","v":"155Number of patrons assisted by driver's license reference attorneys"},{"$f":"'Data SBP Measures'!$Y2005","v":"EACH"},null,null,null,null,null,"Law Library - 155","Number of patrons assisted by driver's license reference attorneys",null,null,null,null,null,null,null,"296","108","Y","19","Voter Registration Division","EACH","OUTPUT","NEITHER",null,null,null,"Voter Registration Division","Jurisdiction Boundary Updates",null,{"$f":"'Data SBP Measures'!$AF2387&'Data SBP Measures'!$AE2387& \" - \"& 'Data SBP Measures'!$U2387","v":"Jurisdiction Boundary UpdatesVoter Registration Division - 108"},{"$f":"_xlfn.XLOOKUP(VALUE(W2387),'Data SBP Programs'!O:O,'Data SBP Programs'!S:S)","v":"Voter Registration Division"}]
[{"$f":"'Data SBP Measures'!$AI1870&\" - \"&'Data SBP Measures'!$U1870","v":"Law Library - 155"},{"$f":"'Data SBP Measures'!$AF1870","v":"Number of patrons assisted by family law reference attorneys"},{"$f":"'Data SBP Measures'!$T1870","v":"2528"},{"$f":"'Data SBP Measures'!$U1870&B2390","v":"155Number of patrons assisted by family law reference attorneys"},{"$f":"'Data SBP Measures'!$Y1870","v":"EACH"},null,null,null,null,null,"Law Library - 155","Number of patrons assisted by family law reference attorneys",null,null,null,null,null,null,null,"2961","129","Y","238","Juvenile Case Manager","EACH","INPUT","BLACKBOOK",null,null,null,"Juvenile Case Manager","# of Interns:",null,{"$f":"'Data SBP Measures'!$AF2390&'Data SBP Measures'!$AE2390& \" - \"& 'Data SBP Measures'!$U2390","v":"# of Interns:Juvenile Case Manager - 129"},{"$f":"_xlfn.XLOOKUP(VALUE(W2390),'Data SBP Programs'!O:O,'Data SBP Programs'!S:S)","v":"Juvenile Case Manager"}]
[{"$f":"'Data SBP Measures'!$AI1871&\" - \"&'Data SBP Measures'!$U1871","v":"Law Library - 155"},{"$f":"'Data SBP Measures'!$AF1871","v":"Number of patrons assisted by family law reference attorneys"},{"$f":"'Data SBP Measures'!$T1871","v":"2528"},{"$f":"'Data SBP Measures'!$U1871&B2391","v":"155Number of patrons assisted by family law reference attorneys"},{"$f":"'Data SBP Measures'!$Y1871","v":"EACH"},null,null,null,null,null,"Law Library - 155","Number of patrons assisted by family law reference attorneys",null,null,null,null,null,null,null,"2961","129","Y","238","Juvenile Case Manager","EACH","INPUT","BLACKBOOK",null,null,null,"Juvenile Case Manager","# of Interns:",null,{"$f":"'Data SBP Measures'!$AF2391&'Data SBP Measures'!$AE2391& \" - \"& 'Data SBP Measures'!$U2391","v":"# of Interns:Juvenile Case Manager - 129"},{"$f":"_xlfn.XLOOKUP(VALUE(W2391),'Data SBP Programs'!O:O,'Data SBP Programs'!S:S)","v":"Juvenile Case Manager"}]
[{"$f":"'Data SBP Measures'!$AI1875&\" - \"&'Data SBP Measures'!$U1875","v":"Law Library - 155"},{"$f":"'Data SBP Measures'!$AF1875","v":"Pages of forms, brochures, web pages created or updated in English"},{"$f":"'Data SBP Measures'!$T1875","v":"2529"},{"$f":"'Data SBP Measures'!$U1875&B2395","v":"155Pages of forms, brochures, web pages created or updated in English"},{"$f":"'Data SBP Measures'!$Y1875","v":"EACH"},null,null,null,null,null,"Law Library - 155","Pages of forms, brochures, web pages created or updated in English",null,null,null,null,null,null,null,"2963","129","Y","238","Juvenile Case Manager","EACH","INPUT","ADOPTEDBUD",null,null,null,"Juvenile Case Manager","Parent Contributing to Non-Attendance filings:",null,{"$f":"'Data SBP Measures'!$AF2395&'Data SBP Measures'!$AE2395& \" - \"& 'Data SBP Measures'!$U2395","v":"Parent Contributing to Non-Attendance filings:Juvenile Case Manager - 129"},{"$f":"_xlfn.XLOOKUP(VALUE(W2395),'Data SBP Programs'!O:O,'Data SBP Programs'!S:S)","v":"Juvenile Case Manager"}]
[{"$f":"'Data SBP Measures'!$AI1876&\" - \"&'Data SBP Measures'!$U1876","v":"Law Library - 155"},{"$f":"'Data SBP Measures'!$AF1876","v":"Pages of forms, brochures, web pages created or updated in English"},{"$f":"'Data SBP Measures'!$T1876","v":"2529"},{"$f":"'Data SBP Measures'!$U1876&B2396","v":"155Pages of forms, brochures, web pages created or updated in English"},{"$f":"'Data SBP Measures'!$Y1876","v":"EACH"},null,null,null,null,null,"Law Library - 155","Pages of forms, brochures, web pages created or updated in English",null,null,null,null,null,null,null,"2964","129","Y","238","Juvenile Case Manager","EACH","INPUT","BLACKBOOK",null,null,null,"Juvenile Case Manager","Juvenile (Non-TC) Case filings:",null,{"$f":"'Data SBP Measures'!$AF2396&'Data SBP Measures'!$AE2396& \" - \"& 'Data SBP Measures'!$U2396","v":"Juvenile (Non-TC) Case filings:Juvenile Case Manager - 129"},{"$f":"_xlfn.XLOOKUP(VALUE(W2396),'Data SBP Programs'!O:O,'Data SBP Programs'!S:S)","v":"Juvenile Case Manager"}]
[{"$f":"'Data SBP Measures'!$AI1862&\" - \"&'Data SBP Measures'!$U1862","v":"Law Library - 155"},{"$f":"'Data SBP Measures'!$AF1862","v":"Percentage of reference & research requests completed on day of inquiry"},{"$f":"'Data SBP Measures'!$T1862","v":"2525"},{"$f":"'Data SBP Measures'!$U1862&B2398","v":"155Percentage of reference & research requests completed on day of inquiry"},{"$f":"'Data SBP Measures'!$Y1862","v":"PERCENT"},null,null,null,null,null,"Law Library - 155","Percentage of reference & research requests completed on day of inquiry",null,null,null,null,null,null,null,"2965","129","Y","238","Juvenile Case Manager","EACH","INPUT","BLACKBOOK",null,null,null,"Juvenile Case Manager","Cases assigned to JCM:",null,{"$f":"'Data SBP Measures'!$AF2398&'Data SBP Measures'!$AE2398& \" - \"& 'Data SBP Measures'!$U2398","v":"Cases assigned to JCM:Juvenile Case Manager - 129"},{"$f":"_xlfn.XLOOKUP(VALUE(W2398),'Data SBP Programs'!O:O,'Data SBP Programs'!S:S)","v":"Juvenile Case Manager"}]
[{"$f":"'Data SBP Measures'!$AI1865&\" - \"&'Data SBP Measures'!$U1865","v":"Law Library - 155"},{"$f":"'Data SBP Measures'!$AF1865","v":"Percentage of reference & research requests completed on day of inquiry"},{"$f":"'Data SBP Measures'!$T1865","v":"2525"},{"$f":"'Data SBP Measures'!$U1865&B2401","v":"155Percentage of reference & research requests completed on day of inquiry"},{"$f":"'Data SBP Measures'!$Y1865","v":"PERCENT"},null,null,null,null,null,"Law Library - 155","Percentage of reference & research requests completed on day of inquiry",null,null,null,null,null,null,null,"2966","129","Y","238","Juvenile Case Manager","EACH","INPUT","BLACKBOOK",null,null,null,"Juvenile Case Manager","# of Students not enrolled in school at their initial Hearing:",null,{"$f":"'Data SBP Measures'!$AF2401&'Data SBP Measures'!$AE2401& \" - \"& 'Data SBP Measures'!$U2401","v":"# of Students not enrolled in school at their initial Hearing:Juvenile Case Manager - 129"},{"$f":"_xlfn.XLOOKUP(VALUE(W2401),'Data SBP Programs'!O:O,'Data SBP Programs'!S:S)","v":"Juvenile Case Manager"}]
[{"$f":"'Data SBP Measures'!$AI664&\" - \"&'Data SBP Measures'!$U664","v":"Leadership Recruitment & Appointment - 110"},{"$f":"'Data SBP Measures'!$AF664","v":"Number of Court appointments facilitated"},{"$f":"'Data SBP Measures'!$T664","v":"1712"},{"$f":"'Data SBP Measures'!$U664&B2404","v":"110Number of Court appointments facilitated"},{"$f":"'Data SBP Measures'!$Y664","v":"EACH"},null,null,null,null,null,"Leadership Recruitment & Appointment - 110","Number of Court appointments facilitated",null,null,null,null,null,null,null,"297","108","Y","19","Voter Registration Division","EACH","OUTPUT","NEITHER",null,null,null,"Voter Registration Division","Problem Address and Other Data Entry",null,{"$f":"'Data SBP Measures'!$AF2404&'Data SBP Measures'!$AE2404& \" - \"& 'Data SBP Measures'!$U2404","v":"Problem Address and Other Data EntryVoter Registration Division - 108"},{"$f":"_xlfn.XLOOKUP(VALUE(W2404),'Data SBP Programs'!O:O,'Data SBP Programs'!S:S)","v":"Voter Registration Division"}]
[{"$f":"'Data SBP Measures'!$AI401&\" - \"&'Data SBP Measures'!$U401","v":"Life Safety - 137"},{"$f":"'Data SBP Measures'!$AF401","v":"Jail Standards Certification Yes/No (1 = Y, 0=N)"},{"$f":"'Data SBP Measures'!$T401","v":"1435"},{"$f":"'Data SBP Measures'!$U401&B2406","v":"137Jail Standards Certification Yes/No (1 = Y, 0=N)"},{"$f":"'Data SBP Measures'!$Y401","v":"EACH"},null,null,null,null,null,"Life Safety - 137","Jail Standards Certification Yes/No (1 = Y, 0=N)",null,null,null,null,null,null,null,"2974","129","Y","238","Juvenile Case Manager","EACH","OUTPUT","BLACKBOOK",null,null,null,"Juvenile Case Manager","Truant Conduct Showcause (Remedial) Hearings:",null,{"$f":"'Data SBP Measures'!$AF2406&'Data SBP Measures'!$AE2406& \" - \"& 'Data SBP Measures'!$U2406","v":"Truant Conduct Showcause (Remedial) Hearings:Juvenile Case Manager - 129"},{"$f":"_xlfn.XLOOKUP(VALUE(W2406),'Data SBP Programs'!O:O,'Data SBP Programs'!S:S)","v":"Juvenile Case Manager"}]
[{"$f":"'Data SBP Measures'!$AI403&\" - \"&'Data SBP Measures'!$U403","v":"Maintenance - 137"},{"$f":"'Data SBP Measures'!$AF403","v":"Hours spent on work orders"},{"$f":"'Data SBP Measures'!$T403","v":"1437"},{"$f":"'Data SBP Measures'!$U403&B2409","v":"137Hours spent on work orders"},{"$f":"'Data SBP Measures'!$Y403","v":"HOURS"},null,null,null,null,null,"Maintenance - 137","Hours spent on work orders",null,null,null,null,null,null,null,"2981","129","Y","238","Juvenile Case Manager","EACH","OUTPUT","BLACKBOOK",null,null,null,"Juvenile Case Manager","PCNA Showcause (Remedial) Hearings:",null,{"$f":"'Data SBP Measures'!$AF2409&'Data SBP Measures'!$AE2409& \" - \"& 'Data SBP Measures'!$U2409","v":"PCNA Showcause (Remedial) Hearings:Juvenile Case Manager - 129"},{"$f":"_xlfn.XLOOKUP(VALUE(W2409),'Data SBP Programs'!O:O,'Data SBP Programs'!S:S)","v":"Juvenile Case Manager"}]
[{"$f":"'Data SBP Measures'!$AI2513&\" - \"&'Data SBP Measures'!$U2513","v":"Maintenance - 137"},{"$f":"'Data SBP Measures'!$AF2513","v":"Hours spent on work orders (inmate)"},{"$f":"'Data SBP Measures'!$T2513","v":"3168"},{"$f":"'Data SBP Measures'!$U2513&B2410","v":"137Hours spent on work orders (inmate)"},{"$f":"'Data SBP Measures'!$Y2513","v":"HOURS"},null,null,null,null,null,"Maintenance - 137","Hours spent on work orders (inmate)",null,null,null,null,null,null,null,"2988","129","Y","238","Juvenile Case Manager","EACH","OUTPUT","BLACKBOOK",null,null,null,"Juvenile Case Manager","Juvenile Showcause (Remedial) Hearings:",null,{"$f":"'Data SBP Measures'!$AF2410&'Data SBP Measures'!$AE2410& \" - \"& 'Data SBP Measures'!$U2410","v":"Juvenile Showcause (Remedial) Hearings:Juvenile Case Manager - 129"},{"$f":"_xlfn.XLOOKUP(VALUE(W2410),'Data SBP Programs'!O:O,'Data SBP Programs'!S:S)","v":"Juvenile Case Manager"}]
[{"$f":"'Data SBP Measures'!$AI404&\" - \"&'Data SBP Measures'!$U404","v":"Maintenance - 137"},{"$f":"'Data SBP Measures'!$AF404","v":"No. of work orders received"},{"$f":"'Data SBP Measures'!$T404","v":"1438"},{"$f":"'Data SBP Measures'!$U404&B2414","v":"137No. of work orders received"},{"$f":"'Data SBP Measures'!$Y404","v":"EACH"},null,null,null,null,null,"Maintenance - 137","No. of work orders received",null,null,null,null,null,null,null,"2998","129","Y","238","Juvenile Case Manager","EACH","OUTCOME","BLACKBOOK",null,null,null,"Juvenile Case Manager","Dispositions-Truant Conduct Contempt",null,{"$f":"'Data SBP Measures'!$AF2414&'Data SBP Measures'!$AE2414& \" - \"& 'Data SBP Measures'!$U2414","v":"Dispositions-Truant Conduct ContemptJuvenile Case Manager - 129"},{"$f":"_xlfn.XLOOKUP(VALUE(W2414),'Data SBP Programs'!O:O,'Data SBP Programs'!S:S)","v":"Juvenile Case Manager"}]
[{"$f":"'Data SBP Measures'!$AI3525&\" - \"&'Data SBP Measures'!$U3525","v":"Maintenance & Operations - 114"},{"$f":"'Data SBP Measures'!$AF3525","v":"% “Emergency Calls” closed with in 48 hours"},{"$f":"'Data SBP Measures'!$T3525","v":"850"},{"$f":"'Data SBP Measures'!$U3525&B2415","v":"114% “Emergency Calls” closed with in 48 hours"},{"$f":"'Data SBP Measures'!$Y3525","v":"PERCENT"},null,null,null,null,null,"Maintenance & Operations - 114","% “Emergency Calls” closed with in 48 hours",null,null,null,null,null,null,null,"3","106","Y","178","Auditor's Office","PERCENT","OUTCOME","ADOPTEDBUD",null,null,null,"Auditor's Office","Receive Certificate of Excellence (GFOA) designation",null,{"$f":"'Data SBP Measures'!$AF2415&'Data SBP Measures'!$AE2415& \" - \"& 'Data SBP Measures'!$U2415","v":"Receive Certificate of Excellence (GFOA) designationAuditor's Office - 106"},{"$f":"_xlfn.XLOOKUP(VALUE(W2415),'Data SBP Programs'!O:O,'Data SBP Programs'!S:S)","v":"Auditor's Office"}]
[{"$f":"'Data SBP Measures'!$AI3527&\" - \"&'Data SBP Measures'!$U3527","v":"Maintenance & Operations - 114"},{"$f":"'Data SBP Measures'!$AF3527","v":"% of “Routine” calls closed within a month"},{"$f":"'Data SBP Measures'!$T3527","v":"852"},{"$f":"'Data SBP Measures'!$U3527&B2417","v":"114% of “Routine” calls closed within a month"},{"$f":"'Data SBP Measures'!$Y3527","v":"PERCENT"},null,null,null,null,null,"Maintenance & Operations - 114","% of “Routine” calls closed within a month",null,null,null,null,null,null,null,"300","108","Y","19","Voter Registration Division","EACH","OUTPUT","ADOPTEDBUD",null,null,null,"Voter Registration Division","# Documents Scanned/Imaged",null,{"$f":"'Data SBP Measures'!$AF2417&'Data SBP Measures'!$AE2417& \" - \"& 'Data SBP Measures'!$U2417","v":"# Documents Scanned/ImagedVoter Registration Division - 108"},{"$f":"_xlfn.XLOOKUP(VALUE(W2417),'Data SBP Programs'!O:O,'Data SBP Programs'!S:S)","v":"Voter Registration Division"}]
[{"$f":"'Data SBP Measures'!$AI3528&\" - \"&'Data SBP Measures'!$U3528","v":"Maintenance & Operations - 114"},{"$f":"'Data SBP Measures'!$AF3528","v":"Average number of maintenance call in jobs per month"},{"$f":"'Data SBP Measures'!$T3528","v":"853"},{"$f":"'Data SBP Measures'!$U3528&B2420","v":"114Average number of maintenance call in jobs per month"},{"$f":"'Data SBP Measures'!$Y3528","v":"EACH"},null,null,null,null,null,"Maintenance & Operations - 114","Average number of maintenance call in jobs per month",null,null,null,null,null,null,null,"3009","129","Y","238","Juvenile Case Manager","PERCENT","EFFICIENCY","BLACKBOOK",null,null,null,"Juvenile Case Manager","% PCNA Compliance Rate (PCNA Deferral Compliance Dismissals divided by the # of new filings)",null,{"$f":"'Data SBP Measures'!$AF2420&'Data SBP Measures'!$AE2420& \" - \"& 'Data SBP Measures'!$U2420","v":"% PCNA Compliance Rate (PCNA Deferral Compliance Dismissals divided by the # of new filings)Juvenile Case Manager - 129"},{"$f":"_xlfn.XLOOKUP(VALUE(W2420),'Data SBP Programs'!O:O,'Data SBP Programs'!S:S)","v":"Juvenile Case Manager"}]
[{"$f":"'Data SBP Measures'!$AI411&\" - \"&'Data SBP Measures'!$U411","v":"Marketable Skills - 137"},{"$f":"'Data SBP Measures'!$AF411","v":"No. of participants (SWAP)"},{"$f":"'Data SBP Measures'!$T411","v":"1447"},{"$f":"'Data SBP Measures'!$U411&B2423","v":"137No. of participants (SWAP)"},{"$f":"'Data SBP Measures'!$Y411","v":"EACH"},null,null,null,null,null,"Marketable Skills - 137","No. of participants (SWAP)",null,null,null,null,null,null,null,"3010","129","Y","238","Juvenile Case Manager","PERCENT","EFFICIENCY","BLACKBOOK",null,null,null,"Juvenile Case Manager","% Juvenile Compliance Rate (Juvenile Compliance Dismissals divided by the # of new filings)",null,{"$f":"'Data SBP Measures'!$AF2423&'Data SBP Measures'!$AE2423& \" - \"& 'Data SBP Measures'!$U2423","v":"% Juvenile Compliance Rate (Juvenile Compliance Dismissals divided by the # of new filings)Juvenile Case Manager - 129"},{"$f":"_xlfn.XLOOKUP(VALUE(W2423),'Data SBP Programs'!O:O,'Data SBP Programs'!S:S)","v":"Juvenile Case Manager"}]
[{"$f":"'Data SBP Measures'!$AI1892&\" - \"&'Data SBP Measures'!$U1892","v":"Media Services - 110"},{"$f":"'Data SBP Measures'!$AF1892","v":"Administrative Tasks Staff Hours"},{"$f":"'Data SBP Measures'!$T1892","v":"2541"},{"$f":"'Data SBP Measures'!$U1892&B2425","v":"110Administrative Tasks Staff Hours"},{"$f":"'Data SBP Measures'!$Y1892","v":"HOURS"},null,null,null,null,null,"Media Services - 110","Administrative Tasks Staff Hours",null,null,null,null,null,null,null,"3011","129","Y","238","Juvenile Case Manager","PERCENT","EFFICIENCY","ADOPTEDBUD",null,null,null,"Juvenile Case Manager","% of Reenrollment Rate (Students reenrolled divided by students not enrolled at initial hearing)",null,{"$f":"'Data SBP Measures'!$AF2425&'Data SBP Measures'!$AE2425& \" - \"& 'Data SBP Measures'!$U2425","v":"% of Reenrollment Rate (Students reenrolled divided by students not enrolled at initial hearing)Juvenile Case Manager - 129"},{"$f":"_xlfn.XLOOKUP(VALUE(W2425),'Data SBP Programs'!O:O,'Data SBP Programs'!S:S)","v":"Juvenile Case Manager"}]
[{"$f":"'Data SBP Measures'!$AI1893&\" - \"&'Data SBP Measures'!$U1893","v":"Media Services - 110"},{"$f":"'Data SBP Measures'!$AF1893","v":"Equipment Checkouts"},{"$f":"'Data SBP Measures'!$T1893","v":"2542"},{"$f":"'Data SBP Measures'!$U1893&B2428","v":"110Equipment Checkouts"},{"$f":"'Data SBP Measures'!$Y1893","v":"EACH"},null,null,null,null,null,"Media Services - 110","Equipment Checkouts",null,null,null,null,null,null,null,"3013","114","Y","111","Custodial Operations","EACH","INPUT","ADOPTEDBUD",null,null,null,"Custodial Operations","Custodian work orders received",null,{"$f":"'Data SBP Measures'!$AF2428&'Data SBP Measures'!$AE2428& \" - \"& 'Data SBP Measures'!$U2428","v":"Custodian work orders receivedCustodial Operations - 114"},{"$f":"_xlfn.XLOOKUP(VALUE(W2428),'Data SBP Programs'!O:O,'Data SBP Programs'!S:S)","v":"Custodial Operations"}]
[{"$f":"'Data SBP Measures'!$AI2712&\" - \"&'Data SBP Measures'!$U2712","v":"Media Services - 110"},{"$f":"'Data SBP Measures'!$AF2712","v":"Equipment Checkouts Staff Hours\n"},{"$f":"'Data SBP Measures'!$T2712","v":"3327"},{"$f":"'Data SBP Measures'!$U2712&B2429","v":"110Equipment Checkouts Staff Hours\n"},{"$f":"'Data SBP Measures'!$Y2712","v":"HOURS"},null,null,null,null,null,"Media Services - 110","Equipment Checkouts Staff Hours\n",null,null,null,null,null,null,null,"3014","114","Y","111","Custodial Operations","EACH","INPUT","BLACKBOOK",null,null,null,"Custodial Operations","Move work orders received",null,{"$f":"'Data SBP Measures'!$AF2429&'Data SBP Measures'!$AE2429& \" - \"& 'Data SBP Measures'!$U2429","v":"Move work orders receivedCustodial Operations - 114"},{"$f":"_xlfn.XLOOKUP(VALUE(W2429),'Data SBP Programs'!O:O,'Data SBP Programs'!S:S)","v":"Custodial Operations"}]
[{"$f":"'Data SBP Measures'!$AI1889&\" - \"&'Data SBP Measures'!$U1889","v":"Media Services - 110"},{"$f":"'Data SBP Measures'!$AF1889","v":"Multifunction Room Video Productions"},{"$f":"'Data SBP Measures'!$T1889","v":"2539"},{"$f":"'Data SBP Measures'!$U1889&B2433","v":"110Multifunction Room Video Productions"},{"$f":"'Data SBP Measures'!$Y1889","v":"EACH"},null,null,null,null,null,"Media Services - 110","Multifunction Room Video Productions",null,null,null,null,null,null,null,"302","112","Y","28","Administration","EACH","OUTPUT","BLACKBOOK",null,null,null,"Administration","# of invoices paid with interest -TX Gov Code § 2251.021",null,{"$f":"'Data SBP Measures'!$AF2433&'Data SBP Measures'!$AE2433& \" - \"& 'Data SBP Measures'!$U2433","v":"# of invoices paid with interest -TX Gov Code § 2251.021Administration - 112"},{"$f":"_xlfn.XLOOKUP(VALUE(W2433),'Data SBP Programs'!O:O,'Data SBP Programs'!S:S)","v":"Administration"}]
[{"$f":"'Data SBP Measures'!$AI1887&\" - \"&'Data SBP Measures'!$U1887","v":"Media Services - 110"},{"$f":"'Data SBP Measures'!$AF1887","v":"Multifunction Rooms Support"},{"$f":"'Data SBP Measures'!$T1887","v":"2537"},{"$f":"'Data SBP Measures'!$U1887&B2434","v":"110Multifunction Rooms Support"},{"$f":"'Data SBP Measures'!$Y1887","v":"EACH"},null,null,null,null,null,"Media Services - 110","Multifunction Rooms Support",null,null,null,null,null,null,null,"3022","103","Y","188","County Commissioner Precinct Two","EACH","OUTPUT","ADOPTEDBUD",null,null,null,"County Commissioner Precinct Two","Number of transportation board and policy working group events",null,{"$f":"'Data SBP Measures'!$AF2434&'Data SBP Measures'!$AE2434& \" - \"& 'Data SBP Measures'!$U2434","v":"Number of transportation board and policy working group eventsCounty Commissioner Precinct Two - 103"},{"$f":"_xlfn.XLOOKUP(VALUE(W2434),'Data SBP Programs'!O:O,'Data SBP Programs'!S:S)","v":"County Commissioner Precinct Two"}]
[{"$f":"'Data SBP Measures'!$AI1884&\" - \"&'Data SBP Measures'!$U1884","v":"Media Services - 110"},{"$f":"'Data SBP Measures'!$AF1884","v":"New Video Programs Staff Hours"},{"$f":"'Data SBP Measures'!$T1884","v":"2534"},{"$f":"'Data SBP Measures'!$U1884&B2436","v":"110New Video Programs Staff Hours"},{"$f":"'Data SBP Measures'!$Y1884","v":"HOURS"},null,null,null,null,null,"Media Services - 110","New Video Programs Staff Hours",null,null,null,null,null,null,null,"303","112","Y","28","Administration","PERCENT","EFFICIENCY","ADOPTEDBUD",null,null,null,"Administration","% of computer devices replaced with no data loss",null,{"$f":"'Data SBP Measures'!$AF2436&'Data SBP Measures'!$AE2436& \" - \"& 'Data SBP Measures'!$U2436","v":"% of computer devices replaced with no data lossAdministration - 112"},{"$f":"_xlfn.XLOOKUP(VALUE(W2436),'Data SBP Programs'!O:O,'Data SBP Programs'!S:S)","v":"Administration"}]
[{"$f":"'Data SBP Measures'!$AI1885&\" - \"&'Data SBP Measures'!$U1885","v":"Media Services - 110"},{"$f":"'Data SBP Measures'!$AF1885","v":"Social Media Videos"},{"$f":"'Data SBP Measures'!$T1885","v":"2535"},{"$f":"'Data SBP Measures'!$U1885&B2439","v":"110Social Media Videos"},{"$f":"'Data SBP Measures'!$Y1885","v":"EACH"},null,null,null,null,null,"Media Services - 110","Social Media Videos",null,null,null,null,null,null,null,"3052","108","Y","17","Communications & Training","EACH","OUTPUT","ADOPTEDBUD",null,null,null,"Communications & Training","Total Ads",null,{"$f":"'Data SBP Measures'!$AF2439&'Data SBP Measures'!$AE2439& \" - \"& 'Data SBP Measures'!$U2439","v":"Total AdsCommunications & Training - 108"},{"$f":"_xlfn.XLOOKUP(VALUE(W2439),'Data SBP Programs'!O:O,'Data SBP Programs'!S:S)","v":"Communications & Training"}]
[{"$f":"'Data SBP Measures'!$AI419&\" - \"&'Data SBP Measures'!$U419","v":"Medical, Mental and Dental Services - 137"},{"$f":"'Data SBP Measures'!$AF419","v":"No. of contract versus staff hours"},{"$f":"'Data SBP Measures'!$T419","v":"1451"},{"$f":"'Data SBP Measures'!$U419&B2442","v":"137No. of contract versus staff hours"},{"$f":"'Data SBP Measures'!$Y419","v":"EACH"},null,null,null,null,null,"Medical, Mental and Dental Services - 137","No. of contract versus staff hours",null,null,null,null,null,null,null,"3055","108","Y","18","Accounting Department","EACH","INPUT","ADOPTEDBUD",null,null,null,"Accounting Department","# of ACH transactions (MV related)",null,{"$f":"'Data SBP Measures'!$AF2442&'Data SBP Measures'!$AE2442& \" - \"& 'Data SBP Measures'!$U2442","v":"# of ACH transactions (MV related)Accounting Department - 108"},{"$f":"_xlfn.XLOOKUP(VALUE(W2442),'Data SBP Programs'!O:O,'Data SBP Programs'!S:S)","v":"Accounting Department"}]
[{"$f":"'Data SBP Measures'!$AI421&\" - \"&'Data SBP Measures'!$U421","v":"Medical, Mental and Dental Services - 137"},{"$f":"'Data SBP Measures'!$AF421","v":"No. of contract versus staff hours"},{"$f":"'Data SBP Measures'!$T421","v":"1451"},{"$f":"'Data SBP Measures'!$U421&B2444","v":"137No. of contract versus staff hours"},{"$f":"'Data SBP Measures'!$Y421","v":"EACH"},null,null,null,null,null,"Medical, Mental and Dental Services - 137","No. of contract versus staff hours",null,null,null,null,null,null,null,"3057","108","Y","18","Accounting Department","EACH","OUTPUT","ADOPTEDBUD",null,null,null,"Accounting Department","# of deposits (Main Office, Satellite, FSD, PT)",null,{"$f":"'Data SBP Measures'!$AF2444&'Data SBP Measures'!$AE2444& \" - \"& 'Data SBP Measures'!$U2444","v":"# of deposits (Main Office, Satellite, FSD, PT)Accounting Department - 108"},{"$f":"_xlfn.XLOOKUP(VALUE(W2444),'Data SBP Programs'!O:O,'Data SBP Programs'!S:S)","v":"Accounting Department"}]
[{"$f":"'Data SBP Measures'!$AI424&\" - \"&'Data SBP Measures'!$U424","v":"Medical, Mental and Dental Services - 137"},{"$f":"'Data SBP Measures'!$AF424","v":"No. of contract versus staff hours"},{"$f":"'Data SBP Measures'!$T424","v":"1451"},{"$f":"'Data SBP Measures'!$U424&B2447","v":"137No. of contract versus staff hours"},{"$f":"'Data SBP Measures'!$Y424","v":"EACH"},null,null,null,null,null,"Medical, Mental and Dental Services - 137","No. of contract versus staff hours",null,null,null,null,null,null,null,"3077","128","Y","235","Juvenile Case Manager","EACH","OUTPUT","ADOPTEDBUD",null,null,null,"Juvenile Case Manager","Meetings JCM held with student or parent",null,{"$f":"'Data SBP Measures'!$AF2447&'Data SBP Measures'!$AE2447& \" - \"& 'Data SBP Measures'!$U2447","v":"Meetings JCM held with student or parentJuvenile Case Manager - 128"},{"$f":"_xlfn.XLOOKUP(VALUE(W2447),'Data SBP Programs'!O:O,'Data SBP Programs'!S:S)","v":"Juvenile Case Manager"}]
[{"$f":"'Data SBP Measures'!$AI431&\" - \"&'Data SBP Measures'!$U431","v":"Medical, Mental and Dental Services - 137"},{"$f":"'Data SBP Measures'!$AF431","v":"No. of individuals referred to Emergency Room on intake"},{"$f":"'Data SBP Measures'!$T431","v":"1453"},{"$f":"'Data SBP Measures'!$U431&B2448","v":"137No. of individuals referred to Emergency Room on intake"},{"$f":"'Data SBP Measures'!$Y431","v":"EACH"},null,null,null,null,null,"Medical, Mental and Dental Services - 137","No. of individuals referred to Emergency Room on intake",null,null,null,null,null,null,null,"3077","128","Y","235","Juvenile Case Manager","EACH","OUTPUT","ADOPTEDBUD",null,null,null,"Juvenile Case Manager","Meetings JCM held with student or parent",null,{"$f":"'Data SBP Measures'!$AF2448&'Data SBP Measures'!$AE2448& \" - \"& 'Data SBP Measures'!$U2448","v":"Meetings JCM held with student or parentJuvenile Case Manager - 128"},{"$f":"_xlfn.XLOOKUP(VALUE(W2448),'Data SBP Programs'!O:O,'Data SBP Programs'!S:S)","v":"Juvenile Case Manager"}]
[{"$f":"'Data SBP Measures'!$AI435&\" - \"&'Data SBP Measures'!$U435","v":"Medical, Mental and Dental Services - 137"},{"$f":"'Data SBP Measures'!$AF435","v":"No. of individuals referred to Emergency Room on intake"},{"$f":"'Data SBP Measures'!$T435","v":"1453"},{"$f":"'Data SBP Measures'!$U435&B2452","v":"137No. of individuals referred to Emergency Room on intake"},{"$f":"'Data SBP Measures'!$Y435","v":"EACH"},null,null,null,null,null,"Medical, Mental and Dental Services - 137","No. of individuals referred to Emergency Room on intake",null,null,null,null,null,null,null,"3091","132","Y","294","Telecommunications","EACH","INPUT","ADOPTEDBUD",null,null,null,"Telecommunications","Total Telecom Entries",null,{"$f":"'Data SBP Measures'!$AF2452&'Data SBP Measures'!$AE2452& \" - \"& 'Data SBP Measures'!$U2452","v":"Total Telecom EntriesTelecommunications - 132"},{"$f":"_xlfn.XLOOKUP(VALUE(W2452),'Data SBP Programs'!O:O,'Data SBP Programs'!S:S)","v":"Telecommunications"}]
[{"$f":"'Data SBP Measures'!$AI436&\" - \"&'Data SBP Measures'!$U436","v":"Medical, Mental and Dental Services - 137"},{"$f":"'Data SBP Measures'!$AF436","v":"No. of individuals referred to Emergency Room on intake"},{"$f":"'Data SBP Measures'!$T436","v":"1453"},{"$f":"'Data SBP Measures'!$U436&B2453","v":"137No. of individuals referred to Emergency Room on intake"},{"$f":"'Data SBP Measures'!$Y436","v":"EACH"},null,null,null,null,null,"Medical, Mental and Dental Services - 137","No. of individuals referred to Emergency Room on intake",null,null,null,null,null,null,null,"3096","108","Y","24","Property Tax Collections","EACH","INPUT","ADOPTEDBUD",null,null,null,"Property Tax Collections","# VIT Taxes Escrowed by Mass Post",null,{"$f":"'Data SBP Measures'!$AF2453&'Data SBP Measures'!$AE2453& \" - \"& 'Data SBP Measures'!$U2453","v":"# VIT Taxes Escrowed by Mass PostProperty Tax Collections - 108"},{"$f":"_xlfn.XLOOKUP(VALUE(W2453),'Data SBP Programs'!O:O,'Data SBP Programs'!S:S)","v":"Property Tax Collections"}]
[{"$f":"'Data SBP Measures'!$AI426&\" - \"&'Data SBP Measures'!$U426","v":"Medical, Mental and Dental Services - 137"},{"$f":"'Data SBP Measures'!$AF426","v":"No. of intake evaluations in CBF"},{"$f":"'Data SBP Measures'!$T426","v":"1452"},{"$f":"'Data SBP Measures'!$U426&B2455","v":"137No. of intake evaluations in CBF"},{"$f":"'Data SBP Measures'!$Y426","v":"EACH"},null,null,null,null,null,"Medical, Mental and Dental Services - 137","No. of intake evaluations in CBF",null,null,null,null,null,null,null,"3099","108","Y","24","Property Tax Collections","EACH","OUTPUT","ADOPTEDBUD",null,null,null,"Property Tax Collections","# Accts w/Overages Disbursed to Entities",null,{"$f":"'Data SBP Measures'!$AF2455&'Data SBP Measures'!$AE2455& \" - \"& 'Data SBP Measures'!$U2455","v":"# Accts w/Overages Disbursed to EntitiesProperty Tax Collections - 108"},{"$f":"_xlfn.XLOOKUP(VALUE(W2455),'Data SBP Programs'!O:O,'Data SBP Programs'!S:S)","v":"Property Tax Collections"}]
[{"$f":"'Data SBP Measures'!$AI429&\" - \"&'Data SBP Measures'!$U429","v":"Medical, Mental and Dental Services - 137"},{"$f":"'Data SBP Measures'!$AF429","v":"No. of intake evaluations in CBF"},{"$f":"'Data SBP Measures'!$T429","v":"1452"},{"$f":"'Data SBP Measures'!$U429&B2458","v":"137No. of intake evaluations in CBF"},{"$f":"'Data SBP Measures'!$Y429","v":"EACH"},null,null,null,null,null,"Medical, Mental and Dental Services - 137","No. of intake evaluations in CBF",null,null,null,null,null,null,null,"3101","108","Y","24","Property Tax Collections","EACH","OUTPUT","ADOPTEDBUD",null,null,null,"Property Tax Collections","# Letters Sent to Dealers",null,{"$f":"'Data SBP Measures'!$AF2458&'Data SBP Measures'!$AE2458& \" - \"& 'Data SBP Measures'!$U2458","v":"# Letters Sent to DealersProperty Tax Collections - 108"},{"$f":"_xlfn.XLOOKUP(VALUE(W2458),'Data SBP Programs'!O:O,'Data SBP Programs'!S:S)","v":"Property Tax Collections"}]
[{"$f":"'Data SBP Measures'!$AI414&\" - \"&'Data SBP Measures'!$U414","v":"Medical, Mental and Dental Services - 137"},{"$f":"'Data SBP Measures'!$AF414","v":"No. of prescriptions filled"},{"$f":"'Data SBP Measures'!$T414","v":"1450"},{"$f":"'Data SBP Measures'!$U414&B2461","v":"137No. of prescriptions filled"},{"$f":"'Data SBP Measures'!$Y414","v":"EACH"},null,null,null,null,null,"Medical, Mental and Dental Services - 137","No. of prescriptions filled",null,null,null,null,null,null,null,"3104","108","Y","24","Property Tax Collections","DOLLARS","OUTCOME","ADOPTEDBUD",null,null,null,"Property Tax Collections","Late Fees Collected",null,{"$f":"'Data SBP Measures'!$AF2461&'Data SBP Measures'!$AE2461& \" - \"& 'Data SBP Measures'!$U2461","v":"Late Fees CollectedProperty Tax Collections - 108"},{"$f":"_xlfn.XLOOKUP(VALUE(W2461),'Data SBP Programs'!O:O,'Data SBP Programs'!S:S)","v":"Property Tax Collections"}]
[{"$f":"'Data SBP Measures'!$AI416&\" - \"&'Data SBP Measures'!$U416","v":"Medical, Mental and Dental Services - 137"},{"$f":"'Data SBP Measures'!$AF416","v":"No. of prescriptions filled"},{"$f":"'Data SBP Measures'!$T416","v":"1450"},{"$f":"'Data SBP Measures'!$U416&B2463","v":"137No. of prescriptions filled"},{"$f":"'Data SBP Measures'!$Y416","v":"EACH"},null,null,null,null,null,"Medical, Mental and Dental Services - 137","No. of prescriptions filled",null,null,null,null,null,null,null,"3107","108","Y","24","Property Tax Collections","PERCENT","EFFICIENCY","ADOPTEDBUD",null,null,null,"Property Tax Collections","% Uncompliant Dealers",null,{"$f":"'Data SBP Measures'!$AF2463&'Data SBP Measures'!$AE2463& \" - \"& 'Data SBP Measures'!$U2463","v":"% Uncompliant DealersProperty Tax Collections - 108"},{"$f":"_xlfn.XLOOKUP(VALUE(W2463),'Data SBP Programs'!O:O,'Data SBP Programs'!S:S)","v":"Property Tax Collections"}]
[{"$f":"'Data SBP Measures'!$AI808&\" - \"&'Data SBP Measures'!$U808","v":"Mental Health - 125"},{"$f":"'Data SBP Measures'!$AF808","v":"% of cases when case disposed w/in time required by statute (30 days, to include any continuance)"},{"$f":"'Data SBP Measures'!$T808","v":"1888"},{"$f":"'Data SBP Measures'!$U808&B2466","v":"125% of cases when case disposed w/in time required by statute (30 days, to include any continuance)"},{"$f":"'Data SBP Measures'!$Y808","v":"PERCENT"},null,null,null,null,null,"Mental Health - 125","% of cases when case disposed w/in time required by statute (30 days, to include any continuance)",null,null,null,null,null,null,null,"3111","137","Y","58","Chaplain","EACH","INPUT","ADOPTEDBUD",null,null,null,"Chaplain","No. of inmate request to Chaplain Services",null,{"$f":"'Data SBP Measures'!$AF2466&'Data SBP Measures'!$AE2466& \" - \"& 'Data SBP Measures'!$U2466","v":"No. of inmate request to Chaplain ServicesChaplain - 137"},{"$f":"_xlfn.XLOOKUP(VALUE(W2466),'Data SBP Programs'!O:O,'Data SBP Programs'!S:S)","v":"Chaplain"}]
[{"$f":"'Data SBP Measures'!$AI809&\" - \"&'Data SBP Measures'!$U809","v":"Mental Health - 125"},{"$f":"'Data SBP Measures'!$AF809","v":"% of cases when case disposed w/in time required by statute (30 days, to include any continuance)"},{"$f":"'Data SBP Measures'!$T809","v":"1888"},{"$f":"'Data SBP Measures'!$U809&B2467","v":"125% of cases when case disposed w/in time required by statute (30 days, to include any continuance)"},{"$f":"'Data SBP Measures'!$Y809","v":"PERCENT"},null,null,null,null,null,"Mental Health - 125","% of cases when case disposed w/in time required by statute (30 days, to include any continuance)",null,null,null,null,null,null,null,"3112","137","Y","58","Chaplain","EACH","OUTPUT","ADOPTEDBUD",null,null,null,"Chaplain","No. of One on One Visits",null,{"$f":"'Data SBP Measures'!$AF2467&'Data SBP Measures'!$AE2467& \" - \"& 'Data SBP Measures'!$U2467","v":"No. of One on One VisitsChaplain - 137"},{"$f":"_xlfn.XLOOKUP(VALUE(W2467),'Data SBP Programs'!O:O,'Data SBP Programs'!S:S)","v":"Chaplain"}]
[{"$f":"'Data SBP Measures'!$AI805&\" - \"&'Data SBP Measures'!$U805","v":"Mental Health - 125"},{"$f":"'Data SBP Measures'!$AF805","v":"% of cases when Judge evaluates OPC app by deadline"},{"$f":"'Data SBP Measures'!$T805","v":"1886"},{"$f":"'Data SBP Measures'!$U805&B2469","v":"125% of cases when Judge evaluates OPC app by deadline"},{"$f":"'Data SBP Measures'!$Y805","v":"PERCENT"},null,null,null,null,null,"Mental Health - 125","% of cases when Judge evaluates OPC app by deadline",null,null,null,null,null,null,null,"3114","137","Y","58","Chaplain","EACH","INPUT","ADOPTEDBUD",null,null,null,"Chaplain","No. of Books/magazines requested",null,{"$f":"'Data SBP Measures'!$AF2469&'Data SBP Measures'!$AE2469& \" - \"& 'Data SBP Measures'!$U2469","v":"No. of Books/magazines requestedChaplain - 137"},{"$f":"_xlfn.XLOOKUP(VALUE(W2469),'Data SBP Programs'!O:O,'Data SBP Programs'!S:S)","v":"Chaplain"}]
[{"$f":"'Data SBP Measures'!$AI798&\" - \"&'Data SBP Measures'!$U798","v":"Mental Health - 125"},{"$f":"'Data SBP Measures'!$AF798","v":"Applications filed for court-ordered MH services, except meds"},{"$f":"'Data SBP Measures'!$T798","v":"1881"},{"$f":"'Data SBP Measures'!$U798&B2472","v":"125Applications filed for court-ordered MH services, except meds"},{"$f":"'Data SBP Measures'!$Y798","v":"EACH"},null,null,null,null,null,"Mental Health - 125","Applications filed for court-ordered MH services, except meds",null,null,null,null,null,null,null,"3117","137","Y","81","Human Resources - Recruiting","EACH","INPUT","ADOPTEDBUD",null,null,null,"Human Resources - Recruiting","No. Event Hours",null,{"$f":"'Data SBP Measures'!$AF2472&'Data SBP Measures'!$AE2472& \" - \"& 'Data SBP Measures'!$U2472","v":"No. Event HoursHuman Resources - Recruiting - 137"},{"$f":"_xlfn.XLOOKUP(VALUE(W2472),'Data SBP Programs'!O:O,'Data SBP Programs'!S:S)","v":"Human Resources - Recruiting"}]
[{"$f":"'Data SBP Measures'!$AI802&\" - \"&'Data SBP Measures'!$U802","v":"Mental Health - 125"},{"$f":"'Data SBP Measures'!$AF802","v":"Probable cause hearings held"},{"$f":"'Data SBP Measures'!$T802","v":"1883"},{"$f":"'Data SBP Measures'!$U802&B2474","v":"125Probable cause hearings held"},{"$f":"'Data SBP Measures'!$Y802","v":"EACH"},null,null,null,null,null,"Mental Health - 125","Probable cause hearings held",null,null,null,null,null,null,null,"3119","137","Y","81","Human Resources - Recruiting","EACH","INPUT","ADOPTEDBUD",null,null,null,"Human Resources - Recruiting","No. of volunteer hours",null,{"$f":"'Data SBP Measures'!$AF2474&'Data SBP Measures'!$AE2474& \" - \"& 'Data SBP Measures'!$U2474","v":"No. of volunteer hoursHuman Resources - Recruiting - 137"},{"$f":"_xlfn.XLOOKUP(VALUE(W2474),'Data SBP Programs'!O:O,'Data SBP Programs'!S:S)","v":"Human Resources - Recruiting"}]
[{"$f":"'Data SBP Measures'!$AI801&\" - \"&'Data SBP Measures'!$U801","v":"Mental Health - 125"},{"$f":"'Data SBP Measures'!$AF801","v":"Psychoactive medication applications filed, civil & criminal"},{"$f":"'Data SBP Measures'!$T801","v":"1882"},{"$f":"'Data SBP Measures'!$U801&B2477","v":"125Psychoactive medication applications filed, civil & criminal"},{"$f":"'Data SBP Measures'!$Y801","v":"EACH"},null,null,null,null,null,"Mental Health - 125","Psychoactive medication applications filed, civil & criminal",null,null,null,null,null,null,null,"3121","137","Y","81","Human Resources - Recruiting","EACH","INPUT","ADOPTEDBUD",null,null,null,"Human Resources - Recruiting","No. of applicants Physical Readiness",null,{"$f":"'Data SBP Measures'!$AF2477&'Data SBP Measures'!$AE2477& \" - \"& 'Data SBP Measures'!$U2477","v":"No. of applicants Physical ReadinessHuman Resources - Recruiting - 137"},{"$f":"_xlfn.XLOOKUP(VALUE(W2477),'Data SBP Programs'!O:O,'Data SBP Programs'!S:S)","v":"Human Resources - Recruiting"}]
[{"$f":"'Data SBP Measures'!$AI2333&\" - \"&'Data SBP Measures'!$U2333","v":"Mental Health Public Defender - 155"},{"$f":"'Data SBP Measures'!$AF2333","v":"% MHPD represented SJF & F3 cause #'s resolved without conviction (measure 2893/2892 or 3337)"},{"$f":"'Data SBP Measures'!$T2333","v":"2894"},{"$f":"'Data SBP Measures'!$U2333&B2480","v":"155% MHPD represented SJF & F3 cause #'s resolved without conviction (measure 2893/2892 or 3337)"},{"$f":"'Data SBP Measures'!$Y2333","v":"PERCENT"},null,null,null,null,null,"Mental Health Public Defender - 155","% MHPD represented SJF & F3 cause #'s resolved without conviction (measure 2893/2892 or 3337)",null,null,null,null,null,null,null,"3123","137","Y","67","Courthouse Security","EACH","INPUT","ADOPTEDBUD",null,null,null,"Courthouse Security","No. of Total Arrests",null,{"$f":"'Data SBP Measures'!$AF2480&'Data SBP Measures'!$AE2480& \" - \"& 'Data SBP Measures'!$U2480","v":"No. of Total ArrestsCourthouse Security - 137"},{"$f":"_xlfn.XLOOKUP(VALUE(W2480),'Data SBP Programs'!O:O,'Data SBP Programs'!S:S)","v":"Courthouse Security"}]
[{"$f":"'Data SBP Measures'!$AI2327&\" - \"&'Data SBP Measures'!$U2327","v":"Mental Health Public Defender - 155"},{"$f":"'Data SBP Measures'!$AF2327","v":"% of new MH SJF & F3 cause #'s appointed to MHPD (measure 2886/measure 2884)"},{"$f":"'Data SBP Measures'!$T2327","v":"2888"},{"$f":"'Data SBP Measures'!$U2327&B2482","v":"155% of new MH SJF & F3 cause #'s appointed to MHPD (measure 2886/measure 2884)"},{"$f":"'Data SBP Measures'!$Y2327","v":"PERCENT"},null,null,null,null,null,"Mental Health Public Defender - 155","% of new MH SJF & F3 cause #'s appointed to MHPD (measure 2886/measure 2884)",null,null,null,null,null,null,null,"3124","137","Y","67","Courthouse Security","EACH","INPUT","ADOPTEDBUD",null,null,null,"Courthouse Security","No. of Other Incidents",null,{"$f":"'Data SBP Measures'!$AF2482&'Data SBP Measures'!$AE2482& \" - \"& 'Data SBP Measures'!$U2482","v":"No. of Other IncidentsCourthouse Security - 137"},{"$f":"_xlfn.XLOOKUP(VALUE(W2482),'Data SBP Programs'!O:O,'Data SBP Programs'!S:S)","v":"Courthouse Security"}]
[{"$f":"'Data SBP Measures'!$AI2736&\" - \"&'Data SBP Measures'!$U2736","v":"Mental Health Public Defender - 155"},{"$f":"'Data SBP Measures'!$AF2736","v":"MHPD misdemeanor cause #'s disposed (new measure as of 2023)"},{"$f":"'Data SBP Measures'!$T2736","v":"3336"},{"$f":"'Data SBP Measures'!$U2736&B2485","v":"155MHPD misdemeanor cause #'s disposed (new measure as of 2023)"},{"$f":"'Data SBP Measures'!$Y2736","v":"EACH"},null,null,null,null,null,"Mental Health Public Defender - 155","MHPD misdemeanor cause #'s disposed (new measure as of 2023)",null,null,null,null,null,null,null,"3138","137","Y","70","Crisis Intervention Team","EACH","INPUT","ADOPTEDBUD",null,null,null,"Crisis Intervention Team","No. of Order of Protective Custody (OPC)",null,{"$f":"'Data SBP Measures'!$AF2485&'Data SBP Measures'!$AE2485& \" - \"& 'Data SBP Measures'!$U2485","v":"No. of Order of Protective Custody (OPC)Crisis Intervention Team - 137"},{"$f":"_xlfn.XLOOKUP(VALUE(W2485),'Data SBP Programs'!O:O,'Data SBP Programs'!S:S)","v":"Crisis Intervention Team"}]
[{"$f":"'Data SBP Measures'!$AI2332&\" - \"&'Data SBP Measures'!$U2332","v":"Mental Health Public Defender - 155"},{"$f":"'Data SBP Measures'!$AF2332","v":"MHPD represented SJF & F3 cause #'s resolved without conviction"},{"$f":"'Data SBP Measures'!$T2332","v":"2893"},{"$f":"'Data SBP Measures'!$U2332&B2488","v":"155MHPD represented SJF & F3 cause #'s resolved without conviction"},{"$f":"'Data SBP Measures'!$Y2332","v":"EACH"},null,null,null,null,null,"Mental Health Public Defender - 155","MHPD represented SJF & F3 cause #'s resolved without conviction",null,null,null,null,null,null,null,"3141","137","Y","70","Crisis Intervention Team","EACH","INPUT","ADOPTEDBUD",null,null,null,"Crisis Intervention Team","No. of incident numbers",null,{"$f":"'Data SBP Measures'!$AF2488&'Data SBP Measures'!$AE2488& \" - \"& 'Data SBP Measures'!$U2488","v":"No. of incident numbersCrisis Intervention Team - 137"},{"$f":"_xlfn.XLOOKUP(VALUE(W2488),'Data SBP Programs'!O:O,'Data SBP Programs'!S:S)","v":"Crisis Intervention Team"}]
[{"$f":"'Data SBP Measures'!$AI205&\" - \"&'Data SBP Measures'!$U205","v":"Mental Health Public Defender - 155"},{"$f":"'Data SBP Measures'!$AF205","v":"Misdemeanor Cause #'s MH appointed (MHPD, CAPDS & PDO)"},{"$f":"'Data SBP Measures'!$T205","v":"1255"},{"$f":"'Data SBP Measures'!$U205&B2490","v":"155Misdemeanor Cause #'s MH appointed (MHPD, CAPDS & PDO)"},{"$f":"'Data SBP Measures'!$Y205","v":"EACH"},null,null,null,null,null,"Mental Health Public Defender - 155","Misdemeanor Cause #'s MH appointed (MHPD, CAPDS & PDO)",null,null,null,null,null,null,null,"3144","137","Y","64","Correctional Security","EACH","INPUT","ADOPTEDBUD",null,null,null,"Correctional Security","No. of ATWs",null,{"$f":"'Data SBP Measures'!$AF2490&'Data SBP Measures'!$AE2490& \" - \"& 'Data SBP Measures'!$U2490","v":"No. of ATWsCorrectional Security - 137"},{"$f":"_xlfn.XLOOKUP(VALUE(W2490),'Data SBP Programs'!O:O,'Data SBP Programs'!S:S)","v":"Correctional Security"}]
[{"$f":"'Data SBP Measures'!$AI206&\" - \"&'Data SBP Measures'!$U206","v":"Mental Health Public Defender - 155"},{"$f":"'Data SBP Measures'!$AF206","v":"Misdemeanor cause #'s w/ incompetent to stand trial finding (MHPD, CAPDS & PDO)"},{"$f":"'Data SBP Measures'!$T206","v":"1256"},{"$f":"'Data SBP Measures'!$U206&B2491","v":"155Misdemeanor cause #'s w/ incompetent to stand trial finding (MHPD, CAPDS & PDO)"},{"$f":"'Data SBP Measures'!$Y206","v":"EACH"},null,null,null,null,null,"Mental Health Public Defender - 155","Misdemeanor cause #'s w/ incompetent to stand trial finding (MHPD, CAPDS & PDO)",null,null,null,null,null,null,null,"3144","137","Y","64","Correctional Security","EACH","INPUT","ADOPTEDBUD",null,null,null,"Correctional Security","No. of ATWs",null,{"$f":"'Data SBP Measures'!$AF2491&'Data SBP Measures'!$AE2491& \" - \"& 'Data SBP Measures'!$U2491","v":"No. of ATWsCorrectional Security - 137"},{"$f":"_xlfn.XLOOKUP(VALUE(W2491),'Data SBP Programs'!O:O,'Data SBP Programs'!S:S)","v":"Correctional Security"}]
[{"$f":"'Data SBP Measures'!$AI213&\" - \"&'Data SBP Measures'!$U213","v":"Mental Health Public Defender - 155"},{"$f":"'Data SBP Measures'!$AF213","v":"Number of criminal justice professionals/attorneys trained"},{"$f":"'Data SBP Measures'!$T213","v":"1264"},{"$f":"'Data SBP Measures'!$U213&B2493","v":"155Number of criminal justice professionals/attorneys trained"},{"$f":"'Data SBP Measures'!$Y213","v":"EACH"},null,null,null,null,null,"Mental Health Public Defender - 155","Number of criminal justice professionals/attorneys trained",null,null,null,null,null,null,null,"3145","137","Y","64","Correctional Security","EACH","INPUT","ADOPTEDBUD",null,null,null,"Correctional Security","No. of Emergency Responses",null,{"$f":"'Data SBP Measures'!$AF2493&'Data SBP Measures'!$AE2493& \" - \"& 'Data SBP Measures'!$U2493","v":"No. of Emergency ResponsesCorrectional Security - 137"},{"$f":"_xlfn.XLOOKUP(VALUE(W2493),'Data SBP Programs'!O:O,'Data SBP Programs'!S:S)","v":"Correctional Security"}]
[{"$f":"'Data SBP Measures'!$AI2328&\" - \"&'Data SBP Measures'!$U2328","v":"Mental Health Public Defender - 155"},{"$f":"'Data SBP Measures'!$AF2328","v":"SJF & F3 cause #'s w/ incompetent to stand trial finding (MHPD, CAPDS & PDO)"},{"$f":"'Data SBP Measures'!$T2328","v":"2889"},{"$f":"'Data SBP Measures'!$U2328&B2496","v":"155SJF & F3 cause #'s w/ incompetent to stand trial finding (MHPD, CAPDS & PDO)"},{"$f":"'Data SBP Measures'!$Y2328","v":"EACH"},null,null,null,null,null,"Mental Health Public Defender - 155","SJF & F3 cause #'s w/ incompetent to stand trial finding (MHPD, CAPDS & PDO)",null,null,null,null,null,null,null,"3146","137","Y","64","Correctional Security","EACH","INPUT","ADOPTEDBUD",null,null,null,"Correctional Security","No. of C-TAC transfers",null,{"$f":"'Data SBP Measures'!$AF2496&'Data SBP Measures'!$AE2496& \" - \"& 'Data SBP Measures'!$U2496","v":"No. of C-TAC transfersCorrectional Security - 137"},{"$f":"_xlfn.XLOOKUP(VALUE(W2496),'Data SBP Programs'!O:O,'Data SBP Programs'!S:S)","v":"Correctional Security"}]
[{"$f":"'Data SBP Measures'!$AI208&\" - \"&'Data SBP Measures'!$U208","v":"Mental Health Public Defender - 155"},{"$f":"'Data SBP Measures'!$AF208","v":"Total # of New Misdemeanor cause #'s appointed to MHPD during FY"},{"$f":"'Data SBP Measures'!$T208","v":"1258"},{"$f":"'Data SBP Measures'!$U208&B2499","v":"155Total # of New Misdemeanor cause #'s appointed to MHPD during FY"},{"$f":"'Data SBP Measures'!$Y208","v":"EACH"},null,null,null,null,null,"Mental Health Public Defender - 155","Total # of New Misdemeanor cause #'s appointed to MHPD during FY",null,null,null,null,null,null,null,"3147","137","Y","64","Correctional Security","EACH","INPUT","ADOPTEDBUD",null,null,null,"Correctional Security","No. of vehicle inspections",null,{"$f":"'Data SBP Measures'!$AF2499&'Data SBP Measures'!$AE2499& \" - \"& 'Data SBP Measures'!$U2499","v":"No. of vehicle inspectionsCorrectional Security - 137"},{"$f":"_xlfn.XLOOKUP(VALUE(W2499),'Data SBP Programs'!O:O,'Data SBP Programs'!S:S)","v":"Correctional Security"}]
[{"$f":"'Data SBP Measures'!$AI2323&\" - \"&'Data SBP Measures'!$U2323","v":"Mental Health Public Defender - 155"},{"$f":"'Data SBP Measures'!$AF2323","v":"Total SJF & F3 cause #'s MH appointed during FY (MHPD, CAPDS & PDO)"},{"$f":"'Data SBP Measures'!$T2323","v":"2884"},{"$f":"'Data SBP Measures'!$U2323&B2502","v":"155Total SJF & F3 cause #'s MH appointed during FY (MHPD, CAPDS & PDO)"},{"$f":"'Data SBP Measures'!$Y2323","v":"EACH"},null,null,null,null,null,"Mental Health Public Defender - 155","Total SJF & F3 cause #'s MH appointed during FY (MHPD, CAPDS & PDO)",null,null,null,null,null,null,null,"3148","137","Y","64","Correctional Security","EACH","INPUT","ADOPTEDBUD",null,null,null,"Correctional Security","No. of C-TAC deployments",null,{"$f":"'Data SBP Measures'!$AF2502&'Data SBP Measures'!$AE2502& \" - \"& 'Data SBP Measures'!$U2502","v":"No. of C-TAC deploymentsCorrectional Security - 137"},{"$f":"_xlfn.XLOOKUP(VALUE(W2502),'Data SBP Programs'!O:O,'Data SBP Programs'!S:S)","v":"Correctional Security"}]
[{"$f":"'Data SBP Measures'!$AI3154&\" - \"&'Data SBP Measures'!$U3154","v":"Misdemeanor Records Division - 120"},{"$f":"'Data SBP Measures'!$AF3154","v":"Bonds Scanned and Indexed"},{"$f":"'Data SBP Measures'!$T3154","v":"606"},{"$f":"'Data SBP Measures'!$U3154&B2504","v":"120Bonds Scanned and Indexed"},{"$f":"'Data SBP Measures'!$Y3154","v":"EACH"},null,null,null,null,null,"Misdemeanor Records Division - 120","Bonds Scanned and Indexed",null,null,null,null,null,null,null,"3148","137","Y","64","Correctional Security","EACH","INPUT","ADOPTEDBUD",null,null,null,"Correctional Security","No. of C-TAC deployments",null,{"$f":"'Data SBP Measures'!$AF2504&'Data SBP Measures'!$AE2504& \" - \"& 'Data SBP Measures'!$U2504","v":"No. of C-TAC deploymentsCorrectional Security - 137"},{"$f":"_xlfn.XLOOKUP(VALUE(W2504),'Data SBP Programs'!O:O,'Data SBP Programs'!S:S)","v":"Correctional Security"}]
[{"$f":"'Data SBP Measures'!$AI3146&\" - \"&'Data SBP Measures'!$U3146","v":"Misdemeanor Records Division - 120"},{"$f":"'Data SBP Measures'!$AF3146","v":"Cases Disposed with Charging Instruments"},{"$f":"'Data SBP Measures'!$T3146","v":"598"},{"$f":"'Data SBP Measures'!$U3146&B2507","v":"120Cases Disposed with Charging Instruments"},{"$f":"'Data SBP Measures'!$Y3146","v":"EACH"},null,null,null,null,null,"Misdemeanor Records Division - 120","Cases Disposed with Charging Instruments",null,null,null,null,null,null,null,"3151","137","Y","185","Facilities - Call Center / Mail Room / Laundry / Warehouse\n","DOLLARS","INPUT","ADOPTEDBUD",null,null,null,"Facilities - Call Center / Mail Room / Laundry / Warehouse\n","Labor cost savings",null,{"$f":"'Data SBP Measures'!$AF2507&'Data SBP Measures'!$AE2507& \" - \"& 'Data SBP Measures'!$U2507","v":"Labor cost savingsFacilities - Call Center / Mail Room / Laundry / Warehouse\n - 137"},{"$f":"_xlfn.XLOOKUP(VALUE(W2507),'Data SBP Programs'!O:O,'Data SBP Programs'!S:S)","v":"Facilities - Call Center / Mail Room / Laundry / Warehouse\n"}]
[{"$f":"'Data SBP Measures'!$AI3150&\" - \"&'Data SBP Measures'!$U3150","v":"Misdemeanor Records Division - 120"},{"$f":"'Data SBP Measures'!$AF3150","v":"Email Requests"},{"$f":"'Data SBP Measures'!$T3150","v":"602"},{"$f":"'Data SBP Measures'!$U3150&B2509","v":"120Email Requests"},{"$f":"'Data SBP Measures'!$Y3150","v":"EACH"},null,null,null,null,null,"Misdemeanor Records Division - 120","Email Requests",null,null,null,null,null,null,null,"3164","137","Y","86","Internal Affairs","EACH","INPUT","ADOPTEDBUD",null,null,null,"Internal Affairs","No. of Open Records completed",null,{"$f":"'Data SBP Measures'!$AF2509&'Data SBP Measures'!$AE2509& \" - \"& 'Data SBP Measures'!$U2509","v":"No. of Open Records completedInternal Affairs - 137"},{"$f":"_xlfn.XLOOKUP(VALUE(W2509),'Data SBP Programs'!O:O,'Data SBP Programs'!S:S)","v":"Internal Affairs"}]
[{"$f":"'Data SBP Measures'!$AI3158&\" - \"&'Data SBP Measures'!$U3158","v":"Misdemeanor Records Division - 120"},{"$f":"'Data SBP Measures'!$AF3158","v":"Expunctions Processed"},{"$f":"'Data SBP Measures'!$T3158","v":"615"},{"$f":"'Data SBP Measures'!$U3158&B2510","v":"120Expunctions Processed"},{"$f":"'Data SBP Measures'!$Y3158","v":"EACH"},null,null,null,null,null,"Misdemeanor Records Division - 120","Expunctions Processed",null,null,null,null,null,null,null,"3165","137","Y","86","Internal Affairs","EACH","INPUT","ADOPTEDBUD",null,null,null,"Internal Affairs","No of videos reviewed",null,{"$f":"'Data SBP Measures'!$AF2510&'Data SBP Measures'!$AE2510& \" - \"& 'Data SBP Measures'!$U2510","v":"No of videos reviewedInternal Affairs - 137"},{"$f":"_xlfn.XLOOKUP(VALUE(W2510),'Data SBP Programs'!O:O,'Data SBP Programs'!S:S)","v":"Internal Affairs"}]
[{"$f":"'Data SBP Measures'!$AI3151&\" - \"&'Data SBP Measures'!$U3151","v":"Misdemeanor Records Division - 120"},{"$f":"'Data SBP Measures'!$AF3151","v":"In-Person Customers"},{"$f":"'Data SBP Measures'!$T3151","v":"603"},{"$f":"'Data SBP Measures'!$U3151&B2512","v":"120In-Person Customers"},{"$f":"'Data SBP Measures'!$Y3151","v":"EACH"},null,null,null,null,null,"Misdemeanor Records Division - 120","In-Person Customers",null,null,null,null,null,null,null,"3167","137","Y","86","Internal Affairs","EACH","INPUT","ADOPTEDBUD",null,null,null,"Internal Affairs","No of audio files reviewed",null,{"$f":"'Data SBP Measures'!$AF2512&'Data SBP Measures'!$AE2512& \" - \"& 'Data SBP Measures'!$U2512","v":"No of audio files reviewedInternal Affairs - 137"},{"$f":"_xlfn.XLOOKUP(VALUE(W2512),'Data SBP Programs'!O:O,'Data SBP Programs'!S:S)","v":"Internal Affairs"}]
[{"$f":"'Data SBP Measures'!$AI3152&\" - \"&'Data SBP Measures'!$U3152","v":"Misdemeanor Records Division - 120"},{"$f":"'Data SBP Measures'!$AF3152","v":"Mail Requests"},{"$f":"'Data SBP Measures'!$T3152","v":"604"},{"$f":"'Data SBP Measures'!$U3152&B2515","v":"120Mail Requests"},{"$f":"'Data SBP Measures'!$Y3152","v":"EACH"},null,null,null,null,null,"Misdemeanor Records Division - 120","Mail Requests",null,null,null,null,null,null,null,"3170","137","Y","93","Maintenance","EACH","INPUT","ADOPTEDBUD",null,null,null,"Maintenance","No. of work orders completed",null,{"$f":"'Data SBP Measures'!$AF2515&'Data SBP Measures'!$AE2515& \" - \"& 'Data SBP Measures'!$U2515","v":"No. of work orders completedMaintenance - 137"},{"$f":"_xlfn.XLOOKUP(VALUE(W2515),'Data SBP Programs'!O:O,'Data SBP Programs'!S:S)","v":"Maintenance"}]
[{"$f":"'Data SBP Measures'!$AI3161&\" - \"&'Data SBP Measures'!$U3161","v":"Misdemeanor Records Division - 120"},{"$f":"'Data SBP Measures'!$AF3161","v":"Non-disclosures Processed"},{"$f":"'Data SBP Measures'!$T3161","v":"618"},{"$f":"'Data SBP Measures'!$U3161&B2518","v":"120Non-disclosures Processed"},{"$f":"'Data SBP Measures'!$Y3161","v":"EACH"},null,null,null,null,null,"Misdemeanor Records Division - 120","Non-disclosures Processed",null,null,null,null,null,null,null,"3185","137","Y","106","Special Weapons & Tactical Unit (SWAT)","EACH","INPUT","ADOPTEDBUD",null,null,null,"Special Weapons & Tactical Unit (SWAT)","No of Felony warrants assigned SWAT",null,{"$f":"'Data SBP Measures'!$AF2518&'Data SBP Measures'!$AE2518& \" - \"& 'Data SBP Measures'!$U2518","v":"No of Felony warrants assigned SWATSpecial Weapons & Tactical Unit (SWAT) - 137"},{"$f":"_xlfn.XLOOKUP(VALUE(W2518),'Data SBP Programs'!O:O,'Data SBP Programs'!S:S)","v":"Special Weapons & Tactical Unit (SWAT)"}]
[{"$f":"'Data SBP Measures'!$AI3157&\" - \"&'Data SBP Measures'!$U3157","v":"Misdemeanor Records Division - 120"},{"$f":"'Data SBP Measures'!$AF3157","v":"Signed Nisis"},{"$f":"'Data SBP Measures'!$T3157","v":"613"},{"$f":"'Data SBP Measures'!$U3157&B2521","v":"120Signed Nisis"},{"$f":"'Data SBP Measures'!$Y3157","v":"EACH"},null,null,null,null,null,"Misdemeanor Records Division - 120","Signed Nisis",null,null,null,null,null,null,null,"3188","137","Y","106","Special Weapons & Tactical Unit (SWAT)","EACH","INPUT","ADOPTEDBUD",null,null,null,"Special Weapons & Tactical Unit (SWAT)","No of Mids warrants assigned to Patrol/SRT",null,{"$f":"'Data SBP Measures'!$AF2521&'Data SBP Measures'!$AE2521& \" - \"& 'Data SBP Measures'!$U2521","v":"No of Mids warrants assigned to Patrol/SRTSpecial Weapons & Tactical Unit (SWAT) - 137"},{"$f":"_xlfn.XLOOKUP(VALUE(W2521),'Data SBP Programs'!O:O,'Data SBP Programs'!S:S)","v":"Special Weapons & Tactical Unit (SWAT)"}]
[{"$f":"'Data SBP Measures'!$AI560&\" - \"&'Data SBP Measures'!$U560","v":"Motor Vehicle - 108"},{"$f":"'Data SBP Measures'!$AF560","v":"Customers Rejected-sat office"},{"$f":"'Data SBP Measures'!$T560","v":"1617"},{"$f":"'Data SBP Measures'!$U560&B2523","v":"108Customers Rejected-sat office"},{"$f":"'Data SBP Measures'!$Y560","v":"EACH"},null,null,null,null,null,"Motor Vehicle - 108","Customers Rejected-sat office",null,null,null,null,null,null,null,"3190","137","Y","106","Special Weapons & Tactical Unit (SWAT)","EACH","OUTPUT","ADOPTEDBUD",null,null,null,"Special Weapons & Tactical Unit (SWAT)","No. of Felony warrants served (SWAT)",null,{"$f":"'Data SBP Measures'!$AF2523&'Data SBP Measures'!$AE2523& \" - \"& 'Data SBP Measures'!$U2523","v":"No. of Felony warrants served (SWAT)Special Weapons & Tactical Unit (SWAT) - 137"},{"$f":"_xlfn.XLOOKUP(VALUE(W2523),'Data SBP Programs'!O:O,'Data SBP Programs'!S:S)","v":"Special Weapons & Tactical Unit (SWAT)"}]
[{"$f":"'Data SBP Measures'!$AI559&\" - \"&'Data SBP Measures'!$U559","v":"Motor Vehicle - 108"},{"$f":"'Data SBP Measures'!$AF559","v":"Customers Served-sat office"},{"$f":"'Data SBP Measures'!$T559","v":"1616"},{"$f":"'Data SBP Measures'!$U559&B2526","v":"108Customers Served-sat office"},{"$f":"'Data SBP Measures'!$Y559","v":"EACH"},null,null,null,null,null,"Motor Vehicle - 108","Customers Served-sat office",null,null,null,null,null,null,null,"3193","108","Y","21","Information Technology Division","EACH","INPUT","ADOPTEDBUD",null,null,null,"Information Technology Division","# new technology projects",null,{"$f":"'Data SBP Measures'!$AF2526&'Data SBP Measures'!$AE2526& \" - \"& 'Data SBP Measures'!$U2526","v":"# new technology projectsInformation Technology Division - 108"},{"$f":"_xlfn.XLOOKUP(VALUE(W2526),'Data SBP Programs'!O:O,'Data SBP Programs'!S:S)","v":"Information Technology Division"}]
[{"$f":"'Data SBP Measures'!$AI555&\" - \"&'Data SBP Measures'!$U555","v":"Motor Vehicle - 108"},{"$f":"'Data SBP Measures'!$AF555","v":"Dealers/Fleets-main office"},{"$f":"'Data SBP Measures'!$T555","v":"1612"},{"$f":"'Data SBP Measures'!$U555&B2528","v":"108Dealers/Fleets-main office"},{"$f":"'Data SBP Measures'!$Y555","v":"EACH"},null,null,null,null,null,"Motor Vehicle - 108","Dealers/Fleets-main office",null,null,null,null,null,null,null,"3195","108","Y","21","Information Technology Division","PERCENT","OUTCOME","ADOPTEDBUD",null,null,null,"Information Technology Division","% Decrease of public data requests",null,{"$f":"'Data SBP Measures'!$AF2528&'Data SBP Measures'!$AE2528& \" - \"& 'Data SBP Measures'!$U2528","v":"% Decrease of public data requestsInformation Technology Division - 108"},{"$f":"_xlfn.XLOOKUP(VALUE(W2528),'Data SBP Programs'!O:O,'Data SBP Programs'!S:S)","v":"Information Technology Division"}]
[{"$f":"'Data SBP Measures'!$AI554&\" - \"&'Data SBP Measures'!$U554","v":"Motor Vehicle - 108"},{"$f":"'Data SBP Measures'!$AF554","v":"Electronic transactions-main office"},{"$f":"'Data SBP Measures'!$T554","v":"1611"},{"$f":"'Data SBP Measures'!$U554&B2529","v":"108Electronic transactions-main office"},{"$f":"'Data SBP Measures'!$Y554","v":"EACH"},null,null,null,null,null,"Motor Vehicle - 108","Electronic transactions-main office",null,null,null,null,null,null,null,"3196","111","Y","198","Risk Management Self Insurance Fund","EACH","OUTPUT","ADOPTEDBUD",null,null,null,"Risk Management Self Insurance Fund","# of insurance renewals reviewed annually\n",null,{"$f":"'Data SBP Measures'!$AF2529&'Data SBP Measures'!$AE2529& \" - \"& 'Data SBP Measures'!$U2529","v":"# of insurance renewals reviewed annually\nRisk Management Self Insurance Fund - 111"},{"$f":"_xlfn.XLOOKUP(VALUE(W2529),'Data SBP Programs'!O:O,'Data SBP Programs'!S:S)","v":"Risk Management Self Insurance Fund"}]
[{"$f":"'Data SBP Measures'!$AI561&\" - \"&'Data SBP Measures'!$U561","v":"Motor Vehicle - 108"},{"$f":"'Data SBP Measures'!$AF561","v":"In person Transactions-sat office"},{"$f":"'Data SBP Measures'!$T561","v":"1618"},{"$f":"'Data SBP Measures'!$U561&B2531","v":"108In person Transactions-sat office"},{"$f":"'Data SBP Measures'!$Y561","v":"EACH"},null,null,null,null,null,"Motor Vehicle - 108","In person Transactions-sat office",null,null,null,null,null,null,null,"3196","111","Y","198","Risk Management Self Insurance Fund","EACH","OUTPUT","ADOPTEDBUD",null,null,null,"Risk Management Self Insurance Fund","# of insurance renewals reviewed annually\n",null,{"$f":"'Data SBP Measures'!$AF2531&'Data SBP Measures'!$AE2531& \" - \"& 'Data SBP Measures'!$U2531","v":"# of insurance renewals reviewed annually\nRisk Management Self Insurance Fund - 111"},{"$f":"_xlfn.XLOOKUP(VALUE(W2531),'Data SBP Programs'!O:O,'Data SBP Programs'!S:S)","v":"Risk Management Self Insurance Fund"}]
[{"$f":"'Data SBP Measures'!$AI568&\" - \"&'Data SBP Measures'!$U568","v":"Motor Vehicle - 108"},{"$f":"'Data SBP Measures'!$AF568","v":"Registrations-title svc"},{"$f":"'Data SBP Measures'!$T568","v":"1626"},{"$f":"'Data SBP Measures'!$U568&B2534","v":"108Registrations-title svc"},{"$f":"'Data SBP Measures'!$Y568","v":"EACH"},null,null,null,null,null,"Motor Vehicle - 108","Registrations-title svc",null,null,null,null,null,null,null,"3197","111","Y","198","Risk Management Self Insurance Fund","EACH","OUTPUT","ADOPTEDBUD",null,null,null,"Risk Management Self Insurance Fund","# of RFPs completed annually",null,{"$f":"'Data SBP Measures'!$AF2534&'Data SBP Measures'!$AE2534& \" - \"& 'Data SBP Measures'!$U2534","v":"# of RFPs completed annuallyRisk Management Self Insurance Fund - 111"},{"$f":"_xlfn.XLOOKUP(VALUE(W2534),'Data SBP Programs'!O:O,'Data SBP Programs'!S:S)","v":"Risk Management Self Insurance Fund"}]
[{"$f":"'Data SBP Measures'!$AI567&\" - \"&'Data SBP Measures'!$U567","v":"Motor Vehicle - 108"},{"$f":"'Data SBP Measures'!$AF567","v":"Titles-title svc"},{"$f":"'Data SBP Measures'!$T567","v":"1625"},{"$f":"'Data SBP Measures'!$U567&B2537","v":"108Titles-title svc"},{"$f":"'Data SBP Measures'!$Y567","v":"EACH"},null,null,null,null,null,"Motor Vehicle - 108","Titles-title svc",null,null,null,null,null,null,null,"32","109","Y","10","Budget","PERCENT","EFFICIENCY","ADOPTEDBUD",null,null,null,"Budget","Percentage of PBO budget recommendations in Adopted Budget",null,{"$f":"'Data SBP Measures'!$AF2537&'Data SBP Measures'!$AE2537& \" - \"& 'Data SBP Measures'!$U2537","v":"Percentage of PBO budget recommendations in Adopted BudgetBudget - 109"},{"$f":"_xlfn.XLOOKUP(VALUE(W2537),'Data SBP Programs'!O:O,'Data SBP Programs'!S:S)","v":"Budget"}]
[{"$f":"'Data SBP Measures'!$AI569&\" - \"&'Data SBP Measures'!$U569","v":"Motor Vehicle - 108"},{"$f":"'Data SBP Measures'!$AF569","v":"Waiting Time-title svc"},{"$f":"'Data SBP Measures'!$T569","v":"1627"},{"$f":"'Data SBP Measures'!$U569&B2540","v":"108Waiting Time-title svc"},{"$f":"'Data SBP Measures'!$Y569","v":"MINUTES"},null,null,null,null,null,"Motor Vehicle - 108","Waiting Time-title svc",null,null,null,null,null,null,null,"3202","137","Y","98","VICE","EACH","OUTCOME","ADOPTEDBUD",null,null,null,"VICE","No. of vehicles (boats, jetskis, etc) seized",null,{"$f":"'Data SBP Measures'!$AF2540&'Data SBP Measures'!$AE2540& \" - \"& 'Data SBP Measures'!$U2540","v":"No. of vehicles (boats, jetskis, etc) seizedVICE - 137"},{"$f":"_xlfn.XLOOKUP(VALUE(W2540),'Data SBP Programs'!O:O,'Data SBP Programs'!S:S)","v":"VICE"}]
[{"$f":"'Data SBP Measures'!$AI2947&\" - \"&'Data SBP Measures'!$U2947","v":"Natural Resources Program - 149"},{"$f":"'Data SBP Measures'!$AF2947","v":"# plants or trees planted"},{"$f":"'Data SBP Measures'!$T2947","v":"3464"},{"$f":"'Data SBP Measures'!$U2947&B2542","v":"149# plants or trees planted"},{"$f":"'Data SBP Measures'!$Y2947","v":"EACH"},null,null,null,null,null,"Natural Resources Program - 149","# plants or trees planted",null,null,null,null,null,null,null,"3204","137","Y","98","VICE","DOLLARS","OUTCOME","ADOPTEDBUD",null,null,null,"VICE","Amount of money seized",null,{"$f":"'Data SBP Measures'!$AF2542&'Data SBP Measures'!$AE2542& \" - \"& 'Data SBP Measures'!$U2542","v":"Amount of money seizedVICE - 137"},{"$f":"_xlfn.XLOOKUP(VALUE(W2542),'Data SBP Programs'!O:O,'Data SBP Programs'!S:S)","v":"VICE"}]
[{"$f":"'Data SBP Measures'!$AI3617&\" - \"&'Data SBP Measures'!$U3617","v":"Natural Resources Program - 149"},{"$f":"'Data SBP Measures'!$AF3617","v":"Number of acres protected by CEs in the Conservation Easement Program (non parkland)"},{"$f":"'Data SBP Measures'!$T3617","v":"989"},{"$f":"'Data SBP Measures'!$U3617&B2545","v":"149Number of acres protected by CEs in the Conservation Easement Program (non parkland)"},{"$f":"'Data SBP Measures'!$Y3617","v":"ACRES"},null,null,null,null,null,"Natural Resources Program - 149","Number of acres protected by CEs in the Conservation Easement Program (non parkland)",null,null,null,null,null,null,null,"3207","158","Y","147","Family First","PERCENT","OUTCOME","ADOPTEDBUD",null,null,null,"Family First","Percentage of parents that successfully complete the Nurturing Parenting Program with a rating of Significant Accomplishment",null,{"$f":"'Data SBP Measures'!$AF2545&'Data SBP Measures'!$AE2545& \" - \"& 'Data SBP Measures'!$U2545","v":"Percentage of parents that successfully complete the Nurturing Parenting Program with a rating of Significant AccomplishmentFamily First - 158"},{"$f":"_xlfn.XLOOKUP(VALUE(W2545),'Data SBP Programs'!O:O,'Data SBP Programs'!S:S)","v":"Family First"}]
[{"$f":"'Data SBP Measures'!$AI3618&\" - \"&'Data SBP Measures'!$U3618","v":"Natural Resources Program - 149"},{"$f":"'Data SBP Measures'!$AF3618","v":"Number of conservation easements completed in the Conservation Easement Program (non parkland)"},{"$f":"'Data SBP Measures'!$T3618","v":"990"},{"$f":"'Data SBP Measures'!$U3618&B2547","v":"149Number of conservation easements completed in the Conservation Easement Program (non parkland)"},{"$f":"'Data SBP Measures'!$Y3618","v":"EACH"},null,null,null,null,null,"Natural Resources Program - 149","Number of conservation easements completed in the Conservation Easement Program (non parkland)",null,null,null,null,null,null,null,"3208","144","Y","305","Public Defender's Office","EACH","OUTPUT","BLACKBOOK",null,null,null,"Public Defender's Office","Number of in-house trainings/CLE programs",null,{"$f":"'Data SBP Measures'!$AF2547&'Data SBP Measures'!$AE2547& \" - \"& 'Data SBP Measures'!$U2547","v":"Number of in-house trainings/CLE programsPublic Defender's Office - 144"},{"$f":"_xlfn.XLOOKUP(VALUE(W2547),'Data SBP Programs'!O:O,'Data SBP Programs'!S:S)","v":"Public Defender's Office"}]
[{"$f":"'Data SBP Measures'!$AI3614&\" - \"&'Data SBP Measures'!$U3614","v":"Natural Resources Program - 149"},{"$f":"'Data SBP Measures'!$AF3614","v":"Number of education or outreach events held"},{"$f":"'Data SBP Measures'!$T3614","v":"985"},{"$f":"'Data SBP Measures'!$U3614&B2548","v":"149Number of education or outreach events held"},{"$f":"'Data SBP Measures'!$Y3614","v":"EACH"},null,null,null,null,null,"Natural Resources Program - 149","Number of education or outreach events held",null,null,null,null,null,null,null,"3208","144","Y","305","Public Defender's Office","EACH","OUTPUT","BLACKBOOK",null,null,null,"Public Defender's Office","Number of in-house trainings/CLE programs",null,{"$f":"'Data SBP Measures'!$AF2548&'Data SBP Measures'!$AE2548& \" - \"& 'Data SBP Measures'!$U2548","v":"Number of in-house trainings/CLE programsPublic Defender's Office - 144"},{"$f":"_xlfn.XLOOKUP(VALUE(W2548),'Data SBP Programs'!O:O,'Data SBP Programs'!S:S)","v":"Public Defender's Office"}]
[{"$f":"'Data SBP Measures'!$AI3616&\" - \"&'Data SBP Measures'!$U3616","v":"Natural Resources Program - 149"},{"$f":"'Data SBP Measures'!$AF3616","v":"Number of hours surveying karst features"},{"$f":"'Data SBP Measures'!$T3616","v":"988"},{"$f":"'Data SBP Measures'!$U3616&B2551","v":"149Number of hours surveying karst features"},{"$f":"'Data SBP Measures'!$Y3616","v":"HOURS"},null,null,null,null,null,"Natural Resources Program - 149","Number of hours surveying karst features",null,null,null,null,null,null,null,"3209","144","Y","305","Public Defender's Office","EACH","OUTPUT","BLACKBOOK",null,null,null,"Public Defender's Office","One or more community outreach/engagement actions per Fiscal Year",null,{"$f":"'Data SBP Measures'!$AF2551&'Data SBP Measures'!$AE2551& \" - \"& 'Data SBP Measures'!$U2551","v":"One or more community outreach/engagement actions per Fiscal YearPublic Defender's Office - 144"},{"$f":"_xlfn.XLOOKUP(VALUE(W2551),'Data SBP Programs'!O:O,'Data SBP Programs'!S:S)","v":"Public Defender's Office"}]
[{"$f":"'Data SBP Measures'!$AI3615&\" - \"&'Data SBP Measures'!$U3615","v":"Natural Resources Program - 149"},{"$f":"'Data SBP Measures'!$AF3615","v":"Number volunteer hours"},{"$f":"'Data SBP Measures'!$T3615","v":"986"},{"$f":"'Data SBP Measures'!$U3615&B2553","v":"149Number volunteer hours"},{"$f":"'Data SBP Measures'!$Y3615","v":"HOURS"},null,null,null,null,null,"Natural Resources Program - 149","Number volunteer hours",null,null,null,null,null,null,null,"3209","144","Y","305","Public Defender's Office","EACH","OUTPUT","BLACKBOOK",null,null,null,"Public Defender's Office","One or more community outreach/engagement actions per Fiscal Year",null,{"$f":"'Data SBP Measures'!$AF2553&'Data SBP Measures'!$AE2553& \" - \"& 'Data SBP Measures'!$U2553","v":"One or more community outreach/engagement actions per Fiscal YearPublic Defender's Office - 144"},{"$f":"_xlfn.XLOOKUP(VALUE(W2553),'Data SBP Programs'!O:O,'Data SBP Programs'!S:S)","v":"Public Defender's Office"}]
[{"$f":"'Data SBP Measures'!$AI110&\" - \"&'Data SBP Measures'!$U110","v":"Neighborhood Conference Committee (NCC) - 158"},{"$f":"'Data SBP Measures'!$AF110","v":"# of cases referred to NCC program from Juvenile Court"},{"$f":"'Data SBP Measures'!$T110","v":"1142"},{"$f":"'Data SBP Measures'!$U110&B2556","v":"158# of cases referred to NCC program from Juvenile Court"},{"$f":"'Data SBP Measures'!$Y110","v":"EACH"},null,null,null,null,null,"Neighborhood Conference Committee (NCC) - 158","# of cases referred to NCC program from Juvenile Court",null,null,null,null,null,null,null,"3210","144","Y","305","Public Defender's Office","EACH","OUTPUT","BLACKBOOK",null,null,null,"Public Defender's Office","New cause numbers represented by PDO",null,{"$f":"'Data SBP Measures'!$AF2556&'Data SBP Measures'!$AE2556& \" - \"& 'Data SBP Measures'!$U2556","v":"New cause numbers represented by PDOPublic Defender's Office - 144"},{"$f":"_xlfn.XLOOKUP(VALUE(W2556),'Data SBP Programs'!O:O,'Data SBP Programs'!S:S)","v":"Public Defender's Office"}]
[{"$f":"'Data SBP Measures'!$AI109&\" - \"&'Data SBP Measures'!$U109","v":"Neighborhood Conference Committee (NCC) - 158"},{"$f":"'Data SBP Measures'!$AF109","v":"% of juveniles reoffending within one year/recidivism"},{"$f":"'Data SBP Measures'!$T109","v":"1141"},{"$f":"'Data SBP Measures'!$U109&B2559","v":"158% of juveniles reoffending within one year/recidivism"},{"$f":"'Data SBP Measures'!$Y109","v":"PERCENT"},null,null,null,null,null,"Neighborhood Conference Committee (NCC) - 158","% of juveniles reoffending within one year/recidivism",null,null,null,null,null,null,null,"3211","144","Y","305","Public Defender's Office","PERCENT","OUTPUT","ADOPTEDBUD",null,null,null,"Public Defender's Office","Percent of all new cause numbers being represented by PDO by end of fiscal year",null,{"$f":"'Data SBP Measures'!$AF2559&'Data SBP Measures'!$AE2559& \" - \"& 'Data SBP Measures'!$U2559","v":"Percent of all new cause numbers being represented by PDO by end of fiscal yearPublic Defender's Office - 144"},{"$f":"_xlfn.XLOOKUP(VALUE(W2559),'Data SBP Programs'!O:O,'Data SBP Programs'!S:S)","v":"Public Defender's Office"}]
[{"$f":"'Data SBP Measures'!$AI221&\" - \"&'Data SBP Measures'!$U221","v":"Office of Child Representation - 155"},{"$f":"'Data SBP Measures'!$AF221","v":"# of trainings OCR took part/hosted re child welfare topics"},{"$f":"'Data SBP Measures'!$T221","v":"1273"},{"$f":"'Data SBP Measures'!$U221&B2561","v":"155# of trainings OCR took part/hosted re child welfare topics"},{"$f":"'Data SBP Measures'!$Y221","v":"EACH"},null,null,null,null,null,"Office of Child Representation - 155","# of trainings OCR took part/hosted re child welfare topics",null,null,null,null,null,null,null,"3211","144","Y","305","Public Defender's Office","PERCENT","OUTPUT","ADOPTEDBUD",null,null,null,"Public Defender's Office","Percent of all new cause numbers being represented by PDO by end of fiscal year",null,{"$f":"'Data SBP Measures'!$AF2561&'Data SBP Measures'!$AE2561& \" - \"& 'Data SBP Measures'!$U2561","v":"Percent of all new cause numbers being represented by PDO by end of fiscal yearPublic Defender's Office - 144"},{"$f":"_xlfn.XLOOKUP(VALUE(W2561),'Data SBP Programs'!O:O,'Data SBP Programs'!S:S)","v":"Public Defender's Office"}]
[{"$f":"'Data SBP Measures'!$AI223&\" - \"&'Data SBP Measures'!$U223","v":"Office of Child Representation - 155"},{"$f":"'Data SBP Measures'!$AF223","v":"Average # of OCR Social Workers with Full Caseload"},{"$f":"'Data SBP Measures'!$T223","v":"1275"},{"$f":"'Data SBP Measures'!$U223&B2564","v":"155Average # of OCR Social Workers with Full Caseload"},{"$f":"'Data SBP Measures'!$Y223","v":"EACH"},null,null,null,null,null,"Office of Child Representation - 155","Average # of OCR Social Workers with Full Caseload",null,null,null,null,null,null,null,"3212","144","Y","305","Public Defender's Office","PERCENT","OUTPUT","ADOPTEDBUD",null,null,null,"Public Defender's Office","Percent of new cause numbers represented by PDO granted personal bond",null,{"$f":"'Data SBP Measures'!$AF2564&'Data SBP Measures'!$AE2564& \" - \"& 'Data SBP Measures'!$U2564","v":"Percent of new cause numbers represented by PDO granted personal bondPublic Defender's Office - 144"},{"$f":"_xlfn.XLOOKUP(VALUE(W2564),'Data SBP Programs'!O:O,'Data SBP Programs'!S:S)","v":"Public Defender's Office"}]
[{"$f":"'Data SBP Measures'!$AI215&\" - \"&'Data SBP Measures'!$U215","v":"Office of Child Representation - 155"},{"$f":"'Data SBP Measures'!$AF215","v":"Number of clients served per fiscal year (new & continuing)"},{"$f":"'Data SBP Measures'!$T215","v":"1266"},{"$f":"'Data SBP Measures'!$U215&B2566","v":"155Number of clients served per fiscal year (new & continuing)"},{"$f":"'Data SBP Measures'!$Y215","v":"EACH"},null,null,null,null,null,"Office of Child Representation - 155","Number of clients served per fiscal year (new & continuing)",null,null,null,null,null,null,null,"3213","144","Y","305","Public Defender's Office","EACH","OUTPUT","BLACKBOOK",null,null,null,"Public Defender's Office","Total cause numbers disposed by PDO",null,{"$f":"'Data SBP Measures'!$AF2566&'Data SBP Measures'!$AE2566& \" - \"& 'Data SBP Measures'!$U2566","v":"Total cause numbers disposed by PDOPublic Defender's Office - 144"},{"$f":"_xlfn.XLOOKUP(VALUE(W2566),'Data SBP Programs'!O:O,'Data SBP Programs'!S:S)","v":"Public Defender's Office"}]
[{"$f":"'Data SBP Measures'!$AI219&\" - \"&'Data SBP Measures'!$U219","v":"Office of Child Representation - 155"},{"$f":"'Data SBP Measures'!$AF219","v":"Number of clients who received social work case management"},{"$f":"'Data SBP Measures'!$T219","v":"1270"},{"$f":"'Data SBP Measures'!$U219&B2567","v":"155Number of clients who received social work case management"},{"$f":"'Data SBP Measures'!$Y219","v":"EACH"},null,null,null,null,null,"Office of Child Representation - 155","Number of clients who received social work case management",null,null,null,null,null,null,null,"3213","144","Y","305","Public Defender's Office","EACH","OUTPUT","BLACKBOOK",null,null,null,"Public Defender's Office","Total cause numbers disposed by PDO",null,{"$f":"'Data SBP Measures'!$AF2567&'Data SBP Measures'!$AE2567& \" - \"& 'Data SBP Measures'!$U2567","v":"Total cause numbers disposed by PDOPublic Defender's Office - 144"},{"$f":"_xlfn.XLOOKUP(VALUE(W2567),'Data SBP Programs'!O:O,'Data SBP Programs'!S:S)","v":"Public Defender's Office"}]
[{"$f":"'Data SBP Measures'!$AI2197&\" - \"&'Data SBP Measures'!$U2197","v":"Office of Parent Representation - 155"},{"$f":"'Data SBP Measures'!$AF2197","v":"# of new cases assigned to OPR"},{"$f":"'Data SBP Measures'!$T2197","v":"2719"},{"$f":"'Data SBP Measures'!$U2197&B2570","v":"155# of new cases assigned to OPR"},{"$f":"'Data SBP Measures'!$Y2197","v":"EACH"},null,null,null,null,null,"Office of Parent Representation - 155","# of new cases assigned to OPR",null,null,null,null,null,null,null,"3214","144","Y","305","Public Defender's Office","DAYS","OUTPUT","BLACKBOOK",null,null,null,"Public Defender's Office","Average number of days clients are in jail prior to disposition for felonies",null,{"$f":"'Data SBP Measures'!$AF2570&'Data SBP Measures'!$AE2570& \" - \"& 'Data SBP Measures'!$U2570","v":"Average number of days clients are in jail prior to disposition for feloniesPublic Defender's Office - 144"},{"$f":"_xlfn.XLOOKUP(VALUE(W2570),'Data SBP Programs'!O:O,'Data SBP Programs'!S:S)","v":"Public Defender's Office"}]
[{"$f":"'Data SBP Measures'!$AI2195&\" - \"&'Data SBP Measures'!$U2195","v":"Office of Parent Representation - 155"},{"$f":"'Data SBP Measures'!$AF2195","v":"% of cases resolved without trial"},{"$f":"'Data SBP Measures'!$T2195","v":"2716"},{"$f":"'Data SBP Measures'!$U2195&B2572","v":"155% of cases resolved without trial"},{"$f":"'Data SBP Measures'!$Y2195","v":"PERCENT"},null,null,null,null,null,"Office of Parent Representation - 155","% of cases resolved without trial",null,null,null,null,null,null,null,"3214","144","Y","305","Public Defender's Office","DAYS","OUTPUT","BLACKBOOK",null,null,null,"Public Defender's Office","Average number of days clients are in jail prior to disposition for felonies",null,{"$f":"'Data SBP Measures'!$AF2572&'Data SBP Measures'!$AE2572& \" - \"& 'Data SBP Measures'!$U2572","v":"Average number of days clients are in jail prior to disposition for feloniesPublic Defender's Office - 144"},{"$f":"_xlfn.XLOOKUP(VALUE(W2572),'Data SBP Programs'!O:O,'Data SBP Programs'!S:S)","v":"Public Defender's Office"}]
[{"$f":"'Data SBP Measures'!$AI81&\" - \"&'Data SBP Measures'!$U81","v":"Office of the Chief Deputy: Community Liaison\n - 158"},{"$f":"'Data SBP Measures'!$AF81","v":"# of forums/collaborations/events organized or facilitated"},{"$f":"'Data SBP Measures'!$T81","v":"1109"},{"$f":"'Data SBP Measures'!$U81&B2575","v":"158# of forums/collaborations/events organized or facilitated"},{"$f":"'Data SBP Measures'!$Y81","v":"EACH"},null,null,null,null,null,"Office of the Chief Deputy: Community Liaison\n - 158","# of forums/collaborations/events organized or facilitated",null,null,null,null,null,null,null,"3215","144","Y","305","Public Defender's Office","DAYS","OUTPUT","BLACKBOOK",null,null,null,"Public Defender's Office","Average number of days clients are in jail prior to disposition for misdemeanors",null,{"$f":"'Data SBP Measures'!$AF2575&'Data SBP Measures'!$AE2575& \" - \"& 'Data SBP Measures'!$U2575","v":"Average number of days clients are in jail prior to disposition for misdemeanorsPublic Defender's Office - 144"},{"$f":"_xlfn.XLOOKUP(VALUE(W2575),'Data SBP Programs'!O:O,'Data SBP Programs'!S:S)","v":"Public Defender's Office"}]
[{"$f":"'Data SBP Measures'!$AI1083&\" - \"&'Data SBP Measures'!$U1083","v":"Official Fees Accounting Division - 127"},{"$f":"'Data SBP Measures'!$AF1083","v":"\"Monthly – Post month-end and year-end journal entries to SAP"},{"$f":"'Data SBP Measures'!$T1083","v":"2063"},{"$f":"'Data SBP Measures'!$U1083&B2578","v":"127\"Monthly – Post month-end and year-end journal entries to SAP"},{"$f":"'Data SBP Measures'!$Y1083","v":"EACH"},null,null,null,null,null,"Official Fees Accounting Division - 127","\"Monthly – Post month-end and year-end journal entries to SAP",null,null,null,null,null,null,null,"3218","144","Y","305","Public Defender's Office","EACH","OUTPUT","BLACKBOOK",null,null,null,"Public Defender's Office","Number of new investigative referrals",null,{"$f":"'Data SBP Measures'!$AF2578&'Data SBP Measures'!$AE2578& \" - \"& 'Data SBP Measures'!$U2578","v":"Number of new investigative referralsPublic Defender's Office - 144"},{"$f":"_xlfn.XLOOKUP(VALUE(W2578),'Data SBP Programs'!O:O,'Data SBP Programs'!S:S)","v":"Public Defender's Office"}]
[{"$f":"'Data SBP Measures'!$AI1098&\" - \"&'Data SBP Measures'!$U1098","v":"Official Fees Accounting Division - 127"},{"$f":"'Data SBP Measures'!$AF1098","v":"Annual -  prepare  unclaimed property reports & present to elected officials for signature and submit with fund remittances to the Treasure or State Comptroller 10 offices X 2 reports = 20"},{"$f":"'Data SBP Measures'!$T1098","v":"2070"},{"$f":"'Data SBP Measures'!$U1098&B2580","v":"127Annual -  prepare  unclaimed property reports & present to elected officials for signature and submit with fund remittances to the Treasure or State Comptroller 10 offices X 2 reports = 20"},{"$f":"'Data SBP Measures'!$Y1098","v":"EACH"},null,null,null,null,null,"Official Fees Accounting Division - 127","Annual -  prepare  unclaimed property reports & present to elected officials for signature and submit with fund remittances to the Treasure or State Comptroller 10 offices X 2 reports = 20",null,null,null,null,null,null,null,"3218","144","Y","305","Public Defender's Office","EACH","OUTPUT","BLACKBOOK",null,null,null,"Public Defender's Office","Number of new investigative referrals",null,{"$f":"'Data SBP Measures'!$AF2580&'Data SBP Measures'!$AE2580& \" - \"& 'Data SBP Measures'!$U2580","v":"Number of new investigative referralsPublic Defender's Office - 144"},{"$f":"_xlfn.XLOOKUP(VALUE(W2580),'Data SBP Programs'!O:O,'Data SBP Programs'!S:S)","v":"Public Defender's Office"}]
[{"$f":"'Data SBP Measures'!$AI1099&\" - \"&'Data SBP Measures'!$U1099","v":"Official Fees Accounting Division - 127"},{"$f":"'Data SBP Measures'!$AF1099","v":"Annual -  prepare  unclaimed property reports & present to elected officials for signature and submit with fund remittances to the Treasure or State Comptroller 10 offices X 2 reports = 20"},{"$f":"'Data SBP Measures'!$T1099","v":"2070"},{"$f":"'Data SBP Measures'!$U1099&B2581","v":"127Annual -  prepare  unclaimed property reports & present to elected officials for signature and submit with fund remittances to the Treasure or State Comptroller 10 offices X 2 reports = 20"},{"$f":"'Data SBP Measures'!$Y1099","v":"EACH"},null,null,null,null,null,"Official Fees Accounting Division - 127","Annual -  prepare  unclaimed property reports & present to elected officials for signature and submit with fund remittances to the Treasure or State Comptroller 10 offices X 2 reports = 20",null,null,null,null,null,null,null,"3218","144","Y","305","Public Defender's Office","EACH","OUTPUT","BLACKBOOK",null,null,null,"Public Defender's Office","Number of new investigative referrals",null,{"$f":"'Data SBP Measures'!$AF2581&'Data SBP Measures'!$AE2581& \" - \"& 'Data SBP Measures'!$U2581","v":"Number of new investigative referralsPublic Defender's Office - 144"},{"$f":"_xlfn.XLOOKUP(VALUE(W2581),'Data SBP Programs'!O:O,'Data SBP Programs'!S:S)","v":"Public Defender's Office"}]
[{"$f":"'Data SBP Measures'!$AI1113&\" - \"&'Data SBP Measures'!$U1113","v":"Official Fees Accounting Division - 127"},{"$f":"'Data SBP Measures'!$AF1113","v":"Annual – Financial Audits – Work with administration to implement policies and procedures that will gain a rating of “Adequate” or better for each office 10 offices X 1.5 Audits= 15 (Financial Audit or Financial Portion of Audits)"},{"$f":"'Data SBP Measures'!$T1113","v":"2077"},{"$f":"'Data SBP Measures'!$U1113&B2585","v":"127Annual – Financial Audits – Work with administration to implement policies and procedures that will gain a rating of “Adequate” or better for each office 10 offices X 1.5 Audits= 15 (Financial Audit or Financial Portion of Audits)"},{"$f":"'Data SBP Measures'!$Y1113","v":"EACH"},null,null,null,null,null,"Official Fees Accounting Division - 127","Annual – Financial Audits – Work with administration to implement policies and procedures that will gain a rating of “Adequate” or better for each office 10 offices X 1.5 Audits= 15 (Financial Audit or Financial Portion of Audits)",null,null,null,null,null,null,null,"3219","144","Y","305","Public Defender's Office","EACH","OUTPUT","BLACKBOOK",null,null,null,"Public Defender's Office","Number of new social work referrals",null,{"$f":"'Data SBP Measures'!$AF2585&'Data SBP Measures'!$AE2585& \" - \"& 'Data SBP Measures'!$U2585","v":"Number of new social work referralsPublic Defender's Office - 144"},{"$f":"_xlfn.XLOOKUP(VALUE(W2585),'Data SBP Programs'!O:O,'Data SBP Programs'!S:S)","v":"Public Defender's Office"}]
[{"$f":"'Data SBP Measures'!$AI1089&\" - \"&'Data SBP Measures'!$U1089","v":"Official Fees Accounting Division - 127"},{"$f":"'Data SBP Measures'!$AF1089","v":"Annual – Prepare the Justice of the Peace annual Target Revenue Estimate & provide data as needed for the Constable Revenue Estimate 10 Officials X 12 = 120"},{"$f":"'Data SBP Measures'!$T1089","v":"2066"},{"$f":"'Data SBP Measures'!$U1089&B2586","v":"127Annual – Prepare the Justice of the Peace annual Target Revenue Estimate & provide data as needed for the Constable Revenue Estimate 10 Officials X 12 = 120"},{"$f":"'Data SBP Measures'!$Y1089","v":"EACH"},null,null,null,null,null,"Official Fees Accounting Division - 127","Annual – Prepare the Justice of the Peace annual Target Revenue Estimate & provide data as needed for the Constable Revenue Estimate 10 Officials X 12 = 120",null,null,null,null,null,null,null,"3220","144","Y","305","Public Defender's Office","EACH","OUTPUT","BLACKBOOK",null,null,null,"Public Defender's Office","Number of new immigration (Padilla) referrals",null,{"$f":"'Data SBP Measures'!$AF2586&'Data SBP Measures'!$AE2586& \" - \"& 'Data SBP Measures'!$U2586","v":"Number of new immigration (Padilla) referralsPublic Defender's Office - 144"},{"$f":"_xlfn.XLOOKUP(VALUE(W2586),'Data SBP Programs'!O:O,'Data SBP Programs'!S:S)","v":"Public Defender's Office"}]
[{"$f":"'Data SBP Measures'!$AI1061&\" - \"&'Data SBP Measures'!$U1061","v":"Official Fees Accounting Division - 127"},{"$f":"'Data SBP Measures'!$AF1061","v":"Annual -prepare state and Federal Forfeited Funds Reports 2 Reports X 5CN = 10"},{"$f":"'Data SBP Measures'!$T1061","v":"2052"},{"$f":"'Data SBP Measures'!$U1061&B2589","v":"127Annual -prepare state and Federal Forfeited Funds Reports 2 Reports X 5CN = 10"},{"$f":"'Data SBP Measures'!$Y1061","v":"EACH"},null,null,null,null,null,"Official Fees Accounting Division - 127","Annual -prepare state and Federal Forfeited Funds Reports 2 Reports X 5CN = 10",null,null,null,null,null,null,null,"3220","144","Y","305","Public Defender's Office","EACH","OUTPUT","BLACKBOOK",null,null,null,"Public Defender's Office","Number of new immigration (Padilla) referrals",null,{"$f":"'Data SBP Measures'!$AF2589&'Data SBP Measures'!$AE2589& \" - \"& 'Data SBP Measures'!$U2589","v":"Number of new immigration (Padilla) referralsPublic Defender's Office - 144"},{"$f":"_xlfn.XLOOKUP(VALUE(W2589),'Data SBP Programs'!O:O,'Data SBP Programs'!S:S)","v":"Public Defender's Office"}]
[{"$f":"'Data SBP Measures'!$AI1111&\" - \"&'Data SBP Measures'!$U1111","v":"Official Fees Accounting Division - 127"},{"$f":"'Data SBP Measures'!$AF1111","v":"Comply with Auditor directives and submit GAAP compliant GASB34 reports to the Auditor by the 10th business day after month end 5 accounts X 12 = 60"},{"$f":"'Data SBP Measures'!$T1111","v":"2076"},{"$f":"'Data SBP Measures'!$U1111&B2591","v":"127Comply with Auditor directives and submit GAAP compliant GASB34 reports to the Auditor by the 10th business day after month end 5 accounts X 12 = 60"},{"$f":"'Data SBP Measures'!$Y1111","v":"EACH"},null,null,null,null,null,"Official Fees Accounting Division - 127","Comply with Auditor directives and submit GAAP compliant GASB34 reports to the Auditor by the 10th business day after month end 5 accounts X 12 = 60",null,null,null,null,null,null,null,"3221","144","Y","305","Public Defender's Office","EACH","OUTPUT","BLACKBOOK",null,null,null,"Public Defender's Office","Number of clients referred to community-based civil legal and/or social support resources",null,{"$f":"'Data SBP Measures'!$AF2591&'Data SBP Measures'!$AE2591& \" - \"& 'Data SBP Measures'!$U2591","v":"Number of clients referred to community-based civil legal and/or social support resourcesPublic Defender's Office - 144"},{"$f":"_xlfn.XLOOKUP(VALUE(W2591),'Data SBP Programs'!O:O,'Data SBP Programs'!S:S)","v":"Public Defender's Office"}]
[{"$f":"'Data SBP Measures'!$AI1106&\" - \"&'Data SBP Measures'!$U1106","v":"Official Fees Accounting Division - 127"},{"$f":"'Data SBP Measures'!$AF1106","v":"Comply with GAAP guidelines & Auditor directives and prepare monthly bank reconciliations by the 5th business day after month end 41 accounts X 251 = 10291"},{"$f":"'Data SBP Measures'!$T1106","v":"2074"},{"$f":"'Data SBP Measures'!$U1106&B2594","v":"127Comply with GAAP guidelines & Auditor directives and prepare monthly bank reconciliations by the 5th business day after month end 41 accounts X 251 = 10291"},{"$f":"'Data SBP Measures'!$Y1106","v":"EACH"},null,null,null,null,null,"Official Fees Accounting Division - 127","Comply with GAAP guidelines & Auditor directives and prepare monthly bank reconciliations by the 5th business day after month end 41 accounts X 251 = 10291",null,null,null,null,null,null,null,"3223","144","Y","305","Public Defender's Office","EACH","OUTPUT","ADOPTEDBUD",null,null,null,"Public Defender's Office","Number of non-incarceratory felony dispositions",null,{"$f":"'Data SBP Measures'!$AF2594&'Data SBP Measures'!$AE2594& \" - \"& 'Data SBP Measures'!$U2594","v":"Number of non-incarceratory felony dispositionsPublic Defender's Office - 144"},{"$f":"_xlfn.XLOOKUP(VALUE(W2594),'Data SBP Programs'!O:O,'Data SBP Programs'!S:S)","v":"Public Defender's Office"}]
[{"$f":"'Data SBP Measures'!$AI1105&\" - \"&'Data SBP Measures'!$U1105","v":"Official Fees Accounting Division - 127"},{"$f":"'Data SBP Measures'!$AF1105","v":"Comply with statutory requirements for Civil fund deposits and remittances 41 accounts X 251 = 10291"},{"$f":"'Data SBP Measures'!$T1105","v":"2073"},{"$f":"'Data SBP Measures'!$U1105&B2597","v":"127Comply with statutory requirements for Civil fund deposits and remittances 41 accounts X 251 = 10291"},{"$f":"'Data SBP Measures'!$Y1105","v":"EACH"},null,null,null,null,null,"Official Fees Accounting Division - 127","Comply with statutory requirements for Civil fund deposits and remittances 41 accounts X 251 = 10291",null,null,null,null,null,null,null,"3223","144","Y","305","Public Defender's Office","EACH","OUTPUT","ADOPTEDBUD",null,null,null,"Public Defender's Office","Number of non-incarceratory felony dispositions",null,{"$f":"'Data SBP Measures'!$AF2597&'Data SBP Measures'!$AE2597& \" - \"& 'Data SBP Measures'!$U2597","v":"Number of non-incarceratory felony dispositionsPublic Defender's Office - 144"},{"$f":"_xlfn.XLOOKUP(VALUE(W2597),'Data SBP Programs'!O:O,'Data SBP Programs'!S:S)","v":"Public Defender's Office"}]
[{"$f":"'Data SBP Measures'!$AI1103&\" - \"&'Data SBP Measures'!$U1103","v":"Official Fees Accounting Division - 127"},{"$f":"'Data SBP Measures'!$AF1103","v":"Comply with statutory requirements for Criminal fund deposits and remittance 41 accounts X 251 = 10291"},{"$f":"'Data SBP Measures'!$T1103","v":"2072"},{"$f":"'Data SBP Measures'!$U1103&B2599","v":"127Comply with statutory requirements for Criminal fund deposits and remittance 41 accounts X 251 = 10291"},{"$f":"'Data SBP Measures'!$Y1103","v":"EACH"},null,null,null,null,null,"Official Fees Accounting Division - 127","Comply with statutory requirements for Criminal fund deposits and remittance 41 accounts X 251 = 10291",null,null,null,null,null,null,null,"3224","144","Y","305","Public Defender's Office","EACH","OUTPUT","ADOPTEDBUD",null,null,null,"Public Defender's Office","Number of non-incarceratory misdemeanor dispositions",null,{"$f":"'Data SBP Measures'!$AF2599&'Data SBP Measures'!$AE2599& \" - \"& 'Data SBP Measures'!$U2599","v":"Number of non-incarceratory misdemeanor dispositionsPublic Defender's Office - 144"},{"$f":"_xlfn.XLOOKUP(VALUE(W2599),'Data SBP Programs'!O:O,'Data SBP Programs'!S:S)","v":"Public Defender's Office"}]
[{"$f":"'Data SBP Measures'!$AI1042&\" - \"&'Data SBP Measures'!$U1042","v":"Official Fees Accounting Division - 127"},{"$f":"'Data SBP Measures'!$AF1042","v":"Daily  - Inspect & balance deposit slips & bank bag slips to the Odyssey receipt journal, identify and correct errors for monies receipted from all manned & virtual cashier stations & post deposits to Odyssey 15 accounts X 251 = 3765 (started 2015"},{"$f":"'Data SBP Measures'!$T1042","v":"2043"},{"$f":"'Data SBP Measures'!$U1042&B2600","v":"127Daily  - Inspect & balance deposit slips & bank bag slips to the Odyssey receipt journal, identify and correct errors for monies receipted from all manned & virtual cashier stations & post deposits to Odyssey 15 accounts X 251 = 3765 (started 2015"},{"$f":"'Data SBP Measures'!$Y1042","v":"EACH"},null,null,null,null,null,"Official Fees Accounting Division - 127","Daily  - Inspect & balance deposit slips & bank bag slips to the Odyssey receipt journal, identify and correct errors for monies receipted from all manned & virtual cashier stations & post deposits to Odyssey 15 accounts X 251 = 3765 (started 2015",null,null,null,null,null,null,null,"3224","144","Y","305","Public Defender's Office","EACH","OUTPUT","ADOPTEDBUD",null,null,null,"Public Defender's Office","Number of non-incarceratory misdemeanor dispositions",null,{"$f":"'Data SBP Measures'!$AF2600&'Data SBP Measures'!$AE2600& \" - \"& 'Data SBP Measures'!$U2600","v":"Number of non-incarceratory misdemeanor dispositionsPublic Defender's Office - 144"},{"$f":"_xlfn.XLOOKUP(VALUE(W2600),'Data SBP Programs'!O:O,'Data SBP Programs'!S:S)","v":"Public Defender's Office"}]
[{"$f":"'Data SBP Measures'!$AI1050&\" - \"&'Data SBP Measures'!$U1050","v":"Official Fees Accounting Division - 127"},{"$f":"'Data SBP Measures'!$AF1050","v":"Daily  - remit Official Fees to the County Treasurer via bank transfer 10 accounts X 251 = 2510"},{"$f":"'Data SBP Measures'!$T1050","v":"2047"},{"$f":"'Data SBP Measures'!$U1050&B2604","v":"127Daily  - remit Official Fees to the County Treasurer via bank transfer 10 accounts X 251 = 2510"},{"$f":"'Data SBP Measures'!$Y1050","v":"EACH"},null,null,null,null,null,"Official Fees Accounting Division - 127","Daily  - remit Official Fees to the County Treasurer via bank transfer 10 accounts X 251 = 2510",null,null,null,null,null,null,null,"3225","144","Y","305","Public Defender's Office","EACH","OUTPUT","BLACKBOOK",null,null,null,"Public Defender's Office","Number of hearings/trials (felony)",null,{"$f":"'Data SBP Measures'!$AF2604&'Data SBP Measures'!$AE2604& \" - \"& 'Data SBP Measures'!$U2604","v":"Number of hearings/trials (felony)Public Defender's Office - 144"},{"$f":"_xlfn.XLOOKUP(VALUE(W2604),'Data SBP Programs'!O:O,'Data SBP Programs'!S:S)","v":"Public Defender's Office"}]
[{"$f":"'Data SBP Measures'!$AI1051&\" - \"&'Data SBP Measures'!$U1051","v":"Official Fees Accounting Division - 127"},{"$f":"'Data SBP Measures'!$AF1051","v":"Daily  - remit Official Fees to the County Treasurer via bank transfer 10 accounts X 251 = 2510"},{"$f":"'Data SBP Measures'!$T1051","v":"2047"},{"$f":"'Data SBP Measures'!$U1051&B2605","v":"127Daily  - remit Official Fees to the County Treasurer via bank transfer 10 accounts X 251 = 2510"},{"$f":"'Data SBP Measures'!$Y1051","v":"EACH"},null,null,null,null,null,"Official Fees Accounting Division - 127","Daily  - remit Official Fees to the County Treasurer via bank transfer 10 accounts X 251 = 2510",null,null,null,null,null,null,null,"3225","144","Y","305","Public Defender's Office","EACH","OUTPUT","BLACKBOOK",null,null,null,"Public Defender's Office","Number of hearings/trials (felony)",null,{"$f":"'Data SBP Measures'!$AF2605&'Data SBP Measures'!$AE2605& \" - \"& 'Data SBP Measures'!$U2605","v":"Number of hearings/trials (felony)Public Defender's Office - 144"},{"$f":"_xlfn.XLOOKUP(VALUE(W2605),'Data SBP Programs'!O:O,'Data SBP Programs'!S:S)","v":"Public Defender's Office"}]
[{"$f":"'Data SBP Measures'!$AI1038&\" - \"&'Data SBP Measures'!$U1038","v":"Official Fees Accounting Division - 127"},{"$f":"'Data SBP Measures'!$AF1038","v":"Daily - Identify & correct receipt errors from manned & virtual cashier stations 41 accounts X 251 = 10291"},{"$f":"'Data SBP Measures'!$T1038","v":"2041"},{"$f":"'Data SBP Measures'!$U1038&B2608","v":"127Daily - Identify & correct receipt errors from manned & virtual cashier stations 41 accounts X 251 = 10291"},{"$f":"'Data SBP Measures'!$Y1038","v":"EACH"},null,null,null,null,null,"Official Fees Accounting Division - 127","Daily - Identify & correct receipt errors from manned & virtual cashier stations 41 accounts X 251 = 10291",null,null,null,null,null,null,null,"3226","144","Y","305","Public Defender's Office","EACH","OUTPUT","BLACKBOOK",null,null,null,"Public Defender's Office","Numbers of hearings/trials (bench)",null,{"$f":"'Data SBP Measures'!$AF2608&'Data SBP Measures'!$AE2608& \" - \"& 'Data SBP Measures'!$U2608","v":"Numbers of hearings/trials (bench)Public Defender's Office - 144"},{"$f":"_xlfn.XLOOKUP(VALUE(W2608),'Data SBP Programs'!O:O,'Data SBP Programs'!S:S)","v":"Public Defender's Office"}]
[{"$f":"'Data SBP Measures'!$AI1052&\" - \"&'Data SBP Measures'!$U1052","v":"Official Fees Accounting Division - 127"},{"$f":"'Data SBP Measures'!$AF1052","v":"Daily – maintain an excel subsidiary ledger that balances receipts to remittances 5 accounts X 251 = 1255"},{"$f":"'Data SBP Measures'!$T1052","v":"2048"},{"$f":"'Data SBP Measures'!$U1052&B2610","v":"127Daily – maintain an excel subsidiary ledger that balances receipts to remittances 5 accounts X 251 = 1255"},{"$f":"'Data SBP Measures'!$Y1052","v":"EACH"},null,null,null,null,null,"Official Fees Accounting Division - 127","Daily – maintain an excel subsidiary ledger that balances receipts to remittances 5 accounts X 251 = 1255",null,null,null,null,null,null,null,"3227","144","Y","305","Public Defender's Office","EACH","EFFICIENCY","BLACKBOOK",null,null,null,"Public Defender's Office","Average weighted caseload per attorney",null,{"$f":"'Data SBP Measures'!$AF2610&'Data SBP Measures'!$AE2610& \" - \"& 'Data SBP Measures'!$U2610","v":"Average weighted caseload per attorneyPublic Defender's Office - 144"},{"$f":"_xlfn.XLOOKUP(VALUE(W2610),'Data SBP Programs'!O:O,'Data SBP Programs'!S:S)","v":"Public Defender's Office"}]
[{"$f":"'Data SBP Measures'!$AI1035&\" - \"&'Data SBP Measures'!$U1035","v":"Official Fees Accounting Division - 127"},{"$f":"'Data SBP Measures'!$AF1035","v":"Daily – Maintain general and subsidiary ledgers in CivilServe, Odyssey, QuickBooks & Excel 10 Offices X 251 = 2510\n"},{"$f":"'Data SBP Measures'!$T1035","v":"2039"},{"$f":"'Data SBP Measures'!$U1035&B2613","v":"127Daily – Maintain general and subsidiary ledgers in CivilServe, Odyssey, QuickBooks & Excel 10 Offices X 251 = 2510\n"},{"$f":"'Data SBP Measures'!$Y1035","v":"EACH"},null,null,null,null,null,"Official Fees Accounting Division - 127","Daily – Maintain general and subsidiary ledgers in CivilServe, Odyssey, QuickBooks & Excel 10 Offices X 251 = 2510\n",null,null,null,null,null,null,null,"3227","144","Y","305","Public Defender's Office","EACH","EFFICIENCY","BLACKBOOK",null,null,null,"Public Defender's Office","Average weighted caseload per attorney",null,{"$f":"'Data SBP Measures'!$AF2613&'Data SBP Measures'!$AE2613& \" - \"& 'Data SBP Measures'!$U2613","v":"Average weighted caseload per attorneyPublic Defender's Office - 144"},{"$f":"_xlfn.XLOOKUP(VALUE(W2613),'Data SBP Programs'!O:O,'Data SBP Programs'!S:S)","v":"Public Defender's Office"}]
[{"$f":"'Data SBP Measures'!$AI1056&\" - \"&'Data SBP Measures'!$U1056","v":"Official Fees Accounting Division - 127"},{"$f":"'Data SBP Measures'!$AF1056","v":"Daily – monitor LEOSE, Forfeited Funds, and Abandoned Vehicle  transactions 7 accounts X 251 = 1757, 8 accounts X 251 = 2008 (started 2015)"},{"$f":"'Data SBP Measures'!$T1056","v":"2050"},{"$f":"'Data SBP Measures'!$U1056&B2616","v":"127Daily – monitor LEOSE, Forfeited Funds, and Abandoned Vehicle  transactions 7 accounts X 251 = 1757, 8 accounts X 251 = 2008 (started 2015)"},{"$f":"'Data SBP Measures'!$Y1056","v":"EACH"},null,null,null,null,null,"Official Fees Accounting Division - 127","Daily – monitor LEOSE, Forfeited Funds, and Abandoned Vehicle  transactions 7 accounts X 251 = 1757, 8 accounts X 251 = 2008 (started 2015)",null,null,null,null,null,null,null,"3228","144","Y","305","Public Defender's Office","EACH","OUTPUT","BLACKBOOK",null,null,null,"Public Defender's Office","One or more systemic impact initiatives spearheaded per Fiscal Year",null,{"$f":"'Data SBP Measures'!$AF2616&'Data SBP Measures'!$AE2616& \" - \"& 'Data SBP Measures'!$U2616","v":"One or more systemic impact initiatives spearheaded per Fiscal YearPublic Defender's Office - 144"},{"$f":"_xlfn.XLOOKUP(VALUE(W2616),'Data SBP Programs'!O:O,'Data SBP Programs'!S:S)","v":"Public Defender's Office"}]
[{"$f":"'Data SBP Measures'!$AI1058&\" - \"&'Data SBP Measures'!$U1058","v":"Official Fees Accounting Division - 127"},{"$f":"'Data SBP Measures'!$AF1058","v":"Daily – post LEOSE, Forfeited Funds, and Abandoned Vehicle transactions to the general ledger and maintain backup documentation for fund allocations  & expenditures 7 accounts X 251 = 1757, 8 accounts X 251 = 2008 (started 2015)"},{"$f":"'Data SBP Measures'!$T1058","v":"2051"},{"$f":"'Data SBP Measures'!$U1058&B2618","v":"127Daily – post LEOSE, Forfeited Funds, and Abandoned Vehicle transactions to the general ledger and maintain backup documentation for fund allocations  & expenditures 7 accounts X 251 = 1757, 8 accounts X 251 = 2008 (started 2015)"},{"$f":"'Data SBP Measures'!$Y1058","v":"EACH"},null,null,null,null,null,"Official Fees Accounting Division - 127","Daily – post LEOSE, Forfeited Funds, and Abandoned Vehicle transactions to the general ledger and maintain backup documentation for fund allocations  & expenditures 7 accounts X 251 = 1757, 8 accounts X 251 = 2008 (started 2015)",null,null,null,null,null,null,null,"3229","140","Y","303","Administration\n","EACH","INPUT","BLACKBOOK",null,null,null,"Administration\n","Total # of Calls Presented",null,{"$f":"'Data SBP Measures'!$AF2618&'Data SBP Measures'!$AE2618& \" - \"& 'Data SBP Measures'!$U2618","v":"Total # of Calls PresentedAdministration\n - 140"},{"$f":"_xlfn.XLOOKUP(VALUE(W2618),'Data SBP Programs'!O:O,'Data SBP Programs'!S:S)","v":"Administration\n"}]
[{"$f":"'Data SBP Measures'!$AI1059&\" - \"&'Data SBP Measures'!$U1059","v":"Official Fees Accounting Division - 127"},{"$f":"'Data SBP Measures'!$AF1059","v":"Daily – post LEOSE, Forfeited Funds, and Abandoned Vehicle transactions to the general ledger and maintain backup documentation for fund allocations  & expenditures 7 accounts X 251 = 1757, 8 accounts X 251 = 2008 (started 2015)"},{"$f":"'Data SBP Measures'!$T1059","v":"2051"},{"$f":"'Data SBP Measures'!$U1059&B2619","v":"127Daily – post LEOSE, Forfeited Funds, and Abandoned Vehicle transactions to the general ledger and maintain backup documentation for fund allocations  & expenditures 7 accounts X 251 = 1757, 8 accounts X 251 = 2008 (started 2015)"},{"$f":"'Data SBP Measures'!$Y1059","v":"EACH"},null,null,null,null,null,"Official Fees Accounting Division - 127","Daily – post LEOSE, Forfeited Funds, and Abandoned Vehicle transactions to the general ledger and maintain backup documentation for fund allocations  & expenditures 7 accounts X 251 = 1757, 8 accounts X 251 = 2008 (started 2015)",null,null,null,null,null,null,null,"3230","140","Y","303","Administration\n","EACH","OUTPUT","BLACKBOOK",null,null,null,"Administration\n","Total # of Calls Processed",null,{"$f":"'Data SBP Measures'!$AF2619&'Data SBP Measures'!$AE2619& \" - \"& 'Data SBP Measures'!$U2619","v":"Total # of Calls ProcessedAdministration\n - 140"},{"$f":"_xlfn.XLOOKUP(VALUE(W2619),'Data SBP Programs'!O:O,'Data SBP Programs'!S:S)","v":"Administration\n"}]
[{"$f":"'Data SBP Measures'!$AI1037&\" - \"&'Data SBP Measures'!$U1037","v":"Official Fees Accounting Division - 127"},{"$f":"'Data SBP Measures'!$AF1037","v":"Daily – reconcile receipts to reports generated from both manned & virtual cashier stations 41 accounts X 251 = 10291"},{"$f":"'Data SBP Measures'!$T1037","v":"2040"},{"$f":"'Data SBP Measures'!$U1037&B2623","v":"127Daily – reconcile receipts to reports generated from both manned & virtual cashier stations 41 accounts X 251 = 10291"},{"$f":"'Data SBP Measures'!$Y1037","v":"EACH"},null,null,null,null,null,"Official Fees Accounting Division - 127","Daily – reconcile receipts to reports generated from both manned & virtual cashier stations 41 accounts X 251 = 10291",null,null,null,null,null,null,null,"3234","140","Y","303","Administration\n","MINUTES","EFFICIENCY","BLACKBOOK",null,null,null,"Administration\n","Average Handle Time - Spanish (Call)",null,{"$f":"'Data SBP Measures'!$AF2623&'Data SBP Measures'!$AE2623& \" - \"& 'Data SBP Measures'!$U2623","v":"Average Handle Time - Spanish (Call)Administration\n - 140"},{"$f":"_xlfn.XLOOKUP(VALUE(W2623),'Data SBP Programs'!O:O,'Data SBP Programs'!S:S)","v":"Administration\n"}]
[{"$f":"'Data SBP Measures'!$AI1044&\" - \"&'Data SBP Measures'!$U1044","v":"Official Fees Accounting Division - 127"},{"$f":"'Data SBP Measures'!$AF1044","v":"Daily – review credit card settlements & post deposits to odyssey 33 accounts X 251 = 8283"},{"$f":"'Data SBP Measures'!$T1044","v":"2044"},{"$f":"'Data SBP Measures'!$U1044&B2624","v":"127Daily – review credit card settlements & post deposits to odyssey 33 accounts X 251 = 8283"},{"$f":"'Data SBP Measures'!$Y1044","v":"EACH"},null,null,null,null,null,"Official Fees Accounting Division - 127","Daily – review credit card settlements & post deposits to odyssey 33 accounts X 251 = 8283",null,null,null,null,null,null,null,"3235","140","Y","303","Administration\n","PERCENT","OUTCOME","BLACKBOOK",null,null,null,"Administration\n","% of clients stated phone agent was knowledgeable and provided clear instructions",null,{"$f":"'Data SBP Measures'!$AF2624&'Data SBP Measures'!$AE2624& \" - \"& 'Data SBP Measures'!$U2624","v":"% of clients stated phone agent was knowledgeable and provided clear instructionsAdministration\n - 140"},{"$f":"_xlfn.XLOOKUP(VALUE(W2624),'Data SBP Programs'!O:O,'Data SBP Programs'!S:S)","v":"Administration\n"}]
[{"$f":"'Data SBP Measures'!$AI1063&\" - \"&'Data SBP Measures'!$U1063","v":"Official Fees Accounting Division - 127"},{"$f":"'Data SBP Measures'!$AF1063","v":"Daily –Compare bank transactions to CivilServe and Odyssey GL transactions, identify errors and document corrections 41 accounts X 251 = 10291\n"},{"$f":"'Data SBP Measures'!$T1063","v":"2053"},{"$f":"'Data SBP Measures'!$U1063&B2627","v":"127Daily –Compare bank transactions to CivilServe and Odyssey GL transactions, identify errors and document corrections 41 accounts X 251 = 10291\n"},{"$f":"'Data SBP Measures'!$Y1063","v":"EACH"},null,null,null,null,null,"Official Fees Accounting Division - 127","Daily –Compare bank transactions to CivilServe and Odyssey GL transactions, identify errors and document corrections 41 accounts X 251 = 10291\n",null,null,null,null,null,null,null,"3238","140","Y","303","Administration\n","EACH","OUTPUT","BLACKBOOK",null,null,null,"Administration\n","# of Scheduled Trainings - Outside",null,{"$f":"'Data SBP Measures'!$AF2627&'Data SBP Measures'!$AE2627& \" - \"& 'Data SBP Measures'!$U2627","v":"# of Scheduled Trainings - OutsideAdministration\n - 140"},{"$f":"_xlfn.XLOOKUP(VALUE(W2627),'Data SBP Programs'!O:O,'Data SBP Programs'!S:S)","v":"Administration\n"}]
[{"$f":"'Data SBP Measures'!$AI1065&\" - \"&'Data SBP Measures'!$U1065","v":"Official Fees Accounting Division - 127"},{"$f":"'Data SBP Measures'!$AF1065","v":"Monthly – complete bank reconciliations by the 5th business day after month end and obtain elected officials signature 41 accounts X 251 = 10291"},{"$f":"'Data SBP Measures'!$T1065","v":"2054"},{"$f":"'Data SBP Measures'!$U1065&B2629","v":"127Monthly – complete bank reconciliations by the 5th business day after month end and obtain elected officials signature 41 accounts X 251 = 10291"},{"$f":"'Data SBP Measures'!$Y1065","v":"EACH"},null,null,null,null,null,"Official Fees Accounting Division - 127","Monthly – complete bank reconciliations by the 5th business day after month end and obtain elected officials signature 41 accounts X 251 = 10291",null,null,null,null,null,null,null,"3243","111","Y","202","Talent, Planning & Engagement","DAYS","EFFICIENCY","ADOPTEDBUD",null,null,null,"Talent, Planning & Engagement","Average days to close an ER issue investigated by HR Services",null,{"$f":"'Data SBP Measures'!$AF2629&'Data SBP Measures'!$AE2629& \" - \"& 'Data SBP Measures'!$U2629","v":"Average days to close an ER issue investigated by HR ServicesTalent, Planning & Engagement - 111"},{"$f":"_xlfn.XLOOKUP(VALUE(W2629),'Data SBP Programs'!O:O,'Data SBP Programs'!S:S)","v":"Talent, Planning & Engagement"}]
[{"$f":"'Data SBP Measures'!$AI1081&\" - \"&'Data SBP Measures'!$U1081","v":"Official Fees Accounting Division - 127"},{"$f":"'Data SBP Measures'!$AF1081","v":"Monthly - maintain statistical collection reports by GL ,fund, tender method and line item 10 Officials X 12 = 120"},{"$f":"'Data SBP Measures'!$T1081","v":"2062"},{"$f":"'Data SBP Measures'!$U1081&B2632","v":"127Monthly - maintain statistical collection reports by GL ,fund, tender method and line item 10 Officials X 12 = 120"},{"$f":"'Data SBP Measures'!$Y1081","v":"EACH"},null,null,null,null,null,"Official Fees Accounting Division - 127","Monthly - maintain statistical collection reports by GL ,fund, tender method and line item 10 Officials X 12 = 120",null,null,null,null,null,null,null,"3246","140","Y","306","Austin/Travis County Family Violence Task Force\n","EACH","OUTPUT","ADOPTEDBUD",null,null,null,"Austin/Travis County Family Violence Task Force\n","Total # of Task Force Meetings",null,{"$f":"'Data SBP Measures'!$AF2632&'Data SBP Measures'!$AE2632& \" - \"& 'Data SBP Measures'!$U2632","v":"Total # of Task Force MeetingsAustin/Travis County Family Violence Task Force\n - 140"},{"$f":"_xlfn.XLOOKUP(VALUE(W2632),'Data SBP Programs'!O:O,'Data SBP Programs'!S:S)","v":"Austin/Travis County Family Violence Task Force\n"}]
[{"$f":"'Data SBP Measures'!$AI1071&\" - \"&'Data SBP Measures'!$U1071","v":"Official Fees Accounting Division - 127"},{"$f":"'Data SBP Measures'!$AF1071","v":"Monthly - prepare monthly official fee collection and remittance reports 5 accounts X 12 = 60"},{"$f":"'Data SBP Measures'!$T1071","v":"2057"},{"$f":"'Data SBP Measures'!$U1071&B2635","v":"127Monthly - prepare monthly official fee collection and remittance reports 5 accounts X 12 = 60"},{"$f":"'Data SBP Measures'!$Y1071","v":"EACH"},null,null,null,null,null,"Official Fees Accounting Division - 127","Monthly - prepare monthly official fee collection and remittance reports 5 accounts X 12 = 60",null,null,null,null,null,null,null,"3249","140","Y","306","Austin/Travis County Family Violence Task Force\n","PERCENT","OUTCOME","ADOPTEDBUD",null,null,null,"Austin/Travis County Family Violence Task Force\n","% of successful completion of 3 FV Awareness Events",null,{"$f":"'Data SBP Measures'!$AF2635&'Data SBP Measures'!$AE2635& \" - \"& 'Data SBP Measures'!$U2635","v":"% of successful completion of 3 FV Awareness EventsAustin/Travis County Family Violence Task Force\n - 140"},{"$f":"_xlfn.XLOOKUP(VALUE(W2635),'Data SBP Programs'!O:O,'Data SBP Programs'!S:S)","v":"Austin/Travis County Family Violence Task Force\n"}]
[{"$f":"'Data SBP Measures'!$AI1075&\" - \"&'Data SBP Measures'!$U1075","v":"Official Fees Accounting Division - 127"},{"$f":"'Data SBP Measures'!$AF1075","v":"Monthly prepare disbursement reports and remittance checks for funds due to other entities including, fines, costs & fees 41 accounts X 251 = 10291"},{"$f":"'Data SBP Measures'!$T1075","v":"2059"},{"$f":"'Data SBP Measures'!$U1075&B2637","v":"127Monthly prepare disbursement reports and remittance checks for funds due to other entities including, fines, costs & fees 41 accounts X 251 = 10291"},{"$f":"'Data SBP Measures'!$Y1075","v":"EACH"},null,null,null,null,null,"Official Fees Accounting Division - 127","Monthly prepare disbursement reports and remittance checks for funds due to other entities including, fines, costs & fees 41 accounts X 251 = 10291",null,null,null,null,null,null,null,"3254","145","Y","125","Probation Services","PERCENT","OUTCOME","ADOPTEDBUD",null,null,null,"Probation Services","% decrease in the number of youth being placed in external placements",null,{"$f":"'Data SBP Measures'!$AF2637&'Data SBP Measures'!$AE2637& \" - \"& 'Data SBP Measures'!$U2637","v":"% decrease in the number of youth being placed in external placementsProbation Services - 145"},{"$f":"_xlfn.XLOOKUP(VALUE(W2637),'Data SBP Programs'!O:O,'Data SBP Programs'!S:S)","v":"Probation Services"}]
[{"$f":"'Data SBP Measures'!$AI1066&\" - \"&'Data SBP Measures'!$U1066","v":"Official Fees Accounting Division - 127"},{"$f":"'Data SBP Measures'!$AF1066","v":"Monthly -prepare financial statements for each fund in format requested by the auditor 18 accounts X 12 = 216"},{"$f":"'Data SBP Measures'!$T1066","v":"2055"},{"$f":"'Data SBP Measures'!$U1066&B2638","v":"127Monthly -prepare financial statements for each fund in format requested by the auditor 18 accounts X 12 = 216"},{"$f":"'Data SBP Measures'!$Y1066","v":"EACH"},null,null,null,null,null,"Official Fees Accounting Division - 127","Monthly -prepare financial statements for each fund in format requested by the auditor 18 accounts X 12 = 216",null,null,null,null,null,null,null,"3254","145","Y","125","Probation Services","PERCENT","OUTCOME","ADOPTEDBUD",null,null,null,"Probation Services","% decrease in the number of youth being placed in external placements",null,{"$f":"'Data SBP Measures'!$AF2638&'Data SBP Measures'!$AE2638& \" - \"& 'Data SBP Measures'!$U2638","v":"% decrease in the number of youth being placed in external placementsProbation Services - 145"},{"$f":"_xlfn.XLOOKUP(VALUE(W2638),'Data SBP Programs'!O:O,'Data SBP Programs'!S:S)","v":"Probation Services"}]
[{"$f":"'Data SBP Measures'!$AI1079&\" - \"&'Data SBP Measures'!$U1079","v":"Official Fees Accounting Division - 127"},{"$f":"'Data SBP Measures'!$AF1079","v":"Monthly –submit GASG34 Report to elected officials for review & signature and forward to the Auditor by the 10th business day after month end 5 accounts X 12 = 60"},{"$f":"'Data SBP Measures'!$T1079","v":"2061"},{"$f":"'Data SBP Measures'!$U1079&B2642","v":"127Monthly –submit GASG34 Report to elected officials for review & signature and forward to the Auditor by the 10th business day after month end 5 accounts X 12 = 60"},{"$f":"'Data SBP Measures'!$Y1079","v":"EACH"},null,null,null,null,null,"Official Fees Accounting Division - 127","Monthly –submit GASG34 Report to elected officials for review & signature and forward to the Auditor by the 10th business day after month end 5 accounts X 12 = 60",null,null,null,null,null,null,null,"3254","145","Y","125","Probation Services","PERCENT","OUTCOME","ADOPTEDBUD",null,null,null,"Probation Services","% decrease in the number of youth being placed in external placements",null,{"$f":"'Data SBP Measures'!$AF2642&'Data SBP Measures'!$AE2642& \" - \"& 'Data SBP Measures'!$U2642","v":"% decrease in the number of youth being placed in external placementsProbation Services - 145"},{"$f":"_xlfn.XLOOKUP(VALUE(W2642),'Data SBP Programs'!O:O,'Data SBP Programs'!S:S)","v":"Probation Services"}]
[{"$f":"'Data SBP Measures'!$AI1080&\" - \"&'Data SBP Measures'!$U1080","v":"Official Fees Accounting Division - 127"},{"$f":"'Data SBP Measures'!$AF1080","v":"Monthly –submit GASG34 Report to elected officials for review & signature and forward to the Auditor by the 10th business day after month end 5 accounts X 12 = 60"},{"$f":"'Data SBP Measures'!$T1080","v":"2061"},{"$f":"'Data SBP Measures'!$U1080&B2643","v":"127Monthly –submit GASG34 Report to elected officials for review & signature and forward to the Auditor by the 10th business day after month end 5 accounts X 12 = 60"},{"$f":"'Data SBP Measures'!$Y1080","v":"EACH"},null,null,null,null,null,"Official Fees Accounting Division - 127","Monthly –submit GASG34 Report to elected officials for review & signature and forward to the Auditor by the 10th business day after month end 5 accounts X 12 = 60",null,null,null,null,null,null,null,"3254","145","Y","125","Probation Services","PERCENT","OUTCOME","ADOPTEDBUD",null,null,null,"Probation Services","% decrease in the number of youth being placed in external placements",null,{"$f":"'Data SBP Measures'!$AF2643&'Data SBP Measures'!$AE2643& \" - \"& 'Data SBP Measures'!$U2643","v":"% decrease in the number of youth being placed in external placementsProbation Services - 145"},{"$f":"_xlfn.XLOOKUP(VALUE(W2643),'Data SBP Programs'!O:O,'Data SBP Programs'!S:S)","v":"Probation Services"}]
[{"$f":"'Data SBP Measures'!$AI1068&\" - \"&'Data SBP Measures'!$U1068","v":"Official Fees Accounting Division - 127"},{"$f":"'Data SBP Measures'!$AF1068","v":"Monthly –submit statements to elected officials for review & signature and forward to the auditor by the 5th business day after month end 18 accounts X 12 = 216"},{"$f":"'Data SBP Measures'!$T1068","v":"2056"},{"$f":"'Data SBP Measures'!$U1068&B2646","v":"127Monthly –submit statements to elected officials for review & signature and forward to the auditor by the 5th business day after month end 18 accounts X 12 = 216"},{"$f":"'Data SBP Measures'!$Y1068","v":"EACH"},null,null,null,null,null,"Official Fees Accounting Division - 127","Monthly –submit statements to elected officials for review & signature and forward to the auditor by the 5th business day after month end 18 accounts X 12 = 216",null,null,null,null,null,null,null,"3269","142","Y","272","Investigations","EACH","OUTPUT","ADOPTEDBUD",null,null,null,"Investigations","Number of defendants reviewed by Pretrial Services",null,{"$f":"'Data SBP Measures'!$AF2646&'Data SBP Measures'!$AE2646& \" - \"& 'Data SBP Measures'!$U2646","v":"Number of defendants reviewed by Pretrial ServicesInvestigations - 142"},{"$f":"_xlfn.XLOOKUP(VALUE(W2646),'Data SBP Programs'!O:O,'Data SBP Programs'!S:S)","v":"Investigations"}]
[{"$f":"'Data SBP Measures'!$AI1085&\" - \"&'Data SBP Measures'!$U1085","v":"Official Fees Accounting Division - 127"},{"$f":"'Data SBP Measures'!$AF1085","v":"Monthly –submit statistical reports to elected officials for review  by the 15th business day after month end 10 Officials X 12 = 120"},{"$f":"'Data SBP Measures'!$T1085","v":"2064"},{"$f":"'Data SBP Measures'!$U1085&B2648","v":"127Monthly –submit statistical reports to elected officials for review  by the 15th business day after month end 10 Officials X 12 = 120"},{"$f":"'Data SBP Measures'!$Y1085","v":"EACH"},null,null,null,null,null,"Official Fees Accounting Division - 127","Monthly –submit statistical reports to elected officials for review  by the 15th business day after month end 10 Officials X 12 = 120",null,null,null,null,null,null,null,"3277","137","Y","81","Human Resources - Recruiting","HOURS","INPUT","ADOPTEDBUD",null,null,null,"Human Resources - Recruiting","Event Hours",null,{"$f":"'Data SBP Measures'!$AF2648&'Data SBP Measures'!$AE2648& \" - \"& 'Data SBP Measures'!$U2648","v":"Event HoursHuman Resources - Recruiting - 137"},{"$f":"_xlfn.XLOOKUP(VALUE(W2648),'Data SBP Programs'!O:O,'Data SBP Programs'!S:S)","v":"Human Resources - Recruiting"}]
[{"$f":"'Data SBP Measures'!$AI1093&\" - \"&'Data SBP Measures'!$U1093","v":"Official Fees Accounting Division - 127"},{"$f":"'Data SBP Measures'!$AF1093","v":"Monthly/Annual – Submit Collection Improvement Reports to OCA 5 JP’s X 12 = 60 (Monthly), 5 JP’s X 1 = 5 (Annual)"},{"$f":"'Data SBP Measures'!$T1093","v":"2068"},{"$f":"'Data SBP Measures'!$U1093&B2652","v":"127Monthly/Annual – Submit Collection Improvement Reports to OCA 5 JP’s X 12 = 60 (Monthly), 5 JP’s X 1 = 5 (Annual)"},{"$f":"'Data SBP Measures'!$Y1093","v":"EACH"},null,null,null,null,null,"Official Fees Accounting Division - 127","Monthly/Annual – Submit Collection Improvement Reports to OCA 5 JP’s X 12 = 60 (Monthly), 5 JP’s X 1 = 5 (Annual)",null,null,null,null,null,null,null,"3290","137","Y","104","Reserves","EACH","EFFICIENCY","ADOPTEDBUD",null,null,null,"Reserves","No. of patrol shifts working as extra unit",null,{"$f":"'Data SBP Measures'!$AF2652&'Data SBP Measures'!$AE2652& \" - \"& 'Data SBP Measures'!$U2652","v":"No. of patrol shifts working as extra unitReserves - 137"},{"$f":"_xlfn.XLOOKUP(VALUE(W2652),'Data SBP Programs'!O:O,'Data SBP Programs'!S:S)","v":"Reserves"}]
[{"$f":"'Data SBP Measures'!$AI1094&\" - \"&'Data SBP Measures'!$U1094","v":"Official Fees Accounting Division - 127"},{"$f":"'Data SBP Measures'!$AF1094","v":"Monthly/Annual – Submit Collection Improvement Reports to OCA 5 JP’s X 12 = 60 (Monthly), 5 JP’s X 1 = 5 (Annual)"},{"$f":"'Data SBP Measures'!$T1094","v":"2068"},{"$f":"'Data SBP Measures'!$U1094&B2653","v":"127Monthly/Annual – Submit Collection Improvement Reports to OCA 5 JP’s X 12 = 60 (Monthly), 5 JP’s X 1 = 5 (Annual)"},{"$f":"'Data SBP Measures'!$Y1094","v":"EACH"},null,null,null,null,null,"Official Fees Accounting Division - 127","Monthly/Annual – Submit Collection Improvement Reports to OCA 5 JP’s X 12 = 60 (Monthly), 5 JP’s X 1 = 5 (Annual)",null,null,null,null,null,null,null,"3291","137","Y","104","Reserves","EACH","EFFICIENCY","ADOPTEDBUD",null,null,null,"Reserves","No. of SWAT call outs",null,{"$f":"'Data SBP Measures'!$AF2653&'Data SBP Measures'!$AE2653& \" - \"& 'Data SBP Measures'!$U2653","v":"No. of SWAT call outsReserves - 137"},{"$f":"_xlfn.XLOOKUP(VALUE(W2653),'Data SBP Programs'!O:O,'Data SBP Programs'!S:S)","v":"Reserves"}]
[{"$f":"'Data SBP Measures'!$AI2922&\" - \"&'Data SBP Measures'!$U2922","v":"Offsite Storage - 112"},{"$f":"'Data SBP Measures'!$AF2922","v":"# Cu. Ft. of new boxes of records sent to offsite storage"},{"$f":"'Data SBP Measures'!$T2922","v":"3434"},{"$f":"'Data SBP Measures'!$U2922&B2656","v":"112# Cu. Ft. of new boxes of records sent to offsite storage"},{"$f":"'Data SBP Measures'!$Y2922","v":"EACH"},null,null,null,null,null,"Offsite Storage - 112","# Cu. Ft. of new boxes of records sent to offsite storage",null,null,null,null,null,null,null,"3294","137","Y","107","Training Academy","HOURS","INPUT","ADOPTEDBUD",null,null,null,"Training Academy","No. of student hours",null,{"$f":"'Data SBP Measures'!$AF2656&'Data SBP Measures'!$AE2656& \" - \"& 'Data SBP Measures'!$U2656","v":"No. of student hoursTraining Academy - 137"},{"$f":"_xlfn.XLOOKUP(VALUE(W2656),'Data SBP Programs'!O:O,'Data SBP Programs'!S:S)","v":"Training Academy"}]
[{"$f":"'Data SBP Measures'!$AI2924&\" - \"&'Data SBP Measures'!$U2924","v":"Offsite Storage - 112"},{"$f":"'Data SBP Measures'!$AF2924","v":"Number of cu. ft. permanently removed from storage."},{"$f":"'Data SBP Measures'!$T2924","v":"3436"},{"$f":"'Data SBP Measures'!$U2924&B2657","v":"112Number of cu. ft. permanently removed from storage."},{"$f":"'Data SBP Measures'!$Y2924","v":"EACH"},null,null,null,null,null,"Offsite Storage - 112","Number of cu. ft. permanently removed from storage.",null,null,null,null,null,null,null,"3295","137","Y","107","Training Academy","HOURS","INPUT","ADOPTEDBUD",null,null,null,"Training Academy","No. of class hours",null,{"$f":"'Data SBP Measures'!$AF2657&'Data SBP Measures'!$AE2657& \" - \"& 'Data SBP Measures'!$U2657","v":"No. of class hoursTraining Academy - 137"},{"$f":"_xlfn.XLOOKUP(VALUE(W2657),'Data SBP Programs'!O:O,'Data SBP Programs'!S:S)","v":"Training Academy"}]
[{"$f":"'Data SBP Measures'!$AI3621&\" - \"&'Data SBP Measures'!$U3621","v":"On-Site Wastewater - 149"},{"$f":"'Data SBP Measures'!$AF3621","v":"# of Complaint Responses and Enforcement Issues"},{"$f":"'Data SBP Measures'!$T3621","v":"993"},{"$f":"'Data SBP Measures'!$U3621&B2661","v":"149# of Complaint Responses and Enforcement Issues"},{"$f":"'Data SBP Measures'!$Y3621","v":"EACH"},null,null,null,null,null,"On-Site Wastewater - 149","# of Complaint Responses and Enforcement Issues",null,null,null,null,null,null,null,"3299","137","Y","107","Training Academy","EACH","INPUT","ADOPTEDBUD",null,null,null,"Training Academy","No. of classes",null,{"$f":"'Data SBP Measures'!$AF2661&'Data SBP Measures'!$AE2661& \" - \"& 'Data SBP Measures'!$U2661","v":"No. of classesTraining Academy - 137"},{"$f":"_xlfn.XLOOKUP(VALUE(W2661),'Data SBP Programs'!O:O,'Data SBP Programs'!S:S)","v":"Training Academy"}]
[{"$f":"'Data SBP Measures'!$AI3622&\" - \"&'Data SBP Measures'!$U3622","v":"On-Site Wastewater - 149"},{"$f":"'Data SBP Measures'!$AF3622","v":"# of Construction Inspections"},{"$f":"'Data SBP Measures'!$T3622","v":"994"},{"$f":"'Data SBP Measures'!$U3622&B2662","v":"149# of Construction Inspections"},{"$f":"'Data SBP Measures'!$Y3622","v":"EACH"},null,null,null,null,null,"On-Site Wastewater - 149","# of Construction Inspections",null,null,null,null,null,null,null,"33","109","Y","10","Budget","RATING_SP","OUTCOME","ADOPTEDBUD",null,null,null,"Budget","County bond rating - Standard and Poor's (AAA=1, AA =2; ... ; D=15)",null,{"$f":"'Data SBP Measures'!$AF2662&'Data SBP Measures'!$AE2662& \" - \"& 'Data SBP Measures'!$U2662","v":"County bond rating - Standard and Poor's (AAA=1, AA =2; ... ; D=15)Budget - 109"},{"$f":"_xlfn.XLOOKUP(VALUE(W2662),'Data SBP Programs'!O:O,'Data SBP Programs'!S:S)","v":"Budget"}]
[{"$f":"'Data SBP Measures'!$AI503&\" - \"&'Data SBP Measures'!$U503","v":"On-Site Wastewater - 149"},{"$f":"'Data SBP Measures'!$AF503","v":"# of OSSF permit reviews"},{"$f":"'Data SBP Measures'!$T503","v":"1550"},{"$f":"'Data SBP Measures'!$U503&B2665","v":"149# of OSSF permit reviews"},{"$f":"'Data SBP Measures'!$Y503","v":"EACH"},null,null,null,null,null,"On-Site Wastewater - 149","# of OSSF permit reviews",null,null,null,null,null,null,null,"3302","137","Y","64","Correctional Security","HOURS","INPUT","ADOPTEDBUD",null,null,null,"Correctional Security","No. of hours on jail cases",null,{"$f":"'Data SBP Measures'!$AF2665&'Data SBP Measures'!$AE2665& \" - \"& 'Data SBP Measures'!$U2665","v":"No. of hours on jail casesCorrectional Security - 137"},{"$f":"_xlfn.XLOOKUP(VALUE(W2665),'Data SBP Programs'!O:O,'Data SBP Programs'!S:S)","v":"Correctional Security"}]
[{"$f":"'Data SBP Measures'!$AI498&\" - \"&'Data SBP Measures'!$U498","v":"On-Site Wastewater - 149"},{"$f":"'Data SBP Measures'!$AF498","v":"# of OSSF verifications (for Development Permits)"},{"$f":"'Data SBP Measures'!$T498","v":"1546"},{"$f":"'Data SBP Measures'!$U498&B2667","v":"149# of OSSF verifications (for Development Permits)"},{"$f":"'Data SBP Measures'!$Y498","v":"EACH"},null,null,null,null,null,"On-Site Wastewater - 149","# of OSSF verifications (for Development Permits)",null,null,null,null,null,null,null,"3302","137","Y","64","Correctional Security","HOURS","INPUT","ADOPTEDBUD",null,null,null,"Correctional Security","No. of hours on jail cases",null,{"$f":"'Data SBP Measures'!$AF2667&'Data SBP Measures'!$AE2667& \" - \"& 'Data SBP Measures'!$U2667","v":"No. of hours on jail casesCorrectional Security - 137"},{"$f":"_xlfn.XLOOKUP(VALUE(W2667),'Data SBP Programs'!O:O,'Data SBP Programs'!S:S)","v":"Correctional Security"}]
[{"$f":"'Data SBP Measures'!$AI3&\" - \"&'Data SBP Measures'!$U3","v":"On-Site Wastewater - 149"},{"$f":"'Data SBP Measures'!$AF3","v":"% of Construction Inspections completed the next day"},{"$f":"'Data SBP Measures'!$T3","v":"1000"},{"$f":"'Data SBP Measures'!$U3&B2671","v":"149% of Construction Inspections completed the next day"},{"$f":"'Data SBP Measures'!$Y3","v":"PERCENT"},null,null,null,null,null,"On-Site Wastewater - 149","% of Construction Inspections completed the next day",null,null,null,null,null,null,null,"3304","137","Y","64","Correctional Security","HOURS","INPUT","ADOPTEDBUD",null,null,null,"Correctional Security","No. of hours on LE cases",null,{"$f":"'Data SBP Measures'!$AF2671&'Data SBP Measures'!$AE2671& \" - \"& 'Data SBP Measures'!$U2671","v":"No. of hours on LE casesCorrectional Security - 137"},{"$f":"_xlfn.XLOOKUP(VALUE(W2671),'Data SBP Programs'!O:O,'Data SBP Programs'!S:S)","v":"Correctional Security"}]
[{"$f":"'Data SBP Measures'!$AI4&\" - \"&'Data SBP Measures'!$U4","v":"On-Site Wastewater - 149"},{"$f":"'Data SBP Measures'!$AF4","v":"% of Driveway Inspections Completed the next day"},{"$f":"'Data SBP Measures'!$T4","v":"1001"},{"$f":"'Data SBP Measures'!$U4&B2672","v":"149% of Driveway Inspections Completed the next day"},{"$f":"'Data SBP Measures'!$Y4","v":"PERCENT"},null,null,null,null,null,"On-Site Wastewater - 149","% of Driveway Inspections Completed the next day",null,null,null,null,null,null,null,"3304","137","Y","64","Correctional Security","HOURS","INPUT","ADOPTEDBUD",null,null,null,"Correctional Security","No. of hours on LE cases",null,{"$f":"'Data SBP Measures'!$AF2672&'Data SBP Measures'!$AE2672& \" - \"& 'Data SBP Measures'!$U2672","v":"No. of hours on LE casesCorrectional Security - 137"},{"$f":"_xlfn.XLOOKUP(VALUE(W2672),'Data SBP Programs'!O:O,'Data SBP Programs'!S:S)","v":"Correctional Security"}]
[{"$f":"'Data SBP Measures'!$AI3429&\" - \"&'Data SBP Measures'!$U3429","v":"Operations - 123"},{"$f":"'Data SBP Measures'!$AF3429","v":"# of hot checks filed by merchants"},{"$f":"'Data SBP Measures'!$T3429","v":"744"},{"$f":"'Data SBP Measures'!$U3429&B2675","v":"123# of hot checks filed by merchants"},{"$f":"'Data SBP Measures'!$Y3429","v":"EACH"},null,null,null,null,null,"Operations - 123","# of hot checks filed by merchants",null,null,null,null,null,null,null,"3305","137","Y","64","Correctional Security","HOURS","OUTCOME","ADOPTEDBUD",null,null,null,"Correctional Security","Mandatory OT",null,{"$f":"'Data SBP Measures'!$AF2675&'Data SBP Measures'!$AE2675& \" - \"& 'Data SBP Measures'!$U2675","v":"Mandatory OTCorrectional Security - 137"},{"$f":"_xlfn.XLOOKUP(VALUE(W2675),'Data SBP Programs'!O:O,'Data SBP Programs'!S:S)","v":"Correctional Security"}]
[{"$f":"'Data SBP Measures'!$AI3426&\" - \"&'Data SBP Measures'!$U3426","v":"Operations - 123"},{"$f":"'Data SBP Measures'!$AF3426","v":"# of no complaint cases processed"},{"$f":"'Data SBP Measures'!$T3426","v":"741"},{"$f":"'Data SBP Measures'!$U3426&B2676","v":"123# of no complaint cases processed"},{"$f":"'Data SBP Measures'!$Y3426","v":"EACH"},null,null,null,null,null,"Operations - 123","# of no complaint cases processed",null,null,null,null,null,null,null,"3305","137","Y","64","Correctional Security","HOURS","OUTCOME","ADOPTEDBUD",null,null,null,"Correctional Security","Mandatory OT",null,{"$f":"'Data SBP Measures'!$AF2676&'Data SBP Measures'!$AE2676& \" - \"& 'Data SBP Measures'!$U2676","v":"Mandatory OTCorrectional Security - 137"},{"$f":"_xlfn.XLOOKUP(VALUE(W2676),'Data SBP Programs'!O:O,'Data SBP Programs'!S:S)","v":"Correctional Security"}]
[{"$f":"'Data SBP Measures'!$AI3421&\" - \"&'Data SBP Measures'!$U3421","v":"Operations - 123"},{"$f":"'Data SBP Measures'!$AF3421","v":"# of personnel actions processed"},{"$f":"'Data SBP Measures'!$T3421","v":"736"},{"$f":"'Data SBP Measures'!$U3421&B2680","v":"123# of personnel actions processed"},{"$f":"'Data SBP Measures'!$Y3421","v":"EACH"},null,null,null,null,null,"Operations - 123","# of personnel actions processed",null,null,null,null,null,null,null,"3307","137","Y","64","Correctional Security","HOURS","EFFICIENCY","ADOPTEDBUD",null,null,null,"Correctional Security","No. of hours on events trainings presentation",null,{"$f":"'Data SBP Measures'!$AF2680&'Data SBP Measures'!$AE2680& \" - \"& 'Data SBP Measures'!$U2680","v":"No. of hours on events trainings presentationCorrectional Security - 137"},{"$f":"_xlfn.XLOOKUP(VALUE(W2680),'Data SBP Programs'!O:O,'Data SBP Programs'!S:S)","v":"Correctional Security"}]
[{"$f":"'Data SBP Measures'!$AI3484&\" - \"&'Data SBP Measures'!$U3484","v":"Operations - 123"},{"$f":"'Data SBP Measures'!$AF3484","v":"# Victims served (number of victims assisted)"},{"$f":"'Data SBP Measures'!$T3484","v":"810"},{"$f":"'Data SBP Measures'!$U3484&B2681","v":"123# Victims served (number of victims assisted)"},{"$f":"'Data SBP Measures'!$Y3484","v":"EACH"},null,null,null,null,null,"Operations - 123","# Victims served (number of victims assisted)",null,null,null,null,null,null,null,"3307","137","Y","64","Correctional Security","HOURS","EFFICIENCY","ADOPTEDBUD",null,null,null,"Correctional Security","No. of hours on events trainings presentation",null,{"$f":"'Data SBP Measures'!$AF2681&'Data SBP Measures'!$AE2681& \" - \"& 'Data SBP Measures'!$U2681","v":"No. of hours on events trainings presentationCorrectional Security - 137"},{"$f":"_xlfn.XLOOKUP(VALUE(W2681),'Data SBP Programs'!O:O,'Data SBP Programs'!S:S)","v":"Correctional Security"}]
[{"$f":"'Data SBP Measures'!$AI3416&\" - \"&'Data SBP Measures'!$U3416","v":"Operations - 123"},{"$f":"'Data SBP Measures'!$AF3416","v":"% of IT training held within 3 days of hire date"},{"$f":"'Data SBP Measures'!$T3416","v":"730"},{"$f":"'Data SBP Measures'!$U3416&B2684","v":"123% of IT training held within 3 days of hire date"},{"$f":"'Data SBP Measures'!$Y3416","v":"PERCENT"},null,null,null,null,null,"Operations - 123","% of IT training held within 3 days of hire date",null,null,null,null,null,null,null,"3308","137","Y","64","Correctional Security","EACH","INPUT","ADOPTEDBUD",null,null,null,"Correctional Security","Total pieces of mail reviewed",null,{"$f":"'Data SBP Measures'!$AF2684&'Data SBP Measures'!$AE2684& \" - \"& 'Data SBP Measures'!$U2684","v":"Total pieces of mail reviewedCorrectional Security - 137"},{"$f":"_xlfn.XLOOKUP(VALUE(W2684),'Data SBP Programs'!O:O,'Data SBP Programs'!S:S)","v":"Correctional Security"}]
[{"$f":"'Data SBP Measures'!$AI3418&\" - \"&'Data SBP Measures'!$U3418","v":"Operations - 123"},{"$f":"'Data SBP Measures'!$AF3418","v":"% of payables processed within 5 days"},{"$f":"'Data SBP Measures'!$T3418","v":"733"},{"$f":"'Data SBP Measures'!$U3418&B2686","v":"123% of payables processed within 5 days"},{"$f":"'Data SBP Measures'!$Y3418","v":"PERCENT"},null,null,null,null,null,"Operations - 123","% of payables processed within 5 days",null,null,null,null,null,null,null,"3309","137","Y","64","Correctional Security","EACH","INPUT","ADOPTEDBUD",null,null,null,"Correctional Security","No. of hrs processing mail",null,{"$f":"'Data SBP Measures'!$AF2686&'Data SBP Measures'!$AE2686& \" - \"& 'Data SBP Measures'!$U2686","v":"No. of hrs processing mailCorrectional Security - 137"},{"$f":"_xlfn.XLOOKUP(VALUE(W2686),'Data SBP Programs'!O:O,'Data SBP Programs'!S:S)","v":"Correctional Security"}]
[{"$f":"'Data SBP Measures'!$AI3430&\" - \"&'Data SBP Measures'!$U3430","v":"Operations - 123"},{"$f":"'Data SBP Measures'!$AF3430","v":"Amount of restitution collected"},{"$f":"'Data SBP Measures'!$T3430","v":"745"},{"$f":"'Data SBP Measures'!$U3430&B2690","v":"123Amount of restitution collected"},{"$f":"'Data SBP Measures'!$Y3430","v":"DOLLARS"},null,null,null,null,null,"Operations - 123","Amount of restitution collected",null,null,null,null,null,null,null,"3310","137","Y","64","Correctional Security","EACH","OUTPUT","ADOPTEDBUD",null,null,null,"Correctional Security","No. of gang confirmation",null,{"$f":"'Data SBP Measures'!$AF2690&'Data SBP Measures'!$AE2690& \" - \"& 'Data SBP Measures'!$U2690","v":"No. of gang confirmationCorrectional Security - 137"},{"$f":"_xlfn.XLOOKUP(VALUE(W2690),'Data SBP Programs'!O:O,'Data SBP Programs'!S:S)","v":"Correctional Security"}]
[{"$f":"'Data SBP Measures'!$AI3424&\" - \"&'Data SBP Measures'!$U3424","v":"Operations - 123"},{"$f":"'Data SBP Measures'!$AF3424","v":"Felony case files prepared"},{"$f":"'Data SBP Measures'!$T3424","v":"739"},{"$f":"'Data SBP Measures'!$U3424&B2691","v":"123Felony case files prepared"},{"$f":"'Data SBP Measures'!$Y3424","v":"EACH"},null,null,null,null,null,"Operations - 123","Felony case files prepared",null,null,null,null,null,null,null,"3310","137","Y","64","Correctional Security","EACH","OUTPUT","ADOPTEDBUD",null,null,null,"Correctional Security","No. of gang confirmation",null,{"$f":"'Data SBP Measures'!$AF2691&'Data SBP Measures'!$AE2691& \" - \"& 'Data SBP Measures'!$U2691","v":"No. of gang confirmationCorrectional Security - 137"},{"$f":"_xlfn.XLOOKUP(VALUE(W2691),'Data SBP Programs'!O:O,'Data SBP Programs'!S:S)","v":"Correctional Security"}]
[{"$f":"'Data SBP Measures'!$AI3411&\" - \"&'Data SBP Measures'!$U3411","v":"Operations - 123"},{"$f":"'Data SBP Measures'!$AF3411","v":"Projects Planned/Projects Implemented"},{"$f":"'Data SBP Measures'!$T3411","v":"725"},{"$f":"'Data SBP Measures'!$U3411&B2694","v":"123Projects Planned/Projects Implemented"},{"$f":"'Data SBP Measures'!$Y3411","v":"EACH"},null,null,null,null,null,"Operations - 123","Projects Planned/Projects Implemented",null,null,null,null,null,null,null,"3311","137","Y","64","Correctional Security","EACH","INPUT","ADOPTEDBUD",null,null,null,"Correctional Security","Gang Related Activity",null,{"$f":"'Data SBP Measures'!$AF2694&'Data SBP Measures'!$AE2694& \" - \"& 'Data SBP Measures'!$U2694","v":"Gang Related ActivityCorrectional Security - 137"},{"$f":"_xlfn.XLOOKUP(VALUE(W2694),'Data SBP Programs'!O:O,'Data SBP Programs'!S:S)","v":"Correctional Security"}]
[{"$f":"'Data SBP Measures'!$AI3412&\" - \"&'Data SBP Measures'!$U3412","v":"Operations - 123"},{"$f":"'Data SBP Measures'!$AF3412","v":"Ratio of IT Staff to Users"},{"$f":"'Data SBP Measures'!$T3412","v":"726"},{"$f":"'Data SBP Measures'!$U3412&B2695","v":"123Ratio of IT Staff to Users"},{"$f":"'Data SBP Measures'!$Y3412","v":"FTE"},null,null,null,null,null,"Operations - 123","Ratio of IT Staff to Users",null,null,null,null,null,null,null,"3312","137","Y","64","Correctional Security","EACH","INPUT","ADOPTEDBUD",null,null,null,"Correctional Security","No. of EPOs added to list",null,{"$f":"'Data SBP Measures'!$AF2695&'Data SBP Measures'!$AE2695& \" - \"& 'Data SBP Measures'!$U2695","v":"No. of EPOs added to listCorrectional Security - 137"},{"$f":"_xlfn.XLOOKUP(VALUE(W2695),'Data SBP Programs'!O:O,'Data SBP Programs'!S:S)","v":"Correctional Security"}]
[{"$f":"'Data SBP Measures'!$AI118&\" - \"&'Data SBP Measures'!$U118","v":"Parenting in Recovery - 158"},{"$f":"'Data SBP Measures'!$AF118","v":"PIR/FDTC number of unduplicated adults served by the program during the fiscal year"},{"$f":"'Data SBP Measures'!$T118","v":"1153"},{"$f":"'Data SBP Measures'!$U118&B2699","v":"158PIR/FDTC number of unduplicated adults served by the program during the fiscal year"},{"$f":"'Data SBP Measures'!$Y118","v":"EACH"},null,null,null,null,null,"Parenting in Recovery - 158","PIR/FDTC number of unduplicated adults served by the program during the fiscal year",null,null,null,null,null,null,null,"3313","137","Y","64","Correctional Security","EACH","OUTCOME","ADOPTEDBUD",null,null,null,"Correctional Security","No. of EPOs removed from the list",null,{"$f":"'Data SBP Measures'!$AF2699&'Data SBP Measures'!$AE2699& \" - \"& 'Data SBP Measures'!$U2699","v":"No. of EPOs removed from the listCorrectional Security - 137"},{"$f":"_xlfn.XLOOKUP(VALUE(W2699),'Data SBP Programs'!O:O,'Data SBP Programs'!S:S)","v":"Correctional Security"}]
[{"$f":"'Data SBP Measures'!$AI112&\" - \"&'Data SBP Measures'!$U112","v":"Parenting in Recovery - 158"},{"$f":"'Data SBP Measures'!$AF112","v":"PIR/FDTC percentage children who are in care of a parent at discharge"},{"$f":"'Data SBP Measures'!$T112","v":"1144"},{"$f":"'Data SBP Measures'!$U112&B2700","v":"158PIR/FDTC percentage children who are in care of a parent at discharge"},{"$f":"'Data SBP Measures'!$Y112","v":"PERCENT"},null,null,null,null,null,"Parenting in Recovery - 158","PIR/FDTC percentage children who are in care of a parent at discharge",null,null,null,null,null,null,null,"3313","137","Y","64","Correctional Security","EACH","OUTCOME","ADOPTEDBUD",null,null,null,"Correctional Security","No. of EPOs removed from the list",null,{"$f":"'Data SBP Measures'!$AF2700&'Data SBP Measures'!$AE2700& \" - \"& 'Data SBP Measures'!$U2700","v":"No. of EPOs removed from the listCorrectional Security - 137"},{"$f":"_xlfn.XLOOKUP(VALUE(W2700),'Data SBP Programs'!O:O,'Data SBP Programs'!S:S)","v":"Correctional Security"}]
[{"$f":"'Data SBP Measures'!$AI116&\" - \"&'Data SBP Measures'!$U116","v":"Parenting in Recovery - 158"},{"$f":"'Data SBP Measures'!$AF116","v":"PIR/FDTC percentage of participants able to access residential substance abuse treatment within 10 days"},{"$f":"'Data SBP Measures'!$T116","v":"1151"},{"$f":"'Data SBP Measures'!$U116&B2703","v":"158PIR/FDTC percentage of participants able to access residential substance abuse treatment within 10 days"},{"$f":"'Data SBP Measures'!$Y116","v":"PERCENT"},null,null,null,null,null,"Parenting in Recovery - 158","PIR/FDTC percentage of participants able to access residential substance abuse treatment within 10 days",null,null,null,null,null,null,null,"3316","114","Y","116","Security Management","DAYS","EFFICIENCY","ADOPTEDBUD",null,null,null,"Security Management","Construction schedule variance",null,{"$f":"'Data SBP Measures'!$AF2703&'Data SBP Measures'!$AE2703& \" - \"& 'Data SBP Measures'!$U2703","v":"Construction schedule varianceSecurity Management - 114"},{"$f":"_xlfn.XLOOKUP(VALUE(W2703),'Data SBP Programs'!O:O,'Data SBP Programs'!S:S)","v":"Security Management"}]
[{"$f":"'Data SBP Measures'!$AI117&\" - \"&'Data SBP Measures'!$U117","v":"Parenting in Recovery - 158"},{"$f":"'Data SBP Measures'!$AF117","v":"PIR/FDTC percentage of participants that complete residential substance abuse treatment"},{"$f":"'Data SBP Measures'!$T117","v":"1152"},{"$f":"'Data SBP Measures'!$U117&B2705","v":"158PIR/FDTC percentage of participants that complete residential substance abuse treatment"},{"$f":"'Data SBP Measures'!$Y117","v":"PERCENT"},null,null,null,null,null,"Parenting in Recovery - 158","PIR/FDTC percentage of participants that complete residential substance abuse treatment",null,null,null,null,null,null,null,"3318","114","Y","116","Security Management","EACH","OUTPUT","ADOPTEDBUD",null,null,null,"Security Management","# of County employees completing security/safety training",null,{"$f":"'Data SBP Measures'!$AF2705&'Data SBP Measures'!$AE2705& \" - \"& 'Data SBP Measures'!$U2705","v":"# of County employees completing security/safety trainingSecurity Management - 114"},{"$f":"_xlfn.XLOOKUP(VALUE(W2705),'Data SBP Programs'!O:O,'Data SBP Programs'!S:S)","v":"Security Management"}]
[{"$f":"'Data SBP Measures'!$AI7&\" - \"&'Data SBP Measures'!$U7","v":"Park Services - 149"},{"$f":"'Data SBP Measures'!$AF7","v":"Number of Native Trees Planted"},{"$f":"'Data SBP Measures'!$T7","v":"1005"},{"$f":"'Data SBP Measures'!$U7&B2709","v":"149Number of Native Trees Planted"},{"$f":"'Data SBP Measures'!$Y7","v":"EACH"},null,null,null,null,null,"Park Services - 149","Number of Native Trees Planted",null,null,null,null,null,null,null,"3322","114","Y","116","Security Management","PERCENT","EFFICIENCY","ADOPTEDBUD",null,null,null,"Security Management","% of electronic security work orders completed on schedule",null,{"$f":"'Data SBP Measures'!$AF2709&'Data SBP Measures'!$AE2709& \" - \"& 'Data SBP Measures'!$U2709","v":"% of electronic security work orders completed on scheduleSecurity Management - 114"},{"$f":"_xlfn.XLOOKUP(VALUE(W2709),'Data SBP Programs'!O:O,'Data SBP Programs'!S:S)","v":"Security Management"}]
[{"$f":"'Data SBP Measures'!$AI8&\" - \"&'Data SBP Measures'!$U8","v":"Park Services - 149"},{"$f":"'Data SBP Measures'!$AF8","v":"Number of Priority 1 Hazardous Trees Removed or Pruned"},{"$f":"'Data SBP Measures'!$T8","v":"1006"},{"$f":"'Data SBP Measures'!$U8&B2710","v":"149Number of Priority 1 Hazardous Trees Removed or Pruned"},{"$f":"'Data SBP Measures'!$Y8","v":"EACH"},null,null,null,null,null,"Park Services - 149","Number of Priority 1 Hazardous Trees Removed or Pruned",null,null,null,null,null,null,null,"3325","110","Y","287","Media Services","EACH","OUTPUT","ADOPTEDBUD",null,null,null,"Media Services","Still Photography Projects",null,{"$f":"'Data SBP Measures'!$AF2710&'Data SBP Measures'!$AE2710& \" - \"& 'Data SBP Measures'!$U2710","v":"Still Photography ProjectsMedia Services - 110"},{"$f":"_xlfn.XLOOKUP(VALUE(W2710),'Data SBP Programs'!O:O,'Data SBP Programs'!S:S)","v":"Media Services"}]
[{"$f":"'Data SBP Measures'!$AI1993&\" - \"&'Data SBP Measures'!$U1993","v":"Pathology - 138"},{"$f":"'Data SBP Measures'!$AF1993","v":"Autopsies from Other Counties"},{"$f":"'Data SBP Measures'!$T1993","v":"2579"},{"$f":"'Data SBP Measures'!$U1993&B2713","v":"138Autopsies from Other Counties"},{"$f":"'Data SBP Measures'!$Y1993","v":"EACH"},null,null,null,null,null,"Pathology - 138","Autopsies from Other Counties",null,null,null,null,null,null,null,"3328","108","Y","22","Administration","PERCENT","OUTPUT","NEITHER",null,null,null,"Administration","% of goals actively monitored",null,{"$f":"'Data SBP Measures'!$AF2713&'Data SBP Measures'!$AE2713& \" - \"& 'Data SBP Measures'!$U2713","v":"% of goals actively monitoredAdministration - 108"},{"$f":"_xlfn.XLOOKUP(VALUE(W2713),'Data SBP Programs'!O:O,'Data SBP Programs'!S:S)","v":"Administration"}]
[{"$f":"'Data SBP Measures'!$AI1994&\" - \"&'Data SBP Measures'!$U1994","v":"Pathology - 138"},{"$f":"'Data SBP Measures'!$AF1994","v":"Autopsies from Other Counties"},{"$f":"'Data SBP Measures'!$T1994","v":"2579"},{"$f":"'Data SBP Measures'!$U1994&B2714","v":"138Autopsies from Other Counties"},{"$f":"'Data SBP Measures'!$Y1994","v":"EACH"},null,null,null,null,null,"Pathology - 138","Autopsies from Other Counties",null,null,null,null,null,null,null,"3329","108","Y","22","Administration","PERCENT","OUTCOME","ADOPTEDBUD",null,null,null,"Administration","% of goals on target",null,{"$f":"'Data SBP Measures'!$AF2714&'Data SBP Measures'!$AE2714& \" - \"& 'Data SBP Measures'!$U2714","v":"% of goals on targetAdministration - 108"},{"$f":"_xlfn.XLOOKUP(VALUE(W2714),'Data SBP Programs'!O:O,'Data SBP Programs'!S:S)","v":"Administration"}]
[{"$f":"'Data SBP Measures'!$AI1990&\" - \"&'Data SBP Measures'!$U1990","v":"Pathology - 138"},{"$f":"'Data SBP Measures'!$AF1990","v":"Travis County Autopsies"},{"$f":"'Data SBP Measures'!$T1990","v":"2577"},{"$f":"'Data SBP Measures'!$U1990&B2718","v":"138Travis County Autopsies"},{"$f":"'Data SBP Measures'!$Y1990","v":"EACH"},null,null,null,null,null,"Pathology - 138","Travis County Autopsies",null,null,null,null,null,null,null,"3331","159","Y","291","Clinical Performance and Education","PERCENT","OUTCOME","ADOPTEDBUD",null,null,null,"Clinical Performance and Education","% of care providers receiving quarterly education",null,{"$f":"'Data SBP Measures'!$AF2718&'Data SBP Measures'!$AE2718& \" - \"& 'Data SBP Measures'!$U2718","v":"% of care providers receiving quarterly educationClinical Performance and Education - 159"},{"$f":"_xlfn.XLOOKUP(VALUE(W2718),'Data SBP Programs'!O:O,'Data SBP Programs'!S:S)","v":"Clinical Performance and Education"}]
[{"$f":"'Data SBP Measures'!$AI1991&\" - \"&'Data SBP Measures'!$U1991","v":"Pathology - 138"},{"$f":"'Data SBP Measures'!$AF1991","v":"Travis County External Exams"},{"$f":"'Data SBP Measures'!$T1991","v":"2578"},{"$f":"'Data SBP Measures'!$U1991&B2719","v":"138Travis County External Exams"},{"$f":"'Data SBP Measures'!$Y1991","v":"EACH"},null,null,null,null,null,"Pathology - 138","Travis County External Exams",null,null,null,null,null,null,null,"3331","159","Y","291","Clinical Performance and Education","PERCENT","OUTCOME","ADOPTEDBUD",null,null,null,"Clinical Performance and Education","% of care providers receiving quarterly education",null,{"$f":"'Data SBP Measures'!$AF2719&'Data SBP Measures'!$AE2719& \" - \"& 'Data SBP Measures'!$U2719","v":"% of care providers receiving quarterly educationClinical Performance and Education - 159"},{"$f":"_xlfn.XLOOKUP(VALUE(W2719),'Data SBP Programs'!O:O,'Data SBP Programs'!S:S)","v":"Clinical Performance and Education"}]
[{"$f":"'Data SBP Measures'!$AI438&\" - \"&'Data SBP Measures'!$U438","v":"Patrol - 137"},{"$f":"'Data SBP Measures'!$AF438","v":"No. false alarms responded to"},{"$f":"'Data SBP Measures'!$T438","v":"1464"},{"$f":"'Data SBP Measures'!$U438&B2722","v":"137No. false alarms responded to"},{"$f":"'Data SBP Measures'!$Y438","v":"EACH"},null,null,null,null,null,"Patrol - 137","No. false alarms responded to",null,null,null,null,null,null,null,"3332","159","Y","291","Clinical Performance and Education","EACH","OUTCOME","ADOPTEDBUD",null,null,null,"Clinical Performance and Education","# of providers credentialed",null,{"$f":"'Data SBP Measures'!$AF2722&'Data SBP Measures'!$AE2722& \" - \"& 'Data SBP Measures'!$U2722","v":"# of providers credentialedClinical Performance and Education - 159"},{"$f":"_xlfn.XLOOKUP(VALUE(W2722),'Data SBP Programs'!O:O,'Data SBP Programs'!S:S)","v":"Clinical Performance and Education"}]
[{"$f":"'Data SBP Measures'!$AI440&\" - \"&'Data SBP Measures'!$U440","v":"Patrol - 137"},{"$f":"'Data SBP Measures'!$AF440","v":"No. LE officers killed or assaulted"},{"$f":"'Data SBP Measures'!$T440","v":"1466"},{"$f":"'Data SBP Measures'!$U440&B2724","v":"137No. LE officers killed or assaulted"},{"$f":"'Data SBP Measures'!$Y440","v":"EACH"},null,null,null,null,null,"Patrol - 137","No. LE officers killed or assaulted",null,null,null,null,null,null,null,"3333","159","Y","291","Clinical Performance and Education","EACH","OUTPUT","ADOPTEDBUD",null,null,null,"Clinical Performance and Education","# of revisions/enhancements to operating guidelines",null,{"$f":"'Data SBP Measures'!$AF2724&'Data SBP Measures'!$AE2724& \" - \"& 'Data SBP Measures'!$U2724","v":"# of revisions/enhancements to operating guidelinesClinical Performance and Education - 159"},{"$f":"_xlfn.XLOOKUP(VALUE(W2724),'Data SBP Programs'!O:O,'Data SBP Programs'!S:S)","v":"Clinical Performance and Education"}]
[{"$f":"'Data SBP Measures'!$AI444&\" - \"&'Data SBP Measures'!$U444","v":"Patrol - 137"},{"$f":"'Data SBP Measures'!$AF444","v":"No. of offenses reported"},{"$f":"'Data SBP Measures'!$T444","v":"1470"},{"$f":"'Data SBP Measures'!$U444&B2728","v":"137No. of offenses reported"},{"$f":"'Data SBP Measures'!$Y444","v":"EACH"},null,null,null,null,null,"Patrol - 137","No. of offenses reported",null,null,null,null,null,null,null,"3334","159","Y","291","Clinical Performance and Education","EACH","OUTPUT","ADOPTEDBUD",null,null,null,"Clinical Performance and Education","# of coordination meetings with City of Austin EMS/OMD",null,{"$f":"'Data SBP Measures'!$AF2728&'Data SBP Measures'!$AE2728& \" - \"& 'Data SBP Measures'!$U2728","v":"# of coordination meetings with City of Austin EMS/OMDClinical Performance and Education - 159"},{"$f":"_xlfn.XLOOKUP(VALUE(W2728),'Data SBP Programs'!O:O,'Data SBP Programs'!S:S)","v":"Clinical Performance and Education"}]
[{"$f":"'Data SBP Measures'!$AI445&\" - \"&'Data SBP Measures'!$U445","v":"Patrol - 137"},{"$f":"'Data SBP Measures'!$AF445","v":"No. of persons over 18 arrested"},{"$f":"'Data SBP Measures'!$T445","v":"1471"},{"$f":"'Data SBP Measures'!$U445&B2729","v":"137No. of persons over 18 arrested"},{"$f":"'Data SBP Measures'!$Y445","v":"EACH"},null,null,null,null,null,"Patrol - 137","No. of persons over 18 arrested",null,null,null,null,null,null,null,"3334","159","Y","291","Clinical Performance and Education","EACH","OUTPUT","ADOPTEDBUD",null,null,null,"Clinical Performance and Education","# of coordination meetings with City of Austin EMS/OMD",null,{"$f":"'Data SBP Measures'!$AF2729&'Data SBP Measures'!$AE2729& \" - \"& 'Data SBP Measures'!$U2729","v":"# of coordination meetings with City of Austin EMS/OMDClinical Performance and Education - 159"},{"$f":"_xlfn.XLOOKUP(VALUE(W2729),'Data SBP Programs'!O:O,'Data SBP Programs'!S:S)","v":"Clinical Performance and Education"}]
[{"$f":"'Data SBP Measures'!$AI448&\" - \"&'Data SBP Measures'!$U448","v":"Patrol - 137"},{"$f":"'Data SBP Measures'!$AF448","v":"No. weapons seized"},{"$f":"'Data SBP Measures'!$T448","v":"1474"},{"$f":"'Data SBP Measures'!$U448&B2732","v":"137No. weapons seized"},{"$f":"'Data SBP Measures'!$Y448","v":"EACH"},null,null,null,null,null,"Patrol - 137","No. weapons seized",null,null,null,null,null,null,null,"3335","159","Y","291","Clinical Performance and Education","EACH","OUTPUT","ADOPTEDBUD",null,null,null,"Clinical Performance and Education","# of multi-agency training events",null,{"$f":"'Data SBP Measures'!$AF2732&'Data SBP Measures'!$AE2732& \" - \"& 'Data SBP Measures'!$U2732","v":"# of multi-agency training eventsClinical Performance and Education - 159"},{"$f":"_xlfn.XLOOKUP(VALUE(W2732),'Data SBP Programs'!O:O,'Data SBP Programs'!S:S)","v":"Clinical Performance and Education"}]
[{"$f":"'Data SBP Measures'!$AI624&\" - \"&'Data SBP Measures'!$U624","v":"Patrol - 137"},{"$f":"'Data SBP Measures'!$AF624","v":"Number of priority 1 calls"},{"$f":"'Data SBP Measures'!$T624","v":"1667"},{"$f":"'Data SBP Measures'!$U624&B2733","v":"137Number of priority 1 calls"},{"$f":"'Data SBP Measures'!$Y624","v":"EACH"},null,null,null,null,null,"Patrol - 137","Number of priority 1 calls",null,null,null,null,null,null,null,"3335","159","Y","291","Clinical Performance and Education","EACH","OUTPUT","ADOPTEDBUD",null,null,null,"Clinical Performance and Education","# of multi-agency training events",null,{"$f":"'Data SBP Measures'!$AF2733&'Data SBP Measures'!$AE2733& \" - \"& 'Data SBP Measures'!$U2733","v":"# of multi-agency training eventsClinical Performance and Education - 159"},{"$f":"_xlfn.XLOOKUP(VALUE(W2733),'Data SBP Programs'!O:O,'Data SBP Programs'!S:S)","v":"Clinical Performance and Education"}]
[{"$f":"'Data SBP Measures'!$AI450&\" - \"&'Data SBP Measures'!$U450","v":"Patrol - 137"},{"$f":"'Data SBP Measures'!$AF450","v":"Value of property stolen"},{"$f":"'Data SBP Measures'!$T450","v":"1476"},{"$f":"'Data SBP Measures'!$U450&B2737","v":"137Value of property stolen"},{"$f":"'Data SBP Measures'!$Y450","v":"DOLLARS"},null,null,null,null,null,"Patrol - 137","Value of property stolen",null,null,null,null,null,null,null,"3337","155","Y","181","Mental Health Public Defender","EACH","OUTPUT","BLACKBOOK",null,null,null,"Mental Health Public Defender","MHPD SJF & F3 cause #'s disposed (new measure as of 2023)",null,{"$f":"'Data SBP Measures'!$AF2737&'Data SBP Measures'!$AE2737& \" - \"& 'Data SBP Measures'!$U2737","v":"MHPD SJF & F3 cause #'s disposed (new measure as of 2023)Mental Health Public Defender - 155"},{"$f":"_xlfn.XLOOKUP(VALUE(W2737),'Data SBP Programs'!O:O,'Data SBP Programs'!S:S)","v":"Mental Health Public Defender"}]
[{"$f":"'Data SBP Measures'!$AI2044&\" - \"&'Data SBP Measures'!$U2044","v":"Phoenix Court - Prostitution Prevention Program - 140"},{"$f":"'Data SBP Measures'!$AF2044","v":"# Completed either IOP or IP Substance Abuse TX."},{"$f":"'Data SBP Measures'!$T2044","v":"2627"},{"$f":"'Data SBP Measures'!$U2044&B2738","v":"140# Completed either IOP or IP Substance Abuse TX."},{"$f":"'Data SBP Measures'!$Y2044","v":"EACH"},null,null,null,null,null,"Phoenix Court - Prostitution Prevention Program - 140","# Completed either IOP or IP Substance Abuse TX.",null,null,null,null,null,null,null,"3338","108","Y","308","Centralized Court Collections","EACH","INPUT","ADOPTEDBUD",null,null,null,"Centralized Court Collections","JP - # New Cases To Manage",null,{"$f":"'Data SBP Measures'!$AF2738&'Data SBP Measures'!$AE2738& \" - \"& 'Data SBP Measures'!$U2738","v":"JP - # New Cases To ManageCentralized Court Collections - 108"},{"$f":"_xlfn.XLOOKUP(VALUE(W2738),'Data SBP Programs'!O:O,'Data SBP Programs'!S:S)","v":"Centralized Court Collections"}]
[{"$f":"'Data SBP Measures'!$AI2046&\" - \"&'Data SBP Measures'!$U2046","v":"Phoenix Court - Prostitution Prevention Program - 140"},{"$f":"'Data SBP Measures'!$AF2046","v":"# Received Mental Health Services."},{"$f":"'Data SBP Measures'!$T2046","v":"2629"},{"$f":"'Data SBP Measures'!$U2046&B2741","v":"140# Received Mental Health Services."},{"$f":"'Data SBP Measures'!$Y2046","v":"EACH"},null,null,null,null,null,"Phoenix Court - Prostitution Prevention Program - 140","# Received Mental Health Services.",null,null,null,null,null,null,null,"3339","108","Y","308","Centralized Court Collections","EACH","OUTPUT","NEITHER",null,null,null,"Centralized Court Collections","JP - # of Bills of Cost/Past Due Letters",null,{"$f":"'Data SBP Measures'!$AF2741&'Data SBP Measures'!$AE2741& \" - \"& 'Data SBP Measures'!$U2741","v":"JP - # of Bills of Cost/Past Due LettersCentralized Court Collections - 108"},{"$f":"_xlfn.XLOOKUP(VALUE(W2741),'Data SBP Programs'!O:O,'Data SBP Programs'!S:S)","v":"Centralized Court Collections"}]
[{"$f":"'Data SBP Measures'!$AI2048&\" - \"&'Data SBP Measures'!$U2048","v":"Phoenix Court - Prostitution Prevention Program - 140"},{"$f":"'Data SBP Measures'!$AF2048","v":"% of clients who have an improvement in mental health"},{"$f":"'Data SBP Measures'!$T2048","v":"2630"},{"$f":"'Data SBP Measures'!$U2048&B2743","v":"140% of clients who have an improvement in mental health"},{"$f":"'Data SBP Measures'!$Y2048","v":"PERCENT"},null,null,null,null,null,"Phoenix Court - Prostitution Prevention Program - 140","% of clients who have an improvement in mental health",null,null,null,null,null,null,null,"3339","108","Y","308","Centralized Court Collections","EACH","OUTPUT","NEITHER",null,null,null,"Centralized Court Collections","JP - # of Bills of Cost/Past Due Letters",null,{"$f":"'Data SBP Measures'!$AF2743&'Data SBP Measures'!$AE2743& \" - \"& 'Data SBP Measures'!$U2743","v":"JP - # of Bills of Cost/Past Due LettersCentralized Court Collections - 108"},{"$f":"_xlfn.XLOOKUP(VALUE(W2743),'Data SBP Programs'!O:O,'Data SBP Programs'!S:S)","v":"Centralized Court Collections"}]
[{"$f":"'Data SBP Measures'!$AI2039&\" - \"&'Data SBP Measures'!$U2039","v":"Phoenix Court - Prostitution Prevention Program - 140"},{"$f":"'Data SBP Measures'!$AF2039","v":"Total Participants assessed"},{"$f":"'Data SBP Measures'!$T2039","v":"2622"},{"$f":"'Data SBP Measures'!$U2039&B2747","v":"140Total Participants assessed"},{"$f":"'Data SBP Measures'!$Y2039","v":"EACH"},null,null,null,null,null,"Phoenix Court - Prostitution Prevention Program - 140","Total Participants assessed",null,null,null,null,null,null,null,"3341","108","Y","308","Centralized Court Collections","EACH","OUTPUT","NEITHER",null,null,null,"Centralized Court Collections","JP - # Cases Recalled/Paid in Full",null,{"$f":"'Data SBP Measures'!$AF2747&'Data SBP Measures'!$AE2747& \" - \"& 'Data SBP Measures'!$U2747","v":"JP - # Cases Recalled/Paid in FullCentralized Court Collections - 108"},{"$f":"_xlfn.XLOOKUP(VALUE(W2747),'Data SBP Programs'!O:O,'Data SBP Programs'!S:S)","v":"Centralized Court Collections"}]
[{"$f":"'Data SBP Measures'!$AI2040&\" - \"&'Data SBP Measures'!$U2040","v":"Phoenix Court - Prostitution Prevention Program - 140"},{"$f":"'Data SBP Measures'!$AF2040","v":"Total Participants Enrolled"},{"$f":"'Data SBP Measures'!$T2040","v":"2623"},{"$f":"'Data SBP Measures'!$U2040&B2748","v":"140Total Participants Enrolled"},{"$f":"'Data SBP Measures'!$Y2040","v":"EACH"},null,null,null,null,null,"Phoenix Court - Prostitution Prevention Program - 140","Total Participants Enrolled",null,null,null,null,null,null,null,"3341","108","Y","308","Centralized Court Collections","EACH","OUTPUT","NEITHER",null,null,null,"Centralized Court Collections","JP - # Cases Recalled/Paid in Full",null,{"$f":"'Data SBP Measures'!$AF2748&'Data SBP Measures'!$AE2748& \" - \"& 'Data SBP Measures'!$U2748","v":"JP - # Cases Recalled/Paid in FullCentralized Court Collections - 108"},{"$f":"_xlfn.XLOOKUP(VALUE(W2748),'Data SBP Programs'!O:O,'Data SBP Programs'!S:S)","v":"Centralized Court Collections"}]
[{"$f":"'Data SBP Measures'!$AI14&\" - \"&'Data SBP Measures'!$U14","v":"Planning and Geographic Information Systems (GIS) - 149"},{"$f":"'Data SBP Measures'!$AF14","v":"# of bill analysis completed by TNR staff"},{"$f":"'Data SBP Measures'!$T14","v":"1015"},{"$f":"'Data SBP Measures'!$U14&B2751","v":"149# of bill analysis completed by TNR staff"},{"$f":"'Data SBP Measures'!$Y14","v":"EACH"},null,null,null,null,null,"Planning and Geographic Information Systems (GIS) - 149","# of bill analysis completed by TNR staff",null,null,null,null,null,null,null,"3342","108","Y","308","Centralized Court Collections","EACH","OUTPUT","NEITHER",null,null,null,"Centralized Court Collections","JP - # Telephone/Email Contact/Due Diligence",null,{"$f":"'Data SBP Measures'!$AF2751&'Data SBP Measures'!$AE2751& \" - \"& 'Data SBP Measures'!$U2751","v":"JP - # Telephone/Email Contact/Due DiligenceCentralized Court Collections - 108"},{"$f":"_xlfn.XLOOKUP(VALUE(W2751),'Data SBP Programs'!O:O,'Data SBP Programs'!S:S)","v":"Centralized Court Collections"}]
[{"$f":"'Data SBP Measures'!$AI15&\" - \"&'Data SBP Measures'!$U15","v":"Planning and Geographic Information Systems (GIS) - 149"},{"$f":"'Data SBP Measures'!$AF15","v":"# of interim committees monitored"},{"$f":"'Data SBP Measures'!$T15","v":"1018"},{"$f":"'Data SBP Measures'!$U15&B2752","v":"149# of interim committees monitored"},{"$f":"'Data SBP Measures'!$Y15","v":"EACH"},null,null,null,null,null,"Planning and Geographic Information Systems (GIS) - 149","# of interim committees monitored",null,null,null,null,null,null,null,"3342","108","Y","308","Centralized Court Collections","EACH","OUTPUT","NEITHER",null,null,null,"Centralized Court Collections","JP - # Telephone/Email Contact/Due Diligence",null,{"$f":"'Data SBP Measures'!$AF2752&'Data SBP Measures'!$AE2752& \" - \"& 'Data SBP Measures'!$U2752","v":"JP - # Telephone/Email Contact/Due DiligenceCentralized Court Collections - 108"},{"$f":"_xlfn.XLOOKUP(VALUE(W2752),'Data SBP Programs'!O:O,'Data SBP Programs'!S:S)","v":"Centralized Court Collections"}]
[{"$f":"'Data SBP Measures'!$AI18&\" - \"&'Data SBP Measures'!$U18","v":"Planning and Geographic Information Systems (GIS) - 149"},{"$f":"'Data SBP Measures'!$AF18","v":"% Completed - Develop Vision, Goals, Objectives, and Policies"},{"$f":"'Data SBP Measures'!$T18","v":"1027"},{"$f":"'Data SBP Measures'!$U18&B2756","v":"149% Completed - Develop Vision, Goals, Objectives, and Policies"},{"$f":"'Data SBP Measures'!$Y18","v":"PERCENT"},null,null,null,null,null,"Planning and Geographic Information Systems (GIS) - 149","% Completed - Develop Vision, Goals, Objectives, and Policies",null,null,null,null,null,null,null,"3344","108","Y","308","Centralized Court Collections","EACH","OUTPUT","ADOPTEDBUD",null,null,null,"Centralized Court Collections","CC - # of Payment Plan Applications",null,{"$f":"'Data SBP Measures'!$AF2756&'Data SBP Measures'!$AE2756& \" - \"& 'Data SBP Measures'!$U2756","v":"CC - # of Payment Plan ApplicationsCentralized Court Collections - 108"},{"$f":"_xlfn.XLOOKUP(VALUE(W2756),'Data SBP Programs'!O:O,'Data SBP Programs'!S:S)","v":"Centralized Court Collections"}]
[{"$f":"'Data SBP Measures'!$AI21&\" - \"&'Data SBP Measures'!$U21","v":"Planning and Geographic Information Systems (GIS) - 149"},{"$f":"'Data SBP Measures'!$AF21","v":"% of TC residents engaged in Public Engagement Ph 2"},{"$f":"'Data SBP Measures'!$T21","v":"1035"},{"$f":"'Data SBP Measures'!$U21&B2757","v":"149% of TC residents engaged in Public Engagement Ph 2"},{"$f":"'Data SBP Measures'!$Y21","v":"PERCENT"},null,null,null,null,null,"Planning and Geographic Information Systems (GIS) - 149","% of TC residents engaged in Public Engagement Ph 2",null,null,null,null,null,null,null,"3344","108","Y","308","Centralized Court Collections","EACH","OUTPUT","ADOPTEDBUD",null,null,null,"Centralized Court Collections","CC - # of Payment Plan Applications",null,{"$f":"'Data SBP Measures'!$AF2757&'Data SBP Measures'!$AE2757& \" - \"& 'Data SBP Measures'!$U2757","v":"CC - # of Payment Plan ApplicationsCentralized Court Collections - 108"},{"$f":"_xlfn.XLOOKUP(VALUE(W2757),'Data SBP Programs'!O:O,'Data SBP Programs'!S:S)","v":"Centralized Court Collections"}]
[{"$f":"'Data SBP Measures'!$AI23&\" - \"&'Data SBP Measures'!$U23","v":"Planning and Geographic Information Systems (GIS) - 149"},{"$f":"'Data SBP Measures'!$AF23","v":"Average project timeline development"},{"$f":"'Data SBP Measures'!$T23","v":"1037"},{"$f":"'Data SBP Measures'!$U23&B2760","v":"149Average project timeline development"},{"$f":"'Data SBP Measures'!$Y23","v":"DAYS"},null,null,null,null,null,"Planning and Geographic Information Systems (GIS) - 149","Average project timeline development",null,null,null,null,null,null,null,"3345","108","Y","308","Centralized Court Collections","EACH","OUTPUT","ADOPTEDBUD",null,null,null,"Centralized Court Collections","CC - # Cases Recalled/Paid in Full",null,{"$f":"'Data SBP Measures'!$AF2760&'Data SBP Measures'!$AE2760& \" - \"& 'Data SBP Measures'!$U2760","v":"CC - # Cases Recalled/Paid in FullCentralized Court Collections - 108"},{"$f":"_xlfn.XLOOKUP(VALUE(W2760),'Data SBP Programs'!O:O,'Data SBP Programs'!S:S)","v":"Centralized Court Collections"}]
[{"$f":"'Data SBP Measures'!$AI3535&\" - \"&'Data SBP Measures'!$U3535","v":"Planning, Design and Construction - 114"},{"$f":"'Data SBP Measures'!$AF3535","v":"Actual FFE Costs to Budgeted FFE Variance (New)"},{"$f":"'Data SBP Measures'!$T3535","v":"860"},{"$f":"'Data SBP Measures'!$U3535&B2762","v":"114Actual FFE Costs to Budgeted FFE Variance (New)"},{"$f":"'Data SBP Measures'!$Y3535","v":"PERCENT"},null,null,null,null,null,"Planning, Design and Construction - 114","Actual FFE Costs to Budgeted FFE Variance (New)",null,null,null,null,null,null,null,"3346","108","Y","308","Centralized Court Collections","EACH","OUTPUT","ADOPTEDBUD",null,null,null,"Centralized Court Collections","CC - # of Bills of Cost/Past Due Letters",null,{"$f":"'Data SBP Measures'!$AF2762&'Data SBP Measures'!$AE2762& \" - \"& 'Data SBP Measures'!$U2762","v":"CC - # of Bills of Cost/Past Due LettersCentralized Court Collections - 108"},{"$f":"_xlfn.XLOOKUP(VALUE(W2762),'Data SBP Programs'!O:O,'Data SBP Programs'!S:S)","v":"Centralized Court Collections"}]
[{"$f":"'Data SBP Measures'!$AI3530&\" - \"&'Data SBP Measures'!$U3530","v":"Planning, Design and Construction - 114"},{"$f":"'Data SBP Measures'!$AF3530","v":"In-house Design Cost Variance (New)"},{"$f":"'Data SBP Measures'!$T3530","v":"855"},{"$f":"'Data SBP Measures'!$U3530&B2766","v":"114In-house Design Cost Variance (New)"},{"$f":"'Data SBP Measures'!$Y3530","v":"PERCENT"},null,null,null,null,null,"Planning, Design and Construction - 114","In-house Design Cost Variance (New)",null,null,null,null,null,null,null,"3347","108","Y","308","Centralized Court Collections","EACH","OUTPUT","ADOPTEDBUD",null,null,null,"Centralized Court Collections","CC - # Telephone/Email Contact/Due Diligence",null,{"$f":"'Data SBP Measures'!$AF2766&'Data SBP Measures'!$AE2766& \" - \"& 'Data SBP Measures'!$U2766","v":"CC - # Telephone/Email Contact/Due DiligenceCentralized Court Collections - 108"},{"$f":"_xlfn.XLOOKUP(VALUE(W2766),'Data SBP Programs'!O:O,'Data SBP Programs'!S:S)","v":"Centralized Court Collections"}]
[{"$f":"'Data SBP Measures'!$AI3531&\" - \"&'Data SBP Measures'!$U3531","v":"Planning, Design and Construction - 114"},{"$f":"'Data SBP Measures'!$AF3531","v":"Out-sourced Design Cost Variance"},{"$f":"'Data SBP Measures'!$T3531","v":"856"},{"$f":"'Data SBP Measures'!$U3531&B2767","v":"114Out-sourced Design Cost Variance"},{"$f":"'Data SBP Measures'!$Y3531","v":"PERCENT"},null,null,null,null,null,"Planning, Design and Construction - 114","Out-sourced Design Cost Variance",null,null,null,null,null,null,null,"3347","108","Y","308","Centralized Court Collections","EACH","OUTPUT","ADOPTEDBUD",null,null,null,"Centralized Court Collections","CC - # Telephone/Email Contact/Due Diligence",null,{"$f":"'Data SBP Measures'!$AF2767&'Data SBP Measures'!$AE2767& \" - \"& 'Data SBP Measures'!$U2767","v":"CC - # Telephone/Email Contact/Due DiligenceCentralized Court Collections - 108"},{"$f":"_xlfn.XLOOKUP(VALUE(W2767),'Data SBP Programs'!O:O,'Data SBP Programs'!S:S)","v":"Centralized Court Collections"}]
[{"$f":"'Data SBP Measures'!$AI486&\" - \"&'Data SBP Measures'!$U486","v":"Police Psychologist - 137"},{"$f":"'Data SBP Measures'!$AF486","v":"No. of psychological tests administered"},{"$f":"'Data SBP Measures'!$T486","v":"1528"},{"$f":"'Data SBP Measures'!$U486&B2770","v":"137No. of psychological tests administered"},{"$f":"'Data SBP Measures'!$Y486","v":"EACH"},null,null,null,null,null,"Police Psychologist - 137","No. of psychological tests administered",null,null,null,null,null,null,null,"3348","108","Y","308","Centralized Court Collections","EACH","INPUT","ADOPTEDBUD",null,null,null,"Centralized Court Collections","DC - # New Cases To Manage",null,{"$f":"'Data SBP Measures'!$AF2770&'Data SBP Measures'!$AE2770& \" - \"& 'Data SBP Measures'!$U2770","v":"DC - # New Cases To ManageCentralized Court Collections - 108"},{"$f":"_xlfn.XLOOKUP(VALUE(W2770),'Data SBP Programs'!O:O,'Data SBP Programs'!S:S)","v":"Centralized Court Collections"}]
[{"$f":"'Data SBP Measures'!$AI487&\" - \"&'Data SBP Measures'!$U487","v":"Police Psychologist - 137"},{"$f":"'Data SBP Measures'!$AF487","v":"No. of psychological tests failed"},{"$f":"'Data SBP Measures'!$T487","v":"1529"},{"$f":"'Data SBP Measures'!$U487&B2771","v":"137No. of psychological tests failed"},{"$f":"'Data SBP Measures'!$Y487","v":"EACH"},null,null,null,null,null,"Police Psychologist - 137","No. of psychological tests failed",null,null,null,null,null,null,null,"3349","108","Y","308","Centralized Court Collections","EACH","OUTPUT","ADOPTEDBUD",null,null,null,"Centralized Court Collections","DC - # of Payment Plan Applications",null,{"$f":"'Data SBP Measures'!$AF2771&'Data SBP Measures'!$AE2771& \" - \"& 'Data SBP Measures'!$U2771","v":"DC - # of Payment Plan ApplicationsCentralized Court Collections - 108"},{"$f":"_xlfn.XLOOKUP(VALUE(W2771),'Data SBP Programs'!O:O,'Data SBP Programs'!S:S)","v":"Centralized Court Collections"}]
[{"$f":"'Data SBP Measures'!$AI2928&\" - \"&'Data SBP Measures'!$U2928","v":"Print Shop - 112"},{"$f":"'Data SBP Measures'!$AF2928","v":"Customer Satisfaction per survey"},{"$f":"'Data SBP Measures'!$T2928","v":"3440"},{"$f":"'Data SBP Measures'!$U2928&B2775","v":"112Customer Satisfaction per survey"},{"$f":"'Data SBP Measures'!$Y2928","v":"PERCENT"},null,null,null,null,null,"Print Shop - 112","Customer Satisfaction per survey",null,null,null,null,null,null,null,"3350","108","Y","308","Centralized Court Collections","EACH","OUTPUT","ADOPTEDBUD",null,null,null,"Centralized Court Collections","DC - # Cases Recalled/Paid in Full",null,{"$f":"'Data SBP Measures'!$AF2775&'Data SBP Measures'!$AE2775& \" - \"& 'Data SBP Measures'!$U2775","v":"DC - # Cases Recalled/Paid in FullCentralized Court Collections - 108"},{"$f":"_xlfn.XLOOKUP(VALUE(W2775),'Data SBP Programs'!O:O,'Data SBP Programs'!S:S)","v":"Centralized Court Collections"}]
[{"$f":"'Data SBP Measures'!$AI1835&\" - \"&'Data SBP Measures'!$U1835","v":"Privacy Office\n - 112"},{"$f":"'Data SBP Measures'!$AF1835","v":"% employees trained within required 30-day timeframe"},{"$f":"'Data SBP Measures'!$T1835","v":"2473"},{"$f":"'Data SBP Measures'!$U1835&B2776","v":"112% employees trained within required 30-day timeframe"},{"$f":"'Data SBP Measures'!$Y1835","v":"PERCENT"},null,null,null,null,null,"Privacy Office\n - 112","% employees trained within required 30-day timeframe",null,null,null,null,null,null,null,"3350","108","Y","308","Centralized Court Collections","EACH","OUTPUT","ADOPTEDBUD",null,null,null,"Centralized Court Collections","DC - # Cases Recalled/Paid in Full",null,{"$f":"'Data SBP Measures'!$AF2776&'Data SBP Measures'!$AE2776& \" - \"& 'Data SBP Measures'!$U2776","v":"DC - # Cases Recalled/Paid in FullCentralized Court Collections - 108"},{"$f":"_xlfn.XLOOKUP(VALUE(W2776),'Data SBP Programs'!O:O,'Data SBP Programs'!S:S)","v":"Centralized Court Collections"}]
[{"$f":"'Data SBP Measures'!$AI2001&\" - \"&'Data SBP Measures'!$U2001","v":"Privacy Office\n - 112"},{"$f":"'Data SBP Measures'!$AF2001","v":"Percentage corrective measures or equivalencies implemented"},{"$f":"'Data SBP Measures'!$T2001","v":"2586"},{"$f":"'Data SBP Measures'!$U2001&B2779","v":"112Percentage corrective measures or equivalencies implemented"},{"$f":"'Data SBP Measures'!$Y2001","v":"PERCENT"},null,null,null,null,null,"Privacy Office\n - 112","Percentage corrective measures or equivalencies implemented",null,null,null,null,null,null,null,"3351","108","Y","308","Centralized Court Collections","EACH","OUTPUT","ADOPTEDBUD",null,null,null,"Centralized Court Collections","DC - # of Bills of Cost/Past Due Letters",null,{"$f":"'Data SBP Measures'!$AF2779&'Data SBP Measures'!$AE2779& \" - \"& 'Data SBP Measures'!$U2779","v":"DC - # of Bills of Cost/Past Due LettersCentralized Court Collections - 108"},{"$f":"_xlfn.XLOOKUP(VALUE(W2779),'Data SBP Programs'!O:O,'Data SBP Programs'!S:S)","v":"Centralized Court Collections"}]
[{"$f":"'Data SBP Measures'!$AI854&\" - \"&'Data SBP Measures'!$U854","v":"Probate - 125"},{"$f":"'Data SBP Measures'!$AF854","v":"# annual & final accounts approved in dep. admins. during FY"},{"$f":"'Data SBP Measures'!$T854","v":"1922"},{"$f":"'Data SBP Measures'!$U854&B2781","v":"125# annual & final accounts approved in dep. admins. during FY"},{"$f":"'Data SBP Measures'!$Y854","v":"EACH"},null,null,null,null,null,"Probate - 125","# annual & final accounts approved in dep. admins. during FY",null,null,null,null,null,null,null,"3352","108","Y","308","Centralized Court Collections","EACH","OUTPUT","ADOPTEDBUD",null,null,null,"Centralized Court Collections","DC - # Telephone/Email Contact/Due Diligence",null,{"$f":"'Data SBP Measures'!$AF2781&'Data SBP Measures'!$AE2781& \" - \"& 'Data SBP Measures'!$U2781","v":"DC - # Telephone/Email Contact/Due DiligenceCentralized Court Collections - 108"},{"$f":"_xlfn.XLOOKUP(VALUE(W2781),'Data SBP Programs'!O:O,'Data SBP Programs'!S:S)","v":"Centralized Court Collections"}]
[{"$f":"'Data SBP Measures'!$AI852&\" - \"&'Data SBP Measures'!$U852","v":"Probate - 125"},{"$f":"'Data SBP Measures'!$AF852","v":"# annual & final accounts filed in dep. admins. during FY"},{"$f":"'Data SBP Measures'!$T852","v":"1921"},{"$f":"'Data SBP Measures'!$U852&B2785","v":"125# annual & final accounts filed in dep. admins. during FY"},{"$f":"'Data SBP Measures'!$Y852","v":"EACH"},null,null,null,null,null,"Probate - 125","# annual & final accounts filed in dep. admins. during FY",null,null,null,null,null,null,null,"3366","106","Y","178","Auditor's Office","EACH","OUTPUT","ADOPTEDBUD",null,null,null,"Auditor's Office","REC continuous auditing programs implemented\n",null,{"$f":"'Data SBP Measures'!$AF2785&'Data SBP Measures'!$AE2785& \" - \"& 'Data SBP Measures'!$U2785","v":"REC continuous auditing programs implemented\nAuditor's Office - 106"},{"$f":"_xlfn.XLOOKUP(VALUE(W2785),'Data SBP Programs'!O:O,'Data SBP Programs'!S:S)","v":"Auditor's Office"}]
[{"$f":"'Data SBP Measures'!$AI859&\" - \"&'Data SBP Measures'!$U859","v":"Probate - 125"},{"$f":"'Data SBP Measures'!$AF859","v":"# orders signed for other appls not requiring record hearing"},{"$f":"'Data SBP Measures'!$T859","v":"1928"},{"$f":"'Data SBP Measures'!$U859&B2786","v":"125# orders signed for other appls not requiring record hearing"},{"$f":"'Data SBP Measures'!$Y859","v":"EACH"},null,null,null,null,null,"Probate - 125","# orders signed for other appls not requiring record hearing",null,null,null,null,null,null,null,"3375","111","Y","202","Talent, Planning & Engagement","EACH","OUTPUT","ADOPTEDBUD",null,null,null,"Talent, Planning & Engagement","# of Ees participating in Employee Development Training Level Up-3 curriculums",null,{"$f":"'Data SBP Measures'!$AF2786&'Data SBP Measures'!$AE2786& \" - \"& 'Data SBP Measures'!$U2786","v":"# of Ees participating in Employee Development Training Level Up-3 curriculumsTalent, Planning & Engagement - 111"},{"$f":"_xlfn.XLOOKUP(VALUE(W2786),'Data SBP Programs'!O:O,'Data SBP Programs'!S:S)","v":"Talent, Planning & Engagement"}]
[{"$f":"'Data SBP Measures'!$AI838&\" - \"&'Data SBP Measures'!$U838","v":"Probate - 125"},{"$f":"'Data SBP Measures'!$AF838","v":"Clearance rates for heirship cases during FY"},{"$f":"'Data SBP Measures'!$T838","v":"1902"},{"$f":"'Data SBP Measures'!$U838&B2789","v":"125Clearance rates for heirship cases during FY"},{"$f":"'Data SBP Measures'!$Y838","v":"PERCENT"},null,null,null,null,null,"Probate - 125","Clearance rates for heirship cases during FY",null,null,null,null,null,null,null,"3378","111","Y","202","Talent, Planning & Engagement","EACH","OUTPUT","ADOPTEDBUD",null,null,null,"Talent, Planning & Engagement","# of New Hire Orientation auto-assigned",null,{"$f":"'Data SBP Measures'!$AF2789&'Data SBP Measures'!$AE2789& \" - \"& 'Data SBP Measures'!$U2789","v":"# of New Hire Orientation auto-assignedTalent, Planning & Engagement - 111"},{"$f":"_xlfn.XLOOKUP(VALUE(W2789),'Data SBP Programs'!O:O,'Data SBP Programs'!S:S)","v":"Talent, Planning & Engagement"}]
[{"$f":"'Data SBP Measures'!$AI839&\" - \"&'Data SBP Measures'!$U839","v":"Probate - 125"},{"$f":"'Data SBP Measures'!$AF839","v":"Clearance rates for heirship cases during FY"},{"$f":"'Data SBP Measures'!$T839","v":"1902"},{"$f":"'Data SBP Measures'!$U839&B2790","v":"125Clearance rates for heirship cases during FY"},{"$f":"'Data SBP Measures'!$Y839","v":"PERCENT"},null,null,null,null,null,"Probate - 125","Clearance rates for heirship cases during FY",null,null,null,null,null,null,null,"3379","111","Y","202","Talent, Planning & Engagement","EACH","INPUT","ADOPTEDBUD",null,null,null,"Talent, Planning & Engagement","# of TC Share It Reports Received",null,{"$f":"'Data SBP Measures'!$AF2790&'Data SBP Measures'!$AE2790& \" - \"& 'Data SBP Measures'!$U2790","v":"# of TC Share It Reports ReceivedTalent, Planning & Engagement - 111"},{"$f":"_xlfn.XLOOKUP(VALUE(W2790),'Data SBP Programs'!O:O,'Data SBP Programs'!S:S)","v":"Talent, Planning & Engagement"}]
[{"$f":"'Data SBP Measures'!$AI843&\" - \"&'Data SBP Measures'!$U843","v":"Probate - 125"},{"$f":"'Data SBP Measures'!$AF843","v":"Clearance rates for small estate affidavit cases during FY"},{"$f":"'Data SBP Measures'!$T843","v":"1903"},{"$f":"'Data SBP Measures'!$U843&B2794","v":"125Clearance rates for small estate affidavit cases during FY"},{"$f":"'Data SBP Measures'!$Y843","v":"PERCENT"},null,null,null,null,null,"Probate - 125","Clearance rates for small estate affidavit cases during FY",null,null,null,null,null,null,null,"3383","111","Y","196","HR Administration","EACH","OUTCOME","ADOPTEDBUD",null,null,null,"HR Administration","Average # of HRMD General Information Line calls answered",null,{"$f":"'Data SBP Measures'!$AF2794&'Data SBP Measures'!$AE2794& \" - \"& 'Data SBP Measures'!$U2794","v":"Average # of HRMD General Information Line calls answeredHR Administration - 111"},{"$f":"_xlfn.XLOOKUP(VALUE(W2794),'Data SBP Programs'!O:O,'Data SBP Programs'!S:S)","v":"HR Administration"}]
[{"$f":"'Data SBP Measures'!$AI836&\" - \"&'Data SBP Measures'!$U836","v":"Probate - 125"},{"$f":"'Data SBP Measures'!$AF836","v":"Clearance rates for will-probate cases during FY"},{"$f":"'Data SBP Measures'!$T836","v":"1901"},{"$f":"'Data SBP Measures'!$U836&B2796","v":"125Clearance rates for will-probate cases during FY"},{"$f":"'Data SBP Measures'!$Y836","v":"PERCENT"},null,null,null,null,null,"Probate - 125","Clearance rates for will-probate cases during FY",null,null,null,null,null,null,null,"3385","111","Y","196","HR Administration","EACH","OUTCOME","ADOPTEDBUD",null,null,null,"HR Administration","Average # of Employee Files Created Annually",null,{"$f":"'Data SBP Measures'!$AF2796&'Data SBP Measures'!$AE2796& \" - \"& 'Data SBP Measures'!$U2796","v":"Average # of Employee Files Created AnnuallyHR Administration - 111"},{"$f":"_xlfn.XLOOKUP(VALUE(W2796),'Data SBP Programs'!O:O,'Data SBP Programs'!S:S)","v":"HR Administration"}]
[{"$f":"'Data SBP Measures'!$AI857&\" - \"&'Data SBP Measures'!$U857","v":"Probate - 125"},{"$f":"'Data SBP Measures'!$AF857","v":"Clearance rates: annual & final accounts filed in dep admins during FY"},{"$f":"'Data SBP Measures'!$T857","v":"1923"},{"$f":"'Data SBP Measures'!$U857&B2799","v":"125Clearance rates: annual & final accounts filed in dep admins during FY"},{"$f":"'Data SBP Measures'!$Y857","v":"PERCENT"},null,null,null,null,null,"Probate - 125","Clearance rates: annual & final accounts filed in dep admins during FY",null,null,null,null,null,null,null,"3388","111","Y","196","HR Administration","DOLLARS","OUTCOME","ADOPTEDBUD",null,null,null,"HR Administration","Overall Operating Budget (General Fund)",null,{"$f":"'Data SBP Measures'!$AF2799&'Data SBP Measures'!$AE2799& \" - \"& 'Data SBP Measures'!$U2799","v":"Overall Operating Budget (General Fund)HR Administration - 111"},{"$f":"_xlfn.XLOOKUP(VALUE(W2799),'Data SBP Programs'!O:O,'Data SBP Programs'!S:S)","v":"HR Administration"}]
[{"$f":"'Data SBP Measures'!$AI858&\" - \"&'Data SBP Measures'!$U858","v":"Probate - 125"},{"$f":"'Data SBP Measures'!$AF858","v":"Clearance rates: annual & final accounts filed in dep admins during FY"},{"$f":"'Data SBP Measures'!$T858","v":"1923"},{"$f":"'Data SBP Measures'!$U858&B2800","v":"125Clearance rates: annual & final accounts filed in dep admins during FY"},{"$f":"'Data SBP Measures'!$Y858","v":"PERCENT"},null,null,null,null,null,"Probate - 125","Clearance rates: annual & final accounts filed in dep admins during FY",null,null,null,null,null,null,null,"3389","111","Y","196","HR Administration","PERCENT","EFFICIENCY","ADOPTEDBUD",null,null,null,"HR Administration","% Remaining Budget at year end",null,{"$f":"'Data SBP Measures'!$AF2800&'Data SBP Measures'!$AE2800& \" - \"& 'Data SBP Measures'!$U2800","v":"% Remaining Budget at year endHR Administration - 111"},{"$f":"_xlfn.XLOOKUP(VALUE(W2800),'Data SBP Programs'!O:O,'Data SBP Programs'!S:S)","v":"HR Administration"}]
[{"$f":"'Data SBP Measures'!$AI822&\" - \"&'Data SBP Measures'!$U822","v":"Probate - 125"},{"$f":"'Data SBP Measures'!$AF822","v":"Court orders heirship of decedent"},{"$f":"'Data SBP Measures'!$T822","v":"1894"},{"$f":"'Data SBP Measures'!$U822&B2804","v":"125Court orders heirship of decedent"},{"$f":"'Data SBP Measures'!$Y822","v":"EACH"},null,null,null,null,null,"Probate - 125","Court orders heirship of decedent",null,null,null,null,null,null,null,"3393","128","Y","233","Civil","EACH","OUTPUT","ADOPTEDBUD",null,null,null,"Civil","Debt Claim Hearings",null,{"$f":"'Data SBP Measures'!$AF2804&'Data SBP Measures'!$AE2804& \" - \"& 'Data SBP Measures'!$U2804","v":"Debt Claim HearingsCivil - 128"},{"$f":"_xlfn.XLOOKUP(VALUE(W2804),'Data SBP Programs'!O:O,'Data SBP Programs'!S:S)","v":"Civil"}]
[{"$f":"'Data SBP Measures'!$AI823&\" - \"&'Data SBP Measures'!$U823","v":"Probate - 125"},{"$f":"'Data SBP Measures'!$AF823","v":"Court orders heirship of decedent"},{"$f":"'Data SBP Measures'!$T823","v":"1894"},{"$f":"'Data SBP Measures'!$U823&B2805","v":"125Court orders heirship of decedent"},{"$f":"'Data SBP Measures'!$Y823","v":"EACH"},null,null,null,null,null,"Probate - 125","Court orders heirship of decedent",null,null,null,null,null,null,null,"3393","128","Y","233","Civil","EACH","OUTPUT","ADOPTEDBUD",null,null,null,"Civil","Debt Claim Hearings",null,{"$f":"'Data SBP Measures'!$AF2805&'Data SBP Measures'!$AE2805& \" - \"& 'Data SBP Measures'!$U2805","v":"Debt Claim HearingsCivil - 128"},{"$f":"_xlfn.XLOOKUP(VALUE(W2805),'Data SBP Programs'!O:O,'Data SBP Programs'!S:S)","v":"Civil"}]
[{"$f":"'Data SBP Measures'!$AI845&\" - \"&'Data SBP Measures'!$U845","v":"Probate - 125"},{"$f":"'Data SBP Measures'!$AF845","v":"Hearings on the record: regular docket"},{"$f":"'Data SBP Measures'!$T845","v":"1915"},{"$f":"'Data SBP Measures'!$U845&B2808","v":"125Hearings on the record: regular docket"},{"$f":"'Data SBP Measures'!$Y845","v":"EACH"},null,null,null,null,null,"Probate - 125","Hearings on the record: regular docket",null,null,null,null,null,null,null,"3394","128","Y","233","Civil","EACH","OUTPUT","ADOPTEDBUD",null,null,null,"Civil","Small Claim Hearings",null,{"$f":"'Data SBP Measures'!$AF2808&'Data SBP Measures'!$AE2808& \" - \"& 'Data SBP Measures'!$U2808","v":"Small Claim HearingsCivil - 128"},{"$f":"_xlfn.XLOOKUP(VALUE(W2808),'Data SBP Programs'!O:O,'Data SBP Programs'!S:S)","v":"Civil"}]
[{"$f":"'Data SBP Measures'!$AI846&\" - \"&'Data SBP Measures'!$U846","v":"Probate - 125"},{"$f":"'Data SBP Measures'!$AF846","v":"Hearings on the record: regular docket"},{"$f":"'Data SBP Measures'!$T846","v":"1915"},{"$f":"'Data SBP Measures'!$U846&B2809","v":"125Hearings on the record: regular docket"},{"$f":"'Data SBP Measures'!$Y846","v":"EACH"},null,null,null,null,null,"Probate - 125","Hearings on the record: regular docket",null,null,null,null,null,null,null,"3394","128","Y","233","Civil","EACH","OUTPUT","ADOPTEDBUD",null,null,null,"Civil","Small Claim Hearings",null,{"$f":"'Data SBP Measures'!$AF2809&'Data SBP Measures'!$AE2809& \" - \"& 'Data SBP Measures'!$U2809","v":"Small Claim HearingsCivil - 128"},{"$f":"_xlfn.XLOOKUP(VALUE(W2809),'Data SBP Programs'!O:O,'Data SBP Programs'!S:S)","v":"Civil"}]
[{"$f":"'Data SBP Measures'!$AI819&\" - \"&'Data SBP Measures'!$U819","v":"Probate - 125"},{"$f":"'Data SBP Measures'!$AF819","v":"Heirship cases filed during FY"},{"$f":"'Data SBP Measures'!$T819","v":"1893"},{"$f":"'Data SBP Measures'!$U819&B2813","v":"125Heirship cases filed during FY"},{"$f":"'Data SBP Measures'!$Y819","v":"EACH"},null,null,null,null,null,"Probate - 125","Heirship cases filed during FY",null,null,null,null,null,null,null,"3396","128","Y","233","Civil","EACH","OUTPUT","ADOPTEDBUD",null,null,null,"Civil","Truant Conduct Hearings",null,{"$f":"'Data SBP Measures'!$AF2813&'Data SBP Measures'!$AE2813& \" - \"& 'Data SBP Measures'!$U2813","v":"Truant Conduct HearingsCivil - 128"},{"$f":"_xlfn.XLOOKUP(VALUE(W2813),'Data SBP Programs'!O:O,'Data SBP Programs'!S:S)","v":"Civil"}]
[{"$f":"'Data SBP Measures'!$AI821&\" - \"&'Data SBP Measures'!$U821","v":"Probate - 125"},{"$f":"'Data SBP Measures'!$AF821","v":"Heirship cases filed during FY"},{"$f":"'Data SBP Measures'!$T821","v":"1893"},{"$f":"'Data SBP Measures'!$U821&B2815","v":"125Heirship cases filed during FY"},{"$f":"'Data SBP Measures'!$Y821","v":"EACH"},null,null,null,null,null,"Probate - 125","Heirship cases filed during FY",null,null,null,null,null,null,null,"3396","128","Y","233","Civil","EACH","OUTPUT","ADOPTEDBUD",null,null,null,"Civil","Truant Conduct Hearings",null,{"$f":"'Data SBP Measures'!$AF2815&'Data SBP Measures'!$AE2815& \" - \"& 'Data SBP Measures'!$U2815","v":"Truant Conduct HearingsCivil - 128"},{"$f":"_xlfn.XLOOKUP(VALUE(W2815),'Data SBP Programs'!O:O,'Data SBP Programs'!S:S)","v":"Civil"}]
[{"$f":"'Data SBP Measures'!$AI818&\" - \"&'Data SBP Measures'!$U818","v":"Probate - 125"},{"$f":"'Data SBP Measures'!$AF818","v":"Other will-probate cases disposed of w/o will probate"},{"$f":"'Data SBP Measures'!$T818","v":"1892"},{"$f":"'Data SBP Measures'!$U818&B2818","v":"125Other will-probate cases disposed of w/o will probate"},{"$f":"'Data SBP Measures'!$Y818","v":"EACH"},null,null,null,null,null,"Probate - 125","Other will-probate cases disposed of w/o will probate",null,null,null,null,null,null,null,"3397","128","Y","233","Civil","EACH","OUTPUT","ADOPTEDBUD",null,null,null,"Civil","Total Civil Hearings Held",null,{"$f":"'Data SBP Measures'!$AF2818&'Data SBP Measures'!$AE2818& \" - \"& 'Data SBP Measures'!$U2818","v":"Total Civil Hearings HeldCivil - 128"},{"$f":"_xlfn.XLOOKUP(VALUE(W2818),'Data SBP Programs'!O:O,'Data SBP Programs'!S:S)","v":"Civil"}]
[{"$f":"'Data SBP Measures'!$AI828&\" - \"&'Data SBP Measures'!$U828","v":"Probate - 125"},{"$f":"'Data SBP Measures'!$AF828","v":"Small Estate Affidavits approved during FY"},{"$f":"'Data SBP Measures'!$T828","v":"1899"},{"$f":"'Data SBP Measures'!$U828&B2819","v":"125Small Estate Affidavits approved during FY"},{"$f":"'Data SBP Measures'!$Y828","v":"EACH"},null,null,null,null,null,"Probate - 125","Small Estate Affidavits approved during FY",null,null,null,null,null,null,null,"3398","109","Y","13","Corporations","EACH","OUTPUT","ADOPTEDBUD",null,null,null,"Corporations","Number of non-bond projects TCHFC (workforce)",null,{"$f":"'Data SBP Measures'!$AF2819&'Data SBP Measures'!$AE2819& \" - \"& 'Data SBP Measures'!$U2819","v":"Number of non-bond projects TCHFC (workforce)Corporations - 109"},{"$f":"_xlfn.XLOOKUP(VALUE(W2819),'Data SBP Programs'!O:O,'Data SBP Programs'!S:S)","v":"Corporations"}]
[{"$f":"'Data SBP Measures'!$AI833&\" - \"&'Data SBP Measures'!$U833","v":"Probate - 125"},{"$f":"'Data SBP Measures'!$AF833","v":"Small Estate Affidavits denied during FY"},{"$f":"'Data SBP Measures'!$T833","v":"1900"},{"$f":"'Data SBP Measures'!$U833&B2823","v":"125Small Estate Affidavits denied during FY"},{"$f":"'Data SBP Measures'!$Y833","v":"EACH"},null,null,null,null,null,"Probate - 125","Small Estate Affidavits denied during FY",null,null,null,null,null,null,null,"3399","130","Y","240","Criminal Department","EACH","OUTCOME","ADOPTEDBUD",null,null,null,"Criminal Department","Class C Dispositions",null,{"$f":"'Data SBP Measures'!$AF2823&'Data SBP Measures'!$AE2823& \" - \"& 'Data SBP Measures'!$U2823","v":"Class C DispositionsCriminal Department - 130"},{"$f":"_xlfn.XLOOKUP(VALUE(W2823),'Data SBP Programs'!O:O,'Data SBP Programs'!S:S)","v":"Criminal Department"}]
[{"$f":"'Data SBP Measures'!$AI834&\" - \"&'Data SBP Measures'!$U834","v":"Probate - 125"},{"$f":"'Data SBP Measures'!$AF834","v":"Small Estate Affidavits denied during FY"},{"$f":"'Data SBP Measures'!$T834","v":"1900"},{"$f":"'Data SBP Measures'!$U834&B2824","v":"125Small Estate Affidavits denied during FY"},{"$f":"'Data SBP Measures'!$Y834","v":"EACH"},null,null,null,null,null,"Probate - 125","Small Estate Affidavits denied during FY",null,null,null,null,null,null,null,"3399","130","Y","240","Criminal Department","EACH","OUTCOME","ADOPTEDBUD",null,null,null,"Criminal Department","Class C Dispositions",null,{"$f":"'Data SBP Measures'!$AF2824&'Data SBP Measures'!$AE2824& \" - \"& 'Data SBP Measures'!$U2824","v":"Class C DispositionsCriminal Department - 130"},{"$f":"_xlfn.XLOOKUP(VALUE(W2824),'Data SBP Programs'!O:O,'Data SBP Programs'!S:S)","v":"Criminal Department"}]
[{"$f":"'Data SBP Measures'!$AI827&\" - \"&'Data SBP Measures'!$U827","v":"Probate - 125"},{"$f":"'Data SBP Measures'!$AF827","v":"Small estate affidavits filed during FY"},{"$f":"'Data SBP Measures'!$T827","v":"1898"},{"$f":"'Data SBP Measures'!$U827&B2827","v":"125Small estate affidavits filed during FY"},{"$f":"'Data SBP Measures'!$Y827","v":"EACH"},null,null,null,null,null,"Probate - 125","Small estate affidavits filed during FY",null,null,null,null,null,null,null,"34","109","Y","10","Budget","EACH","INPUT","ADOPTEDBUD",null,null,null,"Budget","Number of budget adjustments processed",null,{"$f":"'Data SBP Measures'!$AF2827&'Data SBP Measures'!$AE2827& \" - \"& 'Data SBP Measures'!$U2827","v":"Number of budget adjustments processedBudget - 109"},{"$f":"_xlfn.XLOOKUP(VALUE(W2827),'Data SBP Programs'!O:O,'Data SBP Programs'!S:S)","v":"Budget"}]
[{"$f":"'Data SBP Measures'!$AI810&\" - \"&'Data SBP Measures'!$U810","v":"Probate - 125"},{"$f":"'Data SBP Measures'!$AF810","v":"Will-probate cases filed during FY"},{"$f":"'Data SBP Measures'!$T810","v":"1889"},{"$f":"'Data SBP Measures'!$U810&B2828","v":"125Will-probate cases filed during FY"},{"$f":"'Data SBP Measures'!$Y810","v":"EACH"},null,null,null,null,null,"Probate - 125","Will-probate cases filed during FY",null,null,null,null,null,null,null,"3400","130","Y","240","Criminal Department","EACH","OUTPUT","ADOPTEDBUD",null,null,null,"Criminal Department","Violation of Promise/Failure to Appear Cases Filed",null,{"$f":"'Data SBP Measures'!$AF2828&'Data SBP Measures'!$AE2828& \" - \"& 'Data SBP Measures'!$U2828","v":"Violation of Promise/Failure to Appear Cases FiledCriminal Department - 130"},{"$f":"_xlfn.XLOOKUP(VALUE(W2828),'Data SBP Programs'!O:O,'Data SBP Programs'!S:S)","v":"Criminal Department"}]
[{"$f":"'Data SBP Measures'!$AI3191&\" - \"&'Data SBP Measures'!$U3191","v":"Probate/Mental Health/Comm Court\n - 120"},{"$f":"'Data SBP Measures'!$AF3191","v":"Average Number of Days to Process Citations and Notices"},{"$f":"'Data SBP Measures'!$T3191","v":"646"},{"$f":"'Data SBP Measures'!$U3191&B2832","v":"120Average Number of Days to Process Citations and Notices"},{"$f":"'Data SBP Measures'!$Y3191","v":"DAYS"},null,null,null,null,null,"Probate/Mental Health/Comm Court\n - 120","Average Number of Days to Process Citations and Notices",null,null,null,null,null,null,null,"3400","130","Y","240","Criminal Department","EACH","OUTPUT","ADOPTEDBUD",null,null,null,"Criminal Department","Violation of Promise/Failure to Appear Cases Filed",null,{"$f":"'Data SBP Measures'!$AF2832&'Data SBP Measures'!$AE2832& \" - \"& 'Data SBP Measures'!$U2832","v":"Violation of Promise/Failure to Appear Cases FiledCriminal Department - 130"},{"$f":"_xlfn.XLOOKUP(VALUE(W2832),'Data SBP Programs'!O:O,'Data SBP Programs'!S:S)","v":"Criminal Department"}]
[{"$f":"'Data SBP Measures'!$AI3192&\" - \"&'Data SBP Measures'!$U3192","v":"Probate/Mental Health/Comm Court\n - 120"},{"$f":"'Data SBP Measures'!$AF3192","v":"Average Number of Days to Process Ltrs of Admin or Test"},{"$f":"'Data SBP Measures'!$T3192","v":"647"},{"$f":"'Data SBP Measures'!$U3192&B2834","v":"120Average Number of Days to Process Ltrs of Admin or Test"},{"$f":"'Data SBP Measures'!$Y3192","v":"DAYS"},null,null,null,null,null,"Probate/Mental Health/Comm Court\n - 120","Average Number of Days to Process Ltrs of Admin or Test",null,null,null,null,null,null,null,"3400","130","Y","240","Criminal Department","EACH","OUTPUT","ADOPTEDBUD",null,null,null,"Criminal Department","Violation of Promise/Failure to Appear Cases Filed",null,{"$f":"'Data SBP Measures'!$AF2834&'Data SBP Measures'!$AE2834& \" - \"& 'Data SBP Measures'!$U2834","v":"Violation of Promise/Failure to Appear Cases FiledCriminal Department - 130"},{"$f":"_xlfn.XLOOKUP(VALUE(W2834),'Data SBP Programs'!O:O,'Data SBP Programs'!S:S)","v":"Criminal Department"}]
[{"$f":"'Data SBP Measures'!$AI3194&\" - \"&'Data SBP Measures'!$U3194","v":"Probate/Mental Health/Comm Court\n - 120"},{"$f":"'Data SBP Measures'!$AF3194","v":"Citations"},{"$f":"'Data SBP Measures'!$T3194","v":"649"},{"$f":"'Data SBP Measures'!$U3194&B2837","v":"120Citations"},{"$f":"'Data SBP Measures'!$Y3194","v":"EACH"},null,null,null,null,null,"Probate/Mental Health/Comm Court\n - 120","Citations",null,null,null,null,null,null,null,"3401","130","Y","240","Criminal Department","PERCENT","OUTCOME","ADOPTEDBUD",null,null,null,"Criminal Department","% of Cite & Release Appeared",null,{"$f":"'Data SBP Measures'!$AF2837&'Data SBP Measures'!$AE2837& \" - \"& 'Data SBP Measures'!$U2837","v":"% of Cite & Release AppearedCriminal Department - 130"},{"$f":"_xlfn.XLOOKUP(VALUE(W2837),'Data SBP Programs'!O:O,'Data SBP Programs'!S:S)","v":"Criminal Department"}]
[{"$f":"'Data SBP Measures'!$AI3085&\" - \"&'Data SBP Measures'!$U3085","v":"Probate/Mental Health/Comm Court\n - 120"},{"$f":"'Data SBP Measures'!$AF3085","v":"Comm Ct Customer Service Email Requests"},{"$f":"'Data SBP Measures'!$T3085","v":"529"},{"$f":"'Data SBP Measures'!$U3085&B2838","v":"120Comm Ct Customer Service Email Requests"},{"$f":"'Data SBP Measures'!$Y3085","v":"EACH"},null,null,null,null,null,"Probate/Mental Health/Comm Court\n - 120","Comm Ct Customer Service Email Requests",null,null,null,null,null,null,null,"3401","130","Y","240","Criminal Department","PERCENT","OUTCOME","ADOPTEDBUD",null,null,null,"Criminal Department","% of Cite & Release Appeared",null,{"$f":"'Data SBP Measures'!$AF2838&'Data SBP Measures'!$AE2838& \" - \"& 'Data SBP Measures'!$U2838","v":"% of Cite & Release AppearedCriminal Department - 130"},{"$f":"_xlfn.XLOOKUP(VALUE(W2838),'Data SBP Programs'!O:O,'Data SBP Programs'!S:S)","v":"Criminal Department"}]
[{"$f":"'Data SBP Measures'!$AI3178&\" - \"&'Data SBP Measures'!$U3178","v":"Probate/Mental Health/Comm Court\n - 120"},{"$f":"'Data SBP Measures'!$AF3178","v":"Commitment Hearings Attended"},{"$f":"'Data SBP Measures'!$T3178","v":"633"},{"$f":"'Data SBP Measures'!$U3178&B2842","v":"120Commitment Hearings Attended"},{"$f":"'Data SBP Measures'!$Y3178","v":"EACH"},null,null,null,null,null,"Probate/Mental Health/Comm Court\n - 120","Commitment Hearings Attended",null,null,null,null,null,null,null,"3402","130","Y","240","Criminal Department","PERCENT","OUTCOME","ADOPTEDBUD",null,null,null,"Criminal Department","% of Cite & Release Failure to Appear",null,{"$f":"'Data SBP Measures'!$AF2842&'Data SBP Measures'!$AE2842& \" - \"& 'Data SBP Measures'!$U2842","v":"% of Cite & Release Failure to AppearCriminal Department - 130"},{"$f":"_xlfn.XLOOKUP(VALUE(W2842),'Data SBP Programs'!O:O,'Data SBP Programs'!S:S)","v":"Criminal Department"}]
[{"$f":"'Data SBP Measures'!$AI3165&\" - \"&'Data SBP Measures'!$U3165","v":"Probate/Mental Health/Comm Court\n - 120"},{"$f":"'Data SBP Measures'!$AF3165","v":"Copies Made by Clerk"},{"$f":"'Data SBP Measures'!$T3165","v":"621"},{"$f":"'Data SBP Measures'!$U3165&B2843","v":"120Copies Made by Clerk"},{"$f":"'Data SBP Measures'!$Y3165","v":"EACH"},null,null,null,null,null,"Probate/Mental Health/Comm Court\n - 120","Copies Made by Clerk",null,null,null,null,null,null,null,"3402","130","Y","240","Criminal Department","PERCENT","OUTCOME","ADOPTEDBUD",null,null,null,"Criminal Department","% of Cite & Release Failure to Appear",null,{"$f":"'Data SBP Measures'!$AF2843&'Data SBP Measures'!$AE2843& \" - \"& 'Data SBP Measures'!$U2843","v":"% of Cite & Release Failure to AppearCriminal Department - 130"},{"$f":"_xlfn.XLOOKUP(VALUE(W2843),'Data SBP Programs'!O:O,'Data SBP Programs'!S:S)","v":"Criminal Department"}]
[{"$f":"'Data SBP Measures'!$AI3088&\" - \"&'Data SBP Measures'!$U3088","v":"Probate/Mental Health/Comm Court\n - 120"},{"$f":"'Data SBP Measures'!$AF3088","v":"Documents Scanned and Indexed"},{"$f":"'Data SBP Measures'!$T3088","v":"531"},{"$f":"'Data SBP Measures'!$U3088&B2846","v":"120Documents Scanned and Indexed"},{"$f":"'Data SBP Measures'!$Y3088","v":"EACH"},null,null,null,null,null,"Probate/Mental Health/Comm Court\n - 120","Documents Scanned and Indexed",null,null,null,null,null,null,null,"3402","130","Y","240","Criminal Department","PERCENT","OUTCOME","ADOPTEDBUD",null,null,null,"Criminal Department","% of Cite & Release Failure to Appear",null,{"$f":"'Data SBP Measures'!$AF2846&'Data SBP Measures'!$AE2846& \" - \"& 'Data SBP Measures'!$U2846","v":"% of Cite & Release Failure to AppearCriminal Department - 130"},{"$f":"_xlfn.XLOOKUP(VALUE(W2846),'Data SBP Programs'!O:O,'Data SBP Programs'!S:S)","v":"Criminal Department"}]
[{"$f":"'Data SBP Measures'!$AI3167&\" - \"&'Data SBP Measures'!$U3167","v":"Probate/Mental Health/Comm Court\n - 120"},{"$f":"'Data SBP Measures'!$AF3167","v":"Email Requests Mental Health"},{"$f":"'Data SBP Measures'!$T3167","v":"623"},{"$f":"'Data SBP Measures'!$U3167&B2847","v":"120Email Requests Mental Health"},{"$f":"'Data SBP Measures'!$Y3167","v":"EACH"},null,null,null,null,null,"Probate/Mental Health/Comm Court\n - 120","Email Requests Mental Health",null,null,null,null,null,null,null,"3402","130","Y","240","Criminal Department","PERCENT","OUTCOME","ADOPTEDBUD",null,null,null,"Criminal Department","% of Cite & Release Failure to Appear",null,{"$f":"'Data SBP Measures'!$AF2847&'Data SBP Measures'!$AE2847& \" - \"& 'Data SBP Measures'!$U2847","v":"% of Cite & Release Failure to AppearCriminal Department - 130"},{"$f":"_xlfn.XLOOKUP(VALUE(W2847),'Data SBP Programs'!O:O,'Data SBP Programs'!S:S)","v":"Criminal Department"}]
[{"$f":"'Data SBP Measures'!$AI3181&\" - \"&'Data SBP Measures'!$U3181","v":"Probate/Mental Health/Comm Court\n - 120"},{"$f":"'Data SBP Measures'!$AF3181","v":"Hours Spent in Commitment Hearings"},{"$f":"'Data SBP Measures'!$T3181","v":"636"},{"$f":"'Data SBP Measures'!$U3181&B2851","v":"120Hours Spent in Commitment Hearings"},{"$f":"'Data SBP Measures'!$Y3181","v":"HOURS"},null,null,null,null,null,"Probate/Mental Health/Comm Court\n - 120","Hours Spent in Commitment Hearings",null,null,null,null,null,null,null,"3403","130","Y","240","Criminal Department","PERCENT","OUTCOME","ADOPTEDBUD",null,null,null,"Criminal Department","% of Cite & Release Reduced/Rejected",null,{"$f":"'Data SBP Measures'!$AF2851&'Data SBP Measures'!$AE2851& \" - \"& 'Data SBP Measures'!$U2851","v":"% of Cite & Release Reduced/RejectedCriminal Department - 130"},{"$f":"_xlfn.XLOOKUP(VALUE(W2851),'Data SBP Programs'!O:O,'Data SBP Programs'!S:S)","v":"Criminal Department"}]
[{"$f":"'Data SBP Measures'!$AI3092&\" - \"&'Data SBP Measures'!$U3092","v":"Probate/Mental Health/Comm Court\n - 120"},{"$f":"'Data SBP Measures'!$AF3092","v":"Hours Spent Preparing Minutes"},{"$f":"'Data SBP Measures'!$T3092","v":"535"},{"$f":"'Data SBP Measures'!$U3092&B2853","v":"120Hours Spent Preparing Minutes"},{"$f":"'Data SBP Measures'!$Y3092","v":"HOURS"},null,null,null,null,null,"Probate/Mental Health/Comm Court\n - 120","Hours Spent Preparing Minutes",null,null,null,null,null,null,null,"3403","130","Y","240","Criminal Department","PERCENT","OUTCOME","ADOPTEDBUD",null,null,null,"Criminal Department","% of Cite & Release Reduced/Rejected",null,{"$f":"'Data SBP Measures'!$AF2853&'Data SBP Measures'!$AE2853& \" - \"& 'Data SBP Measures'!$U2853","v":"% of Cite & Release Reduced/RejectedCriminal Department - 130"},{"$f":"_xlfn.XLOOKUP(VALUE(W2853),'Data SBP Programs'!O:O,'Data SBP Programs'!S:S)","v":"Criminal Department"}]
[{"$f":"'Data SBP Measures'!$AI3093&\" - \"&'Data SBP Measures'!$U3093","v":"Probate/Mental Health/Comm Court\n - 120"},{"$f":"'Data SBP Measures'!$AF3093","v":"Meeting Notices Posted"},{"$f":"'Data SBP Measures'!$T3093","v":"536"},{"$f":"'Data SBP Measures'!$U3093&B2856","v":"120Meeting Notices Posted"},{"$f":"'Data SBP Measures'!$Y3093","v":"EACH"},null,null,null,null,null,"Probate/Mental Health/Comm Court\n - 120","Meeting Notices Posted",null,null,null,null,null,null,null,"3404","130","Y","240","Criminal Department","EACH","INPUT","ADOPTEDBUD",null,null,null,"Criminal Department","Theft Class B Cases Filed",null,{"$f":"'Data SBP Measures'!$AF2856&'Data SBP Measures'!$AE2856& \" - \"& 'Data SBP Measures'!$U2856","v":"Theft Class B Cases FiledCriminal Department - 130"},{"$f":"_xlfn.XLOOKUP(VALUE(W2856),'Data SBP Programs'!O:O,'Data SBP Programs'!S:S)","v":"Criminal Department"}]
[{"$f":"'Data SBP Measures'!$AI3175&\" - \"&'Data SBP Measures'!$U3175","v":"Probate/Mental Health/Comm Court\n - 120"},{"$f":"'Data SBP Measures'!$AF3175","v":"Mental Health"},{"$f":"'Data SBP Measures'!$T3175","v":"630"},{"$f":"'Data SBP Measures'!$U3175&B2857","v":"120Mental Health"},{"$f":"'Data SBP Measures'!$Y3175","v":"EACH"},null,null,null,null,null,"Probate/Mental Health/Comm Court\n - 120","Mental Health",null,null,null,null,null,null,null,"3404","130","Y","240","Criminal Department","EACH","INPUT","ADOPTEDBUD",null,null,null,"Criminal Department","Theft Class B Cases Filed",null,{"$f":"'Data SBP Measures'!$AF2857&'Data SBP Measures'!$AE2857& \" - \"& 'Data SBP Measures'!$U2857","v":"Theft Class B Cases FiledCriminal Department - 130"},{"$f":"_xlfn.XLOOKUP(VALUE(W2857),'Data SBP Programs'!O:O,'Data SBP Programs'!S:S)","v":"Criminal Department"}]
[{"$f":"'Data SBP Measures'!$AI3094&\" - \"&'Data SBP Measures'!$U3094","v":"Probate/Mental Health/Comm Court\n - 120"},{"$f":"'Data SBP Measures'!$AF3094","v":"Mtgs Attended (incl Reg Voting, Budget, & Road District)"},{"$f":"'Data SBP Measures'!$T3094","v":"537"},{"$f":"'Data SBP Measures'!$U3094&B2861","v":"120Mtgs Attended (incl Reg Voting, Budget, & Road District)"},{"$f":"'Data SBP Measures'!$Y3094","v":"EACH"},null,null,null,null,null,"Probate/Mental Health/Comm Court\n - 120","Mtgs Attended (incl Reg Voting, Budget, & Road District)",null,null,null,null,null,null,null,"3404","130","Y","240","Criminal Department","EACH","INPUT","ADOPTEDBUD",null,null,null,"Criminal Department","Theft Class B Cases Filed",null,{"$f":"'Data SBP Measures'!$AF2861&'Data SBP Measures'!$AE2861& \" - \"& 'Data SBP Measures'!$U2861","v":"Theft Class B Cases FiledCriminal Department - 130"},{"$f":"_xlfn.XLOOKUP(VALUE(W2861),'Data SBP Programs'!O:O,'Data SBP Programs'!S:S)","v":"Criminal Department"}]
[{"$f":"'Data SBP Measures'!$AI3187&\" - \"&'Data SBP Measures'!$U3187","v":"Probate/Mental Health/Comm Court\n - 120"},{"$f":"'Data SBP Measures'!$AF3187","v":"New Condemnation Cases Filed"},{"$f":"'Data SBP Measures'!$T3187","v":"641"},{"$f":"'Data SBP Measures'!$U3187&B2862","v":"120New Condemnation Cases Filed"},{"$f":"'Data SBP Measures'!$Y3187","v":"EACH"},null,null,null,null,null,"Probate/Mental Health/Comm Court\n - 120","New Condemnation Cases Filed",null,null,null,null,null,null,null,"3404","130","Y","240","Criminal Department","EACH","INPUT","ADOPTEDBUD",null,null,null,"Criminal Department","Theft Class B Cases Filed",null,{"$f":"'Data SBP Measures'!$AF2862&'Data SBP Measures'!$AE2862& \" - \"& 'Data SBP Measures'!$U2862","v":"Theft Class B Cases FiledCriminal Department - 130"},{"$f":"_xlfn.XLOOKUP(VALUE(W2862),'Data SBP Programs'!O:O,'Data SBP Programs'!S:S)","v":"Criminal Department"}]
[{"$f":"'Data SBP Measures'!$AI3201&\" - \"&'Data SBP Measures'!$U3201","v":"Probate/Mental Health/Comm Court\n - 120"},{"$f":"'Data SBP Measures'!$AF3201","v":"Orders Processed from Probate Court"},{"$f":"'Data SBP Measures'!$T3201","v":"655"},{"$f":"'Data SBP Measures'!$U3201&B2865","v":"120Orders Processed from Probate Court"},{"$f":"'Data SBP Measures'!$Y3201","v":"EACH"},null,null,null,null,null,"Probate/Mental Health/Comm Court\n - 120","Orders Processed from Probate Court",null,null,null,null,null,null,null,"3405","130","Y","240","Criminal Department","EACH","INPUT","ADOPTEDBUD",null,null,null,"Criminal Department","DWLI Class B Cases Filed",null,{"$f":"'Data SBP Measures'!$AF2865&'Data SBP Measures'!$AE2865& \" - \"& 'Data SBP Measures'!$U2865","v":"DWLI Class B Cases FiledCriminal Department - 130"},{"$f":"_xlfn.XLOOKUP(VALUE(W2865),'Data SBP Programs'!O:O,'Data SBP Programs'!S:S)","v":"Criminal Department"}]
[{"$f":"'Data SBP Measures'!$AI3202&\" - \"&'Data SBP Measures'!$U3202","v":"Probate/Mental Health/Comm Court\n - 120"},{"$f":"'Data SBP Measures'!$AF3202","v":"Other Issuances"},{"$f":"'Data SBP Measures'!$T3202","v":"656"},{"$f":"'Data SBP Measures'!$U3202&B2866","v":"120Other Issuances"},{"$f":"'Data SBP Measures'!$Y3202","v":"EACH"},null,null,null,null,null,"Probate/Mental Health/Comm Court\n - 120","Other Issuances",null,null,null,null,null,null,null,"3405","130","Y","240","Criminal Department","EACH","INPUT","ADOPTEDBUD",null,null,null,"Criminal Department","DWLI Class B Cases Filed",null,{"$f":"'Data SBP Measures'!$AF2866&'Data SBP Measures'!$AE2866& \" - \"& 'Data SBP Measures'!$U2866","v":"DWLI Class B Cases FiledCriminal Department - 130"},{"$f":"_xlfn.XLOOKUP(VALUE(W2866),'Data SBP Programs'!O:O,'Data SBP Programs'!S:S)","v":"Criminal Department"}]
[{"$f":"'Data SBP Measures'!$AI3203&\" - \"&'Data SBP Measures'!$U3203","v":"Probate/Mental Health/Comm Court\n - 120"},{"$f":"'Data SBP Measures'!$AF3203","v":"Probate Hearings Attended"},{"$f":"'Data SBP Measures'!$T3203","v":"657"},{"$f":"'Data SBP Measures'!$U3203&B2870","v":"120Probate Hearings Attended"},{"$f":"'Data SBP Measures'!$Y3203","v":"EACH"},null,null,null,null,null,"Probate/Mental Health/Comm Court\n - 120","Probate Hearings Attended",null,null,null,null,null,null,null,"3406","130","Y","240","Criminal Department","PERCENT","EFFICIENCY","ADOPTEDBUD",null,null,null,"Criminal Department","% of Theft Class B Reductions (Now Class C)",null,{"$f":"'Data SBP Measures'!$AF2870&'Data SBP Measures'!$AE2870& \" - \"& 'Data SBP Measures'!$U2870","v":"% of Theft Class B Reductions (Now Class C)Criminal Department - 130"},{"$f":"_xlfn.XLOOKUP(VALUE(W2870),'Data SBP Programs'!O:O,'Data SBP Programs'!S:S)","v":"Criminal Department"}]
[{"$f":"'Data SBP Measures'!$AI3176&\" - \"&'Data SBP Measures'!$U3176","v":"Probate/Mental Health/Comm Court\n - 120"},{"$f":"'Data SBP Measures'!$AF3176","v":"Probate Search Requests"},{"$f":"'Data SBP Measures'!$T3176","v":"631"},{"$f":"'Data SBP Measures'!$U3176&B2872","v":"120Probate Search Requests"},{"$f":"'Data SBP Measures'!$Y3176","v":"EACH"},null,null,null,null,null,"Probate/Mental Health/Comm Court\n - 120","Probate Search Requests",null,null,null,null,null,null,null,"3406","130","Y","240","Criminal Department","PERCENT","EFFICIENCY","ADOPTEDBUD",null,null,null,"Criminal Department","% of Theft Class B Reductions (Now Class C)",null,{"$f":"'Data SBP Measures'!$AF2872&'Data SBP Measures'!$AE2872& \" - \"& 'Data SBP Measures'!$U2872","v":"% of Theft Class B Reductions (Now Class C)Criminal Department - 130"},{"$f":"_xlfn.XLOOKUP(VALUE(W2872),'Data SBP Programs'!O:O,'Data SBP Programs'!S:S)","v":"Criminal Department"}]
[{"$f":"'Data SBP Measures'!$AI3182&\" - \"&'Data SBP Measures'!$U3182","v":"Probate/Mental Health/Comm Court\n - 120"},{"$f":"'Data SBP Measures'!$AF3182","v":"Total Issuances"},{"$f":"'Data SBP Measures'!$T3182","v":"637"},{"$f":"'Data SBP Measures'!$U3182&B2875","v":"120Total Issuances"},{"$f":"'Data SBP Measures'!$Y3182","v":"EACH"},null,null,null,null,null,"Probate/Mental Health/Comm Court\n - 120","Total Issuances",null,null,null,null,null,null,null,"3406","130","Y","240","Criminal Department","PERCENT","EFFICIENCY","ADOPTEDBUD",null,null,null,"Criminal Department","% of Theft Class B Reductions (Now Class C)",null,{"$f":"'Data SBP Measures'!$AF2875&'Data SBP Measures'!$AE2875& \" - \"& 'Data SBP Measures'!$U2875","v":"% of Theft Class B Reductions (Now Class C)Criminal Department - 130"},{"$f":"_xlfn.XLOOKUP(VALUE(W2875),'Data SBP Programs'!O:O,'Data SBP Programs'!S:S)","v":"Criminal Department"}]
[{"$f":"'Data SBP Measures'!$AI3196&\" - \"&'Data SBP Measures'!$U3196","v":"Probate/Mental Health/Comm Court\n - 120"},{"$f":"'Data SBP Measures'!$AF3196","v":"Total Probate Case Activities"},{"$f":"'Data SBP Measures'!$T3196","v":"650"},{"$f":"'Data SBP Measures'!$U3196&B2876","v":"120Total Probate Case Activities"},{"$f":"'Data SBP Measures'!$Y3196","v":"EACH"},null,null,null,null,null,"Probate/Mental Health/Comm Court\n - 120","Total Probate Case Activities",null,null,null,null,null,null,null,"3406","130","Y","240","Criminal Department","PERCENT","EFFICIENCY","ADOPTEDBUD",null,null,null,"Criminal Department","% of Theft Class B Reductions (Now Class C)",null,{"$f":"'Data SBP Measures'!$AF2876&'Data SBP Measures'!$AE2876& \" - \"& 'Data SBP Measures'!$U2876","v":"% of Theft Class B Reductions (Now Class C)Criminal Department - 130"},{"$f":"_xlfn.XLOOKUP(VALUE(W2876),'Data SBP Programs'!O:O,'Data SBP Programs'!S:S)","v":"Criminal Department"}]
[{"$f":"'Data SBP Measures'!$AI2639&\" - \"&'Data SBP Measures'!$U2639","v":"Probation Services - 145"},{"$f":"'Data SBP Measures'!$AF2639","v":"% decrease in the number of youth being placed in external placements"},{"$f":"'Data SBP Measures'!$T2639","v":"3254"},{"$f":"'Data SBP Measures'!$U2639&B2880","v":"145% decrease in the number of youth being placed in external placements"},{"$f":"'Data SBP Measures'!$Y2639","v":"PERCENT"},null,null,null,null,null,"Probation Services - 145","% decrease in the number of youth being placed in external placements",null,null,null,null,null,null,null,"3407","130","Y","240","Criminal Department","PERCENT","EFFICIENCY","ADOPTEDBUD",null,null,null,"Criminal Department","% of Theft Class B Cases Rejected",null,{"$f":"'Data SBP Measures'!$AF2880&'Data SBP Measures'!$AE2880& \" - \"& 'Data SBP Measures'!$U2880","v":"% of Theft Class B Cases RejectedCriminal Department - 130"},{"$f":"_xlfn.XLOOKUP(VALUE(W2880),'Data SBP Programs'!O:O,'Data SBP Programs'!S:S)","v":"Criminal Department"}]
[{"$f":"'Data SBP Measures'!$AI2640&\" - \"&'Data SBP Measures'!$U2640","v":"Probation Services - 145"},{"$f":"'Data SBP Measures'!$AF2640","v":"% decrease in the number of youth being placed in external placements"},{"$f":"'Data SBP Measures'!$T2640","v":"3254"},{"$f":"'Data SBP Measures'!$U2640&B2881","v":"145% decrease in the number of youth being placed in external placements"},{"$f":"'Data SBP Measures'!$Y2640","v":"PERCENT"},null,null,null,null,null,"Probation Services - 145","% decrease in the number of youth being placed in external placements",null,null,null,null,null,null,null,"3407","130","Y","240","Criminal Department","PERCENT","EFFICIENCY","ADOPTEDBUD",null,null,null,"Criminal Department","% of Theft Class B Cases Rejected",null,{"$f":"'Data SBP Measures'!$AF2881&'Data SBP Measures'!$AE2881& \" - \"& 'Data SBP Measures'!$U2881","v":"% of Theft Class B Cases RejectedCriminal Department - 130"},{"$f":"_xlfn.XLOOKUP(VALUE(W2881),'Data SBP Programs'!O:O,'Data SBP Programs'!S:S)","v":"Criminal Department"}]
[{"$f":"'Data SBP Measures'!$AI2643&\" - \"&'Data SBP Measures'!$U2643","v":"Probation Services - 145"},{"$f":"'Data SBP Measures'!$AF2643","v":"% decrease in the number of youth being placed in external placements"},{"$f":"'Data SBP Measures'!$T2643","v":"3254"},{"$f":"'Data SBP Measures'!$U2643&B2884","v":"145% decrease in the number of youth being placed in external placements"},{"$f":"'Data SBP Measures'!$Y2643","v":"PERCENT"},null,null,null,null,null,"Probation Services - 145","% decrease in the number of youth being placed in external placements",null,null,null,null,null,null,null,"3408","130","Y","240","Criminal Department","PERCENT","EFFICIENCY","ADOPTEDBUD",null,null,null,"Criminal Department","% of Theft Class B - Degree Remains",null,{"$f":"'Data SBP Measures'!$AF2884&'Data SBP Measures'!$AE2884& \" - \"& 'Data SBP Measures'!$U2884","v":"% of Theft Class B - Degree RemainsCriminal Department - 130"},{"$f":"_xlfn.XLOOKUP(VALUE(W2884),'Data SBP Programs'!O:O,'Data SBP Programs'!S:S)","v":"Criminal Department"}]
[{"$f":"'Data SBP Measures'!$AI3554&\" - \"&'Data SBP Measures'!$U3554","v":"Probation Services - 145"},{"$f":"'Data SBP Measures'!$AF3554","v":"Number of Juveniles in external placement"},{"$f":"'Data SBP Measures'!$T3554","v":"917"},{"$f":"'Data SBP Measures'!$U3554&B2885","v":"145Number of Juveniles in external placement"},{"$f":"'Data SBP Measures'!$Y3554","v":"EACH"},null,null,null,null,null,"Probation Services - 145","Number of Juveniles in external placement",null,null,null,null,null,null,null,"3408","130","Y","240","Criminal Department","PERCENT","EFFICIENCY","ADOPTEDBUD",null,null,null,"Criminal Department","% of Theft Class B - Degree Remains",null,{"$f":"'Data SBP Measures'!$AF2885&'Data SBP Measures'!$AE2885& \" - \"& 'Data SBP Measures'!$U2885","v":"% of Theft Class B - Degree RemainsCriminal Department - 130"},{"$f":"_xlfn.XLOOKUP(VALUE(W2885),'Data SBP Programs'!O:O,'Data SBP Programs'!S:S)","v":"Criminal Department"}]
[{"$f":"'Data SBP Measures'!$AI3558&\" - \"&'Data SBP Measures'!$U3558","v":"Probation Services - 145"},{"$f":"'Data SBP Measures'!$AF3558","v":"Number of Juveniles in external placement"},{"$f":"'Data SBP Measures'!$T3558","v":"917"},{"$f":"'Data SBP Measures'!$U3558&B2889","v":"145Number of Juveniles in external placement"},{"$f":"'Data SBP Measures'!$Y3558","v":"EACH"},null,null,null,null,null,"Probation Services - 145","Number of Juveniles in external placement",null,null,null,null,null,null,null,"3408","130","Y","240","Criminal Department","PERCENT","EFFICIENCY","ADOPTEDBUD",null,null,null,"Criminal Department","% of Theft Class B - Degree Remains",null,{"$f":"'Data SBP Measures'!$AF2889&'Data SBP Measures'!$AE2889& \" - \"& 'Data SBP Measures'!$U2889","v":"% of Theft Class B - Degree RemainsCriminal Department - 130"},{"$f":"_xlfn.XLOOKUP(VALUE(W2889),'Data SBP Programs'!O:O,'Data SBP Programs'!S:S)","v":"Criminal Department"}]
[{"$f":"'Data SBP Measures'!$AI3560&\" - \"&'Data SBP Measures'!$U3560","v":"Probation Services - 145"},{"$f":"'Data SBP Measures'!$AF3560","v":"Number of Juveniles in external placement"},{"$f":"'Data SBP Measures'!$T3560","v":"917"},{"$f":"'Data SBP Measures'!$U3560&B2891","v":"145Number of Juveniles in external placement"},{"$f":"'Data SBP Measures'!$Y3560","v":"EACH"},null,null,null,null,null,"Probation Services - 145","Number of Juveniles in external placement",null,null,null,null,null,null,null,"3409","130","Y","240","Criminal Department","PERCENT","EFFICIENCY","ADOPTEDBUD",null,null,null,"Criminal Department","% of DWLI Class B Reductions (Now Class C)",null,{"$f":"'Data SBP Measures'!$AF2891&'Data SBP Measures'!$AE2891& \" - \"& 'Data SBP Measures'!$U2891","v":"% of DWLI Class B Reductions (Now Class C)Criminal Department - 130"},{"$f":"_xlfn.XLOOKUP(VALUE(W2891),'Data SBP Programs'!O:O,'Data SBP Programs'!S:S)","v":"Criminal Department"}]
[{"$f":"'Data SBP Measures'!$AI3563&\" - \"&'Data SBP Measures'!$U3563","v":"Probation Services - 145"},{"$f":"'Data SBP Measures'!$AF3563","v":"Percent successfully discharged from probation"},{"$f":"'Data SBP Measures'!$T3563","v":"923"},{"$f":"'Data SBP Measures'!$U3563&B2894","v":"145Percent successfully discharged from probation"},{"$f":"'Data SBP Measures'!$Y3563","v":"PERCENT"},null,null,null,null,null,"Probation Services - 145","Percent successfully discharged from probation",null,null,null,null,null,null,null,"3409","130","Y","240","Criminal Department","PERCENT","EFFICIENCY","ADOPTEDBUD",null,null,null,"Criminal Department","% of DWLI Class B Reductions (Now Class C)",null,{"$f":"'Data SBP Measures'!$AF2894&'Data SBP Measures'!$AE2894& \" - \"& 'Data SBP Measures'!$U2894","v":"% of DWLI Class B Reductions (Now Class C)Criminal Department - 130"},{"$f":"_xlfn.XLOOKUP(VALUE(W2894),'Data SBP Programs'!O:O,'Data SBP Programs'!S:S)","v":"Criminal Department"}]
[{"$f":"'Data SBP Measures'!$AI3564&\" - \"&'Data SBP Measures'!$U3564","v":"Probation Services - 145"},{"$f":"'Data SBP Measures'!$AF3564","v":"Percent successfully discharged from probation"},{"$f":"'Data SBP Measures'!$T3564","v":"923"},{"$f":"'Data SBP Measures'!$U3564&B2895","v":"145Percent successfully discharged from probation"},{"$f":"'Data SBP Measures'!$Y3564","v":"PERCENT"},null,null,null,null,null,"Probation Services - 145","Percent successfully discharged from probation",null,null,null,null,null,null,null,"3409","130","Y","240","Criminal Department","PERCENT","EFFICIENCY","ADOPTEDBUD",null,null,null,"Criminal Department","% of DWLI Class B Reductions (Now Class C)",null,{"$f":"'Data SBP Measures'!$AF2895&'Data SBP Measures'!$AE2895& \" - \"& 'Data SBP Measures'!$U2895","v":"% of DWLI Class B Reductions (Now Class C)Criminal Department - 130"},{"$f":"_xlfn.XLOOKUP(VALUE(W2895),'Data SBP Programs'!O:O,'Data SBP Programs'!S:S)","v":"Criminal Department"}]
[{"$f":"'Data SBP Measures'!$AI3015&\" - \"&'Data SBP Measures'!$U3015","v":"Project Management Office - 112"},{"$f":"'Data SBP Measures'!$AF3015","v":"# of projects completed during a year"},{"$f":"'Data SBP Measures'!$T3015","v":"423"},{"$f":"'Data SBP Measures'!$U3015&B2899","v":"112# of projects completed during a year"},{"$f":"'Data SBP Measures'!$Y3015","v":"EACH"},null,null,null,null,null,"Project Management Office - 112","# of projects completed during a year",null,null,null,null,null,null,null,"3410","130","Y","240","Criminal Department","PERCENT","EFFICIENCY","ADOPTEDBUD",null,null,null,"Criminal Department","% of DWLI Class B Cases Rejected",null,{"$f":"'Data SBP Measures'!$AF2899&'Data SBP Measures'!$AE2899& \" - \"& 'Data SBP Measures'!$U2899","v":"% of DWLI Class B Cases RejectedCriminal Department - 130"},{"$f":"_xlfn.XLOOKUP(VALUE(W2899),'Data SBP Programs'!O:O,'Data SBP Programs'!S:S)","v":"Criminal Department"}]
[{"$f":"'Data SBP Measures'!$AI3014&\" - \"&'Data SBP Measures'!$U3014","v":"Project Management Office - 112"},{"$f":"'Data SBP Measures'!$AF3014","v":"# of projects in portfolio during a year"},{"$f":"'Data SBP Measures'!$T3014","v":"422"},{"$f":"'Data SBP Measures'!$U3014&B2900","v":"112# of projects in portfolio during a year"},{"$f":"'Data SBP Measures'!$Y3014","v":"EACH"},null,null,null,null,null,"Project Management Office - 112","# of projects in portfolio during a year",null,null,null,null,null,null,null,"3410","130","Y","240","Criminal Department","PERCENT","EFFICIENCY","ADOPTEDBUD",null,null,null,"Criminal Department","% of DWLI Class B Cases Rejected",null,{"$f":"'Data SBP Measures'!$AF2900&'Data SBP Measures'!$AE2900& \" - \"& 'Data SBP Measures'!$U2900","v":"% of DWLI Class B Cases RejectedCriminal Department - 130"},{"$f":"_xlfn.XLOOKUP(VALUE(W2900),'Data SBP Programs'!O:O,'Data SBP Programs'!S:S)","v":"Criminal Department"}]
[{"$f":"'Data SBP Measures'!$AI3016&\" - \"&'Data SBP Measures'!$U3016","v":"Project Management Office - 112"},{"$f":"'Data SBP Measures'!$AF3016","v":"% of projects started / total projects"},{"$f":"'Data SBP Measures'!$T3016","v":"424"},{"$f":"'Data SBP Measures'!$U3016&B2903","v":"112% of projects started / total projects"},{"$f":"'Data SBP Measures'!$Y3016","v":"PERCENT"},null,null,null,null,null,"Project Management Office - 112","% of projects started / total projects",null,null,null,null,null,null,null,"3410","130","Y","240","Criminal Department","PERCENT","EFFICIENCY","ADOPTEDBUD",null,null,null,"Criminal Department","% of DWLI Class B Cases Rejected",null,{"$f":"'Data SBP Measures'!$AF2903&'Data SBP Measures'!$AE2903& \" - \"& 'Data SBP Measures'!$U2903","v":"% of DWLI Class B Cases RejectedCriminal Department - 130"},{"$f":"_xlfn.XLOOKUP(VALUE(W2903),'Data SBP Programs'!O:O,'Data SBP Programs'!S:S)","v":"Criminal Department"}]
[{"$f":"'Data SBP Measures'!$AI2455&\" - \"&'Data SBP Measures'!$U2455","v":"Property Tax Collections - 108"},{"$f":"'Data SBP Measures'!$AF2455","v":"# Accts w/Overages Disbursed to Entities"},{"$f":"'Data SBP Measures'!$T2455","v":"3099"},{"$f":"'Data SBP Measures'!$U2455&B2904","v":"108# Accts w/Overages Disbursed to Entities"},{"$f":"'Data SBP Measures'!$Y2455","v":"EACH"},null,null,null,null,null,"Property Tax Collections - 108","# Accts w/Overages Disbursed to Entities",null,null,null,null,null,null,null,"3410","130","Y","240","Criminal Department","PERCENT","EFFICIENCY","ADOPTEDBUD",null,null,null,"Criminal Department","% of DWLI Class B Cases Rejected",null,{"$f":"'Data SBP Measures'!$AF2904&'Data SBP Measures'!$AE2904& \" - \"& 'Data SBP Measures'!$U2904","v":"% of DWLI Class B Cases RejectedCriminal Department - 130"},{"$f":"_xlfn.XLOOKUP(VALUE(W2904),'Data SBP Programs'!O:O,'Data SBP Programs'!S:S)","v":"Criminal Department"}]
[{"$f":"'Data SBP Measures'!$AI1465&\" - \"&'Data SBP Measures'!$U1465","v":"Property Tax Collections - 108"},{"$f":"'Data SBP Measures'!$AF1465","v":"# Annual Tax Office Surveys & Tax Plans Sent"},{"$f":"'Data SBP Measures'!$T1465","v":"226"},{"$f":"'Data SBP Measures'!$U1465&B2908","v":"108# Annual Tax Office Surveys & Tax Plans Sent"},{"$f":"'Data SBP Measures'!$Y1465","v":"EACH"},null,null,null,null,null,"Property Tax Collections - 108","# Annual Tax Office Surveys & Tax Plans Sent",null,null,null,null,null,null,null,"3411","130","Y","240","Criminal Department","PERCENT","EFFICIENCY","ADOPTEDBUD",null,null,null,"Criminal Department","% of DWLI Class B - Degree Remains",null,{"$f":"'Data SBP Measures'!$AF2908&'Data SBP Measures'!$AE2908& \" - \"& 'Data SBP Measures'!$U2908","v":"% of DWLI Class B - Degree RemainsCriminal Department - 130"},{"$f":"_xlfn.XLOOKUP(VALUE(W2908),'Data SBP Programs'!O:O,'Data SBP Programs'!S:S)","v":"Criminal Department"}]
[{"$f":"'Data SBP Measures'!$AI1900&\" - \"&'Data SBP Measures'!$U1900","v":"Property Tax Collections - 108"},{"$f":"'Data SBP Measures'!$AF1900","v":"# Certified Mail Processed"},{"$f":"'Data SBP Measures'!$T1900","v":"255"},{"$f":"'Data SBP Measures'!$U1900&B2910","v":"108# Certified Mail Processed"},{"$f":"'Data SBP Measures'!$Y1900","v":"EACH"},null,null,null,null,null,"Property Tax Collections - 108","# Certified Mail Processed",null,null,null,null,null,null,null,"3411","130","Y","240","Criminal Department","PERCENT","EFFICIENCY","ADOPTEDBUD",null,null,null,"Criminal Department","% of DWLI Class B - Degree Remains",null,{"$f":"'Data SBP Measures'!$AF2910&'Data SBP Measures'!$AE2910& \" - \"& 'Data SBP Measures'!$U2910","v":"% of DWLI Class B - Degree RemainsCriminal Department - 130"},{"$f":"_xlfn.XLOOKUP(VALUE(W2910),'Data SBP Programs'!O:O,'Data SBP Programs'!S:S)","v":"Criminal Department"}]
[{"$f":"'Data SBP Measures'!$AI1257&\" - \"&'Data SBP Measures'!$U1257","v":"Property Tax Collections - 108"},{"$f":"'Data SBP Measures'!$AF1257","v":"# Exempt Property Assessed (estimated for future year)"},{"$f":"'Data SBP Measures'!$T1257","v":"214"},{"$f":"'Data SBP Measures'!$U1257&B2913","v":"108# Exempt Property Assessed (estimated for future year)"},{"$f":"'Data SBP Measures'!$Y1257","v":"EACH"},null,null,null,null,null,"Property Tax Collections - 108","# Exempt Property Assessed (estimated for future year)",null,null,null,null,null,null,null,"3412","149","Y","184","Financial Services","PERCENT","OUTCOME","ADOPTEDBUD",null,null,null,"Financial Services","% of customers satisfied with services \n",null,{"$f":"'Data SBP Measures'!$AF2913&'Data SBP Measures'!$AE2913& \" - \"& 'Data SBP Measures'!$U2913","v":"% of customers satisfied with services \nFinancial Services - 149"},{"$f":"_xlfn.XLOOKUP(VALUE(W2913),'Data SBP Programs'!O:O,'Data SBP Programs'!S:S)","v":"Financial Services"}]
[{"$f":"'Data SBP Measures'!$AI2186&\" - \"&'Data SBP Measures'!$U2186","v":"Property Tax Collections - 108"},{"$f":"'Data SBP Measures'!$AF2186","v":"# Fees Reversed"},{"$f":"'Data SBP Measures'!$T2186","v":"271"},{"$f":"'Data SBP Measures'!$U2186&B2914","v":"108# Fees Reversed"},{"$f":"'Data SBP Measures'!$Y2186","v":"EACH"},null,null,null,null,null,"Property Tax Collections - 108","# Fees Reversed",null,null,null,null,null,null,null,"3419","116","Y","176","Veterans Services","EACH","OUTCOME","ADOPTEDBUD",null,null,null,"Veterans Services","Grant Applications (Federal/State/Local)",null,{"$f":"'Data SBP Measures'!$AF2914&'Data SBP Measures'!$AE2914& \" - \"& 'Data SBP Measures'!$U2914","v":"Grant Applications (Federal/State/Local)Veterans Services - 116"},{"$f":"_xlfn.XLOOKUP(VALUE(W2914),'Data SBP Programs'!O:O,'Data SBP Programs'!S:S)","v":"Veterans Services"}]
[{"$f":"'Data SBP Measures'!$AI1252&\" - \"&'Data SBP Measures'!$U1252","v":"Property Tax Collections - 108"},{"$f":"'Data SBP Measures'!$AF1252","v":"# Mobile Home Taxes estimated for future year"},{"$f":"'Data SBP Measures'!$T1252","v":"213"},{"$f":"'Data SBP Measures'!$U1252&B2918","v":"108# Mobile Home Taxes estimated for future year"},{"$f":"'Data SBP Measures'!$Y1252","v":"EACH"},null,null,null,null,null,"Property Tax Collections - 108","# Mobile Home Taxes estimated for future year",null,null,null,null,null,null,null,"3423","116","Y","176","Veterans Services","EACH","INPUT","ADOPTEDBUD",null,null,null,"Veterans Services","# of new clients",null,{"$f":"'Data SBP Measures'!$AF2918&'Data SBP Measures'!$AE2918& \" - \"& 'Data SBP Measures'!$U2918","v":"# of new clientsVeterans Services - 116"},{"$f":"_xlfn.XLOOKUP(VALUE(W2918),'Data SBP Programs'!O:O,'Data SBP Programs'!S:S)","v":"Veterans Services"}]
[{"$f":"'Data SBP Measures'!$AI1459&\" - \"&'Data SBP Measures'!$U1459","v":"Property Tax Collections - 108"},{"$f":"'Data SBP Measures'!$AF1459","v":"# Notices of Parcel Rate Fee"},{"$f":"'Data SBP Measures'!$T1459","v":"225"},{"$f":"'Data SBP Measures'!$U1459&B2919","v":"108# Notices of Parcel Rate Fee"},{"$f":"'Data SBP Measures'!$Y1459","v":"EACH"},null,null,null,null,null,"Property Tax Collections - 108","# Notices of Parcel Rate Fee",null,null,null,null,null,null,null,"3424","116","Y","176","Veterans Services","EACH","OUTPUT","ADOPTEDBUD",null,null,null,"Veterans Services","# of completed VA Claims",null,{"$f":"'Data SBP Measures'!$AF2919&'Data SBP Measures'!$AE2919& \" - \"& 'Data SBP Measures'!$U2919","v":"# of completed VA ClaimsVeterans Services - 116"},{"$f":"_xlfn.XLOOKUP(VALUE(W2919),'Data SBP Programs'!O:O,'Data SBP Programs'!S:S)","v":"Veterans Services"}]
[{"$f":"'Data SBP Measures'!$AI2036&\" - \"&'Data SBP Measures'!$U2036","v":"Property Tax Collections - 108"},{"$f":"'Data SBP Measures'!$AF2036","v":"# Of demand letters"},{"$f":"'Data SBP Measures'!$T2036","v":"262"},{"$f":"'Data SBP Measures'!$U2036&B2922","v":"108# Of demand letters"},{"$f":"'Data SBP Measures'!$Y2036","v":"EACH"},null,null,null,null,null,"Property Tax Collections - 108","# Of demand letters",null,null,null,null,null,null,null,"3434","112","Y","312","Offsite Storage","EACH","OUTPUT","BLACKBOOK",null,null,null,"Offsite Storage","# Cu. Ft. of new boxes of records sent to offsite storage",null,{"$f":"'Data SBP Measures'!$AF2922&'Data SBP Measures'!$AE2922& \" - \"& 'Data SBP Measures'!$U2922","v":"# Cu. Ft. of new boxes of records sent to offsite storageOffsite Storage - 112"},{"$f":"_xlfn.XLOOKUP(VALUE(W2922),'Data SBP Programs'!O:O,'Data SBP Programs'!S:S)","v":"Offsite Storage"}]
[{"$f":"'Data SBP Measures'!$AI2011&\" - \"&'Data SBP Measures'!$U2011","v":"Property Tax Collections - 108"},{"$f":"'Data SBP Measures'!$AF2011","v":"# Of February Delinquent Tax Statements mailed"},{"$f":"'Data SBP Measures'!$T2011","v":"260"},{"$f":"'Data SBP Measures'!$U2011&B2924","v":"108# Of February Delinquent Tax Statements mailed"},{"$f":"'Data SBP Measures'!$Y2011","v":"EACH"},null,null,null,null,null,"Property Tax Collections - 108","# Of February Delinquent Tax Statements mailed",null,null,null,null,null,null,null,"3436","112","Y","312","Offsite Storage","EACH","EFFICIENCY","BLACKBOOK",null,null,null,"Offsite Storage","Number of cu. ft. permanently removed from storage.",null,{"$f":"'Data SBP Measures'!$AF2924&'Data SBP Measures'!$AE2924& \" - \"& 'Data SBP Measures'!$U2924","v":"Number of cu. ft. permanently removed from storage.Offsite Storage - 112"},{"$f":"_xlfn.XLOOKUP(VALUE(W2924),'Data SBP Programs'!O:O,'Data SBP Programs'!S:S)","v":"Offsite Storage"}]
[{"$f":"'Data SBP Measures'!$AI1559&\" - \"&'Data SBP Measures'!$U1559","v":"Property Tax Collections - 108"},{"$f":"'Data SBP Measures'!$AF1559","v":"# of mailed payments processed"},{"$f":"'Data SBP Measures'!$T1559","v":"231"},{"$f":"'Data SBP Measures'!$U1559&B2927","v":"108# of mailed payments processed"},{"$f":"'Data SBP Measures'!$Y1559","v":"EACH"},null,null,null,null,null,"Property Tax Collections - 108","# of mailed payments processed",null,null,null,null,null,null,null,"3439","112","Y","313","Print Shop","DAYS","EFFICIENCY","ADOPTEDBUD",null,null,null,"Print Shop","# Days Turnaround",null,{"$f":"'Data SBP Measures'!$AF2927&'Data SBP Measures'!$AE2927& \" - \"& 'Data SBP Measures'!$U2927","v":"# Days TurnaroundPrint Shop - 112"},{"$f":"_xlfn.XLOOKUP(VALUE(W2927),'Data SBP Programs'!O:O,'Data SBP Programs'!S:S)","v":"Print Shop"}]
[{"$f":"'Data SBP Measures'!$AI2261&\" - \"&'Data SBP Measures'!$U2261","v":"Property Tax Collections - 108"},{"$f":"'Data SBP Measures'!$AF2261","v":"# Of VIT records reviewed"},{"$f":"'Data SBP Measures'!$T2261","v":"279"},{"$f":"'Data SBP Measures'!$U2261&B2929","v":"108# Of VIT records reviewed"},{"$f":"'Data SBP Measures'!$Y2261","v":"EACH"},null,null,null,null,null,"Property Tax Collections - 108","# Of VIT records reviewed",null,null,null,null,null,null,null,"3441","112","Y","313","Print Shop","EACH","OUTPUT","BLACKBOOK",null,null,null,"Print Shop","# Impressions Produced",null,{"$f":"'Data SBP Measures'!$AF2929&'Data SBP Measures'!$AE2929& \" - \"& 'Data SBP Measures'!$U2929","v":"# Impressions ProducedPrint Shop - 112"},{"$f":"_xlfn.XLOOKUP(VALUE(W2929),'Data SBP Programs'!O:O,'Data SBP Programs'!S:S)","v":"Print Shop"}]
[{"$f":"'Data SBP Measures'!$AI1479&\" - \"&'Data SBP Measures'!$U1479","v":"Property Tax Collections - 108"},{"$f":"'Data SBP Measures'!$AF1479","v":"# Original Tax Notices Requested Electronically"},{"$f":"'Data SBP Measures'!$T1479","v":"228"},{"$f":"'Data SBP Measures'!$U1479&B2932","v":"108# Original Tax Notices Requested Electronically"},{"$f":"'Data SBP Measures'!$Y1479","v":"EACH"},null,null,null,null,null,"Property Tax Collections - 108","# Original Tax Notices Requested Electronically",null,null,null,null,null,null,null,"3444","112","Y","314","Archives","EACH","OUTCOME","BLACKBOOK",null,null,null,"Archives","History Day",null,{"$f":"'Data SBP Measures'!$AF2932&'Data SBP Measures'!$AE2932& \" - \"& 'Data SBP Measures'!$U2932","v":"History DayArchives - 112"},{"$f":"_xlfn.XLOOKUP(VALUE(W2932),'Data SBP Programs'!O:O,'Data SBP Programs'!S:S)","v":"Archives"}]
[{"$f":"'Data SBP Measures'!$AI2175&\" - \"&'Data SBP Measures'!$U2175","v":"Property Tax Collections - 108"},{"$f":"'Data SBP Measures'!$AF2175","v":"# Payments reallocated via TXPAY"},{"$f":"'Data SBP Measures'!$T2175","v":"270"},{"$f":"'Data SBP Measures'!$U2175&B2933","v":"108# Payments reallocated via TXPAY"},{"$f":"'Data SBP Measures'!$Y2175","v":"EACH"},null,null,null,null,null,"Property Tax Collections - 108","# Payments reallocated via TXPAY",null,null,null,null,null,null,null,"3445","112","Y","315","Copiers & Central Repairs","PERCENT","OUTCOME","ADOPTEDBUD",null,null,null,"Copiers & Central Repairs","Overall Customer Satisfaction per Survey",null,{"$f":"'Data SBP Measures'!$AF2933&'Data SBP Measures'!$AE2933& \" - \"& 'Data SBP Measures'!$U2933","v":"Overall Customer Satisfaction per SurveyCopiers & Central Repairs - 112"},{"$f":"_xlfn.XLOOKUP(VALUE(W2933),'Data SBP Programs'!O:O,'Data SBP Programs'!S:S)","v":"Copiers & Central Repairs"}]
[{"$f":"'Data SBP Measures'!$AI2057&\" - \"&'Data SBP Measures'!$U2057","v":"Property Tax Collections - 108"},{"$f":"'Data SBP Measures'!$AF2057","v":"# Records Adjusted due to Resale"},{"$f":"'Data SBP Measures'!$T2057","v":"264"},{"$f":"'Data SBP Measures'!$U2057&B2937","v":"108# Records Adjusted due to Resale"},{"$f":"'Data SBP Measures'!$Y2057","v":"EACH"},null,null,null,null,null,"Property Tax Collections - 108","# Records Adjusted due to Resale",null,null,null,null,null,null,null,"3449","112","Y","316","Document Imaging","EACH","OUTPUT","BLACKBOOK",null,null,null,"Document Imaging","Expunctions and Non-Disclosures",null,{"$f":"'Data SBP Measures'!$AF2937&'Data SBP Measures'!$AE2937& \" - \"& 'Data SBP Measures'!$U2937","v":"Expunctions and Non-DisclosuresDocument Imaging - 112"},{"$f":"_xlfn.XLOOKUP(VALUE(W2937),'Data SBP Programs'!O:O,'Data SBP Programs'!S:S)","v":"Document Imaging"}]
[{"$f":"'Data SBP Measures'!$AI1678&\" - \"&'Data SBP Measures'!$U1678","v":"Property Tax Collections - 108"},{"$f":"'Data SBP Measures'!$AF1678","v":"# Refund Applications Issued"},{"$f":"'Data SBP Measures'!$T1678","v":"236"},{"$f":"'Data SBP Measures'!$U1678&B2938","v":"108# Refund Applications Issued"},{"$f":"'Data SBP Measures'!$Y1678","v":"EACH"},null,null,null,null,null,"Property Tax Collections - 108","# Refund Applications Issued",null,null,null,null,null,null,null,"3450","112","Y","317","Mail Services","PERCENT","OUTCOME","ADOPTEDBUD",null,null,null,"Mail Services","Overall Satisfaction per Survey",null,{"$f":"'Data SBP Measures'!$AF2938&'Data SBP Measures'!$AE2938& \" - \"& 'Data SBP Measures'!$U2938","v":"Overall Satisfaction per SurveyMail Services - 112"},{"$f":"_xlfn.XLOOKUP(VALUE(W2938),'Data SBP Programs'!O:O,'Data SBP Programs'!S:S)","v":"Mail Services"}]
[{"$f":"'Data SBP Measures'!$AI2232&\" - \"&'Data SBP Measures'!$U2232","v":"Property Tax Collections - 108"},{"$f":"'Data SBP Measures'!$AF2232","v":"# Refund Applications Rejected"},{"$f":"'Data SBP Measures'!$T2232","v":"275"},{"$f":"'Data SBP Measures'!$U2232&B2940","v":"108# Refund Applications Rejected"},{"$f":"'Data SBP Measures'!$Y2232","v":"EACH"},null,null,null,null,null,"Property Tax Collections - 108","# Refund Applications Rejected",null,null,null,null,null,null,null,"3457","158","Y","159","Parenting in Recovery","PERCENT","OUTCOME","ADOPTEDBUD",null,null,null,"Parenting in Recovery","Percentage of parents who demonstrate improvement on the PSI-4\n",null,{"$f":"'Data SBP Measures'!$AF2940&'Data SBP Measures'!$AE2940& \" - \"& 'Data SBP Measures'!$U2940","v":"Percentage of parents who demonstrate improvement on the PSI-4\nParenting in Recovery - 158"},{"$f":"_xlfn.XLOOKUP(VALUE(W2940),'Data SBP Programs'!O:O,'Data SBP Programs'!S:S)","v":"Parenting in Recovery"}]
[{"$f":"'Data SBP Measures'!$AI1619&\" - \"&'Data SBP Measures'!$U1619","v":"Property Tax Collections - 108"},{"$f":"'Data SBP Measures'!$AF1619","v":"# Supplemental Increased Liability Accounts Paid Timely"},{"$f":"'Data SBP Measures'!$T1619","v":"233"},{"$f":"'Data SBP Measures'!$U1619&B2943","v":"108# Supplemental Increased Liability Accounts Paid Timely"},{"$f":"'Data SBP Measures'!$Y1619","v":"EACH"},null,null,null,null,null,"Property Tax Collections - 108","# Supplemental Increased Liability Accounts Paid Timely",null,null,null,null,null,null,null,"3460","145","Y","310","IT/Planning and Research","EACH","OUTPUT","ADOPTEDBUD",null,null,null,"IT/Planning and Research","Data processes automated annually",null,{"$f":"'Data SBP Measures'!$AF2943&'Data SBP Measures'!$AE2943& \" - \"& 'Data SBP Measures'!$U2943","v":"Data processes automated annuallyIT/Planning and Research - 145"},{"$f":"_xlfn.XLOOKUP(VALUE(W2943),'Data SBP Programs'!O:O,'Data SBP Programs'!S:S)","v":"IT/Planning and Research"}]
[{"$f":"'Data SBP Measures'!$AI1451&\" - \"&'Data SBP Measures'!$U1451","v":"Property Tax Collections - 108"},{"$f":"'Data SBP Measures'!$AF1451","v":"# Value Certifications Received"},{"$f":"'Data SBP Measures'!$T1451","v":"224"},{"$f":"'Data SBP Measures'!$U1451&B2946","v":"108# Value Certifications Received"},{"$f":"'Data SBP Measures'!$Y1451","v":"EACH"},null,null,null,null,null,"Property Tax Collections - 108","# Value Certifications Received",null,null,null,null,null,null,null,"3463","149","Y","131","Natural Resources Program","EACH","OUTPUT","ADOPTEDBUD",null,null,null,"Natural Resources Program","# linear feet of soil and water conservation projects completed\n",null,{"$f":"'Data SBP Measures'!$AF2946&'Data SBP Measures'!$AE2946& \" - \"& 'Data SBP Measures'!$U2946","v":"# linear feet of soil and water conservation projects completed\nNatural Resources Program - 149"},{"$f":"_xlfn.XLOOKUP(VALUE(W2946),'Data SBP Programs'!O:O,'Data SBP Programs'!S:S)","v":"Natural Resources Program"}]
[{"$f":"'Data SBP Measures'!$AI1769&\" - \"&'Data SBP Measures'!$U1769","v":"Property Tax Collections - 108"},{"$f":"'Data SBP Measures'!$AF1769","v":"#Problem Accts Researched & Resolved (Mail & Referrals & Email)"},{"$f":"'Data SBP Measures'!$T1769","v":"242"},{"$f":"'Data SBP Measures'!$U1769&B2948","v":"108#Problem Accts Researched & Resolved (Mail & Referrals & Email)"},{"$f":"'Data SBP Measures'!$Y1769","v":"EACH"},null,null,null,null,null,"Property Tax Collections - 108","#Problem Accts Researched & Resolved (Mail & Referrals & Email)",null,null,null,null,null,null,null,"3469","155","Y","297","Workforce Development Taskforce (WD)\n","EACH","OUTCOME","ADOPTEDBUD",null,null,null,"Workforce Development Taskforce (WD)\n","# of clients entering program participation",null,{"$f":"'Data SBP Measures'!$AF2948&'Data SBP Measures'!$AE2948& \" - \"& 'Data SBP Measures'!$U2948","v":"# of clients entering program participationWorkforce Development Taskforce (WD)\n - 155"},{"$f":"_xlfn.XLOOKUP(VALUE(W2948),'Data SBP Programs'!O:O,'Data SBP Programs'!S:S)","v":"Workforce Development Taskforce (WD)\n"}]
[{"$f":"'Data SBP Measures'!$AI2457&\" - \"&'Data SBP Measures'!$U2457","v":"Property Tax Collections - 108"},{"$f":"'Data SBP Measures'!$AF2457","v":"$ Late Fees Assessed"},{"$f":"'Data SBP Measures'!$T2457","v":"3100"},{"$f":"'Data SBP Measures'!$U2457&B2951","v":"108$ Late Fees Assessed"},{"$f":"'Data SBP Measures'!$Y2457","v":"DOLLARS"},null,null,null,null,null,"Property Tax Collections - 108","$ Late Fees Assessed",null,null,null,null,null,null,null,"3474","137","Y","60","Classification-Records - CSTU / Property\n","EACH","INPUT","ADOPTEDBUD",null,null,null,"Classification-Records - CSTU / Property\n","Average Daily Population",null,{"$f":"'Data SBP Measures'!$AF2951&'Data SBP Measures'!$AE2951& \" - \"& 'Data SBP Measures'!$U2951","v":"Average Daily PopulationClassification-Records - CSTU / Property\n - 137"},{"$f":"_xlfn.XLOOKUP(VALUE(W2951),'Data SBP Programs'!O:O,'Data SBP Programs'!S:S)","v":"Classification-Records - CSTU / Property\n"}]
[{"$f":"'Data SBP Measures'!$AI1709&\" - \"&'Data SBP Measures'!$U1709","v":"Property Tax Collections - 108"},{"$f":"'Data SBP Measures'!$AF1709","v":"$ Refund Applications Issued"},{"$f":"'Data SBP Measures'!$T1709","v":"237"},{"$f":"'Data SBP Measures'!$U1709&B2952","v":"108$ Refund Applications Issued"},{"$f":"'Data SBP Measures'!$Y1709","v":"DOLLARS"},null,null,null,null,null,"Property Tax Collections - 108","$ Refund Applications Issued",null,null,null,null,null,null,null,"3475","137","Y","60","Classification-Records - CSTU / Property\n","EACH","INPUT","ADOPTEDBUD",null,null,null,"Classification-Records - CSTU / Property\n","Pop count of last day of FY",null,{"$f":"'Data SBP Measures'!$AF2952&'Data SBP Measures'!$AE2952& \" - \"& 'Data SBP Measures'!$U2952","v":"Pop count of last day of FYClassification-Records - CSTU / Property\n - 137"},{"$f":"_xlfn.XLOOKUP(VALUE(W2952),'Data SBP Programs'!O:O,'Data SBP Programs'!S:S)","v":"Classification-Records - CSTU / Property\n"}]
[{"$f":"'Data SBP Measures'!$AI1195&\" - \"&'Data SBP Measures'!$U1195","v":"Property Tax Collections - 108"},{"$f":"'Data SBP Measures'!$AF1195","v":"Ag-Rollbacks Assessed # Parcels"},{"$f":"'Data SBP Measures'!$T1195","v":"211"},{"$f":"'Data SBP Measures'!$U1195&B2956","v":"108Ag-Rollbacks Assessed # Parcels"},{"$f":"'Data SBP Measures'!$Y1195","v":"EACH"},null,null,null,null,null,"Property Tax Collections - 108","Ag-Rollbacks Assessed # Parcels",null,null,null,null,null,null,null,"3479","137","Y","60","Classification-Records - CSTU / Property\n","PERCENT","INPUT","ADOPTEDBUD",null,null,null,"Classification-Records - CSTU / Property\n","MH ADP % - YRLY",null,{"$f":"'Data SBP Measures'!$AF2956&'Data SBP Measures'!$AE2956& \" - \"& 'Data SBP Measures'!$U2956","v":"MH ADP % - YRLYClassification-Records - CSTU / Property\n - 137"},{"$f":"_xlfn.XLOOKUP(VALUE(W2956),'Data SBP Programs'!O:O,'Data SBP Programs'!S:S)","v":"Classification-Records - CSTU / Property\n"}]
[{"$f":"'Data SBP Measures'!$AI2136&\" - \"&'Data SBP Measures'!$U2136","v":"Property Tax Collections - 108"},{"$f":"'Data SBP Measures'!$AF2136","v":"Attorney Ad Litem"},{"$f":"'Data SBP Measures'!$T2136","v":"267"},{"$f":"'Data SBP Measures'!$U2136&B2957","v":"108Attorney Ad Litem"},{"$f":"'Data SBP Measures'!$Y2136","v":"EACH"},null,null,null,null,null,"Property Tax Collections - 108","Attorney Ad Litem",null,null,null,null,null,null,null,"3481","137","Y","55","Central Booking","EACH","INPUT","ADOPTEDBUD",null,null,null,"Central Booking","No. of times contraband was found",null,{"$f":"'Data SBP Measures'!$AF2957&'Data SBP Measures'!$AE2957& \" - \"& 'Data SBP Measures'!$U2957","v":"No. of times contraband was foundCentral Booking - 137"},{"$f":"_xlfn.XLOOKUP(VALUE(W2957),'Data SBP Programs'!O:O,'Data SBP Programs'!S:S)","v":"Central Booking"}]
[{"$f":"'Data SBP Measures'!$AI1241&\" - \"&'Data SBP Measures'!$U1241","v":"Property Tax Collections - 108"},{"$f":"'Data SBP Measures'!$AF1241","v":"Contracts for Future Taxes Assessed & Escrowed - # Parcels"},{"$f":"'Data SBP Measures'!$T1241","v":"212"},{"$f":"'Data SBP Measures'!$U1241&B2959","v":"108Contracts for Future Taxes Assessed & Escrowed - # Parcels"},{"$f":"'Data SBP Measures'!$Y1241","v":"EACH"},null,null,null,null,null,"Property Tax Collections - 108","Contracts for Future Taxes Assessed & Escrowed - # Parcels",null,null,null,null,null,null,null,"3481","137","Y","55","Central Booking","EACH","INPUT","ADOPTEDBUD",null,null,null,"Central Booking","No. of times contraband was found",null,{"$f":"'Data SBP Measures'!$AF2959&'Data SBP Measures'!$AE2959& \" - \"& 'Data SBP Measures'!$U2959","v":"No. of times contraband was foundCentral Booking - 137"},{"$f":"_xlfn.XLOOKUP(VALUE(W2959),'Data SBP Programs'!O:O,'Data SBP Programs'!S:S)","v":"Central Booking"}]
[{"$f":"'Data SBP Measures'!$AI1386&\" - \"&'Data SBP Measures'!$U1386","v":"Property Tax Collections - 108"},{"$f":"'Data SBP Measures'!$AF1386","v":"Issue Tax Sale Statements"},{"$f":"'Data SBP Measures'!$T1386","v":"220"},{"$f":"'Data SBP Measures'!$U1386&B2962","v":"108Issue Tax Sale Statements"},{"$f":"'Data SBP Measures'!$Y1386","v":"EACH"},null,null,null,null,null,"Property Tax Collections - 108","Issue Tax Sale Statements",null,null,null,null,null,null,null,"3482","137","Y","55","Central Booking","EACH","OUTPUT","ADOPTEDBUD",null,null,null,"Central Booking","Average no of daily bookings",null,{"$f":"'Data SBP Measures'!$AF2962&'Data SBP Measures'!$AE2962& \" - \"& 'Data SBP Measures'!$U2962","v":"Average no of daily bookingsCentral Booking - 137"},{"$f":"_xlfn.XLOOKUP(VALUE(W2962),'Data SBP Programs'!O:O,'Data SBP Programs'!S:S)","v":"Central Booking"}]
[{"$f":"'Data SBP Measures'!$AI1385&\" - \"&'Data SBP Measures'!$U1385","v":"Property Tax Collections - 108"},{"$f":"'Data SBP Measures'!$AF1385","v":"Mobile Home Lien Releases"},{"$f":"'Data SBP Measures'!$T1385","v":"219"},{"$f":"'Data SBP Measures'!$U1385&B2965","v":"108Mobile Home Lien Releases"},{"$f":"'Data SBP Measures'!$Y1385","v":"EACH"},null,null,null,null,null,"Property Tax Collections - 108","Mobile Home Lien Releases",null,null,null,null,null,null,null,"3485","137","Y","57","Central Warrants","EACH","OUTPUT","ADOPTEDBUD",null,null,null,"Central Warrants","Condition of Bond Record Packets Entered",null,{"$f":"'Data SBP Measures'!$AF2965&'Data SBP Measures'!$AE2965& \" - \"& 'Data SBP Measures'!$U2965","v":"Condition of Bond Record Packets EnteredCentral Warrants - 137"},{"$f":"_xlfn.XLOOKUP(VALUE(W2965),'Data SBP Programs'!O:O,'Data SBP Programs'!S:S)","v":"Central Warrants"}]
[{"$f":"'Data SBP Measures'!$AI1826&\" - \"&'Data SBP Measures'!$U1826","v":"Property Tax Collections - 108"},{"$f":"'Data SBP Measures'!$AF1826","v":"Negotiated Lawsuit Partial Pay Agreements"},{"$f":"'Data SBP Measures'!$T1826","v":"247"},{"$f":"'Data SBP Measures'!$U1826&B2967","v":"108Negotiated Lawsuit Partial Pay Agreements"},{"$f":"'Data SBP Measures'!$Y1826","v":"EACH"},null,null,null,null,null,"Property Tax Collections - 108","Negotiated Lawsuit Partial Pay Agreements",null,null,null,null,null,null,null,"3487","137","Y","57","Central Warrants","EACH","OUTPUT","ADOPTEDBUD",null,null,null,"Central Warrants","# of TCIC/NCIC Record Second Party Check completed",null,{"$f":"'Data SBP Measures'!$AF2967&'Data SBP Measures'!$AE2967& \" - \"& 'Data SBP Measures'!$U2967","v":"# of TCIC/NCIC Record Second Party Check completedCentral Warrants - 137"},{"$f":"_xlfn.XLOOKUP(VALUE(W2967),'Data SBP Programs'!O:O,'Data SBP Programs'!S:S)","v":"Central Warrants"}]
[{"$f":"'Data SBP Measures'!$AI1097&\" - \"&'Data SBP Measures'!$U1097","v":"Property Tax Collections - 108"},{"$f":"'Data SBP Measures'!$AF1097","v":"Original Tax Roll # Parcels"},{"$f":"'Data SBP Measures'!$T1097","v":"207"},{"$f":"'Data SBP Measures'!$U1097&B2970","v":"108Original Tax Roll # Parcels"},{"$f":"'Data SBP Measures'!$Y1097","v":"EACH"},null,null,null,null,null,"Property Tax Collections - 108","Original Tax Roll # Parcels",null,null,null,null,null,null,null,"3490","137","Y","57","Central Warrants","EACH","INPUT","ADOPTEDBUD",null,null,null,"Central Warrants","Phone Calls Total",null,{"$f":"'Data SBP Measures'!$AF2970&'Data SBP Measures'!$AE2970& \" - \"& 'Data SBP Measures'!$U2970","v":"Phone Calls TotalCentral Warrants - 137"},{"$f":"_xlfn.XLOOKUP(VALUE(W2970),'Data SBP Programs'!O:O,'Data SBP Programs'!S:S)","v":"Central Warrants"}]
[{"$f":"'Data SBP Measures'!$AI1114&\" - \"&'Data SBP Measures'!$U1114","v":"Property Tax Collections - 108"},{"$f":"'Data SBP Measures'!$AF1114","v":"Original Tax Roll $ Base Levy All Entities"},{"$f":"'Data SBP Measures'!$T1114","v":"208"},{"$f":"'Data SBP Measures'!$U1114&B2971","v":"108Original Tax Roll $ Base Levy All Entities"},{"$f":"'Data SBP Measures'!$Y1114","v":"DOLLARS"},null,null,null,null,null,"Property Tax Collections - 108","Original Tax Roll $ Base Levy All Entities",null,null,null,null,null,null,null,"3499","137","Y","70","Crisis Intervention Team","EACH","INPUT","ADOPTEDBUD",null,null,null,"Crisis Intervention Team","CIT Response MH Calls",null,{"$f":"'Data SBP Measures'!$AF2971&'Data SBP Measures'!$AE2971& \" - \"& 'Data SBP Measures'!$U2971","v":"CIT Response MH CallsCrisis Intervention Team - 137"},{"$f":"_xlfn.XLOOKUP(VALUE(W2971),'Data SBP Programs'!O:O,'Data SBP Programs'!S:S)","v":"Crisis Intervention Team"}]
[{"$f":"'Data SBP Measures'!$AI1850&\" - \"&'Data SBP Measures'!$U1850","v":"Property Tax Collections - 108"},{"$f":"'Data SBP Measures'!$AF1850","v":"Parcels Required Additional Time to Pay"},{"$f":"'Data SBP Measures'!$T1850","v":"250"},{"$f":"'Data SBP Measures'!$U1850&B2973","v":"108Parcels Required Additional Time to Pay"},{"$f":"'Data SBP Measures'!$Y1850","v":"EACH"},null,null,null,null,null,"Property Tax Collections - 108","Parcels Required Additional Time to Pay",null,null,null,null,null,null,null,"3500","137","Y","70","Crisis Intervention Team","EACH","INPUT","ADOPTEDBUD",null,null,null,"Crisis Intervention Team","MH Calls - Patrol & Cit ",null,{"$f":"'Data SBP Measures'!$AF2973&'Data SBP Measures'!$AE2973& \" - \"& 'Data SBP Measures'!$U2973","v":"MH Calls - Patrol & Cit Crisis Intervention Team - 137"},{"$f":"_xlfn.XLOOKUP(VALUE(W2973),'Data SBP Programs'!O:O,'Data SBP Programs'!S:S)","v":"Crisis Intervention Team"}]
[{"$f":"'Data SBP Measures'!$AI2146&\" - \"&'Data SBP Measures'!$U2146","v":"Property Tax Collections - 108"},{"$f":"'Data SBP Measures'!$AF2146","v":"Properties Advertised for Tax Sale"},{"$f":"'Data SBP Measures'!$T2146","v":"268"},{"$f":"'Data SBP Measures'!$U2146&B2976","v":"108Properties Advertised for Tax Sale"},{"$f":"'Data SBP Measures'!$Y2146","v":"EACH"},null,null,null,null,null,"Property Tax Collections - 108","Properties Advertised for Tax Sale",null,null,null,null,null,null,null,"3503","137","Y","70","Crisis Intervention Team","EACH","INPUT","ADOPTEDBUD",null,null,null,"Crisis Intervention Team","Hospital Calls (all hospital facilities) ",null,{"$f":"'Data SBP Measures'!$AF2976&'Data SBP Measures'!$AE2976& \" - \"& 'Data SBP Measures'!$U2976","v":"Hospital Calls (all hospital facilities) Crisis Intervention Team - 137"},{"$f":"_xlfn.XLOOKUP(VALUE(W2976),'Data SBP Programs'!O:O,'Data SBP Programs'!S:S)","v":"Crisis Intervention Team"}]
[{"$f":"'Data SBP Measures'!$AI1173&\" - \"&'Data SBP Measures'!$U1173","v":"Property Tax Collections - 108"},{"$f":"'Data SBP Measures'!$AF1173","v":"Resolved District Court Appeal - $ Total Value Loss"},{"$f":"'Data SBP Measures'!$T1173","v":"210"},{"$f":"'Data SBP Measures'!$U1173&B2978","v":"108Resolved District Court Appeal - $ Total Value Loss"},{"$f":"'Data SBP Measures'!$Y1173","v":"DOLLARS"},null,null,null,null,null,"Property Tax Collections - 108","Resolved District Court Appeal - $ Total Value Loss",null,null,null,null,null,null,null,"3505","137","Y","70","Crisis Intervention Team","EACH","INPUT","ADOPTEDBUD",null,null,null,"Crisis Intervention Team","No. of jail calls (TCJ & TCCC) ",null,{"$f":"'Data SBP Measures'!$AF2978&'Data SBP Measures'!$AE2978& \" - \"& 'Data SBP Measures'!$U2978","v":"No. of jail calls (TCJ & TCCC) Crisis Intervention Team - 137"},{"$f":"_xlfn.XLOOKUP(VALUE(W2978),'Data SBP Programs'!O:O,'Data SBP Programs'!S:S)","v":"Crisis Intervention Team"}]
[{"$f":"'Data SBP Measures'!$AI1758&\" - \"&'Data SBP Measures'!$U1758","v":"Property Tax Collections - 108"},{"$f":"'Data SBP Measures'!$AF1758","v":"Taxpayer Telephone Calls Abandoned*"},{"$f":"'Data SBP Measures'!$T1758","v":"241"},{"$f":"'Data SBP Measures'!$U1758&B2981","v":"108Taxpayer Telephone Calls Abandoned*"},{"$f":"'Data SBP Measures'!$Y1758","v":"EACH"},null,null,null,null,null,"Property Tax Collections - 108","Taxpayer Telephone Calls Abandoned*",null,null,null,null,null,null,null,"3514","137","Y","80","Hospital Visitation Unit","DAYS","INPUT","ADOPTEDBUD",null,null,null,"Hospital Visitation Unit","Average days in hospital per inmate",null,{"$f":"'Data SBP Measures'!$AF2981&'Data SBP Measures'!$AE2981& \" - \"& 'Data SBP Measures'!$U2981","v":"Average days in hospital per inmateHospital Visitation Unit - 137"},{"$f":"_xlfn.XLOOKUP(VALUE(W2981),'Data SBP Programs'!O:O,'Data SBP Programs'!S:S)","v":"Hospital Visitation Unit"}]
[{"$f":"'Data SBP Measures'!$AI2003&\" - \"&'Data SBP Measures'!$U2003","v":"Property Tax Collections - 108"},{"$f":"'Data SBP Measures'!$AF2003","v":"Total Collection Rate TCO"},{"$f":"'Data SBP Measures'!$T2003","v":"259"},{"$f":"'Data SBP Measures'!$U2003&B2984","v":"108Total Collection Rate TCO"},{"$f":"'Data SBP Measures'!$Y2003","v":"PERCENT"},null,null,null,null,null,"Property Tax Collections - 108","Total Collection Rate TCO",null,null,null,null,null,null,null,"3517","137","Y","80","Hospital Visitation Unit","HOURS","OUTPUT","ADOPTEDBUD",null,null,null,"Hospital Visitation Unit","Total no of hospital hours",null,{"$f":"'Data SBP Measures'!$AF2984&'Data SBP Measures'!$AE2984& \" - \"& 'Data SBP Measures'!$U2984","v":"Total no of hospital hoursHospital Visitation Unit - 137"},{"$f":"_xlfn.XLOOKUP(VALUE(W2984),'Data SBP Programs'!O:O,'Data SBP Programs'!S:S)","v":"Hospital Visitation Unit"}]
[{"$f":"'Data SBP Measures'!$AI2571&\" - \"&'Data SBP Measures'!$U2571","v":"Public Defender's Office - 144"},{"$f":"'Data SBP Measures'!$AF2571","v":"Average number of days clients are in jail prior to disposition for felonies"},{"$f":"'Data SBP Measures'!$T2571","v":"3214"},{"$f":"'Data SBP Measures'!$U2571&B2986","v":"144Average number of days clients are in jail prior to disposition for felonies"},{"$f":"'Data SBP Measures'!$Y2571","v":"DAYS"},null,null,null,null,null,"Public Defender's Office - 144","Average number of days clients are in jail prior to disposition for felonies",null,null,null,null,null,null,null,"3519","137","Y","80","Hospital Visitation Unit","HOURS","OUTPUT","ADOPTEDBUD",null,null,null,"Hospital Visitation Unit","Total no of ER Hours",null,{"$f":"'Data SBP Measures'!$AF2986&'Data SBP Measures'!$AE2986& \" - \"& 'Data SBP Measures'!$U2986","v":"Total no of ER HoursHospital Visitation Unit - 137"},{"$f":"_xlfn.XLOOKUP(VALUE(W2986),'Data SBP Programs'!O:O,'Data SBP Programs'!S:S)","v":"Hospital Visitation Unit"}]
[{"$f":"'Data SBP Measures'!$AI2574&\" - \"&'Data SBP Measures'!$U2574","v":"Public Defender's Office - 144"},{"$f":"'Data SBP Measures'!$AF2574","v":"Average number of days clients are in jail prior to disposition for misdemeanors"},{"$f":"'Data SBP Measures'!$T2574","v":"3215"},{"$f":"'Data SBP Measures'!$U2574&B2989","v":"144Average number of days clients are in jail prior to disposition for misdemeanors"},{"$f":"'Data SBP Measures'!$Y2574","v":"DAYS"},null,null,null,null,null,"Public Defender's Office - 144","Average number of days clients are in jail prior to disposition for misdemeanors",null,null,null,null,null,null,null,"3522","137","Y","80","Hospital Visitation Unit","EACH","OUTPUT","ADOPTEDBUD",null,null,null,"Hospital Visitation Unit","Total no of HVU runs",null,{"$f":"'Data SBP Measures'!$AF2989&'Data SBP Measures'!$AE2989& \" - \"& 'Data SBP Measures'!$U2989","v":"Total no of HVU runsHospital Visitation Unit - 137"},{"$f":"_xlfn.XLOOKUP(VALUE(W2989),'Data SBP Programs'!O:O,'Data SBP Programs'!S:S)","v":"Hospital Visitation Unit"}]
[{"$f":"'Data SBP Measures'!$AI2575&\" - \"&'Data SBP Measures'!$U2575","v":"Public Defender's Office - 144"},{"$f":"'Data SBP Measures'!$AF2575","v":"Average number of days clients are in jail prior to disposition for misdemeanors"},{"$f":"'Data SBP Measures'!$T2575","v":"3215"},{"$f":"'Data SBP Measures'!$U2575&B2990","v":"144Average number of days clients are in jail prior to disposition for misdemeanors"},{"$f":"'Data SBP Measures'!$Y2575","v":"DAYS"},null,null,null,null,null,"Public Defender's Office - 144","Average number of days clients are in jail prior to disposition for misdemeanors",null,null,null,null,null,null,null,"3523","137","Y","80","Hospital Visitation Unit","HOURS","OUTPUT","ADOPTEDBUD",null,null,null,"Hospital Visitation Unit","Total no of HVU hours",null,{"$f":"'Data SBP Measures'!$AF2990&'Data SBP Measures'!$AE2990& \" - \"& 'Data SBP Measures'!$U2990","v":"Total no of HVU hoursHospital Visitation Unit - 137"},{"$f":"_xlfn.XLOOKUP(VALUE(W2990),'Data SBP Programs'!O:O,'Data SBP Programs'!S:S)","v":"Hospital Visitation Unit"}]
[{"$f":"'Data SBP Measures'!$AI2577&\" - \"&'Data SBP Measures'!$U2577","v":"Public Defender's Office - 144"},{"$f":"'Data SBP Measures'!$AF2577","v":"Average number of days clients are in jail prior to disposition for misdemeanors"},{"$f":"'Data SBP Measures'!$T2577","v":"3215"},{"$f":"'Data SBP Measures'!$U2577&B2992","v":"144Average number of days clients are in jail prior to disposition for misdemeanors"},{"$f":"'Data SBP Measures'!$Y2577","v":"DAYS"},null,null,null,null,null,"Public Defender's Office - 144","Average number of days clients are in jail prior to disposition for misdemeanors",null,null,null,null,null,null,null,"3525","137","Y","81","Human Resources - Recruiting","EACH","INPUT","ADOPTEDBUD",null,null,null,"Human Resources - Recruiting","No. of terminations / retirements",null,{"$f":"'Data SBP Measures'!$AF2992&'Data SBP Measures'!$AE2992& \" - \"& 'Data SBP Measures'!$U2992","v":"No. of terminations / retirementsHuman Resources - Recruiting - 137"},{"$f":"_xlfn.XLOOKUP(VALUE(W2992),'Data SBP Programs'!O:O,'Data SBP Programs'!S:S)","v":"Human Resources - Recruiting"}]
[{"$f":"'Data SBP Measures'!$AI2612&\" - \"&'Data SBP Measures'!$U2612","v":"Public Defender's Office - 144"},{"$f":"'Data SBP Measures'!$AF2612","v":"Average weighted caseload per attorney"},{"$f":"'Data SBP Measures'!$T2612","v":"3227"},{"$f":"'Data SBP Measures'!$U2612&B2995","v":"144Average weighted caseload per attorney"},{"$f":"'Data SBP Measures'!$Y2612","v":"EACH"},null,null,null,null,null,"Public Defender's Office - 144","Average weighted caseload per attorney",null,null,null,null,null,null,null,"3531","137","Y","87","Kitchen","EACH","OUTPUT","ADOPTEDBUD",null,null,null,"Kitchen","No. of trays",null,{"$f":"'Data SBP Measures'!$AF2995&'Data SBP Measures'!$AE2995& \" - \"& 'Data SBP Measures'!$U2995","v":"No. of traysKitchen - 137"},{"$f":"_xlfn.XLOOKUP(VALUE(W2995),'Data SBP Programs'!O:O,'Data SBP Programs'!S:S)","v":"Kitchen"}]
[{"$f":"'Data SBP Measures'!$AI2554&\" - \"&'Data SBP Measures'!$U2554","v":"Public Defender's Office - 144"},{"$f":"'Data SBP Measures'!$AF2554","v":"New cause numbers represented by PDO"},{"$f":"'Data SBP Measures'!$T2554","v":"3210"},{"$f":"'Data SBP Measures'!$U2554&B2997","v":"144New cause numbers represented by PDO"},{"$f":"'Data SBP Measures'!$Y2554","v":"EACH"},null,null,null,null,null,"Public Defender's Office - 144","New cause numbers represented by PDO",null,null,null,null,null,null,null,"3541","137","Y","108","Transportation","EACH","INPUT","ADOPTEDBUD",null,null,null,"Transportation","No. of inmates In Person courts",null,{"$f":"'Data SBP Measures'!$AF2997&'Data SBP Measures'!$AE2997& \" - \"& 'Data SBP Measures'!$U2997","v":"No. of inmates In Person courtsTransportation - 137"},{"$f":"_xlfn.XLOOKUP(VALUE(W2997),'Data SBP Programs'!O:O,'Data SBP Programs'!S:S)","v":"Transportation"}]
[{"$f":"'Data SBP Measures'!$AI2557&\" - \"&'Data SBP Measures'!$U2557","v":"Public Defender's Office - 144"},{"$f":"'Data SBP Measures'!$AF2557","v":"New cause numbers represented by PDO"},{"$f":"'Data SBP Measures'!$T2557","v":"3210"},{"$f":"'Data SBP Measures'!$U2557&B3000","v":"144New cause numbers represented by PDO"},{"$f":"'Data SBP Measures'!$Y2557","v":"EACH"},null,null,null,null,null,"Public Defender's Office - 144","New cause numbers represented by PDO",null,null,null,null,null,null,null,"3546","137","Y","109","Victim Services","EACH","EFFICIENCY","ADOPTEDBUD",null,null,null,"Victim Services","Average # cases per counselor per month",null,{"$f":"'Data SBP Measures'!$AF3000&'Data SBP Measures'!$AE3000& \" - \"& 'Data SBP Measures'!$U3000","v":"Average # cases per counselor per monthVictim Services - 137"},{"$f":"_xlfn.XLOOKUP(VALUE(W3000),'Data SBP Programs'!O:O,'Data SBP Programs'!S:S)","v":"Victim Services"}]
[{"$f":"'Data SBP Measures'!$AI2592&\" - \"&'Data SBP Measures'!$U2592","v":"Public Defender's Office - 144"},{"$f":"'Data SBP Measures'!$AF2592","v":"Number of clients referred to community-based civil legal and/or social support resources"},{"$f":"'Data SBP Measures'!$T2592","v":"3221"},{"$f":"'Data SBP Measures'!$U2592&B3003","v":"144Number of clients referred to community-based civil legal and/or social support resources"},{"$f":"'Data SBP Measures'!$Y2592","v":"EACH"},null,null,null,null,null,"Public Defender's Office - 144","Number of clients referred to community-based civil legal and/or social support resources",null,null,null,null,null,null,null,"3551","104","Y","189","County Commissioner Precinct Three","EACH","OUTPUT","ADOPTEDBUD",null,null,null,"County Commissioner Precinct Three","Number of inquiries responded to",null,{"$f":"'Data SBP Measures'!$AF3003&'Data SBP Measures'!$AE3003& \" - \"& 'Data SBP Measures'!$U3003","v":"Number of inquiries responded toCounty Commissioner Precinct Three - 104"},{"$f":"_xlfn.XLOOKUP(VALUE(W3003),'Data SBP Programs'!O:O,'Data SBP Programs'!S:S)","v":"County Commissioner Precinct Three"}]
[{"$f":"'Data SBP Measures'!$AI2602&\" - \"&'Data SBP Measures'!$U2602","v":"Public Defender's Office - 144"},{"$f":"'Data SBP Measures'!$AF2602","v":"Number of hearings/trials (felony)"},{"$f":"'Data SBP Measures'!$T2602","v":"3225"},{"$f":"'Data SBP Measures'!$U2602&B3005","v":"144Number of hearings/trials (felony)"},{"$f":"'Data SBP Measures'!$Y2602","v":"EACH"},null,null,null,null,null,"Public Defender's Office - 144","Number of hearings/trials (felony)",null,null,null,null,null,null,null,"3553","104","Y","189","County Commissioner Precinct Three","EACH","OUTPUT","ADOPTEDBUD",null,null,null,"County Commissioner Precinct Three","Number of speaking engagements in Precinct 3",null,{"$f":"'Data SBP Measures'!$AF3005&'Data SBP Measures'!$AE3005& \" - \"& 'Data SBP Measures'!$U3005","v":"Number of speaking engagements in Precinct 3County Commissioner Precinct Three - 104"},{"$f":"_xlfn.XLOOKUP(VALUE(W3005),'Data SBP Programs'!O:O,'Data SBP Programs'!S:S)","v":"County Commissioner Precinct Three"}]
[{"$f":"'Data SBP Measures'!$AI2605&\" - \"&'Data SBP Measures'!$U2605","v":"Public Defender's Office - 144"},{"$f":"'Data SBP Measures'!$AF2605","v":"Number of hearings/trials (felony)"},{"$f":"'Data SBP Measures'!$T2605","v":"3225"},{"$f":"'Data SBP Measures'!$U2605&B3008","v":"144Number of hearings/trials (felony)"},{"$f":"'Data SBP Measures'!$Y2605","v":"EACH"},null,null,null,null,null,"Public Defender's Office - 144","Number of hearings/trials (felony)",null,null,null,null,null,null,null,"37","109","Y","10","Budget","PERCENT","EFFICIENCY","ADOPTEDBUD",null,null,null,"Budget","Percent of Allocated Reserve Spent",null,{"$f":"'Data SBP Measures'!$AF3008&'Data SBP Measures'!$AE3008& \" - \"& 'Data SBP Measures'!$U3008","v":"Percent of Allocated Reserve SpentBudget - 109"},{"$f":"_xlfn.XLOOKUP(VALUE(W3008),'Data SBP Programs'!O:O,'Data SBP Programs'!S:S)","v":"Budget"}]
[{"$f":"'Data SBP Measures'!$AI2546&\" - \"&'Data SBP Measures'!$U2546","v":"Public Defender's Office - 144"},{"$f":"'Data SBP Measures'!$AF2546","v":"Number of in-house trainings/CLE programs"},{"$f":"'Data SBP Measures'!$T2546","v":"3208"},{"$f":"'Data SBP Measures'!$U2546&B3009","v":"144Number of in-house trainings/CLE programs"},{"$f":"'Data SBP Measures'!$Y2546","v":"EACH"},null,null,null,null,null,"Public Defender's Office - 144","Number of in-house trainings/CLE programs",null,null,null,null,null,null,null,"38","109","Y","10","Budget","PERCENT","OUTCOME","ADOPTEDBUD",null,null,null,"Budget","Accuracy of General Fund expenditure estimate compared to actuals",null,{"$f":"'Data SBP Measures'!$AF3009&'Data SBP Measures'!$AE3009& \" - \"& 'Data SBP Measures'!$U3009","v":"Accuracy of General Fund expenditure estimate compared to actualsBudget - 109"},{"$f":"_xlfn.XLOOKUP(VALUE(W3009),'Data SBP Programs'!O:O,'Data SBP Programs'!S:S)","v":"Budget"}]
[{"$f":"'Data SBP Measures'!$AI2548&\" - \"&'Data SBP Measures'!$U2548","v":"Public Defender's Office - 144"},{"$f":"'Data SBP Measures'!$AF2548","v":"Number of in-house trainings/CLE programs"},{"$f":"'Data SBP Measures'!$T2548","v":"3208"},{"$f":"'Data SBP Measures'!$U2548&B3011","v":"144Number of in-house trainings/CLE programs"},{"$f":"'Data SBP Measures'!$Y2548","v":"EACH"},null,null,null,null,null,"Public Defender's Office - 144","Number of in-house trainings/CLE programs",null,null,null,null,null,null,null,"40","109","Y","11","Economic & Strategic Planning","PERCENT","OUTPUT","ADOPTEDBUD",null,null,null,"Economic & Strategic Planning","% of Facilities with a documented plan",null,{"$f":"'Data SBP Measures'!$AF3011&'Data SBP Measures'!$AE3011& \" - \"& 'Data SBP Measures'!$U3011","v":"% of Facilities with a documented planEconomic & Strategic Planning - 109"},{"$f":"_xlfn.XLOOKUP(VALUE(W3011),'Data SBP Programs'!O:O,'Data SBP Programs'!S:S)","v":"Economic & Strategic Planning"}]
[{"$f":"'Data SBP Measures'!$AI2587&\" - \"&'Data SBP Measures'!$U2587","v":"Public Defender's Office - 144"},{"$f":"'Data SBP Measures'!$AF2587","v":"Number of new immigration (Padilla) referrals"},{"$f":"'Data SBP Measures'!$T2587","v":"3220"},{"$f":"'Data SBP Measures'!$U2587&B3014","v":"144Number of new immigration (Padilla) referrals"},{"$f":"'Data SBP Measures'!$Y2587","v":"EACH"},null,null,null,null,null,"Public Defender's Office - 144","Number of new immigration (Padilla) referrals",null,null,null,null,null,null,null,"422","112","Y","31","Project Management Office","EACH","INPUT","BLACKBOOK",null,null,null,"Project Management Office","# of projects in portfolio during a year",null,{"$f":"'Data SBP Measures'!$AF3014&'Data SBP Measures'!$AE3014& \" - \"& 'Data SBP Measures'!$U3014","v":"# of projects in portfolio during a yearProject Management Office - 112"},{"$f":"_xlfn.XLOOKUP(VALUE(W3014),'Data SBP Programs'!O:O,'Data SBP Programs'!S:S)","v":"Project Management Office"}]
[{"$f":"'Data SBP Measures'!$AI2589&\" - \"&'Data SBP Measures'!$U2589","v":"Public Defender's Office - 144"},{"$f":"'Data SBP Measures'!$AF2589","v":"Number of new immigration (Padilla) referrals"},{"$f":"'Data SBP Measures'!$T2589","v":"3220"},{"$f":"'Data SBP Measures'!$U2589&B3016","v":"144Number of new immigration (Padilla) referrals"},{"$f":"'Data SBP Measures'!$Y2589","v":"EACH"},null,null,null,null,null,"Public Defender's Office - 144","Number of new immigration (Padilla) referrals",null,null,null,null,null,null,null,"424","112","Y","31","Project Management Office","PERCENT","EFFICIENCY","BLACKBOOK",null,null,null,"Project Management Office","% of projects started / total projects",null,{"$f":"'Data SBP Measures'!$AF3016&'Data SBP Measures'!$AE3016& \" - \"& 'Data SBP Measures'!$U3016","v":"% of projects started / total projectsProject Management Office - 112"},{"$f":"_xlfn.XLOOKUP(VALUE(W3016),'Data SBP Programs'!O:O,'Data SBP Programs'!S:S)","v":"Project Management Office"}]
[{"$f":"'Data SBP Measures'!$AI2580&\" - \"&'Data SBP Measures'!$U2580","v":"Public Defender's Office - 144"},{"$f":"'Data SBP Measures'!$AF2580","v":"Number of new investigative referrals"},{"$f":"'Data SBP Measures'!$T2580","v":"3218"},{"$f":"'Data SBP Measures'!$U2580&B3019","v":"144Number of new investigative referrals"},{"$f":"'Data SBP Measures'!$Y2580","v":"EACH"},null,null,null,null,null,"Public Defender's Office - 144","Number of new investigative referrals",null,null,null,null,null,null,null,"43","109","Y","11","Economic & Strategic Planning","EACH","OUTCOME","ADOPTEDBUD",null,null,null,"Economic & Strategic Planning","New capital investment created by Chapter 381 economic development agreements",null,{"$f":"'Data SBP Measures'!$AF3019&'Data SBP Measures'!$AE3019& \" - \"& 'Data SBP Measures'!$U3019","v":"New capital investment created by Chapter 381 economic development agreementsEconomic & Strategic Planning - 109"},{"$f":"_xlfn.XLOOKUP(VALUE(W3019),'Data SBP Programs'!O:O,'Data SBP Programs'!S:S)","v":"Economic & Strategic Planning"}]
[{"$f":"'Data SBP Measures'!$AI2583&\" - \"&'Data SBP Measures'!$U2583","v":"Public Defender's Office - 144"},{"$f":"'Data SBP Measures'!$AF2583","v":"Number of new social work referrals"},{"$f":"'Data SBP Measures'!$T2583","v":"3219"},{"$f":"'Data SBP Measures'!$U2583&B3022","v":"144Number of new social work referrals"},{"$f":"'Data SBP Measures'!$Y2583","v":"EACH"},null,null,null,null,null,"Public Defender's Office - 144","Number of new social work referrals",null,null,null,null,null,null,null,"442","120","Y","34","Administration - Accounting","HOURS","INPUT","ADOPTEDBUD",null,null,null,"Administration - Accounting","Hours on Bank Reconcilations/Financial Reports",null,{"$f":"'Data SBP Measures'!$AF3022&'Data SBP Measures'!$AE3022& \" - \"& 'Data SBP Measures'!$U3022","v":"Hours on Bank Reconcilations/Financial ReportsAdministration - Accounting - 120"},{"$f":"_xlfn.XLOOKUP(VALUE(W3022),'Data SBP Programs'!O:O,'Data SBP Programs'!S:S)","v":"Administration - Accounting"}]
[{"$f":"'Data SBP Measures'!$AI2594&\" - \"&'Data SBP Measures'!$U2594","v":"Public Defender's Office - 144"},{"$f":"'Data SBP Measures'!$AF2594","v":"Number of non-incarceratory felony dispositions"},{"$f":"'Data SBP Measures'!$T2594","v":"3223"},{"$f":"'Data SBP Measures'!$U2594&B3025","v":"144Number of non-incarceratory felony dispositions"},{"$f":"'Data SBP Measures'!$Y2594","v":"EACH"},null,null,null,null,null,"Public Defender's Office - 144","Number of non-incarceratory felony dispositions",null,null,null,null,null,null,null,"445","120","Y","34","Administration - Accounting","HOURS","INPUT","ADOPTEDBUD",null,null,null,"Administration - Accounting","Hours on Election Billing",null,{"$f":"'Data SBP Measures'!$AF3025&'Data SBP Measures'!$AE3025& \" - \"& 'Data SBP Measures'!$U3025","v":"Hours on Election BillingAdministration - Accounting - 120"},{"$f":"_xlfn.XLOOKUP(VALUE(W3025),'Data SBP Programs'!O:O,'Data SBP Programs'!S:S)","v":"Administration - Accounting"}]
[{"$f":"'Data SBP Measures'!$AI2596&\" - \"&'Data SBP Measures'!$U2596","v":"Public Defender's Office - 144"},{"$f":"'Data SBP Measures'!$AF2596","v":"Number of non-incarceratory felony dispositions"},{"$f":"'Data SBP Measures'!$T2596","v":"3223"},{"$f":"'Data SBP Measures'!$U2596&B3027","v":"144Number of non-incarceratory felony dispositions"},{"$f":"'Data SBP Measures'!$Y2596","v":"EACH"},null,null,null,null,null,"Public Defender's Office - 144","Number of non-incarceratory felony dispositions",null,null,null,null,null,null,null,"447","120","Y","34","Administration - Accounting","HOURS","INPUT","ADOPTEDBUD",null,null,null,"Administration - Accounting","Hours on Unclaimed Property Reporting",null,{"$f":"'Data SBP Measures'!$AF3027&'Data SBP Measures'!$AE3027& \" - \"& 'Data SBP Measures'!$U3027","v":"Hours on Unclaimed Property ReportingAdministration - Accounting - 120"},{"$f":"_xlfn.XLOOKUP(VALUE(W3027),'Data SBP Programs'!O:O,'Data SBP Programs'!S:S)","v":"Administration - Accounting"}]
[{"$f":"'Data SBP Measures'!$AI2597&\" - \"&'Data SBP Measures'!$U2597","v":"Public Defender's Office - 144"},{"$f":"'Data SBP Measures'!$AF2597","v":"Number of non-incarceratory felony dispositions"},{"$f":"'Data SBP Measures'!$T2597","v":"3223"},{"$f":"'Data SBP Measures'!$U2597&B3028","v":"144Number of non-incarceratory felony dispositions"},{"$f":"'Data SBP Measures'!$Y2597","v":"EACH"},null,null,null,null,null,"Public Defender's Office - 144","Number of non-incarceratory felony dispositions",null,null,null,null,null,null,null,"448","120","Y","34","Administration - Accounting","HOURS","INPUT","ADOPTEDBUD",null,null,null,"Administration - Accounting","Hours on Year End IRS Reporting",null,{"$f":"'Data SBP Measures'!$AF3028&'Data SBP Measures'!$AE3028& \" - \"& 'Data SBP Measures'!$U3028","v":"Hours on Year End IRS ReportingAdministration - Accounting - 120"},{"$f":"_xlfn.XLOOKUP(VALUE(W3028),'Data SBP Programs'!O:O,'Data SBP Programs'!S:S)","v":"Administration - Accounting"}]
[{"$f":"'Data SBP Measures'!$AI2599&\" - \"&'Data SBP Measures'!$U2599","v":"Public Defender's Office - 144"},{"$f":"'Data SBP Measures'!$AF2599","v":"Number of non-incarceratory misdemeanor dispositions"},{"$f":"'Data SBP Measures'!$T2599","v":"3224"},{"$f":"'Data SBP Measures'!$U2599&B3030","v":"144Number of non-incarceratory misdemeanor dispositions"},{"$f":"'Data SBP Measures'!$Y2599","v":"EACH"},null,null,null,null,null,"Public Defender's Office - 144","Number of non-incarceratory misdemeanor dispositions",null,null,null,null,null,null,null,"450","120","Y","34","Administration - Accounting","HOURS","INPUT","ADOPTEDBUD",null,null,null,"Administration - Accounting","Hours Spent on Scanning",null,{"$f":"'Data SBP Measures'!$AF3030&'Data SBP Measures'!$AE3030& \" - \"& 'Data SBP Measures'!$U3030","v":"Hours Spent on ScanningAdministration - Accounting - 120"},{"$f":"_xlfn.XLOOKUP(VALUE(W3030),'Data SBP Programs'!O:O,'Data SBP Programs'!S:S)","v":"Administration - Accounting"}]
[{"$f":"'Data SBP Measures'!$AI2606&\" - \"&'Data SBP Measures'!$U2606","v":"Public Defender's Office - 144"},{"$f":"'Data SBP Measures'!$AF2606","v":"Numbers of hearings/trials (bench)"},{"$f":"'Data SBP Measures'!$T2606","v":"3226"},{"$f":"'Data SBP Measures'!$U2606&B3033","v":"144Numbers of hearings/trials (bench)"},{"$f":"'Data SBP Measures'!$Y2606","v":"EACH"},null,null,null,null,null,"Public Defender's Office - 144","Numbers of hearings/trials (bench)",null,null,null,null,null,null,null,"454","120","Y","34","Administration - Accounting","EACH","OUTPUT","ADOPTEDBUD",null,null,null,"Administration - Accounting","Number of Custodial Accounts",null,{"$f":"'Data SBP Measures'!$AF3033&'Data SBP Measures'!$AE3033& \" - \"& 'Data SBP Measures'!$U3033","v":"Number of Custodial AccountsAdministration - Accounting - 120"},{"$f":"_xlfn.XLOOKUP(VALUE(W3033),'Data SBP Programs'!O:O,'Data SBP Programs'!S:S)","v":"Administration - Accounting"}]
[{"$f":"'Data SBP Measures'!$AI2608&\" - \"&'Data SBP Measures'!$U2608","v":"Public Defender's Office - 144"},{"$f":"'Data SBP Measures'!$AF2608","v":"Numbers of hearings/trials (bench)"},{"$f":"'Data SBP Measures'!$T2608","v":"3226"},{"$f":"'Data SBP Measures'!$U2608&B3035","v":"144Numbers of hearings/trials (bench)"},{"$f":"'Data SBP Measures'!$Y2608","v":"EACH"},null,null,null,null,null,"Public Defender's Office - 144","Numbers of hearings/trials (bench)",null,null,null,null,null,null,null,"456","120","Y","34","Administration - Accounting","EACH","OUTPUT","ADOPTEDBUD",null,null,null,"Administration - Accounting","Number of Election Invoices Processed",null,{"$f":"'Data SBP Measures'!$AF3035&'Data SBP Measures'!$AE3035& \" - \"& 'Data SBP Measures'!$U3035","v":"Number of Election Invoices ProcessedAdministration - Accounting - 120"},{"$f":"_xlfn.XLOOKUP(VALUE(W3035),'Data SBP Programs'!O:O,'Data SBP Programs'!S:S)","v":"Administration - Accounting"}]
[{"$f":"'Data SBP Measures'!$AI2551&\" - \"&'Data SBP Measures'!$U2551","v":"Public Defender's Office - 144"},{"$f":"'Data SBP Measures'!$AF2551","v":"One or more community outreach/engagement actions per Fiscal Year"},{"$f":"'Data SBP Measures'!$T2551","v":"3209"},{"$f":"'Data SBP Measures'!$U2551&B3038","v":"144One or more community outreach/engagement actions per Fiscal Year"},{"$f":"'Data SBP Measures'!$Y2551","v":"EACH"},null,null,null,null,null,"Public Defender's Office - 144","One or more community outreach/engagement actions per Fiscal Year",null,null,null,null,null,null,null,"465","120","Y","35","Administration - Computer Resources","EACH","OUTPUT","ADOPTEDBUD",null,null,null,"Administration - Computer Resources","Number of Data- bases Issues/ Questions Addressed",null,{"$f":"'Data SBP Measures'!$AF3038&'Data SBP Measures'!$AE3038& \" - \"& 'Data SBP Measures'!$U3038","v":"Number of Data- bases Issues/ Questions AddressedAdministration - Computer Resources - 120"},{"$f":"_xlfn.XLOOKUP(VALUE(W3038),'Data SBP Programs'!O:O,'Data SBP Programs'!S:S)","v":"Administration - Computer Resources"}]
[{"$f":"'Data SBP Measures'!$AI2614&\" - \"&'Data SBP Measures'!$U2614","v":"Public Defender's Office - 144"},{"$f":"'Data SBP Measures'!$AF2614","v":"One or more systemic impact initiatives spearheaded per Fiscal Year"},{"$f":"'Data SBP Measures'!$T2614","v":"3228"},{"$f":"'Data SBP Measures'!$U2614&B3041","v":"144One or more systemic impact initiatives spearheaded per Fiscal Year"},{"$f":"'Data SBP Measures'!$Y2614","v":"EACH"},null,null,null,null,null,"Public Defender's Office - 144","One or more systemic impact initiatives spearheaded per Fiscal Year",null,null,null,null,null,null,null,"470","120","Y","35","Administration - Computer Resources","EACH","OUTPUT","ADOPTEDBUD",null,null,null,"Administration - Computer Resources","Number of computer problems Addressed",null,{"$f":"'Data SBP Measures'!$AF3041&'Data SBP Measures'!$AE3041& \" - \"& 'Data SBP Measures'!$U3041","v":"Number of computer problems AddressedAdministration - Computer Resources - 120"},{"$f":"_xlfn.XLOOKUP(VALUE(W3041),'Data SBP Programs'!O:O,'Data SBP Programs'!S:S)","v":"Administration - Computer Resources"}]
[{"$f":"'Data SBP Measures'!$AI2617&\" - \"&'Data SBP Measures'!$U2617","v":"Public Defender's Office - 144"},{"$f":"'Data SBP Measures'!$AF2617","v":"One or more systemic impact initiatives spearheaded per Fiscal Year"},{"$f":"'Data SBP Measures'!$T2617","v":"3228"},{"$f":"'Data SBP Measures'!$U2617&B3044","v":"144One or more systemic impact initiatives spearheaded per Fiscal Year"},{"$f":"'Data SBP Measures'!$Y2617","v":"EACH"},null,null,null,null,null,"Public Defender's Office - 144","One or more systemic impact initiatives spearheaded per Fiscal Year",null,null,null,null,null,null,null,"477","120","Y","35","Administration - Computer Resources","EACH","OUTCOME","ADOPTEDBUD",null,null,null,"Administration - Computer Resources","ENR - Sessions",null,{"$f":"'Data SBP Measures'!$AF3044&'Data SBP Measures'!$AE3044& \" - \"& 'Data SBP Measures'!$U3044","v":"ENR - SessionsAdministration - Computer Resources - 120"},{"$f":"_xlfn.XLOOKUP(VALUE(W3044),'Data SBP Programs'!O:O,'Data SBP Programs'!S:S)","v":"Administration - Computer Resources"}]
[{"$f":"'Data SBP Measures'!$AI2559&\" - \"&'Data SBP Measures'!$U2559","v":"Public Defender's Office - 144"},{"$f":"'Data SBP Measures'!$AF2559","v":"Percent of all new cause numbers being represented by PDO by end of fiscal year"},{"$f":"'Data SBP Measures'!$T2559","v":"3211"},{"$f":"'Data SBP Measures'!$U2559&B3046","v":"144Percent of all new cause numbers being represented by PDO by end of fiscal year"},{"$f":"'Data SBP Measures'!$Y2559","v":"PERCENT"},null,null,null,null,null,"Public Defender's Office - 144","Percent of all new cause numbers being represented by PDO by end of fiscal year",null,null,null,null,null,null,null,"479","120","Y","35","Administration - Computer Resources","EACH","OUTCOME","ADOPTEDBUD",null,null,null,"Administration - Computer Resources","Facebook likes",null,{"$f":"'Data SBP Measures'!$AF3046&'Data SBP Measures'!$AE3046& \" - \"& 'Data SBP Measures'!$U3046","v":"Facebook likesAdministration - Computer Resources - 120"},{"$f":"_xlfn.XLOOKUP(VALUE(W3046),'Data SBP Programs'!O:O,'Data SBP Programs'!S:S)","v":"Administration - Computer Resources"}]
[{"$f":"'Data SBP Measures'!$AI2560&\" - \"&'Data SBP Measures'!$U2560","v":"Public Defender's Office - 144"},{"$f":"'Data SBP Measures'!$AF2560","v":"Percent of all new cause numbers being represented by PDO by end of fiscal year"},{"$f":"'Data SBP Measures'!$T2560","v":"3211"},{"$f":"'Data SBP Measures'!$U2560&B3047","v":"144Percent of all new cause numbers being represented by PDO by end of fiscal year"},{"$f":"'Data SBP Measures'!$Y2560","v":"PERCENT"},null,null,null,null,null,"Public Defender's Office - 144","Percent of all new cause numbers being represented by PDO by end of fiscal year",null,null,null,null,null,null,null,"480","120","Y","35","Administration - Computer Resources","HOURS","OUTPUT","ADOPTEDBUD",null,null,null,"Administration - Computer Resources","Hours spent managing and updating website",null,{"$f":"'Data SBP Measures'!$AF3047&'Data SBP Measures'!$AE3047& \" - \"& 'Data SBP Measures'!$U3047","v":"Hours spent managing and updating websiteAdministration - Computer Resources - 120"},{"$f":"_xlfn.XLOOKUP(VALUE(W3047),'Data SBP Programs'!O:O,'Data SBP Programs'!S:S)","v":"Administration - Computer Resources"}]
[{"$f":"'Data SBP Measures'!$AI2562&\" - \"&'Data SBP Measures'!$U2562","v":"Public Defender's Office - 144"},{"$f":"'Data SBP Measures'!$AF2562","v":"Percent of new cause numbers represented by PDO granted personal bond"},{"$f":"'Data SBP Measures'!$T2562","v":"3212"},{"$f":"'Data SBP Measures'!$U2562&B3049","v":"144Percent of new cause numbers represented by PDO granted personal bond"},{"$f":"'Data SBP Measures'!$Y2562","v":"PERCENT"},null,null,null,null,null,"Public Defender's Office - 144","Percent of new cause numbers represented by PDO granted personal bond",null,null,null,null,null,null,null,"489","120","Y","35","Administration - Computer Resources","EACH","OUTCOME","ADOPTEDBUD",null,null,null,"Administration - Computer Resources","TCC search (includes web & deed records searches) - Views",null,{"$f":"'Data SBP Measures'!$AF3049&'Data SBP Measures'!$AE3049& \" - \"& 'Data SBP Measures'!$U3049","v":"TCC search (includes web & deed records searches) - ViewsAdministration - Computer Resources - 120"},{"$f":"_xlfn.XLOOKUP(VALUE(W3049),'Data SBP Programs'!O:O,'Data SBP Programs'!S:S)","v":"Administration - Computer Resources"}]
[{"$f":"'Data SBP Measures'!$AI2565&\" - \"&'Data SBP Measures'!$U2565","v":"Public Defender's Office - 144"},{"$f":"'Data SBP Measures'!$AF2565","v":"Percent of new cause numbers represented by PDO granted personal bond"},{"$f":"'Data SBP Measures'!$T2565","v":"3212"},{"$f":"'Data SBP Measures'!$U2565&B3052","v":"144Percent of new cause numbers represented by PDO granted personal bond"},{"$f":"'Data SBP Measures'!$Y2565","v":"PERCENT"},null,null,null,null,null,"Public Defender's Office - 144","Percent of new cause numbers represented by PDO granted personal bond",null,null,null,null,null,null,null,"492","120","Y","35","Administration - Computer Resources","EACH","OUTCOME","ADOPTEDBUD",null,null,null,"Administration - Computer Resources","TravisCountyClerk.org - Pageviews",null,{"$f":"'Data SBP Measures'!$AF3052&'Data SBP Measures'!$AE3052& \" - \"& 'Data SBP Measures'!$U3052","v":"TravisCountyClerk.org - PageviewsAdministration - Computer Resources - 120"},{"$f":"_xlfn.XLOOKUP(VALUE(W3052),'Data SBP Programs'!O:O,'Data SBP Programs'!S:S)","v":"Administration - Computer Resources"}]
[{"$f":"'Data SBP Measures'!$AI2568&\" - \"&'Data SBP Measures'!$U2568","v":"Public Defender's Office - 144"},{"$f":"'Data SBP Measures'!$AF2568","v":"Total cause numbers disposed by PDO"},{"$f":"'Data SBP Measures'!$T2568","v":"3213"},{"$f":"'Data SBP Measures'!$U2568&B3055","v":"144Total cause numbers disposed by PDO"},{"$f":"'Data SBP Measures'!$Y2568","v":"EACH"},null,null,null,null,null,"Public Defender's Office - 144","Total cause numbers disposed by PDO",null,null,null,null,null,null,null,"495","120","Y","35","Administration - Computer Resources","EACH","OUTCOME","ADOPTEDBUD",null,null,null,"Administration - Computer Resources","Twitter Followers",null,{"$f":"'Data SBP Measures'!$AF3055&'Data SBP Measures'!$AE3055& \" - \"& 'Data SBP Measures'!$U3055","v":"Twitter FollowersAdministration - Computer Resources - 120"},{"$f":"_xlfn.XLOOKUP(VALUE(W3055),'Data SBP Programs'!O:O,'Data SBP Programs'!S:S)","v":"Administration - Computer Resources"}]
[{"$f":"'Data SBP Measures'!$AI3470&\" - \"&'Data SBP Measures'!$U3470","v":"Public Integrity & Complex Crimes\n - 123"},{"$f":"'Data SBP Measures'!$AF3470","v":"Asset forfeiture cases resolved"},{"$f":"'Data SBP Measures'!$T3470","v":"791"},{"$f":"'Data SBP Measures'!$U3470&B3057","v":"123Asset forfeiture cases resolved"},{"$f":"'Data SBP Measures'!$Y3470","v":"EACH"},null,null,null,null,null,"Public Integrity & Complex Crimes\n - 123","Asset forfeiture cases resolved",null,null,null,null,null,null,null,"497","120","Y","35","Administration - Computer Resources","EACH","OUTCOME","ADOPTEDBUD",null,null,null,"Administration - Computer Resources","VoteTravis.com - Sessions",null,{"$f":"'Data SBP Measures'!$AF3057&'Data SBP Measures'!$AE3057& \" - \"& 'Data SBP Measures'!$U3057","v":"VoteTravis.com - SessionsAdministration - Computer Resources - 120"},{"$f":"_xlfn.XLOOKUP(VALUE(W3057),'Data SBP Programs'!O:O,'Data SBP Programs'!S:S)","v":"Administration - Computer Resources"}]
[{"$f":"'Data SBP Measures'!$AI3479&\" - \"&'Data SBP Measures'!$U3479","v":"Public Integrity & Complex Crimes\n - 123"},{"$f":"'Data SBP Measures'!$AF3479","v":"Environmental Cases Resolved"},{"$f":"'Data SBP Measures'!$T3479","v":"806"},{"$f":"'Data SBP Measures'!$U3479&B3060","v":"123Environmental Cases Resolved"},{"$f":"'Data SBP Measures'!$Y3479","v":"EACH"},null,null,null,null,null,"Public Integrity & Complex Crimes\n - 123","Environmental Cases Resolved",null,null,null,null,null,null,null,"500","120","Y","35","Administration - Computer Resources","EACH","OUTPUT","ADOPTEDBUD",null,null,null,"Administration - Computer Resources","Number of backups",null,{"$f":"'Data SBP Measures'!$AF3060&'Data SBP Measures'!$AE3060& \" - \"& 'Data SBP Measures'!$U3060","v":"Number of backupsAdministration - Computer Resources - 120"},{"$f":"_xlfn.XLOOKUP(VALUE(W3060),'Data SBP Programs'!O:O,'Data SBP Programs'!S:S)","v":"Administration - Computer Resources"}]
[{"$f":"'Data SBP Measures'!$AI3464&\" - \"&'Data SBP Measures'!$U3464","v":"Public Integrity & Complex Crimes\n - 123"},{"$f":"'Data SBP Measures'!$AF3464","v":"PIU cases & complaints received"},{"$f":"'Data SBP Measures'!$T3464","v":"785"},{"$f":"'Data SBP Measures'!$U3464&B3063","v":"123PIU cases & complaints received"},{"$f":"'Data SBP Measures'!$Y3464","v":"EACH"},null,null,null,null,null,"Public Integrity & Complex Crimes\n - 123","PIU cases & complaints received",null,null,null,null,null,null,null,"506","120","Y","35","Administration - Computer Resources","HOURS","OUTPUT","ADOPTEDBUD",null,null,null,"Administration - Computer Resources","Person hours devoted to computer management activities",null,{"$f":"'Data SBP Measures'!$AF3063&'Data SBP Measures'!$AE3063& \" - \"& 'Data SBP Measures'!$U3063","v":"Person hours devoted to computer management activitiesAdministration - Computer Resources - 120"},{"$f":"_xlfn.XLOOKUP(VALUE(W3063),'Data SBP Programs'!O:O,'Data SBP Programs'!S:S)","v":"Administration - Computer Resources"}]
[{"$f":"'Data SBP Measures'!$AI3465&\" - \"&'Data SBP Measures'!$U3465","v":"Public Integrity & Complex Crimes\n - 123"},{"$f":"'Data SBP Measures'!$AF3465","v":"PIU cases opened"},{"$f":"'Data SBP Measures'!$T3465","v":"786"},{"$f":"'Data SBP Measures'!$U3465&B3065","v":"123PIU cases opened"},{"$f":"'Data SBP Measures'!$Y3465","v":"EACH"},null,null,null,null,null,"Public Integrity & Complex Crimes\n - 123","PIU cases opened",null,null,null,null,null,null,null,"509","120","Y","36","Civil/Collections Team","EACH","OUTPUT","ADOPTEDBUD",null,null,null,"Civil/Collections Team","Abstracts",null,{"$f":"'Data SBP Measures'!$AF3065&'Data SBP Measures'!$AE3065& \" - \"& 'Data SBP Measures'!$U3065","v":"AbstractsCivil/Collections Team - 120"},{"$f":"_xlfn.XLOOKUP(VALUE(W3065),'Data SBP Programs'!O:O,'Data SBP Programs'!S:S)","v":"Civil/Collections Team"}]
[{"$f":"'Data SBP Measures'!$AI3467&\" - \"&'Data SBP Measures'!$U3467","v":"Public Integrity & Complex Crimes\n - 123"},{"$f":"'Data SBP Measures'!$AF3467","v":"PIU cases resolved"},{"$f":"'Data SBP Measures'!$T3467","v":"788"},{"$f":"'Data SBP Measures'!$U3467&B3066","v":"123PIU cases resolved"},{"$f":"'Data SBP Measures'!$Y3467","v":"EACH"},null,null,null,null,null,"Public Integrity & Complex Crimes\n - 123","PIU cases resolved",null,null,null,null,null,null,null,"510","120","Y","36","Civil/Collections Team","EACH","OUTPUT","ADOPTEDBUD",null,null,null,"Civil/Collections Team","Appeals",null,{"$f":"'Data SBP Measures'!$AF3066&'Data SBP Measures'!$AE3066& \" - \"& 'Data SBP Measures'!$U3066","v":"AppealsCivil/Collections Team - 120"},{"$f":"_xlfn.XLOOKUP(VALUE(W3066),'Data SBP Programs'!O:O,'Data SBP Programs'!S:S)","v":"Civil/Collections Team"}]
[{"$f":"'Data SBP Measures'!$AI3471&\" - \"&'Data SBP Measures'!$U3471","v":"Public Integrity & Complex Crimes\n - 123"},{"$f":"'Data SBP Measures'!$AF3471","v":"Total Amount of Assets Forfeited"},{"$f":"'Data SBP Measures'!$T3471","v":"792"},{"$f":"'Data SBP Measures'!$U3471&B3068","v":"123Total Amount of Assets Forfeited"},{"$f":"'Data SBP Measures'!$Y3471","v":"DOLLARS"},null,null,null,null,null,"Public Integrity & Complex Crimes\n - 123","Total Amount of Assets Forfeited",null,null,null,null,null,null,null,"512","120","Y","36","Civil/Collections Team","DAYS","EFFICIENCY","ADOPTEDBUD",null,null,null,"Civil/Collections Team","Average Number of Days to Process Citations",null,{"$f":"'Data SBP Measures'!$AF3068&'Data SBP Measures'!$AE3068& \" - \"& 'Data SBP Measures'!$U3068","v":"Average Number of Days to Process CitationsCivil/Collections Team - 120"},{"$f":"_xlfn.XLOOKUP(VALUE(W3068),'Data SBP Programs'!O:O,'Data SBP Programs'!S:S)","v":"Civil/Collections Team"}]
[{"$f":"'Data SBP Measures'!$AI3460&\" - \"&'Data SBP Measures'!$U3460","v":"Public Integrity & Complex Crimes\n - 123"},{"$f":"'Data SBP Measures'!$AF3460","v":"WCCU cases opened"},{"$f":"'Data SBP Measures'!$T3460","v":"781"},{"$f":"'Data SBP Measures'!$U3460&B3071","v":"123WCCU cases opened"},{"$f":"'Data SBP Measures'!$Y3460","v":"EACH"},null,null,null,null,null,"Public Integrity & Complex Crimes\n - 123","WCCU cases opened",null,null,null,null,null,null,null,"515","120","Y","36","Civil/Collections Team","EACH","OUTPUT","ADOPTEDBUD",null,null,null,"Civil/Collections Team","Civil Customer Service Email Requests",null,{"$f":"'Data SBP Measures'!$AF3071&'Data SBP Measures'!$AE3071& \" - \"& 'Data SBP Measures'!$U3071","v":"Civil Customer Service Email RequestsCivil/Collections Team - 120"},{"$f":"_xlfn.XLOOKUP(VALUE(W3071),'Data SBP Programs'!O:O,'Data SBP Programs'!S:S)","v":"Civil/Collections Team"}]
[{"$f":"'Data SBP Measures'!$AI25&\" - \"&'Data SBP Measures'!$U25","v":"Public Works – CIP - 149"},{"$f":"'Data SBP Measures'!$AF25","v":"% of Projects on schedule & under budget - Added roadway capacity"},{"$f":"'Data SBP Measures'!$T25","v":"1039"},{"$f":"'Data SBP Measures'!$U25&B3074","v":"149% of Projects on schedule & under budget - Added roadway capacity"},{"$f":"'Data SBP Measures'!$Y25","v":"PERCENT"},null,null,null,null,null,"Public Works – CIP - 149","% of Projects on schedule & under budget - Added roadway capacity",null,null,null,null,null,null,null,"518","120","Y","36","Civil/Collections Team","DAYS","OUTCOME","ADOPTEDBUD",null,null,null,"Civil/Collections Team","Difference b/w Document File Date and Document Entry Date",null,{"$f":"'Data SBP Measures'!$AF3074&'Data SBP Measures'!$AE3074& \" - \"& 'Data SBP Measures'!$U3074","v":"Difference b/w Document File Date and Document Entry DateCivil/Collections Team - 120"},{"$f":"_xlfn.XLOOKUP(VALUE(W3074),'Data SBP Programs'!O:O,'Data SBP Programs'!S:S)","v":"Civil/Collections Team"}]
[{"$f":"'Data SBP Measures'!$AI29&\" - \"&'Data SBP Measures'!$U29","v":"Public Works – CIP - 149"},{"$f":"'Data SBP Measures'!$AF29","v":"% of Projects on schedule & under budget - Drainage Improvement"},{"$f":"'Data SBP Measures'!$T29","v":"1043"},{"$f":"'Data SBP Measures'!$U29&B3076","v":"149% of Projects on schedule & under budget - Drainage Improvement"},{"$f":"'Data SBP Measures'!$Y29","v":"PERCENT"},null,null,null,null,null,"Public Works – CIP - 149","% of Projects on schedule & under budget - Drainage Improvement",null,null,null,null,null,null,null,"520","120","Y","36","Civil/Collections Team","EACH","OUTPUT","ADOPTEDBUD",null,null,null,"Civil/Collections Team","Executions",null,{"$f":"'Data SBP Measures'!$AF3076&'Data SBP Measures'!$AE3076& \" - \"& 'Data SBP Measures'!$U3076","v":"ExecutionsCivil/Collections Team - 120"},{"$f":"_xlfn.XLOOKUP(VALUE(W3076),'Data SBP Programs'!O:O,'Data SBP Programs'!S:S)","v":"Civil/Collections Team"}]
[{"$f":"'Data SBP Measures'!$AI28&\" - \"&'Data SBP Measures'!$U28","v":"Public Works – CIP - 149"},{"$f":"'Data SBP Measures'!$AF28","v":"% of Projects on schedule & under budget - Sidewalk & trail projects"},{"$f":"'Data SBP Measures'!$T28","v":"1042"},{"$f":"'Data SBP Measures'!$U28&B3079","v":"149% of Projects on schedule & under budget - Sidewalk & trail projects"},{"$f":"'Data SBP Measures'!$Y28","v":"PERCENT"},null,null,null,null,null,"Public Works – CIP - 149","% of Projects on schedule & under budget - Sidewalk & trail projects",null,null,null,null,null,null,null,"523","120","Y","36","Civil/Collections Team","EACH","INPUT","ADOPTEDBUD",null,null,null,"Civil/Collections Team","Civil Cases Filed",null,{"$f":"'Data SBP Measures'!$AF3079&'Data SBP Measures'!$AE3079& \" - \"& 'Data SBP Measures'!$U3079","v":"Civil Cases FiledCivil/Collections Team - 120"},{"$f":"_xlfn.XLOOKUP(VALUE(W3079),'Data SBP Programs'!O:O,'Data SBP Programs'!S:S)","v":"Civil/Collections Team"}]
[{"$f":"'Data SBP Measures'!$AI34&\" - \"&'Data SBP Measures'!$U34","v":"Public Works - Survey - 149"},{"$f":"'Data SBP Measures'!$AF34","v":"# of right-of-way or easement acquisition documents prepared"},{"$f":"'Data SBP Measures'!$T34","v":"1048"},{"$f":"'Data SBP Measures'!$U34&B3082","v":"149# of right-of-way or easement acquisition documents prepared"},{"$f":"'Data SBP Measures'!$Y34","v":"EACH"},null,null,null,null,null,"Public Works - Survey - 149","# of right-of-way or easement acquisition documents prepared",null,null,null,null,null,null,null,"526","120","Y","36","Civil/Collections Team","EACH","OUTPUT","ADOPTEDBUD",null,null,null,"Civil/Collections Team","Subpoenas",null,{"$f":"'Data SBP Measures'!$AF3082&'Data SBP Measures'!$AE3082& \" - \"& 'Data SBP Measures'!$U3082","v":"SubpoenasCivil/Collections Team - 120"},{"$f":"_xlfn.XLOOKUP(VALUE(W3082),'Data SBP Programs'!O:O,'Data SBP Programs'!S:S)","v":"Civil/Collections Team"}]
[{"$f":"'Data SBP Measures'!$AI33&\" - \"&'Data SBP Measures'!$U33","v":"Public Works - Survey - 149"},{"$f":"'Data SBP Measures'!$AF33","v":"Number of Parks and other county property surveys."},{"$f":"'Data SBP Measures'!$T33","v":"1047"},{"$f":"'Data SBP Measures'!$U33&B3084","v":"149Number of Parks and other county property surveys."},{"$f":"'Data SBP Measures'!$Y33","v":"EACH"},null,null,null,null,null,"Public Works - Survey - 149","Number of Parks and other county property surveys.",null,null,null,null,null,null,null,"528","120","Y","39","Probate/Mental Health/Comm Court\n","EACH","OUTPUT","ADOPTEDBUD",null,null,null,"Probate/Mental Health/Comm Court\n","Comm Ct Customer Service Phone",null,{"$f":"'Data SBP Measures'!$AF3084&'Data SBP Measures'!$AE3084& \" - \"& 'Data SBP Measures'!$U3084","v":"Comm Ct Customer Service PhoneProbate/Mental Health/Comm Court\n - 120"},{"$f":"_xlfn.XLOOKUP(VALUE(W3084),'Data SBP Programs'!O:O,'Data SBP Programs'!S:S)","v":"Probate/Mental Health/Comm Court\n"}]
[{"$f":"'Data SBP Measures'!$AI37&\" - \"&'Data SBP Measures'!$U37","v":"Public Works - Survey - 149"},{"$f":"'Data SBP Measures'!$AF37","v":"Total # of survey work orders, requests, questions addressed"},{"$f":"'Data SBP Measures'!$T37","v":"1051"},{"$f":"'Data SBP Measures'!$U37&B3087","v":"149Total # of survey work orders, requests, questions addressed"},{"$f":"'Data SBP Measures'!$Y37","v":"EACH"},null,null,null,null,null,"Public Works - Survey - 149","Total # of survey work orders, requests, questions addressed",null,null,null,null,null,null,null,"531","120","Y","36","Civil/Collections Team","EACH","OUTPUT","ADOPTEDBUD",null,null,null,"Civil/Collections Team","Documents Scanned and Indexed",null,{"$f":"'Data SBP Measures'!$AF3087&'Data SBP Measures'!$AE3087& \" - \"& 'Data SBP Measures'!$U3087","v":"Documents Scanned and IndexedCivil/Collections Team - 120"},{"$f":"_xlfn.XLOOKUP(VALUE(W3087),'Data SBP Programs'!O:O,'Data SBP Programs'!S:S)","v":"Civil/Collections Team"}]
[{"$f":"'Data SBP Measures'!$AI695&\" - \"&'Data SBP Measures'!$U695","v":"Purchasing Office - 115"},{"$f":"'Data SBP Measures'!$AF695","v":"Number of staff development (external) training hours provided to professional staff"},{"$f":"'Data SBP Measures'!$T695","v":"1755"},{"$f":"'Data SBP Measures'!$U695&B3089","v":"115Number of staff development (external) training hours provided to professional staff"},{"$f":"'Data SBP Measures'!$Y695","v":"HOURS"},null,null,null,null,null,"Purchasing Office - 115","Number of staff development (external) training hours provided to professional staff",null,null,null,null,null,null,null,"532","120","Y","39","Probate/Mental Health/Comm Court\n","EACH","OUTPUT","ADOPTEDBUD",null,null,null,"Probate/Mental Health/Comm Court\n","Comm Ct General Search Requests",null,{"$f":"'Data SBP Measures'!$AF3089&'Data SBP Measures'!$AE3089& \" - \"& 'Data SBP Measures'!$U3089","v":"Comm Ct General Search RequestsProbate/Mental Health/Comm Court\n - 120"},{"$f":"_xlfn.XLOOKUP(VALUE(W3089),'Data SBP Programs'!O:O,'Data SBP Programs'!S:S)","v":"Probate/Mental Health/Comm Court\n"}]
[{"$f":"'Data SBP Measures'!$AI696&\" - \"&'Data SBP Measures'!$U696","v":"Purchasing Office - 115"},{"$f":"'Data SBP Measures'!$AF696","v":"Number of staff development (internal) training hours provided to professional staff"},{"$f":"'Data SBP Measures'!$T696","v":"1756"},{"$f":"'Data SBP Measures'!$U696&B3090","v":"115Number of staff development (internal) training hours provided to professional staff"},{"$f":"'Data SBP Measures'!$Y696","v":"HOURS"},null,null,null,null,null,"Purchasing Office - 115","Number of staff development (internal) training hours provided to professional staff",null,null,null,null,null,null,null,"533","120","Y","39","Probate/Mental Health/Comm Court\n","HOURS","EFFICIENCY","ADOPTEDBUD",null,null,null,"Probate/Mental Health/Comm Court\n","Hours Spent Filling Comm Ct Requests",null,{"$f":"'Data SBP Measures'!$AF3090&'Data SBP Measures'!$AE3090& \" - \"& 'Data SBP Measures'!$U3090","v":"Hours Spent Filling Comm Ct RequestsProbate/Mental Health/Comm Court\n - 120"},{"$f":"_xlfn.XLOOKUP(VALUE(W3090),'Data SBP Programs'!O:O,'Data SBP Programs'!S:S)","v":"Probate/Mental Health/Comm Court\n"}]
[{"$f":"'Data SBP Measures'!$AI2008&\" - \"&'Data SBP Measures'!$U2008","v":"Purchasing Office Compliance - 115"},{"$f":"'Data SBP Measures'!$AF2008","v":"# of Better Builder projects monitored\n"},{"$f":"'Data SBP Measures'!$T2008","v":"2591"},{"$f":"'Data SBP Measures'!$U2008&B3093","v":"115# of Better Builder projects monitored\n"},{"$f":"'Data SBP Measures'!$Y2008","v":"EACH"},null,null,null,null,null,"Purchasing Office Compliance - 115","# of Better Builder projects monitored\n",null,null,null,null,null,null,null,"536","120","Y","39","Probate/Mental Health/Comm Court\n","EACH","OUTPUT","ADOPTEDBUD",null,null,null,"Probate/Mental Health/Comm Court\n","Meeting Notices Posted",null,{"$f":"'Data SBP Measures'!$AF3093&'Data SBP Measures'!$AE3093& \" - \"& 'Data SBP Measures'!$U3093","v":"Meeting Notices PostedProbate/Mental Health/Comm Court\n - 120"},{"$f":"_xlfn.XLOOKUP(VALUE(W3093),'Data SBP Programs'!O:O,'Data SBP Programs'!S:S)","v":"Probate/Mental Health/Comm Court\n"}]
[{"$f":"'Data SBP Measures'!$AI2449&\" - \"&'Data SBP Measures'!$U2449","v":"Purchasing Office Compliance - 115"},{"$f":"'Data SBP Measures'!$AF2449","v":"# of EDSI projects monitored (PIDs, Ground Leases, Economic Development Agreements)"},{"$f":"'Data SBP Measures'!$T2449","v":"3088"},{"$f":"'Data SBP Measures'!$U2449&B3095","v":"115# of EDSI projects monitored (PIDs, Ground Leases, Economic Development Agreements)"},{"$f":"'Data SBP Measures'!$Y2449","v":"EACH"},null,null,null,null,null,"Purchasing Office Compliance - 115","# of EDSI projects monitored (PIDs, Ground Leases, Economic Development Agreements)",null,null,null,null,null,null,null,"538","120","Y","39","Probate/Mental Health/Comm Court\n","EACH","INPUT","ADOPTEDBUD",null,null,null,"Probate/Mental Health/Comm Court\n","Requests Received",null,{"$f":"'Data SBP Measures'!$AF3095&'Data SBP Measures'!$AE3095& \" - \"& 'Data SBP Measures'!$U3095","v":"Requests ReceivedProbate/Mental Health/Comm Court\n - 120"},{"$f":"_xlfn.XLOOKUP(VALUE(W3095),'Data SBP Programs'!O:O,'Data SBP Programs'!S:S)","v":"Probate/Mental Health/Comm Court\n"}]
[{"$f":"'Data SBP Measures'!$AI2289&\" - \"&'Data SBP Measures'!$U2289","v":"Purchasing Office Compliance - 115"},{"$f":"'Data SBP Measures'!$AF2289","v":"# of wage audits performed"},{"$f":"'Data SBP Measures'!$T2289","v":"2821"},{"$f":"'Data SBP Measures'!$U2289&B3098","v":"115# of wage audits performed"},{"$f":"'Data SBP Measures'!$Y2289","v":"EACH"},null,null,null,null,null,"Purchasing Office Compliance - 115","# of wage audits performed",null,null,null,null,null,null,null,"544","120","Y","37","Elections Division","EACH","INPUT","ADOPTEDBUD",null,null,null,"Elections Division","# of FPCA apps received and processed",null,{"$f":"'Data SBP Measures'!$AF3098&'Data SBP Measures'!$AE3098& \" - \"& 'Data SBP Measures'!$U3098","v":"# of FPCA apps received and processedElections Division - 120"},{"$f":"_xlfn.XLOOKUP(VALUE(W3098),'Data SBP Programs'!O:O,'Data SBP Programs'!S:S)","v":"Elections Division"}]
[{"$f":"'Data SBP Measures'!$AI2294&\" - \"&'Data SBP Measures'!$U2294","v":"Purchasing Office Fixed Assets - 115"},{"$f":"'Data SBP Measures'!$AF2294","v":"# of assets disposed through computer recycling"},{"$f":"'Data SBP Measures'!$T2294","v":"2828"},{"$f":"'Data SBP Measures'!$U2294&B3101","v":"115# of assets disposed through computer recycling"},{"$f":"'Data SBP Measures'!$Y2294","v":"EACH"},null,null,null,null,null,"Purchasing Office Fixed Assets - 115","# of assets disposed through computer recycling",null,null,null,null,null,null,null,"549","120","Y","37","Elections Division","HOURS","OUTPUT","ADOPTEDBUD",null,null,null,"Elections Division","# of hrs spent preparing training materials",null,{"$f":"'Data SBP Measures'!$AF3101&'Data SBP Measures'!$AE3101& \" - \"& 'Data SBP Measures'!$U3101","v":"# of hrs spent preparing training materialsElections Division - 120"},{"$f":"_xlfn.XLOOKUP(VALUE(W3101),'Data SBP Programs'!O:O,'Data SBP Programs'!S:S)","v":"Elections Division"}]
[{"$f":"'Data SBP Measures'!$AI2293&\" - \"&'Data SBP Measures'!$U2293","v":"Purchasing Office Fixed Assets - 115"},{"$f":"'Data SBP Measures'!$AF2293","v":"Asset Revenue"},{"$f":"'Data SBP Measures'!$T2293","v":"2826"},{"$f":"'Data SBP Measures'!$U2293&B3103","v":"115Asset Revenue"},{"$f":"'Data SBP Measures'!$Y2293","v":"DOLLARS"},null,null,null,null,null,"Purchasing Office Fixed Assets - 115","Asset Revenue",null,null,null,null,null,null,null,"551","120","Y","37","Elections Division","DAYS","INPUT","ADOPTEDBUD",null,null,null,"Elections Division","Days in the Early Voting in Person period",null,{"$f":"'Data SBP Measures'!$AF3103&'Data SBP Measures'!$AE3103& \" - \"& 'Data SBP Measures'!$U3103","v":"Days in the Early Voting in Person periodElections Division - 120"},{"$f":"_xlfn.XLOOKUP(VALUE(W3103),'Data SBP Programs'!O:O,'Data SBP Programs'!S:S)","v":"Elections Division"}]
[{"$f":"'Data SBP Measures'!$AI694&\" - \"&'Data SBP Measures'!$U694","v":"Purchasing Office Fixed Assets - 115"},{"$f":"'Data SBP Measures'!$AF694","v":"Number of assets inventoried"},{"$f":"'Data SBP Measures'!$T694","v":"1754"},{"$f":"'Data SBP Measures'!$U694&B3104","v":"115Number of assets inventoried"},{"$f":"'Data SBP Measures'!$Y694","v":"EACH"},null,null,null,null,null,"Purchasing Office Fixed Assets - 115","Number of assets inventoried",null,null,null,null,null,null,null,"552","120","Y","37","Elections Division","EACH","OUTCOME","ADOPTEDBUD",null,null,null,"Elections Division","Early Voting in Person offered to voters",null,{"$f":"'Data SBP Measures'!$AF3104&'Data SBP Measures'!$AE3104& \" - \"& 'Data SBP Measures'!$U3104","v":"Early Voting in Person offered to votersElections Division - 120"},{"$f":"_xlfn.XLOOKUP(VALUE(W3104),'Data SBP Programs'!O:O,'Data SBP Programs'!S:S)","v":"Elections Division"}]
[{"$f":"'Data SBP Measures'!$AI693&\" - \"&'Data SBP Measures'!$U693","v":"Purchasing Office HUB - 115"},{"$f":"'Data SBP Measures'!$AF693","v":"Total HUB % participation"},{"$f":"'Data SBP Measures'!$T693","v":"1752"},{"$f":"'Data SBP Measures'!$U693&B3108","v":"115Total HUB % participation"},{"$f":"'Data SBP Measures'!$Y693","v":"PERCENT"},null,null,null,null,null,"Purchasing Office HUB - 115","Total HUB % participation",null,null,null,null,null,null,null,"556","120","Y","37","Elections Division","EACH","OUTPUT","ADOPTEDBUD",null,null,null,"Elections Division","# of ED poll workers  recruited, assigned and confirmed",null,{"$f":"'Data SBP Measures'!$AF3108&'Data SBP Measures'!$AE3108& \" - \"& 'Data SBP Measures'!$U3108","v":"# of ED poll workers  recruited, assigned and confirmedElections Division - 120"},{"$f":"_xlfn.XLOOKUP(VALUE(W3108),'Data SBP Programs'!O:O,'Data SBP Programs'!S:S)","v":"Elections Division"}]
[{"$f":"'Data SBP Measures'!$AI2301&\" - \"&'Data SBP Measures'!$U2301","v":"Purchasing Office Procurement (115) - 115"},{"$f":"'Data SBP Measures'!$AF2301","v":"# of Cooperative purchases"},{"$f":"'Data SBP Measures'!$T2301","v":"2841"},{"$f":"'Data SBP Measures'!$U2301&B3109","v":"115# of Cooperative purchases"},{"$f":"'Data SBP Measures'!$Y2301","v":"EACH"},null,null,null,null,null,"Purchasing Office Procurement (115) - 115","# of Cooperative purchases",null,null,null,null,null,null,null,"557","120","Y","37","Elections Division","EACH","OUTPUT","ADOPTEDBUD",null,null,null,"Elections Division","# of hrs spent to Identify, contract and confirm availability with EV and ED sites.",null,{"$f":"'Data SBP Measures'!$AF3109&'Data SBP Measures'!$AE3109& \" - \"& 'Data SBP Measures'!$U3109","v":"# of hrs spent to Identify, contract and confirm availability with EV and ED sites.Elections Division - 120"},{"$f":"_xlfn.XLOOKUP(VALUE(W3109),'Data SBP Programs'!O:O,'Data SBP Programs'!S:S)","v":"Elections Division"}]
[{"$f":"'Data SBP Measures'!$AI2297&\" - \"&'Data SBP Measures'!$U2297","v":"Purchasing Office Procurement (115) - 115"},{"$f":"'Data SBP Measures'!$AF2297","v":"# of shopping carts processed"},{"$f":"'Data SBP Measures'!$T2297","v":"2838"},{"$f":"'Data SBP Measures'!$U2297&B3112","v":"115# of shopping carts processed"},{"$f":"'Data SBP Measures'!$Y2297","v":"EACH"},null,null,null,null,null,"Purchasing Office Procurement (115) - 115","# of shopping carts processed",null,null,null,null,null,null,null,"561","120","Y","37","Elections Division","EACH","OUTPUT","ADOPTEDBUD",null,null,null,"Elections Division","# of ED workers trained",null,{"$f":"'Data SBP Measures'!$AF3112&'Data SBP Measures'!$AE3112& \" - \"& 'Data SBP Measures'!$U3112","v":"# of ED workers trainedElections Division - 120"},{"$f":"_xlfn.XLOOKUP(VALUE(W3112),'Data SBP Programs'!O:O,'Data SBP Programs'!S:S)","v":"Elections Division"}]
[{"$f":"'Data SBP Measures'!$AI692&\" - \"&'Data SBP Measures'!$U692","v":"Purchasing Office Procurement (115) - 115"},{"$f":"'Data SBP Measures'!$AF692","v":"Number of active contracts managed"},{"$f":"'Data SBP Measures'!$T692","v":"1751"},{"$f":"'Data SBP Measures'!$U692&B3114","v":"115Number of active contracts managed"},{"$f":"'Data SBP Measures'!$Y692","v":"EACH"},null,null,null,null,null,"Purchasing Office Procurement (115) - 115","Number of active contracts managed",null,null,null,null,null,null,null,"563","120","Y","37","Elections Division","HOURS","OUTPUT","ADOPTEDBUD",null,null,null,"Elections Division","# of hrs spent prep ED training materials",null,{"$f":"'Data SBP Measures'!$AF3114&'Data SBP Measures'!$AE3114& \" - \"& 'Data SBP Measures'!$U3114","v":"# of hrs spent prep ED training materialsElections Division - 120"},{"$f":"_xlfn.XLOOKUP(VALUE(W3114),'Data SBP Programs'!O:O,'Data SBP Programs'!S:S)","v":"Elections Division"}]
[{"$f":"'Data SBP Measures'!$AI3209&\" - \"&'Data SBP Measures'!$U3209","v":"Recording Division - 120"},{"$f":"'Data SBP Measures'!$AF3209","v":"Assumed Names recorded"},{"$f":"'Data SBP Measures'!$T3209","v":"662"},{"$f":"'Data SBP Measures'!$U3209&B3117","v":"120Assumed Names recorded"},{"$f":"'Data SBP Measures'!$Y3209","v":"EACH"},null,null,null,null,null,"Recording Division - 120","Assumed Names recorded",null,null,null,null,null,null,null,"567","120","Y","37","Elections Division","EACH","OUTPUT","ADOPTEDBUD",null,null,null,"Elections Division","# of EV voters",null,{"$f":"'Data SBP Measures'!$AF3117&'Data SBP Measures'!$AE3117& \" - \"& 'Data SBP Measures'!$U3117","v":"# of EV votersElections Division - 120"},{"$f":"_xlfn.XLOOKUP(VALUE(W3117),'Data SBP Programs'!O:O,'Data SBP Programs'!S:S)","v":"Elections Division"}]
[{"$f":"'Data SBP Measures'!$AI3224&\" - \"&'Data SBP Measures'!$U3224","v":"Recording Division - 120"},{"$f":"'Data SBP Measures'!$AF3224","v":"Copies made by Copy Center (more images available online)"},{"$f":"'Data SBP Measures'!$T3224","v":"678"},{"$f":"'Data SBP Measures'!$U3224&B3120","v":"120Copies made by Copy Center (more images available online)"},{"$f":"'Data SBP Measures'!$Y3224","v":"EACH"},null,null,null,null,null,"Recording Division - 120","Copies made by Copy Center (more images available online)",null,null,null,null,null,null,null,"570","120","Y","37","Elections Division","EACH","INPUT","ADOPTEDBUD",null,null,null,"Elections Division","# of Reg voters in Travis County",null,{"$f":"'Data SBP Measures'!$AF3120&'Data SBP Measures'!$AE3120& \" - \"& 'Data SBP Measures'!$U3120","v":"# of Reg voters in Travis CountyElections Division - 120"},{"$f":"_xlfn.XLOOKUP(VALUE(W3120),'Data SBP Programs'!O:O,'Data SBP Programs'!S:S)","v":"Elections Division"}]
[{"$f":"'Data SBP Measures'!$AI3226&\" - \"&'Data SBP Measures'!$U3226","v":"Recording Division - 120"},{"$f":"'Data SBP Measures'!$AF3226","v":"Electronic Data compiled by Copy Center/Staff"},{"$f":"'Data SBP Measures'!$T3226","v":"680"},{"$f":"'Data SBP Measures'!$U3226&B3122","v":"120Electronic Data compiled by Copy Center/Staff"},{"$f":"'Data SBP Measures'!$Y3226","v":"EACH"},null,null,null,null,null,"Recording Division - 120","Electronic Data compiled by Copy Center/Staff",null,null,null,null,null,null,null,"572","120","Y","37","Elections Division","EACH","OUTCOME","ADOPTEDBUD",null,null,null,"Elections Division","# of ED voters",null,{"$f":"'Data SBP Measures'!$AF3122&'Data SBP Measures'!$AE3122& \" - \"& 'Data SBP Measures'!$U3122","v":"# of ED votersElections Division - 120"},{"$f":"_xlfn.XLOOKUP(VALUE(W3122),'Data SBP Programs'!O:O,'Data SBP Programs'!S:S)","v":"Elections Division"}]
[{"$f":"'Data SBP Measures'!$AI3227&\" - \"&'Data SBP Measures'!$U3227","v":"Recording Division - 120"},{"$f":"'Data SBP Measures'!$AF3227","v":"Emails received and handled by Staff"},{"$f":"'Data SBP Measures'!$T3227","v":"681"},{"$f":"'Data SBP Measures'!$U3227&B3123","v":"120Emails received and handled by Staff"},{"$f":"'Data SBP Measures'!$Y3227","v":"EACH"},null,null,null,null,null,"Recording Division - 120","Emails received and handled by Staff",null,null,null,null,null,null,null,"573","120","Y","37","Elections Division","HOURS","OUTPUT","ADOPTEDBUD",null,null,null,"Elections Division","# of hrs spent in developing election database including ballot programing",null,{"$f":"'Data SBP Measures'!$AF3123&'Data SBP Measures'!$AE3123& \" - \"& 'Data SBP Measures'!$U3123","v":"# of hrs spent in developing election database including ballot programingElections Division - 120"},{"$f":"_xlfn.XLOOKUP(VALUE(W3123),'Data SBP Programs'!O:O,'Data SBP Programs'!S:S)","v":"Elections Division"}]
[{"$f":"'Data SBP Measures'!$AI3212&\" - \"&'Data SBP Measures'!$U3212","v":"Recording Division - 120"},{"$f":"'Data SBP Measures'!$AF3212","v":"Images scanned by staff"},{"$f":"'Data SBP Measures'!$T3212","v":"665"},{"$f":"'Data SBP Measures'!$U3212&B3127","v":"120Images scanned by staff"},{"$f":"'Data SBP Measures'!$Y3212","v":"EACH"},null,null,null,null,null,"Recording Division - 120","Images scanned by staff",null,null,null,null,null,null,null,"577","120","Y","37","Elections Division","HOURS","OUTPUT","ADOPTEDBUD",null,null,null,"Elections Division","# of hrs spent with EV/EDAY Laptop prep",null,{"$f":"'Data SBP Measures'!$AF3127&'Data SBP Measures'!$AE3127& \" - \"& 'Data SBP Measures'!$U3127","v":"# of hrs spent with EV/EDAY Laptop prepElections Division - 120"},{"$f":"_xlfn.XLOOKUP(VALUE(W3127),'Data SBP Programs'!O:O,'Data SBP Programs'!S:S)","v":"Elections Division"}]
[{"$f":"'Data SBP Measures'!$AI3220&\" - \"&'Data SBP Measures'!$U3220","v":"Recording Division - 120"},{"$f":"'Data SBP Measures'!$AF3220","v":"Logged Mail forwarded to other Divisions/Departments"},{"$f":"'Data SBP Measures'!$T3220","v":"673"},{"$f":"'Data SBP Measures'!$U3220&B3128","v":"120Logged Mail forwarded to other Divisions/Departments"},{"$f":"'Data SBP Measures'!$Y3220","v":"EACH"},null,null,null,null,null,"Recording Division - 120","Logged Mail forwarded to other Divisions/Departments",null,null,null,null,null,null,null,"578","120","Y","37","Elections Division","HOURS","OUTPUT","ADOPTEDBUD",null,null,null,"Elections Division","# hrs spent devoted to voter education",null,{"$f":"'Data SBP Measures'!$AF3128&'Data SBP Measures'!$AE3128& \" - \"& 'Data SBP Measures'!$U3128","v":"# hrs spent devoted to voter educationElections Division - 120"},{"$f":"_xlfn.XLOOKUP(VALUE(W3128),'Data SBP Programs'!O:O,'Data SBP Programs'!S:S)","v":"Elections Division"}]
[{"$f":"'Data SBP Measures'!$AI3213&\" - \"&'Data SBP Measures'!$U3213","v":"Recording Division - 120"},{"$f":"'Data SBP Measures'!$AF3213","v":"Marriage licenses issued"},{"$f":"'Data SBP Measures'!$T3213","v":"666"},{"$f":"'Data SBP Measures'!$U3213&B3131","v":"120Marriage licenses issued"},{"$f":"'Data SBP Measures'!$Y3213","v":"EACH"},null,null,null,null,null,"Recording Division - 120","Marriage licenses issued",null,null,null,null,null,null,null,"582","120","Y","37","Elections Division","EACH","OUTPUT","ADOPTEDBUD",null,null,null,"Elections Division","# of customer assisted",null,{"$f":"'Data SBP Measures'!$AF3131&'Data SBP Measures'!$AE3131& \" - \"& 'Data SBP Measures'!$U3131","v":"# of customer assistedElections Division - 120"},{"$f":"_xlfn.XLOOKUP(VALUE(W3131),'Data SBP Programs'!O:O,'Data SBP Programs'!S:S)","v":"Elections Division"}]
[{"$f":"'Data SBP Measures'!$AI3207&\" - \"&'Data SBP Measures'!$U3207","v":"Recording Division - 120"},{"$f":"'Data SBP Measures'!$AF3207","v":"Payments for copy orders processed"},{"$f":"'Data SBP Measures'!$T3207","v":"660"},{"$f":"'Data SBP Measures'!$U3207&B3133","v":"120Payments for copy orders processed"},{"$f":"'Data SBP Measures'!$Y3207","v":"EACH"},null,null,null,null,null,"Recording Division - 120","Payments for copy orders processed",null,null,null,null,null,null,null,"584","120","Y","37","Elections Division","EACH","OUTPUT","ADOPTEDBUD",null,null,null,"Elections Division","# of Annual calls excluding EV/ED",null,{"$f":"'Data SBP Measures'!$AF3133&'Data SBP Measures'!$AE3133& \" - \"& 'Data SBP Measures'!$U3133","v":"# of Annual calls excluding EV/EDElections Division - 120"},{"$f":"_xlfn.XLOOKUP(VALUE(W3133),'Data SBP Programs'!O:O,'Data SBP Programs'!S:S)","v":"Elections Division"}]
[{"$f":"'Data SBP Measures'!$AI3215&\" - \"&'Data SBP Measures'!$U3215","v":"Recording Division - 120"},{"$f":"'Data SBP Measures'!$AF3215","v":"Total documents processed"},{"$f":"'Data SBP Measures'!$T3215","v":"668"},{"$f":"'Data SBP Measures'!$U3215&B3136","v":"120Total documents processed"},{"$f":"'Data SBP Measures'!$Y3215","v":"EACH"},null,null,null,null,null,"Recording Division - 120","Total documents processed",null,null,null,null,null,null,null,"588","120","Y","37","Elections Division","HOURS","OUTPUT","ADOPTEDBUD",null,null,null,"Elections Division","# of hrs spent, monitoring and troubleshooting laptops during Early Voting",null,{"$f":"'Data SBP Measures'!$AF3136&'Data SBP Measures'!$AE3136& \" - \"& 'Data SBP Measures'!$U3136","v":"# of hrs spent, monitoring and troubleshooting laptops during Early VotingElections Division - 120"},{"$f":"_xlfn.XLOOKUP(VALUE(W3136),'Data SBP Programs'!O:O,'Data SBP Programs'!S:S)","v":"Elections Division"}]
[{"$f":"'Data SBP Measures'!$AI3228&\" - \"&'Data SBP Measures'!$U3228","v":"Recording Division - 120"},{"$f":"'Data SBP Measures'!$AF3228","v":"Transactions by cashiers"},{"$f":"'Data SBP Measures'!$T3228","v":"682"},{"$f":"'Data SBP Measures'!$U3228&B3139","v":"120Transactions by cashiers"},{"$f":"'Data SBP Measures'!$Y3228","v":"EACH"},null,null,null,null,null,"Recording Division - 120","Transactions by cashiers",null,null,null,null,null,null,null,"591","120","Y","37","Elections Division","EACH","OUTPUT","ADOPTEDBUD",null,null,null,"Elections Division","Contests conducted/ facilitated",null,{"$f":"'Data SBP Measures'!$AF3139&'Data SBP Measures'!$AE3139& \" - \"& 'Data SBP Measures'!$U3139","v":"Contests conducted/ facilitatedElections Division - 120"},{"$f":"_xlfn.XLOOKUP(VALUE(W3139),'Data SBP Programs'!O:O,'Data SBP Programs'!S:S)","v":"Elections Division"}]
[{"$f":"'Data SBP Measures'!$AI3240&\" - \"&'Data SBP Measures'!$U3240","v":"Records Management - 120"},{"$f":"'Data SBP Measures'!$AF3240","v":"Administration Division Boxes Moved Offsite"},{"$f":"'Data SBP Measures'!$T3240","v":"694"},{"$f":"'Data SBP Measures'!$U3240&B3141","v":"120Administration Division Boxes Moved Offsite"},{"$f":"'Data SBP Measures'!$Y3240","v":"EACH"},null,null,null,null,null,"Records Management - 120","Administration Division Boxes Moved Offsite",null,null,null,null,null,null,null,"593","120","Y","37","Elections Division","EACH","OUTCOME","ADOPTEDBUD",null,null,null,"Elections Division","# of mandated elections held",null,{"$f":"'Data SBP Measures'!$AF3141&'Data SBP Measures'!$AE3141& \" - \"& 'Data SBP Measures'!$U3141","v":"# of mandated elections heldElections Division - 120"},{"$f":"_xlfn.XLOOKUP(VALUE(W3141),'Data SBP Programs'!O:O,'Data SBP Programs'!S:S)","v":"Elections Division"}]
[{"$f":"'Data SBP Measures'!$AI3250&\" - \"&'Data SBP Measures'!$U3250","v":"Records Management - 120"},{"$f":"'Data SBP Measures'!$AF3250","v":"Case Files Entered into GAIN Civil"},{"$f":"'Data SBP Measures'!$T3250","v":"704"},{"$f":"'Data SBP Measures'!$U3250&B3142","v":"120Case Files Entered into GAIN Civil"},{"$f":"'Data SBP Measures'!$Y3250","v":"EACH"},null,null,null,null,null,"Records Management - 120","Case Files Entered into GAIN Civil",null,null,null,null,null,null,null,"594","120","Y","37","Elections Division","EACH","OUTCOME","ADOPTEDBUD",null,null,null,"Elections Division","Other elections held",null,{"$f":"'Data SBP Measures'!$AF3142&'Data SBP Measures'!$AE3142& \" - \"& 'Data SBP Measures'!$U3142","v":"Other elections heldElections Division - 120"},{"$f":"_xlfn.XLOOKUP(VALUE(W3142),'Data SBP Programs'!O:O,'Data SBP Programs'!S:S)","v":"Elections Division"}]
[{"$f":"'Data SBP Measures'!$AI3237&\" - \"&'Data SBP Measures'!$U3237","v":"Records Management - 120"},{"$f":"'Data SBP Measures'!$AF3237","v":"Case Files Recalled Misdemeanor"},{"$f":"'Data SBP Measures'!$T3237","v":"691"},{"$f":"'Data SBP Measures'!$U3237&B3146","v":"120Case Files Recalled Misdemeanor"},{"$f":"'Data SBP Measures'!$Y3237","v":"EACH"},null,null,null,null,null,"Records Management - 120","Case Files Recalled Misdemeanor",null,null,null,null,null,null,null,"598","120","Y","38","Misdemeanor Records Division","EACH","OUTPUT","ADOPTEDBUD",null,null,null,"Misdemeanor Records Division","Cases Disposed with Charging Instruments",null,{"$f":"'Data SBP Measures'!$AF3146&'Data SBP Measures'!$AE3146& \" - \"& 'Data SBP Measures'!$U3146","v":"Cases Disposed with Charging InstrumentsMisdemeanor Records Division - 120"},{"$f":"_xlfn.XLOOKUP(VALUE(W3146),'Data SBP Programs'!O:O,'Data SBP Programs'!S:S)","v":"Misdemeanor Records Division"}]
[{"$f":"'Data SBP Measures'!$AI3238&\" - \"&'Data SBP Measures'!$U3238","v":"Records Management - 120"},{"$f":"'Data SBP Measures'!$AF3238","v":"Case Files Recalled Probate"},{"$f":"'Data SBP Measures'!$T3238","v":"692"},{"$f":"'Data SBP Measures'!$U3238&B3147","v":"120Case Files Recalled Probate"},{"$f":"'Data SBP Measures'!$Y3238","v":"EACH"},null,null,null,null,null,"Records Management - 120","Case Files Recalled Probate",null,null,null,null,null,null,null,"599","120","Y","38","Misdemeanor Records Division","EACH","OUTPUT","ADOPTEDBUD",null,null,null,"Misdemeanor Records Division","Monthly Average Number of Active/Pending Cases",null,{"$f":"'Data SBP Measures'!$AF3147&'Data SBP Measures'!$AE3147& \" - \"& 'Data SBP Measures'!$U3147","v":"Monthly Average Number of Active/Pending CasesMisdemeanor Records Division - 120"},{"$f":"_xlfn.XLOOKUP(VALUE(W3147),'Data SBP Programs'!O:O,'Data SBP Programs'!S:S)","v":"Misdemeanor Records Division"}]
[{"$f":"'Data SBP Measures'!$AI3242&\" - \"&'Data SBP Measures'!$U3242","v":"Records Management - 120"},{"$f":"'Data SBP Measures'!$AF3242","v":"Comm. Ct. Division Boxes Moved Offsite"},{"$f":"'Data SBP Measures'!$T3242","v":"696"},{"$f":"'Data SBP Measures'!$U3242&B3150","v":"120Comm. Ct. Division Boxes Moved Offsite"},{"$f":"'Data SBP Measures'!$Y3242","v":"EACH"},null,null,null,null,null,"Records Management - 120","Comm. Ct. Division Boxes Moved Offsite",null,null,null,null,null,null,null,"602","120","Y","38","Misdemeanor Records Division","EACH","OUTPUT","ADOPTEDBUD",null,null,null,"Misdemeanor Records Division","Email Requests",null,{"$f":"'Data SBP Measures'!$AF3150&'Data SBP Measures'!$AE3150& \" - \"& 'Data SBP Measures'!$U3150","v":"Email RequestsMisdemeanor Records Division - 120"},{"$f":"_xlfn.XLOOKUP(VALUE(W3150),'Data SBP Programs'!O:O,'Data SBP Programs'!S:S)","v":"Misdemeanor Records Division"}]
[{"$f":"'Data SBP Measures'!$AI3249&\" - \"&'Data SBP Measures'!$U3249","v":"Records Management - 120"},{"$f":"'Data SBP Measures'!$AF3249","v":"Court Runs"},{"$f":"'Data SBP Measures'!$T3249","v":"703"},{"$f":"'Data SBP Measures'!$U3249&B3152","v":"120Court Runs"},{"$f":"'Data SBP Measures'!$Y3249","v":"EACH"},null,null,null,null,null,"Records Management - 120","Court Runs",null,null,null,null,null,null,null,"604","120","Y","38","Misdemeanor Records Division","EACH","OUTPUT","ADOPTEDBUD",null,null,null,"Misdemeanor Records Division","Mail Requests",null,{"$f":"'Data SBP Measures'!$AF3152&'Data SBP Measures'!$AE3152& \" - \"& 'Data SBP Measures'!$U3152","v":"Mail RequestsMisdemeanor Records Division - 120"},{"$f":"_xlfn.XLOOKUP(VALUE(W3152),'Data SBP Programs'!O:O,'Data SBP Programs'!S:S)","v":"Misdemeanor Records Division"}]
[{"$f":"'Data SBP Measures'!$AI3255&\" - \"&'Data SBP Measures'!$U3255","v":"Records Management - 120"},{"$f":"'Data SBP Measures'!$AF3255","v":"Documents Filed  Probate"},{"$f":"'Data SBP Measures'!$T3255","v":"709"},{"$f":"'Data SBP Measures'!$U3255&B3155","v":"120Documents Filed  Probate"},{"$f":"'Data SBP Measures'!$Y3255","v":"EACH"},null,null,null,null,null,"Records Management - 120","Documents Filed  Probate",null,null,null,null,null,null,null,"607","120","Y","38","Misdemeanor Records Division","EACH","OUTPUT","ADOPTEDBUD",null,null,null,"Misdemeanor Records Division","Complaint and Information",null,{"$f":"'Data SBP Measures'!$AF3155&'Data SBP Measures'!$AE3155& \" - \"& 'Data SBP Measures'!$U3155","v":"Complaint and InformationMisdemeanor Records Division - 120"},{"$f":"_xlfn.XLOOKUP(VALUE(W3155),'Data SBP Programs'!O:O,'Data SBP Programs'!S:S)","v":"Misdemeanor Records Division"}]
[{"$f":"'Data SBP Measures'!$AI3231&\" - \"&'Data SBP Measures'!$U3231","v":"Records Management - 120"},{"$f":"'Data SBP Measures'!$AF3231","v":"Email Requests Research Area"},{"$f":"'Data SBP Measures'!$T3231","v":"685"},{"$f":"'Data SBP Measures'!$U3231&B3158","v":"120Email Requests Research Area"},{"$f":"'Data SBP Measures'!$Y3231","v":"EACH"},null,null,null,null,null,"Records Management - 120","Email Requests Research Area",null,null,null,null,null,null,null,"615","120","Y","38","Misdemeanor Records Division","EACH","OUTPUT","ADOPTEDBUD",null,null,null,"Misdemeanor Records Division","Expunctions Processed",null,{"$f":"'Data SBP Measures'!$AF3158&'Data SBP Measures'!$AE3158& \" - \"& 'Data SBP Measures'!$U3158","v":"Expunctions ProcessedMisdemeanor Records Division - 120"},{"$f":"_xlfn.XLOOKUP(VALUE(W3158),'Data SBP Programs'!O:O,'Data SBP Programs'!S:S)","v":"Misdemeanor Records Division"}]
[{"$f":"'Data SBP Measures'!$AI3257&\" - \"&'Data SBP Measures'!$U3257","v":"Records Management - 120"},{"$f":"'Data SBP Measures'!$AF3257","v":"Folders Requested by County Clerk Staff Misdemeanor"},{"$f":"'Data SBP Measures'!$T3257","v":"711"},{"$f":"'Data SBP Measures'!$U3257&B3160","v":"120Folders Requested by County Clerk Staff Misdemeanor"},{"$f":"'Data SBP Measures'!$Y3257","v":"EACH"},null,null,null,null,null,"Records Management - 120","Folders Requested by County Clerk Staff Misdemeanor",null,null,null,null,null,null,null,"617","120","Y","38","Misdemeanor Records Division","HOURS","INPUT","ADOPTEDBUD",null,null,null,"Misdemeanor Records Division","Jail Call Commitment Hours",null,{"$f":"'Data SBP Measures'!$AF3160&'Data SBP Measures'!$AE3160& \" - \"& 'Data SBP Measures'!$U3160","v":"Jail Call Commitment HoursMisdemeanor Records Division - 120"},{"$f":"_xlfn.XLOOKUP(VALUE(W3160),'Data SBP Programs'!O:O,'Data SBP Programs'!S:S)","v":"Misdemeanor Records Division"}]
[{"$f":"'Data SBP Measures'!$AI3258&\" - \"&'Data SBP Measures'!$U3258","v":"Records Management - 120"},{"$f":"'Data SBP Measures'!$AF3258","v":"Folders Requested by County Clerk Staff Probate"},{"$f":"'Data SBP Measures'!$T3258","v":"712"},{"$f":"'Data SBP Measures'!$U3258&B3161","v":"120Folders Requested by County Clerk Staff Probate"},{"$f":"'Data SBP Measures'!$Y3258","v":"EACH"},null,null,null,null,null,"Records Management - 120","Folders Requested by County Clerk Staff Probate",null,null,null,null,null,null,null,"618","120","Y","38","Misdemeanor Records Division","EACH","OUTPUT","ADOPTEDBUD",null,null,null,"Misdemeanor Records Division","Non-disclosures Processed",null,{"$f":"'Data SBP Measures'!$AF3161&'Data SBP Measures'!$AE3161& \" - \"& 'Data SBP Measures'!$U3161","v":"Non-disclosures ProcessedMisdemeanor Records Division - 120"},{"$f":"_xlfn.XLOOKUP(VALUE(W3161),'Data SBP Programs'!O:O,'Data SBP Programs'!S:S)","v":"Misdemeanor Records Division"}]
[{"$f":"'Data SBP Measures'!$AI3262&\" - \"&'Data SBP Measures'!$U3262","v":"Records Management - 120"},{"$f":"'Data SBP Measures'!$AF3262","v":"Folders Requested by Customers Probate"},{"$f":"'Data SBP Measures'!$T3262","v":"716"},{"$f":"'Data SBP Measures'!$U3262&B3165","v":"120Folders Requested by Customers Probate"},{"$f":"'Data SBP Measures'!$Y3262","v":"EACH"},null,null,null,null,null,"Records Management - 120","Folders Requested by Customers Probate",null,null,null,null,null,null,null,"621","120","Y","39","Probate/Mental Health/Comm Court\n","EACH","OUTPUT","ADOPTEDBUD",null,null,null,"Probate/Mental Health/Comm Court\n","Copies Made by Clerk",null,{"$f":"'Data SBP Measures'!$AF3165&'Data SBP Measures'!$AE3165& \" - \"& 'Data SBP Measures'!$U3165","v":"Copies Made by ClerkProbate/Mental Health/Comm Court\n - 120"},{"$f":"_xlfn.XLOOKUP(VALUE(W3165),'Data SBP Programs'!O:O,'Data SBP Programs'!S:S)","v":"Probate/Mental Health/Comm Court\n"}]
[{"$f":"'Data SBP Measures'!$AI3232&\" - \"&'Data SBP Measures'!$U3232","v":"Records Management - 120"},{"$f":"'Data SBP Measures'!$AF3232","v":"In-Person Customers Onsite Library Counter"},{"$f":"'Data SBP Measures'!$T3232","v":"686"},{"$f":"'Data SBP Measures'!$U3232&B3166","v":"120In-Person Customers Onsite Library Counter"},{"$f":"'Data SBP Measures'!$Y3232","v":"EACH"},null,null,null,null,null,"Records Management - 120","In-Person Customers Onsite Library Counter",null,null,null,null,null,null,null,"622","120","Y","39","Probate/Mental Health/Comm Court\n","EACH","OUTPUT","ADOPTEDBUD",null,null,null,"Probate/Mental Health/Comm Court\n","Total Copies",null,{"$f":"'Data SBP Measures'!$AF3166&'Data SBP Measures'!$AE3166& \" - \"& 'Data SBP Measures'!$U3166","v":"Total CopiesProbate/Mental Health/Comm Court\n - 120"},{"$f":"_xlfn.XLOOKUP(VALUE(W3166),'Data SBP Programs'!O:O,'Data SBP Programs'!S:S)","v":"Probate/Mental Health/Comm Court\n"}]
[{"$f":"'Data SBP Measures'!$AI3246&\" - \"&'Data SBP Measures'!$U3246","v":"Records Management - 120"},{"$f":"'Data SBP Measures'!$AF3246","v":"Misdemeanor Division Boxes Moved Offsite"},{"$f":"'Data SBP Measures'!$T3246","v":"700"},{"$f":"'Data SBP Measures'!$U3246&B3169","v":"120Misdemeanor Division Boxes Moved Offsite"},{"$f":"'Data SBP Measures'!$Y3246","v":"EACH"},null,null,null,null,null,"Records Management - 120","Misdemeanor Division Boxes Moved Offsite",null,null,null,null,null,null,null,"625","120","Y","39","Probate/Mental Health/Comm Court\n","EACH","INPUT","ADOPTEDBUD",null,null,null,"Probate/Mental Health/Comm Court\n","In-Person Customers Mental Health",null,{"$f":"'Data SBP Measures'!$AF3169&'Data SBP Measures'!$AE3169& \" - \"& 'Data SBP Measures'!$U3169","v":"In-Person Customers Mental HealthProbate/Mental Health/Comm Court\n - 120"},{"$f":"_xlfn.XLOOKUP(VALUE(W3169),'Data SBP Programs'!O:O,'Data SBP Programs'!S:S)","v":"Probate/Mental Health/Comm Court\n"}]
[{"$f":"'Data SBP Measures'!$AI3264&\" - \"&'Data SBP Measures'!$U3264","v":"Records Management - 120"},{"$f":"'Data SBP Measures'!$AF3264","v":"Onsite Files Purged to Offsite Misdemeanor"},{"$f":"'Data SBP Measures'!$T3264","v":"718"},{"$f":"'Data SBP Measures'!$U3264&B3171","v":"120Onsite Files Purged to Offsite Misdemeanor"},{"$f":"'Data SBP Measures'!$Y3264","v":"EACH"},null,null,null,null,null,"Records Management - 120","Onsite Files Purged to Offsite Misdemeanor",null,null,null,null,null,null,null,"627","120","Y","39","Probate/Mental Health/Comm Court\n","EACH","INPUT","ADOPTEDBUD",null,null,null,"Probate/Mental Health/Comm Court\n","Phone Customers Mental Health",null,{"$f":"'Data SBP Measures'!$AF3171&'Data SBP Measures'!$AE3171& \" - \"& 'Data SBP Measures'!$U3171","v":"Phone Customers Mental HealthProbate/Mental Health/Comm Court\n - 120"},{"$f":"_xlfn.XLOOKUP(VALUE(W3171),'Data SBP Programs'!O:O,'Data SBP Programs'!S:S)","v":"Probate/Mental Health/Comm Court\n"}]
[{"$f":"'Data SBP Measures'!$AI3235&\" - \"&'Data SBP Measures'!$U3235","v":"Records Management - 120"},{"$f":"'Data SBP Measures'!$AF3235","v":"Phone Customers Research Area"},{"$f":"'Data SBP Measures'!$T3235","v":"689"},{"$f":"'Data SBP Measures'!$U3235&B3174","v":"120Phone Customers Research Area"},{"$f":"'Data SBP Measures'!$Y3235","v":"EACH"},null,null,null,null,null,"Records Management - 120","Phone Customers Research Area",null,null,null,null,null,null,null,"63","108","Y","17","Communications & Training","EACH","OUTCOME","NEITHER",null,null,null,"Communications & Training","Abandoned Calls",null,{"$f":"'Data SBP Measures'!$AF3174&'Data SBP Measures'!$AE3174& \" - \"& 'Data SBP Measures'!$U3174","v":"Abandoned CallsCommunications & Training - 108"},{"$f":"_xlfn.XLOOKUP(VALUE(W3174),'Data SBP Programs'!O:O,'Data SBP Programs'!S:S)","v":"Communications & Training"}]
[{"$f":"'Data SBP Measures'!$AI658&\" - \"&'Data SBP Measures'!$U658","v":"Regional Policy Development - 110"},{"$f":"'Data SBP Measures'!$AF658","v":"Number of governing body meetings attended"},{"$f":"'Data SBP Measures'!$T658","v":"1706"},{"$f":"'Data SBP Measures'!$U658&B3177","v":"110Number of governing body meetings attended"},{"$f":"'Data SBP Measures'!$Y658","v":"EACH"},null,null,null,null,null,"Regional Policy Development - 110","Number of governing body meetings attended",null,null,null,null,null,null,null,"632","120","Y","39","Probate/Mental Health/Comm Court\n","DAYS","EFFICIENCY","ADOPTEDBUD",null,null,null,"Probate/Mental Health/Comm Court\n","Average Number of Days to Process Citations and Notices",null,{"$f":"'Data SBP Measures'!$AF3177&'Data SBP Measures'!$AE3177& \" - \"& 'Data SBP Measures'!$U3177","v":"Average Number of Days to Process Citations and NoticesProbate/Mental Health/Comm Court\n - 120"},{"$f":"_xlfn.XLOOKUP(VALUE(W3177),'Data SBP Programs'!O:O,'Data SBP Programs'!S:S)","v":"Probate/Mental Health/Comm Court\n"}]
[{"$f":"'Data SBP Measures'!$AI659&\" - \"&'Data SBP Measures'!$U659","v":"Regional Policy Development - 110"},{"$f":"'Data SBP Measures'!$AF659","v":"Number of meetings with key elected and civic leaders"},{"$f":"'Data SBP Measures'!$T659","v":"1707"},{"$f":"'Data SBP Measures'!$U659&B3179","v":"110Number of meetings with key elected and civic leaders"},{"$f":"'Data SBP Measures'!$Y659","v":"EACH"},null,null,null,null,null,"Regional Policy Development - 110","Number of meetings with key elected and civic leaders",null,null,null,null,null,null,null,"634","120","Y","39","Probate/Mental Health/Comm Court\n","DAYS","OUTCOME","ADOPTEDBUD",null,null,null,"Probate/Mental Health/Comm Court\n","Difference Between Document File Date and Entry Date MH Cases",null,{"$f":"'Data SBP Measures'!$AF3179&'Data SBP Measures'!$AE3179& \" - \"& 'Data SBP Measures'!$U3179","v":"Difference Between Document File Date and Entry Date MH CasesProbate/Mental Health/Comm Court\n - 120"},{"$f":"_xlfn.XLOOKUP(VALUE(W3179),'Data SBP Programs'!O:O,'Data SBP Programs'!S:S)","v":"Probate/Mental Health/Comm Court\n"}]
[{"$f":"'Data SBP Measures'!$AI660&\" - \"&'Data SBP Measures'!$U660","v":"Regional Policy Development - 110"},{"$f":"'Data SBP Measures'!$AF660","v":"Number of regional planning documents drafted and adopted"},{"$f":"'Data SBP Measures'!$T660","v":"1708"},{"$f":"'Data SBP Measures'!$U660&B3180","v":"110Number of regional planning documents drafted and adopted"},{"$f":"'Data SBP Measures'!$Y660","v":"EACH"},null,null,null,null,null,"Regional Policy Development - 110","Number of regional planning documents drafted and adopted",null,null,null,null,null,null,null,"635","120","Y","39","Probate/Mental Health/Comm Court\n","EACH","OUTPUT","ADOPTEDBUD",null,null,null,"Probate/Mental Health/Comm Court\n","MH Documents Scanned and Indexed",null,{"$f":"'Data SBP Measures'!$AF3180&'Data SBP Measures'!$AE3180& \" - \"& 'Data SBP Measures'!$U3180","v":"MH Documents Scanned and IndexedProbate/Mental Health/Comm Court\n - 120"},{"$f":"_xlfn.XLOOKUP(VALUE(W3180),'Data SBP Programs'!O:O,'Data SBP Programs'!S:S)","v":"Probate/Mental Health/Comm Court\n"}]
[{"$f":"'Data SBP Measures'!$AI2013&\" - \"&'Data SBP Measures'!$U2013","v":"Research & Planning Division - 158"},{"$f":"'Data SBP Measures'!$AF2013","v":"Number of investment-related deliverables produced"},{"$f":"'Data SBP Measures'!$T2013","v":"2601"},{"$f":"'Data SBP Measures'!$U2013&B3184","v":"158Number of investment-related deliverables produced"},{"$f":"'Data SBP Measures'!$Y2013","v":"EACH"},null,null,null,null,null,"Research & Planning Division - 158","Number of investment-related deliverables produced",null,null,null,null,null,null,null,"639","120","Y","39","Probate/Mental Health/Comm Court\n","EACH","OUTPUT","ADOPTEDBUD",null,null,null,"Probate/Mental Health/Comm Court\n","MH Other Issuances",null,{"$f":"'Data SBP Measures'!$AF3184&'Data SBP Measures'!$AE3184& \" - \"& 'Data SBP Measures'!$U3184","v":"MH Other IssuancesProbate/Mental Health/Comm Court\n - 120"},{"$f":"_xlfn.XLOOKUP(VALUE(W3184),'Data SBP Programs'!O:O,'Data SBP Programs'!S:S)","v":"Probate/Mental Health/Comm Court\n"}]
[{"$f":"'Data SBP Measures'!$AI2012&\" - \"&'Data SBP Measures'!$U2012","v":"Research & Planning Division - 158"},{"$f":"'Data SBP Measures'!$AF2012","v":"Number of investment-related processes implemented"},{"$f":"'Data SBP Measures'!$T2012","v":"2600"},{"$f":"'Data SBP Measures'!$U2012&B3185","v":"158Number of investment-related processes implemented"},{"$f":"'Data SBP Measures'!$Y2012","v":"EACH"},null,null,null,null,null,"Research & Planning Division - 158","Number of investment-related processes implemented",null,null,null,null,null,null,null,"64","108","Y","17","Communications & Training","PERCENT","EFFICIENCY","ADOPTEDBUD",null,null,null,"Communications & Training","Abandoned Percent",null,{"$f":"'Data SBP Measures'!$AF3185&'Data SBP Measures'!$AE3185& \" - \"& 'Data SBP Measures'!$U3185","v":"Abandoned PercentCommunications & Training - 108"},{"$f":"_xlfn.XLOOKUP(VALUE(W3185),'Data SBP Programs'!O:O,'Data SBP Programs'!S:S)","v":"Communications & Training"}]
[{"$f":"'Data SBP Measures'!$AI127&\" - \"&'Data SBP Measures'!$U127","v":"Research & Planning Division - 158"},{"$f":"'Data SBP Measures'!$AF127","v":"Number of reports completed"},{"$f":"'Data SBP Measures'!$T127","v":"1164"},{"$f":"'Data SBP Measures'!$U127&B3188","v":"158Number of reports completed"},{"$f":"'Data SBP Measures'!$Y127","v":"EACH"},null,null,null,null,null,"Research & Planning Division - 158","Number of reports completed",null,null,null,null,null,null,null,"642","120","Y","39","Probate/Mental Health/Comm Court\n","EACH","INPUT","ADOPTEDBUD",null,null,null,"Probate/Mental Health/Comm Court\n","New Mental Health Cases Filed",null,{"$f":"'Data SBP Measures'!$AF3188&'Data SBP Measures'!$AE3188& \" - \"& 'Data SBP Measures'!$U3188","v":"New Mental Health Cases FiledProbate/Mental Health/Comm Court\n - 120"},{"$f":"_xlfn.XLOOKUP(VALUE(W3188),'Data SBP Programs'!O:O,'Data SBP Programs'!S:S)","v":"Probate/Mental Health/Comm Court\n"}]
[{"$f":"'Data SBP Measures'!$AI129&\" - \"&'Data SBP Measures'!$U129","v":"Research & Planning Division - 158"},{"$f":"'Data SBP Measures'!$AF129","v":"Number of times program- or performance-related technical assistance or training was provided"},{"$f":"'Data SBP Measures'!$T129","v":"1166"},{"$f":"'Data SBP Measures'!$U129&B3190","v":"158Number of times program- or performance-related technical assistance or training was provided"},{"$f":"'Data SBP Measures'!$Y129","v":"EACH"},null,null,null,null,null,"Research & Planning Division - 158","Number of times program- or performance-related technical assistance or training was provided",null,null,null,null,null,null,null,"645","120","Y","36","Civil/Collections Team","EACH","OUTPUT","ADOPTEDBUD",null,null,null,"Civil/Collections Team","Protective Order Cases Filed",null,{"$f":"'Data SBP Measures'!$AF3190&'Data SBP Measures'!$AE3190& \" - \"& 'Data SBP Measures'!$U3190","v":"Protective Order Cases FiledCivil/Collections Team - 120"},{"$f":"_xlfn.XLOOKUP(VALUE(W3190),'Data SBP Programs'!O:O,'Data SBP Programs'!S:S)","v":"Civil/Collections Team"}]
[{"$f":"'Data SBP Measures'!$AI119&\" - \"&'Data SBP Measures'!$U119","v":"Research & Planning Division - 158"},{"$f":"'Data SBP Measures'!$AF119","v":"Percent of customers who report that R&P facilitation helped them make progress on the group's goals"},{"$f":"'Data SBP Measures'!$T119","v":"1155"},{"$f":"'Data SBP Measures'!$U119&B3193","v":"158Percent of customers who report that R&P facilitation helped them make progress on the group's goals"},{"$f":"'Data SBP Measures'!$Y119","v":"PERCENT"},null,null,null,null,null,"Research & Planning Division - 158","Percent of customers who report that R&P facilitation helped them make progress on the group's goals",null,null,null,null,null,null,null,"648","120","Y","39","Probate/Mental Health/Comm Court\n","DAYS","EFFICIENCY","ADOPTEDBUD",null,null,null,"Probate/Mental Health/Comm Court\n","Average Number of Days to Process Letters of Guardianship",null,{"$f":"'Data SBP Measures'!$AF3193&'Data SBP Measures'!$AE3193& \" - \"& 'Data SBP Measures'!$U3193","v":"Average Number of Days to Process Letters of GuardianshipProbate/Mental Health/Comm Court\n - 120"},{"$f":"_xlfn.XLOOKUP(VALUE(W3193),'Data SBP Programs'!O:O,'Data SBP Programs'!S:S)","v":"Probate/Mental Health/Comm Court\n"}]
[{"$f":"'Data SBP Measures'!$AI121&\" - \"&'Data SBP Measures'!$U121","v":"Research & Planning Division - 158"},{"$f":"'Data SBP Measures'!$AF121","v":"Percent of customers who report that they used information provided by R&P one of the following ways: Learn more about our community; Make or influence funding decisions; Make or influence policy decisions; Make or influence program changes; Make or influence system changes; and/or Write grants or receive funding"},{"$f":"'Data SBP Measures'!$T121","v":"1157"},{"$f":"'Data SBP Measures'!$U121&B3196","v":"158Percent of customers who report that they used information provided by R&P one of the following ways: Learn more about our community; Make or influence funding decisions; Make or influence policy decisions; Make or influence program changes; Make or influence system changes; and/or Write grants or receive funding"},{"$f":"'Data SBP Measures'!$Y121","v":"PERCENT"},null,null,null,null,null,"Research & Planning Division - 158","Percent of customers who report that they used information provided by R&P one of the following ways: Learn more about our community; Make or influence funding decisions; Make or influence policy decisions; Make or influence program changes; Make or influence system changes; and/or Write grants or receive funding",null,null,null,null,null,null,null,"650","120","Y","39","Probate/Mental Health/Comm Court\n","EACH","OUTPUT","ADOPTEDBUD",null,null,null,"Probate/Mental Health/Comm Court\n","Total Probate Case Activities",null,{"$f":"'Data SBP Measures'!$AF3196&'Data SBP Measures'!$AE3196& \" - \"& 'Data SBP Measures'!$U3196","v":"Total Probate Case ActivitiesProbate/Mental Health/Comm Court\n - 120"},{"$f":"_xlfn.XLOOKUP(VALUE(W3196),'Data SBP Programs'!O:O,'Data SBP Programs'!S:S)","v":"Probate/Mental Health/Comm Court\n"}]
[{"$f":"'Data SBP Measures'!$AI454&\" - \"&'Data SBP Measures'!$U454","v":"Research, Planning and Incident Management - 137"},{"$f":"'Data SBP Measures'!$AF454","v":"Compliance with Jail Standards Yes/No (1 = Y, 0=N)"},{"$f":"'Data SBP Measures'!$T454","v":"1481"},{"$f":"'Data SBP Measures'!$U454&B3198","v":"137Compliance with Jail Standards Yes/No (1 = Y, 0=N)"},{"$f":"'Data SBP Measures'!$Y454","v":"Y/N"},null,null,null,null,null,"Research, Planning and Incident Management - 137","Compliance with Jail Standards Yes/No (1 = Y, 0=N)",null,null,null,null,null,null,null,"652","120","Y","39","Probate/Mental Health/Comm Court\n","EACH","OUTPUT","ADOPTEDBUD",null,null,null,"Probate/Mental Health/Comm Court\n","Probate Documents Scanned and Indexed",null,{"$f":"'Data SBP Measures'!$AF3198&'Data SBP Measures'!$AE3198& \" - \"& 'Data SBP Measures'!$U3198","v":"Probate Documents Scanned and IndexedProbate/Mental Health/Comm Court\n - 120"},{"$f":"_xlfn.XLOOKUP(VALUE(W3198),'Data SBP Programs'!O:O,'Data SBP Programs'!S:S)","v":"Probate/Mental Health/Comm Court\n"}]
[{"$f":"'Data SBP Measures'!$AI456&\" - \"&'Data SBP Measures'!$U456","v":"Research, Planning and Incident Management - 137"},{"$f":"'Data SBP Measures'!$AF456","v":"Grant funds received"},{"$f":"'Data SBP Measures'!$T456","v":"1483"},{"$f":"'Data SBP Measures'!$U456&B3199","v":"137Grant funds received"},{"$f":"'Data SBP Measures'!$Y456","v":"DOLLARS"},null,null,null,null,null,"Research, Planning and Incident Management - 137","Grant funds received",null,null,null,null,null,null,null,"653","120","Y","39","Probate/Mental Health/Comm Court\n","HOURS","INPUT","ADOPTEDBUD",null,null,null,"Probate/Mental Health/Comm Court\n","Hours Spent in Probate Hearings",null,{"$f":"'Data SBP Measures'!$AF3199&'Data SBP Measures'!$AE3199& \" - \"& 'Data SBP Measures'!$U3199","v":"Hours Spent in Probate HearingsProbate/Mental Health/Comm Court\n - 120"},{"$f":"_xlfn.XLOOKUP(VALUE(W3199),'Data SBP Programs'!O:O,'Data SBP Programs'!S:S)","v":"Probate/Mental Health/Comm Court\n"}]
[{"$f":"'Data SBP Measures'!$AI2023&\" - \"&'Data SBP Measures'!$U2023","v":"Reserves - 137"},{"$f":"'Data SBP Measures'!$AF2023","v":"No. of patrol shifts covered"},{"$f":"'Data SBP Measures'!$T2023","v":"2611"},{"$f":"'Data SBP Measures'!$U2023&B3203","v":"137No. of patrol shifts covered"},{"$f":"'Data SBP Measures'!$Y2023","v":"EACH"},null,null,null,null,null,"Reserves - 137","No. of patrol shifts covered",null,null,null,null,null,null,null,"657","120","Y","39","Probate/Mental Health/Comm Court\n","EACH","OUTPUT","ADOPTEDBUD",null,null,null,"Probate/Mental Health/Comm Court\n","Probate Hearings Attended",null,{"$f":"'Data SBP Measures'!$AF3203&'Data SBP Measures'!$AE3203& \" - \"& 'Data SBP Measures'!$U3203","v":"Probate Hearings AttendedProbate/Mental Health/Comm Court\n - 120"},{"$f":"_xlfn.XLOOKUP(VALUE(W3203),'Data SBP Programs'!O:O,'Data SBP Programs'!S:S)","v":"Probate/Mental Health/Comm Court\n"}]
[{"$f":"'Data SBP Measures'!$AI2652&\" - \"&'Data SBP Measures'!$U2652","v":"Reserves - 137"},{"$f":"'Data SBP Measures'!$AF2652","v":"No. of patrol shifts working as extra unit"},{"$f":"'Data SBP Measures'!$T2652","v":"3290"},{"$f":"'Data SBP Measures'!$U2652&B3204","v":"137No. of patrol shifts working as extra unit"},{"$f":"'Data SBP Measures'!$Y2652","v":"EACH"},null,null,null,null,null,"Reserves - 137","No. of patrol shifts working as extra unit",null,null,null,null,null,null,null,"658","120","Y","40","Recording Division","EACH","INPUT","ADOPTEDBUD",null,null,null,"Recording Division","Calls received",null,{"$f":"'Data SBP Measures'!$AF3204&'Data SBP Measures'!$AE3204& \" - \"& 'Data SBP Measures'!$U3204","v":"Calls receivedRecording Division - 120"},{"$f":"_xlfn.XLOOKUP(VALUE(W3204),'Data SBP Programs'!O:O,'Data SBP Programs'!S:S)","v":"Recording Division"}]
[{"$f":"'Data SBP Measures'!$AI461&\" - \"&'Data SBP Measures'!$U461","v":"Reserves - 137"},{"$f":"'Data SBP Measures'!$AF461","v":"Special Assignments / Stings"},{"$f":"'Data SBP Measures'!$T461","v":"1488"},{"$f":"'Data SBP Measures'!$U461&B3207","v":"137Special Assignments / Stings"},{"$f":"'Data SBP Measures'!$Y461","v":"EACH"},null,null,null,null,null,"Reserves - 137","Special Assignments / Stings",null,null,null,null,null,null,null,"660","120","Y","40","Recording Division","EACH","OUTPUT","ADOPTEDBUD",null,null,null,"Recording Division","Payments for copy orders processed",null,{"$f":"'Data SBP Measures'!$AF3207&'Data SBP Measures'!$AE3207& \" - \"& 'Data SBP Measures'!$U3207","v":"Payments for copy orders processedRecording Division - 120"},{"$f":"_xlfn.XLOOKUP(VALUE(W3207),'Data SBP Programs'!O:O,'Data SBP Programs'!S:S)","v":"Recording Division"}]
[{"$f":"'Data SBP Measures'!$AI3569&\" - \"&'Data SBP Measures'!$U3569","v":"Residential Services - 145"},{"$f":"'Data SBP Measures'!$AF3569","v":"Percent successfully discharged from ISC"},{"$f":"'Data SBP Measures'!$T3569","v":"928"},{"$f":"'Data SBP Measures'!$U3569&B3209","v":"145Percent successfully discharged from ISC"},{"$f":"'Data SBP Measures'!$Y3569","v":"PERCENT"},null,null,null,null,null,"Residential Services - 145","Percent successfully discharged from ISC",null,null,null,null,null,null,null,"662","120","Y","40","Recording Division","EACH","OUTPUT","ADOPTEDBUD",null,null,null,"Recording Division","Assumed Names recorded",null,{"$f":"'Data SBP Measures'!$AF3209&'Data SBP Measures'!$AE3209& \" - \"& 'Data SBP Measures'!$U3209","v":"Assumed Names recordedRecording Division - 120"},{"$f":"_xlfn.XLOOKUP(VALUE(W3209),'Data SBP Programs'!O:O,'Data SBP Programs'!S:S)","v":"Recording Division"}]
[{"$f":"'Data SBP Measures'!$AI2531&\" - \"&'Data SBP Measures'!$U2531","v":"Risk Management Self Insurance Fund - 111"},{"$f":"'Data SBP Measures'!$AF2531","v":"# of insurance renewals reviewed annually\n"},{"$f":"'Data SBP Measures'!$T2531","v":"3196"},{"$f":"'Data SBP Measures'!$U2531&B3212","v":"111# of insurance renewals reviewed annually\n"},{"$f":"'Data SBP Measures'!$Y2531","v":"EACH"},null,null,null,null,null,"Risk Management Self Insurance Fund - 111","# of insurance renewals reviewed annually\n",null,null,null,null,null,null,null,"665","120","Y","40","Recording Division","EACH","OUTPUT","ADOPTEDBUD",null,null,null,"Recording Division","Images scanned by staff",null,{"$f":"'Data SBP Measures'!$AF3212&'Data SBP Measures'!$AE3212& \" - \"& 'Data SBP Measures'!$U3212","v":"Images scanned by staffRecording Division - 120"},{"$f":"_xlfn.XLOOKUP(VALUE(W3212),'Data SBP Programs'!O:O,'Data SBP Programs'!S:S)","v":"Recording Division"}]
[{"$f":"'Data SBP Measures'!$AI2534&\" - \"&'Data SBP Measures'!$U2534","v":"Risk Management Self Insurance Fund - 111"},{"$f":"'Data SBP Measures'!$AF2534","v":"# of RFPs completed annually"},{"$f":"'Data SBP Measures'!$T2534","v":"3197"},{"$f":"'Data SBP Measures'!$U2534&B3215","v":"111# of RFPs completed annually"},{"$f":"'Data SBP Measures'!$Y2534","v":"EACH"},null,null,null,null,null,"Risk Management Self Insurance Fund - 111","# of RFPs completed annually",null,null,null,null,null,null,null,"668","120","Y","40","Recording Division","EACH","INPUT","ADOPTEDBUD",null,null,null,"Recording Division","Total documents processed",null,{"$f":"'Data SBP Measures'!$AF3215&'Data SBP Measures'!$AE3215& \" - \"& 'Data SBP Measures'!$U3215","v":"Total documents processedRecording Division - 120"},{"$f":"_xlfn.XLOOKUP(VALUE(W3215),'Data SBP Programs'!O:O,'Data SBP Programs'!S:S)","v":"Recording Division"}]
[{"$f":"'Data SBP Measures'!$AI667&\" - \"&'Data SBP Measures'!$U667","v":"Risk Management Self Insurance Fund - 111"},{"$f":"'Data SBP Measures'!$AF667","v":"# Workers Comp Claims"},{"$f":"'Data SBP Measures'!$T667","v":"1716"},{"$f":"'Data SBP Measures'!$U667&B3217","v":"111# Workers Comp Claims"},{"$f":"'Data SBP Measures'!$Y667","v":"EACH"},null,null,null,null,null,"Risk Management Self Insurance Fund - 111","# Workers Comp Claims",null,null,null,null,null,null,null,"67","108","Y","17","Communications & Training","DOLLARS","EFFICIENCY","NEITHER",null,null,null,"Communications & Training","TACA Certification Training Savings",null,{"$f":"'Data SBP Measures'!$AF3217&'Data SBP Measures'!$AE3217& \" - \"& 'Data SBP Measures'!$U3217","v":"TACA Certification Training SavingsCommunications & Training - 108"},{"$f":"_xlfn.XLOOKUP(VALUE(W3217),'Data SBP Programs'!O:O,'Data SBP Programs'!S:S)","v":"Communications & Training"}]
[{"$f":"'Data SBP Measures'!$AI668&\" - \"&'Data SBP Measures'!$U668","v":"Risk Management Self Insurance Fund - 111"},{"$f":"'Data SBP Measures'!$AF668","v":"# Workers Comp Claims"},{"$f":"'Data SBP Measures'!$T668","v":"1716"},{"$f":"'Data SBP Measures'!$U668&B3218","v":"111# Workers Comp Claims"},{"$f":"'Data SBP Measures'!$Y668","v":"EACH"},null,null,null,null,null,"Risk Management Self Insurance Fund - 111","# Workers Comp Claims",null,null,null,null,null,null,null,"670","120","Y","40","Recording Division","EACH","INPUT","ADOPTEDBUD",null,null,null,"Recording Division","eRecording documents received",null,{"$f":"'Data SBP Measures'!$AF3218&'Data SBP Measures'!$AE3218& \" - \"& 'Data SBP Measures'!$U3218","v":"eRecording documents receivedRecording Division - 120"},{"$f":"_xlfn.XLOOKUP(VALUE(W3218),'Data SBP Programs'!O:O,'Data SBP Programs'!S:S)","v":"Recording Division"}]
[{"$f":"'Data SBP Measures'!$AI672&\" - \"&'Data SBP Measures'!$U672","v":"Risk Management Self Insurance Fund - 111"},{"$f":"'Data SBP Measures'!$AF672","v":"# Workers Comp Claims Medical only"},{"$f":"'Data SBP Measures'!$T672","v":"1718"},{"$f":"'Data SBP Measures'!$U672&B3222","v":"111# Workers Comp Claims Medical only"},{"$f":"'Data SBP Measures'!$Y672","v":"EACH"},null,null,null,null,null,"Risk Management Self Insurance Fund - 111","# Workers Comp Claims Medical only",null,null,null,null,null,null,null,"675","120","Y","40","Recording Division","EACH","INPUT","ADOPTEDBUD",null,null,null,"Recording Division","Mail logged in and tracked daily",null,{"$f":"'Data SBP Measures'!$AF3222&'Data SBP Measures'!$AE3222& \" - \"& 'Data SBP Measures'!$U3222","v":"Mail logged in and tracked dailyRecording Division - 120"},{"$f":"_xlfn.XLOOKUP(VALUE(W3222),'Data SBP Programs'!O:O,'Data SBP Programs'!S:S)","v":"Recording Division"}]
[{"$f":"'Data SBP Measures'!$AI673&\" - \"&'Data SBP Measures'!$U673","v":"Risk Management Self Insurance Fund - 111"},{"$f":"'Data SBP Measures'!$AF673","v":"# Workers Comp Claims Medical only"},{"$f":"'Data SBP Measures'!$T673","v":"1718"},{"$f":"'Data SBP Measures'!$U673&B3223","v":"111# Workers Comp Claims Medical only"},{"$f":"'Data SBP Measures'!$Y673","v":"EACH"},null,null,null,null,null,"Risk Management Self Insurance Fund - 111","# Workers Comp Claims Medical only",null,null,null,null,null,null,null,"676","120","Y","40","Recording Division","EACH","INPUT","ADOPTEDBUD",null,null,null,"Recording Division","Total Mail received  (Elections now has their own PO Box)",null,{"$f":"'Data SBP Measures'!$AF3223&'Data SBP Measures'!$AE3223& \" - \"& 'Data SBP Measures'!$U3223","v":"Total Mail received  (Elections now has their own PO Box)Recording Division - 120"},{"$f":"_xlfn.XLOOKUP(VALUE(W3223),'Data SBP Programs'!O:O,'Data SBP Programs'!S:S)","v":"Recording Division"}]
[{"$f":"'Data SBP Measures'!$AI670&\" - \"&'Data SBP Measures'!$U670","v":"Risk Management Self Insurance Fund - 111"},{"$f":"'Data SBP Measures'!$AF670","v":"# Workers Comp Claims Report only"},{"$f":"'Data SBP Measures'!$T670","v":"1717"},{"$f":"'Data SBP Measures'!$U670&B3226","v":"111# Workers Comp Claims Report only"},{"$f":"'Data SBP Measures'!$Y670","v":"EACH"},null,null,null,null,null,"Risk Management Self Insurance Fund - 111","# Workers Comp Claims Report only",null,null,null,null,null,null,null,"680","120","Y","40","Recording Division","EACH","OUTPUT","ADOPTEDBUD",null,null,null,"Recording Division","Electronic Data compiled by Copy Center/Staff",null,{"$f":"'Data SBP Measures'!$AF3226&'Data SBP Measures'!$AE3226& \" - \"& 'Data SBP Measures'!$U3226","v":"Electronic Data compiled by Copy Center/StaffRecording Division - 120"},{"$f":"_xlfn.XLOOKUP(VALUE(W3226),'Data SBP Programs'!O:O,'Data SBP Programs'!S:S)","v":"Recording Division"}]
[{"$f":"'Data SBP Measures'!$AI678&\" - \"&'Data SBP Measures'!$U678","v":"Risk Management Self Insurance Fund - 111"},{"$f":"'Data SBP Measures'!$AF678","v":"Average cost of Claim to Fund"},{"$f":"'Data SBP Measures'!$T678","v":"1720"},{"$f":"'Data SBP Measures'!$U678&B3228","v":"111Average cost of Claim to Fund"},{"$f":"'Data SBP Measures'!$Y678","v":"DOLLARS"},null,null,null,null,null,"Risk Management Self Insurance Fund - 111","Average cost of Claim to Fund",null,null,null,null,null,null,null,"682","120","Y","40","Recording Division","EACH","INPUT","ADOPTEDBUD",null,null,null,"Recording Division","Transactions by cashiers",null,{"$f":"'Data SBP Measures'!$AF3228&'Data SBP Measures'!$AE3228& \" - \"& 'Data SBP Measures'!$U3228","v":"Transactions by cashiersRecording Division - 120"},{"$f":"_xlfn.XLOOKUP(VALUE(W3228),'Data SBP Programs'!O:O,'Data SBP Programs'!S:S)","v":"Recording Division"}]
[{"$f":"'Data SBP Measures'!$AI2192&\" - \"&'Data SBP Measures'!$U2192","v":"Risk Management Self Insurance Fund - 111"},{"$f":"'Data SBP Measures'!$AF2192","v":"Avg # of days lost time per claim for WC"},{"$f":"'Data SBP Measures'!$T2192","v":"2714"},{"$f":"'Data SBP Measures'!$U2192&B3232","v":"111Avg # of days lost time per claim for WC"},{"$f":"'Data SBP Measures'!$Y2192","v":"EACH"},null,null,null,null,null,"Risk Management Self Insurance Fund - 111","Avg # of days lost time per claim for WC",null,null,null,null,null,null,null,"686","120","Y","41","Records Management","EACH","INPUT","ADOPTEDBUD",null,null,null,"Records Management","In-Person Customers Onsite Library Counter",null,{"$f":"'Data SBP Measures'!$AF3232&'Data SBP Measures'!$AE3232& \" - \"& 'Data SBP Measures'!$U3232","v":"In-Person Customers Onsite Library CounterRecords Management - 120"},{"$f":"_xlfn.XLOOKUP(VALUE(W3232),'Data SBP Programs'!O:O,'Data SBP Programs'!S:S)","v":"Records Management"}]
[{"$f":"'Data SBP Measures'!$AI2193&\" - \"&'Data SBP Measures'!$U2193","v":"Risk Management Self Insurance Fund - 111"},{"$f":"'Data SBP Measures'!$AF2193","v":"Avg # of days lost time per claim for WC"},{"$f":"'Data SBP Measures'!$T2193","v":"2714"},{"$f":"'Data SBP Measures'!$U2193&B3233","v":"111Avg # of days lost time per claim for WC"},{"$f":"'Data SBP Measures'!$Y2193","v":"EACH"},null,null,null,null,null,"Risk Management Self Insurance Fund - 111","Avg # of days lost time per claim for WC",null,null,null,null,null,null,null,"687","120","Y","41","Records Management","EACH","INPUT","ADOPTEDBUD",null,null,null,"Records Management","In-Person Customers Research Area",null,{"$f":"'Data SBP Measures'!$AF3233&'Data SBP Measures'!$AE3233& \" - \"& 'Data SBP Measures'!$U3233","v":"In-Person Customers Research AreaRecords Management - 120"},{"$f":"_xlfn.XLOOKUP(VALUE(W3233),'Data SBP Programs'!O:O,'Data SBP Programs'!S:S)","v":"Records Management"}]
[{"$f":"'Data SBP Measures'!$AI40&\" - \"&'Data SBP Measures'!$U40","v":"Road & Bridge - 149"},{"$f":"'Data SBP Measures'!$AF40","v":"# of miles Brush Removal"},{"$f":"'Data SBP Measures'!$T40","v":"1055"},{"$f":"'Data SBP Measures'!$U40&B3236","v":"149# of miles Brush Removal"},{"$f":"'Data SBP Measures'!$Y40","v":"MILES"},null,null,null,null,null,"Road & Bridge - 149","# of miles Brush Removal",null,null,null,null,null,null,null,"690","120","Y","41","Records Management","EACH","OUTPUT","ADOPTEDBUD",null,null,null,"Records Management","Case Files Recalled Civil",null,{"$f":"'Data SBP Measures'!$AF3236&'Data SBP Measures'!$AE3236& \" - \"& 'Data SBP Measures'!$U3236","v":"Case Files Recalled CivilRecords Management - 120"},{"$f":"_xlfn.XLOOKUP(VALUE(W3236),'Data SBP Programs'!O:O,'Data SBP Programs'!S:S)","v":"Records Management"}]
[{"$f":"'Data SBP Measures'!$AI41&\" - \"&'Data SBP Measures'!$U41","v":"Road & Bridge - 149"},{"$f":"'Data SBP Measures'!$AF41","v":"# of miles Herbicide Applied"},{"$f":"'Data SBP Measures'!$T41","v":"1056"},{"$f":"'Data SBP Measures'!$U41&B3237","v":"149# of miles Herbicide Applied"},{"$f":"'Data SBP Measures'!$Y41","v":"MILES"},null,null,null,null,null,"Road & Bridge - 149","# of miles Herbicide Applied",null,null,null,null,null,null,null,"691","120","Y","41","Records Management","EACH","OUTPUT","ADOPTEDBUD",null,null,null,"Records Management","Case Files Recalled Misdemeanor",null,{"$f":"'Data SBP Measures'!$AF3237&'Data SBP Measures'!$AE3237& \" - \"& 'Data SBP Measures'!$U3237","v":"Case Files Recalled MisdemeanorRecords Management - 120"},{"$f":"_xlfn.XLOOKUP(VALUE(W3237),'Data SBP Programs'!O:O,'Data SBP Programs'!S:S)","v":"Records Management"}]
[{"$f":"'Data SBP Measures'!$AI50&\" - \"&'Data SBP Measures'!$U50","v":"Road & Bridge - 149"},{"$f":"'Data SBP Measures'!$AF50","v":"# of miles of Rehabilitation"},{"$f":"'Data SBP Measures'!$T50","v":"1065"},{"$f":"'Data SBP Measures'!$U50&B3241","v":"149# of miles of Rehabilitation"},{"$f":"'Data SBP Measures'!$Y50","v":"MILES"},null,null,null,null,null,"Road & Bridge - 149","# of miles of Rehabilitation",null,null,null,null,null,null,null,"695","120","Y","41","Records Management","EACH","OUTPUT","ADOPTEDBUD",null,null,null,"Records Management","Civil Division Boxes Moved Offsite",null,{"$f":"'Data SBP Measures'!$AF3241&'Data SBP Measures'!$AE3241& \" - \"& 'Data SBP Measures'!$U3241","v":"Civil Division Boxes Moved OffsiteRecords Management - 120"},{"$f":"_xlfn.XLOOKUP(VALUE(W3241),'Data SBP Programs'!O:O,'Data SBP Programs'!S:S)","v":"Records Management"}]
[{"$f":"'Data SBP Measures'!$AI45&\" - \"&'Data SBP Measures'!$U45","v":"Road & Bridge - 149"},{"$f":"'Data SBP Measures'!$AF45","v":"# of miles of Surface Treatments"},{"$f":"'Data SBP Measures'!$T45","v":"1060"},{"$f":"'Data SBP Measures'!$U45&B3242","v":"149# of miles of Surface Treatments"},{"$f":"'Data SBP Measures'!$Y45","v":"MILES"},null,null,null,null,null,"Road & Bridge - 149","# of miles of Surface Treatments",null,null,null,null,null,null,null,"696","120","Y","41","Records Management","EACH","OUTPUT","ADOPTEDBUD",null,null,null,"Records Management","Comm. Ct. Division Boxes Moved Offsite",null,{"$f":"'Data SBP Measures'!$AF3242&'Data SBP Measures'!$AE3242& \" - \"& 'Data SBP Measures'!$U3242","v":"Comm. Ct. Division Boxes Moved OffsiteRecords Management - 120"},{"$f":"_xlfn.XLOOKUP(VALUE(W3242),'Data SBP Programs'!O:O,'Data SBP Programs'!S:S)","v":"Records Management"}]
[{"$f":"'Data SBP Measures'!$AI48&\" - \"&'Data SBP Measures'!$U48","v":"Road & Bridge - 149"},{"$f":"'Data SBP Measures'!$AF48","v":"# of Secondary Drainage Project    (> 500 Man-hours)"},{"$f":"'Data SBP Measures'!$T48","v":"1063"},{"$f":"'Data SBP Measures'!$U48&B3245","v":"149# of Secondary Drainage Project    (> 500 Man-hours)"},{"$f":"'Data SBP Measures'!$Y48","v":"EACH"},null,null,null,null,null,"Road & Bridge - 149","# of Secondary Drainage Project    (> 500 Man-hours)",null,null,null,null,null,null,null,"699","120","Y","41","Records Management","EACH","OUTPUT","ADOPTEDBUD",null,null,null,"Records Management","Mental Health Division Boxes Moved Offsite",null,{"$f":"'Data SBP Measures'!$AF3245&'Data SBP Measures'!$AE3245& \" - \"& 'Data SBP Measures'!$U3245","v":"Mental Health Division Boxes Moved OffsiteRecords Management - 120"},{"$f":"_xlfn.XLOOKUP(VALUE(W3245),'Data SBP Programs'!O:O,'Data SBP Programs'!S:S)","v":"Records Management"}]
[{"$f":"'Data SBP Measures'!$AI2020&\" - \"&'Data SBP Measures'!$U2020","v":"School Resource Officers (SRO) - 137"},{"$f":"'Data SBP Measures'!$AF2020","v":"No. of adminstrator meetings"},{"$f":"'Data SBP Measures'!$T2020","v":"2608"},{"$f":"'Data SBP Measures'!$U2020&B3247","v":"137No. of adminstrator meetings"},{"$f":"'Data SBP Measures'!$Y2020","v":"EACH"},null,null,null,null,null,"School Resource Officers (SRO) - 137","No. of adminstrator meetings",null,null,null,null,null,null,null,"701","120","Y","41","Records Management","EACH","OUTPUT","ADOPTEDBUD",null,null,null,"Records Management","Probate Division Boxes Moved Offsite",null,{"$f":"'Data SBP Measures'!$AF3247&'Data SBP Measures'!$AE3247& \" - \"& 'Data SBP Measures'!$U3247","v":"Probate Division Boxes Moved OffsiteRecords Management - 120"},{"$f":"_xlfn.XLOOKUP(VALUE(W3247),'Data SBP Programs'!O:O,'Data SBP Programs'!S:S)","v":"Records Management"}]
[{"$f":"'Data SBP Measures'!$AI2016&\" - \"&'Data SBP Measures'!$U2016","v":"School Resource Officers (SRO) - 137"},{"$f":"'Data SBP Measures'!$AF2016","v":"No. of campus traffic citations"},{"$f":"'Data SBP Measures'!$T2016","v":"2604"},{"$f":"'Data SBP Measures'!$U2016&B3251","v":"137No. of campus traffic citations"},{"$f":"'Data SBP Measures'!$Y2016","v":"EACH"},null,null,null,null,null,"School Resource Officers (SRO) - 137","No. of campus traffic citations",null,null,null,null,null,null,null,"705","120","Y","41","Records Management","EACH","OUTPUT","ADOPTEDBUD",null,null,null,"Records Management","Case Files Entered into GAIN Misdemeanor",null,{"$f":"'Data SBP Measures'!$AF3251&'Data SBP Measures'!$AE3251& \" - \"& 'Data SBP Measures'!$U3251","v":"Case Files Entered into GAIN MisdemeanorRecords Management - 120"},{"$f":"_xlfn.XLOOKUP(VALUE(W3251),'Data SBP Programs'!O:O,'Data SBP Programs'!S:S)","v":"Records Management"}]
[{"$f":"'Data SBP Measures'!$AI2014&\" - \"&'Data SBP Measures'!$U2014","v":"School Resource Officers (SRO) - 137"},{"$f":"'Data SBP Measures'!$AF2014","v":"No. of juvenile campus arrests"},{"$f":"'Data SBP Measures'!$T2014","v":"2602"},{"$f":"'Data SBP Measures'!$U2014&B3252","v":"137No. of juvenile campus arrests"},{"$f":"'Data SBP Measures'!$Y2014","v":"EACH"},null,null,null,null,null,"School Resource Officers (SRO) - 137","No. of juvenile campus arrests",null,null,null,null,null,null,null,"706","120","Y","41","Records Management","EACH","OUTPUT","ADOPTEDBUD",null,null,null,"Records Management","Case Files Entered into GAIN Probate",null,{"$f":"'Data SBP Measures'!$AF3252&'Data SBP Measures'!$AE3252& \" - \"& 'Data SBP Measures'!$U3252","v":"Case Files Entered into GAIN ProbateRecords Management - 120"},{"$f":"_xlfn.XLOOKUP(VALUE(W3252),'Data SBP Programs'!O:O,'Data SBP Programs'!S:S)","v":"Records Management"}]
[{"$f":"'Data SBP Measures'!$AI2021&\" - \"&'Data SBP Measures'!$U2021","v":"School Resource Officers (SRO) - 137"},{"$f":"'Data SBP Measures'!$AF2021","v":"No. of other public outreach or community outreach"},{"$f":"'Data SBP Measures'!$T2021","v":"2609"},{"$f":"'Data SBP Measures'!$U2021&B3255","v":"137No. of other public outreach or community outreach"},{"$f":"'Data SBP Measures'!$Y2021","v":"EACH"},null,null,null,null,null,"School Resource Officers (SRO) - 137","No. of other public outreach or community outreach",null,null,null,null,null,null,null,"709","120","Y","41","Records Management","EACH","INPUT","ADOPTEDBUD",null,null,null,"Records Management","Documents Filed  Probate",null,{"$f":"'Data SBP Measures'!$AF3255&'Data SBP Measures'!$AE3255& \" - \"& 'Data SBP Measures'!$U3255","v":"Documents Filed  ProbateRecords Management - 120"},{"$f":"_xlfn.XLOOKUP(VALUE(W3255),'Data SBP Programs'!O:O,'Data SBP Programs'!S:S)","v":"Records Management"}]
[{"$f":"'Data SBP Measures'!$AI2019&\" - \"&'Data SBP Measures'!$U2019","v":"School Resource Officers (SRO) - 137"},{"$f":"'Data SBP Measures'!$AF2019","v":"No. of parent meeting"},{"$f":"'Data SBP Measures'!$T2019","v":"2607"},{"$f":"'Data SBP Measures'!$U2019&B3256","v":"137No. of parent meeting"},{"$f":"'Data SBP Measures'!$Y2019","v":"EACH"},null,null,null,null,null,"School Resource Officers (SRO) - 137","No. of parent meeting",null,null,null,null,null,null,null,"710","120","Y","41","Records Management","EACH","OUTPUT","ADOPTEDBUD",null,null,null,"Records Management","Folders Requested by County Clerk Staff Civil",null,{"$f":"'Data SBP Measures'!$AF3256&'Data SBP Measures'!$AE3256& \" - \"& 'Data SBP Measures'!$U3256","v":"Folders Requested by County Clerk Staff CivilRecords Management - 120"},{"$f":"_xlfn.XLOOKUP(VALUE(W3256),'Data SBP Programs'!O:O,'Data SBP Programs'!S:S)","v":"Records Management"}]
[{"$f":"'Data SBP Measures'!$AI1444&\" - \"&'Data SBP Measures'!$U1444","v":"Security - 131"},{"$f":"'Data SBP Measures'!$AF1444","v":"Call for Service"},{"$f":"'Data SBP Measures'!$T1444","v":"2233"},{"$f":"'Data SBP Measures'!$U1444&B3260","v":"131Call for Service"},{"$f":"'Data SBP Measures'!$Y1444","v":"EACH"},null,null,null,null,null,"Security - 131","Call for Service",null,null,null,null,null,null,null,"714","120","Y","41","Records Management","EACH","OUTPUT","ADOPTEDBUD",null,null,null,"Records Management","Folders Requested by Cust Misd Fm Docket Sheets w/o add-ons",null,{"$f":"'Data SBP Measures'!$AF3260&'Data SBP Measures'!$AE3260& \" - \"& 'Data SBP Measures'!$U3260","v":"Folders Requested by Cust Misd Fm Docket Sheets w/o add-onsRecords Management - 120"},{"$f":"_xlfn.XLOOKUP(VALUE(W3260),'Data SBP Programs'!O:O,'Data SBP Programs'!S:S)","v":"Records Management"}]
[{"$f":"'Data SBP Measures'!$AI1445&\" - \"&'Data SBP Measures'!$U1445","v":"Security - 131"},{"$f":"'Data SBP Measures'!$AF1445","v":"Calls Cleared"},{"$f":"'Data SBP Measures'!$T1445","v":"2234"},{"$f":"'Data SBP Measures'!$U1445&B3261","v":"131Calls Cleared"},{"$f":"'Data SBP Measures'!$Y1445","v":"EACH"},null,null,null,null,null,"Security - 131","Calls Cleared",null,null,null,null,null,null,null,"715","120","Y","41","Records Management","EACH","OUTPUT","ADOPTEDBUD",null,null,null,"Records Management","Folders Requested by Customers Misdemeanor Other",null,{"$f":"'Data SBP Measures'!$AF3261&'Data SBP Measures'!$AE3261& \" - \"& 'Data SBP Measures'!$U3261","v":"Folders Requested by Customers Misdemeanor OtherRecords Management - 120"},{"$f":"_xlfn.XLOOKUP(VALUE(W3261),'Data SBP Programs'!O:O,'Data SBP Programs'!S:S)","v":"Records Management"}]
[{"$f":"'Data SBP Measures'!$AI2709&\" - \"&'Data SBP Measures'!$U2709","v":"Security Management - 114"},{"$f":"'Data SBP Measures'!$AF2709","v":"% of electronic security work orders completed on schedule"},{"$f":"'Data SBP Measures'!$T2709","v":"3322"},{"$f":"'Data SBP Measures'!$U2709&B3264","v":"114% of electronic security work orders completed on schedule"},{"$f":"'Data SBP Measures'!$Y2709","v":"PERCENT"},null,null,null,null,null,"Security Management - 114","% of electronic security work orders completed on schedule",null,null,null,null,null,null,null,"718","120","Y","41","Records Management","EACH","OUTPUT","ADOPTEDBUD",null,null,null,"Records Management","Onsite Files Purged to Offsite Misdemeanor",null,{"$f":"'Data SBP Measures'!$AF3264&'Data SBP Measures'!$AE3264& \" - \"& 'Data SBP Measures'!$U3264","v":"Onsite Files Purged to Offsite MisdemeanorRecords Management - 120"},{"$f":"_xlfn.XLOOKUP(VALUE(W3264),'Data SBP Programs'!O:O,'Data SBP Programs'!S:S)","v":"Records Management"}]
[{"$f":"'Data SBP Measures'!$AI2707&\" - \"&'Data SBP Measures'!$U2707","v":"Security Management - 114"},{"$f":"'Data SBP Measures'!$AF2707","v":"% of parking space utilization"},{"$f":"'Data SBP Measures'!$T2707","v":"3320"},{"$f":"'Data SBP Measures'!$U2707&B3266","v":"114% of parking space utilization"},{"$f":"'Data SBP Measures'!$Y2707","v":"PERCENT"},null,null,null,null,null,"Security Management - 114","% of parking space utilization",null,null,null,null,null,null,null,"720","122","Y","42","Civil Courts","EACH","OUTPUT","ADOPTEDBUD",null,null,null,"Civil Courts","Number of Settings and Announcements",null,{"$f":"'Data SBP Measures'!$AF3266&'Data SBP Measures'!$AE3266& \" - \"& 'Data SBP Measures'!$U3266","v":"Number of Settings and AnnouncementsCivil Courts - 122"},{"$f":"_xlfn.XLOOKUP(VALUE(W3266),'Data SBP Programs'!O:O,'Data SBP Programs'!S:S)","v":"Civil Courts"}]
[{"$f":"'Data SBP Measures'!$AI1461&\" - \"&'Data SBP Measures'!$U1461","v":"Security Unit - 132"},{"$f":"'Data SBP Measures'!$AF1461","v":"Front Entry Totals"},{"$f":"'Data SBP Measures'!$T1461","v":"2253"},{"$f":"'Data SBP Measures'!$U1461&B3270","v":"132Front Entry Totals"},{"$f":"'Data SBP Measures'!$Y1461","v":"EACH"},null,null,null,null,null,"Security Unit - 132","Front Entry Totals",null,null,null,null,null,null,null,"720","122","Y","42","Civil Courts","EACH","OUTPUT","ADOPTEDBUD",null,null,null,"Civil Courts","Number of Settings and Announcements",null,{"$f":"'Data SBP Measures'!$AF3270&'Data SBP Measures'!$AE3270& \" - \"& 'Data SBP Measures'!$U3270","v":"Number of Settings and AnnouncementsCivil Courts - 122"},{"$f":"_xlfn.XLOOKUP(VALUE(W3270),'Data SBP Programs'!O:O,'Data SBP Programs'!S:S)","v":"Civil Courts"}]
[{"$f":"'Data SBP Measures'!$AI1482&\" - \"&'Data SBP Measures'!$U1482","v":"Security Unit - 134"},{"$f":"'Data SBP Measures'!$AF1482","v":"Number visitors screened"},{"$f":"'Data SBP Measures'!$T1482","v":"2282"},{"$f":"'Data SBP Measures'!$U1482&B3271","v":"134Number visitors screened"},{"$f":"'Data SBP Measures'!$Y1482","v":"EACH"},null,null,null,null,null,"Security Unit - 134","Number visitors screened",null,null,null,null,null,null,null,"720","122","Y","42","Civil Courts","EACH","OUTPUT","ADOPTEDBUD",null,null,null,"Civil Courts","Number of Settings and Announcements",null,{"$f":"'Data SBP Measures'!$AF3271&'Data SBP Measures'!$AE3271& \" - \"& 'Data SBP Measures'!$U3271","v":"Number of Settings and AnnouncementsCivil Courts - 122"},{"$f":"_xlfn.XLOOKUP(VALUE(W3271),'Data SBP Programs'!O:O,'Data SBP Programs'!S:S)","v":"Civil Courts"}]
[{"$f":"'Data SBP Measures'!$AI133&\" - \"&'Data SBP Measures'!$U133","v":"Services for the Deaf and Hard of Hearing - 158"},{"$f":"'Data SBP Measures'!$AF133","v":"Number of Duplicated clients served: Interpreter Services"},{"$f":"'Data SBP Measures'!$T133","v":"1170"},{"$f":"'Data SBP Measures'!$U133&B3274","v":"158Number of Duplicated clients served: Interpreter Services"},{"$f":"'Data SBP Measures'!$Y133","v":"EACH"},null,null,null,null,null,"Services for the Deaf and Hard of Hearing - 158","Number of Duplicated clients served: Interpreter Services",null,null,null,null,null,null,null,"720","122","Y","42","Civil Courts","EACH","OUTPUT","ADOPTEDBUD",null,null,null,"Civil Courts","Number of Settings and Announcements",null,{"$f":"'Data SBP Measures'!$AF3274&'Data SBP Measures'!$AE3274& \" - \"& 'Data SBP Measures'!$U3274","v":"Number of Settings and AnnouncementsCivil Courts - 122"},{"$f":"_xlfn.XLOOKUP(VALUE(W3274),'Data SBP Programs'!O:O,'Data SBP Programs'!S:S)","v":"Civil Courts"}]
[{"$f":"'Data SBP Measures'!$AI134&\" - \"&'Data SBP Measures'!$U134","v":"Services for the Deaf and Hard of Hearing - 158"},{"$f":"'Data SBP Measures'!$AF134","v":"Number of hours of service: Case Management"},{"$f":"'Data SBP Measures'!$T134","v":"1171"},{"$f":"'Data SBP Measures'!$U134&B3275","v":"158Number of hours of service: Case Management"},{"$f":"'Data SBP Measures'!$Y134","v":"EACH"},null,null,null,null,null,"Services for the Deaf and Hard of Hearing - 158","Number of hours of service: Case Management",null,null,null,null,null,null,null,"720","122","Y","42","Civil Courts","EACH","OUTPUT","ADOPTEDBUD",null,null,null,"Civil Courts","Number of Settings and Announcements",null,{"$f":"'Data SBP Measures'!$AF3275&'Data SBP Measures'!$AE3275& \" - \"& 'Data SBP Measures'!$U3275","v":"Number of Settings and AnnouncementsCivil Courts - 122"},{"$f":"_xlfn.XLOOKUP(VALUE(W3275),'Data SBP Programs'!O:O,'Data SBP Programs'!S:S)","v":"Civil Courts"}]
[{"$f":"'Data SBP Measures'!$AI131&\" - \"&'Data SBP Measures'!$U131","v":"Services for the Deaf and Hard of Hearing - 158"},{"$f":"'Data SBP Measures'!$AF131","v":"Percentage of Interpreter requests successfully filled"},{"$f":"'Data SBP Measures'!$T131","v":"1168"},{"$f":"'Data SBP Measures'!$U131&B3279","v":"158Percentage of Interpreter requests successfully filled"},{"$f":"'Data SBP Measures'!$Y131","v":"PERCENT"},null,null,null,null,null,"Services for the Deaf and Hard of Hearing - 158","Percentage of Interpreter requests successfully filled",null,null,null,null,null,null,null,"720","122","Y","42","Civil Courts","EACH","OUTPUT","ADOPTEDBUD",null,null,null,"Civil Courts","Number of Settings and Announcements",null,{"$f":"'Data SBP Measures'!$AF3279&'Data SBP Measures'!$AE3279& \" - \"& 'Data SBP Measures'!$U3279","v":"Number of Settings and AnnouncementsCivil Courts - 122"},{"$f":"_xlfn.XLOOKUP(VALUE(W3279),'Data SBP Programs'!O:O,'Data SBP Programs'!S:S)","v":"Civil Courts"}]
[{"$f":"'Data SBP Measures'!$AI51&\" - \"&'Data SBP Measures'!$U51","v":"Sign Shop Services - 149"},{"$f":"'Data SBP Measures'!$AF51","v":"# of signs fabricated"},{"$f":"'Data SBP Measures'!$T51","v":"1066"},{"$f":"'Data SBP Measures'!$U51&B3280","v":"149# of signs fabricated"},{"$f":"'Data SBP Measures'!$Y51","v":"EACH"},null,null,null,null,null,"Sign Shop Services - 149","# of signs fabricated",null,null,null,null,null,null,null,"720","122","Y","42","Civil Courts","EACH","OUTPUT","ADOPTEDBUD",null,null,null,"Civil Courts","Number of Settings and Announcements",null,{"$f":"'Data SBP Measures'!$AF3280&'Data SBP Measures'!$AE3280& \" - \"& 'Data SBP Measures'!$U3280","v":"Number of Settings and AnnouncementsCivil Courts - 122"},{"$f":"_xlfn.XLOOKUP(VALUE(W3280),'Data SBP Programs'!O:O,'Data SBP Programs'!S:S)","v":"Civil Courts"}]
[{"$f":"'Data SBP Measures'!$AI139&\" - \"&'Data SBP Measures'!$U139","v":"Social Service Agency Contracts: Access to Basic Supports - 158"},{"$f":"'Data SBP Measures'!$AF139","v":"Number of meals or meal equivalents provided"},{"$f":"'Data SBP Measures'!$T139","v":"1175"},{"$f":"'Data SBP Measures'!$U139&B3283","v":"158Number of meals or meal equivalents provided"},{"$f":"'Data SBP Measures'!$Y139","v":"EACH"},null,null,null,null,null,"Social Service Agency Contracts: Access to Basic Supports - 158","Number of meals or meal equivalents provided",null,null,null,null,null,null,null,"720","122","Y","42","Civil Courts","EACH","OUTPUT","ADOPTEDBUD",null,null,null,"Civil Courts","Number of Settings and Announcements",null,{"$f":"'Data SBP Measures'!$AF3283&'Data SBP Measures'!$AE3283& \" - \"& 'Data SBP Measures'!$U3283","v":"Number of Settings and AnnouncementsCivil Courts - 122"},{"$f":"_xlfn.XLOOKUP(VALUE(W3283),'Data SBP Programs'!O:O,'Data SBP Programs'!S:S)","v":"Civil Courts"}]
[{"$f":"'Data SBP Measures'!$AI145&\" - \"&'Data SBP Measures'!$U145","v":"Social Service Agency Contracts: Access to Basic Supports - 158"},{"$f":"'Data SBP Measures'!$AF145","v":"Number of trips provided"},{"$f":"'Data SBP Measures'!$T145","v":"1178"},{"$f":"'Data SBP Measures'!$U145&B3285","v":"158Number of trips provided"},{"$f":"'Data SBP Measures'!$Y145","v":"EACH"},null,null,null,null,null,"Social Service Agency Contracts: Access to Basic Supports - 158","Number of trips provided",null,null,null,null,null,null,null,"720","122","Y","42","Civil Courts","EACH","OUTPUT","ADOPTEDBUD",null,null,null,"Civil Courts","Number of Settings and Announcements",null,{"$f":"'Data SBP Measures'!$AF3285&'Data SBP Measures'!$AE3285& \" - \"& 'Data SBP Measures'!$U3285","v":"Number of Settings and AnnouncementsCivil Courts - 122"},{"$f":"_xlfn.XLOOKUP(VALUE(W3285),'Data SBP Programs'!O:O,'Data SBP Programs'!S:S)","v":"Civil Courts"}]
[{"$f":"'Data SBP Measures'!$AI143&\" - \"&'Data SBP Measures'!$U143","v":"Social Service Agency Contracts: Access to Basic Supports - 158"},{"$f":"'Data SBP Measures'!$AF143","v":"Number of unduplicated Legal Rights and Benefits clients served"},{"$f":"'Data SBP Measures'!$T143","v":"1177"},{"$f":"'Data SBP Measures'!$U143&B3289","v":"158Number of unduplicated Legal Rights and Benefits clients served"},{"$f":"'Data SBP Measures'!$Y143","v":"EACH"},null,null,null,null,null,"Social Service Agency Contracts: Access to Basic Supports - 158","Number of unduplicated Legal Rights and Benefits clients served",null,null,null,null,null,null,null,"720","122","Y","42","Civil Courts","EACH","OUTPUT","ADOPTEDBUD",null,null,null,"Civil Courts","Number of Settings and Announcements",null,{"$f":"'Data SBP Measures'!$AF3289&'Data SBP Measures'!$AE3289& \" - \"& 'Data SBP Measures'!$U3289","v":"Number of Settings and AnnouncementsCivil Courts - 122"},{"$f":"_xlfn.XLOOKUP(VALUE(W3289),'Data SBP Programs'!O:O,'Data SBP Programs'!S:S)","v":"Civil Courts"}]
[{"$f":"'Data SBP Measures'!$AI146&\" - \"&'Data SBP Measures'!$U146","v":"Social Service Agency Contracts: Access to Basic Supports - 158"},{"$f":"'Data SBP Measures'!$AF146","v":"Number of unduplicated Transportation clients served"},{"$f":"'Data SBP Measures'!$T146","v":"1179"},{"$f":"'Data SBP Measures'!$U146&B3290","v":"158Number of unduplicated Transportation clients served"},{"$f":"'Data SBP Measures'!$Y146","v":"EACH"},null,null,null,null,null,"Social Service Agency Contracts: Access to Basic Supports - 158","Number of unduplicated Transportation clients served",null,null,null,null,null,null,null,"720","122","Y","42","Civil Courts","EACH","OUTPUT","ADOPTEDBUD",null,null,null,"Civil Courts","Number of Settings and Announcements",null,{"$f":"'Data SBP Measures'!$AF3290&'Data SBP Measures'!$AE3290& \" - \"& 'Data SBP Measures'!$U3290","v":"Number of Settings and AnnouncementsCivil Courts - 122"},{"$f":"_xlfn.XLOOKUP(VALUE(W3290),'Data SBP Programs'!O:O,'Data SBP Programs'!S:S)","v":"Civil Courts"}]
[{"$f":"'Data SBP Measures'!$AI2280&\" - \"&'Data SBP Measures'!$U2280","v":"Social Service Agency Contracts: Access to Basic Supports - 158"},{"$f":"'Data SBP Measures'!$AF2280","v":"Percentage of clients who preserved, obtained, or increased a public benefit"},{"$f":"'Data SBP Measures'!$T2280","v":"2809"},{"$f":"'Data SBP Measures'!$U2280&B3293","v":"158Percentage of clients who preserved, obtained, or increased a public benefit"},{"$f":"'Data SBP Measures'!$Y2280","v":"PERCENT"},null,null,null,null,null,"Social Service Agency Contracts: Access to Basic Supports - 158","Percentage of clients who preserved, obtained, or increased a public benefit",null,null,null,null,null,null,null,"720","122","Y","42","Civil Courts","EACH","OUTPUT","ADOPTEDBUD",null,null,null,"Civil Courts","Number of Settings and Announcements",null,{"$f":"'Data SBP Measures'!$AF3293&'Data SBP Measures'!$AE3293& \" - \"& 'Data SBP Measures'!$U3293","v":"Number of Settings and AnnouncementsCivil Courts - 122"},{"$f":"_xlfn.XLOOKUP(VALUE(W3293),'Data SBP Programs'!O:O,'Data SBP Programs'!S:S)","v":"Civil Courts"}]
[{"$f":"'Data SBP Measures'!$AI2275&\" - \"&'Data SBP Measures'!$U2275","v":"Social Service Agency Contracts: Access to Basic Supports - 158"},{"$f":"'Data SBP Measures'!$AF2275","v":"Percentage of clients who report that they are growing their own food"},{"$f":"'Data SBP Measures'!$T2275","v":"2807"},{"$f":"'Data SBP Measures'!$U2275&B3294","v":"158Percentage of clients who report that they are growing their own food"},{"$f":"'Data SBP Measures'!$Y2275","v":"PERCENT"},null,null,null,null,null,"Social Service Agency Contracts: Access to Basic Supports - 158","Percentage of clients who report that they are growing their own food",null,null,null,null,null,null,null,"720","122","Y","42","Civil Courts","EACH","OUTPUT","ADOPTEDBUD",null,null,null,"Civil Courts","Number of Settings and Announcements",null,{"$f":"'Data SBP Measures'!$AF3294&'Data SBP Measures'!$AE3294& \" - \"& 'Data SBP Measures'!$U3294","v":"Number of Settings and AnnouncementsCivil Courts - 122"},{"$f":"_xlfn.XLOOKUP(VALUE(W3294),'Data SBP Programs'!O:O,'Data SBP Programs'!S:S)","v":"Civil Courts"}]
[{"$f":"'Data SBP Measures'!$AI2273&\" - \"&'Data SBP Measures'!$U2273","v":"Social Service Agency Contracts: Access to Basic Supports - 158"},{"$f":"'Data SBP Measures'!$AF2273","v":"Percentage of total pounds provided that is fresh produce"},{"$f":"'Data SBP Measures'!$T2273","v":"2806"},{"$f":"'Data SBP Measures'!$U2273&B3298","v":"158Percentage of total pounds provided that is fresh produce"},{"$f":"'Data SBP Measures'!$Y2273","v":"PERCENT"},null,null,null,null,null,"Social Service Agency Contracts: Access to Basic Supports - 158","Percentage of total pounds provided that is fresh produce",null,null,null,null,null,null,null,"721","122","Y","42","Civil Courts","EACH","INPUT","ADOPTEDBUD",null,null,null,"Civil Courts","Number of Cases Filed",null,{"$f":"'Data SBP Measures'!$AF3298&'Data SBP Measures'!$AE3298& \" - \"& 'Data SBP Measures'!$U3298","v":"Number of Cases FiledCivil Courts - 122"},{"$f":"_xlfn.XLOOKUP(VALUE(W3298),'Data SBP Programs'!O:O,'Data SBP Programs'!S:S)","v":"Civil Courts"}]
[{"$f":"'Data SBP Measures'!$AI2274&\" - \"&'Data SBP Measures'!$U2274","v":"Social Service Agency Contracts: Access to Basic Supports - 158"},{"$f":"'Data SBP Measures'!$AF2274","v":"Percentage of total pounds provided that is fresh produce"},{"$f":"'Data SBP Measures'!$T2274","v":"2806"},{"$f":"'Data SBP Measures'!$U2274&B3299","v":"158Percentage of total pounds provided that is fresh produce"},{"$f":"'Data SBP Measures'!$Y2274","v":"PERCENT"},null,null,null,null,null,"Social Service Agency Contracts: Access to Basic Supports - 158","Percentage of total pounds provided that is fresh produce",null,null,null,null,null,null,null,"721","122","Y","42","Civil Courts","EACH","INPUT","ADOPTEDBUD",null,null,null,"Civil Courts","Number of Cases Filed",null,{"$f":"'Data SBP Measures'!$AF3299&'Data SBP Measures'!$AE3299& \" - \"& 'Data SBP Measures'!$U3299","v":"Number of Cases FiledCivil Courts - 122"},{"$f":"_xlfn.XLOOKUP(VALUE(W3299),'Data SBP Programs'!O:O,'Data SBP Programs'!S:S)","v":"Civil Courts"}]
[{"$f":"'Data SBP Measures'!$AI2264&\" - \"&'Data SBP Measures'!$U2264","v":"Social Service Agency Contracts: Behavioral Health - 158"},{"$f":"'Data SBP Measures'!$AF2264","v":"Percent of clients who engage in recovery from substance use disorder"},{"$f":"'Data SBP Measures'!$T2264","v":"2799"},{"$f":"'Data SBP Measures'!$U2264&B3302","v":"158Percent of clients who engage in recovery from substance use disorder"},{"$f":"'Data SBP Measures'!$Y2264","v":"PERCENT"},null,null,null,null,null,"Social Service Agency Contracts: Behavioral Health - 158","Percent of clients who engage in recovery from substance use disorder",null,null,null,null,null,null,null,"721","122","Y","42","Civil Courts","EACH","INPUT","ADOPTEDBUD",null,null,null,"Civil Courts","Number of Cases Filed",null,{"$f":"'Data SBP Measures'!$AF3302&'Data SBP Measures'!$AE3302& \" - \"& 'Data SBP Measures'!$U3302","v":"Number of Cases FiledCivil Courts - 122"},{"$f":"_xlfn.XLOOKUP(VALUE(W3302),'Data SBP Programs'!O:O,'Data SBP Programs'!S:S)","v":"Civil Courts"}]
[{"$f":"'Data SBP Measures'!$AI148&\" - \"&'Data SBP Measures'!$U148","v":"Social Service Agency Contracts: Behavioral Health - 158"},{"$f":"'Data SBP Measures'!$AF148","v":"Percent of clients with improved mental health"},{"$f":"'Data SBP Measures'!$T148","v":"1180"},{"$f":"'Data SBP Measures'!$U148&B3304","v":"158Percent of clients with improved mental health"},{"$f":"'Data SBP Measures'!$Y148","v":"PERCENT"},null,null,null,null,null,"Social Service Agency Contracts: Behavioral Health - 158","Percent of clients with improved mental health",null,null,null,null,null,null,null,"721","122","Y","42","Civil Courts","EACH","INPUT","ADOPTEDBUD",null,null,null,"Civil Courts","Number of Cases Filed",null,{"$f":"'Data SBP Measures'!$AF3304&'Data SBP Measures'!$AE3304& \" - \"& 'Data SBP Measures'!$U3304","v":"Number of Cases FiledCivil Courts - 122"},{"$f":"_xlfn.XLOOKUP(VALUE(W3304),'Data SBP Programs'!O:O,'Data SBP Programs'!S:S)","v":"Civil Courts"}]
[{"$f":"'Data SBP Measures'!$AI152&\" - \"&'Data SBP Measures'!$U152","v":"Social Service Agency Contracts: Child and Youth Development - 158"},{"$f":"'Data SBP Measures'!$AF152","v":"Percent of children and youth who demonstrate healthy social and emotional behaviors"},{"$f":"'Data SBP Measures'!$T152","v":"1186"},{"$f":"'Data SBP Measures'!$U152&B3308","v":"158Percent of children and youth who demonstrate healthy social and emotional behaviors"},{"$f":"'Data SBP Measures'!$Y152","v":"PERCENT"},null,null,null,null,null,"Social Service Agency Contracts: Child and Youth Development - 158","Percent of children and youth who demonstrate healthy social and emotional behaviors",null,null,null,null,null,null,null,"721","122","Y","42","Civil Courts","EACH","INPUT","ADOPTEDBUD",null,null,null,"Civil Courts","Number of Cases Filed",null,{"$f":"'Data SBP Measures'!$AF3308&'Data SBP Measures'!$AE3308& \" - \"& 'Data SBP Measures'!$U3308","v":"Number of Cases FiledCivil Courts - 122"},{"$f":"_xlfn.XLOOKUP(VALUE(W3308),'Data SBP Programs'!O:O,'Data SBP Programs'!S:S)","v":"Civil Courts"}]
[{"$f":"'Data SBP Measures'!$AI149&\" - \"&'Data SBP Measures'!$U149","v":"Social Service Agency Contracts: Child and Youth Development - 158"},{"$f":"'Data SBP Measures'!$AF149","v":"Percent of parents/caregivers/staff with an increase in skills that support nurturing and responsive environments for healthy child development"},{"$f":"'Data SBP Measures'!$T149","v":"1183"},{"$f":"'Data SBP Measures'!$U149&B3309","v":"158Percent of parents/caregivers/staff with an increase in skills that support nurturing and responsive environments for healthy child development"},{"$f":"'Data SBP Measures'!$Y149","v":"PERCENT"},null,null,null,null,null,"Social Service Agency Contracts: Child and Youth Development - 158","Percent of parents/caregivers/staff with an increase in skills that support nurturing and responsive environments for healthy child development",null,null,null,null,null,null,null,"721","122","Y","42","Civil Courts","EACH","INPUT","ADOPTEDBUD",null,null,null,"Civil Courts","Number of Cases Filed",null,{"$f":"'Data SBP Measures'!$AF3309&'Data SBP Measures'!$AE3309& \" - \"& 'Data SBP Measures'!$U3309","v":"Number of Cases FiledCivil Courts - 122"},{"$f":"_xlfn.XLOOKUP(VALUE(W3309),'Data SBP Programs'!O:O,'Data SBP Programs'!S:S)","v":"Civil Courts"}]
[{"$f":"'Data SBP Measures'!$AI156&\" - \"&'Data SBP Measures'!$U156","v":"Social Service Agency Contracts: Housing Continuum - 158"},{"$f":"'Data SBP Measures'!$AF156","v":"Percent of Transitional Housing clients/households who transition into safe and stable housing at program exit"},{"$f":"'Data SBP Measures'!$T156","v":"1191"},{"$f":"'Data SBP Measures'!$U156&B3312","v":"158Percent of Transitional Housing clients/households who transition into safe and stable housing at program exit"},{"$f":"'Data SBP Measures'!$Y156","v":"PERCENT"},null,null,null,null,null,"Social Service Agency Contracts: Housing Continuum - 158","Percent of Transitional Housing clients/households who transition into safe and stable housing at program exit",null,null,null,null,null,null,null,"721","122","Y","42","Civil Courts","EACH","INPUT","ADOPTEDBUD",null,null,null,"Civil Courts","Number of Cases Filed",null,{"$f":"'Data SBP Measures'!$AF3312&'Data SBP Measures'!$AE3312& \" - \"& 'Data SBP Measures'!$U3312","v":"Number of Cases FiledCivil Courts - 122"},{"$f":"_xlfn.XLOOKUP(VALUE(W3312),'Data SBP Programs'!O:O,'Data SBP Programs'!S:S)","v":"Civil Courts"}]
[{"$f":"'Data SBP Measures'!$AI154&\" - \"&'Data SBP Measures'!$U154","v":"Social Service Agency Contracts: Housing Continuum - 158"},{"$f":"'Data SBP Measures'!$AF154","v":"Percent of unduplicated clients that reported increased knowledge or skills in addressing their housing problems"},{"$f":"'Data SBP Measures'!$T154","v":"1189"},{"$f":"'Data SBP Measures'!$U154&B3313","v":"158Percent of unduplicated clients that reported increased knowledge or skills in addressing their housing problems"},{"$f":"'Data SBP Measures'!$Y154","v":"PERCENT"},null,null,null,null,null,"Social Service Agency Contracts: Housing Continuum - 158","Percent of unduplicated clients that reported increased knowledge or skills in addressing their housing problems",null,null,null,null,null,null,null,"721","122","Y","42","Civil Courts","EACH","INPUT","ADOPTEDBUD",null,null,null,"Civil Courts","Number of Cases Filed",null,{"$f":"'Data SBP Measures'!$AF3313&'Data SBP Measures'!$AE3313& \" - \"& 'Data SBP Measures'!$U3313","v":"Number of Cases FiledCivil Courts - 122"},{"$f":"_xlfn.XLOOKUP(VALUE(W3313),'Data SBP Programs'!O:O,'Data SBP Programs'!S:S)","v":"Civil Courts"}]
[{"$f":"'Data SBP Measures'!$AI2270&\" - \"&'Data SBP Measures'!$U2270","v":"Social Service Agency Contracts: Public Health - 158"},{"$f":"'Data SBP Measures'!$AF2270","v":"Percent of clients who report increased knowledge of prevention strategies"},{"$f":"'Data SBP Measures'!$T2270","v":"2803"},{"$f":"'Data SBP Measures'!$U2270&B3317","v":"158Percent of clients who report increased knowledge of prevention strategies"},{"$f":"'Data SBP Measures'!$Y2270","v":"PERCENT"},null,null,null,null,null,"Social Service Agency Contracts: Public Health - 158","Percent of clients who report increased knowledge of prevention strategies",null,null,null,null,null,null,null,"721","122","Y","42","Civil Courts","EACH","INPUT","ADOPTEDBUD",null,null,null,"Civil Courts","Number of Cases Filed",null,{"$f":"'Data SBP Measures'!$AF3317&'Data SBP Measures'!$AE3317& \" - \"& 'Data SBP Measures'!$U3317","v":"Number of Cases FiledCivil Courts - 122"},{"$f":"_xlfn.XLOOKUP(VALUE(W3317),'Data SBP Programs'!O:O,'Data SBP Programs'!S:S)","v":"Civil Courts"}]
[{"$f":"'Data SBP Measures'!$AI2271&\" - \"&'Data SBP Measures'!$U2271","v":"Social Service Agency Contracts: Public Health - 158"},{"$f":"'Data SBP Measures'!$AF2271","v":"Percent of clients who report using prevention strategies"},{"$f":"'Data SBP Measures'!$T2271","v":"2804"},{"$f":"'Data SBP Measures'!$U2271&B3318","v":"158Percent of clients who report using prevention strategies"},{"$f":"'Data SBP Measures'!$Y2271","v":"PERCENT"},null,null,null,null,null,"Social Service Agency Contracts: Public Health - 158","Percent of clients who report using prevention strategies",null,null,null,null,null,null,null,"721","122","Y","42","Civil Courts","EACH","INPUT","ADOPTEDBUD",null,null,null,"Civil Courts","Number of Cases Filed",null,{"$f":"'Data SBP Measures'!$AF3318&'Data SBP Measures'!$AE3318& \" - \"& 'Data SBP Measures'!$U3318","v":"Number of Cases FiledCivil Courts - 122"},{"$f":"_xlfn.XLOOKUP(VALUE(W3318),'Data SBP Programs'!O:O,'Data SBP Programs'!S:S)","v":"Civil Courts"}]
[{"$f":"'Data SBP Measures'!$AI160&\" - \"&'Data SBP Measures'!$U160","v":"Social Service Agency Contracts: Safety Intervention Svcs - 158"},{"$f":"'Data SBP Measures'!$AF160","v":"Percent of children and youth who exit program into permanent living situations"},{"$f":"'Data SBP Measures'!$T160","v":"1196"},{"$f":"'Data SBP Measures'!$U160&B3321","v":"158Percent of children and youth who exit program into permanent living situations"},{"$f":"'Data SBP Measures'!$Y160","v":"PERCENT"},null,null,null,null,null,"Social Service Agency Contracts: Safety Intervention Svcs - 158","Percent of children and youth who exit program into permanent living situations",null,null,null,null,null,null,null,"721","122","Y","42","Civil Courts","EACH","INPUT","ADOPTEDBUD",null,null,null,"Civil Courts","Number of Cases Filed",null,{"$f":"'Data SBP Measures'!$AF3321&'Data SBP Measures'!$AE3321& \" - \"& 'Data SBP Measures'!$U3321","v":"Number of Cases FiledCivil Courts - 122"},{"$f":"_xlfn.XLOOKUP(VALUE(W3321),'Data SBP Programs'!O:O,'Data SBP Programs'!S:S)","v":"Civil Courts"}]
[{"$f":"'Data SBP Measures'!$AI161&\" - \"&'Data SBP Measures'!$U161","v":"Social Service Agency Contracts: Safety Intervention Svcs - 158"},{"$f":"'Data SBP Measures'!$AF161","v":"Percent of clients who exit shelter to a location that does not include the person who was previously abusive"},{"$f":"'Data SBP Measures'!$T161","v":"1197"},{"$f":"'Data SBP Measures'!$U161&B3323","v":"158Percent of clients who exit shelter to a location that does not include the person who was previously abusive"},{"$f":"'Data SBP Measures'!$Y161","v":"PERCENT"},null,null,null,null,null,"Social Service Agency Contracts: Safety Intervention Svcs - 158","Percent of clients who exit shelter to a location that does not include the person who was previously abusive",null,null,null,null,null,null,null,"721","122","Y","42","Civil Courts","EACH","INPUT","ADOPTEDBUD",null,null,null,"Civil Courts","Number of Cases Filed",null,{"$f":"'Data SBP Measures'!$AF3323&'Data SBP Measures'!$AE3323& \" - \"& 'Data SBP Measures'!$U3323","v":"Number of Cases FiledCivil Courts - 122"},{"$f":"_xlfn.XLOOKUP(VALUE(W3323),'Data SBP Programs'!O:O,'Data SBP Programs'!S:S)","v":"Civil Courts"}]
[{"$f":"'Data SBP Measures'!$AI165&\" - \"&'Data SBP Measures'!$U165","v":"Social Service Agency Contracts: Support Svc Comm Living - 158"},{"$f":"'Data SBP Measures'!$AF165","v":"Percent of clients who report that services helped them stay connected or engaged with the community"},{"$f":"'Data SBP Measures'!$T165","v":"1201"},{"$f":"'Data SBP Measures'!$U165&B3327","v":"158Percent of clients who report that services helped them stay connected or engaged with the community"},{"$f":"'Data SBP Measures'!$Y165","v":"PERCENT"},null,null,null,null,null,"Social Service Agency Contracts: Support Svc Comm Living - 158","Percent of clients who report that services helped them stay connected or engaged with the community",null,null,null,null,null,null,null,"722","122","Y","42","Civil Courts","EACH","INPUT","ADOPTEDBUD",null,null,null,"Civil Courts","Number of Cases Disposed",null,{"$f":"'Data SBP Measures'!$AF3327&'Data SBP Measures'!$AE3327& \" - \"& 'Data SBP Measures'!$U3327","v":"Number of Cases DisposedCivil Courts - 122"},{"$f":"_xlfn.XLOOKUP(VALUE(W3327),'Data SBP Programs'!O:O,'Data SBP Programs'!S:S)","v":"Civil Courts"}]
[{"$f":"'Data SBP Measures'!$AI164&\" - \"&'Data SBP Measures'!$U164","v":"Social Service Agency Contracts: Support Svc Comm Living - 158"},{"$f":"'Data SBP Measures'!$AF164","v":"Percent of clients who report that the service helped them live independently at home"},{"$f":"'Data SBP Measures'!$T164","v":"1200"},{"$f":"'Data SBP Measures'!$U164&B3328","v":"158Percent of clients who report that the service helped them live independently at home"},{"$f":"'Data SBP Measures'!$Y164","v":"PERCENT"},null,null,null,null,null,"Social Service Agency Contracts: Support Svc Comm Living - 158","Percent of clients who report that the service helped them live independently at home",null,null,null,null,null,null,null,"722","122","Y","42","Civil Courts","EACH","INPUT","ADOPTEDBUD",null,null,null,"Civil Courts","Number of Cases Disposed",null,{"$f":"'Data SBP Measures'!$AF3328&'Data SBP Measures'!$AE3328& \" - \"& 'Data SBP Measures'!$U3328","v":"Number of Cases DisposedCivil Courts - 122"},{"$f":"_xlfn.XLOOKUP(VALUE(W3328),'Data SBP Programs'!O:O,'Data SBP Programs'!S:S)","v":"Civil Courts"}]
[{"$f":"'Data SBP Measures'!$AI167&\" - \"&'Data SBP Measures'!$U167","v":"Social Service Agency Contracts: Workforce Development - 158"},{"$f":"'Data SBP Measures'!$AF167","v":"Percent of individuals earning a wage of at least $12/hr"},{"$f":"'Data SBP Measures'!$T167","v":"1203"},{"$f":"'Data SBP Measures'!$U167&B3331","v":"158Percent of individuals earning a wage of at least $12/hr"},{"$f":"'Data SBP Measures'!$Y167","v":"PERCENT"},null,null,null,null,null,"Social Service Agency Contracts: Workforce Development - 158","Percent of individuals earning a wage of at least $12/hr",null,null,null,null,null,null,null,"722","122","Y","42","Civil Courts","EACH","INPUT","ADOPTEDBUD",null,null,null,"Civil Courts","Number of Cases Disposed",null,{"$f":"'Data SBP Measures'!$AF3331&'Data SBP Measures'!$AE3331& \" - \"& 'Data SBP Measures'!$U3331","v":"Number of Cases DisposedCivil Courts - 122"},{"$f":"_xlfn.XLOOKUP(VALUE(W3331),'Data SBP Programs'!O:O,'Data SBP Programs'!S:S)","v":"Civil Courts"}]
[{"$f":"'Data SBP Measures'!$AI168&\" - \"&'Data SBP Measures'!$U168","v":"Social Service Agency Contracts: Workforce Development - 158"},{"$f":"'Data SBP Measures'!$AF168","v":"Percent of individuals maintaining employment for 6 months"},{"$f":"'Data SBP Measures'!$T168","v":"1204"},{"$f":"'Data SBP Measures'!$U168&B3332","v":"158Percent of individuals maintaining employment for 6 months"},{"$f":"'Data SBP Measures'!$Y168","v":"PERCENT"},null,null,null,null,null,"Social Service Agency Contracts: Workforce Development - 158","Percent of individuals maintaining employment for 6 months",null,null,null,null,null,null,null,"722","122","Y","42","Civil Courts","EACH","INPUT","ADOPTEDBUD",null,null,null,"Civil Courts","Number of Cases Disposed",null,{"$f":"'Data SBP Measures'!$AF3332&'Data SBP Measures'!$AE3332& \" - \"& 'Data SBP Measures'!$U3332","v":"Number of Cases DisposedCivil Courts - 122"},{"$f":"_xlfn.XLOOKUP(VALUE(W3332),'Data SBP Programs'!O:O,'Data SBP Programs'!S:S)","v":"Civil Courts"}]
[{"$f":"'Data SBP Measures'!$AI3442&\" - \"&'Data SBP Measures'!$U3442","v":"Special Victims Unit - 123"},{"$f":"'Data SBP Measures'!$AF3442","v":"# of child abuse case indictments"},{"$f":"'Data SBP Measures'!$T3442","v":"762"},{"$f":"'Data SBP Measures'!$U3442&B3336","v":"123# of child abuse case indictments"},{"$f":"'Data SBP Measures'!$Y3442","v":"EACH"},null,null,null,null,null,"Special Victims Unit - 123","# of child abuse case indictments",null,null,null,null,null,null,null,"722","122","Y","42","Civil Courts","EACH","INPUT","ADOPTEDBUD",null,null,null,"Civil Courts","Number of Cases Disposed",null,{"$f":"'Data SBP Measures'!$AF3336&'Data SBP Measures'!$AE3336& \" - \"& 'Data SBP Measures'!$U3336","v":"Number of Cases DisposedCivil Courts - 122"},{"$f":"_xlfn.XLOOKUP(VALUE(W3336),'Data SBP Programs'!O:O,'Data SBP Programs'!S:S)","v":"Civil Courts"}]
[{"$f":"'Data SBP Measures'!$AI3444&\" - \"&'Data SBP Measures'!$U3444","v":"Special Victims Unit - 123"},{"$f":"'Data SBP Measures'!$AF3444","v":"# of child abuse cases completed"},{"$f":"'Data SBP Measures'!$T3444","v":"763"},{"$f":"'Data SBP Measures'!$U3444&B3337","v":"123# of child abuse cases completed"},{"$f":"'Data SBP Measures'!$Y3444","v":"EACH"},null,null,null,null,null,"Special Victims Unit - 123","# of child abuse cases completed",null,null,null,null,null,null,null,"722","122","Y","42","Civil Courts","EACH","INPUT","ADOPTEDBUD",null,null,null,"Civil Courts","Number of Cases Disposed",null,{"$f":"'Data SBP Measures'!$AF3337&'Data SBP Measures'!$AE3337& \" - \"& 'Data SBP Measures'!$U3337","v":"Number of Cases DisposedCivil Courts - 122"},{"$f":"_xlfn.XLOOKUP(VALUE(W3337),'Data SBP Programs'!O:O,'Data SBP Programs'!S:S)","v":"Civil Courts"}]
[{"$f":"'Data SBP Measures'!$AI3447&\" - \"&'Data SBP Measures'!$U3447","v":"Special Victims Unit - 123"},{"$f":"'Data SBP Measures'!$AF3447","v":"# of family violence cases completed"},{"$f":"'Data SBP Measures'!$T3447","v":"765"},{"$f":"'Data SBP Measures'!$U3447&B3340","v":"123# of family violence cases completed"},{"$f":"'Data SBP Measures'!$Y3447","v":"EACH"},null,null,null,null,null,"Special Victims Unit - 123","# of family violence cases completed",null,null,null,null,null,null,null,"722","122","Y","42","Civil Courts","EACH","INPUT","ADOPTEDBUD",null,null,null,"Civil Courts","Number of Cases Disposed",null,{"$f":"'Data SBP Measures'!$AF3340&'Data SBP Measures'!$AE3340& \" - \"& 'Data SBP Measures'!$U3340","v":"Number of Cases DisposedCivil Courts - 122"},{"$f":"_xlfn.XLOOKUP(VALUE(W3340),'Data SBP Programs'!O:O,'Data SBP Programs'!S:S)","v":"Civil Courts"}]
[{"$f":"'Data SBP Measures'!$AI469&\" - \"&'Data SBP Measures'!$U469","v":"Special Weapons & Tactical Unit (SWAT) - 137"},{"$f":"'Data SBP Measures'!$AF469","v":"Call outs / unplanned Incidents"},{"$f":"'Data SBP Measures'!$T469","v":"1504"},{"$f":"'Data SBP Measures'!$U469&B3342","v":"137Call outs / unplanned Incidents"},{"$f":"'Data SBP Measures'!$Y469","v":"EACH"},null,null,null,null,null,"Special Weapons & Tactical Unit (SWAT) - 137","Call outs / unplanned Incidents",null,null,null,null,null,null,null,"722","122","Y","42","Civil Courts","EACH","INPUT","ADOPTEDBUD",null,null,null,"Civil Courts","Number of Cases Disposed",null,{"$f":"'Data SBP Measures'!$AF3342&'Data SBP Measures'!$AE3342& \" - \"& 'Data SBP Measures'!$U3342","v":"Number of Cases DisposedCivil Courts - 122"},{"$f":"_xlfn.XLOOKUP(VALUE(W3342),'Data SBP Programs'!O:O,'Data SBP Programs'!S:S)","v":"Civil Courts"}]
[{"$f":"'Data SBP Measures'!$AI2521&\" - \"&'Data SBP Measures'!$U2521","v":"Special Weapons & Tactical Unit (SWAT) - 137"},{"$f":"'Data SBP Measures'!$AF2521","v":"No of Mids warrants assigned to Patrol/SRT"},{"$f":"'Data SBP Measures'!$T2521","v":"3188"},{"$f":"'Data SBP Measures'!$U2521&B3346","v":"137No of Mids warrants assigned to Patrol/SRT"},{"$f":"'Data SBP Measures'!$Y2521","v":"EACH"},null,null,null,null,null,"Special Weapons & Tactical Unit (SWAT) - 137","No of Mids warrants assigned to Patrol/SRT",null,null,null,null,null,null,null,"722","122","Y","42","Civil Courts","EACH","INPUT","ADOPTEDBUD",null,null,null,"Civil Courts","Number of Cases Disposed",null,{"$f":"'Data SBP Measures'!$AF3346&'Data SBP Measures'!$AE3346& \" - \"& 'Data SBP Measures'!$U3346","v":"Number of Cases DisposedCivil Courts - 122"},{"$f":"_xlfn.XLOOKUP(VALUE(W3346),'Data SBP Programs'!O:O,'Data SBP Programs'!S:S)","v":"Civil Courts"}]
[{"$f":"'Data SBP Measures'!$AI2519&\" - \"&'Data SBP Measures'!$U2519","v":"Special Weapons & Tactical Unit (SWAT) - 137"},{"$f":"'Data SBP Measures'!$AF2519","v":"No of Mids warrants assigned to SWAT"},{"$f":"'Data SBP Measures'!$T2519","v":"3186"},{"$f":"'Data SBP Measures'!$U2519&B3347","v":"137No of Mids warrants assigned to SWAT"},{"$f":"'Data SBP Measures'!$Y2519","v":"EACH"},null,null,null,null,null,"Special Weapons & Tactical Unit (SWAT) - 137","No of Mids warrants assigned to SWAT",null,null,null,null,null,null,null,"722","122","Y","42","Civil Courts","EACH","INPUT","ADOPTEDBUD",null,null,null,"Civil Courts","Number of Cases Disposed",null,{"$f":"'Data SBP Measures'!$AF3347&'Data SBP Measures'!$AE3347& \" - \"& 'Data SBP Measures'!$U3347","v":"Number of Cases DisposedCivil Courts - 122"},{"$f":"_xlfn.XLOOKUP(VALUE(W3347),'Data SBP Programs'!O:O,'Data SBP Programs'!S:S)","v":"Civil Courts"}]
[{"$f":"'Data SBP Measures'!$AI2524&\" - \"&'Data SBP Measures'!$U2524","v":"Special Weapons & Tactical Unit (SWAT) - 137"},{"$f":"'Data SBP Measures'!$AF2524","v":"No. of Misd warrants served (SWAT)"},{"$f":"'Data SBP Measures'!$T2524","v":"3191"},{"$f":"'Data SBP Measures'!$U2524&B3350","v":"137No. of Misd warrants served (SWAT)"},{"$f":"'Data SBP Measures'!$Y2524","v":"EACH"},null,null,null,null,null,"Special Weapons & Tactical Unit (SWAT) - 137","No. of Misd warrants served (SWAT)",null,null,null,null,null,null,null,"722","122","Y","42","Civil Courts","EACH","INPUT","ADOPTEDBUD",null,null,null,"Civil Courts","Number of Cases Disposed",null,{"$f":"'Data SBP Measures'!$AF3350&'Data SBP Measures'!$AE3350& \" - \"& 'Data SBP Measures'!$U3350","v":"Number of Cases DisposedCivil Courts - 122"},{"$f":"_xlfn.XLOOKUP(VALUE(W3350),'Data SBP Programs'!O:O,'Data SBP Programs'!S:S)","v":"Civil Courts"}]
[{"$f":"'Data SBP Measures'!$AI2522&\" - \"&'Data SBP Measures'!$U2522","v":"Special Weapons & Tactical Unit (SWAT) - 137"},{"$f":"'Data SBP Measures'!$AF2522","v":"No. of persons arrested (bodies)"},{"$f":"'Data SBP Measures'!$T2522","v":"3189"},{"$f":"'Data SBP Measures'!$U2522&B3351","v":"137No. of persons arrested (bodies)"},{"$f":"'Data SBP Measures'!$Y2522","v":"EACH"},null,null,null,null,null,"Special Weapons & Tactical Unit (SWAT) - 137","No. of persons arrested (bodies)",null,null,null,null,null,null,null,"722","122","Y","42","Civil Courts","EACH","INPUT","ADOPTEDBUD",null,null,null,"Civil Courts","Number of Cases Disposed",null,{"$f":"'Data SBP Measures'!$AF3351&'Data SBP Measures'!$AE3351& \" - \"& 'Data SBP Measures'!$U3351","v":"Number of Cases DisposedCivil Courts - 122"},{"$f":"_xlfn.XLOOKUP(VALUE(W3351),'Data SBP Programs'!O:O,'Data SBP Programs'!S:S)","v":"Civil Courts"}]
[{"$f":"'Data SBP Measures'!$AI1816&\" - \"&'Data SBP Measures'!$U1816","v":"Specialty Courts - 142"},{"$f":"'Data SBP Measures'!$AF1816","v":"Drug Ct - Number of participants served in the program"},{"$f":"'Data SBP Measures'!$T1816","v":"2462"},{"$f":"'Data SBP Measures'!$U1816&B3355","v":"142Drug Ct - Number of participants served in the program"},{"$f":"'Data SBP Measures'!$Y1816","v":"EACH"},null,null,null,null,null,"Specialty Courts - 142","Drug Ct - Number of participants served in the program",null,null,null,null,null,null,null,"723","122","Y","42","Civil Courts","PERCENT","EFFICIENCY","ADOPTEDBUD",null,null,null,"Civil Courts","Clearance Rate (Disposition/Filings)",null,{"$f":"'Data SBP Measures'!$AF3355&'Data SBP Measures'!$AE3355& \" - \"& 'Data SBP Measures'!$U3355","v":"Clearance Rate (Disposition/Filings)Civil Courts - 122"},{"$f":"_xlfn.XLOOKUP(VALUE(W3355),'Data SBP Programs'!O:O,'Data SBP Programs'!S:S)","v":"Civil Courts"}]
[{"$f":"'Data SBP Measures'!$AI1817&\" - \"&'Data SBP Measures'!$U1817","v":"Specialty Courts - 142"},{"$f":"'Data SBP Measures'!$AF1817","v":"Drug Ct - Percentage that successfully complete the program"},{"$f":"'Data SBP Measures'!$T1817","v":"2463"},{"$f":"'Data SBP Measures'!$U1817&B3356","v":"142Drug Ct - Percentage that successfully complete the program"},{"$f":"'Data SBP Measures'!$Y1817","v":"PERCENT"},null,null,null,null,null,"Specialty Courts - 142","Drug Ct - Percentage that successfully complete the program",null,null,null,null,null,null,null,"723","122","Y","42","Civil Courts","PERCENT","EFFICIENCY","ADOPTEDBUD",null,null,null,"Civil Courts","Clearance Rate (Disposition/Filings)",null,{"$f":"'Data SBP Measures'!$AF3356&'Data SBP Measures'!$AE3356& \" - \"& 'Data SBP Measures'!$U3356","v":"Clearance Rate (Disposition/Filings)Civil Courts - 122"},{"$f":"_xlfn.XLOOKUP(VALUE(W3356),'Data SBP Programs'!O:O,'Data SBP Programs'!S:S)","v":"Civil Courts"}]
[{"$f":"'Data SBP Measures'!$AI1820&\" - \"&'Data SBP Measures'!$U1820","v":"Specialty Courts - 142"},{"$f":"'Data SBP Measures'!$AF1820","v":"DWI Ct - Number of participants served in the program"},{"$f":"'Data SBP Measures'!$T1820","v":"2466"},{"$f":"'Data SBP Measures'!$U1820&B3359","v":"142DWI Ct - Number of participants served in the program"},{"$f":"'Data SBP Measures'!$Y1820","v":"EACH"},null,null,null,null,null,"Specialty Courts - 142","DWI Ct - Number of participants served in the program",null,null,null,null,null,null,null,"723","122","Y","42","Civil Courts","PERCENT","EFFICIENCY","ADOPTEDBUD",null,null,null,"Civil Courts","Clearance Rate (Disposition/Filings)",null,{"$f":"'Data SBP Measures'!$AF3359&'Data SBP Measures'!$AE3359& \" - \"& 'Data SBP Measures'!$U3359","v":"Clearance Rate (Disposition/Filings)Civil Courts - 122"},{"$f":"_xlfn.XLOOKUP(VALUE(W3359),'Data SBP Programs'!O:O,'Data SBP Programs'!S:S)","v":"Civil Courts"}]
[{"$f":"'Data SBP Measures'!$AI1951&\" - \"&'Data SBP Measures'!$U1951","v":"STAR Flight - 159"},{"$f":"'Data SBP Measures'!$AF1951","v":"Availability 24/7 Aircraft"},{"$f":"'Data SBP Measures'!$T1951","v":"2560"},{"$f":"'Data SBP Measures'!$U1951&B3361","v":"159Availability 24/7 Aircraft"},{"$f":"'Data SBP Measures'!$Y1951","v":"PERCENT"},null,null,null,null,null,"STAR Flight - 159","Availability 24/7 Aircraft",null,null,null,null,null,null,null,"723","122","Y","42","Civil Courts","PERCENT","EFFICIENCY","ADOPTEDBUD",null,null,null,"Civil Courts","Clearance Rate (Disposition/Filings)",null,{"$f":"'Data SBP Measures'!$AF3361&'Data SBP Measures'!$AE3361& \" - \"& 'Data SBP Measures'!$U3361","v":"Clearance Rate (Disposition/Filings)Civil Courts - 122"},{"$f":"_xlfn.XLOOKUP(VALUE(W3361),'Data SBP Programs'!O:O,'Data SBP Programs'!S:S)","v":"Civil Courts"}]
[{"$f":"'Data SBP Measures'!$AI1955&\" - \"&'Data SBP Measures'!$U1955","v":"STAR Flight - 159"},{"$f":"'Data SBP Measures'!$AF1955","v":"Availability 24/7 Aircraft"},{"$f":"'Data SBP Measures'!$T1955","v":"2560"},{"$f":"'Data SBP Measures'!$U1955&B3365","v":"159Availability 24/7 Aircraft"},{"$f":"'Data SBP Measures'!$Y1955","v":"PERCENT"},null,null,null,null,null,"STAR Flight - 159","Availability 24/7 Aircraft",null,null,null,null,null,null,null,"723","122","Y","42","Civil Courts","PERCENT","EFFICIENCY","ADOPTEDBUD",null,null,null,"Civil Courts","Clearance Rate (Disposition/Filings)",null,{"$f":"'Data SBP Measures'!$AF3365&'Data SBP Measures'!$AE3365& \" - \"& 'Data SBP Measures'!$U3365","v":"Clearance Rate (Disposition/Filings)Civil Courts - 122"},{"$f":"_xlfn.XLOOKUP(VALUE(W3365),'Data SBP Programs'!O:O,'Data SBP Programs'!S:S)","v":"Civil Courts"}]
[{"$f":"'Data SBP Measures'!$AI1956&\" - \"&'Data SBP Measures'!$U1956","v":"STAR Flight - 159"},{"$f":"'Data SBP Measures'!$AF1956","v":"Availability 24/7 Aircraft"},{"$f":"'Data SBP Measures'!$T1956","v":"2560"},{"$f":"'Data SBP Measures'!$U1956&B3366","v":"159Availability 24/7 Aircraft"},{"$f":"'Data SBP Measures'!$Y1956","v":"PERCENT"},null,null,null,null,null,"STAR Flight - 159","Availability 24/7 Aircraft",null,null,null,null,null,null,null,"723","122","Y","42","Civil Courts","PERCENT","EFFICIENCY","ADOPTEDBUD",null,null,null,"Civil Courts","Clearance Rate (Disposition/Filings)",null,{"$f":"'Data SBP Measures'!$AF3366&'Data SBP Measures'!$AE3366& \" - \"& 'Data SBP Measures'!$U3366","v":"Clearance Rate (Disposition/Filings)Civil Courts - 122"},{"$f":"_xlfn.XLOOKUP(VALUE(W3366),'Data SBP Programs'!O:O,'Data SBP Programs'!S:S)","v":"Civil Courts"}]
[{"$f":"'Data SBP Measures'!$AI1966&\" - \"&'Data SBP Measures'!$U1966","v":"STAR Flight - 159"},{"$f":"'Data SBP Measures'!$AF1966","v":"Availability 3rd Aircraft- Not staffed or inservice"},{"$f":"'Data SBP Measures'!$T1966","v":"2562"},{"$f":"'Data SBP Measures'!$U1966&B3369","v":"159Availability 3rd Aircraft- Not staffed or inservice"},{"$f":"'Data SBP Measures'!$Y1966","v":"PERCENT"},null,null,null,null,null,"STAR Flight - 159","Availability 3rd Aircraft- Not staffed or inservice",null,null,null,null,null,null,null,"723","122","Y","42","Civil Courts","PERCENT","EFFICIENCY","ADOPTEDBUD",null,null,null,"Civil Courts","Clearance Rate (Disposition/Filings)",null,{"$f":"'Data SBP Measures'!$AF3369&'Data SBP Measures'!$AE3369& \" - \"& 'Data SBP Measures'!$U3369","v":"Clearance Rate (Disposition/Filings)Civil Courts - 122"},{"$f":"_xlfn.XLOOKUP(VALUE(W3369),'Data SBP Programs'!O:O,'Data SBP Programs'!S:S)","v":"Civil Courts"}]
[{"$f":"'Data SBP Measures'!$AI1967&\" - \"&'Data SBP Measures'!$U1967","v":"STAR Flight - 159"},{"$f":"'Data SBP Measures'!$AF1967","v":"Availability 3rd Aircraft- Not staffed or inservice"},{"$f":"'Data SBP Measures'!$T1967","v":"2562"},{"$f":"'Data SBP Measures'!$U1967&B3370","v":"159Availability 3rd Aircraft- Not staffed or inservice"},{"$f":"'Data SBP Measures'!$Y1967","v":"PERCENT"},null,null,null,null,null,"STAR Flight - 159","Availability 3rd Aircraft- Not staffed or inservice",null,null,null,null,null,null,null,"723","122","Y","42","Civil Courts","PERCENT","EFFICIENCY","ADOPTEDBUD",null,null,null,"Civil Courts","Clearance Rate (Disposition/Filings)",null,{"$f":"'Data SBP Measures'!$AF3370&'Data SBP Measures'!$AE3370& \" - \"& 'Data SBP Measures'!$U3370","v":"Clearance Rate (Disposition/Filings)Civil Courts - 122"},{"$f":"_xlfn.XLOOKUP(VALUE(W3370),'Data SBP Programs'!O:O,'Data SBP Programs'!S:S)","v":"Civil Courts"}]
[{"$f":"'Data SBP Measures'!$AI1971&\" - \"&'Data SBP Measures'!$U1971","v":"STAR Flight - 159"},{"$f":"'Data SBP Measures'!$AF1971","v":"Availability 3rd Aircraft- Not staffed or inservice"},{"$f":"'Data SBP Measures'!$T1971","v":"2562"},{"$f":"'Data SBP Measures'!$U1971&B3374","v":"159Availability 3rd Aircraft- Not staffed or inservice"},{"$f":"'Data SBP Measures'!$Y1971","v":"PERCENT"},null,null,null,null,null,"STAR Flight - 159","Availability 3rd Aircraft- Not staffed or inservice",null,null,null,null,null,null,null,"723","122","Y","42","Civil Courts","PERCENT","EFFICIENCY","ADOPTEDBUD",null,null,null,"Civil Courts","Clearance Rate (Disposition/Filings)",null,{"$f":"'Data SBP Measures'!$AF3374&'Data SBP Measures'!$AE3374& \" - \"& 'Data SBP Measures'!$U3374","v":"Clearance Rate (Disposition/Filings)Civil Courts - 122"},{"$f":"_xlfn.XLOOKUP(VALUE(W3374),'Data SBP Programs'!O:O,'Data SBP Programs'!S:S)","v":"Civil Courts"}]
[{"$f":"'Data SBP Measures'!$AI1959&\" - \"&'Data SBP Measures'!$U1959","v":"STAR Flight - 159"},{"$f":"'Data SBP Measures'!$AF1959","v":"Availability12/7 Aircraft"},{"$f":"'Data SBP Measures'!$T1959","v":"2561"},{"$f":"'Data SBP Measures'!$U1959&B3376","v":"159Availability12/7 Aircraft"},{"$f":"'Data SBP Measures'!$Y1959","v":"PERCENT"},null,null,null,null,null,"STAR Flight - 159","Availability12/7 Aircraft",null,null,null,null,null,null,null,"723","122","Y","42","Civil Courts","PERCENT","EFFICIENCY","ADOPTEDBUD",null,null,null,"Civil Courts","Clearance Rate (Disposition/Filings)",null,{"$f":"'Data SBP Measures'!$AF3376&'Data SBP Measures'!$AE3376& \" - \"& 'Data SBP Measures'!$U3376","v":"Clearance Rate (Disposition/Filings)Civil Courts - 122"},{"$f":"_xlfn.XLOOKUP(VALUE(W3376),'Data SBP Programs'!O:O,'Data SBP Programs'!S:S)","v":"Civil Courts"}]
[{"$f":"'Data SBP Measures'!$AI1961&\" - \"&'Data SBP Measures'!$U1961","v":"STAR Flight - 159"},{"$f":"'Data SBP Measures'!$AF1961","v":"Availability12/7 Aircraft"},{"$f":"'Data SBP Measures'!$T1961","v":"2561"},{"$f":"'Data SBP Measures'!$U1961&B3378","v":"159Availability12/7 Aircraft"},{"$f":"'Data SBP Measures'!$Y1961","v":"PERCENT"},null,null,null,null,null,"STAR Flight - 159","Availability12/7 Aircraft",null,null,null,null,null,null,null,"723","122","Y","42","Civil Courts","PERCENT","EFFICIENCY","ADOPTEDBUD",null,null,null,"Civil Courts","Clearance Rate (Disposition/Filings)",null,{"$f":"'Data SBP Measures'!$AF3378&'Data SBP Measures'!$AE3378& \" - \"& 'Data SBP Measures'!$U3378","v":"Clearance Rate (Disposition/Filings)Civil Courts - 122"},{"$f":"_xlfn.XLOOKUP(VALUE(W3378),'Data SBP Programs'!O:O,'Data SBP Programs'!S:S)","v":"Civil Courts"}]
[{"$f":"'Data SBP Measures'!$AI1962&\" - \"&'Data SBP Measures'!$U1962","v":"STAR Flight - 159"},{"$f":"'Data SBP Measures'!$AF1962","v":"Availability12/7 Aircraft"},{"$f":"'Data SBP Measures'!$T1962","v":"2561"},{"$f":"'Data SBP Measures'!$U1962&B3379","v":"159Availability12/7 Aircraft"},{"$f":"'Data SBP Measures'!$Y1962","v":"PERCENT"},null,null,null,null,null,"STAR Flight - 159","Availability12/7 Aircraft",null,null,null,null,null,null,null,"723","122","Y","42","Civil Courts","PERCENT","EFFICIENCY","ADOPTEDBUD",null,null,null,"Civil Courts","Clearance Rate (Disposition/Filings)",null,{"$f":"'Data SBP Measures'!$AF3379&'Data SBP Measures'!$AE3379& \" - \"& 'Data SBP Measures'!$U3379","v":"Clearance Rate (Disposition/Filings)Civil Courts - 122"},{"$f":"_xlfn.XLOOKUP(VALUE(W3379),'Data SBP Programs'!O:O,'Data SBP Programs'!S:S)","v":"Civil Courts"}]
[{"$f":"'Data SBP Measures'!$AI1963&\" - \"&'Data SBP Measures'!$U1963","v":"STAR Flight - 159"},{"$f":"'Data SBP Measures'!$AF1963","v":"Availability12/7 Aircraft"},{"$f":"'Data SBP Measures'!$T1963","v":"2561"},{"$f":"'Data SBP Measures'!$U1963&B3380","v":"159Availability12/7 Aircraft"},{"$f":"'Data SBP Measures'!$Y1963","v":"PERCENT"},null,null,null,null,null,"STAR Flight - 159","Availability12/7 Aircraft",null,null,null,null,null,null,null,"723","122","Y","42","Civil Courts","PERCENT","EFFICIENCY","ADOPTEDBUD",null,null,null,"Civil Courts","Clearance Rate (Disposition/Filings)",null,{"$f":"'Data SBP Measures'!$AF3380&'Data SBP Measures'!$AE3380& \" - \"& 'Data SBP Measures'!$U3380","v":"Clearance Rate (Disposition/Filings)Civil Courts - 122"},{"$f":"_xlfn.XLOOKUP(VALUE(W3380),'Data SBP Programs'!O:O,'Data SBP Programs'!S:S)","v":"Civil Courts"}]
[{"$f":"'Data SBP Measures'!$AI1964&\" - \"&'Data SBP Measures'!$U1964","v":"STAR Flight - 159"},{"$f":"'Data SBP Measures'!$AF1964","v":"Availability12/7 Aircraft"},{"$f":"'Data SBP Measures'!$T1964","v":"2561"},{"$f":"'Data SBP Measures'!$U1964&B3381","v":"159Availability12/7 Aircraft"},{"$f":"'Data SBP Measures'!$Y1964","v":"PERCENT"},null,null,null,null,null,"STAR Flight - 159","Availability12/7 Aircraft",null,null,null,null,null,null,null,"723","122","Y","42","Civil Courts","PERCENT","EFFICIENCY","ADOPTEDBUD",null,null,null,"Civil Courts","Clearance Rate (Disposition/Filings)",null,{"$f":"'Data SBP Measures'!$AF3381&'Data SBP Measures'!$AE3381& \" - \"& 'Data SBP Measures'!$U3381","v":"Clearance Rate (Disposition/Filings)Civil Courts - 122"},{"$f":"_xlfn.XLOOKUP(VALUE(W3381),'Data SBP Programs'!O:O,'Data SBP Programs'!S:S)","v":"Civil Courts"}]
[{"$f":"'Data SBP Measures'!$AI1943&\" - \"&'Data SBP Measures'!$U1943","v":"STAR Flight - 159"},{"$f":"'Data SBP Measures'!$AF1943","v":"HEMS missed due to weather"},{"$f":"'Data SBP Measures'!$T1943","v":"2559"},{"$f":"'Data SBP Measures'!$U1943&B3382","v":"159HEMS missed due to weather"},{"$f":"'Data SBP Measures'!$Y1943","v":"EACH"},null,null,null,null,null,"STAR Flight - 159","HEMS missed due to weather",null,null,null,null,null,null,null,"724","122","Y","42","Civil Courts","PERCENT","OUTCOME","ADOPTEDBUD",null,null,null,"Civil Courts","Percentage of Cases Disposed Over 18 Months Old",null,{"$f":"'Data SBP Measures'!$AF3382&'Data SBP Measures'!$AE3382& \" - \"& 'Data SBP Measures'!$U3382","v":"Percentage of Cases Disposed Over 18 Months OldCivil Courts - 122"},{"$f":"_xlfn.XLOOKUP(VALUE(W3382),'Data SBP Programs'!O:O,'Data SBP Programs'!S:S)","v":"Civil Courts"}]
[{"$f":"'Data SBP Measures'!$AI1944&\" - \"&'Data SBP Measures'!$U1944","v":"STAR Flight - 159"},{"$f":"'Data SBP Measures'!$AF1944","v":"HEMS missed due to weather"},{"$f":"'Data SBP Measures'!$T1944","v":"2559"},{"$f":"'Data SBP Measures'!$U1944&B3383","v":"159HEMS missed due to weather"},{"$f":"'Data SBP Measures'!$Y1944","v":"EACH"},null,null,null,null,null,"STAR Flight - 159","HEMS missed due to weather",null,null,null,null,null,null,null,"724","122","Y","42","Civil Courts","PERCENT","OUTCOME","ADOPTEDBUD",null,null,null,"Civil Courts","Percentage of Cases Disposed Over 18 Months Old",null,{"$f":"'Data SBP Measures'!$AF3383&'Data SBP Measures'!$AE3383& \" - \"& 'Data SBP Measures'!$U3383","v":"Percentage of Cases Disposed Over 18 Months OldCivil Courts - 122"},{"$f":"_xlfn.XLOOKUP(VALUE(W3383),'Data SBP Programs'!O:O,'Data SBP Programs'!S:S)","v":"Civil Courts"}]
[{"$f":"'Data SBP Measures'!$AI1945&\" - \"&'Data SBP Measures'!$U1945","v":"STAR Flight - 159"},{"$f":"'Data SBP Measures'!$AF1945","v":"HEMS missed due to weather"},{"$f":"'Data SBP Measures'!$T1945","v":"2559"},{"$f":"'Data SBP Measures'!$U1945&B3384","v":"159HEMS missed due to weather"},{"$f":"'Data SBP Measures'!$Y1945","v":"EACH"},null,null,null,null,null,"STAR Flight - 159","HEMS missed due to weather",null,null,null,null,null,null,null,"724","122","Y","42","Civil Courts","PERCENT","OUTCOME","ADOPTEDBUD",null,null,null,"Civil Courts","Percentage of Cases Disposed Over 18 Months Old",null,{"$f":"'Data SBP Measures'!$AF3384&'Data SBP Measures'!$AE3384& \" - \"& 'Data SBP Measures'!$U3384","v":"Percentage of Cases Disposed Over 18 Months OldCivil Courts - 122"},{"$f":"_xlfn.XLOOKUP(VALUE(W3384),'Data SBP Programs'!O:O,'Data SBP Programs'!S:S)","v":"Civil Courts"}]
[{"$f":"'Data SBP Measures'!$AI1946&\" - \"&'Data SBP Measures'!$U1946","v":"STAR Flight - 159"},{"$f":"'Data SBP Measures'!$AF1946","v":"HEMS missed due to weather"},{"$f":"'Data SBP Measures'!$T1946","v":"2559"},{"$f":"'Data SBP Measures'!$U1946&B3385","v":"159HEMS missed due to weather"},{"$f":"'Data SBP Measures'!$Y1946","v":"EACH"},null,null,null,null,null,"STAR Flight - 159","HEMS missed due to weather",null,null,null,null,null,null,null,"724","122","Y","42","Civil Courts","PERCENT","OUTCOME","ADOPTEDBUD",null,null,null,"Civil Courts","Percentage of Cases Disposed Over 18 Months Old",null,{"$f":"'Data SBP Measures'!$AF3385&'Data SBP Measures'!$AE3385& \" - \"& 'Data SBP Measures'!$U3385","v":"Percentage of Cases Disposed Over 18 Months OldCivil Courts - 122"},{"$f":"_xlfn.XLOOKUP(VALUE(W3385),'Data SBP Programs'!O:O,'Data SBP Programs'!S:S)","v":"Civil Courts"}]
[{"$f":"'Data SBP Measures'!$AI1947&\" - \"&'Data SBP Measures'!$U1947","v":"STAR Flight - 159"},{"$f":"'Data SBP Measures'!$AF1947","v":"HEMS missed due to weather"},{"$f":"'Data SBP Measures'!$T1947","v":"2559"},{"$f":"'Data SBP Measures'!$U1947&B3386","v":"159HEMS missed due to weather"},{"$f":"'Data SBP Measures'!$Y1947","v":"EACH"},null,null,null,null,null,"STAR Flight - 159","HEMS missed due to weather",null,null,null,null,null,null,null,"724","122","Y","42","Civil Courts","PERCENT","OUTCOME","ADOPTEDBUD",null,null,null,"Civil Courts","Percentage of Cases Disposed Over 18 Months Old",null,{"$f":"'Data SBP Measures'!$AF3386&'Data SBP Measures'!$AE3386& \" - \"& 'Data SBP Measures'!$U3386","v":"Percentage of Cases Disposed Over 18 Months OldCivil Courts - 122"},{"$f":"_xlfn.XLOOKUP(VALUE(W3386),'Data SBP Programs'!O:O,'Data SBP Programs'!S:S)","v":"Civil Courts"}]
[{"$f":"'Data SBP Measures'!$AI1948&\" - \"&'Data SBP Measures'!$U1948","v":"STAR Flight - 159"},{"$f":"'Data SBP Measures'!$AF1948","v":"HEMS missed due to weather"},{"$f":"'Data SBP Measures'!$T1948","v":"2559"},{"$f":"'Data SBP Measures'!$U1948&B3387","v":"159HEMS missed due to weather"},{"$f":"'Data SBP Measures'!$Y1948","v":"EACH"},null,null,null,null,null,"STAR Flight - 159","HEMS missed due to weather",null,null,null,null,null,null,null,"724","122","Y","42","Civil Courts","PERCENT","OUTCOME","ADOPTEDBUD",null,null,null,"Civil Courts","Percentage of Cases Disposed Over 18 Months Old",null,{"$f":"'Data SBP Measures'!$AF3387&'Data SBP Measures'!$AE3387& \" - \"& 'Data SBP Measures'!$U3387","v":"Percentage of Cases Disposed Over 18 Months OldCivil Courts - 122"},{"$f":"_xlfn.XLOOKUP(VALUE(W3387),'Data SBP Programs'!O:O,'Data SBP Programs'!S:S)","v":"Civil Courts"}]
[{"$f":"'Data SBP Measures'!$AI1949&\" - \"&'Data SBP Measures'!$U1949","v":"STAR Flight - 159"},{"$f":"'Data SBP Measures'!$AF1949","v":"HEMS missed due to weather"},{"$f":"'Data SBP Measures'!$T1949","v":"2559"},{"$f":"'Data SBP Measures'!$U1949&B3388","v":"159HEMS missed due to weather"},{"$f":"'Data SBP Measures'!$Y1949","v":"EACH"},null,null,null,null,null,"STAR Flight - 159","HEMS missed due to weather",null,null,null,null,null,null,null,"724","122","Y","42","Civil Courts","PERCENT","OUTCOME","ADOPTEDBUD",null,null,null,"Civil Courts","Percentage of Cases Disposed Over 18 Months Old",null,{"$f":"'Data SBP Measures'!$AF3388&'Data SBP Measures'!$AE3388& \" - \"& 'Data SBP Measures'!$U3388","v":"Percentage of Cases Disposed Over 18 Months OldCivil Courts - 122"},{"$f":"_xlfn.XLOOKUP(VALUE(W3388),'Data SBP Programs'!O:O,'Data SBP Programs'!S:S)","v":"Civil Courts"}]
[{"$f":"'Data SBP Measures'!$AI1936&\" - \"&'Data SBP Measures'!$U1936","v":"STAR Flight - 159"},{"$f":"'Data SBP Measures'!$AF1936","v":"Missions missed due to busy. Does not include missed auto launches within Travis County"},{"$f":"'Data SBP Measures'!$T1936","v":"2558"},{"$f":"'Data SBP Measures'!$U1936&B3389","v":"159Missions missed due to busy. Does not include missed auto launches within Travis County"},{"$f":"'Data SBP Measures'!$Y1936","v":"EACH"},null,null,null,null,null,"STAR Flight - 159","Missions missed due to busy. Does not include missed auto launches within Travis County",null,null,null,null,null,null,null,"724","122","Y","42","Civil Courts","PERCENT","OUTCOME","ADOPTEDBUD",null,null,null,"Civil Courts","Percentage of Cases Disposed Over 18 Months Old",null,{"$f":"'Data SBP Measures'!$AF3389&'Data SBP Measures'!$AE3389& \" - \"& 'Data SBP Measures'!$U3389","v":"Percentage of Cases Disposed Over 18 Months OldCivil Courts - 122"},{"$f":"_xlfn.XLOOKUP(VALUE(W3389),'Data SBP Programs'!O:O,'Data SBP Programs'!S:S)","v":"Civil Courts"}]
[{"$f":"'Data SBP Measures'!$AI1937&\" - \"&'Data SBP Measures'!$U1937","v":"STAR Flight - 159"},{"$f":"'Data SBP Measures'!$AF1937","v":"Missions missed due to busy. Does not include missed auto launches within Travis County"},{"$f":"'Data SBP Measures'!$T1937","v":"2558"},{"$f":"'Data SBP Measures'!$U1937&B3390","v":"159Missions missed due to busy. Does not include missed auto launches within Travis County"},{"$f":"'Data SBP Measures'!$Y1937","v":"EACH"},null,null,null,null,null,"STAR Flight - 159","Missions missed due to busy. Does not include missed auto launches within Travis County",null,null,null,null,null,null,null,"724","122","Y","42","Civil Courts","PERCENT","OUTCOME","ADOPTEDBUD",null,null,null,"Civil Courts","Percentage of Cases Disposed Over 18 Months Old",null,{"$f":"'Data SBP Measures'!$AF3390&'Data SBP Measures'!$AE3390& \" - \"& 'Data SBP Measures'!$U3390","v":"Percentage of Cases Disposed Over 18 Months OldCivil Courts - 122"},{"$f":"_xlfn.XLOOKUP(VALUE(W3390),'Data SBP Programs'!O:O,'Data SBP Programs'!S:S)","v":"Civil Courts"}]
[{"$f":"'Data SBP Measures'!$AI1938&\" - \"&'Data SBP Measures'!$U1938","v":"STAR Flight - 159"},{"$f":"'Data SBP Measures'!$AF1938","v":"Missions missed due to busy. Does not include missed auto launches within Travis County"},{"$f":"'Data SBP Measures'!$T1938","v":"2558"},{"$f":"'Data SBP Measures'!$U1938&B3391","v":"159Missions missed due to busy. Does not include missed auto launches within Travis County"},{"$f":"'Data SBP Measures'!$Y1938","v":"EACH"},null,null,null,null,null,"STAR Flight - 159","Missions missed due to busy. Does not include missed auto launches within Travis County",null,null,null,null,null,null,null,"724","122","Y","42","Civil Courts","PERCENT","OUTCOME","ADOPTEDBUD",null,null,null,"Civil Courts","Percentage of Cases Disposed Over 18 Months Old",null,{"$f":"'Data SBP Measures'!$AF3391&'Data SBP Measures'!$AE3391& \" - \"& 'Data SBP Measures'!$U3391","v":"Percentage of Cases Disposed Over 18 Months OldCivil Courts - 122"},{"$f":"_xlfn.XLOOKUP(VALUE(W3391),'Data SBP Programs'!O:O,'Data SBP Programs'!S:S)","v":"Civil Courts"}]
[{"$f":"'Data SBP Measures'!$AI1939&\" - \"&'Data SBP Measures'!$U1939","v":"STAR Flight - 159"},{"$f":"'Data SBP Measures'!$AF1939","v":"Missions missed due to busy. Does not include missed auto launches within Travis County"},{"$f":"'Data SBP Measures'!$T1939","v":"2558"},{"$f":"'Data SBP Measures'!$U1939&B3392","v":"159Missions missed due to busy. Does not include missed auto launches within Travis County"},{"$f":"'Data SBP Measures'!$Y1939","v":"EACH"},null,null,null,null,null,"STAR Flight - 159","Missions missed due to busy. Does not include missed auto launches within Travis County",null,null,null,null,null,null,null,"724","122","Y","42","Civil Courts","PERCENT","OUTCOME","ADOPTEDBUD",null,null,null,"Civil Courts","Percentage of Cases Disposed Over 18 Months Old",null,{"$f":"'Data SBP Measures'!$AF3392&'Data SBP Measures'!$AE3392& \" - \"& 'Data SBP Measures'!$U3392","v":"Percentage of Cases Disposed Over 18 Months OldCivil Courts - 122"},{"$f":"_xlfn.XLOOKUP(VALUE(W3392),'Data SBP Programs'!O:O,'Data SBP Programs'!S:S)","v":"Civil Courts"}]
[{"$f":"'Data SBP Measures'!$AI1940&\" - \"&'Data SBP Measures'!$U1940","v":"STAR Flight - 159"},{"$f":"'Data SBP Measures'!$AF1940","v":"Missions missed due to busy. Does not include missed auto launches within Travis County"},{"$f":"'Data SBP Measures'!$T1940","v":"2558"},{"$f":"'Data SBP Measures'!$U1940&B3393","v":"159Missions missed due to busy. Does not include missed auto launches within Travis County"},{"$f":"'Data SBP Measures'!$Y1940","v":"EACH"},null,null,null,null,null,"STAR Flight - 159","Missions missed due to busy. Does not include missed auto launches within Travis County",null,null,null,null,null,null,null,"724","122","Y","42","Civil Courts","PERCENT","OUTCOME","ADOPTEDBUD",null,null,null,"Civil Courts","Percentage of Cases Disposed Over 18 Months Old",null,{"$f":"'Data SBP Measures'!$AF3393&'Data SBP Measures'!$AE3393& \" - \"& 'Data SBP Measures'!$U3393","v":"Percentage of Cases Disposed Over 18 Months OldCivil Courts - 122"},{"$f":"_xlfn.XLOOKUP(VALUE(W3393),'Data SBP Programs'!O:O,'Data SBP Programs'!S:S)","v":"Civil Courts"}]
[{"$f":"'Data SBP Measures'!$AI1941&\" - \"&'Data SBP Measures'!$U1941","v":"STAR Flight - 159"},{"$f":"'Data SBP Measures'!$AF1941","v":"Missions missed due to busy. Does not include missed auto launches within Travis County"},{"$f":"'Data SBP Measures'!$T1941","v":"2558"},{"$f":"'Data SBP Measures'!$U1941&B3394","v":"159Missions missed due to busy. Does not include missed auto launches within Travis County"},{"$f":"'Data SBP Measures'!$Y1941","v":"EACH"},null,null,null,null,null,"STAR Flight - 159","Missions missed due to busy. Does not include missed auto launches within Travis County",null,null,null,null,null,null,null,"724","122","Y","42","Civil Courts","PERCENT","OUTCOME","ADOPTEDBUD",null,null,null,"Civil Courts","Percentage of Cases Disposed Over 18 Months Old",null,{"$f":"'Data SBP Measures'!$AF3394&'Data SBP Measures'!$AE3394& \" - \"& 'Data SBP Measures'!$U3394","v":"Percentage of Cases Disposed Over 18 Months OldCivil Courts - 122"},{"$f":"_xlfn.XLOOKUP(VALUE(W3394),'Data SBP Programs'!O:O,'Data SBP Programs'!S:S)","v":"Civil Courts"}]
[{"$f":"'Data SBP Measures'!$AI1942&\" - \"&'Data SBP Measures'!$U1942","v":"STAR Flight - 159"},{"$f":"'Data SBP Measures'!$AF1942","v":"Missions missed due to busy. Does not include missed auto launches within Travis County"},{"$f":"'Data SBP Measures'!$T1942","v":"2558"},{"$f":"'Data SBP Measures'!$U1942&B3395","v":"159Missions missed due to busy. Does not include missed auto launches within Travis County"},{"$f":"'Data SBP Measures'!$Y1942","v":"EACH"},null,null,null,null,null,"STAR Flight - 159","Missions missed due to busy. Does not include missed auto launches within Travis County",null,null,null,null,null,null,null,"724","122","Y","42","Civil Courts","PERCENT","OUTCOME","ADOPTEDBUD",null,null,null,"Civil Courts","Percentage of Cases Disposed Over 18 Months Old",null,{"$f":"'Data SBP Measures'!$AF3395&'Data SBP Measures'!$AE3395& \" - \"& 'Data SBP Measures'!$U3395","v":"Percentage of Cases Disposed Over 18 Months OldCivil Courts - 122"},{"$f":"_xlfn.XLOOKUP(VALUE(W3395),'Data SBP Programs'!O:O,'Data SBP Programs'!S:S)","v":"Civil Courts"}]
[{"$f":"'Data SBP Measures'!$AI1929&\" - \"&'Data SBP Measures'!$U1929","v":"STAR Flight - 159"},{"$f":"'Data SBP Measures'!$AF1929","v":"Missions missed due to mechanical failure"},{"$f":"'Data SBP Measures'!$T1929","v":"2557"},{"$f":"'Data SBP Measures'!$U1929&B3396","v":"159Missions missed due to mechanical failure"},{"$f":"'Data SBP Measures'!$Y1929","v":"EACH"},null,null,null,null,null,"STAR Flight - 159","Missions missed due to mechanical failure",null,null,null,null,null,null,null,"724","122","Y","42","Civil Courts","PERCENT","OUTCOME","ADOPTEDBUD",null,null,null,"Civil Courts","Percentage of Cases Disposed Over 18 Months Old",null,{"$f":"'Data SBP Measures'!$AF3396&'Data SBP Measures'!$AE3396& \" - \"& 'Data SBP Measures'!$U3396","v":"Percentage of Cases Disposed Over 18 Months OldCivil Courts - 122"},{"$f":"_xlfn.XLOOKUP(VALUE(W3396),'Data SBP Programs'!O:O,'Data SBP Programs'!S:S)","v":"Civil Courts"}]
[{"$f":"'Data SBP Measures'!$AI1930&\" - \"&'Data SBP Measures'!$U1930","v":"STAR Flight - 159"},{"$f":"'Data SBP Measures'!$AF1930","v":"Missions missed due to mechanical failure"},{"$f":"'Data SBP Measures'!$T1930","v":"2557"},{"$f":"'Data SBP Measures'!$U1930&B3397","v":"159Missions missed due to mechanical failure"},{"$f":"'Data SBP Measures'!$Y1930","v":"EACH"},null,null,null,null,null,"STAR Flight - 159","Missions missed due to mechanical failure",null,null,null,null,null,null,null,"724","122","Y","42","Civil Courts","PERCENT","OUTCOME","ADOPTEDBUD",null,null,null,"Civil Courts","Percentage of Cases Disposed Over 18 Months Old",null,{"$f":"'Data SBP Measures'!$AF3397&'Data SBP Measures'!$AE3397& \" - \"& 'Data SBP Measures'!$U3397","v":"Percentage of Cases Disposed Over 18 Months OldCivil Courts - 122"},{"$f":"_xlfn.XLOOKUP(VALUE(W3397),'Data SBP Programs'!O:O,'Data SBP Programs'!S:S)","v":"Civil Courts"}]
[{"$f":"'Data SBP Measures'!$AI1931&\" - \"&'Data SBP Measures'!$U1931","v":"STAR Flight - 159"},{"$f":"'Data SBP Measures'!$AF1931","v":"Missions missed due to mechanical failure"},{"$f":"'Data SBP Measures'!$T1931","v":"2557"},{"$f":"'Data SBP Measures'!$U1931&B3398","v":"159Missions missed due to mechanical failure"},{"$f":"'Data SBP Measures'!$Y1931","v":"EACH"},null,null,null,null,null,"STAR Flight - 159","Missions missed due to mechanical failure",null,null,null,null,null,null,null,"724","122","Y","42","Civil Courts","PERCENT","OUTCOME","ADOPTEDBUD",null,null,null,"Civil Courts","Percentage of Cases Disposed Over 18 Months Old",null,{"$f":"'Data SBP Measures'!$AF3398&'Data SBP Measures'!$AE3398& \" - \"& 'Data SBP Measures'!$U3398","v":"Percentage of Cases Disposed Over 18 Months OldCivil Courts - 122"},{"$f":"_xlfn.XLOOKUP(VALUE(W3398),'Data SBP Programs'!O:O,'Data SBP Programs'!S:S)","v":"Civil Courts"}]
[{"$f":"'Data SBP Measures'!$AI1932&\" - \"&'Data SBP Measures'!$U1932","v":"STAR Flight - 159"},{"$f":"'Data SBP Measures'!$AF1932","v":"Missions missed due to mechanical failure"},{"$f":"'Data SBP Measures'!$T1932","v":"2557"},{"$f":"'Data SBP Measures'!$U1932&B3399","v":"159Missions missed due to mechanical failure"},{"$f":"'Data SBP Measures'!$Y1932","v":"EACH"},null,null,null,null,null,"STAR Flight - 159","Missions missed due to mechanical failure",null,null,null,null,null,null,null,"724","122","Y","42","Civil Courts","PERCENT","OUTCOME","ADOPTEDBUD",null,null,null,"Civil Courts","Percentage of Cases Disposed Over 18 Months Old",null,{"$f":"'Data SBP Measures'!$AF3399&'Data SBP Measures'!$AE3399& \" - \"& 'Data SBP Measures'!$U3399","v":"Percentage of Cases Disposed Over 18 Months OldCivil Courts - 122"},{"$f":"_xlfn.XLOOKUP(VALUE(W3399),'Data SBP Programs'!O:O,'Data SBP Programs'!S:S)","v":"Civil Courts"}]
[{"$f":"'Data SBP Measures'!$AI1933&\" - \"&'Data SBP Measures'!$U1933","v":"STAR Flight - 159"},{"$f":"'Data SBP Measures'!$AF1933","v":"Missions missed due to mechanical failure"},{"$f":"'Data SBP Measures'!$T1933","v":"2557"},{"$f":"'Data SBP Measures'!$U1933&B3400","v":"159Missions missed due to mechanical failure"},{"$f":"'Data SBP Measures'!$Y1933","v":"EACH"},null,null,null,null,null,"STAR Flight - 159","Missions missed due to mechanical failure",null,null,null,null,null,null,null,"724","122","Y","42","Civil Courts","PERCENT","OUTCOME","ADOPTEDBUD",null,null,null,"Civil Courts","Percentage of Cases Disposed Over 18 Months Old",null,{"$f":"'Data SBP Measures'!$AF3400&'Data SBP Measures'!$AE3400& \" - \"& 'Data SBP Measures'!$U3400","v":"Percentage of Cases Disposed Over 18 Months OldCivil Courts - 122"},{"$f":"_xlfn.XLOOKUP(VALUE(W3400),'Data SBP Programs'!O:O,'Data SBP Programs'!S:S)","v":"Civil Courts"}]
[{"$f":"'Data SBP Measures'!$AI1934&\" - \"&'Data SBP Measures'!$U1934","v":"STAR Flight - 159"},{"$f":"'Data SBP Measures'!$AF1934","v":"Missions missed due to mechanical failure"},{"$f":"'Data SBP Measures'!$T1934","v":"2557"},{"$f":"'Data SBP Measures'!$U1934&B3401","v":"159Missions missed due to mechanical failure"},{"$f":"'Data SBP Measures'!$Y1934","v":"EACH"},null,null,null,null,null,"STAR Flight - 159","Missions missed due to mechanical failure",null,null,null,null,null,null,null,"724","122","Y","42","Civil Courts","PERCENT","OUTCOME","ADOPTEDBUD",null,null,null,"Civil Courts","Percentage of Cases Disposed Over 18 Months Old",null,{"$f":"'Data SBP Measures'!$AF3401&'Data SBP Measures'!$AE3401& \" - \"& 'Data SBP Measures'!$U3401","v":"Percentage of Cases Disposed Over 18 Months OldCivil Courts - 122"},{"$f":"_xlfn.XLOOKUP(VALUE(W3401),'Data SBP Programs'!O:O,'Data SBP Programs'!S:S)","v":"Civil Courts"}]
[{"$f":"'Data SBP Measures'!$AI1935&\" - \"&'Data SBP Measures'!$U1935","v":"STAR Flight - 159"},{"$f":"'Data SBP Measures'!$AF1935","v":"Missions missed due to mechanical failure"},{"$f":"'Data SBP Measures'!$T1935","v":"2557"},{"$f":"'Data SBP Measures'!$U1935&B3402","v":"159Missions missed due to mechanical failure"},{"$f":"'Data SBP Measures'!$Y1935","v":"EACH"},null,null,null,null,null,"STAR Flight - 159","Missions missed due to mechanical failure",null,null,null,null,null,null,null,"724","122","Y","42","Civil Courts","PERCENT","OUTCOME","ADOPTEDBUD",null,null,null,"Civil Courts","Percentage of Cases Disposed Over 18 Months Old",null,{"$f":"'Data SBP Measures'!$AF3402&'Data SBP Measures'!$AE3402& \" - \"& 'Data SBP Measures'!$U3402","v":"Percentage of Cases Disposed Over 18 Months OldCivil Courts - 122"},{"$f":"_xlfn.XLOOKUP(VALUE(W3402),'Data SBP Programs'!O:O,'Data SBP Programs'!S:S)","v":"Civil Courts"}]
[{"$f":"'Data SBP Measures'!$AI1908&\" - \"&'Data SBP Measures'!$U1908","v":"STAR Flight - 159"},{"$f":"'Data SBP Measures'!$AF1908","v":"Non Travis County Patient Transports"},{"$f":"'Data SBP Measures'!$T1908","v":"2552"},{"$f":"'Data SBP Measures'!$U1908&B3403","v":"159Non Travis County Patient Transports"},{"$f":"'Data SBP Measures'!$Y1908","v":"EACH"},null,null,null,null,null,"STAR Flight - 159","Non Travis County Patient Transports",null,null,null,null,null,null,null,"724","122","Y","42","Civil Courts","PERCENT","OUTCOME","ADOPTEDBUD",null,null,null,"Civil Courts","Percentage of Cases Disposed Over 18 Months Old",null,{"$f":"'Data SBP Measures'!$AF3403&'Data SBP Measures'!$AE3403& \" - \"& 'Data SBP Measures'!$U3403","v":"Percentage of Cases Disposed Over 18 Months OldCivil Courts - 122"},{"$f":"_xlfn.XLOOKUP(VALUE(W3403),'Data SBP Programs'!O:O,'Data SBP Programs'!S:S)","v":"Civil Courts"}]
[{"$f":"'Data SBP Measures'!$AI1909&\" - \"&'Data SBP Measures'!$U1909","v":"STAR Flight - 159"},{"$f":"'Data SBP Measures'!$AF1909","v":"Non Travis County Patient Transports"},{"$f":"'Data SBP Measures'!$T1909","v":"2552"},{"$f":"'Data SBP Measures'!$U1909&B3404","v":"159Non Travis County Patient Transports"},{"$f":"'Data SBP Measures'!$Y1909","v":"EACH"},null,null,null,null,null,"STAR Flight - 159","Non Travis County Patient Transports",null,null,null,null,null,null,null,"724","122","Y","42","Civil Courts","PERCENT","OUTCOME","ADOPTEDBUD",null,null,null,"Civil Courts","Percentage of Cases Disposed Over 18 Months Old",null,{"$f":"'Data SBP Measures'!$AF3404&'Data SBP Measures'!$AE3404& \" - \"& 'Data SBP Measures'!$U3404","v":"Percentage of Cases Disposed Over 18 Months OldCivil Courts - 122"},{"$f":"_xlfn.XLOOKUP(VALUE(W3404),'Data SBP Programs'!O:O,'Data SBP Programs'!S:S)","v":"Civil Courts"}]
[{"$f":"'Data SBP Measures'!$AI1910&\" - \"&'Data SBP Measures'!$U1910","v":"STAR Flight - 159"},{"$f":"'Data SBP Measures'!$AF1910","v":"Non Travis County Patient Transports"},{"$f":"'Data SBP Measures'!$T1910","v":"2552"},{"$f":"'Data SBP Measures'!$U1910&B3405","v":"159Non Travis County Patient Transports"},{"$f":"'Data SBP Measures'!$Y1910","v":"EACH"},null,null,null,null,null,"STAR Flight - 159","Non Travis County Patient Transports",null,null,null,null,null,null,null,"724","122","Y","42","Civil Courts","PERCENT","OUTCOME","ADOPTEDBUD",null,null,null,"Civil Courts","Percentage of Cases Disposed Over 18 Months Old",null,{"$f":"'Data SBP Measures'!$AF3405&'Data SBP Measures'!$AE3405& \" - \"& 'Data SBP Measures'!$U3405","v":"Percentage of Cases Disposed Over 18 Months OldCivil Courts - 122"},{"$f":"_xlfn.XLOOKUP(VALUE(W3405),'Data SBP Programs'!O:O,'Data SBP Programs'!S:S)","v":"Civil Courts"}]
[{"$f":"'Data SBP Measures'!$AI1911&\" - \"&'Data SBP Measures'!$U1911","v":"STAR Flight - 159"},{"$f":"'Data SBP Measures'!$AF1911","v":"Non Travis County Patient Transports"},{"$f":"'Data SBP Measures'!$T1911","v":"2552"},{"$f":"'Data SBP Measures'!$U1911&B3406","v":"159Non Travis County Patient Transports"},{"$f":"'Data SBP Measures'!$Y1911","v":"EACH"},null,null,null,null,null,"STAR Flight - 159","Non Travis County Patient Transports",null,null,null,null,null,null,null,"724","122","Y","42","Civil Courts","PERCENT","OUTCOME","ADOPTEDBUD",null,null,null,"Civil Courts","Percentage of Cases Disposed Over 18 Months Old",null,{"$f":"'Data SBP Measures'!$AF3406&'Data SBP Measures'!$AE3406& \" - \"& 'Data SBP Measures'!$U3406","v":"Percentage of Cases Disposed Over 18 Months OldCivil Courts - 122"},{"$f":"_xlfn.XLOOKUP(VALUE(W3406),'Data SBP Programs'!O:O,'Data SBP Programs'!S:S)","v":"Civil Courts"}]
[{"$f":"'Data SBP Measures'!$AI1912&\" - \"&'Data SBP Measures'!$U1912","v":"STAR Flight - 159"},{"$f":"'Data SBP Measures'!$AF1912","v":"Non Travis County Patient Transports"},{"$f":"'Data SBP Measures'!$T1912","v":"2552"},{"$f":"'Data SBP Measures'!$U1912&B3407","v":"159Non Travis County Patient Transports"},{"$f":"'Data SBP Measures'!$Y1912","v":"EACH"},null,null,null,null,null,"STAR Flight - 159","Non Travis County Patient Transports",null,null,null,null,null,null,null,"724","122","Y","42","Civil Courts","PERCENT","OUTCOME","ADOPTEDBUD",null,null,null,"Civil Courts","Percentage of Cases Disposed Over 18 Months Old",null,{"$f":"'Data SBP Measures'!$AF3407&'Data SBP Measures'!$AE3407& \" - \"& 'Data SBP Measures'!$U3407","v":"Percentage of Cases Disposed Over 18 Months OldCivil Courts - 122"},{"$f":"_xlfn.XLOOKUP(VALUE(W3407),'Data SBP Programs'!O:O,'Data SBP Programs'!S:S)","v":"Civil Courts"}]
[{"$f":"'Data SBP Measures'!$AI1913&\" - \"&'Data SBP Measures'!$U1913","v":"STAR Flight - 159"},{"$f":"'Data SBP Measures'!$AF1913","v":"Non Travis County Patient Transports"},{"$f":"'Data SBP Measures'!$T1913","v":"2552"},{"$f":"'Data SBP Measures'!$U1913&B3408","v":"159Non Travis County Patient Transports"},{"$f":"'Data SBP Measures'!$Y1913","v":"EACH"},null,null,null,null,null,"STAR Flight - 159","Non Travis County Patient Transports",null,null,null,null,null,null,null,"724","122","Y","42","Civil Courts","PERCENT","OUTCOME","ADOPTEDBUD",null,null,null,"Civil Courts","Percentage of Cases Disposed Over 18 Months Old",null,{"$f":"'Data SBP Measures'!$AF3408&'Data SBP Measures'!$AE3408& \" - \"& 'Data SBP Measures'!$U3408","v":"Percentage of Cases Disposed Over 18 Months OldCivil Courts - 122"},{"$f":"_xlfn.XLOOKUP(VALUE(W3408),'Data SBP Programs'!O:O,'Data SBP Programs'!S:S)","v":"Civil Courts"}]
[{"$f":"'Data SBP Measures'!$AI1914&\" - \"&'Data SBP Measures'!$U1914","v":"STAR Flight - 159"},{"$f":"'Data SBP Measures'!$AF1914","v":"Non Travis County Patient Transports"},{"$f":"'Data SBP Measures'!$T1914","v":"2552"},{"$f":"'Data SBP Measures'!$U1914&B3409","v":"159Non Travis County Patient Transports"},{"$f":"'Data SBP Measures'!$Y1914","v":"EACH"},null,null,null,null,null,"STAR Flight - 159","Non Travis County Patient Transports",null,null,null,null,null,null,null,"724","122","Y","42","Civil Courts","PERCENT","OUTCOME","ADOPTEDBUD",null,null,null,"Civil Courts","Percentage of Cases Disposed Over 18 Months Old",null,{"$f":"'Data SBP Measures'!$AF3409&'Data SBP Measures'!$AE3409& \" - \"& 'Data SBP Measures'!$U3409","v":"Percentage of Cases Disposed Over 18 Months OldCivil Courts - 122"},{"$f":"_xlfn.XLOOKUP(VALUE(W3409),'Data SBP Programs'!O:O,'Data SBP Programs'!S:S)","v":"Civil Courts"}]
[{"$f":"'Data SBP Measures'!$AI1922&\" - \"&'Data SBP Measures'!$U1922","v":"STAR Flight - 159"},{"$f":"'Data SBP Measures'!$AF1922","v":"Number of Law Enformcement Missions"},{"$f":"'Data SBP Measures'!$T1922","v":"2554"},{"$f":"'Data SBP Measures'!$U1922&B3410","v":"159Number of Law Enformcement Missions"},{"$f":"'Data SBP Measures'!$Y1922","v":"EACH"},null,null,null,null,null,"STAR Flight - 159","Number of Law Enformcement Missions",null,null,null,null,null,null,null,"724","122","Y","42","Civil Courts","PERCENT","OUTCOME","ADOPTEDBUD",null,null,null,"Civil Courts","Percentage of Cases Disposed Over 18 Months Old",null,{"$f":"'Data SBP Measures'!$AF3410&'Data SBP Measures'!$AE3410& \" - \"& 'Data SBP Measures'!$U3410","v":"Percentage of Cases Disposed Over 18 Months OldCivil Courts - 122"},{"$f":"_xlfn.XLOOKUP(VALUE(W3410),'Data SBP Programs'!O:O,'Data SBP Programs'!S:S)","v":"Civil Courts"}]
[{"$f":"'Data SBP Measures'!$AI1923&\" - \"&'Data SBP Measures'!$U1923","v":"STAR Flight - 159"},{"$f":"'Data SBP Measures'!$AF1923","v":"Number of Law Enformcement Missions"},{"$f":"'Data SBP Measures'!$T1923","v":"2554"},{"$f":"'Data SBP Measures'!$U1923&B3411","v":"159Number of Law Enformcement Missions"},{"$f":"'Data SBP Measures'!$Y1923","v":"EACH"},null,null,null,null,null,"STAR Flight - 159","Number of Law Enformcement Missions",null,null,null,null,null,null,null,"725","123","Y","43","Operations","EACH","OUTPUT","NEITHER",null,null,null,"Operations","Projects Planned/Projects Implemented",null,{"$f":"'Data SBP Measures'!$AF3411&'Data SBP Measures'!$AE3411& \" - \"& 'Data SBP Measures'!$U3411","v":"Projects Planned/Projects ImplementedOperations - 123"},{"$f":"_xlfn.XLOOKUP(VALUE(W3411),'Data SBP Programs'!O:O,'Data SBP Programs'!S:S)","v":"Operations"}]
[{"$f":"'Data SBP Measures'!$AI1924&\" - \"&'Data SBP Measures'!$U1924","v":"STAR Flight - 159"},{"$f":"'Data SBP Measures'!$AF1924","v":"Number of Law Enformcement Missions"},{"$f":"'Data SBP Measures'!$T1924","v":"2554"},{"$f":"'Data SBP Measures'!$U1924&B3412","v":"159Number of Law Enformcement Missions"},{"$f":"'Data SBP Measures'!$Y1924","v":"EACH"},null,null,null,null,null,"STAR Flight - 159","Number of Law Enformcement Missions",null,null,null,null,null,null,null,"726","123","Y","43","Operations","FTE","EFFICIENCY","NEITHER",null,null,null,"Operations","Ratio of IT Staff to Users",null,{"$f":"'Data SBP Measures'!$AF3412&'Data SBP Measures'!$AE3412& \" - \"& 'Data SBP Measures'!$U3412","v":"Ratio of IT Staff to UsersOperations - 123"},{"$f":"_xlfn.XLOOKUP(VALUE(W3412),'Data SBP Programs'!O:O,'Data SBP Programs'!S:S)","v":"Operations"}]
[{"$f":"'Data SBP Measures'!$AI1925&\" - \"&'Data SBP Measures'!$U1925","v":"STAR Flight - 159"},{"$f":"'Data SBP Measures'!$AF1925","v":"Number of Law Enformcement Missions"},{"$f":"'Data SBP Measures'!$T1925","v":"2554"},{"$f":"'Data SBP Measures'!$U1925&B3413","v":"159Number of Law Enformcement Missions"},{"$f":"'Data SBP Measures'!$Y1925","v":"EACH"},null,null,null,null,null,"STAR Flight - 159","Number of Law Enformcement Missions",null,null,null,null,null,null,null,"727","123","Y","43","Operations","PERCENT","OUTCOME","NEITHER",null,null,null,"Operations","% of calls/incidents transferred to ITS to resolve",null,{"$f":"'Data SBP Measures'!$AF3413&'Data SBP Measures'!$AE3413& \" - \"& 'Data SBP Measures'!$U3413","v":"% of calls/incidents transferred to ITS to resolveOperations - 123"},{"$f":"_xlfn.XLOOKUP(VALUE(W3413),'Data SBP Programs'!O:O,'Data SBP Programs'!S:S)","v":"Operations"}]
[{"$f":"'Data SBP Measures'!$AI1926&\" - \"&'Data SBP Measures'!$U1926","v":"STAR Flight - 159"},{"$f":"'Data SBP Measures'!$AF1926","v":"Number of Law Enformcement Missions"},{"$f":"'Data SBP Measures'!$T1926","v":"2554"},{"$f":"'Data SBP Measures'!$U1926&B3414","v":"159Number of Law Enformcement Missions"},{"$f":"'Data SBP Measures'!$Y1926","v":"EACH"},null,null,null,null,null,"STAR Flight - 159","Number of Law Enformcement Missions",null,null,null,null,null,null,null,"728","123","Y","43","Operations","EACH","OUTPUT","BLACKBOOK",null,null,null,"Operations","# of Applications/ Supported & Created",null,{"$f":"'Data SBP Measures'!$AF3414&'Data SBP Measures'!$AE3414& \" - \"& 'Data SBP Measures'!$U3414","v":"# of Applications/ Supported & CreatedOperations - 123"},{"$f":"_xlfn.XLOOKUP(VALUE(W3414),'Data SBP Programs'!O:O,'Data SBP Programs'!S:S)","v":"Operations"}]
[{"$f":"'Data SBP Measures'!$AI1927&\" - \"&'Data SBP Measures'!$U1927","v":"STAR Flight - 159"},{"$f":"'Data SBP Measures'!$AF1927","v":"Number of Law Enformcement Missions"},{"$f":"'Data SBP Measures'!$T1927","v":"2554"},{"$f":"'Data SBP Measures'!$U1927&B3415","v":"159Number of Law Enformcement Missions"},{"$f":"'Data SBP Measures'!$Y1927","v":"EACH"},null,null,null,null,null,"STAR Flight - 159","Number of Law Enformcement Missions",null,null,null,null,null,null,null,"729","123","Y","43","Operations","PERCENT","OUTCOME","NEITHER",null,null,null,"Operations","% of helpdesk tickets resolved in 24 hours",null,{"$f":"'Data SBP Measures'!$AF3415&'Data SBP Measures'!$AE3415& \" - \"& 'Data SBP Measures'!$U3415","v":"% of helpdesk tickets resolved in 24 hoursOperations - 123"},{"$f":"_xlfn.XLOOKUP(VALUE(W3415),'Data SBP Programs'!O:O,'Data SBP Programs'!S:S)","v":"Operations"}]
[{"$f":"'Data SBP Measures'!$AI1928&\" - \"&'Data SBP Measures'!$U1928","v":"STAR Flight - 159"},{"$f":"'Data SBP Measures'!$AF1928","v":"Number of Law Enformcement Missions"},{"$f":"'Data SBP Measures'!$T1928","v":"2554"},{"$f":"'Data SBP Measures'!$U1928&B3416","v":"159Number of Law Enformcement Missions"},{"$f":"'Data SBP Measures'!$Y1928","v":"EACH"},null,null,null,null,null,"STAR Flight - 159","Number of Law Enformcement Missions",null,null,null,null,null,null,null,"730","123","Y","43","Operations","PERCENT","OUTCOME","NEITHER",null,null,null,"Operations","% of IT training held within 3 days of hire date",null,{"$f":"'Data SBP Measures'!$AF3416&'Data SBP Measures'!$AE3416& \" - \"& 'Data SBP Measures'!$U3416","v":"% of IT training held within 3 days of hire dateOperations - 123"},{"$f":"_xlfn.XLOOKUP(VALUE(W3416),'Data SBP Programs'!O:O,'Data SBP Programs'!S:S)","v":"Operations"}]
[{"$f":"'Data SBP Measures'!$AI1901&\" - \"&'Data SBP Measures'!$U1901","v":"STAR Flight - 159"},{"$f":"'Data SBP Measures'!$AF1901","v":"Number of Patient Transports"},{"$f":"'Data SBP Measures'!$T1901","v":"2551"},{"$f":"'Data SBP Measures'!$U1901&B3417","v":"159Number of Patient Transports"},{"$f":"'Data SBP Measures'!$Y1901","v":"EACH"},null,null,null,null,null,"STAR Flight - 159","Number of Patient Transports",null,null,null,null,null,null,null,"731","123","Y","43","Operations","PERCENT","OUTCOME","NEITHER",null,null,null,"Operations","% of requests responded by HR to employee within same day",null,{"$f":"'Data SBP Measures'!$AF3417&'Data SBP Measures'!$AE3417& \" - \"& 'Data SBP Measures'!$U3417","v":"% of requests responded by HR to employee within same dayOperations - 123"},{"$f":"_xlfn.XLOOKUP(VALUE(W3417),'Data SBP Programs'!O:O,'Data SBP Programs'!S:S)","v":"Operations"}]
[{"$f":"'Data SBP Measures'!$AI1902&\" - \"&'Data SBP Measures'!$U1902","v":"STAR Flight - 159"},{"$f":"'Data SBP Measures'!$AF1902","v":"Number of Patient Transports"},{"$f":"'Data SBP Measures'!$T1902","v":"2551"},{"$f":"'Data SBP Measures'!$U1902&B3418","v":"159Number of Patient Transports"},{"$f":"'Data SBP Measures'!$Y1902","v":"EACH"},null,null,null,null,null,"STAR Flight - 159","Number of Patient Transports",null,null,null,null,null,null,null,"733","123","Y","43","Operations","PERCENT","OUTCOME","NEITHER",null,null,null,"Operations","% of payables processed within 5 days",null,{"$f":"'Data SBP Measures'!$AF3418&'Data SBP Measures'!$AE3418& \" - \"& 'Data SBP Measures'!$U3418","v":"% of payables processed within 5 daysOperations - 123"},{"$f":"_xlfn.XLOOKUP(VALUE(W3418),'Data SBP Programs'!O:O,'Data SBP Programs'!S:S)","v":"Operations"}]
[{"$f":"'Data SBP Measures'!$AI1903&\" - \"&'Data SBP Measures'!$U1903","v":"STAR Flight - 159"},{"$f":"'Data SBP Measures'!$AF1903","v":"Number of Patient Transports"},{"$f":"'Data SBP Measures'!$T1903","v":"2551"},{"$f":"'Data SBP Measures'!$U1903&B3419","v":"159Number of Patient Transports"},{"$f":"'Data SBP Measures'!$Y1903","v":"EACH"},null,null,null,null,null,"STAR Flight - 159","Number of Patient Transports",null,null,null,null,null,null,null,"734","123","Y","43","Operations","EACH","EFFICIENCY","NEITHER",null,null,null,"Operations","Ratio of requestors for goods/svcs to financial staff",null,{"$f":"'Data SBP Measures'!$AF3419&'Data SBP Measures'!$AE3419& \" - \"& 'Data SBP Measures'!$U3419","v":"Ratio of requestors for goods/svcs to financial staffOperations - 123"},{"$f":"_xlfn.XLOOKUP(VALUE(W3419),'Data SBP Programs'!O:O,'Data SBP Programs'!S:S)","v":"Operations"}]
[{"$f":"'Data SBP Measures'!$AI1904&\" - \"&'Data SBP Measures'!$U1904","v":"STAR Flight - 159"},{"$f":"'Data SBP Measures'!$AF1904","v":"Number of Patient Transports"},{"$f":"'Data SBP Measures'!$T1904","v":"2551"},{"$f":"'Data SBP Measures'!$U1904&B3420","v":"159Number of Patient Transports"},{"$f":"'Data SBP Measures'!$Y1904","v":"EACH"},null,null,null,null,null,"STAR Flight - 159","Number of Patient Transports",null,null,null,null,null,null,null,"735","123","Y","43","Operations","PERCENT","OUTCOME","NEITHER",null,null,null,"Operations","% of witness fee claims processed within 5 days",null,{"$f":"'Data SBP Measures'!$AF3420&'Data SBP Measures'!$AE3420& \" - \"& 'Data SBP Measures'!$U3420","v":"% of witness fee claims processed within 5 daysOperations - 123"},{"$f":"_xlfn.XLOOKUP(VALUE(W3420),'Data SBP Programs'!O:O,'Data SBP Programs'!S:S)","v":"Operations"}]
[{"$f":"'Data SBP Measures'!$AI1905&\" - \"&'Data SBP Measures'!$U1905","v":"STAR Flight - 159"},{"$f":"'Data SBP Measures'!$AF1905","v":"Number of Patient Transports"},{"$f":"'Data SBP Measures'!$T1905","v":"2551"},{"$f":"'Data SBP Measures'!$U1905&B3421","v":"159Number of Patient Transports"},{"$f":"'Data SBP Measures'!$Y1905","v":"EACH"},null,null,null,null,null,"STAR Flight - 159","Number of Patient Transports",null,null,null,null,null,null,null,"736","123","Y","43","Operations","EACH","OUTPUT","NEITHER",null,null,null,"Operations","# of personnel actions processed",null,{"$f":"'Data SBP Measures'!$AF3421&'Data SBP Measures'!$AE3421& \" - \"& 'Data SBP Measures'!$U3421","v":"# of personnel actions processedOperations - 123"},{"$f":"_xlfn.XLOOKUP(VALUE(W3421),'Data SBP Programs'!O:O,'Data SBP Programs'!S:S)","v":"Operations"}]
[{"$f":"'Data SBP Measures'!$AI1906&\" - \"&'Data SBP Measures'!$U1906","v":"STAR Flight - 159"},{"$f":"'Data SBP Measures'!$AF1906","v":"Number of Patient Transports"},{"$f":"'Data SBP Measures'!$T1906","v":"2551"},{"$f":"'Data SBP Measures'!$U1906&B3422","v":"159Number of Patient Transports"},{"$f":"'Data SBP Measures'!$Y1906","v":"EACH"},null,null,null,null,null,"STAR Flight - 159","Number of Patient Transports",null,null,null,null,null,null,null,"737","123","Y","43","Operations","PERCENT","OUTCOME","NEITHER",null,null,null,"Operations","% of payroll certifications turned in by deadline",null,{"$f":"'Data SBP Measures'!$AF3422&'Data SBP Measures'!$AE3422& \" - \"& 'Data SBP Measures'!$U3422","v":"% of payroll certifications turned in by deadlineOperations - 123"},{"$f":"_xlfn.XLOOKUP(VALUE(W3422),'Data SBP Programs'!O:O,'Data SBP Programs'!S:S)","v":"Operations"}]
[{"$f":"'Data SBP Measures'!$AI1907&\" - \"&'Data SBP Measures'!$U1907","v":"STAR Flight - 159"},{"$f":"'Data SBP Measures'!$AF1907","v":"Number of Patient Transports"},{"$f":"'Data SBP Measures'!$T1907","v":"2551"},{"$f":"'Data SBP Measures'!$U1907&B3423","v":"159Number of Patient Transports"},{"$f":"'Data SBP Measures'!$Y1907","v":"EACH"},null,null,null,null,null,"STAR Flight - 159","Number of Patient Transports",null,null,null,null,null,null,null,"738","123","Y","43","Operations","PERCENT","OUTCOME","NEITHER",null,null,null,"Operations","% of new hire paperwork completed 4 days prior to start date",null,{"$f":"'Data SBP Measures'!$AF3423&'Data SBP Measures'!$AE3423& \" - \"& 'Data SBP Measures'!$U3423","v":"% of new hire paperwork completed 4 days prior to start dateOperations - 123"},{"$f":"_xlfn.XLOOKUP(VALUE(W3423),'Data SBP Programs'!O:O,'Data SBP Programs'!S:S)","v":"Operations"}]
[{"$f":"'Data SBP Measures'!$AI1915&\" - \"&'Data SBP Measures'!$U1915","v":"STAR Flight - 159"},{"$f":"'Data SBP Measures'!$AF1915","v":"Number of Search and Rescue Missions"},{"$f":"'Data SBP Measures'!$T1915","v":"2553"},{"$f":"'Data SBP Measures'!$U1915&B3424","v":"159Number of Search and Rescue Missions"},{"$f":"'Data SBP Measures'!$Y1915","v":"EACH"},null,null,null,null,null,"STAR Flight - 159","Number of Search and Rescue Missions",null,null,null,null,null,null,null,"739","123","Y","43","Operations","EACH","OUTPUT","BOTH",null,null,null,"Operations","Felony case files prepared",null,{"$f":"'Data SBP Measures'!$AF3424&'Data SBP Measures'!$AE3424& \" - \"& 'Data SBP Measures'!$U3424","v":"Felony case files preparedOperations - 123"},{"$f":"_xlfn.XLOOKUP(VALUE(W3424),'Data SBP Programs'!O:O,'Data SBP Programs'!S:S)","v":"Operations"}]
[{"$f":"'Data SBP Measures'!$AI1916&\" - \"&'Data SBP Measures'!$U1916","v":"STAR Flight - 159"},{"$f":"'Data SBP Measures'!$AF1916","v":"Number of Search and Rescue Missions"},{"$f":"'Data SBP Measures'!$T1916","v":"2553"},{"$f":"'Data SBP Measures'!$U1916&B3425","v":"159Number of Search and Rescue Missions"},{"$f":"'Data SBP Measures'!$Y1916","v":"EACH"},null,null,null,null,null,"STAR Flight - 159","Number of Search and Rescue Missions",null,null,null,null,null,null,null,"740","123","Y","43","Operations","DAYS","OUTCOME","NEITHER",null,null,null,"Operations","Length of time to set up cases in TechShare",null,{"$f":"'Data SBP Measures'!$AF3425&'Data SBP Measures'!$AE3425& \" - \"& 'Data SBP Measures'!$U3425","v":"Length of time to set up cases in TechShareOperations - 123"},{"$f":"_xlfn.XLOOKUP(VALUE(W3425),'Data SBP Programs'!O:O,'Data SBP Programs'!S:S)","v":"Operations"}]
[{"$f":"'Data SBP Measures'!$AI1917&\" - \"&'Data SBP Measures'!$U1917","v":"STAR Flight - 159"},{"$f":"'Data SBP Measures'!$AF1917","v":"Number of Search and Rescue Missions"},{"$f":"'Data SBP Measures'!$T1917","v":"2553"},{"$f":"'Data SBP Measures'!$U1917&B3426","v":"159Number of Search and Rescue Missions"},{"$f":"'Data SBP Measures'!$Y1917","v":"EACH"},null,null,null,null,null,"STAR Flight - 159","Number of Search and Rescue Missions",null,null,null,null,null,null,null,"741","123","Y","43","Operations","EACH","OUTPUT","BLACKBOOK",null,null,null,"Operations","# of no complaint cases processed",null,{"$f":"'Data SBP Measures'!$AF3426&'Data SBP Measures'!$AE3426& \" - \"& 'Data SBP Measures'!$U3426","v":"# of no complaint cases processedOperations - 123"},{"$f":"_xlfn.XLOOKUP(VALUE(W3426),'Data SBP Programs'!O:O,'Data SBP Programs'!S:S)","v":"Operations"}]
[{"$f":"'Data SBP Measures'!$AI1918&\" - \"&'Data SBP Measures'!$U1918","v":"STAR Flight - 159"},{"$f":"'Data SBP Measures'!$AF1918","v":"Number of Search and Rescue Missions"},{"$f":"'Data SBP Measures'!$T1918","v":"2553"},{"$f":"'Data SBP Measures'!$U1918&B3427","v":"159Number of Search and Rescue Missions"},{"$f":"'Data SBP Measures'!$Y1918","v":"EACH"},null,null,null,null,null,"STAR Flight - 159","Number of Search and Rescue Missions",null,null,null,null,null,null,null,"742","123","Y","43","Operations","EACH","INPUT","BLACKBOOK",null,null,null,"Operations","# of pardons and parole protests received",null,{"$f":"'Data SBP Measures'!$AF3427&'Data SBP Measures'!$AE3427& \" - \"& 'Data SBP Measures'!$U3427","v":"# of pardons and parole protests receivedOperations - 123"},{"$f":"_xlfn.XLOOKUP(VALUE(W3427),'Data SBP Programs'!O:O,'Data SBP Programs'!S:S)","v":"Operations"}]
[{"$f":"'Data SBP Measures'!$AI1919&\" - \"&'Data SBP Measures'!$U1919","v":"STAR Flight - 159"},{"$f":"'Data SBP Measures'!$AF1919","v":"Number of Search and Rescue Missions"},{"$f":"'Data SBP Measures'!$T1919","v":"2553"},{"$f":"'Data SBP Measures'!$U1919&B3428","v":"159Number of Search and Rescue Missions"},{"$f":"'Data SBP Measures'!$Y1919","v":"EACH"},null,null,null,null,null,"STAR Flight - 159","Number of Search and Rescue Missions",null,null,null,null,null,null,null,"743","123","Y","43","Operations","EACH","OUTPUT","NEITHER",null,null,null,"Operations","# of pardons and parole letters processed",null,{"$f":"'Data SBP Measures'!$AF3428&'Data SBP Measures'!$AE3428& \" - \"& 'Data SBP Measures'!$U3428","v":"# of pardons and parole letters processedOperations - 123"},{"$f":"_xlfn.XLOOKUP(VALUE(W3428),'Data SBP Programs'!O:O,'Data SBP Programs'!S:S)","v":"Operations"}]
[{"$f":"'Data SBP Measures'!$AI1920&\" - \"&'Data SBP Measures'!$U1920","v":"STAR Flight - 159"},{"$f":"'Data SBP Measures'!$AF1920","v":"Number of Search and Rescue Missions"},{"$f":"'Data SBP Measures'!$T1920","v":"2553"},{"$f":"'Data SBP Measures'!$U1920&B3429","v":"159Number of Search and Rescue Missions"},{"$f":"'Data SBP Measures'!$Y1920","v":"EACH"},null,null,null,null,null,"STAR Flight - 159","Number of Search and Rescue Missions",null,null,null,null,null,null,null,"744","123","Y","43","Operations","EACH","INPUT","BOTH",null,null,null,"Operations","# of hot checks filed by merchants",null,{"$f":"'Data SBP Measures'!$AF3429&'Data SBP Measures'!$AE3429& \" - \"& 'Data SBP Measures'!$U3429","v":"# of hot checks filed by merchantsOperations - 123"},{"$f":"_xlfn.XLOOKUP(VALUE(W3429),'Data SBP Programs'!O:O,'Data SBP Programs'!S:S)","v":"Operations"}]
[{"$f":"'Data SBP Measures'!$AI1921&\" - \"&'Data SBP Measures'!$U1921","v":"STAR Flight - 159"},{"$f":"'Data SBP Measures'!$AF1921","v":"Number of Search and Rescue Missions"},{"$f":"'Data SBP Measures'!$T1921","v":"2553"},{"$f":"'Data SBP Measures'!$U1921&B3430","v":"159Number of Search and Rescue Missions"},{"$f":"'Data SBP Measures'!$Y1921","v":"EACH"},null,null,null,null,null,"STAR Flight - 159","Number of Search and Rescue Missions",null,null,null,null,null,null,null,"745","123","Y","43","Operations","DOLLARS","OUTCOME","BLACKBOOK",null,null,null,"Operations","Amount of restitution collected",null,{"$f":"'Data SBP Measures'!$AF3430&'Data SBP Measures'!$AE3430& \" - \"& 'Data SBP Measures'!$U3430","v":"Amount of restitution collectedOperations - 123"},{"$f":"_xlfn.XLOOKUP(VALUE(W3430),'Data SBP Programs'!O:O,'Data SBP Programs'!S:S)","v":"Operations"}]
[{"$f":"'Data SBP Measures'!$AI1972&\" - \"&'Data SBP Measures'!$U1972","v":"STAR Flight - 159"},{"$f":"'Data SBP Measures'!$AF1972","v":"Public Relations Request Processed Within 5 Business Days."},{"$f":"'Data SBP Measures'!$T1972","v":"2565"},{"$f":"'Data SBP Measures'!$U1972&B3431","v":"159Public Relations Request Processed Within 5 Business Days."},{"$f":"'Data SBP Measures'!$Y1972","v":"PERCENT"},null,null,null,null,null,"STAR Flight - 159","Public Relations Request Processed Within 5 Business Days.",null,null,null,null,null,null,null,"746","123","Y","44","Trial Courts","EACH","OUTPUT","BLACKBOOK",null,null,null,"Trial Courts","Number of appellate briefs filed",null,{"$f":"'Data SBP Measures'!$AF3431&'Data SBP Measures'!$AE3431& \" - \"& 'Data SBP Measures'!$U3431","v":"Number of appellate briefs filedTrial Courts - 123"},{"$f":"_xlfn.XLOOKUP(VALUE(W3431),'Data SBP Programs'!O:O,'Data SBP Programs'!S:S)","v":"Civil Rights Unit"}]
[{"$f":"'Data SBP Measures'!$AI1973&\" - \"&'Data SBP Measures'!$U1973","v":"STAR Flight - 159"},{"$f":"'Data SBP Measures'!$AF1973","v":"Public Relations Request Processed Within 5 Business Days."},{"$f":"'Data SBP Measures'!$T1973","v":"2565"},{"$f":"'Data SBP Measures'!$U1973&B3432","v":"159Public Relations Request Processed Within 5 Business Days."},{"$f":"'Data SBP Measures'!$Y1973","v":"PERCENT"},null,null,null,null,null,"STAR Flight - 159","Public Relations Request Processed Within 5 Business Days.",null,null,null,null,null,null,null,"747","123","Y","44","Trial Courts","PERCENT","OUTCOME","NEITHER",null,null,null,"Trial Courts","Percentage of briefs filed on or before second deadline",null,{"$f":"'Data SBP Measures'!$AF3432&'Data SBP Measures'!$AE3432& \" - \"& 'Data SBP Measures'!$U3432","v":"Percentage of briefs filed on or before second deadlineTrial Courts - 123"},{"$f":"_xlfn.XLOOKUP(VALUE(W3432),'Data SBP Programs'!O:O,'Data SBP Programs'!S:S)","v":"Civil Rights Unit"}]
[{"$f":"'Data SBP Measures'!$AI1974&\" - \"&'Data SBP Measures'!$U1974","v":"STAR Flight - 159"},{"$f":"'Data SBP Measures'!$AF1974","v":"Public Relations Request Processed Within 5 Business Days."},{"$f":"'Data SBP Measures'!$T1974","v":"2565"},{"$f":"'Data SBP Measures'!$U1974&B3433","v":"159Public Relations Request Processed Within 5 Business Days."},{"$f":"'Data SBP Measures'!$Y1974","v":"PERCENT"},null,null,null,null,null,"STAR Flight - 159","Public Relations Request Processed Within 5 Business Days.",null,null,null,null,null,null,null,"748","123","Y","44","Trial Courts","EACH","OUTPUT","NEITHER",null,null,null,"Trial Courts","Number of habeas applications reviewed",null,{"$f":"'Data SBP Measures'!$AF3433&'Data SBP Measures'!$AE3433& \" - \"& 'Data SBP Measures'!$U3433","v":"Number of habeas applications reviewedTrial Courts - 123"},{"$f":"_xlfn.XLOOKUP(VALUE(W3433),'Data SBP Programs'!O:O,'Data SBP Programs'!S:S)","v":"Civil Rights Unit"}]
[{"$f":"'Data SBP Measures'!$AI1975&\" - \"&'Data SBP Measures'!$U1975","v":"STAR Flight - 159"},{"$f":"'Data SBP Measures'!$AF1975","v":"Public Relations Request Processed Within 5 Business Days."},{"$f":"'Data SBP Measures'!$T1975","v":"2565"},{"$f":"'Data SBP Measures'!$U1975&B3434","v":"159Public Relations Request Processed Within 5 Business Days."},{"$f":"'Data SBP Measures'!$Y1975","v":"PERCENT"},null,null,null,null,null,"STAR Flight - 159","Public Relations Request Processed Within 5 Business Days.",null,null,null,null,null,null,null,"749","123","Y","49","Civil Rights Unit","EACH","OUTPUT","NEITHER",null,null,null,"Civil Rights Unit","Number of conviction integrity reviews initiated",null,{"$f":"'Data SBP Measures'!$AF3434&'Data SBP Measures'!$AE3434& \" - \"& 'Data SBP Measures'!$U3434","v":"Number of conviction integrity reviews initiatedCivil Rights Unit - 123"},{"$f":"_xlfn.XLOOKUP(VALUE(W3434),'Data SBP Programs'!O:O,'Data SBP Programs'!S:S)","v":"Civil Rights Unit"}]
[{"$f":"'Data SBP Measures'!$AI1976&\" - \"&'Data SBP Measures'!$U1976","v":"STAR Flight - 159"},{"$f":"'Data SBP Measures'!$AF1976","v":"Public Relations Request Processed Within 5 Business Days."},{"$f":"'Data SBP Measures'!$T1976","v":"2565"},{"$f":"'Data SBP Measures'!$U1976&B3435","v":"159Public Relations Request Processed Within 5 Business Days."},{"$f":"'Data SBP Measures'!$Y1976","v":"PERCENT"},null,null,null,null,null,"STAR Flight - 159","Public Relations Request Processed Within 5 Business Days.",null,null,null,null,null,null,null,"750","123","Y","44","Trial Courts","EACH","OUTPUT","NEITHER",null,null,null,"Trial Courts","Number of oral arguments in appellate courts",null,{"$f":"'Data SBP Measures'!$AF3435&'Data SBP Measures'!$AE3435& \" - \"& 'Data SBP Measures'!$U3435","v":"Number of oral arguments in appellate courtsTrial Courts - 123"},{"$f":"_xlfn.XLOOKUP(VALUE(W3435),'Data SBP Programs'!O:O,'Data SBP Programs'!S:S)","v":"Civil Rights Unit"}]
[{"$f":"'Data SBP Measures'!$AI1977&\" - \"&'Data SBP Measures'!$U1977","v":"STAR Flight - 159"},{"$f":"'Data SBP Measures'!$AF1977","v":"Public Relations Request Processed Within 5 Business Days."},{"$f":"'Data SBP Measures'!$T1977","v":"2565"},{"$f":"'Data SBP Measures'!$U1977&B3436","v":"159Public Relations Request Processed Within 5 Business Days."},{"$f":"'Data SBP Measures'!$Y1977","v":"PERCENT"},null,null,null,null,null,"STAR Flight - 159","Public Relations Request Processed Within 5 Business Days.",null,null,null,null,null,null,null,"752","123","Y","44","Trial Courts","EACH","OUTPUT","BLACKBOOK",null,null,null,"Trial Courts","Number of Legal Consultations by Appellate Attorneys",null,{"$f":"'Data SBP Measures'!$AF3436&'Data SBP Measures'!$AE3436& \" - \"& 'Data SBP Measures'!$U3436","v":"Number of Legal Consultations by Appellate AttorneysTrial Courts - 123"},{"$f":"_xlfn.XLOOKUP(VALUE(W3436),'Data SBP Programs'!O:O,'Data SBP Programs'!S:S)","v":"Civil Rights Unit"}]
[{"$f":"'Data SBP Measures'!$AI1978&\" - \"&'Data SBP Measures'!$U1978","v":"STAR Flight - 159"},{"$f":"'Data SBP Measures'!$AF1978","v":"Public Relations Request Processed Within 5 Business Days."},{"$f":"'Data SBP Measures'!$T1978","v":"2565"},{"$f":"'Data SBP Measures'!$U1978&B3437","v":"159Public Relations Request Processed Within 5 Business Days."},{"$f":"'Data SBP Measures'!$Y1978","v":"PERCENT"},null,null,null,null,null,"STAR Flight - 159","Public Relations Request Processed Within 5 Business Days.",null,null,null,null,null,null,null,"754","123","Y","44","Trial Courts","EACH","OUTPUT","BLACKBOOK",null,null,null,"Trial Courts","# of jury trials",null,{"$f":"'Data SBP Measures'!$AF3437&'Data SBP Measures'!$AE3437& \" - \"& 'Data SBP Measures'!$U3437","v":"# of jury trialsTrial Courts - 123"},{"$f":"_xlfn.XLOOKUP(VALUE(W3437),'Data SBP Programs'!O:O,'Data SBP Programs'!S:S)","v":"Civil Rights Unit"}]
[{"$f":"'Data SBP Measures'!$AI2788&\" - \"&'Data SBP Measures'!$U2788","v":"Talent, Planning & Engagement - 111"},{"$f":"'Data SBP Measures'!$AF2788","v":"# of Ee Assigned HR Compliance curriculum"},{"$f":"'Data SBP Measures'!$T2788","v":"3377"},{"$f":"'Data SBP Measures'!$U2788&B3438","v":"111# of Ee Assigned HR Compliance curriculum"},{"$f":"'Data SBP Measures'!$Y2788","v":"EACH"},null,null,null,null,null,"Talent, Planning & Engagement - 111","# of Ee Assigned HR Compliance curriculum",null,null,null,null,null,null,null,"755","123","Y","44","Trial Courts","EACH","OUTPUT","BOTH",null,null,null,"Trial Courts","# of dispositions",null,{"$f":"'Data SBP Measures'!$AF3438&'Data SBP Measures'!$AE3438& \" - \"& 'Data SBP Measures'!$U3438","v":"# of dispositionsTrial Courts - 123"},{"$f":"_xlfn.XLOOKUP(VALUE(W3438),'Data SBP Programs'!O:O,'Data SBP Programs'!S:S)","v":"Civil Rights Unit"}]
[{"$f":"'Data SBP Measures'!$AI2786&\" - \"&'Data SBP Measures'!$U2786","v":"Talent, Planning & Engagement - 111"},{"$f":"'Data SBP Measures'!$AF2786","v":"# of Ees participating in Employee Development Training Level Up-3 curriculums"},{"$f":"'Data SBP Measures'!$T2786","v":"3375"},{"$f":"'Data SBP Measures'!$U2786&B3439","v":"111# of Ees participating in Employee Development Training Level Up-3 curriculums"},{"$f":"'Data SBP Measures'!$Y2786","v":"EACH"},null,null,null,null,null,"Talent, Planning & Engagement - 111","# of Ees participating in Employee Development Training Level Up-3 curriculums",null,null,null,null,null,null,null,"756","123","Y","44","Trial Courts","EACH","OUTPUT","BOTH",null,null,null,"Trial Courts","# of convictions",null,{"$f":"'Data SBP Measures'!$AF3439&'Data SBP Measures'!$AE3439& \" - \"& 'Data SBP Measures'!$U3439","v":"# of convictionsTrial Courts - 123"},{"$f":"_xlfn.XLOOKUP(VALUE(W3439),'Data SBP Programs'!O:O,'Data SBP Programs'!S:S)","v":"Civil Rights Unit"}]
[{"$f":"'Data SBP Measures'!$AI2791&\" - \"&'Data SBP Measures'!$U2791","v":"Talent, Planning & Engagement - 111"},{"$f":"'Data SBP Measures'!$AF2791","v":"# of HRMD Internal Investigations Received"},{"$f":"'Data SBP Measures'!$T2791","v":"3380"},{"$f":"'Data SBP Measures'!$U2791&B3440","v":"111# of HRMD Internal Investigations Received"},{"$f":"'Data SBP Measures'!$Y2791","v":"EACH"},null,null,null,null,null,"Talent, Planning & Engagement - 111","# of HRMD Internal Investigations Received",null,null,null,null,null,null,null,"757","123","Y","44","Trial Courts","EACH","OUTPUT","NEITHER",null,null,null,"Trial Courts","# of motions to revoke probation",null,{"$f":"'Data SBP Measures'!$AF3440&'Data SBP Measures'!$AE3440& \" - \"& 'Data SBP Measures'!$U3440","v":"# of motions to revoke probationTrial Courts - 123"},{"$f":"_xlfn.XLOOKUP(VALUE(W3440),'Data SBP Programs'!O:O,'Data SBP Programs'!S:S)","v":"Civil Rights Unit"}]
[{"$f":"'Data SBP Measures'!$AI2789&\" - \"&'Data SBP Measures'!$U2789","v":"Talent, Planning & Engagement - 111"},{"$f":"'Data SBP Measures'!$AF2789","v":"# of New Hire Orientation auto-assigned"},{"$f":"'Data SBP Measures'!$T2789","v":"3378"},{"$f":"'Data SBP Measures'!$U2789&B3441","v":"111# of New Hire Orientation auto-assigned"},{"$f":"'Data SBP Measures'!$Y2789","v":"EACH"},null,null,null,null,null,"Talent, Planning & Engagement - 111","# of New Hire Orientation auto-assigned",null,null,null,null,null,null,null,"758","123","Y","44","Trial Courts","EACH","OUTPUT","NEITHER",null,null,null,"Trial Courts","# of statements of fact",null,{"$f":"'Data SBP Measures'!$AF3441&'Data SBP Measures'!$AE3441& \" - \"& 'Data SBP Measures'!$U3441","v":"# of statements of factTrial Courts - 123"},{"$f":"_xlfn.XLOOKUP(VALUE(W3441),'Data SBP Programs'!O:O,'Data SBP Programs'!S:S)","v":"Civil Rights Unit"}]
[{"$f":"'Data SBP Measures'!$AI2790&\" - \"&'Data SBP Measures'!$U2790","v":"Talent, Planning & Engagement - 111"},{"$f":"'Data SBP Measures'!$AF2790","v":"# of TC Share It Reports Received"},{"$f":"'Data SBP Measures'!$T2790","v":"3379"},{"$f":"'Data SBP Measures'!$U2790&B3442","v":"111# of TC Share It Reports Received"},{"$f":"'Data SBP Measures'!$Y2790","v":"EACH"},null,null,null,null,null,"Talent, Planning & Engagement - 111","# of TC Share It Reports Received",null,null,null,null,null,null,null,"762","123","Y","45","Special Victims Unit","EACH","OUTPUT","BLACKBOOK",null,null,null,"Special Victims Unit","# of child abuse case indictments",null,{"$f":"'Data SBP Measures'!$AF3442&'Data SBP Measures'!$AE3442& \" - \"& 'Data SBP Measures'!$U3442","v":"# of child abuse case indictmentsSpecial Victims Unit - 123"},{"$f":"_xlfn.XLOOKUP(VALUE(W3442),'Data SBP Programs'!O:O,'Data SBP Programs'!S:S)","v":"Special Victims Unit"}]
[{"$f":"'Data SBP Measures'!$AI2792&\" - \"&'Data SBP Measures'!$U2792","v":"Talent, Planning & Engagement - 111"},{"$f":"'Data SBP Measures'!$AF2792","v":"% Increase in applicant through TP&E external job platforms"},{"$f":"'Data SBP Measures'!$T2792","v":"3381"},{"$f":"'Data SBP Measures'!$U2792&B3443","v":"111% Increase in applicant through TP&E external job platforms"},{"$f":"'Data SBP Measures'!$Y2792","v":"PERCENT"},null,null,null,null,null,"Talent, Planning & Engagement - 111","% Increase in applicant through TP&E external job platforms",null,null,null,null,null,null,null,"762","123","Y","307","Victim Services","EACH","OUTPUT","BLACKBOOK",null,null,null,"Victim Services","# of child abuse case indictments",null,{"$f":"'Data SBP Measures'!$AF3443&'Data SBP Measures'!$AE3443& \" - \"& 'Data SBP Measures'!$U3443","v":"# of child abuse case indictmentsVictim Services - 123"},{"$f":"_xlfn.XLOOKUP(VALUE(W3443),'Data SBP Programs'!O:O,'Data SBP Programs'!S:S)","v":"Trial Courts"}]
[{"$f":"'Data SBP Measures'!$AI688&\" - \"&'Data SBP Measures'!$U688","v":"Talent, Planning & Engagement - 111"},{"$f":"'Data SBP Measures'!$AF688","v":"% of ees reporting to Commissioner Court who receive a formal review"},{"$f":"'Data SBP Measures'!$T688","v":"1746"},{"$f":"'Data SBP Measures'!$U688&B3444","v":"111% of ees reporting to Commissioner Court who receive a formal review"},{"$f":"'Data SBP Measures'!$Y688","v":"PERCENT"},null,null,null,null,null,"Talent, Planning & Engagement - 111","% of ees reporting to Commissioner Court who receive a formal review",null,null,null,null,null,null,null,"763","123","Y","45","Special Victims Unit","EACH","OUTPUT","BOTH",null,null,null,"Special Victims Unit","# of child abuse cases completed",null,{"$f":"'Data SBP Measures'!$AF3444&'Data SBP Measures'!$AE3444& \" - \"& 'Data SBP Measures'!$U3444","v":"# of child abuse cases completedSpecial Victims Unit - 123"},{"$f":"_xlfn.XLOOKUP(VALUE(W3444),'Data SBP Programs'!O:O,'Data SBP Programs'!S:S)","v":"Special Victims Unit"}]
[{"$f":"'Data SBP Measures'!$AI2628&\" - \"&'Data SBP Measures'!$U2628","v":"Talent, Planning & Engagement - 111"},{"$f":"'Data SBP Measures'!$AF2628","v":"Average days to close a TC ShareIT"},{"$f":"'Data SBP Measures'!$T2628","v":"3242"},{"$f":"'Data SBP Measures'!$U2628&B3445","v":"111Average days to close a TC ShareIT"},{"$f":"'Data SBP Measures'!$Y2628","v":"DAYS"},null,null,null,null,null,"Talent, Planning & Engagement - 111","Average days to close a TC ShareIT",null,null,null,null,null,null,null,"763","123","Y","307","Victim Services","EACH","OUTPUT","BOTH",null,null,null,"Victim Services","# of child abuse cases completed",null,{"$f":"'Data SBP Measures'!$AF3445&'Data SBP Measures'!$AE3445& \" - \"& 'Data SBP Measures'!$U3445","v":"# of child abuse cases completedVictim Services - 123"},{"$f":"_xlfn.XLOOKUP(VALUE(W3445),'Data SBP Programs'!O:O,'Data SBP Programs'!S:S)","v":"Trial Courts"}]
[{"$f":"'Data SBP Measures'!$AI687&\" - \"&'Data SBP Measures'!$U687","v":"Talent, Planning & Engagement - 111"},{"$f":"'Data SBP Measures'!$AF687","v":"Average Days to Close an ER Issue"},{"$f":"'Data SBP Measures'!$T687","v":"1745"},{"$f":"'Data SBP Measures'!$U687&B3446","v":"111Average Days to Close an ER Issue"},{"$f":"'Data SBP Measures'!$Y687","v":"DAYS"},null,null,null,null,null,"Talent, Planning & Engagement - 111","Average Days to Close an ER Issue",null,null,null,null,null,null,null,"764","123","Y","45","Special Victims Unit","EACH","OUTPUT","BLACKBOOK",null,null,null,"Special Victims Unit","# of family violence cases indicted",null,{"$f":"'Data SBP Measures'!$AF3446&'Data SBP Measures'!$AE3446& \" - \"& 'Data SBP Measures'!$U3446","v":"# of family violence cases indictedSpecial Victims Unit - 123"},{"$f":"_xlfn.XLOOKUP(VALUE(W3446),'Data SBP Programs'!O:O,'Data SBP Programs'!S:S)","v":"Special Victims Unit"}]
[{"$f":"'Data SBP Measures'!$AI2629&\" - \"&'Data SBP Measures'!$U2629","v":"Talent, Planning & Engagement - 111"},{"$f":"'Data SBP Measures'!$AF2629","v":"Average days to close an ER issue investigated by HR Services"},{"$f":"'Data SBP Measures'!$T2629","v":"3243"},{"$f":"'Data SBP Measures'!$U2629&B3447","v":"111Average days to close an ER issue investigated by HR Services"},{"$f":"'Data SBP Measures'!$Y2629","v":"DAYS"},null,null,null,null,null,"Talent, Planning & Engagement - 111","Average days to close an ER issue investigated by HR Services",null,null,null,null,null,null,null,"765","123","Y","45","Special Victims Unit","EACH","OUTPUT","BOTH",null,null,null,"Special Victims Unit","# of family violence cases completed",null,{"$f":"'Data SBP Measures'!$AF3447&'Data SBP Measures'!$AE3447& \" - \"& 'Data SBP Measures'!$U3447","v":"# of family violence cases completedSpecial Victims Unit - 123"},{"$f":"_xlfn.XLOOKUP(VALUE(W3447),'Data SBP Programs'!O:O,'Data SBP Programs'!S:S)","v":"Special Victims Unit"}]
[{"$f":"'Data SBP Measures'!$AI2787&\" - \"&'Data SBP Measures'!$U2787","v":"Talent, Planning & Engagement - 111"},{"$f":"'Data SBP Measures'!$AF2787","v":"Customized curriculums for departments"},{"$f":"'Data SBP Measures'!$T2787","v":"3376"},{"$f":"'Data SBP Measures'!$U2787&B3448","v":"111Customized curriculums for departments"},{"$f":"'Data SBP Measures'!$Y2787","v":"EACH"},null,null,null,null,null,"Talent, Planning & Engagement - 111","Customized curriculums for departments",null,null,null,null,null,null,null,"766","123","Y","44","Trial Courts","EACH","OUTPUT","NEITHER",null,null,null,"Trial Courts","# of juvenile petitions filed",null,{"$f":"'Data SBP Measures'!$AF3448&'Data SBP Measures'!$AE3448& \" - \"& 'Data SBP Measures'!$U3448","v":"# of juvenile petitions filedTrial Courts - 123"},{"$f":"_xlfn.XLOOKUP(VALUE(W3448),'Data SBP Programs'!O:O,'Data SBP Programs'!S:S)","v":"Civil Rights Unit"}]
[{"$f":"'Data SBP Measures'!$AI2374&\" - \"&'Data SBP Measures'!$U2374","v":"Technology & Communications - 147"},{"$f":"'Data SBP Measures'!$AF2374","v":"Number of Annual RRS Calls System Wide"},{"$f":"'Data SBP Measures'!$T2374","v":"2948"},{"$f":"'Data SBP Measures'!$U2374&B3449","v":"147Number of Annual RRS Calls System Wide"},{"$f":"'Data SBP Measures'!$Y2374","v":"EACH"},null,null,null,null,null,"Technology & Communications - 147","Number of Annual RRS Calls System Wide",null,null,null,null,null,null,null,"767","123","Y","44","Trial Courts","EACH","OUTPUT","BLACKBOOK",null,null,null,"Trial Courts","# of juvenile dispositions",null,{"$f":"'Data SBP Measures'!$AF3449&'Data SBP Measures'!$AE3449& \" - \"& 'Data SBP Measures'!$U3449","v":"# of juvenile dispositionsTrial Courts - 123"},{"$f":"_xlfn.XLOOKUP(VALUE(W3449),'Data SBP Programs'!O:O,'Data SBP Programs'!S:S)","v":"Civil Rights Unit"}]
[{"$f":"'Data SBP Measures'!$AI2367&\" - \"&'Data SBP Measures'!$U2367","v":"Technology & Communications - 147"},{"$f":"'Data SBP Measures'!$AF2367","v":"Number of CAD Incidents System-wide, CAD RMS"},{"$f":"'Data SBP Measures'!$T2367","v":"2941"},{"$f":"'Data SBP Measures'!$U2367&B3450","v":"147Number of CAD Incidents System-wide, CAD RMS"},{"$f":"'Data SBP Measures'!$Y2367","v":"EACH"},null,null,null,null,null,"Technology & Communications - 147","Number of CAD Incidents System-wide, CAD RMS",null,null,null,null,null,null,null,"768","123","Y","45","Special Victims Unit","EACH","OUTPUT","BLACKBOOK",null,null,null,"Special Victims Unit","# of civil petitions filed",null,{"$f":"'Data SBP Measures'!$AF3450&'Data SBP Measures'!$AE3450& \" - \"& 'Data SBP Measures'!$U3450","v":"# of civil petitions filedSpecial Victims Unit - 123"},{"$f":"_xlfn.XLOOKUP(VALUE(W3450),'Data SBP Programs'!O:O,'Data SBP Programs'!S:S)","v":"Special Victims Unit"}]
[{"$f":"'Data SBP Measures'!$AI2369&\" - \"&'Data SBP Measures'!$U2369","v":"Technology & Communications - 147"},{"$f":"'Data SBP Measures'!$AF2369","v":"Number of Emergency Calls, TCSO 9-1-1"},{"$f":"'Data SBP Measures'!$T2369","v":"2943"},{"$f":"'Data SBP Measures'!$U2369&B3451","v":"147Number of Emergency Calls, TCSO 9-1-1"},{"$f":"'Data SBP Measures'!$Y2369","v":"EACH"},null,null,null,null,null,"Technology & Communications - 147","Number of Emergency Calls, TCSO 9-1-1",null,null,null,null,null,null,null,"769","123","Y","45","Special Victims Unit","EACH","OUTPUT","BOTH",null,null,null,"Special Victims Unit","# of civil hearings conducted",null,{"$f":"'Data SBP Measures'!$AF3451&'Data SBP Measures'!$AE3451& \" - \"& 'Data SBP Measures'!$U3451","v":"# of civil hearings conductedSpecial Victims Unit - 123"},{"$f":"_xlfn.XLOOKUP(VALUE(W3451),'Data SBP Programs'!O:O,'Data SBP Programs'!S:S)","v":"Special Victims Unit"}]
[{"$f":"'Data SBP Measures'!$AI2378&\" - \"&'Data SBP Measures'!$U2378","v":"Technology & Communications - 147"},{"$f":"'Data SBP Measures'!$AF2378","v":"Number of RRS Simulcast Radio Tower Sites"},{"$f":"'Data SBP Measures'!$T2378","v":"2951"},{"$f":"'Data SBP Measures'!$U2378&B3452","v":"147Number of RRS Simulcast Radio Tower Sites"},{"$f":"'Data SBP Measures'!$Y2378","v":"EACH"},null,null,null,null,null,"Technology & Communications - 147","Number of RRS Simulcast Radio Tower Sites",null,null,null,null,null,null,null,"770","123","N","46","Intake/Diversion","EACH","OUTPUT","BOTH",null,null,null,"Intake/Diversion","# of cases received",null,{"$f":"'Data SBP Measures'!$AF3452&'Data SBP Measures'!$AE3452& \" - \"& 'Data SBP Measures'!$U3452","v":"# of cases receivedIntake/Diversion - 123"},{"$f":"_xlfn.XLOOKUP(VALUE(W3452),'Data SBP Programs'!O:O,'Data SBP Programs'!S:S)","v":"Diversion, Youth Justice, & Violence Prevention\n"}]
[{"$f":"'Data SBP Measures'!$AI2377&\" - \"&'Data SBP Measures'!$U2377","v":"Technology & Communications - 147"},{"$f":"'Data SBP Measures'!$AF2377","v":"Number of Travis County \"Associate\" Subscriber Radios on RRS"},{"$f":"'Data SBP Measures'!$T2377","v":"2950"},{"$f":"'Data SBP Measures'!$U2377&B3453","v":"147Number of Travis County \"Associate\" Subscriber Radios on RRS"},{"$f":"'Data SBP Measures'!$Y2377","v":"EACH"},null,null,null,null,null,"Technology & Communications - 147","Number of Travis County \"Associate\" Subscriber Radios on RRS",null,null,null,null,null,null,null,"771","123","N","46","Intake/Diversion","EACH","OUTPUT","BOTH",null,null,null,"Intake/Diversion","# of cases presented to grand jury",null,{"$f":"'Data SBP Measures'!$AF3453&'Data SBP Measures'!$AE3453& \" - \"& 'Data SBP Measures'!$U3453","v":"# of cases presented to grand juryIntake/Diversion - 123"},{"$f":"_xlfn.XLOOKUP(VALUE(W3453),'Data SBP Programs'!O:O,'Data SBP Programs'!S:S)","v":"Diversion, Youth Justice, & Violence Prevention\n"}]
[{"$f":"'Data SBP Measures'!$AI2373&\" - \"&'Data SBP Measures'!$U2373","v":"Technology & Communications - 147"},{"$f":"'Data SBP Measures'!$AF2373","v":"Number of Travis County Subscriber Radios on RRS"},{"$f":"'Data SBP Measures'!$T2373","v":"2947"},{"$f":"'Data SBP Measures'!$U2373&B3454","v":"147Number of Travis County Subscriber Radios on RRS"},{"$f":"'Data SBP Measures'!$Y2373","v":"EACH"},null,null,null,null,null,"Technology & Communications - 147","Number of Travis County Subscriber Radios on RRS",null,null,null,null,null,null,null,"772","123","N","46","Intake/Diversion","EACH","OUTPUT","NEITHER",null,null,null,"Intake/Diversion","# of informations filed",null,{"$f":"'Data SBP Measures'!$AF3454&'Data SBP Measures'!$AE3454& \" - \"& 'Data SBP Measures'!$U3454","v":"# of informations filedIntake/Diversion - 123"},{"$f":"_xlfn.XLOOKUP(VALUE(W3454),'Data SBP Programs'!O:O,'Data SBP Programs'!S:S)","v":"Diversion, Youth Justice, & Violence Prevention\n"}]
[{"$f":"'Data SBP Measures'!$AI2364&\" - \"&'Data SBP Measures'!$U2364","v":"Technology & Communications - 147"},{"$f":"'Data SBP Measures'!$AF2364","v":"Number of TriTech CAD-Mobile Client Licenses Assigned to Travis County"},{"$f":"'Data SBP Measures'!$T2364","v":"2939"},{"$f":"'Data SBP Measures'!$U2364&B3455","v":"147Number of TriTech CAD-Mobile Client Licenses Assigned to Travis County"},{"$f":"'Data SBP Measures'!$Y2364","v":"EACH"},null,null,null,null,null,"Technology & Communications - 147","Number of TriTech CAD-Mobile Client Licenses Assigned to Travis County",null,null,null,null,null,null,null,"773","123","N","46","Intake/Diversion","DAYS","OUTCOME","NEITHER",null,null,null,"Intake/Diversion","Avg # of days bt. date received and indictment on all cases",null,{"$f":"'Data SBP Measures'!$AF3455&'Data SBP Measures'!$AE3455& \" - \"& 'Data SBP Measures'!$U3455","v":"Avg # of days bt. date received and indictment on all casesIntake/Diversion - 123"},{"$f":"_xlfn.XLOOKUP(VALUE(W3455),'Data SBP Programs'!O:O,'Data SBP Programs'!S:S)","v":"Diversion, Youth Justice, & Violence Prevention\n"}]
[{"$f":"'Data SBP Measures'!$AI2366&\" - \"&'Data SBP Measures'!$U2366","v":"Technology & Communications - 147"},{"$f":"'Data SBP Measures'!$AF2366","v":"Number of TriTech CAD-Mobile Client Licenses Assigned to Travis County as \"Other Agencies Dispatched\""},{"$f":"'Data SBP Measures'!$T2366","v":"2940"},{"$f":"'Data SBP Measures'!$U2366&B3456","v":"147Number of TriTech CAD-Mobile Client Licenses Assigned to Travis County as \"Other Agencies Dispatched\""},{"$f":"'Data SBP Measures'!$Y2366","v":"EACH"},null,null,null,null,null,"Technology & Communications - 147","Number of TriTech CAD-Mobile Client Licenses Assigned to Travis County as \"Other Agencies Dispatched\"",null,null,null,null,null,null,null,"774","123","N","46","Intake/Diversion","DAYS","OUTCOME","BLACKBOOK",null,null,null,"Intake/Diversion","Avg days b/t date received and information on all cases",null,{"$f":"'Data SBP Measures'!$AF3456&'Data SBP Measures'!$AE3456& \" - \"& 'Data SBP Measures'!$U3456","v":"Avg days b/t date received and information on all casesIntake/Diversion - 123"},{"$f":"_xlfn.XLOOKUP(VALUE(W3456),'Data SBP Programs'!O:O,'Data SBP Programs'!S:S)","v":"Diversion, Youth Justice, & Violence Prevention\n"}]
[{"$f":"'Data SBP Measures'!$AI2368&\" - \"&'Data SBP Measures'!$U2368","v":"Technology & Communications - 147"},{"$f":"'Data SBP Measures'!$AF2368","v":"Percentage of CAD Incidents Specific to Travis County"},{"$f":"'Data SBP Measures'!$T2368","v":"2942"},{"$f":"'Data SBP Measures'!$U2368&B3457","v":"147Percentage of CAD Incidents Specific to Travis County"},{"$f":"'Data SBP Measures'!$Y2368","v":"PERCENT"},null,null,null,null,null,"Technology & Communications - 147","Percentage of CAD Incidents Specific to Travis County",null,null,null,null,null,null,null,"775","123","N","46","Intake/Diversion","EACH","OUTCOME","NEITHER",null,null,null,"Intake/Diversion","Avg # of cases presented per attorney",null,{"$f":"'Data SBP Measures'!$AF3457&'Data SBP Measures'!$AE3457& \" - \"& 'Data SBP Measures'!$U3457","v":"Avg # of cases presented per attorneyIntake/Diversion - 123"},{"$f":"_xlfn.XLOOKUP(VALUE(W3457),'Data SBP Programs'!O:O,'Data SBP Programs'!S:S)","v":"Diversion, Youth Justice, & Violence Prevention\n"}]
[{"$f":"'Data SBP Measures'!$AI2375&\" - \"&'Data SBP Measures'!$U2375","v":"Technology & Communications - 147"},{"$f":"'Data SBP Measures'!$AF2375","v":"RRS System Wide Area Channel Availability"},{"$f":"'Data SBP Measures'!$T2375","v":"2949"},{"$f":"'Data SBP Measures'!$U2375&B3458","v":"147RRS System Wide Area Channel Availability"},{"$f":"'Data SBP Measures'!$Y2375","v":"PERCENT"},null,null,null,null,null,"Technology & Communications - 147","RRS System Wide Area Channel Availability",null,null,null,null,null,null,null,"776","123","N","46","Intake/Diversion","EACH","OUTPUT","NEITHER",null,null,null,"Intake/Diversion","# of Mobile Device Warrants and Orders",null,{"$f":"'Data SBP Measures'!$AF3458&'Data SBP Measures'!$AE3458& \" - \"& 'Data SBP Measures'!$U3458","v":"# of Mobile Device Warrants and OrdersIntake/Diversion - 123"},{"$f":"_xlfn.XLOOKUP(VALUE(W3458),'Data SBP Programs'!O:O,'Data SBP Programs'!S:S)","v":"Diversion, Youth Justice, & Violence Prevention\n"}]
[{"$f":"'Data SBP Measures'!$AI2371&\" - \"&'Data SBP Measures'!$U2371","v":"Technology & Communications - 147"},{"$f":"'Data SBP Measures'!$AF2371","v":"Uptime Availability Percentage for Public Safety Computer Network CTECC IT"},{"$f":"'Data SBP Measures'!$T2371","v":"2945"},{"$f":"'Data SBP Measures'!$U2371&B3459","v":"147Uptime Availability Percentage for Public Safety Computer Network CTECC IT"},{"$f":"'Data SBP Measures'!$Y2371","v":"PERCENT"},null,null,null,null,null,"Technology & Communications - 147","Uptime Availability Percentage for Public Safety Computer Network CTECC IT",null,null,null,null,null,null,null,"780","123","Y","48","Public Integrity & Complex Crimes\n","EACH","INPUT","NEITHER",null,null,null,"Public Integrity & Complex Crimes\n","WCCU case referrals & complaints received",null,{"$f":"'Data SBP Measures'!$AF3459&'Data SBP Measures'!$AE3459& \" - \"& 'Data SBP Measures'!$U3459","v":"WCCU case referrals & complaints receivedPublic Integrity & Complex Crimes\n - 123"},{"$f":"_xlfn.XLOOKUP(VALUE(W3459),'Data SBP Programs'!O:O,'Data SBP Programs'!S:S)","v":"Public Integrity & Complex Crimes\n"}]
[{"$f":"'Data SBP Measures'!$AI2372&\" - \"&'Data SBP Measures'!$U2372","v":"Technology & Communications - 147"},{"$f":"'Data SBP Measures'!$AF2372","v":"Uptime Availability Percentage for Public Safety Computer Premium AC Power CTECC IT"},{"$f":"'Data SBP Measures'!$T2372","v":"2946"},{"$f":"'Data SBP Measures'!$U2372&B3460","v":"147Uptime Availability Percentage for Public Safety Computer Premium AC Power CTECC IT"},{"$f":"'Data SBP Measures'!$Y2372","v":"PERCENT"},null,null,null,null,null,"Technology & Communications - 147","Uptime Availability Percentage for Public Safety Computer Premium AC Power CTECC IT",null,null,null,null,null,null,null,"781","123","Y","48","Public Integrity & Complex Crimes\n","EACH","OUTPUT","NEITHER",null,null,null,"Public Integrity & Complex Crimes\n","WCCU cases opened",null,{"$f":"'Data SBP Measures'!$AF3460&'Data SBP Measures'!$AE3460& \" - \"& 'Data SBP Measures'!$U3460","v":"WCCU cases openedPublic Integrity & Complex Crimes\n - 123"},{"$f":"_xlfn.XLOOKUP(VALUE(W3460),'Data SBP Programs'!O:O,'Data SBP Programs'!S:S)","v":"Public Integrity & Complex Crimes\n"}]
[{"$f":"'Data SBP Measures'!$AI2370&\" - \"&'Data SBP Measures'!$U2370","v":"Technology & Communications - 147"},{"$f":"'Data SBP Measures'!$AF2370","v":"Uptime Availability Percentage for Public Safety Computer Servers, CTECC IT"},{"$f":"'Data SBP Measures'!$T2370","v":"2944"},{"$f":"'Data SBP Measures'!$U2370&B3461","v":"147Uptime Availability Percentage for Public Safety Computer Servers, CTECC IT"},{"$f":"'Data SBP Measures'!$Y2370","v":"PERCENT"},null,null,null,null,null,"Technology & Communications - 147","Uptime Availability Percentage for Public Safety Computer Servers, CTECC IT",null,null,null,null,null,null,null,"782","123","Y","48","Public Integrity & Complex Crimes\n","EACH","OUTPUT","NEITHER",null,null,null,"Public Integrity & Complex Crimes\n","WCCU cases filed in court",null,{"$f":"'Data SBP Measures'!$AF3461&'Data SBP Measures'!$AE3461& \" - \"& 'Data SBP Measures'!$U3461","v":"WCCU cases filed in courtPublic Integrity & Complex Crimes\n - 123"},{"$f":"_xlfn.XLOOKUP(VALUE(W3461),'Data SBP Programs'!O:O,'Data SBP Programs'!S:S)","v":"Public Integrity & Complex Crimes\n"}]
[{"$f":"'Data SBP Measures'!$AI2056&\" - \"&'Data SBP Measures'!$U2056","v":"Telecommunications - 132"},{"$f":"'Data SBP Measures'!$AF2056","v":"Civil Service"},{"$f":"'Data SBP Measures'!$T2056","v":"2639"},{"$f":"'Data SBP Measures'!$U2056&B3462","v":"132Civil Service"},{"$f":"'Data SBP Measures'!$Y2056","v":"EACH"},null,null,null,null,null,"Telecommunications - 132","Civil Service",null,null,null,null,null,null,null,"783","123","Y","48","Public Integrity & Complex Crimes\n","EACH","OUTPUT","NEITHER",null,null,null,"Public Integrity & Complex Crimes\n","WCCU cases resolved",null,{"$f":"'Data SBP Measures'!$AF3462&'Data SBP Measures'!$AE3462& \" - \"& 'Data SBP Measures'!$U3462","v":"WCCU cases resolvedPublic Integrity & Complex Crimes\n - 123"},{"$f":"_xlfn.XLOOKUP(VALUE(W3462),'Data SBP Programs'!O:O,'Data SBP Programs'!S:S)","v":"Public Integrity & Complex Crimes\n"}]
[{"$f":"'Data SBP Measures'!$AI2060&\" - \"&'Data SBP Measures'!$U2060","v":"Telecommunications - 132"},{"$f":"'Data SBP Measures'!$AF2060","v":"Haz. Traffic Violations"},{"$f":"'Data SBP Measures'!$T2060","v":"2642"},{"$f":"'Data SBP Measures'!$U2060&B3463","v":"132Haz. Traffic Violations"},{"$f":"'Data SBP Measures'!$Y2060","v":"EACH"},null,null,null,null,null,"Telecommunications - 132","Haz. Traffic Violations",null,null,null,null,null,null,null,"784","123","Y","48","Public Integrity & Complex Crimes\n","DOLLARS","OUTCOME","NEITHER",null,null,null,"Public Integrity & Complex Crimes\n","WCCU restitution ordered",null,{"$f":"'Data SBP Measures'!$AF3463&'Data SBP Measures'!$AE3463& \" - \"& 'Data SBP Measures'!$U3463","v":"WCCU restitution orderedPublic Integrity & Complex Crimes\n - 123"},{"$f":"_xlfn.XLOOKUP(VALUE(W3463),'Data SBP Programs'!O:O,'Data SBP Programs'!S:S)","v":"Public Integrity & Complex Crimes\n"}]
[{"$f":"'Data SBP Measures'!$AI2055&\" - \"&'Data SBP Measures'!$U2055","v":"Telecommunications - 132"},{"$f":"'Data SBP Measures'!$AF2055","v":"Other Incidents"},{"$f":"'Data SBP Measures'!$T2055","v":"2638"},{"$f":"'Data SBP Measures'!$U2055&B3464","v":"132Other Incidents"},{"$f":"'Data SBP Measures'!$Y2055","v":"EACH"},null,null,null,null,null,"Telecommunications - 132","Other Incidents",null,null,null,null,null,null,null,"785","123","Y","48","Public Integrity & Complex Crimes\n","EACH","INPUT","BOTH",null,null,null,"Public Integrity & Complex Crimes\n","PIU cases & complaints received",null,{"$f":"'Data SBP Measures'!$AF3464&'Data SBP Measures'!$AE3464& \" - \"& 'Data SBP Measures'!$U3464","v":"PIU cases & complaints receivedPublic Integrity & Complex Crimes\n - 123"},{"$f":"_xlfn.XLOOKUP(VALUE(W3464),'Data SBP Programs'!O:O,'Data SBP Programs'!S:S)","v":"Public Integrity & Complex Crimes\n"}]
[{"$f":"'Data SBP Measures'!$AI2262&\" - \"&'Data SBP Measures'!$U2262","v":"Telecommunications - 132"},{"$f":"'Data SBP Measures'!$AF2262","v":"Total Incidents"},{"$f":"'Data SBP Measures'!$T2262","v":"2797"},{"$f":"'Data SBP Measures'!$U2262&B3465","v":"132Total Incidents"},{"$f":"'Data SBP Measures'!$Y2262","v":"EACH"},null,null,null,null,null,"Telecommunications - 132","Total Incidents",null,null,null,null,null,null,null,"786","123","Y","48","Public Integrity & Complex Crimes\n","EACH","OUTPUT","NEITHER",null,null,null,"Public Integrity & Complex Crimes\n","PIU cases opened",null,{"$f":"'Data SBP Measures'!$AF3465&'Data SBP Measures'!$AE3465& \" - \"& 'Data SBP Measures'!$U3465","v":"PIU cases openedPublic Integrity & Complex Crimes\n - 123"},{"$f":"_xlfn.XLOOKUP(VALUE(W3465),'Data SBP Programs'!O:O,'Data SBP Programs'!S:S)","v":"Public Integrity & Complex Crimes\n"}]
[{"$f":"'Data SBP Measures'!$AI2452&\" - \"&'Data SBP Measures'!$U2452","v":"Telecommunications - 132"},{"$f":"'Data SBP Measures'!$AF2452","v":"Total Telecom Entries"},{"$f":"'Data SBP Measures'!$T2452","v":"3091"},{"$f":"'Data SBP Measures'!$U2452&B3466","v":"132Total Telecom Entries"},{"$f":"'Data SBP Measures'!$Y2452","v":"EACH"},null,null,null,null,null,"Telecommunications - 132","Total Telecom Entries",null,null,null,null,null,null,null,"787","123","Y","48","Public Integrity & Complex Crimes\n","EACH","OUTPUT","NEITHER",null,null,null,"Public Integrity & Complex Crimes\n","PIU cases filed in court",null,{"$f":"'Data SBP Measures'!$AF3466&'Data SBP Measures'!$AE3466& \" - \"& 'Data SBP Measures'!$U3466","v":"PIU cases filed in courtPublic Integrity & Complex Crimes\n - 123"},{"$f":"_xlfn.XLOOKUP(VALUE(W3466),'Data SBP Programs'!O:O,'Data SBP Programs'!S:S)","v":"Public Integrity & Complex Crimes\n"}]
[{"$f":"'Data SBP Measures'!$AI2059&\" - \"&'Data SBP Measures'!$U2059","v":"Telecommunications - 132"},{"$f":"'Data SBP Measures'!$AF2059","v":"Traffic Collisions"},{"$f":"'Data SBP Measures'!$T2059","v":"2641"},{"$f":"'Data SBP Measures'!$U2059&B3467","v":"132Traffic Collisions"},{"$f":"'Data SBP Measures'!$Y2059","v":"EACH"},null,null,null,null,null,"Telecommunications - 132","Traffic Collisions",null,null,null,null,null,null,null,"788","123","Y","48","Public Integrity & Complex Crimes\n","EACH","OUTPUT","BOTH",null,null,null,"Public Integrity & Complex Crimes\n","PIU cases resolved",null,{"$f":"'Data SBP Measures'!$AF3467&'Data SBP Measures'!$AE3467& \" - \"& 'Data SBP Measures'!$U3467","v":"PIU cases resolvedPublic Integrity & Complex Crimes\n - 123"},{"$f":"_xlfn.XLOOKUP(VALUE(W3467),'Data SBP Programs'!O:O,'Data SBP Programs'!S:S)","v":"Public Integrity & Complex Crimes\n"}]
[{"$f":"'Data SBP Measures'!$AI2058&\" - \"&'Data SBP Measures'!$U2058","v":"Telecommunications - 132"},{"$f":"'Data SBP Measures'!$AF2058","v":"Warrant Service"},{"$f":"'Data SBP Measures'!$T2058","v":"2640"},{"$f":"'Data SBP Measures'!$U2058&B3468","v":"132Warrant Service"},{"$f":"'Data SBP Measures'!$Y2058","v":"EACH"},null,null,null,null,null,"Telecommunications - 132","Warrant Service",null,null,null,null,null,null,null,"789","123","Y","48","Public Integrity & Complex Crimes\n","DOLLARS","OUTCOME","NEITHER",null,null,null,"Public Integrity & Complex Crimes\n","PIU restitution ordered",null,{"$f":"'Data SBP Measures'!$AF3468&'Data SBP Measures'!$AE3468& \" - \"& 'Data SBP Measures'!$U3468","v":"PIU restitution orderedPublic Integrity & Complex Crimes\n - 123"},{"$f":"_xlfn.XLOOKUP(VALUE(W3468),'Data SBP Programs'!O:O,'Data SBP Programs'!S:S)","v":"Public Integrity & Complex Crimes\n"}]
[{"$f":"'Data SBP Measures'!$AI171&\" - \"&'Data SBP Measures'!$U171","v":"Texas A&M AgriLife Extension Service - 158"},{"$f":"'Data SBP Measures'!$AF171","v":"Educational contacts reached by Volunteers\n"},{"$f":"'Data SBP Measures'!$T171","v":"1207"},{"$f":"'Data SBP Measures'!$U171&B3469","v":"158Educational contacts reached by Volunteers\n"},{"$f":"'Data SBP Measures'!$Y171","v":"EACH"},null,null,null,null,null,"Texas A&M AgriLife Extension Service - 158","Educational contacts reached by Volunteers\n",null,null,null,null,null,null,null,"790","123","Y","48","Public Integrity & Complex Crimes\n","EACH","OUTPUT","NEITHER",null,null,null,"Public Integrity & Complex Crimes\n","Asset forfeiture petitions initiated\n",null,{"$f":"'Data SBP Measures'!$AF3469&'Data SBP Measures'!$AE3469& \" - \"& 'Data SBP Measures'!$U3469","v":"Asset forfeiture petitions initiated\nPublic Integrity & Complex Crimes\n - 123"},{"$f":"_xlfn.XLOOKUP(VALUE(W3469),'Data SBP Programs'!O:O,'Data SBP Programs'!S:S)","v":"Public Integrity & Complex Crimes\n"}]
[{"$f":"'Data SBP Measures'!$AI172&\" - \"&'Data SBP Measures'!$U172","v":"Texas A&M AgriLife Extension Service - 158"},{"$f":"'Data SBP Measures'!$AF172","v":"Educational Programs Presented"},{"$f":"'Data SBP Measures'!$T172","v":"1208"},{"$f":"'Data SBP Measures'!$U172&B3470","v":"158Educational Programs Presented"},{"$f":"'Data SBP Measures'!$Y172","v":"EACH"},null,null,null,null,null,"Texas A&M AgriLife Extension Service - 158","Educational Programs Presented",null,null,null,null,null,null,null,"791","123","Y","48","Public Integrity & Complex Crimes\n","EACH","OUTPUT","NEITHER",null,null,null,"Public Integrity & Complex Crimes\n","Asset forfeiture cases resolved",null,{"$f":"'Data SBP Measures'!$AF3470&'Data SBP Measures'!$AE3470& \" - \"& 'Data SBP Measures'!$U3470","v":"Asset forfeiture cases resolvedPublic Integrity & Complex Crimes\n - 123"},{"$f":"_xlfn.XLOOKUP(VALUE(W3470),'Data SBP Programs'!O:O,'Data SBP Programs'!S:S)","v":"Public Integrity & Complex Crimes\n"}]
[{"$f":"'Data SBP Measures'!$AI173&\" - \"&'Data SBP Measures'!$U173","v":"Texas A&M AgriLife Extension Service - 158"},{"$f":"'Data SBP Measures'!$AF173","v":"Office/Site/Phone/Email Contacts"},{"$f":"'Data SBP Measures'!$T173","v":"1209"},{"$f":"'Data SBP Measures'!$U173&B3471","v":"158Office/Site/Phone/Email Contacts"},{"$f":"'Data SBP Measures'!$Y173","v":"EACH"},null,null,null,null,null,"Texas A&M AgriLife Extension Service - 158","Office/Site/Phone/Email Contacts",null,null,null,null,null,null,null,"792","123","Y","48","Public Integrity & Complex Crimes\n","DOLLARS","OUTPUT","NEITHER",null,null,null,"Public Integrity & Complex Crimes\n","Total Amount of Assets Forfeited",null,{"$f":"'Data SBP Measures'!$AF3471&'Data SBP Measures'!$AE3471& \" - \"& 'Data SBP Measures'!$U3471","v":"Total Amount of Assets ForfeitedPublic Integrity & Complex Crimes\n - 123"},{"$f":"_xlfn.XLOOKUP(VALUE(W3471),'Data SBP Programs'!O:O,'Data SBP Programs'!S:S)","v":"Public Integrity & Complex Crimes\n"}]
[{"$f":"'Data SBP Measures'!$AI2338&\" - \"&'Data SBP Measures'!$U2338","v":"Texas A&M AgriLife Extension Service - 158"},{"$f":"'Data SBP Measures'!$AF2338","v":"Percentage of students wanting a job related to science"},{"$f":"'Data SBP Measures'!$T2338","v":"2900"},{"$f":"'Data SBP Measures'!$U2338&B3472","v":"158Percentage of students wanting a job related to science"},{"$f":"'Data SBP Measures'!$Y2338","v":"PERCENT"},null,null,null,null,null,"Texas A&M AgriLife Extension Service - 158","Percentage of students wanting a job related to science",null,null,null,null,null,null,null,"793","123","Y","49","Civil Rights Unit","EACH","INPUT","BOTH",null,null,null,"Civil Rights Unit","Civil Rights investigations opened\n",null,{"$f":"'Data SBP Measures'!$AF3472&'Data SBP Measures'!$AE3472& \" - \"& 'Data SBP Measures'!$U3472","v":"Civil Rights investigations opened\nCivil Rights Unit - 123"},{"$f":"_xlfn.XLOOKUP(VALUE(W3472),'Data SBP Programs'!O:O,'Data SBP Programs'!S:S)","v":"Civil Rights Unit"}]
[{"$f":"'Data SBP Measures'!$AI2335&\" - \"&'Data SBP Measures'!$U2335","v":"Texas A&M AgriLife Extension Service - 158"},{"$f":"'Data SBP Measures'!$AF2335","v":"Percentage of students who know an adult who is a scientist/uses science for their job"},{"$f":"'Data SBP Measures'!$T2335","v":"2899"},{"$f":"'Data SBP Measures'!$U2335&B3473","v":"158Percentage of students who know an adult who is a scientist/uses science for their job"},{"$f":"'Data SBP Measures'!$Y2335","v":"PERCENT"},null,null,null,null,null,"Texas A&M AgriLife Extension Service - 158","Percentage of students who know an adult who is a scientist/uses science for their job",null,null,null,null,null,null,null,"794","123","Y","49","Civil Rights Unit","EACH","OUTPUT","BOTH",null,null,null,"Civil Rights Unit","Civil Rights investigations presented to a GJ\n",null,{"$f":"'Data SBP Measures'!$AF3473&'Data SBP Measures'!$AE3473& \" - \"& 'Data SBP Measures'!$U3473","v":"Civil Rights investigations presented to a GJ\nCivil Rights Unit - 123"},{"$f":"_xlfn.XLOOKUP(VALUE(W3473),'Data SBP Programs'!O:O,'Data SBP Programs'!S:S)","v":"Civil Rights Unit"}]
[{"$f":"'Data SBP Measures'!$AI175&\" - \"&'Data SBP Measures'!$U175","v":"Texas A&M AgriLife Extension Service - 158"},{"$f":"'Data SBP Measures'!$AF175","v":"Total Educational Contacts Reached\n"},{"$f":"'Data SBP Measures'!$T175","v":"1210"},{"$f":"'Data SBP Measures'!$U175&B3474","v":"158Total Educational Contacts Reached\n"},{"$f":"'Data SBP Measures'!$Y175","v":"EACH"},null,null,null,null,null,"Texas A&M AgriLife Extension Service - 158","Total Educational Contacts Reached\n",null,null,null,null,null,null,null,"797","123","Y","43","Operations","EACH","INPUT","BLACKBOOK",null,null,null,"Operations","# of open records requests",null,{"$f":"'Data SBP Measures'!$AF3474&'Data SBP Measures'!$AE3474& \" - \"& 'Data SBP Measures'!$U3474","v":"# of open records requestsOperations - 123"},{"$f":"_xlfn.XLOOKUP(VALUE(W3474),'Data SBP Programs'!O:O,'Data SBP Programs'!S:S)","v":"Operations"}]
[{"$f":"'Data SBP Measures'!$AI176&\" - \"&'Data SBP Measures'!$U176","v":"Texas A&M AgriLife Extension Service - 158"},{"$f":"'Data SBP Measures'!$AF176","v":"Volunteers Trained"},{"$f":"'Data SBP Measures'!$T176","v":"1211"},{"$f":"'Data SBP Measures'!$U176&B3475","v":"158Volunteers Trained"},{"$f":"'Data SBP Measures'!$Y176","v":"EACH"},null,null,null,null,null,"Texas A&M AgriLife Extension Service - 158","Volunteers Trained",null,null,null,null,null,null,null,"8","106","Y","178","Auditor's Office","PERCENT","OUTCOME","ADOPTEDBUD",null,null,null,"Auditor's Office","% paid invoiced amts. compliant w/Prompt Payment Act req'ts",null,{"$f":"'Data SBP Measures'!$AF3475&'Data SBP Measures'!$AE3475& \" - \"& 'Data SBP Measures'!$U3475","v":"% paid invoiced amts. compliant w/Prompt Payment Act req'tsAuditor's Office - 106"},{"$f":"_xlfn.XLOOKUP(VALUE(W3475),'Data SBP Programs'!O:O,'Data SBP Programs'!S:S)","v":"Auditor's Office"}]
[{"$f":"'Data SBP Measures'!$AI181&\" - \"&'Data SBP Measures'!$U181","v":"The Children’s Partnership/Community Partners for Children - 158"},{"$f":"'Data SBP Measures'!$AF181","v":"Number of children enrolled by TCP"},{"$f":"'Data SBP Measures'!$T181","v":"1216"},{"$f":"'Data SBP Measures'!$U181&B3476","v":"158Number of children enrolled by TCP"},{"$f":"'Data SBP Measures'!$Y181","v":"EACH"},null,null,null,null,null,"The Children’s Partnership/Community Partners for Children - 158","Number of children enrolled by TCP",null,null,null,null,null,null,null,"803","123","N","46","Intake/Diversion","EACH","OUTPUT","NEITHER",null,null,null,"Intake/Diversion","# of mental health felony defendants handled by the team",null,{"$f":"'Data SBP Measures'!$AF3476&'Data SBP Measures'!$AE3476& \" - \"& 'Data SBP Measures'!$U3476","v":"# of mental health felony defendants handled by the teamIntake/Diversion - 123"},{"$f":"_xlfn.XLOOKUP(VALUE(W3476),'Data SBP Programs'!O:O,'Data SBP Programs'!S:S)","v":"Diversion, Youth Justice, & Violence Prevention\n"}]
[{"$f":"'Data SBP Measures'!$AI192&\" - \"&'Data SBP Measures'!$U192","v":"The Children’s Partnership/Community Partners for Children - 158"},{"$f":"'Data SBP Measures'!$AF192","v":"Number of children served with care coordination services enrolled in both TCP and CPC bridge programs"},{"$f":"'Data SBP Measures'!$T192","v":"1227"},{"$f":"'Data SBP Measures'!$U192&B3477","v":"158Number of children served with care coordination services enrolled in both TCP and CPC bridge programs"},{"$f":"'Data SBP Measures'!$Y192","v":"EACH"},null,null,null,null,null,"The Children’s Partnership/Community Partners for Children - 158","Number of children served with care coordination services enrolled in both TCP and CPC bridge programs",null,null,null,null,null,null,null,"804","123","N","46","Intake/Diversion","EACH","OUTPUT","NEITHER",null,null,null,"Intake/Diversion","# of mental health felony cases handled by the team",null,{"$f":"'Data SBP Measures'!$AF3477&'Data SBP Measures'!$AE3477& \" - \"& 'Data SBP Measures'!$U3477","v":"# of mental health felony cases handled by the teamIntake/Diversion - 123"},{"$f":"_xlfn.XLOOKUP(VALUE(W3477),'Data SBP Programs'!O:O,'Data SBP Programs'!S:S)","v":"Diversion, Youth Justice, & Violence Prevention\n"}]
[{"$f":"'Data SBP Measures'!$AI182&\" - \"&'Data SBP Measures'!$U182","v":"The Children’s Partnership/Community Partners for Children - 158"},{"$f":"'Data SBP Measures'!$AF182","v":"Number of children staffed at CPC"},{"$f":"'Data SBP Measures'!$T182","v":"1217"},{"$f":"'Data SBP Measures'!$U182&B3478","v":"158Number of children staffed at CPC"},{"$f":"'Data SBP Measures'!$Y182","v":"EACH"},null,null,null,null,null,"The Children’s Partnership/Community Partners for Children - 158","Number of children staffed at CPC",null,null,null,null,null,null,null,"805","123","Y","48","Public Integrity & Complex Crimes\n","EACH","INPUT","NEITHER",null,null,null,"Public Integrity & Complex Crimes\n","Environmental Case Referrals and Complaints Received",null,{"$f":"'Data SBP Measures'!$AF3478&'Data SBP Measures'!$AE3478& \" - \"& 'Data SBP Measures'!$U3478","v":"Environmental Case Referrals and Complaints ReceivedPublic Integrity & Complex Crimes\n - 123"},{"$f":"_xlfn.XLOOKUP(VALUE(W3478),'Data SBP Programs'!O:O,'Data SBP Programs'!S:S)","v":"Public Integrity & Complex Crimes\n"}]
[{"$f":"'Data SBP Measures'!$AI191&\" - \"&'Data SBP Measures'!$U191","v":"The Children’s Partnership/Community Partners for Children - 158"},{"$f":"'Data SBP Measures'!$AF191","v":"Number of children/youth enrolled in TRIAD program to access residential treatment for severe emotional disturbance and at-risk behaviors"},{"$f":"'Data SBP Measures'!$T191","v":"1226"},{"$f":"'Data SBP Measures'!$U191&B3479","v":"158Number of children/youth enrolled in TRIAD program to access residential treatment for severe emotional disturbance and at-risk behaviors"},{"$f":"'Data SBP Measures'!$Y191","v":"EACH"},null,null,null,null,null,"The Children’s Partnership/Community Partners for Children - 158","Number of children/youth enrolled in TRIAD program to access residential treatment for severe emotional disturbance and at-risk behaviors",null,null,null,null,null,null,null,"806","123","Y","48","Public Integrity & Complex Crimes\n","EACH","OUTPUT","NEITHER",null,null,null,"Public Integrity & Complex Crimes\n","Environmental Cases Resolved",null,{"$f":"'Data SBP Measures'!$AF3479&'Data SBP Measures'!$AE3479& \" - \"& 'Data SBP Measures'!$U3479","v":"Environmental Cases ResolvedPublic Integrity & Complex Crimes\n - 123"},{"$f":"_xlfn.XLOOKUP(VALUE(W3479),'Data SBP Programs'!O:O,'Data SBP Programs'!S:S)","v":"Public Integrity & Complex Crimes\n"}]
[{"$f":"'Data SBP Measures'!$AI183&\" - \"&'Data SBP Measures'!$U183","v":"The Children’s Partnership/Community Partners for Children - 158"},{"$f":"'Data SBP Measures'!$AF183","v":"Number of families served by TCP"},{"$f":"'Data SBP Measures'!$T183","v":"1218"},{"$f":"'Data SBP Measures'!$U183&B3480","v":"158Number of families served by TCP"},{"$f":"'Data SBP Measures'!$Y183","v":"EACH"},null,null,null,null,null,"The Children’s Partnership/Community Partners for Children - 158","Number of families served by TCP",null,null,null,null,null,null,null,"807","123","Y","48","Public Integrity & Complex Crimes\n","DOLLARS","OUTCOME","NEITHER",null,null,null,"Public Integrity & Complex Crimes\n","Environmental Fines Ordered and Collected",null,{"$f":"'Data SBP Measures'!$AF3480&'Data SBP Measures'!$AE3480& \" - \"& 'Data SBP Measures'!$U3480","v":"Environmental Fines Ordered and CollectedPublic Integrity & Complex Crimes\n - 123"},{"$f":"_xlfn.XLOOKUP(VALUE(W3480),'Data SBP Programs'!O:O,'Data SBP Programs'!S:S)","v":"Public Integrity & Complex Crimes\n"}]
[{"$f":"'Data SBP Measures'!$AI193&\" - \"&'Data SBP Measures'!$U193","v":"The Children’s Partnership/Community Partners for Children - 158"},{"$f":"'Data SBP Measures'!$AF193","v":"Number of families served with Parent Liaison Services"},{"$f":"'Data SBP Measures'!$T193","v":"1228"},{"$f":"'Data SBP Measures'!$U193&B3481","v":"158Number of families served with Parent Liaison Services"},{"$f":"'Data SBP Measures'!$Y193","v":"EACH"},null,null,null,null,null,"The Children’s Partnership/Community Partners for Children - 158","Number of families served with Parent Liaison Services",null,null,null,null,null,null,null,"808","123","Y","48","Public Integrity & Complex Crimes\n","DOLLARS","OUTCOME","NEITHER",null,null,null,"Public Integrity & Complex Crimes\n","Environmental Restitution Ordered and Collected",null,{"$f":"'Data SBP Measures'!$AF3481&'Data SBP Measures'!$AE3481& \" - \"& 'Data SBP Measures'!$U3481","v":"Environmental Restitution Ordered and CollectedPublic Integrity & Complex Crimes\n - 123"},{"$f":"_xlfn.XLOOKUP(VALUE(W3481),'Data SBP Programs'!O:O,'Data SBP Programs'!S:S)","v":"Public Integrity & Complex Crimes\n"}]
[{"$f":"'Data SBP Measures'!$AI179&\" - \"&'Data SBP Measures'!$U179","v":"The Children’s Partnership/Community Partners for Children - 158"},{"$f":"'Data SBP Measures'!$AF179","v":"Percentage  of children/youth who reduced their delinquent behavior"},{"$f":"'Data SBP Measures'!$T179","v":"1214"},{"$f":"'Data SBP Measures'!$U179&B3482","v":"158Percentage  of children/youth who reduced their delinquent behavior"},{"$f":"'Data SBP Measures'!$Y179","v":"PERCENT"},null,null,null,null,null,"The Children’s Partnership/Community Partners for Children - 158","Percentage  of children/youth who reduced their delinquent behavior",null,null,null,null,null,null,null,"809","123","Y","43","Operations","EACH","OUTPUT","NEITHER",null,null,null,"Operations","Number of times made contact with victims or witnesses",null,{"$f":"'Data SBP Measures'!$AF3482&'Data SBP Measures'!$AE3482& \" - \"& 'Data SBP Measures'!$U3482","v":"Number of times made contact with victims or witnessesOperations - 123"},{"$f":"_xlfn.XLOOKUP(VALUE(W3482),'Data SBP Programs'!O:O,'Data SBP Programs'!S:S)","v":"Operations"}]
[{"$f":"'Data SBP Measures'!$AI190&\" - \"&'Data SBP Measures'!$U190","v":"The Children’s Partnership/Community Partners for Children - 158"},{"$f":"'Data SBP Measures'!$AF190","v":"Percentage of children who are reintegrated to a home after completion of residential treatment"},{"$f":"'Data SBP Measures'!$T190","v":"1225"},{"$f":"'Data SBP Measures'!$U190&B3483","v":"158Percentage of children who are reintegrated to a home after completion of residential treatment"},{"$f":"'Data SBP Measures'!$Y190","v":"PERCENT"},null,null,null,null,null,"The Children’s Partnership/Community Partners for Children - 158","Percentage of children who are reintegrated to a home after completion of residential treatment",null,null,null,null,null,null,null,"809","123","Y","307","Victim Services","EACH","OUTPUT","NEITHER",null,null,null,"Victim Services","Number of times made contact with victims or witnesses",null,{"$f":"'Data SBP Measures'!$AF3483&'Data SBP Measures'!$AE3483& \" - \"& 'Data SBP Measures'!$U3483","v":"Number of times made contact with victims or witnessesVictim Services - 123"},{"$f":"_xlfn.XLOOKUP(VALUE(W3483),'Data SBP Programs'!O:O,'Data SBP Programs'!S:S)","v":"Trial Courts"}]
[{"$f":"'Data SBP Measures'!$AI189&\" - \"&'Data SBP Measures'!$U189","v":"The Children’s Partnership/Community Partners for Children - 158"},{"$f":"'Data SBP Measures'!$AF189","v":"Percentage of children who received residential treatment services had a decrese in their involvement in CPS and or JuvProbation"},{"$f":"'Data SBP Measures'!$T189","v":"1224"},{"$f":"'Data SBP Measures'!$U189&B3484","v":"158Percentage of children who received residential treatment services had a decrese in their involvement in CPS and or JuvProbation"},{"$f":"'Data SBP Measures'!$Y189","v":"PERCENT"},null,null,null,null,null,"The Children’s Partnership/Community Partners for Children - 158","Percentage of children who received residential treatment services had a decrese in their involvement in CPS and or JuvProbation",null,null,null,null,null,null,null,"810","123","Y","43","Operations","EACH","OUTPUT","BOTH",null,null,null,"Operations","# Victims served (number of victims assisted)",null,{"$f":"'Data SBP Measures'!$AF3484&'Data SBP Measures'!$AE3484& \" - \"& 'Data SBP Measures'!$U3484","v":"# Victims served (number of victims assisted)Operations - 123"},{"$f":"_xlfn.XLOOKUP(VALUE(W3484),'Data SBP Programs'!O:O,'Data SBP Programs'!S:S)","v":"Operations"}]
[{"$f":"'Data SBP Measures'!$AI180&\" - \"&'Data SBP Measures'!$U180","v":"The Children’s Partnership/Community Partners for Children - 158"},{"$f":"'Data SBP Measures'!$AF180","v":"Percentage of children/youth and their families that indicated increased self sufficiency through either meeting their goals or a voluntary exit from the program"},{"$f":"'Data SBP Measures'!$T180","v":"1215"},{"$f":"'Data SBP Measures'!$U180&B3485","v":"158Percentage of children/youth and their families that indicated increased self sufficiency through either meeting their goals or a voluntary exit from the program"},{"$f":"'Data SBP Measures'!$Y180","v":"PERCENT"},null,null,null,null,null,"The Children’s Partnership/Community Partners for Children - 158","Percentage of children/youth and their families that indicated increased self sufficiency through either meeting their goals or a voluntary exit from the program",null,null,null,null,null,null,null,"810","123","Y","307","Victim Services","EACH","OUTPUT","BOTH",null,null,null,"Victim Services","# Victims served (number of victims assisted)",null,{"$f":"'Data SBP Measures'!$AF3485&'Data SBP Measures'!$AE3485& \" - \"& 'Data SBP Measures'!$U3485","v":"# Victims served (number of victims assisted)Victim Services - 123"},{"$f":"_xlfn.XLOOKUP(VALUE(W3485),'Data SBP Programs'!O:O,'Data SBP Programs'!S:S)","v":"Trial Courts"}]
[{"$f":"'Data SBP Measures'!$AI177&\" - \"&'Data SBP Measures'!$U177","v":"The Children’s Partnership/Community Partners for Children - 158"},{"$f":"'Data SBP Measures'!$AF177","v":"Percentage of children/youth who are maintained in their homes at the time of discharge from the program"},{"$f":"'Data SBP Measures'!$T177","v":"1212"},{"$f":"'Data SBP Measures'!$U177&B3486","v":"158Percentage of children/youth who are maintained in their homes at the time of discharge from the program"},{"$f":"'Data SBP Measures'!$Y177","v":"PERCENT"},null,null,null,null,null,"The Children’s Partnership/Community Partners for Children - 158","Percentage of children/youth who are maintained in their homes at the time of discharge from the program",null,null,null,null,null,null,null,"811","123","Y","43","Operations","EACH","EFFICIENCY","NEITHER",null,null,null,"Operations","Ratio of services to victims & witnesses",null,{"$f":"'Data SBP Measures'!$AF3486&'Data SBP Measures'!$AE3486& \" - \"& 'Data SBP Measures'!$U3486","v":"Ratio of services to victims & witnessesOperations - 123"},{"$f":"_xlfn.XLOOKUP(VALUE(W3486),'Data SBP Programs'!O:O,'Data SBP Programs'!S:S)","v":"Operations"}]
[{"$f":"'Data SBP Measures'!$AI178&\" - \"&'Data SBP Measures'!$U178","v":"The Children’s Partnership/Community Partners for Children - 158"},{"$f":"'Data SBP Measures'!$AF178","v":"Percentage of children/youth who maintained/improved school attendance"},{"$f":"'Data SBP Measures'!$T178","v":"1213"},{"$f":"'Data SBP Measures'!$U178&B3487","v":"158Percentage of children/youth who maintained/improved school attendance"},{"$f":"'Data SBP Measures'!$Y178","v":"PERCENT"},null,null,null,null,null,"The Children’s Partnership/Community Partners for Children - 158","Percentage of children/youth who maintained/improved school attendance",null,null,null,null,null,null,null,"811","123","Y","307","Victim Services","EACH","EFFICIENCY","NEITHER",null,null,null,"Victim Services","Ratio of services to victims & witnesses",null,{"$f":"'Data SBP Measures'!$AF3487&'Data SBP Measures'!$AE3487& \" - \"& 'Data SBP Measures'!$U3487","v":"Ratio of services to victims & witnessesVictim Services - 123"},{"$f":"_xlfn.XLOOKUP(VALUE(W3487),'Data SBP Programs'!O:O,'Data SBP Programs'!S:S)","v":"Trial Courts"}]
[{"$f":"'Data SBP Measures'!$AI187&\" - \"&'Data SBP Measures'!$U187","v":"The Travis County Children’s Protective Service Board - 158"},{"$f":"'Data SBP Measures'!$AF187","v":"Average number of children in foster care per month"},{"$f":"'Data SBP Measures'!$T187","v":"1222"},{"$f":"'Data SBP Measures'!$U187&B3488","v":"158Average number of children in foster care per month"},{"$f":"'Data SBP Measures'!$Y187","v":"EACH"},null,null,null,null,null,"The Travis County Children’s Protective Service Board - 158","Average number of children in foster care per month",null,null,null,null,null,null,null,"812","124","Y","50","District Courts Division","EACH","INPUT","NEITHER",null,null,null,"District Courts Division","Total # of district courts",null,{"$f":"'Data SBP Measures'!$AF3488&'Data SBP Measures'!$AE3488& \" - \"& 'Data SBP Measures'!$U3488","v":"Total # of district courtsDistrict Courts Division - 124"},{"$f":"_xlfn.XLOOKUP(VALUE(W3488),'Data SBP Programs'!O:O,'Data SBP Programs'!S:S)","v":"District Courts Division"}]
[{"$f":"'Data SBP Measures'!$AI188&\" - \"&'Data SBP Measures'!$U188","v":"The Travis County Children’s Protective Service Board - 158"},{"$f":"'Data SBP Measures'!$AF188","v":"Average number of families receiving Family Based Safety services"},{"$f":"'Data SBP Measures'!$T188","v":"1223"},{"$f":"'Data SBP Measures'!$U188&B3489","v":"158Average number of families receiving Family Based Safety services"},{"$f":"'Data SBP Measures'!$Y188","v":"EACH"},null,null,null,null,null,"The Travis County Children’s Protective Service Board - 158","Average number of families receiving Family Based Safety services",null,null,null,null,null,null,null,"813","124","Y","50","District Courts Division","EACH","INPUT","BLACKBOOK",null,null,null,"District Courts Division","Cases pending at  the end of the fiscal year",null,{"$f":"'Data SBP Measures'!$AF3489&'Data SBP Measures'!$AE3489& \" - \"& 'Data SBP Measures'!$U3489","v":"Cases pending at  the end of the fiscal yearDistrict Courts Division - 124"},{"$f":"_xlfn.XLOOKUP(VALUE(W3489),'Data SBP Programs'!O:O,'Data SBP Programs'!S:S)","v":"District Courts Division"}]
[{"$f":"'Data SBP Measures'!$AI184&\" - \"&'Data SBP Measures'!$U184","v":"The Travis County Children’s Protective Service Board - 158"},{"$f":"'Data SBP Measures'!$AF184","v":"Number of CPS Petitions filed in a fiscal year"},{"$f":"'Data SBP Measures'!$T184","v":"1219"},{"$f":"'Data SBP Measures'!$U184&B3490","v":"158Number of CPS Petitions filed in a fiscal year"},{"$f":"'Data SBP Measures'!$Y184","v":"EACH"},null,null,null,null,null,"The Travis County Children’s Protective Service Board - 158","Number of CPS Petitions filed in a fiscal year",null,null,null,null,null,null,null,"814","124","Y","50","District Courts Division","EACH","INPUT","BOTH",null,null,null,"District Courts Division","Cases reaching the dockets",null,{"$f":"'Data SBP Measures'!$AF3490&'Data SBP Measures'!$AE3490& \" - \"& 'Data SBP Measures'!$U3490","v":"Cases reaching the docketsDistrict Courts Division - 124"},{"$f":"_xlfn.XLOOKUP(VALUE(W3490),'Data SBP Programs'!O:O,'Data SBP Programs'!S:S)","v":"District Courts Division"}]
[{"$f":"'Data SBP Measures'!$AI186&\" - \"&'Data SBP Measures'!$U186","v":"The Travis County Children’s Protective Service Board - 158"},{"$f":"'Data SBP Measures'!$AF186","v":"Number of CPS referrals assigned for investigation"},{"$f":"'Data SBP Measures'!$T186","v":"1221"},{"$f":"'Data SBP Measures'!$U186&B3491","v":"158Number of CPS referrals assigned for investigation"},{"$f":"'Data SBP Measures'!$Y186","v":"EACH"},null,null,null,null,null,"The Travis County Children’s Protective Service Board - 158","Number of CPS referrals assigned for investigation",null,null,null,null,null,null,null,"815","124","Y","50","District Courts Division","EACH","INPUT","NEITHER",null,null,null,"District Courts Division","Cases on dockets each September 30th",null,{"$f":"'Data SBP Measures'!$AF3491&'Data SBP Measures'!$AE3491& \" - \"& 'Data SBP Measures'!$U3491","v":"Cases on dockets each September 30thDistrict Courts Division - 124"},{"$f":"_xlfn.XLOOKUP(VALUE(W3491),'Data SBP Programs'!O:O,'Data SBP Programs'!S:S)","v":"District Courts Division"}]
[{"$f":"'Data SBP Measures'!$AI185&\" - \"&'Data SBP Measures'!$U185","v":"The Travis County Children’s Protective Service Board - 158"},{"$f":"'Data SBP Measures'!$AF185","v":"Number of new children entering foster care annually"},{"$f":"'Data SBP Measures'!$T185","v":"1220"},{"$f":"'Data SBP Measures'!$U185&B3492","v":"158Number of new children entering foster care annually"},{"$f":"'Data SBP Measures'!$Y185","v":"EACH"},null,null,null,null,null,"The Travis County Children’s Protective Service Board - 158","Number of new children entering foster care annually",null,null,null,null,null,null,null,"816","124","Y","50","District Courts Division","EACH","OUTPUT","BOTH",null,null,null,"District Courts Division","Total # of dispositions",null,{"$f":"'Data SBP Measures'!$AF3492&'Data SBP Measures'!$AE3492& \" - \"& 'Data SBP Measures'!$U3492","v":"Total # of dispositionsDistrict Courts Division - 124"},{"$f":"_xlfn.XLOOKUP(VALUE(W3492),'Data SBP Programs'!O:O,'Data SBP Programs'!S:S)","v":"District Courts Division"}]
[{"$f":"'Data SBP Measures'!$AI2339&\" - \"&'Data SBP Measures'!$U2339","v":"The Travis County Children’s Protective Service Board - 158"},{"$f":"'Data SBP Measures'!$AF2339","v":"Percentage of CPS board budget expended on products and services for children and families involved in the child welfare system"},{"$f":"'Data SBP Measures'!$T2339","v":"2901"},{"$f":"'Data SBP Measures'!$U2339&B3493","v":"158Percentage of CPS board budget expended on products and services for children and families involved in the child welfare system"},{"$f":"'Data SBP Measures'!$Y2339","v":"PERCENT"},null,null,null,null,null,"The Travis County Children’s Protective Service Board - 158","Percentage of CPS board budget expended on products and services for children and families involved in the child welfare system",null,null,null,null,null,null,null,"817","124","Y","50","District Courts Division","EACH","OUTPUT","BOTH",null,null,null,"District Courts Division","# of cases in specialty court programs/dockets",null,{"$f":"'Data SBP Measures'!$AF3493&'Data SBP Measures'!$AE3493& \" - \"& 'Data SBP Measures'!$U3493","v":"# of cases in specialty court programs/docketsDistrict Courts Division - 124"},{"$f":"_xlfn.XLOOKUP(VALUE(W3493),'Data SBP Programs'!O:O,'Data SBP Programs'!S:S)","v":"District Courts Division"}]
[{"$f":"'Data SBP Measures'!$AI547&\" - \"&'Data SBP Measures'!$U547","v":"TNR Human Resources - 149"},{"$f":"'Data SBP Measures'!$AF547","v":"# of Promotions per Calendar Year"},{"$f":"'Data SBP Measures'!$T547","v":"1605"},{"$f":"'Data SBP Measures'!$U547&B3494","v":"149# of Promotions per Calendar Year"},{"$f":"'Data SBP Measures'!$Y547","v":"EACH"},null,null,null,null,null,"TNR Human Resources - 149","# of Promotions per Calendar Year",null,null,null,null,null,null,null,"818","124","Y","50","District Courts Division","DOLLARS","OUTPUT","NEITHER",null,null,null,"District Courts Division","Amount spent on indigent attorney fees",null,{"$f":"'Data SBP Measures'!$AF3494&'Data SBP Measures'!$AE3494& \" - \"& 'Data SBP Measures'!$U3494","v":"Amount spent on indigent attorney feesDistrict Courts Division - 124"},{"$f":"_xlfn.XLOOKUP(VALUE(W3494),'Data SBP Programs'!O:O,'Data SBP Programs'!S:S)","v":"District Courts Division"}]
[{"$f":"'Data SBP Measures'!$AI549&\" - \"&'Data SBP Measures'!$U549","v":"TNR Human Resources - 149"},{"$f":"'Data SBP Measures'!$AF549","v":"% of Overall Positive Reviews"},{"$f":"'Data SBP Measures'!$T549","v":"1607"},{"$f":"'Data SBP Measures'!$U549&B3495","v":"149% of Overall Positive Reviews"},{"$f":"'Data SBP Measures'!$Y549","v":"PERCENT"},null,null,null,null,null,"TNR Human Resources - 149","% of Overall Positive Reviews",null,null,null,null,null,null,null,"819","124","Y","50","District Courts Division","EACH","EFFICIENCY","BLACKBOOK",null,null,null,"District Courts Division","# Cases disposed ÷ # district courts",null,{"$f":"'Data SBP Measures'!$AF3495&'Data SBP Measures'!$AE3495& \" - \"& 'Data SBP Measures'!$U3495","v":"# Cases disposed ÷ # district courtsDistrict Courts Division - 124"},{"$f":"_xlfn.XLOOKUP(VALUE(W3495),'Data SBP Programs'!O:O,'Data SBP Programs'!S:S)","v":"District Courts Division"}]
[{"$f":"'Data SBP Measures'!$AI548&\" - \"&'Data SBP Measures'!$U548","v":"TNR Human Resources - 149"},{"$f":"'Data SBP Measures'!$AF548","v":"Average years of Service as of 4/1 of Each Year"},{"$f":"'Data SBP Measures'!$T548","v":"1606"},{"$f":"'Data SBP Measures'!$U548&B3496","v":"149Average years of Service as of 4/1 of Each Year"},{"$f":"'Data SBP Measures'!$Y548","v":"YEARS"},null,null,null,null,null,"TNR Human Resources - 149","Average years of Service as of 4/1 of Each Year",null,null,null,null,null,null,null,"820","124","Y","50","District Courts Division","PERCENT","EFFICIENCY","BOTH",null,null,null,"District Courts Division","Clearance rate",null,{"$f":"'Data SBP Measures'!$AF3496&'Data SBP Measures'!$AE3496& \" - \"& 'Data SBP Measures'!$U3496","v":"Clearance rateDistrict Courts Division - 124"},{"$f":"_xlfn.XLOOKUP(VALUE(W3496),'Data SBP Programs'!O:O,'Data SBP Programs'!S:S)","v":"District Courts Division"}]
[{"$f":"'Data SBP Measures'!$AI53&\" - \"&'Data SBP Measures'!$U53","v":"TNR Human Resources - 149"},{"$f":"'Data SBP Measures'!$AF53","v":"Percent of training participants rating training as good or excellent"},{"$f":"'Data SBP Measures'!$T53","v":"1072"},{"$f":"'Data SBP Measures'!$U53&B3497","v":"149Percent of training participants rating training as good or excellent"},{"$f":"'Data SBP Measures'!$Y53","v":"PERCENT"},null,null,null,null,null,"TNR Human Resources - 149","Percent of training participants rating training as good or excellent",null,null,null,null,null,null,null,"821","124","Y","50","District Courts Division","EACH","EFFICIENCY","NEITHER",null,null,null,"District Courts Division","# Cases on the docket each Sep. 30 ÷ # Judges",null,{"$f":"'Data SBP Measures'!$AF3497&'Data SBP Measures'!$AE3497& \" - \"& 'Data SBP Measures'!$U3497","v":"# Cases on the docket each Sep. 30 ÷ # JudgesDistrict Courts Division - 124"},{"$f":"_xlfn.XLOOKUP(VALUE(W3497),'Data SBP Programs'!O:O,'Data SBP Programs'!S:S)","v":"District Courts Division"}]
[{"$f":"'Data SBP Measures'!$AI56&\" - \"&'Data SBP Measures'!$U56","v":"TNR-Administrative Support - 149"},{"$f":"'Data SBP Measures'!$AF56","v":"Internal users satisfied or better based on annual customer service satisfaction survey"},{"$f":"'Data SBP Measures'!$T56","v":"1079"},{"$f":"'Data SBP Measures'!$U56&B3498","v":"149Internal users satisfied or better based on annual customer service satisfaction survey"},{"$f":"'Data SBP Measures'!$Y56","v":"PERCENT"},null,null,null,null,null,"TNR-Administrative Support - 149","Internal users satisfied or better based on annual customer service satisfaction survey",null,null,null,null,null,null,null,"822","124","Y","50","District Courts Division","PERCENT","OUTCOME","BOTH",null,null,null,"District Courts Division","% of cases disposed w/in 180 days",null,{"$f":"'Data SBP Measures'!$AF3498&'Data SBP Measures'!$AE3498& \" - \"& 'Data SBP Measures'!$U3498","v":"% of cases disposed w/in 180 daysDistrict Courts Division - 124"},{"$f":"_xlfn.XLOOKUP(VALUE(W3498),'Data SBP Programs'!O:O,'Data SBP Programs'!S:S)","v":"District Courts Division"}]
[{"$f":"'Data SBP Measures'!$AI54&\" - \"&'Data SBP Measures'!$U54","v":"TNR-Records Management - 149"},{"$f":"'Data SBP Measures'!$AF54","v":"Annual contracted services to digitize permanent retention records"},{"$f":"'Data SBP Measures'!$T54","v":"1077"},{"$f":"'Data SBP Measures'!$U54&B3499","v":"149Annual contracted services to digitize permanent retention records"},{"$f":"'Data SBP Measures'!$Y54","v":"DOLLARS"},null,null,null,null,null,"TNR-Records Management - 149","Annual contracted services to digitize permanent retention records",null,null,null,null,null,null,null,"823","124","Y","50","District Courts Division","PERCENT","OUTCOME","NEITHER",null,null,null,"District Courts Division","% of appointments made w/in stautory time frame",null,{"$f":"'Data SBP Measures'!$AF3499&'Data SBP Measures'!$AE3499& \" - \"& 'Data SBP Measures'!$U3499","v":"% of appointments made w/in stautory time frameDistrict Courts Division - 124"},{"$f":"_xlfn.XLOOKUP(VALUE(W3499),'Data SBP Programs'!O:O,'Data SBP Programs'!S:S)","v":"District Courts Division"}]
[{"$f":"'Data SBP Measures'!$AI499&\" - \"&'Data SBP Measures'!$U499","v":"TNR-Records Management - 149"},{"$f":"'Data SBP Measures'!$AF499","v":"Internal users satisfied or better based on annual customer service satisfaction survey\n"},{"$f":"'Data SBP Measures'!$T499","v":"1547"},{"$f":"'Data SBP Measures'!$U499&B3500","v":"149Internal users satisfied or better based on annual customer service satisfaction survey\n"},{"$f":"'Data SBP Measures'!$Y499","v":"PERCENT"},null,null,null,null,null,"TNR-Records Management - 149","Internal users satisfied or better based on annual customer service satisfaction survey\n",null,null,null,null,null,null,null,"824","124","Y","50","District Courts Division","PERCENT","OUTCOME","BLACKBOOK",null,null,null,"District Courts Division","% of attorneys evaluated competency",null,{"$f":"'Data SBP Measures'!$AF3500&'Data SBP Measures'!$AE3500& \" - \"& 'Data SBP Measures'!$U3500","v":"% of attorneys evaluated competencyDistrict Courts Division - 124"},{"$f":"_xlfn.XLOOKUP(VALUE(W3500),'Data SBP Programs'!O:O,'Data SBP Programs'!S:S)","v":"District Courts Division"}]
[{"$f":"'Data SBP Measures'!$AI57&\" - \"&'Data SBP Measures'!$U57","v":"TNR-Records Management - 149"},{"$f":"'Data SBP Measures'!$AF57","v":"large-format pages scanned by contracted service."},{"$f":"'Data SBP Measures'!$T57","v":"1080"},{"$f":"'Data SBP Measures'!$U57&B3501","v":"149large-format pages scanned by contracted service."},{"$f":"'Data SBP Measures'!$Y57","v":"EACH"},null,null,null,null,null,"TNR-Records Management - 149","large-format pages scanned by contracted service.",null,null,null,null,null,null,null,"825","124","Y","50","District Courts Division","Y/N","OUTCOME","BLACKBOOK",null,null,null,"District Courts Division","Clearance Ratio  > 90% (Y=1, N=0)",null,{"$f":"'Data SBP Measures'!$AF3501&'Data SBP Measures'!$AE3501& \" - \"& 'Data SBP Measures'!$U3501","v":"Clearance Ratio  > 90% (Y=1, N=0)District Courts Division - 124"},{"$f":"_xlfn.XLOOKUP(VALUE(W3501),'Data SBP Programs'!O:O,'Data SBP Programs'!S:S)","v":"District Courts Division"}]
[{"$f":"'Data SBP Measures'!$AI55&\" - \"&'Data SBP Measures'!$U55","v":"TNR-Records Management - 149"},{"$f":"'Data SBP Measures'!$AF55","v":"Number of Plan sets digitized (revised)"},{"$f":"'Data SBP Measures'!$T55","v":"1078"},{"$f":"'Data SBP Measures'!$U55&B3502","v":"149Number of Plan sets digitized (revised)"},{"$f":"'Data SBP Measures'!$Y55","v":"EACH"},null,null,null,null,null,"TNR-Records Management - 149","Number of Plan sets digitized (revised)",null,null,null,null,null,null,null,"826","124","Y","51","County Courts Division","EACH","INPUT","NEITHER",null,null,null,"County Courts Division","Total # of County Courts",null,{"$f":"'Data SBP Measures'!$AF3502&'Data SBP Measures'!$AE3502& \" - \"& 'Data SBP Measures'!$U3502","v":"Total # of County CourtsCounty Courts Division - 124"},{"$f":"_xlfn.XLOOKUP(VALUE(W3502),'Data SBP Programs'!O:O,'Data SBP Programs'!S:S)","v":"County Courts Division"}]
[{"$f":"'Data SBP Measures'!$AI58&\" - \"&'Data SBP Measures'!$U58","v":"TNR-Records Management - 149"},{"$f":"'Data SBP Measures'!$AF58","v":"pages per year scanned, indexed and linked to records system by internal staffing"},{"$f":"'Data SBP Measures'!$T58","v":"1081"},{"$f":"'Data SBP Measures'!$U58&B3503","v":"149pages per year scanned, indexed and linked to records system by internal staffing"},{"$f":"'Data SBP Measures'!$Y58","v":"EACH"},null,null,null,null,null,"TNR-Records Management - 149","pages per year scanned, indexed and linked to records system by internal staffing",null,null,null,null,null,null,null,"827","124","Y","51","County Courts Division","EACH","INPUT","BLACKBOOK",null,null,null,"County Courts Division","Cases pending at the end of each fiscal year",null,{"$f":"'Data SBP Measures'!$AF3503&'Data SBP Measures'!$AE3503& \" - \"& 'Data SBP Measures'!$U3503","v":"Cases pending at the end of each fiscal yearCounty Courts Division - 124"},{"$f":"_xlfn.XLOOKUP(VALUE(W3503),'Data SBP Programs'!O:O,'Data SBP Programs'!S:S)","v":"County Courts Division"}]
[{"$f":"'Data SBP Measures'!$AI59&\" - \"&'Data SBP Measures'!$U59","v":"TNR-Safety - 149"},{"$f":"'Data SBP Measures'!$AF59","v":"Average Hours spent per claim"},{"$f":"'Data SBP Measures'!$T59","v":"1082"},{"$f":"'Data SBP Measures'!$U59&B3504","v":"149Average Hours spent per claim"},{"$f":"'Data SBP Measures'!$Y59","v":"HOURS"},null,null,null,null,null,"TNR-Safety - 149","Average Hours spent per claim",null,null,null,null,null,null,null,"828","124","Y","51","County Courts Division","EACH","INPUT","BOTH",null,null,null,"County Courts Division","Cases reaching the dockets",null,{"$f":"'Data SBP Measures'!$AF3504&'Data SBP Measures'!$AE3504& \" - \"& 'Data SBP Measures'!$U3504","v":"Cases reaching the docketsCounty Courts Division - 124"},{"$f":"_xlfn.XLOOKUP(VALUE(W3504),'Data SBP Programs'!O:O,'Data SBP Programs'!S:S)","v":"County Courts Division"}]
[{"$f":"'Data SBP Measures'!$AI60&\" - \"&'Data SBP Measures'!$U60","v":"TNR-Safety - 149"},{"$f":"'Data SBP Measures'!$AF60","v":"Number of Property Loss Claims"},{"$f":"'Data SBP Measures'!$T60","v":"1083"},{"$f":"'Data SBP Measures'!$U60&B3505","v":"149Number of Property Loss Claims"},{"$f":"'Data SBP Measures'!$Y60","v":"EACH"},null,null,null,null,null,"TNR-Safety - 149","Number of Property Loss Claims",null,null,null,null,null,null,null,"829","124","Y","51","County Courts Division","EACH","INPUT","NEITHER",null,null,null,"County Courts Division","Cases set on dockets each September 30th",null,{"$f":"'Data SBP Measures'!$AF3505&'Data SBP Measures'!$AE3505& \" - \"& 'Data SBP Measures'!$U3505","v":"Cases set on dockets each September 30thCounty Courts Division - 124"},{"$f":"_xlfn.XLOOKUP(VALUE(W3505),'Data SBP Programs'!O:O,'Data SBP Programs'!S:S)","v":"County Courts Division"}]
[{"$f":"'Data SBP Measures'!$AI61&\" - \"&'Data SBP Measures'!$U61","v":"TNR-Safety - 149"},{"$f":"'Data SBP Measures'!$AF61","v":"Percent of reduction in preventable collisions"},{"$f":"'Data SBP Measures'!$T61","v":"1084"},{"$f":"'Data SBP Measures'!$U61&B3506","v":"149Percent of reduction in preventable collisions"},{"$f":"'Data SBP Measures'!$Y61","v":"PERCENT"},null,null,null,null,null,"TNR-Safety - 149","Percent of reduction in preventable collisions",null,null,null,null,null,null,null,"830","124","Y","51","County Courts Division","EACH","OUTPUT","BOTH",null,null,null,"County Courts Division","Total # of dispositions",null,{"$f":"'Data SBP Measures'!$AF3506&'Data SBP Measures'!$AE3506& \" - \"& 'Data SBP Measures'!$U3506","v":"Total # of dispositionsCounty Courts Division - 124"},{"$f":"_xlfn.XLOOKUP(VALUE(W3506),'Data SBP Programs'!O:O,'Data SBP Programs'!S:S)","v":"County Courts Division"}]
[{"$f":"'Data SBP Measures'!$AI62&\" - \"&'Data SBP Measures'!$U62","v":"TNR-Safety - 149"},{"$f":"'Data SBP Measures'!$AF62","v":"Percent of staff hours investigating property loss incidents"},{"$f":"'Data SBP Measures'!$T62","v":"1085"},{"$f":"'Data SBP Measures'!$U62&B3507","v":"149Percent of staff hours investigating property loss incidents"},{"$f":"'Data SBP Measures'!$Y62","v":"PERCENT"},null,null,null,null,null,"TNR-Safety - 149","Percent of staff hours investigating property loss incidents",null,null,null,null,null,null,null,"831","124","Y","51","County Courts Division","EACH","OUTPUT","NEITHER",null,null,null,"County Courts Division","# of defendants receiving a ct. appt. attorney at JRD",null,{"$f":"'Data SBP Measures'!$AF3507&'Data SBP Measures'!$AE3507& \" - \"& 'Data SBP Measures'!$U3507","v":"# of defendants receiving a ct. appt. attorney at JRDCounty Courts Division - 124"},{"$f":"_xlfn.XLOOKUP(VALUE(W3507),'Data SBP Programs'!O:O,'Data SBP Programs'!S:S)","v":"County Courts Division"}]
[{"$f":"'Data SBP Measures'!$AI1980&\" - \"&'Data SBP Measures'!$U1980","v":"Toxicology - 138"},{"$f":"'Data SBP Measures'!$AF1980","v":"Histology Slides Prepared – Other Counties"},{"$f":"'Data SBP Measures'!$T1980","v":"2569"},{"$f":"'Data SBP Measures'!$U1980&B3508","v":"138Histology Slides Prepared – Other Counties"},{"$f":"'Data SBP Measures'!$Y1980","v":"EACH"},null,null,null,null,null,"Toxicology - 138","Histology Slides Prepared – Other Counties",null,null,null,null,null,null,null,"833","124","Y","51","County Courts Division","DOLLARS","OUTPUT","NEITHER",null,null,null,"County Courts Division","Amount spent on indigent attorney fees",null,{"$f":"'Data SBP Measures'!$AF3508&'Data SBP Measures'!$AE3508& \" - \"& 'Data SBP Measures'!$U3508","v":"Amount spent on indigent attorney feesCounty Courts Division - 124"},{"$f":"_xlfn.XLOOKUP(VALUE(W3508),'Data SBP Programs'!O:O,'Data SBP Programs'!S:S)","v":"County Courts Division"}]
[{"$f":"'Data SBP Measures'!$AI1979&\" - \"&'Data SBP Measures'!$U1979","v":"Toxicology - 138"},{"$f":"'Data SBP Measures'!$AF1979","v":"Histology Slides Prepared – Travis County"},{"$f":"'Data SBP Measures'!$T1979","v":"2568"},{"$f":"'Data SBP Measures'!$U1979&B3509","v":"138Histology Slides Prepared – Travis County"},{"$f":"'Data SBP Measures'!$Y1979","v":"EACH"},null,null,null,null,null,"Toxicology - 138","Histology Slides Prepared – Travis County",null,null,null,null,null,null,null,"834","124","Y","51","County Courts Division","EACH","EFFICIENCY","BLACKBOOK",null,null,null,"County Courts Division","# Cases disposed ÷ # Courts",null,{"$f":"'Data SBP Measures'!$AF3509&'Data SBP Measures'!$AE3509& \" - \"& 'Data SBP Measures'!$U3509","v":"# Cases disposed ÷ # CourtsCounty Courts Division - 124"},{"$f":"_xlfn.XLOOKUP(VALUE(W3509),'Data SBP Programs'!O:O,'Data SBP Programs'!S:S)","v":"County Courts Division"}]
[{"$f":"'Data SBP Measures'!$AI340&\" - \"&'Data SBP Measures'!$U340","v":"Traffic - CVE / DWI / HEAT / Impound / MOTORS - 137"},{"$f":"'Data SBP Measures'!$AF340","v":"Fees collected for wrecker inspections"},{"$f":"'Data SBP Measures'!$T340","v":"1406"},{"$f":"'Data SBP Measures'!$U340&B3510","v":"137Fees collected for wrecker inspections"},{"$f":"'Data SBP Measures'!$Y340","v":"DOLLARS"},null,null,null,null,null,"Traffic - CVE / DWI / HEAT / Impound / MOTORS - 137","Fees collected for wrecker inspections",null,null,null,null,null,null,null,"835","124","Y","51","County Courts Division","PERCENT","EFFICIENCY","BOTH",null,null,null,"County Courts Division","Clearance rate",null,{"$f":"'Data SBP Measures'!$AF3510&'Data SBP Measures'!$AE3510& \" - \"& 'Data SBP Measures'!$U3510","v":"Clearance rateCounty Courts Division - 124"},{"$f":"_xlfn.XLOOKUP(VALUE(W3510),'Data SBP Programs'!O:O,'Data SBP Programs'!S:S)","v":"County Courts Division"}]
[{"$f":"'Data SBP Measures'!$AI342&\" - \"&'Data SBP Measures'!$U342","v":"Traffic - CVE / DWI / HEAT / Impound / MOTORS - 137"},{"$f":"'Data SBP Measures'!$AF342","v":"Funds received from auctioned vehicles"},{"$f":"'Data SBP Measures'!$T342","v":"1408"},{"$f":"'Data SBP Measures'!$U342&B3511","v":"137Funds received from auctioned vehicles"},{"$f":"'Data SBP Measures'!$Y342","v":"DOLLARS"},null,null,null,null,null,"Traffic - CVE / DWI / HEAT / Impound / MOTORS - 137","Funds received from auctioned vehicles",null,null,null,null,null,null,null,"836","124","Y","51","County Courts Division","EACH","EFFICIENCY","NEITHER",null,null,null,"County Courts Division","# Cases on the docket each Sep. 30 ÷ # Courts",null,{"$f":"'Data SBP Measures'!$AF3511&'Data SBP Measures'!$AE3511& \" - \"& 'Data SBP Measures'!$U3511","v":"# Cases on the docket each Sep. 30 ÷ # CourtsCounty Courts Division - 124"},{"$f":"_xlfn.XLOOKUP(VALUE(W3511),'Data SBP Programs'!O:O,'Data SBP Programs'!S:S)","v":"County Courts Division"}]
[{"$f":"'Data SBP Measures'!$AI479&\" - \"&'Data SBP Measures'!$U479","v":"Traffic - CVE / DWI / HEAT / Impound / MOTORS - 137"},{"$f":"'Data SBP Measures'!$AF479","v":"No. CMV Collisions"},{"$f":"'Data SBP Measures'!$T479","v":"1521"},{"$f":"'Data SBP Measures'!$U479&B3512","v":"137No. CMV Collisions"},{"$f":"'Data SBP Measures'!$Y479","v":"EACH"},null,null,null,null,null,"Traffic - CVE / DWI / HEAT / Impound / MOTORS - 137","No. CMV Collisions",null,null,null,null,null,null,null,"837","124","Y","51","County Courts Division","PERCENT","OUTCOME","NEITHER",null,null,null,"County Courts Division","% of jail cases disposed at JRD",null,{"$f":"'Data SBP Measures'!$AF3512&'Data SBP Measures'!$AE3512& \" - \"& 'Data SBP Measures'!$U3512","v":"% of jail cases disposed at JRDCounty Courts Division - 124"},{"$f":"_xlfn.XLOOKUP(VALUE(W3512),'Data SBP Programs'!O:O,'Data SBP Programs'!S:S)","v":"County Courts Division"}]
[{"$f":"'Data SBP Measures'!$AI483&\" - \"&'Data SBP Measures'!$U483","v":"Traffic - CVE / DWI / HEAT / Impound / MOTORS - 137"},{"$f":"'Data SBP Measures'!$AF483","v":"No. of Accident Reconstructions (HEAT/Motors)"},{"$f":"'Data SBP Measures'!$T483","v":"1525"},{"$f":"'Data SBP Measures'!$U483&B3513","v":"137No. of Accident Reconstructions (HEAT/Motors)"},{"$f":"'Data SBP Measures'!$Y483","v":"EACH"},null,null,null,null,null,"Traffic - CVE / DWI / HEAT / Impound / MOTORS - 137","No. of Accident Reconstructions (HEAT/Motors)",null,null,null,null,null,null,null,"838","124","Y","51","County Courts Division","PERCENT","OUTCOME","NEITHER",null,null,null,"County Courts Division","% of all cases disposed w/in 90 days",null,{"$f":"'Data SBP Measures'!$AF3513&'Data SBP Measures'!$AE3513& \" - \"& 'Data SBP Measures'!$U3513","v":"% of all cases disposed w/in 90 daysCounty Courts Division - 124"},{"$f":"_xlfn.XLOOKUP(VALUE(W3513),'Data SBP Programs'!O:O,'Data SBP Programs'!S:S)","v":"County Courts Division"}]
[{"$f":"'Data SBP Measures'!$AI341&\" - \"&'Data SBP Measures'!$U341","v":"Traffic - CVE / DWI / HEAT / Impound / MOTORS - 137"},{"$f":"'Data SBP Measures'!$AF341","v":"No. of auctions attended"},{"$f":"'Data SBP Measures'!$T341","v":"1407"},{"$f":"'Data SBP Measures'!$U341&B3514","v":"137No. of auctions attended"},{"$f":"'Data SBP Measures'!$Y341","v":"EACH"},null,null,null,null,null,"Traffic - CVE / DWI / HEAT / Impound / MOTORS - 137","No. of auctions attended",null,null,null,null,null,null,null,"839","124","Y","51","County Courts Division","PERCENT","OUTCOME","NEITHER",null,null,null,"County Courts Division","% of appointments made w/in stautory time frame",null,{"$f":"'Data SBP Measures'!$AF3514&'Data SBP Measures'!$AE3514& \" - \"& 'Data SBP Measures'!$U3514","v":"% of appointments made w/in stautory time frameCounty Courts Division - 124"},{"$f":"_xlfn.XLOOKUP(VALUE(W3514),'Data SBP Programs'!O:O,'Data SBP Programs'!S:S)","v":"County Courts Division"}]
[{"$f":"'Data SBP Measures'!$AI325&\" - \"&'Data SBP Measures'!$U325","v":"Traffic - CVE / DWI / HEAT / Impound / MOTORS - 137"},{"$f":"'Data SBP Measures'!$AF325","v":"No. of Citations Written/Submitted"},{"$f":"'Data SBP Measures'!$T325","v":"1384"},{"$f":"'Data SBP Measures'!$U325&B3515","v":"137No. of Citations Written/Submitted"},{"$f":"'Data SBP Measures'!$Y325","v":"EACH"},null,null,null,null,null,"Traffic - CVE / DWI / HEAT / Impound / MOTORS - 137","No. of Citations Written/Submitted",null,null,null,null,null,null,null,"840","124","Y","51","County Courts Division","PERCENT","OUTCOME","BLACKBOOK",null,null,null,"County Courts Division","% of attorneys evaluated for competency",null,{"$f":"'Data SBP Measures'!$AF3515&'Data SBP Measures'!$AE3515& \" - \"& 'Data SBP Measures'!$U3515","v":"% of attorneys evaluated for competencyCounty Courts Division - 124"},{"$f":"_xlfn.XLOOKUP(VALUE(W3515),'Data SBP Programs'!O:O,'Data SBP Programs'!S:S)","v":"County Courts Division"}]
[{"$f":"'Data SBP Measures'!$AI323&\" - \"&'Data SBP Measures'!$U323","v":"Traffic - CVE / DWI / HEAT / Impound / MOTORS - 137"},{"$f":"'Data SBP Measures'!$AF323","v":"No. of Collisions Worked"},{"$f":"'Data SBP Measures'!$T323","v":"1382"},{"$f":"'Data SBP Measures'!$U323&B3516","v":"137No. of Collisions Worked"},{"$f":"'Data SBP Measures'!$Y323","v":"EACH"},null,null,null,null,null,"Traffic - CVE / DWI / HEAT / Impound / MOTORS - 137","No. of Collisions Worked",null,null,null,null,null,null,null,"841","124","Y","51","County Courts Division","Y/N","OUTCOME","BLACKBOOK",null,null,null,"County Courts Division","Clearance Ratio  > 90% (Y=1, N=0)",null,{"$f":"'Data SBP Measures'!$AF3516&'Data SBP Measures'!$AE3516& \" - \"& 'Data SBP Measures'!$U3516","v":"Clearance Ratio  > 90% (Y=1, N=0)County Courts Division - 124"},{"$f":"_xlfn.XLOOKUP(VALUE(W3516),'Data SBP Programs'!O:O,'Data SBP Programs'!S:S)","v":"County Courts Division"}]
[{"$f":"'Data SBP Measures'!$AI478&\" - \"&'Data SBP Measures'!$U478","v":"Traffic - CVE / DWI / HEAT / Impound / MOTORS - 137"},{"$f":"'Data SBP Measures'!$AF478","v":"No. of Commercial Motor Vehicle Inspections"},{"$f":"'Data SBP Measures'!$T478","v":"1520"},{"$f":"'Data SBP Measures'!$U478&B3517","v":"137No. of Commercial Motor Vehicle Inspections"},{"$f":"'Data SBP Measures'!$Y478","v":"EACH"},null,null,null,null,null,"Traffic - CVE / DWI / HEAT / Impound / MOTORS - 137","No. of Commercial Motor Vehicle Inspections",null,null,null,null,null,null,null,"842","114","Y","111","Custodial Operations","EACH","OUTPUT","BLACKBOOK",null,null,null,"Custodial Operations","Total facility SF cleaned",null,{"$f":"'Data SBP Measures'!$AF3517&'Data SBP Measures'!$AE3517& \" - \"& 'Data SBP Measures'!$U3517","v":"Total facility SF cleanedCustodial Operations - 114"},{"$f":"_xlfn.XLOOKUP(VALUE(W3517),'Data SBP Programs'!O:O,'Data SBP Programs'!S:S)","v":"Custodial Operations"}]
[{"$f":"'Data SBP Measures'!$AI311&\" - \"&'Data SBP Measures'!$U311","v":"Traffic - CVE / DWI / HEAT / Impound / MOTORS - 137"},{"$f":"'Data SBP Measures'!$AF311","v":"No. of DWI arrests (County)"},{"$f":"'Data SBP Measures'!$T311","v":"1368"},{"$f":"'Data SBP Measures'!$U311&B3518","v":"137No. of DWI arrests (County)"},{"$f":"'Data SBP Measures'!$Y311","v":"EACH"},null,null,null,null,null,"Traffic - CVE / DWI / HEAT / Impound / MOTORS - 137","No. of DWI arrests (County)",null,null,null,null,null,null,null,"843","114","Y","111","Custodial Operations","EACH","OUTPUT","BLACKBOOK",null,null,null,"Custodial Operations","Custodian work orders completed",null,{"$f":"'Data SBP Measures'!$AF3518&'Data SBP Measures'!$AE3518& \" - \"& 'Data SBP Measures'!$U3518","v":"Custodian work orders completedCustodial Operations - 114"},{"$f":"_xlfn.XLOOKUP(VALUE(W3518),'Data SBP Programs'!O:O,'Data SBP Programs'!S:S)","v":"Custodial Operations"}]
[{"$f":"'Data SBP Measures'!$AI310&\" - \"&'Data SBP Measures'!$U310","v":"Traffic - CVE / DWI / HEAT / Impound / MOTORS - 137"},{"$f":"'Data SBP Measures'!$AF310","v":"No. of DWI arrests (unit specific)"},{"$f":"'Data SBP Measures'!$T310","v":"1367"},{"$f":"'Data SBP Measures'!$U310&B3519","v":"137No. of DWI arrests (unit specific)"},{"$f":"'Data SBP Measures'!$Y310","v":"EACH"},null,null,null,null,null,"Traffic - CVE / DWI / HEAT / Impound / MOTORS - 137","No. of DWI arrests (unit specific)",null,null,null,null,null,null,null,"844","114","Y","111","Custodial Operations","EACH","OUTPUT","BLACKBOOK",null,null,null,"Custodial Operations","Move work orders completed",null,{"$f":"'Data SBP Measures'!$AF3519&'Data SBP Measures'!$AE3519& \" - \"& 'Data SBP Measures'!$U3519","v":"Move work orders completedCustodial Operations - 114"},{"$f":"_xlfn.XLOOKUP(VALUE(W3519),'Data SBP Programs'!O:O,'Data SBP Programs'!S:S)","v":"Custodial Operations"}]
[{"$f":"'Data SBP Measures'!$AI480&\" - \"&'Data SBP Measures'!$U480","v":"Traffic - CVE / DWI / HEAT / Impound / MOTORS - 137"},{"$f":"'Data SBP Measures'!$AF480","v":"No. of Federal Violations"},{"$f":"'Data SBP Measures'!$T480","v":"1522"},{"$f":"'Data SBP Measures'!$U480&B3520","v":"137No. of Federal Violations"},{"$f":"'Data SBP Measures'!$Y480","v":"EACH"},null,null,null,null,null,"Traffic - CVE / DWI / HEAT / Impound / MOTORS - 137","No. of Federal Violations",null,null,null,null,null,null,null,"845","114","Y","112","Groundskeeping","EACH","OUTPUT","BLACKBOOK",null,null,null,"Groundskeeping","Properties Maintained",null,{"$f":"'Data SBP Measures'!$AF3520&'Data SBP Measures'!$AE3520& \" - \"& 'Data SBP Measures'!$U3520","v":"Properties MaintainedGroundskeeping - 114"},{"$f":"_xlfn.XLOOKUP(VALUE(W3520),'Data SBP Programs'!O:O,'Data SBP Programs'!S:S)","v":"Groundskeeping"}]
[{"$f":"'Data SBP Measures'!$AI482&\" - \"&'Data SBP Measures'!$U482","v":"Traffic - CVE / DWI / HEAT / Impound / MOTORS - 137"},{"$f":"'Data SBP Measures'!$AF482","v":"No. of Out of Service Violations"},{"$f":"'Data SBP Measures'!$T482","v":"1524"},{"$f":"'Data SBP Measures'!$U482&B3521","v":"137No. of Out of Service Violations"},{"$f":"'Data SBP Measures'!$Y482","v":"EACH"},null,null,null,null,null,"Traffic - CVE / DWI / HEAT / Impound / MOTORS - 137","No. of Out of Service Violations",null,null,null,null,null,null,null,"846","114","Y","112","Groundskeeping","EACH","OUTPUT","BLACKBOOK",null,null,null,"Groundskeeping","Water Quality & Detention Ponds Maintained",null,{"$f":"'Data SBP Measures'!$AF3521&'Data SBP Measures'!$AE3521& \" - \"& 'Data SBP Measures'!$U3521","v":"Water Quality & Detention Ponds MaintainedGroundskeeping - 114"},{"$f":"_xlfn.XLOOKUP(VALUE(W3521),'Data SBP Programs'!O:O,'Data SBP Programs'!S:S)","v":"Groundskeeping"}]
[{"$f":"'Data SBP Measures'!$AI324&\" - \"&'Data SBP Measures'!$U324","v":"Traffic - CVE / DWI / HEAT / Impound / MOTORS - 137"},{"$f":"'Data SBP Measures'!$AF324","v":"No. of Selective Traffic Assignments"},{"$f":"'Data SBP Measures'!$T324","v":"1383"},{"$f":"'Data SBP Measures'!$U324&B3522","v":"137No. of Selective Traffic Assignments"},{"$f":"'Data SBP Measures'!$Y324","v":"EACH"},null,null,null,null,null,"Traffic - CVE / DWI / HEAT / Impound / MOTORS - 137","No. of Selective Traffic Assignments",null,null,null,null,null,null,null,"847","114","Y","112","Groundskeeping","EACH","OUTPUT","ADOPTEDBUD",null,null,null,"Groundskeeping","Work Orders Completed",null,{"$f":"'Data SBP Measures'!$AF3522&'Data SBP Measures'!$AE3522& \" - \"& 'Data SBP Measures'!$U3522","v":"Work Orders CompletedGroundskeeping - 114"},{"$f":"_xlfn.XLOOKUP(VALUE(W3522),'Data SBP Programs'!O:O,'Data SBP Programs'!S:S)","v":"Groundskeeping"}]
[{"$f":"'Data SBP Measures'!$AI327&\" - \"&'Data SBP Measures'!$U327","v":"Traffic - CVE / DWI / HEAT / Impound / MOTORS - 137"},{"$f":"'Data SBP Measures'!$AF327","v":"No. of Special Assignments"},{"$f":"'Data SBP Measures'!$T327","v":"1386"},{"$f":"'Data SBP Measures'!$U327&B3523","v":"137No. of Special Assignments"},{"$f":"'Data SBP Measures'!$Y327","v":"EACH"},null,null,null,null,null,"Traffic - CVE / DWI / HEAT / Impound / MOTORS - 137","No. of Special Assignments",null,null,null,null,null,null,null,"848","114","Y","112","Groundskeeping","DAYS","OUTPUT","ADOPTEDBUD",null,null,null,"Groundskeeping","Average Days to Complete Property Maintenance Cycle",null,{"$f":"'Data SBP Measures'!$AF3523&'Data SBP Measures'!$AE3523& \" - \"& 'Data SBP Measures'!$U3523","v":"Average Days to Complete Property Maintenance CycleGroundskeeping - 114"},{"$f":"_xlfn.XLOOKUP(VALUE(W3523),'Data SBP Programs'!O:O,'Data SBP Programs'!S:S)","v":"Groundskeeping"}]
[{"$f":"'Data SBP Measures'!$AI481&\" - \"&'Data SBP Measures'!$U481","v":"Traffic - CVE / DWI / HEAT / Impound / MOTORS - 137"},{"$f":"'Data SBP Measures'!$AF481","v":"No. of State Violations"},{"$f":"'Data SBP Measures'!$T481","v":"1523"},{"$f":"'Data SBP Measures'!$U481&B3524","v":"137No. of State Violations"},{"$f":"'Data SBP Measures'!$Y481","v":"EACH"},null,null,null,null,null,"Traffic - CVE / DWI / HEAT / Impound / MOTORS - 137","No. of State Violations",null,null,null,null,null,null,null,"849","114","Y","112","Groundskeeping","DAYS","OUTPUT","BLACKBOOK",null,null,null,"Groundskeeping","Average Days to Complete Routine Work Orders",null,{"$f":"'Data SBP Measures'!$AF3524&'Data SBP Measures'!$AE3524& \" - \"& 'Data SBP Measures'!$U3524","v":"Average Days to Complete Routine Work OrdersGroundskeeping - 114"},{"$f":"_xlfn.XLOOKUP(VALUE(W3524),'Data SBP Programs'!O:O,'Data SBP Programs'!S:S)","v":"Groundskeeping"}]
[{"$f":"'Data SBP Measures'!$AI326&\" - \"&'Data SBP Measures'!$U326","v":"Traffic - CVE / DWI / HEAT / Impound / MOTORS - 137"},{"$f":"'Data SBP Measures'!$AF326","v":"No. of Traffic Surveys"},{"$f":"'Data SBP Measures'!$T326","v":"1385"},{"$f":"'Data SBP Measures'!$U326&B3525","v":"137No. of Traffic Surveys"},{"$f":"'Data SBP Measures'!$Y326","v":"EACH"},null,null,null,null,null,"Traffic - CVE / DWI / HEAT / Impound / MOTORS - 137","No. of Traffic Surveys",null,null,null,null,null,null,null,"850","114","Y","113","Maintenance & Operations","PERCENT","EFFICIENCY","ADOPTEDBUD",null,null,null,"Maintenance & Operations","% “Emergency Calls” closed with in 48 hours",null,{"$f":"'Data SBP Measures'!$AF3525&'Data SBP Measures'!$AE3525& \" - \"& 'Data SBP Measures'!$U3525","v":"% “Emergency Calls” closed with in 48 hoursMaintenance & Operations - 114"},{"$f":"_xlfn.XLOOKUP(VALUE(W3525),'Data SBP Programs'!O:O,'Data SBP Programs'!S:S)","v":"Maintenance & Operations"}]
[{"$f":"'Data SBP Measures'!$AI337&\" - \"&'Data SBP Measures'!$U337","v":"Traffic - CVE / DWI / HEAT / Impound / MOTORS - 137"},{"$f":"'Data SBP Measures'!$AF337","v":"No. of vehicles impounded"},{"$f":"'Data SBP Measures'!$T337","v":"1403"},{"$f":"'Data SBP Measures'!$U337&B3526","v":"137No. of vehicles impounded"},{"$f":"'Data SBP Measures'!$Y337","v":"EACH"},null,null,null,null,null,"Traffic - CVE / DWI / HEAT / Impound / MOTORS - 137","No. of vehicles impounded",null,null,null,null,null,null,null,"851","114","Y","113","Maintenance & Operations","PERCENT","EFFICIENCY","BLACKBOOK",null,null,null,"Maintenance & Operations","% “of Maintenance Job Orders Self Identified",null,{"$f":"'Data SBP Measures'!$AF3526&'Data SBP Measures'!$AE3526& \" - \"& 'Data SBP Measures'!$U3526","v":"% “of Maintenance Job Orders Self IdentifiedMaintenance & Operations - 114"},{"$f":"_xlfn.XLOOKUP(VALUE(W3526),'Data SBP Programs'!O:O,'Data SBP Programs'!S:S)","v":"Maintenance & Operations"}]
[{"$f":"'Data SBP Measures'!$AI338&\" - \"&'Data SBP Measures'!$U338","v":"Traffic - CVE / DWI / HEAT / Impound / MOTORS - 137"},{"$f":"'Data SBP Measures'!$AF338","v":"No. of vehicles storage facilites inspected"},{"$f":"'Data SBP Measures'!$T338","v":"1404"},{"$f":"'Data SBP Measures'!$U338&B3527","v":"137No. of vehicles storage facilites inspected"},{"$f":"'Data SBP Measures'!$Y338","v":"EACH"},null,null,null,null,null,"Traffic - CVE / DWI / HEAT / Impound / MOTORS - 137","No. of vehicles storage facilites inspected",null,null,null,null,null,null,null,"852","114","Y","113","Maintenance & Operations","PERCENT","EFFICIENCY","BLACKBOOK",null,null,null,"Maintenance & Operations","% of “Routine” calls closed within a month",null,{"$f":"'Data SBP Measures'!$AF3527&'Data SBP Measures'!$AE3527& \" - \"& 'Data SBP Measures'!$U3527","v":"% of “Routine” calls closed within a monthMaintenance & Operations - 114"},{"$f":"_xlfn.XLOOKUP(VALUE(W3527),'Data SBP Programs'!O:O,'Data SBP Programs'!S:S)","v":"Maintenance & Operations"}]
[{"$f":"'Data SBP Measures'!$AI2525&\" - \"&'Data SBP Measures'!$U2525","v":"Traffic - CVE / DWI / HEAT / Impound / MOTORS - 137"},{"$f":"'Data SBP Measures'!$AF2525","v":"No. of vehicles storage facilites inspected"},{"$f":"'Data SBP Measures'!$T2525","v":"3192"},{"$f":"'Data SBP Measures'!$U2525&B3528","v":"137No. of vehicles storage facilites inspected"},{"$f":"'Data SBP Measures'!$Y2525","v":"EACH"},null,null,null,null,null,"Traffic - CVE / DWI / HEAT / Impound / MOTORS - 137","No. of vehicles storage facilites inspected",null,null,null,null,null,null,null,"853","114","Y","113","Maintenance & Operations","EACH","OUTPUT","ADOPTEDBUD",null,null,null,"Maintenance & Operations","Average number of maintenance call in jobs per month",null,{"$f":"'Data SBP Measures'!$AF3528&'Data SBP Measures'!$AE3528& \" - \"& 'Data SBP Measures'!$U3528","v":"Average number of maintenance call in jobs per monthMaintenance & Operations - 114"},{"$f":"_xlfn.XLOOKUP(VALUE(W3528),'Data SBP Programs'!O:O,'Data SBP Programs'!S:S)","v":"Maintenance & Operations"}]
[{"$f":"'Data SBP Measures'!$AI309&\" - \"&'Data SBP Measures'!$U309","v":"Traffic - CVE / DWI / HEAT / Impound / MOTORS - 137"},{"$f":"'Data SBP Measures'!$AF309","v":"No. of violator contacts (County)"},{"$f":"'Data SBP Measures'!$T309","v":"1366"},{"$f":"'Data SBP Measures'!$U309&B3529","v":"137No. of violator contacts (County)"},{"$f":"'Data SBP Measures'!$Y309","v":"EACH"},null,null,null,null,null,"Traffic - CVE / DWI / HEAT / Impound / MOTORS - 137","No. of violator contacts (County)",null,null,null,null,null,null,null,"854","114","Y","114","Planning, Design and Construction","PERCENT","OUTCOME","ADOPTEDBUD",null,null,null,"Planning, Design and Construction","Actual Costs to Project Budget Variance",null,{"$f":"'Data SBP Measures'!$AF3529&'Data SBP Measures'!$AE3529& \" - \"& 'Data SBP Measures'!$U3529","v":"Actual Costs to Project Budget VariancePlanning, Design and Construction - 114"},{"$f":"_xlfn.XLOOKUP(VALUE(W3529),'Data SBP Programs'!O:O,'Data SBP Programs'!S:S)","v":"Planning, Design and Construction"}]
[{"$f":"'Data SBP Measures'!$AI339&\" - \"&'Data SBP Measures'!$U339","v":"Traffic - CVE / DWI / HEAT / Impound / MOTORS - 137"},{"$f":"'Data SBP Measures'!$AF339","v":"No. of wreckers inspected"},{"$f":"'Data SBP Measures'!$T339","v":"1405"},{"$f":"'Data SBP Measures'!$U339&B3530","v":"137No. of wreckers inspected"},{"$f":"'Data SBP Measures'!$Y339","v":"EACH"},null,null,null,null,null,"Traffic - CVE / DWI / HEAT / Impound / MOTORS - 137","No. of wreckers inspected",null,null,null,null,null,null,null,"855","114","Y","114","Planning, Design and Construction","PERCENT","OUTCOME","BLACKBOOK",null,null,null,"Planning, Design and Construction","In-house Design Cost Variance (New)",null,{"$f":"'Data SBP Measures'!$AF3530&'Data SBP Measures'!$AE3530& \" - \"& 'Data SBP Measures'!$U3530","v":"In-house Design Cost Variance (New)Planning, Design and Construction - 114"},{"$f":"_xlfn.XLOOKUP(VALUE(W3530),'Data SBP Programs'!O:O,'Data SBP Programs'!S:S)","v":"Planning, Design and Construction"}]
[{"$f":"'Data SBP Measures'!$AI2654&\" - \"&'Data SBP Measures'!$U2654","v":"Training Academy - 137"},{"$f":"'Data SBP Measures'!$AF2654","v":"No. non-TCSO officers in attendance"},{"$f":"'Data SBP Measures'!$T2654","v":"3292"},{"$f":"'Data SBP Measures'!$U2654&B3531","v":"137No. non-TCSO officers in attendance"},{"$f":"'Data SBP Measures'!$Y2654","v":"EACH"},null,null,null,null,null,"Training Academy - 137","No. non-TCSO officers in attendance",null,null,null,null,null,null,null,"856","114","Y","114","Planning, Design and Construction","PERCENT","OUTCOME","BLACKBOOK",null,null,null,"Planning, Design and Construction","Out-sourced Design Cost Variance",null,{"$f":"'Data SBP Measures'!$AF3531&'Data SBP Measures'!$AE3531& \" - \"& 'Data SBP Measures'!$U3531","v":"Out-sourced Design Cost VariancePlanning, Design and Construction - 114"},{"$f":"_xlfn.XLOOKUP(VALUE(W3531),'Data SBP Programs'!O:O,'Data SBP Programs'!S:S)","v":"Planning, Design and Construction"}]
[{"$f":"'Data SBP Measures'!$AI2659&\" - \"&'Data SBP Measures'!$U2659","v":"Training Academy - 137"},{"$f":"'Data SBP Measures'!$AF2659","v":"No. of Ad Instructor Hrs teaching"},{"$f":"'Data SBP Measures'!$T2659","v":"3297"},{"$f":"'Data SBP Measures'!$U2659&B3532","v":"137No. of Ad Instructor Hrs teaching"},{"$f":"'Data SBP Measures'!$Y2659","v":"HOURS"},null,null,null,null,null,"Training Academy - 137","No. of Ad Instructor Hrs teaching",null,null,null,null,null,null,null,"857","114","Y","114","Planning, Design and Construction","PERCENT","OUTCOME","ADOPTEDBUD",null,null,null,"Planning, Design and Construction","Construction Cost Variance",null,{"$f":"'Data SBP Measures'!$AF3532&'Data SBP Measures'!$AE3532& \" - \"& 'Data SBP Measures'!$U3532","v":"Construction Cost VariancePlanning, Design and Construction - 114"},{"$f":"_xlfn.XLOOKUP(VALUE(W3532),'Data SBP Programs'!O:O,'Data SBP Programs'!S:S)","v":"Planning, Design and Construction"}]
[{"$f":"'Data SBP Measures'!$AI2657&\" - \"&'Data SBP Measures'!$U2657","v":"Training Academy - 137"},{"$f":"'Data SBP Measures'!$AF2657","v":"No. of class hours"},{"$f":"'Data SBP Measures'!$T2657","v":"3295"},{"$f":"'Data SBP Measures'!$U2657&B3533","v":"137No. of class hours"},{"$f":"'Data SBP Measures'!$Y2657","v":"HOURS"},null,null,null,null,null,"Training Academy - 137","No. of class hours",null,null,null,null,null,null,null,"858","114","Y","114","Planning, Design and Construction","PERCENT","OUTCOME","ADOPTEDBUD",null,null,null,"Planning, Design and Construction","Construction Schedule Variance",null,{"$f":"'Data SBP Measures'!$AF3533&'Data SBP Measures'!$AE3533& \" - \"& 'Data SBP Measures'!$U3533","v":"Construction Schedule VariancePlanning, Design and Construction - 114"},{"$f":"_xlfn.XLOOKUP(VALUE(W3533),'Data SBP Programs'!O:O,'Data SBP Programs'!S:S)","v":"Planning, Design and Construction"}]
[{"$f":"'Data SBP Measures'!$AI2661&\" - \"&'Data SBP Measures'!$U2661","v":"Training Academy - 137"},{"$f":"'Data SBP Measures'!$AF2661","v":"No. of classes"},{"$f":"'Data SBP Measures'!$T2661","v":"3299"},{"$f":"'Data SBP Measures'!$U2661&B3534","v":"137No. of classes"},{"$f":"'Data SBP Measures'!$Y2661","v":"EACH"},null,null,null,null,null,"Training Academy - 137","No. of classes",null,null,null,null,null,null,null,"859","114","Y","114","Planning, Design and Construction","PERCENT","OUTCOME","BLACKBOOK",null,null,null,"Planning, Design and Construction","Increase bldg lifespan, functionality or sustainability(new)",null,{"$f":"'Data SBP Measures'!$AF3534&'Data SBP Measures'!$AE3534& \" - \"& 'Data SBP Measures'!$U3534","v":"Increase bldg lifespan, functionality or sustainability(new)Planning, Design and Construction - 114"},{"$f":"_xlfn.XLOOKUP(VALUE(W3534),'Data SBP Programs'!O:O,'Data SBP Programs'!S:S)","v":"Planning, Design and Construction"}]
[{"$f":"'Data SBP Measures'!$AI2664&\" - \"&'Data SBP Measures'!$U2664","v":"Training Academy - 137"},{"$f":"'Data SBP Measures'!$AF2664","v":"No. of hours for LMS & online class"},{"$f":"'Data SBP Measures'!$T2664","v":"3301"},{"$f":"'Data SBP Measures'!$U2664&B3535","v":"137No. of hours for LMS & online class"},{"$f":"'Data SBP Measures'!$Y2664","v":"HOURS"},null,null,null,null,null,"Training Academy - 137","No. of hours for LMS & online class",null,null,null,null,null,null,null,"860","114","Y","114","Planning, Design and Construction","PERCENT","OUTCOME","BLACKBOOK",null,null,null,"Planning, Design and Construction","Actual FFE Costs to Budgeted FFE Variance (New)",null,{"$f":"'Data SBP Measures'!$AF3535&'Data SBP Measures'!$AE3535& \" - \"& 'Data SBP Measures'!$U3535","v":"Actual FFE Costs to Budgeted FFE Variance (New)Planning, Design and Construction - 114"},{"$f":"_xlfn.XLOOKUP(VALUE(W3535),'Data SBP Programs'!O:O,'Data SBP Programs'!S:S)","v":"Planning, Design and Construction"}]
[{"$f":"'Data SBP Measures'!$AI2663&\" - \"&'Data SBP Measures'!$U2663","v":"Training Academy - 137"},{"$f":"'Data SBP Measures'!$AF2663","v":"No. of hours for TA instructor development"},{"$f":"'Data SBP Measures'!$T2663","v":"3300"},{"$f":"'Data SBP Measures'!$U2663&B3536","v":"137No. of hours for TA instructor development"},{"$f":"'Data SBP Measures'!$Y2663","v":"HOURS"},null,null,null,null,null,"Training Academy - 137","No. of hours for TA instructor development",null,null,null,null,null,null,null,"861","114","Y","115","Administrative","PERCENT","EFFICIENCY","BLACKBOOK",null,null,null,"Administrative","% of correct pay applications processed within deadlines",null,{"$f":"'Data SBP Measures'!$AF3536&'Data SBP Measures'!$AE3536& \" - \"& 'Data SBP Measures'!$U3536","v":"% of correct pay applications processed within deadlinesAdministrative - 114"},{"$f":"_xlfn.XLOOKUP(VALUE(W3536),'Data SBP Programs'!O:O,'Data SBP Programs'!S:S)","v":"Administrative"}]
[{"$f":"'Data SBP Measures'!$AI2656&\" - \"&'Data SBP Measures'!$U2656","v":"Training Academy - 137"},{"$f":"'Data SBP Measures'!$AF2656","v":"No. of student hours"},{"$f":"'Data SBP Measures'!$T2656","v":"3294"},{"$f":"'Data SBP Measures'!$U2656&B3537","v":"137No. of student hours"},{"$f":"'Data SBP Measures'!$Y2656","v":"HOURS"},null,null,null,null,null,"Training Academy - 137","No. of student hours",null,null,null,null,null,null,null,"862","114","Y","115","Administrative","PERCENT","EFFICIENCY","ADOPTEDBUD",null,null,null,"Administrative","% of acceptable invoices processed within dept deadlines",null,{"$f":"'Data SBP Measures'!$AF3537&'Data SBP Measures'!$AE3537& \" - \"& 'Data SBP Measures'!$U3537","v":"% of acceptable invoices processed within dept deadlinesAdministrative - 114"},{"$f":"_xlfn.XLOOKUP(VALUE(W3537),'Data SBP Programs'!O:O,'Data SBP Programs'!S:S)","v":"Administrative"}]
[{"$f":"'Data SBP Measures'!$AI2655&\" - \"&'Data SBP Measures'!$U2655","v":"Training Academy - 137"},{"$f":"'Data SBP Measures'!$AF2655","v":"No. of students"},{"$f":"'Data SBP Measures'!$T2655","v":"3293"},{"$f":"'Data SBP Measures'!$U2655&B3538","v":"137No. of students"},{"$f":"'Data SBP Measures'!$Y2655","v":"EACH"},null,null,null,null,null,"Training Academy - 137","No. of students",null,null,null,null,null,null,null,"863","114","Y","115","Administrative","PERCENT","EFFICIENCY","BLACKBOOK",null,null,null,"Administrative","% of correct contract mods processed within deadlines",null,{"$f":"'Data SBP Measures'!$AF3538&'Data SBP Measures'!$AE3538& \" - \"& 'Data SBP Measures'!$U3538","v":"% of correct contract mods processed within deadlinesAdministrative - 114"},{"$f":"_xlfn.XLOOKUP(VALUE(W3538),'Data SBP Programs'!O:O,'Data SBP Programs'!S:S)","v":"Administrative"}]
[{"$f":"'Data SBP Measures'!$AI2658&\" - \"&'Data SBP Measures'!$U2658","v":"Training Academy - 137"},{"$f":"'Data SBP Measures'!$AF2658","v":"No. of TA Instructor Hrs teaching"},{"$f":"'Data SBP Measures'!$T2658","v":"3296"},{"$f":"'Data SBP Measures'!$U2658&B3539","v":"137No. of TA Instructor Hrs teaching"},{"$f":"'Data SBP Measures'!$Y2658","v":"HOURS"},null,null,null,null,null,"Training Academy - 137","No. of TA Instructor Hrs teaching",null,null,null,null,null,null,null,"864","114","Y","115","Administrative","PERCENT","EFFICIENCY","BLACKBOOK",null,null,null,"Administrative","% of budget transfers processed within dept deadlines",null,{"$f":"'Data SBP Measures'!$AF3539&'Data SBP Measures'!$AE3539& \" - \"& 'Data SBP Measures'!$U3539","v":"% of budget transfers processed within dept deadlinesAdministrative - 114"},{"$f":"_xlfn.XLOOKUP(VALUE(W3539),'Data SBP Programs'!O:O,'Data SBP Programs'!S:S)","v":"Administrative"}]
[{"$f":"'Data SBP Measures'!$AI2660&\" - \"&'Data SBP Measures'!$U2660","v":"Training Academy - 137"},{"$f":"'Data SBP Measures'!$AF2660","v":"No. of teaching hours"},{"$f":"'Data SBP Measures'!$T2660","v":"3298"},{"$f":"'Data SBP Measures'!$U2660&B3540","v":"137No. of teaching hours"},{"$f":"'Data SBP Measures'!$Y2660","v":"HOURS"},null,null,null,null,null,"Training Academy - 137","No. of teaching hours",null,null,null,null,null,null,null,"865","114","Y","115","Administrative","PERCENT","EFFICIENCY","BLACKBOOK",null,null,null,"Administrative","% of purchase requisition processed within dept deadlines",null,{"$f":"'Data SBP Measures'!$AF3540&'Data SBP Measures'!$AE3540& \" - \"& 'Data SBP Measures'!$U3540","v":"% of purchase requisition processed within dept deadlinesAdministrative - 114"},{"$f":"_xlfn.XLOOKUP(VALUE(W3540),'Data SBP Programs'!O:O,'Data SBP Programs'!S:S)","v":"Administrative"}]
[{"$f":"'Data SBP Measures'!$AI475&\" - \"&'Data SBP Measures'!$U475","v":"Transportation - 137"},{"$f":"'Data SBP Measures'!$AF475","v":"No of Out of State Warrants"},{"$f":"'Data SBP Measures'!$T475","v":"1516"},{"$f":"'Data SBP Measures'!$U475&B3541","v":"137No of Out of State Warrants"},{"$f":"'Data SBP Measures'!$Y475","v":"EACH"},null,null,null,null,null,"Transportation - 137","No of Out of State Warrants",null,null,null,null,null,null,null,"866","114","Y","115","Administrative","PERCENT","EFFICIENCY","BLACKBOOK",null,null,null,"Administrative","% of correct time sheets processed within County deadlines",null,{"$f":"'Data SBP Measures'!$AF3541&'Data SBP Measures'!$AE3541& \" - \"& 'Data SBP Measures'!$U3541","v":"% of correct time sheets processed within County deadlinesAdministrative - 114"},{"$f":"_xlfn.XLOOKUP(VALUE(W3541),'Data SBP Programs'!O:O,'Data SBP Programs'!S:S)","v":"Administrative"}]
[{"$f":"'Data SBP Measures'!$AI2702&\" - \"&'Data SBP Measures'!$U2702","v":"Transportation - 137"},{"$f":"'Data SBP Measures'!$AF2702","v":"No of virtual court coordinating hours – Input – 2019 # 1152"},{"$f":"'Data SBP Measures'!$T2702","v":"3315"},{"$f":"'Data SBP Measures'!$U2702&B3542","v":"137No of virtual court coordinating hours – Input – 2019 # 1152"},{"$f":"'Data SBP Measures'!$Y2702","v":"EACH"},null,null,null,null,null,"Transportation - 137","No of virtual court coordinating hours – Input – 2019 # 1152",null,null,null,null,null,null,null,"867","114","Y","115","Administrative","PERCENT","EFFICIENCY","ADOPTEDBUD",null,null,null,"Administrative","% of personnel forms processed within dept deadlines",null,{"$f":"'Data SBP Measures'!$AF3542&'Data SBP Measures'!$AE3542& \" - \"& 'Data SBP Measures'!$U3542","v":"% of personnel forms processed within dept deadlinesAdministrative - 114"},{"$f":"_xlfn.XLOOKUP(VALUE(W3542),'Data SBP Programs'!O:O,'Data SBP Programs'!S:S)","v":"Administrative"}]
[{"$f":"'Data SBP Measures'!$AI470&\" - \"&'Data SBP Measures'!$U470","v":"Transportation - 137"},{"$f":"'Data SBP Measures'!$AF470","v":"No. of bench/ooc  warrants"},{"$f":"'Data SBP Measures'!$T470","v":"1510"},{"$f":"'Data SBP Measures'!$U470&B3543","v":"137No. of bench/ooc  warrants"},{"$f":"'Data SBP Measures'!$Y470","v":"EACH"},null,null,null,null,null,"Transportation - 137","No. of bench/ooc  warrants",null,null,null,null,null,null,null,"868","114","Y","115","Administrative","PERCENT","OUTPUT","BLACKBOOK",null,null,null,"Administrative","% of employees receiving appropriate training hours",null,{"$f":"'Data SBP Measures'!$AF3543&'Data SBP Measures'!$AE3543& \" - \"& 'Data SBP Measures'!$U3543","v":"% of employees receiving appropriate training hoursAdministrative - 114"},{"$f":"_xlfn.XLOOKUP(VALUE(W3543),'Data SBP Programs'!O:O,'Data SBP Programs'!S:S)","v":"Administrative"}]
[{"$f":"'Data SBP Measures'!$AI471&\" - \"&'Data SBP Measures'!$U471","v":"Transportation - 137"},{"$f":"'Data SBP Measures'!$AF471","v":"No. of court arrests transported"},{"$f":"'Data SBP Measures'!$T471","v":"1511"},{"$f":"'Data SBP Measures'!$U471&B3544","v":"137No. of court arrests transported"},{"$f":"'Data SBP Measures'!$Y471","v":"EACH"},null,null,null,null,null,"Transportation - 137","No. of court arrests transported",null,null,null,null,null,null,null,"870","114","Y","113","Maintenance & Operations","PERCENT","EFFICIENCY","BLACKBOOK",null,null,null,"Maintenance & Operations","% of completion of after-hours emergency requests",null,{"$f":"'Data SBP Measures'!$AF3544&'Data SBP Measures'!$AE3544& \" - \"& 'Data SBP Measures'!$U3544","v":"% of completion of after-hours emergency requestsMaintenance & Operations - 114"},{"$f":"_xlfn.XLOOKUP(VALUE(W3544),'Data SBP Programs'!O:O,'Data SBP Programs'!S:S)","v":"Maintenance & Operations"}]
[{"$f":"'Data SBP Measures'!$AI2997&\" - \"&'Data SBP Measures'!$U2997","v":"Transportation - 137"},{"$f":"'Data SBP Measures'!$AF2997","v":"No. of inmates In Person courts"},{"$f":"'Data SBP Measures'!$T2997","v":"3541"},{"$f":"'Data SBP Measures'!$U2997&B3545","v":"137No. of inmates In Person courts"},{"$f":"'Data SBP Measures'!$Y2997","v":"EACH"},null,null,null,null,null,"Transportation - 137","No. of inmates In Person courts",null,null,null,null,null,null,null,"871","114","Y","113","Maintenance & Operations","PERCENT","EFFICIENCY","BLACKBOOK",null,null,null,"Maintenance & Operations","% of svc paint & carpet on-time and excellent",null,{"$f":"'Data SBP Measures'!$AF3545&'Data SBP Measures'!$AE3545& \" - \"& 'Data SBP Measures'!$U3545","v":"% of svc paint & carpet on-time and excellentMaintenance & Operations - 114"},{"$f":"_xlfn.XLOOKUP(VALUE(W3545),'Data SBP Programs'!O:O,'Data SBP Programs'!S:S)","v":"Maintenance & Operations"}]
[{"$f":"'Data SBP Measures'!$AI472&\" - \"&'Data SBP Measures'!$U472","v":"Transportation - 137"},{"$f":"'Data SBP Measures'!$AF472","v":"No. of inmates transported to court"},{"$f":"'Data SBP Measures'!$T472","v":"1512"},{"$f":"'Data SBP Measures'!$U472&B3546","v":"137No. of inmates transported to court"},{"$f":"'Data SBP Measures'!$Y472","v":"EACH"},null,null,null,null,null,"Transportation - 137","No. of inmates transported to court",null,null,null,null,null,null,null,"886","145","Y","119","Court Administration","PERCENT","EFFICIENCY","ADOPTEDBUD",null,null,null,"Court Administration","Average percent decrease in monthly error rate",null,{"$f":"'Data SBP Measures'!$AF3546&'Data SBP Measures'!$AE3546& \" - \"& 'Data SBP Measures'!$U3546","v":"Average percent decrease in monthly error rateCourt Administration - 145"},{"$f":"_xlfn.XLOOKUP(VALUE(W3546),'Data SBP Programs'!O:O,'Data SBP Programs'!S:S)","v":"Court Administration"}]
[{"$f":"'Data SBP Measures'!$AI473&\" - \"&'Data SBP Measures'!$U473","v":"Transportation - 137"},{"$f":"'Data SBP Measures'!$AF473","v":"No. of inmates transported to TDCJ"},{"$f":"'Data SBP Measures'!$T473","v":"1513"},{"$f":"'Data SBP Measures'!$U473&B3547","v":"137No. of inmates transported to TDCJ"},{"$f":"'Data SBP Measures'!$Y473","v":"EACH"},null,null,null,null,null,"Transportation - 137","No. of inmates transported to TDCJ",null,null,null,null,null,null,null,"886","145","Y","119","Court Administration","PERCENT","EFFICIENCY","ADOPTEDBUD",null,null,null,"Court Administration","Average percent decrease in monthly error rate",null,{"$f":"'Data SBP Measures'!$AF3547&'Data SBP Measures'!$AE3547& \" - \"& 'Data SBP Measures'!$U3547","v":"Average percent decrease in monthly error rateCourt Administration - 145"},{"$f":"_xlfn.XLOOKUP(VALUE(W3547),'Data SBP Programs'!O:O,'Data SBP Programs'!S:S)","v":"Court Administration"}]
[{"$f":"'Data SBP Measures'!$AI2701&\" - \"&'Data SBP Measures'!$U2701","v":"Transportation - 137"},{"$f":"'Data SBP Measures'!$AF2701","v":"No. of inmates virtual courts – Input – 2019 # 4733"},{"$f":"'Data SBP Measures'!$T2701","v":"3314"},{"$f":"'Data SBP Measures'!$U2701&B3548","v":"137No. of inmates virtual courts – Input – 2019 # 4733"},{"$f":"'Data SBP Measures'!$Y2701","v":"EACH"},null,null,null,null,null,"Transportation - 137","No. of inmates virtual courts – Input – 2019 # 4733",null,null,null,null,null,null,null,"893","145","Y","121","Detention Services","EACH","EFFICIENCY","ADOPTEDBUD",null,null,null,"Detention Services","Average Daily Population",null,{"$f":"'Data SBP Measures'!$AF3548&'Data SBP Measures'!$AE3548& \" - \"& 'Data SBP Measures'!$U3548","v":"Average Daily PopulationDetention Services - 145"},{"$f":"_xlfn.XLOOKUP(VALUE(W3548),'Data SBP Programs'!O:O,'Data SBP Programs'!S:S)","v":"Detention Services"}]
[{"$f":"'Data SBP Measures'!$AI476&\" - \"&'Data SBP Measures'!$U476","v":"Transportation - 137"},{"$f":"'Data SBP Measures'!$AF476","v":"No. of Mental Health Transports"},{"$f":"'Data SBP Measures'!$T476","v":"1517"},{"$f":"'Data SBP Measures'!$U476&B3549","v":"137No. of Mental Health Transports"},{"$f":"'Data SBP Measures'!$Y476","v":"EACH"},null,null,null,null,null,"Transportation - 137","No. of Mental Health Transports",null,null,null,null,null,null,null,"893","145","Y","121","Detention Services","EACH","EFFICIENCY","ADOPTEDBUD",null,null,null,"Detention Services","Average Daily Population",null,{"$f":"'Data SBP Measures'!$AF3549&'Data SBP Measures'!$AE3549& \" - \"& 'Data SBP Measures'!$U3549","v":"Average Daily PopulationDetention Services - 145"},{"$f":"_xlfn.XLOOKUP(VALUE(W3549),'Data SBP Programs'!O:O,'Data SBP Programs'!S:S)","v":"Detention Services"}]
[{"$f":"'Data SBP Measures'!$AI474&\" - \"&'Data SBP Measures'!$U474","v":"Transportation - 137"},{"$f":"'Data SBP Measures'!$AF474","v":"No. Texas Youth Commission transports"},{"$f":"'Data SBP Measures'!$T474","v":"1514"},{"$f":"'Data SBP Measures'!$U474&B3550","v":"137No. Texas Youth Commission transports"},{"$f":"'Data SBP Measures'!$Y474","v":"EACH"},null,null,null,null,null,"Transportation - 137","No. Texas Youth Commission transports",null,null,null,null,null,null,null,"907","145","Y","123","Health Services","EACH","INPUT","ADOPTEDBUD",null,null,null,"Health Services","Number of Psychologicals Administered",null,{"$f":"'Data SBP Measures'!$AF3550&'Data SBP Measures'!$AE3550& \" - \"& 'Data SBP Measures'!$U3550","v":"Number of Psychologicals AdministeredHealth Services - 145"},{"$f":"_xlfn.XLOOKUP(VALUE(W3550),'Data SBP Programs'!O:O,'Data SBP Programs'!S:S)","v":"Health Services"}]
[{"$f":"'Data SBP Measures'!$AI683&\" - \"&'Data SBP Measures'!$U683","v":"Travis County Employee Health Clinic - 111"},{"$f":"'Data SBP Measures'!$AF683","v":"% of health plan EEs participating in CARE events"},{"$f":"'Data SBP Measures'!$T683","v":"1732"},{"$f":"'Data SBP Measures'!$U683&B3551","v":"111% of health plan EEs participating in CARE events"},{"$f":"'Data SBP Measures'!$Y683","v":"PERCENT"},null,null,null,null,null,"Travis County Employee Health Clinic - 111","% of health plan EEs participating in CARE events",null,null,null,null,null,null,null,"907","145","Y","123","Health Services","EACH","INPUT","ADOPTEDBUD",null,null,null,"Health Services","Number of Psychologicals Administered",null,{"$f":"'Data SBP Measures'!$AF3551&'Data SBP Measures'!$AE3551& \" - \"& 'Data SBP Measures'!$U3551","v":"Number of Psychologicals AdministeredHealth Services - 145"},{"$f":"_xlfn.XLOOKUP(VALUE(W3551),'Data SBP Programs'!O:O,'Data SBP Programs'!S:S)","v":"Health Services"}]
[{"$f":"'Data SBP Measures'!$AI686&\" - \"&'Data SBP Measures'!$U686","v":"Travis County Employee Health Clinic - 111"},{"$f":"'Data SBP Measures'!$AF686","v":"% of Patients Served vs. Health Plan Participant"},{"$f":"'Data SBP Measures'!$T686","v":"1737"},{"$f":"'Data SBP Measures'!$U686&B3552","v":"111% of Patients Served vs. Health Plan Participant"},{"$f":"'Data SBP Measures'!$Y686","v":"PERCENT"},null,null,null,null,null,"Travis County Employee Health Clinic - 111","% of Patients Served vs. Health Plan Participant",null,null,null,null,null,null,null,"909","145","Y","123","Health Services","EACH","INPUT","ADOPTEDBUD",null,null,null,"Health Services","Total Number of Juveniles Medically Assessed",null,{"$f":"'Data SBP Measures'!$AF3552&'Data SBP Measures'!$AE3552& \" - \"& 'Data SBP Measures'!$U3552","v":"Total Number of Juveniles Medically AssessedHealth Services - 145"},{"$f":"_xlfn.XLOOKUP(VALUE(W3552),'Data SBP Programs'!O:O,'Data SBP Programs'!S:S)","v":"Health Services"}]
[{"$f":"'Data SBP Measures'!$AI685&\" - \"&'Data SBP Measures'!$U685","v":"Travis County Employee Health Clinic - 111"},{"$f":"'Data SBP Measures'!$AF685","v":"Net Savings to the Medical Plan\n"},{"$f":"'Data SBP Measures'!$T685","v":"1736"},{"$f":"'Data SBP Measures'!$U685&B3553","v":"111Net Savings to the Medical Plan\n"},{"$f":"'Data SBP Measures'!$Y685","v":"DOLLARS"},null,null,null,null,null,"Travis County Employee Health Clinic - 111","Net Savings to the Medical Plan\n",null,null,null,null,null,null,null,"909","145","Y","123","Health Services","EACH","INPUT","ADOPTEDBUD",null,null,null,"Health Services","Total Number of Juveniles Medically Assessed",null,{"$f":"'Data SBP Measures'!$AF3553&'Data SBP Measures'!$AE3553& \" - \"& 'Data SBP Measures'!$U3553","v":"Total Number of Juveniles Medically AssessedHealth Services - 145"},{"$f":"_xlfn.XLOOKUP(VALUE(W3553),'Data SBP Programs'!O:O,'Data SBP Programs'!S:S)","v":"Health Services"}]
[{"$f":"'Data SBP Measures'!$AI3443&\" - \"&'Data SBP Measures'!$U3443","v":"Trial Courts - 123"},{"$f":"'Data SBP Measures'!$AF3443","v":"# of child abuse case indictments"},{"$f":"'Data SBP Measures'!$T3443","v":"762"},{"$f":"'Data SBP Measures'!$U3443&B3554","v":"123# of child abuse case indictments"},{"$f":"'Data SBP Measures'!$Y3443","v":"EACH"},null,null,null,null,null,"Trial Courts - 123","# of child abuse case indictments",null,null,null,null,null,null,null,"917","145","Y","125","Probation Services","EACH","INPUT","ADOPTEDBUD",null,null,null,"Probation Services","Number of Juveniles in external placement",null,{"$f":"'Data SBP Measures'!$AF3554&'Data SBP Measures'!$AE3554& \" - \"& 'Data SBP Measures'!$U3554","v":"Number of Juveniles in external placementProbation Services - 145"},{"$f":"_xlfn.XLOOKUP(VALUE(W3554),'Data SBP Programs'!O:O,'Data SBP Programs'!S:S)","v":"Probation Services"}]
[{"$f":"'Data SBP Measures'!$AI3445&\" - \"&'Data SBP Measures'!$U3445","v":"Trial Courts - 123"},{"$f":"'Data SBP Measures'!$AF3445","v":"# of child abuse cases completed"},{"$f":"'Data SBP Measures'!$T3445","v":"763"},{"$f":"'Data SBP Measures'!$U3445&B3555","v":"123# of child abuse cases completed"},{"$f":"'Data SBP Measures'!$Y3445","v":"EACH"},null,null,null,null,null,"Trial Courts - 123","# of child abuse cases completed",null,null,null,null,null,null,null,"917","145","Y","125","Probation Services","EACH","INPUT","ADOPTEDBUD",null,null,null,"Probation Services","Number of Juveniles in external placement",null,{"$f":"'Data SBP Measures'!$AF3555&'Data SBP Measures'!$AE3555& \" - \"& 'Data SBP Measures'!$U3555","v":"Number of Juveniles in external placementProbation Services - 145"},{"$f":"_xlfn.XLOOKUP(VALUE(W3555),'Data SBP Programs'!O:O,'Data SBP Programs'!S:S)","v":"Probation Services"}]
[{"$f":"'Data SBP Measures'!$AI3485&\" - \"&'Data SBP Measures'!$U3485","v":"Trial Courts - 123"},{"$f":"'Data SBP Measures'!$AF3485","v":"# Victims served (number of victims assisted)"},{"$f":"'Data SBP Measures'!$T3485","v":"810"},{"$f":"'Data SBP Measures'!$U3485&B3556","v":"123# Victims served (number of victims assisted)"},{"$f":"'Data SBP Measures'!$Y3485","v":"EACH"},null,null,null,null,null,"Trial Courts - 123","# Victims served (number of victims assisted)",null,null,null,null,null,null,null,"917","145","Y","125","Probation Services","EACH","INPUT","ADOPTEDBUD",null,null,null,"Probation Services","Number of Juveniles in external placement",null,{"$f":"'Data SBP Measures'!$AF3556&'Data SBP Measures'!$AE3556& \" - \"& 'Data SBP Measures'!$U3556","v":"Number of Juveniles in external placementProbation Services - 145"},{"$f":"_xlfn.XLOOKUP(VALUE(W3556),'Data SBP Programs'!O:O,'Data SBP Programs'!S:S)","v":"Probation Services"}]
[{"$f":"'Data SBP Measures'!$AI3483&\" - \"&'Data SBP Measures'!$U3483","v":"Trial Courts - 123"},{"$f":"'Data SBP Measures'!$AF3483","v":"Number of times made contact with victims or witnesses"},{"$f":"'Data SBP Measures'!$T3483","v":"809"},{"$f":"'Data SBP Measures'!$U3483&B3557","v":"123Number of times made contact with victims or witnesses"},{"$f":"'Data SBP Measures'!$Y3483","v":"EACH"},null,null,null,null,null,"Trial Courts - 123","Number of times made contact with victims or witnesses",null,null,null,null,null,null,null,"917","145","Y","125","Probation Services","EACH","INPUT","ADOPTEDBUD",null,null,null,"Probation Services","Number of Juveniles in external placement",null,{"$f":"'Data SBP Measures'!$AF3557&'Data SBP Measures'!$AE3557& \" - \"& 'Data SBP Measures'!$U3557","v":"Number of Juveniles in external placementProbation Services - 145"},{"$f":"_xlfn.XLOOKUP(VALUE(W3557),'Data SBP Programs'!O:O,'Data SBP Programs'!S:S)","v":"Probation Services"}]
[{"$f":"'Data SBP Measures'!$AI3487&\" - \"&'Data SBP Measures'!$U3487","v":"Trial Courts - 123"},{"$f":"'Data SBP Measures'!$AF3487","v":"Ratio of services to victims & witnesses"},{"$f":"'Data SBP Measures'!$T3487","v":"811"},{"$f":"'Data SBP Measures'!$U3487&B3558","v":"123Ratio of services to victims & witnesses"},{"$f":"'Data SBP Measures'!$Y3487","v":"EACH"},null,null,null,null,null,"Trial Courts - 123","Ratio of services to victims & witnesses",null,null,null,null,null,null,null,"917","145","Y","125","Probation Services","EACH","INPUT","ADOPTEDBUD",null,null,null,"Probation Services","Number of Juveniles in external placement",null,{"$f":"'Data SBP Measures'!$AF3558&'Data SBP Measures'!$AE3558& \" - \"& 'Data SBP Measures'!$U3558","v":"Number of Juveniles in external placementProbation Services - 145"},{"$f":"_xlfn.XLOOKUP(VALUE(W3558),'Data SBP Programs'!O:O,'Data SBP Programs'!S:S)","v":"Probation Services"}]
[{"$f":"'Data SBP Measures'!$AI2148&\" - \"&'Data SBP Measures'!$U2148","v":"Veterans Services - 116"},{"$f":"'Data SBP Measures'!$AF2148","v":"# of Active MOU's With Internal and External Partners"},{"$f":"'Data SBP Measures'!$T2148","v":"2681"},{"$f":"'Data SBP Measures'!$U2148&B3559","v":"116# of Active MOU's With Internal and External Partners"},{"$f":"'Data SBP Measures'!$Y2148","v":"EACH"},null,null,null,null,null,"Veterans Services - 116","# of Active MOU's With Internal and External Partners",null,null,null,null,null,null,null,"917","145","Y","125","Probation Services","EACH","INPUT","ADOPTEDBUD",null,null,null,"Probation Services","Number of Juveniles in external placement",null,{"$f":"'Data SBP Measures'!$AF3559&'Data SBP Measures'!$AE3559& \" - \"& 'Data SBP Measures'!$U3559","v":"Number of Juveniles in external placementProbation Services - 145"},{"$f":"_xlfn.XLOOKUP(VALUE(W3559),'Data SBP Programs'!O:O,'Data SBP Programs'!S:S)","v":"Probation Services"}]
[{"$f":"'Data SBP Measures'!$AI2919&\" - \"&'Data SBP Measures'!$U2919","v":"Veterans Services - 116"},{"$f":"'Data SBP Measures'!$AF2919","v":"# of completed VA Claims"},{"$f":"'Data SBP Measures'!$T2919","v":"3424"},{"$f":"'Data SBP Measures'!$U2919&B3560","v":"116# of completed VA Claims"},{"$f":"'Data SBP Measures'!$Y2919","v":"EACH"},null,null,null,null,null,"Veterans Services - 116","# of completed VA Claims",null,null,null,null,null,null,null,"917","145","Y","125","Probation Services","EACH","INPUT","ADOPTEDBUD",null,null,null,"Probation Services","Number of Juveniles in external placement",null,{"$f":"'Data SBP Measures'!$AF3560&'Data SBP Measures'!$AE3560& \" - \"& 'Data SBP Measures'!$U3560","v":"Number of Juveniles in external placementProbation Services - 145"},{"$f":"_xlfn.XLOOKUP(VALUE(W3560),'Data SBP Programs'!O:O,'Data SBP Programs'!S:S)","v":"Probation Services"}]
[{"$f":"'Data SBP Measures'!$AI2147&\" - \"&'Data SBP Measures'!$U2147","v":"Veterans Services - 116"},{"$f":"'Data SBP Measures'!$AF2147","v":"# of Congressional/Legislative Activities"},{"$f":"'Data SBP Measures'!$T2147","v":"2680"},{"$f":"'Data SBP Measures'!$U2147&B3561","v":"116# of Congressional/Legislative Activities"},{"$f":"'Data SBP Measures'!$Y2147","v":"EACH"},null,null,null,null,null,"Veterans Services - 116","# of Congressional/Legislative Activities",null,null,null,null,null,null,null,"923","145","Y","125","Probation Services","PERCENT","EFFICIENCY","ADOPTEDBUD",null,null,null,"Probation Services","Percent successfully discharged from probation",null,{"$f":"'Data SBP Measures'!$AF3561&'Data SBP Measures'!$AE3561& \" - \"& 'Data SBP Measures'!$U3561","v":"Percent successfully discharged from probationProbation Services - 145"},{"$f":"_xlfn.XLOOKUP(VALUE(W3561),'Data SBP Programs'!O:O,'Data SBP Programs'!S:S)","v":"Probation Services"}]
[{"$f":"'Data SBP Measures'!$AI2137&\" - \"&'Data SBP Measures'!$U2137","v":"Veterans Services - 116"},{"$f":"'Data SBP Measures'!$AF2137","v":"# of Customer Satisfaction Surveys Distrubuted"},{"$f":"'Data SBP Measures'!$T2137","v":"2670"},{"$f":"'Data SBP Measures'!$U2137&B3562","v":"116# of Customer Satisfaction Surveys Distrubuted"},{"$f":"'Data SBP Measures'!$Y2137","v":"EACH"},null,null,null,null,null,"Veterans Services - 116","# of Customer Satisfaction Surveys Distrubuted",null,null,null,null,null,null,null,"923","145","Y","125","Probation Services","PERCENT","EFFICIENCY","ADOPTEDBUD",null,null,null,"Probation Services","Percent successfully discharged from probation",null,{"$f":"'Data SBP Measures'!$AF3562&'Data SBP Measures'!$AE3562& \" - \"& 'Data SBP Measures'!$U3562","v":"Percent successfully discharged from probationProbation Services - 145"},{"$f":"_xlfn.XLOOKUP(VALUE(W3562),'Data SBP Programs'!O:O,'Data SBP Programs'!S:S)","v":"Probation Services"}]
[{"$f":"'Data SBP Measures'!$AI2138&\" - \"&'Data SBP Measures'!$U2138","v":"Veterans Services - 116"},{"$f":"'Data SBP Measures'!$AF2138","v":"# of Customer Satisfaction Surveys Returned"},{"$f":"'Data SBP Measures'!$T2138","v":"2671"},{"$f":"'Data SBP Measures'!$U2138&B3563","v":"116# of Customer Satisfaction Surveys Returned"},{"$f":"'Data SBP Measures'!$Y2138","v":"EACH"},null,null,null,null,null,"Veterans Services - 116","# of Customer Satisfaction Surveys Returned",null,null,null,null,null,null,null,"923","145","Y","125","Probation Services","PERCENT","EFFICIENCY","ADOPTEDBUD",null,null,null,"Probation Services","Percent successfully discharged from probation",null,{"$f":"'Data SBP Measures'!$AF3563&'Data SBP Measures'!$AE3563& \" - \"& 'Data SBP Measures'!$U3563","v":"Percent successfully discharged from probationProbation Services - 145"},{"$f":"_xlfn.XLOOKUP(VALUE(W3563),'Data SBP Programs'!O:O,'Data SBP Programs'!S:S)","v":"Probation Services"}]
[{"$f":"'Data SBP Measures'!$AI2921&\" - \"&'Data SBP Measures'!$U2921","v":"Veterans Services - 116"},{"$f":"'Data SBP Measures'!$AF2921","v":"# of Incarcerated veterans assisted"},{"$f":"'Data SBP Measures'!$T2921","v":"3426"},{"$f":"'Data SBP Measures'!$U2921&B3564","v":"116# of Incarcerated veterans assisted"},{"$f":"'Data SBP Measures'!$Y2921","v":"EACH"},null,null,null,null,null,"Veterans Services - 116","# of Incarcerated veterans assisted",null,null,null,null,null,null,null,"923","145","Y","125","Probation Services","PERCENT","EFFICIENCY","ADOPTEDBUD",null,null,null,"Probation Services","Percent successfully discharged from probation",null,{"$f":"'Data SBP Measures'!$AF3564&'Data SBP Measures'!$AE3564& \" - \"& 'Data SBP Measures'!$U3564","v":"Percent successfully discharged from probationProbation Services - 145"},{"$f":"_xlfn.XLOOKUP(VALUE(W3564),'Data SBP Programs'!O:O,'Data SBP Programs'!S:S)","v":"Probation Services"}]
[{"$f":"'Data SBP Measures'!$AI2142&\" - \"&'Data SBP Measures'!$U2142","v":"Veterans Services - 116"},{"$f":"'Data SBP Measures'!$AF2142","v":"# of Job Fairs Participated In Per Year"},{"$f":"'Data SBP Measures'!$T2142","v":"2676"},{"$f":"'Data SBP Measures'!$U2142&B3565","v":"116# of Job Fairs Participated In Per Year"},{"$f":"'Data SBP Measures'!$Y2142","v":"EACH"},null,null,null,null,null,"Veterans Services - 116","# of Job Fairs Participated In Per Year",null,null,null,null,null,null,null,"923","145","Y","125","Probation Services","PERCENT","EFFICIENCY","ADOPTEDBUD",null,null,null,"Probation Services","Percent successfully discharged from probation",null,{"$f":"'Data SBP Measures'!$AF3565&'Data SBP Measures'!$AE3565& \" - \"& 'Data SBP Measures'!$U3565","v":"Percent successfully discharged from probationProbation Services - 145"},{"$f":"_xlfn.XLOOKUP(VALUE(W3565),'Data SBP Programs'!O:O,'Data SBP Programs'!S:S)","v":"Probation Services"}]
[{"$f":"'Data SBP Measures'!$AI2918&\" - \"&'Data SBP Measures'!$U2918","v":"Veterans Services - 116"},{"$f":"'Data SBP Measures'!$AF2918","v":"# of new clients"},{"$f":"'Data SBP Measures'!$T2918","v":"3423"},{"$f":"'Data SBP Measures'!$U2918&B3566","v":"116# of new clients"},{"$f":"'Data SBP Measures'!$Y2918","v":"EACH"},null,null,null,null,null,"Veterans Services - 116","# of new clients",null,null,null,null,null,null,null,"923","145","Y","125","Probation Services","PERCENT","EFFICIENCY","ADOPTEDBUD",null,null,null,"Probation Services","Percent successfully discharged from probation",null,{"$f":"'Data SBP Measures'!$AF3566&'Data SBP Measures'!$AE3566& \" - \"& 'Data SBP Measures'!$U3566","v":"Percent successfully discharged from probationProbation Services - 145"},{"$f":"_xlfn.XLOOKUP(VALUE(W3566),'Data SBP Programs'!O:O,'Data SBP Programs'!S:S)","v":"Probation Services"}]
[{"$f":"'Data SBP Measures'!$AI2917&\" - \"&'Data SBP Measures'!$U2917","v":"Veterans Services - 116"},{"$f":"'Data SBP Measures'!$AF2917","v":"# of new VA claims"},{"$f":"'Data SBP Measures'!$T2917","v":"3422"},{"$f":"'Data SBP Measures'!$U2917&B3567","v":"116# of new VA claims"},{"$f":"'Data SBP Measures'!$Y2917","v":"EACH"},null,null,null,null,null,"Veterans Services - 116","# of new VA claims",null,null,null,null,null,null,null,"923","145","Y","125","Probation Services","PERCENT","EFFICIENCY","ADOPTEDBUD",null,null,null,"Probation Services","Percent successfully discharged from probation",null,{"$f":"'Data SBP Measures'!$AF3567&'Data SBP Measures'!$AE3567& \" - \"& 'Data SBP Measures'!$U3567","v":"Percent successfully discharged from probationProbation Services - 145"},{"$f":"_xlfn.XLOOKUP(VALUE(W3567),'Data SBP Programs'!O:O,'Data SBP Programs'!S:S)","v":"Probation Services"}]
[{"$f":"'Data SBP Measures'!$AI1998&\" - \"&'Data SBP Measures'!$U1998","v":"Veterans Services - 116"},{"$f":"'Data SBP Measures'!$AF1998","v":"# of Referrals"},{"$f":"'Data SBP Measures'!$T1998","v":"2582"},{"$f":"'Data SBP Measures'!$U1998&B3568","v":"116# of Referrals"},{"$f":"'Data SBP Measures'!$Y1998","v":"EACH"},null,null,null,null,null,"Veterans Services - 116","# of Referrals",null,null,null,null,null,null,null,"928","145","Y","126","Residential Services","PERCENT","EFFICIENCY","ADOPTEDBUD",null,null,null,"Residential Services","Percent successfully discharged from ISC",null,{"$f":"'Data SBP Measures'!$AF3568&'Data SBP Measures'!$AE3568& \" - \"& 'Data SBP Measures'!$U3568","v":"Percent successfully discharged from ISCResidential Services - 145"},{"$f":"_xlfn.XLOOKUP(VALUE(W3568),'Data SBP Programs'!O:O,'Data SBP Programs'!S:S)","v":"Residential Services"}]
[{"$f":"'Data SBP Measures'!$AI2149&\" - \"&'Data SBP Measures'!$U2149","v":"Veterans Services - 116"},{"$f":"'Data SBP Measures'!$AF2149","v":"# of Total Trainings Attended per year"},{"$f":"'Data SBP Measures'!$T2149","v":"2682"},{"$f":"'Data SBP Measures'!$U2149&B3569","v":"116# of Total Trainings Attended per year"},{"$f":"'Data SBP Measures'!$Y2149","v":"EACH"},null,null,null,null,null,"Veterans Services - 116","# of Total Trainings Attended per year",null,null,null,null,null,null,null,"928","145","Y","126","Residential Services","PERCENT","EFFICIENCY","ADOPTEDBUD",null,null,null,"Residential Services","Percent successfully discharged from ISC",null,{"$f":"'Data SBP Measures'!$AF3569&'Data SBP Measures'!$AE3569& \" - \"& 'Data SBP Measures'!$U3569","v":"Percent successfully discharged from ISCResidential Services - 145"},{"$f":"_xlfn.XLOOKUP(VALUE(W3569),'Data SBP Programs'!O:O,'Data SBP Programs'!S:S)","v":"Residential Services"}]
[{"$f":"'Data SBP Measures'!$AI2144&\" - \"&'Data SBP Measures'!$U2144","v":"Veterans Services - 116"},{"$f":"'Data SBP Measures'!$AF2144","v":"# of Travis County VSO Events Sponsored"},{"$f":"'Data SBP Measures'!$T2144","v":"2678"},{"$f":"'Data SBP Measures'!$U2144&B3570","v":"116# of Travis County VSO Events Sponsored"},{"$f":"'Data SBP Measures'!$Y2144","v":"EACH"},null,null,null,null,null,"Veterans Services - 116","# of Travis County VSO Events Sponsored",null,null,null,null,null,null,null,"930","145","Y","123","Health Services","EACH","INPUT","ADOPTEDBUD",null,null,null,"Health Services","Number of juveniles receiving individual and group therapy",null,{"$f":"'Data SBP Measures'!$AF3570&'Data SBP Measures'!$AE3570& \" - \"& 'Data SBP Measures'!$U3570","v":"Number of juveniles receiving individual and group therapyHealth Services - 145"},{"$f":"_xlfn.XLOOKUP(VALUE(W3570),'Data SBP Programs'!O:O,'Data SBP Programs'!S:S)","v":"Health Services"}]
[{"$f":"'Data SBP Measures'!$AI2145&\" - \"&'Data SBP Measures'!$U2145","v":"Veterans Services - 116"},{"$f":"'Data SBP Measures'!$AF2145","v":"# of Travis County VSO Women's Events Sponsored or Attended"},{"$f":"'Data SBP Measures'!$T2145","v":"2679"},{"$f":"'Data SBP Measures'!$U2145&B3571","v":"116# of Travis County VSO Women's Events Sponsored or Attended"},{"$f":"'Data SBP Measures'!$Y2145","v":"EACH"},null,null,null,null,null,"Veterans Services - 116","# of Travis County VSO Women's Events Sponsored or Attended",null,null,null,null,null,null,null,"930","145","Y","123","Health Services","EACH","INPUT","ADOPTEDBUD",null,null,null,"Health Services","Number of juveniles receiving individual and group therapy",null,{"$f":"'Data SBP Measures'!$AF3571&'Data SBP Measures'!$AE3571& \" - \"& 'Data SBP Measures'!$U3571","v":"Number of juveniles receiving individual and group therapyHealth Services - 145"},{"$f":"_xlfn.XLOOKUP(VALUE(W3571),'Data SBP Programs'!O:O,'Data SBP Programs'!S:S)","v":"Health Services"}]
[{"$f":"'Data SBP Measures'!$AI2916&\" - \"&'Data SBP Measures'!$U2916","v":"Veterans Services - 116"},{"$f":"'Data SBP Measures'!$AF2916","v":"# of VA claims Submitted"},{"$f":"'Data SBP Measures'!$T2916","v":"3421"},{"$f":"'Data SBP Measures'!$U2916&B3572","v":"116# of VA claims Submitted"},{"$f":"'Data SBP Measures'!$Y2916","v":"EACH"},null,null,null,null,null,"Veterans Services - 116","# of VA claims Submitted",null,null,null,null,null,null,null,"931","149","Y","127","Customer Service","EACH","OUTPUT","BLACKBOOK",null,null,null,"Customer Service","# of after hours responses",null,{"$f":"'Data SBP Measures'!$AF3572&'Data SBP Measures'!$AE3572& \" - \"& 'Data SBP Measures'!$U3572","v":"# of after hours responsesCustomer Service - 149"},{"$f":"_xlfn.XLOOKUP(VALUE(W3572),'Data SBP Programs'!O:O,'Data SBP Programs'!S:S)","v":"Customer Service"}]
[{"$f":"'Data SBP Measures'!$AI2143&\" - \"&'Data SBP Measures'!$U2143","v":"Veterans Services - 116"},{"$f":"'Data SBP Measures'!$AF2143","v":"# of VSO Events Supported"},{"$f":"'Data SBP Measures'!$T2143","v":"2677"},{"$f":"'Data SBP Measures'!$U2143&B3573","v":"116# of VSO Events Supported"},{"$f":"'Data SBP Measures'!$Y2143","v":"EACH"},null,null,null,null,null,"Veterans Services - 116","# of VSO Events Supported",null,null,null,null,null,null,null,"932","149","Y","127","Customer Service","EACH","OUTPUT","BLACKBOOK",null,null,null,"Customer Service","# of CSR responses completed",null,{"$f":"'Data SBP Measures'!$AF3573&'Data SBP Measures'!$AE3573& \" - \"& 'Data SBP Measures'!$U3573","v":"# of CSR responses completedCustomer Service - 149"},{"$f":"_xlfn.XLOOKUP(VALUE(W3573),'Data SBP Programs'!O:O,'Data SBP Programs'!S:S)","v":"Customer Service"}]
[{"$f":"'Data SBP Measures'!$AI2915&\" - \"&'Data SBP Measures'!$U2915","v":"Veterans Services - 116"},{"$f":"'Data SBP Measures'!$AF2915","v":"# of Women and LGBTQ+ Veterans and Dependents Seen"},{"$f":"'Data SBP Measures'!$T2915","v":"3420"},{"$f":"'Data SBP Measures'!$U2915&B3574","v":"116# of Women and LGBTQ+ Veterans and Dependents Seen"},{"$f":"'Data SBP Measures'!$Y2915","v":"EACH"},null,null,null,null,null,"Veterans Services - 116","# of Women and LGBTQ+ Veterans and Dependents Seen",null,null,null,null,null,null,null,"933","149","Y","127","Customer Service","EACH","OUTPUT","ADOPTEDBUD",null,null,null,"Customer Service","# of indigent Burials",null,{"$f":"'Data SBP Measures'!$AF3574&'Data SBP Measures'!$AE3574& \" - \"& 'Data SBP Measures'!$U3574","v":"# of indigent BurialsCustomer Service - 149"},{"$f":"_xlfn.XLOOKUP(VALUE(W3574),'Data SBP Programs'!O:O,'Data SBP Programs'!S:S)","v":"Customer Service"}]
[{"$f":"'Data SBP Measures'!$AI2139&\" - \"&'Data SBP Measures'!$U2139","v":"Veterans Services - 116"},{"$f":"'Data SBP Measures'!$AF2139","v":"% of Customers with Overall Satisfaction based on Customer Survey Results"},{"$f":"'Data SBP Measures'!$T2139","v":"2672"},{"$f":"'Data SBP Measures'!$U2139&B3575","v":"116% of Customers with Overall Satisfaction based on Customer Survey Results"},{"$f":"'Data SBP Measures'!$Y2139","v":"PERCENT"},null,null,null,null,null,"Veterans Services - 116","% of Customers with Overall Satisfaction based on Customer Survey Results",null,null,null,null,null,null,null,"937","149","Y","128","Development Services and Long Range Planning","EACH","OUTPUT","BLACKBOOK",null,null,null,"Development Services and Long Range Planning","# of cases dev Enforcement Group referred to Cty Atty",null,{"$f":"'Data SBP Measures'!$AF3575&'Data SBP Measures'!$AE3575& \" - \"& 'Data SBP Measures'!$U3575","v":"# of cases dev Enforcement Group referred to Cty AttyDevelopment Services and Long Range Planning - 149"},{"$f":"_xlfn.XLOOKUP(VALUE(W3575),'Data SBP Programs'!O:O,'Data SBP Programs'!S:S)","v":"Development Services and Long Range Planning"}]
[{"$f":"'Data SBP Measures'!$AI2141&\" - \"&'Data SBP Measures'!$U2141","v":"Veterans Services - 116"},{"$f":"'Data SBP Measures'!$AF2141","v":"Actual total # of phone calls"},{"$f":"'Data SBP Measures'!$T2141","v":"2675"},{"$f":"'Data SBP Measures'!$U2141&B3576","v":"116Actual total # of phone calls"},{"$f":"'Data SBP Measures'!$Y2141","v":"EACH"},null,null,null,null,null,"Veterans Services - 116","Actual total # of phone calls",null,null,null,null,null,null,null,"938","149","Y","128","Development Services and Long Range Planning","EACH","OUTPUT","BLACKBOOK",null,null,null,"Development Services and Long Range Planning","# of complaints development Enforcement Group investigated",null,{"$f":"'Data SBP Measures'!$AF3576&'Data SBP Measures'!$AE3576& \" - \"& 'Data SBP Measures'!$U3576","v":"# of complaints development Enforcement Group investigatedDevelopment Services and Long Range Planning - 149"},{"$f":"_xlfn.XLOOKUP(VALUE(W3576),'Data SBP Programs'!O:O,'Data SBP Programs'!S:S)","v":"Development Services and Long Range Planning"}]
[{"$f":"'Data SBP Measures'!$AI2914&\" - \"&'Data SBP Measures'!$U2914","v":"Veterans Services - 116"},{"$f":"'Data SBP Measures'!$AF2914","v":"Grant Applications (Federal/State/Local)"},{"$f":"'Data SBP Measures'!$T2914","v":"3419"},{"$f":"'Data SBP Measures'!$U2914&B3577","v":"116Grant Applications (Federal/State/Local)"},{"$f":"'Data SBP Measures'!$Y2914","v":"EACH"},null,null,null,null,null,"Veterans Services - 116","Grant Applications (Federal/State/Local)",null,null,null,null,null,null,null,"939","149","Y","128","Development Services and Long Range Planning","EACH","OUTPUT","BLACKBOOK",null,null,null,"Development Services and Long Range Planning","# of driveway permits reviewed",null,{"$f":"'Data SBP Measures'!$AF3577&'Data SBP Measures'!$AE3577& \" - \"& 'Data SBP Measures'!$U3577","v":"# of driveway permits reviewedDevelopment Services and Long Range Planning - 149"},{"$f":"_xlfn.XLOOKUP(VALUE(W3577),'Data SBP Programs'!O:O,'Data SBP Programs'!S:S)","v":"Development Services and Long Range Planning"}]
[{"$f":"'Data SBP Measures'!$AI2140&\" - \"&'Data SBP Measures'!$U2140","v":"Veterans Services - 116"},{"$f":"'Data SBP Measures'!$AF2140","v":"Unique # of phone calls"},{"$f":"'Data SBP Measures'!$T2140","v":"2674"},{"$f":"'Data SBP Measures'!$U2140&B3578","v":"116Unique # of phone calls"},{"$f":"'Data SBP Measures'!$Y2140","v":"EACH"},null,null,null,null,null,"Veterans Services - 116","Unique # of phone calls",null,null,null,null,null,null,null,"940","149","Y","128","Development Services and Long Range Planning","EACH","OUTPUT","BLACKBOOK",null,null,null,"Development Services and Long Range Planning","# of Fiscal Accounts Established for New Subdivisions",null,{"$f":"'Data SBP Measures'!$AF3578&'Data SBP Measures'!$AE3578& \" - \"& 'Data SBP Measures'!$U3578","v":"# of Fiscal Accounts Established for New SubdivisionsDevelopment Services and Long Range Planning - 149"},{"$f":"_xlfn.XLOOKUP(VALUE(W3578),'Data SBP Programs'!O:O,'Data SBP Programs'!S:S)","v":"Development Services and Long Range Planning"}]
[{"$f":"'Data SBP Measures'!$AI2920&\" - \"&'Data SBP Measures'!$U2920","v":"Veterans Services - 116"},{"$f":"'Data SBP Measures'!$AF2920","v":"Veterans assisted under Employment Recruitment and Transitional assistance"},{"$f":"'Data SBP Measures'!$T2920","v":"3425"},{"$f":"'Data SBP Measures'!$U2920&B3579","v":"116Veterans assisted under Employment Recruitment and Transitional assistance"},{"$f":"'Data SBP Measures'!$Y2920","v":"EACH"},null,null,null,null,null,"Veterans Services - 116","Veterans assisted under Employment Recruitment and Transitional assistance",null,null,null,null,null,null,null,"942","149","Y","128","Development Services and Long Range Planning","EACH","OUTPUT","BLACKBOOK",null,null,null,"Development Services and Long Range Planning","# of Long-form plats / Updates reviewed  (not approved)",null,{"$f":"'Data SBP Measures'!$AF3579&'Data SBP Measures'!$AE3579& \" - \"& 'Data SBP Measures'!$U3579","v":"# of Long-form plats / Updates reviewed  (not approved)Development Services and Long Range Planning - 149"},{"$f":"_xlfn.XLOOKUP(VALUE(W3579),'Data SBP Programs'!O:O,'Data SBP Programs'!S:S)","v":"Development Services and Long Range Planning"}]
[{"$f":"'Data SBP Measures'!$AI2535&\" - \"&'Data SBP Measures'!$U2535","v":"VICE - 137"},{"$f":"'Data SBP Measures'!$AF2535","v":"Amount of drugs (cocaine,meth,heroin,THC oil, etc) seized (grams) (Unit specific)"},{"$f":"'Data SBP Measures'!$T2535","v":"3198"},{"$f":"'Data SBP Measures'!$U2535&B3580","v":"137Amount of drugs (cocaine,meth,heroin,THC oil, etc) seized (grams) (Unit specific)"},{"$f":"'Data SBP Measures'!$Y2535","v":"EACH"},null,null,null,null,null,"VICE - 137","Amount of drugs (cocaine,meth,heroin,THC oil, etc) seized (grams) (Unit specific)",null,null,null,null,null,null,null,"943","149","Y","128","Development Services and Long Range Planning","EACH","OUTPUT","ADOPTEDBUD",null,null,null,"Development Services and Long Range Planning","# Res/Sm Cmcl Type  A/B permits*# permits rvwed (not issued)",null,{"$f":"'Data SBP Measures'!$AF3580&'Data SBP Measures'!$AE3580& \" - \"& 'Data SBP Measures'!$U3580","v":"# Res/Sm Cmcl Type  A/B permits*# permits rvwed (not issued)Development Services and Long Range Planning - 149"},{"$f":"_xlfn.XLOOKUP(VALUE(W3580),'Data SBP Programs'!O:O,'Data SBP Programs'!S:S)","v":"Development Services and Long Range Planning"}]
[{"$f":"'Data SBP Measures'!$AI2538&\" - \"&'Data SBP Measures'!$U2538","v":"VICE - 137"},{"$f":"'Data SBP Measures'!$AF2538","v":"Amount of Marijuana seized (grams) (Unit specific)"},{"$f":"'Data SBP Measures'!$T2538","v":"3200"},{"$f":"'Data SBP Measures'!$U2538&B3581","v":"137Amount of Marijuana seized (grams) (Unit specific)"},{"$f":"'Data SBP Measures'!$Y2538","v":"EACH"},null,null,null,null,null,"VICE - 137","Amount of Marijuana seized (grams) (Unit specific)",null,null,null,null,null,null,null,"945","149","Y","128","Development Services and Long Range Planning","EACH","OUTPUT","BLACKBOOK",null,null,null,"Development Services and Long Range Planning","# of street acceptance requests process",null,{"$f":"'Data SBP Measures'!$AF3581&'Data SBP Measures'!$AE3581& \" - \"& 'Data SBP Measures'!$U3581","v":"# of street acceptance requests processDevelopment Services and Long Range Planning - 149"},{"$f":"_xlfn.XLOOKUP(VALUE(W3581),'Data SBP Programs'!O:O,'Data SBP Programs'!S:S)","v":"Development Services and Long Range Planning"}]
[{"$f":"'Data SBP Measures'!$AI2542&\" - \"&'Data SBP Measures'!$U2542","v":"VICE - 137"},{"$f":"'Data SBP Measures'!$AF2542","v":"Amount of money seized"},{"$f":"'Data SBP Measures'!$T2542","v":"3204"},{"$f":"'Data SBP Measures'!$U2542&B3582","v":"137Amount of money seized"},{"$f":"'Data SBP Measures'!$Y2542","v":"DOLLARS"},null,null,null,null,null,"VICE - 137","Amount of money seized",null,null,null,null,null,null,null,"946","149","Y","128","Development Services and Long Range Planning","EACH","OUTPUT","BLACKBOOK",null,null,null,"Development Services and Long Range Planning","# of subdivision inspections",null,{"$f":"'Data SBP Measures'!$AF3582&'Data SBP Measures'!$AE3582& \" - \"& 'Data SBP Measures'!$U3582","v":"# of subdivision inspectionsDevelopment Services and Long Range Planning - 149"},{"$f":"_xlfn.XLOOKUP(VALUE(W3582),'Data SBP Programs'!O:O,'Data SBP Programs'!S:S)","v":"Development Services and Long Range Planning"}]
[{"$f":"'Data SBP Measures'!$AI2536&\" - \"&'Data SBP Measures'!$U2536","v":"VICE - 137"},{"$f":"'Data SBP Measures'!$AF2536","v":"Amount of other drugs (LSD etc) seized (dosage units) (Unit specific)"},{"$f":"'Data SBP Measures'!$T2536","v":"3199"},{"$f":"'Data SBP Measures'!$U2536&B3583","v":"137Amount of other drugs (LSD etc) seized (dosage units) (Unit specific)"},{"$f":"'Data SBP Measures'!$Y2536","v":"EACH"},null,null,null,null,null,"VICE - 137","Amount of other drugs (LSD etc) seized (dosage units) (Unit specific)",null,null,null,null,null,null,null,"947","149","Y","128","Development Services and Long Range Planning","EACH","OUTPUT","BLACKBOOK",null,null,null,"Development Services and Long Range Planning","# Subdivision Preliminary/Updated Plans rvwed (not approved)",null,{"$f":"'Data SBP Measures'!$AF3583&'Data SBP Measures'!$AE3583& \" - \"& 'Data SBP Measures'!$U3583","v":"# Subdivision Preliminary/Updated Plans rvwed (not approved)Development Services and Long Range Planning - 149"},{"$f":"_xlfn.XLOOKUP(VALUE(W3583),'Data SBP Programs'!O:O,'Data SBP Programs'!S:S)","v":"Development Services and Long Range Planning"}]
[{"$f":"'Data SBP Measures'!$AI2543&\" - \"&'Data SBP Measures'!$U2543","v":"VICE - 137"},{"$f":"'Data SBP Measures'!$AF2543","v":"Funds received from auctioning forfeit items (cars, jewelry, all assets)"},{"$f":"'Data SBP Measures'!$T2543","v":"3205"},{"$f":"'Data SBP Measures'!$U2543&B3584","v":"137Funds received from auctioning forfeit items (cars, jewelry, all assets)"},{"$f":"'Data SBP Measures'!$Y2543","v":"EACH"},null,null,null,null,null,"VICE - 137","Funds received from auctioning forfeit items (cars, jewelry, all assets)",null,null,null,null,null,null,null,"949","149","Y","128","Development Services and Long Range Planning","EACH","OUTPUT","BLACKBOOK",null,null,null,"Development Services and Long Range Planning","# of utility permits reviewed",null,{"$f":"'Data SBP Measures'!$AF3584&'Data SBP Measures'!$AE3584& \" - \"& 'Data SBP Measures'!$U3584","v":"# of utility permits reviewedDevelopment Services and Long Range Planning - 149"},{"$f":"_xlfn.XLOOKUP(VALUE(W3584),'Data SBP Programs'!O:O,'Data SBP Programs'!S:S)","v":"Development Services and Long Range Planning"}]
[{"$f":"'Data SBP Measures'!$AI2541&\" - \"&'Data SBP Measures'!$U2541","v":"VICE - 137"},{"$f":"'Data SBP Measures'!$AF2541","v":"No. of firearms seized"},{"$f":"'Data SBP Measures'!$T2541","v":"3203"},{"$f":"'Data SBP Measures'!$U2541&B3585","v":"137No. of firearms seized"},{"$f":"'Data SBP Measures'!$Y2541","v":"EACH"},null,null,null,null,null,"VICE - 137","No. of firearms seized",null,null,null,null,null,null,null,"950","149","Y","128","Development Services and Long Range Planning","EACH","OUTPUT","BLACKBOOK",null,null,null,"Development Services and Long Range Planning","# of vacations processed",null,{"$f":"'Data SBP Measures'!$AF3585&'Data SBP Measures'!$AE3585& \" - \"& 'Data SBP Measures'!$U3585","v":"# of vacations processedDevelopment Services and Long Range Planning - 149"},{"$f":"_xlfn.XLOOKUP(VALUE(W3585),'Data SBP Programs'!O:O,'Data SBP Programs'!S:S)","v":"Development Services and Long Range Planning"}]
[{"$f":"'Data SBP Measures'!$AI2539&\" - \"&'Data SBP Measures'!$U2539","v":"VICE - 137"},{"$f":"'Data SBP Measures'!$AF2539","v":"No. of search warrants obtained"},{"$f":"'Data SBP Measures'!$T2539","v":"3201"},{"$f":"'Data SBP Measures'!$U2539&B3586","v":"137No. of search warrants obtained"},{"$f":"'Data SBP Measures'!$Y2539","v":"EACH"},null,null,null,null,null,"VICE - 137","No. of search warrants obtained",null,null,null,null,null,null,null,"951","149","Y","128","Development Services and Long Range Planning","PERCENT","OUTCOME","BLACKBOOK",null,null,null,"Development Services and Long Range Planning","% of Amended Plats reviewed within 15 / 5 days",null,{"$f":"'Data SBP Measures'!$AF3586&'Data SBP Measures'!$AE3586& \" - \"& 'Data SBP Measures'!$U3586","v":"% of Amended Plats reviewed within 15 / 5 daysDevelopment Services and Long Range Planning - 149"},{"$f":"_xlfn.XLOOKUP(VALUE(W3586),'Data SBP Programs'!O:O,'Data SBP Programs'!S:S)","v":"Development Services and Long Range Planning"}]
[{"$f":"'Data SBP Measures'!$AI2540&\" - \"&'Data SBP Measures'!$U2540","v":"VICE - 137"},{"$f":"'Data SBP Measures'!$AF2540","v":"No. of vehicles (boats, jetskis, etc) seized"},{"$f":"'Data SBP Measures'!$T2540","v":"3202"},{"$f":"'Data SBP Measures'!$U2540&B3587","v":"137No. of vehicles (boats, jetskis, etc) seized"},{"$f":"'Data SBP Measures'!$Y2540","v":"EACH"},null,null,null,null,null,"VICE - 137","No. of vehicles (boats, jetskis, etc) seized",null,null,null,null,null,null,null,"953","149","Y","128","Development Services and Long Range Planning","PERCENT","OUTCOME","BLACKBOOK",null,null,null,"Development Services and Long Range Planning","% of complaints DE Group investigated w/i 2 working days",null,{"$f":"'Data SBP Measures'!$AF3587&'Data SBP Measures'!$AE3587& \" - \"& 'Data SBP Measures'!$U3587","v":"% of complaints DE Group investigated w/i 2 working daysDevelopment Services and Long Range Planning - 149"},{"$f":"_xlfn.XLOOKUP(VALUE(W3587),'Data SBP Programs'!O:O,'Data SBP Programs'!S:S)","v":"Development Services and Long Range Planning"}]
[{"$f":"'Data SBP Measures'!$AI3000&\" - \"&'Data SBP Measures'!$U3000","v":"Victim Services - 137"},{"$f":"'Data SBP Measures'!$AF3000","v":"Average # cases per counselor per month"},{"$f":"'Data SBP Measures'!$T3000","v":"3546"},{"$f":"'Data SBP Measures'!$U3000&B3588","v":"137Average # cases per counselor per month"},{"$f":"'Data SBP Measures'!$Y3000","v":"EACH"},null,null,null,null,null,"Victim Services - 137","Average # cases per counselor per month",null,null,null,null,null,null,null,"954","149","Y","128","Development Services and Long Range Planning","PERCENT","OUTCOME","BLACKBOOK",null,null,null,"Development Services and Long Range Planning","% of driveway permits comments issued w/i 21 working days of receiving completed application",null,{"$f":"'Data SBP Measures'!$AF3588&'Data SBP Measures'!$AE3588& \" - \"& 'Data SBP Measures'!$U3588","v":"% of driveway permits comments issued w/i 21 working days of receiving completed applicationDevelopment Services and Long Range Planning - 149"},{"$f":"_xlfn.XLOOKUP(VALUE(W3588),'Data SBP Programs'!O:O,'Data SBP Programs'!S:S)","v":"Development Services and Long Range Planning"}]
[{"$f":"'Data SBP Measures'!$AI3001&\" - \"&'Data SBP Measures'!$U3001","v":"Victim Services - 137"},{"$f":"'Data SBP Measures'!$AF3001","v":"Initial Contacts"},{"$f":"'Data SBP Measures'!$T3001","v":"3547"},{"$f":"'Data SBP Measures'!$U3001&B3589","v":"137Initial Contacts"},{"$f":"'Data SBP Measures'!$Y3001","v":"EACH"},null,null,null,null,null,"Victim Services - 137","Initial Contacts",null,null,null,null,null,null,null,"955","149","Y","128","Development Services and Long Range Planning","PERCENT","OUTCOME","BLACKBOOK",null,null,null,"Development Services and Long Range Planning","% of Fiscal Accounts established within 10 days",null,{"$f":"'Data SBP Measures'!$AF3589&'Data SBP Measures'!$AE3589& \" - \"& 'Data SBP Measures'!$U3589","v":"% of Fiscal Accounts established within 10 daysDevelopment Services and Long Range Planning - 149"},{"$f":"_xlfn.XLOOKUP(VALUE(W3589),'Data SBP Programs'!O:O,'Data SBP Programs'!S:S)","v":"Development Services and Long Range Planning"}]
[{"$f":"'Data SBP Measures'!$AI2999&\" - \"&'Data SBP Measures'!$U2999","v":"Victim Services - 137"},{"$f":"'Data SBP Measures'!$AF2999","v":"No of cases assigned"},{"$f":"'Data SBP Measures'!$T2999","v":"3544"},{"$f":"'Data SBP Measures'!$U2999&B3590","v":"137No of cases assigned"},{"$f":"'Data SBP Measures'!$Y2999","v":"EACH"},null,null,null,null,null,"Victim Services - 137","No of cases assigned",null,null,null,null,null,null,null,"956","149","Y","128","Development Services and Long Range Planning","PERCENT","OUTCOME","ADOPTEDBUD",null,null,null,"Development Services and Long Range Planning","% of lg commercial & subdivision Type \"A\" or \"B\" permits comments issued w/i 25 working days of initial review, 7 days for re-submittals",null,{"$f":"'Data SBP Measures'!$AF3590&'Data SBP Measures'!$AE3590& \" - \"& 'Data SBP Measures'!$U3590","v":"% of lg commercial & subdivision Type \"A\" or \"B\" permits comments issued w/i 25 working days of initial review, 7 days for re-submittalsDevelopment Services and Long Range Planning - 149"},{"$f":"_xlfn.XLOOKUP(VALUE(W3590),'Data SBP Programs'!O:O,'Data SBP Programs'!S:S)","v":"Development Services and Long Range Planning"}]
[{"$f":"'Data SBP Measures'!$AI3002&\" - \"&'Data SBP Measures'!$U3002","v":"Victim Services - 137"},{"$f":"'Data SBP Measures'!$AF3002","v":"No of follow up contacts"},{"$f":"'Data SBP Measures'!$T3002","v":"3548"},{"$f":"'Data SBP Measures'!$U3002&B3591","v":"137No of follow up contacts"},{"$f":"'Data SBP Measures'!$Y3002","v":"EACH"},null,null,null,null,null,"Victim Services - 137","No of follow up contacts",null,null,null,null,null,null,null,"957","149","Y","128","Development Services and Long Range Planning","PERCENT","OUTCOME","ADOPTEDBUD",null,null,null,"Development Services and Long Range Planning","% of Plats/Updates reviewed within 20 / 10 days",null,{"$f":"'Data SBP Measures'!$AF3591&'Data SBP Measures'!$AE3591& \" - \"& 'Data SBP Measures'!$U3591","v":"% of Plats/Updates reviewed within 20 / 10 daysDevelopment Services and Long Range Planning - 149"},{"$f":"_xlfn.XLOOKUP(VALUE(W3591),'Data SBP Programs'!O:O,'Data SBP Programs'!S:S)","v":"Development Services and Long Range Planning"}]
[{"$f":"'Data SBP Measures'!$AI2998&\" - \"&'Data SBP Measures'!$U2998","v":"Victim Services - 137"},{"$f":"'Data SBP Measures'!$AF2998","v":"No. of cases reviewed"},{"$f":"'Data SBP Measures'!$T2998","v":"3543"},{"$f":"'Data SBP Measures'!$U2998&B3592","v":"137No. of cases reviewed"},{"$f":"'Data SBP Measures'!$Y2998","v":"EACH"},null,null,null,null,null,"Victim Services - 137","No. of cases reviewed",null,null,null,null,null,null,null,"959","149","Y","128","Development Services and Long Range Planning","PERCENT","OUTCOME","BLACKBOOK",null,null,null,"Development Services and Long Range Planning","% of subdivision inspections done within a 5 day time frame",null,{"$f":"'Data SBP Measures'!$AF3592&'Data SBP Measures'!$AE3592& \" - \"& 'Data SBP Measures'!$U3592","v":"% of subdivision inspections done within a 5 day time frameDevelopment Services and Long Range Planning - 149"},{"$f":"_xlfn.XLOOKUP(VALUE(W3592),'Data SBP Programs'!O:O,'Data SBP Programs'!S:S)","v":"Development Services and Long Range Planning"}]
[{"$f":"'Data SBP Measures'!$AI477&\" - \"&'Data SBP Measures'!$U477","v":"Victim Services - 137"},{"$f":"'Data SBP Measures'!$AF477","v":"No. of victims served"},{"$f":"'Data SBP Measures'!$T477","v":"1519"},{"$f":"'Data SBP Measures'!$U477&B3593","v":"137No. of victims served"},{"$f":"'Data SBP Measures'!$Y477","v":"EACH"},null,null,null,null,null,"Victim Services - 137","No. of victims served",null,null,null,null,null,null,null,"960","149","Y","128","Development Services and Long Range Planning","PERCENT","OUTCOME","ADOPTEDBUD",null,null,null,"Development Services and Long Range Planning","% of Subdivision Preliminary/Updated Plans reviewed w/i 30/15 days",null,{"$f":"'Data SBP Measures'!$AF3593&'Data SBP Measures'!$AE3593& \" - \"& 'Data SBP Measures'!$U3593","v":"% of Subdivision Preliminary/Updated Plans reviewed w/i 30/15 daysDevelopment Services and Long Range Planning - 149"},{"$f":"_xlfn.XLOOKUP(VALUE(W3593),'Data SBP Programs'!O:O,'Data SBP Programs'!S:S)","v":"Development Services and Long Range Planning"}]
[{"$f":"'Data SBP Measures'!$AI2344&\" - \"&'Data SBP Measures'!$U2344","v":"Voter Registration Division - 108"},{"$f":"'Data SBP Measures'!$AF2344","v":"# Correspondence mail"},{"$f":"'Data SBP Measures'!$T2344","v":"291"},{"$f":"'Data SBP Measures'!$U2344&B3594","v":"108# Correspondence mail"},{"$f":"'Data SBP Measures'!$Y2344","v":"EACH"},null,null,null,null,null,"Voter Registration Division - 108","# Correspondence mail",null,null,null,null,null,null,null,"961","149","Y","128","Development Services and Long Range Planning","PERCENT","OUTCOME","BLACKBOOK",null,null,null,"Development Services and Long Range Planning","% of subdivision streets submitted for acceptance to Court w/i 45 calendar days of completion of Required Document items",null,{"$f":"'Data SBP Measures'!$AF3594&'Data SBP Measures'!$AE3594& \" - \"& 'Data SBP Measures'!$U3594","v":"% of subdivision streets submitted for acceptance to Court w/i 45 calendar days of completion of Required Document itemsDevelopment Services and Long Range Planning - 149"},{"$f":"_xlfn.XLOOKUP(VALUE(W3594),'Data SBP Programs'!O:O,'Data SBP Programs'!S:S)","v":"Development Services and Long Range Planning"}]
[{"$f":"'Data SBP Measures'!$AI2337&\" - \"&'Data SBP Measures'!$U2337","v":"Voter Registration Division - 108"},{"$f":"'Data SBP Measures'!$AF2337","v":"# Customer Service visits"},{"$f":"'Data SBP Measures'!$T2337","v":"290"},{"$f":"'Data SBP Measures'!$U2337&B3595","v":"108# Customer Service visits"},{"$f":"'Data SBP Measures'!$Y2337","v":"EACH"},null,null,null,null,null,"Voter Registration Division - 108","# Customer Service visits",null,null,null,null,null,null,null,"962","149","Y","128","Development Services and Long Range Planning","PERCENT","OUTCOME","BLACKBOOK",null,null,null,"Development Services and Long Range Planning","% of Type \"A\" res dev permits comments issued w/i 10 working days; Type \"B\" w/i 21 working days",null,{"$f":"'Data SBP Measures'!$AF3595&'Data SBP Measures'!$AE3595& \" - \"& 'Data SBP Measures'!$U3595","v":"% of Type \"A\" res dev permits comments issued w/i 10 working days; Type \"B\" w/i 21 working daysDevelopment Services and Long Range Planning - 149"},{"$f":"_xlfn.XLOOKUP(VALUE(W3595),'Data SBP Programs'!O:O,'Data SBP Programs'!S:S)","v":"Development Services and Long Range Planning"}]
[{"$f":"'Data SBP Measures'!$AI2281&\" - \"&'Data SBP Measures'!$U2281","v":"Voter Registration Division - 108"},{"$f":"'Data SBP Measures'!$AF2281","v":"# Documents received and processed"},{"$f":"'Data SBP Measures'!$T2281","v":"281"},{"$f":"'Data SBP Measures'!$U2281&B3596","v":"108# Documents received and processed"},{"$f":"'Data SBP Measures'!$Y2281","v":"EACH"},null,null,null,null,null,"Voter Registration Division - 108","# Documents received and processed",null,null,null,null,null,null,null,"965","149","Y","128","Development Services and Long Range Planning","PERCENT","OUTCOME","BLACKBOOK",null,null,null,"Development Services and Long Range Planning","% of vacations processed & submitted for court action w/i 60 calendar days of receiving completed application",null,{"$f":"'Data SBP Measures'!$AF3596&'Data SBP Measures'!$AE3596& \" - \"& 'Data SBP Measures'!$U3596","v":"% of vacations processed & submitted for court action w/i 60 calendar days of receiving completed applicationDevelopment Services and Long Range Planning - 149"},{"$f":"_xlfn.XLOOKUP(VALUE(W3596),'Data SBP Programs'!O:O,'Data SBP Programs'!S:S)","v":"Development Services and Long Range Planning"}]
[{"$f":"'Data SBP Measures'!$AI2287&\" - \"&'Data SBP Measures'!$U2287","v":"Voter Registration Division - 108"},{"$f":"'Data SBP Measures'!$AF2287","v":"# Documents rejected/examined"},{"$f":"'Data SBP Measures'!$T2287","v":"282"},{"$f":"'Data SBP Measures'!$U2287&B3597","v":"108# Documents rejected/examined"},{"$f":"'Data SBP Measures'!$Y2287","v":"EACH"},null,null,null,null,null,"Voter Registration Division - 108","# Documents rejected/examined",null,null,null,null,null,null,null,"966","149","Y","129","Environmental Quality","PERCENT","OUTCOME","ADOPTEDBUD",null,null,null,"Environmental Quality","Percent of water bodies fishable and swimmable",null,{"$f":"'Data SBP Measures'!$AF3597&'Data SBP Measures'!$AE3597& \" - \"& 'Data SBP Measures'!$U3597","v":"Percent of water bodies fishable and swimmableEnvironmental Quality - 149"},{"$f":"_xlfn.XLOOKUP(VALUE(W3597),'Data SBP Programs'!O:O,'Data SBP Programs'!S:S)","v":"Environmental Quality"}]
[{"$f":"'Data SBP Measures'!$AI2417&\" - \"&'Data SBP Measures'!$U2417","v":"Voter Registration Division - 108"},{"$f":"'Data SBP Measures'!$AF2417","v":"# Documents Scanned/Imaged"},{"$f":"'Data SBP Measures'!$T2417","v":"300"},{"$f":"'Data SBP Measures'!$U2417&B3598","v":"108# Documents Scanned/Imaged"},{"$f":"'Data SBP Measures'!$Y2417","v":"EACH"},null,null,null,null,null,"Voter Registration Division - 108","# Documents Scanned/Imaged",null,null,null,null,null,null,null,"967","149","Y","129","Environmental Quality","EACH","OUTPUT","BLACKBOOK",null,null,null,"Environmental Quality","Development & CIP projects reviewed for SWP3 and ESC",null,{"$f":"'Data SBP Measures'!$AF3598&'Data SBP Measures'!$AE3598& \" - \"& 'Data SBP Measures'!$U3598","v":"Development & CIP projects reviewed for SWP3 and ESCEnvironmental Quality - 149"},{"$f":"_xlfn.XLOOKUP(VALUE(W3598),'Data SBP Programs'!O:O,'Data SBP Programs'!S:S)","v":"Environmental Quality"}]
[{"$f":"'Data SBP Measures'!$AI2329&\" - \"&'Data SBP Measures'!$U2329","v":"Voter Registration Division - 108"},{"$f":"'Data SBP Measures'!$AF2329","v":"# Telephone Inquiries"},{"$f":"'Data SBP Measures'!$T2329","v":"289"},{"$f":"'Data SBP Measures'!$U2329&B3599","v":"108# Telephone Inquiries"},{"$f":"'Data SBP Measures'!$Y2329","v":"EACH"},null,null,null,null,null,"Voter Registration Division - 108","# Telephone Inquiries",null,null,null,null,null,null,null,"968","149","Y","129","Environmental Quality","EACH","OUTPUT","BLACKBOOK",null,null,null,"Environmental Quality","Private development projects & PWQC inspected",null,{"$f":"'Data SBP Measures'!$AF3599&'Data SBP Measures'!$AE3599& \" - \"& 'Data SBP Measures'!$U3599","v":"Private development projects & PWQC inspectedEnvironmental Quality - 149"},{"$f":"_xlfn.XLOOKUP(VALUE(W3599),'Data SBP Programs'!O:O,'Data SBP Programs'!S:S)","v":"Environmental Quality"}]
[{"$f":"'Data SBP Measures'!$AI2299&\" - \"&'Data SBP Measures'!$U2299","v":"Voter Registration Division - 108"},{"$f":"'Data SBP Measures'!$AF2299","v":"# Total Registered Voters"},{"$f":"'Data SBP Measures'!$T2299","v":"284"},{"$f":"'Data SBP Measures'!$U2299&B3600","v":"108# Total Registered Voters"},{"$f":"'Data SBP Measures'!$Y2299","v":"EACH"},null,null,null,null,null,"Voter Registration Division - 108","# Total Registered Voters",null,null,null,null,null,null,null,"969","149","Y","129","Environmental Quality","EACH","OUTPUT","BLACKBOOK",null,null,null,"Environmental Quality","CIPs audited & County PWQCs inspected",null,{"$f":"'Data SBP Measures'!$AF3600&'Data SBP Measures'!$AE3600& \" - \"& 'Data SBP Measures'!$U3600","v":"CIPs audited & County PWQCs inspectedEnvironmental Quality - 149"},{"$f":"_xlfn.XLOOKUP(VALUE(W3600),'Data SBP Programs'!O:O,'Data SBP Programs'!S:S)","v":"Environmental Quality"}]
[{"$f":"'Data SBP Measures'!$AI2347&\" - \"&'Data SBP Measures'!$U2347","v":"Voter Registration Division - 108"},{"$f":"'Data SBP Measures'!$AF2347","v":"# Total TEAM records processed (imports, exports, errors/rejects)"},{"$f":"'Data SBP Measures'!$T2347","v":"292"},{"$f":"'Data SBP Measures'!$U2347&B3601","v":"108# Total TEAM records processed (imports, exports, errors/rejects)"},{"$f":"'Data SBP Measures'!$Y2347","v":"EACH"},null,null,null,null,null,"Voter Registration Division - 108","# Total TEAM records processed (imports, exports, errors/rejects)",null,null,null,null,null,null,null,"970","149","Y","129","Environmental Quality","EACH","OUTPUT","BLACKBOOK",null,null,null,"Environmental Quality","Number of illicit discharges inspected",null,{"$f":"'Data SBP Measures'!$AF3601&'Data SBP Measures'!$AE3601& \" - \"& 'Data SBP Measures'!$U3601","v":"Number of illicit discharges inspectedEnvironmental Quality - 149"},{"$f":"_xlfn.XLOOKUP(VALUE(W3601),'Data SBP Programs'!O:O,'Data SBP Programs'!S:S)","v":"Environmental Quality"}]
[{"$f":"'Data SBP Measures'!$AI2307&\" - \"&'Data SBP Measures'!$U2307","v":"Voter Registration Division - 108"},{"$f":"'Data SBP Measures'!$AF2307","v":"# Total Voter Records"},{"$f":"'Data SBP Measures'!$T2307","v":"286"},{"$f":"'Data SBP Measures'!$U2307&B3602","v":"108# Total Voter Records"},{"$f":"'Data SBP Measures'!$Y2307","v":"EACH"},null,null,null,null,null,"Voter Registration Division - 108","# Total Voter Records",null,null,null,null,null,null,null,"971","149","Y","129","Environmental Quality","EACH","OUTCOME","BLACKBOOK",null,null,null,"Environmental Quality","Days/year when ozone standards not met",null,{"$f":"'Data SBP Measures'!$AF3602&'Data SBP Measures'!$AE3602& \" - \"& 'Data SBP Measures'!$U3602","v":"Days/year when ozone standards not metEnvironmental Quality - 149"},{"$f":"_xlfn.XLOOKUP(VALUE(W3602),'Data SBP Programs'!O:O,'Data SBP Programs'!S:S)","v":"Environmental Quality"}]
[{"$f":"'Data SBP Measures'!$AI2318&\" - \"&'Data SBP Measures'!$U2318","v":"Voter Registration Division - 108"},{"$f":"'Data SBP Measures'!$AF2318","v":"# Volunteer Deputies trained"},{"$f":"'Data SBP Measures'!$T2318","v":"288"},{"$f":"'Data SBP Measures'!$U2318&B3603","v":"108# Volunteer Deputies trained"},{"$f":"'Data SBP Measures'!$Y2318","v":"EACH"},null,null,null,null,null,"Voter Registration Division - 108","# Volunteer Deputies trained",null,null,null,null,null,null,null,"972","149","Y","129","Environmental Quality","DOLLARS","EFFICIENCY","BLACKBOOK",null,null,null,"Environmental Quality","Average cost to process LIRAP application",null,{"$f":"'Data SBP Measures'!$AF3603&'Data SBP Measures'!$AE3603& \" - \"& 'Data SBP Measures'!$U3603","v":"Average cost to process LIRAP applicationEnvironmental Quality - 149"},{"$f":"_xlfn.XLOOKUP(VALUE(W3603),'Data SBP Programs'!O:O,'Data SBP Programs'!S:S)","v":"Environmental Quality"}]
[{"$f":"'Data SBP Measures'!$AI2311&\" - \"&'Data SBP Measures'!$U2311","v":"Voter Registration Division - 108"},{"$f":"'Data SBP Measures'!$AF2311","v":"# Voter outreach events"},{"$f":"'Data SBP Measures'!$T2311","v":"287"},{"$f":"'Data SBP Measures'!$U2311&B3604","v":"108# Voter outreach events"},{"$f":"'Data SBP Measures'!$Y2311","v":"EACH"},null,null,null,null,null,"Voter Registration Division - 108","# Voter outreach events",null,null,null,null,null,null,null,"973","149","Y","129","Environmental Quality","EACH","OUTPUT","BLACKBOOK",null,null,null,"Environmental Quality","Average CapMetro rides taken by County employees",null,{"$f":"'Data SBP Measures'!$AF3604&'Data SBP Measures'!$AE3604& \" - \"& 'Data SBP Measures'!$U3604","v":"Average CapMetro rides taken by County employeesEnvironmental Quality - 149"},{"$f":"_xlfn.XLOOKUP(VALUE(W3604),'Data SBP Programs'!O:O,'Data SBP Programs'!S:S)","v":"Environmental Quality"}]
[{"$f":"'Data SBP Measures'!$AI2295&\" - \"&'Data SBP Measures'!$U2295","v":"Voter Registration Division - 108"},{"$f":"'Data SBP Measures'!$AF2295","v":"# Voters cancelled"},{"$f":"'Data SBP Measures'!$T2295","v":"283"},{"$f":"'Data SBP Measures'!$U2295&B3605","v":"108# Voters cancelled"},{"$f":"'Data SBP Measures'!$Y2295","v":"EACH"},null,null,null,null,null,"Voter Registration Division - 108","# Voters cancelled",null,null,null,null,null,null,null,"974","149","Y","129","Environmental Quality","EACH","OUTPUT","BLACKBOOK",null,null,null,"Environmental Quality","Average number of County employee CapMetro riders/month",null,{"$f":"'Data SBP Measures'!$AF3605&'Data SBP Measures'!$AE3605& \" - \"& 'Data SBP Measures'!$U3605","v":"Average number of County employee CapMetro riders/monthEnvironmental Quality - 149"},{"$f":"_xlfn.XLOOKUP(VALUE(W3605),'Data SBP Programs'!O:O,'Data SBP Programs'!S:S)","v":"Environmental Quality"}]
[{"$f":"'Data SBP Measures'!$AI2304&\" - \"&'Data SBP Measures'!$U2304","v":"Voter Registration Division - 108"},{"$f":"'Data SBP Measures'!$AF2304","v":"% of Eligible Voters Registered"},{"$f":"'Data SBP Measures'!$T2304","v":"285"},{"$f":"'Data SBP Measures'!$U2304&B3606","v":"108% of Eligible Voters Registered"},{"$f":"'Data SBP Measures'!$Y2304","v":"PERCENT"},null,null,null,null,null,"Voter Registration Division - 108","% of Eligible Voters Registered",null,null,null,null,null,null,null,"975","149","Y","129","Environmental Quality","PERCENT","OUTCOME","ADOPTEDBUD",null,null,null,"Environmental Quality","% reduction in solid waste disposal cost, vs 2013 cost",null,{"$f":"'Data SBP Measures'!$AF3606&'Data SBP Measures'!$AE3606& \" - \"& 'Data SBP Measures'!$U3606","v":"% reduction in solid waste disposal cost, vs 2013 costEnvironmental Quality - 149"},{"$f":"_xlfn.XLOOKUP(VALUE(W3606),'Data SBP Programs'!O:O,'Data SBP Programs'!S:S)","v":"Environmental Quality"}]
[{"$f":"'Data SBP Measures'!$AI2407&\" - \"&'Data SBP Measures'!$U2407","v":"Voter Registration Division - 108"},{"$f":"'Data SBP Measures'!$AF2407","v":"DPS files Processed (import, rejects)"},{"$f":"'Data SBP Measures'!$T2407","v":"298"},{"$f":"'Data SBP Measures'!$U2407&B3607","v":"108DPS files Processed (import, rejects)"},{"$f":"'Data SBP Measures'!$Y2407","v":"EACH"},null,null,null,null,null,"Voter Registration Division - 108","DPS files Processed (import, rejects)",null,null,null,null,null,null,null,"977","149","Y","129","Environmental Quality","DOLLARS","OUTPUT","BLACKBOOK",null,null,null,"Environmental Quality","Annual revenue generated by County recycling program.",null,{"$f":"'Data SBP Measures'!$AF3607&'Data SBP Measures'!$AE3607& \" - \"& 'Data SBP Measures'!$U3607","v":"Annual revenue generated by County recycling program.Environmental Quality - 149"},{"$f":"_xlfn.XLOOKUP(VALUE(W3607),'Data SBP Programs'!O:O,'Data SBP Programs'!S:S)","v":"Environmental Quality"}]
[{"$f":"'Data SBP Measures'!$AI2387&\" - \"&'Data SBP Measures'!$U2387","v":"Voter Registration Division - 108"},{"$f":"'Data SBP Measures'!$AF2387","v":"Jurisdiction Boundary Updates"},{"$f":"'Data SBP Measures'!$T2387","v":"296"},{"$f":"'Data SBP Measures'!$U2387&B3608","v":"108Jurisdiction Boundary Updates"},{"$f":"'Data SBP Measures'!$Y2387","v":"EACH"},null,null,null,null,null,"Voter Registration Division - 108","Jurisdiction Boundary Updates",null,null,null,null,null,null,null,"978","149","Y","130","Fleet Services","EACH","OUTPUT","BLACKBOOK",null,null,null,"Fleet Services","# of Completed Jobs",null,{"$f":"'Data SBP Measures'!$AF3608&'Data SBP Measures'!$AE3608& \" - \"& 'Data SBP Measures'!$U3608","v":"# of Completed JobsFleet Services - 149"},{"$f":"_xlfn.XLOOKUP(VALUE(W3608),'Data SBP Programs'!O:O,'Data SBP Programs'!S:S)","v":"Fleet Services"}]
[{"$f":"'Data SBP Measures'!$AI2365&\" - \"&'Data SBP Measures'!$U2365","v":"Voter Registration Division - 108"},{"$f":"'Data SBP Measures'!$AF2365","v":"Jurisdictional Boundaries Researched (in square miles)"},{"$f":"'Data SBP Measures'!$T2365","v":"294"},{"$f":"'Data SBP Measures'!$U2365&B3609","v":"108Jurisdictional Boundaries Researched (in square miles)"},{"$f":"'Data SBP Measures'!$Y2365","v":"SQ_MILES"},null,null,null,null,null,"Voter Registration Division - 108","Jurisdictional Boundaries Researched (in square miles)",null,null,null,null,null,null,null,"979","149","Y","130","Fleet Services","EACH","EFFICIENCY","ADOPTEDBUD",null,null,null,"Fleet Services","# Of vehicles & equip per mechanic slot",null,{"$f":"'Data SBP Measures'!$AF3609&'Data SBP Measures'!$AE3609& \" - \"& 'Data SBP Measures'!$U3609","v":"# Of vehicles & equip per mechanic slotFleet Services - 149"},{"$f":"_xlfn.XLOOKUP(VALUE(W3609),'Data SBP Programs'!O:O,'Data SBP Programs'!S:S)","v":"Fleet Services"}]
[{"$f":"'Data SBP Measures'!$AI2354&\" - \"&'Data SBP Measures'!$U2354","v":"Voter Registration Division - 108"},{"$f":"'Data SBP Measures'!$AF2354","v":"Maps Created/Revised"},{"$f":"'Data SBP Measures'!$T2354","v":"293"},{"$f":"'Data SBP Measures'!$U2354&B3610","v":"108Maps Created/Revised"},{"$f":"'Data SBP Measures'!$Y2354","v":"EACH"},null,null,null,null,null,"Voter Registration Division - 108","Maps Created/Revised",null,null,null,null,null,null,null,"981","149","Y","130","Fleet Services","PERCENT","OUTPUT","BLACKBOOK",null,null,null,"Fleet Services","% Rework of vehicles",null,{"$f":"'Data SBP Measures'!$AF3610&'Data SBP Measures'!$AE3610& \" - \"& 'Data SBP Measures'!$U3610","v":"% Rework of vehiclesFleet Services - 149"},{"$f":"_xlfn.XLOOKUP(VALUE(W3610),'Data SBP Programs'!O:O,'Data SBP Programs'!S:S)","v":"Fleet Services"}]
[{"$f":"'Data SBP Measures'!$AI2404&\" - \"&'Data SBP Measures'!$U2404","v":"Voter Registration Division - 108"},{"$f":"'Data SBP Measures'!$AF2404","v":"Problem Address and Other Data Entry"},{"$f":"'Data SBP Measures'!$T2404","v":"297"},{"$f":"'Data SBP Measures'!$U2404&B3611","v":"108Problem Address and Other Data Entry"},{"$f":"'Data SBP Measures'!$Y2404","v":"EACH"},null,null,null,null,null,"Voter Registration Division - 108","Problem Address and Other Data Entry",null,null,null,null,null,null,null,"982","149","Y","130","Fleet Services","PERCENT","OUTCOME","ADOPTEDBUD",null,null,null,"Fleet Services","% Satisfied survey",null,{"$f":"'Data SBP Measures'!$AF3611&'Data SBP Measures'!$AE3611& \" - \"& 'Data SBP Measures'!$U3611","v":"% Satisfied surveyFleet Services - 149"},{"$f":"_xlfn.XLOOKUP(VALUE(W3611),'Data SBP Programs'!O:O,'Data SBP Programs'!S:S)","v":"Fleet Services"}]
[{"$f":"'Data SBP Measures'!$AI2376&\" - \"&'Data SBP Measures'!$U2376","v":"Voter Registration Division - 108"},{"$f":"'Data SBP Measures'!$AF2376","v":"Street Index Updates"},{"$f":"'Data SBP Measures'!$T2376","v":"295"},{"$f":"'Data SBP Measures'!$U2376&B3612","v":"108Street Index Updates"},{"$f":"'Data SBP Measures'!$Y2376","v":"EACH"},null,null,null,null,null,"Voter Registration Division - 108","Street Index Updates",null,null,null,null,null,null,null,"983","149","Y","131","Natural Resources Program","ACRES","INPUT","ADOPTEDBUD",null,null,null,"Natural Resources Program","BCP acres managed by Travis County",null,{"$f":"'Data SBP Measures'!$AF3612&'Data SBP Measures'!$AE3612& \" - \"& 'Data SBP Measures'!$U3612","v":"BCP acres managed by Travis CountyNatural Resources Program - 149"},{"$f":"_xlfn.XLOOKUP(VALUE(W3612),'Data SBP Programs'!O:O,'Data SBP Programs'!S:S)","v":"Natural Resources Program"}]
[{"$f":"'Data SBP Measures'!$AI2412&\" - \"&'Data SBP Measures'!$U2412","v":"Voter Registration Division - 108"},{"$f":"'Data SBP Measures'!$AF2412","v":"Texas.gov files Processed (import, rejects)"},{"$f":"'Data SBP Measures'!$T2412","v":"299"},{"$f":"'Data SBP Measures'!$U2412&B3613","v":"108Texas.gov files Processed (import, rejects)"},{"$f":"'Data SBP Measures'!$Y2412","v":"EACH"},null,null,null,null,null,"Voter Registration Division - 108","Texas.gov files Processed (import, rejects)",null,null,null,null,null,null,null,"984","149","Y","131","Natural Resources Program","EACH","INPUT","BLACKBOOK",null,null,null,"Natural Resources Program","Number of BCCP caves managed by Travis County",null,{"$f":"'Data SBP Measures'!$AF3613&'Data SBP Measures'!$AE3613& \" - \"& 'Data SBP Measures'!$U3613","v":"Number of BCCP caves managed by Travis CountyNatural Resources Program - 149"},{"$f":"_xlfn.XLOOKUP(VALUE(W3613),'Data SBP Programs'!O:O,'Data SBP Programs'!S:S)","v":"Natural Resources Program"}]
[{"$f":"'Data SBP Measures'!$AI195&\" - \"&'Data SBP Measures'!$U195","v":"Work-Based Learning/Summer Youth Employment - 158"},{"$f":"'Data SBP Measures'!$AF195","v":"% of employers satisfied with youth employment experience"},{"$f":"'Data SBP Measures'!$T195","v":"1240"},{"$f":"'Data SBP Measures'!$U195&B3614","v":"158% of employers satisfied with youth employment experience"},{"$f":"'Data SBP Measures'!$Y195","v":"PERCENT"},null,null,null,null,null,"Work-Based Learning/Summer Youth Employment - 158","% of employers satisfied with youth employment experience",null,null,null,null,null,null,null,"985","149","Y","131","Natural Resources Program","EACH","OUTPUT","BLACKBOOK",null,null,null,"Natural Resources Program","Number of education or outreach events held",null,{"$f":"'Data SBP Measures'!$AF3614&'Data SBP Measures'!$AE3614& \" - \"& 'Data SBP Measures'!$U3614","v":"Number of education or outreach events heldNatural Resources Program - 149"},{"$f":"_xlfn.XLOOKUP(VALUE(W3614),'Data SBP Programs'!O:O,'Data SBP Programs'!S:S)","v":"Natural Resources Program"}]
[{"$f":"'Data SBP Measures'!$AI196&\" - \"&'Data SBP Measures'!$U196","v":"Work-Based Learning/Summer Youth Employment - 158"},{"$f":"'Data SBP Measures'!$AF196","v":"% of youth completing Job Readiness Training"},{"$f":"'Data SBP Measures'!$T196","v":"1241"},{"$f":"'Data SBP Measures'!$U196&B3615","v":"158% of youth completing Job Readiness Training"},{"$f":"'Data SBP Measures'!$Y196","v":"PERCENT"},null,null,null,null,null,"Work-Based Learning/Summer Youth Employment - 158","% of youth completing Job Readiness Training",null,null,null,null,null,null,null,"986","149","Y","131","Natural Resources Program","HOURS","INPUT","BLACKBOOK",null,null,null,"Natural Resources Program","Number volunteer hours",null,{"$f":"'Data SBP Measures'!$AF3615&'Data SBP Measures'!$AE3615& \" - \"& 'Data SBP Measures'!$U3615","v":"Number volunteer hoursNatural Resources Program - 149"},{"$f":"_xlfn.XLOOKUP(VALUE(W3615),'Data SBP Programs'!O:O,'Data SBP Programs'!S:S)","v":"Natural Resources Program"}]
[{"$f":"'Data SBP Measures'!$AI197&\" - \"&'Data SBP Measures'!$U197","v":"Work-Based Learning/Summer Youth Employment - 158"},{"$f":"'Data SBP Measures'!$AF197","v":"% of youth employed"},{"$f":"'Data SBP Measures'!$T197","v":"1242"},{"$f":"'Data SBP Measures'!$U197&B3616","v":"158% of youth employed"},{"$f":"'Data SBP Measures'!$Y197","v":"PERCENT"},null,null,null,null,null,"Work-Based Learning/Summer Youth Employment - 158","% of youth employed",null,null,null,null,null,null,null,"988","149","Y","131","Natural Resources Program","HOURS","OUTPUT","BLACKBOOK",null,null,null,"Natural Resources Program","Number of hours surveying karst features",null,{"$f":"'Data SBP Measures'!$AF3616&'Data SBP Measures'!$AE3616& \" - \"& 'Data SBP Measures'!$U3616","v":"Number of hours surveying karst featuresNatural Resources Program - 149"},{"$f":"_xlfn.XLOOKUP(VALUE(W3616),'Data SBP Programs'!O:O,'Data SBP Programs'!S:S)","v":"Natural Resources Program"}]
[{"$f":"'Data SBP Measures'!$AI198&\" - \"&'Data SBP Measures'!$U198","v":"Work-Based Learning/Summer Youth Employment - 158"},{"$f":"'Data SBP Measures'!$AF198","v":"% of youth satisfied with youth employment experience"},{"$f":"'Data SBP Measures'!$T198","v":"1243"},{"$f":"'Data SBP Measures'!$U198&B3617","v":"158% of youth satisfied with youth employment experience"},{"$f":"'Data SBP Measures'!$Y198","v":"PERCENT"},null,null,null,null,null,"Work-Based Learning/Summer Youth Employment - 158","% of youth satisfied with youth employment experience",null,null,null,null,null,null,null,"989","149","Y","131","Natural Resources Program","ACRES","OUTCOME","ADOPTEDBUD",null,null,null,"Natural Resources Program","Number of acres protected by CEs in the Conservation Easement Program (non parkland)",null,{"$f":"'Data SBP Measures'!$AF3617&'Data SBP Measures'!$AE3617& \" - \"& 'Data SBP Measures'!$U3617","v":"Number of acres protected by CEs in the Conservation Easement Program (non parkland)Natural Resources Program - 149"},{"$f":"_xlfn.XLOOKUP(VALUE(W3617),'Data SBP Programs'!O:O,'Data SBP Programs'!S:S)","v":"Natural Resources Program"}]
[{"$f":"'Data SBP Measures'!$AI199&\" - \"&'Data SBP Measures'!$U199","v":"Work-Based Learning/Summer Youth Employment - 158"},{"$f":"'Data SBP Measures'!$AF199","v":"Number of unduplicated youth served"},{"$f":"'Data SBP Measures'!$T199","v":"1244"},{"$f":"'Data SBP Measures'!$U199&B3618","v":"158Number of unduplicated youth served"},{"$f":"'Data SBP Measures'!$Y199","v":"EACH"},null,null,null,null,null,"Work-Based Learning/Summer Youth Employment - 158","Number of unduplicated youth served",null,null,null,null,null,null,null,"990","149","Y","131","Natural Resources Program","EACH","OUTPUT","BLACKBOOK",null,null,null,"Natural Resources Program","Number of conservation easements completed in the Conservation Easement Program (non parkland)",null,{"$f":"'Data SBP Measures'!$AF3618&'Data SBP Measures'!$AE3618& \" - \"& 'Data SBP Measures'!$U3618","v":"Number of conservation easements completed in the Conservation Easement Program (non parkland)Natural Resources Program - 149"},{"$f":"_xlfn.XLOOKUP(VALUE(W3618),'Data SBP Programs'!O:O,'Data SBP Programs'!S:S)","v":"Natural Resources Program"}]
[{"$f":"'Data SBP Measures'!$AI200&\" - \"&'Data SBP Measures'!$U200","v":"Work-Based Learning/Summer Youth Employment - 158"},{"$f":"'Data SBP Measures'!$AF200","v":"Number of youth employed"},{"$f":"'Data SBP Measures'!$T200","v":"1245"},{"$f":"'Data SBP Measures'!$U200&B3619","v":"158Number of youth employed"},{"$f":"'Data SBP Measures'!$Y200","v":"EACH"},null,null,null,null,null,"Work-Based Learning/Summer Youth Employment - 158","Number of youth employed",null,null,null,null,null,null,null,"991","149","Y","131","Natural Resources Program","DOLLARS","OUTPUT","BLACKBOOK",null,null,null,"Natural Resources Program","Value of Grants Administered",null,{"$f":"'Data SBP Measures'!$AF3619&'Data SBP Measures'!$AE3619& \" - \"& 'Data SBP Measures'!$U3619","v":"Value of Grants AdministeredNatural Resources Program - 149"},{"$f":"_xlfn.XLOOKUP(VALUE(W3619),'Data SBP Programs'!O:O,'Data SBP Programs'!S:S)","v":"Natural Resources Program"}]
[{"$f":"'Data SBP Measures'!$AI201&\" - \"&'Data SBP Measures'!$U201","v":"Work-Based Learning/Summer Youth Employment - 158"},{"$f":"'Data SBP Measures'!$AF201","v":"Number of youth offered employment"},{"$f":"'Data SBP Measures'!$T201","v":"1246"},{"$f":"'Data SBP Measures'!$U201&B3620","v":"158Number of youth offered employment"},{"$f":"'Data SBP Measures'!$Y201","v":"EACH"},null,null,null,null,null,"Work-Based Learning/Summer Youth Employment - 158","Number of youth offered employment",null,null,null,null,null,null,null,"992","149","Y","132","On-Site Wastewater","EACH","INPUT","ADOPTEDBUD",null,null,null,"On-Site Wastewater","# of OSSF Permits",null,{"$f":"'Data SBP Measures'!$AF3620&'Data SBP Measures'!$AE3620& \" - \"& 'Data SBP Measures'!$U3620","v":"# of OSSF PermitsOn-Site Wastewater - 149"},{"$f":"_xlfn.XLOOKUP(VALUE(W3620),'Data SBP Programs'!O:O,'Data SBP Programs'!S:S)","v":"On-Site Wastewater"}]
[{"$f":"'Data SBP Measures'!$AI2949&\" - \"&'Data SBP Measures'!$U2949","v":"Workforce Development Taskforce (WD)\n - 155"},{"$f":"'Data SBP Measures'!$AF2949","v":"# of clients entering CDL or other vocational training program components\n"},{"$f":"'Data SBP Measures'!$T2949","v":"3470"},{"$f":"'Data SBP Measures'!$U2949&B3621","v":"155# of clients entering CDL or other vocational training program components\n"},{"$f":"'Data SBP Measures'!$Y2949","v":"EACH"},null,null,null,null,null,"Workforce Development Taskforce (WD)\n - 155","# of clients entering CDL or other vocational training program components\n",null,null,null,null,null,null,null,"993","149","Y","132","On-Site Wastewater","EACH","OUTPUT","BLACKBOOK",null,null,null,"On-Site Wastewater","# of Complaint Responses and Enforcement Issues",null,{"$f":"'Data SBP Measures'!$AF3621&'Data SBP Measures'!$AE3621& \" - \"& 'Data SBP Measures'!$U3621","v":"# of Complaint Responses and Enforcement IssuesOn-Site Wastewater - 149"},{"$f":"_xlfn.XLOOKUP(VALUE(W3621),'Data SBP Programs'!O:O,'Data SBP Programs'!S:S)","v":"On-Site Wastewater"}]
[{"$f":"'Data SBP Measures'!$AI2948&\" - \"&'Data SBP Measures'!$U2948","v":"Workforce Development Taskforce (WD)\n - 155"},{"$f":"'Data SBP Measures'!$AF2948","v":"# of clients entering program participation"},{"$f":"'Data SBP Measures'!$T2948","v":"3469"},{"$f":"'Data SBP Measures'!$U2948&B3622","v":"155# of clients entering program participation"},{"$f":"'Data SBP Measures'!$Y2948","v":"EACH"},null,null,null,null,null,"Workforce Development Taskforce (WD)\n - 155","# of clients entering program participation",null,null,null,null,null,null,null,"994","149","Y","132","On-Site Wastewater","EACH","OUTPUT","ADOPTEDBUD",null,null,null,"On-Site Wastewater","# of Construction Inspections",null,{"$f":"'Data SBP Measures'!$AF3622&'Data SBP Measures'!$AE3622& \" - \"& 'Data SBP Measures'!$U3622","v":"# of Construction InspectionsOn-Site Wastewater - 149"},{"$f":"_xlfn.XLOOKUP(VALUE(W3622),'Data SBP Programs'!O:O,'Data SBP Programs'!S:S)","v":"On-Site Wastewater"}]
[{"$f":"'Data SBP Measures'!$AI505&\" - \"&'Data SBP Measures'!$U505","v":"Workforce Development Taskforce (WD)\n - 155"},{"$f":"'Data SBP Measures'!$AF505","v":"# of employers contacted"},{"$f":"'Data SBP Measures'!$T505","v":"1552"},{"$f":"'Data SBP Measures'!$U505&B3623","v":"155# of employers contacted"},{"$f":"'Data SBP Measures'!$Y505","v":"EACH"},null,null,null,null,null,"Workforce Development Taskforce (WD)\n - 155","# of employers contacted",null,null,null,null,null,null,null,"995","149","Y","132","On-Site Wastewater","EACH","OUTPUT","BLACKBOOK",null,null,null,"On-Site Wastewater","# of Driveway Inspections Completed",null,{"$f":"'Data SBP Measures'!$AF3623&'Data SBP Measures'!$AE3623& \" - \"& 'Data SBP Measures'!$U3623","v":"# of Driveway Inspections CompletedOn-Site Wastewater - 149"},{"$f":"_xlfn.XLOOKUP(VALUE(W3623),'Data SBP Programs'!O:O,'Data SBP Programs'!S:S)","v":"On-Site Wastewater"}]
[{"$f":"'Data SBP Measures'!$AI2313&\" - \"&'Data SBP Measures'!$U2313","v":"Workforce Development Taskforce (WD)\n - 155"},{"$f":"'Data SBP Measures'!$AF2313","v":"# of ex-offenders employed"},{"$f":"'Data SBP Measures'!$T2313","v":"2876"},{"$f":"'Data SBP Measures'!$U2313&B3624","v":"155# of ex-offenders employed"},{"$f":"'Data SBP Measures'!$Y2313","v":"EACH"},null,null,null,null,null,"Workforce Development Taskforce (WD)\n - 155","# of ex-offenders employed",null,null,null,null,null,null,null,"996","149","Y","132","On-Site Wastewater","EACH","OUTPUT","BLACKBOOK",null,null,null,"On-Site Wastewater","# of Floodplain Compliance Inspections",null,{"$f":"'Data SBP Measures'!$AF3624&'Data SBP Measures'!$AE3624& \" - \"& 'Data SBP Measures'!$U3624","v":"# of Floodplain Compliance InspectionsOn-Site Wastewater - 149"},{"$f":"_xlfn.XLOOKUP(VALUE(W3624),'Data SBP Programs'!O:O,'Data SBP Programs'!S:S)","v":"On-Site Wastewater"}]
[{"$f":"'Data SBP Measures'!$AI2314&\" - \"&'Data SBP Measures'!$U2314","v":"Workforce Development Taskforce (WD)\n - 155"},{"$f":"'Data SBP Measures'!$AF2314","v":"# of ex-offenders sustaining employment for 6 months"},{"$f":"'Data SBP Measures'!$T2314","v":"2877"},{"$f":"'Data SBP Measures'!$U2314&B3625","v":"155# of ex-offenders sustaining employment for 6 months"},{"$f":"'Data SBP Measures'!$Y2314","v":"EACH"},null,null,null,null,null,"Workforce Development Taskforce (WD)\n - 155","# of ex-offenders sustaining employment for 6 months",null,null,null,null,null,null,null,"997","149","Y","132","On-Site Wastewater","EACH","OUTPUT","BLACKBOOK",null,null,null,"On-Site Wastewater","# of Subdivision Plans",null,{"$f":"'Data SBP Measures'!$AF3625&'Data SBP Measures'!$AE3625& \" - \"& 'Data SBP Measures'!$U3625","v":"# of Subdivision PlansOn-Site Wastewater - 149"},{"$f":"_xlfn.XLOOKUP(VALUE(W3625),'Data SBP Programs'!O:O,'Data SBP Programs'!S:S)","v":"On-Site Wastewater"}]
[{"$f":"'Data SBP Measures'!$AI506&\" - \"&'Data SBP Measures'!$U506","v":"Workforce Development Taskforce (WD)\n - 155"},{"$f":"'Data SBP Measures'!$AF506","v":"# of housing providers contacted"},{"$f":"'Data SBP Measures'!$T506","v":"1553"},{"$f":"'Data SBP Measures'!$U506&B3626","v":"155# of housing providers contacted"},{"$f":"'Data SBP Measures'!$Y506","v":"EACH"},null,null,null,null,null,"Workforce Development Taskforce (WD)\n - 155","# of housing providers contacted",null,null,null,null,null,null,null,"998","149","Y","132","On-Site Wastewater","PERCENT","OUTCOME","BLACKBOOK",null,null,null,"On-Site Wastewater","%  of OSSF Permits reviewed with 30-days",null,{"$f":"'Data SBP Measures'!$AF3626&'Data SBP Measures'!$AE3626& \" - \"& 'Data SBP Measures'!$U3626","v":"%  of OSSF Permits reviewed with 30-daysOn-Site Wastewater - 149"},{"$f":"_xlfn.XLOOKUP(VALUE(W3626),'Data SBP Programs'!O:O,'Data SBP Programs'!S:S)","v":"On-Site Wastewater"}]
[{"$f":"'Data SBP Measures'!$AI2312&\" - \"&'Data SBP Measures'!$U2312","v":"Workforce Development Taskforce (WD)\n - 155"},{"$f":"'Data SBP Measures'!$AF2312","v":"# of new employers willing to hire ex-offenders"},{"$f":"'Data SBP Measures'!$T2312","v":"2875"},{"$f":"'Data SBP Measures'!$U2312&B3627","v":"155# of new employers willing to hire ex-offenders"},{"$f":"'Data SBP Measures'!$Y2312","v":"EACH"},null,null,null,null,null,"Workforce Development Taskforce (WD)\n - 155","# of new employers willing to hire ex-offenders",null,null,null,null,null,null,null,"999","149","Y","132","On-Site Wastewater","PERCENT","OUTCOME","BLACKBOOK",null,null,null,"On-Site Wastewater","% of Complaint Responses & Enforcement Issues responded to in 2 days",null,{"$f":"'Data SBP Measures'!$AF3627&'Data SBP Measures'!$AE3627& \" - \"& 'Data SBP Measures'!$U3627","v":"% of Complaint Responses & Enforcement Issues responded to in 2 daysOn-Site Wastewater - 149"},{"$f":"_xlfn.XLOOKUP(VALUE(W3627),'Data SBP Programs'!O:O,'Data SBP Programs'!S:S)","v":"On-Site Wastewater"}]

{"sheet":"Measures Table","index":13,"n_rows":2616,"n_cols":15,"rows_kept":2616,"cut":false,"hidden":true,"merged":[]}
["PM Performance Measure","Department","Active Status","PM Program","PM Unit of Measure","PM Type","PM Reporting Category","PM Data Source","PM Projection Assumptions","PM Calculation Method Pt 1","PM Calculation Method Pt 2","Program name","Long name","medium name","Prog Description"]
[1,106,"Y",178,"PERCENT","OUTCOME","ADOPTEDBUD",null,null,null,null,"Auditor's Office (106)","Unqualified audit opinion (as measured b","Unqualified audit opinion (as measured by financial data & transactions) (100%=unqualified)",{"$f":"_xlfn.XLOOKUP(Measures_Table[[#This Row],[PM Program]],Programs_Active20[ZSBPPROGM (KEY)],Programs_Active20[LONG TEXT])","v":"Auditor's Office"}]
[2,106,"Y",178,"PERCENT","OUTCOME","ADOPTEDBUD",null,null,null,null,"Auditor's Office (106)","Comprehensive Rpt filed by 3/31 deadline","Annual Comprehensive Financial Report filed by March 31 deadline\n",{"$f":"_xlfn.XLOOKUP(Measures_Table[[#This Row],[PM Program]],Programs_Active20[ZSBPPROGM (KEY)],Programs_Active20[LONG TEXT])","v":"Auditor's Office"}]
[3,106,"Y",178,"PERCENT","OUTCOME","ADOPTEDBUD",null,null,null,null,"Auditor's Office (106)","Receive Certificate of Excellence (GFOA)","Receive Certificate of Excellence (GFOA) designation",{"$f":"_xlfn.XLOOKUP(Measures_Table[[#This Row],[PM Program]],Programs_Active20[ZSBPPROGM (KEY)],Programs_Active20[LONG TEXT])","v":"Auditor's Office"}]
[5,106,"Y",178,"PERCENT","OUTCOME","BOTH",null,null,null,null,"Auditor's Office (106)","Gen Fnd actual revenue to final budget %","General Fund actual revenue to final budget as % (Annual Comprehensive Financial Report basis)",{"$f":"_xlfn.XLOOKUP(Measures_Table[[#This Row],[PM Program]],Programs_Active20[ZSBPPROGM (KEY)],Programs_Active20[LONG TEXT])","v":"Auditor's Office"}]
[8,106,"Y",178,"PERCENT","OUTCOME","ADOPTEDBUD",null,null,null,null,"Auditor's Office (106)","% paid invoiced amts. compliant w/Prompt","% paid invoiced amts. compliant w/Prompt Payment Act req'ts",{"$f":"_xlfn.XLOOKUP(Measures_Table[[#This Row],[PM Program]],Programs_Active20[ZSBPPROGM (KEY)],Programs_Active20[LONG TEXT])","v":"Auditor's Office"}]
[13,106,"Y",178,"PERCENT","OUTCOME","ADOPTEDBUD",null,null,null,null,"Auditor's Office (106)","# of “new” contracts audited for funds v","# of “new” contracts audited for funds verification",{"$f":"_xlfn.XLOOKUP(Measures_Table[[#This Row],[PM Program]],Programs_Active20[ZSBPPROGM (KEY)],Programs_Active20[LONG TEXT])","v":"Auditor's Office"}]
[14,106,"Y",178,"PERCENT","OUTCOME","ADOPTEDBUD",null,null,null,null,"Auditor's Office (106)","% employees using direct deposit instead","% employees using direct deposit instead of paper check",{"$f":"_xlfn.XLOOKUP(Measures_Table[[#This Row],[PM Program]],Programs_Active20[ZSBPPROGM (KEY)],Programs_Active20[LONG TEXT])","v":"Auditor's Office"}]
[15,106,"Y",178,"EACH","OUTPUT","ADOPTEDBUD",null,null,null,null,"Auditor's Office (106)","% of annual manual checks created to add","% of annual manual checks created to address payroll errors",{"$f":"_xlfn.XLOOKUP(Measures_Table[[#This Row],[PM Program]],Programs_Active20[ZSBPPROGM (KEY)],Programs_Active20[LONG TEXT])","v":"Auditor's Office"}]
[16,106,"Y",178,"PERCENT","OUTCOME","ADOPTEDBUD",null,null,null,null,"Auditor's Office (106)","# of grants","# of grants",{"$f":"_xlfn.XLOOKUP(Measures_Table[[#This Row],[PM Program]],Programs_Active20[ZSBPPROGM (KEY)],Programs_Active20[LONG TEXT])","v":"Auditor's Office"}]
[17,106,"Y",178,"EACH","OUTCOME","ADOPTEDBUD",null,null,null,null,"Auditor's Office (106)","% Grantor reports on time","% Grantor reports on time",{"$f":"_xlfn.XLOOKUP(Measures_Table[[#This Row],[PM Program]],Programs_Active20[ZSBPPROGM (KEY)],Programs_Active20[LONG TEXT])","v":"Auditor's Office"}]
[19,106,"Y",178,"PERCENT","OUTCOME","ADOPTEDBUD",null,null,null,null,"Auditor's Office (106)","Unqualified grant audit opinion (100%=un","Unqualified grant audit opinion (100%=unqualified)",{"$f":"_xlfn.XLOOKUP(Measures_Table[[#This Row],[PM Program]],Programs_Active20[ZSBPPROGM (KEY)],Programs_Active20[LONG TEXT])","v":"Auditor's Office"}]
[21,106,"Y",178,"PERCENT","OUTCOME","ADOPTEDBUD",null,null,null,null,"Auditor's Office (106)","% Completed Projects rated highly by Pro","% Completed Projects rated highly by Project Stakeholders",{"$f":"_xlfn.XLOOKUP(Measures_Table[[#This Row],[PM Program]],Programs_Active20[ZSBPPROGM (KEY)],Programs_Active20[LONG TEXT])","v":"Auditor's Office"}]
[23,106,"Y",178,"PERCENT","OUTCOME","BOTH",null,null,null,null,"Auditor's Office (106)","Unplanned SAP production server downtime","Unplanned SAP production server downtime from 6am- 9pm M-F",{"$f":"_xlfn.XLOOKUP(Measures_Table[[#This Row],[PM Program]],Programs_Active20[ZSBPPROGM (KEY)],Programs_Active20[LONG TEXT])","v":"Auditor's Office"}]
[25,106,"Y",178,"EACH","OUTPUT","ADOPTEDBUD",null,null,null,null,"Auditor's Office (106)","Customer satisfaction with SAP learning","Customer satisfaction with SAP learning experience",{"$f":"_xlfn.XLOOKUP(Measures_Table[[#This Row],[PM Program]],Programs_Active20[ZSBPPROGM (KEY)],Programs_Active20[LONG TEXT])","v":"Auditor's Office"}]
[26,106,"Y",178,"EACH","OUTPUT","ADOPTEDBUD",null,null,null,null,"Auditor's Office (106)","% SAP help desk tickets that met service","% SAP help desk tickets that met service time targets",{"$f":"_xlfn.XLOOKUP(Measures_Table[[#This Row],[PM Program]],Programs_Active20[ZSBPPROGM (KEY)],Programs_Active20[LONG TEXT])","v":"Auditor's Office"}]
[28,109,"Y",10,"EACH","INPUT","ADOPTEDBUD",null,null,null,null,"Budget (109)","# of SAP upgrade/enhancement work items","# of SAP upgrade/enhancement work items completed (sunset after 2026 actuals)",{"$f":"_xlfn.XLOOKUP(Measures_Table[[#This Row],[PM Program]],Programs_Active20[ZSBPPROGM (KEY)],Programs_Active20[LONG TEXT])","v":"Budget"}]
[29,109,"Y",10,"EACH","INPUT","ADOPTEDBUD",null,null,null,null,"Budget (109)","# of SAP improvement work items complete","# of SAP improvement work items completed (sunset after 2026 actuals)",{"$f":"_xlfn.XLOOKUP(Measures_Table[[#This Row],[PM Program]],Programs_Active20[ZSBPPROGM (KEY)],Programs_Active20[LONG TEXT])","v":"Budget"}]
[30,109,"Y",10,"EACH","INPUT","ADOPTEDBUD",null,null,null,null,"Budget (109)","Customer satisfaction with SAP support r","Customer satisfaction with SAP support received",{"$f":"_xlfn.XLOOKUP(Measures_Table[[#This Row],[PM Program]],Programs_Active20[ZSBPPROGM (KEY)],Programs_Active20[LONG TEXT])","v":"Budget"}]
[31,109,"Y",10,"EACH","INPUT","ADOPTEDBUD",null,null,null,null,"Budget (109)","Total number of budget requests reviewed","Total number of budget requests reviewed for Preliminary Budget",{"$f":"_xlfn.XLOOKUP(Measures_Table[[#This Row],[PM Program]],Programs_Active20[ZSBPPROGM (KEY)],Programs_Active20[LONG TEXT])","v":"Budget"}]
[32,109,"Y",10,"PERCENT","EFFICIENCY","ADOPTEDBUD",null,null,null,null,"Budget (109)","Total General Fund value of budget reque","Total General Fund value of budget requests reviewed for Preliminary Budget",{"$f":"_xlfn.XLOOKUP(Measures_Table[[#This Row],[PM Program]],Programs_Active20[ZSBPPROGM (KEY)],Programs_Active20[LONG TEXT])","v":"Budget"}]
[33,109,"Y",10,"RATING_SP","OUTCOME","ADOPTEDBUD",null,null,null,null,"Budget (109)","Total Other Fund value of budget request","Total Other Fund value of budget requests reviewed for Preliminary Budget",{"$f":"_xlfn.XLOOKUP(Measures_Table[[#This Row],[PM Program]],Programs_Active20[ZSBPPROGM (KEY)],Programs_Active20[LONG TEXT])","v":"Budget"}]
[34,109,"Y",10,"EACH","INPUT","ADOPTEDBUD",null,null,null,null,"Budget (109)","Total Capital Fund value of budget reque","Total Capital Fund value of budget requests reviewed for Preliminary Budget",{"$f":"_xlfn.XLOOKUP(Measures_Table[[#This Row],[PM Program]],Programs_Active20[ZSBPPROGM (KEY)],Programs_Active20[LONG TEXT])","v":"Budget"}]
[35,109,"Y",10,"EACH","INPUT","ADOPTEDBUD",null,null,null,null,"Budget (109)","Percentage of PBO budget recommendations","Percentage of PBO budget recommendations in Adopted Budget",{"$f":"_xlfn.XLOOKUP(Measures_Table[[#This Row],[PM Program]],Programs_Active20[ZSBPPROGM (KEY)],Programs_Active20[LONG TEXT])","v":"Budget"}]
[36,109,"Y",10,"EACH","EFFICIENCY","ADOPTEDBUD",null,null,null,null,"Budget (109)","County bond rating - Standard and Poor's","County bond rating - Standard and Poor's (AAA=1, AA =2; ... ; D=15)",{"$f":"_xlfn.XLOOKUP(Measures_Table[[#This Row],[PM Program]],Programs_Active20[ZSBPPROGM (KEY)],Programs_Active20[LONG TEXT])","v":"Budget"}]
[37,109,"Y",10,"PERCENT","EFFICIENCY","ADOPTEDBUD",null,null,null,null,"Budget (109)","Number of budget adjustments processed","Number of budget adjustments processed",{"$f":"_xlfn.XLOOKUP(Measures_Table[[#This Row],[PM Program]],Programs_Active20[ZSBPPROGM (KEY)],Programs_Active20[LONG TEXT])","v":"Budget"}]
[38,109,"Y",10,"PERCENT","OUTCOME","ADOPTEDBUD",null,null,null,null,"Budget (109)","Number of personnel action forms process","Number of personnel action forms processed",{"$f":"_xlfn.XLOOKUP(Measures_Table[[#This Row],[PM Program]],Programs_Active20[ZSBPPROGM (KEY)],Programs_Active20[LONG TEXT])","v":"Budget"}]
[39,109,"Y",12,"EACH","OUTCOME","ADOPTEDBUD",null,null,null,null,"Investment Management (109)","End of Year Balance of Allocated Reserve","End of Year Balance of Allocated Reserve",{"$f":"_xlfn.XLOOKUP(Measures_Table[[#This Row],[PM Program]],Programs_Active20[ZSBPPROGM (KEY)],Programs_Active20[LONG TEXT])","v":"Investment Management"}]
[40,109,"Y",11,"PERCENT","OUTPUT","ADOPTEDBUD",null,null,null,null,"Economic & Strategic Planning (109)","Percent of Allocated Reserve Spent","Percent of Allocated Reserve Spent",{"$f":"_xlfn.XLOOKUP(Measures_Table[[#This Row],[PM Program]],Programs_Active20[ZSBPPROGM (KEY)],Programs_Active20[LONG TEXT])","v":"Economic & Strategic Planning"}]
[41,109,"Y",11,"PERCENT","OUTPUT","ADOPTEDBUD",null,null,null,null,"Economic & Strategic Planning (109)","Accuracy of General Fund expenditure est","Accuracy of General Fund expenditure estimate compared to actuals",{"$f":"_xlfn.XLOOKUP(Measures_Table[[#This Row],[PM Program]],Programs_Active20[ZSBPPROGM (KEY)],Programs_Active20[LONG TEXT])","v":"Economic & Strategic Planning"}]
[42,109,"Y",11,"EACH","OUTCOME","ADOPTEDBUD",null,null,null,null,"Economic & Strategic Planning (109)","Portfolio yield basis pts over const mat","Portfolio yield in basis points over constant maturity\n",{"$f":"_xlfn.XLOOKUP(Measures_Table[[#This Row],[PM Program]],Programs_Active20[ZSBPPROGM (KEY)],Programs_Active20[LONG TEXT])","v":"Economic & Strategic Planning"}]
[43,109,"Y",11,"EACH","OUTCOME","ADOPTEDBUD",null,null,null,null,"Economic & Strategic Planning (109)","% of Facilities with a documented plan","% of Facilities with a documented plan",{"$f":"_xlfn.XLOOKUP(Measures_Table[[#This Row],[PM Program]],Programs_Active20[ZSBPPROGM (KEY)],Programs_Active20[LONG TEXT])","v":"Economic & Strategic Planning"}]
[44,109,"Y",11,"EACH","INPUT","ADOPTEDBUD",null,null,null,null,"Economic & Strategic Planning (109)","% of departments with documented plans","% of departments with documented plans",{"$f":"_xlfn.XLOOKUP(Measures_Table[[#This Row],[PM Program]],Programs_Active20[ZSBPPROGM (KEY)],Programs_Active20[LONG TEXT])","v":"Economic & Strategic Planning"}]
[45,109,"Y",11,"EACH","OUTPUT","ADOPTEDBUD",null,null,null,null,"Economic & Strategic Planning (109)","Total jobs required by Chapter 381 econo","Total jobs required by Chapter 381 economic development agreements",{"$f":"_xlfn.XLOOKUP(Measures_Table[[#This Row],[PM Program]],Programs_Active20[ZSBPPROGM (KEY)],Programs_Active20[LONG TEXT])","v":"Economic & Strategic Planning"}]
[61,108,"Y",17,"EACH","INPUT","NEITHER",null,null,null,null,"Communications & Training (108)","Demand Letters (mandate)","Demand Letters (mandate)",{"$f":"_xlfn.XLOOKUP(Measures_Table[[#This Row],[PM Program]],Programs_Active20[ZSBPPROGM (KEY)],Programs_Active20[LONG TEXT])","v":"Communications & Training"}]
[62,108,"Y",17,"EACH","OUTCOME","ADOPTEDBUD",null,null,null,null,"Communications & Training (108)","Telephone Calls - delete, COMBINE W 1558","Telephone Calls - delete, COMBINE INTO 1558",{"$f":"_xlfn.XLOOKUP(Measures_Table[[#This Row],[PM Program]],Programs_Active20[ZSBPPROGM (KEY)],Programs_Active20[LONG TEXT])","v":"Communications & Training"}]
[63,108,"Y",17,"EACH","OUTCOME","NEITHER",null,null,null,null,"Communications & Training (108)","Emails - delete, COMBINE INTO 1558","Emails - delete, COMBINE INTO 1558\n",{"$f":"_xlfn.XLOOKUP(Measures_Table[[#This Row],[PM Program]],Programs_Active20[ZSBPPROGM (KEY)],Programs_Active20[LONG TEXT])","v":"Communications & Training"}]
[64,108,"Y",17,"PERCENT","EFFICIENCY","ADOPTEDBUD",null,null,null,null,"Communications & Training (108)","Service Demand","Service Demand",{"$f":"_xlfn.XLOOKUP(Measures_Table[[#This Row],[PM Program]],Programs_Active20[ZSBPPROGM (KEY)],Programs_Active20[LONG TEXT])","v":"Communications & Training"}]
[65,108,"Y",17,"PERCENT","EFFICIENCY","ADOPTEDBUD",null,null,null,null,"Communications & Training (108)","Service Demand Met","Service Demand Met",{"$f":"_xlfn.XLOOKUP(Measures_Table[[#This Row],[PM Program]],Programs_Active20[ZSBPPROGM (KEY)],Programs_Active20[LONG TEXT])","v":"Communications & Training"}]
[66,108,"Y",17,"PERCENT","OUTCOME","NEITHER",null,null,null,null,"Communications & Training (108)","Abandoned Calls","Abandoned Calls",{"$f":"_xlfn.XLOOKUP(Measures_Table[[#This Row],[PM Program]],Programs_Active20[ZSBPPROGM (KEY)],Programs_Active20[LONG TEXT])","v":"Communications & Training"}]
[67,108,"Y",17,"DOLLARS","EFFICIENCY","NEITHER",null,null,null,null,"Communications & Training (108)","Abandoned Percent","Abandoned Percent",{"$f":"_xlfn.XLOOKUP(Measures_Table[[#This Row],[PM Program]],Programs_Active20[ZSBPPROGM (KEY)],Programs_Active20[LONG TEXT])","v":"Communications & Training"}]
[101,108,"Y",18,"EACH","OUTPUT","NEITHER",null,null,null,null,"Accounting Department (108)","ACH-Web Dealer","ACH-Web Dealer",{"$f":"_xlfn.XLOOKUP(Measures_Table[[#This Row],[PM Program]],Programs_Active20[ZSBPPROGM (KEY)],Programs_Active20[LONG TEXT])","v":"Accounting Department"}]
[113,108,"Y",18,"EACH","OUTPUT","NEITHER",null,null,null,null,"Accounting Department (108)","# of Property Tax Internet payments proc","# of Property Tax Internet payments process: E-Checks",{"$f":"_xlfn.XLOOKUP(Measures_Table[[#This Row],[PM Program]],Programs_Active20[ZSBPPROGM (KEY)],Programs_Active20[LONG TEXT])","v":"Accounting Department"}]
[115,108,"Y",18,"EACH","OUTPUT","NEITHER",null,null,null,null,"Accounting Department (108)","# of Web-Dealer deposits initiated throu","# of Web-Dealer deposits initiated through ACH",{"$f":"_xlfn.XLOOKUP(Measures_Table[[#This Row],[PM Program]],Programs_Active20[ZSBPPROGM (KEY)],Programs_Active20[LONG TEXT])","v":"Accounting Department"}]
[121,108,"Y",21,"PERCENT","OUTPUT","ADOPTEDBUD",null,null,null,null,"Information Technology Division (108)","# of Partial Pay Agreement/Extensions","# of Partial Pay Agreement/Extensions",{"$f":"_xlfn.XLOOKUP(Measures_Table[[#This Row],[PM Program]],Programs_Active20[ZSBPPROGM (KEY)],Programs_Active20[LONG TEXT])","v":"Information Technology Division"}]
[124,108,"Y",21,"EACH","OUTPUT","ADOPTEDBUD",null,null,null,null,"Information Technology Division (108)","% of technology projects completed","% of technology projects completed",{"$f":"_xlfn.XLOOKUP(Measures_Table[[#This Row],[PM Program]],Programs_Active20[ZSBPPROGM (KEY)],Programs_Active20[LONG TEXT])","v":"Information Technology Division"}]
[128,108,"Y",21,"EACH","OUTCOME","NEITHER",null,null,null,null,"Information Technology Division (108)","Number of Internal Users","Number of Internal Users",{"$f":"_xlfn.XLOOKUP(Measures_Table[[#This Row],[PM Program]],Programs_Active20[ZSBPPROGM (KEY)],Programs_Active20[LONG TEXT])","v":"Information Technology Division"}]
[129,108,"Y",21,"EACH","OUTPUT","NEITHER",null,null,null,null,"Information Technology Division (108)","Number of PCs and laptops","Number of PCs and laptops",{"$f":"_xlfn.XLOOKUP(Measures_Table[[#This Row],[PM Program]],Programs_Active20[ZSBPPROGM (KEY)],Programs_Active20[LONG TEXT])","v":"Information Technology Division"}]
[131,108,"Y",21,"PERCENT","EFFICIENCY","ADOPTEDBUD",null,null,null,null,"Information Technology Division (108)","% response within 1 hour","% response within 1 hour",{"$f":"_xlfn.XLOOKUP(Measures_Table[[#This Row],[PM Program]],Programs_Active20[ZSBPPROGM (KEY)],Programs_Active20[LONG TEXT])","v":"Information Technology Division"}]
[132,108,"Y",21,"EACH","OUTPUT","NEITHER",null,null,null,null,"Information Technology Division (108)","# of training sessions held","# of training sessions held",{"$f":"_xlfn.XLOOKUP(Measures_Table[[#This Row],[PM Program]],Programs_Active20[ZSBPPROGM (KEY)],Programs_Active20[LONG TEXT])","v":"Information Technology Division"}]
[154,108,"Y",22,"EACH","OUTPUT","NEITHER",null,null,null,null,"Administration (108)","% accurate and timely payroll processing","% accurate and timely payroll processing",{"$f":"_xlfn.XLOOKUP(Measures_Table[[#This Row],[PM Program]],Programs_Active20[ZSBPPROGM (KEY)],Programs_Active20[LONG TEXT])","v":"Administration"}]
[155,108,"Y",22,"EACH","OUTCOME","NEITHER",null,null,null,null,"Administration (108)","% accurate and timely SAP transaction pr","% accurate and timely SAP transaction processing",{"$f":"_xlfn.XLOOKUP(Measures_Table[[#This Row],[PM Program]],Programs_Active20[ZSBPPROGM (KEY)],Programs_Active20[LONG TEXT])","v":"Administration"}]
[156,108,"Y",22,"PERCENT","EFFICIENCY","NEITHER",null,null,null,null,"Administration (108)","% accurate and timely new employees proc","% accurate and timely new employees processed",{"$f":"_xlfn.XLOOKUP(Measures_Table[[#This Row],[PM Program]],Programs_Active20[ZSBPPROGM (KEY)],Programs_Active20[LONG TEXT])","v":"Administration"}]
[157,108,"Y",22,"FTE","INPUT","NEITHER",null,null,null,null,"Administration (108)","# of accurate and timely personnel actio","# of accurate and timely personnel actions",{"$f":"_xlfn.XLOOKUP(Measures_Table[[#This Row],[PM Program]],Programs_Active20[ZSBPPROGM (KEY)],Programs_Active20[LONG TEXT])","v":"Administration"}]
[158,108,"Y",22,"HOURS","OUTPUT","NEITHER",null,null,null,null,"Administration (108)","$ of hot check fees collected annually","$ of hot check fees collected annually",{"$f":"_xlfn.XLOOKUP(Measures_Table[[#This Row],[PM Program]],Programs_Active20[ZSBPPROGM (KEY)],Programs_Active20[LONG TEXT])","v":"Administration"}]
[161,108,"Y",22,"EACH","INPUT","NEITHER",null,null,null,null,"Administration (108)","# of accurate and timely services","# of accurate and timely services",{"$f":"_xlfn.XLOOKUP(Measures_Table[[#This Row],[PM Program]],Programs_Active20[ZSBPPROGM (KEY)],Programs_Active20[LONG TEXT])","v":"Administration"}]
[206,108,"Y",24,"EACH","INPUT","NEITHER",null,null,null,null,"Property Tax Collections (108)","# of Title Hearings Held","# of Title Hearings Held",{"$f":"_xlfn.XLOOKUP(Measures_Table[[#This Row],[PM Program]],Programs_Active20[ZSBPPROGM (KEY)],Programs_Active20[LONG TEXT])","v":"Property Tax Collections"}]
[207,108,"Y",24,"EACH","INPUT","NEITHER",null,null,null,null,"Property Tax Collections (108)","# of Property Tax Counter Transactions","# of Property Tax Counter Transactions",{"$f":"_xlfn.XLOOKUP(Measures_Table[[#This Row],[PM Program]],Programs_Active20[ZSBPPROGM (KEY)],Programs_Active20[LONG TEXT])","v":"Property Tax Collections"}]
[208,108,"Y",24,"DOLLARS","INPUT","NEITHER",null,null,null,null,"Property Tax Collections (108)","# of Property Tax drive-thru transaction","# of Property Tax drive-thru transactions",{"$f":"_xlfn.XLOOKUP(Measures_Table[[#This Row],[PM Program]],Programs_Active20[ZSBPPROGM (KEY)],Programs_Active20[LONG TEXT])","v":"Property Tax Collections"}]
[209,108,"Y",24,"EACH","INPUT","NEITHER",null,null,null,null,"Property Tax Collections (108)","# of Motor Vehicle Refunds","# of Motor Vehicle Refunds",{"$f":"_xlfn.XLOOKUP(Measures_Table[[#This Row],[PM Program]],Programs_Active20[ZSBPPROGM (KEY)],Programs_Active20[LONG TEXT])","v":"Property Tax Collections"}]
[210,108,"Y",24,"DOLLARS","OUTCOME","NEITHER",null,null,null,null,"Property Tax Collections (108)","# of Special Plate Applications","# of Special Plate Applications",{"$f":"_xlfn.XLOOKUP(Measures_Table[[#This Row],[PM Program]],Programs_Active20[ZSBPPROGM (KEY)],Programs_Active20[LONG TEXT])","v":"Property Tax Collections"}]
[211,108,"Y",24,"EACH","OUTPUT","NEITHER",null,null,null,null,"Property Tax Collections (108)","# of Drive-thru Registrations Pct 1,2,3","# of Drive-thru Registrations Pct 1,2,3",{"$f":"_xlfn.XLOOKUP(Measures_Table[[#This Row],[PM Program]],Programs_Active20[ZSBPPROGM (KEY)],Programs_Active20[LONG TEXT])","v":"Property Tax Collections"}]
[212,108,"Y",24,"EACH","OUTPUT","NEITHER",null,null,null,null,"Property Tax Collections (108)","# of Registrations in Pct 1,2,3,4","# of Registrations in Pct 1,2,3,4",{"$f":"_xlfn.XLOOKUP(Measures_Table[[#This Row],[PM Program]],Programs_Active20[ZSBPPROGM (KEY)],Programs_Active20[LONG TEXT])","v":"Property Tax Collections"}]
[213,108,"Y",24,"EACH","OUTPUT","NEITHER",null,null,null,null,"Property Tax Collections (108)","# of Fleet Transactions in Pct 1,2,3,4","# of Fleet Transactions in Pct 1,2,3,4",{"$f":"_xlfn.XLOOKUP(Measures_Table[[#This Row],[PM Program]],Programs_Active20[ZSBPPROGM (KEY)],Programs_Active20[LONG TEXT])","v":"Property Tax Collections"}]
[214,108,"Y",24,"EACH","OUTPUT","NEITHER",null,null,null,null,"Property Tax Collections (108)","# of Registrations Pct 1,2,3,4","# of Registrations Pct 1,2,3,4",{"$f":"_xlfn.XLOOKUP(Measures_Table[[#This Row],[PM Program]],Programs_Active20[ZSBPPROGM (KEY)],Programs_Active20[LONG TEXT])","v":"Property Tax Collections"}]
[215,108,"Y",24,"EACH","INPUT","NEITHER",null,null,null,null,"Property Tax Collections (108)","# of DTA Titles in Pct 1,2,3,4","# of DTA Titles in Pct 1,2,3,4",{"$f":"_xlfn.XLOOKUP(Measures_Table[[#This Row],[PM Program]],Programs_Active20[ZSBPPROGM (KEY)],Programs_Active20[LONG TEXT])","v":"Property Tax Collections"}]
[216,108,"Y",24,"EACH","INPUT","NEITHER",null,null,null,null,"Property Tax Collections (108)","# of Walk in Titles in Pct 1,2,3,4","# of Walk in Titles in Pct 1,2,3,4",{"$f":"_xlfn.XLOOKUP(Measures_Table[[#This Row],[PM Program]],Programs_Active20[ZSBPPROGM (KEY)],Programs_Active20[LONG TEXT])","v":"Property Tax Collections"}]
[217,108,"Y",24,"EACH","INPUT","NEITHER",null,null,null,null,"Property Tax Collections (108)","# of Dealer Titles Pct 1,2,3,4","# of Dealer Titles Pct 1,2,3,4",{"$f":"_xlfn.XLOOKUP(Measures_Table[[#This Row],[PM Program]],Programs_Active20[ZSBPPROGM (KEY)],Programs_Active20[LONG TEXT])","v":"Property Tax Collections"}]
[218,108,"Y",24,"EACH","OUTPUT","NEITHER",null,null,null,null,"Property Tax Collections (108)","# of Tax Pmts in Pct 1,2,3,4","# of Tax Pmts in Pct 1,2,3,4",{"$f":"_xlfn.XLOOKUP(Measures_Table[[#This Row],[PM Program]],Programs_Active20[ZSBPPROGM (KEY)],Programs_Active20[LONG TEXT])","v":"Property Tax Collections"}]
[219,108,"Y",24,"EACH","OUTPUT","NEITHER",null,null,null,null,"Property Tax Collections (108)","# of Drive Thru Tax Pmts in Pct 1,2,3,4","# of Drive Thru Tax Pmts in Pct 1,2,3,4",{"$f":"_xlfn.XLOOKUP(Measures_Table[[#This Row],[PM Program]],Programs_Active20[ZSBPPROGM (KEY)],Programs_Active20[LONG TEXT])","v":"Property Tax Collections"}]
[220,108,"Y",24,"EACH","OUTPUT","NEITHER",null,null,null,null,"Property Tax Collections (108)","# of Customers Turned Away Pct 1,2,3,4","# of Customers Turned Away Pct 1,2,3,4",{"$f":"_xlfn.XLOOKUP(Measures_Table[[#This Row],[PM Program]],Programs_Active20[ZSBPPROGM (KEY)],Programs_Active20[LONG TEXT])","v":"Property Tax Collections"}]
[221,108,"Y",24,"EACH","OUTPUT","NEITHER",null,null,null,null,"Property Tax Collections (108)","Items Received","Items Received",{"$f":"_xlfn.XLOOKUP(Measures_Table[[#This Row],[PM Program]],Programs_Active20[ZSBPPROGM (KEY)],Programs_Active20[LONG TEXT])","v":"Property Tax Collections"}]
[222,108,"Y",24,"EACH","OUTPUT","NEITHER",null,null,null,null,"Property Tax Collections (108)","Items issued","Items issued",{"$f":"_xlfn.XLOOKUP(Measures_Table[[#This Row],[PM Program]],Programs_Active20[ZSBPPROGM (KEY)],Programs_Active20[LONG TEXT])","v":"Property Tax Collections"}]
[223,108,"Y",24,"EACH","OUTPUT","NEITHER",null,null,null,null,"Property Tax Collections (108)","Accountable Items","Accountable Items",{"$f":"_xlfn.XLOOKUP(Measures_Table[[#This Row],[PM Program]],Programs_Active20[ZSBPPROGM (KEY)],Programs_Active20[LONG TEXT])","v":"Property Tax Collections"}]
[224,108,"Y",24,"EACH","OUTPUT","NEITHER",null,null,null,null,"Property Tax Collections (108)","# Taxing Entities","# Taxing Entities",{"$f":"_xlfn.XLOOKUP(Measures_Table[[#This Row],[PM Program]],Programs_Active20[ZSBPPROGM (KEY)],Programs_Active20[LONG TEXT])","v":"Property Tax Collections"}]
[225,108,"Y",24,"EACH","OUTPUT","NEITHER",null,null,null,null,"Property Tax Collections (108)","Original Tax Roll # Parcels","Original Tax Roll # Parcels",{"$f":"_xlfn.XLOOKUP(Measures_Table[[#This Row],[PM Program]],Programs_Active20[ZSBPPROGM (KEY)],Programs_Active20[LONG TEXT])","v":"Property Tax Collections"}]
[226,108,"Y",24,"EACH","OUTPUT","NEITHER",null,null,null,null,"Property Tax Collections (108)","Original Tax Roll $ Base Levy All Entiti","Original Tax Roll $ Base Levy All Entities",{"$f":"_xlfn.XLOOKUP(Measures_Table[[#This Row],[PM Program]],Programs_Active20[ZSBPPROGM (KEY)],Programs_Active20[LONG TEXT])","v":"Property Tax Collections"}]
[227,108,"Y",24,"EACH","OUTPUT","NEITHER",null,null,null,null,"Property Tax Collections (108)","# Special Inventory Dealers","# Special Inventory Dealers",{"$f":"_xlfn.XLOOKUP(Measures_Table[[#This Row],[PM Program]],Programs_Active20[ZSBPPROGM (KEY)],Programs_Active20[LONG TEXT])","v":"Property Tax Collections"}]
[228,108,"Y",24,"EACH","OUTPUT","NEITHER",null,null,null,null,"Property Tax Collections (108)","Resolved District Court Appeal - $ Total","Resolved District Court Appeal - $ Total Value Loss",{"$f":"_xlfn.XLOOKUP(Measures_Table[[#This Row],[PM Program]],Programs_Active20[ZSBPPROGM (KEY)],Programs_Active20[LONG TEXT])","v":"Property Tax Collections"}]
[229,108,"Y",24,"EACH","OUTPUT","NEITHER",null,null,null,null,"Property Tax Collections (108)","Ag-Rollbacks Assessed # Parcels","Ag-Rollbacks Assessed # Parcels",{"$f":"_xlfn.XLOOKUP(Measures_Table[[#This Row],[PM Program]],Programs_Active20[ZSBPPROGM (KEY)],Programs_Active20[LONG TEXT])","v":"Property Tax Collections"}]
[230,108,"Y",24,"EACH","INPUT","ADOPTEDBUD",null,null,null,null,"Property Tax Collections (108)","Contracts for Future Taxes Assessed & Es","Contracts for Future Taxes Assessed & Escrowed - # Parcels",{"$f":"_xlfn.XLOOKUP(Measures_Table[[#This Row],[PM Program]],Programs_Active20[ZSBPPROGM (KEY)],Programs_Active20[LONG TEXT])","v":"Property Tax Collections"}]
[231,108,"Y",24,"EACH","INPUT","ADOPTEDBUD",null,null,null,null,"Property Tax Collections (108)","# Mobile Home Taxes estimated for future","# Mobile Home Taxes estimated for future year",{"$f":"_xlfn.XLOOKUP(Measures_Table[[#This Row],[PM Program]],Programs_Active20[ZSBPPROGM (KEY)],Programs_Active20[LONG TEXT])","v":"Property Tax Collections"}]
[232,108,"Y",24,"EACH","INPUT","ADOPTEDBUD",null,null,null,null,"Property Tax Collections (108)","# Exempt Property Assessed (estimated fo","# Exempt Property Assessed (estimated for future year)",{"$f":"_xlfn.XLOOKUP(Measures_Table[[#This Row],[PM Program]],Programs_Active20[ZSBPPROGM (KEY)],Programs_Active20[LONG TEXT])","v":"Property Tax Collections"}]
[233,108,"Y",24,"EACH","INPUT","NEITHER",null,null,null,null,"Property Tax Collections (108)","# of Fees Added for collection","# of Fees Added for collection",{"$f":"_xlfn.XLOOKUP(Measures_Table[[#This Row],[PM Program]],Programs_Active20[ZSBPPROGM (KEY)],Programs_Active20[LONG TEXT])","v":"Property Tax Collections"}]
[236,108,"Y",24,"EACH","OUTPUT","NEITHER",null,null,null,null,"Property Tax Collections (108)","Mobile Home Liens Filed","Mobile Home Liens Filed",{"$f":"_xlfn.XLOOKUP(Measures_Table[[#This Row],[PM Program]],Programs_Active20[ZSBPPROGM (KEY)],Programs_Active20[LONG TEXT])","v":"Property Tax Collections"}]
[237,108,"Y",24,"DOLLARS","OUTPUT","NEITHER",null,null,null,null,"Property Tax Collections (108)","Mobile Home Lien Releases","Mobile Home Lien Releases",{"$f":"_xlfn.XLOOKUP(Measures_Table[[#This Row],[PM Program]],Programs_Active20[ZSBPPROGM (KEY)],Programs_Active20[LONG TEXT])","v":"Property Tax Collections"}]
[238,108,"Y",24,"EACH","INPUT","ADOPTEDBUD",null,null,null,null,"Property Tax Collections (108)","Issue Tax Sale Statements","Issue Tax Sale Statements",{"$f":"_xlfn.XLOOKUP(Measures_Table[[#This Row],[PM Program]],Programs_Active20[ZSBPPROGM (KEY)],Programs_Active20[LONG TEXT])","v":"Property Tax Collections"}]
[239,108,"Y",24,"EACH","INPUT","ADOPTEDBUD",null,null,null,null,"Property Tax Collections (108)","# Complex Interactions with Jurisdiction","# Complex Interactions with Jurisdictions",{"$f":"_xlfn.XLOOKUP(Measures_Table[[#This Row],[PM Program]],Programs_Active20[ZSBPPROGM (KEY)],Programs_Active20[LONG TEXT])","v":"Property Tax Collections"}]
[240,108,"Y",24,"EACH","OUTPUT","ADOPTEDBUD",null,null,null,null,"Property Tax Collections (108)","# Actual Effective Tax Rate Calculations","# Actual Effective Tax Rate Calculations",{"$f":"_xlfn.XLOOKUP(Measures_Table[[#This Row],[PM Program]],Programs_Active20[ZSBPPROGM (KEY)],Programs_Active20[LONG TEXT])","v":"Property Tax Collections"}]
[241,108,"Y",24,"EACH","OUTPUT","ADOPTEDBUD",null,null,null,null,"Property Tax Collections (108)","# Estimated Effective Tax Rate Calculati","# Estimated Effective Tax Rate Calculations",{"$f":"_xlfn.XLOOKUP(Measures_Table[[#This Row],[PM Program]],Programs_Active20[ZSBPPROGM (KEY)],Programs_Active20[LONG TEXT])","v":"Property Tax Collections"}]
[242,108,"Y",24,"EACH","OUTPUT","NEITHER",null,null,null,null,"Property Tax Collections (108)","# Value Certifications Received","# Value Certifications Received",{"$f":"_xlfn.XLOOKUP(Measures_Table[[#This Row],[PM Program]],Programs_Active20[ZSBPPROGM (KEY)],Programs_Active20[LONG TEXT])","v":"Property Tax Collections"}]
[245,108,"Y",24,"EACH","OUTPUT","NEITHER",null,null,null,null,"Property Tax Collections (108)","# Original Tax Notices Mailed - Standard","# Original Tax Notices Mailed - Standard",{"$f":"_xlfn.XLOOKUP(Measures_Table[[#This Row],[PM Program]],Programs_Active20[ZSBPPROGM (KEY)],Programs_Active20[LONG TEXT])","v":"Property Tax Collections"}]
[246,108,"Y",24,"EACH","OUTPUT","NEITHER",null,null,null,null,"Property Tax Collections (108)","# Original Tax Notices Requested Electro","# Original Tax Notices Requested Electronically",{"$f":"_xlfn.XLOOKUP(Measures_Table[[#This Row],[PM Program]],Programs_Active20[ZSBPPROGM (KEY)],Programs_Active20[LONG TEXT])","v":"Property Tax Collections"}]
[247,108,"Y",24,"EACH","OUTPUT","NEITHER",null,null,null,null,"Property Tax Collections (108)","# Additional Inhouse Notices Printed or","# Additional Inhouse Notices Printed or Mailed",{"$f":"_xlfn.XLOOKUP(Measures_Table[[#This Row],[PM Program]],Programs_Active20[ZSBPPROGM (KEY)],Programs_Active20[LONG TEXT])","v":"Property Tax Collections"}]
[248,108,"Y",24,"EACH","OUTPUT","NEITHER",null,null,null,null,"Property Tax Collections (108)","# of Electronic payments processed","# of Electronic payments processed",{"$f":"_xlfn.XLOOKUP(Measures_Table[[#This Row],[PM Program]],Programs_Active20[ZSBPPROGM (KEY)],Programs_Active20[LONG TEXT])","v":"Property Tax Collections"}]
[249,108,"Y",24,"EACH","OUTPUT","NEITHER",null,null,null,null,"Property Tax Collections (108)","# of mailed payments processed","# of mailed payments processed",{"$f":"_xlfn.XLOOKUP(Measures_Table[[#This Row],[PM Program]],Programs_Active20[ZSBPPROGM (KEY)],Programs_Active20[LONG TEXT])","v":"Property Tax Collections"}]
[250,108,"Y",24,"EACH","OUTPUT","NEITHER",null,null,null,null,"Property Tax Collections (108)","# of walked in payments processed","# of walked in payments processed",{"$f":"_xlfn.XLOOKUP(Measures_Table[[#This Row],[PM Program]],Programs_Active20[ZSBPPROGM (KEY)],Programs_Active20[LONG TEXT])","v":"Property Tax Collections"}]
[251,108,"Y",24,"EACH","OUTPUT","NEITHER",null,null,null,null,"Property Tax Collections (108)","# Supplemental Increased Liability Accou","# Supplemental Increased Liability Accounts Paid Timely",{"$f":"_xlfn.XLOOKUP(Measures_Table[[#This Row],[PM Program]],Programs_Active20[ZSBPPROGM (KEY)],Programs_Active20[LONG TEXT])","v":"Property Tax Collections"}]
[252,108,"Y",24,"EACH","OUTPUT","NEITHER",null,null,null,null,"Property Tax Collections (108)","#Of Delinquent Deferrals Collected","#Of Delinquent Deferrals Collected",{"$f":"_xlfn.XLOOKUP(Measures_Table[[#This Row],[PM Program]],Programs_Active20[ZSBPPROGM (KEY)],Programs_Active20[LONG TEXT])","v":"Property Tax Collections"}]
[253,108,"Y",24,"EACH","OUTPUT","NEITHER",null,null,null,null,"Property Tax Collections (108)","$Of Delinquent Deferrals Collected","$Of Delinquent Deferrals Collected",{"$f":"_xlfn.XLOOKUP(Measures_Table[[#This Row],[PM Program]],Programs_Active20[ZSBPPROGM (KEY)],Programs_Active20[LONG TEXT])","v":"Property Tax Collections"}]
[254,108,"Y",24,"EACH","OUTPUT","NEITHER",null,null,null,null,"Property Tax Collections (108)","# Refund Applications Issued","# Refund Applications Issued",{"$f":"_xlfn.XLOOKUP(Measures_Table[[#This Row],[PM Program]],Programs_Active20[ZSBPPROGM (KEY)],Programs_Active20[LONG TEXT])","v":"Property Tax Collections"}]
[255,108,"Y",24,"EACH","OUTPUT","NEITHER",null,null,null,null,"Property Tax Collections (108)","$ Refund Applications Issued","$ Refund Applications Issued",{"$f":"_xlfn.XLOOKUP(Measures_Table[[#This Row],[PM Program]],Programs_Active20[ZSBPPROGM (KEY)],Programs_Active20[LONG TEXT])","v":"Property Tax Collections"}]
[256,108,"Y",24,"DOLLARS","OUTCOME","NEITHER",null,null,null,null,"Property Tax Collections (108)","# Taxpayer visits","# Taxpayer visits",{"$f":"_xlfn.XLOOKUP(Measures_Table[[#This Row],[PM Program]],Programs_Active20[ZSBPPROGM (KEY)],Programs_Active20[LONG TEXT])","v":"Property Tax Collections"}]
[257,108,"Y",24,"DOLLARS","OUTCOME","ADOPTEDBUD",null,null,null,null,"Property Tax Collections (108)","Taxpayer Telephone Calls Incoming","Taxpayer Telephone Calls Incoming",{"$f":"_xlfn.XLOOKUP(Measures_Table[[#This Row],[PM Program]],Programs_Active20[ZSBPPROGM (KEY)],Programs_Active20[LONG TEXT])","v":"Property Tax Collections"}]
[258,108,"Y",24,"PERCENT","OUTCOME","NEITHER",null,null,null,null,"Property Tax Collections (108)","Taxpayer Telephone Calls Outgoing","Taxpayer Telephone Calls Outgoing",{"$f":"_xlfn.XLOOKUP(Measures_Table[[#This Row],[PM Program]],Programs_Active20[ZSBPPROGM (KEY)],Programs_Active20[LONG TEXT])","v":"Property Tax Collections"}]
[259,108,"Y",24,"PERCENT","OUTCOME","NEITHER",null,null,null,null,"Property Tax Collections (108)","Taxpayer Telephone Calls Abandoned*","Taxpayer Telephone Calls Abandoned*",{"$f":"_xlfn.XLOOKUP(Measures_Table[[#This Row],[PM Program]],Programs_Active20[ZSBPPROGM (KEY)],Programs_Active20[LONG TEXT])","v":"Property Tax Collections"}]
[260,108,"Y",24,"EACH","OUTPUT","NEITHER",null,null,null,null,"Property Tax Collections (108)","#Problem Accts Researched & Resolved (Ma","#Problem Accts Researched & Resolved (Mail & Referrals & Email)",{"$f":"_xlfn.XLOOKUP(Measures_Table[[#This Row],[PM Program]],Programs_Active20[ZSBPPROGM (KEY)],Programs_Active20[LONG TEXT])","v":"Property Tax Collections"}]
[262,108,"Y",24,"EACH","OUTPUT","NEITHER",null,null,null,null,"Property Tax Collections (108)","Delinquent Deferrals Removed # Years","Delinquent Deferrals Removed # Years",{"$f":"_xlfn.XLOOKUP(Measures_Table[[#This Row],[PM Program]],Programs_Active20[ZSBPPROGM (KEY)],Programs_Active20[LONG TEXT])","v":"Property Tax Collections"}]
[263,108,"Y",24,"EACH","OUTPUT","NEITHER",null,null,null,null,"Property Tax Collections (108)","Parcels Required Additional Time to Pay","Parcels Required Additional Time to Pay because of Value Dispute",{"$f":"_xlfn.XLOOKUP(Measures_Table[[#This Row],[PM Program]],Programs_Active20[ZSBPPROGM (KEY)],Programs_Active20[LONG TEXT])","v":"Property Tax Collections"}]
[264,108,"Y",24,"EACH","OUTPUT","NEITHER",null,null,null,null,"Property Tax Collections (108)","Negotiated Partial Pay Agreements","Negotiated Partial Pay Agreements",{"$f":"_xlfn.XLOOKUP(Measures_Table[[#This Row],[PM Program]],Programs_Active20[ZSBPPROGM (KEY)],Programs_Active20[LONG TEXT])","v":"Property Tax Collections"}]
[265,108,"Y",24,"EACH","OUTPUT","NEITHER",null,null,null,null,"Property Tax Collections (108)","Negotiated Lawsuit Partial Pay Agreement","Negotiated Lawsuit Partial Pay Agreements",{"$f":"_xlfn.XLOOKUP(Measures_Table[[#This Row],[PM Program]],Programs_Active20[ZSBPPROGM (KEY)],Programs_Active20[LONG TEXT])","v":"Property Tax Collections"}]
[266,108,"Y",24,"EACH","OUTPUT","NEITHER",null,null,null,null,"Property Tax Collections (108)","Parcels in Online Pay Agreement","Parcels in Online Pay Agreement",{"$f":"_xlfn.XLOOKUP(Measures_Table[[#This Row],[PM Program]],Programs_Active20[ZSBPPROGM (KEY)],Programs_Active20[LONG TEXT])","v":"Property Tax Collections"}]
[267,108,"Y",24,"EACH","OUTPUT","NEITHER",null,null,null,null,"Property Tax Collections (108)","Partial Pay Agreement ACH Contract","Partial Pay Agreement ACH Contract",{"$f":"_xlfn.XLOOKUP(Measures_Table[[#This Row],[PM Program]],Programs_Active20[ZSBPPROGM (KEY)],Programs_Active20[LONG TEXT])","v":"Property Tax Collections"}]
[268,108,"Y",24,"EACH","OUTPUT","NEITHER",null,null,null,null,"Property Tax Collections (108)","Parcels Required Additional Time to Pay","Parcels Required Additional Time to Pay",{"$f":"_xlfn.XLOOKUP(Measures_Table[[#This Row],[PM Program]],Programs_Active20[ZSBPPROGM (KEY)],Programs_Active20[LONG TEXT])","v":"Property Tax Collections"}]
[269,108,"Y",24,"EACH","OUTPUT","NEITHER",null,null,null,null,"Property Tax Collections (108)","Contact Property Owners about Funds Not","Contact Property Owners about Funds Not Honored by Bank",{"$f":"_xlfn.XLOOKUP(Measures_Table[[#This Row],[PM Program]],Programs_Active20[ZSBPPROGM (KEY)],Programs_Active20[LONG TEXT])","v":"Property Tax Collections"}]
[270,108,"Y",24,"EACH","OUTPUT","NEITHER",null,null,null,null,"Property Tax Collections (108)","# Address Changes","# Address Changes",{"$f":"_xlfn.XLOOKUP(Measures_Table[[#This Row],[PM Program]],Programs_Active20[ZSBPPROGM (KEY)],Programs_Active20[LONG TEXT])","v":"Property Tax Collections"}]
[271,108,"Y",24,"EACH","OUTPUT","NEITHER",null,null,null,null,"Property Tax Collections (108)","# Quarterly Letter of Intent’s Evaluated","# Quarterly Letter of Intent’s Evaluated &  Processed",{"$f":"_xlfn.XLOOKUP(Measures_Table[[#This Row],[PM Program]],Programs_Active20[ZSBPPROGM (KEY)],Programs_Active20[LONG TEXT])","v":"Property Tax Collections"}]
[272,108,"Y",24,"DOLLARS","OUTPUT","NEITHER",null,null,null,null,"Property Tax Collections (108)","# Returned Mail Processed","# Returned Mail Processed",{"$f":"_xlfn.XLOOKUP(Measures_Table[[#This Row],[PM Program]],Programs_Active20[ZSBPPROGM (KEY)],Programs_Active20[LONG TEXT])","v":"Property Tax Collections"}]
[273,108,"Y",24,"EACH","OUTPUT","NEITHER",null,null,null,null,"Property Tax Collections (108)","# Certified Mail Processed","# Certified Mail Processed",{"$f":"_xlfn.XLOOKUP(Measures_Table[[#This Row],[PM Program]],Programs_Active20[ZSBPPROGM (KEY)],Programs_Active20[LONG TEXT])","v":"Property Tax Collections"}]
[274,108,"Y",24,"DOLLARS","OUTPUT","NEITHER",null,null,null,null,"Property Tax Collections (108)","Delinquent Collection amounts TCO","Delinquent Collection amounts TCO",{"$f":"_xlfn.XLOOKUP(Measures_Table[[#This Row],[PM Program]],Programs_Active20[ZSBPPROGM (KEY)],Programs_Active20[LONG TEXT])","v":"Property Tax Collections"}]
[275,108,"Y",24,"EACH","OUTPUT","NEITHER",null,null,null,null,"Property Tax Collections (108)","Delinquent Collection amounts ALL","Delinquent Collection amounts ALL",{"$f":"_xlfn.XLOOKUP(Measures_Table[[#This Row],[PM Program]],Programs_Active20[ZSBPPROGM (KEY)],Programs_Active20[LONG TEXT])","v":"Property Tax Collections"}]
[276,108,"Y",24,"EACH","OUTPUT","NEITHER",null,null,null,null,"Property Tax Collections (108)","On-time Collection Rate TCO","On-time Collection Rate TCO",{"$f":"_xlfn.XLOOKUP(Measures_Table[[#This Row],[PM Program]],Programs_Active20[ZSBPPROGM (KEY)],Programs_Active20[LONG TEXT])","v":"Property Tax Collections"}]
[277,108,"Y",24,"DOLLARS","OUTPUT","NEITHER",null,null,null,null,"Property Tax Collections (108)","Total Collection Rate TCO","Total Collection Rate TCO",{"$f":"_xlfn.XLOOKUP(Measures_Table[[#This Row],[PM Program]],Programs_Active20[ZSBPPROGM (KEY)],Programs_Active20[LONG TEXT])","v":"Property Tax Collections"}]
[278,108,"Y",24,"EACH","OUTPUT","NEITHER",null,null,null,null,"Property Tax Collections (108)","# Of February Delinquent Tax Statements","# Of February Delinquent Tax Statements mailed",{"$f":"_xlfn.XLOOKUP(Measures_Table[[#This Row],[PM Program]],Programs_Active20[ZSBPPROGM (KEY)],Programs_Active20[LONG TEXT])","v":"Property Tax Collections"}]
[279,108,"Y",24,"EACH","OUTPUT","NEITHER",null,null,null,null,"Property Tax Collections (108)","# Of Delinquent Statements with returned","# Of Delinquent Statements with returned mail attempted forward",{"$f":"_xlfn.XLOOKUP(Measures_Table[[#This Row],[PM Program]],Programs_Active20[ZSBPPROGM (KEY)],Programs_Active20[LONG TEXT])","v":"Property Tax Collections"}]
[280,108,"Y",24,"EACH","OUTPUT","NEITHER",null,null,null,null,"Property Tax Collections (108)","# Of demand letters","# Of demand letters",{"$f":"_xlfn.XLOOKUP(Measures_Table[[#This Row],[PM Program]],Programs_Active20[ZSBPPROGM (KEY)],Programs_Active20[LONG TEXT])","v":"Property Tax Collections"}]
[281,108,"Y",19,"EACH","OUTPUT","ADOPTEDBUD",null,null,null,null,"Voter Registration Division (108)","# Of searches for taxpayer contact via A","# Of searches for taxpayer contact via Accurint Data Base",{"$f":"_xlfn.XLOOKUP(Measures_Table[[#This Row],[PM Program]],Programs_Active20[ZSBPPROGM (KEY)],Programs_Active20[LONG TEXT])","v":"Voter Registration Division"}]
[282,108,"Y",19,"EACH","OUTPUT","NEITHER",null,null,null,null,"Voter Registration Division (108)","# Records Adjusted due to Resale","# Records Adjusted due to Resale",{"$f":"_xlfn.XLOOKUP(Measures_Table[[#This Row],[PM Program]],Programs_Active20[ZSBPPROGM (KEY)],Programs_Active20[LONG TEXT])","v":"Voter Registration Division"}]
[283,108,"Y",19,"EACH","OUTPUT","NEITHER",null,null,null,null,"Voter Registration Division (108)","Litigation Letters (LITLTR2)","Litigation Letters (LITLTR2)",{"$f":"_xlfn.XLOOKUP(Measures_Table[[#This Row],[PM Program]],Programs_Active20[ZSBPPROGM (KEY)],Programs_Active20[LONG TEXT])","v":"Voter Registration Division"}]
[284,108,"Y",19,"EACH","OUTCOME","NEITHER",null,null,null,null,"Voter Registration Division (108)","# Lawsuits Filed","# Lawsuits Filed",{"$f":"_xlfn.XLOOKUP(Measures_Table[[#This Row],[PM Program]],Programs_Active20[ZSBPPROGM (KEY)],Programs_Active20[LONG TEXT])","v":"Voter Registration Division"}]
[285,108,"Y",19,"PERCENT","OUTCOME","NEITHER",null,null,null,null,"Voter Registration Division (108)","Attorney Ad Litem","Attorney Ad Litem",{"$f":"_xlfn.XLOOKUP(Measures_Table[[#This Row],[PM Program]],Programs_Active20[ZSBPPROGM (KEY)],Programs_Active20[LONG TEXT])","v":"Voter Registration Division"}]
[286,108,"Y",19,"EACH","OUTCOME","NEITHER",null,null,null,null,"Voter Registration Division (108)","Properties Advertised for Tax Sale","Properties Advertised for Tax Sale",{"$f":"_xlfn.XLOOKUP(Measures_Table[[#This Row],[PM Program]],Programs_Active20[ZSBPPROGM (KEY)],Programs_Active20[LONG TEXT])","v":"Voter Registration Division"}]
[287,108,"Y",19,"EACH","OUTCOME","NEITHER",null,null,null,null,"Voter Registration Division (108)","# Payments reversed via TXTRAN","# Payments reversed via TXTRAN",{"$f":"_xlfn.XLOOKUP(Measures_Table[[#This Row],[PM Program]],Programs_Active20[ZSBPPROGM (KEY)],Programs_Active20[LONG TEXT])","v":"Voter Registration Division"}]
[288,108,"Y",19,"EACH","OUTCOME","NEITHER",null,null,null,null,"Voter Registration Division (108)","# Payments reallocated via TXPAY","# Payments reallocated via TXPAY",{"$f":"_xlfn.XLOOKUP(Measures_Table[[#This Row],[PM Program]],Programs_Active20[ZSBPPROGM (KEY)],Programs_Active20[LONG TEXT])","v":"Voter Registration Division"}]
[289,108,"Y",19,"EACH","OUTPUT","NEITHER",null,null,null,null,"Voter Registration Division (108)","# Fees Reversed","# Fees Reversed",{"$f":"_xlfn.XLOOKUP(Measures_Table[[#This Row],[PM Program]],Programs_Active20[ZSBPPROGM (KEY)],Programs_Active20[LONG TEXT])","v":"Voter Registration Division"}]
[290,108,"Y",19,"EACH","OUTPUT","NEITHER",null,null,null,null,"Voter Registration Division (108)","$ Fees Reversed","$ Fees Reversed",{"$f":"_xlfn.XLOOKUP(Measures_Table[[#This Row],[PM Program]],Programs_Active20[ZSBPPROGM (KEY)],Programs_Active20[LONG TEXT])","v":"Voter Registration Division"}]
[291,108,"Y",19,"EACH","OUTPUT","NEITHER",null,null,null,null,"Voter Registration Division (108)","# Refund applications processed","# Refund applications processed",{"$f":"_xlfn.XLOOKUP(Measures_Table[[#This Row],[PM Program]],Programs_Active20[ZSBPPROGM (KEY)],Programs_Active20[LONG TEXT])","v":"Voter Registration Division"}]
[292,108,"Y",19,"EACH","OUTPUT","ADOPTEDBUD",null,null,null,null,"Voter Registration Division (108)","$ Refund applications processed","$ Refund applications processed",{"$f":"_xlfn.XLOOKUP(Measures_Table[[#This Row],[PM Program]],Programs_Active20[ZSBPPROGM (KEY)],Programs_Active20[LONG TEXT])","v":"Voter Registration Division"}]
[293,108,"Y",19,"EACH","OUTPUT","NEITHER",null,null,null,null,"Voter Registration Division (108)","# Refund Applications Rejected","# Refund Applications Rejected",{"$f":"_xlfn.XLOOKUP(Measures_Table[[#This Row],[PM Program]],Programs_Active20[ZSBPPROGM (KEY)],Programs_Active20[LONG TEXT])","v":"Voter Registration Division"}]
[294,108,"Y",19,"SQ_MILES","OUTPUT","NEITHER",null,null,null,null,"Voter Registration Division (108)","# Automatic refunds processed","# Automatic refunds processed",{"$f":"_xlfn.XLOOKUP(Measures_Table[[#This Row],[PM Program]],Programs_Active20[ZSBPPROGM (KEY)],Programs_Active20[LONG TEXT])","v":"Voter Registration Division"}]
[295,108,"Y",19,"EACH","OUTPUT","NEITHER",null,null,null,null,"Voter Registration Division (108)","$ Automatic refunds processed","$ Automatic refunds processed",{"$f":"_xlfn.XLOOKUP(Measures_Table[[#This Row],[PM Program]],Programs_Active20[ZSBPPROGM (KEY)],Programs_Active20[LONG TEXT])","v":"Voter Registration Division"}]
[296,108,"Y",19,"EACH","OUTPUT","NEITHER",null,null,null,null,"Voter Registration Division (108)","# Of Accounts with refunds over 3 years","# Of Accounts with refunds over 3 years escheated to TC Treasurer",{"$f":"_xlfn.XLOOKUP(Measures_Table[[#This Row],[PM Program]],Programs_Active20[ZSBPPROGM (KEY)],Programs_Active20[LONG TEXT])","v":"Voter Registration Division"}]
[297,108,"Y",19,"EACH","OUTPUT","NEITHER",null,null,null,null,"Voter Registration Division (108)","# Of VIT records reviewed","# Of VIT records reviewed",{"$f":"_xlfn.XLOOKUP(Measures_Table[[#This Row],[PM Program]],Programs_Active20[ZSBPPROGM (KEY)],Programs_Active20[LONG TEXT])","v":"Voter Registration Division"}]
[298,108,"Y",19,"EACH","OUTPUT","NEITHER",null,null,null,null,"Voter Registration Division (108)","# Of Fees disbursed","# Of Fees disbursed",{"$f":"_xlfn.XLOOKUP(Measures_Table[[#This Row],[PM Program]],Programs_Active20[ZSBPPROGM (KEY)],Programs_Active20[LONG TEXT])","v":"Voter Registration Division"}]
[299,108,"Y",19,"EACH","OUTPUT","NEITHER",null,null,null,null,"Voter Registration Division (108)","# Documents received and processed","# Documents received and processed",{"$f":"_xlfn.XLOOKUP(Measures_Table[[#This Row],[PM Program]],Programs_Active20[ZSBPPROGM (KEY)],Programs_Active20[LONG TEXT])","v":"Voter Registration Division"}]
[300,108,"Y",19,"EACH","OUTPUT","ADOPTEDBUD",null,null,null,null,"Voter Registration Division (108)","# Documents rejected/examined","# Documents rejected/examined",{"$f":"_xlfn.XLOOKUP(Measures_Table[[#This Row],[PM Program]],Programs_Active20[ZSBPPROGM (KEY)],Programs_Active20[LONG TEXT])","v":"Voter Registration Division"}]
[301,112,"Y",28,"EACH","EFFICIENCY","BLACKBOOK",null,null,null,null,"Administration (112)","# Voters cancelled","# Voters cancelled",{"$f":"_xlfn.XLOOKUP(Measures_Table[[#This Row],[PM Program]],Programs_Active20[ZSBPPROGM (KEY)],Programs_Active20[LONG TEXT])","v":"Administration"}]
[302,112,"Y",28,"EACH","OUTPUT","BLACKBOOK",null,null,null,null,"Administration (112)","# Total Registered Voters","# Total Registered Voters",{"$f":"_xlfn.XLOOKUP(Measures_Table[[#This Row],[PM Program]],Programs_Active20[ZSBPPROGM (KEY)],Programs_Active20[LONG TEXT])","v":"Administration"}]
[303,112,"Y",28,"PERCENT","EFFICIENCY","ADOPTEDBUD",null,null,null,null,"Administration (112)","% of Eligible Voters Registered","% of Eligible Voters Registered",{"$f":"_xlfn.XLOOKUP(Measures_Table[[#This Row],[PM Program]],Programs_Active20[ZSBPPROGM (KEY)],Programs_Active20[LONG TEXT])","v":"Administration"}]
[311,112,"Y",29,"HOURS","INPUT","BLACKBOOK",null,null,null,null,"Application Dev & Productn Support (112)","Maps Created/Revised","Maps Created/Revised",{"$f":"_xlfn.XLOOKUP(Measures_Table[[#This Row],[PM Program]],Programs_Active20[ZSBPPROGM (KEY)],Programs_Active20[LONG TEXT])","v":"Application Development & Production Support"}]
[312,112,"Y",29,"EACH","OUTPUT","BLACKBOOK",null,null,null,null,"Application Dev & Productn Support (112)","Jurisdictional Boundaries Researched (in","Jurisdictional Boundaries Researched (in square miles)",{"$f":"_xlfn.XLOOKUP(Measures_Table[[#This Row],[PM Program]],Programs_Active20[ZSBPPROGM (KEY)],Programs_Active20[LONG TEXT])","v":"Application Development & Production Support"}]
[313,112,"Y",29,"HOURS","EFFICIENCY","BLACKBOOK",null,null,null,null,"Application Dev & Productn Support (112)","Street Index Updates","Street Index Updates",{"$f":"_xlfn.XLOOKUP(Measures_Table[[#This Row],[PM Program]],Programs_Active20[ZSBPPROGM (KEY)],Programs_Active20[LONG TEXT])","v":"Application Development & Production Support"}]
[422,112,"Y",31,"EACH","INPUT","BLACKBOOK",null,null,null,null,"Project Management Office (112)","Service Desk/Ops Incident Tickets Closed","Service Desk/Ops Incident Tickets Closed-Priority 4 Incident",{"$f":"_xlfn.XLOOKUP(Measures_Table[[#This Row],[PM Program]],Programs_Active20[ZSBPPROGM (KEY)],Programs_Active20[LONG TEXT])","v":"Project Management Office"}]
[423,112,"Y",31,"EACH","OUTPUT","BLACKBOOK",null,null,null,null,"Project Management Office (112)","Service Desk/Ops Incident Tickets Closed","Service Desk/Ops Incident Tickets Closed-Priority 5 Incident",{"$f":"_xlfn.XLOOKUP(Measures_Table[[#This Row],[PM Program]],Programs_Active20[ZSBPPROGM (KEY)],Programs_Active20[LONG TEXT])","v":"Project Management Office"}]
[424,112,"Y",31,"PERCENT","EFFICIENCY","BLACKBOOK",null,null,null,null,"Project Management Office (112)","Overall Service Desk/Ops IRs","Overall Service Desk/Ops IRs",{"$f":"_xlfn.XLOOKUP(Measures_Table[[#This Row],[PM Program]],Programs_Active20[ZSBPPROGM (KEY)],Programs_Active20[LONG TEXT])","v":"Project Management Office"}]
[425,112,"Y",31,"PERCENT","EFFICIENCY","ADOPTEDBUD",null,null,null,null,"Project Management Office (112)","NSOS IRs Closed Tickets - Priority 1 IRs","NSOS IRs Closed Tickets - Priority 1 IRs",{"$f":"_xlfn.XLOOKUP(Measures_Table[[#This Row],[PM Program]],Programs_Active20[ZSBPPROGM (KEY)],Programs_Active20[LONG TEXT])","v":"Project Management Office"}]
[427,112,"Y",31,"EACH","INPUT","BLACKBOOK",null,null,null,null,"Project Management Office (112)","NSOS IRs Closed Tickets - Priority 3 IRs","NSOS IRs Closed Tickets - Priority 3 IRs",{"$f":"_xlfn.XLOOKUP(Measures_Table[[#This Row],[PM Program]],Programs_Active20[ZSBPPROGM (KEY)],Programs_Active20[LONG TEXT])","v":"Project Management Office"}]
[439,120,"Y",34,"DOLLARS","OUTCOME","ADOPTEDBUD",null,null,null,null,"Administration - Accounting (120)","% Overall Tickets Closed by Service Desk","% Overall Tickets Closed by Service Desk",{"$f":"_xlfn.XLOOKUP(Measures_Table[[#This Row],[PM Program]],Programs_Active20[ZSBPPROGM (KEY)],Programs_Active20[LONG TEXT])","v":"Administration - Accounting"}]
[441,120,"Y",34,"HOURS","INPUT","ADOPTEDBUD",null,null,null,null,"Administration - Accounting (120)","# of projects completed during a year","# of projects completed during a year",{"$f":"_xlfn.XLOOKUP(Measures_Table[[#This Row],[PM Program]],Programs_Active20[ZSBPPROGM (KEY)],Programs_Active20[LONG TEXT])","v":"Administration - Accounting"}]
[442,120,"Y",34,"HOURS","INPUT","ADOPTEDBUD",null,null,null,null,"Administration - Accounting (120)","% of projects started / total projects","% of projects started / total projects",{"$f":"_xlfn.XLOOKUP(Measures_Table[[#This Row],[PM Program]],Programs_Active20[ZSBPPROGM (KEY)],Programs_Active20[LONG TEXT])","v":"Administration - Accounting"}]
[443,120,"Y",34,"HOURS","INPUT","ADOPTEDBUD",null,null,null,null,"Administration - Accounting (120)","% of projects completed / total projects","% of projects completed / total projects",{"$f":"_xlfn.XLOOKUP(Measures_Table[[#This Row],[PM Program]],Programs_Active20[ZSBPPROGM (KEY)],Programs_Active20[LONG TEXT])","v":"Administration - Accounting"}]
[444,120,"Y",34,"HOURS","INPUT","ADOPTEDBUD",null,null,null,null,"Administration - Accounting (120)","% of cancelled projects / total projects","% of cancelled projects / total projects",{"$f":"_xlfn.XLOOKUP(Measures_Table[[#This Row],[PM Program]],Programs_Active20[ZSBPPROGM (KEY)],Programs_Active20[LONG TEXT])","v":"Administration - Accounting"}]
[445,120,"Y",34,"HOURS","INPUT","ADOPTEDBUD",null,null,null,null,"Administration - Accounting (120)","# of projects started in a year","# of projects started in a year",{"$f":"_xlfn.XLOOKUP(Measures_Table[[#This Row],[PM Program]],Programs_Active20[ZSBPPROGM (KEY)],Programs_Active20[LONG TEXT])","v":"Administration - Accounting"}]
[446,120,"Y",34,"HOURS","INPUT","ADOPTEDBUD",null,null,null,null,"Administration - Accounting (120)","System Team Incident Tickets Closed - Pr","System Team Incident Tickets Closed - Priority 5 Irs",{"$f":"_xlfn.XLOOKUP(Measures_Table[[#This Row],[PM Program]],Programs_Active20[ZSBPPROGM (KEY)],Programs_Active20[LONG TEXT])","v":"Administration - Accounting"}]
[447,120,"Y",34,"HOURS","INPUT","ADOPTEDBUD",null,null,null,null,"Administration - Accounting (120)","% SDF/SiteOps Team Acknowledged Tickets","% SDF/SiteOps Team Acknowledged Tickets - Priority 2 IRs",{"$f":"_xlfn.XLOOKUP(Measures_Table[[#This Row],[PM Program]],Programs_Active20[ZSBPPROGM (KEY)],Programs_Active20[LONG TEXT])","v":"Administration - Accounting"}]
[448,120,"Y",34,"HOURS","INPUT","ADOPTEDBUD",null,null,null,null,"Administration - Accounting (120)","% SDF/SiteOps Team Acknowledged Tickets","% SDF/SiteOps Team Acknowledged Tickets - Priority 3 IRs",{"$f":"_xlfn.XLOOKUP(Measures_Table[[#This Row],[PM Program]],Programs_Active20[ZSBPPROGM (KEY)],Programs_Active20[LONG TEXT])","v":"Administration - Accounting"}]
[449,120,"Y",34,"HOURS","INPUT","ADOPTEDBUD",null,null,null,null,"Administration - Accounting (120)","% SDF/SiteOps Team Acknowledged Tickets","% SDF/SiteOps Team Acknowledged Tickets - Priority 4 IRs",{"$f":"_xlfn.XLOOKUP(Measures_Table[[#This Row],[PM Program]],Programs_Active20[ZSBPPROGM (KEY)],Programs_Active20[LONG TEXT])","v":"Administration - Accounting"}]
[450,120,"Y",34,"HOURS","INPUT","ADOPTEDBUD",null,null,null,null,"Administration - Accounting (120)","% SDF/SiteOps Tickets Closed - Priority","% SDF/SiteOps Tickets Closed - Priority 1 Incident",{"$f":"_xlfn.XLOOKUP(Measures_Table[[#This Row],[PM Program]],Programs_Active20[ZSBPPROGM (KEY)],Programs_Active20[LONG TEXT])","v":"Administration - Accounting"}]
[452,120,"Y",34,"EACH","OUTPUT","ADOPTEDBUD",null,null,null,null,"Administration - Accounting (120)","% SDF/SiteOps Tickets Closed - Priority","% SDF/SiteOps Tickets Closed - Priority 3 Incident",{"$f":"_xlfn.XLOOKUP(Measures_Table[[#This Row],[PM Program]],Programs_Active20[ZSBPPROGM (KEY)],Programs_Active20[LONG TEXT])","v":"Administration - Accounting"}]
[453,120,"Y",34,"EACH","OUTPUT","ADOPTEDBUD",null,null,null,null,"Administration - Accounting (120)","% SDF/SiteOps Tickets Closed - Priority","% SDF/SiteOps Tickets Closed - Priority 4 Incident",{"$f":"_xlfn.XLOOKUP(Measures_Table[[#This Row],[PM Program]],Programs_Active20[ZSBPPROGM (KEY)],Programs_Active20[LONG TEXT])","v":"Administration - Accounting"}]
[454,120,"Y",34,"EACH","OUTPUT","ADOPTEDBUD",null,null,null,null,"Administration - Accounting (120)","% Overall SDF/SiteOps Acknowledged Ticke","% Overall SDF/SiteOps Acknowledged Tickets",{"$f":"_xlfn.XLOOKUP(Measures_Table[[#This Row],[PM Program]],Programs_Active20[ZSBPPROGM (KEY)],Programs_Active20[LONG TEXT])","v":"Administration - Accounting"}]
[455,120,"Y",34,"EACH","OUTPUT","ADOPTEDBUD",null,null,null,null,"Administration - Accounting (120)","% Overall SDF/SiteOps Incident Tickets C","% Overall SDF/SiteOps Incident Tickets Closed",{"$f":"_xlfn.XLOOKUP(Measures_Table[[#This Row],[PM Program]],Programs_Active20[ZSBPPROGM (KEY)],Programs_Active20[LONG TEXT])","v":"Administration - Accounting"}]
[456,120,"Y",34,"EACH","OUTPUT","ADOPTEDBUD",null,null,null,null,"Administration - Accounting (120)","% Reported Tickets via Phone call","% Reported Tickets via Phone call",{"$f":"_xlfn.XLOOKUP(Measures_Table[[#This Row],[PM Program]],Programs_Active20[ZSBPPROGM (KEY)],Programs_Active20[LONG TEXT])","v":"Administration - Accounting"}]
[457,120,"Y",34,"DOLLARS","OUTPUT","ADOPTEDBUD",null,null,null,null,"Administration - Accounting (120)","Amount of Custodial Deposits at Year End","Amount of Custodial Deposits at Year End",{"$f":"_xlfn.XLOOKUP(Measures_Table[[#This Row],[PM Program]],Programs_Active20[ZSBPPROGM (KEY)],Programs_Active20[LONG TEXT])","v":"Administration - Accounting"}]
[459,120,"Y",35,"EACH","OUTPUT","ADOPTEDBUD",null,null,null,null,"Administration-Computer Resources (120)","Hours on Audit and Review of Daily work","Hours on Audit and Review of Daily work",{"$f":"_xlfn.XLOOKUP(Measures_Table[[#This Row],[PM Program]],Programs_Active20[ZSBPPROGM (KEY)],Programs_Active20[LONG TEXT])","v":"Administration - Computer Resources"}]
[465,120,"Y",35,"EACH","OUTPUT","ADOPTEDBUD",null,null,null,null,"Administration-Computer Resources (120)","Hours on Unclaimed Property Reporting","Hours on Unclaimed Property Reporting",{"$f":"_xlfn.XLOOKUP(Measures_Table[[#This Row],[PM Program]],Programs_Active20[ZSBPPROGM (KEY)],Programs_Active20[LONG TEXT])","v":"Administration - Computer Resources"}]
[467,120,"Y",35,"EACH","OUTPUT","ADOPTEDBUD",null,null,null,null,"Administration-Computer Resources (120)","Hours Printing and Mailing Monthly State","Hours Printing and Mailing Monthly Statements",{"$f":"_xlfn.XLOOKUP(Measures_Table[[#This Row],[PM Program]],Programs_Active20[ZSBPPROGM (KEY)],Programs_Active20[LONG TEXT])","v":"Administration - Computer Resources"}]
[468,120,"Y",35,"EACH","OUTPUT","ADOPTEDBUD",null,null,null,null,"Administration-Computer Resources (120)","Hours Spent on Scanning","Hours Spent on Scanning",{"$f":"_xlfn.XLOOKUP(Measures_Table[[#This Row],[PM Program]],Programs_Active20[ZSBPPROGM (KEY)],Programs_Active20[LONG TEXT])","v":"Administration - Computer Resources"}]
[470,120,"Y",35,"EACH","OUTPUT","ADOPTEDBUD",null,null,null,null,"Administration-Computer Resources (120)","Number of Checks Processed","Number of Checks Processed",{"$f":"_xlfn.XLOOKUP(Measures_Table[[#This Row],[PM Program]],Programs_Active20[ZSBPPROGM (KEY)],Programs_Active20[LONG TEXT])","v":"Administration - Computer Resources"}]
[472,120,"Y",35,"EACH","OUTPUT","ADOPTEDBUD",null,null,null,null,"Administration-Computer Resources (120)","Number of Custodial Accounts","Number of Custodial Accounts",{"$f":"_xlfn.XLOOKUP(Measures_Table[[#This Row],[PM Program]],Programs_Active20[ZSBPPROGM (KEY)],Programs_Active20[LONG TEXT])","v":"Administration - Computer Resources"}]
[474,120,"Y",33,"EACH","OUTPUT","ADOPTEDBUD",null,null,null,null,"General Administration (120)","Number of Election Invoices Processed","Number of Election Invoices Processed",{"$f":"_xlfn.XLOOKUP(Measures_Table[[#This Row],[PM Program]],Programs_Active20[ZSBPPROGM (KEY)],Programs_Active20[LONG TEXT])","v":"General Administration"}]
[475,120,"Y",33,"EACH","OUTPUT","ADOPTEDBUD",null,null,null,null,"General Administration (120)","Revenue Transferred to Treasurer","Revenue Transferred to Treasurer",{"$f":"_xlfn.XLOOKUP(Measures_Table[[#This Row],[PM Program]],Programs_Active20[ZSBPPROGM (KEY)],Programs_Active20[LONG TEXT])","v":"General Administration"}]
[476,120,"Y",35,"EACH","OUTCOME","ADOPTEDBUD",null,null,null,null,"Administration-Computer Resources (120)","Number of active systems","Number of active systems",{"$f":"_xlfn.XLOOKUP(Measures_Table[[#This Row],[PM Program]],Programs_Active20[ZSBPPROGM (KEY)],Programs_Active20[LONG TEXT])","v":"Administration - Computer Resources"}]
[477,120,"Y",35,"EACH","OUTCOME","ADOPTEDBUD",null,null,null,null,"Administration-Computer Resources (120)","Number of Information Technology project","Number of Information Technology projects in progress",{"$f":"_xlfn.XLOOKUP(Measures_Table[[#This Row],[PM Program]],Programs_Active20[ZSBPPROGM (KEY)],Programs_Active20[LONG TEXT])","v":"Administration - Computer Resources"}]
[478,120,"Y",35,"EACH","OUTCOME","ADOPTEDBUD",null,null,null,null,"Administration-Computer Resources (120)","Number of monitoring events","Number of monitoring events",{"$f":"_xlfn.XLOOKUP(Measures_Table[[#This Row],[PM Program]],Programs_Active20[ZSBPPROGM (KEY)],Programs_Active20[LONG TEXT])","v":"Administration - Computer Resources"}]
[479,120,"Y",35,"EACH","OUTCOME","ADOPTEDBUD",null,null,null,null,"Administration-Computer Resources (120)","Number of Product Files/CDs/Disks prepar","Number of Product Files/CDs/Disks prepared and distributed",{"$f":"_xlfn.XLOOKUP(Measures_Table[[#This Row],[PM Program]],Programs_Active20[ZSBPPROGM (KEY)],Programs_Active20[LONG TEXT])","v":"Administration - Computer Resources"}]
[480,120,"Y",35,"HOURS","OUTPUT","ADOPTEDBUD",null,null,null,null,"Administration-Computer Resources (120)","Number of reports generated","Number of reports generated",{"$f":"_xlfn.XLOOKUP(Measures_Table[[#This Row],[PM Program]],Programs_Active20[ZSBPPROGM (KEY)],Programs_Active20[LONG TEXT])","v":"Administration - Computer Resources"}]
[481,120,"Y",33,"HOURS","OUTPUT","ADOPTEDBUD",null,null,null,null,"General Administration (120)","Number of training events","Number of training events",{"$f":"_xlfn.XLOOKUP(Measures_Table[[#This Row],[PM Program]],Programs_Active20[ZSBPPROGM (KEY)],Programs_Active20[LONG TEXT])","v":"General Administration"}]
[482,120,"Y",35,"HOURS","OUTPUT","ADOPTEDBUD",null,null,null,null,"Administration-Computer Resources (120)","Backup Scripts Executed","Backup Scripts Executed",{"$f":"_xlfn.XLOOKUP(Measures_Table[[#This Row],[PM Program]],Programs_Active20[ZSBPPROGM (KEY)],Programs_Active20[LONG TEXT])","v":"Administration - Computer Resources"}]
[483,120,"Y",33,"HOURS","OUTPUT","ADOPTEDBUD",null,null,null,null,"General Administration (120)","Number of Data- bases Issues/ Questions","Number of Data- bases Issues/ Questions Addressed",{"$f":"_xlfn.XLOOKUP(Measures_Table[[#This Row],[PM Program]],Programs_Active20[ZSBPPROGM (KEY)],Programs_Active20[LONG TEXT])","v":"General Administration"}]
[484,120,"Y",33,"HOURS","OUTPUT","ADOPTEDBUD",null,null,null,null,"General Administration (120)","Number of Data Loads","Number of Data Loads",{"$f":"_xlfn.XLOOKUP(Measures_Table[[#This Row],[PM Program]],Programs_Active20[ZSBPPROGM (KEY)],Programs_Active20[LONG TEXT])","v":"General Administration"}]
[486,120,"Y",33,"EACH","OUTPUT","ADOPTEDBUD",null,null,null,null,"General Administration (120)","Number of Databases","Number of Databases",{"$f":"_xlfn.XLOOKUP(Measures_Table[[#This Row],[PM Program]],Programs_Active20[ZSBPPROGM (KEY)],Programs_Active20[LONG TEXT])","v":"General Administration"}]
[487,120,"Y",33,"EACH","OUTPUT","ADOPTEDBUD",null,null,null,null,"General Administration (120)","Number of Schema Objects Maintained","Number of Schema Objects Maintained",{"$f":"_xlfn.XLOOKUP(Measures_Table[[#This Row],[PM Program]],Programs_Active20[ZSBPPROGM (KEY)],Programs_Active20[LONG TEXT])","v":"General Administration"}]
[488,120,"Y",33,"EACH","OUTPUT","ADOPTEDBUD",null,null,null,null,"General Administration (120)","Number of computer problems Addressed","Number of computer problems Addressed",{"$f":"_xlfn.XLOOKUP(Measures_Table[[#This Row],[PM Program]],Programs_Active20[ZSBPPROGM (KEY)],Programs_Active20[LONG TEXT])","v":"General Administration"}]
[489,120,"Y",35,"EACH","OUTCOME","ADOPTEDBUD",null,null,null,null,"Administration-Computer Resources (120)","Number of employees trained","Number of employees trained",{"$f":"_xlfn.XLOOKUP(Measures_Table[[#This Row],[PM Program]],Programs_Active20[ZSBPPROGM (KEY)],Programs_Active20[LONG TEXT])","v":"Administration - Computer Resources"}]
[490,120,"Y",35,"EACH","OUTCOME","ADOPTEDBUD",null,null,null,null,"Administration-Computer Resources (120)","Number of reports designed","Number of reports designed",{"$f":"_xlfn.XLOOKUP(Measures_Table[[#This Row],[PM Program]],Programs_Active20[ZSBPPROGM (KEY)],Programs_Active20[LONG TEXT])","v":"Administration - Computer Resources"}]
[491,120,"Y",35,"EACH","OUTCOME","ADOPTEDBUD",null,null,null,null,"Administration-Computer Resources (120)","Number of reports generated","Number of reports generated",{"$f":"_xlfn.XLOOKUP(Measures_Table[[#This Row],[PM Program]],Programs_Active20[ZSBPPROGM (KEY)],Programs_Active20[LONG TEXT])","v":"Administration - Computer Resources"}]
[492,120,"Y",35,"EACH","OUTCOME","ADOPTEDBUD",null,null,null,null,"Administration-Computer Resources (120)","Criminal background checks run","Criminal background checks run",{"$f":"_xlfn.XLOOKUP(Measures_Table[[#This Row],[PM Program]],Programs_Active20[ZSBPPROGM (KEY)],Programs_Active20[LONG TEXT])","v":"Administration - Computer Resources"}]
[493,120,"Y",35,"EACH","OUTCOME","ADOPTEDBUD",null,null,null,null,"Administration-Computer Resources (120)","Customers assisted by telephone, email a","Customers assisted by telephone, email and in-person",{"$f":"_xlfn.XLOOKUP(Measures_Table[[#This Row],[PM Program]],Programs_Active20[ZSBPPROGM (KEY)],Programs_Active20[LONG TEXT])","v":"Administration - Computer Resources"}]
[494,120,"Y",35,"EACH","OUTCOME","ADOPTEDBUD",null,null,null,null,"Administration-Computer Resources (120)","ENR - Pageviews","ENR - Pageviews",{"$f":"_xlfn.XLOOKUP(Measures_Table[[#This Row],[PM Program]],Programs_Active20[ZSBPPROGM (KEY)],Programs_Active20[LONG TEXT])","v":"Administration - Computer Resources"}]
[495,120,"Y",35,"EACH","OUTCOME","ADOPTEDBUD",null,null,null,null,"Administration-Computer Resources (120)","ENR - Sessions","ENR - Sessions",{"$f":"_xlfn.XLOOKUP(Measures_Table[[#This Row],[PM Program]],Programs_Active20[ZSBPPROGM (KEY)],Programs_Active20[LONG TEXT])","v":"Administration - Computer Resources"}]
[496,120,"Y",35,"EACH","OUTCOME","ADOPTEDBUD",null,null,null,null,"Administration-Computer Resources (120)","ENR - Users","ENR - Users",{"$f":"_xlfn.XLOOKUP(Measures_Table[[#This Row],[PM Program]],Programs_Active20[ZSBPPROGM (KEY)],Programs_Active20[LONG TEXT])","v":"Administration - Computer Resources"}]
[497,120,"Y",35,"EACH","OUTCOME","ADOPTEDBUD",null,null,null,null,"Administration-Computer Resources (120)","Facebook likes","Facebook likes",{"$f":"_xlfn.XLOOKUP(Measures_Table[[#This Row],[PM Program]],Programs_Active20[ZSBPPROGM (KEY)],Programs_Active20[LONG TEXT])","v":"Administration - Computer Resources"}]
[498,120,"Y",35,"EACH","OUTCOME","ADOPTEDBUD",null,null,null,null,"Administration-Computer Resources (120)","Hours spent managing and updating websit","Hours spent managing and updating website",{"$f":"_xlfn.XLOOKUP(Measures_Table[[#This Row],[PM Program]],Programs_Active20[ZSBPPROGM (KEY)],Programs_Active20[LONG TEXT])","v":"Administration - Computer Resources"}]
[499,120,"Y",33,"EACH","OUTPUT","ADOPTEDBUD",null,null,null,null,"General Administration (120)","Hours spent monitoring and preparing bud","Hours spent monitoring and preparing budget information",{"$f":"_xlfn.XLOOKUP(Measures_Table[[#This Row],[PM Program]],Programs_Active20[ZSBPPROGM (KEY)],Programs_Active20[LONG TEXT])","v":"General Administration"}]
[500,120,"Y",35,"EACH","OUTPUT","ADOPTEDBUD",null,null,null,null,"Administration-Computer Resources (120)","Hours spent on social media and photogra","Hours spent on social media and photography",{"$f":"_xlfn.XLOOKUP(Measures_Table[[#This Row],[PM Program]],Programs_Active20[ZSBPPROGM (KEY)],Programs_Active20[LONG TEXT])","v":"Administration - Computer Resources"}]
[504,120,"Y",35,"EACH","EFFICIENCY","ADOPTEDBUD",null,null,null,null,"Administration-Computer Resources (120)","PAFs processed","PAFs processed",{"$f":"_xlfn.XLOOKUP(Measures_Table[[#This Row],[PM Program]],Programs_Active20[ZSBPPROGM (KEY)],Programs_Active20[LONG TEXT])","v":"Administration - Computer Resources"}]
[505,120,"Y",35,"EACH","OUTPUT","ADOPTEDBUD",null,null,null,null,"Administration-Computer Resources (120)","Personnel files maintained","Personnel files maintained",{"$f":"_xlfn.XLOOKUP(Measures_Table[[#This Row],[PM Program]],Programs_Active20[ZSBPPROGM (KEY)],Programs_Active20[LONG TEXT])","v":"Administration - Computer Resources"}]
[506,120,"Y",35,"HOURS","OUTPUT","ADOPTEDBUD",null,null,null,null,"Administration-Computer Resources (120)","Requisitions/line items processed","Requisitions/line items processed",{"$f":"_xlfn.XLOOKUP(Measures_Table[[#This Row],[PM Program]],Programs_Active20[ZSBPPROGM (KEY)],Programs_Active20[LONG TEXT])","v":"Administration - Computer Resources"}]
[507,120,"Y",35,"EACH","OUTPUT","ADOPTEDBUD",null,null,null,null,"Administration-Computer Resources (120)","TCC search (includes web & deed records","TCC search (includes web & deed records searches) - Views",{"$f":"_xlfn.XLOOKUP(Measures_Table[[#This Row],[PM Program]],Programs_Active20[ZSBPPROGM (KEY)],Programs_Active20[LONG TEXT])","v":"Administration - Computer Resources"}]
[509,120,"Y",36,"EACH","OUTPUT","ADOPTEDBUD",null,null,null,null,"Civil/Collections Team (120)","TCC search (includes web & deed records","TCC search (includes web & deed records searches) - Users",{"$f":"_xlfn.XLOOKUP(Measures_Table[[#This Row],[PM Program]],Programs_Active20[ZSBPPROGM (KEY)],Programs_Active20[LONG TEXT])","v":"Civil/Collections Team"}]
[510,120,"Y",36,"EACH","OUTPUT","ADOPTEDBUD",null,null,null,null,"Civil/Collections Team (120)","TravisCountyClerk.org - Pageviews","TravisCountyClerk.org - Pageviews",{"$f":"_xlfn.XLOOKUP(Measures_Table[[#This Row],[PM Program]],Programs_Active20[ZSBPPROGM (KEY)],Programs_Active20[LONG TEXT])","v":"Civil/Collections Team"}]
[511,120,"Y",36,"DAYS","EFFICIENCY","ADOPTEDBUD",null,null,null,null,"Civil/Collections Team (120)","TravisCountyClerk.org - Sessions","TravisCountyClerk.org - Sessions",{"$f":"_xlfn.XLOOKUP(Measures_Table[[#This Row],[PM Program]],Programs_Active20[ZSBPPROGM (KEY)],Programs_Active20[LONG TEXT])","v":"Civil/Collections Team"}]
[512,120,"Y",36,"DAYS","EFFICIENCY","ADOPTEDBUD",null,null,null,null,"Civil/Collections Team (120)","TravisCountyClerk.org - Users","TravisCountyClerk.org - Users",{"$f":"_xlfn.XLOOKUP(Measures_Table[[#This Row],[PM Program]],Programs_Active20[ZSBPPROGM (KEY)],Programs_Active20[LONG TEXT])","v":"Civil/Collections Team"}]
[513,120,"Y",36,"DAYS","EFFICIENCY","ADOPTEDBUD",null,null,null,null,"Civil/Collections Team (120)","Twitter Followers","Twitter Followers",{"$f":"_xlfn.XLOOKUP(Measures_Table[[#This Row],[PM Program]],Programs_Active20[ZSBPPROGM (KEY)],Programs_Active20[LONG TEXT])","v":"Civil/Collections Team"}]
[514,120,"Y",36,"EACH","OUTPUT","ADOPTEDBUD",null,null,null,null,"Civil/Collections Team (120)","VoteTravis.com - Pageviews","VoteTravis.com - Pageviews",{"$f":"_xlfn.XLOOKUP(Measures_Table[[#This Row],[PM Program]],Programs_Active20[ZSBPPROGM (KEY)],Programs_Active20[LONG TEXT])","v":"Civil/Collections Team"}]
[515,120,"Y",36,"EACH","OUTPUT","ADOPTEDBUD",null,null,null,null,"Civil/Collections Team (120)","VoteTravis.com - Sessions","VoteTravis.com - Sessions",{"$f":"_xlfn.XLOOKUP(Measures_Table[[#This Row],[PM Program]],Programs_Active20[ZSBPPROGM (KEY)],Programs_Active20[LONG TEXT])","v":"Civil/Collections Team"}]
[516,120,"Y",36,"EACH","OUTPUT","ADOPTEDBUD",null,null,null,null,"Civil/Collections Team (120)","VoteTravis.com - Users","VoteTravis.com - Users",{"$f":"_xlfn.XLOOKUP(Measures_Table[[#This Row],[PM Program]],Programs_Active20[ZSBPPROGM (KEY)],Programs_Active20[LONG TEXT])","v":"Civil/Collections Team"}]
[517,120,"Y",36,"EACH","OUTPUT","ADOPTEDBUD",null,null,null,null,"Civil/Collections Team (120)","Work order requests made to ITS or Facil","Work order requests made to ITS or Facilities Management",{"$f":"_xlfn.XLOOKUP(Measures_Table[[#This Row],[PM Program]],Programs_Active20[ZSBPPROGM (KEY)],Programs_Active20[LONG TEXT])","v":"Civil/Collections Team"}]
[518,120,"Y",36,"DAYS","OUTCOME","ADOPTEDBUD",null,null,null,null,"Civil/Collections Team (120)","Number of backups","Number of backups",{"$f":"_xlfn.XLOOKUP(Measures_Table[[#This Row],[PM Program]],Programs_Active20[ZSBPPROGM (KEY)],Programs_Active20[LONG TEXT])","v":"Civil/Collections Team"}]
[519,120,"Y",36,"EACH","INPUT","ADOPTEDBUD",null,null,null,null,"Civil/Collections Team (120)","Number of Netware & NT objects maintain","Number of Netware and NT objects maintained",{"$f":"_xlfn.XLOOKUP(Measures_Table[[#This Row],[PM Program]],Programs_Active20[ZSBPPROGM (KEY)],Programs_Active20[LONG TEXT])","v":"Civil/Collections Team"}]
[520,120,"Y",36,"EACH","OUTPUT","ADOPTEDBUD",null,null,null,null,"Civil/Collections Team (120)","Number of server accounts","Number of server accounts",{"$f":"_xlfn.XLOOKUP(Measures_Table[[#This Row],[PM Program]],Programs_Active20[ZSBPPROGM (KEY)],Programs_Active20[LONG TEXT])","v":"Civil/Collections Team"}]
[521,120,"Y",36,"EACH","OUTPUT","ADOPTEDBUD",null,null,null,null,"Civil/Collections Team (120)","Number of servers","Number of servers",{"$f":"_xlfn.XLOOKUP(Measures_Table[[#This Row],[PM Program]],Programs_Active20[ZSBPPROGM (KEY)],Programs_Active20[LONG TEXT])","v":"Civil/Collections Team"}]
[522,120,"Y",36,"EACH","OUTPUT","ADOPTEDBUD",null,null,null,null,"Civil/Collections Team (120)","Number of system implementations/ upgrad","Number of system implementations/ upgrades",{"$f":"_xlfn.XLOOKUP(Measures_Table[[#This Row],[PM Program]],Programs_Active20[ZSBPPROGM (KEY)],Programs_Active20[LONG TEXT])","v":"Civil/Collections Team"}]
[523,120,"Y",36,"EACH","INPUT","ADOPTEDBUD",null,null,null,null,"Civil/Collections Team (120)","Number of web pages and updates","Number of web pages and updates",{"$f":"_xlfn.XLOOKUP(Measures_Table[[#This Row],[PM Program]],Programs_Active20[ZSBPPROGM (KEY)],Programs_Active20[LONG TEXT])","v":"Civil/Collections Team"}]
[524,120,"Y",36,"EACH","OUTPUT","ADOPTEDBUD",null,null,null,null,"Civil/Collections Team (120)","Person hours devoted to computer managem","Person hours devoted to computer management activities",{"$f":"_xlfn.XLOOKUP(Measures_Table[[#This Row],[PM Program]],Programs_Active20[ZSBPPROGM (KEY)],Programs_Active20[LONG TEXT])","v":"Civil/Collections Team"}]
[525,120,"Y",36,"EACH","OUTPUT","ADOPTEDBUD",null,null,null,null,"Civil/Collections Team (120)","Number of active projects","Number of active projects",{"$f":"_xlfn.XLOOKUP(Measures_Table[[#This Row],[PM Program]],Programs_Active20[ZSBPPROGM (KEY)],Programs_Active20[LONG TEXT])","v":"Civil/Collections Team"}]
[526,120,"Y",36,"EACH","OUTPUT","ADOPTEDBUD",null,null,null,null,"Civil/Collections Team (120)","Number of special projects in progress d","Number of special projects in progress during year",{"$f":"_xlfn.XLOOKUP(Measures_Table[[#This Row],[PM Program]],Programs_Active20[ZSBPPROGM (KEY)],Programs_Active20[LONG TEXT])","v":"Civil/Collections Team"}]
[527,120,"Y",39,"DAYS","OUTCOME","ADOPTEDBUD",null,null,null,null,"Probate/Mental Health/Comm Court (120)","Abstracts","Abstracts",{"$f":"_xlfn.XLOOKUP(Measures_Table[[#This Row],[PM Program]],Programs_Active20[ZSBPPROGM (KEY)],Programs_Active20[LONG TEXT])","v":"Probate/Mental Health/Comm Court\n"}]
[528,120,"Y",39,"EACH","OUTPUT","ADOPTEDBUD",null,null,null,null,"Probate/Mental Health/Comm Court (120)","Appeals","Appeals",{"$f":"_xlfn.XLOOKUP(Measures_Table[[#This Row],[PM Program]],Programs_Active20[ZSBPPROGM (KEY)],Programs_Active20[LONG TEXT])","v":"Probate/Mental Health/Comm Court\n"}]
[529,120,"Y",39,"EACH","OUTPUT","ADOPTEDBUD",null,null,null,null,"Probate/Mental Health/Comm Court (120)","Average Number of Day to Process Abstrac","Average Number of Day to Process Abstracts of Judgment",{"$f":"_xlfn.XLOOKUP(Measures_Table[[#This Row],[PM Program]],Programs_Active20[ZSBPPROGM (KEY)],Programs_Active20[LONG TEXT])","v":"Probate/Mental Health/Comm Court\n"}]
[530,120,"Y",39,"EACH","OUTPUT","ADOPTEDBUD",null,null,null,null,"Probate/Mental Health/Comm Court (120)","Average Number of Days to Process Citati","Average Number of Days to Process Citations",{"$f":"_xlfn.XLOOKUP(Measures_Table[[#This Row],[PM Program]],Programs_Active20[ZSBPPROGM (KEY)],Programs_Active20[LONG TEXT])","v":"Probate/Mental Health/Comm Court\n"}]
[531,120,"Y",39,"EACH","OUTPUT","ADOPTEDBUD",null,null,null,null,"Probate/Mental Health/Comm Court (120)","Average Number of Days to Process Writs","Average Number of Days to Process Writs of Execution",{"$f":"_xlfn.XLOOKUP(Measures_Table[[#This Row],[PM Program]],Programs_Active20[ZSBPPROGM (KEY)],Programs_Active20[LONG TEXT])","v":"Probate/Mental Health/Comm Court\n"}]
[532,120,"Y",39,"EACH","OUTPUT","ADOPTEDBUD",null,null,null,null,"Probate/Mental Health/Comm Court (120)","Civil Citations Issued","Civil Citations Issued",{"$f":"_xlfn.XLOOKUP(Measures_Table[[#This Row],[PM Program]],Programs_Active20[ZSBPPROGM (KEY)],Programs_Active20[LONG TEXT])","v":"Probate/Mental Health/Comm Court\n"}]
[533,120,"Y",39,"HOURS","EFFICIENCY","ADOPTEDBUD",null,null,null,null,"Probate/Mental Health/Comm Court (120)","Civil Customer Service Email Requests","Civil Customer Service Email Requests",{"$f":"_xlfn.XLOOKUP(Measures_Table[[#This Row],[PM Program]],Programs_Active20[ZSBPPROGM (KEY)],Programs_Active20[LONG TEXT])","v":"Probate/Mental Health/Comm Court\n"}]
[534,120,"Y",39,"HOURS","OUTPUT","ADOPTEDBUD",null,null,null,null,"Probate/Mental Health/Comm Court (120)","Civil Customer Service In-Person","Civil Customer Service In-Person",{"$f":"_xlfn.XLOOKUP(Measures_Table[[#This Row],[PM Program]],Programs_Active20[ZSBPPROGM (KEY)],Programs_Active20[LONG TEXT])","v":"Probate/Mental Health/Comm Court\n"}]
[535,120,"Y",39,"HOURS","OUTPUT","ADOPTEDBUD",null,null,null,null,"Probate/Mental Health/Comm Court (120)","Civil Customer Service Phone","Civil Customer Service Phone",{"$f":"_xlfn.XLOOKUP(Measures_Table[[#This Row],[PM Program]],Programs_Active20[ZSBPPROGM (KEY)],Programs_Active20[LONG TEXT])","v":"Probate/Mental Health/Comm Court\n"}]
[536,120,"Y",39,"EACH","OUTPUT","ADOPTEDBUD",null,null,null,null,"Probate/Mental Health/Comm Court (120)","Difference b/w Document File Date and Do","Difference b/w Document File Date and Document Entry Date",{"$f":"_xlfn.XLOOKUP(Measures_Table[[#This Row],[PM Program]],Programs_Active20[ZSBPPROGM (KEY)],Programs_Active20[LONG TEXT])","v":"Probate/Mental Health/Comm Court\n"}]
[537,120,"Y",39,"EACH","OUTPUT","ADOPTEDBUD",null,null,null,null,"Probate/Mental Health/Comm Court (120)","Documents Scanned and Indexed","Documents Scanned and Indexed",{"$f":"_xlfn.XLOOKUP(Measures_Table[[#This Row],[PM Program]],Programs_Active20[ZSBPPROGM (KEY)],Programs_Active20[LONG TEXT])","v":"Probate/Mental Health/Comm Court\n"}]
[538,120,"Y",39,"EACH","INPUT","ADOPTEDBUD",null,null,null,null,"Probate/Mental Health/Comm Court (120)","Executions","Executions",{"$f":"_xlfn.XLOOKUP(Measures_Table[[#This Row],[PM Program]],Programs_Active20[ZSBPPROGM (KEY)],Programs_Active20[LONG TEXT])","v":"Probate/Mental Health/Comm Court\n"}]
[540,120,"Y",37,"EACH","OUTPUT","ADOPTEDBUD",null,null,null,null,"Elections Division (120)","Judgments","Judgments",{"$f":"_xlfn.XLOOKUP(Measures_Table[[#This Row],[PM Program]],Programs_Active20[ZSBPPROGM (KEY)],Programs_Active20[LONG TEXT])","v":"Elections Division"}]
[542,120,"Y",37,"EACH","INPUT","ADOPTEDBUD",null,null,null,null,"Elections Division (120)","Notings","Notings",{"$f":"_xlfn.XLOOKUP(Measures_Table[[#This Row],[PM Program]],Programs_Active20[ZSBPPROGM (KEY)],Programs_Active20[LONG TEXT])","v":"Elections Division"}]
[544,120,"Y",37,"EACH","INPUT","ADOPTEDBUD",null,null,null,null,"Elections Division (120)","Subpoenas","Subpoenas",{"$f":"_xlfn.XLOOKUP(Measures_Table[[#This Row],[PM Program]],Programs_Active20[ZSBPPROGM (KEY)],Programs_Active20[LONG TEXT])","v":"Elections Division"}]
[546,120,"Y",37,"HOURS","OUTPUT","ADOPTEDBUD",null,null,null,null,"Elections Division (120)","Comm Ct Customer Service Phone","Comm Ct Customer Service Phone",{"$f":"_xlfn.XLOOKUP(Measures_Table[[#This Row],[PM Program]],Programs_Active20[ZSBPPROGM (KEY)],Programs_Active20[LONG TEXT])","v":"Elections Division"}]
[548,120,"Y",37,"HOURS","OUTPUT","ADOPTEDBUD",null,null,null,null,"Elections Division (120)","Comm Ct Customer Service In-Person","Comm Ct Customer Service In-Person",{"$f":"_xlfn.XLOOKUP(Measures_Table[[#This Row],[PM Program]],Programs_Active20[ZSBPPROGM (KEY)],Programs_Active20[LONG TEXT])","v":"Elections Division"}]
[549,120,"Y",37,"HOURS","OUTPUT","ADOPTEDBUD",null,null,null,null,"Elections Division (120)","Documents Scanned and Indexed","Documents Scanned and Indexed",{"$f":"_xlfn.XLOOKUP(Measures_Table[[#This Row],[PM Program]],Programs_Active20[ZSBPPROGM (KEY)],Programs_Active20[LONG TEXT])","v":"Elections Division"}]
[550,120,"Y",37,"HOURS","OUTPUT","ADOPTEDBUD",null,null,null,null,"Elections Division (120)","Comm Ct General Search Requests","Comm Ct General Search Requests",{"$f":"_xlfn.XLOOKUP(Measures_Table[[#This Row],[PM Program]],Programs_Active20[ZSBPPROGM (KEY)],Programs_Active20[LONG TEXT])","v":"Elections Division"}]
[551,120,"Y",37,"DAYS","INPUT","ADOPTEDBUD",null,null,null,null,"Elections Division (120)","Hours Spent Filling Comm Ct Requests","Hours Spent Filling Comm Ct Requests",{"$f":"_xlfn.XLOOKUP(Measures_Table[[#This Row],[PM Program]],Programs_Active20[ZSBPPROGM (KEY)],Programs_Active20[LONG TEXT])","v":"Elections Division"}]
[552,120,"Y",37,"EACH","OUTCOME","ADOPTEDBUD",null,null,null,null,"Elections Division (120)","Hours Spent in Comm Ct","Hours Spent in Comm Ct",{"$f":"_xlfn.XLOOKUP(Measures_Table[[#This Row],[PM Program]],Programs_Active20[ZSBPPROGM (KEY)],Programs_Active20[LONG TEXT])","v":"Elections Division"}]
[553,120,"Y",37,"EACH","OUTPUT","ADOPTEDBUD",null,null,null,null,"Elections Division (120)","Hours Spent Preparing Minutes","Hours Spent Preparing Minutes",{"$f":"_xlfn.XLOOKUP(Measures_Table[[#This Row],[PM Program]],Programs_Active20[ZSBPPROGM (KEY)],Programs_Active20[LONG TEXT])","v":"Elections Division"}]
[554,120,"Y",37,"EACH","OUTPUT","ADOPTEDBUD",null,null,null,null,"Elections Division (120)","Meeting Notices Posted","Meeting Notices Posted",{"$f":"_xlfn.XLOOKUP(Measures_Table[[#This Row],[PM Program]],Programs_Active20[ZSBPPROGM (KEY)],Programs_Active20[LONG TEXT])","v":"Elections Division"}]
[555,120,"Y",37,"EACH","OUTPUT","ADOPTEDBUD",null,null,null,null,"Elections Division (120)","Mtgs Attended (incl Reg Voting, Budget,","Mtgs Attended (incl Reg Voting, Budget, & Road District)",{"$f":"_xlfn.XLOOKUP(Measures_Table[[#This Row],[PM Program]],Programs_Active20[ZSBPPROGM (KEY)],Programs_Active20[LONG TEXT])","v":"Elections Division"}]
[556,120,"Y",37,"EACH","OUTPUT","ADOPTEDBUD",null,null,null,null,"Elections Division (120)","Requests Received","Requests Received",{"$f":"_xlfn.XLOOKUP(Measures_Table[[#This Row],[PM Program]],Programs_Active20[ZSBPPROGM (KEY)],Programs_Active20[LONG TEXT])","v":"Elections Division"}]
[557,120,"Y",37,"EACH","OUTPUT","ADOPTEDBUD",null,null,null,null,"Elections Division (120)","Annual ABBMS received","Annual ABBMS received",{"$f":"_xlfn.XLOOKUP(Measures_Table[[#This Row],[PM Program]],Programs_Active20[ZSBPPROGM (KEY)],Programs_Active20[LONG TEXT])","v":"Elections Division"}]
[558,120,"Y",37,"EACH","OUTPUT","ADOPTEDBUD",null,null,null,null,"Elections Division (120)","# of Mail apps received and processed","# of Mail apps received and processed",{"$f":"_xlfn.XLOOKUP(Measures_Table[[#This Row],[PM Program]],Programs_Active20[ZSBPPROGM (KEY)],Programs_Active20[LONG TEXT])","v":"Elections Division"}]
[560,120,"Y",37,"EACH","OUTPUT","ADOPTEDBUD",null,null,null,null,"Elections Division (120)","# of Mail ballots received and processed","# of Mail ballots received and processed",{"$f":"_xlfn.XLOOKUP(Measures_Table[[#This Row],[PM Program]],Programs_Active20[ZSBPPROGM (KEY)],Programs_Active20[LONG TEXT])","v":"Elections Division"}]
[561,120,"Y",37,"EACH","OUTPUT","ADOPTEDBUD",null,null,null,null,"Elections Division (120)","FPCAs eligible for Email ballots","FPCAs eligible for Email ballots",{"$f":"_xlfn.XLOOKUP(Measures_Table[[#This Row],[PM Program]],Programs_Active20[ZSBPPROGM (KEY)],Programs_Active20[LONG TEXT])","v":"Elections Division"}]
[562,120,"Y",37,"HOURS","OUTCOME","ADOPTEDBUD",null,null,null,null,"Elections Division (120)","# of FPCA apps received and processed","# of FPCA apps received and processed",{"$f":"_xlfn.XLOOKUP(Measures_Table[[#This Row],[PM Program]],Programs_Active20[ZSBPPROGM (KEY)],Programs_Active20[LONG TEXT])","v":"Elections Division"}]
[563,120,"Y",37,"HOURS","OUTPUT","ADOPTEDBUD",null,null,null,null,"Elections Division (120)","Number of FPCA Email Ballots","Number of FPCA Email Ballots",{"$f":"_xlfn.XLOOKUP(Measures_Table[[#This Row],[PM Program]],Programs_Active20[ZSBPPROGM (KEY)],Programs_Active20[LONG TEXT])","v":"Elections Division"}]
[564,120,"Y",37,"HOURS","OUTPUT","ADOPTEDBUD",null,null,null,null,"Elections Division (120)","# of FPCA ballots mailed, received and p","# of FPCA ballots mailed, received and processed",{"$f":"_xlfn.XLOOKUP(Measures_Table[[#This Row],[PM Program]],Programs_Active20[ZSBPPROGM (KEY)],Programs_Active20[LONG TEXT])","v":"Elections Division"}]
[566,120,"Y",37,"HOURS","OUTPUT","ADOPTEDBUD",null,null,null,null,"Elections Division (120)","# of hrs spent preparing statistical rep","# of hrs spent preparing statistical reports reqd by statute or public request",{"$f":"_xlfn.XLOOKUP(Measures_Table[[#This Row],[PM Program]],Programs_Active20[ZSBPPROGM (KEY)],Programs_Active20[LONG TEXT])","v":"Elections Division"}]
[567,120,"Y",37,"EACH","OUTPUT","ADOPTEDBUD",null,null,null,null,"Elections Division (120)","# of hrs spent preparing training materi","# of hrs spent preparing training materials",{"$f":"_xlfn.XLOOKUP(Measures_Table[[#This Row],[PM Program]],Programs_Active20[ZSBPPROGM (KEY)],Programs_Active20[LONG TEXT])","v":"Elections Division"}]
[568,120,"Y",37,"EACH","INPUT","ADOPTEDBUD",null,null,null,null,"Elections Division (120)","# of hrs spent preparing voting material","# of hrs spent preparing voting materials",{"$f":"_xlfn.XLOOKUP(Measures_Table[[#This Row],[PM Program]],Programs_Active20[ZSBPPROGM (KEY)],Programs_Active20[LONG TEXT])","v":"Elections Division"}]
[569,120,"Y",37,"EACH","INPUT","ADOPTEDBUD",null,null,null,null,"Elections Division (120)","Days in the Early Voting in Person perio","Days in the Early Voting in Person period",{"$f":"_xlfn.XLOOKUP(Measures_Table[[#This Row],[PM Program]],Programs_Active20[ZSBPPROGM (KEY)],Programs_Active20[LONG TEXT])","v":"Elections Division"}]
[570,120,"Y",37,"EACH","INPUT","ADOPTEDBUD",null,null,null,null,"Elections Division (120)","Early Voting in Person offered to voters","Early Voting in Person offered to voters",{"$f":"_xlfn.XLOOKUP(Measures_Table[[#This Row],[PM Program]],Programs_Active20[ZSBPPROGM (KEY)],Programs_Active20[LONG TEXT])","v":"Elections Division"}]
[571,120,"Y",37,"EACH","OUTCOME","ADOPTEDBUD",null,null,null,null,"Elections Division (120)","# of EV workers trained","# of EV workers trained",{"$f":"_xlfn.XLOOKUP(Measures_Table[[#This Row],[PM Program]],Programs_Active20[ZSBPPROGM (KEY)],Programs_Active20[LONG TEXT])","v":"Elections Division"}]
[572,120,"Y",37,"EACH","OUTCOME","ADOPTEDBUD",null,null,null,null,"Elections Division (120)","# of EV location  (permanent)","# of EV location  (permanent)",{"$f":"_xlfn.XLOOKUP(Measures_Table[[#This Row],[PM Program]],Programs_Active20[ZSBPPROGM (KEY)],Programs_Active20[LONG TEXT])","v":"Elections Division"}]
[573,120,"Y",37,"HOURS","OUTPUT","ADOPTEDBUD",null,null,null,null,"Elections Division (120)","# of EV location ( mobile)","# of EV location ( mobile)",{"$f":"_xlfn.XLOOKUP(Measures_Table[[#This Row],[PM Program]],Programs_Active20[ZSBPPROGM (KEY)],Programs_Active20[LONG TEXT])","v":"Elections Division"}]
[574,120,"Y",37,"HOURS","OUTPUT","ADOPTEDBUD",null,null,null,null,"Elections Division (120)","# of ED poll workers  recruited, assigne","# of ED poll workers  recruited, assigned and confirmed",{"$f":"_xlfn.XLOOKUP(Measures_Table[[#This Row],[PM Program]],Programs_Active20[ZSBPPROGM (KEY)],Programs_Active20[LONG TEXT])","v":"Elections Division"}]
[575,120,"Y",37,"HOURS","OUTPUT","ADOPTEDBUD",null,null,null,null,"Elections Division (120)","# of hrs spent to Identify, contract and","# of hrs spent to Identify, contract and confirm availability with EV and ED sites.",{"$f":"_xlfn.XLOOKUP(Measures_Table[[#This Row],[PM Program]],Programs_Active20[ZSBPPROGM (KEY)],Programs_Active20[LONG TEXT])","v":"Elections Division"}]
[576,120,"Y",37,"HOURS","OUTPUT","ADOPTEDBUD",null,null,null,null,"Elections Division (120)","# of ED vote centers","# of ED vote centers",{"$f":"_xlfn.XLOOKUP(Measures_Table[[#This Row],[PM Program]],Programs_Active20[ZSBPPROGM (KEY)],Programs_Active20[LONG TEXT])","v":"Elections Division"}]
[577,120,"Y",37,"HOURS","OUTPUT","ADOPTEDBUD",null,null,null,null,"Elections Division (120)","EJ/AJ confirmed for appointment","EJ/AJ confirmed for appointment",{"$f":"_xlfn.XLOOKUP(Measures_Table[[#This Row],[PM Program]],Programs_Active20[ZSBPPROGM (KEY)],Programs_Active20[LONG TEXT])","v":"Elections Division"}]
[578,120,"Y",37,"HOURS","OUTPUT","ADOPTEDBUD",null,null,null,null,"Elections Division (120)","# of EV poll workers  recruited, assigne","# of EV poll workers  recruited, assigned and confirmed",{"$f":"_xlfn.XLOOKUP(Measures_Table[[#This Row],[PM Program]],Programs_Active20[ZSBPPROGM (KEY)],Programs_Active20[LONG TEXT])","v":"Elections Division"}]
[579,120,"Y",37,"EACH","OUTPUT","ADOPTEDBUD",null,null,null,null,"Elections Division (120)","# of ED workers trained","# of ED workers trained",{"$f":"_xlfn.XLOOKUP(Measures_Table[[#This Row],[PM Program]],Programs_Active20[ZSBPPROGM (KEY)],Programs_Active20[LONG TEXT])","v":"Elections Division"}]
[580,120,"Y",37,"EACH","OUTPUT","ADOPTEDBUD",null,null,null,null,"Elections Division (120)","# of hrs between polls closing and relea","# of hrs between polls closing and release of results (average)",{"$f":"_xlfn.XLOOKUP(Measures_Table[[#This Row],[PM Program]],Programs_Active20[ZSBPPROGM (KEY)],Programs_Active20[LONG TEXT])","v":"Elections Division"}]
[582,120,"Y",37,"EACH","OUTPUT","ADOPTEDBUD",null,null,null,null,"Elections Division (120)","# of hrs spent prep ED voting materials","# of hrs spent prep ED voting materials",{"$f":"_xlfn.XLOOKUP(Measures_Table[[#This Row],[PM Program]],Programs_Active20[ZSBPPROGM (KEY)],Programs_Active20[LONG TEXT])","v":"Elections Division"}]
[583,120,"Y",37,"EACH","OUTPUT","ADOPTEDBUD",null,null,null,null,"Elections Division (120)","Hours pollworkers process early voting","Hours pollworkers process early voting",{"$f":"_xlfn.XLOOKUP(Measures_Table[[#This Row],[PM Program]],Programs_Active20[ZSBPPROGM (KEY)],Programs_Active20[LONG TEXT])","v":"Elections Division"}]
[584,120,"Y",37,"EACH","OUTPUT","ADOPTEDBUD",null,null,null,null,"Elections Division (120)","Hrs. inspect and prepare, deliver & pick","Hrs. inspect and prepare, deliver & pick up equip & materials",{"$f":"_xlfn.XLOOKUP(Measures_Table[[#This Row],[PM Program]],Programs_Active20[ZSBPPROGM (KEY)],Programs_Active20[LONG TEXT])","v":"Elections Division"}]
[585,120,"Y",37,"EACH","OUTPUT","ADOPTEDBUD",null,null,null,null,"Elections Division (120)","# of EV voters","# of EV voters",{"$f":"_xlfn.XLOOKUP(Measures_Table[[#This Row],[PM Program]],Programs_Active20[ZSBPPROGM (KEY)],Programs_Active20[LONG TEXT])","v":"Elections Division"}]
[586,120,"Y",37,"EACH","OUTPUT","ADOPTEDBUD",null,null,null,null,"Elections Division (120)","# of precincts in Travis county","# of precincts in Travis county",{"$f":"_xlfn.XLOOKUP(Measures_Table[[#This Row],[PM Program]],Programs_Active20[ZSBPPROGM (KEY)],Programs_Active20[LONG TEXT])","v":"Elections Division"}]
[588,120,"Y",37,"HOURS","OUTPUT","ADOPTEDBUD",null,null,null,null,"Elections Division (120)","# of Reg voters in Travis County","# of Reg voters in Travis County",{"$f":"_xlfn.XLOOKUP(Measures_Table[[#This Row],[PM Program]],Programs_Active20[ZSBPPROGM (KEY)],Programs_Active20[LONG TEXT])","v":"Elections Division"}]
[589,120,"Y",37,"HOURS","OUTPUT","ADOPTEDBUD",null,null,null,null,"Elections Division (120)","# of total Ballots processed","# of total Ballots processed",{"$f":"_xlfn.XLOOKUP(Measures_Table[[#This Row],[PM Program]],Programs_Active20[ZSBPPROGM (KEY)],Programs_Active20[LONG TEXT])","v":"Elections Division"}]
[590,120,"Y",37,"EACH","OUTPUT","ADOPTEDBUD",null,null,null,null,"Elections Division (120)","# of ED voters","# of ED voters",{"$f":"_xlfn.XLOOKUP(Measures_Table[[#This Row],[PM Program]],Programs_Active20[ZSBPPROGM (KEY)],Programs_Active20[LONG TEXT])","v":"Elections Division"}]
[591,120,"Y",37,"EACH","OUTPUT","ADOPTEDBUD",null,null,null,null,"Elections Division (120)","# of hrs spent in developing election da","# of hrs spent in developing election database including ballot programing",{"$f":"_xlfn.XLOOKUP(Measures_Table[[#This Row],[PM Program]],Programs_Active20[ZSBPPROGM (KEY)],Programs_Active20[LONG TEXT])","v":"Elections Division"}]
[592,120,"Y",37,"EACH","OUTPUT","ADOPTEDBUD",null,null,null,null,"Elections Division (120)","# of hrs spent on EV/EDAY Parallel Testi","# of hrs spent on EV/EDAY Parallel Testing",{"$f":"_xlfn.XLOOKUP(Measures_Table[[#This Row],[PM Program]],Programs_Active20[ZSBPPROGM (KEY)],Programs_Active20[LONG TEXT])","v":"Elections Division"}]
[593,120,"Y",37,"EACH","OUTCOME","ADOPTEDBUD",null,null,null,null,"Elections Division (120)","# of hrs to configure, troubleshoot and","# of hrs to configure, troubleshoot and maintain voting equipment",{"$f":"_xlfn.XLOOKUP(Measures_Table[[#This Row],[PM Program]],Programs_Active20[ZSBPPROGM (KEY)],Programs_Active20[LONG TEXT])","v":"Elections Division"}]
[594,120,"Y",37,"EACH","OUTCOME","ADOPTEDBUD",null,null,null,null,"Elections Division (120)","# of hrs spent on EV and ED vote history","# of hrs spent on EV and ED vote history verification",{"$f":"_xlfn.XLOOKUP(Measures_Table[[#This Row],[PM Program]],Programs_Active20[ZSBPPROGM (KEY)],Programs_Active20[LONG TEXT])","v":"Elections Division"}]
[595,120,"Y",37,"EACH","OUTCOME","ADOPTEDBUD",null,null,null,null,"Elections Division (120)","# of hrs spent with EV/EDAY Laptop prep","# of hrs spent with EV/EDAY Laptop prep",{"$f":"_xlfn.XLOOKUP(Measures_Table[[#This Row],[PM Program]],Programs_Active20[ZSBPPROGM (KEY)],Programs_Active20[LONG TEXT])","v":"Elections Division"}]
[596,120,"Y",38,"EACH","INPUT","ADOPTEDBUD",null,null,null,null,"Misdemeanor Records Division (120)","# hrs spent devoted to voter education","# hrs spent devoted to voter education",{"$f":"_xlfn.XLOOKUP(Measures_Table[[#This Row],[PM Program]],Programs_Active20[ZSBPPROGM (KEY)],Programs_Active20[LONG TEXT])","v":"Misdemeanor Records Division"}]
[597,120,"Y",38,"EACH","OUTPUT","ADOPTEDBUD",null,null,null,null,"Misdemeanor Records Division (120)","# of C&E reports received and processed","# of C&E reports received and processed",{"$f":"_xlfn.XLOOKUP(Measures_Table[[#This Row],[PM Program]],Programs_Active20[ZSBPPROGM (KEY)],Programs_Active20[LONG TEXT])","v":"Misdemeanor Records Division"}]
[598,120,"Y",38,"EACH","OUTPUT","ADOPTEDBUD",null,null,null,null,"Misdemeanor Records Division (120)","# of EV and ED calls","# of EV and ED calls",{"$f":"_xlfn.XLOOKUP(Measures_Table[[#This Row],[PM Program]],Programs_Active20[ZSBPPROGM (KEY)],Programs_Active20[LONG TEXT])","v":"Misdemeanor Records Division"}]
[599,120,"Y",38,"EACH","OUTPUT","ADOPTEDBUD",null,null,null,null,"Misdemeanor Records Division (120)","# of campaign finance reports on the Int","# of campaign finance reports on the Internet",{"$f":"_xlfn.XLOOKUP(Measures_Table[[#This Row],[PM Program]],Programs_Active20[ZSBPPROGM (KEY)],Programs_Active20[LONG TEXT])","v":"Misdemeanor Records Division"}]
[600,120,"Y",38,"EACH","OUTPUT","ADOPTEDBUD",null,null,null,null,"Misdemeanor Records Division (120)","# of customer assisted","# of customer assisted",{"$f":"_xlfn.XLOOKUP(Measures_Table[[#This Row],[PM Program]],Programs_Active20[ZSBPPROGM (KEY)],Programs_Active20[LONG TEXT])","v":"Misdemeanor Records Division"}]
[601,120,"Y",38,"EACH","OUTPUT","ADOPTEDBUD",null,null,null,null,"Misdemeanor Records Division (120)","# of financial statements processed and","# of financial statements processed and published",{"$f":"_xlfn.XLOOKUP(Measures_Table[[#This Row],[PM Program]],Programs_Active20[ZSBPPROGM (KEY)],Programs_Active20[LONG TEXT])","v":"Misdemeanor Records Division"}]
[602,120,"Y",38,"EACH","OUTPUT","ADOPTEDBUD",null,null,null,null,"Misdemeanor Records Division (120)","# of Annual calls excluding EV/ED","# of Annual calls excluding EV/ED",{"$f":"_xlfn.XLOOKUP(Measures_Table[[#This Row],[PM Program]],Programs_Active20[ZSBPPROGM (KEY)],Programs_Active20[LONG TEXT])","v":"Misdemeanor Records Division"}]
[603,120,"Y",38,"EACH","OUTPUT","ADOPTEDBUD",null,null,null,null,"Misdemeanor Records Division (120)","# of PAFs submitted","# of PAFs submitted",{"$f":"_xlfn.XLOOKUP(Measures_Table[[#This Row],[PM Program]],Programs_Active20[ZSBPPROGM (KEY)],Programs_Active20[LONG TEXT])","v":"Misdemeanor Records Division"}]
[604,120,"Y",38,"EACH","OUTPUT","ADOPTEDBUD",null,null,null,null,"Misdemeanor Records Division (120)","# of timesheets submitted and paychecks","# of timesheets submitted and paychecks processed",{"$f":"_xlfn.XLOOKUP(Measures_Table[[#This Row],[PM Program]],Programs_Active20[ZSBPPROGM (KEY)],Programs_Active20[LONG TEXT])","v":"Misdemeanor Records Division"}]
[605,120,"Y",38,"EACH","OUTPUT","ADOPTEDBUD",null,null,null,null,"Misdemeanor Records Division (120)","# of hrs spent monitoring technical issu","# of hrs spent monitoring technical issues",{"$f":"_xlfn.XLOOKUP(Measures_Table[[#This Row],[PM Program]],Programs_Active20[ZSBPPROGM (KEY)],Programs_Active20[LONG TEXT])","v":"Misdemeanor Records Division"}]
[606,120,"Y",38,"EACH","OUTPUT","ADOPTEDBUD",null,null,null,null,"Misdemeanor Records Division (120)","# of hrs spent, monitoring and troublesh","# of hrs spent, monitoring and troubleshooting laptops during Early Voting",{"$f":"_xlfn.XLOOKUP(Measures_Table[[#This Row],[PM Program]],Programs_Active20[ZSBPPROGM (KEY)],Programs_Active20[LONG TEXT])","v":"Misdemeanor Records Division"}]
[607,120,"Y",38,"EACH","OUTPUT","ADOPTEDBUD",null,null,null,null,"Misdemeanor Records Division (120)","# of hrs spent monitoring and  troublesh","# of hrs spent monitoring and  troubleshooting laptops on Election Day",{"$f":"_xlfn.XLOOKUP(Measures_Table[[#This Row],[PM Program]],Programs_Active20[ZSBPPROGM (KEY)],Programs_Active20[LONG TEXT])","v":"Misdemeanor Records Division"}]
[613,120,"Y",38,"EACH","OUTPUT","ADOPTEDBUD",null,null,null,null,"Misdemeanor Records Division (120)","Recounts conducted/ facilitated","Recounts conducted/ facilitated",{"$f":"_xlfn.XLOOKUP(Measures_Table[[#This Row],[PM Program]],Programs_Active20[ZSBPPROGM (KEY)],Programs_Active20[LONG TEXT])","v":"Misdemeanor Records Division"}]
[615,120,"Y",38,"EACH","OUTPUT","ADOPTEDBUD",null,null,null,null,"Misdemeanor Records Division (120)","Cases Appealed To Higher Courts","Cases Appealed To Higher Courts",{"$f":"_xlfn.XLOOKUP(Measures_Table[[#This Row],[PM Program]],Programs_Active20[ZSBPPROGM (KEY)],Programs_Active20[LONG TEXT])","v":"Misdemeanor Records Division"}]
[616,120,"Y",38,"HOURS","INPUT","ADOPTEDBUD",null,null,null,null,"Misdemeanor Records Division (120)","Cases Disposed with Charging Instruments","Cases Disposed with Charging Instruments",{"$f":"_xlfn.XLOOKUP(Measures_Table[[#This Row],[PM Program]],Programs_Active20[ZSBPPROGM (KEY)],Programs_Active20[LONG TEXT])","v":"Misdemeanor Records Division"}]
[617,120,"Y",38,"HOURS","INPUT","ADOPTEDBUD",null,null,null,null,"Misdemeanor Records Division (120)","Monthly Average Number of Active/Pending","Monthly Average Number of Active/Pending Cases",{"$f":"_xlfn.XLOOKUP(Measures_Table[[#This Row],[PM Program]],Programs_Active20[ZSBPPROGM (KEY)],Programs_Active20[LONG TEXT])","v":"Misdemeanor Records Division"}]
[618,120,"Y",38,"EACH","OUTPUT","ADOPTEDBUD",null,null,null,null,"Misdemeanor Records Division (120)","New Cases Filed with Charging Instrument","New Cases Filed with Charging Instruments",{"$f":"_xlfn.XLOOKUP(Measures_Table[[#This Row],[PM Program]],Programs_Active20[ZSBPPROGM (KEY)],Programs_Active20[LONG TEXT])","v":"Misdemeanor Records Division"}]
[619,120,"Y",38,"EACH","OUTPUT","ADOPTEDBUD",null,null,null,null,"Misdemeanor Records Division (120)","Made by Clerk","Made by Clerk",{"$f":"_xlfn.XLOOKUP(Measures_Table[[#This Row],[PM Program]],Programs_Active20[ZSBPPROGM (KEY)],Programs_Active20[LONG TEXT])","v":"Misdemeanor Records Division"}]
[620,120,"Y",39,"EACH","OUTPUT","ADOPTEDBUD",null,null,null,null,"Probate/Mental Health/Comm Court (120)","Email Requests","Email Requests",{"$f":"_xlfn.XLOOKUP(Measures_Table[[#This Row],[PM Program]],Programs_Active20[ZSBPPROGM (KEY)],Programs_Active20[LONG TEXT])","v":"Probate/Mental Health/Comm Court\n"}]
[621,120,"Y",39,"EACH","OUTPUT","ADOPTEDBUD",null,null,null,null,"Probate/Mental Health/Comm Court (120)","In-Person Customers","In-Person Customers",{"$f":"_xlfn.XLOOKUP(Measures_Table[[#This Row],[PM Program]],Programs_Active20[ZSBPPROGM (KEY)],Programs_Active20[LONG TEXT])","v":"Probate/Mental Health/Comm Court\n"}]
[622,120,"Y",39,"EACH","OUTPUT","ADOPTEDBUD",null,null,null,null,"Probate/Mental Health/Comm Court (120)","Mail Requests","Mail Requests",{"$f":"_xlfn.XLOOKUP(Measures_Table[[#This Row],[PM Program]],Programs_Active20[ZSBPPROGM (KEY)],Programs_Active20[LONG TEXT])","v":"Probate/Mental Health/Comm Court\n"}]
[623,120,"Y",39,"EACH","INPUT","ADOPTEDBUD",null,null,null,null,"Probate/Mental Health/Comm Court (120)","Phone Customers","Phone Customers",{"$f":"_xlfn.XLOOKUP(Measures_Table[[#This Row],[PM Program]],Programs_Active20[ZSBPPROGM (KEY)],Programs_Active20[LONG TEXT])","v":"Probate/Mental Health/Comm Court\n"}]
[624,120,"Y",39,"EACH","INPUT","ADOPTEDBUD",null,null,null,null,"Probate/Mental Health/Comm Court (120)","Bonds Scanned and Indexed","Bonds Scanned and Indexed",{"$f":"_xlfn.XLOOKUP(Measures_Table[[#This Row],[PM Program]],Programs_Active20[ZSBPPROGM (KEY)],Programs_Active20[LONG TEXT])","v":"Probate/Mental Health/Comm Court\n"}]
[625,120,"Y",39,"EACH","INPUT","ADOPTEDBUD",null,null,null,null,"Probate/Mental Health/Comm Court (120)","Complaint and Information","Complaint and Information",{"$f":"_xlfn.XLOOKUP(Measures_Table[[#This Row],[PM Program]],Programs_Active20[ZSBPPROGM (KEY)],Programs_Active20[LONG TEXT])","v":"Probate/Mental Health/Comm Court\n"}]
[626,120,"Y",39,"EACH","OUTPUT","ADOPTEDBUD",null,null,null,null,"Probate/Mental Health/Comm Court (120)","Dispositions","Dispositions",{"$f":"_xlfn.XLOOKUP(Measures_Table[[#This Row],[PM Program]],Programs_Active20[ZSBPPROGM (KEY)],Programs_Active20[LONG TEXT])","v":"Probate/Mental Health/Comm Court\n"}]
[627,120,"Y",39,"EACH","INPUT","ADOPTEDBUD",null,null,null,null,"Probate/Mental Health/Comm Court (120)","Executed Commitments","Executed Commitments",{"$f":"_xlfn.XLOOKUP(Measures_Table[[#This Row],[PM Program]],Programs_Active20[ZSBPPROGM (KEY)],Programs_Active20[LONG TEXT])","v":"Probate/Mental Health/Comm Court\n"}]
[628,120,"Y",39,"EACH","INPUT","ADOPTEDBUD",null,null,null,null,"Probate/Mental Health/Comm Court (120)","Jail Call Dockets","Jail Call Dockets",{"$f":"_xlfn.XLOOKUP(Measures_Table[[#This Row],[PM Program]],Programs_Active20[ZSBPPROGM (KEY)],Programs_Active20[LONG TEXT])","v":"Probate/Mental Health/Comm Court\n"}]
[629,120,"Y",39,"EACH","OUTPUT","ADOPTEDBUD",null,null,null,null,"Probate/Mental Health/Comm Court (120)","Morning Dockets","Morning Dockets",{"$f":"_xlfn.XLOOKUP(Measures_Table[[#This Row],[PM Program]],Programs_Active20[ZSBPPROGM (KEY)],Programs_Active20[LONG TEXT])","v":"Probate/Mental Health/Comm Court\n"}]
[630,120,"Y",39,"EACH","OUTPUT","ADOPTEDBUD",null,null,null,null,"Probate/Mental Health/Comm Court (120)","Pages Scanned","Pages Scanned",{"$f":"_xlfn.XLOOKUP(Measures_Table[[#This Row],[PM Program]],Programs_Active20[ZSBPPROGM (KEY)],Programs_Active20[LONG TEXT])","v":"Probate/Mental Health/Comm Court\n"}]
[631,120,"Y",39,"EACH","INPUT","ADOPTEDBUD",null,null,null,null,"Probate/Mental Health/Comm Court (120)","Signed Nisis","Signed Nisis",{"$f":"_xlfn.XLOOKUP(Measures_Table[[#This Row],[PM Program]],Programs_Active20[ZSBPPROGM (KEY)],Programs_Active20[LONG TEXT])","v":"Probate/Mental Health/Comm Court\n"}]
[632,120,"Y",39,"DAYS","EFFICIENCY","ADOPTEDBUD",null,null,null,null,"Probate/Mental Health/Comm Court (120)","Bond Forfeiture Lists","Bond Forfeiture Lists",{"$f":"_xlfn.XLOOKUP(Measures_Table[[#This Row],[PM Program]],Programs_Active20[ZSBPPROGM (KEY)],Programs_Active20[LONG TEXT])","v":"Probate/Mental Health/Comm Court\n"}]
[633,120,"Y",39,"EACH","INPUT","ADOPTEDBUD",null,null,null,null,"Probate/Mental Health/Comm Court (120)","Expunctions Processed","Expunctions Processed",{"$f":"_xlfn.XLOOKUP(Measures_Table[[#This Row],[PM Program]],Programs_Active20[ZSBPPROGM (KEY)],Programs_Active20[LONG TEXT])","v":"Probate/Mental Health/Comm Court\n"}]
[634,120,"Y",39,"DAYS","OUTCOME","ADOPTEDBUD",null,null,null,null,"Probate/Mental Health/Comm Court (120)","Hours Clerks Spent in Courts","Hours Clerks Spent in Courts",{"$f":"_xlfn.XLOOKUP(Measures_Table[[#This Row],[PM Program]],Programs_Active20[ZSBPPROGM (KEY)],Programs_Active20[LONG TEXT])","v":"Probate/Mental Health/Comm Court\n"}]
[635,120,"Y",39,"EACH","OUTPUT","ADOPTEDBUD",null,null,null,null,"Probate/Mental Health/Comm Court (120)","Jail Call Commitment Hours","Jail Call Commitment Hours",{"$f":"_xlfn.XLOOKUP(Measures_Table[[#This Row],[PM Program]],Programs_Active20[ZSBPPROGM (KEY)],Programs_Active20[LONG TEXT])","v":"Probate/Mental Health/Comm Court\n"}]
[636,120,"Y",39,"HOURS","INPUT","ADOPTEDBUD",null,null,null,null,"Probate/Mental Health/Comm Court (120)","Non-disclosures Processed","Non-disclosures Processed",{"$f":"_xlfn.XLOOKUP(Measures_Table[[#This Row],[PM Program]],Programs_Active20[ZSBPPROGM (KEY)],Programs_Active20[LONG TEXT])","v":"Probate/Mental Health/Comm Court\n"}]
[637,120,"Y",39,"EACH","OUTPUT","ADOPTEDBUD",null,null,null,null,"Probate/Mental Health/Comm Court (120)","ROA Entries","ROA Entries",{"$f":"_xlfn.XLOOKUP(Measures_Table[[#This Row],[PM Program]],Programs_Active20[ZSBPPROGM (KEY)],Programs_Active20[LONG TEXT])","v":"Probate/Mental Health/Comm Court\n"}]
[638,120,"Y",39,"EACH","OUTPUT","ADOPTEDBUD",null,null,null,null,"Probate/Mental Health/Comm Court (120)","Certified Copies","Certified Copies",{"$f":"_xlfn.XLOOKUP(Measures_Table[[#This Row],[PM Program]],Programs_Active20[ZSBPPROGM (KEY)],Programs_Active20[LONG TEXT])","v":"Probate/Mental Health/Comm Court\n"}]
[639,120,"Y",39,"EACH","OUTPUT","ADOPTEDBUD",null,null,null,null,"Probate/Mental Health/Comm Court (120)","Copies Made by Clerk","Copies Made by Clerk",{"$f":"_xlfn.XLOOKUP(Measures_Table[[#This Row],[PM Program]],Programs_Active20[ZSBPPROGM (KEY)],Programs_Active20[LONG TEXT])","v":"Probate/Mental Health/Comm Court\n"}]
[640,120,"Y",36,"EACH","OUTPUT","ADOPTEDBUD",null,null,null,null,"Civil/Collections Team (120)","Total Copies","Total Copies",{"$f":"_xlfn.XLOOKUP(Measures_Table[[#This Row],[PM Program]],Programs_Active20[ZSBPPROGM (KEY)],Programs_Active20[LONG TEXT])","v":"Civil/Collections Team"}]
[641,120,"Y",39,"EACH","INPUT","ADOPTEDBUD",null,null,null,null,"Probate/Mental Health/Comm Court (120)","Email Requests Mental Health","Email Requests Mental Health",{"$f":"_xlfn.XLOOKUP(Measures_Table[[#This Row],[PM Program]],Programs_Active20[ZSBPPROGM (KEY)],Programs_Active20[LONG TEXT])","v":"Probate/Mental Health/Comm Court\n"}]
[642,120,"Y",39,"EACH","INPUT","ADOPTEDBUD",null,null,null,null,"Probate/Mental Health/Comm Court (120)","Email Requests Probate","Email Requests Probate",{"$f":"_xlfn.XLOOKUP(Measures_Table[[#This Row],[PM Program]],Programs_Active20[ZSBPPROGM (KEY)],Programs_Active20[LONG TEXT])","v":"Probate/Mental Health/Comm Court\n"}]
[643,120,"Y",39,"EACH","INPUT","ADOPTEDBUD",null,null,null,null,"Probate/Mental Health/Comm Court (120)","In-Person Customers Mental Health","In-Person Customers Mental Health",{"$f":"_xlfn.XLOOKUP(Measures_Table[[#This Row],[PM Program]],Programs_Active20[ZSBPPROGM (KEY)],Programs_Active20[LONG TEXT])","v":"Probate/Mental Health/Comm Court\n"}]
[645,120,"Y",36,"EACH","OUTPUT","ADOPTEDBUD",null,null,null,null,"Civil/Collections Team (120)","Phone Customers Mental Health","Phone Customers Mental Health",{"$f":"_xlfn.XLOOKUP(Measures_Table[[#This Row],[PM Program]],Programs_Active20[ZSBPPROGM (KEY)],Programs_Active20[LONG TEXT])","v":"Civil/Collections Team"}]
[646,120,"Y",39,"DAYS","EFFICIENCY","ADOPTEDBUD",null,null,null,null,"Probate/Mental Health/Comm Court (120)","Phone Customers Probate","Phone Customers Probate",{"$f":"_xlfn.XLOOKUP(Measures_Table[[#This Row],[PM Program]],Programs_Active20[ZSBPPROGM (KEY)],Programs_Active20[LONG TEXT])","v":"Probate/Mental Health/Comm Court\n"}]
[647,120,"Y",39,"DAYS","EFFICIENCY","ADOPTEDBUD",null,null,null,null,"Probate/Mental Health/Comm Court (120)","Total Search Requests","Total Search Requests",{"$f":"_xlfn.XLOOKUP(Measures_Table[[#This Row],[PM Program]],Programs_Active20[ZSBPPROGM (KEY)],Programs_Active20[LONG TEXT])","v":"Probate/Mental Health/Comm Court\n"}]
[648,120,"Y",39,"DAYS","EFFICIENCY","ADOPTEDBUD",null,null,null,null,"Probate/Mental Health/Comm Court (120)","Mental Health","Mental Health",{"$f":"_xlfn.XLOOKUP(Measures_Table[[#This Row],[PM Program]],Programs_Active20[ZSBPPROGM (KEY)],Programs_Active20[LONG TEXT])","v":"Probate/Mental Health/Comm Court\n"}]
[649,120,"Y",39,"EACH","OUTPUT","ADOPTEDBUD",null,null,null,null,"Probate/Mental Health/Comm Court (120)","Probate Search Requests","Probate Search Requests",{"$f":"_xlfn.XLOOKUP(Measures_Table[[#This Row],[PM Program]],Programs_Active20[ZSBPPROGM (KEY)],Programs_Active20[LONG TEXT])","v":"Probate/Mental Health/Comm Court\n"}]
[650,120,"Y",39,"EACH","OUTPUT","ADOPTEDBUD",null,null,null,null,"Probate/Mental Health/Comm Court (120)","Average Number of Days to Process Citati","Average Number of Days to Process Citations and Notices",{"$f":"_xlfn.XLOOKUP(Measures_Table[[#This Row],[PM Program]],Programs_Active20[ZSBPPROGM (KEY)],Programs_Active20[LONG TEXT])","v":"Probate/Mental Health/Comm Court\n"}]
[651,120,"Y",39,"DAYS","OUTCOME","ADOPTEDBUD",null,null,null,null,"Probate/Mental Health/Comm Court (120)","Commitment Hearings Attended","Commitment Hearings Attended",{"$f":"_xlfn.XLOOKUP(Measures_Table[[#This Row],[PM Program]],Programs_Active20[ZSBPPROGM (KEY)],Programs_Active20[LONG TEXT])","v":"Probate/Mental Health/Comm Court\n"}]
[652,120,"Y",39,"EACH","OUTPUT","ADOPTEDBUD",null,null,null,null,"Probate/Mental Health/Comm Court (120)","Diff b/w Doc File Date/Entry Dt MH Cases","Difference Between Document File Date and Entry Date MH Cases",{"$f":"_xlfn.XLOOKUP(Measures_Table[[#This Row],[PM Program]],Programs_Active20[ZSBPPROGM (KEY)],Programs_Active20[LONG TEXT])","v":"Probate/Mental Health/Comm Court\n"}]
[653,120,"Y",39,"HOURS","INPUT","ADOPTEDBUD",null,null,null,null,"Probate/Mental Health/Comm Court (120)","MH Documents Scanned and Indexed","MH Documents Scanned and Indexed",{"$f":"_xlfn.XLOOKUP(Measures_Table[[#This Row],[PM Program]],Programs_Active20[ZSBPPROGM (KEY)],Programs_Active20[LONG TEXT])","v":"Probate/Mental Health/Comm Court\n"}]
[654,120,"Y",39,"EACH","OUTPUT","ADOPTEDBUD",null,null,null,null,"Probate/Mental Health/Comm Court (120)","Hours Spent in Commitment Hearings","Hours Spent in Commitment Hearings",{"$f":"_xlfn.XLOOKUP(Measures_Table[[#This Row],[PM Program]],Programs_Active20[ZSBPPROGM (KEY)],Programs_Active20[LONG TEXT])","v":"Probate/Mental Health/Comm Court\n"}]
[655,120,"Y",39,"EACH","OUTPUT","ADOPTEDBUD",null,null,null,null,"Probate/Mental Health/Comm Court (120)","Total Issuances","Total Issuances",{"$f":"_xlfn.XLOOKUP(Measures_Table[[#This Row],[PM Program]],Programs_Active20[ZSBPPROGM (KEY)],Programs_Active20[LONG TEXT])","v":"Probate/Mental Health/Comm Court\n"}]
[656,120,"Y",39,"EACH","OUTPUT","ADOPTEDBUD",null,null,null,null,"Probate/Mental Health/Comm Court (120)","MH Notices Issued","MH Notices Issued",{"$f":"_xlfn.XLOOKUP(Measures_Table[[#This Row],[PM Program]],Programs_Active20[ZSBPPROGM (KEY)],Programs_Active20[LONG TEXT])","v":"Probate/Mental Health/Comm Court\n"}]
[657,120,"Y",39,"EACH","OUTPUT","ADOPTEDBUD",null,null,null,null,"Probate/Mental Health/Comm Court (120)","MH Other Issuances","MH Other Issuances",{"$f":"_xlfn.XLOOKUP(Measures_Table[[#This Row],[PM Program]],Programs_Active20[ZSBPPROGM (KEY)],Programs_Active20[LONG TEXT])","v":"Probate/Mental Health/Comm Court\n"}]
[658,120,"Y",40,"EACH","INPUT","ADOPTEDBUD",null,null,null,null,"Recording Division (120)","Bond Forfeiture Cases Filed","Bond Forfeiture Cases Filed",{"$f":"_xlfn.XLOOKUP(Measures_Table[[#This Row],[PM Program]],Programs_Active20[ZSBPPROGM (KEY)],Programs_Active20[LONG TEXT])","v":"Recording Division"}]
[659,120,"Y",40,"EACH","OUTPUT","ADOPTEDBUD",null,null,null,null,"Recording Division (120)","New Condemnation Cases Filed","New Condemnation Cases Filed",{"$f":"_xlfn.XLOOKUP(Measures_Table[[#This Row],[PM Program]],Programs_Active20[ZSBPPROGM (KEY)],Programs_Active20[LONG TEXT])","v":"Recording Division"}]
[660,120,"Y",40,"EACH","OUTPUT","ADOPTEDBUD",null,null,null,null,"Recording Division (120)","New Mental Health Cases Filed","New Mental Health Cases Filed",{"$f":"_xlfn.XLOOKUP(Measures_Table[[#This Row],[PM Program]],Programs_Active20[ZSBPPROGM (KEY)],Programs_Active20[LONG TEXT])","v":"Recording Division"}]
[661,120,"Y",40,"EACH","OUTPUT","ADOPTEDBUD",null,null,null,null,"Recording Division (120)","New Probate Cases Filed","New Probate Cases Filed",{"$f":"_xlfn.XLOOKUP(Measures_Table[[#This Row],[PM Program]],Programs_Active20[ZSBPPROGM (KEY)],Programs_Active20[LONG TEXT])","v":"Recording Division"}]
[662,120,"Y",40,"EACH","OUTPUT","ADOPTEDBUD",null,null,null,null,"Recording Division (120)","Total New Cases Filed","Total New Cases Filed",{"$f":"_xlfn.XLOOKUP(Measures_Table[[#This Row],[PM Program]],Programs_Active20[ZSBPPROGM (KEY)],Programs_Active20[LONG TEXT])","v":"Recording Division"}]
[663,120,"Y",40,"EACH","INPUT","ADOPTEDBUD",null,null,null,null,"Recording Division (120)","Protective Order Cases Filed","Protective Order Cases Filed",{"$f":"_xlfn.XLOOKUP(Measures_Table[[#This Row],[PM Program]],Programs_Active20[ZSBPPROGM (KEY)],Programs_Active20[LONG TEXT])","v":"Recording Division"}]
[664,120,"Y",40,"EACH","OUTPUT","ADOPTEDBUD",null,null,null,null,"Recording Division (120)","Average Number of Days to Process Citati","Average Number of Days to Process Citations and Notices",{"$f":"_xlfn.XLOOKUP(Measures_Table[[#This Row],[PM Program]],Programs_Active20[ZSBPPROGM (KEY)],Programs_Active20[LONG TEXT])","v":"Recording Division"}]
[665,120,"Y",40,"EACH","OUTPUT","ADOPTEDBUD",null,null,null,null,"Recording Division (120)","Average Number of Days to Process Ltrs o","Average Number of Days to Process Ltrs of Admin or Test",{"$f":"_xlfn.XLOOKUP(Measures_Table[[#This Row],[PM Program]],Programs_Active20[ZSBPPROGM (KEY)],Programs_Active20[LONG TEXT])","v":"Recording Division"}]
[666,120,"Y",40,"EACH","OUTPUT","ADOPTEDBUD",null,null,null,null,"Recording Division (120)","Average Number of Days to Process Letter","Average Number of Days to Process Letters of Guardianship",{"$f":"_xlfn.XLOOKUP(Measures_Table[[#This Row],[PM Program]],Programs_Active20[ZSBPPROGM (KEY)],Programs_Active20[LONG TEXT])","v":"Recording Division"}]
[667,120,"Y",40,"EACH","OUTPUT","ADOPTEDBUD",null,null,null,null,"Recording Division (120)","Citations","Citations",{"$f":"_xlfn.XLOOKUP(Measures_Table[[#This Row],[PM Program]],Programs_Active20[ZSBPPROGM (KEY)],Programs_Active20[LONG TEXT])","v":"Recording Division"}]
[668,120,"Y",40,"EACH","INPUT","ADOPTEDBUD",null,null,null,null,"Recording Division (120)","Total Probate Case Activities","Total Probate Case Activities",{"$f":"_xlfn.XLOOKUP(Measures_Table[[#This Row],[PM Program]],Programs_Active20[ZSBPPROGM (KEY)],Programs_Active20[LONG TEXT])","v":"Recording Division"}]
[669,120,"Y",40,"EACH","OUTPUT","ADOPTEDBUD",null,null,null,null,"Recording Division (120)","Diff b/w Doc File Date/Entry Dt Probate","Difference Between Document File Date and Entry Date Probate Cases\n",{"$f":"_xlfn.XLOOKUP(Measures_Table[[#This Row],[PM Program]],Programs_Active20[ZSBPPROGM (KEY)],Programs_Active20[LONG TEXT])","v":"Recording Division"}]
[670,120,"Y",40,"EACH","INPUT","ADOPTEDBUD",null,null,null,null,"Recording Division (120)","Probate Documents Scanned and Indexed","Probate Documents Scanned and Indexed",{"$f":"_xlfn.XLOOKUP(Measures_Table[[#This Row],[PM Program]],Programs_Active20[ZSBPPROGM (KEY)],Programs_Active20[LONG TEXT])","v":"Recording Division"}]
[671,120,"Y",40,"PERCENT","OUTPUT","ADOPTEDBUD",null,null,null,null,"Recording Division (120)","Hours Spent in Probate Hearings","Hours Spent in Probate Hearings",{"$f":"_xlfn.XLOOKUP(Measures_Table[[#This Row],[PM Program]],Programs_Active20[ZSBPPROGM (KEY)],Programs_Active20[LONG TEXT])","v":"Recording Division"}]
[673,120,"Y",40,"EACH","OUTPUT","ADOPTEDBUD",null,null,null,null,"Recording Division (120)","Orders Processed from Probate Court","Orders Processed from Probate Court",{"$f":"_xlfn.XLOOKUP(Measures_Table[[#This Row],[PM Program]],Programs_Active20[ZSBPPROGM (KEY)],Programs_Active20[LONG TEXT])","v":"Recording Division"}]
[674,120,"Y",40,"EACH","INPUT","ADOPTEDBUD",null,null,null,null,"Recording Division (120)","Other Issuances","Other Issuances",{"$f":"_xlfn.XLOOKUP(Measures_Table[[#This Row],[PM Program]],Programs_Active20[ZSBPPROGM (KEY)],Programs_Active20[LONG TEXT])","v":"Recording Division"}]
[675,120,"Y",40,"EACH","INPUT","ADOPTEDBUD",null,null,null,null,"Recording Division (120)","Probate Hearings Attended","Probate Hearings Attended",{"$f":"_xlfn.XLOOKUP(Measures_Table[[#This Row],[PM Program]],Programs_Active20[ZSBPPROGM (KEY)],Programs_Active20[LONG TEXT])","v":"Recording Division"}]
[676,120,"Y",40,"EACH","INPUT","ADOPTEDBUD",null,null,null,null,"Recording Division (120)","Calls received","Calls received",{"$f":"_xlfn.XLOOKUP(Measures_Table[[#This Row],[PM Program]],Programs_Active20[ZSBPPROGM (KEY)],Programs_Active20[LONG TEXT])","v":"Recording Division"}]
[678,120,"Y",40,"EACH","OUTPUT","ADOPTEDBUD",null,null,null,null,"Recording Division (120)","Payments for copy orders processed","Payments for copy orders processed",{"$f":"_xlfn.XLOOKUP(Measures_Table[[#This Row],[PM Program]],Programs_Active20[ZSBPPROGM (KEY)],Programs_Active20[LONG TEXT])","v":"Recording Division"}]
[679,120,"Y",40,"EACH","INPUT","ADOPTEDBUD",null,null,null,null,"Recording Division (120)","Searches","Searches",{"$f":"_xlfn.XLOOKUP(Measures_Table[[#This Row],[PM Program]],Programs_Active20[ZSBPPROGM (KEY)],Programs_Active20[LONG TEXT])","v":"Recording Division"}]
[680,120,"Y",40,"EACH","OUTPUT","ADOPTEDBUD",null,null,null,null,"Recording Division (120)","Assumed Names recorded","Assumed Names recorded",{"$f":"_xlfn.XLOOKUP(Measures_Table[[#This Row],[PM Program]],Programs_Active20[ZSBPPROGM (KEY)],Programs_Active20[LONG TEXT])","v":"Recording Division"}]
[681,120,"Y",40,"EACH","OUTPUT","ADOPTEDBUD",null,null,null,null,"Recording Division (120)","Foreclosures filed","Foreclosures filed",{"$f":"_xlfn.XLOOKUP(Measures_Table[[#This Row],[PM Program]],Programs_Active20[ZSBPPROGM (KEY)],Programs_Active20[LONG TEXT])","v":"Recording Division"}]
[682,120,"Y",40,"EACH","INPUT","ADOPTEDBUD",null,null,null,null,"Recording Division (120)","Images reviewed for indexing","Images reviewed for indexing",{"$f":"_xlfn.XLOOKUP(Measures_Table[[#This Row],[PM Program]],Programs_Active20[ZSBPPROGM (KEY)],Programs_Active20[LONG TEXT])","v":"Recording Division"}]
[683,120,"Y",41,"EACH","OUTPUT","ADOPTEDBUD",null,null,null,null,"Records Management (120)","Images scanned by staff","Images scanned by staff",{"$f":"_xlfn.XLOOKUP(Measures_Table[[#This Row],[PM Program]],Programs_Active20[ZSBPPROGM (KEY)],Programs_Active20[LONG TEXT])","v":"Records Management"}]
[684,120,"Y",41,"EACH","INPUT","ADOPTEDBUD",null,null,null,null,"Records Management (120)","Marriage licenses issued","Marriage licenses issued",{"$f":"_xlfn.XLOOKUP(Measures_Table[[#This Row],[PM Program]],Programs_Active20[ZSBPPROGM (KEY)],Programs_Active20[LONG TEXT])","v":"Records Management"}]
[685,120,"Y",41,"EACH","INPUT","ADOPTEDBUD",null,null,null,null,"Records Management (120)","Meeting notices filed and posted","Meeting notices filed and posted",{"$f":"_xlfn.XLOOKUP(Measures_Table[[#This Row],[PM Program]],Programs_Active20[ZSBPPROGM (KEY)],Programs_Active20[LONG TEXT])","v":"Records Management"}]
[686,120,"Y",41,"EACH","INPUT","ADOPTEDBUD",null,null,null,null,"Records Management (120)","Total documents processed","Total documents processed",{"$f":"_xlfn.XLOOKUP(Measures_Table[[#This Row],[PM Program]],Programs_Active20[ZSBPPROGM (KEY)],Programs_Active20[LONG TEXT])","v":"Records Management"}]
[687,120,"Y",41,"EACH","INPUT","ADOPTEDBUD",null,null,null,null,"Records Management (120)","Total Real Property documents recorded","Total Real Property documents recorded",{"$f":"_xlfn.XLOOKUP(Measures_Table[[#This Row],[PM Program]],Programs_Active20[ZSBPPROGM (KEY)],Programs_Active20[LONG TEXT])","v":"Records Management"}]
[688,120,"Y",41,"EACH","INPUT","ADOPTEDBUD",null,null,null,null,"Records Management (120)","eRecording documents received","eRecording documents received",{"$f":"_xlfn.XLOOKUP(Measures_Table[[#This Row],[PM Program]],Programs_Active20[ZSBPPROGM (KEY)],Programs_Active20[LONG TEXT])","v":"Records Management"}]
[689,120,"Y",41,"EACH","INPUT","ADOPTEDBUD",null,null,null,null,"Records Management (120)","Percent of Total Real Property Records F","Percent of Total Real Property Records Filed",{"$f":"_xlfn.XLOOKUP(Measures_Table[[#This Row],[PM Program]],Programs_Active20[ZSBPPROGM (KEY)],Programs_Active20[LONG TEXT])","v":"Records Management"}]
[690,120,"Y",41,"EACH","OUTPUT","ADOPTEDBUD",null,null,null,null,"Records Management (120)","Total Number of Pages reviewed","Total Number of Pages reviewed",{"$f":"_xlfn.XLOOKUP(Measures_Table[[#This Row],[PM Program]],Programs_Active20[ZSBPPROGM (KEY)],Programs_Active20[LONG TEXT])","v":"Records Management"}]
[691,120,"Y",41,"EACH","OUTPUT","ADOPTEDBUD",null,null,null,null,"Records Management (120)","Logged Mail forwarded to other Divisions","Logged Mail forwarded to other Divisions/Departments",{"$f":"_xlfn.XLOOKUP(Measures_Table[[#This Row],[PM Program]],Programs_Active20[ZSBPPROGM (KEY)],Programs_Active20[LONG TEXT])","v":"Records Management"}]
[692,120,"Y",41,"EACH","OUTPUT","ADOPTEDBUD",null,null,null,null,"Records Management (120)","Logged Mail going to Recording for proce","Logged Mail going to Recording for processing",{"$f":"_xlfn.XLOOKUP(Measures_Table[[#This Row],[PM Program]],Programs_Active20[ZSBPPROGM (KEY)],Programs_Active20[LONG TEXT])","v":"Records Management"}]
[693,120,"Y",41,"EACH","OUTPUT","ADOPTEDBUD",null,null,null,null,"Records Management (120)","Mail logged in and tracked daily","Mail logged in and tracked daily",{"$f":"_xlfn.XLOOKUP(Measures_Table[[#This Row],[PM Program]],Programs_Active20[ZSBPPROGM (KEY)],Programs_Active20[LONG TEXT])","v":"Records Management"}]
[694,120,"Y",41,"EACH","OUTPUT","ADOPTEDBUD",null,null,null,null,"Records Management (120)","Total Mail received  (Elections now has","Total Mail received  (Elections now has their own PO Box)",{"$f":"_xlfn.XLOOKUP(Measures_Table[[#This Row],[PM Program]],Programs_Active20[ZSBPPROGM (KEY)],Programs_Active20[LONG TEXT])","v":"Records Management"}]
[695,120,"Y",41,"EACH","OUTPUT","ADOPTEDBUD",null,null,null,null,"Records Management (120)","Total Mail sent","Total Mail sent",{"$f":"_xlfn.XLOOKUP(Measures_Table[[#This Row],[PM Program]],Programs_Active20[ZSBPPROGM (KEY)],Programs_Active20[LONG TEXT])","v":"Records Management"}]
[696,120,"Y",41,"EACH","OUTPUT","ADOPTEDBUD",null,null,null,null,"Records Management (120)","Copies made by Copy Center (more images","Copies made by Copy Center (more images available online)",{"$f":"_xlfn.XLOOKUP(Measures_Table[[#This Row],[PM Program]],Programs_Active20[ZSBPPROGM (KEY)],Programs_Active20[LONG TEXT])","v":"Records Management"}]
[697,120,"Y",41,"EACH","OUTPUT","ADOPTEDBUD",null,null,null,null,"Records Management (120)","Customers served in person","Customers served in person",{"$f":"_xlfn.XLOOKUP(Measures_Table[[#This Row],[PM Program]],Programs_Active20[ZSBPPROGM (KEY)],Programs_Active20[LONG TEXT])","v":"Records Management"}]
[698,120,"Y",41,"EACH","OUTPUT","ADOPTEDBUD",null,null,null,null,"Records Management (120)","Electronic Data compiled by Copy Center/","Electronic Data compiled by Copy Center/Staff",{"$f":"_xlfn.XLOOKUP(Measures_Table[[#This Row],[PM Program]],Programs_Active20[ZSBPPROGM (KEY)],Programs_Active20[LONG TEXT])","v":"Records Management"}]
[699,120,"Y",41,"EACH","OUTPUT","ADOPTEDBUD",null,null,null,null,"Records Management (120)","Emails received and handled by Staff","Emails received and handled by Staff",{"$f":"_xlfn.XLOOKUP(Measures_Table[[#This Row],[PM Program]],Programs_Active20[ZSBPPROGM (KEY)],Programs_Active20[LONG TEXT])","v":"Records Management"}]
[700,120,"Y",41,"EACH","OUTPUT","ADOPTEDBUD",null,null,null,null,"Records Management (120)","Transactions by cashiers","Transactions by cashiers",{"$f":"_xlfn.XLOOKUP(Measures_Table[[#This Row],[PM Program]],Programs_Active20[ZSBPPROGM (KEY)],Programs_Active20[LONG TEXT])","v":"Records Management"}]
[701,120,"Y",41,"EACH","OUTPUT","ADOPTEDBUD",null,null,null,null,"Records Management (120)","Certified Copies","Certified Copies",{"$f":"_xlfn.XLOOKUP(Measures_Table[[#This Row],[PM Program]],Programs_Active20[ZSBPPROGM (KEY)],Programs_Active20[LONG TEXT])","v":"Records Management"}]
[702,120,"Y",41,"EACH","OUTPUT","ADOPTEDBUD",null,null,null,null,"Records Management (120)","Email Requests Onsite Library Counter","Email Requests Onsite Library Counter",{"$f":"_xlfn.XLOOKUP(Measures_Table[[#This Row],[PM Program]],Programs_Active20[ZSBPPROGM (KEY)],Programs_Active20[LONG TEXT])","v":"Records Management"}]
[703,120,"Y",41,"EACH","OUTPUT","ADOPTEDBUD",null,null,null,null,"Records Management (120)","Email Requests Research Area","Email Requests Research Area",{"$f":"_xlfn.XLOOKUP(Measures_Table[[#This Row],[PM Program]],Programs_Active20[ZSBPPROGM (KEY)],Programs_Active20[LONG TEXT])","v":"Records Management"}]
[704,120,"Y",41,"EACH","OUTPUT","ADOPTEDBUD",null,null,null,null,"Records Management (120)","In-Person Customers Onsite Library Count","In-Person Customers Onsite Library Counter",{"$f":"_xlfn.XLOOKUP(Measures_Table[[#This Row],[PM Program]],Programs_Active20[ZSBPPROGM (KEY)],Programs_Active20[LONG TEXT])","v":"Records Management"}]
[705,120,"Y",41,"EACH","OUTPUT","ADOPTEDBUD",null,null,null,null,"Records Management (120)","In-Person Customers Research Area","In-Person Customers Research Area",{"$f":"_xlfn.XLOOKUP(Measures_Table[[#This Row],[PM Program]],Programs_Active20[ZSBPPROGM (KEY)],Programs_Active20[LONG TEXT])","v":"Records Management"}]
[706,120,"Y",41,"EACH","OUTPUT","ADOPTEDBUD",null,null,null,null,"Records Management (120)","Phone Customers Onsite Library Counter","Phone Customers Onsite Library Counter",{"$f":"_xlfn.XLOOKUP(Measures_Table[[#This Row],[PM Program]],Programs_Active20[ZSBPPROGM (KEY)],Programs_Active20[LONG TEXT])","v":"Records Management"}]
[707,120,"Y",41,"EACH","INPUT","ADOPTEDBUD",null,null,null,null,"Records Management (120)","Phone Customers Research Area","Phone Customers Research Area",{"$f":"_xlfn.XLOOKUP(Measures_Table[[#This Row],[PM Program]],Programs_Active20[ZSBPPROGM (KEY)],Programs_Active20[LONG TEXT])","v":"Records Management"}]
[708,120,"Y",41,"EACH","INPUT","ADOPTEDBUD",null,null,null,null,"Records Management (120)","Case Files Recalled Civil","Case Files Recalled Civil",{"$f":"_xlfn.XLOOKUP(Measures_Table[[#This Row],[PM Program]],Programs_Active20[ZSBPPROGM (KEY)],Programs_Active20[LONG TEXT])","v":"Records Management"}]
[709,120,"Y",41,"EACH","INPUT","ADOPTEDBUD",null,null,null,null,"Records Management (120)","Case Files Recalled Misdemeanor","Case Files Recalled Misdemeanor",{"$f":"_xlfn.XLOOKUP(Measures_Table[[#This Row],[PM Program]],Programs_Active20[ZSBPPROGM (KEY)],Programs_Active20[LONG TEXT])","v":"Records Management"}]
[710,120,"Y",41,"EACH","OUTPUT","ADOPTEDBUD",null,null,null,null,"Records Management (120)","Case Files Recalled Probate","Case Files Recalled Probate",{"$f":"_xlfn.XLOOKUP(Measures_Table[[#This Row],[PM Program]],Programs_Active20[ZSBPPROGM (KEY)],Programs_Active20[LONG TEXT])","v":"Records Management"}]
[711,120,"Y",41,"EACH","OUTPUT","ADOPTEDBUD",null,null,null,null,"Records Management (120)","Accounting Division Boxes Moved Offsite","Accounting Division Boxes Moved Offsite",{"$f":"_xlfn.XLOOKUP(Measures_Table[[#This Row],[PM Program]],Programs_Active20[ZSBPPROGM (KEY)],Programs_Active20[LONG TEXT])","v":"Records Management"}]
[712,120,"Y",41,"EACH","OUTPUT","ADOPTEDBUD",null,null,null,null,"Records Management (120)","Administration Division Boxes Moved Offs","Administration Division Boxes Moved Offsite",{"$f":"_xlfn.XLOOKUP(Measures_Table[[#This Row],[PM Program]],Programs_Active20[ZSBPPROGM (KEY)],Programs_Active20[LONG TEXT])","v":"Records Management"}]
[713,120,"Y",41,"EACH","OUTPUT","ADOPTEDBUD",null,null,null,null,"Records Management (120)","Civil Division Boxes Moved Offsite","Civil Division Boxes Moved Offsite",{"$f":"_xlfn.XLOOKUP(Measures_Table[[#This Row],[PM Program]],Programs_Active20[ZSBPPROGM (KEY)],Programs_Active20[LONG TEXT])","v":"Records Management"}]
[714,120,"Y",41,"EACH","OUTPUT","ADOPTEDBUD",null,null,null,null,"Records Management (120)","Comm. Ct. Division Boxes Moved Offsite","Comm. Ct. Division Boxes Moved Offsite",{"$f":"_xlfn.XLOOKUP(Measures_Table[[#This Row],[PM Program]],Programs_Active20[ZSBPPROGM (KEY)],Programs_Active20[LONG TEXT])","v":"Records Management"}]
[715,120,"Y",41,"EACH","OUTPUT","ADOPTEDBUD",null,null,null,null,"Records Management (120)","Computer Resources Division Boxes Moved","Computer Resources Division Boxes Moved Offsite",{"$f":"_xlfn.XLOOKUP(Measures_Table[[#This Row],[PM Program]],Programs_Active20[ZSBPPROGM (KEY)],Programs_Active20[LONG TEXT])","v":"Records Management"}]
[716,120,"Y",41,"EACH","OUTPUT","ADOPTEDBUD",null,null,null,null,"Records Management (120)","Elections Division Boxes Moved Offsite","Elections Division Boxes Moved Offsite",{"$f":"_xlfn.XLOOKUP(Measures_Table[[#This Row],[PM Program]],Programs_Active20[ZSBPPROGM (KEY)],Programs_Active20[LONG TEXT])","v":"Records Management"}]
[717,120,"Y",41,"EACH","OUTPUT","ADOPTEDBUD",null,null,null,null,"Records Management (120)","Mental Health Division Boxes Moved Offsi","Mental Health Division Boxes Moved Offsite",{"$f":"_xlfn.XLOOKUP(Measures_Table[[#This Row],[PM Program]],Programs_Active20[ZSBPPROGM (KEY)],Programs_Active20[LONG TEXT])","v":"Records Management"}]
[718,120,"Y",41,"EACH","OUTPUT","ADOPTEDBUD",null,null,null,null,"Records Management (120)","Misdemeanor Division Boxes Moved Offsite","Misdemeanor Division Boxes Moved Offsite",{"$f":"_xlfn.XLOOKUP(Measures_Table[[#This Row],[PM Program]],Programs_Active20[ZSBPPROGM (KEY)],Programs_Active20[LONG TEXT])","v":"Records Management"}]
[719,120,"Y",41,"EACH","OUTPUT","ADOPTEDBUD",null,null,null,null,"Records Management (120)","Probate Division Boxes Moved Offsite","Probate Division Boxes Moved Offsite",{"$f":"_xlfn.XLOOKUP(Measures_Table[[#This Row],[PM Program]],Programs_Active20[ZSBPPROGM (KEY)],Programs_Active20[LONG TEXT])","v":"Records Management"}]
[720,122,"Y",42,"EACH","OUTPUT","ADOPTEDBUD",null,null,null,null,"Civil Courts (122)","Recording Division Boxes Moved Offsite","Recording Division Boxes Moved Offsite",{"$f":"_xlfn.XLOOKUP(Measures_Table[[#This Row],[PM Program]],Programs_Active20[ZSBPPROGM (KEY)],Programs_Active20[LONG TEXT])","v":"Civil Courts"}]
[721,122,"Y",42,"EACH","INPUT","ADOPTEDBUD",null,null,null,null,"Civil Courts (122)","Court Runs","Court Runs",{"$f":"_xlfn.XLOOKUP(Measures_Table[[#This Row],[PM Program]],Programs_Active20[ZSBPPROGM (KEY)],Programs_Active20[LONG TEXT])","v":"Civil Courts"}]
[722,122,"Y",42,"EACH","INPUT","ADOPTEDBUD",null,null,null,null,"Civil Courts (122)","Case Files Entered into GAIN Civil","Case Files Entered into GAIN Civil",{"$f":"_xlfn.XLOOKUP(Measures_Table[[#This Row],[PM Program]],Programs_Active20[ZSBPPROGM (KEY)],Programs_Active20[LONG TEXT])","v":"Civil Courts"}]
[723,122,"Y",42,"PERCENT","EFFICIENCY","ADOPTEDBUD",null,null,null,null,"Civil Courts (122)","Case Files Entered into GAIN Misdemeanor","Case Files Entered into GAIN Misdemeanor",{"$f":"_xlfn.XLOOKUP(Measures_Table[[#This Row],[PM Program]],Programs_Active20[ZSBPPROGM (KEY)],Programs_Active20[LONG TEXT])","v":"Civil Courts"}]
[724,122,"Y",42,"PERCENT","OUTCOME","ADOPTEDBUD",null,null,null,null,"Civil Courts (122)","Case Files Entered into GAIN Probate","Case Files Entered into GAIN Probate",{"$f":"_xlfn.XLOOKUP(Measures_Table[[#This Row],[PM Program]],Programs_Active20[ZSBPPROGM (KEY)],Programs_Active20[LONG TEXT])","v":"Civil Courts"}]
[725,123,"Y",43,"EACH","OUTPUT","NEITHER",null,null,null,null,"Operations (123)","Documents Filed  Civil","Documents Filed  Civil",{"$f":"_xlfn.XLOOKUP(Measures_Table[[#This Row],[PM Program]],Programs_Active20[ZSBPPROGM (KEY)],Programs_Active20[LONG TEXT])","v":"Operations"}]
[726,123,"Y",43,"FTE","EFFICIENCY","NEITHER",null,null,null,null,"Operations (123)","Documents Filed  Misdemeanor","Documents Filed  Misdemeanor",{"$f":"_xlfn.XLOOKUP(Measures_Table[[#This Row],[PM Program]],Programs_Active20[ZSBPPROGM (KEY)],Programs_Active20[LONG TEXT])","v":"Operations"}]
[727,123,"Y",43,"PERCENT","OUTCOME","NEITHER",null,null,null,null,"Operations (123)","Documents Filed  Probate","Documents Filed  Probate",{"$f":"_xlfn.XLOOKUP(Measures_Table[[#This Row],[PM Program]],Programs_Active20[ZSBPPROGM (KEY)],Programs_Active20[LONG TEXT])","v":"Operations"}]
[728,123,"Y",43,"EACH","OUTPUT","BLACKBOOK",null,null,null,null,"Operations (123)","Folders Requested by County Clerk Staff","Folders Requested by County Clerk Staff Civil",{"$f":"_xlfn.XLOOKUP(Measures_Table[[#This Row],[PM Program]],Programs_Active20[ZSBPPROGM (KEY)],Programs_Active20[LONG TEXT])","v":"Operations"}]
[729,123,"Y",43,"PERCENT","OUTCOME","NEITHER",null,null,null,null,"Operations (123)","Folders Requested by County Clerk Staff","Folders Requested by County Clerk Staff Misdemeanor",{"$f":"_xlfn.XLOOKUP(Measures_Table[[#This Row],[PM Program]],Programs_Active20[ZSBPPROGM (KEY)],Programs_Active20[LONG TEXT])","v":"Operations"}]
[730,123,"Y",43,"PERCENT","OUTCOME","NEITHER",null,null,null,null,"Operations (123)","Folders Requested by County Clerk Staff","Folders Requested by County Clerk Staff Probate",{"$f":"_xlfn.XLOOKUP(Measures_Table[[#This Row],[PM Program]],Programs_Active20[ZSBPPROGM (KEY)],Programs_Active20[LONG TEXT])","v":"Operations"}]
[731,123,"Y",43,"PERCENT","OUTCOME","NEITHER",null,null,null,null,"Operations (123)","Folders Requested by Customers Civil","Folders Requested by Customers Civil",{"$f":"_xlfn.XLOOKUP(Measures_Table[[#This Row],[PM Program]],Programs_Active20[ZSBPPROGM (KEY)],Programs_Active20[LONG TEXT])","v":"Operations"}]
[733,123,"Y",43,"PERCENT","OUTCOME","NEITHER",null,null,null,null,"Operations (123)","Folders Requested by Customers Misdemean","Folders Requested by Customers Misdemeanor Other",{"$f":"_xlfn.XLOOKUP(Measures_Table[[#This Row],[PM Program]],Programs_Active20[ZSBPPROGM (KEY)],Programs_Active20[LONG TEXT])","v":"Operations"}]
[734,123,"Y",43,"EACH","EFFICIENCY","NEITHER",null,null,null,null,"Operations (123)","Folders Requested by Customers Probate","Folders Requested by Customers Probate",{"$f":"_xlfn.XLOOKUP(Measures_Table[[#This Row],[PM Program]],Programs_Active20[ZSBPPROGM (KEY)],Programs_Active20[LONG TEXT])","v":"Operations"}]
[735,123,"Y",43,"PERCENT","OUTCOME","NEITHER",null,null,null,null,"Operations (123)","Onsite Files Purged to Offsite Civil","Onsite Files Purged to Offsite Civil",{"$f":"_xlfn.XLOOKUP(Measures_Table[[#This Row],[PM Program]],Programs_Active20[ZSBPPROGM (KEY)],Programs_Active20[LONG TEXT])","v":"Operations"}]
[736,123,"Y",43,"EACH","OUTPUT","NEITHER",null,null,null,null,"Operations (123)","Onsite Files Purged to Offsite Misdemean","Onsite Files Purged to Offsite Misdemeanor",{"$f":"_xlfn.XLOOKUP(Measures_Table[[#This Row],[PM Program]],Programs_Active20[ZSBPPROGM (KEY)],Programs_Active20[LONG TEXT])","v":"Operations"}]
[737,123,"Y",43,"PERCENT","OUTCOME","NEITHER",null,null,null,null,"Operations (123)","Onsite Files Purged to Offsite Probate","Onsite Files Purged to Offsite Probate",{"$f":"_xlfn.XLOOKUP(Measures_Table[[#This Row],[PM Program]],Programs_Active20[ZSBPPROGM (KEY)],Programs_Active20[LONG TEXT])","v":"Operations"}]
[738,123,"Y",43,"PERCENT","OUTCOME","NEITHER",null,null,null,null,"Operations (123)","Number of Settings and Announcements","Number of Settings and Announcements",{"$f":"_xlfn.XLOOKUP(Measures_Table[[#This Row],[PM Program]],Programs_Active20[ZSBPPROGM (KEY)],Programs_Active20[LONG TEXT])","v":"Operations"}]
[739,123,"Y",44,"EACH","OUTPUT","BOTH",null,null,null,null,"Trial Courts (123)","Number of Cases Filed","Number of Cases Filed",{"$f":"_xlfn.XLOOKUP(Measures_Table[[#This Row],[PM Program]],Programs_Active20[ZSBPPROGM (KEY)],Programs_Active20[LONG TEXT])","v":"Civil Rights Unit"}]
[740,123,"Y",44,"DAYS","OUTCOME","NEITHER",null,null,null,null,"Trial Courts (123)","Number of Cases Disposed","Number of Cases Disposed",{"$f":"_xlfn.XLOOKUP(Measures_Table[[#This Row],[PM Program]],Programs_Active20[ZSBPPROGM (KEY)],Programs_Active20[LONG TEXT])","v":"Civil Rights Unit"}]
[741,123,"Y",44,"EACH","OUTPUT","BLACKBOOK",null,null,null,null,"Trial Courts (123)","Clearance Rate (Disposition/Filings)","Clearance Rate (Disposition/Filings)",{"$f":"_xlfn.XLOOKUP(Measures_Table[[#This Row],[PM Program]],Programs_Active20[ZSBPPROGM (KEY)],Programs_Active20[LONG TEXT])","v":"Civil Rights Unit"}]
[742,123,"Y",44,"EACH","INPUT","BLACKBOOK",null,null,null,null,"Trial Courts (123)","Percentage of Cases Disposed Over 18 Mon","Percentage of Cases Disposed Over 18 Months Old",{"$f":"_xlfn.XLOOKUP(Measures_Table[[#This Row],[PM Program]],Programs_Active20[ZSBPPROGM (KEY)],Programs_Active20[LONG TEXT])","v":"Civil Rights Unit"}]
[743,123,"Y",44,"EACH","OUTPUT","NEITHER",null,null,null,null,"Trial Courts (123)","Projects Planned/Projects Implemented","Projects Planned/Projects Implemented",{"$f":"_xlfn.XLOOKUP(Measures_Table[[#This Row],[PM Program]],Programs_Active20[ZSBPPROGM (KEY)],Programs_Active20[LONG TEXT])","v":"Civil Rights Unit"}]
[744,123,"Y",43,"EACH","INPUT","BOTH",null,null,null,null,"Operations (123)","Ratio of IT Staff to Users","Ratio of IT Staff to Users",{"$f":"_xlfn.XLOOKUP(Measures_Table[[#This Row],[PM Program]],Programs_Active20[ZSBPPROGM (KEY)],Programs_Active20[LONG TEXT])","v":"Operations"}]
[745,123,"Y",43,"DOLLARS","OUTCOME","BLACKBOOK",null,null,null,null,"Operations (123)","% of calls/incidents transferred to ITS","% of calls/incidents transferred to ITS to resolve",{"$f":"_xlfn.XLOOKUP(Measures_Table[[#This Row],[PM Program]],Programs_Active20[ZSBPPROGM (KEY)],Programs_Active20[LONG TEXT])","v":"Operations"}]
[746,123,"Y",49,"EACH","OUTPUT","BLACKBOOK",null,null,null,null,"Civil Rights Unit (123)","# of Applications/ Supported & Created","# of Applications/ Supported & Created",{"$f":"_xlfn.XLOOKUP(Measures_Table[[#This Row],[PM Program]],Programs_Active20[ZSBPPROGM (KEY)],Programs_Active20[LONG TEXT])","v":"Civil Rights Unit"}]
[747,123,"Y",49,"PERCENT","OUTCOME","NEITHER",null,null,null,null,"Civil Rights Unit (123)","% of helpdesk tickets resolved in 24 hou","% of helpdesk tickets resolved in 24 hours",{"$f":"_xlfn.XLOOKUP(Measures_Table[[#This Row],[PM Program]],Programs_Active20[ZSBPPROGM (KEY)],Programs_Active20[LONG TEXT])","v":"Civil Rights Unit"}]
[748,123,"Y",49,"EACH","OUTPUT","NEITHER",null,null,null,null,"Civil Rights Unit (123)","% of IT training held within 3 days of h","% of IT training held within 3 days of hire date",{"$f":"_xlfn.XLOOKUP(Measures_Table[[#This Row],[PM Program]],Programs_Active20[ZSBPPROGM (KEY)],Programs_Active20[LONG TEXT])","v":"Civil Rights Unit"}]
[749,123,"Y",49,"EACH","OUTPUT","NEITHER",null,null,null,null,"Civil Rights Unit (123)","% of requests responded by HR to employe","% of requests responded by HR to employee within same day",{"$f":"_xlfn.XLOOKUP(Measures_Table[[#This Row],[PM Program]],Programs_Active20[ZSBPPROGM (KEY)],Programs_Active20[LONG TEXT])","v":"Civil Rights Unit"}]
[750,123,"Y",49,"EACH","OUTPUT","NEITHER",null,null,null,null,"Civil Rights Unit (123)","# of requisitions and payables processed","# of requisitions and payables processed",{"$f":"_xlfn.XLOOKUP(Measures_Table[[#This Row],[PM Program]],Programs_Active20[ZSBPPROGM (KEY)],Programs_Active20[LONG TEXT])","v":"Civil Rights Unit"}]
[751,123,"Y",49,"EACH","OUTPUT","ADOPTEDBUD",null,null,null,null,"Civil Rights Unit (123)","% of payables processed within 5 days","% of payables processed within 5 days",{"$f":"_xlfn.XLOOKUP(Measures_Table[[#This Row],[PM Program]],Programs_Active20[ZSBPPROGM (KEY)],Programs_Active20[LONG TEXT])","v":"Civil Rights Unit"}]
[752,123,"Y",49,"EACH","OUTPUT","BLACKBOOK",null,null,null,null,"Civil Rights Unit (123)","Ratio of requestors for goods/svcs to fi","Ratio of requestors for goods/svcs to financial staff",{"$f":"_xlfn.XLOOKUP(Measures_Table[[#This Row],[PM Program]],Programs_Active20[ZSBPPROGM (KEY)],Programs_Active20[LONG TEXT])","v":"Civil Rights Unit"}]
[754,123,"Y",44,"EACH","OUTPUT","BLACKBOOK",null,null,null,null,"Trial Courts (123)","# of personnel actions processed","# of personnel actions processed",{"$f":"_xlfn.XLOOKUP(Measures_Table[[#This Row],[PM Program]],Programs_Active20[ZSBPPROGM (KEY)],Programs_Active20[LONG TEXT])","v":"Civil Rights Unit"}]
[755,123,"Y",44,"EACH","OUTPUT","BOTH",null,null,null,null,"Trial Courts (123)","% of payroll certifications turned in by","% of payroll certifications turned in by deadline",{"$f":"_xlfn.XLOOKUP(Measures_Table[[#This Row],[PM Program]],Programs_Active20[ZSBPPROGM (KEY)],Programs_Active20[LONG TEXT])","v":"Civil Rights Unit"}]
[756,123,"Y",44,"EACH","OUTPUT","BOTH",null,null,null,null,"Trial Courts (123)","% of new hire paperwork completed 4 days","% of new hire paperwork completed 4 days prior to start date",{"$f":"_xlfn.XLOOKUP(Measures_Table[[#This Row],[PM Program]],Programs_Active20[ZSBPPROGM (KEY)],Programs_Active20[LONG TEXT])","v":"Civil Rights Unit"}]
[757,123,"Y",44,"EACH","OUTPUT","NEITHER",null,null,null,null,"Trial Courts (123)","Felony case files prepared","Felony case files prepared",{"$f":"_xlfn.XLOOKUP(Measures_Table[[#This Row],[PM Program]],Programs_Active20[ZSBPPROGM (KEY)],Programs_Active20[LONG TEXT])","v":"Civil Rights Unit"}]
[758,123,"Y",44,"EACH","OUTPUT","NEITHER",null,null,null,null,"Trial Courts (123)","Length of time to set up cases in TechSh","Length of time to set up cases in TechShare",{"$f":"_xlfn.XLOOKUP(Measures_Table[[#This Row],[PM Program]],Programs_Active20[ZSBPPROGM (KEY)],Programs_Active20[LONG TEXT])","v":"Civil Rights Unit"}]
[760,123,"Y",302,"DAYS","OUTCOME","NEITHER",null,null,null,null,"Diversion, Youth Just & Violence Pr(123)","# of pardons and parole protests receive","# of pardons and parole protests received",{"$f":"_xlfn.XLOOKUP(Measures_Table[[#This Row],[PM Program]],Programs_Active20[ZSBPPROGM (KEY)],Programs_Active20[LONG TEXT])","v":{"$error":"#N/A"}}]
[761,123,"Y",302,"PERCENT","OUTCOME","NEITHER",null,null,null,null,"Diversion, Youth Just & Violence Pr(123)","# of pardons and parole letters processe","# of pardons and parole letters processed",{"$f":"_xlfn.XLOOKUP(Measures_Table[[#This Row],[PM Program]],Programs_Active20[ZSBPPROGM (KEY)],Programs_Active20[LONG TEXT])","v":{"$error":"#N/A"}}]
[764,123,"Y",45,"EACH","OUTPUT","BLACKBOOK",null,null,null,null,"Special Victims Unit (123)","Number of appellate briefs filed","Number of appellate briefs filed",{"$f":"_xlfn.XLOOKUP(Measures_Table[[#This Row],[PM Program]],Programs_Active20[ZSBPPROGM (KEY)],Programs_Active20[LONG TEXT])","v":"Special Victims Unit"}]
[765,123,"Y",45,"EACH","OUTPUT","BOTH",null,null,null,null,"Special Victims Unit (123)","Percentage of briefs filed on or before","Percentage of briefs filed on or before second deadline",{"$f":"_xlfn.XLOOKUP(Measures_Table[[#This Row],[PM Program]],Programs_Active20[ZSBPPROGM (KEY)],Programs_Active20[LONG TEXT])","v":"Special Victims Unit"}]
[766,123,"Y",302,"EACH","OUTPUT","NEITHER",null,null,null,null,"Diversion, Youth Just & Violence Pr(123)","Number of habeas applications reviewed","Number of habeas applications reviewed",{"$f":"_xlfn.XLOOKUP(Measures_Table[[#This Row],[PM Program]],Programs_Active20[ZSBPPROGM (KEY)],Programs_Active20[LONG TEXT])","v":{"$error":"#N/A"}}]
[767,123,"Y",302,"EACH","OUTPUT","BLACKBOOK",null,null,null,null,"Diversion, Youth Just & Violence Pr(123)","Number of conviction integrity reviews i","Number of conviction integrity reviews initiated",{"$f":"_xlfn.XLOOKUP(Measures_Table[[#This Row],[PM Program]],Programs_Active20[ZSBPPROGM (KEY)],Programs_Active20[LONG TEXT])","v":{"$error":"#N/A"}}]
[768,123,"Y",45,"EACH","OUTPUT","BLACKBOOK",null,null,null,null,"Special Victims Unit (123)","Number of oral arguments in appellate co","Number of oral arguments in appellate courts",{"$f":"_xlfn.XLOOKUP(Measures_Table[[#This Row],[PM Program]],Programs_Active20[ZSBPPROGM (KEY)],Programs_Active20[LONG TEXT])","v":"Special Victims Unit"}]
[769,123,"Y",45,"EACH","OUTPUT","BOTH",null,null,null,null,"Special Victims Unit (123)","Number of DNA motions to which a respons","Number of DNA motions to which a response was filed",{"$f":"_xlfn.XLOOKUP(Measures_Table[[#This Row],[PM Program]],Programs_Active20[ZSBPPROGM (KEY)],Programs_Active20[LONG TEXT])","v":"Special Victims Unit"}]
[770,123,"Y",44,"EACH","OUTPUT","BOTH",null,null,null,null,"Trial Courts (123)","Number of Legal Consultations by Appella","Number of Legal Consultations by Appellate Attorneys",{"$f":"_xlfn.XLOOKUP(Measures_Table[[#This Row],[PM Program]],Programs_Active20[ZSBPPROGM (KEY)],Programs_Active20[LONG TEXT])","v":"Civil Rights Unit"}]
[771,123,"Y",44,"EACH","OUTPUT","BOTH",null,null,null,null,"Trial Courts (123)","Number of Hours -Legal consultations by","Number of Hours -Legal consultations by Appellate Attorneys",{"$f":"_xlfn.XLOOKUP(Measures_Table[[#This Row],[PM Program]],Programs_Active20[ZSBPPROGM (KEY)],Programs_Active20[LONG TEXT])","v":"Civil Rights Unit"}]
[772,123,"Y",44,"EACH","OUTPUT","NEITHER",null,null,null,null,"Trial Courts (123)","# of jury trials","# of jury trials",{"$f":"_xlfn.XLOOKUP(Measures_Table[[#This Row],[PM Program]],Programs_Active20[ZSBPPROGM (KEY)],Programs_Active20[LONG TEXT])","v":"Civil Rights Unit"}]
[773,123,"Y",44,"DAYS","OUTCOME","NEITHER",null,null,null,null,"Trial Courts (123)","# of dispositions","# of dispositions",{"$f":"_xlfn.XLOOKUP(Measures_Table[[#This Row],[PM Program]],Programs_Active20[ZSBPPROGM (KEY)],Programs_Active20[LONG TEXT])","v":"Civil Rights Unit"}]
[774,123,"Y",44,"DAYS","OUTCOME","BLACKBOOK",null,null,null,null,"Trial Courts (123)","# of convictions","# of convictions",{"$f":"_xlfn.XLOOKUP(Measures_Table[[#This Row],[PM Program]],Programs_Active20[ZSBPPROGM (KEY)],Programs_Active20[LONG TEXT])","v":"Civil Rights Unit"}]
[775,123,"Y",44,"EACH","OUTCOME","NEITHER",null,null,null,null,"Trial Courts (123)","# of motions to revoke probation","# of motions to revoke probation",{"$f":"_xlfn.XLOOKUP(Measures_Table[[#This Row],[PM Program]],Programs_Active20[ZSBPPROGM (KEY)],Programs_Active20[LONG TEXT])","v":"Civil Rights Unit"}]
[776,123,"Y",44,"EACH","OUTPUT","NEITHER",null,null,null,null,"Trial Courts (123)","# of statements of fact","# of statements of fact",{"$f":"_xlfn.XLOOKUP(Measures_Table[[#This Row],[PM Program]],Programs_Active20[ZSBPPROGM (KEY)],Programs_Active20[LONG TEXT])","v":"Civil Rights Unit"}]
[780,123,"Y",48,"EACH","INPUT","NEITHER",null,null,null,null,"Public Integrity & Complex Crimes (123)","# of child abuse case indictments","# of child abuse case indictments",{"$f":"_xlfn.XLOOKUP(Measures_Table[[#This Row],[PM Program]],Programs_Active20[ZSBPPROGM (KEY)],Programs_Active20[LONG TEXT])","v":"Public Integrity & Complex Crimes\n"}]
[781,123,"Y",48,"EACH","OUTPUT","NEITHER",null,null,null,null,"Public Integrity & Complex Crimes (123)","# of child abuse cases completed","# of child abuse cases completed",{"$f":"_xlfn.XLOOKUP(Measures_Table[[#This Row],[PM Program]],Programs_Active20[ZSBPPROGM (KEY)],Programs_Active20[LONG TEXT])","v":"Public Integrity & Complex Crimes\n"}]
[782,123,"Y",48,"EACH","OUTPUT","NEITHER",null,null,null,null,"Public Integrity & Complex Crimes (123)","# of family violence cases indicted","# of family violence cases indicted",{"$f":"_xlfn.XLOOKUP(Measures_Table[[#This Row],[PM Program]],Programs_Active20[ZSBPPROGM (KEY)],Programs_Active20[LONG TEXT])","v":"Public Integrity & Complex Crimes\n"}]
[783,123,"Y",48,"EACH","OUTPUT","NEITHER",null,null,null,null,"Public Integrity & Complex Crimes (123)","# of family violence cases completed","# of family violence cases completed",{"$f":"_xlfn.XLOOKUP(Measures_Table[[#This Row],[PM Program]],Programs_Active20[ZSBPPROGM (KEY)],Programs_Active20[LONG TEXT])","v":"Public Integrity & Complex Crimes\n"}]
[784,123,"Y",48,"DOLLARS","OUTCOME","NEITHER",null,null,null,null,"Public Integrity & Complex Crimes (123)","# of juvenile petitions filed","# of juvenile petitions filed",{"$f":"_xlfn.XLOOKUP(Measures_Table[[#This Row],[PM Program]],Programs_Active20[ZSBPPROGM (KEY)],Programs_Active20[LONG TEXT])","v":"Public Integrity & Complex Crimes\n"}]
[785,123,"Y",48,"EACH","INPUT","BOTH",null,null,null,null,"Public Integrity & Complex Crimes (123)","# of juvenile dispositions","# of juvenile dispositions",{"$f":"_xlfn.XLOOKUP(Measures_Table[[#This Row],[PM Program]],Programs_Active20[ZSBPPROGM (KEY)],Programs_Active20[LONG TEXT])","v":"Public Integrity & Complex Crimes\n"}]
[786,123,"Y",48,"EACH","OUTPUT","NEITHER",null,null,null,null,"Public Integrity & Complex Crimes (123)","# of civil petitions filed","# of civil petitions filed",{"$f":"_xlfn.XLOOKUP(Measures_Table[[#This Row],[PM Program]],Programs_Active20[ZSBPPROGM (KEY)],Programs_Active20[LONG TEXT])","v":"Public Integrity & Complex Crimes\n"}]
[787,123,"Y",48,"EACH","OUTPUT","NEITHER",null,null,null,null,"Public Integrity & Complex Crimes (123)","# of civil hearings conducted","# of civil hearings conducted",{"$f":"_xlfn.XLOOKUP(Measures_Table[[#This Row],[PM Program]],Programs_Active20[ZSBPPROGM (KEY)],Programs_Active20[LONG TEXT])","v":"Public Integrity & Complex Crimes\n"}]
[788,123,"Y",48,"EACH","OUTPUT","BOTH",null,null,null,null,"Public Integrity & Complex Crimes (123)","# of cases received","# of cases received",{"$f":"_xlfn.XLOOKUP(Measures_Table[[#This Row],[PM Program]],Programs_Active20[ZSBPPROGM (KEY)],Programs_Active20[LONG TEXT])","v":"Public Integrity & Complex Crimes\n"}]
[789,123,"Y",48,"DOLLARS","OUTCOME","NEITHER",null,null,null,null,"Public Integrity & Complex Crimes (123)","# of cases presented to grand jury","# of cases presented to grand jury",{"$f":"_xlfn.XLOOKUP(Measures_Table[[#This Row],[PM Program]],Programs_Active20[ZSBPPROGM (KEY)],Programs_Active20[LONG TEXT])","v":"Public Integrity & Complex Crimes\n"}]
[790,123,"Y",48,"EACH","OUTPUT","NEITHER",null,null,null,null,"Public Integrity & Complex Crimes (123)","# of informations filed","# of informations filed",{"$f":"_xlfn.XLOOKUP(Measures_Table[[#This Row],[PM Program]],Programs_Active20[ZSBPPROGM (KEY)],Programs_Active20[LONG TEXT])","v":"Public Integrity & Complex Crimes\n"}]
[791,123,"Y",48,"EACH","OUTPUT","NEITHER",null,null,null,null,"Public Integrity & Complex Crimes (123)","Avg # of days bt. date received and indi","Avg # of days bt. date received and indictment on all cases",{"$f":"_xlfn.XLOOKUP(Measures_Table[[#This Row],[PM Program]],Programs_Active20[ZSBPPROGM (KEY)],Programs_Active20[LONG TEXT])","v":"Public Integrity & Complex Crimes\n"}]
[792,123,"Y",48,"DOLLARS","OUTPUT","NEITHER",null,null,null,null,"Public Integrity & Complex Crimes (123)","Avg days b/t date received and informati","Avg days b/t date received and information on all cases",{"$f":"_xlfn.XLOOKUP(Measures_Table[[#This Row],[PM Program]],Programs_Active20[ZSBPPROGM (KEY)],Programs_Active20[LONG TEXT])","v":"Public Integrity & Complex Crimes\n"}]
[793,123,"Y",49,"EACH","INPUT","BOTH",null,null,null,null,"Civil Rights Unit (123)","Avg # of cases presented per attorney","Avg # of cases presented per attorney",{"$f":"_xlfn.XLOOKUP(Measures_Table[[#This Row],[PM Program]],Programs_Active20[ZSBPPROGM (KEY)],Programs_Active20[LONG TEXT])","v":"Civil Rights Unit"}]
[794,123,"Y",49,"EACH","OUTPUT","BOTH",null,null,null,null,"Civil Rights Unit (123)","# of Mobile Device Warrants and Orders","# of Mobile Device Warrants and Orders",{"$f":"_xlfn.XLOOKUP(Measures_Table[[#This Row],[PM Program]],Programs_Active20[ZSBPPROGM (KEY)],Programs_Active20[LONG TEXT])","v":"Civil Rights Unit"}]
[797,123,"Y",48,"EACH","INPUT","BLACKBOOK",null,null,null,null,"Public Integrity & Complex Crimes (123)","% of Intake Investigative Tasks complete","% of Intake Investigative Tasks completed within 5 days",{"$f":"_xlfn.XLOOKUP(Measures_Table[[#This Row],[PM Program]],Programs_Active20[ZSBPPROGM (KEY)],Programs_Active20[LONG TEXT])","v":"Public Integrity & Complex Crimes\n"}]
[798,123,"Y",302,"DAYS","OUTCOME","NEITHER",null,null,null,null,"Diversion, Youth Just & Violence Pr(123)","WCCU case referrals & complaints receive","WCCU case referrals & complaints received",{"$f":"_xlfn.XLOOKUP(Measures_Table[[#This Row],[PM Program]],Programs_Active20[ZSBPPROGM (KEY)],Programs_Active20[LONG TEXT])","v":{"$error":"#N/A"}}]
[799,123,"Y",302,"DAYS","OUTCOME","NEITHER",null,null,null,null,"Diversion, Youth Just & Violence Pr(123)","WCCU cases opened","WCCU cases opened",{"$f":"_xlfn.XLOOKUP(Measures_Table[[#This Row],[PM Program]],Programs_Active20[ZSBPPROGM (KEY)],Programs_Active20[LONG TEXT])","v":{"$error":"#N/A"}}]
[800,123,"Y",302,"DAYS","OUTCOME","NEITHER",null,null,null,null,"Diversion, Youth Just & Violence Pr(123)","WCCU cases filed in court","WCCU cases filed in court",{"$f":"_xlfn.XLOOKUP(Measures_Table[[#This Row],[PM Program]],Programs_Active20[ZSBPPROGM (KEY)],Programs_Active20[LONG TEXT])","v":{"$error":"#N/A"}}]
[801,123,"Y",302,"DAYS","OUTCOME","NEITHER",null,null,null,null,"Diversion, Youth Just & Violence Pr(123)","WCCU cases resolved","WCCU cases resolved",{"$f":"_xlfn.XLOOKUP(Measures_Table[[#This Row],[PM Program]],Programs_Active20[ZSBPPROGM (KEY)],Programs_Active20[LONG TEXT])","v":{"$error":"#N/A"}}]
[802,123,"Y",302,"DAYS","OUTCOME","NEITHER",null,null,null,null,"Diversion, Youth Just & Violence Pr(123)","WCCU restitution ordered","WCCU restitution ordered",{"$f":"_xlfn.XLOOKUP(Measures_Table[[#This Row],[PM Program]],Programs_Active20[ZSBPPROGM (KEY)],Programs_Active20[LONG TEXT])","v":{"$error":"#N/A"}}]
[803,123,"Y",302,"EACH","OUTPUT","NEITHER",null,null,null,null,"Diversion, Youth Just & Violence Pr(123)","PIU cases & complaints received","PIU cases & complaints received",{"$f":"_xlfn.XLOOKUP(Measures_Table[[#This Row],[PM Program]],Programs_Active20[ZSBPPROGM (KEY)],Programs_Active20[LONG TEXT])","v":{"$error":"#N/A"}}]
[804,123,"Y",302,"EACH","OUTPUT","NEITHER",null,null,null,null,"Diversion, Youth Just & Violence Pr(123)","PIU cases opened","PIU cases opened",{"$f":"_xlfn.XLOOKUP(Measures_Table[[#This Row],[PM Program]],Programs_Active20[ZSBPPROGM (KEY)],Programs_Active20[LONG TEXT])","v":{"$error":"#N/A"}}]
[808,123,"Y",48,"DOLLARS","OUTCOME","NEITHER",null,null,null,null,"Public Integrity & Complex Crimes (123)","Asset forfeiture petitions initiated","Asset forfeiture petitions initiated\n",{"$f":"_xlfn.XLOOKUP(Measures_Table[[#This Row],[PM Program]],Programs_Active20[ZSBPPROGM (KEY)],Programs_Active20[LONG TEXT])","v":"Public Integrity & Complex Crimes\n"}]
[809,123,"Y",307,"EACH","OUTPUT","NEITHER",null,null,null,null,"Victim Services (123)","Asset forfeiture cases resolved","Asset forfeiture cases resolved",{"$f":"_xlfn.XLOOKUP(Measures_Table[[#This Row],[PM Program]],Programs_Active20[ZSBPPROGM (KEY)],Programs_Active20[LONG TEXT])","v":"Trial Courts"}]
[810,123,"Y",307,"EACH","OUTPUT","BOTH",null,null,null,null,"Victim Services (123)","Total Amount of Assets Forfeited","Total Amount of Assets Forfeited",{"$f":"_xlfn.XLOOKUP(Measures_Table[[#This Row],[PM Program]],Programs_Active20[ZSBPPROGM (KEY)],Programs_Active20[LONG TEXT])","v":"Trial Courts"}]
[811,123,"Y",307,"EACH","EFFICIENCY","NEITHER",null,null,null,null,"Victim Services (123)","Civil Rights investigations opened","Civil Rights investigations opened\n",{"$f":"_xlfn.XLOOKUP(Measures_Table[[#This Row],[PM Program]],Programs_Active20[ZSBPPROGM (KEY)],Programs_Active20[LONG TEXT])","v":"Trial Courts"}]
[812,124,"Y",50,"EACH","INPUT","NEITHER",null,null,null,null,"District Courts Division (124)","Civil Rights investigations presented to","Civil Rights investigations presented to a GJ\n",{"$f":"_xlfn.XLOOKUP(Measures_Table[[#This Row],[PM Program]],Programs_Active20[ZSBPPROGM (KEY)],Programs_Active20[LONG TEXT])","v":"District Courts Division"}]
[813,124,"Y",50,"EACH","INPUT","BLACKBOOK",null,null,null,null,"District Courts Division (124)","In-Custody death investigations received","In-Custody death investigations received",{"$f":"_xlfn.XLOOKUP(Measures_Table[[#This Row],[PM Program]],Programs_Active20[ZSBPPROGM (KEY)],Programs_Active20[LONG TEXT])","v":"District Courts Division"}]
[814,124,"Y",50,"EACH","INPUT","BOTH",null,null,null,null,"District Courts Division (124)","In-Custody death investigations presente","In-Custody death investigations presented to a GJ",{"$f":"_xlfn.XLOOKUP(Measures_Table[[#This Row],[PM Program]],Programs_Active20[ZSBPPROGM (KEY)],Programs_Active20[LONG TEXT])","v":"District Courts Division"}]
[815,124,"Y",50,"EACH","INPUT","NEITHER",null,null,null,null,"District Courts Division (124)","# of open records requests","# of open records requests",{"$f":"_xlfn.XLOOKUP(Measures_Table[[#This Row],[PM Program]],Programs_Active20[ZSBPPROGM (KEY)],Programs_Active20[LONG TEXT])","v":"District Courts Division"}]
[816,124,"Y",50,"EACH","OUTPUT","BOTH",null,null,null,null,"District Courts Division (124)","Avg length of stay in jail until disposi","Avg length of stay in jail until disposition (1st Deg. MH)",{"$f":"_xlfn.XLOOKUP(Measures_Table[[#This Row],[PM Program]],Programs_Active20[ZSBPPROGM (KEY)],Programs_Active20[LONG TEXT])","v":"District Courts Division"}]
[817,124,"Y",50,"EACH","OUTPUT","BOTH",null,null,null,null,"District Courts Division (124)","Avg length of stay in jail until disposi","Avg length of stay in jail until disposition (2nd Deg. MH)",{"$f":"_xlfn.XLOOKUP(Measures_Table[[#This Row],[PM Program]],Programs_Active20[ZSBPPROGM (KEY)],Programs_Active20[LONG TEXT])","v":"District Courts Division"}]
[818,124,"Y",50,"DOLLARS","OUTPUT","NEITHER",null,null,null,null,"District Courts Division (124)","Avg length of stay in jail until disposi","Avg length of stay in jail until disposition (3rd Deg. MH)",{"$f":"_xlfn.XLOOKUP(Measures_Table[[#This Row],[PM Program]],Programs_Active20[ZSBPPROGM (KEY)],Programs_Active20[LONG TEXT])","v":"District Courts Division"}]
[819,124,"Y",50,"EACH","EFFICIENCY","BLACKBOOK",null,null,null,null,"District Courts Division (124)","Avg length of stay in jail until disposi","Avg length of stay in jail until disposition (State jail MH)",{"$f":"_xlfn.XLOOKUP(Measures_Table[[#This Row],[PM Program]],Programs_Active20[ZSBPPROGM (KEY)],Programs_Active20[LONG TEXT])","v":"District Courts Division"}]
[820,124,"Y",50,"PERCENT","EFFICIENCY","BOTH",null,null,null,null,"District Courts Division (124)","Avg length of stay in jail until disposi","Avg length of stay in jail until disposition (All MH)",{"$f":"_xlfn.XLOOKUP(Measures_Table[[#This Row],[PM Program]],Programs_Active20[ZSBPPROGM (KEY)],Programs_Active20[LONG TEXT])","v":"District Courts Division"}]
[821,124,"Y",50,"EACH","EFFICIENCY","NEITHER",null,null,null,null,"District Courts Division (124)","# of mental health felony defendants han","# of mental health felony defendants handled by the team",{"$f":"_xlfn.XLOOKUP(Measures_Table[[#This Row],[PM Program]],Programs_Active20[ZSBPPROGM (KEY)],Programs_Active20[LONG TEXT])","v":"District Courts Division"}]
[822,124,"Y",50,"PERCENT","OUTCOME","BOTH",null,null,null,null,"District Courts Division (124)","# of mental health felony cases handled","# of mental health felony cases handled by the team",{"$f":"_xlfn.XLOOKUP(Measures_Table[[#This Row],[PM Program]],Programs_Active20[ZSBPPROGM (KEY)],Programs_Active20[LONG TEXT])","v":"District Courts Division"}]
[823,124,"Y",50,"PERCENT","OUTCOME","NEITHER",null,null,null,null,"District Courts Division (124)","Environmental Case Referrals and Complai","Environmental Case Referrals and Complaints Received",{"$f":"_xlfn.XLOOKUP(Measures_Table[[#This Row],[PM Program]],Programs_Active20[ZSBPPROGM (KEY)],Programs_Active20[LONG TEXT])","v":"District Courts Division"}]
[824,124,"Y",50,"PERCENT","OUTCOME","BLACKBOOK",null,null,null,null,"District Courts Division (124)","Environmental Cases Resolved","Environmental Cases Resolved",{"$f":"_xlfn.XLOOKUP(Measures_Table[[#This Row],[PM Program]],Programs_Active20[ZSBPPROGM (KEY)],Programs_Active20[LONG TEXT])","v":"District Courts Division"}]
[825,124,"Y",50,"Y/N","OUTCOME","BLACKBOOK",null,null,null,null,"District Courts Division (124)","Environmental Fines Ordered and Collecte","Environmental Fines Ordered and Collected",{"$f":"_xlfn.XLOOKUP(Measures_Table[[#This Row],[PM Program]],Programs_Active20[ZSBPPROGM (KEY)],Programs_Active20[LONG TEXT])","v":"District Courts Division"}]
[826,124,"Y",51,"EACH","INPUT","NEITHER",null,null,null,null,"County Courts Division (124)","Environmental Restitution Ordered and Co","Environmental Restitution Ordered and Collected",{"$f":"_xlfn.XLOOKUP(Measures_Table[[#This Row],[PM Program]],Programs_Active20[ZSBPPROGM (KEY)],Programs_Active20[LONG TEXT])","v":"County Courts Division"}]
[827,124,"Y",51,"EACH","INPUT","BLACKBOOK",null,null,null,null,"County Courts Division (124)","Number of times made contact with victim","Number of times made contact with victims or witnesses",{"$f":"_xlfn.XLOOKUP(Measures_Table[[#This Row],[PM Program]],Programs_Active20[ZSBPPROGM (KEY)],Programs_Active20[LONG TEXT])","v":"County Courts Division"}]
[828,124,"Y",51,"EACH","INPUT","BOTH",null,null,null,null,"County Courts Division (124)","# Victims served (number of victims assi","# Victims served (number of victims assisted)",{"$f":"_xlfn.XLOOKUP(Measures_Table[[#This Row],[PM Program]],Programs_Active20[ZSBPPROGM (KEY)],Programs_Active20[LONG TEXT])","v":"County Courts Division"}]
[829,124,"Y",51,"EACH","INPUT","NEITHER",null,null,null,null,"County Courts Division (124)","Ratio of services to victims & witnesses","Ratio of services to victims & witnesses",{"$f":"_xlfn.XLOOKUP(Measures_Table[[#This Row],[PM Program]],Programs_Active20[ZSBPPROGM (KEY)],Programs_Active20[LONG TEXT])","v":"County Courts Division"}]
[830,124,"Y",51,"EACH","OUTPUT","BOTH",null,null,null,null,"County Courts Division (124)","Total # of district courts","Total # of district courts",{"$f":"_xlfn.XLOOKUP(Measures_Table[[#This Row],[PM Program]],Programs_Active20[ZSBPPROGM (KEY)],Programs_Active20[LONG TEXT])","v":"County Courts Division"}]
[831,124,"Y",51,"EACH","OUTPUT","NEITHER",null,null,null,null,"County Courts Division (124)","Cases pending at  the end of the fiscal","Cases pending at  the end of the fiscal year",{"$f":"_xlfn.XLOOKUP(Measures_Table[[#This Row],[PM Program]],Programs_Active20[ZSBPPROGM (KEY)],Programs_Active20[LONG TEXT])","v":"County Courts Division"}]
[832,124,"Y",51,"EACH","OUTPUT","BOTH",null,null,null,null,"County Courts Division (124)","Cases reaching the dockets","Cases reaching the dockets",{"$f":"_xlfn.XLOOKUP(Measures_Table[[#This Row],[PM Program]],Programs_Active20[ZSBPPROGM (KEY)],Programs_Active20[LONG TEXT])","v":"County Courts Division"}]
[833,124,"Y",51,"DOLLARS","OUTPUT","NEITHER",null,null,null,null,"County Courts Division (124)","Cases on dockets each September 30th","Cases on dockets each September 30th",{"$f":"_xlfn.XLOOKUP(Measures_Table[[#This Row],[PM Program]],Programs_Active20[ZSBPPROGM (KEY)],Programs_Active20[LONG TEXT])","v":"County Courts Division"}]
[834,124,"Y",51,"EACH","EFFICIENCY","BLACKBOOK",null,null,null,null,"County Courts Division (124)","Total # of dispositions","Total # of dispositions",{"$f":"_xlfn.XLOOKUP(Measures_Table[[#This Row],[PM Program]],Programs_Active20[ZSBPPROGM (KEY)],Programs_Active20[LONG TEXT])","v":"County Courts Division"}]
[835,124,"Y",51,"PERCENT","EFFICIENCY","BOTH",null,null,null,null,"County Courts Division (124)","# of cases in specialty court programs/d","# of cases in specialty court programs/dockets",{"$f":"_xlfn.XLOOKUP(Measures_Table[[#This Row],[PM Program]],Programs_Active20[ZSBPPROGM (KEY)],Programs_Active20[LONG TEXT])","v":"County Courts Division"}]
[836,124,"Y",51,"EACH","EFFICIENCY","NEITHER",null,null,null,null,"County Courts Division (124)","Amount spent on indigent attorney fees","Amount spent on indigent attorney fees",{"$f":"_xlfn.XLOOKUP(Measures_Table[[#This Row],[PM Program]],Programs_Active20[ZSBPPROGM (KEY)],Programs_Active20[LONG TEXT])","v":"County Courts Division"}]
[837,124,"Y",51,"PERCENT","OUTCOME","NEITHER",null,null,null,null,"County Courts Division (124)","# Cases disposed ÷ # district courts","# Cases disposed ÷ # district courts",{"$f":"_xlfn.XLOOKUP(Measures_Table[[#This Row],[PM Program]],Programs_Active20[ZSBPPROGM (KEY)],Programs_Active20[LONG TEXT])","v":"County Courts Division"}]
[838,124,"Y",51,"PERCENT","OUTCOME","NEITHER",null,null,null,null,"County Courts Division (124)","Clearance rate","Clearance rate",{"$f":"_xlfn.XLOOKUP(Measures_Table[[#This Row],[PM Program]],Programs_Active20[ZSBPPROGM (KEY)],Programs_Active20[LONG TEXT])","v":"County Courts Division"}]
[839,124,"Y",51,"PERCENT","OUTCOME","NEITHER",null,null,null,null,"County Courts Division (124)","# Cases on the docket each Sep. 30 ÷ # J","# Cases on the docket each Sep. 30 ÷ # Judges",{"$f":"_xlfn.XLOOKUP(Measures_Table[[#This Row],[PM Program]],Programs_Active20[ZSBPPROGM (KEY)],Programs_Active20[LONG TEXT])","v":"County Courts Division"}]
[840,124,"Y",51,"PERCENT","OUTCOME","BLACKBOOK",null,null,null,null,"County Courts Division (124)","% of cases disposed w/in 180 days","% of cases disposed w/in 180 days",{"$f":"_xlfn.XLOOKUP(Measures_Table[[#This Row],[PM Program]],Programs_Active20[ZSBPPROGM (KEY)],Programs_Active20[LONG TEXT])","v":"County Courts Division"}]
[841,124,"Y",51,"Y/N","OUTCOME","BLACKBOOK",null,null,null,null,"County Courts Division (124)","% of appointments made w/in stautory tim","% of appointments made w/in stautory time frame",{"$f":"_xlfn.XLOOKUP(Measures_Table[[#This Row],[PM Program]],Programs_Active20[ZSBPPROGM (KEY)],Programs_Active20[LONG TEXT])","v":"County Courts Division"}]
[842,114,"Y",111,"EACH","OUTPUT","BLACKBOOK",null,null,null,null,"Custodial Operations (114)","% of attorneys evaluated competency","% of attorneys evaluated competency",{"$f":"_xlfn.XLOOKUP(Measures_Table[[#This Row],[PM Program]],Programs_Active20[ZSBPPROGM (KEY)],Programs_Active20[LONG TEXT])","v":"Custodial Operations"}]
[843,114,"Y",111,"EACH","OUTPUT","BLACKBOOK",null,null,null,null,"Custodial Operations (114)","Clearance Ratio  > 90% (Y=1, N=0)","Clearance Ratio  > 90% (Y=1, N=0)",{"$f":"_xlfn.XLOOKUP(Measures_Table[[#This Row],[PM Program]],Programs_Active20[ZSBPPROGM (KEY)],Programs_Active20[LONG TEXT])","v":"Custodial Operations"}]
[844,114,"Y",111,"EACH","OUTPUT","BLACKBOOK",null,null,null,null,"Custodial Operations (114)","Total # of County Courts","Total # of County Courts",{"$f":"_xlfn.XLOOKUP(Measures_Table[[#This Row],[PM Program]],Programs_Active20[ZSBPPROGM (KEY)],Programs_Active20[LONG TEXT])","v":"Custodial Operations"}]
[845,114,"Y",112,"EACH","OUTPUT","BLACKBOOK",null,null,null,null,"Groundskeeping (114)","Cases pending at the end of each fiscal","Cases pending at the end of each fiscal year",{"$f":"_xlfn.XLOOKUP(Measures_Table[[#This Row],[PM Program]],Programs_Active20[ZSBPPROGM (KEY)],Programs_Active20[LONG TEXT])","v":"Groundskeeping"}]
[846,114,"Y",112,"EACH","OUTPUT","BLACKBOOK",null,null,null,null,"Groundskeeping (114)","Cases reaching the dockets","Cases reaching the dockets",{"$f":"_xlfn.XLOOKUP(Measures_Table[[#This Row],[PM Program]],Programs_Active20[ZSBPPROGM (KEY)],Programs_Active20[LONG TEXT])","v":"Groundskeeping"}]
[847,114,"Y",112,"EACH","OUTPUT","ADOPTEDBUD",null,null,null,null,"Groundskeeping (114)","Cases set on dockets each September 30th","Cases set on dockets each September 30th",{"$f":"_xlfn.XLOOKUP(Measures_Table[[#This Row],[PM Program]],Programs_Active20[ZSBPPROGM (KEY)],Programs_Active20[LONG TEXT])","v":"Groundskeeping"}]
[848,114,"Y",112,"DAYS","OUTPUT","ADOPTEDBUD",null,null,null,null,"Groundskeeping (114)","Total # of dispositions","Total # of dispositions",{"$f":"_xlfn.XLOOKUP(Measures_Table[[#This Row],[PM Program]],Programs_Active20[ZSBPPROGM (KEY)],Programs_Active20[LONG TEXT])","v":"Groundskeeping"}]
[849,114,"Y",112,"DAYS","OUTPUT","BLACKBOOK",null,null,null,null,"Groundskeeping (114)","# of defendants receiving a ct. appt. at","# of defendants receiving a ct. appt. attorney at JRD",{"$f":"_xlfn.XLOOKUP(Measures_Table[[#This Row],[PM Program]],Programs_Active20[ZSBPPROGM (KEY)],Programs_Active20[LONG TEXT])","v":"Groundskeeping"}]
[850,114,"Y",113,"PERCENT","EFFICIENCY","ADOPTEDBUD",null,null,null,null,"Maintenance & Operations (114)","# of cases in specialty court programs/d","# of cases in specialty court programs/dockets",{"$f":"_xlfn.XLOOKUP(Measures_Table[[#This Row],[PM Program]],Programs_Active20[ZSBPPROGM (KEY)],Programs_Active20[LONG TEXT])","v":"Maintenance & Operations"}]
[851,114,"Y",113,"PERCENT","EFFICIENCY","BLACKBOOK",null,null,null,null,"Maintenance & Operations (114)","Amount spent on indigent attorney fees","Amount spent on indigent attorney fees",{"$f":"_xlfn.XLOOKUP(Measures_Table[[#This Row],[PM Program]],Programs_Active20[ZSBPPROGM (KEY)],Programs_Active20[LONG TEXT])","v":"Maintenance & Operations"}]
[852,114,"Y",113,"PERCENT","EFFICIENCY","BLACKBOOK",null,null,null,null,"Maintenance & Operations (114)","# Cases disposed ÷ # Courts","# Cases disposed ÷ # Courts",{"$f":"_xlfn.XLOOKUP(Measures_Table[[#This Row],[PM Program]],Programs_Active20[ZSBPPROGM (KEY)],Programs_Active20[LONG TEXT])","v":"Maintenance & Operations"}]
[853,114,"Y",113,"EACH","OUTPUT","ADOPTEDBUD",null,null,null,null,"Maintenance & Operations (114)","Clearance rate","Clearance rate",{"$f":"_xlfn.XLOOKUP(Measures_Table[[#This Row],[PM Program]],Programs_Active20[ZSBPPROGM (KEY)],Programs_Active20[LONG TEXT])","v":"Maintenance & Operations"}]
[854,114,"Y",114,"PERCENT","OUTCOME","ADOPTEDBUD",null,null,null,null,"Planning, Design & Construction (114)","# Cases on the docket each Sep. 30 ÷ # C","# Cases on the docket each Sep. 30 ÷ # Courts",{"$f":"_xlfn.XLOOKUP(Measures_Table[[#This Row],[PM Program]],Programs_Active20[ZSBPPROGM (KEY)],Programs_Active20[LONG TEXT])","v":"Planning, Design and Construction"}]
[855,114,"Y",114,"PERCENT","OUTCOME","BLACKBOOK",null,null,null,null,"Planning, Design & Construction (114)","% of jail cases disposed at JRD","% of jail cases disposed at JRD",{"$f":"_xlfn.XLOOKUP(Measures_Table[[#This Row],[PM Program]],Programs_Active20[ZSBPPROGM (KEY)],Programs_Active20[LONG TEXT])","v":"Planning, Design and Construction"}]
[856,114,"Y",114,"PERCENT","OUTCOME","BLACKBOOK",null,null,null,null,"Planning, Design & Construction (114)","% of all cases disposed w/in 90 days","% of all cases disposed w/in 90 days",{"$f":"_xlfn.XLOOKUP(Measures_Table[[#This Row],[PM Program]],Programs_Active20[ZSBPPROGM (KEY)],Programs_Active20[LONG TEXT])","v":"Planning, Design and Construction"}]
[857,114,"Y",114,"PERCENT","OUTCOME","ADOPTEDBUD",null,null,null,null,"Planning, Design & Construction (114)","% of appointments made w/in stautory tim","% of appointments made w/in stautory time frame",{"$f":"_xlfn.XLOOKUP(Measures_Table[[#This Row],[PM Program]],Programs_Active20[ZSBPPROGM (KEY)],Programs_Active20[LONG TEXT])","v":"Planning, Design and Construction"}]
[858,114,"Y",114,"PERCENT","OUTCOME","ADOPTEDBUD",null,null,null,null,"Planning, Design & Construction (114)","% of attorneys evaluated for competency","% of attorneys evaluated for competency",{"$f":"_xlfn.XLOOKUP(Measures_Table[[#This Row],[PM Program]],Programs_Active20[ZSBPPROGM (KEY)],Programs_Active20[LONG TEXT])","v":"Planning, Design and Construction"}]
[859,114,"Y",114,"PERCENT","OUTCOME","BLACKBOOK",null,null,null,null,"Planning, Design & Construction (114)","Clearance Ratio  > 90% (Y=1, N=0)","Clearance Ratio  > 90% (Y=1, N=0)",{"$f":"_xlfn.XLOOKUP(Measures_Table[[#This Row],[PM Program]],Programs_Active20[ZSBPPROGM (KEY)],Programs_Active20[LONG TEXT])","v":"Planning, Design and Construction"}]
[860,114,"Y",114,"PERCENT","OUTCOME","BLACKBOOK",null,null,null,null,"Planning, Design & Construction (114)","Total facility SF cleaned","Total facility SF cleaned",{"$f":"_xlfn.XLOOKUP(Measures_Table[[#This Row],[PM Program]],Programs_Active20[ZSBPPROGM (KEY)],Programs_Active20[LONG TEXT])","v":"Planning, Design and Construction"}]
[861,114,"Y",115,"PERCENT","EFFICIENCY","BLACKBOOK",null,null,null,null,"Administrative (114)","Custodian work orders completed","Custodian work orders completed",{"$f":"_xlfn.XLOOKUP(Measures_Table[[#This Row],[PM Program]],Programs_Active20[ZSBPPROGM (KEY)],Programs_Active20[LONG TEXT])","v":"Administrative"}]
[862,114,"Y",115,"PERCENT","EFFICIENCY","ADOPTEDBUD",null,null,null,null,"Administrative (114)","Move work orders completed","Move work orders completed",{"$f":"_xlfn.XLOOKUP(Measures_Table[[#This Row],[PM Program]],Programs_Active20[ZSBPPROGM (KEY)],Programs_Active20[LONG TEXT])","v":"Administrative"}]
[863,114,"Y",115,"PERCENT","EFFICIENCY","BLACKBOOK",null,null,null,null,"Administrative (114)","Properties Maintained","Properties Maintained",{"$f":"_xlfn.XLOOKUP(Measures_Table[[#This Row],[PM Program]],Programs_Active20[ZSBPPROGM (KEY)],Programs_Active20[LONG TEXT])","v":"Administrative"}]
[864,114,"Y",115,"PERCENT","EFFICIENCY","BLACKBOOK",null,null,null,null,"Administrative (114)","Water Quality & Detention Ponds Maintain","Water Quality & Detention Ponds Maintained",{"$f":"_xlfn.XLOOKUP(Measures_Table[[#This Row],[PM Program]],Programs_Active20[ZSBPPROGM (KEY)],Programs_Active20[LONG TEXT])","v":"Administrative"}]
[865,114,"Y",115,"PERCENT","EFFICIENCY","BLACKBOOK",null,null,null,null,"Administrative (114)","Work Orders Completed","Work Orders Completed",{"$f":"_xlfn.XLOOKUP(Measures_Table[[#This Row],[PM Program]],Programs_Active20[ZSBPPROGM (KEY)],Programs_Active20[LONG TEXT])","v":"Administrative"}]
[866,114,"Y",115,"PERCENT","EFFICIENCY","BLACKBOOK",null,null,null,null,"Administrative (114)","Average Days to Complete Property Mainte","Average Days to Complete Property Maintenance Cycle",{"$f":"_xlfn.XLOOKUP(Measures_Table[[#This Row],[PM Program]],Programs_Active20[ZSBPPROGM (KEY)],Programs_Active20[LONG TEXT])","v":"Administrative"}]
[867,114,"Y",115,"PERCENT","EFFICIENCY","ADOPTEDBUD",null,null,null,null,"Administrative (114)","Average Days to Complete Routine Work Or","Average Days to Complete Routine Work Orders",{"$f":"_xlfn.XLOOKUP(Measures_Table[[#This Row],[PM Program]],Programs_Active20[ZSBPPROGM (KEY)],Programs_Active20[LONG TEXT])","v":"Administrative"}]
[868,114,"Y",115,"PERCENT","OUTPUT","BLACKBOOK",null,null,null,null,"Administrative (114)","% “Emergency Calls” closed with in 48 ho","% “Emergency Calls” closed with in 48 hours",{"$f":"_xlfn.XLOOKUP(Measures_Table[[#This Row],[PM Program]],Programs_Active20[ZSBPPROGM (KEY)],Programs_Active20[LONG TEXT])","v":"Administrative"}]
[870,114,"Y",113,"PERCENT","EFFICIENCY","BLACKBOOK",null,null,null,null,"Maintenance & Operations (114)","% of “Routine” calls closed within a mon","% of “Routine” calls closed within a month",{"$f":"_xlfn.XLOOKUP(Measures_Table[[#This Row],[PM Program]],Programs_Active20[ZSBPPROGM (KEY)],Programs_Active20[LONG TEXT])","v":"Maintenance & Operations"}]
[871,114,"Y",113,"PERCENT","EFFICIENCY","BLACKBOOK",null,null,null,null,"Maintenance & Operations (114)","Average number of maintenance call in jo","Average number of maintenance call in jobs per month",{"$f":"_xlfn.XLOOKUP(Measures_Table[[#This Row],[PM Program]],Programs_Active20[ZSBPPROGM (KEY)],Programs_Active20[LONG TEXT])","v":"Maintenance & Operations"}]
[874,191,"Y",117,"PERCENT","EFFICIENCY","ADOPTEDBUD",null,null,null,null,"Centralized Utlities (191)","Out-sourced Design Cost Variance","Out-sourced Design Cost Variance",{"$f":"_xlfn.XLOOKUP(Measures_Table[[#This Row],[PM Program]],Programs_Active20[ZSBPPROGM (KEY)],Programs_Active20[LONG TEXT])","v":{"$error":"#N/A"}}]
[886,145,"Y",119,"PERCENT","EFFICIENCY","ADOPTEDBUD",null,null,null,null,"Court Administration (145)","% of personnel forms processed within de","% of personnel forms processed within dept deadlines",{"$f":"_xlfn.XLOOKUP(Measures_Table[[#This Row],[PM Program]],Programs_Active20[ZSBPPROGM (KEY)],Programs_Active20[LONG TEXT])","v":"Court Administration"}]
[893,145,"Y",121,"EACH","EFFICIENCY","ADOPTEDBUD",null,null,null,null,"Detention Services (145)","% of Physical Sec Ops Center Capability","% of Physical Sec Ops Center Capability",{"$f":"_xlfn.XLOOKUP(Measures_Table[[#This Row],[PM Program]],Programs_Active20[ZSBPPROGM (KEY)],Programs_Active20[LONG TEXT])","v":"Detention Services"}]
[907,145,"Y",123,"EACH","INPUT","ADOPTEDBUD",null,null,null,null,"Health Services (145)","Percent increase in annual success rate","Percent increase in annual success rate",{"$f":"_xlfn.XLOOKUP(Measures_Table[[#This Row],[PM Program]],Programs_Active20[ZSBPPROGM (KEY)],Programs_Active20[LONG TEXT])","v":"Health Services"}]
[909,145,"Y",123,"EACH","INPUT","ADOPTEDBUD",null,null,null,null,"Health Services (145)","Number of Detention Hearings","Number of Detention Hearings",{"$f":"_xlfn.XLOOKUP(Measures_Table[[#This Row],[PM Program]],Programs_Active20[ZSBPPROGM (KEY)],Programs_Active20[LONG TEXT])","v":"Health Services"}]
[917,145,"Y",125,"EACH","INPUT","ADOPTEDBUD",null,null,null,null,"Probation Services (145)","Total Number of Assaults","Total Number of Assaults",{"$f":"_xlfn.XLOOKUP(Measures_Table[[#This Row],[PM Program]],Programs_Active20[ZSBPPROGM (KEY)],Programs_Active20[LONG TEXT])","v":"Probation Services"}]
[923,145,"Y",125,"PERCENT","EFFICIENCY","ADOPTEDBUD",null,null,null,null,"Probation Services (145)","Average # of DRO child support probation","Average # of DRO child support probationers/month",{"$f":"_xlfn.XLOOKUP(Measures_Table[[#This Row],[PM Program]],Programs_Active20[ZSBPPROGM (KEY)],Programs_Active20[LONG TEXT])","v":"Probation Services"}]
[928,145,"Y",126,"PERCENT","EFFICIENCY","ADOPTEDBUD",null,null,null,null,"Residential Services (145)","# of Volunteer Hours Served","# of Volunteer Hours Served",{"$f":"_xlfn.XLOOKUP(Measures_Table[[#This Row],[PM Program]],Programs_Active20[ZSBPPROGM (KEY)],Programs_Active20[LONG TEXT])","v":"Residential Services"}]
[930,145,"Y",123,"EACH","INPUT","ADOPTEDBUD",null,null,null,null,"Health Services (145)","Percent who need substance abuse treatme","Percent who need substance abuse treatment",{"$f":"_xlfn.XLOOKUP(Measures_Table[[#This Row],[PM Program]],Programs_Active20[ZSBPPROGM (KEY)],Programs_Active20[LONG TEXT])","v":"Health Services"}]
[931,149,"Y",127,"EACH","OUTPUT","BLACKBOOK",null,null,null,null,"Customer Service (149)","Total Number of Juveniles Medically Asse","Total Number of Juveniles Medically Assessed",{"$f":"_xlfn.XLOOKUP(Measures_Table[[#This Row],[PM Program]],Programs_Active20[ZSBPPROGM (KEY)],Programs_Active20[LONG TEXT])","v":"Customer Service"}]
[932,149,"Y",127,"EACH","OUTPUT","BLACKBOOK",null,null,null,null,"Customer Service (149)","Number served - Case Mgmt","Number served - Case Mgmt",{"$f":"_xlfn.XLOOKUP(Measures_Table[[#This Row],[PM Program]],Programs_Active20[ZSBPPROGM (KEY)],Programs_Active20[LONG TEXT])","v":"Customer Service"}]
[933,149,"Y",127,"EACH","OUTPUT","ADOPTEDBUD",null,null,null,null,"Customer Service (149)","Percent Successfully Discharged - Case M","Percent Successfully Discharged - Case Mgmt",{"$f":"_xlfn.XLOOKUP(Measures_Table[[#This Row],[PM Program]],Programs_Active20[ZSBPPROGM (KEY)],Programs_Active20[LONG TEXT])","v":"Customer Service"}]
[937,149,"Y",298,"EACH","OUTPUT","BLACKBOOK",null,null,null,null,null,"Percent Successfully Discharged - ISP","Percent Successfully Discharged - ISP",{"$f":"_xlfn.XLOOKUP(Measures_Table[[#This Row],[PM Program]],Programs_Active20[ZSBPPROGM (KEY)],Programs_Active20[LONG TEXT])","v":{"$error":"#N/A"}}]
[938,149,"Y",298,"EACH","OUTPUT","BLACKBOOK",null,null,null,null,null,"Number of Juveniles Discharged - Placeme","Number of Juveniles Discharged - Placement",{"$f":"_xlfn.XLOOKUP(Measures_Table[[#This Row],[PM Program]],Programs_Active20[ZSBPPROGM (KEY)],Programs_Active20[LONG TEXT])","v":{"$error":"#N/A"}}]
[939,149,"Y",298,"EACH","OUTPUT","BLACKBOOK",null,null,null,null,null,"Num. of Juveniles in external placement","Number of Juveniles in external placement",{"$f":"_xlfn.XLOOKUP(Measures_Table[[#This Row],[PM Program]],Programs_Active20[ZSBPPROGM (KEY)],Programs_Active20[LONG TEXT])","v":{"$error":"#N/A"}}]
[940,149,"Y",299,"EACH","OUTPUT","BLACKBOOK",null,null,null,null,null,"Percent of Successful Discharges Not Re-","Percent of Successful Discharges Not Re-offending within 1 Year - Placement",{"$f":"_xlfn.XLOOKUP(Measures_Table[[#This Row],[PM Program]],Programs_Active20[ZSBPPROGM (KEY)],Programs_Active20[LONG TEXT])","v":{"$error":"#N/A"}}]
[942,149,"Y",299,"EACH","OUTPUT","BLACKBOOK",null,null,null,null,null,"Number of Juveniles Discharged - Probati","Number of Juveniles Discharged - Probation",{"$f":"_xlfn.XLOOKUP(Measures_Table[[#This Row],[PM Program]],Programs_Active20[ZSBPPROGM (KEY)],Programs_Active20[LONG TEXT])","v":{"$error":"#N/A"}}]
[943,149,"Y",298,"EACH","OUTPUT","ADOPTEDBUD",null,null,null,null,null,"Number of Juveniles Participating - Prob","Number of Juveniles Participating - Probation",{"$f":"_xlfn.XLOOKUP(Measures_Table[[#This Row],[PM Program]],Programs_Active20[ZSBPPROGM (KEY)],Programs_Active20[LONG TEXT])","v":{"$error":"#N/A"}}]
[945,149,"Y",299,"EACH","OUTPUT","BLACKBOOK",null,null,null,null,null,"Pct. successfully discharged - probation","Percent successfully discharged from probation",{"$f":"_xlfn.XLOOKUP(Measures_Table[[#This Row],[PM Program]],Programs_Active20[ZSBPPROGM (KEY)],Programs_Active20[LONG TEXT])","v":{"$error":"#N/A"}}]
[946,149,"Y",298,"EACH","OUTPUT","BLACKBOOK",null,null,null,null,null,"Number of juveniles discharged","Number of juveniles discharged",{"$f":"_xlfn.XLOOKUP(Measures_Table[[#This Row],[PM Program]],Programs_Active20[ZSBPPROGM (KEY)],Programs_Active20[LONG TEXT])","v":{"$error":"#N/A"}}]
[947,149,"Y",299,"EACH","OUTPUT","BLACKBOOK",null,null,null,null,null,"Number of juveniles placed","Number of juveniles placed",{"$f":"_xlfn.XLOOKUP(Measures_Table[[#This Row],[PM Program]],Programs_Active20[ZSBPPROGM (KEY)],Programs_Active20[LONG TEXT])","v":{"$error":"#N/A"}}]
[949,149,"Y",298,"EACH","OUTPUT","BLACKBOOK",null,null,null,null,null,"Percent not re-offending within 1 Year","Percent not re-offending within 1 Year",{"$f":"_xlfn.XLOOKUP(Measures_Table[[#This Row],[PM Program]],Programs_Active20[ZSBPPROGM (KEY)],Programs_Active20[LONG TEXT])","v":{"$error":"#N/A"}}]
[950,149,"Y",299,"EACH","OUTPUT","BLACKBOOK",null,null,null,null,null,"Percent successfully discharged from ISC","Percent successfully discharged from ISC",{"$f":"_xlfn.XLOOKUP(Measures_Table[[#This Row],[PM Program]],Programs_Active20[ZSBPPROGM (KEY)],Programs_Active20[LONG TEXT])","v":{"$error":"#N/A"}}]
[951,149,"Y",128,"PERCENT","OUTCOME","BLACKBOOK",null,null,null,null,"Dev Services & Long Range Planning (149)","Number of juveniles utilizing counselor","Number of juveniles utilizing counselor referrals",{"$f":"_xlfn.XLOOKUP(Measures_Table[[#This Row],[PM Program]],Programs_Active20[ZSBPPROGM (KEY)],Programs_Active20[LONG TEXT])","v":"Development Services and Long Range Planning"}]
[953,149,"Y",298,"PERCENT","OUTCOME","BLACKBOOK",null,null,null,null,null,"# of after hours responses","# of after hours responses",{"$f":"_xlfn.XLOOKUP(Measures_Table[[#This Row],[PM Program]],Programs_Active20[ZSBPPROGM (KEY)],Programs_Active20[LONG TEXT])","v":{"$error":"#N/A"}}]
[954,149,"Y",298,"PERCENT","OUTCOME","BLACKBOOK",null,null,null,null,null,"# of CSR responses completed","# of CSR responses completed",{"$f":"_xlfn.XLOOKUP(Measures_Table[[#This Row],[PM Program]],Programs_Active20[ZSBPPROGM (KEY)],Programs_Active20[LONG TEXT])","v":{"$error":"#N/A"}}]
[955,149,"Y",299,"PERCENT","OUTCOME","BLACKBOOK",null,null,null,null,null,"# of indigent Burials","# of indigent Burials",{"$f":"_xlfn.XLOOKUP(Measures_Table[[#This Row],[PM Program]],Programs_Active20[ZSBPPROGM (KEY)],Programs_Active20[LONG TEXT])","v":{"$error":"#N/A"}}]
[956,149,"Y",299,"PERCENT","OUTCOME","ADOPTEDBUD",null,null,null,null,null,"# inspections for road acceptance","# inspections for road acceptance",{"$f":"_xlfn.XLOOKUP(Measures_Table[[#This Row],[PM Program]],Programs_Active20[ZSBPPROGM (KEY)],Programs_Active20[LONG TEXT])","v":{"$error":"#N/A"}}]
[957,149,"Y",299,"PERCENT","OUTCOME","ADOPTEDBUD",null,null,null,null,null,"# 1st time subdvn/lg cmcl constr plan su","# 1st time subdvn/lg cmcl constr plan submittals/resub",{"$f":"_xlfn.XLOOKUP(Measures_Table[[#This Row],[PM Program]],Programs_Active20[ZSBPPROGM (KEY)],Programs_Active20[LONG TEXT])","v":{"$error":"#N/A"}}]
[959,149,"Y",298,"PERCENT","OUTCOME","BLACKBOOK",null,null,null,null,null,"# of cases dev Enforcement Group referre","# of cases dev Enforcement Group referred to Cty Atty",{"$f":"_xlfn.XLOOKUP(Measures_Table[[#This Row],[PM Program]],Programs_Active20[ZSBPPROGM (KEY)],Programs_Active20[LONG TEXT])","v":{"$error":"#N/A"}}]
[960,149,"Y",299,"PERCENT","OUTCOME","ADOPTEDBUD",null,null,null,null,null,"# of complaints development Enforcement","# of complaints development Enforcement Group investigated",{"$f":"_xlfn.XLOOKUP(Measures_Table[[#This Row],[PM Program]],Programs_Active20[ZSBPPROGM (KEY)],Programs_Active20[LONG TEXT])","v":{"$error":"#N/A"}}]
[961,149,"Y",299,"PERCENT","OUTCOME","BLACKBOOK",null,null,null,null,null,"# of driveway permits reviewed","# of driveway permits reviewed",{"$f":"_xlfn.XLOOKUP(Measures_Table[[#This Row],[PM Program]],Programs_Active20[ZSBPPROGM (KEY)],Programs_Active20[LONG TEXT])","v":{"$error":"#N/A"}}]
[962,149,"Y",298,"PERCENT","OUTCOME","BLACKBOOK",null,null,null,null,null,"# of Fiscal Accounts Established for New","# of Fiscal Accounts Established for New Subdivisions",{"$f":"_xlfn.XLOOKUP(Measures_Table[[#This Row],[PM Program]],Programs_Active20[ZSBPPROGM (KEY)],Programs_Active20[LONG TEXT])","v":{"$error":"#N/A"}}]
[965,149,"Y",299,"PERCENT","OUTCOME","BLACKBOOK",null,null,null,null,null,"# Res/Sm Cmcl Type  A/B permits*# permit","# Res/Sm Cmcl Type  A/B permits*# permits rvwed (not issued)",{"$f":"_xlfn.XLOOKUP(Measures_Table[[#This Row],[PM Program]],Programs_Active20[ZSBPPROGM (KEY)],Programs_Active20[LONG TEXT])","v":{"$error":"#N/A"}}]
[966,149,"Y",129,"PERCENT","OUTCOME","ADOPTEDBUD",null,null,null,null,"Environmental Quality (149)","# of Short-form plats / Updates reviewed","# of Short-form plats / Updates reviewed  (not approved)",{"$f":"_xlfn.XLOOKUP(Measures_Table[[#This Row],[PM Program]],Programs_Active20[ZSBPPROGM (KEY)],Programs_Active20[LONG TEXT])","v":"Environmental Quality"}]
[967,149,"Y",129,"EACH","OUTPUT","BLACKBOOK",null,null,null,null,"Environmental Quality (149)","# of street acceptance requests process","# of street acceptance requests process",{"$f":"_xlfn.XLOOKUP(Measures_Table[[#This Row],[PM Program]],Programs_Active20[ZSBPPROGM (KEY)],Programs_Active20[LONG TEXT])","v":"Environmental Quality"}]
[968,149,"Y",129,"EACH","OUTPUT","BLACKBOOK",null,null,null,null,"Environmental Quality (149)","# of subdivision inspections","# of subdivision inspections",{"$f":"_xlfn.XLOOKUP(Measures_Table[[#This Row],[PM Program]],Programs_Active20[ZSBPPROGM (KEY)],Programs_Active20[LONG TEXT])","v":"Environmental Quality"}]
[969,149,"Y",129,"EACH","OUTPUT","BLACKBOOK",null,null,null,null,"Environmental Quality (149)","# Subdivision Preliminary/Updated Plans","# Subdivision Preliminary/Updated Plans rvwed (not approved)",{"$f":"_xlfn.XLOOKUP(Measures_Table[[#This Row],[PM Program]],Programs_Active20[ZSBPPROGM (KEY)],Programs_Active20[LONG TEXT])","v":"Environmental Quality"}]
[970,149,"Y",129,"EACH","OUTPUT","BLACKBOOK",null,null,null,null,"Environmental Quality (149)","# of utility inspections","# of utility inspections",{"$f":"_xlfn.XLOOKUP(Measures_Table[[#This Row],[PM Program]],Programs_Active20[ZSBPPROGM (KEY)],Programs_Active20[LONG TEXT])","v":"Environmental Quality"}]
[971,149,"Y",129,"EACH","OUTCOME","BLACKBOOK",null,null,null,null,"Environmental Quality (149)","# of utility permits reviewed","# of utility permits reviewed",{"$f":"_xlfn.XLOOKUP(Measures_Table[[#This Row],[PM Program]],Programs_Active20[ZSBPPROGM (KEY)],Programs_Active20[LONG TEXT])","v":"Environmental Quality"}]
[972,149,"Y",129,"DOLLARS","EFFICIENCY","BLACKBOOK",null,null,null,null,"Environmental Quality (149)","# of vacations processed","# of vacations processed",{"$f":"_xlfn.XLOOKUP(Measures_Table[[#This Row],[PM Program]],Programs_Active20[ZSBPPROGM (KEY)],Programs_Active20[LONG TEXT])","v":"Environmental Quality"}]
[973,149,"Y",129,"EACH","OUTPUT","BLACKBOOK",null,null,null,null,"Environmental Quality (149)","% of Amended Plats reviewed within 15 /","% of Amended Plats reviewed within 15 / 5 days",{"$f":"_xlfn.XLOOKUP(Measures_Table[[#This Row],[PM Program]],Programs_Active20[ZSBPPROGM (KEY)],Programs_Active20[LONG TEXT])","v":"Environmental Quality"}]
[974,149,"Y",129,"EACH","OUTPUT","BLACKBOOK",null,null,null,null,"Environmental Quality (149)","% of cases dev Enforcement Group referre","% of cases dev Enforcement Group referred to Cty Atty",{"$f":"_xlfn.XLOOKUP(Measures_Table[[#This Row],[PM Program]],Programs_Active20[ZSBPPROGM (KEY)],Programs_Active20[LONG TEXT])","v":"Environmental Quality"}]
[975,149,"Y",129,"PERCENT","OUTCOME","ADOPTEDBUD",null,null,null,null,"Environmental Quality (149)","% of complaints DE Group investigated w/","% of complaints DE Group investigated w/i 2 working days",{"$f":"_xlfn.XLOOKUP(Measures_Table[[#This Row],[PM Program]],Programs_Active20[ZSBPPROGM (KEY)],Programs_Active20[LONG TEXT])","v":"Environmental Quality"}]
[977,149,"Y",129,"DOLLARS","OUTPUT","BLACKBOOK",null,null,null,null,"Environmental Quality (149)","% of driveway permits comments issued w/","% of driveway permits comments issued w/i 21 working days of receiving completed application",{"$f":"_xlfn.XLOOKUP(Measures_Table[[#This Row],[PM Program]],Programs_Active20[ZSBPPROGM (KEY)],Programs_Active20[LONG TEXT])","v":"Environmental Quality"}]
[978,149,"Y",130,"EACH","OUTPUT","BLACKBOOK",null,null,null,null,"Fleet Services (149)","% of Fiscal Accounts established within","% of Fiscal Accounts established within 10 days",{"$f":"_xlfn.XLOOKUP(Measures_Table[[#This Row],[PM Program]],Programs_Active20[ZSBPPROGM (KEY)],Programs_Active20[LONG TEXT])","v":"Fleet Services"}]
[979,149,"Y",130,"EACH","EFFICIENCY","ADOPTEDBUD",null,null,null,null,"Fleet Services (149)","% of lg commercial & subdivision Type \"A","% of lg commercial & subdivision Type \"A\" or \"B\" permits comments issued w/i 25 working days of initial review, 7 days for re-submittals",{"$f":"_xlfn.XLOOKUP(Measures_Table[[#This Row],[PM Program]],Programs_Active20[ZSBPPROGM (KEY)],Programs_Active20[LONG TEXT])","v":"Fleet Services"}]
[981,149,"Y",130,"PERCENT","OUTPUT","BLACKBOOK",null,null,null,null,"Fleet Services (149)","% of Short-form plats reviewed within 20","% of Short-form plats reviewed within 20 / 10 days",{"$f":"_xlfn.XLOOKUP(Measures_Table[[#This Row],[PM Program]],Programs_Active20[ZSBPPROGM (KEY)],Programs_Active20[LONG TEXT])","v":"Fleet Services"}]
[982,149,"Y",130,"PERCENT","OUTCOME","ADOPTEDBUD",null,null,null,null,"Fleet Services (149)","% of subdivision inspections done within","% of subdivision inspections done within a 5 day time frame",{"$f":"_xlfn.XLOOKUP(Measures_Table[[#This Row],[PM Program]],Programs_Active20[ZSBPPROGM (KEY)],Programs_Active20[LONG TEXT])","v":"Fleet Services"}]
[983,149,"Y",131,"ACRES","INPUT","ADOPTEDBUD",null,null,null,null,"Natural Resources Program (149)","% of Subdivision Preliminary/Updated Pla","% of Subdivision Preliminary/Updated Plans reviewed w/i 30/15 days",{"$f":"_xlfn.XLOOKUP(Measures_Table[[#This Row],[PM Program]],Programs_Active20[ZSBPPROGM (KEY)],Programs_Active20[LONG TEXT])","v":"Natural Resources Program"}]
[984,149,"Y",131,"EACH","INPUT","BLACKBOOK",null,null,null,null,"Natural Resources Program (149)","% of subdivision streets submitted for a","% of subdivision streets submitted for acceptance to Court w/i 45 calendar days of completion of Required Document items",{"$f":"_xlfn.XLOOKUP(Measures_Table[[#This Row],[PM Program]],Programs_Active20[ZSBPPROGM (KEY)],Programs_Active20[LONG TEXT])","v":"Natural Resources Program"}]
[985,149,"Y",131,"EACH","OUTPUT","BLACKBOOK",null,null,null,null,"Natural Resources Program (149)","% of Type \"A\" res dev permits comments i","% of Type \"A\" res dev permits comments issued w/i 10 working days; Type \"B\" w/i 21 working days",{"$f":"_xlfn.XLOOKUP(Measures_Table[[#This Row],[PM Program]],Programs_Active20[ZSBPPROGM (KEY)],Programs_Active20[LONG TEXT])","v":"Natural Resources Program"}]
[986,149,"Y",131,"HOURS","INPUT","BLACKBOOK",null,null,null,null,"Natural Resources Program (149)","% of utility inspections done within a 5","% of utility inspections done within a 5 day time frame",{"$f":"_xlfn.XLOOKUP(Measures_Table[[#This Row],[PM Program]],Programs_Active20[ZSBPPROGM (KEY)],Programs_Active20[LONG TEXT])","v":"Natural Resources Program"}]
[988,149,"Y",131,"HOURS","OUTPUT","BLACKBOOK",null,null,null,null,"Natural Resources Program (149)","% of vacations processed & submitted for","% of vacations processed & submitted for court action w/i 60 calendar days of receiving completed application",{"$f":"_xlfn.XLOOKUP(Measures_Table[[#This Row],[PM Program]],Programs_Active20[ZSBPPROGM (KEY)],Programs_Active20[LONG TEXT])","v":"Natural Resources Program"}]
[989,149,"Y",131,"ACRES","OUTCOME","ADOPTEDBUD",null,null,null,null,"Natural Resources Program (149)","Percent of water bodies fishable and swi","Percent of water bodies fishable and swimmable",{"$f":"_xlfn.XLOOKUP(Measures_Table[[#This Row],[PM Program]],Programs_Active20[ZSBPPROGM (KEY)],Programs_Active20[LONG TEXT])","v":"Natural Resources Program"}]
[990,149,"Y",131,"EACH","OUTPUT","BLACKBOOK",null,null,null,null,"Natural Resources Program (149)","Development & CIP projects reviewed for","Development & CIP projects reviewed for SWP3 and ESC",{"$f":"_xlfn.XLOOKUP(Measures_Table[[#This Row],[PM Program]],Programs_Active20[ZSBPPROGM (KEY)],Programs_Active20[LONG TEXT])","v":"Natural Resources Program"}]
[991,149,"Y",131,"DOLLARS","OUTPUT","BLACKBOOK",null,null,null,null,"Natural Resources Program (149)","Private development projects & PWQC insp","Private development projects & PWQC inspected",{"$f":"_xlfn.XLOOKUP(Measures_Table[[#This Row],[PM Program]],Programs_Active20[ZSBPPROGM (KEY)],Programs_Active20[LONG TEXT])","v":"Natural Resources Program"}]
[992,149,"Y",132,"EACH","INPUT","ADOPTEDBUD",null,null,null,null,"On-Site Wastewater (149)","CIPs audited & County PWQCs inspected","CIPs audited & County PWQCs inspected",{"$f":"_xlfn.XLOOKUP(Measures_Table[[#This Row],[PM Program]],Programs_Active20[ZSBPPROGM (KEY)],Programs_Active20[LONG TEXT])","v":"On-Site Wastewater"}]
[993,149,"Y",132,"EACH","OUTPUT","BLACKBOOK",null,null,null,null,"On-Site Wastewater (149)","Number of illicit discharges inspected","Number of illicit discharges inspected",{"$f":"_xlfn.XLOOKUP(Measures_Table[[#This Row],[PM Program]],Programs_Active20[ZSBPPROGM (KEY)],Programs_Active20[LONG TEXT])","v":"On-Site Wastewater"}]
[994,149,"Y",132,"EACH","OUTPUT","ADOPTEDBUD",null,null,null,null,"On-Site Wastewater (149)","Days/year when ozone standards not met","Days/year when ozone standards not met",{"$f":"_xlfn.XLOOKUP(Measures_Table[[#This Row],[PM Program]],Programs_Active20[ZSBPPROGM (KEY)],Programs_Active20[LONG TEXT])","v":"On-Site Wastewater"}]
[995,149,"Y",132,"EACH","OUTPUT","BLACKBOOK",null,null,null,null,"On-Site Wastewater (149)","Average cost to process LIRAP applicatio","Average cost to process LIRAP application",{"$f":"_xlfn.XLOOKUP(Measures_Table[[#This Row],[PM Program]],Programs_Active20[ZSBPPROGM (KEY)],Programs_Active20[LONG TEXT])","v":"On-Site Wastewater"}]
[996,149,"Y",132,"EACH","OUTPUT","BLACKBOOK",null,null,null,null,"On-Site Wastewater (149)","Average CapMetro rides taken by County e","Average CapMetro rides taken by County employees",{"$f":"_xlfn.XLOOKUP(Measures_Table[[#This Row],[PM Program]],Programs_Active20[ZSBPPROGM (KEY)],Programs_Active20[LONG TEXT])","v":"On-Site Wastewater"}]
[997,149,"Y",132,"EACH","OUTPUT","BLACKBOOK",null,null,null,null,"On-Site Wastewater (149)","Average number of County employee CapMet","Average number of County employee CapMetro riders/month",{"$f":"_xlfn.XLOOKUP(Measures_Table[[#This Row],[PM Program]],Programs_Active20[ZSBPPROGM (KEY)],Programs_Active20[LONG TEXT])","v":"On-Site Wastewater"}]
[998,149,"Y",132,"PERCENT","OUTCOME","BLACKBOOK",null,null,null,null,"On-Site Wastewater (149)","% reduction in solid waste disposal cost","% reduction in solid waste disposal cost, vs 2013 cost",{"$f":"_xlfn.XLOOKUP(Measures_Table[[#This Row],[PM Program]],Programs_Active20[ZSBPPROGM (KEY)],Programs_Active20[LONG TEXT])","v":"On-Site Wastewater"}]
[999,149,"Y",132,"PERCENT","OUTCOME","BLACKBOOK",null,null,null,null,"On-Site Wastewater (149)","3.A Ann. waste disposal cost as ratio to","3.A Ann. waste disposal cost as ratio to single stream cost",{"$f":"_xlfn.XLOOKUP(Measures_Table[[#This Row],[PM Program]],Programs_Active20[ZSBPPROGM (KEY)],Programs_Active20[LONG TEXT])","v":"On-Site Wastewater"}]
[1000,149,"Y",132,"PERCENT","OUTCOME","BLACKBOOK",null,null,null,null,"On-Site Wastewater (149)","Annual revenue generated by County recyc","Annual revenue generated by County recycling program.",{"$f":"_xlfn.XLOOKUP(Measures_Table[[#This Row],[PM Program]],Programs_Active20[ZSBPPROGM (KEY)],Programs_Active20[LONG TEXT])","v":"On-Site Wastewater"}]
[1001,149,"Y",132,"PERCENT","OUTCOME","BLACKBOOK",null,null,null,null,"On-Site Wastewater (149)","# of Completed Jobs","# of Completed Jobs",{"$f":"_xlfn.XLOOKUP(Measures_Table[[#This Row],[PM Program]],Programs_Active20[ZSBPPROGM (KEY)],Programs_Active20[LONG TEXT])","v":"On-Site Wastewater"}]
[1002,149,"Y",132,"PERCENT","OUTCOME","BLACKBOOK",null,null,null,null,"On-Site Wastewater (149)","# Of vehicles & equip per mechanic slot","# Of vehicles & equip per mechanic slot",{"$f":"_xlfn.XLOOKUP(Measures_Table[[#This Row],[PM Program]],Programs_Active20[ZSBPPROGM (KEY)],Programs_Active20[LONG TEXT])","v":"On-Site Wastewater"}]
[1003,149,"Y",133,"ACRES","OUTPUT","ADOPTEDBUD",null,null,null,null,"Park Services (149)","% Of vehicle downtime (avg.)","% Of vehicle downtime (avg.)",{"$f":"_xlfn.XLOOKUP(Measures_Table[[#This Row],[PM Program]],Programs_Active20[ZSBPPROGM (KEY)],Programs_Active20[LONG TEXT])","v":"Park Services"}]
[1005,149,"Y",133,"EACH","OUTPUT","BLACKBOOK",null,null,null,null,"Park Services (149)","% Rework of vehicles","% Rework of vehicles",{"$f":"_xlfn.XLOOKUP(Measures_Table[[#This Row],[PM Program]],Programs_Active20[ZSBPPROGM (KEY)],Programs_Active20[LONG TEXT])","v":"Park Services"}]
[1006,149,"Y",133,"EACH","OUTPUT","BLACKBOOK",null,null,null,null,"Park Services (149)","% Satisfied survey","% Satisfied survey",{"$f":"_xlfn.XLOOKUP(Measures_Table[[#This Row],[PM Program]],Programs_Active20[ZSBPPROGM (KEY)],Programs_Active20[LONG TEXT])","v":"Park Services"}]
[1007,149,"Y",133,"EACH","OUTPUT","ADOPTEDBUD",null,null,null,null,"Park Services (149)","BCP acres managed by Travis County","BCP acres managed by Travis County",{"$f":"_xlfn.XLOOKUP(Measures_Table[[#This Row],[PM Program]],Programs_Active20[ZSBPPROGM (KEY)],Programs_Active20[LONG TEXT])","v":"Park Services"}]
[1008,149,"Y",133,"EACH","OUTPUT","BLACKBOOK",null,null,null,null,"Park Services (149)","Number of BCCP caves managed by Travis C","Number of BCCP caves managed by Travis County",{"$f":"_xlfn.XLOOKUP(Measures_Table[[#This Row],[PM Program]],Programs_Active20[ZSBPPROGM (KEY)],Programs_Active20[LONG TEXT])","v":"Park Services"}]
[1013,149,"Y",134,"EACH","OUTPUT","BLACKBOOK",null,null,null,null,"Planning & Geographic Info Sys-GIS (149)","Number volunteer hours","Number volunteer hours",{"$f":"_xlfn.XLOOKUP(Measures_Table[[#This Row],[PM Program]],Programs_Active20[ZSBPPROGM (KEY)],Programs_Active20[LONG TEXT])","v":"Planning and Geographic Information Systems (GIS)"}]
[1014,149,"Y",134,"EACH","OUTPUT","BLACKBOOK",null,null,null,null,"Planning & Geographic Info Sys-GIS (149)","# 100-acre plots surveyed to USFWS proto","# 100-acre plots surveyed to USFWS protocols for GCWA",{"$f":"_xlfn.XLOOKUP(Measures_Table[[#This Row],[PM Program]],Programs_Active20[ZSBPPROGM (KEY)],Programs_Active20[LONG TEXT])","v":"Planning and Geographic Information Systems (GIS)"}]
[1015,149,"Y",134,"EACH","OUTPUT","BLACKBOOK",null,null,null,null,"Planning & Geographic Info Sys-GIS (149)","Number of hours surveying karst features","Number of hours surveying karst features",{"$f":"_xlfn.XLOOKUP(Measures_Table[[#This Row],[PM Program]],Programs_Active20[ZSBPPROGM (KEY)],Programs_Active20[LONG TEXT])","v":"Planning and Geographic Information Systems (GIS)"}]
[1016,149,"Y",134,"EACH","OUTPUT","BLACKBOOK",null,null,null,null,"Planning & Geographic Info Sys-GIS (149)","Number of acres protected by CEs","Number of acres protected by CEs in the Conservation Easement Program (non parkland)",{"$f":"_xlfn.XLOOKUP(Measures_Table[[#This Row],[PM Program]],Programs_Active20[ZSBPPROGM (KEY)],Programs_Active20[LONG TEXT])","v":"Planning and Geographic Information Systems (GIS)"}]
[1017,149,"Y",134,"EACH","OUTPUT","BLACKBOOK",null,null,null,null,"Planning & Geographic Info Sys-GIS (149)","Number of conservation easements complet","Number of conservation easements completed in the Conservation Easement Program (non parkland)",{"$f":"_xlfn.XLOOKUP(Measures_Table[[#This Row],[PM Program]],Programs_Active20[ZSBPPROGM (KEY)],Programs_Active20[LONG TEXT])","v":"Planning and Geographic Information Systems (GIS)"}]
[1018,149,"Y",134,"EACH","OUTPUT","BLACKBOOK",null,null,null,null,"Planning & Geographic Info Sys-GIS (149)","Value of Grants Administered","Value of Grants Administered",{"$f":"_xlfn.XLOOKUP(Measures_Table[[#This Row],[PM Program]],Programs_Active20[ZSBPPROGM (KEY)],Programs_Active20[LONG TEXT])","v":"Planning and Geographic Information Systems (GIS)"}]
[1019,149,"Y",134,"EACH","OUTPUT","BLACKBOOK",null,null,null,null,"Planning & Geographic Info Sys-GIS (149)","# of OSSF Permits","# of OSSF Permits",{"$f":"_xlfn.XLOOKUP(Measures_Table[[#This Row],[PM Program]],Programs_Active20[ZSBPPROGM (KEY)],Programs_Active20[LONG TEXT])","v":"Planning and Geographic Information Systems (GIS)"}]
[1020,149,"Y",134,"EACH","OUTPUT","BLACKBOOK",null,null,null,null,"Planning & Geographic Info Sys-GIS (149)","# of Complaint Responses and Enforcement","# of Complaint Responses and Enforcement Issues",{"$f":"_xlfn.XLOOKUP(Measures_Table[[#This Row],[PM Program]],Programs_Active20[ZSBPPROGM (KEY)],Programs_Active20[LONG TEXT])","v":"Planning and Geographic Information Systems (GIS)"}]
[1021,149,"Y",134,"EACH","OUTPUT","ADOPTEDBUD",null,null,null,null,"Planning & Geographic Info Sys-GIS (149)","# of Construction Inspections","# of Construction Inspections",{"$f":"_xlfn.XLOOKUP(Measures_Table[[#This Row],[PM Program]],Programs_Active20[ZSBPPROGM (KEY)],Programs_Active20[LONG TEXT])","v":"Planning and Geographic Information Systems (GIS)"}]
[1022,149,"Y",134,"EACH","OUTPUT","BLACKBOOK",null,null,null,null,"Planning & Geographic Info Sys-GIS (149)","# of Driveway Inspections Completed","# of Driveway Inspections Completed",{"$f":"_xlfn.XLOOKUP(Measures_Table[[#This Row],[PM Program]],Programs_Active20[ZSBPPROGM (KEY)],Programs_Active20[LONG TEXT])","v":"Planning and Geographic Information Systems (GIS)"}]
[1023,149,"Y",134,"EACH","OUTPUT","BLACKBOOK",null,null,null,null,"Planning & Geographic Info Sys-GIS (149)","# of Floodplain Compliance Inspections","# of Floodplain Compliance Inspections",{"$f":"_xlfn.XLOOKUP(Measures_Table[[#This Row],[PM Program]],Programs_Active20[ZSBPPROGM (KEY)],Programs_Active20[LONG TEXT])","v":"Planning and Geographic Information Systems (GIS)"}]
[1024,149,"Y",134,"EACH","OUTPUT","BLACKBOOK",null,null,null,null,"Planning & Geographic Info Sys-GIS (149)","# of Subdivision Plans","# of Subdivision Plans",{"$f":"_xlfn.XLOOKUP(Measures_Table[[#This Row],[PM Program]],Programs_Active20[ZSBPPROGM (KEY)],Programs_Active20[LONG TEXT])","v":"Planning and Geographic Information Systems (GIS)"}]
[1025,149,"Y",134,"EACH","OUTPUT","ADOPTEDBUD",null,null,null,null,"Planning & Geographic Info Sys-GIS (149)","%  of OSSF Permits reviewed with 30-days","%  of OSSF Permits reviewed with 30-days",{"$f":"_xlfn.XLOOKUP(Measures_Table[[#This Row],[PM Program]],Programs_Active20[ZSBPPROGM (KEY)],Programs_Active20[LONG TEXT])","v":"Planning and Geographic Information Systems (GIS)"}]
[1026,149,"Y",134,"PERCENT","OUTCOME","BLACKBOOK",null,null,null,null,"Planning & Geographic Info Sys-GIS (149)","% of Complaint Responses & Enforcement I","% of Complaint Responses & Enforcement Issues responded to in 2 days",{"$f":"_xlfn.XLOOKUP(Measures_Table[[#This Row],[PM Program]],Programs_Active20[ZSBPPROGM (KEY)],Programs_Active20[LONG TEXT])","v":"Planning and Geographic Information Systems (GIS)"}]
[1027,149,"Y",134,"PERCENT","OUTCOME","BLACKBOOK",null,null,null,null,"Planning & Geographic Info Sys-GIS (149)","% of Construction Inspections completed","% of Construction Inspections completed the next day",{"$f":"_xlfn.XLOOKUP(Measures_Table[[#This Row],[PM Program]],Programs_Active20[ZSBPPROGM (KEY)],Programs_Active20[LONG TEXT])","v":"Planning and Geographic Information Systems (GIS)"}]
[1028,149,"Y",134,"PERCENT","OUTCOME","BLACKBOOK",null,null,null,null,"Planning & Geographic Info Sys-GIS (149)","% of Driveway Inspections Completed the","% of Driveway Inspections Completed the next day",{"$f":"_xlfn.XLOOKUP(Measures_Table[[#This Row],[PM Program]],Programs_Active20[ZSBPPROGM (KEY)],Programs_Active20[LONG TEXT])","v":"Planning and Geographic Information Systems (GIS)"}]
[1029,149,"Y",134,"PERCENT","OUTCOME","BLACKBOOK",null,null,null,null,"Planning & Geographic Info Sys-GIS (149)","% of Subdivision Plans reviewed in 45 da","% of Subdivision Plans reviewed in 45 days",{"$f":"_xlfn.XLOOKUP(Measures_Table[[#This Row],[PM Program]],Programs_Active20[ZSBPPROGM (KEY)],Programs_Active20[LONG TEXT])","v":"Planning and Geographic Information Systems (GIS)"}]
[1030,149,"Y",134,"PERCENT","OUTCOME","BLACKBOOK",null,null,null,null,"Planning & Geographic Info Sys-GIS (149)","Acres Treated with Prescribed Burns","Acres Treated with Prescribed Burns",{"$f":"_xlfn.XLOOKUP(Measures_Table[[#This Row],[PM Program]],Programs_Active20[ZSBPPROGM (KEY)],Programs_Active20[LONG TEXT])","v":"Planning and Geographic Information Systems (GIS)"}]
[1031,149,"Y",134,"PERCENT","OUTCOME","BLACKBOOK",null,null,null,null,"Planning & Geographic Info Sys-GIS (149)","Number of Acres of Natural Areas Managed","Number of Acres of Natural Areas Managed",{"$f":"_xlfn.XLOOKUP(Measures_Table[[#This Row],[PM Program]],Programs_Active20[ZSBPPROGM (KEY)],Programs_Active20[LONG TEXT])","v":"Planning and Geographic Information Systems (GIS)"}]
[1032,149,"Y",134,"PERCENT","OUTCOME","BLACKBOOK",null,null,null,null,"Planning & Geographic Info Sys-GIS (149)","Number of Native Trees Planted","Number of Native Trees Planted",{"$f":"_xlfn.XLOOKUP(Measures_Table[[#This Row],[PM Program]],Programs_Active20[ZSBPPROGM (KEY)],Programs_Active20[LONG TEXT])","v":"Planning and Geographic Information Systems (GIS)"}]
[1033,149,"Y",134,"PERCENT","OUTCOME","BLACKBOOK",null,null,null,null,"Planning & Geographic Info Sys-GIS (149)","Number of Priority 1 Hazardous Trees Rem","Number of Priority 1 Hazardous Trees Removed or Pruned",{"$f":"_xlfn.XLOOKUP(Measures_Table[[#This Row],[PM Program]],Programs_Active20[ZSBPPROGM (KEY)],Programs_Active20[LONG TEXT])","v":"Planning and Geographic Information Systems (GIS)"}]
[1034,149,"Y",134,"PERCENT","OUTCOME","BLACKBOOK",null,null,null,null,"Planning & Geographic Info Sys-GIS (149)","Number of Self-initiated Park Ranger Pat","Number of Self-initiated Park Ranger Patrols",{"$f":"_xlfn.XLOOKUP(Measures_Table[[#This Row],[PM Program]],Programs_Active20[ZSBPPROGM (KEY)],Programs_Active20[LONG TEXT])","v":"Planning and Geographic Information Systems (GIS)"}]
[1035,149,"Y",134,"PERCENT","OUTCOME","BLACKBOOK",null,null,null,null,"Planning & Geographic Info Sys-GIS (149)","Number of Social Media Followers","Number of Social Media Followers",{"$f":"_xlfn.XLOOKUP(Measures_Table[[#This Row],[PM Program]],Programs_Active20[ZSBPPROGM (KEY)],Programs_Active20[LONG TEXT])","v":"Planning and Geographic Information Systems (GIS)"}]
[1036,149,"Y",134,"DAYS","OUTCOME","BLACKBOOK",null,null,null,null,"Planning & Geographic Info Sys-GIS (149)","Number of Special Events per Year","Number of Special Events per Year",{"$f":"_xlfn.XLOOKUP(Measures_Table[[#This Row],[PM Program]],Programs_Active20[ZSBPPROGM (KEY)],Programs_Active20[LONG TEXT])","v":"Planning and Geographic Information Systems (GIS)"}]
[1037,149,"Y",134,"DAYS","OUTCOME","BLACKBOOK",null,null,null,null,"Planning & Geographic Info Sys-GIS (149)","Percent Baseball Fields Used (reservable","Percent Baseball Fields Used (reservable hours)",{"$f":"_xlfn.XLOOKUP(Measures_Table[[#This Row],[PM Program]],Programs_Active20[ZSBPPROGM (KEY)],Programs_Active20[LONG TEXT])","v":"Planning and Geographic Information Systems (GIS)"}]
[1038,149,"Y",135,"PERCENT","OUTCOME","BLACKBOOK",null,null,null,null,"Public Works – CIP (149)","Percent Parks with Minimum Rating of “Go","Percent Parks with Minimum Rating of “Good” or Better",{"$f":"_xlfn.XLOOKUP(Measures_Table[[#This Row],[PM Program]],Programs_Active20[ZSBPPROGM (KEY)],Programs_Active20[LONG TEXT])","v":"Public Works – CIP"}]
[1039,149,"Y",135,"PERCENT","OUTCOME","BLACKBOOK",null,null,null,null,"Public Works – CIP (149)","Percent Soccer Fields Used (reservable h","Percent Soccer Fields Used (reservable hours)",{"$f":"_xlfn.XLOOKUP(Measures_Table[[#This Row],[PM Program]],Programs_Active20[ZSBPPROGM (KEY)],Programs_Active20[LONG TEXT])","v":"Public Works – CIP"}]
[1040,149,"Y",135,"PERCENT","OUTCOME","BLACKBOOK",null,null,null,null,"Public Works – CIP (149)","# of 1-1 meetings attended","# of 1-1 meetings attended",{"$f":"_xlfn.XLOOKUP(Measures_Table[[#This Row],[PM Program]],Programs_Active20[ZSBPPROGM (KEY)],Programs_Active20[LONG TEXT])","v":"Public Works – CIP"}]
[1041,149,"Y",135,"PERCENT","OUTCOME","BLACKBOOK",null,null,null,null,"Public Works – CIP (149)","# of alternative public engagement effor","# of alternative public engagement efforts completed",{"$f":"_xlfn.XLOOKUP(Measures_Table[[#This Row],[PM Program]],Programs_Active20[ZSBPPROGM (KEY)],Programs_Active20[LONG TEXT])","v":"Public Works – CIP"}]
[1042,149,"Y",135,"PERCENT","OUTCOME","BLACKBOOK",null,null,null,null,"Public Works – CIP (149)","# of bill analysis completed by TNR staf","# of bill analysis completed by TNR staff",{"$f":"_xlfn.XLOOKUP(Measures_Table[[#This Row],[PM Program]],Programs_Active20[ZSBPPROGM (KEY)],Programs_Active20[LONG TEXT])","v":"Public Works – CIP"}]
[1043,149,"Y",135,"PERCENT","OUTCOME","BLACKBOOK",null,null,null,null,"Public Works – CIP (149)","# of CAMPO Plan, Plan and TIP amendments","# of CAMPO Plan, Plan and TIP amendments",{"$f":"_xlfn.XLOOKUP(Measures_Table[[#This Row],[PM Program]],Programs_Active20[ZSBPPROGM (KEY)],Programs_Active20[LONG TEXT])","v":"Public Works – CIP"}]
[1044,149,"Y",135,"PERCENT","OUTCOME","BLACKBOOK",null,null,null,null,"Public Works – CIP (149)","# of community meetings attended by staf","# of community meetings attended by staff seeking engagement",{"$f":"_xlfn.XLOOKUP(Measures_Table[[#This Row],[PM Program]],Programs_Active20[ZSBPPROGM (KEY)],Programs_Active20[LONG TEXT])","v":"Public Works – CIP"}]
[1045,149,"Y",135,"PERCENT","OUTCOME","BLACKBOOK",null,null,null,null,"Public Works – CIP (149)","# of interim committees monitored","# of interim committees monitored",{"$f":"_xlfn.XLOOKUP(Measures_Table[[#This Row],[PM Program]],Programs_Active20[ZSBPPROGM (KEY)],Programs_Active20[LONG TEXT])","v":"Public Works – CIP"}]
[1046,149,"Y",136,"EACH","OUTCOME","BLACKBOOK",null,null,null,null,"Public Works - Survey (149)","# of joint committee meetings attended","# of joint committee meetings attended",{"$f":"_xlfn.XLOOKUP(Measures_Table[[#This Row],[PM Program]],Programs_Active20[ZSBPPROGM (KEY)],Programs_Active20[LONG TEXT])","v":"Public Works - Survey"}]
[1047,149,"Y",136,"EACH","OUTCOME","BLACKBOOK",null,null,null,null,"Public Works - Survey (149)","# of legislative or regulatory proposals","# of legislative or regulatory proposals produced",{"$f":"_xlfn.XLOOKUP(Measures_Table[[#This Row],[PM Program]],Programs_Active20[ZSBPPROGM (KEY)],Programs_Active20[LONG TEXT])","v":"Public Works - Survey"}]
[1048,149,"Y",136,"EACH","OUTCOME","BLACKBOOK",null,null,null,null,"Public Works - Survey (149)","# of LWTP priority action items complete","# of LWTP priority action items completed",{"$f":"_xlfn.XLOOKUP(Measures_Table[[#This Row],[PM Program]],Programs_Active20[ZSBPPROGM (KEY)],Programs_Active20[LONG TEXT])","v":"Public Works - Survey"}]
[1049,149,"Y",136,"EACH","OUTPUT","BLACKBOOK",null,null,null,null,"Public Works - Survey (149)","# of Plan and TIP amendments adopted by","# of Plan and TIP amendments adopted by Policy Board",{"$f":"_xlfn.XLOOKUP(Measures_Table[[#This Row],[PM Program]],Programs_Active20[ZSBPPROGM (KEY)],Programs_Active20[LONG TEXT])","v":"Public Works - Survey"}]
[1050,149,"Y",136,"EACH","OUTPUT","BLACKBOOK",null,null,null,null,"Public Works - Survey (149)","# of public meetings","# of public meetings",{"$f":"_xlfn.XLOOKUP(Measures_Table[[#This Row],[PM Program]],Programs_Active20[ZSBPPROGM (KEY)],Programs_Active20[LONG TEXT])","v":"Public Works - Survey"}]
[1051,149,"Y",136,"EACH","OUTPUT","BLACKBOOK",null,null,null,null,"Public Works - Survey (149)","# of regional group meetings/conf calls","# of regional group meetings/conf calls attended",{"$f":"_xlfn.XLOOKUP(Measures_Table[[#This Row],[PM Program]],Programs_Active20[ZSBPPROGM (KEY)],Programs_Active20[LONG TEXT])","v":"Public Works - Survey"}]
[1052,149,"Y",137,"EACH","OUTPUT","BLACKBOOK",null,null,null,null,"Real Estate (149)","# Plans adopted by Policy Board","# Plans adopted by Policy Board",{"$f":"_xlfn.XLOOKUP(Measures_Table[[#This Row],[PM Program]],Programs_Active20[ZSBPPROGM (KEY)],Programs_Active20[LONG TEXT])","v":{"$error":"#N/A"}}]
[1053,149,"Y",138,"FEET","OUTPUT","BLACKBOOK",null,null,null,null,"Road & Bridge (149)","% Completed - Develop & implement Ph 1 P","% Completed - Develop & implement Ph 1 Public Engagement Plan",{"$f":"_xlfn.XLOOKUP(Measures_Table[[#This Row],[PM Program]],Programs_Active20[ZSBPPROGM (KEY)],Programs_Active20[LONG TEXT])","v":"Road & Bridge"}]
[1054,149,"Y",138,"EACH","OUTPUT","BLACKBOOK",null,null,null,null,"Road & Bridge (149)","% Completed - Develop Vision, Goals, Obj","% Completed - Develop Vision, Goals, Objectives, and Policies",{"$f":"_xlfn.XLOOKUP(Measures_Table[[#This Row],[PM Program]],Programs_Active20[ZSBPPROGM (KEY)],Programs_Active20[LONG TEXT])","v":"Road & Bridge"}]
[1055,149,"Y",138,"MILES","OUTPUT","BLACKBOOK",null,null,null,null,"Road & Bridge (149)","% Completed - Develop an Inventory of Ne","% Completed - Develop an Inventory of Needs (Existing and Future)",{"$f":"_xlfn.XLOOKUP(Measures_Table[[#This Row],[PM Program]],Programs_Active20[ZSBPPROGM (KEY)],Programs_Active20[LONG TEXT])","v":"Road & Bridge"}]
[1056,149,"Y",138,"MILES","OUTPUT","BLACKBOOK",null,null,null,null,"Road & Bridge (149)","% Completed - Develop a Draft county Loc","% Completed - Develop a Draft county Local Arterial and Collector Transp Plan",{"$f":"_xlfn.XLOOKUP(Measures_Table[[#This Row],[PM Program]],Programs_Active20[ZSBPPROGM (KEY)],Programs_Active20[LONG TEXT])","v":"Road & Bridge"}]
[1057,149,"Y",138,"MILES","OUTPUT","BLACKBOOK",null,null,null,null,"Road & Bridge (149)","% Completed  - Develop Draft county Mult","% Completed  - Develop Draft county Multi-modal Plan",{"$f":"_xlfn.XLOOKUP(Measures_Table[[#This Row],[PM Program]],Programs_Active20[ZSBPPROGM (KEY)],Programs_Active20[LONG TEXT])","v":"Road & Bridge"}]
[1058,149,"Y",138,"MILES","OUTPUT","BLACKBOOK",null,null,null,null,"Road & Bridge (149)","% Completed  - Develop Draft Funding and","% Completed  - Develop Draft Funding and Implementation Plan",{"$f":"_xlfn.XLOOKUP(Measures_Table[[#This Row],[PM Program]],Programs_Active20[ZSBPPROGM (KEY)],Programs_Active20[LONG TEXT])","v":"Road & Bridge"}]
[1059,149,"Y",138,"MILES","OUTPUT","BLACKBOOK",null,null,null,null,"Road & Bridge (149)","%  Completed - Develop Recommendation El","%  Completed - Develop Recommendation Elements",{"$f":"_xlfn.XLOOKUP(Measures_Table[[#This Row],[PM Program]],Programs_Active20[ZSBPPROGM (KEY)],Programs_Active20[LONG TEXT])","v":"Road & Bridge"}]
[1060,149,"Y",138,"MILES","OUTPUT","BLACKBOOK",null,null,null,null,"Road & Bridge (149)","% Completed - Develop & implement Ph 2 P","% Completed - Develop & implement Ph 2 Public Engagement Plan",{"$f":"_xlfn.XLOOKUP(Measures_Table[[#This Row],[PM Program]],Programs_Active20[ZSBPPROGM (KEY)],Programs_Active20[LONG TEXT])","v":"Road & Bridge"}]
[1061,149,"Y",138,"MILES","OUTPUT","BLACKBOOK",null,null,null,null,"Road & Bridge (149)","% of TC residents engaged in Public Enga","% of TC residents engaged in Public Engagement Program - Develop Vision, Goals, Objectives",{"$f":"_xlfn.XLOOKUP(Measures_Table[[#This Row],[PM Program]],Programs_Active20[ZSBPPROGM (KEY)],Programs_Active20[LONG TEXT])","v":"Road & Bridge"}]
[1062,149,"Y",138,"EACH","OUTPUT","BLACKBOOK",null,null,null,null,"Road & Bridge (149)","% of TC residents engaged in Public Enga","% of TC residents engaged in Public Engagement Ph 2",{"$f":"_xlfn.XLOOKUP(Measures_Table[[#This Row],[PM Program]],Programs_Active20[ZSBPPROGM (KEY)],Programs_Active20[LONG TEXT])","v":"Road & Bridge"}]
[1063,149,"Y",138,"EACH","OUTPUT","BLACKBOOK",null,null,null,null,"Road & Bridge (149)","Average data maintenance turnaround time","Average data maintenance turnaround time",{"$f":"_xlfn.XLOOKUP(Measures_Table[[#This Row],[PM Program]],Programs_Active20[ZSBPPROGM (KEY)],Programs_Active20[LONG TEXT])","v":"Road & Bridge"}]
[1064,149,"Y",138,"EACH","OUTPUT","BLACKBOOK",null,null,null,null,"Road & Bridge (149)","Average project timeline development","Average project timeline development",{"$f":"_xlfn.XLOOKUP(Measures_Table[[#This Row],[PM Program]],Programs_Active20[ZSBPPROGM (KEY)],Programs_Active20[LONG TEXT])","v":"Road & Bridge"}]
[1065,149,"Y",138,"MILES","OUTPUT","BLACKBOOK",null,null,null,null,"Road & Bridge (149)","% of Projects on schedule & under budget","% of Projects on schedule & under budget - Roadway safety/reconstruction",{"$f":"_xlfn.XLOOKUP(Measures_Table[[#This Row],[PM Program]],Programs_Active20[ZSBPPROGM (KEY)],Programs_Active20[LONG TEXT])","v":"Road & Bridge"}]
[1066,149,"Y",139,"EACH","OUTPUT","BLACKBOOK",null,null,null,null,"Sign Shop Services (149)","% of Projects on schedule & under budget","% of Projects on schedule & under budget - Added roadway capacity",{"$f":"_xlfn.XLOOKUP(Measures_Table[[#This Row],[PM Program]],Programs_Active20[ZSBPPROGM (KEY)],Programs_Active20[LONG TEXT])","v":"Sign Shop Services"}]
[1067,149,"Y",139,"PERCENT","OUTCOME","BLACKBOOK",null,null,null,null,"Sign Shop Services (149)","% of Projects on schedule & under budget","% of Projects on schedule & under budget - Substandard road",{"$f":"_xlfn.XLOOKUP(Measures_Table[[#This Row],[PM Program]],Programs_Active20[ZSBPPROGM (KEY)],Programs_Active20[LONG TEXT])","v":"Sign Shop Services"}]
[1077,149,"Y",142,"DOLLARS","OUTCOME","BLACKBOOK",null,null,null,null,"TNR-Records Management (149)","Number of surveys by outside survey comp","Number of surveys by outside survey companies managed.",{"$f":"_xlfn.XLOOKUP(Measures_Table[[#This Row],[PM Program]],Programs_Active20[ZSBPPROGM (KEY)],Programs_Active20[LONG TEXT])","v":"TNR-Records Management"}]
[1078,149,"Y",142,"EACH","OUTPUT","BLACKBOOK",null,null,null,null,"TNR-Records Management (149)","Total # of survey work orders, requests,","Total # of survey work orders, requests, questions addressed",{"$f":"_xlfn.XLOOKUP(Measures_Table[[#This Row],[PM Program]],Programs_Active20[ZSBPPROGM (KEY)],Programs_Active20[LONG TEXT])","v":"TNR-Records Management"}]
[1079,149,"Y",141,"PERCENT","OUTCOME","BLACKBOOK",null,null,null,null,"TNR-Administrative Support (149)","# of parcels acquired, disposed or ROE/P","# of parcels acquired, disposed or ROE/PUA obtained",{"$f":"_xlfn.XLOOKUP(Measures_Table[[#This Row],[PM Program]],Programs_Active20[ZSBPPROGM (KEY)],Programs_Active20[LONG TEXT])","v":"TNR-Administrative Support"}]
[1080,149,"Y",142,"EACH","OUTPUT","BLACKBOOK",null,null,null,null,"TNR-Records Management (149)","# linear feet of  Pedestrian Way sidewal","# linear feet of  Pedestrian Way sidewalks/curb ramps",{"$f":"_xlfn.XLOOKUP(Measures_Table[[#This Row],[PM Program]],Programs_Active20[ZSBPPROGM (KEY)],Programs_Active20[LONG TEXT])","v":"TNR-Records Management"}]
[1081,149,"Y",142,"EACH","OUTCOME","BLACKBOOK",null,null,null,null,"TNR-Records Management (149)","# of Litter Response","# of Litter Response",{"$f":"_xlfn.XLOOKUP(Measures_Table[[#This Row],[PM Program]],Programs_Active20[ZSBPPROGM (KEY)],Programs_Active20[LONG TEXT])","v":"TNR-Records Management"}]
[1082,149,"Y",143,"HOURS","EFFICIENCY","BLACKBOOK",null,null,null,null,"TNR-Safety (149)","# of miles Brush Removal","# of miles Brush Removal",{"$f":"_xlfn.XLOOKUP(Measures_Table[[#This Row],[PM Program]],Programs_Active20[ZSBPPROGM (KEY)],Programs_Active20[LONG TEXT])","v":"TNR-Safety"}]
[1083,149,"Y",143,"EACH","OUTPUT","BLACKBOOK",null,null,null,null,"TNR-Safety (149)","# of miles Herbicide Applied","# of miles Herbicide Applied",{"$f":"_xlfn.XLOOKUP(Measures_Table[[#This Row],[PM Program]],Programs_Active20[ZSBPPROGM (KEY)],Programs_Active20[LONG TEXT])","v":"TNR-Safety"}]
[1084,149,"Y",143,"PERCENT","OUTCOME","BLACKBOOK",null,null,null,null,"TNR-Safety (149)","# of miles Mowed","# of miles Mowed",{"$f":"_xlfn.XLOOKUP(Measures_Table[[#This Row],[PM Program]],Programs_Active20[ZSBPPROGM (KEY)],Programs_Active20[LONG TEXT])","v":"TNR-Safety"}]
[1085,149,"Y",143,"PERCENT","INPUT","BLACKBOOK",null,null,null,null,"TNR-Safety (149)","# of miles of Pothole Patching","# of miles of Pothole Patching",{"$f":"_xlfn.XLOOKUP(Measures_Table[[#This Row],[PM Program]],Programs_Active20[ZSBPPROGM (KEY)],Programs_Active20[LONG TEXT])","v":"TNR-Safety"}]
[1090,158,"Y",145,"PERCENT","OUTCOME","ADOPTEDBUD",null,null,null,null,"CDBG Administration (158)","# of Secondary Drainage Project    (> 50","# of Secondary Drainage Project    (> 500 Man-hours)",{"$f":"_xlfn.XLOOKUP(Measures_Table[[#This Row],[PM Program]],Programs_Active20[ZSBPPROGM (KEY)],Programs_Active20[LONG TEXT])","v":"CDBG Administration"}]
[1091,158,"Y",145,"EACH","OUTPUT","ADOPTEDBUD",null,null,null,null,"CDBG Administration (158)","# of Traffic Signs Maintained","# of Traffic Signs Maintained",{"$f":"_xlfn.XLOOKUP(Measures_Table[[#This Row],[PM Program]],Programs_Active20[ZSBPPROGM (KEY)],Programs_Active20[LONG TEXT])","v":"CDBG Administration"}]
[1092,158,"Y",145,"EACH","OUTCOME","ADOPTEDBUD",null,null,null,null,"CDBG Administration (158)","# of miles of Rehabilitation","# of miles of Rehabilitation",{"$f":"_xlfn.XLOOKUP(Measures_Table[[#This Row],[PM Program]],Programs_Active20[ZSBPPROGM (KEY)],Programs_Active20[LONG TEXT])","v":"CDBG Administration"}]
[1093,158,"Y",145,"EACH","OUTCOME","ADOPTEDBUD",null,null,null,null,"CDBG Administration (158)","# of signs fabricated","# of signs fabricated",{"$f":"_xlfn.XLOOKUP(Measures_Table[[#This Row],[PM Program]],Programs_Active20[ZSBPPROGM (KEY)],Programs_Active20[LONG TEXT])","v":"CDBG Administration"}]
[1094,158,"Y",146,"PERCENT","OUTCOME","ADOPTEDBUD",null,null,null,null,"Child Prot Svcs Reintegrt Proj-CRP (158)","% customer rating good or excellent","% customer rating good or excellent",{"$f":"_xlfn.XLOOKUP(Measures_Table[[#This Row],[PM Program]],Programs_Active20[ZSBPPROGM (KEY)],Programs_Active20[LONG TEXT])","v":"Child Protective Services Reintegration Project (CRP)"}]
[1095,158,"Y",146,"EACH","OUTCOME","NEITHER",null,null,null,null,"Child Prot Svcs Reintegrt Proj-CRP (158)","Number of corrective/disciplinary action","Number of corrective/disciplinary action cases",{"$f":"_xlfn.XLOOKUP(Measures_Table[[#This Row],[PM Program]],Programs_Active20[ZSBPPROGM (KEY)],Programs_Active20[LONG TEXT])","v":"Child Protective Services Reintegration Project (CRP)"}]
[1096,158,"Y",146,"EACH","OUTCOME","NEITHER",null,null,null,null,"Child Prot Svcs Reintegrt Proj-CRP (158)","Number of particpants trained","Number of particpants trained",{"$f":"_xlfn.XLOOKUP(Measures_Table[[#This Row],[PM Program]],Programs_Active20[ZSBPPROGM (KEY)],Programs_Active20[LONG TEXT])","v":"Child Protective Services Reintegration Project (CRP)"}]
[1097,158,"Y",146,"EACH","INPUT","NEITHER",null,null,null,null,"Child Prot Svcs Reintegrt Proj-CRP (158)","Percent of complaints proceeding to grie","Percent of complaints proceeding to grievance or claims",{"$f":"_xlfn.XLOOKUP(Measures_Table[[#This Row],[PM Program]],Programs_Active20[ZSBPPROGM (KEY)],Programs_Active20[LONG TEXT])","v":"Child Protective Services Reintegration Project (CRP)"}]
[1098,158,"Y",146,"EACH","OUTPUT","NEITHER",null,null,null,null,"Child Prot Svcs Reintegrt Proj-CRP (158)","Percent of complaints resolved prior to","Percent of complaints resolved prior to formal process",{"$f":"_xlfn.XLOOKUP(Measures_Table[[#This Row],[PM Program]],Programs_Active20[ZSBPPROGM (KEY)],Programs_Active20[LONG TEXT])","v":"Child Protective Services Reintegration Project (CRP)"}]
[1099,158,"Y",146,"EACH","OUTPUT","NEITHER",null,null,null,null,"Child Prot Svcs Reintegrt Proj-CRP (158)","% of participants rating training good","Percent of training participants rating training as good or excellent",{"$f":"_xlfn.XLOOKUP(Measures_Table[[#This Row],[PM Program]],Programs_Active20[ZSBPPROGM (KEY)],Programs_Active20[LONG TEXT])","v":"Child Protective Services Reintegration Project (CRP)"}]
[1100,158,"Y",147,"PERCENT","OUTCOME","NEITHER",null,null,null,null,"Family First (158)","Number of Court Agenda items processed","Number of Court Agenda items processed",{"$f":"_xlfn.XLOOKUP(Measures_Table[[#This Row],[PM Program]],Programs_Active20[ZSBPPROGM (KEY)],Programs_Active20[LONG TEXT])","v":"Family First"}]
[1102,158,"Y",147,"PERCENT","OUTCOME","ADOPTEDBUD",null,null,null,null,"Family First (158)","Percentage of changes and corrections","Percentage of changes and corrections",{"$f":"_xlfn.XLOOKUP(Measures_Table[[#This Row],[PM Program]],Programs_Active20[ZSBPPROGM (KEY)],Programs_Active20[LONG TEXT])","v":"Family First"}]
[1103,158,"Y",147,"EACH","OUTPUT","NEITHER",null,null,null,null,"Family First (158)","Percentage of FTE assigned this duty as","Percentage of FTE assigned this duty as primary",{"$f":"_xlfn.XLOOKUP(Measures_Table[[#This Row],[PM Program]],Programs_Active20[ZSBPPROGM (KEY)],Programs_Active20[LONG TEXT])","v":"Family First"}]
[1104,158,"Y",148,"HOURS","INPUT","NEITHER",null,null,null,null,"engAGE Travis County (158)","Annual contracted services to digitize","Annual contracted services to digitize permanent retention records",{"$f":"_xlfn.XLOOKUP(Measures_Table[[#This Row],[PM Program]],Programs_Active20[ZSBPPROGM (KEY)],Programs_Active20[LONG TEXT])","v":"engAGE Travis County"}]
[1105,158,"Y",148,"PERCENT","OUTCOME","ADOPTEDBUD",null,null,null,null,"engAGE Travis County (158)","Number of Plan sets digitized (revised)","Number of Plan sets digitized (revised)",{"$f":"_xlfn.XLOOKUP(Measures_Table[[#This Row],[PM Program]],Programs_Active20[ZSBPPROGM (KEY)],Programs_Active20[LONG TEXT])","v":"engAGE Travis County"}]
[1106,158,"Y",148,"DOLLARS","OUTCOME","ADOPTEDBUD",null,null,null,null,"engAGE Travis County (158)","Internal users satisfied or better based","Internal users satisfied or better based on annual customer service satisfaction survey",{"$f":"_xlfn.XLOOKUP(Measures_Table[[#This Row],[PM Program]],Programs_Active20[ZSBPPROGM (KEY)],Programs_Active20[LONG TEXT])","v":"engAGE Travis County"}]
[1107,158,"Y",148,"EACH","OUTPUT","NEITHER",null,null,null,null,"engAGE Travis County (158)","large-format pages scanned by contractor","large-format pages scanned by contracted service.",{"$f":"_xlfn.XLOOKUP(Measures_Table[[#This Row],[PM Program]],Programs_Active20[ZSBPPROGM (KEY)],Programs_Active20[LONG TEXT])","v":"engAGE Travis County"}]
[1108,158,"Y",150,"PERCENT","OUTCOME","ADOPTEDBUD",null,null,null,null,"Ofc of Chief Dep: Community Liaison(158)","pages/yr scanned - linked to records sys","pages per year scanned, indexed and linked to records system by internal staffing",{"$f":"_xlfn.XLOOKUP(Measures_Table[[#This Row],[PM Program]],Programs_Active20[ZSBPPROGM (KEY)],Programs_Active20[LONG TEXT])","v":"Office of the Chief Deputy: Community Liaison\n"}]
[1109,158,"Y",150,"EACH","OUTPUT","NEITHER",null,null,null,null,"Ofc of Chief Dep: Community Liaison(158)","Average Hours spent per claim","Average Hours spent per claim",{"$f":"_xlfn.XLOOKUP(Measures_Table[[#This Row],[PM Program]],Programs_Active20[ZSBPPROGM (KEY)],Programs_Active20[LONG TEXT])","v":"Office of the Chief Deputy: Community Liaison\n"}]
[1110,158,"Y",150,"EACH","OUTPUT","NEITHER",null,null,null,null,"Ofc of Chief Dep: Community Liaison(158)","Number of Property Loss Claims","Number of Property Loss Claims",{"$f":"_xlfn.XLOOKUP(Measures_Table[[#This Row],[PM Program]],Programs_Active20[ZSBPPROGM (KEY)],Programs_Active20[LONG TEXT])","v":"Office of the Chief Deputy: Community Liaison\n"}]
[1111,158,"Y",153,"EACH","EFFICIENCY","NEITHER",null,null,null,null,"Family Support Services Division (158)","Percent of reduction in preventable coll","Percent of reduction in preventable collisions",{"$f":"_xlfn.XLOOKUP(Measures_Table[[#This Row],[PM Program]],Programs_Active20[ZSBPPROGM (KEY)],Programs_Active20[LONG TEXT])","v":"Family Support Services Division"}]
[1113,158,"Y",153,"EACH","OUTPUT","NEITHER",null,null,null,null,"Family Support Services Division (158)","# of pedestrians / # guards","# of pedestrians / # guards",{"$f":"_xlfn.XLOOKUP(Measures_Table[[#This Row],[PM Program]],Programs_Active20[ZSBPPROGM (KEY)],Programs_Active20[LONG TEXT])","v":"Family Support Services Division"}]
[1115,158,"Y",153,"EACH","OUTPUT","ADOPTEDBUD",null,null,null,null,"Family Support Services Division (158)","Number of school crossing guard location","Number of school crossing guard locations",{"$f":"_xlfn.XLOOKUP(Measures_Table[[#This Row],[PM Program]],Programs_Active20[ZSBPPROGM (KEY)],Programs_Active20[LONG TEXT])","v":"Family Support Services Division"}]
[1116,158,"Y",153,"EACH","OUTPUT","NEITHER",null,null,null,null,"Family Support Services Division (158)","Zero incidents resulting in injury to pe","Zero incidents resulting in injury to pedestrians",{"$f":"_xlfn.XLOOKUP(Measures_Table[[#This Row],[PM Program]],Programs_Active20[ZSBPPROGM (KEY)],Programs_Active20[LONG TEXT])","v":"Family Support Services Division"}]
[1117,158,"Y",153,"EACH","OUTPUT","ADOPTEDBUD",null,null,null,null,"Family Support Services Division (158)","Increase % of services to areas of very","Increase % of services to areas of very low/low opportunity",{"$f":"_xlfn.XLOOKUP(Measures_Table[[#This Row],[PM Program]],Programs_Active20[ZSBPPROGM (KEY)],Programs_Active20[LONG TEXT])","v":"Family Support Services Division"}]
[1118,158,"Y",153,"EACH","OUTPUT","NEITHER",null,null,null,null,"Family Support Services Division (158)","Affirmatively Further Fair Housing as re","Affirmatively Further Fair Housing as required",{"$f":"_xlfn.XLOOKUP(Measures_Table[[#This Row],[PM Program]],Programs_Active20[ZSBPPROGM (KEY)],Programs_Active20[LONG TEXT])","v":"Family Support Services Division"}]
[1119,158,"Y",153,"EACH","OUTPUT","ADOPTEDBUD",null,null,null,null,"Family Support Services Division (158)","Meet HUD required spending ratio by Augu","Meet HUD required spending ratio by August 1st",{"$f":"_xlfn.XLOOKUP(Measures_Table[[#This Row],[PM Program]],Programs_Active20[ZSBPPROGM (KEY)],Programs_Active20[LONG TEXT])","v":"Family Support Services Division"}]
[1120,158,"Y",153,"PERCENT","OUTCOME","ADOPTEDBUD",null,null,null,null,"Family Support Services Division (158)","Successful completion of monitoring visi","Successful completion of monitoring visit by HUD personnel - findings.",{"$f":"_xlfn.XLOOKUP(Measures_Table[[#This Row],[PM Program]],Programs_Active20[ZSBPPROGM (KEY)],Programs_Active20[LONG TEXT])","v":"Family Support Services Division"}]
[1122,158,"Y",153,"DOLLARS","OUTPUT","NEITHER",null,null,null,null,"Family Support Services Division (158)","#  youth in community 6 mos post CPS clo","Number of children who are residing in the community 6 mo after CPS case closure",{"$f":"_xlfn.XLOOKUP(Measures_Table[[#This Row],[PM Program]],Programs_Active20[ZSBPPROGM (KEY)],Programs_Active20[LONG TEXT])","v":"Family Support Services Division"}]
[1123,158,"Y",153,"DOLLARS","OUTPUT","NEITHER",null,null,null,null,"Family Support Services Division (158)","# youth reintegrated into the community","Number of children/youth who are reintegrated into the community post CPS placement",{"$f":"_xlfn.XLOOKUP(Measures_Table[[#This Row],[PM Program]],Programs_Active20[ZSBPPROGM (KEY)],Programs_Active20[LONG TEXT])","v":"Family Support Services Division"}]
[1124,158,"Y",153,"DOLLARS","OUTPUT","NEITHER",null,null,null,null,"Family Support Services Division (158)","# of families enrolled post screening","Number of families enrolled into the program post screening",{"$f":"_xlfn.XLOOKUP(Measures_Table[[#This Row],[PM Program]],Programs_Active20[ZSBPPROGM (KEY)],Programs_Active20[LONG TEXT])","v":"Family Support Services Division"}]
[1125,158,"Y",153,"DOLLARS","OUTPUT","NEITHER",null,null,null,null,"Family Support Services Division (158)","# of families screened for program","Number of families screened for program services and eligibility",{"$f":"_xlfn.XLOOKUP(Measures_Table[[#This Row],[PM Program]],Programs_Active20[ZSBPPROGM (KEY)],Programs_Active20[LONG TEXT])","v":"Family Support Services Division"}]
[1126,158,"Y",153,"DOLLARS","OUTPUT","NEITHER",null,null,null,null,"Family Support Services Division (158)","# of families served this fiscal year","Number of unduplicated families served during the fiscal year",{"$f":"_xlfn.XLOOKUP(Measures_Table[[#This Row],[PM Program]],Programs_Active20[ZSBPPROGM (KEY)],Programs_Active20[LONG TEXT])","v":"Family Support Services Division"}]
[1129,158,"Y",155,"PERCENT","OUTCOME","NEITHER",null,null,null,null,"Healthy Families Travis County (158)","% of parents successfully discharge","Percentage of parents that successfully complete the Nurturing Parenting Program",{"$f":"_xlfn.XLOOKUP(Measures_Table[[#This Row],[PM Program]],Programs_Active20[ZSBPPROGM (KEY)],Programs_Active20[LONG TEXT])","v":"Healthy Families Travis County"}]
[1130,158,"Y",155,"PERCENT","OUTCOME","NEITHER",null,null,null,null,"Healthy Families Travis County (158)","# of unduplicated families served","Number of unduplicated families served",{"$f":"_xlfn.XLOOKUP(Measures_Table[[#This Row],[PM Program]],Programs_Active20[ZSBPPROGM (KEY)],Programs_Active20[LONG TEXT])","v":"Healthy Families Travis County"}]
[1131,158,"Y",155,"PERCENT","OUTCOME","NEITHER",null,null,null,null,"Healthy Families Travis County (158)","Number of volunteer service hours contri","Number of volunteer service hours contributed",{"$f":"_xlfn.XLOOKUP(Measures_Table[[#This Row],[PM Program]],Programs_Active20[ZSBPPROGM (KEY)],Programs_Active20[LONG TEXT])","v":"Healthy Families Travis County"}]
[1132,158,"Y",155,"PERCENT","OUTCOME","ADOPTEDBUD",null,null,null,null,"Healthy Families Travis County (158)","% of volunteers reporting more purposefu","% of volunteers reporting more purposeful lives",{"$f":"_xlfn.XLOOKUP(Measures_Table[[#This Row],[PM Program]],Programs_Active20[ZSBPPROGM (KEY)],Programs_Active20[LONG TEXT])","v":"Healthy Families Travis County"}]
[1133,158,"Y",155,"EACH","OUTPUT","NEITHER",null,null,null,null,"Healthy Families Travis County (158)","Added dollar value of volunteer support","Added dollar value of volunteer support to agencies",{"$f":"_xlfn.XLOOKUP(Measures_Table[[#This Row],[PM Program]],Programs_Active20[ZSBPPROGM (KEY)],Programs_Active20[LONG TEXT])","v":"Healthy Families Travis County"}]
[1134,158,"Y",156,"PERCENT","OUTCOME","NEITHER",null,null,null,null,"Housing Services (158)","Number of active volunteers","Number of active volunteers",{"$f":"_xlfn.XLOOKUP(Measures_Table[[#This Row],[PM Program]],Programs_Active20[ZSBPPROGM (KEY)],Programs_Active20[LONG TEXT])","v":"Housing Services"}]
[1135,158,"Y",156,"PERCENT","OUTCOME","NEITHER",null,null,null,null,"Housing Services (158)","% of activities that generate new leads","% of activities that generate new leads and partnerships",{"$f":"_xlfn.XLOOKUP(Measures_Table[[#This Row],[PM Program]],Programs_Active20[ZSBPPROGM (KEY)],Programs_Active20[LONG TEXT])","v":"Housing Services"}]
[1136,158,"Y",156,"PERCENT","OUTCOME","NEITHER",null,null,null,null,"Housing Services (158)","# of forums/collaborations/events organi","# of forums/collaborations/events organized or facilitated",{"$f":"_xlfn.XLOOKUP(Measures_Table[[#This Row],[PM Program]],Programs_Active20[ZSBPPROGM (KEY)],Programs_Active20[LONG TEXT])","v":"Housing Services"}]
[1137,158,"Y",156,"EACH","OUTPUT","ADOPTEDBUD",null,null,null,null,"Housing Services (158)","# of TA sessions provided to HHS divisio","# of TA sessions provided to HHS divisions and CBOs",{"$f":"_xlfn.XLOOKUP(Measures_Table[[#This Row],[PM Program]],Programs_Active20[ZSBPPROGM (KEY)],Programs_Active20[LONG TEXT])","v":"Housing Services"}]
[1138,158,"Y",156,"EACH","OUTPUT","ADOPTEDBUD",null,null,null,null,"Housing Services (158)","Average number of payments processed by","Average number of payments processed by caseworker per month",{"$f":"_xlfn.XLOOKUP(Measures_Table[[#This Row],[PM Program]],Programs_Active20[ZSBPPROGM (KEY)],Programs_Active20[LONG TEXT])","v":"Housing Services"}]
[1139,158,"Y",157,"PERCENT","OUTCOME","NEITHER",null,null,null,null,"Neighborhood Conference Comm - NCC (158)","# of Community Events sponsored by Divis","# of Community Events sponsored by Division staff",{"$f":"_xlfn.XLOOKUP(Measures_Table[[#This Row],[PM Program]],Programs_Active20[ZSBPPROGM (KEY)],Programs_Active20[LONG TEXT])","v":"Neighborhood Conference Committee (NCC)"}]
[1140,158,"Y",157,"PERCENT","OUTCOME","ADOPTEDBUD",null,null,null,null,"Neighborhood Conference Comm - NCC (158)","# of HH's that received Burials","# of HH's that received Burials",{"$f":"_xlfn.XLOOKUP(Measures_Table[[#This Row],[PM Program]],Programs_Active20[ZSBPPROGM (KEY)],Programs_Active20[LONG TEXT])","v":"Neighborhood Conference Committee (NCC)"}]
[1141,158,"Y",157,"PERCENT","OUTCOME","ADOPTEDBUD",null,null,null,null,"Neighborhood Conference Comm - NCC (158)","# of HH's that received financial assist","# of HH's that received financial assist and SW services",{"$f":"_xlfn.XLOOKUP(Measures_Table[[#This Row],[PM Program]],Programs_Active20[ZSBPPROGM (KEY)],Programs_Active20[LONG TEXT])","v":"Neighborhood Conference Committee (NCC)"}]
[1142,158,"Y",157,"EACH","INPUT","NEITHER",null,null,null,null,"Neighborhood Conference Comm - NCC (158)","# of HH's that received Food Pantry","# of HH's that received Food Pantry",{"$f":"_xlfn.XLOOKUP(Measures_Table[[#This Row],[PM Program]],Programs_Active20[ZSBPPROGM (KEY)],Programs_Active20[LONG TEXT])","v":"Neighborhood Conference Committee (NCC)"}]
[1143,158,"Y",159,"PERCENT","OUTCOME","NEITHER",null,null,null,null,"Parenting in Recovery (158)","# of HH's that received Prescriptions","# of HH's that received Prescriptions",{"$f":"_xlfn.XLOOKUP(Measures_Table[[#This Row],[PM Program]],Programs_Active20[ZSBPPROGM (KEY)],Programs_Active20[LONG TEXT])","v":"Parenting in Recovery"}]
[1144,158,"Y",159,"PERCENT","OUTCOME","ADOPTEDBUD",null,null,null,null,"Parenting in Recovery (158)","# of HH's that received Rent/Mortgage","# of HH's that received Rent/Mortgage",{"$f":"_xlfn.XLOOKUP(Measures_Table[[#This Row],[PM Program]],Programs_Active20[ZSBPPROGM (KEY)],Programs_Active20[LONG TEXT])","v":"Parenting in Recovery"}]
[1145,158,"Y",159,"PERCENT","OUTCOME","NEITHER",null,null,null,null,"Parenting in Recovery (158)","# of HH's that received SW services","# of HH's that received SW services",{"$f":"_xlfn.XLOOKUP(Measures_Table[[#This Row],[PM Program]],Programs_Active20[ZSBPPROGM (KEY)],Programs_Active20[LONG TEXT])","v":"Parenting in Recovery"}]
[1146,158,"Y",159,"PERCENT","OUTCOME","NEITHER",null,null,null,null,"Parenting in Recovery (158)","# of HH's that received Utilities","# of HH's that received Utilities",{"$f":"_xlfn.XLOOKUP(Measures_Table[[#This Row],[PM Program]],Programs_Active20[ZSBPPROGM (KEY)],Programs_Active20[LONG TEXT])","v":"Parenting in Recovery"}]
[1152,158,"Y",159,"PERCENT","OUTPUT","NEITHER",null,null,null,null,"Parenting in Recovery (158)","Amount expended for Rent/Mortgage","Amount expended for Rent/Mortgage",{"$f":"_xlfn.XLOOKUP(Measures_Table[[#This Row],[PM Program]],Programs_Active20[ZSBPPROGM (KEY)],Programs_Active20[LONG TEXT])","v":"Parenting in Recovery"}]
[1153,158,"Y",159,"EACH","OUTPUT","NEITHER",null,null,null,null,"Parenting in Recovery (158)","Amount expended for Utilities","Amount expended for Utilities",{"$f":"_xlfn.XLOOKUP(Measures_Table[[#This Row],[PM Program]],Programs_Active20[ZSBPPROGM (KEY)],Programs_Active20[LONG TEXT])","v":"Parenting in Recovery"}]
[1155,158,"Y",161,"PERCENT","OUTCOME","ADOPTEDBUD",null,null,null,null,"Research & Planning Division (158)","Total amount of Emergency Assistance Pro","Total amount of Emergency Assistance Provided",{"$f":"_xlfn.XLOOKUP(Measures_Table[[#This Row],[PM Program]],Programs_Active20[ZSBPPROGM (KEY)],Programs_Active20[LONG TEXT])","v":"Research & Planning Division"}]
[1156,158,"Y",161,"PERCENT","OUTCOME","ADOPTEDBUD",null,null,null,null,"Research & Planning Division (158)","%children obtain appropriate development","Percentage of children who achieve age-appropriate development",{"$f":"_xlfn.XLOOKUP(Measures_Table[[#This Row],[PM Program]],Programs_Active20[ZSBPPROGM (KEY)],Programs_Active20[LONG TEXT])","v":"Research & Planning Division"}]
[1157,158,"Y",161,"PERCENT","OUTCOME","ADOPTEDBUD",null,null,null,null,"Research & Planning Division (158)","% of children who receive immunizations","Percentage of children who received age-appropriate immunizations within expected guidelines",{"$f":"_xlfn.XLOOKUP(Measures_Table[[#This Row],[PM Program]],Programs_Active20[ZSBPPROGM (KEY)],Programs_Active20[LONG TEXT])","v":"Research & Planning Division"}]
[1158,158,"Y",161,"EACH","OUTPUT","NEITHER",null,null,null,null,"Research & Planning Division (158)","% children receive well-child checks","Percntage of children who attend age-appropriate well-child checks within expected guidelines",{"$f":"_xlfn.XLOOKUP(Measures_Table[[#This Row],[PM Program]],Programs_Active20[ZSBPPROGM (KEY)],Programs_Active20[LONG TEXT])","v":"Research & Planning Division"}]
[1159,158,"Y",161,"EACH","OUTPUT","NEITHER",null,null,null,null,"Research & Planning Division (158)","% families no  child abuse or neglect","Percentage of families with no substantiated finding of child abuse or neglect",{"$f":"_xlfn.XLOOKUP(Measures_Table[[#This Row],[PM Program]],Programs_Active20[ZSBPPROGM (KEY)],Programs_Active20[LONG TEXT])","v":"Research & Planning Division"}]
[1160,158,"Y",161,"EACH","OUTPUT","NEITHER",null,null,null,null,"Research & Planning Division (158)","# of families served by program","Total number of families served including both assessment and home visiting",{"$f":"_xlfn.XLOOKUP(Measures_Table[[#This Row],[PM Program]],Programs_Active20[ZSBPPROGM (KEY)],Programs_Active20[LONG TEXT])","v":"Research & Planning Division"}]
[1161,158,"Y",161,"EACH","OUTPUT","NEITHER",null,null,null,null,"Research & Planning Division (158)","% of DOE WAP expenditures completed","% of DOE WAP expenditures completed",{"$f":"_xlfn.XLOOKUP(Measures_Table[[#This Row],[PM Program]],Programs_Active20[ZSBPPROGM (KEY)],Programs_Active20[LONG TEXT])","v":"Research & Planning Division"}]
[1163,158,"Y",161,"EACH","OUTPUT","NEITHER",null,null,null,null,"Research & Planning Division (158)","% of LIHEAP WAP expenditures completed","% of LIHEAP WAP expenditures completed",{"$f":"_xlfn.XLOOKUP(Measures_Table[[#This Row],[PM Program]],Programs_Active20[ZSBPPROGM (KEY)],Programs_Active20[LONG TEXT])","v":"Research & Planning Division"}]
[1164,158,"Y",161,"EACH","OUTPUT","NEITHER",null,null,null,null,"Research & Planning Division (158)","Number of Homes/Dwellings receiving home","Number of Homes/Dwellings receiving home repair",{"$f":"_xlfn.XLOOKUP(Measures_Table[[#This Row],[PM Program]],Programs_Active20[ZSBPPROGM (KEY)],Programs_Active20[LONG TEXT])","v":"Research & Planning Division"}]
[1165,158,"Y",161,"EACH","OUTPUT","NEITHER",null,null,null,null,"Research & Planning Division (158)","Number of unduplicated clients served","Number of unduplicated clients served",{"$f":"_xlfn.XLOOKUP(Measures_Table[[#This Row],[PM Program]],Programs_Active20[ZSBPPROGM (KEY)],Programs_Active20[LONG TEXT])","v":"Research & Planning Division"}]
[1166,158,"Y",161,"EACH","OUTPUT","NEITHER",null,null,null,null,"Research & Planning Division (158)","% of administrative terminations","% of administrative terminations",{"$f":"_xlfn.XLOOKUP(Measures_Table[[#This Row],[PM Program]],Programs_Active20[ZSBPPROGM (KEY)],Programs_Active20[LONG TEXT])","v":"Research & Planning Division"}]
[1167,158,"Y",162,"PERCENT","OUTCOME","NEITHER",null,null,null,null,"Service for Deaf & Hard of Hearing (158)","% of cases completed successfully","% of cases completed successfully",{"$f":"_xlfn.XLOOKUP(Measures_Table[[#This Row],[PM Program]],Programs_Active20[ZSBPPROGM (KEY)],Programs_Active20[LONG TEXT])","v":"Services for the Deaf and Hard of Hearing"}]
[1168,158,"Y",162,"PERCENT","OUTCOME","ADOPTEDBUD",null,null,null,null,"Service for Deaf & Hard of Hearing (158)","% of juveniles reoffending within one ye","% of juveniles reoffending within one year/recidivism",{"$f":"_xlfn.XLOOKUP(Measures_Table[[#This Row],[PM Program]],Programs_Active20[ZSBPPROGM (KEY)],Programs_Active20[LONG TEXT])","v":"Services for the Deaf and Hard of Hearing"}]
[1169,158,"Y",162,"EACH","OUTPUT","NEITHER",null,null,null,null,"Service for Deaf & Hard of Hearing (158)","# of cases referred to NCC program from","# of cases referred to NCC program from Juvenile Court",{"$f":"_xlfn.XLOOKUP(Measures_Table[[#This Row],[PM Program]],Programs_Active20[ZSBPPROGM (KEY)],Programs_Active20[LONG TEXT])","v":"Services for the Deaf and Hard of Hearing"}]
[1170,158,"Y",162,"EACH","OUTPUT","NEITHER",null,null,null,null,"Service for Deaf & Hard of Hearing (158)","PIRFDTC % children without maltreatment","PIR/FDTC percentage of children without a recurrence of maltreatment within a 24 month period post program discharge",{"$f":"_xlfn.XLOOKUP(Measures_Table[[#This Row],[PM Program]],Programs_Active20[ZSBPPROGM (KEY)],Programs_Active20[LONG TEXT])","v":"Services for the Deaf and Hard of Hearing"}]
[1171,158,"Y",162,"EACH","OUTPUT","NEITHER",null,null,null,null,"Service for Deaf & Hard of Hearing (158)","PIRFDTC % children in care of parent d/c","PIR/FDTC percentage children who are in care of a parent at discharge",{"$f":"_xlfn.XLOOKUP(Measures_Table[[#This Row],[PM Program]],Programs_Active20[ZSBPPROGM (KEY)],Programs_Active20[LONG TEXT])","v":"Services for the Deaf and Hard of Hearing"}]
[1172,158,"Y",162,"EACH","OUTPUT","NEITHER",null,null,null,null,"Service for Deaf & Hard of Hearing (158)","PIRFDTC % children reach age milestones","PIR/FDTC percentage of children who demonstrate either improvement in or stability in obtaining  developmental milestones",{"$f":"_xlfn.XLOOKUP(Measures_Table[[#This Row],[PM Program]],Programs_Active20[ZSBPPROGM (KEY)],Programs_Active20[LONG TEXT])","v":"Services for the Deaf and Hard of Hearing"}]
[1173,158,"Y",162,"EACH","OUTPUT","NEITHER",null,null,null,null,"Service for Deaf & Hard of Hearing (158)","PIRFDTC % of successful discharges","PIR/FDTC percentage of participants that successfully discharge from program",{"$f":"_xlfn.XLOOKUP(Measures_Table[[#This Row],[PM Program]],Programs_Active20[ZSBPPROGM (KEY)],Programs_Active20[LONG TEXT])","v":"Services for the Deaf and Hard of Hearing"}]
[1174,158,"Y",162,"EACH","OUTPUT","NEITHER",null,null,null,null,"Service for Deaf & Hard of Hearing (158)","PIRFDTC % parents improvement w/ AAPI-2","PIR/FDTC percentage of  parents who demonstrate an improvement on the AAPI-2 assessment tool",{"$f":"_xlfn.XLOOKUP(Measures_Table[[#This Row],[PM Program]],Programs_Active20[ZSBPPROGM (KEY)],Programs_Active20[LONG TEXT])","v":"Services for the Deaf and Hard of Hearing"}]
[1175,158,"Y",163,"EACH","OUTPUT","NEITHER",null,null,null,null,"SSA Contracts: Acc to Basic Support(158)","YFAC % childrenimproved CAFAS score","YFAC percentage of children/youth who have an improved CAFAS score",{"$f":"_xlfn.XLOOKUP(Measures_Table[[#This Row],[PM Program]],Programs_Active20[ZSBPPROGM (KEY)],Programs_Active20[LONG TEXT])","v":"Social Service Agency Contracts: Access to Basic Supports"}]
[1176,158,"Y",163,"EACH","OUTPUT","NEITHER",null,null,null,null,"SSA Contracts: Acc to Basic Support(158)","YFAC % Improve Parent/Child relationship","YFAC percentage of parents through the survey indicate an improvement in their Parent/Child relationship",{"$f":"_xlfn.XLOOKUP(Measures_Table[[#This Row],[PM Program]],Programs_Active20[ZSBPPROGM (KEY)],Programs_Active20[LONG TEXT])","v":"Social Service Agency Contracts: Access to Basic Supports"}]
[1177,158,"Y",163,"EACH","OUTPUT","NEITHER",null,null,null,null,"SSA Contracts: Acc to Basic Support(158)","YFAC % of Families that met goals","YFAC Percentage of Families that met goals",{"$f":"_xlfn.XLOOKUP(Measures_Table[[#This Row],[PM Program]],Programs_Active20[ZSBPPROGM (KEY)],Programs_Active20[LONG TEXT])","v":"Social Service Agency Contracts: Access to Basic Supports"}]
[1178,158,"Y",163,"EACH","OUTPUT","NEITHER",null,null,null,null,"SSA Contracts: Acc to Basic Support(158)","PIRFDTC % in substance treatment 10 days","PIR/FDTC percentage of participants able to access residential substance abuse treatment within 10 days",{"$f":"_xlfn.XLOOKUP(Measures_Table[[#This Row],[PM Program]],Programs_Active20[ZSBPPROGM (KEY)],Programs_Active20[LONG TEXT])","v":"Social Service Agency Contracts: Access to Basic Supports"}]
[1179,158,"Y",163,"EACH","OUTPUT","NEITHER",null,null,null,null,"SSA Contracts: Acc to Basic Support(158)","PIRFDTC % complete substance treatment","PIR/FDTC percentage of participants that complete residential substance abuse treatment",{"$f":"_xlfn.XLOOKUP(Measures_Table[[#This Row],[PM Program]],Programs_Active20[ZSBPPROGM (KEY)],Programs_Active20[LONG TEXT])","v":"Social Service Agency Contracts: Access to Basic Supports"}]
[1180,158,"Y",164,"PERCENT","OUTCOME","NEITHER",null,null,null,null,"SSA Contracts: Behavioral Health (158)","PIRFDTC # undup adult served by the FDTC","PIR/FDTC number of unduplicated adults served by the program during the fiscal year",{"$f":"_xlfn.XLOOKUP(Measures_Table[[#This Row],[PM Program]],Programs_Active20[ZSBPPROGM (KEY)],Programs_Active20[LONG TEXT])","v":"Social Service Agency Contracts: Behavioral Health"}]
[1183,158,"Y",165,"PERCENT","OUTCOME","NEITHER",null,null,null,null,"SSA Contracts: Child & Youth Devlp (158)","% who report that support/TA was good","Percent of contracted service providers who report that the support or technical assistance provided was Good or Excellent",{"$f":"_xlfn.XLOOKUP(Measures_Table[[#This Row],[PM Program]],Programs_Active20[ZSBPPROGM (KEY)],Programs_Active20[LONG TEXT])","v":"Social Service Agency Contracts: Child and Youth Development"}]
[1184,158,"Y",165,"PERCENT","OUTCOME","NEITHER",null,null,null,null,"SSA Contracts: Child & Youth Devlp (158)","% who report that they used information","Percent of customers who report that they used information provided by R&P one of the following ways: Learn more about our community; Make or influence funding decisions; Make or influence policy decisions; Make or influence program changes; Make or influence system changes; and/or Write grants or receive funding",{"$f":"_xlfn.XLOOKUP(Measures_Table[[#This Row],[PM Program]],Programs_Active20[ZSBPPROGM (KEY)],Programs_Active20[LONG TEXT])","v":"Social Service Agency Contracts: Child and Youth Development"}]
[1185,158,"Y",165,"PERCENT","OUTCOME","NEITHER",null,null,null,null,"SSA Contracts: Child & Youth Devlp (158)","# of contracts managed (duplicated)","Number of contracts managed by programmatic or performance staff (duplicated across programmatic and performance staff)",{"$f":"_xlfn.XLOOKUP(Measures_Table[[#This Row],[PM Program]],Programs_Active20[ZSBPPROGM (KEY)],Programs_Active20[LONG TEXT])","v":"Social Service Agency Contracts: Child and Youth Development"}]
[1186,158,"Y",165,"PERCENT","OUTCOME","NEITHER",null,null,null,null,"SSA Contracts: Child & Youth Devlp (158)","# of work sessions facilitated","Number of work sessions facilitated",{"$f":"_xlfn.XLOOKUP(Measures_Table[[#This Row],[PM Program]],Programs_Active20[ZSBPPROGM (KEY)],Programs_Active20[LONG TEXT])","v":"Social Service Agency Contracts: Child and Youth Development"}]
[1187,158,"Y",165,"EACH","OUTPUT","NEITHER",null,null,null,null,"SSA Contracts: Child & Youth Devlp (158)","# of groups/processes_participation","Number of groups or processes in which R&P participated and contributed",{"$f":"_xlfn.XLOOKUP(Measures_Table[[#This Row],[PM Program]],Programs_Active20[ZSBPPROGM (KEY)],Programs_Active20[LONG TEXT])","v":"Social Service Agency Contracts: Child and Youth Development"}]
[1188,158,"Y",166,"EACH","OUTPUT","NEITHER",null,null,null,null,null,"# of groups/processes_planning support","Number of groups or processes provided planning support or coordination",{"$f":"_xlfn.XLOOKUP(Measures_Table[[#This Row],[PM Program]],Programs_Active20[ZSBPPROGM (KEY)],Programs_Active20[LONG TEXT])","v":{"$error":"#N/A"}}]
[1189,158,"Y",167,"PERCENT","OUTCOME","NEITHER",null,null,null,null,"SSA Contracts: Housing Continuum (158)","# of investment-related processes","Number of investment-related processes implemented",{"$f":"_xlfn.XLOOKUP(Measures_Table[[#This Row],[PM Program]],Programs_Active20[ZSBPPROGM (KEY)],Programs_Active20[LONG TEXT])","v":"Social Service Agency Contracts: Housing Continuum"}]
[1190,158,"Y",167,"PERCENT","OUTCOME","NEITHER",null,null,null,null,"SSA Contracts: Housing Continuum (158)","# of proj mgmt tools/measurement instrmt","Number of project management, measurement, and other management tools/instruments developed",{"$f":"_xlfn.XLOOKUP(Measures_Table[[#This Row],[PM Program]],Programs_Active20[ZSBPPROGM (KEY)],Programs_Active20[LONG TEXT])","v":"Social Service Agency Contracts: Housing Continuum"}]
[1191,158,"Y",167,"PERCENT","OUTCOME","NEITHER",null,null,null,null,"SSA Contracts: Housing Continuum (158)","# of reports completed","Number of reports completed",{"$f":"_xlfn.XLOOKUP(Measures_Table[[#This Row],[PM Program]],Programs_Active20[ZSBPPROGM (KEY)],Programs_Active20[LONG TEXT])","v":"Social Service Agency Contracts: Housing Continuum"}]
[1192,158,"Y",167,"EACH","OUTPUT","NEITHER",null,null,null,null,"SSA Contracts: Housing Continuum (158)","# of times data/info-related TA provided","Number of times data or information-related technical assistance or training was provided",{"$f":"_xlfn.XLOOKUP(Measures_Table[[#This Row],[PM Program]],Programs_Active20[ZSBPPROGM (KEY)],Programs_Active20[LONG TEXT])","v":"Social Service Agency Contracts: Housing Continuum"}]
[1194,158,"Y",168,"EACH","OUTPUT","NEITHER",null,null,null,null,"SSA Contracts: Public Health (158)","% of clients reporting satisfaction with","% of clients reporting satisfaction with quality of services",{"$f":"_xlfn.XLOOKUP(Measures_Table[[#This Row],[PM Program]],Programs_Active20[ZSBPPROGM (KEY)],Programs_Active20[LONG TEXT])","v":"Social Service Agency Contracts: Public Health"}]
[1195,158,"Y",169,"PERCENT","OUTCOME","NEITHER",null,null,null,null,"SSA Contracts: Safety Interven Svc (158)","Percentage of Interpreter requests succe","Percentage of Interpreter requests successfully filled",{"$f":"_xlfn.XLOOKUP(Measures_Table[[#This Row],[PM Program]],Programs_Active20[ZSBPPROGM (KEY)],Programs_Active20[LONG TEXT])","v":"Social Service Agency Contracts: Safety Intervention Svcs"}]
[1196,158,"Y",169,"PERCENT","OUTCOME","NEITHER",null,null,null,null,"SSA Contracts: Safety Interven Svc (158)","Number of Duplicated clients served: Cas","Number of Duplicated clients served: Case Management",{"$f":"_xlfn.XLOOKUP(Measures_Table[[#This Row],[PM Program]],Programs_Active20[ZSBPPROGM (KEY)],Programs_Active20[LONG TEXT])","v":"Social Service Agency Contracts: Safety Intervention Svcs"}]
[1197,158,"Y",169,"PERCENT","OUTCOME","NEITHER",null,null,null,null,"SSA Contracts: Safety Interven Svc (158)","Number of Duplicated clients served: Int","Number of Duplicated clients served: Interpreter Services",{"$f":"_xlfn.XLOOKUP(Measures_Table[[#This Row],[PM Program]],Programs_Active20[ZSBPPROGM (KEY)],Programs_Active20[LONG TEXT])","v":"Social Service Agency Contracts: Safety Intervention Svcs"}]
[1198,158,"Y",169,"EACH","OUTPUT","NEITHER",null,null,null,null,"SSA Contracts: Safety Interven Svc (158)","Number of hours of service: Case Managem","Number of hours of service: Case Management",{"$f":"_xlfn.XLOOKUP(Measures_Table[[#This Row],[PM Program]],Programs_Active20[ZSBPPROGM (KEY)],Programs_Active20[LONG TEXT])","v":"Social Service Agency Contracts: Safety Intervention Svcs"}]
[1199,158,"Y",169,"EACH","OUTPUT","NEITHER",null,null,null,null,"SSA Contracts: Safety Interven Svc (158)","Number of hours of service: Interpreter","Number of hours of service: Interpreter Services",{"$f":"_xlfn.XLOOKUP(Measures_Table[[#This Row],[PM Program]],Programs_Active20[ZSBPPROGM (KEY)],Programs_Active20[LONG TEXT])","v":"Social Service Agency Contracts: Safety Intervention Svcs"}]
[1200,158,"Y",170,"PERCENT","OUTCOME","NEITHER",null,null,null,null,"SSA Contracts: Sup Svc Comm Living (158)","Number of Unduplicated clients served: C","Number of Unduplicated clients served: Case Management",{"$f":"_xlfn.XLOOKUP(Measures_Table[[#This Row],[PM Program]],Programs_Active20[ZSBPPROGM (KEY)],Programs_Active20[LONG TEXT])","v":"Social Service Agency Contracts: Support Svc Comm Living"}]
[1201,158,"Y",170,"PERCENT","OUTCOME","NEITHER",null,null,null,null,"SSA Contracts: Sup Svc Comm Living (158)","Number of Unduplicated clients served: I","Number of Unduplicated clients served: Interpreter Services",{"$f":"_xlfn.XLOOKUP(Measures_Table[[#This Row],[PM Program]],Programs_Active20[ZSBPPROGM (KEY)],Programs_Active20[LONG TEXT])","v":"Social Service Agency Contracts: Support Svc Comm Living"}]
[1202,158,"Y",170,"EACH","OUTPUT","NEITHER",null,null,null,null,"SSA Contracts: Sup Svc Comm Living (158)","# of meals or meal equivalents provided","Number of meals or meal equivalents provided",{"$f":"_xlfn.XLOOKUP(Measures_Table[[#This Row],[PM Program]],Programs_Active20[ZSBPPROGM (KEY)],Programs_Active20[LONG TEXT])","v":"Social Service Agency Contracts: Support Svc Comm Living"}]
[1203,158,"Y",171,"PERCENT","OUTCOME","NEITHER",null,null,null,null,"SSA Contracts: Workforce Developmt (158)","# of Food clients served","Number of unduplicated Food clients served",{"$f":"_xlfn.XLOOKUP(Measures_Table[[#This Row],[PM Program]],Programs_Active20[ZSBPPROGM (KEY)],Programs_Active20[LONG TEXT])","v":"Social Service Agency Contracts: Workforce Development"}]
[1204,158,"Y",171,"PERCENT","OUTCOME","NEITHER",null,null,null,null,"SSA Contracts: Workforce Developmt (158)","# of Legal Rights/Benefits clients","Number of unduplicated Legal Rights and Benefits clients served",{"$f":"_xlfn.XLOOKUP(Measures_Table[[#This Row],[PM Program]],Programs_Active20[ZSBPPROGM (KEY)],Programs_Active20[LONG TEXT])","v":"Social Service Agency Contracts: Workforce Development"}]
[1205,158,"Y",171,"PERCENT","OUTCOME","NEITHER",null,null,null,null,"SSA Contracts: Workforce Developmt (158)","# of trips provided","Number of trips provided",{"$f":"_xlfn.XLOOKUP(Measures_Table[[#This Row],[PM Program]],Programs_Active20[ZSBPPROGM (KEY)],Programs_Active20[LONG TEXT])","v":"Social Service Agency Contracts: Workforce Development"}]
[1206,158,"Y",171,"EACH","OUTPUT","NEITHER",null,null,null,null,"SSA Contracts: Workforce Developmt (158)","# of Transportation clients served","Number of unduplicated Transportation clients served",{"$f":"_xlfn.XLOOKUP(Measures_Table[[#This Row],[PM Program]],Programs_Active20[ZSBPPROGM (KEY)],Programs_Active20[LONG TEXT])","v":"Social Service Agency Contracts: Workforce Development"}]
[1207,158,"Y",172,"EACH","OUTPUT","ADOPTEDBUD",null,null,null,null,"Texas A&M AgriLife Extension Svc (158)","% of clients with improved mental health","Percent of clients with improved mental health",{"$f":"_xlfn.XLOOKUP(Measures_Table[[#This Row],[PM Program]],Programs_Active20[ZSBPPROGM (KEY)],Programs_Active20[LONG TEXT])","v":"Texas A&M AgriLife Extension Service"}]
[1208,158,"Y",172,"EACH","OUTPUT","ADOPTEDBUD",null,null,null,null,"Texas A&M AgriLife Extension Svc (158)","# of clients receiving MH services","Number of clients receiving mental health services",{"$f":"_xlfn.XLOOKUP(Measures_Table[[#This Row],[PM Program]],Programs_Active20[ZSBPPROGM (KEY)],Programs_Active20[LONG TEXT])","v":"Texas A&M AgriLife Extension Service"}]
[1209,158,"Y",172,"EACH","OUTPUT","ADOPTEDBUD",null,null,null,null,"Texas A&M AgriLife Extension Svc (158)","# of clients receiving SU services","Number of clients receiving substance use services",{"$f":"_xlfn.XLOOKUP(Measures_Table[[#This Row],[PM Program]],Programs_Active20[ZSBPPROGM (KEY)],Programs_Active20[LONG TEXT])","v":"Texas A&M AgriLife Extension Service"}]
[1210,158,"Y",172,"EACH","OUTPUT","NEITHER",null,null,null,null,"Texas A&M AgriLife Extension Svc (158)","% with an increase in skills","Percent of parents/caregivers/staff with an increase in skills that support nurturing and responsive environments for healthy child development",{"$f":"_xlfn.XLOOKUP(Measures_Table[[#This Row],[PM Program]],Programs_Active20[ZSBPPROGM (KEY)],Programs_Active20[LONG TEXT])","v":"Texas A&M AgriLife Extension Service"}]
[1211,158,"Y",172,"EACH","OUTPUT","NEITHER",null,null,null,null,"Texas A&M AgriLife Extension Svc (158)","% that maintain/increase quality rating","Percent of child and youth service providers that maintain or increase quality rating",{"$f":"_xlfn.XLOOKUP(Measures_Table[[#This Row],[PM Program]],Programs_Active20[ZSBPPROGM (KEY)],Programs_Active20[LONG TEXT])","v":"Texas A&M AgriLife Extension Service"}]
[1212,158,"Y",173,"PERCENT","OUTCOME","NEITHER",null,null,null,null,"TCP/Comm Partners for Children (158)","% academic success/workforce readiness","Percent of children and youth who demonstrate academic success and workforce readiness",{"$f":"_xlfn.XLOOKUP(Measures_Table[[#This Row],[PM Program]],Programs_Active20[ZSBPPROGM (KEY)],Programs_Active20[LONG TEXT])","v":"The Children’s Partnership/Community Partners for Children"}]
[1213,158,"Y",173,"PERCENT","OUTCOME","NEITHER",null,null,null,null,"TCP/Comm Partners for Children (158)","% healthy social/emotional behaviors","Percent of children and youth who demonstrate healthy social and emotional behaviors",{"$f":"_xlfn.XLOOKUP(Measures_Table[[#This Row],[PM Program]],Programs_Active20[ZSBPPROGM (KEY)],Programs_Active20[LONG TEXT])","v":"The Children’s Partnership/Community Partners for Children"}]
[1214,158,"Y",173,"PERCENT","OUTCOME","NEITHER",null,null,null,null,"TCP/Comm Partners for Children (158)","# of children and youth served","Number of unduplicated children and youth served",{"$f":"_xlfn.XLOOKUP(Measures_Table[[#This Row],[PM Program]],Programs_Active20[ZSBPPROGM (KEY)],Programs_Active20[LONG TEXT])","v":"The Children’s Partnership/Community Partners for Children"}]
[1215,158,"Y",173,"PERCENT","OUTCOME","ADOPTEDBUD",null,null,null,null,"TCP/Comm Partners for Children (158)","# of unduplicated clients served","Number of unduplicated clients served",{"$f":"_xlfn.XLOOKUP(Measures_Table[[#This Row],[PM Program]],Programs_Active20[ZSBPPROGM (KEY)],Programs_Active20[LONG TEXT])","v":"The Children’s Partnership/Community Partners for Children"}]
[1216,158,"Y",173,"EACH","INPUT","NEITHER",null,null,null,null,"TCP/Comm Partners for Children (158)","% reported increased knowledge/skills","Percent of unduplicated clients that reported increased knowledge or skills in addressing their housing problems",{"$f":"_xlfn.XLOOKUP(Measures_Table[[#This Row],[PM Program]],Programs_Active20[ZSBPPROGM (KEY)],Programs_Active20[LONG TEXT])","v":"The Children’s Partnership/Community Partners for Children"}]
[1217,158,"Y",173,"EACH","OUTPUT","NEITHER",null,null,null,null,"TCP/Comm Partners for Children (158)","% of ES clients into safe/stable housing","Percent of Emergency Shelter clients who transition into safe and stable housing at program exit",{"$f":"_xlfn.XLOOKUP(Measures_Table[[#This Row],[PM Program]],Programs_Active20[ZSBPPROGM (KEY)],Programs_Active20[LONG TEXT])","v":"The Children’s Partnership/Community Partners for Children"}]
[1218,158,"Y",173,"EACH","OUTPUT","NEITHER",null,null,null,null,"TCP/Comm Partners for Children (158)","% of TH clients into safe/stable housing","Percent of Transitional Housing clients/households who transition into safe and stable housing at program exit",{"$f":"_xlfn.XLOOKUP(Measures_Table[[#This Row],[PM Program]],Programs_Active20[ZSBPPROGM (KEY)],Programs_Active20[LONG TEXT])","v":"The Children’s Partnership/Community Partners for Children"}]
[1219,158,"Y",174,"EACH","OUTPUT","NEITHER",null,null,null,null,"TC Children’s Protective Svc Board (158)","# of unduplicated clients served","Number of unduplicated clients served",{"$f":"_xlfn.XLOOKUP(Measures_Table[[#This Row],[PM Program]],Programs_Active20[ZSBPPROGM (KEY)],Programs_Active20[LONG TEXT])","v":"The Travis County Children’s Protective Service Board"}]
[1220,158,"Y",174,"EACH","INPUT","NEITHER",null,null,null,null,"TC Children’s Protective Svc Board (158)","% living with HIV reporting satisfaction","Percent of clients living with HIV who report satisfaction with services",{"$f":"_xlfn.XLOOKUP(Measures_Table[[#This Row],[PM Program]],Programs_Active20[ZSBPPROGM (KEY)],Programs_Active20[LONG TEXT])","v":"The Travis County Children’s Protective Service Board"}]
[1221,158,"Y",174,"EACH","OUTPUT","NEITHER",null,null,null,null,"TC Children’s Protective Svc Board (158)","# of clients living with HIV served","Number of unduplicated clients living with HIV served",{"$f":"_xlfn.XLOOKUP(Measures_Table[[#This Row],[PM Program]],Programs_Active20[ZSBPPROGM (KEY)],Programs_Active20[LONG TEXT])","v":"The Travis County Children’s Protective Service Board"}]
[1222,158,"Y",174,"EACH","OUTPUT","NEITHER",null,null,null,null,"TC Children’s Protective Svc Board (158)","% making progress toward their goals","Percent of clients making progress toward their trauma adjustment goals",{"$f":"_xlfn.XLOOKUP(Measures_Table[[#This Row],[PM Program]],Programs_Active20[ZSBPPROGM (KEY)],Programs_Active20[LONG TEXT])","v":"The Travis County Children’s Protective Service Board"}]
[1223,158,"Y",174,"EACH","OUTPUT","NEITHER",null,null,null,null,"TC Children’s Protective Svc Board (158)","% of children who reside in perm living","Percent of children and youth who exit program into permanent living situations",{"$f":"_xlfn.XLOOKUP(Measures_Table[[#This Row],[PM Program]],Programs_Active20[ZSBPPROGM (KEY)],Programs_Active20[LONG TEXT])","v":"The Travis County Children’s Protective Service Board"}]
[1224,158,"Y",173,"PERCENT","OUTCOME","ADOPTEDBUD",null,null,null,null,"TCP/Comm Partners for Children (158)","% exiting shelter to loc without abuser","Percent of clients who exit shelter to a location that does not include the person who was previously abusive",{"$f":"_xlfn.XLOOKUP(Measures_Table[[#This Row],[PM Program]],Programs_Active20[ZSBPPROGM (KEY)],Programs_Active20[LONG TEXT])","v":"The Children’s Partnership/Community Partners for Children"}]
[1225,158,"Y",173,"PERCENT","OUTCOME","NEITHER",null,null,null,null,"TCP/Comm Partners for Children (158)","# of shelter bed nights provided","Number of shelter bed nights provided",{"$f":"_xlfn.XLOOKUP(Measures_Table[[#This Row],[PM Program]],Programs_Active20[ZSBPPROGM (KEY)],Programs_Active20[LONG TEXT])","v":"The Children’s Partnership/Community Partners for Children"}]
[1226,158,"Y",173,"EACH","OUTPUT","NEITHER",null,null,null,null,"TCP/Comm Partners for Children (158)","# of unduplicated clients served","Number of unduplicated clients served",{"$f":"_xlfn.XLOOKUP(Measures_Table[[#This Row],[PM Program]],Programs_Active20[ZSBPPROGM (KEY)],Programs_Active20[LONG TEXT])","v":"The Children’s Partnership/Community Partners for Children"}]
[1227,158,"Y",173,"EACH","OUTPUT","NEITHER",null,null,null,null,"TCP/Comm Partners for Children (158)","% remain in the home/live independently","Percent of clients who report that the service helped them live independently at home",{"$f":"_xlfn.XLOOKUP(Measures_Table[[#This Row],[PM Program]],Programs_Active20[ZSBPPROGM (KEY)],Programs_Active20[LONG TEXT])","v":"The Children’s Partnership/Community Partners for Children"}]
[1228,158,"Y",173,"EACH","OUTPUT","NEITHER",null,null,null,null,"TCP/Comm Partners for Children (158)","% with enhanced QOL/community engagement","Percent of clients who report that services helped them stay connected or engaged with the community",{"$f":"_xlfn.XLOOKUP(Measures_Table[[#This Row],[PM Program]],Programs_Active20[ZSBPPROGM (KEY)],Programs_Active20[LONG TEXT])","v":"The Children’s Partnership/Community Partners for Children"}]
[1240,158,"Y",177,"PERCENT","OUTCOME","NEITHER",null,null,null,null,"Work-Based Learng/Summer Youth Emp (158)","% youth stable/improve school attendance","Percentage of children/youth who maintained/improved school attendance",{"$f":"_xlfn.XLOOKUP(Measures_Table[[#This Row],[PM Program]],Programs_Active20[ZSBPPROGM (KEY)],Programs_Active20[LONG TEXT])","v":"Work-Based Learning/Summer Youth Employment"}]
[1241,158,"Y",177,"PERCENT","OUTCOME","NEITHER",null,null,null,null,"Work-Based Learng/Summer Youth Emp (158)","% youth reduced delinquent behavior","Percentage  of children/youth who reduced their delinquent behavior",{"$f":"_xlfn.XLOOKUP(Measures_Table[[#This Row],[PM Program]],Programs_Active20[ZSBPPROGM (KEY)],Programs_Active20[LONG TEXT])","v":"Work-Based Learning/Summer Youth Employment"}]
[1242,158,"Y",177,"PERCENT","OUTCOME","ADOPTEDBUD",null,null,null,null,"Work-Based Learng/Summer Youth Emp (158)","% families that met goals/voluntary exit","Percentage of children/youth and their families that indicated increased self sufficiency through either meeting their goals or a voluntary exit from the program",{"$f":"_xlfn.XLOOKUP(Measures_Table[[#This Row],[PM Program]],Programs_Active20[ZSBPPROGM (KEY)],Programs_Active20[LONG TEXT])","v":"Work-Based Learning/Summer Youth Employment"}]
[1243,158,"Y",177,"PERCENT","OUTCOME","NEITHER",null,null,null,null,"Work-Based Learng/Summer Youth Emp (158)","Number of children enrolled by TCP","Number of children enrolled by TCP",{"$f":"_xlfn.XLOOKUP(Measures_Table[[#This Row],[PM Program]],Programs_Active20[ZSBPPROGM (KEY)],Programs_Active20[LONG TEXT])","v":"Work-Based Learning/Summer Youth Employment"}]
[1244,158,"Y",177,"EACH","OUTPUT","NEITHER",null,null,null,null,"Work-Based Learng/Summer Youth Emp (158)","Number of children staffed at CPC","Number of children staffed at CPC",{"$f":"_xlfn.XLOOKUP(Measures_Table[[#This Row],[PM Program]],Programs_Active20[ZSBPPROGM (KEY)],Programs_Active20[LONG TEXT])","v":"Work-Based Learning/Summer Youth Employment"}]
[1245,158,"Y",177,"EACH","OUTPUT","NEITHER",null,null,null,null,"Work-Based Learng/Summer Youth Emp (158)","Number of families served by TCP","Number of families served by TCP",{"$f":"_xlfn.XLOOKUP(Measures_Table[[#This Row],[PM Program]],Programs_Active20[ZSBPPROGM (KEY)],Programs_Active20[LONG TEXT])","v":"Work-Based Learning/Summer Youth Employment"}]
[1246,158,"Y",177,"EACH","OUTPUT","NEITHER",null,null,null,null,"Work-Based Learng/Summer Youth Emp (158)","# of CPS Petitions filed","Number of CPS Petitions filed in a fiscal year",{"$f":"_xlfn.XLOOKUP(Measures_Table[[#This Row],[PM Program]],Programs_Active20[ZSBPPROGM (KEY)],Programs_Active20[LONG TEXT])","v":"Work-Based Learning/Summer Youth Employment"}]
[1247,155,"Y",179,"EACH","OUTPUT","BLACKBOOK",null,null,null,null,"Justice Planning (155)","# of new children entering care Annually","Number of new children entering foster care annually",{"$f":"_xlfn.XLOOKUP(Measures_Table[[#This Row],[PM Program]],Programs_Active20[ZSBPPROGM (KEY)],Programs_Active20[LONG TEXT])","v":"Justice Planning"}]
[1248,155,"Y",179,"EACH","OUTPUT","BLACKBOOK",null,null,null,null,"Justice Planning (155)","# referrals assigned for investigation","Number of CPS referrals assigned for investigation",{"$f":"_xlfn.XLOOKUP(Measures_Table[[#This Row],[PM Program]],Programs_Active20[ZSBPPROGM (KEY)],Programs_Active20[LONG TEXT])","v":"Justice Planning"}]
[1249,155,"Y",179,"EACH","OUTPUT","BLACKBOOK",null,null,null,null,"Justice Planning (155)","Avg # children in foster care per month","Average number of children in foster care per month",{"$f":"_xlfn.XLOOKUP(Measures_Table[[#This Row],[PM Program]],Programs_Active20[ZSBPPROGM (KEY)],Programs_Active20[LONG TEXT])","v":"Justice Planning"}]
[1255,155,"Y",181,"EACH","INPUT","BLACKBOOK",null,null,null,null,"Mental Health Public Defender (155)","# families served w/ Parent Liaison Svs","Number of families served with Parent Liaison Services",{"$f":"_xlfn.XLOOKUP(Measures_Table[[#This Row],[PM Program]],Programs_Active20[ZSBPPROGM (KEY)],Programs_Active20[LONG TEXT])","v":"Mental Health Public Defender"}]
[1256,155,"Y",181,"EACH","INPUT","BLACKBOOK",null,null,null,null,"Mental Health Public Defender (155)","Compensation and Pension benefits submit","Compensation and Pension benefits submitted by Travis County",{"$f":"_xlfn.XLOOKUP(Measures_Table[[#This Row],[PM Program]],Programs_Active20[ZSBPPROGM (KEY)],Programs_Active20[LONG TEXT])","v":"Mental Health Public Defender"}]
[1257,155,"Y",181,"EACH","OUTPUT","BLACKBOOK",null,null,null,null,"Mental Health Public Defender (155)","Education awarded to veterans of Travis","Education awarded to veterans of Travis County",{"$f":"_xlfn.XLOOKUP(Measures_Table[[#This Row],[PM Program]],Programs_Active20[ZSBPPROGM (KEY)],Programs_Active20[LONG TEXT])","v":"Mental Health Public Defender"}]
[1258,155,"Y",181,"EACH","OUTPUT","ADOPTEDBUD",null,null,null,null,"Mental Health Public Defender (155)","VA Expenditures to Travis County","VA Expenditures to Travis County",{"$f":"_xlfn.XLOOKUP(Measures_Table[[#This Row],[PM Program]],Programs_Active20[ZSBPPROGM (KEY)],Programs_Active20[LONG TEXT])","v":"Mental Health Public Defender"}]
[1259,155,"Y",181,"EACH","OUTPUT","ADOPTEDBUD",null,null,"discontinued starting with 2023 budget submission",null,"Mental Health Public Defender (155)","Veterans disability/life insurance and I","Veterans disability/life insurance and Indemnities received",{"$f":"_xlfn.XLOOKUP(Measures_Table[[#This Row],[PM Program]],Programs_Active20[ZSBPPROGM (KEY)],Programs_Active20[LONG TEXT])","v":"Mental Health Public Defender"}]
[1260,155,"Y",181,"EACH","OUTCOME","ADOPTEDBUD",null,null,null,null,"Mental Health Public Defender (155)","Count duplicated veterans contacts","Count duplicated veterans contacts",{"$f":"_xlfn.XLOOKUP(Measures_Table[[#This Row],[PM Program]],Programs_Active20[ZSBPPROGM (KEY)],Programs_Active20[LONG TEXT])","v":"Mental Health Public Defender"}]
[1261,155,"Y",181,"EACH","OUTPUT","BLACKBOOK",null,null,null,null,"Mental Health Public Defender (155)","Count duplicated veterans interviews","Count duplicated veterans interviews",{"$f":"_xlfn.XLOOKUP(Measures_Table[[#This Row],[PM Program]],Programs_Active20[ZSBPPROGM (KEY)],Programs_Active20[LONG TEXT])","v":"Mental Health Public Defender"}]
[1262,155,"Y",181,"EACH","OUTCOME","ADOPTEDBUD",null,null,null,null,"Mental Health Public Defender (155)","Count duplicated veterans Recorded in VI","Count duplicated veterans Recorded in VIMS & VA",{"$f":"_xlfn.XLOOKUP(Measures_Table[[#This Row],[PM Program]],Programs_Active20[ZSBPPROGM (KEY)],Programs_Active20[LONG TEXT])","v":"Mental Health Public Defender"}]
[1263,155,"Y",181,"EACH","OUTPUT","BLACKBOOK",null,null,null,null,"Mental Health Public Defender (155)","Count duplicated veterans sign–ins","Count duplicated veterans sign–ins",{"$f":"_xlfn.XLOOKUP(Measures_Table[[#This Row],[PM Program]],Programs_Active20[ZSBPPROGM (KEY)],Programs_Active20[LONG TEXT])","v":"Mental Health Public Defender"}]
[1264,155,"Y",181,"EACH","OUTCOME","BLACKBOOK",null,null,null,null,"Mental Health Public Defender (155)","Financial Assistance Program through loc","Financial Assistance Program through local Vet orgs.",{"$f":"_xlfn.XLOOKUP(Measures_Table[[#This Row],[PM Program]],Programs_Active20[ZSBPPROGM (KEY)],Programs_Active20[LONG TEXT])","v":"Mental Health Public Defender"}]
[1265,155,"Y",182,"EACH","INPUT","BLACKBOOK",null,null,null,null,"Office of Child Representation (155)","Office Phone Calls","Office Phone Calls",{"$f":"_xlfn.XLOOKUP(Measures_Table[[#This Row],[PM Program]],Programs_Active20[ZSBPPROGM (KEY)],Programs_Active20[LONG TEXT])","v":"Office of Child Representation"}]
[1266,155,"Y",182,"EACH","INPUT","BLACKBOOK",null,null,null,null,"Office of Child Representation (155)","Social Media (emails, website, Facebook)","Social Media (emails, website, Facebook)",{"$f":"_xlfn.XLOOKUP(Measures_Table[[#This Row],[PM Program]],Programs_Active20[ZSBPPROGM (KEY)],Programs_Active20[LONG TEXT])","v":"Office of Child Representation"}]
[1267,155,"Y",182,"EACH","INPUT","BLACKBOOK",null,null,null,null,"Office of Child Representation (155)","% of employers satisfied with youth empl","% of employers satisfied with youth employment experience",{"$f":"_xlfn.XLOOKUP(Measures_Table[[#This Row],[PM Program]],Programs_Active20[ZSBPPROGM (KEY)],Programs_Active20[LONG TEXT])","v":"Office of Child Representation"}]
[1268,155,"Y",182,"EACH","OUTPUT","ADOPTEDBUD",null,null,null,null,"Office of Child Representation (155)","% of youth completing Job Readiness Trai","% of youth completing Job Readiness Training",{"$f":"_xlfn.XLOOKUP(Measures_Table[[#This Row],[PM Program]],Programs_Active20[ZSBPPROGM (KEY)],Programs_Active20[LONG TEXT])","v":"Office of Child Representation"}]
[1269,155,"Y",182,"EACH","OUTPUT","BLACKBOOK",null,null,null,null,"Office of Child Representation (155)","% of youth employed","% of youth employed",{"$f":"_xlfn.XLOOKUP(Measures_Table[[#This Row],[PM Program]],Programs_Active20[ZSBPPROGM (KEY)],Programs_Active20[LONG TEXT])","v":"Office of Child Representation"}]
[1270,155,"Y",182,"EACH","OUTPUT","ADOPTEDBUD",null,null,null,null,"Office of Child Representation (155)","% of youth satisfied with youth employme","% of youth satisfied with youth employment experience",{"$f":"_xlfn.XLOOKUP(Measures_Table[[#This Row],[PM Program]],Programs_Active20[ZSBPPROGM (KEY)],Programs_Active20[LONG TEXT])","v":"Office of Child Representation"}]
[1272,155,"Y",182,"PERCENT","OUTCOME","ADOPTEDBUD",null,null,null,null,"Office of Child Representation (155)","Number of youth employed","Number of youth employed",{"$f":"_xlfn.XLOOKUP(Measures_Table[[#This Row],[PM Program]],Programs_Active20[ZSBPPROGM (KEY)],Programs_Active20[LONG TEXT])","v":"Office of Child Representation"}]
[1273,155,"Y",182,"EACH","OUTPUT","BLACKBOOK",null,null,null,null,"Office of Child Representation (155)","Number of youth offered employment","Number of youth offered employment",{"$f":"_xlfn.XLOOKUP(Measures_Table[[#This Row],[PM Program]],Programs_Active20[ZSBPPROGM (KEY)],Programs_Active20[LONG TEXT])","v":"Office of Child Representation"}]
[1274,155,"Y",182,"EACH","INPUT","BLACKBOOK",null,null,null,null,"Office of Child Representation (155)","# programs planned","# programs planned",{"$f":"_xlfn.XLOOKUP(Measures_Table[[#This Row],[PM Program]],Programs_Active20[ZSBPPROGM (KEY)],Programs_Active20[LONG TEXT])","v":"Office of Child Representation"}]
[1275,155,"Y",182,"EACH","INPUT","BLACKBOOK",null,null,null,null,"Office of Child Representation (155)","# programs implemented","# programs implemented",{"$f":"_xlfn.XLOOKUP(Measures_Table[[#This Row],[PM Program]],Programs_Active20[ZSBPPROGM (KEY)],Programs_Active20[LONG TEXT])","v":"Office of Child Representation"}]
[1276,137,"Y",52,"EACH","OUTCOME","ADOPTEDBUD",null,null,null,null,"Auto Theft Task Force (137)","# programs evaluated","# programs evaluated",{"$f":"_xlfn.XLOOKUP(Measures_Table[[#This Row],[PM Program]],Programs_Active20[ZSBPPROGM (KEY)],Programs_Active20[LONG TEXT])","v":"Auto Theft Task Force"}]
[1277,137,"Y",52,"EACH","INPUT","ADOPTEDBUD",null,null,null,null,"Auto Theft Task Force (137)","# grants researched","# grants researched",{"$f":"_xlfn.XLOOKUP(Measures_Table[[#This Row],[PM Program]],Programs_Active20[ZSBPPROGM (KEY)],Programs_Active20[LONG TEXT])","v":"Auto Theft Task Force"}]
[1278,137,"Y",52,"EACH","INPUT","ADOPTEDBUD",null,null,null,null,"Auto Theft Task Force (137)","# grants with application","# grants with application",{"$f":"_xlfn.XLOOKUP(Measures_Table[[#This Row],[PM Program]],Programs_Active20[ZSBPPROGM (KEY)],Programs_Active20[LONG TEXT])","v":"Auto Theft Task Force"}]
[1279,137,"Y",52,"EACH","INPUT","ADOPTEDBUD",null,null,null,null,"Auto Theft Task Force (137)","Average Case Load","Average Case Load",{"$f":"_xlfn.XLOOKUP(Measures_Table[[#This Row],[PM Program]],Programs_Active20[ZSBPPROGM (KEY)],Programs_Active20[LONG TEXT])","v":"Auto Theft Task Force"}]
[1280,137,"Y",52,"EACH","INPUT","ADOPTEDBUD",null,null,null,null,"Auto Theft Task Force (137)","Average Total Atty Hours","Average Total Atty Hours",{"$f":"_xlfn.XLOOKUP(Measures_Table[[#This Row],[PM Program]],Programs_Active20[ZSBPPROGM (KEY)],Programs_Active20[LONG TEXT])","v":"Auto Theft Task Force"}]
[1281,137,"Y",185,"EACH","INPUT","ADOPTEDBUD",null,null,null,null,"Facilities-CallCtr/Mail/Laundry/Whs(137)","Successful Outcomes","Successful Outcomes",{"$f":"_xlfn.XLOOKUP(Measures_Table[[#This Row],[PM Program]],Programs_Active20[ZSBPPROGM (KEY)],Programs_Active20[LONG TEXT])","v":"Facilities - Call Center / Mail Room / Laundry / Warehouse\n"}]
[1282,137,"Y",54,"EACH","INPUT","ADOPTEDBUD",null,null,null,null,"Canine (137)","Misdemeanor Cause #'s MH appointed (MHPD","Misdemeanor Cause #'s MH appointed (MHPD, CAPDS & PDO)",{"$f":"_xlfn.XLOOKUP(Measures_Table[[#This Row],[PM Program]],Programs_Active20[ZSBPPROGM (KEY)],Programs_Active20[LONG TEXT])","v":"Canine"}]
[1283,137,"Y",54,"EACH","INPUT","ADOPTEDBUD",null,null,null,null,"Canine (137)","Misdemeanor cause #'s w/ incompetent to","Misdemeanor cause #'s w/ incompetent to stand trial finding (MHPD, CAPDS & PDO)",{"$f":"_xlfn.XLOOKUP(Measures_Table[[#This Row],[PM Program]],Programs_Active20[ZSBPPROGM (KEY)],Programs_Active20[LONG TEXT])","v":"Canine"}]
[1284,137,"Y",54,"EACH","INPUT","ADOPTEDBUD",null,null,null,null,"Canine (137)","MHPD represented misdemeanor cause #'s w","MHPD represented misdemeanor cause #'s w/ competency issue",{"$f":"_xlfn.XLOOKUP(Measures_Table[[#This Row],[PM Program]],Programs_Active20[ZSBPPROGM (KEY)],Programs_Active20[LONG TEXT])","v":"Canine"}]
[1285,137,"Y",55,"EACH","INPUT","ADOPTEDBUD",null,null,null,null,"Central Booking (137)","Total # of New Misdemeanor cause #'s app","Total # of New Misdemeanor cause #'s appointed to MHPD during FY",{"$f":"_xlfn.XLOOKUP(Measures_Table[[#This Row],[PM Program]],Programs_Active20[ZSBPPROGM (KEY)],Programs_Active20[LONG TEXT])","v":"Central Booking"}]
[1286,137,"Y",55,"EACH","INPUT","ADOPTEDBUD",null,null,null,null,"Central Booking (137)","MHPD misdemeanor cause #'s closed - disc","MHPD misdemeanor cause #'s closed - discontinued starting 2023 (replaced with measure 3336)",{"$f":"_xlfn.XLOOKUP(Measures_Table[[#This Row],[PM Program]],Programs_Active20[ZSBPPROGM (KEY)],Programs_Active20[LONG TEXT])","v":"Central Booking"}]
[1287,137,"Y",55,"EACH","INPUT","ADOPTEDBUD",null,null,null,null,"Central Booking (137)","MHPD represented misdemeanor cause #'s r","MHPD represented misdemeanor cause #'s resolved without conviction",{"$f":"_xlfn.XLOOKUP(Measures_Table[[#This Row],[PM Program]],Programs_Active20[ZSBPPROGM (KEY)],Programs_Active20[LONG TEXT])","v":"Central Booking"}]
[1288,137,"Y",56,"EACH","INPUT","ADOPTEDBUD",null,null,null,null,"Central Records (137)","Number of initiated community linkages","Number of initiated community linkages",{"$f":"_xlfn.XLOOKUP(Measures_Table[[#This Row],[PM Program]],Programs_Active20[ZSBPPROGM (KEY)],Programs_Active20[LONG TEXT])","v":"Central Records"}]
[1289,137,"Y",56,"EACH","INPUT","ADOPTEDBUD",null,null,null,null,"Central Records (137)","Number of completed  community linkages","Number of completed  community linkages",{"$f":"_xlfn.XLOOKUP(Measures_Table[[#This Row],[PM Program]],Programs_Active20[ZSBPPROGM (KEY)],Programs_Active20[LONG TEXT])","v":"Central Records"}]
[1290,137,"Y",56,"EACH","INPUT","ADOPTEDBUD",null,null,null,null,"Central Records (137)","Number of mental health/criminal defense","Number of mental health/criminal defense seminars sponsored",{"$f":"_xlfn.XLOOKUP(Measures_Table[[#This Row],[PM Program]],Programs_Active20[ZSBPPROGM (KEY)],Programs_Active20[LONG TEXT])","v":"Central Records"}]
[1291,137,"Y",56,"EACH","INPUT","ADOPTEDBUD",null,null,null,null,"Central Records (137)","Number of criminal justice professionals","Number of criminal justice professionals/attorneys trained",{"$f":"_xlfn.XLOOKUP(Measures_Table[[#This Row],[PM Program]],Programs_Active20[ZSBPPROGM (KEY)],Programs_Active20[LONG TEXT])","v":"Central Records"}]
[1292,137,"Y",56,"EACH","INPUT","ADOPTEDBUD",null,null,null,null,"Central Records (137)","Number of new clients accepted per fisca","Number of new clients accepted per fiscal year",{"$f":"_xlfn.XLOOKUP(Measures_Table[[#This Row],[PM Program]],Programs_Active20[ZSBPPROGM (KEY)],Programs_Active20[LONG TEXT])","v":"Central Records"}]
[1294,137,"Y",57,"DOLLARS","INPUT","ADOPTEDBUD",null,null,null,null,"Central Warrants (137)","Number of new cases accepted per fiscal","Number of new cases accepted per fiscal year",{"$f":"_xlfn.XLOOKUP(Measures_Table[[#This Row],[PM Program]],Programs_Active20[ZSBPPROGM (KEY)],Programs_Active20[LONG TEXT])","v":"Central Warrants"}]
[1295,137,"Y",57,"EACH","INPUT","ADOPTEDBUD",null,null,null,null,"Central Warrants (137)","Number of cases handled per fiscal year","Number of cases handled per fiscal year (new and continuing)",{"$f":"_xlfn.XLOOKUP(Measures_Table[[#This Row],[PM Program]],Programs_Active20[ZSBPPROGM (KEY)],Programs_Active20[LONG TEXT])","v":"Central Warrants"}]
[1296,137,"Y",57,"EACH","INPUT","ADOPTEDBUD",null,null,null,null,"Central Warrants (137)","# of safety assessments conducted by soc","# of safety assessments conducted by social worker (1 FTE)",{"$f":"_xlfn.XLOOKUP(Measures_Table[[#This Row],[PM Program]],Programs_Active20[ZSBPPROGM (KEY)],Programs_Active20[LONG TEXT])","v":"Central Warrants"}]
[1297,137,"Y",57,"EACH","INPUT","ADOPTEDBUD",null,null,null,null,"Central Warrants (137)","Number of clients who received social wo","Number of clients who received social work case management",{"$f":"_xlfn.XLOOKUP(Measures_Table[[#This Row],[PM Program]],Programs_Active20[ZSBPPROGM (KEY)],Programs_Active20[LONG TEXT])","v":"Central Warrants"}]
[1298,137,"Y",57,"EACH","INPUT","ADOPTEDBUD",null,null,null,null,"Central Warrants (137)","% of attorney/client meetings conducted","% of attorney/client meetings conducted at OCR office",{"$f":"_xlfn.XLOOKUP(Measures_Table[[#This Row],[PM Program]],Programs_Active20[ZSBPPROGM (KEY)],Programs_Active20[LONG TEXT])","v":"Central Warrants"}]
[1299,137,"Y",58,"EACH","INPUT","ADOPTEDBUD",null,null,null,null,"Chaplain (137)","% of surveys with min overall rating of","% of surveys with min overall rating of “Good” or better",{"$f":"_xlfn.XLOOKUP(Measures_Table[[#This Row],[PM Program]],Programs_Active20[ZSBPPROGM (KEY)],Programs_Active20[LONG TEXT])","v":"Chaplain"}]
[1300,137,"Y",58,"EACH","INPUT","ADOPTEDBUD",null,null,null,null,"Chaplain (137)","# of trainings OCR took part/hosted re c","# of trainings OCR took part/hosted re child welfare topics",{"$f":"_xlfn.XLOOKUP(Measures_Table[[#This Row],[PM Program]],Programs_Active20[ZSBPPROGM (KEY)],Programs_Active20[LONG TEXT])","v":"Chaplain"}]
[1301,137,"Y",59,"EACH","INPUT","ADOPTEDBUD",null,null,null,null,"CJIS-Arrest/Exp/Fug/ID/Parole/State(137)","Average # of OCR Attorneys with Full Cas","Average # of OCR Attorneys with Full Caseload",{"$f":"_xlfn.XLOOKUP(Measures_Table[[#This Row],[PM Program]],Programs_Active20[ZSBPPROGM (KEY)],Programs_Active20[LONG TEXT])","v":"CJIS - Arrest/Expunction/Fugitive/Misuse ID/Parole/StateXfer"}]
[1303,137,"Y",59,"EACH","INPUT","ADOPTEDBUD",null,null,null,null,"CJIS-Arrest/Exp/Fug/ID/Parole/State(137)","No. of recovered cars","No. of recovered cars",{"$f":"_xlfn.XLOOKUP(Measures_Table[[#This Row],[PM Program]],Programs_Active20[ZSBPPROGM (KEY)],Programs_Active20[LONG TEXT])","v":"CJIS - Arrest/Expunction/Fugitive/Misuse ID/Parole/StateXfer"}]
[1311,137,"Y",59,"EACH","INPUT","ADOPTEDBUD",null,null,null,null,"CJIS-Arrest/Exp/Fug/ID/Parole/State(137)","No. of citations issued by K9 officers","No. of citations issued by K9 officers",{"$f":"_xlfn.XLOOKUP(Measures_Table[[#This Row],[PM Program]],Programs_Active20[ZSBPPROGM (KEY)],Programs_Active20[LONG TEXT])","v":"CJIS - Arrest/Expunction/Fugitive/Misuse ID/Parole/StateXfer"}]
[1312,137,"Y",59,"EACH","INPUT","ADOPTEDBUD",null,null,null,null,"CJIS-Arrest/Exp/Fug/ID/Parole/State(137)","No. of arrest processed","No. of arrest processed",{"$f":"_xlfn.XLOOKUP(Measures_Table[[#This Row],[PM Program]],Programs_Active20[ZSBPPROGM (KEY)],Programs_Active20[LONG TEXT])","v":"CJIS - Arrest/Expunction/Fugitive/Misuse ID/Parole/StateXfer"}]
[1315,137,"Y",59,"EACH","INPUT","ADOPTEDBUD",null,null,null,null,"CJIS-Arrest/Exp/Fug/ID/Parole/State(137)","No. of name check requests","No. of name check requests",{"$f":"_xlfn.XLOOKUP(Measures_Table[[#This Row],[PM Program]],Programs_Active20[ZSBPPROGM (KEY)],Programs_Active20[LONG TEXT])","v":"CJIS - Arrest/Expunction/Fugitive/Misuse ID/Parole/StateXfer"}]
[1316,137,"Y",59,"EACH","INPUT","ADOPTEDBUD",null,null,null,null,"CJIS-Arrest/Exp/Fug/ID/Parole/State(137)","No. of reports entered","No. of reports entered",{"$f":"_xlfn.XLOOKUP(Measures_Table[[#This Row],[PM Program]],Programs_Active20[ZSBPPROGM (KEY)],Programs_Active20[LONG TEXT])","v":"CJIS - Arrest/Expunction/Fugitive/Misuse ID/Parole/StateXfer"}]
[1317,137,"Y",59,"EACH","INPUT","ADOPTEDBUD",null,null,null,null,"CJIS-Arrest/Exp/Fug/ID/Parole/State(137)","No. of UCR reports read","No. of UCR reports read",{"$f":"_xlfn.XLOOKUP(Measures_Table[[#This Row],[PM Program]],Programs_Active20[ZSBPPROGM (KEY)],Programs_Active20[LONG TEXT])","v":"CJIS - Arrest/Expunction/Fugitive/Misuse ID/Parole/StateXfer"}]
[1318,137,"Y",59,"EACH","INPUT","ADOPTEDBUD",null,null,null,null,"CJIS-Arrest/Exp/Fug/ID/Parole/State(137)","No. of expunctions","No. of expunctions",{"$f":"_xlfn.XLOOKUP(Measures_Table[[#This Row],[PM Program]],Programs_Active20[ZSBPPROGM (KEY)],Programs_Active20[LONG TEXT])","v":"CJIS - Arrest/Expunction/Fugitive/Misuse ID/Parole/StateXfer"}]
[1321,137,"Y",59,"EACH","INPUT","ADOPTEDBUD",null,null,null,null,"CJIS-Arrest/Exp/Fug/ID/Parole/State(137)","Balance of outstanding warrants","Balance of outstanding warrants",{"$f":"_xlfn.XLOOKUP(Measures_Table[[#This Row],[PM Program]],Programs_Active20[ZSBPPROGM (KEY)],Programs_Active20[LONG TEXT])","v":"CJIS - Arrest/Expunction/Fugitive/Misuse ID/Parole/StateXfer"}]
[1322,137,"Y",59,"EACH","INPUT","ADOPTEDBUD",null,null,null,null,"CJIS-Arrest/Exp/Fug/ID/Parole/State(137)","No. of warrant checks performed","No. of warrant checks performed",{"$f":"_xlfn.XLOOKUP(Measures_Table[[#This Row],[PM Program]],Programs_Active20[ZSBPPROGM (KEY)],Programs_Active20[LONG TEXT])","v":"CJIS - Arrest/Expunction/Fugitive/Misuse ID/Parole/StateXfer"}]
[1325,137,"Y",59,"EACH","INPUT","ADOPTEDBUD",null,null,null,null,"CJIS-Arrest/Exp/Fug/ID/Parole/State(137)","No. of warrants received","No. of warrants received",{"$f":"_xlfn.XLOOKUP(Measures_Table[[#This Row],[PM Program]],Programs_Active20[ZSBPPROGM (KEY)],Programs_Active20[LONG TEXT])","v":"CJIS - Arrest/Expunction/Fugitive/Misuse ID/Parole/StateXfer"}]
[1328,137,"Y",59,"EACH","INPUT","ADOPTEDBUD",null,null,null,null,"CJIS-Arrest/Exp/Fug/ID/Parole/State(137)","No. of Data Quality Resolutions","No. of Data Quality Resolutions",{"$f":"_xlfn.XLOOKUP(Measures_Table[[#This Row],[PM Program]],Programs_Active20[ZSBPPROGM (KEY)],Programs_Active20[LONG TEXT])","v":"CJIS - Arrest/Expunction/Fugitive/Misuse ID/Parole/StateXfer"}]
[1329,137,"Y",60,"EACH","INPUT","ADOPTEDBUD",null,null,null,null,"Classification-Recs -CSTU/Property (137)","No. of Added Charges","No. of Added Charges",{"$f":"_xlfn.XLOOKUP(Measures_Table[[#This Row],[PM Program]],Programs_Active20[ZSBPPROGM (KEY)],Programs_Active20[LONG TEXT])","v":"Classification-Records - CSTU / Property\n"}]
[1330,137,"Y",60,"EACH","INPUT","ADOPTEDBUD",null,null,null,null,"Classification-Recs -CSTU/Property (137)","No. of New Arrest Rpt'd to DPS","No. of New Arrest Rpt'd to DPS",{"$f":"_xlfn.XLOOKUP(Measures_Table[[#This Row],[PM Program]],Programs_Active20[ZSBPPROGM (KEY)],Programs_Active20[LONG TEXT])","v":"Classification-Records - CSTU / Property\n"}]
[1331,137,"Y",60,"EACH","INPUT","ADOPTEDBUD",null,null,null,null,"Classification-Recs -CSTU/Property (137)","No. of Research Request","No. of Research Request",{"$f":"_xlfn.XLOOKUP(Measures_Table[[#This Row],[PM Program]],Programs_Active20[ZSBPPROGM (KEY)],Programs_Active20[LONG TEXT])","v":"Classification-Records - CSTU / Property\n"}]
[1332,137,"Y",60,"EACH","INPUT","ADOPTEDBUD",null,null,null,null,"Classification-Recs -CSTU/Property (137)","No. of OOC Arrest","No. of OOC Arrest",{"$f":"_xlfn.XLOOKUP(Measures_Table[[#This Row],[PM Program]],Programs_Active20[ZSBPPROGM (KEY)],Programs_Active20[LONG TEXT])","v":"Classification-Records - CSTU / Property\n"}]
[1333,137,"Y",60,"EACH","INPUT","ADOPTEDBUD",null,null,null,null,"Classification-Recs -CSTU/Property (137)","No. of APD Fingerprint Request","No. of APD Fingerprint Request",{"$f":"_xlfn.XLOOKUP(Measures_Table[[#This Row],[PM Program]],Programs_Active20[ZSBPPROGM (KEY)],Programs_Active20[LONG TEXT])","v":"Classification-Records - CSTU / Property\n"}]
[1334,137,"Y",60,"EACH","INPUT","ADOPTEDBUD",null,null,null,null,"Classification-Recs -CSTU/Property (137)","No. of Emails From Victims","No. of Emails From Victims",{"$f":"_xlfn.XLOOKUP(Measures_Table[[#This Row],[PM Program]],Programs_Active20[ZSBPPROGM (KEY)],Programs_Active20[LONG TEXT])","v":"Classification-Records - CSTU / Property\n"}]
[1335,137,"Y",60,"EACH","INPUT","ADOPTEDBUD",null,null,null,null,"Classification-Recs -CSTU/Property (137)","No. of Merged ID Issues","No. of Merged ID Issues",{"$f":"_xlfn.XLOOKUP(Measures_Table[[#This Row],[PM Program]],Programs_Active20[ZSBPPROGM (KEY)],Programs_Active20[LONG TEXT])","v":"Classification-Records - CSTU / Property\n"}]
[1336,137,"Y",60,"EACH","INPUT","ADOPTEDBUD",null,null,null,null,"Classification-Recs -CSTU/Property (137)","No. of JMOV's","No. of JMOV's",{"$f":"_xlfn.XLOOKUP(Measures_Table[[#This Row],[PM Program]],Programs_Active20[ZSBPPROGM (KEY)],Programs_Active20[LONG TEXT])","v":"Classification-Records - CSTU / Property\n"}]
[1337,137,"Y",60,"EACH","INPUT","ADOPTEDBUD",null,null,null,null,"Classification-Recs -CSTU/Property (137)","No. of APD Pkg # Merges","No. of APD Pkg # Merges",{"$f":"_xlfn.XLOOKUP(Measures_Table[[#This Row],[PM Program]],Programs_Active20[ZSBPPROGM (KEY)],Programs_Active20[LONG TEXT])","v":"Classification-Records - CSTU / Property\n"}]
[1338,137,"Y",60,"EACH","INPUT","ADOPTEDBUD",null,null,null,null,"Classification-Recs -CSTU/Property (137)","No. of Identity Cases","No. of Identity Cases",{"$f":"_xlfn.XLOOKUP(Measures_Table[[#This Row],[PM Program]],Programs_Active20[ZSBPPROGM (KEY)],Programs_Active20[LONG TEXT])","v":"Classification-Records - CSTU / Property\n"}]
[1339,137,"Y",81,"HOURS","INPUT","ADOPTEDBUD",null,null,null,null,"Human Resources - Recruiting (137)","No. of Non-Disclosures","No. of Non-Disclosures",{"$f":"_xlfn.XLOOKUP(Measures_Table[[#This Row],[PM Program]],Programs_Active20[ZSBPPROGM (KEY)],Programs_Active20[LONG TEXT])","v":"Human Resources - Recruiting"}]
[1340,137,"Y",81,"EACH","INPUT","ADOPTEDBUD",null,null,null,null,"Human Resources - Recruiting (137)","No. of expunctions rec'd & entered","No. of expunctions rec'd & entered",{"$f":"_xlfn.XLOOKUP(Measures_Table[[#This Row],[PM Program]],Programs_Active20[ZSBPPROGM (KEY)],Programs_Active20[LONG TEXT])","v":"Human Resources - Recruiting"}]
[1341,137,"Y",64,"Y/N","INPUT","ADOPTEDBUD",null,null,null,null,"Correctional Security (137)","No. of Petitions received","No. of Petitions received",{"$f":"_xlfn.XLOOKUP(Measures_Table[[#This Row],[PM Program]],Programs_Active20[ZSBPPROGM (KEY)],Programs_Active20[LONG TEXT])","v":"Correctional Security"}]
[1346,137,"Y",67,"EACH","INPUT","ADOPTEDBUD",null,null,null,null,"Courthouse Security (137)","No. of State Jail Transfers","No. of State Jail Transfers",{"$f":"_xlfn.XLOOKUP(Measures_Table[[#This Row],[PM Program]],Programs_Active20[ZSBPPROGM (KEY)],Programs_Active20[LONG TEXT])","v":"Courthouse Security"}]
[1347,137,"Y",67,"EACH","INPUT","ADOPTEDBUD",null,null,null,null,"Courthouse Security (137)","No. of SAFPF Transfers","No. of SAFPF Transfers",{"$f":"_xlfn.XLOOKUP(Measures_Table[[#This Row],[PM Program]],Programs_Active20[ZSBPPROGM (KEY)],Programs_Active20[LONG TEXT])","v":"Courthouse Security"}]
[1348,137,"Y",67,"EACH","INPUT","ADOPTEDBUD",null,null,null,null,"Courthouse Security (137)","No. of Parole Wrt. Withdrawals","No. of Parole Wrt. Withdrawals",{"$f":"_xlfn.XLOOKUP(Measures_Table[[#This Row],[PM Program]],Programs_Active20[ZSBPPROGM (KEY)],Programs_Active20[LONG TEXT])","v":"Courthouse Security"}]
[1349,137,"Y",67,"EACH","INPUT","ADOPTEDBUD",null,null,null,null,"Courthouse Security (137)","No. of Parole Revocations Rec'd","No. of Parole Revocations Rec'd",{"$f":"_xlfn.XLOOKUP(Measures_Table[[#This Row],[PM Program]],Programs_Active20[ZSBPPROGM (KEY)],Programs_Active20[LONG TEXT])","v":"Courthouse Security"}]
[1350,137,"Y",68,"EACH","INPUT","ADOPTEDBUD",null,null,null,null,"Crime Lab - Evidence Control Unit (137)","No. of ISF Transfers","No. of ISF Transfers",{"$f":"_xlfn.XLOOKUP(Measures_Table[[#This Row],[PM Program]],Programs_Active20[ZSBPPROGM (KEY)],Programs_Active20[LONG TEXT])","v":{"$error":"#N/A"}}]
[1351,137,"Y",68,"EACH","INPUT","ADOPTEDBUD",null,null,null,null,"Crime Lab - Evidence Control Unit (137)","No. of OOS Arrest","No. of OOS Arrest",{"$f":"_xlfn.XLOOKUP(Measures_Table[[#This Row],[PM Program]],Programs_Active20[ZSBPPROGM (KEY)],Programs_Active20[LONG TEXT])","v":{"$error":"#N/A"}}]
[1356,137,"Y",70,"EACH","INPUT","ADOPTEDBUD",null,null,null,null,"Crisis Intervention Team (137)","No. JMT inmate reviews","No. JMT inmate reviews",{"$f":"_xlfn.XLOOKUP(Measures_Table[[#This Row],[PM Program]],Programs_Active20[ZSBPPROGM (KEY)],Programs_Active20[LONG TEXT])","v":"Crisis Intervention Team"}]
[1357,137,"Y",70,"EACH","INPUT","ADOPTEDBUD",null,null,null,null,"Crisis Intervention Team (137)","No. of Bldg to Bldg inmate moves","No. of Bldg to Bldg inmate moves",{"$f":"_xlfn.XLOOKUP(Measures_Table[[#This Row],[PM Program]],Programs_Active20[ZSBPPROGM (KEY)],Programs_Active20[LONG TEXT])","v":"Crisis Intervention Team"}]
[1358,137,"Y",70,"EACH","INPUT","ADOPTEDBUD",null,null,null,null,"Crisis Intervention Team (137)","No. of in-house moves","No. of in-house moves",{"$f":"_xlfn.XLOOKUP(Measures_Table[[#This Row],[PM Program]],Programs_Active20[ZSBPPROGM (KEY)],Programs_Active20[LONG TEXT])","v":"Crisis Intervention Team"}]
[1359,137,"Y",70,"EACH","INPUT","ADOPTEDBUD",null,null,null,null,"Crisis Intervention Team (137)","No. of inmates classified","No. of inmates classified",{"$f":"_xlfn.XLOOKUP(Measures_Table[[#This Row],[PM Program]],Programs_Active20[ZSBPPROGM (KEY)],Programs_Active20[LONG TEXT])","v":"Crisis Intervention Team"}]
[1360,137,"Y",70,"EACH","INPUT","ADOPTEDBUD",null,null,null,null,"Crisis Intervention Team (137)","Transfer CBF - TCCC","Transfer CBF - TCCC",{"$f":"_xlfn.XLOOKUP(Measures_Table[[#This Row],[PM Program]],Programs_Active20[ZSBPPROGM (KEY)],Programs_Active20[LONG TEXT])","v":"Crisis Intervention Team"}]
[1361,137,"Y",70,"HOURS","INPUT","ADOPTEDBUD",null,null,null,null,"Crisis Intervention Team (137)","Transfer CBF – TCJ","Transfer CBF – TCJ",{"$f":"_xlfn.XLOOKUP(Measures_Table[[#This Row],[PM Program]],Programs_Active20[ZSBPPROGM (KEY)],Programs_Active20[LONG TEXT])","v":"Crisis Intervention Team"}]
[1362,137,"Y",72,"EACH","INPUT","ADOPTEDBUD",null,null,null,null,"Dispatch / Communication (137)","Transfer TCCC – TCJ","Transfer TCCC – TCJ",{"$f":"_xlfn.XLOOKUP(Measures_Table[[#This Row],[PM Program]],Programs_Active20[ZSBPPROGM (KEY)],Programs_Active20[LONG TEXT])","v":"Dispatch / Communication"}]
[1363,137,"Y",72,"EACH","INPUT","ADOPTEDBUD",null,null,null,null,"Dispatch / Communication (137)","Transfer TCJ – TCCC","Transfer TCJ – TCCC",{"$f":"_xlfn.XLOOKUP(Measures_Table[[#This Row],[PM Program]],Programs_Active20[ZSBPPROGM (KEY)],Programs_Active20[LONG TEXT])","v":"Dispatch / Communication"}]
[1364,137,"Y",72,"EACH","INPUT","ADOPTEDBUD",null,null,null,null,"Dispatch / Communication (137)","No. of inmate PREA interviews","No. of inmate PREA interviews",{"$f":"_xlfn.XLOOKUP(Measures_Table[[#This Row],[PM Program]],Programs_Active20[ZSBPPROGM (KEY)],Programs_Active20[LONG TEXT])","v":"Dispatch / Communication"}]
[1365,137,"Y",72,"DAYS","INPUT","ADOPTEDBUD",null,null,null,null,"Dispatch / Communication (137)","No. of inmate reclasses due to PREA","No. of inmate reclasses due to PREA",{"$f":"_xlfn.XLOOKUP(Measures_Table[[#This Row],[PM Program]],Programs_Active20[ZSBPPROGM (KEY)],Programs_Active20[LONG TEXT])","v":"Dispatch / Communication"}]
[1366,137,"Y",79,"EACH","INPUT","ADOPTEDBUD",null,null,null,null,"Traffic-CVE/DWI/HEAT/Impound/Motor (137)","No. of recruitment opportunities","No. of recruitment opportunities",{"$f":"_xlfn.XLOOKUP(Measures_Table[[#This Row],[PM Program]],Programs_Active20[ZSBPPROGM (KEY)],Programs_Active20[LONG TEXT])","v":"Traffic - CVE / DWI / HEAT / Impound / MOTORS"}]
[1367,137,"Y",79,"EACH","INPUT","ADOPTEDBUD",null,null,null,null,"Traffic-CVE/DWI/HEAT/Impound/Motor (137)","Staff hrs on recruitment","Staff hrs on recruitment",{"$f":"_xlfn.XLOOKUP(Measures_Table[[#This Row],[PM Program]],Programs_Active20[ZSBPPROGM (KEY)],Programs_Active20[LONG TEXT])","v":"Traffic - CVE / DWI / HEAT / Impound / MOTORS"}]
[1368,137,"Y",79,"EACH","INPUT","ADOPTEDBUD",null,null,null,null,"Traffic-CVE/DWI/HEAT/Impound/Motor (137)","Jail Standards Certification Yes/No (1 =","Jail Standards Certification Yes/No (1 = Y, 0=N)",{"$f":"_xlfn.XLOOKUP(Measures_Table[[#This Row],[PM Program]],Programs_Active20[ZSBPPROGM (KEY)],Programs_Active20[LONG TEXT])","v":"Traffic - CVE / DWI / HEAT / Impound / MOTORS"}]
[1369,137,"Y",74,"EACH","INPUT","ADOPTEDBUD",null,null,null,null,"Estray (137)","No. of gang related activities","No. of gang related activities",{"$f":"_xlfn.XLOOKUP(Measures_Table[[#This Row],[PM Program]],Programs_Active20[ZSBPPROGM (KEY)],Programs_Active20[LONG TEXT])","v":"Estray"}]
[1370,137,"Y",74,"EACH","INPUT","ADOPTEDBUD",null,null,null,null,"Estray (137)","No. removed from the EPO list","No. removed from the EPO list",{"$f":"_xlfn.XLOOKUP(Measures_Table[[#This Row],[PM Program]],Programs_Active20[ZSBPPROGM (KEY)],Programs_Active20[LONG TEXT])","v":"Estray"}]
[1371,137,"Y",74,"EACH","INPUT","ADOPTEDBUD",null,null,null,null,"Estray (137)","No. of mail covers","No. of mail covers",{"$f":"_xlfn.XLOOKUP(Measures_Table[[#This Row],[PM Program]],Programs_Active20[ZSBPPROGM (KEY)],Programs_Active20[LONG TEXT])","v":"Estray"}]
[1372,137,"Y",74,"EACH","INPUT","ADOPTEDBUD",null,null,null,null,"Estray (137)","No. of confirmed gang members entered in","No. of confirmed gang members entered into the database",{"$f":"_xlfn.XLOOKUP(Measures_Table[[#This Row],[PM Program]],Programs_Active20[ZSBPPROGM (KEY)],Programs_Active20[LONG TEXT])","v":"Estray"}]
[1373,137,"Y",74,"EACH","INPUT","ADOPTEDBUD",null,null,null,null,"Estray (137)","No. of arrests involving weapons or drug","No. of arrests involving weapons or drugs",{"$f":"_xlfn.XLOOKUP(Measures_Table[[#This Row],[PM Program]],Programs_Active20[ZSBPPROGM (KEY)],Programs_Active20[LONG TEXT])","v":"Estray"}]
[1374,137,"Y",77,"EACH","INPUT","ADOPTEDBUD",null,null,null,null,"Finance (137)","No. of citations issued  by Courthouse S","No. of citations issued  by Courthouse Security",{"$f":"_xlfn.XLOOKUP(Measures_Table[[#This Row],[PM Program]],Programs_Active20[ZSBPPROGM (KEY)],Programs_Active20[LONG TEXT])","v":"Finance"}]
[1375,137,"Y",77,"EACH","INPUT","ADOPTEDBUD",null,null,null,null,"Finance (137)","No. of other arrests","No. of other arrests",{"$f":"_xlfn.XLOOKUP(Measures_Table[[#This Row],[PM Program]],Programs_Active20[ZSBPPROGM (KEY)],Programs_Active20[LONG TEXT])","v":"Finance"}]
[1376,137,"Y",77,"EACH","INPUT","ADOPTEDBUD",null,null,null,null,"Finance (137)","No. of security screenings","No. of security screenings",{"$f":"_xlfn.XLOOKUP(Measures_Table[[#This Row],[PM Program]],Programs_Active20[ZSBPPROGM (KEY)],Programs_Active20[LONG TEXT])","v":"Finance"}]
[1377,137,"Y",77,"EACH","INPUT","ADOPTEDBUD",null,null,null,null,"Finance (137)","Crime Lab Response","Crime Lab Response",{"$f":"_xlfn.XLOOKUP(Measures_Table[[#This Row],[PM Program]],Programs_Active20[ZSBPPROGM (KEY)],Programs_Active20[LONG TEXT])","v":"Finance"}]
[1378,137,"Y",77,"EACH","INPUT","ADOPTEDBUD",null,null,null,null,"Finance (137)","No. of items received in EM","No. of items received in EM",{"$f":"_xlfn.XLOOKUP(Measures_Table[[#This Row],[PM Program]],Programs_Active20[ZSBPPROGM (KEY)],Programs_Active20[LONG TEXT])","v":"Finance"}]
[1379,137,"Y",77,"EACH","INPUT","ADOPTEDBUD",null,null,null,null,"Finance (137)","CID cases assigned","CID cases assigned",{"$f":"_xlfn.XLOOKUP(Measures_Table[[#This Row],[PM Program]],Programs_Active20[ZSBPPROGM (KEY)],Programs_Active20[LONG TEXT])","v":"Finance"}]
[1382,137,"Y",79,"EACH","INPUT","ADOPTEDBUD",null,null,null,null,"Traffic-CVE/DWI/HEAT/Impound/Motor (137)","Percentage of CID cases cleared","Percentage of CID cases cleared",{"$f":"_xlfn.XLOOKUP(Measures_Table[[#This Row],[PM Program]],Programs_Active20[ZSBPPROGM (KEY)],Programs_Active20[LONG TEXT])","v":"Traffic - CVE / DWI / HEAT / Impound / MOTORS"}]
[1383,137,"Y",79,"EACH","INPUT","ADOPTEDBUD",null,null,null,null,"Traffic-CVE/DWI/HEAT/Impound/Motor (137)","Calls generating a case number","Calls generating a case number",{"$f":"_xlfn.XLOOKUP(Measures_Table[[#This Row],[PM Program]],Programs_Active20[ZSBPPROGM (KEY)],Programs_Active20[LONG TEXT])","v":"Traffic - CVE / DWI / HEAT / Impound / MOTORS"}]
[1384,137,"Y",79,"EACH","INPUT","ADOPTEDBUD",null,null,null,null,"Traffic-CVE/DWI/HEAT/Impound/Motor (137)","MHU calls inside the city limits","MHU calls inside the city limits",{"$f":"_xlfn.XLOOKUP(Measures_Table[[#This Row],[PM Program]],Programs_Active20[ZSBPPROGM (KEY)],Programs_Active20[LONG TEXT])","v":"Traffic - CVE / DWI / HEAT / Impound / MOTORS"}]
[1385,137,"Y",79,"EACH","INPUT","ADOPTEDBUD",null,null,null,null,"Traffic-CVE/DWI/HEAT/Impound/Motor (137)","MHU calls outside the city limits","MHU calls outside the city limits",{"$f":"_xlfn.XLOOKUP(Measures_Table[[#This Row],[PM Program]],Programs_Active20[ZSBPPROGM (KEY)],Programs_Active20[LONG TEXT])","v":"Traffic - CVE / DWI / HEAT / Impound / MOTORS"}]
[1386,137,"Y",79,"EACH","INPUT","ADOPTEDBUD",null,null,null,null,"Traffic-CVE/DWI/HEAT/Impound/Motor (137)","No. of people deferred from jail","No. of people deferred from jail",{"$f":"_xlfn.XLOOKUP(Measures_Table[[#This Row],[PM Program]],Programs_Active20[ZSBPPROGM (KEY)],Programs_Active20[LONG TEXT])","v":"Traffic - CVE / DWI / HEAT / Impound / MOTORS"}]
[1388,137,"Y",80,"EACH","INPUT","ADOPTEDBUD",null,null,null,null,"Hospital Visitation Unit (137)","Staff hrs at ASH as baliff","Staff hrs at ASH as baliff",{"$f":"_xlfn.XLOOKUP(Measures_Table[[#This Row],[PM Program]],Programs_Active20[ZSBPPROGM (KEY)],Programs_Active20[LONG TEXT])","v":"Hospital Visitation Unit"}]
[1389,137,"Y",80,"EACH","INPUT","ADOPTEDBUD",null,null,null,null,"Hospital Visitation Unit (137)","No. of incoming calls","No. of incoming calls",{"$f":"_xlfn.XLOOKUP(Measures_Table[[#This Row],[PM Program]],Programs_Active20[ZSBPPROGM (KEY)],Programs_Active20[LONG TEXT])","v":"Hospital Visitation Unit"}]
[1390,137,"Y",80,"EACH","INPUT","ADOPTEDBUD",null,null,null,null,"Hospital Visitation Unit (137)","No. of incoming admin calls","No. of incoming admin calls",{"$f":"_xlfn.XLOOKUP(Measures_Table[[#This Row],[PM Program]],Programs_Active20[ZSBPPROGM (KEY)],Programs_Active20[LONG TEXT])","v":"Hospital Visitation Unit"}]
[1391,137,"Y",80,"EACH","INPUT","ADOPTEDBUD",null,null,null,null,"Hospital Visitation Unit (137)","No. of units per radio operators","No. of units per radio operators",{"$f":"_xlfn.XLOOKUP(Measures_Table[[#This Row],[PM Program]],Programs_Active20[ZSBPPROGM (KEY)],Programs_Active20[LONG TEXT])","v":"Hospital Visitation Unit"}]
[1392,137,"Y",80,"EACH","INPUT","ADOPTEDBUD",null,null,null,null,"Hospital Visitation Unit (137)","Average days per month non-compliant wit","Average days per month non-compliant with NENA standards",{"$f":"_xlfn.XLOOKUP(Measures_Table[[#This Row],[PM Program]],Programs_Active20[ZSBPPROGM (KEY)],Programs_Active20[LONG TEXT])","v":"Hospital Visitation Unit"}]
[1393,137,"Y",80,"EACH","INPUT","ADOPTEDBUD",null,null,null,null,"Hospital Visitation Unit (137)","No. of violator contacts (County)","No. of violator contacts (County)",{"$f":"_xlfn.XLOOKUP(Measures_Table[[#This Row],[PM Program]],Programs_Active20[ZSBPPROGM (KEY)],Programs_Active20[LONG TEXT])","v":"Hospital Visitation Unit"}]
[1394,137,"Y",80,"EACH","INPUT","ADOPTEDBUD",null,null,null,null,"Hospital Visitation Unit (137)","No. of DWI arrests (unit specific)","No. of DWI arrests (unit specific)",{"$f":"_xlfn.XLOOKUP(Measures_Table[[#This Row],[PM Program]],Programs_Active20[ZSBPPROGM (KEY)],Programs_Active20[LONG TEXT])","v":"Hospital Visitation Unit"}]
[1395,137,"Y",81,"EACH","INPUT","ADOPTEDBUD",null,null,null,null,"Human Resources - Recruiting (137)","No. of DWI arrests (County)","No. of DWI arrests (County)",{"$f":"_xlfn.XLOOKUP(Measures_Table[[#This Row],[PM Program]],Programs_Active20[ZSBPPROGM (KEY)],Programs_Active20[LONG TEXT])","v":"Human Resources - Recruiting"}]
[1396,137,"Y",81,"EACH","INPUT","ADOPTEDBUD",null,null,null,null,"Human Resources - Recruiting (137)","No. of impounded animals","No. of impounded animals",{"$f":"_xlfn.XLOOKUP(Measures_Table[[#This Row],[PM Program]],Programs_Active20[ZSBPPROGM (KEY)],Programs_Active20[LONG TEXT])","v":"Human Resources - Recruiting"}]
[1397,137,"Y",81,"EACH","INPUT","ADOPTEDBUD",null,null,null,null,"Human Resources - Recruiting (137)","No. of calls for service","No. of calls for service",{"$f":"_xlfn.XLOOKUP(Measures_Table[[#This Row],[PM Program]],Programs_Active20[ZSBPPROGM (KEY)],Programs_Active20[LONG TEXT])","v":"Human Resources - Recruiting"}]
[1398,137,"Y",81,"EACH","INPUT","ADOPTEDBUD",null,null,null,null,"Human Resources - Recruiting (137)","No. of City call outs","No. of City call outs",{"$f":"_xlfn.XLOOKUP(Measures_Table[[#This Row],[PM Program]],Programs_Active20[ZSBPPROGM (KEY)],Programs_Active20[LONG TEXT])","v":"Human Resources - Recruiting"}]
[1399,137,"Y",81,"EACH","INPUT","ADOPTEDBUD",null,null,null,null,"Human Resources - Recruiting (137)","No. of animals auctioned","No. of animals auctioned",{"$f":"_xlfn.XLOOKUP(Measures_Table[[#This Row],[PM Program]],Programs_Active20[ZSBPPROGM (KEY)],Programs_Active20[LONG TEXT])","v":"Human Resources - Recruiting"}]
[1400,137,"Y",81,"EACH","INPUT","ADOPTEDBUD",null,null,null,null,"Human Resources - Recruiting (137)","No. of hours spent on animal management","No. of hours spent on animal management",{"$f":"_xlfn.XLOOKUP(Measures_Table[[#This Row],[PM Program]],Programs_Active20[ZSBPPROGM (KEY)],Programs_Active20[LONG TEXT])","v":"Human Resources - Recruiting"}]
[1401,137,"Y",81,"EACH","INPUT","ADOPTEDBUD",null,null,null,null,"Human Resources - Recruiting (137)","Registered alarm sites","Registered alarm sites",{"$f":"_xlfn.XLOOKUP(Measures_Table[[#This Row],[PM Program]],Programs_Active20[ZSBPPROGM (KEY)],Programs_Active20[LONG TEXT])","v":"Human Resources - Recruiting"}]
[1402,137,"Y",81,"HOURS","INPUT","ADOPTEDBUD",null,null,null,null,"Human Resources - Recruiting (137)","No. of P.O.s issued","No. of P.O.s issued",{"$f":"_xlfn.XLOOKUP(Measures_Table[[#This Row],[PM Program]],Programs_Active20[ZSBPPROGM (KEY)],Programs_Active20[LONG TEXT])","v":"Human Resources - Recruiting"}]
[1403,137,"Y",79,"EACH","INPUT","ADOPTEDBUD",null,null,null,null,"Traffic-CVE/DWI/HEAT/Impound/Motor (137)","No. of IWF cash transactions received","No. of IWF cash transactions received",{"$f":"_xlfn.XLOOKUP(Measures_Table[[#This Row],[PM Program]],Programs_Active20[ZSBPPROGM (KEY)],Programs_Active20[LONG TEXT])","v":"Traffic - CVE / DWI / HEAT / Impound / MOTORS"}]
[1404,137,"Y",79,"EACH","INPUT","ADOPTEDBUD",null,null,null,null,"Traffic-CVE/DWI/HEAT/Impound/Motor (137)","How many medical invoices are processed","How many medical invoices are processed",{"$f":"_xlfn.XLOOKUP(Measures_Table[[#This Row],[PM Program]],Programs_Active20[ZSBPPROGM (KEY)],Programs_Active20[LONG TEXT])","v":"Traffic - CVE / DWI / HEAT / Impound / MOTORS"}]
[1405,137,"Y",79,"EACH","INPUT","ADOPTEDBUD",null,null,null,null,"Traffic-CVE/DWI/HEAT/Impound/Motor (137)","How many ITF’s are posted:  Window, Mail","How many ITF’s are posted:  Window, Mail",{"$f":"_xlfn.XLOOKUP(Measures_Table[[#This Row],[PM Program]],Programs_Active20[ZSBPPROGM (KEY)],Programs_Active20[LONG TEXT])","v":"Traffic - CVE / DWI / HEAT / Impound / MOTORS"}]
[1406,137,"Y",79,"DOLLARS","INPUT","ADOPTEDBUD",null,null,null,null,"Traffic-CVE/DWI/HEAT/Impound/Motor (137)","How many vehicle inspections are entered","How many vehicle inspections are entered.",{"$f":"_xlfn.XLOOKUP(Measures_Table[[#This Row],[PM Program]],Programs_Active20[ZSBPPROGM (KEY)],Programs_Active20[LONG TEXT])","v":"Traffic - CVE / DWI / HEAT / Impound / MOTORS"}]
[1407,137,"Y",79,"EACH","INPUT","ADOPTEDBUD",null,null,null,null,"Traffic-CVE/DWI/HEAT/Impound/Motor (137)","#deposits by type (e.g., surety fees, ca","#deposits by type (e.g., surety fees, cash bonds)",{"$f":"_xlfn.XLOOKUP(Measures_Table[[#This Row],[PM Program]],Programs_Active20[ZSBPPROGM (KEY)],Programs_Active20[LONG TEXT])","v":"Traffic - CVE / DWI / HEAT / Impound / MOTORS"}]
[1408,137,"Y",79,"DOLLARS","INPUT","ADOPTEDBUD",null,null,null,null,"Traffic-CVE/DWI/HEAT/Impound/Motor (137)","No. of Traffic Stop Contacts","No. of Traffic Stop Contacts",{"$f":"_xlfn.XLOOKUP(Measures_Table[[#This Row],[PM Program]],Programs_Active20[ZSBPPROGM (KEY)],Programs_Active20[LONG TEXT])","v":"Traffic - CVE / DWI / HEAT / Impound / MOTORS"}]
[1409,137,"Y",84,"PERCENT","INPUT","ADOPTEDBUD",null,null,null,null,"Inmate Progs & Education - Library (137)","No. of Collisions Worked","No. of Collisions Worked",{"$f":"_xlfn.XLOOKUP(Measures_Table[[#This Row],[PM Program]],Programs_Active20[ZSBPPROGM (KEY)],Programs_Active20[LONG TEXT])","v":"Inmate Programs and Education - Library"}]
[1410,137,"Y",84,"HOURS","INPUT","ADOPTEDBUD",null,null,null,null,"Inmate Progs & Education - Library (137)","No. of Selective Traffic Assignments","No. of Selective Traffic Assignments",{"$f":"_xlfn.XLOOKUP(Measures_Table[[#This Row],[PM Program]],Programs_Active20[ZSBPPROGM (KEY)],Programs_Active20[LONG TEXT])","v":"Inmate Programs and Education - Library"}]
[1411,137,"Y",84,"EACH","INPUT","ADOPTEDBUD",null,null,null,null,"Inmate Progs & Education - Library (137)","No. of Citations Written/Submitted","No. of Citations Written/Submitted",{"$f":"_xlfn.XLOOKUP(Measures_Table[[#This Row],[PM Program]],Programs_Active20[ZSBPPROGM (KEY)],Programs_Active20[LONG TEXT])","v":"Inmate Programs and Education - Library"}]
[1412,137,"Y",84,"EACH","INPUT","ADOPTEDBUD",null,null,null,null,"Inmate Progs & Education - Library (137)","No. of Traffic Surveys","No. of Traffic Surveys",{"$f":"_xlfn.XLOOKUP(Measures_Table[[#This Row],[PM Program]],Programs_Active20[ZSBPPROGM (KEY)],Programs_Active20[LONG TEXT])","v":"Inmate Programs and Education - Library"}]
[1413,137,"Y",84,"EACH","INPUT","ADOPTEDBUD",null,null,null,null,"Inmate Progs & Education - Library (137)","No. of Special Assignments","No. of Special Assignments",{"$f":"_xlfn.XLOOKUP(Measures_Table[[#This Row],[PM Program]],Programs_Active20[ZSBPPROGM (KEY)],Programs_Active20[LONG TEXT])","v":"Inmate Programs and Education - Library"}]
[1414,137,"Y",84,"EACH","INPUT","ADOPTEDBUD",null,null,null,null,"Inmate Progs & Education - Library (137)","No. of Accident Reconstructions","No. of Accident Reconstructions",{"$f":"_xlfn.XLOOKUP(Measures_Table[[#This Row],[PM Program]],Programs_Active20[ZSBPPROGM (KEY)],Programs_Active20[LONG TEXT])","v":"Inmate Programs and Education - Library"}]
[1415,137,"Y",84,"EACH","INPUT","ADOPTEDBUD",null,null,null,null,"Inmate Progs & Education - Library (137)","No. of medical appointments","No. of medical appointments",{"$f":"_xlfn.XLOOKUP(Measures_Table[[#This Row],[PM Program]],Programs_Active20[ZSBPPROGM (KEY)],Programs_Active20[LONG TEXT])","v":"Inmate Programs and Education - Library"}]
[1416,137,"Y",84,"EACH","INPUT","ADOPTEDBUD",null,null,null,null,"Inmate Progs & Education - Library (137)","No. of scheduled medical appointments","No. of scheduled medical appointments",{"$f":"_xlfn.XLOOKUP(Measures_Table[[#This Row],[PM Program]],Programs_Active20[ZSBPPROGM (KEY)],Programs_Active20[LONG TEXT])","v":"Inmate Programs and Education - Library"}]
[1417,137,"Y",84,"EACH","INPUT","ADOPTEDBUD",null,null,null,null,"Inmate Progs & Education - Library (137)","No. of scheduled emergency appointments","No. of scheduled emergency appointments",{"$f":"_xlfn.XLOOKUP(Measures_Table[[#This Row],[PM Program]],Programs_Active20[ZSBPPROGM (KEY)],Programs_Active20[LONG TEXT])","v":"Inmate Programs and Education - Library"}]
[1418,137,"Y",84,"EACH","INPUT","ADOPTEDBUD",null,null,null,null,"Inmate Progs & Education - Library (137)","Hospital coverage by officers","Hospital coverage by officers",{"$f":"_xlfn.XLOOKUP(Measures_Table[[#This Row],[PM Program]],Programs_Active20[ZSBPPROGM (KEY)],Programs_Active20[LONG TEXT])","v":"Inmate Programs and Education - Library"}]
[1419,137,"Y",84,"EACH","INPUT","ADOPTEDBUD",null,null,null,null,"Inmate Progs & Education - Library (137)","Hospital coverage exceeding capacity of","Hospital coverage exceeding capacity of Bldg matrix",{"$f":"_xlfn.XLOOKUP(Measures_Table[[#This Row],[PM Program]],Programs_Active20[ZSBPPROGM (KEY)],Programs_Active20[LONG TEXT])","v":"Inmate Programs and Education - Library"}]
[1420,137,"Y",84,"EACH","INPUT","ADOPTEDBUD",null,null,null,null,"Inmate Progs & Education - Library (137)","No.of video visitations","No.of video visitations",{"$f":"_xlfn.XLOOKUP(Measures_Table[[#This Row],[PM Program]],Programs_Active20[ZSBPPROGM (KEY)],Programs_Active20[LONG TEXT])","v":"Inmate Programs and Education - Library"}]
[1421,137,"Y",84,"EACH","INPUT","ADOPTEDBUD",null,null,null,null,"Inmate Progs & Education - Library (137)","No.of in person visitations","No.of in person visitations",{"$f":"_xlfn.XLOOKUP(Measures_Table[[#This Row],[PM Program]],Programs_Active20[ZSBPPROGM (KEY)],Programs_Active20[LONG TEXT])","v":"Inmate Programs and Education - Library"}]
[1422,137,"Y",84,"EACH","INPUT","ADOPTEDBUD",null,null,null,null,"Inmate Progs & Education - Library (137)","No. of applicant packets received","No. of applicant packets received",{"$f":"_xlfn.XLOOKUP(Measures_Table[[#This Row],[PM Program]],Programs_Active20[ZSBPPROGM (KEY)],Programs_Active20[LONG TEXT])","v":"Inmate Programs and Education - Library"}]
[1423,137,"Y",84,"EACH","INPUT","ADOPTEDBUD",null,null,null,null,"Inmate Progs & Education - Library (137)","No. of applicant packets reviewed","No. of applicant packets reviewed",{"$f":"_xlfn.XLOOKUP(Measures_Table[[#This Row],[PM Program]],Programs_Active20[ZSBPPROGM (KEY)],Programs_Active20[LONG TEXT])","v":"Inmate Programs and Education - Library"}]
[1424,137,"Y",84,"PERCENT","INPUT","ADOPTEDBUD",null,null,null,null,"Inmate Progs & Education - Library (137)","No. of community events / projects","No. of community events / projects",{"$f":"_xlfn.XLOOKUP(Measures_Table[[#This Row],[PM Program]],Programs_Active20[ZSBPPROGM (KEY)],Programs_Active20[LONG TEXT])","v":"Inmate Programs and Education - Library"}]
[1425,137,"Y",84,"EACH","INPUT","ADOPTEDBUD",null,null,null,null,"Inmate Progs & Education - Library (137)","No. of applicants DQd","No. of applicants DQd",{"$f":"_xlfn.XLOOKUP(Measures_Table[[#This Row],[PM Program]],Programs_Active20[ZSBPPROGM (KEY)],Programs_Active20[LONG TEXT])","v":"Inmate Programs and Education - Library"}]
[1426,137,"Y",87,"EACH","INPUT","ADOPTEDBUD",null,null,null,null,"Kitchen (137)","No. of applicants hired","No. of applicants hired",{"$f":"_xlfn.XLOOKUP(Measures_Table[[#This Row],[PM Program]],Programs_Active20[ZSBPPROGM (KEY)],Programs_Active20[LONG TEXT])","v":"Kitchen"}]
[1427,137,"Y",88,"EACH","INPUT","ADOPTEDBUD",null,null,null,null,"Lake Patrol (137)","No. of interview boards","No. of interview boards",{"$f":"_xlfn.XLOOKUP(Measures_Table[[#This Row],[PM Program]],Programs_Active20[ZSBPPROGM (KEY)],Programs_Active20[LONG TEXT])","v":"Lake Patrol"}]
[1428,137,"Y",88,"EACH","INPUT","ADOPTEDBUD",null,null,null,null,"Lake Patrol (137)","No. of PAF generated","No. of PAF generated",{"$f":"_xlfn.XLOOKUP(Measures_Table[[#This Row],[PM Program]],Programs_Active20[ZSBPPROGM (KEY)],Programs_Active20[LONG TEXT])","v":"Lake Patrol"}]
[1429,137,"Y",88,"EACH","INPUT","ADOPTEDBUD",null,null,null,null,"Lake Patrol (137)","Staff hrs for applicant testing / boards","Staff hrs for applicant testing / boards",{"$f":"_xlfn.XLOOKUP(Measures_Table[[#This Row],[PM Program]],Programs_Active20[ZSBPPROGM (KEY)],Programs_Active20[LONG TEXT])","v":"Lake Patrol"}]
[1430,137,"Y",88,"EACH","INPUT","ADOPTEDBUD",null,null,null,null,"Lake Patrol (137)","No. of vehicles impounded","No. of vehicles impounded",{"$f":"_xlfn.XLOOKUP(Measures_Table[[#This Row],[PM Program]],Programs_Active20[ZSBPPROGM (KEY)],Programs_Active20[LONG TEXT])","v":"Lake Patrol"}]
[1431,137,"Y",88,"EACH","INPUT","ADOPTEDBUD",null,null,null,null,"Lake Patrol (137)","No. of vehicles storage facilites inspec","No. of vehicles storage facilites inspected",{"$f":"_xlfn.XLOOKUP(Measures_Table[[#This Row],[PM Program]],Programs_Active20[ZSBPPROGM (KEY)],Programs_Active20[LONG TEXT])","v":"Lake Patrol"}]
[1432,137,"Y",185,"EACH","INPUT","ADOPTEDBUD",null,null,null,null,"Facilities-CallCtr/Mail/Laundry/Whs(137)","No. of wreckers inspected","No. of wreckers inspected",{"$f":"_xlfn.XLOOKUP(Measures_Table[[#This Row],[PM Program]],Programs_Active20[ZSBPPROGM (KEY)],Programs_Active20[LONG TEXT])","v":"Facilities - Call Center / Mail Room / Laundry / Warehouse\n"}]
[1433,137,"Y",84,"EACH","INPUT","ADOPTEDBUD",null,null,null,null,"Inmate Progs & Education - Library (137)","Fees collected for wrecker inspections","Fees collected for wrecker inspections",{"$f":"_xlfn.XLOOKUP(Measures_Table[[#This Row],[PM Program]],Programs_Active20[ZSBPPROGM (KEY)],Programs_Active20[LONG TEXT])","v":"Inmate Programs and Education - Library"}]
[1434,137,"Y",84,"EACH","INPUT","ADOPTEDBUD",null,null,null,null,"Inmate Progs & Education - Library (137)","No. of auctions attended","No. of auctions attended",{"$f":"_xlfn.XLOOKUP(Measures_Table[[#This Row],[PM Program]],Programs_Active20[ZSBPPROGM (KEY)],Programs_Active20[LONG TEXT])","v":"Inmate Programs and Education - Library"}]
[1435,137,"Y",91,"EACH","INPUT","ADOPTEDBUD",null,null,null,null,"Life Safety (137)","Funds received from auctioned vehicles","Funds received from auctioned vehicles",{"$f":"_xlfn.XLOOKUP(Measures_Table[[#This Row],[PM Program]],Programs_Active20[ZSBPPROGM (KEY)],Programs_Active20[LONG TEXT])","v":"Life Safety"}]
[1436,137,"Y",185,"EACH","INPUT","ADOPTEDBUD",null,null,null,null,"Facilities-CallCtr/Mail/Laundry/Whs(137)","% of inmates seen by psychiatrist w/in 7","% of inmates seen by psychiatrist w/in 7 days of being ID",{"$f":"_xlfn.XLOOKUP(Measures_Table[[#This Row],[PM Program]],Programs_Active20[ZSBPPROGM (KEY)],Programs_Active20[LONG TEXT])","v":"Facilities - Call Center / Mail Room / Laundry / Warehouse\n"}]
[1437,137,"Y",93,"HOURS","INPUT","ADOPTEDBUD",null,null,null,null,"Maintenance (137)","Hrs of Program Staff Supervision per wee","Hrs of Program Staff Supervision per week.",{"$f":"_xlfn.XLOOKUP(Measures_Table[[#This Row],[PM Program]],Programs_Active20[ZSBPPROGM (KEY)],Programs_Active20[LONG TEXT])","v":"Maintenance"}]
[1438,137,"Y",93,"EACH","INPUT","ADOPTEDBUD",null,null,null,null,"Maintenance (137)","No. of active volunteers at FY end.","No. of active volunteers at FY end.",{"$f":"_xlfn.XLOOKUP(Measures_Table[[#This Row],[PM Program]],Programs_Active20[ZSBPPROGM (KEY)],Programs_Active20[LONG TEXT])","v":"Maintenance"}]
[1439,137,"Y",93,"EACH","INPUT","ADOPTEDBUD",null,null,null,null,"Maintenance (137)","No. of Counselor follow-ups completed by","No. of Counselor follow-ups completed by counseling staff.",{"$f":"_xlfn.XLOOKUP(Measures_Table[[#This Row],[PM Program]],Programs_Active20[ZSBPPROGM (KEY)],Programs_Active20[LONG TEXT])","v":"Maintenance"}]
[1441,137,"Y",69,"PERCENT","INPUT","ADOPTEDBUD",null,null,null,null,"CID - Major/Spec/Env/Support (137)","No. of GED tests taken","No. of GED tests taken",{"$f":"_xlfn.XLOOKUP(Measures_Table[[#This Row],[PM Program]],Programs_Active20[ZSBPPROGM (KEY)],Programs_Active20[LONG TEXT])","v":"CID - Major Crimes / Special Crimes / Environmental / Support"}]
[1442,137,"Y",69,"PERCENT","INPUT","ADOPTEDBUD",null,null,null,null,"CID - Major/Spec/Env/Support (137)","No. of inmates requiring PSY services at","No. of inmates requiring PSY services at booking",{"$f":"_xlfn.XLOOKUP(Measures_Table[[#This Row],[PM Program]],Programs_Active20[ZSBPPROGM (KEY)],Programs_Active20[LONG TEXT])","v":"CID - Major Crimes / Special Crimes / Environmental / Support"}]
[1444,137,"Y",69,"EACH","INPUT","ADOPTEDBUD",null,null,null,null,"CID - Major/Spec/Env/Support (137)","No. of Post GED/HS Educational and Vocat","No. of Post GED/HS Educational and Vocational classes offered",{"$f":"_xlfn.XLOOKUP(Measures_Table[[#This Row],[PM Program]],Programs_Active20[ZSBPPROGM (KEY)],Programs_Active20[LONG TEXT])","v":"CID - Major Crimes / Special Crimes / Environmental / Support"}]
[1445,137,"Y",95,"DOLLARS","INPUT","ADOPTEDBUD",null,null,null,null,"Marketable Skills (137)","No. of Re-Entry Plans completed","No. of Re-Entry Plans completed",{"$f":"_xlfn.XLOOKUP(Measures_Table[[#This Row],[PM Program]],Programs_Active20[ZSBPPROGM (KEY)],Programs_Active20[LONG TEXT])","v":"Marketable Skills"}]
[1446,137,"Y",95,"HOURS","INPUT","ADOPTEDBUD",null,null,null,null,"Marketable Skills (137)","No of screening questionnaires completed","No. of screening questionnaires completed by counseling staff",{"$f":"_xlfn.XLOOKUP(Measures_Table[[#This Row],[PM Program]],Programs_Active20[ZSBPPROGM (KEY)],Programs_Active20[LONG TEXT])","v":"Marketable Skills"}]
[1447,137,"Y",95,"EACH","INPUT","ADOPTEDBUD",null,null,null,null,"Marketable Skills (137)","No. of Substance Use Disorder classes of","No. of Substance Use Disorder classes offered",{"$f":"_xlfn.XLOOKUP(Measures_Table[[#This Row],[PM Program]],Programs_Active20[ZSBPPROGM (KEY)],Programs_Active20[LONG TEXT])","v":"Marketable Skills"}]
[1448,137,"Y",95,"EACH","INPUT","ADOPTEDBUD",null,null,null,null,"Marketable Skills (137)","No. of Women, Children and Families clas","No. of Women, Children and Families classes offered",{"$f":"_xlfn.XLOOKUP(Measures_Table[[#This Row],[PM Program]],Programs_Active20[ZSBPPROGM (KEY)],Programs_Active20[LONG TEXT])","v":"Marketable Skills"}]
[1450,137,"Y",96,"EACH","INPUT","ADOPTEDBUD",null,null,null,null,"Medical, Mental & Dental Services (137)","Number of interns per semester","Number of interns per semester",{"$f":"_xlfn.XLOOKUP(Measures_Table[[#This Row],[PM Program]],Programs_Active20[ZSBPPROGM (KEY)],Programs_Active20[LONG TEXT])","v":"Medical, Mental and Dental Services"}]
[1451,137,"Y",96,"EACH","INPUT","ADOPTEDBUD",null,null,null,null,"Medical, Mental & Dental Services (137)","Percent of inmate follow-ups appointment","Percent of inmate follow-ups appointments which are bumped.",{"$f":"_xlfn.XLOOKUP(Measures_Table[[#This Row],[PM Program]],Programs_Active20[ZSBPPROGM (KEY)],Programs_Active20[LONG TEXT])","v":"Medical, Mental and Dental Services"}]
[1452,137,"Y",96,"EACH","INPUT","ADOPTEDBUD",null,null,null,null,"Medical, Mental & Dental Services (137)","Psychiatric Provider Chart Audits for Qu","Psychiatric Provider Chart Audits for Quality Assurance per year for each provider.",{"$f":"_xlfn.XLOOKUP(Measures_Table[[#This Row],[PM Program]],Programs_Active20[ZSBPPROGM (KEY)],Programs_Active20[LONG TEXT])","v":"Medical, Mental and Dental Services"}]
[1453,137,"Y",96,"EACH","INPUT","ADOPTEDBUD",null,null,null,null,"Medical, Mental & Dental Services (137)","No. of meals prepared","No. of meals prepared",{"$f":"_xlfn.XLOOKUP(Measures_Table[[#This Row],[PM Program]],Programs_Active20[ZSBPPROGM (KEY)],Programs_Active20[LONG TEXT])","v":"Medical, Mental and Dental Services"}]
[1460,137,"Y",98,"POUNDS","INPUT","ADOPTEDBUD",null,null,null,null,"VICE (137)","No. of mailings","No. of mailings",{"$f":"_xlfn.XLOOKUP(Measures_Table[[#This Row],[PM Program]],Programs_Active20[ZSBPPROGM (KEY)],Programs_Active20[LONG TEXT])","v":"VICE"}]
[1461,137,"Y",98,"EACH","INPUT","ADOPTEDBUD",null,null,null,null,"VICE (137)","No. of requests responded to","No. of requests responded to",{"$f":"_xlfn.XLOOKUP(Measures_Table[[#This Row],[PM Program]],Programs_Active20[ZSBPPROGM (KEY)],Programs_Active20[LONG TEXT])","v":"VICE"}]
[1462,137,"Y",98,"EACH","INPUT","ADOPTEDBUD",null,null,null,null,"VICE (137)","Jail Standards Certification Yes/No (1 =","Jail Standards Certification Yes/No (1 = Y, 0=N)",{"$f":"_xlfn.XLOOKUP(Measures_Table[[#This Row],[PM Program]],Programs_Active20[ZSBPPROGM (KEY)],Programs_Active20[LONG TEXT])","v":"VICE"}]
[1463,137,"Y",99,"EACH","INPUT","ADOPTEDBUD",null,null,null,null,"Patrol (137)","No. of pieces of mail screened","No. of pieces of mail screened",{"$f":"_xlfn.XLOOKUP(Measures_Table[[#This Row],[PM Program]],Programs_Active20[ZSBPPROGM (KEY)],Programs_Active20[LONG TEXT])","v":"Patrol"}]
[1464,137,"Y",99,"EACH","INPUT","ADOPTEDBUD",null,null,null,null,"Patrol (137)","Hours spent on work orders","Hours spent on work orders",{"$f":"_xlfn.XLOOKUP(Measures_Table[[#This Row],[PM Program]],Programs_Active20[ZSBPPROGM (KEY)],Programs_Active20[LONG TEXT])","v":"Patrol"}]
[1465,137,"Y",99,"EACH","INPUT","ADOPTEDBUD",null,null,null,null,"Patrol (137)","No. of work orders received","No. of work orders received",{"$f":"_xlfn.XLOOKUP(Measures_Table[[#This Row],[PM Program]],Programs_Active20[ZSBPPROGM (KEY)],Programs_Active20[LONG TEXT])","v":"Patrol"}]
[1466,137,"Y",99,"EACH","INPUT","ADOPTEDBUD",null,null,null,null,"Patrol (137)","No. of work orders completed","No. of work orders completed",{"$f":"_xlfn.XLOOKUP(Measures_Table[[#This Row],[PM Program]],Programs_Active20[ZSBPPROGM (KEY)],Programs_Active20[LONG TEXT])","v":"Patrol"}]
[1467,137,"Y",99,"EACH","INPUT","ADOPTEDBUD",null,null,null,null,"Patrol (137)","CID cases assigned","CID cases assigned",{"$f":"_xlfn.XLOOKUP(Measures_Table[[#This Row],[PM Program]],Programs_Active20[ZSBPPROGM (KEY)],Programs_Active20[LONG TEXT])","v":"Patrol"}]
[1468,137,"Y",99,"EACH","INPUT","ADOPTEDBUD",null,null,null,null,"Patrol (137)","% of CID cases cleared","% of CID cases cleared",{"$f":"_xlfn.XLOOKUP(Measures_Table[[#This Row],[PM Program]],Programs_Active20[ZSBPPROGM (KEY)],Programs_Active20[LONG TEXT])","v":"Patrol"}]
[1469,137,"Y",99,"EACH","INPUT","ADOPTEDBUD",null,null,null,null,"Patrol (137)","% of Juvenile cases cleared","% of Juvenile cases cleared",{"$f":"_xlfn.XLOOKUP(Measures_Table[[#This Row],[PM Program]],Programs_Active20[ZSBPPROGM (KEY)],Programs_Active20[LONG TEXT])","v":"Patrol"}]
[1470,137,"Y",99,"EACH","INPUT","ADOPTEDBUD",null,null,null,null,"Patrol (137)","Juvenile cases","Juvenile cases",{"$f":"_xlfn.XLOOKUP(Measures_Table[[#This Row],[PM Program]],Programs_Active20[ZSBPPROGM (KEY)],Programs_Active20[LONG TEXT])","v":"Patrol"}]
[1471,137,"Y",99,"EACH","INPUT","ADOPTEDBUD",null,null,null,null,"Patrol (137)","No. of arrests by detectives","No. of arrests by detectives",{"$f":"_xlfn.XLOOKUP(Measures_Table[[#This Row],[PM Program]],Programs_Active20[ZSBPPROGM (KEY)],Programs_Active20[LONG TEXT])","v":"Patrol"}]
[1472,137,"Y",99,"EACH","INPUT","ADOPTEDBUD",null,null,null,null,"Patrol (137)","Cost of projects (MS)","Cost of projects (MS)",{"$f":"_xlfn.XLOOKUP(Measures_Table[[#This Row],[PM Program]],Programs_Active20[ZSBPPROGM (KEY)],Programs_Active20[LONG TEXT])","v":"Patrol"}]
[1473,137,"Y",99,"EACH","INPUT","ADOPTEDBUD",null,null,null,null,"Patrol (137)","Hrs spent on work orders (MS)","Hrs spent on work orders (MS)",{"$f":"_xlfn.XLOOKUP(Measures_Table[[#This Row],[PM Program]],Programs_Active20[ZSBPPROGM (KEY)],Programs_Active20[LONG TEXT])","v":"Patrol"}]
[1474,137,"Y",99,"EACH","INPUT","ADOPTEDBUD",null,null,null,null,"Patrol (137)","No. of participants (SWAP)","No. of participants (SWAP)",{"$f":"_xlfn.XLOOKUP(Measures_Table[[#This Row],[PM Program]],Programs_Active20[ZSBPPROGM (KEY)],Programs_Active20[LONG TEXT])","v":"Patrol"}]
[1475,137,"Y",99,"DOLLARS","INPUT","ADOPTEDBUD",null,null,null,null,"Patrol (137)","Project work orders (MS)","Project work orders (MS)",{"$f":"_xlfn.XLOOKUP(Measures_Table[[#This Row],[PM Program]],Programs_Active20[ZSBPPROGM (KEY)],Programs_Active20[LONG TEXT])","v":"Patrol"}]
[1476,137,"Y",99,"DOLLARS","INPUT","ADOPTEDBUD",null,null,null,null,"Patrol (137)","No. of training/certification hours","No. of training/certification hours",{"$f":"_xlfn.XLOOKUP(Measures_Table[[#This Row],[PM Program]],Programs_Active20[ZSBPPROGM (KEY)],Programs_Active20[LONG TEXT])","v":"Patrol"}]
[1477,137,"Y",60,"EACH","INPUT","ADOPTEDBUD",null,null,null,null,"Classification-Recs -CSTU/Property (137)","No. of prescriptions filled","No. of prescriptions filled",{"$f":"_xlfn.XLOOKUP(Measures_Table[[#This Row],[PM Program]],Programs_Active20[ZSBPPROGM (KEY)],Programs_Active20[LONG TEXT])","v":"Classification-Records - CSTU / Property\n"}]
[1478,137,"Y",60,"EACH","INPUT","ADOPTEDBUD",null,null,null,null,"Classification-Recs -CSTU/Property (137)","No. of contract versus staff hours","No. of contract versus staff hours",{"$f":"_xlfn.XLOOKUP(Measures_Table[[#This Row],[PM Program]],Programs_Active20[ZSBPPROGM (KEY)],Programs_Active20[LONG TEXT])","v":"Classification-Records - CSTU / Property\n"}]
[1479,137,"Y",60,"EACH","INPUT","ADOPTEDBUD",null,null,null,null,"Classification-Recs -CSTU/Property (137)","No. of intake evaluations in CBF","No. of intake evaluations in CBF",{"$f":"_xlfn.XLOOKUP(Measures_Table[[#This Row],[PM Program]],Programs_Active20[ZSBPPROGM (KEY)],Programs_Active20[LONG TEXT])","v":"Classification-Records - CSTU / Property\n"}]
[1481,137,"Y",102,"Y/N","INPUT","ADOPTEDBUD",null,null,null,null,"Research, Planning & Incident Mgmt (137)","No. of Traffic Stop Contacts","No. of Traffic Stop Contacts",{"$f":"_xlfn.XLOOKUP(Measures_Table[[#This Row],[PM Program]],Programs_Active20[ZSBPPROGM (KEY)],Programs_Active20[LONG TEXT])","v":"Research, Planning and Incident Management"}]
[1482,137,"Y",102,"Y/N","INPUT","ADOPTEDBUD",null,null,null,null,"Research, Planning & Incident Mgmt (137)","No. of Collisions Worked - MOTOR primary","No. of Collisions Worked - MOTOR primary",{"$f":"_xlfn.XLOOKUP(Measures_Table[[#This Row],[PM Program]],Programs_Active20[ZSBPPROGM (KEY)],Programs_Active20[LONG TEXT])","v":"Research, Planning and Incident Management"}]
[1483,137,"Y",102,"DOLLARS","INPUT","ADOPTEDBUD",null,null,null,null,"Research, Planning & Incident Mgmt (137)","No. of Selective Traffic Assignments","No. of Selective Traffic Assignments",{"$f":"_xlfn.XLOOKUP(Measures_Table[[#This Row],[PM Program]],Programs_Active20[ZSBPPROGM (KEY)],Programs_Active20[LONG TEXT])","v":"Research, Planning and Incident Management"}]
[1484,137,"Y",102,"Y/N","INPUT","ADOPTEDBUD",null,null,null,null,"Research, Planning & Incident Mgmt (137)","No. of Citations Written/Submitted","No. of Citations Written/Submitted",{"$f":"_xlfn.XLOOKUP(Measures_Table[[#This Row],[PM Program]],Programs_Active20[ZSBPPROGM (KEY)],Programs_Active20[LONG TEXT])","v":"Research, Planning and Incident Management"}]
[1485,137,"Y",102,"EACH","INPUT","ADOPTEDBUD",null,null,null,null,"Research, Planning & Incident Mgmt (137)","No. of Special Assignments","No. of Special Assignments",{"$f":"_xlfn.XLOOKUP(Measures_Table[[#This Row],[PM Program]],Programs_Active20[ZSBPPROGM (KEY)],Programs_Active20[LONG TEXT])","v":"Research, Planning and Incident Management"}]
[1486,137,"Y",104,"EACH","INPUT","ADOPTEDBUD",null,null,null,null,"Reserves (137)","No. of Accident Reconstructions","No. of Accident Reconstructions",{"$f":"_xlfn.XLOOKUP(Measures_Table[[#This Row],[PM Program]],Programs_Active20[ZSBPPROGM (KEY)],Programs_Active20[LONG TEXT])","v":"Reserves"}]
[1487,137,"Y",104,"EACH","INPUT","ADOPTEDBUD",null,null,null,null,"Reserves (137)","Marijuana seized","Marijuana seized",{"$f":"_xlfn.XLOOKUP(Measures_Table[[#This Row],[PM Program]],Programs_Active20[ZSBPPROGM (KEY)],Programs_Active20[LONG TEXT])","v":"Reserves"}]
[1488,137,"Y",104,"EACH","INPUT","ADOPTEDBUD",null,null,null,null,"Reserves (137)","No. of search warrants obtained","No. of search warrants obtained",{"$f":"_xlfn.XLOOKUP(Measures_Table[[#This Row],[PM Program]],Programs_Active20[ZSBPPROGM (KEY)],Programs_Active20[LONG TEXT])","v":"Reserves"}]
[1492,137,"Y",103,"EACH","INPUT","ADOPTEDBUD",null,null,null,null,"School Resource Officers (SRO) (137)","No. gang related incidents","No. gang related incidents",{"$f":"_xlfn.XLOOKUP(Measures_Table[[#This Row],[PM Program]],Programs_Active20[ZSBPPROGM (KEY)],Programs_Active20[LONG TEXT])","v":"School Resource Officers (SRO)"}]
[1493,137,"Y",103,"EACH","INPUT","ADOPTEDBUD",null,null,null,null,"School Resource Officers (SRO) (137)","No. LE officers killed or assaulted","No. LE officers killed or assaulted",{"$f":"_xlfn.XLOOKUP(Measures_Table[[#This Row],[PM Program]],Programs_Active20[ZSBPPROGM (KEY)],Programs_Active20[LONG TEXT])","v":"School Resource Officers (SRO)"}]
[1494,137,"Y",103,"EACH","INPUT","ADOPTEDBUD",null,null,null,null,"School Resource Officers (SRO) (137)","No. of accidents","No. of accidents",{"$f":"_xlfn.XLOOKUP(Measures_Table[[#This Row],[PM Program]],Programs_Active20[ZSBPPROGM (KEY)],Programs_Active20[LONG TEXT])","v":"School Resource Officers (SRO)"}]
[1495,137,"Y",69,"EACH","INPUT","ADOPTEDBUD",null,null,null,null,"CID - Major/Spec/Env/Support (137)","No. of citations issued","No. of citations issued",{"$f":"_xlfn.XLOOKUP(Measures_Table[[#This Row],[PM Program]],Programs_Active20[ZSBPPROGM (KEY)],Programs_Active20[LONG TEXT])","v":"CID - Major Crimes / Special Crimes / Environmental / Support"}]
[1496,137,"Y",69,"EACH","INPUT","ADOPTEDBUD",null,null,null,null,"CID - Major/Spec/Env/Support (137)","No. of incidents","No. of incidents",{"$f":"_xlfn.XLOOKUP(Measures_Table[[#This Row],[PM Program]],Programs_Active20[ZSBPPROGM (KEY)],Programs_Active20[LONG TEXT])","v":"CID - Major Crimes / Special Crimes / Environmental / Support"}]
[1498,137,"Y",69,"EACH","INPUT","ADOPTEDBUD",null,null,null,null,"CID - Major/Spec/Env/Support (137)","No. of persons over 18 arrested","No. of persons over 18 arrested",{"$f":"_xlfn.XLOOKUP(Measures_Table[[#This Row],[PM Program]],Programs_Active20[ZSBPPROGM (KEY)],Programs_Active20[LONG TEXT])","v":"CID - Major Crimes / Special Crimes / Environmental / Support"}]
[1501,137,"Y",106,"EACH","INPUT","ADOPTEDBUD",null,null,null,null,"Special Weapons & Tactical Un-SWAT (137)","No. weapons seized","No. weapons seized",{"$f":"_xlfn.XLOOKUP(Measures_Table[[#This Row],[PM Program]],Programs_Active20[ZSBPPROGM (KEY)],Programs_Active20[LONG TEXT])","v":"Special Weapons & Tactical Unit (SWAT)"}]
[1502,137,"Y",106,"EACH","INPUT","ADOPTEDBUD",null,null,null,null,"Special Weapons & Tactical Un-SWAT (137)","Value of property recovered","Value of property recovered",{"$f":"_xlfn.XLOOKUP(Measures_Table[[#This Row],[PM Program]],Programs_Active20[ZSBPPROGM (KEY)],Programs_Active20[LONG TEXT])","v":"Special Weapons & Tactical Unit (SWAT)"}]
[1503,137,"Y",106,"EACH","INPUT","ADOPTEDBUD",null,null,null,null,"Special Weapons & Tactical Un-SWAT (137)","Value of property stolen","Value of property stolen",{"$f":"_xlfn.XLOOKUP(Measures_Table[[#This Row],[PM Program]],Programs_Active20[ZSBPPROGM (KEY)],Programs_Active20[LONG TEXT])","v":"Special Weapons & Tactical Unit (SWAT)"}]
[1504,137,"Y",106,"EACH","INPUT","ADOPTEDBUD",null,null,null,null,"Special Weapons & Tactical Un-SWAT (137)","No. of arrests processed","No. of arrests processed",{"$f":"_xlfn.XLOOKUP(Measures_Table[[#This Row],[PM Program]],Programs_Active20[ZSBPPROGM (KEY)],Programs_Active20[LONG TEXT])","v":"Special Weapons & Tactical Unit (SWAT)"}]
[1505,137,"Y",107,"EACH","INPUT","ADOPTEDBUD",null,null,null,null,"Training Academy  (137)","No. of bonds processed","No. of bonds processed",{"$f":"_xlfn.XLOOKUP(Measures_Table[[#This Row],[PM Program]],Programs_Active20[ZSBPPROGM (KEY)],Programs_Active20[LONG TEXT])","v":"Training Academy"}]
[1506,137,"Y",107,"EACH","INPUT","ADOPTEDBUD",null,null,null,null,"Training Academy  (137)","No. of releases processed","No. of releases processed",{"$f":"_xlfn.XLOOKUP(Measures_Table[[#This Row],[PM Program]],Programs_Active20[ZSBPPROGM (KEY)],Programs_Active20[LONG TEXT])","v":"Training Academy"}]
[1507,137,"Y",107,"EACH","INPUT","ADOPTEDBUD",null,null,null,null,"Training Academy  (137)","No. of citations entered","No. of citations entered",{"$f":"_xlfn.XLOOKUP(Measures_Table[[#This Row],[PM Program]],Programs_Active20[ZSBPPROGM (KEY)],Programs_Active20[LONG TEXT])","v":"Training Academy"}]
[1508,137,"Y",107,"EACH","INPUT","ADOPTEDBUD",null,null,null,null,"Training Academy  (137)","Compliance with Jail Standards Yes/No (1","Compliance with Jail Standards Yes/No (1 = Y, 0=N)",{"$f":"_xlfn.XLOOKUP(Measures_Table[[#This Row],[PM Program]],Programs_Active20[ZSBPPROGM (KEY)],Programs_Active20[LONG TEXT])","v":"Training Academy"}]
[1509,137,"Y",107,"EACH","INPUT","ADOPTEDBUD",null,null,null,null,"Training Academy  (137)","Compliance with Grant Audits Yes/No (1 =","Compliance with Grant Audits Yes/No (1 = Y, 0=N)",{"$f":"_xlfn.XLOOKUP(Measures_Table[[#This Row],[PM Program]],Programs_Active20[ZSBPPROGM (KEY)],Programs_Active20[LONG TEXT])","v":"Training Academy"}]
[1510,137,"Y",108,"EACH","INPUT","ADOPTEDBUD",null,null,null,null,"Transportation (137)","Grant funds received","Grant funds received",{"$f":"_xlfn.XLOOKUP(Measures_Table[[#This Row],[PM Program]],Programs_Active20[ZSBPPROGM (KEY)],Programs_Active20[LONG TEXT])","v":"Transportation"}]
[1511,137,"Y",108,"EACH","INPUT","ADOPTEDBUD",null,null,null,null,"Transportation (137)","NIMS Compliance Yes/No (1 = Y, 0=N)","NIMS Compliance Yes/No (1 = Y, 0=N)",{"$f":"_xlfn.XLOOKUP(Measures_Table[[#This Row],[PM Program]],Programs_Active20[ZSBPPROGM (KEY)],Programs_Active20[LONG TEXT])","v":"Transportation"}]
[1512,137,"Y",108,"EACH","INPUT","ADOPTEDBUD",null,null,null,null,"Transportation (137)","No. of incidents responded to","No. of incidents responded to",{"$f":"_xlfn.XLOOKUP(Measures_Table[[#This Row],[PM Program]],Programs_Active20[ZSBPPROGM (KEY)],Programs_Active20[LONG TEXT])","v":"Transportation"}]
[1513,137,"Y",108,"EACH","INPUT","ADOPTEDBUD",null,null,null,null,"Transportation (137)","No. of reserved deputies","No. of reserved deputies",{"$f":"_xlfn.XLOOKUP(Measures_Table[[#This Row],[PM Program]],Programs_Active20[ZSBPPROGM (KEY)],Programs_Active20[LONG TEXT])","v":"Transportation"}]
[1514,137,"Y",108,"EACH","INPUT","ADOPTEDBUD",null,null,null,null,"Transportation (137)","No. of hours worked","No. of hours worked",{"$f":"_xlfn.XLOOKUP(Measures_Table[[#This Row],[PM Program]],Programs_Active20[ZSBPPROGM (KEY)],Programs_Active20[LONG TEXT])","v":"Transportation"}]
[1516,137,"Y",108,"EACH","INPUT","ADOPTEDBUD",null,null,null,null,"Transportation (137)","No. of reserved deputies","No. of reserved deputies",{"$f":"_xlfn.XLOOKUP(Measures_Table[[#This Row],[PM Program]],Programs_Active20[ZSBPPROGM (KEY)],Programs_Active20[LONG TEXT])","v":"Transportation"}]
[1517,137,"Y",108,"EACH","INPUT","ADOPTEDBUD",null,null,null,null,"Transportation (137)","No. of hours worked","No. of hours worked",{"$f":"_xlfn.XLOOKUP(Measures_Table[[#This Row],[PM Program]],Programs_Active20[ZSBPPROGM (KEY)],Programs_Active20[LONG TEXT])","v":"Transportation"}]
[1519,137,"Y",109,"EACH","INPUT","ADOPTEDBUD",null,null,null,null,"Victim Services (137)","No. student contacts","No. student contacts",{"$f":"_xlfn.XLOOKUP(Measures_Table[[#This Row],[PM Program]],Programs_Active20[ZSBPPROGM (KEY)],Programs_Active20[LONG TEXT])","v":"Victim Services"}]
[1520,137,"Y",79,"EACH","INPUT","ADOPTEDBUD",null,null,null,null,"Traffic-CVE/DWI/HEAT/Impound/Motor (137)","No. of campus arrests","No. of campus arrests",{"$f":"_xlfn.XLOOKUP(Measures_Table[[#This Row],[PM Program]],Programs_Active20[ZSBPPROGM (KEY)],Programs_Active20[LONG TEXT])","v":"Traffic - CVE / DWI / HEAT / Impound / MOTORS"}]
[1521,137,"Y",79,"EACH","INPUT","ADOPTEDBUD",null,null,null,null,"Traffic-CVE/DWI/HEAT/Impound/Motor (137)","No. of campus outreach","No. of campus outreach",{"$f":"_xlfn.XLOOKUP(Measures_Table[[#This Row],[PM Program]],Programs_Active20[ZSBPPROGM (KEY)],Programs_Active20[LONG TEXT])","v":"Traffic - CVE / DWI / HEAT / Impound / MOTORS"}]
[1522,137,"Y",79,"EACH","INPUT","ADOPTEDBUD",null,null,null,null,"Traffic-CVE/DWI/HEAT/Impound/Motor (137)","CID cases assigned","CID cases assigned",{"$f":"_xlfn.XLOOKUP(Measures_Table[[#This Row],[PM Program]],Programs_Active20[ZSBPPROGM (KEY)],Programs_Active20[LONG TEXT])","v":"Traffic - CVE / DWI / HEAT / Impound / MOTORS"}]
[1523,137,"Y",79,"EACH","INPUT","ADOPTEDBUD",null,null,null,null,"Traffic-CVE/DWI/HEAT/Impound/Motor (137)","Juvenile cases assigned","Juvenile cases assigned",{"$f":"_xlfn.XLOOKUP(Measures_Table[[#This Row],[PM Program]],Programs_Active20[ZSBPPROGM (KEY)],Programs_Active20[LONG TEXT])","v":"Traffic - CVE / DWI / HEAT / Impound / MOTORS"}]
[1524,137,"Y",79,"EACH","INPUT","ADOPTEDBUD",null,null,null,null,"Traffic-CVE/DWI/HEAT/Impound/Motor (137)","No. of arrests by detectives","No. of arrests by detectives",{"$f":"_xlfn.XLOOKUP(Measures_Table[[#This Row],[PM Program]],Programs_Active20[ZSBPPROGM (KEY)],Programs_Active20[LONG TEXT])","v":"Traffic - CVE / DWI / HEAT / Impound / MOTORS"}]
[1525,137,"Y",79,"EACH","INPUT","ADOPTEDBUD",null,null,null,null,"Traffic-CVE/DWI/HEAT/Impound/Motor (137)","No. of family violence cases","No. of family violence cases",{"$f":"_xlfn.XLOOKUP(Measures_Table[[#This Row],[PM Program]],Programs_Active20[ZSBPPROGM (KEY)],Programs_Active20[LONG TEXT])","v":"Traffic - CVE / DWI / HEAT / Impound / MOTORS"}]
[1526,137,"Y",69,"EACH","INPUT","ADOPTEDBUD",null,null,null,null,"CID - Major/Spec/Env/Support (137)","Percentage of CID cases cleared","Percentage of CID cases cleared",{"$f":"_xlfn.XLOOKUP(Measures_Table[[#This Row],[PM Program]],Programs_Active20[ZSBPPROGM (KEY)],Programs_Active20[LONG TEXT])","v":"CID - Major Crimes / Special Crimes / Environmental / Support"}]
[1527,137,"Y",69,"EACH","INPUT","ADOPTEDBUD",null,null,null,null,"CID - Major/Spec/Env/Support (137)","Percentage of juvenile cases cleared","Percentage of juvenile cases cleared",{"$f":"_xlfn.XLOOKUP(Measures_Table[[#This Row],[PM Program]],Programs_Active20[ZSBPPROGM (KEY)],Programs_Active20[LONG TEXT])","v":"CID - Major Crimes / Special Crimes / Environmental / Support"}]
[1528,137,"Y",183,"EACH","INPUT","ADOPTEDBUD",null,null,null,null,"Police Psychologist (137)","No. of warrants packets issued","No. of warrants packets issued",{"$f":"_xlfn.XLOOKUP(Measures_Table[[#This Row],[PM Program]],Programs_Active20[ZSBPPROGM (KEY)],Programs_Active20[LONG TEXT])","v":"Police Psychologist"}]
[1529,137,"Y",183,"EACH","INPUT","ADOPTEDBUD",null,null,null,null,"Police Psychologist (137)","No. of warrants issued","No. of warrants issued",{"$f":"_xlfn.XLOOKUP(Measures_Table[[#This Row],[PM Program]],Programs_Active20[ZSBPPROGM (KEY)],Programs_Active20[LONG TEXT])","v":"Police Psychologist"}]
[1530,137,"Y",183,"EACH","INPUT","ADOPTEDBUD",null,null,null,null,"Police Psychologist (137)","No. of warrants served","No. of warrants served",{"$f":"_xlfn.XLOOKUP(Measures_Table[[#This Row],[PM Program]],Programs_Active20[ZSBPPROGM (KEY)],Programs_Active20[LONG TEXT])","v":"Police Psychologist"}]
[1531,137,"Y",183,"HOURS","INPUT","ADOPTEDBUD",null,null,null,null,"Police Psychologist (137)","Call outs / unplanned Incidents","Call outs / unplanned Incidents",{"$f":"_xlfn.XLOOKUP(Measures_Table[[#This Row],[PM Program]],Programs_Active20[ZSBPPROGM (KEY)],Programs_Active20[LONG TEXT])","v":"Police Psychologist"}]
[1532,137,"Y",183,"HOURS","INPUT","ADOPTEDBUD",null,null,null,null,"Police Psychologist (137)","No. of instructor training hours conduct","No. of instructor training hours conducted",{"$f":"_xlfn.XLOOKUP(Measures_Table[[#This Row],[PM Program]],Programs_Active20[ZSBPPROGM (KEY)],Programs_Active20[LONG TEXT])","v":"Police Psychologist"}]
[1533,137,"Y",183,"EACH","INPUT","ADOPTEDBUD",null,null,null,null,"Police Psychologist (137)","No. of classroom training hours","No. of classroom training hours",{"$f":"_xlfn.XLOOKUP(Measures_Table[[#This Row],[PM Program]],Programs_Active20[ZSBPPROGM (KEY)],Programs_Active20[LONG TEXT])","v":"Police Psychologist"}]
[1535,109,"Y",13,"EACH","OUTPUT","ADOPTEDBUD",null,null,null,null,"Corporations (109)","No. TCSO officers in attendance","No. TCSO officers in attendance",{"$f":"_xlfn.XLOOKUP(Measures_Table[[#This Row],[PM Program]],Programs_Active20[ZSBPPROGM (KEY)],Programs_Active20[LONG TEXT])","v":"Corporations"}]
[1540,109,"Y",12,"HOURS","INPUT","ADOPTEDBUD",null,null,null,null,"Investment Management (109)","No. of inmates transported to TDCJ","No. of inmates transported to TDCJ",{"$f":"_xlfn.XLOOKUP(Measures_Table[[#This Row],[PM Program]],Programs_Active20[ZSBPPROGM (KEY)],Programs_Active20[LONG TEXT])","v":"Investment Management"}]
[1541,109,"Y",12,"DOLLARS","OUTCOME","ADOPTEDBUD",null,null,null,null,"Investment Management (109)","No. Texas Youth Commission transports","No. Texas Youth Commission transports",{"$f":"_xlfn.XLOOKUP(Measures_Table[[#This Row],[PM Program]],Programs_Active20[ZSBPPROGM (KEY)],Programs_Active20[LONG TEXT])","v":"Investment Management"}]
[1542,149,"Y",131,"EACH","OUTCOME","BLACKBOOK",null,null,null,null,"Natural Resources Program (149)","No. of inmates seen by the Judges","No. of inmates seen by the Judges",{"$f":"_xlfn.XLOOKUP(Measures_Table[[#This Row],[PM Program]],Programs_Active20[ZSBPPROGM (KEY)],Programs_Active20[LONG TEXT])","v":"Natural Resources Program"}]
[1543,149,"Y",131,"ACRES","OUTCOME","BLACKBOOK",null,null,null,null,"Natural Resources Program (149)","No of Out of State Warrants","No of Out of State Warrants",{"$f":"_xlfn.XLOOKUP(Measures_Table[[#This Row],[PM Program]],Programs_Active20[ZSBPPROGM (KEY)],Programs_Active20[LONG TEXT])","v":"Natural Resources Program"}]
[1544,149,"Y",131,"EACH","OUTCOME","BLACKBOOK",null,null,null,null,"Natural Resources Program (149)","No. of Mental Health Transports","No. of Mental Health Transports",{"$f":"_xlfn.XLOOKUP(Measures_Table[[#This Row],[PM Program]],Programs_Active20[ZSBPPROGM (KEY)],Programs_Active20[LONG TEXT])","v":"Natural Resources Program"}]
[1545,149,"Y",131,"ACRES","OUTCOME","BLACKBOOK",null,null,null,null,"Natural Resources Program (149)","No. of inmates transported by private tr","No. of inmates transported by private transport companies",{"$f":"_xlfn.XLOOKUP(Measures_Table[[#This Row],[PM Program]],Programs_Active20[ZSBPPROGM (KEY)],Programs_Active20[LONG TEXT])","v":"Natural Resources Program"}]
[1546,149,"Y",132,"EACH","OUTCOME","BLACKBOOK",null,null,null,null,"On-Site Wastewater (149)","No. of victims served","No. of victims served",{"$f":"_xlfn.XLOOKUP(Measures_Table[[#This Row],[PM Program]],Programs_Active20[ZSBPPROGM (KEY)],Programs_Active20[LONG TEXT])","v":"On-Site Wastewater"}]
[1547,149,"Y",142,"PERCENT","OUTCOME","BLACKBOOK",null,null,null,null,"TNR-Records Management (149)","No. of Commercial Motor Vehicle Inspecti","No. of Commercial Motor Vehicle Inspections",{"$f":"_xlfn.XLOOKUP(Measures_Table[[#This Row],[PM Program]],Programs_Active20[ZSBPPROGM (KEY)],Programs_Active20[LONG TEXT])","v":"TNR-Records Management"}]
[1548,149,"Y",131,"EACH","OUTPUT","BLACKBOOK",null,null,null,null,"Natural Resources Program (149)","No. CMV Collisions","No. CMV Collisions",{"$f":"_xlfn.XLOOKUP(Measures_Table[[#This Row],[PM Program]],Programs_Active20[ZSBPPROGM (KEY)],Programs_Active20[LONG TEXT])","v":"Natural Resources Program"}]
[1549,149,"Y",131,"EACH","OUTPUT","BLACKBOOK",null,null,null,null,"Natural Resources Program (149)","No. of Federal Violations","No. of Federal Violations",{"$f":"_xlfn.XLOOKUP(Measures_Table[[#This Row],[PM Program]],Programs_Active20[ZSBPPROGM (KEY)],Programs_Active20[LONG TEXT])","v":"Natural Resources Program"}]
[1550,149,"Y",132,"EACH","OUTPUT","BLACKBOOK",null,null,null,null,"On-Site Wastewater (149)","No. of State Violations","No. of State Violations",{"$f":"_xlfn.XLOOKUP(Measures_Table[[#This Row],[PM Program]],Programs_Active20[ZSBPPROGM (KEY)],Programs_Active20[LONG TEXT])","v":"On-Site Wastewater"}]
[1551,155,"Y",179,"EACH","OUTPUT","ADOPTEDBUD",null,null,null,null,"Justice Planning (155)","No. of Out of Service Violations","No. of Out of Service Violations",{"$f":"_xlfn.XLOOKUP(Measures_Table[[#This Row],[PM Program]],Programs_Active20[ZSBPPROGM (KEY)],Programs_Active20[LONG TEXT])","v":"Justice Planning"}]
[1552,155,"Y",297,"EACH","OUTPUT","BLACKBOOK",null,null,null,null,"Workforce Development Taskforce WD (155)","No. of Accident Reconstructions (HEAT/Mo","No. of Accident Reconstructions (HEAT/Motors)",{"$f":"_xlfn.XLOOKUP(Measures_Table[[#This Row],[PM Program]],Programs_Active20[ZSBPPROGM (KEY)],Programs_Active20[LONG TEXT])","v":"Workforce Development Taskforce (WD)\n"}]
[1553,155,"Y",297,"EACH","OUTPUT","BLACKBOOK",null,null,null,null,"Workforce Development Taskforce WD (155)","No. of site inspections","No. of site inspections",{"$f":"_xlfn.XLOOKUP(Measures_Table[[#This Row],[PM Program]],Programs_Active20[ZSBPPROGM (KEY)],Programs_Active20[LONG TEXT])","v":"Workforce Development Taskforce (WD)\n"}]
[1554,155,"Y",179,"EACH","OUTPUT","BLACKBOOK",null,null,null,null,"Justice Planning (155)","No. of metal crimes","No. of metal crimes",{"$f":"_xlfn.XLOOKUP(Measures_Table[[#This Row],[PM Program]],Programs_Active20[ZSBPPROGM (KEY)],Programs_Active20[LONG TEXT])","v":"Justice Planning"}]
[1556,155,"Y",179,"EACH","OUTPUT","BLACKBOOK",null,null,null,null,"Justice Planning (155)","No. of psychological tests failed","No. of psychological tests failed",{"$f":"_xlfn.XLOOKUP(Measures_Table[[#This Row],[PM Program]],Programs_Active20[ZSBPPROGM (KEY)],Programs_Active20[LONG TEXT])","v":"Justice Planning"}]
[1567,112,"Y",30,"PERCENT","OUTCOME","BLACKBOOK",null,null,null,null,"Enterprise Infrastructure Services (112)","FTE hours spent developing, implementing","FTE hours spent developing, implementing and managing depository bank service contract",{"$f":"_xlfn.XLOOKUP(Measures_Table[[#This Row],[PM Program]],Programs_Active20[ZSBPPROGM (KEY)],Programs_Active20[LONG TEXT])","v":"Enterprise Infrastructure Services"}]
[1568,112,"Y",30,"PERCENT","OUTCOME","BLACKBOOK",null,null,null,null,"Enterprise Infrastructure Services (112)","Compensating balances and interest earne","Compensating balances and interest earned in excess of bank service costs",{"$f":"_xlfn.XLOOKUP(Measures_Table[[#This Row],[PM Program]],Programs_Active20[ZSBPPROGM (KEY)],Programs_Active20[LONG TEXT])","v":"Enterprise Infrastructure Services"}]
[1569,112,"Y",30,"PERCENT","OUTCOME","BLACKBOOK",null,null,null,null,"Enterprise Infrastructure Services (112)","Num of participation certificates issued","Number of participation certificates issued by Travis County BCCP for endangered species take during development\n",{"$f":"_xlfn.XLOOKUP(Measures_Table[[#This Row],[PM Program]],Programs_Active20[ZSBPPROGM (KEY)],Programs_Active20[LONG TEXT])","v":"Enterprise Infrastructure Services"}]
[1570,112,"Y",30,"PERCENT","OUTCOME","BLACKBOOK",null,null,null,null,"Enterprise Infrastructure Services (112)","Number of acres acquired/protected by TC","Number of acres acquired/protected by TC for the BCP",{"$f":"_xlfn.XLOOKUP(Measures_Table[[#This Row],[PM Program]],Programs_Active20[ZSBPPROGM (KEY)],Programs_Active20[LONG TEXT])","v":"Enterprise Infrastructure Services"}]
[1571,112,"Y",30,"PERCENT","OUTCOME","BLACKBOOK",null,null,null,null,"Enterprise Infrastructure Services (112)","Total caves protected by BCCP partners","Total number of caves protected by BCCP partners\n",{"$f":"_xlfn.XLOOKUP(Measures_Table[[#This Row],[PM Program]],Programs_Active20[ZSBPPROGM (KEY)],Programs_Active20[LONG TEXT])","v":"Enterprise Infrastructure Services"}]
[1573,112,"Y",30,"PERCENT","OUTCOME","BLACKBOOK",null,null,null,null,"Enterprise Infrastructure Services (112)","# of OSSF verifications (for Development","# of OSSF verifications (for Development Permits)",{"$f":"_xlfn.XLOOKUP(Measures_Table[[#This Row],[PM Program]],Programs_Active20[ZSBPPROGM (KEY)],Programs_Active20[LONG TEXT])","v":"Enterprise Infrastructure Services"}]
[1574,112,"Y",30,"PERCENT","OUTCOME","BLACKBOOK",null,null,null,null,"Enterprise Infrastructure Services (112)","Internal users satisfied or better based","Internal users satisfied or better based on annual customer service satisfaction survey\n",{"$f":"_xlfn.XLOOKUP(Measures_Table[[#This Row],[PM Program]],Programs_Active20[ZSBPPROGM (KEY)],Programs_Active20[LONG TEXT])","v":"Enterprise Infrastructure Services"}]
[1575,112,"Y",30,"PERCENT","OUTCOME","BLACKBOOK",null,null,null,null,"Enterprise Infrastructure Services (112)","Number of hours surveying GCWA","Number of hours surveying GCWA",{"$f":"_xlfn.XLOOKUP(Measures_Table[[#This Row],[PM Program]],Programs_Active20[ZSBPPROGM (KEY)],Programs_Active20[LONG TEXT])","v":"Enterprise Infrastructure Services"}]
[1576,112,"Y",30,"PERCENT","OUTCOME","BLACKBOOK",null,null,null,null,"Enterprise Infrastructure Services (112)","Number of hours surveying BCVI","Number of hours surveying BCVI",{"$f":"_xlfn.XLOOKUP(Measures_Table[[#This Row],[PM Program]],Programs_Active20[ZSBPPROGM (KEY)],Programs_Active20[LONG TEXT])","v":"Enterprise Infrastructure Services"}]
[1577,112,"Y",30,"PERCENT","OUTCOME","BLACKBOOK",null,null,null,null,"Enterprise Infrastructure Services (112)","# of OSSF permit reviews","# of OSSF permit reviews",{"$f":"_xlfn.XLOOKUP(Measures_Table[[#This Row],[PM Program]],Programs_Active20[ZSBPPROGM (KEY)],Programs_Active20[LONG TEXT])","v":"Enterprise Infrastructure Services"}]
[1578,112,"Y",30,"PERCENT","OUTCOME","BLACKBOOK",null,null,null,null,"Enterprise Infrastructure Services (112)","# of internal and external data requests","# of internal and external data requests completed.",{"$f":"_xlfn.XLOOKUP(Measures_Table[[#This Row],[PM Program]],Programs_Active20[ZSBPPROGM (KEY)],Programs_Active20[LONG TEXT])","v":"Enterprise Infrastructure Services"}]
[1579,112,"Y",30,"PERCENT","OUTCOME","BLACKBOOK",null,null,null,null,"Enterprise Infrastructure Services (112)","# of employers contacted","# of employers contacted",{"$f":"_xlfn.XLOOKUP(Measures_Table[[#This Row],[PM Program]],Programs_Active20[ZSBPPROGM (KEY)],Programs_Active20[LONG TEXT])","v":"Enterprise Infrastructure Services"}]
[1580,112,"Y",30,"PERCENT","OUTCOME","BLACKBOOK",null,null,null,null,"Enterprise Infrastructure Services (112)","# of housing providers contacted","# of housing providers contacted",{"$f":"_xlfn.XLOOKUP(Measures_Table[[#This Row],[PM Program]],Programs_Active20[ZSBPPROGM (KEY)],Programs_Active20[LONG TEXT])","v":"Enterprise Infrastructure Services"}]
[1582,112,"Y",30,"PERCENT","OUTCOME","BLACKBOOK",null,null,null,null,"Enterprise Infrastructure Services (112)","% reduction in jail population/ADP","% reduction in jail population/ADP",{"$f":"_xlfn.XLOOKUP(Measures_Table[[#This Row],[PM Program]],Programs_Active20[ZSBPPROGM (KEY)],Programs_Active20[LONG TEXT])","v":"Enterprise Infrastructure Services"}]
[1583,112,"Y",30,"PERCENT","OUTCOME","BLACKBOOK",null,null,null,null,"Enterprise Infrastructure Services (112)","# of internal and/or external training s","# of internal and/or external training sessions conducted or attended",{"$f":"_xlfn.XLOOKUP(Measures_Table[[#This Row],[PM Program]],Programs_Active20[ZSBPPROGM (KEY)],Programs_Active20[LONG TEXT])","v":"Enterprise Infrastructure Services"}]
[1584,112,"Y",30,"PERCENT","OUTCOME","BLACKBOOK",null,null,null,null,"Enterprise Infrastructure Services (112)","At Assessment: Caseload","At Assessment: Caseload",{"$f":"_xlfn.XLOOKUP(Measures_Table[[#This Row],[PM Program]],Programs_Active20[ZSBPPROGM (KEY)],Programs_Active20[LONG TEXT])","v":"Enterprise Infrastructure Services"}]
[1585,112,"Y",30,"PERCENT","OUTCOME","BLACKBOOK",null,null,null,null,"Enterprise Infrastructure Services (112)","Contacts, Due Diligence (mandate)","Contacts, Due Diligence (mandate)",{"$f":"_xlfn.XLOOKUP(Measures_Table[[#This Row],[PM Program]],Programs_Active20[ZSBPPROGM (KEY)],Programs_Active20[LONG TEXT])","v":"Enterprise Infrastructure Services"}]
[1586,112,"Y",30,"PERCENT","OUTCOME","BLACKBOOK",null,null,null,null,"Enterprise Infrastructure Services (112)","% of Low priority projects in process","% of Low priority projects in process",{"$f":"_xlfn.XLOOKUP(Measures_Table[[#This Row],[PM Program]],Programs_Active20[ZSBPPROGM (KEY)],Programs_Active20[LONG TEXT])","v":"Enterprise Infrastructure Services"}]
[1587,112,"Y",30,"PERCENT","OUTCOME","BLACKBOOK",null,null,null,null,"Enterprise Infrastructure Services (112)","% of Medium priority projects in process","% of Medium priority projects in process",{"$f":"_xlfn.XLOOKUP(Measures_Table[[#This Row],[PM Program]],Programs_Active20[ZSBPPROGM (KEY)],Programs_Active20[LONG TEXT])","v":"Enterprise Infrastructure Services"}]
[1588,112,"Y",30,"PERCENT","OUTCOME","BLACKBOOK",null,null,null,null,"Enterprise Infrastructure Services (112)","% of High priority projects in process","% of High priority projects in process",{"$f":"_xlfn.XLOOKUP(Measures_Table[[#This Row],[PM Program]],Programs_Active20[ZSBPPROGM (KEY)],Programs_Active20[LONG TEXT])","v":"Enterprise Infrastructure Services"}]
[1589,112,"Y",30,"PERCENT","OUTCOME","BLACKBOOK",null,null,null,null,"Enterprise Infrastructure Services (112)","# of Databases classified","# of Databases classified",{"$f":"_xlfn.XLOOKUP(Measures_Table[[#This Row],[PM Program]],Programs_Active20[ZSBPPROGM (KEY)],Programs_Active20[LONG TEXT])","v":"Enterprise Infrastructure Services"}]
[1591,112,"Y",30,"PERCENT","OUTCOME","BLACKBOOK",null,null,null,null,"Enterprise Infrastructure Services (112)","% participation in Travis County Cyberse","% participation in Travis County Cybersecurity Awareness Training",{"$f":"_xlfn.XLOOKUP(Measures_Table[[#This Row],[PM Program]],Programs_Active20[ZSBPPROGM (KEY)],Programs_Active20[LONG TEXT])","v":"Enterprise Infrastructure Services"}]
[1592,112,"Y",30,"PERCENT","OUTCOME","BLACKBOOK",null,null,null,null,"Enterprise Infrastructure Services (112)","# of ITS employees attending a training","# of ITS employees attending a training event",{"$f":"_xlfn.XLOOKUP(Measures_Table[[#This Row],[PM Program]],Programs_Active20[ZSBPPROGM (KEY)],Programs_Active20[LONG TEXT])","v":"Enterprise Infrastructure Services"}]
[1593,112,"Y",30,"PERCENT","OUTCOME","BLACKBOOK",null,null,null,null,"Enterprise Infrastructure Services (112)","# of ITS employees obtaining a certifica","# of ITS employees obtaining a certification",{"$f":"_xlfn.XLOOKUP(Measures_Table[[#This Row],[PM Program]],Programs_Active20[ZSBPPROGM (KEY)],Programs_Active20[LONG TEXT])","v":"Enterprise Infrastructure Services"}]
[1594,112,"Y",30,"PERCENT","OUTCOME","BLACKBOOK",null,null,null,null,"Enterprise Infrastructure Services (112)","% of SLM Restored – Priority 1 Incidents","% of SLM Restored – Priority 1 Incidents",{"$f":"_xlfn.XLOOKUP(Measures_Table[[#This Row],[PM Program]],Programs_Active20[ZSBPPROGM (KEY)],Programs_Active20[LONG TEXT])","v":"Enterprise Infrastructure Services"}]
[1595,112,"Y",30,"PERCENT","OUTCOME","BLACKBOOK",null,null,null,null,"Enterprise Infrastructure Services (112)","% of LAN/WAN Restored – Priority 1 Incid","% of LAN/WAN Restored – Priority 1 Incidents",{"$f":"_xlfn.XLOOKUP(Measures_Table[[#This Row],[PM Program]],Programs_Active20[ZSBPPROGM (KEY)],Programs_Active20[LONG TEXT])","v":"Enterprise Infrastructure Services"}]
[1596,112,"Y",30,"PERCENT","OUTCOME","BLACKBOOK",null,null,null,null,"Enterprise Infrastructure Services (112)","% of Services Desk/Ops Restored – Priori","% of Services Desk/Ops Restored – Priority 1 Incidents",{"$f":"_xlfn.XLOOKUP(Measures_Table[[#This Row],[PM Program]],Programs_Active20[ZSBPPROGM (KEY)],Programs_Active20[LONG TEXT])","v":"Enterprise Infrastructure Services"}]
[1597,112,"Y",30,"PERCENT","OUTCOME","BLACKBOOK",null,null,null,null,"Enterprise Infrastructure Services (112)","% of Tier 2 Restored – Priority 1 Incide","% of Tier 2 Restored – Priority 1 Incidents",{"$f":"_xlfn.XLOOKUP(Measures_Table[[#This Row],[PM Program]],Programs_Active20[ZSBPPROGM (KEY)],Programs_Active20[LONG TEXT])","v":"Enterprise Infrastructure Services"}]
[1598,112,"Y",30,"PERCENT","OUTCOME","BLACKBOOK",null,null,null,null,"Enterprise Infrastructure Services (112)","% of AIM Restored – Priority 1 Incidents","% of AIM Restored – Priority 1 Incidents",{"$f":"_xlfn.XLOOKUP(Measures_Table[[#This Row],[PM Program]],Programs_Active20[ZSBPPROGM (KEY)],Programs_Active20[LONG TEXT])","v":"Enterprise Infrastructure Services"}]
[1600,112,"Y",30,"PERCENT","OUTCOME","BLACKBOOK",null,null,null,null,"Enterprise Infrastructure Services (112)","% of UC Restored – Priority 1 Incidents","% of UC Restored – Priority 1 Incidents",{"$f":"_xlfn.XLOOKUP(Measures_Table[[#This Row],[PM Program]],Programs_Active20[ZSBPPROGM (KEY)],Programs_Active20[LONG TEXT])","v":"Enterprise Infrastructure Services"}]
[1601,112,"Y",30,"PERCENT","OUTCOME","BLACKBOOK",null,null,null,null,"Enterprise Infrastructure Services (112)","% of SiteOps Restored – Priority 1 Incid","% of SiteOps Restored – Priority 1 Incidents",{"$f":"_xlfn.XLOOKUP(Measures_Table[[#This Row],[PM Program]],Programs_Active20[ZSBPPROGM (KEY)],Programs_Active20[LONG TEXT])","v":"Enterprise Infrastructure Services"}]
[1602,112,"Y",30,"PERCENT","OUTCOME","BLACKBOOK",null,null,null,null,"Enterprise Infrastructure Services (112)","% of Overall EIS Restored – Priority 1 I","% of Overall EIS Restored – Priority 1 Incidents",{"$f":"_xlfn.XLOOKUP(Measures_Table[[#This Row],[PM Program]],Programs_Active20[ZSBPPROGM (KEY)],Programs_Active20[LONG TEXT])","v":"Enterprise Infrastructure Services"}]
[1603,112,"Y",30,"PERCENT","OUTCOME","ADOPTEDBUD",null,null,null,null,"Enterprise Infrastructure Services (112)","% of SLM Restored – Priority 2 Incidents","% of SLM Restored – Priority 2 Incidents",{"$f":"_xlfn.XLOOKUP(Measures_Table[[#This Row],[PM Program]],Programs_Active20[ZSBPPROGM (KEY)],Programs_Active20[LONG TEXT])","v":"Enterprise Infrastructure Services"}]
[1604,112,"Y",30,"PERCENT","OUTCOME","BLACKBOOK",null,null,null,null,"Enterprise Infrastructure Services (112)","% of LAN/WAN Restored – Priority 2 Incid","% of LAN/WAN Restored – Priority 2 Incidents",{"$f":"_xlfn.XLOOKUP(Measures_Table[[#This Row],[PM Program]],Programs_Active20[ZSBPPROGM (KEY)],Programs_Active20[LONG TEXT])","v":"Enterprise Infrastructure Services"}]
[1605,149,"Y",140,"EACH","OUTCOME","BLACKBOOK",null,null,null,null,"TNR Human Resources (149)","% of Services Desk/Ops Restored – Priori","% of Services Desk/Ops Restored – Priority 2 Incidents",{"$f":"_xlfn.XLOOKUP(Measures_Table[[#This Row],[PM Program]],Programs_Active20[ZSBPPROGM (KEY)],Programs_Active20[LONG TEXT])","v":"TNR Human Resources"}]
[1606,149,"Y",140,"YEARS","OUTCOME","BLACKBOOK",null,null,null,null,"TNR Human Resources (149)","% of Tier 2 Restored – Priority 2 Incide","% of Tier 2 Restored – Priority 2 Incidents",{"$f":"_xlfn.XLOOKUP(Measures_Table[[#This Row],[PM Program]],Programs_Active20[ZSBPPROGM (KEY)],Programs_Active20[LONG TEXT])","v":"TNR Human Resources"}]
[1607,149,"Y",140,"PERCENT","OUTCOME","BLACKBOOK",null,null,null,null,"TNR Human Resources (149)","% of AIM Restored – Priority 2 Incidents","% of AIM Restored – Priority 2 Incidents",{"$f":"_xlfn.XLOOKUP(Measures_Table[[#This Row],[PM Program]],Programs_Active20[ZSBPPROGM (KEY)],Programs_Active20[LONG TEXT])","v":"TNR Human Resources"}]
[1608,108,"Y",23,"EACH","INPUT","NEITHER",null,null,null,null,"Motor Vehicle (108)","% of IDM Restored – Priority 2 Incidents","% of IDM Restored – Priority 2 Incidents",{"$f":"_xlfn.XLOOKUP(Measures_Table[[#This Row],[PM Program]],Programs_Active20[ZSBPPROGM (KEY)],Programs_Active20[LONG TEXT])","v":"Motor Vehicle"}]
[1609,108,"Y",23,"EACH","OUTPUT","NEITHER",null,null,null,null,"Motor Vehicle (108)","% of UC Restored – Priority 2 Incidents","% of UC Restored – Priority 2 Incidents",{"$f":"_xlfn.XLOOKUP(Measures_Table[[#This Row],[PM Program]],Programs_Active20[ZSBPPROGM (KEY)],Programs_Active20[LONG TEXT])","v":"Motor Vehicle"}]
[1610,108,"Y",23,"EACH","INPUT","NEITHER",null,null,null,null,"Motor Vehicle (108)","% of SiteOps Restored – Priority 2 Incid","% of SiteOps Restored – Priority 2 Incidents",{"$f":"_xlfn.XLOOKUP(Measures_Table[[#This Row],[PM Program]],Programs_Active20[ZSBPPROGM (KEY)],Programs_Active20[LONG TEXT])","v":"Motor Vehicle"}]
[1611,108,"Y",23,"EACH","INPUT","NEITHER",null,null,null,null,"Motor Vehicle (108)","% of Overall EIS Restored – Priority 2 I","% of Overall EIS Restored – Priority 2 Incidents",{"$f":"_xlfn.XLOOKUP(Measures_Table[[#This Row],[PM Program]],Programs_Active20[ZSBPPROGM (KEY)],Programs_Active20[LONG TEXT])","v":"Motor Vehicle"}]
[1612,108,"Y",23,"EACH","INPUT","NEITHER",null,null,null,null,"Motor Vehicle (108)","% of SLM Restored – Priority 3 Incidents","% of SLM Restored – Priority 3 Incidents",{"$f":"_xlfn.XLOOKUP(Measures_Table[[#This Row],[PM Program]],Programs_Active20[ZSBPPROGM (KEY)],Programs_Active20[LONG TEXT])","v":"Motor Vehicle"}]
[1613,108,"Y",23,"EACH","INPUT","ADOPTEDBUD",null,null,null,null,"Motor Vehicle (108)","% of LAN/WAN Restored – Priority 3 Incid","% of LAN/WAN Restored – Priority 3 Incidents",{"$f":"_xlfn.XLOOKUP(Measures_Table[[#This Row],[PM Program]],Programs_Active20[ZSBPPROGM (KEY)],Programs_Active20[LONG TEXT])","v":"Motor Vehicle"}]
[1614,108,"Y",23,"EACH","INPUT","ADOPTEDBUD",null,null,null,null,"Motor Vehicle (108)","% of Services Desk/Ops Restored – Priori","% of Services Desk/Ops Restored – Priority 3 Incidents",{"$f":"_xlfn.XLOOKUP(Measures_Table[[#This Row],[PM Program]],Programs_Active20[ZSBPPROGM (KEY)],Programs_Active20[LONG TEXT])","v":"Motor Vehicle"}]
[1615,108,"Y",23,"MINUTES","OUTCOME","ADOPTEDBUD",null,null,null,null,"Motor Vehicle (108)","% of Tier 2 Restored – Priority 3 Incide","% of Tier 2 Restored – Priority 3 Incidents",{"$f":"_xlfn.XLOOKUP(Measures_Table[[#This Row],[PM Program]],Programs_Active20[ZSBPPROGM (KEY)],Programs_Active20[LONG TEXT])","v":"Motor Vehicle"}]
[1616,108,"Y",23,"EACH","INPUT","NEITHER",null,null,null,null,"Motor Vehicle (108)","% of AIM Restored – Priority 3 Incidents","% of AIM Restored – Priority 3 Incidents",{"$f":"_xlfn.XLOOKUP(Measures_Table[[#This Row],[PM Program]],Programs_Active20[ZSBPPROGM (KEY)],Programs_Active20[LONG TEXT])","v":"Motor Vehicle"}]
[1617,108,"Y",23,"EACH","OUTPUT","NEITHER",null,null,null,null,"Motor Vehicle (108)","% of IDM Restored – Priority 3 Incidents","% of IDM Restored – Priority 3 Incidents",{"$f":"_xlfn.XLOOKUP(Measures_Table[[#This Row],[PM Program]],Programs_Active20[ZSBPPROGM (KEY)],Programs_Active20[LONG TEXT])","v":"Motor Vehicle"}]
[1618,108,"Y",23,"EACH","INPUT","NEITHER",null,null,null,null,"Motor Vehicle (108)","% of UC Restored – Priority 3 Incidents","% of UC Restored – Priority 3 Incidents",{"$f":"_xlfn.XLOOKUP(Measures_Table[[#This Row],[PM Program]],Programs_Active20[ZSBPPROGM (KEY)],Programs_Active20[LONG TEXT])","v":"Motor Vehicle"}]
[1620,108,"Y",23,"EACH","INPUT","ADOPTEDBUD",null,null,null,null,"Motor Vehicle (108)","% of Overall EIS Restored – Priority 3 I","% of Overall EIS Restored – Priority 3 Incidents",{"$f":"_xlfn.XLOOKUP(Measures_Table[[#This Row],[PM Program]],Programs_Active20[ZSBPPROGM (KEY)],Programs_Active20[LONG TEXT])","v":"Motor Vehicle"}]
[1621,108,"Y",23,"EACH","INPUT","ADOPTEDBUD",null,null,null,null,"Motor Vehicle (108)","% of SLM Resolved – Priority 4 Incidents","% of SLM Resolved – Priority 4 Incidents",{"$f":"_xlfn.XLOOKUP(Measures_Table[[#This Row],[PM Program]],Programs_Active20[ZSBPPROGM (KEY)],Programs_Active20[LONG TEXT])","v":"Motor Vehicle"}]
[1622,108,"Y",23,"MINUTES","OUTCOME","ADOPTEDBUD",null,null,null,null,"Motor Vehicle (108)","% of LAN/WAN Resolved – Priority 4 Incid","% of LAN/WAN Resolved – Priority 4 Incidents",{"$f":"_xlfn.XLOOKUP(Measures_Table[[#This Row],[PM Program]],Programs_Active20[ZSBPPROGM (KEY)],Programs_Active20[LONG TEXT])","v":"Motor Vehicle"}]
[1623,108,"Y",23,"EACH","INPUT","NEITHER",null,null,null,null,"Motor Vehicle (108)","% of Services Desk/Ops Resolved – Priori","% of Services Desk/Ops Resolved – Priority 4 Incidents",{"$f":"_xlfn.XLOOKUP(Measures_Table[[#This Row],[PM Program]],Programs_Active20[ZSBPPROGM (KEY)],Programs_Active20[LONG TEXT])","v":"Motor Vehicle"}]
[1624,108,"Y",23,"EACH","OUTCOME","NEITHER",null,null,null,null,"Motor Vehicle (108)","% of Tier 2 Resolved – Priority 4 Incide","% of Tier 2 Resolved – Priority 4 Incidents",{"$f":"_xlfn.XLOOKUP(Measures_Table[[#This Row],[PM Program]],Programs_Active20[ZSBPPROGM (KEY)],Programs_Active20[LONG TEXT])","v":"Motor Vehicle"}]
[1625,108,"Y",23,"EACH","INPUT","NEITHER",null,null,null,null,"Motor Vehicle (108)","% of AIM Resolved – Priority 4 Incidents","% of AIM Resolved – Priority 4 Incidents",{"$f":"_xlfn.XLOOKUP(Measures_Table[[#This Row],[PM Program]],Programs_Active20[ZSBPPROGM (KEY)],Programs_Active20[LONG TEXT])","v":"Motor Vehicle"}]
[1626,108,"Y",23,"EACH","INPUT","NEITHER",null,null,null,null,"Motor Vehicle (108)","% of IDM Resolved – Priority 4 Incidents","% of IDM Resolved – Priority 4 Incidents",{"$f":"_xlfn.XLOOKUP(Measures_Table[[#This Row],[PM Program]],Programs_Active20[ZSBPPROGM (KEY)],Programs_Active20[LONG TEXT])","v":"Motor Vehicle"}]
[1627,108,"Y",23,"MINUTES","OUTCOME","NEITHER",null,null,null,null,"Motor Vehicle (108)","% of UC Resolved – Priority 4 Incidents","% of UC Resolved – Priority 4 Incidents",{"$f":"_xlfn.XLOOKUP(Measures_Table[[#This Row],[PM Program]],Programs_Active20[ZSBPPROGM (KEY)],Programs_Active20[LONG TEXT])","v":"Motor Vehicle"}]
[1634,145,"Y",122,"EACH","INPUT","ADOPTEDBUD",null,null,null,null,"Domestic Relations Office (145)","% of Overall Positive Reviews","% of Overall Positive Reviews",{"$f":"_xlfn.XLOOKUP(Measures_Table[[#This Row],[PM Program]],Programs_Active20[ZSBPPROGM (KEY)],Programs_Active20[LONG TEXT])","v":"Domestic Relations Office"}]
[1635,145,"Y",122,"PERCENT","OUTCOME","ADOPTEDBUD",null,null,null,null,"Domestic Relations Office (145)","Customers Served-main office","Customers Served-main office",{"$f":"_xlfn.XLOOKUP(Measures_Table[[#This Row],[PM Program]],Programs_Active20[ZSBPPROGM (KEY)],Programs_Active20[LONG TEXT])","v":"Domestic Relations Office"}]
[1637,145,"Y",122,"EACH","INPUT","ADOPTEDBUD",null,null,null,null,"Domestic Relations Office (145)","In person Transactions- main office","In person Transactions- main office",{"$f":"_xlfn.XLOOKUP(Measures_Table[[#This Row],[PM Program]],Programs_Active20[ZSBPPROGM (KEY)],Programs_Active20[LONG TEXT])","v":"Domestic Relations Office"}]
[1638,145,"Y",122,"PERCENT","EFFICIENCY","ADOPTEDBUD",null,null,null,null,"Domestic Relations Office (145)","Electronic transactions-main office","Electronic transactions-main office",{"$f":"_xlfn.XLOOKUP(Measures_Table[[#This Row],[PM Program]],Programs_Active20[ZSBPPROGM (KEY)],Programs_Active20[LONG TEXT])","v":"Domestic Relations Office"}]
[1639,145,"Y",122,"EACH","INPUT","ADOPTEDBUD",null,null,null,null,"Domestic Relations Office (145)","Dealers/Fleets-main office","Dealers/Fleets-main office",{"$f":"_xlfn.XLOOKUP(Measures_Table[[#This Row],[PM Program]],Programs_Active20[ZSBPPROGM (KEY)],Programs_Active20[LONG TEXT])","v":"Domestic Relations Office"}]
[1644,145,"Y",121,"PERCENT","OUTCOME","ADOPTEDBUD",null,null,null,null,"Detention Services (145)","Customers Rejected-sat office","Customers Rejected-sat office",{"$f":"_xlfn.XLOOKUP(Measures_Table[[#This Row],[PM Program]],Programs_Active20[ZSBPPROGM (KEY)],Programs_Active20[LONG TEXT])","v":"Detention Services"}]
[1646,145,"Y",120,"PERCENT","OUTCOME","ADOPTEDBUD",null,null,null,null,"Court Services (145)","Dealers/Fleets-sat office","Dealers/Fleets-sat office",{"$f":"_xlfn.XLOOKUP(Measures_Table[[#This Row],[PM Program]],Programs_Active20[ZSBPPROGM (KEY)],Programs_Active20[LONG TEXT])","v":"Court Services"}]
[1647,145,"Y",120,"PERCENT","OUTCOME","ADOPTEDBUD",null,null,null,null,"Court Services (145)","Titles-sat office","Titles-sat office",{"$f":"_xlfn.XLOOKUP(Measures_Table[[#This Row],[PM Program]],Programs_Active20[ZSBPPROGM (KEY)],Programs_Active20[LONG TEXT])","v":"Court Services"}]
[1648,145,"Y",120,"PERCENT","OUTCOME","ADOPTEDBUD",null,null,null,null,"Court Services (145)","Registrations-sat office","Registrations-sat office",{"$f":"_xlfn.XLOOKUP(Measures_Table[[#This Row],[PM Program]],Programs_Active20[ZSBPPROGM (KEY)],Programs_Active20[LONG TEXT])","v":"Court Services"}]
[1649,145,"Y",120,"PERCENT","OUTCOME","ADOPTEDBUD",null,null,null,null,"Court Services (145)","Waiting Time-sat office","Waiting Time-sat office",{"$f":"_xlfn.XLOOKUP(Measures_Table[[#This Row],[PM Program]],Programs_Active20[ZSBPPROGM (KEY)],Programs_Active20[LONG TEXT])","v":"Court Services"}]
[1653,145,"Y",124,"PERCENT","OUTCOME","ADOPTEDBUD",null,null,null,null,"Juvenile Probation Support Service (145)","Registrations-title svc","Registrations-title svc",{"$f":"_xlfn.XLOOKUP(Measures_Table[[#This Row],[PM Program]],Programs_Active20[ZSBPPROGM (KEY)],Programs_Active20[LONG TEXT])","v":"Juvenile Probation Support Services"}]
[1655,124,"Y",50,"EACH","OUTPUT","NEITHER",null,null,null,null,"District Courts Division (124)","Dollars per Title Transaction","Dollars per Title Transaction",{"$f":"_xlfn.XLOOKUP(Measures_Table[[#This Row],[PM Program]],Programs_Active20[ZSBPPROGM (KEY)],Programs_Active20[LONG TEXT])","v":"District Courts Division"}]
[1656,124,"Y",50,"EACH","OUTPUT","NEITHER",null,null,null,null,"District Courts Division (124)","Registration in person","Registration in person",{"$f":"_xlfn.XLOOKUP(Measures_Table[[#This Row],[PM Program]],Programs_Active20[ZSBPPROGM (KEY)],Programs_Active20[LONG TEXT])","v":"District Courts Division"}]
[1657,124,"Y",50,"PERCENT","OUTCOME","NEITHER",null,null,null,null,"District Courts Division (124)","Registration Mail","Registration Mail",{"$f":"_xlfn.XLOOKUP(Measures_Table[[#This Row],[PM Program]],Programs_Active20[ZSBPPROGM (KEY)],Programs_Active20[LONG TEXT])","v":"District Courts Division"}]
[1658,124,"Y",50,"Y/N","OUTCOME","NEITHER",null,null,null,null,"District Courts Division (124)","Registration internet","Registration internet",{"$f":"_xlfn.XLOOKUP(Measures_Table[[#This Row],[PM Program]],Programs_Active20[ZSBPPROGM (KEY)],Programs_Active20[LONG TEXT])","v":"District Courts Division"}]
[1659,124,"Y",50,"EACH","OUTPUT","NEITHER",null,null,null,null,"District Courts Division (124)","Registration Subcon","Registration Subcon",{"$f":"_xlfn.XLOOKUP(Measures_Table[[#This Row],[PM Program]],Programs_Active20[ZSBPPROGM (KEY)],Programs_Active20[LONG TEXT])","v":"District Courts Division"}]
[1660,124,"Y",51,"EACH","OUTPUT","NEITHER",null,null,null,null,"County Courts Division (124)","Registration Replacement","Registration Replacement",{"$f":"_xlfn.XLOOKUP(Measures_Table[[#This Row],[PM Program]],Programs_Active20[ZSBPPROGM (KEY)],Programs_Active20[LONG TEXT])","v":"County Courts Division"}]
[1661,124,"Y",51,"EACH","OUTPUT","NEITHER",null,null,null,null,"County Courts Division (124)","Total Number of ICSS Cases","Total Number of ICSS Cases",{"$f":"_xlfn.XLOOKUP(Measures_Table[[#This Row],[PM Program]],Programs_Active20[ZSBPPROGM (KEY)],Programs_Active20[LONG TEXT])","v":"County Courts Division"}]
[1662,124,"Y",51,"PERCENT","OUTCOME","NEITHER",null,null,null,null,"County Courts Division (124)","% Collection on ICSS Current Child Suppo","% Collection on ICSS Current Child Support",{"$f":"_xlfn.XLOOKUP(Measures_Table[[#This Row],[PM Program]],Programs_Active20[ZSBPPROGM (KEY)],Programs_Active20[LONG TEXT])","v":"County Courts Division"}]
[1663,124,"Y",51,"Y/N","OUTCOME","NEITHER",null,null,null,null,"County Courts Division (124)","% collection ICSS child support arrears","Percentage collection on ICSS child support arrears",{"$f":"_xlfn.XLOOKUP(Measures_Table[[#This Row],[PM Program]],Programs_Active20[ZSBPPROGM (KEY)],Programs_Active20[LONG TEXT])","v":"County Courts Division"}]
[1664,124,"Y",51,"EACH","OUTPUT","NEITHER",null,null,null,null,"County Courts Division (124)","# of DRO and OAG Probationers Supervised","Number of DRO and OAG probationers supervised",{"$f":"_xlfn.XLOOKUP(Measures_Table[[#This Row],[PM Program]],Programs_Active20[ZSBPPROGM (KEY)],Programs_Active20[LONG TEXT])","v":"County Courts Division"}]
[1665,137,"Y",99,"PERCENT","EFFICIENCY","ADOPTEDBUD",null,null,null,null,"Patrol (137)","Average Collection Ratio - Community Sup","Average Collection Ratio - Community Supervision",{"$f":"_xlfn.XLOOKUP(Measures_Table[[#This Row],[PM Program]],Programs_Active20[ZSBPPROGM (KEY)],Programs_Active20[LONG TEXT])","v":"Patrol"}]
[1666,137,"Y",99,"PERCENT","EFFICIENCY","ADOPTEDBUD",null,null,null,null,"Patrol (137)","Total number of Guardian cases","Total number of Guardian cases",{"$f":"_xlfn.XLOOKUP(Measures_Table[[#This Row],[PM Program]],Programs_Active20[ZSBPPROGM (KEY)],Programs_Active20[LONG TEXT])","v":"Patrol"}]
[1667,137,"Y",99,"EACH","INPUT","ADOPTEDBUD",null,null,null,null,"Patrol (137)","Average Caseload Per GAL","Average Caseload Per GAL",{"$f":"_xlfn.XLOOKUP(Measures_Table[[#This Row],[PM Program]],Programs_Active20[ZSBPPROGM (KEY)],Programs_Active20[LONG TEXT])","v":"Patrol"}]
[1668,102,"Y",187,"EACH","OUTPUT","ADOPTEDBUD",null,null,null,null,"County Commissioner Precinct One (102)","Percent successfully completing the prog","Percent successfully completing the program (Substance abuse treatment)",{"$f":"_xlfn.XLOOKUP(Measures_Table[[#This Row],[PM Program]],Programs_Active20[ZSBPPROGM (KEY)],Programs_Active20[LONG TEXT])","v":"County Commissioner Precinct One"}]
[1669,102,"Y",187,"EACH","INPUT","ADOPTEDBUD",null,null,null,null,"County Commissioner Precinct One (102)","Percent successfully completing the prog","Percent successfully completing the program (Behavioral)",{"$f":"_xlfn.XLOOKUP(Measures_Table[[#This Row],[PM Program]],Programs_Active20[ZSBPPROGM (KEY)],Programs_Active20[LONG TEXT])","v":"County Commissioner Precinct One"}]
[1670,102,"Y",187,"EACH","OUTPUT","ADOPTEDBUD",null,null,null,null,"County Commissioner Precinct One (102)","Percent successfully completing the prog","Percent successfully completing the program (sexual behavior treatment)",{"$f":"_xlfn.XLOOKUP(Measures_Table[[#This Row],[PM Program]],Programs_Active20[ZSBPPROGM (KEY)],Programs_Active20[LONG TEXT])","v":"County Commissioner Precinct One"}]
[1671,102,"Y",187,"EACH","OUTPUT","ADOPTEDBUD",null,null,null,null,"County Commissioner Precinct One (102)","% compliance with TJJD audit standards","Percentage compliance with TJJD audit standards (Detention)",{"$f":"_xlfn.XLOOKUP(Measures_Table[[#This Row],[PM Program]],Programs_Active20[ZSBPPROGM (KEY)],Programs_Active20[LONG TEXT])","v":"County Commissioner Precinct One"}]
[1672,102,"Y",187,"EACH","OUTPUT","ADOPTEDBUD",null,null,null,null,"County Commissioner Precinct One (102)","Staff Training Hours (Detention)","Staff Training Hours (Detention)",{"$f":"_xlfn.XLOOKUP(Measures_Table[[#This Row],[PM Program]],Programs_Active20[ZSBPPROGM (KEY)],Programs_Active20[LONG TEXT])","v":"County Commissioner Precinct One"}]
[1673,103,"Y",188,"PERCENT","OUTPUT","ADOPTEDBUD",null,null,null,null,"County Commissioner Precinct Two (103)","Percent of Successfully Completing (NCC)","Percent of Successfully Completing (NCC)",{"$f":"_xlfn.XLOOKUP(Measures_Table[[#This Row],[PM Program]],Programs_Active20[ZSBPPROGM (KEY)],Programs_Active20[LONG TEXT])","v":"County Commissioner Precinct Two"}]
[1675,103,"Y",188,"EACH","OUTPUT","ADOPTEDBUD",null,null,null,null,"County Commissioner Precinct Two (103)","Percent of Successfully Completing (Seco","Percent of Successfully Completing (Second Chance)",{"$f":"_xlfn.XLOOKUP(Measures_Table[[#This Row],[PM Program]],Programs_Active20[ZSBPPROGM (KEY)],Programs_Active20[LONG TEXT])","v":"County Commissioner Precinct Two"}]
[1676,103,"Y",188,"EACH","OUTPUT","ADOPTEDBUD",null,null,null,null,"County Commissioner Precinct Two (103)","Percent of Successfully Completing (Defe","Percent of Successfully Completing (Deferred Prosecution)",{"$f":"_xlfn.XLOOKUP(Measures_Table[[#This Row],[PM Program]],Programs_Active20[ZSBPPROGM (KEY)],Programs_Active20[LONG TEXT])","v":"County Commissioner Precinct Two"}]
[1681,105,"Y",190,"EACH","OUTPUT","ADOPTEDBUD",null,null,null,null,"County Commissioner Precinct Four (105)","Number of Texas Juvenile Justice Departm","Number of Texas Juvenile Justice Department (TJJD) Commitments",{"$f":"_xlfn.XLOOKUP(Measures_Table[[#This Row],[PM Program]],Programs_Active20[ZSBPPROGM (KEY)],Programs_Active20[LONG TEXT])","v":"County Commissioner Precinct Four"}]
[1682,105,"Y",190,"EACH","OUTPUT","ADOPTEDBUD",null,null,null,null,"County Commissioner Precinct Four (105)","Number of public data displays","Number of public data displays",{"$f":"_xlfn.XLOOKUP(Measures_Table[[#This Row],[PM Program]],Programs_Active20[ZSBPPROGM (KEY)],Programs_Active20[LONG TEXT])","v":"County Commissioner Precinct Four"}]
[1683,105,"Y",190,"EACH","OUTPUT","ADOPTEDBUD",null,null,null,null,"County Commissioner Precinct Four (105)","Number of invoices processed automatical","Number of invoices processed automatically",{"$f":"_xlfn.XLOOKUP(Measures_Table[[#This Row],[PM Program]],Programs_Active20[ZSBPPROGM (KEY)],Programs_Active20[LONG TEXT])","v":"County Commissioner Precinct Four"}]
[1684,105,"Y",190,"EACH","OUTPUT","ADOPTEDBUD",null,null,null,null,"County Commissioner Precinct Four (105)","Percent of invoices processed automatica","Percent of invoices processed automatically",{"$f":"_xlfn.XLOOKUP(Measures_Table[[#This Row],[PM Program]],Programs_Active20[ZSBPPROGM (KEY)],Programs_Active20[LONG TEXT])","v":"County Commissioner Precinct Four"}]
[1685,105,"Y",190,"EACH","OUTPUT","ADOPTEDBUD",null,null,null,null,"County Commissioner Precinct Four (105)",">99% inv process automatic (Y=1)","Percent of invoices processed automatically >99% (Y=1, N=0)",{"$f":"_xlfn.XLOOKUP(Measures_Table[[#This Row],[PM Program]],Programs_Active20[ZSBPPROGM (KEY)],Programs_Active20[LONG TEXT])","v":"County Commissioner Precinct Four"}]
[1686,107,"Y",191,"PERCENT","INPUT","ADOPTEDBUD",null,null,null,null,"County Treasurer (107)","Number of dashboards used by other depar","Number of dashboards used by other departments",{"$f":"_xlfn.XLOOKUP(Measures_Table[[#This Row],[PM Program]],Programs_Active20[ZSBPPROGM (KEY)],Programs_Active20[LONG TEXT])","v":"County Treasurer"}]
[1687,107,"Y",191,"EACH","OUTPUT","ADOPTEDBUD",null,null,null,null,"County Treasurer (107)","Number of public data displays","Number of public data displays",{"$f":"_xlfn.XLOOKUP(Measures_Table[[#This Row],[PM Program]],Programs_Active20[ZSBPPROGM (KEY)],Programs_Active20[LONG TEXT])","v":"County Treasurer"}]
[1688,107,"Y",191,"EACH","INPUT","ADOPTEDBUD",null,null,null,null,"County Treasurer (107)","Number of invoices processed automatical","Number of invoices processed automatically",{"$f":"_xlfn.XLOOKUP(Measures_Table[[#This Row],[PM Program]],Programs_Active20[ZSBPPROGM (KEY)],Programs_Active20[LONG TEXT])","v":"County Treasurer"}]
[1689,107,"Y",191,"EACH","OUTPUT","ADOPTEDBUD",null,null,null,null,"County Treasurer (107)","Percent of invoices processed automatica","Percent of invoices processed automatically",{"$f":"_xlfn.XLOOKUP(Measures_Table[[#This Row],[PM Program]],Programs_Active20[ZSBPPROGM (KEY)],Programs_Active20[LONG TEXT])","v":"County Treasurer"}]
[1690,107,"Y",191,"DOLLARS","EFFICIENCY","ADOPTEDBUD",null,null,null,null,"County Treasurer (107)",">99% inv processed automatic (Y=1)","Percent of invoices processed automatically >99% (Y=1, N=0)\n",{"$f":"_xlfn.XLOOKUP(Measures_Table[[#This Row],[PM Program]],Programs_Active20[ZSBPPROGM (KEY)],Programs_Active20[LONG TEXT])","v":"County Treasurer"}]
[1691,107,"Y",191,"EACH","OUTPUT","ADOPTEDBUD",null,null,null,null,"County Treasurer (107)","Number of dashboards used by other depar","Number of dashboards used by other departments",{"$f":"_xlfn.XLOOKUP(Measures_Table[[#This Row],[PM Program]],Programs_Active20[ZSBPPROGM (KEY)],Programs_Active20[LONG TEXT])","v":"County Treasurer"}]
[1692,107,"Y",191,"PERCENT","EFFICIENCY","ADOPTEDBUD",null,null,null,null,"County Treasurer (107)","Percentage of priority 1 calls responded","Percentage of priority 1 calls responded to in < 9 mins",{"$f":"_xlfn.XLOOKUP(Measures_Table[[#This Row],[PM Program]],Programs_Active20[ZSBPPROGM (KEY)],Programs_Active20[LONG TEXT])","v":"County Treasurer"}]
[1693,107,"Y",191,"EACH","OUTPUT","ADOPTEDBUD",null,null,null,null,"County Treasurer (107)","Percentage of priority 1 calls responded","Percentage of priority 1 calls responded to in > 15 mins",{"$f":"_xlfn.XLOOKUP(Measures_Table[[#This Row],[PM Program]],Programs_Active20[ZSBPPROGM (KEY)],Programs_Active20[LONG TEXT])","v":"County Treasurer"}]
[1694,110,"Y",192,"EACH","INPUT","ADOPTEDBUD",null,null,null,null,"Intergovernmental Relations (110)","Number of priority 1 calls","Number of priority 1 calls",{"$f":"_xlfn.XLOOKUP(Measures_Table[[#This Row],[PM Program]],Programs_Active20[ZSBPPROGM (KEY)],Programs_Active20[LONG TEXT])","v":"Intergovernmental Relations"}]
[1695,110,"Y",192,"PERCENT","OUTPUT","ADOPTEDBUD",null,null,null,null,"Intergovernmental Relations (110)","Number of agenda items sponsored","Number of agenda items sponsored",{"$f":"_xlfn.XLOOKUP(Measures_Table[[#This Row],[PM Program]],Programs_Active20[ZSBPPROGM (KEY)],Programs_Active20[LONG TEXT])","v":"Intergovernmental Relations"}]
[1696,110,"Y",192,"PERCENT","OUTPUT","ADOPTEDBUD",null,null,null,null,"Intergovernmental Relations (110)","# of committees & boards on which the Co","# of committees & boards on which the Commissioner serves",{"$f":"_xlfn.XLOOKUP(Measures_Table[[#This Row],[PM Program]],Programs_Active20[ZSBPPROGM (KEY)],Programs_Active20[LONG TEXT])","v":"Intergovernmental Relations"}]
[1697,110,"Y",192,"EACH","INPUT","ADOPTEDBUD",null,null,null,null,"Intergovernmental Relations (110)","Number of special projects","Number of special projects",{"$f":"_xlfn.XLOOKUP(Measures_Table[[#This Row],[PM Program]],Programs_Active20[ZSBPPROGM (KEY)],Programs_Active20[LONG TEXT])","v":"Intergovernmental Relations"}]
[1698,110,"Y",192,"PERCENT","OUTCOME","ADOPTEDBUD",null,null,null,null,"Intergovernmental Relations (110)","Number of letters written on behalf of c","Number of letters written on behalf of constituents",{"$f":"_xlfn.XLOOKUP(Measures_Table[[#This Row],[PM Program]],Programs_Active20[ZSBPPROGM (KEY)],Programs_Active20[LONG TEXT])","v":"Intergovernmental Relations"}]
[1699,110,"Y",192,"EACH","INPUT","ADOPTEDBUD",null,null,null,null,"Intergovernmental Relations (110)","Number of speeches/presentations given o","Number of speeches/presentations given on various topics",{"$f":"_xlfn.XLOOKUP(Measures_Table[[#This Row],[PM Program]],Programs_Active20[ZSBPPROGM (KEY)],Programs_Active20[LONG TEXT])","v":"Intergovernmental Relations"}]
[1700,110,"Y",192,"PERCENT","OUTPUT","ADOPTEDBUD",null,null,null,null,"Intergovernmental Relations (110)","Percentage of Commissioners Court meetin","Percentage of Commissioners Court meetings attended",{"$f":"_xlfn.XLOOKUP(Measures_Table[[#This Row],[PM Program]],Programs_Active20[ZSBPPROGM (KEY)],Programs_Active20[LONG TEXT])","v":"Intergovernmental Relations"}]
[1701,110,"Y",192,"EACH","OUTPUT","ADOPTEDBUD",null,null,null,null,"Intergovernmental Relations (110)","% attendance 13 committees & boards Comm","% attendance 13 committees & boards Commissioner serves on",{"$f":"_xlfn.XLOOKUP(Measures_Table[[#This Row],[PM Program]],Programs_Active20[ZSBPPROGM (KEY)],Programs_Active20[LONG TEXT])","v":"Intergovernmental Relations"}]
[1702,110,"Y",192,"EACH","OUTPUT","ADOPTEDBUD",null,null,null,null,"Intergovernmental Relations (110)","Community events and meetings","Community events and meetings",{"$f":"_xlfn.XLOOKUP(Measures_Table[[#This Row],[PM Program]],Programs_Active20[ZSBPPROGM (KEY)],Programs_Active20[LONG TEXT])","v":"Intergovernmental Relations"}]
[1703,110,"Y",192,"EACH","OUTPUT","ADOPTEDBUD",null,null,null,null,"Intergovernmental Relations (110)","Electronic Outreach","Electronic Outreach",{"$f":"_xlfn.XLOOKUP(Measures_Table[[#This Row],[PM Program]],Programs_Active20[ZSBPPROGM (KEY)],Programs_Active20[LONG TEXT])","v":"Intergovernmental Relations"}]
[1704,110,"Y",192,"EACH","OUTCOME","ADOPTEDBUD",null,null,null,null,"Intergovernmental Relations (110)","Number of committees & boards the Commis","Number of committees & boards the Commissioner Pct 3 serves",{"$f":"_xlfn.XLOOKUP(Measures_Table[[#This Row],[PM Program]],Programs_Active20[ZSBPPROGM (KEY)],Programs_Active20[LONG TEXT])","v":"Intergovernmental Relations"}]
[1705,110,"Y",193,"EACH","OUTPUT","ADOPTEDBUD",null,null,null,null,"Regional Policy Development (110)","Number of completed constituent casework","Number of completed constituent casework cases (measured through phonecalls, emails, etc)",{"$f":"_xlfn.XLOOKUP(Measures_Table[[#This Row],[PM Program]],Programs_Active20[ZSBPPROGM (KEY)],Programs_Active20[LONG TEXT])","v":"Regional Policy Development"}]
[1706,110,"Y",193,"EACH","OUTPUT","NEITHER",null,null,null,null,"Regional Policy Development (110)","Number of meetings attended by Commissio","Number of meetings attended by Commissioner and staff",{"$f":"_xlfn.XLOOKUP(Measures_Table[[#This Row],[PM Program]],Programs_Active20[ZSBPPROGM (KEY)],Programs_Active20[LONG TEXT])","v":"Regional Policy Development"}]
[1707,110,"Y",193,"EACH","OUTPUT","ADOPTEDBUD",null,null,null,null,"Regional Policy Development (110)","Number of Pct 3 maintained lane miles","Number of Pct 3 maintained lane miles",{"$f":"_xlfn.XLOOKUP(Measures_Table[[#This Row],[PM Program]],Programs_Active20[ZSBPPROGM (KEY)],Programs_Active20[LONG TEXT])","v":"Regional Policy Development"}]
[1708,110,"Y",193,"EACH","OUTPUT","ADOPTEDBUD",null,null,null,null,"Regional Policy Development (110)","Quarterly Newsletter","Quarterly Newsletter",{"$f":"_xlfn.XLOOKUP(Measures_Table[[#This Row],[PM Program]],Programs_Active20[ZSBPPROGM (KEY)],Programs_Active20[LONG TEXT])","v":"Regional Policy Development"}]
[1709,110,"Y",194,"EACH","INPUT","ADOPTEDBUD",null,null,null,null,"Leadership Recruitment & Appointmt (110)","# of referrals made to HHS","# of referrals made to HHS",{"$f":"_xlfn.XLOOKUP(Measures_Table[[#This Row],[PM Program]],Programs_Active20[ZSBPPROGM (KEY)],Programs_Active20[LONG TEXT])","v":"Leadership Recruitment & Appointment"}]
[1710,110,"Y",194,"EACH","OUTPUT","ADOPTEDBUD",null,null,null,null,"Leadership Recruitment & Appointmt (110)","# of referrals made to TNR","# of referrals made to TNR",{"$f":"_xlfn.XLOOKUP(Measures_Table[[#This Row],[PM Program]],Programs_Active20[ZSBPPROGM (KEY)],Programs_Active20[LONG TEXT])","v":"Leadership Recruitment & Appointment"}]
[1711,110,"Y",194,"EACH","OUTCOME","ADOPTEDBUD",null,null,null,null,"Leadership Recruitment & Appointmt (110)","# of referrals made to other depts withi","# of referrals made to other depts within or outside of TC",{"$f":"_xlfn.XLOOKUP(Measures_Table[[#This Row],[PM Program]],Programs_Active20[ZSBPPROGM (KEY)],Programs_Active20[LONG TEXT])","v":"Leadership Recruitment & Appointment"}]
[1712,110,"Y",194,"EACH","INPUT","ADOPTEDBUD",null,null,null,null,"Leadership Recruitment & Appointmt (110)","Neighborhood Metings Established /year","Neighborhood Metings Established /year",{"$f":"_xlfn.XLOOKUP(Measures_Table[[#This Row],[PM Program]],Programs_Active20[ZSBPPROGM (KEY)],Programs_Active20[LONG TEXT])","v":"Leadership Recruitment & Appointment"}]
[1713,111,"Y",195,"EACH","OUTPUT","ADOPTEDBUD",null,null,null,null,"HR Compensation (111)","% of receipts deposited within two worki","% of receipts deposited within two working days",{"$f":"_xlfn.XLOOKUP(Measures_Table[[#This Row],[PM Program]],Programs_Active20[ZSBPPROGM (KEY)],Programs_Active20[LONG TEXT])","v":"HR Compensation"}]
[1716,111,"Y",198,"EACH","INPUT","ADOPTEDBUD",null,null,null,null,"Risk Management Self Insurance Fnd (111)","# of warrants (jury,claims) processed","# of warrants (jury,claims) processed",{"$f":"_xlfn.XLOOKUP(Measures_Table[[#This Row],[PM Program]],Programs_Active20[ZSBPPROGM (KEY)],Programs_Active20[LONG TEXT])","v":"Risk Management Self Insurance Fund"}]
[1717,111,"Y",198,"EACH","INPUT","ADOPTEDBUD",null,null,null,null,"Risk Management Self Insurance Fnd (111)","Service fee retained for prompt filing o","Service fee retained for prompt filing of state reports",{"$f":"_xlfn.XLOOKUP(Measures_Table[[#This Row],[PM Program]],Programs_Active20[ZSBPPROGM (KEY)],Programs_Active20[LONG TEXT])","v":"Risk Management Self Insurance Fund"}]
[1718,111,"Y",198,"EACH","INPUT","ADOPTEDBUD",null,null,null,null,"Risk Management Self Insurance Fnd (111)","# of reports filed","# of reports filed",{"$f":"_xlfn.XLOOKUP(Measures_Table[[#This Row],[PM Program]],Programs_Active20[ZSBPPROGM (KEY)],Programs_Active20[LONG TEXT])","v":"Risk Management Self Insurance Fund"}]
[1719,111,"Y",198,"EACH","INPUT","ADOPTEDBUD",null,null,null,null,"Risk Management Self Insurance Fnd (111)","% by which County assets are collaterali","% by which County assets are collateralized",{"$f":"_xlfn.XLOOKUP(Measures_Table[[#This Row],[PM Program]],Programs_Active20[ZSBPPROGM (KEY)],Programs_Active20[LONG TEXT])","v":"Risk Management Self Insurance Fund"}]
[1720,111,"Y",198,"DOLLARS","OUTCOME","ADOPTEDBUD",null,null,null,null,"Risk Management Self Insurance Fnd (111)","# of bank accounts requiring collateral","# of bank accounts requiring collateral",{"$f":"_xlfn.XLOOKUP(Measures_Table[[#This Row],[PM Program]],Programs_Active20[ZSBPPROGM (KEY)],Programs_Active20[LONG TEXT])","v":"Risk Management Self Insurance Fund"}]
[1729,111,"Y",199,"DOLLARS","OUTCOME","ADOPTEDBUD",null,null,null,null,"Employee Health Benefit (111)","Number of Interim Cmte. Mtgs. Testified","Number of Interim Cmte. Mtgs. Testified",{"$f":"_xlfn.XLOOKUP(Measures_Table[[#This Row],[PM Program]],Programs_Active20[ZSBPPROGM (KEY)],Programs_Active20[LONG TEXT])","v":"Employee Health Benefit"}]
[1730,111,"Y",199,"DOLLARS","OUTCOME","ADOPTEDBUD",null,null,null,null,"Employee Health Benefit (111)","Number of mtgs. of Intgovtal. Reltns. li","Number of mtgs. of Intgovtal. Reltns. liaisons",{"$f":"_xlfn.XLOOKUP(Measures_Table[[#This Row],[PM Program]],Programs_Active20[ZSBPPROGM (KEY)],Programs_Active20[LONG TEXT])","v":"Employee Health Benefit"}]
[1732,111,"Y",200,"PERCENT","OUTCOME","NEITHER",null,null,null,null,"Travis County Employee Hlth Clinic (111)","Number of intergovernmental body meeting","Number of intergovernmental body meetings attended",{"$f":"_xlfn.XLOOKUP(Measures_Table[[#This Row],[PM Program]],Programs_Active20[ZSBPPROGM (KEY)],Programs_Active20[LONG TEXT])","v":"Travis County Employee Health Clinic"}]
[1733,111,"Y",199,"PERCENT","OUTCOME","NEITHER",null,null,null,null,"Employee Health Benefit (111)","Number of governing body meetings attend","Number of governing body meetings attended",{"$f":"_xlfn.XLOOKUP(Measures_Table[[#This Row],[PM Program]],Programs_Active20[ZSBPPROGM (KEY)],Programs_Active20[LONG TEXT])","v":"Employee Health Benefit"}]
[1736,111,"Y",200,"DOLLARS","OUTCOME","NEITHER",null,null,null,null,"Travis County Employee Hlth Clinic (111)","Number of appointments/ reappointments p","Number of appointments/ reappointments processed",{"$f":"_xlfn.XLOOKUP(Measures_Table[[#This Row],[PM Program]],Programs_Active20[ZSBPPROGM (KEY)],Programs_Active20[LONG TEXT])","v":"Travis County Employee Health Clinic"}]
[1737,111,"Y",200,"PERCENT","OUTCOME","ADOPTEDBUD",null,null,null,null,"Travis County Employee Hlth Clinic (111)","Number of Calls for Applications issued","Number of Calls for Applications issued",{"$f":"_xlfn.XLOOKUP(Measures_Table[[#This Row],[PM Program]],Programs_Active20[ZSBPPROGM (KEY)],Programs_Active20[LONG TEXT])","v":"Travis County Employee Health Clinic"}]
[1745,111,"Y",202,"DAYS","EFFICIENCY","ADOPTEDBUD",null,null,null,null,"Talent, Planning & Engagement (111)","# Workers Comp Claims Medical only","# Workers Comp Claims Medical only",{"$f":"_xlfn.XLOOKUP(Measures_Table[[#This Row],[PM Program]],Programs_Active20[ZSBPPROGM (KEY)],Programs_Active20[LONG TEXT])","v":"Talent, Planning & Engagement"}]
[1746,111,"Y",202,"PERCENT","OUTCOME","ADOPTEDBUD",null,null,null,null,"Talent, Planning & Engagement (111)","# Workers Comp Claims Indemnity","# Workers Comp Claims Indemnity",{"$f":"_xlfn.XLOOKUP(Measures_Table[[#This Row],[PM Program]],Programs_Active20[ZSBPPROGM (KEY)],Programs_Active20[LONG TEXT])","v":"Talent, Planning & Engagement"}]
[1748,115,"Y",203,"PERCENT","OUTCOME","ADOPTEDBUD",null,null,null,null,"Purchasing Office (115)","Days to Return to Work due to Worker’s C","Days to Return to Work due to Worker’s Comp Claims",{"$f":"_xlfn.XLOOKUP(Measures_Table[[#This Row],[PM Program]],Programs_Active20[ZSBPPROGM (KEY)],Programs_Active20[LONG TEXT])","v":"Purchasing Office"}]
[1749,115,"Y",296,"EACH","OUTPUT","BLACKBOOK",null,null,null,null,"Purchasing Office Procurement (115)","# contacts to recruit qual & divrs wrkfc","# contacts to recruit a qualified and diverse workplace",{"$f":"_xlfn.XLOOKUP(Measures_Table[[#This Row],[PM Program]],Programs_Active20[ZSBPPROGM (KEY)],Programs_Active20[LONG TEXT])","v":"Purchasing Office Procurement (115)"}]
[1750,115,"Y",296,"PERCENT","OUTCOME","BLACKBOOK",null,null,null,null,"Purchasing Office Procurement (115)","Turnover Rate within 90 days","Turnover Rate within 90 days",{"$f":"_xlfn.XLOOKUP(Measures_Table[[#This Row],[PM Program]],Programs_Active20[ZSBPPROGM (KEY)],Programs_Active20[LONG TEXT])","v":"Purchasing Office Procurement (115)"}]
[1751,115,"Y",296,"EACH","OUTPUT","BLACKBOOK",null,null,null,null,"Purchasing Office Procurement (115)","Time to Fill","Time to Fill",{"$f":"_xlfn.XLOOKUP(Measures_Table[[#This Row],[PM Program]],Programs_Active20[ZSBPPROGM (KEY)],Programs_Active20[LONG TEXT])","v":"Purchasing Office Procurement (115)"}]
[1752,115,"Y",205,"PERCENT","OUTCOME","ADOPTEDBUD",null,null,null,null,"Purchasing Office HUB (115)","Cost per Hire","Cost per Hire",{"$f":"_xlfn.XLOOKUP(Measures_Table[[#This Row],[PM Program]],Programs_Active20[ZSBPPROGM (KEY)],Programs_Active20[LONG TEXT])","v":"Purchasing Office HUB"}]
[1754,115,"Y",204,"EACH","OUTPUT","ADOPTEDBUD",null,null,null,null,"Purchasing Office Fixed Assets (115)","Average # of days position vacant to fil","Average # of days position vacant to fill",{"$f":"_xlfn.XLOOKUP(Measures_Table[[#This Row],[PM Program]],Programs_Active20[ZSBPPROGM (KEY)],Programs_Active20[LONG TEXT])","v":"Purchasing Office Fixed Assets"}]
[1755,115,"Y",203,"HOURS","INPUT","BLACKBOOK",null,null,null,null,"Purchasing Office (115)","# annual health and wellness EE surveys","# annual health and wellness EE surveys completed",{"$f":"_xlfn.XLOOKUP(Measures_Table[[#This Row],[PM Program]],Programs_Active20[ZSBPPROGM (KEY)],Programs_Active20[LONG TEXT])","v":"Purchasing Office"}]
[1756,115,"Y",203,"HOURS","INPUT","BLACKBOOK",null,null,null,null,"Purchasing Office (115)","Cost of Healthcare Per Active EE","Cost of Healthcare Per Active EE",{"$f":"_xlfn.XLOOKUP(Measures_Table[[#This Row],[PM Program]],Programs_Active20[ZSBPPROGM (KEY)],Programs_Active20[LONG TEXT])","v":"Purchasing Office"}]
[1758,115,"Y",205,"EACH","OUTCOME","ADOPTEDBUD",null,null,null,null,"Purchasing Office HUB (115)","% of EEs completing Health Assessment","% of EEs completing Health Assessment",{"$f":"_xlfn.XLOOKUP(Measures_Table[[#This Row],[PM Program]],Programs_Active20[ZSBPPROGM (KEY)],Programs_Active20[LONG TEXT])","v":"Purchasing Office HUB"}]
[1759,117,"Y",206,"EACH","OUTCOME","ADOPTEDBUD",null,null,null,null,"Historical Commission (117)","% of health plan EEs participating in CA","% of health plan EEs participating in CARE events",{"$f":"_xlfn.XLOOKUP(Measures_Table[[#This Row],[PM Program]],Programs_Active20[ZSBPPROGM (KEY)],Programs_Active20[LONG TEXT])","v":"Historical Commission"}]
[1760,117,"Y",206,"HOURS","INPUT","ADOPTEDBUD",null,null,null,null,"Historical Commission (117)","Overall Healthcare cost to Budget","Overall Healthcare cost to Budget",{"$f":"_xlfn.XLOOKUP(Measures_Table[[#This Row],[PM Program]],Programs_Active20[ZSBPPROGM (KEY)],Programs_Active20[LONG TEXT])","v":"Historical Commission"}]
[1761,117,"Y",206,"EACH","OUTPUT","ADOPTEDBUD",null,null,null,null,"Historical Commission (117)","Utilization rate of appointment schedule","Utilization rate of appointment schedule",{"$f":"_xlfn.XLOOKUP(Measures_Table[[#This Row],[PM Program]],Programs_Active20[ZSBPPROGM (KEY)],Programs_Active20[LONG TEXT])","v":"Historical Commission"}]
[1762,117,"Y",206,"EACH","OUTPUT","ADOPTEDBUD",null,null,null,null,"Historical Commission (117)","Cost-avoidance from Healthcare Fund","Cost-avoidance from Healthcare Fund",{"$f":"_xlfn.XLOOKUP(Measures_Table[[#This Row],[PM Program]],Programs_Active20[ZSBPPROGM (KEY)],Programs_Active20[LONG TEXT])","v":"Historical Commission"}]
[1763,119,"Y",207,"HOURS","OUTPUT","ADOPTEDBUD",null,null,null,null,"Civil Divisions (119)","Net Savings to the Medical Plan","Net Savings to the Medical Plan\n",{"$f":"_xlfn.XLOOKUP(Measures_Table[[#This Row],[PM Program]],Programs_Active20[ZSBPPROGM (KEY)],Programs_Active20[LONG TEXT])","v":"Civil Divisions"}]
[1764,119,"Y",207,"PERCENT","OUTCOME","ADOPTEDBUD",null,null,null,null,"Civil Divisions (119)","% of Patients Served vs. Health Plan Par","% of Patients Served vs. Health Plan Participant",{"$f":"_xlfn.XLOOKUP(Measures_Table[[#This Row],[PM Program]],Programs_Active20[ZSBPPROGM (KEY)],Programs_Active20[LONG TEXT])","v":"Civil Divisions"}]
[1767,119,"Y",208,"EACH","INPUT","ADOPTEDBUD",null,null,null,null,"Check Division (119)","ER claims supported sustained (grievance","ER claims supported sustained (grievance panel/external)",{"$f":"_xlfn.XLOOKUP(Measures_Table[[#This Row],[PM Program]],Programs_Active20[ZSBPPROGM (KEY)],Programs_Active20[LONG TEXT])","v":"Check Division"}]
[1768,119,"Y",208,"DOLLARS","INPUT","BLACKBOOK",null,null,null,null,"Check Division (119)","% of Unique EEs attending at least 1 MVV","% of Unique EEs attending at least 1 MVV Development Course",{"$f":"_xlfn.XLOOKUP(Measures_Table[[#This Row],[PM Program]],Programs_Active20[ZSBPPROGM (KEY)],Programs_Active20[LONG TEXT])","v":"Check Division"}]
[1769,119,"Y",208,"DOLLARS","OUTPUT","ADOPTEDBUD",null,null,null,null,"Check Division (119)","Turnover Rate within 90 days","Turnover Rate within 90 days",{"$f":"_xlfn.XLOOKUP(Measures_Table[[#This Row],[PM Program]],Programs_Active20[ZSBPPROGM (KEY)],Programs_Active20[LONG TEXT])","v":"Check Division"}]
[1770,119,"Y",208,"DOLLARS","OUTPUT","BLACKBOOK",null,null,null,null,"Check Division (119)","Average # of Workdays Missed Due to Illn","Average # of Workdays Missed Due to Illness",{"$f":"_xlfn.XLOOKUP(Measures_Table[[#This Row],[PM Program]],Programs_Active20[ZSBPPROGM (KEY)],Programs_Active20[LONG TEXT])","v":"Check Division"}]
[1771,119,"Y",209,"EACH","OUTPUT","BLACKBOOK",null,null,null,null,"Comprehensive Underage Drink Prev (119)","Training Cost Per Hire","Training Cost Per Hire",{"$f":"_xlfn.XLOOKUP(Measures_Table[[#This Row],[PM Program]],Programs_Active20[ZSBPPROGM (KEY)],Programs_Active20[LONG TEXT])","v":"Comprehensive Underage Drinking Prevention"}]
[1772,119,"Y",209,"EACH","OUTPUT","BLACKBOOK",null,null,null,null,"Comprehensive Underage Drink Prev (119)","Average Days to Close an ER Issue","Average Days to Close an ER Issue",{"$f":"_xlfn.XLOOKUP(Measures_Table[[#This Row],[PM Program]],Programs_Active20[ZSBPPROGM (KEY)],Programs_Active20[LONG TEXT])","v":"Comprehensive Underage Drinking Prevention"}]
[1773,119,"Y",209,"EACH","OUTPUT","BLACKBOOK",null,null,null,null,"Comprehensive Underage Drink Prev (119)","% of ees reporting to Commissioner Court","% of ees reporting to Commissioner Court who receive a formal review",{"$f":"_xlfn.XLOOKUP(Measures_Table[[#This Row],[PM Program]],Programs_Active20[ZSBPPROGM (KEY)],Programs_Active20[LONG TEXT])","v":"Comprehensive Underage Drinking Prevention"}]
[1774,119,"Y",209,"EACH","OUTPUT","BLACKBOOK",null,null,null,null,"Comprehensive Underage Drink Prev (119)","Ratio of HRMD staff to Areas Supported","Ratio of HRMD staff to Areas Supported",{"$f":"_xlfn.XLOOKUP(Measures_Table[[#This Row],[PM Program]],Programs_Active20[ZSBPPROGM (KEY)],Programs_Active20[LONG TEXT])","v":"Comprehensive Underage Drinking Prevention"}]
[1775,119,"Y",209,"EACH","OUTCOME","ADOPTEDBUD",null,null,null,null,"Comprehensive Underage Drink Prev (119)","Customer Satisfaction","Customer Satisfaction",{"$f":"_xlfn.XLOOKUP(Measures_Table[[#This Row],[PM Program]],Programs_Active20[ZSBPPROGM (KEY)],Programs_Active20[LONG TEXT])","v":"Comprehensive Underage Drinking Prevention"}]
[1776,119,"Y",210,"EACH","INPUT","BLACKBOOK",null,null,null,null,"Criminal Division - Records/Intake (119)","Number of purchase orders processed","Number of purchase orders processed",{"$f":"_xlfn.XLOOKUP(Measures_Table[[#This Row],[PM Program]],Programs_Active20[ZSBPPROGM (KEY)],Programs_Active20[LONG TEXT])","v":"Criminal Division - Records / Intake & Criminal Trial Courts"}]
[1777,119,"Y",210,"EACH","OUTPUT","ADOPTEDBUD",null,null,null,null,"Criminal Division - Records/Intake (119)","Percentage of non-contract purchase orde","Percentage of non-contract purchase orders processed",{"$f":"_xlfn.XLOOKUP(Measures_Table[[#This Row],[PM Program]],Programs_Active20[ZSBPPROGM (KEY)],Programs_Active20[LONG TEXT])","v":"Criminal Division - Records / Intake & Criminal Trial Courts"}]
[1778,119,"Y",210,"EACH","OUTPUT","BLACKBOOK",null,null,null,null,"Criminal Division - Records/Intake (119)","Number of active contracts managed","Number of active contracts managed",{"$f":"_xlfn.XLOOKUP(Measures_Table[[#This Row],[PM Program]],Programs_Active20[ZSBPPROGM (KEY)],Programs_Active20[LONG TEXT])","v":"Criminal Division - Records / Intake & Criminal Trial Courts"}]
[1779,119,"Y",210,"EACH","OUTPUT","BLACKBOOK",null,null,null,null,"Criminal Division - Records/Intake (119)","Total HUB % participation","Total HUB % participation",{"$f":"_xlfn.XLOOKUP(Measures_Table[[#This Row],[PM Program]],Programs_Active20[ZSBPPROGM (KEY)],Programs_Active20[LONG TEXT])","v":"Criminal Division - Records / Intake & Criminal Trial Courts"}]
[1781,119,"Y",210,"EACH","OUTPUT","BLACKBOOK",null,null,null,null,"Criminal Division - Records/Intake (119)","Number of assets inventoried","Number of assets inventoried",{"$f":"_xlfn.XLOOKUP(Measures_Table[[#This Row],[PM Program]],Programs_Active20[ZSBPPROGM (KEY)],Programs_Active20[LONG TEXT])","v":"Criminal Division - Records / Intake & Criminal Trial Courts"}]
[1782,119,"Y",210,"EACH","OUTCOME","BLACKBOOK",null,null,null,null,"Criminal Division - Records/Intake (119)","Number of staff development (external) t","Number of staff development (external) training hours provided to professional staff",{"$f":"_xlfn.XLOOKUP(Measures_Table[[#This Row],[PM Program]],Programs_Active20[ZSBPPROGM (KEY)],Programs_Active20[LONG TEXT])","v":"Criminal Division - Records / Intake & Criminal Trial Courts"}]
[1784,119,"Y",210,"EACH","OUTPUT","BLACKBOOK",null,null,null,null,"Criminal Division - Records/Intake (119)","Percentage of certified eligible procure","Percentage of certified eligible procurement staff\n",{"$f":"_xlfn.XLOOKUP(Measures_Table[[#This Row],[PM Program]],Programs_Active20[ZSBPPROGM (KEY)],Programs_Active20[LONG TEXT])","v":"Criminal Division - Records / Intake & Criminal Trial Courts"}]
[1785,119,"Y",210,"EACH","OUTCOME","ADOPTEDBUD",null,null,null,null,"Criminal Division - Records/Intake (119)","Number of Businesses Assisted in Readine","Number of Businesses Assisted in Readiness Training Program",{"$f":"_xlfn.XLOOKUP(Measures_Table[[#This Row],[PM Program]],Programs_Active20[ZSBPPROGM (KEY)],Programs_Active20[LONG TEXT])","v":"Criminal Division - Records / Intake & Criminal Trial Courts"}]
[1786,119,"Y",210,"EACH","OUTPUT","ADOPTEDBUD",null,null,null,null,"Criminal Division - Records/Intake (119)","# of special projects","# of special projects",{"$f":"_xlfn.XLOOKUP(Measures_Table[[#This Row],[PM Program]],Programs_Active20[ZSBPPROGM (KEY)],Programs_Active20[LONG TEXT])","v":"Criminal Division - Records / Intake & Criminal Trial Courts"}]
[1787,119,"Y",210,"EACH","OUTPUT","BLACKBOOK",null,null,null,null,"Criminal Division - Records/Intake (119)","Volunteer hours contributed","Volunteer hours contributed",{"$f":"_xlfn.XLOOKUP(Measures_Table[[#This Row],[PM Program]],Programs_Active20[ZSBPPROGM (KEY)],Programs_Active20[LONG TEXT])","v":"Criminal Division - Records / Intake & Criminal Trial Courts"}]
[1788,119,"Y",211,"EACH","INPUT","BLACKBOOK",null,null,null,null,"Criminal Division - Truancy (119)","Publications sponsored","Publications sponsored",{"$f":"_xlfn.XLOOKUP(Measures_Table[[#This Row],[PM Program]],Programs_Active20[ZSBPPROGM (KEY)],Programs_Active20[LONG TEXT])","v":"Criminal Division - Truancy"}]
[1789,119,"Y",211,"EACH","OUTPUT","BLACKBOOK",null,null,null,null,"Criminal Division - Truancy (119)","Markers sponsored","Markers sponsored",{"$f":"_xlfn.XLOOKUP(Measures_Table[[#This Row],[PM Program]],Programs_Active20[ZSBPPROGM (KEY)],Programs_Active20[LONG TEXT])","v":"Criminal Division - Truancy"}]
[1790,119,"Y",211,"EACH","OUTPUT","BLACKBOOK",null,null,null,null,"Criminal Division - Truancy (119)","Billable hours per attorney and paralega","Billable hours per attorney and paralegal per year",{"$f":"_xlfn.XLOOKUP(Measures_Table[[#This Row],[PM Program]],Programs_Active20[ZSBPPROGM (KEY)],Programs_Active20[LONG TEXT])","v":"Criminal Division - Truancy"}]
[1791,119,"Y",212,"EACH","OUTPUT","ADOPTEDBUD",null,null,null,null,"Criminal Division - Environmental (119)","Property Tax Collection Rate","Property Tax Collection Rate",{"$f":"_xlfn.XLOOKUP(Measures_Table[[#This Row],[PM Program]],Programs_Active20[ZSBPPROGM (KEY)],Programs_Active20[LONG TEXT])","v":"Criminal Division - Environmental"}]
[1792,119,"Y",212,"EACH","INPUT","BLACKBOOK",null,null,null,null,"Criminal Division - Environmental (119)","Current year’s tax collection rate","Current year’s tax collection rate",{"$f":"_xlfn.XLOOKUP(Measures_Table[[#This Row],[PM Program]],Programs_Active20[ZSBPPROGM (KEY)],Programs_Active20[LONG TEXT])","v":"Criminal Division - Environmental"}]
[1793,119,"Y",213,"EACH","INPUT","BLACKBOOK",null,null,null,null,"Criminal Division -Family Violence (119)","Prior Year’s Deliquent taxes with revers","Prior Year’s Deliquent taxes with reversals",{"$f":"_xlfn.XLOOKUP(Measures_Table[[#This Row],[PM Program]],Programs_Active20[ZSBPPROGM (KEY)],Programs_Active20[LONG TEXT])","v":"Criminal Division - Family Violence & Protective Order Div"}]
[1794,119,"Y",213,"EACH","OUTPUT","BLACKBOOK",null,null,null,null,"Criminal Division -Family Violence (119)","Number of checks filed","Number of checks filed",{"$f":"_xlfn.XLOOKUP(Measures_Table[[#This Row],[PM Program]],Programs_Active20[ZSBPPROGM (KEY)],Programs_Active20[LONG TEXT])","v":"Criminal Division - Family Violence & Protective Order Div"}]
[1795,119,"Y",213,"EACH","OUTPUT","BLACKBOOK",null,null,null,null,"Criminal Division -Family Violence (119)","Dollar amount of checks filed","Dollar amount of checks filed",{"$f":"_xlfn.XLOOKUP(Measures_Table[[#This Row],[PM Program]],Programs_Active20[ZSBPPROGM (KEY)],Programs_Active20[LONG TEXT])","v":"Criminal Division - Family Violence & Protective Order Div"}]
[1796,119,"Y",213,"EACH","OUTPUT","ADOPTEDBUD",null,null,null,null,"Criminal Division -Family Violence (119)","Dollar amount of restitution received","Dollar amount of restitution received",{"$f":"_xlfn.XLOOKUP(Measures_Table[[#This Row],[PM Program]],Programs_Active20[ZSBPPROGM (KEY)],Programs_Active20[LONG TEXT])","v":"Criminal Division - Family Violence & Protective Order Div"}]
[1797,119,"Y",213,"EACH","OUTPUT","BLACKBOOK",null,null,null,null,"Criminal Division -Family Violence (119)","Dollar amount of statutory fees received","Dollar amount of statutory fees received",{"$f":"_xlfn.XLOOKUP(Measures_Table[[#This Row],[PM Program]],Programs_Active20[ZSBPPROGM (KEY)],Programs_Active20[LONG TEXT])","v":"Criminal Division - Family Violence & Protective Order Div"}]
[1799,119,"Y",213,"EACH","OUTPUT","BLACKBOOK",null,null,null,null,"Criminal Division -Family Violence (119)","# of parternships with collaborating age","# of parternships with collaborating agencies",{"$f":"_xlfn.XLOOKUP(Measures_Table[[#This Row],[PM Program]],Programs_Active20[ZSBPPROGM (KEY)],Programs_Active20[LONG TEXT])","v":"Criminal Division - Family Violence & Protective Order Div"}]
[1805,121,"Y",214,"DOLLARS","OUTPUT","ADOPTEDBUD",null,null,null,null,"Jury Management Office (121)","# of cases set on contested dockets","# of cases set on contested dockets",{"$f":"_xlfn.XLOOKUP(Measures_Table[[#This Row],[PM Program]],Programs_Active20[ZSBPPROGM (KEY)],Programs_Active20[LONG TEXT])","v":"Jury Management Office"}]
[1806,121,"Y",215,"EACH","OUTCOME","NEITHER",null,null,null,null,"Tech Support Dev & Quality (121)","# of cases set on all daily dockets","# of cases set on all daily dockets",{"$f":"_xlfn.XLOOKUP(Measures_Table[[#This Row],[PM Program]],Programs_Active20[ZSBPPROGM (KEY)],Programs_Active20[LONG TEXT])","v":"Civil Division (Family)"}]
[1809,121,"Y",218,"EACH","INPUT","NEITHER",null,null,null,null,"General Litigation/Govt Division (121)","# of cases Disposed","# of cases Disposed",{"$f":"_xlfn.XLOOKUP(Measures_Table[[#This Row],[PM Program]],Programs_Active20[ZSBPPROGM (KEY)],Programs_Active20[LONG TEXT])","v":"General Litigation/Government Division"}]
[1810,121,"Y",218,"EACH","OUTPUT","NEITHER",null,null,null,null,"General Litigation/Govt Division (121)","Disposition Completeness % (Travis Count","Disposition Completeness % (Travis County totals)",{"$f":"_xlfn.XLOOKUP(Measures_Table[[#This Row],[PM Program]],Programs_Active20[ZSBPPROGM (KEY)],Programs_Active20[LONG TEXT])","v":"General Litigation/Government Division"}]
[1813,121,"Y",217,"EACH","INPUT","ADOPTEDBUD",null,null,null,null,"Civil Division (Family) (121)","# of instances of discovery sent","# of instances of discovery sent",{"$f":"_xlfn.XLOOKUP(Measures_Table[[#This Row],[PM Program]],Programs_Active20[ZSBPPROGM (KEY)],Programs_Active20[LONG TEXT])","v":"Accounting Division"}]
[1814,121,"Y",215,"EACH","OUTPUT","NEITHER",null,null,null,null,"Tech Support Dev & Quality (121)","# of Morton Act Compliance Statements Co","# of Morton Act Compliance Statements Completed",{"$f":"_xlfn.XLOOKUP(Measures_Table[[#This Row],[PM Program]],Programs_Active20[ZSBPPROGM (KEY)],Programs_Active20[LONG TEXT])","v":"Civil Division (Family)"}]
[1816,121,"Y",219,"EACH","INPUT","ADOPTEDBUD",null,null,null,null,"Criminal Division (121)","# of petitions to adjudicate filed","# of petitions to adjudicate filed",{"$f":"_xlfn.XLOOKUP(Measures_Table[[#This Row],[PM Program]],Programs_Active20[ZSBPPROGM (KEY)],Programs_Active20[LONG TEXT])","v":"Accounting Division"}]
[1819,121,"Y",219,"EACH","INPUT","ADOPTEDBUD",null,null,null,null,"Criminal Division (121)","Environmental Consultations","Environmental Consultations",{"$f":"_xlfn.XLOOKUP(Measures_Table[[#This Row],[PM Program]],Programs_Active20[ZSBPPROGM (KEY)],Programs_Active20[LONG TEXT])","v":"Accounting Division"}]
[1821,121,"Y",219,"EACH","OUTPUT","NEITHER",null,null,null,null,"Criminal Division (121)","# hearings / case settings","# hearings / case settings",{"$f":"_xlfn.XLOOKUP(Measures_Table[[#This Row],[PM Program]],Programs_Active20[ZSBPPROGM (KEY)],Programs_Active20[LONG TEXT])","v":"Accounting Division"}]
[1822,121,"Y",215,"EACH","OUTPUT","NEITHER",null,null,null,null,"Tech Support Dev & Quality (121)","# PO applications screened","# PO applications screened",{"$f":"_xlfn.XLOOKUP(Measures_Table[[#This Row],[PM Program]],Programs_Active20[ZSBPPROGM (KEY)],Programs_Active20[LONG TEXT])","v":"Civil Division (Family)"}]
[1823,121,"Y",219,"EACH","OUTPUT","NEITHER",null,null,null,null,"Criminal Division (121)","# PO filed","# PO filed",{"$f":"_xlfn.XLOOKUP(Measures_Table[[#This Row],[PM Program]],Programs_Active20[ZSBPPROGM (KEY)],Programs_Active20[LONG TEXT])","v":"Accounting Division"}]
[1824,121,"Y",215,"EACH","OUTPUT","NEITHER",null,null,null,null,"Tech Support Dev & Quality (121)","# PO court appearances","# PO court appearances",{"$f":"_xlfn.XLOOKUP(Measures_Table[[#This Row],[PM Program]],Programs_Active20[ZSBPPROGM (KEY)],Programs_Active20[LONG TEXT])","v":"Civil Division (Family)"}]
[1825,121,"Y",215,"EACH","OUTPUT","NEITHER",null,null,null,null,"Tech Support Dev & Quality (121)","# PO granted","# PO granted",{"$f":"_xlfn.XLOOKUP(Measures_Table[[#This Row],[PM Program]],Programs_Active20[ZSBPPROGM (KEY)],Programs_Active20[LONG TEXT])","v":"Civil Division (Family)"}]
[1828,121,"Y",219,"EACH","OUTPUT","NEITHER",null,null,null,null,"Criminal Division (121)","Average Days From Offense to Disposition","Average Days From Offense to Disposition",{"$f":"_xlfn.XLOOKUP(Measures_Table[[#This Row],[PM Program]],Programs_Active20[ZSBPPROGM (KEY)],Programs_Active20[LONG TEXT])","v":"Accounting Division"}]
[1829,121,"Y",219,"EACH","OUTPUT","NEITHER",null,null,null,null,"Criminal Division (121)","Average Days From Filed to Disposition","Average Days From Filed to Disposition",{"$f":"_xlfn.XLOOKUP(Measures_Table[[#This Row],[PM Program]],Programs_Active20[ZSBPPROGM (KEY)],Programs_Active20[LONG TEXT])","v":"Accounting Division"}]
[1830,121,"Y",219,"EACH","OUTPUT","NEITHER",null,null,null,null,"Criminal Division (121)","Average waiting times at Airport Blv","Average waiting times at the Airport Blvd. location (goal less than 45 minutes)",{"$f":"_xlfn.XLOOKUP(Measures_Table[[#This Row],[PM Program]],Programs_Active20[ZSBPPROGM (KEY)],Programs_Active20[LONG TEXT])","v":"Accounting Division"}]
[1832,121,"Y",219,"EACH","OUTPUT","NEITHER",null,null,null,null,"Criminal Division (121)","Revenue generated by passport applicatio","Revenue generated by passport application activities",{"$f":"_xlfn.XLOOKUP(Measures_Table[[#This Row],[PM Program]],Programs_Active20[ZSBPPROGM (KEY)],Programs_Active20[LONG TEXT])","v":"Accounting Division"}]
[1833,121,"Y",219,"EACH","INPUT","NEITHER",null,null,null,null,"Criminal Division (121)","# of attorneys and court officers with a","# of attorneys and court officers with access to court documents online through the AARO system",{"$f":"_xlfn.XLOOKUP(Measures_Table[[#This Row],[PM Program]],Programs_Active20[ZSBPPROGM (KEY)],Programs_Active20[LONG TEXT])","v":"Accounting Division"}]
[1834,121,"Y",219,"EACH","INPUT","ADOPTEDBUD",null,null,null,null,"Criminal Division (121)","Access of the public to court documents","Access of the public to court documents online",{"$f":"_xlfn.XLOOKUP(Measures_Table[[#This Row],[PM Program]],Programs_Active20[ZSBPPROGM (KEY)],Programs_Active20[LONG TEXT])","v":"Accounting Division"}]
[1835,121,"Y",219,"EACH","OUTPUT","NEITHER",null,null,null,null,"Criminal Division (121)","# of new or reopened Gen. Lit./Govt. cas","# of new or reopened Gen. Lit./Govt. cases filed",{"$f":"_xlfn.XLOOKUP(Measures_Table[[#This Row],[PM Program]],Programs_Active20[ZSBPPROGM (KEY)],Programs_Active20[LONG TEXT])","v":"Accounting Division"}]
[1837,121,"Y",219,"EACH","OUTPUT","NEITHER",null,null,null,null,"Criminal Division (121)","# of Gen. Lit/Govt. production entries r","# of Gen. Lit/Govt. production entries reviewed/audited for quality assurance",{"$f":"_xlfn.XLOOKUP(Measures_Table[[#This Row],[PM Program]],Programs_Active20[ZSBPPROGM (KEY)],Programs_Active20[LONG TEXT])","v":"Accounting Division"}]
[1838,121,"Y",219,"EACH","OUTPUT","NEITHER",null,null,null,null,"Criminal Division (121)","# Civil entries corrected after review","# Civil entries corrected after review",{"$f":"_xlfn.XLOOKUP(Measures_Table[[#This Row],[PM Program]],Programs_Active20[ZSBPPROGM (KEY)],Programs_Active20[LONG TEXT])","v":"Accounting Division"}]
[1839,121,"Y",219,"EACH","OUTPUT","NEITHER",null,null,null,null,"Criminal Division (121)","# of new or reopened Family cases filed","# of new or reopened Family cases filed",{"$f":"_xlfn.XLOOKUP(Measures_Table[[#This Row],[PM Program]],Programs_Active20[ZSBPPROGM (KEY)],Programs_Active20[LONG TEXT])","v":"Accounting Division"}]
[1841,121,"Y",216,"EACH","OUTPUT","NEITHER",null,null,null,null,"Accounting Division (121)","# Family entries reviewed","# Family entries reviewed",{"$f":"_xlfn.XLOOKUP(Measures_Table[[#This Row],[PM Program]],Programs_Active20[ZSBPPROGM (KEY)],Programs_Active20[LONG TEXT])","v":"Accounting Division"}]
[1842,121,"Y",216,"EACH","OUTPUT","NEITHER",null,null,null,null,"Accounting Division (121)","# Family entries corrected after review","# Family entries corrected after review",{"$f":"_xlfn.XLOOKUP(Measures_Table[[#This Row],[PM Program]],Programs_Active20[ZSBPPROGM (KEY)],Programs_Active20[LONG TEXT])","v":"Accounting Division"}]
[1843,121,"Y",219,"EACH","OUTPUT","NEITHER",null,null,null,null,"Criminal Division (121)","# of new or reopened Criminal cases file","# of new or reopened Criminal cases filed",{"$f":"_xlfn.XLOOKUP(Measures_Table[[#This Row],[PM Program]],Programs_Active20[ZSBPPROGM (KEY)],Programs_Active20[LONG TEXT])","v":"Accounting Division"}]
[1845,121,"Y",214,"EACH","OUTPUT","ADOPTEDBUD",null,null,null,null,"Jury Management Office (121)","# Civil/Family DWOP cases corrected","# Civil/Family DWOP cases corrected",{"$f":"_xlfn.XLOOKUP(Measures_Table[[#This Row],[PM Program]],Programs_Active20[ZSBPPROGM (KEY)],Programs_Active20[LONG TEXT])","v":"Jury Management Office"}]
[1851,121,"Y",214,"EACH","INPUT","NEITHER",null,null,null,null,"Jury Management Office (121)","# documents processed through Agency Upl","# documents processed through Agency Upload by civil/family/criminal clerks",{"$f":"_xlfn.XLOOKUP(Measures_Table[[#This Row],[PM Program]],Programs_Active20[ZSBPPROGM (KEY)],Programs_Active20[LONG TEXT])","v":"Jury Management Office"}]
[1852,121,"Y",218,"EACH","INPUT","ADOPTEDBUD",null,null,null,null,"General Litigation/Govt Division (121)","# Appeals and Record requests via Appeal","# Appeals and Record requests via Appeals Creator application",{"$f":"_xlfn.XLOOKUP(Measures_Table[[#This Row],[PM Program]],Programs_Active20[ZSBPPROGM (KEY)],Programs_Active20[LONG TEXT])","v":"General Litigation/Government Division"}]
[1853,121,"Y",218,"EACH","INPUT","NEITHER",null,null,null,null,"General Litigation/Govt Division (121)","Meet and exceed audit & accounting stand","Meet and exceed audit & accounting standards established by County (Y=1, N=0)\n",{"$f":"_xlfn.XLOOKUP(Measures_Table[[#This Row],[PM Program]],Programs_Active20[ZSBPPROGM (KEY)],Programs_Active20[LONG TEXT])","v":"General Litigation/Government Division"}]
[1863,121,"Y",217,"EACH","INPUT","ADOPTEDBUD",null,null,null,null,"Civil Division (Family) (121)","Motions to revoke probation","Motions to revoke probation",{"$f":"_xlfn.XLOOKUP(Measures_Table[[#This Row],[PM Program]],Programs_Active20[ZSBPPROGM (KEY)],Programs_Active20[LONG TEXT])","v":"Accounting Division"}]
[1880,121,"Y",216,"EACH","OUTPUT","NEITHER",null,null,null,null,"Accounting Division (121)","# of amended petitions","# of amended petitions",{"$f":"_xlfn.XLOOKUP(Measures_Table[[#This Row],[PM Program]],Programs_Active20[ZSBPPROGM (KEY)],Programs_Active20[LONG TEXT])","v":"Accounting Division"}]
[1881,125,"Y",220,"EACH","INPUT","BOTH",null,null,null,null,"Mental Health (125)","GC Answers filed","GC Answers filed",{"$f":"_xlfn.XLOOKUP(Measures_Table[[#This Row],[PM Program]],Programs_Active20[ZSBPPROGM (KEY)],Programs_Active20[LONG TEXT])","v":"Mental Health"}]
[1882,125,"Y",220,"EACH","INPUT","BLACKBOOK",null,null,null,null,"Mental Health (125)","GC Motions filed","GC Motions filed",{"$f":"_xlfn.XLOOKUP(Measures_Table[[#This Row],[PM Program]],Programs_Active20[ZSBPPROGM (KEY)],Programs_Active20[LONG TEXT])","v":"Mental Health"}]
[1883,125,"Y",220,"EACH","INPUT","NEITHER",null,null,null,null,"Mental Health (125)","GC Notices filed","GC Notices filed",{"$f":"_xlfn.XLOOKUP(Measures_Table[[#This Row],[PM Program]],Programs_Active20[ZSBPPROGM (KEY)],Programs_Active20[LONG TEXT])","v":"Mental Health"}]
[1886,125,"Y",220,"PERCENT","OUTCOME","NEITHER",null,null,null,null,"Mental Health (125)","GC Notices on appeal-able order","GC Notices on appeal-able order",{"$f":"_xlfn.XLOOKUP(Measures_Table[[#This Row],[PM Program]],Programs_Active20[ZSBPPROGM (KEY)],Programs_Active20[LONG TEXT])","v":"Mental Health"}]
[1887,125,"Y",220,"PERCENT","OUTCOME","NEITHER",null,null,null,null,"Mental Health (125)","GC Service of process issued or filed","GC Service of process issued or filed",{"$f":"_xlfn.XLOOKUP(Measures_Table[[#This Row],[PM Program]],Programs_Active20[ZSBPPROGM (KEY)],Programs_Active20[LONG TEXT])","v":"Mental Health"}]
[1888,125,"Y",220,"PERCENT","OUTCOME","NEITHER",null,null,null,null,"Mental Health (125)","GC Appeals (FY13 includes Family)","GC Appeals (FY13 includes Family)",{"$f":"_xlfn.XLOOKUP(Measures_Table[[#This Row],[PM Program]],Programs_Active20[ZSBPPROGM (KEY)],Programs_Active20[LONG TEXT])","v":"Mental Health"}]
[1889,125,"Y",221,"EACH","INPUT","NEITHER",null,null,null,null,"Probate (125)","GC Transfers","GC Transfers",{"$f":"_xlfn.XLOOKUP(Measures_Table[[#This Row],[PM Program]],Programs_Active20[ZSBPPROGM (KEY)],Programs_Active20[LONG TEXT])","v":"Probate"}]
[1890,125,"Y",221,"EACH","OUTPUT","BOTH",null,null,null,null,"Probate (125)","# of new or reopened Family cases filed","# of new or reopened Family cases filed\n",{"$f":"_xlfn.XLOOKUP(Measures_Table[[#This Row],[PM Program]],Programs_Active20[ZSBPPROGM (KEY)],Programs_Active20[LONG TEXT])","v":"Probate"}]
[1892,125,"Y",221,"EACH","OUTPUT","NEITHER",null,null,null,null,"Probate (125)","FL Answers filed","FL Answers filed",{"$f":"_xlfn.XLOOKUP(Measures_Table[[#This Row],[PM Program]],Programs_Active20[ZSBPPROGM (KEY)],Programs_Active20[LONG TEXT])","v":"Probate"}]
[1893,125,"Y",221,"EACH","INPUT","NEITHER",null,null,null,null,"Probate (125)","FL Motions filed","FL Motions filed",{"$f":"_xlfn.XLOOKUP(Measures_Table[[#This Row],[PM Program]],Programs_Active20[ZSBPPROGM (KEY)],Programs_Active20[LONG TEXT])","v":"Probate"}]
[1894,125,"Y",221,"EACH","OUTPUT","BLACKBOOK",null,null,null,null,"Probate (125)","FL Notices filed","FL Notices filed",{"$f":"_xlfn.XLOOKUP(Measures_Table[[#This Row],[PM Program]],Programs_Active20[ZSBPPROGM (KEY)],Programs_Active20[LONG TEXT])","v":"Probate"}]
[1898,125,"Y",221,"EACH","INPUT","BLACKBOOK",null,null,null,null,"Probate (125)","FL Service of process issued or filed","FL Service of process issued or filed",{"$f":"_xlfn.XLOOKUP(Measures_Table[[#This Row],[PM Program]],Programs_Active20[ZSBPPROGM (KEY)],Programs_Active20[LONG TEXT])","v":"Probate"}]
[1899,125,"Y",221,"EACH","OUTPUT","NEITHER",null,null,null,null,"Probate (125)","FL Appeals","FL Appeals",{"$f":"_xlfn.XLOOKUP(Measures_Table[[#This Row],[PM Program]],Programs_Active20[ZSBPPROGM (KEY)],Programs_Active20[LONG TEXT])","v":"Probate"}]
[1900,125,"Y",221,"EACH","OUTPUT","NEITHER",null,null,null,null,"Probate (125)","FL Transfers","FL Transfers",{"$f":"_xlfn.XLOOKUP(Measures_Table[[#This Row],[PM Program]],Programs_Active20[ZSBPPROGM (KEY)],Programs_Active20[LONG TEXT])","v":"Probate"}]
[1901,125,"Y",221,"PERCENT","EFFICIENCY","BOTH",null,null,null,null,"Probate (125)","# of Self represented litigants","# of Self represented litigants",{"$f":"_xlfn.XLOOKUP(Measures_Table[[#This Row],[PM Program]],Programs_Active20[ZSBPPROGM (KEY)],Programs_Active20[LONG TEXT])","v":"Probate"}]
[1902,125,"Y",221,"PERCENT","EFFICIENCY","BOTH",null,null,null,null,"Probate (125)","Civil/criminal documents scanned into DM","Civil/criminal documents scanned into DMS (previous years updated)",{"$f":"_xlfn.XLOOKUP(Measures_Table[[#This Row],[PM Program]],Programs_Active20[ZSBPPROGM (KEY)],Programs_Active20[LONG TEXT])","v":"Probate"}]
[1903,125,"Y",221,"PERCENT","EFFICIENCY","BOTH",null,null,null,null,"Probate (125)","Civil/criminal pages scanned into DMS (p","Civil/criminal pages scanned into DMS (previous years updated)",{"$f":"_xlfn.XLOOKUP(Measures_Table[[#This Row],[PM Program]],Programs_Active20[ZSBPPROGM (KEY)],Programs_Active20[LONG TEXT])","v":"Probate"}]
[1904,125,"Y",221,"PERCENT","OUTCOME","NEITHER",null,null,null,null,"Probate (125)","Electronically filed documents","Electronically filed documents",{"$f":"_xlfn.XLOOKUP(Measures_Table[[#This Row],[PM Program]],Programs_Active20[ZSBPPROGM (KEY)],Programs_Active20[LONG TEXT])","v":"Probate"}]
[1905,125,"Y",221,"PERCENT","OUTCOME","NEITHER",null,null,null,null,"Probate (125)","Registry accounts","Registry accounts",{"$f":"_xlfn.XLOOKUP(Measures_Table[[#This Row],[PM Program]],Programs_Active20[ZSBPPROGM (KEY)],Programs_Active20[LONG TEXT])","v":"Probate"}]
[1906,125,"Y",221,"PERCENT","OUTCOME","NEITHER",null,null,null,null,"Probate (125)","Civil bond accounts","Civil bond accounts",{"$f":"_xlfn.XLOOKUP(Measures_Table[[#This Row],[PM Program]],Programs_Active20[ZSBPPROGM (KEY)],Programs_Active20[LONG TEXT])","v":"Probate"}]
[1907,125,"Y",221,"PERCENT","OUTCOME","NEITHER",null,null,null,null,"Probate (125)","IV-D case billings sent (per quarter)","IV-D case billings sent (per quarter)",{"$f":"_xlfn.XLOOKUP(Measures_Table[[#This Row],[PM Program]],Programs_Active20[ZSBPPROGM (KEY)],Programs_Active20[LONG TEXT])","v":"Probate"}]
[1909,125,"Y",221,"PERCENT","OUTCOME","NEITHER",null,null,null,null,"Probate (125)","Psychoactive medication applications fil","Psychoactive medication applications filed, civil & criminal",{"$f":"_xlfn.XLOOKUP(Measures_Table[[#This Row],[PM Program]],Programs_Active20[ZSBPPROGM (KEY)],Programs_Active20[LONG TEXT])","v":"Probate"}]
[1911,125,"Y",221,"PERCENT","OUTCOME","NEITHER",null,null,null,null,"Probate (125)","# transcripts prepared","# transcripts prepared",{"$f":"_xlfn.XLOOKUP(Measures_Table[[#This Row],[PM Program]],Programs_Active20[ZSBPPROGM (KEY)],Programs_Active20[LONG TEXT])","v":"Probate"}]
[1912,125,"Y",221,"DAYS","OUTCOME","NEITHER",null,null,null,null,"Probate (125)","# exhibits filed","# exhibits filed",{"$f":"_xlfn.XLOOKUP(Measures_Table[[#This Row],[PM Program]],Programs_Active20[ZSBPPROGM (KEY)],Programs_Active20[LONG TEXT])","v":"Probate"}]
[1913,125,"Y",221,"DAYS","OUTCOME","NEITHER",null,null,null,null,"Probate (125)","% of cases when Judge evaluates OPC app","% of cases when Judge evaluates OPC app by deadline",{"$f":"_xlfn.XLOOKUP(Measures_Table[[#This Row],[PM Program]],Programs_Active20[ZSBPPROGM (KEY)],Programs_Active20[LONG TEXT])","v":"Probate"}]
[1914,125,"Y",221,"DAYS","OUTCOME","NEITHER",null,null,null,null,"Probate (125)","% of cases when PC hearings w/in time re","% of cases when PC hearings w/in time required by statute (72 hours)",{"$f":"_xlfn.XLOOKUP(Measures_Table[[#This Row],[PM Program]],Programs_Active20[ZSBPPROGM (KEY)],Programs_Active20[LONG TEXT])","v":"Probate"}]
[1915,125,"Y",221,"EACH","INPUT","BLACKBOOK",null,null,null,null,"Probate (125)","% of cases when case disposed w/in time","% of cases when case disposed w/in time required by statute (30 days, to include any continuance)",{"$f":"_xlfn.XLOOKUP(Measures_Table[[#This Row],[PM Program]],Programs_Active20[ZSBPPROGM (KEY)],Programs_Active20[LONG TEXT])","v":"Probate"}]
[1916,125,"Y",221,"EACH","INPUT","NEITHER",null,null,null,null,"Probate (125)","Will-probate cases filed during FY","Will-probate cases filed during FY",{"$f":"_xlfn.XLOOKUP(Measures_Table[[#This Row],[PM Program]],Programs_Active20[ZSBPPROGM (KEY)],Programs_Active20[LONG TEXT])","v":"Probate"}]
[1920,125,"Y",221,"YEARS","OUTPUT","NEITHER",null,null,null,null,"Probate (125)","Heirship cases filed during FY","Heirship cases filed during FY",{"$f":"_xlfn.XLOOKUP(Measures_Table[[#This Row],[PM Program]],Programs_Active20[ZSBPPROGM (KEY)],Programs_Active20[LONG TEXT])","v":"Probate"}]
[1921,125,"Y",221,"EACH","INPUT","NEITHER",null,null,null,null,"Probate (125)","Court orders heirship of decedent","Court orders heirship of decedent",{"$f":"_xlfn.XLOOKUP(Measures_Table[[#This Row],[PM Program]],Programs_Active20[ZSBPPROGM (KEY)],Programs_Active20[LONG TEXT])","v":"Probate"}]
[1922,125,"Y",221,"EACH","OUTPUT","NEITHER",null,null,null,null,"Probate (125)","Heirship cases dismissed for want of pro","Heirship cases dismissed for want of prosecution (DWOP)",{"$f":"_xlfn.XLOOKUP(Measures_Table[[#This Row],[PM Program]],Programs_Active20[ZSBPPROGM (KEY)],Programs_Active20[LONG TEXT])","v":"Probate"}]
[1923,125,"Y",221,"PERCENT","EFFICIENCY","NEITHER",null,null,null,null,"Probate (125)","Other heirship cases disposed of w/o hei","Other heirship cases disposed of w/o heirship determination",{"$f":"_xlfn.XLOOKUP(Measures_Table[[#This Row],[PM Program]],Programs_Active20[ZSBPPROGM (KEY)],Programs_Active20[LONG TEXT])","v":"Probate"}]
[1924,125,"Y",221,"PERCENT","OUTCOME","NEITHER",null,null,null,null,"Probate (125)","Court grants application for successor e","Court grants application for successor executor or admin",{"$f":"_xlfn.XLOOKUP(Measures_Table[[#This Row],[PM Program]],Programs_Active20[ZSBPPROGM (KEY)],Programs_Active20[LONG TEXT])","v":"Probate"}]
[1925,125,"Y",221,"PERCENT","OUTCOME","NEITHER",null,null,null,null,"Probate (125)","Small estate affidavits filed during FY","Small estate affidavits filed during FY",{"$f":"_xlfn.XLOOKUP(Measures_Table[[#This Row],[PM Program]],Programs_Active20[ZSBPPROGM (KEY)],Programs_Active20[LONG TEXT])","v":"Probate"}]
[1926,125,"Y",221,"DAYS","OUTCOME","NEITHER",null,null,null,null,"Probate (125)","Small Estate Affidavits approved during","Small Estate Affidavits approved during FY",{"$f":"_xlfn.XLOOKUP(Measures_Table[[#This Row],[PM Program]],Programs_Active20[ZSBPPROGM (KEY)],Programs_Active20[LONG TEXT])","v":"Probate"}]
[1928,125,"Y",221,"EACH","OUTPUT","NEITHER",null,null,null,null,"Probate (125)","Clearance rates for will-probate cases d","Clearance rates for will-probate cases during FY",{"$f":"_xlfn.XLOOKUP(Measures_Table[[#This Row],[PM Program]],Programs_Active20[ZSBPPROGM (KEY)],Programs_Active20[LONG TEXT])","v":"Probate"}]
[1931,125,"Y",222,"EACH","INPUT","NEITHER",null,null,null,null,"Guardianship (125)","% will-probate cases disposed w/in 90 da","% will-probate cases disposed w/in 90 days from filing",{"$f":"_xlfn.XLOOKUP(Measures_Table[[#This Row],[PM Program]],Programs_Active20[ZSBPPROGM (KEY)],Programs_Active20[LONG TEXT])","v":"Guardianship"}]
[1940,125,"Y",222,"DAYS","OUTCOME","NEITHER",null,null,null,null,"Guardianship (125)","Age of pending heirship cases","Age of pending heirship cases",{"$f":"_xlfn.XLOOKUP(Measures_Table[[#This Row],[PM Program]],Programs_Active20[ZSBPPROGM (KEY)],Programs_Active20[LONG TEXT])","v":"Guardianship"}]
[1941,125,"Y",222,"EACH","INPUT","NEITHER",null,null,null,null,"Guardianship (125)","Age of pending small estate affidavit ca","Age of pending small estate affidavit cases",{"$f":"_xlfn.XLOOKUP(Measures_Table[[#This Row],[PM Program]],Programs_Active20[ZSBPPROGM (KEY)],Programs_Active20[LONG TEXT])","v":"Guardianship"}]
[1942,125,"Y",222,"EACH","INPUT","NEITHER",null,null,null,null,"Guardianship (125)","Hearings on the record: regular docket","Hearings on the record: regular docket",{"$f":"_xlfn.XLOOKUP(Measures_Table[[#This Row],[PM Program]],Programs_Active20[ZSBPPROGM (KEY)],Programs_Active20[LONG TEXT])","v":"Guardianship"}]
[1943,125,"Y",222,"EACH","OUTPUT","BOTH",null,null,null,null,"Guardianship (125)","Hearings on the record: uncontested dock","Hearings on the record: uncontested docket",{"$f":"_xlfn.XLOOKUP(Measures_Table[[#This Row],[PM Program]],Programs_Active20[ZSBPPROGM (KEY)],Programs_Active20[LONG TEXT])","v":"Guardianship"}]
[1944,125,"Y",222,"EACH","OUTPUT","NEITHER",null,null,null,null,"Guardianship (125)","# transcripts prepared w/in 10 working d","# transcripts prepared w/in 10 working days of request",{"$f":"_xlfn.XLOOKUP(Measures_Table[[#This Row],[PM Program]],Programs_Active20[ZSBPPROGM (KEY)],Programs_Active20[LONG TEXT])","v":"Guardianship"}]
[1946,125,"Y",222,"PERCENT","EFFICIENCY","BOTH",null,null,null,null,"Guardianship (125)","# open dependent administrations as of M","# open dependent administrations as of March 31 of  FY",{"$f":"_xlfn.XLOOKUP(Measures_Table[[#This Row],[PM Program]],Programs_Active20[ZSBPPROGM (KEY)],Programs_Active20[LONG TEXT])","v":"Guardianship"}]
[1953,125,"Y",222,"EACH","INPUT","NEITHER",null,null,null,null,"Guardianship (125)","Average # days between filing accts & al","Average # days between filing accts & all back-up submitted",{"$f":"_xlfn.XLOOKUP(Measures_Table[[#This Row],[PM Program]],Programs_Active20[ZSBPPROGM (KEY)],Programs_Active20[LONG TEXT])","v":"Guardianship"}]
[1957,125,"Y",222,"EACH","INPUT","BLACKBOOK",null,null,null,null,"Guardianship (125)","# show-cause proceedings initiated by Co","# show-cause proceedings initiated by Court",{"$f":"_xlfn.XLOOKUP(Measures_Table[[#This Row],[PM Program]],Programs_Active20[ZSBPPROGM (KEY)],Programs_Active20[LONG TEXT])","v":"Guardianship"}]
[1960,125,"Y",222,"EACH","INPUT","BOTH",null,null,null,null,"Guardianship (125)","Cases investigated: Court finds no curre","Cases investigated: Court finds no current need for Guardian",{"$f":"_xlfn.XLOOKUP(Measures_Table[[#This Row],[PM Program]],Programs_Active20[ZSBPPROGM (KEY)],Programs_Active20[LONG TEXT])","v":"Guardianship"}]
[1961,125,"Y",222,"EACH","OUTPUT","NEITHER",null,null,null,null,"Guardianship (125)","Cases investigated: guardianship applica","Cases investigated: guardianship application filed",{"$f":"_xlfn.XLOOKUP(Measures_Table[[#This Row],[PM Program]],Programs_Active20[ZSBPPROGM (KEY)],Programs_Active20[LONG TEXT])","v":"Guardianship"}]
[1962,125,"Y",222,"PERCENT","EFFICIENCY","BLACKBOOK",null,null,null,null,"Guardianship (125)","Cases investigated:  Guardian needed, bu","Cases investigated:  Guardian needed, but no guardian available",{"$f":"_xlfn.XLOOKUP(Measures_Table[[#This Row],[PM Program]],Programs_Active20[ZSBPPROGM (KEY)],Programs_Active20[LONG TEXT])","v":"Guardianship"}]
[1965,125,"Y",222,"EACH","OUTPUT","BLACKBOOK",null,null,null,null,"Guardianship (125)","% guardianship investigations completed","% guardianship investigations completed w/in 30 days",{"$f":"_xlfn.XLOOKUP(Measures_Table[[#This Row],[PM Program]],Programs_Active20[ZSBPPROGM (KEY)],Programs_Active20[LONG TEXT])","v":"Guardianship"}]
[1966,125,"Y",222,"EACH","OUTPUT","BLACKBOOK",null,null,null,null,"Guardianship (125)","% Guardian investigations where need gua","% Guardian investigations where need guardian, but none available",{"$f":"_xlfn.XLOOKUP(Measures_Table[[#This Row],[PM Program]],Programs_Active20[ZSBPPROGM (KEY)],Programs_Active20[LONG TEXT])","v":"Guardianship"}]
[1970,125,"Y",222,"EACH","INPUT","BLACKBOOK",null,null,null,null,"Guardianship (125)","Applications for guardianship granted","Applications for guardianship granted",{"$f":"_xlfn.XLOOKUP(Measures_Table[[#This Row],[PM Program]],Programs_Active20[ZSBPPROGM (KEY)],Programs_Active20[LONG TEXT])","v":"Guardianship"}]
[1971,125,"Y",222,"EACH","OUTPUT","NEITHER",null,null,null,null,"Guardianship (125)","Applications for guardian dismissed for","Applications for guardian dismissed for want of prosecution (DWOP)",{"$f":"_xlfn.XLOOKUP(Measures_Table[[#This Row],[PM Program]],Programs_Active20[ZSBPPROGM (KEY)],Programs_Active20[LONG TEXT])","v":"Guardianship"}]
[1972,125,"Y",222,"PERCENT","EFFICIENCY","BLACKBOOK",null,null,null,null,"Guardianship (125)","Applications for guardian disposed of wi","Applications for guardian disposed of without Guardian appointed (not DWOP)",{"$f":"_xlfn.XLOOKUP(Measures_Table[[#This Row],[PM Program]],Programs_Active20[ZSBPPROGM (KEY)],Programs_Active20[LONG TEXT])","v":"Guardianship"}]
[1973,125,"Y",222,"PERCENT","OUTCOME","NEITHER",null,null,null,null,"Guardianship (125)","Clearance rates for guardianship cases d","Clearance rates for guardianship cases during FY",{"$f":"_xlfn.XLOOKUP(Measures_Table[[#This Row],[PM Program]],Programs_Active20[ZSBPPROGM (KEY)],Programs_Active20[LONG TEXT])","v":"Guardianship"}]
[1974,125,"Y",222,"PERCENT","OUTCOME","NEITHER",null,null,null,null,"Guardianship (125)","% new Guardian cases disposed within 90","% new Guardian cases disposed within 90 days of filing",{"$f":"_xlfn.XLOOKUP(Measures_Table[[#This Row],[PM Program]],Programs_Active20[ZSBPPROGM (KEY)],Programs_Active20[LONG TEXT])","v":"Guardianship"}]
[1977,125,"Y",222,"EACH","OUTPUT","NEITHER",null,null,null,null,"Guardianship (125)","% successor GDN applications disposed w/","% successor GDN applications disposed w/in 30 days",{"$f":"_xlfn.XLOOKUP(Measures_Table[[#This Row],[PM Program]],Programs_Active20[ZSBPPROGM (KEY)],Programs_Active20[LONG TEXT])","v":"Guardianship"}]
[1980,125,"Y",223,"EACH","INPUT","NEITHER",null,null,null,null,"Civil Litigation (125)","# total active guardianships at FY mid-p","# total active guardianships at FY mid-point (180 days)",{"$f":"_xlfn.XLOOKUP(Measures_Table[[#This Row],[PM Program]],Programs_Active20[ZSBPPROGM (KEY)],Programs_Active20[LONG TEXT])","v":"Civil Litigation"}]
[1982,125,"Y",223,"EACH","OUTPUT","NEITHER",null,null,null,null,"Civil Litigation (125)","# of active guardianships of the estate","# of active guardianships of the estate at FY mid-point (180 days)",{"$f":"_xlfn.XLOOKUP(Measures_Table[[#This Row],[PM Program]],Programs_Active20[ZSBPPROGM (KEY)],Programs_Active20[LONG TEXT])","v":"Civil Litigation"}]
[1990,125,"Y",223,"EACH","INPUT","BOTH",null,null,null,null,"Civil Litigation (125)","% of Guardian annual & final reports dis","% of Guardian annual & final reports disposed w/in 60 days",{"$f":"_xlfn.XLOOKUP(Measures_Table[[#This Row],[PM Program]],Programs_Active20[ZSBPPROGM (KEY)],Programs_Active20[LONG TEXT])","v":"Civil Litigation"}]
[1991,125,"Y",223,"EACH","INPUT","NEITHER",null,null,null,null,"Civil Litigation (125)","% of Guardian annual & final reports dis","% of Guardian annual & final reports disposed w/in 120 days",{"$f":"_xlfn.XLOOKUP(Measures_Table[[#This Row],[PM Program]],Programs_Active20[ZSBPPROGM (KEY)],Programs_Active20[LONG TEXT])","v":"Civil Litigation"}]
[1992,125,"Y",223,"EACH","INPUT","NEITHER",null,null,null,null,"Civil Litigation (125)","# of visits of wards & proposed wards by","# of visits of wards & proposed wards by Court staff during FY",{"$f":"_xlfn.XLOOKUP(Measures_Table[[#This Row],[PM Program]],Programs_Active20[ZSBPPROGM (KEY)],Programs_Active20[LONG TEXT])","v":"Civil Litigation"}]
[1993,125,"Y",223,"EACH","INPUT","NEITHER",null,null,null,null,"Civil Litigation (125)","# of visits of wards & proposed wards by","# of visits of wards & proposed wards by Court Visitors during FY",{"$f":"_xlfn.XLOOKUP(Measures_Table[[#This Row],[PM Program]],Programs_Active20[ZSBPPROGM (KEY)],Programs_Active20[LONG TEXT])","v":"Civil Litigation"}]
[1994,125,"Y",223,"EACH","OUTPUT","NEITHER",null,null,null,null,"Civil Litigation (125)","% of GP/GPE wards visited within FY","% of GP/GPE wards visited within FY",{"$f":"_xlfn.XLOOKUP(Measures_Table[[#This Row],[PM Program]],Programs_Active20[ZSBPPROGM (KEY)],Programs_Active20[LONG TEXT])","v":"Civil Litigation"}]
[1999,125,"Y",224,"EACH","OUTPUT","NEITHER",null,null,null,null,null,"Clearance rates for Guardian annual & fi","Clearance rates for Guardian annual & final accounts",{"$f":"_xlfn.XLOOKUP(Measures_Table[[#This Row],[PM Program]],Programs_Active20[ZSBPPROGM (KEY)],Programs_Active20[LONG TEXT])","v":{"$error":"#N/A"}}]
[2000,125,"Y",224,"EACH","OUTPUT","NEITHER",null,null,null,null,null,"% Guardian accounts disposed within 60 d","% Guardian accounts disposed within 60 days after all back-up filed",{"$f":"_xlfn.XLOOKUP(Measures_Table[[#This Row],[PM Program]],Programs_Active20[ZSBPPROGM (KEY)],Programs_Active20[LONG TEXT])","v":{"$error":"#N/A"}}]
[2001,125,"Y",225,"EACH","INPUT","BOTH",null,null,null,null,"Condemnation (125)","% Guardian accts disposed within 120 day","% Guardian accts disposed within 120 days after all back-up filed",{"$f":"_xlfn.XLOOKUP(Measures_Table[[#This Row],[PM Program]],Programs_Active20[ZSBPPROGM (KEY)],Programs_Active20[LONG TEXT])","v":"Condemnation"}]
[2002,125,"Y",225,"EACH","OUTPUT","NEITHER",null,null,null,null,"Condemnation (125)","Median # days between filing accts & all","Median # days between filing accts & all back-up submitted",{"$f":"_xlfn.XLOOKUP(Measures_Table[[#This Row],[PM Program]],Programs_Active20[ZSBPPROGM (KEY)],Programs_Active20[LONG TEXT])","v":"Condemnation"}]
[2003,125,"Y",225,"EACH","OUTPUT","NEITHER",null,null,null,null,"Condemnation (125)","Mean # days between filing accounts & al","Mean # days between filing accounts & all back-up submitted",{"$f":"_xlfn.XLOOKUP(Measures_Table[[#This Row],[PM Program]],Programs_Active20[ZSBPPROGM (KEY)],Programs_Active20[LONG TEXT])","v":"Condemnation"}]
[2008,126,"Y",226,"EACH","OUTPUT","ADOPTEDBUD",null,null,null,null,"Civil Processing (126)","# of civil cases with final disposition","# of civil cases with final disposition during FY\n",{"$f":"_xlfn.XLOOKUP(Measures_Table[[#This Row],[PM Program]],Programs_Active20[ZSBPPROGM (KEY)],Programs_Active20[LONG TEXT])","v":"Civil Processing"}]
[2009,126,"Y",226,"EACH","OUTPUT","ADOPTEDBUD",null,null,null,null,"Civil Processing (126)","# of civil cases nonsuited or dismissed","# of civil cases nonsuited or dismissed (including DWOP)",{"$f":"_xlfn.XLOOKUP(Measures_Table[[#This Row],[PM Program]],Programs_Active20[ZSBPPROGM (KEY)],Programs_Active20[LONG TEXT])","v":"Civil Processing"}]
[2010,126,"Y",226,"EACH","OUTPUT","ADOPTEDBUD",null,null,null,null,"Civil Processing (126)","# of civil cases dismissed for want of p","# of civil cases dismissed for want of prosecution (DWOP)",{"$f":"_xlfn.XLOOKUP(Measures_Table[[#This Row],[PM Program]],Programs_Active20[ZSBPPROGM (KEY)],Programs_Active20[LONG TEXT])","v":"Civil Processing"}]
[2011,126,"Y",226,"EACH","OUTPUT","ADOPTEDBUD",null,null,null,null,"Civil Processing (126)","Clearance rates for civil cases during F","Clearance rates for civil cases during FY",{"$f":"_xlfn.XLOOKUP(Measures_Table[[#This Row],[PM Program]],Programs_Active20[ZSBPPROGM (KEY)],Programs_Active20[LONG TEXT])","v":"Civil Processing"}]
[2012,126,"Y",226,"PERCENT","OUTCOME","ADOPTEDBUD",null,null,null,null,"Civil Processing (126)","% civil cases disposed or otherwise reso","% civil cases disposed or otherwise resolved w/in 180 days",{"$f":"_xlfn.XLOOKUP(Measures_Table[[#This Row],[PM Program]],Programs_Active20[ZSBPPROGM (KEY)],Programs_Active20[LONG TEXT])","v":"Civil Processing"}]
[2013,126,"Y",226,"EACH","INPUT","ADOPTEDBUD",null,null,null,null,"Civil Processing (126)","% civil cases disposed or otherwise reso","% civil cases disposed or otherwise resolved w/in 365 days",{"$f":"_xlfn.XLOOKUP(Measures_Table[[#This Row],[PM Program]],Programs_Active20[ZSBPPROGM (KEY)],Programs_Active20[LONG TEXT])","v":"Civil Processing"}]
[2014,126,"Y",227,"EACH","OUTPUT","ADOPTEDBUD",null,null,null,null,"Criminal (126)","% civil cases disposed or otherwise reso","% civil cases disposed or otherwise resolved w/in 540 days",{"$f":"_xlfn.XLOOKUP(Measures_Table[[#This Row],[PM Program]],Programs_Active20[ZSBPPROGM (KEY)],Programs_Active20[LONG TEXT])","v":"Criminal"}]
[2015,126,"Y",227,"EACH","OUTPUT","ADOPTEDBUD",null,null,null,null,"Criminal (126)","Age of pending caseload for civil cases","Age of pending caseload for civil cases\n",{"$f":"_xlfn.XLOOKUP(Measures_Table[[#This Row],[PM Program]],Programs_Active20[ZSBPPROGM (KEY)],Programs_Active20[LONG TEXT])","v":"Criminal"}]
[2016,126,"Y",227,"EACH","OUTPUT","ADOPTEDBUD",null,null,null,null,"Criminal (126)","# of civil cases dismissed for want of p","# of civil cases dismissed for want of prosecution (DWOP)",{"$f":"_xlfn.XLOOKUP(Measures_Table[[#This Row],[PM Program]],Programs_Active20[ZSBPPROGM (KEY)],Programs_Active20[LONG TEXT])","v":"Criminal"}]
[2017,126,"Y",227,"EACH","OUTPUT","ADOPTEDBUD",null,null,null,null,"Criminal (126)","# of hearings in civil cases","# of hearings in civil cases",{"$f":"_xlfn.XLOOKUP(Measures_Table[[#This Row],[PM Program]],Programs_Active20[ZSBPPROGM (KEY)],Programs_Active20[LONG TEXT])","v":"Criminal"}]
[2018,126,"Y",227,"EACH","OUTPUT","ADOPTEDBUD",null,null,null,null,"Criminal (126)","# of jury trials set during FY","# of jury trials set during FY\n",{"$f":"_xlfn.XLOOKUP(Measures_Table[[#This Row],[PM Program]],Programs_Active20[ZSBPPROGM (KEY)],Programs_Active20[LONG TEXT])","v":"Criminal"}]
[2019,126,"Y",227,"EACH","OUTPUT","ADOPTEDBUD",null,null,null,null,"Criminal (126)","# of available jury settings","# of available jury settings",{"$f":"_xlfn.XLOOKUP(Measures_Table[[#This Row],[PM Program]],Programs_Active20[ZSBPPROGM (KEY)],Programs_Active20[LONG TEXT])","v":"Criminal"}]
[2020,126,"Y",227,"EACH","OUTPUT","ADOPTEDBUD",null,null,null,null,"Criminal (126)","# of jury trials held","# of jury trials held",{"$f":"_xlfn.XLOOKUP(Measures_Table[[#This Row],[PM Program]],Programs_Active20[ZSBPPROGM (KEY)],Programs_Active20[LONG TEXT])","v":"Criminal"}]
[2021,126,"Y",227,"EACH","OUTPUT","ADOPTEDBUD",null,null,null,null,"Criminal (126)","# of jury-trial cases settled prior to h","# of jury-trial cases settled prior to hearing\n",{"$f":"_xlfn.XLOOKUP(Measures_Table[[#This Row],[PM Program]],Programs_Active20[ZSBPPROGM (KEY)],Programs_Active20[LONG TEXT])","v":"Criminal"}]
[2022,126,"Y",227,"EACH","OUTPUT","ADOPTEDBUD",null,null,null,null,"Criminal (126)","Average # trial settings before bench-tr","Average # trial settings before bench-trial cases disposed",{"$f":"_xlfn.XLOOKUP(Measures_Table[[#This Row],[PM Program]],Programs_Active20[ZSBPPROGM (KEY)],Programs_Active20[LONG TEXT])","v":"Criminal"}]
[2023,126,"Y",227,"EACH","OUTPUT","ADOPTEDBUD",null,null,null,null,"Criminal (126)","Average # trial settings before jury-tri","Average # trial settings before jury-trial cases disposed",{"$f":"_xlfn.XLOOKUP(Measures_Table[[#This Row],[PM Program]],Programs_Active20[ZSBPPROGM (KEY)],Programs_Active20[LONG TEXT])","v":"Criminal"}]
[2024,126,"Y",227,"EACH","OUTCOME","ADOPTEDBUD",null,null,null,null,"Criminal (126)","# transcripts prepared w/in 10 working d","# transcripts prepared w/in 10 working days of request",{"$f":"_xlfn.XLOOKUP(Measures_Table[[#This Row],[PM Program]],Programs_Active20[ZSBPPROGM (KEY)],Programs_Active20[LONG TEXT])","v":"Criminal"}]
[2025,126,"Y",227,"EACH","OUTCOME","ADOPTEDBUD",null,null,null,null,"Criminal (126)","# exhibits filed","# exhibits filed",{"$f":"_xlfn.XLOOKUP(Measures_Table[[#This Row],[PM Program]],Programs_Active20[ZSBPPROGM (KEY)],Programs_Active20[LONG TEXT])","v":"Criminal"}]
[2026,126,"Y",227,"FTE","INPUT","ADOPTEDBUD",null,null,null,null,"Criminal (126)","Instructional & informational materials","Instructional & informational materials created or revised",{"$f":"_xlfn.XLOOKUP(Measures_Table[[#This Row],[PM Program]],Programs_Active20[ZSBPPROGM (KEY)],Programs_Active20[LONG TEXT])","v":"Criminal"}]
[2027,126,"Y",227,"DOLLARS","EFFICIENCY","ADOPTEDBUD",null,null,null,null,"Criminal (126)","# of times Judges or Court Staff Attorne","# of times Judges or Court Staff Attorneys present at CLE programs\n",{"$f":"_xlfn.XLOOKUP(Measures_Table[[#This Row],[PM Program]],Programs_Active20[ZSBPPROGM (KEY)],Programs_Active20[LONG TEXT])","v":"Criminal"}]
[2028,126,"Y",227,"PERCENT","OUTCOME","ADOPTEDBUD",null,null,null,null,"Criminal (126)","# of condemnation cases filed to date of","# of condemnation cases filed to date of final order, disposition, of award",{"$f":"_xlfn.XLOOKUP(Measures_Table[[#This Row],[PM Program]],Programs_Active20[ZSBPPROGM (KEY)],Programs_Active20[LONG TEXT])","v":"Criminal"}]
[2029,126,"Y",228,"EACH","OUTPUT","ADOPTEDBUD",null,null,null,null,"Juvenile Division (126)","# of condemnation cases transferred to C","# of condemnation cases transferred to CCL after appeal or objection\n",{"$f":"_xlfn.XLOOKUP(Measures_Table[[#This Row],[PM Program]],Programs_Active20[ZSBPPROGM (KEY)],Programs_Active20[LONG TEXT])","v":"Juvenile Division"}]
[2030,126,"Y",228,"EACH","OUTPUT","ADOPTEDBUD",null,null,null,null,"Juvenile Division (126)","# of condemnation orders signed","# of condemnation orders signed",{"$f":"_xlfn.XLOOKUP(Measures_Table[[#This Row],[PM Program]],Programs_Active20[ZSBPPROGM (KEY)],Programs_Active20[LONG TEXT])","v":"Juvenile Division"}]
[2031,126,"Y",228,"EACH","OUTPUT","ADOPTEDBUD",null,null,null,null,"Juvenile Division (126)","% strike letters sent w/in 2 business da","% strike letters sent w/in 2 business days of petition received by court\n",{"$f":"_xlfn.XLOOKUP(Measures_Table[[#This Row],[PM Program]],Programs_Active20[ZSBPPROGM (KEY)],Programs_Active20[LONG TEXT])","v":"Juvenile Division"}]
[2032,126,"Y",228,"EACH","OUTPUT","ADOPTEDBUD",null,null,null,null,"Juvenile Division (126)","% commissioner appts w/in 2 business day","% commissioner appts w/in 2 business days of strike deadline",{"$f":"_xlfn.XLOOKUP(Measures_Table[[#This Row],[PM Program]],Programs_Active20[ZSBPPROGM (KEY)],Programs_Active20[LONG TEXT])","v":"Juvenile Division"}]
[2033,126,"Y",228,"EACH","OUTPUT","ADOPTEDBUD",null,null,null,null,"Juvenile Division (126)","% cases transferred w/in 2 business days","% cases transferred w/in 2 business days of appeal",{"$f":"_xlfn.XLOOKUP(Measures_Table[[#This Row],[PM Program]],Programs_Active20[ZSBPPROGM (KEY)],Programs_Active20[LONG TEXT])","v":"Juvenile Division"}]
[2034,126,"Y",228,"EACH","OUTPUT","ADOPTEDBUD",null,null,null,null,"Juvenile Division (126)","% orders & awards processed w/in 2 busin","% orders & awards processed w/in 2 business days",{"$f":"_xlfn.XLOOKUP(Measures_Table[[#This Row],[PM Program]],Programs_Active20[ZSBPPROGM (KEY)],Programs_Active20[LONG TEXT])","v":"Juvenile Division"}]
[2035,126,"Y",228,"EACH","OUTCOME","ADOPTEDBUD",null,null,null,null,"Juvenile Division (126)","Number of civil cases filed","Number of civil cases filed",{"$f":"_xlfn.XLOOKUP(Measures_Table[[#This Row],[PM Program]],Programs_Active20[ZSBPPROGM (KEY)],Programs_Active20[LONG TEXT])","v":"Juvenile Division"}]
[2036,126,"Y",228,"EACH","OUTCOME","ADOPTEDBUD",null,null,null,null,"Juvenile Division (126)","Number of civil cases held heard by judg","Number of civil cases held heard by judge",{"$f":"_xlfn.XLOOKUP(Measures_Table[[#This Row],[PM Program]],Programs_Active20[ZSBPPROGM (KEY)],Programs_Active20[LONG TEXT])","v":"Juvenile Division"}]
[2037,126,"Y",228,"EACH","OUTCOME","ADOPTEDBUD",null,null,null,null,"Juvenile Division (126)","Number of Peace Bond reviewed (New)","Number of Peace Bond reviewed (New)",{"$f":"_xlfn.XLOOKUP(Measures_Table[[#This Row],[PM Program]],Programs_Active20[ZSBPPROGM (KEY)],Programs_Active20[LONG TEXT])","v":"Juvenile Division"}]
[2038,126,"Y",228,"FTE","INPUT","ADOPTEDBUD",null,null,null,null,"Juvenile Division (126)","Number of motions filed (New)","Number of motions filed (New)",{"$f":"_xlfn.XLOOKUP(Measures_Table[[#This Row],[PM Program]],Programs_Active20[ZSBPPROGM (KEY)],Programs_Active20[LONG TEXT])","v":"Juvenile Division"}]
[2039,127,"Y",229,"EACH","OUTPUT","ADOPTEDBUD",null,null,null,null,"Official Fees Accounting Division (127)","Percentage of civil cases dismissed (by","Percentage of civil cases dismissed (by plaintiff)",{"$f":"_xlfn.XLOOKUP(Measures_Table[[#This Row],[PM Program]],Programs_Active20[ZSBPPROGM (KEY)],Programs_Active20[LONG TEXT])","v":"Official Fees Accounting Division"}]
[2040,127,"Y",229,"EACH","OUTPUT","ADOPTEDBUD",null,null,null,null,"Official Fees Accounting Division (127)","Number of employees (FTE’s) to process c","Number of employees (FTE’s) to process cases",{"$f":"_xlfn.XLOOKUP(Measures_Table[[#This Row],[PM Program]],Programs_Active20[ZSBPPROGM (KEY)],Programs_Active20[LONG TEXT])","v":"Official Fees Accounting Division"}]
[2041,127,"Y",229,"EACH","OUTPUT","ADOPTEDBUD",null,null,null,null,"Official Fees Accounting Division (127)","Number of Class C cases filed (formerly","Number of Class C cases filed (formerly Traffic cases filed)",{"$f":"_xlfn.XLOOKUP(Measures_Table[[#This Row],[PM Program]],Programs_Active20[ZSBPPROGM (KEY)],Programs_Active20[LONG TEXT])","v":"Official Fees Accounting Division"}]
[2042,127,"Y",229,"EACH","OUTPUT","ADOPTEDBUD",null,null,null,null,"Official Fees Accounting Division (127)","Number of Pre-trials Scheduled","Number of Pre-trials Scheduled",{"$f":"_xlfn.XLOOKUP(Measures_Table[[#This Row],[PM Program]],Programs_Active20[ZSBPPROGM (KEY)],Programs_Active20[LONG TEXT])","v":"Official Fees Accounting Division"}]
[2043,127,"Y",229,"EACH","OUTPUT","ADOPTEDBUD",null,null,null,null,"Official Fees Accounting Division (127)","Number of Criminal Truancy Cases filed (","Number of Criminal Truancy Cases filed (violation sunset 9/1/15)",{"$f":"_xlfn.XLOOKUP(Measures_Table[[#This Row],[PM Program]],Programs_Active20[ZSBPPROGM (KEY)],Programs_Active20[LONG TEXT])","v":"Official Fees Accounting Division"}]
[2044,127,"Y",229,"EACH","OUTPUT","ADOPTEDBUD",null,null,null,null,"Official Fees Accounting Division (127)","Number of Warrants Issued","Number of Warrants Issued",{"$f":"_xlfn.XLOOKUP(Measures_Table[[#This Row],[PM Program]],Programs_Active20[ZSBPPROGM (KEY)],Programs_Active20[LONG TEXT])","v":"Official Fees Accounting Division"}]
[2045,127,"Y",229,"EACH","OUTPUT","ADOPTEDBUD",null,null,null,null,"Official Fees Accounting Division (127)","Number of cases sent to Omni","Number of cases sent to Omni",{"$f":"_xlfn.XLOOKUP(Measures_Table[[#This Row],[PM Program]],Programs_Active20[ZSBPPROGM (KEY)],Programs_Active20[LONG TEXT])","v":"Official Fees Accounting Division"}]
[2046,127,"Y",229,"EACH","OUTPUT","ADOPTEDBUD",null,null,null,null,"Official Fees Accounting Division (127)","Number of Toll cases filed","Number of Toll cases filed",{"$f":"_xlfn.XLOOKUP(Measures_Table[[#This Row],[PM Program]],Programs_Active20[ZSBPPROGM (KEY)],Programs_Active20[LONG TEXT])","v":"Official Fees Accounting Division"}]
[2047,127,"Y",229,"EACH","OUTPUT","ADOPTEDBUD",null,null,null,null,"Official Fees Accounting Division (127)","Pieces of mail processed (New)","Pieces of mail processed (New)",{"$f":"_xlfn.XLOOKUP(Measures_Table[[#This Row],[PM Program]],Programs_Active20[ZSBPPROGM (KEY)],Programs_Active20[LONG TEXT])","v":"Official Fees Accounting Division"}]
[2048,127,"Y",229,"EACH","OUTPUT","ADOPTEDBUD",null,null,null,null,"Official Fees Accounting Division (127)","Number of telephone calls received (New)","Number of telephone calls received (New)",{"$f":"_xlfn.XLOOKUP(Measures_Table[[#This Row],[PM Program]],Programs_Active20[ZSBPPROGM (KEY)],Programs_Active20[LONG TEXT])","v":"Official Fees Accounting Division"}]
[2049,127,"Y",229,"EACH","OUTPUT","ADOPTEDBUD",null,null,null,null,"Official Fees Accounting Division (127)","Number of faxes/emails received for proc","Number of faxes/emails received for processing (New)",{"$f":"_xlfn.XLOOKUP(Measures_Table[[#This Row],[PM Program]],Programs_Active20[ZSBPPROGM (KEY)],Programs_Active20[LONG TEXT])","v":"Official Fees Accounting Division"}]
[2050,127,"Y",229,"EACH","OUTPUT","ADOPTEDBUD",null,null,null,null,"Official Fees Accounting Division (127)","Number of motions filed (New)","Number of motions filed (New)",{"$f":"_xlfn.XLOOKUP(Measures_Table[[#This Row],[PM Program]],Programs_Active20[ZSBPPROGM (KEY)],Programs_Active20[LONG TEXT])","v":"Official Fees Accounting Division"}]
[2051,127,"Y",229,"EACH","OUTPUT","ADOPTEDBUD",null,null,null,null,"Official Fees Accounting Division (127)","Number of cases sent to Collections (New","Number of cases sent to Collections (New)",{"$f":"_xlfn.XLOOKUP(Measures_Table[[#This Row],[PM Program]],Programs_Active20[ZSBPPROGM (KEY)],Programs_Active20[LONG TEXT])","v":"Official Fees Accounting Division"}]
[2052,127,"Y",229,"EACH","OUTPUT","ADOPTEDBUD",null,null,null,null,"Official Fees Accounting Division (127)","Number of cases processed after online p","Number of cases processed after online payment accepted (New)",{"$f":"_xlfn.XLOOKUP(Measures_Table[[#This Row],[PM Program]],Programs_Active20[ZSBPPROGM (KEY)],Programs_Active20[LONG TEXT])","v":"Official Fees Accounting Division"}]
[2053,127,"Y",229,"EACH","OUTPUT","ADOPTEDBUD",null,null,null,null,"Official Fees Accounting Division (127)","Number of Employees to process cases","Number of Employees to process cases",{"$f":"_xlfn.XLOOKUP(Measures_Table[[#This Row],[PM Program]],Programs_Active20[ZSBPPROGM (KEY)],Programs_Active20[LONG TEXT])","v":"Official Fees Accounting Division"}]
[2054,127,"Y",229,"EACH","OUTPUT","ADOPTEDBUD",null,null,null,null,"Official Fees Accounting Division (127)","Cost per case filed","Cost per case filed",{"$f":"_xlfn.XLOOKUP(Measures_Table[[#This Row],[PM Program]],Programs_Active20[ZSBPPROGM (KEY)],Programs_Active20[LONG TEXT])","v":"Official Fees Accounting Division"}]
[2055,127,"Y",229,"EACH","OUTPUT","ADOPTEDBUD",null,null,null,null,"Official Fees Accounting Division (127)","Percentage of disposed to cases filed","Percentage of disposed to cases filed",{"$f":"_xlfn.XLOOKUP(Measures_Table[[#This Row],[PM Program]],Programs_Active20[ZSBPPROGM (KEY)],Programs_Active20[LONG TEXT])","v":"Official Fees Accounting Division"}]
[2056,127,"Y",229,"EACH","OUTPUT","ADOPTEDBUD",null,null,null,null,"Official Fees Accounting Division (127)","Number of cases assigned to the Juvenile","Number of cases assigned to the Juvenile Case Manager",{"$f":"_xlfn.XLOOKUP(Measures_Table[[#This Row],[PM Program]],Programs_Active20[ZSBPPROGM (KEY)],Programs_Active20[LONG TEXT])","v":"Official Fees Accounting Division"}]
[2057,127,"Y",229,"EACH","OUTPUT","ADOPTEDBUD",null,null,null,null,"Official Fees Accounting Division (127)","Number of dockets attended by juveniles","Number of dockets attended by juveniles (held)",{"$f":"_xlfn.XLOOKUP(Measures_Table[[#This Row],[PM Program]],Programs_Active20[ZSBPPROGM (KEY)],Programs_Active20[LONG TEXT])","v":"Official Fees Accounting Division"}]
[2058,127,"Y",229,"EACH","OUTPUT","ADOPTEDBUD",null,null,null,null,"Official Fees Accounting Division (127)","Number of juvenile contacts conducted","Number of juvenile contacts conducted",{"$f":"_xlfn.XLOOKUP(Measures_Table[[#This Row],[PM Program]],Programs_Active20[ZSBPPROGM (KEY)],Programs_Active20[LONG TEXT])","v":"Official Fees Accounting Division"}]
[2059,127,"Y",229,"EACH","OUTPUT","ADOPTEDBUD",null,null,null,null,"Official Fees Accounting Division (127)","Number of parent contacts conducted","Number of parent contacts conducted",{"$f":"_xlfn.XLOOKUP(Measures_Table[[#This Row],[PM Program]],Programs_Active20[ZSBPPROGM (KEY)],Programs_Active20[LONG TEXT])","v":"Official Fees Accounting Division"}]
[2060,127,"Y",229,"EACH","OUTPUT","ADOPTEDBUD",null,null,null,null,"Official Fees Accounting Division (127)","Number of truancy referrals to Truancy P","Number of truancy referrals to Truancy Prosecutor",{"$f":"_xlfn.XLOOKUP(Measures_Table[[#This Row],[PM Program]],Programs_Active20[ZSBPPROGM (KEY)],Programs_Active20[LONG TEXT])","v":"Official Fees Accounting Division"}]
[2061,127,"Y",229,"EACH","OUTPUT","ADOPTEDBUD",null,null,null,null,"Official Fees Accounting Division (127)","Number of students or parents referred f","Number of students or parents referred for services",{"$f":"_xlfn.XLOOKUP(Measures_Table[[#This Row],[PM Program]],Programs_Active20[ZSBPPROGM (KEY)],Programs_Active20[LONG TEXT])","v":"Official Fees Accounting Division"}]
[2062,127,"Y",229,"EACH","OUTPUT","ADOPTEDBUD",null,null,null,null,"Official Fees Accounting Division (127)","Number of Civil Truancy cases filed (New","Number of Civil Truancy cases filed (New)",{"$f":"_xlfn.XLOOKUP(Measures_Table[[#This Row],[PM Program]],Programs_Active20[ZSBPPROGM (KEY)],Programs_Active20[LONG TEXT])","v":"Official Fees Accounting Division"}]
[2063,127,"Y",229,"EACH","OUTPUT","ADOPTEDBUD",null,null,null,null,"Official Fees Accounting Division (127)","Number of Non-truancy cases filed (New)","Number of Non-truancy cases filed (New)",{"$f":"_xlfn.XLOOKUP(Measures_Table[[#This Row],[PM Program]],Programs_Active20[ZSBPPROGM (KEY)],Programs_Active20[LONG TEXT])","v":"Official Fees Accounting Division"}]
[2064,127,"Y",229,"EACH","OUTPUT","ADOPTEDBUD",null,null,null,null,"Official Fees Accounting Division (127)","Number of Parent Contributing to Non-att","Number of Parent Contributing to Non-attendance filed (New)",{"$f":"_xlfn.XLOOKUP(Measures_Table[[#This Row],[PM Program]],Programs_Active20[ZSBPPROGM (KEY)],Programs_Active20[LONG TEXT])","v":"Official Fees Accounting Division"}]
[2065,127,"Y",229,"EACH","OUTPUT","ADOPTEDBUD",null,null,null,null,"Official Fees Accounting Division (127)","Number of employees to process cases","Number of employees to process cases",{"$f":"_xlfn.XLOOKUP(Measures_Table[[#This Row],[PM Program]],Programs_Active20[ZSBPPROGM (KEY)],Programs_Active20[LONG TEXT])","v":"Official Fees Accounting Division"}]
[2066,127,"Y",229,"EACH","OUTPUT","ADOPTEDBUD",null,null,null,null,"Official Fees Accounting Division (127)","Daily – Maintain general and subsidiary","Daily – Maintain general and subsidiary ledgers in CivilServe, Odyssey, QuickBooks & Excel 10 Offices X 251 = 2510\n",{"$f":"_xlfn.XLOOKUP(Measures_Table[[#This Row],[PM Program]],Programs_Active20[ZSBPPROGM (KEY)],Programs_Active20[LONG TEXT])","v":"Official Fees Accounting Division"}]
[2067,127,"Y",229,"EACH","OUTPUT","ADOPTEDBUD",null,null,null,null,"Official Fees Accounting Division (127)","Daily – reconcile receipts to reports ge","Daily – reconcile receipts to reports generated from both manned & virtual cashier stations 41 accounts X 251 = 10291",{"$f":"_xlfn.XLOOKUP(Measures_Table[[#This Row],[PM Program]],Programs_Active20[ZSBPPROGM (KEY)],Programs_Active20[LONG TEXT])","v":"Official Fees Accounting Division"}]
[2068,127,"Y",229,"EACH","OUTPUT","ADOPTEDBUD",null,null,null,null,"Official Fees Accounting Division (127)","Daily - Identify & correct receipt error","Daily - Identify & correct receipt errors from manned & virtual cashier stations 41 accounts X 251 = 10291",{"$f":"_xlfn.XLOOKUP(Measures_Table[[#This Row],[PM Program]],Programs_Active20[ZSBPPROGM (KEY)],Programs_Active20[LONG TEXT])","v":"Official Fees Accounting Division"}]
[2069,127,"Y",229,"EACH","OUTPUT","ADOPTEDBUD",null,null,null,null,"Official Fees Accounting Division (127)","Daily – Balance credit card receipts to","Daily – Balance credit card receipts to transactions reports generated from the vendor software (VeriFone, Online Portal, E-File and EZ-NetPay) identify & correct discrepancies 4 accounts X 5 Offices X 251 = 5020",{"$f":"_xlfn.XLOOKUP(Measures_Table[[#This Row],[PM Program]],Programs_Active20[ZSBPPROGM (KEY)],Programs_Active20[LONG TEXT])","v":"Official Fees Accounting Division"}]
[2070,127,"Y",229,"EACH","OUTPUT","ADOPTEDBUD",null,null,null,null,"Official Fees Accounting Division (127)","Daily  - Inspect & balance deposit slips","Daily  - Inspect & balance deposit slips & bank bag slips to the Odyssey receipt journal, identify and correct errors for monies receipted from all manned & virtual cashier stations & post deposits to Odyssey 15 accounts X 251 = 3765 (started 2015",{"$f":"_xlfn.XLOOKUP(Measures_Table[[#This Row],[PM Program]],Programs_Active20[ZSBPPROGM (KEY)],Programs_Active20[LONG TEXT])","v":"Official Fees Accounting Division"}]
[2071,127,"Y",229,"EACH","OUTPUT","ADOPTEDBUD",null,null,null,null,"Official Fees Accounting Division (127)","Daily – review credit card settlements &","Daily – review credit card settlements & post deposits to odyssey 33 accounts X 251 = 8283",{"$f":"_xlfn.XLOOKUP(Measures_Table[[#This Row],[PM Program]],Programs_Active20[ZSBPPROGM (KEY)],Programs_Active20[LONG TEXT])","v":"Official Fees Accounting Division"}]
[2072,127,"Y",229,"EACH","OUTCOME","ADOPTEDBUD",null,null,null,null,"Official Fees Accounting Division (127)","Daily – prepare bank transfers between t","Daily – prepare bank transfers between the credit card accounts and other bank accounts 33 accounts X 251 = 8283",{"$f":"_xlfn.XLOOKUP(Measures_Table[[#This Row],[PM Program]],Programs_Active20[ZSBPPROGM (KEY)],Programs_Active20[LONG TEXT])","v":"Official Fees Accounting Division"}]
[2073,127,"Y",229,"EACH","OUTCOME","ADOPTEDBUD",null,null,null,null,"Official Fees Accounting Division (127)","Daily  - produce remittance reports for","Daily  - produce remittance reports for Official Fees & post in SAP 10 accounts X 251 = 2510",{"$f":"_xlfn.XLOOKUP(Measures_Table[[#This Row],[PM Program]],Programs_Active20[ZSBPPROGM (KEY)],Programs_Active20[LONG TEXT])","v":"Official Fees Accounting Division"}]
[2074,127,"Y",229,"EACH","OUTCOME","ADOPTEDBUD",null,null,null,null,"Official Fees Accounting Division (127)","Daily  - remit Official Fees to the Coun","Daily  - remit Official Fees to the County Treasurer via bank transfer 10 accounts X 251 = 2510",{"$f":"_xlfn.XLOOKUP(Measures_Table[[#This Row],[PM Program]],Programs_Active20[ZSBPPROGM (KEY)],Programs_Active20[LONG TEXT])","v":"Official Fees Accounting Division"}]
[2075,127,"Y",229,"EACH","OUTCOME","ADOPTEDBUD",null,null,null,null,"Official Fees Accounting Division (127)","Daily – maintain an excel subsidiary led","Daily – maintain an excel subsidiary ledger that balances receipts to remittances 5 accounts X 251 = 1255",{"$f":"_xlfn.XLOOKUP(Measures_Table[[#This Row],[PM Program]],Programs_Active20[ZSBPPROGM (KEY)],Programs_Active20[LONG TEXT])","v":"Official Fees Accounting Division"}]
[2076,127,"Y",229,"EACH","OUTCOME","ADOPTEDBUD",null,null,null,null,"Official Fees Accounting Division (127)","Daily – monitor &post bond transactions","Daily – monitor &post bond transactions to the excel subsidiary ledger and transfer applied funds from the Bond to the Operating  Account 5 accounts X 251 = 1255",{"$f":"_xlfn.XLOOKUP(Measures_Table[[#This Row],[PM Program]],Programs_Active20[ZSBPPROGM (KEY)],Programs_Active20[LONG TEXT])","v":"Official Fees Accounting Division"}]
[2077,127,"Y",229,"EACH","OUTCOME","ADOPTEDBUD",null,null,null,null,"Official Fees Accounting Division (127)","Daily – monitor LEOSE, Forfeited Funds,","Daily – monitor LEOSE, Forfeited Funds, and Abandoned Vehicle  transactions 7 accounts X 251 = 1757, 8 accounts X 251 = 2008 (started 2015)",{"$f":"_xlfn.XLOOKUP(Measures_Table[[#This Row],[PM Program]],Programs_Active20[ZSBPPROGM (KEY)],Programs_Active20[LONG TEXT])","v":"Official Fees Accounting Division"}]
[2081,127,"Y",230,"EACH","INPUT","ADOPTEDBUD",null,null,null,null,"Civil (127)","Monthly – complete bank reconciliations","Monthly – complete bank reconciliations by the 5th business day after month end and obtain elected officials signature 41 accounts X 251 = 10291",{"$f":"_xlfn.XLOOKUP(Measures_Table[[#This Row],[PM Program]],Programs_Active20[ZSBPPROGM (KEY)],Programs_Active20[LONG TEXT])","v":"Civil"}]
[2082,127,"Y",230,"EACH","INPUT","ADOPTEDBUD",null,null,null,null,"Civil (127)","Monthly -prepare financial statements fo","Monthly -prepare financial statements for each fund in format requested by the auditor 18 accounts X 12 = 216",{"$f":"_xlfn.XLOOKUP(Measures_Table[[#This Row],[PM Program]],Programs_Active20[ZSBPPROGM (KEY)],Programs_Active20[LONG TEXT])","v":"Civil"}]
[2083,127,"Y",230,"EACH","OUTPUT","ADOPTEDBUD",null,null,null,null,"Civil (127)","Monthly –submit statements to elected of","Monthly –submit statements to elected officials for review & signature and forward to the auditor by the 5th business day after month end 18 accounts X 12 = 216",{"$f":"_xlfn.XLOOKUP(Measures_Table[[#This Row],[PM Program]],Programs_Active20[ZSBPPROGM (KEY)],Programs_Active20[LONG TEXT])","v":"Civil"}]
[2086,127,"Y",231,"EACH","EFFICIENCY","ADOPTEDBUD",null,null,null,null,"Criminal (127)","Monthly prepare disbursement reports and","Monthly prepare disbursement reports and remittance checks for funds due to other entities including, fines, costs & fees 41 accounts X 251 = 10291",{"$f":"_xlfn.XLOOKUP(Measures_Table[[#This Row],[PM Program]],Programs_Active20[ZSBPPROGM (KEY)],Programs_Active20[LONG TEXT])","v":"Criminal"}]
[2087,127,"Y",231,"EACH","INPUT","ADOPTEDBUD",null,null,null,null,"Criminal (127)","Monthly -prepare GASB34 Report in Audito","Monthly -prepare GASB34 Report in Auditor requested format using export file from Odyssey 5 accounts X 12 = 60",{"$f":"_xlfn.XLOOKUP(Measures_Table[[#This Row],[PM Program]],Programs_Active20[ZSBPPROGM (KEY)],Programs_Active20[LONG TEXT])","v":"Criminal"}]
[2088,127,"Y",231,"EACH","OUTPUT","ADOPTEDBUD",null,null,null,null,"Criminal (127)","Monthly –submit GASG34 Report to elected","Monthly –submit GASG34 Report to elected officials for review & signature and forward to the Auditor by the 10th business day after month end 5 accounts X 12 = 60",{"$f":"_xlfn.XLOOKUP(Measures_Table[[#This Row],[PM Program]],Programs_Active20[ZSBPPROGM (KEY)],Programs_Active20[LONG TEXT])","v":"Criminal"}]
[2089,127,"Y",232,"EACH","INPUT","ADOPTEDBUD",null,null,null,null,"Juvenile Case Manager (127)","Monthly - maintain statistical collectio","Monthly - maintain statistical collection reports by GL ,fund, tender method and line item 10 Officials X 12 = 120",{"$f":"_xlfn.XLOOKUP(Measures_Table[[#This Row],[PM Program]],Programs_Active20[ZSBPPROGM (KEY)],Programs_Active20[LONG TEXT])","v":"Juvenile Case Manager"}]
[2090,127,"Y",232,"EACH","OUTPUT","ADOPTEDBUD",null,null,null,null,"Juvenile Case Manager (127)","Monthly – Post month-end and year-end jo","\"Monthly – Post month-end and year-end journal entries to SAP",{"$f":"_xlfn.XLOOKUP(Measures_Table[[#This Row],[PM Program]],Programs_Active20[ZSBPPROGM (KEY)],Programs_Active20[LONG TEXT])","v":"Juvenile Case Manager"}]
[2091,127,"Y",232,"EACH","OUTCOME","ADOPTEDBUD",null,null,null,null,"Juvenile Case Manager (127)","Monthly –submit statistical reports to e","Monthly –submit statistical reports to elected officials for review  by the 15th business day after month end 10 Officials X 12 = 120",{"$f":"_xlfn.XLOOKUP(Measures_Table[[#This Row],[PM Program]],Programs_Active20[ZSBPPROGM (KEY)],Programs_Active20[LONG TEXT])","v":"Juvenile Case Manager"}]
[2092,127,"Y",232,"EACH","EFFICIENCY","ADOPTEDBUD",null,null,null,null,"Juvenile Case Manager (127)","Monthly/Annual –monitor & maintain month","Monthly/Annual –monitor & maintain monthly & annual case filing statistics to be used in projecting the annual Target Revenue Estimate 10 Officials X 12 = 120",{"$f":"_xlfn.XLOOKUP(Measures_Table[[#This Row],[PM Program]],Programs_Active20[ZSBPPROGM (KEY)],Programs_Active20[LONG TEXT])","v":"Juvenile Case Manager"}]
[2093,128,"Y",233,"EACH","INPUT","ADOPTEDBUD",null,null,null,null,"Civil (128)","Annual – Prepare the Justice of the Peac","Annual – Prepare the Justice of the Peace annual Target Revenue Estimate & provide data as needed for the Constable Revenue Estimate 10 Officials X 12 = 120",{"$f":"_xlfn.XLOOKUP(Measures_Table[[#This Row],[PM Program]],Programs_Active20[ZSBPPROGM (KEY)],Programs_Active20[LONG TEXT])","v":"Civil"}]
[2094,128,"Y",233,"EACH","INPUT","ADOPTEDBUD",null,null,null,null,"Civil (128)","Monthly - maintain OCA Collection Improv","Monthly - maintain OCA Collection Improvement Reports 5 JP’s X 12 = 60",{"$f":"_xlfn.XLOOKUP(Measures_Table[[#This Row],[PM Program]],Programs_Active20[ZSBPPROGM (KEY)],Programs_Active20[LONG TEXT])","v":"Civil"}]
[2095,128,"Y",233,"EACH","INPUT","ADOPTEDBUD",null,null,null,null,"Civil (128)","Monthly/Annual – Submit Collection Impro","Monthly/Annual – Submit Collection Improvement Reports to OCA 5 JP’s X 12 = 60 (Monthly), 5 JP’s X 1 = 5 (Annual)",{"$f":"_xlfn.XLOOKUP(Measures_Table[[#This Row],[PM Program]],Programs_Active20[ZSBPPROGM (KEY)],Programs_Active20[LONG TEXT])","v":"Civil"}]
[2096,128,"Y",233,"EACH","INPUT","ADOPTEDBUD",null,null,null,null,"Civil (128)","Monthly/Annual – maintain unclaimed prop","Monthly/Annual – maintain unclaimed property excel subsidiary ledgers 10 offices X 12 = 120",{"$f":"_xlfn.XLOOKUP(Measures_Table[[#This Row],[PM Program]],Programs_Active20[ZSBPPROGM (KEY)],Programs_Active20[LONG TEXT])","v":"Civil"}]
[2097,128,"Y",233,"EACH","INPUT","ADOPTEDBUD",null,null,null,null,"Civil (128)","Annual -  prepare  unclaimed property re","Annual -  prepare  unclaimed property reports & present to elected officials for signature and submit with fund remittances to the Treasure or State Comptroller 10 offices X 2 reports = 20",{"$f":"_xlfn.XLOOKUP(Measures_Table[[#This Row],[PM Program]],Programs_Active20[ZSBPPROGM (KEY)],Programs_Active20[LONG TEXT])","v":"Civil"}]
[2098,128,"Y",233,"EACH","OUTCOME","ADOPTEDBUD",null,null,null,null,"Civil (128)","Annual – Financial Audits – prepare and","Annual – Financial Audits – prepare and submit items requested for Financial Audits 10 offices X 1.5 Audits= 15 (Financial Audit or Financial Portion of Audits)",{"$f":"_xlfn.XLOOKUP(Measures_Table[[#This Row],[PM Program]],Programs_Active20[ZSBPPROGM (KEY)],Programs_Active20[LONG TEXT])","v":"Civil"}]
[2099,128,"Y",233,"EACH","OUTCOME","ADOPTEDBUD",null,null,null,null,"Civil (128)","Comply with statutory requirements for C","Comply with statutory requirements for Criminal fund deposits and remittance 41 accounts X 251 = 10291",{"$f":"_xlfn.XLOOKUP(Measures_Table[[#This Row],[PM Program]],Programs_Active20[ZSBPPROGM (KEY)],Programs_Active20[LONG TEXT])","v":"Civil"}]
[2100,128,"Y",233,"EACH","OUTCOME","ADOPTEDBUD",null,null,null,null,"Civil (128)","Comply with statutory requirements for C","Comply with statutory requirements for Civil fund deposits and remittances 41 accounts X 251 = 10291",{"$f":"_xlfn.XLOOKUP(Measures_Table[[#This Row],[PM Program]],Programs_Active20[ZSBPPROGM (KEY)],Programs_Active20[LONG TEXT])","v":"Civil"}]
[2101,128,"Y",233,"EACH","OUTCOME","ADOPTEDBUD",null,null,null,null,"Civil (128)","Comply with GAAP guidelines & Auditor di","Comply with GAAP guidelines & Auditor directives and prepare monthly bank reconciliations by the 5th business day after month end 41 accounts X 251 = 10291",{"$f":"_xlfn.XLOOKUP(Measures_Table[[#This Row],[PM Program]],Programs_Active20[ZSBPPROGM (KEY)],Programs_Active20[LONG TEXT])","v":"Civil"}]
[2102,128,"Y",234,"EACH","INPUT","ADOPTEDBUD",null,null,null,null,"Criminal (128)","Comply with Auditor directives and submi","Comply with Auditor directives and submit monthly GAAP compliant financial statements by the 5th business day after month end 10 accounts X 12 = 120",{"$f":"_xlfn.XLOOKUP(Measures_Table[[#This Row],[PM Program]],Programs_Active20[ZSBPPROGM (KEY)],Programs_Active20[LONG TEXT])","v":"Criminal"}]
[2103,128,"Y",234,"EACH","INPUT","ADOPTEDBUD",null,null,null,null,"Criminal (128)","Comply with Auditor directives and submi","Comply with Auditor directives and submit GAAP compliant GASB34 reports to the Auditor by the 10th business day after month end 5 accounts X 12 = 60",{"$f":"_xlfn.XLOOKUP(Measures_Table[[#This Row],[PM Program]],Programs_Active20[ZSBPPROGM (KEY)],Programs_Active20[LONG TEXT])","v":"Criminal"}]
[2104,128,"Y",234,"EACH","INPUT","ADOPTEDBUD",null,null,null,null,"Criminal (128)","Annual – Financial Audits – Work with ad","Annual – Financial Audits – Work with administration to implement policies and procedures that will gain a rating of “Adequate” or better for each office 10 offices X 1.5 Audits= 15 (Financial Audit or Financial Portion of Audits)",{"$f":"_xlfn.XLOOKUP(Measures_Table[[#This Row],[PM Program]],Programs_Active20[ZSBPPROGM (KEY)],Programs_Active20[LONG TEXT])","v":"Criminal"}]
[2110,128,"Y",234,"EACH","OUTCOME","ADOPTEDBUD",null,null,null,null,"Criminal (128)","Disposed Cases","Disposed Cases",{"$f":"_xlfn.XLOOKUP(Measures_Table[[#This Row],[PM Program]],Programs_Active20[ZSBPPROGM (KEY)],Programs_Active20[LONG TEXT])","v":"Criminal"}]
[2111,128,"Y",234,"EACH","OUTPUT","ADOPTEDBUD",null,null,null,null,"Criminal (128)","Correspondence/ trial notices sent month","Correspondence/ trial notices sent monthly (average w/ cleanup)",{"$f":"_xlfn.XLOOKUP(Measures_Table[[#This Row],[PM Program]],Programs_Active20[ZSBPPROGM (KEY)],Programs_Active20[LONG TEXT])","v":"Criminal"}]
[2112,128,"Y",234,"EACH","OUTPUT","ADOPTEDBUD",null,null,null,null,"Criminal (128)","Time it takes to generate and mail corre","Time it takes to generate and mail correspondence/notices",{"$f":"_xlfn.XLOOKUP(Measures_Table[[#This Row],[PM Program]],Programs_Active20[ZSBPPROGM (KEY)],Programs_Active20[LONG TEXT])","v":"Criminal"}]
[2113,128,"Y",234,"EACH","OUTPUT","ADOPTEDBUD",null,null,null,null,"Criminal (128)","Active cases","Active cases",{"$f":"_xlfn.XLOOKUP(Measures_Table[[#This Row],[PM Program]],Programs_Active20[ZSBPPROGM (KEY)],Programs_Active20[LONG TEXT])","v":"Criminal"}]
[2114,128,"Y",234,"EACH","OUTPUT","ADOPTEDBUD",null,null,null,null,"Criminal (128)","Added cases","Added cases",{"$f":"_xlfn.XLOOKUP(Measures_Table[[#This Row],[PM Program]],Programs_Active20[ZSBPPROGM (KEY)],Programs_Active20[LONG TEXT])","v":"Criminal"}]
[2116,128,"Y",234,"EACH","OUTPUT","ADOPTEDBUD",null,null,null,null,"Criminal (128)","Number of Cases Filed","Number of Cases Filed",{"$f":"_xlfn.XLOOKUP(Measures_Table[[#This Row],[PM Program]],Programs_Active20[ZSBPPROGM (KEY)],Programs_Active20[LONG TEXT])","v":"Criminal"}]
[2117,128,"Y",234,"EACH","OUTPUT","ADOPTEDBUD",null,null,null,null,"Criminal (128)","Cases Assigned to Juvenile Case Manager","Cases Assigned to Juvenile Case Manager",{"$f":"_xlfn.XLOOKUP(Measures_Table[[#This Row],[PM Program]],Programs_Active20[ZSBPPROGM (KEY)],Programs_Active20[LONG TEXT])","v":"Criminal"}]
[2118,128,"Y",234,"EACH","OUTPUT","ADOPTEDBUD",null,null,null,null,"Criminal (128)","Cases Disposed","Cases Disposed",{"$f":"_xlfn.XLOOKUP(Measures_Table[[#This Row],[PM Program]],Programs_Active20[ZSBPPROGM (KEY)],Programs_Active20[LONG TEXT])","v":"Criminal"}]
[2119,128,"Y",234,"EACH","OUTPUT","ADOPTEDBUD",null,null,null,null,"Criminal (128)","Total on Docket","Total on Docket",{"$f":"_xlfn.XLOOKUP(Measures_Table[[#This Row],[PM Program]],Programs_Active20[ZSBPPROGM (KEY)],Programs_Active20[LONG TEXT])","v":"Criminal"}]
[2121,128,"Y",234,"EACH","OUTPUT","ADOPTEDBUD",null,null,null,null,"Criminal (128)","Evictions and Landlord Tenant Cases File","Evictions and Landlord Tenant Cases Filed",{"$f":"_xlfn.XLOOKUP(Measures_Table[[#This Row],[PM Program]],Programs_Active20[ZSBPPROGM (KEY)],Programs_Active20[LONG TEXT])","v":"Criminal"}]
[2122,128,"Y",234,"EACH","OUTPUT","ADOPTEDBUD",null,null,null,null,"Criminal (128)","Debt Claim Cases Filed","Debt Claim Cases Filed",{"$f":"_xlfn.XLOOKUP(Measures_Table[[#This Row],[PM Program]],Programs_Active20[ZSBPPROGM (KEY)],Programs_Active20[LONG TEXT])","v":"Criminal"}]
[2133,128,"Y",235,"EACH","OUTPUT","ADOPTEDBUD",null,null,null,null,"Juvenile Case Manager (128)","Dismissals After Trial","Dismissals After Trial",{"$f":"_xlfn.XLOOKUP(Measures_Table[[#This Row],[PM Program]],Programs_Active20[ZSBPPROGM (KEY)],Programs_Active20[LONG TEXT])","v":"Juvenile Case Manager"}]
[2134,128,"Y",235,"EACH","OUTPUT","ADOPTEDBUD",null,null,null,null,"Juvenile Case Manager (128)","Compliance Dismissals","Compliance Dismissals",{"$f":"_xlfn.XLOOKUP(Measures_Table[[#This Row],[PM Program]],Programs_Active20[ZSBPPROGM (KEY)],Programs_Active20[LONG TEXT])","v":"Juvenile Case Manager"}]
[2161,129,"Y",236,"FTE","INPUT","ADOPTEDBUD",null,null,null,null,"Civil Division (129)","Number of referrals made for services","Number of referrals made for services",{"$f":"_xlfn.XLOOKUP(Measures_Table[[#This Row],[PM Program]],Programs_Active20[ZSBPPROGM (KEY)],Programs_Active20[LONG TEXT])","v":"Civil Division"}]
[2162,129,"Y",236,"EACH","INPUT","ADOPTEDBUD",null,null,null,null,"Civil Division (129)","Number of Children of Incarcerated Paren","Number of Children of Incarcerated Parents Groups (elementary) - schools",{"$f":"_xlfn.XLOOKUP(Measures_Table[[#This Row],[PM Program]],Programs_Active20[ZSBPPROGM (KEY)],Programs_Active20[LONG TEXT])","v":"Civil Division"}]
[2163,129,"Y",236,"EACH","INPUT","ADOPTEDBUD",null,null,null,null,"Civil Division (129)","Number of Children of Incarcerated Paren","Number of Children of Incarcerated Parents Groups (elementary) - sessions",{"$f":"_xlfn.XLOOKUP(Measures_Table[[#This Row],[PM Program]],Programs_Active20[ZSBPPROGM (KEY)],Programs_Active20[LONG TEXT])","v":"Civil Division"}]
[2164,129,"Y",236,"EACH","INPUT","ADOPTEDBUD",null,null,null,null,"Civil Division (129)","Number of Children of Incarcerated Paren","Number of Children of Incarcerated Parents Groups (elementary) - participants",{"$f":"_xlfn.XLOOKUP(Measures_Table[[#This Row],[PM Program]],Programs_Active20[ZSBPPROGM (KEY)],Programs_Active20[LONG TEXT])","v":"Civil Division"}]
[2165,129,"Y",236,"EACH","INPUT","ADOPTEDBUD",null,null,null,null,"Civil Division (129)","Number of Children of Incarcerated Paren","Number of Children of Incarcerated Parents Groups (middle school) - groups",{"$f":"_xlfn.XLOOKUP(Measures_Table[[#This Row],[PM Program]],Programs_Active20[ZSBPPROGM (KEY)],Programs_Active20[LONG TEXT])","v":"Civil Division"}]
[2166,129,"Y",236,"EACH","INPUT","ADOPTEDBUD",null,null,null,null,"Civil Division (129)","Number of Children of Incarcerated Paren","Number of Children of Incarcerated Parents Groups (middle school) - sessions",{"$f":"_xlfn.XLOOKUP(Measures_Table[[#This Row],[PM Program]],Programs_Active20[ZSBPPROGM (KEY)],Programs_Active20[LONG TEXT])","v":"Civil Division"}]
[2167,129,"Y",236,"EACH","INPUT","ADOPTEDBUD",null,null,null,null,"Civil Division (129)","Number of Children of Incarcerated Paren","Number of Children of Incarcerated Parents Groups (middle school) - participants",{"$f":"_xlfn.XLOOKUP(Measures_Table[[#This Row],[PM Program]],Programs_Active20[ZSBPPROGM (KEY)],Programs_Active20[LONG TEXT])","v":"Civil Division"}]
[2168,129,"Y",236,"EACH","INPUT","ADOPTEDBUD",null,null,null,null,"Civil Division (129)","Number of Incarcerated Parents with Chil","Number of Incarcerated Parents with Children Groups  - groups",{"$f":"_xlfn.XLOOKUP(Measures_Table[[#This Row],[PM Program]],Programs_Active20[ZSBPPROGM (KEY)],Programs_Active20[LONG TEXT])","v":"Civil Division"}]
[2169,129,"Y",236,"EACH","OUTPUT","ADOPTEDBUD",null,null,null,null,"Civil Division (129)","Number of Incarcerated Parents with Chil","Number of Incarcerated Parents with Children Groups  - sessions",{"$f":"_xlfn.XLOOKUP(Measures_Table[[#This Row],[PM Program]],Programs_Active20[ZSBPPROGM (KEY)],Programs_Active20[LONG TEXT])","v":"Civil Division"}]
[2170,129,"Y",236,"EACH","OUTPUT","ADOPTEDBUD",null,null,null,null,"Civil Division (129)","Number of Incarcerated Parents with Chil","Number of Incarcerated Parents with Children Groups  - participants",{"$f":"_xlfn.XLOOKUP(Measures_Table[[#This Row],[PM Program]],Programs_Active20[ZSBPPROGM (KEY)],Programs_Active20[LONG TEXT])","v":"Civil Division"}]
[2171,129,"Y",236,"EACH","OUTPUT","ADOPTEDBUD",null,null,null,null,"Civil Division (129)","Groups (Elementary) Schools","Groups (Elementary) Schools",{"$f":"_xlfn.XLOOKUP(Measures_Table[[#This Row],[PM Program]],Programs_Active20[ZSBPPROGM (KEY)],Programs_Active20[LONG TEXT])","v":"Civil Division"}]
[2172,129,"Y",236,"EACH","OUTPUT","ADOPTEDBUD",null,null,null,null,"Civil Division (129)","Groups (Elementary) Session","Groups (Elementary) Session",{"$f":"_xlfn.XLOOKUP(Measures_Table[[#This Row],[PM Program]],Programs_Active20[ZSBPPROGM (KEY)],Programs_Active20[LONG TEXT])","v":"Civil Division"}]
[2173,129,"Y",236,"EACH","OUTPUT","ADOPTEDBUD",null,null,null,null,"Civil Division (129)","Groups (Elementary) Participants","Groups (Elementary) Participants",{"$f":"_xlfn.XLOOKUP(Measures_Table[[#This Row],[PM Program]],Programs_Active20[ZSBPPROGM (KEY)],Programs_Active20[LONG TEXT])","v":"Civil Division"}]
[2174,129,"Y",236,"PERCENT","EFFICIENCY","ADOPTEDBUD",null,null,null,null,"Civil Division (129)","Increased days of attendance","Increased days of attendance",{"$f":"_xlfn.XLOOKUP(Measures_Table[[#This Row],[PM Program]],Programs_Active20[ZSBPPROGM (KEY)],Programs_Active20[LONG TEXT])","v":"Civil Division"}]
[2175,129,"Y",236,"EACH","OUTCOME","ADOPTEDBUD",null,null,null,null,"Civil Division (129)","Decrease in unexcused absences","Decrease in unexcused absences",{"$f":"_xlfn.XLOOKUP(Measures_Table[[#This Row],[PM Program]],Programs_Active20[ZSBPPROGM (KEY)],Programs_Active20[LONG TEXT])","v":"Civil Division"}]
[2176,129,"Y",237,"FTE","INPUT","ADOPTEDBUD",null,null,null,null,"Criminal (129)","Number of Strengthening Families Classes","Number of Strengthening Families Classes - schools",{"$f":"_xlfn.XLOOKUP(Measures_Table[[#This Row],[PM Program]],Programs_Active20[ZSBPPROGM (KEY)],Programs_Active20[LONG TEXT])","v":"Criminal"}]
[2177,129,"Y",237,"EACH","INPUT","ADOPTEDBUD",null,null,null,null,"Criminal (129)","Number of Strengthening Families Classes","Number of Strengthening Families Classes - sessions",{"$f":"_xlfn.XLOOKUP(Measures_Table[[#This Row],[PM Program]],Programs_Active20[ZSBPPROGM (KEY)],Programs_Active20[LONG TEXT])","v":"Criminal"}]
[2178,129,"Y",237,"EACH","INPUT","ADOPTEDBUD",null,null,null,null,"Criminal (129)","Number of Strengthening Families Classes","Number of Strengthening Families Classes - participants",{"$f":"_xlfn.XLOOKUP(Measures_Table[[#This Row],[PM Program]],Programs_Active20[ZSBPPROGM (KEY)],Programs_Active20[LONG TEXT])","v":"Criminal"}]
[2179,129,"Y",237,"EACH","INPUT","ADOPTEDBUD",null,null,null,null,"Criminal (129)","Number of Justice-Us Adventure Therapy G","Number of Justice-Us Adventure Therapy Group - schools",{"$f":"_xlfn.XLOOKUP(Measures_Table[[#This Row],[PM Program]],Programs_Active20[ZSBPPROGM (KEY)],Programs_Active20[LONG TEXT])","v":"Criminal"}]
[2180,129,"Y",237,"EACH","INPUT","ADOPTEDBUD",null,null,null,null,"Criminal (129)","Number of Justice-Us Adventure Therapy G","Number of Justice-Us Adventure Therapy Group - sessions",{"$f":"_xlfn.XLOOKUP(Measures_Table[[#This Row],[PM Program]],Programs_Active20[ZSBPPROGM (KEY)],Programs_Active20[LONG TEXT])","v":"Criminal"}]
[2181,129,"Y",237,"EACH","OUTPUT","ADOPTEDBUD",null,null,null,null,"Criminal (129)","Number of Justice-Us Adventure Therapy G","Number of Justice-Us Adventure Therapy Group - participants",{"$f":"_xlfn.XLOOKUP(Measures_Table[[#This Row],[PM Program]],Programs_Active20[ZSBPPROGM (KEY)],Programs_Active20[LONG TEXT])","v":"Criminal"}]
[2182,129,"Y",237,"EACH","OUTPUT","ADOPTEDBUD",null,null,null,null,"Criminal (129)","Number of In School Suspension Restorati","Number of In School Suspension Restorative Justice Groups - schools",{"$f":"_xlfn.XLOOKUP(Measures_Table[[#This Row],[PM Program]],Programs_Active20[ZSBPPROGM (KEY)],Programs_Active20[LONG TEXT])","v":"Criminal"}]
[2183,129,"Y",237,"EACH","OUTPUT","ADOPTEDBUD",null,null,null,null,"Criminal (129)","Number of In School Suspension Restorati","Number of In School Suspension Restorative Justice Groups - sessions",{"$f":"_xlfn.XLOOKUP(Measures_Table[[#This Row],[PM Program]],Programs_Active20[ZSBPPROGM (KEY)],Programs_Active20[LONG TEXT])","v":"Criminal"}]
[2184,129,"Y",237,"EACH","OUTPUT","ADOPTEDBUD",null,null,null,null,"Criminal (129)","Number of In School Suspension Restorati","Number of In School Suspension Restorative Justice Groups - participants",{"$f":"_xlfn.XLOOKUP(Measures_Table[[#This Row],[PM Program]],Programs_Active20[ZSBPPROGM (KEY)],Programs_Active20[LONG TEXT])","v":"Criminal"}]
[2185,129,"Y",237,"EACH","OUTPUT","ADOPTEDBUD",null,null,null,null,"Criminal (129)","Number of Boys Leadership Groups  - scho","Number of Boys Leadership Groups  - schools",{"$f":"_xlfn.XLOOKUP(Measures_Table[[#This Row],[PM Program]],Programs_Active20[ZSBPPROGM (KEY)],Programs_Active20[LONG TEXT])","v":"Criminal"}]
[2186,129,"Y",237,"EACH","OUTPUT","ADOPTEDBUD",null,null,null,null,"Criminal (129)","Number of Boys Leadership Groups  - sess","Number of Boys Leadership Groups  - sessions",{"$f":"_xlfn.XLOOKUP(Measures_Table[[#This Row],[PM Program]],Programs_Active20[ZSBPPROGM (KEY)],Programs_Active20[LONG TEXT])","v":"Criminal"}]
[2187,129,"Y",237,"PERCENT","EFFICIENCY","ADOPTEDBUD",null,null,null,null,"Criminal (129)","Number of Boys Leadership Groups  - part","Number of Boys Leadership Groups  - participants",{"$f":"_xlfn.XLOOKUP(Measures_Table[[#This Row],[PM Program]],Programs_Active20[ZSBPPROGM (KEY)],Programs_Active20[LONG TEXT])","v":"Criminal"}]
[2188,129,"Y",237,"EACH","OUTCOME","ADOPTEDBUD",null,null,null,null,"Criminal (129)","# of Clerks to process cases filed","# of Clerks to process cases filed",{"$f":"_xlfn.XLOOKUP(Measures_Table[[#This Row],[PM Program]],Programs_Active20[ZSBPPROGM (KEY)],Programs_Active20[LONG TEXT])","v":"Criminal"}]
[2207,130,"Y",240,"EACH","INPUT","ADOPTEDBUD",null,null,null,null,"Criminal Department (130)","# New Criminal Cases Filed:","# New Criminal Cases Filed:",{"$f":"_xlfn.XLOOKUP(Measures_Table[[#This Row],[PM Program]],Programs_Active20[ZSBPPROGM (KEY)],Programs_Active20[LONG TEXT])","v":"Criminal Department"}]
[2217,130,"Y",240,"EACH","OUTPUT","ADOPTEDBUD",null,null,null,null,"Criminal Department (130)","Juvenile case filings:","Juvenile case filings:",{"$f":"_xlfn.XLOOKUP(Measures_Table[[#This Row],[PM Program]],Programs_Active20[ZSBPPROGM (KEY)],Programs_Active20[LONG TEXT])","v":"Criminal Department"}]
[2222,130,"Y",240,"EACH","INPUT","ADOPTEDBUD",null,null,null,null,"Criminal Department (130)","Preventive Contacts - Resource referrals","Preventive Contacts - Resource referrals:",{"$f":"_xlfn.XLOOKUP(Measures_Table[[#This Row],[PM Program]],Programs_Active20[ZSBPPROGM (KEY)],Programs_Active20[LONG TEXT])","v":"Criminal Department"}]
[2226,130,"Y",239,"EACH","INPUT","ADOPTEDBUD",null,null,null,null,"Civil Department (130)","Post-Trial Intervention - Phone contacts","Post-Trial Intervention - Phone contacts:",{"$f":"_xlfn.XLOOKUP(Measures_Table[[#This Row],[PM Program]],Programs_Active20[ZSBPPROGM (KEY)],Programs_Active20[LONG TEXT])","v":"Civil Department"}]
[2228,130,"Y",239,"PERCENT","OUTCOME","ADOPTEDBUD",null,null,null,null,"Civil Department (130)","Post-Trial Intervention - School/Home vi","Post-Trial Intervention - School/Home visit:",{"$f":"_xlfn.XLOOKUP(Measures_Table[[#This Row],[PM Program]],Programs_Active20[ZSBPPROGM (KEY)],Programs_Active20[LONG TEXT])","v":"Civil Department"}]
[2233,131,"Y",241,"EACH","INPUT","ADOPTEDBUD",null,null,null,null,"Security (131)","Dispositions - Juvenile Convictions:","Dispositions - Juvenile Convictions:",{"$f":"_xlfn.XLOOKUP(Measures_Table[[#This Row],[PM Program]],Programs_Active20[ZSBPPROGM (KEY)],Programs_Active20[LONG TEXT])","v":"Security"}]
[2234,131,"Y",241,"EACH","OUTPUT","ADOPTEDBUD",null,null,null,null,"Security (131)","Class C Misdemeanors Filed","Class C Misdemeanors Filed",{"$f":"_xlfn.XLOOKUP(Measures_Table[[#This Row],[PM Program]],Programs_Active20[ZSBPPROGM (KEY)],Programs_Active20[LONG TEXT])","v":"Security"}]
[2235,131,"Y",241,"EACH","INPUT","ADOPTEDBUD",null,null,null,null,"Security (131)","Class C Dispositions Prior to Trial","Class C Dispositions Prior to Trial",{"$f":"_xlfn.XLOOKUP(Measures_Table[[#This Row],[PM Program]],Programs_Active20[ZSBPPROGM (KEY)],Programs_Active20[LONG TEXT])","v":"Security"}]
[2236,131,"Y",241,"HOURS","INPUT","ADOPTEDBUD",null,null,null,null,"Security (131)","Class C Dispositions at Trial","Class C Dispositions at Trial",{"$f":"_xlfn.XLOOKUP(Measures_Table[[#This Row],[PM Program]],Programs_Active20[ZSBPPROGM (KEY)],Programs_Active20[LONG TEXT])","v":"Security"}]
[2237,131,"Y",242,"EACH","INPUT","ADOPTEDBUD",null,null,null,null,"Civil Unit (131)","Class A & B Jail Magistrate Warnings (ex","Class A & B Jail Magistrate Warnings (excluding cite & release)",{"$f":"_xlfn.XLOOKUP(Measures_Table[[#This Row],[PM Program]],Programs_Active20[ZSBPPROGM (KEY)],Programs_Active20[LONG TEXT])","v":"Civil Unit"}]
[2238,131,"Y",242,"EACH","OUTPUT","ADOPTEDBUD",null,null,null,null,"Civil Unit (131)","Felony Jail Magistrate Warnings","Felony Jail Magistrate Warnings",{"$f":"_xlfn.XLOOKUP(Measures_Table[[#This Row],[PM Program]],Programs_Active20[ZSBPPROGM (KEY)],Programs_Active20[LONG TEXT])","v":"Civil Unit"}]
[2239,131,"Y",242,"PERCENT","OUTCOME","ADOPTEDBUD",null,null,null,null,"Civil Unit (131)","Alcohol Hearings by Judge","Alcohol Hearings by Judge",{"$f":"_xlfn.XLOOKUP(Measures_Table[[#This Row],[PM Program]],Programs_Active20[ZSBPPROGM (KEY)],Programs_Active20[LONG TEXT])","v":"Civil Unit"}]
[2240,131,"Y",243,"EACH","INPUT","ADOPTEDBUD",null,null,null,null,"Criminal Unit (131)","Statutory warnings given","Statutory warnings given",{"$f":"_xlfn.XLOOKUP(Measures_Table[[#This Row],[PM Program]],Programs_Active20[ZSBPPROGM (KEY)],Programs_Active20[LONG TEXT])","v":"Criminal Unit"}]
[2241,131,"Y",243,"EACH","OUTPUT","ADOPTEDBUD",null,null,null,null,"Criminal Unit (131)","Show Cause hearings Scheduled","Show Cause hearings Scheduled",{"$f":"_xlfn.XLOOKUP(Measures_Table[[#This Row],[PM Program]],Programs_Active20[ZSBPPROGM (KEY)],Programs_Active20[LONG TEXT])","v":"Criminal Unit"}]
[2242,131,"Y",243,"EACH","OUTPUT","ADOPTEDBUD",null,null,null,null,"Criminal Unit (131)","Warrant Letters Issued","Warrant Letters Issued",{"$f":"_xlfn.XLOOKUP(Measures_Table[[#This Row],[PM Program]],Programs_Active20[ZSBPPROGM (KEY)],Programs_Active20[LONG TEXT])","v":"Criminal Unit"}]
[2244,132,"Y",244,"EACH","OUTPUT","ADOPTEDBUD",null,null,null,null,"Civil Unit (132)","Class C Warrants Issued","Class C Warrants Issued",{"$f":"_xlfn.XLOOKUP(Measures_Table[[#This Row],[PM Program]],Programs_Active20[ZSBPPROGM (KEY)],Programs_Active20[LONG TEXT])","v":"Civil Unit"}]
[2245,132,"Y",244,"EACH","OUTPUT","ADOPTEDBUD",null,null,null,null,"Civil Unit (132)","PR Bonds Reviewed","PR Bonds Reviewed",{"$f":"_xlfn.XLOOKUP(Measures_Table[[#This Row],[PM Program]],Programs_Active20[ZSBPPROGM (KEY)],Programs_Active20[LONG TEXT])","v":"Civil Unit"}]
[2248,132,"Y",245,"EACH","OUTPUT","ADOPTEDBUD",null,null,null,null,"Criminal Unit (132)","Summons for Class A & B Misdemeanors - A","Summons for Class A & B Misdemeanors - Appeared",{"$f":"_xlfn.XLOOKUP(Measures_Table[[#This Row],[PM Program]],Programs_Active20[ZSBPPROGM (KEY)],Programs_Active20[LONG TEXT])","v":"Criminal Unit"}]
[2249,132,"Y",245,"EACH","OUTPUT","ADOPTEDBUD",null,null,null,null,"Criminal Unit (132)","Field Release Citations Filed","Field Release Citations Filed",{"$f":"_xlfn.XLOOKUP(Measures_Table[[#This Row],[PM Program]],Programs_Active20[ZSBPPROGM (KEY)],Programs_Active20[LONG TEXT])","v":"Criminal Unit"}]
[2250,132,"Y",245,"EACH","OUTPUT","ADOPTEDBUD",null,null,null,null,"Criminal Unit (132)","Cases sent to Records Management; no lon","Cases sent to Records Management; no longer stored in house",{"$f":"_xlfn.XLOOKUP(Measures_Table[[#This Row],[PM Program]],Programs_Active20[ZSBPPROGM (KEY)],Programs_Active20[LONG TEXT])","v":"Criminal Unit"}]
[2253,132,"Y",247,"EACH","INPUT","ADOPTEDBUD",null,null,null,null,"Security Unit (132)","Number of cases filed","Number of cases filed",{"$f":"_xlfn.XLOOKUP(Measures_Table[[#This Row],[PM Program]],Programs_Active20[ZSBPPROGM (KEY)],Programs_Active20[LONG TEXT])","v":"Security Unit"}]
[2255,133,"Y",248,"EACH","INPUT","ADOPTEDBUD",null,null,null,null,"Civil (133)","Percentage of cases disposed","Percentage of cases disposed",{"$f":"_xlfn.XLOOKUP(Measures_Table[[#This Row],[PM Program]],Programs_Active20[ZSBPPROGM (KEY)],Programs_Active20[LONG TEXT])","v":"Civil"}]
[2256,133,"Y",248,"EACH","OUTPUT","ADOPTEDBUD",null,null,null,null,"Civil (133)","Hours of Cross-Training;  Criminal to Ci","Hours of Cross-Training;  Criminal to Civil",{"$f":"_xlfn.XLOOKUP(Measures_Table[[#This Row],[PM Program]],Programs_Active20[ZSBPPROGM (KEY)],Programs_Active20[LONG TEXT])","v":"Civil"}]
[2257,133,"Y",248,"HOURS","INPUT","NEITHER",null,null,null,null,"Civil (133)","Cases sent to Records Management; no lon","Cases sent to Records Management; no longer stored in house",{"$f":"_xlfn.XLOOKUP(Measures_Table[[#This Row],[PM Program]],Programs_Active20[ZSBPPROGM (KEY)],Programs_Active20[LONG TEXT])","v":"Civil"}]
[2259,133,"Y",248,"DAYS","OUTCOME","NEITHER",null,null,null,null,"Civil (133)","Number of trials resulting in a final di","Number of trials resulting in a final disposition",{"$f":"_xlfn.XLOOKUP(Measures_Table[[#This Row],[PM Program]],Programs_Active20[ZSBPPROGM (KEY)],Programs_Active20[LONG TEXT])","v":"Civil"}]
[2260,133,"Y",248,"DAYS","OUTCOME","NEITHER",null,null,null,null,"Civil (133)","Call for Service","Call for Service",{"$f":"_xlfn.XLOOKUP(Measures_Table[[#This Row],[PM Program]],Programs_Active20[ZSBPPROGM (KEY)],Programs_Active20[LONG TEXT])","v":"Civil"}]
[2261,133,"Y",249,"EACH","INPUT","ADOPTEDBUD",null,null,null,null,"Criminal (133)","Calls Cleared","Calls Cleared",{"$f":"_xlfn.XLOOKUP(Measures_Table[[#This Row],[PM Program]],Programs_Active20[ZSBPPROGM (KEY)],Programs_Active20[LONG TEXT])","v":"Criminal"}]
[2262,133,"Y",249,"EACH","OUTPUT","ADOPTEDBUD",null,null,null,null,"Criminal (133)","PreTrials/trials/hearings","PreTrials/trials/hearings",{"$f":"_xlfn.XLOOKUP(Measures_Table[[#This Row],[PM Program]],Programs_Active20[ZSBPPROGM (KEY)],Programs_Active20[LONG TEXT])","v":"Criminal"}]
[2263,133,"Y",249,"EACH","OUTPUT","NEITHER",null,null,null,null,"Criminal (133)","# of hours per staff","# of hours per staff",{"$f":"_xlfn.XLOOKUP(Measures_Table[[#This Row],[PM Program]],Programs_Active20[ZSBPPROGM (KEY)],Programs_Active20[LONG TEXT])","v":"Criminal"}]
[2264,133,"Y",249,"HOURS","OUTPUT","NEITHER",null,null,null,null,"Criminal (133)","# of documents received","# of documents received",{"$f":"_xlfn.XLOOKUP(Measures_Table[[#This Row],[PM Program]],Programs_Active20[ZSBPPROGM (KEY)],Programs_Active20[LONG TEXT])","v":"Criminal"}]
[2265,133,"Y",249,"EACH","OUTPUT","ADOPTEDBUD",null,null,null,null,"Criminal (133)","# of documents served","# of documents served",{"$f":"_xlfn.XLOOKUP(Measures_Table[[#This Row],[PM Program]],Programs_Active20[ZSBPPROGM (KEY)],Programs_Active20[LONG TEXT])","v":"Criminal"}]
[2266,133,"Y",249,"EACH","OUTPUT","NEITHER",null,null,null,null,"Criminal (133)","% of documents processed","% of documents processed",{"$f":"_xlfn.XLOOKUP(Measures_Table[[#This Row],[PM Program]],Programs_Active20[ZSBPPROGM (KEY)],Programs_Active20[LONG TEXT])","v":"Criminal"}]
[2267,133,"Y",249,"EACH","OUTPUT","ADOPTEDBUD",null,null,null,null,"Criminal (133)","Warrant Backlog","Warrant Backlog",{"$f":"_xlfn.XLOOKUP(Measures_Table[[#This Row],[PM Program]],Programs_Active20[ZSBPPROGM (KEY)],Programs_Active20[LONG TEXT])","v":"Criminal"}]
[2268,133,"Y",249,"EACH","OUTPUT","NEITHER",null,null,null,null,"Criminal (133)","Warrants Received","Warrants Received",{"$f":"_xlfn.XLOOKUP(Measures_Table[[#This Row],[PM Program]],Programs_Active20[ZSBPPROGM (KEY)],Programs_Active20[LONG TEXT])","v":"Criminal"}]
[2269,133,"Y",249,"EACH","OUTPUT","ADOPTEDBUD",null,null,null,null,"Criminal (133)","Warrants Executed","Warrants Executed",{"$f":"_xlfn.XLOOKUP(Measures_Table[[#This Row],[PM Program]],Programs_Active20[ZSBPPROGM (KEY)],Programs_Active20[LONG TEXT])","v":"Criminal"}]
[2270,133,"Y",250,"EACH","OUTPUT","ADOPTEDBUD",null,null,null,null,null,"Civil Comm. & Service","Civil Comm. & Service",{"$f":"_xlfn.XLOOKUP(Measures_Table[[#This Row],[PM Program]],Programs_Active20[ZSBPPROGM (KEY)],Programs_Active20[LONG TEXT])","v":{"$error":"#N/A"}}]
[2271,133,"Y",250,"EACH","OUTPUT","ADOPTEDBUD",null,null,null,null,null,"Total Civil Papers","Total Civil Papers",{"$f":"_xlfn.XLOOKUP(Measures_Table[[#This Row],[PM Program]],Programs_Active20[ZSBPPROGM (KEY)],Programs_Active20[LONG TEXT])","v":{"$error":"#N/A"}}]
[2272,133,"Y",250,"EACH","OUTPUT","ADOPTEDBUD",null,null,null,null,null,"Civil Paper Attempts","Civil Paper Attempts",{"$f":"_xlfn.XLOOKUP(Measures_Table[[#This Row],[PM Program]],Programs_Active20[ZSBPPROGM (KEY)],Programs_Active20[LONG TEXT])","v":{"$error":"#N/A"}}]
[2275,133,"Y",251,"EACH","OUTPUT","ADOPTEDBUD",null,null,null,null,"Emissions Task Force (133)","Warrants Entered","Warrants Entered",{"$f":"_xlfn.XLOOKUP(Measures_Table[[#This Row],[PM Program]],Programs_Active20[ZSBPPROGM (KEY)],Programs_Active20[LONG TEXT])","v":"Emissions Task Force"}]
[2276,133,"Y",251,"EACH","OUTPUT","ADOPTEDBUD",null,null,null,null,"Emissions Task Force (133)","Warrants Cleared","Warrants Cleared",{"$f":"_xlfn.XLOOKUP(Measures_Table[[#This Row],[PM Program]],Programs_Active20[ZSBPPROGM (KEY)],Programs_Active20[LONG TEXT])","v":"Emissions Task Force"}]
[2278,134,"Y",252,"EACH","OUTPUT","ADOPTEDBUD",null,null,null,null,"Civil Unit (134)","Warrant Miles","Warrant Miles",{"$f":"_xlfn.XLOOKUP(Measures_Table[[#This Row],[PM Program]],Programs_Active20[ZSBPPROGM (KEY)],Programs_Active20[LONG TEXT])","v":"Civil Unit"}]
[2280,134,"Y",253,"EACH","OUTPUT","ADOPTEDBUD",null,null,null,null,"Criminal Unit (134)","Front Entry Totals","Front Entry Totals",{"$f":"_xlfn.XLOOKUP(Measures_Table[[#This Row],[PM Program]],Programs_Active20[ZSBPPROGM (KEY)],Programs_Active20[LONG TEXT])","v":"Criminal Unit"}]
[2281,134,"Y",253,"EACH","INPUT","ADOPTEDBUD",null,null,null,null,"Criminal Unit (134)","Hours for Classes","Hours for Classes",{"$f":"_xlfn.XLOOKUP(Measures_Table[[#This Row],[PM Program]],Programs_Active20[ZSBPPROGM (KEY)],Programs_Active20[LONG TEXT])","v":"Criminal Unit"}]
[2282,134,"Y",255,"EACH","OUTPUT","ADOPTEDBUD",null,null,null,null,"Security Unit (134)","Citations Received","Citations Received",{"$f":"_xlfn.XLOOKUP(Measures_Table[[#This Row],[PM Program]],Programs_Active20[ZSBPPROGM (KEY)],Programs_Active20[LONG TEXT])","v":"Security Unit"}]
[2286,135,"Y",256,"EACH","INPUT","ADOPTEDBUD",null,null,null,null,"Civil & Criminal Process (135)","Service of Forcible Evictions (avg. days","Service of Forcible Evictions (avg. days)",{"$f":"_xlfn.XLOOKUP(Measures_Table[[#This Row],[PM Program]],Programs_Active20[ZSBPPROGM (KEY)],Programs_Active20[LONG TEXT])","v":"Civil & Criminal Process"}]
[2287,135,"Y",256,"EACH","OUTPUT","ADOPTEDBUD",null,null,null,null,"Civil & Criminal Process (135)","Service of Non-Forcible Evictions (avg.","Service of Non-Forcible Evictions (avg. days)",{"$f":"_xlfn.XLOOKUP(Measures_Table[[#This Row],[PM Program]],Programs_Active20[ZSBPPROGM (KEY)],Programs_Active20[LONG TEXT])","v":"Civil & Criminal Process"}]
[2288,135,"Y",256,"EACH","INPUT","ADOPTEDBUD",null,null,null,null,"Civil & Criminal Process (135)","Warrants Received","Warrants Received",{"$f":"_xlfn.XLOOKUP(Measures_Table[[#This Row],[PM Program]],Programs_Active20[ZSBPPROGM (KEY)],Programs_Active20[LONG TEXT])","v":"Civil & Criminal Process"}]
[2289,135,"Y",256,"EACH","OUTPUT","ADOPTEDBUD",null,null,null,null,"Civil & Criminal Process (135)","Warrants Executed","Warrants Executed",{"$f":"_xlfn.XLOOKUP(Measures_Table[[#This Row],[PM Program]],Programs_Active20[ZSBPPROGM (KEY)],Programs_Active20[LONG TEXT])","v":"Civil & Criminal Process"}]
[2290,135,"Y",256,"EACH","OUTPUT","ADOPTEDBUD",null,null,null,null,"Civil & Criminal Process (135)","Traffic Citations","Traffic Citations",{"$f":"_xlfn.XLOOKUP(Measures_Table[[#This Row],[PM Program]],Programs_Active20[ZSBPPROGM (KEY)],Programs_Active20[LONG TEXT])","v":"Civil & Criminal Process"}]
[2291,136,"Y",258,"EACH","OUTPUT","ADOPTEDBUD",null,null,null,null,"Dispute Resolution Center (136)","Patrol Service-Shady Hollow(hrs.)","Patrol Service-Shady Hollow(hrs.)",{"$f":"_xlfn.XLOOKUP(Measures_Table[[#This Row],[PM Program]],Programs_Active20[ZSBPPROGM (KEY)],Programs_Active20[LONG TEXT])","v":"Dispute Resolution Center"}]
[2292,136,"Y",258,"EACH","OUTPUT","ADOPTEDBUD",null,null,null,null,"Dispute Resolution Center (136)","Warrants cleared over a year old","Warrants cleared over a year old",{"$f":"_xlfn.XLOOKUP(Measures_Table[[#This Row],[PM Program]],Programs_Active20[ZSBPPROGM (KEY)],Programs_Active20[LONG TEXT])","v":"Dispute Resolution Center"}]
[2293,136,"Y",258,"EACH","OUTPUT","ADOPTEDBUD",null,null,null,null,"Dispute Resolution Center (136)","Parking Mobility Violations Approved(Cou","Parking Mobility Violations Approved(County Wide)",{"$f":"_xlfn.XLOOKUP(Measures_Table[[#This Row],[PM Program]],Programs_Active20[ZSBPPROGM (KEY)],Programs_Active20[LONG TEXT])","v":"Dispute Resolution Center"}]
[2294,136,"Y",258,"DOLLARS","OUTPUT","ADOPTEDBUD",null,null,null,null,"Dispute Resolution Center (136)","Parking Mobility Citations Issued (Count","Parking Mobility Citations Issued (County Wide)",{"$f":"_xlfn.XLOOKUP(Measures_Table[[#This Row],[PM Program]],Programs_Active20[ZSBPPROGM (KEY)],Programs_Active20[LONG TEXT])","v":"Dispute Resolution Center"}]
[2295,136,"Y",258,"PERCENT","OUTCOME","ADOPTEDBUD",null,null,null,null,"Dispute Resolution Center (136)","Parking Mobility Citations Settled(Count","Parking Mobility Citations Settled(County Wide)",{"$f":"_xlfn.XLOOKUP(Measures_Table[[#This Row],[PM Program]],Programs_Active20[ZSBPPROGM (KEY)],Programs_Active20[LONG TEXT])","v":"Dispute Resolution Center"}]
[2296,136,"Y",258,"PERCENT","OUTCOME","ADOPTEDBUD",null,null,null,null,"Dispute Resolution Center (136)","Volunteers Deputized","Volunteers Deputized",{"$f":"_xlfn.XLOOKUP(Measures_Table[[#This Row],[PM Program]],Programs_Active20[ZSBPPROGM (KEY)],Programs_Active20[LONG TEXT])","v":"Dispute Resolution Center"}]
[2297,136,"Y",258,"PERCENT","OUTCOME","ADOPTEDBUD",null,null,null,null,"Dispute Resolution Center (136)","# of personnel actions processed","# of personnel actions processed",{"$f":"_xlfn.XLOOKUP(Measures_Table[[#This Row],[PM Program]],Programs_Active20[ZSBPPROGM (KEY)],Programs_Active20[LONG TEXT])","v":"Dispute Resolution Center"}]
[2298,136,"Y",258,"DOLLARS","OUTPUT","ADOPTEDBUD",null,null,null,null,"Dispute Resolution Center (136)","# of req’s & payables processed","# of req’s & payables processed",{"$f":"_xlfn.XLOOKUP(Measures_Table[[#This Row],[PM Program]],Programs_Active20[ZSBPPROGM (KEY)],Programs_Active20[LONG TEXT])","v":"Dispute Resolution Center"}]
[2299,136,"Y",258,"RATING_B","OUTPUT","ADOPTEDBUD",null,null,null,null,"Dispute Resolution Center (136)","# of records submitted, recorded and tra","# of records submitted, recorded and tracked",{"$f":"_xlfn.XLOOKUP(Measures_Table[[#This Row],[PM Program]],Programs_Active20[ZSBPPROGM (KEY)],Programs_Active20[LONG TEXT])","v":"Dispute Resolution Center"}]
[2300,139,"Y",264,"EACH","OUTPUT","ADOPTEDBUD",null,null,null,null,"Adult Probation CSCD  (139)","Counterfeit Registration","Counterfeit Registration",{"$f":"_xlfn.XLOOKUP(Measures_Table[[#This Row],[PM Program]],Programs_Active20[ZSBPPROGM (KEY)],Programs_Active20[LONG TEXT])","v":"Adult Probation CSCD"}]
[2301,139,"Y",264,"EACH","OUTCOME","ADOPTEDBUD",null,null,null,null,"Adult Probation CSCD  (139)","Counterfeit/Fradulent VIR","Counterfeit/Fradulent VIR",{"$f":"_xlfn.XLOOKUP(Measures_Table[[#This Row],[PM Program]],Programs_Active20[ZSBPPROGM (KEY)],Programs_Active20[LONG TEXT])","v":"Adult Probation CSCD"}]
[2302,139,"Y",264,"HOURS","OUTCOME","ADOPTEDBUD",null,null,null,null,"Adult Probation CSCD  (139)","Investigations","Investigations",{"$f":"_xlfn.XLOOKUP(Measures_Table[[#This Row],[PM Program]],Programs_Active20[ZSBPPROGM (KEY)],Programs_Active20[LONG TEXT])","v":"Adult Probation CSCD"}]
[2303,139,"Y",264,"DOLLARS","OUTCOME","ADOPTEDBUD",null,null,null,null,"Adult Probation CSCD  (139)","Registration Violations","Registration Violations",{"$f":"_xlfn.XLOOKUP(Measures_Table[[#This Row],[PM Program]],Programs_Active20[ZSBPPROGM (KEY)],Programs_Active20[LONG TEXT])","v":"Adult Probation CSCD"}]
[2304,139,"Y",264,"DOLLARS","OUTCOME","ADOPTEDBUD",null,null,null,null,"Adult Probation CSCD  (139)","Temporary Tag Cases","Temporary Tag Cases",{"$f":"_xlfn.XLOOKUP(Measures_Table[[#This Row],[PM Program]],Programs_Active20[ZSBPPROGM (KEY)],Programs_Active20[LONG TEXT])","v":"Adult Probation CSCD"}]
[2305,139,"Y",264,"EACH","INPUT","ADOPTEDBUD",null,null,null,null,"Adult Probation CSCD  (139)","Civil Process executed","Civil Process executed",{"$f":"_xlfn.XLOOKUP(Measures_Table[[#This Row],[PM Program]],Programs_Active20[ZSBPPROGM (KEY)],Programs_Active20[LONG TEXT])","v":"Adult Probation CSCD"}]
[2306,139,"Y",264,"EACH","INPUT","ADOPTEDBUD",null,null,null,null,"Adult Probation CSCD  (139)","Community events attended","Community events attended",{"$f":"_xlfn.XLOOKUP(Measures_Table[[#This Row],[PM Program]],Programs_Active20[ZSBPPROGM (KEY)],Programs_Active20[LONG TEXT])","v":"Adult Probation CSCD"}]
[2307,139,"Y",264,"PERCENT","OUTCOME","ADOPTEDBUD",null,null,null,null,"Adult Probation CSCD  (139)","Warrant executed","Warrant executed",{"$f":"_xlfn.XLOOKUP(Measures_Table[[#This Row],[PM Program]],Programs_Active20[ZSBPPROGM (KEY)],Programs_Active20[LONG TEXT])","v":"Adult Probation CSCD"}]
[2308,139,"Y",264,"PERCENT","OUTCOME","ADOPTEDBUD",null,null,null,null,"Adult Probation CSCD  (139)","Warrants Intake & Processing","Warrants Intake & Processing",{"$f":"_xlfn.XLOOKUP(Measures_Table[[#This Row],[PM Program]],Programs_Active20[ZSBPPROGM (KEY)],Programs_Active20[LONG TEXT])","v":"Adult Probation CSCD"}]
[2309,139,"Y",264,"PERCENT","OUTCOME","ADOPTEDBUD",null,null,null,null,"Adult Probation CSCD  (139)","Number visitors screened","Number visitors screened",{"$f":"_xlfn.XLOOKUP(Measures_Table[[#This Row],[PM Program]],Programs_Active20[ZSBPPROGM (KEY)],Programs_Active20[LONG TEXT])","v":"Adult Probation CSCD"}]
[2310,139,"Y",264,"PERCENT","OUTCOME","ADOPTEDBUD",null,null,null,null,"Adult Probation CSCD  (139)","Perform patrol of facility once an hour","Perform patrol of facility once an hour",{"$f":"_xlfn.XLOOKUP(Measures_Table[[#This Row],[PM Program]],Programs_Active20[ZSBPPROGM (KEY)],Programs_Active20[LONG TEXT])","v":"Adult Probation CSCD"}]
[2311,140,"Y",265,"EACH","OUTPUT","ADOPTEDBUD",null,null,null,null,"Adult Education Classes (140)","Report all Safety/Maintenance issues","Report all Safety/Maintenance issues",{"$f":"_xlfn.XLOOKUP(Measures_Table[[#This Row],[PM Program]],Programs_Active20[ZSBPPROGM (KEY)],Programs_Active20[LONG TEXT])","v":"Adult Education Classes"}]
[2312,140,"Y",265,"EACH","OUTPUT","ADOPTEDBUD",null,null,null,null,"Adult Education Classes (140)","Response to requests for safety/security","Response to requests for safety/security concerns",{"$f":"_xlfn.XLOOKUP(Measures_Table[[#This Row],[PM Program]],Programs_Active20[ZSBPPROGM (KEY)],Programs_Active20[LONG TEXT])","v":"Adult Education Classes"}]
[2313,140,"Y",265,"EACH","OUTPUT","BLACKBOOK",null,null,null,null,"Adult Education Classes (140)","All Civil & Criminal Process received an","All Civil & Criminal Process received and processed",{"$f":"_xlfn.XLOOKUP(Measures_Table[[#This Row],[PM Program]],Programs_Active20[ZSBPPROGM (KEY)],Programs_Active20[LONG TEXT])","v":"Adult Education Classes"}]
[2314,140,"Y",265,"EACH","OUTPUT","BLACKBOOK",null,null,null,null,"Adult Education Classes (140)","Class C Warrants Cleared by CN5 Collecti","Class C Warrants Cleared by CN5 Collection",{"$f":"_xlfn.XLOOKUP(Measures_Table[[#This Row],[PM Program]],Programs_Active20[ZSBPPROGM (KEY)],Programs_Active20[LONG TEXT])","v":"Adult Education Classes"}]
[2315,140,"Y",265,"EACH","OUTPUT","BLACKBOOK",null,null,null,null,"Adult Education Classes (140)","Class C Warrants Received (per year)","Class C Warrants Received (per year)",{"$f":"_xlfn.XLOOKUP(Measures_Table[[#This Row],[PM Program]],Programs_Active20[ZSBPPROGM (KEY)],Programs_Active20[LONG TEXT])","v":"Adult Education Classes"}]
[2316,140,"Y",265,"EACH","OUTPUT","BLACKBOOK",null,null,null,null,"Adult Education Classes (140)","Disabled Parking Citations Issued","Disabled Parking Citations Issued",{"$f":"_xlfn.XLOOKUP(Measures_Table[[#This Row],[PM Program]],Programs_Active20[ZSBPPROGM (KEY)],Programs_Active20[LONG TEXT])","v":"Adult Education Classes"}]
[2317,140,"Y",265,"EACH","OUTPUT","BLACKBOOK",null,null,null,null,"Adult Education Classes (140)","Illegally Used Placards Seized","Illegally Used Placards Seized",{"$f":"_xlfn.XLOOKUP(Measures_Table[[#This Row],[PM Program]],Programs_Active20[ZSBPPROGM (KEY)],Programs_Active20[LONG TEXT])","v":"Adult Education Classes"}]
[2318,140,"Y",265,"EACH","OUTPUT","BLACKBOOK",null,null,null,null,"Adult Education Classes (140)","Number of people served: Training Servic","Number of people served: Training Services",{"$f":"_xlfn.XLOOKUP(Measures_Table[[#This Row],[PM Program]],Programs_Active20[ZSBPPROGM (KEY)],Programs_Active20[LONG TEXT])","v":"Adult Education Classes"}]
[2319,140,"Y",265,"EACH","OUTPUT","BLACKBOOK",null,null,null,null,"Adult Education Classes (140)","Number of people served: ADR Services","Number of people served: ADR Services",{"$f":"_xlfn.XLOOKUP(Measures_Table[[#This Row],[PM Program]],Programs_Active20[ZSBPPROGM (KEY)],Programs_Active20[LONG TEXT])","v":"Adult Education Classes"}]
[2320,140,"Y",265,"EACH","OUTPUT","BLACKBOOK",null,null,null,null,"Adult Education Classes (140)","Number of ADR Services","Number of ADR Services",{"$f":"_xlfn.XLOOKUP(Measures_Table[[#This Row],[PM Program]],Programs_Active20[ZSBPPROGM (KEY)],Programs_Active20[LONG TEXT])","v":"Adult Education Classes"}]
[2321,140,"Y",265,"EACH","OUTPUT","BLACKBOOK",null,null,null,null,"Adult Education Classes (140)","Estimated Savings to Travis County Throu","Estimated Savings to Travis County Through Diverted Court Cases",{"$f":"_xlfn.XLOOKUP(Measures_Table[[#This Row],[PM Program]],Programs_Active20[ZSBPPROGM (KEY)],Programs_Active20[LONG TEXT])","v":"Adult Education Classes"}]
[2322,140,"Y",265,"EACH","OUTPUT","BLACKBOOK",null,null,null,null,"Adult Education Classes (140)","% Cases Diverted from Court","% Cases Diverted from Court",{"$f":"_xlfn.XLOOKUP(Measures_Table[[#This Row],[PM Program]],Programs_Active20[ZSBPPROGM (KEY)],Programs_Active20[LONG TEXT])","v":"Adult Education Classes"}]
[2323,140,"Y",265,"EACH","OUTPUT","BLACKBOOK",null,null,null,null,"Adult Education Classes (140)","% Court Related Referrals","% Court Related Referrals",{"$f":"_xlfn.XLOOKUP(Measures_Table[[#This Row],[PM Program]],Programs_Active20[ZSBPPROGM (KEY)],Programs_Active20[LONG TEXT])","v":"Adult Education Classes"}]
[2324,140,"Y",265,"EACH","OUTPUT","BLACKBOOK",null,null,null,null,"Adult Education Classes (140)","% Clients Satisfied with Mediation","% Clients Satisfied with Mediation",{"$f":"_xlfn.XLOOKUP(Measures_Table[[#This Row],[PM Program]],Programs_Active20[ZSBPPROGM (KEY)],Programs_Active20[LONG TEXT])","v":"Adult Education Classes"}]
[2325,140,"Y",265,"EACH","OUTPUT","BLACKBOOK",null,null,null,null,"Adult Education Classes (140)","Value of Contributed Services","Value of Contributed Services",{"$f":"_xlfn.XLOOKUP(Measures_Table[[#This Row],[PM Program]],Programs_Active20[ZSBPPROGM (KEY)],Programs_Active20[LONG TEXT])","v":"Adult Education Classes"}]
[2326,140,"Y",265,"EACH","OUTPUT","BLACKBOOK",null,null,null,null,"Adult Education Classes (140)","Capitol Area Better Business Bureau rati","Capitol Area Better Business Bureau rating (A+=1,A=2,…)",{"$f":"_xlfn.XLOOKUP(Measures_Table[[#This Row],[PM Program]],Programs_Active20[ZSBPPROGM (KEY)],Programs_Active20[LONG TEXT])","v":"Adult Education Classes"}]
[2327,140,"Y",265,"EACH","OUTPUT","BLACKBOOK",null,null,null,null,"Adult Education Classes (140)","Average # of direct cases","Average # of direct cases",{"$f":"_xlfn.XLOOKUP(Measures_Table[[#This Row],[PM Program]],Programs_Active20[ZSBPPROGM (KEY)],Programs_Active20[LONG TEXT])","v":"Adult Education Classes"}]
[2328,140,"Y",265,"EACH","OUTPUT","BLACKBOOK",null,null,null,null,"Adult Education Classes (140)","Successfully discharged","Successfully discharged",{"$f":"_xlfn.XLOOKUP(Measures_Table[[#This Row],[PM Program]],Programs_Active20[ZSBPPROGM (KEY)],Programs_Active20[LONG TEXT])","v":"Adult Education Classes"}]
[2329,140,"Y",265,"PERCENT","OUTCOME","ADOPTEDBUD",null,null,null,null,"Adult Education Classes (140)","Community service restitution hours comp","Community service restitution hours completed",{"$f":"_xlfn.XLOOKUP(Measures_Table[[#This Row],[PM Program]],Programs_Active20[ZSBPPROGM (KEY)],Programs_Active20[LONG TEXT])","v":"Adult Education Classes"}]
[2330,140,"Y",265,"PERCENT","OUTCOME","ADOPTEDBUD",null,null,null,null,"Adult Education Classes (140)","Restitution disbursements","Restitution disbursements",{"$f":"_xlfn.XLOOKUP(Measures_Table[[#This Row],[PM Program]],Programs_Active20[ZSBPPROGM (KEY)],Programs_Active20[LONG TEXT])","v":"Adult Education Classes"}]
[2331,140,"Y",265,"PERCENT","OUTCOME","ADOPTEDBUD",null,null,null,null,"Adult Education Classes (140)","Collected County funds","Collected County funds",{"$f":"_xlfn.XLOOKUP(Measures_Table[[#This Row],[PM Program]],Programs_Active20[ZSBPPROGM (KEY)],Programs_Active20[LONG TEXT])","v":"Adult Education Classes"}]
[2332,140,"Y",265,"PERCENT","OUTCOME","BLACKBOOK",null,null,null,null,"Adult Education Classes (140)","Average Caseloads: Specialized","Average Caseloads: Specialized",{"$f":"_xlfn.XLOOKUP(Measures_Table[[#This Row],[PM Program]],Programs_Active20[ZSBPPROGM (KEY)],Programs_Active20[LONG TEXT])","v":"Adult Education Classes"}]
[2333,140,"Y",266,"EACH","OUTPUT","ADOPTEDBUD",null,null,null,null,"Juvenile Education Classes (140)","Average Caseloads: Non - specialized","Average Caseloads: Non - specialized",{"$f":"_xlfn.XLOOKUP(Measures_Table[[#This Row],[PM Program]],Programs_Active20[ZSBPPROGM (KEY)],Programs_Active20[LONG TEXT])","v":"Juvenile Education Classes"}]
[2334,140,"Y",266,"EACH","OUTPUT","ADOPTEDBUD",null,null,null,null,"Juvenile Education Classes (140)","Misdemeanor revocation rate","Misdemeanor revocation rate",{"$f":"_xlfn.XLOOKUP(Measures_Table[[#This Row],[PM Program]],Programs_Active20[ZSBPPROGM (KEY)],Programs_Active20[LONG TEXT])","v":"Juvenile Education Classes"}]
[2335,140,"Y",266,"EACH","OUTPUT","ADOPTEDBUD",null,null,null,null,"Juvenile Education Classes (140)","Statewide misdemeanor revocation rate","Statewide misdemeanor revocation rate",{"$f":"_xlfn.XLOOKUP(Measures_Table[[#This Row],[PM Program]],Programs_Active20[ZSBPPROGM (KEY)],Programs_Active20[LONG TEXT])","v":"Juvenile Education Classes"}]
[2336,140,"Y",266,"EACH","OUTPUT","BLACKBOOK",null,null,null,null,"Juvenile Education Classes (140)","Felony revocation rate","Felony revocation rate",{"$f":"_xlfn.XLOOKUP(Measures_Table[[#This Row],[PM Program]],Programs_Active20[ZSBPPROGM (KEY)],Programs_Active20[LONG TEXT])","v":"Juvenile Education Classes"}]
[2337,140,"Y",266,"EACH","OUTPUT","BLACKBOOK",null,null,null,null,"Juvenile Education Classes (140)","Statewide Felony revocation rate","Statewide Felony revocation rate",{"$f":"_xlfn.XLOOKUP(Measures_Table[[#This Row],[PM Program]],Programs_Active20[ZSBPPROGM (KEY)],Programs_Active20[LONG TEXT])","v":"Juvenile Education Classes"}]
[2338,140,"Y",266,"EACH","OUTPUT","BLACKBOOK",null,null,null,null,"Juvenile Education Classes (140)","Total # of clients referred to the Adult","Total # of clients referred to the Adult Education classes",{"$f":"_xlfn.XLOOKUP(Measures_Table[[#This Row],[PM Program]],Programs_Active20[ZSBPPROGM (KEY)],Programs_Active20[LONG TEXT])","v":"Juvenile Education Classes"}]
[2339,140,"Y",266,"EACH","OUTPUT","BLACKBOOK",null,null,null,null,"Juvenile Education Classes (140)","Total # of clients completing the Adult","Total # of clients completing the Adult Education classes",{"$f":"_xlfn.XLOOKUP(Measures_Table[[#This Row],[PM Program]],Programs_Active20[ZSBPPROGM (KEY)],Programs_Active20[LONG TEXT])","v":"Juvenile Education Classes"}]
[2340,140,"Y",266,"EACH","OUTPUT","BLACKBOOK",null,null,null,null,"Juvenile Education Classes (140)","Total # of Classes","Total # of Classes",{"$f":"_xlfn.XLOOKUP(Measures_Table[[#This Row],[PM Program]],Programs_Active20[ZSBPPROGM (KEY)],Programs_Active20[LONG TEXT])","v":"Juvenile Education Classes"}]
[2341,140,"Y",266,"EACH","OUTPUT","BLACKBOOK",null,null,null,null,"Juvenile Education Classes (140)","8-Hour Check Writing (CW) # of clients r","8-Hour Check Writing (CW) # of clients referred to class",{"$f":"_xlfn.XLOOKUP(Measures_Table[[#This Row],[PM Program]],Programs_Active20[ZSBPPROGM (KEY)],Programs_Active20[LONG TEXT])","v":"Juvenile Education Classes"}]
[2342,140,"Y",266,"EACH","OUTPUT","BLACKBOOK",null,null,null,null,"Juvenile Education Classes (140)","8-Hour Check Writing (CW) # of clients c","8-Hour Check Writing (CW) # of clients completing",{"$f":"_xlfn.XLOOKUP(Measures_Table[[#This Row],[PM Program]],Programs_Active20[ZSBPPROGM (KEY)],Programs_Active20[LONG TEXT])","v":"Juvenile Education Classes"}]
[2343,140,"Y",266,"EACH","OUTPUT","BLACKBOOK",null,null,null,null,"Juvenile Education Classes (140)","8-Hour Check Writing (CW) # of classes","8-Hour Check Writing (CW) # of classes",{"$f":"_xlfn.XLOOKUP(Measures_Table[[#This Row],[PM Program]],Programs_Active20[ZSBPPROGM (KEY)],Programs_Active20[LONG TEXT])","v":"Juvenile Education Classes"}]
[2344,140,"Y",266,"EACH","OUTPUT","BLACKBOOK",null,null,null,null,"Juvenile Education Classes (140)","20-Hour Multiple Offender/Felony # of cl","20-Hour Multiple Offender/Felony # of clients referred to class",{"$f":"_xlfn.XLOOKUP(Measures_Table[[#This Row],[PM Program]],Programs_Active20[ZSBPPROGM (KEY)],Programs_Active20[LONG TEXT])","v":"Juvenile Education Classes"}]
[2345,140,"Y",267,"EACH","OUTPUT","ADOPTEDBUD",null,null,null,null,"Crime Victims Fund (140)","20-Hour Multiple Offender/Felony # of cl","20-Hour Multiple Offender/Felony # of clients completing",{"$f":"_xlfn.XLOOKUP(Measures_Table[[#This Row],[PM Program]],Programs_Active20[ZSBPPROGM (KEY)],Programs_Active20[LONG TEXT])","v":"Crime Victims Fund"}]
[2346,140,"Y",267,"DOLLARS","OUTPUT","BLACKBOOK",null,null,null,null,"Crime Victims Fund (140)","20-Hour Multiple Offender/Felony # of cl","20-Hour Multiple Offender/Felony # of classes",{"$f":"_xlfn.XLOOKUP(Measures_Table[[#This Row],[PM Program]],Programs_Active20[ZSBPPROGM (KEY)],Programs_Active20[LONG TEXT])","v":"Crime Victims Fund"}]
[2347,140,"Y",267,"HOURS","OUTPUT","BLACKBOOK",null,null,null,null,"Crime Victims Fund (140)","8-Hour Assault/Misdemeanor # of clients","8-Hour Assault/Misdemeanor # of clients referred to class",{"$f":"_xlfn.XLOOKUP(Measures_Table[[#This Row],[PM Program]],Programs_Active20[ZSBPPROGM (KEY)],Programs_Active20[LONG TEXT])","v":"Crime Victims Fund"}]
[2348,140,"Y",267,"DOLLARS","EFFICIENCY","BLACKBOOK",null,null,null,null,"Crime Victims Fund (140)","8-Hour Assault/Misdemeanor # of clients","8-Hour Assault/Misdemeanor # of clients completing",{"$f":"_xlfn.XLOOKUP(Measures_Table[[#This Row],[PM Program]],Programs_Active20[ZSBPPROGM (KEY)],Programs_Active20[LONG TEXT])","v":"Crime Victims Fund"}]
[2349,140,"Y",268,"EACH","OUTPUT","BLACKBOOK",null,null,null,null,"Intake & Assessments (140)","8-Hour Assault/Misdemeanor # of classes","8-Hour Assault/Misdemeanor # of classes",{"$f":"_xlfn.XLOOKUP(Measures_Table[[#This Row],[PM Program]],Programs_Active20[ZSBPPROGM (KEY)],Programs_Active20[LONG TEXT])","v":"Intake & Assessments"}]
[2350,140,"Y",268,"EACH","OUTPUT","BLACKBOOK",null,null,null,null,"Intake & Assessments (140)","8-Hour Shoplifting # of clients referred","8-Hour Shoplifting # of clients referred to class",{"$f":"_xlfn.XLOOKUP(Measures_Table[[#This Row],[PM Program]],Programs_Active20[ZSBPPROGM (KEY)],Programs_Active20[LONG TEXT])","v":"Intake & Assessments"}]
[2351,140,"Y",268,"EACH","OUTPUT","ADOPTEDBUD",null,null,null,null,"Intake & Assessments (140)","8-Hour Shoplifting # of clients completi","8-Hour Shoplifting # of clients completing",{"$f":"_xlfn.XLOOKUP(Measures_Table[[#This Row],[PM Program]],Programs_Active20[ZSBPPROGM (KEY)],Programs_Active20[LONG TEXT])","v":"Intake & Assessments"}]
[2352,140,"Y",268,"EACH","OUTPUT","ADOPTEDBUD",null,null,null,null,"Intake & Assessments (140)","8-Hour Shoplifting # of classes","8-Hour Shoplifting # of classes",{"$f":"_xlfn.XLOOKUP(Measures_Table[[#This Row],[PM Program]],Programs_Active20[ZSBPPROGM (KEY)],Programs_Active20[LONG TEXT])","v":"Intake & Assessments"}]
[2353,140,"Y",268,"EACH","OUTPUT","BLACKBOOK",null,null,null,null,"Intake & Assessments (140)","8-Hour Spanish # of clients referred to","8-Hour Spanish # of clients referred to class",{"$f":"_xlfn.XLOOKUP(Measures_Table[[#This Row],[PM Program]],Programs_Active20[ZSBPPROGM (KEY)],Programs_Active20[LONG TEXT])","v":"Intake & Assessments"}]
[2354,140,"Y",268,"EACH","OUTPUT","BLACKBOOK",null,null,null,null,"Intake & Assessments (140)","8-Hour Spanish # of clients completing","8-Hour Spanish # of clients completing",{"$f":"_xlfn.XLOOKUP(Measures_Table[[#This Row],[PM Program]],Programs_Active20[ZSBPPROGM (KEY)],Programs_Active20[LONG TEXT])","v":"Intake & Assessments"}]
[2355,140,"Y",268,"EACH","OUTPUT","BLACKBOOK",null,null,null,null,"Intake & Assessments (140)","8-Hour Spanish # of classes","8-Hour Spanish # of classes",{"$f":"_xlfn.XLOOKUP(Measures_Table[[#This Row],[PM Program]],Programs_Active20[ZSBPPROGM (KEY)],Programs_Active20[LONG TEXT])","v":"Intake & Assessments"}]
[2356,140,"Y",268,"EACH","OUTPUT","BLACKBOOK",null,null,null,null,"Intake & Assessments (140)","% of clients indicating they benefited f","% of clients indicating they benefited from an increase of knowledge",{"$f":"_xlfn.XLOOKUP(Measures_Table[[#This Row],[PM Program]],Programs_Active20[ZSBPPROGM (KEY)],Programs_Active20[LONG TEXT])","v":"Intake & Assessments"}]
[2357,140,"Y",268,"PERCENT","OUTPUT","BLACKBOOK",null,null,null,null,"Intake & Assessments (140)","% of clients indicating the class will h","% of clients indicating the class will help avoid future law violations.",{"$f":"_xlfn.XLOOKUP(Measures_Table[[#This Row],[PM Program]],Programs_Active20[ZSBPPROGM (KEY)],Programs_Active20[LONG TEXT])","v":"Intake & Assessments"}]
[2358,140,"Y",268,"PERCENT","OUTPUT","BLACKBOOK",null,null,null,null,"Intake & Assessments (140)","% of client’s stated gained insight to n","% of client’s stated gained insight to new ideas and available resources.",{"$f":"_xlfn.XLOOKUP(Measures_Table[[#This Row],[PM Program]],Programs_Active20[ZSBPPROGM (KEY)],Programs_Active20[LONG TEXT])","v":"Intake & Assessments"}]
[2359,140,"Y",268,"PERCENT","OUTCOME","BLACKBOOK",null,null,null,null,"Intake & Assessments (140)","% of client’s stated scheduling for the","% of client’s stated scheduling for the class was convenient.",{"$f":"_xlfn.XLOOKUP(Measures_Table[[#This Row],[PM Program]],Programs_Active20[ZSBPPROGM (KEY)],Programs_Active20[LONG TEXT])","v":"Intake & Assessments"}]
[2360,140,"Y",268,"PERCENT","OUTCOME","BLACKBOOK",null,null,null,null,"Intake & Assessments (140)","Total # of clients referred to the Juven","Total # of clients referred to the Juvenile Education classes",{"$f":"_xlfn.XLOOKUP(Measures_Table[[#This Row],[PM Program]],Programs_Active20[ZSBPPROGM (KEY)],Programs_Active20[LONG TEXT])","v":"Intake & Assessments"}]
[2361,140,"Y",268,"PERCENT","OUTCOME","ADOPTEDBUD",null,null,null,null,"Intake & Assessments (140)","Total # of clients completing the Juveni","Total # of clients completing the Juvenile Education classes",{"$f":"_xlfn.XLOOKUP(Measures_Table[[#This Row],[PM Program]],Programs_Active20[ZSBPPROGM (KEY)],Programs_Active20[LONG TEXT])","v":"Intake & Assessments"}]
[2362,140,"Y",268,"EACH","OUTPUT","BLACKBOOK",null,null,null,null,"Intake & Assessments (140)","Total # of Classes","Total # of Classes",{"$f":"_xlfn.XLOOKUP(Measures_Table[[#This Row],[PM Program]],Programs_Active20[ZSBPPROGM (KEY)],Programs_Active20[LONG TEXT])","v":"Intake & Assessments"}]
[2363,140,"Y",268,"EACH","OUTPUT","BLACKBOOK",null,null,null,null,"Intake & Assessments (140)","8-Hour Juvenile Anger Mgmt. # of clients","8-Hour Juvenile Anger Mgmt. # of clients referred to class",{"$f":"_xlfn.XLOOKUP(Measures_Table[[#This Row],[PM Program]],Programs_Active20[ZSBPPROGM (KEY)],Programs_Active20[LONG TEXT])","v":"Intake & Assessments"}]
[2364,140,"Y",268,"EACH","OUTPUT","BLACKBOOK",null,null,null,null,"Intake & Assessments (140)","8-Hour Juvenile Anger Mgmt. # of clients","8-Hour Juvenile Anger Mgmt. # of clients completing",{"$f":"_xlfn.XLOOKUP(Measures_Table[[#This Row],[PM Program]],Programs_Active20[ZSBPPROGM (KEY)],Programs_Active20[LONG TEXT])","v":"Intake & Assessments"}]
[2365,140,"Y",268,"EACH","OUTPUT","BLACKBOOK",null,null,null,null,"Intake & Assessments (140)","8-Hour Juvenile Anger Mgmt. # of classes","8-Hour Juvenile Anger Mgmt. # of classes",{"$f":"_xlfn.XLOOKUP(Measures_Table[[#This Row],[PM Program]],Programs_Active20[ZSBPPROGM (KEY)],Programs_Active20[LONG TEXT])","v":"Intake & Assessments"}]
[2366,140,"Y",268,"PERCENT","OUTPUT","BLACKBOOK",null,null,null,null,"Intake & Assessments (140)","8-Hour Youth Misdemeanor I # of clients","8-Hour Youth Misdemeanor I # of clients referred to class",{"$f":"_xlfn.XLOOKUP(Measures_Table[[#This Row],[PM Program]],Programs_Active20[ZSBPPROGM (KEY)],Programs_Active20[LONG TEXT])","v":"Intake & Assessments"}]
[2367,140,"Y",268,"PERCENT","OUTPUT","BLACKBOOK",null,null,null,null,"Intake & Assessments (140)","8-Hour Youth Misdemeanor I # of clients","8-Hour Youth Misdemeanor I # of clients completing",{"$f":"_xlfn.XLOOKUP(Measures_Table[[#This Row],[PM Program]],Programs_Active20[ZSBPPROGM (KEY)],Programs_Active20[LONG TEXT])","v":"Intake & Assessments"}]
[2368,140,"Y",268,"PERCENT","OUTPUT","BLACKBOOK",null,null,null,null,"Intake & Assessments (140)","8-Hour Youth Misdemeanor I # of classes","8-Hour Youth Misdemeanor I # of classes",{"$f":"_xlfn.XLOOKUP(Measures_Table[[#This Row],[PM Program]],Programs_Active20[ZSBPPROGM (KEY)],Programs_Active20[LONG TEXT])","v":"Intake & Assessments"}]
[2369,140,"Y",268,"PERCENT","OUTPUT","BLACKBOOK",null,null,null,null,"Intake & Assessments (140)","6-Hour Minor In Possession # of clients","6-Hour Minor In Possession # of clients referred to class",{"$f":"_xlfn.XLOOKUP(Measures_Table[[#This Row],[PM Program]],Programs_Active20[ZSBPPROGM (KEY)],Programs_Active20[LONG TEXT])","v":"Intake & Assessments"}]
[2370,140,"Y",268,"PERCENT","EFFICIENCY","BLACKBOOK",null,null,null,null,"Intake & Assessments (140)","6-Hour Minor In Possession # of clients","6-Hour Minor In Possession # of clients completing",{"$f":"_xlfn.XLOOKUP(Measures_Table[[#This Row],[PM Program]],Programs_Active20[ZSBPPROGM (KEY)],Programs_Active20[LONG TEXT])","v":"Intake & Assessments"}]
[2371,140,"Y",268,"PERCENT","EFFICIENCY","BLACKBOOK",null,null,null,null,"Intake & Assessments (140)","6-Hour Minor In Possession # of classes","6-Hour Minor In Possession # of classes",{"$f":"_xlfn.XLOOKUP(Measures_Table[[#This Row],[PM Program]],Programs_Active20[ZSBPPROGM (KEY)],Programs_Active20[LONG TEXT])","v":"Intake & Assessments"}]
[2372,140,"Y",268,"PERCENT","EFFICIENCY","ADOPTEDBUD",null,null,null,null,"Intake & Assessments (140)","Total # of Crime Victims served","Total # of Crime Victims served",{"$f":"_xlfn.XLOOKUP(Measures_Table[[#This Row],[PM Program]],Programs_Active20[ZSBPPROGM (KEY)],Programs_Active20[LONG TEXT])","v":"Intake & Assessments"}]
[2373,140,"Y",269,"EACH","OUTPUT","ADOPTEDBUD",null,null,null,null,"Alcohol & Drug Classes/Programs (140)","Amount of funding expended","Amount of funding expended",{"$f":"_xlfn.XLOOKUP(Measures_Table[[#This Row],[PM Program]],Programs_Active20[ZSBPPROGM (KEY)],Programs_Active20[LONG TEXT])","v":"Alcohol & Drug Classes/Programs"}]
[2374,140,"Y",269,"EACH","OUTPUT","ADOPTEDBUD",null,null,null,null,"Alcohol & Drug Classes/Programs (140)","Total Volunteer Service Hours","Total Volunteer Service Hours",{"$f":"_xlfn.XLOOKUP(Measures_Table[[#This Row],[PM Program]],Programs_Active20[ZSBPPROGM (KEY)],Programs_Active20[LONG TEXT])","v":"Alcohol & Drug Classes/Programs"}]
[2375,140,"Y",269,"EACH","OUTPUT","ADOPTEDBUD",null,null,null,null,"Alcohol & Drug Classes/Programs (140)","Cost of Volunteer Service Hours ($24.66","Cost of Volunteer Service Hours ($24.66 -2014)",{"$f":"_xlfn.XLOOKUP(Measures_Table[[#This Row],[PM Program]],Programs_Active20[ZSBPPROGM (KEY)],Programs_Active20[LONG TEXT])","v":"Alcohol & Drug Classes/Programs"}]
[2376,140,"Y",269,"EACH","OUTPUT","BLACKBOOK",null,null,null,null,"Alcohol & Drug Classes/Programs (140)","Total # of AOD Asmts & Family Violence A","Total # of AOD Asmts & Family Violence Asmts",{"$f":"_xlfn.XLOOKUP(Measures_Table[[#This Row],[PM Program]],Programs_Active20[ZSBPPROGM (KEY)],Programs_Active20[LONG TEXT])","v":"Alcohol & Drug Classes/Programs"}]
[2377,140,"Y",269,"HOURS","EFFICIENCY","BLACKBOOK",null,null,null,null,"Alcohol & Drug Classes/Programs (140)","# of Electronic ASI’s completed (Phase 1","# of Electronic ASI’s completed (Phase 1)",{"$f":"_xlfn.XLOOKUP(Measures_Table[[#This Row],[PM Program]],Programs_Active20[ZSBPPROGM (KEY)],Programs_Active20[LONG TEXT])","v":"Alcohol & Drug Classes/Programs"}]
[2378,140,"Y",269,"PERCENT","OUTCOME","BLACKBOOK",null,null,null,null,"Alcohol & Drug Classes/Programs (140)","# of AOD Asmts completed (Phase 2)","# of AOD Asmts completed (Phase 2)",{"$f":"_xlfn.XLOOKUP(Measures_Table[[#This Row],[PM Program]],Programs_Active20[ZSBPPROGM (KEY)],Programs_Active20[LONG TEXT])","v":"Alcohol & Drug Classes/Programs"}]
[2379,140,"Y",269,"EACH","OUTPUT","BLACKBOOK",null,null,null,null,"Alcohol & Drug Classes/Programs (140)","# of Family Violence Asmts completed","# of Family Violence Asmts completed",{"$f":"_xlfn.XLOOKUP(Measures_Table[[#This Row],[PM Program]],Programs_Active20[ZSBPPROGM (KEY)],Programs_Active20[LONG TEXT])","v":"Alcohol & Drug Classes/Programs"}]
[2380,140,"Y",269,"EACH","OUTPUT","BLACKBOOK",null,null,null,null,"Alcohol & Drug Classes/Programs (140)","Alcohol and other Drug Total # referred","Alcohol and other Drug Total # referred",{"$f":"_xlfn.XLOOKUP(Measures_Table[[#This Row],[PM Program]],Programs_Active20[ZSBPPROGM (KEY)],Programs_Active20[LONG TEXT])","v":"Alcohol & Drug Classes/Programs"}]
[2381,140,"Y",269,"EACH","OUTPUT","BLACKBOOK",null,null,null,null,"Alcohol & Drug Classes/Programs (140)","Alcohol and other Drug # of Pretrial","Alcohol and other Drug # of Pretrial",{"$f":"_xlfn.XLOOKUP(Measures_Table[[#This Row],[PM Program]],Programs_Active20[ZSBPPROGM (KEY)],Programs_Active20[LONG TEXT])","v":"Alcohol & Drug Classes/Programs"}]
[2382,140,"Y",269,"EACH","OUTPUT","BLACKBOOK",null,null,null,null,"Alcohol & Drug Classes/Programs (140)","Alcohol and other Drug # of Probation","Alcohol and other Drug # of Probation",{"$f":"_xlfn.XLOOKUP(Measures_Table[[#This Row],[PM Program]],Programs_Active20[ZSBPPROGM (KEY)],Programs_Active20[LONG TEXT])","v":"Alcohol & Drug Classes/Programs"}]
[2383,140,"Y",269,"EACH","OUTPUT","BLACKBOOK",null,null,null,null,"Alcohol & Drug Classes/Programs (140)","Alcohol and other Drug # of Other","Alcohol and other Drug # of Other",{"$f":"_xlfn.XLOOKUP(Measures_Table[[#This Row],[PM Program]],Programs_Active20[ZSBPPROGM (KEY)],Programs_Active20[LONG TEXT])","v":"Alcohol & Drug Classes/Programs"}]
[2384,140,"Y",269,"PERCENT","OUTCOME","BLACKBOOK",null,null,null,null,"Alcohol & Drug Classes/Programs (140)","% of Spanish AOD Asmts","% of Spanish AOD Asmts",{"$f":"_xlfn.XLOOKUP(Measures_Table[[#This Row],[PM Program]],Programs_Active20[ZSBPPROGM (KEY)],Programs_Active20[LONG TEXT])","v":"Alcohol & Drug Classes/Programs"}]
[2385,140,"Y",269,"EACH","OUTPUT","BLACKBOOK",null,null,null,null,"Alcohol & Drug Classes/Programs (140)","% of AOD with MH needs","% of AOD with MH needs",{"$f":"_xlfn.XLOOKUP(Measures_Table[[#This Row],[PM Program]],Programs_Active20[ZSBPPROGM (KEY)],Programs_Active20[LONG TEXT])","v":"Alcohol & Drug Classes/Programs"}]
[2386,140,"Y",269,"EACH","OUTPUT","BLACKBOOK",null,null,null,null,"Alcohol & Drug Classes/Programs (140)","% of clients completing AOD Asmt within","% of clients completing AOD Asmt within thirty days after referral date.",{"$f":"_xlfn.XLOOKUP(Measures_Table[[#This Row],[PM Program]],Programs_Active20[ZSBPPROGM (KEY)],Programs_Active20[LONG TEXT])","v":"Alcohol & Drug Classes/Programs"}]
[2387,140,"Y",269,"EACH","OUTPUT","BLACKBOOK",null,null,null,null,"Alcohol & Drug Classes/Programs (140)","% of clients receiving final court dispo","% of clients receiving final court disposition within 180 days after completing AOD Asmt.",{"$f":"_xlfn.XLOOKUP(Measures_Table[[#This Row],[PM Program]],Programs_Active20[ZSBPPROGM (KEY)],Programs_Active20[LONG TEXT])","v":"Alcohol & Drug Classes/Programs"}]
[2388,140,"Y",269,"EACH","OUTPUT","BLACKBOOK",null,null,null,null,"Alcohol & Drug Classes/Programs (140)","% of clients receiving final court dispo","% of clients receiving final court disposition within 1 year after completing AOD Asmt.",{"$f":"_xlfn.XLOOKUP(Measures_Table[[#This Row],[PM Program]],Programs_Active20[ZSBPPROGM (KEY)],Programs_Active20[LONG TEXT])","v":"Alcohol & Drug Classes/Programs"}]
[2389,140,"Y",269,"EACH","OUTPUT","BLACKBOOK",null,null,null,null,"Alcohol & Drug Classes/Programs (140)","Family Violence Total # referred","Family Violence Total # referred",{"$f":"_xlfn.XLOOKUP(Measures_Table[[#This Row],[PM Program]],Programs_Active20[ZSBPPROGM (KEY)],Programs_Active20[LONG TEXT])","v":"Alcohol & Drug Classes/Programs"}]
[2390,140,"Y",269,"EACH","OUTPUT","BLACKBOOK",null,null,null,null,"Alcohol & Drug Classes/Programs (140)","Family Violence # of Pretrial","Family Violence # of Pretrial",{"$f":"_xlfn.XLOOKUP(Measures_Table[[#This Row],[PM Program]],Programs_Active20[ZSBPPROGM (KEY)],Programs_Active20[LONG TEXT])","v":"Alcohol & Drug Classes/Programs"}]
[2391,140,"Y",269,"EACH","OUTPUT","BLACKBOOK",null,null,null,null,"Alcohol & Drug Classes/Programs (140)","Family Violence # of Probation","Family Violence # of Probation",{"$f":"_xlfn.XLOOKUP(Measures_Table[[#This Row],[PM Program]],Programs_Active20[ZSBPPROGM (KEY)],Programs_Active20[LONG TEXT])","v":"Alcohol & Drug Classes/Programs"}]
[2392,140,"Y",269,"EACH","OUTPUT","BLACKBOOK",null,null,null,null,"Alcohol & Drug Classes/Programs (140)","Family Violence # of Other","Family Violence # of Other",{"$f":"_xlfn.XLOOKUP(Measures_Table[[#This Row],[PM Program]],Programs_Active20[ZSBPPROGM (KEY)],Programs_Active20[LONG TEXT])","v":"Alcohol & Drug Classes/Programs"}]
[2393,140,"Y",269,"EACH","OUTPUT","BLACKBOOK",null,null,null,null,"Alcohol & Drug Classes/Programs (140)","% of FV Asmts with AOD Recommendations","% of FV Asmts with AOD Recommendations",{"$f":"_xlfn.XLOOKUP(Measures_Table[[#This Row],[PM Program]],Programs_Active20[ZSBPPROGM (KEY)],Programs_Active20[LONG TEXT])","v":"Alcohol & Drug Classes/Programs"}]
[2394,140,"Y",269,"EACH","OUTPUT","BLACKBOOK",null,null,null,null,"Alcohol & Drug Classes/Programs (140)","% of Spanish FV Asmts","% of Spanish FV Asmts",{"$f":"_xlfn.XLOOKUP(Measures_Table[[#This Row],[PM Program]],Programs_Active20[ZSBPPROGM (KEY)],Programs_Active20[LONG TEXT])","v":"Alcohol & Drug Classes/Programs"}]
[2395,140,"Y",269,"PERCENT","OUTCOME","ADOPTEDBUD",null,null,null,null,"Alcohol & Drug Classes/Programs (140)","% of FV with MH needs","% of FV with MH needs",{"$f":"_xlfn.XLOOKUP(Measures_Table[[#This Row],[PM Program]],Programs_Active20[ZSBPPROGM (KEY)],Programs_Active20[LONG TEXT])","v":"Alcohol & Drug Classes/Programs"}]
[2396,140,"Y",269,"EACH","OUTPUT","BLACKBOOK",null,null,null,null,"Alcohol & Drug Classes/Programs (140)","% of Enhanced/Felony FV Asmts","% of Enhanced/Felony FV Asmts",{"$f":"_xlfn.XLOOKUP(Measures_Table[[#This Row],[PM Program]],Programs_Active20[ZSBPPROGM (KEY)],Programs_Active20[LONG TEXT])","v":"Alcohol & Drug Classes/Programs"}]
[2397,140,"Y",269,"EACH","OUTPUT","BLACKBOOK",null,null,null,null,"Alcohol & Drug Classes/Programs (140)","% of clients completing FV Asmt within t","% of clients completing FV Asmt within thirty days after referral date.",{"$f":"_xlfn.XLOOKUP(Measures_Table[[#This Row],[PM Program]],Programs_Active20[ZSBPPROGM (KEY)],Programs_Active20[LONG TEXT])","v":"Alcohol & Drug Classes/Programs"}]
[2398,140,"Y",269,"EACH","OUTPUT","BLACKBOOK",null,null,null,null,"Alcohol & Drug Classes/Programs (140)","% of clients receiving final court dispo","% of clients receiving final court disposition within 180 days after completing FV Asmt.",{"$f":"_xlfn.XLOOKUP(Measures_Table[[#This Row],[PM Program]],Programs_Active20[ZSBPPROGM (KEY)],Programs_Active20[LONG TEXT])","v":"Alcohol & Drug Classes/Programs"}]
[2400,140,"Y",269,"EACH","OUTPUT","BLACKBOOK",null,null,null,null,"Alcohol & Drug Classes/Programs (140)","Total # of clients registered in AOD cla","Total # of clients registered in AOD classes",{"$f":"_xlfn.XLOOKUP(Measures_Table[[#This Row],[PM Program]],Programs_Active20[ZSBPPROGM (KEY)],Programs_Active20[LONG TEXT])","v":"Alcohol & Drug Classes/Programs"}]
[2401,140,"Y",269,"EACH","OUTPUT","BLACKBOOK",null,null,null,null,"Alcohol & Drug Classes/Programs (140)","Total # of clients completing AOD classe","Total # of clients completing AOD classes",{"$f":"_xlfn.XLOOKUP(Measures_Table[[#This Row],[PM Program]],Programs_Active20[ZSBPPROGM (KEY)],Programs_Active20[LONG TEXT])","v":"Alcohol & Drug Classes/Programs"}]
[2402,140,"Y",269,"EACH","OUTPUT","BLACKBOOK",null,null,null,null,"Alcohol & Drug Classes/Programs (140)","Total # of AOD classes","Total # of AOD classes",{"$f":"_xlfn.XLOOKUP(Measures_Table[[#This Row],[PM Program]],Programs_Active20[ZSBPPROGM (KEY)],Programs_Active20[LONG TEXT])","v":"Alcohol & Drug Classes/Programs"}]
[2403,140,"Y",269,"EACH","OUTPUT","BLACKBOOK",null,null,null,null,"Alcohol & Drug Classes/Programs (140)","ECLASS # of class registrations","ECLASS # of class registrations",{"$f":"_xlfn.XLOOKUP(Measures_Table[[#This Row],[PM Program]],Programs_Active20[ZSBPPROGM (KEY)],Programs_Active20[LONG TEXT])","v":"Alcohol & Drug Classes/Programs"}]
[2404,140,"Y",269,"EACH","OUTPUT","BLACKBOOK",null,null,null,null,"Alcohol & Drug Classes/Programs (140)","Total # of Counselor hours saved","Total # of Counselor hours saved",{"$f":"_xlfn.XLOOKUP(Measures_Table[[#This Row],[PM Program]],Programs_Active20[ZSBPPROGM (KEY)],Programs_Active20[LONG TEXT])","v":"Alcohol & Drug Classes/Programs"}]
[2405,140,"Y",269,"EACH","OUTPUT","BLACKBOOK",null,null,null,null,"Alcohol & Drug Classes/Programs (140)","% of clients successfully completing cla","% of clients successfully completing classes",{"$f":"_xlfn.XLOOKUP(Measures_Table[[#This Row],[PM Program]],Programs_Active20[ZSBPPROGM (KEY)],Programs_Active20[LONG TEXT])","v":"Alcohol & Drug Classes/Programs"}]
[2406,140,"Y",269,"EACH","OUTPUT","BLACKBOOK",null,null,null,null,"Alcohol & Drug Classes/Programs (140)","12-Hour DWI Education Class # of clients","12-Hour DWI Education Class # of clients registered",{"$f":"_xlfn.XLOOKUP(Measures_Table[[#This Row],[PM Program]],Programs_Active20[ZSBPPROGM (KEY)],Programs_Active20[LONG TEXT])","v":"Alcohol & Drug Classes/Programs"}]
[2407,140,"Y",269,"EACH","OUTPUT","BLACKBOOK",null,null,null,null,"Alcohol & Drug Classes/Programs (140)","12-Hour DWI Education Class # of clients","12-Hour DWI Education Class # of clients completing",{"$f":"_xlfn.XLOOKUP(Measures_Table[[#This Row],[PM Program]],Programs_Active20[ZSBPPROGM (KEY)],Programs_Active20[LONG TEXT])","v":"Alcohol & Drug Classes/Programs"}]
[2408,140,"Y",269,"EACH","OUTPUT","BLACKBOOK",null,null,null,null,"Alcohol & Drug Classes/Programs (140)","12-Hour DWI Education Class Total # of c","12-Hour DWI Education Class Total # of classes",{"$f":"_xlfn.XLOOKUP(Measures_Table[[#This Row],[PM Program]],Programs_Active20[ZSBPPROGM (KEY)],Programs_Active20[LONG TEXT])","v":"Alcohol & Drug Classes/Programs"}]
[2409,140,"Y",269,"PERCENT","OUTCOME","BLACKBOOK",null,null,null,null,"Alcohol & Drug Classes/Programs (140)","12-Hour DWI Education Class # In English","12-Hour DWI Education Class # In English",{"$f":"_xlfn.XLOOKUP(Measures_Table[[#This Row],[PM Program]],Programs_Active20[ZSBPPROGM (KEY)],Programs_Active20[LONG TEXT])","v":"Alcohol & Drug Classes/Programs"}]
[2410,140,"Y",269,"EACH","OUTPUT","BLACKBOOK",null,null,null,null,"Alcohol & Drug Classes/Programs (140)","12-Hour DWI Education Class # In Spanish","12-Hour DWI Education Class # In Spanish",{"$f":"_xlfn.XLOOKUP(Measures_Table[[#This Row],[PM Program]],Programs_Active20[ZSBPPROGM (KEY)],Programs_Active20[LONG TEXT])","v":"Alcohol & Drug Classes/Programs"}]
[2411,140,"Y",269,"EACH","OUTPUT","BLACKBOOK",null,null,null,null,"Alcohol & Drug Classes/Programs (140)","Pre-Test/Post Test % increase in Knowled","Pre-Test/Post Test % increase in Knowledge",{"$f":"_xlfn.XLOOKUP(Measures_Table[[#This Row],[PM Program]],Programs_Active20[ZSBPPROGM (KEY)],Programs_Active20[LONG TEXT])","v":"Alcohol & Drug Classes/Programs"}]
[2412,140,"Y",269,"EACH","OUTPUT","BLACKBOOK",null,null,null,null,"Alcohol & Drug Classes/Programs (140)","30-Hour DWI Intervention # of clients re","30-Hour DWI Intervention # of clients registered",{"$f":"_xlfn.XLOOKUP(Measures_Table[[#This Row],[PM Program]],Programs_Active20[ZSBPPROGM (KEY)],Programs_Active20[LONG TEXT])","v":"Alcohol & Drug Classes/Programs"}]
[2413,140,"Y",269,"EACH","OUTPUT","BLACKBOOK",null,null,null,null,"Alcohol & Drug Classes/Programs (140)","30-Hour DWI Intervention # of clients co","30-Hour DWI Intervention # of clients completing",{"$f":"_xlfn.XLOOKUP(Measures_Table[[#This Row],[PM Program]],Programs_Active20[ZSBPPROGM (KEY)],Programs_Active20[LONG TEXT])","v":"Alcohol & Drug Classes/Programs"}]
[2414,140,"Y",269,"EACH","OUTPUT","BLACKBOOK",null,null,null,null,"Alcohol & Drug Classes/Programs (140)","30-Hour DWI Intervention Total # of clas","30-Hour DWI Intervention Total # of classes",{"$f":"_xlfn.XLOOKUP(Measures_Table[[#This Row],[PM Program]],Programs_Active20[ZSBPPROGM (KEY)],Programs_Active20[LONG TEXT])","v":"Alcohol & Drug Classes/Programs"}]
[2415,140,"Y",269,"EACH","OUTPUT","BLACKBOOK",null,null,null,null,"Alcohol & Drug Classes/Programs (140)","30-Hour DWI Intervention # In English","30-Hour DWI Intervention # In English",{"$f":"_xlfn.XLOOKUP(Measures_Table[[#This Row],[PM Program]],Programs_Active20[ZSBPPROGM (KEY)],Programs_Active20[LONG TEXT])","v":"Alcohol & Drug Classes/Programs"}]
[2416,140,"Y",269,"EACH","OUTPUT","BLACKBOOK",null,null,null,null,"Alcohol & Drug Classes/Programs (140)","30-Hour DWI Intervention # In Spanish","30-Hour DWI Intervention # In Spanish",{"$f":"_xlfn.XLOOKUP(Measures_Table[[#This Row],[PM Program]],Programs_Active20[ZSBPPROGM (KEY)],Programs_Active20[LONG TEXT])","v":"Alcohol & Drug Classes/Programs"}]
[2417,140,"Y",269,"EACH","OUTPUT","BLACKBOOK",null,null,null,null,"Alcohol & Drug Classes/Programs (140)","15-Hour Drug Edu. Class # of clients reg","15-Hour Drug Edu. Class # of clients registered",{"$f":"_xlfn.XLOOKUP(Measures_Table[[#This Row],[PM Program]],Programs_Active20[ZSBPPROGM (KEY)],Programs_Active20[LONG TEXT])","v":"Alcohol & Drug Classes/Programs"}]
[2418,140,"Y",269,"EACH","OUTPUT","BLACKBOOK",null,null,null,null,"Alcohol & Drug Classes/Programs (140)","15-Hour Drug Edu. Class # of clients com","15-Hour Drug Edu. Class # of clients completing",{"$f":"_xlfn.XLOOKUP(Measures_Table[[#This Row],[PM Program]],Programs_Active20[ZSBPPROGM (KEY)],Programs_Active20[LONG TEXT])","v":"Alcohol & Drug Classes/Programs"}]
[2419,140,"Y",269,"PERCENT","OUTCOME","ADOPTEDBUD",null,null,null,null,"Alcohol & Drug Classes/Programs (140)","15-Hour Drug Edu. Class Total # of class","15-Hour Drug Edu. Class Total # of classes",{"$f":"_xlfn.XLOOKUP(Measures_Table[[#This Row],[PM Program]],Programs_Active20[ZSBPPROGM (KEY)],Programs_Active20[LONG TEXT])","v":"Alcohol & Drug Classes/Programs"}]
[2420,140,"Y",269,"PERCENT","OUTCOME","BLACKBOOK",null,null,null,null,"Alcohol & Drug Classes/Programs (140)","15-Hour Drug Edu. Class # In English","15-Hour Drug Edu. Class # In English",{"$f":"_xlfn.XLOOKUP(Measures_Table[[#This Row],[PM Program]],Programs_Active20[ZSBPPROGM (KEY)],Programs_Active20[LONG TEXT])","v":"Alcohol & Drug Classes/Programs"}]
[2421,140,"Y",269,"PERCENT","OUTCOME","BLACKBOOK",null,null,null,null,"Alcohol & Drug Classes/Programs (140)","15-Hour Drug Edu. Class # In Spanish","15-Hour Drug Edu. Class # In Spanish",{"$f":"_xlfn.XLOOKUP(Measures_Table[[#This Row],[PM Program]],Programs_Active20[ZSBPPROGM (KEY)],Programs_Active20[LONG TEXT])","v":"Alcohol & Drug Classes/Programs"}]
[2422,140,"Y",269,"PERCENT","OUTCOME","BLACKBOOK",null,null,null,null,"Alcohol & Drug Classes/Programs (140)","Pre-Test/Post Test % increase in Knowled","Pre-Test/Post Test % increase in Knowledge",{"$f":"_xlfn.XLOOKUP(Measures_Table[[#This Row],[PM Program]],Programs_Active20[ZSBPPROGM (KEY)],Programs_Active20[LONG TEXT])","v":"Alcohol & Drug Classes/Programs"}]
[2423,140,"Y",265,"EACH","OUTPUT","BLACKBOOK",null,null,null,null,"Adult Education Classes (140)","8-Hour AOD Education Class # of clients","8-Hour AOD Education Class # of clients registered",{"$f":"_xlfn.XLOOKUP(Measures_Table[[#This Row],[PM Program]],Programs_Active20[ZSBPPROGM (KEY)],Programs_Active20[LONG TEXT])","v":"Adult Education Classes"}]
[2424,140,"Y",265,"EACH","OUTPUT","BLACKBOOK",null,null,null,null,"Adult Education Classes (140)","8-Hour AOD Education Class # of clients","8-Hour AOD Education Class # of clients completing",{"$f":"_xlfn.XLOOKUP(Measures_Table[[#This Row],[PM Program]],Programs_Active20[ZSBPPROGM (KEY)],Programs_Active20[LONG TEXT])","v":"Adult Education Classes"}]
[2425,140,"Y",265,"EACH","OUTPUT","BLACKBOOK",null,null,null,null,"Adult Education Classes (140)","8-Hour AOD Education Class Total # of cl","8-Hour AOD Education Class Total # of classes",{"$f":"_xlfn.XLOOKUP(Measures_Table[[#This Row],[PM Program]],Programs_Active20[ZSBPPROGM (KEY)],Programs_Active20[LONG TEXT])","v":"Adult Education Classes"}]
[2426,140,"Y",265,"EACH","OUTPUT","BLACKBOOK",null,null,null,null,"Adult Education Classes (140)","8-Hour AOD Education Class # In English","8-Hour AOD Education Class # In English",{"$f":"_xlfn.XLOOKUP(Measures_Table[[#This Row],[PM Program]],Programs_Active20[ZSBPPROGM (KEY)],Programs_Active20[LONG TEXT])","v":"Adult Education Classes"}]
[2427,140,"Y",265,"EACH","OUTPUT","BLACKBOOK",null,null,null,null,"Adult Education Classes (140)","8-Hour AOD Education Class # In Spanish","8-Hour AOD Education Class # In Spanish",{"$f":"_xlfn.XLOOKUP(Measures_Table[[#This Row],[PM Program]],Programs_Active20[ZSBPPROGM (KEY)],Programs_Active20[LONG TEXT])","v":"Adult Education Classes"}]
[2428,140,"Y",265,"EACH","OUTPUT","BLACKBOOK",null,null,null,null,"Adult Education Classes (140)","12-Hour AOD Education Class # of clients","12-Hour AOD Education Class # of clients registered",{"$f":"_xlfn.XLOOKUP(Measures_Table[[#This Row],[PM Program]],Programs_Active20[ZSBPPROGM (KEY)],Programs_Active20[LONG TEXT])","v":"Adult Education Classes"}]
[2429,140,"Y",265,"EACH","OUTPUT","BLACKBOOK",null,null,null,null,"Adult Education Classes (140)","12-Hour AOD Education Class # of clients","12-Hour AOD Education Class # of clients completing",{"$f":"_xlfn.XLOOKUP(Measures_Table[[#This Row],[PM Program]],Programs_Active20[ZSBPPROGM (KEY)],Programs_Active20[LONG TEXT])","v":"Adult Education Classes"}]
[2430,140,"Y",265,"EACH","OUTPUT","BLACKBOOK",null,null,null,null,"Adult Education Classes (140)","12-Hour AOD Education Class Total # of c","12-Hour AOD Education Class Total # of classes",{"$f":"_xlfn.XLOOKUP(Measures_Table[[#This Row],[PM Program]],Programs_Active20[ZSBPPROGM (KEY)],Programs_Active20[LONG TEXT])","v":"Adult Education Classes"}]
[2431,139,"Y",264,"PERCENT","OUTCOME","ADOPTEDBUD",null,null,null,null,"Adult Probation CSCD  (139)","12-Hour AOD Education Class # In English","12-Hour AOD Education Class # In English",{"$f":"_xlfn.XLOOKUP(Measures_Table[[#This Row],[PM Program]],Programs_Active20[ZSBPPROGM (KEY)],Programs_Active20[LONG TEXT])","v":"Adult Probation CSCD"}]
[2432,139,"Y",264,"PERCENT","OUTCOME","ADOPTEDBUD",null,null,null,null,"Adult Probation CSCD  (139)","12-Hour AOD Education Class # In Spanish","12-Hour AOD Education Class # In Spanish",{"$f":"_xlfn.XLOOKUP(Measures_Table[[#This Row],[PM Program]],Programs_Active20[ZSBPPROGM (KEY)],Programs_Active20[LONG TEXT])","v":"Adult Probation CSCD"}]
[2433,139,"Y",264,"PERCENT","OUTCOME","ADOPTEDBUD",null,null,null,null,"Adult Probation CSCD  (139)","6-Hour Minor In Possession # of clients","6-Hour Minor In Possession # of clients registered",{"$f":"_xlfn.XLOOKUP(Measures_Table[[#This Row],[PM Program]],Programs_Active20[ZSBPPROGM (KEY)],Programs_Active20[LONG TEXT])","v":"Adult Probation CSCD"}]
[2434,139,"Y",264,"PERCENT","OUTCOME","ADOPTEDBUD",null,null,null,null,"Adult Probation CSCD  (139)","6-Hour Minor In Possession # of clients","6-Hour Minor In Possession # of clients completing",{"$f":"_xlfn.XLOOKUP(Measures_Table[[#This Row],[PM Program]],Programs_Active20[ZSBPPROGM (KEY)],Programs_Active20[LONG TEXT])","v":"Adult Probation CSCD"}]
[2436,142,"Y",272,"EACH","INPUT","ADOPTEDBUD",null,null,null,null,"Investigations (142)","Pre-Test/Post Test % increase in Knowled","Pre-Test/Post Test % increase in Knowledge",{"$f":"_xlfn.XLOOKUP(Measures_Table[[#This Row],[PM Program]],Programs_Active20[ZSBPPROGM (KEY)],Programs_Active20[LONG TEXT])","v":"Investigations"}]
[2437,142,"Y",272,"EACH","INPUT","ADOPTEDBUD",null,null,null,null,"Investigations (142)","8-Hour Public Intoxication # of clients","8-Hour Public Intoxication # of clients registered",{"$f":"_xlfn.XLOOKUP(Measures_Table[[#This Row],[PM Program]],Programs_Active20[ZSBPPROGM (KEY)],Programs_Active20[LONG TEXT])","v":"Investigations"}]
[2438,142,"Y",272,"EACH","INPUT","ADOPTEDBUD",null,null,null,null,"Investigations (142)","8-Hour Public Intoxication # of clients","8-Hour Public Intoxication # of clients completing",{"$f":"_xlfn.XLOOKUP(Measures_Table[[#This Row],[PM Program]],Programs_Active20[ZSBPPROGM (KEY)],Programs_Active20[LONG TEXT])","v":"Investigations"}]
[2439,142,"Y",272,"EACH","INPUT","ADOPTEDBUD",null,null,null,null,"Investigations (142)","8-Hour Public Intoxication Total # of cl","8-Hour Public Intoxication Total # of classes",{"$f":"_xlfn.XLOOKUP(Measures_Table[[#This Row],[PM Program]],Programs_Active20[ZSBPPROGM (KEY)],Programs_Active20[LONG TEXT])","v":"Investigations"}]
[2440,142,"Y",272,"EACH","INPUT","ADOPTEDBUD",null,null,null,null,"Investigations (142)","8-Hour Marijuana # of clients registered","8-Hour Marijuana # of clients registered",{"$f":"_xlfn.XLOOKUP(Measures_Table[[#This Row],[PM Program]],Programs_Active20[ZSBPPROGM (KEY)],Programs_Active20[LONG TEXT])","v":"Investigations"}]
[2441,142,"Y",272,"EACH","OUTCOME","ADOPTEDBUD",null,null,null,null,"Investigations (142)","8-Hour Marijuana # of clients completing","8-Hour Marijuana # of clients completing",{"$f":"_xlfn.XLOOKUP(Measures_Table[[#This Row],[PM Program]],Programs_Active20[ZSBPPROGM (KEY)],Programs_Active20[LONG TEXT])","v":"Investigations"}]
[2442,142,"Y",272,"EACH","OUTCOME","ADOPTEDBUD",null,null,null,null,"Investigations (142)","8-Hour Marijuana Total # of classes","8-Hour Marijuana Total # of classes",{"$f":"_xlfn.XLOOKUP(Measures_Table[[#This Row],[PM Program]],Programs_Active20[ZSBPPROGM (KEY)],Programs_Active20[LONG TEXT])","v":"Investigations"}]
[2443,142,"Y",272,"PERCENT","EFFICIENCY","ADOPTEDBUD",null,null,null,null,"Investigations (142)","45-Hour Cognitive Behavior  # of clients","45-Hour Cognitive Behavior  # of clients registered",{"$f":"_xlfn.XLOOKUP(Measures_Table[[#This Row],[PM Program]],Programs_Active20[ZSBPPROGM (KEY)],Programs_Active20[LONG TEXT])","v":"Investigations"}]
[2444,142,"Y",272,"PERCENT","OUTCOME","ADOPTEDBUD",null,null,null,null,"Investigations (142)","45-Hour Cognitive Behavior  # of clients","45-Hour Cognitive Behavior  # of clients completing",{"$f":"_xlfn.XLOOKUP(Measures_Table[[#This Row],[PM Program]],Programs_Active20[ZSBPPROGM (KEY)],Programs_Active20[LONG TEXT])","v":"Investigations"}]
[2445,142,"Y",272,"PERCENT","EFFICIENCY","ADOPTEDBUD",null,null,null,null,"Investigations (142)","45-Hour Cognitive Behavior  Total # of c","45-Hour Cognitive Behavior  Total # of classes",{"$f":"_xlfn.XLOOKUP(Measures_Table[[#This Row],[PM Program]],Programs_Active20[ZSBPPROGM (KEY)],Programs_Active20[LONG TEXT])","v":"Investigations"}]
[2446,142,"Y",272,"PERCENT","OUTCOME","ADOPTEDBUD",null,null,null,null,"Investigations (142)","CES “Client Evaluation” % of clients tha","CES “Client Evaluation” % of clients that felt benefited of increased knowledge",{"$f":"_xlfn.XLOOKUP(Measures_Table[[#This Row],[PM Program]],Programs_Active20[ZSBPPROGM (KEY)],Programs_Active20[LONG TEXT])","v":"Investigations"}]
[2447,142,"Y",272,"PERCENT","EFFICIENCY","ADOPTEDBUD",null,null,null,null,"Investigations (142)","% of clients that felt this class will h","% of clients that felt this class will help avoid future law violations",{"$f":"_xlfn.XLOOKUP(Measures_Table[[#This Row],[PM Program]],Programs_Active20[ZSBPPROGM (KEY)],Programs_Active20[LONG TEXT])","v":"Investigations"}]
[2448,142,"Y",272,"PERCENT","OUTCOME","ADOPTEDBUD",null,null,null,null,"Investigations (142)","% of clients that felt they gained insig","% of clients that felt they gained insight to new ideas and available resources",{"$f":"_xlfn.XLOOKUP(Measures_Table[[#This Row],[PM Program]],Programs_Active20[ZSBPPROGM (KEY)],Programs_Active20[LONG TEXT])","v":"Investigations"}]
[2449,142,"Y",272,"PERCENT","OUTCOME","ADOPTEDBUD",null,null,null,null,"Investigations (142)","% of client’s stated scheduling for the","% of client’s stated scheduling for the class was convenient.",{"$f":"_xlfn.XLOOKUP(Measures_Table[[#This Row],[PM Program]],Programs_Active20[ZSBPPROGM (KEY)],Programs_Active20[LONG TEXT])","v":"Investigations"}]
[2450,142,"Y",270,"EACH","INPUT","ADOPTEDBUD",null,null,null,null,"Case Management (142)","12-Hour Cognitive Life Skills I (CL1) #","12-Hour Cognitive Life Skills I (CL1) # of clients referred to class",{"$f":"_xlfn.XLOOKUP(Measures_Table[[#This Row],[PM Program]],Programs_Active20[ZSBPPROGM (KEY)],Programs_Active20[LONG TEXT])","v":"Case Management"}]
[2451,142,"Y",270,"EACH","INPUT","ADOPTEDBUD",null,null,null,null,"Case Management (142)","12-Hour Cognitive Life Skills I (CL1) #","12-Hour Cognitive Life Skills I (CL1) # of clients completing",{"$f":"_xlfn.XLOOKUP(Measures_Table[[#This Row],[PM Program]],Programs_Active20[ZSBPPROGM (KEY)],Programs_Active20[LONG TEXT])","v":"Case Management"}]
[2452,142,"Y",270,"EACH","INPUT","ADOPTEDBUD",null,null,null,null,"Case Management (142)","12-Hour Cognitive Life Skills I (CL1) #","12-Hour Cognitive Life Skills I (CL1) # of classes",{"$f":"_xlfn.XLOOKUP(Measures_Table[[#This Row],[PM Program]],Programs_Active20[ZSBPPROGM (KEY)],Programs_Active20[LONG TEXT])","v":"Case Management"}]
[2453,142,"Y",270,"EACH","INPUT","ADOPTEDBUD",null,null,null,null,"Case Management (142)","8-Hour Prostitution Deterrent Solication","8-Hour Prostitution Deterrent Solication class (John Class) # of client referred to class",{"$f":"_xlfn.XLOOKUP(Measures_Table[[#This Row],[PM Program]],Programs_Active20[ZSBPPROGM (KEY)],Programs_Active20[LONG TEXT])","v":"Case Management"}]
[2454,142,"Y",270,"EACH","INPUT","ADOPTEDBUD",null,null,null,null,"Case Management (142)","8-Hour Prostitution Deterrent Solication","8-Hour Prostitution Deterrent Solication class (John Class) # of client completing",{"$f":"_xlfn.XLOOKUP(Measures_Table[[#This Row],[PM Program]],Programs_Active20[ZSBPPROGM (KEY)],Programs_Active20[LONG TEXT])","v":"Case Management"}]
[2455,142,"Y",270,"EACH","EFFICIENCY","ADOPTEDBUD",null,null,null,null,"Case Management (142)","8-Hour Prostitution Deterrent Solication","8-Hour Prostitution Deterrent Solication class (John Class) Total # of classes",{"$f":"_xlfn.XLOOKUP(Measures_Table[[#This Row],[PM Program]],Programs_Active20[ZSBPPROGM (KEY)],Programs_Active20[LONG TEXT])","v":"Case Management"}]
[2456,142,"Y",270,"EACH","EFFICIENCY","ADOPTEDBUD",null,null,null,null,"Case Management (142)","8-Hour Prostitution Deterrent Solication","8-Hour Prostitution Deterrent Solication class (John Class)  # In English",{"$f":"_xlfn.XLOOKUP(Measures_Table[[#This Row],[PM Program]],Programs_Active20[ZSBPPROGM (KEY)],Programs_Active20[LONG TEXT])","v":"Case Management"}]
[2457,142,"Y",270,"EACH","EFFICIENCY","ADOPTEDBUD",null,null,null,null,"Case Management (142)","8-Hour Prostitution Deterrent Solication","8-Hour Prostitution Deterrent Solication class (John Class)  # In Spanish",{"$f":"_xlfn.XLOOKUP(Measures_Table[[#This Row],[PM Program]],Programs_Active20[ZSBPPROGM (KEY)],Programs_Active20[LONG TEXT])","v":"Case Management"}]
[2458,142,"Y",270,"EACH","EFFICIENCY","ADOPTEDBUD",null,null,null,null,"Case Management (142)","Misdemeanor technical violations rate","Misdemeanor technical violations rate",{"$f":"_xlfn.XLOOKUP(Measures_Table[[#This Row],[PM Program]],Programs_Active20[ZSBPPROGM (KEY)],Programs_Active20[LONG TEXT])","v":"Case Management"}]
[2459,142,"Y",270,"EACH","EFFICIENCY","ADOPTEDBUD",null,null,null,null,"Case Management (142)","Statewide Misdemeanor technical violatio","Statewide Misdemeanor technical violations rate",{"$f":"_xlfn.XLOOKUP(Measures_Table[[#This Row],[PM Program]],Programs_Active20[ZSBPPROGM (KEY)],Programs_Active20[LONG TEXT])","v":"Case Management"}]
[2460,142,"Y",271,"EACH","INPUT","ADOPTEDBUD",null,null,null,null,"Specialty Courts (142)","Felony technical violations rate","Felony technical violations rate",{"$f":"_xlfn.XLOOKUP(Measures_Table[[#This Row],[PM Program]],Programs_Active20[ZSBPPROGM (KEY)],Programs_Active20[LONG TEXT])","v":"Specialty Courts"}]
[2461,142,"Y",271,"EACH","INPUT","ADOPTEDBUD",null,null,null,null,"Specialty Courts (142)","Statewide Felony technical violations ra","Statewide Felony technical violations rate",{"$f":"_xlfn.XLOOKUP(Measures_Table[[#This Row],[PM Program]],Programs_Active20[ZSBPPROGM (KEY)],Programs_Active20[LONG TEXT])","v":"Specialty Courts"}]
[2462,142,"Y",271,"EACH","OUTPUT","ADOPTEDBUD",null,null,null,null,"Specialty Courts (142)","Number of defendants screened by Pretria","Number of defendants screened by Pretrial Services\n",{"$f":"_xlfn.XLOOKUP(Measures_Table[[#This Row],[PM Program]],Programs_Active20[ZSBPPROGM (KEY)],Programs_Active20[LONG TEXT])","v":"Specialty Courts"}]
[2463,142,"Y",271,"PERCENT","OUTCOME","ADOPTEDBUD",null,null,null,null,"Specialty Courts (142)","Number of defendants eligible for person","Number of defendants eligible for personal bond interview",{"$f":"_xlfn.XLOOKUP(Measures_Table[[#This Row],[PM Program]],Programs_Active20[ZSBPPROGM (KEY)],Programs_Active20[LONG TEXT])","v":"Specialty Courts"}]
[2464,142,"Y",271,"EACH","INPUT","ADOPTEDBUD",null,null,null,null,"Specialty Courts (142)","Number of Personal Bond interviews condu","Number of Personal Bond interviews conducted",{"$f":"_xlfn.XLOOKUP(Measures_Table[[#This Row],[PM Program]],Programs_Active20[ZSBPPROGM (KEY)],Programs_Active20[LONG TEXT])","v":"Specialty Courts"}]
[2465,142,"Y",271,"EACH","INPUT","ADOPTEDBUD",null,null,null,null,"Specialty Courts (142)","Number of Personal Bonds investigated/ r","Number of Personal Bonds investigated/ recommendation made",{"$f":"_xlfn.XLOOKUP(Measures_Table[[#This Row],[PM Program]],Programs_Active20[ZSBPPROGM (KEY)],Programs_Active20[LONG TEXT])","v":"Specialty Courts"}]
[2466,142,"Y",271,"EACH","OUTPUT","ADOPTEDBUD",null,null,null,null,"Specialty Courts (142)","Defendants screened for indigence forms","Defendants screened for indigence forms",{"$f":"_xlfn.XLOOKUP(Measures_Table[[#This Row],[PM Program]],Programs_Active20[ZSBPPROGM (KEY)],Programs_Active20[LONG TEXT])","v":"Specialty Courts"}]
[2467,142,"Y",271,"PERCENT","OUTCOME","ADOPTEDBUD",null,null,null,null,"Specialty Courts (142)","Number of defendants screened for out-of","Number of defendants screened for out-of-custody indigence",{"$f":"_xlfn.XLOOKUP(Measures_Table[[#This Row],[PM Program]],Programs_Active20[ZSBPPROGM (KEY)],Programs_Active20[LONG TEXT])","v":"Specialty Courts"}]
[2469,143,"Y",273,"EACH","INPUT","ADOPTEDBUD",null,null,null,null,"Juvenile Public Defender (143)","Number of Field Release Citation bonds g","Number of Field Release Citation bonds granted",{"$f":"_xlfn.XLOOKUP(Measures_Table[[#This Row],[PM Program]],Programs_Active20[ZSBPPROGM (KEY)],Programs_Active20[LONG TEXT])","v":"Juvenile Public Defender"}]
[2470,143,"Y",273,"EACH","OUTPUT","ADOPTEDBUD",null,null,null,null,"Juvenile Public Defender (143)","% of Low Risk bonds recommended OK","% of Low Risk bonds recommended OK",{"$f":"_xlfn.XLOOKUP(Measures_Table[[#This Row],[PM Program]],Programs_Active20[ZSBPPROGM (KEY)],Programs_Active20[LONG TEXT])","v":"Juvenile Public Defender"}]
[2471,143,"Y",273,"HOURS","OUTPUT","ADOPTEDBUD",null,null,null,null,"Juvenile Public Defender (143)","% of Low Risk bonds granted","% of Low Risk bonds granted",{"$f":"_xlfn.XLOOKUP(Measures_Table[[#This Row],[PM Program]],Programs_Active20[ZSBPPROGM (KEY)],Programs_Active20[LONG TEXT])","v":"Juvenile Public Defender"}]
[2472,143,"Y",273,"EACH","EFFICIENCY","ADOPTEDBUD",null,null,null,null,"Juvenile Public Defender (143)","% of Moderate Risk bonds recommended OK","% of Moderate Risk bonds recommended OK",{"$f":"_xlfn.XLOOKUP(Measures_Table[[#This Row],[PM Program]],Programs_Active20[ZSBPPROGM (KEY)],Programs_Active20[LONG TEXT])","v":"Juvenile Public Defender"}]
[2473,112,"Y",301,"PERCENT","OUTCOME","ADOPTEDBUD",null,null,null,null,"Privacy Office (112)","% of Moderate Risk bonds granted","% of Moderate Risk bonds granted",{"$f":"_xlfn.XLOOKUP(Measures_Table[[#This Row],[PM Program]],Programs_Active20[ZSBPPROGM (KEY)],Programs_Active20[LONG TEXT])","v":"Privacy Office\n"}]
[2481,147,"Y",275,"EACH","OUTPUT","ADOPTEDBUD",null,null,null,null,"Emergency Management (147)","Supervision Cases","Supervision Cases",{"$f":"_xlfn.XLOOKUP(Measures_Table[[#This Row],[PM Program]],Programs_Active20[ZSBPPROGM (KEY)],Programs_Active20[LONG TEXT])","v":"Emergency Management"}]
[2482,147,"Y",275,"EACH","OUTPUT","ADOPTEDBUD",null,null,null,null,"Emergency Management (147)","Alcohol Monitoring Caseload per Officer","Alcohol Monitoring Caseload per Officer",{"$f":"_xlfn.XLOOKUP(Measures_Table[[#This Row],[PM Program]],Programs_Active20[ZSBPPROGM (KEY)],Programs_Active20[LONG TEXT])","v":"Emergency Management"}]
[2483,147,"Y",275,"EACH","OUTPUT","ADOPTEDBUD",null,null,null,null,"Emergency Management (147)","Electronic Monitoring Caseload per Offic","Electronic Monitoring Caseload per Officer",{"$f":"_xlfn.XLOOKUP(Measures_Table[[#This Row],[PM Program]],Programs_Active20[ZSBPPROGM (KEY)],Programs_Active20[LONG TEXT])","v":"Emergency Management"}]
[2484,147,"Y",275,"EACH","OUTPUT","ADOPTEDBUD",null,null,null,null,"Emergency Management (147)","Domestic Violence Caseload per Officer","Domestic Violence Caseload per Officer",{"$f":"_xlfn.XLOOKUP(Measures_Table[[#This Row],[PM Program]],Programs_Active20[ZSBPPROGM (KEY)],Programs_Active20[LONG TEXT])","v":"Emergency Management"}]
[2486,147,"Y",276,"EACH","OUTPUT","ADOPTEDBUD",null,null,null,null,"Fire Marshal (147)","Supervision Caseload per Officer","Supervision Caseload per Officer",{"$f":"_xlfn.XLOOKUP(Measures_Table[[#This Row],[PM Program]],Programs_Active20[ZSBPPROGM (KEY)],Programs_Active20[LONG TEXT])","v":"Fire Marshal"}]
[2487,147,"Y",276,"EACH","OUTPUT","ADOPTEDBUD",null,null,null,null,"Fire Marshal (147)","Drug Ct - Number assessed to participate","Drug Ct - Number assessed to participate in the program",{"$f":"_xlfn.XLOOKUP(Measures_Table[[#This Row],[PM Program]],Programs_Active20[ZSBPPROGM (KEY)],Programs_Active20[LONG TEXT])","v":"Fire Marshal"}]
[2489,147,"Y",276,"EACH","OUTPUT","ADOPTEDBUD",null,null,null,null,"Fire Marshal (147)","Drug Ct - Number of participants served","Drug Ct - Number of participants served in the program",{"$f":"_xlfn.XLOOKUP(Measures_Table[[#This Row],[PM Program]],Programs_Active20[ZSBPPROGM (KEY)],Programs_Active20[LONG TEXT])","v":"Fire Marshal"}]
[2490,147,"Y",276,"EACH","OUTPUT","ADOPTEDBUD",null,null,null,null,"Fire Marshal (147)","Drug Ct - Percentage that successfully c","Drug Ct - Percentage that successfully complete the program",{"$f":"_xlfn.XLOOKUP(Measures_Table[[#This Row],[PM Program]],Programs_Active20[ZSBPPROGM (KEY)],Programs_Active20[LONG TEXT])","v":"Fire Marshal"}]
[2491,147,"Y",276,"EACH","OUTPUT","ADOPTEDBUD",null,null,null,null,"Fire Marshal (147)","DWI Ct - Number assessed to participate","DWI Ct - Number assessed to participate in the program",{"$f":"_xlfn.XLOOKUP(Measures_Table[[#This Row],[PM Program]],Programs_Active20[ZSBPPROGM (KEY)],Programs_Active20[LONG TEXT])","v":"Fire Marshal"}]
[2492,147,"Y",276,"EACH","OUTPUT","ADOPTEDBUD",null,null,null,null,"Fire Marshal (147)","DWI Ct - Number of new enrollments in th","DWI Ct - Number of new enrollments in the program",{"$f":"_xlfn.XLOOKUP(Measures_Table[[#This Row],[PM Program]],Programs_Active20[ZSBPPROGM (KEY)],Programs_Active20[LONG TEXT])","v":"Fire Marshal"}]
[2493,147,"Y",276,"EACH","OUTPUT","ADOPTEDBUD",null,null,null,null,"Fire Marshal (147)","DWI Ct - Number of participants served i","DWI Ct - Number of participants served in the program",{"$f":"_xlfn.XLOOKUP(Measures_Table[[#This Row],[PM Program]],Programs_Active20[ZSBPPROGM (KEY)],Programs_Active20[LONG TEXT])","v":"Fire Marshal"}]
[2494,147,"Y",276,"EACH","INPUT","ADOPTEDBUD",null,null,null,null,"Fire Marshal (147)","DWI Ct - Percentage that successfully co","DWI Ct - Percentage that successfully complete the program",{"$f":"_xlfn.XLOOKUP(Measures_Table[[#This Row],[PM Program]],Programs_Active20[ZSBPPROGM (KEY)],Programs_Active20[LONG TEXT])","v":"Fire Marshal"}]
[2495,147,"Y",276,"EACH","OUTPUT","ADOPTEDBUD",null,null,null,null,"Fire Marshal (147)","Number of clients represented by the Juv","Number of clients represented by the Juvenile Public Defender",{"$f":"_xlfn.XLOOKUP(Measures_Table[[#This Row],[PM Program]],Programs_Active20[ZSBPPROGM (KEY)],Programs_Active20[LONG TEXT])","v":"Fire Marshal"}]
[2496,147,"Y",276,"EACH","OUTPUT","ADOPTEDBUD",null,null,null,null,"Fire Marshal (147)","Number of cases represented by the Juven","Number of cases represented by the Juvenile Public Defender",{"$f":"_xlfn.XLOOKUP(Measures_Table[[#This Row],[PM Program]],Programs_Active20[ZSBPPROGM (KEY)],Programs_Active20[LONG TEXT])","v":"Fire Marshal"}]
[2497,147,"Y",277,"EACH","OUTPUT","ADOPTEDBUD",null,null,null,null,null,"Number of legal consultations","Number of legal consultations",{"$f":"_xlfn.XLOOKUP(Measures_Table[[#This Row],[PM Program]],Programs_Active20[ZSBPPROGM (KEY)],Programs_Active20[LONG TEXT])","v":{"$error":"#N/A"}}]
[2498,147,"Y",277,"PERCENT","OUTCOME","ADOPTEDBUD",null,null,null,null,null,"Hours of continuining legal education ho","Hours of continuining legal education hours sponsored",{"$f":"_xlfn.XLOOKUP(Measures_Table[[#This Row],[PM Program]],Programs_Active20[ZSBPPROGM (KEY)],Programs_Active20[LONG TEXT])","v":{"$error":"#N/A"}}]
[2499,154,"Y",279,"EACH","INPUT","ADOPTEDBUD",null,null,null,null,"Civil Service Commission (154)","Average number of cases per attorney","Average number of cases per attorney",{"$f":"_xlfn.XLOOKUP(Measures_Table[[#This Row],[PM Program]],Programs_Active20[ZSBPPROGM (KEY)],Programs_Active20[LONG TEXT])","v":"Civil Service Commission"}]
[2500,154,"Y",279,"EACH","OUTCOME","ADOPTEDBUD",null,null,null,null,"Civil Service Commission (154)","% employees trained within required 30-d","% employees trained within required 30-day timeframe",{"$f":"_xlfn.XLOOKUP(Measures_Table[[#This Row],[PM Program]],Programs_Active20[ZSBPPROGM (KEY)],Programs_Active20[LONG TEXT])","v":"Civil Service Commission"}]
[2501,154,"Y",279,"EACH","EFFICIENCY","ADOPTEDBUD",null,null,null,null,"Civil Service Commission (154)","Updated policies and procedures within 3","Updated policies and procedures within 30 days of changes",{"$f":"_xlfn.XLOOKUP(Measures_Table[[#This Row],[PM Program]],Programs_Active20[ZSBPPROGM (KEY)],Programs_Active20[LONG TEXT])","v":"Civil Service Commission"}]
[2502,154,"Y",279,"EACH","INPUT","ADOPTEDBUD",null,null,null,null,"Civil Service Commission (154)","Program implemented county-wide","Program implemented county-wide",{"$f":"_xlfn.XLOOKUP(Measures_Table[[#This Row],[PM Program]],Programs_Active20[ZSBPPROGM (KEY)],Programs_Active20[LONG TEXT])","v":"Civil Service Commission"}]
[2503,154,"Y",279,"EACH","INPUT","ADOPTEDBUD",null,null,null,null,"Civil Service Commission (154)","Business Associate Agreements executed","Business Associate Agreements executed",{"$f":"_xlfn.XLOOKUP(Measures_Table[[#This Row],[PM Program]],Programs_Active20[ZSBPPROGM (KEY)],Programs_Active20[LONG TEXT])","v":"Civil Service Commission"}]
[2504,154,"Y",279,"EACH","OUTPUT","ADOPTEDBUD",null,null,null,null,"Civil Service Commission (154)","Privacy information posted on County web","Privacy information posted on County website",{"$f":"_xlfn.XLOOKUP(Measures_Table[[#This Row],[PM Program]],Programs_Active20[ZSBPPROGM (KEY)],Programs_Active20[LONG TEXT])","v":"Civil Service Commission"}]
[2505,154,"Y",279,"EACH","OUTPUT","ADOPTEDBUD",null,null,null,null,"Civil Service Commission (154)","# of compliance queries (proactive)","# of compliance queries (proactive)",{"$f":"_xlfn.XLOOKUP(Measures_Table[[#This Row],[PM Program]],Programs_Active20[ZSBPPROGM (KEY)],Programs_Active20[LONG TEXT])","v":"Civil Service Commission"}]
[2506,154,"Y",279,"EACH","OUTPUT","ADOPTEDBUD",null,null,null,null,"Civil Service Commission (154)","Corrective measures from assessments","Corrective measures from assessments",{"$f":"_xlfn.XLOOKUP(Measures_Table[[#This Row],[PM Program]],Programs_Active20[ZSBPPROGM (KEY)],Programs_Active20[LONG TEXT])","v":"Civil Service Commission"}]
[2507,154,"Y",279,"EACH","OUTPUT","ADOPTEDBUD",null,null,null,null,"Civil Service Commission (154)","Corrective measures recommended","Corrective measures recommended",{"$f":"_xlfn.XLOOKUP(Measures_Table[[#This Row],[PM Program]],Programs_Active20[ZSBPPROGM (KEY)],Programs_Active20[LONG TEXT])","v":"Civil Service Commission"}]
[2508,154,"Y",279,"EACH","OUTPUT","ADOPTEDBUD",null,null,null,null,"Civil Service Commission (154)","Assist Cities/agencies with Emergency Pl","Assist Cities/agencies with Emergency Planning to include COOP",{"$f":"_xlfn.XLOOKUP(Measures_Table[[#This Row],[PM Program]],Programs_Active20[ZSBPPROGM (KEY)],Programs_Active20[LONG TEXT])","v":"Civil Service Commission"}]
[2509,157,"Y",280,"EACH","OUTPUT","BLACKBOOK",null,null,null,null,null,"Number of Drills/EOC Activations","Number of Drills/EOC Activations",{"$f":"_xlfn.XLOOKUP(Measures_Table[[#This Row],[PM Program]],Programs_Active20[ZSBPPROGM (KEY)],Programs_Active20[LONG TEXT])","v":{"$error":"#N/A"}}]
[2510,157,"Y",280,"EACH","OUTPUT","BLACKBOOK",null,null,null,null,null,"OEM/HazMat Training Provided/Taken","OEM/HazMat Training Provided/Taken",{"$f":"_xlfn.XLOOKUP(Measures_Table[[#This Row],[PM Program]],Programs_Active20[ZSBPPROGM (KEY)],Programs_Active20[LONG TEXT])","v":{"$error":"#N/A"}}]
[2511,157,"Y",280,"EACH","EFFICIENCY","BLACKBOOK",null,null,null,null,null,"Hazardous Materials Response","Hazardous Materials Response",{"$f":"_xlfn.XLOOKUP(Measures_Table[[#This Row],[PM Program]],Programs_Active20[ZSBPPROGM (KEY)],Programs_Active20[LONG TEXT])","v":{"$error":"#N/A"}}]
[2512,157,"Y",280,"PERCENT","OUTCOME","BLACKBOOK",null,null,null,null,null,"Number of Fires in Unincorporated Travis","Number of Fires in Unincorporated Travis County (excludes Wildland fires)",{"$f":"_xlfn.XLOOKUP(Measures_Table[[#This Row],[PM Program]],Programs_Active20[ZSBPPROGM (KEY)],Programs_Active20[LONG TEXT])","v":{"$error":"#N/A"}}]
[2513,157,"Y",280,"PERCENT","OUTCOME","BLACKBOOK",null,null,null,null,null,"Number of Fires Investigated","Number of Fires Investigated",{"$f":"_xlfn.XLOOKUP(Measures_Table[[#This Row],[PM Program]],Programs_Active20[ZSBPPROGM (KEY)],Programs_Active20[LONG TEXT])","v":{"$error":"#N/A"}}]
[2514,157,"Y",281,"DAYS","EFFICIENCY","ADOPTEDBUD",null,null,null,null,null,"Number of Fire Fatalities","Number of Fire Fatalities",{"$f":"_xlfn.XLOOKUP(Measures_Table[[#This Row],[PM Program]],Programs_Active20[ZSBPPROGM (KEY)],Programs_Active20[LONG TEXT])","v":{"$error":"#N/A"}}]
[2515,157,"Y",281,"PERCENT","OUTCOME","ADOPTEDBUD",null,null,null,null,null,"Number of Fire Related injuries sustaine","Number of Fire Related injuries sustained by both civilian and fire suppression personnel",{"$f":"_xlfn.XLOOKUP(Measures_Table[[#This Row],[PM Program]],Programs_Active20[ZSBPPROGM (KEY)],Programs_Active20[LONG TEXT])","v":{"$error":"#N/A"}}]
[2516,157,"Y",281,"EACH","OUTPUT","BLACKBOOK",null,null,null,null,null,"Number of Fires Determined to be Arson","Number of Fires Determined to be Arson",{"$f":"_xlfn.XLOOKUP(Measures_Table[[#This Row],[PM Program]],Programs_Active20[ZSBPPROGM (KEY)],Programs_Active20[LONG TEXT])","v":{"$error":"#N/A"}}]
[2517,157,"Y",282,"EACH","OUTCOME","ADOPTEDBUD",null,null,null,null,null,"Number of Fire Investigations completed","Number of Fire Investigations completed (closed)",{"$f":"_xlfn.XLOOKUP(Measures_Table[[#This Row],[PM Program]],Programs_Active20[ZSBPPROGM (KEY)],Programs_Active20[LONG TEXT])","v":{"$error":"#N/A"}}]
[2518,157,"Y",282,"EACH","OUTPUT","BLACKBOOK",null,null,null,null,null,"Number of Criminal Charges filed","Number of Criminal Charges filed",{"$f":"_xlfn.XLOOKUP(Measures_Table[[#This Row],[PM Program]],Programs_Active20[ZSBPPROGM (KEY)],Programs_Active20[LONG TEXT])","v":{"$error":"#N/A"}}]
[2519,157,"Y",282,"EACH","OUTCOME","BLACKBOOK",null,null,null,null,null,"Number of Fire Code Inspections","Number of Fire Code Inspections",{"$f":"_xlfn.XLOOKUP(Measures_Table[[#This Row],[PM Program]],Programs_Active20[ZSBPPROGM (KEY)],Programs_Active20[LONG TEXT])","v":{"$error":"#N/A"}}]
[2520,157,"Y",283,"PERCENT","OUTCOME","ADOPTEDBUD",null,null,null,null,null,"Fire Code Permits Issued","Fire Code Permits Issued",{"$f":"_xlfn.XLOOKUP(Measures_Table[[#This Row],[PM Program]],Programs_Active20[ZSBPPROGM (KEY)],Programs_Active20[LONG TEXT])","v":{"$error":"#N/A"}}]
[2521,157,"Y",283,"EACH","OUTPUT","BLACKBOOK",null,null,null,null,null,"Construction Plans Reviewed","Construction Plans Reviewed",{"$f":"_xlfn.XLOOKUP(Measures_Table[[#This Row],[PM Program]],Programs_Active20[ZSBPPROGM (KEY)],Programs_Active20[LONG TEXT])","v":{"$error":"#N/A"}}]
[2522,157,"Y",284,"EACH","OUTCOME","BLACKBOOK",null,null,null,null,null,"Number of Fire Education and Training In","Number of Fire Education and Training Initiatives (includes JFIP)",{"$f":"_xlfn.XLOOKUP(Measures_Table[[#This Row],[PM Program]],Programs_Active20[ZSBPPROGM (KEY)],Programs_Active20[LONG TEXT])","v":{"$error":"#N/A"}}]
[2523,157,"Y",284,"EACH","OUTPUT","ADOPTEDBUD",null,null,null,null,null,"Number of County Buildings Inspected","Number of County Buildings Inspected",{"$f":"_xlfn.XLOOKUP(Measures_Table[[#This Row],[PM Program]],Programs_Active20[ZSBPPROGM (KEY)],Programs_Active20[LONG TEXT])","v":{"$error":"#N/A"}}]
[2524,157,"Y",284,"EACH","OUTPUT","BLACKBOOK",null,null,null,null,null,"Survey/data collection.  Will rate how w","Survey/data collection.  Will rate how we are doing in supporting ES departments and divisions",{"$f":"_xlfn.XLOOKUP(Measures_Table[[#This Row],[PM Program]],Programs_Active20[ZSBPPROGM (KEY)],Programs_Active20[LONG TEXT])","v":{"$error":"#N/A"}}]
[2525,155,"Y",285,"PERCENT","EFFICIENCY","BLACKBOOK",null,null,null,null,"Law Library (155)","Customer Satisfaction and efficiency in","Customer Satisfaction and efficiency in delivery of ES administrative services",{"$f":"_xlfn.XLOOKUP(Measures_Table[[#This Row],[PM Program]],Programs_Active20[ZSBPPROGM (KEY)],Programs_Active20[LONG TEXT])","v":"Law Library"}]
[2526,155,"Y",285,"EACH","OUTPUT","BLACKBOOK",null,null,null,null,"Law Library (155)","# of grievances received","# of grievances received",{"$f":"_xlfn.XLOOKUP(Measures_Table[[#This Row],[PM Program]],Programs_Active20[ZSBPPROGM (KEY)],Programs_Active20[LONG TEXT])","v":"Law Library"}]
[2528,155,"Y",285,"EACH","OUTPUT","BLACKBOOK",null,null,null,null,"Law Library (155)","# of regular meetings","# of regular meetings",{"$f":"_xlfn.XLOOKUP(Measures_Table[[#This Row],[PM Program]],Programs_Active20[ZSBPPROGM (KEY)],Programs_Active20[LONG TEXT])","v":"Law Library"}]
[2529,155,"Y",285,"EACH","OUTPUT","BLACKBOOK",null,null,null,null,"Law Library (155)","# of advancement exams","# of advancement exams",{"$f":"_xlfn.XLOOKUP(Measures_Table[[#This Row],[PM Program]],Programs_Active20[ZSBPPROGM (KEY)],Programs_Active20[LONG TEXT])","v":"Law Library"}]
[2530,155,"Y",285,"EACH","OUTPUT","BLACKBOOK",null,null,null,null,"Law Library (155)","# of promotional applications","# of promotional applications",{"$f":"_xlfn.XLOOKUP(Measures_Table[[#This Row],[PM Program]],Programs_Active20[ZSBPPROGM (KEY)],Programs_Active20[LONG TEXT])","v":"Law Library"}]
[2531,157,"Y",286,"PERCENT","OUTCOME","ADOPTEDBUD",null,null,null,null,null,"# of promotional exams administered","# of promotional exams administered",{"$f":"_xlfn.XLOOKUP(Measures_Table[[#This Row],[PM Program]],Programs_Active20[ZSBPPROGM (KEY)],Programs_Active20[LONG TEXT])","v":{"$error":"#N/A"}}]
[2532,157,"Y",286,"EACH","OUTPUT","ADOPTEDBUD",null,null,null,null,null,"# of promotional review boards","# of promotional review boards",{"$f":"_xlfn.XLOOKUP(Measures_Table[[#This Row],[PM Program]],Programs_Active20[ZSBPPROGM (KEY)],Programs_Active20[LONG TEXT])","v":{"$error":"#N/A"}}]
[2533,110,"Y",287,"EACH","OUTCOME","ADOPTEDBUD",null,null,null,null,"Media Services (110)","# patrol review boards","# patrol review boards",{"$f":"_xlfn.XLOOKUP(Measures_Table[[#This Row],[PM Program]],Programs_Active20[ZSBPPROGM (KEY)],Programs_Active20[LONG TEXT])","v":"Media Services"}]
[2534,110,"Y",287,"HOURS","INPUT","BLACKBOOK",null,null,null,null,"Media Services (110)","# patrol exams administered","# patrol exams administered",{"$f":"_xlfn.XLOOKUP(Measures_Table[[#This Row],[PM Program]],Programs_Active20[ZSBPPROGM (KEY)],Programs_Active20[LONG TEXT])","v":"Media Services"}]
[2535,110,"Y",287,"EACH","OUTPUT","BLACKBOOK",null,null,null,null,"Media Services (110)","# open records requests answered","# open records requests answered",{"$f":"_xlfn.XLOOKUP(Measures_Table[[#This Row],[PM Program]],Programs_Active20[ZSBPPROGM (KEY)],Programs_Active20[LONG TEXT])","v":"Media Services"}]
[2536,110,"Y",287,"HOURS","INPUT","BLACKBOOK",null,null,null,null,"Media Services (110)","# Cu. Ft. of new boxes of records sent t","# Cu. Ft. of new boxes of records sent to offsite storage",{"$f":"_xlfn.XLOOKUP(Measures_Table[[#This Row],[PM Program]],Programs_Active20[ZSBPPROGM (KEY)],Programs_Active20[LONG TEXT])","v":"Media Services"}]
[2537,110,"Y",287,"EACH","OUTPUT","BLACKBOOK",null,null,null,null,"Media Services (110)","Total cu. ft. of records in storage","Total cu. ft. of records in storage",{"$f":"_xlfn.XLOOKUP(Measures_Table[[#This Row],[PM Program]],Programs_Active20[ZSBPPROGM (KEY)],Programs_Active20[LONG TEXT])","v":"Media Services"}]
[2538,110,"Y",287,"HOURS","INPUT","BLACKBOOK",null,null,null,null,"Media Services (110)","Number of cu. ft. permanently removed fr","Number of cu. ft. permanently removed from storage.",{"$f":"_xlfn.XLOOKUP(Measures_Table[[#This Row],[PM Program]],Programs_Active20[ZSBPPROGM (KEY)],Programs_Active20[LONG TEXT])","v":"Media Services"}]
[2539,110,"Y",287,"EACH","OUTPUT","ADOPTEDBUD",null,null,null,null,"Media Services (110)","Overall Score per Survey – Offsite Stora","Overall Score per Survey – Offsite Storage.",{"$f":"_xlfn.XLOOKUP(Measures_Table[[#This Row],[PM Program]],Programs_Active20[ZSBPPROGM (KEY)],Programs_Active20[LONG TEXT])","v":"Media Services"}]
[2540,110,"Y",287,"HOURS","INPUT","BLACKBOOK",null,null,null,null,"Media Services (110)","Overall Score per Survey – Secure Shredd","Overall Score per Survey – Secure Shredding.",{"$f":"_xlfn.XLOOKUP(Measures_Table[[#This Row],[PM Program]],Programs_Active20[ZSBPPROGM (KEY)],Programs_Active20[LONG TEXT])","v":"Media Services"}]
[2541,110,"Y",287,"HOURS","INPUT","BLACKBOOK",null,null,null,null,"Media Services (110)","# Days Turnaround","# Days Turnaround",{"$f":"_xlfn.XLOOKUP(Measures_Table[[#This Row],[PM Program]],Programs_Active20[ZSBPPROGM (KEY)],Programs_Active20[LONG TEXT])","v":"Media Services"}]
[2542,110,"Y",287,"EACH","OUTPUT","BLACKBOOK",null,null,null,null,"Media Services (110)","Customer Satisfaction per survey","Customer Satisfaction per survey",{"$f":"_xlfn.XLOOKUP(Measures_Table[[#This Row],[PM Program]],Programs_Active20[ZSBPPROGM (KEY)],Programs_Active20[LONG TEXT])","v":"Media Services"}]
[2543,110,"Y",287,"EACH","OUTPUT","BLACKBOOK",null,null,null,null,"Media Services (110)","# Impressions Produced","# Impressions Produced",{"$f":"_xlfn.XLOOKUP(Measures_Table[[#This Row],[PM Program]],Programs_Active20[ZSBPPROGM (KEY)],Programs_Active20[LONG TEXT])","v":"Media Services"}]
[2544,110,"Y",287,"HOURS","INPUT","BLACKBOOK",null,null,null,null,"Media Services (110)","Cu. Ft. Archival Documents Preserved","Cu. Ft. Archival Documents Preserved",{"$f":"_xlfn.XLOOKUP(Measures_Table[[#This Row],[PM Program]],Programs_Active20[ZSBPPROGM (KEY)],Programs_Active20[LONG TEXT])","v":"Media Services"}]
[2545,110,"Y",287,"EACH","INPUT","ADOPTEDBUD",null,null,null,null,"Media Services (110)","Researchers/Patrons Served","Researchers/Patrons Served",{"$f":"_xlfn.XLOOKUP(Measures_Table[[#This Row],[PM Program]],Programs_Active20[ZSBPPROGM (KEY)],Programs_Active20[LONG TEXT])","v":"Media Services"}]
[2546,110,"Y",287,"HOURS","OUTPUT","BLACKBOOK",null,null,null,null,"Media Services (110)","History Day","History Day",{"$f":"_xlfn.XLOOKUP(Measures_Table[[#This Row],[PM Program]],Programs_Active20[ZSBPPROGM (KEY)],Programs_Active20[LONG TEXT])","v":"Media Services"}]
[2547,159,"Y",289,"PERCENT","OUTCOME","ADOPTEDBUD",null,null,null,null,"Austin-TC EMS Interlocal (159)","Overall Customer Satisfaction per Survey","Overall Customer Satisfaction per Survey",{"$f":"_xlfn.XLOOKUP(Measures_Table[[#This Row],[PM Program]],Programs_Active20[ZSBPPROGM (KEY)],Programs_Active20[LONG TEXT])","v":"Austin-TC EMS Interlocal"}]
[2548,159,"Y",289,"EACH","OUTPUT","ADOPTEDBUD",null,null,null,null,"Austin-TC EMS Interlocal (159)","Number of Work Orders","Number of Work Orders",{"$f":"_xlfn.XLOOKUP(Measures_Table[[#This Row],[PM Program]],Programs_Active20[ZSBPPROGM (KEY)],Programs_Active20[LONG TEXT])","v":"Austin-TC EMS Interlocal"}]
[2549,159,"Y",289,"PERCENT","OUTCOME","ADOPTEDBUD",null,null,null,null,"Austin-TC EMS Interlocal (159)","Images Microfilmed","Images Microfilmed",{"$f":"_xlfn.XLOOKUP(Measures_Table[[#This Row],[PM Program]],Programs_Active20[ZSBPPROGM (KEY)],Programs_Active20[LONG TEXT])","v":"Austin-TC EMS Interlocal"}]
[2550,159,"Y",289,"PERCENT","OUTCOME","ADOPTEDBUD",null,null,null,null,"Austin-TC EMS Interlocal (159)","Images Scanned (Paper)","Images Scanned (Paper)",{"$f":"_xlfn.XLOOKUP(Measures_Table[[#This Row],[PM Program]],Programs_Active20[ZSBPPROGM (KEY)],Programs_Active20[LONG TEXT])","v":"Austin-TC EMS Interlocal"}]
[2551,159,"Y",290,"EACH","OUTPUT","ADOPTEDBUD",null,null,null,null,"STAR Flight (159)","Expunctions and Non-Disclosures","Expunctions and Non-Disclosures",{"$f":"_xlfn.XLOOKUP(Measures_Table[[#This Row],[PM Program]],Programs_Active20[ZSBPPROGM (KEY)],Programs_Active20[LONG TEXT])","v":"STAR Flight"}]
[2552,159,"Y",290,"EACH","OUTPUT","ADOPTEDBUD",null,null,null,null,"STAR Flight (159)","Percentage of reference & research reque","Percentage of reference & research requests completed on day of inquiry",{"$f":"_xlfn.XLOOKUP(Measures_Table[[#This Row],[PM Program]],Programs_Active20[ZSBPPROGM (KEY)],Programs_Active20[LONG TEXT])","v":"STAR Flight"}]
[2553,159,"Y",290,"EACH","OUTPUT","ADOPTEDBUD",null,null,null,null,"STAR Flight (159)","Number of patrons assisted","Number of patrons assisted",{"$f":"_xlfn.XLOOKUP(Measures_Table[[#This Row],[PM Program]],Programs_Active20[ZSBPPROGM (KEY)],Programs_Active20[LONG TEXT])","v":"STAR Flight"}]
[2554,159,"Y",290,"EACH","OUTPUT","ADOPTEDBUD",null,null,null,null,"STAR Flight (159)","Percentage of materials processed and de","Percentage of materials processed and delivered within a week of arrival to keep existing sets current with new law and annotations",{"$f":"_xlfn.XLOOKUP(Measures_Table[[#This Row],[PM Program]],Programs_Active20[ZSBPPROGM (KEY)],Programs_Active20[LONG TEXT])","v":"STAR Flight"}]
[2556,159,"Y",290,"EACH","OUTPUT","ADOPTEDBUD",null,null,null,null,"STAR Flight (159)","Pages of forms, brochures, web pages cre","Pages of forms, brochures, web pages created or updated in English",{"$f":"_xlfn.XLOOKUP(Measures_Table[[#This Row],[PM Program]],Programs_Active20[ZSBPPROGM (KEY)],Programs_Active20[LONG TEXT])","v":"STAR Flight"}]
[2557,159,"Y",290,"EACH","OUTPUT","ADOPTEDBUD",null,null,null,null,"STAR Flight (159)","Number of forms, brochures, web pages cr","Number of forms, brochures, web pages created, updated, or translated into Spanish",{"$f":"_xlfn.XLOOKUP(Measures_Table[[#This Row],[PM Program]],Programs_Active20[ZSBPPROGM (KEY)],Programs_Active20[LONG TEXT])","v":"STAR Flight"}]
[2558,159,"Y",290,"EACH","OUTCOME","ADOPTEDBUD",null,null,null,null,"STAR Flight (159)","Overall Satisfaction per Survey","Overall Satisfaction per Survey",{"$f":"_xlfn.XLOOKUP(Measures_Table[[#This Row],[PM Program]],Programs_Active20[ZSBPPROGM (KEY)],Programs_Active20[LONG TEXT])","v":"STAR Flight"}]
[2559,159,"Y",290,"EACH","OUTCOME","ADOPTEDBUD",null,null,null,null,"STAR Flight (159)","# Pieces of mail metered annually","# Pieces of mail metered annually",{"$f":"_xlfn.XLOOKUP(Measures_Table[[#This Row],[PM Program]],Programs_Active20[ZSBPPROGM (KEY)],Programs_Active20[LONG TEXT])","v":"STAR Flight"}]
[2560,159,"Y",290,"PERCENT","OUTCOME","ADOPTEDBUD",null,null,null,null,"STAR Flight (159)","New Video Programs","New Video Programs",{"$f":"_xlfn.XLOOKUP(Measures_Table[[#This Row],[PM Program]],Programs_Active20[ZSBPPROGM (KEY)],Programs_Active20[LONG TEXT])","v":"STAR Flight"}]
[2561,159,"Y",290,"PERCENT","OUTCOME","ADOPTEDBUD",null,null,null,null,"STAR Flight (159)","New Video Programs Staff Hours","New Video Programs Staff Hours",{"$f":"_xlfn.XLOOKUP(Measures_Table[[#This Row],[PM Program]],Programs_Active20[ZSBPPROGM (KEY)],Programs_Active20[LONG TEXT])","v":"STAR Flight"}]
[2562,159,"Y",290,"PERCENT","OUTCOME","ADOPTEDBUD",null,null,null,null,"STAR Flight (159)","New Web Only Videos","New Web Only Videos",{"$f":"_xlfn.XLOOKUP(Measures_Table[[#This Row],[PM Program]],Programs_Active20[ZSBPPROGM (KEY)],Programs_Active20[LONG TEXT])","v":"STAR Flight"}]
[2564,159,"Y",290,"PERCENT","OUTCOME","ADOPTEDBUD",null,null,null,null,"STAR Flight (159)","Multifunction Rooms Support","Multifunction Rooms Support",{"$f":"_xlfn.XLOOKUP(Measures_Table[[#This Row],[PM Program]],Programs_Active20[ZSBPPROGM (KEY)],Programs_Active20[LONG TEXT])","v":"STAR Flight"}]
[2565,159,"Y",290,"PERCENT","OUTCOME","ADOPTEDBUD",null,null,null,null,"STAR Flight (159)","Multifunction Rooms Support Staff Hours","Multifunction Rooms Support Staff Hours",{"$f":"_xlfn.XLOOKUP(Measures_Table[[#This Row],[PM Program]],Programs_Active20[ZSBPPROGM (KEY)],Programs_Active20[LONG TEXT])","v":"STAR Flight"}]
[2568,138,"Y",261,"EACH","OUTPUT","ADOPTEDBUD",null,null,null,null,"Toxicology (138)","Administrative Tasks Staff Hours","Administrative Tasks Staff Hours",{"$f":"_xlfn.XLOOKUP(Measures_Table[[#This Row],[PM Program]],Programs_Active20[ZSBPPROGM (KEY)],Programs_Active20[LONG TEXT])","v":"Toxicology"}]
[2569,138,"Y",261,"EACH","OUTPUT","ADOPTEDBUD",null,null,null,null,"Toxicology (138)","Equipment Checkouts","Equipment Checkouts",{"$f":"_xlfn.XLOOKUP(Measures_Table[[#This Row],[PM Program]],Programs_Active20[ZSBPPROGM (KEY)],Programs_Active20[LONG TEXT])","v":"Toxicology"}]
[2570,138,"Y",260,"EACH","EFFICIENCY","ADOPTEDBUD",null,null,null,null,"Investigations (138)","Dub/Copy Requests","Dub/Copy Requests",{"$f":"_xlfn.XLOOKUP(Measures_Table[[#This Row],[PM Program]],Programs_Active20[ZSBPPROGM (KEY)],Programs_Active20[LONG TEXT])","v":"Investigations"}]
[2571,138,"Y",260,"EACH","EFFICIENCY","ADOPTEDBUD",null,null,null,null,"Investigations (138)","Dub/Copy Request Staff Hours","Dub/Copy Request Staff Hours",{"$f":"_xlfn.XLOOKUP(Measures_Table[[#This Row],[PM Program]],Programs_Active20[ZSBPPROGM (KEY)],Programs_Active20[LONG TEXT])","v":"Investigations"}]
[2572,138,"Y",260,"EACH","OUTPUT","ADOPTEDBUD",null,null,null,null,"Investigations (138)","Graphics Projects","Graphics Projects",{"$f":"_xlfn.XLOOKUP(Measures_Table[[#This Row],[PM Program]],Programs_Active20[ZSBPPROGM (KEY)],Programs_Active20[LONG TEXT])","v":"Investigations"}]
[2573,138,"Y",260,"EACH","OUTPUT","ADOPTEDBUD",null,null,null,null,"Investigations (138)","Graphics Projects Staff Hours","Graphics Projects Staff Hours",{"$f":"_xlfn.XLOOKUP(Measures_Table[[#This Row],[PM Program]],Programs_Active20[ZSBPPROGM (KEY)],Programs_Active20[LONG TEXT])","v":"Investigations"}]
[2574,138,"Y",259,"EACH","OUTPUT","ADOPTEDBUD",null,null,null,null,"Administration (138)","ATCEMS Grade of Service (Goal: 90% or >)","ATCEMS Grade of Service (Goal: 90% or >)",{"$f":"_xlfn.XLOOKUP(Measures_Table[[#This Row],[PM Program]],Programs_Active20[ZSBPPROGM (KEY)],Programs_Active20[LONG TEXT])","v":"Administration"}]
[2575,138,"Y",259,"EACH","OUTPUT","ADOPTEDBUD",null,null,null,null,"Administration (138)","Total County Responses","Total County Responses",{"$f":"_xlfn.XLOOKUP(Measures_Table[[#This Row],[PM Program]],Programs_Active20[ZSBPPROGM (KEY)],Programs_Active20[LONG TEXT])","v":"Administration"}]
[2576,138,"Y",259,"EACH","OUTPUT","ADOPTEDBUD",null,null,null,null,"Administration (138)","% of Cardiac Arrest patients delivered t","% of Cardiac Arrest patients delivered to a medical facility with a pulse",{"$f":"_xlfn.XLOOKUP(Measures_Table[[#This Row],[PM Program]],Programs_Active20[ZSBPPROGM (KEY)],Programs_Active20[LONG TEXT])","v":"Administration"}]
[2577,138,"Y",263,"EACH","OUTPUT","ADOPTEDBUD",null,null,null,null,"Pathology (138)","Overall On-Time Rate: Travis County (Goa","Overall On-Time Rate: Travis County (Goal – 90%)",{"$f":"_xlfn.XLOOKUP(Measures_Table[[#This Row],[PM Program]],Programs_Active20[ZSBPPROGM (KEY)],Programs_Active20[LONG TEXT])","v":"Pathology"}]
[2578,138,"Y",263,"EACH","OUTPUT","ADOPTEDBUD",null,null,null,null,"Pathology (138)","Number of Patient Transports","Number of Patient Transports",{"$f":"_xlfn.XLOOKUP(Measures_Table[[#This Row],[PM Program]],Programs_Active20[ZSBPPROGM (KEY)],Programs_Active20[LONG TEXT])","v":"Pathology"}]
[2579,138,"Y",263,"EACH","OUTPUT","ADOPTEDBUD",null,null,null,null,"Pathology (138)","Non Travis County Patient Transports","Non Travis County Patient Transports",{"$f":"_xlfn.XLOOKUP(Measures_Table[[#This Row],[PM Program]],Programs_Active20[ZSBPPROGM (KEY)],Programs_Active20[LONG TEXT])","v":"Pathology"}]
[2580,138,"Y",263,"EACH","OUTPUT","ADOPTEDBUD",null,null,null,null,"Pathology (138)","Number of Search and Rescue Missions","Number of Search and Rescue Missions",{"$f":"_xlfn.XLOOKUP(Measures_Table[[#This Row],[PM Program]],Programs_Active20[ZSBPPROGM (KEY)],Programs_Active20[LONG TEXT])","v":"Pathology"}]
[2581,116,"Y",176,"EACH","INPUT","ADOPTEDBUD",null,null,null,null,"Veterans Services (116)","Number of Law Enformcement Missions","Number of Law Enformcement Missions",{"$f":"_xlfn.XLOOKUP(Measures_Table[[#This Row],[PM Program]],Programs_Active20[ZSBPPROGM (KEY)],Programs_Active20[LONG TEXT])","v":"Veterans Services"}]
[2582,116,"Y",176,"EACH","OUTPUT","ADOPTEDBUD",null,null,null,null,"Veterans Services (116)","Number of Fire Missions","Number of Fire Missions",{"$f":"_xlfn.XLOOKUP(Measures_Table[[#This Row],[PM Program]],Programs_Active20[ZSBPPROGM (KEY)],Programs_Active20[LONG TEXT])","v":"Veterans Services"}]
[2583,109,"Y",13,"EACH","OUTPUT","ADOPTEDBUD",null,null,null,null,"Corporations (109)","Travis County airborne cancellations (EM","Travis County airborne cancellations (EMS)",{"$f":"_xlfn.XLOOKUP(Measures_Table[[#This Row],[PM Program]],Programs_Active20[ZSBPPROGM (KEY)],Programs_Active20[LONG TEXT])","v":"Corporations"}]
[2585,112,"Y",301,"EACH","OUTPUT","ADOPTEDBUD",null,null,null,null,"Privacy Office (112)","Missions missed due to busy. Does not in","Missions missed due to busy. Does not include missed auto launches within Travis County",{"$f":"_xlfn.XLOOKUP(Measures_Table[[#This Row],[PM Program]],Programs_Active20[ZSBPPROGM (KEY)],Programs_Active20[LONG TEXT])","v":"Privacy Office\n"}]
[2586,112,"Y",301,"PERCENT","OUTCOME","ADOPTEDBUD",null,null,null,null,"Privacy Office (112)","HEMS missed due to weather","HEMS missed due to weather",{"$f":"_xlfn.XLOOKUP(Measures_Table[[#This Row],[PM Program]],Programs_Active20[ZSBPPROGM (KEY)],Programs_Active20[LONG TEXT])","v":"Privacy Office\n"}]
[2587,112,"Y",301,"PERCENT","OUTCOME","ADOPTEDBUD",null,null,null,null,"Privacy Office (112)","Availability 24/7 Aircraft","Availability 24/7 Aircraft",{"$f":"_xlfn.XLOOKUP(Measures_Table[[#This Row],[PM Program]],Programs_Active20[ZSBPPROGM (KEY)],Programs_Active20[LONG TEXT])","v":"Privacy Office\n"}]
[2589,112,"Y",301,"EACH","OUTCOME","ADOPTEDBUD",null,null,null,null,"Privacy Office (112)","Availability 3rd Aircraft- Not staffed o","Availability 3rd Aircraft- Not staffed or inservice",{"$f":"_xlfn.XLOOKUP(Measures_Table[[#This Row],[PM Program]],Programs_Active20[ZSBPPROGM (KEY)],Programs_Active20[LONG TEXT])","v":"Privacy Office\n"}]
[2590,155,"Y",285,"EACH","OUTPUT","BLACKBOOK",null,null,null,null,"Law Library (155)","Availablity of Dedicated Fire Fighting A","Availablity of Dedicated Fire Fighting Aircraft",{"$f":"_xlfn.XLOOKUP(Measures_Table[[#This Row],[PM Program]],Programs_Active20[ZSBPPROGM (KEY)],Programs_Active20[LONG TEXT])","v":"Law Library"}]
[2591,115,"Y",292,"EACH","INPUT","ADOPTEDBUD",null,null,null,null,"Purchasing Office Compliance (115)","Customer Service Assistance/Inquiries an","Customer Service Assistance/Inquiries answered within 2 hours- business days",{"$f":"_xlfn.XLOOKUP(Measures_Table[[#This Row],[PM Program]],Programs_Active20[ZSBPPROGM (KEY)],Programs_Active20[LONG TEXT])","v":"Purchasing Office Compliance"}]
[2593,136,"Y",258,"EACH","INPUT","ADOPTEDBUD",null,null,null,null,"Dispute Resolution Center (136)","Toxicology Tests – Travis County","Toxicology Tests – Travis County",{"$f":"_xlfn.XLOOKUP(Measures_Table[[#This Row],[PM Program]],Programs_Active20[ZSBPPROGM (KEY)],Programs_Active20[LONG TEXT])","v":"Dispute Resolution Center"}]
[2594,109,"Y",15,"PERCENT","OUTPUT","ADOPTEDBUD",null,null,null,null,"EDSI (109)","Toxicology Tests – Other Counties","Toxicology Tests – Other Counties",{"$f":"_xlfn.XLOOKUP(Measures_Table[[#This Row],[PM Program]],Programs_Active20[ZSBPPROGM (KEY)],Programs_Active20[LONG TEXT])","v":{"$error":"#N/A"}}]
[2600,158,"Y",161,"EACH","OUTPUT","NEITHER",null,null,null,null,"Research & Planning Division (158)","Attendance at Death Scenes by Investigat","Attendance at Death Scenes by Investigators",{"$f":"_xlfn.XLOOKUP(Measures_Table[[#This Row],[PM Program]],Programs_Active20[ZSBPPROGM (KEY)],Programs_Active20[LONG TEXT])","v":"Research & Planning Division"}]
[2601,158,"Y",161,"EACH","OUTPUT","NEITHER",null,null,null,null,"Research & Planning Division (158)","Cremation Authorizations Issued – Travis","Cremation Authorizations Issued – Travis County",{"$f":"_xlfn.XLOOKUP(Measures_Table[[#This Row],[PM Program]],Programs_Active20[ZSBPPROGM (KEY)],Programs_Active20[LONG TEXT])","v":"Research & Planning Division"}]
[2602,137,"Y",103,"EACH","INPUT","ADOPTEDBUD",null,null,null,null,"School Resource Officers (SRO) (137)","Death Certifications Issued – Travis Cou","Death Certifications Issued – Travis County",{"$f":"_xlfn.XLOOKUP(Measures_Table[[#This Row],[PM Program]],Programs_Active20[ZSBPPROGM (KEY)],Programs_Active20[LONG TEXT])","v":"School Resource Officers (SRO)"}]
[2603,137,"Y",103,"EACH","INPUT","ADOPTEDBUD",null,null,null,null,"School Resource Officers (SRO) (137)","Records Requests for Documents & Informa","Records Requests for Documents & Information",{"$f":"_xlfn.XLOOKUP(Measures_Table[[#This Row],[PM Program]],Programs_Active20[ZSBPPROGM (KEY)],Programs_Active20[LONG TEXT])","v":"School Resource Officers (SRO)"}]
[2604,137,"Y",103,"EACH","INPUT","ADOPTEDBUD",null,null,null,null,"School Resource Officers (SRO) (137)","Travis County Autopsies","Travis County Autopsies",{"$f":"_xlfn.XLOOKUP(Measures_Table[[#This Row],[PM Program]],Programs_Active20[ZSBPPROGM (KEY)],Programs_Active20[LONG TEXT])","v":"School Resource Officers (SRO)"}]
[2605,137,"Y",103,"EACH","INPUT","ADOPTEDBUD",null,null,null,null,"School Resource Officers (SRO) (137)","Travis County External Exams","Travis County External Exams",{"$f":"_xlfn.XLOOKUP(Measures_Table[[#This Row],[PM Program]],Programs_Active20[ZSBPPROGM (KEY)],Programs_Active20[LONG TEXT])","v":"School Resource Officers (SRO)"}]
[2606,137,"Y",103,"EACH","INPUT","ADOPTEDBUD",null,null,null,null,"School Resource Officers (SRO) (137)","Autopsies from Other Counties","Autopsies from Other Counties",{"$f":"_xlfn.XLOOKUP(Measures_Table[[#This Row],[PM Program]],Programs_Active20[ZSBPPROGM (KEY)],Programs_Active20[LONG TEXT])","v":"School Resource Officers (SRO)"}]
[2607,137,"Y",103,"EACH","INPUT","ADOPTEDBUD",null,null,null,null,"School Resource Officers (SRO) (137)","External Exams from Other Counties","External Exams from Other Counties",{"$f":"_xlfn.XLOOKUP(Measures_Table[[#This Row],[PM Program]],Programs_Active20[ZSBPPROGM (KEY)],Programs_Active20[LONG TEXT])","v":"School Resource Officers (SRO)"}]
[2608,137,"Y",103,"EACH","INPUT","ADOPTEDBUD",null,null,null,null,"School Resource Officers (SRO) (137)","# Veterans and Dependents Seen","# Veterans and Dependents Seen",{"$f":"_xlfn.XLOOKUP(Measures_Table[[#This Row],[PM Program]],Programs_Active20[ZSBPPROGM (KEY)],Programs_Active20[LONG TEXT])","v":"School Resource Officers (SRO)"}]
[2609,137,"Y",103,"EACH","INPUT","ADOPTEDBUD",null,null,null,null,"School Resource Officers (SRO) (137)","# of Referrals","# of Referrals",{"$f":"_xlfn.XLOOKUP(Measures_Table[[#This Row],[PM Program]],Programs_Active20[ZSBPPROGM (KEY)],Programs_Active20[LONG TEXT])","v":"School Resource Officers (SRO)"}]
[2610,137,"Y",103,"EACH","INPUT","ADOPTEDBUD",null,null,null,null,"School Resource Officers (SRO) (137)","Number of Issuances - Other Corporations","Number of Issuances - Other Corporations\n",{"$f":"_xlfn.XLOOKUP(Measures_Table[[#This Row],[PM Program]],Programs_Active20[ZSBPPROGM (KEY)],Programs_Active20[LONG TEXT])","v":"School Resource Officers (SRO)"}]
[2611,137,"Y",104,"EACH","INPUT","ADOPTEDBUD",null,null,null,null,"Reserves (137)","Private Activity Bond Issuances","Private Activity Bond Issuances",{"$f":"_xlfn.XLOOKUP(Measures_Table[[#This Row],[PM Program]],Programs_Active20[ZSBPPROGM (KEY)],Programs_Active20[LONG TEXT])","v":"Reserves"}]
[2612,137,"Y",84,"EACH","INPUT","ADOPTEDBUD",null,null,null,null,"Inmate Progs & Education - Library (137)","Assessments & audits conducted","Assessments & audits conducted",{"$f":"_xlfn.XLOOKUP(Measures_Table[[#This Row],[PM Program]],Programs_Active20[ZSBPPROGM (KEY)],Programs_Active20[LONG TEXT])","v":"Inmate Programs and Education - Library"}]
[2613,137,"Y",84,"EACH","INPUT","ADOPTEDBUD",null,null,null,null,"Inmate Progs & Education - Library (137)","Percentage corrective measures or equiva","Percentage corrective measures or equivalencies implemented",{"$f":"_xlfn.XLOOKUP(Measures_Table[[#This Row],[PM Program]],Programs_Active20[ZSBPPROGM (KEY)],Programs_Active20[LONG TEXT])","v":"Inmate Programs and Education - Library"}]
[2614,137,"Y",84,"EACH","INPUT","ADOPTEDBUD",null,null,null,null,"Inmate Progs & Education - Library (137)","Employee Knowledge of Policies and Proce","Employee Knowledge of Policies and Procedures",{"$f":"_xlfn.XLOOKUP(Measures_Table[[#This Row],[PM Program]],Programs_Active20[ZSBPPROGM (KEY)],Programs_Active20[LONG TEXT])","v":"Inmate Programs and Education - Library"}]
[2615,120,"Y",37,"EACH","OUTPUT","ADOPTEDBUD",null,null,null,null,"Elections Division (120)","County adherence to timelines prescribed","County adherence to timelines prescribed by policy",{"$f":"_xlfn.XLOOKUP(Measures_Table[[#This Row],[PM Program]],Programs_Active20[ZSBPPROGM (KEY)],Programs_Active20[LONG TEXT])","v":"Elections Division"}]
[2616,120,"Y",37,"EACH","OUTCOME","ADOPTEDBUD",null,null,null,null,"Elections Division (120)","Number of privacy incidents","Number of privacy incidents",{"$f":"_xlfn.XLOOKUP(Measures_Table[[#This Row],[PM Program]],Programs_Active20[ZSBPPROGM (KEY)],Programs_Active20[LONG TEXT])","v":"Elections Division"}]
[2617,137,"Y",106,"EACH","INPUT","ADOPTEDBUD",null,null,null,null,"Special Weapons & Tactical Un-SWAT (137)","Number of patrons assisted by driver's l","Number of patrons assisted by driver's license reference attorneys",{"$f":"_xlfn.XLOOKUP(Measures_Table[[#This Row],[PM Program]],Programs_Active20[ZSBPPROGM (KEY)],Programs_Active20[LONG TEXT])","v":"Special Weapons & Tactical Unit (SWAT)"}]
[2618,149,"Y",133,"FCI SCORE","OUTCOME","ADOPTEDBUD",null,null,null,null,"Park Services (149)","# of Better Builder projects monitored","# of Better Builder projects monitored\n",{"$f":"_xlfn.XLOOKUP(Measures_Table[[#This Row],[PM Program]],Programs_Active20[ZSBPPROGM (KEY)],Programs_Active20[LONG TEXT])","v":"Park Services"}]
[2619,158,"Y",170,"PERCENT","OUTCOME","NEITHER",null,null,null,null,"SSA Contracts: Sup Svc Comm Living (158)","# of contract compliance issues reported","# of contract compliance issues reported by all TC departments\n",{"$f":"_xlfn.XLOOKUP(Measures_Table[[#This Row],[PM Program]],Programs_Active20[ZSBPPROGM (KEY)],Programs_Active20[LONG TEXT])","v":"Social Service Agency Contracts: Support Svc Comm Living"}]
[2620,158,"Y",170,"PERCENT","OUTCOME","NEITHER",null,null,null,null,"SSA Contracts: Sup Svc Comm Living (158)","Number of ADR Cases Opened","Number of ADR Cases Opened",{"$f":"_xlfn.XLOOKUP(Measures_Table[[#This Row],[PM Program]],Programs_Active20[ZSBPPROGM (KEY)],Programs_Active20[LONG TEXT])","v":"Social Service Agency Contracts: Support Svc Comm Living"}]
[2621,106,"Y",178,"PERCENT","OUTCOME","ADOPTEDBUD",null,null,null,null,"Auditor's Office (106)","% of staff that received ethics review","% of staff that have received an annual ethics review",{"$f":"_xlfn.XLOOKUP(Measures_Table[[#This Row],[PM Program]],Programs_Active20[ZSBPPROGM (KEY)],Programs_Active20[LONG TEXT])","v":"Auditor's Office"}]
[2622,140,"Y",293,"EACH","OUTPUT","BLACKBOOK",null,null,null,null,"Phoenix Court - Prostitution Prevnt(140)","4-Hour Marijuana Class # of clients regi","4-Hour Marijuana Class # of clients registered",{"$f":"_xlfn.XLOOKUP(Measures_Table[[#This Row],[PM Program]],Programs_Active20[ZSBPPROGM (KEY)],Programs_Active20[LONG TEXT])","v":"Phoenix Court - Prostitution Prevention Program"}]
[2623,140,"Y",293,"EACH","OUTPUT","BLACKBOOK",null,null,null,null,"Phoenix Court - Prostitution Prevnt(140)","4-Hour Marijuana Class # of clients comp","4-Hour Marijuana Class # of clients completing",{"$f":"_xlfn.XLOOKUP(Measures_Table[[#This Row],[PM Program]],Programs_Active20[ZSBPPROGM (KEY)],Programs_Active20[LONG TEXT])","v":"Phoenix Court - Prostitution Prevention Program"}]
[2624,140,"Y",293,"EACH","OUTPUT","ADOPTEDBUD",null,null,null,null,"Phoenix Court - Prostitution Prevnt(140)","4-Hour Marijuana Class Total # of classe","4-Hour Marijuana Class Total # of classes",{"$f":"_xlfn.XLOOKUP(Measures_Table[[#This Row],[PM Program]],Programs_Active20[ZSBPPROGM (KEY)],Programs_Active20[LONG TEXT])","v":"Phoenix Court - Prostitution Prevention Program"}]
[2625,140,"Y",293,"EACH","OUTPUT","ADOPTEDBUD",null,null,null,null,"Phoenix Court - Prostitution Prevnt(140)","4-Hour Marijuana Class # In English","4-Hour Marijuana Class # In English",{"$f":"_xlfn.XLOOKUP(Measures_Table[[#This Row],[PM Program]],Programs_Active20[ZSBPPROGM (KEY)],Programs_Active20[LONG TEXT])","v":"Phoenix Court - Prostitution Prevention Program"}]
[2626,140,"Y",293,"EACH","OUTPUT","BLACKBOOK",null,null,null,null,"Phoenix Court - Prostitution Prevnt(140)","4-Hour Marijuana Class # In Spanish","4-Hour Marijuana Class # In Spanish",{"$f":"_xlfn.XLOOKUP(Measures_Table[[#This Row],[PM Program]],Programs_Active20[ZSBPPROGM (KEY)],Programs_Active20[LONG TEXT])","v":"Phoenix Court - Prostitution Prevention Program"}]
[2627,140,"Y",293,"EACH","OUTPUT","BLACKBOOK",null,null,null,null,"Phoenix Court - Prostitution Prevnt(140)","# of investment-related processes","Number of investment-related processes implemented",{"$f":"_xlfn.XLOOKUP(Measures_Table[[#This Row],[PM Program]],Programs_Active20[ZSBPPROGM (KEY)],Programs_Active20[LONG TEXT])","v":"Phoenix Court - Prostitution Prevention Program"}]
[2628,140,"Y",293,"EACH","OUTPUT","BLACKBOOK",null,null,null,null,"Phoenix Court - Prostitution Prevnt(140)","# of investment-related deliverables","Number of investment-related deliverables produced",{"$f":"_xlfn.XLOOKUP(Measures_Table[[#This Row],[PM Program]],Programs_Active20[ZSBPPROGM (KEY)],Programs_Active20[LONG TEXT])","v":"Phoenix Court - Prostitution Prevention Program"}]
[2629,140,"Y",293,"EACH","OUTPUT","BLACKBOOK",null,null,null,null,"Phoenix Court - Prostitution Prevnt(140)","No. of juvenile campus arrests","No. of juvenile campus arrests",{"$f":"_xlfn.XLOOKUP(Measures_Table[[#This Row],[PM Program]],Programs_Active20[ZSBPPROGM (KEY)],Programs_Active20[LONG TEXT])","v":"Phoenix Court - Prostitution Prevention Program"}]
[2630,140,"Y",293,"PERCENT","OUTCOME","ADOPTEDBUD",null,null,null,null,"Phoenix Court - Prostitution Prevnt(140)","No. of adult campus arrests","No. of adult campus arrests",{"$f":"_xlfn.XLOOKUP(Measures_Table[[#This Row],[PM Program]],Programs_Active20[ZSBPPROGM (KEY)],Programs_Active20[LONG TEXT])","v":"Phoenix Court - Prostitution Prevention Program"}]
[2631,140,"Y",293,"PERCENT","OUTCOME","ADOPTEDBUD",null,null,null,null,"Phoenix Court - Prostitution Prevnt(140)","No. of campus traffic citations","No. of campus traffic citations",{"$f":"_xlfn.XLOOKUP(Measures_Table[[#This Row],[PM Program]],Programs_Active20[ZSBPPROGM (KEY)],Programs_Active20[LONG TEXT])","v":"Phoenix Court - Prostitution Prevention Program"}]
[2632,140,"Y",293,"PERCENT","OUTCOME","ADOPTEDBUD",null,null,null,null,"Phoenix Court - Prostitution Prevnt(140)","No. of mentoring hours","No. of mentoring hours",{"$f":"_xlfn.XLOOKUP(Measures_Table[[#This Row],[PM Program]],Programs_Active20[ZSBPPROGM (KEY)],Programs_Active20[LONG TEXT])","v":"Phoenix Court - Prostitution Prevention Program"}]
[2634,120,"Y",33,"EACH","INPUT","ADOPTEDBUD",null,null,null,null,"General Administration (120)","No. of parent meeting","No. of parent meeting",{"$f":"_xlfn.XLOOKUP(Measures_Table[[#This Row],[PM Program]],Programs_Active20[ZSBPPROGM (KEY)],Programs_Active20[LONG TEXT])","v":"General Administration"}]
[2635,120,"Y",33,"EACH","INPUT","ADOPTEDBUD",null,null,null,null,"General Administration (120)","No. of adminstrator meetings","No. of adminstrator meetings",{"$f":"_xlfn.XLOOKUP(Measures_Table[[#This Row],[PM Program]],Programs_Active20[ZSBPPROGM (KEY)],Programs_Active20[LONG TEXT])","v":"General Administration"}]
[2636,149,"Y",130,"PERCENT","OUTPUT","BLACKBOOK",null,null,null,null,"Fleet Services (149)","No. of other public outreach or communit","No. of other public outreach or community outreach",{"$f":"_xlfn.XLOOKUP(Measures_Table[[#This Row],[PM Program]],Programs_Active20[ZSBPPROGM (KEY)],Programs_Active20[LONG TEXT])","v":"Fleet Services"}]
[2637,149,"Y",130,"PERCENT","EFFICIENCY","BLACKBOOK",null,null,null,null,"Fleet Services (149)","No. of K9 searches","No. of K9 searches",{"$f":"_xlfn.XLOOKUP(Measures_Table[[#This Row],[PM Program]],Programs_Active20[ZSBPPROGM (KEY)],Programs_Active20[LONG TEXT])","v":"Fleet Services"}]
[2638,132,"Y",294,"EACH","INPUT","ADOPTEDBUD",null,null,null,null,"Telecommunications (132)","No. of patrol shifts covered","No. of patrol shifts covered",{"$f":"_xlfn.XLOOKUP(Measures_Table[[#This Row],[PM Program]],Programs_Active20[ZSBPPROGM (KEY)],Programs_Active20[LONG TEXT])","v":"Telecommunications"}]
[2639,132,"Y",294,"EACH","INPUT","ADOPTEDBUD",null,null,null,null,"Telecommunications (132)","No. of PSY patient with mild mental heal","No. of PSY patient with mild mental health needs (MH1)",{"$f":"_xlfn.XLOOKUP(Measures_Table[[#This Row],[PM Program]],Programs_Active20[ZSBPPROGM (KEY)],Programs_Active20[LONG TEXT])","v":"Telecommunications"}]
[2640,132,"Y",294,"EACH","INPUT","ADOPTEDBUD",null,null,null,null,"Telecommunications (132)","No. of PSY patient with moderate mental","No. of PSY patient with moderate mental health needs (MH2)",{"$f":"_xlfn.XLOOKUP(Measures_Table[[#This Row],[PM Program]],Programs_Active20[ZSBPPROGM (KEY)],Programs_Active20[LONG TEXT])","v":"Telecommunications"}]
[2641,132,"Y",294,"EACH","INPUT","ADOPTEDBUD",null,null,null,null,"Telecommunications (132)","No. of PSY patient with severe mental he","No. of PSY patient with severe mental health needs (MH3)",{"$f":"_xlfn.XLOOKUP(Measures_Table[[#This Row],[PM Program]],Programs_Active20[ZSBPPROGM (KEY)],Programs_Active20[LONG TEXT])","v":"Telecommunications"}]
[2642,132,"Y",294,"EACH","INPUT","ADOPTEDBUD",null,null,null,null,"Telecommunications (132)","# of contracts negotiated for elections","# of contracts negotiated for elections services and/or equipment with entities",{"$f":"_xlfn.XLOOKUP(Measures_Table[[#This Row],[PM Program]],Programs_Active20[ZSBPPROGM (KEY)],Programs_Active20[LONG TEXT])","v":"Telecommunications"}]
[2643,108,"Y",21,"HOURS","OUTCOME","NEITHER",null,null,null,null,"Information Technology Division (108)","# of recounts conducted/facilitated","# of recounts conducted/facilitated",{"$f":"_xlfn.XLOOKUP(Measures_Table[[#This Row],[PM Program]],Programs_Active20[ZSBPPROGM (KEY)],Programs_Active20[LONG TEXT])","v":"Information Technology Division"}]
[2645,109,"Y",11,"PERCENT","OUTPUT","ADOPTEDBUD",null,null,null,null,"Economic & Strategic Planning (109)","Average Facility Condition Index (Good=1","Average Facility Condition Index (Good=1; Fair=2; Poor=3; Critical=4)\nGood = less than 5%, Fair = 5 -10%, Poor = greater than 10 – 30%, and Critical + greater than 30%",{"$f":"_xlfn.XLOOKUP(Measures_Table[[#This Row],[PM Program]],Programs_Active20[ZSBPPROGM (KEY)],Programs_Active20[LONG TEXT])","v":"Economic & Strategic Planning"}]
[2646,124,"Y",51,"PERCENT","OUTPUT","NEITHER",null,null,null,null,"County Courts Division (124)","% who increase skills to live independnt","Percent of clients who maintain or increase ability or skills needed to function and/or live independently",{"$f":"_xlfn.XLOOKUP(Measures_Table[[#This Row],[PM Program]],Programs_Active20[ZSBPPROGM (KEY)],Programs_Active20[LONG TEXT])","v":"County Courts Division"}]
[2647,130,"Y",240,"EACH","INPUT","ADOPTEDBUD",null,null,null,null,"Criminal Department (130)","% connected to services and resources","Percent of clients who report they are connected to services and resources",{"$f":"_xlfn.XLOOKUP(Measures_Table[[#This Row],[PM Program]],Programs_Active20[ZSBPPROGM (KEY)],Programs_Active20[LONG TEXT])","v":"Criminal Department"}]
[2649,130,"Y",239,"EACH","OUTPUT","ADOPTEDBUD",null,null,null,null,"Civil Department (130)","Total Participants assessed","Total Participants assessed",{"$f":"_xlfn.XLOOKUP(Measures_Table[[#This Row],[PM Program]],Programs_Active20[ZSBPPROGM (KEY)],Programs_Active20[LONG TEXT])","v":"Civil Department"}]
[2651,130,"Y",240,"EACH","OUTPUT","ADOPTEDBUD",null,null,null,null,"Criminal Department (130)","New Participants Enrolled","New Participants Enrolled",{"$f":"_xlfn.XLOOKUP(Measures_Table[[#This Row],[PM Program]],Programs_Active20[ZSBPPROGM (KEY)],Programs_Active20[LONG TEXT])","v":"Criminal Department"}]
[2657,130,"Y",240,"EACH","INPUT","ADOPTEDBUD",null,null,null,null,"Criminal Department (130)","% of clients who have an improvement in","% of clients who have an improvement in mental health",{"$f":"_xlfn.XLOOKUP(Measures_Table[[#This Row],[PM Program]],Programs_Active20[ZSBPPROGM (KEY)],Programs_Active20[LONG TEXT])","v":"Criminal Department"}]
[2659,130,"Y",240,"PERCENT","OUTCOME","ADOPTEDBUD",null,null,null,null,"Criminal Department (130)","% of clients who increase in self-suffcy","% of clients who have an increase in self-sufficiency",{"$f":"_xlfn.XLOOKUP(Measures_Table[[#This Row],[PM Program]],Programs_Active20[ZSBPPROGM (KEY)],Programs_Active20[LONG TEXT])","v":"Criminal Department"}]
[2661,130,"Y",240,"EACH","OUTPUT","ADOPTEDBUD",null,null,null,null,"Criminal Department (130)","Hours spent processing FMLA requests and","Hours spent processing FMLA requests and monitoring FMLA leave",{"$f":"_xlfn.XLOOKUP(Measures_Table[[#This Row],[PM Program]],Programs_Active20[ZSBPPROGM (KEY)],Programs_Active20[LONG TEXT])","v":"Criminal Department"}]
[2662,130,"Y",240,"EACH","INPUT","ADOPTEDBUD",null,null,null,null,"Criminal Department (130)","Hours spent creating, editing, and updat","Hours spent creating, editing, and updating office policies and procedures",{"$f":"_xlfn.XLOOKUP(Measures_Table[[#This Row],[PM Program]],Programs_Active20[ZSBPPROGM (KEY)],Programs_Active20[LONG TEXT])","v":"Criminal Department"}]
[2663,130,"Y",239,"EACH","OUTPUT","ADOPTEDBUD",null,null,null,null,"Civil Department (130)","% of Preventive Maintenance work orders","% of Preventive Maintenance work orders over Repair work orders",{"$f":"_xlfn.XLOOKUP(Measures_Table[[#This Row],[PM Program]],Programs_Active20[ZSBPPROGM (KEY)],Programs_Active20[LONG TEXT])","v":"Civil Department"}]
[2665,130,"Y",239,"EACH","OUTPUT","ADOPTEDBUD",null,null,null,null,"Civil Department (130)","Other Incidents","Other Incidents",{"$f":"_xlfn.XLOOKUP(Measures_Table[[#This Row],[PM Program]],Programs_Active20[ZSBPPROGM (KEY)],Programs_Active20[LONG TEXT])","v":"Civil Department"}]
[2666,130,"Y",239,"EACH","OUTPUT","ADOPTEDBUD",null,null,null,null,"Civil Department (130)","Civil Service","Civil Service",{"$f":"_xlfn.XLOOKUP(Measures_Table[[#This Row],[PM Program]],Programs_Active20[ZSBPPROGM (KEY)],Programs_Active20[LONG TEXT])","v":"Civil Department"}]
[2667,109,"Y",11,"EACH","OUTPUT","ADOPTEDBUD",null,null,null,null,"Economic & Strategic Planning (109)","Warrant Service","Warrant Service",{"$f":"_xlfn.XLOOKUP(Measures_Table[[#This Row],[PM Program]],Programs_Active20[ZSBPPROGM (KEY)],Programs_Active20[LONG TEXT])","v":"Economic & Strategic Planning"}]
[2670,116,"Y",176,"EACH","OUTPUT","NEITHER",null,null,null,null,"Veterans Services (116)","Average ticket turnaround time","Average ticket turnaround time",{"$f":"_xlfn.XLOOKUP(Measures_Table[[#This Row],[PM Program]],Programs_Active20[ZSBPPROGM (KEY)],Programs_Active20[LONG TEXT])","v":"Veterans Services"}]
[2671,116,"Y",176,"EACH","INPUT","NEITHER",null,null,null,null,"Veterans Services (116)","Number of dashboards/reports developed","Number of dashboards/reports developed",{"$f":"_xlfn.XLOOKUP(Measures_Table[[#This Row],[PM Program]],Programs_Active20[ZSBPPROGM (KEY)],Programs_Active20[LONG TEXT])","v":"Veterans Services"}]
[2672,116,"Y",176,"PERCENT","OUTCOME","ADOPTEDBUD",null,null,null,null,"Veterans Services (116)","% survey satisfaction w/ space planning","% annual survey respondents reporting satisfaction with divisional support, availability, and accessibility for space and program planning",{"$f":"_xlfn.XLOOKUP(Measures_Table[[#This Row],[PM Program]],Programs_Active20[ZSBPPROGM (KEY)],Programs_Active20[LONG TEXT])","v":"Veterans Services"}]
[2673,116,"Y",176,"EACH","INPUT","ADOPTEDBUD",null,null,null,null,"Veterans Services (116)","% of cases granted a bond at BRD","% of cases granted a bond at BRD",{"$f":"_xlfn.XLOOKUP(Measures_Table[[#This Row],[PM Program]],Programs_Active20[ZSBPPROGM (KEY)],Programs_Active20[LONG TEXT])","v":"Veterans Services"}]
[2674,116,"Y",176,"EACH","INPUT","NEITHER",null,null,null,null,"Veterans Services (116)","Examining Trials Scheduled","Examining Trials Scheduled",{"$f":"_xlfn.XLOOKUP(Measures_Table[[#This Row],[PM Program]],Programs_Active20[ZSBPPROGM (KEY)],Programs_Active20[LONG TEXT])","v":"Veterans Services"}]
[2675,116,"Y",176,"EACH","INPUT","ADOPTEDBUD",null,null,null,null,"Veterans Services (116)","Emergency Protection Orders","Emergency Protection Orders",{"$f":"_xlfn.XLOOKUP(Measures_Table[[#This Row],[PM Program]],Programs_Active20[ZSBPPROGM (KEY)],Programs_Active20[LONG TEXT])","v":"Veterans Services"}]
[2676,116,"Y",176,"EACH","OUTPUT","ADOPTEDBUD",null,null,null,null,"Veterans Services (116)","Driver’s License Revocation Hearings","Driver’s License Revocation Hearings",{"$f":"_xlfn.XLOOKUP(Measures_Table[[#This Row],[PM Program]],Programs_Active20[ZSBPPROGM (KEY)],Programs_Active20[LONG TEXT])","v":"Veterans Services"}]
[2677,116,"Y",176,"EACH","OUTPUT","ADOPTEDBUD",null,null,null,null,"Veterans Services (116)","Violation of Promise to Appear Cases Fil","Violation of Promise to Appear Cases Filed",{"$f":"_xlfn.XLOOKUP(Measures_Table[[#This Row],[PM Program]],Programs_Active20[ZSBPPROGM (KEY)],Programs_Active20[LONG TEXT])","v":"Veterans Services"}]
[2678,116,"Y",176,"EACH","OUTPUT","ADOPTEDBUD",null,null,null,null,"Veterans Services (116)","Possession of Marijuana Cases Filed","Possession of Marijuana Cases Filed",{"$f":"_xlfn.XLOOKUP(Measures_Table[[#This Row],[PM Program]],Programs_Active20[ZSBPPROGM (KEY)],Programs_Active20[LONG TEXT])","v":"Veterans Services"}]
[2679,116,"Y",176,"EACH","OUTPUT","ADOPTEDBUD",null,null,null,null,"Veterans Services (116)","Possession of Marijuana Diversion Progra","Possession of Marijuana Diversion Program Opted by Defendant",{"$f":"_xlfn.XLOOKUP(Measures_Table[[#This Row],[PM Program]],Programs_Active20[ZSBPPROGM (KEY)],Programs_Active20[LONG TEXT])","v":"Veterans Services"}]
[2680,116,"Y",176,"EACH","OUTPUT","ADOPTEDBUD",null,null,null,null,"Veterans Services (116)","Possession of Marijuana Cases Disposed o","Possession of Marijuana Cases Disposed of by Diversion Program",{"$f":"_xlfn.XLOOKUP(Measures_Table[[#This Row],[PM Program]],Programs_Active20[ZSBPPROGM (KEY)],Programs_Active20[LONG TEXT])","v":"Veterans Services"}]
[2681,116,"Y",176,"EACH","OUTPUT","NEITHER",null,null,null,null,"Veterans Services (116)","Warrants Issued due to Possesion of Mari","Warrants Issued due to Possesion of Marijuana Failure to Comply",{"$f":"_xlfn.XLOOKUP(Measures_Table[[#This Row],[PM Program]],Programs_Active20[ZSBPPROGM (KEY)],Programs_Active20[LONG TEXT])","v":"Veterans Services"}]
[2682,116,"Y",176,"EACH","INPUT","ADOPTEDBUD",null,null,null,null,"Veterans Services (116)","Cite & Release Appearances","Cite & Release Appearances",{"$f":"_xlfn.XLOOKUP(Measures_Table[[#This Row],[PM Program]],Programs_Active20[ZSBPPROGM (KEY)],Programs_Active20[LONG TEXT])","v":"Veterans Services"}]
[2683,127,"Y",230,"PERCENT","OUTCOME","ADOPTEDBUD",null,null,null,null,"Civil (127)","Cite & Release Failure to Appear","Cite & Release Failure to Appear",{"$f":"_xlfn.XLOOKUP(Measures_Table[[#This Row],[PM Program]],Programs_Active20[ZSBPPROGM (KEY)],Programs_Active20[LONG TEXT])","v":"Civil"}]
[2684,127,"Y",231,"PERCENT","OUTCOME","ADOPTEDBUD",null,null,null,null,"Criminal (127)","Class A & B Misdeameanors - Arrest Warra","Class A & B Misdeameanors - Arrest Warrants Issued",{"$f":"_xlfn.XLOOKUP(Measures_Table[[#This Row],[PM Program]],Programs_Active20[ZSBPPROGM (KEY)],Programs_Active20[LONG TEXT])","v":"Criminal"}]
[2685,137,"Y",54,"EACH","OUTPUT","ADOPTEDBUD",null,null,null,null,"Canine (137)","Class C Compliance Dismissals","Class C Compliance Dismissals",{"$f":"_xlfn.XLOOKUP(Measures_Table[[#This Row],[PM Program]],Programs_Active20[ZSBPPROGM (KEY)],Programs_Active20[LONG TEXT])","v":"Canine"}]
[2686,137,"Y",54,"EACH","OUTPUT","ADOPTEDBUD",null,null,null,null,"Canine (137)","% of Active Cases vs. Cases Disposed","% of Active Cases vs. Cases Disposed",{"$f":"_xlfn.XLOOKUP(Measures_Table[[#This Row],[PM Program]],Programs_Active20[ZSBPPROGM (KEY)],Programs_Active20[LONG TEXT])","v":"Canine"}]
[2687,137,"Y",54,"EACH","OUTPUT","ADOPTEDBUD",null,null,null,null,"Canine (137)","Costs Savings in Bookings due to POM Div","Costs Savings in Bookings due to POM Diversion Program",{"$f":"_xlfn.XLOOKUP(Measures_Table[[#This Row],[PM Program]],Programs_Active20[ZSBPPROGM (KEY)],Programs_Active20[LONG TEXT])","v":"Canine"}]
[2688,137,"Y",54,"EACH","OUTPUT","ADOPTEDBUD",null,null,null,null,"Canine (137)","Criminal Hearings Scheduled & Held","Criminal Hearings Scheduled & Held",{"$f":"_xlfn.XLOOKUP(Measures_Table[[#This Row],[PM Program]],Programs_Active20[ZSBPPROGM (KEY)],Programs_Active20[LONG TEXT])","v":"Canine"}]
[2689,137,"Y",54,"EACH","OUTPUT","ADOPTEDBUD",null,null,null,null,"Canine (137)","Felony Arrest Warrants Issued","Felony Arrest Warrants Issued",{"$f":"_xlfn.XLOOKUP(Measures_Table[[#This Row],[PM Program]],Programs_Active20[ZSBPPROGM (KEY)],Programs_Active20[LONG TEXT])","v":"Canine"}]
[2690,137,"Y",54,"EACH","OUTPUT","ADOPTEDBUD",null,null,null,null,"Canine (137)","Total Cases Disposed","Total Cases Disposed",{"$f":"_xlfn.XLOOKUP(Measures_Table[[#This Row],[PM Program]],Programs_Active20[ZSBPPROGM (KEY)],Programs_Active20[LONG TEXT])","v":"Canine"}]
[2691,137,"Y",54,"EACH","OUTPUT","ADOPTEDBUD",null,null,null,null,"Canine (137)","Cases resolved within 6-8 months of file","Cases resolved within 6-8 months of file date or sooner",{"$f":"_xlfn.XLOOKUP(Measures_Table[[#This Row],[PM Program]],Programs_Active20[ZSBPPROGM (KEY)],Programs_Active20[LONG TEXT])","v":"Canine"}]
[2692,137,"Y",54,"EACH","OUTPUT","ADOPTEDBUD",null,null,null,null,"Canine (137)","Cases Appealed","Cases Appealed",{"$f":"_xlfn.XLOOKUP(Measures_Table[[#This Row],[PM Program]],Programs_Active20[ZSBPPROGM (KEY)],Programs_Active20[LONG TEXT])","v":"Canine"}]
[2693,137,"Y",59,"EACH","INPUT","ADOPTEDBUD",null,null,null,null,"CJIS-Arrest/Exp/Fug/ID/Parole/State(137)","Hearings Scheduled & Held","Hearings Scheduled & Held",{"$f":"_xlfn.XLOOKUP(Measures_Table[[#This Row],[PM Program]],Programs_Active20[ZSBPPROGM (KEY)],Programs_Active20[LONG TEXT])","v":"CJIS - Arrest/Expunction/Fugitive/Misuse ID/Parole/StateXfer"}]
[2694,137,"Y",59,"EACH","INPUT","ADOPTEDBUD",null,null,null,null,"CJIS-Arrest/Exp/Fug/ID/Parole/State(137)","# of Project-Specific milestones met","Number of Project-Specific milestones met",{"$f":"_xlfn.XLOOKUP(Measures_Table[[#This Row],[PM Program]],Programs_Active20[ZSBPPROGM (KEY)],Programs_Active20[LONG TEXT])","v":"CJIS - Arrest/Expunction/Fugitive/Misuse ID/Parole/StateXfer"}]
[2695,137,"Y",59,"EACH","INPUT","ADOPTEDBUD",null,null,null,null,"CJIS-Arrest/Exp/Fug/ID/Parole/State(137)","% of trial settings disposed of prior to","% of trial settings disposed of prior to trial",{"$f":"_xlfn.XLOOKUP(Measures_Table[[#This Row],[PM Program]],Programs_Active20[ZSBPPROGM (KEY)],Programs_Active20[LONG TEXT])","v":"CJIS - Arrest/Expunction/Fugitive/Misuse ID/Parole/StateXfer"}]
[2696,137,"Y",59,"EACH","INPUT","ADOPTEDBUD",null,null,null,null,"CJIS-Arrest/Exp/Fug/ID/Parole/State(137)","# of times Judges or Court Staff Attorne","# of times Judges or Court Staff Attorneys assist other Judges or Court Staff Attorneys through phone calls, walk-ins, and e-mail inquiries",{"$f":"_xlfn.XLOOKUP(Measures_Table[[#This Row],[PM Program]],Programs_Active20[ZSBPPROGM (KEY)],Programs_Active20[LONG TEXT])","v":"CJIS - Arrest/Expunction/Fugitive/Misuse ID/Parole/StateXfer"}]
[2697,137,"Y",59,"EACH","INPUT","ADOPTEDBUD",null,null,null,null,"CJIS-Arrest/Exp/Fug/ID/Parole/State(137)","# of Customer Satisfaction Surveys Distr","# of Customer Satisfaction Surveys Distrubuted",{"$f":"_xlfn.XLOOKUP(Measures_Table[[#This Row],[PM Program]],Programs_Active20[ZSBPPROGM (KEY)],Programs_Active20[LONG TEXT])","v":"CJIS - Arrest/Expunction/Fugitive/Misuse ID/Parole/StateXfer"}]
[2698,137,"Y",59,"EACH","INPUT","ADOPTEDBUD",null,null,null,null,"CJIS-Arrest/Exp/Fug/ID/Parole/State(137)","# of Customer Satisfaction Surveys Retur","# of Customer Satisfaction Surveys Returned",{"$f":"_xlfn.XLOOKUP(Measures_Table[[#This Row],[PM Program]],Programs_Active20[ZSBPPROGM (KEY)],Programs_Active20[LONG TEXT])","v":"CJIS - Arrest/Expunction/Fugitive/Misuse ID/Parole/StateXfer"}]
[2699,137,"Y",59,"EACH","INPUT","ADOPTEDBUD",null,null,null,null,"CJIS-Arrest/Exp/Fug/ID/Parole/State(137)","% of Customers with Overall Satisfaction","% of Customers with Overall Satisfaction based on Customer Survey Results",{"$f":"_xlfn.XLOOKUP(Measures_Table[[#This Row],[PM Program]],Programs_Active20[ZSBPPROGM (KEY)],Programs_Active20[LONG TEXT])","v":"CJIS - Arrest/Expunction/Fugitive/Misuse ID/Parole/StateXfer"}]
[2700,137,"Y",59,"EACH","INPUT","ADOPTEDBUD",null,null,null,null,"CJIS-Arrest/Exp/Fug/ID/Parole/State(137)","Total # Office visits","Total # Office visits",{"$f":"_xlfn.XLOOKUP(Measures_Table[[#This Row],[PM Program]],Programs_Active20[ZSBPPROGM (KEY)],Programs_Active20[LONG TEXT])","v":"CJIS - Arrest/Expunction/Fugitive/Misuse ID/Parole/StateXfer"}]
[2701,137,"Y",59,"EACH","INPUT","ADOPTEDBUD",null,null,null,null,"CJIS-Arrest/Exp/Fug/ID/Parole/State(137)","Unique # of phone calls","Unique # of phone calls",{"$f":"_xlfn.XLOOKUP(Measures_Table[[#This Row],[PM Program]],Programs_Active20[ZSBPPROGM (KEY)],Programs_Active20[LONG TEXT])","v":"CJIS - Arrest/Expunction/Fugitive/Misuse ID/Parole/StateXfer"}]
[2702,137,"Y",59,"EACH","INPUT","ADOPTEDBUD",null,null,null,null,"CJIS-Arrest/Exp/Fug/ID/Parole/State(137)","Actual total # of phone calls","Actual total # of phone calls",{"$f":"_xlfn.XLOOKUP(Measures_Table[[#This Row],[PM Program]],Programs_Active20[ZSBPPROGM (KEY)],Programs_Active20[LONG TEXT])","v":"CJIS - Arrest/Expunction/Fugitive/Misuse ID/Parole/StateXfer"}]
[2703,137,"Y",59,"EACH","INPUT","ADOPTEDBUD",null,null,null,null,"CJIS-Arrest/Exp/Fug/ID/Parole/State(137)","# of Job Fairs Participated In Per Year","# of Job Fairs Participated In Per Year",{"$f":"_xlfn.XLOOKUP(Measures_Table[[#This Row],[PM Program]],Programs_Active20[ZSBPPROGM (KEY)],Programs_Active20[LONG TEXT])","v":"CJIS - Arrest/Expunction/Fugitive/Misuse ID/Parole/StateXfer"}]
[2704,137,"Y",59,"EACH","INPUT","ADOPTEDBUD",null,null,null,null,"CJIS-Arrest/Exp/Fug/ID/Parole/State(137)","# of VSO Events Supported","# of VSO Events Supported",{"$f":"_xlfn.XLOOKUP(Measures_Table[[#This Row],[PM Program]],Programs_Active20[ZSBPPROGM (KEY)],Programs_Active20[LONG TEXT])","v":"CJIS - Arrest/Expunction/Fugitive/Misuse ID/Parole/StateXfer"}]
[2705,137,"Y",59,"EACH","INPUT","ADOPTEDBUD",null,null,null,null,"CJIS-Arrest/Exp/Fug/ID/Parole/State(137)","# of Travis County VSO Events Sponsored","# of Travis County VSO Events Sponsored",{"$f":"_xlfn.XLOOKUP(Measures_Table[[#This Row],[PM Program]],Programs_Active20[ZSBPPROGM (KEY)],Programs_Active20[LONG TEXT])","v":"CJIS - Arrest/Expunction/Fugitive/Misuse ID/Parole/StateXfer"}]
[2706,137,"Y",59,"EACH","INPUT","ADOPTEDBUD",null,null,null,null,"CJIS-Arrest/Exp/Fug/ID/Parole/State(137)","# of Travis County VSO Women's Events Sp","# of Travis County VSO Women's Events Sponsored or Attended",{"$f":"_xlfn.XLOOKUP(Measures_Table[[#This Row],[PM Program]],Programs_Active20[ZSBPPROGM (KEY)],Programs_Active20[LONG TEXT])","v":"CJIS - Arrest/Expunction/Fugitive/Misuse ID/Parole/StateXfer"}]
[2707,137,"Y",59,"EACH","INPUT","ADOPTEDBUD",null,null,null,null,"CJIS-Arrest/Exp/Fug/ID/Parole/State(137)","# of Congressional/Legislative Activitie","# of Congressional/Legislative Activities",{"$f":"_xlfn.XLOOKUP(Measures_Table[[#This Row],[PM Program]],Programs_Active20[ZSBPPROGM (KEY)],Programs_Active20[LONG TEXT])","v":"CJIS - Arrest/Expunction/Fugitive/Misuse ID/Parole/StateXfer"}]
[2708,137,"Y",59,"EACH","INPUT","ADOPTEDBUD",null,null,null,null,"CJIS-Arrest/Exp/Fug/ID/Parole/State(137)","# of Active MOU's With Internal and Exte","# of Active MOU's With Internal and External Partners",{"$f":"_xlfn.XLOOKUP(Measures_Table[[#This Row],[PM Program]],Programs_Active20[ZSBPPROGM (KEY)],Programs_Active20[LONG TEXT])","v":"CJIS - Arrest/Expunction/Fugitive/Misuse ID/Parole/StateXfer"}]
[2709,137,"Y",59,"EACH","INPUT","ADOPTEDBUD",null,null,null,null,"CJIS-Arrest/Exp/Fug/ID/Parole/State(137)","# of Total Trainings Attended per year","# of Total Trainings Attended per year",{"$f":"_xlfn.XLOOKUP(Measures_Table[[#This Row],[PM Program]],Programs_Active20[ZSBPPROGM (KEY)],Programs_Active20[LONG TEXT])","v":"CJIS - Arrest/Expunction/Fugitive/Misuse ID/Parole/StateXfer"}]
[2710,137,"Y",60,"EACH","INPUT","ADOPTEDBUD",null,null,null,null,"Classification-Recs -CSTU/Property (137)","Percentage of Cases Disposed","Percentage of Cases Disposed",{"$f":"_xlfn.XLOOKUP(Measures_Table[[#This Row],[PM Program]],Programs_Active20[ZSBPPROGM (KEY)],Programs_Active20[LONG TEXT])","v":"Classification-Records - CSTU / Property\n"}]
[2711,137,"Y",60,"EACH","INPUT","ADOPTEDBUD",null,null,null,null,"Classification-Recs -CSTU/Property (137)","Percentage of Cases Disposed","Percentage of Cases Disposed",{"$f":"_xlfn.XLOOKUP(Measures_Table[[#This Row],[PM Program]],Programs_Active20[ZSBPPROGM (KEY)],Programs_Active20[LONG TEXT])","v":"Classification-Records - CSTU / Property\n"}]
[2712,137,"Y",60,"EACH","INPUT","ADOPTEDBUD",null,null,null,null,"Classification-Recs -CSTU/Property (137)","No. of K9 apprehension","No. of K9 apprehension",{"$f":"_xlfn.XLOOKUP(Measures_Table[[#This Row],[PM Program]],Programs_Active20[ZSBPPROGM (KEY)],Programs_Active20[LONG TEXT])","v":"Classification-Records - CSTU / Property\n"}]
[2713,111,"Y",196,"PERCENT","OUTCOME","ADOPTEDBUD",null,null,null,null,"HR Administration (111)","No. of K9 team felony arrests","No. of K9 team felony arrests",{"$f":"_xlfn.XLOOKUP(Measures_Table[[#This Row],[PM Program]],Programs_Active20[ZSBPPROGM (KEY)],Programs_Active20[LONG TEXT])","v":"HR Administration"}]
[2714,111,"Y",198,"EACH","OUTCOME","NEITHER",null,null,null,null,"Risk Management Self Insurance Fnd (111)","No. of K9 team misd arrests","No. of K9 team misd arrests",{"$f":"_xlfn.XLOOKUP(Measures_Table[[#This Row],[PM Program]],Programs_Active20[ZSBPPROGM (KEY)],Programs_Active20[LONG TEXT])","v":"Risk Management Self Insurance Fund"}]
[2715,155,"Y",180,"PERCENT","OUTCOME","ADOPTEDBUD",null,null,null,null,"Office of Parent Representation (155)","No. of Person searches","No. of Person searches",{"$f":"_xlfn.XLOOKUP(Measures_Table[[#This Row],[PM Program]],Programs_Active20[ZSBPPROGM (KEY)],Programs_Active20[LONG TEXT])","v":"Office of Parent Representation"}]
[2716,155,"Y",180,"PERCENT","OUTCOME","ADOPTEDBUD",null,null,null,null,"Office of Parent Representation (155)","No. of jail searches","No. of jail searches",{"$f":"_xlfn.XLOOKUP(Measures_Table[[#This Row],[PM Program]],Programs_Active20[ZSBPPROGM (KEY)],Programs_Active20[LONG TEXT])","v":"Office of Parent Representation"}]
[2717,155,"Y",180,"EACH","INPUT","BLACKBOOK",null,null,null,null,"Office of Parent Representation (155)","No. of narcotics searches","No. of narcotics searches",{"$f":"_xlfn.XLOOKUP(Measures_Table[[#This Row],[PM Program]],Programs_Active20[ZSBPPROGM (KEY)],Programs_Active20[LONG TEXT])","v":"Office of Parent Representation"}]
[2718,155,"Y",180,"EACH","INPUT","BLACKBOOK",null,null,null,null,"Office of Parent Representation (155)","No. of article searches","No. of article searches",{"$f":"_xlfn.XLOOKUP(Measures_Table[[#This Row],[PM Program]],Programs_Active20[ZSBPPROGM (KEY)],Programs_Active20[LONG TEXT])","v":"Office of Parent Representation"}]
[2719,155,"Y",180,"EACH","INPUT","ADOPTEDBUD",null,null,null,null,"Office of Parent Representation (155)","No. of Assists-Patrol/Vice/SWAT","No. of Assists-Patrol/Vice/SWAT",{"$f":"_xlfn.XLOOKUP(Measures_Table[[#This Row],[PM Program]],Programs_Active20[ZSBPPROGM (KEY)],Programs_Active20[LONG TEXT])","v":"Office of Parent Representation"}]
[2720,155,"Y",180,"EACH","EFFICIENCY","BLACKBOOK",null,null,null,null,"Office of Parent Representation (155)","No. of APD Fingerprint Request","No. of APD Fingerprint Request",{"$f":"_xlfn.XLOOKUP(Measures_Table[[#This Row],[PM Program]],Programs_Active20[ZSBPPROGM (KEY)],Programs_Active20[LONG TEXT])","v":"Office of Parent Representation"}]
[2723,103,"Y",188,"EACH","OUTPUT","ADOPTEDBUD",null,null,null,null,"County Commissioner Precinct Two (103)","No. of Documents Rec'd & Entered","No. of Documents Rec'd & Entered",{"$f":"_xlfn.XLOOKUP(Measures_Table[[#This Row],[PM Program]],Programs_Active20[ZSBPPROGM (KEY)],Programs_Active20[LONG TEXT])","v":"County Commissioner Precinct Two"}]
[2725,130,"Y",239,"EACH","OUTPUT","ADOPTEDBUD",null,null,null,null,"Civil Department (130)","No. of ISF Transfers","No. of ISF Transfers",{"$f":"_xlfn.XLOOKUP(Measures_Table[[#This Row],[PM Program]],Programs_Active20[ZSBPPROGM (KEY)],Programs_Active20[LONG TEXT])","v":"Civil Department"}]
[2726,130,"Y",240,"EACH","OUTPUT","ADOPTEDBUD",null,null,null,null,"Criminal Department (130)","No. of Identity Cases","No. of Identity Cases",{"$f":"_xlfn.XLOOKUP(Measures_Table[[#This Row],[PM Program]],Programs_Active20[ZSBPPROGM (KEY)],Programs_Active20[LONG TEXT])","v":"Criminal Department"}]
[2727,147,"Y",276,"EACH","OUTPUT","ADOPTEDBUD",null,null,null,null,"Fire Marshal (147)","No. of JMOV's","No. of JMOV's",{"$f":"_xlfn.XLOOKUP(Measures_Table[[#This Row],[PM Program]],Programs_Active20[ZSBPPROGM (KEY)],Programs_Active20[LONG TEXT])","v":"Fire Marshal"}]
[2728,147,"Y",276,"EACH","OUTPUT","ADOPTEDBUD",null,null,null,null,"Fire Marshal (147)","No. of Merged ID Issues","No. of Merged ID Issues",{"$f":"_xlfn.XLOOKUP(Measures_Table[[#This Row],[PM Program]],Programs_Active20[ZSBPPROGM (KEY)],Programs_Active20[LONG TEXT])","v":"Fire Marshal"}]
[2729,147,"Y",276,"EACH","OUTPUT","ADOPTEDBUD",null,null,null,null,"Fire Marshal (147)","No. of OOC Arrest","No. of OOC Arrest",{"$f":"_xlfn.XLOOKUP(Measures_Table[[#This Row],[PM Program]],Programs_Active20[ZSBPPROGM (KEY)],Programs_Active20[LONG TEXT])","v":"Fire Marshal"}]
[2730,147,"Y",276,"EACH","INPUT","ADOPTEDBUD",null,null,null,null,"Fire Marshal (147)","No. of OOS Arrest","No. of OOS Arrest",{"$f":"_xlfn.XLOOKUP(Measures_Table[[#This Row],[PM Program]],Programs_Active20[ZSBPPROGM (KEY)],Programs_Active20[LONG TEXT])","v":"Fire Marshal"}]
[2731,132,"Y",246,"EACH","INPUT","ADOPTEDBUD",null,null,null,null,"Interlocal Agreement (132)","No. of Petitions received","No. of Petitions received",{"$f":"_xlfn.XLOOKUP(Measures_Table[[#This Row],[PM Program]],Programs_Active20[ZSBPPROGM (KEY)],Programs_Active20[LONG TEXT])","v":"Interlocal Agreement"}]
[2732,132,"Y",246,"EACH","INPUT","ADOPTEDBUD",null,null,null,null,"Interlocal Agreement (132)","No. of Pre-signed Waivers Rec'd","No. of Pre-signed Waivers Rec'd",{"$f":"_xlfn.XLOOKUP(Measures_Table[[#This Row],[PM Program]],Programs_Active20[ZSBPPROGM (KEY)],Programs_Active20[LONG TEXT])","v":"Interlocal Agreement"}]
[2733,121,"Y",214,"EACH","OUTPUT","NEITHER",null,null,null,null,"Jury Management Office (121)","No. of Research Request","No. of Research Request",{"$f":"_xlfn.XLOOKUP(Measures_Table[[#This Row],[PM Program]],Programs_Active20[ZSBPPROGM (KEY)],Programs_Active20[LONG TEXT])","v":"Jury Management Office"}]
[2734,121,"Y",214,"EACH","INPUT","NEITHER",null,null,null,null,"Jury Management Office (121)","No. of SAFPF Transfers","No. of SAFPF Transfers",{"$f":"_xlfn.XLOOKUP(Measures_Table[[#This Row],[PM Program]],Programs_Active20[ZSBPPROGM (KEY)],Programs_Active20[LONG TEXT])","v":"Jury Management Office"}]
[2735,121,"Y",214,"EACH","INPUT","NEITHER",null,null,null,null,"Jury Management Office (121)","No. of State Jail Transfers","No. of State Jail Transfers",{"$f":"_xlfn.XLOOKUP(Measures_Table[[#This Row],[PM Program]],Programs_Active20[ZSBPPROGM (KEY)],Programs_Active20[LONG TEXT])","v":"Jury Management Office"}]
[2736,121,"Y",217,"EACH","INPUT","ADOPTEDBUD",null,null,null,null,"Civil Division (Family) (121)","No. of Waivers Signed","No. of Waivers Signed",{"$f":"_xlfn.XLOOKUP(Measures_Table[[#This Row],[PM Program]],Programs_Active20[ZSBPPROGM (KEY)],Programs_Active20[LONG TEXT])","v":"Accounting Division"}]
[2737,121,"Y",217,"EACH","INPUT","ADOPTEDBUD",null,null,null,null,"Civil Division (Family) (121)","No. of new PREA allegations/incidents re","No. of new PREA allegations/incidents reported",{"$f":"_xlfn.XLOOKUP(Measures_Table[[#This Row],[PM Program]],Programs_Active20[ZSBPPROGM (KEY)],Programs_Active20[LONG TEXT])","v":"Accounting Division"}]
[2738,121,"Y",217,"EACH","INPUT","ADOPTEDBUD",null,null,null,null,"Civil Division (Family) (121)","No. of PREA investigations completed","No. of PREA investigations completed",{"$f":"_xlfn.XLOOKUP(Measures_Table[[#This Row],[PM Program]],Programs_Active20[ZSBPPROGM (KEY)],Programs_Active20[LONG TEXT])","v":"Accounting Division"}]
[2739,121,"Y",217,"EACH","OUTPUT","ADOPTEDBUD",null,null,null,null,"Civil Division (Family) (121)","No. of substantiated cases of sexual abu","No. of substantiated cases of sexual abuse",{"$f":"_xlfn.XLOOKUP(Measures_Table[[#This Row],[PM Program]],Programs_Active20[ZSBPPROGM (KEY)],Programs_Active20[LONG TEXT])","v":"Accounting Division"}]
[2741,121,"Y",218,"EACH","INPUT","ADOPTEDBUD",null,null,null,null,"General Litigation/Govt Division (121)","Avg # of days lost time per claim for WC","Avg # of days lost time per claim for WC",{"$f":"_xlfn.XLOOKUP(Measures_Table[[#This Row],[PM Program]],Programs_Active20[ZSBPPROGM (KEY)],Programs_Active20[LONG TEXT])","v":"General Litigation/Government Division"}]
[2743,121,"Y",215,"EACH","OUTPUT","NEITHER",null,null,null,null,"Tech Support Dev & Quality (121)","% of cases resolved without trial","% of cases resolved without trial",{"$f":"_xlfn.XLOOKUP(Measures_Table[[#This Row],[PM Program]],Programs_Active20[ZSBPPROGM (KEY)],Programs_Active20[LONG TEXT])","v":"Civil Division (Family)"}]
[2744,121,"Y",215,"EACH","OUTPUT","ADOPTEDBUD",null,null,null,null,"Tech Support Dev & Quality (121)","# of attorney / staff terminations","# of attorney / staff terminations",{"$f":"_xlfn.XLOOKUP(Measures_Table[[#This Row],[PM Program]],Programs_Active20[ZSBPPROGM (KEY)],Programs_Active20[LONG TEXT])","v":"Civil Division (Family)"}]
[2745,121,"Y",215,"EACH","OUTPUT","NEITHER",null,null,null,null,"Tech Support Dev & Quality (121)","# of new cases assigned to private attor","# of new cases assigned to private attorneys\n",{"$f":"_xlfn.XLOOKUP(Measures_Table[[#This Row],[PM Program]],Programs_Active20[ZSBPPROGM (KEY)],Programs_Active20[LONG TEXT])","v":"Civil Division (Family)"}]
[2746,121,"Y",215,"EACH","OUTPUT","NEITHER",null,null,null,null,"Tech Support Dev & Quality (121)","# of new cases assigned to OPR","# of new cases assigned to OPR",{"$f":"_xlfn.XLOOKUP(Measures_Table[[#This Row],[PM Program]],Programs_Active20[ZSBPPROGM (KEY)],Programs_Active20[LONG TEXT])","v":"Civil Division (Family)"}]
[2747,121,"Y",216,"DOLLARS","OUTPUT","ADOPTEDBUD",null,null,null,null,"Accounting Division (121)","Case load per OPR attorney","Case load per OPR attorney",{"$f":"_xlfn.XLOOKUP(Measures_Table[[#This Row],[PM Program]],Programs_Active20[ZSBPPROGM (KEY)],Programs_Active20[LONG TEXT])","v":"Accounting Division"}]
[2748,121,"Y",216,"EACH","OUTPUT","NEITHER",null,null,null,null,"Accounting Division (121)","% of clients assisted in finding additio","% of clients assisted in finding additional social services such as housing, substance abuse treatment, and mental health providers to fill in the gaps of services.",{"$f":"_xlfn.XLOOKUP(Measures_Table[[#This Row],[PM Program]],Programs_Active20[ZSBPPROGM (KEY)],Programs_Active20[LONG TEXT])","v":"Accounting Division"}]
[2749,121,"Y",216,"EACH","OUTPUT","NEITHER",null,null,null,null,"Accounting Division (121)","# of Civil bonds received and recorded","# of Civil bonds received and recorded",{"$f":"_xlfn.XLOOKUP(Measures_Table[[#This Row],[PM Program]],Programs_Active20[ZSBPPROGM (KEY)],Programs_Active20[LONG TEXT])","v":"Accounting Division"}]
[2750,121,"Y",216,"EACH","INPUT","NEITHER",null,null,null,null,"Accounting Division (121)","Disaster preparedness meetings and event","Disaster preparedness meetings and events",{"$f":"_xlfn.XLOOKUP(Measures_Table[[#This Row],[PM Program]],Programs_Active20[ZSBPPROGM (KEY)],Programs_Active20[LONG TEXT])","v":"Accounting Division"}]
[2751,121,"Y",216,"EACH","INPUT","NEITHER",null,null,null,null,"Accounting Division (121)","Conservation and environmental boards an","Conservation and environmental boards and committees",{"$f":"_xlfn.XLOOKUP(Measures_Table[[#This Row],[PM Program]],Programs_Active20[ZSBPPROGM (KEY)],Programs_Active20[LONG TEXT])","v":"Accounting Division"}]
[2752,121,"Y",216,"EACH","INPUT","NEITHER",null,null,null,null,"Accounting Division (121)","Court ordered actions completed via pape","Court ordered actions completed via paperless workflow",{"$f":"_xlfn.XLOOKUP(Measures_Table[[#This Row],[PM Program]],Programs_Active20[ZSBPPROGM (KEY)],Programs_Active20[LONG TEXT])","v":"Accounting Division"}]
[2756,121,"Y",218,"EACH","INPUT","NEITHER",null,null,null,null,"General Litigation/Govt Division (121)","Number of Trailer Deployments","Number of Trailer Deployments",{"$f":"_xlfn.XLOOKUP(Measures_Table[[#This Row],[PM Program]],Programs_Active20[ZSBPPROGM (KEY)],Programs_Active20[LONG TEXT])","v":"General Litigation/Government Division"}]
[2760,112,"Y",29,"PERCENT","OUTPUT","BLACKBOOK",null,null,null,null,"Application Dev & Productn Support (112)","# of jury panels","# of jury panels",{"$f":"_xlfn.XLOOKUP(Measures_Table[[#This Row],[PM Program]],Programs_Active20[ZSBPPROGM (KEY)],Programs_Active20[LONG TEXT])","v":"Application Development & Production Support"}]
[2761,112,"Y",29,"PERCENT","OUTPUT","BLACKBOOK",null,null,null,null,"Application Dev & Productn Support (112)","# of contacts (phone, email, mail, walk-","# of contacts (phone, email, mail, walk-in) related to jury service inquiries",{"$f":"_xlfn.XLOOKUP(Measures_Table[[#This Row],[PM Program]],Programs_Active20[ZSBPPROGM (KEY)],Programs_Active20[LONG TEXT])","v":"Application Development & Production Support"}]
[2762,112,"Y",29,"PERCENT","OUTPUT","BLACKBOOK",null,null,null,null,"Application Dev & Productn Support (112)","# of contacts (phone, walk-in) related t","# of contacts (phone, walk-in) related to passport service inquiries",{"$f":"_xlfn.XLOOKUP(Measures_Table[[#This Row],[PM Program]],Programs_Active20[ZSBPPROGM (KEY)],Programs_Active20[LONG TEXT])","v":"Application Development & Production Support"}]
[2763,112,"Y",29,"EACH","OUTPUT","BLACKBOOK",null,null,null,null,"Application Dev & Productn Support (112)","# of dispositions","# of dispositions",{"$f":"_xlfn.XLOOKUP(Measures_Table[[#This Row],[PM Program]],Programs_Active20[ZSBPPROGM (KEY)],Programs_Active20[LONG TEXT])","v":"Application Development & Production Support"}]
[2765,112,"Y",29,"EACH","INPUT","BLACKBOOK",null,null,null,null,"Application Dev & Productn Support (112)","# of AG cases","# of AG cases",{"$f":"_xlfn.XLOOKUP(Measures_Table[[#This Row],[PM Program]],Programs_Active20[ZSBPPROGM (KEY)],Programs_Active20[LONG TEXT])","v":"Application Development & Production Support"}]
[2767,112,"Y",29,"EACH","OUTPUT","BLACKBOOK",null,null,null,null,"Application Dev & Productn Support (112)","# of dispositions","# of dispositions",{"$f":"_xlfn.XLOOKUP(Measures_Table[[#This Row],[PM Program]],Programs_Active20[ZSBPPROGM (KEY)],Programs_Active20[LONG TEXT])","v":"Application Development & Production Support"}]
[2769,112,"Y",29,"PERCENT","OUTCOME","BLACKBOOK",null,null,null,null,"Application Dev & Productn Support (112)","total # of production entries in FACTS","total # of production entries in FACTS",{"$f":"_xlfn.XLOOKUP(Measures_Table[[#This Row],[PM Program]],Programs_Active20[ZSBPPROGM (KEY)],Programs_Active20[LONG TEXT])","v":"Application Development & Production Support"}]
[2770,114,"Y",295,"DOLLARS","INPUT","ADOPTEDBUD",null,null,null,null,"Exposition Center (114)","# of Criminal production entries reviewe","# of Criminal production entries reviewed/audited for quality assurance",{"$f":"_xlfn.XLOOKUP(Measures_Table[[#This Row],[PM Program]],Programs_Active20[ZSBPPROGM (KEY)],Programs_Active20[LONG TEXT])","v":"Exposition Center"}]
[2771,114,"Y",295,"DOLLARS","INPUT","ADOPTEDBUD",null,null,null,null,"Exposition Center (114)","Civil/criminal documents scanned into DM","Civil/criminal documents scanned into DMS",{"$f":"_xlfn.XLOOKUP(Measures_Table[[#This Row],[PM Program]],Programs_Active20[ZSBPPROGM (KEY)],Programs_Active20[LONG TEXT])","v":"Exposition Center"}]
[2772,114,"Y",295,"EACH","OUTPUT","ADOPTEDBUD",null,null,null,null,"Exposition Center (114)","# of documents prepared for conversion","# of documents prepared for conversion",{"$f":"_xlfn.XLOOKUP(Measures_Table[[#This Row],[PM Program]],Programs_Active20[ZSBPPROGM (KEY)],Programs_Active20[LONG TEXT])","v":"Exposition Center"}]
[2773,114,"Y",295,"EACH","OUTPUT","ADOPTEDBUD",null,null,null,null,"Exposition Center (114)","# of pages converted to electronic forma","# of pages converted to electronic format",{"$f":"_xlfn.XLOOKUP(Measures_Table[[#This Row],[PM Program]],Programs_Active20[ZSBPPROGM (KEY)],Programs_Active20[LONG TEXT])","v":"Exposition Center"}]
[2774,114,"Y",295,"EACH","OUTPUT","ADOPTEDBUD",null,null,null,null,"Exposition Center (114)","$ Amount of Delinquent court costs colle","$ Amount of Delinquent court costs collected",{"$f":"_xlfn.XLOOKUP(Measures_Table[[#This Row],[PM Program]],Programs_Active20[ZSBPPROGM (KEY)],Programs_Active20[LONG TEXT])","v":"Exposition Center"}]
[2775,145,"Y",126,"PERCENT","OUTCOME","ADOPTEDBUD",null,null,null,null,"Residential Services (145)","# of historical Civil files reviewed and","# of historical Civil files reviewed and verified for financial quality assurance (SPW #3)",{"$f":"_xlfn.XLOOKUP(Measures_Table[[#This Row],[PM Program]],Programs_Active20[ZSBPPROGM (KEY)],Programs_Active20[LONG TEXT])","v":"Residential Services"}]
[2776,145,"Y",126,"PERCENT","OUTCOME","ADOPTEDBUD",null,null,null,null,"Residential Services (145)","# of historical Criminal files reviwed a","# of historical Criminal files reviwed and verified for financial quality assurance (SPW#4)",{"$f":"_xlfn.XLOOKUP(Measures_Table[[#This Row],[PM Program]],Programs_Active20[ZSBPPROGM (KEY)],Programs_Active20[LONG TEXT])","v":"Residential Services"}]
[2777,109,"Y",12,"EACH","OUTCOME","ADOPTEDBUD",null,null,null,null,"Investment Management (109)","# of Registry accounts","# of Registry accounts",{"$f":"_xlfn.XLOOKUP(Measures_Table[[#This Row],[PM Program]],Programs_Active20[ZSBPPROGM (KEY)],Programs_Active20[LONG TEXT])","v":"Investment Management"}]
[2778,109,"Y",12,"DOLLARS","OUTCOME","ADOPTEDBUD",null,null,null,null,"Investment Management (109)","# of Civil bonds received and recorded","# of Civil bonds received and recorded",{"$f":"_xlfn.XLOOKUP(Measures_Table[[#This Row],[PM Program]],Programs_Active20[ZSBPPROGM (KEY)],Programs_Active20[LONG TEXT])","v":"Investment Management"}]
[2779,123,"Y",49,"EACH","OUTPUT","NEITHER",null,null,null,null,"Civil Rights Unit (123)","# of Criminal Bonds received and recorde","# of Criminal Bonds received and recorded",{"$f":"_xlfn.XLOOKUP(Measures_Table[[#This Row],[PM Program]],Programs_Active20[ZSBPPROGM (KEY)],Programs_Active20[LONG TEXT])","v":"Civil Rights Unit"}]
[2780,123,"Y",49,"EACH","OUTPUT","NEITHER",null,null,null,null,"Civil Rights Unit (123)","Number of Bereavement Groups","Number of Bereavement Groups",{"$f":"_xlfn.XLOOKUP(Measures_Table[[#This Row],[PM Program]],Programs_Active20[ZSBPPROGM (KEY)],Programs_Active20[LONG TEXT])","v":"Civil Rights Unit"}]
[2781,123,"Y",302,"EACH","OUTPUT","NEITHER",null,null,null,null,"Diversion, Youth Just & Violence Pr(123)","Number of Bereavement Group Sessions","Number of Bereavement Group Sessions",{"$f":"_xlfn.XLOOKUP(Measures_Table[[#This Row],[PM Program]],Programs_Active20[ZSBPPROGM (KEY)],Programs_Active20[LONG TEXT])","v":{"$error":"#N/A"}}]
[2782,123,"Y",302,"EACH","OUTPUT","NEITHER",null,null,null,null,"Diversion, Youth Just & Violence Pr(123)","Number of Bereavement Group Participants","Number of Bereavement Group Participants",{"$f":"_xlfn.XLOOKUP(Measures_Table[[#This Row],[PM Program]],Programs_Active20[ZSBPPROGM (KEY)],Programs_Active20[LONG TEXT])","v":{"$error":"#N/A"}}]
[2783,123,"Y",302,"EACH","OUTPUT","NEITHER",null,null,null,null,"Diversion, Youth Just & Violence Pr(123)","# of dispositions","# of dispositions",{"$f":"_xlfn.XLOOKUP(Measures_Table[[#This Row],[PM Program]],Programs_Active20[ZSBPPROGM (KEY)],Programs_Active20[LONG TEXT])","v":{"$error":"#N/A"}}]
[2786,123,"Y",43,"EACH","OUTPUT","NEITHER",null,null,null,null,"Operations (123)","% SQL server uptime","% SQL server uptime",{"$f":"_xlfn.XLOOKUP(Measures_Table[[#This Row],[PM Program]],Programs_Active20[ZSBPPROGM (KEY)],Programs_Active20[LONG TEXT])","v":"Operations"}]
[2787,123,"Y",48,"EACH","INPUT","NEITHER",null,null,null,null,"Public Integrity & Complex Crimes (123)","% EDS incidents acknowledged","% EDS incidents acknowledged",{"$f":"_xlfn.XLOOKUP(Measures_Table[[#This Row],[PM Program]],Programs_Active20[ZSBPPROGM (KEY)],Programs_Active20[LONG TEXT])","v":"Public Integrity & Complex Crimes\n"}]
[2788,123,"Y",48,"EACH","OUTPUT","NEITHER",null,null,null,null,"Public Integrity & Complex Crimes (123)","% EDS restored P1 within 2 hours","% EDS restored P1 within 2 hours",{"$f":"_xlfn.XLOOKUP(Measures_Table[[#This Row],[PM Program]],Programs_Active20[ZSBPPROGM (KEY)],Programs_Active20[LONG TEXT])","v":"Public Integrity & Complex Crimes\n"}]
[2789,123,"Y",44,"DAYS","EFFICIENCY","BLACKBOOK",null,null,null,null,"Trial Courts (123)","% EDS restored P2 within 4 hours","% EDS restored P2 within 4 hours",{"$f":"_xlfn.XLOOKUP(Measures_Table[[#This Row],[PM Program]],Programs_Active20[ZSBPPROGM (KEY)],Programs_Active20[LONG TEXT])","v":"Civil Rights Unit"}]
[2790,123,"Y",44,"DAYS","EFFICIENCY","BLACKBOOK",null,null,null,null,"Trial Courts (123)","# of dashboards/visualizations created","# of dashboards/visualizations created",{"$f":"_xlfn.XLOOKUP(Measures_Table[[#This Row],[PM Program]],Programs_Active20[ZSBPPROGM (KEY)],Programs_Active20[LONG TEXT])","v":"Civil Rights Unit"}]
[2791,123,"Y",45,"EACH","OUTPUT","BLACKBOOK",null,null,null,null,"Special Victims Unit (123)","# API's","# API's",{"$f":"_xlfn.XLOOKUP(Measures_Table[[#This Row],[PM Program]],Programs_Active20[ZSBPPROGM (KEY)],Programs_Active20[LONG TEXT])","v":"Special Victims Unit"}]
[2792,123,"Y",45,"EACH","OUTPUT","ADOPTEDBUD",null,null,null,null,"Special Victims Unit (123)","# staff hours on incidents","# staff hours on incidents",{"$f":"_xlfn.XLOOKUP(Measures_Table[[#This Row],[PM Program]],Programs_Active20[ZSBPPROGM (KEY)],Programs_Active20[LONG TEXT])","v":"Special Victims Unit"}]
[2793,123,"Y",45,"EACH","OUTPUT","NEITHER",null,null,null,null,"Special Victims Unit (123)","% of on-time application enhancements an","% of on-time application enhancements and bug fixes and automated solutions implemented",{"$f":"_xlfn.XLOOKUP(Measures_Table[[#This Row],[PM Program]],Programs_Active20[ZSBPPROGM (KEY)],Programs_Active20[LONG TEXT])","v":"Special Victims Unit"}]
[2794,123,"Y",45,"DAYS","EFFICIENCY","BLACKBOOK",null,null,null,null,"Special Victims Unit (123)","# of enhancements, bug fixes, and automa","# of enhancements, bug fixes, and automated solutions implemented",{"$f":"_xlfn.XLOOKUP(Measures_Table[[#This Row],[PM Program]],Programs_Active20[ZSBPPROGM (KEY)],Programs_Active20[LONG TEXT])","v":"Special Victims Unit"}]
[2795,123,"Y",45,"DAYS","EFFICIENCY","BLACKBOOK",null,null,null,null,"Special Victims Unit (123)","Time between request and publication for","Time between request and publication for simple (-200 character/single document) updates, to Facebook, Twitter, all websites",{"$f":"_xlfn.XLOOKUP(Measures_Table[[#This Row],[PM Program]],Programs_Active20[ZSBPPROGM (KEY)],Programs_Active20[LONG TEXT])","v":"Special Victims Unit"}]
[2797,132,"Y",294,"EACH","INPUT","ADOPTEDBUD",null,null,null,null,"Telecommunications (132)","Total Expenditures","Total Expenditures",{"$f":"_xlfn.XLOOKUP(Measures_Table[[#This Row],[PM Program]],Programs_Active20[ZSBPPROGM (KEY)],Programs_Active20[LONG TEXT])","v":"Telecommunications"}]
[2798,158,"Y",164,"EACH","OUTPUT","NEITHER",null,null,null,null,"SSA Contracts: Behavioral Health (158)","Total Revenues","Total Revenues",{"$f":"_xlfn.XLOOKUP(Measures_Table[[#This Row],[PM Program]],Programs_Active20[ZSBPPROGM (KEY)],Programs_Active20[LONG TEXT])","v":"Social Service Agency Contracts: Behavioral Health"}]
[2799,158,"Y",164,"PERCENT","OUTCOME","NEITHER",null,null,null,null,"SSA Contracts: Behavioral Health (158)","# of Improvements","# of Improvements",{"$f":"_xlfn.XLOOKUP(Measures_Table[[#This Row],[PM Program]],Programs_Active20[ZSBPPROGM (KEY)],Programs_Active20[LONG TEXT])","v":"Social Service Agency Contracts: Behavioral Health"}]
[2800,158,"Y",164,"PERCENT","OUTCOME","NEITHER",null,null,null,null,"SSA Contracts: Behavioral Health (158)","# of preventative maintenance work order","# of preventative maintenance work orders",{"$f":"_xlfn.XLOOKUP(Measures_Table[[#This Row],[PM Program]],Programs_Active20[ZSBPPROGM (KEY)],Programs_Active20[LONG TEXT])","v":"Social Service Agency Contracts: Behavioral Health"}]
[2801,158,"Y",164,"PERCENT","OUTCOME","NEITHER",null,null,null,null,"SSA Contracts: Behavioral Health (158)","# of events","# of events",{"$f":"_xlfn.XLOOKUP(Measures_Table[[#This Row],[PM Program]],Programs_Active20[ZSBPPROGM (KEY)],Programs_Active20[LONG TEXT])","v":"Social Service Agency Contracts: Behavioral Health"}]
[2802,158,"Y",168,"EACH","OUTCOME","NEITHER",null,null,null,null,"SSA Contracts: Public Health (158)","Percent successfully completing the prog","Percent successfully completing the program (Local Commitment Program)",{"$f":"_xlfn.XLOOKUP(Measures_Table[[#This Row],[PM Program]],Programs_Active20[ZSBPPROGM (KEY)],Programs_Active20[LONG TEXT])","v":"Social Service Agency Contracts: Public Health"}]
[2803,158,"Y",168,"PERCENT","OUTCOME","NEITHER",null,null,null,null,"SSA Contracts: Public Health (158)","Percent successfully completing the prog","Percent successfully completing the program (non-secure)",{"$f":"_xlfn.XLOOKUP(Measures_Table[[#This Row],[PM Program]],Programs_Active20[ZSBPPROGM (KEY)],Programs_Active20[LONG TEXT])","v":"Social Service Agency Contracts: Public Health"}]
[2804,158,"Y",168,"PERCENT","OUTCOME","NEITHER",null,null,null,null,"SSA Contracts: Public Health (158)","Portfolio yield over 12 mo rolling 2yr T","Portfolio yield over 12 month rolling 2-year treasury",{"$f":"_xlfn.XLOOKUP(Measures_Table[[#This Row],[PM Program]],Programs_Active20[ZSBPPROGM (KEY)],Programs_Active20[LONG TEXT])","v":"Social Service Agency Contracts: Public Health"}]
[2805,158,"Y",168,"PERCENT","OUTCOME","NEITHER",null,null,null,null,"SSA Contracts: Public Health (158)","Interest earned per $ of departmnt costs","Interest earned per dollar of departmental costs\n",{"$f":"_xlfn.XLOOKUP(Measures_Table[[#This Row],[PM Program]],Programs_Active20[ZSBPPROGM (KEY)],Programs_Active20[LONG TEXT])","v":"Social Service Agency Contracts: Public Health"}]
[2806,158,"Y",163,"PERCENT","OUTCOME","NEITHER",null,null,null,null,"SSA Contracts: Acc to Basic Support(158)","Civil Rights Investigations Closed","Civil Rights Investigations Closed",{"$f":"_xlfn.XLOOKUP(Measures_Table[[#This Row],[PM Program]],Programs_Active20[ZSBPPROGM (KEY)],Programs_Active20[LONG TEXT])","v":"Social Service Agency Contracts: Access to Basic Supports"}]
[2807,158,"Y",163,"PERCENT","OUTCOME","NEITHER",null,null,null,null,"SSA Contracts: Acc to Basic Support(158)","# of declination letters released","# of declination letters released",{"$f":"_xlfn.XLOOKUP(Measures_Table[[#This Row],[PM Program]],Programs_Active20[ZSBPPROGM (KEY)],Programs_Active20[LONG TEXT])","v":"Social Service Agency Contracts: Access to Basic Supports"}]
[2808,158,"Y",163,"PERCENT","OUTCOME","NEITHER",null,null,null,null,"SSA Contracts: Acc to Basic Support(158)","# of cases dismissed prior to indictment","# of cases dismissed prior to indictment",{"$f":"_xlfn.XLOOKUP(Measures_Table[[#This Row],[PM Program]],Programs_Active20[ZSBPPROGM (KEY)],Programs_Active20[LONG TEXT])","v":"Social Service Agency Contracts: Access to Basic Supports"}]
[2809,158,"Y",163,"PERCENT","OUTCOME","NEITHER",null,null,null,null,"SSA Contracts: Acc to Basic Support(158)","# of cases filed by indictment","# of cases filed by indictment",{"$f":"_xlfn.XLOOKUP(Measures_Table[[#This Row],[PM Program]],Programs_Active20[ZSBPPROGM (KEY)],Programs_Active20[LONG TEXT])","v":"Social Service Agency Contracts: Access to Basic Supports"}]
[2810,158,"Y",170,"PERCENT","OUTCOME","NEITHER",null,null,null,null,"SSA Contracts: Sup Svc Comm Living (158)","# of defendants accepted into diversion","# of defendants accepted into diversion programs",{"$f":"_xlfn.XLOOKUP(Measures_Table[[#This Row],[PM Program]],Programs_Active20[ZSBPPROGM (KEY)],Programs_Active20[LONG TEXT])","v":"Social Service Agency Contracts: Support Svc Comm Living"}]
[2811,158,"Y",161,"PERCENT","OUTCOME","NEITHER",null,null,null,null,"Research & Planning Division (158)","# of cases resolved in State Jail Court","# of cases resolved in State Jail Court",{"$f":"_xlfn.XLOOKUP(Measures_Table[[#This Row],[PM Program]],Programs_Active20[ZSBPPROGM (KEY)],Programs_Active20[LONG TEXT])","v":"Research & Planning Division"}]
[2812,158,"Y",161,"PERCENT","OUTCOME","NEITHER",null,null,null,null,"Research & Planning Division (158)","Avg days b/t received and disposition in","Avg days b/t received and disposition in State Jail Court",{"$f":"_xlfn.XLOOKUP(Measures_Table[[#This Row],[PM Program]],Programs_Active20[ZSBPPROGM (KEY)],Programs_Active20[LONG TEXT])","v":"Research & Planning Division"}]
[2816,137,"Y",185,"EACH","INPUT","ADOPTEDBUD",null,null,null,null,"Facilities-CallCtr/Mail/Laundry/Whs(137)","# of days received to indictment – child","# of days received to indictment – child abuse",{"$f":"_xlfn.XLOOKUP(Measures_Table[[#This Row],[PM Program]],Programs_Active20[ZSBPPROGM (KEY)],Programs_Active20[LONG TEXT])","v":"Facilities - Call Center / Mail Room / Laundry / Warehouse\n"}]
[2817,137,"Y",185,"EACH","OUTPUT","ADOPTEDBUD",null,null,null,null,"Facilities-CallCtr/Mail/Laundry/Whs(137)","# of days from indictment to disposition","# of days from indictment to disposition – child abuse",{"$f":"_xlfn.XLOOKUP(Measures_Table[[#This Row],[PM Program]],Programs_Active20[ZSBPPROGM (KEY)],Programs_Active20[LONG TEXT])","v":"Facilities - Call Center / Mail Room / Laundry / Warehouse\n"}]
[2820,115,"Y",292,"EACH","OUTPUT","BLACKBOOK",null,null,null,null,"Purchasing Office Compliance (115)","# of family violence case indictments","# of family violence case indictments",{"$f":"_xlfn.XLOOKUP(Measures_Table[[#This Row],[PM Program]],Programs_Active20[ZSBPPROGM (KEY)],Programs_Active20[LONG TEXT])","v":"Purchasing Office Compliance"}]
[2821,115,"Y",292,"EACH","OUTPUT","ADOPTEDBUD",null,null,null,null,"Purchasing Office Compliance (115)","# of days received to indictment – famil","# of days received to indictment – family violence",{"$f":"_xlfn.XLOOKUP(Measures_Table[[#This Row],[PM Program]],Programs_Active20[ZSBPPROGM (KEY)],Programs_Active20[LONG TEXT])","v":"Purchasing Office Compliance"}]
[2822,115,"Y",292,"EACH","OUTPUT","BLACKBOOK",null,null,null,null,"Purchasing Office Compliance (115)","# of days from indictment to disposition","# of days from indictment to disposition – family violence",{"$f":"_xlfn.XLOOKUP(Measures_Table[[#This Row],[PM Program]],Programs_Active20[ZSBPPROGM (KEY)],Programs_Active20[LONG TEXT])","v":"Purchasing Office Compliance"}]
[2823,115,"Y",292,"EACH","OUTPUT","ADOPTEDBUD",null,null,null,null,"Purchasing Office Compliance (115)","# of juvenile hearings","# of juvenile hearings",{"$f":"_xlfn.XLOOKUP(Measures_Table[[#This Row],[PM Program]],Programs_Active20[ZSBPPROGM (KEY)],Programs_Active20[LONG TEXT])","v":"Purchasing Office Compliance"}]
[2825,115,"Y",203,"DOLLARS","OUTCOME","BLACKBOOK",null,null,null,null,"Purchasing Office (115)","Number of clients served","Number of clients served",{"$f":"_xlfn.XLOOKUP(Measures_Table[[#This Row],[PM Program]],Programs_Active20[ZSBPPROGM (KEY)],Programs_Active20[LONG TEXT])","v":"Purchasing Office"}]
[2826,115,"Y",204,"DOLLARS","OUTCOME","ADOPTEDBUD",null,null,null,null,"Purchasing Office Fixed Assets (115)","Percent of clients who engage in recover","Percent of clients who engage in recovery from substance use disorder",{"$f":"_xlfn.XLOOKUP(Measures_Table[[#This Row],[PM Program]],Programs_Active20[ZSBPPROGM (KEY)],Programs_Active20[LONG TEXT])","v":"Purchasing Office Fixed Assets"}]
[2831,115,"Y",205,"EACH","OUTCOME","BLACKBOOK",null,null,null,null,"Purchasing Office HUB (115)","% of clients using prevntion strategies","Percent of clients who report using prevention strategies",{"$f":"_xlfn.XLOOKUP(Measures_Table[[#This Row],[PM Program]],Programs_Active20[ZSBPPROGM (KEY)],Programs_Active20[LONG TEXT])","v":"Purchasing Office HUB"}]
[2838,115,"Y",296,"EACH","OUTPUT","ADOPTEDBUD",null,null,null,null,"Purchasing Office Procurement (115)","% of clients report R&P info useful","Percent of customers who report that the information provided by R&P was Useful",{"$f":"_xlfn.XLOOKUP(Measures_Table[[#This Row],[PM Program]],Programs_Active20[ZSBPPROGM (KEY)],Programs_Active20[LONG TEXT])","v":"Purchasing Office Procurement (115)"}]
[2839,115,"Y",296,"EACH","OUTPUT","ADOPTEDBUD",null,null,null,null,"Purchasing Office Procurement (115)","% of clients report R&P facilitated grp","Percent of customers who report that R&P facilitation helped them use effective group process",{"$f":"_xlfn.XLOOKUP(Measures_Table[[#This Row],[PM Program]],Programs_Active20[ZSBPPROGM (KEY)],Programs_Active20[LONG TEXT])","v":"Purchasing Office Procurement (115)"}]
[2840,115,"Y",296,"EACH","OUTPUT","ADOPTEDBUD",null,null,null,null,"Purchasing Office Procurement (115)","No. of new PREA allegations/incidents re","No. of new PREA allegations/incidents reported",{"$f":"_xlfn.XLOOKUP(Measures_Table[[#This Row],[PM Program]],Programs_Active20[ZSBPPROGM (KEY)],Programs_Active20[LONG TEXT])","v":"Purchasing Office Procurement (115)"}]
[2841,115,"Y",296,"EACH","OUTPUT","ADOPTEDBUD",null,null,null,null,"Purchasing Office Procurement (115)","No. of PREA incidents investigation comp","No. of PREA incidents investigation completed",{"$f":"_xlfn.XLOOKUP(Measures_Table[[#This Row],[PM Program]],Programs_Active20[ZSBPPROGM (KEY)],Programs_Active20[LONG TEXT])","v":"Purchasing Office Procurement (115)"}]
[2842,115,"Y",296,"DOLLARS","OUTPUT","BLACKBOOK",null,null,null,null,"Purchasing Office Procurement (115)","No. of substantiated cases of sexual abu","No. of substantiated cases of sexual abuse",{"$f":"_xlfn.XLOOKUP(Measures_Table[[#This Row],[PM Program]],Programs_Active20[ZSBPPROGM (KEY)],Programs_Active20[LONG TEXT])","v":"Purchasing Office Procurement (115)"}]
[2848,115,"Y",205,"PERCENT","OUTCOME","ADOPTEDBUD",null,null,null,null,"Purchasing Office HUB (115)","# of wage audits performed","# of wage audits performed",{"$f":"_xlfn.XLOOKUP(Measures_Table[[#This Row],[PM Program]],Programs_Active20[ZSBPPROGM (KEY)],Programs_Active20[LONG TEXT])","v":"Purchasing Office HUB"}]
[2850,123,"Y",49,"EACH","OUTPUT","NEITHER",null,null,null,null,"Civil Rights Unit (123)","# of onsite interview performed","# of onsite interviews \nperformed",{"$f":"_xlfn.XLOOKUP(Measures_Table[[#This Row],[PM Program]],Programs_Active20[ZSBPPROGM (KEY)],Programs_Active20[LONG TEXT])","v":"Civil Rights Unit"}]
[2851,123,"Y",49,"EACH","OUTPUT","NEITHER",null,null,null,null,"Civil Rights Unit (123)","# of outreach/training events organized/","# of outreach/training events organized/attended",{"$f":"_xlfn.XLOOKUP(Measures_Table[[#This Row],[PM Program]],Programs_Active20[ZSBPPROGM (KEY)],Programs_Active20[LONG TEXT])","v":"Civil Rights Unit"}]
[2852,123,"Y",49,"EACH","OUTPUT","NEITHER",null,null,null,null,"Civil Rights Unit (123)","Rebate Revenue","Rebate Revenue",{"$f":"_xlfn.XLOOKUP(Measures_Table[[#This Row],[PM Program]],Programs_Active20[ZSBPPROGM (KEY)],Programs_Active20[LONG TEXT])","v":"Civil Rights Unit"}]
[2854,123,"Y",302,"EACH","OUTPUT","NEITHER",null,null,null,null,"Diversion, Youth Just & Violence Pr(123)","# of assets transferred to warehouse","# of assets transferred to warehouse",{"$f":"_xlfn.XLOOKUP(Measures_Table[[#This Row],[PM Program]],Programs_Active20[ZSBPPROGM (KEY)],Programs_Active20[LONG TEXT])","v":{"$error":"#N/A"}}]
[2855,123,"Y",302,"EACH","OUTPUT","NEITHER",null,null,null,null,"Diversion, Youth Just & Violence Pr(123)","# of assets disposed through computer re","# of assets disposed through computer recycling",{"$f":"_xlfn.XLOOKUP(Measures_Table[[#This Row],[PM Program]],Programs_Active20[ZSBPPROGM (KEY)],Programs_Active20[LONG TEXT])","v":{"$error":"#N/A"}}]
[2860,123,"Y",47,"EACH","OUTPUT","NEITHER",null,null,null,null,"Investigations (123)","HUB Sub Expenditures","HUB Sub Expenditures",{"$f":"_xlfn.XLOOKUP(Measures_Table[[#This Row],[PM Program]],Programs_Active20[ZSBPPROGM (KEY)],Programs_Active20[LONG TEXT])","v":"Investigations"}]
[2861,123,"Y",47,"EACH","OUTPUT","NEITHER",null,null,null,null,"Investigations (123)","# incidents of failure to complete HUB P","# incidents of failure to complete HUB Program Declaration",{"$f":"_xlfn.XLOOKUP(Measures_Table[[#This Row],[PM Program]],Programs_Active20[ZSBPPROGM (KEY)],Programs_Active20[LONG TEXT])","v":"Investigations"}]
[2862,123,"Y",47,"EACH","OUTPUT","NEITHER",null,null,null,null,"Investigations (123)","# TCAAP Teams","# TCAAP Teams",{"$f":"_xlfn.XLOOKUP(Measures_Table[[#This Row],[PM Program]],Programs_Active20[ZSBPPROGM (KEY)],Programs_Active20[LONG TEXT])","v":"Investigations"}]
[2863,123,"Y",43,"EACH","OUTPUT","NEITHER",null,null,null,null,"Operations (123)","% aspirational/project specific goals ex","% aspirational/project specific goals exceeded",{"$f":"_xlfn.XLOOKUP(Measures_Table[[#This Row],[PM Program]],Programs_Active20[ZSBPPROGM (KEY)],Programs_Active20[LONG TEXT])","v":"Operations"}]
[2864,123,"Y",43,"EACH","OUTPUT","NEITHER",null,null,null,null,"Operations (123)","# of HUB DECs reviewed","# of HUB DECs reviewed",{"$f":"_xlfn.XLOOKUP(Measures_Table[[#This Row],[PM Program]],Programs_Active20[ZSBPPROGM (KEY)],Programs_Active20[LONG TEXT])","v":"Operations"}]
[2865,123,"Y",43,"EACH","OUTPUT","NEITHER",null,null,null,null,"Operations (123)","# of shopping carts processed","# of shopping carts processed",{"$f":"_xlfn.XLOOKUP(Measures_Table[[#This Row],[PM Program]],Programs_Active20[ZSBPPROGM (KEY)],Programs_Active20[LONG TEXT])","v":"Operations"}]
[2866,123,"Y",43,"EACH","OUTCOME","NEITHER",null,null,null,null,"Operations (123)","# of formal solicitations","# of formal solicitations",{"$f":"_xlfn.XLOOKUP(Measures_Table[[#This Row],[PM Program]],Programs_Active20[ZSBPPROGM (KEY)],Programs_Active20[LONG TEXT])","v":"Operations"}]
[2867,123,"Y",307,"DAYS","OUTCOME","BLACKBOOK",null,null,null,null,"Victim Services (123)","# of informal solicitations","# of informal solicitations",{"$f":"_xlfn.XLOOKUP(Measures_Table[[#This Row],[PM Program]],Programs_Active20[ZSBPPROGM (KEY)],Programs_Active20[LONG TEXT])","v":"Trial Courts"}]
[2868,123,"Y",307,"DAYS","OUTCOME","BLACKBOOK",null,null,null,null,"Victim Services (123)","# of Cooperative purchases","# of Cooperative purchases",{"$f":"_xlfn.XLOOKUP(Measures_Table[[#This Row],[PM Program]],Programs_Active20[ZSBPPROGM (KEY)],Programs_Active20[LONG TEXT])","v":"Trial Courts"}]
[2869,123,"Y",307,"EACH","OUTPUT","BLACKBOOK",null,null,null,null,"Victim Services (123)","$ of Cooperative purchases","$ of Cooperative purchases",{"$f":"_xlfn.XLOOKUP(Measures_Table[[#This Row],[PM Program]],Programs_Active20[ZSBPPROGM (KEY)],Programs_Active20[LONG TEXT])","v":"Trial Courts"}]
[2870,123,"Y",307,"EACH","OUTPUT","BLACKBOOK",null,null,null,null,"Victim Services (123)","PO Cycle Time (# days)","PO Cycle Time (# days)",{"$f":"_xlfn.XLOOKUP(Measures_Table[[#This Row],[PM Program]],Programs_Active20[ZSBPPROGM (KEY)],Programs_Active20[LONG TEXT])","v":"Trial Courts"}]
[2871,123,"Y",45,"DAYS","OUTCOME","BLACKBOOK",null,null,null,null,"Special Victims Unit (123)","# of assets repurposed to county departm","# of assets repurposed to county departments",{"$f":"_xlfn.XLOOKUP(Measures_Table[[#This Row],[PM Program]],Programs_Active20[ZSBPPROGM (KEY)],Programs_Active20[LONG TEXT])","v":"Special Victims Unit"}]
[2872,123,"Y",45,"DAYS","OUTCOME","BLACKBOOK",null,null,null,null,"Special Victims Unit (123)","# of live auctions","# of live auctions",{"$f":"_xlfn.XLOOKUP(Measures_Table[[#This Row],[PM Program]],Programs_Active20[ZSBPPROGM (KEY)],Programs_Active20[LONG TEXT])","v":"Special Victims Unit"}]
[2873,123,"Y",44,"EACH","OUTPUT","BOTH",null,null,null,null,"Trial Courts (123)","HUB Prime expenditures","HUB Prime expenditures",{"$f":"_xlfn.XLOOKUP(Measures_Table[[#This Row],[PM Program]],Programs_Active20[ZSBPPROGM (KEY)],Programs_Active20[LONG TEXT])","v":"Civil Rights Unit"}]
[2874,123,"Y",49,"EACH","INPUT","NEITHER",null,null,null,null,"Civil Rights Unit (123)","# incidents of vendors curing GFE requir","# incidents of vendors curing GFE requirements",{"$f":"_xlfn.XLOOKUP(Measures_Table[[#This Row],[PM Program]],Programs_Active20[ZSBPPROGM (KEY)],Programs_Active20[LONG TEXT])","v":"Civil Rights Unit"}]
[2875,155,"Y",297,"EACH","OUTCOME","BLACKBOOK",null,null,null,null,"Workforce Development Taskforce WD (155)","% of responses met good faith effort","% of responses met good faith effort",{"$f":"_xlfn.XLOOKUP(Measures_Table[[#This Row],[PM Program]],Programs_Active20[ZSBPPROGM (KEY)],Programs_Active20[LONG TEXT])","v":"Workforce Development Taskforce (WD)\n"}]
[2876,155,"Y",297,"EACH","OUTCOME","ADOPTEDBUD",null,null,null,null,"Workforce Development Taskforce WD (155)","# of Scopes Reviewed","# of Scopes Reviewed",{"$f":"_xlfn.XLOOKUP(Measures_Table[[#This Row],[PM Program]],Programs_Active20[ZSBPPROGM (KEY)],Programs_Active20[LONG TEXT])","v":"Workforce Development Taskforce (WD)\n"}]
[2879,129,"Y",236,"EACH","INPUT","ADOPTEDBUD",null,null,null,null,"Civil Division (129)","Non-Travis County cases reviewed & refer","Non-Travis County cases reviewed & referred to other agency",{"$f":"_xlfn.XLOOKUP(Measures_Table[[#This Row],[PM Program]],Programs_Active20[ZSBPPROGM (KEY)],Programs_Active20[LONG TEXT])","v":"Civil Division"}]
[2880,155,"Y",181,"EACH","OUTPUT","BLACKBOOK",null,null,null,null,"Mental Health Public Defender (155)","DNA case reviews","DNA case reviews",{"$f":"_xlfn.XLOOKUP(Measures_Table[[#This Row],[PM Program]],Programs_Active20[ZSBPPROGM (KEY)],Programs_Active20[LONG TEXT])","v":"Mental Health Public Defender"}]
[2881,155,"Y",181,"EACH","OUTPUT","BLACKBOOK",null,null,null,null,"Mental Health Public Defender (155)","# of cases dismissed prior to indictment","# of cases dismissed prior to indictment",{"$f":"_xlfn.XLOOKUP(Measures_Table[[#This Row],[PM Program]],Programs_Active20[ZSBPPROGM (KEY)],Programs_Active20[LONG TEXT])","v":"Mental Health Public Defender"}]
[2882,155,"Y",181,"PERCENT","OUTPUT","BLACKBOOK",null,null,null,null,"Mental Health Public Defender (155)","# of cases filed by indictment","# of cases filed by indictment",{"$f":"_xlfn.XLOOKUP(Measures_Table[[#This Row],[PM Program]],Programs_Active20[ZSBPPROGM (KEY)],Programs_Active20[LONG TEXT])","v":"Mental Health Public Defender"}]
[2883,155,"Y",181,"PERCENT","OUTCOME","BLACKBOOK",null,null,null,null,"Mental Health Public Defender (155)","Avg days b/t received and disposition in","Avg days b/t received and disposition in SJIC",{"$f":"_xlfn.XLOOKUP(Measures_Table[[#This Row],[PM Program]],Programs_Active20[ZSBPPROGM (KEY)],Programs_Active20[LONG TEXT])","v":"Mental Health Public Defender"}]
[2884,155,"Y",181,"EACH","INPUT","BLACKBOOK",null,null,null,null,"Mental Health Public Defender (155)","# of cases resolved in SJIC","# of cases resolved in SJIC",{"$f":"_xlfn.XLOOKUP(Measures_Table[[#This Row],[PM Program]],Programs_Active20[ZSBPPROGM (KEY)],Programs_Active20[LONG TEXT])","v":"Mental Health Public Defender"}]
[2885,155,"Y",181,"EACH","OUTPUT","BLACKBOOK",null,null,null,null,"Mental Health Public Defender (155)","# of defendants accepted into diversion","# of defendants accepted into diversion programs",{"$f":"_xlfn.XLOOKUP(Measures_Table[[#This Row],[PM Program]],Programs_Active20[ZSBPPROGM (KEY)],Programs_Active20[LONG TEXT])","v":"Mental Health Public Defender"}]
[2886,155,"Y",181,"EACH","OUTPUT","BLACKBOOK",null,null,null,null,"Mental Health Public Defender (155)","# of additional people diverted from jai","# of additional people diverted from jail (SJIC)",{"$f":"_xlfn.XLOOKUP(Measures_Table[[#This Row],[PM Program]],Programs_Active20[ZSBPPROGM (KEY)],Programs_Active20[LONG TEXT])","v":"Mental Health Public Defender"}]
[2887,155,"Y",181,"EACH","OUTPUT","BLACKBOOK",null,null,null,null,"Mental Health Public Defender (155)","# of Grand Jury subpoenas served","# of Grand Jury subpoenas served",{"$f":"_xlfn.XLOOKUP(Measures_Table[[#This Row],[PM Program]],Programs_Active20[ZSBPPROGM (KEY)],Programs_Active20[LONG TEXT])","v":"Mental Health Public Defender"}]
[2888,155,"Y",181,"PERCENT","OUTPUT","BLACKBOOK",null,null,null,null,"Mental Health Public Defender (155)","# of subpoenas served for vehicular crim","# of subpoenas served for vehicular crimes",{"$f":"_xlfn.XLOOKUP(Measures_Table[[#This Row],[PM Program]],Programs_Active20[ZSBPPROGM (KEY)],Programs_Active20[LONG TEXT])","v":"Mental Health Public Defender"}]
[2889,155,"Y",181,"EACH","INPUT","BLACKBOOK",null,null,null,null,"Mental Health Public Defender (155)","# of victim/witness contacts","# of victim/witness contacts",{"$f":"_xlfn.XLOOKUP(Measures_Table[[#This Row],[PM Program]],Programs_Active20[ZSBPPROGM (KEY)],Programs_Active20[LONG TEXT])","v":"Mental Health Public Defender"}]
[2890,155,"Y",181,"EACH","OUTPUT","BLACKBOOK",null,null,null,null,"Mental Health Public Defender (155)","# of expunctions","# of expunctions",{"$f":"_xlfn.XLOOKUP(Measures_Table[[#This Row],[PM Program]],Programs_Active20[ZSBPPROGM (KEY)],Programs_Active20[LONG TEXT])","v":"Mental Health Public Defender"}]
[2891,155,"Y",181,"PERCENT","OUTPUT","BLACKBOOK",null,null,null,null,"Mental Health Public Defender (155)","# of devices unlocked","# of devices unlocked",{"$f":"_xlfn.XLOOKUP(Measures_Table[[#This Row],[PM Program]],Programs_Active20[ZSBPPROGM (KEY)],Programs_Active20[LONG TEXT])","v":"Mental Health Public Defender"}]
[2892,155,"Y",181,"EACH","OUTPUT","BLACKBOOK",null,null,"discontinued starting with 2023 budget submission",null,"Mental Health Public Defender (155)","# of unlocked devices analyzed","# of unlocked devices analyzed",{"$f":"_xlfn.XLOOKUP(Measures_Table[[#This Row],[PM Program]],Programs_Active20[ZSBPPROGM (KEY)],Programs_Active20[LONG TEXT])","v":"Mental Health Public Defender"}]
[2893,155,"Y",181,"EACH","OUTCOME","BLACKBOOK",null,null,null,null,"Mental Health Public Defender (155)","# of devices in backlog for unlocking an","# of devices in backlog for unlocking and/or analysis",{"$f":"_xlfn.XLOOKUP(Measures_Table[[#This Row],[PM Program]],Programs_Active20[ZSBPPROGM (KEY)],Programs_Active20[LONG TEXT])","v":"Mental Health Public Defender"}]
[2894,155,"Y",181,"PERCENT","OUTCOME","BLACKBOOK",null,null,null,null,"Mental Health Public Defender (155)","# of days received to indictment – child","# of days received to indictment – child abuse",{"$f":"_xlfn.XLOOKUP(Measures_Table[[#This Row],[PM Program]],Programs_Active20[ZSBPPROGM (KEY)],Programs_Active20[LONG TEXT])","v":"Mental Health Public Defender"}]
[2895,155,"Y",181,"PERCENT","OUTCOME","BLACKBOOK",null,null,null,null,"Mental Health Public Defender (155)","# of days from indictment to disposition","# of days from indictment to disposition – child abuse",{"$f":"_xlfn.XLOOKUP(Measures_Table[[#This Row],[PM Program]],Programs_Active20[ZSBPPROGM (KEY)],Programs_Active20[LONG TEXT])","v":"Mental Health Public Defender"}]
[2896,158,"Y",166,"PERCENT","OUTCOME","NEITHER",null,null,null,null,null,"# of civil discovery productions","# of civil discovery productions",{"$f":"_xlfn.XLOOKUP(Measures_Table[[#This Row],[PM Program]],Programs_Active20[ZSBPPROGM (KEY)],Programs_Active20[LONG TEXT])","v":{"$error":"#N/A"}}]
[2897,158,"Y",166,"PERCENT","OUTCOME","NEITHER",null,null,null,null,null,"# of civil mediations","# of civil mediations",{"$f":"_xlfn.XLOOKUP(Measures_Table[[#This Row],[PM Program]],Programs_Active20[ZSBPPROGM (KEY)],Programs_Active20[LONG TEXT])","v":{"$error":"#N/A"}}]
[2898,158,"Y",166,"PERCENT","OUTCOME","NEITHER",null,null,null,null,null,"# of days received to indictment – famil","# of days received to indictment – family violence",{"$f":"_xlfn.XLOOKUP(Measures_Table[[#This Row],[PM Program]],Programs_Active20[ZSBPPROGM (KEY)],Programs_Active20[LONG TEXT])","v":{"$error":"#N/A"}}]
[2899,158,"Y",172,"PERCENT","OUTCOME","NEITHER",null,null,null,null,"Texas A&M AgriLife Extension Svc (158)","# of days from indictment to disposition","# of days from indictment to disposition – family violence",{"$f":"_xlfn.XLOOKUP(Measures_Table[[#This Row],[PM Program]],Programs_Active20[ZSBPPROGM (KEY)],Programs_Active20[LONG TEXT])","v":"Texas A&M AgriLife Extension Service"}]
[2900,158,"Y",172,"PERCENT","OUTCOME","NEITHER",null,null,null,null,"Texas A&M AgriLife Extension Svc (158)","# of juvenile hearings","# of juvenile hearings",{"$f":"_xlfn.XLOOKUP(Measures_Table[[#This Row],[PM Program]],Programs_Active20[ZSBPPROGM (KEY)],Programs_Active20[LONG TEXT])","v":"Texas A&M AgriLife Extension Service"}]
[2901,158,"Y",174,"PERCENT","OUTCOME","ADOPTEDBUD",null,null,null,null,"TC Children’s Protective Svc Board (158)","Assignments to Complex Case Trial Team","Assignments to Complex Case Trial Team",{"$f":"_xlfn.XLOOKUP(Measures_Table[[#This Row],[PM Program]],Programs_Active20[ZSBPPROGM (KEY)],Programs_Active20[LONG TEXT])","v":"The Travis County Children’s Protective Service Board"}]
[2902,145,"Y",119,"EACH","OUTPUT","ADOPTEDBUD",null,null,null,null,"Court Administration (145)","# of new employers willing to hire ex-of","# of new employers willing to hire ex-offenders",{"$f":"_xlfn.XLOOKUP(Measures_Table[[#This Row],[PM Program]],Programs_Active20[ZSBPPROGM (KEY)],Programs_Active20[LONG TEXT])","v":"Court Administration"}]
[2903,134,"Y",253,"PERCENT","OUTCOME","ADOPTEDBUD",null,null,null,null,"Criminal Unit (134)","# of ex-offenders employed","# of ex-offenders employed",{"$f":"_xlfn.XLOOKUP(Measures_Table[[#This Row],[PM Program]],Programs_Active20[ZSBPPROGM (KEY)],Programs_Active20[LONG TEXT])","v":"Criminal Unit"}]
[2904,134,"Y",252,"PERCENT","OUTCOME","ADOPTEDBUD",null,null,null,null,"Civil Unit (134)","# of ex-offenders sustaining employment","# of ex-offenders sustaining employment for 6 months",{"$f":"_xlfn.XLOOKUP(Measures_Table[[#This Row],[PM Program]],Programs_Active20[ZSBPPROGM (KEY)],Programs_Active20[LONG TEXT])","v":"Civil Unit"}]
[2905,134,"Y",255,"EACH","OUTCOME","ADOPTEDBUD",null,null,null,null,"Security Unit (134)","# of new housing providers added","# of new housing providers added",{"$f":"_xlfn.XLOOKUP(Measures_Table[[#This Row],[PM Program]],Programs_Active20[ZSBPPROGM (KEY)],Programs_Active20[LONG TEXT])","v":"Security Unit"}]
[2911,119,"Y",213,"EACH","OUTCOME","BLACKBOOK",null,null,null,null,"Criminal Division -Family Violence (119)","Total SJF & F3 cause #'s MH appointed du","Total SJF & F3 cause #'s MH appointed during FY (MHPD, CAPDS & PDO)",{"$f":"_xlfn.XLOOKUP(Measures_Table[[#This Row],[PM Program]],Programs_Active20[ZSBPPROGM (KEY)],Programs_Active20[LONG TEXT])","v":"Criminal Division - Family Violence & Protective Order Div"}]
[2912,133,"Y",248,"EACH","OUTPUT","ADOPTEDBUD",null,null,null,null,"Civil (133)","Total # of MHPD SJF & F3 cause #'s pendi","Total # of MHPD SJF & F3 cause #'s pending at start of FY",{"$f":"_xlfn.XLOOKUP(Measures_Table[[#This Row],[PM Program]],Programs_Active20[ZSBPPROGM (KEY)],Programs_Active20[LONG TEXT])","v":"Civil"}]
[2913,133,"Y",248,"EACH","OUTPUT","ADOPTEDBUD",null,null,null,null,"Civil (133)","Total # of New SJF & F3 cause #'s appoin","Total # of New SJF & F3 cause #'s appointed to MHPD during FY",{"$f":"_xlfn.XLOOKUP(Measures_Table[[#This Row],[PM Program]],Programs_Active20[ZSBPPROGM (KEY)],Programs_Active20[LONG TEXT])","v":"Civil"}]
[2918,112,"Y",300,"PERCENT","OUTCOME","ADOPTEDBUD",null,null,null,null,"Information Security (112)","% of new MHPD SJF & F3 cause #'s w/ comp","% of new MHPD SJF & F3 cause #'s w/ competency issue (measure 2890/measure 2886)",{"$f":"_xlfn.XLOOKUP(Measures_Table[[#This Row],[PM Program]],Programs_Active20[ZSBPPROGM (KEY)],Programs_Active20[LONG TEXT])","v":"Information Security"}]
[2919,112,"Y",300,"EACH","OUTPUT","ADOPTEDBUD",null,null,null,null,"Information Security (112)","MHPD SJF & F3 cause #'s closed - discont","MHPD SJF & F3 cause #'s closed - discontinued starting 2023 (replaced with measure 3337)",{"$f":"_xlfn.XLOOKUP(Measures_Table[[#This Row],[PM Program]],Programs_Active20[ZSBPPROGM (KEY)],Programs_Active20[LONG TEXT])","v":"Information Security"}]
[2920,133,"Y",249,"PERCENT","OUTCOME","ADOPTEDBUD",null,null,null,null,"Criminal (133)","MHPD represented SJF & F3 cause #'s reso","MHPD represented SJF & F3 cause #'s resolved without conviction",{"$f":"_xlfn.XLOOKUP(Measures_Table[[#This Row],[PM Program]],Programs_Active20[ZSBPPROGM (KEY)],Programs_Active20[LONG TEXT])","v":"Criminal"}]
[2921,133,"Y",250,"PERCENT","OUTCOME","ADOPTEDBUD",null,null,null,null,null,"% MHPD represented SJF & F3 cause #'s re","% MHPD represented SJF & F3 cause #'s resolved without conviction (measure 2893/2892 or 3337)",{"$f":"_xlfn.XLOOKUP(Measures_Table[[#This Row],[PM Program]],Programs_Active20[ZSBPPROGM (KEY)],Programs_Active20[LONG TEXT])","v":{"$error":"#N/A"}}]
[2922,133,"Y",251,"PERCENT","OUTCOME","ADOPTEDBUD",null,null,null,null,"Emissions Task Force (133)","% of new MHPD misdemeanor cause #'s w/ c","% of new MHPD misdemeanor cause #'s w/ competency issue (measure 1257/measure 1258)",{"$f":"_xlfn.XLOOKUP(Measures_Table[[#This Row],[PM Program]],Programs_Active20[ZSBPPROGM (KEY)],Programs_Active20[LONG TEXT])","v":"Emissions Task Force"}]
[2923,149,"Y",299,"EACH","OUTPUT","BLACKBOOK",null,null,null,null,null,"% of children enrolled in Manor ISD with","Percentage of children enrolled in Manor ISD with an attendance rate of 93% or higher",{"$f":"_xlfn.XLOOKUP(Measures_Table[[#This Row],[PM Program]],Programs_Active20[ZSBPPROGM (KEY)],Programs_Active20[LONG TEXT])","v":{"$error":"#N/A"}}]
[2924,149,"Y",298,"EACH","OUTPUT","BLACKBOOK",null,null,null,null,null,"% of participants who accomplished at le","Percentage of participants who accomplished at least one educational/vocational goal on their Goodwill Career and Education Plan at exit",{"$f":"_xlfn.XLOOKUP(Measures_Table[[#This Row],[PM Program]],Programs_Active20[ZSBPPROGM (KEY)],Programs_Active20[LONG TEXT])","v":{"$error":"#N/A"}}]
[2925,149,"Y",298,"EACH","OUTPUT","ADOPTEDBUD",null,null,null,null,null,"% of families who obtained or maintained","Percentage of families who obtained or maintained safe, permanent, and affordable housing at program exit",{"$f":"_xlfn.XLOOKUP(Measures_Table[[#This Row],[PM Program]],Programs_Active20[ZSBPPROGM (KEY)],Programs_Active20[LONG TEXT])","v":{"$error":"#N/A"}}]
[2926,111,"Y",195,"PERCENT","OUTCOME","NEITHER",null,null,null,null,"HR Compensation (111)","% of students who know an adult who is a","Percentage of students who know an adult who is a scientist/uses science for their job",{"$f":"_xlfn.XLOOKUP(Measures_Table[[#This Row],[PM Program]],Programs_Active20[ZSBPPROGM (KEY)],Programs_Active20[LONG TEXT])","v":"HR Compensation"}]
[2927,111,"Y",195,"EACH","OUTPUT","NEITHER",null,null,null,null,"HR Compensation (111)","% of students wanting a job related to s","Percentage of students wanting a job related to science",{"$f":"_xlfn.XLOOKUP(Measures_Table[[#This Row],[PM Program]],Programs_Active20[ZSBPPROGM (KEY)],Programs_Active20[LONG TEXT])","v":"HR Compensation"}]
[2928,111,"Y",195,"EACH","OUTPUT","NEITHER",null,null,null,null,"HR Compensation (111)","% of CPS board budget expended on produc","Percentage of CPS board budget expended on products and services for children and families involved in the child welfare system",{"$f":"_xlfn.XLOOKUP(Measures_Table[[#This Row],[PM Program]],Programs_Active20[ZSBPPROGM (KEY)],Programs_Active20[LONG TEXT])","v":"HR Compensation"}]
[2929,111,"Y",195,"EACH","OUTPUT","NEITHER",null,null,null,null,"HR Compensation (111)","Monthly average of records sealed","Monthly average of records sealed",{"$f":"_xlfn.XLOOKUP(Measures_Table[[#This Row],[PM Program]],Programs_Active20[ZSBPPROGM (KEY)],Programs_Active20[LONG TEXT])","v":"HR Compensation"}]
[2930,111,"Y",195,"EACH","OUTPUT","NEITHER",null,null,null,null,"HR Compensation (111)","% of issued warrants successfully served","% of issued warrants successfully served",{"$f":"_xlfn.XLOOKUP(Measures_Table[[#This Row],[PM Program]],Programs_Active20[ZSBPPROGM (KEY)],Programs_Active20[LONG TEXT])","v":"HR Compensation"}]
[2931,111,"Y",195,"EACH","OUTPUT","NEITHER",null,null,null,null,"HR Compensation (111)","% of Civil papers cleared within the leg","% of Civil papers cleared within the legally mandated timeframes",{"$f":"_xlfn.XLOOKUP(Measures_Table[[#This Row],[PM Program]],Programs_Active20[ZSBPPROGM (KEY)],Programs_Active20[LONG TEXT])","v":"HR Compensation"}]
[2932,111,"Y",195,"EACH","OUTPUT","NEITHER",null,null,null,null,"HR Compensation (111)","# of contraband items found during secur","# of contraband items found during security screening",{"$f":"_xlfn.XLOOKUP(Measures_Table[[#This Row],[PM Program]],Programs_Active20[ZSBPPROGM (KEY)],Programs_Active20[LONG TEXT])","v":"HR Compensation"}]
[2933,111,"Y",195,"EACH","OUTPUT","NEITHER",null,null,null,null,"HR Compensation (111)","Number of leadership groups facilitated","Number of leadership groups facilitated with youth",{"$f":"_xlfn.XLOOKUP(Measures_Table[[#This Row],[PM Program]],Programs_Active20[ZSBPPROGM (KEY)],Programs_Active20[LONG TEXT])","v":"HR Compensation"}]
[2934,111,"Y",195,"EACH","OUTPUT","NEITHER",null,null,null,null,"HR Compensation (111)","Number of Strengthening Family Classes-s","Number of Strengthening Family Classes-sessions",{"$f":"_xlfn.XLOOKUP(Measures_Table[[#This Row],[PM Program]],Programs_Active20[ZSBPPROGM (KEY)],Programs_Active20[LONG TEXT])","v":"HR Compensation"}]
[2935,111,"Y",195,"EACH","OUTPUT","NEITHER",null,null,null,null,"HR Compensation (111)","Number of Strengthening Family Classes-p","Number of Strengthening Family Classes-participants",{"$f":"_xlfn.XLOOKUP(Measures_Table[[#This Row],[PM Program]],Programs_Active20[ZSBPPROGM (KEY)],Programs_Active20[LONG TEXT])","v":"HR Compensation"}]
[2936,111,"Y",195,"EACH","OUTPUT","NEITHER",null,null,null,null,"HR Compensation (111)","Number of therapy group sessions-session","Number of therapy group sessions-sessions",{"$f":"_xlfn.XLOOKUP(Measures_Table[[#This Row],[PM Program]],Programs_Active20[ZSBPPROGM (KEY)],Programs_Active20[LONG TEXT])","v":"HR Compensation"}]
[2937,111,"Y",195,"EACH","OUTPUT","NEITHER",null,null,null,null,"HR Compensation (111)","Number of therapy group sessions-partici","Number of therapy group sessions-participants",{"$f":"_xlfn.XLOOKUP(Measures_Table[[#This Row],[PM Program]],Programs_Active20[ZSBPPROGM (KEY)],Programs_Active20[LONG TEXT])","v":"HR Compensation"}]
[2938,111,"Y",195,"EACH","OUTPUT","NEITHER",null,null,null,null,"HR Compensation (111)","# of FV cases disposed","# of FV cases disposed",{"$f":"_xlfn.XLOOKUP(Measures_Table[[#This Row],[PM Program]],Programs_Active20[ZSBPPROGM (KEY)],Programs_Active20[LONG TEXT])","v":"HR Compensation"}]
[2939,147,"Y",278,"EACH","OUTPUT","ADOPTEDBUD",null,null,null,null,"Technology & Communications (147)","# of homeless people assisted","# of homeless people assisted",{"$f":"_xlfn.XLOOKUP(Measures_Table[[#This Row],[PM Program]],Programs_Active20[ZSBPPROGM (KEY)],Programs_Active20[LONG TEXT])","v":"Technology & Communications"}]
[2940,147,"Y",278,"EACH","OUTPUT","ADOPTEDBUD",null,null,null,null,"Technology & Communications (147)","# of homeless camp visits","# of homeless camp visits",{"$f":"_xlfn.XLOOKUP(Measures_Table[[#This Row],[PM Program]],Programs_Active20[ZSBPPROGM (KEY)],Programs_Active20[LONG TEXT])","v":"Technology & Communications"}]
[2941,147,"Y",278,"EACH","OUTPUT","ADOPTEDBUD",null,null,null,null,"Technology & Communications (147)","% of Better Builder projects with safety","% of Better Builder projects with safety/wage-based rating of “good” or better.",{"$f":"_xlfn.XLOOKUP(Measures_Table[[#This Row],[PM Program]],Programs_Active20[ZSBPPROGM (KEY)],Programs_Active20[LONG TEXT])","v":"Technology & Communications"}]
[2942,147,"Y",278,"PERCENT","OUTCOME","ADOPTEDBUD",null,null,null,null,"Technology & Communications (147)","Reduce turnover of direct care staff by","Reduce turnover of direct care staff by 2% annually",{"$f":"_xlfn.XLOOKUP(Measures_Table[[#This Row],[PM Program]],Programs_Active20[ZSBPPROGM (KEY)],Programs_Active20[LONG TEXT])","v":"Technology & Communications"}]
[2943,147,"Y",278,"EACH","OUTPUT","ADOPTEDBUD",null,null,null,null,"Technology & Communications (147)","Increase percentage of employees rating","Increase percentage of employees rating overall experience with department as positive by 5% annually",{"$f":"_xlfn.XLOOKUP(Measures_Table[[#This Row],[PM Program]],Programs_Active20[ZSBPPROGM (KEY)],Programs_Active20[LONG TEXT])","v":"Technology & Communications"}]
[2944,147,"Y",278,"PERCENT","OUTCOME","ADOPTEDBUD",null,null,null,null,"Technology & Communications (147)","Maintain overall course completion rate","Maintain overall course completion rate of 95% or greater annually",{"$f":"_xlfn.XLOOKUP(Measures_Table[[#This Row],[PM Program]],Programs_Active20[ZSBPPROGM (KEY)],Programs_Active20[LONG TEXT])","v":"Technology & Communications"}]
[2945,147,"Y",278,"PERCENT","OUTCOME","ADOPTEDBUD",null,null,null,null,"Technology & Communications (147)","% participation in Travis County Cyberse","% participation in Travis County Cybersecurity Awareness training.",{"$f":"_xlfn.XLOOKUP(Measures_Table[[#This Row],[PM Program]],Programs_Active20[ZSBPPROGM (KEY)],Programs_Active20[LONG TEXT])","v":"Technology & Communications"}]
[2946,147,"Y",278,"PERCENT","OUTCOME","ADOPTEDBUD",null,null,null,null,"Technology & Communications (147)","# of cybersecurity risks monitored in th","# of cybersecurity risks monitored in the Risk Register",{"$f":"_xlfn.XLOOKUP(Measures_Table[[#This Row],[PM Program]],Programs_Active20[ZSBPPROGM (KEY)],Programs_Active20[LONG TEXT])","v":"Technology & Communications"}]
[2947,147,"Y",278,"EACH","OUTPUT","ADOPTEDBUD",null,null,null,null,"Technology & Communications (147)","% of Issued Warrants Successfully Served","% of Issued Warrants Successfully Served",{"$f":"_xlfn.XLOOKUP(Measures_Table[[#This Row],[PM Program]],Programs_Active20[ZSBPPROGM (KEY)],Programs_Active20[LONG TEXT])","v":"Technology & Communications"}]
[2948,147,"Y",278,"EACH","OUTPUT","ADOPTEDBUD",null,null,null,null,"Technology & Communications (147)","% of Personnel and Financial Related Act","% of Personnel and Financial Related Actions Completed on time",{"$f":"_xlfn.XLOOKUP(Measures_Table[[#This Row],[PM Program]],Programs_Active20[ZSBPPROGM (KEY)],Programs_Active20[LONG TEXT])","v":"Technology & Communications"}]
[2949,147,"Y",278,"PERCENT","OUTPUT","ADOPTEDBUD",null,null,null,null,"Technology & Communications (147)","% of Investigations Closed","% of Investigations Closed",{"$f":"_xlfn.XLOOKUP(Measures_Table[[#This Row],[PM Program]],Programs_Active20[ZSBPPROGM (KEY)],Programs_Active20[LONG TEXT])","v":"Technology & Communications"}]
[2950,147,"Y",278,"EACH","OUTPUT","ADOPTEDBUD",null,null,null,null,"Technology & Communications (147)","# of Non-Res/Com site plan/construction","# of Non-Res/Com site plan/construction plans reviews",{"$f":"_xlfn.XLOOKUP(Measures_Table[[#This Row],[PM Program]],Programs_Active20[ZSBPPROGM (KEY)],Programs_Active20[LONG TEXT])","v":"Technology & Communications"}]
[2951,147,"Y",278,"EACH","OUTPUT","ADOPTEDBUD",null,null,null,null,"Technology & Communications (147)","# Res/Type B permits issued","# Res/Type B permits issued",{"$f":"_xlfn.XLOOKUP(Measures_Table[[#This Row],[PM Program]],Programs_Active20[ZSBPPROGM (KEY)],Programs_Active20[LONG TEXT])","v":"Technology & Communications"}]
[2952,147,"Y",275,"EACH","OUTPUT","ADOPTEDBUD",null,null,null,null,"Emergency Management (147)","# Non-Res permits issued","# Non-Res permits issued",{"$f":"_xlfn.XLOOKUP(Measures_Table[[#This Row],[PM Program]],Programs_Active20[ZSBPPROGM (KEY)],Programs_Active20[LONG TEXT])","v":"Emergency Management"}]
[2953,147,"Y",275,"EACH","OUTPUT","ADOPTEDBUD",null,null,null,null,"Emergency Management (147)","% of Jobs Changed PG as Result of Market","% of Jobs Changed PG as Result of Market Analysis",{"$f":"_xlfn.XLOOKUP(Measures_Table[[#This Row],[PM Program]],Programs_Active20[ZSBPPROGM (KEY)],Programs_Active20[LONG TEXT])","v":"Emergency Management"}]
[2954,147,"Y",275,"PERCENT","OUTPUT","ADOPTEDBUD",null,null,null,null,"Emergency Management (147)","New Hires Processed","New Hires Processed",{"$f":"_xlfn.XLOOKUP(Measures_Table[[#This Row],[PM Program]],Programs_Active20[ZSBPPROGM (KEY)],Programs_Active20[LONG TEXT])","v":"Emergency Management"}]
[2955,147,"Y",275,"EACH","OUTPUT","ADOPTEDBUD",null,null,null,null,"Emergency Management (147)","Interdepartment Changes Processed","Interdepartment Changes Processed",{"$f":"_xlfn.XLOOKUP(Measures_Table[[#This Row],[PM Program]],Programs_Active20[ZSBPPROGM (KEY)],Programs_Active20[LONG TEXT])","v":"Emergency Management"}]
[2956,147,"Y",275,"EACH","OUTPUT","ADOPTEDBUD",null,null,null,null,"Emergency Management (147)","Voluntary Terminations Processed","Voluntary Terminations Processed",{"$f":"_xlfn.XLOOKUP(Measures_Table[[#This Row],[PM Program]],Programs_Active20[ZSBPPROGM (KEY)],Programs_Active20[LONG TEXT])","v":"Emergency Management"}]
[2957,147,"Y",275,"EACH","INPUT","ADOPTEDBUD",null,null,null,null,"Emergency Management (147)","Involuntary Terminations Processed","Involuntary Terminations Processed",{"$f":"_xlfn.XLOOKUP(Measures_Table[[#This Row],[PM Program]],Programs_Active20[ZSBPPROGM (KEY)],Programs_Active20[LONG TEXT])","v":"Emergency Management"}]
[2958,147,"Y",275,"EACH","OUTPUT","ADOPTEDBUD",null,null,null,null,"Emergency Management (147)","Retirements Processed","Retirements Processed",{"$f":"_xlfn.XLOOKUP(Measures_Table[[#This Row],[PM Program]],Programs_Active20[ZSBPPROGM (KEY)],Programs_Active20[LONG TEXT])","v":"Emergency Management"}]
[2959,147,"Y",275,"EACH","OUTPUT","ADOPTEDBUD",null,null,null,null,"Emergency Management (147)","Salary Changes Processed","Salary Changes Processed",{"$f":"_xlfn.XLOOKUP(Measures_Table[[#This Row],[PM Program]],Programs_Active20[ZSBPPROGM (KEY)],Programs_Active20[LONG TEXT])","v":"Emergency Management"}]
[2960,129,"Y",238,"EACH","INPUT","BLACKBOOK",null,null,null,null,"Juvenile Case Manager (129)","Career Ladders Processed","Career Ladders Processed",{"$f":"_xlfn.XLOOKUP(Measures_Table[[#This Row],[PM Program]],Programs_Active20[ZSBPPROGM (KEY)],Programs_Active20[LONG TEXT])","v":"Juvenile Case Manager"}]
[2961,129,"Y",238,"EACH","INPUT","BLACKBOOK",null,null,null,null,"Juvenile Case Manager (129)","Compression Changes Processed","Compression Changes Processed",{"$f":"_xlfn.XLOOKUP(Measures_Table[[#This Row],[PM Program]],Programs_Active20[ZSBPPROGM (KEY)],Programs_Active20[LONG TEXT])","v":"Juvenile Case Manager"}]
[2962,129,"Y",238,"EACH","INPUT","ADOPTEDBUD",null,null,null,null,"Juvenile Case Manager (129)","Promotions Processed","Promotions Processed",{"$f":"_xlfn.XLOOKUP(Measures_Table[[#This Row],[PM Program]],Programs_Active20[ZSBPPROGM (KEY)],Programs_Active20[LONG TEXT])","v":"Juvenile Case Manager"}]
[2963,129,"Y",238,"EACH","INPUT","ADOPTEDBUD",null,null,null,null,"Juvenile Case Manager (129)","Reclassifications Processed","Reclassifications Processed",{"$f":"_xlfn.XLOOKUP(Measures_Table[[#This Row],[PM Program]],Programs_Active20[ZSBPPROGM (KEY)],Programs_Active20[LONG TEXT])","v":"Juvenile Case Manager"}]
[2964,129,"Y",238,"EACH","INPUT","BLACKBOOK",null,null,null,null,"Juvenile Case Manager (129)","Salary Survey Changes Processed","Salary Survey Changes Processed",{"$f":"_xlfn.XLOOKUP(Measures_Table[[#This Row],[PM Program]],Programs_Active20[ZSBPPROGM (KEY)],Programs_Active20[LONG TEXT])","v":"Juvenile Case Manager"}]
[2965,129,"Y",238,"EACH","INPUT","BLACKBOOK",null,null,null,null,"Juvenile Case Manager (129)","SAP HELP Desk Tickets Processed","SAP HELP Desk Tickets Processed",{"$f":"_xlfn.XLOOKUP(Measures_Table[[#This Row],[PM Program]],Programs_Active20[ZSBPPROGM (KEY)],Programs_Active20[LONG TEXT])","v":"Juvenile Case Manager"}]
[2966,129,"Y",238,"EACH","INPUT","BLACKBOOK",null,null,null,null,"Juvenile Case Manager (129)","Number of TriTech CAD-Mobile Client Lice","Number of TriTech CAD-Mobile Client Licenses Assigned to Travis County",{"$f":"_xlfn.XLOOKUP(Measures_Table[[#This Row],[PM Program]],Programs_Active20[ZSBPPROGM (KEY)],Programs_Active20[LONG TEXT])","v":"Juvenile Case Manager"}]
[2968,129,"Y",238,"EACH","OUTPUT","BLACKBOOK",null,null,null,null,"Juvenile Case Manager (129)","Number of CAD Incidents System-wide, CAD","Number of CAD Incidents System-wide, CAD RMS",{"$f":"_xlfn.XLOOKUP(Measures_Table[[#This Row],[PM Program]],Programs_Active20[ZSBPPROGM (KEY)],Programs_Active20[LONG TEXT])","v":"Juvenile Case Manager"}]
[2974,129,"Y",238,"EACH","OUTPUT","BLACKBOOK",null,null,null,null,"Juvenile Case Manager (129)","Number of Travis County Subscriber Radio","Number of Travis County Subscriber Radios on RRS",{"$f":"_xlfn.XLOOKUP(Measures_Table[[#This Row],[PM Program]],Programs_Active20[ZSBPPROGM (KEY)],Programs_Active20[LONG TEXT])","v":"Juvenile Case Manager"}]
[2981,129,"Y",238,"EACH","OUTPUT","BLACKBOOK",null,null,null,null,"Juvenile Case Manager (129)","County personnel achieved NIMS training","County personnel achieved NIMS training compliance",{"$f":"_xlfn.XLOOKUP(Measures_Table[[#This Row],[PM Program]],Programs_Active20[ZSBPPROGM (KEY)],Programs_Active20[LONG TEXT])","v":"Juvenile Case Manager"}]
[2988,129,"Y",238,"EACH","OUTPUT","BLACKBOOK",null,null,null,null,"Juvenile Case Manager (129)","# of Interns:","# of Interns:",{"$f":"_xlfn.XLOOKUP(Measures_Table[[#This Row],[PM Program]],Programs_Active20[ZSBPPROGM (KEY)],Programs_Active20[LONG TEXT])","v":"Juvenile Case Manager"}]
[2998,129,"Y",238,"EACH","OUTCOME","BLACKBOOK",null,null,null,null,"Juvenile Case Manager (129)","Truant Conduct Phone contacts:","Truant Conduct Phone contacts:",{"$f":"_xlfn.XLOOKUP(Measures_Table[[#This Row],[PM Program]],Programs_Active20[ZSBPPROGM (KEY)],Programs_Active20[LONG TEXT])","v":"Juvenile Case Manager"}]
[3008,129,"Y",238,"PERCENT","EFFICIENCY","BLACKBOOK",null,null,null,null,"Juvenile Case Manager (129)","PCNA Showcause (Remedial) Hearings:","PCNA Showcause (Remedial) Hearings:",{"$f":"_xlfn.XLOOKUP(Measures_Table[[#This Row],[PM Program]],Programs_Active20[ZSBPPROGM (KEY)],Programs_Active20[LONG TEXT])","v":"Juvenile Case Manager"}]
[3009,129,"Y",238,"PERCENT","EFFICIENCY","BLACKBOOK",null,null,null,null,"Juvenile Case Manager (129)","PCNA Deferral Compliance:","PCNA Deferral Compliance:",{"$f":"_xlfn.XLOOKUP(Measures_Table[[#This Row],[PM Program]],Programs_Active20[ZSBPPROGM (KEY)],Programs_Active20[LONG TEXT])","v":"Juvenile Case Manager"}]
[3010,129,"Y",238,"PERCENT","EFFICIENCY","BLACKBOOK",null,null,null,null,"Juvenile Case Manager (129)","Juvenile School Visits:","Juvenile School Visits:",{"$f":"_xlfn.XLOOKUP(Measures_Table[[#This Row],[PM Program]],Programs_Active20[ZSBPPROGM (KEY)],Programs_Active20[LONG TEXT])","v":"Juvenile Case Manager"}]
[3011,129,"Y",238,"PERCENT","EFFICIENCY","ADOPTEDBUD",null,null,null,null,"Juvenile Case Manager (129)","Juvenile Home Visits:","Juvenile Home Visits:",{"$f":"_xlfn.XLOOKUP(Measures_Table[[#This Row],[PM Program]],Programs_Active20[ZSBPPROGM (KEY)],Programs_Active20[LONG TEXT])","v":"Juvenile Case Manager"}]
[3012,114,"Y",111,"PERCENT","EFFICIENCY","ADOPTEDBUD",null,null,null,null,"Custodial Operations (114)","Juvenile Phone contacts:","Juvenile Phone contacts:",{"$f":"_xlfn.XLOOKUP(Measures_Table[[#This Row],[PM Program]],Programs_Active20[ZSBPPROGM (KEY)],Programs_Active20[LONG TEXT])","v":"Custodial Operations"}]
[3013,114,"Y",111,"EACH","INPUT","ADOPTEDBUD",null,null,null,null,"Custodial Operations (114)","Juvenile Email contacts:","Juvenile Email contacts:",{"$f":"_xlfn.XLOOKUP(Measures_Table[[#This Row],[PM Program]],Programs_Active20[ZSBPPROGM (KEY)],Programs_Active20[LONG TEXT])","v":"Custodial Operations"}]
[3014,114,"Y",111,"EACH","INPUT","BLACKBOOK",null,null,null,null,"Custodial Operations (114)","Juvenile Resource referrals:","Juvenile Resource referrals:",{"$f":"_xlfn.XLOOKUP(Measures_Table[[#This Row],[PM Program]],Programs_Active20[ZSBPPROGM (KEY)],Programs_Active20[LONG TEXT])","v":"Custodial Operations"}]
[3015,114,"Y",111,"EACH","OUTPUT","BLACKBOOK",null,null,null,null,"Custodial Operations (114)","Juvenile Showcause (Remedial) Hearings:","Juvenile Showcause (Remedial) Hearings:",{"$f":"_xlfn.XLOOKUP(Measures_Table[[#This Row],[PM Program]],Programs_Active20[ZSBPPROGM (KEY)],Programs_Active20[LONG TEXT])","v":"Custodial Operations"}]
[3016,114,"Y",111,"PERCENT","EFFICIENCY","BLACKBOOK",null,null,null,null,"Custodial Operations (114)","Juvenile Deferral Compliance:","Juvenile Deferral Compliance:",{"$f":"_xlfn.XLOOKUP(Measures_Table[[#This Row],[PM Program]],Programs_Active20[ZSBPPROGM (KEY)],Programs_Active20[LONG TEXT])","v":"Custodial Operations"}]
[3019,147,"Y",275,"EACH","OUTPUT","ADOPTEDBUD",null,null,null,null,"Emergency Management (147)","# of Every Parent Group class conducted","# of Every Parent Group class conducted (participants?)",{"$f":"_xlfn.XLOOKUP(Measures_Table[[#This Row],[PM Program]],Programs_Active20[ZSBPPROGM (KEY)],Programs_Active20[LONG TEXT])","v":"Emergency Management"}]
[3022,103,"Y",188,"EACH","OUTPUT","ADOPTEDBUD",null,null,null,null,"County Commissioner Precinct Two (103)","# of Mock Trials:","# of Mock Trials:",{"$f":"_xlfn.XLOOKUP(Measures_Table[[#This Row],[PM Program]],Programs_Active20[ZSBPPROGM (KEY)],Programs_Active20[LONG TEXT])","v":"County Commissioner Precinct Two"}]
[3023,103,"Y",188,"EACH","OUTPUT","ADOPTEDBUD",null,null,null,null,"County Commissioner Precinct Two (103)","Dispositions-Truant Conduct Convictions:","Dispositions-Truant Conduct Convictions:",{"$f":"_xlfn.XLOOKUP(Measures_Table[[#This Row],[PM Program]],Programs_Active20[ZSBPPROGM (KEY)],Programs_Active20[LONG TEXT])","v":"County Commissioner Precinct Two"}]
[3024,120,"Y",33,"DAYS","OUTCOME","ADOPTEDBUD",null,null,null,null,"General Administration (120)","Dispositions-Truant Conduct Dismissals:","Dispositions-Truant Conduct Dismissals:",{"$f":"_xlfn.XLOOKUP(Measures_Table[[#This Row],[PM Program]],Programs_Active20[ZSBPPROGM (KEY)],Programs_Active20[LONG TEXT])","v":"General Administration"}]
[3025,120,"Y",34,"Y/N","OUTCOME","ADOPTEDBUD",null,null,null,null,"Administration - Accounting (120)","Dispositions-Truant Conduct Contempt","Dispositions-Truant Conduct Contempt",{"$f":"_xlfn.XLOOKUP(Measures_Table[[#This Row],[PM Program]],Programs_Active20[ZSBPPROGM (KEY)],Programs_Active20[LONG TEXT])","v":"Administration - Accounting"}]
[3026,120,"Y",38,"EACH","OUTCOME","ADOPTEDBUD",null,null,null,null,"Misdemeanor Records Division (120)","Dispositions-Truant Conduct Transfer to","Dispositions-Truant Conduct Transfer to Gardner Betts Juvenile Court:",{"$f":"_xlfn.XLOOKUP(Measures_Table[[#This Row],[PM Program]],Programs_Active20[ZSBPPROGM (KEY)],Programs_Active20[LONG TEXT])","v":"Misdemeanor Records Division"}]
[3027,120,"Y",40,"DAYS","OUTCOME","ADOPTEDBUD",null,null,null,null,"Recording Division (120)","Dispositions-PCNA Convictions:","Dispositions-PCNA Convictions:",{"$f":"_xlfn.XLOOKUP(Measures_Table[[#This Row],[PM Program]],Programs_Active20[ZSBPPROGM (KEY)],Programs_Active20[LONG TEXT])","v":"Recording Division"}]
[3028,120,"Y",40,"DAYS","OUTCOME","ADOPTEDBUD",null,null,null,null,"Recording Division (120)","Dispositions-PCNA Dismissals:","Dispositions-PCNA Dismissals:",{"$f":"_xlfn.XLOOKUP(Measures_Table[[#This Row],[PM Program]],Programs_Active20[ZSBPPROGM (KEY)],Programs_Active20[LONG TEXT])","v":"Recording Division"}]
[3029,120,"Y",41,"EACH","OUTCOME","ADOPTEDBUD",null,null,null,null,"Records Management (120)","Dispositions-Juvenile Convictions:","Dispositions-Juvenile Convictions:",{"$f":"_xlfn.XLOOKUP(Measures_Table[[#This Row],[PM Program]],Programs_Active20[ZSBPPROGM (KEY)],Programs_Active20[LONG TEXT])","v":"Records Management"}]
[3030,120,"Y",41,"EACH","OUTCOME","ADOPTEDBUD",null,null,null,null,"Records Management (120)","Dispositions-Juvenile Dismissals:","Dispositions-Juvenile Dismissals:",{"$f":"_xlfn.XLOOKUP(Measures_Table[[#This Row],[PM Program]],Programs_Active20[ZSBPPROGM (KEY)],Programs_Active20[LONG TEXT])","v":"Records Management"}]
[3031,120,"Y",41,"EACH","OUTCOME","ADOPTEDBUD",null,null,null,null,"Records Management (120)","Dispositions-Juvenile Transfer to Gardne","Dispositions-Juvenile Transfer to Gardner Betts Juvenile Court:",{"$f":"_xlfn.XLOOKUP(Measures_Table[[#This Row],[PM Program]],Programs_Active20[ZSBPPROGM (KEY)],Programs_Active20[LONG TEXT])","v":"Records Management"}]
[3032,120,"Y",41,"EACH","OUTCOME","ADOPTEDBUD",null,null,null,null,"Records Management (120)","# of RECOVERED students-reenrolled to ho","# of RECOVERED students-reenrolled to home campus:",{"$f":"_xlfn.XLOOKUP(Measures_Table[[#This Row],[PM Program]],Programs_Active20[ZSBPPROGM (KEY)],Programs_Active20[LONG TEXT])","v":"Records Management"}]
[3033,120,"Y",41,"EACH","OUTCOME","ADOPTEDBUD",null,null,null,null,"Records Management (120)","# of RECOVERED students referred to Char","# of RECOVERED students referred to Charter Schools:",{"$f":"_xlfn.XLOOKUP(Measures_Table[[#This Row],[PM Program]],Programs_Active20[ZSBPPROGM (KEY)],Programs_Active20[LONG TEXT])","v":"Records Management"}]
[3034,120,"Y",41,"EACH","OUTCOME","ADOPTEDBUD",null,null,null,null,"Records Management (120)","# of RECOVERED students referred to GED:","# of RECOVERED students referred to GED:",{"$f":"_xlfn.XLOOKUP(Measures_Table[[#This Row],[PM Program]],Programs_Active20[ZSBPPROGM (KEY)],Programs_Active20[LONG TEXT])","v":"Records Management"}]
[3035,120,"Y",41,"EACH","OUTCOME","ADOPTEDBUD",null,null,null,null,"Records Management (120)","% Truant Conduct Compliance Rate (TC Def","% Truant Conduct Compliance Rate (TC Deferral Compliance Dismissals divided by the # of new filings)",{"$f":"_xlfn.XLOOKUP(Measures_Table[[#This Row],[PM Program]],Programs_Active20[ZSBPPROGM (KEY)],Programs_Active20[LONG TEXT])","v":"Records Management"}]
[3036,120,"Y",41,"EACH","OUTCOME","ADOPTEDBUD",null,null,null,null,"Records Management (120)","% PCNA Compliance Rate (PCNA Deferral Co","% PCNA Compliance Rate (PCNA Deferral Compliance Dismissals divided by the # of new filings)",{"$f":"_xlfn.XLOOKUP(Measures_Table[[#This Row],[PM Program]],Programs_Active20[ZSBPPROGM (KEY)],Programs_Active20[LONG TEXT])","v":"Records Management"}]
[3037,120,"Y",33,"EACH","OUTPUT","ADOPTEDBUD",null,null,null,null,"General Administration (120)","% Juvenile Compliance Rate (Juvenile Com","% Juvenile Compliance Rate (Juvenile Compliance Dismissals divided by the # of new filings)",{"$f":"_xlfn.XLOOKUP(Measures_Table[[#This Row],[PM Program]],Programs_Active20[ZSBPPROGM (KEY)],Programs_Active20[LONG TEXT])","v":"General Administration"}]
[3038,120,"Y",33,"EACH","OUTPUT","ADOPTEDBUD",null,null,null,null,"General Administration (120)","% of Reenrollment Rate (Students reenrol","% of Reenrollment Rate (Students reenrolled divided by students not enrolled at initial hearing)",{"$f":"_xlfn.XLOOKUP(Measures_Table[[#This Row],[PM Program]],Programs_Active20[ZSBPPROGM (KEY)],Programs_Active20[LONG TEXT])","v":"General Administration"}]
[3039,120,"Y",33,"EACH","OUTPUT","ADOPTEDBUD",null,null,null,null,"General Administration (120)","Total facility SF cleaned/Meeting cleani","Total facility SF cleaned/Meeting cleaning timelines",{"$f":"_xlfn.XLOOKUP(Measures_Table[[#This Row],[PM Program]],Programs_Active20[ZSBPPROGM (KEY)],Programs_Active20[LONG TEXT])","v":"General Administration"}]
[3040,149,"Y",137,"EACH","OUTCOME","ADOPTEDBUD",null,null,null,null,"Real Estate (149)","Custodian work orders received","Custodian work orders received",{"$f":"_xlfn.XLOOKUP(Measures_Table[[#This Row],[PM Program]],Programs_Active20[ZSBPPROGM (KEY)],Programs_Active20[LONG TEXT])","v":{"$error":"#N/A"}}]
[3041,158,"Y",145,"EACH","OUTCOME","ADOPTEDBUD",null,null,null,null,"CDBG Administration (158)","Move work orders received","Move work orders received",{"$f":"_xlfn.XLOOKUP(Measures_Table[[#This Row],[PM Program]],Programs_Active20[ZSBPPROGM (KEY)],Programs_Active20[LONG TEXT])","v":"CDBG Administration"}]
[3042,158,"Y",145,"PERCENT","OUTCOME","ADOPTEDBUD",null,null,null,null,"CDBG Administration (158)","Total facility SF Outsourced","Total facility SF Outsourced",{"$f":"_xlfn.XLOOKUP(Measures_Table[[#This Row],[PM Program]],Programs_Active20[ZSBPPROGM (KEY)],Programs_Active20[LONG TEXT])","v":"CDBG Administration"}]
[3043,158,"Y",161,"EACH","OUTPUT","NEITHER",null,null,null,null,"Research & Planning Division (158)","Total facility SF Outsourced/Meeting cle","Total facility SF Outsourced/Meeting cleaning timelines",{"$f":"_xlfn.XLOOKUP(Measures_Table[[#This Row],[PM Program]],Programs_Active20[ZSBPPROGM (KEY)],Programs_Active20[LONG TEXT])","v":"Research & Planning Division"}]
[3044,120,"Y",41,"EACH","OUTCOME","ADOPTEDBUD",null,null,null,null,"Records Management (120)","Turnover Percentage within one year","Turnover Percentage within one year",{"$f":"_xlfn.XLOOKUP(Measures_Table[[#This Row],[PM Program]],Programs_Active20[ZSBPPROGM (KEY)],Programs_Active20[LONG TEXT])","v":"Records Management"}]
[3045,120,"Y",41,"EACH","OUTCOME","ADOPTEDBUD",null,null,null,null,"Records Management (120)","# of applicants per # hired","# of applicants per # hired",{"$f":"_xlfn.XLOOKUP(Measures_Table[[#This Row],[PM Program]],Programs_Active20[ZSBPPROGM (KEY)],Programs_Active20[LONG TEXT])","v":"Records Management"}]
[3046,120,"Y",41,"EACH","OUTCOME","ADOPTEDBUD",null,null,null,null,"Records Management (120)","Leadership and participation in CAPCOG i","Leadership and participation in CAPCOG initiatives and committees",{"$f":"_xlfn.XLOOKUP(Measures_Table[[#This Row],[PM Program]],Programs_Active20[ZSBPPROGM (KEY)],Programs_Active20[LONG TEXT])","v":"Records Management"}]
[3047,120,"Y",41,"EACH","OUTCOME","ADOPTEDBUD",null,null,null,null,"Records Management (120)","Cases prepared for scanning by Records M","Cases prepared for scanning by Records Management",{"$f":"_xlfn.XLOOKUP(Measures_Table[[#This Row],[PM Program]],Programs_Active20[ZSBPPROGM (KEY)],Programs_Active20[LONG TEXT])","v":"Records Management"}]
[3048,120,"Y",41,"EACH","OUTCOME","ADOPTEDBUD",null,null,null,null,"Records Management (120)","Cases prepared for scanning by Records M","Cases prepared for scanning by Records Management",{"$f":"_xlfn.XLOOKUP(Measures_Table[[#This Row],[PM Program]],Programs_Active20[ZSBPPROGM (KEY)],Programs_Active20[LONG TEXT])","v":"Records Management"}]
[3049,120,"Y",41,"EACH","OUTCOME","ADOPTEDBUD",null,null,null,null,"Records Management (120)","# of transp. board & community events","Number of transportation board and community events\n",{"$f":"_xlfn.XLOOKUP(Measures_Table[[#This Row],[PM Program]],Programs_Active20[ZSBPPROGM (KEY)],Programs_Active20[LONG TEXT])","v":"Records Management"}]
[3050,120,"Y",41,"EACH","OUTCOME","ADOPTEDBUD",null,null,null,null,"Records Management (120)","# of Conservation & environmnt bd events","Number of Conservation and environmental board and committee events",{"$f":"_xlfn.XLOOKUP(Measures_Table[[#This Row],[PM Program]],Programs_Active20[ZSBPPROGM (KEY)],Programs_Active20[LONG TEXT])","v":"Records Management"}]
[3051,108,"Y",17,"EACH","OUTCOME","ADOPTEDBUD",null,null,null,null,"Communications & Training (108)","Internal satisfaction:  Number of Days b","Internal satisfaction:  Number of Days between CBC request received and CBC run through DPS criminal history check system\n",{"$f":"_xlfn.XLOOKUP(Measures_Table[[#This Row],[PM Program]],Programs_Active20[ZSBPPROGM (KEY)],Programs_Active20[LONG TEXT])","v":"Communications & Training"}]
[3052,108,"Y",17,"EACH","OUTPUT","ADOPTEDBUD",null,null,null,null,"Communications & Training (108)","Maintain a rating of “Adequate” or bette","Maintain a rating of “Adequate” or better on Audits\n",{"$f":"_xlfn.XLOOKUP(Measures_Table[[#This Row],[PM Program]],Programs_Active20[ZSBPPROGM (KEY)],Programs_Active20[LONG TEXT])","v":"Communications & Training"}]
[3053,108,"Y",17,"EACH","EFFICIENCY","ADOPTEDBUD",null,null,null,null,"Communications & Training (108)","Satisfaction study. Time to complete tas","Satisfaction study. Time to complete tasks. Backlog reduction in filing\n",{"$f":"_xlfn.XLOOKUP(Measures_Table[[#This Row],[PM Program]],Programs_Active20[ZSBPPROGM (KEY)],Programs_Active20[LONG TEXT])","v":"Communications & Training"}]
[3054,108,"Y",18,"EACH","INPUT","ADOPTEDBUD",null,null,null,null,"Accounting Department (108)","Average number of days between receipt o","Average number of days between receipt of document and document being made electronically available to the public\n",{"$f":"_xlfn.XLOOKUP(Measures_Table[[#This Row],[PM Program]],Programs_Active20[ZSBPPROGM (KEY)],Programs_Active20[LONG TEXT])","v":"Accounting Department"}]
[3055,108,"Y",18,"EACH","INPUT","ADOPTEDBUD",null,null,null,null,"Accounting Department (108)","Average number of days between receipt o","Average number of days between receipt of document and indexing of document\n",{"$f":"_xlfn.XLOOKUP(Measures_Table[[#This Row],[PM Program]],Programs_Active20[ZSBPPROGM (KEY)],Programs_Active20[LONG TEXT])","v":"Accounting Department"}]
[3056,108,"Y",18,"EACH","INPUT","ADOPTEDBUD",null,null,null,null,"Accounting Department (108)","Historical Records Books Available Onlin","Historical Records Books Available Online\n",{"$f":"_xlfn.XLOOKUP(Measures_Table[[#This Row],[PM Program]],Programs_Active20[ZSBPPROGM (KEY)],Programs_Active20[LONG TEXT])","v":"Accounting Department"}]
[3057,108,"Y",18,"EACH","OUTPUT","ADOPTEDBUD",null,null,null,null,"Accounting Department (108)","Court Case Files Updated","Court Case Files Updated\n",{"$f":"_xlfn.XLOOKUP(Measures_Table[[#This Row],[PM Program]],Programs_Active20[ZSBPPROGM (KEY)],Programs_Active20[LONG TEXT])","v":"Accounting Department"}]
[3071,149,"Y",131,"EACH","OUTPUT","ADOPTEDBUD",null,null,null,null,"Natural Resources Program (149)","Records past legal retention destroyed p","Records past legal retention destroyed per TSLAC Guidelines",{"$f":"_xlfn.XLOOKUP(Measures_Table[[#This Row],[PM Program]],Programs_Active20[ZSBPPROGM (KEY)],Programs_Active20[LONG TEXT])","v":"Natural Resources Program"}]
[3072,149,"Y",131,"HOURS","OUTPUT","ADOPTEDBUD",null,null,null,null,"Natural Resources Program (149)","Shelving space recovered through file pu","Shelving space recovered through file purges (linear feet)",{"$f":"_xlfn.XLOOKUP(Measures_Table[[#This Row],[PM Program]],Programs_Active20[ZSBPPROGM (KEY)],Programs_Active20[LONG TEXT])","v":"Natural Resources Program"}]
[3075,128,"Y",235,"EACH","OUTPUT","ADOPTEDBUD",null,null,null,null,"Juvenile Case Manager (128)","Court case files updated","Court case files updated",{"$f":"_xlfn.XLOOKUP(Measures_Table[[#This Row],[PM Program]],Programs_Active20[ZSBPPROGM (KEY)],Programs_Active20[LONG TEXT])","v":"Juvenile Case Manager"}]
[3076,128,"Y",235,"EACH","OUTPUT","ADOPTEDBUD",null,null,null,null,"Juvenile Case Manager (128)","Historical records books available onlin","Historical records books available online on the Portal to Texas History",{"$f":"_xlfn.XLOOKUP(Measures_Table[[#This Row],[PM Program]],Programs_Active20[ZSBPPROGM (KEY)],Programs_Active20[LONG TEXT])","v":"Juvenile Case Manager"}]
[3077,128,"Y",235,"EACH","OUTPUT","ADOPTEDBUD",null,null,null,null,"Juvenile Case Manager (128)","Historical records books digitized","Historical records books digitized",{"$f":"_xlfn.XLOOKUP(Measures_Table[[#This Row],[PM Program]],Programs_Active20[ZSBPPROGM (KEY)],Programs_Active20[LONG TEXT])","v":"Juvenile Case Manager"}]
[3078,128,"Y",235,"EACH","OUTPUT","ADOPTEDBUD",null,null,null,null,"Juvenile Case Manager (128)","Call Duration","Call Duration",{"$f":"_xlfn.XLOOKUP(Measures_Table[[#This Row],[PM Program]],Programs_Active20[ZSBPPROGM (KEY)],Programs_Active20[LONG TEXT])","v":"Juvenile Case Manager"}]
[3079,128,"Y",235,"EACH","OUTPUT","ADOPTEDBUD",null,null,null,null,"Juvenile Case Manager (128)","Total Ads","Total Ads",{"$f":"_xlfn.XLOOKUP(Measures_Table[[#This Row],[PM Program]],Programs_Active20[ZSBPPROGM (KEY)],Programs_Active20[LONG TEXT])","v":"Juvenile Case Manager"}]
[3080,128,"Y",235,"EACH","OUTPUT","ADOPTEDBUD",null,null,null,null,"Juvenile Case Manager (128)","Estimated Audience","Estimated Audience",{"$f":"_xlfn.XLOOKUP(Measures_Table[[#This Row],[PM Program]],Programs_Active20[ZSBPPROGM (KEY)],Programs_Active20[LONG TEXT])","v":"Juvenile Case Manager"}]
[3088,115,"Y",292,"EACH","OUTPUT","ADOPTEDBUD",null,null,null,null,"Purchasing Office Compliance (115)","New Caseload Volume","New Caseload Volume",{"$f":"_xlfn.XLOOKUP(Measures_Table[[#This Row],[PM Program]],Programs_Active20[ZSBPPROGM (KEY)],Programs_Active20[LONG TEXT])","v":"Purchasing Office Compliance"}]
[3089,115,"Y",292,"PERCENT","OUTCOME","ADOPTEDBUD",null,null,null,null,"Purchasing Office Compliance (115)","Payment Plans","Payment Plans",{"$f":"_xlfn.XLOOKUP(Measures_Table[[#This Row],[PM Program]],Programs_Active20[ZSBPPROGM (KEY)],Programs_Active20[LONG TEXT])","v":"Purchasing Office Compliance"}]
[3090,115,"Y",292,"PERCENT","OUTCOME","ADOPTEDBUD",null,null,null,null,"Purchasing Office Compliance (115)","Cases Referred to Clerks/County Atty. In","Cases Referred to Clerks/County Atty. Indigence, Paid in full, deceased, non-payment",{"$f":"_xlfn.XLOOKUP(Measures_Table[[#This Row],[PM Program]],Programs_Active20[ZSBPPROGM (KEY)],Programs_Active20[LONG TEXT])","v":"Purchasing Office Compliance"}]
[3091,132,"Y",294,"EACH","INPUT","ADOPTEDBUD",null,null,null,null,"Telecommunications (132)","Collection Notices","Collection Notices",{"$f":"_xlfn.XLOOKUP(Measures_Table[[#This Row],[PM Program]],Programs_Active20[ZSBPPROGM (KEY)],Programs_Active20[LONG TEXT])","v":"Telecommunications"}]
[3096,108,"Y",24,"EACH","INPUT","ADOPTEDBUD",null,null,null,null,"Property Tax Collections (108)","Collection Notices","Collection Notices",{"$f":"_xlfn.XLOOKUP(Measures_Table[[#This Row],[PM Program]],Programs_Active20[ZSBPPROGM (KEY)],Programs_Active20[LONG TEXT])","v":"Property Tax Collections"}]
[3098,108,"Y",24,"EACH","OUTPUT","ADOPTEDBUD",null,null,null,null,"Property Tax Collections (108)","# of feral hogs removed","# of feral hogs removed",{"$f":"_xlfn.XLOOKUP(Measures_Table[[#This Row],[PM Program]],Programs_Active20[ZSBPPROGM (KEY)],Programs_Active20[LONG TEXT])","v":"Property Tax Collections"}]
[3099,108,"Y",24,"EACH","OUTPUT","ADOPTEDBUD",null,null,null,null,"Property Tax Collections (108)","# of hours controlling non-native plants","# of hours controlling non-native plants",{"$f":"_xlfn.XLOOKUP(Measures_Table[[#This Row],[PM Program]],Programs_Active20[ZSBPPROGM (KEY)],Programs_Active20[LONG TEXT])","v":"Property Tax Collections"}]
[3100,108,"Y",24,"DOLLARS","OUTCOME","ADOPTEDBUD",null,null,null,null,"Property Tax Collections (108)","Number of Truant Conduct Referrals recei","Number of Truant Conduct Referrals reviewed by JCM\n",{"$f":"_xlfn.XLOOKUP(Measures_Table[[#This Row],[PM Program]],Programs_Active20[ZSBPPROGM (KEY)],Programs_Active20[LONG TEXT])","v":"Property Tax Collections"}]
[3101,108,"Y",24,"EACH","OUTPUT","ADOPTEDBUD",null,null,null,null,"Property Tax Collections (108)","Number of Truant Conduct cases filed by","Number of Truant Conduct cases filed by truancy prosecutor",{"$f":"_xlfn.XLOOKUP(Measures_Table[[#This Row],[PM Program]],Programs_Active20[ZSBPPROGM (KEY)],Programs_Active20[LONG TEXT])","v":"Property Tax Collections"}]
[3102,108,"Y",24,"EACH","OUTPUT","ADOPTEDBUD",null,null,null,null,"Property Tax Collections (108)","Number of Parent Contributing complaints","Number of Parent Contributing complaints filed by schools",{"$f":"_xlfn.XLOOKUP(Measures_Table[[#This Row],[PM Program]],Programs_Active20[ZSBPPROGM (KEY)],Programs_Active20[LONG TEXT])","v":"Property Tax Collections"}]
[3103,108,"Y",24,"EACH","OUTPUT","ADOPTEDBUD",null,null,null,null,"Property Tax Collections (108)","Number of cases assigned to JCM","Number of cases assigned to JCM",{"$f":"_xlfn.XLOOKUP(Measures_Table[[#This Row],[PM Program]],Programs_Active20[ZSBPPROGM (KEY)],Programs_Active20[LONG TEXT])","v":"Property Tax Collections"}]
[3104,108,"Y",24,"DOLLARS","OUTCOME","ADOPTEDBUD",null,null,null,null,"Property Tax Collections (108)","Meetings JCM held with student or parent","Meetings JCM held with student or parent",{"$f":"_xlfn.XLOOKUP(Measures_Table[[#This Row],[PM Program]],Programs_Active20[ZSBPPROGM (KEY)],Programs_Active20[LONG TEXT])","v":"Property Tax Collections"}]
[3106,108,"Y",24,"PERCENT","EFFICIENCY","ADOPTEDBUD",null,null,null,null,"Property Tax Collections (108)","Number of cases dismissed prior to Paren","Number of cases dismissed prior to Parent Contributing hearing",{"$f":"_xlfn.XLOOKUP(Measures_Table[[#This Row],[PM Program]],Programs_Active20[ZSBPPROGM (KEY)],Programs_Active20[LONG TEXT])","v":"Property Tax Collections"}]
[3107,108,"Y",24,"PERCENT","EFFICIENCY","ADOPTEDBUD",null,null,null,null,"Property Tax Collections (108)","Number of cases dismissed after successf","Number of cases dismissed after successful completion of court order",{"$f":"_xlfn.XLOOKUP(Measures_Table[[#This Row],[PM Program]],Programs_Active20[ZSBPPROGM (KEY)],Programs_Active20[LONG TEXT])","v":"Property Tax Collections"}]
[3108,108,"Y",21,"EACH","INPUT","ADOPTEDBUD",null,null,null,null,"Information Technology Division (108)","Number of cases disposed","Number of cases disposed",{"$f":"_xlfn.XLOOKUP(Measures_Table[[#This Row],[PM Program]],Programs_Active20[ZSBPPROGM (KEY)],Programs_Active20[LONG TEXT])","v":"Information Technology Division"}]
[3109,108,"Y",21,"EACH","OUTPUT","ADOPTEDBUD",null,null,null,null,"Information Technology Division (108)","Average time from appointment to initial","Average time from appointment to initial contact",{"$f":"_xlfn.XLOOKUP(Measures_Table[[#This Row],[PM Program]],Programs_Active20[ZSBPPROGM (KEY)],Programs_Active20[LONG TEXT])","v":"Information Technology Division"}]
[3110,106,"Y",178,"PERCENT","OUTCOME","ADOPTEDBUD",null,null,null,null,"Auditor's Office (106)","Average number of days in jail pretrial","Average number of days in jail pretrial",{"$f":"_xlfn.XLOOKUP(Measures_Table[[#This Row],[PM Program]],Programs_Active20[ZSBPPROGM (KEY)],Programs_Active20[LONG TEXT])","v":"Auditor's Office"}]
[3111,137,"Y",58,"EACH","INPUT","ADOPTEDBUD",null,null,null,null,"Chaplain (137)","Percentage of clients released on person","Percentage of clients released on personal bond",{"$f":"_xlfn.XLOOKUP(Measures_Table[[#This Row],[PM Program]],Programs_Active20[ZSBPPROGM (KEY)],Programs_Active20[LONG TEXT])","v":"Chaplain"}]
[3112,137,"Y",58,"EACH","OUTPUT","ADOPTEDBUD",null,null,null,null,"Chaplain (137)","Number of motions filed","Number of motions filed",{"$f":"_xlfn.XLOOKUP(Measures_Table[[#This Row],[PM Program]],Programs_Active20[ZSBPPROGM (KEY)],Programs_Active20[LONG TEXT])","v":"Chaplain"}]
[3113,137,"Y",58,"EACH","INPUT","ADOPTEDBUD",null,null,null,null,"Chaplain (137)","Caseload per attorney (misdemeanor)","Caseload per attorney (misdemeanor)",{"$f":"_xlfn.XLOOKUP(Measures_Table[[#This Row],[PM Program]],Programs_Active20[ZSBPPROGM (KEY)],Programs_Active20[LONG TEXT])","v":"Chaplain"}]
[3114,137,"Y",58,"EACH","INPUT","ADOPTEDBUD",null,null,null,null,"Chaplain (137)","Caseload per attorney (felony)","Caseload per attorney (felony)",{"$f":"_xlfn.XLOOKUP(Measures_Table[[#This Row],[PM Program]],Programs_Active20[ZSBPPROGM (KEY)],Programs_Active20[LONG TEXT])","v":"Chaplain"}]
[3115,137,"Y",58,"EACH","INPUT","ADOPTEDBUD",null,null,null,null,"Chaplain (137)","# of EDSI projects monitored (PIDs, Grou","# of EDSI projects monitored (PIDs, Ground Leases, Economic Development Agreements)",{"$f":"_xlfn.XLOOKUP(Measures_Table[[#This Row],[PM Program]],Programs_Active20[ZSBPPROGM (KEY)],Programs_Active20[LONG TEXT])","v":"Chaplain"}]
[3116,137,"Y",81,"EACH","INPUT","ADOPTEDBUD",null,null,null,null,"Human Resources - Recruiting (137)","% of onsite interviews performed on whic","% of onsite interviews performed on which 2 or more wage or safety compliance issues were identified",{"$f":"_xlfn.XLOOKUP(Measures_Table[[#This Row],[PM Program]],Programs_Active20[ZSBPPROGM (KEY)],Programs_Active20[LONG TEXT])","v":"Human Resources - Recruiting"}]
[3117,137,"Y",81,"EACH","INPUT","ADOPTEDBUD",null,null,null,null,"Human Resources - Recruiting (137)","% of wage audits performed on which 1 or","% of wage audits performed on which 1 or more compliance issues were reported",{"$f":"_xlfn.XLOOKUP(Measures_Table[[#This Row],[PM Program]],Programs_Active20[ZSBPPROGM (KEY)],Programs_Active20[LONG TEXT])","v":"Human Resources - Recruiting"}]
[3118,137,"Y",81,"EACH","INPUT","ADOPTEDBUD",null,null,null,null,"Human Resources - Recruiting (137)","Total Telecom Entries","Total Telecom Entries",{"$f":"_xlfn.XLOOKUP(Measures_Table[[#This Row],[PM Program]],Programs_Active20[ZSBPPROGM (KEY)],Programs_Active20[LONG TEXT])","v":"Human Resources - Recruiting"}]
[3119,137,"Y",81,"EACH","INPUT","ADOPTEDBUD",null,null,null,null,"Human Resources - Recruiting (137)","# of interns hired from departments whic","# of interns hired from departments which used earmark funding",{"$f":"_xlfn.XLOOKUP(Measures_Table[[#This Row],[PM Program]],Programs_Active20[ZSBPPROGM (KEY)],Programs_Active20[LONG TEXT])","v":"Human Resources - Recruiting"}]
[3120,137,"Y",81,"EACH","INPUT","ADOPTEDBUD",null,null,null,null,"Human Resources - Recruiting (137)","% of county departments that populate th","% of county departments that populate the LMS with courses (essentially % of departments that use LMS)",{"$f":"_xlfn.XLOOKUP(Measures_Table[[#This Row],[PM Program]],Programs_Active20[ZSBPPROGM (KEY)],Programs_Active20[LONG TEXT])","v":"Human Resources - Recruiting"}]
[3121,137,"Y",81,"EACH","INPUT","ADOPTEDBUD",null,null,null,null,"Human Resources - Recruiting (137)","Number of course items delivered county","Number of course items delivered county wide in LMS",{"$f":"_xlfn.XLOOKUP(Measures_Table[[#This Row],[PM Program]],Programs_Active20[ZSBPPROGM (KEY)],Programs_Active20[LONG TEXT])","v":"Human Resources - Recruiting"}]
[3122,137,"Y",67,"EACH","INPUT","ADOPTEDBUD",null,null,null,null,"Courthouse Security (137)","# of Dealer Declarations Reviewed","# of Dealer Declarations Reviewed",{"$f":"_xlfn.XLOOKUP(Measures_Table[[#This Row],[PM Program]],Programs_Active20[ZSBPPROGM (KEY)],Programs_Active20[LONG TEXT])","v":"Courthouse Security"}]
[3123,137,"Y",67,"EACH","INPUT","ADOPTEDBUD",null,null,null,null,"Courthouse Security (137)","# VIT Taxes Escrowed by Mass Post","# VIT Taxes Escrowed by Mass Post",{"$f":"_xlfn.XLOOKUP(Measures_Table[[#This Row],[PM Program]],Programs_Active20[ZSBPPROGM (KEY)],Programs_Active20[LONG TEXT])","v":"Courthouse Security"}]
[3124,137,"Y",67,"EACH","INPUT","ADOPTEDBUD",null,null,null,null,"Courthouse Security (137)","# of Dealers","# of Dealers",{"$f":"_xlfn.XLOOKUP(Measures_Table[[#This Row],[PM Program]],Programs_Active20[ZSBPPROGM (KEY)],Programs_Active20[LONG TEXT])","v":"Courthouse Security"}]
[3125,137,"Y",68,"EACH","OUTCOME","ADOPTEDBUD",null,null,null,null,"Crime Lab - Evidence Control Unit (137)","# of Dealer Sales Calculations Reviewed","# of Dealer Sales Calculations Reviewed",{"$f":"_xlfn.XLOOKUP(Measures_Table[[#This Row],[PM Program]],Programs_Active20[ZSBPPROGM (KEY)],Programs_Active20[LONG TEXT])","v":{"$error":"#N/A"}}]
[3126,137,"Y",68,"EACH","INPUT","ADOPTEDBUD",null,null,null,null,"Crime Lab - Evidence Control Unit (137)","# Accts w/Overages Disbursed to Entities","# Accts w/Overages Disbursed to Entities",{"$f":"_xlfn.XLOOKUP(Measures_Table[[#This Row],[PM Program]],Programs_Active20[ZSBPPROGM (KEY)],Programs_Active20[LONG TEXT])","v":{"$error":"#N/A"}}]
[3127,137,"Y",68,"EACH","INPUT","ADOPTEDBUD",null,null,null,null,"Crime Lab - Evidence Control Unit (137)","$ Late Fees Assessed","$ Late Fees Assessed",{"$f":"_xlfn.XLOOKUP(Measures_Table[[#This Row],[PM Program]],Programs_Active20[ZSBPPROGM (KEY)],Programs_Active20[LONG TEXT])","v":{"$error":"#N/A"}}]
[3128,137,"Y",68,"EACH","INPUT","ADOPTEDBUD",null,null,null,null,"Crime Lab - Evidence Control Unit (137)","# Letters Sent to Dealers","# Letters Sent to Dealers",{"$f":"_xlfn.XLOOKUP(Measures_Table[[#This Row],[PM Program]],Programs_Active20[ZSBPPROGM (KEY)],Programs_Active20[LONG TEXT])","v":{"$error":"#N/A"}}]
[3129,137,"Y",68,"EACH","INPUT","ADOPTEDBUD",null,null,null,null,"Crime Lab - Evidence Control Unit (137)","# Phone Calls to/from Dealers","# Phone Calls to/from Dealers",{"$f":"_xlfn.XLOOKUP(Measures_Table[[#This Row],[PM Program]],Programs_Active20[ZSBPPROGM (KEY)],Programs_Active20[LONG TEXT])","v":{"$error":"#N/A"}}]
[3130,137,"Y",68,"EACH","INPUT","ADOPTEDBUD",null,null,null,null,"Crime Lab - Evidence Control Unit (137)","# Lawsuits Filed on VIT Records","# Lawsuits Filed on VIT Records",{"$f":"_xlfn.XLOOKUP(Measures_Table[[#This Row],[PM Program]],Programs_Active20[ZSBPPROGM (KEY)],Programs_Active20[LONG TEXT])","v":{"$error":"#N/A"}}]
[3131,137,"Y",68,"EACH","INPUT","ADOPTEDBUD",null,null,null,null,"Crime Lab - Evidence Control Unit (137)","Late Fees Collected","Late Fees Collected",{"$f":"_xlfn.XLOOKUP(Measures_Table[[#This Row],[PM Program]],Programs_Active20[ZSBPPROGM (KEY)],Programs_Active20[LONG TEXT])","v":{"$error":"#N/A"}}]
[3132,137,"Y",68,"EACH","INPUT","ADOPTEDBUD",null,null,null,null,"Crime Lab - Evidence Control Unit (137)","Interest Paid to Travis County","Interest Paid to Travis County",{"$f":"_xlfn.XLOOKUP(Measures_Table[[#This Row],[PM Program]],Programs_Active20[ZSBPPROGM (KEY)],Programs_Active20[LONG TEXT])","v":{"$error":"#N/A"}}]
[3133,137,"Y",68,"EACH","INPUT","ADOPTEDBUD",null,null,null,null,"Crime Lab - Evidence Control Unit (137)","% Fee Collection Rate","% Fee Collection Rate",{"$f":"_xlfn.XLOOKUP(Measures_Table[[#This Row],[PM Program]],Programs_Active20[ZSBPPROGM (KEY)],Programs_Active20[LONG TEXT])","v":{"$error":"#N/A"}}]
[3134,137,"Y",68,"EACH","INPUT","ADOPTEDBUD",null,null,null,null,"Crime Lab - Evidence Control Unit (137)","% Uncompliant Dealers","% Uncompliant Dealers",{"$f":"_xlfn.XLOOKUP(Measures_Table[[#This Row],[PM Program]],Programs_Active20[ZSBPPROGM (KEY)],Programs_Active20[LONG TEXT])","v":{"$error":"#N/A"}}]
[3135,137,"Y",68,"DOLLARS","INPUT","ADOPTEDBUD",null,null,null,null,"Crime Lab - Evidence Control Unit (137)","Project Requests","Project Requests",{"$f":"_xlfn.XLOOKUP(Measures_Table[[#This Row],[PM Program]],Programs_Active20[ZSBPPROGM (KEY)],Programs_Active20[LONG TEXT])","v":{"$error":"#N/A"}}]
[3136,137,"Y",68,"EACH","INPUT","ADOPTEDBUD",null,null,null,null,"Crime Lab - Evidence Control Unit (137)","Completed Requests","Completed Requests",{"$f":"_xlfn.XLOOKUP(Measures_Table[[#This Row],[PM Program]],Programs_Active20[ZSBPPROGM (KEY)],Programs_Active20[LONG TEXT])","v":{"$error":"#N/A"}}]
[3137,137,"Y",68,"EACH","INPUT","ADOPTEDBUD",null,null,null,null,"Crime Lab - Evidence Control Unit (137)","% Unplanned downtime on Financial Transp","% Unplanned downtime on Financial Transparency Portal 24x7",{"$f":"_xlfn.XLOOKUP(Measures_Table[[#This Row],[PM Program]],Programs_Active20[ZSBPPROGM (KEY)],Programs_Active20[LONG TEXT])","v":{"$error":"#N/A"}}]
[3138,137,"Y",70,"EACH","INPUT","ADOPTEDBUD",null,null,null,null,"Crisis Intervention Team (137)","No. of inmate request to Chaplain Servic","No. of inmate request to Chaplain Services",{"$f":"_xlfn.XLOOKUP(Measures_Table[[#This Row],[PM Program]],Programs_Active20[ZSBPPROGM (KEY)],Programs_Active20[LONG TEXT])","v":"Crisis Intervention Team"}]
[3139,137,"Y",70,"EACH","INPUT","ADOPTEDBUD",null,null,null,null,"Crisis Intervention Team (137)","No. of One on One Visits","No. of One on One Visits",{"$f":"_xlfn.XLOOKUP(Measures_Table[[#This Row],[PM Program]],Programs_Active20[ZSBPPROGM (KEY)],Programs_Active20[LONG TEXT])","v":"Crisis Intervention Team"}]
[3140,137,"Y",70,"EACH","INPUT","ADOPTEDBUD",null,null,null,null,"Crisis Intervention Team (137)","No. of bibles requested","No. of bibles requested",{"$f":"_xlfn.XLOOKUP(Measures_Table[[#This Row],[PM Program]],Programs_Active20[ZSBPPROGM (KEY)],Programs_Active20[LONG TEXT])","v":"Crisis Intervention Team"}]
[3141,137,"Y",70,"EACH","INPUT","ADOPTEDBUD",null,null,null,null,"Crisis Intervention Team (137)","No. of Books/magazines requested","No. of Books/magazines requested",{"$f":"_xlfn.XLOOKUP(Measures_Table[[#This Row],[PM Program]],Programs_Active20[ZSBPPROGM (KEY)],Programs_Active20[LONG TEXT])","v":"Crisis Intervention Team"}]
[3142,137,"Y",70,"EACH","INPUT","ADOPTEDBUD",null,null,null,null,"Crisis Intervention Team (137)","No. of requests - classes/diet/mangnifyi","No. of requests - classes/diet/mangnifying lenses",{"$f":"_xlfn.XLOOKUP(Measures_Table[[#This Row],[PM Program]],Programs_Active20[ZSBPPROGM (KEY)],Programs_Active20[LONG TEXT])","v":"Crisis Intervention Team"}]
[3143,137,"Y",70,"HOURS","INPUT","ADOPTEDBUD",null,null,null,null,"Crisis Intervention Team (137)","No. of community events / projects","No. of community events / projects",{"$f":"_xlfn.XLOOKUP(Measures_Table[[#This Row],[PM Program]],Programs_Active20[ZSBPPROGM (KEY)],Programs_Active20[LONG TEXT])","v":"Crisis Intervention Team"}]
[3144,137,"Y",64,"EACH","INPUT","ADOPTEDBUD",null,null,null,null,"Correctional Security (137)","No. Event Hours","No. Event Hours",{"$f":"_xlfn.XLOOKUP(Measures_Table[[#This Row],[PM Program]],Programs_Active20[ZSBPPROGM (KEY)],Programs_Active20[LONG TEXT])","v":"Correctional Security"}]
[3145,137,"Y",64,"EACH","INPUT","ADOPTEDBUD",null,null,null,null,"Correctional Security (137)","No in attendance - estimate","No in attendance - estimate",{"$f":"_xlfn.XLOOKUP(Measures_Table[[#This Row],[PM Program]],Programs_Active20[ZSBPPROGM (KEY)],Programs_Active20[LONG TEXT])","v":"Correctional Security"}]
[3146,137,"Y",64,"EACH","INPUT","ADOPTEDBUD",null,null,null,null,"Correctional Security (137)","No. of volunteer hours","No. of volunteer hours",{"$f":"_xlfn.XLOOKUP(Measures_Table[[#This Row],[PM Program]],Programs_Active20[ZSBPPROGM (KEY)],Programs_Active20[LONG TEXT])","v":"Correctional Security"}]
[3147,137,"Y",64,"EACH","INPUT","ADOPTEDBUD",null,null,null,null,"Correctional Security (137)","No. of volunteer hours - costing","No. of volunteer hours - costing",{"$f":"_xlfn.XLOOKUP(Measures_Table[[#This Row],[PM Program]],Programs_Active20[ZSBPPROGM (KEY)],Programs_Active20[LONG TEXT])","v":"Correctional Security"}]
[3148,137,"Y",64,"EACH","INPUT","ADOPTEDBUD",null,null,null,null,"Correctional Security (137)","No. of applicants Physical Readiness","No. of applicants Physical Readiness",{"$f":"_xlfn.XLOOKUP(Measures_Table[[#This Row],[PM Program]],Programs_Active20[ZSBPPROGM (KEY)],Programs_Active20[LONG TEXT])","v":"Correctional Security"}]
[3149,137,"Y",185,"EACH","INPUT","ADOPTEDBUD",null,null,null,null,"Facilities-CallCtr/Mail/Laundry/Whs(137)","No. of Court/Warrant Arrests","No. of Court/Warrant Arrests",{"$f":"_xlfn.XLOOKUP(Measures_Table[[#This Row],[PM Program]],Programs_Active20[ZSBPPROGM (KEY)],Programs_Active20[LONG TEXT])","v":"Facilities - Call Center / Mail Room / Laundry / Warehouse\n"}]
[3150,137,"Y",185,"EACH","INPUT","ADOPTEDBUD",null,null,null,null,"Facilities-CallCtr/Mail/Laundry/Whs(137)","No. of Total Arrests","No. of Total Arrests",{"$f":"_xlfn.XLOOKUP(Measures_Table[[#This Row],[PM Program]],Programs_Active20[ZSBPPROGM (KEY)],Programs_Active20[LONG TEXT])","v":"Facilities - Call Center / Mail Room / Laundry / Warehouse\n"}]
[3151,137,"Y",185,"DOLLARS","INPUT","ADOPTEDBUD",null,null,null,null,"Facilities-CallCtr/Mail/Laundry/Whs(137)","No. of Other Incidents","No. of Other Incidents",{"$f":"_xlfn.XLOOKUP(Measures_Table[[#This Row],[PM Program]],Programs_Active20[ZSBPPROGM (KEY)],Programs_Active20[LONG TEXT])","v":"Facilities - Call Center / Mail Room / Laundry / Warehouse\n"}]
[3152,137,"Y",77,"DOLLARS","INPUT","ADOPTEDBUD",null,null,null,null,"Finance (137)","Crime Lab Follow Up Calls","Crime Lab Follow Up Calls",{"$f":"_xlfn.XLOOKUP(Measures_Table[[#This Row],[PM Program]],Programs_Active20[ZSBPPROGM (KEY)],Programs_Active20[LONG TEXT])","v":"Finance"}]
[3153,137,"Y",80,"EACH","INPUT","ADOPTEDBUD",null,null,null,null,"Hospital Visitation Unit (137)","Other drugs in grams (agency)","Other drugs in grams (agency)",{"$f":"_xlfn.XLOOKUP(Measures_Table[[#This Row],[PM Program]],Programs_Active20[ZSBPPROGM (KEY)],Programs_Active20[LONG TEXT])","v":"Hospital Visitation Unit"}]
[3154,137,"Y",80,"EACH","INPUT","ADOPTEDBUD",null,null,null,null,"Hospital Visitation Unit (137)","Marijuana seized grams (agency)","Marijuana seized grams (agency)",{"$f":"_xlfn.XLOOKUP(Measures_Table[[#This Row],[PM Program]],Programs_Active20[ZSBPPROGM (KEY)],Programs_Active20[LONG TEXT])","v":"Hospital Visitation Unit"}]
[3155,137,"Y",80,"EACH","INPUT","ADOPTEDBUD",null,null,null,null,"Hospital Visitation Unit (137)","Hash Oil / Wax grams","Hash Oil / Wax grams",{"$f":"_xlfn.XLOOKUP(Measures_Table[[#This Row],[PM Program]],Programs_Active20[ZSBPPROGM (KEY)],Programs_Active20[LONG TEXT])","v":"Hospital Visitation Unit"}]
[3156,137,"Y",80,"EACH","INPUT","ADOPTEDBUD",null,null,null,null,"Hospital Visitation Unit (137)","Mushrooms grams","Mushrooms grams",{"$f":"_xlfn.XLOOKUP(Measures_Table[[#This Row],[PM Program]],Programs_Active20[ZSBPPROGM (KEY)],Programs_Active20[LONG TEXT])","v":"Hospital Visitation Unit"}]
[3157,137,"Y",80,"EACH","INPUT","ADOPTEDBUD",null,null,null,null,"Hospital Visitation Unit (137)","Cocaine grams","Cocaine grams",{"$f":"_xlfn.XLOOKUP(Measures_Table[[#This Row],[PM Program]],Programs_Active20[ZSBPPROGM (KEY)],Programs_Active20[LONG TEXT])","v":"Hospital Visitation Unit"}]
[3158,137,"Y",80,"EACH","INPUT","ADOPTEDBUD",null,null,null,null,"Hospital Visitation Unit (137)","METHAMPHETAMINE/ Grams","METHAMPHETAMINE/ Grams",{"$f":"_xlfn.XLOOKUP(Measures_Table[[#This Row],[PM Program]],Programs_Active20[ZSBPPROGM (KEY)],Programs_Active20[LONG TEXT])","v":"Hospital Visitation Unit"}]
[3159,137,"Y",80,"EACH","INPUT","ADOPTEDBUD",null,null,null,null,"Hospital Visitation Unit (137)","Codeine grams","Codeine grams",{"$f":"_xlfn.XLOOKUP(Measures_Table[[#This Row],[PM Program]],Programs_Active20[ZSBPPROGM (KEY)],Programs_Active20[LONG TEXT])","v":"Hospital Visitation Unit"}]
[3160,137,"Y",80,"EACH","INPUT","ADOPTEDBUD",null,null,null,null,"Hospital Visitation Unit (137)","Heroin grams","Heroin grams",{"$f":"_xlfn.XLOOKUP(Measures_Table[[#This Row],[PM Program]],Programs_Active20[ZSBPPROGM (KEY)],Programs_Active20[LONG TEXT])","v":"Hospital Visitation Unit"}]
[3161,137,"Y",80,"EACH","INPUT","ADOPTEDBUD",null,null,null,null,"Hospital Visitation Unit (137)","DNA Items","DNA Items",{"$f":"_xlfn.XLOOKUP(Measures_Table[[#This Row],[PM Program]],Programs_Active20[ZSBPPROGM (KEY)],Programs_Active20[LONG TEXT])","v":"Hospital Visitation Unit"}]
[3162,137,"Y",80,"EACH","INPUT","ADOPTEDBUD",null,null,null,null,"Hospital Visitation Unit (137)","Currency Total","Currency Total",{"$f":"_xlfn.XLOOKUP(Measures_Table[[#This Row],[PM Program]],Programs_Active20[ZSBPPROGM (KEY)],Programs_Active20[LONG TEXT])","v":"Hospital Visitation Unit"}]
[3163,137,"Y",80,"EACH","INPUT","ADOPTEDBUD",null,null,null,null,"Hospital Visitation Unit (137)","Pill count (agency)","Pill count (agency)",{"$f":"_xlfn.XLOOKUP(Measures_Table[[#This Row],[PM Program]],Programs_Active20[ZSBPPROGM (KEY)],Programs_Active20[LONG TEXT])","v":"Hospital Visitation Unit"}]
[3164,137,"Y",86,"EACH","INPUT","ADOPTEDBUD",null,null,null,null,"Internal Affairs (137)","Rifle/shotgun/pistol","Rifle/shotgun/pistol",{"$f":"_xlfn.XLOOKUP(Measures_Table[[#This Row],[PM Program]],Programs_Active20[ZSBPPROGM (KEY)],Programs_Active20[LONG TEXT])","v":"Internal Affairs"}]
[3165,137,"Y",86,"EACH","INPUT","ADOPTEDBUD",null,null,null,null,"Internal Affairs (137)","No. of Order of Protective Custody (OPC)","No. of Order of Protective Custody (OPC)",{"$f":"_xlfn.XLOOKUP(Measures_Table[[#This Row],[PM Program]],Programs_Active20[ZSBPPROGM (KEY)],Programs_Active20[LONG TEXT])","v":"Internal Affairs"}]
[3166,137,"Y",86,"EACH","INPUT","ADOPTEDBUD",null,null,null,null,"Internal Affairs (137)","No. of mental health transfers / opc","No. of mental health transfers / opc",{"$f":"_xlfn.XLOOKUP(Measures_Table[[#This Row],[PM Program]],Programs_Active20[ZSBPPROGM (KEY)],Programs_Active20[LONG TEXT])","v":"Internal Affairs"}]
[3167,137,"Y",86,"EACH","INPUT","ADOPTEDBUD",null,null,null,null,"Internal Affairs (137)","No. of OPC services","No. of OPC services",{"$f":"_xlfn.XLOOKUP(Measures_Table[[#This Row],[PM Program]],Programs_Active20[ZSBPPROGM (KEY)],Programs_Active20[LONG TEXT])","v":"Internal Affairs"}]
[3168,137,"Y",93,"HOURS","INPUT","ADOPTEDBUD",null,null,null,null,"Maintenance (137)","No. of incident numbers","No. of incident numbers",{"$f":"_xlfn.XLOOKUP(Measures_Table[[#This Row],[PM Program]],Programs_Active20[ZSBPPROGM (KEY)],Programs_Active20[LONG TEXT])","v":"Maintenance"}]
[3169,137,"Y",93,"DOLLARS","INPUT","ADOPTEDBUD",null,null,null,null,"Maintenance (137)","Assist other agencies","Assist other agencies",{"$f":"_xlfn.XLOOKUP(Measures_Table[[#This Row],[PM Program]],Programs_Active20[ZSBPPROGM (KEY)],Programs_Active20[LONG TEXT])","v":"Maintenance"}]
[3170,137,"Y",93,"EACH","INPUT","ADOPTEDBUD",null,null,null,null,"Maintenance (137)","Hrs Training classes taught/training oth","Hrs Training classes taught/training others",{"$f":"_xlfn.XLOOKUP(Measures_Table[[#This Row],[PM Program]],Programs_Active20[ZSBPPROGM (KEY)],Programs_Active20[LONG TEXT])","v":"Maintenance"}]
[3171,137,"Y",103,"EACH","INPUT","ADOPTEDBUD",null,null,null,null,"School Resource Officers (SRO) (137)","No. of ATWs","No. of ATWs",{"$f":"_xlfn.XLOOKUP(Measures_Table[[#This Row],[PM Program]],Programs_Active20[ZSBPPROGM (KEY)],Programs_Active20[LONG TEXT])","v":"School Resource Officers (SRO)"}]
[3172,137,"Y",103,"EACH","INPUT","ADOPTEDBUD",null,null,null,null,"School Resource Officers (SRO) (137)","No. of Emergency Responses","No. of Emergency Responses",{"$f":"_xlfn.XLOOKUP(Measures_Table[[#This Row],[PM Program]],Programs_Active20[ZSBPPROGM (KEY)],Programs_Active20[LONG TEXT])","v":"School Resource Officers (SRO)"}]
[3173,137,"Y",103,"EACH","INPUT","ADOPTEDBUD",null,null,null,null,"School Resource Officers (SRO) (137)","No. of C-TAC transfers","No. of C-TAC transfers",{"$f":"_xlfn.XLOOKUP(Measures_Table[[#This Row],[PM Program]],Programs_Active20[ZSBPPROGM (KEY)],Programs_Active20[LONG TEXT])","v":"School Resource Officers (SRO)"}]
[3174,137,"Y",103,"EACH","INPUT","ADOPTEDBUD",null,null,null,null,"School Resource Officers (SRO) (137)","No. of vehicle inspections","No. of vehicle inspections",{"$f":"_xlfn.XLOOKUP(Measures_Table[[#This Row],[PM Program]],Programs_Active20[ZSBPPROGM (KEY)],Programs_Active20[LONG TEXT])","v":"School Resource Officers (SRO)"}]
[3175,137,"Y",103,"EACH","INPUT","ADOPTEDBUD",null,null,null,null,"School Resource Officers (SRO) (137)","No. of C-TAC deployments","No. of C-TAC deployments",{"$f":"_xlfn.XLOOKUP(Measures_Table[[#This Row],[PM Program]],Programs_Active20[ZSBPPROGM (KEY)],Programs_Active20[LONG TEXT])","v":"School Resource Officers (SRO)"}]
[3176,137,"Y",103,"EACH","INPUT","ADOPTEDBUD",null,null,null,null,"School Resource Officers (SRO) (137)","No. of loads washed","No. of loads washed",{"$f":"_xlfn.XLOOKUP(Measures_Table[[#This Row],[PM Program]],Programs_Active20[ZSBPPROGM (KEY)],Programs_Active20[LONG TEXT])","v":"School Resource Officers (SRO)"}]
[3177,137,"Y",103,"HOURS","INPUT","ADOPTEDBUD",null,null,null,null,"School Resource Officers (SRO) (137)","No. of inamte hours worked","No. of inamte hours worked",{"$f":"_xlfn.XLOOKUP(Measures_Table[[#This Row],[PM Program]],Programs_Active20[ZSBPPROGM (KEY)],Programs_Active20[LONG TEXT])","v":"School Resource Officers (SRO)"}]
[3178,137,"Y",103,"EACH","INPUT","ADOPTEDBUD",null,null,null,null,"School Resource Officers (SRO) (137)","Labor cost savings","Labor cost savings",{"$f":"_xlfn.XLOOKUP(Measures_Table[[#This Row],[PM Program]],Programs_Active20[ZSBPPROGM (KEY)],Programs_Active20[LONG TEXT])","v":"School Resource Officers (SRO)"}]
[3179,137,"Y",103,"EACH","INPUT","ADOPTEDBUD",null,null,null,null,"School Resource Officers (SRO) (137)","Alarm Revenue","Alarm Revenue",{"$f":"_xlfn.XLOOKUP(Measures_Table[[#This Row],[PM Program]],Programs_Active20[ZSBPPROGM (KEY)],Programs_Active20[LONG TEXT])","v":"School Resource Officers (SRO)"}]
[3180,137,"Y",103,"EACH","INPUT","ADOPTEDBUD",null,null,null,null,"School Resource Officers (SRO) (137)","No. of medical appointments - max","No. of medical appointments - max",{"$f":"_xlfn.XLOOKUP(Measures_Table[[#This Row],[PM Program]],Programs_Active20[ZSBPPROGM (KEY)],Programs_Active20[LONG TEXT])","v":"School Resource Officers (SRO)"}]
[3181,137,"Y",103,"EACH","INPUT","ADOPTEDBUD",null,null,null,null,"School Resource Officers (SRO) (137)","No. of medical appointments - med","No. of medical appointments - med",{"$f":"_xlfn.XLOOKUP(Measures_Table[[#This Row],[PM Program]],Programs_Active20[ZSBPPROGM (KEY)],Programs_Active20[LONG TEXT])","v":"School Resource Officers (SRO)"}]
[3182,137,"Y",103,"EACH","INPUT","ADOPTEDBUD",null,null,null,null,"School Resource Officers (SRO) (137)","No. of medical appointments - min","No. of medical appointments - min",{"$f":"_xlfn.XLOOKUP(Measures_Table[[#This Row],[PM Program]],Programs_Active20[ZSBPPROGM (KEY)],Programs_Active20[LONG TEXT])","v":"School Resource Officers (SRO)"}]
[3183,137,"Y",106,"EACH","INPUT","ADOPTEDBUD",null,null,null,null,"Special Weapons & Tactical Un-SWAT (137)","No. of medical appointments - total","No. of medical appointments - total",{"$f":"_xlfn.XLOOKUP(Measures_Table[[#This Row],[PM Program]],Programs_Active20[ZSBPPROGM (KEY)],Programs_Active20[LONG TEXT])","v":"Special Weapons & Tactical Unit (SWAT)"}]
[3184,137,"Y",106,"EACH","INPUT","ADOPTEDBUD",null,null,null,null,"Special Weapons & Tactical Un-SWAT (137)","No. of emergency room transports - max","No. of emergency room transports - max",{"$f":"_xlfn.XLOOKUP(Measures_Table[[#This Row],[PM Program]],Programs_Active20[ZSBPPROGM (KEY)],Programs_Active20[LONG TEXT])","v":"Special Weapons & Tactical Unit (SWAT)"}]
[3185,137,"Y",106,"EACH","INPUT","ADOPTEDBUD",null,null,null,null,"Special Weapons & Tactical Un-SWAT (137)","No. of emergency room transports - med","No. of emergency room transports - med",{"$f":"_xlfn.XLOOKUP(Measures_Table[[#This Row],[PM Program]],Programs_Active20[ZSBPPROGM (KEY)],Programs_Active20[LONG TEXT])","v":"Special Weapons & Tactical Unit (SWAT)"}]
[3186,137,"Y",106,"EACH","INPUT","ADOPTEDBUD",null,null,null,null,"Special Weapons & Tactical Un-SWAT (137)","No. of emergency room transports - min","No. of emergency room transports - min",{"$f":"_xlfn.XLOOKUP(Measures_Table[[#This Row],[PM Program]],Programs_Active20[ZSBPPROGM (KEY)],Programs_Active20[LONG TEXT])","v":"Special Weapons & Tactical Unit (SWAT)"}]
[3187,137,"Y",106,"EACH","INPUT","ADOPTEDBUD",null,null,null,null,"Special Weapons & Tactical Un-SWAT (137)","No. of emergency room transports - total","No. of emergency room transports - total",{"$f":"_xlfn.XLOOKUP(Measures_Table[[#This Row],[PM Program]],Programs_Active20[ZSBPPROGM (KEY)],Programs_Active20[LONG TEXT])","v":"Special Weapons & Tactical Unit (SWAT)"}]
[3188,137,"Y",106,"EACH","INPUT","ADOPTEDBUD",null,null,null,null,"Special Weapons & Tactical Un-SWAT (137)","No. of moves","No. of moves",{"$f":"_xlfn.XLOOKUP(Measures_Table[[#This Row],[PM Program]],Programs_Active20[ZSBPPROGM (KEY)],Programs_Active20[LONG TEXT])","v":"Special Weapons & Tactical Unit (SWAT)"}]
[3189,137,"Y",106,"EACH","OUTCOME","ADOPTEDBUD",null,null,null,null,"Special Weapons & Tactical Un-SWAT (137)","No.of in person visitations","No.of in person visitations",{"$f":"_xlfn.XLOOKUP(Measures_Table[[#This Row],[PM Program]],Programs_Active20[ZSBPPROGM (KEY)],Programs_Active20[LONG TEXT])","v":"Special Weapons & Tactical Unit (SWAT)"}]
[3190,137,"Y",106,"EACH","OUTPUT","ADOPTEDBUD",null,null,null,null,"Special Weapons & Tactical Un-SWAT (137)","No.of video visitations","No.of video visitations",{"$f":"_xlfn.XLOOKUP(Measures_Table[[#This Row],[PM Program]],Programs_Active20[ZSBPPROGM (KEY)],Programs_Active20[LONG TEXT])","v":"Special Weapons & Tactical Unit (SWAT)"}]
[3191,137,"Y",106,"EACH","OUTPUT","ADOPTEDBUD",null,null,null,null,"Special Weapons & Tactical Un-SWAT (137)","No. of Open Records completed","No. of Open Records completed",{"$f":"_xlfn.XLOOKUP(Measures_Table[[#This Row],[PM Program]],Programs_Active20[ZSBPPROGM (KEY)],Programs_Active20[LONG TEXT])","v":"Special Weapons & Tactical Unit (SWAT)"}]
[3192,137,"Y",79,"EACH","INPUT","ADOPTEDBUD",null,null,null,null,"Traffic-CVE/DWI/HEAT/Impound/Motor (137)","No of videos reviewed","No of videos reviewed",{"$f":"_xlfn.XLOOKUP(Measures_Table[[#This Row],[PM Program]],Programs_Active20[ZSBPPROGM (KEY)],Programs_Active20[LONG TEXT])","v":"Traffic - CVE / DWI / HEAT / Impound / MOTORS"}]
[3193,108,"Y",21,"EACH","INPUT","ADOPTEDBUD",null,null,null,null,"Information Technology Division (108)","No of photos reviewed","No of photos reviewed",{"$f":"_xlfn.XLOOKUP(Measures_Table[[#This Row],[PM Program]],Programs_Active20[ZSBPPROGM (KEY)],Programs_Active20[LONG TEXT])","v":"Information Technology Division"}]
[3194,108,"Y",21,"PERCENT","OUTCOME","ADOPTEDBUD",null,null,null,null,"Information Technology Division (108)","No of audio files reviewed","No of audio files reviewed",{"$f":"_xlfn.XLOOKUP(Measures_Table[[#This Row],[PM Program]],Programs_Active20[ZSBPPROGM (KEY)],Programs_Active20[LONG TEXT])","v":"Information Technology Division"}]
[3195,108,"Y",21,"PERCENT","OUTCOME","ADOPTEDBUD",null,null,null,null,"Information Technology Division (108)","Hours spent on work orders (inmate)","Hours spent on work orders (inmate)",{"$f":"_xlfn.XLOOKUP(Measures_Table[[#This Row],[PM Program]],Programs_Active20[ZSBPPROGM (KEY)],Programs_Active20[LONG TEXT])","v":"Information Technology Division"}]
[3196,111,"Y",198,"EACH","OUTPUT","ADOPTEDBUD",null,null,null,null,"Risk Management Self Insurance Fnd (111)","Labor cost savings","Labor cost savings",{"$f":"_xlfn.XLOOKUP(Measures_Table[[#This Row],[PM Program]],Programs_Active20[ZSBPPROGM (KEY)],Programs_Active20[LONG TEXT])","v":"Risk Management Self Insurance Fund"}]
[3197,111,"Y",198,"EACH","OUTPUT","ADOPTEDBUD",null,null,null,null,"Risk Management Self Insurance Fnd (111)","No. of work orders completed","No. of work orders completed",{"$f":"_xlfn.XLOOKUP(Measures_Table[[#This Row],[PM Program]],Programs_Active20[ZSBPPROGM (KEY)],Programs_Active20[LONG TEXT])","v":"Risk Management Self Insurance Fund"}]
[3198,137,"Y",98,"EACH","OUTCOME","ADOPTEDBUD",null,null,null,null,"VICE (137)","No. of campus arrests","No. of campus arrests",{"$f":"_xlfn.XLOOKUP(Measures_Table[[#This Row],[PM Program]],Programs_Active20[ZSBPPROGM (KEY)],Programs_Active20[LONG TEXT])","v":"VICE"}]
[3199,137,"Y",98,"EACH","OUTCOME","ADOPTEDBUD",null,null,null,null,"VICE (137)","No. of campus outreach","No. of campus outreach",{"$f":"_xlfn.XLOOKUP(Measures_Table[[#This Row],[PM Program]],Programs_Active20[ZSBPPROGM (KEY)],Programs_Active20[LONG TEXT])","v":"VICE"}]
[3200,137,"Y",98,"EACH","OUTCOME","ADOPTEDBUD",null,null,null,null,"VICE (137)","No. student contacts","No. student contacts",{"$f":"_xlfn.XLOOKUP(Measures_Table[[#This Row],[PM Program]],Programs_Active20[ZSBPPROGM (KEY)],Programs_Active20[LONG TEXT])","v":"VICE"}]
[3201,137,"Y",98,"EACH","INPUT","ADOPTEDBUD",null,null,null,null,"VICE (137)","No. of juvenile campus arrests","No. of juvenile campus arrests",{"$f":"_xlfn.XLOOKUP(Measures_Table[[#This Row],[PM Program]],Programs_Active20[ZSBPPROGM (KEY)],Programs_Active20[LONG TEXT])","v":"VICE"}]
[3202,137,"Y",98,"EACH","OUTCOME","ADOPTEDBUD",null,null,null,null,"VICE (137)","No. of adult campus arrests","No. of adult campus arrests",{"$f":"_xlfn.XLOOKUP(Measures_Table[[#This Row],[PM Program]],Programs_Active20[ZSBPPROGM (KEY)],Programs_Active20[LONG TEXT])","v":"VICE"}]
[3203,137,"Y",98,"EACH","OUTCOME","ADOPTEDBUD",null,null,null,null,"VICE (137)","No. of campus traffic citations","No. of campus traffic citations",{"$f":"_xlfn.XLOOKUP(Measures_Table[[#This Row],[PM Program]],Programs_Active20[ZSBPPROGM (KEY)],Programs_Active20[LONG TEXT])","v":"VICE"}]
[3204,137,"Y",98,"DOLLARS","OUTCOME","ADOPTEDBUD",null,null,null,null,"VICE (137)","No. of mentoring hours","No. of mentoring hours",{"$f":"_xlfn.XLOOKUP(Measures_Table[[#This Row],[PM Program]],Programs_Active20[ZSBPPROGM (KEY)],Programs_Active20[LONG TEXT])","v":"VICE"}]
[3205,137,"Y",98,"EACH","OUTCOME","ADOPTEDBUD",null,null,null,null,"VICE (137)","No. of student classes or presentation","No. of student classes or presentation",{"$f":"_xlfn.XLOOKUP(Measures_Table[[#This Row],[PM Program]],Programs_Active20[ZSBPPROGM (KEY)],Programs_Active20[LONG TEXT])","v":"VICE"}]
[3206,109,"Y",13,"EACH","OUTCOME","ADOPTEDBUD",null,null,null,null,"Corporations (109)","No. of parent meeting","No. of parent meeting",{"$f":"_xlfn.XLOOKUP(Measures_Table[[#This Row],[PM Program]],Programs_Active20[ZSBPPROGM (KEY)],Programs_Active20[LONG TEXT])","v":"Corporations"}]
[3207,158,"Y",147,"PERCENT","OUTCOME","ADOPTEDBUD",null,null,null,null,"Family First (158)","No. of administrator meetings","No. of administrator meetings",{"$f":"_xlfn.XLOOKUP(Measures_Table[[#This Row],[PM Program]],Programs_Active20[ZSBPPROGM (KEY)],Programs_Active20[LONG TEXT])","v":"Family First"}]
[3208,144,"Y",305,"EACH","OUTPUT","BLACKBOOK",null,null,null,null,"Public Defender's Office (144)","No. of other public outreach or communit","No. of other public outreach or community outreach",{"$f":"_xlfn.XLOOKUP(Measures_Table[[#This Row],[PM Program]],Programs_Active20[ZSBPPROGM (KEY)],Programs_Active20[LONG TEXT])","v":"Public Defender's Office"}]
[3209,144,"Y",305,"EACH","OUTPUT","BLACKBOOK",null,null,null,null,"Public Defender's Office (144)","No. of K9 searches","No. of K9 searches",{"$f":"_xlfn.XLOOKUP(Measures_Table[[#This Row],[PM Program]],Programs_Active20[ZSBPPROGM (KEY)],Programs_Active20[LONG TEXT])","v":"Public Defender's Office"}]
[3210,144,"Y",305,"EACH","OUTPUT","BLACKBOOK",null,null,null,null,"Public Defender's Office (144)","No of Felony warrants researched","No of Felony warrants researched",{"$f":"_xlfn.XLOOKUP(Measures_Table[[#This Row],[PM Program]],Programs_Active20[ZSBPPROGM (KEY)],Programs_Active20[LONG TEXT])","v":"Public Defender's Office"}]
[3211,144,"Y",305,"PERCENT","OUTPUT","ADOPTEDBUD",null,null,null,null,"Public Defender's Office (144)","No of Mids warrants researched","No of Mids warrants researched",{"$f":"_xlfn.XLOOKUP(Measures_Table[[#This Row],[PM Program]],Programs_Active20[ZSBPPROGM (KEY)],Programs_Active20[LONG TEXT])","v":"Public Defender's Office"}]
[3212,144,"Y",305,"PERCENT","OUTPUT","ADOPTEDBUD",null,null,null,null,"Public Defender's Office (144)","No of Felony warrants assigned SWAT","No of Felony warrants assigned SWAT",{"$f":"_xlfn.XLOOKUP(Measures_Table[[#This Row],[PM Program]],Programs_Active20[ZSBPPROGM (KEY)],Programs_Active20[LONG TEXT])","v":"Public Defender's Office"}]
[3213,144,"Y",305,"EACH","OUTPUT","BLACKBOOK",null,null,null,null,"Public Defender's Office (144)","No of Mids warrants assigned to SWAT","No of Mids warrants assigned to SWAT",{"$f":"_xlfn.XLOOKUP(Measures_Table[[#This Row],[PM Program]],Programs_Active20[ZSBPPROGM (KEY)],Programs_Active20[LONG TEXT])","v":"Public Defender's Office"}]
[3214,144,"Y",305,"DAYS","OUTPUT","BLACKBOOK",null,null,null,null,"Public Defender's Office (144)","No of Felony warrants assigned Patrol/SR","No of Felony warrants assigned Patrol/SRT",{"$f":"_xlfn.XLOOKUP(Measures_Table[[#This Row],[PM Program]],Programs_Active20[ZSBPPROGM (KEY)],Programs_Active20[LONG TEXT])","v":"Public Defender's Office"}]
[3215,144,"Y",305,"DAYS","OUTPUT","BLACKBOOK",null,null,null,null,"Public Defender's Office (144)","No of Mids warrants assigned to Patrol/S","No of Mids warrants assigned to Patrol/SRT",{"$f":"_xlfn.XLOOKUP(Measures_Table[[#This Row],[PM Program]],Programs_Active20[ZSBPPROGM (KEY)],Programs_Active20[LONG TEXT])","v":"Public Defender's Office"}]
[3218,144,"Y",305,"EACH","OUTPUT","BLACKBOOK",null,null,null,null,"Public Defender's Office (144)","No. of Misd warrants served (SWAT)","No. of Misd warrants served (SWAT)",{"$f":"_xlfn.XLOOKUP(Measures_Table[[#This Row],[PM Program]],Programs_Active20[ZSBPPROGM (KEY)],Programs_Active20[LONG TEXT])","v":"Public Defender's Office"}]
[3219,144,"Y",305,"EACH","OUTPUT","BLACKBOOK",null,null,null,null,"Public Defender's Office (144)","No. of vehicles storage facilites inspec","No. of vehicles storage facilites inspected",{"$f":"_xlfn.XLOOKUP(Measures_Table[[#This Row],[PM Program]],Programs_Active20[ZSBPPROGM (KEY)],Programs_Active20[LONG TEXT])","v":"Public Defender's Office"}]
[3220,144,"Y",305,"EACH","OUTPUT","BLACKBOOK",null,null,null,null,"Public Defender's Office (144)","# new technology projects","# new technology projects",{"$f":"_xlfn.XLOOKUP(Measures_Table[[#This Row],[PM Program]],Programs_Active20[ZSBPPROGM (KEY)],Programs_Active20[LONG TEXT])","v":"Public Defender's Office"}]
[3221,144,"Y",305,"EACH","OUTPUT","BLACKBOOK",null,null,null,null,"Public Defender's Office (144)","% increase use of information","% increase use of information",{"$f":"_xlfn.XLOOKUP(Measures_Table[[#This Row],[PM Program]],Programs_Active20[ZSBPPROGM (KEY)],Programs_Active20[LONG TEXT])","v":"Public Defender's Office"}]
[3223,144,"Y",305,"EACH","OUTPUT","ADOPTEDBUD",null,null,null,null,"Public Defender's Office (144)","# of insurance renewals reviewed annuall","# of insurance renewals reviewed annually\n",{"$f":"_xlfn.XLOOKUP(Measures_Table[[#This Row],[PM Program]],Programs_Active20[ZSBPPROGM (KEY)],Programs_Active20[LONG TEXT])","v":"Public Defender's Office"}]
[3224,144,"Y",305,"EACH","OUTPUT","ADOPTEDBUD",null,null,null,null,"Public Defender's Office (144)","# of RFPs completed annually","# of RFPs completed annually",{"$f":"_xlfn.XLOOKUP(Measures_Table[[#This Row],[PM Program]],Programs_Active20[ZSBPPROGM (KEY)],Programs_Active20[LONG TEXT])","v":"Public Defender's Office"}]
[3225,144,"Y",305,"EACH","OUTPUT","BLACKBOOK",null,null,null,null,"Public Defender's Office (144)","Amount of drugs (cocaine,meth,heroin,THC","Amount of drugs (cocaine,meth,heroin,THC oil, etc) seized (grams) (Unit specific)",{"$f":"_xlfn.XLOOKUP(Measures_Table[[#This Row],[PM Program]],Programs_Active20[ZSBPPROGM (KEY)],Programs_Active20[LONG TEXT])","v":"Public Defender's Office"}]
[3226,144,"Y",305,"EACH","OUTPUT","BLACKBOOK",null,null,null,null,"Public Defender's Office (144)","Amount of other drugs (LSD etc) seized (","Amount of other drugs (LSD etc) seized (dosage units) (Unit specific)",{"$f":"_xlfn.XLOOKUP(Measures_Table[[#This Row],[PM Program]],Programs_Active20[ZSBPPROGM (KEY)],Programs_Active20[LONG TEXT])","v":"Public Defender's Office"}]
[3227,144,"Y",305,"EACH","EFFICIENCY","BLACKBOOK",null,null,null,null,"Public Defender's Office (144)","Amount of Marijuana seized (grams) (Unit","Amount of Marijuana seized (grams) (Unit specific)",{"$f":"_xlfn.XLOOKUP(Measures_Table[[#This Row],[PM Program]],Programs_Active20[ZSBPPROGM (KEY)],Programs_Active20[LONG TEXT])","v":"Public Defender's Office"}]
[3228,144,"Y",305,"EACH","OUTPUT","BLACKBOOK",null,null,null,null,"Public Defender's Office (144)","No. of search warrants obtained","No. of search warrants obtained",{"$f":"_xlfn.XLOOKUP(Measures_Table[[#This Row],[PM Program]],Programs_Active20[ZSBPPROGM (KEY)],Programs_Active20[LONG TEXT])","v":"Public Defender's Office"}]
[3229,140,"Y",303,"EACH","INPUT","BLACKBOOK",null,null,null,null,"Administration (140)","No. of vehicles (boats, jetskis, etc) se","No. of vehicles (boats, jetskis, etc) seized",{"$f":"_xlfn.XLOOKUP(Measures_Table[[#This Row],[PM Program]],Programs_Active20[ZSBPPROGM (KEY)],Programs_Active20[LONG TEXT])","v":"Administration\n"}]
[3230,140,"Y",303,"EACH","OUTPUT","BLACKBOOK",null,null,null,null,"Administration (140)","No. of firearms seized","No. of firearms seized",{"$f":"_xlfn.XLOOKUP(Measures_Table[[#This Row],[PM Program]],Programs_Active20[ZSBPPROGM (KEY)],Programs_Active20[LONG TEXT])","v":"Administration\n"}]
[3231,140,"Y",303,"EACH","OUTPUT","BLACKBOOK",null,null,null,null,"Administration (140)","Amount of money seized","Amount of money seized",{"$f":"_xlfn.XLOOKUP(Measures_Table[[#This Row],[PM Program]],Programs_Active20[ZSBPPROGM (KEY)],Programs_Active20[LONG TEXT])","v":"Administration\n"}]
[3232,140,"Y",303,"MINUTES","EFFICIENCY","BLACKBOOK",null,null,null,null,"Administration (140)","Funds received from auctioning forfeit i","Funds received from auctioning forfeit items (cars, jewelry, all assets)",{"$f":"_xlfn.XLOOKUP(Measures_Table[[#This Row],[PM Program]],Programs_Active20[ZSBPPROGM (KEY)],Programs_Active20[LONG TEXT])","v":"Administration\n"}]
[3233,140,"Y",303,"MINUTES","EFFICIENCY","BLACKBOOK",null,null,null,null,"Administration (140)","# of affordable, income-restricted multi","# of affordable, income-restricted multifamily units created by Corporations",{"$f":"_xlfn.XLOOKUP(Measures_Table[[#This Row],[PM Program]],Programs_Active20[ZSBPPROGM (KEY)],Programs_Active20[LONG TEXT])","v":"Administration\n"}]
[3234,140,"Y",303,"MINUTES","EFFICIENCY","BLACKBOOK",null,null,null,null,"Administration (140)","Percentage of parents that successfully","Percentage of parents that successfully complete the Nurturing Parenting Program with a rating of Significant Accomplishment",{"$f":"_xlfn.XLOOKUP(Measures_Table[[#This Row],[PM Program]],Programs_Active20[ZSBPPROGM (KEY)],Programs_Active20[LONG TEXT])","v":"Administration\n"}]
[3235,140,"Y",303,"PERCENT","OUTCOME","BLACKBOOK",null,null,null,null,"Administration (140)","Number of in-house trainings/CLE program","Number of in-house trainings/CLE programs",{"$f":"_xlfn.XLOOKUP(Measures_Table[[#This Row],[PM Program]],Programs_Active20[ZSBPPROGM (KEY)],Programs_Active20[LONG TEXT])","v":"Administration\n"}]
[3236,140,"Y",303,"EACH","OUTPUT","BLACKBOOK",null,null,null,null,"Administration (140)","One or more community outreach/engagemen","One or more community outreach/engagement actions per Fiscal Year",{"$f":"_xlfn.XLOOKUP(Measures_Table[[#This Row],[PM Program]],Programs_Active20[ZSBPPROGM (KEY)],Programs_Active20[LONG TEXT])","v":"Administration\n"}]
[3237,140,"Y",303,"EACH","OUTPUT","BLACKBOOK",null,null,null,null,"Administration (140)","New cause numbers represented by PDO","New cause numbers represented by PDO",{"$f":"_xlfn.XLOOKUP(Measures_Table[[#This Row],[PM Program]],Programs_Active20[ZSBPPROGM (KEY)],Programs_Active20[LONG TEXT])","v":"Administration\n"}]
[3238,140,"Y",303,"EACH","OUTPUT","BLACKBOOK",null,null,null,null,"Administration (140)","Percent of all new cause numbers represe","Percent of all new cause numbers being represented by PDO by end of fiscal year",{"$f":"_xlfn.XLOOKUP(Measures_Table[[#This Row],[PM Program]],Programs_Active20[ZSBPPROGM (KEY)],Programs_Active20[LONG TEXT])","v":"Administration\n"}]
[3239,140,"Y",303,"PERCENT","OUTCOME","BLACKBOOK",null,null,null,null,"Administration (140)","Percent of new cause numbers represented","Percent of new cause numbers represented by PDO granted personal bond",{"$f":"_xlfn.XLOOKUP(Measures_Table[[#This Row],[PM Program]],Programs_Active20[ZSBPPROGM (KEY)],Programs_Active20[LONG TEXT])","v":"Administration\n"}]
[3242,111,"Y",202,"DAYS","EFFICIENCY","ADOPTEDBUD",null,null,null,null,"Talent, Planning & Engagement (111)","Average number of days clients are in ja","Average number of days clients are in jail prior to disposition for misdemeanors",{"$f":"_xlfn.XLOOKUP(Measures_Table[[#This Row],[PM Program]],Programs_Active20[ZSBPPROGM (KEY)],Programs_Active20[LONG TEXT])","v":"Talent, Planning & Engagement"}]
[3243,111,"Y",202,"DAYS","EFFICIENCY","ADOPTEDBUD",null,null,null,null,"Talent, Planning & Engagement (111)","Number of writs of habeas corpus filed","Number of writs of habeas corpus filed",{"$f":"_xlfn.XLOOKUP(Measures_Table[[#This Row],[PM Program]],Programs_Active20[ZSBPPROGM (KEY)],Programs_Active20[LONG TEXT])","v":"Talent, Planning & Engagement"}]
[3244,120,"Y",36,"EACH","OUTPUT","BLACKBOOK",null,null,null,null,"Civil/Collections Team (120)","Number of dispositive motions filed","Number of dispositive motions filed",{"$f":"_xlfn.XLOOKUP(Measures_Table[[#This Row],[PM Program]],Programs_Active20[ZSBPPROGM (KEY)],Programs_Active20[LONG TEXT])","v":"Civil/Collections Team"}]
[3245,120,"Y",36,"EACH","OUTPUT","BLACKBOOK",null,null,null,null,"Civil/Collections Team (120)","Number of new investigative referrals","Number of new investigative referrals",{"$f":"_xlfn.XLOOKUP(Measures_Table[[#This Row],[PM Program]],Programs_Active20[ZSBPPROGM (KEY)],Programs_Active20[LONG TEXT])","v":"Civil/Collections Team"}]
[3246,140,"Y",306,"EACH","OUTPUT","ADOPTEDBUD",null,null,null,null,"A/TC Family Violence Task Force (140)","Number of new social work referrals","Number of new social work referrals",{"$f":"_xlfn.XLOOKUP(Measures_Table[[#This Row],[PM Program]],Programs_Active20[ZSBPPROGM (KEY)],Programs_Active20[LONG TEXT])","v":"Austin/Travis County Family Violence Task Force\n"}]
[3247,140,"Y",306,"EACH","OUTPUT","ADOPTEDBUD",null,null,null,null,"A/TC Family Violence Task Force (140)","Number of new immigration (Padilla) refe","Number of new immigration (Padilla) referrals",{"$f":"_xlfn.XLOOKUP(Measures_Table[[#This Row],[PM Program]],Programs_Active20[ZSBPPROGM (KEY)],Programs_Active20[LONG TEXT])","v":"Austin/Travis County Family Violence Task Force\n"}]
[3248,140,"Y",306,"PERCENT","OUTCOME","ADOPTEDBUD",null,null,null,null,"A/TC Family Violence Task Force (140)","Number of clients referred to community-","Number of clients referred to community-based civil legal and/or social support resources",{"$f":"_xlfn.XLOOKUP(Measures_Table[[#This Row],[PM Program]],Programs_Active20[ZSBPPROGM (KEY)],Programs_Active20[LONG TEXT])","v":"Austin/Travis County Family Violence Task Force\n"}]
[3249,140,"Y",306,"PERCENT","OUTCOME","ADOPTEDBUD",null,null,null,null,"A/TC Family Violence Task Force (140)","Number of clients referred to community-","Number of clients referred to community-based social support resources",{"$f":"_xlfn.XLOOKUP(Measures_Table[[#This Row],[PM Program]],Programs_Active20[ZSBPPROGM (KEY)],Programs_Active20[LONG TEXT])","v":"Austin/Travis County Family Violence Task Force\n"}]
[3250,140,"Y",306,"EACH","OUTPUT","ADOPTEDBUD",null,null,null,null,"A/TC Family Violence Task Force (140)","Number of non-incarceratory felony dispo","Number of non-incarceratory felony dispositions",{"$f":"_xlfn.XLOOKUP(Measures_Table[[#This Row],[PM Program]],Programs_Active20[ZSBPPROGM (KEY)],Programs_Active20[LONG TEXT])","v":"Austin/Travis County Family Violence Task Force\n"}]
[3251,145,"Y",119,"EACH","INPUT","ADOPTEDBUD",null,null,null,null,"Court Administration (145)","Number of non-incarceratory misdemeanor","Number of non-incarceratory misdemeanor dispositions",{"$f":"_xlfn.XLOOKUP(Measures_Table[[#This Row],[PM Program]],Programs_Active20[ZSBPPROGM (KEY)],Programs_Active20[LONG TEXT])","v":"Court Administration"}]
[3252,145,"Y",119,"DAYS","EFFICIENCY","ADOPTEDBUD",null,null,null,null,"Court Administration (145)","Number of hearings/trials (felony)","Number of hearings/trials (felony)",{"$f":"_xlfn.XLOOKUP(Measures_Table[[#This Row],[PM Program]],Programs_Active20[ZSBPPROGM (KEY)],Programs_Active20[LONG TEXT])","v":"Court Administration"}]
[3253,145,"Y",120,"PERCENT","OUTCOME","ADOPTEDBUD",null,null,null,null,"Court Services (145)","Numbers of hearings/trials (bench)","Numbers of hearings/trials (bench)",{"$f":"_xlfn.XLOOKUP(Measures_Table[[#This Row],[PM Program]],Programs_Active20[ZSBPPROGM (KEY)],Programs_Active20[LONG TEXT])","v":"Court Services"}]
[3254,145,"Y",125,"PERCENT","OUTCOME","ADOPTEDBUD",null,null,null,null,"Probation Services (145)","Average weighted caseload per attorney","Average weighted caseload per attorney",{"$f":"_xlfn.XLOOKUP(Measures_Table[[#This Row],[PM Program]],Programs_Active20[ZSBPPROGM (KEY)],Programs_Active20[LONG TEXT])","v":"Probation Services"}]
[3255,145,"Y",126,"PERCENT","OUTCOME","ADOPTEDBUD",null,null,null,null,"Residential Services (145)","One or more systemic impact initiatives","One or more systemic impact initiatives spearheaded per Fiscal Year",{"$f":"_xlfn.XLOOKUP(Measures_Table[[#This Row],[PM Program]],Programs_Active20[ZSBPPROGM (KEY)],Programs_Active20[LONG TEXT])","v":"Residential Services"}]
[3256,145,"Y",123,"EACH","OUTCOME","ADOPTEDBUD",null,null,null,null,"Health Services (145)","Total # of Calls Presented","Total # of Calls Presented",{"$f":"_xlfn.XLOOKUP(Measures_Table[[#This Row],[PM Program]],Programs_Active20[ZSBPPROGM (KEY)],Programs_Active20[LONG TEXT])","v":"Health Services"}]
[3257,145,"Y",124,"PERCENT","INPUT","ADOPTEDBUD",null,null,null,null,"Juvenile Probation Support Service (145)","Total # of Calls Processed","Total # of Calls Processed",{"$f":"_xlfn.XLOOKUP(Measures_Table[[#This Row],[PM Program]],Programs_Active20[ZSBPPROGM (KEY)],Programs_Active20[LONG TEXT])","v":"Juvenile Probation Support Services"}]
[3258,145,"Y",124,"HOURS","OUTPUT","ADOPTEDBUD",null,null,null,null,"Juvenile Probation Support Service (145)","% of Calls Abandoned","% of Calls Abandoned",{"$f":"_xlfn.XLOOKUP(Measures_Table[[#This Row],[PM Program]],Programs_Active20[ZSBPPROGM (KEY)],Programs_Active20[LONG TEXT])","v":"Juvenile Probation Support Services"}]
[3259,108,"Y",24,"PERCENT","EFFICIENCY",null,null,null,null,null,"Property Tax Collections (108)","Average Handle Time Total (Call)","Average Handle Time Total (Call)",{"$f":"_xlfn.XLOOKUP(Measures_Table[[#This Row],[PM Program]],Programs_Active20[ZSBPPROGM (KEY)],Programs_Active20[LONG TEXT])","v":"Property Tax Collections"}]
[3260,115,"Y",204,"EACH","OUTCOME","BLACKBOOK",null,null,null,null,"Purchasing Office Fixed Assets (115)","Average Handle Time - English (Call)","Average Handle Time - English (Call)",{"$f":"_xlfn.XLOOKUP(Measures_Table[[#This Row],[PM Program]],Programs_Active20[ZSBPPROGM (KEY)],Programs_Active20[LONG TEXT])","v":"Purchasing Office Fixed Assets"}]
[3261,129,"Y",238,"EACH","OUTPUT","BLACKBOOK",null,null,null,null,"Juvenile Case Manager (129)","Average Handle Time - Spanish (Call)","Average Handle Time - Spanish (Call)",{"$f":"_xlfn.XLOOKUP(Measures_Table[[#This Row],[PM Program]],Programs_Active20[ZSBPPROGM (KEY)],Programs_Active20[LONG TEXT])","v":"Juvenile Case Manager"}]
[3262,129,"Y",238,"EACH","OUTPUT","BLACKBOOK",null,null,null,null,"Juvenile Case Manager (129)","% of clients stated phone agent was know","% of clients stated phone agent was knowledgeable and provided clear instructions",{"$f":"_xlfn.XLOOKUP(Measures_Table[[#This Row],[PM Program]],Programs_Active20[ZSBPPROGM (KEY)],Programs_Active20[LONG TEXT])","v":"Juvenile Case Manager"}]
[3263,129,"Y",238,"EACH","OUTPUT","ADOPTEDBUD",null,null,null,null,"Juvenile Case Manager (129)","Total # of Scheduled Trainings","Total # of Scheduled Trainings",{"$f":"_xlfn.XLOOKUP(Measures_Table[[#This Row],[PM Program]],Programs_Active20[ZSBPPROGM (KEY)],Programs_Active20[LONG TEXT])","v":"Juvenile Case Manager"}]
[3264,129,"Y",238,"EACH","OUTPUT","ADOPTEDBUD",null,null,null,null,"Juvenile Case Manager (129)","# of Scheduled Trainings - In-House","# of Scheduled Trainings - In-House",{"$f":"_xlfn.XLOOKUP(Measures_Table[[#This Row],[PM Program]],Programs_Active20[ZSBPPROGM (KEY)],Programs_Active20[LONG TEXT])","v":"Juvenile Case Manager"}]
[3265,142,"Y",272,"EACH","OUTPUT","ADOPTEDBUD",null,null,null,null,"Investigations (142)","# of Scheduled Trainings - Outside","# of Scheduled Trainings - Outside",{"$f":"_xlfn.XLOOKUP(Measures_Table[[#This Row],[PM Program]],Programs_Active20[ZSBPPROGM (KEY)],Programs_Active20[LONG TEXT])","v":"Investigations"}]
[3266,142,"Y",272,"EACH","OUTPUT","ADOPTEDBUD",null,null,null,null,"Investigations (142)","% of staff that felt the training would","% of staff that felt the training would benefit their work at CES",{"$f":"_xlfn.XLOOKUP(Measures_Table[[#This Row],[PM Program]],Programs_Active20[ZSBPPROGM (KEY)],Programs_Active20[LONG TEXT])","v":"Investigations"}]
[3267,142,"Y",272,"EACH","OUTPUT","ADOPTEDBUD",null,null,null,null,"Investigations (142)","# of open records requests processed by","# of open records requests processed by HRMD",{"$f":"_xlfn.XLOOKUP(Measures_Table[[#This Row],[PM Program]],Programs_Active20[ZSBPPROGM (KEY)],Programs_Active20[LONG TEXT])","v":"Investigations"}]
[3268,142,"Y",272,"EACH","OUTPUT","ADOPTEDBUD",null,null,null,null,"Investigations (142)","Average days to process an Unemployment","Average days to process an Unemployment Claim",{"$f":"_xlfn.XLOOKUP(Measures_Table[[#This Row],[PM Program]],Programs_Active20[ZSBPPROGM (KEY)],Programs_Active20[LONG TEXT])","v":"Investigations"}]
[3269,142,"Y",272,"EACH","OUTPUT","ADOPTEDBUD",null,null,null,null,"Investigations (142)","Average days to close a TC ShareIT","Average days to close a TC ShareIT",{"$f":"_xlfn.XLOOKUP(Measures_Table[[#This Row],[PM Program]],Programs_Active20[ZSBPPROGM (KEY)],Programs_Active20[LONG TEXT])","v":"Investigations"}]
[3270,142,"Y",272,"EACH","INPUT","ADOPTEDBUD",null,null,null,null,"Investigations (142)","Average days to close an ER issue invest","Average days to close an ER issue investigated by HR Services",{"$f":"_xlfn.XLOOKUP(Measures_Table[[#This Row],[PM Program]],Programs_Active20[ZSBPPROGM (KEY)],Programs_Active20[LONG TEXT])","v":"Investigations"}]
[3271,142,"Y",272,"EACH","INPUT","ADOPTEDBUD",null,null,null,null,"Investigations (142)","Copies Processed","Copies Processed",{"$f":"_xlfn.XLOOKUP(Measures_Table[[#This Row],[PM Program]],Programs_Active20[ZSBPPROGM (KEY)],Programs_Active20[LONG TEXT])","v":"Investigations"}]
[3272,142,"Y",270,"EACH","EFFICIENCY","ADOPTEDBUD",null,null,null,null,"Case Management (142)","eFiling processed","eFiling processed",{"$f":"_xlfn.XLOOKUP(Measures_Table[[#This Row],[PM Program]],Programs_Active20[ZSBPPROGM (KEY)],Programs_Active20[LONG TEXT])","v":"Case Management"}]
[3273,142,"Y",270,"EACH","EFFICIENCY","ADOPTEDBUD",null,null,null,null,"Case Management (142)","Total # of Task Force Meetings","Total # of Task Force Meetings",{"$f":"_xlfn.XLOOKUP(Measures_Table[[#This Row],[PM Program]],Programs_Active20[ZSBPPROGM (KEY)],Programs_Active20[LONG TEXT])","v":"Case Management"}]
[3274,142,"Y",270,"EACH","OUTPUT","ADOPTEDBUD",null,null,null,null,"Case Management (142)","Total # of Governance Committee Meetings","Total # of Governance Committee Meetings",{"$f":"_xlfn.XLOOKUP(Measures_Table[[#This Row],[PM Program]],Programs_Active20[ZSBPPROGM (KEY)],Programs_Active20[LONG TEXT])","v":"Case Management"}]
[3275,142,"Y",270,"EACH","OUTPUT","ADOPTEDBUD",null,null,null,null,"Case Management (142)","% of successful completion of 6 Task For","% of successful completion of 6 Task Force Speakers",{"$f":"_xlfn.XLOOKUP(Measures_Table[[#This Row],[PM Program]],Programs_Active20[ZSBPPROGM (KEY)],Programs_Active20[LONG TEXT])","v":"Case Management"}]
[3276,137,"Y",81,"EACH","OUTPUT","ADOPTEDBUD",null,null,null,null,"Human Resources - Recruiting (137)","% of successful completion of 3 FV Aware","% of successful completion of 3 FV Awareness Events",{"$f":"_xlfn.XLOOKUP(Measures_Table[[#This Row],[PM Program]],Programs_Active20[ZSBPPROGM (KEY)],Programs_Active20[LONG TEXT])","v":"Human Resources - Recruiting"}]
[3277,137,"Y",81,"HOURS","INPUT","ADOPTEDBUD",null,null,null,null,"Human Resources - Recruiting (137)","Total # of FV Trainings","Total # of FV Trainings",{"$f":"_xlfn.XLOOKUP(Measures_Table[[#This Row],[PM Program]],Programs_Active20[ZSBPPROGM (KEY)],Programs_Active20[LONG TEXT])","v":"Human Resources - Recruiting"}]
[3278,137,"Y",81,"EACH","OUTCOME","ADOPTEDBUD",null,null,null,null,"Human Resources - Recruiting (137)","Number of petitions filed annually","Number of petitions filed annually",{"$f":"_xlfn.XLOOKUP(Measures_Table[[#This Row],[PM Program]],Programs_Active20[ZSBPPROGM (KEY)],Programs_Active20[LONG TEXT])","v":"Human Resources - Recruiting"}]
[3279,137,"Y",81,"HOURS","INPUT","ADOPTEDBUD",null,null,null,null,"Human Resources - Recruiting (137)","Avg days between petition filing/process","Average number of days between petition filing and processing",{"$f":"_xlfn.XLOOKUP(Measures_Table[[#This Row],[PM Program]],Programs_Active20[ZSBPPROGM (KEY)],Programs_Active20[LONG TEXT])","v":"Human Resources - Recruiting"}]
[3280,137,"Y",81,"HOURS","EFFICIENCY","ADOPTEDBUD",null,null,null,null,"Human Resources - Recruiting (137)","Re-adjudication recidivism rate for yout","Re-adjudication recidivism rate for youth successfully completing Deferred Prosecution",{"$f":"_xlfn.XLOOKUP(Measures_Table[[#This Row],[PM Program]],Programs_Active20[ZSBPPROGM (KEY)],Programs_Active20[LONG TEXT])","v":"Human Resources - Recruiting"}]
[3281,137,"Y",67,"EACH","INPUT","ADOPTEDBUD",null,null,null,null,"Courthouse Security (137)","% decrease in # of youth being placed in","% decrease in the number of youth being placed in external placements",{"$f":"_xlfn.XLOOKUP(Measures_Table[[#This Row],[PM Program]],Programs_Active20[ZSBPPROGM (KEY)],Programs_Active20[LONG TEXT])","v":"Courthouse Security"}]
[3282,137,"Y",67,"EACH","INPUT","ADOPTEDBUD",null,null,null,null,"Courthouse Security (137)","% of youth who receive school credit tra","Percent of youth who receive school credit transferable to home schools",{"$f":"_xlfn.XLOOKUP(Measures_Table[[#This Row],[PM Program]],Programs_Active20[ZSBPPROGM (KEY)],Programs_Active20[LONG TEXT])","v":"Courthouse Security"}]
[3283,137,"Y",67,"EACH","INPUT","ADOPTEDBUD",null,null,null,null,"Courthouse Security (137)","# of youth requiring follow-up mental-he","Number of youth requiring a follow-up mental-health assessment",{"$f":"_xlfn.XLOOKUP(Measures_Table[[#This Row],[PM Program]],Programs_Active20[ZSBPPROGM (KEY)],Programs_Active20[LONG TEXT])","v":"Courthouse Security"}]
[3284,137,"Y",70,"EACH","INPUT","ADOPTEDBUD",null,null,null,null,"Crisis Intervention Team (137)","Staff turnover rate","Staff turnover rate",{"$f":"_xlfn.XLOOKUP(Measures_Table[[#This Row],[PM Program]],Programs_Active20[ZSBPPROGM (KEY)],Programs_Active20[LONG TEXT])","v":"Crisis Intervention Team"}]
[3285,137,"Y",70,"EACH","INPUT","ADOPTEDBUD",null,null,null,null,"Crisis Intervention Team (137)","# of hours staff receives in prof dev/tr","Number of hours staff receives in professional development / training",{"$f":"_xlfn.XLOOKUP(Measures_Table[[#This Row],[PM Program]],Programs_Active20[ZSBPPROGM (KEY)],Programs_Active20[LONG TEXT])","v":"Crisis Intervention Team"}]
[3286,137,"Y",70,"EACH","INPUT","ADOPTEDBUD",null,null,null,null,"Crisis Intervention Team (137)","Property Tax Phone Bank – Service Level","Property Tax Phone Bank – Service Level % \n",{"$f":"_xlfn.XLOOKUP(Measures_Table[[#This Row],[PM Program]],Programs_Active20[ZSBPPROGM (KEY)],Programs_Active20[LONG TEXT])","v":"Crisis Intervention Team"}]
[3287,137,"Y",70,"EACH","INPUT","ADOPTEDBUD",null,null,null,null,"Crisis Intervention Team (137)","# of auctions","# of auctions",{"$f":"_xlfn.XLOOKUP(Measures_Table[[#This Row],[PM Program]],Programs_Active20[ZSBPPROGM (KEY)],Programs_Active20[LONG TEXT])","v":"Crisis Intervention Team"}]
[3288,137,"Y",70,"EACH","EFFICIENCY","ADOPTEDBUD",null,null,null,null,"Crisis Intervention Team (137)","TC Initial Hearings Held","TC Initial Hearings Held",{"$f":"_xlfn.XLOOKUP(Measures_Table[[#This Row],[PM Program]],Programs_Active20[ZSBPPROGM (KEY)],Programs_Active20[LONG TEXT])","v":"Crisis Intervention Team"}]
[3289,137,"Y",70,"EACH","OUTPUT","ADOPTEDBUD",null,null,null,null,"Crisis Intervention Team (137)","PCNA Initial Hearings Held","PCNA Initial Hearings Held",{"$f":"_xlfn.XLOOKUP(Measures_Table[[#This Row],[PM Program]],Programs_Active20[ZSBPPROGM (KEY)],Programs_Active20[LONG TEXT])","v":"Crisis Intervention Team"}]
[3290,137,"Y",104,"EACH","EFFICIENCY","ADOPTEDBUD",null,null,null,null,"Reserves (137)","TC Contacts","TC Contacts",{"$f":"_xlfn.XLOOKUP(Measures_Table[[#This Row],[PM Program]],Programs_Active20[ZSBPPROGM (KEY)],Programs_Active20[LONG TEXT])","v":"Reserves"}]
[3291,137,"Y",104,"EACH","EFFICIENCY","ADOPTEDBUD",null,null,null,null,"Reserves (137)","PCNA Contacts","PCNA Contacts",{"$f":"_xlfn.XLOOKUP(Measures_Table[[#This Row],[PM Program]],Programs_Active20[ZSBPPROGM (KEY)],Programs_Active20[LONG TEXT])","v":"Reserves"}]
[3292,137,"Y",107,"EACH","INPUT","ADOPTEDBUD",null,null,null,null,"Training Academy  (137)","Number of Misdemeanor Standing Order/GO","Number of Misdemeanor Standing Order/GO Bonds ",{"$f":"_xlfn.XLOOKUP(Measures_Table[[#This Row],[PM Program]],Programs_Active20[ZSBPPROGM (KEY)],Programs_Active20[LONG TEXT])","v":"Training Academy"}]
[3293,137,"Y",107,"EACH","INPUT","ADOPTEDBUD",null,null,null,null,"Training Academy  (137)","Number of Felony Standing Order/GO Bonds","Number of Felony Standing Order/GO Bonds",{"$f":"_xlfn.XLOOKUP(Measures_Table[[#This Row],[PM Program]],Programs_Active20[ZSBPPROGM (KEY)],Programs_Active20[LONG TEXT])","v":"Training Academy"}]
[3294,137,"Y",107,"HOURS","INPUT","ADOPTEDBUD",null,null,null,null,"Training Academy  (137)","Number of Electronic Requests Sent  ","Number of Electronic Requests Sent  ",{"$f":"_xlfn.XLOOKUP(Measures_Table[[#This Row],[PM Program]],Programs_Active20[ZSBPPROGM (KEY)],Programs_Active20[LONG TEXT])","v":"Training Academy"}]
[3295,137,"Y",107,"HOURS","INPUT","ADOPTEDBUD",null,null,null,null,"Training Academy  (137)","Number of Electronic Requests Processed","Number of Electronic Requests Processed",{"$f":"_xlfn.XLOOKUP(Measures_Table[[#This Row],[PM Program]],Programs_Active20[ZSBPPROGM (KEY)],Programs_Active20[LONG TEXT])","v":"Training Academy"}]
[3296,137,"Y",107,"HOURS","INPUT","ADOPTEDBUD",null,null,null,null,"Training Academy  (137)","Number of defendants reviewed by Pretria","Number of defendants reviewed by Pretrial Services",{"$f":"_xlfn.XLOOKUP(Measures_Table[[#This Row],[PM Program]],Programs_Active20[ZSBPPROGM (KEY)],Programs_Active20[LONG TEXT])","v":"Training Academy"}]
[3297,137,"Y",107,"HOURS","INPUT","ADOPTEDBUD",null,null,null,null,"Training Academy  (137)","Number of Pretrial Investigations Manage","Number of Pretrial Investigations Managers",{"$f":"_xlfn.XLOOKUP(Measures_Table[[#This Row],[PM Program]],Programs_Active20[ZSBPPROGM (KEY)],Programs_Active20[LONG TEXT])","v":"Training Academy"}]
[3298,137,"Y",107,"HOURS","INPUT","ADOPTEDBUD",null,null,null,null,"Training Academy  (137)","Number of Staff per Manager","Number of Staff per Manager",{"$f":"_xlfn.XLOOKUP(Measures_Table[[#This Row],[PM Program]],Programs_Active20[ZSBPPROGM (KEY)],Programs_Active20[LONG TEXT])","v":"Training Academy"}]
[3299,137,"Y",107,"EACH","INPUT","ADOPTEDBUD",null,null,null,null,"Training Academy  (137)","Number of Case Management Managers ","Number of Case Management Managers ",{"$f":"_xlfn.XLOOKUP(Measures_Table[[#This Row],[PM Program]],Programs_Active20[ZSBPPROGM (KEY)],Programs_Active20[LONG TEXT])","v":"Training Academy"}]
[3300,137,"Y",107,"HOURS","INPUT","ADOPTEDBUD",null,null,null,null,"Training Academy  (137)","Number of Staff per Manager  ","Number of Staff per Manager  ",{"$f":"_xlfn.XLOOKUP(Measures_Table[[#This Row],[PM Program]],Programs_Active20[ZSBPPROGM (KEY)],Programs_Active20[LONG TEXT])","v":"Training Academy"}]
[3301,137,"Y",107,"HOURS","INPUT","ADOPTEDBUD",null,null,null,null,"Training Academy  (137)","Number of Electronic Requests Sent ","Number of Electronic Requests Sent ",{"$f":"_xlfn.XLOOKUP(Measures_Table[[#This Row],[PM Program]],Programs_Active20[ZSBPPROGM (KEY)],Programs_Active20[LONG TEXT])","v":"Training Academy"}]
[3302,137,"Y",64,"HOURS","INPUT","ADOPTEDBUD",null,null,null,null,"Correctional Security (137)","Number of Electronic Requests Processed","Number of Electronic Requests Processed",{"$f":"_xlfn.XLOOKUP(Measures_Table[[#This Row],[PM Program]],Programs_Active20[ZSBPPROGM (KEY)],Programs_Active20[LONG TEXT])","v":"Correctional Security"}]
[3303,137,"Y",64,"HOURS","EFFICIENCY","ADOPTEDBUD",null,null,null,null,"Correctional Security (137)","No. of community events / projects","No. of community events / projects",{"$f":"_xlfn.XLOOKUP(Measures_Table[[#This Row],[PM Program]],Programs_Active20[ZSBPPROGM (KEY)],Programs_Active20[LONG TEXT])","v":"Correctional Security"}]
[3304,137,"Y",64,"HOURS","INPUT","ADOPTEDBUD",null,null,null,null,"Correctional Security (137)","Event Hours","Event Hours",{"$f":"_xlfn.XLOOKUP(Measures_Table[[#This Row],[PM Program]],Programs_Active20[ZSBPPROGM (KEY)],Programs_Active20[LONG TEXT])","v":"Correctional Security"}]
[3305,137,"Y",64,"HOURS","OUTCOME","ADOPTEDBUD",null,null,null,null,"Correctional Security (137)","Est number in attendance","Est number in attendance",{"$f":"_xlfn.XLOOKUP(Measures_Table[[#This Row],[PM Program]],Programs_Active20[ZSBPPROGM (KEY)],Programs_Active20[LONG TEXT])","v":"Correctional Security"}]
[3306,137,"Y",64,"HOURS","INPUT","ADOPTEDBUD",null,null,null,null,"Correctional Security (137)","No. of volunteer hours - TCSO Staff","No. of volunteer hours - TCSO Staff",{"$f":"_xlfn.XLOOKUP(Measures_Table[[#This Row],[PM Program]],Programs_Active20[ZSBPPROGM (KEY)],Programs_Active20[LONG TEXT])","v":"Correctional Security"}]
[3307,137,"Y",64,"HOURS","EFFICIENCY","ADOPTEDBUD",null,null,null,null,"Correctional Security (137)","No. of volunteer hours - costing","No. of volunteer hours - costing",{"$f":"_xlfn.XLOOKUP(Measures_Table[[#This Row],[PM Program]],Programs_Active20[ZSBPPROGM (KEY)],Programs_Active20[LONG TEXT])","v":"Correctional Security"}]
[3308,137,"Y",64,"EACH","INPUT","ADOPTEDBUD",null,null,null,null,"Correctional Security (137)","No. of Court/Warrant Arrests","No. of Court/Warrant Arrests",{"$f":"_xlfn.XLOOKUP(Measures_Table[[#This Row],[PM Program]],Programs_Active20[ZSBPPROGM (KEY)],Programs_Active20[LONG TEXT])","v":"Correctional Security"}]
[3309,137,"Y",64,"EACH","INPUT","ADOPTEDBUD",null,null,null,null,"Correctional Security (137)","No. of Total Arrests","No. of Total Arrests",{"$f":"_xlfn.XLOOKUP(Measures_Table[[#This Row],[PM Program]],Programs_Active20[ZSBPPROGM (KEY)],Programs_Active20[LONG TEXT])","v":"Correctional Security"}]
[3310,137,"Y",64,"EACH","OUTPUT","ADOPTEDBUD",null,null,null,null,"Correctional Security (137)","No. of Other Incidents","No. of Other Incidents",{"$f":"_xlfn.XLOOKUP(Measures_Table[[#This Row],[PM Program]],Programs_Active20[ZSBPPROGM (KEY)],Programs_Active20[LONG TEXT])","v":"Correctional Security"}]
[3311,137,"Y",64,"EACH","INPUT","ADOPTEDBUD",null,null,null,null,"Correctional Security (137)","No. of Order of Protective Custody","No. of Order of Protective Custody",{"$f":"_xlfn.XLOOKUP(Measures_Table[[#This Row],[PM Program]],Programs_Active20[ZSBPPROGM (KEY)],Programs_Active20[LONG TEXT])","v":"Correctional Security"}]
[3312,137,"Y",64,"EACH","INPUT","ADOPTEDBUD",null,null,null,null,"Correctional Security (137)","No. of mental health transfers / opc","No. of mental health transfers / opc",{"$f":"_xlfn.XLOOKUP(Measures_Table[[#This Row],[PM Program]],Programs_Active20[ZSBPPROGM (KEY)],Programs_Active20[LONG TEXT])","v":"Correctional Security"}]
[3313,137,"Y",64,"EACH","OUTCOME","ADOPTEDBUD",null,null,null,null,"Correctional Security (137)","No. of opc services","No. of opc services",{"$f":"_xlfn.XLOOKUP(Measures_Table[[#This Row],[PM Program]],Programs_Active20[ZSBPPROGM (KEY)],Programs_Active20[LONG TEXT])","v":"Correctional Security"}]
[3314,137,"Y",108,"EACH","INPUT","ADOPTEDBUD",null,null,null,null,"Transportation (137)","No. of incident numbers","No. of incident numbers",{"$f":"_xlfn.XLOOKUP(Measures_Table[[#This Row],[PM Program]],Programs_Active20[ZSBPPROGM (KEY)],Programs_Active20[LONG TEXT])","v":"Transportation"}]
[3315,137,"Y",108,"EACH","INPUT","ADOPTEDBUD",null,null,null,null,"Transportation (137)","Assist other agencies","Assist other agencies",{"$f":"_xlfn.XLOOKUP(Measures_Table[[#This Row],[PM Program]],Programs_Active20[ZSBPPROGM (KEY)],Programs_Active20[LONG TEXT])","v":"Transportation"}]
[3316,114,"Y",116,"DAYS","EFFICIENCY","ADOPTEDBUD",null,null,null,null,"Security Management (114)","Training classes taught/training others","Training classes taught/training others",{"$f":"_xlfn.XLOOKUP(Measures_Table[[#This Row],[PM Program]],Programs_Active20[ZSBPPROGM (KEY)],Programs_Active20[LONG TEXT])","v":"Security Management"}]
[3317,114,"Y",116,"PERCENT","OUTCOME","ADOPTEDBUD",null,null,null,null,"Security Management (114)","No. of patrol shifts working as extra un","No. of patrol shifts working as extra unit",{"$f":"_xlfn.XLOOKUP(Measures_Table[[#This Row],[PM Program]],Programs_Active20[ZSBPPROGM (KEY)],Programs_Active20[LONG TEXT])","v":"Security Management"}]
[3318,114,"Y",116,"EACH","OUTPUT","ADOPTEDBUD",null,null,null,null,"Security Management (114)","No. of SWAT call outs","No. of SWAT call outs",{"$f":"_xlfn.XLOOKUP(Measures_Table[[#This Row],[PM Program]],Programs_Active20[ZSBPPROGM (KEY)],Programs_Active20[LONG TEXT])","v":"Security Management"}]
[3319,114,"Y",116,"PERCENT","EFFICIENCY","ADOPTEDBUD",null,null,null,null,"Security Management (114)","No. non-TCSO officers in attendance","No. non-TCSO officers in attendance",{"$f":"_xlfn.XLOOKUP(Measures_Table[[#This Row],[PM Program]],Programs_Active20[ZSBPPROGM (KEY)],Programs_Active20[LONG TEXT])","v":"Security Management"}]
[3320,114,"Y",116,"PERCENT","EFFICIENCY","ADOPTEDBUD",null,null,null,null,"Security Management (114)","No. of students","No. of students",{"$f":"_xlfn.XLOOKUP(Measures_Table[[#This Row],[PM Program]],Programs_Active20[ZSBPPROGM (KEY)],Programs_Active20[LONG TEXT])","v":"Security Management"}]
[3321,114,"Y",116,"PERCENT","EFFICIENCY","ADOPTEDBUD",null,null,null,null,"Security Management (114)","No. of student hours","No. of student hours",{"$f":"_xlfn.XLOOKUP(Measures_Table[[#This Row],[PM Program]],Programs_Active20[ZSBPPROGM (KEY)],Programs_Active20[LONG TEXT])","v":"Security Management"}]
[3322,114,"Y",116,"PERCENT","EFFICIENCY","ADOPTEDBUD",null,null,null,null,"Security Management (114)","No. of class hours","No. of class hours",{"$f":"_xlfn.XLOOKUP(Measures_Table[[#This Row],[PM Program]],Programs_Active20[ZSBPPROGM (KEY)],Programs_Active20[LONG TEXT])","v":"Security Management"}]
[3323,129,"Y",238,"EACH","INPUT","BLACKBOOK",null,null,null,null,"Juvenile Case Manager (129)","No. of TA Instructor Hrs teaching","No. of TA Instructor Hrs teaching",{"$f":"_xlfn.XLOOKUP(Measures_Table[[#This Row],[PM Program]],Programs_Active20[ZSBPPROGM (KEY)],Programs_Active20[LONG TEXT])","v":"Juvenile Case Manager"}]
[3324,135,"Y",256,"EACH","OUTPUT","ADOPTEDBUD",null,null,null,null,"Civil & Criminal Process (135)","No. of Ad Instructor Hrs teaching","No. of Ad Instructor Hrs teaching",{"$f":"_xlfn.XLOOKUP(Measures_Table[[#This Row],[PM Program]],Programs_Active20[ZSBPPROGM (KEY)],Programs_Active20[LONG TEXT])","v":"Civil & Criminal Process"}]
[3325,110,"Y",287,"EACH","OUTPUT",null,null,null,null,null,"Media Services (110)","No. of teaching hours","No. of teaching hours",{"$f":"_xlfn.XLOOKUP(Measures_Table[[#This Row],[PM Program]],Programs_Active20[ZSBPPROGM (KEY)],Programs_Active20[LONG TEXT])","v":"Media Services"}]
[3326,110,"Y",287,"HOURS","OUTPUT",null,null,null,null,null,"Media Services (110)","No. of classes","No. of classes",{"$f":"_xlfn.XLOOKUP(Measures_Table[[#This Row],[PM Program]],Programs_Active20[ZSBPPROGM (KEY)],Programs_Active20[LONG TEXT])","v":"Media Services"}]
[3327,110,"Y",287,"HOURS","OUTPUT","ADOPTEDBUD",null,null,null,null,"Media Services (110)","No. of hours for TA instructor developme","No. of hours for TA instructor development",{"$f":"_xlfn.XLOOKUP(Measures_Table[[#This Row],[PM Program]],Programs_Active20[ZSBPPROGM (KEY)],Programs_Active20[LONG TEXT])","v":"Media Services"}]
[3328,108,"Y",22,"PERCENT","OUTPUT","NEITHER",null,null,null,null,"Administration (108)","No. of hours for LMS & online class","No. of hours for LMS & online class",{"$f":"_xlfn.XLOOKUP(Measures_Table[[#This Row],[PM Program]],Programs_Active20[ZSBPPROGM (KEY)],Programs_Active20[LONG TEXT])","v":"Administration"}]
[3329,108,"Y",22,"PERCENT","OUTCOME","ADOPTEDBUD",null,null,null,null,"Administration (108)","No. of hours on jail cases","No. of hours on jail cases",{"$f":"_xlfn.XLOOKUP(Measures_Table[[#This Row],[PM Program]],Programs_Active20[ZSBPPROGM (KEY)],Programs_Active20[LONG TEXT])","v":"Administration"}]
[3330,108,"Y",22,"PERCENT","OUTCOME","NEITHER",null,null,null,null,"Administration (108)","No. of hours assisting other agencies","No. of hours assisting other agencies",{"$f":"_xlfn.XLOOKUP(Measures_Table[[#This Row],[PM Program]],Programs_Active20[ZSBPPROGM (KEY)],Programs_Active20[LONG TEXT])","v":"Administration"}]
[3331,159,"Y",291,"PERCENT","OUTCOME","ADOPTEDBUD",null,null,null,null,"Clinical Performance and Education (159)","No. of hours on LE cases","No. of hours on LE cases",{"$f":"_xlfn.XLOOKUP(Measures_Table[[#This Row],[PM Program]],Programs_Active20[ZSBPPROGM (KEY)],Programs_Active20[LONG TEXT])","v":"Clinical Performance and Education"}]
[3332,159,"Y",291,"EACH","OUTCOME","ADOPTEDBUD",null,null,null,null,"Clinical Performance and Education (159)","Mandatory OT","Mandatory OT",{"$f":"_xlfn.XLOOKUP(Measures_Table[[#This Row],[PM Program]],Programs_Active20[ZSBPPROGM (KEY)],Programs_Active20[LONG TEXT])","v":"Clinical Performance and Education"}]
[3333,159,"Y",291,"EACH","OUTPUT","ADOPTEDBUD",null,null,null,null,"Clinical Performance and Education (159)","Total  Hours","Total  Hours",{"$f":"_xlfn.XLOOKUP(Measures_Table[[#This Row],[PM Program]],Programs_Active20[ZSBPPROGM (KEY)],Programs_Active20[LONG TEXT])","v":"Clinical Performance and Education"}]
[3334,159,"Y",291,"EACH","OUTPUT","ADOPTEDBUD",null,null,null,null,"Clinical Performance and Education (159)","No. of hours on events trainings present","No. of hours on events trainings presentation",{"$f":"_xlfn.XLOOKUP(Measures_Table[[#This Row],[PM Program]],Programs_Active20[ZSBPPROGM (KEY)],Programs_Active20[LONG TEXT])","v":"Clinical Performance and Education"}]
[3335,159,"Y",291,"EACH","OUTPUT","ADOPTEDBUD",null,null,null,null,"Clinical Performance and Education (159)","Total pieces of mail reviewed","Total pieces of mail reviewed",{"$f":"_xlfn.XLOOKUP(Measures_Table[[#This Row],[PM Program]],Programs_Active20[ZSBPPROGM (KEY)],Programs_Active20[LONG TEXT])","v":"Clinical Performance and Education"}]
[3336,155,"Y",181,"EACH","OUTPUT","ADOPTEDBUD",null,null,null,null,"Mental Health Public Defender (155)","No. of hrs processing mail","No. of hrs processing mail",{"$f":"_xlfn.XLOOKUP(Measures_Table[[#This Row],[PM Program]],Programs_Active20[ZSBPPROGM (KEY)],Programs_Active20[LONG TEXT])","v":"Mental Health Public Defender"}]
[3337,155,"Y",181,"EACH","OUTPUT","BLACKBOOK",null,null,null,null,"Mental Health Public Defender (155)","No. of gang confirmation","No. of gang confirmation",{"$f":"_xlfn.XLOOKUP(Measures_Table[[#This Row],[PM Program]],Programs_Active20[ZSBPPROGM (KEY)],Programs_Active20[LONG TEXT])","v":"Mental Health Public Defender"}]
[3338,108,"Y",308,"EACH","INPUT","ADOPTEDBUD",null,null,null,null,"Centralized Court Collections (108)","Gang Related Activity","Gang Related Activity",{"$f":"_xlfn.XLOOKUP(Measures_Table[[#This Row],[PM Program]],Programs_Active20[ZSBPPROGM (KEY)],Programs_Active20[LONG TEXT])","v":"Centralized Court Collections"}]
[3339,108,"Y",308,"EACH","OUTPUT","NEITHER",null,null,null,null,"Centralized Court Collections (108)","No. of EPOs added to list","No. of EPOs added to list",{"$f":"_xlfn.XLOOKUP(Measures_Table[[#This Row],[PM Program]],Programs_Active20[ZSBPPROGM (KEY)],Programs_Active20[LONG TEXT])","v":"Centralized Court Collections"}]
[3340,108,"Y",308,"EACH","OUTPUT","NEITHER",null,null,null,null,"Centralized Court Collections (108)","No. of EPOs removed from the list","No. of EPOs removed from the list",{"$f":"_xlfn.XLOOKUP(Measures_Table[[#This Row],[PM Program]],Programs_Active20[ZSBPPROGM (KEY)],Programs_Active20[LONG TEXT])","v":"Centralized Court Collections"}]
[3341,108,"Y",308,"EACH","OUTPUT","NEITHER",null,null,null,null,"Centralized Court Collections (108)","No. of inmates virtual courts – Input –","No. of inmates virtual courts – Input – 2019 # 4733",{"$f":"_xlfn.XLOOKUP(Measures_Table[[#This Row],[PM Program]],Programs_Active20[ZSBPPROGM (KEY)],Programs_Active20[LONG TEXT])","v":"Centralized Court Collections"}]
[3342,108,"Y",308,"EACH","OUTPUT","NEITHER",null,null,null,null,"Centralized Court Collections (108)","No of virtual court coordinating hours –","No of virtual court coordinating hours – Input – 2019 # 1152",{"$f":"_xlfn.XLOOKUP(Measures_Table[[#This Row],[PM Program]],Programs_Active20[ZSBPPROGM (KEY)],Programs_Active20[LONG TEXT])","v":"Centralized Court Collections"}]
[3343,108,"Y",308,"EACH","INPUT","ADOPTEDBUD",null,null,null,null,"Centralized Court Collections (108)","Construction schedule variance","Construction schedule variance",{"$f":"_xlfn.XLOOKUP(Measures_Table[[#This Row],[PM Program]],Programs_Active20[ZSBPPROGM (KEY)],Programs_Active20[LONG TEXT])","v":"Centralized Court Collections"}]
[3344,108,"Y",308,"EACH","OUTPUT","ADOPTEDBUD",null,null,null,null,"Centralized Court Collections (108)","% of staff completing and maintaining pr","% of staff completing and maintaining professional and industry standards",{"$f":"_xlfn.XLOOKUP(Measures_Table[[#This Row],[PM Program]],Programs_Active20[ZSBPPROGM (KEY)],Programs_Active20[LONG TEXT])","v":"Centralized Court Collections"}]
[3345,108,"Y",308,"EACH","OUTPUT","ADOPTEDBUD",null,null,null,null,"Centralized Court Collections (108)","# of County employees completing securit","# of County employees completing security/safety training",{"$f":"_xlfn.XLOOKUP(Measures_Table[[#This Row],[PM Program]],Programs_Active20[ZSBPPROGM (KEY)],Programs_Active20[LONG TEXT])","v":"Centralized Court Collections"}]
[3346,108,"Y",308,"EACH","OUTPUT","ADOPTEDBUD",null,null,null,null,"Centralized Court Collections (108)","% of maintenance and repair orders ident","% of maintenance and repair orders identified",{"$f":"_xlfn.XLOOKUP(Measures_Table[[#This Row],[PM Program]],Programs_Active20[ZSBPPROGM (KEY)],Programs_Active20[LONG TEXT])","v":"Centralized Court Collections"}]
[3347,108,"Y",308,"EACH","OUTPUT","ADOPTEDBUD",null,null,null,null,"Centralized Court Collections (108)","% of parking space utilization","% of parking space utilization",{"$f":"_xlfn.XLOOKUP(Measures_Table[[#This Row],[PM Program]],Programs_Active20[ZSBPPROGM (KEY)],Programs_Active20[LONG TEXT])","v":"Centralized Court Collections"}]
[3348,108,"Y",308,"EACH","INPUT","ADOPTEDBUD",null,null,null,null,"Centralized Court Collections (108)","% of Physical Security Operations Center","% of Physical Security Operations Center capabilities",{"$f":"_xlfn.XLOOKUP(Measures_Table[[#This Row],[PM Program]],Programs_Active20[ZSBPPROGM (KEY)],Programs_Active20[LONG TEXT])","v":"Centralized Court Collections"}]
[3349,108,"Y",308,"EACH","OUTPUT","ADOPTEDBUD",null,null,null,null,"Centralized Court Collections (108)","% of electronic security work orders com","% of electronic security work orders completed on schedule",{"$f":"_xlfn.XLOOKUP(Measures_Table[[#This Row],[PM Program]],Programs_Active20[ZSBPPROGM (KEY)],Programs_Active20[LONG TEXT])","v":"Centralized Court Collections"}]
[3350,108,"Y",308,"EACH","OUTPUT","ADOPTEDBUD",null,null,null,null,"Centralized Court Collections (108)","# of Clerks to Process Cases","# of Clerks to Process Cases",{"$f":"_xlfn.XLOOKUP(Measures_Table[[#This Row],[PM Program]],Programs_Active20[ZSBPPROGM (KEY)],Programs_Active20[LONG TEXT])","v":"Centralized Court Collections"}]
[3351,108,"Y",308,"EACH","OUTPUT","ADOPTEDBUD",null,null,null,null,"Centralized Court Collections (108)","Virtual juror iPad distribution and retr","Virtual juror iPad distribution and retrieval",{"$f":"_xlfn.XLOOKUP(Measures_Table[[#This Row],[PM Program]],Programs_Active20[ZSBPPROGM (KEY)],Programs_Active20[LONG TEXT])","v":"Centralized Court Collections"}]
[3352,108,"Y",308,"EACH","OUTPUT","ADOPTEDBUD",null,null,null,null,"Centralized Court Collections (108)","Still Photography Projects","Still Photography Projects",{"$f":"_xlfn.XLOOKUP(Measures_Table[[#This Row],[PM Program]],Programs_Active20[ZSBPPROGM (KEY)],Programs_Active20[LONG TEXT])","v":"Centralized Court Collections"}]
[3353,120,"Y",38,"EACH","OUTPUT","ADOPTEDBUD",null,null,null,null,"Misdemeanor Records Division (120)","Still Photography Staff Hours","Still Photography Staff Hours",{"$f":"_xlfn.XLOOKUP(Measures_Table[[#This Row],[PM Program]],Programs_Active20[ZSBPPROGM (KEY)],Programs_Active20[LONG TEXT])","v":"Misdemeanor Records Division"}]
[3354,120,"Y",40,"EACH","OUTPUT","ADOPTEDBUD",null,null,null,null,"Recording Division (120)","Equipment Checkouts Staff Hours","Equipment Checkouts Staff Hours\n",{"$f":"_xlfn.XLOOKUP(Measures_Table[[#This Row],[PM Program]],Programs_Active20[ZSBPPROGM (KEY)],Programs_Active20[LONG TEXT])","v":"Recording Division"}]
[3355,120,"Y",40,"EACH","OUTPUT","ADOPTEDBUD",null,null,null,null,"Recording Division (120)","% of goals actively monitored","% of goals actively monitored",{"$f":"_xlfn.XLOOKUP(Measures_Table[[#This Row],[PM Program]],Programs_Active20[ZSBPPROGM (KEY)],Programs_Active20[LONG TEXT])","v":"Recording Division"}]
[3356,120,"Y",40,"EACH","OUTPUT","ADOPTEDBUD",null,null,null,null,"Recording Division (120)","% of goals on target","% of goals on target",{"$f":"_xlfn.XLOOKUP(Measures_Table[[#This Row],[PM Program]],Programs_Active20[ZSBPPROGM (KEY)],Programs_Active20[LONG TEXT])","v":"Recording Division"}]
[3357,120,"Y",40,"EACH","OUTPUT","ADOPTEDBUD",null,null,null,null,"Recording Division (120)","% of goals completed","% of goals completed",{"$f":"_xlfn.XLOOKUP(Measures_Table[[#This Row],[PM Program]],Programs_Active20[ZSBPPROGM (KEY)],Programs_Active20[LONG TEXT])","v":"Recording Division"}]
[3358,120,"Y",40,"EACH","INPUT","ADOPTEDBUD",null,null,null,null,"Recording Division (120)","% of care providers receiving quarterly","% of care providers receiving quarterly education",{"$f":"_xlfn.XLOOKUP(Measures_Table[[#This Row],[PM Program]],Programs_Active20[ZSBPPROGM (KEY)],Programs_Active20[LONG TEXT])","v":"Recording Division"}]
[3359,120,"Y",40,"EACH","INPUT","ADOPTEDBUD",null,null,null,null,"Recording Division (120)","# of providers credentialed","# of providers credentialed",{"$f":"_xlfn.XLOOKUP(Measures_Table[[#This Row],[PM Program]],Programs_Active20[ZSBPPROGM (KEY)],Programs_Active20[LONG TEXT])","v":"Recording Division"}]
[3360,120,"Y",40,"EACH","OUTPUT","ADOPTEDBUD",null,null,null,null,"Recording Division (120)","# of revisions/enhancements to operating","# of revisions/enhancements to operating guidelines",{"$f":"_xlfn.XLOOKUP(Measures_Table[[#This Row],[PM Program]],Programs_Active20[ZSBPPROGM (KEY)],Programs_Active20[LONG TEXT])","v":"Recording Division"}]
[3361,120,"Y",40,"EACH","OUTPUT","ADOPTEDBUD",null,null,null,null,"Recording Division (120)","# of coordination meetings with City of","# of coordination meetings with City of Austin EMS/OMD",{"$f":"_xlfn.XLOOKUP(Measures_Table[[#This Row],[PM Program]],Programs_Active20[ZSBPPROGM (KEY)],Programs_Active20[LONG TEXT])","v":"Recording Division"}]
[3362,120,"Y",40,"EACH","OUTPUT","ADOPTEDBUD",null,null,null,null,"Recording Division (120)","# of multi-agency training events","# of multi-agency training events",{"$f":"_xlfn.XLOOKUP(Measures_Table[[#This Row],[PM Program]],Programs_Active20[ZSBPPROGM (KEY)],Programs_Active20[LONG TEXT])","v":"Recording Division"}]
[3363,120,"Y",40,"EACH","OUTPUT","ADOPTEDBUD",null,null,null,null,"Recording Division (120)","MHPD misdemeanor cause #'s disposed (new","MHPD misdemeanor cause #'s disposed (new measure as of 2023)",{"$f":"_xlfn.XLOOKUP(Measures_Table[[#This Row],[PM Program]],Programs_Active20[ZSBPPROGM (KEY)],Programs_Active20[LONG TEXT])","v":"Recording Division"}]
[3364,158,"Y",159,"PERCENT","OUTPUT","NEITHER",null,null,null,null,"Parenting in Recovery (158)","MHPD SJF & F3 cause #'s disposed (new me","MHPD SJF & F3 cause #'s disposed (new measure as of 2023)",{"$f":"_xlfn.XLOOKUP(Measures_Table[[#This Row],[PM Program]],Programs_Active20[ZSBPPROGM (KEY)],Programs_Active20[LONG TEXT])","v":"Parenting in Recovery"}]
[3365,106,"Y",178,"EACH","OUTPUT","ADOPTEDBUD",null,null,null,null,"Auditor's Office (106)","JP - # New Cases To Manage","JP - # New Cases To Manage",{"$f":"_xlfn.XLOOKUP(Measures_Table[[#This Row],[PM Program]],Programs_Active20[ZSBPPROGM (KEY)],Programs_Active20[LONG TEXT])","v":"Auditor's Office"}]
[3366,106,"Y",178,"EACH","OUTPUT","ADOPTEDBUD",null,null,null,null,"Auditor's Office (106)","JP - # of Bills of Cost/Past Due Letters","JP - # of Bills of Cost/Past Due Letters",{"$f":"_xlfn.XLOOKUP(Measures_Table[[#This Row],[PM Program]],Programs_Active20[ZSBPPROGM (KEY)],Programs_Active20[LONG TEXT])","v":"Auditor's Office"}]
[3367,138,"Y",261,"EACH","OUTPUT","ADOPTEDBUD",null,null,null,null,"Toxicology (138)","JP - # of Payment Plan Applications","JP - # of Payment Plan Applications",{"$f":"_xlfn.XLOOKUP(Measures_Table[[#This Row],[PM Program]],Programs_Active20[ZSBPPROGM (KEY)],Programs_Active20[LONG TEXT])","v":"Toxicology"}]
[3368,138,"Y",261,"EACH","OUTPUT","ADOPTEDBUD",null,null,null,null,"Toxicology (138)","JP - # Cases Recalled/Paid in Full","JP - # Cases Recalled/Paid in Full",{"$f":"_xlfn.XLOOKUP(Measures_Table[[#This Row],[PM Program]],Programs_Active20[ZSBPPROGM (KEY)],Programs_Active20[LONG TEXT])","v":"Toxicology"}]
[3369,138,"Y",261,"EACH","OUTPUT","ADOPTEDBUD",null,null,null,null,"Toxicology (138)","JP - # Telephone/Email Contact/Due Dilig","JP - # Telephone/Email Contact/Due Diligence",{"$f":"_xlfn.XLOOKUP(Measures_Table[[#This Row],[PM Program]],Programs_Active20[ZSBPPROGM (KEY)],Programs_Active20[LONG TEXT])","v":"Toxicology"}]
[3370,138,"Y",261,"EACH","OUTPUT","ADOPTEDBUD",null,null,null,null,"Toxicology (138)","CC - # New Cases To Manage","CC - # New Cases To Manage",{"$f":"_xlfn.XLOOKUP(Measures_Table[[#This Row],[PM Program]],Programs_Active20[ZSBPPROGM (KEY)],Programs_Active20[LONG TEXT])","v":"Toxicology"}]
[3371,138,"Y",261,"EACH","OUTPUT","ADOPTEDBUD",null,null,null,null,"Toxicology (138)","CC - # of Payment Plan Applications","CC - # of Payment Plan Applications",{"$f":"_xlfn.XLOOKUP(Measures_Table[[#This Row],[PM Program]],Programs_Active20[ZSBPPROGM (KEY)],Programs_Active20[LONG TEXT])","v":"Toxicology"}]
[3372,138,"Y",261,"EACH","OUTPUT","ADOPTEDBUD",null,null,null,null,"Toxicology (138)","CC - # Cases Recalled/Paid in Full","CC - # Cases Recalled/Paid in Full",{"$f":"_xlfn.XLOOKUP(Measures_Table[[#This Row],[PM Program]],Programs_Active20[ZSBPPROGM (KEY)],Programs_Active20[LONG TEXT])","v":"Toxicology"}]
[3373,138,"Y",261,"EACH","OUTPUT","ADOPTEDBUD",null,null,null,null,"Toxicology (138)","CC - # of Bills of Cost/Past Due Letters","CC - # of Bills of Cost/Past Due Letters",{"$f":"_xlfn.XLOOKUP(Measures_Table[[#This Row],[PM Program]],Programs_Active20[ZSBPPROGM (KEY)],Programs_Active20[LONG TEXT])","v":"Toxicology"}]
[3374,138,"Y",261,"EACH","OUTPUT","ADOPTEDBUD",null,null,null,null,"Toxicology (138)","CC - # Telephone/Email Contact/Due Dilig","CC - # Telephone/Email Contact/Due Diligence",{"$f":"_xlfn.XLOOKUP(Measures_Table[[#This Row],[PM Program]],Programs_Active20[ZSBPPROGM (KEY)],Programs_Active20[LONG TEXT])","v":"Toxicology"}]
[3375,111,"Y",202,"EACH","OUTPUT","ADOPTEDBUD",null,null,null,null,"Talent, Planning & Engagement (111)","DC - # New Cases To Manage","DC - # New Cases To Manage",{"$f":"_xlfn.XLOOKUP(Measures_Table[[#This Row],[PM Program]],Programs_Active20[ZSBPPROGM (KEY)],Programs_Active20[LONG TEXT])","v":"Talent, Planning & Engagement"}]
[3376,111,"Y",202,"EACH","OUTPUT","ADOPTEDBUD",null,null,null,null,"Talent, Planning & Engagement (111)","DC - # of Payment Plan Applications","DC - # of Payment Plan Applications",{"$f":"_xlfn.XLOOKUP(Measures_Table[[#This Row],[PM Program]],Programs_Active20[ZSBPPROGM (KEY)],Programs_Active20[LONG TEXT])","v":"Talent, Planning & Engagement"}]
[3377,111,"Y",202,"EACH","OUTPUT","ADOPTEDBUD",null,null,null,null,"Talent, Planning & Engagement (111)","DC - # Cases Recalled/Paid in Full","DC - # Cases Recalled/Paid in Full",{"$f":"_xlfn.XLOOKUP(Measures_Table[[#This Row],[PM Program]],Programs_Active20[ZSBPPROGM (KEY)],Programs_Active20[LONG TEXT])","v":"Talent, Planning & Engagement"}]
[3378,111,"Y",202,"EACH","OUTPUT","ADOPTEDBUD",null,null,null,null,"Talent, Planning & Engagement (111)","DC - # of Bills of Cost/Past Due Letters","DC - # of Bills of Cost/Past Due Letters",{"$f":"_xlfn.XLOOKUP(Measures_Table[[#This Row],[PM Program]],Programs_Active20[ZSBPPROGM (KEY)],Programs_Active20[LONG TEXT])","v":"Talent, Planning & Engagement"}]
[3379,111,"Y",202,"EACH","INPUT","ADOPTEDBUD",null,null,null,null,"Talent, Planning & Engagement (111)","DC - # Telephone/Email Contact/Due Dilig","DC - # Telephone/Email Contact/Due Diligence",{"$f":"_xlfn.XLOOKUP(Measures_Table[[#This Row],[PM Program]],Programs_Active20[ZSBPPROGM (KEY)],Programs_Active20[LONG TEXT])","v":"Talent, Planning & Engagement"}]
[3380,111,"Y",202,"EACH","INPUT","ADOPTEDBUD",null,null,null,null,"Talent, Planning & Engagement (111)","Documents Redacted","Documents Redacted",{"$f":"_xlfn.XLOOKUP(Measures_Table[[#This Row],[PM Program]],Programs_Active20[ZSBPPROGM (KEY)],Programs_Active20[LONG TEXT])","v":"Talent, Planning & Engagement"}]
[3381,111,"Y",202,"PERCENT","INPUT","ADOPTEDBUD",null,null,null,null,"Talent, Planning & Engagement (111)","OPR Rejection Letters Processed","OPR Rejection Letters Processed",{"$f":"_xlfn.XLOOKUP(Measures_Table[[#This Row],[PM Program]],Programs_Active20[ZSBPPROGM (KEY)],Programs_Active20[LONG TEXT])","v":"Talent, Planning & Engagement"}]
[3382,111,"Y",196,"EACH","OUTCOME","ADOPTEDBUD",null,null,null,null,"HR Administration (111)","Marriage License Rejection Letters Proce","Marriage License Rejection Letters Processed",{"$f":"_xlfn.XLOOKUP(Measures_Table[[#This Row],[PM Program]],Programs_Active20[ZSBPPROGM (KEY)],Programs_Active20[LONG TEXT])","v":"HR Administration"}]
[3383,111,"Y",196,"EACH","OUTCOME","ADOPTEDBUD",null,null,null,null,"HR Administration (111)","Searches conducted by Call Center (inclu","Searches conducted by Call Center (including for downtown offices )",{"$f":"_xlfn.XLOOKUP(Measures_Table[[#This Row],[PM Program]],Programs_Active20[ZSBPPROGM (KEY)],Programs_Active20[LONG TEXT])","v":"HR Administration"}]
[3384,111,"Y",196,"EACH","INPUT","ADOPTEDBUD",null,null,null,null,"HR Administration (111)","Images reviewed for redaction","Images reviewed for redaction",{"$f":"_xlfn.XLOOKUP(Measures_Table[[#This Row],[PM Program]],Programs_Active20[ZSBPPROGM (KEY)],Programs_Active20[LONG TEXT])","v":"HR Administration"}]
[3385,111,"Y",196,"EACH","OUTCOME","ADOPTEDBUD",null,null,null,null,"HR Administration (111)","Customers served by phone","Customers served by phone",{"$f":"_xlfn.XLOOKUP(Measures_Table[[#This Row],[PM Program]],Programs_Active20[ZSBPPROGM (KEY)],Programs_Active20[LONG TEXT])","v":"HR Administration"}]
[3386,111,"Y",196,"Y/N","OUTCOME","ADOPTEDBUD",null,null,null,null,"HR Administration (111)","Customers served by mail","Customers served by mail",{"$f":"_xlfn.XLOOKUP(Measures_Table[[#This Row],[PM Program]],Programs_Active20[ZSBPPROGM (KEY)],Programs_Active20[LONG TEXT])","v":"HR Administration"}]
[3387,111,"Y",196,"DOLLARS","OUTCOME","ADOPTEDBUD",null,null,null,null,"HR Administration (111)","Birth Records Processed","Birth Records Processed",{"$f":"_xlfn.XLOOKUP(Measures_Table[[#This Row],[PM Program]],Programs_Active20[ZSBPPROGM (KEY)],Programs_Active20[LONG TEXT])","v":"HR Administration"}]
[3388,111,"Y",196,"DOLLARS","OUTCOME","ADOPTEDBUD",null,null,null,null,"HR Administration (111)","Death Records Processed","Death Records Processed",{"$f":"_xlfn.XLOOKUP(Measures_Table[[#This Row],[PM Program]],Programs_Active20[ZSBPPROGM (KEY)],Programs_Active20[LONG TEXT])","v":"HR Administration"}]
[3389,111,"Y",196,"PERCENT","EFFICIENCY","ADOPTEDBUD",null,null,null,null,"HR Administration (111)","TABC Applications Processed","TABC Applications Processed",{"$f":"_xlfn.XLOOKUP(Measures_Table[[#This Row],[PM Program]],Programs_Active20[ZSBPPROGM (KEY)],Programs_Active20[LONG TEXT])","v":"HR Administration"}]
[3390,155,"Y",179,"EACH","OUTPUT","ADOPTEDBUD",null,null,null,null,"Justice Planning (155)","Cattle Marks and Brands Processed","Cattle Marks and Brands Processed",{"$f":"_xlfn.XLOOKUP(Measures_Table[[#This Row],[PM Program]],Programs_Active20[ZSBPPROGM (KEY)],Programs_Active20[LONG TEXT])","v":"Justice Planning"}]
[3391,145,"Y",309,"PERCENT","OUTCOME","ADOPTEDBUD",null,null,null,null,"Social Services (145)","PIRFDTC % in substance treatment 20 days","PIR/FDTC percentage of participants able to access residential substance abuse treatment within 20 days",{"$f":"_xlfn.XLOOKUP(Measures_Table[[#This Row],[PM Program]],Programs_Active20[ZSBPPROGM (KEY)],Programs_Active20[LONG TEXT])","v":"Social Services"}]
[3392,145,"Y",309,"PERCENT","OUTCOME","ADOPTEDBUD",null,null,null,null,"Social Services (145)","REC special projects/statutory reviews c","REC special projects/statutory reviews completed",{"$f":"_xlfn.XLOOKUP(Measures_Table[[#This Row],[PM Program]],Programs_Active20[ZSBPPROGM (KEY)],Programs_Active20[LONG TEXT])","v":"Social Services"}]
[3393,128,"Y",233,"EACH","OUTPUT","ADOPTEDBUD",null,null,null,null,"Civil (128)","REC continuous auditing programs impleme","REC continuous auditing programs implemented\n",{"$f":"_xlfn.XLOOKUP(Measures_Table[[#This Row],[PM Program]],Programs_Active20[ZSBPPROGM (KEY)],Programs_Active20[LONG TEXT])","v":"Civil"}]
[3394,128,"Y",233,"EACH","OUTPUT","ADOPTEDBUD",null,null,null,null,"Civil (128)","Toxicology – Vitreous Panel – TC","Toxicology – Vitreous Panel – TC",{"$f":"_xlfn.XLOOKUP(Measures_Table[[#This Row],[PM Program]],Programs_Active20[ZSBPPROGM (KEY)],Programs_Active20[LONG TEXT])","v":"Civil"}]
[3395,128,"Y",233,"EACH","OUTPUT","ADOPTEDBUD",null,null,null,null,"Civil (128)","Toxicology – Ethanol/Volatiles - TC","Toxicology – Ethanol/Volatiles - TC",{"$f":"_xlfn.XLOOKUP(Measures_Table[[#This Row],[PM Program]],Programs_Active20[ZSBPPROGM (KEY)],Programs_Active20[LONG TEXT])","v":"Civil"}]
[3396,128,"Y",233,"EACH","OUTPUT","ADOPTEDBUD",null,null,null,null,"Civil (128)","Toxicology – CO - TC","Toxicology – CO - TC",{"$f":"_xlfn.XLOOKUP(Measures_Table[[#This Row],[PM Program]],Programs_Active20[ZSBPPROGM (KEY)],Programs_Active20[LONG TEXT])","v":"Civil"}]
[3397,128,"Y",233,"EACH","OUTPUT","ADOPTEDBUD",null,null,null,null,"Civil (128)","Toxicology – Cannabinoids – TC","Toxicology – Cannabinoids – TC",{"$f":"_xlfn.XLOOKUP(Measures_Table[[#This Row],[PM Program]],Programs_Active20[ZSBPPROGM (KEY)],Programs_Active20[LONG TEXT])","v":"Civil"}]
[3398,109,"Y",13,"EACH","OUTPUT","ADOPTEDBUD",null,null,null,null,"Corporations (109)","Toxicology – Vitreous Panel – OOC","Toxicology – Vitreous Panel – OOC",{"$f":"_xlfn.XLOOKUP(Measures_Table[[#This Row],[PM Program]],Programs_Active20[ZSBPPROGM (KEY)],Programs_Active20[LONG TEXT])","v":"Corporations"}]
[3399,130,"Y",240,"EACH","OUTCOME","ADOPTEDBUD",null,null,null,null,"Criminal Department (130)","Toxicology – Ethanol/Volatiles - OOC","Toxicology – Ethanol/Volatiles - OOC",{"$f":"_xlfn.XLOOKUP(Measures_Table[[#This Row],[PM Program]],Programs_Active20[ZSBPPROGM (KEY)],Programs_Active20[LONG TEXT])","v":"Criminal Department"}]
[3403,130,"Y",240,"PERCENT","OUTCOME","ADOPTEDBUD",null,null,null,null,"Criminal Department (130)","Customized curriculums for departments","Customized curriculums for departments",{"$f":"_xlfn.XLOOKUP(Measures_Table[[#This Row],[PM Program]],Programs_Active20[ZSBPPROGM (KEY)],Programs_Active20[LONG TEXT])","v":"Criminal Department"}]
[3404,130,"Y",240,"EACH","INPUT","ADOPTEDBUD",null,null,null,null,"Criminal Department (130)","# of Ee Assigned HR Compliance curriculu","# of Ee Assigned HR Compliance curriculum",{"$f":"_xlfn.XLOOKUP(Measures_Table[[#This Row],[PM Program]],Programs_Active20[ZSBPPROGM (KEY)],Programs_Active20[LONG TEXT])","v":"Criminal Department"}]
[3405,130,"Y",240,"EACH","INPUT","ADOPTEDBUD",null,null,null,null,"Criminal Department (130)","# of New Hire Orientation auto-assigned","# of New Hire Orientation auto-assigned",{"$f":"_xlfn.XLOOKUP(Measures_Table[[#This Row],[PM Program]],Programs_Active20[ZSBPPROGM (KEY)],Programs_Active20[LONG TEXT])","v":"Criminal Department"}]
[3406,130,"Y",240,"PERCENT","EFFICIENCY","ADOPTEDBUD",null,null,null,null,"Criminal Department (130)","# of TC Share It Reports Received","# of TC Share It Reports Received",{"$f":"_xlfn.XLOOKUP(Measures_Table[[#This Row],[PM Program]],Programs_Active20[ZSBPPROGM (KEY)],Programs_Active20[LONG TEXT])","v":"Criminal Department"}]
[3407,130,"Y",240,"PERCENT","EFFICIENCY","ADOPTEDBUD",null,null,null,null,"Criminal Department (130)","# of HRMD Internal Investigations Receiv","# of HRMD Internal Investigations Received",{"$f":"_xlfn.XLOOKUP(Measures_Table[[#This Row],[PM Program]],Programs_Active20[ZSBPPROGM (KEY)],Programs_Active20[LONG TEXT])","v":"Criminal Department"}]
[3408,130,"Y",240,"PERCENT","EFFICIENCY","ADOPTEDBUD",null,null,null,null,"Criminal Department (130)","% Increase in applicant through TP&E ext","% Increase in applicant through TP&E external job platforms",{"$f":"_xlfn.XLOOKUP(Measures_Table[[#This Row],[PM Program]],Programs_Active20[ZSBPPROGM (KEY)],Programs_Active20[LONG TEXT])","v":"Criminal Department"}]
[3409,130,"Y",240,"PERCENT","EFFICIENCY","ADOPTEDBUD",null,null,null,null,"Criminal Department (130)","# of Staff recognized in Employee Apprec","# of Staff recognized in Employee Appreciatation Court Resolution",{"$f":"_xlfn.XLOOKUP(Measures_Table[[#This Row],[PM Program]],Programs_Active20[ZSBPPROGM (KEY)],Programs_Active20[LONG TEXT])","v":"Criminal Department"}]
[3410,130,"Y",240,"PERCENT","EFFICIENCY","ADOPTEDBUD",null,null,null,null,"Criminal Department (130)","Average # of HRMD General Information Li","Average # of HRMD General Information Line calls answered",{"$f":"_xlfn.XLOOKUP(Measures_Table[[#This Row],[PM Program]],Programs_Active20[ZSBPPROGM (KEY)],Programs_Active20[LONG TEXT])","v":"Criminal Department"}]
[3411,130,"Y",240,"PERCENT","EFFICIENCY","ADOPTEDBUD",null,null,null,null,"Criminal Department (130)","# of Termination files sent offsite","# of Termination files sent offsite",{"$f":"_xlfn.XLOOKUP(Measures_Table[[#This Row],[PM Program]],Programs_Active20[ZSBPPROGM (KEY)],Programs_Active20[LONG TEXT])","v":"Criminal Department"}]
[3412,149,"Y",184,"PERCENT","OUTCOME","ADOPTEDBUD",null,null,null,null,"Financial Services (149)","Average # of Employee Files Created Annu","Average # of Employee Files Created Annually",{"$f":"_xlfn.XLOOKUP(Measures_Table[[#This Row],[PM Program]],Programs_Active20[ZSBPPROGM (KEY)],Programs_Active20[LONG TEXT])","v":"Financial Services"}]
[3413,112,"Y",29,"DAYS","OUTCOME","ADOPTEDBUD",null,null,null,null,"Application Dev & Productn Support (112)","Maintain Budget within Guidelines (1=yes","Maintain Budget within Guidelines (1=yes, 0=no)",{"$f":"_xlfn.XLOOKUP(Measures_Table[[#This Row],[PM Program]],Programs_Active20[ZSBPPROGM (KEY)],Programs_Active20[LONG TEXT])","v":"Application Development & Production Support"}]
[3414,112,"Y",29,"DAYS","OUTCOME","ADOPTEDBUD",null,null,null,null,"Application Dev & Productn Support (112)","Adverse Impacts (penalties, late fees, e","Adverse Impacts (penalties, late fees, etc.) on the Operating Budget",{"$f":"_xlfn.XLOOKUP(Measures_Table[[#This Row],[PM Program]],Programs_Active20[ZSBPPROGM (KEY)],Programs_Active20[LONG TEXT])","v":"Application Development & Production Support"}]
[3415,112,"Y",29,"EACH","OUTPUT","ADOPTEDBUD",null,null,null,null,"Application Dev & Productn Support (112)","Overall Operating Budget (General Fund)","Overall Operating Budget (General Fund)",{"$f":"_xlfn.XLOOKUP(Measures_Table[[#This Row],[PM Program]],Programs_Active20[ZSBPPROGM (KEY)],Programs_Active20[LONG TEXT])","v":"Application Development & Production Support"}]
[3416,112,"Y",29,"EACH","OUTPUT","ADOPTEDBUD",null,null,null,null,"Application Dev & Productn Support (112)","% Remaining Budget at year end","% Remaining Budget at year end",{"$f":"_xlfn.XLOOKUP(Measures_Table[[#This Row],[PM Program]],Programs_Active20[ZSBPPROGM (KEY)],Programs_Active20[LONG TEXT])","v":"Application Development & Production Support"}]
[3417,112,"Y",29,"EACH","OUTPUT","ADOPTEDBUD",null,null,null,null,"Application Dev & Productn Support (112)","# of jail population and related analyse","# of jail population and related analyses conducted",{"$f":"_xlfn.XLOOKUP(Measures_Table[[#This Row],[PM Program]],Programs_Active20[ZSBPPROGM (KEY)],Programs_Active20[LONG TEXT])","v":"Application Development & Production Support"}]
[3418,112,"Y",29,"EACH","OUTPUT","ADOPTEDBUD",null,null,null,null,"Application Dev & Productn Support (112)","Percent successfully discharged from SOA","Percent successfully discharged from SOAR",{"$f":"_xlfn.XLOOKUP(Measures_Table[[#This Row],[PM Program]],Programs_Active20[ZSBPPROGM (KEY)],Programs_Active20[LONG TEXT])","v":"Application Development & Production Support"}]
[3419,116,"Y",176,"EACH","OUTCOME","ADOPTEDBUD",null,null,null,null,"Veterans Services (116)","Percent of youth receiving Care Coordina","Percent of youth receiving Care Coordination and/or Family Support",{"$f":"_xlfn.XLOOKUP(Measures_Table[[#This Row],[PM Program]],Programs_Active20[ZSBPPROGM (KEY)],Programs_Active20[LONG TEXT])","v":"Veterans Services"}]
[3420,116,"Y",176,"EACH","OUTPUT","ADOPTEDBUD",null,null,null,null,"Veterans Services (116)","Debt Claim Hearings","Debt Claim Hearings",{"$f":"_xlfn.XLOOKUP(Measures_Table[[#This Row],[PM Program]],Programs_Active20[ZSBPPROGM (KEY)],Programs_Active20[LONG TEXT])","v":"Veterans Services"}]
[3421,116,"Y",176,"EACH","EFFICIENCY","ADOPTEDBUD",null,null,null,null,"Veterans Services (116)","Small Claim Hearings","Small Claim Hearings",{"$f":"_xlfn.XLOOKUP(Measures_Table[[#This Row],[PM Program]],Programs_Active20[ZSBPPROGM (KEY)],Programs_Active20[LONG TEXT])","v":"Veterans Services"}]
[3422,116,"Y",176,"EACH","OUTPUT","ADOPTEDBUD",null,null,null,null,"Veterans Services (116)","Eviction Hearings","Eviction Hearings",{"$f":"_xlfn.XLOOKUP(Measures_Table[[#This Row],[PM Program]],Programs_Active20[ZSBPPROGM (KEY)],Programs_Active20[LONG TEXT])","v":"Veterans Services"}]
[3423,116,"Y",176,"EACH","INPUT","ADOPTEDBUD",null,null,null,null,"Veterans Services (116)","Truant Conduct Hearings","Truant Conduct Hearings",{"$f":"_xlfn.XLOOKUP(Measures_Table[[#This Row],[PM Program]],Programs_Active20[ZSBPPROGM (KEY)],Programs_Active20[LONG TEXT])","v":"Veterans Services"}]
[3424,116,"Y",176,"EACH","OUTPUT","ADOPTEDBUD",null,null,null,null,"Veterans Services (116)","Total Civil Hearings Held","Total Civil Hearings Held",{"$f":"_xlfn.XLOOKUP(Measures_Table[[#This Row],[PM Program]],Programs_Active20[ZSBPPROGM (KEY)],Programs_Active20[LONG TEXT])","v":"Veterans Services"}]
[3425,116,"Y",176,"EACH","OUTCOME","ADOPTEDBUD",null,null,null,null,"Veterans Services (116)","Number of non-bond projects TCHFC (workf","Number of non-bond projects TCHFC (workforce)",{"$f":"_xlfn.XLOOKUP(Measures_Table[[#This Row],[PM Program]],Programs_Active20[ZSBPPROGM (KEY)],Programs_Active20[LONG TEXT])","v":"Veterans Services"}]
[3426,116,"Y",176,"EACH","OUTCOME","ADOPTEDBUD",null,null,null,null,"Veterans Services (116)","Class C Dispositions","Class C Dispositions",{"$f":"_xlfn.XLOOKUP(Measures_Table[[#This Row],[PM Program]],Programs_Active20[ZSBPPROGM (KEY)],Programs_Active20[LONG TEXT])","v":"Veterans Services"}]
[3427,112,"Y",300,"EACH","OUTPUT","ADOPTEDBUD",null,null,null,null,"Information Security (112)","Violation of Promise/Failure to Appear C","Violation of Promise/Failure to Appear Cases Filed",{"$f":"_xlfn.XLOOKUP(Measures_Table[[#This Row],[PM Program]],Programs_Active20[ZSBPPROGM (KEY)],Programs_Active20[LONG TEXT])","v":"Information Security"}]
[3428,112,"Y",300,"PERCENT","OUTCOME","ADOPTEDBUD",null,null,null,null,"Information Security (112)","% of Cite & Release Appeared","% of Cite & Release Appeared",{"$f":"_xlfn.XLOOKUP(Measures_Table[[#This Row],[PM Program]],Programs_Active20[ZSBPPROGM (KEY)],Programs_Active20[LONG TEXT])","v":"Information Security"}]
[3429,137,"Y",69,"EACH","OUTPUT","ADOPTEDBUD",null,null,null,null,"CID - Major/Spec/Env/Support (137)","% of Cite & Release Failure to Appear","% of Cite & Release Failure to Appear",{"$f":"_xlfn.XLOOKUP(Measures_Table[[#This Row],[PM Program]],Programs_Active20[ZSBPPROGM (KEY)],Programs_Active20[LONG TEXT])","v":"CID - Major Crimes / Special Crimes / Environmental / Support"}]
[3430,137,"Y",69,"EACH","OUTPUT","ADOPTEDBUD",null,null,null,null,"CID - Major/Spec/Env/Support (137)","% of Cite & Release Reduced/Rejected","% of Cite & Release Reduced/Rejected",{"$f":"_xlfn.XLOOKUP(Measures_Table[[#This Row],[PM Program]],Programs_Active20[ZSBPPROGM (KEY)],Programs_Active20[LONG TEXT])","v":"CID - Major Crimes / Special Crimes / Environmental / Support"}]
[3431,137,"Y",69,"PERCENT","OUTCOME","ADOPTEDBUD",null,null,null,null,"CID - Major/Spec/Env/Support (137)","Theft Class B Cases Filed","Theft Class B Cases Filed",{"$f":"_xlfn.XLOOKUP(Measures_Table[[#This Row],[PM Program]],Programs_Active20[ZSBPPROGM (KEY)],Programs_Active20[LONG TEXT])","v":"CID - Major Crimes / Special Crimes / Environmental / Support"}]
[3432,137,"Y",69,"PERCENT","OUTCOME","ADOPTEDBUD",null,null,null,null,"CID - Major/Spec/Env/Support (137)","DWLI Class B Cases Filed","DWLI Class B Cases Filed",{"$f":"_xlfn.XLOOKUP(Measures_Table[[#This Row],[PM Program]],Programs_Active20[ZSBPPROGM (KEY)],Programs_Active20[LONG TEXT])","v":"CID - Major Crimes / Special Crimes / Environmental / Support"}]
[3433,137,"Y",69,"EACH","INPUT","ADOPTEDBUD",null,null,null,null,"CID - Major/Spec/Env/Support (137)","% of Theft Class B Reductions (Now Class","% of Theft Class B Reductions (Now Class C)",{"$f":"_xlfn.XLOOKUP(Measures_Table[[#This Row],[PM Program]],Programs_Active20[ZSBPPROGM (KEY)],Programs_Active20[LONG TEXT])","v":"CID - Major Crimes / Special Crimes / Environmental / Support"}]
[3434,112,"Y",312,"EACH","OUTPUT","BLACKBOOK",null,null,null,null,"Offsite Storage (112)","% of Theft Class B Cases Rejected","% of Theft Class B Cases Rejected",{"$f":"_xlfn.XLOOKUP(Measures_Table[[#This Row],[PM Program]],Programs_Active20[ZSBPPROGM (KEY)],Programs_Active20[LONG TEXT])","v":"Offsite Storage"}]
[3435,112,"Y",312,"EACH","OUTPUT","BLACKBOOK",null,null,null,null,"Offsite Storage (112)","% of Theft Class B - Degree Remains","% of Theft Class B - Degree Remains",{"$f":"_xlfn.XLOOKUP(Measures_Table[[#This Row],[PM Program]],Programs_Active20[ZSBPPROGM (KEY)],Programs_Active20[LONG TEXT])","v":"Offsite Storage"}]
[3436,112,"Y",312,"EACH","EFFICIENCY","BLACKBOOK",null,null,null,null,"Offsite Storage (112)","% of DWLI Class B Reductions (Now Class","% of DWLI Class B Reductions (Now Class C)",{"$f":"_xlfn.XLOOKUP(Measures_Table[[#This Row],[PM Program]],Programs_Active20[ZSBPPROGM (KEY)],Programs_Active20[LONG TEXT])","v":"Offsite Storage"}]
[3437,112,"Y",312,"PERCENT","OUTCOME","BLACKBOOK",null,null,null,null,"Offsite Storage (112)","% of DWLI Class B Cases Rejected","% of DWLI Class B Cases Rejected",{"$f":"_xlfn.XLOOKUP(Measures_Table[[#This Row],[PM Program]],Programs_Active20[ZSBPPROGM (KEY)],Programs_Active20[LONG TEXT])","v":"Offsite Storage"}]
[3438,112,"Y",312,"PERCENT","OUTCOME","BLACKBOOK",null,null,null,null,"Offsite Storage (112)","% of DWLI Class B - Degree Remains","% of DWLI Class B - Degree Remains",{"$f":"_xlfn.XLOOKUP(Measures_Table[[#This Row],[PM Program]],Programs_Active20[ZSBPPROGM (KEY)],Programs_Active20[LONG TEXT])","v":"Offsite Storage"}]
[3439,112,"Y",313,"DAYS","EFFICIENCY","ADOPTEDBUD",null,null,null,null,"Print Shop (112)","% of customers satisfied with services","% of customers satisfied with services \n",{"$f":"_xlfn.XLOOKUP(Measures_Table[[#This Row],[PM Program]],Programs_Active20[ZSBPPROGM (KEY)],Programs_Active20[LONG TEXT])","v":"Print Shop"}]
[3440,112,"Y",313,"PERCENT","OUTCOME","ADOPTEDBUD",null,null,null,null,"Print Shop (112)","Average feature lead time in days","Average feature lead time in days",{"$f":"_xlfn.XLOOKUP(Measures_Table[[#This Row],[PM Program]],Programs_Active20[ZSBPPROGM (KEY)],Programs_Active20[LONG TEXT])","v":"Print Shop"}]
[3441,112,"Y",313,"EACH","OUTPUT","BLACKBOOK",null,null,null,null,"Print Shop (112)","Feature cycle time in days","Feature cycle time in days",{"$f":"_xlfn.XLOOKUP(Measures_Table[[#This Row],[PM Program]],Programs_Active20[ZSBPPROGM (KEY)],Programs_Active20[LONG TEXT])","v":"Print Shop"}]
[3442,112,"Y",314,"EACH","OUTCOME","ADOPTEDBUD",null,null,null,null,"Archives (112)","Number of legacy applications migrated t","Number of legacy applications migrated to the cloud",{"$f":"_xlfn.XLOOKUP(Measures_Table[[#This Row],[PM Program]],Programs_Active20[ZSBPPROGM (KEY)],Programs_Active20[LONG TEXT])","v":"Archives"}]
[3443,112,"Y",314,"EACH","OUTPUT","BLACKBOOK",null,null,null,null,"Archives (112)","Number of new applications developed and","Number of new applications developed and placed into the cloud",{"$f":"_xlfn.XLOOKUP(Measures_Table[[#This Row],[PM Program]],Programs_Active20[ZSBPPROGM (KEY)],Programs_Active20[LONG TEXT])","v":"Archives"}]
[3444,112,"Y",314,"EACH","OUTCOME","BLACKBOOK",null,null,null,null,"Archives (112)","Number of new websites","Number of new websites",{"$f":"_xlfn.XLOOKUP(Measures_Table[[#This Row],[PM Program]],Programs_Active20[ZSBPPROGM (KEY)],Programs_Active20[LONG TEXT])","v":"Archives"}]
[3445,112,"Y",315,"PERCENT","OUTCOME","ADOPTEDBUD",null,null,null,null,"Copiers & Central Repairs (112)","Number of website major enhancements","Number of website major enhancements",{"$f":"_xlfn.XLOOKUP(Measures_Table[[#This Row],[PM Program]],Programs_Active20[ZSBPPROGM (KEY)],Programs_Active20[LONG TEXT])","v":"Copiers & Central Repairs"}]
[3446,112,"Y",315,"EACH","OUTPUT","BLACKBOOK",null,null,null,null,"Copiers & Central Repairs (112)","Grant Applications (Federal/State/Local)","Grant Applications (Federal/State/Local)",{"$f":"_xlfn.XLOOKUP(Measures_Table[[#This Row],[PM Program]],Programs_Active20[ZSBPPROGM (KEY)],Programs_Active20[LONG TEXT])","v":"Copiers & Central Repairs"}]
[3447,112,"Y",316,"EACH","OUTCOME","BLACKBOOK",null,null,null,null,"Document Imaging (112)","# of Women and LGBTQ+ Veterans and Depen","# of Women and LGBTQ+ Veterans and Dependents Seen",{"$f":"_xlfn.XLOOKUP(Measures_Table[[#This Row],[PM Program]],Programs_Active20[ZSBPPROGM (KEY)],Programs_Active20[LONG TEXT])","v":"Document Imaging"}]
[3448,112,"Y",316,"EACH","OUTPUT","ADOPTEDBUD",null,null,null,null,"Document Imaging (112)","# of VA claims Submitted","# of VA claims Submitted",{"$f":"_xlfn.XLOOKUP(Measures_Table[[#This Row],[PM Program]],Programs_Active20[ZSBPPROGM (KEY)],Programs_Active20[LONG TEXT])","v":"Document Imaging"}]
[3449,112,"Y",316,"EACH","OUTPUT","BLACKBOOK",null,null,null,null,"Document Imaging (112)","# of new VA claims","# of new VA claims",{"$f":"_xlfn.XLOOKUP(Measures_Table[[#This Row],[PM Program]],Programs_Active20[ZSBPPROGM (KEY)],Programs_Active20[LONG TEXT])","v":"Document Imaging"}]
[3450,112,"Y",317,"PERCENT","OUTCOME","ADOPTEDBUD",null,null,null,null,"Mail Services (112)","# of new clients","# of new clients",{"$f":"_xlfn.XLOOKUP(Measures_Table[[#This Row],[PM Program]],Programs_Active20[ZSBPPROGM (KEY)],Programs_Active20[LONG TEXT])","v":"Mail Services"}]
[3451,112,"Y",317,"EACH","OUTPUT","ADOPTEDBUD",null,null,null,null,"Mail Services (112)","# of completed VA Claims","# of completed VA Claims",{"$f":"_xlfn.XLOOKUP(Measures_Table[[#This Row],[PM Program]],Programs_Active20[ZSBPPROGM (KEY)],Programs_Active20[LONG TEXT])","v":"Mail Services"}]
[3452,123,"Y",47,"EACH","OUTPUT","ADOPTEDBUD",null,null,null,null,"Investigations (123)","Veterans assisted under Employment Recru","Veterans assisted under Employment Recruitment and Transitional assistance",{"$f":"_xlfn.XLOOKUP(Measures_Table[[#This Row],[PM Program]],Programs_Active20[ZSBPPROGM (KEY)],Programs_Active20[LONG TEXT])","v":"Investigations"}]
[3453,123,"Y",45,"DAYS","OUTCOME","ADOPTEDBUD",null,null,null,null,"Special Victims Unit (123)","# of Incarcerated veterans assisted","# of Incarcerated veterans assisted",{"$f":"_xlfn.XLOOKUP(Measures_Table[[#This Row],[PM Program]],Programs_Active20[ZSBPPROGM (KEY)],Programs_Active20[LONG TEXT])","v":"Special Victims Unit"}]
[3454,123,"Y",45,"DAYS","OUTCOME","ADOPTEDBUD",null,null,null,null,"Special Victims Unit (123)","Risk Age (how long does it take to remed","Risk Age (how long does it take to remediate risks)",{"$f":"_xlfn.XLOOKUP(Measures_Table[[#This Row],[PM Program]],Programs_Active20[ZSBPPROGM (KEY)],Programs_Active20[LONG TEXT])","v":"Special Victims Unit"}]
[3455,123,"Y",45,"DAYS","OUTCOME","ADOPTEDBUD",null,null,null,null,"Special Victims Unit (123)","Open vs. Close Ratio","Open vs. Close Ratio",{"$f":"_xlfn.XLOOKUP(Measures_Table[[#This Row],[PM Program]],Programs_Active20[ZSBPPROGM (KEY)],Programs_Active20[LONG TEXT])","v":"Special Victims Unit"}]
[3456,123,"Y",45,"DAYS","OUTCOME","ADOPTEDBUD",null,null,null,null,"Special Victims Unit (123)","CID cases activity","CID cases activity",{"$f":"_xlfn.XLOOKUP(Measures_Table[[#This Row],[PM Program]],Programs_Active20[ZSBPPROGM (KEY)],Programs_Active20[LONG TEXT])","v":"Special Victims Unit"}]
[3457,158,"Y",159,"PERCENT","OUTCOME","ADOPTEDBUD",null,null,null,null,"Parenting in Recovery (158)","CID - current open cases","CID - current open cases",{"$f":"_xlfn.XLOOKUP(Measures_Table[[#This Row],[PM Program]],Programs_Active20[ZSBPPROGM (KEY)],Programs_Active20[LONG TEXT])","v":"Parenting in Recovery"}]
[3458,145,"Y",310,"PERCENT","OUTPUT","ADOPTEDBUD",null,null,null,null,"IT/Planning and Research (145)","% of CID cases open","% of CID cases open",{"$f":"_xlfn.XLOOKUP(Measures_Table[[#This Row],[PM Program]],Programs_Active20[ZSBPPROGM (KEY)],Programs_Active20[LONG TEXT])","v":"IT/Planning and Research"}]
[3459,145,"Y",310,"PERCENT","OUTPUT","ADOPTEDBUD",null,null,null,null,"IT/Planning and Research (145)","% of CID cases closed","% of CID cases closed",{"$f":"_xlfn.XLOOKUP(Measures_Table[[#This Row],[PM Program]],Programs_Active20[ZSBPPROGM (KEY)],Programs_Active20[LONG TEXT])","v":"IT/Planning and Research"}]
[3460,145,"Y",310,"EACH","OUTPUT","ADOPTEDBUD",null,null,null,null,"IT/Planning and Research (145)","No of Sex Offenders Registering per mont","No of Sex Offenders Registering per month ",{"$f":"_xlfn.XLOOKUP(Measures_Table[[#This Row],[PM Program]],Programs_Active20[ZSBPPROGM (KEY)],Programs_Active20[LONG TEXT])","v":"IT/Planning and Research"}]
[3461,145,"Y",310,"EACH","OUTPUT","ADOPTEDBUD",null,null,null,null,"IT/Planning and Research (145)","# Cu. Ft. of new boxes of records sent t","# Cu. Ft. of new boxes of records sent to offsite storage",{"$f":"_xlfn.XLOOKUP(Measures_Table[[#This Row],[PM Program]],Programs_Active20[ZSBPPROGM (KEY)],Programs_Active20[LONG TEXT])","v":"IT/Planning and Research"}]
[3462,145,"Y",310,"EACH","OUTPUT","ADOPTEDBUD",null,null,null,null,"IT/Planning and Research (145)","Total cu. ft. of records in storage","Total cu. ft. of records in storage",{"$f":"_xlfn.XLOOKUP(Measures_Table[[#This Row],[PM Program]],Programs_Active20[ZSBPPROGM (KEY)],Programs_Active20[LONG TEXT])","v":"IT/Planning and Research"}]
[3463,149,"Y",131,"EACH","OUTPUT","ADOPTEDBUD",null,null,null,null,"Natural Resources Program (149)","Number of cu. ft. permanently removed fr","Number of cu. ft. permanently removed from storage.",{"$f":"_xlfn.XLOOKUP(Measures_Table[[#This Row],[PM Program]],Programs_Active20[ZSBPPROGM (KEY)],Programs_Active20[LONG TEXT])","v":"Natural Resources Program"}]
[3464,149,"Y",131,"EACH","OUTPUT","ADOPTEDBUD",null,null,null,null,"Natural Resources Program (149)","Overall Score per Survey – Offsite Stora","Overall Score per Survey – Offsite Storage.",{"$f":"_xlfn.XLOOKUP(Measures_Table[[#This Row],[PM Program]],Programs_Active20[ZSBPPROGM (KEY)],Programs_Active20[LONG TEXT])","v":"Natural Resources Program"}]
[3465,149,"Y",140,"EACH","OUTCOME","BLACKBOOK",null,null,null,null,"TNR Human Resources (149)","Overall Score per Survey – Secure Shredd","Overall Score per Survey – Secure Shredding.",{"$f":"_xlfn.XLOOKUP(Measures_Table[[#This Row],[PM Program]],Programs_Active20[ZSBPPROGM (KEY)],Programs_Active20[LONG TEXT])","v":"TNR Human Resources"}]
[3466,149,"Y",140,"EACH","OUTCOME","BLACKBOOK",null,null,null,null,"TNR Human Resources (149)","# Days Turnaround","# Days Turnaround",{"$f":"_xlfn.XLOOKUP(Measures_Table[[#This Row],[PM Program]],Programs_Active20[ZSBPPROGM (KEY)],Programs_Active20[LONG TEXT])","v":"TNR Human Resources"}]
[3467,145,"Y",309,"PERCENT","OUTCOME","ADOPTEDBUD",null,null,null,null,"Social Services (145)","Customer Satisfaction per survey","Customer Satisfaction per survey",{"$f":"_xlfn.XLOOKUP(Measures_Table[[#This Row],[PM Program]],Programs_Active20[ZSBPPROGM (KEY)],Programs_Active20[LONG TEXT])","v":"Social Services"}]
[3468,145,"Y",309,"EACH","OUTCOME","ADOPTEDBUD",null,null,null,null,"Social Services (145)","# Impressions Produced","# Impressions Produced",{"$f":"_xlfn.XLOOKUP(Measures_Table[[#This Row],[PM Program]],Programs_Active20[ZSBPPROGM (KEY)],Programs_Active20[LONG TEXT])","v":"Social Services"}]
[3469,155,"Y",297,"EACH","OUTCOME","ADOPTEDBUD",null,null,null,null,"Workforce Development Taskforce WD (155)","Cu. Ft. Archival Documents Preserved","Cu. Ft. Archival Documents Preserved",{"$f":"_xlfn.XLOOKUP(Measures_Table[[#This Row],[PM Program]],Programs_Active20[ZSBPPROGM (KEY)],Programs_Active20[LONG TEXT])","v":"Workforce Development Taskforce (WD)\n"}]
[3470,155,"Y",297,"EACH","OUTCOME","ADOPTEDBUD",null,null,null,null,"Workforce Development Taskforce WD (155)","Researchers/Patrons Served","Researchers/Patrons Served",{"$f":"_xlfn.XLOOKUP(Measures_Table[[#This Row],[PM Program]],Programs_Active20[ZSBPPROGM (KEY)],Programs_Active20[LONG TEXT])","v":"Workforce Development Taskforce (WD)\n"}]
[3471,149,"Y",140,"PERCENT","OUTCOME","ADOPTEDBUD",null,null,null,null,"TNR Human Resources (149)","History Day","History Day",{"$f":"_xlfn.XLOOKUP(Measures_Table[[#This Row],[PM Program]],Programs_Active20[ZSBPPROGM (KEY)],Programs_Active20[LONG TEXT])","v":"TNR Human Resources"}]
[3472,106,"Y",178,"PERCENT","OUTCOME","ADOPTEDBUD",null,null,null,null,"Auditor's Office (106)","Overall Customer Satisfaction per Survey","Overall Customer Satisfaction per Survey",{"$f":"_xlfn.XLOOKUP(Measures_Table[[#This Row],[PM Program]],Programs_Active20[ZSBPPROGM (KEY)],Programs_Active20[LONG TEXT])","v":"Auditor's Office"}]
[3473,119,"Y",212,"EACH","OUTPUT","ADOPTEDBUD",null,null,null,null,"Criminal Division - Environmental (119)","Number of Work Orders","Number of Work Orders",{"$f":"_xlfn.XLOOKUP(Measures_Table[[#This Row],[PM Program]],Programs_Active20[ZSBPPROGM (KEY)],Programs_Active20[LONG TEXT])","v":"Criminal Division - Environmental"}]
[3474,137,"Y",60,"EACH","INPUT","ADOPTEDBUD",null,null,null,null,"Classification-Recs -CSTU/Property (137)","Images Microfilmed","Images Microfilmed",{"$f":"_xlfn.XLOOKUP(Measures_Table[[#This Row],[PM Program]],Programs_Active20[ZSBPPROGM (KEY)],Programs_Active20[LONG TEXT])","v":"Classification-Records - CSTU / Property\n"}]
[3475,137,"Y",60,"EACH","INPUT","ADOPTEDBUD",null,null,null,null,"Classification-Recs -CSTU/Property (137)","Images Scanned","Images Scanned",{"$f":"_xlfn.XLOOKUP(Measures_Table[[#This Row],[PM Program]],Programs_Active20[ZSBPPROGM (KEY)],Programs_Active20[LONG TEXT])","v":"Classification-Records - CSTU / Property\n"}]
[3476,137,"Y",60,"EACH","INPUT","ADOPTEDBUD",null,null,null,null,"Classification-Recs -CSTU/Property (137)","Expunctions and Non-Disclosures","Expunctions and Non-Disclosures",{"$f":"_xlfn.XLOOKUP(Measures_Table[[#This Row],[PM Program]],Programs_Active20[ZSBPPROGM (KEY)],Programs_Active20[LONG TEXT])","v":"Classification-Records - CSTU / Property\n"}]
[3477,137,"Y",60,"EACH","INPUT","ADOPTEDBUD",null,null,null,null,"Classification-Recs -CSTU/Property (137)","Overall Satisfaction per Survey","Overall Satisfaction per Survey",{"$f":"_xlfn.XLOOKUP(Measures_Table[[#This Row],[PM Program]],Programs_Active20[ZSBPPROGM (KEY)],Programs_Active20[LONG TEXT])","v":"Classification-Records - CSTU / Property\n"}]
[3478,137,"Y",60,"EACH","INPUT","ADOPTEDBUD",null,null,null,null,"Classification-Recs -CSTU/Property (137)","# Pieces of mail metered annually","# Pieces of mail metered annually",{"$f":"_xlfn.XLOOKUP(Measures_Table[[#This Row],[PM Program]],Programs_Active20[ZSBPPROGM (KEY)],Programs_Active20[LONG TEXT])","v":"Classification-Records - CSTU / Property\n"}]
[3479,137,"Y",60,"PERCENT","INPUT","ADOPTEDBUD",null,null,null,null,"Classification-Recs -CSTU/Property (137)","DME Uploads","DME Uploads",{"$f":"_xlfn.XLOOKUP(Measures_Table[[#This Row],[PM Program]],Programs_Active20[ZSBPPROGM (KEY)],Programs_Active20[LONG TEXT])","v":"Classification-Records - CSTU / Property\n"}]
[3480,137,"Y",54,"EACH","OUTPUT","ADOPTEDBUD",null,null,null,null,"Canine (137)","# of days received to indictment – sexua","# of days received to indictment – sexual assault",{"$f":"_xlfn.XLOOKUP(Measures_Table[[#This Row],[PM Program]],Programs_Active20[ZSBPPROGM (KEY)],Programs_Active20[LONG TEXT])","v":"Canine"}]
[3481,137,"Y",55,"EACH","INPUT","ADOPTEDBUD",null,null,null,null,"Central Booking (137)","# of days from indictment to disposition","# of days from indictment to disposition – sexual assault",{"$f":"_xlfn.XLOOKUP(Measures_Table[[#This Row],[PM Program]],Programs_Active20[ZSBPPROGM (KEY)],Programs_Active20[LONG TEXT])","v":"Central Booking"}]
[3482,137,"Y",55,"EACH","OUTPUT","ADOPTEDBUD",null,null,null,null,"Central Booking (137)","# of days received to indictment – famil","# of days received to indictment – family violence",{"$f":"_xlfn.XLOOKUP(Measures_Table[[#This Row],[PM Program]],Programs_Active20[ZSBPPROGM (KEY)],Programs_Active20[LONG TEXT])","v":"Central Booking"}]
[3483,137,"Y",56,"EACH","OUTPUT","ADOPTEDBUD",null,null,null,null,"Central Records (137)","# of days from indictment to disposition","# of days from indictment to disposition – family violence",{"$f":"_xlfn.XLOOKUP(Measures_Table[[#This Row],[PM Program]],Programs_Active20[ZSBPPROGM (KEY)],Programs_Active20[LONG TEXT])","v":"Central Records"}]
[3484,137,"Y",56,"EACH","INPUT","ADOPTEDBUD",null,null,null,null,"Central Records (137)","% of parents demonstrating improvd PSI-4","Percentage of parents who demonstrate improvement on the PSI-4\n",{"$f":"_xlfn.XLOOKUP(Measures_Table[[#This Row],[PM Program]],Programs_Active20[ZSBPPROGM (KEY)],Programs_Active20[LONG TEXT])","v":"Central Records"}]
[3485,137,"Y",57,"EACH","OUTPUT","ADOPTEDBUD",null,null,null,null,"Central Warrants (137)","Location rate of physical technology ass","Location rate of physical technology assets",{"$f":"_xlfn.XLOOKUP(Measures_Table[[#This Row],[PM Program]],Programs_Active20[ZSBPPROGM (KEY)],Programs_Active20[LONG TEXT])","v":"Central Warrants"}]
[3486,137,"Y",57,"EACH","OUTPUT","ADOPTEDBUD",null,null,null,null,"Central Warrants (137)","Percent of service requests and issues r","Percent of service requests and issues resolved within the prescribed service level agreements",{"$f":"_xlfn.XLOOKUP(Measures_Table[[#This Row],[PM Program]],Programs_Active20[ZSBPPROGM (KEY)],Programs_Active20[LONG TEXT])","v":"Central Warrants"}]
[3487,137,"Y",57,"EACH","OUTPUT","ADOPTEDBUD",null,null,null,null,"Central Warrants (137)","Data processes automated annually","Data processes automated annually",{"$f":"_xlfn.XLOOKUP(Measures_Table[[#This Row],[PM Program]],Programs_Active20[ZSBPPROGM (KEY)],Programs_Active20[LONG TEXT])","v":"Central Warrants"}]
[3488,137,"Y",57,"EACH","INPUT","ADOPTEDBUD",null,null,null,null,"Central Warrants (137)","Number of releases per year","Number of releases per year",{"$f":"_xlfn.XLOOKUP(Measures_Table[[#This Row],[PM Program]],Programs_Active20[ZSBPPROGM (KEY)],Programs_Active20[LONG TEXT])","v":"Central Warrants"}]
[3489,137,"Y",57,"EACH","OUTPUT","ADOPTEDBUD",null,null,null,null,"Central Warrants (137)","Number of trainings held for staff","Number of trainings held for staff",{"$f":"_xlfn.XLOOKUP(Measures_Table[[#This Row],[PM Program]],Programs_Active20[ZSBPPROGM (KEY)],Programs_Active20[LONG TEXT])","v":"Central Warrants"}]
[3490,137,"Y",57,"EACH","INPUT","ADOPTEDBUD",null,null,null,null,"Central Warrants (137)","# linear feet of soil and water conserva","# linear feet of soil and water conservation projects completed\n",{"$f":"_xlfn.XLOOKUP(Measures_Table[[#This Row],[PM Program]],Programs_Active20[ZSBPPROGM (KEY)],Programs_Active20[LONG TEXT])","v":"Central Warrants"}]
[3491,137,"Y",69,"EACH","INPUT","ADOPTEDBUD",null,null,null,null,"CID - Major/Spec/Env/Support (137)","# plants or trees planted","# plants or trees planted",{"$f":"_xlfn.XLOOKUP(Measures_Table[[#This Row],[PM Program]],Programs_Active20[ZSBPPROGM (KEY)],Programs_Active20[LONG TEXT])","v":"CID - Major Crimes / Special Crimes / Environmental / Support"}]
[3492,137,"Y",68,"EACH","INPUT","ADOPTEDBUD",null,null,null,null,"Crime Lab - Evidence Control Unit (137)","# of new hires per calendar year","# of new hires per calendar year",{"$f":"_xlfn.XLOOKUP(Measures_Table[[#This Row],[PM Program]],Programs_Active20[ZSBPPROGM (KEY)],Programs_Active20[LONG TEXT])","v":{"$error":"#N/A"}}]
[3493,137,"Y",68,"EACH","OUTPUT","ADOPTEDBUD",null,null,null,null,"Crime Lab - Evidence Control Unit (137)","# of days to fill vacant positions","# of days to fill vacant positions",{"$f":"_xlfn.XLOOKUP(Measures_Table[[#This Row],[PM Program]],Programs_Active20[ZSBPPROGM (KEY)],Programs_Active20[LONG TEXT])","v":{"$error":"#N/A"}}]
[3494,137,"Y",68,"EACH","OUTPUT","ADOPTEDBUD",null,null,null,null,"Crime Lab - Evidence Control Unit (137)","% of student successfly discharged JJAEP","Percent of student successfully discharged from JJAEP\n",{"$f":"_xlfn.XLOOKUP(Measures_Table[[#This Row],[PM Program]],Programs_Active20[ZSBPPROGM (KEY)],Programs_Active20[LONG TEXT])","v":{"$error":"#N/A"}}]
[3495,137,"Y",68,"EACH","INPUT","ADOPTEDBUD",null,null,null,null,"Crime Lab - Evidence Control Unit (137)","# of youth provided educ. related legal","Number of youth provided educational related legal assistance",{"$f":"_xlfn.XLOOKUP(Measures_Table[[#This Row],[PM Program]],Programs_Active20[ZSBPPROGM (KEY)],Programs_Active20[LONG TEXT])","v":{"$error":"#N/A"}}]
[3496,137,"Y",68,"EACH","OUTPUT","ADOPTEDBUD",null,null,null,null,"Crime Lab - Evidence Control Unit (137)","# of clients entering program participat","# of clients entering program participation",{"$f":"_xlfn.XLOOKUP(Measures_Table[[#This Row],[PM Program]],Programs_Active20[ZSBPPROGM (KEY)],Programs_Active20[LONG TEXT])","v":{"$error":"#N/A"}}]
[3497,137,"Y",68,"PERCENT","OUTPUT","ADOPTEDBUD",null,null,null,null,"Crime Lab - Evidence Control Unit (137)","# of clients entering CDL or other vocat","# of clients entering CDL or other vocational training program components\n",{"$f":"_xlfn.XLOOKUP(Measures_Table[[#This Row],[PM Program]],Programs_Active20[ZSBPPROGM (KEY)],Programs_Active20[LONG TEXT])","v":{"$error":"#N/A"}}]
[3498,137,"Y",68,"EACH","OUTPUT","ADOPTEDBUD",null,null,null,null,"Crime Lab - Evidence Control Unit (137)","Annual Turnover Rate","Annual Turnover Rate",{"$f":"_xlfn.XLOOKUP(Measures_Table[[#This Row],[PM Program]],Programs_Active20[ZSBPPROGM (KEY)],Programs_Active20[LONG TEXT])","v":{"$error":"#N/A"}}]
[3499,137,"Y",70,"EACH","INPUT","ADOPTEDBUD",null,null,null,null,"Crisis Intervention Team (137)","% SAP environment in total effort migrat","% SAP environment in total effort migrated to new systems by 12/31/2027",{"$f":"_xlfn.XLOOKUP(Measures_Table[[#This Row],[PM Program]],Programs_Active20[ZSBPPROGM (KEY)],Programs_Active20[LONG TEXT])","v":"Crisis Intervention Team"}]
[3500,137,"Y",70,"EACH","INPUT","ADOPTEDBUD",null,null,null,null,"Crisis Intervention Team (137)","# of Environmental Cases on Daily Docket","# of Environmental Cases on Daily Dockets",{"$f":"_xlfn.XLOOKUP(Measures_Table[[#This Row],[PM Program]],Programs_Active20[ZSBPPROGM (KEY)],Programs_Active20[LONG TEXT])","v":"Crisis Intervention Team"}]
[3501,137,"Y",70,"EACH","INPUT","ADOPTEDBUD",null,null,null,null,"Crisis Intervention Team (137)","Average Daily Population","Average Daily Population",{"$f":"_xlfn.XLOOKUP(Measures_Table[[#This Row],[PM Program]],Programs_Active20[ZSBPPROGM (KEY)],Programs_Active20[LONG TEXT])","v":"Crisis Intervention Team"}]
[3502,137,"Y",70,"EACH","INPUT","ADOPTEDBUD",null,null,null,null,"Crisis Intervention Team (137)","Pop count of last day of FY","Pop count of last day of FY",{"$f":"_xlfn.XLOOKUP(Measures_Table[[#This Row],[PM Program]],Programs_Active20[ZSBPPROGM (KEY)],Programs_Active20[LONG TEXT])","v":"Crisis Intervention Team"}]
[3503,137,"Y",70,"EACH","INPUT","ADOPTEDBUD",null,null,null,null,"Crisis Intervention Team (137)","MH ADP Female","MH ADP Female",{"$f":"_xlfn.XLOOKUP(Measures_Table[[#This Row],[PM Program]],Programs_Active20[ZSBPPROGM (KEY)],Programs_Active20[LONG TEXT])","v":"Crisis Intervention Team"}]
[3504,137,"Y",70,"EACH","OUTPUT","ADOPTEDBUD",null,null,null,null,"Crisis Intervention Team (137)","MH ADP Male","MH ADP Male",{"$f":"_xlfn.XLOOKUP(Measures_Table[[#This Row],[PM Program]],Programs_Active20[ZSBPPROGM (KEY)],Programs_Active20[LONG TEXT])","v":"Crisis Intervention Team"}]
[3505,137,"Y",70,"EACH","INPUT","ADOPTEDBUD",null,null,null,null,"Crisis Intervention Team (137)","MH ADP TOTAL - AVERAGE","MH ADP TOTAL - AVERAGE",{"$f":"_xlfn.XLOOKUP(Measures_Table[[#This Row],[PM Program]],Programs_Active20[ZSBPPROGM (KEY)],Programs_Active20[LONG TEXT])","v":"Crisis Intervention Team"}]
[3506,137,"Y",70,"EACH","OUTPUT","ADOPTEDBUD",null,null,null,null,"Crisis Intervention Team (137)","MH ADP % - YRLY","MH ADP % - YRLY",{"$f":"_xlfn.XLOOKUP(Measures_Table[[#This Row],[PM Program]],Programs_Active20[ZSBPPROGM (KEY)],Programs_Active20[LONG TEXT])","v":"Crisis Intervention Team"}]
[3507,137,"Y",70,"EACH","OUTPUT","ADOPTEDBUD",null,null,null,null,"Crisis Intervention Team (137)","# of Agencies Assisted","# of Agencies Assisted",{"$f":"_xlfn.XLOOKUP(Measures_Table[[#This Row],[PM Program]],Programs_Active20[ZSBPPROGM (KEY)],Programs_Active20[LONG TEXT])","v":"Crisis Intervention Team"}]
[3508,137,"Y",63,"EACH","OUTPUT","ADOPTEDBUD",null,null,null,null,"Complex Security  (137)","No. of times contraband was found","No. of times contraband was found",{"$f":"_xlfn.XLOOKUP(Measures_Table[[#This Row],[PM Program]],Programs_Active20[ZSBPPROGM (KEY)],Programs_Active20[LONG TEXT])","v":{"$error":"#N/A"}}]
[3509,137,"Y",63,"EACH","OUTPUT","ADOPTEDBUD",null,null,null,null,"Complex Security  (137)","Average no of daily bookings","Average no of daily bookings",{"$f":"_xlfn.XLOOKUP(Measures_Table[[#This Row],[PM Program]],Programs_Active20[ZSBPPROGM (KEY)],Programs_Active20[LONG TEXT])","v":{"$error":"#N/A"}}]
[3510,137,"Y",68,"EACH","OUTPUT","ADOPTEDBUD",null,null,null,null,"Crime Lab - Evidence Control Unit (137)","No. of Case Jackets & items filed with C","No. of Case Jackets & items filed with CJ",{"$f":"_xlfn.XLOOKUP(Measures_Table[[#This Row],[PM Program]],Programs_Active20[ZSBPPROGM (KEY)],Programs_Active20[LONG TEXT])","v":{"$error":"#N/A"}}]
[3511,137,"Y",68,"EACH","OUTPUT","ADOPTEDBUD",null,null,null,null,"Crime Lab - Evidence Control Unit (137)","No. of requests for police reports","No. of requests for police reports",{"$f":"_xlfn.XLOOKUP(Measures_Table[[#This Row],[PM Program]],Programs_Active20[ZSBPPROGM (KEY)],Programs_Active20[LONG TEXT])","v":{"$error":"#N/A"}}]
[3512,137,"Y",68,"EACH","OUTPUT","ADOPTEDBUD",null,null,null,null,"Crime Lab - Evidence Control Unit (137)","Condition of Bond Record Packets Entered","Condition of Bond Record Packets Entered",{"$f":"_xlfn.XLOOKUP(Measures_Table[[#This Row],[PM Program]],Programs_Active20[ZSBPPROGM (KEY)],Programs_Active20[LONG TEXT])","v":{"$error":"#N/A"}}]
[3513,137,"Y",68,"EACH","OUTPUT","ADOPTEDBUD",null,null,null,null,"Crime Lab - Evidence Control Unit (137)","# of TCIC Validation Data Entry complete","# of TCIC Validation Data Entry complete",{"$f":"_xlfn.XLOOKUP(Measures_Table[[#This Row],[PM Program]],Programs_Active20[ZSBPPROGM (KEY)],Programs_Active20[LONG TEXT])","v":{"$error":"#N/A"}}]
[3514,137,"Y",80,"DAYS","INPUT","ADOPTEDBUD",null,null,null,null,"Hospital Visitation Unit (137)","# of TCIC/NCIC Record Second Party Check","# of TCIC/NCIC Record Second Party Check completed",{"$f":"_xlfn.XLOOKUP(Measures_Table[[#This Row],[PM Program]],Programs_Active20[ZSBPPROGM (KEY)],Programs_Active20[LONG TEXT])","v":"Hospital Visitation Unit"}]
[3515,137,"Y",80,"EACH","INPUT","ADOPTEDBUD",null,null,null,null,"Hospital Visitation Unit (137)","# of warrants due for validation","# of warrants due for validation",{"$f":"_xlfn.XLOOKUP(Measures_Table[[#This Row],[PM Program]],Programs_Active20[ZSBPPROGM (KEY)],Programs_Active20[LONG TEXT])","v":"Hospital Visitation Unit"}]
[3516,137,"Y",80,"EACH","OUTPUT","ADOPTEDBUD",null,null,null,null,"Hospital Visitation Unit (137)","TDC and Federal Inmate Detainer & Releas","TDC and Federal Inmate Detainer & Release Letters",{"$f":"_xlfn.XLOOKUP(Measures_Table[[#This Row],[PM Program]],Programs_Active20[ZSBPPROGM (KEY)],Programs_Active20[LONG TEXT])","v":"Hospital Visitation Unit"}]
[3517,137,"Y",80,"HOURS","OUTPUT","ADOPTEDBUD",null,null,null,null,"Hospital Visitation Unit (137)","Phone Calls Total","Phone Calls Total",{"$f":"_xlfn.XLOOKUP(Measures_Table[[#This Row],[PM Program]],Programs_Active20[ZSBPPROGM (KEY)],Programs_Active20[LONG TEXT])","v":"Hospital Visitation Unit"}]
[3518,137,"Y",80,"EACH","OUTPUT","ADOPTEDBUD",null,null,null,null,"Hospital Visitation Unit (137)","Average cases per month","Average cases per month",{"$f":"_xlfn.XLOOKUP(Measures_Table[[#This Row],[PM Program]],Programs_Active20[ZSBPPROGM (KEY)],Programs_Active20[LONG TEXT])","v":"Hospital Visitation Unit"}]
[3519,137,"Y",80,"HOURS","OUTPUT","ADOPTEDBUD",null,null,null,null,"Hospital Visitation Unit (137)","No of Initial Calls","No of Initial Calls",{"$f":"_xlfn.XLOOKUP(Measures_Table[[#This Row],[PM Program]],Programs_Active20[ZSBPPROGM (KEY)],Programs_Active20[LONG TEXT])","v":"Hospital Visitation Unit"}]
[3520,137,"Y",80,"EACH","OUTPUT","ADOPTEDBUD",null,null,null,null,"Hospital Visitation Unit (137)","No of Follow ups","No of Follow ups",{"$f":"_xlfn.XLOOKUP(Measures_Table[[#This Row],[PM Program]],Programs_Active20[ZSBPPROGM (KEY)],Programs_Active20[LONG TEXT])","v":"Hospital Visitation Unit"}]
[3521,137,"Y",80,"HOURS","OUTPUT","ADOPTEDBUD",null,null,null,null,"Hospital Visitation Unit (137)","Total Responses","Total Responses",{"$f":"_xlfn.XLOOKUP(Measures_Table[[#This Row],[PM Program]],Programs_Active20[ZSBPPROGM (KEY)],Programs_Active20[LONG TEXT])","v":"Hospital Visitation Unit"}]
[3522,137,"Y",80,"EACH","OUTPUT","ADOPTEDBUD",null,null,null,null,"Hospital Visitation Unit (137)","No. of Crime Scene calls","No. of Crime Scene calls",{"$f":"_xlfn.XLOOKUP(Measures_Table[[#This Row],[PM Program]],Programs_Active20[ZSBPPROGM (KEY)],Programs_Active20[LONG TEXT])","v":"Hospital Visitation Unit"}]
[3523,137,"Y",80,"HOURS","OUTPUT","ADOPTEDBUD",null,null,null,null,"Hospital Visitation Unit (137)","No. of Latent Prints","No. of Latent Prints",{"$f":"_xlfn.XLOOKUP(Measures_Table[[#This Row],[PM Program]],Programs_Active20[ZSBPPROGM (KEY)],Programs_Active20[LONG TEXT])","v":"Hospital Visitation Unit"}]
[3524,137,"Y",81,"EACH","INPUT","ADOPTEDBUD",null,null,null,null,"Human Resources - Recruiting (137)","% of LP","% of LP",{"$f":"_xlfn.XLOOKUP(Measures_Table[[#This Row],[PM Program]],Programs_Active20[ZSBPPROGM (KEY)],Programs_Active20[LONG TEXT])","v":"Human Resources - Recruiting"}]
[3525,137,"Y",81,"EACH","INPUT","ADOPTEDBUD",null,null,null,null,"Human Resources - Recruiting (137)","No of Initials calls per Responder","No of Initials calls per Responder",{"$f":"_xlfn.XLOOKUP(Measures_Table[[#This Row],[PM Program]],Programs_Active20[ZSBPPROGM (KEY)],Programs_Active20[LONG TEXT])","v":"Human Resources - Recruiting"}]
[3526,137,"Y",81,"EACH","OUTPUT","ADOPTEDBUD",null,null,null,null,"Human Resources - Recruiting (137)","CIT Response MH Calls","CIT Response MH Calls",{"$f":"_xlfn.XLOOKUP(Measures_Table[[#This Row],[PM Program]],Programs_Active20[ZSBPPROGM (KEY)],Programs_Active20[LONG TEXT])","v":"Human Resources - Recruiting"}]
[3527,137,"Y",81,"EACH","INPUT","ADOPTEDBUD",null,null,null,null,"Human Resources - Recruiting (137)","MH Calls - Patrol & Cit ","MH Calls - Patrol & Cit ",{"$f":"_xlfn.XLOOKUP(Measures_Table[[#This Row],[PM Program]],Programs_Active20[ZSBPPROGM (KEY)],Programs_Active20[LONG TEXT])","v":"Human Resources - Recruiting"}]
[3528,137,"Y",86,"EACH","INPUT","ADOPTEDBUD",null,null,null,null,"Internal Affairs (137)","MH Calls - CIT ","MH Calls - CIT ",{"$f":"_xlfn.XLOOKUP(Measures_Table[[#This Row],[PM Program]],Programs_Active20[ZSBPPROGM (KEY)],Programs_Active20[LONG TEXT])","v":"Internal Affairs"}]
[3529,137,"Y",86,"EACH","INPUT","ADOPTEDBUD",null,null,null,null,"Internal Affairs (137)","MH Calls - Patrol ","MH Calls - Patrol ",{"$f":"_xlfn.XLOOKUP(Measures_Table[[#This Row],[PM Program]],Programs_Active20[ZSBPPROGM (KEY)],Programs_Active20[LONG TEXT])","v":"Internal Affairs"}]
[3530,137,"Y",86,"EACH","OUTPUT","ADOPTEDBUD",null,null,null,null,"Internal Affairs (137)","Hospital Calls (all hospital facilities)","Hospital Calls (all hospital facilities) ",{"$f":"_xlfn.XLOOKUP(Measures_Table[[#This Row],[PM Program]],Programs_Active20[ZSBPPROGM (KEY)],Programs_Active20[LONG TEXT])","v":"Internal Affairs"}]
[3531,137,"Y",87,"EACH","OUTPUT","ADOPTEDBUD",null,null,null,null,"Kitchen (137)","Total # of Responses (Primary & Back-up)","Total # of Responses (Primary & Back-up) ",{"$f":"_xlfn.XLOOKUP(Measures_Table[[#This Row],[PM Program]],Programs_Active20[ZSBPPROGM (KEY)],Programs_Active20[LONG TEXT])","v":"Kitchen"}]
[3532,137,"Y",87,"EACH","OUTPUT","ADOPTEDBUD",null,null,null,null,"Kitchen (137)","No. of jail calls (TCJ & TCCC) ","No. of jail calls (TCJ & TCCC) ",{"$f":"_xlfn.XLOOKUP(Measures_Table[[#This Row],[PM Program]],Programs_Active20[ZSBPPROGM (KEY)],Programs_Active20[LONG TEXT])","v":"Kitchen"}]
[3533,137,"Y",96,"DOLLARS","INPUT","ADOPTEDBUD",null,null,null,null,"Medical, Mental & Dental Services (137)","Total No. of EMCOT Referrals","Total No. of EMCOT Referrals",{"$f":"_xlfn.XLOOKUP(Measures_Table[[#This Row],[PM Program]],Programs_Active20[ZSBPPROGM (KEY)],Programs_Active20[LONG TEXT])","v":"Medical, Mental and Dental Services"}]
[3534,137,"Y",96,"DOLLARS","INPUT","ADOPTEDBUD",null,null,null,null,"Medical, Mental & Dental Services (137)","CIT Assist Other Calls ","CIT Assist Other Calls ",{"$f":"_xlfn.XLOOKUP(Measures_Table[[#This Row],[PM Program]],Programs_Active20[ZSBPPROGM (KEY)],Programs_Active20[LONG TEXT])","v":"Medical, Mental and Dental Services"}]
[3535,137,"Y",96,"DOLLARS","INPUT","ADOPTEDBUD",null,null,null,null,"Medical, Mental & Dental Services (137)","No of Perimeter / Security Patrols ","No of Perimeter / Security Patrols ",{"$f":"_xlfn.XLOOKUP(Measures_Table[[#This Row],[PM Program]],Programs_Active20[ZSBPPROGM (KEY)],Programs_Active20[LONG TEXT])","v":"Medical, Mental and Dental Services"}]
[3536,137,"Y",79,"EACH","OUTPUT","ADOPTEDBUD",null,null,null,null,"Traffic-CVE/DWI/HEAT/Impound/Motor (137)","No. of movement / transports ","No. of movement / transports ",{"$f":"_xlfn.XLOOKUP(Measures_Table[[#This Row],[PM Program]],Programs_Active20[ZSBPPROGM (KEY)],Programs_Active20[LONG TEXT])","v":"Traffic - CVE / DWI / HEAT / Impound / MOTORS"}]
[3537,137,"Y",79,"EACH","OUTPUT","ADOPTEDBUD",null,null,null,null,"Traffic-CVE/DWI/HEAT/Impound/Motor (137)","Evidence RCVD / Temp Returns","Evidence RCVD / Temp Returns",{"$f":"_xlfn.XLOOKUP(Measures_Table[[#This Row],[PM Program]],Programs_Active20[ZSBPPROGM (KEY)],Programs_Active20[LONG TEXT])","v":"Traffic - CVE / DWI / HEAT / Impound / MOTORS"}]
[3538,137,"Y",107,"EACH","OUTPUT","ADOPTEDBUD",null,null,null,null,"Training Academy  (137)","DPS Submissions","DPS Submissions",{"$f":"_xlfn.XLOOKUP(Measures_Table[[#This Row],[PM Program]],Programs_Active20[ZSBPPROGM (KEY)],Programs_Active20[LONG TEXT])","v":"Training Academy"}]
[3539,137,"Y",107,"EACH","INPUT","ADOPTEDBUD",null,null,null,null,"Training Academy  (137)","Evidence Destroyed","Evidence Destroyed",{"$f":"_xlfn.XLOOKUP(Measures_Table[[#This Row],[PM Program]],Programs_Active20[ZSBPPROGM (KEY)],Programs_Active20[LONG TEXT])","v":"Training Academy"}]
[3540,137,"Y",107,"HOURS","OUTPUT","ADOPTEDBUD",null,null,null,null,"Training Academy  (137)","Crime Lab Evidence Processing","Crime Lab Evidence Processing",{"$f":"_xlfn.XLOOKUP(Measures_Table[[#This Row],[PM Program]],Programs_Active20[ZSBPPROGM (KEY)],Programs_Active20[LONG TEXT])","v":"Training Academy"}]
[3541,137,"Y",108,"EACH","INPUT","ADOPTEDBUD",null,null,null,null,"Transportation (137)","Average days in hospital per inmate","Average days in hospital per inmate",{"$f":"_xlfn.XLOOKUP(Measures_Table[[#This Row],[PM Program]],Programs_Active20[ZSBPPROGM (KEY)],Programs_Active20[LONG TEXT])","v":"Transportation"}]
[3542,137,"Y",109,"EACH","OUTPUT","ADOPTEDBUD",null,null,null,null,"Victim Services (137)","Average inmates hospitalized month","Average inmates hospitalized month",{"$f":"_xlfn.XLOOKUP(Measures_Table[[#This Row],[PM Program]],Programs_Active20[ZSBPPROGM (KEY)],Programs_Active20[LONG TEXT])","v":"Victim Services"}]
[3543,137,"Y",109,"EACH","OUTPUT","ADOPTEDBUD",null,null,null,null,"Victim Services (137)","Total no of hospital runs","Total no of hospital runs",{"$f":"_xlfn.XLOOKUP(Measures_Table[[#This Row],[PM Program]],Programs_Active20[ZSBPPROGM (KEY)],Programs_Active20[LONG TEXT])","v":"Victim Services"}]
[3544,137,"Y",109,"EACH","OUTPUT","ADOPTEDBUD",null,null,null,null,"Victim Services (137)","Total no of hospital hours","Total no of hospital hours",{"$f":"_xlfn.XLOOKUP(Measures_Table[[#This Row],[PM Program]],Programs_Active20[ZSBPPROGM (KEY)],Programs_Active20[LONG TEXT])","v":"Victim Services"}]
[3545,137,"Y",109,"EACH","INPUT","ADOPTEDBUD",null,null,null,null,"Victim Services (137)","Total no of ER Runs","Total no of ER Runs",{"$f":"_xlfn.XLOOKUP(Measures_Table[[#This Row],[PM Program]],Programs_Active20[ZSBPPROGM (KEY)],Programs_Active20[LONG TEXT])","v":"Victim Services"}]
[3546,137,"Y",109,"EACH","EFFICIENCY","ADOPTEDBUD",null,null,null,null,"Victim Services (137)","Total no of ER Hours","Total no of ER Hours",{"$f":"_xlfn.XLOOKUP(Measures_Table[[#This Row],[PM Program]],Programs_Active20[ZSBPPROGM (KEY)],Programs_Active20[LONG TEXT])","v":"Victim Services"}]
[3547,137,"Y",109,"EACH","INPUT","ADOPTEDBUD",null,null,null,null,"Victim Services (137)","Total no of Medical Appt Runs","Total no of Medical Appt Runs",{"$f":"_xlfn.XLOOKUP(Measures_Table[[#This Row],[PM Program]],Programs_Active20[ZSBPPROGM (KEY)],Programs_Active20[LONG TEXT])","v":"Victim Services"}]
[3548,137,"Y",109,"EACH","OUTPUT","ADOPTEDBUD",null,null,null,null,"Victim Services (137)","Total no of Medical Appt Hours","Total no of Medical Appt Hours",{"$f":"_xlfn.XLOOKUP(Measures_Table[[#This Row],[PM Program]],Programs_Active20[ZSBPPROGM (KEY)],Programs_Active20[LONG TEXT])","v":"Victim Services"}]
[3549,137,"Y",83,"EACH","INPUT","ADOPTEDBUD",null,null,null,null,"Information Services (137)","Total no of HVU runs","Total no of HVU runs",{"$f":"_xlfn.XLOOKUP(Measures_Table[[#This Row],[PM Program]],Programs_Active20[ZSBPPROGM (KEY)],Programs_Active20[LONG TEXT])","v":{"$error":"#N/A"}}]
[3550,137,"Y",83,"EACH","INPUT","ADOPTEDBUD",null,null,null,null,"Information Services (137)","Total no of HVU hours","Total no of HVU hours",{"$f":"_xlfn.XLOOKUP(Measures_Table[[#This Row],[PM Program]],Programs_Active20[ZSBPPROGM (KEY)],Programs_Active20[LONG TEXT])","v":{"$error":"#N/A"}}]
[3551,104,"Y",189,"EACH","OUTPUT","ADOPTEDBUD",null,null,null,null,"County Commissioner Precinct Three (104)","No. of applicants boarding","No. of applicants boarding",{"$f":"_xlfn.XLOOKUP(Measures_Table[[#This Row],[PM Program]],Programs_Active20[ZSBPPROGM (KEY)],Programs_Active20[LONG TEXT])","v":"County Commissioner Precinct Three"}]
[3552,104,"Y",189,"EACH","OUTPUT","ADOPTEDBUD",null,null,null,null,"County Commissioner Precinct Three (104)","No. of terminations / retirements","No. of terminations / retirements",{"$f":"_xlfn.XLOOKUP(Measures_Table[[#This Row],[PM Program]],Programs_Active20[ZSBPPROGM (KEY)],Programs_Active20[LONG TEXT])","v":"County Commissioner Precinct Three"}]
[3553,104,"Y",189,"EACH","OUTPUT","ADOPTEDBUD",null,null,null,null,"County Commissioner Precinct Three (104)","Background - Total Files Processed ","Background - Total Files Processed ",{"$f":"_xlfn.XLOOKUP(Measures_Table[[#This Row],[PM Program]],Programs_Active20[ZSBPPROGM (KEY)],Programs_Active20[LONG TEXT])","v":"County Commissioner Precinct Three"}]
[3554,104,"Y",189,"EACH","INPUT","ADOPTEDBUD",null,null,null,null,"County Commissioner Precinct Three (104)","Background - No. of applicants that with","Background - No. of applicants that withdrew ",{"$f":"_xlfn.XLOOKUP(Measures_Table[[#This Row],[PM Program]],Programs_Active20[ZSBPPROGM (KEY)],Programs_Active20[LONG TEXT])","v":"County Commissioner Precinct Three"}]
[3555,104,"Y",189,"EACH","INPUT","ADOPTEDBUD",null,null,null,null,"County Commissioner Precinct Three (104)","No. of Open Records Request","No. of Open Records Request",{"$f":"_xlfn.XLOOKUP(Measures_Table[[#This Row],[PM Program]],Programs_Active20[ZSBPPROGM (KEY)],Programs_Active20[LONG TEXT])","v":"County Commissioner Precinct Three"}]

{"sheet":"Data SBP Programs","index":14,"n_rows":407,"n_cols":35,"rows_kept":407,"cut":false,"hidden":true,"merged":[]}
["Dept","Object name",null,null,null,"Dept","Object name",null,null,"Dept","Object name",null,null,"SPB Programs in SAP Lookups","ZSBPPROGM (KEY)","ZACTIVE","ZSBP_DEPT","ZMANDATED","LONG TEXT","MEDIUM TEXT","fundcenters","Column12","Column13","Access Layout","ID","Dpt","SBPPrograms(Dpt)","SBPPrograms","SBPProgramsFC","Program Key","Mandated","Active","Column23","Column8","Column9"]
[{"$f":"'Data SBP Programs'!$Q2","v":102},{"$f":"'Data SBP Programs'!$S2&\" - \"&'Data SBP Programs'!$Q2","v":"County Commissioner Precinct One - 102"},null,null,null,{"$f":"'Details (PB5)'!D5","v":0},null,null,null,0," - ",null,null,"Updated ",187,"Y",102,"Y","County Commissioner Precinct One","County Commissioner Precinct One (102)",null,null,null,null,"187","102","County Commissioner Precinct One (102)","County Commissioner Precinct One","1020010001","187",true,true]
[{"$f":"'Data SBP Programs'!$Q3","v":103},{"$f":"'Data SBP Programs'!$S3&\" - \"&'Data SBP Programs'!$Q3","v":"County Commissioner Precinct Two - 103"},null,null,null,null,null,null,null,null,null,null,null,"2023-03-01",188,"Y",103,"Y","County Commissioner Precinct Two","County Commissioner Precinct Two (103)",null,null,null,null,"188","103","County Commissioner Precinct Two (103)","County Commissioner Precinct Two","1030010001","188",true,true]
[{"$f":"'Data SBP Programs'!$Q4","v":104},{"$f":"'Data SBP Programs'!$S4&\" - \"&'Data SBP Programs'!$Q4","v":"County Commissioner Precinct Three - 104"},null,null,null,null,null,null,null,null,null,null,null,"Sort by long name then dept",189,"Y",104,"Y","County Commissioner Precinct Three","County Commissioner Precinct Three (104)",null,null,null,null,"189","104","County Commissioner Precinct Three (104)","County Commissioner Precinct Three","1040010001","189",true,true]
[{"$f":"'Data SBP Programs'!$Q5","v":105},{"$f":"'Data SBP Programs'!$S5&\" - \"&'Data SBP Programs'!$Q5","v":"County Commissioner Precinct Four - 105"},null,null,null,null,null,null,null,null,null,null,null,"remove duplicates",190,"Y",105,"Y","County Commissioner Precinct Four","County Commissioner Precinct Four (105)",null,null,null,null,"190","105","County Commissioner Precinct Four (105)","County Commissioner Precinct Four","1050010001","190",true,true]
[{"$f":"'Data SBP Programs'!$Q6","v":106},{"$f":"'Data SBP Programs'!$S6&\" - \"&'Data SBP Programs'!$Q6","v":"Auditor's Office - 106"},null,null,null,null,null,null,null,null,null,null,null,"fix formula for next year",178,"Y",106,"Y","Auditor's Office","Auditor's Office (106)",null,null,null,null,"178","106","Auditor's Office (106)","Auditor's Office","1060010001","178",true,true]
[{"$f":"'Data SBP Programs'!$Q7","v":107},{"$f":"'Data SBP Programs'!$S7&\" - \"&'Data SBP Programs'!$Q7","v":"County Treasurer - 107"},null,null,null,null,null,null,null,null,null,null,null,null,191,"Y",107,"Y","County Treasurer","County Treasurer (107)",null,null,null,null,"191","107","County Treasurer (107)","County Treasurer","1070010001","191",true,true]
[{"$f":"'Data SBP Programs'!$Q8","v":108},{"$f":"'Data SBP Programs'!$S8&\" - \"&'Data SBP Programs'!$Q8","v":"Accounting Department - 108"},null,null,null,null,null,null,null,null,null,null,null,null,18,"Y",108,"Y","Accounting Department","Accounting Department (108)",null,null,null,null,"18","108","Accounting Department (108)","Accounting Department","1080090001","18",true,true]
[{"$f":"'Data SBP Programs'!$Q9","v":108},{"$f":"'Data SBP Programs'!$S9&\" - \"&'Data SBP Programs'!$Q9","v":"Administration - 108"},null,null,null,null,null,null,null,null,null,null,null,null,22,"Y",108,"N","Administration","Administration (108)",null,null,null,null,"22","108","Administration (108)","Administration","1080010001","22",false,true]
[{"$f":"'Data SBP Programs'!$Q10","v":108},{"$f":"'Data SBP Programs'!$S10&\" - \"&'Data SBP Programs'!$Q10","v":"Centralized Court Collections - 108"},null,null,null,null,null,null,null,null,null,null,null,null,308,"Y",108,"Y","Centralized Court Collections","Centralized Court Collections (108)",null,null,null,null,"308","108","Centralized Court Collections (108)","Centralized Court Collections","1080040001","308",true,true]
[{"$f":"'Data SBP Programs'!$Q13","v":108},{"$f":"'Data SBP Programs'!$S13&\" - \"&'Data SBP Programs'!$Q13","v":"Communications & Training - 108"},null,null,null,null,null,null,null,null,null,null,null,null,308,"Y",108,"Y","Centralized Court Collections","Centralized Court Collections (108)",null,null,null,null,"308","108","Centralized Court Collections (108)","Centralized Court Collections","1080050001","308",true,true]
[{"$f":"'Data SBP Programs'!$Q14","v":108},{"$f":"'Data SBP Programs'!$S14&\" - \"&'Data SBP Programs'!$Q14","v":"Information Technology Division - 108"},null,null,null,null,null,null,null,null,null,null,null,null,308,"Y",108,"Y","Centralized Court Collections","Centralized Court Collections (108)",null,null,null,null,"308","108","Centralized Court Collections (108)","Centralized Court Collections","1080120001","308",true,true]
[{"$f":"'Data SBP Programs'!$Q15","v":108},{"$f":"'Data SBP Programs'!$S15&\" - \"&'Data SBP Programs'!$Q15","v":"Motor Vehicle - 108"},null,null,null,null,null,null,null,null,null,null,null,null,17,"Y",108,"Y","Communications & Training","Communications & Training (108)",null,null,null,null,"17","108","Communications & Training (108)","Communications & Training","1080020001","17",true,true]
[{"$f":"'Data SBP Programs'!$Q16","v":108},{"$f":"'Data SBP Programs'!$S16&\" - \"&'Data SBP Programs'!$Q16","v":"Property Tax Collections - 108"},null,null,null,null,null,null,null,null,null,null,null,null,21,"Y",108,"N","Information Technology Division","Information Technology Division (108)",null,null,null,null,"21","108","Information Technology Division (108)","Information Technology Division","1080110001","21",false,true]
[{"$f":"'Data SBP Programs'!$Q17","v":108},{"$f":"'Data SBP Programs'!$S17&\" - \"&'Data SBP Programs'!$Q17","v":"Voter Registration Division - 108"},null,null,null,null,null,null,null,null,null,null,null,null,23,"Y",108,"Y","Motor Vehicle","Motor Vehicle (108)",null,null,null,null,"23","108","Motor Vehicle (108)","Motor Vehicle","1080070001","23",true,true]
[{"$f":"'Data SBP Programs'!$Q18","v":109},{"$f":"'Data SBP Programs'!$S18&\" - \"&'Data SBP Programs'!$Q18","v":"Budget - 109"},null,null,null,null,null,null,null,null,null,null,null,null,24,"Y",108,"Y","Property Tax Collections","Property Tax Collections (108)",null,null,null,null,"24","108","Property Tax Collections (108)","Property Tax Collections","1080030001","24",true,true]
[{"$f":"'Data SBP Programs'!$Q19","v":109},{"$f":"'Data SBP Programs'!$S19&\" - \"&'Data SBP Programs'!$Q19","v":"Corporations - 109"},null,null,null,null,null,null,null,null,null,null,null,null,19,"Y",108,"Y","Voter Registration Division","Voter Registration Division (108)",null,null,null,null,"19","108","Voter Registration Division (108)","Voter Registration Division","1080080001","19",true,true]
[{"$f":"'Data SBP Programs'!$Q20","v":109},{"$f":"'Data SBP Programs'!$S20&\" - \"&'Data SBP Programs'!$Q20","v":"Economic & Strategic Planning - 109"},null,null,null,null,null,null,null,null,null,null,null,null,10,"Y",109,"Y","Budget","Budget (109)",null,null,null,null,"10","109","Budget (109)","Budget","1090030001","10",true,true]
[{"$f":"'Data SBP Programs'!$Q21","v":109},{"$f":"'Data SBP Programs'!$S21&\" - \"&'Data SBP Programs'!$Q21","v":"Investment Management - 109"},null,null,null,null,null,null,null,null,null,null,null,null,13,"Y",109,"Y","Corporations","Corporations (109)",null,null,null,null,"13","109","Corporations (109)","Corporations","1090050001","13",true,true]
[{"$f":"'Data SBP Programs'!$Q22","v":110},{"$f":"'Data SBP Programs'!$S22&\" - \"&'Data SBP Programs'!$Q22","v":"Intergovernmental Relations - 110"},null,null,null,null,null,null,null,null,null,null,null,null,11,"Y",109,"N","Economic & Strategic Planning","Economic & Strategic Planning (109)",null,null,null,null,"11","109","Economic & Strategic Planning (109)","Economic & Strategic Planning","1090020001","11",false,true,null,20,"140-Administration"]
[{"$f":"'Data SBP Programs'!$Q23","v":110},{"$f":"'Data SBP Programs'!$S23&\" - \"&'Data SBP Programs'!$Q23","v":"Leadership Recruitment & Appointment - 110"},null,null,null,null,null,null,null,null,null,null,null,null,12,"Y",109,"Y","Investment Management","Investment Management (109)",null,null,null,null,"12","109","Investment Management (109)","Investment Management","1090040001","12",true,true]
[{"$f":"'Data SBP Programs'!$Q24","v":110},{"$f":"'Data SBP Programs'!$S24&\" - \"&'Data SBP Programs'!$Q24","v":"Media Services - 110"},null,null,null,null,null,null,null,null,null,null,null,null,192,"Y",110,"N","Intergovernmental Relations","Intergovernmental Relations (110)",null,null,null,null,"192","110","Intergovernmental Relations (110)","Intergovernmental Relations","1100030001","192",false,true]
[{"$f":"'Data SBP Programs'!$Q25","v":110},{"$f":"'Data SBP Programs'!$S25&\" - \"&'Data SBP Programs'!$Q25","v":"Regional Policy Development - 110"},null,null,null,null,null,null,null,null,null,null,null,null,194,"Y",110,"N","Leadership Recruitment & Appointment","Leadership Recruitment & Appointmt (110)",null,null,null,null,"194","110","Leadership Recruitment & Appointmt (110)","Leadership Recruitment & Appointment","1000/#","194",false,true]
[{"$f":"'Data SBP Programs'!$Q26","v":111},{"$f":"'Data SBP Programs'!$S26&\" - \"&'Data SBP Programs'!$Q26","v":"Employee Health Benefit - 111"},null,null,null,null,null,null,null,null,null,null,null,null,287,"Y",110,"N","Media Services","Media Services (110)",null,null,null,null,"287","110","Media Services (110)","Media Services","1100060001","287",false,true]
[{"$f":"'Data SBP Programs'!$Q27","v":111},{"$f":"'Data SBP Programs'!$S27&\" - \"&'Data SBP Programs'!$Q27","v":"HR Administration - 111"},null,null,null,null,null,null,null,null,null,null,null,null,193,"Y",110,"N","Regional Policy Development","Regional Policy Development (110)",null,null,null,null,"193","110","Regional Policy Development (110)","Regional Policy Development","1000/#","193",false,true]
[{"$f":"'Data SBP Programs'!$Q28","v":111},{"$f":"'Data SBP Programs'!$S28&\" - \"&'Data SBP Programs'!$Q28","v":"HR Compensation - 111"},null,null,null,null,null,null,null,null,null,null,null,null,199,"Y",111,"Y","Employee Health Benefit","Employee Health Benefit (111)",null,null,null,null,"199","111","Employee Health Benefit (111)","Employee Health Benefit","1110068956","199",true,true]
[{"$f":"'Data SBP Programs'!$Q29","v":111},{"$f":"'Data SBP Programs'!$S29&\" - \"&'Data SBP Programs'!$Q29","v":"Risk Management Self Insurance Fund - 111"},null,null,null,null,null,null,null,null,null,null,null,null,196,"Y",111,"N","HR Administration","HR Administration (111)",null,null,null,null,"196","111","HR Administration (111)","HR Administration","1110010001","196",false,true]
[{"$f":"'Data SBP Programs'!$Q32","v":111},{"$f":"'Data SBP Programs'!$S32&\" - \"&'Data SBP Programs'!$Q32","v":"Talent, Planning & Engagement - 111"},null,null,null,null,null,null,null,null,null,null,null,null,195,"Y",111,"Y","HR Compensation","HR Compensation (111)",null,null,null,null,"195","111","HR Compensation (111)","HR Compensation","1110020001","195",true,true]
[{"$f":"'Data SBP Programs'!$Q33","v":111},{"$f":"'Data SBP Programs'!$S33&\" - \"&'Data SBP Programs'!$Q33","v":"Travis County Employee Health Clinic - 111"},null,null,null,null,null,null,null,null,null,null,null,null,198,"Y",111,"Y","Risk Management Self Insurance Fund","Risk Management Self Insurance Fnd (111)",null,null,null,null,"198","111","Risk Management Self Insurance Fnd (111)","Risk Management Self Insurance Fund","1110040001","198",true,true]
[{"$f":"'Data SBP Programs'!$Q34","v":112},{"$f":"'Data SBP Programs'!$S34&\" - \"&'Data SBP Programs'!$Q34","v":"Administration - 112"},null,null,null,null,null,null,null,null,null,null,null,null,198,"Y",111,"Y","Risk Management Self Insurance Fund","Risk Management Self Insurance Fnd (111)",null,null,null,null,"198","111","Risk Management Self Insurance Fnd (111)","Risk Management Self Insurance Fund","1110048955","198",true,true]
[{"$f":"'Data SBP Programs'!$Q35","v":112},{"$f":"'Data SBP Programs'!$S35&\" - \"&'Data SBP Programs'!$Q35","v":"Application Development & Production Support - 112"},null,null,null,null,null,null,null,null,null,null,null,null,198,"Y",111,"Y","Risk Management Self Insurance Fund","Risk Management Self Insurance Fnd (111)",null,null,null,null,"198","111","Risk Management Self Insurance Fnd (111)","Risk Management Self Insurance Fund","1110050001","198",true,true]
[{"$f":"'Data SBP Programs'!$Q36","v":112},{"$f":"'Data SBP Programs'!$S36&\" - \"&'Data SBP Programs'!$Q36","v":"Archives - 112"},null,null,null,null,null,null,null,null,null,null,null,null,202,"Y",111,"N","Talent, Planning & Engagement","Talent, Planning & Engagement (111)",null,null,null,null,"202","111","Talent, Planning & Engagement (111)","Talent, Planning & Engagement","1110100001","202",false,true]
[{"$f":"'Data SBP Programs'!$Q37","v":112},{"$f":"'Data SBP Programs'!$S37&\" - \"&'Data SBP Programs'!$Q37","v":"Copiers & Central Repairs - 112"},null,null,null,null,null,null,null,null,null,null,null,null,200,"Y",111,"N","Travis County Employee Health Clinic","Travis County Employee Hlth Clinic (111)",null,null,null,null,"200","111","Travis County Employee Hlth Clinic (111)","Travis County Employee Health Clinic","1110078956","200",false,true]
[{"$f":"'Data SBP Programs'!$Q38","v":112},{"$f":"'Data SBP Programs'!$S38&\" - \"&'Data SBP Programs'!$Q38","v":"Document Imaging - 112"},null,null,null,null,null,null,null,null,null,null,null,null,28,"Y",112,"N","Administration","Administration (112)",null,null,null,null,"28","112","Administration (112)","Administration","1120020001","28",false,true]
[{"$f":"'Data SBP Programs'!$Q39","v":112},{"$f":"'Data SBP Programs'!$S39&\" - \"&'Data SBP Programs'!$Q39","v":"Enterprise Infrastructure Services - 112"},null,null,null,null,null,null,null,null,null,null,null,null,29,"Y",112,"N","Application Development & Production Support","Application Dev & Productn Support (112)",null,null,null,null,"29","112","Application Dev & Productn Support (112)","Application Development & Production Support","1120170001","29",false,true]
[{"$f":"'Data SBP Programs'!$Q40","v":112},{"$f":"'Data SBP Programs'!$S40&\" - \"&'Data SBP Programs'!$Q40","v":"Information Security - 112"},null,null,null,null,null,null,null,null,null,null,null,null,314,"Y",112,"Y","Archives","Archives (112)",null,null,null,null,"314","112","Archives (112)","Archives","1120450110","314",true,true]
[{"$f":"'Data SBP Programs'!$Q41","v":112},{"$f":"'Data SBP Programs'!$S41&\" - \"&'Data SBP Programs'!$Q41","v":"Mail Services - 112"},null,null,null,null,null,null,null,null,null,null,null,null,315,"Y",112,"N","Copiers & Central Repairs","Copiers & Central Repairs (112)",null,null,null,null,"315","112","Copiers & Central Repairs (112)","Copiers & Central Repairs","1120420001","315",false,true]
[{"$f":"'Data SBP Programs'!$Q42","v":112},{"$f":"'Data SBP Programs'!$S42&\" - \"&'Data SBP Programs'!$Q42","v":"Offsite Storage - 112"},null,null,null,null,null,null,null,null,null,null,null,null,316,"Y",112,"Y","Document Imaging","Document Imaging (112)",null,null,null,null,"316","112","Document Imaging (112)","Document Imaging","1120440001","316",true,true]
[{"$f":"'Data SBP Programs'!$Q43","v":112},{"$f":"'Data SBP Programs'!$S43&\" - \"&'Data SBP Programs'!$Q43","v":"Print Shop - 112"},null,null,null,null,null,null,null,null,null,null,null,null,30,"Y",112,"N","Enterprise Infrastructure Services","Enterprise Infrastructure Services (112)",null,null,null,null,"30","112","Enterprise Infrastructure Services (112)","Enterprise Infrastructure Services","1120040001","30",false,true]
[{"$f":"'Data SBP Programs'!$Q44","v":112},{"$f":"'Data SBP Programs'!$S44&\" - \"&'Data SBP Programs'!$Q44","v":"Privacy Office\n - 112"},null,null,null,null,null,null,null,null,null,null,null,null,300,"Y",112,"N","Information Security","Information Security (112)",null,null,null,null,"300","112","Information Security (112)","Information Security","1120150001","300",false,true]
[{"$f":"'Data SBP Programs'!$Q45","v":112},{"$f":"'Data SBP Programs'!$S45&\" - \"&'Data SBP Programs'!$Q45","v":"Project Management Office - 112"},null,null,null,null,null,null,null,null,null,null,null,null,317,"Y",112,"N","Mail Services","Mail Services (112)",null,null,null,null,"317","112","Mail Services (112)","Mail Services","1120480001","317",false,true]
[{"$f":"'Data SBP Programs'!$Q46","v":114},{"$f":"'Data SBP Programs'!$S46&\" - \"&'Data SBP Programs'!$Q46","v":"Administrative - 114"},null,null,null,null,null,null,null,null,null,null,null,null,312,"Y",112,"Y","Offsite Storage","Offsite Storage (112)",null,null,null,null,"312","112","Offsite Storage (112)","Offsite Storage","1120450001","312",true,true]
[{"$f":"'Data SBP Programs'!$Q47","v":114},{"$f":"'Data SBP Programs'!$S47&\" - \"&'Data SBP Programs'!$Q47","v":"Custodial Operations - 114"},null,null,null,null,null,null,null,null,null,null,null,null,313,"Y",112,"N","Print Shop","Print Shop (112)",null,null,null,null,"313","112","Print Shop (112)","Print Shop","1120460001","313",false,true]
[{"$f":"'Data SBP Programs'!$Q48","v":114},{"$f":"'Data SBP Programs'!$S48&\" - \"&'Data SBP Programs'!$Q48","v":"Exposition Center - 114"},null,null,null,null,null,null,null,null,null,null,null,null,301,"Y",112,"Y","Privacy Office\n","Privacy Office (112)",null,null,null,null,"301","112","Privacy Office (112)","Privacy Office\n","1120310001","301",true,true]
[{"$f":"'Data SBP Programs'!$Q50","v":114},{"$f":"'Data SBP Programs'!$S50&\" - \"&'Data SBP Programs'!$Q50","v":"Groundskeeping - 114"},null,null,null,null,null,null,null,null,null,null,null,null,31,"Y",112,"N","Project Management Office","Project Management Office (112)",null,null,null,null,"31","112","Project Management Office (112)","Project Management Office","1120140001","31",false,true]
[{"$f":"'Data SBP Programs'!$Q51","v":114},{"$f":"'Data SBP Programs'!$S51&\" - \"&'Data SBP Programs'!$Q51","v":"Maintenance & Operations - 114"},null,null,null,null,null,null,null,null,null,null,null,null,115,"Y",114,"N","Administrative","Administrative (114)",null,null,null,null,"115","114","Administrative (114)","Administrative","1140010001","115",false,true]
[{"$f":"'Data SBP Programs'!$Q52","v":114},{"$f":"'Data SBP Programs'!$S52&\" - \"&'Data SBP Programs'!$Q52","v":"Planning, Design and Construction - 114"},null,null,null,null,null,null,null,null,null,null,null,null,111,"Y",114,"N","Custodial Operations","Custodial Operations (114)",null,null,null,null,"111","114","Custodial Operations (114)","Custodial Operations","1140030001","111",false,true]
[{"$f":"'Data SBP Programs'!$Q53","v":114},{"$f":"'Data SBP Programs'!$S53&\" - \"&'Data SBP Programs'!$Q53","v":"Security Management - 114"},null,null,null,null,null,null,null,null,null,null,null,null,295,"Y",114,"N","Exposition Center","Exposition Center (114)",null,null,null,null,"295","114","Exposition Center (114)","Exposition Center","1140080001","295",false,true]
[{"$f":"'Data SBP Programs'!$Q54","v":115},{"$f":"'Data SBP Programs'!$S54&\" - \"&'Data SBP Programs'!$Q54","v":"Purchasing Office - 115"},null,null,null,null,null,null,null,null,null,null,null,null,295,"Y",114,"N","Exposition Center","Exposition Center (114)",null,null,null,null,"295","114","Exposition Center (114)","Exposition Center","1140080003","295",false,true]
[{"$f":"'Data SBP Programs'!$Q55","v":115},{"$f":"'Data SBP Programs'!$S55&\" - \"&'Data SBP Programs'!$Q55","v":"Purchasing Office Compliance - 115"},null,null,null,null,null,null,null,null,null,null,null,null,112,"Y",114,"N","Groundskeeping","Groundskeeping (114)",null,null,null,null,"112","114","Groundskeeping (114)","Groundskeeping","1140020001","112",false,true]
[{"$f":"'Data SBP Programs'!$Q56","v":115},{"$f":"'Data SBP Programs'!$S56&\" - \"&'Data SBP Programs'!$Q56","v":"Purchasing Office Fixed Assets - 115"},null,null,null,null,null,null,null,null,null,null,null,null,113,"Y",114,"N","Maintenance & Operations","Maintenance & Operations (114)",null,null,null,null,"113","114","Maintenance & Operations (114)","Maintenance & Operations","1140090001","113",false,true]
[{"$f":"'Data SBP Programs'!$Q57","v":115},{"$f":"'Data SBP Programs'!$S57&\" - \"&'Data SBP Programs'!$Q57","v":"Purchasing Office HUB - 115"},null,null,null,null,null,null,null,null,null,null,null,null,114,"Y",114,"N","Planning, Design and Construction","Planning, Design & Construction (114)",null,null,null,null,"114","114","Planning, Design & Construction (114)","Planning, Design and Construction","1140110000","114",false,true]
[{"$f":"'Data SBP Programs'!$Q58","v":115},{"$f":"'Data SBP Programs'!$S58&\" - \"&'Data SBP Programs'!$Q58","v":"Purchasing Office Procurement (115) - 115"},null,null,null,null,null,null,null,null,null,null,null,null,116,"Y",114,"N","Security Management","Security Management (114)",null,null,null,null,"116","114","Security Management (114)","Security Management","1140040001","116",false,true]
[{"$f":"'Data SBP Programs'!$Q59","v":116},{"$f":"'Data SBP Programs'!$S59&\" - \"&'Data SBP Programs'!$Q59","v":"Veterans Services - 116"},null,null,null,null,null,null,null,null,null,null,null,null,203,"Y",115,"Y","Purchasing Office","Purchasing Office (115)",null,null,null,null,"203","115","Purchasing Office (115)","Purchasing Office","1150010001","203",true,true]
[{"$f":"'Data SBP Programs'!$Q60","v":117},{"$f":"'Data SBP Programs'!$S60&\" - \"&'Data SBP Programs'!$Q60","v":"Historical Commission - 117"},null,null,null,null,null,null,null,null,null,null,null,null,292,"Y",115,"N","Purchasing Office Compliance","Purchasing Office Compliance (115)",null,null,null,null,"292","115","Purchasing Office Compliance (115)","Purchasing Office Compliance","1150050001","292",false,true]
[{"$f":"'Data SBP Programs'!$Q61","v":119},{"$f":"'Data SBP Programs'!$S61&\" - \"&'Data SBP Programs'!$Q61","v":"Check Division - 119"},null,null,null,null,null,null,null,null,null,null,null,null,204,"Y",115,"Y","Purchasing Office Fixed Assets","Purchasing Office Fixed Assets (115)",null,null,null,null,"204","115","Purchasing Office Fixed Assets (115)","Purchasing Office Fixed Assets","1150020001","204",true,true]
[{"$f":"'Data SBP Programs'!$Q62","v":119},{"$f":"'Data SBP Programs'!$S62&\" - \"&'Data SBP Programs'!$Q62","v":"Civil Divisions - 119"},null,null,null,null,null,null,null,null,null,null,null,null,205,"Y",115,"N","Purchasing Office HUB","Purchasing Office HUB (115)",null,null,null,null,"205","115","Purchasing Office HUB (115)","Purchasing Office HUB","1150030001","205",false,true]
[{"$f":"'Data SBP Programs'!$Q64","v":119},{"$f":"'Data SBP Programs'!$S64&\" - \"&'Data SBP Programs'!$Q64","v":"Comprehensive Underage Drinking Prevention - 119"},null,null,null,null,null,null,null,null,null,null,null,null,296,"Y",115,"Y","Purchasing Office Procurement (115)","Purchasing Office Procurement (115)",null,null,null,null,"296","115","Purchasing Office Procurement (115)","Purchasing Office Procurement (115)","1150040001","296",true,true]
[{"$f":"'Data SBP Programs'!$Q65","v":119},{"$f":"'Data SBP Programs'!$S65&\" - \"&'Data SBP Programs'!$Q65","v":"Criminal Division - Environmental - 119"},null,null,null,null,null,null,null,null,null,null,null,null,176,"Y",116,"Y","Veterans Services","Veterans Services (116)",null,null,null,null,"176","116","Veterans Services (116)","Veterans Services","1160010001","176",true,true]
[{"$f":"'Data SBP Programs'!$Q66","v":119},{"$f":"'Data SBP Programs'!$S66&\" - \"&'Data SBP Programs'!$Q66","v":"Criminal Division - Family Violence & Protective Order Div - 119"},null,null,null,null,null,null,null,null,null,null,null,null,206,"Y",117,"Y","Historical Commission","Historical Commission (117)",null,null,null,null,"206","117","Historical Commission (117)","Historical Commission","1170010001","206",true,true]
[{"$f":"'Data SBP Programs'!$Q67","v":119},{"$f":"'Data SBP Programs'!$S67&\" - \"&'Data SBP Programs'!$Q67","v":"Criminal Division - Records / Intake & Criminal Trial Courts - 119"},null,null,null,null,null,null,null,null,null,null,null,null,208,"Y",119,"Y","Check Division","Check Division (119)",null,null,null,null,"208","119","Check Division (119)","Check Division","1190030001","208",true,true]
[{"$f":"'Data SBP Programs'!$Q68","v":119},{"$f":"'Data SBP Programs'!$S68&\" - \"&'Data SBP Programs'!$Q68","v":"Criminal Division - Truancy - 119"},null,null,null,null,null,null,null,null,null,null,null,null,207,"Y",119,"Y","Civil Divisions","Civil Divisions (119)",null,null,null,null,"207","119","Civil Divisions (119)","Civil Divisions","1190010001","207",true,true]
[{"$f":"'Data SBP Programs'!$Q69","v":120},{"$f":"'Data SBP Programs'!$S69&\" - \"&'Data SBP Programs'!$Q69","v":"Administration - Accounting - 120"},null,null,null,null,null,null,null,null,null,null,null,null,207,"Y",119,"Y","Civil Divisions","Civil Divisions (119)",null,null,null,null,"207","119","Civil Divisions (119)","Civil Divisions","1190050122","207",true,true]
[{"$f":"'Data SBP Programs'!$Q70","v":120},{"$f":"'Data SBP Programs'!$S70&\" - \"&'Data SBP Programs'!$Q70","v":"Administration - Computer Resources - 120"},null,null,null,null,null,null,null,null,null,null,null,null,209,"Y",119,"N","Comprehensive Underage Drinking Prevention","Comprehensive Underage Drink Prev (119)",null,null,null,null,"209","119","Comprehensive Underage Drink Prev (119)","Comprehensive Underage Drinking Prevention","1190040001","209",false,true]
[{"$f":"'Data SBP Programs'!$Q71","v":120},{"$f":"'Data SBP Programs'!$S71&\" - \"&'Data SBP Programs'!$Q71","v":"Civil/Collections Team - 120"},null,null,null,null,null,null,null,null,null,null,null,null,212,"Y",119,"Y","Criminal Division - Environmental","Criminal Division - Environmental (119)",null,null,null,null,"212","119","Criminal Division - Environmental (119)","Criminal Division - Environmental","1000/#","212",true,true]
[{"$f":"'Data SBP Programs'!$Q72","v":120},{"$f":"'Data SBP Programs'!$S72&\" - \"&'Data SBP Programs'!$Q72","v":"Elections Division - 120"},null,null,null,null,null,null,null,null,null,null,null,null,213,"Y",119,"Y","Criminal Division - Family Violence & Protective Order Div","Criminal Division -Family Violence (119)",null,null,null,null,"213","119","Criminal Division -Family Violence (119)","Criminal Division - Family Violence & Protective Order Div","1000/#","213",true,true]
[{"$f":"'Data SBP Programs'!$Q73","v":120},{"$f":"'Data SBP Programs'!$S73&\" - \"&'Data SBP Programs'!$Q73","v":"General Administration - 120"},null,null,null,null,null,null,null,null,null,null,null,null,210,"Y",119,"Y","Criminal Division - Records / Intake & Criminal Trial Courts","Criminal Division - Records/Intake (119)",null,null,null,null,"210","119","Criminal Division - Records/Intake (119)","Criminal Division - Records / Intake & Criminal Trial Courts","1190020001","210",true,true]
[{"$f":"'Data SBP Programs'!$Q74","v":120},{"$f":"'Data SBP Programs'!$S74&\" - \"&'Data SBP Programs'!$Q74","v":"Misdemeanor Records Division - 120"},null,null,null,null,null,null,null,null,null,null,null,null,211,"Y",119,"Y","Criminal Division - Truancy","Criminal Division - Truancy (119)",null,null,null,null,"211","119","Criminal Division - Truancy (119)","Criminal Division - Truancy","1000/#","211",true,true]
[{"$f":"'Data SBP Programs'!$Q75","v":120},{"$f":"'Data SBP Programs'!$S75&\" - \"&'Data SBP Programs'!$Q75","v":"Probate/Mental Health/Comm Court\n - 120"},null,null,null,null,null,null,null,null,null,null,null,null,34,"Y",120,"Y","Administration - Accounting","Administration - Accounting (120)",null,null,null,null,"34","120","Administration - Accounting (120)","Administration - Accounting","1200030001","34",true,true]
[{"$f":"'Data SBP Programs'!$Q77","v":120},{"$f":"'Data SBP Programs'!$S77&\" - \"&'Data SBP Programs'!$Q77","v":"Recording Division - 120"},null,null,null,null,null,null,null,null,null,null,null,null,35,"Y",120,"Y","Administration - Computer Resources","Administration-Computer Resources (120)",null,null,null,null,"35","120","Administration-Computer Resources (120)","Administration - Computer Resources","1200020001","35",true,true]
[{"$f":"'Data SBP Programs'!$Q78","v":120},{"$f":"'Data SBP Programs'!$S78&\" - \"&'Data SBP Programs'!$Q78","v":"Records Management - 120"},null,null,null,null,null,null,null,null,null,null,null,null,36,"Y",120,"Y","Civil/Collections Team","Civil/Collections Team (120)",null,null,null,null,"36","120","Civil/Collections Team (120)","Civil/Collections Team","1200070001","36",true,true]
[{"$f":"'Data SBP Programs'!$Q79","v":121},{"$f":"'Data SBP Programs'!$S79&\" - \"&'Data SBP Programs'!$Q79","v":"Accounting Division - 121"},null,null,null,null,null,null,null,null,null,null,null,null,37,"Y",120,"Y","Elections Division","Elections Division (120)",null,null,null,null,"37","120","Elections Division (120)","Elections Division","1200040001","37",true,true]
[{"$f":"'Data SBP Programs'!$Q84","v":121},{"$f":"'Data SBP Programs'!$S84&\" - \"&'Data SBP Programs'!$Q84","v":"Civil Division (Family) - 121"},null,null,null,null,null,null,null,null,null,null,null,null,33,"Y",120,"Y","General Administration","General Administration (120)",null,null,null,null,"33","120","General Administration (120)","General Administration","1200010001","33",true,true]
[{"$f":"'Data SBP Programs'!$Q86","v":121},{"$f":"'Data SBP Programs'!$S86&\" - \"&'Data SBP Programs'!$Q86","v":"Criminal Division - 121"},null,null,null,null,null,null,null,null,null,null,null,null,38,"Y",120,"Y","Misdemeanor Records Division","Misdemeanor Records Division (120)",null,null,null,null,"38","120","Misdemeanor Records Division (120)","Misdemeanor Records Division","1200080001","38",true,true]
[{"$f":"'Data SBP Programs'!$Q90","v":121},{"$f":"'Data SBP Programs'!$S90&\" - \"&'Data SBP Programs'!$Q90","v":"General Litigation/Government Division - 121"},null,null,null,null,null,null,null,null,null,null,null,null,36,"Y",120,"Y","Probate/Mental Health/Comm Court\n","Civil/Collections Team (120)",null,null,null,null,"36","120","Civil/Collections Team (120)","Probate/Mental Health/Comm Court\n","1200070001","36",true,true]
[{"$f":"'Data SBP Programs'!$Q92","v":121},{"$f":"'Data SBP Programs'!$S92&\" - \"&'Data SBP Programs'!$Q92","v":"Jury Management Office - 121"},null,null,null,null,null,null,null,null,null,null,null,null,39,"Y",120,"Y","Probate/Mental Health/Comm Court\n","Probate/Mental Health/Comm Court (120)",null,null,null,null,"39","120","Probate/Mental Health/Comm Court (120)","Probate/Mental Health/Comm Court\n","1200060001","39",true,true]
[{"$f":"'Data SBP Programs'!$Q93","v":121},{"$f":"'Data SBP Programs'!$S93&\" - \"&'Data SBP Programs'!$Q93","v":"Tech Support Development and Quality Assurance - 121"},null,null,null,null,null,null,null,null,null,null,null,null,40,"Y",120,"Y","Recording Division","Recording Division (120)",null,null,null,null,"40","120","Recording Division (120)","Recording Division","1200090001","40",true,true]
[{"$f":"'Data SBP Programs'!$Q94","v":122},{"$f":"'Data SBP Programs'!$S94&\" - \"&'Data SBP Programs'!$Q94","v":"Civil Courts - 122"},null,null,null,null,null,null,null,null,null,null,null,null,41,"Y",120,"Y","Records Management","Records Management (120)",null,null,null,null,"41","120","Records Management (120)","Records Management","1200100001","41",true,true]
[{"$f":"'Data SBP Programs'!$Q123","v":123},{"$f":"'Data SBP Programs'!$S123&\" - \"&'Data SBP Programs'!$Q123","v":"Civil Rights Unit - 123"},null,null,null,null,null,null,null,null,null,null,null,null,216,"Y",121,"N","Accounting Division","Accounting Division (121)",null,null,null,null,"216","121","Accounting Division (121)","Accounting Division","1000/#","216",false,true]
[{"$f":"'Data SBP Programs'!$Q125","v":123},{"$f":"'Data SBP Programs'!$S125&\" - \"&'Data SBP Programs'!$Q125","v":"Diversion, Youth Justice, & Violence Prevention\n - 123"},null,null,null,null,null,null,null,null,null,null,null,null,217,"Y",121,"N","Accounting Division","Civil Division (Family) (121)",null,null,null,null,"217","121","Civil Division (Family) (121)","Accounting Division","1000/#","217",false,true]
[{"$f":"'Data SBP Programs'!$Q127","v":123},{"$f":"'Data SBP Programs'!$S127&\" - \"&'Data SBP Programs'!$Q127","v":"Investigations - 123"},null,null,null,null,null,null,null,null,null,null,null,null,219,"Y",121,"N","Accounting Division","Criminal Division (121)",null,null,null,null,"219","121","Criminal Division (121)","Accounting Division","1210020001","219",false,true]
[{"$f":"'Data SBP Programs'!$Q128","v":123},{"$f":"'Data SBP Programs'!$S128&\" - \"&'Data SBP Programs'!$Q128","v":"Operations - 123"},null,null,null,null,null,null,null,null,null,null,null,null,219,"Y",121,"N","Accounting Division","Criminal Division (121)",null,null,null,null,"219","121","Criminal Division (121)","Accounting Division","1210020127","219",false,true]
[{"$f":"'Data SBP Programs'!$Q129","v":123},{"$f":"'Data SBP Programs'!$S129&\" - \"&'Data SBP Programs'!$Q129","v":"Public Integrity & Complex Crimes\n - 123"},null,null,null,null,null,null,null,null,null,null,null,null,219,"Y",121,"N","Accounting Division","Criminal Division (121)",null,null,null,null,"219","121","Criminal Division (121)","Accounting Division","1210020139","219",false,true]
[{"$f":"'Data SBP Programs'!$Q131","v":123},{"$f":"'Data SBP Programs'!$S131&\" - \"&'Data SBP Programs'!$Q131","v":"Special Victims Unit - 123"},null,null,null,null,null,null,null,null,null,null,null,null,215,"Y",121,"Y","Civil Division (Family)","Tech Support Dev & Quality (121)",null,null,null,null,"215","121","Tech Support Dev & Quality (121)","Civil Division (Family)","1210010127","215",true,true]
[{"$f":"'Data SBP Programs'!$Q132","v":123},{"$f":"'Data SBP Programs'!$S132&\" - \"&'Data SBP Programs'!$Q132","v":"Trial Courts - 123"},null,null,null,null,null,null,null,null,null,null,null,null,217,"Y",121,"Y","Civil Division (Family)","Civil Division (Family) (121)",null,null,null,null,"217","121","Civil Division (Family) (121)","Civil Division (Family)","1000/#","217",true,true]
[{"$f":"'Data SBP Programs'!$Q137","v":123},{"$f":"'Data SBP Programs'!$S137&\" - \"&'Data SBP Programs'!$Q137","v":"Victim Services - 123"},null,null,null,null,null,null,null,null,null,null,null,null,215,"Y",121,"Y","Criminal Division","Tech Support Dev & Quality (121)",null,null,null,null,"215","121","Tech Support Dev & Quality (121)","Criminal Division","1210010127","215",true,true]
[{"$f":"'Data SBP Programs'!$Q139","v":124},{"$f":"'Data SBP Programs'!$S139&\" - \"&'Data SBP Programs'!$Q139","v":"County Courts Division - 124"},null,null,null,null,null,null,null,null,null,null,null,null,219,"Y",121,"Y","Criminal Division","Criminal Division (121)",null,null,null,null,"219","121","Criminal Division (121)","Criminal Division","1210020001","219",true,true]
[{"$f":"'Data SBP Programs'!$Q140","v":124},{"$f":"'Data SBP Programs'!$S140&\" - \"&'Data SBP Programs'!$Q140","v":"District Courts Division - 124"},null,null,null,null,null,null,null,null,null,null,null,null,219,"Y",121,"Y","Criminal Division","Criminal Division (121)",null,null,null,null,"219","121","Criminal Division (121)","Criminal Division","1210020127","219",true,true]
[{"$f":"'Data SBP Programs'!$Q141","v":125},{"$f":"'Data SBP Programs'!$S141&\" - \"&'Data SBP Programs'!$Q141","v":"Civil Litigation - 125"},null,null,null,null,null,null,null,null,null,null,null,null,219,"Y",121,"Y","Criminal Division","Criminal Division (121)",null,null,null,null,"219","121","Criminal Division (121)","Criminal Division","1210020139","219",true,true]
[{"$f":"'Data SBP Programs'!$Q142","v":125},{"$f":"'Data SBP Programs'!$S142&\" - \"&'Data SBP Programs'!$Q142","v":"Condemnation - 125"},null,null,null,null,null,null,null,null,null,null,null,null,215,"Y",121,"Y","General Litigation/Government Division","Tech Support Dev & Quality (121)",null,null,null,null,"215","121","Tech Support Dev & Quality (121)","General Litigation/Government Division","1210010127","215",true,true]
[{"$f":"'Data SBP Programs'!$Q143","v":125},{"$f":"'Data SBP Programs'!$S143&\" - \"&'Data SBP Programs'!$Q143","v":"Guardianship - 125"},null,null,null,null,null,null,null,null,null,null,null,null,218,"Y",121,"Y","General Litigation/Government Division","General Litigation/Govt Division (121)",null,null,null,null,"218","121","General Litigation/Govt Division (121)","General Litigation/Government Division","1210010139","218",true,true]
[{"$f":"'Data SBP Programs'!$Q146","v":125},{"$f":"'Data SBP Programs'!$S146&\" - \"&'Data SBP Programs'!$Q146","v":"Mental Health - 125"},null,null,null,null,null,null,null,null,null,null,null,null,214,"Y",121,"N","Jury Management Office","Jury Management Office (121)",null,null,null,null,"214","121","Jury Management Office (121)","Jury Management Office","1210010001","214",false,true]
[{"$f":"'Data SBP Programs'!$Q148","v":125},{"$f":"'Data SBP Programs'!$S148&\" - \"&'Data SBP Programs'!$Q148","v":"Probate - 125"},null,null,null,null,null,null,null,null,null,null,null,null,215,"Y",121,"N","Tech Support Development and Quality Assurance","Tech Support Dev & Quality (121)",null,null,null,null,"215","121","Tech Support Dev & Quality (121)","Tech Support Development and Quality Assurance","1210010127","215",false,true]
[{"$f":"'Data SBP Programs'!$Q151","v":126},{"$f":"'Data SBP Programs'!$S151&\" - \"&'Data SBP Programs'!$Q151","v":"Civil Processing - 126"},null,null,null,null,null,null,null,null,null,null,null,null,42,"Y",122,"Y","Civil Courts","Civil Courts (122)",null,null,null,null,"42","122","Civil Courts (122)","Civil Courts","1220010001","42",true,true,null,20,"112-Privacy Office"]
[{"$f":"'Data SBP Programs'!$Q154","v":126},{"$f":"'Data SBP Programs'!$S154&\" - \"&'Data SBP Programs'!$Q154","v":"Criminal - 126"},null,null,null,null,null,null,null,null,null,null,null,null,42,"Y",122,"Y","Civil Courts","Civil Courts (122)",null,null,null,null,"42","122","Civil Courts (122)","Civil Courts","1220010113","42",true,true]
[{"$f":"'Data SBP Programs'!$Q159","v":126},{"$f":"'Data SBP Programs'!$S159&\" - \"&'Data SBP Programs'!$Q159","v":"Juvenile Division - 126"},null,null,null,null,null,null,null,null,null,null,null,null,42,"Y",122,"Y","Civil Courts","Civil Courts (122)",null,null,null,null,"42","122","Civil Courts (122)","Civil Courts","1220020001","42",true,true]
[{"$f":"'Data SBP Programs'!$Q161","v":127},{"$f":"'Data SBP Programs'!$S161&\" - \"&'Data SBP Programs'!$Q161","v":"Civil - 127"},null,null,null,null,null,null,null,null,null,null,null,null,42,"Y",122,"Y","Civil Courts","Civil Courts (122)",null,null,null,null,"42","122","Civil Courts (122)","Civil Courts","1220020113","42",true,true]
[{"$f":"'Data SBP Programs'!$Q165","v":127},{"$f":"'Data SBP Programs'!$S165&\" - \"&'Data SBP Programs'!$Q165","v":"Criminal - 127"},null,null,null,null,null,null,null,null,null,null,null,null,42,"Y",122,"Y","Civil Courts","Civil Courts (122)",null,null,null,null,"42","122","Civil Courts (122)","Civil Courts","1220030001","42",true,true]
[{"$f":"'Data SBP Programs'!$Q170","v":127},{"$f":"'Data SBP Programs'!$S170&\" - \"&'Data SBP Programs'!$Q170","v":"Juvenile Case Manager - 127"},null,null,null,null,null,null,null,null,null,null,null,null,42,"Y",122,"Y","Civil Courts","Civil Courts (122)",null,null,null,null,"42","122","Civil Courts (122)","Civil Courts","1220040001","42",true,true]
[{"$f":"'Data SBP Programs'!$Q172","v":127},{"$f":"'Data SBP Programs'!$S172&\" - \"&'Data SBP Programs'!$Q172","v":"Official Fees Accounting Division - 127"},null,null,null,null,null,null,null,null,null,null,null,null,42,"Y",122,"Y","Civil Courts","Civil Courts (122)",null,null,null,null,"42","122","Civil Courts (122)","Civil Courts","1220050001","42",true,true]
[{"$f":"'Data SBP Programs'!$Q174","v":128},{"$f":"'Data SBP Programs'!$S174&\" - \"&'Data SBP Programs'!$Q174","v":"Civil - 128"},null,null,null,null,null,null,null,null,null,null,null,null,42,"Y",122,"Y","Civil Courts","Civil Courts (122)",null,null,null,null,"42","122","Civil Courts (122)","Civil Courts","1220060001","42",true,true]
[{"$f":"'Data SBP Programs'!$Q177","v":128},{"$f":"'Data SBP Programs'!$S177&\" - \"&'Data SBP Programs'!$Q177","v":"Criminal - 128"},null,null,null,null,null,null,null,null,null,null,null,null,42,"Y",122,"Y","Civil Courts","Civil Courts (122)",null,null,null,null,"42","122","Civil Courts (122)","Civil Courts","1220070001","42",true,true]
[{"$f":"'Data SBP Programs'!$Q182","v":128},{"$f":"'Data SBP Programs'!$S182&\" - \"&'Data SBP Programs'!$Q182","v":"Juvenile Case Manager - 128"},null,null,null,null,null,null,null,null,null,null,null,null,42,"Y",122,"Y","Civil Courts","Civil Courts (122)",null,null,null,null,"42","122","Civil Courts (122)","Civil Courts","1220080001","42",true,true]
[{"$f":"'Data SBP Programs'!$Q184","v":129},{"$f":"'Data SBP Programs'!$S184&\" - \"&'Data SBP Programs'!$Q184","v":"Civil Division - 129"},null,null,null,null,null,null,null,null,null,null,null,null,42,"Y",122,"Y","Civil Courts","Civil Courts (122)",null,null,null,null,"42","122","Civil Courts (122)","Civil Courts","1220090001","42",true,true]
[{"$f":"'Data SBP Programs'!$Q187","v":129},{"$f":"'Data SBP Programs'!$S187&\" - \"&'Data SBP Programs'!$Q187","v":"Criminal - 129"},null,null,null,null,null,null,null,null,null,null,null,null,42,"Y",122,"Y","Civil Courts","Civil Courts (122)",null,null,null,null,"42","122","Civil Courts (122)","Civil Courts","1220100001","42",true,true]
[{"$f":"'Data SBP Programs'!$Q193","v":129},{"$f":"'Data SBP Programs'!$S193&\" - \"&'Data SBP Programs'!$Q193","v":"Juvenile Case Manager - 129"},null,null,null,null,null,null,null,null,null,null,null,null,42,"Y",122,"Y","Civil Courts","Civil Courts (122)",null,null,null,null,"42","122","Civil Courts (122)","Civil Courts","1220110001","42",true,true]
[{"$f":"'Data SBP Programs'!$Q195","v":130},{"$f":"'Data SBP Programs'!$S195&\" - \"&'Data SBP Programs'!$Q195","v":"Civil Department - 130"},null,null,null,null,null,null,null,null,null,null,null,null,42,"Y",122,"Y","Civil Courts","Civil Courts (122)",null,null,null,null,"42","122","Civil Courts (122)","Civil Courts","1220120001","42",true,true]
[{"$f":"'Data SBP Programs'!$Q199","v":130},{"$f":"'Data SBP Programs'!$S199&\" - \"&'Data SBP Programs'!$Q199","v":"Criminal Department - 130"},null,null,null,null,null,null,null,null,null,null,null,null,42,"Y",122,"Y","Civil Courts","Civil Courts (122)",null,null,null,null,"42","122","Civil Courts (122)","Civil Courts","1220130001","42",true,true]
[{"$f":"'Data SBP Programs'!$Q206","v":131},{"$f":"'Data SBP Programs'!$S206&\" - \"&'Data SBP Programs'!$Q206","v":"Civil Unit - 131"},null,null,null,null,null,null,null,null,null,null,null,null,42,"Y",122,"Y","Civil Courts","Civil Courts (122)",null,null,null,null,"42","122","Civil Courts (122)","Civil Courts","1220140001","42",true,true]
[{"$f":"'Data SBP Programs'!$Q207","v":131},{"$f":"'Data SBP Programs'!$S207&\" - \"&'Data SBP Programs'!$Q207","v":"Criminal Unit - 131"},null,null,null,null,null,null,null,null,null,null,null,null,42,"Y",122,"Y","Civil Courts","Civil Courts (122)",null,null,null,null,"42","122","Civil Courts (122)","Civil Courts","1220150001","42",true,true]
[{"$f":"'Data SBP Programs'!$Q208","v":131},{"$f":"'Data SBP Programs'!$S208&\" - \"&'Data SBP Programs'!$Q208","v":"Security - 131"},null,null,null,null,null,null,null,null,null,null,null,null,42,"Y",122,"Y","Civil Courts","Civil Courts (122)",null,null,null,null,"42","122","Civil Courts (122)","Civil Courts","1220160001","42",true,true]
[{"$f":"'Data SBP Programs'!$Q209","v":132},{"$f":"'Data SBP Programs'!$S209&\" - \"&'Data SBP Programs'!$Q209","v":"Civil Unit - 132"},null,null,null,null,null,null,null,null,null,null,null,null,42,"Y",122,"Y","Civil Courts","Civil Courts (122)",null,null,null,null,"42","122","Civil Courts (122)","Civil Courts","1220170001","42",true,true]
[{"$f":"'Data SBP Programs'!$Q210","v":132},{"$f":"'Data SBP Programs'!$S210&\" - \"&'Data SBP Programs'!$Q210","v":"Criminal Unit - 132"},null,null,null,null,null,null,null,null,null,null,null,null,42,"Y",122,"Y","Civil Courts","Civil Courts (122)",null,null,null,null,"42","122","Civil Courts (122)","Civil Courts","1220180001","42",true,true]
[{"$f":"'Data SBP Programs'!$Q211","v":132},{"$f":"'Data SBP Programs'!$S211&\" - \"&'Data SBP Programs'!$Q211","v":"Interlocal Agreement - 132"},null,null,null,null,null,null,null,null,null,null,null,null,42,"Y",122,"Y","Civil Courts","Civil Courts (122)",null,null,null,null,"42","122","Civil Courts (122)","Civil Courts","1220190001","42",true,true]
[{"$f":"'Data SBP Programs'!$Q212","v":132},{"$f":"'Data SBP Programs'!$S212&\" - \"&'Data SBP Programs'!$Q212","v":"Security Unit - 132"},null,null,null,null,null,null,null,null,null,null,null,null,42,"Y",122,"Y","Civil Courts","Civil Courts (122)",null,null,null,null,"42","122","Civil Courts (122)","Civil Courts","1220200001","42",true,true]
[{"$f":"'Data SBP Programs'!$Q213","v":132},{"$f":"'Data SBP Programs'!$S213&\" - \"&'Data SBP Programs'!$Q213","v":"Telecommunications - 132"},null,null,null,null,null,null,null,null,null,null,null,null,42,"Y",122,"Y","Civil Courts","Civil Courts (122)",null,null,null,null,"42","122","Civil Courts (122)","Civil Courts","1220210001","42",true,true]
[{"$f":"'Data SBP Programs'!$Q214","v":133},{"$f":"'Data SBP Programs'!$S214&\" - \"&'Data SBP Programs'!$Q214","v":"Civil - 133"},null,null,null,null,null,null,null,null,null,null,null,null,42,"Y",122,"Y","Civil Courts","Civil Courts (122)",null,null,null,null,"42","122","Civil Courts (122)","Civil Courts","1220220001","42",true,true]
[{"$f":"'Data SBP Programs'!$Q215","v":133},{"$f":"'Data SBP Programs'!$S215&\" - \"&'Data SBP Programs'!$Q215","v":"Criminal - 133"},null,null,null,null,null,null,null,null,null,null,null,null,42,"Y",122,"Y","Civil Courts","Civil Courts (122)",null,null,null,null,"42","122","Civil Courts (122)","Civil Courts","1220230001","42",true,true]
[{"$f":"'Data SBP Programs'!$Q216","v":133},{"$f":"'Data SBP Programs'!$S216&\" - \"&'Data SBP Programs'!$Q216","v":"Emissions Task Force - 133"},null,null,null,null,null,null,null,null,null,null,null,null,42,"Y",122,"Y","Civil Courts","Civil Courts (122)",null,null,null,null,"42","122","Civil Courts (122)","Civil Courts","1220240001","42",true,true]
[{"$f":"'Data SBP Programs'!$Q217","v":134},{"$f":"'Data SBP Programs'!$S217&\" - \"&'Data SBP Programs'!$Q217","v":"Civil Unit - 134"},null,null,null,null,null,null,null,null,null,null,null,null,42,"Y",122,"Y","Civil Courts","Civil Courts (122)",null,null,null,null,"42","122","Civil Courts (122)","Civil Courts","1220250001","42",true,true]
[{"$f":"'Data SBP Programs'!$Q218","v":134},{"$f":"'Data SBP Programs'!$S218&\" - \"&'Data SBP Programs'!$Q218","v":"Criminal Unit - 134"},null,null,null,null,null,null,null,null,null,null,null,null,42,"Y",122,"Y","Civil Courts","Civil Courts (122)",null,null,null,null,"42","122","Civil Courts (122)","Civil Courts","1220260001","42",true,true]
[{"$f":"'Data SBP Programs'!$Q219","v":134},{"$f":"'Data SBP Programs'!$S219&\" - \"&'Data SBP Programs'!$Q219","v":"Security Unit - 134"},null,null,null,null,null,null,null,null,null,null,null,null,42,"Y",122,"Y","Civil Courts","Civil Courts (122)",null,null,null,null,"42","122","Civil Courts (122)","Civil Courts","1220270001","42",true,true]
[{"$f":"'Data SBP Programs'!$Q220","v":135},{"$f":"'Data SBP Programs'!$S220&\" - \"&'Data SBP Programs'!$Q220","v":"Civil & Criminal Process - 135"},null,null,null,null,null,null,null,null,null,null,null,null,44,"Y",123,"Y","Civil Rights Unit","Trial Courts (123)",null,null,null,null,"44","123","Trial Courts (123)","Civil Rights Unit","1000/#","44",true,true]
[{"$f":"'Data SBP Programs'!$Q231","v":136},{"$f":"'Data SBP Programs'!$S231&\" - \"&'Data SBP Programs'!$Q231","v":"Dispute Resolution Center - 136"},null,null,null,null,null,null,null,null,null,null,null,null,49,"Y",123,"Y","Civil Rights Unit","Civil Rights Unit (123)",null,null,null,null,"49","123","Civil Rights Unit (123)","Civil Rights Unit","1000/#","49",true,true]
[{"$f":"'Data SBP Programs'!$Q232","v":137},{"$f":"'Data SBP Programs'!$S232&\" - \"&'Data SBP Programs'!$Q232","v":"Auto Theft Task Force - 137"},null,null,null,null,null,null,null,null,null,null,null,null,44,"Y",123,"N","Diversion, Youth Justice, & Violence Prevention\n","Trial Courts (123)",null,null,null,null,"44","123","Trial Courts (123)","Diversion, Youth Justice, & Violence Prevention\n","1000/#","44",false,true]
[{"$f":"'Data SBP Programs'!$Q234","v":137},{"$f":"'Data SBP Programs'!$S234&\" - \"&'Data SBP Programs'!$Q234","v":"Canine - 137"},null,null,null,null,null,null,null,null,null,null,null,null,46,"Y",123,"N","Diversion, Youth Justice, & Violence Prevention\n","Intake/Diversion (123)",null,null,null,null,"46","123","Intake/Diversion (123)","Diversion, Youth Justice, & Violence Prevention\n","1000/#","46",false,true]
[{"$f":"'Data SBP Programs'!$Q235","v":137},{"$f":"'Data SBP Programs'!$S235&\" - \"&'Data SBP Programs'!$Q235","v":"Central Booking - 137"},null,null,null,null,null,null,null,null,null,null,null,null,47,"Y",123,"Y","Investigations","Investigations (123)",null,null,null,null,"47","123","Investigations (123)","Investigations","1000/#","47",true,true]
[{"$f":"'Data SBP Programs'!$Q238","v":137},{"$f":"'Data SBP Programs'!$S238&\" - \"&'Data SBP Programs'!$Q238","v":"Central Records - 137"},null,null,null,null,null,null,null,null,null,null,null,null,43,"Y",123,"Y","Operations","Operations (123)",null,null,null,null,"43","123","Operations (123)","Operations","1230010001","43",true,true]
[{"$f":"'Data SBP Programs'!$Q239","v":137},{"$f":"'Data SBP Programs'!$S239&\" - \"&'Data SBP Programs'!$Q239","v":"Central Warrants - 137"},null,null,null,null,null,null,null,null,null,null,null,null,43,"Y",123,"Y","Public Integrity & Complex Crimes\n","Operations (123)",null,null,null,null,"43","123","Operations (123)","Public Integrity & Complex Crimes\n","1230010001","43",true,true]
[{"$f":"'Data SBP Programs'!$Q240","v":137},{"$f":"'Data SBP Programs'!$S240&\" - \"&'Data SBP Programs'!$Q240","v":"Chaplain - 137"},null,null,null,null,null,null,null,null,null,null,null,null,48,"Y",123,"Y","Public Integrity & Complex Crimes\n","Public Integrity & Complex Crimes (123)",null,null,null,null,"48","123","Public Integrity & Complex Crimes (123)","Public Integrity & Complex Crimes\n","1000/#","48",true,true]
[{"$f":"'Data SBP Programs'!$Q241","v":137},{"$f":"'Data SBP Programs'!$S241&\" - \"&'Data SBP Programs'!$Q241","v":"CID - Major Crimes / Special Crimes / Environmental / Support - 137"},null,null,null,null,null,null,null,null,null,null,null,null,45,"Y",123,"Y","Special Victims Unit","Special Victims Unit (123)",null,null,null,null,"45","123","Special Victims Unit (123)","Special Victims Unit","1000/#","45",true,true]
[{"$f":"'Data SBP Programs'!$Q242","v":137},{"$f":"'Data SBP Programs'!$S242&\" - \"&'Data SBP Programs'!$Q242","v":"CJIS - Arrest/Expunction/Fugitive/Misuse ID/Parole/StateXfer - 137"},null,null,null,null,null,null,null,null,null,null,null,null,43,"Y",123,"Y","Trial Courts","Operations (123)",null,null,null,null,"43","123","Operations (123)","Trial Courts","1230010001","43",true,true]
[{"$f":"'Data SBP Programs'!$Q243","v":137},{"$f":"'Data SBP Programs'!$S243&\" - \"&'Data SBP Programs'!$Q243","v":"Classification-Records - CSTU / Property\n - 137"},null,null,null,null,null,null,null,null,null,null,null,null,44,"Y",123,"Y","Trial Courts","Trial Courts (123)",null,null,null,null,"44","123","Trial Courts (123)","Trial Courts","1000/#","44",true,true]
[{"$f":"'Data SBP Programs'!$Q244","v":137},{"$f":"'Data SBP Programs'!$S244&\" - \"&'Data SBP Programs'!$Q244","v":"Correctional Security - 137"},null,null,null,null,null,null,null,null,null,null,null,null,45,"Y",123,"Y","Trial Courts","Special Victims Unit (123)",null,null,null,null,"45","123","Special Victims Unit (123)","Trial Courts","1000/#","45",true,true]
[{"$f":"'Data SBP Programs'!$Q247","v":137},{"$f":"'Data SBP Programs'!$S247&\" - \"&'Data SBP Programs'!$Q247","v":"Courthouse Security - 137"},null,null,null,null,null,null,null,null,null,null,null,null,46,"Y",123,"Y","Trial Courts","Intake/Diversion (123)",null,null,null,null,"46","123","Intake/Diversion (123)","Trial Courts","1000/#","46",true,true]
[{"$f":"'Data SBP Programs'!$Q249","v":137},{"$f":"'Data SBP Programs'!$S249&\" - \"&'Data SBP Programs'!$Q249","v":"Crisis Intervention Team - 137"},null,null,null,null,null,null,null,null,null,null,null,null,307,"Y",123,"Y","Trial Courts","Victim Services (123)",null,null,null,null,"307","123","Victim Services (123)","Trial Courts","1230030001","307",true,true]
[{"$f":"'Data SBP Programs'!$Q250","v":137},{"$f":"'Data SBP Programs'!$S250&\" - \"&'Data SBP Programs'!$Q250","v":"Dispatch / Communication - 137"},null,null,null,null,null,null,null,null,null,null,null,null,43,"Y",123,"Y","Victim Services","Operations (123)",null,null,null,null,"43","123","Operations (123)","Victim Services","1230010001","43",true,true]
[{"$f":"'Data SBP Programs'!$Q251","v":137},{"$f":"'Data SBP Programs'!$S251&\" - \"&'Data SBP Programs'!$Q251","v":"Estray - 137"},null,null,null,null,null,null,null,null,null,null,null,null,307,"Y",123,"Y","Victim Services","Victim Services (123)",null,null,null,null,"307","123","Victim Services (123)","Victim Services","1230030001","307",true,true]
[{"$f":"'Data SBP Programs'!$Q252","v":137},{"$f":"'Data SBP Programs'!$S252&\" - \"&'Data SBP Programs'!$Q252","v":"Facilities - Call Center / Mail Room / Laundry / Warehouse\n - 137"},null,null,null,null,null,null,null,null,null,null,null,null,51,"Y",124,"Y","County Courts Division","County Courts Division (124)",null,null,null,null,"51","124","County Courts Division (124)","County Courts Division","1240110001","51",true,true]
[{"$f":"'Data SBP Programs'!$Q253","v":137},{"$f":"'Data SBP Programs'!$S253&\" - \"&'Data SBP Programs'!$Q253","v":"Finance - 137"},null,null,null,null,null,null,null,null,null,null,null,null,50,"Y",124,"Y","District Courts Division","District Courts Division (124)",null,null,null,null,"50","124","District Courts Division (124)","District Courts Division","1240010001","50",true,true]
[{"$f":"'Data SBP Programs'!$Q254","v":137},{"$f":"'Data SBP Programs'!$S254&\" - \"&'Data SBP Programs'!$Q254","v":"Hospital Visitation Unit - 137"},null,null,null,null,null,null,null,null,null,null,null,null,223,"Y",125,"Y","Civil Litigation","Civil Litigation (125)",null,null,null,null,"223","125","Civil Litigation (125)","Civil Litigation","1000/#","223",true,true]
[{"$f":"'Data SBP Programs'!$Q255","v":137},{"$f":"'Data SBP Programs'!$S255&\" - \"&'Data SBP Programs'!$Q255","v":"Human Resources - Recruiting - 137"},null,null,null,null,null,null,null,null,null,null,null,null,225,"Y",125,"Y","Condemnation","Condemnation (125)",null,null,null,null,"225","125","Condemnation (125)","Condemnation","1000/#","225",true,true]
[{"$f":"'Data SBP Programs'!$Q256","v":137},{"$f":"'Data SBP Programs'!$S256&\" - \"&'Data SBP Programs'!$Q256","v":"Inmate Programs and Education - Library - 137"},null,null,null,null,null,null,null,null,null,null,null,null,222,"Y",125,"Y","Guardianship","Guardianship (125)",null,null,null,null,"222","125","Guardianship (125)","Guardianship","1250010132","222",true,true]
[{"$f":"'Data SBP Programs'!$Q259","v":137},{"$f":"'Data SBP Programs'!$S259&\" - \"&'Data SBP Programs'!$Q259","v":"Internal Affairs - 137"},null,null,null,null,null,null,null,null,null,null,null,null,222,"Y",125,"Y","Guardianship","Guardianship (125)",null,null,null,null,"222","125","Guardianship (125)","Guardianship","1250030001","222",true,true]
[{"$f":"'Data SBP Programs'!$Q260","v":137},{"$f":"'Data SBP Programs'!$S260&\" - \"&'Data SBP Programs'!$Q260","v":"Kitchen - 137"},null,null,null,null,null,null,null,null,null,null,null,null,222,"Y",125,"Y","Guardianship","Guardianship (125)",null,null,null,null,"222","125","Guardianship (125)","Guardianship","1250030124","222",true,true]
[{"$f":"'Data SBP Programs'!$Q261","v":137},{"$f":"'Data SBP Programs'!$S261&\" - \"&'Data SBP Programs'!$Q261","v":"Lake Patrol - 137"},null,null,null,null,null,null,null,null,null,null,null,null,220,"Y",125,"Y","Mental Health","Mental Health (125)",null,null,null,null,"220","125","Mental Health (125)","Mental Health","1250020001","220",true,true]
[{"$f":"'Data SBP Programs'!$Q262","v":137},{"$f":"'Data SBP Programs'!$S262&\" - \"&'Data SBP Programs'!$Q262","v":"Life Safety - 137"},null,null,null,null,null,null,null,null,null,null,null,null,220,"Y",125,"Y","Mental Health","Mental Health (125)",null,null,null,null,"220","125","Mental Health (125)","Mental Health","1250020124","220",true,true]
[{"$f":"'Data SBP Programs'!$Q263","v":137},{"$f":"'Data SBP Programs'!$S263&\" - \"&'Data SBP Programs'!$Q263","v":"Maintenance - 137"},null,null,null,null,null,null,null,null,null,null,null,null,221,"Y",125,"Y","Probate","Probate (125)",null,null,null,null,"221","125","Probate (125)","Probate","1250010001","221",true,true]
[{"$f":"'Data SBP Programs'!$Q264","v":137},{"$f":"'Data SBP Programs'!$S264&\" - \"&'Data SBP Programs'!$Q264","v":"Marketable Skills - 137"},null,null,null,null,null,null,null,null,null,null,null,null,221,"Y",125,"Y","Probate","Probate (125)",null,null,null,null,"221","125","Probate (125)","Probate","1250010113","221",true,true]
[{"$f":"'Data SBP Programs'!$Q265","v":137},{"$f":"'Data SBP Programs'!$S265&\" - \"&'Data SBP Programs'!$Q265","v":"Medical, Mental and Dental Services - 137"},null,null,null,null,null,null,null,null,null,null,null,null,221,"Y",125,"Y","Probate","Probate (125)",null,null,null,null,"221","125","Probate (125)","Probate","1250010124","221",true,true]
[{"$f":"'Data SBP Programs'!$Q271","v":137},{"$f":"'Data SBP Programs'!$S271&\" - \"&'Data SBP Programs'!$Q271","v":"Patrol - 137"},null,null,null,null,null,null,null,null,null,null,null,null,226,"Y",126,"Y","Civil Processing","Civil Processing (126)",null,null,null,null,"226","126","Civil Processing (126)","Civil Processing","1260010001","226",true,true]
[{"$f":"'Data SBP Programs'!$Q272","v":137},{"$f":"'Data SBP Programs'!$S272&\" - \"&'Data SBP Programs'!$Q272","v":"Police Psychologist - 137"},null,null,null,null,null,null,null,null,null,null,null,null,226,"Y",126,"Y","Civil Processing","Civil Processing (126)",null,null,null,null,"226","126","Civil Processing (126)","Civil Processing","1260010125","226",true,true]
[{"$f":"'Data SBP Programs'!$Q273","v":137},{"$f":"'Data SBP Programs'!$S273&\" - \"&'Data SBP Programs'!$Q273","v":"Research, Planning and Incident Management - 137"},null,null,null,null,null,null,null,null,null,null,null,null,226,"Y",126,"Y","Civil Processing","Civil Processing (126)",null,null,null,null,"226","126","Civil Processing (126)","Civil Processing","1260010133","226",true,true]
[{"$f":"'Data SBP Programs'!$Q274","v":137},{"$f":"'Data SBP Programs'!$S274&\" - \"&'Data SBP Programs'!$Q274","v":"Reserves - 137"},null,null,null,null,null,null,null,null,null,null,null,null,227,"Y",126,"Y","Criminal","Criminal (126)",null,null,null,null,"227","126","Criminal (126)","Criminal","1260020001","227",true,true]
[{"$f":"'Data SBP Programs'!$Q275","v":137},{"$f":"'Data SBP Programs'!$S275&\" - \"&'Data SBP Programs'!$Q275","v":"School Resource Officers (SRO) - 137"},null,null,null,null,null,null,null,null,null,null,null,null,227,"Y",126,"Y","Criminal","Criminal (126)",null,null,null,null,"227","126","Criminal (126)","Criminal","1260020111","227",true,true]
[{"$f":"'Data SBP Programs'!$Q276","v":137},{"$f":"'Data SBP Programs'!$S276&\" - \"&'Data SBP Programs'!$Q276","v":"Special Weapons & Tactical Unit (SWAT) - 137"},null,null,null,null,null,null,null,null,null,null,null,null,227,"Y",126,"Y","Criminal","Criminal (126)",null,null,null,null,"227","126","Criminal (126)","Criminal","1260020125","227",true,true]
[{"$f":"'Data SBP Programs'!$Q277","v":137},{"$f":"'Data SBP Programs'!$S277&\" - \"&'Data SBP Programs'!$Q277","v":"Traffic - CVE / DWI / HEAT / Impound / MOTORS - 137"},null,null,null,null,null,null,null,null,null,null,null,null,227,"Y",126,"Y","Criminal","Criminal (126)",null,null,null,null,"227","126","Criminal (126)","Criminal","1260020136","227",true,true]
[{"$f":"'Data SBP Programs'!$Q278","v":137},{"$f":"'Data SBP Programs'!$S278&\" - \"&'Data SBP Programs'!$Q278","v":"Training Academy - 137"},null,null,null,null,null,null,null,null,null,null,null,null,227,"Y",126,"Y","Criminal","Criminal (126)",null,null,null,null,"227","126","Criminal (126)","Criminal","1260020145","227",true,true]
[{"$f":"'Data SBP Programs'!$Q279","v":137},{"$f":"'Data SBP Programs'!$S279&\" - \"&'Data SBP Programs'!$Q279","v":"Transportation - 137"},null,null,null,null,null,null,null,null,null,null,null,null,228,"Y",126,"Y","Juvenile Division","Juvenile Division (126)",null,null,null,null,"228","126","Juvenile Division (126)","Juvenile Division","1260020137","228",true,true]
[{"$f":"'Data SBP Programs'!$Q280","v":137},{"$f":"'Data SBP Programs'!$S280&\" - \"&'Data SBP Programs'!$Q280","v":"VICE - 137"},null,null,null,null,null,null,null,null,null,null,null,null,228,"Y",126,"Y","Juvenile Division","Juvenile Division (126)",null,null,null,null,"228","126","Juvenile Division (126)","Juvenile Division","1260020152","228",true,true]
[{"$f":"'Data SBP Programs'!$Q281","v":137},{"$f":"'Data SBP Programs'!$S281&\" - \"&'Data SBP Programs'!$Q281","v":"Victim Services - 137"},null,null,null,null,null,null,null,null,null,null,null,null,230,"Y",127,"Y","Civil","Civil (127)",null,null,null,null,"230","127","Civil (127)","Civil","1270010001","230",true,true]
[{"$f":"'Data SBP Programs'!$Q282","v":138},{"$f":"'Data SBP Programs'!$S282&\" - \"&'Data SBP Programs'!$Q282","v":"Administration - 138"},null,null,null,null,null,null,null,null,null,null,null,null,230,"Y",127,"Y","Civil","Civil (127)",null,null,null,null,"230","127","Civil (127)","Civil","1270010125","230",true,true]
[{"$f":"'Data SBP Programs'!$Q283","v":138},{"$f":"'Data SBP Programs'!$S283&\" - \"&'Data SBP Programs'!$Q283","v":"Investigations - 138"},null,null,null,null,null,null,null,null,null,null,null,null,230,"Y",127,"Y","Civil","Civil (127)",null,null,null,null,"230","127","Civil (127)","Civil","1270010133","230",true,true]
[{"$f":"'Data SBP Programs'!$Q284","v":138},{"$f":"'Data SBP Programs'!$S284&\" - \"&'Data SBP Programs'!$Q284","v":"Pathology - 138"},null,null,null,null,null,null,null,null,null,null,null,null,230,"Y",127,"Y","Civil","Civil (127)",null,null,null,null,"230","127","Civil (127)","Civil","1270010136","230",true,true]
[{"$f":"'Data SBP Programs'!$Q286","v":138},{"$f":"'Data SBP Programs'!$S286&\" - \"&'Data SBP Programs'!$Q286","v":"Toxicology - 138"},null,null,null,null,null,null,null,null,null,null,null,null,231,"Y",127,"Y","Criminal","Criminal (127)",null,null,null,null,"231","127","Criminal (127)","Criminal","1270020001","231",true,true]
[{"$f":"'Data SBP Programs'!$Q287","v":139},{"$f":"'Data SBP Programs'!$S287&\" - \"&'Data SBP Programs'!$Q287","v":"Adult Probation CSCD - 139"},null,null,null,null,null,null,null,null,null,null,null,null,231,"Y",127,"Y","Criminal","Criminal (127)",null,null,null,null,"231","127","Criminal (127)","Criminal","1270020111","231",true,true]
[{"$f":"'Data SBP Programs'!$Q288","v":140},{"$f":"'Data SBP Programs'!$S288&\" - \"&'Data SBP Programs'!$Q288","v":"Administration\n - 140"},null,null,null,null,null,null,null,null,null,null,null,null,231,"Y",127,"Y","Criminal","Criminal (127)",null,null,null,null,"231","127","Criminal (127)","Criminal","1270020125","231",true,true]
[{"$f":"'Data SBP Programs'!$Q289","v":140},{"$f":"'Data SBP Programs'!$S289&\" - \"&'Data SBP Programs'!$Q289","v":"Adult Education Classes - 140"},null,null,null,null,null,null,null,null,null,null,null,null,231,"Y",127,"Y","Criminal","Criminal (127)",null,null,null,null,"231","127","Criminal (127)","Criminal","1270020136","231",true,true]
[{"$f":"'Data SBP Programs'!$Q292","v":140},{"$f":"'Data SBP Programs'!$S292&\" - \"&'Data SBP Programs'!$Q292","v":"Alcohol & Drug Classes/Programs - 140"},null,null,null,null,null,null,null,null,null,null,null,null,231,"Y",127,"Y","Criminal","Criminal (127)",null,null,null,null,"231","127","Criminal (127)","Criminal","1270020145","231",true,true]
[{"$f":"'Data SBP Programs'!$Q293","v":140},{"$f":"'Data SBP Programs'!$S293&\" - \"&'Data SBP Programs'!$Q293","v":"Austin/Travis County Family Violence Task Force\n - 140"},null,null,null,null,null,null,null,null,null,null,null,null,232,"Y",127,"Y","Juvenile Case Manager","Juvenile Case Manager (127)",null,null,null,null,"232","127","Juvenile Case Manager (127)","Juvenile Case Manager","1270020137","232",true,true]
[{"$f":"'Data SBP Programs'!$Q294","v":140},{"$f":"'Data SBP Programs'!$S294&\" - \"&'Data SBP Programs'!$Q294","v":"Crime Victims Fund - 140"},null,null,null,null,null,null,null,null,null,null,null,null,232,"Y",127,"Y","Juvenile Case Manager","Juvenile Case Manager (127)",null,null,null,null,"232","127","Juvenile Case Manager (127)","Juvenile Case Manager","1270020152","232",true,true]
[{"$f":"'Data SBP Programs'!$Q295","v":140},{"$f":"'Data SBP Programs'!$S295&\" - \"&'Data SBP Programs'!$Q295","v":"Intake & Assessments - 140"},null,null,null,null,null,null,null,null,null,null,null,null,229,"Y",127,"Y","Official Fees Accounting Division","Official Fees Accounting Division (127)",null,null,null,null,"229","127","Official Fees Accounting Division (127)","Official Fees Accounting Division","1270030001","229",true,true]
[{"$f":"'Data SBP Programs'!$Q298","v":140},{"$f":"'Data SBP Programs'!$S298&\" - \"&'Data SBP Programs'!$Q298","v":"Juvenile Education Classes - 140"},null,null,null,null,null,null,null,null,null,null,null,null,229,"Y",127,"Y","Official Fees Accounting Division","Official Fees Accounting Division (127)",null,null,null,null,"229","127","Official Fees Accounting Division (127)","Official Fees Accounting Division","1270040001","229",true,true]
[{"$f":"'Data SBP Programs'!$Q299","v":140},{"$f":"'Data SBP Programs'!$S299&\" - \"&'Data SBP Programs'!$Q299","v":"Phoenix Court - Prostitution Prevention Program - 140"},null,null,null,null,null,null,null,null,null,null,null,null,233,"Y",128,"Y","Civil","Civil (128)",null,null,null,null,"233","128","Civil (128)","Civil","1280010001","233",true,true]
[{"$f":"'Data SBP Programs'!$Q300","v":142},{"$f":"'Data SBP Programs'!$S300&\" - \"&'Data SBP Programs'!$Q300","v":"Case Management - 142"},null,null,null,null,null,null,null,null,null,null,null,null,233,"Y",128,"Y","Civil","Civil (128)",null,null,null,null,"233","128","Civil (128)","Civil","1280010125","233",true,true]
[{"$f":"'Data SBP Programs'!$Q301","v":142},{"$f":"'Data SBP Programs'!$S301&\" - \"&'Data SBP Programs'!$Q301","v":"Investigations - 142"},null,null,null,null,null,null,null,null,null,null,null,null,233,"Y",128,"Y","Civil","Civil (128)",null,null,null,null,"233","128","Civil (128)","Civil","1280010133","233",true,true]
[{"$f":"'Data SBP Programs'!$Q302","v":142},{"$f":"'Data SBP Programs'!$S302&\" - \"&'Data SBP Programs'!$Q302","v":"Specialty Courts - 142"},null,null,null,null,null,null,null,null,null,null,null,null,234,"Y",128,"Y","Criminal","Criminal (128)",null,null,null,null,"234","128","Criminal (128)","Criminal","1280020001","234",true,true]
[{"$f":"'Data SBP Programs'!$Q303","v":143},{"$f":"'Data SBP Programs'!$S303&\" - \"&'Data SBP Programs'!$Q303","v":"Juvenile Public Defender - 143"},null,null,null,null,null,null,null,null,null,null,null,null,234,"Y",128,"Y","Criminal","Criminal (128)",null,null,null,null,"234","128","Criminal (128)","Criminal","1280020111","234",true,true]
[{"$f":"'Data SBP Programs'!$Q307","v":144},{"$f":"'Data SBP Programs'!$S307&\" - \"&'Data SBP Programs'!$Q307","v":"Public Defender's Office - 144"},null,null,null,null,null,null,null,null,null,null,null,null,234,"Y",128,"Y","Criminal","Criminal (128)",null,null,null,null,"234","128","Criminal (128)","Criminal","1280020125","234",true,true]
[{"$f":"'Data SBP Programs'!$Q311","v":145},{"$f":"'Data SBP Programs'!$S311&\" - \"&'Data SBP Programs'!$Q311","v":"Court Administration - 145"},null,null,null,null,null,null,null,null,null,null,null,null,234,"Y",128,"Y","Criminal","Criminal (128)",null,null,null,null,"234","128","Criminal (128)","Criminal","1280020136","234",true,true]
[{"$f":"'Data SBP Programs'!$Q313","v":145},{"$f":"'Data SBP Programs'!$S313&\" - \"&'Data SBP Programs'!$Q313","v":"Court Services - 145"},null,null,null,null,null,null,null,null,null,null,null,null,234,"Y",128,"Y","Criminal","Criminal (128)",null,null,null,null,"234","128","Criminal (128)","Criminal","1280020145","234",true,true]
[{"$f":"'Data SBP Programs'!$Q320","v":145},{"$f":"'Data SBP Programs'!$S320&\" - \"&'Data SBP Programs'!$Q320","v":"Detention Services - 145"},null,null,null,null,null,null,null,null,null,null,null,null,235,"Y",128,"Y","Juvenile Case Manager","Juvenile Case Manager (128)",null,null,null,null,"235","128","Juvenile Case Manager (128)","Juvenile Case Manager","1280020137","235",true,true]
[{"$f":"'Data SBP Programs'!$Q322","v":145},{"$f":"'Data SBP Programs'!$S322&\" - \"&'Data SBP Programs'!$Q322","v":"Domestic Relations Office - 145"},null,null,null,null,null,null,null,null,null,null,null,null,235,"Y",128,"Y","Juvenile Case Manager","Juvenile Case Manager (128)",null,null,null,null,"235","128","Juvenile Case Manager (128)","Juvenile Case Manager","1280020152","235",true,true]
[{"$f":"'Data SBP Programs'!$Q324","v":145},{"$f":"'Data SBP Programs'!$S324&\" - \"&'Data SBP Programs'!$Q324","v":"Health Services - 145"},null,null,null,null,null,null,null,null,null,null,null,null,236,"Y",129,"Y","Civil Division","Civil Division (129)",null,null,null,null,"236","129","Civil Division (129)","Civil Division","1290010001","236",true,true]
[{"$f":"'Data SBP Programs'!$Q326","v":145},{"$f":"'Data SBP Programs'!$S326&\" - \"&'Data SBP Programs'!$Q326","v":"IT/Planning and Research - 145"},null,null,null,null,null,null,null,null,null,null,null,null,236,"Y",129,"Y","Civil Division","Civil Division (129)",null,null,null,null,"236","129","Civil Division (129)","Civil Division","1290010133","236",true,true]
[{"$f":"'Data SBP Programs'!$Q327","v":145},{"$f":"'Data SBP Programs'!$S327&\" - \"&'Data SBP Programs'!$Q327","v":"Juvenile Probation Support Services - 145"},null,null,null,null,null,null,null,null,null,null,null,null,236,"Y",129,"Y","Civil Division","Civil Division (129)",null,null,null,null,"236","129","Civil Division (129)","Civil Division","1290030001","236",true,true]
[{"$f":"'Data SBP Programs'!$Q329","v":145},{"$f":"'Data SBP Programs'!$S329&\" - \"&'Data SBP Programs'!$Q329","v":"Probation Services - 145"},null,null,null,null,null,null,null,null,null,null,null,null,237,"Y",129,"Y","Criminal","Criminal (129)",null,null,null,null,"237","129","Criminal (129)","Criminal","1290020001","237",true,true]
[{"$f":"'Data SBP Programs'!$Q336","v":145},{"$f":"'Data SBP Programs'!$S336&\" - \"&'Data SBP Programs'!$Q336","v":"Residential Services - 145"},null,null,null,null,null,null,null,null,null,null,null,null,237,"Y",129,"Y","Criminal","Criminal (129)",null,null,null,null,"237","129","Criminal (129)","Criminal","1290020111","237",true,true]
[{"$f":"'Data SBP Programs'!$Q338","v":145},{"$f":"'Data SBP Programs'!$S338&\" - \"&'Data SBP Programs'!$Q338","v":"Social Services - 145"},null,null,null,null,null,null,null,null,null,null,null,null,237,"Y",129,"Y","Criminal","Criminal (129)",null,null,null,null,"237","129","Criminal (129)","Criminal","1290020125","237",true,true]
[{"$f":"'Data SBP Programs'!$Q339","v":147},{"$f":"'Data SBP Programs'!$S339&\" - \"&'Data SBP Programs'!$Q339","v":"Emergency Management - 147"},null,null,null,null,null,null,null,null,null,null,null,null,237,"Y",129,"Y","Criminal","Criminal (129)",null,null,null,null,"237","129","Criminal (129)","Criminal","1290020136","237",true,true]
[{"$f":"'Data SBP Programs'!$Q340","v":147},{"$f":"'Data SBP Programs'!$S340&\" - \"&'Data SBP Programs'!$Q340","v":"Fire Marshal - 147"},null,null,null,null,null,null,null,null,null,null,null,null,237,"Y",129,"Y","Criminal","Criminal (129)",null,null,null,null,"237","129","Criminal (129)","Criminal","1290020145","237",true,true]
[{"$f":"'Data SBP Programs'!$Q341","v":147},{"$f":"'Data SBP Programs'!$S341&\" - \"&'Data SBP Programs'!$Q341","v":"Technology & Communications - 147"},null,null,null,null,null,null,null,null,null,null,null,null,237,"Y",129,"Y","Criminal","Criminal (129)",null,null,null,null,"237","129","Criminal (129)","Criminal","1290040001","237",true,true]
[{"$f":"'Data SBP Programs'!$Q342","v":149},{"$f":"'Data SBP Programs'!$S342&\" - \"&'Data SBP Programs'!$Q342","v":"Customer Service - 149"},null,null,null,null,null,null,null,null,null,null,null,null,238,"Y",129,"Y","Juvenile Case Manager","Juvenile Case Manager (129)",null,null,null,null,"238","129","Juvenile Case Manager (129)","Juvenile Case Manager","1290020137","238",true,true]
[{"$f":"'Data SBP Programs'!$Q343","v":149},{"$f":"'Data SBP Programs'!$S343&\" - \"&'Data SBP Programs'!$Q343","v":"Development Services and Long Range Planning - 149"},null,null,null,null,null,null,null,null,null,null,null,null,238,"Y",129,"Y","Juvenile Case Manager","Juvenile Case Manager (129)",null,null,null,null,"238","129","Juvenile Case Manager (129)","Juvenile Case Manager","1290020152","238",true,true]
[{"$f":"'Data SBP Programs'!$Q344","v":149},{"$f":"'Data SBP Programs'!$S344&\" - \"&'Data SBP Programs'!$Q344","v":"Environmental Quality - 149"},null,null,null,null,null,null,null,null,null,null,null,null,239,"Y",130,"Y","Civil Department","Civil Department (130)",null,null,null,null,"239","130","Civil Department (130)","Civil Department","1300010001","239",true,true]
[{"$f":"'Data SBP Programs'!$Q345","v":149},{"$f":"'Data SBP Programs'!$S345&\" - \"&'Data SBP Programs'!$Q345","v":"Financial Services - 149"},null,null,null,null,null,null,null,null,null,null,null,null,239,"Y",130,"Y","Civil Department","Civil Department (130)",null,null,null,null,"239","130","Civil Department (130)","Civil Department","1300010125","239",true,true]
[{"$f":"'Data SBP Programs'!$Q347","v":149},{"$f":"'Data SBP Programs'!$S347&\" - \"&'Data SBP Programs'!$Q347","v":"Fleet Services - 149"},null,null,null,null,null,null,null,null,null,null,null,null,239,"Y",130,"Y","Civil Department","Civil Department (130)",null,null,null,null,"239","130","Civil Department (130)","Civil Department","1300010133","239",true,true]
[{"$f":"'Data SBP Programs'!$Q348","v":149},{"$f":"'Data SBP Programs'!$S348&\" - \"&'Data SBP Programs'!$Q348","v":"Natural Resources Program - 149"},null,null,null,null,null,null,null,null,null,null,null,null,239,"Y",130,"Y","Civil Department","Civil Department (130)",null,null,null,null,"239","130","Civil Department (130)","Civil Department","1300050153","239",true,true]
[{"$f":"'Data SBP Programs'!$Q349","v":149},{"$f":"'Data SBP Programs'!$S349&\" - \"&'Data SBP Programs'!$Q349","v":"On-Site Wastewater - 149"},null,null,null,null,null,null,null,null,null,null,null,null,240,"Y",130,"Y","Criminal Department","Criminal Department (130)",null,null,null,null,"240","130","Criminal Department (130)","Criminal Department","1300020001","240",true,true]
[{"$f":"'Data SBP Programs'!$Q350","v":149},{"$f":"'Data SBP Programs'!$S350&\" - \"&'Data SBP Programs'!$Q350","v":"Park Services - 149"},null,null,null,null,null,null,null,null,null,null,null,null,240,"Y",130,"Y","Criminal Department","Criminal Department (130)",null,null,null,null,"240","130","Criminal Department (130)","Criminal Department","1300020111","240",true,true]
[{"$f":"'Data SBP Programs'!$Q351","v":149},{"$f":"'Data SBP Programs'!$S351&\" - \"&'Data SBP Programs'!$Q351","v":"Planning and Geographic Information Systems (GIS) - 149"},null,null,null,null,null,null,null,null,null,null,null,null,240,"Y",130,"Y","Criminal Department","Criminal Department (130)",null,null,null,null,"240","130","Criminal Department (130)","Criminal Department","1300020125","240",true,true]
[{"$f":"'Data SBP Programs'!$Q352","v":149},{"$f":"'Data SBP Programs'!$S352&\" - \"&'Data SBP Programs'!$Q352","v":"Public Works – CIP - 149"},null,null,null,null,null,null,null,null,null,null,null,null,240,"Y",130,"Y","Criminal Department","Criminal Department (130)",null,null,null,null,"240","130","Criminal Department (130)","Criminal Department","1300020136","240",true,true]
[{"$f":"'Data SBP Programs'!$Q353","v":149},{"$f":"'Data SBP Programs'!$S353&\" - \"&'Data SBP Programs'!$Q353","v":"Public Works - Survey - 149"},null,null,null,null,null,null,null,null,null,null,null,null,240,"Y",130,"Y","Criminal Department","Criminal Department (130)",null,null,null,null,"240","130","Criminal Department (130)","Criminal Department","1300020137","240",true,true]
[{"$f":"'Data SBP Programs'!$Q354","v":149},{"$f":"'Data SBP Programs'!$S354&\" - \"&'Data SBP Programs'!$Q354","v":"Road & Bridge - 149"},null,null,null,null,null,null,null,null,null,null,null,null,240,"Y",130,"Y","Criminal Department","Criminal Department (130)",null,null,null,null,"240","130","Criminal Department (130)","Criminal Department","1300020145","240",true,true]
[{"$f":"'Data SBP Programs'!$Q355","v":149},{"$f":"'Data SBP Programs'!$S355&\" - \"&'Data SBP Programs'!$Q355","v":"Sign Shop Services - 149"},null,null,null,null,null,null,null,null,null,null,null,null,240,"Y",130,"Y","Criminal Department","Criminal Department (130)",null,null,null,null,"240","130","Criminal Department (130)","Criminal Department","1300020152","240",true,true]
[{"$f":"'Data SBP Programs'!$Q356","v":149},{"$f":"'Data SBP Programs'!$S356&\" - \"&'Data SBP Programs'!$Q356","v":"TNR Human Resources - 149"},null,null,null,null,null,null,null,null,null,null,null,null,242,"Y",131,"Y","Civil Unit","Civil Unit (131)",null,null,null,null,"242","131","Civil Unit (131)","Civil Unit","1310010001","242",true,true]
[{"$f":"'Data SBP Programs'!$Q357","v":149},{"$f":"'Data SBP Programs'!$S357&\" - \"&'Data SBP Programs'!$Q357","v":"TNR-Administrative Support - 149"},null,null,null,null,null,null,null,null,null,null,null,null,243,"Y",131,"Y","Criminal Unit","Criminal Unit (131)",null,null,null,null,"243","131","Criminal Unit (131)","Criminal Unit","1310020001","243",true,true]
[{"$f":"'Data SBP Programs'!$Q358","v":149},{"$f":"'Data SBP Programs'!$S358&\" - \"&'Data SBP Programs'!$Q358","v":"TNR-Records Management - 149"},null,null,null,null,null,null,null,null,null,null,null,null,241,"Y",131,"Y","Security","Security (131)",null,null,null,null,"241","131","Security (131)","Security","1310040001","241",true,true]
[{"$f":"'Data SBP Programs'!$Q359","v":149},{"$f":"'Data SBP Programs'!$S359&\" - \"&'Data SBP Programs'!$Q359","v":"TNR-Safety - 149"},null,null,null,null,null,null,null,null,null,null,null,null,244,"Y",132,"Y","Civil Unit","Civil Unit (132)",null,null,null,null,"244","132","Civil Unit (132)","Civil Unit","1320010001","244",true,true]
[{"$f":"'Data SBP Programs'!$Q360","v":154},{"$f":"'Data SBP Programs'!$S360&\" - \"&'Data SBP Programs'!$Q360","v":"Civil Service Commission - 154"},null,null,null,null,null,null,null,null,null,null,null,null,245,"Y",132,"Y","Criminal Unit","Criminal Unit (132)",null,null,null,null,"245","132","Criminal Unit (132)","Criminal Unit","1320020001","245",true,true]
[{"$f":"'Data SBP Programs'!$Q361","v":155},{"$f":"'Data SBP Programs'!$S361&\" - \"&'Data SBP Programs'!$Q361","v":"Justice Planning - 155"},null,null,null,null,null,null,null,null,null,null,null,null,246,"Y",132,"N","Interlocal Agreement","Interlocal Agreement (132)",null,null,null,null,"246","132","Interlocal Agreement (132)","Interlocal Agreement","1320050001","246",false,true]
[{"$f":"'Data SBP Programs'!$Q362","v":155},{"$f":"'Data SBP Programs'!$S362&\" - \"&'Data SBP Programs'!$Q362","v":"Law Library - 155"},null,null,null,null,null,null,null,null,null,null,null,null,247,"Y",132,"Y","Security Unit","Security Unit (132)",null,null,null,null,"247","132","Security Unit (132)","Security Unit","1320040001","247",true,true]
[{"$f":"'Data SBP Programs'!$Q366","v":155},{"$f":"'Data SBP Programs'!$S366&\" - \"&'Data SBP Programs'!$Q366","v":"Mental Health Public Defender - 155"},null,null,null,null,null,null,null,null,null,null,null,null,294,"Y",132,"N","Telecommunications","Telecommunications (132)",null,null,null,null,"294","132","Telecommunications (132)","Telecommunications","1320060001","294",false,true]
[{"$f":"'Data SBP Programs'!$Q367","v":155},{"$f":"'Data SBP Programs'!$S367&\" - \"&'Data SBP Programs'!$Q367","v":"Office of Child Representation - 155"},null,null,null,null,null,null,null,null,null,null,null,null,248,"Y",133,"Y","Civil","Civil (133)",null,null,null,null,"248","133","Civil (133)","Civil","1330010001","248",true,true]
[{"$f":"'Data SBP Programs'!$Q368","v":155},{"$f":"'Data SBP Programs'!$S368&\" - \"&'Data SBP Programs'!$Q368","v":"Office of Parent Representation - 155"},null,null,null,null,null,null,null,null,null,null,null,null,249,"Y",133,"Y","Criminal","Criminal (133)",null,null,null,null,"249","133","Criminal (133)","Criminal","1330020001","249",true,true]
[{"$f":"'Data SBP Programs'!$Q369","v":155},{"$f":"'Data SBP Programs'!$S369&\" - \"&'Data SBP Programs'!$Q369","v":"Workforce Development Taskforce (WD)\n - 155"},null,null,null,null,null,null,null,null,null,null,null,null,251,"Y",133,"N","Emissions Task Force","Emissions Task Force (133)",null,null,null,null,"251","133","Emissions Task Force (133)","Emissions Task Force","1330060001","251",false,true]
[{"$f":"'Data SBP Programs'!$Q370","v":158},{"$f":"'Data SBP Programs'!$S370&\" - \"&'Data SBP Programs'!$Q370","v":"CDBG Administration - 158"},null,null,null,null,null,null,null,null,null,null,null,null,252,"Y",134,"Y","Civil Unit","Civil Unit (134)",null,null,null,null,"252","134","Civil Unit (134)","Civil Unit","1340010001","252",true,true]
[{"$f":"'Data SBP Programs'!$Q371","v":158},{"$f":"'Data SBP Programs'!$S371&\" - \"&'Data SBP Programs'!$Q371","v":"Child Protective Services Reintegration Project (CRP) - 158"},null,null,null,null,null,null,null,null,null,null,null,null,253,"Y",134,"Y","Criminal Unit","Criminal Unit (134)",null,null,null,null,"253","134","Criminal Unit (134)","Criminal Unit","1340020001","253",true,true]
[{"$f":"'Data SBP Programs'!$Q372","v":158},{"$f":"'Data SBP Programs'!$S372&\" - \"&'Data SBP Programs'!$Q372","v":"engAGE Travis County - 158"},null,null,null,null,null,null,null,null,null,null,null,null,255,"Y",134,"Y","Security Unit","Security Unit (134)",null,null,null,null,"255","134","Security Unit (134)","Security Unit","1340040001","255",true,true]
[{"$f":"'Data SBP Programs'!$Q373","v":158},{"$f":"'Data SBP Programs'!$S373&\" - \"&'Data SBP Programs'!$Q373","v":"Family First - 158"},null,null,null,null,null,null,null,null,null,null,null,null,256,"Y",135,"Y","Civil & Criminal Process","Civil & Criminal Process (135)",null,null,null,null,"256","135","Civil & Criminal Process (135)","Civil & Criminal Process","1350010001","256",true,true]
[{"$f":"'Data SBP Programs'!$Q374","v":158},{"$f":"'Data SBP Programs'!$S374&\" - \"&'Data SBP Programs'!$Q374","v":"Family Support Services Division - 158"},null,null,null,null,null,null,null,null,null,null,null,null,256,"Y",135,"Y","Civil & Criminal Process","Civil & Criminal Process (135)",null,null,null,null,"256","135","Civil & Criminal Process (135)","Civil & Criminal Process","1350010128","256",true,true]
[{"$f":"'Data SBP Programs'!$Q375","v":158},{"$f":"'Data SBP Programs'!$S375&\" - \"&'Data SBP Programs'!$Q375","v":"Healthy Families Travis County - 158"},null,null,null,null,null,null,null,null,null,null,null,null,256,"Y",135,"Y","Civil & Criminal Process","Civil & Criminal Process (135)",null,null,null,null,"256","135","Civil & Criminal Process (135)","Civil & Criminal Process","1350020001","256",true,true]
[{"$f":"'Data SBP Programs'!$Q376","v":158},{"$f":"'Data SBP Programs'!$S376&\" - \"&'Data SBP Programs'!$Q376","v":"Housing Services - 158"},null,null,null,null,null,null,null,null,null,null,null,null,256,"Y",135,"Y","Civil & Criminal Process","Civil & Criminal Process (135)",null,null,null,null,"256","135","Civil & Criminal Process (135)","Civil & Criminal Process","1350020125","256",true,true]
[{"$f":"'Data SBP Programs'!$Q377","v":158},{"$f":"'Data SBP Programs'!$S377&\" - \"&'Data SBP Programs'!$Q377","v":"Neighborhood Conference Committee (NCC) - 158"},null,null,null,null,null,null,null,null,null,null,null,null,256,"Y",135,"Y","Civil & Criminal Process","Civil & Criminal Process (135)",null,null,null,null,"256","135","Civil & Criminal Process (135)","Civil & Criminal Process","1350030001","256",true,true]
[{"$f":"'Data SBP Programs'!$Q378","v":158},{"$f":"'Data SBP Programs'!$S378&\" - \"&'Data SBP Programs'!$Q378","v":"Office of the Chief Deputy: Community Liaison\n - 158"},null,null,null,null,null,null,null,null,null,null,null,null,256,"Y",135,"Y","Civil & Criminal Process","Civil & Criminal Process (135)",null,null,null,null,"256","135","Civil & Criminal Process (135)","Civil & Criminal Process","1350060001","256",true,true]
[{"$f":"'Data SBP Programs'!$Q379","v":158},{"$f":"'Data SBP Programs'!$S379&\" - \"&'Data SBP Programs'!$Q379","v":"Parenting in Recovery - 158"},null,null,null,null,null,null,null,null,null,null,null,null,256,"Y",135,"Y","Civil & Criminal Process","Civil & Criminal Process (135)",null,null,null,null,"256","135","Civil & Criminal Process (135)","Civil & Criminal Process","1350070001","256",true,true]
[{"$f":"'Data SBP Programs'!$Q380","v":158},{"$f":"'Data SBP Programs'!$S380&\" - \"&'Data SBP Programs'!$Q380","v":"Research & Planning Division - 158"},null,null,null,null,null,null,null,null,null,null,null,null,256,"Y",135,"Y","Civil & Criminal Process","Civil & Criminal Process (135)",null,null,null,null,"256","135","Civil & Criminal Process (135)","Civil & Criminal Process","1350080001","256",true,true]
[{"$f":"'Data SBP Programs'!$Q381","v":158},{"$f":"'Data SBP Programs'!$S381&\" - \"&'Data SBP Programs'!$Q381","v":"Services for the Deaf and Hard of Hearing - 158"},null,null,null,null,null,null,null,null,null,null,null,null,256,"Y",135,"Y","Civil & Criminal Process","Civil & Criminal Process (135)",null,null,null,null,"256","135","Civil & Criminal Process (135)","Civil & Criminal Process","1350090001","256",true,true]
[{"$f":"'Data SBP Programs'!$Q382","v":158},{"$f":"'Data SBP Programs'!$S382&\" - \"&'Data SBP Programs'!$Q382","v":"Social Service Agency Contracts: Access to Basic Supports - 158"},null,null,null,null,null,null,null,null,null,null,null,null,256,"Y",135,"Y","Civil & Criminal Process","Civil & Criminal Process (135)",null,null,null,null,"256","135","Civil & Criminal Process (135)","Civil & Criminal Process","1350100001","256",true,true]
[{"$f":"'Data SBP Programs'!$Q384","v":158},{"$f":"'Data SBP Programs'!$S384&\" - \"&'Data SBP Programs'!$Q384","v":"Social Service Agency Contracts: Behavioral Health - 158"},null,null,null,null,null,null,null,null,null,null,null,null,256,"Y",135,"Y","Civil & Criminal Process","Civil & Criminal Process (135)",null,null,null,null,"256","135","Civil & Criminal Process (135)","Civil & Criminal Process","1350110120","256",true,true]
[{"$f":"'Data SBP Programs'!$Q385","v":158},{"$f":"'Data SBP Programs'!$S385&\" - \"&'Data SBP Programs'!$Q385","v":"Social Service Agency Contracts: Child and Youth Development - 158"},null,null,null,null,null,null,null,null,null,null,null,null,258,"Y",136,"Y","Dispute Resolution Center","Dispute Resolution Center (136)",null,null,null,null,"258","136","Dispute Resolution Center (136)","Dispute Resolution Center","1360010104","258",true,true]
[{"$f":"'Data SBP Programs'!$Q386","v":158},{"$f":"'Data SBP Programs'!$S386&\" - \"&'Data SBP Programs'!$Q386","v":"Social Service Agency Contracts: Housing Continuum - 158"},null,null,null,null,null,null,null,null,null,null,null,null,52,"Y",137,"N","Auto Theft Task Force","Auto Theft Task Force (137)",null,null,null,null,"52","137","Auto Theft Task Force (137)","Auto Theft Task Force","1370600001","52",false,true]
[{"$f":"'Data SBP Programs'!$Q387","v":158},{"$f":"'Data SBP Programs'!$S387&\" - \"&'Data SBP Programs'!$Q387","v":"Social Service Agency Contracts: Public Health - 158"},null,null,null,null,null,null,null,null,null,null,null,null,52,"Y",137,"N","Auto Theft Task Force","Auto Theft Task Force (137)",null,null,null,null,"52","137","Auto Theft Task Force (137)","Auto Theft Task Force","1370700001","52",false,true]
[{"$f":"'Data SBP Programs'!$Q388","v":158},{"$f":"'Data SBP Programs'!$S388&\" - \"&'Data SBP Programs'!$Q388","v":"Social Service Agency Contracts: Safety Intervention Svcs - 158"},null,null,null,null,null,null,null,null,null,null,null,null,54,"Y",137,"N","Canine","Canine (137)",null,null,null,null,"54","137","Canine (137)","Canine","1370610001","54",false,true,null,23,"108-Civil Collections"]
[{"$f":"'Data SBP Programs'!$Q389","v":158},{"$f":"'Data SBP Programs'!$S389&\" - \"&'Data SBP Programs'!$Q389","v":"Social Service Agency Contracts: Support Svc Comm Living - 158"},null,null,null,null,null,null,null,null,null,null,null,null,55,"Y",137,"Y","Central Booking","Central Booking (137)",null,null,null,null,"55","137","Central Booking (137)","Central Booking","1370300001","55",true,true]
[{"$f":"'Data SBP Programs'!$Q390","v":158},{"$f":"'Data SBP Programs'!$S390&\" - \"&'Data SBP Programs'!$Q390","v":"Social Service Agency Contracts: Workforce Development - 158"},null,null,null,null,null,null,null,null,null,null,null,null,55,"Y",137,"Y","Central Booking","Central Booking (137)",null,null,null,null,"55","137","Central Booking (137)","Central Booking","1370440001","55",true,true]
[{"$f":"'Data SBP Programs'!$Q391","v":158},{"$f":"'Data SBP Programs'!$S391&\" - \"&'Data SBP Programs'!$Q391","v":"Texas A&M AgriLife Extension Service - 158"},null,null,null,null,null,null,null,null,null,null,null,null,55,"Y",137,"Y","Central Booking","Central Booking (137)",null,null,null,null,"55","137","Central Booking (137)","Central Booking","1370460001","55",true,true]
[{"$f":"'Data SBP Programs'!$Q392","v":158},{"$f":"'Data SBP Programs'!$S392&\" - \"&'Data SBP Programs'!$Q392","v":"The Children’s Partnership/Community Partners for Children - 158"},null,null,null,null,null,null,null,null,null,null,null,null,56,"Y",137,"Y","Central Records","Central Records (137)",null,null,null,null,"56","137","Central Records (137)","Central Records","1370060001","56",true,true]
[{"$f":"'Data SBP Programs'!$Q393","v":158},{"$f":"'Data SBP Programs'!$S393&\" - \"&'Data SBP Programs'!$Q393","v":"The Travis County Children’s Protective Service Board - 158"},null,null,null,null,null,null,null,null,null,null,null,null,57,"Y",137,"N","Central Warrants","Central Warrants (137)",null,null,null,null,"57","137","Central Warrants (137)","Central Warrants","1370070001","57",false,true]
[{"$f":"'Data SBP Programs'!$Q394","v":158},{"$f":"'Data SBP Programs'!$S394&\" - \"&'Data SBP Programs'!$Q394","v":"Work-Based Learning/Summer Youth Employment - 158"},null,null,null,null,null,null,null,null,null,null,null,null,58,"Y",137,"N","Chaplain","Chaplain (137)",null,null,null,null,"58","137","Chaplain (137)","Chaplain","1370560001","58",false,true]
[{"$f":"'Data SBP Programs'!$Q395","v":159},{"$f":"'Data SBP Programs'!$S395&\" - \"&'Data SBP Programs'!$Q395","v":"Austin-TC EMS Interlocal - 159"},null,null,null,null,null,null,null,null,null,null,null,null,69,"Y",137,"N","CID - Major Crimes / Special Crimes / Environmental / Support","CID - Major/Spec/Env/Support (137)",null,null,null,null,"69","137","CID - Major/Spec/Env/Support (137)","CID - Major Crimes / Special Crimes / Environmental / Support","1370620001","69",false,true]
[{"$f":"'Data SBP Programs'!$Q396","v":159},{"$f":"'Data SBP Programs'!$S396&\" - \"&'Data SBP Programs'!$Q396","v":"Clinical Performance and Education - 159"},null,null,null,null,null,null,null,null,null,null,null,null,59,"Y",137,"Y","CJIS - Arrest/Expunction/Fugitive/Misuse ID/Parole/StateXfer","CJIS-Arrest/Exp/Fug/ID/Parole/State(137)",null,null,null,null,"59","137","CJIS-Arrest/Exp/Fug/ID/Parole/State(137)","CJIS - Arrest/Expunction/Fugitive/Misuse ID/Parole/StateXfer","1370140001","59",true,true]
[{"$f":"'Data SBP Programs'!$Q400","v":159},{"$f":"'Data SBP Programs'!$S400&\" - \"&'Data SBP Programs'!$Q400","v":"STAR Flight - 159"},null,null,null,null,null,null,null,null,null,null,null,null,60,"Y",137,"Y","Classification-Records - CSTU / Property\n","Classification-Recs -CSTU/Property (137)",null,null,null,null,"60","137","Classification-Recs -CSTU/Property (137)","Classification-Records - CSTU / Property\n","1000/#","60",true,true]
[{"$f":"'Data SBP Programs'!$Q407","v":0},{"$f":"'Data SBP Programs'!$S407&\" - \"&'Data SBP Programs'!$Q407","v":" - "},null,null,null,null,null,null,null,null,null,null,null,null,64,"Y",137,"Y","Correctional Security","Correctional Security (137)",null,null,null,null,"64","137","Correctional Security (137)","Correctional Security","1370270001","64",true,true]
[null,null,null,null,null,null,null,null,null,null,null,null,null,null,64,"Y",137,"Y","Correctional Security","Correctional Security (137)",null,null,null,null,"64","137","Correctional Security (137)","Correctional Security","1370280001","64",true,true]
[null,null,null,null,null,null,null,null,null,null,null,null,null,null,64,"Y",137,"Y","Correctional Security","Correctional Security (137)",null,null,null,null,"64","137","Correctional Security (137)","Correctional Security","1370290001","64",true,true]
[null,null,null,null,null,null,null,null,null,null,null,null,null,null,67,"Y",137,"Y","Courthouse Security","Courthouse Security (137)",null,null,null,null,"67","137","Courthouse Security (137)","Courthouse Security","1370320001","67",true,true]
[null,null,null,null,null,null,null,null,null,null,null,null,null,null,67,"Y",137,"Y","Courthouse Security","Courthouse Security (137)",null,null,null,null,"67","137","Courthouse Security (137)","Courthouse Security","1370320111","67",true,true]
[null,null,null,null,null,null,null,null,null,null,null,null,null,null,70,"Y",137,"N","Crisis Intervention Team","Crisis Intervention Team (137)",null,null,null,null,"70","137","Crisis Intervention Team (137)","Crisis Intervention Team","1370520001","70",false,true]
[null,null,null,null,null,null,null,null,null,null,null,null,null,null,72,"Y",137,"Y","Dispatch / Communication","Dispatch / Communication (137)",null,null,null,null,"72","137","Dispatch / Communication (137)","Dispatch / Communication","1370640001","72",true,true]
[null,null,null,null,null,null,null,null,null,null,null,null,null,null,74,"Y",137,"N","Estray","Estray (137)",null,null,null,null,"74","137","Estray (137)","Estray","1370680001","74",false,true]
[null,null,null,null,null,null,null,null,null,null,null,null,null,null,185,"Y",137,"N","Facilities - Call Center / Mail Room / Laundry / Warehouse\n","Facilities-CallCtr/Mail/Laundry/Whs(137)",null,null,null,null,"185","137","Facilities-CallCtr/Mail/Laundry/Whs(137)","Facilities - Call Center / Mail Room / Laundry / Warehouse\n","1370380001","185",false,true]
[null,null,null,null,null,null,null,null,null,null,null,null,null,null,77,"Y",137,"N","Finance","Finance (137)",null,null,null,null,"77","137","Finance (137)","Finance","1370050001","77",false,true]
[null,null,null,null,null,null,null,null,null,null,null,null,null,null,80,"Y",137,"Y","Hospital Visitation Unit","Hospital Visitation Unit (137)",null,null,null,null,"80","137","Hospital Visitation Unit (137)","Hospital Visitation Unit","1370360001","80",true,true]
[null,null,null,null,null,null,null,null,null,null,null,null,null,null,81,"Y",137,"N","Human Resources - Recruiting","Human Resources - Recruiting (137)",null,null,null,null,"81","137","Human Resources - Recruiting (137)","Human Resources - Recruiting","1370040001","81",false,true,null,40,"123-Diversity and Community Engagement"]
[null,null,null,null,null,null,null,null,null,null,null,null,null,null,84,"Y",137,"N","Inmate Programs and Education - Library","Inmate Progs & Education - Library (137)",null,null,null,null,"84","137","Inmate Progs & Education - Library (137)","Inmate Programs and Education - Library","1370570001","84",false,true]
[null,null,null,null,null,null,null,null,null,null,null,null,null,null,84,"Y",137,"N","Inmate Programs and Education - Library","Inmate Progs & Education - Library (137)",null,null,null,null,"84","137","Inmate Progs & Education - Library (137)","Inmate Programs and Education - Library","1370580001","84",false,true]
[null,null,null,null,null,null,null,null,null,null,null,null,null,null,84,"Y",137,"N","Inmate Programs and Education - Library","Inmate Progs & Education - Library (137)",null,null,null,null,"84","137","Inmate Progs & Education - Library (137)","Inmate Programs and Education - Library","1370590001","84",false,true]
[null,null,null,null,null,null,null,null,null,null,null,null,null,null,86,"Y",137,"Y","Internal Affairs","Internal Affairs (137)",null,null,null,null,"86","137","Internal Affairs (137)","Internal Affairs","1370020001","86",true,true]
[null,null,null,null,null,null,null,null,null,null,null,null,null,null,87,"Y",137,"Y","Kitchen","Kitchen (137)",null,null,null,null,"87","137","Kitchen (137)","Kitchen","1370370001","87",true,true]
[null,null,null,null,null,null,null,null,null,null,null,null,null,null,88,"Y",137,"N","Lake Patrol","Lake Patrol (137)",null,null,null,null,"88","137","Lake Patrol (137)","Lake Patrol","1370670001","88",false,true]
[null,null,null,null,null,null,null,null,null,null,null,null,null,null,91,"Y",137,"Y","Life Safety","Life Safety (137)",null,null,null,null,"91","137","Life Safety (137)","Life Safety","1370340001","91",true,true]
[null,null,null,null,null,null,null,null,null,null,null,null,null,null,93,"Y",137,"N","Maintenance","Maintenance (137)",null,null,null,null,"93","137","Maintenance (137)","Maintenance","1370390001","93",false,true]
[null,null,null,null,null,null,null,null,null,null,null,null,null,null,95,"Y",137,"N","Marketable Skills","Marketable Skills (137)",null,null,null,null,"95","137","Marketable Skills (137)","Marketable Skills","1370400001","95",false,true]
[null,null,null,null,null,null,null,null,null,null,null,null,null,null,96,"Y",137,"Y","Medical, Mental and Dental Services","Medical, Mental & Dental Services (137)",null,null,null,null,"96","137","Medical, Mental & Dental Services (137)","Medical, Mental and Dental Services","1370150001","96",true,true]
[null,null,null,null,null,null,null,null,null,null,null,null,null,null,96,"Y",137,"Y","Medical, Mental and Dental Services","Medical, Mental & Dental Services (137)",null,null,null,null,"96","137","Medical, Mental & Dental Services (137)","Medical, Mental and Dental Services","1370470001","96",true,true]
[null,null,null,null,null,null,null,null,null,null,null,null,null,null,96,"Y",137,"Y","Medical, Mental and Dental Services","Medical, Mental & Dental Services (137)",null,null,null,null,"96","137","Medical, Mental & Dental Services (137)","Medical, Mental and Dental Services","1370480001","96",true,true]
[null,null,null,null,null,null,null,null,null,null,null,null,null,null,96,"Y",137,"Y","Medical, Mental and Dental Services","Medical, Mental & Dental Services (137)",null,null,null,null,"96","137","Medical, Mental & Dental Services (137)","Medical, Mental and Dental Services","1370490001","96",true,true]
[null,null,null,null,null,null,null,null,null,null,null,null,null,null,96,"Y",137,"Y","Medical, Mental and Dental Services","Medical, Mental & Dental Services (137)",null,null,null,null,"96","137","Medical, Mental & Dental Services (137)","Medical, Mental and Dental Services","1370500001","96",true,true]
[null,null,null,null,null,null,null,null,null,null,null,null,null,null,96,"Y",137,"Y","Medical, Mental and Dental Services","Medical, Mental & Dental Services (137)",null,null,null,null,"96","137","Medical, Mental & Dental Services (137)","Medical, Mental and Dental Services","1370510001","96",true,true]
[null,null,null,null,null,null,null,null,null,null,null,null,null,null,99,"Y",137,"Y","Patrol","Patrol (137)",null,null,null,null,"99","137","Patrol (137)","Patrol","1000/#","99",true,true]
[null,null,null,null,null,null,null,null,null,null,null,null,null,null,183,"Y",137,"N","Police Psychologist","Police Psychologist (137)",null,null,null,null,"183","137","Police Psychologist (137)","Police Psychologist","1000/#","183",false,true]
[null,null,null,null,null,null,null,null,null,null,null,null,null,null,102,"Y",137,"N","Research, Planning and Incident Management","Research, Planning & Incident Mgmt (137)",null,null,null,null,"102","137","Research, Planning & Incident Mgmt (137)","Research, Planning and Incident Management","1370030001","102",false,true]
[null,null,null,null,null,null,null,null,null,null,null,null,null,null,104,"Y",137,"N","Reserves","Reserves (137)",null,null,null,null,"104","137","Reserves (137)","Reserves","1000/#","104",false,true]
[null,null,null,null,null,null,null,null,null,null,null,null,null,null,103,"Y",137,"N","School Resource Officers (SRO)","School Resource Officers (SRO) (137)",null,null,null,null,"103","137","School Resource Officers (SRO) (137)","School Resource Officers (SRO)","1370710001","103",false,true]
[null,null,null,null,null,null,null,null,null,null,null,null,null,null,106,"Y",137,"N","Special Weapons & Tactical Unit (SWAT)","Special Weapons & Tactical Un-SWAT (137)",null,null,null,null,"106","137","Special Weapons & Tactical Un-SWAT (137)","Special Weapons & Tactical Unit (SWAT)","1370720001","106",false,true]
[null,null,null,null,null,null,null,null,null,null,null,null,null,null,79,"Y",137,"N","Traffic - CVE / DWI / HEAT / Impound / MOTORS","Traffic-CVE/DWI/HEAT/Impound/Motor (137)",null,null,null,null,"79","137","Traffic-CVE/DWI/HEAT/Impound/Motor (137)","Traffic - CVE / DWI / HEAT / Impound / MOTORS","1370660001","79",false,true]
[null,null,null,null,null,null,null,null,null,null,null,null,null,null,107,"Y",137,"Y","Training Academy","Training Academy  (137)",null,null,null,null,"107","137","Training Academy  (137)","Training Academy","1370090001","107",true,true]
[null,null,null,null,null,null,null,null,null,null,null,null,null,null,108,"Y",137,"Y","Transportation","Transportation (137)",null,null,null,null,"108","137","Transportation (137)","Transportation","1370420001","108",true,true]
[null,null,null,null,null,null,null,null,null,null,null,null,null,null,98,"Y",137,"N","VICE","VICE (137)",null,null,null,null,"98","137","VICE (137)","VICE","1370690001","98",false,true]
[null,null,null,null,null,null,null,null,null,null,null,null,null,null,109,"Y",137,"N","Victim Services","Victim Services (137)",null,null,null,null,"109","137","Victim Services (137)","Victim Services","1370740001","109",false,true]
[null,null,null,null,null,null,null,null,null,null,null,null,null,null,259,"Y",138,"Y","Administration","Administration (138)",null,null,null,null,"259","138","Administration (138)","Administration","1380010001","259",true,true]
[null,null,null,null,null,null,null,null,null,null,null,null,null,null,260,"Y",138,"Y","Investigations","Investigations (138)",null,null,null,null,"260","138","Investigations (138)","Investigations","1380050001","260",true,true]
[null,null,null,null,null,null,null,null,null,null,null,null,null,null,263,"Y",138,"Y","Pathology","Pathology (138)",null,null,null,null,"263","138","Pathology (138)","Pathology","1380020001","263",true,true]
[null,null,null,null,null,null,null,null,null,null,null,null,null,null,263,"Y",138,"Y","Pathology","Pathology (138)",null,null,null,null,"263","138","Pathology (138)","Pathology","1380060001","263",true,true]
[null,null,null,null,null,null,null,null,null,null,null,null,null,null,261,"Y",138,"Y","Toxicology","Toxicology (138)",null,null,null,null,"261","138","Toxicology (138)","Toxicology","1380030001","261",true,true]
[null,null,null,null,null,null,null,null,null,null,null,null,null,null,264,"Y",139,"Y","Adult Probation CSCD","Adult Probation CSCD  (139)",null,null,null,null,"264","139","Adult Probation CSCD  (139)","Adult Probation CSCD","1390010001","264",true,true]
[null,null,null,null,null,null,null,null,null,null,null,null,null,null,303,"Y",140,"N","Administration\n","Administration (140)",null,null,null,null,"303","140","Administration (140)","Administration\n","1400010001","303",false,true]
[null,null,null,null,null,null,null,null,null,null,null,null,null,null,265,"Y",140,"Y","Adult Education Classes","Adult Education Classes (140)",null,null,null,null,"265","140","Adult Education Classes (140)","Adult Education Classes","1400020001","265",true,true]
[null,null,null,null,null,null,null,null,null,null,null,null,null,null,265,"Y",140,"Y","Adult Education Classes","Adult Education Classes (140)",null,null,null,null,"265","140","Adult Education Classes (140)","Adult Education Classes","1400020148","265",true,true]
[null,null,null,null,null,null,null,null,null,null,null,null,null,null,265,"Y",140,"Y","Adult Education Classes","Adult Education Classes (140)",null,null,null,null,"265","140","Adult Education Classes (140)","Adult Education Classes","1400040001","265",true,true]
[null,null,null,null,null,null,null,null,null,null,null,null,null,null,269,"Y",140,"Y","Alcohol & Drug Classes/Programs","Alcohol & Drug Classes/Programs (140)",null,null,null,null,"269","140","Alcohol & Drug Classes/Programs (140)","Alcohol & Drug Classes/Programs","1400050001","269",true,true]
[null,null,null,null,null,null,null,null,null,null,null,null,null,null,306,"Y",140,"N","Austin/Travis County Family Violence Task Force\n","A/TC Family Violence Task Force (140)",null,null,null,null,"306","140","A/TC Family Violence Task Force (140)","Austin/Travis County Family Violence Task Force\n","1000/#","306",false,true]
[null,null,null,null,null,null,null,null,null,null,null,null,null,null,267,"Y",140,"N","Crime Victims Fund","Crime Victims Fund (140)",null,null,null,null,"267","140","Crime Victims Fund (140)","Crime Victims Fund","1400110001","267",false,true]
[null,null,null,null,null,null,null,null,null,null,null,null,null,null,268,"Y",140,"N","Intake & Assessments","Intake & Assessments (140)",null,null,null,null,"268","140","Intake & Assessments (140)","Intake & Assessments","1400030001","268",false,true]
[null,null,null,null,null,null,null,null,null,null,null,null,null,null,268,"Y",140,"N","Intake & Assessments","Intake & Assessments (140)",null,null,null,null,"268","140","Intake & Assessments (140)","Intake & Assessments","1400060001","268",false,true]
[null,null,null,null,null,null,null,null,null,null,null,null,null,null,268,"Y",140,"N","Intake & Assessments","Intake & Assessments (140)",null,null,null,null,"268","140","Intake & Assessments (140)","Intake & Assessments","1400070001","268",false,true]
[null,null,null,null,null,null,null,null,null,null,null,null,null,null,266,"Y",140,"Y","Juvenile Education Classes","Juvenile Education Classes (140)",null,null,null,null,"266","140","Juvenile Education Classes (140)","Juvenile Education Classes","1400100001","266",true,true]
[null,null,null,null,null,null,null,null,null,null,null,null,null,null,293,"Y",140,"N","Phoenix Court - Prostitution Prevention Program","Phoenix Court - Prostitution Prevnt(140)",null,null,null,null,"293","140","Phoenix Court - Prostitution Prevnt(140)","Phoenix Court - Prostitution Prevention Program","1400090001","293",false,true]
[null,null,null,null,null,null,null,null,null,null,null,null,null,null,270,"Y",142,"N","Case Management","Case Management (142)",null,null,null,null,"270","142","Case Management (142)","Case Management","1420010001","270",false,true]
[null,null,null,null,null,null,null,null,null,null,null,null,null,null,272,"Y",142,"Y","Investigations","Investigations (142)",null,null,null,null,"272","142","Investigations (142)","Investigations","1420160001","272",true,true]
[null,null,null,null,null,null,null,null,null,null,null,null,null,null,271,"Y",142,"Y","Specialty Courts","Specialty Courts (142)",null,null,null,null,"271","142","Specialty Courts (142)","Specialty Courts","1420150001","271",true,true]
[null,null,null,null,null,null,null,null,null,null,null,null,null,null,273,"Y",143,"Y","Juvenile Public Defender","Juvenile Public Defender (143)",null,null,null,null,"273","143","Juvenile Public Defender (143)","Juvenile Public Defender","1430100001","273",true,true]
[null,null,null,null,null,null,null,null,null,null,null,null,null,null,273,"Y",143,"Y","Juvenile Public Defender","Juvenile Public Defender (143)",null,null,null,null,"273","143","Juvenile Public Defender (143)","Juvenile Public Defender","1430200001","273",true,true]
[null,null,null,null,null,null,null,null,null,null,null,null,null,null,273,"Y",143,"Y","Juvenile Public Defender","Juvenile Public Defender (143)",null,null,null,null,"273","143","Juvenile Public Defender (143)","Juvenile Public Defender","1430300001","273",true,true]
[null,null,null,null,null,null,null,null,null,null,null,null,null,null,273,"Y",143,"Y","Juvenile Public Defender","Juvenile Public Defender (143)",null,null,null,null,"273","143","Juvenile Public Defender (143)","Juvenile Public Defender","1430400001","273",true,true]
[null,null,null,null,null,null,null,null,null,null,null,null,null,null,305,"Y",144,"Y","Public Defender's Office","Public Defender's Office (144)",null,null,null,null,"305","144","Public Defender's Office (144)","Public Defender's Office","1440010001","305",true,true]
[null,null,null,null,null,null,null,null,null,null,null,null,null,null,305,"Y",144,"Y","Public Defender's Office","Public Defender's Office (144)",null,null,null,null,"305","144","Public Defender's Office (144)","Public Defender's Office","1440020001","305",true,true]
[null,null,null,null,null,null,null,null,null,null,null,null,null,null,305,"Y",144,"Y","Public Defender's Office","Public Defender's Office (144)",null,null,null,null,"305","144","Public Defender's Office (144)","Public Defender's Office","1440030001","305",true,true]
[null,null,null,null,null,null,null,null,null,null,null,null,null,null,305,"Y",144,"Y","Public Defender's Office","Public Defender's Office (144)",null,null,null,null,"305","144","Public Defender's Office (144)","Public Defender's Office","1440040001","305",true,true]
[null,null,null,null,null,null,null,null,null,null,null,null,null,null,119,"Y",145,"N","Court Administration","Court Administration (145)",null,null,null,null,"119","145","Court Administration (145)","Court Administration","1450170001","119",false,true]
[null,null,null,null,null,null,null,null,null,null,null,null,null,null,119,"Y",145,"N","Court Administration","Court Administration (145)",null,null,null,null,"119","145","Court Administration (145)","Court Administration","1450640001","119",false,true]
[null,null,null,null,null,null,null,null,null,null,null,null,null,null,120,"Y",145,"Y","Court Services","Court Services (145)",null,null,null,null,"120","145","Court Services (145)","Court Services","1450190001","120",true,true]
[null,null,null,null,null,null,null,null,null,null,null,null,null,null,120,"Y",145,"Y","Court Services","Court Services (145)",null,null,null,null,"120","145","Court Services (145)","Court Services","1450200001","120",true,true]
[null,null,null,null,null,null,null,null,null,null,null,null,null,null,120,"Y",145,"Y","Court Services","Court Services (145)",null,null,null,null,"120","145","Court Services (145)","Court Services","1450210001","120",true,true]
[null,null,null,null,null,null,null,null,null,null,null,null,null,null,120,"Y",145,"Y","Court Services","Court Services (145)",null,null,null,null,"120","145","Court Services (145)","Court Services","1450220001","120",true,true]
[null,null,null,null,null,null,null,null,null,null,null,null,null,null,120,"Y",145,"Y","Court Services","Court Services (145)",null,null,null,null,"120","145","Court Services (145)","Court Services","1450230001","120",true,true]
[null,null,null,null,null,null,null,null,null,null,null,null,null,null,120,"Y",145,"Y","Court Services","Court Services (145)",null,null,null,null,"120","145","Court Services (145)","Court Services","1450290001","120",true,true]
[null,null,null,null,null,null,null,null,null,null,null,null,null,null,120,"Y",145,"Y","Court Services","Court Services (145)",null,null,null,null,"120","145","Court Services (145)","Court Services","1450660001","120",true,true]
[null,null,null,null,null,null,null,null,null,null,null,null,null,null,121,"Y",145,"Y","Detention Services","Detention Services (145)",null,null,null,null,"121","145","Detention Services (145)","Detention Services","1450370001","121",true,true]
[null,null,null,null,null,null,null,null,null,null,null,null,null,null,121,"Y",145,"Y","Detention Services","Detention Services (145)",null,null,null,null,"121","145","Detention Services (145)","Detention Services","1450670001","121",true,true]
[null,null,null,null,null,null,null,null,null,null,null,null,null,null,122,"Y",145,"Y","Domestic Relations Office","Domestic Relations Office (145)",null,null,null,null,"122","145","Domestic Relations Office (145)","Domestic Relations Office","1450440001","122",true,true]
[null,null,null,null,null,null,null,null,null,null,null,null,null,null,122,"Y",145,"Y","Domestic Relations Office","Domestic Relations Office (145)",null,null,null,null,"122","145","Domestic Relations Office (145)","Domestic Relations Office","1450690001","122",true,true]
[null,null,null,null,null,null,null,null,null,null,null,null,null,null,123,"Y",145,"N","Health Services","Health Services (145)",null,null,null,null,"123","145","Health Services (145)","Health Services","1450150001","123",false,true]
[null,null,null,null,null,null,null,null,null,null,null,null,null,null,123,"Y",145,"N","Health Services","Health Services (145)",null,null,null,null,"123","145","Health Services (145)","Health Services","1450630001","123",false,true]
[null,null,null,null,null,null,null,null,null,null,null,null,null,null,310,"Y",145,"N","IT/Planning and Research","IT/Planning and Research (145)",null,null,null,null,"310","145","IT/Planning and Research (145)","IT/Planning and Research","1450710001","310",false,true]
[null,null,null,null,null,null,null,null,null,null,null,null,null,null,124,"Y",145,"N","Juvenile Probation Support Services","Juvenile Probation Support Service (145)",null,null,null,null,"124","145","Juvenile Probation Support Service (145)","Juvenile Probation Support Services","1450010001","124",false,true]
[null,null,null,null,null,null,null,null,null,null,null,null,null,null,124,"Y",145,"N","Juvenile Probation Support Services","Juvenile Probation Support Service (145)",null,null,null,null,"124","145","Juvenile Probation Support Service (145)","Juvenile Probation Support Services","1450600001","124",false,true]
[null,null,null,null,null,null,null,null,null,null,null,null,null,null,125,"Y",145,"Y","Probation Services","Probation Services (145)",null,null,null,null,"125","145","Probation Services (145)","Probation Services","1450240001","125",true,true]
[null,null,null,null,null,null,null,null,null,null,null,null,null,null,125,"Y",145,"Y","Probation Services","Probation Services (145)",null,null,null,null,"125","145","Probation Services (145)","Probation Services","1450250001","125",true,true]
[null,null,null,null,null,null,null,null,null,null,null,null,null,null,125,"Y",145,"Y","Probation Services","Probation Services (145)",null,null,null,null,"125","145","Probation Services (145)","Probation Services","1450260001","125",true,true]
[null,null,null,null,null,null,null,null,null,null,null,null,null,null,125,"Y",145,"Y","Probation Services","Probation Services (145)",null,null,null,null,"125","145","Probation Services (145)","Probation Services","1450270001","125",true,true]
[null,null,null,null,null,null,null,null,null,null,null,null,null,null,125,"Y",145,"Y","Probation Services","Probation Services (145)",null,null,null,null,"125","145","Probation Services (145)","Probation Services","1450280001","125",true,true]
[null,null,null,null,null,null,null,null,null,null,null,null,null,null,125,"Y",145,"Y","Probation Services","Probation Services (145)",null,null,null,null,"125","145","Probation Services (145)","Probation Services","1450300001","125",true,true]
[null,null,null,null,null,null,null,null,null,null,null,null,null,null,125,"Y",145,"Y","Probation Services","Probation Services (145)",null,null,null,null,"125","145","Probation Services (145)","Probation Services","1450650001","125",true,true]
[null,null,null,null,null,null,null,null,null,null,null,null,null,null,126,"Y",145,"N","Residential Services","Residential Services (145)",null,null,null,null,"126","145","Residential Services (145)","Residential Services","1450380001","126",false,true]
[null,null,null,null,null,null,null,null,null,null,null,null,null,null,126,"Y",145,"N","Residential Services","Residential Services (145)",null,null,null,null,"126","145","Residential Services (145)","Residential Services","1450680001","126",false,true]
[null,null,null,null,null,null,null,null,null,null,null,null,null,null,309,"Y",145,"N","Social Services","Social Services (145)",null,null,null,null,"309","145","Social Services (145)","Social Services","1450700001","309",false,true]
[null,null,null,null,null,null,null,null,null,null,null,null,null,null,275,"Y",147,"Y","Emergency Management","Emergency Management (147)",null,null,null,null,"275","147","Emergency Management (147)","Emergency Management","1470040001","275",true,true]
[null,null,null,null,null,null,null,null,null,null,null,null,null,null,276,"Y",147,"Y","Fire Marshal","Fire Marshal (147)",null,null,null,null,"276","147","Fire Marshal (147)","Fire Marshal","1470020001","276",true,true]
[null,null,null,null,null,null,null,null,null,null,null,null,null,null,278,"Y",147,"Y","Technology & Communications","Technology & Communications (147)",null,null,null,null,"278","147","Technology & Communications (147)","Technology & Communications","1470010001","278",true,true]
[null,null,null,null,null,null,null,null,null,null,null,null,null,null,127,"Y",149,"N","Customer Service","Customer Service (149)",null,null,null,null,"127","149","Customer Service (149)","Customer Service","1490250001","127",false,true]
[null,null,null,null,null,null,null,null,null,null,null,null,null,null,128,"Y",149,"Y","Development Services and Long Range Planning","Dev Services & Long Range Planning (149)",null,null,null,null,"128","149","Dev Services & Long Range Planning (149)","Development Services and Long Range Planning","1490130001","128",true,true]
[null,null,null,null,null,null,null,null,null,null,null,null,null,null,129,"Y",149,"Y","Environmental Quality","Environmental Quality (149)",null,null,null,null,"129","149","Environmental Quality (149)","Environmental Quality","1490110001","129",true,true]
[null,null,null,null,null,null,null,null,null,null,null,null,null,null,184,"Y",149,"N","Financial Services","Financial Services (149)",null,null,null,null,"184","149","Financial Services (149)","Financial Services","1490060001","184",false,true]
[null,null,null,null,null,null,null,null,null,null,null,null,null,null,184,"Y",149,"N","Financial Services","Financial Services (149)",null,null,null,null,"184","149","Financial Services (149)","Financial Services","1490060145","184",false,true]
[null,null,null,null,null,null,null,null,null,null,null,null,null,null,130,"Y",149,"N","Fleet Services","Fleet Services (149)",null,null,null,null,"130","149","Fleet Services (149)","Fleet Services","1490350001","130",false,true]
[null,null,null,null,null,null,null,null,null,null,null,null,null,null,131,"Y",149,"Y","Natural Resources Program","Natural Resources Program (149)",null,null,null,null,"131","149","Natural Resources Program (149)","Natural Resources Program","1490120001","131",true,true]
[null,null,null,null,null,null,null,null,null,null,null,null,null,null,132,"Y",149,"N","On-Site Wastewater","On-Site Wastewater (149)",null,null,null,null,"132","149","On-Site Wastewater (149)","On-Site Wastewater","1490160001","132",false,true]
[null,null,null,null,null,null,null,null,null,null,null,null,null,null,133,"Y",149,"N","Park Services","Park Services (149)",null,null,null,null,"133","149","Park Services (149)","Park Services","1490220001","133",false,true]
[null,null,null,null,null,null,null,null,null,null,null,null,null,null,134,"Y",149,"Y","Planning and Geographic Information Systems (GIS)","Planning & Geographic Info Sys-GIS (149)",null,null,null,null,"134","149","Planning & Geographic Info Sys-GIS (149)","Planning and Geographic Information Systems (GIS)","1490100001","134",true,true]
[null,null,null,null,null,null,null,null,null,null,null,null,null,null,135,"Y",149,"N","Public Works – CIP","Public Works – CIP (149)",null,null,null,null,"135","149","Public Works – CIP (149)","Public Works – CIP","1490190001","135",false,true]
[null,null,null,null,null,null,null,null,null,null,null,null,null,null,136,"Y",149,"N","Public Works - Survey","Public Works - Survey (149)",null,null,null,null,"136","149","Public Works - Survey (149)","Public Works - Survey","1000/#","136",false,true]
[null,null,null,null,null,null,null,null,null,null,null,null,null,null,138,"Y",149,"Y","Road & Bridge","Road & Bridge (149)",null,null,null,null,"138","149","Road & Bridge (149)","Road & Bridge","1490200001","138",true,true]
[null,null,null,null,null,null,null,null,null,null,null,null,null,null,139,"Y",149,"Y","Sign Shop Services","Sign Shop Services (149)",null,null,null,null,"139","149","Sign Shop Services (149)","Sign Shop Services","1490210001","139",true,true]
[null,null,null,null,null,null,null,null,null,null,null,null,null,null,140,"Y",149,"N","TNR Human Resources","TNR Human Resources (149)",null,null,null,null,"140","149","TNR Human Resources (149)","TNR Human Resources","1490010001","140",false,true]
[null,null,null,null,null,null,null,null,null,null,null,null,null,null,141,"Y",149,"N","TNR-Administrative Support","TNR-Administrative Support (149)",null,null,null,null,"141","149","TNR-Administrative Support (149)","TNR-Administrative Support","1000/#","141",false,true]
[null,null,null,null,null,null,null,null,null,null,null,null,null,null,142,"Y",149,"N","TNR-Records Management","TNR-Records Management (149)",null,null,null,null,"142","149","TNR-Records Management (149)","TNR-Records Management","1000/#","142",false,true]
[null,null,null,null,null,null,null,null,null,null,null,null,null,null,143,"Y",149,"N","TNR-Safety","TNR-Safety (149)",null,null,null,null,"143","149","TNR-Safety (149)","TNR-Safety","1490070001","143",false,true]
[null,null,null,null,null,null,null,null,null,null,null,null,null,null,279,"Y",154,"Y","Civil Service Commission","Civil Service Commission (154)",null,null,null,null,"279","154","Civil Service Commission (154)","Civil Service Commission","1540010001","279",true,true]
[null,null,null,null,null,null,null,null,null,null,null,null,null,null,179,"Y",155,"N","Justice Planning","Justice Planning (155)",null,null,null,null,"179","155","Justice Planning (155)","Justice Planning","1550010001","179",false,true]
[null,null,null,null,null,null,null,null,null,null,null,null,null,null,285,"Y",155,"N","Law Library","Law Library (155)",null,null,null,null,"285","155","Law Library (155)","Law Library","1550150001","285",false,true]
[null,null,null,null,null,null,null,null,null,null,null,null,null,null,285,"Y",155,"N","Law Library","Law Library (155)",null,null,null,null,"285","155","Law Library (155)","Law Library","1550150100","285",false,true]
[null,null,null,null,null,null,null,null,null,null,null,null,null,null,285,"Y",155,"N","Law Library","Law Library (155)",null,null,null,null,"285","155","Law Library (155)","Law Library","1550160001","285",false,true]
[null,null,null,null,null,null,null,null,null,null,null,null,null,null,285,"Y",155,"N","Law Library","Law Library (155)",null,null,null,null,"285","155","Law Library (155)","Law Library","1550160100","285",false,true]
[null,null,null,null,null,null,null,null,null,null,null,null,null,null,181,"Y",155,"N","Mental Health Public Defender","Mental Health Public Defender (155)",null,null,null,null,"181","155","Mental Health Public Defender (155)","Mental Health Public Defender","1550070001","181",false,true]
[null,null,null,null,null,null,null,null,null,null,null,null,null,null,182,"Y",155,"N","Office of Child Representation","Office of Child Representation (155)",null,null,null,null,"182","155","Office of Child Representation (155)","Office of Child Representation","1550060001","182",false,true]
[null,null,null,null,null,null,null,null,null,null,null,null,null,null,180,"Y",155,"N","Office of Parent Representation","Office of Parent Representation (155)",null,null,null,null,"180","155","Office of Parent Representation (155)","Office of Parent Representation","1550050001","180",false,true]
[null,null,null,null,null,null,null,null,null,null,null,null,null,null,297,"Y",155,"N","Workforce Development Taskforce (WD)\n","Workforce Development Taskforce WD (155)",null,null,null,null,"297","155","Workforce Development Taskforce WD (155)","Workforce Development Taskforce (WD)\n","1550040001","297",false,true]
[null,null,null,null,null,null,null,null,null,null,null,null,null,null,145,"Y",158,"N","CDBG Administration","CDBG Administration (158)",null,null,null,null,"145","158","CDBG Administration (158)","CDBG Administration","1580060001","145",false,true]
[null,null,null,null,null,null,null,null,null,null,null,null,null,null,146,"Y",158,"N","Child Protective Services Reintegration Project (CRP)","Child Prot Svcs Reintegrt Proj-CRP (158)",null,null,null,null,"146","158","Child Prot Svcs Reintegrt Proj-CRP (158)","Child Protective Services Reintegration Project (CRP)","1580220001","146",false,true]
[null,null,null,null,null,null,null,null,null,null,null,null,null,null,148,"Y",158,"N","engAGE Travis County","engAGE Travis County (158)",null,null,null,null,"148","158","engAGE Travis County (158)","engAGE Travis County","1580300001","148",false,true]
[null,null,null,null,null,null,null,null,null,null,null,null,null,null,147,"Y",158,"N","Family First","Family First (158)",null,null,null,null,"147","158","Family First (158)","Family First","1580230001","147",false,true]
[null,null,null,null,null,null,null,null,null,null,null,null,null,null,153,"Y",158,"N","Family Support Services Division","Family Support Services Division (158)",null,null,null,null,"153","158","Family Support Services Division (158)","Family Support Services Division","1580100001","153",false,true]
[null,null,null,null,null,null,null,null,null,null,null,null,null,null,155,"Y",158,"N","Healthy Families Travis County","Healthy Families Travis County (158)",null,null,null,null,"155","158","Healthy Families Travis County (158)","Healthy Families Travis County","1580240001","155",false,true]
[null,null,null,null,null,null,null,null,null,null,null,null,null,null,156,"Y",158,"N","Housing Services","Housing Services (158)",null,null,null,null,"156","158","Housing Services (158)","Housing Services","1580320001","156",false,true]
[null,null,null,null,null,null,null,null,null,null,null,null,null,null,157,"Y",158,"N","Neighborhood Conference Committee (NCC)","Neighborhood Conference Comm - NCC (158)",null,null,null,null,"157","158","Neighborhood Conference Comm - NCC (158)","Neighborhood Conference Committee (NCC)","1580280001","157",false,true]
[null,null,null,null,null,null,null,null,null,null,null,null,null,null,150,"Y",158,"N","Office of the Chief Deputy: Community Liaison\n","Ofc of Chief Dep: Community Liaison(158)",null,null,null,null,"150","158","Ofc of Chief Dep: Community Liaison(158)","Office of the Chief Deputy: Community Liaison\n","1580510001","150",false,true]
[null,null,null,null,null,null,null,null,null,null,null,null,null,null,159,"Y",158,"N","Parenting in Recovery","Parenting in Recovery (158)",null,null,null,null,"159","158","Parenting in Recovery (158)","Parenting in Recovery","1000/#","159",false,true]
[null,null,null,null,null,null,null,null,null,null,null,null,null,null,161,"Y",158,"N","Research & Planning Division","Research & Planning Division (158)",null,null,null,null,"161","158","Research & Planning Division (158)","Research & Planning Division","1580040001","161",false,true]
[null,null,null,null,null,null,null,null,null,null,null,null,null,null,162,"Y",158,"Y","Services for the Deaf and Hard of Hearing","Service for Deaf & Hard of Hearing (158)",null,null,null,null,"162","158","Service for Deaf & Hard of Hearing (158)","Services for the Deaf and Hard of Hearing","1580310001","162",true,true]
[null,null,null,null,null,null,null,null,null,null,null,null,null,null,163,"Y",158,"N","Social Service Agency Contracts: Access to Basic Supports","SSA Contracts: Acc to Basic Support(158)",null,null,null,null,"163","158","SSA Contracts: Acc to Basic Support(158)","Social Service Agency Contracts: Access to Basic Supports","1580540001","163",false,true]
[null,null,null,null,null,null,null,null,null,null,null,null,null,null,163,"Y",158,"N","Social Service Agency Contracts: Access to Basic Supports","SSA Contracts: Acc to Basic Support(158)",null,null,null,null,"163","158","SSA Contracts: Acc to Basic Support(158)","Social Service Agency Contracts: Access to Basic Supports","1580640001","163",false,true]
[null,null,null,null,null,null,null,null,null,null,null,null,null,null,164,"Y",158,"N","Social Service Agency Contracts: Behavioral Health","SSA Contracts: Behavioral Health (158)",null,null,null,null,"164","158","SSA Contracts: Behavioral Health (158)","Social Service Agency Contracts: Behavioral Health","1580660001","164",false,true]
[null,null,null,null,null,null,null,null,null,null,null,null,null,null,165,"Y",158,"N","Social Service Agency Contracts: Child and Youth Development","SSA Contracts: Child & Youth Devlp (158)",null,null,null,null,"165","158","SSA Contracts: Child & Youth Devlp (158)","Social Service Agency Contracts: Child and Youth Development","1580650001","165",false,true]
[null,null,null,null,null,null,null,null,null,null,null,null,null,null,167,"Y",158,"N","Social Service Agency Contracts: Housing Continuum","SSA Contracts: Housing Continuum (158)",null,null,null,null,"167","158","SSA Contracts: Housing Continuum (158)","Social Service Agency Contracts: Housing Continuum","1580630001","167",false,true]
[null,null,null,null,null,null,null,null,null,null,null,null,null,null,168,"Y",158,"N","Social Service Agency Contracts: Public Health","SSA Contracts: Public Health (158)",null,null,null,null,"168","158","SSA Contracts: Public Health (158)","Social Service Agency Contracts: Public Health","1580610001","168",false,true]
[null,null,null,null,null,null,null,null,null,null,null,null,null,null,169,"Y",158,"N","Social Service Agency Contracts: Safety Intervention Svcs","SSA Contracts: Safety Interven Svc (158)",null,null,null,null,"169","158","SSA Contracts: Safety Interven Svc (158)","Social Service Agency Contracts: Safety Intervention Svcs","1580620001","169",false,true]
[null,null,null,null,null,null,null,null,null,null,null,null,null,null,170,"Y",158,"N","Social Service Agency Contracts: Support Svc Comm Living","SSA Contracts: Sup Svc Comm Living (158)",null,null,null,null,"170","158","SSA Contracts: Sup Svc Comm Living (158)","Social Service Agency Contracts: Support Svc Comm Living","1580590001","170",false,true]
[null,null,null,null,null,null,null,null,null,null,null,null,null,null,171,"Y",158,"N","Social Service Agency Contracts: Workforce Development","SSA Contracts: Workforce Developmt (158)",null,null,null,null,"171","158","SSA Contracts: Workforce Developmt (158)","Social Service Agency Contracts: Workforce Development","1580580001","171",false,true]
[null,null,null,null,null,null,null,null,null,null,null,null,null,null,172,"Y",158,"N","Texas A&M AgriLife Extension Service","Texas A&M AgriLife Extension Svc (158)",null,null,null,null,"172","158","Texas A&M AgriLife Extension Svc (158)","Texas A&M AgriLife Extension Service","1580420001","172",false,true]
[null,null,null,null,null,null,null,null,null,null,null,null,null,null,173,"Y",158,"N","The Children’s Partnership/Community Partners for Children","TCP/Comm Partners for Children (158)",null,null,null,null,"173","158","TCP/Comm Partners for Children (158)","The Children’s Partnership/Community Partners for Children","1580260001","173",false,true]
[null,null,null,null,null,null,null,null,null,null,null,null,null,null,174,"Y",158,"Y","The Travis County Children’s Protective Service Board","TC Children’s Protective Svc Board (158)",null,null,null,null,"174","158","TC Children’s Protective Svc Board (158)","The Travis County Children’s Protective Service Board","1580200001","174",true,true]
[null,null,null,null,null,null,null,null,null,null,null,null,null,null,177,"Y",158,"N","Work-Based Learning/Summer Youth Employment","Work-Based Learng/Summer Youth Emp (158)",null,null,null,null,"177","158","Work-Based Learng/Summer Youth Emp (158)","Work-Based Learning/Summer Youth Employment","1580290001","177",false,true]
[null,null,null,null,null,null,null,null,null,null,null,null,null,null,289,"Y",159,"Y","Austin-TC EMS Interlocal","Austin-TC EMS Interlocal (159)",null,null,null,null,"289","159","Austin-TC EMS Interlocal (159)","Austin-TC EMS Interlocal","1590080001","289",true,true]
[null,null,null,null,null,null,null,null,null,null,null,null,null,null,291,"Y",159,"Y","Clinical Performance and Education","Clinical Performance and Education (159)",null,null,null,null,"291","159","Clinical Performance and Education (159)","Clinical Performance and Education","1590090001","291",true,true]
[null,null,null,null,null,null,null,null,null,null,null,null,null,null,291,"Y",159,"Y","Clinical Performance and Education","Clinical Performance and Education (159)",null,null,null,null,"291","159","Clinical Performance and Education (159)","Clinical Performance and Education","1590100001","291",true,true]
[null,null,null,null,null,null,null,null,null,null,null,null,null,null,291,"Y",159,"Y","Clinical Performance and Education","Clinical Performance and Education (159)",null,null,null,null,"291","159","Clinical Performance and Education (159)","Clinical Performance and Education","1590110000","291",true,true]
[null,null,null,null,null,null,null,null,null,null,null,null,null,null,291,"Y",159,"Y","Clinical Performance and Education","Clinical Performance and Education (159)",null,null,null,null,"291","159","Clinical Performance and Education (159)","Clinical Performance and Education","1590110001","291",true,true]
[null,null,null,null,null,null,null,null,null,null,null,null,null,null,290,"Y",159,"Y","STAR Flight","STAR Flight (159)",null,null,null,null,"290","159","STAR Flight (159)","STAR Flight","1590010001","290",true,true]
[null,null,null,null,null,null,null,null,null,null,null,null,null,null,290,"Y",159,"Y","STAR Flight","STAR Flight (159)",null,null,null,null,"290","159","STAR Flight (159)","STAR Flight","1590020001","290",true,true]
[null,null,null,null,null,null,null,null,null,null,null,null,null,null,290,"Y",159,"Y","STAR Flight","STAR Flight (159)",null,null,null,null,"290","159","STAR Flight (159)","STAR Flight","1590030001","290",true,true]
[null,null,null,null,null,null,null,null,null,null,null,null,null,null,290,"Y",159,"Y","STAR Flight","STAR Flight (159)",null,null,null,null,"290","159","STAR Flight (159)","STAR Flight","1590040001","290",true,true]
[null,null,null,null,null,null,null,null,null,null,null,null,null,null,290,"Y",159,"Y","STAR Flight","STAR Flight (159)",null,null,null,null,"290","159","STAR Flight (159)","STAR Flight","1590050001","290",true,true]
[null,null,null,null,null,null,null,null,null,null,null,null,null,null,290,"Y",159,"Y","STAR Flight","STAR Flight (159)",null,null,null,null,"290","159","STAR Flight (159)","STAR Flight","1590060001","290",true,true]
[null,null,null,null,null,null,null,null,null,null,null,null,null,null,290,"Y",159,"Y","STAR Flight","STAR Flight (159)",null,null,null,null,"290","159","STAR Flight (159)","STAR Flight","1590070001","290",true,true]
[null,null,null,null,null,null,null,null,null,null,null,null,null,null,null,null,null,null,null,null,null,null,null,null,0,0,0,0,"",0,false,false]

{"sheet":"Programs Active","index":15,"n_rows":257,"n_cols":18,"rows_kept":257,"cut":false,"hidden":true,"merged":[]}
["ZSBPPROGM (KEY)","ZACTIVE","ZSBP_DEPT","ZMANDATED","LONG TEXT","MEDIUM TEXT","fundcenters","Column12","Column13","Access Layout","ID","Dpt","SBPPrograms(Dpt)","SBPPrograms","SBPProgramsFC","Program Key","Mandated","Active"]
[10,"Y",109,"Y","Budget","Budget (109)",1090030001,null,null,null,10,109,"Budget (109)","Budget",1090030001,10,true,true]
[11,"Y",109,"N","Economic & Strategic Planning","Economic & Strategic Planning (109)",1090020001,null,null,null,11,109,"Economic & Strategic Planning (109)","Economic & Strategic Planning",1090020001,11,false,true]
[12,"Y",109,"Y","Investment Management","Investment Management (109)",1090040001,null,null,null,12,109,"Investment Management (109)","Investment Management",1090040001,12,true,true]
[13,"Y",109,"Y","Corporations","Corporations (109)",1090050001,null,null,null,13,109,"Corporations (109)","Corporations",1090050001,13,true,true]
[14,"Y",109,"N","Administration","Administration (109)",1090010001,null,null,null,14,109,"Administration (109)","Administration",1090010001,14,false,true]
[15,"Y",109,"N","EDSI","EDSI (109)",1090080001,null,null,null,15,109,"EDSI (109)","EDSI",1090080001,15,false,true]
[17,"Y",108,"Y","Communications & Training","Communications & Training (108)",1080020001,null,null,null,17,108,"Communications & Training (108)","Communications & Training",1080020001,17,true,true]
[18,"Y",108,"Y","Accounting Department","Accounting Department (108)",1080090001,null,null,null,18,108,"Accounting Department (108)","Accounting Department",1080090001,18,true,true]
[19,"Y",108,"Y","Voter Registration Division","Voter Registration Division (108)",1080080001,null,null,null,19,108,"Voter Registration Division (108)","Voter Registration Division",1080080001,19,true,true]
[21,"Y",108,"N","Information Technology Division","Information Technology Division (108)",1080110001,null,null,null,21,108,"Information Technology Division (108)","Information Technology Division",1080110001,21,false,true]
[22,"Y",108,"N","Administration","Administration (108)",1080010001,null,null,null,22,108,"Administration (108)","Administration",1080010001,22,false,true]
[23,"Y",108,"Y","Motor Vehicle","Motor Vehicle (108)",1080070001,null,null,null,23,108,"Motor Vehicle (108)","Motor Vehicle",1080070001,23,true,true]
[24,"Y",108,"Y","Property Tax Collections","Property Tax Collections (108)",1080030001,null,null,null,24,108,"Property Tax Collections (108)","Property Tax Collections",1080030001,24,true,true]
[28,"Y",112,"N","Administration","Administration (112)",1120020001,null,null,null,28,112,"Administration (112)","Administration",1120020001,28,false,true]
[29,"Y",112,"N","Application Development & Production Support","Application Dev & Productn Support (112)",1120170001,null,null,null,29,112,"Application Dev & Productn Support (112)","Application Development & Production Support",1120170001,29,false,true]
[30,"Y",112,"N","Enterprise Infrastructure Services","Enterprise Infrastructure Services (112)",1120040001,null,null,null,30,112,"Enterprise Infrastructure Services (112)","Enterprise Infrastructure Services",1120040001,30,false,true]
[31,"Y",112,"N","Project Management Office","Project Management Office (112)",1120140001,null,null,null,31,112,"Project Management Office (112)","Project Management Office",1120140001,31,false,true]
[33,"Y",120,"Y","General Administration","General Administration (120)",1200010001,null,null,null,33,120,"General Administration (120)","General Administration",1200010001,33,true,true]
[34,"Y",120,"Y","Administration - Accounting","Administration - Accounting (120)",1200030001,null,null,null,34,120,"Administration - Accounting (120)","Administration - Accounting",1200030001,34,true,true]
[35,"Y",120,"Y","Administration - Computer Resources","Administration-Computer Resources (120)",1200020001,null,null,null,35,120,"Administration-Computer Resources (120)","Administration - Computer Resources",1200020001,35,true,true]
[36,"Y",120,"Y","Civil/Collections Team","Civil/Collections Team (120)",1200070001,null,null,null,36,120,"Civil/Collections Team (120)","Civil/Collections Team",1200070001,36,true,true]
[37,"Y",120,"Y","Elections Division","Elections Division (120)",1200040001,null,null,null,37,120,"Elections Division (120)","Elections Division",1200040001,37,true,true]
[38,"Y",120,"Y","Misdemeanor Records Division","Misdemeanor Records Division (120)",1200080001,null,null,null,38,120,"Misdemeanor Records Division (120)","Misdemeanor Records Division",1200080001,38,true,true]
[39,"Y",120,"Y","Probate/Mental Health/Comm Court\n","Probate/Mental Health/Comm Court (120)",1200060001,null,null,null,39,120,"Probate/Mental Health/Comm Court (120)","Probate/Mental Health/Comm Court\n",1200060001,39,true,true]
[40,"Y",120,"Y","Recording Division","Recording Division (120)",1200090001,null,null,null,40,120,"Recording Division (120)","Recording Division",1200090001,40,true,true]
[41,"Y",120,"Y","Records Management","Records Management (120)",1200100001,null,null,null,41,120,"Records Management (120)","Records Management",1200100001,41,true,true]
[42,"Y",122,"Y","Civil Courts","Civil Courts (122)",1220010001,null,null,null,42,122,"Civil Courts (122)","Civil Courts",1220010001,42,true,true]
[43,"Y",123,"Y","Operations","Operations (123)",1230010001,null,null,null,43,123,"Operations (123)","Operations",1230010001,43,true,true]
[44,"Y",123,"Y","Trial Courts","Trial Courts (123)",1230010001,null,null,null,44,123,"Trial Courts (123)","Trial Courts",1230010001,44,true,true]
[45,"Y",123,"Y","Special Victims Unit","Special Victims Unit (123)",1230010001,null,null,null,45,123,"Special Victims Unit (123)","Special Victims Unit",1230010001,45,true,true]
[47,"Y",123,"Y","Investigations","Investigations (123)",1230010001,null,null,null,47,123,"Investigations (123)","Investigations",1230010001,47,true,true]
[48,"Y",123,"Y","Public Integrity & Complex Crimes\n","Public Integrity & Complex Crimes (123)",1230010001,null,null,null,48,123,"Public Integrity & Complex Crimes (123)","Public Integrity & Complex Crimes\n",1230010001,48,true,true]
[49,"Y",123,"Y","Civil Rights Unit","Civil Rights Unit (123)",1230010001,null,null,null,49,123,"Civil Rights Unit (123)","Civil Rights Unit",1230010001,49,true,true]
[50,"Y",124,"Y","District Courts Division","District Courts Division (124)",1240010001,null,null,null,50,124,"District Courts Division (124)","District Courts Division",1240010001,50,true,true]
[51,"Y",124,"Y","County Courts Division","County Courts Division (124)",1240110001,null,null,null,51,124,"County Courts Division (124)","County Courts Division",1240110001,51,true,true]
[52,"Y",137,"N","Auto Theft Task Force","Auto Theft Task Force (137)",1370700001,null,null,null,52,137,"Auto Theft Task Force (137)","Auto Theft Task Force",1370700001,52,false,true]
[54,"Y",137,"N","Canine","Canine (137)",1370610001,null,null,null,54,137,"Canine (137)","Canine",1370610001,54,false,true]
[55,"Y",137,"Y","Central Booking","Central Booking (137)",1370440001,null,null,null,55,137,"Central Booking (137)","Central Booking",1370440001,55,true,true]
[56,"Y",137,"Y","Central Records","Central Records (137)",1370060001,null,null,null,56,137,"Central Records (137)","Central Records",1370060001,56,true,true]
[57,"Y",137,"N","Central Warrants","Central Warrants (137)",1370070001,null,null,null,57,137,"Central Warrants (137)","Central Warrants",1370070001,57,false,true]
[58,"Y",137,"N","Chaplain","Chaplain (137)",1370560001,null,null,null,58,137,"Chaplain (137)","Chaplain",1370560001,58,false,true]
[59,"Y",137,"Y","CJIS - Arrest/Expunction/Fugitive/Misuse ID/Parole/StateXfer","CJIS-Arrest/Exp/Fug/ID/Parole/State(137)",1370140001,null,null,null,59,137,"CJIS-Arrest/Exp/Fug/ID/Parole/State(137)","CJIS - Arrest/Expunction/Fugitive/Misuse ID/Parole/StateXfer",1370140001,59,true,true]
[60,"Y",137,"Y","Classification-Records - CSTU / Property\n","Classification-Recs -CSTU/Property (137)",1370440001,null,null,null,60,137,"Classification-Recs -CSTU/Property (137)","Classification-Records - CSTU / Property\n",1370440001,60,true,true]
[61,"Y",137,"N","Commissary","Commissary (137)",1370310001,null,null,null,61,137,"Commissary (137)","Commissary",1370310001,61,false,true]
[63,"Y",137,"Y","Complex Security","Complex Security  (137)",1370160001,null,null,null,63,137,"Complex Security  (137)","Complex Security",1370160001,63,true,true]
[64,"Y",137,"Y","Correctional Security","Correctional Security (137)",1370160001,null,null,null,64,137,"Correctional Security (137)","Correctional Security",1370160001,64,true,true]
[67,"Y",137,"Y","Courthouse Security","Courthouse Security (137)",1370320001,null,null,null,67,137,"Courthouse Security (137)","Courthouse Security",1370320001,67,true,true]
[68,"Y",137,"N","Crime Lab - Evidence Control Unit\n","Crime Lab - Evidence Control Unit (137)",1370630001,null,null,null,68,137,"Crime Lab - Evidence Control Unit (137)","Crime Lab - Evidence Control Unit\n",1370630001,68,false,true]
[69,"Y",137,"N","CID - Major Crimes / Special Crimes / Environmental / Support","CID - Major/Spec/Env/Support (137)",1370620001,null,null,null,69,137,"CID - Major/Spec/Env/Support (137)","CID - Major Crimes / Special Crimes / Environmental / Support",1370620001,69,false,true]
[70,"Y",137,"N","Crisis Intervention Team","Crisis Intervention Team (137)",1370520001,null,null,null,70,137,"Crisis Intervention Team (137)","Crisis Intervention Team",1370520001,70,false,true]
[71,"Y",137,"N","CTECC Security","CTECC Security (137)",1370260001,null,null,null,71,137,"CTECC Security (137)","CTECC Security",1370260001,71,false,true]
[72,"Y",137,"Y","Dispatch / Communication","Dispatch / Communication (137)",1370640001,null,null,null,72,137,"Dispatch / Communication (137)","Dispatch / Communication",1370640001,72,true,true]
[74,"Y",137,"N","Estray","Estray (137)",1370680001,null,null,null,74,137,"Estray (137)","Estray",1370680001,74,false,true]
[77,"Y",137,"N","Finance","Finance (137)",1370050001,null,null,null,77,137,"Finance (137)","Finance",1370050001,77,false,true]
[79,"Y",137,"N","Traffic - CVE / DWI / HEAT / Impound / MOTORS","Traffic-CVE/DWI/HEAT/Impound/Motor (137)",1370730001,null,null,null,79,137,"Traffic-CVE/DWI/HEAT/Impound/Motor (137)","Traffic - CVE / DWI / HEAT / Impound / MOTORS",1370730001,79,false,true]
[80,"Y",137,"Y","Hospital Visitation Unit","Hospital Visitation Unit (137)",1370360001,null,null,null,80,137,"Hospital Visitation Unit (137)","Hospital Visitation Unit",1370360001,80,true,true]
[81,"Y",137,"N","Human Resources - Recruiting","Human Resources - Recruiting (137)",1370040001,null,null,null,81,137,"Human Resources - Recruiting (137)","Human Resources - Recruiting",1370040001,81,false,true]
[83,"Y",137,"N","Information Services","Information Services (137)",1370080001,null,null,null,83,137,"Information Services (137)","Information Services",1370080001,83,false,true]
[84,"Y",137,"N","Inmate Programs and Education - Library","Inmate Progs & Education - Library (137)",1370570001,null,null,null,84,137,"Inmate Progs & Education - Library (137)","Inmate Programs and Education - Library",1370570001,84,false,true]
[85,"Y",137,"N","Intelligence Unit","Intelligence Unit (137)",1370750001,null,null,null,85,137,"Intelligence Unit (137)","Intelligence Unit",1370750001,85,false,true]
[86,"Y",137,"Y","Internal Affairs","Internal Affairs (137)",1370020001,null,null,null,86,137,"Internal Affairs (137)","Internal Affairs",1370020001,86,true,true]
[87,"Y",137,"Y","Kitchen","Kitchen (137)",1370370001,null,null,null,87,137,"Kitchen (137)","Kitchen",1370370001,87,true,true]
[88,"Y",137,"N","Lake Patrol","Lake Patrol (137)",1370670001,null,null,null,88,137,"Lake Patrol (137)","Lake Patrol",1370670001,88,false,true]
[91,"Y",137,"Y","Life Safety","Life Safety (137)",1370340001,null,null,null,91,137,"Life Safety (137)","Life Safety",1370340001,91,true,true]
[93,"Y",137,"N","Maintenance","Maintenance (137)",1370390001,null,null,null,93,137,"Maintenance (137)","Maintenance",1370390001,93,false,true]
[95,"Y",137,"N","Marketable Skills","Marketable Skills (137)",1370400001,null,null,null,95,137,"Marketable Skills (137)","Marketable Skills",1370400001,95,false,true]
[96,"Y",137,"Y","Medical, Mental and Dental Services","Medical, Mental & Dental Services (137)",1370470001,null,null,null,96,137,"Medical, Mental & Dental Services (137)","Medical, Mental and Dental Services",1370470001,96,true,true]
[97,"Y",137,"N","Motors","Motors (137)",0,null,null,null,97,137,"Motors (137)","Motors",0,97,false,true]
[98,"Y",137,"N","VICE","VICE (137)",1370690001,null,null,null,98,137,"VICE (137)","VICE",1370690001,98,false,true]
[99,"Y",137,"Y","Patrol","Patrol (137)",1370700001,null,null,null,99,137,"Patrol (137)","Patrol",1370700001,99,true,true]
[102,"Y",137,"N","Research, Planning and Incident Management","Research, Planning & Incident Mgmt (137)",1370030001,null,null,null,102,137,"Research, Planning & Incident Mgmt (137)","Research, Planning and Incident Management",1370030001,102,false,true]
[103,"Y",137,"N","School Resource Officers (SRO)","School Resource Officers (SRO) (137)",1370710001,null,null,null,103,137,"School Resource Officers (SRO) (137)","School Resource Officers (SRO)",1370710001,103,false,true]
[104,"Y",137,"N","Reserves","Reserves (137)",1370440001,null,null,null,104,137,"Reserves (137)","Reserves",1370440001,104,false,true]
[106,"Y",137,"N","Special Weapons & Tactical Unit (SWAT)","Special Weapons & Tactical Un-SWAT (137)",1370720001,null,null,null,106,137,"Special Weapons & Tactical Un-SWAT (137)","Special Weapons & Tactical Unit (SWAT)",1370720001,106,false,true]
[107,"Y",137,"Y","Training Academy","Training Academy  (137)",1370090001,null,null,null,107,137,"Training Academy  (137)","Training Academy",1370090001,107,true,true]
[108,"Y",137,"Y","Transportation","Transportation (137)",1370420001,null,null,null,108,137,"Transportation (137)","Transportation",1370420001,108,true,true]
[109,"Y",137,"N","Victim Services","Victim Services (137)",1370740001,null,null,null,109,137,"Victim Services (137)","Victim Services",1370740001,109,false,true]
[111,"Y",114,"N","Custodial Operations","Custodial Operations (114)",1140030001,null,null,null,111,114,"Custodial Operations (114)","Custodial Operations",1140030001,111,false,true]
[112,"Y",114,"N","Groundskeeping","Groundskeeping (114)",1140020001,null,null,null,112,114,"Groundskeeping (114)","Groundskeeping",1140020001,112,false,true]
[113,"Y",114,"N","Maintenance & Operations","Maintenance & Operations (114)",1140090001,null,null,null,113,114,"Maintenance & Operations (114)","Maintenance & Operations",1140090001,113,false,true]
[114,"Y",114,"N","Planning, Design and Construction","Planning, Design & Construction (114)",1140110000,null,null,null,114,114,"Planning, Design & Construction (114)","Planning, Design and Construction",1140110000,114,false,true]
[115,"Y",114,"N","Administrative","Administrative (114)",1140010001,null,null,null,115,114,"Administrative (114)","Administrative",1140010001,115,false,true]
[116,"Y",114,"N","Security Management","Security Management (114)",1140040001,null,null,null,116,114,"Security Management (114)","Security Management",1140040001,116,false,true]
[117,"Y",191,"N","Centralized Utlities","Centralized Utlities (191)",1911100001,null,null,null,117,191,"Centralized Utlities (191)","Centralized Utlities",1911100001,117,false,true]
[119,"Y",145,"N","Court Administration","Court Administration (145)",1450640001,null,null,null,119,145,"Court Administration (145)","Court Administration",1450640001,119,false,true]
[120,"Y",145,"Y","Court Services","Court Services (145)",1450660001,null,null,null,120,145,"Court Services (145)","Court Services",1450660001,120,true,true]
[121,"Y",145,"Y","Detention Services","Detention Services (145)",1450670001,null,null,null,121,145,"Detention Services (145)","Detention Services",1450670001,121,true,true]
[122,"Y",145,"Y","Domestic Relations Office","Domestic Relations Office (145)",1450690001,null,null,null,122,145,"Domestic Relations Office (145)","Domestic Relations Office",1450690001,122,true,true]
[123,"Y",145,"N","Health Services","Health Services (145)",1450630001,null,null,null,123,145,"Health Services (145)","Health Services",1450630001,123,false,true]
[124,"Y",145,"N","Juvenile Probation Support Services","Juvenile Probation Support Service (145)",1450600001,null,null,null,124,145,"Juvenile Probation Support Service (145)","Juvenile Probation Support Services",1450600001,124,false,true]
[125,"Y",145,"Y","Probation Services","Probation Services (145)",1450650001,null,null,null,125,145,"Probation Services (145)","Probation Services",1450650001,125,true,true]
[126,"Y",145,"N","Residential Services","Residential Services (145)",1450680001,null,null,null,126,145,"Residential Services (145)","Residential Services",1450680001,126,false,true]
[127,"Y",149,"N","Customer Service","Customer Service (149)",1490250001,null,null,null,127,149,"Customer Service (149)","Customer Service",1490250001,127,false,true]
[128,"Y",149,"Y","Development Services and Long Range Planning","Dev Services & Long Range Planning (149)",1490130001,null,null,null,128,149,"Dev Services & Long Range Planning (149)","Development Services and Long Range Planning",1490130001,128,true,true]
[129,"Y",149,"Y","Environmental Quality","Environmental Quality (149)",1490110001,null,null,null,129,149,"Environmental Quality (149)","Environmental Quality",1490110001,129,true,true]
[130,"Y",149,"N","Fleet Services","Fleet Services (149)",1490350001,null,null,null,130,149,"Fleet Services (149)","Fleet Services",1490350001,130,false,true]
[131,"Y",149,"Y","Natural Resources Program","Natural Resources Program (149)",1490120001,null,null,null,131,149,"Natural Resources Program (149)","Natural Resources Program",1490120001,131,true,true]
[132,"Y",149,"N","On-Site Wastewater","On-Site Wastewater (149)",1490160001,null,null,null,132,149,"On-Site Wastewater (149)","On-Site Wastewater",1490160001,132,false,true]
[133,"Y",149,"N","Park Services","Park Services (149)",1490220001,null,null,null,133,149,"Park Services (149)","Park Services",1490220001,133,false,true]
[134,"Y",149,"Y","Planning and Geographic Information Systems (GIS)","Planning & Geographic Info Sys-GIS (149)",1490100001,null,null,null,134,149,"Planning & Geographic Info Sys-GIS (149)","Planning and Geographic Information Systems (GIS)",1490100001,134,true,true]
[135,"Y",149,"N","Public Works – CIP","Public Works – CIP (149)",1490190001,null,null,null,135,149,"Public Works – CIP (149)","Public Works – CIP",1490190001,135,false,true]
[136,"Y",149,"N","Public Works - Survey","Public Works - Survey (149)",1490190001,null,null,null,136,149,"Public Works - Survey (149)","Public Works - Survey",1490190001,136,false,true]
[137,"Y",149,"N","Real Estate","Real Estate (149)",1490190001,null,null,null,137,149,"Real Estate (149)","Real Estate",1490190001,137,false,true]
[138,"Y",149,"Y","Road & Bridge","Road & Bridge (149)",1490200001,null,null,null,138,149,"Road & Bridge (149)","Road & Bridge",1490200001,138,true,true]
[139,"Y",149,"Y","Sign Shop Services","Sign Shop Services (149)",1490210001,null,null,null,139,149,"Sign Shop Services (149)","Sign Shop Services",1490210001,139,true,true]
[140,"Y",149,"N","TNR Human Resources","TNR Human Resources (149)",1490010001,null,null,null,140,149,"TNR Human Resources (149)","TNR Human Resources",1490010001,140,false,true]
[141,"Y",149,"N","TNR-Administrative Support","TNR-Administrative Support (149)",1490010001,null,null,null,141,149,"TNR-Administrative Support (149)","TNR-Administrative Support",1490010001,141,false,true]
[142,"Y",149,"N","TNR-Records Management","TNR-Records Management (149)",1490010001,null,null,null,142,149,"TNR-Records Management (149)","TNR-Records Management",1490010001,142,false,true]
[143,"Y",149,"N","TNR-Safety","TNR-Safety (149)",1490070001,null,null,null,143,149,"TNR-Safety (149)","TNR-Safety",1490070001,143,false,true]
[145,"Y",158,"N","CDBG Administration","CDBG Administration (158)",1580060001,null,null,null,145,158,"CDBG Administration (158)","CDBG Administration",1580060001,145,false,true]
[146,"Y",158,"N","Child Protective Services Reintegration Project (CRP)","Child Prot Svcs Reintegrt Proj-CRP (158)",1580220001,null,null,null,146,158,"Child Prot Svcs Reintegrt Proj-CRP (158)","Child Protective Services Reintegration Project (CRP)",1580220001,146,false,true]
[147,"Y",158,"N","Family First","Family First (158)",1580230001,null,null,null,147,158,"Family First (158)","Family First",1580230001,147,false,true]
[148,"Y",158,"N","engAGE Travis County","engAGE Travis County (158)",1580300001,null,null,null,148,158,"engAGE Travis County (158)","engAGE Travis County",1580300001,148,false,true]
[150,"Y",158,"N","Office of the Chief Deputy: Community Liaison\n","Ofc of Chief Dep: Community Liaison(158)",1580510001,null,null,null,150,158,"Ofc of Chief Dep: Community Liaison(158)","Office of the Chief Deputy: Community Liaison\n",1580510001,150,false,true]
[153,"Y",158,"N","Family Support Services Division","Family Support Services Division (158)",1580100001,null,null,null,153,158,"Family Support Services Division (158)","Family Support Services Division",1580100001,153,false,true]
[155,"Y",158,"N","Healthy Families Travis County","Healthy Families Travis County (158)",1580240001,null,null,null,155,158,"Healthy Families Travis County (158)","Healthy Families Travis County",1580240001,155,false,true]
[156,"Y",158,"N","Housing Services","Housing Services (158)",1580320001,null,null,null,156,158,"Housing Services (158)","Housing Services",1580320001,156,false,true]
[157,"Y",158,"N","Neighborhood Conference Committee (NCC)","Neighborhood Conference Comm - NCC (158)",1580280001,null,null,null,157,158,"Neighborhood Conference Comm - NCC (158)","Neighborhood Conference Committee (NCC)",1580280001,157,false,true]
[159,"Y",158,"N","Parenting in Recovery","Parenting in Recovery (158)",1580220001,null,null,null,159,158,"Parenting in Recovery (158)","Parenting in Recovery",1580220001,159,false,true]
[161,"Y",158,"N","Research & Planning Division","Research & Planning Division (158)",1580040001,null,null,null,161,158,"Research & Planning Division (158)","Research & Planning Division",1580040001,161,false,true]
[162,"Y",158,"Y","Services for the Deaf and Hard of Hearing","Service for Deaf & Hard of Hearing (158)",1580310001,null,null,null,162,158,"Service for Deaf & Hard of Hearing (158)","Services for the Deaf and Hard of Hearing",1580310001,162,true,true]
[163,"Y",158,"N","Social Service Agency Contracts: Access to Basic Supports","SSA Contracts: Acc to Basic Support(158)",1580640001,null,null,null,163,158,"SSA Contracts: Acc to Basic Support(158)","Social Service Agency Contracts: Access to Basic Supports",1580640001,163,false,true]
[164,"Y",158,"N","Social Service Agency Contracts: Behavioral Health","SSA Contracts: Behavioral Health (158)",1580660001,null,null,null,164,158,"SSA Contracts: Behavioral Health (158)","Social Service Agency Contracts: Behavioral Health",1580660001,164,false,true]
[165,"Y",158,"N","Social Service Agency Contracts: Child and Youth Development","SSA Contracts: Child & Youth Devlp (158)",1580650001,null,null,null,165,158,"SSA Contracts: Child & Youth Devlp (158)","Social Service Agency Contracts: Child and Youth Development",1580650001,165,false,true]
[167,"Y",158,"N","Social Service Agency Contracts: Housing Continuum","SSA Contracts: Housing Continuum (158)",1580630001,null,null,null,167,158,"SSA Contracts: Housing Continuum (158)","Social Service Agency Contracts: Housing Continuum",1580630001,167,false,true]
[168,"Y",158,"N","Social Service Agency Contracts: Public Health","SSA Contracts: Public Health (158)",1580610001,null,null,null,168,158,"SSA Contracts: Public Health (158)","Social Service Agency Contracts: Public Health",1580610001,168,false,true]
[169,"Y",158,"N","Social Service Agency Contracts: Safety Intervention Svcs","SSA Contracts: Safety Interven Svc (158)",1580620001,null,null,null,169,158,"SSA Contracts: Safety Interven Svc (158)","Social Service Agency Contracts: Safety Intervention Svcs",1580620001,169,false,true]
[170,"Y",158,"N","Social Service Agency Contracts: Support Svc Comm Living","SSA Contracts: Sup Svc Comm Living (158)",1580590001,null,null,null,170,158,"SSA Contracts: Sup Svc Comm Living (158)","Social Service Agency Contracts: Support Svc Comm Living",1580590001,170,false,true]
[171,"Y",158,"N","Social Service Agency Contracts: Workforce Development","SSA Contracts: Workforce Developmt (158)",1580580001,null,null,null,171,158,"SSA Contracts: Workforce Developmt (158)","Social Service Agency Contracts: Workforce Development",1580580001,171,false,true]
[172,"Y",158,"N","Texas A&M AgriLife Extension Service","Texas A&M AgriLife Extension Svc (158)",1580420001,null,null,null,172,158,"Texas A&M AgriLife Extension Svc (158)","Texas A&M AgriLife Extension Service",1580420001,172,false,true]
[173,"Y",158,"N","The Children’s Partnership/Community Partners for Children","TCP/Comm Partners for Children (158)",1580260001,null,null,null,173,158,"TCP/Comm Partners for Children (158)","The Children’s Partnership/Community Partners for Children",1580260001,173,false,true]
[174,"Y",158,"Y","The Travis County Children’s Protective Service Board","TC Children’s Protective Svc Board (158)",1580200001,null,null,null,174,158,"TC Children’s Protective Svc Board (158)","The Travis County Children’s Protective Service Board",1580200001,174,true,true]
[176,"Y",116,"Y","Veterans Services","Veterans Services (116)",1160010001,null,null,null,176,116,"Veterans Services (116)","Veterans Services",1160010001,176,true,true]
[177,"Y",158,"N","Work-Based Learning/Summer Youth Employment","Work-Based Learng/Summer Youth Emp (158)",1580290001,null,null,null,177,158,"Work-Based Learng/Summer Youth Emp (158)","Work-Based Learning/Summer Youth Employment",1580290001,177,false,true]
[178,"Y",106,"Y","Auditor's Office","Auditor's Office (106)",1060010001,null,null,null,178,106,"Auditor's Office (106)","Auditor's Office",1060010001,178,true,true]
[179,"Y",155,"N","Justice Planning","Justice Planning (155)",1550010001,null,null,null,179,155,"Justice Planning (155)","Justice Planning",1550010001,179,false,true]
[180,"Y",155,"N","Office of Parent Representation","Office of Parent Representation (155)",1550050001,null,null,null,180,155,"Office of Parent Representation (155)","Office of Parent Representation",1550050001,180,false,true]
[181,"Y",155,"N","Mental Health Public Defender","Mental Health Public Defender (155)",1550070001,null,null,null,181,155,"Mental Health Public Defender (155)","Mental Health Public Defender",1550070001,181,false,true]
[182,"Y",155,"N","Office of Child Representation","Office of Child Representation (155)",1550060001,null,null,null,182,155,"Office of Child Representation (155)","Office of Child Representation",1550060001,182,false,true]
[183,"Y",137,"N","Police Psychologist","Police Psychologist (137)",1370120001,null,null,null,183,137,"Police Psychologist (137)","Police Psychologist",1370120001,183,false,true]
[184,"Y",149,"N","Financial Services","Financial Services (149)",1490060001,null,null,null,184,149,"Financial Services (149)","Financial Services",1490060001,184,false,true]
[185,"Y",137,"N","Facilities - Call Center / Mail Room / Laundry / Warehouse\n","Facilities-CallCtr/Mail/Laundry/Whs(137)",1370380001,null,null,null,185,137,"Facilities-CallCtr/Mail/Laundry/Whs(137)","Facilities - Call Center / Mail Room / Laundry / Warehouse\n",1370380001,185,false,true]
[186,"Y",101,"Y","County Judge","County Judge (101)",1010010001,null,null,null,186,101,"County Judge (101)","County Judge",1010010001,186,true,true]
[187,"Y",102,"Y","County Commissioner Precinct One","County Commissioner Precinct One (102)",1020010001,null,null,null,187,102,"County Commissioner Precinct One (102)","County Commissioner Precinct One",1020010001,187,true,true]
[188,"Y",103,"Y","County Commissioner Precinct Two","County Commissioner Precinct Two (103)",1030010001,null,null,null,188,103,"County Commissioner Precinct Two (103)","County Commissioner Precinct Two",1030010001,188,true,true]
[189,"Y",104,"Y","County Commissioner Precinct Three","County Commissioner Precinct Three (104)",1040010001,null,null,null,189,104,"County Commissioner Precinct Three (104)","County Commissioner Precinct Three",1040010001,189,true,true]
[190,"Y",105,"Y","County Commissioner Precinct Four","County Commissioner Precinct Four (105)",1050010001,null,null,null,190,105,"County Commissioner Precinct Four (105)","County Commissioner Precinct Four",1050010001,190,true,true]
[191,"Y",107,"Y","County Treasurer","County Treasurer (107)",1070010001,null,null,null,191,107,"County Treasurer (107)","County Treasurer",1070010001,191,true,true]
[192,"Y",110,"N","Intergovernmental Relations","Intergovernmental Relations (110)",1100030001,null,null,null,192,110,"Intergovernmental Relations (110)","Intergovernmental Relations",1100030001,192,false,true]
[193,"Y",110,"N","Regional Policy Development","Regional Policy Development (110)",1100030001,null,null,null,193,110,"Regional Policy Development (110)","Regional Policy Development",1100030001,193,false,true]
[194,"Y",110,"N","Leadership Recruitment & Appointment","Leadership Recruitment & Appointmt (110)",1100030001,null,null,null,194,110,"Leadership Recruitment & Appointmt (110)","Leadership Recruitment & Appointment",1100030001,194,false,true]
[195,"Y",111,"Y","HR Compensation","HR Compensation (111)",1110020001,null,null,null,195,111,"HR Compensation (111)","HR Compensation",1110020001,195,true,true]
[196,"Y",111,"N","HR Administration","HR Administration (111)",1110010001,null,null,null,196,111,"HR Administration (111)","HR Administration",1110010001,196,false,true]
[198,"Y",111,"Y","Risk Management Self Insurance Fund","Risk Management Self Insurance Fnd (111)",1110040001,null,null,null,198,111,"Risk Management Self Insurance Fnd (111)","Risk Management Self Insurance Fund",1110040001,198,true,true]
[199,"Y",111,"Y","Employee Health Benefit","Employee Health Benefit (111)",1110068956,null,null,null,199,111,"Employee Health Benefit (111)","Employee Health Benefit",1110068956,199,true,true]
[200,"Y",111,"N","Travis County Employee Health Clinic","Travis County Employee Hlth Clinic (111)",1110078956,null,null,null,200,111,"Travis County Employee Hlth Clinic (111)","Travis County Employee Health Clinic",1110078956,200,false,true]
[202,"Y",111,"N","Talent, Planning & Engagement","Talent, Planning & Engagement (111)",1110100001,null,null,null,202,111,"Talent, Planning & Engagement (111)","Talent, Planning & Engagement",1110100001,202,false,true]
[203,"Y",115,"Y","Purchasing Office","Purchasing Office (115)",1150010001,null,null,null,203,115,"Purchasing Office (115)","Purchasing Office",1150010001,203,true,true]
[204,"Y",115,"Y","Purchasing Office Fixed Assets","Purchasing Office Fixed Assets (115)",1150020001,null,null,null,204,115,"Purchasing Office Fixed Assets (115)","Purchasing Office Fixed Assets",1150020001,204,true,true]
[205,"Y",115,"N","Purchasing Office HUB","Purchasing Office HUB (115)",1150030001,null,null,null,205,115,"Purchasing Office HUB (115)","Purchasing Office HUB",1150030001,205,false,true]
[206,"Y",117,"Y","Historical Commission","Historical Commission (117)",1170010001,null,null,null,206,117,"Historical Commission (117)","Historical Commission",1170010001,206,true,true]
[207,"Y",119,"Y","Civil Divisions","Civil Divisions (119)",1190010001,null,null,null,207,119,"Civil Divisions (119)","Civil Divisions",1190010001,207,true,true]
[208,"Y",119,"Y","Check Division","Check Division (119)",1190030001,null,null,null,208,119,"Check Division (119)","Check Division",1190030001,208,true,true]
[209,"Y",119,"N","Comprehensive Underage Drinking Prevention","Comprehensive Underage Drink Prev (119)",1190040001,null,null,null,209,119,"Comprehensive Underage Drink Prev (119)","Comprehensive Underage Drinking Prevention",1190040001,209,false,true]
[210,"Y",119,"Y","Criminal Division - Records / Intake & Criminal Trial Courts","Criminal Division - Records/Intake (119)",1190020001,null,null,null,210,119,"Criminal Division - Records/Intake (119)","Criminal Division - Records / Intake & Criminal Trial Courts",1190020001,210,true,true]
[211,"Y",119,"Y","Criminal Division - Truancy","Criminal Division - Truancy (119)",1190020001,null,null,null,211,119,"Criminal Division - Truancy (119)","Criminal Division - Truancy",1190020001,211,true,true]
[212,"Y",119,"Y","Criminal Division - Environmental","Criminal Division - Environmental (119)",1190020001,null,null,null,212,119,"Criminal Division - Environmental (119)","Criminal Division - Environmental",1190020001,212,true,true]
[213,"Y",119,"Y","Criminal Division - Family Violence & Protective Order Div","Criminal Division -Family Violence (119)",1190020001,null,null,null,213,119,"Criminal Division -Family Violence (119)","Criminal Division - Family Violence & Protective Order Div",1190020001,213,true,true]
[214,"Y",121,"N","Jury Management Office","Jury Management Office (121)",1210010001,null,null,null,214,121,"Jury Management Office (121)","Jury Management Office",1210010001,214,false,true]
[215,"Y",121,"N","Tech Support Development and Quality Assurance","Tech Support Dev & Quality (121)",1210010001,null,null,null,215,121,"Tech Support Dev & Quality (121)","Tech Support Development and Quality Assurance",1210010001,215,false,true]
[216,"Y",121,"N","Accounting Division","Accounting Division (121)",1210010001,null,null,null,216,121,"Accounting Division (121)","Accounting Division",1210010001,216,false,true]
[217,"Y",121,"Y","Civil Division (Family)","Civil Division (Family) (121)",1210010001,null,null,null,217,121,"Civil Division (Family) (121)","Civil Division (Family)",1210010001,217,true,true]
[218,"Y",121,"Y","General Litigation/Government Division","General Litigation/Govt Division (121)",1210010001,null,null,null,218,121,"General Litigation/Govt Division (121)","General Litigation/Government Division",1210010001,218,true,true]
[219,"Y",121,"Y","Criminal Division","Criminal Division (121)",1210020001,null,null,null,219,121,"Criminal Division (121)","Criminal Division",1210020001,219,true,true]
[220,"Y",125,"Y","Mental Health","Mental Health (125)",1250010001,null,null,null,220,125,"Mental Health (125)","Mental Health",1250010001,220,true,true]
[221,"Y",125,"Y","Probate","Probate (125)",1250010001,null,null,null,221,125,"Probate (125)","Probate",1250010001,221,true,true]
[222,"Y",125,"Y","Guardianship","Guardianship (125)",1250010001,null,null,null,222,125,"Guardianship (125)","Guardianship",1250010001,222,true,true]
[223,"Y",125,"Y","Civil Litigation","Civil Litigation (125)",1250010001,null,null,null,223,125,"Civil Litigation (125)","Civil Litigation",1250010001,223,true,true]
[225,"Y",125,"Y","Condemnation","Condemnation (125)",1250010001,null,null,null,225,125,"Condemnation (125)","Condemnation",1250010001,225,true,true]
[226,"Y",126,"Y","Civil Processing","Civil Processing (126)",1260010001,null,null,null,226,126,"Civil Processing (126)","Civil Processing",1260010001,226,true,true]
[227,"Y",126,"Y","Criminal","Criminal (126)",1260020001,null,null,null,227,126,"Criminal (126)","Criminal",1260020001,227,true,true]
[228,"Y",126,"Y","Juvenile Division","Juvenile Division (126)",1260020137,null,null,null,228,126,"Juvenile Division (126)","Juvenile Division",1260020137,228,true,true]
[229,"Y",127,"Y","Official Fees Accounting Division","Official Fees Accounting Division (127)",1270030001,null,null,null,229,127,"Official Fees Accounting Division (127)","Official Fees Accounting Division",1270030001,229,true,true]
[230,"Y",127,"Y","Civil","Civil (127)",1270010001,null,null,null,230,127,"Civil (127)","Civil",1270010001,230,true,true]
[231,"Y",127,"Y","Criminal","Criminal (127)",1270020001,null,null,null,231,127,"Criminal (127)","Criminal",1270020001,231,true,true]
[232,"Y",127,"Y","Juvenile Case Manager","Juvenile Case Manager (127)",1270020137,null,null,null,232,127,"Juvenile Case Manager (127)","Juvenile Case Manager",1270020137,232,true,true]
[233,"Y",128,"Y","Civil","Civil (128)",1280010001,null,null,null,233,128,"Civil (128)","Civil",1280010001,233,true,true]
[234,"Y",128,"Y","Criminal","Criminal (128)",1280020001,null,null,null,234,128,"Criminal (128)","Criminal",1280020001,234,true,true]
[235,"Y",128,"Y","Juvenile Case Manager","Juvenile Case Manager (128)",1280020137,null,null,null,235,128,"Juvenile Case Manager (128)","Juvenile Case Manager",1280020137,235,true,true]
[236,"Y",129,"Y","Civil Division","Civil Division (129)",1290010001,null,null,null,236,129,"Civil Division (129)","Civil Division",1290010001,236,true,true]
[237,"Y",129,"Y","Criminal","Criminal (129)",1290020001,null,null,null,237,129,"Criminal (129)","Criminal",1290020001,237,true,true]
[238,"Y",129,"Y","Juvenile Case Manager","Juvenile Case Manager (129)",1290020137,null,null,null,238,129,"Juvenile Case Manager (129)","Juvenile Case Manager",1290020137,238,true,true]
[239,"Y",130,"Y","Civil Department","Civil Department (130)",1300010001,null,null,null,239,130,"Civil Department (130)","Civil Department",1300010001,239,true,true]
[240,"Y",130,"Y","Criminal Department","Criminal Department (130)",1300020001,null,null,null,240,130,"Criminal Department (130)","Criminal Department",1300020001,240,true,true]
[241,"Y",131,"Y","Security","Security (131)",1310040001,null,null,null,241,131,"Security (131)","Security",1310040001,241,true,true]
[242,"Y",131,"Y","Civil Unit","Civil Unit (131)",1310010001,null,null,null,242,131,"Civil Unit (131)","Civil Unit",1310010001,242,true,true]
[243,"Y",131,"Y","Criminal Unit","Criminal Unit (131)",1310020001,null,null,null,243,131,"Criminal Unit (131)","Criminal Unit",1310020001,243,true,true]
[244,"Y",132,"Y","Civil Unit","Civil Unit (132)",1320010001,null,null,null,244,132,"Civil Unit (132)","Civil Unit",1320010001,244,true,true]
[245,"Y",132,"Y","Criminal Unit","Criminal Unit (132)",1320020001,null,null,null,245,132,"Criminal Unit (132)","Criminal Unit",1320020001,245,true,true]
[246,"Y",132,"N","Interlocal Agreement","Interlocal Agreement (132)",1320050001,null,null,null,246,132,"Interlocal Agreement (132)","Interlocal Agreement",1320050001,246,false,true]
[247,"Y",132,"Y","Security Unit","Security Unit (132)",1320040001,null,null,null,247,132,"Security Unit (132)","Security Unit",1320040001,247,true,true]
[248,"Y",133,"Y","Civil","Civil (133)",1330010001,null,null,null,248,133,"Civil (133)","Civil",1330010001,248,true,true]
[249,"Y",133,"Y","Criminal","Criminal (133)",1330020001,null,null,null,249,133,"Criminal (133)","Criminal",1330020001,249,true,true]
[251,"Y",133,"N","Emissions Task Force","Emissions Task Force (133)",1330060001,null,null,null,251,133,"Emissions Task Force (133)","Emissions Task Force",1330060001,251,false,true]
[252,"Y",134,"Y","Civil Unit","Civil Unit (134)",1340010001,null,null,null,252,134,"Civil Unit (134)","Civil Unit",1340010001,252,true,true]
[253,"Y",134,"Y","Criminal Unit","Criminal Unit (134)",1340020001,null,null,null,253,134,"Criminal Unit (134)","Criminal Unit",1340020001,253,true,true]
[255,"Y",134,"Y","Security Unit","Security Unit (134)",1340040001,null,null,null,255,134,"Security Unit (134)","Security Unit",1340040001,255,true,true]
[256,"Y",135,"Y","Civil & Criminal Process","Civil & Criminal Process (135)",1350010001,null,null,null,256,135,"Civil & Criminal Process (135)","Civil & Criminal Process",1350010001,256,true,true]
[258,"Y",136,"Y","Dispute Resolution Center","Dispute Resolution Center (136)",1360010104,null,null,null,258,136,"Dispute Resolution Center (136)","Dispute Resolution Center",1360010104,258,true,true]
[259,"Y",138,"Y","Administration","Administration (138)",1380010001,null,null,null,259,138,"Administration (138)","Administration",1380010001,259,true,true]
[260,"Y",138,"Y","Investigations","Investigations (138)",1380050001,null,null,null,260,138,"Investigations (138)","Investigations",1380050001,260,true,true]
[261,"Y",138,"Y","Toxicology","Toxicology (138)",1380030001,null,null,null,261,138,"Toxicology (138)","Toxicology",1380030001,261,true,true]
[263,"Y",138,"Y","Pathology","Pathology (138)",1380020001,null,null,null,263,138,"Pathology (138)","Pathology",1380020001,263,true,true]
[264,"Y",139,"Y","Adult Probation CSCD","Adult Probation CSCD  (139)",1390010001,null,null,null,264,139,"Adult Probation CSCD  (139)","Adult Probation CSCD",1390010001,264,true,true]
[265,"Y",140,"Y","Adult Education Classes","Adult Education Classes (140)",1400020001,null,null,null,265,140,"Adult Education Classes (140)","Adult Education Classes",1400020001,265,true,true]
[266,"Y",140,"Y","Juvenile Education Classes","Juvenile Education Classes (140)",1400100001,null,null,null,266,140,"Juvenile Education Classes (140)","Juvenile Education Classes",1400100001,266,true,true]
[267,"Y",140,"N","Crime Victims Fund","Crime Victims Fund (140)",1400110001,null,null,null,267,140,"Crime Victims Fund (140)","Crime Victims Fund",1400110001,267,false,true]
[268,"Y",140,"N","Intake & Assessments","Intake & Assessments (140)",1400060001,null,null,null,268,140,"Intake & Assessments (140)","Intake & Assessments",1400060001,268,false,true]
[269,"Y",140,"Y","Alcohol & Drug Classes/Programs","Alcohol & Drug Classes/Programs (140)",1400050001,null,null,null,269,140,"Alcohol & Drug Classes/Programs (140)","Alcohol & Drug Classes/Programs",1400050001,269,true,true]
[270,"Y",142,"N","Case Management","Case Management (142)",1420010001,null,null,null,270,142,"Case Management (142)","Case Management",1420010001,270,false,true]
[271,"Y",142,"Y","Specialty Courts","Specialty Courts (142)",1420150001,null,null,null,271,142,"Specialty Courts (142)","Specialty Courts",1420150001,271,true,true]
[272,"Y",142,"Y","Investigations","Investigations (142)",1420160001,null,null,null,272,142,"Investigations (142)","Investigations",1420160001,272,true,true]
[273,"Y",143,"Y","Juvenile Public Defender","Juvenile Public Defender (143)",1430100001,null,null,null,273,143,"Juvenile Public Defender (143)","Juvenile Public Defender",1430100001,273,true,true]
[275,"Y",147,"Y","Emergency Management","Emergency Management (147)",1470040001,null,null,null,275,147,"Emergency Management (147)","Emergency Management",1470040001,275,true,true]
[276,"Y",147,"Y","Fire Marshal","Fire Marshal (147)",1470020001,null,null,null,276,147,"Fire Marshal (147)","Fire Marshal",1470020001,276,true,true]
[278,"Y",147,"Y","Technology & Communications","Technology & Communications (147)",1470010001,null,null,null,278,147,"Technology & Communications (147)","Technology & Communications",1470010001,278,true,true]
[279,"Y",154,"Y","Civil Service Commission","Civil Service Commission (154)",1540010001,null,null,null,279,154,"Civil Service Commission (154)","Civil Service Commission",1540010001,279,true,true]
[285,"Y",155,"N","Law Library","Law Library (155)",1550150001,null,null,null,285,155,"Law Library (155)","Law Library",1550150001,285,false,true]
[287,"Y",110,"N","Media Services","Media Services (110)",1100060001,null,null,null,287,110,"Media Services (110)","Media Services",1100060001,287,false,true]
[289,"Y",159,"Y","Austin-TC EMS Interlocal","Austin-TC EMS Interlocal (159)",1590080001,null,null,null,289,159,"Austin-TC EMS Interlocal (159)","Austin-TC EMS Interlocal",1590080001,289,true,true]
[290,"Y",159,"Y","STAR Flight","STAR Flight (159)",1590010001,null,null,null,290,159,"STAR Flight (159)","STAR Flight",1590010001,290,true,true]
[291,"Y",159,"Y","Clinical Performance and Education","Clinical Performance and Education (159)",1590100001,null,null,null,291,159,"Clinical Performance and Education (159)","Clinical Performance and Education",1590100001,291,true,true]
[292,"Y",115,"N","Purchasing Office Compliance","Purchasing Office Compliance (115)",1150050001,null,null,null,292,115,"Purchasing Office Compliance (115)","Purchasing Office Compliance",1150050001,292,false,true]
[293,"Y",140,"N","Phoenix Court - Prostitution Prevention Program","Phoenix Court - Prostitution Prevnt(140)",1400090001,null,null,null,293,140,"Phoenix Court - Prostitution Prevnt(140)","Phoenix Court - Prostitution Prevention Program",1400090001,293,false,true]
[294,"Y",132,"N","Telecommunications","Telecommunications (132)",1320060001,null,null,null,294,132,"Telecommunications (132)","Telecommunications",1320060001,294,false,true]
[295,"Y",114,"N","Exposition Center","Exposition Center (114)",1140080001,null,null,null,295,114,"Exposition Center (114)","Exposition Center",1140080001,295,false,true]
[296,"Y",115,"Y","Purchasing Office Procurement (115)","Purchasing Office Procurement (115)",1150040001,null,null,null,296,115,"Purchasing Office Procurement (115)","Purchasing Office Procurement (115)",1150040001,296,true,true]
[297,"Y",155,"N","Workforce Development Taskforce (WD)\n","Workforce Development Taskforce WD (155)",1550040001,null,null,null,297,155,"Workforce Development Taskforce WD (155)","Workforce Development Taskforce (WD)\n",1550040001,297,false,true]
[300,"Y",112,"N","Information Security","Information Security (112)",1120150001,null,null,null,300,112,"Information Security (112)","Information Security",1120150001,300,false,true]
[301,"Y",112,"Y","Privacy Office\n","Privacy Office (112)",1120310001,null,null,null,301,112,"Privacy Office (112)","Privacy Office\n",1120310001,301,true,true]
[302,"Y",123,"N","Diversion, Youth Justice, & Violence Prevention\n","Diversion, Youth Just & Violence Pr(123)",1230010001,null,null,null,302,123,"Diversion, Youth Just & Violence Pr(123)","Diversion, Youth Justice, & Violence Prevention\n",1230010001,302,false,true]
[303,"Y",140,"N","Administration\n","Administration (140)",1400010001,null,null,null,303,140,"Administration (140)","Administration\n",1400010001,303,false,true]
[305,"Y",144,"Y","Public Defender's Office","Public Defender's Office (144)",1440010001,null,null,null,305,144,"Public Defender's Office (144)","Public Defender's Office",1440010001,305,true,true]
[306,"Y",140,"N","Austin/Travis County Family Violence Task Force\n","A/TC Family Violence Task Force (140)",1400010001,null,null,null,306,140,"A/TC Family Violence Task Force (140)","Austin/Travis County Family Violence Task Force\n",1400010001,306,false,true]
[307,"Y",123,"Y","Victim Services","Victim Services (123)",1230030001,null,null,null,307,123,"Victim Services (123)","Victim Services",1230030001,307,true,true]
[308,"Y",108,"Y","Centralized Court Collections","Centralized Court Collections (108)",1080120001,null,null,null,308,108,"Centralized Court Collections (108)","Centralized Court Collections",1080120001,308,true,true]
[309,"Y",145,"N","Social Services","Social Services (145)",1450700001,null,null,null,309,145,"Social Services (145)","Social Services",1450700001,309,false,true]
[310,"Y",145,"N","IT/Planning and Research","IT/Planning and Research (145)",1450710001,null,null,null,310,145,"IT/Planning and Research (145)","IT/Planning and Research",1450710001,310,false,true]
[311,"Y",109,"N","Diversity, Equity and Inclusion","Diversity, Equity and Inclusion (109)",1090080001,null,null,null,311,109,"Diversity, Equity and Inclusion (109)","Diversity, Equity and Inclusion",1090080001,311,false,true]
[312,"Y",112,"Y","Offsite Storage","Offsite Storage (112)",1120450001,null,null,null,312,112,"Offsite Storage (112)","Offsite Storage",1120450001,312,true,true]
[313,"Y",112,"N","Print Shop","Print Shop (112)",1120460001,null,null,null,313,112,"Print Shop (112)","Print Shop",1120460001,313,false,true]
[314,"Y",112,"Y","Archives","Archives (112)",1120450110,null,null,null,314,112,"Archives (112)","Archives",1120450110,314,true,true]
[315,"Y",112,"N","Copiers & Central Repairs","Copiers & Central Repairs (112)",1120420001,null,null,null,315,112,"Copiers & Central Repairs (112)","Copiers & Central Repairs",1120420001,315,false,true]
[316,"Y",112,"Y","Document Imaging","Document Imaging (112)",1120440001,null,null,null,316,112,"Document Imaging (112)","Document Imaging",1120440001,316,true,true]
[317,"Y",112,"N","Mail Services","Mail Services (112)",1120480001,null,null,null,317,112,"Mail Services (112)","Mail Services",1120480001,317,false,true]
[318,"Y",110,"N","Public Information Office","Public Information Office (110)",0,null,null,null,318,110,"Public Information Office (110)","Public Information Office",0,318,false,true]

{"sheet":"Budgeted Funds","index":16,"n_rows":162,"n_cols":11,"rows_kept":162,"cut":false,"hidden":true,"merged":[]}
["FundNum","FundName","FundingAgency","Budgeted","LeadDepartment","LeadDeptNum","HTEFundNum","Fund Category","AdoptedBudgetFund",null,"Copy paste from tblFunds in Access"]
[1,"General Fund","na",true,"N/A",899,1,"General Fund",true]
[2,"700 Lavaca Complex Fund","Fee Revenue",true,"Facilities Management",114,7,"Other",false]
[3,"Texas Exposition and Heritage Fund","Fee Revenue",true,"Facilities Management",114,501,"Other",true]
[4,"Cnty Clerk Archival Fd (GF)","Fee Revenue",true,"County Clerk",120,57,"Other",true]
[100,"Law Library Fund","Fee Revenue",true,"Communications & Records Services",155,11,"Other",true]
[104,"Dispute Resolution Fund","Fee Revenue",true,"Dispute Resolution Center",136,16,"Other",true]
[105,"Voter Registration Fund","Fee Revenue",true,"Tax Accessor-Collector",108,18,"Other",true]
[106,"Juvenile Fee Fund","Fee Revenue",true,"Juvenile Probation",145,21,"Other",true]
[107,"Juvenile Justice Alternative Education Program","School Districts/General Fund Transfer",true,"Juvenile Probation",145,23,"Other",true]
[108,"County Clerk Records Management and Preservation Fund","Fee Revenue",true,"County Clerk",120,28,"Other",true]
[109,"LCRA - Travis County Parks CIP Fund","Fee Revenue",true,"Transportation & Natural Resources",149,29,"Other",true]
[110,"Records Management and Preservation Fund","Fee Revenue",true,"Communications and Records Services",112,30,"Other",true]
[111,"Courthouse Security Fund","Fee Revenue",true,"Sheriff",137,31,"Other",true]
[113,"Court Reporter Service Fund","Fee Revenue",true,"Civil Courts",122,36,"Other",true]
[114,"Juvenile Deferred Prosecution Fund","Fee Revenue",true,"Juvenile Probation",145,37,"Other",true]
[115,"Balcones Canyonlands Preservation Fund","Fee Revenue",true,"TNR",149,38,"Other",true]
[117,"CSC Equipment Acquisition","Texas Department of Criminal Justice",false,"Community Supervision",139,40,"Other",false]
[118,"LEOSE - Commissioner's Court","Texas Comptroller of Public Accounts",true,"Emergency Services",147,41,"Other",true]
[119,"Juvenile Delinquency Prevention Fund","Fee Revenue",true,"N/A",145,43,"Other",true]
[121,"Unclaimed Property Fund","Unclaimed Funds",true,"Treasurer",107,46,"Other",true]
[122,"Professional Prosecutors Fund","General Fund Sustained",true,"County Attorney",119,47,"Other",true]
[123,"Mary Quinlan Park Fund","Austin Spa Investors Land Access Fee",true,"TNR",149,48,"Other",true]
[124,"Probate Judiciary Fee Fund","Fee Revenue",true,"Probate Court",125,49,"Other",true]
[125,"Justice Court Technology Fund","Fee Revenue",true,"Appropriate Department",126,50,"Other",true]
[126,"Truancy Court Fund","AISD, COA & General Fund",false,"Juvenile Probation",145,54,"Other",false]
[127,"District Clerk Records Management Fund","Fee Revenue",true,"District Clerk",121,55,"Other",true]
[128,"Elections Contract Fund","Elections Services Contracts",true,"County Clerk",120,56,"Other",true]
[129,"County Clerk Archival Fund","Fee Revenue",true,"County Clerk",120,57,"Other",false]
[130,"Family Protection Fund","Fee Revenue",true,"HHS",123,58,"Other",true]
[131,"Drug Court Program Fund","Fee Revenue",true,"Criminal Courts",142,59,"Other",true]
[132,"Probate Guardianship Fee Fund","Fee Revenue",true,"Probate Court",125,60,"Other",true]
[133,"Vital Statistic Preservation Fund","Fee Revenue",true,"Justices of the Peace",126,63,"Other",true]
[134,"Fire Code Fund","Fee Revenue",true,"Emergency Services",147,64,"Other",true]
[135,"Child Abuse Prevention Fund","Fee Revenue",true,"HHS",158,65,"Other",true]
[136,"Justice Court Building Security Fund","Fee Revenue",true,"Justices of the Peace",126,66,"Other",true]
[137,"Juvenile Case Manager Fund","Fee Revenue",true,"Justices of the Peace",126,67,"Other",true]
[138,"Health Food Permits Fund","Fee Revenue",true,"HHS",158,68,"Other",true]
[139,"District Court Records Technology Fund","Fee Revenue",true,"District Court",121,70,"Other",true]
[140,"County and District Court Technology Fund","Fee Revenue",true,"District Clerk",121,71,"Other",true]
[141,"Court Records Preservation Fund","Fee Revenue",true,"ITS",112,72,"Other",true]
[142,"CAPCOG Fund","",true,"Emergency Services",147,73,"Other",true]
[144,"Unclaimed Juvenile Restitution Fund","Unclaimed Funds",true,"Juvenile Probation",145,75,"Other",true]
[145,"Road and Bridge Fund","Fee Revenue",true,"TNR",149,99,"Other",true]
[146,"Gardner House Handicraft Fund","Donations",true,"Juvenile Probation",145,551,"Other",false]
[147,"Lake Travis Economic Dev. Study Fund","LT Chamber of Commerce/Various",false,"TNR",158,76,"Other",false]
[148,"Travis County Counseling Center","Fee Revenue",false,"Counseling Center",140,17,"Other",false]
[149,"Afterschool Youth Enrichment Services Fund","Fee Revenue",true,"HHS",158,null,"Other",true]
[150,"Motor Vehicle Interest","",false,"",899,null,"Other",false]
[151,"Civil Courts Facilities Fund","Fee Revenue",true,"Civil Courts",110,null,"Other",true]
[152,"Juvenile Case Manager Program Fund","Fee Revenue",true,"Justices of the Peace",126,null,"Other",true]
[153,"Truancy Civil Court","Fee Revenue",true,"Justices of the Peace",126,null,"Other",true]
[154,"CA DWI Pre-Diversion Program Fund","Fee Revenue",true,"County Attorney",119,null,"Other",true]
[155,"Child Welfare Juror Donations Fund","Fee Revenue",true,"HHS",158,null,"Other",true]
[156,"County Jury Fund","Fee Revenue",true,"County Clerk",120,null,"Other",true]
[157,"County Speciality Court Fund","Fee Revenue",true,"County Clerk",120,null,"Other",true]
[158,"Language Access Fund","Fee Revenue?",true,"County Clerk",120,null,"Other",true]
[159,"Judical Educ & Support Fund","Fee Revenue?",true,"Probate",125,null,"Other",true]
[160,"TC Records Mgmt & Pres Fund","Fee Revenue?",true,"ITS",112,null,"Other",true]
[161,"Justice Court Support Fund","Fee Revenue?",true,"Justices of the Peace",126,null,"Other",true]
[162,"Veterans Serv Juror Contribution Fund","Juror Donations",true,"Veterans Services",116,null,"Other",true]
[1000,"ARPA Fund","ARPA",false,"N/A",0,null,"ARPA",false]
[1109,"Split Funded, General Fund + LCRA","Fee Revenue",false,"TNR",149,1029,"Other",false]
[1115,"Split Funded, General Fund + BCP","Fee Revenue",false,"TNR",149,1038,"Other",false]
[1145,"Split Funded, General Fund + Road and Bridge","Fee Revenue",false,"TNR",149,1099,"Other",false]
[3001,"Debt Service Fund","Debt Financing",true,"Debt Services",100,394,"Other",true]
[3005,"Debt Service Fund - Taxable","Debt Financing",true,"County Auditor",106,397,"Other",true]
[4000,"Jail CO's, 1984","Debt Financing",false,"Appropriate Department",899,402,"Other",false]
[4001,"Perm Improvement Bonds 1986-A","Debt Financing",false,"Appropriate Department",899,404,"Other",false]
[4003,"Certificate of Obligation 1987-A","Debt Financing",false,"Appropriate Department",899,406,"Other",false]
[4005,"Perm Improvement BDS 1990","Debt Financing",false,"Appropriate Department",899,413,"Other",false]
[4006,"Road CO's 1992","Debt Financing",false,"Appropriate Department",899,422,"Other",false]
[4007,"Certificate of Obligation 1992B","Debt Financing",false,"Appropriate Department",899,423,"Other",false]
[4008,"Certificate of Obligation 1994A","Debt Financing",false,"Appropriate Department",899,425,"Other",false]
[4009,"Road Certificate of Obligation 1994A","Debt Financing",false,"Appropriate Department",899,427,"Other",false]
[4010,"Cert of Obligation 1995","Debt Financing",false,"Appropriate Department",899,428,"Other",false]
[4011,"Lmtd Tax Perm Improvement Bond 96","Debt Financing",false,"Appropriate Department",899,430,"Other",false]
[4012,"Lmtd Tax Cert of Obligation 96","Debt Financing",false,"Appropriate Department",899,431,"Other",false]
[4013,"Unlimited Tax Road Bonds 96","Debt Financing",false,"Appropriate Department",899,432,"Other",false]
[4014,"Limited Tax Certificate of Obligation, 1997","Debt Financing",false,"Appropriate Department",899,433,"Other",false]
[4015,"Unlimited Tax Road Bonds, 1997","Debt Financing",false,"Appropriate Department",899,434,"Other",false]
[4016,"CO's 1998-IJS","",false,"",899,435,"Other",false]
[4017,"CO's 1998-Rds","",false,"",899,437,"Other",false]
[4018,"CO's 1998-PIB","",false,"",899,438,"Other",false]
[4019,"U/T Road Bonds 1998-RB","",false,"",899,439,"Other",false]
[4020,"PI Bonds 1998-Parks","",false,"",899,440,"Other",false]
[4021,"PI Bonds 1998-JJC","",false,"",899,441,"Other",false]
[4022,"U/T Road Bonds-SH130 1999","",false,"",899,443,"Other",false]
[4023,"U/T Road Bonds 1998-SH45","",false,"",899,444,"Other",false]
[4024,"PI Bonds 1998-Del Valle","",false,"",899,446,"Other",false]
[4025,"CO's 1998-A","",false,"",899,449,"Other",false]
[4026,"CO's 1998-PIB","",false,"",899,450,"Other",false]
[4027,"L/T PI Bonds 1998A","",false,"",899,451,"Other",false]
[4028,"U/T Road Bonds-RB84 1999","",false,"",899,452,"Other",false]
[4029,"L/T CO's 1999","",false,"",899,453,"Other",false]
[4030,"CO's 2000","",false,"",899,454,"Other",false]
[4031,"CO's 2000-CJC","",false,"",899,455,"Other",false]
[4032,"L/T CO's 2001","",false,"",899,456,"Other",false]
[4033,"CO's 2001-ROWLP1","",false,"",899,457,"Other",false]
[4050,"Contractual Capital Projects","Intergovernmental Services",false,"TNR",149,475,"Other",false]
[4104,"CO 2021","Debt Financing",true,"Appropriate Department",0,null,"Other",false]
[4503,"UT RD BDS 2021","Debt Financing",true,"Appropriate Department",0,null,"Other",false]
[8955,"Risk Management Self-Insurance Fund","General Fund Sustained",true,"AdOps",111,525,"Other",true]
[8956,"Employee Health Benefit Fund","General Fund Sustained",true,"AdOps",111,526,"Other",true]
[9020,"Helicopter Fund","Fee Revenue",false,"TNR",149,20,"Other",false]
[9033,"FQHC Operations Fund","PCA of Texas, Inc.",false,"HHS",158,33,"Other",false]
[9034,"Community Justice Center","Fee Revenue",false,"Criminal Justice Planning",155,34,"Other",false]
[9175,"AFDC","Department of Human Services",false,"HHS",899,175,"Other",false]
[9290,"Warrant Reseearch Support Team","Criminal Justice Department",false,"TCSO",899,290,"Other",false]
[9301,"Unlimited Tax Ref DDS 85A","Debt Financing",false,"Cash Investment Mgmt",899,301,"Other",false]
[9302,"Limited Tax Ref BDS 85B","Debt Financing",false,"Cash Investment Mgmt",899,302,"Other",false]
[9305,"Perm Improvement Bonds 1987","Debt Financing",false,"Cash Investment Mgmt",899,305,"Other",false]
[9306,"Certificate of Obligations 1987","Debt Financing",false,"Cash Investment Mgmt",899,306,"Other",false]
[9307,"Road Bonds 1987-A","Debt Financing",false,"Cash Investment Mgmt",899,307,"Other",false]
[9308,"Certificate of Obligation 1987-A","Debt Financing",false,"Cash Investment Mgmt",899,308,"Other",false]
[9310,"Certificate of Obligation 1989","Debt Financing",false,"Cash Investment Mgmt",899,310,"Other",false]
[9313,"Perm Improvement Bonds 1990 Fund","Debt Financing",false,"Cash Investment Mgmt",899,313,"Other",false]
[9315,"Certificate of Obligations 1991","Debt Financing",false,"Cash Investment Mgmt",899,315,"Other",false]
[9316,"Limited Tax Ref Bonds 91A","Debt Financing",false,"Cash Investment Mgmt",899,316,"Other",false]
[9317,"Unlimited Tax Ref BDS 91B","Debt Financing",false,"Cash Investment Mgmt",899,317,"Other",false]
[9318,"Certificate of Obligation 1992","Debt Financing",false,"Cash Investment Mgmt",899,318,"Other",false]
[9319,"Limited Tax Ref Bonds 92A","Debt Financing",false,"Cash Investment Mgmt",899,319,"Other",false]
[9320,"Unlimited Tax Ref BDS 92B","Debt Financing",false,"Cash Investment Mgmt",899,320,"Other",false]
[9323,"Certificate of Obligation 1992B","Debt Financing",false,"Cash Investment Mgmt",899,323,"Other",false]
[9324,"Fiber Optics 1993","Debt Financing",false,"Cash Investment Mgmt",899,324,"Other",false]
[9325,"Certificate of Obligation 1994A","Debt Financing",false,"Cash Investment Mgmt",899,325,"Other",false]
[9326,"Perm Improvement Bonds 1994","Debt Financing",false,"Cash Investment Mgmt",899,326,"Other",false]
[9328,"Cert. of Obligation 1995","Debt Financing",false,"Cash Investment Mgmt",899,328,"Other",false]
[9329,"Perm. Improv. Bonds","Debt Financing",false,"Cash Investment Mgmt",899,329,"Other",false]
[9330,"Lim. Tax Refund Bonds, 1996","Debt Financing",false,"Cash Investment Mgmt",899,330,"Other",false]
[9331,"Lim. Tax Refund Bonds, 1997","Debt Financing",false,"Cash Investment Mgmt",899,331,"Other",false]
[9332,"Limited CO's, 1996","Debt Financing",false,"Cash Investment Mgmt",899,332,"Other",false]
[9333,"Unlimited Tax Rd. Bonds, 1996","Debt Financing",false,"Cash Investment Mgmt",899,333,"Other",false]
[9334,"Unlimited Tax Road Bonds 1997","Debt Financing",false,"Appropriate Department",899,334,"Other",false]
[9335,"Limited Tax Certificate of Obligation, 1997","Debt Financing",false,"Appropriate Department",899,335,"Other",false]
[9336,"L/T CO's, 1998","",false,"",899,336,"Other",false]
[9337,"L/T Perm Improvement Bonds, 1998","",false,"",899,337,"Other",false]
[9338,"U/T Road Bonds, 1998","",false,"",899,338,"Other",false]
[9339,"L/T Series 1998A CO's","",false,"",899,339,"Other",false]
[9340,"L/T Perm Improvement Bonds, 1998-A","",false,"",899,340,"Other",false]
[9341,"U/T Road Bonds, 1998-A","",false,"",899,341,"Other",false]
[9342,"L/T CO's, 1999","",false,"",899,342,"Other",false]
[9343,"L/T Perm Improvement Bonds, 1999","",false,"",899,343,"Other",false]
[9344,"U/T Road Bonds, 1999","",false,"",899,344,"Other",false]
[9345,"L/T Refund. Bonds, 1999","",false,"",899,345,"Other",false]
[9346,"L/T CO's, 2000","",false,"",899,346,"Other",false]
[9347,"L/T Perm Improvement Bonds, 2000","",false,"",899,347,"Other",false]
[9348,"U/T Road Bonds, 2000","",false,"",899,348,"Other",false]
[9349,"L/T CO's, 2001","",false,"",899,349,"Other",false]
[9350,"U/T Road Bonds, 2001","",false,"",899,350,"Other",false]
[9408,"Park Bonds 1984","Debt Financing",false,"Appropriate Department",899,408,"Other",false]
[9410,"Certificate of Obligation 1989","Debt Financing",false,"Appropriate Department",899,410,"Other",false]
[9412,"Certificate of Obligation 1990","Debt Financing",false,"Appropriate Department",899,412,"Other",false]
[9416,"Road CO's 1989","Debt Financing",false,"Appropriate Department",899,416,"Other",false]
[9417,"Palm School CO's 1985","Debt Financing",false,"Appropriate Department",899,417,"Other",false]
[9419,"Certificate of Obligation 1991","Debt Financing",false,"Appropriate Department",899,419,"Other",false]
[9420,"CIP Road CO's 1991","Debt Financing",false,"Appropriate Department",899,420,"Other",false]
[9421,"Certificate of Obligation 1992","Debt Financing",false,"Appropriate Department",899,421,"Other",false]
[9424,"CIP Certificate of Obligation 1992B","Debt Financing",false,"Appropriate Department",899,424,"Other",false]
[9426,"Perm Improvement Bonds 1994A","Debt Financing",false,"Appropriate Department",899,426,"Other",false]
[9429,"Perm Improvement BDS 1995","Debt Financing",false,"Appropriate Department",899,429,"Other",false]
[9999,"Dummy Fund","Dummy Fund",true,"Dummy Fund",899,999,"Other",false]

{"sheet":"FC Master","index":17,"n_rows":1836,"n_cols":19,"rows_kept":1836,"cut":false,"hidden":true,"merged":[]}
["Cost Center","Name","Description","Person Responsible","Department","Functional Area","Cost Center Category","Valid From","Valid To","Created on","Actual: Primary Costs (Lock Indicator)","Commitments Update (Lock Indicator)","Plan: Primary Costs (Lock Indicator)","AnyLock","car","budgeted fnd","rollup FC #","rollup FC name","Budget at Rollup"]
[1000000000,"100TC0000","Travis County","Commissioners Court","100","1120","P",null,null,null,null,null,null,false,0,0,1000000000,"Travis County",""]
[1000003001,"100TC3001","Travis County-Cons Debt Svc","Commissioners Court","100","1120","P",null,null,null,null,null,null,false,0,"X",1000003001,"Travis County-Cons Debt Svc",""]
[1000003002,"100TC3005","Travis County-Refunding Debt Svc","Commissioners Court","100","1120","P",null,null,null,null,null,null,false,0,"",1000003002,"Travis County-Refunding Debt Svc",""]
[1000003005,"100TC3005","Travis County-Debt Svc-Taxable","Commissioners Court","100","1120","P",null,null,null,null,null,null,false,0,"X",1000003005,"Travis County-Debt Svc-Taxable",""]
[1000008905,"100TC8905","Travis County-Perm School","Commissioners Court","100","1120","P",null,null,null,null,null,null,false,0,"",1000008905,"Travis County-Perm School",""]
[1000013003,"100RdDist3003","Road Dist-NW TC Rd Dist 3","County Auditor","100","1120","P",null,null,null,null,null,null,false,0,"",1000013003,"Road Dist-NW TC Rd Dist 3",""]
[1000013004,"100RdDist3004","Road Dist-TC Bee Cave Rd Dist1","County Auditor","100","1120","P",null,null,null,null,null,null,false,0,"",1000013004,"Road Dist-TC Bee Cave Rd Dist1",""]
[1000014004,"100RdDist4004","Road Dist-SW Travis Co Dist 1","County Auditor","100","1120","P",null,null,null,null,null,null,false,0,"",1000014004,"Road Dist-SW Travis Co Dist 1",""]
[1000014051,"100RdDist4051","Road Dist-TC Bee Cave Rd Dist1 Cap Proj","County Auditor","100","1120","P",null,null,null,null,null,null,false,0,"",1000014051,"Road Dist-TC Bee Cave Rd Dist1 Cap Proj",""]
[1010010001,"101Adm0001","County Judge Adm-GF","County Judge","101","1110","P",null,null,null,null,null,null,false,0,"X",1010010001,"County Judge Adm-GF","N"]
[1010020001,"101JVBoard0001","County Judge JV Board-GF","County Judge","101","1230","P",null,null,null,null,null,null,false,0,"X",1010020001,"County Judge JV Board-GF","N"]
[1020010001,"102Adm0001","Co Comm Pct 1 Adm-GF","County Comm Pct 1","102","1110","P",null,null,null,null,null,null,false,0,"X",1020010001,"Co Comm Pct 1 Adm-GF","N"]
[1028000001,"102CAR0001","Co Comm Pct 1 CAR-GF","County Comm Pct 1","102","1110","C",null,null,null,null,null,null,false,"CAR","X",1028000001,"Co Comm Pct 1 CAR-GF","N"]
[1030010001,"103Adm0001","Co Comm Pct 2 Adm-GF","County Comm Pct 2","103","1110","P",null,null,null,null,null,null,false,0,"X",1030010001,"Co Comm Pct 2 Adm-GF","N"]
[1040010001,"104Adm0001","Co Comm Pct 3 Adm-GF","County Comm Pct 3","104","1110","P",null,null,null,null,null,null,false,0,"X",1040010001,"Co Comm Pct 3 Adm-GF","N"]
[1050010001,"105Adm0001","Co Comm Pct 4 Adm-GF","County Comm Pct 4","105","1110","P",null,null,null,null,null,null,false,0,"X",1050010001,"Co Comm Pct 4 Adm-GF","N"]
[1060010001,"106Aud0001","Co Auditor Aud-GF","County Auditor","106","1120","P",null,null,null,null,null,null,false,0,"X",1060010001,"Co Auditor Aud-GF","N"]
[1060020001,"106BEFIT0001","Co Auditor BEFIT-GF","County Auditor","106","1120","P",null,null,null,null,null,null,false,0,"X",1060020001,"Co Auditor BEFIT-GF","N"]
[1060024063,"106BEFIT4063","Co Auditor BEFIT-CO 2010 Nontax","County Auditor","106","1120","P",null,null,null,null,null,null,false,0,"X",1060024063,"Co Auditor BEFIT-CO 2010 Nontax","N"]
[1060024068,"106BEFIT4068","Co Auditor BEFIT-CO 2011 Nontax","County Auditor","106","1120","P",null,null,null,null,null,null,false,0,"X",1060024068,"Co Auditor BEFIT-CO 2011 Nontax","N"]
[1060024072,"106BEFIT4072","Co Auditor BEFIT-CO 2012","County Auditor","106","1120","P",null,null,null,null,null,null,false,0,"X",1060024072,"Co Auditor BEFIT-CO 2012","N"]
[1060030001,"106SAPCWM&S0001","SAP County-wide Maintenance & Support","County Auditor","106","1120","P",null,null,null,null,null,null,false,0,"X",1060030001,"SAP County-wide Maintenance & Support","N"]
[1060040001,"106PvcyHIPAA0001","Privacy and HIPAA Compliance-GF","County Auditor","106","1110","P",null,null,null,null,null,null,false,0,"X",1060040001,"Privacy and HIPAA Compliance-GF","N"]
[1060048955,"106HIPAA8955","Co Auditor Aud-HIPAA-Travis Co. Self Ins","County Auditor","106","1120","P",null,null,null,null,null,null,false,0,"X",1060048955,"Co Auditor Aud-HIPAA-Travis Co. Self Ins","N"]
[1060048956,"106HIPAA8956","Co Auditor Aud-HIPAA-Emp Health Benefit","County Auditor","106","1120","P",null,null,null,null,null,null,false,0,"X",1060048956,"Co Auditor Aud-HIPAA-Emp Health Benefit","N"]
[1070010001,"107Adm0001","County Treasurer Adm-GF","County Treasurer","107","1120","P",null,null,null,null,null,null,false,0,"X",1070010001,"County Treasurer Adm-GF","N"]
[1070010121,"107Adm0121","County Treasurer Adm-Unclaimed Property","County Treasurer","107","1120","P",null,null,null,null,null,null,false,0,"X",1070010121,"County Treasurer Adm-Unclaimed Property","N"]
[1080010001,"108Adm0001","Tax Collector Administration-GF","Tax Asr Collector","108","1130","P",null,null,null,null,null,null,false,0,"X",1080010001,"Tax Collector Administration-GF","N"]
[1080020001,"108PITCln0001","Tax Collector Pbc Info and Trng Cln-GF","Tax Asr Collector","108","1130","P",null,null,null,null,null,null,false,0,"X",1080020001,"Tax Collector Pbc Info and Trng Cln-GF","N"]
[1080030001,"108PropTaxCln0001","Tax Collector Prop Tax Cln-GF","Tax Asr Collector","108","1130","P",null,null,null,null,null,null,false,0,"X",1080030001,"Tax Collector Prop Tax Cln-GF","N"]
[1080030150,"108MtrVhInvTxInt0150","Motor Vehicle Inventory Tax-Interest","Tax Asr Collector","108","1130","P",null,null,null,null,null,null,false,0,"",1080030150,"Motor Vehicle Inventory Tax-Interest","N"]
[1080034063,"108PropTaxCln4063","Tax Collector Prop Tax Cln-CO2010 Nontax","Tax Asr Collector","108","1130","P",null,null,null,null,null,null,false,0,"X",1080034063,"Tax Collector Prop Tax Cln-CO2010 Nontax","N"]
[1080040001,"108CtyCtCln0001","Tax Collector County Court at Law Cln-GF","Tax Asr Collector","108","1210","P",null,null,null,null,null,null,false,0,"X",1080040001,"Tax Collector County Court at Law Cln-GF","N"]
[1080050001,"108JPCln0001","Tax Collector JP Collections-GF","Tax Asr Collector","108","1210","P",null,null,null,null,null,null,false,0,"X",1080050001,"Tax Collector JP Collections-GF","N"]
[1080060001,"108DistCtCln0001","Tax Collector District CT at Law Cln- GF","Tax Asr Collector","108","1210","P",null,null,null,null,null,null,false,0,"X",1080060001,"Tax Collector District CT at Law Cln- GF","N"]
[1080070001,"108MotorVehCln0001","Tax Collector Motor Veh Collections-GF","Tax Asr Collector","108","1130","P",null,null,null,null,null,null,false,0,"X",1080070001,"Tax Collector Motor Veh Collections-GF","N"]
[1080080001,"108VoterRgCln0001","Tax Collector Voter Registration Cln-GF","Tax Asr Collector","108","1130","P",null,null,null,null,null,null,false,0,"X",1080080001,"Tax Collector Voter Registration Cln-GF","N"]
[1080080128,"108VoterRgCln0128","Tax Collector Voter Reg Cln-Eln Cntrt","Tax Asr Collector","108","1130","P",null,null,null,null,null,null,false,0,"X",1080080128,"Tax Collector Voter Reg Cln-Eln Cntrt","N"]
[1080090001,"108Acctg0001","Tax Collector Accounting-GF","Tax Asr Collector","108","1130","P",null,null,null,null,null,null,false,0,"X",1080090001,"Tax Collector Accounting-GF","N"]
[1080100001,"108VoterClnCh190001","Tax Collector Voter Cln Ch19-GF","Tax Asr Collector","108","1150","P",null,null,null,null,null,null,false,0,"X",1080100001,"Tax Collector Voter Cln Ch19-GF","N"]
[1080100105,"108VoterClnCh190001","Tax Collector Voter Cln Ch19-Voter Rg Fd","Tax Asr Collector","108","1150","P",null,null,null,null,null,null,false,0,"X",1080100105,"Tax Collector Voter Cln Ch19-Voter Rg Fd","N"]
[1080110001,"108ITConsol0001","Tax Collector IT-GF","Tax Asr Collector","108","1130","P",null,null,null,null,null,null,false,0,"X",1080110001,"Tax Collector IT-GF","N"]
[1080120001,"108CntrlCollGF","Centralized Court Collections - GF","Tax Asr Collector","","1210","P",null,null,null,null,null,null,false,0,"X"]
[1088000001,"108CAR0001","Tax Collector CAR-TaxAdm GF","Tax Asr Collector","108","1130","C",null,null,null,null,null,null,false,"CAR","X",1088000001,"Tax Collector CAR-TaxAdm GF","N"]
[1090010001,"109Adm0001","PBO Administration-GF","County Exec PBO","109","1120","P",null,null,null,null,null,null,false,0,"X",1090010001,"PBO Administration-GF","N"]
[1090020001,"109Planning0001","PBO Planning-GF","County Exec PBO","109","1120","P",null,null,null,null,null,null,false,0,"X",1090020001,"PBO Planning-GF","N"]
[1090030001,"109Budgeting0001","PBO Budgeting-GF","County Exec PBO","109","1120","P",null,null,null,null,null,null,false,0,"X",1090030001,"PBO Budgeting-GF","N"]
[1090040001,"109IM0001","PBO Investment Management-GF","County Exec PBO","109","1120","P",null,null,null,null,null,null,false,0,"X",1090040001,"PBO Investment Management-GF","N"]
[1090050001,"109Corps0001","PBO Corporations-GF","County Exec PBO","109","1120","P",null,null,null,null,null,null,false,0,"X",1090050001,"PBO Corporations-GF","N"]
[1090060000,"109IntDistPC0000","PBO Cash Investments","County Exec PBO","109","1120","P",null,null,null,null,null,null,false,0,0,1090060000,"PBO Cash Investments","N"]
[1090070000,"109PCInvest0000","PBO PC Investments","County Exec PBO","109","1120","P",null,null,null,null,null,null,false,0,0,1090070000,"PBO PC Investments","N"]
[1090080001,"109EDSI0001","PBO Econ Dev & Strategic Inv.-GF","County Exec PBO","109","1120","P",null,null,null,null,null,null,false,0,"X",1090080001,"PBO Econ Dev & Strategic Inv.-GF","N"]
[1090090001,"PBODEI0001","PBO DEI - GF","County Exec PBO","109","1120","P",null,null,null,null,null,null,false,0,"X",1090090001,"PBO DEI - GF","N"]
[1090100001,"109PIDS0001","Public Improvement Districts","County Exec PBO","109","1120","P",null,null,null,null,null,null,false,0,"X",1090100001,"Public Improvement Districts","N"]
[1098000001,"109CAR0001","PBO CAR-TaxAdm GF","County Exec PBO","109","1120","C",null,null,null,null,null,null,false,"CAR","X",1098000001,"PBO CAR-TaxAdm GF","N"]
[1100008905,"110TCPSFDistISD8905","Travis County-PSF Distribution to ISDs","Intergovt Rltn Coord","110","1120","P",null,null,null,null,null,null,false,0,"",1100008905,"Travis County-PSF Distribution to ISDs","N"]
[1100010000,"110NonDivisional0000","General Adm Non Divisional","Intergovt Rltn Coord","110","1110","P",null,null,null,null,null,null,false,0,0,1100010000,"General Adm Non Divisional","N"]
[1100010001,"110NonDivisional0001","General Adm Non Divisional-GF","Intergovt Rltn Coord","110","1110","P",null,null,null,null,null,null,false,0,"X",1100010001,"General Adm Non Divisional-GF","N"]
[1100020001,"110SpAstCC0001","General Adm Spl Asst To Comm Ct-GF","Intergovt Rltn Coord","110","1110","P",null,null,null,null,null,null,false,0,"X",1100020001,"General Adm Spl Asst To Comm Ct-GF","N"]
[1100030001,"110IntGovRel0001","General Adm Intergovt Relations-GF","Intergovt Rltn Coord","110","1110","P",null,null,null,null,null,null,false,0,"X",1100030001,"General Adm Intergovt Relations-GF","N"]
[1100040001,"110WallerCrk0001","General Adm Waller Creek Dev-GF","Intergovt Rltn Coord","110","1610","P",null,null,null,null,null,null,false,0,"X",1100040001,"General Adm Waller Creek Dev-GF","N"]
[1100050001,"110PubInfoOffice0001","General Adm Public Info Office-GF","Intergovt Rltn Coord","110","1110","P",null,null,null,null,null,null,false,0,"X",1100050001,"General Adm Public Info Office-GF","N"]
[1100060001,"110Media0001","General Adm Media-GF","Intergovt Rltn Coord","110","1110","P",null,null,null,null,null,null,false,0,"X",1100060001,"General Adm Media-GF","N"]
[1108000001,"110GenAdminCAR","General Admin CAR","Intergovt Rltn Coord","110","1110","C",null,null,null,null,null,null,false,"CAR","X",1108000001,"General Admin CAR","N"]
[1110010001,"111Adm0001","HRMD Adm-GF","HR Mgmt Dir","111","1110","P",null,null,null,null,null,null,false,0,"X",1110010001,"HRMD Adm-GF","N"]
[1110020001,"111Compensation0001","HRMD Compensation-GF","HR Mgmt Dir","111","1110","P",null,null,null,null,null,null,false,0,"X",1110020001,"HRMD Compensation-GF","N"]
[1110030001,"111StaffingRecr0001","HRMD Staffing and Recruitment-GF","HR Mgmt Dir","111","1110","P",null,null,null,null,null,null,false,0,"X",1110030001,"HRMD Staffing and Recruitment-GF","N"]
[1110040001,"111RiskMgmt0001","HRMD Risk Mgmt-GF","HR Mgmt Dir","111","1110","P",null,null,null,null,null,null,false,0,"X",1110040001,"HRMD Risk Mgmt-GF","N"]
[1110048955,"111RiskMgmt8955","HRMD Risk Mgmt-Travis Co. Self Ins","HR Mgmt Dir","111","1110","P",null,null,null,null,null,null,false,0,"X",1110048955,"HRMD Risk Mgmt-Travis Co. Self Ins","N"]
[1110050001,"111SaftyLossPrev0001","HRMD Safety/Loss Prevtn Pg-GF","HR Mgmt Dir","111","1110","P",null,null,null,null,null,null,false,0,"X",1110050001,"HRMD Safety/Loss Prevtn Pg-GF","N"]
[1110068956,"111EmpHlthBnfts8956","HRMD Benefits-Emp Health Benefit","HR Mgmt Dir","111","1110","P",null,null,null,null,null,null,false,0,"X",1110068956,"HRMD Benefits-Emp Health Benefit","N"]
[1110078956,"111WellHlthClnc8956","HRMD Wellness Hth Clinic-Emp Hth Ben","HR Mgmt Dir","111","1110","P",null,null,null,null,null,null,false,0,"X",1110078956,"HRMD Wellness Hth Clinic-Emp Hth Ben","N"]
[1110080001,"111HRIS0001","HRMD HRIS-GF","HR Mgmt Dir","111","1110","P",null,null,null,null,null,null,false,0,"X",1110080001,"HRMD HRIS-GF","N"]
[1110090001,"111ADAProgram0001","HRMD ADA Program-GF","HR Mgmt Dir","111","1110","P",null,null,null,null,null,null,false,0,"X",1110090001,"HRMD ADA Program-GF","N"]
[1110100001,"111OrgDev0001","HRMD Organizational Development-GF","HR Mgmt Dir","111","1110","P",null,null,null,null,null,null,false,0,"X",1110100001,"HRMD Organizational Development-GF","N"]
[1110500001,"111HIPAA0001","HRMD HIPAA-GF","HR Mgmt Dir","111","1110","P",null,null,null,null,null,null,false,0,"X",1110500001,"HRMD HIPAA-GF","N"]
[1118000001,"HRMD CAR-GenAdm GF","HRMD CAR-GenAdm GF","HR Mgmt Dir","111","1110","C",null,null,null,null,null,null,false,"CAR","X",1118000001,"HRMD CAR-GenAdm GF","N"]
[1120010001,"112ExM0001","TCIS ExM-GF","Chief Info Ofr","112","1110","P",null,null,null,null,null,null,false,0,"X",1120010001,"TCIS ExM-GF","Y"]
[1120010108,"112ExM0108","TCIS ExM-Rec Mgmt Fd","Chief Info Ofr","112","1110","P",null,null,null,null,null,null,false,0,"X",1120010108,"TCIS ExM-Rec Mgmt Fd","Y"]
[1120014068,"112ExM4068","TCIS ExM-CO 2011 Nontax","Chief Info Ofr","112","1110","P",null,null,null,null,null,null,false,0,"X",1120014068,"TCIS ExM-CO 2011 Nontax","Y"]
[1120020001,"112Adm0001","TCIS Adm-GF","Chief Info Ofr","112","1110","P",null,null,null,null,null,null,false,0,"X",1120020001,"TCIS Adm-GF","Y"]
[1120020117,"112CSCD0117","TCIS Admin-CSCD Equipment","Chief Info Ofr","112","1110","P",null,null,null,null,null,null,false,0,"X",1120020117,"TCIS Admin-CSCD Equipment","Y"]
[1120020128,"112Adm0128","TCIS Admin - Eln Cntrt Fund","Chief Info Ofr","112","1110","P",null,null,null,null,null,null,false,0,"X",1120020128,"TCIS Admin - Eln Cntrt Fund","Y"]
[1120020129,"112Adm0129","TCIS Adm-County Clerk Archival Fd","Chief Info Ofr","112","1110","P",null,null,null,null,null,null,false,0,"X",1120020129,"TCIS Adm-County Clerk Archival Fd","Y"]
[1120020137,"112Adm0137","TCIS-Admin-Juve Case Mgr Fund","Chief Info Ofr","112","1110","P",null,null,null,null,null,null,false,0,"X",1120020137,"TCIS-Admin-Juve Case Mgr Fund","Y"]
[1120024016,"112Adm4016","TCIS Adm-CO 1998","Chief Info Ofr","112","1110","P",null,null,null,null,null,null,false,0,"X",1120024016,"TCIS Adm-CO 1998","Y"]
[1120024025,"112Adm4025","TCIS Adm-CO 1998A","Chief Info Ofr","112","1110","P",null,null,null,null,null,null,false,0,"X",1120024025,"TCIS Adm-CO 1998A","Y"]
[1120024029,"112Adm4029","TCIS Adm-CO 1999","Chief Info Ofr","112","1110","P",null,null,null,null,null,null,false,0,"X",1120024029,"TCIS Adm-CO 1999","Y"]
[1120024030,"112Adm4030","TCIS Adm-CO 2000","Chief Info Ofr","112","1110","P",null,null,null,null,null,null,false,0,"X",1120024030,"TCIS Adm-CO 2000","Y"]
[1120024032,"112Adm4032","TCIS Adm-CO 2001","Chief Info Ofr","112","1110","P",null,null,null,null,null,null,false,0,"X",1120024032,"TCIS Adm-CO 2001","Y"]
[1120024056,"112Adm4056","TCIS Adm-CO 2008","Chief Info Ofr","112","1110","P",null,null,null,null,null,null,false,0,"X",1120024056,"TCIS Adm-CO 2008","Y"]
[1120024059,"112Adm4059","TCIS Adm-CO 2009","Chief Info Ofr","112","1110","P",null,null,null,null,null,null,false,0,"X",1120024059,"TCIS Adm-CO 2009","Y"]
[1120024068,"112Adm4068","TCIS Adm-CO 2011 Nontax","Chief Info Ofr","112","1110","P",null,null,null,null,null,null,false,0,"X",1120024068,"TCIS Adm-CO 2011 Nontax","Y"]
[1120030001,"112AdmDeskSv0001","TCIS Adm-Financial-Desktop Sv-GF","Chief Info Ofr","112","1110","P",null,null,null,null,null,null,false,0,"X",1120020001,"TCIS Adm-GF","Y"]
[1120040000,"112NSS0000","TCIS NSS","Chief Info Ofr","112","1110","P",null,null,null,null,null,null,false,0,0,1120040000,"TCIS NSS","Y"]
[1120040001,"112NSS0001","TCIS NSS-GF","Chief Info Ofr","112","1110","P",null,null,null,null,null,null,false,0,"X",1120040001,"TCIS NSS-GF","Y"]
[1120040002,"112NSS0002","TCIS NSS-700 Lavaca Complex","Chief Info Ofr","112","1110","P",null,null,null,null,null,null,false,0,"X",1120040002,"TCIS NSS-700 Lavaca Complex","Y"]
[1120040003,"112NSS0003","TCIS NSS-Tx Expo & Heritage-Expo Fd","Chief Info Ofr","112","1110","P",null,null,null,null,null,null,false,0,"X",1120040003,"TCIS NSS-Tx Expo & Heritage-Expo Fd","Y"]
[1120040105,"112NSS0105","TCIS NSS-Voter Registration Fd","Chief Info Ofr","112","1110","P",null,null,null,null,null,null,false,0,"X",1120040105,"TCIS NSS-Voter Registration Fd","Y"]
[1120040115,"112NSS0115","TCIS NSS-BCP Building","Chief Info Ofr","112","1110","P",null,null,null,null,null,null,false,0,"X",1120040115,"TCIS NSS-BCP Building","Y"]
[1120040125,"112NSS0125","TCIS NSS-Justice Court Tech Fd","Chief Info Ofr","112","1110","P",null,null,null,null,null,null,false,0,"X",1120040125,"TCIS NSS-Justice Court Tech Fd","Y"]
[1120040128,"112NSS0128","TCIS NSS-Elections Contract Fd","Chief Info Ofr","112","1110","P",null,null,null,null,null,null,false,0,"X",1120040128,"TCIS NSS-Elections Contract Fd","Y"]
[1120042059,"112NSS2059","TCIS NSS-OAG Grant-State","Chief Info Ofr","112","1110","P",null,null,null,null,null,null,false,0,"",1120042059,"TCIS NSS-OAG Grant-State","Y"]
[1120044034,"112NSS4034","TCIS NSS-CO 2001A","Chief Info Ofr","112","1110","P",null,null,null,null,null,null,false,0,"X",1120044034,"TCIS NSS-CO 2001A","Y"]
[1120044038,"112NSS4038","TCIS NSS-CO 2003","Chief Info Ofr","112","1110","P",null,null,null,null,null,null,false,0,"X",1120044038,"TCIS NSS-CO 2003","Y"]
[1120044052,"112NSS4052","TCIS NSS-CO 2007","Chief Info Ofr","112","1110","P",null,null,null,null,null,null,false,0,"X",1120044052,"TCIS NSS-CO 2007","Y"]
[1120044056,"112NSS4056","TCIS NSS-CO 2008","Chief Info Ofr","112","1110","P",null,null,null,null,null,null,false,0,"X",1120044056,"TCIS NSS-CO 2008","Y"]
[1120044059,"112NSS4059","TCIS NSS-CO 2009","Chief Info Ofr","112","1110","P",null,null,null,null,null,null,false,0,"X",1120044059,"TCIS NSS-CO 2009","Y"]
[1120044063,"112NSS4063","TCIS NSS-CO 2010 Nontax","Chief Info Ofr","112","1110","P",null,null,null,null,null,null,false,0,"X",1120044063,"TCIS NSS-CO 2010 Nontax","Y"]
[1120044068,"112NSS4068","TCIS NSS-CO 2011 Nontax","Chief Info Ofr","112","1110","P",null,null,null,null,null,null,false,0,"X",1120044068,"TCIS NSS-CO 2011 Nontax","Y"]
[1120044072,"112NSS4072","TCIS NSS-CO 2012","Chief Info Ofr","112","1110","P",null,null,null,null,null,null,false,0,"X",1120044072,"TCIS NSS-CO 2012","Y"]
[1120050001,"112NSSAppDBA0001","TCIS NSS App and DB Adm-GF","Chief Info Ofr","112","1110","P",null,null,null,null,null,null,false,0,"X",1120040001,"TCIS NSS-GF","Y"]
[1120060001,"112NSSISR0001","TCIS NSS-ISR-GF","Chief Info Ofr","112","1110","P",null,null,null,null,null,null,false,0,"X",1120040001,"TCIS NSS-GF","Y"]
[1120070001,"112NSSIDC0001","TCIS NSS-IDC-GF","Chief Info Ofr","112","1110","P",null,null,null,null,null,null,false,0,"X",1120070001,"TCIS NSS-IDC-GF","Y"]
[1120080001,"112NSSFacMon0001","TCIS NSS-IDC-Fac & Mon Adm-GF","Chief Info Ofr","112","1110","P",null,null,null,null,null,null,false,0,"X",1120040001,"TCIS NSS-GF","Y"]
[1120090001,"112NSSDrctySv0001","TCIS NSS-ISR-Dcty Sv Rem Sv Adm-GF","Chief Info Ofr","112","1110","P",null,null,null,null,null,null,false,0,"X",1120040001,"TCIS NSS-GF","Y"]
[1120100001,"112NSSNtwkOps0001","TCIS NSS-Ntwk and TLC Ops-GF","Chief Info Ofr","112","1110","P",null,null,null,null,null,null,false,0,"X",1120100001,"TCIS NSS-Ntwk and TLC Ops-GF","Y"]
[1120110001,"112TechSupp0001","TCIS Technical Support-GF","Chief Info Ofr","112","1110","P",null,null,null,null,null,null,false,0,"X",1120110001,"TCIS Technical Support-GF","Y"]
[1120112059,"112TechSupp2059","TCIS Tech Support-OAG Grant State","Chief Info Ofr","112","1110","P",null,null,null,null,null,null,false,0,"",1120112059,"TCIS Tech Support-OAG Grant State","Y"]
[1120114029,"112TechSupp4029","TCIS Technical Support-CO 1999","Chief Info Ofr","112","1110","P",null,null,null,null,null,null,false,0,"X",1120114029,"TCIS Technical Support-CO 1999","Y"]
[1120120001,"112VocComm0001","TCIS Voice Comm-GF","Chief Info Ofr","112","1110","P",null,null,null,null,null,null,false,0,"X",1120120001,"TCIS Voice Comm-GF","Y"]
[1120124034,"112VocComm4034","TCIS Voice Comm-Cert of Oblig 2001A","Chief Info Ofr","112","1110","P",null,null,null,null,null,null,false,0,"X",1120124034,"TCIS Voice Comm-Cert of Oblig 2001A","Y"]
[1120130001,"112PrdSupp0001","TCIS Production Support-GF","Chief Info Ofr","112","1110","P",null,null,null,null,null,null,false,0,"X",1120130001,"TCIS Production Support-GF","Y"]
[1120140001,"112ProgMgmt0001","TCIS Program Mgmt Office-GF","Chief Info Ofr","112","1110","P",null,null,null,null,null,null,false,0,"X",1120140001,"TCIS Program Mgmt Office-GF","Y"]
[1120144068,"112ProjMgmt4068","TCIS Project Mgmt Office-CO 2011 Nontax","Chief Info Ofr","112","1110","P",null,null,null,null,null,null,false,0,"X",1120144068,"TCIS Project Mgmt Office-CO 2011 Nontax","Y"]
[1120150001,"112InfSec0001","TCIS Information Security-GF","Chief Info Ofr","112","1110","P",null,null,null,null,null,null,false,0,"X",1120150001,"TCIS Information Security-GF","Y"]
[1120158956,"112InfSec8956","TCIS Information Security-Emp Hlth Bnfs","Chief Info Ofr","112","1110","P",null,null,null,null,null,null,false,0,"X",1120158956,"TCIS Information Security-Emp Hlth Bnfs","Y"]
[1120160001,"112SDO0001","TCIS NSS SD-GF","Chief Info Ofr","112","1110","P",null,null,null,null,null,null,false,0,"X",1120160001,"TCIS NSS SD-GF","Y"]
[1120160108,"112SDO0108","TCIS NSS SD-Records Mgmt Fd","Chief Info Ofr","112","1110","P",null,null,null,null,null,null,false,0,"X",1120160108,"TCIS NSS SD-Records Mgmt Fd","Y"]
[1120160125,"112SDO0125","TCIS NSS SD-Justice Court Tech Fd","Chief Info Ofr","112","1110","P",null,null,null,null,null,null,false,0,"X",1120160125,"TCIS NSS SD-Justice Court Tech Fd","Y"]
[1120168956,"112SDO8956","TCIS NSS SD-Emp Hlth Bnfs","Chief Info Ofr","112","1110","P",null,null,null,null,null,null,false,0,"X",1120168956,"TCIS NSS SD-Emp Hlth Bnfs","Y"]
[1120170001,"112ADPS0001","TCIS ADPS-GF","Chief Info Ofr","112","1110","P",null,null,null,null,null,null,false,0,"X",1120170001,"TCIS ADPS-GF","Y"]
[1120170125,"112ADPS0125","TCIS ADPS-Js Ct Tech Fd","Chief Info Ofr","112","1110","P",null,null,null,null,null,null,false,0,"X",1120170125,"TCIS ADPS-Js Ct Tech Fd","Y"]
[1120174052,"112ADPS4052","TCIS ADPS-CO 2007","Chief Info Ofr","112","1110","P",null,null,null,null,null,null,false,0,"X",1120174052,"TCIS ADPS-CO 2007","Y"]
[1120180001,"112ADPSSupp0001","TCIS ADPS-App and Prod Support-GF","Chief Info Ofr","112","1110","P",null,null,null,null,null,null,false,0,"X",1120180001,"TCIS ADPS-App and Prod Support-GF","Y"]
[1120190001,"112ADPSDev0001","TCIS ADPS-Application Development-GF","Chief Info Ofr","112","1110","P",null,null,null,null,null,null,false,0,"X",1120190001,"TCIS ADPS-Application Development-GF","Y"]
[1120200001,"112NtwkSvs0001","TCIS Network Services-GF","Chief Info Ofr","112","1110","P",null,null,null,null,null,null,false,0,"X",1120200001,"TCIS Network Services-GF","Y"]
[1120204034,"112NtwkSvs4034","TCIS Network Services-CO 2001A","Chief Info Ofr","112","1110","P",null,null,null,null,null,null,false,0,"X",1120204034,"TCIS Network Services-CO 2001A","Y"]
[1120204044,"112NtwkSvs4044","TCIS Network Services-CO 2005","Chief Info Ofr","112","1110","P",null,null,null,null,null,null,false,0,"X",1120204044,"TCIS Network Services-CO 2005","Y"]
[1120210001,"112CtlCompGenAdm0001","TCIS Computer Central-GF","Chief Info Ofr","112","1110","P",null,null,null,null,null,null,false,0,"X",1120210001,"TCIS Computer Central-GF","Y"]
[1120220001,"112BEFIT0001","TCIS BEFIT-GF","Chief Info Ofr","112","1110","P",null,null,null,null,null,null,false,0,"X",1120220001,"TCIS BEFIT-GF","Y"]
[1120230001,"112PMMDS0001","TCIS Program Mgmt Office MDS-GF","Chief Info Ofr","112","1110","P",null,null,null,null,null,null,false,0,"X",1120140001,"TCIS Program Mgmt Office-GF","Y"]
[1120240001,"112CtlCompCrmJs0001","TCIS Computer Ctl Crm Js-GF","Chief Info Ofr","112","1210","P",null,null,null,null,null,null,false,0,"X",1120240001,"TCIS Computer Ctl Crm Js-GF","Y"]
[1120250001,"112NSSSLM0001","TCIS NSS-Server Life Mgmt-GF","Chief Info Ofr","112","1110","P",null,null,null,null,null,null,false,0,"X",1120040001,"TCIS NSS-GF","Y"]
[1120260001,"112NSSISO0001","TCIS NSS-Inf Security Optns-GF","Chief Info Ofr","112","1110","P",null,null,null,null,null,null,false,0,"X",1120040001,"TCIS NSS-GF","Y"]
[1120270001,"112ADPSTraining0001","TCIS ADPS-Training-GF","Chief Info Ofr","112","1110","P",null,null,null,null,null,null,false,0,"X",1120170001,"TCIS ADPS-GF","Y"]
[1120280001,"112PMWebDevTm0001","TCIS Prog Mgmt Web DevTeam-GF","Chief Info Ofr","112","1110","P",null,null,null,null,null,null,false,0,"X",1120140001,"TCIS Program Mgmt Office-GF","Y"]
[1120290001,"112PMMobData0001","TCIS Prog Mgmt Mobile Data Team-GF","Chief Info Ofr","112","1110","P",null,null,null,null,null,null,false,0,"X",1120140001,"TCIS Program Mgmt Office-GF","Y"]
[1120300001,"112NSS-CTS0001","TCIS NSS-Client Technology Services-GF","Chief Info Ofr","112","1110","P",null,null,null,null,null,null,false,0,"X",1120040001,"TCIS NSS-GF","Y"]
[1120310001,"112PrivOffce0001","TCIS Privacy Office-GF","Chief Info Ofr","112","1110","P",null,null,null,null,null,null,false,0,"X",1120310001,"TCIS Privacy Office-GF","Y"]
[1120400001,"112RMAdmin0001","ITS RM Admin-GF","Chief Info Ofr","112","1110","P",null,null,null,null,null,null,false,0,"X",1120400001,"ITS RM Admin-GF","Y"]
[1120420001,"112CtlRepair0001","ITS Copiers/Central Repairs-GF","Chief Info Ofr","112","1110","P",null,null,null,null,null,null,false,0,"X",1120420001,"ITS Copiers/Central Repairs-GF","Y"]
[1120440001,"112Imaging0001","ITS Imaging-GF","Chief Info Ofr","112","1110","P",null,null,null,null,null,null,false,0,"X",1120400001,"ITS RM Admin-GF","Y"]
[1120440004,"112Imaging0004","ITS Imaging-County Clerk Arch Fd","Chief Info Ofr","112","1110","P",null,null,null,null,null,null,false,0,"X",1120440004,"ITS Imaging-County Clerk Arch Fd","Y"]
[1120440141,"112Imaging0141","ITS Imaging-Record Preservation","Chief Info Ofr","112","1110","P",null,null,null,null,null,null,false,0,"X",1120440141,"ITS Imaging-Record Preservation","Y"]
[1120440160,"112Imaging0160","ITS Imaging-TC RecMgmt&Pre","Chief Info Ofr","","1110","P",null,null,null,null,null,null,false,0,"X"]
[1120450001,"112RcrdsCsltg0001","ITS Records/Consulting-GF","Chief Info Ofr","112","1110","P",null,null,null,null,null,null,false,0,"X",1120400001,"ITS RM Admin-GF","Y"]
[1120450004,"112RcrdsCsltg0004","ITS Records/Consulting-Cty Clrk Arch Fd","Chief Info Ofr","112","1110","P",null,null,null,null,null,null,false,0,"X",1120450004,"ITS Records/Consulting-Cty Clrk Arch Fd","Y"]
[1120450110,"112RcrdsCsltg0110","ITS Records/Consulting-Recs Mgmt Preser","Chief Info Ofr","112","1110","P",null,null,null,null,null,null,false,0,"X",1120450110,"ITS Records/Consulting-Recs Mgmt Preser","Y"]
[1120450160,"112RcrdsCsltg0160","ITS Records/Consulting-TC RecMgmt&Pres","Chief Info Ofr","112","1110","P",null,null,null,null,null,null,false,0,"X",1120450160,"ITS Records/Consulting-TC RecMgmt&Pres","Y"]
[1120460001,"112Printing0001","ITS RMCR Printing-GF","Chief Info Ofr","112","1110","P",null,null,null,null,null,null,false,0,"X",1120400001,"ITS RM Admin-GF","Y"]
[1120480001,"112Mail0001","ITS Mail - GF","Chief Info Ofr","112","1110","P",null,null,null,null,null,null,false,0,"X",1120400001,"ITS RM Admin-GF","Y"]
[1120500001,"112BPE0001","TCIS BPE-GF","Chief Info Ofr","112","1110","P",null,null,null,null,null,null,false,0,"X",1120500001,"TCIS BPE-GF","Y"]
[1128000001,"112CARGenAdm0001","TCIS CAR-GenAdm GF","Chief Info Ofr","112","1110","C",null,null,null,null,null,null,false,"CAR","X",1128000001,"TCIS CAR-GenAdm GF","Y"]
[1128010001,"112CARCrmJs0001","TCIS CAR-CrmJs GF","Chief Info Ofr","112","1210","C",null,null,null,null,null,null,false,"CAR","X",1128010001,"TCIS CAR-CrmJs GF","Y"]
[1128020001,"112CARRdBg0001","TCIS CAR-RdBg GF","Chief Info Ofr","112","1710","C",null,null,null,null,null,null,false,"CAR","X",1128020001,"TCIS CAR-RdBg GF","Y"]
[1128030001,"112CARLE0001","TCIS CAR-LE GF","Chief Info Ofr","112","1310","C",null,null,null,null,null,null,false,"CAR","X",1128030001,"TCIS CAR-LE GF","Y"]
[1129000001,"112ReimburseRes0001","TCIS Reimbursement Resolution Funds-GF","Chief Info Ofr","112","1110","R",null,null,null,null,null,null,false,0,"X",1129000001,"TCIS Reimbursement Resolution Funds-GF","Y"]
[1140010001,"114Adm0001","FMD Adm-GF","Facilities Mgmt Dir","114","1140","P",null,null,null,null,null,null,false,0,"X",1140010001,"FMD Adm-GF","N"]
[1140020001,"114Grndskpng0001","FMD Groundskeeping-GF","Facilities Mgmt Dir","114","1140","P",null,null,null,null,null,null,false,0,"X",1140020001,"FMD Groundskeeping-GF","N"]
[1140030001,"114Custodial0001","FMD Custodial Svs-GF","Facilities Mgmt Dir","114","1140","P",null,null,null,null,null,null,false,0,"X",1140030001,"FMD Custodial Svs-GF","N"]
[1140040001,"114SecuritySvs0001","FMD Security Svs-GF","Facilities Mgmt Dir","114","1140","P",null,null,null,null,null,null,false,0,"X",1140040001,"FMD Security Svs-GF","N"]
[1140040128,"114SecuritySvs0128","FMD Security Svs-Ele. Contracts Fd","Facilities Mgmt Dir","114","1140","P",null,null,null,null,null,null,false,0,"X",1140040128,"FMD Security Svs-Ele. Contracts Fd","N"]
[1140040136,"114SecuritySvs0136","FMD Security Svs-Js Ct Bldg Sec Fd","Facilities Mgmt Dir","114","1140","P",null,null,null,null,null,null,false,0,"X",1140040136,"FMD Security Svs-Js Ct Bldg Sec Fd","N"]
[1140044063,"114SecuritySvs4063","FMD Security Services-Cap Proj","Facilities Mgmt Dir","114","1140","P",null,null,null,null,null,null,false,0,"X",1140044063,"FMD Security Services-Cap Proj","N"]
[1140060002,"114Lavaca0002","FMD Operations 700 Lavaca-Lavaca Cmplx","Facilities Mgmt Dir","114","1140","P",null,null,null,null,null,null,false,0,"X",1140060002,"FMD Operations 700 Lavaca-Lavaca Cmplx","N"]
[1140060115,"114BCP0115","FMD Operations-Balcones Canyonlnds Pres.","Facilities Mgmt Dir","114","1750","P",null,null,null,null,null,null,false,0,"X",1140060115,"FMD Operations-Balcones Canyonlnds Pres.","N"]
[1140070000,"114FacEng0000","FMD Facilities Engineering-Cap Proj","Facilities Mgmt Dir","114","1140","P",null,null,null,null,null,null,false,0,0,1140070000,"FMD Facilities Engineering-Cap Proj","N"]
[1140080001,"114TxExpo0001","FMD Tx Expo & Heritage-GF","Facilities Mgmt Dir","114","1610","P",null,null,null,null,null,null,false,0,"X",1140080001,"FMD Tx Expo & Heritage-GF","N"]
[1140080003,"114TxExpo0003","FMD-Tx Expo & Heritage-Expo Fd","Facilities Mgmt Dir","114","1610","P",null,null,null,null,null,null,false,0,"X",1140080003,"FMD-Tx Expo & Heritage-Expo Fd","N"]
[1140084038,"114TxExpo4038","FMD-Tx Expo & Heritage-LT CO 2003","Facilities Mgmt Dir","114","1610","P",null,null,null,null,null,null,false,0,"X",1140084038,"FMD-Tx Expo & Heritage-LT CO 2003","N"]
[1140090000,"114BdMnt0000","FMD Building Maintenance-Cap Proj","Facilities Mgmt Dir","114","1140","P",null,null,null,null,null,null,false,0,0,1140090000,"FMD Building Maintenance-Cap Proj","N"]
[1140090001,"114BdMnt0001","FMD Building Maintenance-GF","Facilities Mgmt Dir","114","1140","P",null,null,null,null,null,null,false,0,"X",1140090001,"FMD Building Maintenance-GF","N"]
[1140090125,"114BdMnt0125","FMD Building Maintenance Js Ct Tech","Facilities Mgmt Dir","114","1140","P",null,null,null,null,null,null,false,0,"X",1140090125,"FMD Building Maintenance Js Ct Tech","N"]
[1140100001,"114Courthouse0001","FMD Old Courthouse Block-GF","Facilities Mgmt Dir","114","1140","P",null,null,null,null,null,null,false,0,"X",1140100001,"FMD Old Courthouse Block-GF","N"]
[1140110000,"114PMFacMgmt0000","FMD Proj Mgmt Svs FacMgmt","Facilities Mgmt Dir","114","1140","P",null,null,null,null,null,null,false,0,0,1140110000,"FMD Proj Mgmt Svs FacMgmt","N"]
[1140110001,"114PMPerPos0001","FMD PM Personnel Positions-GF","Facilities Mgmt Dir","114","1140","P",null,null,null,null,null,null,false,0,"X",1140110001,"FMD PM Personnel Positions-GF","N"]
[1140115001,"114PMFacMgmt5001","FMD Proj Mgmt Svs FacMgmt","Facilities Mgmt Dir","114","1140","P",null,null,null,null,null,null,false,0,"X",1140115001,"FMD Proj Mgmt Svs FacMgmt","N"]
[1140120000,"114PMCrmJus0000","FMD Proj Mgmt Svs Crm Jus","Facilities Mgmt Dir","114","1210","P",null,null,null,null,null,null,false,0,0,1140120000,"FMD Proj Mgmt Svs Crm Jus","N"]
[1140130000,"114PMLE0000","FMD Proj Mgmt Svs Law Enforcement","Facilities Mgmt Dir","114","1310","P",null,null,null,null,null,null,false,0,0,1140130000,"FMD Proj Mgmt Svs Law Enforcement","N"]
[1140140000,"114PMHsgBkg0000","FMD Proj Mgmt Svs Housing & Booking","Facilities Mgmt Dir","114","1410","P",null,null,null,null,null,null,false,0,0,1140140000,"FMD Proj Mgmt Svs Housing & Booking","N"]
[1140150000,"114PMJuvSv0000","FMD Proj Mgmt Svs Juvenile Svs","Facilities Mgmt Dir","114","1230","P",null,null,null,null,null,null,false,0,0,1140150000,"FMD Proj Mgmt Svs Juvenile Svs","N"]
[1140160000,"114PMPbcHlh0000","FMD Proj Mgmt Svs Public Health","Facilities Mgmt Dir","114","1520","P",null,null,null,null,null,null,false,0,0,1140160000,"FMD Proj Mgmt Svs Public Health","N"]
[1140170000,"114PMHumanSv0000","FMD Proj Mgmt Svs Human Services","Facilities Mgmt Dir","114","1530","P",null,null,null,null,null,null,false,0,0,1140170000,"FMD Proj Mgmt Svs Human Services","N"]
[1140180000,"114PMRdBg0000","FMD Proj Mgmt Svs Roads & Bridges","Facilities Mgmt Dir","114","1710","P",null,null,null,null,null,null,false,0,0,1140180000,"FMD Proj Mgmt Svs Roads & Bridges","N"]
[1140190000,"114PMParksRec0000","FMD Proj Mgmt Svs Parks & Rec","Facilities Mgmt Dir","114","1630","P",null,null,null,null,null,null,false,0,0,1140190000,"FMD Proj Mgmt Svs Parks & Rec","N"]
[1140200000,"114PMGenAdm0000","FMD Proj Mgmt Svs General Adm","Facilities Mgmt Dir","114","1110","P",null,null,null,null,null,null,false,0,0,1140200000,"FMD Proj Mgmt Svs General Adm","N"]
[1140210000,"114PrjMgmtSvsCivJstc","FMD Proj Mgmt Svs Civil Justice","Facilities Mgmt Dir","114","1220","P",null,null,null,null,null,null,false,0,0,1140210000,"FMD Proj Mgmt Svs Civil Justice","N"]
[1148000001,"114CARFacMgmt0001","FMD CAR-FacMgmt GF","Facilities Mgmt Dir","114","1140","C",null,null,null,null,null,null,false,"CAR","X",1148000001,"FMD CAR-FacMgmt GF","N"]
[1148010001,"114CARPbcHlh0001","FMD CAR-PbcHlh GF","Facilities Mgmt Dir","114","1520","C",null,null,null,null,null,null,false,"CAR","X",1148010001,"FMD CAR-PbcHlh GF","N"]
[1148020001,"114CARCrmJs0001","FMD CAR-CrmJs GF","Facilities Mgmt Dir","114","1210","C",null,null,null,null,null,null,false,"CAR","X",1148020001,"FMD CAR-CrmJs GF","N"]
[1148030001,"114CARLE0001","FMD CAR-LE GF","Facilities Mgmt Dir","114","1310","C",null,null,null,null,null,null,false,"CAR","X",1148030001,"FMD CAR-LE GF","N"]
[1148040001,"114CARHsgBkg0001","FMD CAR-HsgBkg GF","Facilities Mgmt Dir","114","1410","C",null,null,null,null,null,null,false,"CAR","X",1148040001,"FMD CAR-HsgBkg GF","N"]
[1148050001,"114CARJuvSv0001","FMD CAR-JuvSv GF","Facilities Mgmt Dir","114","1230","C",null,null,null,null,null,null,false,"CAR","X",1148050001,"FMD CAR-JuvSv GF","N"]
[1148060001,"114CARParksRec0001","FMD CAR-ParksRec GF","Facilities Mgmt Dir","114","1630","C",null,null,null,null,null,null,false,"CAR","X",1148060001,"FMD CAR-ParksRec GF","N"]
[1148070001,"114CAREconDev0001","FMD CAR-EconDev GF","Facilities Mgmt Dir","114","1610","C",null,null,null,null,null,null,false,"CAR","X",1148070001,"FMD CAR-EconDev GF","N"]
[1148080001,"114CARHumSv0001","FMD CAR-HumSv GF","Facilities Mgmt Dir","114","1530","C",null,null,null,null,null,null,false,"CAR","X",1148080001,"FMD CAR-HumSv GF","N"]
[1148090001,"114CAR-CivJust0001","FMD CAR - Civil Justice GF","Facilities Mgmt Dir","114","1220","P",null,null,null,null,null,null,false,"CAR","X",1148090001,"FMD CAR - Civil Justice GF","N"]
[1149000001,"114ReimburseRes0001","FMD Reimbursement Resolution Funds-GF","Facilities Mgmt Dir","114","1140","R",null,null,null,null,null,null,false,0,"X",1149000001,"FMD Reimbursement Resolution Funds-GF","N"]
[1150010001,"115Adm0001","Purchasing Office Administration-GF","Purchasing Agent","115","1120","P",null,null,null,null,null,null,false,0,"X",1150010001,"Purchasing Office Administration-GF","N"]
[1150020001,"115FxdAssets0001","Purchasing Office Fixed Assets-GF","Purchasing Agent","115","1120","P",null,null,null,null,null,null,false,0,"X",1150020001,"Purchasing Office Fixed Assets-GF","N"]
[1150030001,"115HUB0001","Purchasing Office HUB Pram-GF","Purchasing Agent","115","1120","P",null,null,null,null,null,null,false,0,"X",1150030001,"Purchasing Office HUB Pram-GF","N"]
[1150040001,"115Prcmnt0001","Purchasing Office Procurement-GF","Purchasing Agent","115","1120","P",null,null,null,null,null,null,false,0,"X",1150040001,"Purchasing Office Procurement-GF","N"]
[1150050001,"115CntrcComp0001","Purchasing Office Contract Compliance-GF","Purchasing Agent","115","1120","P",null,null,null,null,null,null,false,0,"X",1150050001,"Purchasing Office Contract Compliance-GF","N"]
[1158000001,"115CARPurchasing0001","Purchasing CAR-Purchasing GF","Purchasing Agent","115","1120","C",null,null,null,null,null,null,false,"CAR","X",1158000001,"Purchasing CAR-Purchasing GF","N"]
[1160010001,"116VetSvsAdm0001","Veterans Services Adm-GF","Olie Pope","116","1530","P",null,null,null,null,null,null,false,0,"X",1160010001,"Veterans Services Adm-GF","N"]
[1160010162,"116VetSvsAdm0162","Veterans Services Adm-Juror Contrib Fd","Susan Lewis","","1530","P",null,null,null,null,null,null,false,0,"X"]
[1170010001,"117HistComm0001","Historical Commission-GF","Chair of Historical","117","1650","P",null,null,null,null,null,null,false,0,"X",1170010001,"Historical Commission-GF","N"]
[1170012007,"117HistComm2007","Historical Commission-City of Manor Grnt","Chair of Historical","117","1650","P",null,null,null,null,null,null,false,0,"",1170012007,"Historical Commission-City of Manor Grnt","N"]
[1170012035,"117HistComm2035","Historical Commission-Tx Hist Cmn Grant","Chair of Historical","117","1650","P",null,null,null,null,null,null,false,0,"",1170012035,"Historical Commission-Tx Hist Cmn Grant","N"]
[1190010001,"119Civ0001","CA Civil-GF","County Attorney","119","1220","P",null,null,null,null,null,null,false,0,"X",1190010001,"CA Civil-GF","N"]
[1190010116,"119Civ0116","CA Civil-LEOSE/Elected Ofls Fd","County Attorney","119","1220","P",null,null,null,null,null,null,false,0,"",1190010116,"CA Civil-LEOSE/Elected Ofls Fd","N"]
[1190012006,"119Civ2006","CA Civil-COA Grant","County Attorney","119","1220","P",null,null,null,null,null,null,false,0,"",1190012006,"CA Civil-COA Grant","N"]
[1190012016,"119Civ2016","CA Civil-OOG Crm Jus Dv Grant","County Attorney","119","1220","P",null,null,null,null,null,null,false,0,"",1190012016,"CA Civil-OOG Crm Jus Dv Grant","N"]
[1190012059,"119Civ2059","CA Civil-OAG Grant State","County Attorney","119","1220","P",null,null,null,null,null,null,false,0,"",1190012059,"CA Civil-OAG Grant State","N"]
[1190014019,"119Civ4019","CA Civil-UT Rd Bds 1998","County Attorney","119","1220","P",null,null,null,null,null,null,false,0,"X",1190014019,"CA Civil-UT Rd Bds 1998","N"]
[1190014020,"119Civ4020","CA Civil-PIB 1998-Parks","County Attorney","119","1220","P",null,null,null,null,null,null,false,0,"X",1190014020,"CA Civil-PIB 1998-Parks","N"]
[1190014023,"119Civ4023","CA Civil-UT Rd Bds 1998-Sh45","County Attorney","119","1220","P",null,null,null,null,null,null,false,0,"X",1190014023,"CA Civil-UT Rd Bds 1998-Sh45","N"]
[1190020001,"119Crm0001","CA Criminal-GF","County Attorney","119","1210","P",null,null,null,null,null,null,false,0,"X",1190020001,"CA Criminal-GF","N"]
[1190020116,"119Crm0116","CA Criminal-LEOSE/Elected Ofls Fd","County Attorney","119","1210","P",null,null,null,null,null,null,false,0,"",1190020116,"CA Criminal-LEOSE/Elected Ofls Fd","N"]
[1190020154,"119Crim0154","CA Criminal-DWI Pre-Diversion","County Attorney","119","1210","P",null,null,null,null,null,null,false,0,"X",1190020154,"CA Criminal-DWI Pre-Diversion","N"]
[1190030001,"119ChkDiv0001","CA Check Division-GF","County Attorney","119","1220","P",null,null,null,null,null,null,false,0,"X",1190030001,"CA Check Division-GF","N"]
[1190030101,"119ChkDiv0101","CA Check Division-CAPSO Fd","County Attorney","119","1210","P",null,null,null,null,null,null,false,0,"",1190030101,"CA Check Division-CAPSO Fd","N"]
[1190040001,"119UndAgeDrk0001","CA Underage Drinking Prvtn-GF","County Attorney","119","1220","P",null,null,null,null,null,null,false,0,"X",1190040001,"CA Underage Drinking Prvtn-GF","N"]
[1190042031,"119UndAgeDrk2031","CA Underage Drinking Prvtn-TxDOT Grant","County Attorney","119","1220","P",null,null,null,null,null,null,false,0,"",1190042031,"CA Underage Drinking Prvtn-TxDOT Grant","N"]
[1190050122,"119Civ0122","CA Civil-Prof Prosecutors Fd","County Attorney","119","1220","P",null,null,null,null,null,null,false,0,"X",1190050122,"CA Civil-Prof Prosecutors Fd","N"]
[1198000001,"119CAR0001","CA CAR-CivJs GF","County Attorney","119","1220","C",null,null,null,null,null,null,false,"CAR","X",1198000001,"CA CAR-CivJs GF","N"]
[1198010001,"119CAR0001","CA CAR-CrmJs GF","County Attorney","119","1210","C",null,null,null,null,null,null,false,"CAR","X",1198010001,"CA CAR-CrmJs GF","N"]
[1200010001,"120Adm0001","Co Clerk Adm-GF","County Clerk","120","1110","P",null,null,null,null,null,null,false,0,"X",1200010001,"Co Clerk Adm-GF","N"]
[1200010108,"120Admin0108","Co Clerk Administration-Records Mgmt Fd","County Clerk","120","1110","P",null,null,null,null,null,null,false,0,"X",1200010108,"Co Clerk Administration-Records Mgmt Fd","N"]
[1200020001,"120CompSvs0001","Co Clerk Computer Services-GF","County Clerk","120","1110","P",null,null,null,null,null,null,false,0,"X",1200020001,"Co Clerk Computer Services-GF","N"]
[1200020004,"120CompSrvcs0004","Co Clerk Comp Service-Co Clerk Arch Fnd","County Clerk","120","1110","P",null,null,null,null,null,null,false,0,"X",1200020004,"Co Clerk Comp Service-Co Clerk Arch Fnd","N"]
[1200020108,"120CompSrvcs0108","Co Clerk Comp Services-Records Mgmt Fd","County Clerk","120","1110","P",null,null,null,null,null,null,false,0,"X",1200020108,"Co Clerk Comp Services-Records Mgmt Fd","N"]
[1200020129,"120CompSrvcs0129","Co Clerk Comp Service-Co Clerk Arch Fnd","County Clerk","120","1110","P",null,null,null,null,null,null,false,0,"X",1200020129,"Co Clerk Comp Service-Co Clerk Arch Fnd","N"]
[1200030001,"120Accounting0001","Co Clerk Accounting-GF","County Clerk","120","1110","P",null,null,null,null,null,null,false,0,"X",1200030001,"Co Clerk Accounting-GF","N"]
[1200030108,"120ACCTNG-RM0108","CO Clerk Accounting-Records Mgmt Fd","County Clerk","120","1110","P",null,null,null,null,null,null,false,0,"X",1200030108,"CO Clerk Accounting-Records Mgmt Fd","N"]
[1200040000,"120ElnAdmCP0000","Co Clerk Eln Adm – Capital Proj","County Clerk","120","1150","P",null,null,null,null,null,null,false,0,0,1200040000,"Co Clerk Eln Adm – Capital Proj","N"]
[1200040001,"120ElnAdm0001","Co Clerk Eln Adm-GF","County Clerk","120","1150","P",null,null,null,null,null,null,false,0,"X",1200040001,"Co Clerk Eln Adm-GF","N"]
[1200040128,"120ElnAdm0128","Co Clerk Eln Adm-Eln Cntrt Fd","County Clerk","120","1150","P",null,null,null,null,null,null,false,0,"X",1200040128,"Co Clerk Eln Adm-Eln Cntrt Fd","N"]
[1200050128,"120ElnAdmFee0128","Co Clerk Eln Adm Fee-Eln Cntrt Fd","County Clerk","120","1150","P",null,null,null,null,null,null,false,0,"X",1200050128,"Co Clerk Eln Adm Fee-Eln Cntrt Fd","N"]
[1200060001,"120Probate0001","Co Clerk Probate-GF","County Clerk","120","1220","P",null,null,null,null,null,null,false,0,"X",1200060001,"Co Clerk Probate-GF","N"]
[1200060108,"120Probate0108","Co Clerk Probate-Records Mgmt Fd","County Clerk","120","1220","P",null,null,null,null,null,null,false,0,"X",1200060108,"Co Clerk Probate-Records Mgmt Fd","N"]
[1200060110,"120Probate0110","Co Clerk Probate -Records Mgmt Preser","County Clerk","120","1220","P",null,null,null,null,null,null,false,0,"X",1200060110,"Co Clerk Probate -Records Mgmt Preser","N"]
[1200060111,"120Probate0111","Co Clerk Probate-Courthouse Sec Fd","County Clerk","120","1220","P",null,null,null,null,null,null,false,0,"X",1200060111,"Co Clerk Probate-Courthouse Sec Fd","N"]
[1200060113,"120Probate0113","Co Clerk Probate-Ct Rptr Sv Fnd","County Clerk","120","1220","P",null,null,null,null,null,null,false,0,"X",1200060113,"Co Clerk Probate-Ct Rptr Sv Fnd","N"]
[1200060141,"120Probate0141","Co Clerk Probate-Ct Record Preservation","County Clerk","120","1220","P",null,null,null,null,null,null,false,0,"X",1200060141,"Co Clerk Probate-Ct Record Preservation","N"]
[1200060151,"120Probate0151","Co Clerk Probate-CivilCourthouseImpFd","County Clerk","120","1220","P",null,null,null,null,null,null,false,0,"X",1200060151,"Co Clerk Probate-CivilCourthouseImpFd","N"]
[1200060156,"120Probate0156","Co Clerk Probate-Jury Fund","County Clerk","120","1220","P",null,null,null,null,null,null,false,0,"X",1200060156,"Co Clerk Probate-Jury Fund","N"]
[1200060158,"120Probate0158","Co Clerk Probate-Lang Access Fund","County Clerk","120","1220","P",null,null,null,null,null,null,false,0,"X",1200060158,"Co Clerk Probate-Lang Access Fund","N"]
[1200060160,"120Probate0160","Co Clerk Probate-TC RecMgmt&Pres","County Clerk","120","1220","P",null,null,null,null,null,null,false,0,"X",1200060160,"Co Clerk Probate-TC RecMgmt&Pres","N"]
[1200070001,"120Civil0001","Co Clerk Civil-GF","County Clerk","120","1220","P",null,null,null,null,null,null,false,0,"X",1200070001,"Co Clerk Civil-GF","N"]
[1200070108,"120Civil0108","Co Clerk Civil-Records Mgmt Fd","County Clerk","120","1220","P",null,null,null,null,null,null,false,0,"X",1200070108,"Co Clerk Civil-Records Mgmt Fd","N"]
[1200070110,"120Civil0110","Co Clerk Civil-Records Mgmt Preser","County Clerk","120","1220","P",null,null,null,null,null,null,false,0,"X",1200070110,"Co Clerk Civil-Records Mgmt Preser","N"]
[1200070111,"120Civil0111","Co Clerk Civil-Courthouse Sec Fd","County Clerk","120","1220","P",null,null,null,null,null,null,false,0,"X",1200070111,"Co Clerk Civil-Courthouse Sec Fd","N"]
[1200070113,"120Civil0113","Co Clerk Civil-Ct Rptr Sv Fnd","County Clerk","120","1220","P",null,null,null,null,null,null,false,0,"X",1200070113,"Co Clerk Civil-Ct Rptr Sv Fnd","N"]
[1200070141,"120Civil0141","Co Clerk Civil-Ct Record Preservation","County Clerk","120","1220","P",null,null,null,null,null,null,false,0,"X",1200070141,"Co Clerk Civil-Ct Record Preservation","N"]
[1200070151,"120Civil0151","Co Clerk Civil-CivilCourthouseImpFd","County Clerk","120","1220","P",null,null,null,null,null,null,false,0,"X",1200070151,"Co Clerk Civil-CivilCourthouseImpFd","N"]
[1200070156,"120Civil0156","Co Clerk Civil-Cty Jury Fund","County Clerk","120","1220","P",null,null,null,null,null,null,false,0,"X",1200070156,"Co Clerk Civil-Cty Jury Fund","N"]
[1200070158,"120Civil0158","Co Clerk Civil-Lang Access Fund","County Clerk","120","1220","P",null,null,null,null,null,null,false,0,"X",1200070158,"Co Clerk Civil-Lang Access Fund","N"]
[1200070160,"120Civ0160","Co Clerk Civil-TC RecMgmt&Pres","County Clerk","120","1220","P",null,null,null,null,null,null,false,0,"X",1200070160,"Co Clerk Civil-TC RecMgmt&Pres","N"]
[1200080001,"120Crm0001","Co Clerk Crm-GF","County Clerk","120","1210","P",null,null,null,null,null,null,false,0,"X",1200080001,"Co Clerk Crm-GF","N"]
[1200080108,"120Crm0108","Co Clerk Crm-Records Mgmt Fd","County Clerk","120","1210","P",null,null,null,null,null,null,false,0,"X",1200080108,"Co Clerk Crm-Records Mgmt Fd","N"]
[1200080110,"120Crm0110","Co Clerk Crm-Records Mgmt Preser","County Clerk","120","1210","P",null,null,null,null,null,null,false,0,"X",1200080110,"Co Clerk Crm-Records Mgmt Preser","N"]
[1200080111,"120Crm0111","Co Clerk Crm-Courthouse Sec Fd","County Clerk","120","1210","P",null,null,null,null,null,null,false,0,"X",1200080111,"Co Clerk Crm-Courthouse Sec Fd","N"]
[1200080113,"120CrmCtRptr0113","Co Clerk Crm-Ct Rptr Sv Fnd","County Clerk","120","1210","P",null,null,null,null,null,null,false,0,"X",1200080113,"Co Clerk Crm-Ct Rptr Sv Fnd","N"]
[1200080119,"120Crm0119","Co Clerk Crm-JV Delinquency Preventn","County Clerk","120","1210","P",null,null,null,null,null,null,false,0,"X",1200080119,"Co Clerk Crm-JV Delinquency Preventn","N"]
[1200080137,"120Crm0137","Co Clerk Crm-Juvenile Case Mgr Fd","County Clerk","120","1210","P",null,null,null,null,null,null,false,0,"X",1200080137,"Co Clerk Crm-Juvenile Case Mgr Fd","N"]
[1200080140,"120Crm0140","Co Clerk Crm-Co/Dist Court Tech Fd","County Clerk","120","1210","P",null,null,null,null,null,null,false,0,"X",1200080140,"Co Clerk Crm-Co/Dist Court Tech Fd","N"]
[1200080145,"120Crm0145","Co Clerk Crm-RdBg Fnd","County Clerk","120","1220","P",null,null,null,null,null,null,false,0,"X",1200080145,"Co Clerk Crm-RdBg Fnd","N"]
[1200080152,"120Crm0152","Co Clerk Crm-Juv Case Mgr Pgm Fd","County Clerk","120","1210","P",null,null,null,null,null,null,false,0,"X",1200080152,"Co Clerk Crm-Juv Case Mgr Pgm Fd","N"]
[1200080156,"120Crm0156","Co Clerk Crm-Jury Fee Fund","County Clerk","120","1210","P",null,null,null,null,null,null,false,0,"X",1200080156,"Co Clerk Crm-Jury Fee Fund","N"]
[1200080157,"Co Clk Crm-Spec Ct","Co Clerk Crm-Spec Court Fund","BOHANAC","120","1210","P",null,null,null,null,null,null,false,0,"X",1200080157,"Co Clerk Crm-Spec Court Fund","N"]
[1200090001,"120Recording0001","Co Clerk Recording-GF","County Clerk","120","1110","P",null,null,null,null,null,null,false,0,"X",1200090001,"Co Clerk Recording-GF","N"]
[1200090108,"120Recording0108","Co Clerk Recording-Records Mgmt Fd","County Clerk","120","1110","P",null,null,null,null,null,null,false,0,"X",1200090108,"Co Clerk Recording-Records Mgmt Fd","N"]
[1200090111,"120Recording0111","Co Clerk Recording-Courthouse Sec Fd","County Clerk","120","1110","P",null,null,null,null,null,null,false,0,"X",1200090111,"Co Clerk Recording-Courthouse Sec Fd","N"]
[1200100001,"120RecMgmt0001","Co Clerk Records Mgmt-GF","County Clerk","120","1110","P",null,null,null,null,null,null,false,0,"X",1200100001,"Co Clerk Records Mgmt-GF","N"]
[1200100004,"120RecMgmt0004","Co Clerk Records Mgmt-Co Clerk Arch Fnd","County Clerk","120","1110","P",null,null,null,null,null,null,false,0,"X",1200100004,"Co Clerk Records Mgmt-Co Clerk Arch Fnd","N"]
[1200100108,"120RecMgmt0108","Co Clerk Records Mgmt-Records Mgmt Fd","County Clerk","120","1110","P",null,null,null,null,null,null,false,0,"X",1200100108,"Co Clerk Records Mgmt-Records Mgmt Fd","N"]
[1200100111,"120RecMgmt0111","Co Clerk Records Mgmt-Courthouse Sec Fd","County Clerk","120","1110","P",null,null,null,null,null,null,false,0,"X",1200100111,"Co Clerk Records Mgmt-Courthouse Sec Fd","N"]
[1200100129,"120RecMgmt0129","Co Clerk Records Mgmt-Co Clerk Arch Fnd","County Clerk","120","1110","P",null,null,null,null,null,null,false,0,"X",1200100129,"Co Clerk Records Mgmt-Co Clerk Arch Fnd","N"]
[1200110001,"ELNCHGABLE","Co Clerk Eln-Chargeable-GF","County Clerk","120","1150","P",null,null,null,null,null,null,false,0,"X",1200110001,"Co Clerk Eln-Chargeable-GF","N"]
[1208000001,"120CAR0001","Co Clerk CAR-GenAdm GF","County Clerk","120","1110","C",null,null,null,null,null,null,false,"CAR","X",1208000001,"Co Clerk CAR-GenAdm GF","N"]
[1208010001,"120CAR0001","Co Clerk CAR-ElnAdm GF","County Clerk","120","1150","C",null,null,null,null,null,null,false,"CAR","X",1208010001,"Co Clerk CAR-ElnAdm GF","N"]
[1210010001,"121Civ0001","Dist Clerk Civil-GF","District Clerk","121","1220","P",null,null,null,null,null,null,false,0,"X",1210010001,"Dist Clerk Civil-GF","N"]
[1210010108,"121Civ0108","Dist Clerk Civil-Records Mgmt Fd","District Clerk","121","1220","P",null,null,null,null,null,null,false,0,"X",1210010108,"Dist Clerk Civil-Records Mgmt Fd","N"]
[1210010110,"121Civ0110","Dist Clerk Civil-Records Mgmt Preser","District Clerk","121","1220","P",null,null,null,null,null,null,false,0,"X",1210010110,"Dist Clerk Civil-Records Mgmt Preser","N"]
[1210010111,"121Civ0111","Dist Clerk Civil-Courthouse Security Fd","District Clerk","121","1220","P",null,null,null,null,null,null,false,0,"X",1210010111,"Dist Clerk Civil-Courthouse Security Fd","N"]
[1210010113,"121Civ0113","Dist Clerk Civil-Ct Rptr Sv Fnd","District Clerk","121","1220","P",null,null,null,null,null,null,false,0,"X",1210010113,"Dist Clerk Civil-Ct Rptr Sv Fnd","N"]
[1210010127,"121Civ0127","Dist Clerk Civil-Dist Clerk Records Mgmt","District Clerk","121","1220","P",null,null,null,null,null,null,false,0,"X",1210010127,"Dist Clerk Civil-Dist Clerk Records Mgmt","N"]
[1210010130,"121Civ0130","Dist Clerk Civil-Family Protection Fd","District Clerk","121","1220","P",null,null,null,null,null,null,false,0,"X",1210010130,"Dist Clerk Civil-Family Protection Fd","N"]
[1210010139,"121Civ0139","Dist Clerk Civil-Dist Ct Recrds Tech Fd","District Clerk","121","1220","P",null,null,null,null,null,null,false,0,"X",1210010139,"Dist Clerk Civil-Dist Ct Recrds Tech Fd","N"]
[1210010141,"121Civ0141","Dist Clerk Civil-Court Record Pres","District Clerk","121","1220","P",null,null,null,null,null,null,false,0,"X",1210010141,"Dist Clerk Civil-Court Record Pres","N"]
[1210010151,"121Civ0151","Dist Clerk Civil-Civ Crthse Imp Fd","District Clerk","121","1220","P",null,null,null,null,null,null,false,0,"X",1210010151,"Dist Clerk Civil-Civ Crthse Imp Fd","N"]
[1210010156,"121CIV0156","Dist Clerk Civil-Jury Fund","District Clerk","121","1220","P",null,null,null,null,null,null,false,0,"X",1210010156,"Dist Clerk Civil-Jury Fund","N"]
[1210010158,"121CIV0158","Dist Clerk Civil-Lang Access Fund","District Clerk","121","1220","P",null,null,null,null,null,null,false,0,"X",1210010158,"Dist Clerk Civil-Lang Access Fund","N"]
[1210010160,"121CIV0160","Dist Clerk Civil-TC RecMgmt&Pres","District Clerk","121","1220","P",null,null,null,null,null,null,false,0,"X",1210010160,"Dist Clerk Civil-TC RecMgmt&Pres","N"]
[1210020001,"121Crm0001","Dist Clerk Crm-GF","District Clerk","121","1210","P",null,null,null,null,null,null,false,0,"X",1210020001,"Dist Clerk Crm-GF","N"]
[1210020110,"121Crm0110","Dist Clerk Crm-Records Mgmt Preser","District Clerk","121","1210","P",null,null,null,null,null,null,false,0,"X",1210020110,"Dist Clerk Crm-Records Mgmt Preser","N"]
[1210020111,"121Crm0111","Dist Clerk Crm-Courthouse Security Fd","District Clerk","121","1210","P",null,null,null,null,null,null,false,0,"X",1210020111,"Dist Clerk Crm-Courthouse Security Fd","N"]
[1210020113,"121Crim0113","Dist Clerk Crm-Ct Rptr Sv Fnd","District Clerk","121","1210","P",null,null,null,null,null,null,false,0,"X",1210020113,"Dist Clerk Crm-Ct Rptr Sv Fnd","N"]
[1210020119,"121Crm0119","Dist Clerk Crm-Jv Delinquency Preventn","District Clerk","121","1210","P",null,null,null,null,null,null,false,0,"X",1210020119,"Dist Clerk Crm-Jv Delinquency Preventn","N"]
[1210020127,"121Crm0127","Dist Clerk Crm-Dist Clerk Records Mang","District Clerk","121","1210","P",null,null,null,null,null,null,false,0,"X",1210020127,"Dist Clerk Crm-Dist Clerk Records Mang","N"]
[1210020139,"121Crm0139","Dist Clerk Crm-Dist Ct Recrds Tech Fd","District Clerk","121","1210","P",null,null,null,null,null,null,false,0,"X",1210020139,"Dist Clerk Crm-Dist Ct Recrds Tech Fd","N"]
[1210020140,"121Crm0140","Dist Clerk Crm-Co/Dist Court Tech Fd","District Clerk","121","1210","P",null,null,null,null,null,null,false,0,"X",1210020140,"Dist Clerk Crm-Co/Dist Court Tech Fd","N"]
[1210020145,"121Crm0145","Dist Clerk Crm-RdBg Fd","District Clerk","121","1210","P",null,null,null,null,null,null,false,0,"X",1210020145,"Dist Clerk Crm-RdBg Fd","N"]
[1210020156,"126Crm0156","Dist Clerk Crm-County Jury Fd","District Clerk","121","1210","P",null,null,null,null,null,null,false,0,"X",1210020156,"Dist Clerk Crm-County Jury Fd","N"]
[1210020157,"Dist Clk Crm-Spec Ct","Dist Clerk Crm-Spec Court Fund","BOHANAC","121","1210","P",null,null,null,null,null,null,false,0,"X",1210020157,"Dist Clerk Crm-Spec Court Fund","N"]
[1210030001,"121DistLglMtdCv0001","Dist Clerk District Legally Mtd Civil-GF","District Clerk","121","1220","I",null,null,null,null,null,null,false,0,"X",1210030001,"Dist Clerk District Legally Mtd Civil-GF","N"]
[1210040001,"121CoLglMtdCv0001","Dist Clerk County Legally Mtd Civil-GF","District Clerk","121","1220","I",null,null,null,null,null,null,false,0,"X",1210040001,"Dist Clerk County Legally Mtd Civil-GF","N"]
[1210050001,"121DistLglMtdCrm0001","Dist Clerk District Legally Mtd Crm-GF","District Clerk","121","1210","I",null,null,null,null,null,null,false,0,"X",1210050001,"Dist Clerk District Legally Mtd Crm-GF","N"]
[1210060001,"121CoLglMtdCrm0001","Dist Clerk County Legally Mtd Crm-GF","District Clerk","121","1210","I",null,null,null,null,null,null,false,0,"X",1210060001,"Dist Clerk County Legally Mtd Crm-GF","N"]
[1218000001,"121CAR0001","Dist Clerk CAR-CivJs GF","District Clerk","121","1220","C",null,null,null,null,null,null,false,"CAR","X",1218000001,"Dist Clerk CAR-CivJs GF","N"]
[1218010001,"121CAR0001","Dist Clerk CAR-CrmJs GF","District Clerk","121","1210","C",null,null,null,null,null,null,false,"CAR","X",1218010001,"Dist Clerk CAR-CrmJs GF","N"]
[1220010001,"122Dist0001","Civil Courts District-GF","District Judge","122","1220","P",null,null,null,null,null,null,false,0,"X",1220010001,"Civil Courts District-GF","Y"]
[1220010113,"122Dist0113","Civil Courts District-Ct Rptr Sv Fnd","District Judge","122","1220","P",null,null,null,null,null,null,false,0,"X",1220010113,"Civil Courts District-Ct Rptr Sv Fnd","Y"]
[1220012016,"122Dist2016","Civil Courts Dist-OOG Crm Jus Dv Grant","District Judge","122","1220","P",null,null,null,null,null,null,false,0,"",1220012016,"Civil Courts Dist-OOG Crm Jus Dv Grant","Y"]
[1220012058,"122Dist2058","Civil Courts District-OOG CJD-StFd Grant","District Judge","122","1220","P",null,null,null,null,null,null,false,0,"",1220012058,"Civil Courts District-OOG CJD-StFd Grant","Y"]
[1220014034,"122Dist4034","Civil Courts District-CO 2001A","District Judge","122","1220","P",null,null,null,null,null,null,false,0,"X",1220014034,"Civil Courts District-CO 2001A","Y"]
[1220020001,"122Co0001","Civil Courts County-GF","Co Crt At Law Judge","122","1220","P",null,null,null,null,null,null,false,0,"X",1220020001,"Civil Courts County-GF","Y"]
[1220020113,"122Co0113","Civil Courts County-Ct Rptr Sv Fnd","Co Crt At Law Judge","122","1220","P",null,null,null,null,null,null,false,0,"X",1220020113,"Civil Courts County-Ct Rptr Sv Fnd","Y"]
[1220030001,"122126DC0001","Civil Courts 126th District Court-GF","District Judge","122","1220","P",null,null,null,null,null,null,false,0,"X",1220010001,"Civil Courts District-GF","Y"]
[1220040001,"122200DC0001","Civil Courts 200th District Court-GF","District Judge","122","1220","P",null,null,null,null,null,null,false,0,"X",1220010001,"Civil Courts District-GF","Y"]
[1220050001,"122201DC0001","Civil Courts 201st District Court-GF","District Judge","122","1220","P",null,null,null,null,null,null,false,0,"X",1220010001,"Civil Courts District-GF","Y"]
[1220060001,"122250DC0001","Civil Courts 250th District Court-GF","District Judge","122","1220","P",null,null,null,null,null,null,false,0,"X",1220010001,"Civil Courts District-GF","Y"]
[1220070001,"122261DC0001","Civil Courts 261st District Court-GF","District Judge","122","1220","P",null,null,null,null,null,null,false,0,"X",1220010001,"Civil Courts District-GF","Y"]
[1220080001,"122345DC0001","Civil Courts 345th District Court-GF","District Judge","122","1220","P",null,null,null,null,null,null,false,0,"X",1220010001,"Civil Courts District-GF","Y"]
[1220090001,"122353DC0001","Civil Courts 353rd District Court-GF","District Judge","122","1220","P",null,null,null,null,null,null,false,0,"X",1220010001,"Civil Courts District-GF","Y"]
[1220100001,"122419DC0001","Civil Courts 419th District Court-GF","District Judge","122","1220","P",null,null,null,null,null,null,false,0,"X",1220010001,"Civil Courts District-GF","Y"]
[1220110001,"122053DC0001","Civil Courts 53rd District Court-GF","District Judge","122","1220","P",null,null,null,null,null,null,false,0,"X",1220010001,"Civil Courts District-GF","Y"]
[1220120001,"122098DC0001","Civil Courts 98th District Court-GF","District Judge","122","1220","P",null,null,null,null,null,null,false,0,"X",1220010001,"Civil Courts District-GF","Y"]
[1220130001,"122AssocJudge10001","Civil Courts Assoc Judge 1-GF","District Judge","122","1220","P",null,null,null,null,null,null,false,0,"X",1220010001,"Civil Courts District-GF","Y"]
[1220140001,"122AssocJudge20001","Civil Courts Assoc Judge 2-GF","District Judge","122","1220","P",null,null,null,null,null,null,false,0,"X",1220010001,"Civil Courts District-GF","Y"]
[1220150001,"122AssocJudge30001","Civil Courts Assoc Judge 3-GF","District Judge","122","1220","P",null,null,null,null,null,null,false,0,"X",1220010001,"Civil Courts District-GF","Y"]
[1220160001,"122CC10001","Civil Courts Civil Co Ct at Law 1-GF","Co Crt At Law Judge","122","1220","P",null,null,null,null,null,null,false,0,"X",1220020001,"Civil Courts County-GF","Y"]
[1220170001,"122CC20001","Civil Courts Civil Co Ct at Law 2-GF","Co Crt At Law Judge","122","1220","P",null,null,null,null,null,null,false,0,"X",1220020001,"Civil Courts County-GF","Y"]
[1220180001,"122CtAdmOfc0001","Civil Courts Ct Administrator's Ofc-GF","District Judge","122","1220","P",null,null,null,null,null,null,false,0,"X",1220010001,"Civil Courts District-GF","Y"]
[1220190001,"122CtTechTeam0001","Civil Courts Cts Tech Team-GF","District Judge","122","1220","P",null,null,null,null,null,null,false,0,"X",1220010001,"Civil Courts District-GF","Y"]
[1220200001,"122DistJdgOfc0001","Civil Courts District Judges' Ofc-GF","District Judge","122","1220","P",null,null,null,null,null,null,false,0,"X",1220010001,"Civil Courts District-GF","Y"]
[1220210001,"122SubCtBail0001","Civil Courts Substitute Ct Bailiffs-GF","District Judge","122","1220","P",null,null,null,null,null,null,false,0,"X",1220010001,"Civil Courts District-GF","Y"]
[1220220001,"122GenUnAlloc0001","Civil Courts General Unallocated-GF","District Judge","122","1220","P",null,null,null,null,null,null,false,0,"X",1220010001,"Civil Courts District-GF","Y"]
[1220230001,"122CCCoLMF0001","Civil Courts-Co LMF-GF","District Judge","122","1220","I",null,null,null,null,null,null,false,0,"X",1930010001,"Civil Courts-Co-LMF-GF","Y"]
[1220240001,"122CCAppLMF0001","Civil Courts-App LMF-GF","District Judge","122","1220","I",null,null,null,null,null,null,false,0,"X",1930040001,"Civil Courts-App-LMF-GF","Y"]
[1220250001,"122CC3CLMF0001","Civil Courts-3rdCt LMF-GF","District Judge","122","1220","I",null,null,null,null,null,null,false,0,"X",1930040001,"Civil Courts-App-LMF-GF","Y"]
[1220260001,"122CCDisLMF0001","Civil Courts-District LMF-GF","District Judge","122","1220","I",null,null,null,null,null,null,false,0,"X",1930040001,"Civil Courts-App-LMF-GF","Y"]
[1220270001,"122AssocJudge40001","Civil Courts Assoc Judge 4-GF","District Judge","122","1220","P",null,null,null,null,null,null,false,0,"X",1220010001,"Civil Courts District-GF","Y"]
[1220280001,"122459DC0001","Civil Courts 459th District Court-GF","District Judge","122","1220","P",null,null,null,null,null,null,false,0,"X",1220010001,"Civil Courts District-GF","Y"]
[1220290001,"122455DC0001","Civil Courts 455th District Court - GF","District Judge","122","1220","P",null,null,null,null,null,null,false,0,"X",1220010001,"Civil Courts District-GF","Y"]
[1228000001,"122CAR0001","Civil Courts CAR-CivJs GF","District Attorney","122","1220","C",null,null,null,null,null,null,false,"CAR","X",1228000001,"Civil Courts CAR-CivJs GF","Y"]
[1230010001,"123Crm0001","DA Criminal Justice-GF","District Attorney","123","1210","P",null,null,null,null,null,null,false,0,"X",1230010001,"DA Criminal Justice-GF","N"]
[1230010102,"123Crm0102","DA Criminal Justice-DAPSO","District Attorney","123","1210","P",null,null,null,null,null,null,false,0,"",1230010102,"DA Criminal Justice-DAPSO","N"]
[1230010103,"123Crm0103","DA Criminal Js-State Forfeited Prop Fd","District Attorney","123","1210","P",null,null,null,null,null,null,false,0,"",1230010103,"DA Criminal Js-State Forfeited Prop Fd","N"]
[1230010116,"123Crm0116","DA Criminal Justice-LEOSE-Elected Ofcls","District Attorney","123","1210","P",null,null,null,null,null,null,false,0,"",1230010116,"DA Criminal Justice-LEOSE-Elected Ofcls","N"]
[1230010130,"123Crm0130","DA Criminal Justice-Fam Protctn Fd","District Attorney","123","1210","P",null,null,null,null,null,null,false,0,"X",1230010130,"DA Criminal Justice-Fam Protctn Fd","N"]
[1230012006,"123Crm2006","DA Criminal Justice-COA Grant","District Attorney","123","1210","P",null,null,null,null,null,null,false,0,"",1230012006,"DA Criminal Justice-COA Grant","N"]
[1230012019,"123Crm2019","DA Criminal Justice-OAG Grant","District Attorney","123","1210","P",null,null,null,null,null,null,false,0,"",1230012019,"DA Criminal Justice-OAG Grant","N"]
[1230012025,"123Crm2025","DA Criminal Justice-TCEQ Grant","District Attorney","123","1210","P",null,null,null,null,null,null,false,0,"",1230012025,"DA Criminal Justice-TCEQ Grant","N"]
[1230012059,"123Crm2059","DA Criminal Justice-OAG St Fd Grant","District Attorney","123","1210","P",null,null,null,null,null,null,false,0,"",1230012059,"DA Criminal Justice-OAG St Fd Grant","N"]
[1230012090,"123Crm2090","DA Criminal Justice-OAG-US Dept of Jst","District Attorney","123","1210","P",null,null,null,null,null,null,false,0,"",1230012090,"DA Criminal Justice-OAG-US Dept of Jst","N"]
[1230020001,"123Civ0001","DA Civil Justice-Title IV-E Billable-GF","District Attorney","123","1220","P",null,null,null,null,null,null,false,0,"X",1230020001,"DA Civil Justice-Title IV-E Billable-GF","N"]
[1230020102,"123Civ0102","DA Civil Justice-DAPSO","District Attorney","123","1220","P",null,null,null,null,null,null,false,0,"",1230020102,"DA Civil Justice-DAPSO","N"]
[1230020103,"123Civ0103","DA Civil Js-State Forfeited Prop Fd","District Attorney","123","1220","P",null,null,null,null,null,null,false,0,"",1230020103,"DA Civil Js-State Forfeited Prop Fd","N"]
[1230020116,"123Civ0116","DA Civil Justice-LEOSE-Elected Ofcls","District Attorney","123","1220","P",null,null,null,null,null,null,false,0,"",1230020116,"DA Civil Justice-LEOSE-Elected Ofcls","N"]
[1230030001,"123JV0001","DA Juvenile Justice-GF","District Attorney","123","1230","P",null,null,null,null,null,null,false,0,"X",1230030001,"DA Juvenile Justice-GF","N"]
[1230030102,"123JV0102","DA Juvenile Justice-DAPSO","District Attorney","123","1230","P",null,null,null,null,null,null,false,0,"",1230030102,"DA Juvenile Justice-DAPSO","N"]
[1230030103,"123JV0103","DA Juvenile Js-State Forfeited Prop Fd","District Attorney","123","1230","P",null,null,null,null,null,null,false,0,"",1230030103,"DA Juvenile Js-State Forfeited Prop Fd","N"]
[1230030116,"123JV0116","DA Juvenile Justice-LEOSE-Elected Ofcls","District Attorney","123","1230","P",null,null,null,null,null,null,false,0,"",1230030116,"DA Juvenile Justice-LEOSE-Elected Ofcls","N"]
[1230040001,"123WkrsCompFrd0001","DA Workers Comp Fraud-GF","District Attorney","123","1210","P",null,null,null,null,null,null,false,0,"X",1230040001,"DA Workers Comp Fraud-GF","N"]
[1230050001,"123NuisAbtmnt0001","DA Org Crime/Nuisance Abmt-GF","District Attorney","123","1210","P",null,null,null,null,null,null,false,0,"X",1230050001,"DA Org Crime/Nuisance Abmt-GF","N"]
[1230060001,"123DAPIUIG0001","DA Public Integrity Unit-GF","District Attorney","123","1210","P",null,null,null,null,null,null,false,0,"X",1230060001,"DA Public Integrity Unit-GF","N"]
[1230062021,"123PIU2021","DA Pbc Integrity Unit-St Tx Compt Grnt","District Attorney","123","1210","P",null,null,null,null,null,null,false,0,"",1230062021,"DA Pbc Integrity Unit-St Tx Compt Grnt","N"]
[1230070001,"123CivNB0001","DA Civil Js-Non-Billable-GF","District Attorney","123","1220","P",null,null,null,null,null,null,false,0,"X",1230070001,"DA Civil Js-Non-Billable-GF","N"]
[1238000001,"123CAR0001","DA CAR-CrmJs GF","District Attorney","123","1210","C",null,null,null,null,null,null,false,"CAR","X",1238000001,"DA CAR-CrmJs GF","N"]
[1240010001,"124Dist0001","Criminal Courts District-GF","District Judge","124","1210","P",null,null,null,null,null,null,false,0,"X",1240010001,"Criminal Courts District-GF","Y"]
[1240020001,"124DC1470001","Criminal Courts 147th District Court-GF","District Judge","124","1210","P",null,null,null,null,null,null,false,0,"X",1240010001,"Criminal Courts District-GF","Y"]
[1240030001,"124DC1670001","Criminal Courts 167th District Court -GF","District Judge","124","1210","P",null,null,null,null,null,null,false,0,"X",1240010001,"Criminal Courts District-GF","Y"]
[1240040001,"124DC2990001","Criminal Courts 299th District Court-GF","District Judge","124","1210","P",null,null,null,null,null,null,false,0,"X",1240010001,"Criminal Courts District-GF","Y"]
[1240050001,"124DC3310001","Criminal Courts 331st District Court-GF","District Judge","124","1210","P",null,null,null,null,null,null,false,0,"X",1240010001,"Criminal Courts District-GF","Y"]
[1240060001,"124DC3900001","Criminal Courts 390th District Court-GF","District Judge","124","1210","P",null,null,null,null,null,null,false,0,"X",1240010001,"Criminal Courts District-GF","Y"]
[1240070001,"124DC4030001","Criminal Courts 403rd District Court-GF","District Judge","124","1210","P",null,null,null,null,null,null,false,0,"X",1240010001,"Criminal Courts District-GF","Y"]
[1240080001,"124DC4270001","Criminal Courts 427th District Court-GF","District Judge","124","1210","P",null,null,null,null,null,null,false,0,"X",1240010001,"Criminal Courts District-GF","Y"]
[1240090001,"124MagCt0001","Criminal Courts Magistrate Court-GF","District Judge","124","1210","P",null,null,null,null,null,null,false,0,"X",1240010001,"Criminal Courts District-GF","Y"]
[1240100001,"124TechTeam0001","Criminal Courts Technology Team-GF","District Judge","124","1210","P",null,null,null,null,null,null,false,0,"X",1240010001,"Criminal Courts District-GF","Y"]
[1240110001,"124Co0001","Criminal Courts County Division-GF","Co Crt At Law Judge","124","1210","P",null,null,null,null,null,null,false,0,"X",1240110001,"Criminal Courts County Division-GF","Y"]
[1240120001,"124CC30001","Criminal Courts County Court 3-GF","Co Crt At Law Judge","124","1210","P",null,null,null,null,null,null,false,0,"X",1240110001,"Criminal Courts County Division-GF","Y"]
[1240130001,"124CC40001","Criminal Courts County Court 4-GF","Co Crt At Law Judge","124","1210","P",null,null,null,null,null,null,false,0,"X",1240110001,"Criminal Courts County Division-GF","Y"]
[1240140001,"124CC50001","Criminal Courts County Court 5-GF","Co Crt At Law Judge","124","1210","P",null,null,null,null,null,null,false,0,"X",1240110001,"Criminal Courts County Division-GF","Y"]
[1240150001,"124CC60001","Criminal Courts County Court 6-GF","Co Crt At Law Judge","124","1210","P",null,null,null,null,null,null,false,0,"X",1240110001,"Criminal Courts County Division-GF","Y"]
[1240160001,"124CC70001","Criminal Courts County Court 7-GF","Co Crt At Law Judge","124","1210","P",null,null,null,null,null,null,false,0,"X",1240110001,"Criminal Courts County Division-GF","Y"]
[1240170001,"124CC80001","Criminal Courts County Court 8-GF","Co Crt At Law Judge","124","1210","P",null,null,null,null,null,null,false,0,"X",1240110001,"Criminal Courts County Division-GF","Y"]
[1240180001,"124Adm0001","Criminal Courts Administration Unit-GF","District Judge","124","1210","P",null,null,null,null,null,null,false,0,"X",1240110001,"Criminal Courts County Division-GF","Y"]
[1240190001,"124DrgCtPg0001","Crm Cts Drg Ct Pg-GF","Co Crt At Law Judge","124","1210","P",null,null,null,null,null,null,false,0,"X",1240190001,"Crm Cts Drg Ct Pg-GF","Y"]
[1240190131,"124DrgCtPg0131","Crm Cts Drg Ct Pg-Drug Ct Pg","Co Crt At Law Judge","124","1210","P",null,null,null,null,null,null,false,0,"X",1240190131,"Crm Cts Drg Ct Pg-Drug Ct Pg","Y"]
[1240192016,"124DrgCtPg2016","Crm Cts Drg Ct Pg-OOG Crm Jus Dv Grant","Co Crt At Law Judge","124","1210","P",null,null,null,null,null,null,false,0,"",1240192016,"Crm Cts Drg Ct Pg-OOG Crm Jus Dv Grant","Y"]
[1240192039,"124DrgCtPg2039","Crm Cts Drg Ct Pg-Tx Veterans Cmn Grant","Co Crt At Law Judge","124","1210","P",null,null,null,null,null,null,false,0,"",1240192039,"Crm Cts Drg Ct Pg-Tx Veterans Cmn Grant","Y"]
[1240192058,"124DrgCtPg2058","Crm Cts Drg Ct Pg-OOG CJD-St Fd Grant","Co Crt At Law Judge","124","1210","P",null,null,null,null,null,null,false,0,"",1240192058,"Crm Cts Drg Ct Pg-OOG CJD-St Fd Grant","Y"]
[1240200001,"124DrgCtPgVJDG0001","Crm Cts Drg Ct Pg Visiting Judge-GF","Co Crt At Law Judge","124","1210","P",null,null,null,null,null,null,false,0,"X",1240010001,"Criminal Courts District-GF","Y"]
[1240240131,"124DrgCtJudTvl0131","Crm Cts Drg Ct Jud Trvl-Drug Ct Pg","Co Crt At Law Judge","124","1210","P",null,null,null,null,null,null,false,0,"X",1240240131,"Crm Cts Drg Ct Jud Trvl-Drug Ct Pg","Y"]
[1240250001,"124VetCt0001","Criminal Courts Veterans Ct-GF","Co Crt At Law Judge","124","1210","P",null,null,null,null,null,null,false,0,"X",1240250001,"Criminal Courts Veterans Ct-GF","Y"]
[1240250131,"124VetCt0131","Criminal Courts Veterans Ct-Drug Ct Pg","Co Crt At Law Judge","124","1210","P",null,null,null,null,null,null,false,0,"X",1240250131,"Criminal Courts Veterans Ct-Drug Ct Pg","Y"]
[1240270001,"124CCDCtLMF0001","Criminal Courts District LMF-GF","District Judge","124","1210","I",null,null,null,null,null,null,false,0,"X",1940010001,"Criminal Courts County LMF-GF","Y"]
[1240280001,"124CCDCtLMF1470001","Criminal Courts District LMF-147thDCt-GF","District Judge","124","1210","I",null,null,null,null,null,null,false,0,"X",1240280001,"Criminal Courts District LMF-147thDCt-GF","Y"]
[1240290001,"124CCDCtLMF1670001","Criminal Courts District LMF-167thDCt-GF","District Judge","124","1210","I",null,null,null,null,null,null,false,0,"X",1240290001,"Criminal Courts District LMF-167thDCt-GF","Y"]
[1240300001,"124CCDCtLMF2990001","Criminal Courts District LMF-299thDCt-GF","District Judge","124","1210","I",null,null,null,null,null,null,false,0,"X",1240300001,"Criminal Courts District LMF-299thDCt-GF","Y"]
[1240310001,"124CCDCtLMF3310001","Criminal Courts District LMF-331stDCt-GF","District Judge","124","1210","I",null,null,null,null,null,null,false,0,"X",1240310001,"Criminal Courts District LMF-331stDCt-GF","Y"]
[1240320001,"124CCDCtLMF3900001","Criminal Courts District LMF-390thDCt-GF","District Judge","124","1210","I",null,null,null,null,null,null,false,0,"X",1240320001,"Criminal Courts District LMF-390thDCt-GF","Y"]
[1240330001,"124CCDCtLMF4030001","Criminal Courts District LMF-403rdDCt-GF","District Judge","124","1210","I",null,null,null,null,null,null,false,0,"X",1240330001,"Criminal Courts District LMF-403rdDCt-GF","Y"]
[1240340001,"124CCDCtLMF4270001","Criminal Courts District LMF-427thDCt-GF","District Judge","124","1210","I",null,null,null,null,null,null,false,0,"X",1240340001,"Criminal Courts District LMF-427thDCt-GF","Y"]
[1240350001,"124CCLMFMagCt0001","Criminal Courts LMF-Magistrate Ct-GF","District Judge","124","1210","I",null,null,null,null,null,null,false,0,"X",1240350001,"Criminal Courts LMF-Magistrate Ct-GF","Y"]
[1240360001,"124CCLMFDrugCt0001","Criminal Courts LMF-Drug Ct-GF","Co Crt At Law Judge","124","1210","I",null,null,null,null,null,null,false,0,"X",1240360001,"Criminal Courts LMF-Drug Ct-GF","Y"]
[1240370001,"124CCCoLMF0001","Criminal Courts County LMF-GF","Co Crt At Law Judge","124","1210","I",null,null,null,null,null,null,false,0,"X",1240370001,"Criminal Courts County LMF-GF","Y"]
[1240380001,"124CCCoLMFCt30001","Criminal Courts LMF-County Court 3-GF","Co Crt At Law Judge","124","1210","I",null,null,null,null,null,null,false,0,"X",1240370001,"Criminal Courts County LMF-GF","Y"]
[1240390001,"124CCCoLMFCt40001","Criminal Courts LMF-County Court 4-GF","Co Crt At Law Judge","124","1210","I",null,null,null,null,null,null,false,0,"X",1240370001,"Criminal Courts County LMF-GF","Y"]
[1240400001,"124CCCoLMFCt50001","Criminal Courts LMF-County Court 5-GF","Co Crt At Law Judge","124","1210","I",null,null,null,null,null,null,false,0,"X",1240370001,"Criminal Courts County LMF-GF","Y"]
[1240410001,"124CCCoLMFCt60001","Criminal Courts LMF-County Court 6-GF","Co Crt At Law Judge","124","1210","I",null,null,null,null,null,null,false,0,"X",1240370001,"Criminal Courts County LMF-GF","Y"]
[1240420001,"124CCCoLMFCt70001","Criminal Courts LMF-County Court 7-GF","Co Crt At Law Judge","124","1210","I",null,null,null,null,null,null,false,0,"X",1240370001,"Criminal Courts County LMF-GF","Y"]
[1240430001,"124CCCoLMFCt80001","Criminal Courts LMF-County Court 8-GF","Co Crt At Law Judge","124","1210","I",null,null,null,null,null,null,false,0,"X",1240370001,"Criminal Courts County LMF-GF","Y"]
[1240440001,"124CCCoLMFDWICt0001","Criminal Courts LMF-DWI Court-GF","Co Crt At Law Judge","124","1210","I",null,null,null,null,null,null,false,0,"X",1240370001,"Criminal Courts County LMF-GF","Y"]
[1240450001,"124CCCoLMFVetCt0001","Criminal Courts LMF-Veterans Court-GF","Co Crt At Law Judge","124","1210","I",null,null,null,null,null,null,false,0,"X",1240370001,"Criminal Courts County LMF-GF","Y"]
[1240460001,"124CCCoVtCtOp0001","Criminal Courts-Vet Court Optg-GF","Co Crt At Law Judge","124","1210","P",null,null,null,null,null,null,false,0,"X",1240110001,"Criminal Courts County Division-GF","Y"]
[1240470001,"124CC90001","Criminal Courts County Court 9-GF","Co Crt At Law Judge","124","1210","P",null,null,null,null,null,null,false,0,"X",1240110001,"Criminal Courts County Division-GF","Y"]
[1240480001,"124DC4500001","Criminal Courts 450th District Court-GF","District Judge","124","1210","P",null,null,null,null,null,null,false,0,"X",1240010001,"Criminal Courts District-GF","Y"]
[1240490001,"124DC4600001","Criminal Courts 460th District Court-GF","District Judge","124","1210","P",null,null,null,null,null,null,false,0,"X",1240010001,"Criminal Courts District-GF","Y"]
[1248000001,"124CAR0001","Criminal Courts CAR-CrmJs GF","Co Crt At Law Judge","124","1210","C",null,null,null,null,null,null,false,"CAR","X",1248000001,"Criminal Courts CAR-CrmJs GF","Y"]
[1250010001,"125ProbCt0001","Probate Court-GF","Probate Judge","125","1220","P",null,null,null,null,null,null,false,0,"X",1250010001,"Probate Court-GF","N"]
[1250010113,"125ProbCt0113","Probate Court-Court Reporter Sv Fd","Probate Judge","125","1220","P",null,null,null,null,null,null,false,0,"X",1250010113,"Probate Court-Court Reporter Sv Fd","N"]
[1250010124,"125ProbCt0124","Probate Court-Judiciary Fee Fd","Probate Judge","125","1220","P",null,null,null,null,null,null,false,0,"X",1250010124,"Probate Court-Judiciary Fee Fd","N"]
[1250010132,"125ProbCt0132","Probate Court-Grdnshp Probate Grdnshp Fd","Probate Judge","125","1220","P",null,null,null,null,null,null,false,0,"X",1250010132,"Probate Court-Grdnshp Probate Grdnshp Fd","N"]
[1250010159,"125ProbCt0159","Probate Court-Jud Educ&Suppt Fd","Probate Judge","125","1220","P",null,null,null,null,null,null,false,0,"X",1250010159,"Probate Court-Jud Educ&Suppt Fd","N"]
[1250020001,"125MntlHlth0001","Probate Court-Mental Hth-GF","Probate Judge","125","1220","P",null,null,null,null,null,null,false,0,"X",1250020001,"Probate Court-Mental Hth-GF","N"]
[1250020124,"125MntlHlth0124","Probate Court-Mental Hth Judcy Fee Fd","Probate Judge","125","1220","P",null,null,null,null,null,null,false,0,"X",1250020124,"Probate Court-Mental Hth Judcy Fee Fd","N"]
[1250030001,"125Guardshp0001","Probate Court-Guardianship-GF","Probate Judge","125","1220","P",null,null,null,null,null,null,false,0,"X",1250030001,"Probate Court-Guardianship-GF","N"]
[1250030124,"125Guardshp0124","Probate Court-Guardianship Judcy Fee Fd","Probate Judge","125","1220","P",null,null,null,null,null,null,false,0,"X",1250030124,"Probate Court-Guardianship Judcy Fee Fd","N"]
[1250040001,"125PROBCT20001","Probate Court 2 - GF","Probate Judge","125","1220","P",null,null,null,null,null,null,false,0,"X",1250040001,"Probate Court 2 - GF","N"]
[1250040113,"125PROBCT20113","Probate Court 2 – Ct Reporter Sv Fd","Probate Judge","125","1220","P",null,null,null,null,null,null,false,0,"X",1250040113,"Probate Court 2 – Ct Reporter Sv Fd","N"]
[1250040124,"125PROBCT20124","Probate Court 2 – Judiciary Fee Fd","Probate Judge","125","1220","P",null,null,null,null,null,null,false,0,"X",1250040124,"Probate Court 2 – Judiciary Fee Fd","N"]
[1250040132,"125PROBCT20132","Probate Court 2 – Grdnshp Prb Grdnshp Fd","Probate Judge","125","1220","P",null,null,null,null,null,null,false,0,"X",1250040132,"Probate Court 2 – Grdnshp Prb Grdnshp Fd","N"]
[1250040159,"125PROBCT20159","Probate Court 2 – Jud Educ&Suppt Fd","Probate Judge","125","1220","P",null,null,null,null,null,null,false,0,"X",1250040159,"Probate Court 2 – Jud Educ&Suppt Fd","N"]
[1260010001,"126Civ0001","JP1 Civil-GF","JP Pct  1","126","1220","P",null,null,null,null,null,null,false,0,"X",1260010001,"JP1 Civil-GF","N"]
[1260010125,"126Civ0125","JP1 Civil-Jst Ct Technology","JP Pct  1","126","1220","P",null,null,null,null,null,null,false,0,"X",1260010125,"JP1 Civil-Jst Ct Technology","N"]
[1260010133,"126Civ0133","JP1 Civil-Vital Statistic Presrvtn","JP Pct  1","126","1220","P",null,null,null,null,null,null,false,0,"X",1260010133,"JP1 Civil-Vital Statistic Presrvtn","N"]
[1260010158,"126Civ0158","JP1 Civil-Language Access Fd","JP Pct 1","126","1220","P",null,null,null,null,null,null,false,0,"X",1260010158,"JP1 Civil-Language Access Fd","N"]
[1260010161,"126Civ0161","JP1 Civil-Justice Ct Suppt Fd","JP Pct 1","126","1220","P",null,null,null,null,null,null,false,0,"X",1260010161,"JP1 Civil-Justice Ct Suppt Fd","N"]
[1260020001,"126Crm0001","JP1 Criminal-GF","JP Pct  1","126","1210","P",null,null,null,null,null,null,false,0,"X",1260020001,"JP1 Criminal-GF","N"]
[1260020111,"126Crm0111","JP1 Criminal-Courthouse Security Fd","JP Pct  1","126","1210","P",null,null,null,null,null,null,false,0,"X",1260020111,"JP1 Criminal-Courthouse Security Fd","N"]
[1260020125,"126Crm0125","JP1 Criminal-Js Ct Technology","JP Pct  1","126","1210","P",null,null,null,null,null,null,false,0,"X",1260020125,"JP1 Criminal-Js Ct Technology","N"]
[1260020136,"126Crm0136","JP1 Criminal-Justice Ct Bldg Security","JP Pct  1","126","1210","P",null,null,null,null,null,null,false,0,"X",1260020136,"JP1 Criminal-Justice Ct Bldg Security","N"]
[1260020137,"126Crm0137","JP1 Criminal-Juvenile Case Mgr Fd","JP Pct  1","126","1210","P",null,null,null,null,null,null,false,0,"X",1260020137,"JP1 Criminal-Juvenile Case Mgr Fd","N"]
[1260020145,"126Crm0145","JP1 Criminal-RdBg Fd","JP Pct  1","126","1210","P",null,null,null,null,null,null,false,0,"X",1260020145,"JP1 Criminal-RdBg Fd","N"]
[1260020152,"126Crm0152","JP1 Criminal-Juv Case Mgr Pgm Fd","JP Pct  1","126","1210","P",null,null,null,null,null,null,false,0,"X",1260020152,"JP1 Criminal-Juv Case Mgr Pgm Fd","N"]
[1260020156,"126Crm0156","JP1 Criminal-County Jury Fd","JP Pct  1","126","1210","P",null,null,null,null,null,null,false,0,"X",1260020156,"JP1 Criminal-County Jury Fd","N"]
[1260020161,"126Crm0161","JP1 Criminal-Justice Court Support Fd","JP Pct 1","126","1210","P",null,null,null,null,null,null,false,0,"X",1260020161,"JP1 Criminal-Justice Court Support Fd","N"]
[1260022028,"126Crm2028","JP1 Criminal-Tx DPS Grant","JP Pct  1","126","1210","P",null,null,null,null,null,null,false,0,"",1260022028,"JP1 Criminal-Tx DPS Grant","N"]
[1260022069,"126Crm2069","JP1 Criminal-Tx DPS-State Fd","JP Pct  1","126","1210","P",null,null,null,null,null,null,false,0,"",1260022069,"JP1 Criminal-Tx DPS-State Fd","N"]
[1260050153,"126JuvSvs0153","JP1 Juvenile Svs-Truancy Civil Court Fd","JP Pct  1","126","1230","P",null,null,null,null,null,null,false,0,"X",1260050153,"JP1 Juvenile Svs-Truancy Civil Court Fd","N"]
[1270010001,"127Civ0001","JP2 Civil-GF","JP Pct  2","127","1220","P",null,null,null,null,null,null,false,0,"X",1270010001,"JP2 Civil-GF","N"]
[1270010125,"127Civ0125","JP2 Civil-Js Ct Technology","JP Pct  2","127","1220","P",null,null,null,null,null,null,false,0,"X",1270010125,"JP2 Civil-Js Ct Technology","N"]
[1270010133,"127Civ0133","JP2 Civil-Vital Statistic Presrvtn","JP Pct  2","127","1220","P",null,null,null,null,null,null,false,0,"X",1270010133,"JP2 Civil-Vital Statistic Presrvtn","N"]
[1270010136,"127Civ0136","JP2 Civil-Justice Ct Bldg Security","JP Pct  2","127","1220","P",null,null,null,null,null,null,false,0,"X",1270010136,"JP2 Civil-Justice Ct Bldg Security","N"]
[1270010158,"127Civ0158","JP2 Civil-Language Access Fd","JP Pct 2","127","1220","P",null,null,null,null,null,null,false,0,"X",1270010158,"JP2 Civil-Language Access Fd","N"]
[1270010161,"127Civ0161","JP2 Civil-Justice Ct Suppt Fd","JP Pct 2","127","1220","P",null,null,null,null,null,null,false,0,"X",1270010161,"JP2 Civil-Justice Ct Suppt Fd","N"]
[1270020001,"127Crm0001","JP2 Criminal-GF","JP Pct  2","127","1210","P",null,null,null,null,null,null,false,0,"X",1270020001,"JP2 Criminal-GF","N"]
[1270020111,"127Crm0111","JP2 Criminal-Courthouse Security Fd","JP Pct  2","127","1210","P",null,null,null,null,null,null,false,0,"X",1270020111,"JP2 Criminal-Courthouse Security Fd","N"]
[1270020125,"127Crm0125","JP2 Criminal-Js Ct Technology","JP Pct  2","127","1210","P",null,null,null,null,null,null,false,0,"X",1270020125,"JP2 Criminal-Js Ct Technology","N"]
[1270020136,"127Crm0136","JP2 Criminal-Justice Ct Bldg Security","JP Pct  2","127","1210","P",null,null,null,null,null,null,false,0,"X",1270020136,"JP2 Criminal-Justice Ct Bldg Security","N"]
[1270020137,"127Crm0137","JP2 Criminal-Juvenile Case Mgr Fd","JP Pct  2","127","1210","P",null,null,null,null,null,null,false,0,"X",1270020137,"JP2 Criminal-Juvenile Case Mgr Fd","N"]
[1270020145,"127Crm0145","JP2 Criminal-RdBg Fd","JP Pct  2","127","1210","P",null,null,null,null,null,null,false,0,"X",1270020145,"JP2 Criminal-RdBg Fd","N"]
[1270020152,"127Crm0152","JP2 Criminal-Juv Case Mgr Pgm Fd","JP Pct  2","127","1210","P",null,null,null,null,null,null,false,0,"X",1270020152,"JP2 Criminal-Juv Case Mgr Pgm Fd","N"]
[1270020156,"127Crm0156","JP2 Criminal-County Jury Fd","JP Pct  2","127","1210","P",null,null,null,null,null,null,false,0,"X",1270020156,"JP2 Criminal-County Jury Fd","N"]
[1270030001,"127CivAcctg0001","JP2 Accounting Civil-GF","JP Pct  2","127","1220","P",null,null,null,null,null,null,false,0,"X",1270030001,"JP2 Accounting Civil-GF","N"]
[1270040001,"127CrmAcctg0001","JP2 Accounting Criminal-GF","JP Pct  2","127","1210","P",null,null,null,null,null,null,false,0,"X",1270040001,"JP2 Accounting Criminal-GF","N"]
[1270050153,"127JuvSvs0153","JP2 Juvenile Svs-Truancy Civil Court Fd","JP Pct  2","127","1230","P",null,null,null,null,null,null,false,0,"X",1270050153,"JP2 Juvenile Svs-Truancy Civil Court Fd","N"]
[1278000001,"127CAR0001","JP2 CAR-CivJs GF","JP Pct  2","127","1220","C",null,null,null,null,null,null,false,"CAR","X",1278000001,"JP2 CAR-CivJs GF","N"]
[1278010001,"127CAR0001","JP2 CAR-CrmJs GF","JP Pct  2","127","1210","C",null,null,null,null,null,null,false,"CAR","X",1278010001,"JP2 CAR-CrmJs GF","N"]
[1280010001,"128Civ0001","JP3 Civil-GF","JP Pct  3","128","1220","P",null,null,null,null,null,null,false,0,"X",1280010001,"JP3 Civil-GF","N"]
[1280010125,"128Civ0125","JP3 Civil-Js Ct Technology","JP Pct  3","128","1220","P",null,null,null,null,null,null,false,0,"X",1280010125,"JP3 Civil-Js Ct Technology","N"]
[1280010133,"128Civ0133","JP3 Civil-Vital Statistic Presrvtn","JP Pct  3","128","1220","P",null,null,null,null,null,null,false,0,"X",1280010133,"JP3 Civil-Vital Statistic Presrvtn","N"]
[1280010158,"128Civ0158","JP3 Civil-Language Access Fd","JP Pct 3","128","1220","P",null,null,null,null,null,null,false,0,"X",1280010158,"JP3 Civil-Language Access Fd","N"]
[1280010161,"128Civ0161","JP3 Civil-Justice Ct Suppt Fd","JP Pct 3","128","1220","P",null,null,null,null,null,null,false,0,"X",1280010161,"JP3 Civil-Justice Ct Suppt Fd","N"]
[1280020001,"128Crm0001","JP3 Criminal-GF","JP Pct  3","128","1210","P",null,null,null,null,null,null,false,0,"X",1280020001,"JP3 Criminal-GF","N"]
[1280020111,"128Crm0111","JP3 Criminal-Courthouse Security Fd","JP Pct  3","128","1210","P",null,null,null,null,null,null,false,0,"X",1280020111,"JP3 Criminal-Courthouse Security Fd","N"]
[1280020125,"128Crm0125","JP3 Criminal-Js Ct Technology","JP Pct  3","128","1210","P",null,null,null,null,null,null,false,0,"X",1280020125,"JP3 Criminal-Js Ct Technology","N"]
[1280020136,"128Crm0136","JP3 Criminal-Justice Ct Bldg Security","JP Pct  3","128","1210","P",null,null,null,null,null,null,false,0,"X",1280020136,"JP3 Criminal-Justice Ct Bldg Security","N"]
[1280020137,"128Crm0137","JP3 Criminal-Juvenile Case Mgr Fd","JP Pct  3","128","1210","P",null,null,null,null,null,null,false,0,"X",1280020137,"JP3 Criminal-Juvenile Case Mgr Fd","N"]
[1280020145,"128Crm0145","JP3 Criminal-RdBg Fd","JP Pct  3","128","1210","P",null,null,null,null,null,null,false,0,"X",1280020145,"JP3 Criminal-RdBg Fd","N"]
[1280020152,"128Crm0152","JP3 Criminal-Juv Case Mgr Pgm Fd","JP Pct  3","128","1210","P",null,null,null,null,null,null,false,0,"X",1280020152,"JP3 Criminal-Juv Case Mgr Pgm Fd","N"]
[1280020156,"128Crm0156","JP3 Criminal-County Jury Fd","JP Pct  3","128","1210","P",null,null,null,null,null,null,false,0,"X",1280020156,"JP3 Criminal-County Jury Fd","N"]
[1280022028,"128Crm2028","JP3 Criminal-Tx DPS Grant","JP Pct  3","128","1210","P",null,null,null,null,null,null,false,0,"",1280022028,"JP3 Criminal-Tx DPS Grant","N"]
[1280022069,"128Crm2069","JP3 Criminal-Tx DPS-State Fd","JP Pct  3","128","1210","P",null,null,null,null,null,null,false,0,"",1280022069,"JP3 Criminal-Tx DPS-State Fd","N"]
[1280050153,"128JuvSvs0153","JP3 Juvenile Svs-Truancy Civil Court Fd","JP Pct  3","128","1230","P",null,null,null,null,null,null,false,0,"X",1280050153,"JP3 Juvenile Svs-Truancy Civil Court Fd","N"]
[1288000001,"128CAR0001","JP3 CAR-CrmJs GF","JP Pct  3","128","1210","C",null,null,null,null,null,null,false,"CAR","X",1288000001,"JP3 CAR-CrmJs GF","N"]
[1290010001,"129Civ0001","JP4 Civil-GF","JP Pct  4","129","1220","P",null,null,null,null,null,null,false,0,"X",1290010001,"JP4 Civil-GF","Y"]
[1290010133,"129Civ0133","JP4 Civil-Vital Statistic Presrvtn","JP Pct  4","129","1220","P",null,null,null,null,null,null,false,0,"X",1290010133,"JP4 Civil-Vital Statistic Presrvtn","Y"]
[1290010158,"129Civ0158","JP4 Civil-Language Access Fd","JP Pct 4","129","1220","P",null,null,null,null,null,null,false,0,"X",1290010158,"JP4 Civil-Language Access Fd","Y"]
[1290010161,"129Civ0161","JP4 Civil-Justice Ct Suppt Fd","JP Pct 4","129","1220","P",null,null,null,null,null,null,false,0,"X",1290010161,"JP4 Civil-Justice Ct Suppt Fd","Y"]
[1290020001,"129Crm0001","JP4 Criminal-GF","JP Pct  4","129","1210","P",null,null,null,null,null,null,false,0,"X",1290020001,"JP4 Criminal-GF","Y"]
[1290020111,"129Crm0111","JP4 Criminal-Courthouse Security Fd","JP Pct  4","129","1210","P",null,null,null,null,null,null,false,0,"X",1290020111,"JP4 Criminal-Courthouse Security Fd","Y"]
[1290020125,"129Crm0125","JP4 Criminal-Js Ct Technology","JP Pct  4","129","1210","P",null,null,null,null,null,null,false,0,"X",1290020125,"JP4 Criminal-Js Ct Technology","Y"]
[1290020136,"129Crm0136","JP4 Criminal-Justice Ct Bldg Security","JP Pct  4","129","1210","P",null,null,null,null,null,null,false,0,"X",1290020136,"JP4 Criminal-Justice Ct Bldg Security","Y"]
[1290020137,"129Crm0137","JP4 Criminal-Juvenile Case Mgr Fd","JP Pct  4","129","1210","P",null,null,null,null,null,null,false,0,"X",1290020137,"JP4 Criminal-Juvenile Case Mgr Fd","Y"]
[1290020145,"129Crm0145","JP4 Criminal-RdBg Fd","JP Pct  4","129","1210","P",null,null,null,null,null,null,false,0,"X",1290020145,"JP4 Criminal-RdBg Fd","Y"]
[1290020152,"129Crm0152","JP4 Criminal-Juv Case Mgr Pgm Fd","JP Pct  4","129","1210","P",null,null,null,null,null,null,false,0,"X",1290020152,"JP4 Criminal-Juv Case Mgr Pgm Fd","Y"]
[1290020156,"129Crm0156","JP4 Criminal-County Jury Fd","JP Pct  4","129","1210","P",null,null,null,null,null,null,false,0,"X",1290020156,"JP4 Criminal-County Jury Fd","Y"]
[1290020161,"129Crm0161","JP4 Criminal-Justice Court Support Fd","JP Pct 4","129","1210","P",null,null,null,null,null,null,false,0,"X",1290020161,"JP4 Criminal-Justice Court Support Fd","Y"]
[1290030001,"129AdmCiv0001","JP4 AdmCivil-GF","JP Pct  4","129","1220","P",null,null,null,null,null,null,false,0,"X",1290010001,"JP4 Civil-GF","Y"]
[1290030001,"129AdmCiv0001","JP4 AdmCivil-GF","JP Pct  4","129","1220","P",null,null,null,null,null,null,false,0,"X",1290010001,"JP4 Civil-GF","Y"]
[1290040001,"129AdmCrm0001","JP4 AdmCriminal-GF","JP Pct  4","129","1210","P",null,null,null,null,null,null,false,0,"X",1290020001,"JP4 Criminal-GF","Y"]
[1290040001,"129AdmCrm0001","JP4 AdmCriminal-GF","JP Pct  4","129","1210","P",null,null,null,null,null,null,false,0,"X",1290020001,"JP4 Criminal-GF","Y"]
[1290050153,"129JuvSvs0153","JP4 Juvenile Svs-Truancy Civil Court Fd","JP Pct  4","129","1230","P",null,null,null,null,null,null,false,0,"X",1290050153,"JP4 Juvenile Svs-Truancy Civil Court Fd","Y"]
[1298000001,"129CARCrmJs0001","JP4 CAR-Criminal Justice-GF","JP Pct  4","129","1210","P",null,null,null,null,null,null,false,"CAR","X",1298000001,"JP4 CAR-Criminal Justice-GF","Y"]
[1300010001,"130Civ0001","JP5 Civil-GF","JP Pct  5","130","1220","P",null,null,null,null,null,null,false,0,"X",1300010001,"JP5 Civil-GF","N"]
[1300010125,"130Civ0125","JP5 Civil-Js Ct Tech Fd","JP Pct  5","130","1220","P",null,null,null,null,null,null,false,0,"X",1300010125,"JP5 Civil-Js Ct Tech Fd","N"]
[1300010133,"130Civ0133","JP5 Civil-Vital Stat Pres Fd","JP Pct  5","130","1220","P",null,null,null,null,null,null,false,0,"X",1300010133,"JP5 Civil-Vital Stat Pres Fd","N"]
[1300010158,"130Civ0158","JP5 Civil-Language Access Fd","JP Pct 5","130","1220","P",null,null,null,null,null,null,false,0,"X",1300010158,"JP5 Civil-Language Access Fd","N"]
[1300010161,"130Civ0161","JP5 Civil-Justice Ct Suppt Fd","JP Pct 5","130","1220","P",null,null,null,null,null,null,false,0,"X",1300010161,"JP5 Civil-Justice Ct Suppt Fd","N"]
[1300020001,"130Crm0001","JP5 Criminal-GF","JP Pct  5","130","1210","P",null,null,null,null,null,null,false,0,"X",1300020001,"JP5 Criminal-GF","N"]
[1300020111,"130Crm0111","JP5 Criminal-Courthouse Security Fd","JP Pct  5","130","1210","P",null,null,null,null,null,null,false,0,"X",1300020111,"JP5 Criminal-Courthouse Security Fd","N"]
[1300020125,"130Crm0125","JP5 Criminal-Js Ct Technology","JP Pct  5","130","1210","P",null,null,null,null,null,null,false,0,"X",1300020125,"JP5 Criminal-Js Ct Technology","N"]
[1300020136,"130Crm0136","JP5 Criminal-Justice Ct Bldg Security","JP Pct  5","130","1210","P",null,null,null,null,null,null,false,0,"X",1300020136,"JP5 Criminal-Justice Ct Bldg Security","N"]
[1300020137,"130Crm0137","JP5 Criminal-Juvenile Case Mgr Fd","JP Pct  5","130","1210","P",null,null,null,null,null,null,false,0,"X",1300020137,"JP5 Criminal-Juvenile Case Mgr Fd","N"]
[1300020145,"130Crm0145","JP5 Criminal-RdBg Fd","JP Pct  5","130","1210","P",null,null,null,null,null,null,false,0,"X",1300020145,"JP5 Criminal-RdBg Fd","N"]
[1300020152,"130Crm0152","JP5 Criminal-Juv Case Mgr Pgm Fd","JP Pct  5","130","1210","P",null,null,null,null,null,null,false,0,"X",1300020152,"JP5 Criminal-Juv Case Mgr Pgm Fd","N"]
[1300020156,"130Crm0156","JP5 Criminal-County Jury Fd","JP Pct  5","130","1210","P",null,null,null,null,null,null,false,0,"X",1300020156,"JP5 Criminal-County Jury Fd","N"]
[1300050153,"130JuvSvs0153","JP5 Juvenile Svs-Truancy Civil Court Fd","JP Pct  5","130","1230","P",null,null,null,null,null,null,false,0,"X",1300050153,"JP5 Juvenile Svs-Truancy Civil Court Fd","N"]
[1308000001,"130CAR0001","JP5 CAR-CivJs GF","JP Pct  5","130","1220","C",null,null,null,null,null,null,false,"CAR","X",1308000001,"JP5 CAR-CivJs GF","N"]
[1310010001,"131Civ0001","Constable1 Civil-GF","Constable Pct 1","131","1310","P",null,null,null,null,null,null,false,0,"X",1310010001,"Constable1 Civil-GF","N"]
[1310012025,"131Civ2025","Constable1 Civil-TCEQ Grant","Constable Pct 1","131","1310","P",null,null,null,null,null,null,false,0,"",1310012025,"Constable1 Civil-TCEQ Grant","N"]
[1310020001,"131Crm0001","Constable1 Criminal-GF","Constable Pct 1","131","1310","P",null,null,null,null,null,null,false,0,"X",1310020001,"Constable1 Criminal-GF","N"]
[1310020116,"131Crm0116","Constable1 Criminal-LEOSE Fd","Constable Pct 1","131","1310","P",null,null,null,null,null,null,false,0,"",1310020116,"Constable1 Criminal-LEOSE Fd","N"]
[1310022025,"131Crm2025","Constable1 Criminal-TCEQ Grant","Constable Pct 1","131","1310","P",null,null,null,null,null,null,false,0,"",1310022025,"Constable1 Criminal-TCEQ Grant","N"]
[1310040001,"131Sec0001","Constable1 Security-GF","Constable Pct 1","131","1310","P",null,null,null,null,null,null,false,0,"X",1310040001,"Constable1 Security-GF","N"]
[1310040136,"131Sec0136","Constable1 Security-JstCtBldgSecFd","Constable Pct 1","131","1310","P",null,null,null,null,null,null,false,0,"X",1310040136,"Constable1 Security-JstCtBldgSecFd","N"]
[1310042025,"131Sec2025","Constable1 Security-TCEQ Grant","Constable Pct 1","131","1310","P",null,null,null,null,null,null,false,0,"",1310042025,"Constable1 Security-TCEQ Grant","N"]
[1318000001,"131CAR0001","Constable1 CAR-LE GF","Constable Pct 1","131","1310","C",null,null,null,null,null,null,false,"CAR","X",1318000001,"Constable1 CAR-LE GF","N"]
[1320010001,"132Civ0001","Constable2 Civil-GF","Constable Pct 2","132","1310","P",null,null,null,null,null,null,false,0,"X",1320010001,"Constable2 Civil-GF","N"]
[1320012025,"132Civ2025","Constable2 Civil-TCEQ Grant","Constable Pct 2","132","1310","P",null,null,null,null,null,null,false,0,"",1320012025,"Constable2 Civil-TCEQ Grant","N"]
[1320020001,"132Crm0001","Constable2 Criminal-GF","Constable Pct 2","132","1310","P",null,null,null,null,null,null,false,0,"X",1320020001,"Constable2 Criminal-GF","N"]
[1320020103,"132Crm0103","Constable2 Criminal-Law Enf Fd","Constable Pct 2","132","1310","P",null,null,null,null,null,null,false,0,"",1320020103,"Constable2 Criminal-Law Enf Fd","N"]
[1320020116,"132Crm0116","Constable2 Criminal-LEOSE Fd","Constable Pct 2","132","1310","P",null,null,null,null,null,null,false,0,"",1320020116,"Constable2 Criminal-LEOSE Fd","N"]
[1320022025,"132Crm2025","Constable2 Criminal-TCEQ Grant","Constable Pct 2","132","1310","P",null,null,null,null,null,null,false,0,"",1320022025,"Constable2 Criminal-TCEQ Grant","N"]
[1320030001,"132Adm0001","Constable2 Adm-GF","Constable Pct 2","132","1310","P",null,null,null,null,null,null,false,0,"X",1320030001,"Constable2 Adm-GF","N"]
[1320040001,"132Sec0001","Constable2 Security-GF","Constable Pct 2","132","1310","P",null,null,null,null,null,null,false,0,"X",1320040001,"Constable2 Security-GF","N"]
[1320050001,"132IntloclAgmt0001","Constable2 Interlocal Agreement-GF","Constable Pct 2","132","1310","P",null,null,null,null,null,null,false,0,"X",1320050001,"Constable2 Interlocal Agreement-GF","N"]
[1320060001,"132Telecom0001","Constable2 Telecommunications-GF","Constable Pct 2","132","1310","P",null,null,null,null,null,null,false,0,"X",1320060001,"Constable2 Telecommunications-GF","N"]
[1328000001,"132CAR0001","Constable2 CAR-LE GF","Constable Pct 2","132","1310","C",null,null,null,null,null,null,false,"CAR","X",1328000001,"Constable2 CAR-LE GF","N"]
[1330010001,"133Civ0001","Constable3 Civil-GF","Constable Pct 3","133","1310","P",null,null,null,null,null,null,false,0,"X",1330010001,"Constable3 Civil-GF","N"]
[1330012025,"133Civ2025","Constable3 Civil-TCEQ Grant","Constable Pct 3","133","1310","P",null,null,null,null,null,null,false,0,"",1330012025,"Constable3 Civil-TCEQ Grant","N"]
[1330020001,"133Crm0001","Constable3 Criminal-GF","Constable Pct 3","133","1310","P",null,null,null,null,null,null,false,0,"X",1330020001,"Constable3 Criminal-GF","N"]
[1330020116,"133Crm0116","Constable3 Criminal-LEOSE Fd","Constable Pct 3","133","1310","P",null,null,null,null,null,null,false,0,"",1330020116,"Constable3 Criminal-LEOSE Fd","N"]
[1330022016,"133Crm2016","Constable3 Criminal-OOG Crm Jus Dv Grant","Constable Pct 3","133","1310","P",null,null,null,null,null,null,false,0,"",1330022016,"Constable3 Criminal-OOG Crm Jus Dv Grant","N"]
[1330022025,"133Crm2025","Constable3 Criminal-TCEQ Grant","Constable Pct 3","133","1310","P",null,null,null,null,null,null,false,0,"",1330022025,"Constable3 Criminal-TCEQ Grant","N"]
[1330022051,"133Crm2051","Constable3 Criminal-US DOJ Grant","Constable Pct 3","133","1310","P",null,null,null,null,null,null,false,0,"",1330022051,"Constable3 Criminal-US DOJ Grant","N"]
[1330030001,"133Adm0001","Constable 3 Adm-GF","Constable Pct 3","133","1310","P",null,null,null,null,null,null,false,0,"X",1330030001,"Constable 3 Adm-GF","N"]
[1330040001,"133PbcSft0001","Constable 3 PbcSft-GF","Constable Pct 3","133","1310","P",null,null,null,null,null,null,false,0,"X",1330040001,"Constable 3 PbcSft-GF","N"]
[1330050001,"133Sec0001","Constable 3 Security-GF","Constable Pct 3","133","1310","P",null,null,null,null,null,null,false,0,"X",1330050001,"Constable 3 Security-GF","N"]
[1330050136,"133Sec0136","Constable 3 Security-Js Ct Bldg Sec Fd","Constable Pct 3","133","1310","P",null,null,null,null,null,null,false,0,"X",1330050136,"Constable 3 Security-Js Ct Bldg Sec Fd","N"]
[1330060001,"133LE0001","Constable 3 LE-GF","Constable Pct 3","133","1310","P",null,null,null,null,null,null,false,0,"X",1330060001,"Constable 3 LE-GF","N"]
[1338000001,"133CAR0001","Constable 3 CAR-LE GF","Constable Pct 3","133","1310","C",null,null,null,null,null,null,false,"CAR","X",1338000001,"Constable 3 CAR-LE GF","N"]
[1340010001,"134Civ0001","Constable 4 Civil-GF","Constable Pct 4","134","1310","P",null,null,null,null,null,null,false,0,"X",1340010001,"Constable 4 Civil-GF","N"]
[1340020001,"134Crm0001","Constable 4 Criminal-GF","Constable Pct 4","134","1310","P",null,null,null,null,null,null,false,0,"X",1340020001,"Constable 4 Criminal-GF","N"]
[1340020116,"134Crm0116","Constable 4 Criminal-LEOSE Fd","Constable Pct 4","134","1310","P",null,null,null,null,null,null,false,0,"",1340020116,"Constable 4 Criminal-LEOSE Fd","N"]
[1340040001,"134Sec0001","Constable 4 Security-GF","Constable Pct 4","134","1310","P",null,null,null,null,null,null,false,0,"X",1340040001,"Constable 4 Security-GF","N"]
[1348000001,"134CAR0001","Constable 4 CAR-LE GF","Constable Pct 4","134","1310","C",null,null,null,null,null,null,false,"CAR","X",1348000001,"Constable 4 CAR-LE GF","N"]
[1350010001,"135Civ0001","Constable 5 Civil-GF","Constable Pct 5","135","1310","P",null,null,null,null,null,null,false,0,"X",1350010001,"Constable 5 Civil-GF","N"]
[1350010128,"135Civ0128","Constable 5 Civil-Elections Contract Fd","Constable Pct 5","135","1310","P",null,null,null,null,null,null,false,0,"X",1350010128,"Constable 5 Civil-Elections Contract Fd","N"]
[1350012025,"135Civ2025","Constable 5 Civil-TCEQ Grant","Constable Pct 5","135","1310","P",null,null,null,null,null,null,false,0,"",1350012025,"Constable 5 Civil-TCEQ Grant","N"]
[1350020001,"135Crm0001","Constable 5 Criminal-GF","Constable Pct 5","135","1310","P",null,null,null,null,null,null,false,0,"X",1350020001,"Constable 5 Criminal-GF","N"]
[1350020116,"135Crm0116","Constable 5 Criminal-LEOSE Fd","Constable Pct 5","135","1310","P",null,null,null,null,null,null,false,0,"",1350020116,"Constable 5 Criminal-LEOSE Fd","N"]
[1350020125,"135Crm0125","Constable 5 Criminal-Js Ct Tech Fd","Constable Pct 5","135","1310","P",null,null,null,null,null,null,false,0,"X",1350020125,"Constable 5 Criminal-Js Ct Tech Fd","N"]
[1350022006,"135Crm2006","Constable 5 Criminal-COA Grant","Constable Pct 5","135","1310","P",null,null,null,null,null,null,false,0,"",1350022006,"Constable 5 Criminal-COA Grant","N"]
[1350022025,"135Crm2025","Constable 5 Criminal-TCEQ Grant","Constable Pct 5","135","1310","P",null,null,null,null,null,null,false,0,"",1350022025,"Constable 5 Criminal-TCEQ Grant","N"]
[1350030001,"135AbStudAstPg0001","Constable 5 Absent Student Asst Pg-GF","Constable Pct 5","135","1310","P",null,null,null,null,null,null,false,0,"X",1350030001,"Constable 5 Absent Student Asst Pg-GF","N"]
[1350040001,"135Sec0001","Constable 5 Security-GF","Constable Pct 5","135","1310","P",null,null,null,null,null,null,false,0,"X",1350040001,"Constable 5 Security-GF","N"]
[1350050103,"135ForfProp0103","Constable 5 Forfeited Property-Law Enf F","Constable Pct 5","135","1310","P",null,null,null,null,null,null,false,0,"",1350050103,"Constable 5 Forfeited Property-Law Enf F","N"]
[1350060001,"135Exc0001","Constable 5 Executive-GF","Constable Pct 5","135","1310","P",null,null,null,null,null,null,false,0,"X",1350060001,"Constable 5 Executive-GF","N"]
[1350070001,"135Adm0001","Constable 5 Administration-GF","Constable Pct 5","135","1310","P",null,null,null,null,null,null,false,0,"X",1350070001,"Constable 5 Administration-GF","N"]
[1350080001,"135DsbPkg0001","Constable 5 Disabled Parking-GF","Constable Pct 5","135","1310","P",null,null,null,null,null,null,false,0,"X",1350080001,"Constable 5 Disabled Parking-GF","N"]
[1350090001,"135AGCiv0001","Constable 5 AG Civil-GF","Constable Pct 5","135","1310","P",null,null,null,null,null,null,false,0,"X",1350090001,"Constable 5 AG Civil-GF","N"]
[1350100001,"135AGCrm0001","Constable 5 AG Criminal-GF","Constable Pct 5","135","1310","P",null,null,null,null,null,null,false,0,"X",1350100001,"Constable 5 AG Criminal-GF","N"]
[1350110120,"135AbanVeh0120","Constable 5 Abandoned Vehicles-Ab Veh Fd","Constable Pct 5","135","1310","P",null,null,null,null,null,null,false,0,"",1350110120,"Constable 5 Abandoned Vehicles-Ab Veh Fd","N"]
[1358000001,"135CAR0001","Constable 5 CAR-LE GF","Constable Pct 5","135","1310","C",null,null,null,null,null,null,false,"CAR","X",1358000001,"Constable 5 CAR-LE GF","N"]
[1360010104,"136DRC0104","Dispute Resolution Center-DRC fd","Comm Supv Corr Dir","136","1220","P",null,null,null,null,null,null,false,0,"X",1360010104,"Dispute Resolution Center-DRC fd","N"]
[1370010001,"137ExAdmIntel0001","TCSO Exec Adm Intelligence-GF","Sheriff","137","1310","P",null,null,null,null,null,null,false,0,"X",1370130001,"TCSO Exec Adm-GF","Y"]
[1370020001,"137ExAdmIA0001","TCSO Exec Adm Internal Affairs-GF","Sheriff","137","1310","P",null,null,null,null,null,null,false,0,"X",1370130001,"TCSO Exec Adm-GF","Y"]
[1370030001,"137ExAdmRhPlng0001","TCSO Exec Adm Resrch and Plan-GF","Sheriff","137","1310","P",null,null,null,null,null,null,false,0,"X",1370130001,"TCSO Exec Adm-GF","Y"]
[1370040001,"137AdmHR0001","TCSO Adm/Supp HR-GF","Sheriff","137","1410","P",null,null,null,null,null,null,false,0,"X",1370170001,"TCSO Adm/Supp Housing-GF","Y"]
[1370050001,"137AdmFin0001","TCSO Adm/Supp Finance-GF","Sheriff","137","1410","P",null,null,null,null,null,null,false,0,"X",1370170001,"TCSO Adm/Supp Housing-GF","Y"]
[1370060001,"137AdmCtlRec0001","TCSO Adm/Supp Central Records-GF","Sheriff","137","1410","P",null,null,null,null,null,null,false,0,"X",1370170001,"TCSO Adm/Supp Housing-GF","Y"]
[1370070001,"137AdmCtlWts0001","TCSO Adm/Supp Central Warrants-GF","Sheriff","137","1410","P",null,null,null,null,null,null,false,0,"X",1370170001,"TCSO Adm/Supp Housing-GF","Y"]
[1370080001,"137AdmITS0001","TCSO Adm/Supp ITS-GF","Sheriff","137","1310","P",null,null,null,null,null,null,false,0,"X",1370120001,"TCSO Adm/Supp Pub Safety-GF","Y"]
[1370090001,"137AdmTrngAcd0001","TCSO Adm/Supp Training Academy-GF","Sheriff","137","1410","P",null,null,null,null,null,null,false,0,"X",1370170001,"TCSO Adm/Supp Housing-GF","Y"]
[1370100001,"137AdmFrgRng0001","TCSO Adm/Supp Firing Range-GF","Sheriff","137","1410","P",null,null,null,null,null,null,false,0,"X",1370170001,"TCSO Adm/Supp Housing-GF","Y"]
[1370110001,"137AdmCmtySvs0001","TCSO Adm/Supp Community Services-GF","Sheriff","137","1310","P",null,null,null,null,null,null,false,0,"X",1370120001,"TCSO Adm/Supp Pub Safety-GF","Y"]
[1370120001,"137AdmPubSfty0001","TCSO Adm/Supp Pub Safety-GF","Sheriff","137","1310","P",null,null,null,null,null,null,false,0,"X",1370120001,"TCSO Adm/Supp Pub Safety-GF","Y"]
[1370130001,"137ExAdm0001","TCSO Exec Adm-GF","Sheriff","137","1310","P",null,null,null,null,null,null,false,0,"X",1370130001,"TCSO Exec Adm-GF","Y"]
[1370140001,"137AdmCJIS0001","TCSO Adm/Supp CJIS/TDC-GF","Sheriff","137","1410","P",null,null,null,null,null,null,false,0,"X",1370170001,"TCSO Adm/Supp Housing-GF","Y"]
[1370150001,"137MSMenHlh0001","TCSO Med Svs Mental Health-GF","Sheriff","137","1410","P",null,null,null,null,null,null,false,0,"X",1370490001,"TCSO Medical Svs Contracted Med Svs-GF","Y"]
[1370160001,"137CrcComplex0001","TCSO Crc Complex Security-GF","Sheriff","137","1410","P",null,null,null,null,null,null,false,0,"X",1370440001,"TCSO Crc Support Br-GF","Y"]
[1370170001,"137AdmHsng0001","TCSO Adm/Supp Housing-GF","Sheriff","137","1410","P",null,null,null,null,null,null,false,0,"X",1370170001,"TCSO Adm/Supp Housing-GF","Y"]
[1370260001,"137CTECC0001","TCSO CTECC-GF","Sheriff","137","1310","P",null,null,null,null,null,null,false,0,"X",1370260001,"TCSO CTECC-GF","Y"]
[1370270001,"137CrcBldg10001","TCSO Crc Building 1-GF","Sheriff","137","1410","P",null,null,null,null,null,null,false,0,"X",1370440001,"TCSO Crc Support Br-GF","Y"]
[1370280001,"137CrcBldg20001","TCSO Crc Bldg 2 3 5-9 10 & CCB-GF","Sheriff","137","1410","P",null,null,null,null,null,null,false,0,"X",1370440001,"TCSO Crc Support Br-GF","Y"]
[1370290001,"137CrcBldg120001","TCSO Crc Building 12-GF","Sheriff","137","1410","P",null,null,null,null,null,null,false,0,"X",1370440001,"TCSO Crc Support Br-GF","Y"]
[1370300001,"137CrcCtlBkgFac0001","TCSO Crc Central Booking Facility-GF","Sheriff","137","1410","P",null,null,null,null,null,null,false,0,"X",1370440001,"TCSO Crc Support Br-GF","Y"]
[1370310001,"137CrcCmsry0001","TCSO Crc Commissary-GF","Sheriff","137","1410","P",null,null,null,null,null,null,false,0,"X",1370310001,"TCSO Crc Commissary-GF","Y"]
[1370310112,"137CrcCmsry0112","TCSO Crc Commissary-Comm Fd","Sheriff","137","1410","P",null,null,null,null,null,null,false,0,"",1370310112,"TCSO Crc Commissary-Comm Fd","Y"]
[1370320001,"137CthseSec0001","TCSO Courthouse Security-GF","Sheriff","137","1310","P",null,null,null,null,null,null,false,0,"X",1370320001,"TCSO Courthouse Security-GF","Y"]
[1370320111,"137CthseSec0111","TCSO Courthouse Security-Cthse Sec Fd","Sheriff","137","1310","P",null,null,null,null,null,null,false,0,"X",1370320111,"TCSO Courthouse Security-Cthse Sec Fd","Y"]
[1370330001,"137CrcEng0001","TCSO Crc Engineering-GF","Sheriff","137","1410","P",null,null,null,null,null,null,false,0,"X",1370440001,"TCSO Crc Support Br-GF","Y"]
[1370340001,"137CrcFireSfty0001","TCSO Crc Fire & Safety-GF","Sheriff","137","1410","P",null,null,null,null,null,null,false,0,"X",1370440001,"TCSO Crc Support Br-GF","Y"]
[1370350001,"137CrcHlhSvBd0001","TCSO Crc Health Svs Bldg-GF","Sheriff","137","1410","P",null,null,null,null,null,null,false,0,"X",1370440001,"TCSO Crc Support Br-GF","Y"]
[1370360001,"137CrcHospVisit0001","TCSO Crc Hospital Visit Unit-GF","Sheriff","137","1410","P",null,null,null,null,null,null,false,0,"X",1370440001,"TCSO Crc Support Br-GF","Y"]
[1370370001,"137CrcKitchen0001","TCSO Crc Kitchen-GF","Sheriff","137","1410","P",null,null,null,null,null,null,false,0,"X",1370440001,"TCSO Crc Support Br-GF","Y"]
[1370380001,"137CrcLaundry0001","TCSO Crc Laundry & Warehouse-GF","Sheriff","137","1410","P",null,null,null,null,null,null,false,0,"X",1370440001,"TCSO Crc Support Br-GF","Y"]
[1370390001,"137CrcMnt0001","TCSO Crc Maintenance-GF","Sheriff","137","1410","P",null,null,null,null,null,null,false,0,"X",1370440001,"TCSO Crc Support Br-GF","Y"]
[1370400001,"137CrcSWAP0001","TCSO Crc Marketable Skills & SWAP-GF","Sheriff","137","1410","P",null,null,null,null,null,null,false,0,"X",1370440001,"TCSO Crc Support Br-GF","Y"]
[1370410001,"137CrcClassRec0001","TCSO Crc Classification/Records-GF","Sheriff","137","1410","P",null,null,null,null,null,null,false,0,"X",1370440001,"TCSO Crc Support Br-GF","Y"]
[1370420001,"137CrcTranport0001","TCSO Crc Transportation-GF","Sheriff","137","1410","P",null,null,null,null,null,null,false,0,"X",1370440001,"TCSO Crc Support Br-GF","Y"]
[1370430001,"137CrcTCJail0001","TCSO Crc Travis County Jail-GF","Sheriff","137","1410","P",null,null,null,null,null,null,false,0,"X",1370440001,"TCSO Crc Support Br-GF","Y"]
[1370440000,"137CrcSupportBr0000","TCSO Crc Support Br-Cap Proj","Sheriff","137","1410","P",null,null,null,null,null,null,false,0,0,1370440000,"TCSO Crc Support Br-Cap Proj","Y"]
[1370440001,"137CrcSupportBr0001","TCSO Crc Support Br-GF","Sheriff","137","1410","P",null,null,null,null,null,null,false,0,"X",1370440001,"TCSO Crc Support Br-GF","Y"]
[1370444034,"137CrcSupportBr4034","TCSO Crc Support Br-CO 2001A","Sheriff","137","1410","P",null,null,null,null,null,null,false,0,"X",1370444034,"TCSO Crc Support Br-CO 2001A","Y"]
[1370444044,"137CrcSupportBr4044","TCSO Crc Support Br-CO 2005","Sheriff","137","1410","P",null,null,null,null,null,null,false,0,"X",1370444044,"TCSO Crc Support Br-CO 2005","Y"]
[1370444055,"137CrcSupportBr4055","TCSO Crc Support Br-CO 2007A","Sheriff","137","1410","P",null,null,null,null,null,null,false,0,"X",1370444055,"TCSO Crc Support Br-CO 2007A","Y"]
[1370444056,"137CrcSupportBr4056","TCSO Crc Support Br-CO 2008","Sheriff","137","1410","P",null,null,null,null,null,null,false,0,"X",1370444056,"TCSO Crc Support Br-CO 2008","Y"]
[1370444063,"137CrcSupportBr4063","TCSO Crc Support Br-CO 2010 Non Tax","Sheriff","137","1410","P",null,null,null,null,null,null,false,0,"X",1370444063,"TCSO Crc Support Br-CO 2010 Non Tax","Y"]
[1370444068,"137CrcSupportBr4068","TCSO Crc Support Br-CO 2011 Non Tax","Sheriff","137","1410","P",null,null,null,null,null,null,false,0,"X",1370444068,"TCSO Crc Support Br-CO 2011 Non Tax","Y"]
[1370460001,"137CtlBkg0001","TCSO Central Booking-GF","Sheriff","137","1410","P",null,null,null,null,null,null,false,0,"X",1370460001,"TCSO Central Booking-GF","Y"]
[1370470001,"137MSPharmDrg0001","TCSO Med Svs Drugs/Pharmaceuticals-GF","Sheriff","137","1410","P",null,null,null,null,null,null,false,0,"X",1370490001,"TCSO Medical Svs Contracted Med Svs-GF","Y"]
[1370480001,"137MSPharmacy0001","TCSO Medical Svs Pharmacy-GF","Sheriff","137","1410","P",null,null,null,null,null,null,false,0,"X",1370490001,"TCSO Medical Svs Contracted Med Svs-GF","Y"]
[1370490001,"137MSCntrctMedSv0001","TCSO Medical Svs Contracted Med Svs-GF","Sheriff","137","1410","P",null,null,null,null,null,null,false,0,"X",1370490001,"TCSO Medical Svs Contracted Med Svs-GF","Y"]
[1370500001,"137MSDentist0001","TCSO Med Svs Dentist-GF","Sheriff","137","1410","P",null,null,null,null,null,null,false,0,"X",1370490001,"TCSO Medical Svs Contracted Med Svs-GF","Y"]
[1370510001,"137MSConv0001","TCSO Medical Services (Conversion)-GF","Sheriff","137","1410","P",null,null,null,null,null,null,false,0,"X",1370490001,"TCSO Medical Svs Contracted Med Svs-GF","Y"]
[1370520001,"137LEMntlHlth0001","TCSO LE Mental Health","Sheriff","137","1310","P",null,null,null,null,null,null,false,0,"X",1370750001,"TCSO LE Support Br-GF","Y"]
[1370530001,"137FedForfProp0001","TCSO Fed Forfeited Property-GF","Sheriff","137","1310","P",null,null,null,null,null,null,false,0,"X",1370530001,"TCSO Fed Forfeited Property-GF","Y"]
[1370530103,"137FedForfProp0103","TCSO Fed Forfeited Property-LE Fd","Sheriff","137","1310","P",null,null,null,null,null,null,false,0,"",1370530103,"TCSO Fed Forfeited Property-LE Fd","Y"]
[1370540103,"137StForfProp0103","TCSO State Forfeited Property-LE Fd","Sheriff","137","1310","P",null,null,null,null,null,null,false,0,"",1370540103,"TCSO State Forfeited Property-LE Fd","Y"]
[1370560001,"137ISChaplain0001","TCSO Inmate Svs Chaplain-GF","Sheriff","137","1410","P",null,null,null,null,null,null,false,0,"X",1370580001,"TCSO Inmate Svs Programs-GF","Y"]
[1370570001,"137ISCounseling0001","TCSO Inmate Svs Counseling-GF","Sheriff","137","1410","P",null,null,null,null,null,null,false,0,"X",1370580001,"TCSO Inmate Svs Programs-GF","Y"]
[1370580001,"137ISPrograms0001","TCSO Inmate Svs Programs-GF","Sheriff","137","1410","P",null,null,null,null,null,null,false,0,"X",1370580001,"TCSO Inmate Svs Programs-GF","Y"]
[1370590001,"137ISConv0001","TCSO Inmate Srvcs (Conversion)-GF","Sheriff","137","1410","P",null,null,null,null,null,null,false,0,"X",1370580001,"TCSO Inmate Svs Programs-GF","Y"]
[1370600001,"137AutoThftTF0001","TCSO Auto Theft Task Force-GF","Sheriff","137","1310","P",null,null,null,null,null,null,false,0,"X",1370750001,"TCSO LE Support Br-GF","Y"]
[1370600103,"137AutoThftTF0103","TCSO Auto Theft Task Force-LE Fd","Sheriff","137","1310","P",null,null,null,null,null,null,false,0,"",1370600103,"TCSO Auto Theft Task Force-LE Fd","Y"]
[1370602026,"137AutoThftTF2026","TCSO Auto Theft Task Force-Tx DMV Grant","Sheriff","137","1310","P",null,null,null,null,null,null,false,0,"",1370602026,"TCSO Auto Theft Task Force-Tx DMV Grant","Y"]
[1370610001,"137LECanine0001","TCSO LE Canine-GF","Sheriff","137","1310","P",null,null,null,null,null,null,false,0,"X",1370750001,"TCSO LE Support Br-GF","Y"]
[1370620001,"137LECID0001","TCSO LE CID-GF","Sheriff","137","1310","P",null,null,null,null,null,null,false,0,"X",1370750001,"TCSO LE Support Br-GF","Y"]
[1370630001,"137LECrimeLab0001","TCSO LE Crime Lab-GF","Sheriff","137","1310","P",null,null,null,null,null,null,false,0,"X",1370750001,"TCSO LE Support Br-GF","Y"]
[1370640001,"137LEDispatch0001","TCSO LE Dispatch-GF","Sheriff","137","1310","P",null,null,null,null,null,null,false,0,"X",1370640001,"TCSO LE Dispatch-GF","Y"]
[1370650001,"137LEDiveTeam0001","TCSO LE Dive Team-GF","Sheriff","137","1310","P",null,null,null,null,null,null,false,0,"X",1370750001,"TCSO LE Support Br-GF","Y"]
[1370660001,"137LEImpVehicle0001","TCSO LE Impound Vehicle-GF","Sheriff","137","1310","P",null,null,null,null,null,null,false,0,"X",1370750001,"TCSO LE Support Br-GF","Y"]
[1370670001,"137LELakePatrol0001","TCSO LE Lake Patrol-GF","Sheriff","137","1310","P",null,null,null,null,null,null,false,0,"X",1370750001,"TCSO LE Support Br-GF","Y"]
[1370680001,"137LELivestock0001","TCSO LE Livestock-GF","Sheriff","137","1310","P",null,null,null,null,null,null,false,0,"X",1370750001,"TCSO LE Support Br-GF","Y"]
[1370690001,"137LENarcotics0001","TCSO LE Narcotics-GF","Sheriff","137","1310","P",null,null,null,null,null,null,false,0,"X",1370750001,"TCSO LE Support Br-GF","Y"]
[1370700001,"137LEPatrol0001","TCSO LE Patrol-GF","Sheriff","137","1310","P",null,null,null,null,null,null,false,0,"X",1370750001,"TCSO LE Support Br-GF","Y"]
[1370710001,"137LESRO0001","TCSO LE School Resource Officer-GF","Sheriff","137","1310","P",null,null,null,null,null,null,false,0,"X",1370750001,"TCSO LE Support Br-GF","Y"]
[1370720001,"137LESWAT0001","TCSO LE SWAT-GF","Sheriff","137","1310","P",null,null,null,null,null,null,false,0,"X",1370750001,"TCSO LE Support Br-GF","Y"]
[1370730001,"137LETraffic0001","TCSO LE Traffic-GF","Sheriff","137","1310","P",null,null,null,null,null,null,false,0,"X",1370750001,"TCSO LE Support Br-GF","Y"]
[1370740001,"137LEVicSrvcs0001","TCSO LE Victim Services-GF","Sheriff","137","1310","P",null,null,null,null,null,null,false,0,"X",1370750001,"TCSO LE Support Br-GF","Y"]
[1370750001,"137LESupportBr0001","TCSO LE Support Br-GF","Sheriff","137","1310","P",null,null,null,null,null,null,false,0,"X",1370750001,"TCSO LE Support Br-GF","Y"]
[1370750116,"137LESupportBr0116","TCSO LE Support Br-LEOSE Fd","Sheriff","137","1310","P",null,null,null,null,null,null,false,0,"",1370750116,"TCSO LE Support Br-LEOSE Fd","Y"]
[1370750120,"137LESupportBr0120","TCSO LE Support Br-Aban Veh & Livestock","Sheriff","137","1310","P",null,null,null,null,null,null,false,0,"",1370750120,"TCSO LE Support Br-Aban Veh & Livestock","Y"]
[1370750135,"137LESupportBr0135","TCSO LE Support Br-Child Abuse Fd","Sheriff","137","1310","P",null,null,null,null,null,null,false,0,"X",1370750135,"TCSO LE Support Br-Child Abuse Fd","Y"]
[1370750145,"137LESupportBr0145","TCSO LE Support Br-RdBrdg Fd","Sheriff","137","1310","P",null,null,null,null,null,null,false,0,"X",1370750145,"TCSO LE Support Br-RdBrdg Fd","Y"]
[1370750156,"137LESupportBr0156","TCSO LE Support Br-Jury Fd","Sheriff","137","1310","P",null,null,null,null,null,null,false,0,"X",1370750156,"TCSO LE Support Br-Jury Fd","Y"]
[1370752025,"137LESupportBr2025","TCSO LE Support Br-TCEQ Grant","Sheriff","137","1310","P",null,null,null,null,null,null,false,0,"",1370752025,"TCSO LE Support Br-TCEQ Grant","Y"]
[1370754063,"137LESupportBr4063","TCSO LE Support Br-CO 2010 Non Tax","Sheriff","137","1310","P",null,null,null,null,null,null,false,0,"X",1370754063,"TCSO LE Support Br-CO 2010 Non Tax","Y"]
[1370760000,"137GrntAdm0000","TCSO Grant Adm-Inactive Grant Conversion","Sheriff","137","1310","P",null,null,null,null,null,null,false,0,0,1370760000,"TCSO Grant Adm-Inactive Grant Conversion","Y"]
[1370770001,"137CrcRiskMgmt0001","TCSO Crc Risk Management GF","Sheriff","137","1410","P",null,null,null,null,null,null,false,0,"X",1370770001,"TCSO Crc Risk Management GF","Y"]
[1370780001,"137LERiskMgmt0001","TCSO LE Risk Management GF","Sheriff","137","1310","P",null,null,null,null,null,null,false,0,"X",1370780001,"TCSO LE Risk Management GF","Y"]
[1370790000,"137CrcVisit0000","TCSO Crc Visitation","Sheriff","137","1410","P",null,null,null,null,null,null,false,0,0,1370790000,"TCSO Crc Visitation","Y"]
[1370790001,"137CrcVisit0001","TCSO Crc Visitation-GF","Sheriff","137","1410","P",null,null,null,null,null,null,false,0,"X",1370440001,"TCSO Crc Support Br-GF","Y"]
[1378000001,"137CARHshBkg0001","TCSO CAR-HsgBkg GF","Sheriff","137","1410","C",null,null,null,null,null,null,false,"CAR","X",1378000001,"TCSO CAR-HsgBkg GF","Y"]
[1378010001,"137CARLE0001","TCSO CAR-LE GF","Sheriff","137","1310","C",null,null,null,null,null,null,false,"CAR","X",1378010001,"TCSO CAR-LE GF","Y"]
[1379000001,"137ReimburseRes0001","TCSO Reimbursement Resolution Funds-GF","Sheriff","137","1410","R",null,null,null,null,null,null,false,0,"X",1379000001,"TCSO Reimbursement Resolution Funds-GF","Y"]
[1380010000,"138FY17CO0000","FY 2017 CO Issuance","Medical Examiner","138","1310","P",null,null,null,null,null,null,false,0,0,1380010000,"FY 2017 CO Issuance","N"]
[1380010001,"138Adm0001","ME Adm-GF","Medical Examiner","138","1310","P",null,null,null,null,null,null,false,0,"X",1380010001,"ME Adm-GF","N"]
[1380020001,"138Pathology0001","ME Pathology-GF","Medical Examiner","138","1310","P",null,null,null,null,null,null,false,0,"X",1380020001,"ME Pathology-GF","N"]
[1380030001,"138Laboratory0001","ME Laboratory-GF","Medical Examiner","138","1310","P",null,null,null,null,null,null,false,0,"X",1380030001,"ME Laboratory-GF","N"]
[1380040001,"138Histology0001","ME Histology-GF","Medical Examiner","138","1310","P",null,null,null,null,null,null,false,0,"X",1380040001,"ME Histology-GF","N"]
[1380050001,"138Investigative0001","ME Investigative-GF","Medical Examiner","138","1310","P",null,null,null,null,null,null,false,0,"X",1380050001,"ME Investigative-GF","N"]
[1380060001,"138Autopsy0001","ME Autopsy-GF","Medical Examiner","138","1310","P",null,null,null,null,null,null,false,0,"X",1380060001,"ME Autopsy-GF","N"]
[1380074034,"138ForensicLab4034","ME Forensic Laboratory-CO 2001A","Medical Examiner","138","1310","P",null,null,null,null,null,null,false,0,"X",1380074034,"ME Forensic Laboratory-CO 2001A","N"]
[1380084005,"138Morgue4005","ME Morgue-PI Bds 1990","Medical Examiner","138","1310","P",null,null,null,null,null,null,false,0,"X",1380084005,"ME Morgue-PI Bds 1990","N"]
[1388000001,"138CARLE0001","ME CAR-LE GF","Medical Examiner","138","1310","C",null,null,null,null,null,null,false,"CAR","X",1388000001,"ME CAR-LE GF","N"]
[1389000001,"138ReimbRes0001","ME Reimbursement Resolution Funds-GF","Medical Examiner","138","1310","R",null,null,null,null,null,null,false,0,"X",1389000001,"ME Reimbursement Resolution Funds-GF","N"]
[1390010001,"139Supervision0001","CSCD Supervision GF","Comm Supv Corr Dir","139","1420","P",null,null,null,null,null,null,false,0,"X",1390010001,"CSCD Supervision GF","N"]
[1390010117,"139Supervision0117","CSCD Supervision-CSCD Eqp Acq Fd","Comm Supv Corr Dir","139","1420","P",null,null,null,null,null,null,false,0,"X",1390010117,"CSCD Supervision-CSCD Eqp Acq Fd","N"]
[1390010143,"139Supervision0143","CSCD Supervision-CSCD Local Fd","Comm Supv Corr Dir","139","1420","P",null,null,null,null,null,null,false,0,"",1390010143,"CSCD Supervision-CSCD Local Fd","N"]
[1390010157,"CSCD-Spec Co Fd","CSCD-Spec Court Fund","BOHANAC","139","1420","P",null,null,null,null,null,null,false,0,"X",1390010157,"CSCD-Spec Court Fund","N"]
[1390012016,"139Supervision2016","CSCD Supervision-OOG Crm Jus Dv Grant","Comm Supv Corr Dir","139","1420","P",null,null,null,null,null,null,false,0,"",1390012016,"CSCD Supervision-OOG Crm Jus Dv Grant","N"]
[1390012045,"139Supervision2045","CSCD Supervision-TDCJ-CJAD Grant","Comm Supv Corr Dir","139","1420","P",null,null,null,null,null,null,false,0,"",1390012045,"CSCD Supervision-TDCJ-CJAD Grant","N"]
[1390012051,"139Supervision2051","CSCD Supervision-US DOJ Grant","Comm Supv Corr Dir","139","1420","P",null,null,null,null,null,null,false,0,"",1390012051,"CSCD Supervision-US DOJ Grant","N"]
[1390012055,"139Supervision2055","CSCD Supervision-US Dept HHS","Comm Supv Corr Dir","139","1420","P",null,null,null,null,null,null,false,0,"",1390012055,"CSCD Supervision-US Dept HHS","N"]
[1390012058,"139Supervision2058","CSCD Supervision-OOG CJD-St Fd Grant","Comm Supv Corr Dir","139","1420","P",null,null,null,null,null,null,false,0,"",1390012058,"CSCD Supervision-OOG CJD-St Fd Grant","N"]
[1398000001,"139CARSvsn0001","CSCD CAR-Svsn GF","Comm Supv Corr Dir","139","1420","C",null,null,null,null,null,null,false,"CAR","X",1398000001,"CSCD CAR-Svsn GF","N"]
[1400010001,"140Admin0001","TCCES CES-Administration-GF","CES Dir","140","1420","P",null,null,null,null,null,null,false,0,"X",1400010001,"TCCES CES-Administration-GF","N"]
[1400020001,"140Educ0001","TCCES Education-GF","CES Dir","140","1420","P",null,null,null,null,null,null,false,0,"X",1400020001,"TCCES Education-GF","N"]
[1400020148,"140Educ0148","TCCES Education-TCCES Fd","CES Dir","140","1420","P",null,null,null,null,null,null,false,0,"X",1400020148,"TCCES Education-TCCES Fd","N"]
[1400022051,"140Educ2051","TCCES Education-US DOJ Grant","CES Dir","140","1420","P",null,null,null,null,null,null,false,0,"",1400022051,"TCCES Education-US DOJ Grant","N"]
[1400030001,"140ServCtr0001","TCCES Service Center-GF","CES Dir","140","1420","P",null,null,null,null,null,null,false,0,"X",1400030001,"TCCES Service Center-GF","N"]
[1400040001,"140PhoneCtrDwnT0001","TCCES Phone Center-Down Town-GF","CES Dir","140","1420","P",null,null,null,null,null,null,false,0,"X",1400040001,"TCCES Phone Center-Down Town-GF","N"]
[1400050001,"140CES0001","TCCES CES Alcohol & Other Drug-GF","CES Dir","140","1420","P",null,null,null,null,null,null,false,0,"X",1400050001,"TCCES CES Alcohol & Other Drug-GF","N"]
[1400060001,"140AlcDrgCnslg0001","TCCES Alcohol & Other Drug Counseling-GF","CES Dir","140","1420","P",null,null,null,null,null,null,false,0,"X",1400060001,"TCCES Alcohol & Other Drug Counseling-GF","N"]
[1400070001,"140FamVioCnslg0001","TCCES Family Violence Counseling-GF","CES Dir","140","1420","P",null,null,null,null,null,null,false,0,"X",1400070001,"TCCES Family Violence Counseling-GF","N"]
[1400080001,"140CommToChg0001","TCCES Commitment to Change-GF","CES Dir","140","1420","P",null,null,null,null,null,null,false,0,"X",1400080001,"TCCES Commitment to Change-GF","N"]
[1400090001,"140PhoenixCourt0001","TCCES Phoenix Court-GF","CES Dir","140","1420","P",null,null,null,null,null,null,false,0,"X",1400090001,"TCCES Phoenix Court-GF","N"]
[1400100001,"140JuvEduc0001","TCCES Juvenile Education Classes-GF","CES Dir","140","1420","P",null,null,null,null,null,null,false,0,"X",1400100001,"TCCES Juvenile Education Classes-GF","N"]
[1400110001,"140CrimVic0001","TCCES Crime Victims Program-GF","CES Dir","140","1420","P",null,null,null,null,null,null,false,0,"X",1400110001,"TCCES Crime Victims Program-GF","N"]
[1408000001,"140CAREducation0001","TCCES CAR-Education-GF","CES Dir","140","1420","P",null,null,null,null,null,null,false,"CAR","X",1408000001,"TCCES CAR-Education-GF","N"]
[1410010001,"141Admin0001","CLS-Admin-GF","County Exec CLS","141","1210","P",null,null,null,null,null,null,false,0,"X",1410010001,"CLS-Admin-GF",""]
[1410020001,"141OFCPRTREP0001","CLS-Ofc of Parent Rep-GF","County Exec CLS","141","1210","P",null,null,null,null,null,null,false,0,"X",1410020001,"CLS-Ofc of Parent Rep-GF",""]
[1410030001,"141OFCCHREP0001","CLS-Office of Child Rep -GF","County Exec CLS","141","1210","P",null,null,null,null,null,null,false,0,"X",1410030001,"CLS-Office of Child Rep -GF",""]
[1410040001,"141CLSCIVLIB0001","CLS-Civil Library-GF","County Exec CLS","141","1220","P",null,null,null,null,null,null,false,0,"X",1410040001,"CLS-Civil Library-GF",""]
[1410040100,"141CLSCIVILIB0100","CLS-Civil Library-Law Library Fund","County Exec CLS","141","1220","P",null,null,null,null,null,null,false,0,"X",1410040100,"CLS-Civil Library-Law Library Fund",""]
[1410050001,"141CLSCRIMLIB0001","CLS-Criminal Library-GF","County Exec CLS","141","1210","P",null,null,null,null,null,null,false,0,"X",1410050001,"CLS-Criminal Library-GF",""]
[1410050100,"141CLSCRIMLIB0100","CLS-Criminal Library-Law Library Fund","County Exec CLS","141","1210","P",null,null,null,null,null,null,false,0,"X",1410050100,"CLS-Criminal Library-Law Library Fund",""]
[1420010001,"142Supvn0001","Pretrial Supervision-GF","Comm Supv Corr Dir","142","1420","P",null,null,null,null,null,null,false,0,"X",1420010001,"Pretrial Supervision-GF","Y"]
[1420020001,"142FamViol0001","Pretrial Family Violence Pg-GF","Comm Supv Corr Dir","142","1420","P",null,null,null,null,null,null,false,0,"X",1420010001,"Pretrial Supervision-GF","Y"]
[1420030001,"142IntSupvn0001","Pretrial Intensive Supervision Pg-GF","Comm Supv Corr Dir","142","1420","P",null,null,null,null,null,null,false,0,"X",1420010001,"Pretrial Supervision-GF","Y"]
[1420040001,"142MentalHlth0001","Pretrial Mental Health Pg-GF","Comm Supv Corr Dir","142","1420","P",null,null,null,null,null,null,false,0,"X",1420010001,"Pretrial Supervision-GF","Y"]
[1420050001,"142ElecMonitor0001","Pretrial Electronic Monitoring Pg-GF","Comm Supv Corr Dir","142","1420","P",null,null,null,null,null,null,false,0,"X",1420010001,"Pretrial Supervision-GF","Y"]
[1420060001,"142Intervention0001","Pretrial Intervention Pg-GF","Comm Supv Corr Dir","142","1420","P",null,null,null,null,null,null,false,0,"X",1420010001,"Pretrial Supervision-GF","Y"]
[1420070001,"142AlcMonitor0001","Alcohol Monitoring Unit Pg-GF","Comm Supv Corr Dir","142","1420","P",null,null,null,null,null,null,false,0,"X",1420010001,"Pretrial Supervision-GF","Y"]
[1420080001,"142SuppA0001","Pretrial Support Staff Shift A-GF","Comm Supv Corr Dir","142","1420","P",null,null,null,null,null,null,false,0,"X",1420010001,"Pretrial Supervision-GF","Y"]
[1420090001,"142SuppB0001","Pretrial Support Staff Shift B-GF","Comm Supv Corr Dir","142","1420","P",null,null,null,null,null,null,false,0,"X",1420010001,"Pretrial Supervision-GF","Y"]
[1420100001,"142Training0001","Pretrial Training Coordinator-GF","Comm Supv Corr Dir","142","1410","P",null,null,null,null,null,null,false,0,"X",1420160001,"Pretrial Investigation Unit-GF","Y"]
[1420110001,"142DirDiv0001","Pretrial Division Director Office-GF","Comm Supv Corr Dir","142","1420","P",null,null,null,null,null,null,false,0,"X",1420010001,"Pretrial Supervision-GF","Y"]
[1420120001,"142ExcOfc0001","Pretrial Executive Office-GF","Comm Supv Corr Dir","142","1420","P",null,null,null,null,null,null,false,0,"X",1420010001,"Pretrial Supervision-GF","Y"]
[1420130001,"142CntlBkgA0001","Pretrial Central Booking Shift A-GF","Comm Supv Corr Dir","142","1410","P",null,null,null,null,null,null,false,0,"X",1420160001,"Pretrial Investigation Unit-GF","Y"]
[1420140001,"142CntlBkgB0001","Pretrial Central Booking Shift B-GF","Comm Supv Corr Dir","142","1410","P",null,null,null,null,null,null,false,0,"X",1420160001,"Pretrial Investigation Unit-GF","Y"]
[1420150001,"142DrgCt0001","Pretrial Drug Court Pg-GF","Comm Supv Corr Dir","142","1420","P",null,null,null,null,null,null,false,0,"X",1420150001,"Pretrial Drug Court Pg-GF","Y"]
[1420150131,"142DrgCt0131","Pretrial Drug Court-Drg Ct Pg Fd","Comm Supv Corr Dir","142","1420","P",null,null,null,null,null,null,false,0,"X",1420150131,"Pretrial Drug Court-Drg Ct Pg Fd","Y"]
[1420152058,"142DrgCt2058","Pretrial Drug Court-OOG CJD-St Fd Grant","Comm Supv Corr Dir","142","1420","P",null,null,null,null,null,null,false,0,"",1420152058,"Pretrial Drug Court-OOG CJD-St Fd Grant","Y"]
[1420160001,"142Investigation0001","Pretrial Investigation Unit-GF","Comm Supv Corr Dir","142","1410","P",null,null,null,null,null,null,false,0,"X",1420160001,"Pretrial Investigation Unit-GF","Y"]
[1430100001,"143Exc0001","JPD Executive-GF","Jv Public Defender","143","1230","P",null,null,null,null,null,null,false,0,"X",1430100001,"JPD Executive-GF","N"]
[1430200001,"143Atty0001","JPD Attorney Staff-GF","Jv Public Defender","143","1230","P",null,null,null,null,null,null,false,0,"X",1430200001,"JPD Attorney Staff-GF","N"]
[1430300001,"143Investigatn0001","JPD Investigation Staff-GF","Jv Public Defender","143","1230","P",null,null,null,null,null,null,false,0,"X",1430300001,"JPD Investigation Staff-GF","N"]
[1430400001,"143Adm0001","JPD Administrative Staff-GF","Jv Public Defender","143","1230","P",null,null,null,null,null,null,false,0,"X",1430400001,"JPD Administrative Staff-GF","N"]
[1440010001,"144PD0001","PD-Chief Public Defender-GF","Chief Info Ofr","144","1210","P",null,null,null,null,null,null,false,0,"X",1440010001,"PD-Chief Public Defender-GF",""]
[1440010001,"144PDO0001","PDO-Chief Public Defender-GF","Chief Pub. Defender","144","1210","P",null,null,null,null,null,null,false,0,"X",1440010001,"PD-Chief Public Defender-GF",""]
[1440020001,"144Felony0001","PDO - Felony Division-GF","Chief Pub. Defender","144","1210","P",null,null,null,null,null,null,false,0,"X",1440020001,"PDO - Felony Division-GF",""]
[1440030001,"144Misd0001","PDO - Misdemeanor Division-GF","Chief Pub. Defender","144","1210","P",null,null,null,null,null,null,false,0,"X",1440030001,"PDO - Misdemeanor Division-GF",""]
[1440040001,"144Train0001","PDO - Training Division-GF","Chief Pub. Defender","144","1210","P",null,null,null,null,null,null,false,0,"X",1440040001,"PDO - Training Division-GF",""]
[1440050001,"144EXC0001","PDO - JHD Executive-GF","County Exec PDO","144","1230","P",null,null,null,null,null,null,false,0,"X",1440050001,"PDO - JHD Executive-GF",""]
[1440060001,"144ATTY0001","PDO - JHD Attorney Staff-GF","County Exec PDO","144","1230","P",null,null,null,null,null,null,false,0,"X",1440060001,"PDO - JHD Attorney Staff-GF",""]
[1440070001,"144ADM0001","PDO - JHD Administrative Staff-GF","County Exec PDO","144","1230","P",null,null,null,null,null,null,false,0,"X",1440070001,"PDO - JHD Administrative Staff-GF",""]
[1440080001,"144MTLHLHPD0001","PDO - Mental Health Pub Def-GF","County Exec PDO","144","1210","P",null,null,null,null,null,null,false,0,"X",1440080001,"PDO - Mental Health Pub Def-GF",""]
[1450010001,"145GAAdm0001","JvP GA-Admin-GF","Chief Juv Pbn Ofr","145","1230","P",null,null,null,null,null,null,false,0,"X",1450010001,"JvP GA-Admin-GF","N"]
[1450020001,"145GAFinSrvc0001","JvP GA-Financial Srvcs-GF","Chief Juv Pbn Ofr","145","1230","P",null,null,null,null,null,null,false,0,"X",1450020001,"JvP GA-Financial Srvcs-GF","N"]
[1450030001,"145GASuppSrvc0001","JvP GA-Support Srvcs-GF","Chief Juv Pbn Ofr","145","1230","P",null,null,null,null,null,null,false,0,"X",1450030001,"JvP GA-Support Srvcs-GF","N"]
[1450040001,"145GAGenCnsl0001","JvP GA-General Counsel-GF","Chief Juv Pbn Ofr","145","1230","P",null,null,null,null,null,null,false,0,"X",1450040001,"JvP GA-General Counsel-GF","N"]
[1450050001,"145HRAdm0001","JvP HR&SD Admin-GF","Chief Juv Pbn Ofr","145","1230","P",null,null,null,null,null,null,false,0,"X",1450050001,"JvP HR&SD Admin-GF","N"]
[1450060001,"145HR0001","JvP HR&SD HR-GF","Chief Juv Pbn Ofr","145","1230","P",null,null,null,null,null,null,false,0,"X",1450060001,"JvP HR&SD HR-GF","N"]
[1450070001,"145StfDev0001","JvP HR&SD Staff Dev-GF","Chief Juv Pbn Ofr","145","1230","P",null,null,null,null,null,null,false,0,"X",1450070001,"JvP HR&SD Staff Dev-GF","N"]
[1450080001,"145ITAdm0001","JvP IT/P and R Admin-GF","Chief Juv Pbn Ofr","145","1230","P",null,null,null,null,null,null,false,0,"X",1450080001,"JvP IT/P and R Admin-GF","N"]
[1450090001,"145ITRsh0001","JvP IT/P and R Research-GF","Chief Juv Pbn Ofr","145","1230","P",null,null,null,null,null,null,false,0,"X",1450090001,"JvP IT/P and R Research-GF","N"]
[1450100001,"145ITSysSppt0001","JvP IT/P and R Systems Support-GF","Chief Juv Pbn Ofr","145","1230","P",null,null,null,null,null,null,false,0,"X",1450100001,"JvP IT/P and R Systems Support-GF","N"]
[1450110001,"145FOAdm0001","JvP Fac Ops Admin-GF","Chief Juv Pbn Ofr","145","1230","P",null,null,null,null,null,null,false,0,"X",1450110001,"JvP Fac Ops Admin-GF","N"]
[1450120001,"145FOBdMnt0001","JvP Fac Ops Building Maint-GF","Chief Juv Pbn Ofr","145","1230","P",null,null,null,null,null,null,false,0,"X",1450120001,"JvP Fac Ops Building Maint-GF","N"]
[1450130001,"145FOHseKp0001","JvP Fac Ops HouseKeeping-GF","Chief Juv Pbn Ofr","145","1230","P",null,null,null,null,null,null,false,0,"X",1450130001,"JvP Fac Ops HouseKeeping-GF","N"]
[1450140001,"145FdSrvc0001","JvP Food Srvcs-GF","Chief Juv Pbn Ofr","145","1230","P",null,null,null,null,null,null,false,0,"X",1450140001,"JvP Food Srvcs-GF","N"]
[1450150001,"145HSMed0001","JvP Hlth Srvcs Medical-GF","Chief Juv Pbn Ofr","145","1230","P",null,null,null,null,null,null,false,0,"X",1450150001,"JvP Hlth Srvcs Medical-GF","N"]
[1450160001,"145HSAsmts0001","JvP Hlth Srvcs Assessments-GF","Chief Juv Pbn Ofr","145","1230","P",null,null,null,null,null,null,false,0,"X",1450160001,"JvP Hlth Srvcs Assessments-GF","N"]
[1450170001,"145LglSvcJud0001","JvP Legal Srvcs Judicial-GF","Chief Juv Pbn Ofr","145","1230","P",null,null,null,null,null,null,false,0,"X",1450170001,"JvP Legal Srvcs Judicial-GF","N"]
[1450170126,"145LglSvcJud0126","JvP Legal Srvcs Judicial-Truancy Ct Fd","Chief Juv Pbn Ofr","145","1230","P",null,null,null,null,null,null,false,0,"X",1450170126,"JvP Legal Srvcs Judicial-Truancy Ct Fd","N"]
[1450180001,"145LglSvcLgl0001","JvP Legal Srvcs Legal-GF","Chief Juv Pbn Ofr","145","1230","P",null,null,null,null,null,null,false,0,"X",1450180001,"JvP Legal Srvcs Legal-GF","N"]
[1450180126,"145LglSvcLgl0126","JvP Legal Srvcs Legal-Truancy Ct Fd","Chief Juv Pbn Ofr","145","1230","P",null,null,null,null,null,null,false,0,"X",1450180126,"JvP Legal Srvcs Legal-Truancy Ct Fd","N"]
[1450190001,"145CrtSvcAdm0001","JvP Crt Srvcs Admin-GF","Chief Juv Pbn Ofr","145","1230","P",null,null,null,null,null,null,false,0,"X",1450190001,"JvP Crt Srvcs Admin-GF","N"]
[1450200001,"145CrtSvcCtUnit0001","JvP Crt Srvcs Court Unit-GF","Chief Juv Pbn Ofr","145","1230","P",null,null,null,null,null,null,false,0,"X",1450200001,"JvP Crt Srvcs Court Unit-GF","N"]
[1450210001,"145CrtSvcDefPro0001","JvP Crt Srvcs Def Prosecution Unit-GF","Chief Juv Pbn Ofr","145","1230","P",null,null,null,null,null,null,false,0,"X",1450210001,"JvP Crt Srvcs Def Prosecution Unit-GF","N"]
[1450220001,"145CrtSvcIntake0001","JvP Crt Srvcs Intake-GF","Chief Juv Pbn Ofr","145","1230","P",null,null,null,null,null,null,false,0,"X",1450220001,"JvP Crt Srvcs Intake-GF","N"]
[1450230001,"145CrtSvcVicSvc0001","JvP Crt Srvcs Victim Srvcs-GF","Chief Juv Pbn Ofr","145","1230","P",null,null,null,null,null,null,false,0,"X",1450230001,"JvP Crt Srvcs Victim Srvcs-GF","N"]
[1450240001,"145PSAdm0001","JvP Prob Srvcs Admin-GF","Chief Juv Pbn Ofr","145","1230","P",null,null,null,null,null,null,false,0,"X",1450240001,"JvP Prob Srvcs Admin-GF","N"]
[1450250001,"145PSFldUnit0001","JvP Prob Srvcs Field Unit-GF","Chief Juv Pbn Ofr","145","1230","P",null,null,null,null,null,null,false,0,"X",1450250001,"JvP Prob Srvcs Field Unit-GF","N"]
[1450260001,"145PSISP0001","JvP Prob Srvcs ISP-GF","Chief Juv Pbn Ofr","145","1230","P",null,null,null,null,null,null,false,0,"X",1450260001,"JvP Prob Srvcs ISP-GF","N"]
[1450270001,"145PSRsrcs0001","JvP Prob Srvcs Resources-GF","Chief Juv Pbn Ofr","145","1230","P",null,null,null,null,null,null,false,0,"X",1450270001,"JvP Prob Srvcs Resources-GF","N"]
[1450280001,"145PSSNDP0001","JvP Prob Srvcs-Special Needs Div Prgms-G","Chief Juv Pbn Ofr","145","1230","P",null,null,null,null,null,null,false,0,"X",1450280001,"JvP Prob Srvcs-Special Needs Div Prgms-G","N"]
[1450290001,"145PSCOU0001","JvP Prob Srvcs Cross Over Unit-GF","Chief Juv Pbn Ofr","145","1230","P",null,null,null,null,null,null,false,0,"X",1450290001,"JvP Prob Srvcs Cross Over Unit-GF","N"]
[1450300001,"145SSAdm0001","JvP Spec Srvcs Admin-GF","Chief Juv Pbn Ofr","145","1230","P",null,null,null,null,null,null,false,0,"X",1450300001,"JvP Spec Srvcs Admin-GF","N"]
[1450310001,"145SSCRCG-CC0001","JvP Spec Srvcs CRCG & Care Coord-GF","Chief Juv Pbn Ofr","145","1230","P",null,null,null,null,null,null,false,0,"X",1450310001,"JvP Spec Srvcs CRCG & Care Coord-GF","N"]
[1450320001,"145SSDrgCt0001","JvP Spec Srvcs Drug Court-GF","Chief Juv Pbn Ofr","145","1230","P",null,null,null,null,null,null,false,0,"X",1450320001,"JvP Spec Srvcs Drug Court-GF","N"]
[1450330001,"145SSEnrchCtr0001","JvP Spec Srvcs Enrichment Center-GF","Chief Juv Pbn Ofr","145","1230","P",null,null,null,null,null,null,false,0,"X",1450330001,"JvP Spec Srvcs Enrichment Center-GF","N"]
[1450340001,"145SSMntlHlthCt0001","JvP Spec Srvcs Mental Health Court-GF","Chief Juv Pbn Ofr","145","1230","P",null,null,null,null,null,null,false,0,"X",1450340001,"JvP Spec Srvcs Mental Health Court-GF","N"]
[1450350001,"145SSTrncyCt0001","JvP Spec Srvcs Truancy Court-GF","Chief Juv Pbn Ofr","145","1230","P",null,null,null,null,null,null,false,0,"X",1450350001,"JvP Spec Srvcs Truancy Court-GF","N"]
[1450360001,"145SSJJAEP0001","JvP Spec Srvcs JJAEP-GF","Chief Juv Pbn Ofr","145","1230","P",null,null,null,null,null,null,false,0,"X",1450360001,"JvP Spec Srvcs JJAEP-GF","N"]
[1450360107,"145SSJJAEP0107","JvP Spec Srvcs JJAEP Fd","Chief Juv Pbn Ofr","145","1230","P",null,null,null,null,null,null,false,0,"X",1450360107,"JvP Spec Srvcs JJAEP Fd","N"]
[1450360148,"145SSJJAEP0148","JvP Spec Srvcs JJAEP-TCCES Fd","Chief Juv Pbn Ofr","145","1230","P",null,null,null,null,null,null,false,0,"X",1450360148,"JvP Spec Srvcs JJAEP-TCCES Fd","N"]
[1450370001,"145DetSvc0001","JvP Detention Srvcs-GF","Chief Juv Pbn Ofr","145","1230","P",null,null,null,null,null,null,false,0,"X",1450370001,"JvP Detention Srvcs-GF","N"]
[1450380001,"145RSAdm0001","JvP Res Srvcs Admin-GF","Chief Juv Pbn Ofr","145","1230","P",null,null,null,null,null,null,false,0,"X",1450380001,"JvP Res Srvcs Admin-GF","N"]
[1450390001,"145RSPgmSupp0001","JvP Res Srvcs Program Support-GF","Chief Juv Pbn Ofr","145","1230","P",null,null,null,null,null,null,false,0,"X",1450390001,"JvP Res Srvcs Program Support-GF","N"]
[1450400001,"145RSDirCare0001","JvP Res Srvcs Direct Care-GF","Chief Juv Pbn Ofr","145","1230","P",null,null,null,null,null,null,false,0,"X",1450400001,"JvP Res Srvcs Direct Care-GF","N"]
[1450410001,"145TrtmtAdm0001","JvP Trmt and Couns Admin-GF","Chief Juv Pbn Ofr","145","1230","P",null,null,null,null,null,null,false,0,"X",1450410001,"JvP Trmt and Couns Admin-GF","N"]
[1450420001,"145TrtmtCouns0001","JvP Trmt and Couns Crisis Counseling-GF","Chief Juv Pbn Ofr","145","1230","P",null,null,null,null,null,null,false,0,"X",1450420001,"JvP Trmt and Couns Crisis Counseling-GF","N"]
[1450430001,"145TrtmtTrtmt0001","JvP Trmt and Couns Treatment-GF","Chief Juv Pbn Ofr","145","1230","P",null,null,null,null,null,null,false,0,"X",1450430001,"JvP Trmt and Couns Treatment-GF","N"]
[1450440001,"145DROAdm0001","JvP Dom Rel Off Admin-GF","Chief Juv Pbn Ofr","145","1230","P",null,null,null,null,null,null,false,0,"X",1450440001,"JvP Dom Rel Off Admin-GF","N"]
[1450440148,"145DROAdm0148","JvP Dom Rel Off Admin-TCCES Fd","Chief Juv Pbn Ofr","145","1230","P",null,null,null,null,null,null,false,0,"X",1450440148,"JvP Dom Rel Off Admin-TCCES Fd","N"]
[1450450001,"145DROCustSrv0001","JvP Dom Rel Off Customer Srvc Opers-GF","Chief Juv Pbn Ofr","145","1230","P",null,null,null,null,null,null,false,0,"X",1450450001,"JvP Dom Rel Off Customer Srvc Opers-GF","N"]
[1450460001,"145DROFamCt0001","JvP Dom Rel Off Family Court Srvcs-GF","Chief Juv Pbn Ofr","145","1230","P",null,null,null,null,null,null,false,0,"X",1450460001,"JvP Dom Rel Off Family Court Srvcs-GF","N"]
[1450470001,"145DROLglSvc0001","JvP Dom Rel Off Legal Srvcs-GF","Chief Juv Pbn Ofr","145","1230","P",null,null,null,null,null,null,false,0,"X",1450470001,"JvP Dom Rel Off Legal Srvcs-GF","N"]
[1450480001,"145PSSexOff0001","JvP Prob Srvcs Sex Offender Unit-GF","Chief Juv Pbn Ofr","145","1230","P",null,null,null,null,null,null,false,0,"X",1450480001,"JvP Prob Srvcs Sex Offender Unit-GF","N"]
[1450560001,"145NonDiv0001","JvP NonDivisional-GF","Chief Juv Pbn Ofr","145","1230","P",null,null,null,null,null,null,false,0,"X",1450560001,"JvP NonDivisional-GF","N"]
[1450560106,"145NonDiv0106","JvP NonDivisional-Juv Fee Fd","Chief Juv Pbn Ofr","145","1230","P",null,null,null,null,null,null,false,0,"X",1450560106,"JvP NonDivisional-Juv Fee Fd","N"]
[1450560114,"145NonDiv0114","JvP NonDivisional-Juv Def Pros Fd","Chief Juv Pbn Ofr","145","1230","P",null,null,null,null,null,null,false,0,"X",1450560114,"JvP NonDivisional-Juv Def Pros Fd","N"]
[1450560119,"145NonDiv0119","JvP NonDivisional-Juv Del Prvntn Fd","Chief Juv Pbn Ofr","145","1230","P",null,null,null,null,null,null,false,0,"X",1450560119,"JvP NonDivisional-Juv Del Prvntn Fd","N"]
[1450560144,"145NonDiv0144","JvP NonDivisional-Unclaimed Juv Rest","Chief Juv Pbn Ofr","145","1230","P",null,null,null,null,null,null,false,0,"X",1450560144,"JvP NonDivisional-Unclaimed Juv Rest","N"]
[1450560146,"145NonDiv0146","JvP NonDivisional-Gardner House","Chief Juv Pbn Ofr","145","1230","P",null,null,null,null,null,null,false,0,"X",1450560146,"JvP NonDivisional-Gardner House","N"]
[1450562001,"145NonDiv2001","JvP NonDivisional- ATCI Grant","Chief Juv Pbn Ofr","145","1230","P",null,null,null,null,null,null,false,0,"",1450562001,"JvP NonDivisional- ATCI Grant","N"]
[1450562016,"145NonDiv2016","JvP NonDivisional- OOG Grant","Chief Juv Pbn Ofr","145","1230","P",null,null,null,null,null,null,false,0,"",1450562016,"JvP NonDivisional- OOG Grant","N"]
[1450562019,"145NonDiv2019","JvP NonDivisional-OAG Grant","Chief Juv Pbn Ofr","145","1230","P",null,null,null,null,null,null,false,0,"",1450562019,"JvP NonDivisional-OAG Grant","N"]
[1450562022,"145NonDiv2022","JvP NonDivisional-StVRCforTX Grant","Chief Juv Pbn Ofr","145","1230","P",null,null,null,null,null,null,false,0,"",1450562022,"JvP NonDivisional-StVRCforTX Grant","N"]
[1450562036,"145NonDiv2036","JvP NonDivisional- TJJDHHS Grant","Chief Juv Pbn Ofr","145","1230","P",null,null,null,null,null,null,false,0,"",1450562036,"JvP NonDivisional- TJJDHHS Grant","N"]
[1450562051,"145NonDiv2051","JvP NonDivisional- DOJ Grant","Chief Juv Pbn Ofr","145","1230","P",null,null,null,null,null,null,false,0,"",1450562051,"JvP NonDivisional- DOJ Grant","N"]
[1450562055,"145NonDiv2055","JvP NonDivisional- USHHS Grant","Chief Juv Pbn Ofr","145","1230","P",null,null,null,null,null,null,false,0,"",1450562055,"JvP NonDivisional- USHHS Grant","N"]
[1450562058,"145NonDiv2058","JvP NonDivisional- OOG CJD-St Fd","Chief Juv Pbn Ofr","145","1230","P",null,null,null,null,null,null,false,0,"",1450562058,"JvP NonDivisional- OOG CJD-St Fd","N"]
[1450562060,"145NonDiv2060","JvP NonDivisional- TJJD Grant","Chief Juv Pbn Ofr","145","1230","P",null,null,null,null,null,null,false,0,"",1450562060,"JvP NonDivisional- TJJD Grant","N"]
[1450562063,"145NonDiv2063","JvP NonDivisional- TJJD DOJ Grant","Chief Juv Pbn Ofr","145","1230","P",null,null,null,null,null,null,false,0,"",1450562063,"JvP NonDivisional- TJJD DOJ Grant","N"]
[1450562078,"145NonDiv2078","JvP NonDivisional- ATCI Grant","Chief Juv Pbn Ofr","145","1230","P",null,null,null,null,null,null,false,0,"",1450562078,"JvP NonDivisional- ATCI Grant","N"]
[1450562089,"145NonDiv2089","JvP NonDivisional- OOG Crm Jst Div","Chief Juv Pbn Ofr","145","1230","P",null,null,null,null,null,null,false,0,"",1450562089,"JvP NonDivisional- OOG Crm Jst Div","N"]
[1450564044,"145NonDiv4044","JvP NonDivisional-CO 2005","Chief Juv Pbn Ofr","145","1230","P",null,null,null,null,null,null,false,0,"X",1450564044,"JvP NonDivisional-CO 2005","N"]
[1450600001,"145AdmSvc0001","JvP Admin Services-GF","Chief Juv Pbn Ofr","145","1230","P",null,null,null,null,null,null,false,0,"X",1450600001,"JvP Admin Services-GF","N"]
[1450610001,"145FacOp0001","JvP Facilities Operations-GF","Chief Juv Pbn Ofr","145","1230","P",null,null,null,null,null,null,false,0,"X",1450610001,"JvP Facilities Operations-GF","N"]
[1450620001,"145FdSvc0001","JvP Food Services-GF","Chief Juv Pbn Ofr","145","1230","P",null,null,null,null,null,null,false,0,"X",1450620001,"JvP Food Services-GF","N"]
[1450630001,"145HlthSvc0001","JvP Health Services-GF","Chief Juv Pbn Ofr","145","1230","P",null,null,null,null,null,null,false,0,"X",1450630001,"JvP Health Services-GF","N"]
[1450640001,"145CtAdm0001","JvP Court Administration-GF","Chief Juv Pbn Ofr","145","1230","P",null,null,null,null,null,null,false,0,"X",1450640001,"JvP Court Administration-GF","N"]
[1450650001,"145ProbSvc0001","JvP Probation Services-GF","Chief Juv Pbn Ofr","145","1230","P",null,null,null,null,null,null,false,0,"X",1450650001,"JvP Probation Services-GF","N"]
[1450660001,"145CtSvc0001","JvP Court Services-GF","Chief Juv Pbn Ofr","145","1230","P",null,null,null,null,null,null,false,0,"X",1450660001,"JvP Court Services-GF","N"]
[1450670001,"145DetS0001","JvP Detention Services-GF","Chief Juv Pbn Ofr","145","1230","P",null,null,null,null,null,null,false,0,"X",1450670001,"JvP Detention Services-GF","N"]
[1450680001,"145ResSvc0001","JvP Residential Services-GF","Chief Juv Pbn Ofr","145","1230","P",null,null,null,null,null,null,false,0,"X",1450680001,"JvP Residential Services-GF","N"]
[1450690001,"145DomRel0001","JvP Domestic Relations-GF","Chief Juv Pbn Ofr","145","1230","P",null,null,null,null,null,null,false,0,"X",1450690001,"JvP Domestic Relations-GF","N"]
[1450700001,"145SocServ0001","JvP Social Services-GF","Chief Juv Pbn Ofr","145","1230","P",null,null,null,null,null,null,false,0,"X",1450700001,"JvP Social Services-GF","N"]
[1450710001,"145ITRsh0001","Juv IT/Planning and Research","Chief Juv Pbn Ofr","145","1230","P",null,null,null,null,null,null,false,0,"X",1450710001,"Juv IT/Planning and Research","N"]
[1458000001,"145CARJucSv0001","JvP CAR-JuvSvs GF","Chief Juv Pbn Ofr","145","1230","C",null,null,null,null,null,null,false,"CAR","X",1458000001,"JvP CAR-JuvSvs GF","N"]
[1470010001,"147TechComm0001","Emrg Svs Tech and Comm-GF","County Exec Emrg Svs","147","1320","P",null,null,null,null,null,null,false,0,"X",1470010001,"Emrg Svs Tech and Comm-GF","N"]
[1470010142,"147TechComm0142","Emrg Svs Tech and Comm-CAPGOG 911 Fees","County Exec Emrg Svs","147","1320","P",null,null,null,null,null,null,false,0,"X",1470010142,"Emrg Svs Tech and Comm-CAPGOG 911 Fees","N"]
[1470014044,"147TechComm4044","Emrg Svs Tech and Comm-CO 2005","County Exec Emrg Svs","147","1320","P",null,null,null,null,null,null,false,0,"X",1470014044,"Emrg Svs Tech and Comm-CO 2005","N"]
[1470020001,"147FireMshl0001","Emrg Svs Fire Marshal-GF","County Exec Emrg Svs","147","1320","P",null,null,null,null,null,null,false,0,"X",1470020001,"Emrg Svs Fire Marshal-GF","N"]
[1470020118,"147FireMshl0118","Emrg Svs Fire Marshal-LEOSE","County Exec Emrg Svs","147","1320","P",null,null,null,null,null,null,false,0,"X",1470020118,"Emrg Svs Fire Marshal-LEOSE","N"]
[1470020134,"147FireMshl0134","Emrg Svs Fire Marshal-Fire Code Fd","County Exec Emrg Svs","147","1320","P",null,null,null,null,null,null,false,0,"X",1470020134,"Emrg Svs Fire Marshal-Fire Code Fd","N"]
[1470030001,"147Adm0001","Emrg Svs Adm-GF","County Exec Emrg Svs","147","1320","P",null,null,null,null,null,null,false,0,"X",1470030001,"Emrg Svs Adm-GF","N"]
[1470040001,"147EmrgMgmt0001","Emrg Svs Emergency Mgmt-GF","County Exec Emrg Svs","147","1320","P",null,null,null,null,null,null,false,0,"X",1470040001,"Emrg Svs Emergency Mgmt-GF","N"]
[1470042017,"147EmrgMgmt2017","Emrg Svs Emrg Mgmt-OOG Dv Emrg Mgmt Grnt","County Exec Emrg Svs","147","1320","P",null,null,null,null,null,null,false,0,"",1470042017,"Emrg Svs Emrg Mgmt-OOG Dv Emrg Mgmt Grnt","N"]
[1470042028,"147EmrgMgmt2028","Emrg Svs Emrg Mgmt-Tx DPS Grant","County Exec Emrg Svs","147","1320","P",null,null,null,null,null,null,false,0,"",1470042028,"Emrg Svs Emrg Mgmt-Tx DPS Grant","N"]
[1470050001,"147FrstResp0001","Emrg Svs First Responders","County Exec Emrg Svs","147","1510","P",null,null,null,null,null,null,false,0,"X",1470050001,"Emrg Svs First Responders","N"]
[1470050001,"147FrstResp0001","Emrg Svs First Responders","County Exec Emrg Svs","147","1510","P",null,null,null,null,null,null,false,0,"X",1470050001,"Emrg Svs First Responders","N"]
[1470060001,"147EmrgEvent0001","Emrg Svs Emergency Event-GF","County Exec Emrg Svs","147","1320","P",null,null,null,null,null,null,false,0,"X",1470060001,"Emrg Svs Emergency Event-GF","N"]
[1478000001,"147CAREmrgMgmt0001","Emrg Svs CAR-EmrgMgmt GF","County Exec Emrg Svs","147","1320","C",null,null,null,null,null,null,false,"CAR","X",1478000001,"Emrg Svs CAR-EmrgMgmt GF","N"]
[1490010001,"149Adm0001","TNR Administrative Services-GF","County Exec TNR","149","1710","P",null,null,null,null,null,null,false,0,"X",1490010001,"TNR Administrative Services-GF","N"]
[1490010145,"149Adm0145","TNR Administrative Services-RdBg Fd","County Exec TNR","149","1710","P",null,null,null,null,null,null,false,0,"X",1490010145,"TNR Administrative Services-RdBg Fd","N"]
[1490014050,"149Adm4050","TNR Administrative Services-CCPF","County Exec TNR","149","1710","P",null,null,null,null,null,null,false,0,"X",1490014050,"TNR Administrative Services-CCPF","N"]
[1490015001,"149Adm5001","TNR Administrative Services-CCPF","County Exec TNR","149","1710","P",null,null,null,null,null,null,false,0,"X",1490015001,"TNR Administrative Services-CCPF","N"]
[1490020001,"149CtlFiles0001","TNR Central Files-GF","County Exec TNR","149","1710","P",null,null,null,null,null,null,false,0,"X",1490020001,"TNR Central Files-GF","N"]
[1490020145,"149CtlFiles0145","TNR Central Files-RdBg Fd","County Exec TNR","149","1710","P",null,null,null,null,null,null,false,0,"X",1490020145,"TNR Central Files-RdBg Fd","N"]
[1490030001,"149ExcOfc0001","TNR Executive Office-GF","County Exec TNR","149","1710","P",null,null,null,null,null,null,false,0,"X",1490030001,"TNR Executive Office-GF","N"]
[1490030145,"149ExcOfc0145","TNR Executive Office-RdBg Fd","County Exec TNR","149","1710","P",null,null,null,null,null,null,false,0,"X",1490030145,"TNR Executive Office-RdBg Fd","N"]
[1490040001,"149HumRes0001","TNR Human Resources-GF","County Exec TNR","149","1710","P",null,null,null,null,null,null,false,0,"X",1490040001,"TNR Human Resources-GF","N"]
[1490040145,"149HumRes0145","TNR Human Resources-RdBg Fd","County Exec TNR","149","1710","P",null,null,null,null,null,null,false,0,"X",1490040145,"TNR Human Resources-RdBg Fd","N"]
[1490050001,"149Mailroom0001","TNR Mailroom Services-GF","County Exec TNR","149","1710","P",null,null,null,null,null,null,false,0,"X",1490050001,"TNR Mailroom Services-GF","N"]
[1490050145,"149Mailroom0145","TNR Mailroom Services-RdBg Fd","County Exec TNR","149","1710","P",null,null,null,null,null,null,false,0,"X",1490050145,"TNR Mailroom Services-RdBg Fd","N"]
[1490060001,"149FinSvs0001","TNR Financial Services-GF","County Exec TNR","149","1710","P",null,null,null,null,null,null,false,0,"X",1490060001,"TNR Financial Services-GF","N"]
[1490060145,"149FinSvs0145","TNR Financial Services-RdBg Fd","County Exec TNR","149","1710","P",null,null,null,null,null,null,false,0,"X",1490060145,"TNR Financial Services-RdBg Fd","N"]
[1490070001,"149RiskSafety0001","TNR Risk/Safety-GF","County Exec TNR","149","1710","P",null,null,null,null,null,null,false,0,"X",1490070001,"TNR Risk/Safety-GF","N"]
[1490070145,"149RiskSafety0145","TNR Risk/Safety-RdBg Fd","County Exec TNR","149","1710","P",null,null,null,null,null,null,false,0,"X",1490070145,"TNR Risk/Safety-RdBg Fd","N"]
[1490074050,"149RiskSafety4050","TNR Risk/Safety-CCPF","County Exec TNR","149","1710","P",null,null,null,null,null,null,false,0,"X",1490074050,"TNR Risk/Safety-CCPF","N"]
[1490075001,"149RiskSafety5001","TNR Risk/Safety-CCPF","County Exec TNR","149","1710","P",null,null,null,null,null,null,false,0,"X",1490075001,"TNR Risk/Safety-CCPF","N"]
[1490080001,"149CompPlng0001","TNR Comprehensive Planning-GF","County Exec TNR","149","1710","P",null,null,null,null,null,null,false,0,"X",1490080001,"TNR Comprehensive Planning-GF","N"]
[1490080145,"149CompPlng0145","TNR Comprehensive Planning-RdBg Fd","County Exec TNR","149","1710","P",null,null,null,null,null,null,false,0,"X",1490080145,"TNR Comprehensive Planning-RdBg Fd","N"]
[1490090001,"149GIS0001","TNR GIS-GF","County Exec TNR","149","1710","P",null,null,null,null,null,null,false,0,"X",1490090001,"TNR GIS-GF","N"]
[1490090145,"149GIS0145","TNR GIS-RdBg Fd","County Exec TNR","149","1710","P",null,null,null,null,null,null,false,0,"X",1490090145,"TNR GIS-RdBg Fd","N"]
[1490100001,"149Planning0001","TNR Planning-GF","County Exec TNR","149","1710","P",null,null,null,null,null,null,false,0,"X",1490100001,"TNR Planning-GF","N"]
[1490100145,"149Planning0145","TNR Planning-RdBg Fd","County Exec TNR","149","1710","P",null,null,null,null,null,null,false,0,"X",1490100145,"TNR Planning-RdBg Fd","N"]
[1490110001,"149EnvQlty0001","TNR Environmental Quality-GF","County Exec TNR","149","1750","P",null,null,null,null,null,null,false,0,"X",1490110001,"TNR Environmental Quality-GF","N"]
[1490110002,"149EnvQlty0002","TNR Environmental Quality-700 Lavaca-GF","County Exec TNR","149","1750","P",null,null,null,null,null,null,false,0,"X",1490110002,"TNR Environmental Quality-700 Lavaca-GF","N"]
[1490110145,"149EnvQlty0145","TNR Environmental Quality-RdBg Fd","County Exec TNR","149","1750","P",null,null,null,null,null,null,false,0,"X",1490110145,"TNR Environmental Quality-RdBg Fd","N"]
[1490112002,"149EnvQlty2002","TNR Environmental Quality-CAPCOG Grant","County Exec TNR","149","1750","P",null,null,null,null,null,null,false,0,"",1490112002,"TNR Environmental Quality-CAPCOG Grant","N"]
[1490112003,"149EnvQlty2003","TNR Environmental Quality-CAMPO Grant","County Exec TNR","149","1750","P",null,null,null,null,null,null,false,0,"",1490112003,"TNR Environmental Quality-CAMPO Grant","N"]
[1490112025,"149EnvQlty2025","TNR Environmental Quality-TCEQ Grant","County Exec TNR","149","1750","P",null,null,null,null,null,null,false,0,"",1490112025,"TNR Environmental Quality-TCEQ Grant","N"]
[1490120000,"149NatRsrcs0000","TNR Natural Resources-BCCP Grant_Bond","County Exec TNR","149","1750","P",null,null,null,null,null,null,false,0,0,1490120000,"TNR Natural Resources-BCCP Grant_Bond","N"]
[1490120001,"149NatRsrcs0001","TNR Natural Resources-GF","County Exec TNR","149","1750","P",null,null,null,null,null,null,false,0,"X",1490120001,"TNR Natural Resources-GF","N"]
[1490120115,"149NatRsrcs0115","TNR Natural Resources-BCCP","County Exec TNR","149","1750","P",null,null,null,null,null,null,false,0,"X",1490120115,"TNR Natural Resources-BCCP","N"]
[1490122038,"149NatRsrcs2038","TNR Natural Resources-TPWD Fed Cap Grant","County Exec TNR","149","1750","P",null,null,null,null,null,null,false,0,"",1490122038,"TNR Natural Resources-TPWD Fed Cap Grant","N"]
[1490124034,"149NatRsrcs4034","TNR Natural Resources-Cap Proj","County Exec TNR","149","1750","P",null,null,null,null,null,null,false,0,"X",1490124034,"TNR Natural Resources-Cap Proj","N"]
[1490130001,"149DevSvs0001","TNR Development Services-GF","County Exec TNR","149","1750","P",null,null,null,null,null,null,false,0,"X",1490130001,"TNR Development Services-GF","N"]
[1490132014,"149DevSvs2014","TNR Development Svs-Northridge Grant","County Exec TNR","149","1750","P",null,null,null,null,null,null,false,0,"",1490132014,"TNR Development Svs-Northridge Grant","N"]
[1490132029,"149DevSvs2029","TNR Development Services-Tx DRA Grant","County Exec TNR","149","1750","P",null,null,null,null,null,null,false,0,"",1490132029,"TNR Development Services-Tx DRA Grant","N"]
[1490132040,"149DevSvs2040","TNR Development Svs-Tx Water Dev Bd Grnt","County Exec TNR","149","1750","P",null,null,null,null,null,null,false,0,"",1490132040,"TNR Development Svs-Tx Water Dev Bd Grnt","N"]
[1490132054,"149DevSvs2054","TNR Development Services-HUD Grant","County Exec TNR","149","1750","P",null,null,null,null,null,null,false,0,"",1490132054,"TNR Development Services-HUD Grant","N"]
[1490132056,"149DevSvs2056","TNR Development Svs-Willims Co Grant","County Exec TNR","149","1750","P",null,null,null,null,null,null,false,0,"",1490132056,"TNR Development Svs-Willims Co Grant","N"]
[1490132092,"149DevSvs2092","TNR Development Svcs-TX Water Dev Board","County Exec TNR","149","1750","P",null,null,null,null,null,null,false,0,"",1490132092,"TNR Development Svcs-TX Water Dev Board","N"]
[1490134057,"149DevSvs4057","TNR Development Services-Cap Proj","County Exec TNR","149","1750","P",null,null,null,null,null,null,false,0,"X",1490134057,"TNR Development Services-Cap Proj","N"]
[1490140001,"149ESvCenter0001","TNR East Service Center-GF","County Exec TNR","149","1140","P",null,null,null,null,null,null,false,0,"X",1490140001,"TNR East Service Center-GF","N"]
[1490144056,"149ESvCenter4056","TNR East Service Center-Cap Proj","County Exec TNR","149","1140","P",null,null,null,null,null,null,false,0,"X",1490144056,"TNR East Service Center-Cap Proj","N"]
[1490150000,"149StmwtMgmt0000","TNR Stormwater Management-Cap Proj","County Exec TNR","149","1730","P",null,null,null,null,null,null,false,0,0,1490150000,"TNR Stormwater Management-Cap Proj","N"]
[1490150001,"149StmwtMgmt0001","TNR Stormwater Management-GF","County Exec TNR","149","1730","P",null,null,null,null,null,null,false,0,"X",1490150001,"TNR Stormwater Management-GF","N"]
[1490152014,"149StmwtMgmt2014","TNR Stormwater Mgmt-Northridge Grant","County Exec TNR","149","1730","P",null,null,null,null,null,null,false,0,"",1490152014,"TNR Stormwater Mgmt-Northridge Grant","N"]
[1490152017,"149StmwtMgmt2017","TNR StormwaterMgmt-OOG Dv Emrg Mgmt Grnt","County Exec TNR","149","1730","P",null,null,null,null,null,null,false,0,"",1490152017,"TNR StormwaterMgmt-OOG Dv Emrg Mgmt Grnt","N"]
[1490152027,"149StmwtMgmt2027","TNR Stormwater Mgmt-Tx DPS Cap Grnt","County Exec TNR","149","1730","P",null,null,null,null,null,null,false,0,"",1490152027,"TNR Stormwater Mgmt-Tx DPS Cap Grnt","N"]
[1490152041,"149StmwtMgmt2041","TNR StormwaterMgmt-TxWatDev Cap Grnt","County Exec TNR","149","1730","P",null,null,null,null,null,null,false,0,"",1490152041,"TNR StormwaterMgmt-TxWatDev Cap Grnt","N"]
[1490160001,"149OnStSewage0001","TNR Onsite Sewage Facilities-GF","County Exec TNR","149","1760","P",null,null,null,null,null,null,false,0,"X",1490160001,"TNR Onsite Sewage Facilities-GF","N"]
[1490170145,"149RMGIS0145","TNR RM-GIS-RdBg Fd","County Exec TNR","149","1740","P",null,null,null,null,null,null,false,0,"X",1490170145,"TNR RM-GIS-RdBg Fd","N"]
[1490180001,"149Survey0001","TNR Survey-GF","County Exec TNR","149","1710","P",null,null,null,null,null,null,false,0,"X",1490180001,"TNR Survey-GF","N"]
[1490180145,"149Survey0145","TNR Survey-RdBg Fd","County Exec TNR","149","1710","P",null,null,null,null,null,null,false,0,"X",1490180145,"TNR Survey-RdBg Fd","N"]
[1490190000,"149RdCapBgRplmt0000","TNR Rd Capacity and Bg Rplmt-Cap Proj","County Exec TNR","149","1710","P",null,null,null,null,null,null,false,0,0,1490190000,"TNR Rd Capacity and Bg Rplmt-Cap Proj","N"]
[1490190001,"149RdCapBgRplmt0001","TNR Rd Capacity and Bg Rplmt-GF","County Exec TNR","149","1710","P",null,null,null,null,null,null,false,0,"X",1490190001,"TNR Rd Capacity and Bg Rplmt-GF","N"]
[1490190145,"149RdCapBgRplmt0145","TNR Rd Capacity and Bg Rplmt-RdBg Fd","County Exec TNR","149","1710","P",null,null,null,null,null,null,false,0,"X",1490190145,"TNR Rd Capacity and Bg Rplmt-RdBg Fd","N"]
[1490192030,"149RdCapBgRplmt2030","TNR Rd Capacity & Bg Rplmt-UNT Fed Grant","County Exec TNR","149","1710","P",null,null,null,null,null,null,false,0,"",1490192030,"TNR Rd Capacity & Bg Rplmt-UNT Fed Grant","N"]
[1490192054,"149RdCapBgRplmt2054","TNR Rd Capacity & Bg Rplmt-HUD Grant","County Exec TNR","149","1710","P",null,null,null,null,null,null,false,0,"",1490192054,"TNR Rd Capacity & Bg Rplmt-HUD Grant","N"]
[1490195003,"149RdCapBgRplmt5003","TNR Rd Capacity and Bg Rplmt-TNRSidewalk","County Exec TNR","149","1710","P",null,null,null,null,null,null,false,0,"X",1490195003,"TNR Rd Capacity and Bg Rplmt-TNRSidewalk","N"]
[1490200000,"149RdBgMnt0000","TNR Rd & Bridge Maintenance-Cap Proj","County Exec TNR","149","1710","P",null,null,null,null,null,null,false,0,0,1490200000,"TNR Rd & Bridge Maintenance-Cap Proj","N"]
[1490200001,"149RdBgMnt0001","TNR Rd & Bridge Maintenance-GF","County Exec TNR","149","1710","P",null,null,null,null,null,null,false,0,"X",1490200001,"TNR Rd & Bridge Maintenance-GF","N"]
[1490200145,"149RdBgMnt0145","TNR Rd & Bridge Maintenance-RdBg Fd","County Exec TNR","149","1710","P",null,null,null,null,null,null,false,0,"X",1490200145,"TNR Rd & Bridge Maintenance-RdBg Fd","N"]
[1490202004,"149RdBgMnt2004","TNR Rd & Bridge Maintenance-CMTA Grant","County Exec TNR","149","1710","P",null,null,null,null,null,null,false,0,"",1490202004,"TNR Rd & Bridge Maintenance-CMTA Grant","N"]
[1490202032,"149RdBgMnt2032","TNR Rd & Bridge Mnt-TxDOT St Cap Grnt","County Exec TNR","149","1710","P",null,null,null,null,null,null,false,0,"",1490202032,"TNR Rd & Bridge Mnt-TxDOT St Cap Grnt","N"]
[1490202040,"149RdBgMnt2040","TNR Rd & Bridge Mnt-Tx Water Dev Board G","County Exec TNR","149","1710","P",null,null,null,null,null,null,false,0,"",1490202040,"TNR Rd & Bridge Mnt-Tx Water Dev Board G","N"]
[1490202071,"149RdBgMnt2071","TNR Rd & Bridge Maintenance-CMTA Grant","County Exec TNR","149","1710","P",null,null,null,null,null,null,false,0,"",1490202071,"TNR Rd & Bridge Maintenance-CMTA Grant","N"]
[1490202075,"149RdBgMnt2075","TNR Rd & Bridge Mnt-TxDOT Fed Cap Grnt","County Exec TNR","149","1710","P",null,null,null,null,null,null,false,0,"",1490202075,"TNR Rd & Bridge Mnt-TxDOT Fed Cap Grnt","N"]
[1490210001,"149SignShopSvs0001","TNR Sign Shop Services-GF","County Exec TNR","149","1710","P",null,null,null,null,null,null,false,0,"X",1490210001,"TNR Sign Shop Services-GF","N"]
[1490210145,"149SignShopSvs0145","TNR Sign Shop Services-RdBg Fd","County Exec TNR","149","1710","P",null,null,null,null,null,null,false,0,"X",1490210145,"TNR Sign Shop Services-RdBg Fd","N"]
[1490220000,"149ParkSvs0000","TNR Park Services-Cap Proj","County Exec TNR","149","1630","P",null,null,null,null,null,null,false,0,0,1490220000,"TNR Park Services-Cap Proj","N"]
[1490220001,"149ParkSvs0001","TNR Park Services-GF","County Exec TNR","149","1630","P",null,null,null,null,null,null,false,0,"X",1490220001,"TNR Park Services-GF","N"]
[1490220109,"149ParkSvs0109","TNR Park Services-LCRA Fd","County Exec TNR","149","1630","P",null,null,null,null,null,null,false,0,"X",1490220109,"TNR Park Services-LCRA Fd","N"]
[1490220123,"149ParkSvs0123","TNR Park Services-Mary Quilan Fd","County Exec TNR","149","1630","P",null,null,null,null,null,null,false,0,"X",1490220123,"TNR Park Services-Mary Quilan Fd","N"]
[1490222032,"149ParkSvs2032","TNR Park Services-TxDOT St Cap Grnt","County Exec TNR","149","1630","P",null,null,null,null,null,null,false,0,"",1490222032,"TNR Park Services-TxDOT St Cap Grnt","N"]
[1490222037,"149ParkSvs2037","TNR Park Services-TPW Dpt St Cap Grant","County Exec TNR","149","1630","P",null,null,null,null,null,null,false,0,"",1490222037,"TNR Park Services-TPW Dpt St Cap Grant","N"]
[1490222071,"149ParkSvs2071","TNR Park Services-CMTA Grant","County Exec TNR","149","1630","P",null,null,null,null,null,null,false,0,"",1490222071,"TNR Park Services-CMTA Grant","N"]
[1490222075,"149ParkSvs2075","TNR Park Services-TxDOT Fed Cap Grnt","County Exec TNR","149","1630","P",null,null,null,null,null,null,false,0,"",1490222075,"TNR Park Services-TxDOT Fed Cap Grnt","N"]
[1490230001,"149ParkRngrs0001","TNR Park Rangers-GF","County Exec TNR","149","1630","P",null,null,null,null,null,null,false,0,"X",1490230001,"TNR Park Rangers-GF","N"]
[1490250001,"149CustSvs0001","TNR Customer Services-GF","County Exec TNR","149","1710","P",null,null,null,null,null,null,false,0,"X",1490250001,"TNR Customer Services-GF","N"]
[1490250145,"149CustSvs0145","TNR Customer Services-RdBg Fd","County Exec TNR","149","1710","P",null,null,null,null,null,null,false,0,"X",1490250145,"TNR Customer Services-RdBg Fd","N"]
[1490260001,"149ChildSafety0001","TNR Child Safety Pg-GF","County Exec TNR","149","1710","P",null,null,null,null,null,null,false,0,"X",1490260001,"TNR Child Safety Pg-GF","N"]
[1490274049,"149PksCntrAgy4049","TNR Parks Cntrt Agencies-Sbdvn Pkld Fd","County Exec TNR","149","1630","P",null,null,null,null,null,null,false,0,"X",1490274049,"TNR Parks Cntrt Agencies-Sbdvn Pkld Fd","N"]
[1490275000,"149PksCntrAgy5000","TNR Parks Cntrt Agencies-Sbdvn Pkld Fd","County Exec TNR","149","1630","P",null,null,null,null,null,null,false,0,"X",1490275000,"TNR Parks Cntrt Agencies-Sbdvn Pkld Fd","N"]
[1490280001,"149SvtoOthrGov0001","TNR Services To Othr Govts-GF","County Exec TNR","149","1710","P",null,null,null,null,null,null,false,0,"X",1490280001,"TNR Services To Othr Govts-GF","N"]
[1490294050,"149IntGovAgrmt4050","TNR Intergov Agreements-Roads-CCPF","County Exec TNR","149","1710","P",null,null,null,null,null,null,false,0,"X",1490294050,"TNR Intergov Agreements-Roads-CCPF","N"]
[1490295001,"149IntGovAgrmt5001","TNR Intergov Agreements-Roads-CCPF","County Exec TNR","149","1710","P",null,null,null,null,null,null,false,0,"X",1490295001,"TNR Intergov Agreements-Roads-CCPF","N"]
[1490304050,"149PvtAgncyCnt4050","TNR Private Agency Contract-Roads-CCPF","County Exec TNR","149","1710","P",null,null,null,null,null,null,false,0,"X",1490304050,"TNR Private Agency Contract-Roads-CCPF","N"]
[1490305001,"149PvtAgncyCnt5001","TNR Private Agency Contract-Roads-CCPF","County Exec TNR","149","1710","P",null,null,null,null,null,null,false,0,"X",1490305001,"TNR Private Agency Contract-Roads-CCPF","N"]
[1490310000,"149CtlFleet0000","TNR Centralized Fleet Services-Cap Proj","County Exec TNR","149","1710","P",null,null,null,null,null,null,false,0,0,1490310000,"TNR Centralized Fleet Services-Cap Proj","N"]
[1490324050,"149PvtAgcyCntPks4050","TNR Private Agency Contract-Parks-CCPF","County Exec TNR","149","1630","P",null,null,null,null,null,null,false,0,"X",1490324050,"TNR Private Agency Contract-Parks-CCPF","N"]
[1490325001,"149PvtAgcyCntPks5001","TNR Private Agency Contract-Parks-CCPF","County Exec TNR","149","1630","P",null,null,null,null,null,null,false,0,"X",1490325001,"TNR Private Agency Contract-Parks-CCPF","N"]
[1490330001,"149LakeTravis0001","TNR Lake Travis Econ Dev-GF","County Exec TNR","149","1610","P",null,null,null,null,null,null,false,0,"X",1490330001,"TNR Lake Travis Econ Dev-GF","N"]
[1490330147,"149LakeTravis0147","TNR Lake Travis Econ Dev-Lake Travis Fd","County Exec TNR","149","1610","P",null,null,null,null,null,null,false,0,"X",1490330147,"TNR Lake Travis Econ Dev-Lake Travis Fd","N"]
[1490350000,"149FleetRdBg0000","TNR Fleet Services Roads & Bridges","County Exec TNR","149","1710","P",null,null,null,null,null,null,false,0,0,1490350000,"TNR Fleet Services Roads & Bridges","N"]
[1490350001,"149FleetRdBg0001","TNR Fleet Services Roads & Bridges-GF","County Exec TNR","149","1710","P",null,null,null,null,null,null,false,0,"X",1490350001,"TNR Fleet Services Roads & Bridges-GF","N"]
[1490350145,"149FleetRdBg0145","TNR Fleet Services Roads & Bridges-RdBg","County Exec TNR","149","1710","P",null,null,null,null,null,null,false,0,"X",1490350145,"TNR Fleet Services Roads & Bridges-RdBg","N"]
[1490360000,"149FleetGenAdm0000","TNR Fleet Services General Adm","County Exec TNR","149","1110","P",null,null,null,null,null,null,false,0,0,1490360000,"TNR Fleet Services General Adm","N"]
[1490370000,"149FleetCrmJs0000","TNR Fleet Services Criminal Justice","County Exec TNR","149","1210","P",null,null,null,null,null,null,false,0,0,1490370000,"TNR Fleet Services Criminal Justice","N"]
[1490380000,"149FleetLE0000","TNR Fleet Services Law Enforcement","County Exec TNR","149","1310","P",null,null,null,null,null,null,false,0,0,1490380000,"TNR Fleet Services Law Enforcement","N"]
[1490390000,"149FleetHsgBkg0000","TNR Fleet Services Housing & Booking","County Exec TNR","149","1410","P",null,null,null,null,null,null,false,0,0,1490390000,"TNR Fleet Services Housing & Booking","N"]
[1490400000,"149FleetJuvSv0000","TNR Fleet Services Juvenile Svs","County Exec TNR","149","1230","P",null,null,null,null,null,null,false,0,0,1490400000,"TNR Fleet Services Juvenile Svs","N"]
[1490410000,"149FleetPbcHlh0000","TNR Fleet Services Public Health","County Exec TNR","149","1520","P",null,null,null,null,null,null,false,0,0,1490410000,"TNR Fleet Services Public Health","N"]
[1490420000,"149FleetHumanSv0000","TNR Fleet Services Human Svs","County Exec TNR","149","1530","P",null,null,null,null,null,null,false,0,0,1490420000,"TNR Fleet Services Human Svs","N"]
[1490430000,"149FleetParksRec0000","TNR Fleet Services Parks & Rec","County Exec TNR","149","1630","P",null,null,null,null,null,null,false,0,0,1490430000,"TNR Fleet Services Parks & Rec","N"]
[1490440001,"149BurialSvs0001","TNR Burial Services-GF","County Exec TNR","149","1710","P",null,null,null,null,null,null,false,0,"X",1490440001,"TNR Burial Services-GF","N"]
[1490450001,"149TrfrStation0001","TNR Transfer Station-GF","County Exec TNR","149","1710","P",null,null,null,null,null,null,false,0,"X",1490450001,"TNR Transfer Station-GF","N"]
[1490460001,"149LandfillMntc0001","TNR Landfill Maintenance-GF","County Exec TNR","149","1710","P",null,null,null,null,null,null,false,0,"X",1490460001,"TNR Landfill Maintenance-GF","N"]
[1490470001,"149EmerResponse0001","TNR Emergency Response-GF","County Exec TNR","149","1320","P",null,null,null,null,null,null,false,0,"X",1490470001,"TNR Emergency Response-GF","N"]
[1497760001,"149RskMgtClmPks0001","TNR Risk Mgmt Claim-Parks","County Exec TNR","149","1630","P",null,null,null,null,null,null,false,0,"X",1497760001,"TNR Risk Mgmt Claim-Parks","N"]
[1497770001,"149RskMgtClmFlt0001","TNR Risk Mgmt Claim-Fleet","County Exec TNR","149","1710","P",null,null,null,null,null,null,false,0,"X",1497770001,"TNR Risk Mgmt Claim-Fleet","N"]
[1498000001,"149CARRdBg0001","TNR CAR- Roads & Bridges GF","County Exec TNR","149","1710","C",null,null,null,null,null,null,false,"CAR","X",1498000001,"TNR CAR- Roads & Bridges GF","N"]
[1498010001,"149CARDrng0001","TNR CAR-Drng GF","County Exec TNR","149","1730","C",null,null,null,null,null,null,false,"CAR","X",1498010001,"TNR CAR-Drng GF","N"]
[1498020001,"149CARSanitation0001","TNR CAR-Sanitation GF","County Exec TNR","149","1760","C",null,null,null,null,null,null,false,"CAR","X",1498020001,"TNR CAR-Sanitation GF","N"]
[1498030001,"149CARParksRec0001","TNR CAR- Parks & Rec GF","County Exec TNR","149","1630","C",null,null,null,null,null,null,false,"CAR","X",1498030001,"TNR CAR- Parks & Rec GF","N"]
[1498040001,"149CARGenAdm0001","TNR CAR-GenAdm GF","County Exec TNR","149","1110","C",null,null,null,null,null,null,false,"CAR","X",1498040001,"TNR CAR-GenAdm GF","N"]
[1498050001,"149CARCrmJs0001","TNR CAR-CrmJs GF","County Exec TNR","149","1210","C",null,null,null,null,null,null,false,"CAR","X",1498050001,"TNR CAR-CrmJs GF","N"]
[1498060001,"149CARLE0001","TNR CAR-LE GF","County Exec TNR","149","1310","C",null,null,null,null,null,null,false,"CAR","X",1498060001,"TNR CAR-LE GF","N"]
[1498070001,"149CARHsgBkg0001","TNR CAR-HsgBkg GF","County Exec TNR","149","1410","C",null,null,null,null,null,null,false,"CAR","X",1498070001,"TNR CAR-HsgBkg GF","N"]
[1498080001,"149CARHumSv0001","TNR CAR-HumSv GF","County Exec TNR","149","1530","C",null,null,null,null,null,null,false,"CAR","X",1498080001,"TNR CAR-HumSv GF","N"]
[1499000001,"149ReimburseRes0001","TNR Reimbursement Resolution Funds-GF","County Exec TNR","149","1710","R",null,null,null,null,null,null,false,0,"X",1499000001,"TNR Reimbursement Resolution Funds-GF","N"]
[1540010001,"154Adm0001","Civil Service Commission-GF","Civil Svcs Coord","154","1110","P",null,null,null,null,null,null,false,0,"X",1540010001,"Civil Service Commission-GF","N"]
[1550010001,"155Adm0001","JsPln-Executive & Adm-GF","County Exec JPs","155","1210","P",null,null,null,null,null,null,false,0,"X",1550010001,"JsPln-Executive & Adm-GF","N"]
[1550010158,"155JsPlnAdmin0158","JsPln-Admin-Lang Access Fd","County Exec JPs","155","1210","P",null,null,null,null,null,null,false,0,"X",1550010158,"JsPln-Admin-Lang Access Fd","N"]
[1550020001,"155RePg0001","JsPln-Reentry Program After Care-GF","County Exec JPs","155","1210","P",null,null,null,null,null,null,false,0,"X",1550020001,"JsPln-Reentry Program After Care-GF","N"]
[1550030001,"155Pgmatic0001","JsPln-Programmatic-GF","County Exec JPs","155","1210","P",null,null,null,null,null,null,false,0,"X",1550030001,"JsPln-Programmatic-GF","N"]
[1550040001,"155OffWkDev0001","JsPln-Offender Workforce Dev-GF","County Exec JPs","155","1210","P",null,null,null,null,null,null,false,0,"X",1550040001,"JsPln-Offender Workforce Dev-GF","N"]
[1550042051,"155OffWkDev2051","JsPln-Offender Workforce Dev-US DOJ Grnt","County Exec JPs","155","1210","P",null,null,null,null,null,null,false,0,"",1550042051,"JsPln-Offender Workforce Dev-US DOJ Grnt","N"]
[1550050001,"155OfcPrtRep0001","JsPln-Ofc of Parent Rep-GF","County Exec JPs","155","1210","P",null,null,null,null,null,null,false,0,"X",1550050001,"JsPln-Ofc of Parent Rep-GF","N"]
[1550052023,"155OfcPrtRep2023","JsPln-Ofc of Parent Rep-SCT Grant","County Exec JPs","155","1210","P",null,null,null,null,null,null,false,0,"",1550052023,"JsPln-Ofc of Parent Rep-SCT Grant","N"]
[1550060001,"155OfcChRep0001","JsPln-Office of Child Rep -GF","County Exec JPs","155","1210","P",null,null,null,null,null,null,false,0,"X",1550060001,"JsPln-Office of Child Rep -GF","N"]
[1550062023,"155OfcChRep2023","JsPln-Office of Child Rep-SCT Grant","County Exec JPs","155","1210","P",null,null,null,null,null,null,false,0,"",1550062023,"JsPln-Office of Child Rep-SCT Grant","N"]
[1550070001,"155MtlHlhPD0001","JsPln-Mental Health Pub Def-GF","County Exec JPs","155","1210","P",null,null,null,null,null,null,false,0,"X",1550070001,"JsPln-Mental Health Pub Def-GF","N"]
[1550072015,"155MtlHlhPD2015","JsPln-Mental Health Pub Def-OCA Grant","County Exec JPs","155","1210","P",null,null,null,null,null,null,false,0,"",1550072015,"JsPln-Mental Health Pub Def-OCA Grant","N"]
[1550082016,"155ExcAdmByrne2016","JsPln-Exc&Adm Byrne-OOG Crm Jus Dv Grant","County Exec JPs","155","1210","P",null,null,null,null,null,null,false,0,"",1550082016,"JsPln-Exc&Adm Byrne-OOG Crm Jus Dv Grant","N"]
[1550092016,"155CRByrne2016","JsPln-C&R Byrne-OOG Crm Jus Dv Grant","County Exec JPs","155","1420","P",null,null,null,null,null,null,false,0,"",1550092016,"JsPln-C&R Byrne-OOG Crm Jus Dv Grant","N"]
[1550102016,"155JvPByrne2016","JsPln-Juvenile Byrne-OOG Crm Jus Dv Grnt","County Exec JPs","155","1230","P",null,null,null,null,null,null,false,0,"",1550102016,"JsPln-Juvenile Byrne-OOG Crm Jus Dv Grnt","N"]
[1550112016,"155LEByrne2016","JsPln-LE Byrne-OOG Crm Jus Dv Grant","County Exec JPs","155","1310","P",null,null,null,null,null,null,false,0,"",1550112016,"JsPln-LE Byrne-OOG Crm Jus Dv Grant","N"]
[1550120001,"155IOTC0001","JsPln-IOTC or Inside Out Training-GF","County Exec JPs","155","1210","P",null,null,null,null,null,null,false,0,"X",1550120001,"JsPln-IOTC or Inside Out Training-GF","N"]
[1550130001,"155Planning0001","JsPln-Planning-GF","County Exec JPs","155","1210","P",null,null,null,null,null,null,false,0,"X",1550130001,"JsPln-Planning-GF","N"]
[1550140001,"155Communication0001","JsPln-Communications-GF","County Exec JPs","155","1320","P",null,null,null,null,null,null,false,0,"X",1550140001,"JsPln-Communications-GF","N"]
[1550144038,"155Communication4038","JsPln-Communications-LT CO 2003","County Exec JPs","155","1320","P",null,null,null,null,null,null,false,0,"X",1550144038,"JsPln-Communications-LT CO 2003","N"]
[1550150001,"155JsPlnCivLib0001","JsPln-Civil Library-GF","County Exec JPs","155","1220","P",null,null,null,null,null,null,false,0,"X",1550150001,"JsPln-Civil Library-GF","N"]
[1550150100,"155JsPlnCiviLib0100","JSPln-Civil Library-Law Library Fund","County Exec JPs","155","1220","P",null,null,null,null,null,null,false,0,"X",1550150100,"JSPln-Civil Library-Law Library Fund","N"]
[1550160001,"155JsPlnCrimLib0001","JsPln-Criminal Library-GF","County Exec JPs","155","1210","P",null,null,null,null,null,null,false,0,"X",1550160001,"JsPln-Criminal Library-GF","N"]
[1550160100,"155JsPlnCrimLib0100","JSPln-Criminal Library-Law Library Fund","County Exec JPs","155","1210","P",null,null,null,null,null,null,false,0,"X",1550160100,"JSPln-Criminal Library-Law Library Fund","N"]
[1550170001,"155JsPlnPubDef0001","JSPln-Pub Def-GF","County Exec JPs","155","1210","P",null,null,null,null,null,null,false,0,"X",1550170001,"JSPln-Pub Def-GF","N"]
[1550180001,"155JPSDRP0001","JPS-Data Research Planning-GF","County Exec JPs","155","1210","P",null,null,null,null,null,null,false,0,"X",1550180001,"JPS-Data Research Planning-GF","N"]
[1558000001,"155CARLE0001","JsPln-CAR-LE GF","County Exec JPs","155","1320","C",null,null,null,null,null,null,false,"CAR","X",1558000001,"JsPln-CAR-LE GF","N"]
[1570010001,"157Adm0001","CRS Adm-GF","CRS Dir","157","1110","P",null,null,null,null,null,null,false,0,"X",1570010001,"CRS Adm-GF","N"]
[1570010108,"157Adm0108","CRS Adm-Records Management Fd","CRS Dir","157","1110","P",null,null,null,null,null,null,false,0,"X",1570010108,"CRS Adm-Records Management Fd","N"]
[1570020001,"157CtlRepair0001","CRS Copiers/Central Repairs-GF","CRS Dir","157","1110","P",null,null,null,null,null,null,false,0,"X",1570020001,"CRS Copiers/Central Repairs-GF","N"]
[1570020125,"157CtlRepair0125","CR Copiers/Central Repairs-Jus Ct Tech","CRS Dir","157","1110","P",null,null,null,null,null,null,false,0,"X",1570020125,"CR Copiers/Central Repairs-Jus Ct Tech","N"]
[1570030108,"157RM and Comm0108","CRS Records Mgmt & Comm-Rec Mgmt Fd","CRS Dir","157","1110","P",null,null,null,null,null,null,false,0,"X",1570030108,"CRS Records Mgmt & Comm-Rec Mgmt Fd","N"]
[1570040001,"157Imaging0001","CRS Imaging-GF","CRS Dir","157","1110","P",null,null,null,null,null,null,false,0,"X",1570040001,"CRS Imaging-GF","N"]
[1570040004,"157Imaging0004","CRS Imaging-County Clerk Arch Fd","Chief Info Ofr","157","1110","P",null,null,null,null,null,null,false,0,"X",1570040004,"CRS Imaging-County Clerk Arch Fd","N"]
[1570040108,"157Imaging0108","CRS Imaging-Records Management Fd","CRS Dir","157","1110","P",null,null,null,null,null,null,false,0,"X",1570040108,"CRS Imaging-Records Management Fd","N"]
[1570040129,"157Imaging0129","CRS Imaging-County Clerk Archival Fd","CRS Dir","157","1110","P",null,null,null,null,null,null,false,0,"X",1570040129,"CRS Imaging-County Clerk Archival Fd","N"]
[1570040141,"157Imaging0141","CRS Imaging-Court Record Preservation","CRS Dir","157","1110","P",null,null,null,null,null,null,false,0,"X",1570040141,"CRS Imaging-Court Record Preservation","N"]
[1570050110,"157InfoCtl0110","CRS Info Control-Recs Mgmt Preser","CRS Dir","157","1110","P",null,null,null,null,null,null,false,0,"X",1570050110,"CRS Info Control-Recs Mgmt Preser","N"]
[1570060001,"157CivilLib0001","CRS Civil Library-GF","CRS Dir","157","1220","P",null,null,null,null,null,null,false,0,"X",1570060001,"CRS Civil Library-GF","N"]
[1570060100,"157CivilLib0100","CRS Civil Library-Law Library Fd","CRS Dir","157","1220","P",null,null,null,null,null,null,false,0,"X",1570060100,"CRS Civil Library-Law Library Fd","N"]
[1570062033,"157CivilLib2033","CRS Civil Library-Tx Edu Ag Grant","CRS Dir","157","1220","P",null,null,null,null,null,null,false,0,"",1570062033,"CRS Civil Library-Tx Edu Ag Grant","N"]
[1570070001,"157CrmLib0001","CRS Criminal Library-GF","CRS Dir","157","1210","P",null,null,null,null,null,null,false,0,"X",1570070001,"CRS Criminal Library-GF","N"]
[1570070100,"157CrmLib0100","CRS Criminal Library-Law Library Fd","CRS Dir","157","1210","P",null,null,null,null,null,null,false,0,"X",1570070100,"CRS Criminal Library-Law Library Fd","N"]
[1570080001,"157Mail0001","CRS Mail-GF","CRS Dir","157","1110","P",null,null,null,null,null,null,false,0,"X",1570080001,"CRS Mail-GF","N"]
[1570090001,"157Media0001","CRS Media-GF","CRS Dir","157","1110","P",null,null,null,null,null,null,false,0,"X",1570090001,"CRS Media-GF","N"]
[1570094063,"157Media4063","CRS Media-CO 2010-Nontax","CRS Dir","157","1110","P",null,null,null,null,null,null,false,0,"X",1570094063,"CRS Media-CO 2010-Nontax","N"]
[1570100001,"157RcrdsCsltg0001","CRS Records/Consulting-GF","CRS Dir","157","1110","P",null,null,null,null,null,null,false,0,"X",1570100001,"CRS Records/Consulting-GF","N"]
[1570100004,"157RcrdsCsltg0004","CRS Records/Consulting-Cty Clrk Arch Fd","Chief Info Ofr","157","1110","P",null,null,null,null,null,null,false,0,"X",1570100004,"CRS Records/Consulting-Cty Clrk Arch Fd","N"]
[1570100108,"157RcrdsCsltg0108","CRS Records/Consulting-Recs Mgmt Fd","CRS Dir","157","1110","P",null,null,null,null,null,null,false,0,"X",1570100108,"CRS Records/Consulting-Recs Mgmt Fd","N"]
[1570100110,"157RcrdsCsltg0110","CRS Records/Consulting-Recs Mgmt Preser","CRS Dir","157","1110","P",null,null,null,null,null,null,false,0,"X",1570100110,"CRS Records/Consulting-Recs Mgmt Preser","N"]
[1570100129,"157RcrdsCsltg0129","CRS Records/Consulting-CCk Arch Fd","CRS Dir","157","1110","P",null,null,null,null,null,null,false,0,"X",1570100129,"CRS Records/Consulting-CCk Arch Fd","N"]
[1570100141,"157RcrdsCsltg0141","CRS Records/Consulting-Ct Rec Preser","CRS Dir","157","1110","P",null,null,null,null,null,null,false,0,"X",1570100141,"CRS Records/Consulting-Ct Rec Preser","N"]
[1570100160,"157RcrdsCsltg0160","CRS Records/Consulting-TC RecMgmt&Pres","CRS Dir","157","1110","P",null,null,null,null,null,null,false,0,"X",1570100160,"CRS Records/Consulting-TC RecMgmt&Pres","N"]
[1570110001,"157Printing0001","RMCR Printing-GF","RMCR Dir","157","1110","P",null,null,null,null,null,null,false,0,"X",1570110001,"RMCR Printing-GF","N"]
[1570110002,"157Printing0002","CRS Printing-700 Lavaca Complex","CRS Dir","157","1110","P",null,null,null,null,null,null,false,0,"X",1570110002,"CRS Printing-700 Lavaca Complex","N"]
[1570118956,"157Printing8956","CRS Printing-Employee Health Ben Fd","CRS Dir","157","1110","P",null,null,null,null,null,null,false,0,"X",1570118956,"CRS Printing-Employee Health Ben Fd","N"]
[1578000001,"157CARGenAdm0001","CRS CAR-GenAdm GF","CRS Dir","157","1110","C",null,null,null,null,null,null,false,"CAR","X",1578000001,"CRS CAR-GenAdm GF","N"]
[1580010001,"158CEAdm0001","HHS County Executive Adm-GF","County Exec HHS","158","1530","P",null,null,null,null,null,null,false,0,"X",1580010001,"HHS County Executive Adm-GF","N"]
[1580012057,"158CEAdm2057","HHS County Executive Adm-COA HHS Grant","County Exec HHS","158","1530","P",null,null,null,null,null,null,false,0,"",1580012057,"HHS County Executive Adm-COA HHS Grant","N"]
[1580014014,"158CEAdm4014","HHS County Executive Adm-CO 1997","County Exec HHS","158","1530","P",null,null,null,null,null,null,false,0,"X",1580014014,"HHS County Executive Adm-CO 1997","N"]
[1580020001,"158HumRsrcs0001","HHS Human Resource-GF","County Exec HHS","158","1530","P",null,null,null,null,null,null,false,0,"X",1580020001,"HHS Human Resource-GF","N"]
[1580030001,"158Finance0001","HHS Finance-GF","County Exec HHS","158","1530","P",null,null,null,null,null,null,false,0,"X",1580030001,"HHS Finance-GF","N"]
[1580040001,"158RshandPlng0001","HHS Research and Planning-GF","County Exec HHS","158","1510","P",null,null,null,null,null,null,false,0,"X",1580040001,"HHS Research and Planning-GF","N"]
[1580050001,"158Facilities0001","HHS Facilities-GF","County Exec HHS","158","1530","P",null,null,null,null,null,null,false,0,"X",1580050001,"HHS Facilities-GF","N"]
[1580060001,"158CDBGPlng0001","HHS CDBG Planning-GF","County Exec HHS","158","1530","P",null,null,null,null,null,null,false,0,"X",1580060001,"HHS CDBG Planning-GF","N"]
[1580062035,"158CDBGPlng2035","HHS CDBG Planning-Tx Hist Cmn Grant","County Exec HHS","158","1530","P",null,null,null,null,null,null,false,0,"",1580062035,"HHS CDBG Planning-Tx Hist Cmn Grant","N"]
[1580062054,"158CDBGPlng2054","HHS CDBG Planning-HUD Grant","County Exec HHS","158","1530","P",null,null,null,null,null,null,false,0,"",1580062054,"HHS CDBG Planning-HUD Grant","N"]
[1580070001,"158PubHlth0001","HHS Public Health Mgr-GF","County Exec HHS","158","1530","P",null,null,null,null,null,null,false,0,"X",1580070001,"HHS Public Health Mgr-GF","N"]
[1580080001,"158PubHlthCOAAdm0001","HHS Public Health Adm COA-GF","County Exec HHS","158","1530","P",null,null,null,null,null,null,false,0,"X",1580080001,"HHS Public Health Adm COA-GF","N"]
[1580090001,"158COAPbcHlh0001","HHS Inter COA Public Hlh-GF","County Exec HHS","158","1520","P",null,null,null,null,null,null,false,0,"X",1580090001,"HHS Inter COA Public Hlh-GF","N"]
[1580100001,"158FSSAdmSv0001","HHS FSS-Adm Svs-GF","County Exec HHS","158","1530","P",null,null,null,null,null,null,false,0,"X",1580100001,"HHS FSS-Adm Svs-GF","N"]
[1580102000,"158FSSAdmSv2000","HHS FSS-Adm Svs-Atmos Grant","County Exec HHS","158","1530","P",null,null,null,null,null,null,false,0,"",1580102000,"HHS FSS-Adm Svs-Atmos Grant","N"]
[1580102010,"158FSSAdmSv2010","HHS FSS-Adm Svs-Emrg Food&Shelter Grnt","County Exec HHS","158","1530","P",null,null,null,null,null,null,false,0,"",1580102010,"HHS FSS-Adm Svs-Emrg Food&Shelter Grnt","N"]
[1580102025,"158FSSAdmSv2025","HHS FSS-Adm Svs-TCEQ Grant","County Exec HHS","158","1530","P",null,null,null,null,null,null,false,0,"",1580102025,"HHS FSS-Adm Svs-TCEQ Grant","N"]
[1580102034,"158FSSAdmSv2034","HHS FSS-Adm Svs-Tx Gas Grant","County Exec HHS","158","1530","P",null,null,null,null,null,null,false,0,"",1580102034,"HHS FSS-Adm Svs-Tx Gas Grant","N"]
[1580102049,"158FSSAdmSv2049","HHS FSS-Adm Svs-TXU Grant","County Exec HHS","158","1530","P",null,null,null,null,null,null,false,0,"",1580102049,"HHS FSS-Adm Svs-TXU Grant","N"]
[1580102061,"158FSSAdmSv2061","HHS FSS-Adm Svs-TDHCA-USHHS Grant","County Exec HHS","158","1530","P",null,null,null,null,null,null,false,0,"",1580102061,"HHS FSS-Adm Svs-TDHCA-USHHS Grant","N"]
[1580102062,"158FSSAdmSv2062","HHS FSS-Adm Svs-TDHCA-USHUD Grant","County Exec HHS","158","1530","P",null,null,null,null,null,null,false,0,"",1580102062,"HHS FSS-Adm Svs-TDHCA-USHUD Grant","N"]
[1580110001,"158FSSCaseM0001","HHS FSS-Case Mgmt-GF","County Exec HHS","158","1530","I",null,null,null,null,null,null,false,0,"X",1580110001,"HHS FSS-Case Mgmt-GF","N"]
[1580120001,"158EstRCmtyCtr0001","HHS FSS-East Rural Cmty CT-GF","County Exec HHS","158","1530","I",null,null,null,null,null,null,false,0,"X",1580120001,"HHS FSS-East Rural Cmty CT-GF","N"]
[1580130001,"158NthRCmtyCtr0001","HHS FSS-North Rural Cmty Ctr-GF","County Exec HHS","158","1530","I",null,null,null,null,null,null,false,0,"X",1580130001,"HHS FSS-North Rural Cmty Ctr-GF","N"]
[1580140001,"158NWRCmtyCtr0001","HHS FSS-Northwest Rural Cmty Ctr-GF","County Exec HHS","158","1530","I",null,null,null,null,null,null,false,0,"X",1580140001,"HHS FSS-Northwest Rural Cmty Ctr-GF","N"]
[1580150001,"158PSqCmtyCtr0001","HHS FSS-Palm Square Cmty Ctr-GF","County Exec HHS","158","1530","I",null,null,null,null,null,null,false,0,"X",1580150001,"HHS FSS-Palm Square Cmty Ctr-GF","N"]
[1580160001,"158PstRdCmtyCtr0001","HHS FSS-Post Road Cmty Ctr-GF","County Exec HHS","158","1530","I",null,null,null,null,null,null,false,0,"X",1580160001,"HHS FSS-Post Road Cmty Ctr-GF","N"]
[1580170001,"158SthRCmtyCtr0001","HHS FSS-South Rural Cmty Ctr-GF","County Exec HHS","158","1530","I",null,null,null,null,null,null,false,0,"X",1580170001,"HHS FSS-South Rural Cmty Ctr-GF","N"]
[1580180001,"158WstRCmtyCtr0001","HHS FSS-West Rural Cmty Ctr-GF","County Exec HHS","158","1530","I",null,null,null,null,null,null,false,0,"X",1580180001,"HHS FSS-West Rural Cmty Ctr-GF","N"]
[1580190001,"158OCSAdm0001","HHS Ofc of Children's Svs Adm-GF","County Exec HHS","158","1530","P",null,null,null,null,null,null,false,0,"X",1580190001,"HHS Ofc of Children's Svs Adm-GF","N"]
[1580192001,"158OCSAdm2001","HHS OCS Adm-ATCIC Grant","County Exec HHS","158","1530","P",null,null,null,null,null,null,false,0,"",1580192001,"HHS OCS Adm-ATCIC Grant","N"]
[1580192005,"158OCSAdm2005","HHS OCS Adm-Casey Family Pgs Grant","County Exec HHS","158","1530","P",null,null,null,null,null,null,false,0,"",1580192005,"HHS OCS Adm-Casey Family Pgs Grant","N"]
[1580192011,"158OCSAdm2011","HHS OCS Adm-Milburn Grant","County Exec HHS","158","1530","P",null,null,null,null,null,null,false,0,"",1580192011,"HHS OCS Adm-Milburn Grant","N"]
[1580192046,"158OCSAdm2046","HHS OCS Adm-Tx Dpt of F&PS Grant","County Exec HHS","158","1530","P",null,null,null,null,null,null,false,0,"",1580192046,"HHS OCS Adm-Tx Dpt of F&PS Grant","N"]
[1580192055,"158OCSAdm2055","HHS OCS Adm-US Dpt of HHS Grant","County Exec HHS","158","1530","P",null,null,null,null,null,null,false,0,"",1580192055,"HHS OCS Adm-US Dpt of HHS Grant","N"]
[1580192085,"158OCSAdm2085","HHS OCS Adm-ATCIC Grant","County Exec HHS","158","1530","P",null,null,null,null,null,null,false,0,"",1580192085,"HHS OCS Adm-ATCIC Grant","N"]
[1580200001,"158OCSCPSBd0001","HHS OCS Adm CPS Board-GF","County Exec HHS","158","1230","P",null,null,null,null,null,null,false,0,"X",1580200001,"HHS OCS Adm CPS Board-GF","N"]
[1580200155,"158OCSCPSCWJD0155","HHS OCS Adm CPS Board-CWJD","County Exec HHS","158","1230","P",null,null,null,null,null,null,false,0,"X",1580200155,"HHS OCS Adm CPS Board-CWJD","N"]
[1580210001,"158HmVist0001","HHS Home Visiting Program-GF","County Exec HHS","158","1530","P",null,null,null,null,null,null,false,0,"X",1580210001,"HHS Home Visiting Program-GF","N"]
[1580220001,"158P&I0001","HHS Prevention & Intervention-GF","County Exec HHS","158","1530","P",null,null,null,null,null,null,false,0,"X",1580220001,"HHS Prevention & Intervention-GF","N"]
[1580230001,"158FIRST0001","HHS Family First","County Exec HHS","158","1230","P",null,null,null,null,null,null,false,0,"X",1580230001,"HHS Family First","N"]
[1580240001,"158HF10001","HHS Healthy Families 1-GF","County Exec HHS","158","1530","P",null,null,null,null,null,null,false,0,"X",1580240001,"HHS Healthy Families 1-GF","N"]
[1580240135,"158HF10135","HHS Healthy Families 1-Ch Abs Prev Fd","County Exec HHS","158","1530","P",null,null,null,null,null,null,false,0,"X",1580240135,"HHS Healthy Families 1-Ch Abs Prev Fd","N"]
[1580250001,"158HF20001","HHS Healthy Families 2-GF","County Exec HHS","158","1530","P",null,null,null,null,null,null,false,0,"X",1580250001,"HHS Healthy Families 2-GF","N"]
[1580260001,"158SysCI0001","HHS System of Care initiatives-GF","County Exec HHS","158","1530","P",null,null,null,null,null,null,false,0,"X",1580260001,"HHS System of Care initiatives-GF","N"]
[1580270001,"158CmtySv0001","HHS Community Svs Adm-GF","County Exec HHS","158","1530","P",null,null,null,null,null,null,false,0,"X",1580270001,"HHS Community Svs Adm-GF","N"]
[1580280001,"158NCC0001","HHS Neighborhood Conf Comm-GF","County Exec HHS","158","1530","P",null,null,null,null,null,null,false,0,"X",1580280001,"HHS Neighborhood Conf Comm-GF","N"]
[1580290001,"158WBL0001","HHS Work Based Learning-GF","County Exec HHS","158","1530","P",null,null,null,null,null,null,false,0,"X",1580290001,"HHS Work Based Learning-GF","N"]
[1580300001,"158engAGE0001","HHS engAGE - GF","County Exec HHS","158","1530","P",null,null,null,null,null,null,false,0,"X",1580300001,"HHS engAGE - GF","N"]
[1580302008,"158CmgAge2008","HHS CmgAge-CmgAge Austin Metro Grant","County Exec HHS","158","1530","P",null,null,null,null,null,null,false,0,"",1580302008,"HHS CmgAge-CmgAge Austin Metro Grant","N"]
[1580302009,"158CmgAge2009","HHS CmgAge-Corp Natl & Cmty Sv Grant","County Exec HHS","158","1530","P",null,null,null,null,null,null,false,0,"",1580302009,"HHS CmgAge-Corp Natl & Cmty Sv Grant","N"]
[1580302030,"158CmgAge2030","HHS CmgAge-UNT Fed Grant","County Exec HHS","158","1530","P",null,null,null,null,null,null,false,0,"",1580302030,"HHS CmgAge-UNT Fed Grant","N"]
[1580302044,"158CmgAge2044","HHS CmgAge-Tx Dpt on A&DS Grant","County Exec HHS","158","1530","P",null,null,null,null,null,null,false,0,"",1580302044,"HHS CmgAge-Tx Dpt on A&DS Grant","N"]
[1580302093,"158CmgAge2093","DSHS CmgAge-UNT St Grant","County Exec HHS","158","1530","P",null,null,null,null,null,null,false,0,"",1580302093,"DSHS CmgAge-UNT St Grant","N"]
[1580310001,"158DeafSvs0001","HHS Deaf Svs-GF","County Exec HHS","158","1530","P",null,null,null,null,null,null,false,0,"X",1580310001,"HHS Deaf Svs-GF","N"]
[1580320001,"158HSAdm0001","HHS Housing Adm-GF","County Exec HHS","158","1530","P",null,null,null,null,null,null,false,0,"X",1580320001,"HHS Housing Adm-GF","N"]
[1580330001,"158HsgRepair0001","HHS Housing Repair-GF","County Exec HHS","158","1530","P",null,null,null,null,null,null,false,0,"X",1580330001,"HHS Housing Repair-GF","N"]
[1580332043,"158HsgRepair2043","HHS Housing Repair-TACAA Grant","County Exec HHS","158","1530","P",null,null,null,null,null,null,false,0,"",1580332043,"HHS Housing Repair-TACAA Grant","N"]
[1580332047,"158HsgRepair2047","HHS Housing Repair-TDHCA-DOE Grant","County Exec HHS","158","1530","P",null,null,null,null,null,null,false,0,"",1580332047,"HHS Housing Repair-TDHCA-DOE Grant","N"]
[1580332061,"158HsgRepair2061","HHS Housing Repair-TDHCA-USHHS Grant","County Exec HHS","158","1530","I",null,null,null,null,null,null,false,0,"",1580332061,"HHS Housing Repair-TDHCA-USHHS Grant","N"]
[1580340001,"158COAWea0001","HHS COA Weatherization Interlocal-GF","County Exec HHS","158","1530","P",null,null,null,null,null,null,false,0,"X",1580340001,"HHS COA Weatherization Interlocal-GF","N"]
[1580350138,"158EHSConsumProt0138","HHS EHS Consmr/Comm Prot-Hlthfd Prmts","County Exec HHS","158","1520","P",null,null,null,null,null,null,false,0,"X",1580350138,"HHS EHS Consmr/Comm Prot-Hlthfd Prmts","N"]
[1580360138,"158AdmATCHHS0138","HHS Adm ATCHHS-Hlthfd Prmts","County Exec HHS","158","1530","P",null,null,null,null,null,null,false,0,"X",1580360138,"HHS Adm ATCHHS-Hlthfd Prmts","N"]
[1580370001,"158PrbSvs0001","HHS Probation Svs-GF","County Exec HHS","158","1530","P",null,null,null,null,null,null,false,0,"X",1580370001,"HHS Probation Svs-GF","N"]
[1580380001,"158ClinicSvs0001","HHS Clinic Services-GF","County Exec HHS","158","1510","P",null,null,null,null,null,null,false,0,"X",1580380001,"HHS Clinic Services-GF","N"]
[1580390001,"158CDPSImmun0001","HHS CDPS Immunization Svs-GF","County Exec HHS","158","1530","P",null,null,null,null,null,null,false,0,"X",1580390001,"HHS CDPS Immunization Svs-GF","N"]
[1580400001,"158HthDstSvs0001","HHS Health District Svs-GF","County Exec HHS","158","1510","P",null,null,null,null,null,null,false,0,"X",1580400001,"HHS Health District Svs-GF","N"]
[1580410001,"158VetSvsAdm0001","HHS Veterans Service Adm-GF","County Exec HHS","158","1530","P",null,null,null,null,null,null,false,0,"X",1580410001,"HHS Veterans Service Adm-GF","N"]
[1580412053,"158VetSvsAdm2053","HHS-Veterans Services Adm-US DOL Grant","County Exec HHS","158","1530","P",null,null,null,null,null,null,false,0,"",1580412053,"HHS-Veterans Services Adm-US DOL Grant","N"]
[1580420001,"158HHS-TAESAdm0001","HHS Texas Ag Ext Svs Adm-GF","County Exec HHS","158","1530","P",null,null,null,null,null,null,false,0,"X",1580420001,"HHS Texas Ag Ext Svs Adm-GF","N"]
[1580430001,"158HortPgs0001","HHS TAES Agr/Horticulture Pgs-GF","County Exec HHS","158","1530","P",null,null,null,null,null,null,false,0,"X",1580430001,"HHS TAES Agr/Horticulture Pgs-GF","N"]
[1580432020,"158HortPgs2020","HHS TAES Agr/Hort Pgs-Onestar Grnt","County Exec HHS","158","1530","P",null,null,null,null,null,null,false,0,"",1580432020,"HHS TAES Agr/Hort Pgs-Onestar Grnt","N"]
[1580440001,"1584HYouth0001","HHS TAES 4-H and Youth Dev Pg-GF","County Exec HHS","158","1530","P",null,null,null,null,null,null,false,0,"X",1580440001,"HHS TAES 4-H and Youth Dev Pg-GF","N"]
[1580440149,"1584HYouth0149","HHS TAES 4-H and Youth Dev Pg-AYES Fd","County Exec HHS","158","1530","P",null,null,null,null,null,null,false,0,"X",1580440149,"HHS TAES 4-H and Youth Dev Pg-AYES Fd","N"]
[1580450001,"158FamConsSciPg0001","HHS TAES Family & Consumer Sci Pg-GF","County Exec HHS","158","1530","P",null,null,null,null,null,null,false,0,"X",1580450001,"HHS TAES Family & Consumer Sci Pg-GF","N"]
[1580460001,"158MediaSvs0001","HHS TAES Media Services-GF","County Exec HHS","158","1530","P",null,null,null,null,null,null,false,0,"X",1580460001,"HHS TAES Media Services-GF","N"]
[1580470001,"158IntPestMgmt0001","HHS TAES Integrated Pest Mgmt Pg-GF","County Exec HHS","158","1530","P",null,null,null,null,null,null,false,0,"X",1580470001,"HHS TAES Integrated Pest Mgmt Pg-GF","N"]
[1580480001,"158WldlfMgmtSv0001","HHS TAES Wildlife Mgmt Sv-GF","County Exec HHS","158","1530","P",null,null,null,null,null,null,false,0,"X",1580480001,"HHS TAES Wildlife Mgmt Sv-GF","N"]
[1580490001,"158NutHlth0001","HHS TAES Nutrition & Health-GF","County Exec HHS","158","1530","P",null,null,null,null,null,null,false,0,"X",1580490001,"HHS TAES Nutrition & Health-GF","N"]
[1580500001,"158TCPTRIAD0001","HHS TCP / TRIAD-GF","County Exec HHS","158","1530","P",null,null,null,null,null,null,false,0,"X",1580500001,"HHS TCP / TRIAD-GF","N"]
[1580510001,"158CmtyLiaison0001","HHS Community Liaison-GF","County Exec HHS","158","1530","P",null,null,null,null,null,null,false,0,"X",1580510001,"HHS Community Liaison-GF","N"]
[1580520001,"158CPSCO0001","HHS CPS Court Ordered-GF","County Exec HHS","158","1230","P",null,null,null,null,null,null,false,0,"X",1580520001,"HHS CPS Court Ordered-GF","N"]
[1580530001,"158CPSTitle4E0001","HHS CPS Title 4E-GF","County Exec HHS","158","1230","P",null,null,null,null,null,null,false,0,"X",1580530001,"HHS CPS Title 4E-GF","N"]
[1580540001,"158SSCntrc0001","HHS Social Service Contracts-GF","County Exec HHS","158","1530","P",null,null,null,null,null,null,false,0,"X",1580540001,"HHS Social Service Contracts-GF","N"]
[1580550001,"158COAHlhcare0001","HHS Inter COA Healthcare-GF","County Exec HHS","158","1510","P",null,null,null,null,null,null,false,0,"X",1580550001,"HHS Inter COA Healthcare-GF","N"]
[1580560001,"158COAHumanSv0001","HHS Inter COA Human Svs-GF","County Exec HHS","158","1530","P",null,null,null,null,null,null,false,0,"X",1580560001,"HHS Inter COA Human Svs-GF","N"]
[1580570001,"158ChiefDeputy0001","HHS Chief Deputy Dir. - GF","County Exec HHS","158","1530","P",null,null,null,null,null,null,false,0,"X",1580570001,"HHS Chief Deputy Dir. - GF","N"]
[1580580001,"158SSCWkfDev0001","HHS SSC - Workforce Development-GF","County Exec HHS","158","1530","P",null,null,null,null,null,null,false,0,"X",1580580001,"HHS SSC - Workforce Development-GF","N"]
[1580590001,"158SSCSupSvcComLiv01","HHS SSC-Supportive Svcs for Com Livng-GF","County Exec HHS","158","1530","P",null,null,null,null,null,null,false,0,"X",1580590001,"HHS SSC-Supportive Svcs for Com Livng-GF","N"]
[1580600001,"158SSCHolFamSvc0001","HHS SSC - Holistic Family Services-GF","County Exec HHS","158","1530","P",null,null,null,null,null,null,false,0,"X",1580600001,"HHS SSC - Holistic Family Services-GF","N"]
[1580610001,"158SSCPubHlthSS0001","HHS SSC - Public Health Social Servcs-GF","County Exec HHS","158","1530","P",null,null,null,null,null,null,false,0,"X",1580610001,"HHS SSC - Public Health Social Servcs-GF","N"]
[1580620001,"158SSCSafIntervSvc01","HHS SSC - Safety Intervention Servcs-GF","County Exec HHS","158","1530","P",null,null,null,null,null,null,false,0,"X",1580620001,"HHS SSC - Safety Intervention Servcs-GF","N"]
[1580630001,"158SSCHousCont0001","HHS SSC - Housing Continuum-GF","County Exec HHS","158","1530","P",null,null,null,null,null,null,false,0,"X",1580630001,"HHS SSC - Housing Continuum-GF","N"]
[1580640001,"158SSCAccBasSupp0001","HHS SSC - Access to Basic Supports-GF","County Exec HHS","158","1530","P",null,null,null,null,null,null,false,0,"X",1580640001,"HHS SSC - Access to Basic Supports-GF","N"]
[1580650001,"158SSCChYthDev0001","HHS SSC - Child and Youth Development-GF","County Exec HHS","158","1530","P",null,null,null,null,null,null,false,0,"X",1580650001,"HHS SSC - Child and Youth Development-GF","N"]
[1580660001,"158SSCBehHlth0001","HHS SSC - Behavioral Health-GF","County Exec HHS","158","1530","P",null,null,null,null,null,null,false,0,"X",1580660001,"HHS SSC - Behavioral Health-GF","N"]
[1580700001,"158OPIOIDABATE0001","HHS Opioid Abatement","County Exec HHS","158","1530","P",null,null,null,null,null,null,false,0,"X",1580700001,"HHS Opioid Abatement","N"]
[1588010001,"158CAR0001","HHS CAR-HumanSrvcs GF","County Exec HHSVS","158","1530","C",null,null,null,null,null,null,false,"CAR","X",1588010001,"HHS CAR-HumanSrvcs GF","N"]
[1590010000,"159StFltCPProj0000","EMS Starflight – Capital Proj","Star Flight Prgm Dir","159","1510","P",null,null,null,null,null,null,false,0,0,1590010000,"EMS Starflight – Capital Proj","N"]
[1590010001,"159StFltAdm0001","EMS Star Flight Administrative-GF","Star Flight Prgm Dir","159","1510","P",null,null,null,null,null,null,false,0,"X",1590010001,"EMS Star Flight Administrative-GF","N"]
[1590012017,"159StFltOptgs2017","EMS StarFlight-OOG Div of Emergency Mgmt","Star Flight Prgm Dir","159","1510","P",null,null,null,null,null,null,false,0,"",1590012017,"EMS StarFlight-OOG Div of Emergency Mgmt","N"]
[1590012017,"159StFltOptgs2017","EMS StarFlight-OOG Div of Emergency Mgmt","Star Flight Prgm Dir","159","1510","P",null,null,null,null,null,null,false,0,"",1590012017,"EMS StarFlight-OOG Div of Emergency Mgmt","N"]
[1590012018,"159StFltOptgs2018","EMS StarFlight-OOG Div Emrg Fed Cap Grnt","Star Flight Prgm Dir","159","1510","P",null,null,null,null,null,null,false,0,"",1590012018,"EMS StarFlight-OOG Div Emrg Fed Cap Grnt","N"]
[1590012048,"159StFltOptgs2048","EMS StarFlight-CATRAC","Star Flight Prgm Dir","159","1510","P",null,null,null,null,null,null,false,0,"",1590012048,"EMS StarFlight-CATRAC","N"]
[1590014044,"159StFltOptgs4044","EMS Star Flight-CO 2005","Star Flight Prgm Dir","159","1510","P",null,null,null,null,null,null,false,0,"X",1590014044,"EMS Star Flight-CO 2005","N"]
[1590014063,"159StFltOptgs4063","EMS Star Flight-CO 2010-Nontax","Star Flight Prgm Dir","159","1510","P",null,null,null,null,null,null,false,0,"X",1590014063,"EMS Star Flight-CO 2010-Nontax","N"]
[1590020001,"159StFltOps0001","EMS Star Flight Operations-GF","Star Flight Prgm Dir","159","1510","P",null,null,null,null,null,null,false,0,"X",1590020001,"EMS Star Flight Operations-GF","N"]
[1590030001,"159StFltPilots0001","EMS Star Flight Pilots-GF","Star Flight Prgm Dir","159","1510","P",null,null,null,null,null,null,false,0,"X",1590030001,"EMS Star Flight Pilots-GF","N"]
[1590040001,"159StFltNurses0001","EMS Star Flight Nurses-GF","Star Flight Prgm Dir","159","1510","P",null,null,null,null,null,null,false,0,"X",1590040001,"EMS Star Flight Nurses-GF","N"]
[1590050001,"159StFltParMed0001","EMS Star Flight Paramedics-GF","Star Flight Prgm Dir","159","1510","P",null,null,null,null,null,null,false,0,"X",1590050001,"EMS Star Flight Paramedics-GF","N"]
[1590060001,"159StFltMnt0001","EMS Star Flight Maintenance-GF","Star Flight Prgm Dir","159","1510","P",null,null,null,null,null,null,false,0,"X",1590060001,"EMS Star Flight Maintenance-GF","N"]
[1590070001,"159IntLocalSvs0001","EMS Star Flight Interlocal Svs-GF","Star Flight Prgm Dir","159","1510","P",null,null,null,null,null,null,false,0,"X",1590070001,"EMS Star Flight Interlocal Svs-GF","N"]
[1590080001,"159EMS0001","EMS Emrg Med Sv-GF","Star Flight Prgm Dir","159","1510","P",null,null,null,null,null,null,false,0,"X",1590080001,"EMS Emrg Med Sv-GF","N"]
[1590084002,"159EMS4002","EMS Emrg Med Sv-CO 2006","Star Flight Prgm Dir","159","1510","P",null,null,null,null,null,null,false,0,"X",1590084002,"EMS Emrg Med Sv-CO 2006","N"]
[1590084052,"159EMS4052","EMS Emrg Med Sv-CO 2007","Star Flight Prgm Dir","159","1510","P",null,null,null,null,null,null,false,0,"X",1590084052,"EMS Emrg Med Sv-CO 2007","N"]
[1590084059,"159EMS4059","EMS Emrg Med Sv-CO 2009","Star Flight Prgm Dir","159","1510","P",null,null,null,null,null,null,false,0,"X",1590084059,"EMS Emrg Med Sv-CO 2009","N"]
[1590084068,"159EMS4068","EMS Emrg Med Sv-CO 2011","Star Flight Prgm Dir","159","1510","P",null,null,null,null,null,null,false,0,"X",1590084068,"EMS Emrg Med Sv-CO 2011","N"]
[1590090001,"159ESD0001","EMS Emergency Service Districts-GF","Star Flight Prgm Dir","159","1510","P",null,null,null,null,null,null,false,0,"X",1590090001,"EMS Emergency Service Districts-GF","N"]
[1590100001,"159DCPE0001","EMS Clin Perf & Educ-GF","Star Flight Prgm Dir","159","1510","P",null,null,null,null,null,null,false,0,"X",1590100001,"EMS Clin Perf & Educ-GF","N"]
[1590110000,"159EMS0000","EMS Emrg Fire Svcs","Star Flight Prgm Dir","159","1320","P",null,null,null,null,null,null,false,0,0,1590110000,"EMS Emrg Fire Svcs","N"]
[1590110001,"159EMS0001","EMS Emrg Fire Sv-GF","Star Flight Prgm Dir","159","1320","P",null,null,null,null,null,null,false,0,"X",1590110001,"EMS Emrg Fire Sv-GF","N"]
[1598000001,"159CAR0DevRegln001","EMS CAR-DevRegIn GF","Star Flight Prgm Dir","159","1510","C",null,null,null,null,null,null,false,"CAR","X",1598000001,"EMS CAR-DevRegIn GF","N"]
[1599000001,"159ReimburseRes0001","EMS Reimbursement Resolution Funds-GF","Star Flight Prgm Dir","159","1510","R",null,null,null,null,null,null,false,0,"X",1599000001,"EMS Reimbursement Resolution Funds-GF","N"]
[1901100000,"190-101GenAdm0000","Ctl Computer-County Judge-GenAdm","Chief Info Ofr","190","1110","P",null,null,null,null,null,null,false,0,0,1901100000,"Ctl Computer-County Judge-GenAdm",""]
[1901110000,"190-101JuvSvs0000","Ctl Computer-County Judge-JuvSvs","Chief Info Ofr","190","1230","P",null,null,null,null,null,null,false,0,0,1901110000,"Ctl Computer-County Judge-JuvSvs",""]
[1901120000,"190-102GenAdm0000","Ctl Computer-CC Pct 1-GenAdm","Chief Info Ofr","190","1110","P",null,null,null,null,null,null,false,0,0,1901120000,"Ctl Computer-CC Pct 1-GenAdm",""]
[1901130000,"190-103GenAdm0000","Ctl Computer-CC Pct 2-GenAdm","Chief Info Ofr","190","1110","P",null,null,null,null,null,null,false,0,0,1901130000,"Ctl Computer-CC Pct 2-GenAdm",""]
[1901140000,"190-104GenAdm0000","Ctl Computer-CC Pct 3-GenAdm","Chief Info Ofr","190","1110","P",null,null,null,null,null,null,false,0,0,1901140000,"Ctl Computer-CC Pct 3-GenAdm",""]
[1901150000,"190-105GenAdm0000","Ctl Computer-CC Pct 4-GenAdm","Chief Info Ofr","190","1110","P",null,null,null,null,null,null,false,0,0,1901150000,"Ctl Computer-CC Pct 4-GenAdm",""]
[1901160000,"190-106FinAdm0000","Ctl Computer-County Auditor-FinAdm","Chief Info Ofr","190","1120","P",null,null,null,null,null,null,false,0,0,1901160000,"Ctl Computer-County Auditor-FinAdm",""]
[1901170000,"190-107FinAdm0000","Ctl Computer-County Treasurer-FinAdm","Chief Info Ofr","190","1120","P",null,null,null,null,null,null,false,0,0,1901170000,"Ctl Computer-County Treasurer-FinAdm",""]
[1901180000,"190-108TaxAdm0000","Ctl Computer-Tax Collector-TaxAdm","Chief Info Ofr","190","1130","P",null,null,null,null,null,null,false,0,0,1901180000,"Ctl Computer-Tax Collector-TaxAdm",""]
[1901190000,"190-108CrmJs0000","Ctl Computer-Tax Collector-CrmJs","Chief Info Ofr","190","1210","P",null,null,null,null,null,null,false,0,0,1901190000,"Ctl Computer-Tax Collector-CrmJs",""]
[1901200000,"190-108ElnAdm0000","Ctl Computer-Tax Collector-ElnAdm","Chief Info Ofr","190","1150","P",null,null,null,null,null,null,false,0,0,1901200000,"Ctl Computer-Tax Collector-ElnAdm",""]
[1901210000,"190-109FinAdm0000","Ctl Computer-Planning And Budget-FinAdm","Chief Info Ofr","190","1120","P",null,null,null,null,null,null,false,0,0,1901210000,"Ctl Computer-Planning And Budget-FinAdm",""]
[1901220000,"190-110GenAdm0000","Ctl Computer-General Adm-GenAdm","Chief Info Ofr","190","1110","P",null,null,null,null,null,null,false,0,0,1901220000,"Ctl Computer-General Adm-GenAdm",""]
[1901230000,"190-110Hlhcare0000","Ctl Computer-General Adm-Hlhcare","Chief Info Ofr","190","1510","P",null,null,null,null,null,null,false,0,0,1901230000,"Ctl Computer-General Adm-Hlhcare",""]
[1901240000,"190-110EconDev0000","Ctl Computer-General Adm-EconDev","Chief Info Ofr","190","1610","P",null,null,null,null,null,null,false,0,0,1901240000,"Ctl Computer-General Adm-EconDev",""]
[1901250000,"190-111GenAdm0000","Ctl Computer-Human Resource Mgmt-GenAdm","Chief Info Ofr","190","1110","P",null,null,null,null,null,null,false,0,0,1901250000,"Ctl Computer-Human Resource Mgmt-GenAdm",""]
[1901260000,"190-112GenAdm0000","Ctl Computer-ITS-GenAdm","Chief Info Ofr","190","1110","P",null,null,null,null,null,null,false,0,0,1901260000,"Ctl Computer-ITS-GenAdm",""]
[1901270000,"190-113EconDev0000","Ctl Computer-EXPO Center-EconDev","Chief Info Ofr","190","1610","P",null,null,null,null,null,null,false,0,0,1901270000,"Ctl Computer-EXPO Center-EconDev",""]
[1901280000,"190-114FacMgmt0000","Ctl Computer-Facilities Mgmt-FacMgmt","Chief Info Ofr","190","1140","P",null,null,null,null,null,null,false,0,0,1901280000,"Ctl Computer-Facilities Mgmt-FacMgmt",""]
[1901290000,"190-114EconDev0000","Ctl Computer-Facilities Mgmt-EconDev","Chief Info Ofr","190","1610","P",null,null,null,null,null,null,false,0,0,1901290000,"Ctl Computer-Facilities Mgmt-EconDev",""]
[1901300000,"190-115FinAdm0000","Ctl Computer-Purchasing-FinAdm","Chief Info Ofr","190","1120","P",null,null,null,null,null,null,false,0,0,1901300000,"Ctl Computer-Purchasing-FinAdm",""]
[1901310000,"190-116HumanSvs00000","Ctl Computer-Veterans Services-HumanSvs","Chief Info Ofr","190","1530","P",null,null,null,null,null,null,false,0,0,1901310000,"Ctl Computer-Veterans Services-HumanSvs",""]
[1901320000,"190-117Cul&Edu0000","Ctl Computer-Historical Comm-Cul&Edu","Chief Info Ofr","190","1630","P",null,null,null,null,null,null,false,0,0,1901320000,"Ctl Computer-Historical Comm-Cul&Edu",""]
[1901330000,"190-118HumanSvs0000","Ctl Computer-Agr Ext Serv-HumanSvs","Chief Info Ofr","190","1530","P",null,null,null,null,null,null,false,0,0,1901330000,"Ctl Computer-Agr Ext Serv-HumanSvs",""]
[1901340000,"190-119CivJs0000","Ctl Computer-County Attorney-CivJs","Chief Info Ofr","190","1220","P",null,null,null,null,null,null,false,0,0,1901340000,"Ctl Computer-County Attorney-CivJs",""]
[1901350000,"190-119CrmJs0000","Ctl Computer-County Attorney-CrmJs","Chief Info Ofr","190","1210","P",null,null,null,null,null,null,false,0,0,1901350000,"Ctl Computer-County Attorney-CrmJs",""]
[1901360000,"190-120GenAdm0000","Ctl Computer-County Clerk-GenAdm","Chief Info Ofr","190","1110","P",null,null,null,null,null,null,false,0,0,1901360000,"Ctl Computer-County Clerk-GenAdm",""]
[1901370000,"190-120ElnAdm0000","Ctl Computer-County Clerk-ElnAdm","Chief Info Ofr","190","1150","P",null,null,null,null,null,null,false,0,0,1901370000,"Ctl Computer-County Clerk-ElnAdm",""]
[1901380000,"190-120CivJs0000","Ctl Computer-County Clerk-CivJs","Chief Info Ofr","190","1220","P",null,null,null,null,null,null,false,0,0,1901380000,"Ctl Computer-County Clerk-CivJs",""]
[1901390000,"190-120CrmJs0000","Ctl Computer-County Clerk-CrmJs","Chief Info Ofr","190","1210","P",null,null,null,null,null,null,false,0,0,1901390000,"Ctl Computer-County Clerk-CrmJs",""]
[1901400000,"190-121CivJs00000","Ctl Computer-District Clerk-CivJs","Chief Info Ofr","190","1220","P",null,null,null,null,null,null,false,0,0,1901400000,"Ctl Computer-District Clerk-CivJs",""]
[1901410000,"190-121CrmJs0000","Ctl Computer-District Clerk-CrmJs","Chief Info Ofr","190","1210","P",null,null,null,null,null,null,false,0,0,1901410000,"Ctl Computer-District Clerk-CrmJs",""]
[1901420000,"190-122CivJs0000","Ctl Computer-Civil Courts-CivJs","Chief Info Ofr","190","1220","P",null,null,null,null,null,null,false,0,0,1901420000,"Ctl Computer-Civil Courts-CivJs",""]
[1901430000,"190-123CrmJs0000","Ctl Computer-District Attorney-CrmJs","Chief Info Ofr","190","1210","P",null,null,null,null,null,null,false,0,0,1901430000,"Ctl Computer-District Attorney-CrmJs",""]
[1901440000,"190-123CivJs0000","Ctl Computer-District Attorney-CivJs","Chief Info Ofr","190","1220","P",null,null,null,null,null,null,false,0,0,1901440000,"Ctl Computer-District Attorney-CivJs",""]
[1901450000,"190-124CrmJs0000","Ctl Computer-Criminal Courts-CrmJs","Chief Info Ofr","190","1210","P",null,null,null,null,null,null,false,0,0,1901450000,"Ctl Computer-Criminal Courts-CrmJs",""]
[1901460000,"190-125CivJs0000","Ctl Computer-Probate Court-CivJs","Chief Info Ofr","190","1220","P",null,null,null,null,null,null,false,0,0,1901460000,"Ctl Computer-Probate Court-CivJs",""]
[1901470000,"190-126CivJs0000","Ctl Computer-Justice Of Peace 1-CivJs","Chief Info Ofr","190","1220","P",null,null,null,null,null,null,false,0,0,1901470000,"Ctl Computer-Justice Of Peace 1-CivJs",""]
[1901480000,"190-126CrmJs0000","Ctl Computer-Justice Of Peace 1-CrmJs","Chief Info Ofr","190","1210","P",null,null,null,null,null,null,false,0,0,1901480000,"Ctl Computer-Justice Of Peace 1-CrmJs",""]
[1901490000,"190-127CivJs0000","Ctl Computer-Justice Of Peace 2-CivJs","Chief Info Ofr","190","1220","P",null,null,null,null,null,null,false,0,0,1901490000,"Ctl Computer-Justice Of Peace 2-CivJs",""]
[1901500000,"190-127CrmJs0000","Ctl Computer-Justice Of Peace 2-CrmJs","Chief Info Ofr","190","1210","P",null,null,null,null,null,null,false,0,0,1901500000,"Ctl Computer-Justice Of Peace 2-CrmJs",""]
[1901510000,"190-128CivJs0000","Ctl Computer-Justice Of Peace 3-CivJs","Chief Info Ofr","190","1220","P",null,null,null,null,null,null,false,0,0,1901510000,"Ctl Computer-Justice Of Peace 3-CivJs",""]
[1901520000,"190-128CrmJs0000","Ctl Computer-Justice Of Peace 3-CrmJs","Chief Info Ofr","190","1210","P",null,null,null,null,null,null,false,0,0,1901520000,"Ctl Computer-Justice Of Peace 3-CrmJs",""]
[1901530000,"190-129CivJs0000","Ctl Computer-Justice Of Peace 4-CivJs","Chief Info Ofr","190","1220","P",null,null,null,null,null,null,false,0,0,1901530000,"Ctl Computer-Justice Of Peace 4-CivJs",""]
[1901540000,"190-129CrmJs0000","Ctl Computer-Justice Of Peace 4-CrmJs","Chief Info Ofr","190","1210","P",null,null,null,null,null,null,false,0,0,1901540000,"Ctl Computer-Justice Of Peace 4-CrmJs",""]
[1901550000,"190-130CivJs0000","Ctl Computer-Justice Of Peace 5-CivJs","Chief Info Ofr","190","1220","P",null,null,null,null,null,null,false,0,0,1901550000,"Ctl Computer-Justice Of Peace 5-CivJs",""]
[1901560000,"190-130CrmJs0000","Ctl Computer-Justice Of Peace 5-CrmJs","Chief Info Ofr","190","1210","P",null,null,null,null,null,null,false,0,0,1901560000,"Ctl Computer-Justice Of Peace 5-CrmJs",""]
[1901570000,"190-131LE0000","Ctl Computer-Constable 1-LE","Chief Info Ofr","190","1310","P",null,null,null,null,null,null,false,0,0,1901570000,"Ctl Computer-Constable 1-LE",""]
[1901580000,"190-132LE0000","Ctl Computer-Constable 2-LE","Chief Info Ofr","190","1310","P",null,null,null,null,null,null,false,0,0,1901580000,"Ctl Computer-Constable 2-LE",""]
[1901590000,"190-133LE0000","Ctl Computer-Constable 3-LE","Chief Info Ofr","190","1310","P",null,null,null,null,null,null,false,0,0,1901590000,"Ctl Computer-Constable 3-LE",""]
[1901600000,"190-134LE0000","Ctl Computer-Constable 4-LE","Chief Info Ofr","190","1310","P",null,null,null,null,null,null,false,0,0,1901600000,"Ctl Computer-Constable 4-LE",""]
[1901610000,"190-135LE0000","Ctl Computer-Constable 5-LE","Chief Info Ofr","190","1310","P",null,null,null,null,null,null,false,0,0,1901610000,"Ctl Computer-Constable 5-LE",""]
[1901620000,"190-136CivJs0000","Ctl Computer-Dispute Resol Ctr-CivJs","Chief Info Ofr","190","1220","P",null,null,null,null,null,null,false,0,0,1901620000,"Ctl Computer-Dispute Resol Ctr-CivJs",""]
[1901630000,"190-137LE0000","Ctl Computer-Sheriff-LE","Chief Info Ofr","190","1310","P",null,null,null,null,null,null,false,0,0,1901630000,"Ctl Computer-Sheriff-LE",""]
[1901640000,"190-137HsgBkg0000","Ctl Computer-Sheriff-HsgBkg","Chief Info Ofr","190","1410","P",null,null,null,null,null,null,false,0,0,1901640000,"Ctl Computer-Sheriff-HsgBkg",""]
[1901650000,"190-138LE0000","Ctl Computer-Medical Examiner-LE","Chief Info Ofr","190","1310","P",null,null,null,null,null,null,false,0,0,1901650000,"Ctl Computer-Medical Examiner-LE",""]
[1901660000,"190-139Svsn0000","Ctl Computer-CSCD-Svsn","Chief Info Ofr","190","1420","P",null,null,null,null,null,null,false,0,0,1901660000,"Ctl Computer-CSCD-Svsn",""]
[1901670000,"190-140Svsn0000","Ctl Computer-TCCES-Svsn","Chief Info Ofr","190","1420","P",null,null,null,null,null,null,false,0,0,1901670000,"Ctl Computer-TCCES-Svsn",""]
[1901680000,"190-142Svsn0000","Ctl Computer-Pretrial Services-Svsn","Chief Info Ofr","190","1420","P",null,null,null,null,null,null,false,0,0,1901680000,"Ctl Computer-Pretrial Services-Svsn",""]
[1901690000,"190-142HsgBkg0000","Ctl Computer-Pretrial Services-HsgBkg","Chief Info Ofr","190","1410","P",null,null,null,null,null,null,false,0,0,1901690000,"Ctl Computer-Pretrial Services-HsgBkg",""]
[1901700000,"190-143JuvSvs0000","Ctl Computer-Juvenile Public Dfdr-JuvSvs","Chief Info Ofr","190","1230","P",null,null,null,null,null,null,false,0,0,1901700000,"Ctl Computer-Juvenile Public Dfdr-JuvSvs",""]
[1901710000,"190-145JuvSvs0000","Ctl Computer-Juvenile Probation-JuvSvs","Chief Info Ofr","190","1230","P",null,null,null,null,null,null,false,0,0,1901710000,"Ctl Computer-Juvenile Probation-JuvSvs",""]
[1901720000,"190-147Hlhcare0000","Ctl Computer-Emergency Services-Hlhcare","Chief Info Ofr","190","1510","P",null,null,null,null,null,null,false,0,0,1901720000,"Ctl Computer-Emergency Services-Hlhcare",""]
[1901730000,"190-147EmrgMgmt0000","Ctl Computer-Emergency Services-EmrgMgmt","Chief Info Ofr","190","1320","P",null,null,null,null,null,null,false,0,0,1901730000,"Ctl Computer-Emergency Services-EmrgMgmt",""]
[1901740000,"190-149RdBg0000","Ctl Computer-TNR-RdBg","Chief Info Ofr","190","1710","P",null,null,null,null,null,null,false,0,0,1901740000,"Ctl Computer-TNR-RdBg",""]
[1901750000,"190-149Parks&Rec0000","Ctl Computer-TNR-Parks&Rec","Chief Info Ofr","190","1650","P",null,null,null,null,null,null,false,0,0,1901750000,"Ctl Computer-TNR-Parks&Rec",""]
[1901760000,"190-149ConservNR0000","Ctl Computer-TNR-ConservNR","Chief Info Ofr","190","1750","P",null,null,null,null,null,null,false,0,0,1901760000,"Ctl Computer-TNR-ConservNR",""]
[1901770000,"190-149FacMgmt0000","Ctl Computer-TNR-FacMgmt","Chief Info Ofr","190","1140","P",null,null,null,null,null,null,false,0,0,1901770000,"Ctl Computer-TNR-FacMgmt",""]
[1901780000,"190-149Drng0000","Ctl Computer-TNR-Drng","Chief Info Ofr","190","1730","P",null,null,null,null,null,null,false,0,0,1901780000,"Ctl Computer-TNR-Drng",""]
[1901790000,"190-149Sanitation000","Ctl Computer-TNR-Sanitation","Chief Info Ofr","190","1760","P",null,null,null,null,null,null,false,0,0,1901790000,"Ctl Computer-TNR-Sanitation",""]
[1901800000,"190-149DevRegIn0000","Ctl Computer-TNR-DevRegIn","Chief Info Ofr","190","1740","P",null,null,null,null,null,null,false,0,0,1901800000,"Ctl Computer-TNR-DevRegIn",""]
[1901810000,"190-149HumanSvs0000","Ctl Computer-TNR-HumanSvs","Chief Info Ofr","190","1530","P",null,null,null,null,null,null,false,0,0,1901810000,"Ctl Computer-TNR-HumanSvs",""]
[1901820000,"190-154GenAdm0000","Ctl Computer-Civil Service Cmn-GenAdm","Chief Info Ofr","190","1110","P",null,null,null,null,null,null,false,0,0,1901820000,"Ctl Computer-Civil Service Cmn-GenAdm",""]
[1901830000,"190-155CrmJs0000","Ctl Computer-CJP-CrmJs","Chief Info Ofr","190","1210","P",null,null,null,null,null,null,false,0,0,1901830000,"Ctl Computer-CJP-CrmJs",""]
[1901840000,"190-155Hlhcare0000","Ctl Computer-CJP-Hlhcare","Chief Info Ofr","190","1510","P",null,null,null,null,null,null,false,0,0,1901840000,"Ctl Computer-CJP-Hlhcare",""]
[1901850000,"190-155EmrgMgmt0000","Ctl Computer-CJP-EmrgMgmt","Chief Info Ofr","190","1320","P",null,null,null,null,null,null,false,0,0,1901850000,"Ctl Computer-CJP-EmrgMgmt",""]
[1901860000,"190-155Svsn0000","Ctl Computer-CJP-Svsn","Chief Info Ofr","190","1420","P",null,null,null,null,null,null,false,0,0,1901860000,"Ctl Computer-CJP-Svsn",""]
[1901870000,"190-155JuvSvs0000","Ctl Computer-CJP-JuvSvs","Chief Info Ofr","190","1230","P",null,null,null,null,null,null,false,0,0,1901870000,"Ctl Computer-CJP-JuvSvs",""]
[1901880000,"190-155LE0000","Ctl Computer-CJP-LE","Chief Info Ofr","190","1310","P",null,null,null,null,null,null,false,0,0,1901880000,"Ctl Computer-CJP-LE",""]
[1901890000,"190-157GenAdm0000","Ctl Computer-CRS-GenAdm","Chief Info Ofr","190","1110","P",null,null,null,null,null,null,false,0,0,1901890000,"Ctl Computer-CRS-GenAdm",""]
[1901900000,"190-157CivJs0000","Ctl Computer-CRS-CivJs","Chief Info Ofr","190","1220","P",null,null,null,null,null,null,false,0,0,1901900000,"Ctl Computer-CRS-CivJs",""]
[1901910000,"190-157CrmJs0000","Ctl Computer-CRS-CrmJs","Chief Info Ofr","190","1210","P",null,null,null,null,null,null,false,0,0,1901910000,"Ctl Computer-CRS-CrmJs",""]
[1901920000,"190-158Hlhcare0000","Ctl Computer-HHS-Hlhcare","Chief Info Ofr","190","1510","P",null,null,null,null,null,null,false,0,0,1901920000,"Ctl Computer-HHS-Hlhcare",""]
[1901930000,"190-158PbcHlh0000","Ctl Computer-HHS-PbcHlh","Chief Info Ofr","190","1520","P",null,null,null,null,null,null,false,0,0,1901930000,"Ctl Computer-HHS-PbcHlh",""]
[1901940000,"190-158HumanSvs0000","Ctl Computer-HHS-HumanSvs","Chief Info Ofr","190","1530","P",null,null,null,null,null,null,false,0,0,1901940000,"Ctl Computer-HHS-HumanSvs",""]
[1901950000,"190-158JuvSvs0000","Ctl Computer-HHS-JuvSvs","Chief Info Ofr","190","1230","P",null,null,null,null,null,null,false,0,0,1901950000,"Ctl Computer-HHS-JuvSvs",""]
[1901960000,"190-159Hlhcare0000","Ctl Computer-EMS-Hlhcare","Chief Info Ofr","190","1510","P",null,null,null,null,null,null,false,0,0,1901960000,"Ctl Computer-EMS-Hlhcare",""]
[1901970000,"190-193CivJs0000","Ctl Computer-Legally Mtd Fees-CivJs","Chief Info Ofr","190","1220","P",null,null,null,null,null,null,false,0,0,1901970000,"Ctl Computer-Legally Mtd Fees-CivJs",""]
[1901980000,"190-194CrmJs0000","Ctl Computer-Legally Mtd Fees-CrmJs","Chief Info Ofr","190","1210","P",null,null,null,null,null,null,false,0,0,1901980000,"Ctl Computer-Legally Mtd Fees-CrmJs",""]
[1901990000,"190-144PD0000","Ctl Computer-Pub Defender's Ofc-CrimJs","Chief Info Ofr","190","1210","P",null,null,null,null,null,null,false,0,0,1901990000,"Ctl Computer-Pub Defender's Ofc-CrimJs",""]
[1908000001,"190-101CARGenAdm0001","Ctl Computer CAR-County Judge-GenAdm","Chief Info Ofr","190","1110","C",null,null,null,null,null,null,false,"CAR","X",1908000001,"Ctl Computer CAR-County Judge-GenAdm",""]
[1908010001,"190-101CARJuvSvs0001","Ctl Computer CAR-County Judge-JuvSvs","Chief Info Ofr","190","1230","C",null,null,null,null,null,null,false,"CAR","X",1908010001,"Ctl Computer CAR-County Judge-JuvSvs",""]
[1908020001,"190-102CARGenAdm0001","Ctl Computer CAR-CC Pct 1-GenAdm","Chief Info Ofr","190","1110","C",null,null,null,null,null,null,false,"CAR","X",1908020001,"Ctl Computer CAR-CC Pct 1-GenAdm",""]
[1908030001,"190-103CARGenAdm0001","Ctl Computer CAR-CC Pct 2-GenAdm","Chief Info Ofr","190","1110","C",null,null,null,null,null,null,false,"CAR","X",1908030001,"Ctl Computer CAR-CC Pct 2-GenAdm",""]
[1908040001,"190-104CARGenAdm0001","Ctl Computer CAR-CC Pct 3-GenAdm","Chief Info Ofr","190","1110","C",null,null,null,null,null,null,false,"CAR","X",1908040001,"Ctl Computer CAR-CC Pct 3-GenAdm",""]
[1908050001,"190-105CARGenAdm0001","Ctl Computer CAR-CC Pct 4-GenAdm","Chief Info Ofr","190","1110","C",null,null,null,null,null,null,false,"CAR","X",1908050001,"Ctl Computer CAR-CC Pct 4-GenAdm",""]
[1908060001,"190-106CARFinAdm0001","Ctl Computer CAR-County Auditor-FinAdm","Chief Info Ofr","190","1120","C",null,null,null,null,null,null,false,"CAR","X",1908060001,"Ctl Computer CAR-County Auditor-FinAdm",""]
[1908070001,"190-107CARFinAdm0001","Ctl Computer CAR-County Treasurer-FinAdm","Chief Info Ofr","190","1120","C",null,null,null,null,null,null,false,"CAR","X",1908070001,"Ctl Computer CAR-County Treasurer-FinAdm",""]
[1908080001,"190-108CARTaxAdm0001","Ctl Computer CAR-Tax Collector-TaxAdm","Chief Info Ofr","190","1130","C",null,null,null,null,null,null,false,"CAR","X",1908080001,"Ctl Computer CAR-Tax Collector-TaxAdm",""]
[1908090001,"190-108CARCrmJs0001","Ctl Computer CAR-Tax Collector-CrmJs","Chief Info Ofr","190","1210","C",null,null,null,null,null,null,false,"CAR","X",1908090001,"Ctl Computer CAR-Tax Collector-CrmJs",""]
[1908100001,"190-108CARElnAdm0001","Ctl Computer CAR-Tax Collector-ElnAdm","Chief Info Ofr","190","1150","C",null,null,null,null,null,null,false,"CAR","X",1908100001,"Ctl Computer CAR-Tax Collector-ElnAdm",""]
[1908110001,"190-109CARFinAdm0001","Ctl Computer CAR-PBO-FinAdm","Chief Info Ofr","190","1120","C",null,null,null,null,null,null,false,"CAR","X",1908110001,"Ctl Computer CAR-PBO-FinAdm",""]
[1908120001,"190-110CARGenAdm0001","Ctl Computer CAR-General Adm-GenAdm","Chief Info Ofr","190","1110","C",null,null,null,null,null,null,false,"CAR","X",1908120001,"Ctl Computer CAR-General Adm-GenAdm",""]
[1908130001,"190-110CARHlh0001","Ctl Computer CAR-General Adm-Hlhcare","Chief Info Ofr","190","1510","C",null,null,null,null,null,null,false,"CAR","X",1908130001,"Ctl Computer CAR-General Adm-Hlhcare",""]
[1908140001,"190-110CAREcon0001","Ctl Computer CAR-General Adm-EconDev","Chief Info Ofr","190","1610","C",null,null,null,null,null,null,false,"CAR","X",1908140001,"Ctl Computer CAR-General Adm-EconDev",""]
[1908150001,"190-111CARGenAdm0001","Ctl Computer CAR-HRMD-GenAdm","Chief Info Ofr","190","1110","C",null,null,null,null,null,null,false,"CAR","X",1908150001,"Ctl Computer CAR-HRMD-GenAdm",""]
[1908160001,"190-112CARGenAdm0001","Ctl Computer CAR-ITS-GenAdm","Chief Info Ofr","190","1110","C",null,null,null,null,null,null,false,"CAR","X",1908160001,"Ctl Computer CAR-ITS-GenAdm",""]
[1908170001,"190-113CAREcon0001","Ctl Computer CAR-EXPO Center-EconDev","Chief Info Ofr","190","1610","C",null,null,null,null,null,null,false,"CAR","X",1908170001,"Ctl Computer CAR-EXPO Center-EconDev",""]
[1908180001,"190-114CARFac0001","Ctl Computer CAR-Facilities Mgmt-FacMgmt","Chief Info Ofr","190","1140","C",null,null,null,null,null,null,false,"CAR","X",1908180001,"Ctl Computer CAR-Facilities Mgmt-FacMgmt",""]
[1908190001,"190-114CAREcon0001","Ctl Computer CAR-Facilities Mgmt-EconDev","Chief Info Ofr","190","1610","C",null,null,null,null,null,null,false,"CAR","X",1908190001,"Ctl Computer CAR-Facilities Mgmt-EconDev",""]
[1908200001,"190-115CARFinAdm0001","Ctl Computer CAR-Purchasing-FinAdm","Chief Info Ofr","190","1120","C",null,null,null,null,null,null,false,"CAR","X",1908200001,"Ctl Computer CAR-Purchasing-FinAdm",""]
[1908210001,"190-116CARHuman0001","Ctl Computer CAR-Veterans Svs-HumanSvs","Chief Info Ofr","190","1530","C",null,null,null,null,null,null,false,"CAR","X",1908210001,"Ctl Computer CAR-Veterans Svs-HumanSvs",""]
[1908220001,"190-117CARCulEdu0001","Ctl Computer CAR-Historical Comm-Cul&Edu","Chief Info Ofr","190","1630","C",null,null,null,null,null,null,false,"CAR","X",1908220001,"Ctl Computer CAR-Historical Comm-Cul&Edu",""]
[1908230001,"190-118CARHuman0001","Ctl Computer CAR-Agr Ext Serv-HumanSvs","Chief Info Ofr","190","1530","C",null,null,null,null,null,null,false,"CAR","X",1908230001,"Ctl Computer CAR-Agr Ext Serv-HumanSvs",""]
[1908240001,"190-119CARCivJs0001","Ctl Computer CAR-County Attorney-CivJs","Chief Info Ofr","190","1220","C",null,null,null,null,null,null,false,"CAR","X",1908240001,"Ctl Computer CAR-County Attorney-CivJs",""]
[1908250001,"190-119CARCrmJs0001","Ctl Computer CAR-County Attorney-CrmJs","Chief Info Ofr","190","1210","C",null,null,null,null,null,null,false,"CAR","X",1908250001,"Ctl Computer CAR-County Attorney-CrmJs",""]
[1908260001,"190-120CARGenAdm0001","Ctl Computer CAR-County Clerk-GenAdm","Chief Info Ofr","190","1110","C",null,null,null,null,null,null,false,"CAR","X",1908260001,"Ctl Computer CAR-County Clerk-GenAdm",""]
[1908270001,"190-120CARElnAdm0001","Ctl Computer CAR-County Clerk-ElnAdm","Chief Info Ofr","190","1150","C",null,null,null,null,null,null,false,"CAR","X",1908270001,"Ctl Computer CAR-County Clerk-ElnAdm",""]
[1908280001,"190-120CARCivJs0001","Ctl Computer CAR-County Clerk-CivJs","Chief Info Ofr","190","1220","C",null,null,null,null,null,null,false,"CAR","X",1908280001,"Ctl Computer CAR-County Clerk-CivJs",""]
[1908290001,"190-120CARCrmJs0001","Ctl Computer CAR-County Clerk-CrmJs","Chief Info Ofr","190","1210","C",null,null,null,null,null,null,false,"CAR","X",1908290001,"Ctl Computer CAR-County Clerk-CrmJs",""]
[1908300001,"190-121CARCivJs0001","Ctl Computer CAR-District Clerk-CivJs","Chief Info Ofr","190","1220","C",null,null,null,null,null,null,false,"CAR","X",1908300001,"Ctl Computer CAR-District Clerk-CivJs",""]
[1908310001,"190-121CARCrmJs0001","Ctl Computer CAR-District Clerk-CrmJs","Chief Info Ofr","190","1210","C",null,null,null,null,null,null,false,"CAR","X",1908310001,"Ctl Computer CAR-District Clerk-CrmJs",""]
[1908320001,"190-122CARCivJs0001","Ctl Computer CAR-Civil Courts-CivJs","Chief Info Ofr","190","1220","C",null,null,null,null,null,null,false,"CAR","X",1908320001,"Ctl Computer CAR-Civil Courts-CivJs",""]
[1908330001,"190-123CARCrmJs0001","Ctl Computer CAR-District Attorney-CrmJs","Chief Info Ofr","190","1210","C",null,null,null,null,null,null,false,"CAR","X",1908330001,"Ctl Computer CAR-District Attorney-CrmJs",""]
[1908340001,"190-123CARCivJs0001","Ctl Computer CAR-District Attorney-CivJs","Chief Info Ofr","190","1220","C",null,null,null,null,null,null,false,"CAR","X",1908340001,"Ctl Computer CAR-District Attorney-CivJs",""]
[1908350001,"190-124CARCrmJs0001","Ctl Computer CAR-Criminal Courts-CrmJs","Chief Info Ofr","190","1210","C",null,null,null,null,null,null,false,"CAR","X",1908350001,"Ctl Computer CAR-Criminal Courts-CrmJs",""]
[1908360001,"190-125CARCivJs0001","Ctl Computer CAR-Probate Court-CivJs","Chief Info Ofr","190","1220","C",null,null,null,null,null,null,false,"CAR","X",1908360001,"Ctl Computer CAR-Probate Court-CivJs",""]
[1908370001,"190-126CARCivJs0001","Ctl Computer CAR-JP 1-CivJs","Chief Info Ofr","190","1220","C",null,null,null,null,null,null,false,"CAR","X",1908370001,"Ctl Computer CAR-JP 1-CivJs",""]
[1908380001,"190-126CARCrmJs0001","Ctl Computer CAR-JP 1-CrmJs","Chief Info Ofr","190","1210","C",null,null,null,null,null,null,false,"CAR","X",1908380001,"Ctl Computer CAR-JP 1-CrmJs",""]
[1908390001,"190-127CARCivJs0001","Ctl Computer CAR-JP 2-CivJs","Chief Info Ofr","190","1220","C",null,null,null,null,null,null,false,"CAR","X",1908390001,"Ctl Computer CAR-JP 2-CivJs",""]
[1908400001,"190-127CARCrmJs0001","Ctl Computer CAR-JP 2-CrmJs","Chief Info Ofr","190","1210","C",null,null,null,null,null,null,false,"CAR","X",1908400001,"Ctl Computer CAR-JP 2-CrmJs",""]
[1908410001,"190-128CARCivJs0001","Ctl Computer CAR-JP 3-CivJs","Chief Info Ofr","190","1220","C",null,null,null,null,null,null,false,"CAR","X",1908410001,"Ctl Computer CAR-JP 3-CivJs",""]
[1908420001,"190-128CARCrmJs0001","Ctl Computer CAR-JP 3-CrmJs","Chief Info Ofr","190","1210","C",null,null,null,null,null,null,false,"CAR","X",1908420001,"Ctl Computer CAR-JP 3-CrmJs",""]
[1908430001,"190-129CARCivJs0001","Ctl Computer CAR-JP 4-CivJs","Chief Info Ofr","190","1220","C",null,null,null,null,null,null,false,"CAR","X",1908430001,"Ctl Computer CAR-JP 4-CivJs",""]
[1908440001,"190-129CARCrmJs0001","Ctl Computer CAR-JP 4-CrmJs","Chief Info Ofr","190","1210","C",null,null,null,null,null,null,false,"CAR","X",1908440001,"Ctl Computer CAR-JP 4-CrmJs",""]
[1908450001,"190-130CARCivJs0001","Ctl Computer CAR-JP 5-CivJs","Chief Info Ofr","190","1220","C",null,null,null,null,null,null,false,"CAR","X",1908450001,"Ctl Computer CAR-JP 5-CivJs",""]
[1908460001,"190-130CARCrmJs0001","Ctl Computer CAR-JP 5-CrmJs","Chief Info Ofr","190","1210","C",null,null,null,null,null,null,false,"CAR","X",1908460001,"Ctl Computer CAR-JP 5-CrmJs",""]
[1908470001,"190-131CARLE0001","Ctl Computer CAR-Constable 1-LE","Chief Info Ofr","190","1310","C",null,null,null,null,null,null,false,"CAR","X",1908470001,"Ctl Computer CAR-Constable 1-LE",""]
[1908480001,"190-132CARLE0001","Ctl Computer CAR-Constable 2-LE","Chief Info Ofr","190","1310","C",null,null,null,null,null,null,false,"CAR","X",1908480001,"Ctl Computer CAR-Constable 2-LE",""]
[1908490001,"190-133CARLE0001","Ctl Computer CAR-Constable 3-LE","Chief Info Ofr","190","1310","C",null,null,null,null,null,null,false,"CAR","X",1908490001,"Ctl Computer CAR-Constable 3-LE",""]
[1908500001,"190-134CARLE0001","Ctl Computer CAR-Constable 4-LE","Chief Info Ofr","190","1310","C",null,null,null,null,null,null,false,"CAR","X",1908500001,"Ctl Computer CAR-Constable 4-LE",""]
[1908510001,"190-135CARLE0001","Ctl Computer CAR-Constable 5-LE","Chief Info Ofr","190","1310","C",null,null,null,null,null,null,false,"CAR","X",1908510001,"Ctl Computer CAR-Constable 5-LE",""]
[1908520001,"190-136CARCivJs0001","Ctl Computer CAR-Dispute Resol Ctr-CivJs","Chief Info Ofr","190","1220","C",null,null,null,null,null,null,false,"CAR","X",1908520001,"Ctl Computer CAR-Dispute Resol Ctr-CivJs",""]
[1908530001,"190-137CARLE0001","Ctl Computer CAR-Sheriff-LE","Chief Info Ofr","190","1310","C",null,null,null,null,null,null,false,"CAR","X",1908530001,"Ctl Computer CAR-Sheriff-LE",""]
[1908540001,"190-137CARHsgBkg0001","Ctl Computer CAR-Sheriff-HsgBkg","Chief Info Ofr","190","1410","C",null,null,null,null,null,null,false,"CAR","X",1908540001,"Ctl Computer CAR-Sheriff-HsgBkg",""]
[1908550001,"190-138CARLE0001","Ctl Computer CAR-Medical Examiner-LE","Chief Info Ofr","190","1310","C",null,null,null,null,null,null,false,"CAR","X",1908550001,"Ctl Computer CAR-Medical Examiner-LE",""]
[1908560001,"190-139CARSvsn0001","Ctl Computer CAR-CSCD-Svsn","Chief Info Ofr","190","1420","C",null,null,null,null,null,null,false,"CAR","X",1908560001,"Ctl Computer CAR-CSCD-Svsn",""]
[1908570001,"190-140CARSvsn0001","Ctl Computer CAR-TCCES-Svsn","Chief Info Ofr","190","1420","C",null,null,null,null,null,null,false,"CAR","X",1908570001,"Ctl Computer CAR-TCCES-Svsn",""]
[1908580001,"190-142CARSvsn0001","Ctl Computer CAR-Pretrial Services-Svsn","Chief Info Ofr","190","1420","C",null,null,null,null,null,null,false,"CAR","X",1908580001,"Ctl Computer CAR-Pretrial Services-Svsn",""]
[1908590001,"190-142CARHsgBkg0001","Ctl Computer CAR-Pretrial Svs-HsgBkg","Chief Info Ofr","190","1410","C",null,null,null,null,null,null,false,"CAR","X",1908590001,"Ctl Computer CAR-Pretrial Svs-HsgBkg",""]
[1908600001,"190-143CARJuvSvs0001","Ctl Computer CAR-Juv Public Dfdr-JuvSvs","Chief Info Ofr","190","1230","C",null,null,null,null,null,null,false,"CAR","X",1908600001,"Ctl Computer CAR-Juv Public Dfdr-JuvSvs",""]
[1908610001,"190-145CARJuvSvs0001","Ctl Computer CAR-Juv Probation-JuvSvs","Chief Info Ofr","190","1230","C",null,null,null,null,null,null,false,"CAR","X",1908610001,"Ctl Computer CAR-Juv Probation-JuvSvs",""]
[1908620001,"190-147CARHlh0001","Ctl Computer CAR-Emergency Svs-Hlhcare","Chief Info Ofr","190","1510","C",null,null,null,null,null,null,false,"CAR","X",1908620001,"Ctl Computer CAR-Emergency Svs-Hlhcare",""]
[1908630001,"190-147CAREmrg0001","Ctl Computer CAR-Emergency Svs-EmrgMgmt","Chief Info Ofr","190","1320","C",null,null,null,null,null,null,false,"CAR","X",1908630001,"Ctl Computer CAR-Emergency Svs-EmrgMgmt",""]
[1908640001,"190-149CARRdBg0001","Ctl Computer CAR-TNR-RdBg","Chief Info Ofr","190","1710","C",null,null,null,null,null,null,false,"CAR","X",1908640001,"Ctl Computer CAR-TNR-RdBg",""]
[1908650001,"190-149CARParks0001","Ctl Computer CAR-TNR-Parks&Rec","Chief Info Ofr","190","1630","C",null,null,null,null,null,null,false,"CAR","X",1908650001,"Ctl Computer CAR-TNR-Parks&Rec",""]
[1908660001,"190-149CARConser0001","Ctl Computer CAR-TNR-ConservNR","Chief Info Ofr","190","1750","C",null,null,null,null,null,null,false,"CAR","X",1908660001,"Ctl Computer CAR-TNR-ConservNR",""]
[1908670001,"190-149CARFac0001","Ctl Computer CAR-TNR-FacMgmt","Chief Info Ofr","190","1140","C",null,null,null,null,null,null,false,"CAR","X",1908670001,"Ctl Computer CAR-TNR-FacMgmt",""]
[1908680001,"190-149CARDrng0001","Ctl Computer CAR-TNR-Drng","Chief Info Ofr","190","1730","C",null,null,null,null,null,null,false,"CAR","X",1908680001,"Ctl Computer CAR-TNR-Drng",""]
[1908690001,"190-149CARSntn0001","Ctl Computer CAR-TNR-Sanitation","Chief Info Ofr","190","1760","C",null,null,null,null,null,null,false,"CAR","X",1908690001,"Ctl Computer CAR-TNR-Sanitation",""]
[1908700001,"190-149CARDevReg0001","Ctl Computer CAR-TNR-DevRegIn","Chief Info Ofr","190","1740","C",null,null,null,null,null,null,false,"CAR","X",1908700001,"Ctl Computer CAR-TNR-DevRegIn",""]
[1908710001,"190-149CARHuman0001","Ctl Computer CAR-TNR-HumanSvs","Chief Info Ofr","190","1530","C",null,null,null,null,null,null,false,"CAR","X",1908710001,"Ctl Computer CAR-TNR-HumanSvs",""]
[1908720001,"190-154CARGenAdm0001","Ctl Computer CAR-Civil Service-GenAdm","Chief Info Ofr","190","1110","C",null,null,null,null,null,null,false,"CAR","X",1908720001,"Ctl Computer CAR-Civil Service-GenAdm",""]
[1908730001,"190-155CARCrmJs0001","Ctl Computer CAR-CJP-CrmJs","Chief Info Ofr","190","1210","C",null,null,null,null,null,null,false,"CAR","X",1908730001,"Ctl Computer CAR-CJP-CrmJs",""]
[1908740001,"190-155CARHlh0001","Ctl Computer CAR-CJP-Hlhcare","Chief Info Ofr","190","1510","C",null,null,null,null,null,null,false,"CAR","X",1908740001,"Ctl Computer CAR-CJP-Hlhcare",""]
[1908750001,"190-155CAREmrg0001","Ctl Computer CAR-CJP-EmrgMgmt","Chief Info Ofr","190","1320","C",null,null,null,null,null,null,false,"CAR","X",1908750001,"Ctl Computer CAR-CJP-EmrgMgmt",""]
[1908760001,"190-155CARSvsn0001","Ctl Computer CAR-CJP-Svsn","Chief Info Ofr","190","1420","C",null,null,null,null,null,null,false,"CAR","X",1908760001,"Ctl Computer CAR-CJP-Svsn",""]
[1908770001,"190-155CARJuvSvs0001","Ctl Computer CAR-CJP-JuvSvs","Chief Info Ofr","190","1230","C",null,null,null,null,null,null,false,"CAR","X",1908770001,"Ctl Computer CAR-CJP-JuvSvs",""]
[1908780001,"190-155CARLE0001","Ctl Computer CAR-CJP-LE","Chief Info Ofr","190","1310","C",null,null,null,null,null,null,false,"CAR","X",1908780001,"Ctl Computer CAR-CJP-LE",""]
[1908790001,"190-157CARGenAdm0001","Ctl Computer CAR-CRS-GenAdm","Chief Info Ofr","190","1110","C",null,null,null,null,null,null,false,"CAR","X",1908790001,"Ctl Computer CAR-CRS-GenAdm",""]
[1908800001,"190-157CARCivJs0001","Ctl Computer CAR-CRS-CivJs","Chief Info Ofr","190","1220","C",null,null,null,null,null,null,false,"CAR","X",1908800001,"Ctl Computer CAR-CRS-CivJs",""]
[1908810001,"190-157CARCrmJs0001","Ctl Computer CAR-CRS-CrmJs","Chief Info Ofr","190","1210","C",null,null,null,null,null,null,false,"CAR","X",1908810001,"Ctl Computer CAR-CRS-CrmJs",""]
[1908820001,"190-158CARHlh0001","Ctl Computer CAR-HHS-Hlhcare","Chief Info Ofr","190","1510","C",null,null,null,null,null,null,false,"CAR","X",1908820001,"Ctl Computer CAR-HHS-Hlhcare",""]
[1908830001,"190-158CARPbcHlh0001","Ctl Computer CAR-HHS-PbcHlh","Chief Info Ofr","190","1520","C",null,null,null,null,null,null,false,"CAR","X",1908830001,"Ctl Computer CAR-HHS-PbcHlh",""]
[1908840001,"190-158CARHuman0001","Ctl Computer CAR-HHS-HumanSvs","Chief Info Ofr","190","1530","C",null,null,null,null,null,null,false,"CAR","X",1908840001,"Ctl Computer CAR-HHS-HumanSvs",""]
[1908850001,"190-158CARJuvSvs0001","Ctl Computer CAR-HHS-JuvSvs","Chief Info Ofr","190","1230","C",null,null,null,null,null,null,false,"CAR","X",1908850001,"Ctl Computer CAR-HHS-JuvSvs",""]
[1908860001,"190-159CARHlh0001","Ctl Computer CAR-EMS-Hlhcare","Chief Info Ofr","190","1510","C",null,null,null,null,null,null,false,"CAR","X",1908860001,"Ctl Computer CAR-EMS-Hlhcare",""]
[1908870001,"190-193CARCivJs0001","Ctl Computer CAR-Legally Mtd Fees-CivJs","Chief Info Ofr","190","1220","C",null,null,null,null,null,null,false,"CAR","X",1908870001,"Ctl Computer CAR-Legally Mtd Fees-CivJs",""]
[1908880001,"190-194CARCrmJs0001","Ctl Computer CAR-Legally Mtd Fees-CrmJs","Chief Info Ofr","190","1210","C",null,null,null,null,null,null,false,"CAR","X",1908880001,"Ctl Computer CAR-Legally Mtd Fees-CrmJs",""]
[1908890001,"190-144CARPD0001","Ctl Computer CAR-Public Defender-CrimJs","Chief Info Ofr","190","1210","C",null,null,null,null,null,null,false,"CAR","X",1908890001,"Ctl Computer CAR-Public Defender-CrimJs",""]
[1911100001,"191-101GenAdm0001","Ctl RentUtil-County Judge-GenAdm","Facilities Mgmt Dir","191","1110","P",null,null,null,null,null,null,false,0,"X",1911100001,"Ctl RentUtil-County Judge-GenAdm",""]
[1911110001,"191-101JuvSvs0001","Ctl RentUtil-County Judge-JuvSvs","Facilities Mgmt Dir","191","1230","P",null,null,null,null,null,null,false,0,"X",1911110001,"Ctl RentUtil-County Judge-JuvSvs",""]
[1911120001,"191-102GenAdm0001","Ctl RentUtil-CC-Pct 1-GenAdm","Facilities Mgmt Dir","191","1110","P",null,null,null,null,null,null,false,0,"X",1911120001,"Ctl RentUtil-CC-Pct 1-GenAdm",""]
[1911130001,"191-103GenAdm0001","Ctl RentUtil-CC Pct 2-GenAdm","Facilities Mgmt Dir","191","1110","P",null,null,null,null,null,null,false,0,"X",1911130001,"Ctl RentUtil-CC Pct 2-GenAdm",""]
[1911140001,"191-104GenAdm0001","Ctl RentUtil-CC Pct 3-GenAdm","Facilities Mgmt Dir","191","1110","P",null,null,null,null,null,null,false,0,"X",1911140001,"Ctl RentUtil-CC Pct 3-GenAdm",""]
[1911150001,"191-105GenAdm0001","Ctl RentUtil-CC Pct 4-GenAdm","Facilities Mgmt Dir","191","1110","P",null,null,null,null,null,null,false,0,"X",1911150001,"Ctl RentUtil-CC Pct 4-GenAdm",""]
[1911160001,"191-106FinAdm0001","Ctl RentUtil-County Auditor-FinAdm","Facilities Mgmt Dir","191","1120","P",null,null,null,null,null,null,false,0,"X",1911160001,"Ctl RentUtil-County Auditor-FinAdm",""]
[1911170001,"191-107FinAdm0001","Ctl RentUtil-County Treasurer-FinAdm","Facilities Mgmt Dir","191","1120","P",null,null,null,null,null,null,false,0,"X",1911170001,"Ctl RentUtil-County Treasurer-FinAdm",""]
[1911180001,"191-108TaxAdm0001","Ctl RentUtil-Tax Collector-TaxAdm","Facilities Mgmt Dir","191","1130","P",null,null,null,null,null,null,false,0,"X",1911180001,"Ctl RentUtil-Tax Collector-TaxAdm",""]
[1911190001,"191-108CrmJs0001","Ctl RentUtil-Tax Collector-CrmJs","Facilities Mgmt Dir","191","1210","P",null,null,null,null,null,null,false,0,"X",1911190001,"Ctl RentUtil-Tax Collector-CrmJs",""]
[1911200001,"191-108ElnAdm0001","Ctl RentUtil-Tax Collector-ElnAdm","Facilities Mgmt Dir","191","1150","P",null,null,null,null,null,null,false,0,"X",1911200001,"Ctl RentUtil-Tax Collector-ElnAdm",""]
[1911210001,"191-109FinAdm0001","Ctl RentUtil-Planning And Budget-FinAdm","Facilities Mgmt Dir","191","1120","P",null,null,null,null,null,null,false,0,"X",1911210001,"Ctl RentUtil-Planning And Budget-FinAdm",""]
[1911220001,"191-110GenAdm0001","Ctl RentUtil-General Adm-GenAdm","Facilities Mgmt Dir","191","1110","P",null,null,null,null,null,null,false,0,"X",1911220001,"Ctl RentUtil-General Adm-GenAdm",""]
[1911230001,"191-110Hlhcare0001","Ctl RentUtil-General Adm-Hlhcare","Facilities Mgmt Dir","191","1510","P",null,null,null,null,null,null,false,0,"X",1911230001,"Ctl RentUtil-General Adm-Hlhcare",""]
[1911240001,"191-110EconDev0001","Ctl RentUtil-General Adm-EconDev","Facilities Mgmt Dir","191","1610","P",null,null,null,null,null,null,false,0,"X",1911240001,"Ctl RentUtil-General Adm-EconDev",""]
[1911250001,"191-111GenAdm0001","Ctl RentUtil-Human Resource Mgmt-GenAdm","Facilities Mgmt Dir","191","1110","P",null,null,null,null,null,null,false,0,"X",1911250001,"Ctl RentUtil-Human Resource Mgmt-GenAdm",""]
[1911260001,"191-112GenAdm0001","Ctl RentUtil-ITS-GenAdm","Facilities Mgmt Dir","191","1110","P",null,null,null,null,null,null,false,0,"X",1911260001,"Ctl RentUtil-ITS-GenAdm",""]
[1911270001,"191-113EconDev0001","Ctl RentUtil-EXPO Center-EconDev","Facilities Mgmt Dir","191","1610","P",null,null,null,null,null,null,false,0,"X",1911270001,"Ctl RentUtil-EXPO Center-EconDev",""]
[1911280001,"191-114FacMgmt0001","Ctl RentUtil-Facilities Mgmt-FacMgmt","Facilities Mgmt Dir","191","1140","P",null,null,null,null,null,null,false,0,"X",1911280001,"Ctl RentUtil-Facilities Mgmt-FacMgmt",""]
[1911290001,"191-114EconDev0001","Ctl RentUtil-Facilities Mgmt-EconDev","Facilities Mgmt Dir","191","1610","P",null,null,null,null,null,null,false,0,"X",1911290001,"Ctl RentUtil-Facilities Mgmt-EconDev",""]
[1911300001,"191-115FinAdm0001","Ctl RentUtil-Purchasing-FinAdm","Facilities Mgmt Dir","191","1120","P",null,null,null,null,null,null,false,0,"X",1911300001,"Ctl RentUtil-Purchasing-FinAdm",""]
[1911310001,"191-116HumanSvs0001","Ctl RentUtil-Veterans Services-HumanSvs","Facilities Mgmt Dir","191","1530","P",null,null,null,null,null,null,false,0,"X",1911310001,"Ctl RentUtil-Veterans Services-HumanSvs",""]
[1911320001,"191-117Cul&Edu0001","Ctl RentUtil-Historical Comm-Cul&Edu","Facilities Mgmt Dir","191","1650","P",null,null,null,null,null,null,false,0,"X",1911320001,"Ctl RentUtil-Historical Comm-Cul&Edu",""]
[1911330001,"191-118HumanSvs0001","Ctl RentUtil-Agr Ext Serv-HumanSvs","Facilities Mgmt Dir","191","1530","P",null,null,null,null,null,null,false,0,"X",1911330001,"Ctl RentUtil-Agr Ext Serv-HumanSvs",""]
[1911340001,"191-119CivJs0001","Ctl RentUtil-County Attorney-CivJs","Facilities Mgmt Dir","191","1220","P",null,null,null,null,null,null,false,0,"X",1911340001,"Ctl RentUtil-County Attorney-CivJs",""]
[1911350001,"191-119CrmJs0001","Ctl RentUtil-County Attorney-CrmJs","Facilities Mgmt Dir","191","1210","P",null,null,null,null,null,null,false,0,"X",1911350001,"Ctl RentUtil-County Attorney-CrmJs",""]
[1911360001,"191-120GenAdm0001","Ctl RentUtil-County Clerk-GenAdm","Facilities Mgmt Dir","191","1110","P",null,null,null,null,null,null,false,0,"X",1911360001,"Ctl RentUtil-County Clerk-GenAdm",""]
[1911370001,"191-120ElnAdm0001","Ctl RentUtil-County Clerk-ElnAdm","Facilities Mgmt Dir","191","1150","P",null,null,null,null,null,null,false,0,"X",1911370001,"Ctl RentUtil-County Clerk-ElnAdm",""]
[1911380001,"191-120CivJs0001","Ctl RentUtil-County Clerk-CivJs","Facilities Mgmt Dir","191","1220","P",null,null,null,null,null,null,false,0,"X",1911380001,"Ctl RentUtil-County Clerk-CivJs",""]
[1911390001,"191-120CrmJs0001","Ctl RentUtil-County Clerk-CrmJs","Facilities Mgmt Dir","191","1210","P",null,null,null,null,null,null,false,0,"X",1911390001,"Ctl RentUtil-County Clerk-CrmJs",""]
[1911400001,"191-121CivJs0001","Ctl RentUtil-District Clerk-CivJs","Facilities Mgmt Dir","191","1220","P",null,null,null,null,null,null,false,0,"X",1911400001,"Ctl RentUtil-District Clerk-CivJs",""]
[1911410001,"191-121CrmJs0001","Ctl RentUtil-District Clerk-CrmJs","Facilities Mgmt Dir","191","1210","P",null,null,null,null,null,null,false,0,"X",1911410001,"Ctl RentUtil-District Clerk-CrmJs",""]
[1911420001,"191-122CivJs0001","Ctl RentUtil-Civil Courts-CivJs","Facilities Mgmt Dir","191","1220","P",null,null,null,null,null,null,false,0,"X",1911420001,"Ctl RentUtil-Civil Courts-CivJs",""]
[1911430001,"191-123CrmJs0001","Ctl RentUtil-District Attorney-CrmJs","Facilities Mgmt Dir","191","1210","P",null,null,null,null,null,null,false,0,"X",1911430001,"Ctl RentUtil-District Attorney-CrmJs",""]
[1911440001,"191-123CivJs0001","Ctl RentUtil-District Attorney-CivJs","Facilities Mgmt Dir","191","1220","P",null,null,null,null,null,null,false,0,"X",1911440001,"Ctl RentUtil-District Attorney-CivJs",""]
[1911450001,"191-124CrmJs0001","Ctl RentUtil-Criminal Courts-CrmJs","Facilities Mgmt Dir","191","1210","P",null,null,null,null,null,null,false,0,"X",1911450001,"Ctl RentUtil-Criminal Courts-CrmJs",""]
[1911460001,"191-125CivJs0001","Ctl RentUtil-Probate Court-CivJs","Facilities Mgmt Dir","191","1220","P",null,null,null,null,null,null,false,0,"X",1911460001,"Ctl RentUtil-Probate Court-CivJs",""]
[1911470001,"191-126CivJs0001","Ctl RentUtil-Justice Of Peace 1-CivJs","Facilities Mgmt Dir","191","1220","P",null,null,null,null,null,null,false,0,"X",1911470001,"Ctl RentUtil-Justice Of Peace 1-CivJs",""]
[1911480001,"191-126CrmJs0001","Ctl RentUtil-Justice Of Peace 1-CrmJs","Facilities Mgmt Dir","191","1210","P",null,null,null,null,null,null,false,0,"X",1911480001,"Ctl RentUtil-Justice Of Peace 1-CrmJs",""]
[1911490001,"191-127CivJs0001","Ctl RentUtil-Justice Of Peace 2-CivJs","Facilities Mgmt Dir","191","1220","P",null,null,null,null,null,null,false,0,"X",1911490001,"Ctl RentUtil-Justice Of Peace 2-CivJs",""]
[1911500001,"191-127CrmJs0001","Ctl RentUtil-Justice Of Peace 2-CrmJs","Facilities Mgmt Dir","191","1210","P",null,null,null,null,null,null,false,0,"X",1911500001,"Ctl RentUtil-Justice Of Peace 2-CrmJs",""]
[1911510001,"191-128CivJs0001","Ctl RentUtil-Justice Of Peace 3-CivJs","Facilities Mgmt Dir","191","1220","P",null,null,null,null,null,null,false,0,"X",1911510001,"Ctl RentUtil-Justice Of Peace 3-CivJs",""]
[1911520001,"191-128CrmJs0001","Ctl RentUtil-Justice Of Peace 3-CrmJs","Facilities Mgmt Dir","191","1210","P",null,null,null,null,null,null,false,0,"X",1911520001,"Ctl RentUtil-Justice Of Peace 3-CrmJs",""]
[1911530001,"191-129CivJs0001","Ctl RentUtil-Justice Of Peace 4-CivJs","Facilities Mgmt Dir","191","1220","P",null,null,null,null,null,null,false,0,"X",1911530001,"Ctl RentUtil-Justice Of Peace 4-CivJs",""]
[1911540001,"191-129CrmJs0001","Ctl RentUtil-Justice Of Peace 4-CrmJs","Facilities Mgmt Dir","191","1210","P",null,null,null,null,null,null,false,0,"X",1911540001,"Ctl RentUtil-Justice Of Peace 4-CrmJs",""]
[1911550001,"191-130CivJs0001","Ctl RentUtil-Justice Of Peace 5-CivJs","Facilities Mgmt Dir","191","1220","P",null,null,null,null,null,null,false,0,"X",1911550001,"Ctl RentUtil-Justice Of Peace 5-CivJs",""]
[1911560001,"191-130CrmJs0001","Ctl RentUtil-Justice Of Peace 5-CrmJs","Facilities Mgmt Dir","191","1210","P",null,null,null,null,null,null,false,0,"X",1911560001,"Ctl RentUtil-Justice Of Peace 5-CrmJs",""]
[1911570001,"191-131LE0001","Ctl RentUtil-Constable 1-LE","Facilities Mgmt Dir","191","1310","P",null,null,null,null,null,null,false,0,"X",1911570001,"Ctl RentUtil-Constable 1-LE",""]
[1911580001,"191-132LE0001","Ctl RentUtil-Constable 2-LE","Facilities Mgmt Dir","191","1310","P",null,null,null,null,null,null,false,0,"X",1911580001,"Ctl RentUtil-Constable 2-LE",""]
[1911590001,"191-133LE0001","Ctl RentUtil-Constable 3-LE","Facilities Mgmt Dir","191","1310","P",null,null,null,null,null,null,false,0,"X",1911590001,"Ctl RentUtil-Constable 3-LE",""]
[1911600001,"191-134LE0001","Ctl RentUtil-Constable 4-LE","Facilities Mgmt Dir","191","1310","P",null,null,null,null,null,null,false,0,"X",1911600001,"Ctl RentUtil-Constable 4-LE",""]
[1911610001,"191-135LE0001","Ctl RentUtil-Constable 5-LE","Facilities Mgmt Dir","191","1310","P",null,null,null,null,null,null,false,0,"X",1911610001,"Ctl RentUtil-Constable 5-LE",""]
[1911620001,"191-136CivJs0001","Ctl RentUtil-Dispute Resol Ctr-CivJs","Facilities Mgmt Dir","191","1220","P",null,null,null,null,null,null,false,0,"X",1911620001,"Ctl RentUtil-Dispute Resol Ctr-CivJs",""]
[1911630001,"191-137LE0001","Ctl RentUtil-Sheriff-LE","Facilities Mgmt Dir","191","1310","P",null,null,null,null,null,null,false,0,"X",1911630001,"Ctl RentUtil-Sheriff-LE",""]
[1911640001,"191-137HsgBkg0001","Ctl RentUtil-Sheriff-HsgBkg","Facilities Mgmt Dir","191","1410","P",null,null,null,null,null,null,false,0,"X",1911640001,"Ctl RentUtil-Sheriff-HsgBkg",""]
[1911650001,"191-138LE0001","Ctl RentUtil-Medical Examiner-LE","Facilities Mgmt Dir","191","1310","P",null,null,null,null,null,null,false,0,"X",1911650001,"Ctl RentUtil-Medical Examiner-LE",""]
[1911660001,"191-139Svsn0001","Ctl RentUtil-CSCD-Svsn","Facilities Mgmt Dir","191","1420","P",null,null,null,null,null,null,false,0,"X",1911660001,"Ctl RentUtil-CSCD-Svsn",""]
[1911670001,"191-140Svsn0001","Ctl RentUtil-TCCES-Svsn","Facilities Mgmt Dir","191","1420","P",null,null,null,null,null,null,false,0,"X",1911670001,"Ctl RentUtil-TCCES-Svsn",""]
[1911680001,"191-142Svsn0001","Ctl RentUtil-Pretrial Services-Svsn","Facilities Mgmt Dir","191","1420","P",null,null,null,null,null,null,false,0,"X",1911680001,"Ctl RentUtil-Pretrial Services-Svsn",""]
[1911690001,"191-142HsgBkg0001","Ctl RentUtil-Pretrial Services-HsgBkg","Facilities Mgmt Dir","191","1410","P",null,null,null,null,null,null,false,0,"X",1911690001,"Ctl RentUtil-Pretrial Services-HsgBkg",""]
[1911700001,"191-143JuvSvs0001","Ctl RentUtil-Juvenile Public Dfdr-JuvSvs","Facilities Mgmt Dir","191","1230","P",null,null,null,null,null,null,false,0,"X",1911700001,"Ctl RentUtil-Juvenile Public Dfdr-JuvSvs",""]
[1911710001,"191-145JuvSvs0001","Ctl RentUtil-Juvenile Probation-JuvSvs","Facilities Mgmt Dir","191","1230","P",null,null,null,null,null,null,false,0,"X",1911710001,"Ctl RentUtil-Juvenile Probation-JuvSvs",""]
[1911720001,"191-147Hlhcare0001","Ctl RentUtil-Emergency Services-Hlhcare","Facilities Mgmt Dir","191","1510","P",null,null,null,null,null,null,false,0,"X",1911720001,"Ctl RentUtil-Emergency Services-Hlhcare",""]
[1911730001,"191-147EmrgMgmt0001","Ctl RentUtil-Emergency Services-EmrgMgmt","Facilities Mgmt Dir","191","1320","P",null,null,null,null,null,null,false,0,"X",1911730001,"Ctl RentUtil-Emergency Services-EmrgMgmt",""]
[1911740001,"191-149RdBg0001","Ctl RentUtil-TNR-RdBg","Facilities Mgmt Dir","191","1710","P",null,null,null,null,null,null,false,0,"X",1911740001,"Ctl RentUtil-TNR-RdBg",""]
[1911750001,"191-149Parks&Rec0001","Ctl RentUtil-TNR-Parks&Rec","Facilities Mgmt Dir","191","1630","P",null,null,null,null,null,null,false,0,"X",1911750001,"Ctl RentUtil-TNR-Parks&Rec",""]
[1911760001,"191-149ConservNR0001","Ctl RentUtil-TNR-ConservNR","Facilities Mgmt Dir","191","1750","P",null,null,null,null,null,null,false,0,"X",1911760001,"Ctl RentUtil-TNR-ConservNR",""]
[1911770001,"191-149FacMgmt0001","Ctl RentUtil-TNR-FacMgmt","Facilities Mgmt Dir","191","1140","P",null,null,null,null,null,null,false,0,"X",1911770001,"Ctl RentUtil-TNR-FacMgmt",""]
[1911780001,"191-149Drng0001","Ctl RentUtil-TNR-Drng","Facilities Mgmt Dir","191","1730","P",null,null,null,null,null,null,false,0,"X",1911780001,"Ctl RentUtil-TNR-Drng",""]
[1911790001,"191-149Sanitatn0001","Ctl RentUtil-TNR-Sanitation","Facilities Mgmt Dir","191","1760","P",null,null,null,null,null,null,false,0,"X",1911790001,"Ctl RentUtil-TNR-Sanitation",""]
[1911800001,"191-149DevRegIn0001","Ctl RentUtil-TNR-DevRegIn","Facilities Mgmt Dir","191","1740","P",null,null,null,null,null,null,false,0,"X",1911800001,"Ctl RentUtil-TNR-DevRegIn",""]
[1911810001,"191-149HumanSvs0001","Ctl RentUtil-TNR-HumanSvs","Facilities Mgmt Dir","191","1530","P",null,null,null,null,null,null,false,0,"X",1911810001,"Ctl RentUtil-TNR-HumanSvs",""]
[1911820001,"191-154GenAdm0001","Ctl RentUtil-Civil Service Cmn-GenAdm","Facilities Mgmt Dir","191","1110","P",null,null,null,null,null,null,false,0,"X",1911820001,"Ctl RentUtil-Civil Service Cmn-GenAdm",""]
[1911830001,"191-155CrmJs0001","Ctl RentUtil-CJP-CrmJs","Facilities Mgmt Dir","191","1210","P",null,null,null,null,null,null,false,0,"X",1911830001,"Ctl RentUtil-CJP-CrmJs",""]
[1911840001,"191-155Hlhcare0001","Ctl RentUtil-CJP-Hlhcare","Facilities Mgmt Dir","191","1510","P",null,null,null,null,null,null,false,0,"X",1911840001,"Ctl RentUtil-CJP-Hlhcare",""]
[1911850001,"191-155EmrgMgmt0001","Ctl RentUtil-CJP-EmrgMgmt","Facilities Mgmt Dir","191","1320","P",null,null,null,null,null,null,false,0,"X",1911850001,"Ctl RentUtil-CJP-EmrgMgmt",""]
[1911860001,"191-155Svsn0001","Ctl RentUtil-CJP-Svsn","Facilities Mgmt Dir","191","1420","P",null,null,null,null,null,null,false,0,"X",1911860001,"Ctl RentUtil-CJP-Svsn",""]
[1911870001,"191-155JuvSvs0001","Ctl RentUtil-CJP-JuvSvs","Facilities Mgmt Dir","191","1230","P",null,null,null,null,null,null,false,0,"X",1911870001,"Ctl RentUtil-CJP-JuvSvs",""]
[1911880001,"191-155LE0001","Ctl RentUtil-CJP-LE","Facilities Mgmt Dir","191","1310","P",null,null,null,null,null,null,false,0,"X",1911880001,"Ctl RentUtil-CJP-LE",""]
[1911890001,"191-157GenAdm0001","Ctl RentUtil-CRS-GenAdm","Facilities Mgmt Dir","191","1110","P",null,null,null,null,null,null,false,0,"X",1911890001,"Ctl RentUtil-CRS-GenAdm",""]
[1911900001,"191-157CivJs0001","Ctl RentUtil-CRS-CivJs","Facilities Mgmt Dir","191","1220","P",null,null,null,null,null,null,false,0,"X",1911900001,"Ctl RentUtil-CRS-CivJs",""]
[1911910001,"191-157CrmJs0001","Ctl RentUtil-CRS-CrmJs","Facilities Mgmt Dir","191","1210","P",null,null,null,null,null,null,false,0,"X",1911910001,"Ctl RentUtil-CRS-CrmJs",""]
[1911920001,"191-158Hlhcare0001","Ctl RentUtil-HHS-Hlhcare","Facilities Mgmt Dir","191","1510","P",null,null,null,null,null,null,false,0,"X",1911920001,"Ctl RentUtil-HHS-Hlhcare",""]
[1911930001,"191-158PbcHlh0001","Ctl RentUtil-HHS-PbcHlh","Facilities Mgmt Dir","191","1520","P",null,null,null,null,null,null,false,0,"X",1911930001,"Ctl RentUtil-HHS-PbcHlh",""]
[1911940001,"191-158HumanSvs0001","Ctl RentUtil-HHS-HumanSvs","Facilities Mgmt Dir","191","1530","P",null,null,null,null,null,null,false,0,"X",1911940001,"Ctl RentUtil-HHS-HumanSvs",""]
[1911950001,"191-158JuvSvs0001","Ctl RentUtil-HHS-JuvSvs","Facilities Mgmt Dir","191","1230","P",null,null,null,null,null,null,false,0,"X",1911950001,"Ctl RentUtil-HHS-JuvSvs",""]
[1911960001,"191-159Hlhcare0001","Ctl RentUtil-EMS-Hlhcare","Facilities Mgmt Dir","191","1510","P",null,null,null,null,null,null,false,0,"X",1911960001,"Ctl RentUtil-EMS-Hlhcare",""]
[1911970001,"191-193CivJs0001","Ctl RentUtil-Legally Mtd Fees-CivJs","Facilities Mgmt Dir","191","1220","P",null,null,null,null,null,null,false,0,"X",1911970001,"Ctl RentUtil-Legally Mtd Fees-CivJs",""]
[1911980001,"191-194CrmJs0001","Ctl RentUtil-Legally Mtd Fees-CrmJs","Facilities Mgmt Dir","191","1210","P",null,null,null,null,null,null,false,0,"X",1911980001,"Ctl RentUtil-Legally Mtd Fees-CrmJs",""]
[1921100001,"192-101GenAdm0001","Ctl Fleet-County Judge-GenAdm","County Exec TNR","192","1110","P",null,null,null,null,null,null,false,0,"X",1921100001,"Ctl Fleet-County Judge-GenAdm",""]
[1921110001,"192-101JuvSvs0001","Ctl Fleet-County Judge-JuvSvs","County Exec TNR","192","1230","P",null,null,null,null,null,null,false,0,"X",1921110001,"Ctl Fleet-County Judge-JuvSvs",""]
[1921120001,"192-102GenAdm0001","Ctl Fleet-CC-Pct 1-GenAdm","County Exec TNR","192","1110","P",null,null,null,null,null,null,false,0,"X",1921120001,"Ctl Fleet-CC-Pct 1-GenAdm",""]
[1921130001,"192-103GenAdm0001","Ctl Fleet-CC Pct 2-GenAdm","County Exec TNR","192","1110","P",null,null,null,null,null,null,false,0,"X",1921130001,"Ctl Fleet-CC Pct 2-GenAdm",""]
[1921140001,"192-104GenAdm0001","Ctl Fleet-CC Pct 3-GenAdm","County Exec TNR","192","1110","P",null,null,null,null,null,null,false,0,"X",1921140001,"Ctl Fleet-CC Pct 3-GenAdm",""]
[1921150001,"192-105GenAdm0001","Ctl Fleet-CC Pct 4-GenAdm","County Exec TNR","192","1110","P",null,null,null,null,null,null,false,0,"X",1921150001,"Ctl Fleet-CC Pct 4-GenAdm",""]
[1921160001,"192-106FinAdm0001","Ctl Fleet-County Auditor-FinAdm","County Exec TNR","192","1120","P",null,null,null,null,null,null,false,0,"X",1921160001,"Ctl Fleet-County Auditor-FinAdm",""]
[1921170001,"192-107FinAdm0001","Ctl Fleet-County Treasurer-FinAdm","County Exec TNR","192","1120","P",null,null,null,null,null,null,false,0,"X",1921170001,"Ctl Fleet-County Treasurer-FinAdm",""]
[1921180001,"192-108TaxAdm0001","Ctl Fleet-Tax Collector-TaxAdm","County Exec TNR","192","1130","P",null,null,null,null,null,null,false,0,"X",1921180001,"Ctl Fleet-Tax Collector-TaxAdm",""]
[1921190001,"192-108CrmJs0001","Ctl Fleet-Tax Collector-CrmJs","County Exec TNR","192","1210","P",null,null,null,null,null,null,false,0,"X",1921190001,"Ctl Fleet-Tax Collector-CrmJs",""]
[1921200001,"192-108ElnAdm0001","Ctl Fleet-Tax Collector-ElnAdm","County Exec TNR","192","1150","P",null,null,null,null,null,null,false,0,"X",1921200001,"Ctl Fleet-Tax Collector-ElnAdm",""]
[1921210001,"192-109FinAdm0001","Ctl Fleet-Planning And Budget-FinAdm","County Exec TNR","192","1120","P",null,null,null,null,null,null,false,0,"X",1921210001,"Ctl Fleet-Planning And Budget-FinAdm",""]
[1921220001,"192-110GenAdm0001","Ctl Fleet-General Adm-GenAdm","County Exec TNR","192","1110","P",null,null,null,null,null,null,false,0,"X",1921220001,"Ctl Fleet-General Adm-GenAdm",""]
[1921230001,"192-110Hlhcare0001","Ctl Fleet-General Adm-Hlhcare","County Exec TNR","192","1510","P",null,null,null,null,null,null,false,0,"X",1921230001,"Ctl Fleet-General Adm-Hlhcare",""]
[1921240001,"192-110EconDev0001","Ctl Fleet-General Adm-EconDev","County Exec TNR","192","1610","P",null,null,null,null,null,null,false,0,"X",1921240001,"Ctl Fleet-General Adm-EconDev",""]
[1921250001,"192-111GenAdm0001","Ctl Fleet-Human Resource Mgmt-GenAdm","County Exec TNR","192","1110","P",null,null,null,null,null,null,false,0,"X",1921250001,"Ctl Fleet-Human Resource Mgmt-GenAdm",""]
[1921260001,"192-112GenAdm0001","Ctl Fleet-ITS-GenAdm","County Exec TNR","192","1110","P",null,null,null,null,null,null,false,0,"X",1921260001,"Ctl Fleet-ITS-GenAdm",""]
[1921270001,"192-113EconDev0001","Ctl Fleet-EXPO Center-EconDev","County Exec TNR","192","1610","P",null,null,null,null,null,null,false,0,"X",1921270001,"Ctl Fleet-EXPO Center-EconDev",""]
[1921280001,"192-114FacMgmt0001","Ctl Fleet-Facilities Mgmt-FacMgmt","County Exec TNR","192","1140","P",null,null,null,null,null,null,false,0,"X",1921280001,"Ctl Fleet-Facilities Mgmt-FacMgmt",""]
[1921290001,"192-114EconDev0001","Ctl Fleet-Facilities Mgmt-EconDev","County Exec TNR","192","1610","P",null,null,null,null,null,null,false,0,"X",1921290001,"Ctl Fleet-Facilities Mgmt-EconDev",""]
[1921300001,"192-115FinAdm0001","Ctl Fleet-Purchasing-FinAdm","County Exec TNR","192","1120","P",null,null,null,null,null,null,false,0,"X",1921300001,"Ctl Fleet-Purchasing-FinAdm",""]
[1921310001,"192-116HumanSvs0001","Ctl Fleet-Veterans Services-HumanSvs","County Exec TNR","192","1530","P",null,null,null,null,null,null,false,0,"X",1921310001,"Ctl Fleet-Veterans Services-HumanSvs",""]
[1921320001,"192-117Cul&Edu0001","Ctl Fleet-Historical Comm-Cul&Edu","County Exec TNR","192","1650","P",null,null,null,null,null,null,false,0,"X",1921320001,"Ctl Fleet-Historical Comm-Cul&Edu",""]
[1921330001,"192-118HumanSvs0001","Ctl Fleet-Agr Ext Serv-HumanSvs","County Exec TNR","192","1530","P",null,null,null,null,null,null,false,0,"X",1921330001,"Ctl Fleet-Agr Ext Serv-HumanSvs",""]
[1921340001,"192-119CivJs0001","Ctl Fleet-County Attorney-CivJs","County Exec TNR","192","1220","P",null,null,null,null,null,null,false,0,"X",1921340001,"Ctl Fleet-County Attorney-CivJs",""]
[1921350001,"192-119CrmJs0001","Ctl Fleet-County Attorney-CrmJs","County Exec TNR","192","1210","P",null,null,null,null,null,null,false,0,"X",1921350001,"Ctl Fleet-County Attorney-CrmJs",""]
[1921360001,"192-120GenAdm0001","Ctl Fleet-County Clerk-GenAdm","County Exec TNR","192","1110","P",null,null,null,null,null,null,false,0,"X",1921360001,"Ctl Fleet-County Clerk-GenAdm",""]
[1921370001,"192-120ElnAdm0001","Ctl Fleet-County Clerk-ElnAdm","County Exec TNR","192","1150","P",null,null,null,null,null,null,false,0,"X",1921370001,"Ctl Fleet-County Clerk-ElnAdm",""]
[1921380001,"192-120CivJs0001","Ctl Fleet-County Clerk-CivJs","County Exec TNR","192","1220","P",null,null,null,null,null,null,false,0,"X",1921380001,"Ctl Fleet-County Clerk-CivJs",""]
[1921390001,"192-120CrmJs0001","Ctl Fleet-County Clerk-CrmJs","County Exec TNR","192","1210","P",null,null,null,null,null,null,false,0,"X",1921390001,"Ctl Fleet-County Clerk-CrmJs",""]
[1921400001,"192-121CivJs0001","Ctl Fleet-District Clerk-CivJs","County Exec TNR","192","1220","P",null,null,null,null,null,null,false,0,"X",1921400001,"Ctl Fleet-District Clerk-CivJs",""]
[1921410001,"192-121CrmJs0001","Ctl Fleet-District Clerk-CrmJs","County Exec TNR","192","1210","P",null,null,null,null,null,null,false,0,"X",1921410001,"Ctl Fleet-District Clerk-CrmJs",""]
[1921420001,"192-122CivJs0001","Ctl Fleet-Civil Courts-CivJs","County Exec TNR","192","1220","P",null,null,null,null,null,null,false,0,"X",1921420001,"Ctl Fleet-Civil Courts-CivJs",""]
[1921430001,"192-123CrmJs0001","Ctl Fleet-District Attorney-CrmJs","County Exec TNR","192","1210","P",null,null,null,null,null,null,false,0,"X",1921430001,"Ctl Fleet-District Attorney-CrmJs",""]
[1921440001,"192-123CivJs0001","Ctl Fleet-District Attorney-CivJs","County Exec TNR","192","1220","P",null,null,null,null,null,null,false,0,"X",1921440001,"Ctl Fleet-District Attorney-CivJs",""]
[1921450001,"192-124CrmJs0001","Ctl Fleet-Criminal Courts-CrmJs","County Exec TNR","192","1210","P",null,null,null,null,null,null,false,0,"X",1921450001,"Ctl Fleet-Criminal Courts-CrmJs",""]
[1921460001,"192-125CivJs0001","Ctl Fleet-Probate Court-CivJs","County Exec TNR","192","1220","P",null,null,null,null,null,null,false,0,"X",1921460001,"Ctl Fleet-Probate Court-CivJs",""]
[1921470001,"192-126CivJs0001","Ctl Fleet-Justice Of Peace 1-CivJs","County Exec TNR","192","1220","P",null,null,null,null,null,null,false,0,"X",1921470001,"Ctl Fleet-Justice Of Peace 1-CivJs",""]
[1921480001,"192-126CrmJs0001","Ctl Fleet-Justice Of Peace 1-CrmJs","County Exec TNR","192","1210","P",null,null,null,null,null,null,false,0,"X",1921480001,"Ctl Fleet-Justice Of Peace 1-CrmJs",""]
[1921490001,"192-127CivJs0001","Ctl Fleet-Justice Of Peace 2-CivJs","County Exec TNR","192","1220","P",null,null,null,null,null,null,false,0,"X",1921490001,"Ctl Fleet-Justice Of Peace 2-CivJs",""]
[1921500001,"192-127CrmJs0001","Ctl Fleet-Justice Of Peace 2-CrmJs","County Exec TNR","192","1210","P",null,null,null,null,null,null,false,0,"X",1921500001,"Ctl Fleet-Justice Of Peace 2-CrmJs",""]
[1921510001,"192-128CivJs0001","Ctl Fleet-Justice Of Peace 3-CivJs","County Exec TNR","192","1220","P",null,null,null,null,null,null,false,0,"X",1921510001,"Ctl Fleet-Justice Of Peace 3-CivJs",""]
[1921520001,"192-128CrmJs0001","Ctl Fleet-Justice Of Peace 3-CrmJs","County Exec TNR","192","1210","P",null,null,null,null,null,null,false,0,"X",1921520001,"Ctl Fleet-Justice Of Peace 3-CrmJs",""]
[1921530001,"192-129CivJs0001","Ctl Fleet-Justice Of Peace 4-CivJs","County Exec TNR","192","1220","P",null,null,null,null,null,null,false,0,"X",1921530001,"Ctl Fleet-Justice Of Peace 4-CivJs",""]
[1921540001,"192-129CrmJs0001","Ctl Fleet-Justice Of Peace 4-CrmJs","County Exec TNR","192","1210","P",null,null,null,null,null,null,false,0,"X",1921540001,"Ctl Fleet-Justice Of Peace 4-CrmJs",""]
[1921550001,"192-130CivJs0001","Ctl Fleet-Justice Of Peace 5-CivJs","County Exec TNR","192","1220","P",null,null,null,null,null,null,false,0,"X",1921550001,"Ctl Fleet-Justice Of Peace 5-CivJs",""]
[1921560001,"192-130CrmJs0001","Ctl Fleet-Justice Of Peace 5-CrmJs","County Exec TNR","192","1210","P",null,null,null,null,null,null,false,0,"X",1921560001,"Ctl Fleet-Justice Of Peace 5-CrmJs",""]
[1921570001,"192-131LE0001","Ctl Fleet-Constable 1-LE","County Exec TNR","192","1310","P",null,null,null,null,null,null,false,0,"X",1921570001,"Ctl Fleet-Constable 1-LE",""]
[1921580001,"192-132LE0001","Ctl Fleet-Constable 2-LE","County Exec TNR","192","1310","P",null,null,null,null,null,null,false,0,"X",1921580001,"Ctl Fleet-Constable 2-LE",""]
[1921590001,"192-133LE0001","Ctl Fleet-Constable 3-LE","County Exec TNR","192","1310","P",null,null,null,null,null,null,false,0,"X",1921590001,"Ctl Fleet-Constable 3-LE",""]
[1921600001,"192-134LE0001","Ctl Fleet-Constable 4-LE","County Exec TNR","192","1310","P",null,null,null,null,null,null,false,0,"X",1921600001,"Ctl Fleet-Constable 4-LE",""]
[1921610001,"192-135LE0001","Ctl Fleet-Constable 5-LE","County Exec TNR","192","1310","P",null,null,null,null,null,null,false,0,"X",1921610001,"Ctl Fleet-Constable 5-LE",""]
[1921620001,"192-136CivJs0001","Ctl Fleet-Dispute Resol Ctr-CivJs","County Exec TNR","192","1220","P",null,null,null,null,null,null,false,0,"X",1921620001,"Ctl Fleet-Dispute Resol Ctr-CivJs",""]
[1921630001,"192-137LE0001","Ctl Fleet-Sheriff-LE","County Exec TNR","192","1310","P",null,null,null,null,null,null,false,0,"X",1921630001,"Ctl Fleet-Sheriff-LE",""]
[1921640001,"192-137HsgBkg0001","Ctl Fleet-Sheriff-HsgBkg","County Exec TNR","192","1410","P",null,null,null,null,null,null,false,0,"X",1921640001,"Ctl Fleet-Sheriff-HsgBkg",""]
[1921650001,"192-138LE0001","Ctl Fleet-Medical Examiner-LE","County Exec TNR","192","1310","P",null,null,null,null,null,null,false,0,"X",1921650001,"Ctl Fleet-Medical Examiner-LE",""]
[1921660001,"192-139Svsn0001","Ctl Fleet-CSCD-Svsn","County Exec TNR","192","1420","P",null,null,null,null,null,null,false,0,"X",1921660001,"Ctl Fleet-CSCD-Svsn",""]
[1921670001,"192-140Svsn0001","Ctl Fleet-TCCES-Svsn","County Exec TNR","192","1420","P",null,null,null,null,null,null,false,0,"X",1921670001,"Ctl Fleet-TCCES-Svsn",""]
[1921680001,"192-142Svsn0001","Ctl Fleet-Pretrial Services-Svsn","County Exec TNR","192","1420","P",null,null,null,null,null,null,false,0,"X",1921680001,"Ctl Fleet-Pretrial Services-Svsn",""]
[1921690001,"192-142HsgBkg0001","Ctl Fleet-Pretrial Services-HsgBkg","County Exec TNR","192","1410","P",null,null,null,null,null,null,false,0,"X",1921690001,"Ctl Fleet-Pretrial Services-HsgBkg",""]
[1921700001,"192-143JuvSvs0001","Ctl Fleet-Juvenile Public Dfdr-JuvSvs","County Exec TNR","192","1230","P",null,null,null,null,null,null,false,0,"X",1921700001,"Ctl Fleet-Juvenile Public Dfdr-JuvSvs",""]
[1921710001,"192-145JuvSvs0001","Ctl Fleet-Juvenile Probation-JuvSvs","County Exec TNR","192","1230","P",null,null,null,null,null,null,false,0,"X",1921710001,"Ctl Fleet-Juvenile Probation-JuvSvs",""]
[1921720001,"192-147Hlhcare0001","Ctl Fleet-Emergency Services-Hlhcare","County Exec TNR","192","1510","P",null,null,null,null,null,null,false,0,"X",1921720001,"Ctl Fleet-Emergency Services-Hlhcare",""]
[1921730001,"192-147EmrgMgmt0001","Ctl Fleet-Emergency Services-EmrgMgmt","County Exec TNR","192","1320","P",null,null,null,null,null,null,false,0,"X",1921730001,"Ctl Fleet-Emergency Services-EmrgMgmt",""]
[1921740001,"192-149RdBg0001","Ctl Fleet-TNR-RdBg","County Exec TNR","192","1710","P",null,null,null,null,null,null,false,0,"X",1921740001,"Ctl Fleet-TNR-RdBg",""]
[1921750001,"192-149Parks&Rec0001","Ctl Fleet-TNR-Parks&Rec","County Exec TNR","192","1630","P",null,null,null,null,null,null,false,0,"X",1921750001,"Ctl Fleet-TNR-Parks&Rec",""]
[1921760001,"192-149ConservNR0001","Ctl Fleet-TNR-ConservNR","County Exec TNR","192","1750","P",null,null,null,null,null,null,false,0,"X",1921760001,"Ctl Fleet-TNR-ConservNR",""]
[1921770001,"192-149FacMgmt0001","Ctl Fleet-TNR-FacMgmt","County Exec TNR","192","1140","P",null,null,null,null,null,null,false,0,"X",1921770001,"Ctl Fleet-TNR-FacMgmt",""]
[1921780001,"192-149Drng0001","Ctl Fleet-TNR-Drng","County Exec TNR","192","1730","P",null,null,null,null,null,null,false,0,"X",1921780001,"Ctl Fleet-TNR-Drng",""]
[1921790001,"192-149Sanitation000","Ctl Fleet-TNR-Sanitation","County Exec TNR","192","1760","P",null,null,null,null,null,null,false,0,"X",1921790001,"Ctl Fleet-TNR-Sanitation",""]
[1921800001,"192-149DevRegIn0001","Ctl Fleet-TNR-DevRegIn","County Exec TNR","192","1740","P",null,null,null,null,null,null,false,0,"X",1921800001,"Ctl Fleet-TNR-DevRegIn",""]
[1921810001,"192-149HumanSvs0001","Ctl Fleet-TNR-HumanSvs","County Exec TNR","192","1530","P",null,null,null,null,null,null,false,0,"X",1921810001,"Ctl Fleet-TNR-HumanSvs",""]
[1921820001,"192-154GenAdm0001","Ctl Fleet-Civil Service Cmn-GenAdm","County Exec TNR","192","1110","P",null,null,null,null,null,null,false,0,"X",1921820001,"Ctl Fleet-Civil Service Cmn-GenAdm",""]
[1921830001,"192-155CrmJs0001","Ctl Fleet-CJP-CrmJs","County Exec TNR","192","1210","P",null,null,null,null,null,null,false,0,"X",1921830001,"Ctl Fleet-CJP-CrmJs",""]
[1921840001,"192-155Hlhcare0001","Ctl Fleet-CJP-Hlhcare","County Exec TNR","192","1510","P",null,null,null,null,null,null,false,0,"X",1921840001,"Ctl Fleet-CJP-Hlhcare",""]
[1921850001,"192-155EmrgMgmt0001","Ctl Fleet-CJP-EmrgMgmt","County Exec TNR","192","1320","P",null,null,null,null,null,null,false,0,"X",1921850001,"Ctl Fleet-CJP-EmrgMgmt",""]
[1921860001,"192-155Svsn0001","Ctl Fleet-CJP-Svsn","County Exec TNR","192","1420","P",null,null,null,null,null,null,false,0,"X",1921860001,"Ctl Fleet-CJP-Svsn",""]
[1921870001,"192-155JuvSvs0001","Ctl Fleet-CJP-JuvSvs","County Exec TNR","192","1230","P",null,null,null,null,null,null,false,0,"X",1921870001,"Ctl Fleet-CJP-JuvSvs",""]
[1921880001,"192-155LE0001","Ctl Fleet-CJP-LE","County Exec TNR","192","1310","P",null,null,null,null,null,null,false,0,"X",1921880001,"Ctl Fleet-CJP-LE",""]
[1921890001,"192-157GenAdm0001","Ctl Fleet-CRS-GenAdm","County Exec TNR","192","1110","P",null,null,null,null,null,null,false,0,"X",1921890001,"Ctl Fleet-CRS-GenAdm",""]
[1921900001,"192-157CivJs0001","Ctl Fleet-CRS-CivJs","County Exec TNR","192","1220","P",null,null,null,null,null,null,false,0,"X",1921900001,"Ctl Fleet-CRS-CivJs",""]
[1921910001,"192-157CrmJs0001","Ctl Fleet-CRS-CrmJs","County Exec TNR","192","1210","P",null,null,null,null,null,null,false,0,"X",1921910001,"Ctl Fleet-CRS-CrmJs",""]
[1921920001,"192-158Hlhcare0001","Ctl Fleet-HHS-Hlhcare","County Exec TNR","192","1510","P",null,null,null,null,null,null,false,0,"X",1921920001,"Ctl Fleet-HHS-Hlhcare",""]
[1921930001,"192-158PbcHlh0001","Ctl Fleet-HHS-PbcHlh","County Exec TNR","192","1520","P",null,null,null,null,null,null,false,0,"X",1921930001,"Ctl Fleet-HHS-PbcHlh",""]
[1921940001,"192-158HumanSvs0001","Ctl Fleet-HHS-HumanSvs","County Exec TNR","192","1530","P",null,null,null,null,null,null,false,0,"X",1921940001,"Ctl Fleet-HHS-HumanSvs",""]
[1921950001,"192-158JuvSvs0001","Ctl Fleet-HHS-JuvSvs","County Exec TNR","192","1230","P",null,null,null,null,null,null,false,0,"X",1921950001,"Ctl Fleet-HHS-JuvSvs",""]
[1921960001,"192-159Hlhcare0001","Ctl Fleet-EMS-Hlhcare","County Exec TNR","192","1510","P",null,null,null,null,null,null,false,0,"X",1921960001,"Ctl Fleet-EMS-Hlhcare",""]
[1921970001,"192-193CivJs0001","Ctl Fleet-Legally Mtd Fees-CivJs","County Exec TNR","192","1220","P",null,null,null,null,null,null,false,0,"X",1921970001,"Ctl Fleet-Legally Mtd Fees-CivJs",""]
[1921980001,"192-194CrmJs0001","Ctl Fleet-Legally Mtd Fees-CrmJs","County Exec TNR","192","1210","P",null,null,null,null,null,null,false,0,"X",1921980001,"Ctl Fleet-Legally Mtd Fees-CrmJs",""]
[1921990001,"192-149Parks&Rec0001","Ctl Fleet-TNR-Parks&Rec","County Exec TNR","192","1110","P",null,null,null,null,null,null,false,0,"X",1921990001,"Ctl Fleet-TNR-Parks&Rec",""]
[1922000001,"192-114FacMgmt0001","Ctl Fleet-Facilities Mgmt-FacMgmt","County Exec TNR","192","1110","P",null,null,null,null,null,null,false,0,"X",1922000001,"Ctl Fleet-Facilities Mgmt-FacMgmt",""]
[1928000001,"192CAR-RdBg0001","Ctl Fleet CAR-RdBg GF","County Exec TNR","192","1710","C",null,null,null,null,null,null,false,"CAR","X",1928000001,"Ctl Fleet CAR-RdBg GF",""]
[1928010001,"192CAR-GenAdm0001","Ctl Fleet CAR-GenAdm GF","County Exec TNR","192","1110","C",null,null,null,null,null,null,false,"CAR","X",1928010001,"Ctl Fleet CAR-GenAdm GF",""]
[1928030001,"192CAR-FacMgmt0001","Ctl Fleet CAR-FacMgmt GF","County Exec TNR","192","1140","C",null,null,null,null,null,null,false,"CAR","X",1928030001,"Ctl Fleet CAR-FacMgmt GF",""]
[1928050001,"192CAR-CrmJs0001","Ctl Fleet CAR-CrmJs GF","County Exec TNR","192","1210","C",null,null,null,null,null,null,false,"CAR","X",1928050001,"Ctl Fleet CAR-CrmJs GF",""]
[1928070001,"192CAR-JsSysJuvS0001","Ctl Fleet CAR-JsSys Juvenile Services GF","County Exec TNR","192","1230","C",null,null,null,null,null,null,false,"CAR","X",1928070001,"Ctl Fleet CAR-JsSys Juvenile Services GF",""]
[1928080001,"192CAR-LE0001","Ctl Fleet CAR-LE GF","County Exec TNR","192","1310","C",null,null,null,null,null,null,false,"CAR","X",1928080001,"Ctl Fleet CAR-LE GF",""]
[1928100001,"192CAR-HsgBkg0001","Ctl Fleet CAR-HsgBkg GF","County Exec TNR","192","1410","C",null,null,null,null,null,null,false,"CAR","X",1928100001,"Ctl Fleet CAR-HsgBkg GF",""]
[1928110001,"192CAR-CrcRehabS0001","Ctl Fleet CAR-CrcRehab Supervision GF","County Exec TNR","192","1420","C",null,null,null,null,null,null,false,"CAR","X",1928110001,"Ctl Fleet CAR-CrcRehab Supervision GF",""]
[1928150001,"192CAR-HHSHumSvc0001","Ctl Fleet CAR-HHS Human Services GF","County Exec TNR","192","1530","C",null,null,null,null,null,null,false,"CAR","X",1928150001,"Ctl Fleet CAR-HHS Human Services GF",""]
[1928200001,"192CAR-Pk/Rec0001","Ctl Fleet CAR-Pk/Recreation GF","County Exec TNR","192","1630","C",null,null,null,null,null,null,false,"CAR","X",1928200001,"Ctl Fleet CAR-Pk/Recreation GF",""]
[1930010001,"193CCCoLMF0001","Civil Courts-Co-LMF-GF","Co Crt At Law Judge","193","1220","I",null,null,null,null,null,null,false,0,"X",1930010001,"Civil Courts-Co-LMF-GF","Y"]
[1930020001,"193CC1LMF0001","Civil Courts Civil Co Ct at Law 1-LMF-GF","Co Crt At Law Judge","193","1220","I",null,null,null,null,null,null,false,0,"X",1930010001,"Civil Courts-Co-LMF-GF","Y"]
[1930030001,"193CC2LMF0001","Civil Courts Civil Co Ct at Law 2-LMF-GF","Co Crt At Law Judge","193","1220","I",null,null,null,null,null,null,false,0,"X",1930010001,"Civil Courts-Co-LMF-GF","Y"]
[1930040001,"193CCAppLMF0001","Civil Courts-App-LMF-GF","District Judge","193","1220","I",null,null,null,null,null,null,false,0,"X",1930060001,"Civil Courts-District-LMF-GF","Y"]
[1930050001,"193CC3CLMF0001","Civil Courts-3rdCt-LMF-GF","District Judge","193","1220","I",null,null,null,null,null,null,false,0,"X",1930060001,"Civil Courts-District-LMF-GF","Y"]
[1930060001,"193CCDisLMF0001","Civil Courts-District-LMF-GF","District Judge","193","1220","I",null,null,null,null,null,null,false,0,"X",1930060001,"Civil Courts-District-LMF-GF","Y"]
[1930070001,"193126DCLMF0001","Civil Courts 126th District Court-LMF-GF","District Judge","193","1220","I",null,null,null,null,null,null,false,0,"X",1930060001,"Civil Courts-District-LMF-GF","Y"]
[1930080001,"193200DCLMF0001","Civil Courts 200th District Court-LMF-GF","District Judge","193","1220","I",null,null,null,null,null,null,false,0,"X",1930060001,"Civil Courts-District-LMF-GF","Y"]
[1930090001,"193201DCLMF0001","Civil Courts 201st District Court-LMF-GF","District Judge","193","1220","I",null,null,null,null,null,null,false,0,"X",1930060001,"Civil Courts-District-LMF-GF","Y"]
[1930100001,"193250DCLMF0001","Civil Courts 250th District Court-LMF-GF","District Judge","193","1220","I",null,null,null,null,null,null,false,0,"X",1930060001,"Civil Courts-District-LMF-GF","Y"]
[1930110001,"193261DCLMF0001","Civil Courts 261st District Court-LMF-GF","District Judge","193","1220","I",null,null,null,null,null,null,false,0,"X",1930060001,"Civil Courts-District-LMF-GF","Y"]
[1930120001,"193345DCLMF0001","Civil Courts 345th District Court-LMF-GF","District Judge","193","1220","I",null,null,null,null,null,null,false,0,"X",1930060001,"Civil Courts-District-LMF-GF","Y"]
[1930130001,"193353DCLMF0001","Civil Courts 353rd District Court-LMF-GF","District Judge","193","1220","I",null,null,null,null,null,null,false,0,"X",1930060001,"Civil Courts-District-LMF-GF","Y"]
[1930140001,"193419DCLMF0001","Civil Courts 419th District Court-LMF-GF","District Judge","193","1220","I",null,null,null,null,null,null,false,0,"X",1930060001,"Civil Courts-District-LMF-GF","Y"]
[1930150001,"193053DCLMF0001","Civil Courts 53rd District Court-LMF-GF","District Judge","193","1220","I",null,null,null,null,null,null,false,0,"X",1930060001,"Civil Courts-District-LMF-GF","Y"]
[1930160001,"193098DCLMF0001","Civil Courts 98th District Court-LMF-GF","District Judge","193","1220","I",null,null,null,null,null,null,false,0,"X",1930060001,"Civil Courts-District-LMF-GF","Y"]
[1930170001,"193AsscJudge1LMF0001","Civil Courts Assoc Judge 1-LMF-GF","District Judge","193","1220","I",null,null,null,null,null,null,false,0,"X",1930060001,"Civil Courts-District-LMF-GF","Y"]
[1930180001,"193AsscJudge2LMF0001","Civil Courts Assoc Judge 2-LMF-GF","District Judge","193","1220","I",null,null,null,null,null,null,false,0,"X",1930060001,"Civil Courts-District-LMF-GF","Y"]
[1930190001,"193AsscJudge3LMF0001","Civil Courts Assoc Judge 3-LMF-GF","District Judge","193","1220","I",null,null,null,null,null,null,false,0,"X",1930060001,"Civil Courts-District-LMF-GF","Y"]
[1930200001,"193GenUnAllLMF0001","Civil Courts General Unallocated-LMF-GF","District Judge","193","1220","I",null,null,null,null,null,null,false,0,"X",1930060001,"Civil Courts-District-LMF-GF","Y"]
[1930210001,"193AsscJudge1LMF0001","Civil Courts Assoc Judge 1-LMF-GF","District Judge","193","1220","I",null,null,null,null,null,null,false,0,"X",1930060001,"Civil Courts-District-LMF-GF","Y"]
[1930220001,"193459DCLMF0001","Civil Courts 459th District Court-LMF-GF","District Judge","193","1220","I",null,null,null,null,null,null,false,0,"X",1930060001,"Civil Courts-District-LMF-GF","Y"]
[1930230001,"193455DCLLMF0001","Civil Courts 455th District Court-LMF-GF","District Judge","193","1220","I",null,null,null,null,null,null,false,0,"X",1930060001,"Civil Courts-District-LMF-GF","Y"]
[1940010001,"194CCCoLMF0001","Criminal Courts County LMF-GF","Co Crt At Law Judge","194","1210","I",null,null,null,null,null,null,false,0,"X",1940010001,"Criminal Courts County LMF-GF","Y"]
[1940030001,"194CCCoLMFCt30001","Criminal Courts LMF-County Court 3-GF","Co Crt At Law Judge","194","1210","I",null,null,null,null,null,null,false,0,"X",1940010001,"Criminal Courts County LMF-GF","Y"]
[1940040001,"194CCCoLMFCt40001","Criminal Courts LMF-County Court 4-GF","Co Crt At Law Judge","194","1210","I",null,null,null,null,null,null,false,0,"X",1940010001,"Criminal Courts County LMF-GF","Y"]
[1940050001,"194CCCoLMFCt50001","Criminal Courts LMF-County Court 5-GF","Co Crt At Law Judge","194","1210","I",null,null,null,null,null,null,false,0,"X",1940010001,"Criminal Courts County LMF-GF","Y"]
[1940060001,"194CCCoLMFCt60001","Criminal Courts LMF-County Court 6-GF","Co Crt At Law Judge","194","1210","I",null,null,null,null,null,null,false,0,"X",1940010001,"Criminal Courts County LMF-GF","Y"]
[1940070001,"194CCCoLMFCt70001","Criminal Courts LMF-County Court 7-GF","Co Crt At Law Judge","194","1210","I",null,null,null,null,null,null,false,0,"X",1940010001,"Criminal Courts County LMF-GF","Y"]
[1940080001,"194CCCoLMFCt80001","Criminal Courts LMF-County Court 8-GF","Co Crt At Law Judge","194","1210","I",null,null,null,null,null,null,false,0,"X",1940010001,"Criminal Courts County LMF-GF","Y"]
[1940090001,"194CCCoLMFCt90001","Criminal Courts LMF-County Court 9-GF","Co Crt At Law Judge","194","1210","I",null,null,null,null,null,null,false,0,"X",1940010001,"Criminal Courts County LMF-GF","Y"]
[1940500001,"194CCCoLMFDWICt0001","Criminal Courts LMF-DWI Court-GF","Co Crt At Law Judge","194","1210","I",null,null,null,null,null,null,false,0,"X",1940010001,"Criminal Courts County LMF-GF","Y"]
[1940510001,"194CCCoLMFVetCt0001","Criminal Courts LMF-Veterans Court-GF","Co Crt At Law Judge","194","1210","I",null,null,null,null,null,null,false,0,"X",1940010001,"Criminal Courts County LMF-GF","Y"]
[1940520001,"194CCCoPJENGLMF0001","Criminal Courts County LMF-Prj Engage-GF","Co Crt At Law Judge","194","1210","I",null,null,null,null,null,null,false,0,"X",1940010001,"Criminal Courts County LMF-GF","Y"]
[1941010001,"194CCDCtLMF0001","Criminal Courts District LMF-GF","District Judge","194","1210","I",null,null,null,null,null,null,false,0,"X",1941010001,"Criminal Courts District LMF-GF","Y"]
[1941470001,"194CCDCtLMF1470001","Criminal Courts District LMF-147thDCt-GF","District Judge","194","1210","I",null,null,null,null,null,null,false,0,"X",1941010001,"Criminal Courts District LMF-GF","Y"]
[1941670001,"194CCDCtLMF1670001","Criminal Courts District LMF-167thDCt-GF","District Judge","194","1210","I",null,null,null,null,null,null,false,0,"X",1941010001,"Criminal Courts District LMF-GF","Y"]
[1942990001,"194CCDCtLMF2990001","Criminal Courts District LMF-299thDCt-GF","District Judge","194","1210","I",null,null,null,null,null,null,false,0,"X",1941010001,"Criminal Courts District LMF-GF","Y"]
[1943310001,"194CCDCtLMF3310001","Criminal Courts District LMF-331stDCt-GF","District Judge","194","1210","I",null,null,null,null,null,null,false,0,"X",1941010001,"Criminal Courts District LMF-GF","Y"]
[1943900001,"194CCDCtLMF3900001","Criminal Courts District LMF-390thDCt-GF","District Judge","194","1210","I",null,null,null,null,null,null,false,0,"X",1941010001,"Criminal Courts District LMF-GF","Y"]
[1944030001,"194CCDCtLMF4030001","Criminal Courts District LMF-403rdDCt-GF","District Judge","194","1210","I",null,null,null,null,null,null,false,0,"X",1941010001,"Criminal Courts District LMF-GF","Y"]
[1944270001,"194CCDCtLMF4270001","Criminal Courts District LMF-427thDCt-GF","District Judge","194","1210","I",null,null,null,null,null,null,false,0,"X",1941010001,"Criminal Courts District LMF-GF","Y"]
[1944280001,"194CCLMFMagCt0001","Criminal Courts LMF-Magistrate Ct-GF","District Judge","194","1210","I",null,null,null,null,null,null,false,0,"X",1941010001,"Criminal Courts District LMF-GF","Y"]
[1944290001,"194CCLMFDrugCt0001","Criminal Courts LMF-Drug Ct-GF","Co Crt At Law Judge","194","1210","I",null,null,null,null,null,null,false,0,"X",1941010001,"Criminal Courts District LMF-GF","Y"]
[1944300001,"194CCLMFAttyPTNI0001","Criminal Cts LMF-Attorney ProTem-NonInd","Co Crt At Law Judge","194","1210","I",null,null,null,null,null,null,false,0,"X",1941010001,"Criminal Courts District LMF-GF","Y"]
[1944310001,"194CCLMFCt4Fel0001","Criminal Courts LMF-County Crt 4-Felony","Co Crt At Law Judge","194","1210","I",null,null,null,null,null,null,false,0,"X",1941010001,"Criminal Courts District LMF-GF","Y"]
[1944500001,"194CCLMF450thDC0001","Criminal Courts LMF-450th District Ct","Co Crt At Law Judge","194","1210","I",null,null,null,null,null,null,false,0,"X",1941010001,"Criminal Courts District LMF-GF","Y"]
[1944600001,"194CCLMF460thDC0001","Criminal Courts District LMF-460DCt","Co Crt At Law Judge","194","1210","I",null,null,null,null,null,null,false,0,"X",1941010001,"Criminal Courts District LMF-GF","Y"]
[1950010001,"195CenEmrgResp0001","Centralized Emergency Response GF","County Exec Emrg Svs","195","1320","P",null,null,null,null,null,null,false,0,"X",1950010001,"Centralized Emergency Response GF",""]
[1961100000,"196-101GenAdm0000","Comp Abs-County Judge-GenAdm","County Auditor","196","1110","P",null,null,null,null,null,null,false,0,0,1961100000,"Comp Abs-County Judge-GenAdm",""]
[1961110000,"196-101JuvSvs0000","Comp Abs-County Judge-JuvSvs","County Auditor","196","1230","P",null,null,null,null,null,null,false,0,0,1961110000,"Comp Abs-County Judge-JuvSvs",""]
[1961120000,"196-102GenAdm0000","Comp Abs-CC-Pct 1-GenAdm","County Auditor","196","1110","P",null,null,null,null,null,null,false,0,0,1961120000,"Comp Abs-CC-Pct 1-GenAdm",""]
[1961130000,"196-103GenAdm0000","Comp Abs-CC Pct 2-GenAdm","County Auditor","196","1110","P",null,null,null,null,null,null,false,0,0,1961130000,"Comp Abs-CC Pct 2-GenAdm",""]
[1961140000,"196-104GenAdm0000","Comp Abs-CC Pct 3-GenAdm","County Auditor","196","1110","P",null,null,null,null,null,null,false,0,0,1961140000,"Comp Abs-CC Pct 3-GenAdm",""]
[1961150000,"196-105GenAdm0000","Comp Abs-CC Pct 4-GenAdm","County Auditor","196","1110","P",null,null,null,null,null,null,false,0,0,1961150000,"Comp Abs-CC Pct 4-GenAdm",""]
[1961160000,"196-106FinAdm0000","Comp Abs-County Auditor-FinAdm","County Auditor","196","1120","P",null,null,null,null,null,null,false,0,0,1961160000,"Comp Abs-County Auditor-FinAdm",""]
[1961170000,"196-107FinAdm0000","Comp Abs-County Treasurer-FinAdm","County Auditor","196","1120","P",null,null,null,null,null,null,false,0,0,1961170000,"Comp Abs-County Treasurer-FinAdm",""]
[1961180000,"196-108TaxAdm0000","Comp Abs-Tax Collector-TaxAdm","County Auditor","196","1130","P",null,null,null,null,null,null,false,0,0,1961180000,"Comp Abs-Tax Collector-TaxAdm",""]
[1961190000,"196-108CrmJs0000","Comp Abs-Tax Collector-CrmJs","County Auditor","196","1210","P",null,null,null,null,null,null,false,0,0,1961190000,"Comp Abs-Tax Collector-CrmJs",""]
[1961200000,"196-108ElnAdm0000","Comp Abs-Tax Collector-ElnAdm","County Auditor","196","1150","P",null,null,null,null,null,null,false,0,0,1961200000,"Comp Abs-Tax Collector-ElnAdm",""]
[1961210000,"196-109FinAdm0000","Comp Abs-Planning And Budget-FinAdm","County Auditor","196","1120","P",null,null,null,null,null,null,false,0,0,1961210000,"Comp Abs-Planning And Budget-FinAdm",""]
[1961220000,"196-110GenAdm0000","Comp Abs-General Adm-GenAdm","County Auditor","196","1110","P",null,null,null,null,null,null,false,0,0,1961220000,"Comp Abs-General Adm-GenAdm",""]
[1961230000,"196-110Hlhcare0000","Comp Abs-General Adm-Hlhcare","County Auditor","196","1510","P",null,null,null,null,null,null,false,0,0,1961230000,"Comp Abs-General Adm-Hlhcare",""]
[1961240000,"196-110EconDev0000","Comp Abs-General Adm-EconDev","County Auditor","196","1610","P",null,null,null,null,null,null,false,0,0,1961240000,"Comp Abs-General Adm-EconDev",""]
[1961250000,"196-111GenAdm0000","Comp Abs-Human Resource Mgmt-GenAdm","County Auditor","196","1110","P",null,null,null,null,null,null,false,0,0,1961250000,"Comp Abs-Human Resource Mgmt-GenAdm",""]
[1961260000,"196-112GenAdm0000","Comp Abs-ITS-GenAdm","County Auditor","196","1110","P",null,null,null,null,null,null,false,0,0,1961260000,"Comp Abs-ITS-GenAdm",""]
[1961270000,"196-113EconDev0000","Comp Abs-EXPO Center-EconDev","County Auditor","196","1610","P",null,null,null,null,null,null,false,0,0,1961270000,"Comp Abs-EXPO Center-EconDev",""]
[1961280000,"196-114FacMgmt0000","Comp Abs-Facilities Mgmt-FacMgmt","County Auditor","196","1140","P",null,null,null,null,null,null,false,0,0,1961280000,"Comp Abs-Facilities Mgmt-FacMgmt",""]
[1961290000,"196-114EconDev0000","Comp Abs-Facilities Mgmt-EconDev","County Auditor","196","1610","P",null,null,null,null,null,null,false,0,0,1961290000,"Comp Abs-Facilities Mgmt-EconDev",""]
[1961300000,"196-115FinAdm0000","Comp Abs-Purchasing-FinAdm","County Auditor","196","1120","P",null,null,null,null,null,null,false,0,0,1961300000,"Comp Abs-Purchasing-FinAdm",""]
[1961310000,"196-116HumanSvs0000","Comp Abs-Veterans Services-HumanSvs","County Auditor","196","1530","P",null,null,null,null,null,null,false,0,0,1961310000,"Comp Abs-Veterans Services-HumanSvs",""]
[1961320000,"196-117Cul&Edu0000","Comp Abs-Historical Comm-Cul&Edu","County Auditor","196","1650","P",null,null,null,null,null,null,false,0,0,1961320000,"Comp Abs-Historical Comm-Cul&Edu",""]
[1961330000,"196-118HumanSvs0000","Comp Abs-Agr Ext Serv-HumanSvs","County Auditor","196","1530","P",null,null,null,null,null,null,false,0,0,1961330000,"Comp Abs-Agr Ext Serv-HumanSvs",""]
[1961340000,"196-119CivJs0000","Comp Abs-County Attorney-CivJs","County Auditor","196","1220","P",null,null,null,null,null,null,false,0,0,1961340000,"Comp Abs-County Attorney-CivJs",""]
[1961350000,"196-119CrmJs0000","Comp Abs-County Attorney-CrmJs","County Auditor","196","1210","P",null,null,null,null,null,null,false,0,0,1961350000,"Comp Abs-County Attorney-CrmJs",""]
[1961360000,"196-120GenAdm0000","Comp Abs-County Clerk-GenAdm","County Auditor","196","1110","P",null,null,null,null,null,null,false,0,0,1961360000,"Comp Abs-County Clerk-GenAdm",""]
[1961370000,"196-120ElnAdm0000","Comp Abs-County Clerk-ElnAdm","County Auditor","196","1150","P",null,null,null,null,null,null,false,0,0,1961370000,"Comp Abs-County Clerk-ElnAdm",""]
[1961380000,"196-120CivJs0000","Comp Abs-County Clerk-CivJs","County Auditor","196","1220","P",null,null,null,null,null,null,false,0,0,1961380000,"Comp Abs-County Clerk-CivJs",""]
[1961390000,"196-120CrmJs0000","Comp Abs-County Clerk-CrmJs","County Auditor","196","1210","P",null,null,null,null,null,null,false,0,0,1961390000,"Comp Abs-County Clerk-CrmJs",""]
[1961400000,"196-121CivJs0000","Comp Abs-District Clerk-CivJs","County Auditor","196","1220","P",null,null,null,null,null,null,false,0,0,1961400000,"Comp Abs-District Clerk-CivJs",""]
[1961410000,"196-121CrmJs0000","Comp Abs-District Clerk-CrmJs","County Auditor","196","1210","P",null,null,null,null,null,null,false,0,0,1961410000,"Comp Abs-District Clerk-CrmJs",""]
[1961420000,"196-122CivJs0000","Comp Abs-Civil Courts-CivJs","County Auditor","196","1220","P",null,null,null,null,null,null,false,0,0,1961420000,"Comp Abs-Civil Courts-CivJs",""]
[1961430000,"196-123CrmJs0000","Comp Abs-District Attorney-CrmJs","County Auditor","196","1210","P",null,null,null,null,null,null,false,0,0,1961430000,"Comp Abs-District Attorney-CrmJs",""]
[1961440000,"196-123CivJs0000","Comp Abs-District Attorney-CivJs","County Auditor","196","1220","P",null,null,null,null,null,null,false,0,0,1961440000,"Comp Abs-District Attorney-CivJs",""]
[1961450000,"196-124CrmJs0000","Comp Abs-Criminal Courts-CrmJs","County Auditor","196","1210","P",null,null,null,null,null,null,false,0,0,1961450000,"Comp Abs-Criminal Courts-CrmJs",""]
[1961460000,"196-125CivJs0000","Comp Abs-Probate Court-CivJs","County Auditor","196","1220","P",null,null,null,null,null,null,false,0,0,1961460000,"Comp Abs-Probate Court-CivJs",""]
[1961470000,"196-126CivJs0000","Comp Abs-Justice Of Peace 1-CivJs","County Auditor","196","1220","P",null,null,null,null,null,null,false,0,0,1961470000,"Comp Abs-Justice Of Peace 1-CivJs",""]
[1961480000,"196-126CrmJs0000","Comp Abs-Justice Of Peace 1-CrmJs","County Auditor","196","1210","P",null,null,null,null,null,null,false,0,0,1961480000,"Comp Abs-Justice Of Peace 1-CrmJs",""]
[1961490000,"196-127CivJs0000","Comp Abs-Justice Of Peace 2-CivJs","County Auditor","196","1220","P",null,null,null,null,null,null,false,0,0,1961490000,"Comp Abs-Justice Of Peace 2-CivJs",""]
[1961500000,"196-127CrmJs0000","Comp Abs-Justice Of Peace 2-CrmJs","County Auditor","196","1210","P",null,null,null,null,null,null,false,0,0,1961500000,"Comp Abs-Justice Of Peace 2-CrmJs",""]
[1961510000,"196-128CivJs0000","Comp Abs-Justice Of Peace 3-CivJs","County Auditor","196","1220","P",null,null,null,null,null,null,false,0,0,1961510000,"Comp Abs-Justice Of Peace 3-CivJs",""]
[1961520000,"196-128CrmJs0000","Comp Abs-Justice Of Peace 3-CrmJs","County Auditor","196","1210","P",null,null,null,null,null,null,false,0,0,1961520000,"Comp Abs-Justice Of Peace 3-CrmJs",""]
[1961530000,"196-129CivJs0000","Comp Abs-Justice Of Peace 4-CivJs","County Auditor","196","1220","P",null,null,null,null,null,null,false,0,0,1961530000,"Comp Abs-Justice Of Peace 4-CivJs",""]
[1961540000,"196-129CrmJs0000","Comp Abs-Justice Of Peace 4-CrmJs","County Auditor","196","1210","P",null,null,null,null,null,null,false,0,0,1961540000,"Comp Abs-Justice Of Peace 4-CrmJs",""]
[1961550000,"196-130CivJs0000","Comp Abs-Justice Of Peace 5-CivJs","County Auditor","196","1220","P",null,null,null,null,null,null,false,0,0,1961550000,"Comp Abs-Justice Of Peace 5-CivJs",""]
[1961560000,"196-130CrmJs0000","Comp Abs-Justice Of Peace 5-CrmJs","County Auditor","196","1210","P",null,null,null,null,null,null,false,0,0,1961560000,"Comp Abs-Justice Of Peace 5-CrmJs",""]
[1961570000,"196-131LE0000","Comp Abs-Constable 1-LE","County Auditor","196","1310","P",null,null,null,null,null,null,false,0,0,1961570000,"Comp Abs-Constable 1-LE",""]
[1961580000,"196-132LE0000","Comp Abs-Constable 2-LE","County Auditor","196","1310","P",null,null,null,null,null,null,false,0,0,1961580000,"Comp Abs-Constable 2-LE",""]
[1961590000,"196-133LE0000","Comp Abs-Constable 3-LE","County Auditor","196","1310","P",null,null,null,null,null,null,false,0,0,1961590000,"Comp Abs-Constable 3-LE",""]
[1961600000,"196-134LE0000","Comp Abs-Constable 4-LE","County Auditor","196","1310","P",null,null,null,null,null,null,false,0,0,1961600000,"Comp Abs-Constable 4-LE",""]
[1961610000,"196-135LE0000","Comp Abs-Constable 5-LE","County Auditor","196","1310","P",null,null,null,null,null,null,false,0,0,1961610000,"Comp Abs-Constable 5-LE",""]
[1961620000,"196-136CivJs0000","Comp Abs-Dispute Resol Ctr-CivJs","County Auditor","196","1220","P",null,null,null,null,null,null,false,0,0,1961620000,"Comp Abs-Dispute Resol Ctr-CivJs",""]
[1961630000,"196-137LE0000","Comp Abs-Sheriff-LE","County Auditor","196","1310","P",null,null,null,null,null,null,false,0,0,1961630000,"Comp Abs-Sheriff-LE",""]
[1961640000,"196-137HsgBkg0000","Comp Abs-Sheriff-HsgBkg","County Auditor","196","1410","P",null,null,null,null,null,null,false,0,0,1961640000,"Comp Abs-Sheriff-HsgBkg",""]
[1961650000,"196-138LE0000","Comp Abs-Medical Examiner-LE","County Auditor","196","1310","P",null,null,null,null,null,null,false,0,0,1961650000,"Comp Abs-Medical Examiner-LE",""]
[1961660000,"196-139Svsn0000","Comp Abs-CSCD-Svsn","County Auditor","196","1420","P",null,null,null,null,null,null,false,0,0,1961660000,"Comp Abs-CSCD-Svsn",""]
[1961670000,"196-140Svsn0000","Comp Abs-TCCES-Svsn","County Auditor","196","1420","P",null,null,null,null,null,null,false,0,0,1961670000,"Comp Abs-TCCES-Svsn",""]
[1961680000,"196-142Svsn0000","Comp Abs-Pretrial Services-Svsn","County Auditor","196","1420","P",null,null,null,null,null,null,false,0,0,1961680000,"Comp Abs-Pretrial Services-Svsn",""]
[1961690000,"196-142HsgBkg0000","Comp Abs-Pretrial Services-HsgBkg","County Auditor","196","1410","P",null,null,null,null,null,null,false,0,0,1961690000,"Comp Abs-Pretrial Services-HsgBkg",""]
[1961700000,"196-143JuvSvs0000","Comp Abs-Juvenile Public Dfdr-JuvSvs","County Auditor","196","1230","P",null,null,null,null,null,null,false,0,0,1961700000,"Comp Abs-Juvenile Public Dfdr-JuvSvs",""]
[1961710000,"196-145JuvSvs0000","Comp Abs-Juvenile Probation-JuvSvs","County Auditor","196","1230","P",null,null,null,null,null,null,false,0,0,1961710000,"Comp Abs-Juvenile Probation-JuvSvs",""]
[1961720000,"196-147Hlhcare0000","Comp Abs-Emergency Services-Hlhcare","County Auditor","196","1510","P",null,null,null,null,null,null,false,0,0,1961720000,"Comp Abs-Emergency Services-Hlhcare",""]
[1961730000,"196-147EmrgMgmt0000","Comp Abs-Emergency Services-EmrgMgmt","County Auditor","196","1320","P",null,null,null,null,null,null,false,0,0,1961730000,"Comp Abs-Emergency Services-EmrgMgmt",""]
[1961740000,"196-149RdBg0000","Comp Abs-TNR-RdBg","County Auditor","196","1710","P",null,null,null,null,null,null,false,0,0,1961740000,"Comp Abs-TNR-RdBg",""]
[1961750000,"196-149Parks&Rec0000","Comp Abs-TNR-Parks&Rec","County Auditor","196","1630","P",null,null,null,null,null,null,false,0,0,1961750000,"Comp Abs-TNR-Parks&Rec",""]
[1961760000,"196-149ConservNR0000","Comp Abs-TNR-ConservNR","County Auditor","196","1750","P",null,null,null,null,null,null,false,0,0,1961760000,"Comp Abs-TNR-ConservNR",""]
[1961770000,"196-149FacMgmt0000","Comp Abs-TNR-FacMgmt","County Auditor","196","1140","P",null,null,null,null,null,null,false,0,0,1961770000,"Comp Abs-TNR-FacMgmt",""]
[1961780000,"196-149Drng0000","Comp Abs-TNR-Drng","County Auditor","196","1730","P",null,null,null,null,null,null,false,0,0,1961780000,"Comp Abs-TNR-Drng",""]
[1961790000,"196-149Sanitation000","Comp Abs-TNR-Sanitation","County Auditor","196","1760","P",null,null,null,null,null,null,false,0,0,1961790000,"Comp Abs-TNR-Sanitation",""]
[1961800000,"196-149DevRegIn0000","Comp Abs-TNR-DevRegIn","County Auditor","196","1740","P",null,null,null,null,null,null,false,0,0,1961800000,"Comp Abs-TNR-DevRegIn",""]
[1961810000,"196-149HumanSvs0000","Comp Abs-TNR-HumanSvs","County Auditor","196","1530","P",null,null,null,null,null,null,false,0,0,1961810000,"Comp Abs-TNR-HumanSvs",""]
[1961820000,"196-154GenAdm0000","Comp Abs-Civil Service Cmn-GenAdm","County Auditor","196","1110","P",null,null,null,null,null,null,false,0,0,1961820000,"Comp Abs-Civil Service Cmn-GenAdm",""]
[1961830000,"196-155CrmJs0000","Comp Abs-CJP-CrmJs","County Auditor","196","1210","P",null,null,null,null,null,null,false,0,0,1961830000,"Comp Abs-CJP-CrmJs",""]
[1961840000,"196-155Hlhcare0000","Comp Abs-CJP-Hlhcare","County Auditor","196","1510","P",null,null,null,null,null,null,false,0,0,1961840000,"Comp Abs-CJP-Hlhcare",""]
[1961850000,"196-155EmrgMgmt0000","Comp Abs-CJP-EmrgMgmt","County Auditor","196","1320","P",null,null,null,null,null,null,false,0,0,1961850000,"Comp Abs-CJP-EmrgMgmt",""]
[1961860000,"196-155Svsn0000","Comp Abs-CJP-Svsn","County Auditor","196","1420","P",null,null,null,null,null,null,false,0,0,1961860000,"Comp Abs-CJP-Svsn",""]
[1961870000,"196-155JuvSvs0000","Comp Abs-CJP-JuvSvs","County Auditor","196","1230","P",null,null,null,null,null,null,false,0,0,1961870000,"Comp Abs-CJP-JuvSvs",""]
[1961880000,"196-155LE0000","Comp Abs-CJP-LE","County Auditor","196","1310","P",null,null,null,null,null,null,false,0,0,1961880000,"Comp Abs-CJP-LE",""]
[1961890000,"196-157GenAdm0000","Comp Abs-CRS-GenAdm","County Auditor","196","1110","P",null,null,null,null,null,null,false,0,0,1961890000,"Comp Abs-CRS-GenAdm",""]
[1961900000,"196-157CivJs0000","Comp Abs-CRS-CivJs","County Auditor","196","1220","P",null,null,null,null,null,null,false,0,0,1961900000,"Comp Abs-CRS-CivJs",""]
[1961910000,"196-157CrmJs0000","Comp Abs-CRS-CrmJs","County Auditor","196","1210","P",null,null,null,null,null,null,false,0,0,1961910000,"Comp Abs-CRS-CrmJs",""]
[1961920000,"196-158Hlhcare0000","Comp Abs-HHS-Hlhcare","County Auditor","196","1510","P",null,null,null,null,null,null,false,0,0,1961920000,"Comp Abs-HHS-Hlhcare",""]
[1961930000,"196-158PbcHlh0000","Comp Abs-HHS-PbcHlh","County Auditor","196","1520","P",null,null,null,null,null,null,false,0,0,1961930000,"Comp Abs-HHS-PbcHlh",""]
[1961940000,"196-158HumanSvs0000","Comp Abs-HHS-HumanSvs","County Auditor","196","1530","P",null,null,null,null,null,null,false,0,0,1961940000,"Comp Abs-HHS-HumanSvs",""]
[1961950000,"196-158JuvSvs0000","Comp Abs-HHS-JuvSvs","County Auditor","196","1230","P",null,null,null,null,null,null,false,0,0,1961950000,"Comp Abs-HHS-JuvSvs",""]
[1961960000,"196-159Hlhcare0000","Comp Abs-EMS-Hlhcare","County Auditor","196","1510","P",null,null,null,null,null,null,false,0,0,1961960000,"Comp Abs-EMS-Hlhcare",""]
[1961970000,"196-196CivJs0000","Comp Abs-Legally Mtd Fees-CivJs","County Auditor","196","1220","P",null,null,null,null,null,null,false,0,0,1961970000,"Comp Abs-Legally Mtd Fees-CivJs",""]
[1961980000,"196-194CrmJs0000","Comp Abs-Legally Mtd Fees-CrmJs","County Auditor","196","1210","P",null,null,null,null,null,null,false,0,0,1961980000,"Comp Abs-Legally Mtd Fees-CrmJs",""]
[1970000000,"197CtlProjects0000","Centralized Projects","County Exec PBO","197","1410","P",null,null,null,null,null,null,false,0,0,1970000000,"Centralized Projects",""]
[1980000000,"198Reserves0000","Reserves","County Exec PBO","198","1120","P",null,null,null,null,null,null,false,0,0,1980000000,"Reserves",""]
[2000010000,"200GenGovt0000","Govtl Grant Activities - General Gov","County Auditor","200","1100","P",null,null,null,null,null,null,false,0,0,2000010000,"Govtl Grant Activities - General Gov",""]
[2000020000,"200JsSys0000","Govtl Grant Activities - Justice System","County Auditor","200","1200","P",null,null,null,null,null,null,false,0,0,2000020000,"Govtl Grant Activities - Justice System",""]
[2000030000,"200PbcSft0000","Govtl Grant Activities - Public Safety","County Auditor","200","1300","P",null,null,null,null,null,null,false,0,0,2000030000,"Govtl Grant Activities - Public Safety",""]
[2000040000,"200CrcRehab0000","Govtl Grant Activities-Corrections&Rehab","County Auditor","200","1400","P",null,null,null,null,null,null,false,0,0,2000040000,"Govtl Grant Activities-Corrections&Rehab",""]
[2000050000,"200HHS0000","Govtl Grant Activities-Health&Human SVC","County Auditor","200","1500","P",null,null,null,null,null,null,false,0,0,2000050000,"Govtl Grant Activities-Health&Human SVC",""]
[2000060000,"200CmtyEcon0000","Govtl Grant Activities-Community&EconDev","County Auditor","200","1600","P",null,null,null,null,null,null,false,0,0,2000060000,"Govtl Grant Activities-Community&EconDev",""]
[2000070000,"200InfraEnv0000","Govtl Grant Activities - Infra & Env Svc","County Auditor","200","1700","P",null,null,null,null,null,null,false,0,0,2000070000,"Govtl Grant Activities - Infra & Env Svc",""]
[7000007002,"Surety Bail Bd Dep","Surety Bail Bd Deposits","Fiduciary","106","1110","P",null,null,null,null,null,null,false,0,"",7000007002,"Surety Bail Bd Deposits","N"]
[7000007003,"Victims of Crime","Victims of Crime","Fiduciary","106","1110","P",null,null,null,null,null,null,false,0,"",7000007003,"Victims of Crime","N"]
[7000007004,"Crim Just Planning","Criminal Justice Planning","Fiduciary","106","1110","P",null,null,null,null,null,null,false,0,"",7000007004,"Criminal Justice Planning","N"]
[7000007005,"DeptPubSftyArrest","Dept of Public Safety Arrest Fees","Fiduciary","106","1110","P",null,null,null,null,null,null,false,0,"",7000007005,"Dept of Public Safety Arrest Fees","N"]
[7000007006,"Judicial Training","Judicial Training","Fiduciary","106","1110","P",null,null,null,null,null,null,false,0,"",7000007006,"Judicial Training","N"]
[7000007007,"Oper/Chauff License","Operator/Chauffeur License","Fiduciary","106","1110","P",null,null,null,null,null,null,false,0,"",7000007007,"Operator/Chauffeur License","N"]
[7000007008,"Crime Stoppers","Crime Stoppers","Fiduciary","106","1110","P",null,null,null,null,null,null,false,0,"",7000007008,"Crime Stoppers","N"]
[7000007009,"LawEnfrcmntMgmtInsur","Law Enforcement Mgmt Insurance","Fiduciary","106","1110","P",null,null,null,null,null,null,false,0,"",7000007009,"Law Enforcement Mgmt Insurance","N"]
[7000007010,"State General Rev","State General Revenue","Fiduciary","106","1110","P",null,null,null,null,null,null,false,0,"",7000007010,"State General Revenue","N"]
[7000007011,"State Comp. Rehab","State Comprehensive Rehabilitation","Fiduciary","106","1110","P",null,null,null,null,null,null,false,0,"",7000007011,"State Comprehensive Rehabilitation","N"]
[7000007012,"BreathAlcoholTstng","Breath Alcohol Testing","Fiduciary","106","1110","P",null,null,null,null,null,null,false,0,"",7000007012,"Breath Alcohol Testing","N"]
[7000007013,"Judge's Salary Fee","Judge's Salary Fee","Fiduciary","106","1110","P",null,null,null,null,null,null,false,0,"",7000007013,"Judge's Salary Fee","N"]
[7000007014,"Tx Comm LEF - Admin","Tx Comm. on Law Enforcement - Admin","Fiduciary","106","1110","P",null,null,null,null,null,null,false,0,"",7000007014,"Tx Comm. on Law Enforcement - Admin","N"]
[7000007015,"Tx Comm LEF - ContEd","Tx Comm. on Law Enforcement - ContEd","Fiduciary","106","1110","P",null,null,null,null,null,null,false,0,"",7000007015,"Tx Comm. on Law Enforcement - ContEd","N"]
[7000007016,"Jury Contributions","Jury Contributions","Fiduciary","106","1110","P",null,null,null,null,null,null,false,0,"",7000007016,"Jury Contributions","N"]
[7000007017,"Legal Services-Indig","Legal Services-Indigents","Fiduciary","106","1110","P",null,null,null,null,null,null,false,0,"",7000007017,"Legal Services-Indigents","N"]
[7000007018,"SpecialSrvcsCrtCost","Special Services Court Cost","Fiduciary","106","1110","P",null,null,null,null,null,null,false,0,"",7000007018,"Special Services Court Cost","N"]
[7000007020,"Fugitive Apprhnsn","Fugitive Apprehension","Fiduciary","106","1110","P",null,null,null,null,null,null,false,0,"",7000007020,"Fugitive Apprehension","N"]
[7000007021,"CSCD","CSCD","Fiduciary","106","1110","P",null,null,null,null,null,null,false,0,"",7000007021,"CSCD","N"]
[7000007022,"Const Precinct 2","Constable Precinct 2","Fiduciary","106","1110","P",null,null,null,null,null,null,false,0,"",7000007022,"Constable Precinct 2","N"]
[7000007023,"Const Precinct 3","Constable Precinct 3","Fiduciary","106","1110","P",null,null,null,null,null,null,false,0,"",7000007023,"Constable Precinct 3","N"]
[7000007024,"County Attorney","County Attorney","Fiduciary","106","1110","P",null,null,null,null,null,null,false,0,"",7000007024,"County Attorney","N"]
[7000007025,"County Clerk","County Clerk","Fiduciary","106","1110","P",null,null,null,null,null,null,false,0,"",7000007025,"County Clerk","N"]
[7000007026,"District Attorney","District Attorney","Fiduciary","106","1110","P",null,null,null,null,null,null,false,0,"",7000007026,"District Attorney","N"]
[7000007027,"District Clerk","District Clerk","Fiduciary","106","1110","P",null,null,null,null,null,null,false,0,"",7000007027,"District Clerk","N"]
[7000007028,"Domestic Relations","Domestic Relations","Fiduciary","106","1110","P",null,null,null,null,null,null,false,0,"",7000007028,"Domestic Relations","N"]
[7000007029,"Sheriff's Off. Fee","Sheriff's Official Fee","Fiduciary","106","1110","P",null,null,null,null,null,null,false,0,"",7000007029,"Sheriff's Official Fee","N"]
[7000007030,"Tax Office","Tax Office","Fiduciary","106","1110","P",null,null,null,null,null,null,false,0,"",7000007030,"Tax Office","N"]
[7000007031,"JP Precinct 1","Justice of The Peace Precinct 1","Fiduciary","106","1110","P",null,null,null,null,null,null,false,0,"",7000007031,"Justice of The Peace Precinct 1","N"]
[7000007032,"JP Precinct 2","Justice of The Peace Precinct 2","Fiduciary","106","1110","P",null,null,null,null,null,null,false,0,"",7000007032,"Justice of The Peace Precinct 2","N"]
[7000007033,"JP Precinct 3","Justice of The Peace Precinct 3","Fiduciary","106","1110","P",null,null,null,null,null,null,false,0,"",7000007033,"Justice of The Peace Precinct 3","N"]
[7000007034,"JP Precinct 4","Justice of The Peace Precinct 4","Fiduciary","106","1110","P",null,null,null,null,null,null,false,0,"",7000007034,"Justice of The Peace Precinct 4","N"]
[7000007035,"JP Precinct 5","Justice of The Peace Precinct 5","Fiduciary","106","1110","P",null,null,null,null,null,null,false,0,"",7000007035,"Justice of The Peace Precinct 5","N"]
[7000007036,"County Clk Invested","County Clerk Invested","Fiduciary","106","1110","P",null,null,null,null,null,null,false,0,"",7000007036,"County Clerk Invested","N"]
[7000007037,"District Clk Investe","District Clerk Invested","Fiduciary","106","1110","P",null,null,null,null,null,null,false,0,"",7000007037,"District Clerk Invested","N"]
[7000007040,"DA / CA Frftd Prop.","Dist & Cnty Attorney Forfeited Prop.","Fiduciary","106","1110","P",null,null,null,null,null,null,false,0,"",7000007040,"Dist & Cnty Attorney Forfeited Prop.","N"]
[7000007041,"Const Precinct 4","Constable Precinct 4","Fiduciary","106","1110","P",null,null,null,null,null,null,false,0,"",7000007041,"Constable Precinct 4","N"]
[7000007042,"Const Precinct 5","Constable Precinct 5","Fiduciary","106","1110","P",null,null,null,null,null,null,false,0,"",7000007042,"Constable Precinct 5","N"]
[7000007043,"Const Precinct 1","Constable Precinct 1","Fiduciary","106","1110","P",null,null,null,null,null,null,false,0,"",7000007043,"Constable Precinct 1","N"]
[7000007044,"Available School","Available School","Fiduciary","106","1110","P",null,null,null,null,null,null,false,0,"",7000007044,"Available School","N"]
[7000007046,"Time Payment Fee","Time Payment Fee","Fiduciary","106","1110","P",null,null,null,null,null,null,false,0,"",7000007046,"Time Payment Fee","N"]
[7000007047,"Denial Licnse Rnwal","Denial For License Renewal","Fiduciary","106","1110","P",null,null,null,null,null,null,false,0,"",7000007047,"Denial For License Renewal","N"]
[7000007048,"DNA Testing","DNA Testing","Fiduciary","106","1110","P",null,null,null,null,null,null,false,0,"",7000007048,"DNA Testing","N"]
[7000007049,"Child Safety Seat","Child Safety Seat Violation","Fiduciary","106","1110","P",null,null,null,null,null,null,false,0,"",7000007049,"Child Safety Seat Violation","N"]
[7000007050,"State Court Costs","State Court Costs","Fiduciary","106","1110","P",null,null,null,null,null,null,false,0,"",7000007050,"State Court Costs","N"]
[7000007051,"Pretrial Service","Pretrial Service","Fiduciary","106","1110","P",null,null,null,null,null,null,false,0,"",7000007051,"Pretrial Service","N"]
[7000007053,"SWTCRD Ref Bds","SW Travis County Rd Dist Refunded Bonds","Fiduciary","106","1110","P",null,null,null,null,null,null,false,0,"",7000007053,"SW Travis County Rd Dist Refunded Bonds","N"]
[7000007054,"Inmate Custodial","Inmate Custodial","Fiduciary","106","1110","P",null,null,null,null,null,null,false,0,"",7000007054,"Inmate Custodial","N"]
[7000007056,"Ltd Tax Refund Bds","Limited Tax Refunded Bonds","Fiduciary","106","1110","P",null,null,null,null,null,null,false,0,"",7000007056,"Limited Tax Refunded Bonds","N"]
[7000007057,"Sheriff's Frftd Prop","Sheriff's Forfeited Property Escrow","Fiduciary","106","1110","P",null,null,null,null,null,null,false,0,"",7000007057,"Sheriff's Forfeited Property Escrow","N"]
[7000007058,"Truancy Prev & Dvrsn","Truancy Prevention and Diversion","Fiduciary","106","1110","P",null,null,null,null,null,null,false,0,"",7000007058,"Truancy Prevention and Diversion","N"]
[7000007060,"Dep in Lieu of Insur","Deposits in Lieu of Insurance","Fiduciary","106","1110","P",null,null,null,null,null,null,false,0,"",7000007060,"Deposits in Lieu of Insurance","N"]
[7000007062,"Judicial Donat Trst","Judicial Donation Trust","Fiduciary","106","1110","P",null,null,null,null,null,null,false,0,"",7000007062,"Judicial Donation Trust","N"]
[7000007063,"Jud & Crt Trng Fee","Judicial & Court Training Fee","Fiduciary","106","1110","P",null,null,null,null,null,null,false,0,"",7000007063,"Judicial & Court Training Fee","N"]
[7000007064,"Wildhorse PID","Wildhorse PID","Fiduciary","106","1110","P",null,null,null,null,null,null,false,0,"",7000007064,"Wildhorse PID","N"]
[7000007065,"Bella Fortuna PID","Bella Fortuna PID","Fiduciary","106","1110","P",null,null,null,null,null,null,false,0,"",7000007065,"Bella Fortuna PID","N"]
[7000007066,"Turner's Crssng PID","Turner's Crossing PID","Fiduciary","106","1110","P",null,null,null,null,null,null,false,0,"",7000007066,"Turner's Crossing PID","N"]
[7000007067,"Juvenile Diversion","Juvenile Diversion","Fiduciary","106","1110","P",null,null,null,null,null,null,false,0,"",7000007067,"Juvenile Diversion","N"]
[7000007068,"Velocity Crssng PID","Velocity Crossng PID","Fiduciary","106","1110","P",null,null,null,null,null,null,false,0,"",7000007068,"Velocity Crossng PID","N"]
[7000007069,"Proposed PIDs","Proposed PIDs","Fiduciary","106","1110","P",null,null,null,null,null,null,false,0,"",7000007069,"Proposed PIDs","N"]
[7000007070,"Longview 71 PID","Longview 71 PID","Fiduciary","106","1110","P",null,null,null,null,null,null,false,0,"",7000007070,"Longview 71 PID","N"]
[7000007071,"CSF-StConsolCvlFee","CSF-St Consolidated Civil Fee","Fiduciary","106","1110","P",null,null,null,null,null,null,false,0,0,7000007071,"CSF-St Consolidated Civil Fee","N"]
[8890010000,"889GenAdm0000","Hospitalization Contra-GenAdm","County Exec PBO","889","1110","P",null,null,null,null,null,null,false,0,0,8890010000,"Hospitalization Contra-GenAdm",""]
[8890020000,"889FinAdm0000","Hospitalization Contra-FinAdm","County Exec PBO","889","1120","P",null,null,null,null,null,null,false,0,0,8890020000,"Hospitalization Contra-FinAdm",""]
[8890030000,"889TaxAdm0000","Hospitalization Contra-TaxAdm","County Exec PBO","889","1130","P",null,null,null,null,null,null,false,0,0,8890030000,"Hospitalization Contra-TaxAdm",""]
[8890040000,"889FacMgmt0000","Hospitalization Contra-FacMgmt","County Exec PBO","889","1140","P",null,null,null,null,null,null,false,0,0,8890040000,"Hospitalization Contra-FacMgmt",""]
[8890050000,"889ElnAdm0000","Hospitalization Contra-ElnAdm","County Exec PBO","889","1150","P",null,null,null,null,null,null,false,0,0,8890050000,"Hospitalization Contra-ElnAdm",""]
[8890060000,"889CrmJs0000","Hospitalization Contra-CrmJs","County Exec PBO","889","1210","P",null,null,null,null,null,null,false,0,0,8890060000,"Hospitalization Contra-CrmJs",""]
[8890070000,"889CivJs0000","Hospitalization Contra-CivJs","County Exec PBO","889","1220","P",null,null,null,null,null,null,false,0,0,8890070000,"Hospitalization Contra-CivJs",""]
[8890080000,"889JuvSvs0000","Hospitalization Contra-JuvSvs","County Exec PBO","889","1230","P",null,null,null,null,null,null,false,0,0,8890080000,"Hospitalization Contra-JuvSvs",""]
[8890090000,"889LE0000","Hospitalization Contra-LE","County Exec PBO","889","1310","P",null,null,null,null,null,null,false,0,0,8890090000,"Hospitalization Contra-LE",""]
[8890100000,"889EmrgMgmt0000","Hospitalization Contra-EmrgMgmt","County Exec PBO","889","1320","P",null,null,null,null,null,null,false,0,0,8890100000,"Hospitalization Contra-EmrgMgmt",""]
[8890110000,"889HsgBkg0000","Hospitalization Contra-HsgBkg","County Exec PBO","889","1410","P",null,null,null,null,null,null,false,0,0,8890110000,"Hospitalization Contra-HsgBkg",""]
[8890120000,"889Svsn0000","Hospitalization Contra-Svsn","County Exec PBO","889","1420","P",null,null,null,null,null,null,false,0,0,8890120000,"Hospitalization Contra-Svsn",""]
[8890130000,"8890Hlhcare0000","Hospitalization Contra-Hlhcare","County Exec PBO","889","1510","P",null,null,null,null,null,null,false,0,0,8890130000,"Hospitalization Contra-Hlhcare",""]
[8890140000,"889PbcHlh0000","Hospitalization Contra-PbcHlh","County Exec PBO","889","1520","P",null,null,null,null,null,null,false,0,0,8890140000,"Hospitalization Contra-PbcHlh",""]
[8890150000,"889HumanSvs0000","Hospitalization Contra-HumanSvs","County Exec PBO","889","1530","P",null,null,null,null,null,null,false,0,0,8890150000,"Hospitalization Contra-HumanSvs",""]
[8890160000,"889EconDev0000","Hospitalization Contra-EconDev","County Exec PBO","889","1610","P",null,null,null,null,null,null,false,0,0,8890160000,"Hospitalization Contra-EconDev",""]
[8890180000,"889Parks&Rec0000","Hospitalization Contra-Parks&Rec","County Exec PBO","889","1630","P",null,null,null,null,null,null,false,0,0,8890180000,"Hospitalization Contra-Parks&Rec",""]
[8890190000,"889Cul&Edu0000","Hospitalization Contra-Cul&Edu","County Exec PBO","889","1650","P",null,null,null,null,null,null,false,0,0,8890190000,"Hospitalization Contra-Cul&Edu",""]
[8890200000,"889RdBg0000","Hospitalization Contra-RdBg","County Exec PBO","889","1710","P",null,null,null,null,null,null,false,0,0,8890200000,"Hospitalization Contra-RdBg",""]
[8890210000,"889Drng0000","Hospitalization Contra-Drng","County Exec PBO","889","1730","P",null,null,null,null,null,null,false,0,0,8890210000,"Hospitalization Contra-Drng",""]
[8890230000,"889ConservNR0000","Hospitalization Contra-ConservNR","County Exec PBO","889","1750","P",null,null,null,null,null,null,false,0,0,8890230000,"Hospitalization Contra-ConservNR",""]
[8890240000,"889Sanitation0000","Hospitalization Contra-Sanitation","County Exec PBO","889","1760","P",null,null,null,null,null,null,false,0,0,8890240000,"Hospitalization Contra-Sanitation",""]
[8890250000,"889DevRegIn0000","Hospitalization Contra-DevRegIn","County Exec PBO","889","1740","P",null,null,null,null,null,null,false,0,0,8890250000,"Hospitalization Contra-DevRegIn",""]
[8900010000,"890GenAdm0000","Central Computers-GenAdm","Chief Info Ofr","890","1110","P",null,null,null,null,null,null,false,0,0,8900010000,"Central Computers-GenAdm",""]
[8900020000,"890FinAdm0000","Central Computers-FinAdm","Chief Info Ofr","890","1120","P",null,null,null,null,null,null,false,0,0,8900020000,"Central Computers-FinAdm",""]
[8900030000,"890TaxAdm0000","Central Computers-TaxAdm","Chief Info Ofr","890","1130","P",null,null,null,null,null,null,false,0,0,8900030000,"Central Computers-TaxAdm",""]
[8900040000,"890FacMgmt0000","Central Computers-FacMgmt","Chief Info Ofr","890","1140","P",null,null,null,null,null,null,false,0,0,8900040000,"Central Computers-FacMgmt",""]
[8900050000,"890ElnAdm0000","Central Computers-ElnAdm","Chief Info Ofr","890","1150","P",null,null,null,null,null,null,false,0,0,8900050000,"Central Computers-ElnAdm",""]
[8900060000,"890CrmJs0000","Central Computers-CrmJs","Chief Info Ofr","890","1210","P",null,null,null,null,null,null,false,0,0,8900060000,"Central Computers-CrmJs",""]
[8900070000,"890CivJs0000","Central Computers-CivJs","Chief Info Ofr","890","1220","P",null,null,null,null,null,null,false,0,0,8900070000,"Central Computers-CivJs",""]
[8900080000,"890JuvSvs0000","Central Computers-JuvSvs","Chief Info Ofr","890","1230","P",null,null,null,null,null,null,false,0,0,8900080000,"Central Computers-JuvSvs",""]
[8900090000,"890LE0000","Central Computers-LE","Chief Info Ofr","890","1310","P",null,null,null,null,null,null,false,0,0,8900090000,"Central Computers-LE",""]
[8900100000,"890EmrgMgmt0000","Central Computers-EmrgMgmt","Chief Info Ofr","890","1320","P",null,null,null,null,null,null,false,0,0,8900100000,"Central Computers-EmrgMgmt",""]
[8900110000,"890HsgBkg0000","Central Computers-HsgBkg","Chief Info Ofr","890","1410","P",null,null,null,null,null,null,false,0,0,8900110000,"Central Computers-HsgBkg",""]
[8900120000,"890Svsn0000","Central Computers-Svsn","Chief Info Ofr","890","1420","P",null,null,null,null,null,null,false,0,0,8900120000,"Central Computers-Svsn",""]
[8900130000,"8900Hlhcare0000","Central Computers-Hlhcare","Chief Info Ofr","890","1510","P",null,null,null,null,null,null,false,0,0,8900130000,"Central Computers-Hlhcare",""]
[8900140000,"890PbcHlh0000","Central Computers-PbcHlh","Chief Info Ofr","890","1520","P",null,null,null,null,null,null,false,0,0,8900140000,"Central Computers-PbcHlh",""]
[8900150000,"890HumanSvs0000","Central Computers-HumanSvs","Chief Info Ofr","890","1530","P",null,null,null,null,null,null,false,0,0,8900150000,"Central Computers-HumanSvs",""]
[8900160000,"890EconDev0000","Central Computers-EconDev","Chief Info Ofr","890","1610","P",null,null,null,null,null,null,false,0,0,8900160000,"Central Computers-EconDev",""]
[8900180000,"890Parks&Rec0000","Central Computers-Parks&Rec","Chief Info Ofr","890","1630","P",null,null,null,null,null,null,false,0,0,8900180000,"Central Computers-Parks&Rec",""]
[8900190000,"890Cul&Edu0000","Central Computers-Cul&Edu","Chief Info Ofr","890","1650","P",null,null,null,null,null,null,false,0,0,8900190000,"Central Computers-Cul&Edu",""]
[8900200000,"890RdBg0000","Central Computers-RdBg","Chief Info Ofr","890","1710","P",null,null,null,null,null,null,false,0,0,8900200000,"Central Computers-RdBg",""]
[8900210000,"890Drng0000","Central Computers-Drng","Chief Info Ofr","890","1730","P",null,null,null,null,null,null,false,0,0,8900210000,"Central Computers-Drng",""]
[8900230000,"890ConservNR0000","Central Computers-ConservNR","Chief Info Ofr","890","1750","P",null,null,null,null,null,null,false,0,0,8900230000,"Central Computers-ConservNR",""]
[8900240000,"890Sanitation0000","Central Computers-Sanitation","Chief Info Ofr","890","1760","P",null,null,null,null,null,null,false,0,0,8900240000,"Central Computers-Sanitation",""]
[8900250000,"890DevRegIn0000","Central Computers-DevRegIn","Chief Info Ofr","890","1740","P",null,null,null,null,null,null,false,0,0,8900250000,"Central Computers-DevRegIn",""]
[8908000001,"890CAR-GenAdm0001","Ctl Computers CAR-GenAdm GF","Chief Info Ofr","890","1110","C",null,null,null,null,null,null,false,"CAR","X",8908000001,"Ctl Computers CAR-GenAdm GF",""]
[8908010001,"890CAR-FinAdm0001","Ctl Computers CAR-FinAdm GF","Chief Info Ofr","890","1120","C",null,null,null,null,null,null,false,"CAR","X",8908010001,"Ctl Computers CAR-FinAdm GF",""]
[8908020001,"890CAR-TaxAdm0001","Ctl Computers CAR-TaxAdm GF","Chief Info Ofr","890","1130","C",null,null,null,null,null,null,false,"CAR","X",8908020001,"Ctl Computers CAR-TaxAdm GF",""]
[8908030001,"890CAR-FacMgmt0001","Ctl Computers CAR-FacMgmt GF","Chief Info Ofr","890","1140","C",null,null,null,null,null,null,false,"CAR","X",8908030001,"Ctl Computers CAR-FacMgmt GF",""]
[8908040001,"890CAR-ElnAdm0001","Ctl Computers CAR-ElnAdm GF","Chief Info Ofr","890","1150","C",null,null,null,null,null,null,false,"CAR","X",8908040001,"Ctl Computers CAR-ElnAdm GF",""]
[8908050001,"890CAR-CrmJs0001","Ctl Computers CAR-CrmJs GF","Chief Info Ofr","890","1210","C",null,null,null,null,null,null,false,"CAR","X",8908050001,"Ctl Computers CAR-CrmJs GF",""]
[8908060001,"890CAR-CivJs0001","Ctl Computers CAR-CivJs GF","Chief Info Ofr","890","1220","C",null,null,null,null,null,null,false,"CAR","X",8908060001,"Ctl Computers CAR-CivJs GF",""]
[8908070001,"890CAR-JuvSvs0001","Ctl Computers CAR-JuvSvs GF","Chief Info Ofr","890","1230","C",null,null,null,null,null,null,false,"CAR","X",8908070001,"Ctl Computers CAR-JuvSvs GF",""]
[8908080001,"890CAR-LE0001","Ctl Computers CAR-LE GF","Chief Info Ofr","890","1310","C",null,null,null,null,null,null,false,"CAR","X",8908080001,"Ctl Computers CAR-LE GF",""]
[8908090001,"890CAR-EmrgMgmt0001","Ctl Computers CAR-EmrgMgmt GF","Chief Info Ofr","890","1320","C",null,null,null,null,null,null,false,"CAR","X",8908090001,"Ctl Computers CAR-EmrgMgmt GF",""]
[8908100001,"890CAR-HsgBkg0001","Ctl Computers CAR-HsgBkg GF","Chief Info Ofr","890","1410","C",null,null,null,null,null,null,false,"CAR","X",8908100001,"Ctl Computers CAR-HsgBkg GF",""]
[8908110001,"890CAR-Svsn0001","Ctl Computers CAR-Svsn GF","Chief Info Ofr","890","1420","C",null,null,null,null,null,null,false,"CAR","X",8908110001,"Ctl Computers CAR-Svsn GF",""]
[8908120001,"890CAR-DevRegln0001","Ctl Computers CAR-DevRegIn GF","Chief Info Ofr","890","1510","C",null,null,null,null,null,null,false,"CAR","X",8908120001,"Ctl Computers CAR-DevRegIn GF",""]
[8908130001,"890CAR-Hlhcare0001","Ctl Computers CAR-Hlhcare GF","Chief Info Ofr","890","1530","C",null,null,null,null,null,null,false,"CAR","X",8908130001,"Ctl Computers CAR-Hlhcare GF",""]
[8908140001,"890CAR-PbcHlh0001","Ctl Computers CAR-PbcHlh GF","Chief Info Ofr","890","1610","C",null,null,null,null,null,null,false,"CAR","X",8908140001,"Ctl Computers CAR-PbcHlh GF",""]
[8908150001,"890CAR-HumanSvs0001","Ctl Computers CAR-HumanSvs GF","Chief Info Ofr","890","1630","C",null,null,null,null,null,null,false,"CAR","X",8908150001,"Ctl Computers CAR-HumanSvs GF",""]
[8908160001,"890CAR-EconDev0001","Ctl Computers CAR-EconDev GF","Chief Info Ofr","890","1710","C",null,null,null,null,null,null,false,"CAR","X",8908160001,"Ctl Computers CAR-EconDev GF",""]
[8908170001,"890CAR-Drainage0001","Ctl Computers CAR-Drainage GF","Chief Info Ofr","890","1730","C",null,null,null,null,null,null,false,"CAR","X",8908170001,"Ctl Computers CAR-Drainage GF",""]
[8908180001,"890CAR-ConserNR0001","Ctl Computers CAR-Conser & Natural Rsrc","Chief Info Ofr","890","1750","C",null,null,null,null,null,null,false,"CAR","X",8908180001,"Ctl Computers CAR-Conser & Natural Rsrc",""]
[8908190001,"890CAR-Sanitation000","Ctl Computers CAR-Sanitation GF","Chief Info Ofr","890","1760","C",null,null,null,null,null,null,false,"CAR","X",8908190001,"Ctl Computers CAR-Sanitation GF",""]
[8908200001,"890CAR-ParksRec0001","Ctl Computers CAR-ParksRec GF","Chief Info Ofr","890","1630","C",null,null,null,null,null,null,false,"CAR","X",8908200001,"Ctl Computers CAR-ParksRec GF",""]
[8908230001,"890CAR-DevReg0001","Ctl Computers CAR-DevReg GF","Chief Info Ofr","890","1740","C",null,null,null,null,null,null,false,"CAR","X",8908230001,"Ctl Computers CAR-DevReg GF",""]
[8910010000,"891GenAdm0000","Central Rent & Utilities-GenAdm","Facilities Mgmt Dir","891","1110","P",null,null,null,null,null,null,false,0,0,8910010000,"Central Rent & Utilities-GenAdm",""]
[8910020000,"891FinAdm0000","Central Rent & Utilities-FinAdm","Facilities Mgmt Dir","891","1120","P",null,null,null,null,null,null,false,0,0,8910020000,"Central Rent & Utilities-FinAdm",""]
[8910030000,"891TaxAdm0000","Central Rent & Utilities-TaxAdm","Facilities Mgmt Dir","891","1130","P",null,null,null,null,null,null,false,0,0,8910030000,"Central Rent & Utilities-TaxAdm",""]
[8910040000,"891FacMgmt0000","Central Rent & Utilities-FacMgmt","Facilities Mgmt Dir","891","1140","P",null,null,null,null,null,null,false,0,0,8910040000,"Central Rent & Utilities-FacMgmt",""]
[8910050000,"891ElnAdm0000","Central Rent & Utilities-ElnAdm","Facilities Mgmt Dir","891","1150","P",null,null,null,null,null,null,false,0,0,8910050000,"Central Rent & Utilities-ElnAdm",""]
[8910060000,"891CrmJs0000","Central Rent & Utilities-CrmJs","Facilities Mgmt Dir","891","1210","P",null,null,null,null,null,null,false,0,0,8910060000,"Central Rent & Utilities-CrmJs",""]
[8910070000,"891CivJs0000","Central Rent & Utilities-CivJs","Facilities Mgmt Dir","891","1220","P",null,null,null,null,null,null,false,0,0,8910070000,"Central Rent & Utilities-CivJs",""]
[8910080000,"891JuvSvs0000","Central Rent & Utilities-JuvSvs","Facilities Mgmt Dir","891","1230","P",null,null,null,null,null,null,false,0,0,8910080000,"Central Rent & Utilities-JuvSvs",""]
[8910090000,"891LE0000","Central Rent & Utilities-LE","Facilities Mgmt Dir","891","1310","P",null,null,null,null,null,null,false,0,0,8910090000,"Central Rent & Utilities-LE",""]
[8910100000,"891EmrgMgmt0000","Central Rent & Utilities-EmrgMgmt","Facilities Mgmt Dir","891","1320","P",null,null,null,null,null,null,false,0,0,8910100000,"Central Rent & Utilities-EmrgMgmt",""]
[8910110000,"891HsgBkg0000","Central Rent & Utilities-HsgBkg","Facilities Mgmt Dir","891","1410","P",null,null,null,null,null,null,false,0,0,8910110000,"Central Rent & Utilities-HsgBkg",""]
[8910120000,"891Svsn0000","Central Rent & Utilities-Svsn","Facilities Mgmt Dir","891","1420","P",null,null,null,null,null,null,false,0,0,8910120000,"Central Rent & Utilities-Svsn",""]
[8910130000,"8910Hlhcare0000","Central Rent & Utilities-Hlhcare","Facilities Mgmt Dir","891","1510","P",null,null,null,null,null,null,false,0,0,8910130000,"Central Rent & Utilities-Hlhcare",""]
[8910140000,"891PbcHlh0000","Central Rent & Utilities-PbcHlh","Facilities Mgmt Dir","891","1520","P",null,null,null,null,null,null,false,0,0,8910140000,"Central Rent & Utilities-PbcHlh",""]
[8910150000,"891HumanSvs0000","Central Rent & Utilities-HumanSvs","Facilities Mgmt Dir","891","1530","P",null,null,null,null,null,null,false,0,0,8910150000,"Central Rent & Utilities-HumanSvs",""]
[8910160000,"891EconDev0000","Central Rent & Utilities-EconDev","Facilities Mgmt Dir","891","1610","P",null,null,null,null,null,null,false,0,0,8910160000,"Central Rent & Utilities-EconDev",""]
[8910180000,"891Parks&Rec0000","Central Rent & Utilities-Parks&Rec","Facilities Mgmt Dir","891","1630","P",null,null,null,null,null,null,false,0,0,8910180000,"Central Rent & Utilities-Parks&Rec",""]
[8910190000,"891Cul&Edu0000","Central Rent & Utilities-Cul&Edu","Facilities Mgmt Dir","891","1650","P",null,null,null,null,null,null,false,0,0,8910190000,"Central Rent & Utilities-Cul&Edu",""]
[8910200000,"891RdBg0000","Central Rent & Utilities-RdBg","Facilities Mgmt Dir","891","1710","P",null,null,null,null,null,null,false,0,0,8910200000,"Central Rent & Utilities-RdBg",""]
[8910210000,"891Drng0000","Central Rent & Utilities-Drng","Facilities Mgmt Dir","891","1730","P",null,null,null,null,null,null,false,0,0,8910210000,"Central Rent & Utilities-Drng",""]
[8910230000,"891ConservNR0000","Central Rent & Utilities-ConservNR","Facilities Mgmt Dir","891","1750","P",null,null,null,null,null,null,false,0,0,8910230000,"Central Rent & Utilities-ConservNR",""]
[8910240000,"891Sanitation0000","Central Rent & Utilities-Sanitation","Facilities Mgmt Dir","891","1760","P",null,null,null,null,null,null,false,0,0,8910240000,"Central Rent & Utilities-Sanitation",""]
[8910250000,"891DevRegIn0000","Central Rent & Utilities-DevRegIn","Facilities Mgmt Dir","891","1740","P",null,null,null,null,null,null,false,0,0,8910250000,"Central Rent & Utilities-DevRegIn",""]
[8928000001,"892CAR-GenAdm0001","Ctl Fleet CAR-GenAdm GF","County Exec TNR","892","1110","C",null,null,null,null,null,null,false,"CAR","X",8928000001,"Ctl Fleet CAR-GenAdm GF",""]
[8928030001,"892CAR-FacMgmt0001","Ctl Fleet CAR-FacMgmt GF","County Exec TNR","892","1140","C",null,null,null,null,null,null,false,"CAR","X",8928030001,"Ctl Fleet CAR-FacMgmt GF",""]
[8928050001,"892CAR-CrmJs0001","Ctl Fleet CAR-CrmJs GF","County Exec TNR","892","1210","C",null,null,null,null,null,null,false,"CAR","X",8928050001,"Ctl Fleet CAR-CrmJs GF",""]
[8928080001,"892CAR-LE0001","Ctl Fleet CAR-LE GF","County Exec TNR","892","1310","C",null,null,null,null,null,null,false,"CAR","X",8928080001,"Ctl Fleet CAR-LE GF",""]
[8928100001,"892CAR-HsgBkg0001","Ctl Fleet CAR-HsgBkg GF","County Exec TNR","892","1410","C",null,null,null,null,null,null,false,"CAR","X",8928100001,"Ctl Fleet CAR-HsgBkg GF",""]
[8928200001,"892CAR-ParksRec0001","Ctl Fleet CAR-ParksRec GF","County Exec TNR","892","1630","C",null,null,null,null,null,null,false,"CAR","X",8928200001,"Ctl Fleet CAR-ParksRec GF",""]
[8928210001,"892CAR-RdBg0001","Ctl Fleet CAR-RdBg GF","County Exec TNR","892","1710","C",null,null,null,null,null,null,false,"CAR","X",8928210001,"Ctl Fleet CAR-RdBg GF",""]

{"sheet":"Data FCs NO CAR","index":18,"n_rows":1488,"n_cols":23,"rows_kept":1488,"cut":false,"hidden":true,"merged":[]}
["Dept","Cost Center","Name","Description","FA","Dept","Cost Center","Name","Description","For Space Costs",null,"Dept","Cost Center","Updated 1/31/23","List -->","Dept","Cost Center",null,"Updated","2024-02-01","div","fund"]
["???","????","Enter a Funds Center","Please enter a valid Funds Center",null,112,1120110001,"112TechSupp0001","TCIS Technical Support-GF",{"$f":"RIGHT(G2,4)","v":"0001"},null,{"$f":"'Details (PB5)'!D5","v":0},null,null,null,null,null,null,null,"Copy from FC master, filter out CAR, unbudgeted funds, only on rollup FC, remove duplicates"]
[{"$f":"LEFT(B3,3)","v":"100"},1000003001,{"$f":"_xlfn.XLOOKUP(B3,'FC Master'!Q:Q,'FC Master'!B:B)","v":"100TC3001"},"Travis County-Cons Debt Svc",null,112,1120140001,"112ProgMgmt0001","TCIS Program Mgmt Office-GF","0001",null,null,null,null,null,null,null,null,null,"Update Macro with new range (currently set to 9000 rows. Probably ok)",{"$f":"MID(B3,4,3)","v":"000"},{"$f":"MID(B3,7,4)","v":"3001"},{"$f":"_xlfn.XLOOKUP(VALUE(V3),'Budgeted Funds'!A:A,'Budgeted Funds'!D:D)","v":true}]
[{"$f":"LEFT(B4,3)","v":"100"},1000003005,{"$f":"_xlfn.XLOOKUP(B4,'FC Master'!Q:Q,'FC Master'!B:B)","v":"100TC3005"},"Travis County-Debt Svc-Taxable",null,112,1120150001,"112InfSec0001","TCIS Information Security-GF","0001",null,null,null,null,null,null,null,null,null,"remove dpt 157",{"$f":"MID(B4,4,3)","v":"000"},{"$f":"MID(B4,7,4)","v":"3005"},{"$f":"_xlfn.XLOOKUP(VALUE(V4),'Budgeted Funds'!A:A,'Budgeted Funds'!D:D)","v":true}]
[{"$f":"LEFT(B5,3)","v":"101"},1010010001,{"$f":"_xlfn.XLOOKUP(B5,'FC Master'!Q:Q,'FC Master'!B:B)","v":"101Adm0001"},"County Judge Adm-GF",null,112,1120160001,"112SDO0001","TCIS NSS SD-GF","0001",null,null,null,null,null,null,null,null,null,null,"001","0001",{"$f":"_xlfn.XLOOKUP(VALUE(V5),'Budgeted Funds'!A:A,'Budgeted Funds'!D:D)","v":true}]
[{"$f":"LEFT(B6,3)","v":"101"},1010020001,{"$f":"_xlfn.XLOOKUP(B6,'FC Master'!Q:Q,'FC Master'!B:B)","v":"101JVBoard0001"},"County Judge JV Board-GF",null,112,1120170001,"112ADPS0001","TCIS ADPS-GF","0001",null,null,null,null,null,null,null,null,null,null,"002","0001",{"$f":"_xlfn.XLOOKUP(VALUE(V6),'Budgeted Funds'!A:A,'Budgeted Funds'!D:D)","v":true}]
[{"$f":"LEFT(B7,3)","v":"102"},1020010001,{"$f":"_xlfn.XLOOKUP(B7,'FC Master'!Q:Q,'FC Master'!B:B)","v":"102Adm0001"},"Co Comm Pct 1 Adm-GF",null,112,1120180001,"112ADPSSupp0001","TCIS ADPS-App and Prod Support-GF","0001",null,null,null,null,null,null,null,null,null,null,"001","0001",{"$f":"_xlfn.XLOOKUP(VALUE(V7),'Budgeted Funds'!A:A,'Budgeted Funds'!D:D)","v":true}]
[{"$f":"LEFT(B8,3)","v":"102"},1028000001,{"$f":"_xlfn.XLOOKUP(B8,'FC Master'!Q:Q,'FC Master'!B:B)","v":"102CAR0001"},"Co Comm Pct 1 CAR-GF",null,112,1120190001,"112ADPSDev0001","TCIS ADPS-Application Development-GF","0001",null,null,null,null,null,null,null,null,null,null,"800","0001",{"$f":"_xlfn.XLOOKUP(VALUE(V8),'Budgeted Funds'!A:A,'Budgeted Funds'!D:D)","v":true}]
[{"$f":"LEFT(B9,3)","v":"103"},1030010001,{"$f":"_xlfn.XLOOKUP(B9,'FC Master'!Q:Q,'FC Master'!B:B)","v":"103Adm0001"},"Co Comm Pct 2 Adm-GF",null,112,1120220001,"112BEFIT0001","TCIS BEFIT-GF","0001",null,null,null,null,null,null,null,null,null,null,"001","0001",{"$f":"_xlfn.XLOOKUP(VALUE(V9),'Budgeted Funds'!A:A,'Budgeted Funds'!D:D)","v":true}]
[{"$f":"LEFT(B10,3)","v":"104"},1040010001,{"$f":"_xlfn.XLOOKUP(B10,'FC Master'!Q:Q,'FC Master'!B:B)","v":"104Adm0001"},"Co Comm Pct 3 Adm-GF",null,112,1120270001,"112ADPSTraining0001","TCIS ADPS-Training-GF","0001",null,null,null,null,null,null,null,null,null,null,"001","0001",{"$f":"_xlfn.XLOOKUP(VALUE(V10),'Budgeted Funds'!A:A,'Budgeted Funds'!D:D)","v":true}]
[{"$f":"LEFT(B11,3)","v":"105"},1050010001,{"$f":"_xlfn.XLOOKUP(B11,'FC Master'!Q:Q,'FC Master'!B:B)","v":"105Adm0001"},"Co Comm Pct 4 Adm-GF",null,112,1120280001,"112PMWebDevTm0001","TCIS Prog Mgmt Web DevTeam-GF","0001",null,null,null,null,null,null,null,null,null,null,"001","0001",{"$f":"_xlfn.XLOOKUP(VALUE(V11),'Budgeted Funds'!A:A,'Budgeted Funds'!D:D)","v":true}]
[{"$f":"LEFT(B12,3)","v":"106"},1060010001,{"$f":"_xlfn.XLOOKUP(B12,'FC Master'!Q:Q,'FC Master'!B:B)","v":"106Aud0001"},"Co Auditor Aud-GF",null,112,1120290001,"112PMMobData0001","TCIS Prog Mgmt Mobile Data Team-GF","0001",null,null,null,null,null,null,null,null,null,null,"001","0001",{"$f":"_xlfn.XLOOKUP(VALUE(V12),'Budgeted Funds'!A:A,'Budgeted Funds'!D:D)","v":true}]
[{"$f":"LEFT(B13,3)","v":"106"},1060020001,{"$f":"_xlfn.XLOOKUP(B13,'FC Master'!Q:Q,'FC Master'!B:B)","v":"106BEFIT0001"},"Co Auditor BEFIT-GF",null,112,1120300001,"112NSS-CTS0001","TCIS NSS-Client Technology Services-GF","0001",null,null,null,null,null,null,null,null,null,null,"002","0001",{"$f":"_xlfn.XLOOKUP(VALUE(V13),'Budgeted Funds'!A:A,'Budgeted Funds'!D:D)","v":true}]
[{"$f":"LEFT(B14,3)","v":"106"},1060024063,{"$f":"_xlfn.XLOOKUP(B14,'FC Master'!Q:Q,'FC Master'!B:B)","v":"106BEFIT4063"},"Co Auditor BEFIT-CO 2010 Nontax",null,112,1120500001,"112BPE0001","TCIS BPE-GF","0001",null,null,null,null,null,null,null,null,null,null,"002","4063",{"$f":"_xlfn.XLOOKUP(VALUE(V14),'Budgeted Funds'!A:A,'Budgeted Funds'!D:D)","v":{"$error":"#N/A"}}]
[{"$f":"LEFT(B15,3)","v":"106"},1060024068,{"$f":"_xlfn.XLOOKUP(B15,'FC Master'!Q:Q,'FC Master'!B:B)","v":"106BEFIT4068"},"Co Auditor BEFIT-CO 2011 Nontax",null,112,1129000001,"112ReimburseRes0001","TCIS Reimbursement Resolution Funds-GF","0001",null,null,null,null,null,null,null,null,null,null,"002","4068",{"$f":"_xlfn.XLOOKUP(VALUE(V15),'Budgeted Funds'!A:A,'Budgeted Funds'!D:D)","v":{"$error":"#N/A"}}]
[{"$f":"LEFT(B16,3)","v":"106"},1060024072,{"$f":"_xlfn.XLOOKUP(B16,'FC Master'!Q:Q,'FC Master'!B:B)","v":"106BEFIT4072"},"Co Auditor BEFIT-CO 2012",null,114,1140010001,"114Adm0001","FMD Adm-GF","0001",null,null,null,null,null,null,null,null,null,null,"002","4072",{"$f":"_xlfn.XLOOKUP(VALUE(V16),'Budgeted Funds'!A:A,'Budgeted Funds'!D:D)","v":{"$error":"#N/A"}}]
[{"$f":"LEFT(B17,3)","v":"106"},1060030001,{"$f":"_xlfn.XLOOKUP(B17,'FC Master'!Q:Q,'FC Master'!B:B)","v":"106SAPCWM&S0001"},"SAP County-wide Maintenance & Support",null,114,1140020001,"114Grndskpng0001","FMD Groundskeeping-GF","0001",null,null,null,null,null,null,null,null,null,null,"003","0001",{"$f":"_xlfn.XLOOKUP(VALUE(V17),'Budgeted Funds'!A:A,'Budgeted Funds'!D:D)","v":true}]
[{"$f":"LEFT(B18,3)","v":"106"},1060040001,{"$f":"_xlfn.XLOOKUP(B18,'FC Master'!Q:Q,'FC Master'!B:B)","v":"106PvcyHIPAA0001"},"Privacy and HIPAA Compliance-GF",null,114,1140030001,"114Custodial0001","FMD Custodial Svs-GF","0001",null,null,null,null,null,null,null,null,null,null,"004","0001",{"$f":"_xlfn.XLOOKUP(VALUE(V18),'Budgeted Funds'!A:A,'Budgeted Funds'!D:D)","v":true}]
[{"$f":"LEFT(B19,3)","v":"106"},1060048955,{"$f":"_xlfn.XLOOKUP(B19,'FC Master'!Q:Q,'FC Master'!B:B)","v":"106HIPAA8955"},"Co Auditor Aud-HIPAA-Travis Co. Self Ins",null,114,1140090001,"114BdMnt0001","FMD Building Maintenance-GF","0001",null,null,null,null,null,null,null,null,null,null,"004","8955",{"$f":"_xlfn.XLOOKUP(VALUE(V19),'Budgeted Funds'!A:A,'Budgeted Funds'!D:D)","v":true}]
[{"$f":"LEFT(B20,3)","v":"106"},1060048956,{"$f":"_xlfn.XLOOKUP(B20,'FC Master'!Q:Q,'FC Master'!B:B)","v":"106HIPAA8956"},"Co Auditor Aud-HIPAA-Emp Health Benefit",null,114,1140100001,"114Courthouse0001","FMD Old Courthouse Block-GF","0001",null,null,null,null,null,null,null,null,null,null,"004","8956",{"$f":"_xlfn.XLOOKUP(VALUE(V20),'Budgeted Funds'!A:A,'Budgeted Funds'!D:D)","v":true}]
[{"$f":"LEFT(B21,3)","v":"107"},1070010001,{"$f":"_xlfn.XLOOKUP(B21,'FC Master'!Q:Q,'FC Master'!B:B)","v":"107Adm0001"},"County Treasurer Adm-GF",null,114,1140110001,"114PMPerPos0001","FMD PM Personnel Positions-GF","0001",null,null,null,null,null,null,null,null,null,null,"001","0001",{"$f":"_xlfn.XLOOKUP(VALUE(V21),'Budgeted Funds'!A:A,'Budgeted Funds'!D:D)","v":true}]
[{"$f":"LEFT(B22,3)","v":"107"},1070010121,{"$f":"_xlfn.XLOOKUP(B22,'FC Master'!Q:Q,'FC Master'!B:B)","v":"107Adm0121"},"County Treasurer Adm-Unclaimed Property",null,114,1149000001,"114ReimburseRes0001","FMD Reimbursement Resolution Funds-GF","0001",null,null,null,null,null,null,null,null,null,null,"001","0121",{"$f":"_xlfn.XLOOKUP(VALUE(V22),'Budgeted Funds'!A:A,'Budgeted Funds'!D:D)","v":true}]
[{"$f":"LEFT(B23,3)","v":"108"},1080010001,{"$f":"_xlfn.XLOOKUP(B23,'FC Master'!Q:Q,'FC Master'!B:B)","v":"108Adm0001"},"Tax Collector Administration-GF",null,null,null,null,null,null,null,null,null,null,null,null,null,null,null,null,"001","0001",{"$f":"_xlfn.XLOOKUP(VALUE(V23),'Budgeted Funds'!A:A,'Budgeted Funds'!D:D)","v":true}]
[{"$f":"LEFT(B24,3)","v":"108"},1080020001,{"$f":"_xlfn.XLOOKUP(B24,'FC Master'!Q:Q,'FC Master'!B:B)","v":"108PITCln0001"},"Tax Collector Pbc Info and Trng Cln-GF",null,null,null,null,null,null,null,null,null,null,null,null,null,null,null,null,"002","0001",{"$f":"_xlfn.XLOOKUP(VALUE(V24),'Budgeted Funds'!A:A,'Budgeted Funds'!D:D)","v":true}]
[{"$f":"LEFT(B25,3)","v":"108"},1080030001,{"$f":"_xlfn.XLOOKUP(B25,'FC Master'!Q:Q,'FC Master'!B:B)","v":"108PropTaxCln0001"},"Tax Collector Prop Tax Cln-GF",null,null,null,null,null,null,null,null,null,null,null,null,null,null,null,null,"003","0001",{"$f":"_xlfn.XLOOKUP(VALUE(V25),'Budgeted Funds'!A:A,'Budgeted Funds'!D:D)","v":true}]
[{"$f":"LEFT(B26,3)","v":"108"},1080034063,{"$f":"_xlfn.XLOOKUP(B26,'FC Master'!Q:Q,'FC Master'!B:B)","v":"108PropTaxCln4063"},"Tax Collector Prop Tax Cln-CO2010 Nontax",null,null,null,null,null,null,null,null,null,null,null,null,null,null,null,null,"003","4063",{"$f":"_xlfn.XLOOKUP(VALUE(V26),'Budgeted Funds'!A:A,'Budgeted Funds'!D:D)","v":{"$error":"#N/A"}}]
[{"$f":"LEFT(B27,3)","v":"108"},1080040001,{"$f":"_xlfn.XLOOKUP(B27,'FC Master'!Q:Q,'FC Master'!B:B)","v":"108CtyCtCln0001"},"Tax Collector County Court at Law Cln-GF",null,null,null,null,null,null,null,null,null,null,null,null,null,null,null,null,"004","0001",{"$f":"_xlfn.XLOOKUP(VALUE(V27),'Budgeted Funds'!A:A,'Budgeted Funds'!D:D)","v":true}]
[{"$f":"LEFT(B28,3)","v":"108"},1080050001,{"$f":"_xlfn.XLOOKUP(B28,'FC Master'!Q:Q,'FC Master'!B:B)","v":"108JPCln0001"},"Tax Collector JP Collections-GF",null,null,null,null,null,null,null,null,null,null,null,null,null,null,null,null,"005","0001",{"$f":"_xlfn.XLOOKUP(VALUE(V28),'Budgeted Funds'!A:A,'Budgeted Funds'!D:D)","v":true}]
[{"$f":"LEFT(B29,3)","v":"108"},1080060001,{"$f":"_xlfn.XLOOKUP(B29,'FC Master'!Q:Q,'FC Master'!B:B)","v":"108DistCtCln0001"},"Tax Collector District CT at Law Cln- GF",null,null,null,null,null,null,null,null,null,null,null,null,null,null,null,null,"006","0001",{"$f":"_xlfn.XLOOKUP(VALUE(V29),'Budgeted Funds'!A:A,'Budgeted Funds'!D:D)","v":true}]
[{"$f":"LEFT(B30,3)","v":"108"},1080070001,{"$f":"_xlfn.XLOOKUP(B30,'FC Master'!Q:Q,'FC Master'!B:B)","v":"108MotorVehCln0001"},"Tax Collector Motor Veh Collections-GF",null,null,null,null,null,null,null,null,null,null,null,null,null,null,null,null,"007","0001",{"$f":"_xlfn.XLOOKUP(VALUE(V30),'Budgeted Funds'!A:A,'Budgeted Funds'!D:D)","v":true}]
[{"$f":"LEFT(B31,3)","v":"108"},1080080001,{"$f":"_xlfn.XLOOKUP(B31,'FC Master'!Q:Q,'FC Master'!B:B)","v":"108VoterRgCln0001"},"Tax Collector Voter Registration Cln-GF",null,null,null,null,null,null,null,null,null,null,null,null,null,null,null,null,"008","0001",{"$f":"_xlfn.XLOOKUP(VALUE(V31),'Budgeted Funds'!A:A,'Budgeted Funds'!D:D)","v":true}]
[{"$f":"LEFT(B32,3)","v":"108"},1080080128,{"$f":"_xlfn.XLOOKUP(B32,'FC Master'!Q:Q,'FC Master'!B:B)","v":"108VoterRgCln0128"},"Tax Collector Voter Reg Cln-Eln Cntrt",null,null,null,null,null,null,null,null,null,null,null,null,null,null,null,null,"008","0128",{"$f":"_xlfn.XLOOKUP(VALUE(V32),'Budgeted Funds'!A:A,'Budgeted Funds'!D:D)","v":true}]
[{"$f":"LEFT(B33,3)","v":"108"},1080090001,{"$f":"_xlfn.XLOOKUP(B33,'FC Master'!Q:Q,'FC Master'!B:B)","v":"108Acctg0001"},"Tax Collector Accounting-GF",null,null,null,null,null,null,null,null,null,null,null,null,null,null,null,null,"009","0001",{"$f":"_xlfn.XLOOKUP(VALUE(V33),'Budgeted Funds'!A:A,'Budgeted Funds'!D:D)","v":true}]
[{"$f":"LEFT(B34,3)","v":"108"},1080100001,{"$f":"_xlfn.XLOOKUP(B34,'FC Master'!Q:Q,'FC Master'!B:B)","v":"108VoterClnCh190001"},"Tax Collector Voter Cln Ch19-GF",null,null,null,null,null,null,null,null,null,null,null,null,null,null,null,null,"010","0001",{"$f":"_xlfn.XLOOKUP(VALUE(V34),'Budgeted Funds'!A:A,'Budgeted Funds'!D:D)","v":true}]
[{"$f":"LEFT(B35,3)","v":"108"},1080100105,{"$f":"_xlfn.XLOOKUP(B35,'FC Master'!Q:Q,'FC Master'!B:B)","v":"108VoterClnCh190001"},"Tax Collector Voter Cln Ch19-Voter Rg Fd",null,null,null,null,null,null,null,null,null,null,null,null,null,null,null,null,"010","0105",{"$f":"_xlfn.XLOOKUP(VALUE(V35),'Budgeted Funds'!A:A,'Budgeted Funds'!D:D)","v":true}]
[{"$f":"LEFT(B36,3)","v":"108"},1080110001,{"$f":"_xlfn.XLOOKUP(B36,'FC Master'!Q:Q,'FC Master'!B:B)","v":"108ITConsol0001"},"Tax Collector IT-GF",null,null,null,null,null,null,null,null,null,null,null,null,null,null,null,null,"011","0001",{"$f":"_xlfn.XLOOKUP(VALUE(V36),'Budgeted Funds'!A:A,'Budgeted Funds'!D:D)","v":true}]
[{"$f":"LEFT(B37,3)","v":"108"},1088000001,{"$f":"_xlfn.XLOOKUP(B37,'FC Master'!Q:Q,'FC Master'!B:B)","v":"108CAR0001"},"Tax Collector CAR-TaxAdm GF",null,null,null,null,null,null,null,null,null,null,null,null,null,null,null,null,"800","0001",{"$f":"_xlfn.XLOOKUP(VALUE(V37),'Budgeted Funds'!A:A,'Budgeted Funds'!D:D)","v":true}]
[{"$f":"LEFT(B38,3)","v":"109"},1090010001,{"$f":"_xlfn.XLOOKUP(B38,'FC Master'!Q:Q,'FC Master'!B:B)","v":"109Adm0001"},"PBO Administration-GF",null,null,null,null,null,null,null,null,null,null,null,null,null,null,null,null,"001","0001",{"$f":"_xlfn.XLOOKUP(VALUE(V38),'Budgeted Funds'!A:A,'Budgeted Funds'!D:D)","v":true}]
[{"$f":"LEFT(B39,3)","v":"109"},1090020001,{"$f":"_xlfn.XLOOKUP(B39,'FC Master'!Q:Q,'FC Master'!B:B)","v":"109Planning0001"},"PBO Planning-GF",null,null,null,null,null,null,null,null,null,null,null,null,null,null,null,null,"002","0001",{"$f":"_xlfn.XLOOKUP(VALUE(V39),'Budgeted Funds'!A:A,'Budgeted Funds'!D:D)","v":true}]
[{"$f":"LEFT(B40,3)","v":"109"},1090030001,{"$f":"_xlfn.XLOOKUP(B40,'FC Master'!Q:Q,'FC Master'!B:B)","v":"109Budgeting0001"},"PBO Budgeting-GF",null,null,null,null,null,null,null,null,null,null,null,null,null,null,null,null,"003","0001",{"$f":"_xlfn.XLOOKUP(VALUE(V40),'Budgeted Funds'!A:A,'Budgeted Funds'!D:D)","v":true}]
[{"$f":"LEFT(B41,3)","v":"109"},1090040001,{"$f":"_xlfn.XLOOKUP(B41,'FC Master'!Q:Q,'FC Master'!B:B)","v":"109IM0001"},"PBO Investment Management-GF",null,null,null,null,null,null,null,null,null,null,null,null,null,null,null,null,"004","0001",{"$f":"_xlfn.XLOOKUP(VALUE(V41),'Budgeted Funds'!A:A,'Budgeted Funds'!D:D)","v":true}]
[{"$f":"LEFT(B42,3)","v":"109"},1090050001,{"$f":"_xlfn.XLOOKUP(B42,'FC Master'!Q:Q,'FC Master'!B:B)","v":"109Corps0001"},"PBO Corporations-GF",null,null,null,null,null,null,null,null,null,null,null,null,null,null,null,null,"005","0001",{"$f":"_xlfn.XLOOKUP(VALUE(V42),'Budgeted Funds'!A:A,'Budgeted Funds'!D:D)","v":true}]
[{"$f":"LEFT(B43,3)","v":"109"},1090080001,{"$f":"_xlfn.XLOOKUP(B43,'FC Master'!Q:Q,'FC Master'!B:B)","v":"109EDSI0001"},"PBO Econ Dev & Strategic Inv.-GF",null,null,null,null,null,null,null,null,null,null,null,null,null,null,null,null,"008","0001",{"$f":"_xlfn.XLOOKUP(VALUE(V43),'Budgeted Funds'!A:A,'Budgeted Funds'!D:D)","v":true}]
[{"$f":"LEFT(B44,3)","v":"109"},1090090001,{"$f":"_xlfn.XLOOKUP(B44,'FC Master'!Q:Q,'FC Master'!B:B)","v":"PBODEI0001"},"PBO DEI - GF",null,null,null,null,null,null,null,null,null,null,null,null,null,null,null,null,"009","0001",{"$f":"_xlfn.XLOOKUP(VALUE(V44),'Budgeted Funds'!A:A,'Budgeted Funds'!D:D)","v":true}]
[{"$f":"LEFT(B45,3)","v":"109"},1090100001,{"$f":"_xlfn.XLOOKUP(B45,'FC Master'!Q:Q,'FC Master'!B:B)","v":"109PIDS0001"},"Public Improvement Districts",null,null,null,null,null,null,null,null,null,null,null,null,null,null,null,null,"010","0001",{"$f":"_xlfn.XLOOKUP(VALUE(V45),'Budgeted Funds'!A:A,'Budgeted Funds'!D:D)","v":true}]
[{"$f":"LEFT(B46,3)","v":"109"},1098000001,{"$f":"_xlfn.XLOOKUP(B46,'FC Master'!Q:Q,'FC Master'!B:B)","v":"109CAR0001"},"PBO CAR-TaxAdm GF",null,null,null,null,null,null,null,null,null,null,null,null,null,null,null,null,"800","0001",{"$f":"_xlfn.XLOOKUP(VALUE(V46),'Budgeted Funds'!A:A,'Budgeted Funds'!D:D)","v":true}]
[{"$f":"LEFT(B47,3)","v":"110"},1100010001,{"$f":"_xlfn.XLOOKUP(B47,'FC Master'!Q:Q,'FC Master'!B:B)","v":"110NonDivisional0001"},"General Adm Non Divisional-GF",null,null,null,null,null,null,null,null,null,null,null,null,null,null,null,null,"001","0001",{"$f":"_xlfn.XLOOKUP(VALUE(V47),'Budgeted Funds'!A:A,'Budgeted Funds'!D:D)","v":true}]
[{"$f":"LEFT(B48,3)","v":"110"},1100020001,{"$f":"_xlfn.XLOOKUP(B48,'FC Master'!Q:Q,'FC Master'!B:B)","v":"110SpAstCC0001"},"General Adm Spl Asst To Comm Ct-GF",null,null,null,null,null,null,null,null,null,null,null,null,null,null,null,null,"002","0001",{"$f":"_xlfn.XLOOKUP(VALUE(V48),'Budgeted Funds'!A:A,'Budgeted Funds'!D:D)","v":true}]
[{"$f":"LEFT(B49,3)","v":"110"},1100030001,{"$f":"_xlfn.XLOOKUP(B49,'FC Master'!Q:Q,'FC Master'!B:B)","v":"110IntGovRel0001"},"General Adm Intergovt Relations-GF",null,null,null,null,null,null,null,null,null,null,null,null,null,null,null,null,"003","0001",{"$f":"_xlfn.XLOOKUP(VALUE(V49),'Budgeted Funds'!A:A,'Budgeted Funds'!D:D)","v":true}]
[{"$f":"LEFT(B50,3)","v":"110"},1100040001,{"$f":"_xlfn.XLOOKUP(B50,'FC Master'!Q:Q,'FC Master'!B:B)","v":"110WallerCrk0001"},"General Adm Waller Creek Dev-GF",null,null,null,null,null,null,null,null,null,null,null,null,null,null,null,null,"004","0001",{"$f":"_xlfn.XLOOKUP(VALUE(V50),'Budgeted Funds'!A:A,'Budgeted Funds'!D:D)","v":true}]
[{"$f":"LEFT(B51,3)","v":"110"},1100050001,{"$f":"_xlfn.XLOOKUP(B51,'FC Master'!Q:Q,'FC Master'!B:B)","v":"110PubInfoOffice0001"},"General Adm Public Info Office-GF",null,null,null,null,null,null,null,null,null,null,null,null,null,null,null,null,"005","0001",{"$f":"_xlfn.XLOOKUP(VALUE(V51),'Budgeted Funds'!A:A,'Budgeted Funds'!D:D)","v":true}]
[{"$f":"LEFT(B52,3)","v":"110"},1100060001,{"$f":"_xlfn.XLOOKUP(B52,'FC Master'!Q:Q,'FC Master'!B:B)","v":"110Media0001"},"General Adm Media-GF",null,null,null,null,null,null,null,null,null,null,null,null,null,null,null,null,"006","0001",{"$f":"_xlfn.XLOOKUP(VALUE(V52),'Budgeted Funds'!A:A,'Budgeted Funds'!D:D)","v":true}]
[{"$f":"LEFT(B53,3)","v":"110"},1108000001,{"$f":"_xlfn.XLOOKUP(B53,'FC Master'!Q:Q,'FC Master'!B:B)","v":"110GenAdminCAR"},"General Admin CAR",null,null,null,null,null,null,null,null,null,null,null,null,null,null,null,null,"800","0001",{"$f":"_xlfn.XLOOKUP(VALUE(V53),'Budgeted Funds'!A:A,'Budgeted Funds'!D:D)","v":true}]
[{"$f":"LEFT(B54,3)","v":"111"},1110010001,{"$f":"_xlfn.XLOOKUP(B54,'FC Master'!Q:Q,'FC Master'!B:B)","v":"111Adm0001"},"HRMD Adm-GF",null,null,null,null,null,null,null,null,null,null,null,null,null,null,null,null,"001","0001",{"$f":"_xlfn.XLOOKUP(VALUE(V54),'Budgeted Funds'!A:A,'Budgeted Funds'!D:D)","v":true}]
[{"$f":"LEFT(B55,3)","v":"111"},1110020001,{"$f":"_xlfn.XLOOKUP(B55,'FC Master'!Q:Q,'FC Master'!B:B)","v":"111Compensation0001"},"HRMD Compensation-GF",null,null,null,null,null,null,null,null,null,null,null,null,null,null,null,null,"002","0001",{"$f":"_xlfn.XLOOKUP(VALUE(V55),'Budgeted Funds'!A:A,'Budgeted Funds'!D:D)","v":true}]
[{"$f":"LEFT(B56,3)","v":"111"},1110030001,{"$f":"_xlfn.XLOOKUP(B56,'FC Master'!Q:Q,'FC Master'!B:B)","v":"111StaffingRecr0001"},"HRMD Staffing and Recruitment-GF",null,null,null,null,null,null,null,null,null,null,null,null,null,null,null,null,"003","0001",{"$f":"_xlfn.XLOOKUP(VALUE(V56),'Budgeted Funds'!A:A,'Budgeted Funds'!D:D)","v":true}]
[{"$f":"LEFT(B57,3)","v":"111"},1110040001,{"$f":"_xlfn.XLOOKUP(B57,'FC Master'!Q:Q,'FC Master'!B:B)","v":"111RiskMgmt0001"},"HRMD Risk Mgmt-GF",null,null,null,null,null,null,null,null,null,null,null,null,null,null,null,null,"004","0001",{"$f":"_xlfn.XLOOKUP(VALUE(V57),'Budgeted Funds'!A:A,'Budgeted Funds'!D:D)","v":true}]
[{"$f":"LEFT(B58,3)","v":"111"},1110048955,{"$f":"_xlfn.XLOOKUP(B58,'FC Master'!Q:Q,'FC Master'!B:B)","v":"111RiskMgmt8955"},"HRMD Risk Mgmt-Travis Co. Self Ins",null,null,null,null,null,null,null,null,null,null,null,null,null,null,null,null,"004","8955",{"$f":"_xlfn.XLOOKUP(VALUE(V58),'Budgeted Funds'!A:A,'Budgeted Funds'!D:D)","v":true}]
[{"$f":"LEFT(B59,3)","v":"111"},1110050001,{"$f":"_xlfn.XLOOKUP(B59,'FC Master'!Q:Q,'FC Master'!B:B)","v":"111SaftyLossPrev0001"},"HRMD Safety/Loss Prevtn Pg-GF",null,null,null,null,null,null,null,null,null,null,null,null,null,null,null,null,"005","0001",{"$f":"_xlfn.XLOOKUP(VALUE(V59),'Budgeted Funds'!A:A,'Budgeted Funds'!D:D)","v":true}]
[{"$f":"LEFT(B60,3)","v":"111"},1110068956,{"$f":"_xlfn.XLOOKUP(B60,'FC Master'!Q:Q,'FC Master'!B:B)","v":"111EmpHlthBnfts8956"},"HRMD Benefits-Emp Health Benefit",null,null,null,null,null,null,null,null,null,null,null,null,null,null,null,null,"006","8956",{"$f":"_xlfn.XLOOKUP(VALUE(V60),'Budgeted Funds'!A:A,'Budgeted Funds'!D:D)","v":true}]
[{"$f":"LEFT(B61,3)","v":"111"},1110078956,{"$f":"_xlfn.XLOOKUP(B61,'FC Master'!Q:Q,'FC Master'!B:B)","v":"111WellHlthClnc8956"},"HRMD Wellness Hth Clinic-Emp Hth Ben",null,null,null,null,null,null,null,null,null,null,null,null,null,null,null,null,"007","8956",{"$f":"_xlfn.XLOOKUP(VALUE(V61),'Budgeted Funds'!A:A,'Budgeted Funds'!D:D)","v":true}]
[{"$f":"LEFT(B62,3)","v":"111"},1110080001,{"$f":"_xlfn.XLOOKUP(B62,'FC Master'!Q:Q,'FC Master'!B:B)","v":"111HRIS0001"},"HRMD HRIS-GF",null,null,null,null,null,null,null,null,null,null,null,null,null,null,null,null,"008","0001",{"$f":"_xlfn.XLOOKUP(VALUE(V62),'Budgeted Funds'!A:A,'Budgeted Funds'!D:D)","v":true}]
[{"$f":"LEFT(B63,3)","v":"111"},1110090001,{"$f":"_xlfn.XLOOKUP(B63,'FC Master'!Q:Q,'FC Master'!B:B)","v":"111ADAProgram0001"},"HRMD ADA Program-GF",null,null,null,null,null,null,null,null,null,null,null,null,null,null,null,null,"009","0001",{"$f":"_xlfn.XLOOKUP(VALUE(V63),'Budgeted Funds'!A:A,'Budgeted Funds'!D:D)","v":true}]
[{"$f":"LEFT(B64,3)","v":"111"},1110100001,{"$f":"_xlfn.XLOOKUP(B64,'FC Master'!Q:Q,'FC Master'!B:B)","v":"111OrgDev0001"},"HRMD Organizational Development-GF",null,null,null,null,null,null,null,null,null,null,null,null,null,null,null,null,"010","0001",{"$f":"_xlfn.XLOOKUP(VALUE(V64),'Budgeted Funds'!A:A,'Budgeted Funds'!D:D)","v":true}]
[{"$f":"LEFT(B65,3)","v":"111"},1110500001,{"$f":"_xlfn.XLOOKUP(B65,'FC Master'!Q:Q,'FC Master'!B:B)","v":"111HIPAA0001"},"HRMD HIPAA-GF",null,null,null,null,null,null,null,null,null,null,null,null,null,null,null,null,"050","0001",{"$f":"_xlfn.XLOOKUP(VALUE(V65),'Budgeted Funds'!A:A,'Budgeted Funds'!D:D)","v":true}]
[{"$f":"LEFT(B66,3)","v":"111"},1118000001,{"$f":"_xlfn.XLOOKUP(B66,'FC Master'!Q:Q,'FC Master'!B:B)","v":"HRMD CAR-GenAdm GF"},"HRMD CAR-GenAdm GF",null,null,null,null,null,null,null,null,null,null,null,null,null,null,null,null,"800","0001",{"$f":"_xlfn.XLOOKUP(VALUE(V66),'Budgeted Funds'!A:A,'Budgeted Funds'!D:D)","v":true}]
[{"$f":"LEFT(B67,3)","v":"112"},1120010001,{"$f":"_xlfn.XLOOKUP(B67,'FC Master'!Q:Q,'FC Master'!B:B)","v":"112ExM0001"},"TCIS ExM-GF",null,null,null,null,null,null,null,null,null,null,null,null,null,null,null,null,"001","0001",{"$f":"_xlfn.XLOOKUP(VALUE(V67),'Budgeted Funds'!A:A,'Budgeted Funds'!D:D)","v":true}]
[{"$f":"LEFT(B68,3)","v":"112"},1120010108,{"$f":"_xlfn.XLOOKUP(B68,'FC Master'!Q:Q,'FC Master'!B:B)","v":"112ExM0108"},"TCIS ExM-Rec Mgmt Fd",null,null,null,null,null,null,null,null,null,null,null,null,null,null,null,null,{"$f":"MID(B68,4,3)","v":"001"},{"$f":"MID(B68,7,4)","v":"0108"},{"$f":"_xlfn.XLOOKUP(VALUE(V68),'Budgeted Funds'!A:A,'Budgeted Funds'!D:D)","v":true}]
[{"$f":"LEFT(B69,3)","v":"112"},1120014068,{"$f":"_xlfn.XLOOKUP(B69,'FC Master'!Q:Q,'FC Master'!B:B)","v":"112ExM4068"},"TCIS ExM-CO 2011 Nontax",null,null,null,null,null,null,null,null,null,null,null,null,null,null,null,null,"001","4068",{"$f":"_xlfn.XLOOKUP(VALUE(V69),'Budgeted Funds'!A:A,'Budgeted Funds'!D:D)","v":{"$error":"#N/A"}}]
[{"$f":"LEFT(B70,3)","v":"112"},1120020001,{"$f":"_xlfn.XLOOKUP(B70,'FC Master'!Q:Q,'FC Master'!B:B)","v":"112Adm0001"},"TCIS Adm-GF",null,null,null,null,null,null,null,null,null,null,null,null,null,null,null,null,"002","0001",{"$f":"_xlfn.XLOOKUP(VALUE(V70),'Budgeted Funds'!A:A,'Budgeted Funds'!D:D)","v":true}]
[{"$f":"LEFT(B71,3)","v":"112"},1120020117,{"$f":"_xlfn.XLOOKUP(B71,'FC Master'!Q:Q,'FC Master'!B:B)","v":"112CSCD0117"},"TCIS Admin-CSCD Equipment",null,null,null,null,null,null,null,null,null,null,null,null,null,null,null,null,"002","0117",{"$f":"_xlfn.XLOOKUP(VALUE(V71),'Budgeted Funds'!A:A,'Budgeted Funds'!D:D)","v":false}]
[{"$f":"LEFT(B72,3)","v":"112"},1120020128,{"$f":"_xlfn.XLOOKUP(B72,'FC Master'!Q:Q,'FC Master'!B:B)","v":"112Adm0128"},"TCIS Admin - Eln Cntrt Fund",null,null,null,null,null,null,null,null,null,null,null,null,null,null,null,null,"002","0128",{"$f":"_xlfn.XLOOKUP(VALUE(V72),'Budgeted Funds'!A:A,'Budgeted Funds'!D:D)","v":true}]
[{"$f":"LEFT(B73,3)","v":"112"},1120020129,{"$f":"_xlfn.XLOOKUP(B73,'FC Master'!Q:Q,'FC Master'!B:B)","v":"112Adm0129"},"TCIS Adm-County Clerk Archival Fd",null,null,null,null,null,null,null,null,null,null,null,null,null,null,null,null,"002","0129",{"$f":"_xlfn.XLOOKUP(VALUE(V73),'Budgeted Funds'!A:A,'Budgeted Funds'!D:D)","v":true}]
[{"$f":"LEFT(B74,3)","v":"112"},1120020137,{"$f":"_xlfn.XLOOKUP(B74,'FC Master'!Q:Q,'FC Master'!B:B)","v":"112Adm0137"},"TCIS-Admin-Juve Case Mgr Fund",null,null,null,null,null,null,null,null,null,null,null,null,null,null,null,null,"002","0137",{"$f":"_xlfn.XLOOKUP(VALUE(V74),'Budgeted Funds'!A:A,'Budgeted Funds'!D:D)","v":true}]
[{"$f":"LEFT(B75,3)","v":"112"},1120024016,{"$f":"_xlfn.XLOOKUP(B75,'FC Master'!Q:Q,'FC Master'!B:B)","v":"112Adm4016"},"TCIS Adm-CO 1998",null,null,null,null,null,null,null,null,null,null,null,null,null,null,null,null,"002","4016",{"$f":"_xlfn.XLOOKUP(VALUE(V75),'Budgeted Funds'!A:A,'Budgeted Funds'!D:D)","v":false}]
[{"$f":"LEFT(B76,3)","v":"112"},1120024025,{"$f":"_xlfn.XLOOKUP(B76,'FC Master'!Q:Q,'FC Master'!B:B)","v":"112Adm4025"},"TCIS Adm-CO 1998A",null,null,null,null,null,null,null,null,null,null,null,null,null,null,null,null,"002","4025",{"$f":"_xlfn.XLOOKUP(VALUE(V76),'Budgeted Funds'!A:A,'Budgeted Funds'!D:D)","v":false}]
[{"$f":"LEFT(B77,3)","v":"112"},1120024029,{"$f":"_xlfn.XLOOKUP(B77,'FC Master'!Q:Q,'FC Master'!B:B)","v":"112Adm4029"},"TCIS Adm-CO 1999",null,null,null,null,null,null,null,null,null,null,null,null,null,null,null,null,"002","4029",{"$f":"_xlfn.XLOOKUP(VALUE(V77),'Budgeted Funds'!A:A,'Budgeted Funds'!D:D)","v":false}]
[{"$f":"LEFT(B78,3)","v":"112"},1120024030,{"$f":"_xlfn.XLOOKUP(B78,'FC Master'!Q:Q,'FC Master'!B:B)","v":"112Adm4030"},"TCIS Adm-CO 2000",null,null,null,null,null,null,null,null,null,null,null,null,null,null,null,null,"002","4030",{"$f":"_xlfn.XLOOKUP(VALUE(V78),'Budgeted Funds'!A:A,'Budgeted Funds'!D:D)","v":false}]
[{"$f":"LEFT(B79,3)","v":"112"},1120024032,{"$f":"_xlfn.XLOOKUP(B79,'FC Master'!Q:Q,'FC Master'!B:B)","v":"112Adm4032"},"TCIS Adm-CO 2001",null,null,null,null,null,null,null,null,null,null,null,null,null,null,null,null,"002","4032",{"$f":"_xlfn.XLOOKUP(VALUE(V79),'Budgeted Funds'!A:A,'Budgeted Funds'!D:D)","v":false}]
[{"$f":"LEFT(B80,3)","v":"112"},1120024056,{"$f":"_xlfn.XLOOKUP(B80,'FC Master'!Q:Q,'FC Master'!B:B)","v":"112Adm4056"},"TCIS Adm-CO 2008",null,null,null,null,null,null,null,null,null,null,null,null,null,null,null,null,"002","4056",{"$f":"_xlfn.XLOOKUP(VALUE(V80),'Budgeted Funds'!A:A,'Budgeted Funds'!D:D)","v":{"$error":"#N/A"}}]
[{"$f":"LEFT(B81,3)","v":"112"},1120024059,{"$f":"_xlfn.XLOOKUP(B81,'FC Master'!Q:Q,'FC Master'!B:B)","v":"112Adm4059"},"TCIS Adm-CO 2009",null,null,null,null,null,null,null,null,null,null,null,null,null,null,null,null,"002","4059",{"$f":"_xlfn.XLOOKUP(VALUE(V81),'Budgeted Funds'!A:A,'Budgeted Funds'!D:D)","v":{"$error":"#N/A"}}]
[{"$f":"LEFT(B82,3)","v":"112"},1120024068,{"$f":"_xlfn.XLOOKUP(B82,'FC Master'!Q:Q,'FC Master'!B:B)","v":"112Adm4068"},"TCIS Adm-CO 2011 Nontax",null,null,null,null,null,null,null,null,null,null,null,null,null,null,null,null,"002","4068",{"$f":"_xlfn.XLOOKUP(VALUE(V82),'Budgeted Funds'!A:A,'Budgeted Funds'!D:D)","v":{"$error":"#N/A"}}]
[{"$f":"LEFT(B83,3)","v":"112"},1120040001,{"$f":"_xlfn.XLOOKUP(B83,'FC Master'!Q:Q,'FC Master'!B:B)","v":"112NSS0001"},"TCIS NSS-GF",null,null,null,null,null,null,null,null,null,null,null,null,null,null,null,null,"004","0001",{"$f":"_xlfn.XLOOKUP(VALUE(V83),'Budgeted Funds'!A:A,'Budgeted Funds'!D:D)","v":true}]
[{"$f":"LEFT(B84,3)","v":"112"},1120040002,{"$f":"_xlfn.XLOOKUP(B84,'FC Master'!Q:Q,'FC Master'!B:B)","v":"112NSS0002"},"TCIS NSS-700 Lavaca Complex",null,null,null,null,null,null,null,null,null,null,null,null,null,null,null,null,"004","0002",{"$f":"_xlfn.XLOOKUP(VALUE(V84),'Budgeted Funds'!A:A,'Budgeted Funds'!D:D)","v":true}]
[{"$f":"LEFT(B85,3)","v":"112"},1120040003,{"$f":"_xlfn.XLOOKUP(B85,'FC Master'!Q:Q,'FC Master'!B:B)","v":"112NSS0003"},"TCIS NSS-Tx Expo & Heritage-Expo Fd",null,null,null,null,null,null,null,null,null,null,null,null,null,null,null,null,"004","0003",{"$f":"_xlfn.XLOOKUP(VALUE(V85),'Budgeted Funds'!A:A,'Budgeted Funds'!D:D)","v":true}]
[{"$f":"LEFT(B86,3)","v":"112"},1120040105,{"$f":"_xlfn.XLOOKUP(B86,'FC Master'!Q:Q,'FC Master'!B:B)","v":"112NSS0105"},"TCIS NSS-Voter Registration Fd",null,null,null,null,null,null,null,null,null,null,null,null,null,null,null,null,"004","0105",{"$f":"_xlfn.XLOOKUP(VALUE(V86),'Budgeted Funds'!A:A,'Budgeted Funds'!D:D)","v":true}]
[{"$f":"LEFT(B87,3)","v":"112"},1120040115,{"$f":"_xlfn.XLOOKUP(B87,'FC Master'!Q:Q,'FC Master'!B:B)","v":"112NSS0115"},"TCIS NSS-BCP Building",null,null,null,null,null,null,null,null,null,null,null,null,null,null,null,null,"004","0115",{"$f":"_xlfn.XLOOKUP(VALUE(V87),'Budgeted Funds'!A:A,'Budgeted Funds'!D:D)","v":true}]
[{"$f":"LEFT(B88,3)","v":"112"},1120040125,{"$f":"_xlfn.XLOOKUP(B88,'FC Master'!Q:Q,'FC Master'!B:B)","v":"112NSS0125"},"TCIS NSS-Justice Court Tech Fd",null,null,null,null,null,null,null,null,null,null,null,null,null,null,null,null,"004","0125",{"$f":"_xlfn.XLOOKUP(VALUE(V88),'Budgeted Funds'!A:A,'Budgeted Funds'!D:D)","v":true}]
[{"$f":"LEFT(B89,3)","v":"112"},1120040128,{"$f":"_xlfn.XLOOKUP(B89,'FC Master'!Q:Q,'FC Master'!B:B)","v":"112NSS0128"},"TCIS NSS-Elections Contract Fd",null,null,null,null,null,null,null,null,null,null,null,null,null,null,null,null,"004","0128",{"$f":"_xlfn.XLOOKUP(VALUE(V89),'Budgeted Funds'!A:A,'Budgeted Funds'!D:D)","v":true}]
[{"$f":"LEFT(B90,3)","v":"112"},1120044034,{"$f":"_xlfn.XLOOKUP(B90,'FC Master'!Q:Q,'FC Master'!B:B)","v":"112NSS4034"},"TCIS NSS-CO 2001A",null,null,null,null,null,null,null,null,null,null,null,null,null,null,null,null,"004","4034",{"$f":"_xlfn.XLOOKUP(VALUE(V90),'Budgeted Funds'!A:A,'Budgeted Funds'!D:D)","v":{"$error":"#N/A"}}]
[{"$f":"LEFT(B91,3)","v":"112"},1120044038,{"$f":"_xlfn.XLOOKUP(B91,'FC Master'!Q:Q,'FC Master'!B:B)","v":"112NSS4038"},"TCIS NSS-CO 2003",null,null,null,null,null,null,null,null,null,null,null,null,null,null,null,null,"004","4038",{"$f":"_xlfn.XLOOKUP(VALUE(V91),'Budgeted Funds'!A:A,'Budgeted Funds'!D:D)","v":{"$error":"#N/A"}}]
[{"$f":"LEFT(B92,3)","v":"112"},1120044052,{"$f":"_xlfn.XLOOKUP(B92,'FC Master'!Q:Q,'FC Master'!B:B)","v":"112NSS4052"},"TCIS NSS-CO 2007",null,null,null,null,null,null,null,null,null,null,null,null,null,null,null,null,"004","4052",{"$f":"_xlfn.XLOOKUP(VALUE(V92),'Budgeted Funds'!A:A,'Budgeted Funds'!D:D)","v":{"$error":"#N/A"}}]
[{"$f":"LEFT(B93,3)","v":"112"},1120044056,{"$f":"_xlfn.XLOOKUP(B93,'FC Master'!Q:Q,'FC Master'!B:B)","v":"112NSS4056"},"TCIS NSS-CO 2008",null,null,null,null,null,null,null,null,null,null,null,null,null,null,null,null,"004","4056",{"$f":"_xlfn.XLOOKUP(VALUE(V93),'Budgeted Funds'!A:A,'Budgeted Funds'!D:D)","v":{"$error":"#N/A"}}]
[{"$f":"LEFT(B94,3)","v":"112"},1120044059,{"$f":"_xlfn.XLOOKUP(B94,'FC Master'!Q:Q,'FC Master'!B:B)","v":"112NSS4059"},"TCIS NSS-CO 2009",null,null,null,null,null,null,null,null,null,null,null,null,null,null,null,null,"004","4059",{"$f":"_xlfn.XLOOKUP(VALUE(V94),'Budgeted Funds'!A:A,'Budgeted Funds'!D:D)","v":{"$error":"#N/A"}}]
[{"$f":"LEFT(B95,3)","v":"112"},1120044063,{"$f":"_xlfn.XLOOKUP(B95,'FC Master'!Q:Q,'FC Master'!B:B)","v":"112NSS4063"},"TCIS NSS-CO 2010 Nontax",null,null,null,null,null,null,null,null,null,null,null,null,null,null,null,null,"004","4063",{"$f":"_xlfn.XLOOKUP(VALUE(V95),'Budgeted Funds'!A:A,'Budgeted Funds'!D:D)","v":{"$error":"#N/A"}}]
[{"$f":"LEFT(B96,3)","v":"112"},1120044068,{"$f":"_xlfn.XLOOKUP(B96,'FC Master'!Q:Q,'FC Master'!B:B)","v":"112NSS4068"},"TCIS NSS-CO 2011 Nontax",null,null,null,null,null,null,null,null,null,null,null,null,null,null,null,null,"004","4068",{"$f":"_xlfn.XLOOKUP(VALUE(V96),'Budgeted Funds'!A:A,'Budgeted Funds'!D:D)","v":{"$error":"#N/A"}}]
[{"$f":"LEFT(B97,3)","v":"112"},1120044072,{"$f":"_xlfn.XLOOKUP(B97,'FC Master'!Q:Q,'FC Master'!B:B)","v":"112NSS4072"},"TCIS NSS-CO 2012",null,null,null,null,null,null,null,null,null,null,null,null,null,null,null,null,"004","4072",{"$f":"_xlfn.XLOOKUP(VALUE(V97),'Budgeted Funds'!A:A,'Budgeted Funds'!D:D)","v":{"$error":"#N/A"}}]
[{"$f":"LEFT(B98,3)","v":"112"},1120070001,{"$f":"_xlfn.XLOOKUP(B98,'FC Master'!Q:Q,'FC Master'!B:B)","v":"112NSSIDC0001"},"TCIS NSS-IDC-GF",null,null,null,null,null,null,null,null,null,null,null,null,null,null,null,null,"007","0001",{"$f":"_xlfn.XLOOKUP(VALUE(V98),'Budgeted Funds'!A:A,'Budgeted Funds'!D:D)","v":true}]
[{"$f":"LEFT(B99,3)","v":"112"},1120100001,{"$f":"_xlfn.XLOOKUP(B99,'FC Master'!Q:Q,'FC Master'!B:B)","v":"112NSSNtwkOps0001"},"TCIS NSS-Ntwk and TLC Ops-GF",null,null,null,null,null,null,null,null,null,null,null,null,null,null,null,null,"010","0001",{"$f":"_xlfn.XLOOKUP(VALUE(V99),'Budgeted Funds'!A:A,'Budgeted Funds'!D:D)","v":true}]
[{"$f":"LEFT(B100,3)","v":"112"},1120110001,{"$f":"_xlfn.XLOOKUP(B100,'FC Master'!Q:Q,'FC Master'!B:B)","v":"112TechSupp0001"},"TCIS Technical Support-GF",null,null,null,null,null,null,null,null,null,null,null,null,null,null,null,null,"011","0001",{"$f":"_xlfn.XLOOKUP(VALUE(V100),'Budgeted Funds'!A:A,'Budgeted Funds'!D:D)","v":true}]
[{"$f":"LEFT(B101,3)","v":"112"},1120114029,{"$f":"_xlfn.XLOOKUP(B101,'FC Master'!Q:Q,'FC Master'!B:B)","v":"112TechSupp4029"},"TCIS Technical Support-CO 1999",null,null,null,null,null,null,null,null,null,null,null,null,null,null,null,null,"011","4029",{"$f":"_xlfn.XLOOKUP(VALUE(V101),'Budgeted Funds'!A:A,'Budgeted Funds'!D:D)","v":false}]
[{"$f":"LEFT(B102,3)","v":"112"},1120120001,{"$f":"_xlfn.XLOOKUP(B102,'FC Master'!Q:Q,'FC Master'!B:B)","v":"112VocComm0001"},"TCIS Voice Comm-GF",null,null,null,null,null,null,null,null,null,null,null,null,null,null,null,null,"012","0001",{"$f":"_xlfn.XLOOKUP(VALUE(V102),'Budgeted Funds'!A:A,'Budgeted Funds'!D:D)","v":true}]
[{"$f":"LEFT(B103,3)","v":"112"},1120124034,{"$f":"_xlfn.XLOOKUP(B103,'FC Master'!Q:Q,'FC Master'!B:B)","v":"112VocComm4034"},"TCIS Voice Comm-Cert of Oblig 2001A",null,null,null,null,null,null,null,null,null,null,null,null,null,null,null,null,"012","4034",{"$f":"_xlfn.XLOOKUP(VALUE(V103),'Budgeted Funds'!A:A,'Budgeted Funds'!D:D)","v":{"$error":"#N/A"}}]
[{"$f":"LEFT(B104,3)","v":"112"},1120130001,{"$f":"_xlfn.XLOOKUP(B104,'FC Master'!Q:Q,'FC Master'!B:B)","v":"112PrdSupp0001"},"TCIS Production Support-GF",null,null,null,null,null,null,null,null,null,null,null,null,null,null,null,null,"013","0001",{"$f":"_xlfn.XLOOKUP(VALUE(V104),'Budgeted Funds'!A:A,'Budgeted Funds'!D:D)","v":true}]
[{"$f":"LEFT(B105,3)","v":"112"},1120140001,{"$f":"_xlfn.XLOOKUP(B105,'FC Master'!Q:Q,'FC Master'!B:B)","v":"112ProgMgmt0001"},"TCIS Program Mgmt Office-GF",null,null,null,null,null,null,null,null,null,null,null,null,null,null,null,null,"014","0001",{"$f":"_xlfn.XLOOKUP(VALUE(V105),'Budgeted Funds'!A:A,'Budgeted Funds'!D:D)","v":true}]
[{"$f":"LEFT(B106,3)","v":"112"},1120144068,{"$f":"_xlfn.XLOOKUP(B106,'FC Master'!Q:Q,'FC Master'!B:B)","v":"112ProjMgmt4068"},"TCIS Project Mgmt Office-CO 2011 Nontax",null,null,null,null,null,null,null,null,null,null,null,null,null,null,null,null,"014","4068",{"$f":"_xlfn.XLOOKUP(VALUE(V106),'Budgeted Funds'!A:A,'Budgeted Funds'!D:D)","v":{"$error":"#N/A"}}]
[{"$f":"LEFT(B107,3)","v":"112"},1120150001,{"$f":"_xlfn.XLOOKUP(B107,'FC Master'!Q:Q,'FC Master'!B:B)","v":"112InfSec0001"},"TCIS Information Security-GF",null,null,null,null,null,null,null,null,null,null,null,null,null,null,null,null,"015","0001",{"$f":"_xlfn.XLOOKUP(VALUE(V107),'Budgeted Funds'!A:A,'Budgeted Funds'!D:D)","v":true}]
[{"$f":"LEFT(B108,3)","v":"112"},1120158956,{"$f":"_xlfn.XLOOKUP(B108,'FC Master'!Q:Q,'FC Master'!B:B)","v":"112InfSec8956"},"TCIS Information Security-Emp Hlth Bnfs",null,null,null,null,null,null,null,null,null,null,null,null,null,null,null,null,"015","8956",{"$f":"_xlfn.XLOOKUP(VALUE(V108),'Budgeted Funds'!A:A,'Budgeted Funds'!D:D)","v":true}]
[{"$f":"LEFT(B109,3)","v":"112"},1120160001,{"$f":"_xlfn.XLOOKUP(B109,'FC Master'!Q:Q,'FC Master'!B:B)","v":"112SDO0001"},"TCIS NSS SD-GF",null,null,null,null,null,null,null,null,null,null,null,null,null,null,null,null,"016","0001",{"$f":"_xlfn.XLOOKUP(VALUE(V109),'Budgeted Funds'!A:A,'Budgeted Funds'!D:D)","v":true}]
[{"$f":"LEFT(B110,3)","v":"112"},1120160108,{"$f":"_xlfn.XLOOKUP(B110,'FC Master'!Q:Q,'FC Master'!B:B)","v":"112SDO0108"},"TCIS NSS SD-Records Mgmt Fd",null,null,null,null,null,null,null,null,null,null,null,null,null,null,null,null,"016","0108",{"$f":"_xlfn.XLOOKUP(VALUE(V110),'Budgeted Funds'!A:A,'Budgeted Funds'!D:D)","v":true}]
[{"$f":"LEFT(B111,3)","v":"112"},1120160125,{"$f":"_xlfn.XLOOKUP(B111,'FC Master'!Q:Q,'FC Master'!B:B)","v":"112SDO0125"},"TCIS NSS SD-Justice Court Tech Fd",null,null,null,null,null,null,null,null,null,null,null,null,null,null,null,null,"016","0125",{"$f":"_xlfn.XLOOKUP(VALUE(V111),'Budgeted Funds'!A:A,'Budgeted Funds'!D:D)","v":true}]
[{"$f":"LEFT(B112,3)","v":"112"},1120168956,{"$f":"_xlfn.XLOOKUP(B112,'FC Master'!Q:Q,'FC Master'!B:B)","v":"112SDO8956"},"TCIS NSS SD-Emp Hlth Bnfs",null,null,null,null,null,null,null,null,null,null,null,null,null,null,null,null,"016","8956",{"$f":"_xlfn.XLOOKUP(VALUE(V112),'Budgeted Funds'!A:A,'Budgeted Funds'!D:D)","v":true}]
[{"$f":"LEFT(B113,3)","v":"112"},1120170001,{"$f":"_xlfn.XLOOKUP(B113,'FC Master'!Q:Q,'FC Master'!B:B)","v":"112ADPS0001"},"TCIS ADPS-GF",null,null,null,null,null,null,null,null,null,null,null,null,null,null,null,null,"017","0001",{"$f":"_xlfn.XLOOKUP(VALUE(V113),'Budgeted Funds'!A:A,'Budgeted Funds'!D:D)","v":true}]
[{"$f":"LEFT(B114,3)","v":"112"},1120170125,{"$f":"_xlfn.XLOOKUP(B114,'FC Master'!Q:Q,'FC Master'!B:B)","v":"112ADPS0125"},"TCIS ADPS-Js Ct Tech Fd",null,null,null,null,null,null,null,null,null,null,null,null,null,null,null,null,"017","0125",{"$f":"_xlfn.XLOOKUP(VALUE(V114),'Budgeted Funds'!A:A,'Budgeted Funds'!D:D)","v":true}]
[{"$f":"LEFT(B115,3)","v":"112"},1120174052,{"$f":"_xlfn.XLOOKUP(B115,'FC Master'!Q:Q,'FC Master'!B:B)","v":"112ADPS4052"},"TCIS ADPS-CO 2007",null,null,null,null,null,null,null,null,null,null,null,null,null,null,null,null,"017","4052",{"$f":"_xlfn.XLOOKUP(VALUE(V115),'Budgeted Funds'!A:A,'Budgeted Funds'!D:D)","v":{"$error":"#N/A"}}]
[{"$f":"LEFT(B116,3)","v":"112"},1120180001,{"$f":"_xlfn.XLOOKUP(B116,'FC Master'!Q:Q,'FC Master'!B:B)","v":"112ADPSSupp0001"},"TCIS ADPS-App and Prod Support-GF",null,null,null,null,null,null,null,null,null,null,null,null,null,null,null,null,"018","0001",{"$f":"_xlfn.XLOOKUP(VALUE(V116),'Budgeted Funds'!A:A,'Budgeted Funds'!D:D)","v":true}]
[{"$f":"LEFT(B117,3)","v":"112"},1120190001,{"$f":"_xlfn.XLOOKUP(B117,'FC Master'!Q:Q,'FC Master'!B:B)","v":"112ADPSDev0001"},"TCIS ADPS-Application Development-GF",null,null,null,null,null,null,null,null,null,null,null,null,null,null,null,null,"019","0001",{"$f":"_xlfn.XLOOKUP(VALUE(V117),'Budgeted Funds'!A:A,'Budgeted Funds'!D:D)","v":true}]
[{"$f":"LEFT(B118,3)","v":"112"},1120200001,{"$f":"_xlfn.XLOOKUP(B118,'FC Master'!Q:Q,'FC Master'!B:B)","v":"112NtwkSvs0001"},"TCIS Network Services-GF",null,null,null,null,null,null,null,null,null,null,null,null,null,null,null,null,"020","0001",{"$f":"_xlfn.XLOOKUP(VALUE(V118),'Budgeted Funds'!A:A,'Budgeted Funds'!D:D)","v":true}]
[{"$f":"LEFT(B119,3)","v":"112"},1120204034,{"$f":"_xlfn.XLOOKUP(B119,'FC Master'!Q:Q,'FC Master'!B:B)","v":"112NtwkSvs4034"},"TCIS Network Services-CO 2001A",null,null,null,null,null,null,null,null,null,null,null,null,null,null,null,null,"020","4034",{"$f":"_xlfn.XLOOKUP(VALUE(V119),'Budgeted Funds'!A:A,'Budgeted Funds'!D:D)","v":{"$error":"#N/A"}}]
[{"$f":"LEFT(B120,3)","v":"112"},1120204044,{"$f":"_xlfn.XLOOKUP(B120,'FC Master'!Q:Q,'FC Master'!B:B)","v":"112NtwkSvs4044"},"TCIS Network Services-CO 2005",null,null,null,null,null,null,null,null,null,null,null,null,null,null,null,null,"020","4044",{"$f":"_xlfn.XLOOKUP(VALUE(V120),'Budgeted Funds'!A:A,'Budgeted Funds'!D:D)","v":{"$error":"#N/A"}}]
[{"$f":"LEFT(B121,3)","v":"112"},1120210001,{"$f":"_xlfn.XLOOKUP(B121,'FC Master'!Q:Q,'FC Master'!B:B)","v":"112CtlCompGenAdm0001"},"TCIS Computer Central-GF",null,null,null,null,null,null,null,null,null,null,null,null,null,null,null,null,"021","0001",{"$f":"_xlfn.XLOOKUP(VALUE(V121),'Budgeted Funds'!A:A,'Budgeted Funds'!D:D)","v":true}]
[{"$f":"LEFT(B122,3)","v":"112"},1120220001,{"$f":"_xlfn.XLOOKUP(B122,'FC Master'!Q:Q,'FC Master'!B:B)","v":"112BEFIT0001"},"TCIS BEFIT-GF",null,null,null,null,null,null,null,null,null,null,null,null,null,null,null,null,"022","0001",{"$f":"_xlfn.XLOOKUP(VALUE(V122),'Budgeted Funds'!A:A,'Budgeted Funds'!D:D)","v":true}]
[{"$f":"LEFT(B123,3)","v":"112"},1120240001,{"$f":"_xlfn.XLOOKUP(B123,'FC Master'!Q:Q,'FC Master'!B:B)","v":"112CtlCompCrmJs0001"},"TCIS Computer Ctl Crm Js-GF",null,null,null,null,null,null,null,null,null,null,null,null,null,null,null,null,"024","0001",{"$f":"_xlfn.XLOOKUP(VALUE(V123),'Budgeted Funds'!A:A,'Budgeted Funds'!D:D)","v":true}]
[{"$f":"LEFT(B124,3)","v":"112"},1120310001,{"$f":"_xlfn.XLOOKUP(B124,'FC Master'!Q:Q,'FC Master'!B:B)","v":"112PrivOffce0001"},"TCIS Privacy Office-GF",null,null,null,null,null,null,null,null,null,null,null,null,null,null,null,null,"031","0001",{"$f":"_xlfn.XLOOKUP(VALUE(V124),'Budgeted Funds'!A:A,'Budgeted Funds'!D:D)","v":true}]
[{"$f":"LEFT(B125,3)","v":"112"},1120400001,{"$f":"_xlfn.XLOOKUP(B125,'FC Master'!Q:Q,'FC Master'!B:B)","v":"112RMAdmin0001"},"ITS RM Admin-GF",null,null,null,null,null,null,null,null,null,null,null,null,null,null,null,null,"040","0001",{"$f":"_xlfn.XLOOKUP(VALUE(V125),'Budgeted Funds'!A:A,'Budgeted Funds'!D:D)","v":true}]
[{"$f":"LEFT(B126,3)","v":"112"},1120420001,{"$f":"_xlfn.XLOOKUP(B126,'FC Master'!Q:Q,'FC Master'!B:B)","v":"112CtlRepair0001"},"ITS Copiers/Central Repairs-GF",null,null,null,null,null,null,null,null,null,null,null,null,null,null,null,null,"042","0001",{"$f":"_xlfn.XLOOKUP(VALUE(V126),'Budgeted Funds'!A:A,'Budgeted Funds'!D:D)","v":true}]
[{"$f":"LEFT(B127,3)","v":"112"},1120440004,{"$f":"_xlfn.XLOOKUP(B127,'FC Master'!Q:Q,'FC Master'!B:B)","v":"112Imaging0004"},"ITS Imaging-County Clerk Arch Fd",null,null,null,null,null,null,null,null,null,null,null,null,null,null,null,null,"044","0004",{"$f":"_xlfn.XLOOKUP(VALUE(V127),'Budgeted Funds'!A:A,'Budgeted Funds'!D:D)","v":true}]
[{"$f":"LEFT(B128,3)","v":"112"},1120440141,{"$f":"_xlfn.XLOOKUP(B128,'FC Master'!Q:Q,'FC Master'!B:B)","v":"112Imaging0141"},"ITS Imaging-Record Preservation",null,null,null,null,null,null,null,null,null,null,null,null,null,null,null,null,"044","0141",{"$f":"_xlfn.XLOOKUP(VALUE(V128),'Budgeted Funds'!A:A,'Budgeted Funds'!D:D)","v":true}]
[{"$f":"LEFT(B129,3)","v":"112"},1120450004,{"$f":"_xlfn.XLOOKUP(B129,'FC Master'!Q:Q,'FC Master'!B:B)","v":"112RcrdsCsltg0004"},"ITS Records/Consulting-Cty Clrk Arch Fd",null,null,null,null,null,null,null,null,null,null,null,null,null,null,null,null,"045","0004",{"$f":"_xlfn.XLOOKUP(VALUE(V129),'Budgeted Funds'!A:A,'Budgeted Funds'!D:D)","v":true}]
[{"$f":"LEFT(B130,3)","v":"112"},1120450110,{"$f":"_xlfn.XLOOKUP(B130,'FC Master'!Q:Q,'FC Master'!B:B)","v":"112RcrdsCsltg0110"},"ITS Records/Consulting-Recs Mgmt Preser",null,null,null,null,null,null,null,null,null,null,null,null,null,null,null,null,"045","0110",{"$f":"_xlfn.XLOOKUP(VALUE(V130),'Budgeted Funds'!A:A,'Budgeted Funds'!D:D)","v":true}]
[{"$f":"LEFT(B131,3)","v":"112"},1120450160,{"$f":"_xlfn.XLOOKUP(B131,'FC Master'!Q:Q,'FC Master'!B:B)","v":"112RcrdsCsltg0160"},"ITS Records/Consulting-TC RecMgmt&Pres",null,null,null,null,null,null,null,null,null,null,null,null,null,null,null,null,"045","0160",{"$f":"_xlfn.XLOOKUP(VALUE(V131),'Budgeted Funds'!A:A,'Budgeted Funds'!D:D)","v":true}]
[{"$f":"LEFT(B132,3)","v":"112"},1120500001,{"$f":"_xlfn.XLOOKUP(B132,'FC Master'!Q:Q,'FC Master'!B:B)","v":"112BPE0001"},"TCIS BPE-GF",null,null,null,null,null,null,null,null,null,null,null,null,null,null,null,null,{"$f":"MID(B132,4,3)","v":"050"},{"$f":"MID(B132,7,4)","v":"0001"},{"$f":"_xlfn.XLOOKUP(VALUE(V132),'Budgeted Funds'!A:A,'Budgeted Funds'!D:D)","v":true}]
[{"$f":"LEFT(B133,3)","v":"112"},1128000001,{"$f":"_xlfn.XLOOKUP(B133,'FC Master'!Q:Q,'FC Master'!B:B)","v":"112CARGenAdm0001"},"TCIS CAR-GenAdm GF",null,null,null,null,null,null,null,null,null,null,null,null,null,null,null,null,"800","0001",{"$f":"_xlfn.XLOOKUP(VALUE(V133),'Budgeted Funds'!A:A,'Budgeted Funds'!D:D)","v":true}]
[{"$f":"LEFT(B134,3)","v":"112"},1128010001,{"$f":"_xlfn.XLOOKUP(B134,'FC Master'!Q:Q,'FC Master'!B:B)","v":"112CARCrmJs0001"},"TCIS CAR-CrmJs GF",null,null,null,null,null,null,null,null,null,null,null,null,null,null,null,null,"801","0001",{"$f":"_xlfn.XLOOKUP(VALUE(V134),'Budgeted Funds'!A:A,'Budgeted Funds'!D:D)","v":true}]
[{"$f":"LEFT(B135,3)","v":"112"},1128020001,{"$f":"_xlfn.XLOOKUP(B135,'FC Master'!Q:Q,'FC Master'!B:B)","v":"112CARRdBg0001"},"TCIS CAR-RdBg GF",null,null,null,null,null,null,null,null,null,null,null,null,null,null,null,null,"802","0001",{"$f":"_xlfn.XLOOKUP(VALUE(V135),'Budgeted Funds'!A:A,'Budgeted Funds'!D:D)","v":true}]
[{"$f":"LEFT(B136,3)","v":"112"},1128030001,{"$f":"_xlfn.XLOOKUP(B136,'FC Master'!Q:Q,'FC Master'!B:B)","v":"112CARLE0001"},"TCIS CAR-LE GF",null,null,null,null,null,null,null,null,null,null,null,null,null,null,null,null,"803","0001",{"$f":"_xlfn.XLOOKUP(VALUE(V136),'Budgeted Funds'!A:A,'Budgeted Funds'!D:D)","v":true}]
[{"$f":"LEFT(B137,3)","v":"112"},1129000001,{"$f":"_xlfn.XLOOKUP(B137,'FC Master'!Q:Q,'FC Master'!B:B)","v":"112ReimburseRes0001"},"TCIS Reimbursement Resolution Funds-GF",null,null,null,null,null,null,null,null,null,null,null,null,null,null,null,null,"900","0001",{"$f":"_xlfn.XLOOKUP(VALUE(V137),'Budgeted Funds'!A:A,'Budgeted Funds'!D:D)","v":true}]
[{"$f":"LEFT(B138,3)","v":"114"},1140010001,{"$f":"_xlfn.XLOOKUP(B138,'FC Master'!Q:Q,'FC Master'!B:B)","v":"114Adm0001"},"FMD Adm-GF",null,null,null,null,null,null,null,null,null,null,null,null,null,null,null,null,"001","0001",{"$f":"_xlfn.XLOOKUP(VALUE(V138),'Budgeted Funds'!A:A,'Budgeted Funds'!D:D)","v":true}]
[{"$f":"LEFT(B139,3)","v":"114"},1140020001,{"$f":"_xlfn.XLOOKUP(B139,'FC Master'!Q:Q,'FC Master'!B:B)","v":"114Grndskpng0001"},"FMD Groundskeeping-GF",null,null,null,null,null,null,null,null,null,null,null,null,null,null,null,null,"002","0001",{"$f":"_xlfn.XLOOKUP(VALUE(V139),'Budgeted Funds'!A:A,'Budgeted Funds'!D:D)","v":true}]
[{"$f":"LEFT(B140,3)","v":"114"},1140030001,{"$f":"_xlfn.XLOOKUP(B140,'FC Master'!Q:Q,'FC Master'!B:B)","v":"114Custodial0001"},"FMD Custodial Svs-GF",null,null,null,null,null,null,null,null,null,null,null,null,null,null,null,null,"003","0001",{"$f":"_xlfn.XLOOKUP(VALUE(V140),'Budgeted Funds'!A:A,'Budgeted Funds'!D:D)","v":true}]
[{"$f":"LEFT(B141,3)","v":"114"},1140040001,{"$f":"_xlfn.XLOOKUP(B141,'FC Master'!Q:Q,'FC Master'!B:B)","v":"114SecuritySvs0001"},"FMD Security Svs-GF",null,null,null,null,null,null,null,null,null,null,null,null,null,null,null,null,"004","0001",{"$f":"_xlfn.XLOOKUP(VALUE(V141),'Budgeted Funds'!A:A,'Budgeted Funds'!D:D)","v":true}]
[{"$f":"LEFT(B142,3)","v":"114"},1140040128,{"$f":"_xlfn.XLOOKUP(B142,'FC Master'!Q:Q,'FC Master'!B:B)","v":"114SecuritySvs0128"},"FMD Security Svs-Ele. Contracts Fd",null,null,null,null,null,null,null,null,null,null,null,null,null,null,null,null,"004","0128",{"$f":"_xlfn.XLOOKUP(VALUE(V142),'Budgeted Funds'!A:A,'Budgeted Funds'!D:D)","v":true}]
[{"$f":"LEFT(B143,3)","v":"114"},1140040136,{"$f":"_xlfn.XLOOKUP(B143,'FC Master'!Q:Q,'FC Master'!B:B)","v":"114SecuritySvs0136"},"FMD Security Svs-Js Ct Bldg Sec Fd",null,null,null,null,null,null,null,null,null,null,null,null,null,null,null,null,"004","0136",{"$f":"_xlfn.XLOOKUP(VALUE(V143),'Budgeted Funds'!A:A,'Budgeted Funds'!D:D)","v":true}]
[{"$f":"LEFT(B144,3)","v":"114"},1140044063,{"$f":"_xlfn.XLOOKUP(B144,'FC Master'!Q:Q,'FC Master'!B:B)","v":"114SecuritySvs4063"},"FMD Security Services-Cap Proj",null,null,null,null,null,null,null,null,null,null,null,null,null,null,null,null,"004","4063",{"$f":"_xlfn.XLOOKUP(VALUE(V144),'Budgeted Funds'!A:A,'Budgeted Funds'!D:D)","v":{"$error":"#N/A"}}]
[{"$f":"LEFT(B145,3)","v":"114"},1140060002,{"$f":"_xlfn.XLOOKUP(B145,'FC Master'!Q:Q,'FC Master'!B:B)","v":"114Lavaca0002"},"FMD Operations 700 Lavaca-Lavaca Cmplx",null,null,null,null,null,null,null,null,null,null,null,null,null,null,null,null,"006","0002",{"$f":"_xlfn.XLOOKUP(VALUE(V145),'Budgeted Funds'!A:A,'Budgeted Funds'!D:D)","v":true}]
[{"$f":"LEFT(B146,3)","v":"114"},1140060115,{"$f":"_xlfn.XLOOKUP(B146,'FC Master'!Q:Q,'FC Master'!B:B)","v":"114BCP0115"},"FMD Operations-Balcones Canyonlnds Pres.",null,null,null,null,null,null,null,null,null,null,null,null,null,null,null,null,"006","0115",{"$f":"_xlfn.XLOOKUP(VALUE(V146),'Budgeted Funds'!A:A,'Budgeted Funds'!D:D)","v":true}]
[{"$f":"LEFT(B147,3)","v":"114"},1140080001,{"$f":"_xlfn.XLOOKUP(B147,'FC Master'!Q:Q,'FC Master'!B:B)","v":"114TxExpo0001"},"FMD Tx Expo & Heritage-GF",null,null,null,null,null,null,null,null,null,null,null,null,null,null,null,null,"008","0001",{"$f":"_xlfn.XLOOKUP(VALUE(V147),'Budgeted Funds'!A:A,'Budgeted Funds'!D:D)","v":true}]
[{"$f":"LEFT(B148,3)","v":"114"},1140080003,{"$f":"_xlfn.XLOOKUP(B148,'FC Master'!Q:Q,'FC Master'!B:B)","v":"114TxExpo0003"},"FMD-Tx Expo & Heritage-Expo Fd",null,null,null,null,null,null,null,null,null,null,null,null,null,null,null,null,"008","0003",{"$f":"_xlfn.XLOOKUP(VALUE(V148),'Budgeted Funds'!A:A,'Budgeted Funds'!D:D)","v":true}]
[{"$f":"LEFT(B149,3)","v":"114"},1140084038,{"$f":"_xlfn.XLOOKUP(B149,'FC Master'!Q:Q,'FC Master'!B:B)","v":"114TxExpo4038"},"FMD-Tx Expo & Heritage-LT CO 2003",null,null,null,null,null,null,null,null,null,null,null,null,null,null,null,null,"008","4038",{"$f":"_xlfn.XLOOKUP(VALUE(V149),'Budgeted Funds'!A:A,'Budgeted Funds'!D:D)","v":{"$error":"#N/A"}}]
[{"$f":"LEFT(B150,3)","v":"114"},1140090001,{"$f":"_xlfn.XLOOKUP(B150,'FC Master'!Q:Q,'FC Master'!B:B)","v":"114BdMnt0001"},"FMD Building Maintenance-GF",null,null,null,null,null,null,null,null,null,null,null,null,null,null,null,null,"009","0001",{"$f":"_xlfn.XLOOKUP(VALUE(V150),'Budgeted Funds'!A:A,'Budgeted Funds'!D:D)","v":true}]
[{"$f":"LEFT(B151,3)","v":"114"},1140090125,{"$f":"_xlfn.XLOOKUP(B151,'FC Master'!Q:Q,'FC Master'!B:B)","v":"114BdMnt0125"},"FMD Building Maintenance Js Ct Tech",null,null,null,null,null,null,null,null,null,null,null,null,null,null,null,null,"009","0125",{"$f":"_xlfn.XLOOKUP(VALUE(V151),'Budgeted Funds'!A:A,'Budgeted Funds'!D:D)","v":true}]
[{"$f":"LEFT(B152,3)","v":"114"},1140100001,{"$f":"_xlfn.XLOOKUP(B152,'FC Master'!Q:Q,'FC Master'!B:B)","v":"114Courthouse0001"},"FMD Old Courthouse Block-GF",null,null,null,null,null,null,null,null,null,null,null,null,null,null,null,null,"010","0001",{"$f":"_xlfn.XLOOKUP(VALUE(V152),'Budgeted Funds'!A:A,'Budgeted Funds'!D:D)","v":true}]
[{"$f":"LEFT(B153,3)","v":"114"},1140110001,{"$f":"_xlfn.XLOOKUP(B153,'FC Master'!Q:Q,'FC Master'!B:B)","v":"114PMPerPos0001"},"FMD PM Personnel Positions-GF",null,null,null,null,null,null,null,null,null,null,null,null,null,null,null,null,"011","0001",{"$f":"_xlfn.XLOOKUP(VALUE(V153),'Budgeted Funds'!A:A,'Budgeted Funds'!D:D)","v":true}]
[{"$f":"LEFT(B154,3)","v":"114"},1140115001,{"$f":"_xlfn.XLOOKUP(B154,'FC Master'!Q:Q,'FC Master'!B:B)","v":"114PMFacMgmt5001"},"FMD Proj Mgmt Svs FacMgmt",null,null,null,null,null,null,null,null,null,null,null,null,null,null,null,null,"011","5001",{"$f":"_xlfn.XLOOKUP(VALUE(V154),'Budgeted Funds'!A:A,'Budgeted Funds'!D:D)","v":{"$error":"#N/A"}}]
[{"$f":"LEFT(B155,3)","v":"114"},1148000001,{"$f":"_xlfn.XLOOKUP(B155,'FC Master'!Q:Q,'FC Master'!B:B)","v":"114CARFacMgmt0001"},"FMD CAR-FacMgmt GF",null,null,null,null,null,null,null,null,null,null,null,null,null,null,null,null,"800","0001",{"$f":"_xlfn.XLOOKUP(VALUE(V155),'Budgeted Funds'!A:A,'Budgeted Funds'!D:D)","v":true}]
[{"$f":"LEFT(B156,3)","v":"114"},1148010001,{"$f":"_xlfn.XLOOKUP(B156,'FC Master'!Q:Q,'FC Master'!B:B)","v":"114CARPbcHlh0001"},"FMD CAR-PbcHlh GF",null,null,null,null,null,null,null,null,null,null,null,null,null,null,null,null,"801","0001",{"$f":"_xlfn.XLOOKUP(VALUE(V156),'Budgeted Funds'!A:A,'Budgeted Funds'!D:D)","v":true}]
[{"$f":"LEFT(B157,3)","v":"114"},1148020001,{"$f":"_xlfn.XLOOKUP(B157,'FC Master'!Q:Q,'FC Master'!B:B)","v":"114CARCrmJs0001"},"FMD CAR-CrmJs GF",null,null,null,null,null,null,null,null,null,null,null,null,null,null,null,null,"802","0001",{"$f":"_xlfn.XLOOKUP(VALUE(V157),'Budgeted Funds'!A:A,'Budgeted Funds'!D:D)","v":true}]
[{"$f":"LEFT(B158,3)","v":"114"},1148030001,{"$f":"_xlfn.XLOOKUP(B158,'FC Master'!Q:Q,'FC Master'!B:B)","v":"114CARLE0001"},"FMD CAR-LE GF",null,null,null,null,null,null,null,null,null,null,null,null,null,null,null,null,"803","0001",{"$f":"_xlfn.XLOOKUP(VALUE(V158),'Budgeted Funds'!A:A,'Budgeted Funds'!D:D)","v":true}]
[{"$f":"LEFT(B159,3)","v":"114"},1148040001,{"$f":"_xlfn.XLOOKUP(B159,'FC Master'!Q:Q,'FC Master'!B:B)","v":"114CARHsgBkg0001"},"FMD CAR-HsgBkg GF",null,null,null,null,null,null,null,null,null,null,null,null,null,null,null,null,"804","0001",{"$f":"_xlfn.XLOOKUP(VALUE(V159),'Budgeted Funds'!A:A,'Budgeted Funds'!D:D)","v":true}]
[{"$f":"LEFT(B160,3)","v":"114"},1148050001,{"$f":"_xlfn.XLOOKUP(B160,'FC Master'!Q:Q,'FC Master'!B:B)","v":"114CARJuvSv0001"},"FMD CAR-JuvSv GF",null,null,null,null,null,null,null,null,null,null,null,null,null,null,null,null,"805","0001",{"$f":"_xlfn.XLOOKUP(VALUE(V160),'Budgeted Funds'!A:A,'Budgeted Funds'!D:D)","v":true}]
[{"$f":"LEFT(B161,3)","v":"114"},1148060001,{"$f":"_xlfn.XLOOKUP(B161,'FC Master'!Q:Q,'FC Master'!B:B)","v":"114CARParksRec0001"},"FMD CAR-ParksRec GF",null,null,null,null,null,null,null,null,null,null,null,null,null,null,null,null,"806","0001",{"$f":"_xlfn.XLOOKUP(VALUE(V161),'Budgeted Funds'!A:A,'Budgeted Funds'!D:D)","v":true}]
[{"$f":"LEFT(B162,3)","v":"114"},1148070001,{"$f":"_xlfn.XLOOKUP(B162,'FC Master'!Q:Q,'FC Master'!B:B)","v":"114CAREconDev0001"},"FMD CAR-EconDev GF",null,null,null,null,null,null,null,null,null,null,null,null,null,null,null,null,"807","0001",{"$f":"_xlfn.XLOOKUP(VALUE(V162),'Budgeted Funds'!A:A,'Budgeted Funds'!D:D)","v":true}]
[{"$f":"LEFT(B163,3)","v":"114"},1148080001,{"$f":"_xlfn.XLOOKUP(B163,'FC Master'!Q:Q,'FC Master'!B:B)","v":"114CARHumSv0001"},"FMD CAR-HumSv GF",null,null,null,null,null,null,null,null,null,null,null,null,null,null,null,null,"808","0001",{"$f":"_xlfn.XLOOKUP(VALUE(V163),'Budgeted Funds'!A:A,'Budgeted Funds'!D:D)","v":true}]
[{"$f":"LEFT(B164,3)","v":"114"},1148090001,{"$f":"_xlfn.XLOOKUP(B164,'FC Master'!Q:Q,'FC Master'!B:B)","v":"114CAR-CivJust0001"},"FMD CAR - Civil Justice GF",null,null,null,null,null,null,null,null,null,null,null,null,null,null,null,null,"809","0001",{"$f":"_xlfn.XLOOKUP(VALUE(V164),'Budgeted Funds'!A:A,'Budgeted Funds'!D:D)","v":true}]
[{"$f":"LEFT(B165,3)","v":"114"},1149000001,{"$f":"_xlfn.XLOOKUP(B165,'FC Master'!Q:Q,'FC Master'!B:B)","v":"114ReimburseRes0001"},"FMD Reimbursement Resolution Funds-GF",null,null,null,null,null,null,null,null,null,null,null,null,null,null,null,null,"900","0001",{"$f":"_xlfn.XLOOKUP(VALUE(V165),'Budgeted Funds'!A:A,'Budgeted Funds'!D:D)","v":true}]
[{"$f":"LEFT(B166,3)","v":"115"},1150010001,{"$f":"_xlfn.XLOOKUP(B166,'FC Master'!Q:Q,'FC Master'!B:B)","v":"115Adm0001"},"Purchasing Office Administration-GF",null,null,null,null,null,null,null,null,null,null,null,null,null,null,null,null,"001","0001",{"$f":"_xlfn.XLOOKUP(VALUE(V166),'Budgeted Funds'!A:A,'Budgeted Funds'!D:D)","v":true}]
[{"$f":"LEFT(B167,3)","v":"115"},1150020001,{"$f":"_xlfn.XLOOKUP(B167,'FC Master'!Q:Q,'FC Master'!B:B)","v":"115FxdAssets0001"},"Purchasing Office Fixed Assets-GF",null,null,null,null,null,null,null,null,null,null,null,null,null,null,null,null,"002","0001",{"$f":"_xlfn.XLOOKUP(VALUE(V167),'Budgeted Funds'!A:A,'Budgeted Funds'!D:D)","v":true}]
[{"$f":"LEFT(B168,3)","v":"115"},1150030001,{"$f":"_xlfn.XLOOKUP(B168,'FC Master'!Q:Q,'FC Master'!B:B)","v":"115HUB0001"},"Purchasing Office HUB Pram-GF",null,null,null,null,null,null,null,null,null,null,null,null,null,null,null,null,"003","0001",{"$f":"_xlfn.XLOOKUP(VALUE(V168),'Budgeted Funds'!A:A,'Budgeted Funds'!D:D)","v":true}]
[{"$f":"LEFT(B169,3)","v":"115"},1150040001,{"$f":"_xlfn.XLOOKUP(B169,'FC Master'!Q:Q,'FC Master'!B:B)","v":"115Prcmnt0001"},"Purchasing Office Procurement-GF",null,null,null,null,null,null,null,null,null,null,null,null,null,null,null,null,"004","0001",{"$f":"_xlfn.XLOOKUP(VALUE(V169),'Budgeted Funds'!A:A,'Budgeted Funds'!D:D)","v":true}]
[{"$f":"LEFT(B170,3)","v":"115"},1150050001,{"$f":"_xlfn.XLOOKUP(B170,'FC Master'!Q:Q,'FC Master'!B:B)","v":"115CntrcComp0001"},"Purchasing Office Contract Compliance-GF",null,null,null,null,null,null,null,null,null,null,null,null,null,null,null,null,"005","0001",{"$f":"_xlfn.XLOOKUP(VALUE(V170),'Budgeted Funds'!A:A,'Budgeted Funds'!D:D)","v":true}]
[{"$f":"LEFT(B171,3)","v":"115"},1158000001,{"$f":"_xlfn.XLOOKUP(B171,'FC Master'!Q:Q,'FC Master'!B:B)","v":"115CARPurchasing0001"},"Purchasing CAR-Purchasing GF",null,null,null,null,null,null,null,null,null,null,null,null,null,null,null,null,"800","0001",{"$f":"_xlfn.XLOOKUP(VALUE(V171),'Budgeted Funds'!A:A,'Budgeted Funds'!D:D)","v":true}]
[{"$f":"LEFT(B172,3)","v":"116"},1160010001,{"$f":"_xlfn.XLOOKUP(B172,'FC Master'!Q:Q,'FC Master'!B:B)","v":"116VetSvsAdm0001"},"Veterans Services Adm-GF",null,null,null,null,null,null,null,null,null,null,null,null,null,null,null,null,"001","0001",{"$f":"_xlfn.XLOOKUP(VALUE(V172),'Budgeted Funds'!A:A,'Budgeted Funds'!D:D)","v":true}]
[{"$f":"LEFT(B173,3)","v":"117"},1170010001,{"$f":"_xlfn.XLOOKUP(B173,'FC Master'!Q:Q,'FC Master'!B:B)","v":"117HistComm0001"},"Historical Commission-GF",null,null,null,null,null,null,null,null,null,null,null,null,null,null,null,null,"001","0001",{"$f":"_xlfn.XLOOKUP(VALUE(V173),'Budgeted Funds'!A:A,'Budgeted Funds'!D:D)","v":true}]
[{"$f":"LEFT(B174,3)","v":"119"},1190010001,{"$f":"_xlfn.XLOOKUP(B174,'FC Master'!Q:Q,'FC Master'!B:B)","v":"119Civ0001"},"CA Civil-GF",null,null,null,null,null,null,null,null,null,null,null,null,null,null,null,null,"001","0001",{"$f":"_xlfn.XLOOKUP(VALUE(V174),'Budgeted Funds'!A:A,'Budgeted Funds'!D:D)","v":true}]
[{"$f":"LEFT(B175,3)","v":"119"},1190014019,{"$f":"_xlfn.XLOOKUP(B175,'FC Master'!Q:Q,'FC Master'!B:B)","v":"119Civ4019"},"CA Civil-UT Rd Bds 1998",null,null,null,null,null,null,null,null,null,null,null,null,null,null,null,null,"001","4019",{"$f":"_xlfn.XLOOKUP(VALUE(V175),'Budgeted Funds'!A:A,'Budgeted Funds'!D:D)","v":false}]
[{"$f":"LEFT(B176,3)","v":"119"},1190014020,{"$f":"_xlfn.XLOOKUP(B176,'FC Master'!Q:Q,'FC Master'!B:B)","v":"119Civ4020"},"CA Civil-PIB 1998-Parks",null,null,null,null,null,null,null,null,null,null,null,null,null,null,null,null,"001","4020",{"$f":"_xlfn.XLOOKUP(VALUE(V176),'Budgeted Funds'!A:A,'Budgeted Funds'!D:D)","v":false}]
[{"$f":"LEFT(B177,3)","v":"119"},1190014023,{"$f":"_xlfn.XLOOKUP(B177,'FC Master'!Q:Q,'FC Master'!B:B)","v":"119Civ4023"},"CA Civil-UT Rd Bds 1998-Sh45",null,null,null,null,null,null,null,null,null,null,null,null,null,null,null,null,"001","4023",{"$f":"_xlfn.XLOOKUP(VALUE(V177),'Budgeted Funds'!A:A,'Budgeted Funds'!D:D)","v":false}]
[{"$f":"LEFT(B178,3)","v":"119"},1190020001,{"$f":"_xlfn.XLOOKUP(B178,'FC Master'!Q:Q,'FC Master'!B:B)","v":"119Crm0001"},"CA Criminal-GF",null,null,null,null,null,null,null,null,null,null,null,null,null,null,null,null,"002","0001",{"$f":"_xlfn.XLOOKUP(VALUE(V178),'Budgeted Funds'!A:A,'Budgeted Funds'!D:D)","v":true}]
[{"$f":"LEFT(B179,3)","v":"119"},1190020154,{"$f":"_xlfn.XLOOKUP(B179,'FC Master'!Q:Q,'FC Master'!B:B)","v":"119Crim0154"},"CA Criminal-DWI Pre-Diversion",null,null,null,null,null,null,null,null,null,null,null,null,null,null,null,null,"002","0154",{"$f":"_xlfn.XLOOKUP(VALUE(V179),'Budgeted Funds'!A:A,'Budgeted Funds'!D:D)","v":true}]
[{"$f":"LEFT(B180,3)","v":"119"},1190030001,{"$f":"_xlfn.XLOOKUP(B180,'FC Master'!Q:Q,'FC Master'!B:B)","v":"119ChkDiv0001"},"CA Check Division-GF",null,null,null,null,null,null,null,null,null,null,null,null,null,null,null,null,"003","0001",{"$f":"_xlfn.XLOOKUP(VALUE(V180),'Budgeted Funds'!A:A,'Budgeted Funds'!D:D)","v":true}]
[{"$f":"LEFT(B181,3)","v":"119"},1190040001,{"$f":"_xlfn.XLOOKUP(B181,'FC Master'!Q:Q,'FC Master'!B:B)","v":"119UndAgeDrk0001"},"CA Underage Drinking Prvtn-GF",null,null,null,null,null,null,null,null,null,null,null,null,null,null,null,null,"004","0001",{"$f":"_xlfn.XLOOKUP(VALUE(V181),'Budgeted Funds'!A:A,'Budgeted Funds'!D:D)","v":true}]
[{"$f":"LEFT(B182,3)","v":"119"},1190050122,{"$f":"_xlfn.XLOOKUP(B182,'FC Master'!Q:Q,'FC Master'!B:B)","v":"119Civ0122"},"CA Civil-Prof Prosecutors Fd",null,null,null,null,null,null,null,null,null,null,null,null,null,null,null,null,"005","0122",{"$f":"_xlfn.XLOOKUP(VALUE(V182),'Budgeted Funds'!A:A,'Budgeted Funds'!D:D)","v":true}]
[{"$f":"LEFT(B183,3)","v":"119"},1198000001,{"$f":"_xlfn.XLOOKUP(B183,'FC Master'!Q:Q,'FC Master'!B:B)","v":"119CAR0001"},"CA CAR-CivJs GF",null,null,null,null,null,null,null,null,null,null,null,null,null,null,null,null,"800","0001",{"$f":"_xlfn.XLOOKUP(VALUE(V183),'Budgeted Funds'!A:A,'Budgeted Funds'!D:D)","v":true}]
[{"$f":"LEFT(B184,3)","v":"119"},1198010001,{"$f":"_xlfn.XLOOKUP(B184,'FC Master'!Q:Q,'FC Master'!B:B)","v":"119CAR0001"},"CA CAR-CrmJs GF",null,null,null,null,null,null,null,null,null,null,null,null,null,null,null,null,"801","0001",{"$f":"_xlfn.XLOOKUP(VALUE(V184),'Budgeted Funds'!A:A,'Budgeted Funds'!D:D)","v":true}]
[{"$f":"LEFT(B185,3)","v":"120"},1200010001,{"$f":"_xlfn.XLOOKUP(B185,'FC Master'!Q:Q,'FC Master'!B:B)","v":"120Adm0001"},"Co Clerk Adm-GF",null,null,null,null,null,null,null,null,null,null,null,null,null,null,null,null,"001","0001",{"$f":"_xlfn.XLOOKUP(VALUE(V185),'Budgeted Funds'!A:A,'Budgeted Funds'!D:D)","v":true}]
[{"$f":"LEFT(B186,3)","v":"120"},1200010108,{"$f":"_xlfn.XLOOKUP(B186,'FC Master'!Q:Q,'FC Master'!B:B)","v":"120Admin0108"},"Co Clerk Administration-Records Mgmt Fd",null,null,null,null,null,null,null,null,null,null,null,null,null,null,null,null,"001","0108",{"$f":"_xlfn.XLOOKUP(VALUE(V186),'Budgeted Funds'!A:A,'Budgeted Funds'!D:D)","v":true}]
[{"$f":"LEFT(B187,3)","v":"120"},1200020001,{"$f":"_xlfn.XLOOKUP(B187,'FC Master'!Q:Q,'FC Master'!B:B)","v":"120CompSvs0001"},"Co Clerk Computer Services-GF",null,null,null,null,null,null,null,null,null,null,null,null,null,null,null,null,"002","0001",{"$f":"_xlfn.XLOOKUP(VALUE(V187),'Budgeted Funds'!A:A,'Budgeted Funds'!D:D)","v":true}]
[{"$f":"LEFT(B188,3)","v":"120"},1200020004,{"$f":"_xlfn.XLOOKUP(B188,'FC Master'!Q:Q,'FC Master'!B:B)","v":"120CompSrvcs0004"},"Co Clerk Comp Service-Co Clerk Arch Fnd",null,null,null,null,null,null,null,null,null,null,null,null,null,null,null,null,"002","0004",{"$f":"_xlfn.XLOOKUP(VALUE(V188),'Budgeted Funds'!A:A,'Budgeted Funds'!D:D)","v":true}]
[{"$f":"LEFT(B189,3)","v":"120"},1200020108,{"$f":"_xlfn.XLOOKUP(B189,'FC Master'!Q:Q,'FC Master'!B:B)","v":"120CompSrvcs0108"},"Co Clerk Comp Services-Records Mgmt Fd",null,null,null,null,null,null,null,null,null,null,null,null,null,null,null,null,"002","0108",{"$f":"_xlfn.XLOOKUP(VALUE(V189),'Budgeted Funds'!A:A,'Budgeted Funds'!D:D)","v":true}]
[{"$f":"LEFT(B190,3)","v":"120"},1200020129,{"$f":"_xlfn.XLOOKUP(B190,'FC Master'!Q:Q,'FC Master'!B:B)","v":"120CompSrvcs0129"},"Co Clerk Comp Service-Co Clerk Arch Fnd",null,null,null,null,null,null,null,null,null,null,null,null,null,null,null,null,"002","0129",{"$f":"_xlfn.XLOOKUP(VALUE(V190),'Budgeted Funds'!A:A,'Budgeted Funds'!D:D)","v":true}]
[{"$f":"LEFT(B191,3)","v":"120"},1200030001,{"$f":"_xlfn.XLOOKUP(B191,'FC Master'!Q:Q,'FC Master'!B:B)","v":"120Accounting0001"},"Co Clerk Accounting-GF",null,null,null,null,null,null,null,null,null,null,null,null,null,null,null,null,"003","0001",{"$f":"_xlfn.XLOOKUP(VALUE(V191),'Budgeted Funds'!A:A,'Budgeted Funds'!D:D)","v":true}]
[{"$f":"LEFT(B192,3)","v":"120"},1200030108,{"$f":"_xlfn.XLOOKUP(B192,'FC Master'!Q:Q,'FC Master'!B:B)","v":"120ACCTNG-RM0108"},"CO Clerk Accounting-Records Mgmt Fd",null,null,null,null,null,null,null,null,null,null,null,null,null,null,null,null,"003","0108",{"$f":"_xlfn.XLOOKUP(VALUE(V192),'Budgeted Funds'!A:A,'Budgeted Funds'!D:D)","v":true}]
[{"$f":"LEFT(B193,3)","v":"120"},1200040001,{"$f":"_xlfn.XLOOKUP(B193,'FC Master'!Q:Q,'FC Master'!B:B)","v":"120ElnAdm0001"},"Co Clerk Eln Adm-GF",null,null,null,null,null,null,null,null,null,null,null,null,null,null,null,null,"004","0001",{"$f":"_xlfn.XLOOKUP(VALUE(V193),'Budgeted Funds'!A:A,'Budgeted Funds'!D:D)","v":true}]
[{"$f":"LEFT(B194,3)","v":"120"},1200040128,{"$f":"_xlfn.XLOOKUP(B194,'FC Master'!Q:Q,'FC Master'!B:B)","v":"120ElnAdm0128"},"Co Clerk Eln Adm-Eln Cntrt Fd",null,null,null,null,null,null,null,null,null,null,null,null,null,null,null,null,"004","0128",{"$f":"_xlfn.XLOOKUP(VALUE(V194),'Budgeted Funds'!A:A,'Budgeted Funds'!D:D)","v":true}]
[{"$f":"LEFT(B195,3)","v":"120"},1200050128,{"$f":"_xlfn.XLOOKUP(B195,'FC Master'!Q:Q,'FC Master'!B:B)","v":"120ElnAdmFee0128"},"Co Clerk Eln Adm Fee-Eln Cntrt Fd",null,null,null,null,null,null,null,null,null,null,null,null,null,null,null,null,"005","0128",{"$f":"_xlfn.XLOOKUP(VALUE(V195),'Budgeted Funds'!A:A,'Budgeted Funds'!D:D)","v":true}]
[{"$f":"LEFT(B196,3)","v":"120"},1200060001,{"$f":"_xlfn.XLOOKUP(B196,'FC Master'!Q:Q,'FC Master'!B:B)","v":"120Probate0001"},"Co Clerk Probate-GF",null,null,null,null,null,null,null,null,null,null,null,null,null,null,null,null,{"$f":"MID(B196,4,3)","v":"006"},{"$f":"MID(B196,7,4)","v":"0001"},{"$f":"_xlfn.XLOOKUP(VALUE(V196),'Budgeted Funds'!A:A,'Budgeted Funds'!D:D)","v":true}]
[{"$f":"LEFT(B197,3)","v":"120"},1200060108,{"$f":"_xlfn.XLOOKUP(B197,'FC Master'!Q:Q,'FC Master'!B:B)","v":"120Probate0108"},"Co Clerk Probate-Records Mgmt Fd",null,null,null,null,null,null,null,null,null,null,null,null,null,null,null,null,"006","0108",{"$f":"_xlfn.XLOOKUP(VALUE(V197),'Budgeted Funds'!A:A,'Budgeted Funds'!D:D)","v":true}]
[{"$f":"LEFT(B198,3)","v":"120"},1200060110,{"$f":"_xlfn.XLOOKUP(B198,'FC Master'!Q:Q,'FC Master'!B:B)","v":"120Probate0110"},"Co Clerk Probate -Records Mgmt Preser",null,null,null,null,null,null,null,null,null,null,null,null,null,null,null,null,"006","0110",{"$f":"_xlfn.XLOOKUP(VALUE(V198),'Budgeted Funds'!A:A,'Budgeted Funds'!D:D)","v":true}]
[{"$f":"LEFT(B199,3)","v":"120"},1200060111,{"$f":"_xlfn.XLOOKUP(B199,'FC Master'!Q:Q,'FC Master'!B:B)","v":"120Probate0111"},"Co Clerk Probate-Courthouse Sec Fd",null,null,null,null,null,null,null,null,null,null,null,null,null,null,null,null,"006","0111",{"$f":"_xlfn.XLOOKUP(VALUE(V199),'Budgeted Funds'!A:A,'Budgeted Funds'!D:D)","v":true}]
[{"$f":"LEFT(B200,3)","v":"120"},1200060113,{"$f":"_xlfn.XLOOKUP(B200,'FC Master'!Q:Q,'FC Master'!B:B)","v":"120Probate0113"},"Co Clerk Probate-Ct Rptr Sv Fnd",null,null,null,null,null,null,null,null,null,null,null,null,null,null,null,null,"006","0113",{"$f":"_xlfn.XLOOKUP(VALUE(V200),'Budgeted Funds'!A:A,'Budgeted Funds'!D:D)","v":true}]
[{"$f":"LEFT(B201,3)","v":"120"},1200060141,{"$f":"_xlfn.XLOOKUP(B201,'FC Master'!Q:Q,'FC Master'!B:B)","v":"120Probate0141"},"Co Clerk Probate-Ct Record Preservation",null,null,null,null,null,null,null,null,null,null,null,null,null,null,null,null,"006","0141",{"$f":"_xlfn.XLOOKUP(VALUE(V201),'Budgeted Funds'!A:A,'Budgeted Funds'!D:D)","v":true}]
[{"$f":"LEFT(B202,3)","v":"120"},1200060151,{"$f":"_xlfn.XLOOKUP(B202,'FC Master'!Q:Q,'FC Master'!B:B)","v":"120Probate0151"},"Co Clerk Probate-CivilCourthouseImpFd",null,null,null,null,null,null,null,null,null,null,null,null,null,null,null,null,"006","0151",{"$f":"_xlfn.XLOOKUP(VALUE(V202),'Budgeted Funds'!A:A,'Budgeted Funds'!D:D)","v":true}]
[{"$f":"LEFT(B203,3)","v":"120"},1200060156,{"$f":"_xlfn.XLOOKUP(B203,'FC Master'!Q:Q,'FC Master'!B:B)","v":"120Probate0156"},"Co Clerk Probate-Jury Fund",null,null,null,null,null,null,null,null,null,null,null,null,null,null,null,null,"006","0156",{"$f":"_xlfn.XLOOKUP(VALUE(V203),'Budgeted Funds'!A:A,'Budgeted Funds'!D:D)","v":true}]
[{"$f":"LEFT(B204,3)","v":"120"},1200060158,{"$f":"_xlfn.XLOOKUP(B204,'FC Master'!Q:Q,'FC Master'!B:B)","v":"120Probate0158"},"Co Clerk Probate-Lang Access Fund",null,null,null,null,null,null,null,null,null,null,null,null,null,null,null,null,"006","0158",{"$f":"_xlfn.XLOOKUP(VALUE(V204),'Budgeted Funds'!A:A,'Budgeted Funds'!D:D)","v":true}]
[{"$f":"LEFT(B205,3)","v":"120"},1200060160,{"$f":"_xlfn.XLOOKUP(B205,'FC Master'!Q:Q,'FC Master'!B:B)","v":"120Probate0160"},"Co Clerk Probate-TC RecMgmt&Pres",null,null,null,null,null,null,null,null,null,null,null,null,null,null,null,null,"006","0160",{"$f":"_xlfn.XLOOKUP(VALUE(V205),'Budgeted Funds'!A:A,'Budgeted Funds'!D:D)","v":true}]
[{"$f":"LEFT(B206,3)","v":"120"},1200070001,{"$f":"_xlfn.XLOOKUP(B206,'FC Master'!Q:Q,'FC Master'!B:B)","v":"120Civil0001"},"Co Clerk Civil-GF",null,null,null,null,null,null,null,null,null,null,null,null,null,null,null,null,"007","0001",{"$f":"_xlfn.XLOOKUP(VALUE(V206),'Budgeted Funds'!A:A,'Budgeted Funds'!D:D)","v":true}]
[{"$f":"LEFT(B207,3)","v":"120"},1200070108,{"$f":"_xlfn.XLOOKUP(B207,'FC Master'!Q:Q,'FC Master'!B:B)","v":"120Civil0108"},"Co Clerk Civil-Records Mgmt Fd",null,null,null,null,null,null,null,null,null,null,null,null,null,null,null,null,"007","0108",{"$f":"_xlfn.XLOOKUP(VALUE(V207),'Budgeted Funds'!A:A,'Budgeted Funds'!D:D)","v":true}]
[{"$f":"LEFT(B208,3)","v":"120"},1200070110,{"$f":"_xlfn.XLOOKUP(B208,'FC Master'!Q:Q,'FC Master'!B:B)","v":"120Civil0110"},"Co Clerk Civil-Records Mgmt Preser",null,null,null,null,null,null,null,null,null,null,null,null,null,null,null,null,"007","0110",{"$f":"_xlfn.XLOOKUP(VALUE(V208),'Budgeted Funds'!A:A,'Budgeted Funds'!D:D)","v":true}]
[{"$f":"LEFT(B209,3)","v":"120"},1200070111,{"$f":"_xlfn.XLOOKUP(B209,'FC Master'!Q:Q,'FC Master'!B:B)","v":"120Civil0111"},"Co Clerk Civil-Courthouse Sec Fd",null,null,null,null,null,null,null,null,null,null,null,null,null,null,null,null,"007","0111",{"$f":"_xlfn.XLOOKUP(VALUE(V209),'Budgeted Funds'!A:A,'Budgeted Funds'!D:D)","v":true}]
[{"$f":"LEFT(B210,3)","v":"120"},1200070113,{"$f":"_xlfn.XLOOKUP(B210,'FC Master'!Q:Q,'FC Master'!B:B)","v":"120Civil0113"},"Co Clerk Civil-Ct Rptr Sv Fnd",null,null,null,null,null,null,null,null,null,null,null,null,null,null,null,null,"007","0113",{"$f":"_xlfn.XLOOKUP(VALUE(V210),'Budgeted Funds'!A:A,'Budgeted Funds'!D:D)","v":true}]
[{"$f":"LEFT(B211,3)","v":"120"},1200070141,{"$f":"_xlfn.XLOOKUP(B211,'FC Master'!Q:Q,'FC Master'!B:B)","v":"120Civil0141"},"Co Clerk Civil-Ct Record Preservation",null,null,null,null,null,null,null,null,null,null,null,null,null,null,null,null,"007","0141",{"$f":"_xlfn.XLOOKUP(VALUE(V211),'Budgeted Funds'!A:A,'Budgeted Funds'!D:D)","v":true}]
[{"$f":"LEFT(B212,3)","v":"120"},1200070151,{"$f":"_xlfn.XLOOKUP(B212,'FC Master'!Q:Q,'FC Master'!B:B)","v":"120Civil0151"},"Co Clerk Civil-CivilCourthouseImpFd",null,null,null,null,null,null,null,null,null,null,null,null,null,null,null,null,"007","0151",{"$f":"_xlfn.XLOOKUP(VALUE(V212),'Budgeted Funds'!A:A,'Budgeted Funds'!D:D)","v":true}]
[{"$f":"LEFT(B213,3)","v":"120"},1200070156,{"$f":"_xlfn.XLOOKUP(B213,'FC Master'!Q:Q,'FC Master'!B:B)","v":"120Civil0156"},"Co Clerk Civil-Cty Jury Fund",null,null,null,null,null,null,null,null,null,null,null,null,null,null,null,null,"007","0156",{"$f":"_xlfn.XLOOKUP(VALUE(V213),'Budgeted Funds'!A:A,'Budgeted Funds'!D:D)","v":true}]
[{"$f":"LEFT(B214,3)","v":"120"},1200070158,{"$f":"_xlfn.XLOOKUP(B214,'FC Master'!Q:Q,'FC Master'!B:B)","v":"120Civil0158"},"Co Clerk Civil-Lang Access Fund",null,null,null,null,null,null,null,null,null,null,null,null,null,null,null,null,"007","0158",{"$f":"_xlfn.XLOOKUP(VALUE(V214),'Budgeted Funds'!A:A,'Budgeted Funds'!D:D)","v":true}]
[{"$f":"LEFT(B215,3)","v":"120"},1200070160,{"$f":"_xlfn.XLOOKUP(B215,'FC Master'!Q:Q,'FC Master'!B:B)","v":"120Civ0160"},"Co Clerk Civil-TC RecMgmt&Pres",null,null,null,null,null,null,null,null,null,null,null,null,null,null,null,null,"007","0160",{"$f":"_xlfn.XLOOKUP(VALUE(V215),'Budgeted Funds'!A:A,'Budgeted Funds'!D:D)","v":true}]
[{"$f":"LEFT(B216,3)","v":"120"},1200080001,{"$f":"_xlfn.XLOOKUP(B216,'FC Master'!Q:Q,'FC Master'!B:B)","v":"120Crm0001"},"Co Clerk Crm-GF",null,null,null,null,null,null,null,null,null,null,null,null,null,null,null,null,"008","0001",{"$f":"_xlfn.XLOOKUP(VALUE(V216),'Budgeted Funds'!A:A,'Budgeted Funds'!D:D)","v":true}]
[{"$f":"LEFT(B217,3)","v":"120"},1200080108,{"$f":"_xlfn.XLOOKUP(B217,'FC Master'!Q:Q,'FC Master'!B:B)","v":"120Crm0108"},"Co Clerk Crm-Records Mgmt Fd",null,null,null,null,null,null,null,null,null,null,null,null,null,null,null,null,"008","0108",{"$f":"_xlfn.XLOOKUP(VALUE(V217),'Budgeted Funds'!A:A,'Budgeted Funds'!D:D)","v":true}]
[{"$f":"LEFT(B218,3)","v":"120"},1200080110,{"$f":"_xlfn.XLOOKUP(B218,'FC Master'!Q:Q,'FC Master'!B:B)","v":"120Crm0110"},"Co Clerk Crm-Records Mgmt Preser",null,null,null,null,null,null,null,null,null,null,null,null,null,null,null,null,"008","0110",{"$f":"_xlfn.XLOOKUP(VALUE(V218),'Budgeted Funds'!A:A,'Budgeted Funds'!D:D)","v":true}]
[{"$f":"LEFT(B219,3)","v":"120"},1200080111,{"$f":"_xlfn.XLOOKUP(B219,'FC Master'!Q:Q,'FC Master'!B:B)","v":"120Crm0111"},"Co Clerk Crm-Courthouse Sec Fd",null,null,null,null,null,null,null,null,null,null,null,null,null,null,null,null,"008","0111",{"$f":"_xlfn.XLOOKUP(VALUE(V219),'Budgeted Funds'!A:A,'Budgeted Funds'!D:D)","v":true}]
[{"$f":"LEFT(B220,3)","v":"120"},1200080113,{"$f":"_xlfn.XLOOKUP(B220,'FC Master'!Q:Q,'FC Master'!B:B)","v":"120CrmCtRptr0113"},"Co Clerk Crm-Ct Rptr Sv Fnd",null,null,null,null,null,null,null,null,null,null,null,null,null,null,null,null,"008","0113",{"$f":"_xlfn.XLOOKUP(VALUE(V220),'Budgeted Funds'!A:A,'Budgeted Funds'!D:D)","v":true}]
[{"$f":"LEFT(B221,3)","v":"120"},1200080119,{"$f":"_xlfn.XLOOKUP(B221,'FC Master'!Q:Q,'FC Master'!B:B)","v":"120Crm0119"},"Co Clerk Crm-JV Delinquency Preventn",null,null,null,null,null,null,null,null,null,null,null,null,null,null,null,null,"008","0119",{"$f":"_xlfn.XLOOKUP(VALUE(V221),'Budgeted Funds'!A:A,'Budgeted Funds'!D:D)","v":true}]
[{"$f":"LEFT(B222,3)","v":"120"},1200080137,{"$f":"_xlfn.XLOOKUP(B222,'FC Master'!Q:Q,'FC Master'!B:B)","v":"120Crm0137"},"Co Clerk Crm-Juvenile Case Mgr Fd",null,null,null,null,null,null,null,null,null,null,null,null,null,null,null,null,"008","0137",{"$f":"_xlfn.XLOOKUP(VALUE(V222),'Budgeted Funds'!A:A,'Budgeted Funds'!D:D)","v":true}]
[{"$f":"LEFT(B223,3)","v":"120"},1200080140,{"$f":"_xlfn.XLOOKUP(B223,'FC Master'!Q:Q,'FC Master'!B:B)","v":"120Crm0140"},"Co Clerk Crm-Co/Dist Court Tech Fd",null,null,null,null,null,null,null,null,null,null,null,null,null,null,null,null,"008","0140",{"$f":"_xlfn.XLOOKUP(VALUE(V223),'Budgeted Funds'!A:A,'Budgeted Funds'!D:D)","v":true}]
[{"$f":"LEFT(B224,3)","v":"120"},1200080145,{"$f":"_xlfn.XLOOKUP(B224,'FC Master'!Q:Q,'FC Master'!B:B)","v":"120Crm0145"},"Co Clerk Crm-RdBg Fnd",null,null,null,null,null,null,null,null,null,null,null,null,null,null,null,null,"008","0145",{"$f":"_xlfn.XLOOKUP(VALUE(V224),'Budgeted Funds'!A:A,'Budgeted Funds'!D:D)","v":true}]
[{"$f":"LEFT(B225,3)","v":"120"},1200080152,{"$f":"_xlfn.XLOOKUP(B225,'FC Master'!Q:Q,'FC Master'!B:B)","v":"120Crm0152"},"Co Clerk Crm-Juv Case Mgr Pgm Fd",null,null,null,null,null,null,null,null,null,null,null,null,null,null,null,null,"008","0152",{"$f":"_xlfn.XLOOKUP(VALUE(V225),'Budgeted Funds'!A:A,'Budgeted Funds'!D:D)","v":true}]
[{"$f":"LEFT(B226,3)","v":"120"},1200080156,{"$f":"_xlfn.XLOOKUP(B226,'FC Master'!Q:Q,'FC Master'!B:B)","v":"120Crm0156"},"Co Clerk Crm-Jury Fee Fund",null,null,null,null,null,null,null,null,null,null,null,null,null,null,null,null,"008","0156",{"$f":"_xlfn.XLOOKUP(VALUE(V226),'Budgeted Funds'!A:A,'Budgeted Funds'!D:D)","v":true}]
[{"$f":"LEFT(B227,3)","v":"120"},1200080157,{"$f":"_xlfn.XLOOKUP(B227,'FC Master'!Q:Q,'FC Master'!B:B)","v":"Co Clk Crm-Spec Ct"},"Co Clerk Crm-Spec Court Fund",null,null,null,null,null,null,null,null,null,null,null,null,null,null,null,null,"008","0157",{"$f":"_xlfn.XLOOKUP(VALUE(V227),'Budgeted Funds'!A:A,'Budgeted Funds'!D:D)","v":true}]
[{"$f":"LEFT(B228,3)","v":"120"},1200090001,{"$f":"_xlfn.XLOOKUP(B228,'FC Master'!Q:Q,'FC Master'!B:B)","v":"120Recording0001"},"Co Clerk Recording-GF",null,null,null,null,null,null,null,null,null,null,null,null,null,null,null,null,"009","0001",{"$f":"_xlfn.XLOOKUP(VALUE(V228),'Budgeted Funds'!A:A,'Budgeted Funds'!D:D)","v":true}]
[{"$f":"LEFT(B229,3)","v":"120"},1200090108,{"$f":"_xlfn.XLOOKUP(B229,'FC Master'!Q:Q,'FC Master'!B:B)","v":"120Recording0108"},"Co Clerk Recording-Records Mgmt Fd",null,null,null,null,null,null,null,null,null,null,null,null,null,null,null,null,"009","0108",{"$f":"_xlfn.XLOOKUP(VALUE(V229),'Budgeted Funds'!A:A,'Budgeted Funds'!D:D)","v":true}]
[{"$f":"LEFT(B230,3)","v":"120"},1200090111,{"$f":"_xlfn.XLOOKUP(B230,'FC Master'!Q:Q,'FC Master'!B:B)","v":"120Recording0111"},"Co Clerk Recording-Courthouse Sec Fd",null,null,null,null,null,null,null,null,null,null,null,null,null,null,null,null,"009","0111",{"$f":"_xlfn.XLOOKUP(VALUE(V230),'Budgeted Funds'!A:A,'Budgeted Funds'!D:D)","v":true}]
[{"$f":"LEFT(B231,3)","v":"120"},1200100001,{"$f":"_xlfn.XLOOKUP(B231,'FC Master'!Q:Q,'FC Master'!B:B)","v":"120RecMgmt0001"},"Co Clerk Records Mgmt-GF",null,null,null,null,null,null,null,null,null,null,null,null,null,null,null,null,"010","0001",{"$f":"_xlfn.XLOOKUP(VALUE(V231),'Budgeted Funds'!A:A,'Budgeted Funds'!D:D)","v":true}]
[{"$f":"LEFT(B232,3)","v":"120"},1200100004,{"$f":"_xlfn.XLOOKUP(B232,'FC Master'!Q:Q,'FC Master'!B:B)","v":"120RecMgmt0004"},"Co Clerk Records Mgmt-Co Clerk Arch Fnd",null,null,null,null,null,null,null,null,null,null,null,null,null,null,null,null,"010","0004",{"$f":"_xlfn.XLOOKUP(VALUE(V232),'Budgeted Funds'!A:A,'Budgeted Funds'!D:D)","v":true}]
[{"$f":"LEFT(B233,3)","v":"120"},1200100108,{"$f":"_xlfn.XLOOKUP(B233,'FC Master'!Q:Q,'FC Master'!B:B)","v":"120RecMgmt0108"},"Co Clerk Records Mgmt-Records Mgmt Fd",null,null,null,null,null,null,null,null,null,null,null,null,null,null,null,null,"010","0108",{"$f":"_xlfn.XLOOKUP(VALUE(V233),'Budgeted Funds'!A:A,'Budgeted Funds'!D:D)","v":true}]
[{"$f":"LEFT(B234,3)","v":"120"},1200100111,{"$f":"_xlfn.XLOOKUP(B234,'FC Master'!Q:Q,'FC Master'!B:B)","v":"120RecMgmt0111"},"Co Clerk Records Mgmt-Courthouse Sec Fd",null,null,null,null,null,null,null,null,null,null,null,null,null,null,null,null,"010","0111",{"$f":"_xlfn.XLOOKUP(VALUE(V234),'Budgeted Funds'!A:A,'Budgeted Funds'!D:D)","v":true}]
[{"$f":"LEFT(B235,3)","v":"120"},1200100129,{"$f":"_xlfn.XLOOKUP(B235,'FC Master'!Q:Q,'FC Master'!B:B)","v":"120RecMgmt0129"},"Co Clerk Records Mgmt-Co Clerk Arch Fnd",null,null,null,null,null,null,null,null,null,null,null,null,null,null,null,null,"010","0129",{"$f":"_xlfn.XLOOKUP(VALUE(V235),'Budgeted Funds'!A:A,'Budgeted Funds'!D:D)","v":true}]
[{"$f":"LEFT(B236,3)","v":"120"},1200110001,{"$f":"_xlfn.XLOOKUP(B236,'FC Master'!Q:Q,'FC Master'!B:B)","v":"ELNCHGABLE"},"Co Clerk Eln-Chargeable-GF",null,null,null,null,null,null,null,null,null,null,null,null,null,null,null,null,"011","0001",{"$f":"_xlfn.XLOOKUP(VALUE(V236),'Budgeted Funds'!A:A,'Budgeted Funds'!D:D)","v":true}]
[{"$f":"LEFT(B237,3)","v":"120"},1208000001,{"$f":"_xlfn.XLOOKUP(B237,'FC Master'!Q:Q,'FC Master'!B:B)","v":"120CAR0001"},"Co Clerk CAR-GenAdm GF",null,null,null,null,null,null,null,null,null,null,null,null,null,null,null,null,"800","0001",{"$f":"_xlfn.XLOOKUP(VALUE(V237),'Budgeted Funds'!A:A,'Budgeted Funds'!D:D)","v":true}]
[{"$f":"LEFT(B238,3)","v":"120"},1208010001,{"$f":"_xlfn.XLOOKUP(B238,'FC Master'!Q:Q,'FC Master'!B:B)","v":"120CAR0001"},"Co Clerk CAR-ElnAdm GF",null,null,null,null,null,null,null,null,null,null,null,null,null,null,null,null,"801","0001",{"$f":"_xlfn.XLOOKUP(VALUE(V238),'Budgeted Funds'!A:A,'Budgeted Funds'!D:D)","v":true}]
[{"$f":"LEFT(B239,3)","v":"121"},1210010001,{"$f":"_xlfn.XLOOKUP(B239,'FC Master'!Q:Q,'FC Master'!B:B)","v":"121Civ0001"},"Dist Clerk Civil-GF",null,null,null,null,null,null,null,null,null,null,null,null,null,null,null,null,"001","0001",{"$f":"_xlfn.XLOOKUP(VALUE(V239),'Budgeted Funds'!A:A,'Budgeted Funds'!D:D)","v":true}]
[{"$f":"LEFT(B240,3)","v":"121"},1210010108,{"$f":"_xlfn.XLOOKUP(B240,'FC Master'!Q:Q,'FC Master'!B:B)","v":"121Civ0108"},"Dist Clerk Civil-Records Mgmt Fd",null,null,null,null,null,null,null,null,null,null,null,null,null,null,null,null,"001","0108",{"$f":"_xlfn.XLOOKUP(VALUE(V240),'Budgeted Funds'!A:A,'Budgeted Funds'!D:D)","v":true}]
[{"$f":"LEFT(B241,3)","v":"121"},1210010110,{"$f":"_xlfn.XLOOKUP(B241,'FC Master'!Q:Q,'FC Master'!B:B)","v":"121Civ0110"},"Dist Clerk Civil-Records Mgmt Preser",null,null,null,null,null,null,null,null,null,null,null,null,null,null,null,null,"001","0110",{"$f":"_xlfn.XLOOKUP(VALUE(V241),'Budgeted Funds'!A:A,'Budgeted Funds'!D:D)","v":true}]
[{"$f":"LEFT(B242,3)","v":"121"},1210010111,{"$f":"_xlfn.XLOOKUP(B242,'FC Master'!Q:Q,'FC Master'!B:B)","v":"121Civ0111"},"Dist Clerk Civil-Courthouse Security Fd",null,null,null,null,null,null,null,null,null,null,null,null,null,null,null,null,"001","0111",{"$f":"_xlfn.XLOOKUP(VALUE(V242),'Budgeted Funds'!A:A,'Budgeted Funds'!D:D)","v":true}]
[{"$f":"LEFT(B243,3)","v":"121"},1210010113,{"$f":"_xlfn.XLOOKUP(B243,'FC Master'!Q:Q,'FC Master'!B:B)","v":"121Civ0113"},"Dist Clerk Civil-Ct Rptr Sv Fnd",null,null,null,null,null,null,null,null,null,null,null,null,null,null,null,null,"001","0113",{"$f":"_xlfn.XLOOKUP(VALUE(V243),'Budgeted Funds'!A:A,'Budgeted Funds'!D:D)","v":true}]
[{"$f":"LEFT(B244,3)","v":"121"},1210010127,{"$f":"_xlfn.XLOOKUP(B244,'FC Master'!Q:Q,'FC Master'!B:B)","v":"121Civ0127"},"Dist Clerk Civil-Dist Clerk Records Mgmt",null,null,null,null,null,null,null,null,null,null,null,null,null,null,null,null,"001","0127",{"$f":"_xlfn.XLOOKUP(VALUE(V244),'Budgeted Funds'!A:A,'Budgeted Funds'!D:D)","v":true}]
[{"$f":"LEFT(B245,3)","v":"121"},1210010130,{"$f":"_xlfn.XLOOKUP(B245,'FC Master'!Q:Q,'FC Master'!B:B)","v":"121Civ0130"},"Dist Clerk Civil-Family Protection Fd",null,null,null,null,null,null,null,null,null,null,null,null,null,null,null,null,"001","0130",{"$f":"_xlfn.XLOOKUP(VALUE(V245),'Budgeted Funds'!A:A,'Budgeted Funds'!D:D)","v":true}]
[{"$f":"LEFT(B246,3)","v":"121"},1210010139,{"$f":"_xlfn.XLOOKUP(B246,'FC Master'!Q:Q,'FC Master'!B:B)","v":"121Civ0139"},"Dist Clerk Civil-Dist Ct Recrds Tech Fd",null,null,null,null,null,null,null,null,null,null,null,null,null,null,null,null,"001","0139",{"$f":"_xlfn.XLOOKUP(VALUE(V246),'Budgeted Funds'!A:A,'Budgeted Funds'!D:D)","v":true}]
[{"$f":"LEFT(B247,3)","v":"121"},1210010141,{"$f":"_xlfn.XLOOKUP(B247,'FC Master'!Q:Q,'FC Master'!B:B)","v":"121Civ0141"},"Dist Clerk Civil-Court Record Pres",null,null,null,null,null,null,null,null,null,null,null,null,null,null,null,null,"001","0141",{"$f":"_xlfn.XLOOKUP(VALUE(V247),'Budgeted Funds'!A:A,'Budgeted Funds'!D:D)","v":true}]
[{"$f":"LEFT(B248,3)","v":"121"},1210010151,{"$f":"_xlfn.XLOOKUP(B248,'FC Master'!Q:Q,'FC Master'!B:B)","v":"121Civ0151"},"Dist Clerk Civil-Civ Crthse Imp Fd",null,null,null,null,null,null,null,null,null,null,null,null,null,null,null,null,"001","0151",{"$f":"_xlfn.XLOOKUP(VALUE(V248),'Budgeted Funds'!A:A,'Budgeted Funds'!D:D)","v":true}]
[{"$f":"LEFT(B249,3)","v":"121"},1210010156,{"$f":"_xlfn.XLOOKUP(B249,'FC Master'!Q:Q,'FC Master'!B:B)","v":"121CIV0156"},"Dist Clerk Civil-Jury Fund",null,null,null,null,null,null,null,null,null,null,null,null,null,null,null,null,"001","0156",{"$f":"_xlfn.XLOOKUP(VALUE(V249),'Budgeted Funds'!A:A,'Budgeted Funds'!D:D)","v":true}]
[{"$f":"LEFT(B250,3)","v":"121"},1210010158,{"$f":"_xlfn.XLOOKUP(B250,'FC Master'!Q:Q,'FC Master'!B:B)","v":"121CIV0158"},"Dist Clerk Civil-Lang Access Fund",null,null,null,null,null,null,null,null,null,null,null,null,null,null,null,null,"001","0158",{"$f":"_xlfn.XLOOKUP(VALUE(V250),'Budgeted Funds'!A:A,'Budgeted Funds'!D:D)","v":true}]
[{"$f":"LEFT(B251,3)","v":"121"},1210010160,{"$f":"_xlfn.XLOOKUP(B251,'FC Master'!Q:Q,'FC Master'!B:B)","v":"121CIV0160"},"Dist Clerk Civil-TC RecMgmt&Pres",null,null,null,null,null,null,null,null,null,null,null,null,null,null,null,null,"001","0160",{"$f":"_xlfn.XLOOKUP(VALUE(V251),'Budgeted Funds'!A:A,'Budgeted Funds'!D:D)","v":true}]
[{"$f":"LEFT(B252,3)","v":"121"},1210020001,{"$f":"_xlfn.XLOOKUP(B252,'FC Master'!Q:Q,'FC Master'!B:B)","v":"121Crm0001"},"Dist Clerk Crm-GF",null,null,null,null,null,null,null,null,null,null,null,null,null,null,null,null,"002","0001",{"$f":"_xlfn.XLOOKUP(VALUE(V252),'Budgeted Funds'!A:A,'Budgeted Funds'!D:D)","v":true}]
[{"$f":"LEFT(B253,3)","v":"121"},1210020110,{"$f":"_xlfn.XLOOKUP(B253,'FC Master'!Q:Q,'FC Master'!B:B)","v":"121Crm0110"},"Dist Clerk Crm-Records Mgmt Preser",null,null,null,null,null,null,null,null,null,null,null,null,null,null,null,null,"002","0110",{"$f":"_xlfn.XLOOKUP(VALUE(V253),'Budgeted Funds'!A:A,'Budgeted Funds'!D:D)","v":true}]
[{"$f":"LEFT(B254,3)","v":"121"},1210020111,{"$f":"_xlfn.XLOOKUP(B254,'FC Master'!Q:Q,'FC Master'!B:B)","v":"121Crm0111"},"Dist Clerk Crm-Courthouse Security Fd",null,null,null,null,null,null,null,null,null,null,null,null,null,null,null,null,"002","0111",{"$f":"_xlfn.XLOOKUP(VALUE(V254),'Budgeted Funds'!A:A,'Budgeted Funds'!D:D)","v":true}]
[{"$f":"LEFT(B255,3)","v":"121"},1210020113,{"$f":"_xlfn.XLOOKUP(B255,'FC Master'!Q:Q,'FC Master'!B:B)","v":"121Crim0113"},"Dist Clerk Crm-Ct Rptr Sv Fnd",null,null,null,null,null,null,null,null,null,null,null,null,null,null,null,null,"002","0113",{"$f":"_xlfn.XLOOKUP(VALUE(V255),'Budgeted Funds'!A:A,'Budgeted Funds'!D:D)","v":true}]
[{"$f":"LEFT(B256,3)","v":"121"},1210020119,{"$f":"_xlfn.XLOOKUP(B256,'FC Master'!Q:Q,'FC Master'!B:B)","v":"121Crm0119"},"Dist Clerk Crm-Jv Delinquency Preventn",null,null,null,null,null,null,null,null,null,null,null,null,null,null,null,null,"002","0119",{"$f":"_xlfn.XLOOKUP(VALUE(V256),'Budgeted Funds'!A:A,'Budgeted Funds'!D:D)","v":true}]
[{"$f":"LEFT(B257,3)","v":"121"},1210020127,{"$f":"_xlfn.XLOOKUP(B257,'FC Master'!Q:Q,'FC Master'!B:B)","v":"121Crm0127"},"Dist Clerk Crm-Dist Clerk Records Mang",null,null,null,null,null,null,null,null,null,null,null,null,null,null,null,null,"002","0127",{"$f":"_xlfn.XLOOKUP(VALUE(V257),'Budgeted Funds'!A:A,'Budgeted Funds'!D:D)","v":true}]
[{"$f":"LEFT(B258,3)","v":"121"},1210020139,{"$f":"_xlfn.XLOOKUP(B258,'FC Master'!Q:Q,'FC Master'!B:B)","v":"121Crm0139"},"Dist Clerk Crm-Dist Ct Recrds Tech Fd",null,null,null,null,null,null,null,null,null,null,null,null,null,null,null,null,"002","0139",{"$f":"_xlfn.XLOOKUP(VALUE(V258),'Budgeted Funds'!A:A,'Budgeted Funds'!D:D)","v":true}]
[{"$f":"LEFT(B259,3)","v":"121"},1210020140,{"$f":"_xlfn.XLOOKUP(B259,'FC Master'!Q:Q,'FC Master'!B:B)","v":"121Crm0140"},"Dist Clerk Crm-Co/Dist Court Tech Fd",null,null,null,null,null,null,null,null,null,null,null,null,null,null,null,null,"002","0140",{"$f":"_xlfn.XLOOKUP(VALUE(V259),'Budgeted Funds'!A:A,'Budgeted Funds'!D:D)","v":true}]
[{"$f":"LEFT(B260,3)","v":"121"},1210020145,{"$f":"_xlfn.XLOOKUP(B260,'FC Master'!Q:Q,'FC Master'!B:B)","v":"121Crm0145"},"Dist Clerk Crm-RdBg Fd",null,null,null,null,null,null,null,null,null,null,null,null,null,null,null,null,{"$f":"MID(B260,4,3)","v":"002"},{"$f":"MID(B260,7,4)","v":"0145"},{"$f":"_xlfn.XLOOKUP(VALUE(V260),'Budgeted Funds'!A:A,'Budgeted Funds'!D:D)","v":true}]
[{"$f":"LEFT(B261,3)","v":"121"},1210020156,{"$f":"_xlfn.XLOOKUP(B261,'FC Master'!Q:Q,'FC Master'!B:B)","v":"126Crm0156"},"Dist Clerk Crm-County Jury Fd",null,null,null,null,null,null,null,null,null,null,null,null,null,null,null,null,"002","0156",{"$f":"_xlfn.XLOOKUP(VALUE(V261),'Budgeted Funds'!A:A,'Budgeted Funds'!D:D)","v":true}]
[{"$f":"LEFT(B262,3)","v":"121"},1210020157,{"$f":"_xlfn.XLOOKUP(B262,'FC Master'!Q:Q,'FC Master'!B:B)","v":"Dist Clk Crm-Spec Ct"},"Dist Clerk Crm-Spec Court Fund",null,null,null,null,null,null,null,null,null,null,null,null,null,null,null,null,"002","0157",{"$f":"_xlfn.XLOOKUP(VALUE(V262),'Budgeted Funds'!A:A,'Budgeted Funds'!D:D)","v":true}]
[{"$f":"LEFT(B263,3)","v":"121"},1210030001,{"$f":"_xlfn.XLOOKUP(B263,'FC Master'!Q:Q,'FC Master'!B:B)","v":"121DistLglMtdCv0001"},"Dist Clerk District Legally Mtd Civil-GF",null,null,null,null,null,null,null,null,null,null,null,null,null,null,null,null,"003","0001",{"$f":"_xlfn.XLOOKUP(VALUE(V263),'Budgeted Funds'!A:A,'Budgeted Funds'!D:D)","v":true}]
[{"$f":"LEFT(B264,3)","v":"121"},1210040001,{"$f":"_xlfn.XLOOKUP(B264,'FC Master'!Q:Q,'FC Master'!B:B)","v":"121CoLglMtdCv0001"},"Dist Clerk County Legally Mtd Civil-GF",null,null,null,null,null,null,null,null,null,null,null,null,null,null,null,null,"004","0001",{"$f":"_xlfn.XLOOKUP(VALUE(V264),'Budgeted Funds'!A:A,'Budgeted Funds'!D:D)","v":true}]
[{"$f":"LEFT(B265,3)","v":"121"},1210050001,{"$f":"_xlfn.XLOOKUP(B265,'FC Master'!Q:Q,'FC Master'!B:B)","v":"121DistLglMtdCrm0001"},"Dist Clerk District Legally Mtd Crm-GF",null,null,null,null,null,null,null,null,null,null,null,null,null,null,null,null,"005","0001",{"$f":"_xlfn.XLOOKUP(VALUE(V265),'Budgeted Funds'!A:A,'Budgeted Funds'!D:D)","v":true}]
[{"$f":"LEFT(B266,3)","v":"121"},1210060001,{"$f":"_xlfn.XLOOKUP(B266,'FC Master'!Q:Q,'FC Master'!B:B)","v":"121CoLglMtdCrm0001"},"Dist Clerk County Legally Mtd Crm-GF",null,null,null,null,null,null,null,null,null,null,null,null,null,null,null,null,"006","0001",{"$f":"_xlfn.XLOOKUP(VALUE(V266),'Budgeted Funds'!A:A,'Budgeted Funds'!D:D)","v":true}]
[{"$f":"LEFT(B267,3)","v":"121"},1218000001,{"$f":"_xlfn.XLOOKUP(B267,'FC Master'!Q:Q,'FC Master'!B:B)","v":"121CAR0001"},"Dist Clerk CAR-CivJs GF",null,null,null,null,null,null,null,null,null,null,null,null,null,null,null,null,"800","0001",{"$f":"_xlfn.XLOOKUP(VALUE(V267),'Budgeted Funds'!A:A,'Budgeted Funds'!D:D)","v":true}]
[{"$f":"LEFT(B268,3)","v":"121"},1218010001,{"$f":"_xlfn.XLOOKUP(B268,'FC Master'!Q:Q,'FC Master'!B:B)","v":"121CAR0001"},"Dist Clerk CAR-CrmJs GF",null,null,null,null,null,null,null,null,null,null,null,null,null,null,null,null,"801","0001",{"$f":"_xlfn.XLOOKUP(VALUE(V268),'Budgeted Funds'!A:A,'Budgeted Funds'!D:D)","v":true}]
[{"$f":"LEFT(B269,3)","v":"122"},1220010001,{"$f":"_xlfn.XLOOKUP(B269,'FC Master'!Q:Q,'FC Master'!B:B)","v":"122Dist0001"},"Civil Courts District-GF",null,null,null,null,null,null,null,null,null,null,null,null,null,null,null,null,"001","0001",{"$f":"_xlfn.XLOOKUP(VALUE(V269),'Budgeted Funds'!A:A,'Budgeted Funds'!D:D)","v":true}]
[{"$f":"LEFT(B270,3)","v":"122"},1220010113,{"$f":"_xlfn.XLOOKUP(B270,'FC Master'!Q:Q,'FC Master'!B:B)","v":"122Dist0113"},"Civil Courts District-Ct Rptr Sv Fnd",null,null,null,null,null,null,null,null,null,null,null,null,null,null,null,null,"001","0113",{"$f":"_xlfn.XLOOKUP(VALUE(V270),'Budgeted Funds'!A:A,'Budgeted Funds'!D:D)","v":true}]
[{"$f":"LEFT(B271,3)","v":"122"},1220014034,{"$f":"_xlfn.XLOOKUP(B271,'FC Master'!Q:Q,'FC Master'!B:B)","v":"122Dist4034"},"Civil Courts District-CO 2001A",null,null,null,null,null,null,null,null,null,null,null,null,null,null,null,null,"001","4034",{"$f":"_xlfn.XLOOKUP(VALUE(V271),'Budgeted Funds'!A:A,'Budgeted Funds'!D:D)","v":{"$error":"#N/A"}}]
[{"$f":"LEFT(B272,3)","v":"122"},1220020001,{"$f":"_xlfn.XLOOKUP(B272,'FC Master'!Q:Q,'FC Master'!B:B)","v":"122Co0001"},"Civil Courts County-GF",null,null,null,null,null,null,null,null,null,null,null,null,null,null,null,null,"002","0001",{"$f":"_xlfn.XLOOKUP(VALUE(V272),'Budgeted Funds'!A:A,'Budgeted Funds'!D:D)","v":true}]
[{"$f":"LEFT(B273,3)","v":"122"},1220020113,{"$f":"_xlfn.XLOOKUP(B273,'FC Master'!Q:Q,'FC Master'!B:B)","v":"122Co0113"},"Civil Courts County-Ct Rptr Sv Fnd",null,null,null,null,null,null,null,null,null,null,null,null,null,null,null,null,"002","0113",{"$f":"_xlfn.XLOOKUP(VALUE(V273),'Budgeted Funds'!A:A,'Budgeted Funds'!D:D)","v":true}]
[{"$f":"LEFT(B274,3)","v":"122"},1228000001,{"$f":"_xlfn.XLOOKUP(B274,'FC Master'!Q:Q,'FC Master'!B:B)","v":"122CAR0001"},"Civil Courts CAR-CivJs GF",null,null,null,null,null,null,null,null,null,null,null,null,null,null,null,null,"800","0001",{"$f":"_xlfn.XLOOKUP(VALUE(V274),'Budgeted Funds'!A:A,'Budgeted Funds'!D:D)","v":true}]
[{"$f":"LEFT(B275,3)","v":"123"},1230010001,{"$f":"_xlfn.XLOOKUP(B275,'FC Master'!Q:Q,'FC Master'!B:B)","v":"123Crm0001"},"DA Criminal Justice-GF",null,null,null,null,null,null,null,null,null,null,null,null,null,null,null,null,"001","0001",{"$f":"_xlfn.XLOOKUP(VALUE(V275),'Budgeted Funds'!A:A,'Budgeted Funds'!D:D)","v":true}]
[{"$f":"LEFT(B276,3)","v":"123"},1230010130,{"$f":"_xlfn.XLOOKUP(B276,'FC Master'!Q:Q,'FC Master'!B:B)","v":"123Crm0130"},"DA Criminal Justice-Fam Protctn Fd",null,null,null,null,null,null,null,null,null,null,null,null,null,null,null,null,"001","0130",{"$f":"_xlfn.XLOOKUP(VALUE(V276),'Budgeted Funds'!A:A,'Budgeted Funds'!D:D)","v":true}]
[{"$f":"LEFT(B277,3)","v":"123"},1230020001,{"$f":"_xlfn.XLOOKUP(B277,'FC Master'!Q:Q,'FC Master'!B:B)","v":"123Civ0001"},"DA Civil Justice-Title IV-E Billable-GF",null,null,null,null,null,null,null,null,null,null,null,null,null,null,null,null,"002","0001",{"$f":"_xlfn.XLOOKUP(VALUE(V277),'Budgeted Funds'!A:A,'Budgeted Funds'!D:D)","v":true}]
[{"$f":"LEFT(B278,3)","v":"123"},1230030001,{"$f":"_xlfn.XLOOKUP(B278,'FC Master'!Q:Q,'FC Master'!B:B)","v":"123JV0001"},"DA Juvenile Justice-GF",null,null,null,null,null,null,null,null,null,null,null,null,null,null,null,null,"003","0001",{"$f":"_xlfn.XLOOKUP(VALUE(V278),'Budgeted Funds'!A:A,'Budgeted Funds'!D:D)","v":true}]
[{"$f":"LEFT(B279,3)","v":"123"},1230040001,{"$f":"_xlfn.XLOOKUP(B279,'FC Master'!Q:Q,'FC Master'!B:B)","v":"123WkrsCompFrd0001"},"DA Workers Comp Fraud-GF",null,null,null,null,null,null,null,null,null,null,null,null,null,null,null,null,"004","0001",{"$f":"_xlfn.XLOOKUP(VALUE(V279),'Budgeted Funds'!A:A,'Budgeted Funds'!D:D)","v":true}]
[{"$f":"LEFT(B280,3)","v":"123"},1230050001,{"$f":"_xlfn.XLOOKUP(B280,'FC Master'!Q:Q,'FC Master'!B:B)","v":"123NuisAbtmnt0001"},"DA Org Crime/Nuisance Abmt-GF",null,null,null,null,null,null,null,null,null,null,null,null,null,null,null,null,"005","0001",{"$f":"_xlfn.XLOOKUP(VALUE(V280),'Budgeted Funds'!A:A,'Budgeted Funds'!D:D)","v":true}]
[{"$f":"LEFT(B281,3)","v":"123"},1230060001,{"$f":"_xlfn.XLOOKUP(B281,'FC Master'!Q:Q,'FC Master'!B:B)","v":"123DAPIUIG0001"},"DA Public Integrity Unit-GF",null,null,null,null,null,null,null,null,null,null,null,null,null,null,null,null,"006","0001",{"$f":"_xlfn.XLOOKUP(VALUE(V281),'Budgeted Funds'!A:A,'Budgeted Funds'!D:D)","v":true}]
[{"$f":"LEFT(B282,3)","v":"123"},1230070001,{"$f":"_xlfn.XLOOKUP(B282,'FC Master'!Q:Q,'FC Master'!B:B)","v":"123CivNB0001"},"DA Civil Js-Non-Billable-GF",null,null,null,null,null,null,null,null,null,null,null,null,null,null,null,null,"007","0001",{"$f":"_xlfn.XLOOKUP(VALUE(V282),'Budgeted Funds'!A:A,'Budgeted Funds'!D:D)","v":true}]
[{"$f":"LEFT(B283,3)","v":"123"},1238000001,{"$f":"_xlfn.XLOOKUP(B283,'FC Master'!Q:Q,'FC Master'!B:B)","v":"123CAR0001"},"DA CAR-CrmJs GF",null,null,null,null,null,null,null,null,null,null,null,null,null,null,null,null,"800","0001",{"$f":"_xlfn.XLOOKUP(VALUE(V283),'Budgeted Funds'!A:A,'Budgeted Funds'!D:D)","v":true}]
[{"$f":"LEFT(B284,3)","v":"124"},1240010001,{"$f":"_xlfn.XLOOKUP(B284,'FC Master'!Q:Q,'FC Master'!B:B)","v":"124Dist0001"},"Criminal Courts District-GF",null,null,null,null,null,null,null,null,null,null,null,null,null,null,null,null,"001","0001",{"$f":"_xlfn.XLOOKUP(VALUE(V284),'Budgeted Funds'!A:A,'Budgeted Funds'!D:D)","v":true}]
[{"$f":"LEFT(B285,3)","v":"124"},1240110001,{"$f":"_xlfn.XLOOKUP(B285,'FC Master'!Q:Q,'FC Master'!B:B)","v":"124Co0001"},"Criminal Courts County Division-GF",null,null,null,null,null,null,null,null,null,null,null,null,null,null,null,null,"011","0001",{"$f":"_xlfn.XLOOKUP(VALUE(V285),'Budgeted Funds'!A:A,'Budgeted Funds'!D:D)","v":true}]
[{"$f":"LEFT(B286,3)","v":"124"},1240190001,{"$f":"_xlfn.XLOOKUP(B286,'FC Master'!Q:Q,'FC Master'!B:B)","v":"124DrgCtPg0001"},"Crm Cts Drg Ct Pg-GF",null,null,null,null,null,null,null,null,null,null,null,null,null,null,null,null,"019","0001",{"$f":"_xlfn.XLOOKUP(VALUE(V286),'Budgeted Funds'!A:A,'Budgeted Funds'!D:D)","v":true}]
[{"$f":"LEFT(B287,3)","v":"124"},1240190131,{"$f":"_xlfn.XLOOKUP(B287,'FC Master'!Q:Q,'FC Master'!B:B)","v":"124DrgCtPg0131"},"Crm Cts Drg Ct Pg-Drug Ct Pg",null,null,null,null,null,null,null,null,null,null,null,null,null,null,null,null,"019","0131",{"$f":"_xlfn.XLOOKUP(VALUE(V287),'Budgeted Funds'!A:A,'Budgeted Funds'!D:D)","v":true}]
[{"$f":"LEFT(B288,3)","v":"124"},1240240131,{"$f":"_xlfn.XLOOKUP(B288,'FC Master'!Q:Q,'FC Master'!B:B)","v":"124DrgCtJudTvl0131"},"Crm Cts Drg Ct Jud Trvl-Drug Ct Pg",null,null,null,null,null,null,null,null,null,null,null,null,null,null,null,null,"024","0131",{"$f":"_xlfn.XLOOKUP(VALUE(V288),'Budgeted Funds'!A:A,'Budgeted Funds'!D:D)","v":true}]
[{"$f":"LEFT(B289,3)","v":"124"},1240250001,{"$f":"_xlfn.XLOOKUP(B289,'FC Master'!Q:Q,'FC Master'!B:B)","v":"124VetCt0001"},"Criminal Courts Veterans Ct-GF",null,null,null,null,null,null,null,null,null,null,null,null,null,null,null,null,"025","0001",{"$f":"_xlfn.XLOOKUP(VALUE(V289),'Budgeted Funds'!A:A,'Budgeted Funds'!D:D)","v":true}]
[{"$f":"LEFT(B290,3)","v":"124"},1240250131,{"$f":"_xlfn.XLOOKUP(B290,'FC Master'!Q:Q,'FC Master'!B:B)","v":"124VetCt0131"},"Criminal Courts Veterans Ct-Drug Ct Pg",null,null,null,null,null,null,null,null,null,null,null,null,null,null,null,null,"025","0131",{"$f":"_xlfn.XLOOKUP(VALUE(V290),'Budgeted Funds'!A:A,'Budgeted Funds'!D:D)","v":true}]
[{"$f":"LEFT(B291,3)","v":"124"},1240280001,{"$f":"_xlfn.XLOOKUP(B291,'FC Master'!Q:Q,'FC Master'!B:B)","v":"124CCDCtLMF1470001"},"Criminal Courts District LMF-147thDCt-GF",null,null,null,null,null,null,null,null,null,null,null,null,null,null,null,null,"028","0001",{"$f":"_xlfn.XLOOKUP(VALUE(V291),'Budgeted Funds'!A:A,'Budgeted Funds'!D:D)","v":true}]
[{"$f":"LEFT(B292,3)","v":"124"},1240290001,{"$f":"_xlfn.XLOOKUP(B292,'FC Master'!Q:Q,'FC Master'!B:B)","v":"124CCDCtLMF1670001"},"Criminal Courts District LMF-167thDCt-GF",null,null,null,null,null,null,null,null,null,null,null,null,null,null,null,null,"029","0001",{"$f":"_xlfn.XLOOKUP(VALUE(V292),'Budgeted Funds'!A:A,'Budgeted Funds'!D:D)","v":true}]
[{"$f":"LEFT(B293,3)","v":"124"},1240300001,{"$f":"_xlfn.XLOOKUP(B293,'FC Master'!Q:Q,'FC Master'!B:B)","v":"124CCDCtLMF2990001"},"Criminal Courts District LMF-299thDCt-GF",null,null,null,null,null,null,null,null,null,null,null,null,null,null,null,null,"030","0001",{"$f":"_xlfn.XLOOKUP(VALUE(V293),'Budgeted Funds'!A:A,'Budgeted Funds'!D:D)","v":true}]
[{"$f":"LEFT(B294,3)","v":"124"},1240310001,{"$f":"_xlfn.XLOOKUP(B294,'FC Master'!Q:Q,'FC Master'!B:B)","v":"124CCDCtLMF3310001"},"Criminal Courts District LMF-331stDCt-GF",null,null,null,null,null,null,null,null,null,null,null,null,null,null,null,null,"031","0001",{"$f":"_xlfn.XLOOKUP(VALUE(V294),'Budgeted Funds'!A:A,'Budgeted Funds'!D:D)","v":true}]
[{"$f":"LEFT(B295,3)","v":"124"},1240320001,{"$f":"_xlfn.XLOOKUP(B295,'FC Master'!Q:Q,'FC Master'!B:B)","v":"124CCDCtLMF3900001"},"Criminal Courts District LMF-390thDCt-GF",null,null,null,null,null,null,null,null,null,null,null,null,null,null,null,null,"032","0001",{"$f":"_xlfn.XLOOKUP(VALUE(V295),'Budgeted Funds'!A:A,'Budgeted Funds'!D:D)","v":true}]
[{"$f":"LEFT(B296,3)","v":"124"},1240330001,{"$f":"_xlfn.XLOOKUP(B296,'FC Master'!Q:Q,'FC Master'!B:B)","v":"124CCDCtLMF4030001"},"Criminal Courts District LMF-403rdDCt-GF",null,null,null,null,null,null,null,null,null,null,null,null,null,null,null,null,"033","0001",{"$f":"_xlfn.XLOOKUP(VALUE(V296),'Budgeted Funds'!A:A,'Budgeted Funds'!D:D)","v":true}]
[{"$f":"LEFT(B297,3)","v":"124"},1240340001,{"$f":"_xlfn.XLOOKUP(B297,'FC Master'!Q:Q,'FC Master'!B:B)","v":"124CCDCtLMF4270001"},"Criminal Courts District LMF-427thDCt-GF",null,null,null,null,null,null,null,null,null,null,null,null,null,null,null,null,"034","0001",{"$f":"_xlfn.XLOOKUP(VALUE(V297),'Budgeted Funds'!A:A,'Budgeted Funds'!D:D)","v":true}]
[{"$f":"LEFT(B298,3)","v":"124"},1240350001,{"$f":"_xlfn.XLOOKUP(B298,'FC Master'!Q:Q,'FC Master'!B:B)","v":"124CCLMFMagCt0001"},"Criminal Courts LMF-Magistrate Ct-GF",null,null,null,null,null,null,null,null,null,null,null,null,null,null,null,null,"035","0001",{"$f":"_xlfn.XLOOKUP(VALUE(V298),'Budgeted Funds'!A:A,'Budgeted Funds'!D:D)","v":true}]
[{"$f":"LEFT(B299,3)","v":"124"},1240360001,{"$f":"_xlfn.XLOOKUP(B299,'FC Master'!Q:Q,'FC Master'!B:B)","v":"124CCLMFDrugCt0001"},"Criminal Courts LMF-Drug Ct-GF",null,null,null,null,null,null,null,null,null,null,null,null,null,null,null,null,"036","0001",{"$f":"_xlfn.XLOOKUP(VALUE(V299),'Budgeted Funds'!A:A,'Budgeted Funds'!D:D)","v":true}]
[{"$f":"LEFT(B300,3)","v":"124"},1240370001,{"$f":"_xlfn.XLOOKUP(B300,'FC Master'!Q:Q,'FC Master'!B:B)","v":"124CCCoLMF0001"},"Criminal Courts County LMF-GF",null,null,null,null,null,null,null,null,null,null,null,null,null,null,null,null,"037","0001",{"$f":"_xlfn.XLOOKUP(VALUE(V300),'Budgeted Funds'!A:A,'Budgeted Funds'!D:D)","v":true}]
[{"$f":"LEFT(B301,3)","v":"124"},1248000001,{"$f":"_xlfn.XLOOKUP(B301,'FC Master'!Q:Q,'FC Master'!B:B)","v":"124CAR0001"},"Criminal Courts CAR-CrmJs GF",null,null,null,null,null,null,null,null,null,null,null,null,null,null,null,null,"800","0001",{"$f":"_xlfn.XLOOKUP(VALUE(V301),'Budgeted Funds'!A:A,'Budgeted Funds'!D:D)","v":true}]
[{"$f":"LEFT(B302,3)","v":"125"},1250010001,{"$f":"_xlfn.XLOOKUP(B302,'FC Master'!Q:Q,'FC Master'!B:B)","v":"125ProbCt0001"},"Probate Court-GF",null,null,null,null,null,null,null,null,null,null,null,null,null,null,null,null,"001","0001",{"$f":"_xlfn.XLOOKUP(VALUE(V302),'Budgeted Funds'!A:A,'Budgeted Funds'!D:D)","v":true}]
[{"$f":"LEFT(B303,3)","v":"125"},1250010113,{"$f":"_xlfn.XLOOKUP(B303,'FC Master'!Q:Q,'FC Master'!B:B)","v":"125ProbCt0113"},"Probate Court-Court Reporter Sv Fd",null,null,null,null,null,null,null,null,null,null,null,null,null,null,null,null,"001","0113",{"$f":"_xlfn.XLOOKUP(VALUE(V303),'Budgeted Funds'!A:A,'Budgeted Funds'!D:D)","v":true}]
[{"$f":"LEFT(B304,3)","v":"125"},1250010124,{"$f":"_xlfn.XLOOKUP(B304,'FC Master'!Q:Q,'FC Master'!B:B)","v":"125ProbCt0124"},"Probate Court-Judiciary Fee Fd",null,null,null,null,null,null,null,null,null,null,null,null,null,null,null,null,"001","0124",{"$f":"_xlfn.XLOOKUP(VALUE(V304),'Budgeted Funds'!A:A,'Budgeted Funds'!D:D)","v":true}]
[{"$f":"LEFT(B305,3)","v":"125"},1250010132,{"$f":"_xlfn.XLOOKUP(B305,'FC Master'!Q:Q,'FC Master'!B:B)","v":"125ProbCt0132"},"Probate Court-Grdnshp Probate Grdnshp Fd",null,null,null,null,null,null,null,null,null,null,null,null,null,null,null,null,"001","0132",{"$f":"_xlfn.XLOOKUP(VALUE(V305),'Budgeted Funds'!A:A,'Budgeted Funds'!D:D)","v":true}]
[{"$f":"LEFT(B306,3)","v":"125"},1250010159,{"$f":"_xlfn.XLOOKUP(B306,'FC Master'!Q:Q,'FC Master'!B:B)","v":"125ProbCt0159"},"Probate Court-Jud Educ&Suppt Fd",null,null,null,null,null,null,null,null,null,null,null,null,null,null,null,null,"001","0159",{"$f":"_xlfn.XLOOKUP(VALUE(V306),'Budgeted Funds'!A:A,'Budgeted Funds'!D:D)","v":true}]
[{"$f":"LEFT(B307,3)","v":"125"},1250020001,{"$f":"_xlfn.XLOOKUP(B307,'FC Master'!Q:Q,'FC Master'!B:B)","v":"125MntlHlth0001"},"Probate Court-Mental Hth-GF",null,null,null,null,null,null,null,null,null,null,null,null,null,null,null,null,"002","0001",{"$f":"_xlfn.XLOOKUP(VALUE(V307),'Budgeted Funds'!A:A,'Budgeted Funds'!D:D)","v":true}]
[{"$f":"LEFT(B308,3)","v":"125"},1250020124,{"$f":"_xlfn.XLOOKUP(B308,'FC Master'!Q:Q,'FC Master'!B:B)","v":"125MntlHlth0124"},"Probate Court-Mental Hth Judcy Fee Fd",null,null,null,null,null,null,null,null,null,null,null,null,null,null,null,null,"002","0124",{"$f":"_xlfn.XLOOKUP(VALUE(V308),'Budgeted Funds'!A:A,'Budgeted Funds'!D:D)","v":true}]
[{"$f":"LEFT(B309,3)","v":"125"},1250030001,{"$f":"_xlfn.XLOOKUP(B309,'FC Master'!Q:Q,'FC Master'!B:B)","v":"125Guardshp0001"},"Probate Court-Guardianship-GF",null,null,null,null,null,null,null,null,null,null,null,null,null,null,null,null,"003","0001",{"$f":"_xlfn.XLOOKUP(VALUE(V309),'Budgeted Funds'!A:A,'Budgeted Funds'!D:D)","v":true}]
[{"$f":"LEFT(B310,3)","v":"125"},1250030124,{"$f":"_xlfn.XLOOKUP(B310,'FC Master'!Q:Q,'FC Master'!B:B)","v":"125Guardshp0124"},"Probate Court-Guardianship Judcy Fee Fd",null,null,null,null,null,null,null,null,null,null,null,null,null,null,null,null,"003","0124",{"$f":"_xlfn.XLOOKUP(VALUE(V310),'Budgeted Funds'!A:A,'Budgeted Funds'!D:D)","v":true}]
[{"$f":"LEFT(B311,3)","v":"125"},1250040001,{"$f":"_xlfn.XLOOKUP(B311,'FC Master'!Q:Q,'FC Master'!B:B)","v":"125PROBCT20001"},"Probate Court 2 - GF",null,null,null,null,null,null,null,null,null,null,null,null,null,null,null,null,"004","0001",{"$f":"_xlfn.XLOOKUP(VALUE(V311),'Budgeted Funds'!A:A,'Budgeted Funds'!D:D)","v":true}]
[{"$f":"LEFT(B312,3)","v":"125"},1250040113,{"$f":"_xlfn.XLOOKUP(B312,'FC Master'!Q:Q,'FC Master'!B:B)","v":"125PROBCT20113"},"Probate Court 2 – Ct Reporter Sv Fd",null,null,null,null,null,null,null,null,null,null,null,null,null,null,null,null,"004","0113",{"$f":"_xlfn.XLOOKUP(VALUE(V312),'Budgeted Funds'!A:A,'Budgeted Funds'!D:D)","v":true}]
[{"$f":"LEFT(B313,3)","v":"125"},1250040124,{"$f":"_xlfn.XLOOKUP(B313,'FC Master'!Q:Q,'FC Master'!B:B)","v":"125PROBCT20124"},"Probate Court 2 – Judiciary Fee Fd",null,null,null,null,null,null,null,null,null,null,null,null,null,null,null,null,"004","0124",{"$f":"_xlfn.XLOOKUP(VALUE(V313),'Budgeted Funds'!A:A,'Budgeted Funds'!D:D)","v":true}]
[{"$f":"LEFT(B314,3)","v":"125"},1250040132,{"$f":"_xlfn.XLOOKUP(B314,'FC Master'!Q:Q,'FC Master'!B:B)","v":"125PROBCT20132"},"Probate Court 2 – Grdnshp Prb Grdnshp Fd",null,null,null,null,null,null,null,null,null,null,null,null,null,null,null,null,"004","0132",{"$f":"_xlfn.XLOOKUP(VALUE(V314),'Budgeted Funds'!A:A,'Budgeted Funds'!D:D)","v":true}]
[{"$f":"LEFT(B315,3)","v":"125"},1250040159,{"$f":"_xlfn.XLOOKUP(B315,'FC Master'!Q:Q,'FC Master'!B:B)","v":"125PROBCT20159"},"Probate Court 2 – Jud Educ&Suppt Fd",null,null,null,null,null,null,null,null,null,null,null,null,null,null,null,null,"004","0159",{"$f":"_xlfn.XLOOKUP(VALUE(V315),'Budgeted Funds'!A:A,'Budgeted Funds'!D:D)","v":true}]
[{"$f":"LEFT(B316,3)","v":"126"},1260010001,{"$f":"_xlfn.XLOOKUP(B316,'FC Master'!Q:Q,'FC Master'!B:B)","v":"126Civ0001"},"JP1 Civil-GF",null,null,null,null,null,null,null,null,null,null,null,null,null,null,null,null,"001","0001",{"$f":"_xlfn.XLOOKUP(VALUE(V316),'Budgeted Funds'!A:A,'Budgeted Funds'!D:D)","v":true}]
[{"$f":"LEFT(B317,3)","v":"126"},1260010125,{"$f":"_xlfn.XLOOKUP(B317,'FC Master'!Q:Q,'FC Master'!B:B)","v":"126Civ0125"},"JP1 Civil-Jst Ct Technology",null,null,null,null,null,null,null,null,null,null,null,null,null,null,null,null,"001","0125",{"$f":"_xlfn.XLOOKUP(VALUE(V317),'Budgeted Funds'!A:A,'Budgeted Funds'!D:D)","v":true}]
[{"$f":"LEFT(B318,3)","v":"126"},1260010133,{"$f":"_xlfn.XLOOKUP(B318,'FC Master'!Q:Q,'FC Master'!B:B)","v":"126Civ0133"},"JP1 Civil-Vital Statistic Presrvtn",null,null,null,null,null,null,null,null,null,null,null,null,null,null,null,null,"001","0133",{"$f":"_xlfn.XLOOKUP(VALUE(V318),'Budgeted Funds'!A:A,'Budgeted Funds'!D:D)","v":true}]
[{"$f":"LEFT(B319,3)","v":"126"},1260010158,{"$f":"_xlfn.XLOOKUP(B319,'FC Master'!Q:Q,'FC Master'!B:B)","v":"126Civ0158"},"JP1 Civil-Language Access Fd",null,null,null,null,null,null,null,null,null,null,null,null,null,null,null,null,"001","0158",{"$f":"_xlfn.XLOOKUP(VALUE(V319),'Budgeted Funds'!A:A,'Budgeted Funds'!D:D)","v":true}]
[{"$f":"LEFT(B320,3)","v":"126"},1260010161,{"$f":"_xlfn.XLOOKUP(B320,'FC Master'!Q:Q,'FC Master'!B:B)","v":"126Civ0161"},"JP1 Civil-Justice Ct Suppt Fd",null,null,null,null,null,null,null,null,null,null,null,null,null,null,null,null,"001","0161",{"$f":"_xlfn.XLOOKUP(VALUE(V320),'Budgeted Funds'!A:A,'Budgeted Funds'!D:D)","v":true}]
[{"$f":"LEFT(B321,3)","v":"126"},1260020001,{"$f":"_xlfn.XLOOKUP(B321,'FC Master'!Q:Q,'FC Master'!B:B)","v":"126Crm0001"},"JP1 Criminal-GF",null,null,null,null,null,null,null,null,null,null,null,null,null,null,null,null,"002","0001",{"$f":"_xlfn.XLOOKUP(VALUE(V321),'Budgeted Funds'!A:A,'Budgeted Funds'!D:D)","v":true}]
[{"$f":"LEFT(B322,3)","v":"126"},1260020111,{"$f":"_xlfn.XLOOKUP(B322,'FC Master'!Q:Q,'FC Master'!B:B)","v":"126Crm0111"},"JP1 Criminal-Courthouse Security Fd",null,null,null,null,null,null,null,null,null,null,null,null,null,null,null,null,"002","0111",{"$f":"_xlfn.XLOOKUP(VALUE(V322),'Budgeted Funds'!A:A,'Budgeted Funds'!D:D)","v":true}]
[{"$f":"LEFT(B323,3)","v":"126"},1260020125,{"$f":"_xlfn.XLOOKUP(B323,'FC Master'!Q:Q,'FC Master'!B:B)","v":"126Crm0125"},"JP1 Criminal-Js Ct Technology",null,null,null,null,null,null,null,null,null,null,null,null,null,null,null,null,"002","0125",{"$f":"_xlfn.XLOOKUP(VALUE(V323),'Budgeted Funds'!A:A,'Budgeted Funds'!D:D)","v":true}]
[{"$f":"LEFT(B324,3)","v":"126"},1260020136,{"$f":"_xlfn.XLOOKUP(B324,'FC Master'!Q:Q,'FC Master'!B:B)","v":"126Crm0136"},"JP1 Criminal-Justice Ct Bldg Security",null,null,null,null,null,null,null,null,null,null,null,null,null,null,null,null,{"$f":"MID(B324,4,3)","v":"002"},{"$f":"MID(B324,7,4)","v":"0136"},{"$f":"_xlfn.XLOOKUP(VALUE(V324),'Budgeted Funds'!A:A,'Budgeted Funds'!D:D)","v":true}]
[{"$f":"LEFT(B325,3)","v":"126"},1260020137,{"$f":"_xlfn.XLOOKUP(B325,'FC Master'!Q:Q,'FC Master'!B:B)","v":"126Crm0137"},"JP1 Criminal-Juvenile Case Mgr Fd",null,null,null,null,null,null,null,null,null,null,null,null,null,null,null,null,"002","0137",{"$f":"_xlfn.XLOOKUP(VALUE(V325),'Budgeted Funds'!A:A,'Budgeted Funds'!D:D)","v":true}]
[{"$f":"LEFT(B326,3)","v":"126"},1260020145,{"$f":"_xlfn.XLOOKUP(B326,'FC Master'!Q:Q,'FC Master'!B:B)","v":"126Crm0145"},"JP1 Criminal-RdBg Fd",null,null,null,null,null,null,null,null,null,null,null,null,null,null,null,null,"002","0145",{"$f":"_xlfn.XLOOKUP(VALUE(V326),'Budgeted Funds'!A:A,'Budgeted Funds'!D:D)","v":true}]
[{"$f":"LEFT(B327,3)","v":"126"},1260020152,{"$f":"_xlfn.XLOOKUP(B327,'FC Master'!Q:Q,'FC Master'!B:B)","v":"126Crm0152"},"JP1 Criminal-Juv Case Mgr Pgm Fd",null,null,null,null,null,null,null,null,null,null,null,null,null,null,null,null,"002","0152",{"$f":"_xlfn.XLOOKUP(VALUE(V327),'Budgeted Funds'!A:A,'Budgeted Funds'!D:D)","v":true}]
[{"$f":"LEFT(B328,3)","v":"126"},1260020156,{"$f":"_xlfn.XLOOKUP(B328,'FC Master'!Q:Q,'FC Master'!B:B)","v":"126Crm0156"},"JP1 Criminal-County Jury Fd",null,null,null,null,null,null,null,null,null,null,null,null,null,null,null,null,"002","0156",{"$f":"_xlfn.XLOOKUP(VALUE(V328),'Budgeted Funds'!A:A,'Budgeted Funds'!D:D)","v":true}]
[{"$f":"LEFT(B329,3)","v":"126"},1260020161,{"$f":"_xlfn.XLOOKUP(B329,'FC Master'!Q:Q,'FC Master'!B:B)","v":"126Crm0161"},"JP1 Criminal-Justice Court Support Fd",null,null,null,null,null,null,null,null,null,null,null,null,null,null,null,null,"002","0161",{"$f":"_xlfn.XLOOKUP(VALUE(V329),'Budgeted Funds'!A:A,'Budgeted Funds'!D:D)","v":true}]
[{"$f":"LEFT(B330,3)","v":"126"},1260050153,{"$f":"_xlfn.XLOOKUP(B330,'FC Master'!Q:Q,'FC Master'!B:B)","v":"126JuvSvs0153"},"JP1 Juvenile Svs-Truancy Civil Court Fd",null,null,null,null,null,null,null,null,null,null,null,null,null,null,null,null,"005","0153",{"$f":"_xlfn.XLOOKUP(VALUE(V330),'Budgeted Funds'!A:A,'Budgeted Funds'!D:D)","v":true}]
[{"$f":"LEFT(B331,3)","v":"127"},1270010001,{"$f":"_xlfn.XLOOKUP(B331,'FC Master'!Q:Q,'FC Master'!B:B)","v":"127Civ0001"},"JP2 Civil-GF",null,null,null,null,null,null,null,null,null,null,null,null,null,null,null,null,"001","0001",{"$f":"_xlfn.XLOOKUP(VALUE(V331),'Budgeted Funds'!A:A,'Budgeted Funds'!D:D)","v":true}]
[{"$f":"LEFT(B332,3)","v":"127"},1270010125,{"$f":"_xlfn.XLOOKUP(B332,'FC Master'!Q:Q,'FC Master'!B:B)","v":"127Civ0125"},"JP2 Civil-Js Ct Technology",null,null,null,null,null,null,null,null,null,null,null,null,null,null,null,null,"001","0125",{"$f":"_xlfn.XLOOKUP(VALUE(V332),'Budgeted Funds'!A:A,'Budgeted Funds'!D:D)","v":true}]
[{"$f":"LEFT(B333,3)","v":"127"},1270010133,{"$f":"_xlfn.XLOOKUP(B333,'FC Master'!Q:Q,'FC Master'!B:B)","v":"127Civ0133"},"JP2 Civil-Vital Statistic Presrvtn",null,null,null,null,null,null,null,null,null,null,null,null,null,null,null,null,"001","0133",{"$f":"_xlfn.XLOOKUP(VALUE(V333),'Budgeted Funds'!A:A,'Budgeted Funds'!D:D)","v":true}]
[{"$f":"LEFT(B334,3)","v":"127"},1270010136,{"$f":"_xlfn.XLOOKUP(B334,'FC Master'!Q:Q,'FC Master'!B:B)","v":"127Civ0136"},"JP2 Civil-Justice Ct Bldg Security",null,null,null,null,null,null,null,null,null,null,null,null,null,null,null,null,"001","0136",{"$f":"_xlfn.XLOOKUP(VALUE(V334),'Budgeted Funds'!A:A,'Budgeted Funds'!D:D)","v":true}]
[{"$f":"LEFT(B335,3)","v":"127"},1270010158,{"$f":"_xlfn.XLOOKUP(B335,'FC Master'!Q:Q,'FC Master'!B:B)","v":"127Civ0158"},"JP2 Civil-Language Access Fd",null,null,null,null,null,null,null,null,null,null,null,null,null,null,null,null,"001","0158",{"$f":"_xlfn.XLOOKUP(VALUE(V335),'Budgeted Funds'!A:A,'Budgeted Funds'!D:D)","v":true}]
[{"$f":"LEFT(B336,3)","v":"127"},1270010161,{"$f":"_xlfn.XLOOKUP(B336,'FC Master'!Q:Q,'FC Master'!B:B)","v":"127Civ0161"},"JP2 Civil-Justice Ct Suppt Fd",null,null,null,null,null,null,null,null,null,null,null,null,null,null,null,null,"001","0161",{"$f":"_xlfn.XLOOKUP(VALUE(V336),'Budgeted Funds'!A:A,'Budgeted Funds'!D:D)","v":true}]
[{"$f":"LEFT(B337,3)","v":"127"},1270020001,{"$f":"_xlfn.XLOOKUP(B337,'FC Master'!Q:Q,'FC Master'!B:B)","v":"127Crm0001"},"JP2 Criminal-GF",null,null,null,null,null,null,null,null,null,null,null,null,null,null,null,null,"002","0001",{"$f":"_xlfn.XLOOKUP(VALUE(V337),'Budgeted Funds'!A:A,'Budgeted Funds'!D:D)","v":true}]
[{"$f":"LEFT(B338,3)","v":"127"},1270020111,{"$f":"_xlfn.XLOOKUP(B338,'FC Master'!Q:Q,'FC Master'!B:B)","v":"127Crm0111"},"JP2 Criminal-Courthouse Security Fd",null,null,null,null,null,null,null,null,null,null,null,null,null,null,null,null,"002","0111",{"$f":"_xlfn.XLOOKUP(VALUE(V338),'Budgeted Funds'!A:A,'Budgeted Funds'!D:D)","v":true}]
[{"$f":"LEFT(B339,3)","v":"127"},1270020125,{"$f":"_xlfn.XLOOKUP(B339,'FC Master'!Q:Q,'FC Master'!B:B)","v":"127Crm0125"},"JP2 Criminal-Js Ct Technology",null,null,null,null,null,null,null,null,null,null,null,null,null,null,null,null,"002","0125",{"$f":"_xlfn.XLOOKUP(VALUE(V339),'Budgeted Funds'!A:A,'Budgeted Funds'!D:D)","v":true}]
[{"$f":"LEFT(B340,3)","v":"127"},1270020136,{"$f":"_xlfn.XLOOKUP(B340,'FC Master'!Q:Q,'FC Master'!B:B)","v":"127Crm0136"},"JP2 Criminal-Justice Ct Bldg Security",null,null,null,null,null,null,null,null,null,null,null,null,null,null,null,null,"002","0136",{"$f":"_xlfn.XLOOKUP(VALUE(V340),'Budgeted Funds'!A:A,'Budgeted Funds'!D:D)","v":true}]
[{"$f":"LEFT(B341,3)","v":"127"},1270020137,{"$f":"_xlfn.XLOOKUP(B341,'FC Master'!Q:Q,'FC Master'!B:B)","v":"127Crm0137"},"JP2 Criminal-Juvenile Case Mgr Fd",null,null,null,null,null,null,null,null,null,null,null,null,null,null,null,null,"002","0137",{"$f":"_xlfn.XLOOKUP(VALUE(V341),'Budgeted Funds'!A:A,'Budgeted Funds'!D:D)","v":true}]
[{"$f":"LEFT(B342,3)","v":"127"},1270020145,{"$f":"_xlfn.XLOOKUP(B342,'FC Master'!Q:Q,'FC Master'!B:B)","v":"127Crm0145"},"JP2 Criminal-RdBg Fd",null,null,null,null,null,null,null,null,null,null,null,null,null,null,null,null,"002","0145",{"$f":"_xlfn.XLOOKUP(VALUE(V342),'Budgeted Funds'!A:A,'Budgeted Funds'!D:D)","v":true}]
[{"$f":"LEFT(B343,3)","v":"127"},1270020152,{"$f":"_xlfn.XLOOKUP(B343,'FC Master'!Q:Q,'FC Master'!B:B)","v":"127Crm0152"},"JP2 Criminal-Juv Case Mgr Pgm Fd",null,null,null,null,null,null,null,null,null,null,null,null,null,null,null,null,"002","0152",{"$f":"_xlfn.XLOOKUP(VALUE(V343),'Budgeted Funds'!A:A,'Budgeted Funds'!D:D)","v":true}]
[{"$f":"LEFT(B344,3)","v":"127"},1270020156,{"$f":"_xlfn.XLOOKUP(B344,'FC Master'!Q:Q,'FC Master'!B:B)","v":"127Crm0156"},"JP2 Criminal-County Jury Fd",null,null,null,null,null,null,null,null,null,null,null,null,null,null,null,null,"002","0156",{"$f":"_xlfn.XLOOKUP(VALUE(V344),'Budgeted Funds'!A:A,'Budgeted Funds'!D:D)","v":true}]
[{"$f":"LEFT(B345,3)","v":"127"},1270030001,{"$f":"_xlfn.XLOOKUP(B345,'FC Master'!Q:Q,'FC Master'!B:B)","v":"127CivAcctg0001"},"JP2 Accounting Civil-GF",null,null,null,null,null,null,null,null,null,null,null,null,null,null,null,null,"003","0001",{"$f":"_xlfn.XLOOKUP(VALUE(V345),'Budgeted Funds'!A:A,'Budgeted Funds'!D:D)","v":true}]
[{"$f":"LEFT(B346,3)","v":"127"},1270040001,{"$f":"_xlfn.XLOOKUP(B346,'FC Master'!Q:Q,'FC Master'!B:B)","v":"127CrmAcctg0001"},"JP2 Accounting Criminal-GF",null,null,null,null,null,null,null,null,null,null,null,null,null,null,null,null,"004","0001",{"$f":"_xlfn.XLOOKUP(VALUE(V346),'Budgeted Funds'!A:A,'Budgeted Funds'!D:D)","v":true}]
[{"$f":"LEFT(B347,3)","v":"127"},1270050153,{"$f":"_xlfn.XLOOKUP(B347,'FC Master'!Q:Q,'FC Master'!B:B)","v":"127JuvSvs0153"},"JP2 Juvenile Svs-Truancy Civil Court Fd",null,null,null,null,null,null,null,null,null,null,null,null,null,null,null,null,"005","0153",{"$f":"_xlfn.XLOOKUP(VALUE(V347),'Budgeted Funds'!A:A,'Budgeted Funds'!D:D)","v":true}]
[{"$f":"LEFT(B348,3)","v":"127"},1278000001,{"$f":"_xlfn.XLOOKUP(B348,'FC Master'!Q:Q,'FC Master'!B:B)","v":"127CAR0001"},"JP2 CAR-CivJs GF",null,null,null,null,null,null,null,null,null,null,null,null,null,null,null,null,"800","0001",{"$f":"_xlfn.XLOOKUP(VALUE(V348),'Budgeted Funds'!A:A,'Budgeted Funds'!D:D)","v":true}]
[{"$f":"LEFT(B349,3)","v":"127"},1278010001,{"$f":"_xlfn.XLOOKUP(B349,'FC Master'!Q:Q,'FC Master'!B:B)","v":"127CAR0001"},"JP2 CAR-CrmJs GF",null,null,null,null,null,null,null,null,null,null,null,null,null,null,null,null,"801","0001",{"$f":"_xlfn.XLOOKUP(VALUE(V349),'Budgeted Funds'!A:A,'Budgeted Funds'!D:D)","v":true}]
[{"$f":"LEFT(B350,3)","v":"128"},1280010001,{"$f":"_xlfn.XLOOKUP(B350,'FC Master'!Q:Q,'FC Master'!B:B)","v":"128Civ0001"},"JP3 Civil-GF",null,null,null,null,null,null,null,null,null,null,null,null,null,null,null,null,"001","0001",{"$f":"_xlfn.XLOOKUP(VALUE(V350),'Budgeted Funds'!A:A,'Budgeted Funds'!D:D)","v":true}]
[{"$f":"LEFT(B351,3)","v":"128"},1280010125,{"$f":"_xlfn.XLOOKUP(B351,'FC Master'!Q:Q,'FC Master'!B:B)","v":"128Civ0125"},"JP3 Civil-Js Ct Technology",null,null,null,null,null,null,null,null,null,null,null,null,null,null,null,null,"001","0125",{"$f":"_xlfn.XLOOKUP(VALUE(V351),'Budgeted Funds'!A:A,'Budgeted Funds'!D:D)","v":true}]
[{"$f":"LEFT(B352,3)","v":"128"},1280010133,{"$f":"_xlfn.XLOOKUP(B352,'FC Master'!Q:Q,'FC Master'!B:B)","v":"128Civ0133"},"JP3 Civil-Vital Statistic Presrvtn",null,null,null,null,null,null,null,null,null,null,null,null,null,null,null,null,"001","0133",{"$f":"_xlfn.XLOOKUP(VALUE(V352),'Budgeted Funds'!A:A,'Budgeted Funds'!D:D)","v":true}]
[{"$f":"LEFT(B353,3)","v":"128"},1280010158,{"$f":"_xlfn.XLOOKUP(B353,'FC Master'!Q:Q,'FC Master'!B:B)","v":"128Civ0158"},"JP3 Civil-Language Access Fd",null,null,null,null,null,null,null,null,null,null,null,null,null,null,null,null,"001","0158",{"$f":"_xlfn.XLOOKUP(VALUE(V353),'Budgeted Funds'!A:A,'Budgeted Funds'!D:D)","v":true}]
[{"$f":"LEFT(B354,3)","v":"128"},1280010161,{"$f":"_xlfn.XLOOKUP(B354,'FC Master'!Q:Q,'FC Master'!B:B)","v":"128Civ0161"},"JP3 Civil-Justice Ct Suppt Fd",null,null,null,null,null,null,null,null,null,null,null,null,null,null,null,null,"001","0161",{"$f":"_xlfn.XLOOKUP(VALUE(V354),'Budgeted Funds'!A:A,'Budgeted Funds'!D:D)","v":true}]
[{"$f":"LEFT(B355,3)","v":"128"},1280020001,{"$f":"_xlfn.XLOOKUP(B355,'FC Master'!Q:Q,'FC Master'!B:B)","v":"128Crm0001"},"JP3 Criminal-GF",null,null,null,null,null,null,null,null,null,null,null,null,null,null,null,null,"002","0001",{"$f":"_xlfn.XLOOKUP(VALUE(V355),'Budgeted Funds'!A:A,'Budgeted Funds'!D:D)","v":true}]
[{"$f":"LEFT(B356,3)","v":"128"},1280020111,{"$f":"_xlfn.XLOOKUP(B356,'FC Master'!Q:Q,'FC Master'!B:B)","v":"128Crm0111"},"JP3 Criminal-Courthouse Security Fd",null,null,null,null,null,null,null,null,null,null,null,null,null,null,null,null,"002","0111",{"$f":"_xlfn.XLOOKUP(VALUE(V356),'Budgeted Funds'!A:A,'Budgeted Funds'!D:D)","v":true}]
[{"$f":"LEFT(B357,3)","v":"128"},1280020125,{"$f":"_xlfn.XLOOKUP(B357,'FC Master'!Q:Q,'FC Master'!B:B)","v":"128Crm0125"},"JP3 Criminal-Js Ct Technology",null,null,null,null,null,null,null,null,null,null,null,null,null,null,null,null,"002","0125",{"$f":"_xlfn.XLOOKUP(VALUE(V357),'Budgeted Funds'!A:A,'Budgeted Funds'!D:D)","v":true}]
[{"$f":"LEFT(B358,3)","v":"128"},1280020136,{"$f":"_xlfn.XLOOKUP(B358,'FC Master'!Q:Q,'FC Master'!B:B)","v":"128Crm0136"},"JP3 Criminal-Justice Ct Bldg Security",null,null,null,null,null,null,null,null,null,null,null,null,null,null,null,null,"002","0136",{"$f":"_xlfn.XLOOKUP(VALUE(V358),'Budgeted Funds'!A:A,'Budgeted Funds'!D:D)","v":true}]
[{"$f":"LEFT(B359,3)","v":"128"},1280020137,{"$f":"_xlfn.XLOOKUP(B359,'FC Master'!Q:Q,'FC Master'!B:B)","v":"128Crm0137"},"JP3 Criminal-Juvenile Case Mgr Fd",null,null,null,null,null,null,null,null,null,null,null,null,null,null,null,null,"002","0137",{"$f":"_xlfn.XLOOKUP(VALUE(V359),'Budgeted Funds'!A:A,'Budgeted Funds'!D:D)","v":true}]
[{"$f":"LEFT(B360,3)","v":"128"},1280020145,{"$f":"_xlfn.XLOOKUP(B360,'FC Master'!Q:Q,'FC Master'!B:B)","v":"128Crm0145"},"JP3 Criminal-RdBg Fd",null,null,null,null,null,null,null,null,null,null,null,null,null,null,null,null,"002","0145",{"$f":"_xlfn.XLOOKUP(VALUE(V360),'Budgeted Funds'!A:A,'Budgeted Funds'!D:D)","v":true}]
[{"$f":"LEFT(B361,3)","v":"128"},1280020152,{"$f":"_xlfn.XLOOKUP(B361,'FC Master'!Q:Q,'FC Master'!B:B)","v":"128Crm0152"},"JP3 Criminal-Juv Case Mgr Pgm Fd",null,null,null,null,null,null,null,null,null,null,null,null,null,null,null,null,"002","0152",{"$f":"_xlfn.XLOOKUP(VALUE(V361),'Budgeted Funds'!A:A,'Budgeted Funds'!D:D)","v":true}]
[{"$f":"LEFT(B362,3)","v":"128"},1280020156,{"$f":"_xlfn.XLOOKUP(B362,'FC Master'!Q:Q,'FC Master'!B:B)","v":"128Crm0156"},"JP3 Criminal-County Jury Fd",null,null,null,null,null,null,null,null,null,null,null,null,null,null,null,null,"002","0156",{"$f":"_xlfn.XLOOKUP(VALUE(V362),'Budgeted Funds'!A:A,'Budgeted Funds'!D:D)","v":true}]
[{"$f":"LEFT(B363,3)","v":"128"},1280050153,{"$f":"_xlfn.XLOOKUP(B363,'FC Master'!Q:Q,'FC Master'!B:B)","v":"128JuvSvs0153"},"JP3 Juvenile Svs-Truancy Civil Court Fd",null,null,null,null,null,null,null,null,null,null,null,null,null,null,null,null,"005","0153",{"$f":"_xlfn.XLOOKUP(VALUE(V363),'Budgeted Funds'!A:A,'Budgeted Funds'!D:D)","v":true}]
[{"$f":"LEFT(B364,3)","v":"128"},1288000001,{"$f":"_xlfn.XLOOKUP(B364,'FC Master'!Q:Q,'FC Master'!B:B)","v":"128CAR0001"},"JP3 CAR-CrmJs GF",null,null,null,null,null,null,null,null,null,null,null,null,null,null,null,null,"800","0001",{"$f":"_xlfn.XLOOKUP(VALUE(V364),'Budgeted Funds'!A:A,'Budgeted Funds'!D:D)","v":true}]
[{"$f":"LEFT(B365,3)","v":"129"},1290010001,{"$f":"_xlfn.XLOOKUP(B365,'FC Master'!Q:Q,'FC Master'!B:B)","v":"129Civ0001"},"JP4 Civil-GF",null,null,null,null,null,null,null,null,null,null,null,null,null,null,null,null,"001","0001",{"$f":"_xlfn.XLOOKUP(VALUE(V365),'Budgeted Funds'!A:A,'Budgeted Funds'!D:D)","v":true}]
[{"$f":"LEFT(B366,3)","v":"129"},1290010133,{"$f":"_xlfn.XLOOKUP(B366,'FC Master'!Q:Q,'FC Master'!B:B)","v":"129Civ0133"},"JP4 Civil-Vital Statistic Presrvtn",null,null,null,null,null,null,null,null,null,null,null,null,null,null,null,null,"001","0133",{"$f":"_xlfn.XLOOKUP(VALUE(V366),'Budgeted Funds'!A:A,'Budgeted Funds'!D:D)","v":true}]
[{"$f":"LEFT(B367,3)","v":"129"},1290010158,{"$f":"_xlfn.XLOOKUP(B367,'FC Master'!Q:Q,'FC Master'!B:B)","v":"129Civ0158"},"JP4 Civil-Language Access Fd",null,null,null,null,null,null,null,null,null,null,null,null,null,null,null,null,"001","0158",{"$f":"_xlfn.XLOOKUP(VALUE(V367),'Budgeted Funds'!A:A,'Budgeted Funds'!D:D)","v":true}]
[{"$f":"LEFT(B368,3)","v":"129"},1290010161,{"$f":"_xlfn.XLOOKUP(B368,'FC Master'!Q:Q,'FC Master'!B:B)","v":"129Civ0161"},"JP4 Civil-Justice Ct Suppt Fd",null,null,null,null,null,null,null,null,null,null,null,null,null,null,null,null,"001","0161",{"$f":"_xlfn.XLOOKUP(VALUE(V368),'Budgeted Funds'!A:A,'Budgeted Funds'!D:D)","v":true}]
[{"$f":"LEFT(B369,3)","v":"129"},1290020001,{"$f":"_xlfn.XLOOKUP(B369,'FC Master'!Q:Q,'FC Master'!B:B)","v":"129Crm0001"},"JP4 Criminal-GF",null,null,null,null,null,null,null,null,null,null,null,null,null,null,null,null,"002","0001",{"$f":"_xlfn.XLOOKUP(VALUE(V369),'Budgeted Funds'!A:A,'Budgeted Funds'!D:D)","v":true}]
[{"$f":"LEFT(B370,3)","v":"129"},1290020111,{"$f":"_xlfn.XLOOKUP(B370,'FC Master'!Q:Q,'FC Master'!B:B)","v":"129Crm0111"},"JP4 Criminal-Courthouse Security Fd",null,null,null,null,null,null,null,null,null,null,null,null,null,null,null,null,"002","0111",{"$f":"_xlfn.XLOOKUP(VALUE(V370),'Budgeted Funds'!A:A,'Budgeted Funds'!D:D)","v":true}]
[{"$f":"LEFT(B371,3)","v":"129"},1290020125,{"$f":"_xlfn.XLOOKUP(B371,'FC Master'!Q:Q,'FC Master'!B:B)","v":"129Crm0125"},"JP4 Criminal-Js Ct Technology",null,null,null,null,null,null,null,null,null,null,null,null,null,null,null,null,"002","0125",{"$f":"_xlfn.XLOOKUP(VALUE(V371),'Budgeted Funds'!A:A,'Budgeted Funds'!D:D)","v":true}]
[{"$f":"LEFT(B372,3)","v":"129"},1290020136,{"$f":"_xlfn.XLOOKUP(B372,'FC Master'!Q:Q,'FC Master'!B:B)","v":"129Crm0136"},"JP4 Criminal-Justice Ct Bldg Security",null,null,null,null,null,null,null,null,null,null,null,null,null,null,null,null,"002","0136",{"$f":"_xlfn.XLOOKUP(VALUE(V372),'Budgeted Funds'!A:A,'Budgeted Funds'!D:D)","v":true}]
[{"$f":"LEFT(B373,3)","v":"129"},1290020137,{"$f":"_xlfn.XLOOKUP(B373,'FC Master'!Q:Q,'FC Master'!B:B)","v":"129Crm0137"},"JP4 Criminal-Juvenile Case Mgr Fd",null,null,null,null,null,null,null,null,null,null,null,null,null,null,null,null,"002","0137",{"$f":"_xlfn.XLOOKUP(VALUE(V373),'Budgeted Funds'!A:A,'Budgeted Funds'!D:D)","v":true}]
[{"$f":"LEFT(B374,3)","v":"129"},1290020145,{"$f":"_xlfn.XLOOKUP(B374,'FC Master'!Q:Q,'FC Master'!B:B)","v":"129Crm0145"},"JP4 Criminal-RdBg Fd",null,null,null,null,null,null,null,null,null,null,null,null,null,null,null,null,"002","0145",{"$f":"_xlfn.XLOOKUP(VALUE(V374),'Budgeted Funds'!A:A,'Budgeted Funds'!D:D)","v":true}]
[{"$f":"LEFT(B375,3)","v":"129"},1290020152,{"$f":"_xlfn.XLOOKUP(B375,'FC Master'!Q:Q,'FC Master'!B:B)","v":"129Crm0152"},"JP4 Criminal-Juv Case Mgr Pgm Fd",null,null,null,null,null,null,null,null,null,null,null,null,null,null,null,null,"002","0152",{"$f":"_xlfn.XLOOKUP(VALUE(V375),'Budgeted Funds'!A:A,'Budgeted Funds'!D:D)","v":true}]
[{"$f":"LEFT(B376,3)","v":"129"},1290020156,{"$f":"_xlfn.XLOOKUP(B376,'FC Master'!Q:Q,'FC Master'!B:B)","v":"129Crm0156"},"JP4 Criminal-County Jury Fd",null,null,null,null,null,null,null,null,null,null,null,null,null,null,null,null,"002","0156",{"$f":"_xlfn.XLOOKUP(VALUE(V376),'Budgeted Funds'!A:A,'Budgeted Funds'!D:D)","v":true}]
[{"$f":"LEFT(B377,3)","v":"129"},1290020161,{"$f":"_xlfn.XLOOKUP(B377,'FC Master'!Q:Q,'FC Master'!B:B)","v":"129Crm0161"},"JP4 Criminal-Justice Court Support Fd",null,null,null,null,null,null,null,null,null,null,null,null,null,null,null,null,"002","0161",{"$f":"_xlfn.XLOOKUP(VALUE(V377),'Budgeted Funds'!A:A,'Budgeted Funds'!D:D)","v":true}]
[{"$f":"LEFT(B378,3)","v":"129"},1290050153,{"$f":"_xlfn.XLOOKUP(B378,'FC Master'!Q:Q,'FC Master'!B:B)","v":"129JuvSvs0153"},"JP4 Juvenile Svs-Truancy Civil Court Fd",null,null,null,null,null,null,null,null,null,null,null,null,null,null,null,null,"005","0153",{"$f":"_xlfn.XLOOKUP(VALUE(V378),'Budgeted Funds'!A:A,'Budgeted Funds'!D:D)","v":true}]
[{"$f":"LEFT(B379,3)","v":"129"},1298000001,{"$f":"_xlfn.XLOOKUP(B379,'FC Master'!Q:Q,'FC Master'!B:B)","v":"129CARCrmJs0001"},"JP4 CAR-Criminal Justice-GF",null,null,null,null,null,null,null,null,null,null,null,null,null,null,null,null,"800","0001",{"$f":"_xlfn.XLOOKUP(VALUE(V379),'Budgeted Funds'!A:A,'Budgeted Funds'!D:D)","v":true}]
[{"$f":"LEFT(B380,3)","v":"130"},1300010001,{"$f":"_xlfn.XLOOKUP(B380,'FC Master'!Q:Q,'FC Master'!B:B)","v":"130Civ0001"},"JP5 Civil-GF",null,null,null,null,null,null,null,null,null,null,null,null,null,null,null,null,"001","0001",{"$f":"_xlfn.XLOOKUP(VALUE(V380),'Budgeted Funds'!A:A,'Budgeted Funds'!D:D)","v":true}]
[{"$f":"LEFT(B381,3)","v":"130"},1300010125,{"$f":"_xlfn.XLOOKUP(B381,'FC Master'!Q:Q,'FC Master'!B:B)","v":"130Civ0125"},"JP5 Civil-Js Ct Tech Fd",null,null,null,null,null,null,null,null,null,null,null,null,null,null,null,null,"001","0125",{"$f":"_xlfn.XLOOKUP(VALUE(V381),'Budgeted Funds'!A:A,'Budgeted Funds'!D:D)","v":true}]
[{"$f":"LEFT(B382,3)","v":"130"},1300010133,{"$f":"_xlfn.XLOOKUP(B382,'FC Master'!Q:Q,'FC Master'!B:B)","v":"130Civ0133"},"JP5 Civil-Vital Stat Pres Fd",null,null,null,null,null,null,null,null,null,null,null,null,null,null,null,null,"001","0133",{"$f":"_xlfn.XLOOKUP(VALUE(V382),'Budgeted Funds'!A:A,'Budgeted Funds'!D:D)","v":true}]
[{"$f":"LEFT(B383,3)","v":"130"},1300010158,{"$f":"_xlfn.XLOOKUP(B383,'FC Master'!Q:Q,'FC Master'!B:B)","v":"130Civ0158"},"JP5 Civil-Language Access Fd",null,null,null,null,null,null,null,null,null,null,null,null,null,null,null,null,"001","0158",{"$f":"_xlfn.XLOOKUP(VALUE(V383),'Budgeted Funds'!A:A,'Budgeted Funds'!D:D)","v":true}]
[{"$f":"LEFT(B384,3)","v":"130"},1300010161,{"$f":"_xlfn.XLOOKUP(B384,'FC Master'!Q:Q,'FC Master'!B:B)","v":"130Civ0161"},"JP5 Civil-Justice Ct Suppt Fd",null,null,null,null,null,null,null,null,null,null,null,null,null,null,null,null,"001","0161",{"$f":"_xlfn.XLOOKUP(VALUE(V384),'Budgeted Funds'!A:A,'Budgeted Funds'!D:D)","v":true}]
[{"$f":"LEFT(B385,3)","v":"130"},1300020001,{"$f":"_xlfn.XLOOKUP(B385,'FC Master'!Q:Q,'FC Master'!B:B)","v":"130Crm0001"},"JP5 Criminal-GF",null,null,null,null,null,null,null,null,null,null,null,null,null,null,null,null,"002","0001",{"$f":"_xlfn.XLOOKUP(VALUE(V385),'Budgeted Funds'!A:A,'Budgeted Funds'!D:D)","v":true}]
[{"$f":"LEFT(B386,3)","v":"130"},1300020111,{"$f":"_xlfn.XLOOKUP(B386,'FC Master'!Q:Q,'FC Master'!B:B)","v":"130Crm0111"},"JP5 Criminal-Courthouse Security Fd",null,null,null,null,null,null,null,null,null,null,null,null,null,null,null,null,"002","0111",{"$f":"_xlfn.XLOOKUP(VALUE(V386),'Budgeted Funds'!A:A,'Budgeted Funds'!D:D)","v":true}]
[{"$f":"LEFT(B387,3)","v":"130"},1300020125,{"$f":"_xlfn.XLOOKUP(B387,'FC Master'!Q:Q,'FC Master'!B:B)","v":"130Crm0125"},"JP5 Criminal-Js Ct Technology",null,null,null,null,null,null,null,null,null,null,null,null,null,null,null,null,"002","0125",{"$f":"_xlfn.XLOOKUP(VALUE(V387),'Budgeted Funds'!A:A,'Budgeted Funds'!D:D)","v":true}]
[{"$f":"LEFT(B388,3)","v":"130"},1300020136,{"$f":"_xlfn.XLOOKUP(B388,'FC Master'!Q:Q,'FC Master'!B:B)","v":"130Crm0136"},"JP5 Criminal-Justice Ct Bldg Security",null,null,null,null,null,null,null,null,null,null,null,null,null,null,null,null,{"$f":"MID(B388,4,3)","v":"002"},{"$f":"MID(B388,7,4)","v":"0136"},{"$f":"_xlfn.XLOOKUP(VALUE(V388),'Budgeted Funds'!A:A,'Budgeted Funds'!D:D)","v":true}]
[{"$f":"LEFT(B389,3)","v":"130"},1300020137,{"$f":"_xlfn.XLOOKUP(B389,'FC Master'!Q:Q,'FC Master'!B:B)","v":"130Crm0137"},"JP5 Criminal-Juvenile Case Mgr Fd",null,null,null,null,null,null,null,null,null,null,null,null,null,null,null,null,"002","0137",{"$f":"_xlfn.XLOOKUP(VALUE(V389),'Budgeted Funds'!A:A,'Budgeted Funds'!D:D)","v":true}]
[{"$f":"LEFT(B390,3)","v":"130"},1300020145,{"$f":"_xlfn.XLOOKUP(B390,'FC Master'!Q:Q,'FC Master'!B:B)","v":"130Crm0145"},"JP5 Criminal-RdBg Fd",null,null,null,null,null,null,null,null,null,null,null,null,null,null,null,null,"002","0145",{"$f":"_xlfn.XLOOKUP(VALUE(V390),'Budgeted Funds'!A:A,'Budgeted Funds'!D:D)","v":true}]
[{"$f":"LEFT(B391,3)","v":"130"},1300020152,{"$f":"_xlfn.XLOOKUP(B391,'FC Master'!Q:Q,'FC Master'!B:B)","v":"130Crm0152"},"JP5 Criminal-Juv Case Mgr Pgm Fd",null,null,null,null,null,null,null,null,null,null,null,null,null,null,null,null,"002","0152",{"$f":"_xlfn.XLOOKUP(VALUE(V391),'Budgeted Funds'!A:A,'Budgeted Funds'!D:D)","v":true}]
[{"$f":"LEFT(B392,3)","v":"130"},1300020156,{"$f":"_xlfn.XLOOKUP(B392,'FC Master'!Q:Q,'FC Master'!B:B)","v":"130Crm0156"},"JP5 Criminal-County Jury Fd",null,null,null,null,null,null,null,null,null,null,null,null,null,null,null,null,"002","0156",{"$f":"_xlfn.XLOOKUP(VALUE(V392),'Budgeted Funds'!A:A,'Budgeted Funds'!D:D)","v":true}]
[{"$f":"LEFT(B393,3)","v":"130"},1300050153,{"$f":"_xlfn.XLOOKUP(B393,'FC Master'!Q:Q,'FC Master'!B:B)","v":"130JuvSvs0153"},"JP5 Juvenile Svs-Truancy Civil Court Fd",null,null,null,null,null,null,null,null,null,null,null,null,null,null,null,null,"005","0153",{"$f":"_xlfn.XLOOKUP(VALUE(V393),'Budgeted Funds'!A:A,'Budgeted Funds'!D:D)","v":true}]
[{"$f":"LEFT(B394,3)","v":"130"},1308000001,{"$f":"_xlfn.XLOOKUP(B394,'FC Master'!Q:Q,'FC Master'!B:B)","v":"130CAR0001"},"JP5 CAR-CivJs GF",null,null,null,null,null,null,null,null,null,null,null,null,null,null,null,null,"800","0001",{"$f":"_xlfn.XLOOKUP(VALUE(V394),'Budgeted Funds'!A:A,'Budgeted Funds'!D:D)","v":true}]
[{"$f":"LEFT(B395,3)","v":"131"},1310010001,{"$f":"_xlfn.XLOOKUP(B395,'FC Master'!Q:Q,'FC Master'!B:B)","v":"131Civ0001"},"Constable1 Civil-GF",null,null,null,null,null,null,null,null,null,null,null,null,null,null,null,null,"001","0001",{"$f":"_xlfn.XLOOKUP(VALUE(V395),'Budgeted Funds'!A:A,'Budgeted Funds'!D:D)","v":true}]
[{"$f":"LEFT(B396,3)","v":"131"},1310020001,{"$f":"_xlfn.XLOOKUP(B396,'FC Master'!Q:Q,'FC Master'!B:B)","v":"131Crm0001"},"Constable1 Criminal-GF",null,null,null,null,null,null,null,null,null,null,null,null,null,null,null,null,"002","0001",{"$f":"_xlfn.XLOOKUP(VALUE(V396),'Budgeted Funds'!A:A,'Budgeted Funds'!D:D)","v":true}]
[{"$f":"LEFT(B397,3)","v":"131"},1310040001,{"$f":"_xlfn.XLOOKUP(B397,'FC Master'!Q:Q,'FC Master'!B:B)","v":"131Sec0001"},"Constable1 Security-GF",null,null,null,null,null,null,null,null,null,null,null,null,null,null,null,null,"004","0001",{"$f":"_xlfn.XLOOKUP(VALUE(V397),'Budgeted Funds'!A:A,'Budgeted Funds'!D:D)","v":true}]
[{"$f":"LEFT(B398,3)","v":"131"},1310040136,{"$f":"_xlfn.XLOOKUP(B398,'FC Master'!Q:Q,'FC Master'!B:B)","v":"131Sec0136"},"Constable1 Security-JstCtBldgSecFd",null,null,null,null,null,null,null,null,null,null,null,null,null,null,null,null,"004","0136",{"$f":"_xlfn.XLOOKUP(VALUE(V398),'Budgeted Funds'!A:A,'Budgeted Funds'!D:D)","v":true}]
[{"$f":"LEFT(B399,3)","v":"131"},1318000001,{"$f":"_xlfn.XLOOKUP(B399,'FC Master'!Q:Q,'FC Master'!B:B)","v":"131CAR0001"},"Constable1 CAR-LE GF",null,null,null,null,null,null,null,null,null,null,null,null,null,null,null,null,"800","0001",{"$f":"_xlfn.XLOOKUP(VALUE(V399),'Budgeted Funds'!A:A,'Budgeted Funds'!D:D)","v":true}]
[{"$f":"LEFT(B400,3)","v":"132"},1320010001,{"$f":"_xlfn.XLOOKUP(B400,'FC Master'!Q:Q,'FC Master'!B:B)","v":"132Civ0001"},"Constable2 Civil-GF",null,null,null,null,null,null,null,null,null,null,null,null,null,null,null,null,"001","0001",{"$f":"_xlfn.XLOOKUP(VALUE(V400),'Budgeted Funds'!A:A,'Budgeted Funds'!D:D)","v":true}]
[{"$f":"LEFT(B401,3)","v":"132"},1320020001,{"$f":"_xlfn.XLOOKUP(B401,'FC Master'!Q:Q,'FC Master'!B:B)","v":"132Crm0001"},"Constable2 Criminal-GF",null,null,null,null,null,null,null,null,null,null,null,null,null,null,null,null,"002","0001",{"$f":"_xlfn.XLOOKUP(VALUE(V401),'Budgeted Funds'!A:A,'Budgeted Funds'!D:D)","v":true}]
[{"$f":"LEFT(B402,3)","v":"132"},1320030001,{"$f":"_xlfn.XLOOKUP(B402,'FC Master'!Q:Q,'FC Master'!B:B)","v":"132Adm0001"},"Constable2 Adm-GF",null,null,null,null,null,null,null,null,null,null,null,null,null,null,null,null,"003","0001",{"$f":"_xlfn.XLOOKUP(VALUE(V402),'Budgeted Funds'!A:A,'Budgeted Funds'!D:D)","v":true}]
[{"$f":"LEFT(B403,3)","v":"132"},1320040001,{"$f":"_xlfn.XLOOKUP(B403,'FC Master'!Q:Q,'FC Master'!B:B)","v":"132Sec0001"},"Constable2 Security-GF",null,null,null,null,null,null,null,null,null,null,null,null,null,null,null,null,"004","0001",{"$f":"_xlfn.XLOOKUP(VALUE(V403),'Budgeted Funds'!A:A,'Budgeted Funds'!D:D)","v":true}]
[{"$f":"LEFT(B404,3)","v":"132"},1320050001,{"$f":"_xlfn.XLOOKUP(B404,'FC Master'!Q:Q,'FC Master'!B:B)","v":"132IntloclAgmt0001"},"Constable2 Interlocal Agreement-GF",null,null,null,null,null,null,null,null,null,null,null,null,null,null,null,null,"005","0001",{"$f":"_xlfn.XLOOKUP(VALUE(V404),'Budgeted Funds'!A:A,'Budgeted Funds'!D:D)","v":true}]
[{"$f":"LEFT(B405,3)","v":"132"},1320060001,{"$f":"_xlfn.XLOOKUP(B405,'FC Master'!Q:Q,'FC Master'!B:B)","v":"132Telecom0001"},"Constable2 Telecommunications-GF",null,null,null,null,null,null,null,null,null,null,null,null,null,null,null,null,"006","0001",{"$f":"_xlfn.XLOOKUP(VALUE(V405),'Budgeted Funds'!A:A,'Budgeted Funds'!D:D)","v":true}]
[{"$f":"LEFT(B406,3)","v":"132"},1328000001,{"$f":"_xlfn.XLOOKUP(B406,'FC Master'!Q:Q,'FC Master'!B:B)","v":"132CAR0001"},"Constable2 CAR-LE GF",null,null,null,null,null,null,null,null,null,null,null,null,null,null,null,null,"800","0001",{"$f":"_xlfn.XLOOKUP(VALUE(V406),'Budgeted Funds'!A:A,'Budgeted Funds'!D:D)","v":true}]
[{"$f":"LEFT(B407,3)","v":"133"},1330010001,{"$f":"_xlfn.XLOOKUP(B407,'FC Master'!Q:Q,'FC Master'!B:B)","v":"133Civ0001"},"Constable3 Civil-GF",null,null,null,null,null,null,null,null,null,null,null,null,null,null,null,null,"001","0001",{"$f":"_xlfn.XLOOKUP(VALUE(V407),'Budgeted Funds'!A:A,'Budgeted Funds'!D:D)","v":true}]
[{"$f":"LEFT(B408,3)","v":"133"},1330020001,{"$f":"_xlfn.XLOOKUP(B408,'FC Master'!Q:Q,'FC Master'!B:B)","v":"133Crm0001"},"Constable3 Criminal-GF",null,null,null,null,null,null,null,null,null,null,null,null,null,null,null,null,"002","0001",{"$f":"_xlfn.XLOOKUP(VALUE(V408),'Budgeted Funds'!A:A,'Budgeted Funds'!D:D)","v":true}]
[{"$f":"LEFT(B409,3)","v":"133"},1330030001,{"$f":"_xlfn.XLOOKUP(B409,'FC Master'!Q:Q,'FC Master'!B:B)","v":"133Adm0001"},"Constable 3 Adm-GF",null,null,null,null,null,null,null,null,null,null,null,null,null,null,null,null,"003","0001",{"$f":"_xlfn.XLOOKUP(VALUE(V409),'Budgeted Funds'!A:A,'Budgeted Funds'!D:D)","v":true}]
[{"$f":"LEFT(B410,3)","v":"133"},1330040001,{"$f":"_xlfn.XLOOKUP(B410,'FC Master'!Q:Q,'FC Master'!B:B)","v":"133PbcSft0001"},"Constable 3 PbcSft-GF",null,null,null,null,null,null,null,null,null,null,null,null,null,null,null,null,"004","0001",{"$f":"_xlfn.XLOOKUP(VALUE(V410),'Budgeted Funds'!A:A,'Budgeted Funds'!D:D)","v":true}]
[{"$f":"LEFT(B411,3)","v":"133"},1330050001,{"$f":"_xlfn.XLOOKUP(B411,'FC Master'!Q:Q,'FC Master'!B:B)","v":"133Sec0001"},"Constable 3 Security-GF",null,null,null,null,null,null,null,null,null,null,null,null,null,null,null,null,"005","0001",{"$f":"_xlfn.XLOOKUP(VALUE(V411),'Budgeted Funds'!A:A,'Budgeted Funds'!D:D)","v":true}]
[{"$f":"LEFT(B412,3)","v":"133"},1330050136,{"$f":"_xlfn.XLOOKUP(B412,'FC Master'!Q:Q,'FC Master'!B:B)","v":"133Sec0136"},"Constable 3 Security-Js Ct Bldg Sec Fd",null,null,null,null,null,null,null,null,null,null,null,null,null,null,null,null,"005","0136",{"$f":"_xlfn.XLOOKUP(VALUE(V412),'Budgeted Funds'!A:A,'Budgeted Funds'!D:D)","v":true}]
[{"$f":"LEFT(B413,3)","v":"133"},1330060001,{"$f":"_xlfn.XLOOKUP(B413,'FC Master'!Q:Q,'FC Master'!B:B)","v":"133LE0001"},"Constable 3 LE-GF",null,null,null,null,null,null,null,null,null,null,null,null,null,null,null,null,"006","0001",{"$f":"_xlfn.XLOOKUP(VALUE(V413),'Budgeted Funds'!A:A,'Budgeted Funds'!D:D)","v":true}]
[{"$f":"LEFT(B414,3)","v":"133"},1338000001,{"$f":"_xlfn.XLOOKUP(B414,'FC Master'!Q:Q,'FC Master'!B:B)","v":"133CAR0001"},"Constable 3 CAR-LE GF",null,null,null,null,null,null,null,null,null,null,null,null,null,null,null,null,"800","0001",{"$f":"_xlfn.XLOOKUP(VALUE(V414),'Budgeted Funds'!A:A,'Budgeted Funds'!D:D)","v":true}]
[{"$f":"LEFT(B415,3)","v":"134"},1340010001,{"$f":"_xlfn.XLOOKUP(B415,'FC Master'!Q:Q,'FC Master'!B:B)","v":"134Civ0001"},"Constable 4 Civil-GF",null,null,null,null,null,null,null,null,null,null,null,null,null,null,null,null,"001","0001",{"$f":"_xlfn.XLOOKUP(VALUE(V415),'Budgeted Funds'!A:A,'Budgeted Funds'!D:D)","v":true}]
[{"$f":"LEFT(B416,3)","v":"134"},1340020001,{"$f":"_xlfn.XLOOKUP(B416,'FC Master'!Q:Q,'FC Master'!B:B)","v":"134Crm0001"},"Constable 4 Criminal-GF",null,null,null,null,null,null,null,null,null,null,null,null,null,null,null,null,"002","0001",{"$f":"_xlfn.XLOOKUP(VALUE(V416),'Budgeted Funds'!A:A,'Budgeted Funds'!D:D)","v":true}]
[{"$f":"LEFT(B417,3)","v":"134"},1340040001,{"$f":"_xlfn.XLOOKUP(B417,'FC Master'!Q:Q,'FC Master'!B:B)","v":"134Sec0001"},"Constable 4 Security-GF",null,null,null,null,null,null,null,null,null,null,null,null,null,null,null,null,"004","0001",{"$f":"_xlfn.XLOOKUP(VALUE(V417),'Budgeted Funds'!A:A,'Budgeted Funds'!D:D)","v":true}]
[{"$f":"LEFT(B418,3)","v":"134"},1348000001,{"$f":"_xlfn.XLOOKUP(B418,'FC Master'!Q:Q,'FC Master'!B:B)","v":"134CAR0001"},"Constable 4 CAR-LE GF",null,null,null,null,null,null,null,null,null,null,null,null,null,null,null,null,"800","0001",{"$f":"_xlfn.XLOOKUP(VALUE(V418),'Budgeted Funds'!A:A,'Budgeted Funds'!D:D)","v":true}]
[{"$f":"LEFT(B419,3)","v":"135"},1350010001,{"$f":"_xlfn.XLOOKUP(B419,'FC Master'!Q:Q,'FC Master'!B:B)","v":"135Civ0001"},"Constable 5 Civil-GF",null,null,null,null,null,null,null,null,null,null,null,null,null,null,null,null,"001","0001",{"$f":"_xlfn.XLOOKUP(VALUE(V419),'Budgeted Funds'!A:A,'Budgeted Funds'!D:D)","v":true}]
[{"$f":"LEFT(B420,3)","v":"135"},1350010128,{"$f":"_xlfn.XLOOKUP(B420,'FC Master'!Q:Q,'FC Master'!B:B)","v":"135Civ0128"},"Constable 5 Civil-Elections Contract Fd",null,null,null,null,null,null,null,null,null,null,null,null,null,null,null,null,"001","0128",{"$f":"_xlfn.XLOOKUP(VALUE(V420),'Budgeted Funds'!A:A,'Budgeted Funds'!D:D)","v":true}]
[{"$f":"LEFT(B421,3)","v":"135"},1350020001,{"$f":"_xlfn.XLOOKUP(B421,'FC Master'!Q:Q,'FC Master'!B:B)","v":"135Crm0001"},"Constable 5 Criminal-GF",null,null,null,null,null,null,null,null,null,null,null,null,null,null,null,null,"002","0001",{"$f":"_xlfn.XLOOKUP(VALUE(V421),'Budgeted Funds'!A:A,'Budgeted Funds'!D:D)","v":true}]
[{"$f":"LEFT(B422,3)","v":"135"},1350020125,{"$f":"_xlfn.XLOOKUP(B422,'FC Master'!Q:Q,'FC Master'!B:B)","v":"135Crm0125"},"Constable 5 Criminal-Js Ct Tech Fd",null,null,null,null,null,null,null,null,null,null,null,null,null,null,null,null,"002","0125",{"$f":"_xlfn.XLOOKUP(VALUE(V422),'Budgeted Funds'!A:A,'Budgeted Funds'!D:D)","v":true}]
[{"$f":"LEFT(B423,3)","v":"135"},1350030001,{"$f":"_xlfn.XLOOKUP(B423,'FC Master'!Q:Q,'FC Master'!B:B)","v":"135AbStudAstPg0001"},"Constable 5 Absent Student Asst Pg-GF",null,null,null,null,null,null,null,null,null,null,null,null,null,null,null,null,"003","0001",{"$f":"_xlfn.XLOOKUP(VALUE(V423),'Budgeted Funds'!A:A,'Budgeted Funds'!D:D)","v":true}]
[{"$f":"LEFT(B424,3)","v":"135"},1350040001,{"$f":"_xlfn.XLOOKUP(B424,'FC Master'!Q:Q,'FC Master'!B:B)","v":"135Sec0001"},"Constable 5 Security-GF",null,null,null,null,null,null,null,null,null,null,null,null,null,null,null,null,"004","0001",{"$f":"_xlfn.XLOOKUP(VALUE(V424),'Budgeted Funds'!A:A,'Budgeted Funds'!D:D)","v":true}]
[{"$f":"LEFT(B425,3)","v":"135"},1350060001,{"$f":"_xlfn.XLOOKUP(B425,'FC Master'!Q:Q,'FC Master'!B:B)","v":"135Exc0001"},"Constable 5 Executive-GF",null,null,null,null,null,null,null,null,null,null,null,null,null,null,null,null,"006","0001",{"$f":"_xlfn.XLOOKUP(VALUE(V425),'Budgeted Funds'!A:A,'Budgeted Funds'!D:D)","v":true}]
[{"$f":"LEFT(B426,3)","v":"135"},1350070001,{"$f":"_xlfn.XLOOKUP(B426,'FC Master'!Q:Q,'FC Master'!B:B)","v":"135Adm0001"},"Constable 5 Administration-GF",null,null,null,null,null,null,null,null,null,null,null,null,null,null,null,null,"007","0001",{"$f":"_xlfn.XLOOKUP(VALUE(V426),'Budgeted Funds'!A:A,'Budgeted Funds'!D:D)","v":true}]
[{"$f":"LEFT(B427,3)","v":"135"},1350080001,{"$f":"_xlfn.XLOOKUP(B427,'FC Master'!Q:Q,'FC Master'!B:B)","v":"135DsbPkg0001"},"Constable 5 Disabled Parking-GF",null,null,null,null,null,null,null,null,null,null,null,null,null,null,null,null,"008","0001",{"$f":"_xlfn.XLOOKUP(VALUE(V427),'Budgeted Funds'!A:A,'Budgeted Funds'!D:D)","v":true}]
[{"$f":"LEFT(B428,3)","v":"135"},1350090001,{"$f":"_xlfn.XLOOKUP(B428,'FC Master'!Q:Q,'FC Master'!B:B)","v":"135AGCiv0001"},"Constable 5 AG Civil-GF",null,null,null,null,null,null,null,null,null,null,null,null,null,null,null,null,"009","0001",{"$f":"_xlfn.XLOOKUP(VALUE(V428),'Budgeted Funds'!A:A,'Budgeted Funds'!D:D)","v":true}]
[{"$f":"LEFT(B429,3)","v":"135"},1350100001,{"$f":"_xlfn.XLOOKUP(B429,'FC Master'!Q:Q,'FC Master'!B:B)","v":"135AGCrm0001"},"Constable 5 AG Criminal-GF",null,null,null,null,null,null,null,null,null,null,null,null,null,null,null,null,"010","0001",{"$f":"_xlfn.XLOOKUP(VALUE(V429),'Budgeted Funds'!A:A,'Budgeted Funds'!D:D)","v":true}]
[{"$f":"LEFT(B430,3)","v":"135"},1358000001,{"$f":"_xlfn.XLOOKUP(B430,'FC Master'!Q:Q,'FC Master'!B:B)","v":"135CAR0001"},"Constable 5 CAR-LE GF",null,null,null,null,null,null,null,null,null,null,null,null,null,null,null,null,"800","0001",{"$f":"_xlfn.XLOOKUP(VALUE(V430),'Budgeted Funds'!A:A,'Budgeted Funds'!D:D)","v":true}]
[{"$f":"LEFT(B431,3)","v":"136"},1360010104,{"$f":"_xlfn.XLOOKUP(B431,'FC Master'!Q:Q,'FC Master'!B:B)","v":"136DRC0104"},"Dispute Resolution Center-DRC fd",null,null,null,null,null,null,null,null,null,null,null,null,null,null,null,null,"001","0104",{"$f":"_xlfn.XLOOKUP(VALUE(V431),'Budgeted Funds'!A:A,'Budgeted Funds'!D:D)","v":true}]
[{"$f":"LEFT(B432,3)","v":"137"},1370120001,{"$f":"_xlfn.XLOOKUP(B432,'FC Master'!Q:Q,'FC Master'!B:B)","v":"137AdmITS0001"},"TCSO Adm/Supp Pub Safety-GF",null,null,null,null,null,null,null,null,null,null,null,null,null,null,null,null,"012","0001",{"$f":"_xlfn.XLOOKUP(VALUE(V432),'Budgeted Funds'!A:A,'Budgeted Funds'!D:D)","v":true}]
[{"$f":"LEFT(B433,3)","v":"137"},1370130001,{"$f":"_xlfn.XLOOKUP(B433,'FC Master'!Q:Q,'FC Master'!B:B)","v":"137ExAdmIntel0001"},"TCSO Exec Adm-GF",null,null,null,null,null,null,null,null,null,null,null,null,null,null,null,null,"013","0001",{"$f":"_xlfn.XLOOKUP(VALUE(V433),'Budgeted Funds'!A:A,'Budgeted Funds'!D:D)","v":true}]
[{"$f":"LEFT(B434,3)","v":"137"},1370170001,{"$f":"_xlfn.XLOOKUP(B434,'FC Master'!Q:Q,'FC Master'!B:B)","v":"137AdmHR0001"},"TCSO Adm/Supp Housing-GF",null,null,null,null,null,null,null,null,null,null,null,null,null,null,null,null,"017","0001",{"$f":"_xlfn.XLOOKUP(VALUE(V434),'Budgeted Funds'!A:A,'Budgeted Funds'!D:D)","v":true}]
[{"$f":"LEFT(B435,3)","v":"137"},1370260001,{"$f":"_xlfn.XLOOKUP(B435,'FC Master'!Q:Q,'FC Master'!B:B)","v":"137CTECC0001"},"TCSO CTECC-GF",null,null,null,null,null,null,null,null,null,null,null,null,null,null,null,null,"026","0001",{"$f":"_xlfn.XLOOKUP(VALUE(V435),'Budgeted Funds'!A:A,'Budgeted Funds'!D:D)","v":true}]
[{"$f":"LEFT(B436,3)","v":"137"},1370310001,{"$f":"_xlfn.XLOOKUP(B436,'FC Master'!Q:Q,'FC Master'!B:B)","v":"137CrcCmsry0001"},"TCSO Crc Commissary-GF",null,null,null,null,null,null,null,null,null,null,null,null,null,null,null,null,"031","0001",{"$f":"_xlfn.XLOOKUP(VALUE(V436),'Budgeted Funds'!A:A,'Budgeted Funds'!D:D)","v":true}]
[{"$f":"LEFT(B437,3)","v":"137"},1370320001,{"$f":"_xlfn.XLOOKUP(B437,'FC Master'!Q:Q,'FC Master'!B:B)","v":"137CthseSec0001"},"TCSO Courthouse Security-GF",null,null,null,null,null,null,null,null,null,null,null,null,null,null,null,null,"032","0001",{"$f":"_xlfn.XLOOKUP(VALUE(V437),'Budgeted Funds'!A:A,'Budgeted Funds'!D:D)","v":true}]
[{"$f":"LEFT(B438,3)","v":"137"},1370320111,{"$f":"_xlfn.XLOOKUP(B438,'FC Master'!Q:Q,'FC Master'!B:B)","v":"137CthseSec0111"},"TCSO Courthouse Security-Cthse Sec Fd",null,null,null,null,null,null,null,null,null,null,null,null,null,null,null,null,"032","0111",{"$f":"_xlfn.XLOOKUP(VALUE(V438),'Budgeted Funds'!A:A,'Budgeted Funds'!D:D)","v":true}]
[{"$f":"LEFT(B439,3)","v":"137"},1370440001,{"$f":"_xlfn.XLOOKUP(B439,'FC Master'!Q:Q,'FC Master'!B:B)","v":"137CrcComplex0001"},"TCSO Crc Support Br-GF",null,null,null,null,null,null,null,null,null,null,null,null,null,null,null,null,"044","0001",{"$f":"_xlfn.XLOOKUP(VALUE(V439),'Budgeted Funds'!A:A,'Budgeted Funds'!D:D)","v":true}]
[{"$f":"LEFT(B440,3)","v":"137"},1370444034,{"$f":"_xlfn.XLOOKUP(B440,'FC Master'!Q:Q,'FC Master'!B:B)","v":"137CrcSupportBr4034"},"TCSO Crc Support Br-CO 2001A",null,null,null,null,null,null,null,null,null,null,null,null,null,null,null,null,"044","4034",{"$f":"_xlfn.XLOOKUP(VALUE(V440),'Budgeted Funds'!A:A,'Budgeted Funds'!D:D)","v":{"$error":"#N/A"}}]
[{"$f":"LEFT(B441,3)","v":"137"},1370444044,{"$f":"_xlfn.XLOOKUP(B441,'FC Master'!Q:Q,'FC Master'!B:B)","v":"137CrcSupportBr4044"},"TCSO Crc Support Br-CO 2005",null,null,null,null,null,null,null,null,null,null,null,null,null,null,null,null,"044","4044",{"$f":"_xlfn.XLOOKUP(VALUE(V441),'Budgeted Funds'!A:A,'Budgeted Funds'!D:D)","v":{"$error":"#N/A"}}]
[{"$f":"LEFT(B442,3)","v":"137"},1370444055,{"$f":"_xlfn.XLOOKUP(B442,'FC Master'!Q:Q,'FC Master'!B:B)","v":"137CrcSupportBr4055"},"TCSO Crc Support Br-CO 2007A",null,null,null,null,null,null,null,null,null,null,null,null,null,null,null,null,"044","4055",{"$f":"_xlfn.XLOOKUP(VALUE(V442),'Budgeted Funds'!A:A,'Budgeted Funds'!D:D)","v":{"$error":"#N/A"}}]
[{"$f":"LEFT(B443,3)","v":"137"},1370444056,{"$f":"_xlfn.XLOOKUP(B443,'FC Master'!Q:Q,'FC Master'!B:B)","v":"137CrcSupportBr4056"},"TCSO Crc Support Br-CO 2008",null,null,null,null,null,null,null,null,null,null,null,null,null,null,null,null,"044","4056",{"$f":"_xlfn.XLOOKUP(VALUE(V443),'Budgeted Funds'!A:A,'Budgeted Funds'!D:D)","v":{"$error":"#N/A"}}]
[{"$f":"LEFT(B444,3)","v":"137"},1370444063,{"$f":"_xlfn.XLOOKUP(B444,'FC Master'!Q:Q,'FC Master'!B:B)","v":"137CrcSupportBr4063"},"TCSO Crc Support Br-CO 2010 Non Tax",null,null,null,null,null,null,null,null,null,null,null,null,null,null,null,null,"044","4063",{"$f":"_xlfn.XLOOKUP(VALUE(V444),'Budgeted Funds'!A:A,'Budgeted Funds'!D:D)","v":{"$error":"#N/A"}}]
[{"$f":"LEFT(B445,3)","v":"137"},1370444068,{"$f":"_xlfn.XLOOKUP(B445,'FC Master'!Q:Q,'FC Master'!B:B)","v":"137CrcSupportBr4068"},"TCSO Crc Support Br-CO 2011 Non Tax",null,null,null,null,null,null,null,null,null,null,null,null,null,null,null,null,"044","4068",{"$f":"_xlfn.XLOOKUP(VALUE(V445),'Budgeted Funds'!A:A,'Budgeted Funds'!D:D)","v":{"$error":"#N/A"}}]
[{"$f":"LEFT(B446,3)","v":"137"},1370460001,{"$f":"_xlfn.XLOOKUP(B446,'FC Master'!Q:Q,'FC Master'!B:B)","v":"137CtlBkg0001"},"TCSO Central Booking-GF",null,null,null,null,null,null,null,null,null,null,null,null,null,null,null,null,"046","0001",{"$f":"_xlfn.XLOOKUP(VALUE(V446),'Budgeted Funds'!A:A,'Budgeted Funds'!D:D)","v":true}]
[{"$f":"LEFT(B447,3)","v":"137"},1370490001,{"$f":"_xlfn.XLOOKUP(B447,'FC Master'!Q:Q,'FC Master'!B:B)","v":"137MSMenHlh0001"},"TCSO Medical Svs Contracted Med Svs-GF",null,null,null,null,null,null,null,null,null,null,null,null,null,null,null,null,"049","0001",{"$f":"_xlfn.XLOOKUP(VALUE(V447),'Budgeted Funds'!A:A,'Budgeted Funds'!D:D)","v":true}]
[{"$f":"LEFT(B448,3)","v":"137"},1370530001,{"$f":"_xlfn.XLOOKUP(B448,'FC Master'!Q:Q,'FC Master'!B:B)","v":"137FedForfProp0001"},"TCSO Fed Forfeited Property-GF",null,null,null,null,null,null,null,null,null,null,null,null,null,null,null,null,"053","0001",{"$f":"_xlfn.XLOOKUP(VALUE(V448),'Budgeted Funds'!A:A,'Budgeted Funds'!D:D)","v":true}]
[{"$f":"LEFT(B449,3)","v":"137"},1370580001,{"$f":"_xlfn.XLOOKUP(B449,'FC Master'!Q:Q,'FC Master'!B:B)","v":"137ISChaplain0001"},"TCSO Inmate Svs Programs-GF",null,null,null,null,null,null,null,null,null,null,null,null,null,null,null,null,"058","0001",{"$f":"_xlfn.XLOOKUP(VALUE(V449),'Budgeted Funds'!A:A,'Budgeted Funds'!D:D)","v":true}]
[{"$f":"LEFT(B450,3)","v":"137"},1370640001,{"$f":"_xlfn.XLOOKUP(B450,'FC Master'!Q:Q,'FC Master'!B:B)","v":"137LEDispatch0001"},"TCSO LE Dispatch-GF",null,null,null,null,null,null,null,null,null,null,null,null,null,null,null,null,"064","0001",{"$f":"_xlfn.XLOOKUP(VALUE(V450),'Budgeted Funds'!A:A,'Budgeted Funds'!D:D)","v":true}]
[{"$f":"LEFT(B451,3)","v":"137"},1370750001,{"$f":"_xlfn.XLOOKUP(B451,'FC Master'!Q:Q,'FC Master'!B:B)","v":"137LEMntlHlth0001"},"TCSO LE Support Br-GF",null,null,null,null,null,null,null,null,null,null,null,null,null,null,null,null,"075","0001",{"$f":"_xlfn.XLOOKUP(VALUE(V451),'Budgeted Funds'!A:A,'Budgeted Funds'!D:D)","v":true}]
[{"$f":"LEFT(B452,3)","v":"137"},1370750135,{"$f":"_xlfn.XLOOKUP(B452,'FC Master'!Q:Q,'FC Master'!B:B)","v":"137LESupportBr0135"},"TCSO LE Support Br-Child Abuse Fd",null,null,null,null,null,null,null,null,null,null,null,null,null,null,null,null,{"$f":"MID(B452,4,3)","v":"075"},{"$f":"MID(B452,7,4)","v":"0135"},{"$f":"_xlfn.XLOOKUP(VALUE(V452),'Budgeted Funds'!A:A,'Budgeted Funds'!D:D)","v":true}]
[{"$f":"LEFT(B453,3)","v":"137"},1370750145,{"$f":"_xlfn.XLOOKUP(B453,'FC Master'!Q:Q,'FC Master'!B:B)","v":"137LESupportBr0145"},"TCSO LE Support Br-RdBrdg Fd",null,null,null,null,null,null,null,null,null,null,null,null,null,null,null,null,"075","0145",{"$f":"_xlfn.XLOOKUP(VALUE(V453),'Budgeted Funds'!A:A,'Budgeted Funds'!D:D)","v":true}]
[{"$f":"LEFT(B454,3)","v":"137"},1370750156,{"$f":"_xlfn.XLOOKUP(B454,'FC Master'!Q:Q,'FC Master'!B:B)","v":"137LESupportBr0156"},"TCSO LE Support Br-Jury Fd",null,null,null,null,null,null,null,null,null,null,null,null,null,null,null,null,"075","0156",{"$f":"_xlfn.XLOOKUP(VALUE(V454),'Budgeted Funds'!A:A,'Budgeted Funds'!D:D)","v":true}]
[{"$f":"LEFT(B455,3)","v":"137"},1370754063,{"$f":"_xlfn.XLOOKUP(B455,'FC Master'!Q:Q,'FC Master'!B:B)","v":"137LESupportBr4063"},"TCSO LE Support Br-CO 2010 Non Tax",null,null,null,null,null,null,null,null,null,null,null,null,null,null,null,null,"075","4063",{"$f":"_xlfn.XLOOKUP(VALUE(V455),'Budgeted Funds'!A:A,'Budgeted Funds'!D:D)","v":{"$error":"#N/A"}}]
[{"$f":"LEFT(B456,3)","v":"137"},1370770001,{"$f":"_xlfn.XLOOKUP(B456,'FC Master'!Q:Q,'FC Master'!B:B)","v":"137CrcRiskMgmt0001"},"TCSO Crc Risk Management GF",null,null,null,null,null,null,null,null,null,null,null,null,null,null,null,null,"077","0001",{"$f":"_xlfn.XLOOKUP(VALUE(V456),'Budgeted Funds'!A:A,'Budgeted Funds'!D:D)","v":true}]
[{"$f":"LEFT(B457,3)","v":"137"},1370780001,{"$f":"_xlfn.XLOOKUP(B457,'FC Master'!Q:Q,'FC Master'!B:B)","v":"137LERiskMgmt0001"},"TCSO LE Risk Management GF",null,null,null,null,null,null,null,null,null,null,null,null,null,null,null,null,"078","0001",{"$f":"_xlfn.XLOOKUP(VALUE(V457),'Budgeted Funds'!A:A,'Budgeted Funds'!D:D)","v":true}]
[{"$f":"LEFT(B458,3)","v":"137"},1378000001,{"$f":"_xlfn.XLOOKUP(B458,'FC Master'!Q:Q,'FC Master'!B:B)","v":"137CARHshBkg0001"},"TCSO CAR-HsgBkg GF",null,null,null,null,null,null,null,null,null,null,null,null,null,null,null,null,"800","0001",{"$f":"_xlfn.XLOOKUP(VALUE(V458),'Budgeted Funds'!A:A,'Budgeted Funds'!D:D)","v":true}]
[{"$f":"LEFT(B459,3)","v":"137"},1378010001,{"$f":"_xlfn.XLOOKUP(B459,'FC Master'!Q:Q,'FC Master'!B:B)","v":"137CARLE0001"},"TCSO CAR-LE GF",null,null,null,null,null,null,null,null,null,null,null,null,null,null,null,null,"801","0001",{"$f":"_xlfn.XLOOKUP(VALUE(V459),'Budgeted Funds'!A:A,'Budgeted Funds'!D:D)","v":true}]
[{"$f":"LEFT(B460,3)","v":"137"},1379000001,{"$f":"_xlfn.XLOOKUP(B460,'FC Master'!Q:Q,'FC Master'!B:B)","v":"137ReimburseRes0001"},"TCSO Reimbursement Resolution Funds-GF",null,null,null,null,null,null,null,null,null,null,null,null,null,null,null,null,"900","0001",{"$f":"_xlfn.XLOOKUP(VALUE(V460),'Budgeted Funds'!A:A,'Budgeted Funds'!D:D)","v":true}]
[{"$f":"LEFT(B461,3)","v":"138"},1380010001,{"$f":"_xlfn.XLOOKUP(B461,'FC Master'!Q:Q,'FC Master'!B:B)","v":"138Adm0001"},"ME Adm-GF",null,null,null,null,null,null,null,null,null,null,null,null,null,null,null,null,"001","0001",{"$f":"_xlfn.XLOOKUP(VALUE(V461),'Budgeted Funds'!A:A,'Budgeted Funds'!D:D)","v":true}]
[{"$f":"LEFT(B462,3)","v":"138"},1380020001,{"$f":"_xlfn.XLOOKUP(B462,'FC Master'!Q:Q,'FC Master'!B:B)","v":"138Pathology0001"},"ME Pathology-GF",null,null,null,null,null,null,null,null,null,null,null,null,null,null,null,null,"002","0001",{"$f":"_xlfn.XLOOKUP(VALUE(V462),'Budgeted Funds'!A:A,'Budgeted Funds'!D:D)","v":true}]
[{"$f":"LEFT(B463,3)","v":"138"},1380030001,{"$f":"_xlfn.XLOOKUP(B463,'FC Master'!Q:Q,'FC Master'!B:B)","v":"138Laboratory0001"},"ME Laboratory-GF",null,null,null,null,null,null,null,null,null,null,null,null,null,null,null,null,"003","0001",{"$f":"_xlfn.XLOOKUP(VALUE(V463),'Budgeted Funds'!A:A,'Budgeted Funds'!D:D)","v":true}]
[{"$f":"LEFT(B464,3)","v":"138"},1380040001,{"$f":"_xlfn.XLOOKUP(B464,'FC Master'!Q:Q,'FC Master'!B:B)","v":"138Histology0001"},"ME Histology-GF",null,null,null,null,null,null,null,null,null,null,null,null,null,null,null,null,"004","0001",{"$f":"_xlfn.XLOOKUP(VALUE(V464),'Budgeted Funds'!A:A,'Budgeted Funds'!D:D)","v":true}]
[{"$f":"LEFT(B465,3)","v":"138"},1380050001,{"$f":"_xlfn.XLOOKUP(B465,'FC Master'!Q:Q,'FC Master'!B:B)","v":"138Investigative0001"},"ME Investigative-GF",null,null,null,null,null,null,null,null,null,null,null,null,null,null,null,null,"005","0001",{"$f":"_xlfn.XLOOKUP(VALUE(V465),'Budgeted Funds'!A:A,'Budgeted Funds'!D:D)","v":true}]
[{"$f":"LEFT(B466,3)","v":"138"},1380060001,{"$f":"_xlfn.XLOOKUP(B466,'FC Master'!Q:Q,'FC Master'!B:B)","v":"138Autopsy0001"},"ME Autopsy-GF",null,null,null,null,null,null,null,null,null,null,null,null,null,null,null,null,"006","0001",{"$f":"_xlfn.XLOOKUP(VALUE(V466),'Budgeted Funds'!A:A,'Budgeted Funds'!D:D)","v":true}]
[{"$f":"LEFT(B467,3)","v":"138"},1380074034,{"$f":"_xlfn.XLOOKUP(B467,'FC Master'!Q:Q,'FC Master'!B:B)","v":"138ForensicLab4034"},"ME Forensic Laboratory-CO 2001A",null,null,null,null,null,null,null,null,null,null,null,null,null,null,null,null,"007","4034",{"$f":"_xlfn.XLOOKUP(VALUE(V467),'Budgeted Funds'!A:A,'Budgeted Funds'!D:D)","v":{"$error":"#N/A"}}]
[{"$f":"LEFT(B468,3)","v":"138"},1380084005,{"$f":"_xlfn.XLOOKUP(B468,'FC Master'!Q:Q,'FC Master'!B:B)","v":"138Morgue4005"},"ME Morgue-PI Bds 1990",null,null,null,null,null,null,null,null,null,null,null,null,null,null,null,null,"008","4005",{"$f":"_xlfn.XLOOKUP(VALUE(V468),'Budgeted Funds'!A:A,'Budgeted Funds'!D:D)","v":false}]
[{"$f":"LEFT(B469,3)","v":"138"},1388000001,{"$f":"_xlfn.XLOOKUP(B469,'FC Master'!Q:Q,'FC Master'!B:B)","v":"138CARLE0001"},"ME CAR-LE GF",null,null,null,null,null,null,null,null,null,null,null,null,null,null,null,null,"800","0001",{"$f":"_xlfn.XLOOKUP(VALUE(V469),'Budgeted Funds'!A:A,'Budgeted Funds'!D:D)","v":true}]
[{"$f":"LEFT(B470,3)","v":"138"},1389000001,{"$f":"_xlfn.XLOOKUP(B470,'FC Master'!Q:Q,'FC Master'!B:B)","v":"138ReimbRes0001"},"ME Reimbursement Resolution Funds-GF",null,null,null,null,null,null,null,null,null,null,null,null,null,null,null,null,"900","0001",{"$f":"_xlfn.XLOOKUP(VALUE(V470),'Budgeted Funds'!A:A,'Budgeted Funds'!D:D)","v":true}]
[{"$f":"LEFT(B471,3)","v":"139"},1390010001,{"$f":"_xlfn.XLOOKUP(B471,'FC Master'!Q:Q,'FC Master'!B:B)","v":"139Supervision0001"},"CSCD Supervision GF",null,null,null,null,null,null,null,null,null,null,null,null,null,null,null,null,"001","0001",{"$f":"_xlfn.XLOOKUP(VALUE(V471),'Budgeted Funds'!A:A,'Budgeted Funds'!D:D)","v":true}]
[{"$f":"LEFT(B472,3)","v":"139"},1390010117,{"$f":"_xlfn.XLOOKUP(B472,'FC Master'!Q:Q,'FC Master'!B:B)","v":"139Supervision0117"},"CSCD Supervision-CSCD Eqp Acq Fd",null,null,null,null,null,null,null,null,null,null,null,null,null,null,null,null,"001","0117",{"$f":"_xlfn.XLOOKUP(VALUE(V472),'Budgeted Funds'!A:A,'Budgeted Funds'!D:D)","v":false}]
[{"$f":"LEFT(B473,3)","v":"139"},1390010157,{"$f":"_xlfn.XLOOKUP(B473,'FC Master'!Q:Q,'FC Master'!B:B)","v":"CSCD-Spec Co Fd"},"CSCD-Spec Court Fund",null,null,null,null,null,null,null,null,null,null,null,null,null,null,null,null,"001","0157",{"$f":"_xlfn.XLOOKUP(VALUE(V473),'Budgeted Funds'!A:A,'Budgeted Funds'!D:D)","v":true}]
[{"$f":"LEFT(B474,3)","v":"139"},1398000001,{"$f":"_xlfn.XLOOKUP(B474,'FC Master'!Q:Q,'FC Master'!B:B)","v":"139CARSvsn0001"},"CSCD CAR-Svsn GF",null,null,null,null,null,null,null,null,null,null,null,null,null,null,null,null,"800","0001",{"$f":"_xlfn.XLOOKUP(VALUE(V474),'Budgeted Funds'!A:A,'Budgeted Funds'!D:D)","v":true}]
[{"$f":"LEFT(B475,3)","v":"140"},1400010001,{"$f":"_xlfn.XLOOKUP(B475,'FC Master'!Q:Q,'FC Master'!B:B)","v":"140Admin0001"},"TCCES CES-Administration-GF",null,null,null,null,null,null,null,null,null,null,null,null,null,null,null,null,"001","0001",{"$f":"_xlfn.XLOOKUP(VALUE(V475),'Budgeted Funds'!A:A,'Budgeted Funds'!D:D)","v":true}]
[{"$f":"LEFT(B476,3)","v":"140"},1400020001,{"$f":"_xlfn.XLOOKUP(B476,'FC Master'!Q:Q,'FC Master'!B:B)","v":"140Educ0001"},"TCCES Education-GF",null,null,null,null,null,null,null,null,null,null,null,null,null,null,null,null,"002","0001",{"$f":"_xlfn.XLOOKUP(VALUE(V476),'Budgeted Funds'!A:A,'Budgeted Funds'!D:D)","v":true}]
[{"$f":"LEFT(B477,3)","v":"140"},1400020148,{"$f":"_xlfn.XLOOKUP(B477,'FC Master'!Q:Q,'FC Master'!B:B)","v":"140Educ0148"},"TCCES Education-TCCES Fd",null,null,null,null,null,null,null,null,null,null,null,null,null,null,null,null,"002","0148",{"$f":"_xlfn.XLOOKUP(VALUE(V477),'Budgeted Funds'!A:A,'Budgeted Funds'!D:D)","v":false}]
[{"$f":"LEFT(B478,3)","v":"140"},1400030001,{"$f":"_xlfn.XLOOKUP(B478,'FC Master'!Q:Q,'FC Master'!B:B)","v":"140ServCtr0001"},"TCCES Service Center-GF",null,null,null,null,null,null,null,null,null,null,null,null,null,null,null,null,"003","0001",{"$f":"_xlfn.XLOOKUP(VALUE(V478),'Budgeted Funds'!A:A,'Budgeted Funds'!D:D)","v":true}]
[{"$f":"LEFT(B479,3)","v":"140"},1400040001,{"$f":"_xlfn.XLOOKUP(B479,'FC Master'!Q:Q,'FC Master'!B:B)","v":"140PhoneCtrDwnT0001"},"TCCES Phone Center-Down Town-GF",null,null,null,null,null,null,null,null,null,null,null,null,null,null,null,null,"004","0001",{"$f":"_xlfn.XLOOKUP(VALUE(V479),'Budgeted Funds'!A:A,'Budgeted Funds'!D:D)","v":true}]
[{"$f":"LEFT(B480,3)","v":"140"},1400050001,{"$f":"_xlfn.XLOOKUP(B480,'FC Master'!Q:Q,'FC Master'!B:B)","v":"140CES0001"},"TCCES CES Alcohol & Other Drug-GF",null,null,null,null,null,null,null,null,null,null,null,null,null,null,null,null,"005","0001",{"$f":"_xlfn.XLOOKUP(VALUE(V480),'Budgeted Funds'!A:A,'Budgeted Funds'!D:D)","v":true}]
[{"$f":"LEFT(B481,3)","v":"140"},1400060001,{"$f":"_xlfn.XLOOKUP(B481,'FC Master'!Q:Q,'FC Master'!B:B)","v":"140AlcDrgCnslg0001"},"TCCES Alcohol & Other Drug Counseling-GF",null,null,null,null,null,null,null,null,null,null,null,null,null,null,null,null,"006","0001",{"$f":"_xlfn.XLOOKUP(VALUE(V481),'Budgeted Funds'!A:A,'Budgeted Funds'!D:D)","v":true}]
[{"$f":"LEFT(B482,3)","v":"140"},1400070001,{"$f":"_xlfn.XLOOKUP(B482,'FC Master'!Q:Q,'FC Master'!B:B)","v":"140FamVioCnslg0001"},"TCCES Family Violence Counseling-GF",null,null,null,null,null,null,null,null,null,null,null,null,null,null,null,null,"007","0001",{"$f":"_xlfn.XLOOKUP(VALUE(V482),'Budgeted Funds'!A:A,'Budgeted Funds'!D:D)","v":true}]
[{"$f":"LEFT(B483,3)","v":"140"},1400080001,{"$f":"_xlfn.XLOOKUP(B483,'FC Master'!Q:Q,'FC Master'!B:B)","v":"140CommToChg0001"},"TCCES Commitment to Change-GF",null,null,null,null,null,null,null,null,null,null,null,null,null,null,null,null,"008","0001",{"$f":"_xlfn.XLOOKUP(VALUE(V483),'Budgeted Funds'!A:A,'Budgeted Funds'!D:D)","v":true}]
[{"$f":"LEFT(B484,3)","v":"140"},1400090001,{"$f":"_xlfn.XLOOKUP(B484,'FC Master'!Q:Q,'FC Master'!B:B)","v":"140PhoenixCourt0001"},"TCCES Phoenix Court-GF",null,null,null,null,null,null,null,null,null,null,null,null,null,null,null,null,"009","0001",{"$f":"_xlfn.XLOOKUP(VALUE(V484),'Budgeted Funds'!A:A,'Budgeted Funds'!D:D)","v":true}]
[{"$f":"LEFT(B485,3)","v":"140"},1400100001,{"$f":"_xlfn.XLOOKUP(B485,'FC Master'!Q:Q,'FC Master'!B:B)","v":"140JuvEduc0001"},"TCCES Juvenile Education Classes-GF",null,null,null,null,null,null,null,null,null,null,null,null,null,null,null,null,"010","0001",{"$f":"_xlfn.XLOOKUP(VALUE(V485),'Budgeted Funds'!A:A,'Budgeted Funds'!D:D)","v":true}]
[{"$f":"LEFT(B486,3)","v":"140"},1400110001,{"$f":"_xlfn.XLOOKUP(B486,'FC Master'!Q:Q,'FC Master'!B:B)","v":"140CrimVic0001"},"TCCES Crime Victims Program-GF",null,null,null,null,null,null,null,null,null,null,null,null,null,null,null,null,"011","0001",{"$f":"_xlfn.XLOOKUP(VALUE(V486),'Budgeted Funds'!A:A,'Budgeted Funds'!D:D)","v":true}]
[{"$f":"LEFT(B487,3)","v":"140"},1408000001,{"$f":"_xlfn.XLOOKUP(B487,'FC Master'!Q:Q,'FC Master'!B:B)","v":"140CAREducation0001"},"TCCES CAR-Education-GF",null,null,null,null,null,null,null,null,null,null,null,null,null,null,null,null,"800","0001",{"$f":"_xlfn.XLOOKUP(VALUE(V487),'Budgeted Funds'!A:A,'Budgeted Funds'!D:D)","v":true}]
[{"$f":"LEFT(B488,3)","v":"141"},1410010001,{"$f":"_xlfn.XLOOKUP(B488,'FC Master'!Q:Q,'FC Master'!B:B)","v":"141Admin0001"},"CLS-Admin-GF",null,null,null,null,null,null,null,null,null,null,null,null,null,null,null,null,"001","0001",{"$f":"_xlfn.XLOOKUP(VALUE(V488),'Budgeted Funds'!A:A,'Budgeted Funds'!D:D)","v":true}]
[{"$f":"LEFT(B489,3)","v":"141"},1410020001,{"$f":"_xlfn.XLOOKUP(B489,'FC Master'!Q:Q,'FC Master'!B:B)","v":"141OFCPRTREP0001"},"CLS-Ofc of Parent Rep-GF",null,null,null,null,null,null,null,null,null,null,null,null,null,null,null,null,"002","0001",{"$f":"_xlfn.XLOOKUP(VALUE(V489),'Budgeted Funds'!A:A,'Budgeted Funds'!D:D)","v":true}]
[{"$f":"LEFT(B490,3)","v":"141"},1410030001,{"$f":"_xlfn.XLOOKUP(B490,'FC Master'!Q:Q,'FC Master'!B:B)","v":"141OFCCHREP0001"},"CLS-Office of Child Rep -GF",null,null,null,null,null,null,null,null,null,null,null,null,null,null,null,null,"003","0001",{"$f":"_xlfn.XLOOKUP(VALUE(V490),'Budgeted Funds'!A:A,'Budgeted Funds'!D:D)","v":true}]
[{"$f":"LEFT(B491,3)","v":"141"},1410040001,{"$f":"_xlfn.XLOOKUP(B491,'FC Master'!Q:Q,'FC Master'!B:B)","v":"141CLSCIVLIB0001"},"CLS-Civil Library-GF",null,null,null,null,null,null,null,null,null,null,null,null,null,null,null,null,"004","0001",{"$f":"_xlfn.XLOOKUP(VALUE(V491),'Budgeted Funds'!A:A,'Budgeted Funds'!D:D)","v":true}]
[{"$f":"LEFT(B492,3)","v":"141"},1410040100,{"$f":"_xlfn.XLOOKUP(B492,'FC Master'!Q:Q,'FC Master'!B:B)","v":"141CLSCIVILIB0100"},"CLS-Civil Library-Law Library Fund",null,null,null,null,null,null,null,null,null,null,null,null,null,null,null,null,"004","0100",{"$f":"_xlfn.XLOOKUP(VALUE(V492),'Budgeted Funds'!A:A,'Budgeted Funds'!D:D)","v":true}]
[{"$f":"LEFT(B493,3)","v":"141"},1410050001,{"$f":"_xlfn.XLOOKUP(B493,'FC Master'!Q:Q,'FC Master'!B:B)","v":"141CLSCRIMLIB0001"},"CLS-Criminal Library-GF",null,null,null,null,null,null,null,null,null,null,null,null,null,null,null,null,"005","0001",{"$f":"_xlfn.XLOOKUP(VALUE(V493),'Budgeted Funds'!A:A,'Budgeted Funds'!D:D)","v":true}]
[{"$f":"LEFT(B494,3)","v":"141"},1410050100,{"$f":"_xlfn.XLOOKUP(B494,'FC Master'!Q:Q,'FC Master'!B:B)","v":"141CLSCRIMLIB0100"},"CLS-Criminal Library-Law Library Fund",null,null,null,null,null,null,null,null,null,null,null,null,null,null,null,null,"005","0100",{"$f":"_xlfn.XLOOKUP(VALUE(V494),'Budgeted Funds'!A:A,'Budgeted Funds'!D:D)","v":true}]
[{"$f":"LEFT(B495,3)","v":"142"},1420010001,{"$f":"_xlfn.XLOOKUP(B495,'FC Master'!Q:Q,'FC Master'!B:B)","v":"142Supvn0001"},"Pretrial Supervision-GF",null,null,null,null,null,null,null,null,null,null,null,null,null,null,null,null,"001","0001",{"$f":"_xlfn.XLOOKUP(VALUE(V495),'Budgeted Funds'!A:A,'Budgeted Funds'!D:D)","v":true}]
[{"$f":"LEFT(B496,3)","v":"142"},1420150001,{"$f":"_xlfn.XLOOKUP(B496,'FC Master'!Q:Q,'FC Master'!B:B)","v":"142DrgCt0001"},"Pretrial Drug Court Pg-GF",null,null,null,null,null,null,null,null,null,null,null,null,null,null,null,null,"015","0001",{"$f":"_xlfn.XLOOKUP(VALUE(V496),'Budgeted Funds'!A:A,'Budgeted Funds'!D:D)","v":true}]
[{"$f":"LEFT(B497,3)","v":"142"},1420150131,{"$f":"_xlfn.XLOOKUP(B497,'FC Master'!Q:Q,'FC Master'!B:B)","v":"142DrgCt0131"},"Pretrial Drug Court-Drg Ct Pg Fd",null,null,null,null,null,null,null,null,null,null,null,null,null,null,null,null,"015","0131",{"$f":"_xlfn.XLOOKUP(VALUE(V497),'Budgeted Funds'!A:A,'Budgeted Funds'!D:D)","v":true}]
[{"$f":"LEFT(B498,3)","v":"142"},1420160001,{"$f":"_xlfn.XLOOKUP(B498,'FC Master'!Q:Q,'FC Master'!B:B)","v":"142Training0001"},"Pretrial Investigation Unit-GF",null,null,null,null,null,null,null,null,null,null,null,null,null,null,null,null,"016","0001",{"$f":"_xlfn.XLOOKUP(VALUE(V498),'Budgeted Funds'!A:A,'Budgeted Funds'!D:D)","v":true}]
[{"$f":"LEFT(B499,3)","v":"143"},1430100001,{"$f":"_xlfn.XLOOKUP(B499,'FC Master'!Q:Q,'FC Master'!B:B)","v":"143Exc0001"},"JPD Executive-GF",null,null,null,null,null,null,null,null,null,null,null,null,null,null,null,null,"010","0001",{"$f":"_xlfn.XLOOKUP(VALUE(V499),'Budgeted Funds'!A:A,'Budgeted Funds'!D:D)","v":true}]
[{"$f":"LEFT(B500,3)","v":"143"},1430200001,{"$f":"_xlfn.XLOOKUP(B500,'FC Master'!Q:Q,'FC Master'!B:B)","v":"143Atty0001"},"JPD Attorney Staff-GF",null,null,null,null,null,null,null,null,null,null,null,null,null,null,null,null,"020","0001",{"$f":"_xlfn.XLOOKUP(VALUE(V500),'Budgeted Funds'!A:A,'Budgeted Funds'!D:D)","v":true}]
[{"$f":"LEFT(B501,3)","v":"143"},1430300001,{"$f":"_xlfn.XLOOKUP(B501,'FC Master'!Q:Q,'FC Master'!B:B)","v":"143Investigatn0001"},"JPD Investigation Staff-GF",null,null,null,null,null,null,null,null,null,null,null,null,null,null,null,null,"030","0001",{"$f":"_xlfn.XLOOKUP(VALUE(V501),'Budgeted Funds'!A:A,'Budgeted Funds'!D:D)","v":true}]
[{"$f":"LEFT(B502,3)","v":"143"},1430400001,{"$f":"_xlfn.XLOOKUP(B502,'FC Master'!Q:Q,'FC Master'!B:B)","v":"143Adm0001"},"JPD Administrative Staff-GF",null,null,null,null,null,null,null,null,null,null,null,null,null,null,null,null,"040","0001",{"$f":"_xlfn.XLOOKUP(VALUE(V502),'Budgeted Funds'!A:A,'Budgeted Funds'!D:D)","v":true}]
[{"$f":"LEFT(B503,3)","v":"144"},1440010001,{"$f":"_xlfn.XLOOKUP(B503,'FC Master'!Q:Q,'FC Master'!B:B)","v":"144PD0001"},"PD-Chief Public Defender-GF",null,null,null,null,null,null,null,null,null,null,null,null,null,null,null,null,"001","0001",{"$f":"_xlfn.XLOOKUP(VALUE(V503),'Budgeted Funds'!A:A,'Budgeted Funds'!D:D)","v":true}]
[{"$f":"LEFT(B504,3)","v":"144"},1440020001,{"$f":"_xlfn.XLOOKUP(B504,'FC Master'!Q:Q,'FC Master'!B:B)","v":"144Felony0001"},"PDO - Felony Division-GF",null,null,null,null,null,null,null,null,null,null,null,null,null,null,null,null,"002","0001",{"$f":"_xlfn.XLOOKUP(VALUE(V504),'Budgeted Funds'!A:A,'Budgeted Funds'!D:D)","v":true}]
[{"$f":"LEFT(B505,3)","v":"144"},1440030001,{"$f":"_xlfn.XLOOKUP(B505,'FC Master'!Q:Q,'FC Master'!B:B)","v":"144Misd0001"},"PDO - Misdemeanor Division-GF",null,null,null,null,null,null,null,null,null,null,null,null,null,null,null,null,"003","0001",{"$f":"_xlfn.XLOOKUP(VALUE(V505),'Budgeted Funds'!A:A,'Budgeted Funds'!D:D)","v":true}]
[{"$f":"LEFT(B506,3)","v":"144"},1440040001,{"$f":"_xlfn.XLOOKUP(B506,'FC Master'!Q:Q,'FC Master'!B:B)","v":"144Train0001"},"PDO - Training Division-GF",null,null,null,null,null,null,null,null,null,null,null,null,null,null,null,null,"004","0001",{"$f":"_xlfn.XLOOKUP(VALUE(V506),'Budgeted Funds'!A:A,'Budgeted Funds'!D:D)","v":true}]
[{"$f":"LEFT(B507,3)","v":"144"},1440050001,{"$f":"_xlfn.XLOOKUP(B507,'FC Master'!Q:Q,'FC Master'!B:B)","v":"144EXC0001"},"PDO - JHD Executive-GF",null,null,null,null,null,null,null,null,null,null,null,null,null,null,null,null,"005","0001",{"$f":"_xlfn.XLOOKUP(VALUE(V507),'Budgeted Funds'!A:A,'Budgeted Funds'!D:D)","v":true}]
[{"$f":"LEFT(B508,3)","v":"144"},1440060001,{"$f":"_xlfn.XLOOKUP(B508,'FC Master'!Q:Q,'FC Master'!B:B)","v":"144ATTY0001"},"PDO - JHD Attorney Staff-GF",null,null,null,null,null,null,null,null,null,null,null,null,null,null,null,null,"006","0001",{"$f":"_xlfn.XLOOKUP(VALUE(V508),'Budgeted Funds'!A:A,'Budgeted Funds'!D:D)","v":true}]
[{"$f":"LEFT(B509,3)","v":"144"},1440070001,{"$f":"_xlfn.XLOOKUP(B509,'FC Master'!Q:Q,'FC Master'!B:B)","v":"144ADM0001"},"PDO - JHD Administrative Staff-GF",null,null,null,null,null,null,null,null,null,null,null,null,null,null,null,null,"007","0001",{"$f":"_xlfn.XLOOKUP(VALUE(V509),'Budgeted Funds'!A:A,'Budgeted Funds'!D:D)","v":true}]
[{"$f":"LEFT(B510,3)","v":"144"},1440080001,{"$f":"_xlfn.XLOOKUP(B510,'FC Master'!Q:Q,'FC Master'!B:B)","v":"144MTLHLHPD0001"},"PDO - Mental Health Pub Def-GF",null,null,null,null,null,null,null,null,null,null,null,null,null,null,null,null,"008","0001",{"$f":"_xlfn.XLOOKUP(VALUE(V510),'Budgeted Funds'!A:A,'Budgeted Funds'!D:D)","v":true}]
[{"$f":"LEFT(B511,3)","v":"145"},1450010001,{"$f":"_xlfn.XLOOKUP(B511,'FC Master'!Q:Q,'FC Master'!B:B)","v":"145GAAdm0001"},"JvP GA-Admin-GF",null,null,null,null,null,null,null,null,null,null,null,null,null,null,null,null,"001","0001",{"$f":"_xlfn.XLOOKUP(VALUE(V511),'Budgeted Funds'!A:A,'Budgeted Funds'!D:D)","v":true}]
[{"$f":"LEFT(B512,3)","v":"145"},1450020001,{"$f":"_xlfn.XLOOKUP(B512,'FC Master'!Q:Q,'FC Master'!B:B)","v":"145GAFinSrvc0001"},"JvP GA-Financial Srvcs-GF",null,null,null,null,null,null,null,null,null,null,null,null,null,null,null,null,"002","0001",{"$f":"_xlfn.XLOOKUP(VALUE(V512),'Budgeted Funds'!A:A,'Budgeted Funds'!D:D)","v":true}]
[{"$f":"LEFT(B513,3)","v":"145"},1450030001,{"$f":"_xlfn.XLOOKUP(B513,'FC Master'!Q:Q,'FC Master'!B:B)","v":"145GASuppSrvc0001"},"JvP GA-Support Srvcs-GF",null,null,null,null,null,null,null,null,null,null,null,null,null,null,null,null,"003","0001",{"$f":"_xlfn.XLOOKUP(VALUE(V513),'Budgeted Funds'!A:A,'Budgeted Funds'!D:D)","v":true}]
[{"$f":"LEFT(B514,3)","v":"145"},1450040001,{"$f":"_xlfn.XLOOKUP(B514,'FC Master'!Q:Q,'FC Master'!B:B)","v":"145GAGenCnsl0001"},"JvP GA-General Counsel-GF",null,null,null,null,null,null,null,null,null,null,null,null,null,null,null,null,"004","0001",{"$f":"_xlfn.XLOOKUP(VALUE(V514),'Budgeted Funds'!A:A,'Budgeted Funds'!D:D)","v":true}]
[{"$f":"LEFT(B515,3)","v":"145"},1450050001,{"$f":"_xlfn.XLOOKUP(B515,'FC Master'!Q:Q,'FC Master'!B:B)","v":"145HRAdm0001"},"JvP HR&SD Admin-GF",null,null,null,null,null,null,null,null,null,null,null,null,null,null,null,null,"005","0001",{"$f":"_xlfn.XLOOKUP(VALUE(V515),'Budgeted Funds'!A:A,'Budgeted Funds'!D:D)","v":true}]
[{"$f":"LEFT(B516,3)","v":"145"},1450060001,{"$f":"_xlfn.XLOOKUP(B516,'FC Master'!Q:Q,'FC Master'!B:B)","v":"145HR0001"},"JvP HR&SD HR-GF",null,null,null,null,null,null,null,null,null,null,null,null,null,null,null,null,{"$f":"MID(B516,4,3)","v":"006"},{"$f":"MID(B516,7,4)","v":"0001"},{"$f":"_xlfn.XLOOKUP(VALUE(V516),'Budgeted Funds'!A:A,'Budgeted Funds'!D:D)","v":true}]
[{"$f":"LEFT(B517,3)","v":"145"},1450070001,{"$f":"_xlfn.XLOOKUP(B517,'FC Master'!Q:Q,'FC Master'!B:B)","v":"145StfDev0001"},"JvP HR&SD Staff Dev-GF",null,null,null,null,null,null,null,null,null,null,null,null,null,null,null,null,"007","0001",{"$f":"_xlfn.XLOOKUP(VALUE(V517),'Budgeted Funds'!A:A,'Budgeted Funds'!D:D)","v":true}]
[{"$f":"LEFT(B518,3)","v":"145"},1450080001,{"$f":"_xlfn.XLOOKUP(B518,'FC Master'!Q:Q,'FC Master'!B:B)","v":"145ITAdm0001"},"JvP IT/P and R Admin-GF",null,null,null,null,null,null,null,null,null,null,null,null,null,null,null,null,"008","0001",{"$f":"_xlfn.XLOOKUP(VALUE(V518),'Budgeted Funds'!A:A,'Budgeted Funds'!D:D)","v":true}]
[{"$f":"LEFT(B519,3)","v":"145"},1450090001,{"$f":"_xlfn.XLOOKUP(B519,'FC Master'!Q:Q,'FC Master'!B:B)","v":"145ITRsh0001"},"JvP IT/P and R Research-GF",null,null,null,null,null,null,null,null,null,null,null,null,null,null,null,null,"009","0001",{"$f":"_xlfn.XLOOKUP(VALUE(V519),'Budgeted Funds'!A:A,'Budgeted Funds'!D:D)","v":true}]
[{"$f":"LEFT(B520,3)","v":"145"},1450100001,{"$f":"_xlfn.XLOOKUP(B520,'FC Master'!Q:Q,'FC Master'!B:B)","v":"145ITSysSppt0001"},"JvP IT/P and R Systems Support-GF",null,null,null,null,null,null,null,null,null,null,null,null,null,null,null,null,"010","0001",{"$f":"_xlfn.XLOOKUP(VALUE(V520),'Budgeted Funds'!A:A,'Budgeted Funds'!D:D)","v":true}]
[{"$f":"LEFT(B521,3)","v":"145"},1450110001,{"$f":"_xlfn.XLOOKUP(B521,'FC Master'!Q:Q,'FC Master'!B:B)","v":"145FOAdm0001"},"JvP Fac Ops Admin-GF",null,null,null,null,null,null,null,null,null,null,null,null,null,null,null,null,"011","0001",{"$f":"_xlfn.XLOOKUP(VALUE(V521),'Budgeted Funds'!A:A,'Budgeted Funds'!D:D)","v":true}]
[{"$f":"LEFT(B522,3)","v":"145"},1450120001,{"$f":"_xlfn.XLOOKUP(B522,'FC Master'!Q:Q,'FC Master'!B:B)","v":"145FOBdMnt0001"},"JvP Fac Ops Building Maint-GF",null,null,null,null,null,null,null,null,null,null,null,null,null,null,null,null,"012","0001",{"$f":"_xlfn.XLOOKUP(VALUE(V522),'Budgeted Funds'!A:A,'Budgeted Funds'!D:D)","v":true}]
[{"$f":"LEFT(B523,3)","v":"145"},1450130001,{"$f":"_xlfn.XLOOKUP(B523,'FC Master'!Q:Q,'FC Master'!B:B)","v":"145FOHseKp0001"},"JvP Fac Ops HouseKeeping-GF",null,null,null,null,null,null,null,null,null,null,null,null,null,null,null,null,"013","0001",{"$f":"_xlfn.XLOOKUP(VALUE(V523),'Budgeted Funds'!A:A,'Budgeted Funds'!D:D)","v":true}]
[{"$f":"LEFT(B524,3)","v":"145"},1450140001,{"$f":"_xlfn.XLOOKUP(B524,'FC Master'!Q:Q,'FC Master'!B:B)","v":"145FdSrvc0001"},"JvP Food Srvcs-GF",null,null,null,null,null,null,null,null,null,null,null,null,null,null,null,null,"014","0001",{"$f":"_xlfn.XLOOKUP(VALUE(V524),'Budgeted Funds'!A:A,'Budgeted Funds'!D:D)","v":true}]
[{"$f":"LEFT(B525,3)","v":"145"},1450150001,{"$f":"_xlfn.XLOOKUP(B525,'FC Master'!Q:Q,'FC Master'!B:B)","v":"145HSMed0001"},"JvP Hlth Srvcs Medical-GF",null,null,null,null,null,null,null,null,null,null,null,null,null,null,null,null,"015","0001",{"$f":"_xlfn.XLOOKUP(VALUE(V525),'Budgeted Funds'!A:A,'Budgeted Funds'!D:D)","v":true}]
[{"$f":"LEFT(B526,3)","v":"145"},1450160001,{"$f":"_xlfn.XLOOKUP(B526,'FC Master'!Q:Q,'FC Master'!B:B)","v":"145HSAsmts0001"},"JvP Hlth Srvcs Assessments-GF",null,null,null,null,null,null,null,null,null,null,null,null,null,null,null,null,"016","0001",{"$f":"_xlfn.XLOOKUP(VALUE(V526),'Budgeted Funds'!A:A,'Budgeted Funds'!D:D)","v":true}]
[{"$f":"LEFT(B527,3)","v":"145"},1450170001,{"$f":"_xlfn.XLOOKUP(B527,'FC Master'!Q:Q,'FC Master'!B:B)","v":"145LglSvcJud0001"},"JvP Legal Srvcs Judicial-GF",null,null,null,null,null,null,null,null,null,null,null,null,null,null,null,null,"017","0001",{"$f":"_xlfn.XLOOKUP(VALUE(V527),'Budgeted Funds'!A:A,'Budgeted Funds'!D:D)","v":true}]
[{"$f":"LEFT(B528,3)","v":"145"},1450170126,{"$f":"_xlfn.XLOOKUP(B528,'FC Master'!Q:Q,'FC Master'!B:B)","v":"145LglSvcJud0126"},"JvP Legal Srvcs Judicial-Truancy Ct Fd",null,null,null,null,null,null,null,null,null,null,null,null,null,null,null,null,"017","0126",{"$f":"_xlfn.XLOOKUP(VALUE(V528),'Budgeted Funds'!A:A,'Budgeted Funds'!D:D)","v":false}]
[{"$f":"LEFT(B529,3)","v":"145"},1450180001,{"$f":"_xlfn.XLOOKUP(B529,'FC Master'!Q:Q,'FC Master'!B:B)","v":"145LglSvcLgl0001"},"JvP Legal Srvcs Legal-GF",null,null,null,null,null,null,null,null,null,null,null,null,null,null,null,null,"018","0001",{"$f":"_xlfn.XLOOKUP(VALUE(V529),'Budgeted Funds'!A:A,'Budgeted Funds'!D:D)","v":true}]
[{"$f":"LEFT(B530,3)","v":"145"},1450180126,{"$f":"_xlfn.XLOOKUP(B530,'FC Master'!Q:Q,'FC Master'!B:B)","v":"145LglSvcLgl0126"},"JvP Legal Srvcs Legal-Truancy Ct Fd",null,null,null,null,null,null,null,null,null,null,null,null,null,null,null,null,"018","0126",{"$f":"_xlfn.XLOOKUP(VALUE(V530),'Budgeted Funds'!A:A,'Budgeted Funds'!D:D)","v":false}]
[{"$f":"LEFT(B531,3)","v":"145"},1450190001,{"$f":"_xlfn.XLOOKUP(B531,'FC Master'!Q:Q,'FC Master'!B:B)","v":"145CrtSvcAdm0001"},"JvP Crt Srvcs Admin-GF",null,null,null,null,null,null,null,null,null,null,null,null,null,null,null,null,"019","0001",{"$f":"_xlfn.XLOOKUP(VALUE(V531),'Budgeted Funds'!A:A,'Budgeted Funds'!D:D)","v":true}]
[{"$f":"LEFT(B532,3)","v":"145"},1450200001,{"$f":"_xlfn.XLOOKUP(B532,'FC Master'!Q:Q,'FC Master'!B:B)","v":"145CrtSvcCtUnit0001"},"JvP Crt Srvcs Court Unit-GF",null,null,null,null,null,null,null,null,null,null,null,null,null,null,null,null,"020","0001",{"$f":"_xlfn.XLOOKUP(VALUE(V532),'Budgeted Funds'!A:A,'Budgeted Funds'!D:D)","v":true}]
[{"$f":"LEFT(B533,3)","v":"145"},1450210001,{"$f":"_xlfn.XLOOKUP(B533,'FC Master'!Q:Q,'FC Master'!B:B)","v":"145CrtSvcDefPro0001"},"JvP Crt Srvcs Def Prosecution Unit-GF",null,null,null,null,null,null,null,null,null,null,null,null,null,null,null,null,"021","0001",{"$f":"_xlfn.XLOOKUP(VALUE(V533),'Budgeted Funds'!A:A,'Budgeted Funds'!D:D)","v":true}]
[{"$f":"LEFT(B534,3)","v":"145"},1450220001,{"$f":"_xlfn.XLOOKUP(B534,'FC Master'!Q:Q,'FC Master'!B:B)","v":"145CrtSvcIntake0001"},"JvP Crt Srvcs Intake-GF",null,null,null,null,null,null,null,null,null,null,null,null,null,null,null,null,"022","0001",{"$f":"_xlfn.XLOOKUP(VALUE(V534),'Budgeted Funds'!A:A,'Budgeted Funds'!D:D)","v":true}]
[{"$f":"LEFT(B535,3)","v":"145"},1450230001,{"$f":"_xlfn.XLOOKUP(B535,'FC Master'!Q:Q,'FC Master'!B:B)","v":"145CrtSvcVicSvc0001"},"JvP Crt Srvcs Victim Srvcs-GF",null,null,null,null,null,null,null,null,null,null,null,null,null,null,null,null,"023","0001",{"$f":"_xlfn.XLOOKUP(VALUE(V535),'Budgeted Funds'!A:A,'Budgeted Funds'!D:D)","v":true}]
[{"$f":"LEFT(B536,3)","v":"145"},1450240001,{"$f":"_xlfn.XLOOKUP(B536,'FC Master'!Q:Q,'FC Master'!B:B)","v":"145PSAdm0001"},"JvP Prob Srvcs Admin-GF",null,null,null,null,null,null,null,null,null,null,null,null,null,null,null,null,"024","0001",{"$f":"_xlfn.XLOOKUP(VALUE(V536),'Budgeted Funds'!A:A,'Budgeted Funds'!D:D)","v":true}]
[{"$f":"LEFT(B537,3)","v":"145"},1450250001,{"$f":"_xlfn.XLOOKUP(B537,'FC Master'!Q:Q,'FC Master'!B:B)","v":"145PSFldUnit0001"},"JvP Prob Srvcs Field Unit-GF",null,null,null,null,null,null,null,null,null,null,null,null,null,null,null,null,"025","0001",{"$f":"_xlfn.XLOOKUP(VALUE(V537),'Budgeted Funds'!A:A,'Budgeted Funds'!D:D)","v":true}]
[{"$f":"LEFT(B538,3)","v":"145"},1450260001,{"$f":"_xlfn.XLOOKUP(B538,'FC Master'!Q:Q,'FC Master'!B:B)","v":"145PSISP0001"},"JvP Prob Srvcs ISP-GF",null,null,null,null,null,null,null,null,null,null,null,null,null,null,null,null,"026","0001",{"$f":"_xlfn.XLOOKUP(VALUE(V538),'Budgeted Funds'!A:A,'Budgeted Funds'!D:D)","v":true}]
[{"$f":"LEFT(B539,3)","v":"145"},1450270001,{"$f":"_xlfn.XLOOKUP(B539,'FC Master'!Q:Q,'FC Master'!B:B)","v":"145PSRsrcs0001"},"JvP Prob Srvcs Resources-GF",null,null,null,null,null,null,null,null,null,null,null,null,null,null,null,null,"027","0001",{"$f":"_xlfn.XLOOKUP(VALUE(V539),'Budgeted Funds'!A:A,'Budgeted Funds'!D:D)","v":true}]
[{"$f":"LEFT(B540,3)","v":"145"},1450280001,{"$f":"_xlfn.XLOOKUP(B540,'FC Master'!Q:Q,'FC Master'!B:B)","v":"145PSSNDP0001"},"JvP Prob Srvcs-Special Needs Div Prgms-G",null,null,null,null,null,null,null,null,null,null,null,null,null,null,null,null,"028","0001",{"$f":"_xlfn.XLOOKUP(VALUE(V540),'Budgeted Funds'!A:A,'Budgeted Funds'!D:D)","v":true}]
[{"$f":"LEFT(B541,3)","v":"145"},1450290001,{"$f":"_xlfn.XLOOKUP(B541,'FC Master'!Q:Q,'FC Master'!B:B)","v":"145PSCOU0001"},"JvP Prob Srvcs Cross Over Unit-GF",null,null,null,null,null,null,null,null,null,null,null,null,null,null,null,null,"029","0001",{"$f":"_xlfn.XLOOKUP(VALUE(V541),'Budgeted Funds'!A:A,'Budgeted Funds'!D:D)","v":true}]
[{"$f":"LEFT(B542,3)","v":"145"},1450300001,{"$f":"_xlfn.XLOOKUP(B542,'FC Master'!Q:Q,'FC Master'!B:B)","v":"145SSAdm0001"},"JvP Spec Srvcs Admin-GF",null,null,null,null,null,null,null,null,null,null,null,null,null,null,null,null,"030","0001",{"$f":"_xlfn.XLOOKUP(VALUE(V542),'Budgeted Funds'!A:A,'Budgeted Funds'!D:D)","v":true}]
[{"$f":"LEFT(B543,3)","v":"145"},1450310001,{"$f":"_xlfn.XLOOKUP(B543,'FC Master'!Q:Q,'FC Master'!B:B)","v":"145SSCRCG-CC0001"},"JvP Spec Srvcs CRCG & Care Coord-GF",null,null,null,null,null,null,null,null,null,null,null,null,null,null,null,null,"031","0001",{"$f":"_xlfn.XLOOKUP(VALUE(V543),'Budgeted Funds'!A:A,'Budgeted Funds'!D:D)","v":true}]
[{"$f":"LEFT(B544,3)","v":"145"},1450320001,{"$f":"_xlfn.XLOOKUP(B544,'FC Master'!Q:Q,'FC Master'!B:B)","v":"145SSDrgCt0001"},"JvP Spec Srvcs Drug Court-GF",null,null,null,null,null,null,null,null,null,null,null,null,null,null,null,null,"032","0001",{"$f":"_xlfn.XLOOKUP(VALUE(V544),'Budgeted Funds'!A:A,'Budgeted Funds'!D:D)","v":true}]
[{"$f":"LEFT(B545,3)","v":"145"},1450330001,{"$f":"_xlfn.XLOOKUP(B545,'FC Master'!Q:Q,'FC Master'!B:B)","v":"145SSEnrchCtr0001"},"JvP Spec Srvcs Enrichment Center-GF",null,null,null,null,null,null,null,null,null,null,null,null,null,null,null,null,"033","0001",{"$f":"_xlfn.XLOOKUP(VALUE(V545),'Budgeted Funds'!A:A,'Budgeted Funds'!D:D)","v":true}]
[{"$f":"LEFT(B546,3)","v":"145"},1450340001,{"$f":"_xlfn.XLOOKUP(B546,'FC Master'!Q:Q,'FC Master'!B:B)","v":"145SSMntlHlthCt0001"},"JvP Spec Srvcs Mental Health Court-GF",null,null,null,null,null,null,null,null,null,null,null,null,null,null,null,null,"034","0001",{"$f":"_xlfn.XLOOKUP(VALUE(V546),'Budgeted Funds'!A:A,'Budgeted Funds'!D:D)","v":true}]
[{"$f":"LEFT(B547,3)","v":"145"},1450350001,{"$f":"_xlfn.XLOOKUP(B547,'FC Master'!Q:Q,'FC Master'!B:B)","v":"145SSTrncyCt0001"},"JvP Spec Srvcs Truancy Court-GF",null,null,null,null,null,null,null,null,null,null,null,null,null,null,null,null,"035","0001",{"$f":"_xlfn.XLOOKUP(VALUE(V547),'Budgeted Funds'!A:A,'Budgeted Funds'!D:D)","v":true}]
[{"$f":"LEFT(B548,3)","v":"145"},1450360001,{"$f":"_xlfn.XLOOKUP(B548,'FC Master'!Q:Q,'FC Master'!B:B)","v":"145SSJJAEP0001"},"JvP Spec Srvcs JJAEP-GF",null,null,null,null,null,null,null,null,null,null,null,null,null,null,null,null,"036","0001",{"$f":"_xlfn.XLOOKUP(VALUE(V548),'Budgeted Funds'!A:A,'Budgeted Funds'!D:D)","v":true}]
[{"$f":"LEFT(B549,3)","v":"145"},1450360107,{"$f":"_xlfn.XLOOKUP(B549,'FC Master'!Q:Q,'FC Master'!B:B)","v":"145SSJJAEP0107"},"JvP Spec Srvcs JJAEP Fd",null,null,null,null,null,null,null,null,null,null,null,null,null,null,null,null,"036","0107",{"$f":"_xlfn.XLOOKUP(VALUE(V549),'Budgeted Funds'!A:A,'Budgeted Funds'!D:D)","v":true}]
[{"$f":"LEFT(B550,3)","v":"145"},1450360148,{"$f":"_xlfn.XLOOKUP(B550,'FC Master'!Q:Q,'FC Master'!B:B)","v":"145SSJJAEP0148"},"JvP Spec Srvcs JJAEP-TCCES Fd",null,null,null,null,null,null,null,null,null,null,null,null,null,null,null,null,"036","0148",{"$f":"_xlfn.XLOOKUP(VALUE(V550),'Budgeted Funds'!A:A,'Budgeted Funds'!D:D)","v":false}]
[{"$f":"LEFT(B551,3)","v":"145"},1450370001,{"$f":"_xlfn.XLOOKUP(B551,'FC Master'!Q:Q,'FC Master'!B:B)","v":"145DetSvc0001"},"JvP Detention Srvcs-GF",null,null,null,null,null,null,null,null,null,null,null,null,null,null,null,null,"037","0001",{"$f":"_xlfn.XLOOKUP(VALUE(V551),'Budgeted Funds'!A:A,'Budgeted Funds'!D:D)","v":true}]
[{"$f":"LEFT(B552,3)","v":"145"},1450380001,{"$f":"_xlfn.XLOOKUP(B552,'FC Master'!Q:Q,'FC Master'!B:B)","v":"145RSAdm0001"},"JvP Res Srvcs Admin-GF",null,null,null,null,null,null,null,null,null,null,null,null,null,null,null,null,"038","0001",{"$f":"_xlfn.XLOOKUP(VALUE(V552),'Budgeted Funds'!A:A,'Budgeted Funds'!D:D)","v":true}]
[{"$f":"LEFT(B553,3)","v":"145"},1450390001,{"$f":"_xlfn.XLOOKUP(B553,'FC Master'!Q:Q,'FC Master'!B:B)","v":"145RSPgmSupp0001"},"JvP Res Srvcs Program Support-GF",null,null,null,null,null,null,null,null,null,null,null,null,null,null,null,null,"039","0001",{"$f":"_xlfn.XLOOKUP(VALUE(V553),'Budgeted Funds'!A:A,'Budgeted Funds'!D:D)","v":true}]
[{"$f":"LEFT(B554,3)","v":"145"},1450400001,{"$f":"_xlfn.XLOOKUP(B554,'FC Master'!Q:Q,'FC Master'!B:B)","v":"145RSDirCare0001"},"JvP Res Srvcs Direct Care-GF",null,null,null,null,null,null,null,null,null,null,null,null,null,null,null,null,"040","0001",{"$f":"_xlfn.XLOOKUP(VALUE(V554),'Budgeted Funds'!A:A,'Budgeted Funds'!D:D)","v":true}]
[{"$f":"LEFT(B555,3)","v":"145"},1450410001,{"$f":"_xlfn.XLOOKUP(B555,'FC Master'!Q:Q,'FC Master'!B:B)","v":"145TrtmtAdm0001"},"JvP Trmt and Couns Admin-GF",null,null,null,null,null,null,null,null,null,null,null,null,null,null,null,null,"041","0001",{"$f":"_xlfn.XLOOKUP(VALUE(V555),'Budgeted Funds'!A:A,'Budgeted Funds'!D:D)","v":true}]
[{"$f":"LEFT(B556,3)","v":"145"},1450420001,{"$f":"_xlfn.XLOOKUP(B556,'FC Master'!Q:Q,'FC Master'!B:B)","v":"145TrtmtCouns0001"},"JvP Trmt and Couns Crisis Counseling-GF",null,null,null,null,null,null,null,null,null,null,null,null,null,null,null,null,"042","0001",{"$f":"_xlfn.XLOOKUP(VALUE(V556),'Budgeted Funds'!A:A,'Budgeted Funds'!D:D)","v":true}]
[{"$f":"LEFT(B557,3)","v":"145"},1450430001,{"$f":"_xlfn.XLOOKUP(B557,'FC Master'!Q:Q,'FC Master'!B:B)","v":"145TrtmtTrtmt0001"},"JvP Trmt and Couns Treatment-GF",null,null,null,null,null,null,null,null,null,null,null,null,null,null,null,null,"043","0001",{"$f":"_xlfn.XLOOKUP(VALUE(V557),'Budgeted Funds'!A:A,'Budgeted Funds'!D:D)","v":true}]
[{"$f":"LEFT(B558,3)","v":"145"},1450440001,{"$f":"_xlfn.XLOOKUP(B558,'FC Master'!Q:Q,'FC Master'!B:B)","v":"145DROAdm0001"},"JvP Dom Rel Off Admin-GF",null,null,null,null,null,null,null,null,null,null,null,null,null,null,null,null,"044","0001",{"$f":"_xlfn.XLOOKUP(VALUE(V558),'Budgeted Funds'!A:A,'Budgeted Funds'!D:D)","v":true}]
[{"$f":"LEFT(B559,3)","v":"145"},1450440148,{"$f":"_xlfn.XLOOKUP(B559,'FC Master'!Q:Q,'FC Master'!B:B)","v":"145DROAdm0148"},"JvP Dom Rel Off Admin-TCCES Fd",null,null,null,null,null,null,null,null,null,null,null,null,null,null,null,null,"044","0148",{"$f":"_xlfn.XLOOKUP(VALUE(V559),'Budgeted Funds'!A:A,'Budgeted Funds'!D:D)","v":false}]
[{"$f":"LEFT(B560,3)","v":"145"},1450450001,{"$f":"_xlfn.XLOOKUP(B560,'FC Master'!Q:Q,'FC Master'!B:B)","v":"145DROCustSrv0001"},"JvP Dom Rel Off Customer Srvc Opers-GF",null,null,null,null,null,null,null,null,null,null,null,null,null,null,null,null,"045","0001",{"$f":"_xlfn.XLOOKUP(VALUE(V560),'Budgeted Funds'!A:A,'Budgeted Funds'!D:D)","v":true}]
[{"$f":"LEFT(B561,3)","v":"145"},1450460001,{"$f":"_xlfn.XLOOKUP(B561,'FC Master'!Q:Q,'FC Master'!B:B)","v":"145DROFamCt0001"},"JvP Dom Rel Off Family Court Srvcs-GF",null,null,null,null,null,null,null,null,null,null,null,null,null,null,null,null,"046","0001",{"$f":"_xlfn.XLOOKUP(VALUE(V561),'Budgeted Funds'!A:A,'Budgeted Funds'!D:D)","v":true}]
[{"$f":"LEFT(B562,3)","v":"145"},1450470001,{"$f":"_xlfn.XLOOKUP(B562,'FC Master'!Q:Q,'FC Master'!B:B)","v":"145DROLglSvc0001"},"JvP Dom Rel Off Legal Srvcs-GF",null,null,null,null,null,null,null,null,null,null,null,null,null,null,null,null,"047","0001",{"$f":"_xlfn.XLOOKUP(VALUE(V562),'Budgeted Funds'!A:A,'Budgeted Funds'!D:D)","v":true}]
[{"$f":"LEFT(B563,3)","v":"145"},1450480001,{"$f":"_xlfn.XLOOKUP(B563,'FC Master'!Q:Q,'FC Master'!B:B)","v":"145PSSexOff0001"},"JvP Prob Srvcs Sex Offender Unit-GF",null,null,null,null,null,null,null,null,null,null,null,null,null,null,null,null,"048","0001",{"$f":"_xlfn.XLOOKUP(VALUE(V563),'Budgeted Funds'!A:A,'Budgeted Funds'!D:D)","v":true}]
[{"$f":"LEFT(B564,3)","v":"145"},1450560001,{"$f":"_xlfn.XLOOKUP(B564,'FC Master'!Q:Q,'FC Master'!B:B)","v":"145NonDiv0001"},"JvP NonDivisional-GF",null,null,null,null,null,null,null,null,null,null,null,null,null,null,null,null,"056","0001",{"$f":"_xlfn.XLOOKUP(VALUE(V564),'Budgeted Funds'!A:A,'Budgeted Funds'!D:D)","v":true}]
[{"$f":"LEFT(B565,3)","v":"145"},1450560106,{"$f":"_xlfn.XLOOKUP(B565,'FC Master'!Q:Q,'FC Master'!B:B)","v":"145NonDiv0106"},"JvP NonDivisional-Juv Fee Fd",null,null,null,null,null,null,null,null,null,null,null,null,null,null,null,null,"056","0106",{"$f":"_xlfn.XLOOKUP(VALUE(V565),'Budgeted Funds'!A:A,'Budgeted Funds'!D:D)","v":true}]
[{"$f":"LEFT(B566,3)","v":"145"},1450560114,{"$f":"_xlfn.XLOOKUP(B566,'FC Master'!Q:Q,'FC Master'!B:B)","v":"145NonDiv0114"},"JvP NonDivisional-Juv Def Pros Fd",null,null,null,null,null,null,null,null,null,null,null,null,null,null,null,null,"056","0114",{"$f":"_xlfn.XLOOKUP(VALUE(V566),'Budgeted Funds'!A:A,'Budgeted Funds'!D:D)","v":true}]
[{"$f":"LEFT(B567,3)","v":"145"},1450560119,{"$f":"_xlfn.XLOOKUP(B567,'FC Master'!Q:Q,'FC Master'!B:B)","v":"145NonDiv0119"},"JvP NonDivisional-Juv Del Prvntn Fd",null,null,null,null,null,null,null,null,null,null,null,null,null,null,null,null,"056","0119",{"$f":"_xlfn.XLOOKUP(VALUE(V567),'Budgeted Funds'!A:A,'Budgeted Funds'!D:D)","v":true}]
[{"$f":"LEFT(B568,3)","v":"145"},1450560144,{"$f":"_xlfn.XLOOKUP(B568,'FC Master'!Q:Q,'FC Master'!B:B)","v":"145NonDiv0144"},"JvP NonDivisional-Unclaimed Juv Rest",null,null,null,null,null,null,null,null,null,null,null,null,null,null,null,null,"056","0144",{"$f":"_xlfn.XLOOKUP(VALUE(V568),'Budgeted Funds'!A:A,'Budgeted Funds'!D:D)","v":true}]
[{"$f":"LEFT(B569,3)","v":"145"},1450560146,{"$f":"_xlfn.XLOOKUP(B569,'FC Master'!Q:Q,'FC Master'!B:B)","v":"145NonDiv0146"},"JvP NonDivisional-Gardner House",null,null,null,null,null,null,null,null,null,null,null,null,null,null,null,null,"056","0146",{"$f":"_xlfn.XLOOKUP(VALUE(V569),'Budgeted Funds'!A:A,'Budgeted Funds'!D:D)","v":true}]
[{"$f":"LEFT(B570,3)","v":"145"},1450564044,{"$f":"_xlfn.XLOOKUP(B570,'FC Master'!Q:Q,'FC Master'!B:B)","v":"145NonDiv4044"},"JvP NonDivisional-CO 2005",null,null,null,null,null,null,null,null,null,null,null,null,null,null,null,null,"056","4044",{"$f":"_xlfn.XLOOKUP(VALUE(V570),'Budgeted Funds'!A:A,'Budgeted Funds'!D:D)","v":{"$error":"#N/A"}}]
[{"$f":"LEFT(B571,3)","v":"145"},1450600001,{"$f":"_xlfn.XLOOKUP(B571,'FC Master'!Q:Q,'FC Master'!B:B)","v":"145AdmSvc0001"},"JvP Admin Services-GF",null,null,null,null,null,null,null,null,null,null,null,null,null,null,null,null,"060","0001",{"$f":"_xlfn.XLOOKUP(VALUE(V571),'Budgeted Funds'!A:A,'Budgeted Funds'!D:D)","v":true}]
[{"$f":"LEFT(B572,3)","v":"145"},1450610001,{"$f":"_xlfn.XLOOKUP(B572,'FC Master'!Q:Q,'FC Master'!B:B)","v":"145FacOp0001"},"JvP Facilities Operations-GF",null,null,null,null,null,null,null,null,null,null,null,null,null,null,null,null,"061","0001",{"$f":"_xlfn.XLOOKUP(VALUE(V572),'Budgeted Funds'!A:A,'Budgeted Funds'!D:D)","v":true}]
[{"$f":"LEFT(B573,3)","v":"145"},1450620001,{"$f":"_xlfn.XLOOKUP(B573,'FC Master'!Q:Q,'FC Master'!B:B)","v":"145FdSvc0001"},"JvP Food Services-GF",null,null,null,null,null,null,null,null,null,null,null,null,null,null,null,null,"062","0001",{"$f":"_xlfn.XLOOKUP(VALUE(V573),'Budgeted Funds'!A:A,'Budgeted Funds'!D:D)","v":true}]
[{"$f":"LEFT(B574,3)","v":"145"},1450630001,{"$f":"_xlfn.XLOOKUP(B574,'FC Master'!Q:Q,'FC Master'!B:B)","v":"145HlthSvc0001"},"JvP Health Services-GF",null,null,null,null,null,null,null,null,null,null,null,null,null,null,null,null,"063","0001",{"$f":"_xlfn.XLOOKUP(VALUE(V574),'Budgeted Funds'!A:A,'Budgeted Funds'!D:D)","v":true}]
[{"$f":"LEFT(B575,3)","v":"145"},1450640001,{"$f":"_xlfn.XLOOKUP(B575,'FC Master'!Q:Q,'FC Master'!B:B)","v":"145CtAdm0001"},"JvP Court Administration-GF",null,null,null,null,null,null,null,null,null,null,null,null,null,null,null,null,"064","0001",{"$f":"_xlfn.XLOOKUP(VALUE(V575),'Budgeted Funds'!A:A,'Budgeted Funds'!D:D)","v":true}]
[{"$f":"LEFT(B576,3)","v":"145"},1450650001,{"$f":"_xlfn.XLOOKUP(B576,'FC Master'!Q:Q,'FC Master'!B:B)","v":"145ProbSvc0001"},"JvP Probation Services-GF",null,null,null,null,null,null,null,null,null,null,null,null,null,null,null,null,"065","0001",{"$f":"_xlfn.XLOOKUP(VALUE(V576),'Budgeted Funds'!A:A,'Budgeted Funds'!D:D)","v":true}]
[{"$f":"LEFT(B577,3)","v":"145"},1450660001,{"$f":"_xlfn.XLOOKUP(B577,'FC Master'!Q:Q,'FC Master'!B:B)","v":"145CtSvc0001"},"JvP Court Services-GF",null,null,null,null,null,null,null,null,null,null,null,null,null,null,null,null,"066","0001",{"$f":"_xlfn.XLOOKUP(VALUE(V577),'Budgeted Funds'!A:A,'Budgeted Funds'!D:D)","v":true}]
[{"$f":"LEFT(B578,3)","v":"145"},1450670001,{"$f":"_xlfn.XLOOKUP(B578,'FC Master'!Q:Q,'FC Master'!B:B)","v":"145DetS0001"},"JvP Detention Services-GF",null,null,null,null,null,null,null,null,null,null,null,null,null,null,null,null,"067","0001",{"$f":"_xlfn.XLOOKUP(VALUE(V578),'Budgeted Funds'!A:A,'Budgeted Funds'!D:D)","v":true}]
[{"$f":"LEFT(B579,3)","v":"145"},1450680001,{"$f":"_xlfn.XLOOKUP(B579,'FC Master'!Q:Q,'FC Master'!B:B)","v":"145ResSvc0001"},"JvP Residential Services-GF",null,null,null,null,null,null,null,null,null,null,null,null,null,null,null,null,"068","0001",{"$f":"_xlfn.XLOOKUP(VALUE(V579),'Budgeted Funds'!A:A,'Budgeted Funds'!D:D)","v":true}]
[{"$f":"LEFT(B580,3)","v":"145"},1450690001,{"$f":"_xlfn.XLOOKUP(B580,'FC Master'!Q:Q,'FC Master'!B:B)","v":"145DomRel0001"},"JvP Domestic Relations-GF",null,null,null,null,null,null,null,null,null,null,null,null,null,null,null,null,{"$f":"MID(B580,4,3)","v":"069"},{"$f":"MID(B580,7,4)","v":"0001"},{"$f":"_xlfn.XLOOKUP(VALUE(V580),'Budgeted Funds'!A:A,'Budgeted Funds'!D:D)","v":true}]
[{"$f":"LEFT(B581,3)","v":"145"},1450700001,{"$f":"_xlfn.XLOOKUP(B581,'FC Master'!Q:Q,'FC Master'!B:B)","v":"145SocServ0001"},"JvP Social Services-GF",null,null,null,null,null,null,null,null,null,null,null,null,null,null,null,null,"070","0001",{"$f":"_xlfn.XLOOKUP(VALUE(V581),'Budgeted Funds'!A:A,'Budgeted Funds'!D:D)","v":true}]
[{"$f":"LEFT(B582,3)","v":"145"},1450710001,{"$f":"_xlfn.XLOOKUP(B582,'FC Master'!Q:Q,'FC Master'!B:B)","v":"145ITRsh0001"},"Juv IT/Planning and Research",null,null,null,null,null,null,null,null,null,null,null,null,null,null,null,null,"071","0001",{"$f":"_xlfn.XLOOKUP(VALUE(V582),'Budgeted Funds'!A:A,'Budgeted Funds'!D:D)","v":true}]
[{"$f":"LEFT(B583,3)","v":"145"},1458000001,{"$f":"_xlfn.XLOOKUP(B583,'FC Master'!Q:Q,'FC Master'!B:B)","v":"145CARJucSv0001"},"JvP CAR-JuvSvs GF",null,null,null,null,null,null,null,null,null,null,null,null,null,null,null,null,"800","0001",{"$f":"_xlfn.XLOOKUP(VALUE(V583),'Budgeted Funds'!A:A,'Budgeted Funds'!D:D)","v":true}]
[{"$f":"LEFT(B584,3)","v":"147"},1470010001,{"$f":"_xlfn.XLOOKUP(B584,'FC Master'!Q:Q,'FC Master'!B:B)","v":"147TechComm0001"},"Emrg Svs Tech and Comm-GF",null,null,null,null,null,null,null,null,null,null,null,null,null,null,null,null,"001","0001",{"$f":"_xlfn.XLOOKUP(VALUE(V584),'Budgeted Funds'!A:A,'Budgeted Funds'!D:D)","v":true}]
[{"$f":"LEFT(B585,3)","v":"147"},1470010142,{"$f":"_xlfn.XLOOKUP(B585,'FC Master'!Q:Q,'FC Master'!B:B)","v":"147TechComm0142"},"Emrg Svs Tech and Comm-CAPGOG 911 Fees",null,null,null,null,null,null,null,null,null,null,null,null,null,null,null,null,"001","0142",{"$f":"_xlfn.XLOOKUP(VALUE(V585),'Budgeted Funds'!A:A,'Budgeted Funds'!D:D)","v":true}]
[{"$f":"LEFT(B586,3)","v":"147"},1470014044,{"$f":"_xlfn.XLOOKUP(B586,'FC Master'!Q:Q,'FC Master'!B:B)","v":"147TechComm4044"},"Emrg Svs Tech and Comm-CO 2005",null,null,null,null,null,null,null,null,null,null,null,null,null,null,null,null,"001","4044",{"$f":"_xlfn.XLOOKUP(VALUE(V586),'Budgeted Funds'!A:A,'Budgeted Funds'!D:D)","v":{"$error":"#N/A"}}]
[{"$f":"LEFT(B587,3)","v":"147"},1470020001,{"$f":"_xlfn.XLOOKUP(B587,'FC Master'!Q:Q,'FC Master'!B:B)","v":"147FireMshl0001"},"Emrg Svs Fire Marshal-GF",null,null,null,null,null,null,null,null,null,null,null,null,null,null,null,null,"002","0001",{"$f":"_xlfn.XLOOKUP(VALUE(V587),'Budgeted Funds'!A:A,'Budgeted Funds'!D:D)","v":true}]
[{"$f":"LEFT(B588,3)","v":"147"},1470020118,{"$f":"_xlfn.XLOOKUP(B588,'FC Master'!Q:Q,'FC Master'!B:B)","v":"147FireMshl0118"},"Emrg Svs Fire Marshal-LEOSE",null,null,null,null,null,null,null,null,null,null,null,null,null,null,null,null,"002","0118",{"$f":"_xlfn.XLOOKUP(VALUE(V588),'Budgeted Funds'!A:A,'Budgeted Funds'!D:D)","v":true}]
[{"$f":"LEFT(B589,3)","v":"147"},1470020134,{"$f":"_xlfn.XLOOKUP(B589,'FC Master'!Q:Q,'FC Master'!B:B)","v":"147FireMshl0134"},"Emrg Svs Fire Marshal-Fire Code Fd",null,null,null,null,null,null,null,null,null,null,null,null,null,null,null,null,"002","0134",{"$f":"_xlfn.XLOOKUP(VALUE(V589),'Budgeted Funds'!A:A,'Budgeted Funds'!D:D)","v":true}]
[{"$f":"LEFT(B590,3)","v":"147"},1470030001,{"$f":"_xlfn.XLOOKUP(B590,'FC Master'!Q:Q,'FC Master'!B:B)","v":"147Adm0001"},"Emrg Svs Adm-GF",null,null,null,null,null,null,null,null,null,null,null,null,null,null,null,null,"003","0001",{"$f":"_xlfn.XLOOKUP(VALUE(V590),'Budgeted Funds'!A:A,'Budgeted Funds'!D:D)","v":true}]
[{"$f":"LEFT(B591,3)","v":"147"},1470040001,{"$f":"_xlfn.XLOOKUP(B591,'FC Master'!Q:Q,'FC Master'!B:B)","v":"147EmrgMgmt0001"},"Emrg Svs Emergency Mgmt-GF",null,null,null,null,null,null,null,null,null,null,null,null,null,null,null,null,"004","0001",{"$f":"_xlfn.XLOOKUP(VALUE(V591),'Budgeted Funds'!A:A,'Budgeted Funds'!D:D)","v":true}]
[{"$f":"LEFT(B592,3)","v":"147"},1470050001,{"$f":"_xlfn.XLOOKUP(B592,'FC Master'!Q:Q,'FC Master'!B:B)","v":"147FrstResp0001"},"Emrg Svs First Responders",null,null,null,null,null,null,null,null,null,null,null,null,null,null,null,null,"005","0001",{"$f":"_xlfn.XLOOKUP(VALUE(V592),'Budgeted Funds'!A:A,'Budgeted Funds'!D:D)","v":true}]
[{"$f":"LEFT(B593,3)","v":"147"},1470060001,{"$f":"_xlfn.XLOOKUP(B593,'FC Master'!Q:Q,'FC Master'!B:B)","v":"147EmrgEvent0001"},"Emrg Svs Emergency Event-GF",null,null,null,null,null,null,null,null,null,null,null,null,null,null,null,null,"006","0001",{"$f":"_xlfn.XLOOKUP(VALUE(V593),'Budgeted Funds'!A:A,'Budgeted Funds'!D:D)","v":true}]
[{"$f":"LEFT(B594,3)","v":"147"},1478000001,{"$f":"_xlfn.XLOOKUP(B594,'FC Master'!Q:Q,'FC Master'!B:B)","v":"147CAREmrgMgmt0001"},"Emrg Svs CAR-EmrgMgmt GF",null,null,null,null,null,null,null,null,null,null,null,null,null,null,null,null,"800","0001",{"$f":"_xlfn.XLOOKUP(VALUE(V594),'Budgeted Funds'!A:A,'Budgeted Funds'!D:D)","v":true}]
[{"$f":"LEFT(B595,3)","v":"149"},1490010001,{"$f":"_xlfn.XLOOKUP(B595,'FC Master'!Q:Q,'FC Master'!B:B)","v":"149Adm0001"},"TNR Administrative Services-GF",null,null,null,null,null,null,null,null,null,null,null,null,null,null,null,null,"001","0001",{"$f":"_xlfn.XLOOKUP(VALUE(V595),'Budgeted Funds'!A:A,'Budgeted Funds'!D:D)","v":true}]
[{"$f":"LEFT(B596,3)","v":"149"},1490010145,{"$f":"_xlfn.XLOOKUP(B596,'FC Master'!Q:Q,'FC Master'!B:B)","v":"149Adm0145"},"TNR Administrative Services-RdBg Fd",null,null,null,null,null,null,null,null,null,null,null,null,null,null,null,null,"001","0145",{"$f":"_xlfn.XLOOKUP(VALUE(V596),'Budgeted Funds'!A:A,'Budgeted Funds'!D:D)","v":true}]
[{"$f":"LEFT(B597,3)","v":"149"},1490014050,{"$f":"_xlfn.XLOOKUP(B597,'FC Master'!Q:Q,'FC Master'!B:B)","v":"149Adm4050"},"TNR Administrative Services-CCPF",null,null,null,null,null,null,null,null,null,null,null,null,null,null,null,null,"001","4050",{"$f":"_xlfn.XLOOKUP(VALUE(V597),'Budgeted Funds'!A:A,'Budgeted Funds'!D:D)","v":false}]
[{"$f":"LEFT(B598,3)","v":"149"},1490015001,{"$f":"_xlfn.XLOOKUP(B598,'FC Master'!Q:Q,'FC Master'!B:B)","v":"149Adm5001"},"TNR Administrative Services-CCPF",null,null,null,null,null,null,null,null,null,null,null,null,null,null,null,null,"001","5001",{"$f":"_xlfn.XLOOKUP(VALUE(V598),'Budgeted Funds'!A:A,'Budgeted Funds'!D:D)","v":{"$error":"#N/A"}}]
[{"$f":"LEFT(B599,3)","v":"149"},1490020001,{"$f":"_xlfn.XLOOKUP(B599,'FC Master'!Q:Q,'FC Master'!B:B)","v":"149CtlFiles0001"},"TNR Central Files-GF",null,null,null,null,null,null,null,null,null,null,null,null,null,null,null,null,"002","0001",{"$f":"_xlfn.XLOOKUP(VALUE(V599),'Budgeted Funds'!A:A,'Budgeted Funds'!D:D)","v":true}]
[{"$f":"LEFT(B600,3)","v":"149"},1490020145,{"$f":"_xlfn.XLOOKUP(B600,'FC Master'!Q:Q,'FC Master'!B:B)","v":"149CtlFiles0145"},"TNR Central Files-RdBg Fd",null,null,null,null,null,null,null,null,null,null,null,null,null,null,null,null,"002","0145",{"$f":"_xlfn.XLOOKUP(VALUE(V600),'Budgeted Funds'!A:A,'Budgeted Funds'!D:D)","v":true}]
[{"$f":"LEFT(B601,3)","v":"149"},1490030001,{"$f":"_xlfn.XLOOKUP(B601,'FC Master'!Q:Q,'FC Master'!B:B)","v":"149ExcOfc0001"},"TNR Executive Office-GF",null,null,null,null,null,null,null,null,null,null,null,null,null,null,null,null,"003","0001",{"$f":"_xlfn.XLOOKUP(VALUE(V601),'Budgeted Funds'!A:A,'Budgeted Funds'!D:D)","v":true}]
[{"$f":"LEFT(B602,3)","v":"149"},1490030145,{"$f":"_xlfn.XLOOKUP(B602,'FC Master'!Q:Q,'FC Master'!B:B)","v":"149ExcOfc0145"},"TNR Executive Office-RdBg Fd",null,null,null,null,null,null,null,null,null,null,null,null,null,null,null,null,"003","0145",{"$f":"_xlfn.XLOOKUP(VALUE(V602),'Budgeted Funds'!A:A,'Budgeted Funds'!D:D)","v":true}]
[{"$f":"LEFT(B603,3)","v":"149"},1490040001,{"$f":"_xlfn.XLOOKUP(B603,'FC Master'!Q:Q,'FC Master'!B:B)","v":"149HumRes0001"},"TNR Human Resources-GF",null,null,null,null,null,null,null,null,null,null,null,null,null,null,null,null,"004","0001",{"$f":"_xlfn.XLOOKUP(VALUE(V603),'Budgeted Funds'!A:A,'Budgeted Funds'!D:D)","v":true}]
[{"$f":"LEFT(B604,3)","v":"149"},1490040145,{"$f":"_xlfn.XLOOKUP(B604,'FC Master'!Q:Q,'FC Master'!B:B)","v":"149HumRes0145"},"TNR Human Resources-RdBg Fd",null,null,null,null,null,null,null,null,null,null,null,null,null,null,null,null,"004","0145",{"$f":"_xlfn.XLOOKUP(VALUE(V604),'Budgeted Funds'!A:A,'Budgeted Funds'!D:D)","v":true}]
[{"$f":"LEFT(B605,3)","v":"149"},1490050001,{"$f":"_xlfn.XLOOKUP(B605,'FC Master'!Q:Q,'FC Master'!B:B)","v":"149Mailroom0001"},"TNR Mailroom Services-GF",null,null,null,null,null,null,null,null,null,null,null,null,null,null,null,null,"005","0001",{"$f":"_xlfn.XLOOKUP(VALUE(V605),'Budgeted Funds'!A:A,'Budgeted Funds'!D:D)","v":true}]
[{"$f":"LEFT(B606,3)","v":"149"},1490050145,{"$f":"_xlfn.XLOOKUP(B606,'FC Master'!Q:Q,'FC Master'!B:B)","v":"149Mailroom0145"},"TNR Mailroom Services-RdBg Fd",null,null,null,null,null,null,null,null,null,null,null,null,null,null,null,null,"005","0145",{"$f":"_xlfn.XLOOKUP(VALUE(V606),'Budgeted Funds'!A:A,'Budgeted Funds'!D:D)","v":true}]
[{"$f":"LEFT(B607,3)","v":"149"},1490060001,{"$f":"_xlfn.XLOOKUP(B607,'FC Master'!Q:Q,'FC Master'!B:B)","v":"149FinSvs0001"},"TNR Financial Services-GF",null,null,null,null,null,null,null,null,null,null,null,null,null,null,null,null,"006","0001",{"$f":"_xlfn.XLOOKUP(VALUE(V607),'Budgeted Funds'!A:A,'Budgeted Funds'!D:D)","v":true}]
[{"$f":"LEFT(B608,3)","v":"149"},1490060145,{"$f":"_xlfn.XLOOKUP(B608,'FC Master'!Q:Q,'FC Master'!B:B)","v":"149FinSvs0145"},"TNR Financial Services-RdBg Fd",null,null,null,null,null,null,null,null,null,null,null,null,null,null,null,null,"006","0145",{"$f":"_xlfn.XLOOKUP(VALUE(V608),'Budgeted Funds'!A:A,'Budgeted Funds'!D:D)","v":true}]
[{"$f":"LEFT(B609,3)","v":"149"},1490070001,{"$f":"_xlfn.XLOOKUP(B609,'FC Master'!Q:Q,'FC Master'!B:B)","v":"149RiskSafety0001"},"TNR Risk/Safety-GF",null,null,null,null,null,null,null,null,null,null,null,null,null,null,null,null,"007","0001",{"$f":"_xlfn.XLOOKUP(VALUE(V609),'Budgeted Funds'!A:A,'Budgeted Funds'!D:D)","v":true}]
[{"$f":"LEFT(B610,3)","v":"149"},1490070145,{"$f":"_xlfn.XLOOKUP(B610,'FC Master'!Q:Q,'FC Master'!B:B)","v":"149RiskSafety0145"},"TNR Risk/Safety-RdBg Fd",null,null,null,null,null,null,null,null,null,null,null,null,null,null,null,null,"007","0145",{"$f":"_xlfn.XLOOKUP(VALUE(V610),'Budgeted Funds'!A:A,'Budgeted Funds'!D:D)","v":true}]
[{"$f":"LEFT(B611,3)","v":"149"},1490074050,{"$f":"_xlfn.XLOOKUP(B611,'FC Master'!Q:Q,'FC Master'!B:B)","v":"149RiskSafety4050"},"TNR Risk/Safety-CCPF",null,null,null,null,null,null,null,null,null,null,null,null,null,null,null,null,"007","4050",{"$f":"_xlfn.XLOOKUP(VALUE(V611),'Budgeted Funds'!A:A,'Budgeted Funds'!D:D)","v":false}]
[{"$f":"LEFT(B612,3)","v":"149"},1490075001,{"$f":"_xlfn.XLOOKUP(B612,'FC Master'!Q:Q,'FC Master'!B:B)","v":"149RiskSafety5001"},"TNR Risk/Safety-CCPF",null,null,null,null,null,null,null,null,null,null,null,null,null,null,null,null,"007","5001",{"$f":"_xlfn.XLOOKUP(VALUE(V612),'Budgeted Funds'!A:A,'Budgeted Funds'!D:D)","v":{"$error":"#N/A"}}]
[{"$f":"LEFT(B613,3)","v":"149"},1490080001,{"$f":"_xlfn.XLOOKUP(B613,'FC Master'!Q:Q,'FC Master'!B:B)","v":"149CompPlng0001"},"TNR Comprehensive Planning-GF",null,null,null,null,null,null,null,null,null,null,null,null,null,null,null,null,"008","0001",{"$f":"_xlfn.XLOOKUP(VALUE(V613),'Budgeted Funds'!A:A,'Budgeted Funds'!D:D)","v":true}]
[{"$f":"LEFT(B614,3)","v":"149"},1490080145,{"$f":"_xlfn.XLOOKUP(B614,'FC Master'!Q:Q,'FC Master'!B:B)","v":"149CompPlng0145"},"TNR Comprehensive Planning-RdBg Fd",null,null,null,null,null,null,null,null,null,null,null,null,null,null,null,null,"008","0145",{"$f":"_xlfn.XLOOKUP(VALUE(V614),'Budgeted Funds'!A:A,'Budgeted Funds'!D:D)","v":true}]
[{"$f":"LEFT(B615,3)","v":"149"},1490090001,{"$f":"_xlfn.XLOOKUP(B615,'FC Master'!Q:Q,'FC Master'!B:B)","v":"149GIS0001"},"TNR GIS-GF",null,null,null,null,null,null,null,null,null,null,null,null,null,null,null,null,"009","0001",{"$f":"_xlfn.XLOOKUP(VALUE(V615),'Budgeted Funds'!A:A,'Budgeted Funds'!D:D)","v":true}]
[{"$f":"LEFT(B616,3)","v":"149"},1490090145,{"$f":"_xlfn.XLOOKUP(B616,'FC Master'!Q:Q,'FC Master'!B:B)","v":"149GIS0145"},"TNR GIS-RdBg Fd",null,null,null,null,null,null,null,null,null,null,null,null,null,null,null,null,"009","0145",{"$f":"_xlfn.XLOOKUP(VALUE(V616),'Budgeted Funds'!A:A,'Budgeted Funds'!D:D)","v":true}]
[{"$f":"LEFT(B617,3)","v":"149"},1490100001,{"$f":"_xlfn.XLOOKUP(B617,'FC Master'!Q:Q,'FC Master'!B:B)","v":"149Planning0001"},"TNR Planning-GF",null,null,null,null,null,null,null,null,null,null,null,null,null,null,null,null,"010","0001",{"$f":"_xlfn.XLOOKUP(VALUE(V617),'Budgeted Funds'!A:A,'Budgeted Funds'!D:D)","v":true}]
[{"$f":"LEFT(B618,3)","v":"149"},1490100145,{"$f":"_xlfn.XLOOKUP(B618,'FC Master'!Q:Q,'FC Master'!B:B)","v":"149Planning0145"},"TNR Planning-RdBg Fd",null,null,null,null,null,null,null,null,null,null,null,null,null,null,null,null,"010","0145",{"$f":"_xlfn.XLOOKUP(VALUE(V618),'Budgeted Funds'!A:A,'Budgeted Funds'!D:D)","v":true}]
[{"$f":"LEFT(B619,3)","v":"149"},1490110001,{"$f":"_xlfn.XLOOKUP(B619,'FC Master'!Q:Q,'FC Master'!B:B)","v":"149EnvQlty0001"},"TNR Environmental Quality-GF",null,null,null,null,null,null,null,null,null,null,null,null,null,null,null,null,"011","0001",{"$f":"_xlfn.XLOOKUP(VALUE(V619),'Budgeted Funds'!A:A,'Budgeted Funds'!D:D)","v":true}]
[{"$f":"LEFT(B620,3)","v":"149"},1490110002,{"$f":"_xlfn.XLOOKUP(B620,'FC Master'!Q:Q,'FC Master'!B:B)","v":"149EnvQlty0002"},"TNR Environmental Quality-700 Lavaca-GF",null,null,null,null,null,null,null,null,null,null,null,null,null,null,null,null,"011","0002",{"$f":"_xlfn.XLOOKUP(VALUE(V620),'Budgeted Funds'!A:A,'Budgeted Funds'!D:D)","v":true}]
[{"$f":"LEFT(B621,3)","v":"149"},1490110145,{"$f":"_xlfn.XLOOKUP(B621,'FC Master'!Q:Q,'FC Master'!B:B)","v":"149EnvQlty0145"},"TNR Environmental Quality-RdBg Fd",null,null,null,null,null,null,null,null,null,null,null,null,null,null,null,null,"011","0145",{"$f":"_xlfn.XLOOKUP(VALUE(V621),'Budgeted Funds'!A:A,'Budgeted Funds'!D:D)","v":true}]
[{"$f":"LEFT(B622,3)","v":"149"},1490120001,{"$f":"_xlfn.XLOOKUP(B622,'FC Master'!Q:Q,'FC Master'!B:B)","v":"149NatRsrcs0001"},"TNR Natural Resources-GF",null,null,null,null,null,null,null,null,null,null,null,null,null,null,null,null,"012","0001",{"$f":"_xlfn.XLOOKUP(VALUE(V622),'Budgeted Funds'!A:A,'Budgeted Funds'!D:D)","v":true}]
[{"$f":"LEFT(B623,3)","v":"149"},1490120115,{"$f":"_xlfn.XLOOKUP(B623,'FC Master'!Q:Q,'FC Master'!B:B)","v":"149NatRsrcs0115"},"TNR Natural Resources-BCCP",null,null,null,null,null,null,null,null,null,null,null,null,null,null,null,null,"012","0115",{"$f":"_xlfn.XLOOKUP(VALUE(V623),'Budgeted Funds'!A:A,'Budgeted Funds'!D:D)","v":true}]
[{"$f":"LEFT(B624,3)","v":"149"},1490124034,{"$f":"_xlfn.XLOOKUP(B624,'FC Master'!Q:Q,'FC Master'!B:B)","v":"149NatRsrcs4034"},"TNR Natural Resources-Cap Proj",null,null,null,null,null,null,null,null,null,null,null,null,null,null,null,null,"012","4034",{"$f":"_xlfn.XLOOKUP(VALUE(V624),'Budgeted Funds'!A:A,'Budgeted Funds'!D:D)","v":{"$error":"#N/A"}}]
[{"$f":"LEFT(B625,3)","v":"149"},1490130001,{"$f":"_xlfn.XLOOKUP(B625,'FC Master'!Q:Q,'FC Master'!B:B)","v":"149DevSvs0001"},"TNR Development Services-GF",null,null,null,null,null,null,null,null,null,null,null,null,null,null,null,null,"013","0001",{"$f":"_xlfn.XLOOKUP(VALUE(V625),'Budgeted Funds'!A:A,'Budgeted Funds'!D:D)","v":true}]
[{"$f":"LEFT(B626,3)","v":"149"},1490134057,{"$f":"_xlfn.XLOOKUP(B626,'FC Master'!Q:Q,'FC Master'!B:B)","v":"149DevSvs4057"},"TNR Development Services-Cap Proj",null,null,null,null,null,null,null,null,null,null,null,null,null,null,null,null,"013","4057",{"$f":"_xlfn.XLOOKUP(VALUE(V626),'Budgeted Funds'!A:A,'Budgeted Funds'!D:D)","v":{"$error":"#N/A"}}]
[{"$f":"LEFT(B627,3)","v":"149"},1490140001,{"$f":"_xlfn.XLOOKUP(B627,'FC Master'!Q:Q,'FC Master'!B:B)","v":"149ESvCenter0001"},"TNR East Service Center-GF",null,null,null,null,null,null,null,null,null,null,null,null,null,null,null,null,"014","0001",{"$f":"_xlfn.XLOOKUP(VALUE(V627),'Budgeted Funds'!A:A,'Budgeted Funds'!D:D)","v":true}]
[{"$f":"LEFT(B628,3)","v":"149"},1490144056,{"$f":"_xlfn.XLOOKUP(B628,'FC Master'!Q:Q,'FC Master'!B:B)","v":"149ESvCenter4056"},"TNR East Service Center-Cap Proj",null,null,null,null,null,null,null,null,null,null,null,null,null,null,null,null,"014","4056",{"$f":"_xlfn.XLOOKUP(VALUE(V628),'Budgeted Funds'!A:A,'Budgeted Funds'!D:D)","v":{"$error":"#N/A"}}]
[{"$f":"LEFT(B629,3)","v":"149"},1490150001,{"$f":"_xlfn.XLOOKUP(B629,'FC Master'!Q:Q,'FC Master'!B:B)","v":"149StmwtMgmt0001"},"TNR Stormwater Management-GF",null,null,null,null,null,null,null,null,null,null,null,null,null,null,null,null,"015","0001",{"$f":"_xlfn.XLOOKUP(VALUE(V629),'Budgeted Funds'!A:A,'Budgeted Funds'!D:D)","v":true}]
[{"$f":"LEFT(B630,3)","v":"149"},1490160001,{"$f":"_xlfn.XLOOKUP(B630,'FC Master'!Q:Q,'FC Master'!B:B)","v":"149OnStSewage0001"},"TNR Onsite Sewage Facilities-GF",null,null,null,null,null,null,null,null,null,null,null,null,null,null,null,null,"016","0001",{"$f":"_xlfn.XLOOKUP(VALUE(V630),'Budgeted Funds'!A:A,'Budgeted Funds'!D:D)","v":true}]
[{"$f":"LEFT(B631,3)","v":"149"},1490170145,{"$f":"_xlfn.XLOOKUP(B631,'FC Master'!Q:Q,'FC Master'!B:B)","v":"149RMGIS0145"},"TNR RM-GIS-RdBg Fd",null,null,null,null,null,null,null,null,null,null,null,null,null,null,null,null,"017","0145",{"$f":"_xlfn.XLOOKUP(VALUE(V631),'Budgeted Funds'!A:A,'Budgeted Funds'!D:D)","v":true}]
[{"$f":"LEFT(B632,3)","v":"149"},1490180001,{"$f":"_xlfn.XLOOKUP(B632,'FC Master'!Q:Q,'FC Master'!B:B)","v":"149Survey0001"},"TNR Survey-GF",null,null,null,null,null,null,null,null,null,null,null,null,null,null,null,null,"018","0001",{"$f":"_xlfn.XLOOKUP(VALUE(V632),'Budgeted Funds'!A:A,'Budgeted Funds'!D:D)","v":true}]
[{"$f":"LEFT(B633,3)","v":"149"},1490180145,{"$f":"_xlfn.XLOOKUP(B633,'FC Master'!Q:Q,'FC Master'!B:B)","v":"149Survey0145"},"TNR Survey-RdBg Fd",null,null,null,null,null,null,null,null,null,null,null,null,null,null,null,null,"018","0145",{"$f":"_xlfn.XLOOKUP(VALUE(V633),'Budgeted Funds'!A:A,'Budgeted Funds'!D:D)","v":true}]
[{"$f":"LEFT(B634,3)","v":"149"},1490190001,{"$f":"_xlfn.XLOOKUP(B634,'FC Master'!Q:Q,'FC Master'!B:B)","v":"149RdCapBgRplmt0001"},"TNR Rd Capacity and Bg Rplmt-GF",null,null,null,null,null,null,null,null,null,null,null,null,null,null,null,null,"019","0001",{"$f":"_xlfn.XLOOKUP(VALUE(V634),'Budgeted Funds'!A:A,'Budgeted Funds'!D:D)","v":true}]
[{"$f":"LEFT(B635,3)","v":"149"},1490190145,{"$f":"_xlfn.XLOOKUP(B635,'FC Master'!Q:Q,'FC Master'!B:B)","v":"149RdCapBgRplmt0145"},"TNR Rd Capacity and Bg Rplmt-RdBg Fd",null,null,null,null,null,null,null,null,null,null,null,null,null,null,null,null,"019","0145",{"$f":"_xlfn.XLOOKUP(VALUE(V635),'Budgeted Funds'!A:A,'Budgeted Funds'!D:D)","v":true}]
[{"$f":"LEFT(B636,3)","v":"149"},1490195003,{"$f":"_xlfn.XLOOKUP(B636,'FC Master'!Q:Q,'FC Master'!B:B)","v":"149RdCapBgRplmt5003"},"TNR Rd Capacity and Bg Rplmt-TNRSidewalk",null,null,null,null,null,null,null,null,null,null,null,null,null,null,null,null,"019","5003",{"$f":"_xlfn.XLOOKUP(VALUE(V636),'Budgeted Funds'!A:A,'Budgeted Funds'!D:D)","v":{"$error":"#N/A"}}]
[{"$f":"LEFT(B637,3)","v":"149"},1490200001,{"$f":"_xlfn.XLOOKUP(B637,'FC Master'!Q:Q,'FC Master'!B:B)","v":"149RdBgMnt0001"},"TNR Rd & Bridge Maintenance-GF",null,null,null,null,null,null,null,null,null,null,null,null,null,null,null,null,"020","0001",{"$f":"_xlfn.XLOOKUP(VALUE(V637),'Budgeted Funds'!A:A,'Budgeted Funds'!D:D)","v":true}]
[{"$f":"LEFT(B638,3)","v":"149"},1490200145,{"$f":"_xlfn.XLOOKUP(B638,'FC Master'!Q:Q,'FC Master'!B:B)","v":"149RdBgMnt0145"},"TNR Rd & Bridge Maintenance-RdBg Fd",null,null,null,null,null,null,null,null,null,null,null,null,null,null,null,null,"020","0145",{"$f":"_xlfn.XLOOKUP(VALUE(V638),'Budgeted Funds'!A:A,'Budgeted Funds'!D:D)","v":true}]
[{"$f":"LEFT(B639,3)","v":"149"},1490210001,{"$f":"_xlfn.XLOOKUP(B639,'FC Master'!Q:Q,'FC Master'!B:B)","v":"149SignShopSvs0001"},"TNR Sign Shop Services-GF",null,null,null,null,null,null,null,null,null,null,null,null,null,null,null,null,"021","0001",{"$f":"_xlfn.XLOOKUP(VALUE(V639),'Budgeted Funds'!A:A,'Budgeted Funds'!D:D)","v":true}]
[{"$f":"LEFT(B640,3)","v":"149"},1490210145,{"$f":"_xlfn.XLOOKUP(B640,'FC Master'!Q:Q,'FC Master'!B:B)","v":"149SignShopSvs0145"},"TNR Sign Shop Services-RdBg Fd",null,null,null,null,null,null,null,null,null,null,null,null,null,null,null,null,"021","0145",{"$f":"_xlfn.XLOOKUP(VALUE(V640),'Budgeted Funds'!A:A,'Budgeted Funds'!D:D)","v":true}]
[{"$f":"LEFT(B641,3)","v":"149"},1490220001,{"$f":"_xlfn.XLOOKUP(B641,'FC Master'!Q:Q,'FC Master'!B:B)","v":"149ParkSvs0001"},"TNR Park Services-GF",null,null,null,null,null,null,null,null,null,null,null,null,null,null,null,null,"022","0001",{"$f":"_xlfn.XLOOKUP(VALUE(V641),'Budgeted Funds'!A:A,'Budgeted Funds'!D:D)","v":true}]
[{"$f":"LEFT(B642,3)","v":"149"},1490220109,{"$f":"_xlfn.XLOOKUP(B642,'FC Master'!Q:Q,'FC Master'!B:B)","v":"149ParkSvs0109"},"TNR Park Services-LCRA Fd",null,null,null,null,null,null,null,null,null,null,null,null,null,null,null,null,"022","0109",{"$f":"_xlfn.XLOOKUP(VALUE(V642),'Budgeted Funds'!A:A,'Budgeted Funds'!D:D)","v":true}]
[{"$f":"LEFT(B643,3)","v":"149"},1490220123,{"$f":"_xlfn.XLOOKUP(B643,'FC Master'!Q:Q,'FC Master'!B:B)","v":"149ParkSvs0123"},"TNR Park Services-Mary Quilan Fd",null,null,null,null,null,null,null,null,null,null,null,null,null,null,null,null,"022","0123",{"$f":"_xlfn.XLOOKUP(VALUE(V643),'Budgeted Funds'!A:A,'Budgeted Funds'!D:D)","v":true}]
[{"$f":"LEFT(B644,3)","v":"149"},1490230001,{"$f":"_xlfn.XLOOKUP(B644,'FC Master'!Q:Q,'FC Master'!B:B)","v":"149ParkRngrs0001"},"TNR Park Rangers-GF",null,null,null,null,null,null,null,null,null,null,null,null,null,null,null,null,{"$f":"MID(B644,4,3)","v":"023"},{"$f":"MID(B644,7,4)","v":"0001"},{"$f":"_xlfn.XLOOKUP(VALUE(V644),'Budgeted Funds'!A:A,'Budgeted Funds'!D:D)","v":true}]
[{"$f":"LEFT(B645,3)","v":"149"},1490250001,{"$f":"_xlfn.XLOOKUP(B645,'FC Master'!Q:Q,'FC Master'!B:B)","v":"149CustSvs0001"},"TNR Customer Services-GF",null,null,null,null,null,null,null,null,null,null,null,null,null,null,null,null,"025","0001",{"$f":"_xlfn.XLOOKUP(VALUE(V645),'Budgeted Funds'!A:A,'Budgeted Funds'!D:D)","v":true}]
[{"$f":"LEFT(B646,3)","v":"149"},1490250145,{"$f":"_xlfn.XLOOKUP(B646,'FC Master'!Q:Q,'FC Master'!B:B)","v":"149CustSvs0145"},"TNR Customer Services-RdBg Fd",null,null,null,null,null,null,null,null,null,null,null,null,null,null,null,null,"025","0145",{"$f":"_xlfn.XLOOKUP(VALUE(V646),'Budgeted Funds'!A:A,'Budgeted Funds'!D:D)","v":true}]
[{"$f":"LEFT(B647,3)","v":"149"},1490260001,{"$f":"_xlfn.XLOOKUP(B647,'FC Master'!Q:Q,'FC Master'!B:B)","v":"149ChildSafety0001"},"TNR Child Safety Pg-GF",null,null,null,null,null,null,null,null,null,null,null,null,null,null,null,null,"026","0001",{"$f":"_xlfn.XLOOKUP(VALUE(V647),'Budgeted Funds'!A:A,'Budgeted Funds'!D:D)","v":true}]
[{"$f":"LEFT(B648,3)","v":"149"},1490274049,{"$f":"_xlfn.XLOOKUP(B648,'FC Master'!Q:Q,'FC Master'!B:B)","v":"149PksCntrAgy4049"},"TNR Parks Cntrt Agencies-Sbdvn Pkld Fd",null,null,null,null,null,null,null,null,null,null,null,null,null,null,null,null,"027","4049",{"$f":"_xlfn.XLOOKUP(VALUE(V648),'Budgeted Funds'!A:A,'Budgeted Funds'!D:D)","v":{"$error":"#N/A"}}]
[{"$f":"LEFT(B649,3)","v":"149"},1490275000,{"$f":"_xlfn.XLOOKUP(B649,'FC Master'!Q:Q,'FC Master'!B:B)","v":"149PksCntrAgy5000"},"TNR Parks Cntrt Agencies-Sbdvn Pkld Fd",null,null,null,null,null,null,null,null,null,null,null,null,null,null,null,null,"027","5000",{"$f":"_xlfn.XLOOKUP(VALUE(V649),'Budgeted Funds'!A:A,'Budgeted Funds'!D:D)","v":{"$error":"#N/A"}}]
[{"$f":"LEFT(B650,3)","v":"149"},1490280001,{"$f":"_xlfn.XLOOKUP(B650,'FC Master'!Q:Q,'FC Master'!B:B)","v":"149SvtoOthrGov0001"},"TNR Services To Othr Govts-GF",null,null,null,null,null,null,null,null,null,null,null,null,null,null,null,null,"028","0001",{"$f":"_xlfn.XLOOKUP(VALUE(V650),'Budgeted Funds'!A:A,'Budgeted Funds'!D:D)","v":true}]
[{"$f":"LEFT(B651,3)","v":"149"},1490294050,{"$f":"_xlfn.XLOOKUP(B651,'FC Master'!Q:Q,'FC Master'!B:B)","v":"149IntGovAgrmt4050"},"TNR Intergov Agreements-Roads-CCPF",null,null,null,null,null,null,null,null,null,null,null,null,null,null,null,null,"029","4050",{"$f":"_xlfn.XLOOKUP(VALUE(V651),'Budgeted Funds'!A:A,'Budgeted Funds'!D:D)","v":false}]
[{"$f":"LEFT(B652,3)","v":"149"},1490295001,{"$f":"_xlfn.XLOOKUP(B652,'FC Master'!Q:Q,'FC Master'!B:B)","v":"149IntGovAgrmt5001"},"TNR Intergov Agreements-Roads-CCPF",null,null,null,null,null,null,null,null,null,null,null,null,null,null,null,null,"029","5001",{"$f":"_xlfn.XLOOKUP(VALUE(V652),'Budgeted Funds'!A:A,'Budgeted Funds'!D:D)","v":{"$error":"#N/A"}}]
[{"$f":"LEFT(B653,3)","v":"149"},1490304050,{"$f":"_xlfn.XLOOKUP(B653,'FC Master'!Q:Q,'FC Master'!B:B)","v":"149PvtAgncyCnt4050"},"TNR Private Agency Contract-Roads-CCPF",null,null,null,null,null,null,null,null,null,null,null,null,null,null,null,null,"030","4050",{"$f":"_xlfn.XLOOKUP(VALUE(V653),'Budgeted Funds'!A:A,'Budgeted Funds'!D:D)","v":false}]
[{"$f":"LEFT(B654,3)","v":"149"},1490305001,{"$f":"_xlfn.XLOOKUP(B654,'FC Master'!Q:Q,'FC Master'!B:B)","v":"149PvtAgncyCnt5001"},"TNR Private Agency Contract-Roads-CCPF",null,null,null,null,null,null,null,null,null,null,null,null,null,null,null,null,"030","5001",{"$f":"_xlfn.XLOOKUP(VALUE(V654),'Budgeted Funds'!A:A,'Budgeted Funds'!D:D)","v":{"$error":"#N/A"}}]
[{"$f":"LEFT(B655,3)","v":"149"},1490324050,{"$f":"_xlfn.XLOOKUP(B655,'FC Master'!Q:Q,'FC Master'!B:B)","v":"149PvtAgcyCntPks4050"},"TNR Private Agency Contract-Parks-CCPF",null,null,null,null,null,null,null,null,null,null,null,null,null,null,null,null,"032","4050",{"$f":"_xlfn.XLOOKUP(VALUE(V655),'Budgeted Funds'!A:A,'Budgeted Funds'!D:D)","v":false}]
[{"$f":"LEFT(B656,3)","v":"149"},1490325001,{"$f":"_xlfn.XLOOKUP(B656,'FC Master'!Q:Q,'FC Master'!B:B)","v":"149PvtAgcyCntPks5001"},"TNR Private Agency Contract-Parks-CCPF",null,null,null,null,null,null,null,null,null,null,null,null,null,null,null,null,"032","5001",{"$f":"_xlfn.XLOOKUP(VALUE(V656),'Budgeted Funds'!A:A,'Budgeted Funds'!D:D)","v":{"$error":"#N/A"}}]
[{"$f":"LEFT(B657,3)","v":"149"},1490330001,{"$f":"_xlfn.XLOOKUP(B657,'FC Master'!Q:Q,'FC Master'!B:B)","v":"149LakeTravis0001"},"TNR Lake Travis Econ Dev-GF",null,null,null,null,null,null,null,null,null,null,null,null,null,null,null,null,"033","0001",{"$f":"_xlfn.XLOOKUP(VALUE(V657),'Budgeted Funds'!A:A,'Budgeted Funds'!D:D)","v":true}]
[{"$f":"LEFT(B658,3)","v":"149"},1490330147,{"$f":"_xlfn.XLOOKUP(B658,'FC Master'!Q:Q,'FC Master'!B:B)","v":"149LakeTravis0147"},"TNR Lake Travis Econ Dev-Lake Travis Fd",null,null,null,null,null,null,null,null,null,null,null,null,null,null,null,null,"033","0147",{"$f":"_xlfn.XLOOKUP(VALUE(V658),'Budgeted Funds'!A:A,'Budgeted Funds'!D:D)","v":false}]
[{"$f":"LEFT(B659,3)","v":"149"},1490350001,{"$f":"_xlfn.XLOOKUP(B659,'FC Master'!Q:Q,'FC Master'!B:B)","v":"149FleetRdBg0001"},"TNR Fleet Services Roads & Bridges-GF",null,null,null,null,null,null,null,null,null,null,null,null,null,null,null,null,"035","0001",{"$f":"_xlfn.XLOOKUP(VALUE(V659),'Budgeted Funds'!A:A,'Budgeted Funds'!D:D)","v":true}]
[{"$f":"LEFT(B660,3)","v":"149"},1490350145,{"$f":"_xlfn.XLOOKUP(B660,'FC Master'!Q:Q,'FC Master'!B:B)","v":"149FleetRdBg0145"},"TNR Fleet Services Roads & Bridges-RdBg",null,null,null,null,null,null,null,null,null,null,null,null,null,null,null,null,"035","0145",{"$f":"_xlfn.XLOOKUP(VALUE(V660),'Budgeted Funds'!A:A,'Budgeted Funds'!D:D)","v":true}]
[{"$f":"LEFT(B661,3)","v":"149"},1490440001,{"$f":"_xlfn.XLOOKUP(B661,'FC Master'!Q:Q,'FC Master'!B:B)","v":"149BurialSvs0001"},"TNR Burial Services-GF",null,null,null,null,null,null,null,null,null,null,null,null,null,null,null,null,"044","0001",{"$f":"_xlfn.XLOOKUP(VALUE(V661),'Budgeted Funds'!A:A,'Budgeted Funds'!D:D)","v":true}]
[{"$f":"LEFT(B662,3)","v":"149"},1490450001,{"$f":"_xlfn.XLOOKUP(B662,'FC Master'!Q:Q,'FC Master'!B:B)","v":"149TrfrStation0001"},"TNR Transfer Station-GF",null,null,null,null,null,null,null,null,null,null,null,null,null,null,null,null,"045","0001",{"$f":"_xlfn.XLOOKUP(VALUE(V662),'Budgeted Funds'!A:A,'Budgeted Funds'!D:D)","v":true}]
[{"$f":"LEFT(B663,3)","v":"149"},1490460001,{"$f":"_xlfn.XLOOKUP(B663,'FC Master'!Q:Q,'FC Master'!B:B)","v":"149LandfillMntc0001"},"TNR Landfill Maintenance-GF",null,null,null,null,null,null,null,null,null,null,null,null,null,null,null,null,"046","0001",{"$f":"_xlfn.XLOOKUP(VALUE(V663),'Budgeted Funds'!A:A,'Budgeted Funds'!D:D)","v":true}]
[{"$f":"LEFT(B664,3)","v":"149"},1490470001,{"$f":"_xlfn.XLOOKUP(B664,'FC Master'!Q:Q,'FC Master'!B:B)","v":"149EmerResponse0001"},"TNR Emergency Response-GF",null,null,null,null,null,null,null,null,null,null,null,null,null,null,null,null,"047","0001",{"$f":"_xlfn.XLOOKUP(VALUE(V664),'Budgeted Funds'!A:A,'Budgeted Funds'!D:D)","v":true}]
[{"$f":"LEFT(B665,3)","v":"149"},1497760001,{"$f":"_xlfn.XLOOKUP(B665,'FC Master'!Q:Q,'FC Master'!B:B)","v":"149RskMgtClmPks0001"},"TNR Risk Mgmt Claim-Parks",null,null,null,null,null,null,null,null,null,null,null,null,null,null,null,null,"776","0001",{"$f":"_xlfn.XLOOKUP(VALUE(V665),'Budgeted Funds'!A:A,'Budgeted Funds'!D:D)","v":true}]
[{"$f":"LEFT(B666,3)","v":"149"},1497770001,{"$f":"_xlfn.XLOOKUP(B666,'FC Master'!Q:Q,'FC Master'!B:B)","v":"149RskMgtClmFlt0001"},"TNR Risk Mgmt Claim-Fleet",null,null,null,null,null,null,null,null,null,null,null,null,null,null,null,null,"777","0001",{"$f":"_xlfn.XLOOKUP(VALUE(V666),'Budgeted Funds'!A:A,'Budgeted Funds'!D:D)","v":true}]
[{"$f":"LEFT(B667,3)","v":"149"},1498000001,{"$f":"_xlfn.XLOOKUP(B667,'FC Master'!Q:Q,'FC Master'!B:B)","v":"149CARRdBg0001"},"TNR CAR- Roads & Bridges GF",null,null,null,null,null,null,null,null,null,null,null,null,null,null,null,null,"800","0001",{"$f":"_xlfn.XLOOKUP(VALUE(V667),'Budgeted Funds'!A:A,'Budgeted Funds'!D:D)","v":true}]
[{"$f":"LEFT(B668,3)","v":"149"},1498010001,{"$f":"_xlfn.XLOOKUP(B668,'FC Master'!Q:Q,'FC Master'!B:B)","v":"149CARDrng0001"},"TNR CAR-Drng GF",null,null,null,null,null,null,null,null,null,null,null,null,null,null,null,null,"801","0001",{"$f":"_xlfn.XLOOKUP(VALUE(V668),'Budgeted Funds'!A:A,'Budgeted Funds'!D:D)","v":true}]
[{"$f":"LEFT(B669,3)","v":"149"},1498020001,{"$f":"_xlfn.XLOOKUP(B669,'FC Master'!Q:Q,'FC Master'!B:B)","v":"149CARSanitation0001"},"TNR CAR-Sanitation GF",null,null,null,null,null,null,null,null,null,null,null,null,null,null,null,null,"802","0001",{"$f":"_xlfn.XLOOKUP(VALUE(V669),'Budgeted Funds'!A:A,'Budgeted Funds'!D:D)","v":true}]
[{"$f":"LEFT(B670,3)","v":"149"},1498030001,{"$f":"_xlfn.XLOOKUP(B670,'FC Master'!Q:Q,'FC Master'!B:B)","v":"149CARParksRec0001"},"TNR CAR- Parks & Rec GF",null,null,null,null,null,null,null,null,null,null,null,null,null,null,null,null,"803","0001",{"$f":"_xlfn.XLOOKUP(VALUE(V670),'Budgeted Funds'!A:A,'Budgeted Funds'!D:D)","v":true}]
[{"$f":"LEFT(B671,3)","v":"149"},1498040001,{"$f":"_xlfn.XLOOKUP(B671,'FC Master'!Q:Q,'FC Master'!B:B)","v":"149CARGenAdm0001"},"TNR CAR-GenAdm GF",null,null,null,null,null,null,null,null,null,null,null,null,null,null,null,null,"804","0001",{"$f":"_xlfn.XLOOKUP(VALUE(V671),'Budgeted Funds'!A:A,'Budgeted Funds'!D:D)","v":true}]
[{"$f":"LEFT(B672,3)","v":"149"},1498050001,{"$f":"_xlfn.XLOOKUP(B672,'FC Master'!Q:Q,'FC Master'!B:B)","v":"149CARCrmJs0001"},"TNR CAR-CrmJs GF",null,null,null,null,null,null,null,null,null,null,null,null,null,null,null,null,"805","0001",{"$f":"_xlfn.XLOOKUP(VALUE(V672),'Budgeted Funds'!A:A,'Budgeted Funds'!D:D)","v":true}]
[{"$f":"LEFT(B673,3)","v":"149"},1498060001,{"$f":"_xlfn.XLOOKUP(B673,'FC Master'!Q:Q,'FC Master'!B:B)","v":"149CARLE0001"},"TNR CAR-LE GF",null,null,null,null,null,null,null,null,null,null,null,null,null,null,null,null,"806","0001",{"$f":"_xlfn.XLOOKUP(VALUE(V673),'Budgeted Funds'!A:A,'Budgeted Funds'!D:D)","v":true}]
[{"$f":"LEFT(B674,3)","v":"149"},1498070001,{"$f":"_xlfn.XLOOKUP(B674,'FC Master'!Q:Q,'FC Master'!B:B)","v":"149CARHsgBkg0001"},"TNR CAR-HsgBkg GF",null,null,null,null,null,null,null,null,null,null,null,null,null,null,null,null,"807","0001",{"$f":"_xlfn.XLOOKUP(VALUE(V674),'Budgeted Funds'!A:A,'Budgeted Funds'!D:D)","v":true}]
[{"$f":"LEFT(B675,3)","v":"149"},1498080001,{"$f":"_xlfn.XLOOKUP(B675,'FC Master'!Q:Q,'FC Master'!B:B)","v":"149CARHumSv0001"},"TNR CAR-HumSv GF",null,null,null,null,null,null,null,null,null,null,null,null,null,null,null,null,"808","0001",{"$f":"_xlfn.XLOOKUP(VALUE(V675),'Budgeted Funds'!A:A,'Budgeted Funds'!D:D)","v":true}]
[{"$f":"LEFT(B676,3)","v":"149"},1499000001,{"$f":"_xlfn.XLOOKUP(B676,'FC Master'!Q:Q,'FC Master'!B:B)","v":"149ReimburseRes0001"},"TNR Reimbursement Resolution Funds-GF",null,null,null,null,null,null,null,null,null,null,null,null,null,null,null,null,"900","0001",{"$f":"_xlfn.XLOOKUP(VALUE(V676),'Budgeted Funds'!A:A,'Budgeted Funds'!D:D)","v":true}]
[{"$f":"LEFT(B677,3)","v":"154"},1540010001,{"$f":"_xlfn.XLOOKUP(B677,'FC Master'!Q:Q,'FC Master'!B:B)","v":"154Adm0001"},"Civil Service Commission-GF",null,null,null,null,null,null,null,null,null,null,null,null,null,null,null,null,"001","0001",{"$f":"_xlfn.XLOOKUP(VALUE(V677),'Budgeted Funds'!A:A,'Budgeted Funds'!D:D)","v":true}]
[{"$f":"LEFT(B678,3)","v":"155"},1550010001,{"$f":"_xlfn.XLOOKUP(B678,'FC Master'!Q:Q,'FC Master'!B:B)","v":"155Adm0001"},"JsPln-Executive & Adm-GF",null,null,null,null,null,null,null,null,null,null,null,null,null,null,null,null,"001","0001",{"$f":"_xlfn.XLOOKUP(VALUE(V678),'Budgeted Funds'!A:A,'Budgeted Funds'!D:D)","v":true}]
[{"$f":"LEFT(B679,3)","v":"155"},1550010158,{"$f":"_xlfn.XLOOKUP(B679,'FC Master'!Q:Q,'FC Master'!B:B)","v":"155JsPlnAdmin0158"},"JsPln-Admin-Lang Access Fd",null,null,null,null,null,null,null,null,null,null,null,null,null,null,null,null,"001","0158",{"$f":"_xlfn.XLOOKUP(VALUE(V679),'Budgeted Funds'!A:A,'Budgeted Funds'!D:D)","v":true}]
[{"$f":"LEFT(B680,3)","v":"155"},1550020001,{"$f":"_xlfn.XLOOKUP(B680,'FC Master'!Q:Q,'FC Master'!B:B)","v":"155RePg0001"},"JsPln-Reentry Program After Care-GF",null,null,null,null,null,null,null,null,null,null,null,null,null,null,null,null,"002","0001",{"$f":"_xlfn.XLOOKUP(VALUE(V680),'Budgeted Funds'!A:A,'Budgeted Funds'!D:D)","v":true}]
[{"$f":"LEFT(B681,3)","v":"155"},1550030001,{"$f":"_xlfn.XLOOKUP(B681,'FC Master'!Q:Q,'FC Master'!B:B)","v":"155Pgmatic0001"},"JsPln-Programmatic-GF",null,null,null,null,null,null,null,null,null,null,null,null,null,null,null,null,"003","0001",{"$f":"_xlfn.XLOOKUP(VALUE(V681),'Budgeted Funds'!A:A,'Budgeted Funds'!D:D)","v":true}]
[{"$f":"LEFT(B682,3)","v":"155"},1550040001,{"$f":"_xlfn.XLOOKUP(B682,'FC Master'!Q:Q,'FC Master'!B:B)","v":"155OffWkDev0001"},"JsPln-Offender Workforce Dev-GF",null,null,null,null,null,null,null,null,null,null,null,null,null,null,null,null,"004","0001",{"$f":"_xlfn.XLOOKUP(VALUE(V682),'Budgeted Funds'!A:A,'Budgeted Funds'!D:D)","v":true}]
[{"$f":"LEFT(B683,3)","v":"155"},1550050001,{"$f":"_xlfn.XLOOKUP(B683,'FC Master'!Q:Q,'FC Master'!B:B)","v":"155OfcPrtRep0001"},"JsPln-Ofc of Parent Rep-GF",null,null,null,null,null,null,null,null,null,null,null,null,null,null,null,null,"005","0001",{"$f":"_xlfn.XLOOKUP(VALUE(V683),'Budgeted Funds'!A:A,'Budgeted Funds'!D:D)","v":true}]
[{"$f":"LEFT(B684,3)","v":"155"},1550060001,{"$f":"_xlfn.XLOOKUP(B684,'FC Master'!Q:Q,'FC Master'!B:B)","v":"155OfcChRep0001"},"JsPln-Office of Child Rep -GF",null,null,null,null,null,null,null,null,null,null,null,null,null,null,null,null,"006","0001",{"$f":"_xlfn.XLOOKUP(VALUE(V684),'Budgeted Funds'!A:A,'Budgeted Funds'!D:D)","v":true}]
[{"$f":"LEFT(B685,3)","v":"155"},1550070001,{"$f":"_xlfn.XLOOKUP(B685,'FC Master'!Q:Q,'FC Master'!B:B)","v":"155MtlHlhPD0001"},"JsPln-Mental Health Pub Def-GF",null,null,null,null,null,null,null,null,null,null,null,null,null,null,null,null,"007","0001",{"$f":"_xlfn.XLOOKUP(VALUE(V685),'Budgeted Funds'!A:A,'Budgeted Funds'!D:D)","v":true}]
[{"$f":"LEFT(B686,3)","v":"155"},1550120001,{"$f":"_xlfn.XLOOKUP(B686,'FC Master'!Q:Q,'FC Master'!B:B)","v":"155IOTC0001"},"JsPln-IOTC or Inside Out Training-GF",null,null,null,null,null,null,null,null,null,null,null,null,null,null,null,null,"012","0001",{"$f":"_xlfn.XLOOKUP(VALUE(V686),'Budgeted Funds'!A:A,'Budgeted Funds'!D:D)","v":true}]
[{"$f":"LEFT(B687,3)","v":"155"},1550130001,{"$f":"_xlfn.XLOOKUP(B687,'FC Master'!Q:Q,'FC Master'!B:B)","v":"155Planning0001"},"JsPln-Planning-GF",null,null,null,null,null,null,null,null,null,null,null,null,null,null,null,null,"013","0001",{"$f":"_xlfn.XLOOKUP(VALUE(V687),'Budgeted Funds'!A:A,'Budgeted Funds'!D:D)","v":true}]
[{"$f":"LEFT(B688,3)","v":"155"},1550140001,{"$f":"_xlfn.XLOOKUP(B688,'FC Master'!Q:Q,'FC Master'!B:B)","v":"155Communication0001"},"JsPln-Communications-GF",null,null,null,null,null,null,null,null,null,null,null,null,null,null,null,null,"014","0001",{"$f":"_xlfn.XLOOKUP(VALUE(V688),'Budgeted Funds'!A:A,'Budgeted Funds'!D:D)","v":true}]
[{"$f":"LEFT(B689,3)","v":"155"},1550144038,{"$f":"_xlfn.XLOOKUP(B689,'FC Master'!Q:Q,'FC Master'!B:B)","v":"155Communication4038"},"JsPln-Communications-LT CO 2003",null,null,null,null,null,null,null,null,null,null,null,null,null,null,null,null,"014","4038",{"$f":"_xlfn.XLOOKUP(VALUE(V689),'Budgeted Funds'!A:A,'Budgeted Funds'!D:D)","v":{"$error":"#N/A"}}]
[{"$f":"LEFT(B690,3)","v":"155"},1550150001,{"$f":"_xlfn.XLOOKUP(B690,'FC Master'!Q:Q,'FC Master'!B:B)","v":"155JsPlnCivLib0001"},"JsPln-Civil Library-GF",null,null,null,null,null,null,null,null,null,null,null,null,null,null,null,null,"015","0001",{"$f":"_xlfn.XLOOKUP(VALUE(V690),'Budgeted Funds'!A:A,'Budgeted Funds'!D:D)","v":true}]
[{"$f":"LEFT(B691,3)","v":"155"},1550150100,{"$f":"_xlfn.XLOOKUP(B691,'FC Master'!Q:Q,'FC Master'!B:B)","v":"155JsPlnCiviLib0100"},"JSPln-Civil Library-Law Library Fund",null,null,null,null,null,null,null,null,null,null,null,null,null,null,null,null,"015","0100",{"$f":"_xlfn.XLOOKUP(VALUE(V691),'Budgeted Funds'!A:A,'Budgeted Funds'!D:D)","v":true}]
[{"$f":"LEFT(B692,3)","v":"155"},1550160001,{"$f":"_xlfn.XLOOKUP(B692,'FC Master'!Q:Q,'FC Master'!B:B)","v":"155JsPlnCrimLib0001"},"JsPln-Criminal Library-GF",null,null,null,null,null,null,null,null,null,null,null,null,null,null,null,null,"016","0001",{"$f":"_xlfn.XLOOKUP(VALUE(V692),'Budgeted Funds'!A:A,'Budgeted Funds'!D:D)","v":true}]
[{"$f":"LEFT(B693,3)","v":"155"},1550160100,{"$f":"_xlfn.XLOOKUP(B693,'FC Master'!Q:Q,'FC Master'!B:B)","v":"155JsPlnCrimLib0100"},"JSPln-Criminal Library-Law Library Fund",null,null,null,null,null,null,null,null,null,null,null,null,null,null,null,null,"016","0100",{"$f":"_xlfn.XLOOKUP(VALUE(V693),'Budgeted Funds'!A:A,'Budgeted Funds'!D:D)","v":true}]
[{"$f":"LEFT(B694,3)","v":"155"},1550170001,{"$f":"_xlfn.XLOOKUP(B694,'FC Master'!Q:Q,'FC Master'!B:B)","v":"155JsPlnPubDef0001"},"JSPln-Pub Def-GF",null,null,null,null,null,null,null,null,null,null,null,null,null,null,null,null,"017","0001",{"$f":"_xlfn.XLOOKUP(VALUE(V694),'Budgeted Funds'!A:A,'Budgeted Funds'!D:D)","v":true}]
[{"$f":"LEFT(B695,3)","v":"155"},1550180001,{"$f":"_xlfn.XLOOKUP(B695,'FC Master'!Q:Q,'FC Master'!B:B)","v":"155JPSDRP0001"},"JPS-Data Research Planning-GF",null,null,null,null,null,null,null,null,null,null,null,null,null,null,null,null,"018","0001",{"$f":"_xlfn.XLOOKUP(VALUE(V695),'Budgeted Funds'!A:A,'Budgeted Funds'!D:D)","v":true}]
[{"$f":"LEFT(B696,3)","v":"155"},1558000001,{"$f":"_xlfn.XLOOKUP(B696,'FC Master'!Q:Q,'FC Master'!B:B)","v":"155CARLE0001"},"JsPln-CAR-LE GF",null,null,null,null,null,null,null,null,null,null,null,null,null,null,null,null,"800","0001",{"$f":"_xlfn.XLOOKUP(VALUE(V696),'Budgeted Funds'!A:A,'Budgeted Funds'!D:D)","v":true}]
[{"$f":"LEFT(B697,3)","v":"157"},1570010001,{"$f":"_xlfn.XLOOKUP(B697,'FC Master'!Q:Q,'FC Master'!B:B)","v":"157Adm0001"},"CRS Adm-GF",null,null,null,null,null,null,null,null,null,null,null,null,null,null,null,null,"001","0001",{"$f":"_xlfn.XLOOKUP(VALUE(V697),'Budgeted Funds'!A:A,'Budgeted Funds'!D:D)","v":true}]
[{"$f":"LEFT(B698,3)","v":"157"},1570010108,{"$f":"_xlfn.XLOOKUP(B698,'FC Master'!Q:Q,'FC Master'!B:B)","v":"157Adm0108"},"CRS Adm-Records Management Fd",null,null,null,null,null,null,null,null,null,null,null,null,null,null,null,null,"001","0108",{"$f":"_xlfn.XLOOKUP(VALUE(V698),'Budgeted Funds'!A:A,'Budgeted Funds'!D:D)","v":true}]
[{"$f":"LEFT(B699,3)","v":"157"},1570020001,{"$f":"_xlfn.XLOOKUP(B699,'FC Master'!Q:Q,'FC Master'!B:B)","v":"157CtlRepair0001"},"CRS Copiers/Central Repairs-GF",null,null,null,null,null,null,null,null,null,null,null,null,null,null,null,null,"002","0001",{"$f":"_xlfn.XLOOKUP(VALUE(V699),'Budgeted Funds'!A:A,'Budgeted Funds'!D:D)","v":true}]
[{"$f":"LEFT(B700,3)","v":"157"},1570020125,{"$f":"_xlfn.XLOOKUP(B700,'FC Master'!Q:Q,'FC Master'!B:B)","v":"157CtlRepair0125"},"CR Copiers/Central Repairs-Jus Ct Tech",null,null,null,null,null,null,null,null,null,null,null,null,null,null,null,null,"002","0125",{"$f":"_xlfn.XLOOKUP(VALUE(V700),'Budgeted Funds'!A:A,'Budgeted Funds'!D:D)","v":true}]
[{"$f":"LEFT(B701,3)","v":"157"},1570030108,{"$f":"_xlfn.XLOOKUP(B701,'FC Master'!Q:Q,'FC Master'!B:B)","v":"157RM and Comm0108"},"CRS Records Mgmt & Comm-Rec Mgmt Fd",null,null,null,null,null,null,null,null,null,null,null,null,null,null,null,null,"003","0108",{"$f":"_xlfn.XLOOKUP(VALUE(V701),'Budgeted Funds'!A:A,'Budgeted Funds'!D:D)","v":true}]
[{"$f":"LEFT(B702,3)","v":"157"},1570040001,{"$f":"_xlfn.XLOOKUP(B702,'FC Master'!Q:Q,'FC Master'!B:B)","v":"157Imaging0001"},"CRS Imaging-GF",null,null,null,null,null,null,null,null,null,null,null,null,null,null,null,null,"004","0001",{"$f":"_xlfn.XLOOKUP(VALUE(V702),'Budgeted Funds'!A:A,'Budgeted Funds'!D:D)","v":true}]
[{"$f":"LEFT(B703,3)","v":"157"},1570040004,{"$f":"_xlfn.XLOOKUP(B703,'FC Master'!Q:Q,'FC Master'!B:B)","v":"157Imaging0004"},"CRS Imaging-County Clerk Arch Fd",null,null,null,null,null,null,null,null,null,null,null,null,null,null,null,null,"004","0004",{"$f":"_xlfn.XLOOKUP(VALUE(V703),'Budgeted Funds'!A:A,'Budgeted Funds'!D:D)","v":true}]
[{"$f":"LEFT(B704,3)","v":"157"},1570040108,{"$f":"_xlfn.XLOOKUP(B704,'FC Master'!Q:Q,'FC Master'!B:B)","v":"157Imaging0108"},"CRS Imaging-Records Management Fd",null,null,null,null,null,null,null,null,null,null,null,null,null,null,null,null,"004","0108",{"$f":"_xlfn.XLOOKUP(VALUE(V704),'Budgeted Funds'!A:A,'Budgeted Funds'!D:D)","v":true}]
[{"$f":"LEFT(B705,3)","v":"157"},1570040129,{"$f":"_xlfn.XLOOKUP(B705,'FC Master'!Q:Q,'FC Master'!B:B)","v":"157Imaging0129"},"CRS Imaging-County Clerk Archival Fd",null,null,null,null,null,null,null,null,null,null,null,null,null,null,null,null,"004","0129",{"$f":"_xlfn.XLOOKUP(VALUE(V705),'Budgeted Funds'!A:A,'Budgeted Funds'!D:D)","v":true}]
[{"$f":"LEFT(B706,3)","v":"157"},1570040141,{"$f":"_xlfn.XLOOKUP(B706,'FC Master'!Q:Q,'FC Master'!B:B)","v":"157Imaging0141"},"CRS Imaging-Court Record Preservation",null,null,null,null,null,null,null,null,null,null,null,null,null,null,null,null,"004","0141",{"$f":"_xlfn.XLOOKUP(VALUE(V706),'Budgeted Funds'!A:A,'Budgeted Funds'!D:D)","v":true}]
[{"$f":"LEFT(B707,3)","v":"157"},1570050110,{"$f":"_xlfn.XLOOKUP(B707,'FC Master'!Q:Q,'FC Master'!B:B)","v":"157InfoCtl0110"},"CRS Info Control-Recs Mgmt Preser",null,null,null,null,null,null,null,null,null,null,null,null,null,null,null,null,"005","0110",{"$f":"_xlfn.XLOOKUP(VALUE(V707),'Budgeted Funds'!A:A,'Budgeted Funds'!D:D)","v":true}]
[{"$f":"LEFT(B708,3)","v":"157"},1570060001,{"$f":"_xlfn.XLOOKUP(B708,'FC Master'!Q:Q,'FC Master'!B:B)","v":"157CivilLib0001"},"CRS Civil Library-GF",null,null,null,null,null,null,null,null,null,null,null,null,null,null,null,null,{"$f":"MID(B708,4,3)","v":"006"},{"$f":"MID(B708,7,4)","v":"0001"},{"$f":"_xlfn.XLOOKUP(VALUE(V708),'Budgeted Funds'!A:A,'Budgeted Funds'!D:D)","v":true}]
[{"$f":"LEFT(B709,3)","v":"157"},1570060100,{"$f":"_xlfn.XLOOKUP(B709,'FC Master'!Q:Q,'FC Master'!B:B)","v":"157CivilLib0100"},"CRS Civil Library-Law Library Fd",null,null,null,null,null,null,null,null,null,null,null,null,null,null,null,null,"006","0100",{"$f":"_xlfn.XLOOKUP(VALUE(V709),'Budgeted Funds'!A:A,'Budgeted Funds'!D:D)","v":true}]
[{"$f":"LEFT(B710,3)","v":"157"},1570070001,{"$f":"_xlfn.XLOOKUP(B710,'FC Master'!Q:Q,'FC Master'!B:B)","v":"157CrmLib0001"},"CRS Criminal Library-GF",null,null,null,null,null,null,null,null,null,null,null,null,null,null,null,null,"007","0001",{"$f":"_xlfn.XLOOKUP(VALUE(V710),'Budgeted Funds'!A:A,'Budgeted Funds'!D:D)","v":true}]
[{"$f":"LEFT(B711,3)","v":"157"},1570070100,{"$f":"_xlfn.XLOOKUP(B711,'FC Master'!Q:Q,'FC Master'!B:B)","v":"157CrmLib0100"},"CRS Criminal Library-Law Library Fd",null,null,null,null,null,null,null,null,null,null,null,null,null,null,null,null,"007","0100",{"$f":"_xlfn.XLOOKUP(VALUE(V711),'Budgeted Funds'!A:A,'Budgeted Funds'!D:D)","v":true}]
[{"$f":"LEFT(B712,3)","v":"157"},1570080001,{"$f":"_xlfn.XLOOKUP(B712,'FC Master'!Q:Q,'FC Master'!B:B)","v":"157Mail0001"},"CRS Mail-GF",null,null,null,null,null,null,null,null,null,null,null,null,null,null,null,null,"008","0001",{"$f":"_xlfn.XLOOKUP(VALUE(V712),'Budgeted Funds'!A:A,'Budgeted Funds'!D:D)","v":true}]
[{"$f":"LEFT(B713,3)","v":"157"},1570090001,{"$f":"_xlfn.XLOOKUP(B713,'FC Master'!Q:Q,'FC Master'!B:B)","v":"157Media0001"},"CRS Media-GF",null,null,null,null,null,null,null,null,null,null,null,null,null,null,null,null,"009","0001",{"$f":"_xlfn.XLOOKUP(VALUE(V713),'Budgeted Funds'!A:A,'Budgeted Funds'!D:D)","v":true}]
[{"$f":"LEFT(B714,3)","v":"157"},1570094063,{"$f":"_xlfn.XLOOKUP(B714,'FC Master'!Q:Q,'FC Master'!B:B)","v":"157Media4063"},"CRS Media-CO 2010-Nontax",null,null,null,null,null,null,null,null,null,null,null,null,null,null,null,null,"009","4063",{"$f":"_xlfn.XLOOKUP(VALUE(V714),'Budgeted Funds'!A:A,'Budgeted Funds'!D:D)","v":{"$error":"#N/A"}}]
[{"$f":"LEFT(B715,3)","v":"157"},1570100001,{"$f":"_xlfn.XLOOKUP(B715,'FC Master'!Q:Q,'FC Master'!B:B)","v":"157RcrdsCsltg0001"},"CRS Records/Consulting-GF",null,null,null,null,null,null,null,null,null,null,null,null,null,null,null,null,"010","0001",{"$f":"_xlfn.XLOOKUP(VALUE(V715),'Budgeted Funds'!A:A,'Budgeted Funds'!D:D)","v":true}]
[{"$f":"LEFT(B716,3)","v":"157"},1570100004,{"$f":"_xlfn.XLOOKUP(B716,'FC Master'!Q:Q,'FC Master'!B:B)","v":"157RcrdsCsltg0004"},"CRS Records/Consulting-Cty Clrk Arch Fd",null,null,null,null,null,null,null,null,null,null,null,null,null,null,null,null,"010","0004",{"$f":"_xlfn.XLOOKUP(VALUE(V716),'Budgeted Funds'!A:A,'Budgeted Funds'!D:D)","v":true}]
[{"$f":"LEFT(B717,3)","v":"157"},1570100108,{"$f":"_xlfn.XLOOKUP(B717,'FC Master'!Q:Q,'FC Master'!B:B)","v":"157RcrdsCsltg0108"},"CRS Records/Consulting-Recs Mgmt Fd",null,null,null,null,null,null,null,null,null,null,null,null,null,null,null,null,"010","0108",{"$f":"_xlfn.XLOOKUP(VALUE(V717),'Budgeted Funds'!A:A,'Budgeted Funds'!D:D)","v":true}]
[{"$f":"LEFT(B718,3)","v":"157"},1570100110,{"$f":"_xlfn.XLOOKUP(B718,'FC Master'!Q:Q,'FC Master'!B:B)","v":"157RcrdsCsltg0110"},"CRS Records/Consulting-Recs Mgmt Preser",null,null,null,null,null,null,null,null,null,null,null,null,null,null,null,null,"010","0110",{"$f":"_xlfn.XLOOKUP(VALUE(V718),'Budgeted Funds'!A:A,'Budgeted Funds'!D:D)","v":true}]
[{"$f":"LEFT(B719,3)","v":"157"},1570100129,{"$f":"_xlfn.XLOOKUP(B719,'FC Master'!Q:Q,'FC Master'!B:B)","v":"157RcrdsCsltg0129"},"CRS Records/Consulting-CCk Arch Fd",null,null,null,null,null,null,null,null,null,null,null,null,null,null,null,null,"010","0129",{"$f":"_xlfn.XLOOKUP(VALUE(V719),'Budgeted Funds'!A:A,'Budgeted Funds'!D:D)","v":true}]
[{"$f":"LEFT(B720,3)","v":"157"},1570100141,{"$f":"_xlfn.XLOOKUP(B720,'FC Master'!Q:Q,'FC Master'!B:B)","v":"157RcrdsCsltg0141"},"CRS Records/Consulting-Ct Rec Preser",null,null,null,null,null,null,null,null,null,null,null,null,null,null,null,null,"010","0141",{"$f":"_xlfn.XLOOKUP(VALUE(V720),'Budgeted Funds'!A:A,'Budgeted Funds'!D:D)","v":true}]
[{"$f":"LEFT(B721,3)","v":"157"},1570100160,{"$f":"_xlfn.XLOOKUP(B721,'FC Master'!Q:Q,'FC Master'!B:B)","v":"157RcrdsCsltg0160"},"CRS Records/Consulting-TC RecMgmt&Pres",null,null,null,null,null,null,null,null,null,null,null,null,null,null,null,null,"010","0160",{"$f":"_xlfn.XLOOKUP(VALUE(V721),'Budgeted Funds'!A:A,'Budgeted Funds'!D:D)","v":true}]
[{"$f":"LEFT(B722,3)","v":"157"},1570110001,{"$f":"_xlfn.XLOOKUP(B722,'FC Master'!Q:Q,'FC Master'!B:B)","v":"157Printing0001"},"RMCR Printing-GF",null,null,null,null,null,null,null,null,null,null,null,null,null,null,null,null,"011","0001",{"$f":"_xlfn.XLOOKUP(VALUE(V722),'Budgeted Funds'!A:A,'Budgeted Funds'!D:D)","v":true}]
[{"$f":"LEFT(B723,3)","v":"157"},1570110002,{"$f":"_xlfn.XLOOKUP(B723,'FC Master'!Q:Q,'FC Master'!B:B)","v":"157Printing0002"},"CRS Printing-700 Lavaca Complex",null,null,null,null,null,null,null,null,null,null,null,null,null,null,null,null,"011","0002",{"$f":"_xlfn.XLOOKUP(VALUE(V723),'Budgeted Funds'!A:A,'Budgeted Funds'!D:D)","v":true}]
[{"$f":"LEFT(B724,3)","v":"157"},1570118956,{"$f":"_xlfn.XLOOKUP(B724,'FC Master'!Q:Q,'FC Master'!B:B)","v":"157Printing8956"},"CRS Printing-Employee Health Ben Fd",null,null,null,null,null,null,null,null,null,null,null,null,null,null,null,null,"011","8956",{"$f":"_xlfn.XLOOKUP(VALUE(V724),'Budgeted Funds'!A:A,'Budgeted Funds'!D:D)","v":true}]
[{"$f":"LEFT(B725,3)","v":"157"},1578000001,{"$f":"_xlfn.XLOOKUP(B725,'FC Master'!Q:Q,'FC Master'!B:B)","v":"157CARGenAdm0001"},"CRS CAR-GenAdm GF",null,null,null,null,null,null,null,null,null,null,null,null,null,null,null,null,"800","0001",{"$f":"_xlfn.XLOOKUP(VALUE(V725),'Budgeted Funds'!A:A,'Budgeted Funds'!D:D)","v":true}]
[{"$f":"LEFT(B726,3)","v":"158"},1580010001,{"$f":"_xlfn.XLOOKUP(B726,'FC Master'!Q:Q,'FC Master'!B:B)","v":"158CEAdm0001"},"HHS County Executive Adm-GF",null,null,null,null,null,null,null,null,null,null,null,null,null,null,null,null,"001","0001",{"$f":"_xlfn.XLOOKUP(VALUE(V726),'Budgeted Funds'!A:A,'Budgeted Funds'!D:D)","v":true}]
[{"$f":"LEFT(B727,3)","v":"158"},1580014014,{"$f":"_xlfn.XLOOKUP(B727,'FC Master'!Q:Q,'FC Master'!B:B)","v":"158CEAdm4014"},"HHS County Executive Adm-CO 1997",null,null,null,null,null,null,null,null,null,null,null,null,null,null,null,null,"001","4014",{"$f":"_xlfn.XLOOKUP(VALUE(V727),'Budgeted Funds'!A:A,'Budgeted Funds'!D:D)","v":false}]
[{"$f":"LEFT(B728,3)","v":"158"},1580020001,{"$f":"_xlfn.XLOOKUP(B728,'FC Master'!Q:Q,'FC Master'!B:B)","v":"158HumRsrcs0001"},"HHS Human Resource-GF",null,null,null,null,null,null,null,null,null,null,null,null,null,null,null,null,"002","0001",{"$f":"_xlfn.XLOOKUP(VALUE(V728),'Budgeted Funds'!A:A,'Budgeted Funds'!D:D)","v":true}]
[{"$f":"LEFT(B729,3)","v":"158"},1580030001,{"$f":"_xlfn.XLOOKUP(B729,'FC Master'!Q:Q,'FC Master'!B:B)","v":"158Finance0001"},"HHS Finance-GF",null,null,null,null,null,null,null,null,null,null,null,null,null,null,null,null,"003","0001",{"$f":"_xlfn.XLOOKUP(VALUE(V729),'Budgeted Funds'!A:A,'Budgeted Funds'!D:D)","v":true}]
[{"$f":"LEFT(B730,3)","v":"158"},1580040001,{"$f":"_xlfn.XLOOKUP(B730,'FC Master'!Q:Q,'FC Master'!B:B)","v":"158RshandPlng0001"},"HHS Research and Planning-GF",null,null,null,null,null,null,null,null,null,null,null,null,null,null,null,null,"004","0001",{"$f":"_xlfn.XLOOKUP(VALUE(V730),'Budgeted Funds'!A:A,'Budgeted Funds'!D:D)","v":true}]
[{"$f":"LEFT(B731,3)","v":"158"},1580050001,{"$f":"_xlfn.XLOOKUP(B731,'FC Master'!Q:Q,'FC Master'!B:B)","v":"158Facilities0001"},"HHS Facilities-GF",null,null,null,null,null,null,null,null,null,null,null,null,null,null,null,null,"005","0001",{"$f":"_xlfn.XLOOKUP(VALUE(V731),'Budgeted Funds'!A:A,'Budgeted Funds'!D:D)","v":true}]
[{"$f":"LEFT(B732,3)","v":"158"},1580060001,{"$f":"_xlfn.XLOOKUP(B732,'FC Master'!Q:Q,'FC Master'!B:B)","v":"158CDBGPlng0001"},"HHS CDBG Planning-GF",null,null,null,null,null,null,null,null,null,null,null,null,null,null,null,null,"006","0001",{"$f":"_xlfn.XLOOKUP(VALUE(V732),'Budgeted Funds'!A:A,'Budgeted Funds'!D:D)","v":true}]
[{"$f":"LEFT(B733,3)","v":"158"},1580070001,{"$f":"_xlfn.XLOOKUP(B733,'FC Master'!Q:Q,'FC Master'!B:B)","v":"158PubHlth0001"},"HHS Public Health Mgr-GF",null,null,null,null,null,null,null,null,null,null,null,null,null,null,null,null,"007","0001",{"$f":"_xlfn.XLOOKUP(VALUE(V733),'Budgeted Funds'!A:A,'Budgeted Funds'!D:D)","v":true}]
[{"$f":"LEFT(B734,3)","v":"158"},1580080001,{"$f":"_xlfn.XLOOKUP(B734,'FC Master'!Q:Q,'FC Master'!B:B)","v":"158PubHlthCOAAdm0001"},"HHS Public Health Adm COA-GF",null,null,null,null,null,null,null,null,null,null,null,null,null,null,null,null,"008","0001",{"$f":"_xlfn.XLOOKUP(VALUE(V734),'Budgeted Funds'!A:A,'Budgeted Funds'!D:D)","v":true}]
[{"$f":"LEFT(B735,3)","v":"158"},1580090001,{"$f":"_xlfn.XLOOKUP(B735,'FC Master'!Q:Q,'FC Master'!B:B)","v":"158COAPbcHlh0001"},"HHS Inter COA Public Hlh-GF",null,null,null,null,null,null,null,null,null,null,null,null,null,null,null,null,"009","0001",{"$f":"_xlfn.XLOOKUP(VALUE(V735),'Budgeted Funds'!A:A,'Budgeted Funds'!D:D)","v":true}]
[{"$f":"LEFT(B736,3)","v":"158"},1580100001,{"$f":"_xlfn.XLOOKUP(B736,'FC Master'!Q:Q,'FC Master'!B:B)","v":"158FSSAdmSv0001"},"HHS FSS-Adm Svs-GF",null,null,null,null,null,null,null,null,null,null,null,null,null,null,null,null,"010","0001",{"$f":"_xlfn.XLOOKUP(VALUE(V736),'Budgeted Funds'!A:A,'Budgeted Funds'!D:D)","v":true}]
[{"$f":"LEFT(B737,3)","v":"158"},1580110001,{"$f":"_xlfn.XLOOKUP(B737,'FC Master'!Q:Q,'FC Master'!B:B)","v":"158FSSCaseM0001"},"HHS FSS-Case Mgmt-GF",null,null,null,null,null,null,null,null,null,null,null,null,null,null,null,null,"011","0001",{"$f":"_xlfn.XLOOKUP(VALUE(V737),'Budgeted Funds'!A:A,'Budgeted Funds'!D:D)","v":true}]
[{"$f":"LEFT(B738,3)","v":"158"},1580120001,{"$f":"_xlfn.XLOOKUP(B738,'FC Master'!Q:Q,'FC Master'!B:B)","v":"158EstRCmtyCtr0001"},"HHS FSS-East Rural Cmty CT-GF",null,null,null,null,null,null,null,null,null,null,null,null,null,null,null,null,"012","0001",{"$f":"_xlfn.XLOOKUP(VALUE(V738),'Budgeted Funds'!A:A,'Budgeted Funds'!D:D)","v":true}]
[{"$f":"LEFT(B739,3)","v":"158"},1580130001,{"$f":"_xlfn.XLOOKUP(B739,'FC Master'!Q:Q,'FC Master'!B:B)","v":"158NthRCmtyCtr0001"},"HHS FSS-North Rural Cmty Ctr-GF",null,null,null,null,null,null,null,null,null,null,null,null,null,null,null,null,"013","0001",{"$f":"_xlfn.XLOOKUP(VALUE(V739),'Budgeted Funds'!A:A,'Budgeted Funds'!D:D)","v":true}]
[{"$f":"LEFT(B740,3)","v":"158"},1580140001,{"$f":"_xlfn.XLOOKUP(B740,'FC Master'!Q:Q,'FC Master'!B:B)","v":"158NWRCmtyCtr0001"},"HHS FSS-Northwest Rural Cmty Ctr-GF",null,null,null,null,null,null,null,null,null,null,null,null,null,null,null,null,"014","0001",{"$f":"_xlfn.XLOOKUP(VALUE(V740),'Budgeted Funds'!A:A,'Budgeted Funds'!D:D)","v":true}]
[{"$f":"LEFT(B741,3)","v":"158"},1580150001,{"$f":"_xlfn.XLOOKUP(B741,'FC Master'!Q:Q,'FC Master'!B:B)","v":"158PSqCmtyCtr0001"},"HHS FSS-Palm Square Cmty Ctr-GF",null,null,null,null,null,null,null,null,null,null,null,null,null,null,null,null,"015","0001",{"$f":"_xlfn.XLOOKUP(VALUE(V741),'Budgeted Funds'!A:A,'Budgeted Funds'!D:D)","v":true}]
[{"$f":"LEFT(B742,3)","v":"158"},1580160001,{"$f":"_xlfn.XLOOKUP(B742,'FC Master'!Q:Q,'FC Master'!B:B)","v":"158PstRdCmtyCtr0001"},"HHS FSS-Post Road Cmty Ctr-GF",null,null,null,null,null,null,null,null,null,null,null,null,null,null,null,null,"016","0001",{"$f":"_xlfn.XLOOKUP(VALUE(V742),'Budgeted Funds'!A:A,'Budgeted Funds'!D:D)","v":true}]
[{"$f":"LEFT(B743,3)","v":"158"},1580170001,{"$f":"_xlfn.XLOOKUP(B743,'FC Master'!Q:Q,'FC Master'!B:B)","v":"158SthRCmtyCtr0001"},"HHS FSS-South Rural Cmty Ctr-GF",null,null,null,null,null,null,null,null,null,null,null,null,null,null,null,null,"017","0001",{"$f":"_xlfn.XLOOKUP(VALUE(V743),'Budgeted Funds'!A:A,'Budgeted Funds'!D:D)","v":true}]
[{"$f":"LEFT(B744,3)","v":"158"},1580180001,{"$f":"_xlfn.XLOOKUP(B744,'FC Master'!Q:Q,'FC Master'!B:B)","v":"158WstRCmtyCtr0001"},"HHS FSS-West Rural Cmty Ctr-GF",null,null,null,null,null,null,null,null,null,null,null,null,null,null,null,null,"018","0001",{"$f":"_xlfn.XLOOKUP(VALUE(V744),'Budgeted Funds'!A:A,'Budgeted Funds'!D:D)","v":true}]
[{"$f":"LEFT(B745,3)","v":"158"},1580190001,{"$f":"_xlfn.XLOOKUP(B745,'FC Master'!Q:Q,'FC Master'!B:B)","v":"158OCSAdm0001"},"HHS Ofc of Children's Svs Adm-GF",null,null,null,null,null,null,null,null,null,null,null,null,null,null,null,null,"019","0001",{"$f":"_xlfn.XLOOKUP(VALUE(V745),'Budgeted Funds'!A:A,'Budgeted Funds'!D:D)","v":true}]
[{"$f":"LEFT(B746,3)","v":"158"},1580200001,{"$f":"_xlfn.XLOOKUP(B746,'FC Master'!Q:Q,'FC Master'!B:B)","v":"158OCSCPSBd0001"},"HHS OCS Adm CPS Board-GF",null,null,null,null,null,null,null,null,null,null,null,null,null,null,null,null,"020","0001",{"$f":"_xlfn.XLOOKUP(VALUE(V746),'Budgeted Funds'!A:A,'Budgeted Funds'!D:D)","v":true}]
[{"$f":"LEFT(B747,3)","v":"158"},1580200155,{"$f":"_xlfn.XLOOKUP(B747,'FC Master'!Q:Q,'FC Master'!B:B)","v":"158OCSCPSCWJD0155"},"HHS OCS Adm CPS Board-CWJD",null,null,null,null,null,null,null,null,null,null,null,null,null,null,null,null,"020","0155",{"$f":"_xlfn.XLOOKUP(VALUE(V747),'Budgeted Funds'!A:A,'Budgeted Funds'!D:D)","v":true}]
[{"$f":"LEFT(B748,3)","v":"158"},1580210001,{"$f":"_xlfn.XLOOKUP(B748,'FC Master'!Q:Q,'FC Master'!B:B)","v":"158HmVist0001"},"HHS Home Visiting Program-GF",null,null,null,null,null,null,null,null,null,null,null,null,null,null,null,null,"021","0001",{"$f":"_xlfn.XLOOKUP(VALUE(V748),'Budgeted Funds'!A:A,'Budgeted Funds'!D:D)","v":true}]
[{"$f":"LEFT(B749,3)","v":"158"},1580220001,{"$f":"_xlfn.XLOOKUP(B749,'FC Master'!Q:Q,'FC Master'!B:B)","v":"158P&I0001"},"HHS Prevention & Intervention-GF",null,null,null,null,null,null,null,null,null,null,null,null,null,null,null,null,"022","0001",{"$f":"_xlfn.XLOOKUP(VALUE(V749),'Budgeted Funds'!A:A,'Budgeted Funds'!D:D)","v":true}]
[{"$f":"LEFT(B750,3)","v":"158"},1580230001,{"$f":"_xlfn.XLOOKUP(B750,'FC Master'!Q:Q,'FC Master'!B:B)","v":"158FIRST0001"},"HHS Family First",null,null,null,null,null,null,null,null,null,null,null,null,null,null,null,null,"023","0001",{"$f":"_xlfn.XLOOKUP(VALUE(V750),'Budgeted Funds'!A:A,'Budgeted Funds'!D:D)","v":true}]
[{"$f":"LEFT(B751,3)","v":"158"},1580240001,{"$f":"_xlfn.XLOOKUP(B751,'FC Master'!Q:Q,'FC Master'!B:B)","v":"158HF10001"},"HHS Healthy Families 1-GF",null,null,null,null,null,null,null,null,null,null,null,null,null,null,null,null,"024","0001",{"$f":"_xlfn.XLOOKUP(VALUE(V751),'Budgeted Funds'!A:A,'Budgeted Funds'!D:D)","v":true}]
[{"$f":"LEFT(B752,3)","v":"158"},1580240135,{"$f":"_xlfn.XLOOKUP(B752,'FC Master'!Q:Q,'FC Master'!B:B)","v":"158HF10135"},"HHS Healthy Families 1-Ch Abs Prev Fd",null,null,null,null,null,null,null,null,null,null,null,null,null,null,null,null,"024","0135",{"$f":"_xlfn.XLOOKUP(VALUE(V752),'Budgeted Funds'!A:A,'Budgeted Funds'!D:D)","v":true}]
[{"$f":"LEFT(B753,3)","v":"158"},1580250001,{"$f":"_xlfn.XLOOKUP(B753,'FC Master'!Q:Q,'FC Master'!B:B)","v":"158HF20001"},"HHS Healthy Families 2-GF",null,null,null,null,null,null,null,null,null,null,null,null,null,null,null,null,"025","0001",{"$f":"_xlfn.XLOOKUP(VALUE(V753),'Budgeted Funds'!A:A,'Budgeted Funds'!D:D)","v":true}]
[{"$f":"LEFT(B754,3)","v":"158"},1580260001,{"$f":"_xlfn.XLOOKUP(B754,'FC Master'!Q:Q,'FC Master'!B:B)","v":"158SysCI0001"},"HHS System of Care initiatives-GF",null,null,null,null,null,null,null,null,null,null,null,null,null,null,null,null,"026","0001",{"$f":"_xlfn.XLOOKUP(VALUE(V754),'Budgeted Funds'!A:A,'Budgeted Funds'!D:D)","v":true}]
[{"$f":"LEFT(B755,3)","v":"158"},1580270001,{"$f":"_xlfn.XLOOKUP(B755,'FC Master'!Q:Q,'FC Master'!B:B)","v":"158CmtySv0001"},"HHS Community Svs Adm-GF",null,null,null,null,null,null,null,null,null,null,null,null,null,null,null,null,"027","0001",{"$f":"_xlfn.XLOOKUP(VALUE(V755),'Budgeted Funds'!A:A,'Budgeted Funds'!D:D)","v":true}]
[{"$f":"LEFT(B756,3)","v":"158"},1580280001,{"$f":"_xlfn.XLOOKUP(B756,'FC Master'!Q:Q,'FC Master'!B:B)","v":"158NCC0001"},"HHS Neighborhood Conf Comm-GF",null,null,null,null,null,null,null,null,null,null,null,null,null,null,null,null,"028","0001",{"$f":"_xlfn.XLOOKUP(VALUE(V756),'Budgeted Funds'!A:A,'Budgeted Funds'!D:D)","v":true}]
[{"$f":"LEFT(B757,3)","v":"158"},1580290001,{"$f":"_xlfn.XLOOKUP(B757,'FC Master'!Q:Q,'FC Master'!B:B)","v":"158WBL0001"},"HHS Work Based Learning-GF",null,null,null,null,null,null,null,null,null,null,null,null,null,null,null,null,"029","0001",{"$f":"_xlfn.XLOOKUP(VALUE(V757),'Budgeted Funds'!A:A,'Budgeted Funds'!D:D)","v":true}]
[{"$f":"LEFT(B758,3)","v":"158"},1580300001,{"$f":"_xlfn.XLOOKUP(B758,'FC Master'!Q:Q,'FC Master'!B:B)","v":"158engAGE0001"},"HHS engAGE - GF",null,null,null,null,null,null,null,null,null,null,null,null,null,null,null,null,"030","0001",{"$f":"_xlfn.XLOOKUP(VALUE(V758),'Budgeted Funds'!A:A,'Budgeted Funds'!D:D)","v":true}]
[{"$f":"LEFT(B759,3)","v":"158"},1580310001,{"$f":"_xlfn.XLOOKUP(B759,'FC Master'!Q:Q,'FC Master'!B:B)","v":"158DeafSvs0001"},"HHS Deaf Svs-GF",null,null,null,null,null,null,null,null,null,null,null,null,null,null,null,null,"031","0001",{"$f":"_xlfn.XLOOKUP(VALUE(V759),'Budgeted Funds'!A:A,'Budgeted Funds'!D:D)","v":true}]
[{"$f":"LEFT(B760,3)","v":"158"},1580320001,{"$f":"_xlfn.XLOOKUP(B760,'FC Master'!Q:Q,'FC Master'!B:B)","v":"158HSAdm0001"},"HHS Housing Adm-GF",null,null,null,null,null,null,null,null,null,null,null,null,null,null,null,null,"032","0001",{"$f":"_xlfn.XLOOKUP(VALUE(V760),'Budgeted Funds'!A:A,'Budgeted Funds'!D:D)","v":true}]
[{"$f":"LEFT(B761,3)","v":"158"},1580330001,{"$f":"_xlfn.XLOOKUP(B761,'FC Master'!Q:Q,'FC Master'!B:B)","v":"158HsgRepair0001"},"HHS Housing Repair-GF",null,null,null,null,null,null,null,null,null,null,null,null,null,null,null,null,"033","0001",{"$f":"_xlfn.XLOOKUP(VALUE(V761),'Budgeted Funds'!A:A,'Budgeted Funds'!D:D)","v":true}]
[{"$f":"LEFT(B762,3)","v":"158"},1580340001,{"$f":"_xlfn.XLOOKUP(B762,'FC Master'!Q:Q,'FC Master'!B:B)","v":"158COAWea0001"},"HHS COA Weatherization Interlocal-GF",null,null,null,null,null,null,null,null,null,null,null,null,null,null,null,null,"034","0001",{"$f":"_xlfn.XLOOKUP(VALUE(V762),'Budgeted Funds'!A:A,'Budgeted Funds'!D:D)","v":true}]
[{"$f":"LEFT(B763,3)","v":"158"},1580350138,{"$f":"_xlfn.XLOOKUP(B763,'FC Master'!Q:Q,'FC Master'!B:B)","v":"158EHSConsumProt0138"},"HHS EHS Consmr/Comm Prot-Hlthfd Prmts",null,null,null,null,null,null,null,null,null,null,null,null,null,null,null,null,"035","0138",{"$f":"_xlfn.XLOOKUP(VALUE(V763),'Budgeted Funds'!A:A,'Budgeted Funds'!D:D)","v":true}]
[{"$f":"LEFT(B764,3)","v":"158"},1580360138,{"$f":"_xlfn.XLOOKUP(B764,'FC Master'!Q:Q,'FC Master'!B:B)","v":"158AdmATCHHS0138"},"HHS Adm ATCHHS-Hlthfd Prmts",null,null,null,null,null,null,null,null,null,null,null,null,null,null,null,null,"036","0138",{"$f":"_xlfn.XLOOKUP(VALUE(V764),'Budgeted Funds'!A:A,'Budgeted Funds'!D:D)","v":true}]
[{"$f":"LEFT(B765,3)","v":"158"},1580370001,{"$f":"_xlfn.XLOOKUP(B765,'FC Master'!Q:Q,'FC Master'!B:B)","v":"158PrbSvs0001"},"HHS Probation Svs-GF",null,null,null,null,null,null,null,null,null,null,null,null,null,null,null,null,"037","0001",{"$f":"_xlfn.XLOOKUP(VALUE(V765),'Budgeted Funds'!A:A,'Budgeted Funds'!D:D)","v":true}]
[{"$f":"LEFT(B766,3)","v":"158"},1580380001,{"$f":"_xlfn.XLOOKUP(B766,'FC Master'!Q:Q,'FC Master'!B:B)","v":"158ClinicSvs0001"},"HHS Clinic Services-GF",null,null,null,null,null,null,null,null,null,null,null,null,null,null,null,null,"038","0001",{"$f":"_xlfn.XLOOKUP(VALUE(V766),'Budgeted Funds'!A:A,'Budgeted Funds'!D:D)","v":true}]
[{"$f":"LEFT(B767,3)","v":"158"},1580390001,{"$f":"_xlfn.XLOOKUP(B767,'FC Master'!Q:Q,'FC Master'!B:B)","v":"158CDPSImmun0001"},"HHS CDPS Immunization Svs-GF",null,null,null,null,null,null,null,null,null,null,null,null,null,null,null,null,"039","0001",{"$f":"_xlfn.XLOOKUP(VALUE(V767),'Budgeted Funds'!A:A,'Budgeted Funds'!D:D)","v":true}]
[{"$f":"LEFT(B768,3)","v":"158"},1580400001,{"$f":"_xlfn.XLOOKUP(B768,'FC Master'!Q:Q,'FC Master'!B:B)","v":"158HthDstSvs0001"},"HHS Health District Svs-GF",null,null,null,null,null,null,null,null,null,null,null,null,null,null,null,null,"040","0001",{"$f":"_xlfn.XLOOKUP(VALUE(V768),'Budgeted Funds'!A:A,'Budgeted Funds'!D:D)","v":true}]
[{"$f":"LEFT(B769,3)","v":"158"},1580410001,{"$f":"_xlfn.XLOOKUP(B769,'FC Master'!Q:Q,'FC Master'!B:B)","v":"158VetSvsAdm0001"},"HHS Veterans Service Adm-GF",null,null,null,null,null,null,null,null,null,null,null,null,null,null,null,null,"041","0001",{"$f":"_xlfn.XLOOKUP(VALUE(V769),'Budgeted Funds'!A:A,'Budgeted Funds'!D:D)","v":true}]
[{"$f":"LEFT(B770,3)","v":"158"},1580420001,{"$f":"_xlfn.XLOOKUP(B770,'FC Master'!Q:Q,'FC Master'!B:B)","v":"158HHS-TAESAdm0001"},"HHS Texas Ag Ext Svs Adm-GF",null,null,null,null,null,null,null,null,null,null,null,null,null,null,null,null,"042","0001",{"$f":"_xlfn.XLOOKUP(VALUE(V770),'Budgeted Funds'!A:A,'Budgeted Funds'!D:D)","v":true}]
[{"$f":"LEFT(B771,3)","v":"158"},1580430001,{"$f":"_xlfn.XLOOKUP(B771,'FC Master'!Q:Q,'FC Master'!B:B)","v":"158HortPgs0001"},"HHS TAES Agr/Horticulture Pgs-GF",null,null,null,null,null,null,null,null,null,null,null,null,null,null,null,null,"043","0001",{"$f":"_xlfn.XLOOKUP(VALUE(V771),'Budgeted Funds'!A:A,'Budgeted Funds'!D:D)","v":true}]
[{"$f":"LEFT(B772,3)","v":"158"},1580440001,{"$f":"_xlfn.XLOOKUP(B772,'FC Master'!Q:Q,'FC Master'!B:B)","v":"1584HYouth0001"},"HHS TAES 4-H and Youth Dev Pg-GF",null,null,null,null,null,null,null,null,null,null,null,null,null,null,null,null,{"$f":"MID(B772,4,3)","v":"044"},{"$f":"MID(B772,7,4)","v":"0001"},{"$f":"_xlfn.XLOOKUP(VALUE(V772),'Budgeted Funds'!A:A,'Budgeted Funds'!D:D)","v":true}]
[{"$f":"LEFT(B773,3)","v":"158"},1580440149,{"$f":"_xlfn.XLOOKUP(B773,'FC Master'!Q:Q,'FC Master'!B:B)","v":"1584HYouth0149"},"HHS TAES 4-H and Youth Dev Pg-AYES Fd",null,null,null,null,null,null,null,null,null,null,null,null,null,null,null,null,"044","0149",{"$f":"_xlfn.XLOOKUP(VALUE(V773),'Budgeted Funds'!A:A,'Budgeted Funds'!D:D)","v":true}]
[{"$f":"LEFT(B774,3)","v":"158"},1580450001,{"$f":"_xlfn.XLOOKUP(B774,'FC Master'!Q:Q,'FC Master'!B:B)","v":"158FamConsSciPg0001"},"HHS TAES Family & Consumer Sci Pg-GF",null,null,null,null,null,null,null,null,null,null,null,null,null,null,null,null,"045","0001",{"$f":"_xlfn.XLOOKUP(VALUE(V774),'Budgeted Funds'!A:A,'Budgeted Funds'!D:D)","v":true}]
[{"$f":"LEFT(B775,3)","v":"158"},1580460001,{"$f":"_xlfn.XLOOKUP(B775,'FC Master'!Q:Q,'FC Master'!B:B)","v":"158MediaSvs0001"},"HHS TAES Media Services-GF",null,null,null,null,null,null,null,null,null,null,null,null,null,null,null,null,"046","0001",{"$f":"_xlfn.XLOOKUP(VALUE(V775),'Budgeted Funds'!A:A,'Budgeted Funds'!D:D)","v":true}]
[{"$f":"LEFT(B776,3)","v":"158"},1580470001,{"$f":"_xlfn.XLOOKUP(B776,'FC Master'!Q:Q,'FC Master'!B:B)","v":"158IntPestMgmt0001"},"HHS TAES Integrated Pest Mgmt Pg-GF",null,null,null,null,null,null,null,null,null,null,null,null,null,null,null,null,"047","0001",{"$f":"_xlfn.XLOOKUP(VALUE(V776),'Budgeted Funds'!A:A,'Budgeted Funds'!D:D)","v":true}]
[{"$f":"LEFT(B777,3)","v":"158"},1580480001,{"$f":"_xlfn.XLOOKUP(B777,'FC Master'!Q:Q,'FC Master'!B:B)","v":"158WldlfMgmtSv0001"},"HHS TAES Wildlife Mgmt Sv-GF",null,null,null,null,null,null,null,null,null,null,null,null,null,null,null,null,"048","0001",{"$f":"_xlfn.XLOOKUP(VALUE(V777),'Budgeted Funds'!A:A,'Budgeted Funds'!D:D)","v":true}]
[{"$f":"LEFT(B778,3)","v":"158"},1580490001,{"$f":"_xlfn.XLOOKUP(B778,'FC Master'!Q:Q,'FC Master'!B:B)","v":"158NutHlth0001"},"HHS TAES Nutrition & Health-GF",null,null,null,null,null,null,null,null,null,null,null,null,null,null,null,null,"049","0001",{"$f":"_xlfn.XLOOKUP(VALUE(V778),'Budgeted Funds'!A:A,'Budgeted Funds'!D:D)","v":true}]
[{"$f":"LEFT(B779,3)","v":"158"},1580500001,{"$f":"_xlfn.XLOOKUP(B779,'FC Master'!Q:Q,'FC Master'!B:B)","v":"158TCPTRIAD0001"},"HHS TCP / TRIAD-GF",null,null,null,null,null,null,null,null,null,null,null,null,null,null,null,null,"050","0001",{"$f":"_xlfn.XLOOKUP(VALUE(V779),'Budgeted Funds'!A:A,'Budgeted Funds'!D:D)","v":true}]
[{"$f":"LEFT(B780,3)","v":"158"},1580510001,{"$f":"_xlfn.XLOOKUP(B780,'FC Master'!Q:Q,'FC Master'!B:B)","v":"158CmtyLiaison0001"},"HHS Community Liaison-GF",null,null,null,null,null,null,null,null,null,null,null,null,null,null,null,null,"051","0001",{"$f":"_xlfn.XLOOKUP(VALUE(V780),'Budgeted Funds'!A:A,'Budgeted Funds'!D:D)","v":true}]
[{"$f":"LEFT(B781,3)","v":"158"},1580520001,{"$f":"_xlfn.XLOOKUP(B781,'FC Master'!Q:Q,'FC Master'!B:B)","v":"158CPSCO0001"},"HHS CPS Court Ordered-GF",null,null,null,null,null,null,null,null,null,null,null,null,null,null,null,null,"052","0001",{"$f":"_xlfn.XLOOKUP(VALUE(V781),'Budgeted Funds'!A:A,'Budgeted Funds'!D:D)","v":true}]
[{"$f":"LEFT(B782,3)","v":"158"},1580530001,{"$f":"_xlfn.XLOOKUP(B782,'FC Master'!Q:Q,'FC Master'!B:B)","v":"158CPSTitle4E0001"},"HHS CPS Title 4E-GF",null,null,null,null,null,null,null,null,null,null,null,null,null,null,null,null,"053","0001",{"$f":"_xlfn.XLOOKUP(VALUE(V782),'Budgeted Funds'!A:A,'Budgeted Funds'!D:D)","v":true}]
[{"$f":"LEFT(B783,3)","v":"158"},1580540001,{"$f":"_xlfn.XLOOKUP(B783,'FC Master'!Q:Q,'FC Master'!B:B)","v":"158SSCntrc0001"},"HHS Social Service Contracts-GF",null,null,null,null,null,null,null,null,null,null,null,null,null,null,null,null,"054","0001",{"$f":"_xlfn.XLOOKUP(VALUE(V783),'Budgeted Funds'!A:A,'Budgeted Funds'!D:D)","v":true}]
[{"$f":"LEFT(B784,3)","v":"158"},1580550001,{"$f":"_xlfn.XLOOKUP(B784,'FC Master'!Q:Q,'FC Master'!B:B)","v":"158COAHlhcare0001"},"HHS Inter COA Healthcare-GF",null,null,null,null,null,null,null,null,null,null,null,null,null,null,null,null,"055","0001",{"$f":"_xlfn.XLOOKUP(VALUE(V784),'Budgeted Funds'!A:A,'Budgeted Funds'!D:D)","v":true}]
[{"$f":"LEFT(B785,3)","v":"158"},1580560001,{"$f":"_xlfn.XLOOKUP(B785,'FC Master'!Q:Q,'FC Master'!B:B)","v":"158COAHumanSv0001"},"HHS Inter COA Human Svs-GF",null,null,null,null,null,null,null,null,null,null,null,null,null,null,null,null,"056","0001",{"$f":"_xlfn.XLOOKUP(VALUE(V785),'Budgeted Funds'!A:A,'Budgeted Funds'!D:D)","v":true}]
[{"$f":"LEFT(B786,3)","v":"158"},1580570001,{"$f":"_xlfn.XLOOKUP(B786,'FC Master'!Q:Q,'FC Master'!B:B)","v":"158ChiefDeputy0001"},"HHS Chief Deputy Dir. - GF",null,null,null,null,null,null,null,null,null,null,null,null,null,null,null,null,"057","0001",{"$f":"_xlfn.XLOOKUP(VALUE(V786),'Budgeted Funds'!A:A,'Budgeted Funds'!D:D)","v":true}]
[{"$f":"LEFT(B787,3)","v":"158"},1580580001,{"$f":"_xlfn.XLOOKUP(B787,'FC Master'!Q:Q,'FC Master'!B:B)","v":"158SSCWkfDev0001"},"HHS SSC - Workforce Development-GF",null,null,null,null,null,null,null,null,null,null,null,null,null,null,null,null,"058","0001",{"$f":"_xlfn.XLOOKUP(VALUE(V787),'Budgeted Funds'!A:A,'Budgeted Funds'!D:D)","v":true}]
[{"$f":"LEFT(B788,3)","v":"158"},1580590001,{"$f":"_xlfn.XLOOKUP(B788,'FC Master'!Q:Q,'FC Master'!B:B)","v":"158SSCSupSvcComLiv01"},"HHS SSC-Supportive Svcs for Com Livng-GF",null,null,null,null,null,null,null,null,null,null,null,null,null,null,null,null,"059","0001",{"$f":"_xlfn.XLOOKUP(VALUE(V788),'Budgeted Funds'!A:A,'Budgeted Funds'!D:D)","v":true}]
[{"$f":"LEFT(B789,3)","v":"158"},1580600001,{"$f":"_xlfn.XLOOKUP(B789,'FC Master'!Q:Q,'FC Master'!B:B)","v":"158SSCHolFamSvc0001"},"HHS SSC - Holistic Family Services-GF",null,null,null,null,null,null,null,null,null,null,null,null,null,null,null,null,"060","0001",{"$f":"_xlfn.XLOOKUP(VALUE(V789),'Budgeted Funds'!A:A,'Budgeted Funds'!D:D)","v":true}]
[{"$f":"LEFT(B790,3)","v":"158"},1580610001,{"$f":"_xlfn.XLOOKUP(B790,'FC Master'!Q:Q,'FC Master'!B:B)","v":"158SSCPubHlthSS0001"},"HHS SSC - Public Health Social Servcs-GF",null,null,null,null,null,null,null,null,null,null,null,null,null,null,null,null,"061","0001",{"$f":"_xlfn.XLOOKUP(VALUE(V790),'Budgeted Funds'!A:A,'Budgeted Funds'!D:D)","v":true}]
[{"$f":"LEFT(B791,3)","v":"158"},1580620001,{"$f":"_xlfn.XLOOKUP(B791,'FC Master'!Q:Q,'FC Master'!B:B)","v":"158SSCSafIntervSvc01"},"HHS SSC - Safety Intervention Servcs-GF",null,null,null,null,null,null,null,null,null,null,null,null,null,null,null,null,"062","0001",{"$f":"_xlfn.XLOOKUP(VALUE(V791),'Budgeted Funds'!A:A,'Budgeted Funds'!D:D)","v":true}]
[{"$f":"LEFT(B792,3)","v":"158"},1580630001,{"$f":"_xlfn.XLOOKUP(B792,'FC Master'!Q:Q,'FC Master'!B:B)","v":"158SSCHousCont0001"},"HHS SSC - Housing Continuum-GF",null,null,null,null,null,null,null,null,null,null,null,null,null,null,null,null,"063","0001",{"$f":"_xlfn.XLOOKUP(VALUE(V792),'Budgeted Funds'!A:A,'Budgeted Funds'!D:D)","v":true}]
[{"$f":"LEFT(B793,3)","v":"158"},1580640001,{"$f":"_xlfn.XLOOKUP(B793,'FC Master'!Q:Q,'FC Master'!B:B)","v":"158SSCAccBasSupp0001"},"HHS SSC - Access to Basic Supports-GF",null,null,null,null,null,null,null,null,null,null,null,null,null,null,null,null,"064","0001",{"$f":"_xlfn.XLOOKUP(VALUE(V793),'Budgeted Funds'!A:A,'Budgeted Funds'!D:D)","v":true}]
[{"$f":"LEFT(B794,3)","v":"158"},1580650001,{"$f":"_xlfn.XLOOKUP(B794,'FC Master'!Q:Q,'FC Master'!B:B)","v":"158SSCChYthDev0001"},"HHS SSC - Child and Youth Development-GF",null,null,null,null,null,null,null,null,null,null,null,null,null,null,null,null,"065","0001",{"$f":"_xlfn.XLOOKUP(VALUE(V794),'Budgeted Funds'!A:A,'Budgeted Funds'!D:D)","v":true}]
[{"$f":"LEFT(B795,3)","v":"158"},1580660001,{"$f":"_xlfn.XLOOKUP(B795,'FC Master'!Q:Q,'FC Master'!B:B)","v":"158SSCBehHlth0001"},"HHS SSC - Behavioral Health-GF",null,null,null,null,null,null,null,null,null,null,null,null,null,null,null,null,"066","0001",{"$f":"_xlfn.XLOOKUP(VALUE(V795),'Budgeted Funds'!A:A,'Budgeted Funds'!D:D)","v":true}]
[{"$f":"LEFT(B796,3)","v":"158"},1580700001,{"$f":"_xlfn.XLOOKUP(B796,'FC Master'!Q:Q,'FC Master'!B:B)","v":"158OPIOIDABATE0001"},"HHS Opioid Abatement",null,null,null,null,null,null,null,null,null,null,null,null,null,null,null,null,"070","0001",{"$f":"_xlfn.XLOOKUP(VALUE(V796),'Budgeted Funds'!A:A,'Budgeted Funds'!D:D)","v":true}]
[{"$f":"LEFT(B797,3)","v":"158"},1588010001,{"$f":"_xlfn.XLOOKUP(B797,'FC Master'!Q:Q,'FC Master'!B:B)","v":"158CAR0001"},"HHS CAR-HumanSrvcs GF",null,null,null,null,null,null,null,null,null,null,null,null,null,null,null,null,"801","0001",{"$f":"_xlfn.XLOOKUP(VALUE(V797),'Budgeted Funds'!A:A,'Budgeted Funds'!D:D)","v":true}]
[{"$f":"LEFT(B798,3)","v":"159"},1590010001,{"$f":"_xlfn.XLOOKUP(B798,'FC Master'!Q:Q,'FC Master'!B:B)","v":"159StFltAdm0001"},"EMS Star Flight Administrative-GF",null,null,null,null,null,null,null,null,null,null,null,null,null,null,null,null,"001","0001",{"$f":"_xlfn.XLOOKUP(VALUE(V798),'Budgeted Funds'!A:A,'Budgeted Funds'!D:D)","v":true}]
[{"$f":"LEFT(B799,3)","v":"159"},1590014044,{"$f":"_xlfn.XLOOKUP(B799,'FC Master'!Q:Q,'FC Master'!B:B)","v":"159StFltOptgs4044"},"EMS Star Flight-CO 2005",null,null,null,null,null,null,null,null,null,null,null,null,null,null,null,null,"001","4044",{"$f":"_xlfn.XLOOKUP(VALUE(V799),'Budgeted Funds'!A:A,'Budgeted Funds'!D:D)","v":{"$error":"#N/A"}}]
[{"$f":"LEFT(B800,3)","v":"159"},1590014063,{"$f":"_xlfn.XLOOKUP(B800,'FC Master'!Q:Q,'FC Master'!B:B)","v":"159StFltOptgs4063"},"EMS Star Flight-CO 2010-Nontax",null,null,null,null,null,null,null,null,null,null,null,null,null,null,null,null,"001","4063",{"$f":"_xlfn.XLOOKUP(VALUE(V800),'Budgeted Funds'!A:A,'Budgeted Funds'!D:D)","v":{"$error":"#N/A"}}]
[{"$f":"LEFT(B801,3)","v":"159"},1590020001,{"$f":"_xlfn.XLOOKUP(B801,'FC Master'!Q:Q,'FC Master'!B:B)","v":"159StFltOps0001"},"EMS Star Flight Operations-GF",null,null,null,null,null,null,null,null,null,null,null,null,null,null,null,null,"002","0001",{"$f":"_xlfn.XLOOKUP(VALUE(V801),'Budgeted Funds'!A:A,'Budgeted Funds'!D:D)","v":true}]
[{"$f":"LEFT(B802,3)","v":"159"},1590030001,{"$f":"_xlfn.XLOOKUP(B802,'FC Master'!Q:Q,'FC Master'!B:B)","v":"159StFltPilots0001"},"EMS Star Flight Pilots-GF",null,null,null,null,null,null,null,null,null,null,null,null,null,null,null,null,"003","0001",{"$f":"_xlfn.XLOOKUP(VALUE(V802),'Budgeted Funds'!A:A,'Budgeted Funds'!D:D)","v":true}]
[{"$f":"LEFT(B803,3)","v":"159"},1590040001,{"$f":"_xlfn.XLOOKUP(B803,'FC Master'!Q:Q,'FC Master'!B:B)","v":"159StFltNurses0001"},"EMS Star Flight Nurses-GF",null,null,null,null,null,null,null,null,null,null,null,null,null,null,null,null,"004","0001",{"$f":"_xlfn.XLOOKUP(VALUE(V803),'Budgeted Funds'!A:A,'Budgeted Funds'!D:D)","v":true}]
[{"$f":"LEFT(B804,3)","v":"159"},1590050001,{"$f":"_xlfn.XLOOKUP(B804,'FC Master'!Q:Q,'FC Master'!B:B)","v":"159StFltParMed0001"},"EMS Star Flight Paramedics-GF",null,null,null,null,null,null,null,null,null,null,null,null,null,null,null,null,"005","0001",{"$f":"_xlfn.XLOOKUP(VALUE(V804),'Budgeted Funds'!A:A,'Budgeted Funds'!D:D)","v":true}]
[{"$f":"LEFT(B805,3)","v":"159"},1590060001,{"$f":"_xlfn.XLOOKUP(B805,'FC Master'!Q:Q,'FC Master'!B:B)","v":"159StFltMnt0001"},"EMS Star Flight Maintenance-GF",null,null,null,null,null,null,null,null,null,null,null,null,null,null,null,null,"006","0001",{"$f":"_xlfn.XLOOKUP(VALUE(V805),'Budgeted Funds'!A:A,'Budgeted Funds'!D:D)","v":true}]
[{"$f":"LEFT(B806,3)","v":"159"},1590070001,{"$f":"_xlfn.XLOOKUP(B806,'FC Master'!Q:Q,'FC Master'!B:B)","v":"159IntLocalSvs0001"},"EMS Star Flight Interlocal Svs-GF",null,null,null,null,null,null,null,null,null,null,null,null,null,null,null,null,"007","0001",{"$f":"_xlfn.XLOOKUP(VALUE(V806),'Budgeted Funds'!A:A,'Budgeted Funds'!D:D)","v":true}]
[{"$f":"LEFT(B807,3)","v":"159"},1590080001,{"$f":"_xlfn.XLOOKUP(B807,'FC Master'!Q:Q,'FC Master'!B:B)","v":"159EMS0001"},"EMS Emrg Med Sv-GF",null,null,null,null,null,null,null,null,null,null,null,null,null,null,null,null,"008","0001",{"$f":"_xlfn.XLOOKUP(VALUE(V807),'Budgeted Funds'!A:A,'Budgeted Funds'!D:D)","v":true}]
[{"$f":"LEFT(B808,3)","v":"159"},1590084002,{"$f":"_xlfn.XLOOKUP(B808,'FC Master'!Q:Q,'FC Master'!B:B)","v":"159EMS4002"},"EMS Emrg Med Sv-CO 2006",null,null,null,null,null,null,null,null,null,null,null,null,null,null,null,null,"008","4002",{"$f":"_xlfn.XLOOKUP(VALUE(V808),'Budgeted Funds'!A:A,'Budgeted Funds'!D:D)","v":{"$error":"#N/A"}}]
[{"$f":"LEFT(B809,3)","v":"159"},1590084052,{"$f":"_xlfn.XLOOKUP(B809,'FC Master'!Q:Q,'FC Master'!B:B)","v":"159EMS4052"},"EMS Emrg Med Sv-CO 2007",null,null,null,null,null,null,null,null,null,null,null,null,null,null,null,null,"008","4052",{"$f":"_xlfn.XLOOKUP(VALUE(V809),'Budgeted Funds'!A:A,'Budgeted Funds'!D:D)","v":{"$error":"#N/A"}}]
[{"$f":"LEFT(B810,3)","v":"159"},1590084059,{"$f":"_xlfn.XLOOKUP(B810,'FC Master'!Q:Q,'FC Master'!B:B)","v":"159EMS4059"},"EMS Emrg Med Sv-CO 2009",null,null,null,null,null,null,null,null,null,null,null,null,null,null,null,null,"008","4059",{"$f":"_xlfn.XLOOKUP(VALUE(V810),'Budgeted Funds'!A:A,'Budgeted Funds'!D:D)","v":{"$error":"#N/A"}}]
[{"$f":"LEFT(B811,3)","v":"159"},1590084068,{"$f":"_xlfn.XLOOKUP(B811,'FC Master'!Q:Q,'FC Master'!B:B)","v":"159EMS4068"},"EMS Emrg Med Sv-CO 2011",null,null,null,null,null,null,null,null,null,null,null,null,null,null,null,null,"008","4068",{"$f":"_xlfn.XLOOKUP(VALUE(V811),'Budgeted Funds'!A:A,'Budgeted Funds'!D:D)","v":{"$error":"#N/A"}}]
[{"$f":"LEFT(B812,3)","v":"159"},1590090001,{"$f":"_xlfn.XLOOKUP(B812,'FC Master'!Q:Q,'FC Master'!B:B)","v":"159ESD0001"},"EMS Emergency Service Districts-GF",null,null,null,null,null,null,null,null,null,null,null,null,null,null,null,null,"009","0001",{"$f":"_xlfn.XLOOKUP(VALUE(V812),'Budgeted Funds'!A:A,'Budgeted Funds'!D:D)","v":true}]
[{"$f":"LEFT(B813,3)","v":"159"},1590100001,{"$f":"_xlfn.XLOOKUP(B813,'FC Master'!Q:Q,'FC Master'!B:B)","v":"159DCPE0001"},"EMS Clin Perf & Educ-GF",null,null,null,null,null,null,null,null,null,null,null,null,null,null,null,null,"010","0001",{"$f":"_xlfn.XLOOKUP(VALUE(V813),'Budgeted Funds'!A:A,'Budgeted Funds'!D:D)","v":true}]
[{"$f":"LEFT(B814,3)","v":"159"},1590110001,{"$f":"_xlfn.XLOOKUP(B814,'FC Master'!Q:Q,'FC Master'!B:B)","v":"159EMS0001"},"EMS Emrg Fire Sv-GF",null,null,null,null,null,null,null,null,null,null,null,null,null,null,null,null,"011","0001",{"$f":"_xlfn.XLOOKUP(VALUE(V814),'Budgeted Funds'!A:A,'Budgeted Funds'!D:D)","v":true}]
[{"$f":"LEFT(B815,3)","v":"159"},1598000001,{"$f":"_xlfn.XLOOKUP(B815,'FC Master'!Q:Q,'FC Master'!B:B)","v":"159CAR0DevRegln001"},"EMS CAR-DevRegIn GF",null,null,null,null,null,null,null,null,null,null,null,null,null,null,null,null,"800","0001",{"$f":"_xlfn.XLOOKUP(VALUE(V815),'Budgeted Funds'!A:A,'Budgeted Funds'!D:D)","v":true}]
[{"$f":"LEFT(B816,3)","v":"159"},1599000001,{"$f":"_xlfn.XLOOKUP(B816,'FC Master'!Q:Q,'FC Master'!B:B)","v":"159ReimburseRes0001"},"EMS Reimbursement Resolution Funds-GF",null,null,null,null,null,null,null,null,null,null,null,null,null,null,null,null,"900","0001",{"$f":"_xlfn.XLOOKUP(VALUE(V816),'Budgeted Funds'!A:A,'Budgeted Funds'!D:D)","v":true}]
[{"$f":"LEFT(B817,3)","v":"190"},1908000001,{"$f":"_xlfn.XLOOKUP(B817,'FC Master'!Q:Q,'FC Master'!B:B)","v":"190-101CARGenAdm0001"},"Ctl Computer CAR-County Judge-GenAdm",null,null,null,null,null,null,null,null,null,null,null,null,null,null,null,null,"800","0001",{"$f":"_xlfn.XLOOKUP(VALUE(V817),'Budgeted Funds'!A:A,'Budgeted Funds'!D:D)","v":true}]
[{"$f":"LEFT(B818,3)","v":"190"},1908010001,{"$f":"_xlfn.XLOOKUP(B818,'FC Master'!Q:Q,'FC Master'!B:B)","v":"190-101CARJuvSvs0001"},"Ctl Computer CAR-County Judge-JuvSvs",null,null,null,null,null,null,null,null,null,null,null,null,null,null,null,null,"801","0001",{"$f":"_xlfn.XLOOKUP(VALUE(V818),'Budgeted Funds'!A:A,'Budgeted Funds'!D:D)","v":true}]
[{"$f":"LEFT(B819,3)","v":"190"},1908020001,{"$f":"_xlfn.XLOOKUP(B819,'FC Master'!Q:Q,'FC Master'!B:B)","v":"190-102CARGenAdm0001"},"Ctl Computer CAR-CC Pct 1-GenAdm",null,null,null,null,null,null,null,null,null,null,null,null,null,null,null,null,"802","0001",{"$f":"_xlfn.XLOOKUP(VALUE(V819),'Budgeted Funds'!A:A,'Budgeted Funds'!D:D)","v":true}]
[{"$f":"LEFT(B820,3)","v":"190"},1908030001,{"$f":"_xlfn.XLOOKUP(B820,'FC Master'!Q:Q,'FC Master'!B:B)","v":"190-103CARGenAdm0001"},"Ctl Computer CAR-CC Pct 2-GenAdm",null,null,null,null,null,null,null,null,null,null,null,null,null,null,null,null,"803","0001",{"$f":"_xlfn.XLOOKUP(VALUE(V820),'Budgeted Funds'!A:A,'Budgeted Funds'!D:D)","v":true}]
[{"$f":"LEFT(B821,3)","v":"190"},1908040001,{"$f":"_xlfn.XLOOKUP(B821,'FC Master'!Q:Q,'FC Master'!B:B)","v":"190-104CARGenAdm0001"},"Ctl Computer CAR-CC Pct 3-GenAdm",null,null,null,null,null,null,null,null,null,null,null,null,null,null,null,null,"804","0001",{"$f":"_xlfn.XLOOKUP(VALUE(V821),'Budgeted Funds'!A:A,'Budgeted Funds'!D:D)","v":true}]
[{"$f":"LEFT(B822,3)","v":"190"},1908050001,{"$f":"_xlfn.XLOOKUP(B822,'FC Master'!Q:Q,'FC Master'!B:B)","v":"190-105CARGenAdm0001"},"Ctl Computer CAR-CC Pct 4-GenAdm",null,null,null,null,null,null,null,null,null,null,null,null,null,null,null,null,"805","0001",{"$f":"_xlfn.XLOOKUP(VALUE(V822),'Budgeted Funds'!A:A,'Budgeted Funds'!D:D)","v":true}]
[{"$f":"LEFT(B823,3)","v":"190"},1908060001,{"$f":"_xlfn.XLOOKUP(B823,'FC Master'!Q:Q,'FC Master'!B:B)","v":"190-106CARFinAdm0001"},"Ctl Computer CAR-County Auditor-FinAdm",null,null,null,null,null,null,null,null,null,null,null,null,null,null,null,null,"806","0001",{"$f":"_xlfn.XLOOKUP(VALUE(V823),'Budgeted Funds'!A:A,'Budgeted Funds'!D:D)","v":true}]
[{"$f":"LEFT(B824,3)","v":"190"},1908070001,{"$f":"_xlfn.XLOOKUP(B824,'FC Master'!Q:Q,'FC Master'!B:B)","v":"190-107CARFinAdm0001"},"Ctl Computer CAR-County Treasurer-FinAdm",null,null,null,null,null,null,null,null,null,null,null,null,null,null,null,null,"807","0001",{"$f":"_xlfn.XLOOKUP(VALUE(V824),'Budgeted Funds'!A:A,'Budgeted Funds'!D:D)","v":true}]
[{"$f":"LEFT(B825,3)","v":"190"},1908080001,{"$f":"_xlfn.XLOOKUP(B825,'FC Master'!Q:Q,'FC Master'!B:B)","v":"190-108CARTaxAdm0001"},"Ctl Computer CAR-Tax Collector-TaxAdm",null,null,null,null,null,null,null,null,null,null,null,null,null,null,null,null,"808","0001",{"$f":"_xlfn.XLOOKUP(VALUE(V825),'Budgeted Funds'!A:A,'Budgeted Funds'!D:D)","v":true}]
[{"$f":"LEFT(B826,3)","v":"190"},1908090001,{"$f":"_xlfn.XLOOKUP(B826,'FC Master'!Q:Q,'FC Master'!B:B)","v":"190-108CARCrmJs0001"},"Ctl Computer CAR-Tax Collector-CrmJs",null,null,null,null,null,null,null,null,null,null,null,null,null,null,null,null,"809","0001",{"$f":"_xlfn.XLOOKUP(VALUE(V826),'Budgeted Funds'!A:A,'Budgeted Funds'!D:D)","v":true}]
[{"$f":"LEFT(B827,3)","v":"190"},1908100001,{"$f":"_xlfn.XLOOKUP(B827,'FC Master'!Q:Q,'FC Master'!B:B)","v":"190-108CARElnAdm0001"},"Ctl Computer CAR-Tax Collector-ElnAdm",null,null,null,null,null,null,null,null,null,null,null,null,null,null,null,null,"810","0001",{"$f":"_xlfn.XLOOKUP(VALUE(V827),'Budgeted Funds'!A:A,'Budgeted Funds'!D:D)","v":true}]
[{"$f":"LEFT(B828,3)","v":"190"},1908110001,{"$f":"_xlfn.XLOOKUP(B828,'FC Master'!Q:Q,'FC Master'!B:B)","v":"190-109CARFinAdm0001"},"Ctl Computer CAR-PBO-FinAdm",null,null,null,null,null,null,null,null,null,null,null,null,null,null,null,null,"811","0001",{"$f":"_xlfn.XLOOKUP(VALUE(V828),'Budgeted Funds'!A:A,'Budgeted Funds'!D:D)","v":true}]
[{"$f":"LEFT(B829,3)","v":"190"},1908120001,{"$f":"_xlfn.XLOOKUP(B829,'FC Master'!Q:Q,'FC Master'!B:B)","v":"190-110CARGenAdm0001"},"Ctl Computer CAR-General Adm-GenAdm",null,null,null,null,null,null,null,null,null,null,null,null,null,null,null,null,"812","0001",{"$f":"_xlfn.XLOOKUP(VALUE(V829),'Budgeted Funds'!A:A,'Budgeted Funds'!D:D)","v":true}]
[{"$f":"LEFT(B830,3)","v":"190"},1908130001,{"$f":"_xlfn.XLOOKUP(B830,'FC Master'!Q:Q,'FC Master'!B:B)","v":"190-110CARHlh0001"},"Ctl Computer CAR-General Adm-Hlhcare",null,null,null,null,null,null,null,null,null,null,null,null,null,null,null,null,"813","0001",{"$f":"_xlfn.XLOOKUP(VALUE(V830),'Budgeted Funds'!A:A,'Budgeted Funds'!D:D)","v":true}]
[{"$f":"LEFT(B831,3)","v":"190"},1908140001,{"$f":"_xlfn.XLOOKUP(B831,'FC Master'!Q:Q,'FC Master'!B:B)","v":"190-110CAREcon0001"},"Ctl Computer CAR-General Adm-EconDev",null,null,null,null,null,null,null,null,null,null,null,null,null,null,null,null,"814","0001",{"$f":"_xlfn.XLOOKUP(VALUE(V831),'Budgeted Funds'!A:A,'Budgeted Funds'!D:D)","v":true}]
[{"$f":"LEFT(B832,3)","v":"190"},1908150001,{"$f":"_xlfn.XLOOKUP(B832,'FC Master'!Q:Q,'FC Master'!B:B)","v":"190-111CARGenAdm0001"},"Ctl Computer CAR-HRMD-GenAdm",null,null,null,null,null,null,null,null,null,null,null,null,null,null,null,null,"815","0001",{"$f":"_xlfn.XLOOKUP(VALUE(V832),'Budgeted Funds'!A:A,'Budgeted Funds'!D:D)","v":true}]
[{"$f":"LEFT(B833,3)","v":"190"},1908160001,{"$f":"_xlfn.XLOOKUP(B833,'FC Master'!Q:Q,'FC Master'!B:B)","v":"190-112CARGenAdm0001"},"Ctl Computer CAR-ITS-GenAdm",null,null,null,null,null,null,null,null,null,null,null,null,null,null,null,null,"816","0001",{"$f":"_xlfn.XLOOKUP(VALUE(V833),'Budgeted Funds'!A:A,'Budgeted Funds'!D:D)","v":true}]
[{"$f":"LEFT(B834,3)","v":"190"},1908170001,{"$f":"_xlfn.XLOOKUP(B834,'FC Master'!Q:Q,'FC Master'!B:B)","v":"190-113CAREcon0001"},"Ctl Computer CAR-EXPO Center-EconDev",null,null,null,null,null,null,null,null,null,null,null,null,null,null,null,null,"817","0001",{"$f":"_xlfn.XLOOKUP(VALUE(V834),'Budgeted Funds'!A:A,'Budgeted Funds'!D:D)","v":true}]
[{"$f":"LEFT(B835,3)","v":"190"},1908180001,{"$f":"_xlfn.XLOOKUP(B835,'FC Master'!Q:Q,'FC Master'!B:B)","v":"190-114CARFac0001"},"Ctl Computer CAR-Facilities Mgmt-FacMgmt",null,null,null,null,null,null,null,null,null,null,null,null,null,null,null,null,"818","0001",{"$f":"_xlfn.XLOOKUP(VALUE(V835),'Budgeted Funds'!A:A,'Budgeted Funds'!D:D)","v":true}]
[{"$f":"LEFT(B836,3)","v":"190"},1908190001,{"$f":"_xlfn.XLOOKUP(B836,'FC Master'!Q:Q,'FC Master'!B:B)","v":"190-114CAREcon0001"},"Ctl Computer CAR-Facilities Mgmt-EconDev",null,null,null,null,null,null,null,null,null,null,null,null,null,null,null,null,{"$f":"MID(B836,4,3)","v":"819"},{"$f":"MID(B836,7,4)","v":"0001"},{"$f":"_xlfn.XLOOKUP(VALUE(V836),'Budgeted Funds'!A:A,'Budgeted Funds'!D:D)","v":true}]
[{"$f":"LEFT(B837,3)","v":"190"},1908200001,{"$f":"_xlfn.XLOOKUP(B837,'FC Master'!Q:Q,'FC Master'!B:B)","v":"190-115CARFinAdm0001"},"Ctl Computer CAR-Purchasing-FinAdm",null,null,null,null,null,null,null,null,null,null,null,null,null,null,null,null,"820","0001",{"$f":"_xlfn.XLOOKUP(VALUE(V837),'Budgeted Funds'!A:A,'Budgeted Funds'!D:D)","v":true}]
[{"$f":"LEFT(B838,3)","v":"190"},1908210001,{"$f":"_xlfn.XLOOKUP(B838,'FC Master'!Q:Q,'FC Master'!B:B)","v":"190-116CARHuman0001"},"Ctl Computer CAR-Veterans Svs-HumanSvs",null,null,null,null,null,null,null,null,null,null,null,null,null,null,null,null,"821","0001",{"$f":"_xlfn.XLOOKUP(VALUE(V838),'Budgeted Funds'!A:A,'Budgeted Funds'!D:D)","v":true}]
[{"$f":"LEFT(B839,3)","v":"190"},1908220001,{"$f":"_xlfn.XLOOKUP(B839,'FC Master'!Q:Q,'FC Master'!B:B)","v":"190-117CARCulEdu0001"},"Ctl Computer CAR-Historical Comm-Cul&Edu",null,null,null,null,null,null,null,null,null,null,null,null,null,null,null,null,"822","0001",{"$f":"_xlfn.XLOOKUP(VALUE(V839),'Budgeted Funds'!A:A,'Budgeted Funds'!D:D)","v":true}]
[{"$f":"LEFT(B840,3)","v":"190"},1908230001,{"$f":"_xlfn.XLOOKUP(B840,'FC Master'!Q:Q,'FC Master'!B:B)","v":"190-118CARHuman0001"},"Ctl Computer CAR-Agr Ext Serv-HumanSvs",null,null,null,null,null,null,null,null,null,null,null,null,null,null,null,null,"823","0001",{"$f":"_xlfn.XLOOKUP(VALUE(V840),'Budgeted Funds'!A:A,'Budgeted Funds'!D:D)","v":true}]
[{"$f":"LEFT(B841,3)","v":"190"},1908240001,{"$f":"_xlfn.XLOOKUP(B841,'FC Master'!Q:Q,'FC Master'!B:B)","v":"190-119CARCivJs0001"},"Ctl Computer CAR-County Attorney-CivJs",null,null,null,null,null,null,null,null,null,null,null,null,null,null,null,null,"824","0001",{"$f":"_xlfn.XLOOKUP(VALUE(V841),'Budgeted Funds'!A:A,'Budgeted Funds'!D:D)","v":true}]
[{"$f":"LEFT(B842,3)","v":"190"},1908250001,{"$f":"_xlfn.XLOOKUP(B842,'FC Master'!Q:Q,'FC Master'!B:B)","v":"190-119CARCrmJs0001"},"Ctl Computer CAR-County Attorney-CrmJs",null,null,null,null,null,null,null,null,null,null,null,null,null,null,null,null,"825","0001",{"$f":"_xlfn.XLOOKUP(VALUE(V842),'Budgeted Funds'!A:A,'Budgeted Funds'!D:D)","v":true}]
[{"$f":"LEFT(B843,3)","v":"190"},1908260001,{"$f":"_xlfn.XLOOKUP(B843,'FC Master'!Q:Q,'FC Master'!B:B)","v":"190-120CARGenAdm0001"},"Ctl Computer CAR-County Clerk-GenAdm",null,null,null,null,null,null,null,null,null,null,null,null,null,null,null,null,"826","0001",{"$f":"_xlfn.XLOOKUP(VALUE(V843),'Budgeted Funds'!A:A,'Budgeted Funds'!D:D)","v":true}]
[{"$f":"LEFT(B844,3)","v":"190"},1908270001,{"$f":"_xlfn.XLOOKUP(B844,'FC Master'!Q:Q,'FC Master'!B:B)","v":"190-120CARElnAdm0001"},"Ctl Computer CAR-County Clerk-ElnAdm",null,null,null,null,null,null,null,null,null,null,null,null,null,null,null,null,"827","0001",{"$f":"_xlfn.XLOOKUP(VALUE(V844),'Budgeted Funds'!A:A,'Budgeted Funds'!D:D)","v":true}]
[{"$f":"LEFT(B845,3)","v":"190"},1908280001,{"$f":"_xlfn.XLOOKUP(B845,'FC Master'!Q:Q,'FC Master'!B:B)","v":"190-120CARCivJs0001"},"Ctl Computer CAR-County Clerk-CivJs",null,null,null,null,null,null,null,null,null,null,null,null,null,null,null,null,"828","0001",{"$f":"_xlfn.XLOOKUP(VALUE(V845),'Budgeted Funds'!A:A,'Budgeted Funds'!D:D)","v":true}]
[{"$f":"LEFT(B846,3)","v":"190"},1908290001,{"$f":"_xlfn.XLOOKUP(B846,'FC Master'!Q:Q,'FC Master'!B:B)","v":"190-120CARCrmJs0001"},"Ctl Computer CAR-County Clerk-CrmJs",null,null,null,null,null,null,null,null,null,null,null,null,null,null,null,null,"829","0001",{"$f":"_xlfn.XLOOKUP(VALUE(V846),'Budgeted Funds'!A:A,'Budgeted Funds'!D:D)","v":true}]
[{"$f":"LEFT(B847,3)","v":"190"},1908300001,{"$f":"_xlfn.XLOOKUP(B847,'FC Master'!Q:Q,'FC Master'!B:B)","v":"190-121CARCivJs0001"},"Ctl Computer CAR-District Clerk-CivJs",null,null,null,null,null,null,null,null,null,null,null,null,null,null,null,null,"830","0001",{"$f":"_xlfn.XLOOKUP(VALUE(V847),'Budgeted Funds'!A:A,'Budgeted Funds'!D:D)","v":true}]
[{"$f":"LEFT(B848,3)","v":"190"},1908310001,{"$f":"_xlfn.XLOOKUP(B848,'FC Master'!Q:Q,'FC Master'!B:B)","v":"190-121CARCrmJs0001"},"Ctl Computer CAR-District Clerk-CrmJs",null,null,null,null,null,null,null,null,null,null,null,null,null,null,null,null,"831","0001",{"$f":"_xlfn.XLOOKUP(VALUE(V848),'Budgeted Funds'!A:A,'Budgeted Funds'!D:D)","v":true}]
[{"$f":"LEFT(B849,3)","v":"190"},1908320001,{"$f":"_xlfn.XLOOKUP(B849,'FC Master'!Q:Q,'FC Master'!B:B)","v":"190-122CARCivJs0001"},"Ctl Computer CAR-Civil Courts-CivJs",null,null,null,null,null,null,null,null,null,null,null,null,null,null,null,null,"832","0001",{"$f":"_xlfn.XLOOKUP(VALUE(V849),'Budgeted Funds'!A:A,'Budgeted Funds'!D:D)","v":true}]
[{"$f":"LEFT(B850,3)","v":"190"},1908330001,{"$f":"_xlfn.XLOOKUP(B850,'FC Master'!Q:Q,'FC Master'!B:B)","v":"190-123CARCrmJs0001"},"Ctl Computer CAR-District Attorney-CrmJs",null,null,null,null,null,null,null,null,null,null,null,null,null,null,null,null,"833","0001",{"$f":"_xlfn.XLOOKUP(VALUE(V850),'Budgeted Funds'!A:A,'Budgeted Funds'!D:D)","v":true}]
[{"$f":"LEFT(B851,3)","v":"190"},1908340001,{"$f":"_xlfn.XLOOKUP(B851,'FC Master'!Q:Q,'FC Master'!B:B)","v":"190-123CARCivJs0001"},"Ctl Computer CAR-District Attorney-CivJs",null,null,null,null,null,null,null,null,null,null,null,null,null,null,null,null,"834","0001",{"$f":"_xlfn.XLOOKUP(VALUE(V851),'Budgeted Funds'!A:A,'Budgeted Funds'!D:D)","v":true}]
[{"$f":"LEFT(B852,3)","v":"190"},1908350001,{"$f":"_xlfn.XLOOKUP(B852,'FC Master'!Q:Q,'FC Master'!B:B)","v":"190-124CARCrmJs0001"},"Ctl Computer CAR-Criminal Courts-CrmJs",null,null,null,null,null,null,null,null,null,null,null,null,null,null,null,null,"835","0001",{"$f":"_xlfn.XLOOKUP(VALUE(V852),'Budgeted Funds'!A:A,'Budgeted Funds'!D:D)","v":true}]
[{"$f":"LEFT(B853,3)","v":"190"},1908360001,{"$f":"_xlfn.XLOOKUP(B853,'FC Master'!Q:Q,'FC Master'!B:B)","v":"190-125CARCivJs0001"},"Ctl Computer CAR-Probate Court-CivJs",null,null,null,null,null,null,null,null,null,null,null,null,null,null,null,null,"836","0001",{"$f":"_xlfn.XLOOKUP(VALUE(V853),'Budgeted Funds'!A:A,'Budgeted Funds'!D:D)","v":true}]
[{"$f":"LEFT(B854,3)","v":"190"},1908370001,{"$f":"_xlfn.XLOOKUP(B854,'FC Master'!Q:Q,'FC Master'!B:B)","v":"190-126CARCivJs0001"},"Ctl Computer CAR-JP 1-CivJs",null,null,null,null,null,null,null,null,null,null,null,null,null,null,null,null,"837","0001",{"$f":"_xlfn.XLOOKUP(VALUE(V854),'Budgeted Funds'!A:A,'Budgeted Funds'!D:D)","v":true}]
[{"$f":"LEFT(B855,3)","v":"190"},1908380001,{"$f":"_xlfn.XLOOKUP(B855,'FC Master'!Q:Q,'FC Master'!B:B)","v":"190-126CARCrmJs0001"},"Ctl Computer CAR-JP 1-CrmJs",null,null,null,null,null,null,null,null,null,null,null,null,null,null,null,null,"838","0001",{"$f":"_xlfn.XLOOKUP(VALUE(V855),'Budgeted Funds'!A:A,'Budgeted Funds'!D:D)","v":true}]
[{"$f":"LEFT(B856,3)","v":"190"},1908390001,{"$f":"_xlfn.XLOOKUP(B856,'FC Master'!Q:Q,'FC Master'!B:B)","v":"190-127CARCivJs0001"},"Ctl Computer CAR-JP 2-CivJs",null,null,null,null,null,null,null,null,null,null,null,null,null,null,null,null,"839","0001",{"$f":"_xlfn.XLOOKUP(VALUE(V856),'Budgeted Funds'!A:A,'Budgeted Funds'!D:D)","v":true}]
[{"$f":"LEFT(B857,3)","v":"190"},1908400001,{"$f":"_xlfn.XLOOKUP(B857,'FC Master'!Q:Q,'FC Master'!B:B)","v":"190-127CARCrmJs0001"},"Ctl Computer CAR-JP 2-CrmJs",null,null,null,null,null,null,null,null,null,null,null,null,null,null,null,null,"840","0001",{"$f":"_xlfn.XLOOKUP(VALUE(V857),'Budgeted Funds'!A:A,'Budgeted Funds'!D:D)","v":true}]
[{"$f":"LEFT(B858,3)","v":"190"},1908410001,{"$f":"_xlfn.XLOOKUP(B858,'FC Master'!Q:Q,'FC Master'!B:B)","v":"190-128CARCivJs0001"},"Ctl Computer CAR-JP 3-CivJs",null,null,null,null,null,null,null,null,null,null,null,null,null,null,null,null,"841","0001",{"$f":"_xlfn.XLOOKUP(VALUE(V858),'Budgeted Funds'!A:A,'Budgeted Funds'!D:D)","v":true}]
[{"$f":"LEFT(B859,3)","v":"190"},1908420001,{"$f":"_xlfn.XLOOKUP(B859,'FC Master'!Q:Q,'FC Master'!B:B)","v":"190-128CARCrmJs0001"},"Ctl Computer CAR-JP 3-CrmJs",null,null,null,null,null,null,null,null,null,null,null,null,null,null,null,null,"842","0001",{"$f":"_xlfn.XLOOKUP(VALUE(V859),'Budgeted Funds'!A:A,'Budgeted Funds'!D:D)","v":true}]
[{"$f":"LEFT(B860,3)","v":"190"},1908430001,{"$f":"_xlfn.XLOOKUP(B860,'FC Master'!Q:Q,'FC Master'!B:B)","v":"190-129CARCivJs0001"},"Ctl Computer CAR-JP 4-CivJs",null,null,null,null,null,null,null,null,null,null,null,null,null,null,null,null,"843","0001",{"$f":"_xlfn.XLOOKUP(VALUE(V860),'Budgeted Funds'!A:A,'Budgeted Funds'!D:D)","v":true}]
[{"$f":"LEFT(B861,3)","v":"190"},1908440001,{"$f":"_xlfn.XLOOKUP(B861,'FC Master'!Q:Q,'FC Master'!B:B)","v":"190-129CARCrmJs0001"},"Ctl Computer CAR-JP 4-CrmJs",null,null,null,null,null,null,null,null,null,null,null,null,null,null,null,null,"844","0001",{"$f":"_xlfn.XLOOKUP(VALUE(V861),'Budgeted Funds'!A:A,'Budgeted Funds'!D:D)","v":true}]
[{"$f":"LEFT(B862,3)","v":"190"},1908450001,{"$f":"_xlfn.XLOOKUP(B862,'FC Master'!Q:Q,'FC Master'!B:B)","v":"190-130CARCivJs0001"},"Ctl Computer CAR-JP 5-CivJs",null,null,null,null,null,null,null,null,null,null,null,null,null,null,null,null,"845","0001",{"$f":"_xlfn.XLOOKUP(VALUE(V862),'Budgeted Funds'!A:A,'Budgeted Funds'!D:D)","v":true}]
[{"$f":"LEFT(B863,3)","v":"190"},1908460001,{"$f":"_xlfn.XLOOKUP(B863,'FC Master'!Q:Q,'FC Master'!B:B)","v":"190-130CARCrmJs0001"},"Ctl Computer CAR-JP 5-CrmJs",null,null,null,null,null,null,null,null,null,null,null,null,null,null,null,null,"846","0001",{"$f":"_xlfn.XLOOKUP(VALUE(V863),'Budgeted Funds'!A:A,'Budgeted Funds'!D:D)","v":true}]
[{"$f":"LEFT(B864,3)","v":"190"},1908470001,{"$f":"_xlfn.XLOOKUP(B864,'FC Master'!Q:Q,'FC Master'!B:B)","v":"190-131CARLE0001"},"Ctl Computer CAR-Constable 1-LE",null,null,null,null,null,null,null,null,null,null,null,null,null,null,null,null,"847","0001",{"$f":"_xlfn.XLOOKUP(VALUE(V864),'Budgeted Funds'!A:A,'Budgeted Funds'!D:D)","v":true}]
[{"$f":"LEFT(B865,3)","v":"190"},1908480001,{"$f":"_xlfn.XLOOKUP(B865,'FC Master'!Q:Q,'FC Master'!B:B)","v":"190-132CARLE0001"},"Ctl Computer CAR-Constable 2-LE",null,null,null,null,null,null,null,null,null,null,null,null,null,null,null,null,"848","0001",{"$f":"_xlfn.XLOOKUP(VALUE(V865),'Budgeted Funds'!A:A,'Budgeted Funds'!D:D)","v":true}]
[{"$f":"LEFT(B866,3)","v":"190"},1908490001,{"$f":"_xlfn.XLOOKUP(B866,'FC Master'!Q:Q,'FC Master'!B:B)","v":"190-133CARLE0001"},"Ctl Computer CAR-Constable 3-LE",null,null,null,null,null,null,null,null,null,null,null,null,null,null,null,null,"849","0001",{"$f":"_xlfn.XLOOKUP(VALUE(V866),'Budgeted Funds'!A:A,'Budgeted Funds'!D:D)","v":true}]
[{"$f":"LEFT(B867,3)","v":"190"},1908500001,{"$f":"_xlfn.XLOOKUP(B867,'FC Master'!Q:Q,'FC Master'!B:B)","v":"190-134CARLE0001"},"Ctl Computer CAR-Constable 4-LE",null,null,null,null,null,null,null,null,null,null,null,null,null,null,null,null,"850","0001",{"$f":"_xlfn.XLOOKUP(VALUE(V867),'Budgeted Funds'!A:A,'Budgeted Funds'!D:D)","v":true}]
[{"$f":"LEFT(B868,3)","v":"190"},1908510001,{"$f":"_xlfn.XLOOKUP(B868,'FC Master'!Q:Q,'FC Master'!B:B)","v":"190-135CARLE0001"},"Ctl Computer CAR-Constable 5-LE",null,null,null,null,null,null,null,null,null,null,null,null,null,null,null,null,"851","0001",{"$f":"_xlfn.XLOOKUP(VALUE(V868),'Budgeted Funds'!A:A,'Budgeted Funds'!D:D)","v":true}]
[{"$f":"LEFT(B869,3)","v":"190"},1908520001,{"$f":"_xlfn.XLOOKUP(B869,'FC Master'!Q:Q,'FC Master'!B:B)","v":"190-136CARCivJs0001"},"Ctl Computer CAR-Dispute Resol Ctr-CivJs",null,null,null,null,null,null,null,null,null,null,null,null,null,null,null,null,"852","0001",{"$f":"_xlfn.XLOOKUP(VALUE(V869),'Budgeted Funds'!A:A,'Budgeted Funds'!D:D)","v":true}]
[{"$f":"LEFT(B870,3)","v":"190"},1908530001,{"$f":"_xlfn.XLOOKUP(B870,'FC Master'!Q:Q,'FC Master'!B:B)","v":"190-137CARLE0001"},"Ctl Computer CAR-Sheriff-LE",null,null,null,null,null,null,null,null,null,null,null,null,null,null,null,null,"853","0001",{"$f":"_xlfn.XLOOKUP(VALUE(V870),'Budgeted Funds'!A:A,'Budgeted Funds'!D:D)","v":true}]
[{"$f":"LEFT(B871,3)","v":"190"},1908540001,{"$f":"_xlfn.XLOOKUP(B871,'FC Master'!Q:Q,'FC Master'!B:B)","v":"190-137CARHsgBkg0001"},"Ctl Computer CAR-Sheriff-HsgBkg",null,null,null,null,null,null,null,null,null,null,null,null,null,null,null,null,"854","0001",{"$f":"_xlfn.XLOOKUP(VALUE(V871),'Budgeted Funds'!A:A,'Budgeted Funds'!D:D)","v":true}]
[{"$f":"LEFT(B872,3)","v":"190"},1908550001,{"$f":"_xlfn.XLOOKUP(B872,'FC Master'!Q:Q,'FC Master'!B:B)","v":"190-138CARLE0001"},"Ctl Computer CAR-Medical Examiner-LE",null,null,null,null,null,null,null,null,null,null,null,null,null,null,null,null,"855","0001",{"$f":"_xlfn.XLOOKUP(VALUE(V872),'Budgeted Funds'!A:A,'Budgeted Funds'!D:D)","v":true}]
[{"$f":"LEFT(B873,3)","v":"190"},1908560001,{"$f":"_xlfn.XLOOKUP(B873,'FC Master'!Q:Q,'FC Master'!B:B)","v":"190-139CARSvsn0001"},"Ctl Computer CAR-CSCD-Svsn",null,null,null,null,null,null,null,null,null,null,null,null,null,null,null,null,"856","0001",{"$f":"_xlfn.XLOOKUP(VALUE(V873),'Budgeted Funds'!A:A,'Budgeted Funds'!D:D)","v":true}]
[{"$f":"LEFT(B874,3)","v":"190"},1908570001,{"$f":"_xlfn.XLOOKUP(B874,'FC Master'!Q:Q,'FC Master'!B:B)","v":"190-140CARSvsn0001"},"Ctl Computer CAR-TCCES-Svsn",null,null,null,null,null,null,null,null,null,null,null,null,null,null,null,null,"857","0001",{"$f":"_xlfn.XLOOKUP(VALUE(V874),'Budgeted Funds'!A:A,'Budgeted Funds'!D:D)","v":true}]
[{"$f":"LEFT(B875,3)","v":"190"},1908580001,{"$f":"_xlfn.XLOOKUP(B875,'FC Master'!Q:Q,'FC Master'!B:B)","v":"190-142CARSvsn0001"},"Ctl Computer CAR-Pretrial Services-Svsn",null,null,null,null,null,null,null,null,null,null,null,null,null,null,null,null,"858","0001",{"$f":"_xlfn.XLOOKUP(VALUE(V875),'Budgeted Funds'!A:A,'Budgeted Funds'!D:D)","v":true}]
[{"$f":"LEFT(B876,3)","v":"190"},1908590001,{"$f":"_xlfn.XLOOKUP(B876,'FC Master'!Q:Q,'FC Master'!B:B)","v":"190-142CARHsgBkg0001"},"Ctl Computer CAR-Pretrial Svs-HsgBkg",null,null,null,null,null,null,null,null,null,null,null,null,null,null,null,null,"859","0001",{"$f":"_xlfn.XLOOKUP(VALUE(V876),'Budgeted Funds'!A:A,'Budgeted Funds'!D:D)","v":true}]
[{"$f":"LEFT(B877,3)","v":"190"},1908600001,{"$f":"_xlfn.XLOOKUP(B877,'FC Master'!Q:Q,'FC Master'!B:B)","v":"190-143CARJuvSvs0001"},"Ctl Computer CAR-Juv Public Dfdr-JuvSvs",null,null,null,null,null,null,null,null,null,null,null,null,null,null,null,null,"860","0001",{"$f":"_xlfn.XLOOKUP(VALUE(V877),'Budgeted Funds'!A:A,'Budgeted Funds'!D:D)","v":true}]
[{"$f":"LEFT(B878,3)","v":"190"},1908610001,{"$f":"_xlfn.XLOOKUP(B878,'FC Master'!Q:Q,'FC Master'!B:B)","v":"190-145CARJuvSvs0001"},"Ctl Computer CAR-Juv Probation-JuvSvs",null,null,null,null,null,null,null,null,null,null,null,null,null,null,null,null,"861","0001",{"$f":"_xlfn.XLOOKUP(VALUE(V878),'Budgeted Funds'!A:A,'Budgeted Funds'!D:D)","v":true}]
[{"$f":"LEFT(B879,3)","v":"190"},1908620001,{"$f":"_xlfn.XLOOKUP(B879,'FC Master'!Q:Q,'FC Master'!B:B)","v":"190-147CARHlh0001"},"Ctl Computer CAR-Emergency Svs-Hlhcare",null,null,null,null,null,null,null,null,null,null,null,null,null,null,null,null,"862","0001",{"$f":"_xlfn.XLOOKUP(VALUE(V879),'Budgeted Funds'!A:A,'Budgeted Funds'!D:D)","v":true}]
[{"$f":"LEFT(B880,3)","v":"190"},1908630001,{"$f":"_xlfn.XLOOKUP(B880,'FC Master'!Q:Q,'FC Master'!B:B)","v":"190-147CAREmrg0001"},"Ctl Computer CAR-Emergency Svs-EmrgMgmt",null,null,null,null,null,null,null,null,null,null,null,null,null,null,null,null,"863","0001",{"$f":"_xlfn.XLOOKUP(VALUE(V880),'Budgeted Funds'!A:A,'Budgeted Funds'!D:D)","v":true}]
[{"$f":"LEFT(B881,3)","v":"190"},1908640001,{"$f":"_xlfn.XLOOKUP(B881,'FC Master'!Q:Q,'FC Master'!B:B)","v":"190-149CARRdBg0001"},"Ctl Computer CAR-TNR-RdBg",null,null,null,null,null,null,null,null,null,null,null,null,null,null,null,null,"864","0001",{"$f":"_xlfn.XLOOKUP(VALUE(V881),'Budgeted Funds'!A:A,'Budgeted Funds'!D:D)","v":true}]
[{"$f":"LEFT(B882,3)","v":"190"},1908650001,{"$f":"_xlfn.XLOOKUP(B882,'FC Master'!Q:Q,'FC Master'!B:B)","v":"190-149CARParks0001"},"Ctl Computer CAR-TNR-Parks&Rec",null,null,null,null,null,null,null,null,null,null,null,null,null,null,null,null,"865","0001",{"$f":"_xlfn.XLOOKUP(VALUE(V882),'Budgeted Funds'!A:A,'Budgeted Funds'!D:D)","v":true}]
[{"$f":"LEFT(B883,3)","v":"190"},1908660001,{"$f":"_xlfn.XLOOKUP(B883,'FC Master'!Q:Q,'FC Master'!B:B)","v":"190-149CARConser0001"},"Ctl Computer CAR-TNR-ConservNR",null,null,null,null,null,null,null,null,null,null,null,null,null,null,null,null,"866","0001",{"$f":"_xlfn.XLOOKUP(VALUE(V883),'Budgeted Funds'!A:A,'Budgeted Funds'!D:D)","v":true}]
[{"$f":"LEFT(B884,3)","v":"190"},1908670001,{"$f":"_xlfn.XLOOKUP(B884,'FC Master'!Q:Q,'FC Master'!B:B)","v":"190-149CARFac0001"},"Ctl Computer CAR-TNR-FacMgmt",null,null,null,null,null,null,null,null,null,null,null,null,null,null,null,null,"867","0001",{"$f":"_xlfn.XLOOKUP(VALUE(V884),'Budgeted Funds'!A:A,'Budgeted Funds'!D:D)","v":true}]
[{"$f":"LEFT(B885,3)","v":"190"},1908680001,{"$f":"_xlfn.XLOOKUP(B885,'FC Master'!Q:Q,'FC Master'!B:B)","v":"190-149CARDrng0001"},"Ctl Computer CAR-TNR-Drng",null,null,null,null,null,null,null,null,null,null,null,null,null,null,null,null,"868","0001",{"$f":"_xlfn.XLOOKUP(VALUE(V885),'Budgeted Funds'!A:A,'Budgeted Funds'!D:D)","v":true}]
[{"$f":"LEFT(B886,3)","v":"190"},1908690001,{"$f":"_xlfn.XLOOKUP(B886,'FC Master'!Q:Q,'FC Master'!B:B)","v":"190-149CARSntn0001"},"Ctl Computer CAR-TNR-Sanitation",null,null,null,null,null,null,null,null,null,null,null,null,null,null,null,null,"869","0001",{"$f":"_xlfn.XLOOKUP(VALUE(V886),'Budgeted Funds'!A:A,'Budgeted Funds'!D:D)","v":true}]
[{"$f":"LEFT(B887,3)","v":"190"},1908700001,{"$f":"_xlfn.XLOOKUP(B887,'FC Master'!Q:Q,'FC Master'!B:B)","v":"190-149CARDevReg0001"},"Ctl Computer CAR-TNR-DevRegIn",null,null,null,null,null,null,null,null,null,null,null,null,null,null,null,null,"870","0001",{"$f":"_xlfn.XLOOKUP(VALUE(V887),'Budgeted Funds'!A:A,'Budgeted Funds'!D:D)","v":true}]
[{"$f":"LEFT(B888,3)","v":"190"},1908710001,{"$f":"_xlfn.XLOOKUP(B888,'FC Master'!Q:Q,'FC Master'!B:B)","v":"190-149CARHuman0001"},"Ctl Computer CAR-TNR-HumanSvs",null,null,null,null,null,null,null,null,null,null,null,null,null,null,null,null,"871","0001",{"$f":"_xlfn.XLOOKUP(VALUE(V888),'Budgeted Funds'!A:A,'Budgeted Funds'!D:D)","v":true}]
[{"$f":"LEFT(B889,3)","v":"190"},1908720001,{"$f":"_xlfn.XLOOKUP(B889,'FC Master'!Q:Q,'FC Master'!B:B)","v":"190-154CARGenAdm0001"},"Ctl Computer CAR-Civil Service-GenAdm",null,null,null,null,null,null,null,null,null,null,null,null,null,null,null,null,"872","0001",{"$f":"_xlfn.XLOOKUP(VALUE(V889),'Budgeted Funds'!A:A,'Budgeted Funds'!D:D)","v":true}]
[{"$f":"LEFT(B890,3)","v":"190"},1908730001,{"$f":"_xlfn.XLOOKUP(B890,'FC Master'!Q:Q,'FC Master'!B:B)","v":"190-155CARCrmJs0001"},"Ctl Computer CAR-CJP-CrmJs",null,null,null,null,null,null,null,null,null,null,null,null,null,null,null,null,"873","0001",{"$f":"_xlfn.XLOOKUP(VALUE(V890),'Budgeted Funds'!A:A,'Budgeted Funds'!D:D)","v":true}]
[{"$f":"LEFT(B891,3)","v":"190"},1908740001,{"$f":"_xlfn.XLOOKUP(B891,'FC Master'!Q:Q,'FC Master'!B:B)","v":"190-155CARHlh0001"},"Ctl Computer CAR-CJP-Hlhcare",null,null,null,null,null,null,null,null,null,null,null,null,null,null,null,null,"874","0001",{"$f":"_xlfn.XLOOKUP(VALUE(V891),'Budgeted Funds'!A:A,'Budgeted Funds'!D:D)","v":true}]
[{"$f":"LEFT(B892,3)","v":"190"},1908750001,{"$f":"_xlfn.XLOOKUP(B892,'FC Master'!Q:Q,'FC Master'!B:B)","v":"190-155CAREmrg0001"},"Ctl Computer CAR-CJP-EmrgMgmt",null,null,null,null,null,null,null,null,null,null,null,null,null,null,null,null,"875","0001",{"$f":"_xlfn.XLOOKUP(VALUE(V892),'Budgeted Funds'!A:A,'Budgeted Funds'!D:D)","v":true}]
[{"$f":"LEFT(B893,3)","v":"190"},1908760001,{"$f":"_xlfn.XLOOKUP(B893,'FC Master'!Q:Q,'FC Master'!B:B)","v":"190-155CARSvsn0001"},"Ctl Computer CAR-CJP-Svsn",null,null,null,null,null,null,null,null,null,null,null,null,null,null,null,null,"876","0001",{"$f":"_xlfn.XLOOKUP(VALUE(V893),'Budgeted Funds'!A:A,'Budgeted Funds'!D:D)","v":true}]
[{"$f":"LEFT(B894,3)","v":"190"},1908770001,{"$f":"_xlfn.XLOOKUP(B894,'FC Master'!Q:Q,'FC Master'!B:B)","v":"190-155CARJuvSvs0001"},"Ctl Computer CAR-CJP-JuvSvs",null,null,null,null,null,null,null,null,null,null,null,null,null,null,null,null,"877","0001",{"$f":"_xlfn.XLOOKUP(VALUE(V894),'Budgeted Funds'!A:A,'Budgeted Funds'!D:D)","v":true}]
[{"$f":"LEFT(B895,3)","v":"190"},1908780001,{"$f":"_xlfn.XLOOKUP(B895,'FC Master'!Q:Q,'FC Master'!B:B)","v":"190-155CARLE0001"},"Ctl Computer CAR-CJP-LE",null,null,null,null,null,null,null,null,null,null,null,null,null,null,null,null,"878","0001",{"$f":"_xlfn.XLOOKUP(VALUE(V895),'Budgeted Funds'!A:A,'Budgeted Funds'!D:D)","v":true}]
[{"$f":"LEFT(B896,3)","v":"190"},1908790001,{"$f":"_xlfn.XLOOKUP(B896,'FC Master'!Q:Q,'FC Master'!B:B)","v":"190-157CARGenAdm0001"},"Ctl Computer CAR-CRS-GenAdm",null,null,null,null,null,null,null,null,null,null,null,null,null,null,null,null,"879","0001",{"$f":"_xlfn.XLOOKUP(VALUE(V896),'Budgeted Funds'!A:A,'Budgeted Funds'!D:D)","v":true}]
[{"$f":"LEFT(B897,3)","v":"190"},1908800001,{"$f":"_xlfn.XLOOKUP(B897,'FC Master'!Q:Q,'FC Master'!B:B)","v":"190-157CARCivJs0001"},"Ctl Computer CAR-CRS-CivJs",null,null,null,null,null,null,null,null,null,null,null,null,null,null,null,null,"880","0001",{"$f":"_xlfn.XLOOKUP(VALUE(V897),'Budgeted Funds'!A:A,'Budgeted Funds'!D:D)","v":true}]
[{"$f":"LEFT(B898,3)","v":"190"},1908810001,{"$f":"_xlfn.XLOOKUP(B898,'FC Master'!Q:Q,'FC Master'!B:B)","v":"190-157CARCrmJs0001"},"Ctl Computer CAR-CRS-CrmJs",null,null,null,null,null,null,null,null,null,null,null,null,null,null,null,null,"881","0001",{"$f":"_xlfn.XLOOKUP(VALUE(V898),'Budgeted Funds'!A:A,'Budgeted Funds'!D:D)","v":true}]
[{"$f":"LEFT(B899,3)","v":"190"},1908820001,{"$f":"_xlfn.XLOOKUP(B899,'FC Master'!Q:Q,'FC Master'!B:B)","v":"190-158CARHlh0001"},"Ctl Computer CAR-HHS-Hlhcare",null,null,null,null,null,null,null,null,null,null,null,null,null,null,null,null,"882","0001",{"$f":"_xlfn.XLOOKUP(VALUE(V899),'Budgeted Funds'!A:A,'Budgeted Funds'!D:D)","v":true}]
[{"$f":"LEFT(B900,3)","v":"190"},1908830001,{"$f":"_xlfn.XLOOKUP(B900,'FC Master'!Q:Q,'FC Master'!B:B)","v":"190-158CARPbcHlh0001"},"Ctl Computer CAR-HHS-PbcHlh",null,null,null,null,null,null,null,null,null,null,null,null,null,null,null,null,{"$f":"MID(B900,4,3)","v":"883"},{"$f":"MID(B900,7,4)","v":"0001"},{"$f":"_xlfn.XLOOKUP(VALUE(V900),'Budgeted Funds'!A:A,'Budgeted Funds'!D:D)","v":true}]
[{"$f":"LEFT(B901,3)","v":"190"},1908840001,{"$f":"_xlfn.XLOOKUP(B901,'FC Master'!Q:Q,'FC Master'!B:B)","v":"190-158CARHuman0001"},"Ctl Computer CAR-HHS-HumanSvs",null,null,null,null,null,null,null,null,null,null,null,null,null,null,null,null,"884","0001",{"$f":"_xlfn.XLOOKUP(VALUE(V901),'Budgeted Funds'!A:A,'Budgeted Funds'!D:D)","v":true}]
[{"$f":"LEFT(B902,3)","v":"190"},1908850001,{"$f":"_xlfn.XLOOKUP(B902,'FC Master'!Q:Q,'FC Master'!B:B)","v":"190-158CARJuvSvs0001"},"Ctl Computer CAR-HHS-JuvSvs",null,null,null,null,null,null,null,null,null,null,null,null,null,null,null,null,"885","0001",{"$f":"_xlfn.XLOOKUP(VALUE(V902),'Budgeted Funds'!A:A,'Budgeted Funds'!D:D)","v":true}]
[{"$f":"LEFT(B903,3)","v":"190"},1908860001,{"$f":"_xlfn.XLOOKUP(B903,'FC Master'!Q:Q,'FC Master'!B:B)","v":"190-159CARHlh0001"},"Ctl Computer CAR-EMS-Hlhcare",null,null,null,null,null,null,null,null,null,null,null,null,null,null,null,null,"886","0001",{"$f":"_xlfn.XLOOKUP(VALUE(V903),'Budgeted Funds'!A:A,'Budgeted Funds'!D:D)","v":true}]
[{"$f":"LEFT(B904,3)","v":"190"},1908870001,{"$f":"_xlfn.XLOOKUP(B904,'FC Master'!Q:Q,'FC Master'!B:B)","v":"190-193CARCivJs0001"},"Ctl Computer CAR-Legally Mtd Fees-CivJs",null,null,null,null,null,null,null,null,null,null,null,null,null,null,null,null,"887","0001",{"$f":"_xlfn.XLOOKUP(VALUE(V904),'Budgeted Funds'!A:A,'Budgeted Funds'!D:D)","v":true}]
[{"$f":"LEFT(B905,3)","v":"190"},1908880001,{"$f":"_xlfn.XLOOKUP(B905,'FC Master'!Q:Q,'FC Master'!B:B)","v":"190-194CARCrmJs0001"},"Ctl Computer CAR-Legally Mtd Fees-CrmJs",null,null,null,null,null,null,null,null,null,null,null,null,null,null,null,null,"888","0001",{"$f":"_xlfn.XLOOKUP(VALUE(V905),'Budgeted Funds'!A:A,'Budgeted Funds'!D:D)","v":true}]
[{"$f":"LEFT(B906,3)","v":"190"},1908890001,{"$f":"_xlfn.XLOOKUP(B906,'FC Master'!Q:Q,'FC Master'!B:B)","v":"190-144CARPD0001"},"Ctl Computer CAR-Public Defender-CrimJs",null,null,null,null,null,null,null,null,null,null,null,null,null,null,null,null,"889","0001",{"$f":"_xlfn.XLOOKUP(VALUE(V906),'Budgeted Funds'!A:A,'Budgeted Funds'!D:D)","v":true}]
[{"$f":"LEFT(B907,3)","v":"191"},1911100001,{"$f":"_xlfn.XLOOKUP(B907,'FC Master'!Q:Q,'FC Master'!B:B)","v":"191-101GenAdm0001"},"Ctl RentUtil-County Judge-GenAdm",null,null,null,null,null,null,null,null,null,null,null,null,null,null,null,null,"110","0001",{"$f":"_xlfn.XLOOKUP(VALUE(V907),'Budgeted Funds'!A:A,'Budgeted Funds'!D:D)","v":true}]
[{"$f":"LEFT(B908,3)","v":"191"},1911110001,{"$f":"_xlfn.XLOOKUP(B908,'FC Master'!Q:Q,'FC Master'!B:B)","v":"191-101JuvSvs0001"},"Ctl RentUtil-County Judge-JuvSvs",null,null,null,null,null,null,null,null,null,null,null,null,null,null,null,null,"111","0001",{"$f":"_xlfn.XLOOKUP(VALUE(V908),'Budgeted Funds'!A:A,'Budgeted Funds'!D:D)","v":true}]
[{"$f":"LEFT(B909,3)","v":"191"},1911120001,{"$f":"_xlfn.XLOOKUP(B909,'FC Master'!Q:Q,'FC Master'!B:B)","v":"191-102GenAdm0001"},"Ctl RentUtil-CC-Pct 1-GenAdm",null,null,null,null,null,null,null,null,null,null,null,null,null,null,null,null,"112","0001",{"$f":"_xlfn.XLOOKUP(VALUE(V909),'Budgeted Funds'!A:A,'Budgeted Funds'!D:D)","v":true}]
[{"$f":"LEFT(B910,3)","v":"191"},1911130001,{"$f":"_xlfn.XLOOKUP(B910,'FC Master'!Q:Q,'FC Master'!B:B)","v":"191-103GenAdm0001"},"Ctl RentUtil-CC Pct 2-GenAdm",null,null,null,null,null,null,null,null,null,null,null,null,null,null,null,null,"113","0001",{"$f":"_xlfn.XLOOKUP(VALUE(V910),'Budgeted Funds'!A:A,'Budgeted Funds'!D:D)","v":true}]
[{"$f":"LEFT(B911,3)","v":"191"},1911140001,{"$f":"_xlfn.XLOOKUP(B911,'FC Master'!Q:Q,'FC Master'!B:B)","v":"191-104GenAdm0001"},"Ctl RentUtil-CC Pct 3-GenAdm",null,null,null,null,null,null,null,null,null,null,null,null,null,null,null,null,"114","0001",{"$f":"_xlfn.XLOOKUP(VALUE(V911),'Budgeted Funds'!A:A,'Budgeted Funds'!D:D)","v":true}]
[{"$f":"LEFT(B912,3)","v":"191"},1911150001,{"$f":"_xlfn.XLOOKUP(B912,'FC Master'!Q:Q,'FC Master'!B:B)","v":"191-105GenAdm0001"},"Ctl RentUtil-CC Pct 4-GenAdm",null,null,null,null,null,null,null,null,null,null,null,null,null,null,null,null,"115","0001",{"$f":"_xlfn.XLOOKUP(VALUE(V912),'Budgeted Funds'!A:A,'Budgeted Funds'!D:D)","v":true}]
[{"$f":"LEFT(B913,3)","v":"191"},1911160001,{"$f":"_xlfn.XLOOKUP(B913,'FC Master'!Q:Q,'FC Master'!B:B)","v":"191-106FinAdm0001"},"Ctl RentUtil-County Auditor-FinAdm",null,null,null,null,null,null,null,null,null,null,null,null,null,null,null,null,"116","0001",{"$f":"_xlfn.XLOOKUP(VALUE(V913),'Budgeted Funds'!A:A,'Budgeted Funds'!D:D)","v":true}]
[{"$f":"LEFT(B914,3)","v":"191"},1911170001,{"$f":"_xlfn.XLOOKUP(B914,'FC Master'!Q:Q,'FC Master'!B:B)","v":"191-107FinAdm0001"},"Ctl RentUtil-County Treasurer-FinAdm",null,null,null,null,null,null,null,null,null,null,null,null,null,null,null,null,"117","0001",{"$f":"_xlfn.XLOOKUP(VALUE(V914),'Budgeted Funds'!A:A,'Budgeted Funds'!D:D)","v":true}]
[{"$f":"LEFT(B915,3)","v":"191"},1911180001,{"$f":"_xlfn.XLOOKUP(B915,'FC Master'!Q:Q,'FC Master'!B:B)","v":"191-108TaxAdm0001"},"Ctl RentUtil-Tax Collector-TaxAdm",null,null,null,null,null,null,null,null,null,null,null,null,null,null,null,null,"118","0001",{"$f":"_xlfn.XLOOKUP(VALUE(V915),'Budgeted Funds'!A:A,'Budgeted Funds'!D:D)","v":true}]
[{"$f":"LEFT(B916,3)","v":"191"},1911190001,{"$f":"_xlfn.XLOOKUP(B916,'FC Master'!Q:Q,'FC Master'!B:B)","v":"191-108CrmJs0001"},"Ctl RentUtil-Tax Collector-CrmJs",null,null,null,null,null,null,null,null,null,null,null,null,null,null,null,null,"119","0001",{"$f":"_xlfn.XLOOKUP(VALUE(V916),'Budgeted Funds'!A:A,'Budgeted Funds'!D:D)","v":true}]
[{"$f":"LEFT(B917,3)","v":"191"},1911200001,{"$f":"_xlfn.XLOOKUP(B917,'FC Master'!Q:Q,'FC Master'!B:B)","v":"191-108ElnAdm0001"},"Ctl RentUtil-Tax Collector-ElnAdm",null,null,null,null,null,null,null,null,null,null,null,null,null,null,null,null,"120","0001",{"$f":"_xlfn.XLOOKUP(VALUE(V917),'Budgeted Funds'!A:A,'Budgeted Funds'!D:D)","v":true}]
[{"$f":"LEFT(B918,3)","v":"191"},1911210001,{"$f":"_xlfn.XLOOKUP(B918,'FC Master'!Q:Q,'FC Master'!B:B)","v":"191-109FinAdm0001"},"Ctl RentUtil-Planning And Budget-FinAdm",null,null,null,null,null,null,null,null,null,null,null,null,null,null,null,null,"121","0001",{"$f":"_xlfn.XLOOKUP(VALUE(V918),'Budgeted Funds'!A:A,'Budgeted Funds'!D:D)","v":true}]
[{"$f":"LEFT(B919,3)","v":"191"},1911220001,{"$f":"_xlfn.XLOOKUP(B919,'FC Master'!Q:Q,'FC Master'!B:B)","v":"191-110GenAdm0001"},"Ctl RentUtil-General Adm-GenAdm",null,null,null,null,null,null,null,null,null,null,null,null,null,null,null,null,"122","0001",{"$f":"_xlfn.XLOOKUP(VALUE(V919),'Budgeted Funds'!A:A,'Budgeted Funds'!D:D)","v":true}]
[{"$f":"LEFT(B920,3)","v":"191"},1911230001,{"$f":"_xlfn.XLOOKUP(B920,'FC Master'!Q:Q,'FC Master'!B:B)","v":"191-110Hlhcare0001"},"Ctl RentUtil-General Adm-Hlhcare",null,null,null,null,null,null,null,null,null,null,null,null,null,null,null,null,"123","0001",{"$f":"_xlfn.XLOOKUP(VALUE(V920),'Budgeted Funds'!A:A,'Budgeted Funds'!D:D)","v":true}]
[{"$f":"LEFT(B921,3)","v":"191"},1911240001,{"$f":"_xlfn.XLOOKUP(B921,'FC Master'!Q:Q,'FC Master'!B:B)","v":"191-110EconDev0001"},"Ctl RentUtil-General Adm-EconDev",null,null,null,null,null,null,null,null,null,null,null,null,null,null,null,null,"124","0001",{"$f":"_xlfn.XLOOKUP(VALUE(V921),'Budgeted Funds'!A:A,'Budgeted Funds'!D:D)","v":true}]
[{"$f":"LEFT(B922,3)","v":"191"},1911250001,{"$f":"_xlfn.XLOOKUP(B922,'FC Master'!Q:Q,'FC Master'!B:B)","v":"191-111GenAdm0001"},"Ctl RentUtil-Human Resource Mgmt-GenAdm",null,null,null,null,null,null,null,null,null,null,null,null,null,null,null,null,"125","0001",{"$f":"_xlfn.XLOOKUP(VALUE(V922),'Budgeted Funds'!A:A,'Budgeted Funds'!D:D)","v":true}]
[{"$f":"LEFT(B923,3)","v":"191"},1911260001,{"$f":"_xlfn.XLOOKUP(B923,'FC Master'!Q:Q,'FC Master'!B:B)","v":"191-112GenAdm0001"},"Ctl RentUtil-ITS-GenAdm",null,null,null,null,null,null,null,null,null,null,null,null,null,null,null,null,"126","0001",{"$f":"_xlfn.XLOOKUP(VALUE(V923),'Budgeted Funds'!A:A,'Budgeted Funds'!D:D)","v":true}]
[{"$f":"LEFT(B924,3)","v":"191"},1911270001,{"$f":"_xlfn.XLOOKUP(B924,'FC Master'!Q:Q,'FC Master'!B:B)","v":"191-113EconDev0001"},"Ctl RentUtil-EXPO Center-EconDev",null,null,null,null,null,null,null,null,null,null,null,null,null,null,null,null,"127","0001",{"$f":"_xlfn.XLOOKUP(VALUE(V924),'Budgeted Funds'!A:A,'Budgeted Funds'!D:D)","v":true}]
[{"$f":"LEFT(B925,3)","v":"191"},1911280001,{"$f":"_xlfn.XLOOKUP(B925,'FC Master'!Q:Q,'FC Master'!B:B)","v":"191-114FacMgmt0001"},"Ctl RentUtil-Facilities Mgmt-FacMgmt",null,null,null,null,null,null,null,null,null,null,null,null,null,null,null,null,"128","0001",{"$f":"_xlfn.XLOOKUP(VALUE(V925),'Budgeted Funds'!A:A,'Budgeted Funds'!D:D)","v":true}]
[{"$f":"LEFT(B926,3)","v":"191"},1911290001,{"$f":"_xlfn.XLOOKUP(B926,'FC Master'!Q:Q,'FC Master'!B:B)","v":"191-114EconDev0001"},"Ctl RentUtil-Facilities Mgmt-EconDev",null,null,null,null,null,null,null,null,null,null,null,null,null,null,null,null,"129","0001",{"$f":"_xlfn.XLOOKUP(VALUE(V926),'Budgeted Funds'!A:A,'Budgeted Funds'!D:D)","v":true}]
[{"$f":"LEFT(B927,3)","v":"191"},1911300001,{"$f":"_xlfn.XLOOKUP(B927,'FC Master'!Q:Q,'FC Master'!B:B)","v":"191-115FinAdm0001"},"Ctl RentUtil-Purchasing-FinAdm",null,null,null,null,null,null,null,null,null,null,null,null,null,null,null,null,"130","0001",{"$f":"_xlfn.XLOOKUP(VALUE(V927),'Budgeted Funds'!A:A,'Budgeted Funds'!D:D)","v":true}]
[{"$f":"LEFT(B928,3)","v":"191"},1911310001,{"$f":"_xlfn.XLOOKUP(B928,'FC Master'!Q:Q,'FC Master'!B:B)","v":"191-116HumanSvs0001"},"Ctl RentUtil-Veterans Services-HumanSvs",null,null,null,null,null,null,null,null,null,null,null,null,null,null,null,null,"131","0001",{"$f":"_xlfn.XLOOKUP(VALUE(V928),'Budgeted Funds'!A:A,'Budgeted Funds'!D:D)","v":true}]
[{"$f":"LEFT(B929,3)","v":"191"},1911320001,{"$f":"_xlfn.XLOOKUP(B929,'FC Master'!Q:Q,'FC Master'!B:B)","v":"191-117Cul&Edu0001"},"Ctl RentUtil-Historical Comm-Cul&Edu",null,null,null,null,null,null,null,null,null,null,null,null,null,null,null,null,"132","0001",{"$f":"_xlfn.XLOOKUP(VALUE(V929),'Budgeted Funds'!A:A,'Budgeted Funds'!D:D)","v":true}]
[{"$f":"LEFT(B930,3)","v":"191"},1911330001,{"$f":"_xlfn.XLOOKUP(B930,'FC Master'!Q:Q,'FC Master'!B:B)","v":"191-118HumanSvs0001"},"Ctl RentUtil-Agr Ext Serv-HumanSvs",null,null,null,null,null,null,null,null,null,null,null,null,null,null,null,null,"133","0001",{"$f":"_xlfn.XLOOKUP(VALUE(V930),'Budgeted Funds'!A:A,'Budgeted Funds'!D:D)","v":true}]
[{"$f":"LEFT(B931,3)","v":"191"},1911340001,{"$f":"_xlfn.XLOOKUP(B931,'FC Master'!Q:Q,'FC Master'!B:B)","v":"191-119CivJs0001"},"Ctl RentUtil-County Attorney-CivJs",null,null,null,null,null,null,null,null,null,null,null,null,null,null,null,null,"134","0001",{"$f":"_xlfn.XLOOKUP(VALUE(V931),'Budgeted Funds'!A:A,'Budgeted Funds'!D:D)","v":true}]
[{"$f":"LEFT(B932,3)","v":"191"},1911350001,{"$f":"_xlfn.XLOOKUP(B932,'FC Master'!Q:Q,'FC Master'!B:B)","v":"191-119CrmJs0001"},"Ctl RentUtil-County Attorney-CrmJs",null,null,null,null,null,null,null,null,null,null,null,null,null,null,null,null,"135","0001",{"$f":"_xlfn.XLOOKUP(VALUE(V932),'Budgeted Funds'!A:A,'Budgeted Funds'!D:D)","v":true}]
[{"$f":"LEFT(B933,3)","v":"191"},1911360001,{"$f":"_xlfn.XLOOKUP(B933,'FC Master'!Q:Q,'FC Master'!B:B)","v":"191-120GenAdm0001"},"Ctl RentUtil-County Clerk-GenAdm",null,null,null,null,null,null,null,null,null,null,null,null,null,null,null,null,"136","0001",{"$f":"_xlfn.XLOOKUP(VALUE(V933),'Budgeted Funds'!A:A,'Budgeted Funds'!D:D)","v":true}]
[{"$f":"LEFT(B934,3)","v":"191"},1911370001,{"$f":"_xlfn.XLOOKUP(B934,'FC Master'!Q:Q,'FC Master'!B:B)","v":"191-120ElnAdm0001"},"Ctl RentUtil-County Clerk-ElnAdm",null,null,null,null,null,null,null,null,null,null,null,null,null,null,null,null,"137","0001",{"$f":"_xlfn.XLOOKUP(VALUE(V934),'Budgeted Funds'!A:A,'Budgeted Funds'!D:D)","v":true}]
[{"$f":"LEFT(B935,3)","v":"191"},1911380001,{"$f":"_xlfn.XLOOKUP(B935,'FC Master'!Q:Q,'FC Master'!B:B)","v":"191-120CivJs0001"},"Ctl RentUtil-County Clerk-CivJs",null,null,null,null,null,null,null,null,null,null,null,null,null,null,null,null,"138","0001",{"$f":"_xlfn.XLOOKUP(VALUE(V935),'Budgeted Funds'!A:A,'Budgeted Funds'!D:D)","v":true}]
[{"$f":"LEFT(B936,3)","v":"191"},1911390001,{"$f":"_xlfn.XLOOKUP(B936,'FC Master'!Q:Q,'FC Master'!B:B)","v":"191-120CrmJs0001"},"Ctl RentUtil-County Clerk-CrmJs",null,null,null,null,null,null,null,null,null,null,null,null,null,null,null,null,"139","0001",{"$f":"_xlfn.XLOOKUP(VALUE(V936),'Budgeted Funds'!A:A,'Budgeted Funds'!D:D)","v":true}]
[{"$f":"LEFT(B937,3)","v":"191"},1911400001,{"$f":"_xlfn.XLOOKUP(B937,'FC Master'!Q:Q,'FC Master'!B:B)","v":"191-121CivJs0001"},"Ctl RentUtil-District Clerk-CivJs",null,null,null,null,null,null,null,null,null,null,null,null,null,null,null,null,"140","0001",{"$f":"_xlfn.XLOOKUP(VALUE(V937),'Budgeted Funds'!A:A,'Budgeted Funds'!D:D)","v":true}]
[{"$f":"LEFT(B938,3)","v":"191"},1911410001,{"$f":"_xlfn.XLOOKUP(B938,'FC Master'!Q:Q,'FC Master'!B:B)","v":"191-121CrmJs0001"},"Ctl RentUtil-District Clerk-CrmJs",null,null,null,null,null,null,null,null,null,null,null,null,null,null,null,null,"141","0001",{"$f":"_xlfn.XLOOKUP(VALUE(V938),'Budgeted Funds'!A:A,'Budgeted Funds'!D:D)","v":true}]
[{"$f":"LEFT(B939,3)","v":"191"},1911420001,{"$f":"_xlfn.XLOOKUP(B939,'FC Master'!Q:Q,'FC Master'!B:B)","v":"191-122CivJs0001"},"Ctl RentUtil-Civil Courts-CivJs",null,null,null,null,null,null,null,null,null,null,null,null,null,null,null,null,"142","0001",{"$f":"_xlfn.XLOOKUP(VALUE(V939),'Budgeted Funds'!A:A,'Budgeted Funds'!D:D)","v":true}]
[{"$f":"LEFT(B940,3)","v":"191"},1911430001,{"$f":"_xlfn.XLOOKUP(B940,'FC Master'!Q:Q,'FC Master'!B:B)","v":"191-123CrmJs0001"},"Ctl RentUtil-District Attorney-CrmJs",null,null,null,null,null,null,null,null,null,null,null,null,null,null,null,null,"143","0001",{"$f":"_xlfn.XLOOKUP(VALUE(V940),'Budgeted Funds'!A:A,'Budgeted Funds'!D:D)","v":true}]
[{"$f":"LEFT(B941,3)","v":"191"},1911440001,{"$f":"_xlfn.XLOOKUP(B941,'FC Master'!Q:Q,'FC Master'!B:B)","v":"191-123CivJs0001"},"Ctl RentUtil-District Attorney-CivJs",null,null,null,null,null,null,null,null,null,null,null,null,null,null,null,null,"144","0001",{"$f":"_xlfn.XLOOKUP(VALUE(V941),'Budgeted Funds'!A:A,'Budgeted Funds'!D:D)","v":true}]
[{"$f":"LEFT(B942,3)","v":"191"},1911450001,{"$f":"_xlfn.XLOOKUP(B942,'FC Master'!Q:Q,'FC Master'!B:B)","v":"191-124CrmJs0001"},"Ctl RentUtil-Criminal Courts-CrmJs",null,null,null,null,null,null,null,null,null,null,null,null,null,null,null,null,"145","0001",{"$f":"_xlfn.XLOOKUP(VALUE(V942),'Budgeted Funds'!A:A,'Budgeted Funds'!D:D)","v":true}]
[{"$f":"LEFT(B943,3)","v":"191"},1911460001,{"$f":"_xlfn.XLOOKUP(B943,'FC Master'!Q:Q,'FC Master'!B:B)","v":"191-125CivJs0001"},"Ctl RentUtil-Probate Court-CivJs",null,null,null,null,null,null,null,null,null,null,null,null,null,null,null,null,"146","0001",{"$f":"_xlfn.XLOOKUP(VALUE(V943),'Budgeted Funds'!A:A,'Budgeted Funds'!D:D)","v":true}]
[{"$f":"LEFT(B944,3)","v":"191"},1911470001,{"$f":"_xlfn.XLOOKUP(B944,'FC Master'!Q:Q,'FC Master'!B:B)","v":"191-126CivJs0001"},"Ctl RentUtil-Justice Of Peace 1-CivJs",null,null,null,null,null,null,null,null,null,null,null,null,null,null,null,null,"147","0001",{"$f":"_xlfn.XLOOKUP(VALUE(V944),'Budgeted Funds'!A:A,'Budgeted Funds'!D:D)","v":true}]
[{"$f":"LEFT(B945,3)","v":"191"},1911480001,{"$f":"_xlfn.XLOOKUP(B945,'FC Master'!Q:Q,'FC Master'!B:B)","v":"191-126CrmJs0001"},"Ctl RentUtil-Justice Of Peace 1-CrmJs",null,null,null,null,null,null,null,null,null,null,null,null,null,null,null,null,"148","0001",{"$f":"_xlfn.XLOOKUP(VALUE(V945),'Budgeted Funds'!A:A,'Budgeted Funds'!D:D)","v":true}]
[{"$f":"LEFT(B946,3)","v":"191"},1911490001,{"$f":"_xlfn.XLOOKUP(B946,'FC Master'!Q:Q,'FC Master'!B:B)","v":"191-127CivJs0001"},"Ctl RentUtil-Justice Of Peace 2-CivJs",null,null,null,null,null,null,null,null,null,null,null,null,null,null,null,null,"149","0001",{"$f":"_xlfn.XLOOKUP(VALUE(V946),'Budgeted Funds'!A:A,'Budgeted Funds'!D:D)","v":true}]
[{"$f":"LEFT(B947,3)","v":"191"},1911500001,{"$f":"_xlfn.XLOOKUP(B947,'FC Master'!Q:Q,'FC Master'!B:B)","v":"191-127CrmJs0001"},"Ctl RentUtil-Justice Of Peace 2-CrmJs",null,null,null,null,null,null,null,null,null,null,null,null,null,null,null,null,"150","0001",{"$f":"_xlfn.XLOOKUP(VALUE(V947),'Budgeted Funds'!A:A,'Budgeted Funds'!D:D)","v":true}]
[{"$f":"LEFT(B948,3)","v":"191"},1911510001,{"$f":"_xlfn.XLOOKUP(B948,'FC Master'!Q:Q,'FC Master'!B:B)","v":"191-128CivJs0001"},"Ctl RentUtil-Justice Of Peace 3-CivJs",null,null,null,null,null,null,null,null,null,null,null,null,null,null,null,null,"151","0001",{"$f":"_xlfn.XLOOKUP(VALUE(V948),'Budgeted Funds'!A:A,'Budgeted Funds'!D:D)","v":true}]
[{"$f":"LEFT(B949,3)","v":"191"},1911520001,{"$f":"_xlfn.XLOOKUP(B949,'FC Master'!Q:Q,'FC Master'!B:B)","v":"191-128CrmJs0001"},"Ctl RentUtil-Justice Of Peace 3-CrmJs",null,null,null,null,null,null,null,null,null,null,null,null,null,null,null,null,"152","0001",{"$f":"_xlfn.XLOOKUP(VALUE(V949),'Budgeted Funds'!A:A,'Budgeted Funds'!D:D)","v":true}]
[{"$f":"LEFT(B950,3)","v":"191"},1911530001,{"$f":"_xlfn.XLOOKUP(B950,'FC Master'!Q:Q,'FC Master'!B:B)","v":"191-129CivJs0001"},"Ctl RentUtil-Justice Of Peace 4-CivJs",null,null,null,null,null,null,null,null,null,null,null,null,null,null,null,null,"153","0001",{"$f":"_xlfn.XLOOKUP(VALUE(V950),'Budgeted Funds'!A:A,'Budgeted Funds'!D:D)","v":true}]
[{"$f":"LEFT(B951,3)","v":"191"},1911540001,{"$f":"_xlfn.XLOOKUP(B951,'FC Master'!Q:Q,'FC Master'!B:B)","v":"191-129CrmJs0001"},"Ctl RentUtil-Justice Of Peace 4-CrmJs",null,null,null,null,null,null,null,null,null,null,null,null,null,null,null,null,"154","0001",{"$f":"_xlfn.XLOOKUP(VALUE(V951),'Budgeted Funds'!A:A,'Budgeted Funds'!D:D)","v":true}]
[{"$f":"LEFT(B952,3)","v":"191"},1911550001,{"$f":"_xlfn.XLOOKUP(B952,'FC Master'!Q:Q,'FC Master'!B:B)","v":"191-130CivJs0001"},"Ctl RentUtil-Justice Of Peace 5-CivJs",null,null,null,null,null,null,null,null,null,null,null,null,null,null,null,null,"155","0001",{"$f":"_xlfn.XLOOKUP(VALUE(V952),'Budgeted Funds'!A:A,'Budgeted Funds'!D:D)","v":true}]
[{"$f":"LEFT(B953,3)","v":"191"},1911560001,{"$f":"_xlfn.XLOOKUP(B953,'FC Master'!Q:Q,'FC Master'!B:B)","v":"191-130CrmJs0001"},"Ctl RentUtil-Justice Of Peace 5-CrmJs",null,null,null,null,null,null,null,null,null,null,null,null,null,null,null,null,"156","0001",{"$f":"_xlfn.XLOOKUP(VALUE(V953),'Budgeted Funds'!A:A,'Budgeted Funds'!D:D)","v":true}]
[{"$f":"LEFT(B954,3)","v":"191"},1911570001,{"$f":"_xlfn.XLOOKUP(B954,'FC Master'!Q:Q,'FC Master'!B:B)","v":"191-131LE0001"},"Ctl RentUtil-Constable 1-LE",null,null,null,null,null,null,null,null,null,null,null,null,null,null,null,null,"157","0001",{"$f":"_xlfn.XLOOKUP(VALUE(V954),'Budgeted Funds'!A:A,'Budgeted Funds'!D:D)","v":true}]
[{"$f":"LEFT(B955,3)","v":"191"},1911580001,{"$f":"_xlfn.XLOOKUP(B955,'FC Master'!Q:Q,'FC Master'!B:B)","v":"191-132LE0001"},"Ctl RentUtil-Constable 2-LE",null,null,null,null,null,null,null,null,null,null,null,null,null,null,null,null,"158","0001",{"$f":"_xlfn.XLOOKUP(VALUE(V955),'Budgeted Funds'!A:A,'Budgeted Funds'!D:D)","v":true}]
[{"$f":"LEFT(B956,3)","v":"191"},1911590001,{"$f":"_xlfn.XLOOKUP(B956,'FC Master'!Q:Q,'FC Master'!B:B)","v":"191-133LE0001"},"Ctl RentUtil-Constable 3-LE",null,null,null,null,null,null,null,null,null,null,null,null,null,null,null,null,"159","0001",{"$f":"_xlfn.XLOOKUP(VALUE(V956),'Budgeted Funds'!A:A,'Budgeted Funds'!D:D)","v":true}]
[{"$f":"LEFT(B957,3)","v":"191"},1911600001,{"$f":"_xlfn.XLOOKUP(B957,'FC Master'!Q:Q,'FC Master'!B:B)","v":"191-134LE0001"},"Ctl RentUtil-Constable 4-LE",null,null,null,null,null,null,null,null,null,null,null,null,null,null,null,null,"160","0001",{"$f":"_xlfn.XLOOKUP(VALUE(V957),'Budgeted Funds'!A:A,'Budgeted Funds'!D:D)","v":true}]
[{"$f":"LEFT(B958,3)","v":"191"},1911610001,{"$f":"_xlfn.XLOOKUP(B958,'FC Master'!Q:Q,'FC Master'!B:B)","v":"191-135LE0001"},"Ctl RentUtil-Constable 5-LE",null,null,null,null,null,null,null,null,null,null,null,null,null,null,null,null,"161","0001",{"$f":"_xlfn.XLOOKUP(VALUE(V958),'Budgeted Funds'!A:A,'Budgeted Funds'!D:D)","v":true}]
[{"$f":"LEFT(B959,3)","v":"191"},1911620001,{"$f":"_xlfn.XLOOKUP(B959,'FC Master'!Q:Q,'FC Master'!B:B)","v":"191-136CivJs0001"},"Ctl RentUtil-Dispute Resol Ctr-CivJs",null,null,null,null,null,null,null,null,null,null,null,null,null,null,null,null,"162","0001",{"$f":"_xlfn.XLOOKUP(VALUE(V959),'Budgeted Funds'!A:A,'Budgeted Funds'!D:D)","v":true}]
[{"$f":"LEFT(B960,3)","v":"191"},1911630001,{"$f":"_xlfn.XLOOKUP(B960,'FC Master'!Q:Q,'FC Master'!B:B)","v":"191-137LE0001"},"Ctl RentUtil-Sheriff-LE",null,null,null,null,null,null,null,null,null,null,null,null,null,null,null,null,"163","0001",{"$f":"_xlfn.XLOOKUP(VALUE(V960),'Budgeted Funds'!A:A,'Budgeted Funds'!D:D)","v":true}]
[{"$f":"LEFT(B961,3)","v":"191"},1911640001,{"$f":"_xlfn.XLOOKUP(B961,'FC Master'!Q:Q,'FC Master'!B:B)","v":"191-137HsgBkg0001"},"Ctl RentUtil-Sheriff-HsgBkg",null,null,null,null,null,null,null,null,null,null,null,null,null,null,null,null,"164","0001",{"$f":"_xlfn.XLOOKUP(VALUE(V961),'Budgeted Funds'!A:A,'Budgeted Funds'!D:D)","v":true}]
[{"$f":"LEFT(B962,3)","v":"191"},1911650001,{"$f":"_xlfn.XLOOKUP(B962,'FC Master'!Q:Q,'FC Master'!B:B)","v":"191-138LE0001"},"Ctl RentUtil-Medical Examiner-LE",null,null,null,null,null,null,null,null,null,null,null,null,null,null,null,null,"165","0001",{"$f":"_xlfn.XLOOKUP(VALUE(V962),'Budgeted Funds'!A:A,'Budgeted Funds'!D:D)","v":true}]
[{"$f":"LEFT(B963,3)","v":"191"},1911660001,{"$f":"_xlfn.XLOOKUP(B963,'FC Master'!Q:Q,'FC Master'!B:B)","v":"191-139Svsn0001"},"Ctl RentUtil-CSCD-Svsn",null,null,null,null,null,null,null,null,null,null,null,null,null,null,null,null,"166","0001",{"$f":"_xlfn.XLOOKUP(VALUE(V963),'Budgeted Funds'!A:A,'Budgeted Funds'!D:D)","v":true}]
[{"$f":"LEFT(B964,3)","v":"191"},1911670001,{"$f":"_xlfn.XLOOKUP(B964,'FC Master'!Q:Q,'FC Master'!B:B)","v":"191-140Svsn0001"},"Ctl RentUtil-TCCES-Svsn",null,null,null,null,null,null,null,null,null,null,null,null,null,null,null,null,{"$f":"MID(B964,4,3)","v":"167"},{"$f":"MID(B964,7,4)","v":"0001"},{"$f":"_xlfn.XLOOKUP(VALUE(V964),'Budgeted Funds'!A:A,'Budgeted Funds'!D:D)","v":true}]
[{"$f":"LEFT(B965,3)","v":"191"},1911680001,{"$f":"_xlfn.XLOOKUP(B965,'FC Master'!Q:Q,'FC Master'!B:B)","v":"191-142Svsn0001"},"Ctl RentUtil-Pretrial Services-Svsn",null,null,null,null,null,null,null,null,null,null,null,null,null,null,null,null,"168","0001",{"$f":"_xlfn.XLOOKUP(VALUE(V965),'Budgeted Funds'!A:A,'Budgeted Funds'!D:D)","v":true}]
[{"$f":"LEFT(B966,3)","v":"191"},1911690001,{"$f":"_xlfn.XLOOKUP(B966,'FC Master'!Q:Q,'FC Master'!B:B)","v":"191-142HsgBkg0001"},"Ctl RentUtil-Pretrial Services-HsgBkg",null,null,null,null,null,null,null,null,null,null,null,null,null,null,null,null,"169","0001",{"$f":"_xlfn.XLOOKUP(VALUE(V966),'Budgeted Funds'!A:A,'Budgeted Funds'!D:D)","v":true}]
[{"$f":"LEFT(B967,3)","v":"191"},1911700001,{"$f":"_xlfn.XLOOKUP(B967,'FC Master'!Q:Q,'FC Master'!B:B)","v":"191-143JuvSvs0001"},"Ctl RentUtil-Juvenile Public Dfdr-JuvSvs",null,null,null,null,null,null,null,null,null,null,null,null,null,null,null,null,"170","0001",{"$f":"_xlfn.XLOOKUP(VALUE(V967),'Budgeted Funds'!A:A,'Budgeted Funds'!D:D)","v":true}]
[{"$f":"LEFT(B968,3)","v":"191"},1911710001,{"$f":"_xlfn.XLOOKUP(B968,'FC Master'!Q:Q,'FC Master'!B:B)","v":"191-145JuvSvs0001"},"Ctl RentUtil-Juvenile Probation-JuvSvs",null,null,null,null,null,null,null,null,null,null,null,null,null,null,null,null,"171","0001",{"$f":"_xlfn.XLOOKUP(VALUE(V968),'Budgeted Funds'!A:A,'Budgeted Funds'!D:D)","v":true}]
[{"$f":"LEFT(B969,3)","v":"191"},1911720001,{"$f":"_xlfn.XLOOKUP(B969,'FC Master'!Q:Q,'FC Master'!B:B)","v":"191-147Hlhcare0001"},"Ctl RentUtil-Emergency Services-Hlhcare",null,null,null,null,null,null,null,null,null,null,null,null,null,null,null,null,"172","0001",{"$f":"_xlfn.XLOOKUP(VALUE(V969),'Budgeted Funds'!A:A,'Budgeted Funds'!D:D)","v":true}]
[{"$f":"LEFT(B970,3)","v":"191"},1911730001,{"$f":"_xlfn.XLOOKUP(B970,'FC Master'!Q:Q,'FC Master'!B:B)","v":"191-147EmrgMgmt0001"},"Ctl RentUtil-Emergency Services-EmrgMgmt",null,null,null,null,null,null,null,null,null,null,null,null,null,null,null,null,"173","0001",{"$f":"_xlfn.XLOOKUP(VALUE(V970),'Budgeted Funds'!A:A,'Budgeted Funds'!D:D)","v":true}]
[{"$f":"LEFT(B971,3)","v":"191"},1911740001,{"$f":"_xlfn.XLOOKUP(B971,'FC Master'!Q:Q,'FC Master'!B:B)","v":"191-149RdBg0001"},"Ctl RentUtil-TNR-RdBg",null,null,null,null,null,null,null,null,null,null,null,null,null,null,null,null,"174","0001",{"$f":"_xlfn.XLOOKUP(VALUE(V971),'Budgeted Funds'!A:A,'Budgeted Funds'!D:D)","v":true}]
[{"$f":"LEFT(B972,3)","v":"191"},1911750001,{"$f":"_xlfn.XLOOKUP(B972,'FC Master'!Q:Q,'FC Master'!B:B)","v":"191-149Parks&Rec0001"},"Ctl RentUtil-TNR-Parks&Rec",null,null,null,null,null,null,null,null,null,null,null,null,null,null,null,null,"175","0001",{"$f":"_xlfn.XLOOKUP(VALUE(V972),'Budgeted Funds'!A:A,'Budgeted Funds'!D:D)","v":true}]
[{"$f":"LEFT(B973,3)","v":"191"},1911760001,{"$f":"_xlfn.XLOOKUP(B973,'FC Master'!Q:Q,'FC Master'!B:B)","v":"191-149ConservNR0001"},"Ctl RentUtil-TNR-ConservNR",null,null,null,null,null,null,null,null,null,null,null,null,null,null,null,null,"176","0001",{"$f":"_xlfn.XLOOKUP(VALUE(V973),'Budgeted Funds'!A:A,'Budgeted Funds'!D:D)","v":true}]
[{"$f":"LEFT(B974,3)","v":"191"},1911770001,{"$f":"_xlfn.XLOOKUP(B974,'FC Master'!Q:Q,'FC Master'!B:B)","v":"191-149FacMgmt0001"},"Ctl RentUtil-TNR-FacMgmt",null,null,null,null,null,null,null,null,null,null,null,null,null,null,null,null,"177","0001",{"$f":"_xlfn.XLOOKUP(VALUE(V974),'Budgeted Funds'!A:A,'Budgeted Funds'!D:D)","v":true}]
[{"$f":"LEFT(B975,3)","v":"191"},1911780001,{"$f":"_xlfn.XLOOKUP(B975,'FC Master'!Q:Q,'FC Master'!B:B)","v":"191-149Drng0001"},"Ctl RentUtil-TNR-Drng",null,null,null,null,null,null,null,null,null,null,null,null,null,null,null,null,"178","0001",{"$f":"_xlfn.XLOOKUP(VALUE(V975),'Budgeted Funds'!A:A,'Budgeted Funds'!D:D)","v":true}]
[{"$f":"LEFT(B976,3)","v":"191"},1911790001,{"$f":"_xlfn.XLOOKUP(B976,'FC Master'!Q:Q,'FC Master'!B:B)","v":"191-149Sanitatn0001"},"Ctl RentUtil-TNR-Sanitation",null,null,null,null,null,null,null,null,null,null,null,null,null,null,null,null,"179","0001",{"$f":"_xlfn.XLOOKUP(VALUE(V976),'Budgeted Funds'!A:A,'Budgeted Funds'!D:D)","v":true}]
[{"$f":"LEFT(B977,3)","v":"191"},1911800001,{"$f":"_xlfn.XLOOKUP(B977,'FC Master'!Q:Q,'FC Master'!B:B)","v":"191-149DevRegIn0001"},"Ctl RentUtil-TNR-DevRegIn",null,null,null,null,null,null,null,null,null,null,null,null,null,null,null,null,"180","0001",{"$f":"_xlfn.XLOOKUP(VALUE(V977),'Budgeted Funds'!A:A,'Budgeted Funds'!D:D)","v":true}]
[{"$f":"LEFT(B978,3)","v":"191"},1911810001,{"$f":"_xlfn.XLOOKUP(B978,'FC Master'!Q:Q,'FC Master'!B:B)","v":"191-149HumanSvs0001"},"Ctl RentUtil-TNR-HumanSvs",null,null,null,null,null,null,null,null,null,null,null,null,null,null,null,null,"181","0001",{"$f":"_xlfn.XLOOKUP(VALUE(V978),'Budgeted Funds'!A:A,'Budgeted Funds'!D:D)","v":true}]
[{"$f":"LEFT(B979,3)","v":"191"},1911820001,{"$f":"_xlfn.XLOOKUP(B979,'FC Master'!Q:Q,'FC Master'!B:B)","v":"191-154GenAdm0001"},"Ctl RentUtil-Civil Service Cmn-GenAdm",null,null,null,null,null,null,null,null,null,null,null,null,null,null,null,null,"182","0001",{"$f":"_xlfn.XLOOKUP(VALUE(V979),'Budgeted Funds'!A:A,'Budgeted Funds'!D:D)","v":true}]
[{"$f":"LEFT(B980,3)","v":"191"},1911830001,{"$f":"_xlfn.XLOOKUP(B980,'FC Master'!Q:Q,'FC Master'!B:B)","v":"191-155CrmJs0001"},"Ctl RentUtil-CJP-CrmJs",null,null,null,null,null,null,null,null,null,null,null,null,null,null,null,null,"183","0001",{"$f":"_xlfn.XLOOKUP(VALUE(V980),'Budgeted Funds'!A:A,'Budgeted Funds'!D:D)","v":true}]
[{"$f":"LEFT(B981,3)","v":"191"},1911840001,{"$f":"_xlfn.XLOOKUP(B981,'FC Master'!Q:Q,'FC Master'!B:B)","v":"191-155Hlhcare0001"},"Ctl RentUtil-CJP-Hlhcare",null,null,null,null,null,null,null,null,null,null,null,null,null,null,null,null,"184","0001",{"$f":"_xlfn.XLOOKUP(VALUE(V981),'Budgeted Funds'!A:A,'Budgeted Funds'!D:D)","v":true}]
[{"$f":"LEFT(B982,3)","v":"191"},1911850001,{"$f":"_xlfn.XLOOKUP(B982,'FC Master'!Q:Q,'FC Master'!B:B)","v":"191-155EmrgMgmt0001"},"Ctl RentUtil-CJP-EmrgMgmt",null,null,null,null,null,null,null,null,null,null,null,null,null,null,null,null,"185","0001",{"$f":"_xlfn.XLOOKUP(VALUE(V982),'Budgeted Funds'!A:A,'Budgeted Funds'!D:D)","v":true}]
[{"$f":"LEFT(B983,3)","v":"191"},1911860001,{"$f":"_xlfn.XLOOKUP(B983,'FC Master'!Q:Q,'FC Master'!B:B)","v":"191-155Svsn0001"},"Ctl RentUtil-CJP-Svsn",null,null,null,null,null,null,null,null,null,null,null,null,null,null,null,null,"186","0001",{"$f":"_xlfn.XLOOKUP(VALUE(V983),'Budgeted Funds'!A:A,'Budgeted Funds'!D:D)","v":true}]
[{"$f":"LEFT(B984,3)","v":"191"},1911870001,{"$f":"_xlfn.XLOOKUP(B984,'FC Master'!Q:Q,'FC Master'!B:B)","v":"191-155JuvSvs0001"},"Ctl RentUtil-CJP-JuvSvs",null,null,null,null,null,null,null,null,null,null,null,null,null,null,null,null,"187","0001",{"$f":"_xlfn.XLOOKUP(VALUE(V984),'Budgeted Funds'!A:A,'Budgeted Funds'!D:D)","v":true}]
[{"$f":"LEFT(B985,3)","v":"191"},1911880001,{"$f":"_xlfn.XLOOKUP(B985,'FC Master'!Q:Q,'FC Master'!B:B)","v":"191-155LE0001"},"Ctl RentUtil-CJP-LE",null,null,null,null,null,null,null,null,null,null,null,null,null,null,null,null,"188","0001",{"$f":"_xlfn.XLOOKUP(VALUE(V985),'Budgeted Funds'!A:A,'Budgeted Funds'!D:D)","v":true}]
[{"$f":"LEFT(B986,3)","v":"191"},1911890001,{"$f":"_xlfn.XLOOKUP(B986,'FC Master'!Q:Q,'FC Master'!B:B)","v":"191-157GenAdm0001"},"Ctl RentUtil-CRS-GenAdm",null,null,null,null,null,null,null,null,null,null,null,null,null,null,null,null,"189","0001",{"$f":"_xlfn.XLOOKUP(VALUE(V986),'Budgeted Funds'!A:A,'Budgeted Funds'!D:D)","v":true}]
[{"$f":"LEFT(B987,3)","v":"191"},1911900001,{"$f":"_xlfn.XLOOKUP(B987,'FC Master'!Q:Q,'FC Master'!B:B)","v":"191-157CivJs0001"},"Ctl RentUtil-CRS-CivJs",null,null,null,null,null,null,null,null,null,null,null,null,null,null,null,null,"190","0001",{"$f":"_xlfn.XLOOKUP(VALUE(V987),'Budgeted Funds'!A:A,'Budgeted Funds'!D:D)","v":true}]
[{"$f":"LEFT(B988,3)","v":"191"},1911910001,{"$f":"_xlfn.XLOOKUP(B988,'FC Master'!Q:Q,'FC Master'!B:B)","v":"191-157CrmJs0001"},"Ctl RentUtil-CRS-CrmJs",null,null,null,null,null,null,null,null,null,null,null,null,null,null,null,null,"191","0001",{"$f":"_xlfn.XLOOKUP(VALUE(V988),'Budgeted Funds'!A:A,'Budgeted Funds'!D:D)","v":true}]
[{"$f":"LEFT(B989,3)","v":"191"},1911920001,{"$f":"_xlfn.XLOOKUP(B989,'FC Master'!Q:Q,'FC Master'!B:B)","v":"191-158Hlhcare0001"},"Ctl RentUtil-HHS-Hlhcare",null,null,null,null,null,null,null,null,null,null,null,null,null,null,null,null,"192","0001",{"$f":"_xlfn.XLOOKUP(VALUE(V989),'Budgeted Funds'!A:A,'Budgeted Funds'!D:D)","v":true}]
[{"$f":"LEFT(B990,3)","v":"191"},1911930001,{"$f":"_xlfn.XLOOKUP(B990,'FC Master'!Q:Q,'FC Master'!B:B)","v":"191-158PbcHlh0001"},"Ctl RentUtil-HHS-PbcHlh",null,null,null,null,null,null,null,null,null,null,null,null,null,null,null,null,"193","0001",{"$f":"_xlfn.XLOOKUP(VALUE(V990),'Budgeted Funds'!A:A,'Budgeted Funds'!D:D)","v":true}]
[{"$f":"LEFT(B991,3)","v":"191"},1911940001,{"$f":"_xlfn.XLOOKUP(B991,'FC Master'!Q:Q,'FC Master'!B:B)","v":"191-158HumanSvs0001"},"Ctl RentUtil-HHS-HumanSvs",null,null,null,null,null,null,null,null,null,null,null,null,null,null,null,null,"194","0001",{"$f":"_xlfn.XLOOKUP(VALUE(V991),'Budgeted Funds'!A:A,'Budgeted Funds'!D:D)","v":true}]
[{"$f":"LEFT(B992,3)","v":"191"},1911950001,{"$f":"_xlfn.XLOOKUP(B992,'FC Master'!Q:Q,'FC Master'!B:B)","v":"191-158JuvSvs0001"},"Ctl RentUtil-HHS-JuvSvs",null,null,null,null,null,null,null,null,null,null,null,null,null,null,null,null,"195","0001",{"$f":"_xlfn.XLOOKUP(VALUE(V992),'Budgeted Funds'!A:A,'Budgeted Funds'!D:D)","v":true}]
[{"$f":"LEFT(B993,3)","v":"191"},1911960001,{"$f":"_xlfn.XLOOKUP(B993,'FC Master'!Q:Q,'FC Master'!B:B)","v":"191-159Hlhcare0001"},"Ctl RentUtil-EMS-Hlhcare",null,null,null,null,null,null,null,null,null,null,null,null,null,null,null,null,"196","0001",{"$f":"_xlfn.XLOOKUP(VALUE(V993),'Budgeted Funds'!A:A,'Budgeted Funds'!D:D)","v":true}]
[{"$f":"LEFT(B994,3)","v":"191"},1911970001,{"$f":"_xlfn.XLOOKUP(B994,'FC Master'!Q:Q,'FC Master'!B:B)","v":"191-193CivJs0001"},"Ctl RentUtil-Legally Mtd Fees-CivJs",null,null,null,null,null,null,null,null,null,null,null,null,null,null,null,null,"197","0001",{"$f":"_xlfn.XLOOKUP(VALUE(V994),'Budgeted Funds'!A:A,'Budgeted Funds'!D:D)","v":true}]
[{"$f":"LEFT(B995,3)","v":"191"},1911980001,{"$f":"_xlfn.XLOOKUP(B995,'FC Master'!Q:Q,'FC Master'!B:B)","v":"191-194CrmJs0001"},"Ctl RentUtil-Legally Mtd Fees-CrmJs",null,null,null,null,null,null,null,null,null,null,null,null,null,null,null,null,"198","0001",{"$f":"_xlfn.XLOOKUP(VALUE(V995),'Budgeted Funds'!A:A,'Budgeted Funds'!D:D)","v":true}]
[{"$f":"LEFT(B996,3)","v":"192"},1921100001,{"$f":"_xlfn.XLOOKUP(B996,'FC Master'!Q:Q,'FC Master'!B:B)","v":"192-101GenAdm0001"},"Ctl Fleet-County Judge-GenAdm",null,null,null,null,null,null,null,null,null,null,null,null,null,null,null,null,"110","0001",{"$f":"_xlfn.XLOOKUP(VALUE(V996),'Budgeted Funds'!A:A,'Budgeted Funds'!D:D)","v":true}]
[{"$f":"LEFT(B997,3)","v":"192"},1921110001,{"$f":"_xlfn.XLOOKUP(B997,'FC Master'!Q:Q,'FC Master'!B:B)","v":"192-101JuvSvs0001"},"Ctl Fleet-County Judge-JuvSvs",null,null,null,null,null,null,null,null,null,null,null,null,null,null,null,null,"111","0001",{"$f":"_xlfn.XLOOKUP(VALUE(V997),'Budgeted Funds'!A:A,'Budgeted Funds'!D:D)","v":true}]
[{"$f":"LEFT(B998,3)","v":"192"},1921120001,{"$f":"_xlfn.XLOOKUP(B998,'FC Master'!Q:Q,'FC Master'!B:B)","v":"192-102GenAdm0001"},"Ctl Fleet-CC-Pct 1-GenAdm",null,null,null,null,null,null,null,null,null,null,null,null,null,null,null,null,"112","0001",{"$f":"_xlfn.XLOOKUP(VALUE(V998),'Budgeted Funds'!A:A,'Budgeted Funds'!D:D)","v":true}]
[{"$f":"LEFT(B999,3)","v":"192"},1921130001,{"$f":"_xlfn.XLOOKUP(B999,'FC Master'!Q:Q,'FC Master'!B:B)","v":"192-103GenAdm0001"},"Ctl Fleet-CC Pct 2-GenAdm",null,null,null,null,null,null,null,null,null,null,null,null,null,null,null,null,"113","0001",{"$f":"_xlfn.XLOOKUP(VALUE(V999),'Budgeted Funds'!A:A,'Budgeted Funds'!D:D)","v":true}]
[{"$f":"LEFT(B1000,3)","v":"192"},1921140001,{"$f":"_xlfn.XLOOKUP(B1000,'FC Master'!Q:Q,'FC Master'!B:B)","v":"192-104GenAdm0001"},"Ctl Fleet-CC Pct 3-GenAdm",null,null,null,null,null,null,null,null,null,null,null,null,null,null,null,null,"114","0001",{"$f":"_xlfn.XLOOKUP(VALUE(V1000),'Budgeted Funds'!A:A,'Budgeted Funds'!D:D)","v":true}]
[{"$f":"LEFT(B1001,3)","v":"192"},1921150001,{"$f":"_xlfn.XLOOKUP(B1001,'FC Master'!Q:Q,'FC Master'!B:B)","v":"192-105GenAdm0001"},"Ctl Fleet-CC Pct 4-GenAdm",null,null,null,null,null,null,null,null,null,null,null,null,null,null,null,null,"115","0001",{"$f":"_xlfn.XLOOKUP(VALUE(V1001),'Budgeted Funds'!A:A,'Budgeted Funds'!D:D)","v":true}]
[{"$f":"LEFT(B1002,3)","v":"192"},1921160001,{"$f":"_xlfn.XLOOKUP(B1002,'FC Master'!Q:Q,'FC Master'!B:B)","v":"192-106FinAdm0001"},"Ctl Fleet-County Auditor-FinAdm",null,null,null,null,null,null,null,null,null,null,null,null,null,null,null,null,"116","0001",{"$f":"_xlfn.XLOOKUP(VALUE(V1002),'Budgeted Funds'!A:A,'Budgeted Funds'!D:D)","v":true}]
[{"$f":"LEFT(B1003,3)","v":"192"},1921170001,{"$f":"_xlfn.XLOOKUP(B1003,'FC Master'!Q:Q,'FC Master'!B:B)","v":"192-107FinAdm0001"},"Ctl Fleet-County Treasurer-FinAdm",null,null,null,null,null,null,null,null,null,null,null,null,null,null,null,null,"117","0001",{"$f":"_xlfn.XLOOKUP(VALUE(V1003),'Budgeted Funds'!A:A,'Budgeted Funds'!D:D)","v":true}]
[{"$f":"LEFT(B1004,3)","v":"192"},1921180001,{"$f":"_xlfn.XLOOKUP(B1004,'FC Master'!Q:Q,'FC Master'!B:B)","v":"192-108TaxAdm0001"},"Ctl Fleet-Tax Collector-TaxAdm",null,null,null,null,null,null,null,null,null,null,null,null,null,null,null,null,"118","0001",{"$f":"_xlfn.XLOOKUP(VALUE(V1004),'Budgeted Funds'!A:A,'Budgeted Funds'!D:D)","v":true}]
[{"$f":"LEFT(B1005,3)","v":"192"},1921190001,{"$f":"_xlfn.XLOOKUP(B1005,'FC Master'!Q:Q,'FC Master'!B:B)","v":"192-108CrmJs0001"},"Ctl Fleet-Tax Collector-CrmJs",null,null,null,null,null,null,null,null,null,null,null,null,null,null,null,null,"119","0001",{"$f":"_xlfn.XLOOKUP(VALUE(V1005),'Budgeted Funds'!A:A,'Budgeted Funds'!D:D)","v":true}]
[{"$f":"LEFT(B1006,3)","v":"192"},1921200001,{"$f":"_xlfn.XLOOKUP(B1006,'FC Master'!Q:Q,'FC Master'!B:B)","v":"192-108ElnAdm0001"},"Ctl Fleet-Tax Collector-ElnAdm",null,null,null,null,null,null,null,null,null,null,null,null,null,null,null,null,"120","0001",{"$f":"_xlfn.XLOOKUP(VALUE(V1006),'Budgeted Funds'!A:A,'Budgeted Funds'!D:D)","v":true}]
[{"$f":"LEFT(B1007,3)","v":"192"},1921210001,{"$f":"_xlfn.XLOOKUP(B1007,'FC Master'!Q:Q,'FC Master'!B:B)","v":"192-109FinAdm0001"},"Ctl Fleet-Planning And Budget-FinAdm",null,null,null,null,null,null,null,null,null,null,null,null,null,null,null,null,"121","0001",{"$f":"_xlfn.XLOOKUP(VALUE(V1007),'Budgeted Funds'!A:A,'Budgeted Funds'!D:D)","v":true}]
[{"$f":"LEFT(B1008,3)","v":"192"},1921220001,{"$f":"_xlfn.XLOOKUP(B1008,'FC Master'!Q:Q,'FC Master'!B:B)","v":"192-110GenAdm0001"},"Ctl Fleet-General Adm-GenAdm",null,null,null,null,null,null,null,null,null,null,null,null,null,null,null,null,"122","0001",{"$f":"_xlfn.XLOOKUP(VALUE(V1008),'Budgeted Funds'!A:A,'Budgeted Funds'!D:D)","v":true}]
[{"$f":"LEFT(B1009,3)","v":"192"},1921230001,{"$f":"_xlfn.XLOOKUP(B1009,'FC Master'!Q:Q,'FC Master'!B:B)","v":"192-110Hlhcare0001"},"Ctl Fleet-General Adm-Hlhcare",null,null,null,null,null,null,null,null,null,null,null,null,null,null,null,null,"123","0001",{"$f":"_xlfn.XLOOKUP(VALUE(V1009),'Budgeted Funds'!A:A,'Budgeted Funds'!D:D)","v":true}]
[{"$f":"LEFT(B1010,3)","v":"192"},1921240001,{"$f":"_xlfn.XLOOKUP(B1010,'FC Master'!Q:Q,'FC Master'!B:B)","v":"192-110EconDev0001"},"Ctl Fleet-General Adm-EconDev",null,null,null,null,null,null,null,null,null,null,null,null,null,null,null,null,"124","0001",{"$f":"_xlfn.XLOOKUP(VALUE(V1010),'Budgeted Funds'!A:A,'Budgeted Funds'!D:D)","v":true}]
[{"$f":"LEFT(B1011,3)","v":"192"},1921250001,{"$f":"_xlfn.XLOOKUP(B1011,'FC Master'!Q:Q,'FC Master'!B:B)","v":"192-111GenAdm0001"},"Ctl Fleet-Human Resource Mgmt-GenAdm",null,null,null,null,null,null,null,null,null,null,null,null,null,null,null,null,"125","0001",{"$f":"_xlfn.XLOOKUP(VALUE(V1011),'Budgeted Funds'!A:A,'Budgeted Funds'!D:D)","v":true}]
[{"$f":"LEFT(B1012,3)","v":"192"},1921260001,{"$f":"_xlfn.XLOOKUP(B1012,'FC Master'!Q:Q,'FC Master'!B:B)","v":"192-112GenAdm0001"},"Ctl Fleet-ITS-GenAdm",null,null,null,null,null,null,null,null,null,null,null,null,null,null,null,null,"126","0001",{"$f":"_xlfn.XLOOKUP(VALUE(V1012),'Budgeted Funds'!A:A,'Budgeted Funds'!D:D)","v":true}]
[{"$f":"LEFT(B1013,3)","v":"192"},1921270001,{"$f":"_xlfn.XLOOKUP(B1013,'FC Master'!Q:Q,'FC Master'!B:B)","v":"192-113EconDev0001"},"Ctl Fleet-EXPO Center-EconDev",null,null,null,null,null,null,null,null,null,null,null,null,null,null,null,null,"127","0001",{"$f":"_xlfn.XLOOKUP(VALUE(V1013),'Budgeted Funds'!A:A,'Budgeted Funds'!D:D)","v":true}]
[{"$f":"LEFT(B1014,3)","v":"192"},1921280001,{"$f":"_xlfn.XLOOKUP(B1014,'FC Master'!Q:Q,'FC Master'!B:B)","v":"192-114FacMgmt0001"},"Ctl Fleet-Facilities Mgmt-FacMgmt",null,null,null,null,null,null,null,null,null,null,null,null,null,null,null,null,"128","0001",{"$f":"_xlfn.XLOOKUP(VALUE(V1014),'Budgeted Funds'!A:A,'Budgeted Funds'!D:D)","v":true}]
[{"$f":"LEFT(B1015,3)","v":"192"},1921290001,{"$f":"_xlfn.XLOOKUP(B1015,'FC Master'!Q:Q,'FC Master'!B:B)","v":"192-114EconDev0001"},"Ctl Fleet-Facilities Mgmt-EconDev",null,null,null,null,null,null,null,null,null,null,null,null,null,null,null,null,"129","0001",{"$f":"_xlfn.XLOOKUP(VALUE(V1015),'Budgeted Funds'!A:A,'Budgeted Funds'!D:D)","v":true}]
[{"$f":"LEFT(B1016,3)","v":"192"},1921300001,{"$f":"_xlfn.XLOOKUP(B1016,'FC Master'!Q:Q,'FC Master'!B:B)","v":"192-115FinAdm0001"},"Ctl Fleet-Purchasing-FinAdm",null,null,null,null,null,null,null,null,null,null,null,null,null,null,null,null,"130","0001",{"$f":"_xlfn.XLOOKUP(VALUE(V1016),'Budgeted Funds'!A:A,'Budgeted Funds'!D:D)","v":true}]
[{"$f":"LEFT(B1017,3)","v":"192"},1921310001,{"$f":"_xlfn.XLOOKUP(B1017,'FC Master'!Q:Q,'FC Master'!B:B)","v":"192-116HumanSvs0001"},"Ctl Fleet-Veterans Services-HumanSvs",null,null,null,null,null,null,null,null,null,null,null,null,null,null,null,null,"131","0001",{"$f":"_xlfn.XLOOKUP(VALUE(V1017),'Budgeted Funds'!A:A,'Budgeted Funds'!D:D)","v":true}]
[{"$f":"LEFT(B1018,3)","v":"192"},1921320001,{"$f":"_xlfn.XLOOKUP(B1018,'FC Master'!Q:Q,'FC Master'!B:B)","v":"192-117Cul&Edu0001"},"Ctl Fleet-Historical Comm-Cul&Edu",null,null,null,null,null,null,null,null,null,null,null,null,null,null,null,null,"132","0001",{"$f":"_xlfn.XLOOKUP(VALUE(V1018),'Budgeted Funds'!A:A,'Budgeted Funds'!D:D)","v":true}]
[{"$f":"LEFT(B1019,3)","v":"192"},1921330001,{"$f":"_xlfn.XLOOKUP(B1019,'FC Master'!Q:Q,'FC Master'!B:B)","v":"192-118HumanSvs0001"},"Ctl Fleet-Agr Ext Serv-HumanSvs",null,null,null,null,null,null,null,null,null,null,null,null,null,null,null,null,"133","0001",{"$f":"_xlfn.XLOOKUP(VALUE(V1019),'Budgeted Funds'!A:A,'Budgeted Funds'!D:D)","v":true}]
[{"$f":"LEFT(B1020,3)","v":"192"},1921340001,{"$f":"_xlfn.XLOOKUP(B1020,'FC Master'!Q:Q,'FC Master'!B:B)","v":"192-119CivJs0001"},"Ctl Fleet-County Attorney-CivJs",null,null,null,null,null,null,null,null,null,null,null,null,null,null,null,null,"134","0001",{"$f":"_xlfn.XLOOKUP(VALUE(V1020),'Budgeted Funds'!A:A,'Budgeted Funds'!D:D)","v":true}]
[{"$f":"LEFT(B1021,3)","v":"192"},1921350001,{"$f":"_xlfn.XLOOKUP(B1021,'FC Master'!Q:Q,'FC Master'!B:B)","v":"192-119CrmJs0001"},"Ctl Fleet-County Attorney-CrmJs",null,null,null,null,null,null,null,null,null,null,null,null,null,null,null,null,"135","0001",{"$f":"_xlfn.XLOOKUP(VALUE(V1021),'Budgeted Funds'!A:A,'Budgeted Funds'!D:D)","v":true}]
[{"$f":"LEFT(B1022,3)","v":"192"},1921360001,{"$f":"_xlfn.XLOOKUP(B1022,'FC Master'!Q:Q,'FC Master'!B:B)","v":"192-120GenAdm0001"},"Ctl Fleet-County Clerk-GenAdm",null,null,null,null,null,null,null,null,null,null,null,null,null,null,null,null,"136","0001",{"$f":"_xlfn.XLOOKUP(VALUE(V1022),'Budgeted Funds'!A:A,'Budgeted Funds'!D:D)","v":true}]
[{"$f":"LEFT(B1023,3)","v":"192"},1921370001,{"$f":"_xlfn.XLOOKUP(B1023,'FC Master'!Q:Q,'FC Master'!B:B)","v":"192-120ElnAdm0001"},"Ctl Fleet-County Clerk-ElnAdm",null,null,null,null,null,null,null,null,null,null,null,null,null,null,null,null,"137","0001",{"$f":"_xlfn.XLOOKUP(VALUE(V1023),'Budgeted Funds'!A:A,'Budgeted Funds'!D:D)","v":true}]
[{"$f":"LEFT(B1024,3)","v":"192"},1921380001,{"$f":"_xlfn.XLOOKUP(B1024,'FC Master'!Q:Q,'FC Master'!B:B)","v":"192-120CivJs0001"},"Ctl Fleet-County Clerk-CivJs",null,null,null,null,null,null,null,null,null,null,null,null,null,null,null,null,"138","0001",{"$f":"_xlfn.XLOOKUP(VALUE(V1024),'Budgeted Funds'!A:A,'Budgeted Funds'!D:D)","v":true}]
[{"$f":"LEFT(B1025,3)","v":"192"},1921390001,{"$f":"_xlfn.XLOOKUP(B1025,'FC Master'!Q:Q,'FC Master'!B:B)","v":"192-120CrmJs0001"},"Ctl Fleet-County Clerk-CrmJs",null,null,null,null,null,null,null,null,null,null,null,null,null,null,null,null,"139","0001",{"$f":"_xlfn.XLOOKUP(VALUE(V1025),'Budgeted Funds'!A:A,'Budgeted Funds'!D:D)","v":true}]
[{"$f":"LEFT(B1026,3)","v":"192"},1921400001,{"$f":"_xlfn.XLOOKUP(B1026,'FC Master'!Q:Q,'FC Master'!B:B)","v":"192-121CivJs0001"},"Ctl Fleet-District Clerk-CivJs",null,null,null,null,null,null,null,null,null,null,null,null,null,null,null,null,"140","0001",{"$f":"_xlfn.XLOOKUP(VALUE(V1026),'Budgeted Funds'!A:A,'Budgeted Funds'!D:D)","v":true}]
[{"$f":"LEFT(B1027,3)","v":"192"},1921410001,{"$f":"_xlfn.XLOOKUP(B1027,'FC Master'!Q:Q,'FC Master'!B:B)","v":"192-121CrmJs0001"},"Ctl Fleet-District Clerk-CrmJs",null,null,null,null,null,null,null,null,null,null,null,null,null,null,null,null,"141","0001",{"$f":"_xlfn.XLOOKUP(VALUE(V1027),'Budgeted Funds'!A:A,'Budgeted Funds'!D:D)","v":true}]
[{"$f":"LEFT(B1028,3)","v":"192"},1921420001,{"$f":"_xlfn.XLOOKUP(B1028,'FC Master'!Q:Q,'FC Master'!B:B)","v":"192-122CivJs0001"},"Ctl Fleet-Civil Courts-CivJs",null,null,null,null,null,null,null,null,null,null,null,null,null,null,null,null,{"$f":"MID(B1028,4,3)","v":"142"},{"$f":"MID(B1028,7,4)","v":"0001"},{"$f":"_xlfn.XLOOKUP(VALUE(V1028),'Budgeted Funds'!A:A,'Budgeted Funds'!D:D)","v":true}]
[{"$f":"LEFT(B1029,3)","v":"192"},1921430001,{"$f":"_xlfn.XLOOKUP(B1029,'FC Master'!Q:Q,'FC Master'!B:B)","v":"192-123CrmJs0001"},"Ctl Fleet-District Attorney-CrmJs",null,null,null,null,null,null,null,null,null,null,null,null,null,null,null,null,"143","0001",{"$f":"_xlfn.XLOOKUP(VALUE(V1029),'Budgeted Funds'!A:A,'Budgeted Funds'!D:D)","v":true}]
[{"$f":"LEFT(B1030,3)","v":"192"},1921440001,{"$f":"_xlfn.XLOOKUP(B1030,'FC Master'!Q:Q,'FC Master'!B:B)","v":"192-123CivJs0001"},"Ctl Fleet-District Attorney-CivJs",null,null,null,null,null,null,null,null,null,null,null,null,null,null,null,null,"144","0001",{"$f":"_xlfn.XLOOKUP(VALUE(V1030),'Budgeted Funds'!A:A,'Budgeted Funds'!D:D)","v":true}]
[{"$f":"LEFT(B1031,3)","v":"192"},1921450001,{"$f":"_xlfn.XLOOKUP(B1031,'FC Master'!Q:Q,'FC Master'!B:B)","v":"192-124CrmJs0001"},"Ctl Fleet-Criminal Courts-CrmJs",null,null,null,null,null,null,null,null,null,null,null,null,null,null,null,null,"145","0001",{"$f":"_xlfn.XLOOKUP(VALUE(V1031),'Budgeted Funds'!A:A,'Budgeted Funds'!D:D)","v":true}]
[{"$f":"LEFT(B1032,3)","v":"192"},1921460001,{"$f":"_xlfn.XLOOKUP(B1032,'FC Master'!Q:Q,'FC Master'!B:B)","v":"192-125CivJs0001"},"Ctl Fleet-Probate Court-CivJs",null,null,null,null,null,null,null,null,null,null,null,null,null,null,null,null,"146","0001",{"$f":"_xlfn.XLOOKUP(VALUE(V1032),'Budgeted Funds'!A:A,'Budgeted Funds'!D:D)","v":true}]
[{"$f":"LEFT(B1033,3)","v":"192"},1921470001,{"$f":"_xlfn.XLOOKUP(B1033,'FC Master'!Q:Q,'FC Master'!B:B)","v":"192-126CivJs0001"},"Ctl Fleet-Justice Of Peace 1-CivJs",null,null,null,null,null,null,null,null,null,null,null,null,null,null,null,null,"147","0001",{"$f":"_xlfn.XLOOKUP(VALUE(V1033),'Budgeted Funds'!A:A,'Budgeted Funds'!D:D)","v":true}]
[{"$f":"LEFT(B1034,3)","v":"192"},1921480001,{"$f":"_xlfn.XLOOKUP(B1034,'FC Master'!Q:Q,'FC Master'!B:B)","v":"192-126CrmJs0001"},"Ctl Fleet-Justice Of Peace 1-CrmJs",null,null,null,null,null,null,null,null,null,null,null,null,null,null,null,null,"148","0001",{"$f":"_xlfn.XLOOKUP(VALUE(V1034),'Budgeted Funds'!A:A,'Budgeted Funds'!D:D)","v":true}]
[{"$f":"LEFT(B1035,3)","v":"192"},1921490001,{"$f":"_xlfn.XLOOKUP(B1035,'FC Master'!Q:Q,'FC Master'!B:B)","v":"192-127CivJs0001"},"Ctl Fleet-Justice Of Peace 2-CivJs",null,null,null,null,null,null,null,null,null,null,null,null,null,null,null,null,"149","0001",{"$f":"_xlfn.XLOOKUP(VALUE(V1035),'Budgeted Funds'!A:A,'Budgeted Funds'!D:D)","v":true}]
[{"$f":"LEFT(B1036,3)","v":"192"},1921500001,{"$f":"_xlfn.XLOOKUP(B1036,'FC Master'!Q:Q,'FC Master'!B:B)","v":"192-127CrmJs0001"},"Ctl Fleet-Justice Of Peace 2-CrmJs",null,null,null,null,null,null,null,null,null,null,null,null,null,null,null,null,"150","0001",{"$f":"_xlfn.XLOOKUP(VALUE(V1036),'Budgeted Funds'!A:A,'Budgeted Funds'!D:D)","v":true}]
[{"$f":"LEFT(B1037,3)","v":"192"},1921510001,{"$f":"_xlfn.XLOOKUP(B1037,'FC Master'!Q:Q,'FC Master'!B:B)","v":"192-128CivJs0001"},"Ctl Fleet-Justice Of Peace 3-CivJs",null,null,null,null,null,null,null,null,null,null,null,null,null,null,null,null,"151","0001",{"$f":"_xlfn.XLOOKUP(VALUE(V1037),'Budgeted Funds'!A:A,'Budgeted Funds'!D:D)","v":true}]
[{"$f":"LEFT(B1038,3)","v":"192"},1921520001,{"$f":"_xlfn.XLOOKUP(B1038,'FC Master'!Q:Q,'FC Master'!B:B)","v":"192-128CrmJs0001"},"Ctl Fleet-Justice Of Peace 3-CrmJs",null,null,null,null,null,null,null,null,null,null,null,null,null,null,null,null,"152","0001",{"$f":"_xlfn.XLOOKUP(VALUE(V1038),'Budgeted Funds'!A:A,'Budgeted Funds'!D:D)","v":true}]
[{"$f":"LEFT(B1039,3)","v":"192"},1921530001,{"$f":"_xlfn.XLOOKUP(B1039,'FC Master'!Q:Q,'FC Master'!B:B)","v":"192-129CivJs0001"},"Ctl Fleet-Justice Of Peace 4-CivJs",null,null,null,null,null,null,null,null,null,null,null,null,null,null,null,null,"153","0001",{"$f":"_xlfn.XLOOKUP(VALUE(V1039),'Budgeted Funds'!A:A,'Budgeted Funds'!D:D)","v":true}]
[{"$f":"LEFT(B1040,3)","v":"192"},1921540001,{"$f":"_xlfn.XLOOKUP(B1040,'FC Master'!Q:Q,'FC Master'!B:B)","v":"192-129CrmJs0001"},"Ctl Fleet-Justice Of Peace 4-CrmJs",null,null,null,null,null,null,null,null,null,null,null,null,null,null,null,null,"154","0001",{"$f":"_xlfn.XLOOKUP(VALUE(V1040),'Budgeted Funds'!A:A,'Budgeted Funds'!D:D)","v":true}]
[{"$f":"LEFT(B1041,3)","v":"192"},1921550001,{"$f":"_xlfn.XLOOKUP(B1041,'FC Master'!Q:Q,'FC Master'!B:B)","v":"192-130CivJs0001"},"Ctl Fleet-Justice Of Peace 5-CivJs",null,null,null,null,null,null,null,null,null,null,null,null,null,null,null,null,"155","0001",{"$f":"_xlfn.XLOOKUP(VALUE(V1041),'Budgeted Funds'!A:A,'Budgeted Funds'!D:D)","v":true}]
[{"$f":"LEFT(B1042,3)","v":"192"},1921560001,{"$f":"_xlfn.XLOOKUP(B1042,'FC Master'!Q:Q,'FC Master'!B:B)","v":"192-130CrmJs0001"},"Ctl Fleet-Justice Of Peace 5-CrmJs",null,null,null,null,null,null,null,null,null,null,null,null,null,null,null,null,"156","0001",{"$f":"_xlfn.XLOOKUP(VALUE(V1042),'Budgeted Funds'!A:A,'Budgeted Funds'!D:D)","v":true}]
[{"$f":"LEFT(B1043,3)","v":"192"},1921570001,{"$f":"_xlfn.XLOOKUP(B1043,'FC Master'!Q:Q,'FC Master'!B:B)","v":"192-131LE0001"},"Ctl Fleet-Constable 1-LE",null,null,null,null,null,null,null,null,null,null,null,null,null,null,null,null,"157","0001",{"$f":"_xlfn.XLOOKUP(VALUE(V1043),'Budgeted Funds'!A:A,'Budgeted Funds'!D:D)","v":true}]
[{"$f":"LEFT(B1044,3)","v":"192"},1921580001,{"$f":"_xlfn.XLOOKUP(B1044,'FC Master'!Q:Q,'FC Master'!B:B)","v":"192-132LE0001"},"Ctl Fleet-Constable 2-LE",null,null,null,null,null,null,null,null,null,null,null,null,null,null,null,null,"158","0001",{"$f":"_xlfn.XLOOKUP(VALUE(V1044),'Budgeted Funds'!A:A,'Budgeted Funds'!D:D)","v":true}]
[{"$f":"LEFT(B1045,3)","v":"192"},1921590001,{"$f":"_xlfn.XLOOKUP(B1045,'FC Master'!Q:Q,'FC Master'!B:B)","v":"192-133LE0001"},"Ctl Fleet-Constable 3-LE",null,null,null,null,null,null,null,null,null,null,null,null,null,null,null,null,"159","0001",{"$f":"_xlfn.XLOOKUP(VALUE(V1045),'Budgeted Funds'!A:A,'Budgeted Funds'!D:D)","v":true}]
[{"$f":"LEFT(B1046,3)","v":"192"},1921600001,{"$f":"_xlfn.XLOOKUP(B1046,'FC Master'!Q:Q,'FC Master'!B:B)","v":"192-134LE0001"},"Ctl Fleet-Constable 4-LE",null,null,null,null,null,null,null,null,null,null,null,null,null,null,null,null,"160","0001",{"$f":"_xlfn.XLOOKUP(VALUE(V1046),'Budgeted Funds'!A:A,'Budgeted Funds'!D:D)","v":true}]
[{"$f":"LEFT(B1047,3)","v":"192"},1921610001,{"$f":"_xlfn.XLOOKUP(B1047,'FC Master'!Q:Q,'FC Master'!B:B)","v":"192-135LE0001"},"Ctl Fleet-Constable 5-LE",null,null,null,null,null,null,null,null,null,null,null,null,null,null,null,null,"161","0001",{"$f":"_xlfn.XLOOKUP(VALUE(V1047),'Budgeted Funds'!A:A,'Budgeted Funds'!D:D)","v":true}]
[{"$f":"LEFT(B1048,3)","v":"192"},1921620001,{"$f":"_xlfn.XLOOKUP(B1048,'FC Master'!Q:Q,'FC Master'!B:B)","v":"192-136CivJs0001"},"Ctl Fleet-Dispute Resol Ctr-CivJs",null,null,null,null,null,null,null,null,null,null,null,null,null,null,null,null,"162","0001",{"$f":"_xlfn.XLOOKUP(VALUE(V1048),'Budgeted Funds'!A:A,'Budgeted Funds'!D:D)","v":true}]
[{"$f":"LEFT(B1049,3)","v":"192"},1921630001,{"$f":"_xlfn.XLOOKUP(B1049,'FC Master'!Q:Q,'FC Master'!B:B)","v":"192-137LE0001"},"Ctl Fleet-Sheriff-LE",null,null,null,null,null,null,null,null,null,null,null,null,null,null,null,null,"163","0001",{"$f":"_xlfn.XLOOKUP(VALUE(V1049),'Budgeted Funds'!A:A,'Budgeted Funds'!D:D)","v":true}]
[{"$f":"LEFT(B1050,3)","v":"192"},1921640001,{"$f":"_xlfn.XLOOKUP(B1050,'FC Master'!Q:Q,'FC Master'!B:B)","v":"192-137HsgBkg0001"},"Ctl Fleet-Sheriff-HsgBkg",null,null,null,null,null,null,null,null,null,null,null,null,null,null,null,null,"164","0001",{"$f":"_xlfn.XLOOKUP(VALUE(V1050),'Budgeted Funds'!A:A,'Budgeted Funds'!D:D)","v":true}]
[{"$f":"LEFT(B1051,3)","v":"192"},1921650001,{"$f":"_xlfn.XLOOKUP(B1051,'FC Master'!Q:Q,'FC Master'!B:B)","v":"192-138LE0001"},"Ctl Fleet-Medical Examiner-LE",null,null,null,null,null,null,null,null,null,null,null,null,null,null,null,null,"165","0001",{"$f":"_xlfn.XLOOKUP(VALUE(V1051),'Budgeted Funds'!A:A,'Budgeted Funds'!D:D)","v":true}]
[{"$f":"LEFT(B1052,3)","v":"192"},1921660001,{"$f":"_xlfn.XLOOKUP(B1052,'FC Master'!Q:Q,'FC Master'!B:B)","v":"192-139Svsn0001"},"Ctl Fleet-CSCD-Svsn",null,null,null,null,null,null,null,null,null,null,null,null,null,null,null,null,"166","0001",{"$f":"_xlfn.XLOOKUP(VALUE(V1052),'Budgeted Funds'!A:A,'Budgeted Funds'!D:D)","v":true}]
[{"$f":"LEFT(B1053,3)","v":"192"},1921670001,{"$f":"_xlfn.XLOOKUP(B1053,'FC Master'!Q:Q,'FC Master'!B:B)","v":"192-140Svsn0001"},"Ctl Fleet-TCCES-Svsn",null,null,null,null,null,null,null,null,null,null,null,null,null,null,null,null,"167","0001",{"$f":"_xlfn.XLOOKUP(VALUE(V1053),'Budgeted Funds'!A:A,'Budgeted Funds'!D:D)","v":true}]
[{"$f":"LEFT(B1054,3)","v":"192"},1921680001,{"$f":"_xlfn.XLOOKUP(B1054,'FC Master'!Q:Q,'FC Master'!B:B)","v":"192-142Svsn0001"},"Ctl Fleet-Pretrial Services-Svsn",null,null,null,null,null,null,null,null,null,null,null,null,null,null,null,null,"168","0001",{"$f":"_xlfn.XLOOKUP(VALUE(V1054),'Budgeted Funds'!A:A,'Budgeted Funds'!D:D)","v":true}]
[{"$f":"LEFT(B1055,3)","v":"192"},1921690001,{"$f":"_xlfn.XLOOKUP(B1055,'FC Master'!Q:Q,'FC Master'!B:B)","v":"192-142HsgBkg0001"},"Ctl Fleet-Pretrial Services-HsgBkg",null,null,null,null,null,null,null,null,null,null,null,null,null,null,null,null,"169","0001",{"$f":"_xlfn.XLOOKUP(VALUE(V1055),'Budgeted Funds'!A:A,'Budgeted Funds'!D:D)","v":true}]
[{"$f":"LEFT(B1056,3)","v":"192"},1921700001,{"$f":"_xlfn.XLOOKUP(B1056,'FC Master'!Q:Q,'FC Master'!B:B)","v":"192-143JuvSvs0001"},"Ctl Fleet-Juvenile Public Dfdr-JuvSvs",null,null,null,null,null,null,null,null,null,null,null,null,null,null,null,null,"170","0001",{"$f":"_xlfn.XLOOKUP(VALUE(V1056),'Budgeted Funds'!A:A,'Budgeted Funds'!D:D)","v":true}]
[{"$f":"LEFT(B1057,3)","v":"192"},1921710001,{"$f":"_xlfn.XLOOKUP(B1057,'FC Master'!Q:Q,'FC Master'!B:B)","v":"192-145JuvSvs0001"},"Ctl Fleet-Juvenile Probation-JuvSvs",null,null,null,null,null,null,null,null,null,null,null,null,null,null,null,null,"171","0001",{"$f":"_xlfn.XLOOKUP(VALUE(V1057),'Budgeted Funds'!A:A,'Budgeted Funds'!D:D)","v":true}]
[{"$f":"LEFT(B1058,3)","v":"192"},1921720001,{"$f":"_xlfn.XLOOKUP(B1058,'FC Master'!Q:Q,'FC Master'!B:B)","v":"192-147Hlhcare0001"},"Ctl Fleet-Emergency Services-Hlhcare",null,null,null,null,null,null,null,null,null,null,null,null,null,null,null,null,"172","0001",{"$f":"_xlfn.XLOOKUP(VALUE(V1058),'Budgeted Funds'!A:A,'Budgeted Funds'!D:D)","v":true}]
[{"$f":"LEFT(B1059,3)","v":"192"},1921730001,{"$f":"_xlfn.XLOOKUP(B1059,'FC Master'!Q:Q,'FC Master'!B:B)","v":"192-147EmrgMgmt0001"},"Ctl Fleet-Emergency Services-EmrgMgmt",null,null,null,null,null,null,null,null,null,null,null,null,null,null,null,null,"173","0001",{"$f":"_xlfn.XLOOKUP(VALUE(V1059),'Budgeted Funds'!A:A,'Budgeted Funds'!D:D)","v":true}]
[{"$f":"LEFT(B1060,3)","v":"192"},1921740001,{"$f":"_xlfn.XLOOKUP(B1060,'FC Master'!Q:Q,'FC Master'!B:B)","v":"192-149RdBg0001"},"Ctl Fleet-TNR-RdBg",null,null,null,null,null,null,null,null,null,null,null,null,null,null,null,null,"174","0001",{"$f":"_xlfn.XLOOKUP(VALUE(V1060),'Budgeted Funds'!A:A,'Budgeted Funds'!D:D)","v":true}]
[{"$f":"LEFT(B1061,3)","v":"192"},1921750001,{"$f":"_xlfn.XLOOKUP(B1061,'FC Master'!Q:Q,'FC Master'!B:B)","v":"192-149Parks&Rec0001"},"Ctl Fleet-TNR-Parks&Rec",null,null,null,null,null,null,null,null,null,null,null,null,null,null,null,null,"175","0001",{"$f":"_xlfn.XLOOKUP(VALUE(V1061),'Budgeted Funds'!A:A,'Budgeted Funds'!D:D)","v":true}]
[{"$f":"LEFT(B1062,3)","v":"192"},1921760001,{"$f":"_xlfn.XLOOKUP(B1062,'FC Master'!Q:Q,'FC Master'!B:B)","v":"192-149ConservNR0001"},"Ctl Fleet-TNR-ConservNR",null,null,null,null,null,null,null,null,null,null,null,null,null,null,null,null,"176","0001",{"$f":"_xlfn.XLOOKUP(VALUE(V1062),'Budgeted Funds'!A:A,'Budgeted Funds'!D:D)","v":true}]
[{"$f":"LEFT(B1063,3)","v":"192"},1921770001,{"$f":"_xlfn.XLOOKUP(B1063,'FC Master'!Q:Q,'FC Master'!B:B)","v":"192-149FacMgmt0001"},"Ctl Fleet-TNR-FacMgmt",null,null,null,null,null,null,null,null,null,null,null,null,null,null,null,null,"177","0001",{"$f":"_xlfn.XLOOKUP(VALUE(V1063),'Budgeted Funds'!A:A,'Budgeted Funds'!D:D)","v":true}]
[{"$f":"LEFT(B1064,3)","v":"192"},1921780001,{"$f":"_xlfn.XLOOKUP(B1064,'FC Master'!Q:Q,'FC Master'!B:B)","v":"192-149Drng0001"},"Ctl Fleet-TNR-Drng",null,null,null,null,null,null,null,null,null,null,null,null,null,null,null,null,"178","0001",{"$f":"_xlfn.XLOOKUP(VALUE(V1064),'Budgeted Funds'!A:A,'Budgeted Funds'!D:D)","v":true}]
[{"$f":"LEFT(B1065,3)","v":"192"},1921790001,{"$f":"_xlfn.XLOOKUP(B1065,'FC Master'!Q:Q,'FC Master'!B:B)","v":"192-149Sanitation000"},"Ctl Fleet-TNR-Sanitation",null,null,null,null,null,null,null,null,null,null,null,null,null,null,null,null,"179","0001",{"$f":"_xlfn.XLOOKUP(VALUE(V1065),'Budgeted Funds'!A:A,'Budgeted Funds'!D:D)","v":true}]
[{"$f":"LEFT(B1066,3)","v":"192"},1921800001,{"$f":"_xlfn.XLOOKUP(B1066,'FC Master'!Q:Q,'FC Master'!B:B)","v":"192-149DevRegIn0001"},"Ctl Fleet-TNR-DevRegIn",null,null,null,null,null,null,null,null,null,null,null,null,null,null,null,null,"180","0001",{"$f":"_xlfn.XLOOKUP(VALUE(V1066),'Budgeted Funds'!A:A,'Budgeted Funds'!D:D)","v":true}]
[{"$f":"LEFT(B1067,3)","v":"192"},1921810001,{"$f":"_xlfn.XLOOKUP(B1067,'FC Master'!Q:Q,'FC Master'!B:B)","v":"192-149HumanSvs0001"},"Ctl Fleet-TNR-HumanSvs",null,null,null,null,null,null,null,null,null,null,null,null,null,null,null,null,"181","0001",{"$f":"_xlfn.XLOOKUP(VALUE(V1067),'Budgeted Funds'!A:A,'Budgeted Funds'!D:D)","v":true}]
[{"$f":"LEFT(B1068,3)","v":"192"},1921820001,{"$f":"_xlfn.XLOOKUP(B1068,'FC Master'!Q:Q,'FC Master'!B:B)","v":"192-154GenAdm0001"},"Ctl Fleet-Civil Service Cmn-GenAdm",null,null,null,null,null,null,null,null,null,null,null,null,null,null,null,null,"182","0001",{"$f":"_xlfn.XLOOKUP(VALUE(V1068),'Budgeted Funds'!A:A,'Budgeted Funds'!D:D)","v":true}]
[{"$f":"LEFT(B1069,3)","v":"192"},1921830001,{"$f":"_xlfn.XLOOKUP(B1069,'FC Master'!Q:Q,'FC Master'!B:B)","v":"192-155CrmJs0001"},"Ctl Fleet-CJP-CrmJs",null,null,null,null,null,null,null,null,null,null,null,null,null,null,null,null,"183","0001",{"$f":"_xlfn.XLOOKUP(VALUE(V1069),'Budgeted Funds'!A:A,'Budgeted Funds'!D:D)","v":true}]
[{"$f":"LEFT(B1070,3)","v":"192"},1921840001,{"$f":"_xlfn.XLOOKUP(B1070,'FC Master'!Q:Q,'FC Master'!B:B)","v":"192-155Hlhcare0001"},"Ctl Fleet-CJP-Hlhcare",null,null,null,null,null,null,null,null,null,null,null,null,null,null,null,null,"184","0001",{"$f":"_xlfn.XLOOKUP(VALUE(V1070),'Budgeted Funds'!A:A,'Budgeted Funds'!D:D)","v":true}]
[{"$f":"LEFT(B1071,3)","v":"192"},1921850001,{"$f":"_xlfn.XLOOKUP(B1071,'FC Master'!Q:Q,'FC Master'!B:B)","v":"192-155EmrgMgmt0001"},"Ctl Fleet-CJP-EmrgMgmt",null,null,null,null,null,null,null,null,null,null,null,null,null,null,null,null,"185","0001",{"$f":"_xlfn.XLOOKUP(VALUE(V1071),'Budgeted Funds'!A:A,'Budgeted Funds'!D:D)","v":true}]
[{"$f":"LEFT(B1072,3)","v":"192"},1921860001,{"$f":"_xlfn.XLOOKUP(B1072,'FC Master'!Q:Q,'FC Master'!B:B)","v":"192-155Svsn0001"},"Ctl Fleet-CJP-Svsn",null,null,null,null,null,null,null,null,null,null,null,null,null,null,null,null,"186","0001",{"$f":"_xlfn.XLOOKUP(VALUE(V1072),'Budgeted Funds'!A:A,'Budgeted Funds'!D:D)","v":true}]
[{"$f":"LEFT(B1073,3)","v":"192"},1921870001,{"$f":"_xlfn.XLOOKUP(B1073,'FC Master'!Q:Q,'FC Master'!B:B)","v":"192-155JuvSvs0001"},"Ctl Fleet-CJP-JuvSvs",null,null,null,null,null,null,null,null,null,null,null,null,null,null,null,null,"187","0001",{"$f":"_xlfn.XLOOKUP(VALUE(V1073),'Budgeted Funds'!A:A,'Budgeted Funds'!D:D)","v":true}]
[{"$f":"LEFT(B1074,3)","v":"192"},1921880001,{"$f":"_xlfn.XLOOKUP(B1074,'FC Master'!Q:Q,'FC Master'!B:B)","v":"192-155LE0001"},"Ctl Fleet-CJP-LE",null,null,null,null,null,null,null,null,null,null,null,null,null,null,null,null,"188","0001",{"$f":"_xlfn.XLOOKUP(VALUE(V1074),'Budgeted Funds'!A:A,'Budgeted Funds'!D:D)","v":true}]
[{"$f":"LEFT(B1075,3)","v":"192"},1921890001,{"$f":"_xlfn.XLOOKUP(B1075,'FC Master'!Q:Q,'FC Master'!B:B)","v":"192-157GenAdm0001"},"Ctl Fleet-CRS-GenAdm",null,null,null,null,null,null,null,null,null,null,null,null,null,null,null,null,"189","0001",{"$f":"_xlfn.XLOOKUP(VALUE(V1075),'Budgeted Funds'!A:A,'Budgeted Funds'!D:D)","v":true}]
[{"$f":"LEFT(B1076,3)","v":"192"},1921900001,{"$f":"_xlfn.XLOOKUP(B1076,'FC Master'!Q:Q,'FC Master'!B:B)","v":"192-157CivJs0001"},"Ctl Fleet-CRS-CivJs",null,null,null,null,null,null,null,null,null,null,null,null,null,null,null,null,"190","0001",{"$f":"_xlfn.XLOOKUP(VALUE(V1076),'Budgeted Funds'!A:A,'Budgeted Funds'!D:D)","v":true}]
[{"$f":"LEFT(B1077,3)","v":"192"},1921910001,{"$f":"_xlfn.XLOOKUP(B1077,'FC Master'!Q:Q,'FC Master'!B:B)","v":"192-157CrmJs0001"},"Ctl Fleet-CRS-CrmJs",null,null,null,null,null,null,null,null,null,null,null,null,null,null,null,null,"191","0001",{"$f":"_xlfn.XLOOKUP(VALUE(V1077),'Budgeted Funds'!A:A,'Budgeted Funds'!D:D)","v":true}]
[{"$f":"LEFT(B1078,3)","v":"192"},1921920001,{"$f":"_xlfn.XLOOKUP(B1078,'FC Master'!Q:Q,'FC Master'!B:B)","v":"192-158Hlhcare0001"},"Ctl Fleet-HHS-Hlhcare",null,null,null,null,null,null,null,null,null,null,null,null,null,null,null,null,"192","0001",{"$f":"_xlfn.XLOOKUP(VALUE(V1078),'Budgeted Funds'!A:A,'Budgeted Funds'!D:D)","v":true}]
[{"$f":"LEFT(B1079,3)","v":"192"},1921930001,{"$f":"_xlfn.XLOOKUP(B1079,'FC Master'!Q:Q,'FC Master'!B:B)","v":"192-158PbcHlh0001"},"Ctl Fleet-HHS-PbcHlh",null,null,null,null,null,null,null,null,null,null,null,null,null,null,null,null,"193","0001",{"$f":"_xlfn.XLOOKUP(VALUE(V1079),'Budgeted Funds'!A:A,'Budgeted Funds'!D:D)","v":true}]
[{"$f":"LEFT(B1080,3)","v":"192"},1921940001,{"$f":"_xlfn.XLOOKUP(B1080,'FC Master'!Q:Q,'FC Master'!B:B)","v":"192-158HumanSvs0001"},"Ctl Fleet-HHS-HumanSvs",null,null,null,null,null,null,null,null,null,null,null,null,null,null,null,null,"194","0001",{"$f":"_xlfn.XLOOKUP(VALUE(V1080),'Budgeted Funds'!A:A,'Budgeted Funds'!D:D)","v":true}]
[{"$f":"LEFT(B1081,3)","v":"192"},1921950001,{"$f":"_xlfn.XLOOKUP(B1081,'FC Master'!Q:Q,'FC Master'!B:B)","v":"192-158JuvSvs0001"},"Ctl Fleet-HHS-JuvSvs",null,null,null,null,null,null,null,null,null,null,null,null,null,null,null,null,"195","0001",{"$f":"_xlfn.XLOOKUP(VALUE(V1081),'Budgeted Funds'!A:A,'Budgeted Funds'!D:D)","v":true}]
[{"$f":"LEFT(B1082,3)","v":"192"},1921960001,{"$f":"_xlfn.XLOOKUP(B1082,'FC Master'!Q:Q,'FC Master'!B:B)","v":"192-159Hlhcare0001"},"Ctl Fleet-EMS-Hlhcare",null,null,null,null,null,null,null,null,null,null,null,null,null,null,null,null,"196","0001",{"$f":"_xlfn.XLOOKUP(VALUE(V1082),'Budgeted Funds'!A:A,'Budgeted Funds'!D:D)","v":true}]
[{"$f":"LEFT(B1083,3)","v":"192"},1921970001,{"$f":"_xlfn.XLOOKUP(B1083,'FC Master'!Q:Q,'FC Master'!B:B)","v":"192-193CivJs0001"},"Ctl Fleet-Legally Mtd Fees-CivJs",null,null,null,null,null,null,null,null,null,null,null,null,null,null,null,null,"197","0001",{"$f":"_xlfn.XLOOKUP(VALUE(V1083),'Budgeted Funds'!A:A,'Budgeted Funds'!D:D)","v":true}]
[{"$f":"LEFT(B1084,3)","v":"192"},1921980001,{"$f":"_xlfn.XLOOKUP(B1084,'FC Master'!Q:Q,'FC Master'!B:B)","v":"192-194CrmJs0001"},"Ctl Fleet-Legally Mtd Fees-CrmJs",null,null,null,null,null,null,null,null,null,null,null,null,null,null,null,null,"198","0001",{"$f":"_xlfn.XLOOKUP(VALUE(V1084),'Budgeted Funds'!A:A,'Budgeted Funds'!D:D)","v":true}]
[{"$f":"LEFT(B1085,3)","v":"192"},1921990001,{"$f":"_xlfn.XLOOKUP(B1085,'FC Master'!Q:Q,'FC Master'!B:B)","v":"192-149Parks&Rec0001"},"Ctl Fleet-TNR-Parks&Rec",null,null,null,null,null,null,null,null,null,null,null,null,null,null,null,null,"199","0001",{"$f":"_xlfn.XLOOKUP(VALUE(V1085),'Budgeted Funds'!A:A,'Budgeted Funds'!D:D)","v":true}]
[{"$f":"LEFT(B1086,3)","v":"192"},1922000001,{"$f":"_xlfn.XLOOKUP(B1086,'FC Master'!Q:Q,'FC Master'!B:B)","v":"192-114FacMgmt0001"},"Ctl Fleet-Facilities Mgmt-FacMgmt",null,null,null,null,null,null,null,null,null,null,null,null,null,null,null,null,"200","0001",{"$f":"_xlfn.XLOOKUP(VALUE(V1086),'Budgeted Funds'!A:A,'Budgeted Funds'!D:D)","v":true}]
[{"$f":"LEFT(B1087,3)","v":"192"},1928000001,{"$f":"_xlfn.XLOOKUP(B1087,'FC Master'!Q:Q,'FC Master'!B:B)","v":"192CAR-RdBg0001"},"Ctl Fleet CAR-RdBg GF",null,null,null,null,null,null,null,null,null,null,null,null,null,null,null,null,"800","0001",{"$f":"_xlfn.XLOOKUP(VALUE(V1087),'Budgeted Funds'!A:A,'Budgeted Funds'!D:D)","v":true}]
[{"$f":"LEFT(B1088,3)","v":"192"},1928010001,{"$f":"_xlfn.XLOOKUP(B1088,'FC Master'!Q:Q,'FC Master'!B:B)","v":"192CAR-GenAdm0001"},"Ctl Fleet CAR-GenAdm GF",null,null,null,null,null,null,null,null,null,null,null,null,null,null,null,null,"801","0001",{"$f":"_xlfn.XLOOKUP(VALUE(V1088),'Budgeted Funds'!A:A,'Budgeted Funds'!D:D)","v":true}]
[{"$f":"LEFT(B1089,3)","v":"192"},1928030001,{"$f":"_xlfn.XLOOKUP(B1089,'FC Master'!Q:Q,'FC Master'!B:B)","v":"192CAR-FacMgmt0001"},"Ctl Fleet CAR-FacMgmt GF",null,null,null,null,null,null,null,null,null,null,null,null,null,null,null,null,"803","0001",{"$f":"_xlfn.XLOOKUP(VALUE(V1089),'Budgeted Funds'!A:A,'Budgeted Funds'!D:D)","v":true}]
[{"$f":"LEFT(B1090,3)","v":"192"},1928050001,{"$f":"_xlfn.XLOOKUP(B1090,'FC Master'!Q:Q,'FC Master'!B:B)","v":"192CAR-CrmJs0001"},"Ctl Fleet CAR-CrmJs GF",null,null,null,null,null,null,null,null,null,null,null,null,null,null,null,null,"805","0001",{"$f":"_xlfn.XLOOKUP(VALUE(V1090),'Budgeted Funds'!A:A,'Budgeted Funds'!D:D)","v":true}]
[{"$f":"LEFT(B1091,3)","v":"192"},1928070001,{"$f":"_xlfn.XLOOKUP(B1091,'FC Master'!Q:Q,'FC Master'!B:B)","v":"192CAR-JsSysJuvS0001"},"Ctl Fleet CAR-JsSys Juvenile Services GF",null,null,null,null,null,null,null,null,null,null,null,null,null,null,null,null,"807","0001",{"$f":"_xlfn.XLOOKUP(VALUE(V1091),'Budgeted Funds'!A:A,'Budgeted Funds'!D:D)","v":true}]
[{"$f":"LEFT(B1092,3)","v":"192"},1928080001,{"$f":"_xlfn.XLOOKUP(B1092,'FC Master'!Q:Q,'FC Master'!B:B)","v":"192CAR-LE0001"},"Ctl Fleet CAR-LE GF",null,null,null,null,null,null,null,null,null,null,null,null,null,null,null,null,{"$f":"MID(B1092,4,3)","v":"808"},{"$f":"MID(B1092,7,4)","v":"0001"},{"$f":"_xlfn.XLOOKUP(VALUE(V1092),'Budgeted Funds'!A:A,'Budgeted Funds'!D:D)","v":true}]
[{"$f":"LEFT(B1093,3)","v":"192"},1928100001,{"$f":"_xlfn.XLOOKUP(B1093,'FC Master'!Q:Q,'FC Master'!B:B)","v":"192CAR-HsgBkg0001"},"Ctl Fleet CAR-HsgBkg GF",null,null,null,null,null,null,null,null,null,null,null,null,null,null,null,null,"810","0001",{"$f":"_xlfn.XLOOKUP(VALUE(V1093),'Budgeted Funds'!A:A,'Budgeted Funds'!D:D)","v":true}]
[{"$f":"LEFT(B1094,3)","v":"192"},1928110001,{"$f":"_xlfn.XLOOKUP(B1094,'FC Master'!Q:Q,'FC Master'!B:B)","v":"192CAR-CrcRehabS0001"},"Ctl Fleet CAR-CrcRehab Supervision GF",null,null,null,null,null,null,null,null,null,null,null,null,null,null,null,null,"811","0001",{"$f":"_xlfn.XLOOKUP(VALUE(V1094),'Budgeted Funds'!A:A,'Budgeted Funds'!D:D)","v":true}]
[{"$f":"LEFT(B1095,3)","v":"192"},1928150001,{"$f":"_xlfn.XLOOKUP(B1095,'FC Master'!Q:Q,'FC Master'!B:B)","v":"192CAR-HHSHumSvc0001"},"Ctl Fleet CAR-HHS Human Services GF",null,null,null,null,null,null,null,null,null,null,null,null,null,null,null,null,"815","0001",{"$f":"_xlfn.XLOOKUP(VALUE(V1095),'Budgeted Funds'!A:A,'Budgeted Funds'!D:D)","v":true}]
[{"$f":"LEFT(B1096,3)","v":"192"},1928200001,{"$f":"_xlfn.XLOOKUP(B1096,'FC Master'!Q:Q,'FC Master'!B:B)","v":"192CAR-Pk/Rec0001"},"Ctl Fleet CAR-Pk/Recreation GF",null,null,null,null,null,null,null,null,null,null,null,null,null,null,null,null,"820","0001",{"$f":"_xlfn.XLOOKUP(VALUE(V1096),'Budgeted Funds'!A:A,'Budgeted Funds'!D:D)","v":true}]
[{"$f":"LEFT(B1097,3)","v":"193"},1930010001,{"$f":"_xlfn.XLOOKUP(B1097,'FC Master'!Q:Q,'FC Master'!B:B)","v":"122CCCoLMF0001"},"Civil Courts-Co-LMF-GF",null,null,null,null,null,null,null,null,null,null,null,null,null,null,null,null,"001","0001",{"$f":"_xlfn.XLOOKUP(VALUE(V1097),'Budgeted Funds'!A:A,'Budgeted Funds'!D:D)","v":true}]
[{"$f":"LEFT(B1098,3)","v":"193"},1930040001,{"$f":"_xlfn.XLOOKUP(B1098,'FC Master'!Q:Q,'FC Master'!B:B)","v":"122CCAppLMF0001"},"Civil Courts-App-LMF-GF",null,null,null,null,null,null,null,null,null,null,null,null,null,null,null,null,"004","0001",{"$f":"_xlfn.XLOOKUP(VALUE(V1098),'Budgeted Funds'!A:A,'Budgeted Funds'!D:D)","v":true}]
[{"$f":"LEFT(B1099,3)","v":"193"},1930060001,{"$f":"_xlfn.XLOOKUP(B1099,'FC Master'!Q:Q,'FC Master'!B:B)","v":"193CCAppLMF0001"},"Civil Courts-District-LMF-GF",null,null,null,null,null,null,null,null,null,null,null,null,null,null,null,null,"006","0001",{"$f":"_xlfn.XLOOKUP(VALUE(V1099),'Budgeted Funds'!A:A,'Budgeted Funds'!D:D)","v":true}]
[{"$f":"LEFT(B1100,3)","v":"194"},1940010001,{"$f":"_xlfn.XLOOKUP(B1100,'FC Master'!Q:Q,'FC Master'!B:B)","v":"124CCDCtLMF0001"},"Criminal Courts County LMF-GF",null,null,null,null,null,null,null,null,null,null,null,null,null,null,null,null,"001","0001",{"$f":"_xlfn.XLOOKUP(VALUE(V1100),'Budgeted Funds'!A:A,'Budgeted Funds'!D:D)","v":true}]
[{"$f":"LEFT(B1101,3)","v":"194"},1941010001,{"$f":"_xlfn.XLOOKUP(B1101,'FC Master'!Q:Q,'FC Master'!B:B)","v":"194CCDCtLMF0001"},"Criminal Courts District LMF-GF",null,null,null,null,null,null,null,null,null,null,null,null,null,null,null,null,"101","0001",{"$f":"_xlfn.XLOOKUP(VALUE(V1101),'Budgeted Funds'!A:A,'Budgeted Funds'!D:D)","v":true}]
[{"$f":"LEFT(B1102,3)","v":"195"},1950010001,{"$f":"_xlfn.XLOOKUP(B1102,'FC Master'!Q:Q,'FC Master'!B:B)","v":"195CenEmrgResp0001"},"Centralized Emergency Response GF",null,null,null,null,null,null,null,null,null,null,null,null,null,null,null,null,"001","0001",{"$f":"_xlfn.XLOOKUP(VALUE(V1102),'Budgeted Funds'!A:A,'Budgeted Funds'!D:D)","v":true}]
[{"$f":"LEFT(B1103,3)","v":"890"},8908000001,{"$f":"_xlfn.XLOOKUP(B1103,'FC Master'!Q:Q,'FC Master'!B:B)","v":"890CAR-GenAdm0001"},"Ctl Computers CAR-GenAdm GF",null,null,null,null,null,null,null,null,null,null,null,null,null,null,null,null,"800","0001",{"$f":"_xlfn.XLOOKUP(VALUE(V1103),'Budgeted Funds'!A:A,'Budgeted Funds'!D:D)","v":true}]
[{"$f":"LEFT(B1104,3)","v":"890"},8908010001,{"$f":"_xlfn.XLOOKUP(B1104,'FC Master'!Q:Q,'FC Master'!B:B)","v":"890CAR-FinAdm0001"},"Ctl Computers CAR-FinAdm GF",null,null,null,null,null,null,null,null,null,null,null,null,null,null,null,null,"801","0001",{"$f":"_xlfn.XLOOKUP(VALUE(V1104),'Budgeted Funds'!A:A,'Budgeted Funds'!D:D)","v":true}]
[{"$f":"LEFT(B1105,3)","v":"890"},8908020001,{"$f":"_xlfn.XLOOKUP(B1105,'FC Master'!Q:Q,'FC Master'!B:B)","v":"890CAR-TaxAdm0001"},"Ctl Computers CAR-TaxAdm GF",null,null,null,null,null,null,null,null,null,null,null,null,null,null,null,null,"802","0001",{"$f":"_xlfn.XLOOKUP(VALUE(V1105),'Budgeted Funds'!A:A,'Budgeted Funds'!D:D)","v":true}]
[{"$f":"LEFT(B1106,3)","v":"890"},8908030001,{"$f":"_xlfn.XLOOKUP(B1106,'FC Master'!Q:Q,'FC Master'!B:B)","v":"890CAR-FacMgmt0001"},"Ctl Computers CAR-FacMgmt GF",null,null,null,null,null,null,null,null,null,null,null,null,null,null,null,null,"803","0001",{"$f":"_xlfn.XLOOKUP(VALUE(V1106),'Budgeted Funds'!A:A,'Budgeted Funds'!D:D)","v":true}]
[{"$f":"LEFT(B1107,3)","v":"890"},8908040001,{"$f":"_xlfn.XLOOKUP(B1107,'FC Master'!Q:Q,'FC Master'!B:B)","v":"890CAR-ElnAdm0001"},"Ctl Computers CAR-ElnAdm GF",null,null,null,null,null,null,null,null,null,null,null,null,null,null,null,null,"804","0001",{"$f":"_xlfn.XLOOKUP(VALUE(V1107),'Budgeted Funds'!A:A,'Budgeted Funds'!D:D)","v":true}]
[{"$f":"LEFT(B1108,3)","v":"890"},8908050001,{"$f":"_xlfn.XLOOKUP(B1108,'FC Master'!Q:Q,'FC Master'!B:B)","v":"890CAR-CrmJs0001"},"Ctl Computers CAR-CrmJs GF",null,null,null,null,null,null,null,null,null,null,null,null,null,null,null,null,"805","0001",{"$f":"_xlfn.XLOOKUP(VALUE(V1108),'Budgeted Funds'!A:A,'Budgeted Funds'!D:D)","v":true}]
[{"$f":"LEFT(B1109,3)","v":"890"},8908060001,{"$f":"_xlfn.XLOOKUP(B1109,'FC Master'!Q:Q,'FC Master'!B:B)","v":"890CAR-CivJs0001"},"Ctl Computers CAR-CivJs GF",null,null,null,null,null,null,null,null,null,null,null,null,null,null,null,null,"806","0001",{"$f":"_xlfn.XLOOKUP(VALUE(V1109),'Budgeted Funds'!A:A,'Budgeted Funds'!D:D)","v":true}]
[{"$f":"LEFT(B1110,3)","v":"890"},8908070001,{"$f":"_xlfn.XLOOKUP(B1110,'FC Master'!Q:Q,'FC Master'!B:B)","v":"890CAR-JuvSvs0001"},"Ctl Computers CAR-JuvSvs GF",null,null,null,null,null,null,null,null,null,null,null,null,null,null,null,null,"807","0001",{"$f":"_xlfn.XLOOKUP(VALUE(V1110),'Budgeted Funds'!A:A,'Budgeted Funds'!D:D)","v":true}]
[{"$f":"LEFT(B1111,3)","v":"890"},8908080001,{"$f":"_xlfn.XLOOKUP(B1111,'FC Master'!Q:Q,'FC Master'!B:B)","v":"890CAR-LE0001"},"Ctl Computers CAR-LE GF",null,null,null,null,null,null,null,null,null,null,null,null,null,null,null,null,"808","0001",{"$f":"_xlfn.XLOOKUP(VALUE(V1111),'Budgeted Funds'!A:A,'Budgeted Funds'!D:D)","v":true}]
[{"$f":"LEFT(B1112,3)","v":"890"},8908090001,{"$f":"_xlfn.XLOOKUP(B1112,'FC Master'!Q:Q,'FC Master'!B:B)","v":"890CAR-EmrgMgmt0001"},"Ctl Computers CAR-EmrgMgmt GF",null,null,null,null,null,null,null,null,null,null,null,null,null,null,null,null,"809","0001",{"$f":"_xlfn.XLOOKUP(VALUE(V1112),'Budgeted Funds'!A:A,'Budgeted Funds'!D:D)","v":true}]
[{"$f":"LEFT(B1113,3)","v":"890"},8908100001,{"$f":"_xlfn.XLOOKUP(B1113,'FC Master'!Q:Q,'FC Master'!B:B)","v":"890CAR-HsgBkg0001"},"Ctl Computers CAR-HsgBkg GF",null,null,null,null,null,null,null,null,null,null,null,null,null,null,null,null,"810","0001",{"$f":"_xlfn.XLOOKUP(VALUE(V1113),'Budgeted Funds'!A:A,'Budgeted Funds'!D:D)","v":true}]
[{"$f":"LEFT(B1114,3)","v":"890"},8908110001,{"$f":"_xlfn.XLOOKUP(B1114,'FC Master'!Q:Q,'FC Master'!B:B)","v":"890CAR-Svsn0001"},"Ctl Computers CAR-Svsn GF",null,null,null,null,null,null,null,null,null,null,null,null,null,null,null,null,"811","0001",{"$f":"_xlfn.XLOOKUP(VALUE(V1114),'Budgeted Funds'!A:A,'Budgeted Funds'!D:D)","v":true}]
[{"$f":"LEFT(B1115,3)","v":"890"},8908120001,{"$f":"_xlfn.XLOOKUP(B1115,'FC Master'!Q:Q,'FC Master'!B:B)","v":"890CAR-DevRegln0001"},"Ctl Computers CAR-DevRegIn GF",null,null,null,null,null,null,null,null,null,null,null,null,null,null,null,null,"812","0001",{"$f":"_xlfn.XLOOKUP(VALUE(V1115),'Budgeted Funds'!A:A,'Budgeted Funds'!D:D)","v":true}]
[{"$f":"LEFT(B1116,3)","v":"890"},8908130001,{"$f":"_xlfn.XLOOKUP(B1116,'FC Master'!Q:Q,'FC Master'!B:B)","v":"890CAR-Hlhcare0001"},"Ctl Computers CAR-Hlhcare GF",null,null,null,null,null,null,null,null,null,null,null,null,null,null,null,null,"813","0001",{"$f":"_xlfn.XLOOKUP(VALUE(V1116),'Budgeted Funds'!A:A,'Budgeted Funds'!D:D)","v":true}]
[{"$f":"LEFT(B1117,3)","v":"890"},8908140001,{"$f":"_xlfn.XLOOKUP(B1117,'FC Master'!Q:Q,'FC Master'!B:B)","v":"890CAR-PbcHlh0001"},"Ctl Computers CAR-PbcHlh GF",null,null,null,null,null,null,null,null,null,null,null,null,null,null,null,null,"814","0001",{"$f":"_xlfn.XLOOKUP(VALUE(V1117),'Budgeted Funds'!A:A,'Budgeted Funds'!D:D)","v":true}]
[{"$f":"LEFT(B1118,3)","v":"890"},8908150001,{"$f":"_xlfn.XLOOKUP(B1118,'FC Master'!Q:Q,'FC Master'!B:B)","v":"890CAR-HumanSvs0001"},"Ctl Computers CAR-HumanSvs GF",null,null,null,null,null,null,null,null,null,null,null,null,null,null,null,null,"815","0001",{"$f":"_xlfn.XLOOKUP(VALUE(V1118),'Budgeted Funds'!A:A,'Budgeted Funds'!D:D)","v":true}]
[{"$f":"LEFT(B1119,3)","v":"890"},8908160001,{"$f":"_xlfn.XLOOKUP(B1119,'FC Master'!Q:Q,'FC Master'!B:B)","v":"890CAR-EconDev0001"},"Ctl Computers CAR-EconDev GF",null,null,null,null,null,null,null,null,null,null,null,null,null,null,null,null,"816","0001",{"$f":"_xlfn.XLOOKUP(VALUE(V1119),'Budgeted Funds'!A:A,'Budgeted Funds'!D:D)","v":true}]
[{"$f":"LEFT(B1120,3)","v":"890"},8908170001,{"$f":"_xlfn.XLOOKUP(B1120,'FC Master'!Q:Q,'FC Master'!B:B)","v":"890CAR-Drainage0001"},"Ctl Computers CAR-Drainage GF",null,null,null,null,null,null,null,null,null,null,null,null,null,null,null,null,"817","0001",{"$f":"_xlfn.XLOOKUP(VALUE(V1120),'Budgeted Funds'!A:A,'Budgeted Funds'!D:D)","v":true}]
[{"$f":"LEFT(B1121,3)","v":"890"},8908180001,{"$f":"_xlfn.XLOOKUP(B1121,'FC Master'!Q:Q,'FC Master'!B:B)","v":"890CAR-ConserNR0001"},"Ctl Computers CAR-Conser & Natural Rsrc",null,null,null,null,null,null,null,null,null,null,null,null,null,null,null,null,"818","0001",{"$f":"_xlfn.XLOOKUP(VALUE(V1121),'Budgeted Funds'!A:A,'Budgeted Funds'!D:D)","v":true}]
[{"$f":"LEFT(B1122,3)","v":"890"},8908190001,{"$f":"_xlfn.XLOOKUP(B1122,'FC Master'!Q:Q,'FC Master'!B:B)","v":"890CAR-Sanitation000"},"Ctl Computers CAR-Sanitation GF",null,null,null,null,null,null,null,null,null,null,null,null,null,null,null,null,"819","0001",{"$f":"_xlfn.XLOOKUP(VALUE(V1122),'Budgeted Funds'!A:A,'Budgeted Funds'!D:D)","v":true}]
[{"$f":"LEFT(B1123,3)","v":"890"},8908200001,{"$f":"_xlfn.XLOOKUP(B1123,'FC Master'!Q:Q,'FC Master'!B:B)","v":"890CAR-ParksRec0001"},"Ctl Computers CAR-ParksRec GF",null,null,null,null,null,null,null,null,null,null,null,null,null,null,null,null,"820","0001",{"$f":"_xlfn.XLOOKUP(VALUE(V1123),'Budgeted Funds'!A:A,'Budgeted Funds'!D:D)","v":true}]
[{"$f":"LEFT(B1124,3)","v":"890"},8908230001,{"$f":"_xlfn.XLOOKUP(B1124,'FC Master'!Q:Q,'FC Master'!B:B)","v":"890CAR-DevReg0001"},"Ctl Computers CAR-DevReg GF",null,null,null,null,null,null,null,null,null,null,null,null,null,null,null,null,"823","0001",{"$f":"_xlfn.XLOOKUP(VALUE(V1124),'Budgeted Funds'!A:A,'Budgeted Funds'!D:D)","v":true}]
[{"$f":"LEFT(B1125,3)","v":"892"},8928000001,{"$f":"_xlfn.XLOOKUP(B1125,'FC Master'!Q:Q,'FC Master'!B:B)","v":"892CAR-GenAdm0001"},"Ctl Fleet CAR-GenAdm GF",null,null,null,null,null,null,null,null,null,null,null,null,null,null,null,null,"800","0001",{"$f":"_xlfn.XLOOKUP(VALUE(V1125),'Budgeted Funds'!A:A,'Budgeted Funds'!D:D)","v":true}]
[{"$f":"LEFT(B1126,3)","v":"892"},8928030001,{"$f":"_xlfn.XLOOKUP(B1126,'FC Master'!Q:Q,'FC Master'!B:B)","v":"892CAR-FacMgmt0001"},"Ctl Fleet CAR-FacMgmt GF",null,null,null,null,null,null,null,null,null,null,null,null,null,null,null,null,"803","0001",{"$f":"_xlfn.XLOOKUP(VALUE(V1126),'Budgeted Funds'!A:A,'Budgeted Funds'!D:D)","v":true}]
[{"$f":"LEFT(B1127,3)","v":"892"},8928050001,{"$f":"_xlfn.XLOOKUP(B1127,'FC Master'!Q:Q,'FC Master'!B:B)","v":"892CAR-CrmJs0001"},"Ctl Fleet CAR-CrmJs GF",null,null,null,null,null,null,null,null,null,null,null,null,null,null,null,null,"805","0001",{"$f":"_xlfn.XLOOKUP(VALUE(V1127),'Budgeted Funds'!A:A,'Budgeted Funds'!D:D)","v":true}]
[{"$f":"LEFT(B1128,3)","v":"892"},8928080001,{"$f":"_xlfn.XLOOKUP(B1128,'FC Master'!Q:Q,'FC Master'!B:B)","v":"892CAR-LE0001"},"Ctl Fleet CAR-LE GF",null,null,null,null,null,null,null,null,null,null,null,null,null,null,null,null,"808","0001",{"$f":"_xlfn.XLOOKUP(VALUE(V1128),'Budgeted Funds'!A:A,'Budgeted Funds'!D:D)","v":true}]
[{"$f":"LEFT(B1129,3)","v":"892"},8928100001,{"$f":"_xlfn.XLOOKUP(B1129,'FC Master'!Q:Q,'FC Master'!B:B)","v":"892CAR-HsgBkg0001"},"Ctl Fleet CAR-HsgBkg GF",null,null,null,null,null,null,null,null,null,null,null,null,null,null,null,null,"810","0001",{"$f":"_xlfn.XLOOKUP(VALUE(V1129),'Budgeted Funds'!A:A,'Budgeted Funds'!D:D)","v":true}]
[{"$f":"LEFT(B1130,3)","v":"892"},8928200001,{"$f":"_xlfn.XLOOKUP(B1130,'FC Master'!Q:Q,'FC Master'!B:B)","v":"892CAR-ParksRec0001"},"Ctl Fleet CAR-ParksRec GF",null,null,null,null,null,null,null,null,null,null,null,null,null,null,null,null,"820","0001",{"$f":"_xlfn.XLOOKUP(VALUE(V1130),'Budgeted Funds'!A:A,'Budgeted Funds'!D:D)","v":true}]
[{"$f":"LEFT(B1131,3)","v":"892"},8928210001,{"$f":"_xlfn.XLOOKUP(B1131,'FC Master'!Q:Q,'FC Master'!B:B)","v":"892CAR-RdBg0001"},"Ctl Fleet CAR-RdBg GF",null,null,null,null,null,null,null,null,null,null,null,null,null,null,null,null,"821","0001",{"$f":"_xlfn.XLOOKUP(VALUE(V1131),'Budgeted Funds'!A:A,'Budgeted Funds'!D:D)","v":true}]
[null,null,null,null,null,null,null,null,null,null,null,null,null,null,null,null,null,null,null,null,"","",{"$f":"_xlfn.XLOOKUP(VALUE(V1132),'Budgeted Funds'!A:A,'Budgeted Funds'!D:D)","v":{"$error":"#VALUE!"}}]
[null,null,null,null,null,null,null,null,null,null,null,null,null,null,null,null,null,null,null,null,"","",{"$f":"_xlfn.XLOOKUP(VALUE(V1133),'Budgeted Funds'!A:A,'Budgeted Funds'!D:D)","v":{"$error":"#VALUE!"}}]
[null,null,null,null,null,null,null,null,null,null,null,null,null,null,null,null,null,null,null,null,"","",{"$f":"_xlfn.XLOOKUP(VALUE(V1134),'Budgeted Funds'!A:A,'Budgeted Funds'!D:D)","v":{"$error":"#VALUE!"}}]
[null,null,null,null,null,null,null,null,null,null,null,null,null,null,null,null,null,null,null,null,"","",{"$f":"_xlfn.XLOOKUP(VALUE(V1135),'Budgeted Funds'!A:A,'Budgeted Funds'!D:D)","v":{"$error":"#VALUE!"}}]
[null,null,null,null,null,null,null,null,null,null,null,null,null,null,null,null,null,null,null,null,"","",{"$f":"_xlfn.XLOOKUP(VALUE(V1136),'Budgeted Funds'!A:A,'Budgeted Funds'!D:D)","v":{"$error":"#VALUE!"}}]
[null,null,null,null,null,null,null,null,null,null,null,null,null,null,null,null,null,null,null,null,"","",{"$f":"_xlfn.XLOOKUP(VALUE(V1137),'Budgeted Funds'!A:A,'Budgeted Funds'!D:D)","v":{"$error":"#VALUE!"}}]
[null,null,null,null,null,null,null,null,null,null,null,null,null,null,null,null,null,null,null,null,"","",{"$f":"_xlfn.XLOOKUP(VALUE(V1138),'Budgeted Funds'!A:A,'Budgeted Funds'!D:D)","v":{"$error":"#VALUE!"}}]
[null,null,null,null,null,null,null,null,null,null,null,null,null,null,null,null,null,null,null,null,"","",{"$f":"_xlfn.XLOOKUP(VALUE(V1139),'Budgeted Funds'!A:A,'Budgeted Funds'!D:D)","v":{"$error":"#VALUE!"}}]
[null,null,null,null,null,null,null,null,null,null,null,null,null,null,null,null,null,null,null,null,"","",{"$f":"_xlfn.XLOOKUP(VALUE(V1140),'Budgeted Funds'!A:A,'Budgeted Funds'!D:D)","v":{"$error":"#VALUE!"}}]
[null,null,null,null,null,null,null,null,null,null,null,null,null,null,null,null,null,null,null,null,"","",{"$f":"_xlfn.XLOOKUP(VALUE(V1141),'Budgeted Funds'!A:A,'Budgeted Funds'!D:D)","v":{"$error":"#VALUE!"}}]
[null,null,null,null,null,null,null,null,null,null,null,null,null,null,null,null,null,null,null,null,"","",{"$f":"_xlfn.XLOOKUP(VALUE(V1142),'Budgeted Funds'!A:A,'Budgeted Funds'!D:D)","v":{"$error":"#VALUE!"}}]
[null,null,null,null,null,null,null,null,null,null,null,null,null,null,null,null,null,null,null,null,"","",{"$f":"_xlfn.XLOOKUP(VALUE(V1143),'Budgeted Funds'!A:A,'Budgeted Funds'!D:D)","v":{"$error":"#VALUE!"}}]
[null,null,null,null,null,null,null,null,null,null,null,null,null,null,null,null,null,null,null,null,"","",{"$f":"_xlfn.XLOOKUP(VALUE(V1144),'Budgeted Funds'!A:A,'Budgeted Funds'!D:D)","v":{"$error":"#VALUE!"}}]
[null,null,null,null,null,null,null,null,null,null,null,null,null,null,null,null,null,null,null,null,"","",{"$f":"_xlfn.XLOOKUP(VALUE(V1145),'Budgeted Funds'!A:A,'Budgeted Funds'!D:D)","v":{"$error":"#VALUE!"}}]
[null,null,null,null,null,null,null,null,null,null,null,null,null,null,null,null,null,null,null,null,"","",{"$f":"_xlfn.XLOOKUP(VALUE(V1146),'Budgeted Funds'!A:A,'Budgeted Funds'!D:D)","v":{"$error":"#VALUE!"}}]
[null,null,null,null,null,null,null,null,null,null,null,null,null,null,null,null,null,null,null,null,"","",{"$f":"_xlfn.XLOOKUP(VALUE(V1147),'Budgeted Funds'!A:A,'Budgeted Funds'!D:D)","v":{"$error":"#VALUE!"}}]
[null,null,null,null,null,null,null,null,null,null,null,null,null,null,null,null,null,null,null,null,"","",{"$f":"_xlfn.XLOOKUP(VALUE(V1148),'Budgeted Funds'!A:A,'Budgeted Funds'!D:D)","v":{"$error":"#VALUE!"}}]
[null,null,null,null,null,null,null,null,null,null,null,null,null,null,null,null,null,null,null,null,"","",{"$f":"_xlfn.XLOOKUP(VALUE(V1149),'Budgeted Funds'!A:A,'Budgeted Funds'!D:D)","v":{"$error":"#VALUE!"}}]
[null,null,null,null,null,null,null,null,null,null,null,null,null,null,null,null,null,null,null,null,"","",{"$f":"_xlfn.XLOOKUP(VALUE(V1150),'Budgeted Funds'!A:A,'Budgeted Funds'!D:D)","v":{"$error":"#VALUE!"}}]
[null,null,null,null,null,null,null,null,null,null,null,null,null,null,null,null,null,null,null,null,"","",{"$f":"_xlfn.XLOOKUP(VALUE(V1151),'Budgeted Funds'!A:A,'Budgeted Funds'!D:D)","v":{"$error":"#VALUE!"}}]
[null,null,null,null,null,null,null,null,null,null,null,null,null,null,null,null,null,null,null,null,"","",{"$f":"_xlfn.XLOOKUP(VALUE(V1152),'Budgeted Funds'!A:A,'Budgeted Funds'!D:D)","v":{"$error":"#VALUE!"}}]
[null,null,null,null,null,null,null,null,null,null,null,null,null,null,null,null,null,null,null,null,"","",{"$f":"_xlfn.XLOOKUP(VALUE(V1153),'Budgeted Funds'!A:A,'Budgeted Funds'!D:D)","v":{"$error":"#VALUE!"}}]
[null,null,null,null,null,null,null,null,null,null,null,null,null,null,null,null,null,null,null,null,"","",{"$f":"_xlfn.XLOOKUP(VALUE(V1154),'Budgeted Funds'!A:A,'Budgeted Funds'!D:D)","v":{"$error":"#VALUE!"}}]
[null,null,null,null,null,null,null,null,null,null,null,null,null,null,null,null,null,null,null,null,"","",{"$f":"_xlfn.XLOOKUP(VALUE(V1155),'Budgeted Funds'!A:A,'Budgeted Funds'!D:D)","v":{"$error":"#VALUE!"}}]
[null,null,null,null,null,null,null,null,null,null,null,null,null,null,null,null,null,null,null,null,{"$f":"MID(B1156,4,3)","v":""},{"$f":"MID(B1156,7,4)","v":""},{"$f":"_xlfn.XLOOKUP(VALUE(V1156),'Budgeted Funds'!A:A,'Budgeted Funds'!D:D)","v":{"$error":"#VALUE!"}}]
[null,null,null,null,null,null,null,null,null,null,null,null,null,null,null,null,null,null,null,null,"","",{"$f":"_xlfn.XLOOKUP(VALUE(V1157),'Budgeted Funds'!A:A,'Budgeted Funds'!D:D)","v":{"$error":"#VALUE!"}}]
[null,null,null,null,null,null,null,null,null,null,null,null,null,null,null,null,null,null,null,null,"","",{"$f":"_xlfn.XLOOKUP(VALUE(V1158),'Budgeted Funds'!A:A,'Budgeted Funds'!D:D)","v":{"$error":"#VALUE!"}}]
[null,null,null,null,null,null,null,null,null,null,null,null,null,null,null,null,null,null,null,null,"","",{"$f":"_xlfn.XLOOKUP(VALUE(V1159),'Budgeted Funds'!A:A,'Budgeted Funds'!D:D)","v":{"$error":"#VALUE!"}}]
[null,null,null,null,null,null,null,null,null,null,null,null,null,null,null,null,null,null,null,null,"","",{"$f":"_xlfn.XLOOKUP(VALUE(V1160),'Budgeted Funds'!A:A,'Budgeted Funds'!D:D)","v":{"$error":"#VALUE!"}}]
[null,null,null,null,null,null,null,null,null,null,null,null,null,null,null,null,null,null,null,null,"","",{"$f":"_xlfn.XLOOKUP(VALUE(V1161),'Budgeted Funds'!A:A,'Budgeted Funds'!D:D)","v":{"$error":"#VALUE!"}}]
[null,null,null,null,null,null,null,null,null,null,null,null,null,null,null,null,null,null,null,null,"","",{"$f":"_xlfn.XLOOKUP(VALUE(V1162),'Budgeted Funds'!A:A,'Budgeted Funds'!D:D)","v":{"$error":"#VALUE!"}}]
[null,null,null,null,null,null,null,null,null,null,null,null,null,null,null,null,null,null,null,null,"","",{"$f":"_xlfn.XLOOKUP(VALUE(V1163),'Budgeted Funds'!A:A,'Budgeted Funds'!D:D)","v":{"$error":"#VALUE!"}}]
[null,null,null,null,null,null,null,null,null,null,null,null,null,null,null,null,null,null,null,null,"","",{"$f":"_xlfn.XLOOKUP(VALUE(V1164),'Budgeted Funds'!A:A,'Budgeted Funds'!D:D)","v":{"$error":"#VALUE!"}}]
[null,null,null,null,null,null,null,null,null,null,null,null,null,null,null,null,null,null,null,null,"","",{"$f":"_xlfn.XLOOKUP(VALUE(V1165),'Budgeted Funds'!A:A,'Budgeted Funds'!D:D)","v":{"$error":"#VALUE!"}}]
[null,null,null,null,null,null,null,null,null,null,null,null,null,null,null,null,null,null,null,null,"","",{"$f":"_xlfn.XLOOKUP(VALUE(V1166),'Budgeted Funds'!A:A,'Budgeted Funds'!D:D)","v":{"$error":"#VALUE!"}}]
[null,null,null,null,null,null,null,null,null,null,null,null,null,null,null,null,null,null,null,null,"","",{"$f":"_xlfn.XLOOKUP(VALUE(V1167),'Budgeted Funds'!A:A,'Budgeted Funds'!D:D)","v":{"$error":"#VALUE!"}}]
[null,null,null,null,null,null,null,null,null,null,null,null,null,null,null,null,null,null,null,null,"","",{"$f":"_xlfn.XLOOKUP(VALUE(V1168),'Budgeted Funds'!A:A,'Budgeted Funds'!D:D)","v":{"$error":"#VALUE!"}}]
[null,null,null,null,null,null,null,null,null,null,null,null,null,null,null,null,null,null,null,null,"","",{"$f":"_xlfn.XLOOKUP(VALUE(V1169),'Budgeted Funds'!A:A,'Budgeted Funds'!D:D)","v":{"$error":"#VALUE!"}}]
[null,null,null,null,null,null,null,null,null,null,null,null,null,null,null,null,null,null,null,null,"","",{"$f":"_xlfn.XLOOKUP(VALUE(V1170),'Budgeted Funds'!A:A,'Budgeted Funds'!D:D)","v":{"$error":"#VALUE!"}}]
[null,null,null,null,null,null,null,null,null,null,null,null,null,null,null,null,null,null,null,null,"","",{"$f":"_xlfn.XLOOKUP(VALUE(V1171),'Budgeted Funds'!A:A,'Budgeted Funds'!D:D)","v":{"$error":"#VALUE!"}}]
[null,null,null,null,null,null,null,null,null,null,null,null,null,null,null,null,null,null,null,null,"","",{"$f":"_xlfn.XLOOKUP(VALUE(V1172),'Budgeted Funds'!A:A,'Budgeted Funds'!D:D)","v":{"$error":"#VALUE!"}}]
[null,null,null,null,null,null,null,null,null,null,null,null,null,null,null,null,null,null,null,null,"","",{"$f":"_xlfn.XLOOKUP(VALUE(V1173),'Budgeted Funds'!A:A,'Budgeted Funds'!D:D)","v":{"$error":"#VALUE!"}}]
[null,null,null,null,null,null,null,null,null,null,null,null,null,null,null,null,null,null,null,null,"","",{"$f":"_xlfn.XLOOKUP(VALUE(V1174),'Budgeted Funds'!A:A,'Budgeted Funds'!D:D)","v":{"$error":"#VALUE!"}}]
[null,null,null,null,null,null,null,null,null,null,null,null,null,null,null,null,null,null,null,null,"","",{"$f":"_xlfn.XLOOKUP(VALUE(V1175),'Budgeted Funds'!A:A,'Budgeted Funds'!D:D)","v":{"$error":"#VALUE!"}}]
[null,null,null,null,null,null,null,null,null,null,null,null,null,null,null,null,null,null,null,null,"","",{"$f":"_xlfn.XLOOKUP(VALUE(V1176),'Budgeted Funds'!A:A,'Budgeted Funds'!D:D)","v":{"$error":"#VALUE!"}}]
[null,null,null,null,null,null,null,null,null,null,null,null,null,null,null,null,null,null,null,null,"","",{"$f":"_xlfn.XLOOKUP(VALUE(V1177),'Budgeted Funds'!A:A,'Budgeted Funds'!D:D)","v":{"$error":"#VALUE!"}}]
[null,null,null,null,null,null,null,null,null,null,null,null,null,null,null,null,null,null,null,null,"","",{"$f":"_xlfn.XLOOKUP(VALUE(V1178),'Budgeted Funds'!A:A,'Budgeted Funds'!D:D)","v":{"$error":"#VALUE!"}}]
[null,null,null,null,null,null,null,null,null,null,null,null,null,null,null,null,null,null,null,null,"","",{"$f":"_xlfn.XLOOKUP(VALUE(V1179),'Budgeted Funds'!A:A,'Budgeted Funds'!D:D)","v":{"$error":"#VALUE!"}}]
[null,null,null,null,null,null,null,null,null,null,null,null,null,null,null,null,null,null,null,null,"","",{"$f":"_xlfn.XLOOKUP(VALUE(V1180),'Budgeted Funds'!A:A,'Budgeted Funds'!D:D)","v":{"$error":"#VALUE!"}}]
[null,null,null,null,null,null,null,null,null,null,null,null,null,null,null,null,null,null,null,null,"","",{"$f":"_xlfn.XLOOKUP(VALUE(V1181),'Budgeted Funds'!A:A,'Budgeted Funds'!D:D)","v":{"$error":"#VALUE!"}}]
[null,null,null,null,null,null,null,null,null,null,null,null,null,null,null,null,null,null,null,null,"","",{"$f":"_xlfn.XLOOKUP(VALUE(V1182),'Budgeted Funds'!A:A,'Budgeted Funds'!D:D)","v":{"$error":"#VALUE!"}}]
[null,null,null,null,null,null,null,null,null,null,null,null,null,null,null,null,null,null,null,null,"","",{"$f":"_xlfn.XLOOKUP(VALUE(V1183),'Budgeted Funds'!A:A,'Budgeted Funds'!D:D)","v":{"$error":"#VALUE!"}}]
[null,null,null,null,null,null,null,null,null,null,null,null,null,null,null,null,null,null,null,null,"","",{"$f":"_xlfn.XLOOKUP(VALUE(V1184),'Budgeted Funds'!A:A,'Budgeted Funds'!D:D)","v":{"$error":"#VALUE!"}}]
[null,null,null,null,null,null,null,null,null,null,null,null,null,null,null,null,null,null,null,null,"","",{"$f":"_xlfn.XLOOKUP(VALUE(V1185),'Budgeted Funds'!A:A,'Budgeted Funds'!D:D)","v":{"$error":"#VALUE!"}}]
[null,null,null,null,null,null,null,null,null,null,null,null,null,null,null,null,null,null,null,null,"","",{"$f":"_xlfn.XLOOKUP(VALUE(V1186),'Budgeted Funds'!A:A,'Budgeted Funds'!D:D)","v":{"$error":"#VALUE!"}}]
[null,null,null,null,null,null,null,null,null,null,null,null,null,null,null,null,null,null,null,null,"","",{"$f":"_xlfn.XLOOKUP(VALUE(V1187),'Budgeted Funds'!A:A,'Budgeted Funds'!D:D)","v":{"$error":"#VALUE!"}}]
[null,null,null,null,null,null,null,null,null,null,null,null,null,null,null,null,null,null,null,null,"","",{"$f":"_xlfn.XLOOKUP(VALUE(V1188),'Budgeted Funds'!A:A,'Budgeted Funds'!D:D)","v":{"$error":"#VALUE!"}}]
[null,null,null,null,null,null,null,null,null,null,null,null,null,null,null,null,null,null,null,null,"","",{"$f":"_xlfn.XLOOKUP(VALUE(V1189),'Budgeted Funds'!A:A,'Budgeted Funds'!D:D)","v":{"$error":"#VALUE!"}}]
[null,null,null,null,null,null,null,null,null,null,null,null,null,null,null,null,null,null,null,null,"","",{"$f":"_xlfn.XLOOKUP(VALUE(V1190),'Budgeted Funds'!A:A,'Budgeted Funds'!D:D)","v":{"$error":"#VALUE!"}}]
[null,null,null,null,null,null,null,null,null,null,null,null,null,null,null,null,null,null,null,null,"","",{"$f":"_xlfn.XLOOKUP(VALUE(V1191),'Budgeted Funds'!A:A,'Budgeted Funds'!D:D)","v":{"$error":"#VALUE!"}}]
[null,null,null,null,null,null,null,null,null,null,null,null,null,null,null,null,null,null,null,null,"","",{"$f":"_xlfn.XLOOKUP(VALUE(V1192),'Budgeted Funds'!A:A,'Budgeted Funds'!D:D)","v":{"$error":"#VALUE!"}}]
[null,null,null,null,null,null,null,null,null,null,null,null,null,null,null,null,null,null,null,null,"","",{"$f":"_xlfn.XLOOKUP(VALUE(V1193),'Budgeted Funds'!A:A,'Budgeted Funds'!D:D)","v":{"$error":"#VALUE!"}}]
[null,null,null,null,null,null,null,null,null,null,null,null,null,null,null,null,null,null,null,null,"","",{"$f":"_xlfn.XLOOKUP(VALUE(V1194),'Budgeted Funds'!A:A,'Budgeted Funds'!D:D)","v":{"$error":"#VALUE!"}}]
[null,null,null,null,null,null,null,null,null,null,null,null,null,null,null,null,null,null,null,null,"","",{"$f":"_xlfn.XLOOKUP(VALUE(V1195),'Budgeted Funds'!A:A,'Budgeted Funds'!D:D)","v":{"$error":"#VALUE!"}}]
[null,null,null,null,null,null,null,null,null,null,null,null,null,null,null,null,null,null,null,null,"","",{"$f":"_xlfn.XLOOKUP(VALUE(V1196),'Budgeted Funds'!A:A,'Budgeted Funds'!D:D)","v":{"$error":"#VALUE!"}}]
[null,null,null,null,null,null,null,null,null,null,null,null,null,null,null,null,null,null,null,null,"","",{"$f":"_xlfn.XLOOKUP(VALUE(V1197),'Budgeted Funds'!A:A,'Budgeted Funds'!D:D)","v":{"$error":"#VALUE!"}}]
[null,null,null,null,null,null,null,null,null,null,null,null,null,null,null,null,null,null,null,null,"","",{"$f":"_xlfn.XLOOKUP(VALUE(V1198),'Budgeted Funds'!A:A,'Budgeted Funds'!D:D)","v":{"$error":"#VALUE!"}}]
[null,null,null,null,null,null,null,null,null,null,null,null,null,null,null,null,null,null,null,null,"","",{"$f":"_xlfn.XLOOKUP(VALUE(V1199),'Budgeted Funds'!A:A,'Budgeted Funds'!D:D)","v":{"$error":"#VALUE!"}}]
[null,null,null,null,null,null,null,null,null,null,null,null,null,null,null,null,null,null,null,null,"","",{"$f":"_xlfn.XLOOKUP(VALUE(V1200),'Budgeted Funds'!A:A,'Budgeted Funds'!D:D)","v":{"$error":"#VALUE!"}}]
[null,null,null,null,null,null,null,null,null,null,null,null,null,null,null,null,null,null,null,null,"","",{"$f":"_xlfn.XLOOKUP(VALUE(V1201),'Budgeted Funds'!A:A,'Budgeted Funds'!D:D)","v":{"$error":"#VALUE!"}}]
[null,null,null,null,null,null,null,null,null,null,null,null,null,null,null,null,null,null,null,null,"","",{"$f":"_xlfn.XLOOKUP(VALUE(V1202),'Budgeted Funds'!A:A,'Budgeted Funds'!D:D)","v":{"$error":"#VALUE!"}}]
[null,null,null,null,null,null,null,null,null,null,null,null,null,null,null,null,null,null,null,null,"","",{"$f":"_xlfn.XLOOKUP(VALUE(V1203),'Budgeted Funds'!A:A,'Budgeted Funds'!D:D)","v":{"$error":"#VALUE!"}}]
[null,null,null,null,null,null,null,null,null,null,null,null,null,null,null,null,null,null,null,null,"","",{"$f":"_xlfn.XLOOKUP(VALUE(V1204),'Budgeted Funds'!A:A,'Budgeted Funds'!D:D)","v":{"$error":"#VALUE!"}}]
[null,null,null,null,null,null,null,null,null,null,null,null,null,null,null,null,null,null,null,null,"","",{"$f":"_xlfn.XLOOKUP(VALUE(V1205),'Budgeted Funds'!A:A,'Budgeted Funds'!D:D)","v":{"$error":"#VALUE!"}}]
[null,null,null,null,null,null,null,null,null,null,null,null,null,null,null,null,null,null,null,null,"","",{"$f":"_xlfn.XLOOKUP(VALUE(V1206),'Budgeted Funds'!A:A,'Budgeted Funds'!D:D)","v":{"$error":"#VALUE!"}}]
[null,null,null,null,null,null,null,null,null,null,null,null,null,null,null,null,null,null,null,null,"","",{"$f":"_xlfn.XLOOKUP(VALUE(V1207),'Budgeted Funds'!A:A,'Budgeted Funds'!D:D)","v":{"$error":"#VALUE!"}}]
[null,null,null,null,null,null,null,null,null,null,null,null,null,null,null,null,null,null,null,null,"","",{"$f":"_xlfn.XLOOKUP(VALUE(V1208),'Budgeted Funds'!A:A,'Budgeted Funds'!D:D)","v":{"$error":"#VALUE!"}}]
[null,null,null,null,null,null,null,null,null,null,null,null,null,null,null,null,null,null,null,null,"","",{"$f":"_xlfn.XLOOKUP(VALUE(V1209),'Budgeted Funds'!A:A,'Budgeted Funds'!D:D)","v":{"$error":"#VALUE!"}}]
[null,null,null,null,null,null,null,null,null,null,null,null,null,null,null,null,null,null,null,null,"","",{"$f":"_xlfn.XLOOKUP(VALUE(V1210),'Budgeted Funds'!A:A,'Budgeted Funds'!D:D)","v":{"$error":"#VALUE!"}}]
[null,null,null,null,null,null,null,null,null,null,null,null,null,null,null,null,null,null,null,null,"","",{"$f":"_xlfn.XLOOKUP(VALUE(V1211),'Budgeted Funds'!A:A,'Budgeted Funds'!D:D)","v":{"$error":"#VALUE!"}}]
[null,null,null,null,null,null,null,null,null,null,null,null,null,null,null,null,null,null,null,null,"","",{"$f":"_xlfn.XLOOKUP(VALUE(V1212),'Budgeted Funds'!A:A,'Budgeted Funds'!D:D)","v":{"$error":"#VALUE!"}}]
[null,null,null,null,null,null,null,null,null,null,null,null,null,null,null,null,null,null,null,null,"","",{"$f":"_xlfn.XLOOKUP(VALUE(V1213),'Budgeted Funds'!A:A,'Budgeted Funds'!D:D)","v":{"$error":"#VALUE!"}}]
[null,null,null,null,null,null,null,null,null,null,null,null,null,null,null,null,null,null,null,null,"","",{"$f":"_xlfn.XLOOKUP(VALUE(V1214),'Budgeted Funds'!A:A,'Budgeted Funds'!D:D)","v":{"$error":"#VALUE!"}}]
[null,null,null,null,null,null,null,null,null,null,null,null,null,null,null,null,null,null,null,null,"","",{"$f":"_xlfn.XLOOKUP(VALUE(V1215),'Budgeted Funds'!A:A,'Budgeted Funds'!D:D)","v":{"$error":"#VALUE!"}}]
[null,null,null,null,null,null,null,null,null,null,null,null,null,null,null,null,null,null,null,null,"","",{"$f":"_xlfn.XLOOKUP(VALUE(V1216),'Budgeted Funds'!A:A,'Budgeted Funds'!D:D)","v":{"$error":"#VALUE!"}}]
[null,null,null,null,null,null,null,null,null,null,null,null,null,null,null,null,null,null,null,null,"","",{"$f":"_xlfn.XLOOKUP(VALUE(V1217),'Budgeted Funds'!A:A,'Budgeted Funds'!D:D)","v":{"$error":"#VALUE!"}}]
[null,null,null,null,null,null,null,null,null,null,null,null,null,null,null,null,null,null,null,null,"","",{"$f":"_xlfn.XLOOKUP(VALUE(V1218),'Budgeted Funds'!A:A,'Budgeted Funds'!D:D)","v":{"$error":"#VALUE!"}}]
[null,null,null,null,null,null,null,null,null,null,null,null,null,null,null,null,null,null,null,null,"","",{"$f":"_xlfn.XLOOKUP(VALUE(V1219),'Budgeted Funds'!A:A,'Budgeted Funds'!D:D)","v":{"$error":"#VALUE!"}}]
[null,null,null,null,null,null,null,null,null,null,null,null,null,null,null,null,null,null,null,null,{"$f":"MID(B1220,4,3)","v":""},{"$f":"MID(B1220,7,4)","v":""},{"$f":"_xlfn.XLOOKUP(VALUE(V1220),'Budgeted Funds'!A:A,'Budgeted Funds'!D:D)","v":{"$error":"#VALUE!"}}]
[null,null,null,null,null,null,null,null,null,null,null,null,null,null,null,null,null,null,null,null,"","",{"$f":"_xlfn.XLOOKUP(VALUE(V1221),'Budgeted Funds'!A:A,'Budgeted Funds'!D:D)","v":{"$error":"#VALUE!"}}]
[null,null,null,null,null,null,null,null,null,null,null,null,null,null,null,null,null,null,null,null,"","",{"$f":"_xlfn.XLOOKUP(VALUE(V1222),'Budgeted Funds'!A:A,'Budgeted Funds'!D:D)","v":{"$error":"#VALUE!"}}]
[null,null,null,null,null,null,null,null,null,null,null,null,null,null,null,null,null,null,null,null,"","",{"$f":"_xlfn.XLOOKUP(VALUE(V1223),'Budgeted Funds'!A:A,'Budgeted Funds'!D:D)","v":{"$error":"#VALUE!"}}]
[null,null,null,null,null,null,null,null,null,null,null,null,null,null,null,null,null,null,null,null,"","",{"$f":"_xlfn.XLOOKUP(VALUE(V1224),'Budgeted Funds'!A:A,'Budgeted Funds'!D:D)","v":{"$error":"#VALUE!"}}]
[null,null,null,null,null,null,null,null,null,null,null,null,null,null,null,null,null,null,null,null,"","",{"$f":"_xlfn.XLOOKUP(VALUE(V1225),'Budgeted Funds'!A:A,'Budgeted Funds'!D:D)","v":{"$error":"#VALUE!"}}]
[null,null,null,null,null,null,null,null,null,null,null,null,null,null,null,null,null,null,null,null,"","",{"$f":"_xlfn.XLOOKUP(VALUE(V1226),'Budgeted Funds'!A:A,'Budgeted Funds'!D:D)","v":{"$error":"#VALUE!"}}]
[null,null,null,null,null,null,null,null,null,null,null,null,null,null,null,null,null,null,null,null,"","",{"$f":"_xlfn.XLOOKUP(VALUE(V1227),'Budgeted Funds'!A:A,'Budgeted Funds'!D:D)","v":{"$error":"#VALUE!"}}]
[null,null,null,null,null,null,null,null,null,null,null,null,null,null,null,null,null,null,null,null,"","",{"$f":"_xlfn.XLOOKUP(VALUE(V1228),'Budgeted Funds'!A:A,'Budgeted Funds'!D:D)","v":{"$error":"#VALUE!"}}]
[null,null,null,null,null,null,null,null,null,null,null,null,null,null,null,null,null,null,null,null,"","",{"$f":"_xlfn.XLOOKUP(VALUE(V1229),'Budgeted Funds'!A:A,'Budgeted Funds'!D:D)","v":{"$error":"#VALUE!"}}]
[null,null,null,null,null,null,null,null,null,null,null,null,null,null,null,null,null,null,null,null,"","",{"$f":"_xlfn.XLOOKUP(VALUE(V1230),'Budgeted Funds'!A:A,'Budgeted Funds'!D:D)","v":{"$error":"#VALUE!"}}]
[null,null,null,null,null,null,null,null,null,null,null,null,null,null,null,null,null,null,null,null,"","",{"$f":"_xlfn.XLOOKUP(VALUE(V1231),'Budgeted Funds'!A:A,'Budgeted Funds'!D:D)","v":{"$error":"#VALUE!"}}]
[null,null,null,null,null,null,null,null,null,null,null,null,null,null,null,null,null,null,null,null,"","",{"$f":"_xlfn.XLOOKUP(VALUE(V1232),'Budgeted Funds'!A:A,'Budgeted Funds'!D:D)","v":{"$error":"#VALUE!"}}]
[null,null,null,null,null,null,null,null,null,null,null,null,null,null,null,null,null,null,null,null,"","",{"$f":"_xlfn.XLOOKUP(VALUE(V1233),'Budgeted Funds'!A:A,'Budgeted Funds'!D:D)","v":{"$error":"#VALUE!"}}]
[null,null,null,null,null,null,null,null,null,null,null,null,null,null,null,null,null,null,null,null,"","",{"$f":"_xlfn.XLOOKUP(VALUE(V1234),'Budgeted Funds'!A:A,'Budgeted Funds'!D:D)","v":{"$error":"#VALUE!"}}]
[null,null,null,null,null,null,null,null,null,null,null,null,null,null,null,null,null,null,null,null,"","",{"$f":"_xlfn.XLOOKUP(VALUE(V1235),'Budgeted Funds'!A:A,'Budgeted Funds'!D:D)","v":{"$error":"#VALUE!"}}]
[null,null,null,null,null,null,null,null,null,null,null,null,null,null,null,null,null,null,null,null,"","",{"$f":"_xlfn.XLOOKUP(VALUE(V1236),'Budgeted Funds'!A:A,'Budgeted Funds'!D:D)","v":{"$error":"#VALUE!"}}]
[null,null,null,null,null,null,null,null,null,null,null,null,null,null,null,null,null,null,null,null,"","",{"$f":"_xlfn.XLOOKUP(VALUE(V1237),'Budgeted Funds'!A:A,'Budgeted Funds'!D:D)","v":{"$error":"#VALUE!"}}]
[null,null,null,null,null,null,null,null,null,null,null,null,null,null,null,null,null,null,null,null,"","",{"$f":"_xlfn.XLOOKUP(VALUE(V1238),'Budgeted Funds'!A:A,'Budgeted Funds'!D:D)","v":{"$error":"#VALUE!"}}]
[null,null,null,null,null,null,null,null,null,null,null,null,null,null,null,null,null,null,null,null,"","",{"$f":"_xlfn.XLOOKUP(VALUE(V1239),'Budgeted Funds'!A:A,'Budgeted Funds'!D:D)","v":{"$error":"#VALUE!"}}]
[null,null,null,null,null,null,null,null,null,null,null,null,null,null,null,null,null,null,null,null,"","",{"$f":"_xlfn.XLOOKUP(VALUE(V1240),'Budgeted Funds'!A:A,'Budgeted Funds'!D:D)","v":{"$error":"#VALUE!"}}]
[null,null,null,null,null,null,null,null,null,null,null,null,null,null,null,null,null,null,null,null,"","",{"$f":"_xlfn.XLOOKUP(VALUE(V1241),'Budgeted Funds'!A:A,'Budgeted Funds'!D:D)","v":{"$error":"#VALUE!"}}]
[null,null,null,null,null,null,null,null,null,null,null,null,null,null,null,null,null,null,null,null,"","",{"$f":"_xlfn.XLOOKUP(VALUE(V1242),'Budgeted Funds'!A:A,'Budgeted Funds'!D:D)","v":{"$error":"#VALUE!"}}]
[null,null,null,null,null,null,null,null,null,null,null,null,null,null,null,null,null,null,null,null,"","",{"$f":"_xlfn.XLOOKUP(VALUE(V1243),'Budgeted Funds'!A:A,'Budgeted Funds'!D:D)","v":{"$error":"#VALUE!"}}]
[null,null,null,null,null,null,null,null,null,null,null,null,null,null,null,null,null,null,null,null,"","",{"$f":"_xlfn.XLOOKUP(VALUE(V1244),'Budgeted Funds'!A:A,'Budgeted Funds'!D:D)","v":{"$error":"#VALUE!"}}]
[null,null,null,null,null,null,null,null,null,null,null,null,null,null,null,null,null,null,null,null,"","",{"$f":"_xlfn.XLOOKUP(VALUE(V1245),'Budgeted Funds'!A:A,'Budgeted Funds'!D:D)","v":{"$error":"#VALUE!"}}]
[null,null,null,null,null,null,null,null,null,null,null,null,null,null,null,null,null,null,null,null,"","",{"$f":"_xlfn.XLOOKUP(VALUE(V1246),'Budgeted Funds'!A:A,'Budgeted Funds'!D:D)","v":{"$error":"#VALUE!"}}]
[null,null,null,null,null,null,null,null,null,null,null,null,null,null,null,null,null,null,null,null,"","",{"$f":"_xlfn.XLOOKUP(VALUE(V1247),'Budgeted Funds'!A:A,'Budgeted Funds'!D:D)","v":{"$error":"#VALUE!"}}]
[null,null,null,null,null,null,null,null,null,null,null,null,null,null,null,null,null,null,null,null,"","",{"$f":"_xlfn.XLOOKUP(VALUE(V1248),'Budgeted Funds'!A:A,'Budgeted Funds'!D:D)","v":{"$error":"#VALUE!"}}]
[null,null,null,null,null,null,null,null,null,null,null,null,null,null,null,null,null,null,null,null,"","",{"$f":"_xlfn.XLOOKUP(VALUE(V1249),'Budgeted Funds'!A:A,'Budgeted Funds'!D:D)","v":{"$error":"#VALUE!"}}]
[null,null,null,null,null,null,null,null,null,null,null,null,null,null,null,null,null,null,null,null,"","",{"$f":"_xlfn.XLOOKUP(VALUE(V1250),'Budgeted Funds'!A:A,'Budgeted Funds'!D:D)","v":{"$error":"#VALUE!"}}]
[null,null,null,null,null,null,null,null,null,null,null,null,null,null,null,null,null,null,null,null,"","",{"$f":"_xlfn.XLOOKUP(VALUE(V1251),'Budgeted Funds'!A:A,'Budgeted Funds'!D:D)","v":{"$error":"#VALUE!"}}]
[null,null,null,null,null,null,null,null,null,null,null,null,null,null,null,null,null,null,null,null,"","",{"$f":"_xlfn.XLOOKUP(VALUE(V1252),'Budgeted Funds'!A:A,'Budgeted Funds'!D:D)","v":{"$error":"#VALUE!"}}]
[null,null,null,null,null,null,null,null,null,null,null,null,null,null,null,null,null,null,null,null,"","",{"$f":"_xlfn.XLOOKUP(VALUE(V1253),'Budgeted Funds'!A:A,'Budgeted Funds'!D:D)","v":{"$error":"#VALUE!"}}]
[null,null,null,null,null,null,null,null,null,null,null,null,null,null,null,null,null,null,null,null,"","",{"$f":"_xlfn.XLOOKUP(VALUE(V1254),'Budgeted Funds'!A:A,'Budgeted Funds'!D:D)","v":{"$error":"#VALUE!"}}]
[null,null,null,null,null,null,null,null,null,null,null,null,null,null,null,null,null,null,null,null,"","",{"$f":"_xlfn.XLOOKUP(VALUE(V1255),'Budgeted Funds'!A:A,'Budgeted Funds'!D:D)","v":{"$error":"#VALUE!"}}]
[null,null,null,null,null,null,null,null,null,null,null,null,null,null,null,null,null,null,null,null,"","",{"$f":"_xlfn.XLOOKUP(VALUE(V1256),'Budgeted Funds'!A:A,'Budgeted Funds'!D:D)","v":{"$error":"#VALUE!"}}]
[null,null,null,null,null,null,null,null,null,null,null,null,null,null,null,null,null,null,null,null,"","",{"$f":"_xlfn.XLOOKUP(VALUE(V1257),'Budgeted Funds'!A:A,'Budgeted Funds'!D:D)","v":{"$error":"#VALUE!"}}]
[null,null,null,null,null,null,null,null,null,null,null,null,null,null,null,null,null,null,null,null,"","",{"$f":"_xlfn.XLOOKUP(VALUE(V1258),'Budgeted Funds'!A:A,'Budgeted Funds'!D:D)","v":{"$error":"#VALUE!"}}]
[null,null,null,null,null,null,null,null,null,null,null,null,null,null,null,null,null,null,null,null,"","",{"$f":"_xlfn.XLOOKUP(VALUE(V1259),'Budgeted Funds'!A:A,'Budgeted Funds'!D:D)","v":{"$error":"#VALUE!"}}]
[null,null,null,null,null,null,null,null,null,null,null,null,null,null,null,null,null,null,null,null,"","",{"$f":"_xlfn.XLOOKUP(VALUE(V1260),'Budgeted Funds'!A:A,'Budgeted Funds'!D:D)","v":{"$error":"#VALUE!"}}]
[null,null,null,null,null,null,null,null,null,null,null,null,null,null,null,null,null,null,null,null,"","",{"$f":"_xlfn.XLOOKUP(VALUE(V1261),'Budgeted Funds'!A:A,'Budgeted Funds'!D:D)","v":{"$error":"#VALUE!"}}]
[null,null,null,null,null,null,null,null,null,null,null,null,null,null,null,null,null,null,null,null,"","",{"$f":"_xlfn.XLOOKUP(VALUE(V1262),'Budgeted Funds'!A:A,'Budgeted Funds'!D:D)","v":{"$error":"#VALUE!"}}]
[null,null,null,null,null,null,null,null,null,null,null,null,null,null,null,null,null,null,null,null,"","",{"$f":"_xlfn.XLOOKUP(VALUE(V1263),'Budgeted Funds'!A:A,'Budgeted Funds'!D:D)","v":{"$error":"#VALUE!"}}]
[null,null,null,null,null,null,null,null,null,null,null,null,null,null,null,null,null,null,null,null,"","",{"$f":"_xlfn.XLOOKUP(VALUE(V1264),'Budgeted Funds'!A:A,'Budgeted Funds'!D:D)","v":{"$error":"#VALUE!"}}]
[null,null,null,null,null,null,null,null,null,null,null,null,null,null,null,null,null,null,null,null,"","",{"$f":"_xlfn.XLOOKUP(VALUE(V1265),'Budgeted Funds'!A:A,'Budgeted Funds'!D:D)","v":{"$error":"#VALUE!"}}]
[null,null,null,null,null,null,null,null,null,null,null,null,null,null,null,null,null,null,null,null,"","",{"$f":"_xlfn.XLOOKUP(VALUE(V1266),'Budgeted Funds'!A:A,'Budgeted Funds'!D:D)","v":{"$error":"#VALUE!"}}]
[null,null,null,null,null,null,null,null,null,null,null,null,null,null,null,null,null,null,null,null,"","",{"$f":"_xlfn.XLOOKUP(VALUE(V1267),'Budgeted Funds'!A:A,'Budgeted Funds'!D:D)","v":{"$error":"#VALUE!"}}]
[null,null,null,null,null,null,null,null,null,null,null,null,null,null,null,null,null,null,null,null,"","",{"$f":"_xlfn.XLOOKUP(VALUE(V1268),'Budgeted Funds'!A:A,'Budgeted Funds'!D:D)","v":{"$error":"#VALUE!"}}]
[null,null,null,null,null,null,null,null,null,null,null,null,null,null,null,null,null,null,null,null,"","",{"$f":"_xlfn.XLOOKUP(VALUE(V1269),'Budgeted Funds'!A:A,'Budgeted Funds'!D:D)","v":{"$error":"#VALUE!"}}]
[null,null,null,null,null,null,null,null,null,null,null,null,null,null,null,null,null,null,null,null,"","",{"$f":"_xlfn.XLOOKUP(VALUE(V1270),'Budgeted Funds'!A:A,'Budgeted Funds'!D:D)","v":{"$error":"#VALUE!"}}]
[null,null,null,null,null,null,null,null,null,null,null,null,null,null,null,null,null,null,null,null,"","",{"$f":"_xlfn.XLOOKUP(VALUE(V1271),'Budgeted Funds'!A:A,'Budgeted Funds'!D:D)","v":{"$error":"#VALUE!"}}]
[null,null,null,null,null,null,null,null,null,null,null,null,null,null,null,null,null,null,null,null,"","",{"$f":"_xlfn.XLOOKUP(VALUE(V1272),'Budgeted Funds'!A:A,'Budgeted Funds'!D:D)","v":{"$error":"#VALUE!"}}]
[null,null,null,null,null,null,null,null,null,null,null,null,null,null,null,null,null,null,null,null,"","",{"$f":"_xlfn.XLOOKUP(VALUE(V1273),'Budgeted Funds'!A:A,'Budgeted Funds'!D:D)","v":{"$error":"#VALUE!"}}]
[null,null,null,null,null,null,null,null,null,null,null,null,null,null,null,null,null,null,null,null,"","",{"$f":"_xlfn.XLOOKUP(VALUE(V1274),'Budgeted Funds'!A:A,'Budgeted Funds'!D:D)","v":{"$error":"#VALUE!"}}]
[null,null,null,null,null,null,null,null,null,null,null,null,null,null,null,null,null,null,null,null,"","",{"$f":"_xlfn.XLOOKUP(VALUE(V1275),'Budgeted Funds'!A:A,'Budgeted Funds'!D:D)","v":{"$error":"#VALUE!"}}]
[null,null,null,null,null,null,null,null,null,null,null,null,null,null,null,null,null,null,null,null,"","",{"$f":"_xlfn.XLOOKUP(VALUE(V1276),'Budgeted Funds'!A:A,'Budgeted Funds'!D:D)","v":{"$error":"#VALUE!"}}]
[null,null,null,null,null,null,null,null,null,null,null,null,null,null,null,null,null,null,null,null,"","",{"$f":"_xlfn.XLOOKUP(VALUE(V1277),'Budgeted Funds'!A:A,'Budgeted Funds'!D:D)","v":{"$error":"#VALUE!"}}]
[null,null,null,null,null,null,null,null,null,null,null,null,null,null,null,null,null,null,null,null,"","",{"$f":"_xlfn.XLOOKUP(VALUE(V1278),'Budgeted Funds'!A:A,'Budgeted Funds'!D:D)","v":{"$error":"#VALUE!"}}]
[null,null,null,null,null,null,null,null,null,null,null,null,null,null,null,null,null,null,null,null,"","",{"$f":"_xlfn.XLOOKUP(VALUE(V1279),'Budgeted Funds'!A:A,'Budgeted Funds'!D:D)","v":{"$error":"#VALUE!"}}]
[null,null,null,null,null,null,null,null,null,null,null,null,null,null,null,null,null,null,null,null,"","",{"$f":"_xlfn.XLOOKUP(VALUE(V1280),'Budgeted Funds'!A:A,'Budgeted Funds'!D:D)","v":{"$error":"#VALUE!"}}]
[null,null,null,null,null,null,null,null,null,null,null,null,null,null,null,null,null,null,null,null,"","",{"$f":"_xlfn.XLOOKUP(VALUE(V1281),'Budgeted Funds'!A:A,'Budgeted Funds'!D:D)","v":{"$error":"#VALUE!"}}]
[null,null,null,null,null,null,null,null,null,null,null,null,null,null,null,null,null,null,null,null,"","",{"$f":"_xlfn.XLOOKUP(VALUE(V1282),'Budgeted Funds'!A:A,'Budgeted Funds'!D:D)","v":{"$error":"#VALUE!"}}]
[null,null,null,null,null,null,null,null,null,null,null,null,null,null,null,null,null,null,null,null,"","",{"$f":"_xlfn.XLOOKUP(VALUE(V1283),'Budgeted Funds'!A:A,'Budgeted Funds'!D:D)","v":{"$error":"#VALUE!"}}]
[null,null,null,null,null,null,null,null,null,null,null,null,null,null,null,null,null,null,null,null,{"$f":"MID(B1284,4,3)","v":""},{"$f":"MID(B1284,7,4)","v":""},{"$f":"_xlfn.XLOOKUP(VALUE(V1284),'Budgeted Funds'!A:A,'Budgeted Funds'!D:D)","v":{"$error":"#VALUE!"}}]
[null,null,null,null,null,null,null,null,null,null,null,null,null,null,null,null,null,null,null,null,"","",{"$f":"_xlfn.XLOOKUP(VALUE(V1285),'Budgeted Funds'!A:A,'Budgeted Funds'!D:D)","v":{"$error":"#VALUE!"}}]
[null,null,null,null,null,null,null,null,null,null,null,null,null,null,null,null,null,null,null,null,"","",{"$f":"_xlfn.XLOOKUP(VALUE(V1286),'Budgeted Funds'!A:A,'Budgeted Funds'!D:D)","v":{"$error":"#VALUE!"}}]
[null,null,null,null,null,null,null,null,null,null,null,null,null,null,null,null,null,null,null,null,"","",{"$f":"_xlfn.XLOOKUP(VALUE(V1287),'Budgeted Funds'!A:A,'Budgeted Funds'!D:D)","v":{"$error":"#VALUE!"}}]
[null,null,null,null,null,null,null,null,null,null,null,null,null,null,null,null,null,null,null,null,"","",{"$f":"_xlfn.XLOOKUP(VALUE(V1288),'Budgeted Funds'!A:A,'Budgeted Funds'!D:D)","v":{"$error":"#VALUE!"}}]
[null,null,null,null,null,null,null,null,null,null,null,null,null,null,null,null,null,null,null,null,"","",{"$f":"_xlfn.XLOOKUP(VALUE(V1289),'Budgeted Funds'!A:A,'Budgeted Funds'!D:D)","v":{"$error":"#VALUE!"}}]
[null,null,null,null,null,null,null,null,null,null,null,null,null,null,null,null,null,null,null,null,"","",{"$f":"_xlfn.XLOOKUP(VALUE(V1290),'Budgeted Funds'!A:A,'Budgeted Funds'!D:D)","v":{"$error":"#VALUE!"}}]
[null,null,null,null,null,null,null,null,null,null,null,null,null,null,null,null,null,null,null,null,"","",{"$f":"_xlfn.XLOOKUP(VALUE(V1291),'Budgeted Funds'!A:A,'Budgeted Funds'!D:D)","v":{"$error":"#VALUE!"}}]
[null,null,null,null,null,null,null,null,null,null,null,null,null,null,null,null,null,null,null,null,"","",{"$f":"_xlfn.XLOOKUP(VALUE(V1292),'Budgeted Funds'!A:A,'Budgeted Funds'!D:D)","v":{"$error":"#VALUE!"}}]
[null,null,null,null,null,null,null,null,null,null,null,null,null,null,null,null,null,null,null,null,"","",{"$f":"_xlfn.XLOOKUP(VALUE(V1293),'Budgeted Funds'!A:A,'Budgeted Funds'!D:D)","v":{"$error":"#VALUE!"}}]
[null,null,null,null,null,null,null,null,null,null,null,null,null,null,null,null,null,null,null,null,"","",{"$f":"_xlfn.XLOOKUP(VALUE(V1294),'Budgeted Funds'!A:A,'Budgeted Funds'!D:D)","v":{"$error":"#VALUE!"}}]
[null,null,null,null,null,null,null,null,null,null,null,null,null,null,null,null,null,null,null,null,"","",{"$f":"_xlfn.XLOOKUP(VALUE(V1295),'Budgeted Funds'!A:A,'Budgeted Funds'!D:D)","v":{"$error":"#VALUE!"}}]
[null,null,null,null,null,null,null,null,null,null,null,null,null,null,null,null,null,null,null,null,"","",{"$f":"_xlfn.XLOOKUP(VALUE(V1296),'Budgeted Funds'!A:A,'Budgeted Funds'!D:D)","v":{"$error":"#VALUE!"}}]
[null,null,null,null,null,null,null,null,null,null,null,null,null,null,null,null,null,null,null,null,"","",{"$f":"_xlfn.XLOOKUP(VALUE(V1297),'Budgeted Funds'!A:A,'Budgeted Funds'!D:D)","v":{"$error":"#VALUE!"}}]
[null,null,null,null,null,null,null,null,null,null,null,null,null,null,null,null,null,null,null,null,"","",{"$f":"_xlfn.XLOOKUP(VALUE(V1298),'Budgeted Funds'!A:A,'Budgeted Funds'!D:D)","v":{"$error":"#VALUE!"}}]
[null,null,null,null,null,null,null,null,null,null,null,null,null,null,null,null,null,null,null,null,"","",{"$f":"_xlfn.XLOOKUP(VALUE(V1299),'Budgeted Funds'!A:A,'Budgeted Funds'!D:D)","v":{"$error":"#VALUE!"}}]
[null,null,null,null,null,null,null,null,null,null,null,null,null,null,null,null,null,null,null,null,"","",{"$f":"_xlfn.XLOOKUP(VALUE(V1300),'Budgeted Funds'!A:A,'Budgeted Funds'!D:D)","v":{"$error":"#VALUE!"}}]
[null,null,null,null,null,null,null,null,null,null,null,null,null,null,null,null,null,null,null,null,"","",{"$f":"_xlfn.XLOOKUP(VALUE(V1301),'Budgeted Funds'!A:A,'Budgeted Funds'!D:D)","v":{"$error":"#VALUE!"}}]
[null,null,null,null,null,null,null,null,null,null,null,null,null,null,null,null,null,null,null,null,"","",{"$f":"_xlfn.XLOOKUP(VALUE(V1302),'Budgeted Funds'!A:A,'Budgeted Funds'!D:D)","v":{"$error":"#VALUE!"}}]
[null,null,null,null,null,null,null,null,null,null,null,null,null,null,null,null,null,null,null,null,"","",{"$f":"_xlfn.XLOOKUP(VALUE(V1303),'Budgeted Funds'!A:A,'Budgeted Funds'!D:D)","v":{"$error":"#VALUE!"}}]
[null,null,null,null,null,null,null,null,null,null,null,null,null,null,null,null,null,null,null,null,"","",{"$f":"_xlfn.XLOOKUP(VALUE(V1304),'Budgeted Funds'!A:A,'Budgeted Funds'!D:D)","v":{"$error":"#VALUE!"}}]
[null,null,null,null,null,null,null,null,null,null,null,null,null,null,null,null,null,null,null,null,"","",{"$f":"_xlfn.XLOOKUP(VALUE(V1305),'Budgeted Funds'!A:A,'Budgeted Funds'!D:D)","v":{"$error":"#VALUE!"}}]
[null,null,null,null,null,null,null,null,null,null,null,null,null,null,null,null,null,null,null,null,"","",{"$f":"_xlfn.XLOOKUP(VALUE(V1306),'Budgeted Funds'!A:A,'Budgeted Funds'!D:D)","v":{"$error":"#VALUE!"}}]
[null,null,null,null,null,null,null,null,null,null,null,null,null,null,null,null,null,null,null,null,"","",{"$f":"_xlfn.XLOOKUP(VALUE(V1307),'Budgeted Funds'!A:A,'Budgeted Funds'!D:D)","v":{"$error":"#VALUE!"}}]
[null,null,null,null,null,null,null,null,null,null,null,null,null,null,null,null,null,null,null,null,"","",{"$f":"_xlfn.XLOOKUP(VALUE(V1308),'Budgeted Funds'!A:A,'Budgeted Funds'!D:D)","v":{"$error":"#VALUE!"}}]
[null,null,null,null,null,null,null,null,null,null,null,null,null,null,null,null,null,null,null,null,"","",{"$f":"_xlfn.XLOOKUP(VALUE(V1309),'Budgeted Funds'!A:A,'Budgeted Funds'!D:D)","v":{"$error":"#VALUE!"}}]
[null,null,null,null,null,null,null,null,null,null,null,null,null,null,null,null,null,null,null,null,"","",{"$f":"_xlfn.XLOOKUP(VALUE(V1310),'Budgeted Funds'!A:A,'Budgeted Funds'!D:D)","v":{"$error":"#VALUE!"}}]
[null,null,null,null,null,null,null,null,null,null,null,null,null,null,null,null,null,null,null,null,"","",{"$f":"_xlfn.XLOOKUP(VALUE(V1311),'Budgeted Funds'!A:A,'Budgeted Funds'!D:D)","v":{"$error":"#VALUE!"}}]
[null,null,null,null,null,null,null,null,null,null,null,null,null,null,null,null,null,null,null,null,"","",{"$f":"_xlfn.XLOOKUP(VALUE(V1312),'Budgeted Funds'!A:A,'Budgeted Funds'!D:D)","v":{"$error":"#VALUE!"}}]
[null,null,null,null,null,null,null,null,null,null,null,null,null,null,null,null,null,null,null,null,"","",{"$f":"_xlfn.XLOOKUP(VALUE(V1313),'Budgeted Funds'!A:A,'Budgeted Funds'!D:D)","v":{"$error":"#VALUE!"}}]
[null,null,null,null,null,null,null,null,null,null,null,null,null,null,null,null,null,null,null,null,"","",{"$f":"_xlfn.XLOOKUP(VALUE(V1314),'Budgeted Funds'!A:A,'Budgeted Funds'!D:D)","v":{"$error":"#VALUE!"}}]
[null,null,null,null,null,null,null,null,null,null,null,null,null,null,null,null,null,null,null,null,"","",{"$f":"_xlfn.XLOOKUP(VALUE(V1315),'Budgeted Funds'!A:A,'Budgeted Funds'!D:D)","v":{"$error":"#VALUE!"}}]
[null,null,null,null,null,null,null,null,null,null,null,null,null,null,null,null,null,null,null,null,"","",{"$f":"_xlfn.XLOOKUP(VALUE(V1316),'Budgeted Funds'!A:A,'Budgeted Funds'!D:D)","v":{"$error":"#VALUE!"}}]
[null,null,null,null,null,null,null,null,null,null,null,null,null,null,null,null,null,null,null,null,"","",{"$f":"_xlfn.XLOOKUP(VALUE(V1317),'Budgeted Funds'!A:A,'Budgeted Funds'!D:D)","v":{"$error":"#VALUE!"}}]
[null,null,null,null,null,null,null,null,null,null,null,null,null,null,null,null,null,null,null,null,"","",{"$f":"_xlfn.XLOOKUP(VALUE(V1318),'Budgeted Funds'!A:A,'Budgeted Funds'!D:D)","v":{"$error":"#VALUE!"}}]
[null,null,null,null,null,null,null,null,null,null,null,null,null,null,null,null,null,null,null,null,"","",{"$f":"_xlfn.XLOOKUP(VALUE(V1319),'Budgeted Funds'!A:A,'Budgeted Funds'!D:D)","v":{"$error":"#VALUE!"}}]
[null,null,null,null,null,null,null,null,null,null,null,null,null,null,null,null,null,null,null,null,"","",{"$f":"_xlfn.XLOOKUP(VALUE(V1320),'Budgeted Funds'!A:A,'Budgeted Funds'!D:D)","v":{"$error":"#VALUE!"}}]
[null,null,null,null,null,null,null,null,null,null,null,null,null,null,null,null,null,null,null,null,"","",{"$f":"_xlfn.XLOOKUP(VALUE(V1321),'Budgeted Funds'!A:A,'Budgeted Funds'!D:D)","v":{"$error":"#VALUE!"}}]
[null,null,null,null,null,null,null,null,null,null,null,null,null,null,null,null,null,null,null,null,"","",{"$f":"_xlfn.XLOOKUP(VALUE(V1322),'Budgeted Funds'!A:A,'Budgeted Funds'!D:D)","v":{"$error":"#VALUE!"}}]
[null,null,null,null,null,null,null,null,null,null,null,null,null,null,null,null,null,null,null,null,"","",{"$f":"_xlfn.XLOOKUP(VALUE(V1323),'Budgeted Funds'!A:A,'Budgeted Funds'!D:D)","v":{"$error":"#VALUE!"}}]
[null,null,null,null,null,null,null,null,null,null,null,null,null,null,null,null,null,null,null,null,"","",{"$f":"_xlfn.XLOOKUP(VALUE(V1324),'Budgeted Funds'!A:A,'Budgeted Funds'!D:D)","v":{"$error":"#VALUE!"}}]
[null,null,null,null,null,null,null,null,null,null,null,null,null,null,null,null,null,null,null,null,"","",{"$f":"_xlfn.XLOOKUP(VALUE(V1325),'Budgeted Funds'!A:A,'Budgeted Funds'!D:D)","v":{"$error":"#VALUE!"}}]
[null,null,null,null,null,null,null,null,null,null,null,null,null,null,null,null,null,null,null,null,"","",{"$f":"_xlfn.XLOOKUP(VALUE(V1326),'Budgeted Funds'!A:A,'Budgeted Funds'!D:D)","v":{"$error":"#VALUE!"}}]
[null,null,null,null,null,null,null,null,null,null,null,null,null,null,null,null,null,null,null,null,"","",{"$f":"_xlfn.XLOOKUP(VALUE(V1327),'Budgeted Funds'!A:A,'Budgeted Funds'!D:D)","v":{"$error":"#VALUE!"}}]
[null,null,null,null,null,null,null,null,null,null,null,null,null,null,null,null,null,null,null,null,"","",{"$f":"_xlfn.XLOOKUP(VALUE(V1328),'Budgeted Funds'!A:A,'Budgeted Funds'!D:D)","v":{"$error":"#VALUE!"}}]
[null,null,null,null,null,null,null,null,null,null,null,null,null,null,null,null,null,null,null,null,"","",{"$f":"_xlfn.XLOOKUP(VALUE(V1329),'Budgeted Funds'!A:A,'Budgeted Funds'!D:D)","v":{"$error":"#VALUE!"}}]
[null,null,null,null,null,null,null,null,null,null,null,null,null,null,null,null,null,null,null,null,"","",{"$f":"_xlfn.XLOOKUP(VALUE(V1330),'Budgeted Funds'!A:A,'Budgeted Funds'!D:D)","v":{"$error":"#VALUE!"}}]
[null,null,null,null,null,null,null,null,null,null,null,null,null,null,null,null,null,null,null,null,"","",{"$f":"_xlfn.XLOOKUP(VALUE(V1331),'Budgeted Funds'!A:A,'Budgeted Funds'!D:D)","v":{"$error":"#VALUE!"}}]
[null,null,null,null,null,null,null,null,null,null,null,null,null,null,null,null,null,null,null,null,"","",{"$f":"_xlfn.XLOOKUP(VALUE(V1332),'Budgeted Funds'!A:A,'Budgeted Funds'!D:D)","v":{"$error":"#VALUE!"}}]
[null,null,null,null,null,null,null,null,null,null,null,null,null,null,null,null,null,null,null,null,"","",{"$f":"_xlfn.XLOOKUP(VALUE(V1333),'Budgeted Funds'!A:A,'Budgeted Funds'!D:D)","v":{"$error":"#VALUE!"}}]
[null,null,null,null,null,null,null,null,null,null,null,null,null,null,null,null,null,null,null,null,"","",{"$f":"_xlfn.XLOOKUP(VALUE(V1334),'Budgeted Funds'!A:A,'Budgeted Funds'!D:D)","v":{"$error":"#VALUE!"}}]
[null,null,null,null,null,null,null,null,null,null,null,null,null,null,null,null,null,null,null,null,"","",{"$f":"_xlfn.XLOOKUP(VALUE(V1335),'Budgeted Funds'!A:A,'Budgeted Funds'!D:D)","v":{"$error":"#VALUE!"}}]
[null,null,null,null,null,null,null,null,null,null,null,null,null,null,null,null,null,null,null,null,"","",{"$f":"_xlfn.XLOOKUP(VALUE(V1336),'Budgeted Funds'!A:A,'Budgeted Funds'!D:D)","v":{"$error":"#VALUE!"}}]
[null,null,null,null,null,null,null,null,null,null,null,null,null,null,null,null,null,null,null,null,"","",{"$f":"_xlfn.XLOOKUP(VALUE(V1337),'Budgeted Funds'!A:A,'Budgeted Funds'!D:D)","v":{"$error":"#VALUE!"}}]
[null,null,null,null,null,null,null,null,null,null,null,null,null,null,null,null,null,null,null,null,"","",{"$f":"_xlfn.XLOOKUP(VALUE(V1338),'Budgeted Funds'!A:A,'Budgeted Funds'!D:D)","v":{"$error":"#VALUE!"}}]
[null,null,null,null,null,null,null,null,null,null,null,null,null,null,null,null,null,null,null,null,"","",{"$f":"_xlfn.XLOOKUP(VALUE(V1339),'Budgeted Funds'!A:A,'Budgeted Funds'!D:D)","v":{"$error":"#VALUE!"}}]
[null,null,null,null,null,null,null,null,null,null,null,null,null,null,null,null,null,null,null,null,"","",{"$f":"_xlfn.XLOOKUP(VALUE(V1340),'Budgeted Funds'!A:A,'Budgeted Funds'!D:D)","v":{"$error":"#VALUE!"}}]
[null,null,null,null,null,null,null,null,null,null,null,null,null,null,null,null,null,null,null,null,"","",{"$f":"_xlfn.XLOOKUP(VALUE(V1341),'Budgeted Funds'!A:A,'Budgeted Funds'!D:D)","v":{"$error":"#VALUE!"}}]
[null,null,null,null,null,null,null,null,null,null,null,null,null,null,null,null,null,null,null,null,"","",{"$f":"_xlfn.XLOOKUP(VALUE(V1342),'Budgeted Funds'!A:A,'Budgeted Funds'!D:D)","v":{"$error":"#VALUE!"}}]
[null,null,null,null,null,null,null,null,null,null,null,null,null,null,null,null,null,null,null,null,"","",{"$f":"_xlfn.XLOOKUP(VALUE(V1343),'Budgeted Funds'!A:A,'Budgeted Funds'!D:D)","v":{"$error":"#VALUE!"}}]
[null,null,null,null,null,null,null,null,null,null,null,null,null,null,null,null,null,null,null,null,"","",{"$f":"_xlfn.XLOOKUP(VALUE(V1344),'Budgeted Funds'!A:A,'Budgeted Funds'!D:D)","v":{"$error":"#VALUE!"}}]
[null,null,null,null,null,null,null,null,null,null,null,null,null,null,null,null,null,null,null,null,"","",{"$f":"_xlfn.XLOOKUP(VALUE(V1345),'Budgeted Funds'!A:A,'Budgeted Funds'!D:D)","v":{"$error":"#VALUE!"}}]
[null,null,null,null,null,null,null,null,null,null,null,null,null,null,null,null,null,null,null,null,"","",{"$f":"_xlfn.XLOOKUP(VALUE(V1346),'Budgeted Funds'!A:A,'Budgeted Funds'!D:D)","v":{"$error":"#VALUE!"}}]
[null,null,null,null,null,null,null,null,null,null,null,null,null,null,null,null,null,null,null,null,"","",{"$f":"_xlfn.XLOOKUP(VALUE(V1347),'Budgeted Funds'!A:A,'Budgeted Funds'!D:D)","v":{"$error":"#VALUE!"}}]
[null,null,null,null,null,null,null,null,null,null,null,null,null,null,null,null,null,null,null,null,{"$f":"MID(B1348,4,3)","v":""},{"$f":"MID(B1348,7,4)","v":""},{"$f":"_xlfn.XLOOKUP(VALUE(V1348),'Budgeted Funds'!A:A,'Budgeted Funds'!D:D)","v":{"$error":"#VALUE!"}}]
[null,null,null,null,null,null,null,null,null,null,null,null,null,null,null,null,null,null,null,null,"","",{"$f":"_xlfn.XLOOKUP(VALUE(V1349),'Budgeted Funds'!A:A,'Budgeted Funds'!D:D)","v":{"$error":"#VALUE!"}}]
[null,null,null,null,null,null,null,null,null,null,null,null,null,null,null,null,null,null,null,null,"","",{"$f":"_xlfn.XLOOKUP(VALUE(V1350),'Budgeted Funds'!A:A,'Budgeted Funds'!D:D)","v":{"$error":"#VALUE!"}}]
[null,null,null,null,null,null,null,null,null,null,null,null,null,null,null,null,null,null,null,null,"","",{"$f":"_xlfn.XLOOKUP(VALUE(V1351),'Budgeted Funds'!A:A,'Budgeted Funds'!D:D)","v":{"$error":"#VALUE!"}}]
[null,null,null,null,null,null,null,null,null,null,null,null,null,null,null,null,null,null,null,null,"","",{"$f":"_xlfn.XLOOKUP(VALUE(V1352),'Budgeted Funds'!A:A,'Budgeted Funds'!D:D)","v":{"$error":"#VALUE!"}}]
[null,null,null,null,null,null,null,null,null,null,null,null,null,null,null,null,null,null,null,null,"","",{"$f":"_xlfn.XLOOKUP(VALUE(V1353),'Budgeted Funds'!A:A,'Budgeted Funds'!D:D)","v":{"$error":"#VALUE!"}}]
[null,null,null,null,null,null,null,null,null,null,null,null,null,null,null,null,null,null,null,null,"","",{"$f":"_xlfn.XLOOKUP(VALUE(V1354),'Budgeted Funds'!A:A,'Budgeted Funds'!D:D)","v":{"$error":"#VALUE!"}}]
[null,null,null,null,null,null,null,null,null,null,null,null,null,null,null,null,null,null,null,null,"","",{"$f":"_xlfn.XLOOKUP(VALUE(V1355),'Budgeted Funds'!A:A,'Budgeted Funds'!D:D)","v":{"$error":"#VALUE!"}}]
[null,null,null,null,null,null,null,null,null,null,null,null,null,null,null,null,null,null,null,null,"","",{"$f":"_xlfn.XLOOKUP(VALUE(V1356),'Budgeted Funds'!A:A,'Budgeted Funds'!D:D)","v":{"$error":"#VALUE!"}}]
[null,null,null,null,null,null,null,null,null,null,null,null,null,null,null,null,null,null,null,null,"","",{"$f":"_xlfn.XLOOKUP(VALUE(V1357),'Budgeted Funds'!A:A,'Budgeted Funds'!D:D)","v":{"$error":"#VALUE!"}}]
[null,null,null,null,null,null,null,null,null,null,null,null,null,null,null,null,null,null,null,null,"","",{"$f":"_xlfn.XLOOKUP(VALUE(V1358),'Budgeted Funds'!A:A,'Budgeted Funds'!D:D)","v":{"$error":"#VALUE!"}}]
[null,null,null,null,null,null,null,null,null,null,null,null,null,null,null,null,null,null,null,null,"","",{"$f":"_xlfn.XLOOKUP(VALUE(V1359),'Budgeted Funds'!A:A,'Budgeted Funds'!D:D)","v":{"$error":"#VALUE!"}}]
[null,null,null,null,null,null,null,null,null,null,null,null,null,null,null,null,null,null,null,null,"","",{"$f":"_xlfn.XLOOKUP(VALUE(V1360),'Budgeted Funds'!A:A,'Budgeted Funds'!D:D)","v":{"$error":"#VALUE!"}}]
[null,null,null,null,null,null,null,null,null,null,null,null,null,null,null,null,null,null,null,null,"","",{"$f":"_xlfn.XLOOKUP(VALUE(V1361),'Budgeted Funds'!A:A,'Budgeted Funds'!D:D)","v":{"$error":"#VALUE!"}}]
[null,null,null,null,null,null,null,null,null,null,null,null,null,null,null,null,null,null,null,null,"","",{"$f":"_xlfn.XLOOKUP(VALUE(V1362),'Budgeted Funds'!A:A,'Budgeted Funds'!D:D)","v":{"$error":"#VALUE!"}}]
[null,null,null,null,null,null,null,null,null,null,null,null,null,null,null,null,null,null,null,null,"","",{"$f":"_xlfn.XLOOKUP(VALUE(V1363),'Budgeted Funds'!A:A,'Budgeted Funds'!D:D)","v":{"$error":"#VALUE!"}}]
[null,null,null,null,null,null,null,null,null,null,null,null,null,null,null,null,null,null,null,null,"","",{"$f":"_xlfn.XLOOKUP(VALUE(V1364),'Budgeted Funds'!A:A,'Budgeted Funds'!D:D)","v":{"$error":"#VALUE!"}}]
[null,null,null,null,null,null,null,null,null,null,null,null,null,null,null,null,null,null,null,null,"","",{"$f":"_xlfn.XLOOKUP(VALUE(V1365),'Budgeted Funds'!A:A,'Budgeted Funds'!D:D)","v":{"$error":"#VALUE!"}}]
[null,null,null,null,null,null,null,null,null,null,null,null,null,null,null,null,null,null,null,null,"","",{"$f":"_xlfn.XLOOKUP(VALUE(V1366),'Budgeted Funds'!A:A,'Budgeted Funds'!D:D)","v":{"$error":"#VALUE!"}}]
[null,null,null,null,null,null,null,null,null,null,null,null,null,null,null,null,null,null,null,null,"","",{"$f":"_xlfn.XLOOKUP(VALUE(V1367),'Budgeted Funds'!A:A,'Budgeted Funds'!D:D)","v":{"$error":"#VALUE!"}}]
[null,null,null,null,null,null,null,null,null,null,null,null,null,null,null,null,null,null,null,null,"","",{"$f":"_xlfn.XLOOKUP(VALUE(V1368),'Budgeted Funds'!A:A,'Budgeted Funds'!D:D)","v":{"$error":"#VALUE!"}}]
[null,null,null,null,null,null,null,null,null,null,null,null,null,null,null,null,null,null,null,null,"","",{"$f":"_xlfn.XLOOKUP(VALUE(V1369),'Budgeted Funds'!A:A,'Budgeted Funds'!D:D)","v":{"$error":"#VALUE!"}}]
[null,null,null,null,null,null,null,null,null,null,null,null,null,null,null,null,null,null,null,null,"","",{"$f":"_xlfn.XLOOKUP(VALUE(V1370),'Budgeted Funds'!A:A,'Budgeted Funds'!D:D)","v":{"$error":"#VALUE!"}}]
[null,null,null,null,null,null,null,null,null,null,null,null,null,null,null,null,null,null,null,null,"","",{"$f":"_xlfn.XLOOKUP(VALUE(V1371),'Budgeted Funds'!A:A,'Budgeted Funds'!D:D)","v":{"$error":"#VALUE!"}}]
[null,null,null,null,null,null,null,null,null,null,null,null,null,null,null,null,null,null,null,null,"","",{"$f":"_xlfn.XLOOKUP(VALUE(V1372),'Budgeted Funds'!A:A,'Budgeted Funds'!D:D)","v":{"$error":"#VALUE!"}}]
[null,null,null,null,null,null,null,null,null,null,null,null,null,null,null,null,null,null,null,null,"","",{"$f":"_xlfn.XLOOKUP(VALUE(V1373),'Budgeted Funds'!A:A,'Budgeted Funds'!D:D)","v":{"$error":"#VALUE!"}}]
[null,null,null,null,null,null,null,null,null,null,null,null,null,null,null,null,null,null,null,null,"","",{"$f":"_xlfn.XLOOKUP(VALUE(V1374),'Budgeted Funds'!A:A,'Budgeted Funds'!D:D)","v":{"$error":"#VALUE!"}}]
[null,null,null,null,null,null,null,null,null,null,null,null,null,null,null,null,null,null,null,null,"","",{"$f":"_xlfn.XLOOKUP(VALUE(V1375),'Budgeted Funds'!A:A,'Budgeted Funds'!D:D)","v":{"$error":"#VALUE!"}}]
[null,null,null,null,null,null,null,null,null,null,null,null,null,null,null,null,null,null,null,null,"","",{"$f":"_xlfn.XLOOKUP(VALUE(V1376),'Budgeted Funds'!A:A,'Budgeted Funds'!D:D)","v":{"$error":"#VALUE!"}}]
[null,null,null,null,null,null,null,null,null,null,null,null,null,null,null,null,null,null,null,null,"","",{"$f":"_xlfn.XLOOKUP(VALUE(V1377),'Budgeted Funds'!A:A,'Budgeted Funds'!D:D)","v":{"$error":"#VALUE!"}}]
[null,null,null,null,null,null,null,null,null,null,null,null,null,null,null,null,null,null,null,null,"","",{"$f":"_xlfn.XLOOKUP(VALUE(V1378),'Budgeted Funds'!A:A,'Budgeted Funds'!D:D)","v":{"$error":"#VALUE!"}}]
[null,null,null,null,null,null,null,null,null,null,null,null,null,null,null,null,null,null,null,null,"","",{"$f":"_xlfn.XLOOKUP(VALUE(V1379),'Budgeted Funds'!A:A,'Budgeted Funds'!D:D)","v":{"$error":"#VALUE!"}}]
[null,null,null,null,null,null,null,null,null,null,null,null,null,null,null,null,null,null,null,null,"","",{"$f":"_xlfn.XLOOKUP(VALUE(V1380),'Budgeted Funds'!A:A,'Budgeted Funds'!D:D)","v":{"$error":"#VALUE!"}}]
[null,null,null,null,null,null,null,null,null,null,null,null,null,null,null,null,null,null,null,null,"","",{"$f":"_xlfn.XLOOKUP(VALUE(V1381),'Budgeted Funds'!A:A,'Budgeted Funds'!D:D)","v":{"$error":"#VALUE!"}}]
[null,null,null,null,null,null,null,null,null,null,null,null,null,null,null,null,null,null,null,null,"","",{"$f":"_xlfn.XLOOKUP(VALUE(V1382),'Budgeted Funds'!A:A,'Budgeted Funds'!D:D)","v":{"$error":"#VALUE!"}}]
[null,null,null,null,null,null,null,null,null,null,null,null,null,null,null,null,null,null,null,null,"","",{"$f":"_xlfn.XLOOKUP(VALUE(V1383),'Budgeted Funds'!A:A,'Budgeted Funds'!D:D)","v":{"$error":"#VALUE!"}}]
[null,null,null,null,null,null,null,null,null,null,null,null,null,null,null,null,null,null,null,null,"","",{"$f":"_xlfn.XLOOKUP(VALUE(V1384),'Budgeted Funds'!A:A,'Budgeted Funds'!D:D)","v":{"$error":"#VALUE!"}}]
[null,null,null,null,null,null,null,null,null,null,null,null,null,null,null,null,null,null,null,null,"","",{"$f":"_xlfn.XLOOKUP(VALUE(V1385),'Budgeted Funds'!A:A,'Budgeted Funds'!D:D)","v":{"$error":"#VALUE!"}}]
[null,null,null,null,null,null,null,null,null,null,null,null,null,null,null,null,null,null,null,null,"","",{"$f":"_xlfn.XLOOKUP(VALUE(V1386),'Budgeted Funds'!A:A,'Budgeted Funds'!D:D)","v":{"$error":"#VALUE!"}}]
[null,null,null,null,null,null,null,null,null,null,null,null,null,null,null,null,null,null,null,null,"","",{"$f":"_xlfn.XLOOKUP(VALUE(V1387),'Budgeted Funds'!A:A,'Budgeted Funds'!D:D)","v":{"$error":"#VALUE!"}}]
[null,null,null,null,null,null,null,null,null,null,null,null,null,null,null,null,null,null,null,null,"","",{"$f":"_xlfn.XLOOKUP(VALUE(V1388),'Budgeted Funds'!A:A,'Budgeted Funds'!D:D)","v":{"$error":"#VALUE!"}}]
[null,null,null,null,null,null,null,null,null,null,null,null,null,null,null,null,null,null,null,null,"","",{"$f":"_xlfn.XLOOKUP(VALUE(V1389),'Budgeted Funds'!A:A,'Budgeted Funds'!D:D)","v":{"$error":"#VALUE!"}}]
[null,null,null,null,null,null,null,null,null,null,null,null,null,null,null,null,null,null,null,null,"","",{"$f":"_xlfn.XLOOKUP(VALUE(V1390),'Budgeted Funds'!A:A,'Budgeted Funds'!D:D)","v":{"$error":"#VALUE!"}}]
[null,null,null,null,null,null,null,null,null,null,null,null,null,null,null,null,null,null,null,null,"","",{"$f":"_xlfn.XLOOKUP(VALUE(V1391),'Budgeted Funds'!A:A,'Budgeted Funds'!D:D)","v":{"$error":"#VALUE!"}}]
[null,null,null,null,null,null,null,null,null,null,null,null,null,null,null,null,null,null,null,null,"","",{"$f":"_xlfn.XLOOKUP(VALUE(V1392),'Budgeted Funds'!A:A,'Budgeted Funds'!D:D)","v":{"$error":"#VALUE!"}}]
[null,null,null,null,null,null,null,null,null,null,null,null,null,null,null,null,null,null,null,null,"","",{"$f":"_xlfn.XLOOKUP(VALUE(V1393),'Budgeted Funds'!A:A,'Budgeted Funds'!D:D)","v":{"$error":"#VALUE!"}}]
[null,null,null,null,null,null,null,null,null,null,null,null,null,null,null,null,null,null,null,null,"","",{"$f":"_xlfn.XLOOKUP(VALUE(V1394),'Budgeted Funds'!A:A,'Budgeted Funds'!D:D)","v":{"$error":"#VALUE!"}}]
[null,null,null,null,null,null,null,null,null,null,null,null,null,null,null,null,null,null,null,null,"","",{"$f":"_xlfn.XLOOKUP(VALUE(V1395),'Budgeted Funds'!A:A,'Budgeted Funds'!D:D)","v":{"$error":"#VALUE!"}}]
[null,null,null,null,null,null,null,null,null,null,null,null,null,null,null,null,null,null,null,null,"","",{"$f":"_xlfn.XLOOKUP(VALUE(V1396),'Budgeted Funds'!A:A,'Budgeted Funds'!D:D)","v":{"$error":"#VALUE!"}}]
[null,null,null,null,null,null,null,null,null,null,null,null,null,null,null,null,null,null,null,null,"","",{"$f":"_xlfn.XLOOKUP(VALUE(V1397),'Budgeted Funds'!A:A,'Budgeted Funds'!D:D)","v":{"$error":"#VALUE!"}}]
[null,null,null,null,null,null,null,null,null,null,null,null,null,null,null,null,null,null,null,null,"","",{"$f":"_xlfn.XLOOKUP(VALUE(V1398),'Budgeted Funds'!A:A,'Budgeted Funds'!D:D)","v":{"$error":"#VALUE!"}}]
[null,null,null,null,null,null,null,null,null,null,null,null,null,null,null,null,null,null,null,null,"","",{"$f":"_xlfn.XLOOKUP(VALUE(V1399),'Budgeted Funds'!A:A,'Budgeted Funds'!D:D)","v":{"$error":"#VALUE!"}}]
[null,null,null,null,null,null,null,null,null,null,null,null,null,null,null,null,null,null,null,null,"","",{"$f":"_xlfn.XLOOKUP(VALUE(V1400),'Budgeted Funds'!A:A,'Budgeted Funds'!D:D)","v":{"$error":"#VALUE!"}}]
[null,null,null,null,null,null,null,null,null,null,null,null,null,null,null,null,null,null,null,null,"","",{"$f":"_xlfn.XLOOKUP(VALUE(V1401),'Budgeted Funds'!A:A,'Budgeted Funds'!D:D)","v":{"$error":"#VALUE!"}}]
[null,null,null,null,null,null,null,null,null,null,null,null,null,null,null,null,null,null,null,null,"","",{"$f":"_xlfn.XLOOKUP(VALUE(V1402),'Budgeted Funds'!A:A,'Budgeted Funds'!D:D)","v":{"$error":"#VALUE!"}}]
[null,null,null,null,null,null,null,null,null,null,null,null,null,null,null,null,null,null,null,null,"","",{"$f":"_xlfn.XLOOKUP(VALUE(V1403),'Budgeted Funds'!A:A,'Budgeted Funds'!D:D)","v":{"$error":"#VALUE!"}}]
[null,null,null,null,null,null,null,null,null,null,null,null,null,null,null,null,null,null,null,null,"","",{"$f":"_xlfn.XLOOKUP(VALUE(V1404),'Budgeted Funds'!A:A,'Budgeted Funds'!D:D)","v":{"$error":"#VALUE!"}}]
[null,null,null,null,null,null,null,null,null,null,null,null,null,null,null,null,null,null,null,null,"","",{"$f":"_xlfn.XLOOKUP(VALUE(V1405),'Budgeted Funds'!A:A,'Budgeted Funds'!D:D)","v":{"$error":"#VALUE!"}}]
[null,null,null,null,null,null,null,null,null,null,null,null,null,null,null,null,null,null,null,null,"","",{"$f":"_xlfn.XLOOKUP(VALUE(V1406),'Budgeted Funds'!A:A,'Budgeted Funds'!D:D)","v":{"$error":"#VALUE!"}}]
[null,null,null,null,null,null,null,null,null,null,null,null,null,null,null,null,null,null,null,null,"","",{"$f":"_xlfn.XLOOKUP(VALUE(V1407),'Budgeted Funds'!A:A,'Budgeted Funds'!D:D)","v":{"$error":"#VALUE!"}}]
[null,null,null,null,null,null,null,null,null,null,null,null,null,null,null,null,null,null,null,null,"","",{"$f":"_xlfn.XLOOKUP(VALUE(V1408),'Budgeted Funds'!A:A,'Budgeted Funds'!D:D)","v":{"$error":"#VALUE!"}}]
[null,null,null,null,null,null,null,null,null,null,null,null,null,null,null,null,null,null,null,null,"","",{"$f":"_xlfn.XLOOKUP(VALUE(V1409),'Budgeted Funds'!A:A,'Budgeted Funds'!D:D)","v":{"$error":"#VALUE!"}}]
[null,null,null,null,null,null,null,null,null,null,null,null,null,null,null,null,null,null,null,null,"","",{"$f":"_xlfn.XLOOKUP(VALUE(V1410),'Budgeted Funds'!A:A,'Budgeted Funds'!D:D)","v":{"$error":"#VALUE!"}}]
[null,null,null,null,null,null,null,null,null,null,null,null,null,null,null,null,null,null,null,null,"","",{"$f":"_xlfn.XLOOKUP(VALUE(V1411),'Budgeted Funds'!A:A,'Budgeted Funds'!D:D)","v":{"$error":"#VALUE!"}}]
[null,null,null,null,null,null,null,null,null,null,null,null,null,null,null,null,null,null,null,null,{"$f":"MID(B1412,4,3)","v":""},{"$f":"MID(B1412,7,4)","v":""},{"$f":"_xlfn.XLOOKUP(VALUE(V1412),'Budgeted Funds'!A:A,'Budgeted Funds'!D:D)","v":{"$error":"#VALUE!"}}]
[null,null,null,null,null,null,null,null,null,null,null,null,null,null,null,null,null,null,null,null,"","",{"$f":"_xlfn.XLOOKUP(VALUE(V1413),'Budgeted Funds'!A:A,'Budgeted Funds'!D:D)","v":{"$error":"#VALUE!"}}]
[null,null,null,null,null,null,null,null,null,null,null,null,null,null,null,null,null,null,null,null,"","",{"$f":"_xlfn.XLOOKUP(VALUE(V1414),'Budgeted Funds'!A:A,'Budgeted Funds'!D:D)","v":{"$error":"#VALUE!"}}]
[null,null,null,null,null,null,null,null,null,null,null,null,null,null,null,null,null,null,null,null,"","",{"$f":"_xlfn.XLOOKUP(VALUE(V1415),'Budgeted Funds'!A:A,'Budgeted Funds'!D:D)","v":{"$error":"#VALUE!"}}]
[null,null,null,null,null,null,null,null,null,null,null,null,null,null,null,null,null,null,null,null,"","",{"$f":"_xlfn.XLOOKUP(VALUE(V1416),'Budgeted Funds'!A:A,'Budgeted Funds'!D:D)","v":{"$error":"#VALUE!"}}]
[null,null,null,null,null,null,null,null,null,null,null,null,null,null,null,null,null,null,null,null,"","",{"$f":"_xlfn.XLOOKUP(VALUE(V1417),'Budgeted Funds'!A:A,'Budgeted Funds'!D:D)","v":{"$error":"#VALUE!"}}]
[null,null,null,null,null,null,null,null,null,null,null,null,null,null,null,null,null,null,null,null,"","",{"$f":"_xlfn.XLOOKUP(VALUE(V1418),'Budgeted Funds'!A:A,'Budgeted Funds'!D:D)","v":{"$error":"#VALUE!"}}]
[null,null,null,null,null,null,null,null,null,null,null,null,null,null,null,null,null,null,null,null,"","",{"$f":"_xlfn.XLOOKUP(VALUE(V1419),'Budgeted Funds'!A:A,'Budgeted Funds'!D:D)","v":{"$error":"#VALUE!"}}]
[null,null,null,null,null,null,null,null,null,null,null,null,null,null,null,null,null,null,null,null,"","",{"$f":"_xlfn.XLOOKUP(VALUE(V1420),'Budgeted Funds'!A:A,'Budgeted Funds'!D:D)","v":{"$error":"#VALUE!"}}]
[null,null,null,null,null,null,null,null,null,null,null,null,null,null,null,null,null,null,null,null,"","",{"$f":"_xlfn.XLOOKUP(VALUE(V1421),'Budgeted Funds'!A:A,'Budgeted Funds'!D:D)","v":{"$error":"#VALUE!"}}]
[null,null,null,null,null,null,null,null,null,null,null,null,null,null,null,null,null,null,null,null,"","",{"$f":"_xlfn.XLOOKUP(VALUE(V1422),'Budgeted Funds'!A:A,'Budgeted Funds'!D:D)","v":{"$error":"#VALUE!"}}]
[null,null,null,null,null,null,null,null,null,null,null,null,null,null,null,null,null,null,null,null,"","",{"$f":"_xlfn.XLOOKUP(VALUE(V1423),'Budgeted Funds'!A:A,'Budgeted Funds'!D:D)","v":{"$error":"#VALUE!"}}]
[null,null,null,null,null,null,null,null,null,null,null,null,null,null,null,null,null,null,null,null,"","",{"$f":"_xlfn.XLOOKUP(VALUE(V1424),'Budgeted Funds'!A:A,'Budgeted Funds'!D:D)","v":{"$error":"#VALUE!"}}]
[null,null,null,null,null,null,null,null,null,null,null,null,null,null,null,null,null,null,null,null,"","",{"$f":"_xlfn.XLOOKUP(VALUE(V1425),'Budgeted Funds'!A:A,'Budgeted Funds'!D:D)","v":{"$error":"#VALUE!"}}]
[null,null,null,null,null,null,null,null,null,null,null,null,null,null,null,null,null,null,null,null,"","",{"$f":"_xlfn.XLOOKUP(VALUE(V1426),'Budgeted Funds'!A:A,'Budgeted Funds'!D:D)","v":{"$error":"#VALUE!"}}]
[null,null,null,null,null,null,null,null,null,null,null,null,null,null,null,null,null,null,null,null,"","",{"$f":"_xlfn.XLOOKUP(VALUE(V1427),'Budgeted Funds'!A:A,'Budgeted Funds'!D:D)","v":{"$error":"#VALUE!"}}]
[null,null,null,null,null,null,null,null,null,null,null,null,null,null,null,null,null,null,null,null,"","",{"$f":"_xlfn.XLOOKUP(VALUE(V1428),'Budgeted Funds'!A:A,'Budgeted Funds'!D:D)","v":{"$error":"#VALUE!"}}]
[null,null,null,null,null,null,null,null,null,null,null,null,null,null,null,null,null,null,null,null,"","",{"$f":"_xlfn.XLOOKUP(VALUE(V1429),'Budgeted Funds'!A:A,'Budgeted Funds'!D:D)","v":{"$error":"#VALUE!"}}]
[null,null,null,null,null,null,null,null,null,null,null,null,null,null,null,null,null,null,null,null,"","",{"$f":"_xlfn.XLOOKUP(VALUE(V1430),'Budgeted Funds'!A:A,'Budgeted Funds'!D:D)","v":{"$error":"#VALUE!"}}]
[null,null,null,null,null,null,null,null,null,null,null,null,null,null,null,null,null,null,null,null,"","",{"$f":"_xlfn.XLOOKUP(VALUE(V1431),'Budgeted Funds'!A:A,'Budgeted Funds'!D:D)","v":{"$error":"#VALUE!"}}]
[null,null,null,null,null,null,null,null,null,null,null,null,null,null,null,null,null,null,null,null,"","",{"$f":"_xlfn.XLOOKUP(VALUE(V1432),'Budgeted Funds'!A:A,'Budgeted Funds'!D:D)","v":{"$error":"#VALUE!"}}]
[null,null,null,null,null,null,null,null,null,null,null,null,null,null,null,null,null,null,null,null,"","",{"$f":"_xlfn.XLOOKUP(VALUE(V1433),'Budgeted Funds'!A:A,'Budgeted Funds'!D:D)","v":{"$error":"#VALUE!"}}]
[null,null,null,null,null,null,null,null,null,null,null,null,null,null,null,null,null,null,null,null,"","",{"$f":"_xlfn.XLOOKUP(VALUE(V1434),'Budgeted Funds'!A:A,'Budgeted Funds'!D:D)","v":{"$error":"#VALUE!"}}]
[null,null,null,null,null,null,null,null,null,null,null,null,null,null,null,null,null,null,null,null,"","",{"$f":"_xlfn.XLOOKUP(VALUE(V1435),'Budgeted Funds'!A:A,'Budgeted Funds'!D:D)","v":{"$error":"#VALUE!"}}]
[null,null,null,null,null,null,null,null,null,null,null,null,null,null,null,null,null,null,null,null,"","",{"$f":"_xlfn.XLOOKUP(VALUE(V1436),'Budgeted Funds'!A:A,'Budgeted Funds'!D:D)","v":{"$error":"#VALUE!"}}]
[null,null,null,null,null,null,null,null,null,null,null,null,null,null,null,null,null,null,null,null,"","",{"$f":"_xlfn.XLOOKUP(VALUE(V1437),'Budgeted Funds'!A:A,'Budgeted Funds'!D:D)","v":{"$error":"#VALUE!"}}]
[null,null,null,null,null,null,null,null,null,null,null,null,null,null,null,null,null,null,null,null,"","",{"$f":"_xlfn.XLOOKUP(VALUE(V1438),'Budgeted Funds'!A:A,'Budgeted Funds'!D:D)","v":{"$error":"#VALUE!"}}]
[null,null,null,null,null,null,null,null,null,null,null,null,null,null,null,null,null,null,null,null,"","",{"$f":"_xlfn.XLOOKUP(VALUE(V1439),'Budgeted Funds'!A:A,'Budgeted Funds'!D:D)","v":{"$error":"#VALUE!"}}]
[null,null,null,null,null,null,null,null,null,null,null,null,null,null,null,null,null,null,null,null,"","",{"$f":"_xlfn.XLOOKUP(VALUE(V1440),'Budgeted Funds'!A:A,'Budgeted Funds'!D:D)","v":{"$error":"#VALUE!"}}]
[null,null,null,null,null,null,null,null,null,null,null,null,null,null,null,null,null,null,null,null,"","",{"$f":"_xlfn.XLOOKUP(VALUE(V1441),'Budgeted Funds'!A:A,'Budgeted Funds'!D:D)","v":{"$error":"#VALUE!"}}]
[null,null,null,null,null,null,null,null,null,null,null,null,null,null,null,null,null,null,null,null,"","",{"$f":"_xlfn.XLOOKUP(VALUE(V1442),'Budgeted Funds'!A:A,'Budgeted Funds'!D:D)","v":{"$error":"#VALUE!"}}]
[null,null,null,null,null,null,null,null,null,null,null,null,null,null,null,null,null,null,null,null,"","",{"$f":"_xlfn.XLOOKUP(VALUE(V1443),'Budgeted Funds'!A:A,'Budgeted Funds'!D:D)","v":{"$error":"#VALUE!"}}]
[null,null,null,null,null,null,null,null,null,null,null,null,null,null,null,null,null,null,null,null,"","",{"$f":"_xlfn.XLOOKUP(VALUE(V1444),'Budgeted Funds'!A:A,'Budgeted Funds'!D:D)","v":{"$error":"#VALUE!"}}]
[null,null,null,null,null,null,null,null,null,null,null,null,null,null,null,null,null,null,null,null,"","",{"$f":"_xlfn.XLOOKUP(VALUE(V1445),'Budgeted Funds'!A:A,'Budgeted Funds'!D:D)","v":{"$error":"#VALUE!"}}]
[null,null,null,null,null,null,null,null,null,null,null,null,null,null,null,null,null,null,null,null,"","",{"$f":"_xlfn.XLOOKUP(VALUE(V1446),'Budgeted Funds'!A:A,'Budgeted Funds'!D:D)","v":{"$error":"#VALUE!"}}]
[null,null,null,null,null,null,null,null,null,null,null,null,null,null,null,null,null,null,null,null,"","",{"$f":"_xlfn.XLOOKUP(VALUE(V1447),'Budgeted Funds'!A:A,'Budgeted Funds'!D:D)","v":{"$error":"#VALUE!"}}]
[null,null,null,null,null,null,null,null,null,null,null,null,null,null,null,null,null,null,null,null,"","",{"$f":"_xlfn.XLOOKUP(VALUE(V1448),'Budgeted Funds'!A:A,'Budgeted Funds'!D:D)","v":{"$error":"#VALUE!"}}]
[null,null,null,null,null,null,null,null,null,null,null,null,null,null,null,null,null,null,null,null,"","",{"$f":"_xlfn.XLOOKUP(VALUE(V1449),'Budgeted Funds'!A:A,'Budgeted Funds'!D:D)","v":{"$error":"#VALUE!"}}]
[null,null,null,null,null,null,null,null,null,null,null,null,null,null,null,null,null,null,null,null,"","",{"$f":"_xlfn.XLOOKUP(VALUE(V1450),'Budgeted Funds'!A:A,'Budgeted Funds'!D:D)","v":{"$error":"#VALUE!"}}]
[null,null,null,null,null,null,null,null,null,null,null,null,null,null,null,null,null,null,null,null,"","",{"$f":"_xlfn.XLOOKUP(VALUE(V1451),'Budgeted Funds'!A:A,'Budgeted Funds'!D:D)","v":{"$error":"#VALUE!"}}]
[null,null,null,null,null,null,null,null,null,null,null,null,null,null,null,null,null,null,null,null,"","",{"$f":"_xlfn.XLOOKUP(VALUE(V1452),'Budgeted Funds'!A:A,'Budgeted Funds'!D:D)","v":{"$error":"#VALUE!"}}]
[null,null,null,null,null,null,null,null,null,null,null,null,null,null,null,null,null,null,null,null,"","",{"$f":"_xlfn.XLOOKUP(VALUE(V1453),'Budgeted Funds'!A:A,'Budgeted Funds'!D:D)","v":{"$error":"#VALUE!"}}]
[null,null,null,null,null,null,null,null,null,null,null,null,null,null,null,null,null,null,null,null,"","",{"$f":"_xlfn.XLOOKUP(VALUE(V1454),'Budgeted Funds'!A:A,'Budgeted Funds'!D:D)","v":{"$error":"#VALUE!"}}]
[null,null,null,null,null,null,null,null,null,null,null,null,null,null,null,null,null,null,null,null,"","",{"$f":"_xlfn.XLOOKUP(VALUE(V1455),'Budgeted Funds'!A:A,'Budgeted Funds'!D:D)","v":{"$error":"#VALUE!"}}]
[null,null,null,null,null,null,null,null,null,null,null,null,null,null,null,null,null,null,null,null,"","",{"$f":"_xlfn.XLOOKUP(VALUE(V1456),'Budgeted Funds'!A:A,'Budgeted Funds'!D:D)","v":{"$error":"#VALUE!"}}]
[null,null,null,null,null,null,null,null,null,null,null,null,null,null,null,null,null,null,null,null,"","",{"$f":"_xlfn.XLOOKUP(VALUE(V1457),'Budgeted Funds'!A:A,'Budgeted Funds'!D:D)","v":{"$error":"#VALUE!"}}]
[null,null,null,null,null,null,null,null,null,null,null,null,null,null,null,null,null,null,null,null,"","",{"$f":"_xlfn.XLOOKUP(VALUE(V1458),'Budgeted Funds'!A:A,'Budgeted Funds'!D:D)","v":{"$error":"#VALUE!"}}]
[null,null,null,null,null,null,null,null,null,null,null,null,null,null,null,null,null,null,null,null,"","",{"$f":"_xlfn.XLOOKUP(VALUE(V1459),'Budgeted Funds'!A:A,'Budgeted Funds'!D:D)","v":{"$error":"#VALUE!"}}]
[null,null,null,null,null,null,null,null,null,null,null,null,null,null,null,null,null,null,null,null,"","",{"$f":"_xlfn.XLOOKUP(VALUE(V1460),'Budgeted Funds'!A:A,'Budgeted Funds'!D:D)","v":{"$error":"#VALUE!"}}]
[null,null,null,null,null,null,null,null,null,null,null,null,null,null,null,null,null,null,null,null,"","",{"$f":"_xlfn.XLOOKUP(VALUE(V1461),'Budgeted Funds'!A:A,'Budgeted Funds'!D:D)","v":{"$error":"#VALUE!"}}]
[null,null,null,null,null,null,null,null,null,null,null,null,null,null,null,null,null,null,null,null,"","",{"$f":"_xlfn.XLOOKUP(VALUE(V1462),'Budgeted Funds'!A:A,'Budgeted Funds'!D:D)","v":{"$error":"#VALUE!"}}]
[null,null,null,null,null,null,null,null,null,null,null,null,null,null,null,null,null,null,null,null,"","",{"$f":"_xlfn.XLOOKUP(VALUE(V1463),'Budgeted Funds'!A:A,'Budgeted Funds'!D:D)","v":{"$error":"#VALUE!"}}]
[null,null,null,null,null,null,null,null,null,null,null,null,null,null,null,null,null,null,null,null,"","",{"$f":"_xlfn.XLOOKUP(VALUE(V1464),'Budgeted Funds'!A:A,'Budgeted Funds'!D:D)","v":{"$error":"#VALUE!"}}]
[null,null,null,null,null,null,null,null,null,null,null,null,null,null,null,null,null,null,null,null,"","",{"$f":"_xlfn.XLOOKUP(VALUE(V1465),'Budgeted Funds'!A:A,'Budgeted Funds'!D:D)","v":{"$error":"#VALUE!"}}]
[null,null,null,null,null,null,null,null,null,null,null,null,null,null,null,null,null,null,null,null,"","",{"$f":"_xlfn.XLOOKUP(VALUE(V1466),'Budgeted Funds'!A:A,'Budgeted Funds'!D:D)","v":{"$error":"#VALUE!"}}]
[null,null,null,null,null,null,null,null,null,null,null,null,null,null,null,null,null,null,null,null,"","",{"$f":"_xlfn.XLOOKUP(VALUE(V1467),'Budgeted Funds'!A:A,'Budgeted Funds'!D:D)","v":{"$error":"#VALUE!"}}]
[null,null,null,null,null,null,null,null,null,null,null,null,null,null,null,null,null,null,null,null,"","",{"$f":"_xlfn.XLOOKUP(VALUE(V1468),'Budgeted Funds'!A:A,'Budgeted Funds'!D:D)","v":{"$error":"#VALUE!"}}]
[null,null,null,null,null,null,null,null,null,null,null,null,null,null,null,null,null,null,null,null,"","",{"$f":"_xlfn.XLOOKUP(VALUE(V1469),'Budgeted Funds'!A:A,'Budgeted Funds'!D:D)","v":{"$error":"#VALUE!"}}]
[null,null,null,null,null,null,null,null,null,null,null,null,null,null,null,null,null,null,null,null,"","",{"$f":"_xlfn.XLOOKUP(VALUE(V1470),'Budgeted Funds'!A:A,'Budgeted Funds'!D:D)","v":{"$error":"#VALUE!"}}]
[null,null,null,null,null,null,null,null,null,null,null,null,null,null,null,null,null,null,null,null,"","",{"$f":"_xlfn.XLOOKUP(VALUE(V1471),'Budgeted Funds'!A:A,'Budgeted Funds'!D:D)","v":{"$error":"#VALUE!"}}]
[null,null,null,null,null,null,null,null,null,null,null,null,null,null,null,null,null,null,null,null,"","",{"$f":"_xlfn.XLOOKUP(VALUE(V1472),'Budgeted Funds'!A:A,'Budgeted Funds'!D:D)","v":{"$error":"#VALUE!"}}]
[null,null,null,null,null,null,null,null,null,null,null,null,null,null,null,null,null,null,null,null,"","",{"$f":"_xlfn.XLOOKUP(VALUE(V1473),'Budgeted Funds'!A:A,'Budgeted Funds'!D:D)","v":{"$error":"#VALUE!"}}]
[null,null,null,null,null,null,null,null,null,null,null,null,null,null,null,null,null,null,null,null,"","",{"$f":"_xlfn.XLOOKUP(VALUE(V1474),'Budgeted Funds'!A:A,'Budgeted Funds'!D:D)","v":{"$error":"#VALUE!"}}]
[null,null,null,null,null,null,null,null,null,null,null,null,null,null,null,null,null,null,null,null,"","",{"$f":"_xlfn.XLOOKUP(VALUE(V1475),'Budgeted Funds'!A:A,'Budgeted Funds'!D:D)","v":{"$error":"#VALUE!"}}]
[null,null,null,null,null,null,null,null,null,null,null,null,null,null,null,null,null,null,null,null,{"$f":"MID(B1476,4,3)","v":""},{"$f":"MID(B1476,7,4)","v":""},{"$f":"_xlfn.XLOOKUP(VALUE(V1476),'Budgeted Funds'!A:A,'Budgeted Funds'!D:D)","v":{"$error":"#VALUE!"}}]
[null,null,null,null,null,null,null,null,null,null,null,null,null,null,null,null,null,null,null,null,"","",{"$f":"_xlfn.XLOOKUP(VALUE(V1477),'Budgeted Funds'!A:A,'Budgeted Funds'!D:D)","v":{"$error":"#VALUE!"}}]
[null,null,null,null,null,null,null,null,null,null,null,null,null,null,null,null,null,null,null,null,"","",{"$f":"_xlfn.XLOOKUP(VALUE(V1478),'Budgeted Funds'!A:A,'Budgeted Funds'!D:D)","v":{"$error":"#VALUE!"}}]
[null,null,null,null,null,null,null,null,null,null,null,null,null,null,null,null,null,null,null,null,"","",{"$f":"_xlfn.XLOOKUP(VALUE(V1479),'Budgeted Funds'!A:A,'Budgeted Funds'!D:D)","v":{"$error":"#VALUE!"}}]
[null,null,null,null,null,null,null,null,null,null,null,null,null,null,null,null,null,null,null,null,"","",{"$f":"_xlfn.XLOOKUP(VALUE(V1480),'Budgeted Funds'!A:A,'Budgeted Funds'!D:D)","v":{"$error":"#VALUE!"}}]
[null,null,null,null,null,null,null,null,null,null,null,null,null,null,null,null,null,null,null,null,"","",{"$f":"_xlfn.XLOOKUP(VALUE(V1481),'Budgeted Funds'!A:A,'Budgeted Funds'!D:D)","v":{"$error":"#VALUE!"}}]
[null,null,null,null,null,null,null,null,null,null,null,null,null,null,null,null,null,null,null,null,"","",{"$f":"_xlfn.XLOOKUP(VALUE(V1482),'Budgeted Funds'!A:A,'Budgeted Funds'!D:D)","v":{"$error":"#VALUE!"}}]
[null,null,null,null,null,null,null,null,null,null,null,null,null,null,null,null,null,null,null,null,"","",{"$f":"_xlfn.XLOOKUP(VALUE(V1483),'Budgeted Funds'!A:A,'Budgeted Funds'!D:D)","v":{"$error":"#VALUE!"}}]
[null,null,null,null,null,null,null,null,null,null,null,null,null,null,null,null,null,null,null,null,"","",{"$f":"_xlfn.XLOOKUP(VALUE(V1484),'Budgeted Funds'!A:A,'Budgeted Funds'!D:D)","v":{"$error":"#VALUE!"}}]
[null,null,null,null,null,null,null,null,null,null,null,null,null,null,null,null,null,null,null,null,"","",{"$f":"_xlfn.XLOOKUP(VALUE(V1485),'Budgeted Funds'!A:A,'Budgeted Funds'!D:D)","v":{"$error":"#VALUE!"}}]
[null,null,null,null,null,null,null,null,null,null,null,null,null,null,null,null,null,null,null,null,"","",{"$f":"_xlfn.XLOOKUP(VALUE(V1486),'Budgeted Funds'!A:A,'Budgeted Funds'!D:D)","v":{"$error":"#VALUE!"}}]
[null,null,null,null,null,null,null,null,null,null,null,null,null,null,null,null,null,null,null,null,"","",{"$f":"_xlfn.XLOOKUP(VALUE(V1487),'Budgeted Funds'!A:A,'Budgeted Funds'!D:D)","v":{"$error":"#VALUE!"}}]
[null,null,null,null,null,null,null,null,null,null,null,null,null,null,null,null,null,null,null,null,"","",{"$f":"_xlfn.XLOOKUP(VALUE(V1488),'Budgeted Funds'!A:A,'Budgeted Funds'!D:D)","v":{"$error":"#VALUE!"}}]

{"sheet":"Data FCs CAR","index":19,"n_rows":189,"n_cols":7,"rows_kept":189,"cut":false,"hidden":true,"merged":[]}
["Dpt","Cost Center","Name","Description"]
[102,1028000001,"102CAR0001","Co Comm Pct 1 CAR-GF",null,"FY 23","pull from FC Master, filter on CAR"]
[108,1088000001,"108CAR0001","Tax Collector CAR-TaxAdm GF",null,"fy 24","no change"]
[109,1098000001,"109CAR0001","PBO CAR-TaxAdm GF"]
[110,1108000001,"110GenAdminCAR","General Admin CAR"]
[111,1118000001,"HRMD CAR-GenAdm GF","HRMD CAR-GenAdm GF"]
[112,1128000001,"112CARGenAdm0001","TCIS CAR-GenAdm GF"]
[112,1128010001,"112CARCrmJs0001","TCIS CAR-CrmJs GF"]
[112,1128020001,"112CARRdBg0001","TCIS CAR-RdBg GF"]
[112,1128030001,"112CARLE0001","TCIS CAR-LE GF"]
[114,1148000001,"114CARFacMgmt0001","FMD CAR-FacMgmt GF"]
[114,1148010001,"114CARPbcHlh0001","FMD CAR-PbcHlh GF"]
[114,1148020001,"114CARCrmJs0001","FMD CAR-CrmJs GF"]
[114,1148030001,"114CARLE0001","FMD CAR-LE GF"]
[114,1148040001,"114CARHsgBkg0001","FMD CAR-HsgBkg GF"]
[114,1148050001,"114CARJuvSv0001","FMD CAR-JuvSv GF"]
[114,1148060001,"114CARParksRec0001","FMD CAR-ParksRec GF"]
[114,1148070001,"114CAREconDev0001","FMD CAR-EconDev GF"]
[114,1148080001,"114CARHumSv0001","FMD CAR-HumSv GF"]
[114,1148090001,"114CAR-CivJust0001","FMD CAR - Civil Justice GF"]
[115,1158000001,"115CARPurchasing0001","Purchasing CAR-Purchasing GF"]
[119,1198000001,"119CAR0001","CA CAR-CivJs GF"]
[119,1198010001,"119CAR0001","CA CAR-CrmJs GF"]
[120,1208000001,"120CAR0001","Co Clerk CAR-GenAdm GF"]
[120,1208010001,"120CAR0001","Co Clerk CAR-ElnAdm GF"]
[121,1218000001,"121CAR0001","Dist Clerk CAR-CivJs GF"]
[121,1218010001,"121CAR0001","Dist Clerk CAR-CrmJs GF"]
[122,1228000001,"122CAR0001","Civil Courts CAR-CivJs GF"]
[123,1238000001,"123CAR0001","DA CAR-CrmJs GF"]
[124,1248000001,"124CAR0001","Criminal Courts CAR-CrmJs GF"]
[127,1278000001,"127CAR0001","JP2 CAR-CivJs GF"]
[127,1278010001,"127CAR0001","JP2 CAR-CrmJs GF"]
[128,1288000001,"128CAR0001","JP3 CAR-CrmJs GF"]
[129,1298000001,"129CARCrmJs0001","JP4 CAR-Criminal Justice-GF"]
[130,1308000001,"130CAR0001","JP5 CAR-CivJs GF"]
[131,1318000001,"131CAR0001","Constable1 CAR-LE GF"]
[132,1328000001,"132CAR0001","Constable2 CAR-LE GF"]
[133,1338000001,"133CAR0001","Constable 3 CAR-LE GF"]
[134,1348000001,"134CAR0001","Constable 4 CAR-LE GF"]
[135,1358000001,"135CAR0001","Constable 5 CAR-LE GF"]
[137,1378000001,"137CARHshBkg0001","TCSO CAR-HsgBkg GF"]
[137,1378010001,"137CARLE0001","TCSO CAR-LE GF"]
[138,1388000001,"138CARLE0001","ME CAR-LE GF"]
[139,1398000001,"139CARSvsn0001","CSCD CAR-Svsn GF"]
[140,1408000001,"140CAREducation0001","TCCES CAR-Education-GF"]
[145,1458000001,"145CARJucSv0001","JvP CAR-JuvSvs GF"]
[147,1478000001,"147CAREmrgMgmt0001","Emrg Svs CAR-EmrgMgmt GF"]
[149,1498000001,"149CARRdBg0001","TNR CAR- Roads & Bridges GF"]
[149,1498010001,"149CARDrng0001","TNR CAR-Drng GF"]
[149,1498020001,"149CARSanitation0001","TNR CAR-Sanitation GF"]
[149,1498030001,"149CARParksRec0001","TNR CAR- Parks & Rec GF"]
[149,1498040001,"149CARGenAdm0001","TNR CAR-GenAdm GF"]
[149,1498050001,"149CARCrmJs0001","TNR CAR-CrmJs GF"]
[149,1498060001,"149CARLE0001","TNR CAR-LE GF"]
[149,1498070001,"149CARHsgBkg0001","TNR CAR-HsgBkg GF"]
[149,1498080001,"149CARHumSv0001","TNR CAR-HumSv GF"]
[155,1558000001,"155CARLE0001","JsPln-CAR-LE GF"]
[157,1578000001,"157CARGenAdm0001","CRS CAR-GenAdm GF"]
[158,1588010001,"158CAR0001","HHS CAR-HumanSrvcs GF"]
[159,1598000001,"159CAR0DevRegln001","EMS CAR-DevRegIn GF"]
[190,1908000001,"190-101CARGenAdm0001","Ctl Computer CAR-County Judge-GenAdm"]
[190,1908010001,"190-101CARJuvSvs0001","Ctl Computer CAR-County Judge-JuvSvs"]
[190,1908020001,"190-102CARGenAdm0001","Ctl Computer CAR-CC Pct 1-GenAdm"]
[190,1908030001,"190-103CARGenAdm0001","Ctl Computer CAR-CC Pct 2-GenAdm"]
[190,1908040001,"190-104CARGenAdm0001","Ctl Computer CAR-CC Pct 3-GenAdm"]
[190,1908050001,"190-105CARGenAdm0001","Ctl Computer CAR-CC Pct 4-GenAdm"]
[190,1908060001,"190-106CARFinAdm0001","Ctl Computer CAR-County Auditor-FinAdm"]
[190,1908070001,"190-107CARFinAdm0001","Ctl Computer CAR-County Treasurer-FinAdm"]
[190,1908080001,"190-108CARTaxAdm0001","Ctl Computer CAR-Tax Collector-TaxAdm"]
[190,1908090001,"190-108CARCrmJs0001","Ctl Computer CAR-Tax Collector-CrmJs"]
[190,1908100001,"190-108CARElnAdm0001","Ctl Computer CAR-Tax Collector-ElnAdm"]
[190,1908110001,"190-109CARFinAdm0001","Ctl Computer CAR-PBO-FinAdm"]
[190,1908120001,"190-110CARGenAdm0001","Ctl Computer CAR-General Adm-GenAdm"]
[190,1908130001,"190-110CARHlh0001","Ctl Computer CAR-General Adm-Hlhcare"]
[190,1908140001,"190-110CAREcon0001","Ctl Computer CAR-General Adm-EconDev"]
[190,1908150001,"190-111CARGenAdm0001","Ctl Computer CAR-HRMD-GenAdm"]
[190,1908160001,"190-112CARGenAdm0001","Ctl Computer CAR-ITS-GenAdm"]
[190,1908170001,"190-113CAREcon0001","Ctl Computer CAR-EXPO Center-EconDev"]
[190,1908180001,"190-114CARFac0001","Ctl Computer CAR-Facilities Mgmt-FacMgmt"]
[190,1908190001,"190-114CAREcon0001","Ctl Computer CAR-Facilities Mgmt-EconDev"]
[190,1908200001,"190-115CARFinAdm0001","Ctl Computer CAR-Purchasing-FinAdm"]
[190,1908210001,"190-116CARHuman0001","Ctl Computer CAR-Veterans Svs-HumanSvs"]
[190,1908220001,"190-117CARCulEdu0001","Ctl Computer CAR-Historical Comm-Cul&Edu"]
[190,1908230001,"190-118CARHuman0001","Ctl Computer CAR-Agr Ext Serv-HumanSvs"]
[190,1908240001,"190-119CARCivJs0001","Ctl Computer CAR-County Attorney-CivJs"]
[190,1908250001,"190-119CARCrmJs0001","Ctl Computer CAR-County Attorney-CrmJs"]
[190,1908260001,"190-120CARGenAdm0001","Ctl Computer CAR-County Clerk-GenAdm"]
[190,1908270001,"190-120CARElnAdm0001","Ctl Computer CAR-County Clerk-ElnAdm"]
[190,1908280001,"190-120CARCivJs0001","Ctl Computer CAR-County Clerk-CivJs"]
[190,1908290001,"190-120CARCrmJs0001","Ctl Computer CAR-County Clerk-CrmJs"]
[190,1908300001,"190-121CARCivJs0001","Ctl Computer CAR-District Clerk-CivJs"]
[190,1908310001,"190-121CARCrmJs0001","Ctl Computer CAR-District Clerk-CrmJs"]
[190,1908320001,"190-122CARCivJs0001","Ctl Computer CAR-Civil Courts-CivJs"]
[190,1908330001,"190-123CARCrmJs0001","Ctl Computer CAR-District Attorney-CrmJs"]
[190,1908340001,"190-123CARCivJs0001","Ctl Computer CAR-District Attorney-CivJs"]
[190,1908350001,"190-124CARCrmJs0001","Ctl Computer CAR-Criminal Courts-CrmJs"]
[190,1908360001,"190-125CARCivJs0001","Ctl Computer CAR-Probate Court-CivJs"]
[190,1908370001,"190-126CARCivJs0001","Ctl Computer CAR-JP 1-CivJs"]
[190,1908380001,"190-126CARCrmJs0001","Ctl Computer CAR-JP 1-CrmJs"]
[190,1908390001,"190-127CARCivJs0001","Ctl Computer CAR-JP 2-CivJs"]
[190,1908400001,"190-127CARCrmJs0001","Ctl Computer CAR-JP 2-CrmJs"]
[190,1908410001,"190-128CARCivJs0001","Ctl Computer CAR-JP 3-CivJs"]
[190,1908420001,"190-128CARCrmJs0001","Ctl Computer CAR-JP 3-CrmJs"]
[190,1908430001,"190-129CARCivJs0001","Ctl Computer CAR-JP 4-CivJs"]
[190,1908440001,"190-129CARCrmJs0001","Ctl Computer CAR-JP 4-CrmJs"]
[190,1908450001,"190-130CARCivJs0001","Ctl Computer CAR-JP 5-CivJs"]
[190,1908460001,"190-130CARCrmJs0001","Ctl Computer CAR-JP 5-CrmJs"]
[190,1908470001,"190-131CARLE0001","Ctl Computer CAR-Constable 1-LE"]
[190,1908480001,"190-132CARLE0001","Ctl Computer CAR-Constable 2-LE"]
[190,1908490001,"190-133CARLE0001","Ctl Computer CAR-Constable 3-LE"]
[190,1908500001,"190-134CARLE0001","Ctl Computer CAR-Constable 4-LE"]
[190,1908510001,"190-135CARLE0001","Ctl Computer CAR-Constable 5-LE"]
[190,1908520001,"190-136CARCivJs0001","Ctl Computer CAR-Dispute Resol Ctr-CivJs"]
[190,1908530001,"190-137CARLE0001","Ctl Computer CAR-Sheriff-LE"]
[190,1908540001,"190-137CARHsgBkg0001","Ctl Computer CAR-Sheriff-HsgBkg"]
[190,1908550001,"190-138CARLE0001","Ctl Computer CAR-Medical Examiner-LE"]
[190,1908560001,"190-139CARSvsn0001","Ctl Computer CAR-CSCD-Svsn"]
[190,1908570001,"190-140CARSvsn0001","Ctl Computer CAR-TCCES-Svsn"]
[190,1908580001,"190-142CARSvsn0001","Ctl Computer CAR-Pretrial Services-Svsn"]
[190,1908590001,"190-142CARHsgBkg0001","Ctl Computer CAR-Pretrial Svs-HsgBkg"]
[190,1908600001,"190-143CARJuvSvs0001","Ctl Computer CAR-Juv Public Dfdr-JuvSvs"]
[190,1908610001,"190-145CARJuvSvs0001","Ctl Computer CAR-Juv Probation-JuvSvs"]
[190,1908620001,"190-147CARHlh0001","Ctl Computer CAR-Emergency Svs-Hlhcare"]
[190,1908630001,"190-147CAREmrg0001","Ctl Computer CAR-Emergency Svs-EmrgMgmt"]
[190,1908640001,"190-149CARRdBg0001","Ctl Computer CAR-TNR-RdBg"]
[190,1908650001,"190-149CARParks0001","Ctl Computer CAR-TNR-Parks&Rec"]
[190,1908660001,"190-149CARConser0001","Ctl Computer CAR-TNR-ConservNR"]
[190,1908670001,"190-149CARFac0001","Ctl Computer CAR-TNR-FacMgmt"]
[190,1908680001,"190-149CARDrng0001","Ctl Computer CAR-TNR-Drng"]
[190,1908690001,"190-149CARSntn0001","Ctl Computer CAR-TNR-Sanitation"]
[190,1908700001,"190-149CARDevReg0001","Ctl Computer CAR-TNR-DevRegIn"]
[190,1908710001,"190-149CARHuman0001","Ctl Computer CAR-TNR-HumanSvs"]
[190,1908720001,"190-154CARGenAdm0001","Ctl Computer CAR-Civil Service-GenAdm"]
[190,1908730001,"190-155CARCrmJs0001","Ctl Computer CAR-CJP-CrmJs"]
[190,1908740001,"190-155CARHlh0001","Ctl Computer CAR-CJP-Hlhcare"]
[190,1908750001,"190-155CAREmrg0001","Ctl Computer CAR-CJP-EmrgMgmt"]
[190,1908760001,"190-155CARSvsn0001","Ctl Computer CAR-CJP-Svsn"]
[190,1908770001,"190-155CARJuvSvs0001","Ctl Computer CAR-CJP-JuvSvs"]
[190,1908780001,"190-155CARLE0001","Ctl Computer CAR-CJP-LE"]
[190,1908790001,"190-157CARGenAdm0001","Ctl Computer CAR-CRS-GenAdm"]
[190,1908800001,"190-157CARCivJs0001","Ctl Computer CAR-CRS-CivJs"]
[190,1908810001,"190-157CARCrmJs0001","Ctl Computer CAR-CRS-CrmJs"]
[190,1908820001,"190-158CARHlh0001","Ctl Computer CAR-HHS-Hlhcare"]
[190,1908830001,"190-158CARPbcHlh0001","Ctl Computer CAR-HHS-PbcHlh"]
[190,1908840001,"190-158CARHuman0001","Ctl Computer CAR-HHS-HumanSvs"]
[190,1908850001,"190-158CARJuvSvs0001","Ctl Computer CAR-HHS-JuvSvs"]
[190,1908860001,"190-159CARHlh0001","Ctl Computer CAR-EMS-Hlhcare"]
[190,1908870001,"190-193CARCivJs0001","Ctl Computer CAR-Legally Mtd Fees-CivJs"]
[190,1908880001,"190-194CARCrmJs0001","Ctl Computer CAR-Legally Mtd Fees-CrmJs"]
[190,1908890001,"190-144CARPD0001","Ctl Computer CAR-Public Defender-CrimJs"]
[192,1928000001,"192CAR-RdBg0001","Ctl Fleet CAR-RdBg GF"]
[192,1928010001,"192CAR-GenAdm0001","Ctl Fleet CAR-GenAdm GF"]
[192,1928030001,"192CAR-FacMgmt0001","Ctl Fleet CAR-FacMgmt GF"]
[192,1928050001,"192CAR-CrmJs0001","Ctl Fleet CAR-CrmJs GF"]
[192,1928070001,"192CAR-JsSysJuvS0001","Ctl Fleet CAR-JsSys Juvenile Services GF"]
[192,1928080001,"192CAR-LE0001","Ctl Fleet CAR-LE GF"]
[192,1928100001,"192CAR-HsgBkg0001","Ctl Fleet CAR-HsgBkg GF"]
[192,1928110001,"192CAR-CrcRehabS0001","Ctl Fleet CAR-CrcRehab Supervision GF"]
[192,1928150001,"192CAR-HHSHumSvc0001","Ctl Fleet CAR-HHS Human Services GF"]
[192,1928200001,"192CAR-Pk/Rec0001","Ctl Fleet CAR-Pk/Recreation GF"]
[890,8908000001,"890CAR-GenAdm0001","Ctl Computers CAR-GenAdm GF"]
[890,8908010001,"890CAR-FinAdm0001","Ctl Computers CAR-FinAdm GF"]
[890,8908020001,"890CAR-TaxAdm0001","Ctl Computers CAR-TaxAdm GF"]
[890,8908030001,"890CAR-FacMgmt0001","Ctl Computers CAR-FacMgmt GF"]
[890,8908040001,"890CAR-ElnAdm0001","Ctl Computers CAR-ElnAdm GF"]
[890,8908050001,"890CAR-CrmJs0001","Ctl Computers CAR-CrmJs GF"]
[890,8908060001,"890CAR-CivJs0001","Ctl Computers CAR-CivJs GF"]
[890,8908070001,"890CAR-JuvSvs0001","Ctl Computers CAR-JuvSvs GF"]
[890,8908080001,"890CAR-LE0001","Ctl Computers CAR-LE GF"]
[890,8908090001,"890CAR-EmrgMgmt0001","Ctl Computers CAR-EmrgMgmt GF"]
[890,8908100001,"890CAR-HsgBkg0001","Ctl Computers CAR-HsgBkg GF"]
[890,8908110001,"890CAR-Svsn0001","Ctl Computers CAR-Svsn GF"]
[890,8908120001,"890CAR-DevRegln0001","Ctl Computers CAR-DevRegIn GF"]
[890,8908130001,"890CAR-Hlhcare0001","Ctl Computers CAR-Hlhcare GF"]
[890,8908140001,"890CAR-PbcHlh0001","Ctl Computers CAR-PbcHlh GF"]
[890,8908150001,"890CAR-HumanSvs0001","Ctl Computers CAR-HumanSvs GF"]
[890,8908160001,"890CAR-EconDev0001","Ctl Computers CAR-EconDev GF"]
[890,8908170001,"890CAR-Drainage0001","Ctl Computers CAR-Drainage GF"]
[890,8908180001,"890CAR-ConserNR0001","Ctl Computers CAR-Conser & Natural Rsrc"]
[890,8908190001,"890CAR-Sanitation000","Ctl Computers CAR-Sanitation GF"]
[890,8908200001,"890CAR-ParksRec0001","Ctl Computers CAR-ParksRec GF"]
[890,8908230001,"890CAR-DevReg0001","Ctl Computers CAR-DevReg GF"]
[892,8928000001,"892CAR-GenAdm0001","Ctl Fleet CAR-GenAdm GF"]
[892,8928030001,"892CAR-FacMgmt0001","Ctl Fleet CAR-FacMgmt GF"]
[892,8928050001,"892CAR-CrmJs0001","Ctl Fleet CAR-CrmJs GF"]
[892,8928080001,"892CAR-LE0001","Ctl Fleet CAR-LE GF"]
[892,8928100001,"892CAR-HsgBkg0001","Ctl Fleet CAR-HsgBkg GF"]
[892,8928200001,"892CAR-ParksRec0001","Ctl Fleet CAR-ParksRec GF"]
[892,8928210001,"892CAR-RdBg0001","Ctl Fleet CAR-RdBg GF"]

{"sheet":"Data 190s FCtrs","index":20,"n_rows":181,"n_cols":5,"rows_kept":181,"cut":false,"hidden":true,"merged":[]}
["Cost Center","Name","Description",null,"Updated 1/31/2023"]
[1901100000,"190-101GenAdm0000","Ctl Computer-County Judge-GenAdm",null,"pull from FC master, filtered on 190"]
[1901110000,"190-101JuvSvs0000","Ctl Computer-County Judge-JuvSvs"]
[1901120000,"190-102GenAdm0000","Ctl Computer-CC Pct 1-GenAdm"]
[1901130000,"190-103GenAdm0000","Ctl Computer-CC Pct 2-GenAdm"]
[1901140000,"190-104GenAdm0000","Ctl Computer-CC Pct 3-GenAdm"]
[1901150000,"190-105GenAdm0000","Ctl Computer-CC Pct 4-GenAdm"]
[1901160000,"190-106FinAdm0000","Ctl Computer-County Auditor-FinAdm"]
[1901170000,"190-107FinAdm0000","Ctl Computer-County Treasurer-FinAdm"]
[1901180000,"190-108TaxAdm0000","Ctl Computer-Tax Collector-TaxAdm"]
[1901190000,"190-108CrmJs0000","Ctl Computer-Tax Collector-CrmJs"]
[1901200000,"190-108ElnAdm0000","Ctl Computer-Tax Collector-ElnAdm"]
[1901210000,"190-109FinAdm0000","Ctl Computer-Planning And Budget-FinAdm"]
[1901220000,"190-110GenAdm0000","Ctl Computer-General Adm-GenAdm"]
[1901230000,"190-110Hlhcare0000","Ctl Computer-General Adm-Hlhcare"]
[1901240000,"190-110EconDev0000","Ctl Computer-General Adm-EconDev"]
[1901250000,"190-111GenAdm0000","Ctl Computer-Human Resource Mgmt-GenAdm"]
[1901260000,"190-112GenAdm0000","Ctl Computer-ITS-GenAdm"]
[1901270000,"190-113EconDev0000","Ctl Computer-EXPO Center-EconDev"]
[1901280000,"190-114FacMgmt0000","Ctl Computer-Facilities Mgmt-FacMgmt"]
[1901290000,"190-114EconDev0000","Ctl Computer-Facilities Mgmt-EconDev"]
[1901300000,"190-115FinAdm0000","Ctl Computer-Purchasing-FinAdm"]
[1901310000,"190-116HumanSvs00000","Ctl Computer-Veterans Services-HumanSvs"]
[1901320000,"190-117Cul&Edu0000","Ctl Computer-Historical Comm-Cul&Edu"]
[1901330000,"190-118HumanSvs0000","Ctl Computer-Agr Ext Serv-HumanSvs"]
[1901340000,"190-119CivJs0000","Ctl Computer-County Attorney-CivJs"]
[1901350000,"190-119CrmJs0000","Ctl Computer-County Attorney-CrmJs"]
[1901360000,"190-120GenAdm0000","Ctl Computer-County Clerk-GenAdm"]
[1901370000,"190-120ElnAdm0000","Ctl Computer-County Clerk-ElnAdm"]
[1901380000,"190-120CivJs0000","Ctl Computer-County Clerk-CivJs"]
[1901390000,"190-120CrmJs0000","Ctl Computer-County Clerk-CrmJs"]
[1901400000,"190-121CivJs00000","Ctl Computer-District Clerk-CivJs"]
[1901410000,"190-121CrmJs0000","Ctl Computer-District Clerk-CrmJs"]
[1901420000,"190-122CivJs0000","Ctl Computer-Civil Courts-CivJs"]
[1901430000,"190-123CrmJs0000","Ctl Computer-District Attorney-CrmJs"]
[1901440000,"190-123CivJs0000","Ctl Computer-District Attorney-CivJs"]
[1901450000,"190-124CrmJs0000","Ctl Computer-Criminal Courts-CrmJs"]
[1901460000,"190-125CivJs0000","Ctl Computer-Probate Court-CivJs"]
[1901470000,"190-126CivJs0000","Ctl Computer-Justice Of Peace 1-CivJs"]
[1901480000,"190-126CrmJs0000","Ctl Computer-Justice Of Peace 1-CrmJs"]
[1901490000,"190-127CivJs0000","Ctl Computer-Justice Of Peace 2-CivJs"]
[1901500000,"190-127CrmJs0000","Ctl Computer-Justice Of Peace 2-CrmJs"]
[1901510000,"190-128CivJs0000","Ctl Computer-Justice Of Peace 3-CivJs"]
[1901520000,"190-128CrmJs0000","Ctl Computer-Justice Of Peace 3-CrmJs"]
[1901530000,"190-129CivJs0000","Ctl Computer-Justice Of Peace 4-CivJs"]
[1901540000,"190-129CrmJs0000","Ctl Computer-Justice Of Peace 4-CrmJs"]
[1901550000,"190-130CivJs0000","Ctl Computer-Justice Of Peace 5-CivJs"]
[1901560000,"190-130CrmJs0000","Ctl Computer-Justice Of Peace 5-CrmJs"]
[1901570000,"190-131LE0000","Ctl Computer-Constable 1-LE"]
[1901580000,"190-132LE0000","Ctl Computer-Constable 2-LE"]
[1901590000,"190-133LE0000","Ctl Computer-Constable 3-LE"]
[1901600000,"190-134LE0000","Ctl Computer-Constable 4-LE"]
[1901610000,"190-135LE0000","Ctl Computer-Constable 5-LE"]
[1901620000,"190-136CivJs0000","Ctl Computer-Dispute Resol Ctr-CivJs"]
[1901630000,"190-137LE0000","Ctl Computer-Sheriff-LE"]
[1901640000,"190-137HsgBkg0000","Ctl Computer-Sheriff-HsgBkg"]
[1901650000,"190-138LE0000","Ctl Computer-Medical Examiner-LE"]
[1901660000,"190-139Svsn0000","Ctl Computer-CSCD-Svsn"]
[1901670000,"190-140Svsn0000","Ctl Computer-TCCES-Svsn"]
[1901680000,"190-142Svsn0000","Ctl Computer-Pretrial Services-Svsn"]
[1901690000,"190-142HsgBkg0000","Ctl Computer-Pretrial Services-HsgBkg"]
[1901700000,"190-143JuvSvs0000","Ctl Computer-Juvenile Public Dfdr-JuvSvs"]
[1901710000,"190-145JuvSvs0000","Ctl Computer-Juvenile Probation-JuvSvs"]
[1901720000,"190-147Hlhcare0000","Ctl Computer-Emergency Services-Hlhcare"]
[1901730000,"190-147EmrgMgmt0000","Ctl Computer-Emergency Services-EmrgMgmt"]
[1901740000,"190-149RdBg0000","Ctl Computer-TNR-RdBg"]
[1901750000,"190-149Parks&Rec0000","Ctl Computer-TNR-Parks&Rec"]
[1901760000,"190-149ConservNR0000","Ctl Computer-TNR-ConservNR"]
[1901770000,"190-149FacMgmt0000","Ctl Computer-TNR-FacMgmt"]
[1901780000,"190-149Drng0000","Ctl Computer-TNR-Drng"]
[1901790000,"190-149Sanitation000","Ctl Computer-TNR-Sanitation"]
[1901800000,"190-149DevRegIn0000","Ctl Computer-TNR-DevRegIn"]
[1901810000,"190-149HumanSvs0000","Ctl Computer-TNR-HumanSvs"]
[1901820000,"190-154GenAdm0000","Ctl Computer-Civil Service Cmn-GenAdm"]
[1901830000,"190-155CrmJs0000","Ctl Computer-CJP-CrmJs"]
[1901840000,"190-155Hlhcare0000","Ctl Computer-CJP-Hlhcare"]
[1901850000,"190-155EmrgMgmt0000","Ctl Computer-CJP-EmrgMgmt"]
[1901860000,"190-155Svsn0000","Ctl Computer-CJP-Svsn"]
[1901870000,"190-155JuvSvs0000","Ctl Computer-CJP-JuvSvs"]
[1901880000,"190-155LE0000","Ctl Computer-CJP-LE"]
[1901890000,"190-157GenAdm0000","Ctl Computer-CRS-GenAdm"]
[1901900000,"190-157CivJs0000","Ctl Computer-CRS-CivJs"]
[1901910000,"190-157CrmJs0000","Ctl Computer-CRS-CrmJs"]
[1901920000,"190-158Hlhcare0000","Ctl Computer-HHS-Hlhcare"]
[1901930000,"190-158PbcHlh0000","Ctl Computer-HHS-PbcHlh"]
[1901940000,"190-158HumanSvs0000","Ctl Computer-HHS-HumanSvs"]
[1901950000,"190-158JuvSvs0000","Ctl Computer-HHS-JuvSvs"]
[1901960000,"190-159Hlhcare0000","Ctl Computer-EMS-Hlhcare"]
[1901970000,"190-193CivJs0000","Ctl Computer-Legally Mtd Fees-CivJs"]
[1901980000,"190-194CrmJs0000","Ctl Computer-Legally Mtd Fees-CrmJs"]
[1901990000,"190-144PD0000","Ctl Computer-Pub Defender's Ofc-CrimJs"]
[1908000001,"190-101CARGenAdm0001","Ctl Computer CAR-County Judge-GenAdm"]
[1908010001,"190-101CARJuvSvs0001","Ctl Computer CAR-County Judge-JuvSvs"]
[1908020001,"190-102CARGenAdm0001","Ctl Computer CAR-CC Pct 1-GenAdm"]
[1908030001,"190-103CARGenAdm0001","Ctl Computer CAR-CC Pct 2-GenAdm"]
[1908040001,"190-104CARGenAdm0001","Ctl Computer CAR-CC Pct 3-GenAdm"]
[1908050001,"190-105CARGenAdm0001","Ctl Computer CAR-CC Pct 4-GenAdm"]
[1908060001,"190-106CARFinAdm0001","Ctl Computer CAR-County Auditor-FinAdm"]
[1908070001,"190-107CARFinAdm0001","Ctl Computer CAR-County Treasurer-FinAdm"]
[1908080001,"190-108CARTaxAdm0001","Ctl Computer CAR-Tax Collector-TaxAdm"]
[1908090001,"190-108CARCrmJs0001","Ctl Computer CAR-Tax Collector-CrmJs"]
[1908100001,"190-108CARElnAdm0001","Ctl Computer CAR-Tax Collector-ElnAdm"]
[1908110001,"190-109CARFinAdm0001","Ctl Computer CAR-PBO-FinAdm"]
[1908120001,"190-110CARGenAdm0001","Ctl Computer CAR-General Adm-GenAdm"]
[1908130001,"190-110CARHlh0001","Ctl Computer CAR-General Adm-Hlhcare"]
[1908140001,"190-110CAREcon0001","Ctl Computer CAR-General Adm-EconDev"]
[1908150001,"190-111CARGenAdm0001","Ctl Computer CAR-HRMD-GenAdm"]
[1908160001,"190-112CARGenAdm0001","Ctl Computer CAR-ITS-GenAdm"]
[1908170001,"190-113CAREcon0001","Ctl Computer CAR-EXPO Center-EconDev"]
[1908180001,"190-114CARFac0001","Ctl Computer CAR-Facilities Mgmt-FacMgmt"]
[1908190001,"190-114CAREcon0001","Ctl Computer CAR-Facilities Mgmt-EconDev"]
[1908200001,"190-115CARFinAdm0001","Ctl Computer CAR-Purchasing-FinAdm"]
[1908210001,"190-116CARHuman0001","Ctl Computer CAR-Veterans Svs-HumanSvs"]
[1908220001,"190-117CARCulEdu0001","Ctl Computer CAR-Historical Comm-Cul&Edu"]
[1908230001,"190-118CARHuman0001","Ctl Computer CAR-Agr Ext Serv-HumanSvs"]
[1908240001,"190-119CARCivJs0001","Ctl Computer CAR-County Attorney-CivJs"]
[1908250001,"190-119CARCrmJs0001","Ctl Computer CAR-County Attorney-CrmJs"]
[1908260001,"190-120CARGenAdm0001","Ctl Computer CAR-County Clerk-GenAdm"]
[1908270001,"190-120CARElnAdm0001","Ctl Computer CAR-County Clerk-ElnAdm"]
[1908280001,"190-120CARCivJs0001","Ctl Computer CAR-County Clerk-CivJs"]
[1908290001,"190-120CARCrmJs0001","Ctl Computer CAR-County Clerk-CrmJs"]
[1908300001,"190-121CARCivJs0001","Ctl Computer CAR-District Clerk-CivJs"]
[1908310001,"190-121CARCrmJs0001","Ctl Computer CAR-District Clerk-CrmJs"]
[1908320001,"190-122CARCivJs0001","Ctl Computer CAR-Civil Courts-CivJs"]
[1908330001,"190-123CARCrmJs0001","Ctl Computer CAR-District Attorney-CrmJs"]
[1908340001,"190-123CARCivJs0001","Ctl Computer CAR-District Attorney-CivJs"]
[1908350001,"190-124CARCrmJs0001","Ctl Computer CAR-Criminal Courts-CrmJs"]
[1908360001,"190-125CARCivJs0001","Ctl Computer CAR-Probate Court-CivJs"]
[1908370001,"190-126CARCivJs0001","Ctl Computer CAR-JP 1-CivJs"]
[1908380001,"190-126CARCrmJs0001","Ctl Computer CAR-JP 1-CrmJs"]
[1908390001,"190-127CARCivJs0001","Ctl Computer CAR-JP 2-CivJs"]
[1908400001,"190-127CARCrmJs0001","Ctl Computer CAR-JP 2-CrmJs"]
[1908410001,"190-128CARCivJs0001","Ctl Computer CAR-JP 3-CivJs"]
[1908420001,"190-128CARCrmJs0001","Ctl Computer CAR-JP 3-CrmJs"]
[1908430001,"190-129CARCivJs0001","Ctl Computer CAR-JP 4-CivJs"]
[1908440001,"190-129CARCrmJs0001","Ctl Computer CAR-JP 4-CrmJs"]
[1908450001,"190-130CARCivJs0001","Ctl Computer CAR-JP 5-CivJs"]
[1908460001,"190-130CARCrmJs0001","Ctl Computer CAR-JP 5-CrmJs"]
[1908470001,"190-131CARLE0001","Ctl Computer CAR-Constable 1-LE"]
[1908480001,"190-132CARLE0001","Ctl Computer CAR-Constable 2-LE"]
[1908490001,"190-133CARLE0001","Ctl Computer CAR-Constable 3-LE"]
[1908500001,"190-134CARLE0001","Ctl Computer CAR-Constable 4-LE"]
[1908510001,"190-135CARLE0001","Ctl Computer CAR-Constable 5-LE"]
[1908520001,"190-136CARCivJs0001","Ctl Computer CAR-Dispute Resol Ctr-CivJs"]
[1908530001,"190-137CARLE0001","Ctl Computer CAR-Sheriff-LE"]
[1908540001,"190-137CARHsgBkg0001","Ctl Computer CAR-Sheriff-HsgBkg"]
[1908550001,"190-138CARLE0001","Ctl Computer CAR-Medical Examiner-LE"]
[1908560001,"190-139CARSvsn0001","Ctl Computer CAR-CSCD-Svsn"]
[1908570001,"190-140CARSvsn0001","Ctl Computer CAR-TCCES-Svsn"]
[1908580001,"190-142CARSvsn0001","Ctl Computer CAR-Pretrial Services-Svsn"]
[1908590001,"190-142CARHsgBkg0001","Ctl Computer CAR-Pretrial Svs-HsgBkg"]
[1908600001,"190-143CARJuvSvs0001","Ctl Computer CAR-Juv Public Dfdr-JuvSvs"]
[1908610001,"190-145CARJuvSvs0001","Ctl Computer CAR-Juv Probation-JuvSvs"]
[1908620001,"190-147CARHlh0001","Ctl Computer CAR-Emergency Svs-Hlhcare"]
[1908630001,"190-147CAREmrg0001","Ctl Computer CAR-Emergency Svs-EmrgMgmt"]
[1908640001,"190-149CARRdBg0001","Ctl Computer CAR-TNR-RdBg"]
[1908650001,"190-149CARParks0001","Ctl Computer CAR-TNR-Parks&Rec"]
[1908660001,"190-149CARConser0001","Ctl Computer CAR-TNR-ConservNR"]
[1908670001,"190-149CARFac0001","Ctl Computer CAR-TNR-FacMgmt"]
[1908680001,"190-149CARDrng0001","Ctl Computer CAR-TNR-Drng"]
[1908690001,"190-149CARSntn0001","Ctl Computer CAR-TNR-Sanitation"]
[1908700001,"190-149CARDevReg0001","Ctl Computer CAR-TNR-DevRegIn"]
[1908710001,"190-149CARHuman0001","Ctl Computer CAR-TNR-HumanSvs"]
[1908720001,"190-154CARGenAdm0001","Ctl Computer CAR-Civil Service-GenAdm"]
[1908730001,"190-155CARCrmJs0001","Ctl Computer CAR-CJP-CrmJs"]
[1908740001,"190-155CARHlh0001","Ctl Computer CAR-CJP-Hlhcare"]
[1908750001,"190-155CAREmrg0001","Ctl Computer CAR-CJP-EmrgMgmt"]
[1908760001,"190-155CARSvsn0001","Ctl Computer CAR-CJP-Svsn"]
[1908770001,"190-155CARJuvSvs0001","Ctl Computer CAR-CJP-JuvSvs"]
[1908780001,"190-155CARLE0001","Ctl Computer CAR-CJP-LE"]
[1908790001,"190-157CARGenAdm0001","Ctl Computer CAR-CRS-GenAdm"]
[1908800001,"190-157CARCivJs0001","Ctl Computer CAR-CRS-CivJs"]
[1908810001,"190-157CARCrmJs0001","Ctl Computer CAR-CRS-CrmJs"]
[1908820001,"190-158CARHlh0001","Ctl Computer CAR-HHS-Hlhcare"]
[1908830001,"190-158CARPbcHlh0001","Ctl Computer CAR-HHS-PbcHlh"]
[1908840001,"190-158CARHuman0001","Ctl Computer CAR-HHS-HumanSvs"]
[1908850001,"190-158CARJuvSvs0001","Ctl Computer CAR-HHS-JuvSvs"]
[1908860001,"190-159CARHlh0001","Ctl Computer CAR-EMS-Hlhcare"]
[1908870001,"190-193CARCivJs0001","Ctl Computer CAR-Legally Mtd Fees-CivJs"]
[1908880001,"190-194CARCrmJs0001","Ctl Computer CAR-Legally Mtd Fees-CrmJs"]
[1908890001,"190-144CARPD0001","Ctl Computer CAR-Public Defender-CrimJs"]

{"sheet":"Data Named Ranges","index":21,"n_rows":1158,"n_cols":36,"rows_kept":1158,"cut":false,"hidden":true,"merged":[]}
[null,null,null,"likely unused",null,null,null,null,null,null,null,null,null,null,null,null,null,null,null,null,null,null,"Referenced from Details tab using indirect(Named Range)"]
["One-time or Ongoing",null,null,"Dept","Cost Center","Name","Description","Person Responsible","Department","CC Category","Valid From","Valid To","Functional Area",null,"Dept","Cost Center",null,"Dept","Cost Center",null,"CI Categories","CI Blank","Supplies_Equipment","Services","Travel_Professional_Dev.","County_Employment_Related","Court_Law_Enforce._Related","Insurance_Premiums","Loss_Claims","Miscellaneous_Operating","Capital_Outlay_Equipment","Capital_Outlay_Svc","Capital_Outlay_Mtrl","Operating_Transfers",null,"Removed"]
["One-time",null,null,"???","????","Enter a Funds Center","Please enter a valid Funds Center","PBO",109,"?","1950-01-01","9999-12-31","????",null,{"$f":"'Details (PB5)'!$D$5","v":0},null,null,null,null,null,"Supplies_Equipment","Start by Choosing a Commitment Item Category","Aircraft and Boating Supplies & Equipment","Actuarial Services","Inhouse Training/Online Courses","Background Check Services","Ad Litems","Auto Liability Premiums","Auto Liability Administrative Expenses","County Contribution to Grants","Capital Outlay-Aircraft & Boating Equipment","Cap Outlay Sv-Bridges","Cap Outlay Mtrl-Building Improvements","Transfers to Balcones Canyonland Pres Fd",null,"CSCD Grant Designated Equipment"]
["Ongoing",null,null,101,1010010001,"101Adm0001","County Judge Adm-GF","County Judge",101,"P","1950-01-01","9999-12-31",1110,null,null,null,null,null,null,null,"Services",null,"Books","Administration Costs-IDC Post","Professional Licenses","Employee Assistance Programs","Confidential Informant Fees","Bonds-Elected Officials","Benefits Administration","Donated Services Expense","Capital Outlay-Automobiles","Cap Outlay Sv-Building Improvements","Cap Outlay Mtrl-Buildings","Transfers to Courthouse Security Fd",null,"Capital_Outlay_Svc."]
[null,null,null,101,1010020001,"101JVBoard0001","County Judge JV Board-GF","County Judge",101,"P","1950-01-01","9999-12-31",1230,null,null,null,null,null,null,null,"Travel_Professional_Dev.","FC Blank","Building Maintenance Supplies & Equipment","Administration Costs-Manual","Professional Membership","Employee Recognition","Court Costs","COBRA Stop/Loss Premium Medical-HDHP","COBRA Actl Clms/Loss Pmts Medical-HDHP","Landfill Remediation","Capital Outlay-Automotive Repair & Equipment","Cap Outlay Sv-Infrastructure Drainage","Cap Outlay Mtrl-Improvements Other","Transfers to Dispute Resolution Center Fd"]
[null,null,null,102,1020010001,"102Adm0001","Co Comm Pct 1 Adm-GF","County Comm Pct 1",102,"P","1950-01-01","9999-12-31",1110,null,null,null,null,null,null,null,"County_Employment_Related","Start by Entering the Dept #","Chemical Supplies & Equipment","Advertising/Public Notification Services","Registration Conferences/Seminars","Employee Recruitment Expenses","Court Ordered Attorney Fees","COBRA-Premium Medical-HDHP","COBRA Pharmacy Clms/Loss Pmts Medical-HDHP","Licenses & Permits","Capital Outlay-Building Maintenance Equipment","Cap Outlay Sv-Infrastructure Roads","Cap Outlay Mtrl-Infrastructure/Improvements","Transfers to Employee Health Benefit Fd"]
[null,null,null,103,1030010001,"103Adm0001","Co Comm Pct 2 Adm-GF","County Comm Pct 2",103,"P","1950-01-01","9999-12-31",1110,null,null,null,null,null,null,null,"Court_Law_Enforce._Related",null,"Clothing & Uniforms","Agency Dues and Memberships","Routine Mileage","Employee Relocation Expenses","Court Ordered Attorney Fees-Appeals","County Contribution for Retiree Healthcare","COBRA-Admin-HDHP","Other Miscellaneous Expenditure","Capital Outlay-Computer Equipment","Cap Outlay Sv-Infrastructure Sidewalks","Cap Outlay Mtrl-Land","Transfers to Juv Justice Alternative Edu Prog Fd"]
[null,null,null,104,1040010001,"104Adm0001","Co Comm Pct 3 Adm-GF","County Comm Pct 3",104,"P","1950-01-01","9999-12-31",1110,null,null,null,null,null,null,null,"Insurance_Premiums","OU Blank","Communication Supplies & Equipment","Air Transport Services","Subscriptions & Publications","Pre-Employment Testing","Court Ordered Attorney Fees-CPS Mediations","E&O Insurance Premiums","County Auto-Physical Damage","Pharmaceutical Expenses","Capital Outlay-Custodial Equipment","Cap Outlay Sv-Installation-Equipment","Cap Outlay Mtrl-Land-Right-of-Way","Transfers to Juvenile Deferred Prosecution Fd"]
[null,null,null,105,1050010001,"105Adm0001","Co Comm Pct 4 Adm-GF","County Comm Pct 4",105,"P","1950-01-01","9999-12-31",1110,null,null,null,null,null,null,null,"Loss_Claims","Start by Entering the Dept #","Computer Equipment & Peripherals","Ambulance Service","Training Facility-Rental Expense","Tuition Reimbursement","Court Ordered Attorney Fees-Non- CPS Juvenile","Employee Stop/Loss Premium Medical-HDHP","E&O Actual Claims/Loss Payments","Pharmaceutical Expenses","Capital Outlay-Educational/Communication Equipment","Cap Outlay Sv-Installation-Software","Cap Outlay Mtrl-Leasehold Improvements","Transfers to Other Funds"]
[null,null,null,106,1060010001,"106Aud0001","Co Auditor Aud-GF","County Auditor",106,"P","1950-01-01","9999-12-31",1120,null,null,null,null,null,null,null,"Miscellaneous_Operating",null,"Curr Exchange Diff","Animal Service Programs","Training Material/Books",null,"Court Ordered Attorney Fees-Non-CPS Contempt","Employee-Premium Medical-HDHP","Emp Pharmacy Clms/Loss Pmts Medical-HDHP","Waller Creek TIF","Capital Outlay-Election Equipment","Cap Outlay Sv-Park Improvements","Cap Outlay Mtrl-Park Improvements","Transfers to Rd and Bridge Fd"]
[null,null,null,106,1060020001,"106BEFIT0001","Co Auditor BEFIT-GF","County Auditor",106,"P","1950-01-01","9999-12-31",1120,null,null,null,null,null,null,null,"Capital_Outlay_Equip.","Program Blank","Custodial Supplies & Equipment","Arbitrage Calculation Service","Travel Encumbrance",null,"Court Ordered Attorney Fees-Non-Family","General Insurance Premiums","Empl Actl Clms/Loss Pymts Medical-HDHP",null,"Capital Outlay-Electrical Equipment","Cap Outlay Sv-Right of Way/Easements","Cap Outlay Mtrl-Sign Traffic Control Equipment","Transfers to Truancy Court Fd"]
[null,null,null,106,1060024063,"106BEFIT4063","Co Auditor BEFIT-CO 2010 Nontax","County Auditor",106,"P","1950-01-01","9999-12-31",1120,null,null,null,null,null,null,null,"Capital_Outlay_Mtrl.","Start by Entering the SBP Program Name","Drug & Pharmaceuticals Supplies","Arbitration/Mediation","Travel-Lodging Meals & Other",null,"Court Ordered Atty Fees-CPS Child Terminations","General Liability Premiums","Employee-Admin-HDHP",null,"Capital Outlay-Groundskeeping Equipment","Cap Outlay Sv-Road Construction",null,"Transfers to Tx Exposition and Heritage"]
[null,null,null,106,1060024068,"106BEFIT4068","Co Auditor BEFIT-CO 2011 Nontax","County Auditor",106,"P","1950-01-01","9999-12-31",1120,null,null,null,null,null,null,null,"Operating_Transfers",null,"Early Payment Discount-Contra","Armored Motor Service","Travel-Mileage",null,"Court Ordered Atty Fees-CPS Parent Terminations","Insurance Premiums Risk Management","General Liability Administrative Expenses",null,"Capital Outlay-Institutional Equipment",null,null,"Transfers to Voter Registration Fd"]
[null,null,null,106,1060024072,"106BEFIT4072","Co Auditor BEFIT-CO 2012","County Auditor",106,"P","1950-01-01","9999-12-31",1120,null,null,null,null,null,null,null,null,null,"Electrical Supplies & Equipment","Auditing Services",null,null,"Court Ordered Expert Witness Expenses","Property Insurance Premiums","General Liability Claims",null,"Capital Outlay-Kitchen Equipment"]
[null,null,null,106,1060030001,"106SAPCWM&S0001","SAP County-wide Maintenance & Support","County Auditor",106,"P","1950-01-01","9999-12-31",1120,null,null,null,null,null,null,null,null,null,"Food & Groceries","Automobile Repairs & Maintenance",null,null,"Court Ordered Investigator Expenses","Ret<65 Stop/Loss Prem Medical-HDHP","Insurance Claims Court Filing Fees",null,"Capital Outlay-Laboratory Equipment"]
[null,null,null,106,1060040001,"106PvcyHIPAA0001","Privacy and HIPAA Compliance-GF","County Auditor",106,"P","1950-01-01","9999-12-31",1110,null,null,null,null,null,null,null,null,null,"Fuel","Bank Service Charges",null,null,"Court Ordered Lab Testing","Ret>65 Stop/Loss Prem Medical-HDHP","Insurance Claims Court Reporting Expense",null,"Capital Outlay-Law Enforcement Equipment"]
[null,null,null,106,1060048955,"106HIPAA8955","Co Auditor Aud-HIPAA-Travis Co. Self Ins","County Auditor",106,"P","1950-01-01","9999-12-31",1120,null,null,null,null,null,null,null,null,null,"Groundskeeping Supplies & Equipment","Building Repairs & Maintenance",null,null,"Court Ordered Psychological Evaluations","Retiree<65-Premium Medical-HDHP","Insurance Claims Legal Document/Dupl",null,"Capital Outlay-Medical/Dental/Safety Equipment"]
[null,null,null,106,1060048956,"106HIPAA8956","Co Auditor Aud-HIPAA-Emp Health Benefit","County Auditor",106,"P","1950-01-01","9999-12-31",1120,null,null,null,null,null,null,null,null,null,"Hardware Supplies & Equipment","Case Management Services",null,null,"Court Transcripts","Retiree>65-Premium Medical-HDHP","Insurance Claims Legal expenses",null,"Capital Outlay-Office Equipment"]
[null,null,null,107,1070010001,"107Adm0001","County Treasurer Adm-GF","County Treasurer",107,"P","1950-01-01","9999-12-31",1120,null,null,null,null,null,null,null,null,null,"Industrial Supplies & Equipment","Cellular (Air) Time Usage",null,null,"Expert Witness Testimony Exp","Retiree>65-Premium Medical-MAPD","Insurance Claims Witness Expenses",null,"Capital Outlay-Office Furniture"]
[null,null,null,107,1070010121,"107Adm0121","County Treasurer Adm-Unclaimed Property","County Treasurer",107,"P","1950-01-01","9999-12-31",1120,null,null,null,null,null,null,null,null,null,"Institutional Equipment","Cellular Allowance",null,null,"Extradition Related Travel","Worker's Compensation Premiums","Internal Property Damage",null,"Capital Outlay-Other Equipment"]
[null,null,null,108,1080010001,"108Adm0001","Tax Collector Administration-GF","Tax Asr Collector",108,"P","1950-01-01","9999-12-31",1130,null,null,null,null,null,null,null,null,null,"Kitchen Supplies & Equipment","Child & Youth Development",null,null,"Grand Jury Fees",null,"Internal Property Damage Administrative Expenses",null,"Capital Outlay-Recreational Equipment"]
[null,null,null,108,1080020001,"108PITCln0001","Tax Collector Pbc Info and Trng Cln-GF","Tax Asr Collector",108,"P","1950-01-01","9999-12-31",1130,null,null,null,null,null,null,null,null,null,"Laboratory Supplies & Equipment","Child/Elderly Care",null,null,"Interpretation/Translation Services-Court",null,"OPEB-All Employees",null,"Capital Outlay-Road and Highway Equipment"]
[null,null,null,108,1080030001,"108PropTaxCln0001","Tax Collector Prop Tax Cln-GF","Tax Asr Collector",108,"P","1950-01-01","9999-12-31",1130,null,null,null,null,null,null,null,null,null,"Law Enforcement Supplies & Equipment","Construction Services",null,null,"Jury Expenses",null,"Patient Centered Outcomes Rsch Institute",null,"Capital Outlay-Software"]
[null,null,null,108,1080030150,"108MtrVhInvTxInt0150","Motor Vehicle Inventory Tax-Interest","Tax Asr Collector",108,"P","1950-01-01","9999-12-31",1130,null,null,null,null,null,null,null,null,null,"Medical/Dental Supplies & Equipment","Counseling Services",null,null,"Medical Exams-Victims",null,"Pharmacy Claims",null,"Capital Outlay-Traffic Control/Signage Equipment"]
[null,null,null,108,1080034063,"108PropTaxCln4063","Tax Collector Prop Tax Cln-CO2010 Nontax","Tax Asr Collector",108,"P","1950-01-01","9999-12-31",1130,null,null,null,null,null,null,null,null,null,"Office Equipment","Custodial Services",null,null,"Mental Health Attorneys",null,"Ret<65 Actl Clms/Loss Pmts Medical-HDHP"]
[null,null,null,108,1080040001,"108CtyCtCln0001","Tax Collector County Court at Law Cln-GF","Tax Asr Collector",108,"P","1950-01-01","9999-12-31",1210,null,null,null,null,null,null,null,null,null,"Office Furniture","Dental Services",null,null,"Petit Jury Fees",null,"Ret<65 Pharmacy Clms/Loss Pmts Medical-HDHP"]
[null,null,null,108,1080050001,"108JPCln0001","Tax Collector JP Collections-GF","Tax Asr Collector",108,"P","1950-01-01","9999-12-31",1210,null,null,null,null,null,null,null,null,null,"Office Supplies","Disposal Service",null,null,"Special Masters",null,"Ret>65 Actl Clms/Loss Pmts Medical-HDHP"]
[null,null,null,108,1080060001,"108DistCtCln0001","Tax Collector District CT at Law Cln- GF","Tax Asr Collector",108,"P","1950-01-01","9999-12-31",1210,null,null,null,null,null,null,null,null,null,"Oils & Lubricants","Electrical Service",null,null,"Specialty Court Attorney Fees",null,"Ret>65 Pharmacy Clms/Loss Pmts Medical-HDHP"]
[null,null,null,108,1080070001,"108MotorVehCln0001","Tax Collector Motor Veh Collections-GF","Tax Asr Collector",108,"P","1950-01-01","9999-12-31",1130,null,null,null,null,null,null,null,null,null,"Other Supplies & Equipment","Environmental Impact Services",null,null,"Substitute Court Reporter Charges",null,"Retiree<65-Admin-HDHP"]
[null,null,null,108,1080080001,"108VoterRgCln0001","Tax Collector Voter Registration Cln-GF","Tax Asr Collector",108,"P","1950-01-01","9999-12-31",1130,null,null,null,null,null,null,null,null,null,"Paint Supplies & Equipment","Exterminating Services",null,null,"Transcript Expenses",null,"Retiree>65-Admin-HDHP"]
[null,null,null,108,1080080128,"108VoterRgCln0128","Tax Collector Voter Reg Cln-Eln Cntrt","Tax Asr Collector",108,"P","1950-01-01","9999-12-31",1130,null,null,null,null,null,null,null,null,null,"Procurement Shipping","External Placement Prisoners/Juveniles",null,null,"Visiting Judges Expenses",null,"Third Party Attorney Fee Claims"]
[null,null,null,108,1080090001,"108Acctg0001","Tax Collector Accounting-GF","Tax Asr Collector",108,"P","1950-01-01","9999-12-31",1130,null,null,null,null,null,null,null,null,null,"Recreational Supplies & Equipment","Financial Consulting Services",null,null,"Witness Expenses",null,"Third Party Auto Claims"]
[null,null,null,108,1080100001,"108VoterClnCh190001","Tax Collector Voter Cln Ch19-GF","Tax Asr Collector",108,"P","1950-01-01","9999-12-31",1150,null,null,null,null,null,null,null,null,null,"Road and Highway Supplies & Equipment","Food Bank Assistance",null,null,null,null,"Third Party Property Damage"]
[null,null,null,108,1080100105,"108VoterClnCh190001","Tax Collector Voter Cln Ch19-Voter Rg Fd","Tax Asr Collector",108,"P","1950-01-01","9999-12-31",1150,null,null,null,null,null,null,null,null,null,"Road Material-Asphaltic","Food Voucher Assistance",null,null,null,null,"Third Party Property Damage-Starflight"]
[null,null,null,108,1080110001,"108ITConsol0001","Tax Collector IT-GF","Tax Asr Collector",108,"P","1950-01-01","9999-12-31",1130,null,null,null,null,null,null,null,null,null,"Road Material-Non Asphaltic","Furniture & Office Equipment Repairs & Maintenance",null,null,null,null,"Unemployment Insurance Actual Claims"]
[null,null,null,109,1090010001,"109Adm0001","PBO Administration-GF","County Exec PBO",109,"P","1950-01-01","9999-12-31",1120,null,null,null,null,null,null,null,null,null,"Safety Supplies & Equipment","Gifts",null,null,null,null,"Worker's Comp Claims-Active Employee"]
[null,null,null,109,1090020001,"109Planning0001","PBO Planning-GF","County Exec PBO",109,"P","1950-01-01","9999-12-31",1120,null,null,null,null,null,null,null,null,null,"Software","Grounds Maintenance Services",null,null,null,null,"Worker's Comp-Medical Bill Auditing"]
[null,null,null,109,1090030001,"109Budgeting0001","PBO Budgeting-GF","County Exec PBO",109,"P","1950-01-01","9999-12-31",1120,null,null,null,null,null,null,null,null,null,"Textile and Linen Supplies","Hardware/Software Install Services",null,null,null,null,"Worker's Comp-Third Party Adm"]
[null,null,null,109,1090040001,"109IM0001","PBO Investment Management-GF","County Exec PBO",109,"P","1950-01-01","9999-12-31",1120,null,null,null,null,null,null,null,null,null,"Traffic Control/Signage Supplies & Equipment","Hardware/Software Maintenance"]
[null,null,null,109,1090050001,"109Corps0001","PBO Corporations-GF","County Exec PBO",109,"P","1950-01-01","9999-12-31",1120,null,null,null,null,null,null,null,null,null,"Vehicle Supplies & Equipment","Hauling"]
[null,null,null,109,1090060000,"109IntDistPC0000","PBO Cash Investments","County Exec PBO",109,"P","1950-01-01","9999-12-31",1120,null,null,null,null,null,null,null,null,null,"Veterinary/Livestock Supplies & Equipment","Hazardous Material Removal"]
[null,null,null,109,1090070000,"109PCInvest0000","PBO PC Investments","County Exec PBO",109,"P","1950-01-01","9999-12-31",1120,null,null,null,null,null,null,null,null,null,"Weatherization Material Purchased","Helicopter/Aircraft Repairs & Maintenance"]
[null,null,null,109,1090080001,"109EDSI0001","PBO Econ Dev & Strategic Inv.-GF","County Exec PBO",109,"P","2015-10-01","9999-12-31",1120,null,null,null,null,null,null,null,null,null,null,"Hospitalization Services"]
[null,null,null,110,1100008905,"110TCPSFDistISD8905","Travis County-PSF Distribution to ISDs","Intergovt Rltn Coord",110,"P","1950-01-01","9999-12-31",1120,null,null,null,null,null,null,null,null,null,null,"Information Retrieval/Data Services"]
[null,null,null,110,1100010000,"110NonDivisional0000","General Adm Non Divisional","Intergovt Rltn Coord",110,"P","1950-01-01","9999-12-31",1110,null,null,null,null,null,null,null,null,null,null,"Interment Services"]
[null,null,null,110,1100010001,"110NonDivisional0001","General Adm Non Divisional-GF","Intergovt Rltn Coord",110,"P","1950-01-01","9999-12-31",1110,null,null,null,null,null,null,null,null,null,null,"Interpretation/Translation Services-Other"]
[null,null,null,110,1100020001,"110SpAstCC0001","General Adm Spl Asst To Comm Ct-GF","Intergovt Rltn Coord",110,"P","1950-01-01","9999-12-31",1110,null,null,null,null,null,null,null,null,null,null,"Investigative Services"]
[null,null,null,110,1100030001,"110IntGovRel0001","General Adm Intergovt Relations-GF","Intergovt Rltn Coord",110,"P","1950-01-01","9999-12-31",1110,null,null,null,null,null,null,null,null,null,null,"IT Consulting"]
[null,null,null,110,1100040001,"110WallerCrk0001","General Adm Waller Creek Dev-GF","Intergovt Rltn Coord",110,"P","1950-01-01","9999-12-31",1610,null,null,null,null,null,null,null,null,null,null,"Lab Services"]
[null,null,null,110,1100050001,"110PubInfoOffice0001","General Adm Public Info Office-GF","Intergovt Rltn Coord",110,"P","1950-01-01","9999-12-31",1110,null,null,null,null,null,null,null,null,null,null,"Land Surveying"]
[null,null,null,110,1100060001,"110Media0001","General Adm Media-GF","Intergovt Rltn Coord",110,"P","1950-01-01","9999-12-31",1110,null,null,null,null,null,null,null,null,null,null,"Laundry Services"]
[null,null,null,111,1110010001,"111Adm0001","HRMD Adm-GF","HR Mgmt Dir",111,"P","1950-01-01","9999-12-31",1110,null,null,null,null,null,null,null,null,null,null,"Legal Advisory Services"]
[null,null,null,111,1110020001,"111Compensation0001","HRMD Compensation-GF","HR Mgmt Dir",111,"P","1950-01-01","9999-12-31",1110,null,null,null,null,null,null,null,null,null,null,"Legally Required Advert/Public Notif. Service"]
[null,null,null,111,1110030001,"111StaffingRecr0001","HRMD Staffing and Recruitment-GF","HR Mgmt Dir",111,"P","1950-01-01","9999-12-31",1110,null,null,null,null,null,null,null,null,null,null,"Legislative Services"]
[null,null,null,111,1110040001,"111RiskMgmt0001","HRMD Risk Mgmt-GF","HR Mgmt Dir",111,"P","1950-01-01","9999-12-31",1110,null,null,null,null,null,null,null,null,null,null,"Long distance"]
[null,null,null,111,1110048955,"111RiskMgmt8955","HRMD Risk Mgmt-Travis Co. Self Ins","HR Mgmt Dir",111,"P","1950-01-01","9999-12-31",1110,null,null,null,null,null,null,null,null,null,null,"Non Employee Educational Services"]
[null,null,null,111,1110050001,"111SaftyLossPrev0001","HRMD Safety/Loss Prevtn Pg-GF","HR Mgmt Dir",111,"P","1950-01-01","9999-12-31",1110,null,null,null,null,null,null,null,null,null,null,"Non Hazardous Waste Hauling/Removal"]
[null,null,null,111,1110068956,"111EmpHlthBnfts8956","HRMD Benefits-Emp Health Benefit","HR Mgmt Dir",111,"P","1950-01-01","9999-12-31",1110,null,null,null,null,null,null,null,null,null,null,"Notary Services"]
[null,null,null,111,1110078956,"111WellHlthClnc8956","HRMD Wellness Hth Clinic-Emp Hth Ben","HR Mgmt Dir",111,"P","1950-01-01","9999-12-31",1110,null,null,null,null,null,null,null,null,null,null,"Nursing Services"]
[null,null,null,111,1110080001,"111HRIS0001","HRMD HRIS-GF","HR Mgmt Dir",111,"P","1950-01-01","9999-12-31",1110,null,null,null,null,null,null,null,null,null,null,"Oil/Gas Service"]
[null,null,null,111,1110090001,"111ADAProgram0001","HRMD ADA Program-GF","HR Mgmt Dir",111,"P","1950-01-01","9999-12-31",1110,null,null,null,null,null,null,null,null,null,null,"Other Consulting Services"]
[null,null,null,111,1110100001,"111OrgDev0001","HRMD Organizational Development-GF","HR Mgmt Dir",111,"P","1950-01-01","9999-12-31",1110,null,null,null,null,null,null,null,null,null,null,"Other Equipment Repairs & Maintenance"]
[null,null,null,111,1110500001,"111HIPAA0001","HRMD HIPAA-GF","HR Mgmt Dir",111,"P","1950-01-01","9999-12-31",1110,null,null,null,null,null,null,null,null,null,null,"Other Financial Services"]
[null,null,null,112,1120010001,"112ExM0001","TCIS ExM-GF","Chief Info Ofr",112,"P","1950-01-01","9999-12-31",1110,null,null,null,null,null,null,null,null,null,null,"Other Legal Services"]
[null,null,null,112,1120010108,"112ExM0108","TCIS ExM-Rec Mgmt Fd","Chief Info Ofr",112,"P","1950-01-01","9999-12-31",1110,null,null,null,null,null,null,null,null,null,null,"Other Medical Services"]
[null,null,null,112,1120014068,"112ExM4068","TCIS ExM-CO 2011 Nontax","Chief Info Ofr",112,"P","1950-01-01","9999-12-31",1110,null,null,null,null,null,null,null,null,null,null,"Other Real Estate Services"]
[null,null,null,112,1120020001,"112Adm0001","TCIS Adm-GF","Chief Info Ofr",112,"P","1950-01-01","9999-12-31",1110,null,null,null,null,null,null,null,null,null,null,"Other Services"]
[null,null,null,112,1120020117,"112CSCD0117","TCIS Admin-CSCD Equipment","Chief Info Ofr",112,"P","1950-01-01","9999-12-31",1110,null,null,null,null,null,null,null,null,null,null,"Other Social Services"]
[null,null,null,112,1120020128,"112Adm0128","TCIS Admin - Eln Cntrt Fund","Chief Info Ofr",112,"P","1950-01-01","9999-12-31",1110,null,null,null,null,null,null,null,null,null,null,"Pharmacist Services"]
[null,null,null,112,1120020129,"112Adm0129","TCIS Adm-County Clerk Archival Fd","Chief Info Ofr",112,"P","1900-01-01","9999-12-31",1110,null,null,null,null,null,null,null,null,null,null,"Physician Services"]
[null,null,null,112,1120020137,"112Adm0137","TCIS-Admin-Juve Case Mgr Fund","Chief Info Ofr",112,"P","1950-01-01","9999-12-31",1110,null,null,null,null,null,null,null,null,null,null,"Postal/Freight out Services"]
[null,null,null,112,1120024016,"112Adm4016","TCIS Adm-CO 1998","Chief Info Ofr",112,"P","1950-01-01","9999-12-31",1110,null,null,null,null,null,null,null,null,null,null,"Printing Services"]
[null,null,null,112,1120024025,"112Adm4025","TCIS Adm-CO 1998A","Chief Info Ofr",112,"P","1950-01-01","9999-12-31",1110,null,null,null,null,null,null,null,null,null,null,"Property Appraisal Services"]
[null,null,null,112,1120024029,"112Adm4029","TCIS Adm-CO 1999","Chief Info Ofr",112,"P","1950-01-01","9999-12-31",1110,null,null,null,null,null,null,null,null,null,null,"Property Management Services"]
[null,null,null,112,1120024030,"112Adm4030","TCIS Adm-CO 2000","Chief Info Ofr",112,"P","1950-01-01","9999-12-31",1110,null,null,null,null,null,null,null,null,null,null,"Psychiatric Services"]
[null,null,null,112,1120024032,"112Adm4032","TCIS Adm-CO 2001","Chief Info Ofr",112,"P","1950-01-01","9999-12-31",1110,null,null,null,null,null,null,null,null,null,null,"Psychological Services"]
[null,null,null,112,1120024056,"112Adm4056","TCIS Adm-CO 2008","Chief Info Ofr",112,"P","1950-01-01","9999-12-31",1110,null,null,null,null,null,null,null,null,null,null,"Public Health Programs"]
[null,null,null,112,1120024059,"112Adm4059","TCIS Adm-CO 2009","Chief Info Ofr",112,"P","1950-01-01","9999-12-31",1110,null,null,null,null,null,null,null,null,null,null,"Radios/TV Communication Repairs & Maintenance"]
[null,null,null,112,1120024068,"112Adm4068","TCIS Adm-CO 2011 Nontax","Chief Info Ofr",112,"P","1950-01-01","9999-12-31",1110,null,null,null,null,null,null,null,null,null,null,"Reimbursable Construction Services"]
[null,null,null,112,1120030001,"112AdmDeskSv0001","TCIS Adm-Financial-Desktop Sv-GF","Chief Info Ofr",112,"P","1950-01-01","9999-12-31",1110,null,null,null,null,null,null,null,null,null,null,"Rent Assistance"]
[null,null,null,112,1120040000,"112NSS0000","TCIS NSS","Chief Info Ofr",112,"P","2013-05-20","9999-12-31",1110,null,null,null,null,null,null,null,null,null,null,"Rent Assistance-Best Single Source"]
[null,null,null,112,1120040001,"112NSS0001","TCIS NSS-GF","Chief Info Ofr",112,"P","1950-01-01","9999-12-31",1110,null,null,null,null,null,null,null,null,null,null,"Rent-Building & Land"]
[null,null,null,112,1120040002,"112NSS0002","TCIS NSS-700 Lavaca Complex","Chief Info Ofr",112,"P","1950-01-01","9999-12-31",1110,null,null,null,null,null,null,null,null,null,null,"Rent-EDP Equipment/Software"]
[null,null,null,112,1120040003,"112NSS0003","TCIS NSS-Tx Expo & Heritage-Expo Fd","Chief Info Ofr",112,"P","2015-09-14","9999-12-31",1110,null,null,null,null,null,null,null,null,null,null,"Rent-Office Equipment"]
[null,null,null,112,1120040105,"112NSS0105","TCIS NSS-Voter Registration Fd","Chief Info Ofr",112,"P","1950-01-01","9999-12-31",1110,null,null,null,null,null,null,null,null,null,null,"Rent-Other Machinery & Equipment"]
[null,null,null,112,1120040115,"112NSS0115","TCIS NSS-BCP Building","Chief Info Ofr",112,"P","1950-01-01","9999-12-31",1110,null,null,null,null,null,null,null,null,null,null,"Rent-Polling Places"]
[null,null,null,112,1120040125,"112NSS0125","TCIS NSS-Justice Court Tech Fd","Chief Info Ofr",112,"P","1950-01-01","9999-12-31",1110,null,null,null,null,null,null,null,null,null,null,"Road Machinery & Equipment Repairs & Maintenance"]
[null,null,null,112,1120040128,"112NSS0128","TCIS NSS-Elections Contract Fd","Chief Info Ofr",112,"P","1950-01-01","9999-12-31",1110,null,null,null,null,null,null,null,null,null,null,"Road Repairs & Maintenance"]
[null,null,null,112,1120044034,"112NSS4034","TCIS NSS-CO 2001A","Chief Info Ofr",112,"P","1950-01-01","9999-12-31",1110,null,null,null,null,null,null,null,null,null,null,"Security Services"]
[null,null,null,112,1120044038,"112NSS4038","TCIS NSS-CO 2003","Chief Info Ofr",112,"P","1950-01-01","9999-12-31",1110,null,null,null,null,null,null,null,null,null,null,"Septic Tank Repairs & Maintenance"]
[null,null,null,112,1120044052,"112NSS4052","TCIS NSS-CO 2007","Chief Info Ofr",112,"P","1950-01-01","9999-12-31",1110,null,null,null,null,null,null,null,null,null,null,"Substance Abuse Screening"]
[null,null,null,112,1120044056,"112NSS4056","TCIS NSS-CO 2008","Chief Info Ofr",112,"P","1950-01-01","9999-12-31",1110,null,null,null,null,null,null,null,null,null,null,"Temp Personnel Services-Clerical/Managerial/Exec"]
[null,null,null,112,1120044059,"112NSS4059","TCIS NSS-CO 2009","Chief Info Ofr",112,"P","1950-01-01","9999-12-31",1110,null,null,null,null,null,null,null,null,null,null,"Transportation Assistance"]
[null,null,null,112,1120044063,"112NSS4063","TCIS NSS-CO 2010 Nontax","Chief Info Ofr",112,"P","1950-01-01","9999-12-31",1110,null,null,null,null,null,null,null,null,null,null,"Treatment Services"]
[null,null,null,112,1120044068,"112NSS4068","TCIS NSS-CO 2011 Nontax","Chief Info Ofr",112,"P","1950-01-01","9999-12-31",1110,null,null,null,null,null,null,null,null,null,null,"Tree Mitigation Services"]
[null,null,null,112,1120044072,"112NSS4072","TCIS NSS-CO 2012","Chief Info Ofr",112,"P","1950-01-01","9999-12-31",1110,null,null,null,null,null,null,null,null,null,null,"Trunk Lines"]
[null,null,null,112,1120050001,"112NSSAppDBA0001","TCIS NSS App and DB Adm-GF","Chief Info Ofr",112,"P","1950-01-01","9999-12-31",1110,null,null,null,null,null,null,null,null,null,null,"Uniform Rental Service"]
[null,null,null,112,1120060001,"112NSSISR0001","TCIS NSS-ISR-GF","Chief Info Ofr",112,"P","1950-01-01","9999-12-31",1110,null,null,null,null,null,null,null,null,null,null,"Utility Assistance"]
[null,null,null,112,1120070001,"112NSSIDC0001","TCIS NSS-IDC-GF","Chief Info Ofr",112,"P","1950-01-01","9999-12-31",1110,null,null,null,null,null,null,null,null,null,null,"Utility Assistance-Best Single Source"]
[null,null,null,112,1120080001,"112NSSFacMon0001","TCIS NSS-IDC-Fac & Mon Adm-GF","Chief Info Ofr",112,"P","1950-01-01","9999-12-31",1110,null,null,null,null,null,null,null,null,null,null,"Veterinary Services"]
[null,null,null,112,1120090001,"112NSSDrctySv0001","TCIS NSS-ISR-Dcty Sv Rem Sv Adm-GF","Chief Info Ofr",112,"P","1950-01-01","9999-12-31",1110,null,null,null,null,null,null,null,null,null,null,"Volunteer Service Mgmt"]
[null,null,null,112,1120100001,"112NSSNtwkOps0001","TCIS NSS-Ntwk and TLC Ops-GF","Chief Info Ofr",112,"P","1950-01-01","9999-12-31",1110,null,null,null,null,null,null,null,null,null,null,"Water Resource Dev Sv"]
[null,null,null,112,1120110001,"112TechSupp0001","TCIS Technical Support-GF","Chief Info Ofr",112,"P","1950-01-01","9999-12-31",1110,null,null,null,null,null,null,null,null,null,null,"Water/Sewer Service"]
[null,null,null,112,1120140001,"112ProgMgmt0001","TCIS Program Mgmt Office-GF","Chief Info Ofr",112,"P","1950-01-01","9999-12-31",1110,null,null,null,null,null,null,null,null,null,null,"Workforce Development"]
[null,null,null,112,1120144068,"112ProjMgmt4068","TCIS Project Mgmt Office-CO 2011 Nontax","Chief Info Ofr",112,"P","1950-01-01","9999-12-31",1110]
[null,null,null,112,1120150001,"112InfSec0001","TCIS Information Security-GF","Chief Info Ofr",112,"P","1950-01-01","9999-12-31",1110]
[null,null,null,112,1120158956,"112InfSec8956","TCIS Information Security-Emp Hlth Bnfs","Chief Info Ofr",112,"P","1950-01-01","9999-12-31",1110]
[null,null,null,112,1120160001,"112SDO0001","TCIS NSS SD-GF","Chief Info Ofr",112,"P","1950-01-01","9999-12-31",1110]
[null,null,null,112,1120170001,"112ADPS0001","TCIS ADPS-GF","Chief Info Ofr",112,"P","1950-01-01","9999-12-31",1110]
[null,null,null,112,1120170125,"112ADPS0125","TCIS ADPS-Js Ct Tech Fd","Chief Info Ofr",112,"P","1950-01-01","9999-12-31",1110]
[null,null,null,112,1120174052,"112ADPS4052","TCIS ADPS-CO 2007","Chief Info Ofr",112,"P","1950-01-01","9999-12-31",1110]
[null,null,null,112,1120180001,"112ADPSSupp0001","TCIS ADPS-App and Prod Support-GF","Chief Info Ofr",112,"P","1950-01-01","9999-12-31",1110]
[null,null,null,112,1120190001,"112ADPSDev0001","TCIS ADPS-Application Development-GF","Chief Info Ofr",112,"P","1950-01-01","9999-12-31",1110]
[null,null,null,112,1120220001,"112BEFIT0001","TCIS BEFIT-GF","Chief Info Ofr",112,"P","1950-01-01","9999-12-31",1110]
[null,null,null,112,1120230001,"112PMMDS0001","TCIS Program Mgmt Office MDS-GF","Chief Info Ofr",112,"P","1950-01-01","9999-12-31",1110]
[null,null,null,112,1120250001,"112NSSSLM0001","TCIS NSS-Server Life Mgmt-GF","Chief Info Ofr",112,"P","1950-01-01","9999-12-31",1110]
[null,null,null,112,1120260001,"112NSSISO0001","TCIS NSS-Inf Security Optns-GF","Chief Info Ofr",112,"P","1950-01-01","9999-12-31",1110]
[null,null,null,112,1120270001,"112ADPSTraining0001","TCIS ADPS-Training-GF","Chief Info Ofr",112,"P","2012-10-01","9999-12-31",1110]
[null,null,null,112,1120280001,"112PMWebDevTm0001","TCIS Prog Mgmt Web DevTeam-GF","Chief Info Ofr",112,"P","2012-10-01","9999-12-31",1110]
[null,null,null,112,1120290001,"112PMMobData0001","TCIS Prog Mgmt Mobile Data Team-GF","Chief Info Ofr",112,"P","2012-10-01","9999-12-31",1110]
[null,null,null,112,1120300001,"112NSS-CTS0001","TCIS NSS-Client Technology Services-GF","Chief Info Ofr",112,"P","2012-10-01","9999-12-31",1110]
[null,null,null,112,1120310001,"112PrivOffce0001","TCIS Privacy Office-GF","Chief Info Ofr",112,"P","1950-01-01","9999-12-31",1110]
[null,null,null,112,1120500001,"112BPE0001","TCIS BPE-GF","Chief Info Ofr",112,"P","1950-01-01","9999-12-31",1110]
[null,null,null,112,1129000001,"112ReimburseRes0001","TCIS Reimbursement Resolution Funds-GF","Chief Info Ofr",112,"R","1950-01-01","9999-12-31",1110]
[null,null,null,114,1140010001,"114Adm0001","FMD Adm-GF","Facilities Mgmt Dir",114,"P","1950-01-01","9999-12-31",1140]
[null,null,null,114,1140020001,"114Grndskpng0001","FMD Groundskeeping-GF","Facilities Mgmt Dir",114,"P","1950-01-01","9999-12-31",1140]
[null,null,null,114,1140030001,"114Custodial0001","FMD Custodial Svs-GF","Facilities Mgmt Dir",114,"P","1950-01-01","9999-12-31",1140]
[null,null,null,114,1140040001,"114SecuritySvs0001","FMD Security Svs-GF","Facilities Mgmt Dir",114,"P","1950-01-01","9999-12-31",1140]
[null,null,null,114,1140040128,"114SecuritySvs0128","FMD Security Svs-Ele. Contracts Fd","Facilities Mgmt Dir",114,"P","1950-01-01","9999-12-31",1140]
[null,null,null,114,1140040136,"114SecuritySvs0136","FMD Security Svs-Js Ct Bldg Sec Fd","Facilities Mgmt Dir",114,"P","1950-01-01","9999-12-31",1140]
[null,null,null,114,1140044063,"114SecuritySvs4063","FMD Security Services-Cap Proj","Facilities Mgmt Dir",114,"P","1950-01-01","9999-12-31",1140]
[null,null,null,114,1140060002,"114Lavaca0002","FMD Operations 700 Lavaca-Lavaca Cmplx","Facilities Mgmt Dir",114,"P","1950-01-01","9999-12-31",1140]
[null,null,null,114,1140060115,"114BCP0115","FMD Operations-Balcones Canyonlnds Pres.","Facilities Mgmt Dir",114,"P","1950-01-01","9999-12-31",1750]
[null,null,null,114,1140070000,"114FacEng0000","FMD Facilities Engineering-Cap Proj","Facilities Mgmt Dir",114,"P","1950-01-01","9999-12-31",1140]
[null,null,null,114,1140080001,"114TxExpo0001","FMD Tx Expo & Heritage-GF","Facilities Mgmt Dir",114,"P","1950-01-01","9999-12-31",1610]
[null,null,null,114,1140080003,"114TxExpo0003","FMD-Tx Expo & Heritage-Expo Fd","Facilities Mgmt Dir",114,"P","1950-01-01","9999-12-31",1610]
[null,null,null,114,1140084038,"114TxExpo4038","FMD-Tx Expo & Heritage-LT CO 2003","Facilities Mgmt Dir",114,"P","1950-01-01","9999-12-31",1610]
[null,null,null,114,1140090000,"114BdMnt0000","FMD Building Maintenance-Cap Proj","Facilities Mgmt Dir",114,"P","1950-01-01","9999-12-31",1140]
[null,null,null,114,1140090001,"114BdMnt0001","FMD Building Maintenance-GF","Facilities Mgmt Dir",114,"P","1950-01-01","9999-12-31",1140]
[null,null,null,114,1140090125,"114BdMnt0125","FMD Building Maintenance Js Ct Tech","Facilities Mgmt Dir",114,"P","1950-01-01","9999-12-31",1140]
[null,null,null,114,1140100001,"114Courthouse0001","FMD Old Courthouse Block-GF","Facilities Mgmt Dir",114,"P","1950-01-01","9999-12-31",1140]
[null,null,null,114,1140110000,"114PMFacMgmt0000","FMD Proj Mgmt Svs FacMgmt","Facilities Mgmt Dir",114,"P","1950-01-01","9999-12-31",1140]
[null,null,null,114,1140110001,"114PMPerPos0001","FMD PM Personnel Positions-GF","Facilities Mgmt Dir",114,"P","2013-10-01","9999-12-31",1140]
[null,null,null,114,1140115001,"114PMFacMgmt5001","FMD Proj Mgmt Svs FacMgmt","Facilities Mgmt Dir",114,"P","1950-01-01","9999-12-31",1140]
[null,null,null,114,1140120000,"114PMCrmJus0000","FMD Proj Mgmt Svs Crm Jus","Facilities Mgmt Dir",114,"P","1950-01-01","9999-12-31",1210]
[null,null,null,114,1140130000,"114PMLE0000","FMD Proj Mgmt Svs Law Enforcement","Facilities Mgmt Dir",114,"P","1950-01-01","9999-12-31",1310]
[null,null,null,114,1140140000,"114PMHsgBkg0000","FMD Proj Mgmt Svs Housing & Booking","Facilities Mgmt Dir",114,"P","1950-01-01","9999-12-31",1410]
[null,null,null,114,1140150000,"114PMJuvSv0000","FMD Proj Mgmt Svs Juvenile Svs","Facilities Mgmt Dir",114,"P","1950-01-01","9999-12-31",1230]
[null,null,null,114,1140160000,"114PMPbcHlh0000","FMD Proj Mgmt Svs Public Health","Facilities Mgmt Dir",114,"P","1950-01-01","9999-12-31",1520]
[null,null,null,114,1140170000,"114PMHumanSv0000","FMD Proj Mgmt Svs Human Services","Facilities Mgmt Dir",114,"P","1950-01-01","9999-12-31",1530]
[null,null,null,114,1140180000,"114PMRdBg0000","FMD Proj Mgmt Svs Roads & Bridges","Facilities Mgmt Dir",114,"P","1950-01-01","9999-12-31",1710]
[null,null,null,114,1140190000,"114PMParksRec0000","FMD Proj Mgmt Svs Parks & Rec","Facilities Mgmt Dir",114,"P","1950-01-01","9999-12-31",1630]
[null,null,null,114,1140200000,"114PMGenAdm0000","FMD Proj Mgmt Svs General Adm","Facilities Mgmt Dir",114,"P","1950-01-01","9999-12-31",1110]
[null,null,null,114,1140210000,"114PrjMgmtSvsCivJstc","FMD Proj Mgmt Svs Civil Justice","Facilities Mgmt Dir",114,"P","1950-01-01","9999-12-31",1220]
[null,null,null,114,1149000001,"114ReimburseRes0001","FMD Reimbursement Resolution Funds-GF","Facilities Mgmt Dir",114,"R","1950-01-01","9999-12-31",1140]
[null,null,null,115,1150010001,"115Adm0001","Purchasing Office Administration-GF","Purchasing Agent",115,"P","1950-01-01","9999-12-31",1120]
[null,null,null,115,1150020001,"115FxdAssets0001","Purchasing Office Fixed Assets-GF","Purchasing Agent",115,"P","1950-01-01","9999-12-31",1120]
[null,null,null,115,1150030001,"115HUB0001","Purchasing Office HUB Pram-GF","Purchasing Agent",115,"P","1950-01-01","9999-12-31",1120]
[null,null,null,115,1150040001,"115Prcmnt0001","Purchasing Office Procurement-GF","Purchasing Agent",115,"P","1950-01-01","9999-12-31",1120]
[null,null,null,115,1150050001,"115CntrcComp0001","Purchasing Office Contract Compliance-GF","Purchasing Agent",115,"P","1950-01-01","9999-12-31",1120]
[null,null,null,116,1160010001,"116VetSvsAdm0001","Veterans Services Adm-GF","Olie Pope",116,"P","1950-01-01","9999-12-31",1530]
[null,null,null,116,1160010162,"116VetSvsAdm0162","Veterans Services Adm-Juror Contrib Fd","Susan Lewis",116,"P","1950-01-01","9999-12-31",1530]
[null,null,null,117,1170010001,"117HistComm0001","Historical Commission-GF","Chair of Historical",117,"P","1950-01-01","9999-12-31",1650]
[null,null,null,119,1190010001,"119Civ0001","CA Civil-GF","County Attorney",119,"P","1950-01-01","9999-12-31",1220]
[null,null,null,119,1190010116,"119Civ0116","CA Civil-LEOSE/Elected Ofls Fd","County Attorney",119,"P","1950-01-01","9999-12-31",1220]
[null,null,null,119,1190020001,"119Crm0001","CA Criminal-GF","County Attorney",119,"P","1950-01-01","9999-12-31",1210]
[null,null,null,119,1190020116,"119Crm0116","CA Criminal-LEOSE/Elected Ofls Fd","County Attorney",119,"P","1950-01-01","9999-12-31",1210]
[null,null,null,119,1190020154,"119Crim0154","CA Criminal-DWI Pre-Diversion","County Attorney",119,"P","2017-05-03","9999-12-31",1210]
[null,null,null,119,1190030001,"119ChkDiv0001","CA Check Division-GF","County Attorney",119,"P","1950-01-01","9999-12-31",1220]
[null,null,null,119,1190030101,"119ChkDiv0101","CA Check Division-CAPSO Fd","County Attorney",119,"P","1950-01-01","9999-12-31",1210]
[null,null,null,119,1190040001,"119UndAgeDrk0001","CA Underage Drinking Prvtn-GF","County Attorney",119,"P","1950-01-01","9999-12-31",1220]
[null,null,null,119,1190050122,"119Civ0122","CA Civil-Prof Prosecutors Fd","County Attorney",119,"P","1950-01-01","9999-12-31",1220]
[null,null,null,120,1200010001,"120Adm0001","Co Clerk Adm-GF","County Clerk",120,"P","1950-01-01","9999-12-31",1110]
[null,null,null,120,1200010108,"120Admin0108","Co Clerk Administration-Records Mgmt Fd","County Clerk",120,"P","1950-01-01","9999-12-31",1110]
[null,null,null,120,1200020001,"120CompSvs0001","Co Clerk Computer Services-GF","County Clerk",120,"P","1950-01-01","9999-12-31",1110]
[null,null,null,120,1200020004,"120CompSrvcs0004","Co Clerk Comp Service-Co Clerk Arch Fnd","County Clerk",120,"P","1900-01-01","9999-12-31",1110]
[null,null,null,120,1200020108,"120CompSrvcs0108","Co Clerk Comp Services-Records Mgmt Fd","County Clerk",120,"P","1950-01-01","9999-12-31",1110]
[null,null,null,120,1200020129,"120CompSrvcs0129","Co Clerk Comp Service-Co Clerk Arch Fnd","County Clerk",120,"P","1950-01-01","9999-12-31",1110]
[null,null,null,120,1200030001,"120Accounting0001","Co Clerk Accounting-GF","County Clerk",120,"P","1950-01-01","9999-12-31",1110]
[null,null,null,120,1200030108,"120ACCTNG-RM0108","CO Clerk Accounting-Records Mgmt Fd","County Clerk",120,"P","1950-01-01","9999-12-31",1110]
[null,null,null,120,1200040000,"120ElnAdmCP0000","Co Clerk Eln Adm – Capital Proj","County Clerk",120,"P","1950-01-01","9999-12-31",1150]
[null,null,null,120,1200040001,"120ElnAdm0001","Co Clerk Eln Adm-GF","County Clerk",120,"P","1950-01-01","9999-12-31",1150]
[null,null,null,120,1200040128,"120ElnAdm0128","Co Clerk Eln Adm-Eln Cntrt Fd","County Clerk",120,"P","1950-01-01","9999-12-31",1150]
[null,null,null,120,1200050128,"120ElnAdmFee0128","Co Clerk Eln Adm Fee-Eln Cntrt Fd","County Clerk",120,"P","1950-01-01","9999-12-31",1150]
[null,null,null,120,1200060001,"120Probate0001","Co Clerk Probate-GF","County Clerk",120,"P","1950-01-01","9999-12-31",1220]
[null,null,null,120,1200060110,"120Probate0110","Co Clerk Probate -Records Mgmt Preser","County Clerk",120,"P","1950-01-01","9999-12-31",1220]
[null,null,null,120,1200060111,"120Probate0111","Co Clerk Probate-Courthouse Sec Fd","County Clerk",120,"P","1950-01-01","9999-12-31",1220]
[null,null,null,120,1200060113,"120Probate0113","Co Clerk Probate-Ct Rptr Sv Fnd","County Clerk",120,"P","1950-01-01","9999-12-31",1220]
[null,null,null,120,1200060141,"120Probate0141","Co Clerk Probate-Ct Record Preservation","County Clerk",120,"P","1950-01-01","9999-12-31",1220]
[null,null,null,120,1200060151,"120Probate0151","Co Clerk Probate-CivilCourthouseImpFd","County Clerk",120,"P","1900-01-01","9999-12-31",1220]
[null,null,null,120,1200060156,"120Probate0156","Co Clerk Probate-Jury Fund","County Clerk",120,"P","1950-01-01","9999-12-31",1220]
[null,null,null,120,1200060158,"120Probate0158","Co Clerk Probate-Lang Access Fund","County Clerk",120,"P","1950-01-01","9999-12-31",1220]
[null,null,null,120,1200060160,"120Probate0160","Co Clerk Probate-TC RecMgmt&Pres","County Clerk",120,"P","1950-01-01","9999-12-31",1220]
[null,null,null,120,1200070001,"120Civil0001","Co Clerk Civil-GF","County Clerk",120,"P","1950-01-01","9999-12-31",1220]
[null,null,null,120,1200070110,"120Civil0110","Co Clerk Civil-Records Mgmt Preser","County Clerk",120,"P","1950-01-01","9999-12-31",1220]
[null,null,null,120,1200070111,"120Civil0111","Co Clerk Civil-Courthouse Sec Fd","County Clerk",120,"P","1950-01-01","9999-12-31",1220]
[null,null,null,120,1200070113,"120Civil0113","Co Clerk Civil-Ct Rptr Sv Fnd","County Clerk",120,"P","1950-01-01","9999-12-31",1220]
[null,null,null,120,1200070141,"120Civil0141","Co Clerk Civil-Ct Record Preservation","County Clerk",120,"P","1950-01-01","9999-12-31",1220]
[null,null,null,120,1200070151,"120Civil0151","Co Clerk Civil-CivilCourthouseImpFd","County Clerk",120,"P","1900-01-01","9999-12-31",1220]
[null,null,null,120,1200070156,"120Civil0156","Co Clerk Civil-Cty Jury Fund","County Clerk",120,"P","1950-01-01","9999-12-31",1220]
[null,null,null,120,1200070158,"120Civil0158","Co Clerk Civil-Lang Access Fund","County Clerk",120,"P","1950-01-01","9999-12-31",1220]
[null,null,null,120,1200070160,"120Civ0160","Co Clerk Civil-TC RecMgmt&Pres","County Clerk",120,"P","1950-01-01","9999-12-31",1220]
[null,null,null,120,1200080001,"120Crm0001","Co Clerk Crm-GF","County Clerk",120,"P","1950-01-01","9999-12-31",1210]
[null,null,null,120,1200080108,"120Crm0108","Co Clerk Crm-Records Mgmt Fd","County Clerk",120,"P","1950-01-01","9999-12-31",1210]
[null,null,null,120,1200080110,"120Crm0110","Co Clerk Crm-Records Mgmt Preser","County Clerk",120,"P","1950-01-01","9999-12-31",1210]
[null,null,null,120,1200080111,"120Crm0111","Co Clerk Crm-Courthouse Sec Fd","County Clerk",120,"P","1950-01-01","9999-12-31",1210]
[null,null,null,120,1200080113,"120CrmCtRptr0113","Co Clerk Crm-Ct Rptr Sv Fnd","County Clerk",120,"P","1950-01-01","9999-12-31",1210]
[null,null,null,120,1200080119,"120Crm0119","Co Clerk Crm-JV Delinquency Preventn","County Clerk",120,"P","1950-01-01","9999-12-31",1210]
[null,null,null,120,1200080137,"120Crm0137","Co Clerk Crm-Juvenile Case Mgr Fd","County Clerk",120,"P","1950-01-01","9999-12-31",1210]
[null,null,null,120,1200080140,"120Crm0140","Co Clerk Crm-Co/Dist Court Tech Fd","County Clerk",120,"P","1950-01-01","9999-12-31",1210]
[null,null,null,120,1200080145,"120Crm0145","Co Clerk Crm-RdBg Fnd","County Clerk",120,"P","1950-01-01","9999-12-31",1220]
[null,null,null,120,1200080156,"120Crm0156","Co Clerk Crm-Jury Fee Fund","County Clerk",120,"P","1950-01-01","9999-12-31",1210]
[null,null,null,120,1200080157,"Co Clk Crm-Spec Ct","Co Clerk Crm-Spec Court Fund","BOHANAC",120,"P","1950-01-01","9999-12-31",1210]
[null,null,null,120,1200090001,"120Recording0001","Co Clerk Recording-GF","County Clerk",120,"P","1950-01-01","9999-12-31",1110]
[null,null,null,120,1200090108,"120Recording0108","Co Clerk Recording-Records Mgmt Fd","County Clerk",120,"P","1950-01-01","9999-12-31",1110]
[null,null,null,120,1200090111,"120Recording0111","Co Clerk Recording-Courthouse Sec Fd","County Clerk",120,"P","1950-01-01","9999-12-31",1110]
[null,null,null,120,1200100001,"120RecMgmt0001","Co Clerk Records Mgmt-GF","County Clerk",120,"P","1950-01-01","9999-12-31",1110]
[null,null,null,120,1200100004,"120RecMgmt0004","Co Clerk Records Mgmt-Co Clerk Arch Fnd","County Clerk",120,"P","1900-01-01","9999-12-31",1110]
[null,null,null,120,1200100108,"120RecMgmt0108","Co Clerk Records Mgmt-Records Mgmt Fd","County Clerk",120,"P","1950-01-01","9999-12-31",1110]
[null,null,null,120,1200100111,"120RecMgmt0111","Co Clerk Records Mgmt-Courthouse Sec Fd","County Clerk",120,"P","1950-01-01","9999-12-31",1110]
[null,null,null,120,1200100129,"120RecMgmt0129","Co Clerk Records Mgmt-Co Clerk Arch Fnd","County Clerk",120,"P","1950-01-01","9999-12-31",1110]
[null,null,null,120,1200110001,"ELNCHGABLE","Co Clerk Eln-Chargeable-GF","County Clerk",120,"P","1950-01-01","9999-12-31",1150]
[null,null,null,121,1210010001,"121Civ0001","Dist Clerk Civil-GF","District Clerk",121,"P","1950-01-01","9999-12-31",1220]
[null,null,null,121,1210010108,"121Civ0108","Dist Clerk Civil-Records Mgmt Fd","District Clerk",121,"P","1950-01-01","9999-12-31",1220]
[null,null,null,121,1210010110,"121Civ0110","Dist Clerk Civil-Records Mgmt Preser","District Clerk",121,"P","1950-01-01","9999-12-31",1220]
[null,null,null,121,1210010111,"121Civ0111","Dist Clerk Civil-Courthouse Security Fd","District Clerk",121,"P","1950-01-01","9999-12-31",1220]
[null,null,null,121,1210010113,"121Civ0113","Dist Clerk Civil-Ct Rptr Sv Fnd","District Clerk",121,"P","1950-01-01","9999-12-31",1220]
[null,null,null,121,1210010127,"121Civ0127","Dist Clerk Civil-Dist Clerk Records Mgmt","District Clerk",121,"P","1950-01-01","9999-12-31",1220]
[null,null,null,121,1210010130,"121Civ0130","Dist Clerk Civil-Family Protection Fd","District Clerk",121,"P","1950-01-01","9999-12-31",1220]
[null,null,null,121,1210010139,"121Civ0139","Dist Clerk Civil-Dist Ct Recrds Tech Fd","District Clerk",121,"P","1950-01-01","9999-12-31",1220]
[null,null,null,121,1210010141,"121Civ0141","Dist Clerk Civil-Court Record Pres","District Clerk",121,"P","1950-01-01","9999-12-31",1220]
[null,null,null,121,1210010151,"121Civ0151","Dist Clerk Civil-Civ Crthse Imp Fd","District Clerk",121,"P","1950-01-01","9999-12-31",1220]
[null,null,null,121,1210010156,"121CIV0156","Dist Clerk Civil-Jury Fund","District Clerk",121,"P","1950-01-01","9999-12-31",1220]
[null,null,null,121,1210010158,"121CIV0158","Dist Clerk Civil-Lang Access Fund","District Clerk",121,"P","1950-01-01","9999-12-31",1220]
[null,null,null,121,1210010160,"121CIV0160","Dist Clerk Civil-TC RecMgmt&Pres","District Clerk",121,"P","1950-01-01","9999-12-31",1220]
[null,null,null,121,1210020001,"121Crm0001","Dist Clerk Crm-GF","District Clerk",121,"P","1950-01-01","9999-12-31",1210]
[null,null,null,121,1210020110,"121Crm0110","Dist Clerk Crm-Records Mgmt Preser","District Clerk",121,"P","1950-01-01","9999-12-31",1210]
[null,null,null,121,1210020111,"121Crm0111","Dist Clerk Crm-Courthouse Security Fd","District Clerk",121,"P","1950-01-01","9999-12-31",1210]
[null,null,null,121,1210020113,"121Crim0113","Dist Clerk Crm-Ct Rptr Sv Fnd","District Clerk",121,"P","1950-01-01","9999-12-31",1210]
[null,null,null,121,1210020119,"121Crm0119","Dist Clerk Crm-Jv Delinquency Preventn","District Clerk",121,"P","1950-01-01","9999-12-31",1210]
[null,null,null,121,1210020127,"121Crm0127","Dist Clerk Crm-Dist Clerk Records Mang","District Clerk",121,"P","1950-01-01","9999-12-31",1210]
[null,null,null,121,1210020139,"121Crm0139","Dist Clerk Crm-Dist Ct Recrds Tech Fd","District Clerk",121,"P","1950-01-01","9999-12-31",1210]
[null,null,null,121,1210020140,"121Crm0140","Dist Clerk Crm-Co/Dist Court Tech Fd","District Clerk",121,"P","1950-01-01","9999-12-31",1210]
[null,null,null,121,1210020145,"121Crm0145","Dist Clerk Crm-RdBg Fd","District Clerk",121,"P","1950-01-01","9999-12-31",1210]
[null,null,null,121,1210020156,"126Crm0156","Dist Clerk Crm-County Jury Fd","District Clerk",121,"P","1950-01-01","9999-12-31",1210]
[null,null,null,121,1210020157,"Dist Clk Crm-Spec Ct","Dist Clerk Crm-Spec Court Fund","BOHANAC",121,"P","1950-01-01","9999-12-31",1210]
[null,null,null,121,1210030001,"121DistLglMtdCv0001","Dist Clerk District Legally Mtd Civil-GF","District Clerk",121,"I","1950-01-01","9999-12-31",1220]
[null,null,null,121,1210040001,"121CoLglMtdCv0001","Dist Clerk County Legally Mtd Civil-GF","District Clerk",121,"I","1950-01-01","9999-12-31",1220]
[null,null,null,121,1210050001,"121DistLglMtdCrm0001","Dist Clerk District Legally Mtd Crm-GF","District Clerk",121,"I","1950-01-01","9999-12-31",1210]
[null,null,null,121,1210060001,"121CoLglMtdCrm0001","Dist Clerk County Legally Mtd Crm-GF","District Clerk",121,"I","1950-01-01","9999-12-31",1210]
[null,null,null,122,1220010001,"122Dist0001","Civil Courts District-GF","District Judge",122,"P","1950-01-01","9999-12-31",1220]
[null,null,null,122,1220010113,"122Dist0113","Civil Courts District-Ct Rptr Sv Fnd","District Judge",122,"P","1950-01-01","9999-12-31",1220]
[null,null,null,122,1220014034,"122Dist4034","Civil Courts District-CO 2001A","District Judge",122,"P","1950-01-01","9999-12-31",1220]
[null,null,null,122,1220020001,"122Co0001","Civil Courts County-GF","Co Crt At Law Judge",122,"P","1950-01-01","9999-12-31",1220]
[null,null,null,122,1220020113,"122Co0113","Civil Courts County-Ct Rptr Sv Fnd","Co Crt At Law Judge",122,"P","1950-01-01","9999-12-31",1220]
[null,null,null,122,1220030001,"122126DC0001","Civil Courts 126th District Court-GF","District Judge",122,"P","1950-01-01","9999-12-31",1220]
[null,null,null,122,1220040001,"122200DC0001","Civil Courts 200th District Court-GF","District Judge",122,"P","1950-01-01","9999-12-31",1220]
[null,null,null,122,1220050001,"122201DC0001","Civil Courts 201st District Court-GF","District Judge",122,"P","1950-01-01","9999-12-31",1220]
[null,null,null,122,1220060001,"122250DC0001","Civil Courts 250th District Court-GF","District Judge",122,"P","1950-01-01","9999-12-31",1220]
[null,null,null,122,1220070001,"122261DC0001","Civil Courts 261st District Court-GF","District Judge",122,"P","1950-01-01","9999-12-31",1220]
[null,null,null,122,1220080001,"122345DC0001","Civil Courts 345th District Court-GF","District Judge",122,"P","1950-01-01","9999-12-31",1220]
[null,null,null,122,1220090001,"122353DC0001","Civil Courts 353rd District Court-GF","District Judge",122,"P","1950-01-01","9999-12-31",1220]
[null,null,null,122,1220100001,"122419DC0001","Civil Courts 419th District Court-GF","District Judge",122,"P","1950-01-01","9999-12-31",1220]
[null,null,null,122,1220110001,"122053DC0001","Civil Courts 53rd District Court-GF","District Judge",122,"P","1950-01-01","9999-12-31",1220]
[null,null,null,122,1220120001,"122098DC0001","Civil Courts 98th District Court-GF","District Judge",122,"P","1950-01-01","9999-12-31",1220]
[null,null,null,122,1220130001,"122AssocJudge10001","Civil Courts Assoc Judge 1-GF","District Judge",122,"P","1950-01-01","9999-12-31",1220]
[null,null,null,122,1220140001,"122AssocJudge20001","Civil Courts Assoc Judge 2-GF","District Judge",122,"P","1950-01-01","9999-12-31",1220]
[null,null,null,122,1220150001,"122AssocJudge30001","Civil Courts Assoc Judge 3-GF","District Judge",122,"P","1950-01-01","9999-12-31",1220]
[null,null,null,122,1220160001,"122CC10001","Civil Courts Civil Co Ct at Law 1-GF","Co Crt At Law Judge",122,"P","1950-01-01","9999-12-31",1220]
[null,null,null,122,1220170001,"122CC20001","Civil Courts Civil Co Ct at Law 2-GF","Co Crt At Law Judge",122,"P","1950-01-01","9999-12-31",1220]
[null,null,null,122,1220180001,"122CtAdmOfc0001","Civil Courts Ct Administrator's Ofc-GF","District Judge",122,"P","1950-01-01","9999-12-31",1220]
[null,null,null,122,1220190001,"122CtTechTeam0001","Civil Courts Cts Tech Team-GF","District Judge",122,"P","1950-01-01","9999-12-31",1220]
[null,null,null,122,1220200001,"122DistJdgOfc0001","Civil Courts District Judges' Ofc-GF","District Judge",122,"P","1950-01-01","9999-12-31",1220]
[null,null,null,122,1220210001,"122SubCtBail0001","Civil Courts Substitute Ct Bailiffs-GF","District Judge",122,"P","1950-01-01","9999-12-31",1220]
[null,null,null,122,1220220001,"122GenUnAlloc0001","Civil Courts General Unallocated-GF","District Judge",122,"P","1950-01-01","9999-12-31",1220]
[null,null,null,122,1220270001,"122AssocJudge40001","Civil Courts Assoc Judge 4-GF","District Judge",122,"P","1950-01-01","9999-12-31",1220]
[null,null,null,122,1220280001,"122459DC0001","Civil Courts 459th District Court-GF","District Judge",122,"P","1950-01-01","9999-12-31",1220]
[null,null,null,122,1220290001,"122455DC0001","Civil Courts 455th District Court - GF","District Judge",122,"P","1950-01-01","9999-12-31",1220]
[null,null,null,123,1230010001,"123Crm0001","DA Criminal Justice-GF","District Attorney",123,"P","1950-01-01","9999-12-31",1210]
[null,null,null,123,1230010102,"123Crm0102","DA Criminal Justice-DAPSO","District Attorney",123,"P","1950-01-01","9999-12-31",1210]
[null,null,null,123,1230010103,"123Crm0103","DA Criminal Js-State Forfeited Prop Fd","District Attorney",123,"P","1950-01-01","9999-12-31",1210]
[null,null,null,123,1230010116,"123Crm0116","DA Criminal Justice-LEOSE-Elected Ofcls","District Attorney",123,"P","1950-01-01","9999-12-31",1210]
[null,null,null,123,1230010130,"123Crm0130","DA Criminal Justice-Fam Protctn Fd","District Attorney",123,"P","1950-01-01","9999-12-31",1210]
[null,null,null,123,1230020001,"123Civ0001","DA Civil Justice-Title IV-E Billable-GF","District Attorney",123,"P","1950-01-01","9999-12-31",1220]
[null,null,null,123,1230020102,"123Civ0102","DA Civil Justice-DAPSO","District Attorney",123,"P","1950-01-01","9999-12-31",1220]
[null,null,null,123,1230020103,"123Civ0103","DA Civil Js-State Forfeited Prop Fd","District Attorney",123,"P","1950-01-01","9999-12-31",1220]
[null,null,null,123,1230020116,"123Civ0116","DA Civil Justice-LEOSE-Elected Ofcls","District Attorney",123,"P","1950-01-01","9999-12-31",1220]
[null,null,null,123,1230030001,"123JV0001","DA Juvenile Justice-GF","District Attorney",123,"P","1950-01-01","9999-12-31",1230]
[null,null,null,123,1230030102,"123JV0102","DA Juvenile Justice-DAPSO","District Attorney",123,"P","1950-01-01","9999-12-31",1230]
[null,null,null,123,1230030103,"123JV0103","DA Juvenile Js-State Forfeited Prop Fd","District Attorney",123,"P","1950-01-01","9999-12-31",1230]
[null,null,null,123,1230030116,"123JV0116","DA Juvenile Justice-LEOSE-Elected Ofcls","District Attorney",123,"P","1950-01-01","9999-12-31",1230]
[null,null,null,123,1230040001,"123WkrsCompFrd0001","DA Workers Comp Fraud-GF","District Attorney",123,"P","1950-01-01","9999-12-31",1210]
[null,null,null,123,1230050001,"123NuisAbtmnt0001","DA Org Crime/Nuisance Abmt-GF","District Attorney",123,"P","1950-01-01","9999-12-31",1210]
[null,null,null,123,1230060001,"123DAPIUIG0001","DA Public Integrity Unit-GF","District Attorney",123,"P","1950-01-01","9999-12-31",1210]
[null,null,null,123,1230070001,"123CivNB0001","DA Civil Js-Non-Billable-GF","District Attorney",123,"P","1950-01-01","9999-12-31",1220]
[null,null,null,124,1240010001,"124Dist0001","Criminal Courts District-GF","District Judge",124,"P","1950-01-01","9999-12-31",1210]
[null,null,null,124,1240020001,"124DC1470001","Criminal Courts 147th District Court-GF","District Judge",124,"P","1950-01-01","9999-12-31",1210]
[null,null,null,124,1240030001,"124DC1670001","Criminal Courts 167th District Court -GF","District Judge",124,"P","1950-01-01","9999-12-31",1210]
[null,null,null,124,1240040001,"124DC2990001","Criminal Courts 299th District Court-GF","District Judge",124,"P","1950-01-01","9999-12-31",1210]
[null,null,null,124,1240050001,"124DC3310001","Criminal Courts 331st District Court-GF","District Judge",124,"P","1950-01-01","9999-12-31",1210]
[null,null,null,124,1240060001,"124DC3900001","Criminal Courts 390th District Court-GF","District Judge",124,"P","1950-01-01","9999-12-31",1210]
[null,null,null,124,1240070001,"124DC4030001","Criminal Courts 403rd District Court-GF","District Judge",124,"P","1950-01-01","9999-12-31",1210]
[null,null,null,124,1240080001,"124DC4270001","Criminal Courts 427th District Court-GF","District Judge",124,"P","1950-01-01","9999-12-31",1210]
[null,null,null,124,1240090001,"124MagCt0001","Criminal Courts Magistrate Court-GF","District Judge",124,"P","1950-01-01","9999-12-31",1210]
[null,null,null,124,1240100001,"124TechTeam0001","Criminal Courts Technology Team-GF","District Judge",124,"P","1950-01-01","9999-12-31",1210]
[null,null,null,124,1240110001,"124Co0001","Criminal Courts County Division-GF","Co Crt At Law Judge",124,"P","1950-01-01","9999-12-31",1210]
[null,null,null,124,1240120001,"124CC30001","Criminal Courts County Court 3-GF","Co Crt At Law Judge",124,"P","1950-01-01","9999-12-31",1210]
[null,null,null,124,1240130001,"124CC40001","Criminal Courts County Court 4-GF","Co Crt At Law Judge",124,"P","1950-01-01","9999-12-31",1210]
[null,null,null,124,1240140001,"124CC50001","Criminal Courts County Court 5-GF","Co Crt At Law Judge",124,"P","1950-01-01","9999-12-31",1210]
[null,null,null,124,1240150001,"124CC60001","Criminal Courts County Court 6-GF","Co Crt At Law Judge",124,"P","1950-01-01","9999-12-31",1210]
[null,null,null,124,1240160001,"124CC70001","Criminal Courts County Court 7-GF","Co Crt At Law Judge",124,"P","1950-01-01","9999-12-31",1210]
[null,null,null,124,1240170001,"124CC80001","Criminal Courts County Court 8-GF","Co Crt At Law Judge",124,"P","1950-01-01","9999-12-31",1210]
[null,null,null,124,1240180001,"124Adm0001","Criminal Courts Administration Unit-GF","District Judge",124,"P","1950-01-01","9999-12-31",1210]
[null,null,null,124,1240200001,"124DrgCtPgVJDG0001","Crm Cts Drg Ct Pg Visiting Judge-GF","Co Crt At Law Judge",124,"P","1950-01-01","9999-12-31",1210]
[null,null,null,124,1240250001,"124VetCt0001","Criminal Courts Veterans Ct-GF","Co Crt At Law Judge",124,"P","1950-01-01","9999-12-31",1210]
[null,null,null,124,1240250131,"124VetCt0131","Criminal Courts Veterans Ct-Drug Ct Pg","Co Crt At Law Judge",124,"P","1950-01-01","9999-12-31",1210]
[null,null,null,124,1240440001,"124CCCoLMFDWICt0001","Criminal Courts LMF-DWI Court-GF","Co Crt At Law Judge",124,"I","1950-01-01","9999-12-31",1210]
[null,null,null,124,1240460001,"124CCCoVtCtOp0001","Criminal Courts-Vet Court Optg-GF","Co Crt At Law Judge",124,"P","1950-01-01","9999-12-31",1210]
[null,null,null,124,1240470001,"124CC90001","Criminal Courts County Court 9-GF","Co Crt At Law Judge",124,"P","1950-01-01","9999-12-31",1210]
[null,null,null,124,1240480001,"124DC4500001","Criminal Courts 450th District Court-GF","District Judge",124,"P","1950-01-01","9999-12-31",1210]
[null,null,null,124,1240490001,"124DC4600001","Criminal Courts 460th District Court-GF","District Judge",124,"P","1950-01-01","9999-12-31",1210]
[null,null,null,125,1250010001,"125ProbCt0001","Probate Court-GF","Probate Judge",125,"P","1950-01-01","9999-12-31",1220]
[null,null,null,125,1250010113,"125ProbCt0113","Probate Court-Court Reporter Sv Fd","Probate Judge",125,"P","1950-01-01","9999-12-31",1220]
[null,null,null,125,1250010124,"125ProbCt0124","Probate Court-Judiciary Fee Fd","Probate Judge",125,"P","1950-01-01","9999-12-31",1220]
[null,null,null,125,1250010132,"125ProbCt0132","Probate Court-Grdnshp Probate Grdnshp Fd","Probate Judge",125,"P","1950-01-01","9999-12-31",1220]
[null,null,null,125,1250010159,"125ProbCt0159","Probate Court-Jud Educ&Suppt Fd","Probate Judge",125,"P","1950-01-01","9999-12-31",1220]
[null,null,null,125,1250020001,"125MntlHlth0001","Probate Court-Mental Hth-GF","Probate Judge",125,"P","1950-01-01","9999-12-31",1220]
[null,null,null,125,1250020124,"125MntlHlth0124","Probate Court-Mental Hth Judcy Fee Fd","Probate Judge",125,"P","1950-01-01","9999-12-31",1220]
[null,null,null,125,1250030001,"125Guardshp0001","Probate Court-Guardianship-GF","Probate Judge",125,"P","1950-01-01","9999-12-31",1220]
[null,null,null,125,1250030124,"125Guardshp0124","Probate Court-Guardianship Judcy Fee Fd","Probate Judge",125,"P","1950-01-01","9999-12-31",1220]
[null,null,null,126,1260010001,"126Civ0001","JP1 Civil-GF","JP Pct  1",126,"P","1950-01-01","9999-12-31",1220]
[null,null,null,126,1260010125,"126Civ0125","JP1 Civil-Jst Ct Technology","JP Pct  1",126,"P","1950-01-01","9999-12-31",1220]
[null,null,null,126,1260010133,"126Civ0133","JP1 Civil-Vital Statistic Presrvtn","JP Pct  1",126,"P","1950-01-01","9999-12-31",1220]
[null,null,null,126,1260010158,"126Civ0158","JP1 Civil-Language Access Fd","JP Pct 1",126,"P","1950-01-01","9999-12-31",1220]
[null,null,null,126,1260010161,"126Civ0161","JP1 Civil-Justice Ct Suppt Fd","JP Pct 1",126,"P","1950-01-01","9999-12-31",1220]
[null,null,null,126,1260020001,"126Crm0001","JP1 Criminal-GF","JP Pct  1",126,"P","1950-01-01","9999-12-31",1210]
[null,null,null,126,1260020111,"126Crm0111","JP1 Criminal-Courthouse Security Fd","JP Pct  1",126,"P","1950-01-01","9999-12-31",1210]
[null,null,null,126,1260020125,"126Crm0125","JP1 Criminal-Js Ct Technology","JP Pct  1",126,"P","1950-01-01","9999-12-31",1210]
[null,null,null,126,1260020136,"126Crm0136","JP1 Criminal-Justice Ct Bldg Security","JP Pct  1",126,"P","1950-01-01","9999-12-31",1210]
[null,null,null,126,1260020137,"126Crm0137","JP1 Criminal-Juvenile Case Mgr Fd","JP Pct  1",126,"P","1950-01-01","9999-12-31",1210]
[null,null,null,126,1260020145,"126Crm0145","JP1 Criminal-RdBg Fd","JP Pct  1",126,"P","1950-01-01","9999-12-31",1210]
[null,null,null,126,1260020152,"126Crm0152","JP1 Criminal-Juv Case Mgr Pgm Fd","JP Pct  1",126,"P","1950-01-01","9999-12-31",1210]
[null,null,null,126,1260020156,"126Crm0156","JP1 Criminal-County Jury Fd","JP Pct  1",126,"P","1950-01-01","9999-12-31",1210]
[null,null,null,126,1260050153,"126JuvSvs0153","JP1 Juvenile Svs-Truancy Civil Court Fd","JP Pct  1",126,"P","1950-01-01","9999-12-31",1230]
[null,null,null,127,1270010001,"127Civ0001","JP2 Civil-GF","JP Pct  2",127,"P","1950-01-01","9999-12-31",1220]
[null,null,null,127,1270010125,"127Civ0125","JP2 Civil-Js Ct Technology","JP Pct  2",127,"P","1950-01-01","9999-12-31",1220]
[null,null,null,127,1270010133,"127Civ0133","JP2 Civil-Vital Statistic Presrvtn","JP Pct  2",127,"P","1950-01-01","9999-12-31",1220]
[null,null,null,127,1270010136,"127Civ0136","JP2 Civil-Justice Ct Bldg Security","JP Pct  2",127,"P","1950-01-01","9999-12-31",1220]
[null,null,null,127,1270010158,"127Civ0158","JP2 Civil-Language Access Fd","JP Pct 2",127,"P","1950-01-01","9999-12-31",1220]
[null,null,null,127,1270010161,"127Civ0161","JP2 Civil-Justice Ct Suppt Fd","JP Pct 2",127,"P","1950-01-01","9999-12-31",1220]
[null,null,null,127,1270020001,"127Crm0001","JP2 Criminal-GF","JP Pct  2",127,"P","1950-01-01","9999-12-31",1210]
[null,null,null,127,1270020111,"127Crm0111","JP2 Criminal-Courthouse Security Fd","JP Pct  2",127,"P","1950-01-01","9999-12-31",1210]
[null,null,null,127,1270020125,"127Crm0125","JP2 Criminal-Js Ct Technology","JP Pct  2",127,"P","1950-01-01","9999-12-31",1210]
[null,null,null,127,1270020136,"127Crm0136","JP2 Criminal-Justice Ct Bldg Security","JP Pct  2",127,"P","1950-01-01","9999-12-31",1210]
[null,null,null,127,1270020137,"127Crm0137","JP2 Criminal-Juvenile Case Mgr Fd","JP Pct  2",127,"P","1950-01-01","9999-12-31",1210]
[null,null,null,127,1270020145,"127Crm0145","JP2 Criminal-RdBg Fd","JP Pct  2",127,"P","1950-01-01","9999-12-31",1210]
[null,null,null,127,1270020152,"127Crm0152","JP2 Criminal-Juv Case Mgr Pgm Fd","JP Pct  2",127,"P","1950-01-01","9999-12-31",1210]
[null,null,null,127,1270020156,"127Crm0156","JP2 Criminal-County Jury Fd","JP Pct  2",127,"P","1950-01-01","9999-12-31",1210]
[null,null,null,127,1270030001,"127CivAcctg0001","JP2 Accounting Civil-GF","JP Pct  2",127,"P","1950-01-01","9999-12-31",1220]
[null,null,null,127,1270040001,"127CrmAcctg0001","JP2 Accounting Criminal-GF","JP Pct  2",127,"P","1950-01-01","9999-12-31",1210]
[null,null,null,127,1270050153,"127JuvSvs0153","JP2 Juvenile Svs-Truancy Civil Court Fd","JP Pct  2",127,"P","1950-01-01","9999-12-31",1230]
[null,null,null,128,1280010001,"128Civ0001","JP3 Civil-GF","JP Pct  3",128,"P","1950-01-01","9999-12-31",1220]
[null,null,null,128,1280010125,"128Civ0125","JP3 Civil-Js Ct Technology","JP Pct  3",128,"P","1950-01-01","9999-12-31",1220]
[null,null,null,128,1280010133,"128Civ0133","JP3 Civil-Vital Statistic Presrvtn","JP Pct  3",128,"P","1950-01-01","9999-12-31",1220]
[null,null,null,128,1280010158,"128Civ0158","JP3 Civil-Language Access Fd","JP Pct 3",128,"P","1950-01-01","9999-12-31",1220]
[null,null,null,128,1280010161,"128Civ0161","JP3 Civil-Justice Ct Suppt Fd","JP Pct 3",128,"P","1950-01-01","9999-12-31",1220]
[null,null,null,128,1280020001,"128Crm0001","JP3 Criminal-GF","JP Pct  3",128,"P","1950-01-01","9999-12-31",1210]
[null,null,null,128,1280020111,"128Crm0111","JP3 Criminal-Courthouse Security Fd","JP Pct  3",128,"P","1950-01-01","9999-12-31",1210]
[null,null,null,128,1280020125,"128Crm0125","JP3 Criminal-Js Ct Technology","JP Pct  3",128,"P","1950-01-01","9999-12-31",1210]
[null,null,null,128,1280020136,"128Crm0136","JP3 Criminal-Justice Ct Bldg Security","JP Pct  3",128,"P","1950-01-01","9999-12-31",1210]
[null,null,null,128,1280020137,"128Crm0137","JP3 Criminal-Juvenile Case Mgr Fd","JP Pct  3",128,"P","1950-01-01","9999-12-31",1210]
[null,null,null,128,1280020145,"128Crm0145","JP3 Criminal-RdBg Fd","JP Pct  3",128,"P","1950-01-01","9999-12-31",1210]
[null,null,null,128,1280020152,"128Crm0152","JP3 Criminal-Juv Case Mgr Pgm Fd","JP Pct  3",128,"P","1950-01-01","9999-12-31",1210]
[null,null,null,128,1280020156,"128Crm0156","JP3 Criminal-County Jury Fd","JP Pct  3",128,"P","1950-01-01","9999-12-31",1210]
[null,null,null,128,1280050153,"128JuvSvs0153","JP3 Juvenile Svs-Truancy Civil Court Fd","JP Pct  3",128,"P","1950-01-01","9999-12-31",1230]
[null,null,null,129,1290010001,"129Civ0001","JP4 Civil-GF","JP Pct  4",129,"P","1950-01-01","9999-12-31",1220]
[null,null,null,129,1290010133,"129Civ0133","JP4 Civil-Vital Statistic Presrvtn","JP Pct  4",129,"P","1950-01-01","9999-12-31",1220]
[null,null,null,129,1290010158,"129Civ0158","JP4 Civil-Language Access Fd","JP Pct 4",129,"P","1950-01-01","9999-12-31",1220]
[null,null,null,129,1290010161,"129Civ0161","JP4 Civil-Justice Ct Suppt Fd","JP Pct 4",129,"P","1950-01-01","9999-12-31",1220]
[null,null,null,129,1290020001,"129Crm0001","JP4 Criminal-GF","JP Pct  4",129,"P","1950-01-01","9999-12-31",1210]
[null,null,null,129,1290020111,"129Crm0111","JP4 Criminal-Courthouse Security Fd","JP Pct  4",129,"P","1950-01-01","9999-12-31",1210]
[null,null,null,129,1290020125,"129Crm0125","JP4 Criminal-Js Ct Technology","JP Pct  4",129,"P","1950-01-01","9999-12-31",1210]
[null,null,null,129,1290020136,"129Crm0136","JP4 Criminal-Justice Ct Bldg Security","JP Pct  4",129,"P","1950-01-01","9999-12-31",1210]
[null,null,null,129,1290020137,"129Crm0137","JP4 Criminal-Juvenile Case Mgr Fd","JP Pct  4",129,"P","1950-01-01","9999-12-31",1210]
[null,null,null,129,1290020145,"129Crm0145","JP4 Criminal-RdBg Fd","JP Pct  4",129,"P","1950-01-01","9999-12-31",1210]
[null,null,null,129,1290020152,"129Crm0152","JP4 Criminal-Juv Case Mgr Pgm Fd","JP Pct  4",129,"P","1950-01-01","9999-12-31",1210]
[null,null,null,129,1290020156,"129Crm0156","JP4 Criminal-County Jury Fd","JP Pct  4",129,"P","1950-01-01","9999-12-31",1210]
[null,null,null,129,1290030001,"129AdmCiv0001","JP4 AdmCivil-GF","JP Pct  4",129,"P","2019-04-25","9999-12-31",1220]
[null,null,null,129,1290040001,"129AdmCrm0001","JP4 AdmCriminal-GF","JP Pct  4",129,"P","2019-04-25","9999-12-31",1210]
[null,null,null,129,1290050153,"129JuvSvs0153","JP4 Juvenile Svs-Truancy Civil Court Fd","JP Pct  4",129,"P","1950-01-01","9999-12-31",1230]
[null,null,null,130,1300010001,"130Civ0001","JP5 Civil-GF","JP Pct  5",130,"P","1950-01-01","9999-12-31",1220]
[null,null,null,130,1300010125,"130Civ0125","JP5 Civil-Js Ct Tech Fd","JP Pct  5",130,"P","1950-01-01","9999-12-31",1220]
[null,null,null,130,1300010133,"130Civ0133","JP5 Civil-Vital Stat Pres Fd","JP Pct  5",130,"P","1950-01-01","9999-12-31",1220]
[null,null,null,130,1300010158,"130Civ0158","JP5 Civil-Language Access Fd","JP Pct 5",130,"P","1950-01-01","9999-12-31",1220]
[null,null,null,130,1300010161,"130Civ0161","JP5 Civil-Justice Ct Suppt Fd","JP Pct 5",130,"P","1950-01-01","9999-12-31",1220]
[null,null,null,130,1300020001,"130Crm0001","JP5 Criminal-GF","JP Pct  5",130,"P","1950-01-01","9999-12-31",1210]
[null,null,null,130,1300020111,"130Crm0111","JP5 Criminal-Courthouse Security Fd","JP Pct  5",130,"P","1950-01-01","9999-12-31",1210]
[null,null,null,130,1300020125,"130Crm0125","JP5 Criminal-Js Ct Technology","JP Pct  5",130,"P","1950-01-01","9999-12-31",1210]
[null,null,null,130,1300020136,"130Crm0136","JP5 Criminal-Justice Ct Bldg Security","JP Pct  5",130,"P","1950-01-01","9999-12-31",1210]
[null,null,null,130,1300020137,"130Crm0137","JP5 Criminal-Juvenile Case Mgr Fd","JP Pct  5",130,"P","1950-01-01","9999-12-31",1210]
[null,null,null,130,1300020145,"130Crm0145","JP5 Criminal-RdBg Fd","JP Pct  5",130,"P","1950-01-01","9999-12-31",1210]
[null,null,null,130,1300020152,"130Crm0152","JP5 Criminal-Juv Case Mgr Pgm Fd","JP Pct  5",130,"P","1950-01-01","9999-12-31",1210]
[null,null,null,130,1300020156,"130Crm0156","JP5 Criminal-County Jury Fd","JP Pct  5",130,"P","1950-01-01","9999-12-31",1210]
[null,null,null,130,1300050153,"130JuvSvs0153","JP5 Juvenile Svs-Truancy Civil Court Fd","JP Pct  5",130,"P","1950-01-01","9999-12-31",1230]
[null,null,null,131,1310010001,"131Civ0001","Constable1 Civil-GF","Constable Pct 1",131,"P","1950-01-01","9999-12-31",1310]
[null,null,null,131,1310020001,"131Crm0001","Constable1 Criminal-GF","Constable Pct 1",131,"P","1950-01-01","9999-12-31",1310]
[null,null,null,131,1310020116,"131Crm0116","Constable1 Criminal-LEOSE Fd","Constable Pct 1",131,"P","1950-01-01","9999-12-31",1310]
[null,null,null,131,1310040001,"131Sec0001","Constable1 Security-GF","Constable Pct 1",131,"P","1950-01-01","9999-12-31",1310]
[null,null,null,132,1320010001,"132Civ0001","Constable2 Civil-GF","Constable Pct 2",132,"P","1950-01-01","9999-12-31",1310]
[null,null,null,132,1320020001,"132Crm0001","Constable2 Criminal-GF","Constable Pct 2",132,"P","1950-01-01","9999-12-31",1310]
[null,null,null,132,1320020103,"132Crm0103","Constable2 Criminal-Law Enf Fd","Constable Pct 2",132,"P","1950-01-01","9999-12-31",1310]
[null,null,null,132,1320020116,"132Crm0116","Constable2 Criminal-LEOSE Fd","Constable Pct 2",132,"P","1950-01-01","9999-12-31",1310]
[null,null,null,132,1320030001,"132Adm0001","Constable2 Adm-GF","Constable Pct 2",132,"P","1950-01-01","9999-12-31",1310]
[null,null,null,132,1320040001,"132Sec0001","Constable2 Security-GF","Constable Pct 2",132,"P","1950-01-01","9999-12-31",1310]
[null,null,null,132,1320050001,"132IntloclAgmt0001","Constable2 Interlocal Agreement-GF","Constable Pct 2",132,"P","1950-01-01","9999-12-31",1310]
[null,null,null,132,1320060001,"132Telecom0001","Constable2 Telecommunications-GF","Constable Pct 2",132,"P","1950-01-01","9999-12-31",1310]
[null,null,null,133,1330010001,"133Civ0001","Constable3 Civil-GF","Constable Pct 3",133,"P","1950-01-01","9999-12-31",1310]
[null,null,null,133,1330020001,"133Crm0001","Constable3 Criminal-GF","Constable Pct 3",133,"P","1950-01-01","9999-12-31",1310]
[null,null,null,133,1330020116,"133Crm0116","Constable3 Criminal-LEOSE Fd","Constable Pct 3",133,"P","1950-01-01","9999-12-31",1310]
[null,null,null,133,1330030001,"133Adm0001","Constable 3 Adm-GF","Constable Pct 3",133,"P","1950-01-01","9999-12-31",1310]
[null,null,null,133,1330040001,"133PbcSft0001","Constable 3 PbcSft-GF","Constable Pct 3",133,"P","1950-01-01","9999-12-31",1310]
[null,null,null,133,1330050001,"133Sec0001","Constable 3 Security-GF","Constable Pct 3",133,"P","1950-01-01","9999-12-31",1310]
[null,null,null,133,1330050136,"133Sec0136","Constable 3 Security-Js Ct Bldg Sec Fd","Constable Pct 3",133,"P","1950-01-01","9999-12-31",1310]
[null,null,null,133,1330060001,"133LE0001","Constable 3 LE-GF","Constable Pct 3",133,"P","1950-01-01","9999-12-31",1310]
[null,null,null,134,1340010001,"134Civ0001","Constable 4 Civil-GF","Constable Pct 4",134,"P","1950-01-01","9999-12-31",1310]
[null,null,null,134,1340020001,"134Crm0001","Constable 4 Criminal-GF","Constable Pct 4",134,"P","1950-01-01","9999-12-31",1310]
[null,null,null,134,1340020116,"134Crm0116","Constable 4 Criminal-LEOSE Fd","Constable Pct 4",134,"P","1950-01-01","9999-12-31",1310]
[null,null,null,134,1340040001,"134Sec0001","Constable 4 Security-GF","Constable Pct 4",134,"P","1950-01-01","9999-12-31",1310]
[null,null,null,135,1350010001,"135Civ0001","Constable 5 Civil-GF","Constable Pct 5",135,"P","1950-01-01","9999-12-31",1310]
[null,null,null,135,1350010128,"135Civ0128","Constable 5 Civil-Elections Contract Fd","Constable Pct 5",135,"P","1950-01-01","9999-12-31",1310]
[null,null,null,135,1350020001,"135Crm0001","Constable 5 Criminal-GF","Constable Pct 5",135,"P","1950-01-01","9999-12-31",1310]
[null,null,null,135,1350020116,"135Crm0116","Constable 5 Criminal-LEOSE Fd","Constable Pct 5",135,"P","1950-01-01","9999-12-31",1310]
[null,null,null,135,1350020125,"135Crm0125","Constable 5 Criminal-Js Ct Tech Fd","Constable Pct 5",135,"P","1950-01-01","9999-12-31",1310]
[null,null,null,135,1350030001,"135AbStudAstPg0001","Constable 5 Absent Student Asst Pg-GF","Constable Pct 5",135,"P","1950-01-01","9999-12-31",1310]
[null,null,null,135,1350040001,"135Sec0001","Constable 5 Security-GF","Constable Pct 5",135,"P","1950-01-01","9999-12-31",1310]
[null,null,null,135,1350050103,"135ForfProp0103","Constable 5 Forfeited Property-Law Enf F","Constable Pct 5",135,"P","1950-01-01","9999-12-31",1310]
[null,null,null,135,1350060001,"135Exc0001","Constable 5 Executive-GF","Constable Pct 5",135,"P","1950-01-01","9999-12-31",1310]
[null,null,null,135,1350070001,"135Adm0001","Constable 5 Administration-GF","Constable Pct 5",135,"P","1950-01-01","9999-12-31",1310]
[null,null,null,135,1350080001,"135DsbPkg0001","Constable 5 Disabled Parking-GF","Constable Pct 5",135,"P","1950-01-01","9999-12-31",1310]
[null,null,null,135,1350090001,"135AGCiv0001","Constable 5 AG Civil-GF","Constable Pct 5",135,"P","1950-01-01","9999-12-31",1310]
[null,null,null,135,1350100001,"135AGCrm0001","Constable 5 AG Criminal-GF","Constable Pct 5",135,"P","1950-01-01","9999-12-31",1310]
[null,null,null,135,1350110120,"135AbanVeh0120","Constable 5 Abandoned Vehicles-Ab Veh Fd","Constable Pct 5",135,"P","1950-01-01","9999-12-31",1310]
[null,null,null,136,1360010104,"136DRC0104","Dispute Resolution Center-DRC fd","Comm Supv Corr Dir",136,"P","1950-01-01","9999-12-31",1220]
[null,null,null,137,1370010001,"137ExAdmIntel0001","TCSO Exec Adm Intelligence-GF","Sheriff",137,"P","1950-01-01","9999-12-31",1310]
[null,null,null,137,1370020001,"137ExAdmIA0001","TCSO Exec Adm Internal Affairs-GF","Sheriff",137,"P","1950-01-01","9999-12-31",1310]
[null,null,null,137,1370030001,"137ExAdmRhPlng0001","TCSO Exec Adm Resrch and Plan-GF","Sheriff",137,"P","1950-01-01","9999-12-31",1310]
[null,null,null,137,1370040001,"137AdmHR0001","TCSO Adm/Supp HR-GF","Sheriff",137,"P","1950-01-01","9999-12-31",1410]
[null,null,null,137,1370050001,"137AdmFin0001","TCSO Adm/Supp Finance-GF","Sheriff",137,"P","1950-01-01","9999-12-31",1410]
[null,null,null,137,1370060001,"137AdmCtlRec0001","TCSO Adm/Supp Central Records-GF","Sheriff",137,"P","1950-01-01","9999-12-31",1410]
[null,null,null,137,1370070001,"137AdmCtlWts0001","TCSO Adm/Supp Central Warrants-GF","Sheriff",137,"P","1950-01-01","9999-12-31",1410]
[null,null,null,137,1370080001,"137AdmITS0001","TCSO Adm/Supp ITS-GF","Sheriff",137,"P","1950-01-01","9999-12-31",1310]
[null,null,null,137,1370090001,"137AdmTrngAcd0001","TCSO Adm/Supp Training Academy-GF","Sheriff",137,"P","1950-01-01","9999-12-31",1410]
[null,null,null,137,1370100001,"137AdmFrgRng0001","TCSO Adm/Supp Firing Range-GF","Sheriff",137,"P","1950-01-01","9999-12-31",1410]
[null,null,null,137,1370110001,"137AdmCmtySvs0001","TCSO Adm/Supp Community Services-GF","Sheriff",137,"P","1950-01-01","9999-12-31",1310]
[null,null,null,137,1370120001,"137AdmPubSfty0001","TCSO Adm/Supp Pub Safety-GF","Sheriff",137,"P","1950-01-01","9999-12-31",1310]
[null,null,null,137,1370130001,"137ExAdm0001","TCSO Exec Adm-GF","Sheriff",137,"P","1950-01-01","9999-12-31",1310]
[null,null,null,137,1370140001,"137AdmCJIS0001","TCSO Adm/Supp CJIS/TDC-GF","Sheriff",137,"P","1950-01-01","9999-12-31",1410]
[null,null,null,137,1370150001,"137MSMenHlh0001","TCSO Med Svs Mental Health-GF","Sheriff",137,"P","1950-01-01","9999-12-31",1410]
[null,null,null,137,1370160001,"137CrcComplex0001","TCSO Crc Complex Security-GF","Sheriff",137,"P","1950-01-01","9999-12-31",1410]
[null,null,null,137,1370170001,"137AdmHsng0001","TCSO Adm/Supp Housing-GF","Sheriff",137,"P","1950-01-01","9999-12-31",1410]
[null,null,null,137,1370260001,"137CTECC0001","TCSO CTECC-GF","Sheriff",137,"P","1950-01-01","9999-12-31",1310]
[null,null,null,137,1370270001,"137CrcBldg10001","TCSO Crc Building 1-GF","Sheriff",137,"P","1950-01-01","9999-12-31",1410]
[null,null,null,137,1370280001,"137CrcBldg20001","TCSO Crc Bldg 2 3 5-9 10 & CCB-GF","Sheriff",137,"P","1950-01-01","9999-12-31",1410]
[null,null,null,137,1370290001,"137CrcBldg120001","TCSO Crc Building 12-GF","Sheriff",137,"P","1950-01-01","9999-12-31",1410]
[null,null,null,137,1370300001,"137CrcCtlBkgFac0001","TCSO Crc Central Booking Facility-GF","Sheriff",137,"P","1950-01-01","9999-12-31",1410]
[null,null,null,137,1370310001,"137CrcCmsry0001","TCSO Crc Commissary-GF","Sheriff",137,"P","1950-01-01","9999-12-31",1410]
[null,null,null,137,1370310112,"137CrcCmsry0112","TCSO Crc Commissary-Comm Fd","Sheriff",137,"P","1950-01-01","9999-12-31",1410]
[null,null,null,137,1370320001,"137CthseSec0001","TCSO Courthouse Security-GF","Sheriff",137,"P","1950-01-01","9999-12-31",1310]
[null,null,null,137,1370320111,"137CthseSec0111","TCSO Courthouse Security-Cthse Sec Fd","Sheriff",137,"P","1950-01-01","9999-12-31",1310]
[null,null,null,137,1370330001,"137CrcEng0001","TCSO Crc Engineering-GF","Sheriff",137,"P","1950-01-01","9999-12-31",1410]
[null,null,null,137,1370340001,"137CrcFireSfty0001","TCSO Crc Fire & Safety-GF","Sheriff",137,"P","1950-01-01","9999-12-31",1410]
[null,null,null,137,1370350001,"137CrcHlhSvBd0001","TCSO Crc Health Svs Bldg-GF","Sheriff",137,"P","1950-01-01","9999-12-31",1410]
[null,null,null,137,1370360001,"137CrcHospVisit0001","TCSO Crc Hospital Visit Unit-GF","Sheriff",137,"P","1950-01-01","9999-12-31",1410]
[null,null,null,137,1370370001,"137CrcKitchen0001","TCSO Crc Kitchen-GF","Sheriff",137,"P","1950-01-01","9999-12-31",1410]
[null,null,null,137,1370380001,"137CrcLaundry0001","TCSO Crc Laundry & Warehouse-GF","Sheriff",137,"P","1950-01-01","9999-12-31",1410]
[null,null,null,137,1370390001,"137CrcMnt0001","TCSO Crc Maintenance-GF","Sheriff",137,"P","1950-01-01","9999-12-31",1410]
[null,null,null,137,1370400001,"137CrcSWAP0001","TCSO Crc Marketable Skills & SWAP-GF","Sheriff",137,"P","1950-01-01","9999-12-31",1410]
[null,null,null,137,1370410001,"137CrcClassRec0001","TCSO Crc Classification/Records-GF","Sheriff",137,"P","1950-01-01","9999-12-31",1410]
[null,null,null,137,1370420001,"137CrcTranport0001","TCSO Crc Transportation-GF","Sheriff",137,"P","1950-01-01","9999-12-31",1410]
[null,null,null,137,1370430001,"137CrcTCJail0001","TCSO Crc Travis County Jail-GF","Sheriff",137,"P","1950-01-01","9999-12-31",1410]
[null,null,null,137,1370440000,"137CrcSupportBr0000","TCSO Crc Support Br-Cap Proj","Sheriff",137,"P","1950-01-01","9999-12-31",1410]
[null,null,null,137,1370440001,"137CrcSupportBr0001","TCSO Crc Support Br-GF","Sheriff",137,"P","1950-01-01","9999-12-31",1410]
[null,null,null,137,1370444034,"137CrcSupportBr4034","TCSO Crc Support Br-CO 2001A","Sheriff",137,"P","1950-01-01","9999-12-31",1410]
[null,null,null,137,1370444044,"137CrcSupportBr4044","TCSO Crc Support Br-CO 2005","Sheriff",137,"P","1950-01-01","9999-12-31",1410]
[null,null,null,137,1370444055,"137CrcSupportBr4055","TCSO Crc Support Br-CO 2007A","Sheriff",137,"P","1950-01-01","9999-12-31",1410]
[null,null,null,137,1370444056,"137CrcSupportBr4056","TCSO Crc Support Br-CO 2008","Sheriff",137,"P","1950-01-01","9999-12-31",1410]
[null,null,null,137,1370444063,"137CrcSupportBr4063","TCSO Crc Support Br-CO 2010 Non Tax","Sheriff",137,"P","1950-01-01","9999-12-31",1410]
[null,null,null,137,1370444068,"137CrcSupportBr4068","TCSO Crc Support Br-CO 2011 Non Tax","Sheriff",137,"P","1950-01-01","9999-12-31",1410]
[null,null,null,137,1370460001,"137CtlBkg0001","TCSO Central Booking-GF","Sheriff",137,"P","1950-01-01","9999-12-31",1410]
[null,null,null,137,1370470001,"137MSPharmDrg0001","TCSO Med Svs Drugs/Pharmaceuticals-GF","Sheriff",137,"P","1950-01-01","9999-12-31",1410]
[null,null,null,137,1370480001,"137MSPharmacy0001","TCSO Medical Svs Pharmacy-GF","Sheriff",137,"P","1950-01-01","9999-12-31",1410]
[null,null,null,137,1370490001,"137MSCntrctMedSv0001","TCSO Medical Svs Contracted Med Svs-GF","Sheriff",137,"P","1950-01-01","9999-12-31",1410]
[null,null,null,137,1370500001,"137MSDentist0001","TCSO Med Svs Dentist-GF","Sheriff",137,"P","1950-01-01","9999-12-31",1410]
[null,null,null,137,1370520001,"137LEMntlHlth0001","TCSO LE Mental Health","Sheriff",137,"P","1950-01-01","9999-12-31",1310]
[null,null,null,137,1370530001,"137FedForfProp0001","TCSO Fed Forfeited Property-GF","Sheriff",137,"P","1950-01-01","9999-12-31",1310]
[null,null,null,137,1370530103,"137FedForfProp0103","TCSO Fed Forfeited Property-LE Fd","Sheriff",137,"P","1950-01-01","9999-12-31",1310]
[null,null,null,137,1370540103,"137StForfProp0103","TCSO State Forfeited Property-LE Fd","Sheriff",137,"P","1950-01-01","9999-12-31",1310]
[null,null,null,137,1370560001,"137ISChaplain0001","TCSO Inmate Svs Chaplain-GF","Sheriff",137,"P","1950-01-01","9999-12-31",1410]
[null,null,null,137,1370570001,"137ISCounseling0001","TCSO Inmate Svs Counseling-GF","Sheriff",137,"P","1950-01-01","9999-12-31",1410]
[null,null,null,137,1370580001,"137ISPrograms0001","TCSO Inmate Svs Programs-GF","Sheriff",137,"P","1950-01-01","9999-12-31",1410]
[null,null,null,137,1370600001,"137AutoThftTF0001","TCSO Auto Theft Task Force-GF","Sheriff",137,"P","1950-01-01","9999-12-31",1310]
[null,null,null,137,1370600103,"137AutoThftTF0103","TCSO Auto Theft Task Force-LE Fd","Sheriff",137,"P","1950-01-01","9999-12-31",1310]
[null,null,null,137,1370610001,"137LECanine0001","TCSO LE Canine-GF","Sheriff",137,"P","1950-01-01","9999-12-31",1310]
[null,null,null,137,1370620001,"137LECID0001","TCSO LE CID-GF","Sheriff",137,"P","1950-01-01","9999-12-31",1310]
[null,null,null,137,1370630001,"137LECrimeLab0001","TCSO LE Crime Lab-GF","Sheriff",137,"P","1950-01-01","9999-12-31",1310]
[null,null,null,137,1370640001,"137LEDispatch0001","TCSO LE Dispatch-GF","Sheriff",137,"P","1950-01-01","9999-12-31",1310]
[null,null,null,137,1370650001,"137LEDiveTeam0001","TCSO LE Dive Team-GF","Sheriff",137,"P","1950-01-01","9999-12-31",1310]
[null,null,null,137,1370660001,"137LEImpVehicle0001","TCSO LE Impound Vehicle-GF","Sheriff",137,"P","1950-01-01","9999-12-31",1310]
[null,null,null,137,1370670001,"137LELakePatrol0001","TCSO LE Lake Patrol-GF","Sheriff",137,"P","1950-01-01","9999-12-31",1310]
[null,null,null,137,1370680001,"137LELivestock0001","TCSO LE Livestock-GF","Sheriff",137,"P","1950-01-01","9999-12-31",1310]
[null,null,null,137,1370690001,"137LENarcotics0001","TCSO LE Narcotics-GF","Sheriff",137,"P","1950-01-01","9999-12-31",1310]
[null,null,null,137,1370700001,"137LEPatrol0001","TCSO LE Patrol-GF","Sheriff",137,"P","1950-01-01","9999-12-31",1310]
[null,null,null,137,1370710001,"137LESRO0001","TCSO LE School Resource Officer-GF","Sheriff",137,"P","1950-01-01","9999-12-31",1310]
[null,null,null,137,1370720001,"137LESWAT0001","TCSO LE SWAT-GF","Sheriff",137,"P","1950-01-01","9999-12-31",1310]
[null,null,null,137,1370730001,"137LETraffic0001","TCSO LE Traffic-GF","Sheriff",137,"P","1950-01-01","9999-12-31",1310]
[null,null,null,137,1370740001,"137LEVicSrvcs0001","TCSO LE Victim Services-GF","Sheriff",137,"P","1950-01-01","9999-12-31",1310]
[null,null,null,137,1370750001,"137LESupportBr0001","TCSO LE Support Br-GF","Sheriff",137,"P","1950-01-01","9999-12-31",1310]
[null,null,null,137,1370750116,"137LESupportBr0116","TCSO LE Support Br-LEOSE Fd","Sheriff",137,"P","1950-01-01","9999-12-31",1310]
[null,null,null,137,1370750120,"137LESupportBr0120","TCSO LE Support Br-Aban Veh & Livestock","Sheriff",137,"P","1950-01-01","9999-12-31",1310]
[null,null,null,137,1370750135,"137LESupportBr0135","TCSO LE Support Br-Child Abuse Fd","Sheriff",137,"P","1950-01-01","9999-12-31",1310]
[null,null,null,137,1370750145,"137LESupportBr0145","TCSO LE Support Br-RdBrdg Fd","Sheriff",137,"P","1950-01-01","9999-12-31",1310]
[null,null,null,137,1370750156,"137LESupportBr0156","TCSO LE Support Br-Jury Fd","Sheriff",137,"P","2020-06-01","9999-12-31",1310]
[null,null,null,137,1370754063,"137LESupportBr4063","TCSO LE Support Br-CO 2010 Non Tax","Sheriff",137,"P","1950-01-01","9999-12-31",1310]
[null,null,null,137,1370760000,"137GrntAdm0000","TCSO Grant Adm-Inactive Grant Conversion","Sheriff",137,"P","1950-01-01","9999-12-31",1310]
[null,null,null,137,1370770001,"137CrcRiskMgmt0001","TCSO Crc Risk Management GF","Sheriff",137,"P","1950-01-01","9999-12-31",1410]
[null,null,null,137,1370780001,"137LERiskMgmt0001","TCSO LE Risk Management GF","Sheriff",137,"P","1950-01-01","9999-12-31",1310]
[null,null,null,137,1370790000,"137CrcVisit0000","TCSO Crc Visitation","Sheriff",137,"P","1900-01-01","9999-12-31",1410]
[null,null,null,137,1370790001,"137CrcVisit0001","TCSO Crc Visitation-GF","Sheriff",137,"P","1900-01-01","9999-12-31",1410]
[null,null,null,137,1379000001,"137ReimburseRes0001","TCSO Reimbursement Resolution Funds-GF","Sheriff",137,"R","1950-01-01","9999-12-31",1410]
[null,null,null,138,1380010000,"138FY17CO0000","FY 2017 CO Issuance","Medical Examiner",138,"P","1950-01-01","9999-12-31",1310]
[null,null,null,138,1380010001,"138Adm0001","ME Adm-GF","Medical Examiner",138,"P","1950-01-01","9999-12-31",1310]
[null,null,null,138,1380020001,"138Pathology0001","ME Pathology-GF","Medical Examiner",138,"P","1950-01-01","9999-12-31",1310]
[null,null,null,138,1380030001,"138Laboratory0001","ME Laboratory-GF","Medical Examiner",138,"P","1950-01-01","9999-12-31",1310]
[null,null,null,138,1380040001,"138Histology0001","ME Histology-GF","Medical Examiner",138,"P","1950-01-01","9999-12-31",1310]
[null,null,null,138,1380050001,"138Investigative0001","ME Investigative-GF","Medical Examiner",138,"P","1950-01-01","9999-12-31",1310]
[null,null,null,138,1380060001,"138Autopsy0001","ME Autopsy-GF","Medical Examiner",138,"P","1950-01-01","9999-12-31",1310]
[null,null,null,138,1380074034,"138ForensicLab4034","ME Forensic Laboratory-CO 2001A","Medical Examiner",138,"P","1950-01-01","9999-12-31",1310]
[null,null,null,138,1389000001,"138ReimbRes0001","ME Reimbursement Resolution Funds-GF","Medical Examiner",138,"R","1950-01-01","9999-12-31",1310]
[null,null,null,139,1390010001,"139Supervision0001","CSCD Supervision GF","Comm Supv Corr Dir",139,"P","1950-01-01","9999-12-31",1420]
[null,null,null,139,1390010117,"139Supervision0117","CSCD Supervision-CSCD Eqp Acq Fd","Comm Supv Corr Dir",139,"P","1950-01-01","9999-12-31",1420]
[null,null,null,139,1390010143,"139Supervision0143","CSCD Supervision-CSCD Local Fd","Comm Supv Corr Dir",139,"P","1950-01-01","9999-12-31",1420]
[null,null,null,139,1390010157,"CSCD-Spec Co Fd","CSCD-Spec Court Fund","BOHANAC",139,"P","2020-05-01","9999-12-31",1420]
[null,null,null,140,1400010001,"140Admin0001","TCCES CES-Administration-GF","CES Dir",140,"P","1950-01-01","9999-12-31",1420]
[null,null,null,140,1400020001,"140Educ0001","TCCES Education-GF","CES Dir",140,"P","1950-01-01","9999-12-31",1420]
[null,null,null,140,1400020148,"140Educ0148","TCCES Education-TCCES Fd","CES Dir",140,"P","1950-01-01","9999-12-31",1420]
[null,null,null,140,1400030001,"140ServCtr0001","TCCES Service Center-GF","CES Dir",140,"P","1950-01-01","9999-12-31",1420]
[null,null,null,140,1400040001,"140PhoneCtrDwnT0001","TCCES Phone Center-Down Town-GF","CES Dir",140,"P","1950-01-01","9999-12-31",1420]
[null,null,null,140,1400050001,"140CES0001","TCCES CES Alcohol & Other Drug-GF","CES Dir",140,"P","1950-01-01","9999-12-31",1420]
[null,null,null,140,1400060001,"140AlcDrgCnslg0001","TCCES Alcohol & Other Drug Counseling-GF","CES Dir",140,"P","1950-01-01","9999-12-31",1420]
[null,null,null,140,1400070001,"140FamVioCnslg0001","TCCES Family Violence Counseling-GF","CES Dir",140,"P","1950-01-01","9999-12-31",1420]
[null,null,null,140,1400080001,"140CommToChg0001","TCCES Commitment to Change-GF","CES Dir",140,"P","1950-01-01","9999-12-31",1420]
[null,null,null,140,1400090001,"140PhoenixCourt0001","TCCES Phoenix Court-GF","CES Dir",140,"P","1950-01-01","9999-12-31",1420]
[null,null,null,140,1400100001,"140JuvEduc0001","TCCES Juvenile Education Classes-GF","CES Dir",140,"P","1950-01-01","9999-12-31",1420]
[null,null,null,140,1400110001,"140CrimVic0001","TCCES Crime Victims Program-GF","CES Dir",140,"P","1950-01-01","9999-12-31",1420]
[null,null,null,142,1420010001,"142Supvn0001","Pretrial Supervision-GF","Comm Supv Corr Dir",142,"P","1950-01-01","9999-12-31",1420]
[null,null,null,142,1420020001,"142FamViol0001","Pretrial Family Violence Pg-GF","Comm Supv Corr Dir",142,"P","1950-01-01","9999-12-31",1420]
[null,null,null,142,1420030001,"142IntSupvn0001","Pretrial Intensive Supervision Pg-GF","Comm Supv Corr Dir",142,"P","1950-01-01","9999-12-31",1420]
[null,null,null,142,1420040001,"142MentalHlth0001","Pretrial Mental Health Pg-GF","Comm Supv Corr Dir",142,"P","1950-01-01","9999-12-31",1420]
[null,null,null,142,1420050001,"142ElecMonitor0001","Pretrial Electronic Monitoring Pg-GF","Comm Supv Corr Dir",142,"P","1950-01-01","9999-12-31",1420]
[null,null,null,142,1420060001,"142Intervention0001","Pretrial Intervention Pg-GF","Comm Supv Corr Dir",142,"P","1950-01-01","9999-12-31",1420]
[null,null,null,142,1420070001,"142AlcMonitor0001","Alcohol Monitoring Unit Pg-GF","Comm Supv Corr Dir",142,"P","1950-01-01","9999-12-31",1420]
[null,null,null,142,1420080001,"142SuppA0001","Pretrial Support Staff Shift A-GF","Comm Supv Corr Dir",142,"P","1950-01-01","9999-12-31",1420]
[null,null,null,142,1420090001,"142SuppB0001","Pretrial Support Staff Shift B-GF","Comm Supv Corr Dir",142,"P","1950-01-01","9999-12-31",1420]
[null,null,null,142,1420100001,"142Training0001","Pretrial Training Coordinator-GF","Comm Supv Corr Dir",142,"P","1950-01-01","9999-12-31",1410]
[null,null,null,142,1420110001,"142DirDiv0001","Pretrial Division Director Office-GF","Comm Supv Corr Dir",142,"P","1950-01-01","9999-12-31",1420]
[null,null,null,142,1420120001,"142ExcOfc0001","Pretrial Executive Office-GF","Comm Supv Corr Dir",142,"P","1950-01-01","9999-12-31",1420]
[null,null,null,142,1420130001,"142CntlBkgA0001","Pretrial Central Booking Shift A-GF","Comm Supv Corr Dir",142,"P","1950-01-01","9999-12-31",1410]
[null,null,null,142,1420140001,"142CntlBkgB0001","Pretrial Central Booking Shift B-GF","Comm Supv Corr Dir",142,"P","1950-01-01","9999-12-31",1410]
[null,null,null,142,1420150001,"142DrgCt0001","Pretrial Drug Court Pg-GF","Comm Supv Corr Dir",142,"P","1950-01-01","9999-12-31",1420]
[null,null,null,142,1420150131,"142DrgCt0131","Pretrial Drug Court-Drg Ct Pg Fd","Comm Supv Corr Dir",142,"P","1950-01-01","9999-12-31",1420]
[null,null,null,142,1420160001,"142Investigation0001","Pretrial Investigation Unit-GF","Comm Supv Corr Dir",142,"P","1950-01-01","9999-12-31",1410]
[null,null,null,143,1430100001,"143Exc0001","JPD Executive-GF","Jv Public Defender",143,"P","1950-01-01","9999-12-31",1230]
[null,null,null,143,1430200001,"143Atty0001","JPD Attorney Staff-GF","Jv Public Defender",143,"P","1950-01-01","9999-12-31",1230]
[null,null,null,143,1430300001,"143Investigatn0001","JPD Investigation Staff-GF","Jv Public Defender",143,"P","1950-01-01","9999-12-31",1230]
[null,null,null,143,1430400001,"143Adm0001","JPD Administrative Staff-GF","Jv Public Defender",143,"P","1950-01-01","9999-12-31",1230]
[null,null,null,144,1440010001,"144PD0001","PD-Chief Public Defender-GF","Chief Info Ofr",144,"P","2021-01-01","9999-12-31",1210]
[null,null,null,144,1440020001,"144Felony0001","PD - Felony Division-GF","Chief Pub. Defender",144,"P","1950-01-01","9999-12-31",1210]
[null,null,null,144,1440030001,"144Misd0001","PD - Misdemeanor Division-GF","Chief Pub. Defender",144,"P","1950-01-01","9999-12-31",1210]
[null,null,null,144,1440040001,"144Train0001","PD - Training Division-GF","Chief Pub. Defender",144,"P","1950-01-01","9999-12-31",1210]
[null,null,null,145,1450120001,"145FOBdMnt0001","JvP Fac Ops Building Maint-GF","Chief Juv Pbn Ofr",145,"P","1950-01-01","9999-12-31",1230]
[null,null,null,145,1450170126,"145LglSvcJud0126","JvP Legal Srvcs Judicial-Truancy Ct Fd","Chief Juv Pbn Ofr",145,"P","1950-01-01","9999-12-31",1230]
[null,null,null,145,1450180126,"145LglSvcLgl0126","JvP Legal Srvcs Legal-Truancy Ct Fd","Chief Juv Pbn Ofr",145,"P","1950-01-01","9999-12-31",1230]
[null,null,null,145,1450300001,"145SSAdm0001","JvP Spec Srvcs Admin-GF","Chief Juv Pbn Ofr",145,"P","1950-01-01","9999-12-31",1230]
[null,null,null,145,1450320001,"145SSDrgCt0001","JvP Spec Srvcs Drug Court-GF","Chief Juv Pbn Ofr",145,"P","1950-01-01","9999-12-31",1230]
[null,null,null,145,1450350001,"145SSTrncyCt0001","JvP Spec Srvcs Truancy Court-GF","Chief Juv Pbn Ofr",145,"P","1950-01-01","9999-12-31",1230]
[null,null,null,145,1450360001,"145SSJJAEP0001","JvP Spec Srvcs JJAEP-GF","Chief Juv Pbn Ofr",145,"P","1950-01-01","9999-12-31",1230]
[null,null,null,145,1450360107,"145SSJJAEP0107","JvP Spec Srvcs JJAEP Fd","Chief Juv Pbn Ofr",145,"P","1950-01-01","9999-12-31",1230]
[null,null,null,145,1450360148,"145SSJJAEP0148","JvP Spec Srvcs JJAEP-TCCES Fd","Chief Juv Pbn Ofr",145,"P","1950-01-01","9999-12-31",1230]
[null,null,null,145,1450440148,"145DROAdm0148","JvP Dom Rel Off Admin-TCCES Fd","Chief Juv Pbn Ofr",145,"P","1950-01-01","9999-12-31",1230]
[null,null,null,145,1450480001,"145PSSexOff0001","JvP Prob Srvcs Sex Offender Unit-GF","Chief Juv Pbn Ofr",145,"P","1950-01-01","9999-12-31",1230]
[null,null,null,145,1450560001,"145NonDiv0001","JvP NonDivisional-GF","Chief Juv Pbn Ofr",145,"P","1950-01-01","9999-12-31",1230]
[null,null,null,145,1450560106,"145NonDiv0106","JvP NonDivisional-Juv Fee Fd","Chief Juv Pbn Ofr",145,"P","1950-01-01","9999-12-31",1230]
[null,null,null,145,1450560114,"145NonDiv0114","JvP NonDivisional-Juv Def Pros Fd","Chief Juv Pbn Ofr",145,"P","1950-01-01","9999-12-31",1230]
[null,null,null,145,1450560119,"145NonDiv0119","JvP NonDivisional-Juv Del Prvntn Fd","Chief Juv Pbn Ofr",145,"P","1950-01-01","9999-12-31",1230]
[null,null,null,145,1450560144,"145NonDiv0144","JvP NonDivisional-Unclaimed Juv Rest","Chief Juv Pbn Ofr",145,"P","1950-01-01","9999-12-31",1230]
[null,null,null,145,1450560146,"145NonDiv0146","JvP NonDivisional-Gardner House","Chief Juv Pbn Ofr",145,"P","1950-01-01","9999-12-31",1230]
[null,null,null,145,1450564044,"145NonDiv4044","JvP NonDivisional-CO 2005","Chief Juv Pbn Ofr",145,"P","1950-01-01","9999-12-31",1230]
[null,null,null,145,1450600001,"145AdmSvc0001","JvP Admin Services-GF","Chief Juv Pbn Ofr",145,"P","1950-01-01","9999-12-31",1230]
[null,null,null,145,1450610001,"145FacOp0001","JvP Facilities Operations-GF","Chief Juv Pbn Ofr",145,"P","1950-01-01","9999-12-31",1230]
[null,null,null,145,1450620001,"145FdSvc0001","JvP Food Services-GF","Chief Juv Pbn Ofr",145,"P","1950-01-01","9999-12-31",1230]
[null,null,null,145,1450630001,"145HlthSvc0001","JvP Health Services-GF","Chief Juv Pbn Ofr",145,"P","1950-01-01","9999-12-31",1230]
[null,null,null,145,1450640001,"145CtAdm0001","JvP Court Administration-GF","Chief Juv Pbn Ofr",145,"P","1950-01-01","9999-12-31",1230]
[null,null,null,145,1450650001,"145ProbSvc0001","JvP Probation Services-GF","Chief Juv Pbn Ofr",145,"P","1950-01-01","9999-12-31",1230]
[null,null,null,145,1450660001,"145CtSvc0001","JvP Court Services-GF","Chief Juv Pbn Ofr",145,"P","1950-01-01","9999-12-31",1230]
[null,null,null,145,1450670001,"145DetS0001","JvP Detention Services-GF","Chief Juv Pbn Ofr",145,"P","1950-01-01","9999-12-31",1230]
[null,null,null,145,1450680001,"145ResSvc0001","JvP Residential Services-GF","Chief Juv Pbn Ofr",145,"P","1950-01-01","9999-12-31",1230]
[null,null,null,145,1450690001,"145DomRel0001","JvP Domestic Relations-GF","Chief Juv Pbn Ofr",145,"P","1950-01-01","9999-12-31",1230]
[null,null,null,145,1450700001,"145SocServ0001","JvP Social Services-GF","Chief Juv Pbn Ofr",145,"P","1950-01-01","9999-12-31",1230]
[null,null,null,145,1450710001,"145ITPlanRsrch0001","JvP IT/ Planning & Research","Chief Juv Pbn Ofr",145,"P","1950-01-01","9999-12-31",1230]
[null,null,null,147,1470010001,"147TechComm0001","Emrg Svs Tech and Comm-GF","County Exec Emrg Svs",147,"P","1950-01-01","9999-12-31",1320]
[null,null,null,147,1470010142,"147TechComm0142","Emrg Svs Tech and Comm-CAPGOG 911 Fees","County Exec Emrg Svs",147,"P","1950-01-01","9999-12-31",1320]
[null,null,null,147,1470014044,"147TechComm4044","Emrg Svs Tech and Comm-CO 2005","County Exec Emrg Svs",147,"P","1950-01-01","9999-12-31",1320]
[null,null,null,147,1470020001,"147FireMshl0001","Emrg Svs Fire Marshal-GF","County Exec Emrg Svs",147,"P","1950-01-01","9999-12-31",1320]
[null,null,null,147,1470020118,"147FireMshl0118","Emrg Svs Fire Marshal-LEOSE","County Exec Emrg Svs",147,"P","1950-01-01","9999-12-31",1320]
[null,null,null,147,1470020134,"147FireMshl0134","Emrg Svs Fire Marshal-Fire Code Fd","County Exec Emrg Svs",147,"P","1950-01-01","9999-12-31",1320]
[null,null,null,147,1470030001,"147Adm0001","Emrg Svs Adm-GF","County Exec Emrg Svs",147,"P","1950-01-01","9999-12-31",1320]
[null,null,null,147,1470040001,"147EmrgMgmt0001","Emrg Svs Emergency Mgmt-GF","County Exec Emrg Svs",147,"P","1950-01-01","9999-12-31",1320]
[null,null,null,147,1470050001,"147FrstResp0001","Emrg Svs First Responders","County Exec Emrg Svs",147,"P","2019-05-24","9999-12-31",1510]
[null,null,null,147,1470060001,"147EmrgEvent0001","Emrg Svs Emergency Event-GF","County Exec Emrg Svs",147,"P","1950-01-01","9999-12-31",1320]
[null,null,null,149,1490010001,"149Adm0001","TNR Administrative Services-GF","County Exec TNR",149,"P","1950-01-01","9999-12-31",1710]
[null,null,null,149,1490010145,"149Adm0145","TNR Administrative Services-RdBg Fd","County Exec TNR",149,"P","1950-01-01","9999-12-31",1710]
[null,null,null,149,1490014050,"149Adm4050","TNR Administrative Services-CCPF","County Exec TNR",149,"P","1950-01-01","9999-12-31",1710]
[null,null,null,149,1490015001,"149Adm5001","TNR Administrative Services-CCPF","County Exec TNR",149,"P","1950-01-01","9999-12-31",1710]
[null,null,null,149,1490020001,"149CtlFiles0001","TNR Central Files-GF","County Exec TNR",149,"P","1950-01-01","9999-12-31",1710]
[null,null,null,149,1490020145,"149CtlFiles0145","TNR Central Files-RdBg Fd","County Exec TNR",149,"P","1950-01-01","9999-12-31",1710]
[null,null,null,149,1490030001,"149ExcOfc0001","TNR Executive Office-GF","County Exec TNR",149,"P","1950-01-01","9999-12-31",1710]
[null,null,null,149,1490030145,"149ExcOfc0145","TNR Executive Office-RdBg Fd","County Exec TNR",149,"P","1950-01-01","9999-12-31",1710]
[null,null,null,149,1490040001,"149HumRes0001","TNR Human Resources-GF","County Exec TNR",149,"P","1950-01-01","9999-12-31",1710]
[null,null,null,149,1490040145,"149HumRes0145","TNR Human Resources-RdBg Fd","County Exec TNR",149,"P","1950-01-01","9999-12-31",1710]
[null,null,null,149,1490050001,"149Mailroom0001","TNR Mailroom Services-GF","County Exec TNR",149,"P","1950-01-01","9999-12-31",1710]
[null,null,null,149,1490050145,"149Mailroom0145","TNR Mailroom Services-RdBg Fd","County Exec TNR",149,"P","1950-01-01","9999-12-31",1710]
[null,null,null,149,1490060001,"149FinSvs0001","TNR Financial Services-GF","County Exec TNR",149,"P","1950-01-01","9999-12-31",1710]
[null,null,null,149,1490060145,"149FinSvs0145","TNR Financial Services-RdBg Fd","County Exec TNR",149,"P","1950-01-01","9999-12-31",1710]
[null,null,null,149,1490070001,"149RiskSafety0001","TNR Risk/Safety-GF","County Exec TNR",149,"P","1950-01-01","9999-12-31",1710]
[null,null,null,149,1490070145,"149RiskSafety0145","TNR Risk/Safety-RdBg Fd","County Exec TNR",149,"P","1950-01-01","9999-12-31",1710]
[null,null,null,149,1490074050,"149RiskSafety4050","TNR Risk/Safety-CCPF","County Exec TNR",149,"P","1950-01-01","9999-12-31",1710]
[null,null,null,149,1490075001,"149RiskSafety5001","TNR Risk/Safety-CCPF","County Exec TNR",149,"P","1950-01-01","9999-12-31",1710]
[null,null,null,149,1490080001,"149CompPlng0001","TNR Comprehensive Planning-GF","County Exec TNR",149,"P","1950-01-01","9999-12-31",1710]
[null,null,null,149,1490080145,"149CompPlng0145","TNR Comprehensive Planning-RdBg Fd","County Exec TNR",149,"P","1950-01-01","9999-12-31",1710]
[null,null,null,149,1490090001,"149GIS0001","TNR GIS-GF","County Exec TNR",149,"P","1950-01-01","9999-12-31",1710]
[null,null,null,149,1490090145,"149GIS0145","TNR GIS-RdBg Fd","County Exec TNR",149,"P","1950-01-01","9999-12-31",1710]
[null,null,null,149,1490100001,"149Planning0001","TNR Planning-GF","County Exec TNR",149,"P","1950-01-01","9999-12-31",1710]
[null,null,null,149,1490100145,"149Planning0145","TNR Planning-RdBg Fd","County Exec TNR",149,"P","1950-01-01","9999-12-31",1710]
[null,null,null,149,1490110001,"149EnvQlty0001","TNR Environmental Quality-GF","County Exec TNR",149,"P","1950-01-01","9999-12-31",1750]
[null,null,null,149,1490110002,"149EnvQlty0002","TNR Environmental Quality-700 Lavaca-GF","County Exec TNR",149,"P","1950-01-01","9999-12-31",1750]
[null,null,null,149,1490110145,"149EnvQlty0145","TNR Environmental Quality-RdBg Fd","County Exec TNR",149,"P","1950-01-01","9999-12-31",1750]
[null,null,null,149,1490120000,"149NatRsrcs0000","TNR Natural Resources-BCCP Grant_Bond","County Exec TNR",149,"P","1950-01-01","9999-12-31",1750]
[null,null,null,149,1490120001,"149NatRsrcs0001","TNR Natural Resources-GF","County Exec TNR",149,"P","1950-01-01","9999-12-31",1750]
[null,null,null,149,1490120115,"149NatRsrcs0115","TNR Natural Resources-BCCP","County Exec TNR",149,"P","1950-01-01","9999-12-31",1750]
[null,null,null,149,1490124034,"149NatRsrcs4034","TNR Natural Resources-Cap Proj","County Exec TNR",149,"P","1950-01-01","9999-12-31",1750]
[null,null,null,149,1490130001,"149DevSvs0001","TNR Development Services-GF","County Exec TNR",149,"P","1950-01-01","9999-12-31",1750]
[null,null,null,149,1490134057,"149DevSvs4057","TNR Development Services-Cap Proj","County Exec TNR",149,"P","1950-01-01","9999-12-31",1750]
[null,null,null,149,1490140001,"149ESvCenter0001","TNR East Service Center-GF","County Exec TNR",149,"P","1950-01-01","9999-12-31",1140]
[null,null,null,149,1490144056,"149ESvCenter4056","TNR East Service Center-Cap Proj","County Exec TNR",149,"P","1950-01-01","9999-12-31",1140]
[null,null,null,149,1490150000,"149StmwtMgmt0000","TNR Stormwater Management-Cap Proj","County Exec TNR",149,"P","1950-01-01","9999-12-31",1730]
[null,null,null,149,1490150001,"149StmwtMgmt0001","TNR Stormwater Management-GF","County Exec TNR",149,"P","1950-01-01","9999-12-31",1730]
[null,null,null,149,1490160001,"149OnStSewage0001","TNR Onsite Sewage Facilities-GF","County Exec TNR",149,"P","1950-01-01","9999-12-31",1760]
[null,null,null,149,1490170145,"149RMGIS0145","TNR RM-GIS-RdBg Fd","County Exec TNR",149,"P","1950-01-01","9999-12-31",1740]
[null,null,null,149,1490180001,"149Survey0001","TNR Survey-GF","County Exec TNR",149,"P","1950-01-01","9999-12-31",1710]
[null,null,null,149,1490180145,"149Survey0145","TNR Survey-RdBg Fd","County Exec TNR",149,"P","1950-01-01","9999-12-31",1710]
[null,null,null,149,1490190000,"149RdCapBgRplmt0000","TNR Rd Capacity and Bg Rplmt-Cap Proj","County Exec TNR",149,"P","1950-01-01","9999-12-31",1710]
[null,null,null,149,1490190001,"149RdCapBgRplmt0001","TNR Rd Capacity and Bg Rplmt-GF","County Exec TNR",149,"P","1950-01-01","9999-12-31",1710]
[null,null,null,149,1490190145,"149RdCapBgRplmt0145","TNR Rd Capacity and Bg Rplmt-RdBg Fd","County Exec TNR",149,"P","1950-01-01","9999-12-31",1710]
[null,null,null,149,1490195003,"149RdCapBgRplmt5003","TNR Rd Capacity and Bg Rplmt-TNRSidewalk","County Exec TNR",149,"P","1950-01-01","9999-12-31",1710]
[null,null,null,149,1490200000,"149RdBgMnt0000","TNR Rd & Bridge Maintenance-Cap Proj","County Exec TNR",149,"P","1950-01-01","9999-12-31",1710]
[null,null,null,149,1490200001,"149RdBgMnt0001","TNR Rd & Bridge Maintenance-GF","County Exec TNR",149,"P","1950-01-01","9999-12-31",1710]
[null,null,null,149,1490200145,"149RdBgMnt0145","TNR Rd & Bridge Maintenance-RdBg Fd","County Exec TNR",149,"P","1950-01-01","9999-12-31",1710]
[null,null,null,149,1490210001,"149SignShopSvs0001","TNR Sign Shop Services-GF","County Exec TNR",149,"P","1950-01-01","9999-12-31",1710]
[null,null,null,149,1490210145,"149SignShopSvs0145","TNR Sign Shop Services-RdBg Fd","County Exec TNR",149,"P","1950-01-01","9999-12-31",1710]
[null,null,null,149,1490220000,"149ParkSvs0000","TNR Park Services-Cap Proj","County Exec TNR",149,"P","1950-01-01","9999-12-31",1630]
[null,null,null,149,1490220001,"149ParkSvs0001","TNR Park Services-GF","County Exec TNR",149,"P","1950-01-01","9999-12-31",1630]
[null,null,null,149,1490220109,"149ParkSvs0109","TNR Park Services-LCRA Fd","County Exec TNR",149,"P","1950-01-01","9999-12-31",1630]
[null,null,null,149,1490220123,"149ParkSvs0123","TNR Park Services-Mary Quilan Fd","County Exec TNR",149,"P","1950-01-01","9999-12-31",1630]
[null,null,null,149,1490230001,"149ParkRngrs0001","TNR Park Rangers-GF","County Exec TNR",149,"P","1950-01-01","9999-12-31",1630]
[null,null,null,149,1490250001,"149CustSvs0001","TNR Customer Services-GF","County Exec TNR",149,"P","1950-01-01","9999-12-31",1710]
[null,null,null,149,1490250145,"149CustSvs0145","TNR Customer Services-RdBg Fd","County Exec TNR",149,"P","1950-01-01","9999-12-31",1710]
[null,null,null,149,1490260001,"149ChildSafety0001","TNR Child Safety Pg-GF","County Exec TNR",149,"P","1950-01-01","9999-12-31",1710]
[null,null,null,149,1490274049,"149PksCntrAgy4049","TNR Parks Cntrt Agencies-Sbdvn Pkld Fd","County Exec TNR",149,"P","1950-01-01","9999-12-31",1630]
[null,null,null,149,1490275000,"149PksCntrAgy5000","TNR Parks Cntrt Agencies-Sbdvn Pkld Fd","County Exec TNR",149,"P","1950-01-01","9999-12-31",1630]
[null,null,null,149,1490280001,"149SvtoOthrGov0001","TNR Services To Othr Govts-GF","County Exec TNR",149,"P","1950-01-01","9999-12-31",1710]
[null,null,null,149,1490294050,"149IntGovAgrmt4050","TNR Intergov Agreements-Roads-CCPF","County Exec TNR",149,"P","1950-01-01","9999-12-31",1710]
[null,null,null,149,1490295001,"149IntGovAgrmt5001","TNR Intergov Agreements-Roads-CCPF","County Exec TNR",149,"P","1950-01-01","9999-12-31",1710]
[null,null,null,149,1490304050,"149PvtAgncyCnt4050","TNR Private Agency Contract-Roads-CCPF","County Exec TNR",149,"P","1950-01-01","9999-12-31",1710]
[null,null,null,149,1490305001,"149PvtAgncyCnt5001","TNR Private Agency Contract-Roads-CCPF","County Exec TNR",149,"P","1950-01-01","9999-12-31",1710]
[null,null,null,149,1490310000,"149CtlFleet0000","TNR Centralized Fleet Services-Cap Proj","County Exec TNR",149,"P","1950-01-01","9999-12-31",1710]
[null,null,null,149,1490324050,"149PvtAgcyCntPks4050","TNR Private Agency Contract-Parks-CCPF","County Exec TNR",149,"P","1950-01-01","9999-12-31",1630]
[null,null,null,149,1490325001,"149PvtAgcyCntPks5001","TNR Private Agency Contract-Parks-CCPF","County Exec TNR",149,"P","1950-01-01","9999-12-31",1630]
[null,null,null,149,1490330001,"149LakeTravis0001","TNR Lake Travis Econ Dev-GF","County Exec TNR",149,"P","1950-01-01","9999-12-31",1610]
[null,null,null,149,1490330147,"149LakeTravis0147","TNR Lake Travis Econ Dev-Lake Travis Fd","County Exec TNR",149,"P","1950-01-01","9999-12-31",1610]
[null,null,null,149,1490350000,"149FleetRdBg0000","TNR Fleet Services Roads & Bridges","County Exec TNR",149,"P","1950-01-01","9999-12-31",1710]
[null,null,null,149,1490350001,"149FleetRdBg0001","TNR Fleet Services Roads & Bridges-GF","County Exec TNR",149,"P","1950-01-01","9999-12-31",1710]
[null,null,null,149,1490350145,"149FleetRdBg0145","TNR Fleet Services Roads & Bridges-RdBg","County Exec TNR",149,"P","1950-01-01","9999-12-31",1710]
[null,null,null,149,1490360000,"149FleetGenAdm0000","TNR Fleet Services General Adm","County Exec TNR",149,"P","1950-01-01","9999-12-31",1110]
[null,null,null,149,1490370000,"149FleetCrmJs0000","TNR Fleet Services Criminal Justice","County Exec TNR",149,"P","1950-01-01","9999-12-31",1210]
[null,null,null,149,1490380000,"149FleetLE0000","TNR Fleet Services Law Enforcement","County Exec TNR",149,"P","1950-01-01","9999-12-31",1310]
[null,null,null,149,1490390000,"149FleetHsgBkg0000","TNR Fleet Services Housing & Booking","County Exec TNR",149,"P","1950-01-01","9999-12-31",1410]
[null,null,null,149,1490400000,"149FleetJuvSv0000","TNR Fleet Services Juvenile Svs","County Exec TNR",149,"P","1950-01-01","9999-12-31",1230]
[null,null,null,149,1490410000,"149FleetPbcHlh0000","TNR Fleet Services Public Health","County Exec TNR",149,"P","1950-01-01","9999-12-31",1520]
[null,null,null,149,1490420000,"149FleetHumanSv0000","TNR Fleet Services Human Svs","County Exec TNR",149,"P","1950-01-01","9999-12-31",1530]
[null,null,null,149,1490430000,"149FleetParksRec0000","TNR Fleet Services Parks & Rec","County Exec TNR",149,"P","1950-01-01","9999-12-31",1630]
[null,null,null,149,1490440001,"149BurialSvs0001","TNR Burial Services-GF","County Exec TNR",149,"P","1950-01-01","9999-12-31",1710]
[null,null,null,149,1490450001,"149TrfrStation0001","TNR Transfer Station-GF","County Exec TNR",149,"P","1950-01-01","9999-12-31",1710]
[null,null,null,149,1490460001,"149LandfillMntc0001","TNR Landfill Maintenance-GF","County Exec TNR",149,"P","1950-01-01","9999-12-31",1710]
[null,null,null,149,1490470001,"149EmerResponse0001","TNR Emergency Response-GF","County Exec TNR",149,"P","1950-01-01","9999-12-31",1320]
[null,null,null,149,1497760001,"149RskMgtClmPks0001","TNR Risk Mgmt Claim-Parks","County Exec TNR",149,"P","1950-01-01","9999-12-31",1630]
[null,null,null,149,1497770001,"149RskMgtClmFlt0001","TNR Risk Mgmt Claim-Fleet","County Exec TNR",149,"P","1950-01-01","9999-12-31",1710]
[null,null,null,149,1499000001,"149ReimburseRes0001","TNR Reimbursement Resolution Funds-GF","County Exec TNR",149,"R","1950-01-01","9999-12-31",1710]
[null,null,null,154,1540010001,"154Adm0001","Civil Service Commission-GF","Civil Svcs Coord",154,"P","1950-01-01","9999-12-31",1110]
[null,null,null,155,1550010001,"155Adm0001","JsPln-Executive & Adm-GF","County Exec JPs",155,"P","1950-01-01","9999-12-31",1210]
[null,null,null,155,1550020001,"155RePg0001","JsPln-Reentry Program After Care-GF","County Exec JPs",155,"P","1950-01-01","9999-12-31",1210]
[null,null,null,155,1550030001,"155Pgmatic0001","JsPln-Programmatic-GF","County Exec JPs",155,"P","1950-01-01","9999-12-31",1210]
[null,null,null,155,1550040001,"155OffWkDev0001","JsPln-Offender Workforce Dev-GF","County Exec JPs",155,"P","1950-01-01","9999-12-31",1210]
[null,null,null,155,1550050001,"155OfcPrtRep0001","JsPln-Ofc of Parent Rep-GF","County Exec JPs",155,"P","1950-01-01","9999-12-31",1210]
[null,null,null,155,1550060001,"155OfcChRep0001","JsPln-Office of Child Rep -GF","County Exec JPs",155,"P","1950-01-01","9999-12-31",1210]
[null,null,null,155,1550070001,"155MtlHlhPD0001","JsPln-Mental Health Pub Def-GF","County Exec JPs",155,"P","1950-01-01","9999-12-31",1210]
[null,null,null,155,1550120001,"155IOTC0001","JsPln-IOTC or Inside Out Training-GF","County Exec JPs",155,"P","1950-01-01","9999-12-31",1210]
[null,null,null,155,1550130001,"155Planning0001","JsPln-Planning-GF","County Exec JPs",155,"P","1950-01-01","9999-12-31",1210]
[null,null,null,155,1550150001,"155JsPlnCivLib0001","JsPln-Civil Library-GF","County Exec JPs",155,"P","1950-01-01","9999-12-31",1220]
[null,null,null,155,1550150100,"155JsPlnCiviLib0100","JSPln-Civil Library-Law Library Fund","County Exec JPs",155,"P","1950-01-01","9999-12-31",1220]
[null,null,null,155,1550160001,"155JsPlnCrimLib0001","JsPln-Criminal Library-GF","County Exec JPs",155,"P","1950-01-01","9999-12-31",1210]
[null,null,null,155,1550160100,"155JsPlnCrimLib0100","JSPln-Criminal Library-Law Library Fund","County Exec JPs",155,"P","1950-01-01","9999-12-31",1210]
[null,null,null,155,1550170001,"155JsPlnPubDef0001","JSPln-Pub Def-GF","County Exec JPs",155,"P","1950-01-01","9999-12-31",1210]
[null,null,null,157,1570010001,"157Adm0001","CRS Adm-GF","CRS Dir",157,"P","1950-01-01","9999-12-31",1110]
[null,null,null,157,1570010108,"157Adm0108","CRS Adm-Records Management Fd","CRS Dir",157,"P","1950-01-01","9999-12-31",1110]
[null,null,null,157,1570020001,"157CtlRepair0001","CRS Copiers/Central Repairs-GF","CRS Dir",157,"P","1950-01-01","9999-12-31",1110]
[null,null,null,157,1570020125,"157CtlRepair0125","CR Copiers/Central Repairs-Jus Ct Tech","CRS Dir",157,"P","1950-01-01","9999-12-31",1110]
[null,null,null,157,1570030108,"157RM and Comm0108","CRS Records Mgmt & Comm-Rec Mgmt Fd","CRS Dir",157,"P","1950-01-01","9999-12-31",1110]
[null,null,null,157,1570040001,"157Imaging0001","CRS Imaging-GF","CRS Dir",157,"P","1950-01-01","9999-12-31",1110]
[null,null,null,157,1570040108,"157Imaging0108","CRS Imaging-Records Management Fd","CRS Dir",157,"P","1950-01-01","9999-12-31",1110]
[null,null,null,157,1570040129,"157Imaging0129","CRS Imaging-County Clerk Archival Fd","CRS Dir",157,"P","1950-01-01","9999-12-31",1110]
[null,null,null,157,1570040141,"157Imaging0141","CRS Imaging-Court Record Preservation","CRS Dir",157,"P","1950-01-01","9999-12-31",1110]
[null,null,null,157,1570050110,"157InfoCtl0110","CRS Info Control-Recs Mgmt Preser","CRS Dir",157,"P","1950-01-01","9999-12-31",1110]
[null,null,null,157,1570060001,"157CivilLib0001","CRS Civil Library-GF","CRS Dir",157,"P","1950-01-01","9999-12-31",1220]
[null,null,null,157,1570060100,"157CivilLib0100","CRS Civil Library-Law Library Fd","CRS Dir",157,"P","1950-01-01","9999-12-31",1220]
[null,null,null,157,1570070001,"157CrmLib0001","CRS Criminal Library-GF","CRS Dir",157,"P","1950-01-01","9999-12-31",1210]
[null,null,null,157,1570070100,"157CrmLib0100","CRS Criminal Library-Law Library Fd","CRS Dir",157,"P","1950-01-01","9999-12-31",1210]
[null,null,null,157,1570080001,"157Mail0001","CRS Mail-GF","CRS Dir",157,"P","1950-01-01","9999-12-31",1110]
[null,null,null,157,1570090001,"157Media0001","CRS Media-GF","CRS Dir",157,"P","1950-01-01","9999-12-31",1110]
[null,null,null,157,1570094063,"157Media4063","CRS Media-CO 2010-Nontax","CRS Dir",157,"P","1950-01-01","9999-12-31",1110]
[null,null,null,157,1570100001,"157RcrdsCsltg0001","CRS Records/Consulting-GF","CRS Dir",157,"P","1950-01-01","9999-12-31",1110]
[null,null,null,157,1570100108,"157RcrdsCsltg0108","CRS Records/Consulting-Recs Mgmt Fd","CRS Dir",157,"P","1950-01-01","9999-12-31",1110]
[null,null,null,157,1570100110,"157RcrdsCsltg0110","CRS Records/Consulting-Recs Mgmt Preser","CRS Dir",157,"P","1950-01-01","9999-12-31",1110]
[null,null,null,157,1570100129,"157RcrdsCsltg0129","CRS Records/Consulting-CCk Arch Fd","CRS Dir",157,"P","1950-01-01","9999-12-31",1110]
[null,null,null,157,1570100141,"157RcrdsCsltg0141","CRS Records/Consulting-Ct Rec Preser","CRS Dir",157,"P","1950-01-01","9999-12-31",1110]
[null,null,null,157,1570100160,"157RcrdsCsltg0160","CRS Records/Consulting-TC RecMgmt&Pres","CRS Dir",157,"P","1950-01-01","9999-12-31",1110]
[null,null,null,157,1570110001,"157Printing0001","RMCR Printing-GF","RMCR Dir",157,"P","1950-01-01","9999-12-31",1110]
[null,null,null,157,1570110002,"157Printing0002","CRS Printing-700 Lavaca Complex","CRS Dir",157,"P","1950-01-01","9999-12-31",1110]
[null,null,null,157,1570118956,"157Printing8956","CRS Printing-Employee Health Ben Fd","CRS Dir",157,"P","1950-01-01","9999-12-31",1110]
[null,null,null,158,1580010001,"158CEAdm0001","HHS County Executive Adm-GF","County Exec HHS",158,"P","1950-01-01","9999-12-31",1530]
[null,null,null,158,1580014014,"158CEAdm4014","HHS County Executive Adm-CO 1997","County Exec HHS",158,"P","1950-01-01","9999-12-31",1530]
[null,null,null,158,1580020001,"158HumRsrcs0001","HHS Human Resource-GF","County Exec HHS",158,"P","1950-01-01","9999-12-31",1530]
[null,null,null,158,1580030001,"158Finance0001","HHS Finance-GF","County Exec HHS",158,"P","1950-01-01","9999-12-31",1530]
[null,null,null,158,1580040001,"158RshandPlng0001","HHS Research and Planning-GF","County Exec HHS",158,"P","1950-01-01","9999-12-31",1510]
[null,null,null,158,1580050001,"158Facilities0001","HHS Facilities-GF","County Exec HHS",158,"P","1950-01-01","9999-12-31",1530]
[null,null,null,158,1580060001,"158CDBGPlng0001","HHS CDBG Planning-GF","County Exec HHS",158,"P","1950-01-01","9999-12-31",1530]
[null,null,null,158,1580070001,"158PubHlth0001","HHS Public Health Mgr-GF","County Exec HHS",158,"P","1950-01-01","9999-12-31",1530]
[null,null,null,158,1580080001,"158PubHlthCOAAdm0001","HHS Public Health Adm COA-GF","County Exec HHS",158,"P","1950-01-01","9999-12-31",1530]
[null,null,null,158,1580090001,"158COAPbcHlh0001","HHS Inter COA Public Hlh-GF","County Exec HHS",158,"P","1950-01-01","9999-12-31",1520]
[null,null,null,158,1580100001,"158FSSAdmSv0001","HHS FSS-Adm Svs-GF","County Exec HHS",158,"P","1950-01-01","9999-12-31",1530]
[null,null,null,158,1580110001,"158FSSCaseM0001","HHS FSS-Case Mgmt-GF","County Exec HHS",158,"I","1950-01-01","9999-12-31",1530]
[null,null,null,158,1580120001,"158EstRCmtyCtr0001","HHS FSS-East Rural Cmty CT-GF","County Exec HHS",158,"I","1950-01-01","9999-12-31",1530]
[null,null,null,158,1580130001,"158NthRCmtyCtr0001","HHS FSS-North Rural Cmty Ctr-GF","County Exec HHS",158,"I","1950-01-01","9999-12-31",1530]
[null,null,null,158,1580140001,"158NWRCmtyCtr0001","HHS FSS-Northwest Rural Cmty Ctr-GF","County Exec HHS",158,"I","1950-01-01","9999-12-31",1530]
[null,null,null,158,1580150001,"158PSqCmtyCtr0001","HHS FSS-Palm Square Cmty Ctr-GF","County Exec HHS",158,"I","1950-01-01","9999-12-31",1530]
[null,null,null,158,1580160001,"158PstRdCmtyCtr0001","HHS FSS-Post Road Cmty Ctr-GF","County Exec HHS",158,"I","1950-01-01","9999-12-31",1530]
[null,null,null,158,1580170001,"158SthRCmtyCtr0001","HHS FSS-South Rural Cmty Ctr-GF","County Exec HHS",158,"I","1950-01-01","9999-12-31",1530]
[null,null,null,158,1580180001,"158WstRCmtyCtr0001","HHS FSS-West Rural Cmty Ctr-GF","County Exec HHS",158,"I","1950-01-01","9999-12-31",1530]
[null,null,null,158,1580190001,"158OCSAdm0001","HHS Ofc of Children's Svs Adm-GF","County Exec HHS",158,"P","1950-01-01","9999-12-31",1530]
[null,null,null,158,1580200001,"158OCSCPSBd0001","HHS OCS Adm CPS Board-GF","County Exec HHS",158,"P","1950-01-01","9999-12-31",1230]
[null,null,null,158,1580200155,"158OCSCPSCWJD0155","HHS OCS Adm CPS Board-CWJD","County Exec HHS",158,"P","1950-01-01","9999-12-31",1230]
[null,null,null,158,1580210001,"158HmVist0001","HHS Home Visiting Program-GF","County Exec HHS",158,"P","1950-01-01","9999-12-31",1530]
[null,null,null,158,1580220001,"158P&I0001","HHS Prevention & Intervention-GF","County Exec HHS",158,"P","1950-01-01","9999-12-31",1530]
[null,null,null,158,1580230001,"158FIRST0001","HHS Family First","County Exec HHS",158,"P","1950-01-01","9999-12-31",1230]
[null,null,null,158,1580240001,"158HF10001","HHS Healthy Families 1-GF","County Exec HHS",158,"P","1950-01-01","9999-12-31",1530]
[null,null,null,158,1580240135,"158HF10135","HHS Healthy Families 1-Ch Abs Prev Fd","County Exec HHS",158,"P","1950-01-01","9999-12-31",1530]
[null,null,null,158,1580250001,"158HF20001","HHS Healthy Families 2-GF","County Exec HHS",158,"P","1950-01-01","9999-12-31",1530]
[null,null,null,158,1580260001,"158SysCI0001","HHS System of Care initiatives-GF","County Exec HHS",158,"P","1950-01-01","9999-12-31",1530]
[null,null,null,158,1580270001,"158CmtySv0001","HHS Community Svs Adm-GF","County Exec HHS",158,"P","1950-01-01","9999-12-31",1530]
[null,null,null,158,1580280001,"158NCC0001","HHS Neighborhood Conf Comm-GF","County Exec HHS",158,"P","1950-01-01","9999-12-31",1530]
[null,null,null,158,1580290001,"158WBL0001","HHS Work Based Learning-GF","County Exec HHS",158,"P","1950-01-01","9999-12-31",1530]
[null,null,null,158,1580300001,"158CmgAge0001","HHS Coming of Age-GF","County Exec HHS",158,"P","1950-01-01","9999-12-31",1530]
[null,null,null,158,1580310001,"158DeafSvs0001","HHS Deaf Svs-GF","County Exec HHS",158,"P","1950-01-01","9999-12-31",1530]
[null,null,null,158,1580320001,"158HSAdm0001","HHS Housing Adm-GF","County Exec HHS",158,"P","1950-01-01","9999-12-31",1530]
[null,null,null,158,1580330001,"158HsgRepair0001","HHS Housing Repair-GF","County Exec HHS",158,"P","1950-01-01","9999-12-31",1530]
[null,null,null,158,1580340001,"158COAWea0001","HHS COA Weatherization Interlocal-GF","County Exec HHS",158,"P","1950-01-01","9999-12-31",1530]
[null,null,null,158,1580350138,"158EHSConsumProt0138","HHS EHS Consmr/Comm Prot-Hlthfd Prmts","County Exec HHS",158,"P","1950-01-01","9999-12-31",1520]
[null,null,null,158,1580360138,"158AdmATCHHS0138","HHS Adm ATCHHS-Hlthfd Prmts","County Exec HHS",158,"P","1950-01-01","9999-12-31",1530]
[null,null,null,158,1580370001,"158PrbSvs0001","HHS Probation Svs-GF","County Exec HHS",158,"P","1950-01-01","9999-12-31",1530]
[null,null,null,158,1580380001,"158ClinicSvs0001","HHS Clinic Services-GF","County Exec HHS",158,"P","1950-01-01","9999-12-31",1510]
[null,null,null,158,1580390001,"158CDPSImmun0001","HHS CDPS Immunization Svs-GF","County Exec HHS",158,"P","1950-01-01","9999-12-31",1530]
[null,null,null,158,1580400001,"158HthDstSvs0001","HHS Health District Svs-GF","County Exec HHS",158,"P","1950-01-01","9999-12-31",1510]
[null,null,null,158,1580420001,"158HHS-TAESAdm0001","HHS Texas Ag Ext Svs Adm-GF","County Exec HHS",118,"P","1950-01-01","9999-12-31",1530]
[null,null,null,158,1580430001,"158HortPgs0001","HHS TAES Agr/Horticulture Pgs-GF","County Exec HHS",118,"P","1950-01-01","9999-12-31",1530]
[null,null,null,158,1580440001,"1584HYouth0001","HHS TAES 4-H and Youth Dev Pg-GF","County Exec HHS",118,"P","1950-01-01","9999-12-31",1530]
[null,null,null,158,1580440149,"1584HYouth0149","HHS TAES 4-H and Youth Dev Pg-AYES Fd","County Exec HHS",118,"P","1950-01-01","9999-12-31",1530]
[null,null,null,158,1580450001,"158FamConsSciPg0001","HHS TAES Family & Consumer Sci Pg-GF","County Exec HHS",118,"P","1950-01-01","9999-12-31",1530]
[null,null,null,158,1580460001,"158MediaSvs0001","HHS TAES Media Services-GF","County Exec HHS",118,"P","1950-01-01","9999-12-31",1530]
[null,null,null,158,1580470001,"158IntPestMgmt0001","HHS TAES Integrated Pest Mgmt Pg-GF","County Exec HHS",118,"P","1950-01-01","9999-12-31",1530]
[null,null,null,158,1580480001,"158WldlfMgmtSv0001","HHS TAES Wildlife Mgmt Sv-GF","County Exec HHS",118,"P","1950-01-01","9999-12-31",1530]
[null,null,null,158,1580490001,"158NutHlth0001","HHS TAES Nutrition & Health-GF","County Exec HHS",118,"P","1950-01-01","9999-12-31",1530]
[null,null,null,158,1580500001,"158TCPTRIAD0001","HHS TCP / TRIAD-GF","County Exec HHS",158,"P","1950-01-01","9999-12-31",1530]
[null,null,null,158,1580510001,"158CmtyLiaison0001","HHS Community Liaison-GF","County Exec HHS",158,"P","1950-01-01","9999-12-31",1530]
[null,null,null,158,1580520001,"158CPSCO0001","HHS CPS Court Ordered-GF","County Exec HHS",158,"P","1950-01-01","9999-12-31",1230]
[null,null,null,158,1580530001,"158CPSTitle4E0001","HHS CPS Title 4E-GF","County Exec HHS",158,"P","1950-01-01","9999-12-31",1230]
[null,null,null,158,1580540001,"158SSCntrc0001","HHS Social Service Contracts-GF","County Exec HHS",158,"P","1950-01-01","9999-12-31",1530]
[null,null,null,158,1580550001,"158COAHlhcare0001","HHS Inter COA Healthcare-GF","County Exec HHS",158,"P","1950-01-01","9999-12-31",1510]
[null,null,null,158,1580560001,"158COAHumanSv0001","HHS Inter COA Human Svs-GF","County Exec HHS",158,"P","1950-01-01","9999-12-31",1530]
[null,null,null,158,1580570001,"158ChiefDeputy0001","HHS Chief Deputy Dir. - GF","County Exec HHS",158,"P","1950-01-01","9999-12-31",1530]
[null,null,null,158,1580580001,"158SSCWkfDev0001","HHS SSC - Workforce Development-GF","County Exec HHS",158,"P","1950-01-01","9999-12-31",1530]
[null,null,null,158,1580590001,"158SSCSupSvcComLiv01","HHS SSC-Supportive Svcs for Com Livng-GF","County Exec HHS",158,"P","1950-01-01","9999-12-31",1530]
[null,null,null,158,1580600001,"158SSCHolFamSvc0001","HHS SSC - Holistic Family Services-GF","County Exec HHS",158,"P","1950-01-01","9999-12-31",1530]
[null,null,null,158,1580610001,"158SSCPubHlthSS0001","HHS SSC - Public Health Social Servcs-GF","County Exec HHS",158,"P","1950-01-01","9999-12-31",1530]
[null,null,null,158,1580620001,"158SSCSafIntervSvc01","HHS SSC - Safety Intervention Servcs-GF","County Exec HHS",158,"P","1950-01-01","9999-12-31",1530]
[null,null,null,158,1580630001,"158SSCHousCont0001","HHS SSC - Housing Continuum-GF","County Exec HHS",158,"P","1950-01-01","9999-12-31",1530]
[null,null,null,158,1580640001,"158SSCAccBasSupp0001","HHS SSC - Access to Basic Supports-GF","County Exec HHS",158,"P","1950-01-01","9999-12-31",1530]
[null,null,null,158,1580650001,"158SSCChYthDev0001","HHS SSC - Child and Youth Development-GF","County Exec HHS",158,"P","1950-01-01","9999-12-31",1530]
[null,null,null,158,1580660001,"158SSCBehHlth0001","HHS SSC - Behavioral Health-GF","County Exec HHS",158,"P","1950-01-01","9999-12-31",1530]
[null,null,null,159,1590010000,"159StFltCPProj0000","EMS Starflight – Capital Proj","Star Flight Prgm Dir",159,"P","1950-01-01","9999-12-31",1510]
[null,null,null,159,1590010001,"159StFltAdm0001","EMS Star Flight Administrative-GF","Star Flight Prgm Dir",159,"P","1950-01-01","9999-12-31",1510]
[null,null,null,159,1590014044,"159StFltOptgs4044","EMS Star Flight-CO 2005","Star Flight Prgm Dir",159,"P","1950-01-01","9999-12-31",1510]
[null,null,null,159,1590014063,"159StFltOptgs4063","EMS Star Flight-CO 2010-Nontax","Star Flight Prgm Dir",159,"P","1950-01-01","9999-12-31",1510]
[null,null,null,159,1590020001,"159StFltOps0001","EMS Star Flight Operations-GF","Star Flight Prgm Dir",159,"P","1950-01-01","9999-12-31",1510]
[null,null,null,159,1590030001,"159StFltPilots0001","EMS Star Flight Pilots-GF","Star Flight Prgm Dir",159,"P","1950-01-01","9999-12-31",1510]
[null,null,null,159,1590040001,"159StFltNurses0001","EMS Star Flight Nurses-GF","Star Flight Prgm Dir",159,"P","1950-01-01","9999-12-31",1510]
[null,null,null,159,1590050001,"159StFltParMed0001","EMS Star Flight Paramedics-GF","Star Flight Prgm Dir",159,"P","1950-01-01","9999-12-31",1510]
[null,null,null,159,1590060001,"159StFltMnt0001","EMS Star Flight Maintenance-GF","Star Flight Prgm Dir",159,"P","1950-01-01","9999-12-31",1510]
[null,null,null,159,1590070001,"159IntLocalSvs0001","EMS Star Flight Interlocal Svs-GF","Star Flight Prgm Dir",159,"P","1950-01-01","9999-12-31",1510]
[null,null,null,159,1590080001,"159EMS0001","EMS Emrg Med Sv-GF","Star Flight Prgm Dir",159,"P","1950-01-01","9999-12-31",1510]
[null,null,null,159,1590084002,"159EMS4002","EMS Emrg Med Sv-CO 2006","Star Flight Prgm Dir",159,"P","1950-01-01","9999-12-31",1510]
[null,null,null,159,1590084052,"159EMS4052","EMS Emrg Med Sv-CO 2007","Star Flight Prgm Dir",159,"P","1950-01-01","9999-12-31",1510]
[null,null,null,159,1590084059,"159EMS4059","EMS Emrg Med Sv-CO 2009","Star Flight Prgm Dir",159,"P","1950-01-01","9999-12-31",1510]
[null,null,null,159,1590084068,"159EMS4068","EMS Emrg Med Sv-CO 2011","Star Flight Prgm Dir",159,"P","1950-01-01","9999-12-31",1510]
[null,null,null,159,1590090001,"159ESD0001","EMS Emergency Service Districts-GF","Star Flight Prgm Dir",159,"P","1950-01-01","9999-12-31",1510]
[null,null,null,159,1590100001,"159DCPE0001","EMS Clin Perf & Educ-GF","Star Flight Prgm Dir",159,"P","1950-01-01","9999-12-31",1510]
[null,null,null,159,1590110000,"159EMS0000","EMS Emrg Fire Svcs","Star Flight Prgm Dir",159,"P","1950-01-01","9999-12-31",1320]
[null,null,null,159,1590110001,"159EMS0001","EMS Emrg Fire Sv-GF","Star Flight Prgm Dir",159,"P","1950-01-01","9999-12-31",1320]
[null,null,null,159,1599000001,"159ReimburseRes0001","EMS Reimbursement Resolution Funds-GF","Star Flight Prgm Dir",159,"R","1950-01-01","9999-12-31",1510]
[null,null,null,190,1901100000,"190-101GenAdm0000","Ctl Computer-County Judge-GenAdm","Chief Info Ofr",112,"P","1950-01-01","9999-12-31",1110]
[null,null,null,190,1901110000,"190-101JuvSvs0000","Ctl Computer-County Judge-JuvSvs","Chief Info Ofr",112,"P","1950-01-01","9999-12-31",1230]
[null,null,null,190,1901120000,"190-102GenAdm0000","Ctl Computer-CC Pct 1-GenAdm","Chief Info Ofr",112,"P","1950-01-01","9999-12-31",1110]
[null,null,null,190,1901130000,"190-103GenAdm0000","Ctl Computer-CC Pct 2-GenAdm","Chief Info Ofr",112,"P","1950-01-01","9999-12-31",1110]
[null,null,null,190,1901140000,"190-104GenAdm0000","Ctl Computer-CC Pct 3-GenAdm","Chief Info Ofr",112,"P","1950-01-01","9999-12-31",1110]
[null,null,null,190,1901150000,"190-105GenAdm0000","Ctl Computer-CC Pct 4-GenAdm","Chief Info Ofr",112,"P","1950-01-01","9999-12-31",1110]
[null,null,null,190,1901160000,"190-106FinAdm0000","Ctl Computer-County Auditor-FinAdm","Chief Info Ofr",112,"P","1950-01-01","9999-12-31",1120]
[null,null,null,190,1901170000,"190-107FinAdm0000","Ctl Computer-County Treasurer-FinAdm","Chief Info Ofr",112,"P","1950-01-01","9999-12-31",1120]
[null,null,null,190,1901180000,"190-108TaxAdm0000","Ctl Computer-Tax Collector-TaxAdm","Chief Info Ofr",112,"P","1950-01-01","9999-12-31",1130]
[null,null,null,190,1901190000,"190-108CrmJs0000","Ctl Computer-Tax Collector-CrmJs","Chief Info Ofr",112,"P","1950-01-01","9999-12-31",1210]
[null,null,null,190,1901200000,"190-108ElnAdm0000","Ctl Computer-Tax Collector-ElnAdm","Chief Info Ofr",112,"P","1950-01-01","9999-12-31",1150]
[null,null,null,190,1901210000,"190-109FinAdm0000","Ctl Computer-Planning And Budget-FinAdm","Chief Info Ofr",112,"P","1950-01-01","9999-12-31",1120]
[null,null,null,190,1901220000,"190-110GenAdm0000","Ctl Computer-General Adm-GenAdm","Chief Info Ofr",112,"P","1950-01-01","9999-12-31",1110]
[null,null,null,190,1901230000,"190-110Hlhcare0000","Ctl Computer-General Adm-Hlhcare","Chief Info Ofr",112,"P","1950-01-01","9999-12-31",1510]
[null,null,null,190,1901240000,"190-110EconDev0000","Ctl Computer-General Adm-EconDev","Chief Info Ofr",112,"P","1950-01-01","9999-12-31",1610]
[null,null,null,190,1901250000,"190-111GenAdm0000","Ctl Computer-Human Resource Mgmt-GenAdm","Chief Info Ofr",112,"P","1950-01-01","9999-12-31",1110]
[null,null,null,190,1901260000,"190-112GenAdm0000","Ctl Computer-ITS-GenAdm","Chief Info Ofr",112,"P","1950-01-01","9999-12-31",1110]
[null,null,null,190,1901270000,"190-113EconDev0000","Ctl Computer-EXPO Center-EconDev","Chief Info Ofr",112,"P","1950-01-01","9999-12-31",1610]
[null,null,null,190,1901280000,"190-114FacMgmt0000","Ctl Computer-Facilities Mgmt-FacMgmt","Chief Info Ofr",112,"P","1950-01-01","9999-12-31",1140]
[null,null,null,190,1901290000,"190-114EconDev0000","Ctl Computer-Facilities Mgmt-EconDev","Chief Info Ofr",112,"P","1950-01-01","9999-12-31",1610]
[null,null,null,190,1901300000,"190-115FinAdm0000","Ctl Computer-Purchasing-FinAdm","Chief Info Ofr",112,"P","1950-01-01","9999-12-31",1120]
[null,null,null,190,1901310000,"190-116HumanSvs00000","Ctl Computer-Veterans Services-HumanSvs","Chief Info Ofr",112,"P","1950-01-01","9999-12-31",1530]
[null,null,null,190,1901320000,"190-117Cul&Edu0000","Ctl Computer-Historical Comm-Cul&Edu","Chief Info Ofr",112,"P","1950-01-01","9999-12-31",1630]
[null,null,null,190,1901330000,"190-118HumanSvs0000","Ctl Computer-Agr Ext Serv-HumanSvs","Chief Info Ofr",112,"P","1950-01-01","9999-12-31",1530]
[null,null,null,190,1901340000,"190-119CivJs0000","Ctl Computer-County Attorney-CivJs","Chief Info Ofr",112,"P","1950-01-01","9999-12-31",1220]
[null,null,null,190,1901350000,"190-119CrmJs0000","Ctl Computer-County Attorney-CrmJs","Chief Info Ofr",112,"P","1950-01-01","9999-12-31",1210]
[null,null,null,190,1901360000,"190-120GenAdm0000","Ctl Computer-County Clerk-GenAdm","Chief Info Ofr",112,"P","1950-01-01","9999-12-31",1110]
[null,null,null,190,1901370000,"190-120ElnAdm0000","Ctl Computer-County Clerk-ElnAdm","Chief Info Ofr",112,"P","1950-01-01","9999-12-31",1150]
[null,null,null,190,1901380000,"190-120CivJs0000","Ctl Computer-County Clerk-CivJs","Chief Info Ofr",112,"P","1950-01-01","9999-12-31",1220]
[null,null,null,190,1901390000,"190-120CrmJs0000","Ctl Computer-County Clerk-CrmJs","Chief Info Ofr",112,"P","1950-01-01","9999-12-31",1210]
[null,null,null,190,1901400000,"190-121CivJs00000","Ctl Computer-District Clerk-CivJs","Chief Info Ofr",112,"P","1950-01-01","9999-12-31",1220]
[null,null,null,190,1901410000,"190-121CrmJs0000","Ctl Computer-District Clerk-CrmJs","Chief Info Ofr",112,"P","1950-01-01","9999-12-31",1210]
[null,null,null,190,1901420000,"190-122CivJs0000","Ctl Computer-Civil Courts-CivJs","Chief Info Ofr",112,"P","1950-01-01","9999-12-31",1220]
[null,null,null,190,1901430000,"190-123CrmJs0000","Ctl Computer-District Attorney-CrmJs","Chief Info Ofr",112,"P","1950-01-01","9999-12-31",1210]
[null,null,null,190,1901440000,"190-123CivJs0000","Ctl Computer-District Attorney-CivJs","Chief Info Ofr",112,"P","1950-01-01","9999-12-31",1220]
[null,null,null,190,1901450000,"190-124CrmJs0000","Ctl Computer-Criminal Courts-CrmJs","Chief Info Ofr",112,"P","1950-01-01","9999-12-31",1210]
[null,null,null,190,1901460000,"190-125CivJs0000","Ctl Computer-Probate Court-CivJs","Chief Info Ofr",112,"P","1950-01-01","9999-12-31",1220]
[null,null,null,190,1901470000,"190-126CivJs0000","Ctl Computer-Justice Of Peace 1-CivJs","Chief Info Ofr",112,"P","1950-01-01","9999-12-31",1220]
[null,null,null,190,1901480000,"190-126CrmJs0000","Ctl Computer-Justice Of Peace 1-CrmJs","Chief Info Ofr",112,"P","1950-01-01","9999-12-31",1210]
[null,null,null,190,1901490000,"190-127CivJs0000","Ctl Computer-Justice Of Peace 2-CivJs","Chief Info Ofr",112,"P","1950-01-01","9999-12-31",1220]
[null,null,null,190,1901500000,"190-127CrmJs0000","Ctl Computer-Justice Of Peace 2-CrmJs","Chief Info Ofr",112,"P","1950-01-01","9999-12-31",1210]
[null,null,null,190,1901510000,"190-128CivJs0000","Ctl Computer-Justice Of Peace 3-CivJs","Chief Info Ofr",112,"P","1950-01-01","9999-12-31",1220]
[null,null,null,190,1901520000,"190-128CrmJs0000","Ctl Computer-Justice Of Peace 3-CrmJs","Chief Info Ofr",112,"P","1950-01-01","9999-12-31",1210]
[null,null,null,190,1901530000,"190-129CivJs0000","Ctl Computer-Justice Of Peace 4-CivJs","Chief Info Ofr",112,"P","1950-01-01","9999-12-31",1220]
[null,null,null,190,1901540000,"190-129CrmJs0000","Ctl Computer-Justice Of Peace 4-CrmJs","Chief Info Ofr",112,"P","1950-01-01","9999-12-31",1210]
[null,null,null,190,1901550000,"190-130CivJs0000","Ctl Computer-Justice Of Peace 5-CivJs","Chief Info Ofr",112,"P","1950-01-01","9999-12-31",1220]
[null,null,null,190,1901560000,"190-130CrmJs0000","Ctl Computer-Justice Of Peace 5-CrmJs","Chief Info Ofr",112,"P","1950-01-01","9999-12-31",1210]
[null,null,null,190,1901570000,"190-131LE0000","Ctl Computer-Constable 1-LE","Chief Info Ofr",112,"P","1950-01-01","9999-12-31",1310]
[null,null,null,190,1901580000,"190-132LE0000","Ctl Computer-Constable 2-LE","Chief Info Ofr",112,"P","1950-01-01","9999-12-31",1310]
[null,null,null,190,1901590000,"190-133LE0000","Ctl Computer-Constable 3-LE","Chief Info Ofr",112,"P","1950-01-01","9999-12-31",1310]
[null,null,null,190,1901600000,"190-134LE0000","Ctl Computer-Constable 4-LE","Chief Info Ofr",112,"P","1950-01-01","9999-12-31",1310]
[null,null,null,190,1901610000,"190-135LE0000","Ctl Computer-Constable 5-LE","Chief Info Ofr",112,"P","1950-01-01","9999-12-31",1310]
[null,null,null,190,1901620000,"190-136CivJs0000","Ctl Computer-Dispute Resol Ctr-CivJs","Chief Info Ofr",112,"P","1950-01-01","9999-12-31",1220]
[null,null,null,190,1901630000,"190-137LE0000","Ctl Computer-Sheriff-LE","Chief Info Ofr",112,"P","1950-01-01","9999-12-31",1310]
[null,null,null,190,1901640000,"190-137HsgBkg0000","Ctl Computer-Sheriff-HsgBkg","Chief Info Ofr",112,"P","1950-01-01","9999-12-31",1410]
[null,null,null,190,1901650000,"190-138LE0000","Ctl Computer-Medical Examiner-LE","Chief Info Ofr",112,"P","1950-01-01","9999-12-31",1310]
[null,null,null,190,1901660000,"190-139Svsn0000","Ctl Computer-CSCD-Svsn","Chief Info Ofr",112,"P","1950-01-01","9999-12-31",1420]
[null,null,null,190,1901670000,"190-140Svsn0000","Ctl Computer-TCCES-Svsn","Chief Info Ofr",112,"P","1950-01-01","9999-12-31",1420]
[null,null,null,190,1901680000,"190-142Svsn0000","Ctl Computer-Pretrial Services-Svsn","Chief Info Ofr",112,"P","1950-01-01","9999-12-31",1420]
[null,null,null,190,1901690000,"190-142HsgBkg0000","Ctl Computer-Pretrial Services-HsgBkg","Chief Info Ofr",112,"P","1950-01-01","9999-12-31",1410]
[null,null,null,190,1901700000,"190-143JuvSvs0000","Ctl Computer-Juvenile Public Dfdr-JuvSvs","Chief Info Ofr",112,"P","1950-01-01","9999-12-31",1230]
[null,null,null,190,1901710000,"190-145JuvSvs0000","Ctl Computer-Juvenile Probation-JuvSvs","Chief Info Ofr",112,"P","1950-01-01","9999-12-31",1230]
[null,null,null,190,1901720000,"190-147Hlhcare0000","Ctl Computer-Emergency Services-Hlhcare","Chief Info Ofr",112,"P","1950-01-01","9999-12-31",1510]
[null,null,null,190,1901730000,"190-147EmrgMgmt0000","Ctl Computer-Emergency Services-EmrgMgmt","Chief Info Ofr",112,"P","1950-01-01","9999-12-31",1320]
[null,null,null,190,1901740000,"190-149RdBg0000","Ctl Computer-TNR-RdBg","Chief Info Ofr",112,"P","1950-01-01","9999-12-31",1710]
[null,null,null,190,1901750000,"190-149Parks&Rec0000","Ctl Computer-TNR-Parks&Rec","Chief Info Ofr",112,"P","1950-01-01","9999-12-31",1650]
[null,null,null,190,1901760000,"190-149ConservNR0000","Ctl Computer-TNR-ConservNR","Chief Info Ofr",112,"P","1950-01-01","9999-12-31",1750]
[null,null,null,190,1901770000,"190-149FacMgmt0000","Ctl Computer-TNR-FacMgmt","Chief Info Ofr",112,"P","1950-01-01","9999-12-31",1140]
[null,null,null,190,1901780000,"190-149Drng0000","Ctl Computer-TNR-Drng","Chief Info Ofr",112,"P","1950-01-01","9999-12-31",1730]
[null,null,null,190,1901790000,"190-149Sanitation000","Ctl Computer-TNR-Sanitation","Chief Info Ofr",112,"P","1950-01-01","9999-12-31",1760]
[null,null,null,190,1901800000,"190-149DevRegIn0000","Ctl Computer-TNR-DevRegIn","Chief Info Ofr",112,"P","1950-01-01","9999-12-31",1740]
[null,null,null,190,1901810000,"190-149HumanSvs0000","Ctl Computer-TNR-HumanSvs","Chief Info Ofr",112,"P","1950-01-01","9999-12-31",1530]
[null,null,null,190,1901820000,"190-154GenAdm0000","Ctl Computer-Civil Service Cmn-GenAdm","Chief Info Ofr",112,"P","1950-01-01","9999-12-31",1110]
[null,null,null,190,1901830000,"190-155CrmJs0000","Ctl Computer-CJP-CrmJs","Chief Info Ofr",112,"P","1950-01-01","9999-12-31",1210]
[null,null,null,190,1901840000,"190-155Hlhcare0000","Ctl Computer-CJP-Hlhcare","Chief Info Ofr",112,"P","1950-01-01","9999-12-31",1510]
[null,null,null,190,1901850000,"190-155EmrgMgmt0000","Ctl Computer-CJP-EmrgMgmt","Chief Info Ofr",112,"P","1950-01-01","9999-12-31",1320]
[null,null,null,190,1901860000,"190-155Svsn0000","Ctl Computer-CJP-Svsn","Chief Info Ofr",112,"P","1950-01-01","9999-12-31",1420]
[null,null,null,190,1901870000,"190-155JuvSvs0000","Ctl Computer-CJP-JuvSvs","Chief Info Ofr",112,"P","1950-01-01","9999-12-31",1230]
[null,null,null,190,1901880000,"190-155LE0000","Ctl Computer-CJP-LE","Chief Info Ofr",112,"P","1950-01-01","9999-12-31",1310]
[null,null,null,190,1901890000,"190-157GenAdm0000","Ctl Computer-CRS-GenAdm","Chief Info Ofr",112,"P","1950-01-01","9999-12-31",1110]
[null,null,null,190,1901900000,"190-157CivJs0000","Ctl Computer-CRS-CivJs","Chief Info Ofr",112,"P","1950-01-01","9999-12-31",1220]
[null,null,null,190,1901910000,"190-157CrmJs0000","Ctl Computer-CRS-CrmJs","Chief Info Ofr",112,"P","1950-01-01","9999-12-31",1210]
[null,null,null,190,1901920000,"190-158Hlhcare0000","Ctl Computer-HHS-Hlhcare","Chief Info Ofr",112,"P","1950-01-01","9999-12-31",1510]
[null,null,null,190,1901930000,"190-158PbcHlh0000","Ctl Computer-HHS-PbcHlh","Chief Info Ofr",112,"P","1950-01-01","9999-12-31",1520]
[null,null,null,190,1901940000,"190-158HumanSvs0000","Ctl Computer-HHS-HumanSvs","Chief Info Ofr",112,"P","1950-01-01","9999-12-31",1530]
[null,null,null,190,1901950000,"190-158JuvSvs0000","Ctl Computer-HHS-JuvSvs","Chief Info Ofr",112,"P","1950-01-01","9999-12-31",1230]
[null,null,null,190,1901960000,"190-159Hlhcare0000","Ctl Computer-EMS-Hlhcare","Chief Info Ofr",112,"P","1950-01-01","9999-12-31",1510]
[null,null,null,190,1901970000,"190-193CivJs0000","Ctl Computer-Legally Mtd Fees-CivJs","Chief Info Ofr",112,"P","1950-01-01","9999-12-31",1220]
[null,null,null,190,1901980000,"190-194CrmJs0000","Ctl Computer-Legally Mtd Fees-CrmJs","Chief Info Ofr",112,"P","1950-01-01","9999-12-31",1210]
[null,null,null,190,1901990000,"190-144PD0000","Ctl Computer-Pub Defender's Ofc-CrimJs","Chief Info Ofr",112,"P","1950-01-01","9999-12-31",1210]
[null,null,null,191,1911100001,"191-101GenAdm0001","Ctl RentUtil-County Judge-GenAdm","Facilities Mgmt Dir",114,"P","1950-01-01","9999-12-31",1110]
[null,null,null,191,1911110001,"191-101JuvSvs0001","Ctl RentUtil-County Judge-JuvSvs","Facilities Mgmt Dir",114,"P","1950-01-01","9999-12-31",1230]
[null,null,null,191,1911120001,"191-102GenAdm0001","Ctl RentUtil-CC-Pct 1-GenAdm","Facilities Mgmt Dir",114,"P","1950-01-01","9999-12-31",1110]
[null,null,null,191,1911130001,"191-103GenAdm0001","Ctl RentUtil-CC Pct 2-GenAdm","Facilities Mgmt Dir",114,"P","1950-01-01","9999-12-31",1110]
[null,null,null,191,1911140001,"191-104GenAdm0001","Ctl RentUtil-CC Pct 3-GenAdm","Facilities Mgmt Dir",114,"P","1950-01-01","9999-12-31",1110]
[null,null,null,191,1911150001,"191-105GenAdm0001","Ctl RentUtil-CC Pct 4-GenAdm","Facilities Mgmt Dir",114,"P","1950-01-01","9999-12-31",1110]
[null,null,null,191,1911160001,"191-106FinAdm0001","Ctl RentUtil-County Auditor-FinAdm","Facilities Mgmt Dir",114,"P","1950-01-01","9999-12-31",1120]
[null,null,null,191,1911170001,"191-107FinAdm0001","Ctl RentUtil-County Treasurer-FinAdm","Facilities Mgmt Dir",114,"P","1950-01-01","9999-12-31",1120]
[null,null,null,191,1911180001,"191-108TaxAdm0001","Ctl RentUtil-Tax Collector-TaxAdm","Facilities Mgmt Dir",114,"P","1950-01-01","9999-12-31",1130]
[null,null,null,191,1911190001,"191-108CrmJs0001","Ctl RentUtil-Tax Collector-CrmJs","Facilities Mgmt Dir",114,"P","1950-01-01","9999-12-31",1210]
[null,null,null,191,1911200001,"191-108ElnAdm0001","Ctl RentUtil-Tax Collector-ElnAdm","Facilities Mgmt Dir",114,"P","1950-01-01","9999-12-31",1150]
[null,null,null,191,1911210001,"191-109FinAdm0001","Ctl RentUtil-Planning And Budget-FinAdm","Facilities Mgmt Dir",114,"P","1950-01-01","9999-12-31",1120]
[null,null,null,191,1911220001,"191-110GenAdm0001","Ctl RentUtil-General Adm-GenAdm","Facilities Mgmt Dir",114,"P","1950-01-01","9999-12-31",1110]
[null,null,null,191,1911230001,"191-110Hlhcare0001","Ctl RentUtil-General Adm-Hlhcare","Facilities Mgmt Dir",114,"P","1950-01-01","9999-12-31",1510]
[null,null,null,191,1911240001,"191-110EconDev0001","Ctl RentUtil-General Adm-EconDev","Facilities Mgmt Dir",114,"P","1950-01-01","9999-12-31",1610]
[null,null,null,191,1911250001,"191-111GenAdm0001","Ctl RentUtil-Human Resource Mgmt-GenAdm","Facilities Mgmt Dir",114,"P","1950-01-01","9999-12-31",1110]
[null,null,null,191,1911260001,"191-112GenAdm0001","Ctl RentUtil-ITS-GenAdm","Facilities Mgmt Dir",114,"P","1950-01-01","9999-12-31",1110]
[null,null,null,191,1911270001,"191-113EconDev0001","Ctl RentUtil-EXPO Center-EconDev","Facilities Mgmt Dir",114,"P","1950-01-01","9999-12-31",1610]
[null,null,null,191,1911280001,"191-114FacMgmt0001","Ctl RentUtil-Facilities Mgmt-FacMgmt","Facilities Mgmt Dir",114,"P","1950-01-01","9999-12-31",1140]
[null,null,null,191,1911290001,"191-114EconDev0001","Ctl RentUtil-Facilities Mgmt-EconDev","Facilities Mgmt Dir",114,"P","1950-01-01","9999-12-31",1610]
[null,null,null,191,1911300001,"191-115FinAdm0001","Ctl RentUtil-Purchasing-FinAdm","Facilities Mgmt Dir",114,"P","1950-01-01","9999-12-31",1120]
[null,null,null,191,1911310001,"191-116HumanSvs0001","Ctl RentUtil-Veterans Services-HumanSvs","Facilities Mgmt Dir",114,"P","1950-01-01","9999-12-31",1530]
[null,null,null,191,1911320001,"191-117Cul&Edu0001","Ctl RentUtil-Historical Comm-Cul&Edu","Facilities Mgmt Dir",114,"P","1950-01-01","9999-12-31",1650]
[null,null,null,191,1911330001,"191-118HumanSvs0001","Ctl RentUtil-Agr Ext Serv-HumanSvs","Facilities Mgmt Dir",114,"P","1950-01-01","9999-12-31",1530]
[null,null,null,191,1911340001,"191-119CivJs0001","Ctl RentUtil-County Attorney-CivJs","Facilities Mgmt Dir",114,"P","1950-01-01","9999-12-31",1220]
[null,null,null,191,1911350001,"191-119CrmJs0001","Ctl RentUtil-County Attorney-CrmJs","Facilities Mgmt Dir",114,"P","1950-01-01","9999-12-31",1210]
[null,null,null,191,1911360001,"191-120GenAdm0001","Ctl RentUtil-County Clerk-GenAdm","Facilities Mgmt Dir",114,"P","1950-01-01","9999-12-31",1110]
[null,null,null,191,1911370001,"191-120ElnAdm0001","Ctl RentUtil-County Clerk-ElnAdm","Facilities Mgmt Dir",114,"P","1950-01-01","9999-12-31",1150]
[null,null,null,191,1911380001,"191-120CivJs0001","Ctl RentUtil-County Clerk-CivJs","Facilities Mgmt Dir",114,"P","1950-01-01","9999-12-31",1220]
[null,null,null,191,1911390001,"191-120CrmJs0001","Ctl RentUtil-County Clerk-CrmJs","Facilities Mgmt Dir",114,"P","1950-01-01","9999-12-31",1210]
[null,null,null,191,1911400001,"191-121CivJs0001","Ctl RentUtil-District Clerk-CivJs","Facilities Mgmt Dir",114,"P","1950-01-01","9999-12-31",1220]
[null,null,null,191,1911410001,"191-121CrmJs0001","Ctl RentUtil-District Clerk-CrmJs","Facilities Mgmt Dir",114,"P","1950-01-01","9999-12-31",1210]
[null,null,null,191,1911420001,"191-122CivJs0001","Ctl RentUtil-Civil Courts-CivJs","Facilities Mgmt Dir",114,"P","1950-01-01","9999-12-31",1220]
[null,null,null,191,1911430001,"191-123CrmJs0001","Ctl RentUtil-District Attorney-CrmJs","Facilities Mgmt Dir",114,"P","1950-01-01","9999-12-31",1210]
[null,null,null,191,1911440001,"191-123CivJs0001","Ctl RentUtil-District Attorney-CivJs","Facilities Mgmt Dir",114,"P","1950-01-01","9999-12-31",1220]
[null,null,null,191,1911450001,"191-124CrmJs0001","Ctl RentUtil-Criminal Courts-CrmJs","Facilities Mgmt Dir",114,"P","1950-01-01","9999-12-31",1210]
[null,null,null,191,1911460001,"191-125CivJs0001","Ctl RentUtil-Probate Court-CivJs","Facilities Mgmt Dir",114,"P","1950-01-01","9999-12-31",1220]
[null,null,null,191,1911470001,"191-126CivJs0001","Ctl RentUtil-Justice Of Peace 1-CivJs","Facilities Mgmt Dir",114,"P","1950-01-01","9999-12-31",1220]
[null,null,null,191,1911480001,"191-126CrmJs0001","Ctl RentUtil-Justice Of Peace 1-CrmJs","Facilities Mgmt Dir",114,"P","1950-01-01","9999-12-31",1210]
[null,null,null,191,1911490001,"191-127CivJs0001","Ctl RentUtil-Justice Of Peace 2-CivJs","Facilities Mgmt Dir",114,"P","1950-01-01","9999-12-31",1220]
[null,null,null,191,1911500001,"191-127CrmJs0001","Ctl RentUtil-Justice Of Peace 2-CrmJs","Facilities Mgmt Dir",114,"P","1950-01-01","9999-12-31",1210]
[null,null,null,191,1911510001,"191-128CivJs0001","Ctl RentUtil-Justice Of Peace 3-CivJs","Facilities Mgmt Dir",114,"P","1950-01-01","9999-12-31",1220]
[null,null,null,191,1911520001,"191-128CrmJs0001","Ctl RentUtil-Justice Of Peace 3-CrmJs","Facilities Mgmt Dir",114,"P","1950-01-01","9999-12-31",1210]
[null,null,null,191,1911530001,"191-129CivJs0001","Ctl RentUtil-Justice Of Peace 4-CivJs","Facilities Mgmt Dir",114,"P","1950-01-01","9999-12-31",1220]
[null,null,null,191,1911540001,"191-129CrmJs0001","Ctl RentUtil-Justice Of Peace 4-CrmJs","Facilities Mgmt Dir",114,"P","1950-01-01","9999-12-31",1210]
[null,null,null,191,1911550001,"191-130CivJs0001","Ctl RentUtil-Justice Of Peace 5-CivJs","Facilities Mgmt Dir",114,"P","1950-01-01","9999-12-31",1220]
[null,null,null,191,1911560001,"191-130CrmJs0001","Ctl RentUtil-Justice Of Peace 5-CrmJs","Facilities Mgmt Dir",114,"P","1950-01-01","9999-12-31",1210]
[null,null,null,191,1911570001,"191-131LE0001","Ctl RentUtil-Constable 1-LE","Facilities Mgmt Dir",114,"P","1950-01-01","9999-12-31",1310]
[null,null,null,191,1911580001,"191-132LE0001","Ctl RentUtil-Constable 2-LE","Facilities Mgmt Dir",114,"P","1950-01-01","9999-12-31",1310]
[null,null,null,191,1911590001,"191-133LE0001","Ctl RentUtil-Constable 3-LE","Facilities Mgmt Dir",114,"P","1950-01-01","9999-12-31",1310]
[null,null,null,191,1911600001,"191-134LE0001","Ctl RentUtil-Constable 4-LE","Facilities Mgmt Dir",114,"P","1950-01-01","9999-12-31",1310]
[null,null,null,191,1911610001,"191-135LE0001","Ctl RentUtil-Constable 5-LE","Facilities Mgmt Dir",114,"P","1950-01-01","9999-12-31",1310]
[null,null,null,191,1911620001,"191-136CivJs0001","Ctl RentUtil-Dispute Resol Ctr-CivJs","Facilities Mgmt Dir",114,"P","1950-01-01","9999-12-31",1220]
[null,null,null,191,1911630001,"191-137LE0001","Ctl RentUtil-Sheriff-LE","Facilities Mgmt Dir",114,"P","1950-01-01","9999-12-31",1310]
[null,null,null,191,1911640001,"191-137HsgBkg0001","Ctl RentUtil-Sheriff-HsgBkg","Facilities Mgmt Dir",114,"P","1950-01-01","9999-12-31",1410]
[null,null,null,191,1911650001,"191-138LE0001","Ctl RentUtil-Medical Examiner-LE","Facilities Mgmt Dir",114,"P","1950-01-01","9999-12-31",1310]
[null,null,null,191,1911660001,"191-139Svsn0001","Ctl RentUtil-CSCD-Svsn","Facilities Mgmt Dir",114,"P","1950-01-01","9999-12-31",1420]
[null,null,null,191,1911670001,"191-140Svsn0001","Ctl RentUtil-TCCES-Svsn","Facilities Mgmt Dir",114,"P","1950-01-01","9999-12-31",1420]
[null,null,null,191,1911680001,"191-142Svsn0001","Ctl RentUtil-Pretrial Services-Svsn","Facilities Mgmt Dir",114,"P","1950-01-01","9999-12-31",1420]
[null,null,null,191,1911690001,"191-142HsgBkg0001","Ctl RentUtil-Pretrial Services-HsgBkg","Facilities Mgmt Dir",114,"P","1950-01-01","9999-12-31",1410]
[null,null,null,191,1911700001,"191-143JuvSvs0001","Ctl RentUtil-Juvenile Public Dfdr-JuvSvs","Facilities Mgmt Dir",114,"P","1950-01-01","9999-12-31",1230]
[null,null,null,191,1911710001,"191-145JuvSvs0001","Ctl RentUtil-Juvenile Probation-JuvSvs","Facilities Mgmt Dir",114,"P","1950-01-01","9999-12-31",1230]
[null,null,null,191,1911720001,"191-147Hlhcare0001","Ctl RentUtil-Emergency Services-Hlhcare","Facilities Mgmt Dir",114,"P","1950-01-01","9999-12-31",1510]
[null,null,null,191,1911730001,"191-147EmrgMgmt0001","Ctl RentUtil-Emergency Services-EmrgMgmt","Facilities Mgmt Dir",114,"P","1950-01-01","9999-12-31",1320]
[null,null,null,191,1911740001,"191-149RdBg0001","Ctl RentUtil-TNR-RdBg","Facilities Mgmt Dir",114,"P","1950-01-01","9999-12-31",1710]
[null,null,null,191,1911750001,"191-149Parks&Rec0001","Ctl RentUtil-TNR-Parks&Rec","Facilities Mgmt Dir",114,"P","1950-01-01","9999-12-31",1630]
[null,null,null,191,1911760001,"191-149ConservNR0001","Ctl RentUtil-TNR-ConservNR","Facilities Mgmt Dir",114,"P","1950-01-01","9999-12-31",1750]
[null,null,null,191,1911770001,"191-149FacMgmt0001","Ctl RentUtil-TNR-FacMgmt","Facilities Mgmt Dir",114,"P","1950-01-01","9999-12-31",1140]
[null,null,null,191,1911780001,"191-149Drng0001","Ctl RentUtil-TNR-Drng","Facilities Mgmt Dir",114,"P","1950-01-01","9999-12-31",1730]
[null,null,null,191,1911790001,"191-149Sanitatn0001","Ctl RentUtil-TNR-Sanitation","Facilities Mgmt Dir",114,"P","1950-01-01","9999-12-31",1760]
[null,null,null,191,1911800001,"191-149DevRegIn0001","Ctl RentUtil-TNR-DevRegIn","Facilities Mgmt Dir",114,"P","1950-01-01","9999-12-31",1740]
[null,null,null,191,1911810001,"191-149HumanSvs0001","Ctl RentUtil-TNR-HumanSvs","Facilities Mgmt Dir",114,"P","1950-01-01","9999-12-31",1530]
[null,null,null,191,1911820001,"191-154GenAdm0001","Ctl RentUtil-Civil Service Cmn-GenAdm","Facilities Mgmt Dir",114,"P","1950-01-01","9999-12-31",1110]
[null,null,null,191,1911830001,"191-155CrmJs0001","Ctl RentUtil-CJP-CrmJs","Facilities Mgmt Dir",114,"P","1950-01-01","9999-12-31",1210]
[null,null,null,191,1911840001,"191-155Hlhcare0001","Ctl RentUtil-CJP-Hlhcare","Facilities Mgmt Dir",114,"P","1950-01-01","9999-12-31",1510]
[null,null,null,191,1911850001,"191-155EmrgMgmt0001","Ctl RentUtil-CJP-EmrgMgmt","Facilities Mgmt Dir",114,"P","1950-01-01","9999-12-31",1320]
[null,null,null,191,1911860001,"191-155Svsn0001","Ctl RentUtil-CJP-Svsn","Facilities Mgmt Dir",114,"P","1950-01-01","9999-12-31",1420]
[null,null,null,191,1911870001,"191-155JuvSvs0001","Ctl RentUtil-CJP-JuvSvs","Facilities Mgmt Dir",114,"P","1950-01-01","9999-12-31",1230]
[null,null,null,191,1911880001,"191-155LE0001","Ctl RentUtil-CJP-LE","Facilities Mgmt Dir",114,"P","1950-01-01","9999-12-31",1310]
[null,null,null,191,1911890001,"191-157GenAdm0001","Ctl RentUtil-CRS-GenAdm","Facilities Mgmt Dir",114,"P","1950-01-01","9999-12-31",1110]
[null,null,null,191,1911900001,"191-157CivJs0001","Ctl RentUtil-CRS-CivJs","Facilities Mgmt Dir",114,"P","1950-01-01","9999-12-31",1220]
[null,null,null,191,1911910001,"191-157CrmJs0001","Ctl RentUtil-CRS-CrmJs","Facilities Mgmt Dir",114,"P","1950-01-01","9999-12-31",1210]
[null,null,null,191,1911920001,"191-158Hlhcare0001","Ctl RentUtil-HHS-Hlhcare","Facilities Mgmt Dir",114,"P","1950-01-01","9999-12-31",1510]
[null,null,null,191,1911930001,"191-158PbcHlh0001","Ctl RentUtil-HHS-PbcHlh","Facilities Mgmt Dir",114,"P","1950-01-01","9999-12-31",1520]
[null,null,null,191,1911940001,"191-158HumanSvs0001","Ctl RentUtil-HHS-HumanSvs","Facilities Mgmt Dir",114,"P","1950-01-01","9999-12-31",1530]
[null,null,null,191,1911950001,"191-158JuvSvs0001","Ctl RentUtil-HHS-JuvSvs","Facilities Mgmt Dir",114,"P","1950-01-01","9999-12-31",1230]
[null,null,null,191,1911960001,"191-159Hlhcare0001","Ctl RentUtil-EMS-Hlhcare","Facilities Mgmt Dir",114,"P","1950-01-01","9999-12-31",1510]
[null,null,null,191,1911970001,"191-193CivJs0001","Ctl RentUtil-Legally Mtd Fees-CivJs","Facilities Mgmt Dir",114,"P","1950-01-01","9999-12-31",1220]
[null,null,null,191,1911980001,"191-194CrmJs0001","Ctl RentUtil-Legally Mtd Fees-CrmJs","Facilities Mgmt Dir",114,"P","1950-01-01","9999-12-31",1210]
[null,null,null,192,1921100001,"192-101GenAdm0001","Ctl Fleet-County Judge-GenAdm","County Exec TNR",149,"P","1950-01-01","9999-12-31",1110]
[null,null,null,192,1921110001,"192-101JuvSvs0001","Ctl Fleet-County Judge-JuvSvs","County Exec TNR",149,"P","1950-01-01","9999-12-31",1230]
[null,null,null,192,1921120001,"192-102GenAdm0001","Ctl Fleet-CC-Pct 1-GenAdm","County Exec TNR",149,"P","1950-01-01","9999-12-31",1110]
[null,null,null,192,1921130001,"192-103GenAdm0001","Ctl Fleet-CC Pct 2-GenAdm","County Exec TNR",149,"P","1950-01-01","9999-12-31",1110]
[null,null,null,192,1921140001,"192-104GenAdm0001","Ctl Fleet-CC Pct 3-GenAdm","County Exec TNR",149,"P","1950-01-01","9999-12-31",1110]
[null,null,null,192,1921150001,"192-105GenAdm0001","Ctl Fleet-CC Pct 4-GenAdm","County Exec TNR",149,"P","1950-01-01","9999-12-31",1110]
[null,null,null,192,1921160001,"192-106FinAdm0001","Ctl Fleet-County Auditor-FinAdm","County Exec TNR",149,"P","1950-01-01","9999-12-31",1120]
[null,null,null,192,1921170001,"192-107FinAdm0001","Ctl Fleet-County Treasurer-FinAdm","County Exec TNR",149,"P","1950-01-01","9999-12-31",1120]
[null,null,null,192,1921180001,"192-108TaxAdm0001","Ctl Fleet-Tax Collector-TaxAdm","County Exec TNR",149,"P","1950-01-01","9999-12-31",1130]
[null,null,null,192,1921190001,"192-108CrmJs0001","Ctl Fleet-Tax Collector-CrmJs","County Exec TNR",149,"P","1950-01-01","9999-12-31",1210]
[null,null,null,192,1921200001,"192-108ElnAdm0001","Ctl Fleet-Tax Collector-ElnAdm","County Exec TNR",149,"P","1950-01-01","9999-12-31",1150]
[null,null,null,192,1921210001,"192-109FinAdm0001","Ctl Fleet-Planning And Budget-FinAdm","County Exec TNR",149,"P","1950-01-01","9999-12-31",1120]
[null,null,null,192,1921220001,"192-110GenAdm0001","Ctl Fleet-General Adm-GenAdm","County Exec TNR",149,"P","1950-01-01","9999-12-31",1110]
[null,null,null,192,1921230001,"192-110Hlhcare0001","Ctl Fleet-General Adm-Hlhcare","County Exec TNR",149,"P","1950-01-01","9999-12-31",1510]
[null,null,null,192,1921240001,"192-110EconDev0001","Ctl Fleet-General Adm-EconDev","County Exec TNR",149,"P","1950-01-01","9999-12-31",1610]
[null,null,null,192,1921250001,"192-111GenAdm0001","Ctl Fleet-Human Resource Mgmt-GenAdm","County Exec TNR",149,"P","1950-01-01","9999-12-31",1110]
[null,null,null,192,1921260001,"192-112GenAdm0001","Ctl Fleet-ITS-GenAdm","County Exec TNR",149,"P","1950-01-01","9999-12-31",1110]
[null,null,null,192,1921270001,"192-113EconDev0001","Ctl Fleet-EXPO Center-EconDev","County Exec TNR",149,"P","1950-01-01","9999-12-31",1610]
[null,null,null,192,1921280001,"192-114FacMgmt0001","Ctl Fleet-Facilities Mgmt-FacMgmt","County Exec TNR",149,"P","1950-01-01","9999-12-31",1140]
[null,null,null,192,1921290001,"192-114EconDev0001","Ctl Fleet-Facilities Mgmt-EconDev","County Exec TNR",149,"P","1950-01-01","9999-12-31",1610]
[null,null,null,192,1921300001,"192-115FinAdm0001","Ctl Fleet-Purchasing-FinAdm","County Exec TNR",149,"P","1950-01-01","9999-12-31",1120]
[null,null,null,192,1921310001,"192-116HumanSvs0001","Ctl Fleet-Veterans Services-HumanSvs","County Exec TNR",149,"P","1950-01-01","9999-12-31",1530]
[null,null,null,192,1921320001,"192-117Cul&Edu0001","Ctl Fleet-Historical Comm-Cul&Edu","County Exec TNR",149,"P","1950-01-01","9999-12-31",1650]
[null,null,null,192,1921330001,"192-118HumanSvs0001","Ctl Fleet-Agr Ext Serv-HumanSvs","County Exec TNR",149,"P","1950-01-01","9999-12-31",1530]
[null,null,null,192,1921340001,"192-119CivJs0001","Ctl Fleet-County Attorney-CivJs","County Exec TNR",149,"P","1950-01-01","9999-12-31",1220]
[null,null,null,192,1921350001,"192-119CrmJs0001","Ctl Fleet-County Attorney-CrmJs","County Exec TNR",149,"P","1950-01-01","9999-12-31",1210]
[null,null,null,192,1921360001,"192-120GenAdm0001","Ctl Fleet-County Clerk-GenAdm","County Exec TNR",149,"P","1950-01-01","9999-12-31",1110]
[null,null,null,192,1921370001,"192-120ElnAdm0001","Ctl Fleet-County Clerk-ElnAdm","County Exec TNR",149,"P","1950-01-01","9999-12-31",1150]
[null,null,null,192,1921380001,"192-120CivJs0001","Ctl Fleet-County Clerk-CivJs","County Exec TNR",149,"P","1950-01-01","9999-12-31",1220]
[null,null,null,192,1921390001,"192-120CrmJs0001","Ctl Fleet-County Clerk-CrmJs","County Exec TNR",149,"P","1950-01-01","9999-12-31",1210]
[null,null,null,192,1921400001,"192-121CivJs0001","Ctl Fleet-District Clerk-CivJs","County Exec TNR",149,"P","1950-01-01","9999-12-31",1220]
[null,null,null,192,1921410001,"192-121CrmJs0001","Ctl Fleet-District Clerk-CrmJs","County Exec TNR",149,"P","1950-01-01","9999-12-31",1210]
[null,null,null,192,1921420001,"192-122CivJs0001","Ctl Fleet-Civil Courts-CivJs","County Exec TNR",149,"P","1950-01-01","9999-12-31",1220]
[null,null,null,192,1921430001,"192-123CrmJs0001","Ctl Fleet-District Attorney-CrmJs","County Exec TNR",149,"P","1950-01-01","9999-12-31",1210]
[null,null,null,192,1921440001,"192-123CivJs0001","Ctl Fleet-District Attorney-CivJs","County Exec TNR",149,"P","1950-01-01","9999-12-31",1220]
[null,null,null,192,1921450001,"192-124CrmJs0001","Ctl Fleet-Criminal Courts-CrmJs","County Exec TNR",149,"P","1950-01-01","9999-12-31",1210]
[null,null,null,192,1921460001,"192-125CivJs0001","Ctl Fleet-Probate Court-CivJs","County Exec TNR",149,"P","1950-01-01","9999-12-31",1220]
[null,null,null,192,1921470001,"192-126CivJs0001","Ctl Fleet-Justice Of Peace 1-CivJs","County Exec TNR",149,"P","1950-01-01","9999-12-31",1220]
[null,null,null,192,1921480001,"192-126CrmJs0001","Ctl Fleet-Justice Of Peace 1-CrmJs","County Exec TNR",149,"P","1950-01-01","9999-12-31",1210]
[null,null,null,192,1921490001,"192-127CivJs0001","Ctl Fleet-Justice Of Peace 2-CivJs","County Exec TNR",149,"P","1950-01-01","9999-12-31",1220]
[null,null,null,192,1921500001,"192-127CrmJs0001","Ctl Fleet-Justice Of Peace 2-CrmJs","County Exec TNR",149,"P","1950-01-01","9999-12-31",1210]
[null,null,null,192,1921510001,"192-128CivJs0001","Ctl Fleet-Justice Of Peace 3-CivJs","County Exec TNR",149,"P","1950-01-01","9999-12-31",1220]
[null,null,null,192,1921520001,"192-128CrmJs0001","Ctl Fleet-Justice Of Peace 3-CrmJs","County Exec TNR",149,"P","1950-01-01","9999-12-31",1210]
[null,null,null,192,1921530001,"192-129CivJs0001","Ctl Fleet-Justice Of Peace 4-CivJs","County Exec TNR",149,"P","1950-01-01","9999-12-31",1220]
[null,null,null,192,1921540001,"192-129CrmJs0001","Ctl Fleet-Justice Of Peace 4-CrmJs","County Exec TNR",149,"P","1950-01-01","9999-12-31",1210]
[null,null,null,192,1921550001,"192-130CivJs0001","Ctl Fleet-Justice Of Peace 5-CivJs","County Exec TNR",149,"P","1950-01-01","9999-12-31",1220]
[null,null,null,192,1921560001,"192-130CrmJs0001","Ctl Fleet-Justice Of Peace 5-CrmJs","County Exec TNR",149,"P","1950-01-01","9999-12-31",1210]
[null,null,null,192,1921570001,"192-131LE0001","Ctl Fleet-Constable 1-LE","County Exec TNR",149,"P","1950-01-01","9999-12-31",1310]
[null,null,null,192,1921580001,"192-132LE0001","Ctl Fleet-Constable 2-LE","County Exec TNR",149,"P","1950-01-01","9999-12-31",1310]
[null,null,null,192,1921590001,"192-133LE0001","Ctl Fleet-Constable 3-LE","County Exec TNR",149,"P","1950-01-01","9999-12-31",1310]
[null,null,null,192,1921600001,"192-134LE0001","Ctl Fleet-Constable 4-LE","County Exec TNR",149,"P","1950-01-01","9999-12-31",1310]
[null,null,null,192,1921610001,"192-135LE0001","Ctl Fleet-Constable 5-LE","County Exec TNR",149,"P","1950-01-01","9999-12-31",1310]
[null,null,null,192,1921620001,"192-136CivJs0001","Ctl Fleet-Dispute Resol Ctr-CivJs","County Exec TNR",149,"P","1950-01-01","9999-12-31",1220]
[null,null,null,192,1921630001,"192-137LE0001","Ctl Fleet-Sheriff-LE","County Exec TNR",149,"P","1950-01-01","9999-12-31",1310]
[null,null,null,192,1921640001,"192-137HsgBkg0001","Ctl Fleet-Sheriff-HsgBkg","County Exec TNR",149,"P","1950-01-01","9999-12-31",1410]
[null,null,null,192,1921650001,"192-138LE0001","Ctl Fleet-Medical Examiner-LE","County Exec TNR",149,"P","1950-01-01","9999-12-31",1310]
[null,null,null,192,1921660001,"192-139Svsn0001","Ctl Fleet-CSCD-Svsn","County Exec TNR",149,"P","1950-01-01","9999-12-31",1420]
[null,null,null,192,1921670001,"192-140Svsn0001","Ctl Fleet-TCCES-Svsn","County Exec TNR",149,"P","1950-01-01","9999-12-31",1420]
[null,null,null,192,1921680001,"192-142Svsn0001","Ctl Fleet-Pretrial Services-Svsn","County Exec TNR",149,"P","1950-01-01","9999-12-31",1420]
[null,null,null,192,1921690001,"192-142HsgBkg0001","Ctl Fleet-Pretrial Services-HsgBkg","County Exec TNR",149,"P","1950-01-01","9999-12-31",1410]
[null,null,null,192,1921700001,"192-143JuvSvs0001","Ctl Fleet-Juvenile Public Dfdr-JuvSvs","County Exec TNR",149,"P","1950-01-01","9999-12-31",1230]
[null,null,null,192,1921710001,"192-145JuvSvs0001","Ctl Fleet-Juvenile Probation-JuvSvs","County Exec TNR",149,"P","1950-01-01","9999-12-31",1230]
[null,null,null,192,1921720001,"192-147Hlhcare0001","Ctl Fleet-Emergency Services-Hlhcare","County Exec TNR",149,"P","1950-01-01","9999-12-31",1510]
[null,null,null,192,1921730001,"192-147EmrgMgmt0001","Ctl Fleet-Emergency Services-EmrgMgmt","County Exec TNR",149,"P","1950-01-01","9999-12-31",1320]
[null,null,null,192,1921740001,"192-149RdBg0001","Ctl Fleet-TNR-RdBg","County Exec TNR",149,"P","1950-01-01","9999-12-31",1710]
[null,null,null,192,1921750001,"192-149Parks&Rec0001","Ctl Fleet-TNR-Parks&Rec","County Exec TNR",149,"P","1950-01-01","9999-12-31",1630]
[null,null,null,192,1921760001,"192-149ConservNR0001","Ctl Fleet-TNR-ConservNR","County Exec TNR",149,"P","1950-01-01","9999-12-31",1750]
[null,null,null,192,1921770001,"192-149FacMgmt0001","Ctl Fleet-TNR-FacMgmt","County Exec TNR",149,"P","1950-01-01","9999-12-31",1140]
[null,null,null,192,1921780001,"192-149Drng0001","Ctl Fleet-TNR-Drng","County Exec TNR",149,"P","1950-01-01","9999-12-31",1730]
[null,null,null,192,1921790001,"192-149Sanitation000","Ctl Fleet-TNR-Sanitation","County Exec TNR",149,"P","1950-01-01","9999-12-31",1760]
[null,null,null,192,1921800001,"192-149DevRegIn0001","Ctl Fleet-TNR-DevRegIn","County Exec TNR",149,"P","1950-01-01","9999-12-31",1740]
[null,null,null,192,1921810001,"192-149HumanSvs0001","Ctl Fleet-TNR-HumanSvs","County Exec TNR",149,"P","1950-01-01","9999-12-31",1530]
[null,null,null,192,1921820001,"192-154GenAdm0001","Ctl Fleet-Civil Service Cmn-GenAdm","County Exec TNR",149,"P","1950-01-01","9999-12-31",1110]
[null,null,null,192,1921830001,"192-155CrmJs0001","Ctl Fleet-CJP-CrmJs","County Exec TNR",149,"P","1950-01-01","9999-12-31",1210]
[null,null,null,192,1921840001,"192-155Hlhcare0001","Ctl Fleet-CJP-Hlhcare","County Exec TNR",149,"P","1950-01-01","9999-12-31",1510]
[null,null,null,192,1921850001,"192-155EmrgMgmt0001","Ctl Fleet-CJP-EmrgMgmt","County Exec TNR",149,"P","1950-01-01","9999-12-31",1320]
[null,null,null,192,1921860001,"192-155Svsn0001","Ctl Fleet-CJP-Svsn","County Exec TNR",149,"P","1950-01-01","9999-12-31",1420]
[null,null,null,192,1921870001,"192-155JuvSvs0001","Ctl Fleet-CJP-JuvSvs","County Exec TNR",149,"P","1950-01-01","9999-12-31",1230]
[null,null,null,192,1921880001,"192-155LE0001","Ctl Fleet-CJP-LE","County Exec TNR",149,"P","1950-01-01","9999-12-31",1310]
[null,null,null,192,1921890001,"192-157GenAdm0001","Ctl Fleet-CRS-GenAdm","County Exec TNR",149,"P","1950-01-01","9999-12-31",1110]
[null,null,null,192,1921900001,"192-157CivJs0001","Ctl Fleet-CRS-CivJs","County Exec TNR",149,"P","1950-01-01","9999-12-31",1220]
[null,null,null,192,1921910001,"192-157CrmJs0001","Ctl Fleet-CRS-CrmJs","County Exec TNR",149,"P","1950-01-01","9999-12-31",1210]
[null,null,null,192,1921920001,"192-158Hlhcare0001","Ctl Fleet-HHS-Hlhcare","County Exec TNR",149,"P","1950-01-01","9999-12-31",1510]
[null,null,null,192,1921930001,"192-158PbcHlh0001","Ctl Fleet-HHS-PbcHlh","County Exec TNR",149,"P","1950-01-01","9999-12-31",1520]
[null,null,null,192,1921940001,"192-158HumanSvs0001","Ctl Fleet-HHS-HumanSvs","County Exec TNR",149,"P","1950-01-01","9999-12-31",1530]
[null,null,null,192,1921950001,"192-158JuvSvs0001","Ctl Fleet-HHS-JuvSvs","County Exec TNR",149,"P","1950-01-01","9999-12-31",1230]
[null,null,null,192,1921960001,"192-159Hlhcare0001","Ctl Fleet-EMS-Hlhcare","County Exec TNR",149,"P","1950-01-01","9999-12-31",1510]
[null,null,null,192,1921970001,"192-193CivJs0001","Ctl Fleet-Legally Mtd Fees-CivJs","County Exec TNR",149,"P","1950-01-01","9999-12-31",1220]
[null,null,null,192,1921980001,"192-194CrmJs0001","Ctl Fleet-Legally Mtd Fees-CrmJs","County Exec TNR",149,"P","1950-01-01","9999-12-31",1210]
[null,null,null,192,1921990001,"192-149Parks&Rec0001","Ctl Fleet-TNR-Parks&Rec","County Exec TNR",149,"P","1950-01-01","9999-12-31",1110]
[null,null,null,192,1922000001,"192-114FacMgmt0001","Ctl Fleet-Facilities Mgmt-FacMgmt","County Exec TNR",149,"P","1950-01-01","9999-12-31",1110]
[null,null,null,193,1930010001,"193CCCoLMF0001","Civil Courts-Co-LMF-GF","Co Crt At Law Judge",122,"I","1950-01-01","9999-12-31",1220]
[null,null,null,193,1930020001,"193CC1LMF0001","Civil Courts Civil Co Ct at Law 1-LMF-GF","Co Crt At Law Judge",122,"I","1950-01-01","9999-12-31",1220]
[null,null,null,193,1930030001,"193CC2LMF0001","Civil Courts Civil Co Ct at Law 2-LMF-GF","Co Crt At Law Judge",122,"I","1950-01-01","9999-12-31",1220]
[null,null,null,193,1930040001,"193CCAppLMF0001","Civil Courts-App-LMF-GF","District Judge",122,"I","1950-01-01","9999-12-31",1220]
[null,null,null,193,1930050001,"193CC3CLMF0001","Civil Courts-3rdCt-LMF-GF","District Judge",122,"I","1950-01-01","9999-12-31",1220]
[null,null,null,193,1930060001,"193CCDisLMF0001","Civil Courts-District-LMF-GF","District Judge",122,"I","1950-01-01","9999-12-31",1220]
[null,null,null,193,1930070001,"193126DCLMF0001","Civil Courts 126th District Court-LMF-GF","District Judge",122,"I","1950-01-01","9999-12-31",1220]
[null,null,null,193,1930080001,"193200DCLMF0001","Civil Courts 200th District Court-LMF-GF","District Judge",122,"I","1950-01-01","9999-12-31",1220]
[null,null,null,193,1930090001,"193201DCLMF0001","Civil Courts 201st District Court-LMF-GF","District Judge",122,"I","1950-01-01","9999-12-31",1220]
[null,null,null,193,1930100001,"193250DCLMF0001","Civil Courts 250th District Court-LMF-GF","District Judge",122,"I","1950-01-01","9999-12-31",1220]
[null,null,null,193,1930110001,"193261DCLMF0001","Civil Courts 261st District Court-LMF-GF","District Judge",122,"I","1950-01-01","9999-12-31",1220]
[null,null,null,193,1930120001,"193345DCLMF0001","Civil Courts 345th District Court-LMF-GF","District Judge",122,"I","1950-01-01","9999-12-31",1220]
[null,null,null,193,1930130001,"193353DCLMF0001","Civil Courts 353rd District Court-LMF-GF","District Judge",122,"I","1950-01-01","9999-12-31",1220]
[null,null,null,193,1930140001,"193419DCLMF0001","Civil Courts 419th District Court-LMF-GF","District Judge",122,"I","1950-01-01","9999-12-31",1220]
[null,null,null,193,1930150001,"193053DCLMF0001","Civil Courts 53rd District Court-LMF-GF","District Judge",122,"I","1950-01-01","9999-12-31",1220]
[null,null,null,193,1930160001,"193098DCLMF0001","Civil Courts 98th District Court-LMF-GF","District Judge",122,"I","1950-01-01","9999-12-31",1220]
[null,null,null,193,1930170001,"193AsscJudge1LMF0001","Civil Courts Assoc Judge 1-LMF-GF","District Judge",122,"I","1950-01-01","9999-12-31",1220]
[null,null,null,193,1930180001,"193AsscJudge2LMF0001","Civil Courts Assoc Judge 2-LMF-GF","District Judge",122,"I","1950-01-01","9999-12-31",1220]
[null,null,null,193,1930190001,"193AsscJudge3LMF0001","Civil Courts Assoc Judge 3-LMF-GF","District Judge",122,"I","1950-01-01","9999-12-31",1220]
[null,null,null,193,1930200001,"193GenUnAllLMF0001","Civil Courts General Unallocated-LMF-GF","District Judge",122,"I","1950-01-01","9999-12-31",1220]
[null,null,null,193,1930210001,"193AsscJudge1LMF0001","Civil Courts Assoc Judge 1-LMF-GF","District Judge",122,"I","2014-10-01","9999-12-31",1220]
[null,null,null,193,1930220001,"193459DCLMF0001","Civil Courts 459th District Court-LMF-GF","District Judge",122,"I","1950-01-01","9999-12-31",1220]
[null,null,null,193,1930230001,"193455DCLLMF0001","Civil Courts 455th District Court-LMF-GF","District Judge",122,"I","1950-01-01","9999-12-31",1220]
[null,null,null,194,1940010001,"194CCCoLMF0001","Criminal Courts County LMF-GF","Co Crt At Law Judge",124,"I","1950-01-01","9999-12-31",1210]
[null,null,null,194,1940030001,"194CCCoLMFCt30001","Criminal Courts LMF-County Court 3-GF","Co Crt At Law Judge",124,"I","1950-01-01","9999-12-31",1210]
[null,null,null,194,1940040001,"194CCCoLMFCt40001","Criminal Courts LMF-County Court 4-GF","Co Crt At Law Judge",124,"I","1950-01-01","9999-12-31",1210]
[null,null,null,194,1940050001,"194CCCoLMFCt50001","Criminal Courts LMF-County Court 5-GF","Co Crt At Law Judge",124,"I","1950-01-01","9999-12-31",1210]
[null,null,null,194,1940060001,"194CCCoLMFCt60001","Criminal Courts LMF-County Court 6-GF","Co Crt At Law Judge",124,"I","1950-01-01","9999-12-31",1210]
[null,null,null,194,1940070001,"194CCCoLMFCt70001","Criminal Courts LMF-County Court 7-GF","Co Crt At Law Judge",124,"I","1950-01-01","9999-12-31",1210]
[null,null,null,194,1940080001,"194CCCoLMFCt80001","Criminal Courts LMF-County Court 8-GF","Co Crt At Law Judge",124,"I","1950-01-01","9999-12-31",1210]
[null,null,null,194,1940090001,"194CCCoLMFCt90001","Criminal Courts LMF-County Court 9-GF","Co Crt At Law Judge",124,"I","1950-01-01","9999-12-31",1210]
[null,null,null,194,1940500001,"194CCCoLMFDWICt0001","Criminal Courts LMF-DWI Court-GF","Co Crt At Law Judge",124,"I","1950-01-01","9999-12-31",1210]
[null,null,null,194,1940510001,"194CCCoLMFVetCt0001","Criminal Courts LMF-Veterans Court-GF","Co Crt At Law Judge",124,"I","1950-01-01","9999-12-31",1210]
[null,null,null,194,1940520001,"194CCCoPJENGLMF0001","Criminal Courts County LMF-Prj Engage-GF","Co Crt At Law Judge",124,"I","1950-01-01","9999-12-31",1210]
[null,null,null,194,1941010001,"194CCDCtLMF0001","Criminal Courts District LMF-GF","District Judge",124,"I","1950-01-01","9999-12-31",1210]
[null,null,null,194,1941470001,"194CCDCtLMF1470001","Criminal Courts District LMF-147thDCt-GF","District Judge",124,"I","1950-01-01","9999-12-31",1210]
[null,null,null,194,1941670001,"194CCDCtLMF1670001","Criminal Courts District LMF-167thDCt-GF","District Judge",124,"I","1950-01-01","9999-12-31",1210]
[null,null,null,194,1942990001,"194CCDCtLMF2990001","Criminal Courts District LMF-299thDCt-GF","District Judge",124,"I","1950-01-01","9999-12-31",1210]
[null,null,null,194,1943310001,"194CCDCtLMF3310001","Criminal Courts District LMF-331stDCt-GF","District Judge",124,"I","1950-01-01","9999-12-31",1210]
[null,null,null,194,1943900001,"194CCDCtLMF3900001","Criminal Courts District LMF-390thDCt-GF","District Judge",124,"I","1950-01-01","9999-12-31",1210]
[null,null,null,194,1944030001,"194CCDCtLMF4030001","Criminal Courts District LMF-403rdDCt-GF","District Judge",124,"I","1950-01-01","9999-12-31",1210]
[null,null,null,194,1944270001,"194CCDCtLMF4270001","Criminal Courts District LMF-427thDCt-GF","District Judge",124,"I","1950-01-01","9999-12-31",1210]
[null,null,null,194,1944280001,"194CCLMFMagCt0001","Criminal Courts LMF-Magistrate Ct-GF","District Judge",124,"I","1950-01-01","9999-12-31",1210]
[null,null,null,194,1944290001,"194CCLMFDrugCt0001","Criminal Courts LMF-Drug Ct-GF","Co Crt At Law Judge",124,"I","1950-01-01","9999-12-31",1210]
[null,null,null,194,1944300001,"194CCLMFAttyPTNI0001","Criminal Cts LMF-Attorney ProTem-NonInd","Co Crt At Law Judge",124,"I","1950-01-01","9999-12-31",1210]
[null,null,null,194,1944310001,"194CCLMFCt4Fel0001","Criminal Courts LMF-County Crt 4-Felony","Co Crt At Law Judge",124,"I","1950-01-01","9999-12-31",1210]
[null,null,null,194,1944500001,"194CCLMF450thDC0001","Criminal Courts LMF-450th District Ct","Co Crt At Law Judge",124,"I","1950-01-01","9999-12-31",1210]
[null,null,null,194,1944600001,"194CCLMF460thDC0001","Criminal Courts District LMF-460DCt","Co Crt At Law Judge",124,"I","1950-01-01","9999-12-31",1210]
[null,null,null,195,1950010001,"195CenEmrgResp0001","Centralized Emergency Response GF","County Exec Emrg Svs",147,"P","1950-01-01","9999-12-31",1320]
[null,null,null,197,1970000000,"197CtlProjects0000","Centralized Projects","County Exec PBO",109,"P","1950-01-01","9999-12-31",1410]
[null,null,null,198,1980000000,"198Reserves0000","Reserves","County Exec PBO",109,"P","1950-01-01","9999-12-31",1120]

{"sheet":"Data dpt names","index":22,"n_rows":64,"n_cols":6,"rows_kept":64,"cut":false,"hidden":true,"merged":[]}
["DptNum","DptName","HTEDptNum","Budgeted","AlphaSort","FTEs"]
[101,"County Judge",1,true,"l",true]
[102,"County Commissioner - Precinct One",2,true,"k1",true]
[103,"County Commissioner - Precinct Two",3,true,"k2",true]
[104,"County Commissioner - Precinct Three",4,true,"k3",true]
[105,"County Commissioner - Precinct Four",5,true,"k4",true]
[106,"County Auditor",6,true,"i",true]
[107,"County Treasurer",7,true,"m",true]
[108,"Tax Assessor - Collector",8,true,"zn",true]
[109,"Planning and Budget ",9,true,"zg",true]
[110,"General Administration",10,true,"v",true]
[111,"Human Resources Management",11,true,"z",true]
[112,"Information Technology Services (ITS)",12,true,"za",true]
[114,"Facilities Management",14,true,"u",true]
[115,"Purchasing",15,true,"zk",true]
[116,"Veterans Services",116,true,"zq",true]
[117,"Historical Commission",17,true,"x",false]
[119,"County Attorney",19,true,"h",true]
[120,"County Clerk",20,true,"j",true]
[121,"District Clerk",21,true,"q",true]
[122,"Civil Courts",22,true,"a",true]
[123,"District Attorney",23,true,"p",true]
[124,"Criminal Courts",24,true,"n",true]
[125,"Probate Court",25,true,"zi",true]
[126,"Justice of the Peace - Precinct One",26,true,"zb1",true]
[127,"Justice of the Peace - Precinct Two",27,true,"zb2",true]
[128,"Justice of the Peace - Precinct Three",28,true,"zb3",true]
[129,"Justice of the Peace - Precinct Four",29,true,"zb4",true]
[130,"Justice of the Peace - Precinct Five",30,true,"zb5",true]
[131,"Constable - Precinct One",31,true,"f1",true]
[132,"Constable - Precinct Two",32,true,"f2",true]
[133,"Constable - Precinct Three",33,true,"f3",true]
[134,"Constable - Precinct Four",34,true,"f4",true]
[135,"Constable - Precinct Five",35,true,"f5",true]
[136,"Dispute Resolution Center",36,true,"o",false]
[137,"Sheriff",37,true,"zm",true]
[138,"Medical Examiner",38,true,"zf",true]
[139,"Community Supervision and Corrections",39,true,"e",true]
[140,"Counseling and Education Services",40,true,"g",true]
[141,"Community Legal Services",null,true,"ca",false]
[142,"Pretrial Services",42,true,"zh",true]
[143,"Juvenile Public Defender",43,true,"ze",true]
[144,"Public Defender's Office",44,true,"zj",false]
[145,"Juvenile Probation",45,true,"zd",true]
[147,"Emergency Services",47,true,"s",true]
[149,"Transportation and Natural Resources",49,true,"zp",true]
[154,"Civil Service Commission",54,true,"c",true]
[155,"Justice Planning",55,true,"zc",true]
[157,"Communications and Records Services",57,true,"d",true]
[158,"Health and Human Services",58,true,"w",true]
[159,"Emergency Medical Services",59,true,"r",true]
[160,"Security Committee",60,false,"zl",false]
[190,"Centralized Computer Services (ITS)",90,true,"za1",false]
[191,"Centralized Leases and Utilities (FM)",91,true,"u1",false]
[192,"Centralized Fleet Services (TNR)",92,true,"zp1",false]
[193,"Civil Courts Legally Mandated Fees",93,true,"a1",false]
[194,"Criminal Courts Legally Mandated Fees",94,true,"n1",false]
[195,"\nCentralized Emergency Response",null,true,"s1",false]
[197,"Centralized Projects (FM)",97,false,"",false]
[198,"Reserves",98,true,"zzzzz",true]
[813,"Exposition Center",13,false,"t",false]
[818,"Texas AgriLife Extension Service",18,false,"zo",false]
[889,"Hospitalization Contra",89,false,"y",false]
[899,"Various",0,false,"zzz",false]

{"sheet":"Data Lookups","index":23,"n_rows":66,"n_cols":6,"rows_kept":66,"cut":false,"hidden":true,"merged":[]}
["Budgeted Cost Center",null,"Department","Budget at Rollup","FC Rollup Present?","updated 1/31/2023"]
["Default OU",null,100,"",null,"pull from FC Master, remove duplicates"]
["AVC",null,101,"N"]
["Cost Dist",null,102,"N"]
["Override",null,103,"N"]
[null,null,104,"N"]
[null,null,105,"N"]
[null,null,106,"N"]
[null,null,107,"N"]
[null,null,108,"N"]
[null,null,109,"N"]
[null,null,110,"N"]
[null,null,111,"N"]
[null,null,112,"Y"]
[]
[null,null,114,"N"]
[null,null,115,"N"]
[null,null,116,"N"]
[null,null,117,"N"]
[null,null,119,"N"]
[null,null,120,"N"]
[null,null,121,"N"]
[null,null,122,"Y"]
[null,null,123,"N"]
[null,null,124,"Y"]
[null,null,125,"N"]
[null,null,126,"N"]
[null,null,127,"N"]
[null,null,128,"N"]
[null,null,129,"Y"]
[null,null,130,"N"]
[null,null,131,"N"]
[null,null,132,"N"]
[null,null,133,"N"]
[null,null,134,"N"]
[null,null,135,"N"]
[null,null,136,"N"]
[null,null,137,"Y"]
[null,null,138,"N"]
[null,null,139,"N"]
[null,null,140,"N"]
[null,null,142,"Y"]
[null,null,143,"N"]
[null,null,144,""]
[null,null,145,"N"]
[null,null,147,"N"]
[null,null,149,"N"]
[null,null,154,"N"]
[null,null,155,"N"]
[null,null,157,"N"]
[null,null,158,"N"]
[null,null,159,"N"]
[null,null,190,""]
[null,null,191,""]
[null,null,192,""]
[null,null,193,"Y"]
[null,null,194,"Y"]
[null,null,195,""]
[null,null,196,""]
[null,null,197,""]
[null,null,198,""]
[null,null,200,""]
[null,null,889,""]
[null,null,890,""]
[null,null,891,""]
[null,null,892,""]

{"sheet":"Data Pos to OU","index":24,"n_rows":1281,"n_cols":22,"rows_kept":1281,"cut":false,"hidden":true,"merged":[]}
["Dept","OU Name","OU","Master CC","AVC CC",null,"Removed OUs -->",null,"Dept","OU Name","Object ID","Master CC","AVC CC",null,"Dpt","Object name","Object ID","Object abbreviation","Master CC","Column1",null,"Pull from SAP Dept lookups, Ous tab manually (can setup linkage if you want)"]
[{"$f":"O2","v":101},{"$f":"P2","v":"101County Judge"},{"$f":"VALUE(Q2)","v":10050001},{"$f":"VALUE(S2)","v":1010010001},{"$f":"_xlfn.XLOOKUP(D2,FC_Master[Cost Center],FC_Master[rollup FC '#])","v":1010010001},null,"updated 2/5/24",null,"Tra","Travis County",10000000,{"$error":"#N/A"},{"$f":"IF(ISNA(VLOOKUP(VALUE(L2),#REF!,2,FALSE)),\"\",VLOOKUP(VALUE(L2),#REF!,2,FALSE))","v":""},null,101,"101County Judge",10050001,"101CoJudge",1010010001,null,null,"Filter on object ID for the OUS to remove"]
[{"$f":"O3","v":101},{"$f":"P3","v":"101 County Judge Administration"},{"$f":"VALUE(Q3)","v":10054701},{"$f":"VALUE(S3)","v":1010010001},{"$f":"_xlfn.XLOOKUP(D3,FC_Master[Cost Center],FC_Master[rollup FC '#])","v":1010010001},null,null,null,"Com","Commissioners Court",10000001,{"$error":"#N/A"},{"$f":"IF(ISNA(VLOOKUP(VALUE(L3),#REF!,2,FALSE)),\"\",VLOOKUP(VALUE(L3),#REF!,2,FALSE))","v":""},null,101,"101 County Judge Administration",10054701,"101CoAdm",1010010001,null,null,"delete, sort by master CC"]
[102,"102County Commissioner 1",10000003,1020010001,{"$f":"_xlfn.XLOOKUP(D4,FC_Master[Cost Center],FC_Master[rollup FC '#])","v":1020010001},null,null,null,"Adm","Adm Operations County Executive",10000067,{"$error":"#N/A"},{"$f":"IF(ISNA(VLOOKUP(VALUE(L4),#REF!,2,FALSE)),\"\",VLOOKUP(VALUE(L4),#REF!,2,FALSE))","v":""},null,102,"102County Commissioner 1",10000003,"102CC1",1020010001,null,null,"Ensure that columns A-E have formulas all the way down"]
[103,"103County Commissioner 2",10000004,1030010001,{"$f":"_xlfn.XLOOKUP(D5,FC_Master[Cost Center],FC_Master[rollup FC '#])","v":1030010001},null,null,null,"109","109Planning and Budget Office",10050077,{"$error":"#N/A"},{"$f":"IF(ISNA(VLOOKUP(VALUE(L5),#REF!,2,FALSE)),\"\",VLOOKUP(VALUE(L5),#REF!,2,FALSE))","v":""},null,103,"103County Commissioner 2",10000004,"103CC2",1030010001]
[103,"103County Commissioner 2 Administration",10000005,1030010001,{"$f":"_xlfn.XLOOKUP(D6,FC_Master[Cost Center],FC_Master[rollup FC '#])","v":1030010001},null,null,null,"110","110General Administration",10050601,{"$error":"#N/A"},{"$f":"IF(ISNA(VLOOKUP(VALUE(L6),#REF!,2,FALSE)),\"\",VLOOKUP(VALUE(L6),#REF!,2,FALSE))","v":""},null,103,"103County Commissioner 2 Administration",10000005,"103CC2Adm",1030010001]
[104,"104County Commissioner 3",10000006,1040010001,{"$f":"_xlfn.XLOOKUP(D7,FC_Master[Cost Center],FC_Master[rollup FC '#])","v":1040010001},null,null,null,"115","115Local Purchasing Organization",10000112,{"$error":"#N/A"},{"$f":"IF(ISNA(VLOOKUP(VALUE(L7),#REF!,2,FALSE)),\"\",VLOOKUP(VALUE(L7),#REF!,2,FALSE))","v":""},null,104,"104County Commissioner 3",10000006,"104CC3",1040010001]
[104,"104County Commissioner 3 Administration",10000007,1040010001,{"$f":"_xlfn.XLOOKUP(D8,FC_Master[Cost Center],FC_Master[rollup FC '#])","v":1040010001},null,null,null,"117","117Historical Commission",10050127,{"$error":"#N/A"},{"$f":"IF(ISNA(VLOOKUP(VALUE(L8),#REF!,2,FALSE)),\"\",VLOOKUP(VALUE(L8),#REF!,2,FALSE))","v":""},null,104,"104County Commissioner 3 Administration",10000007,"104CC3Adm",1040010001]
[105,"105County Commissioner 4",10000008,1050010001,{"$f":"_xlfn.XLOOKUP(D9,FC_Master[Cost Center],FC_Master[rollup FC '#])","v":1050010001},null,null,null,"122","122Civil Courts Technology Team",10000787,1220190001,{"$f":"IF(ISNA(VLOOKUP(VALUE(L9),#REF!,2,FALSE)),\"\",VLOOKUP(VALUE(L9),#REF!,2,FALSE))","v":{"$error":"#REF!"}},null,105,"105County Commissioner 4",10000008,"1055CC4",1050010001]
[105,"105County Commissioner 4 Administration",10000009,1050010001,{"$f":"_xlfn.XLOOKUP(D10,FC_Master[Cost Center],FC_Master[rollup FC '#])","v":1050010001},null,null,null,"124","124Crm Courts",10000723,1240010001,{"$f":"IF(ISNA(VLOOKUP(VALUE(L10),#REF!,2,FALSE)),\"\",VLOOKUP(VALUE(L10),#REF!,2,FALSE))","v":{"$error":"#REF!"}},null,105,"105County Commissioner 4 Administration",10000009,"105CC4Adm",1050010001]
[106,"106Aud County Auditor",10000010,1060010001,{"$f":"_xlfn.XLOOKUP(D11,FC_Master[Cost Center],FC_Master[rollup FC '#])","v":1060010001},null,null,null,"125","125Probate Court Accounting",10000268,1250010001,{"$f":"IF(ISNA(VLOOKUP(VALUE(L11),#REF!,2,FALSE)),\"\",VLOOKUP(VALUE(L11),#REF!,2,FALSE))","v":{"$error":"#REF!"}},null,106,"106Aud County Auditor",10000010,"106CoAud",1060010001]
[106,"106Aud First Assistant County Auditor",10000011,1060010001,{"$f":"_xlfn.XLOOKUP(D12,FC_Master[Cost Center],FC_Master[rollup FC '#])","v":1060010001},null,null,null,"125","125Probate Court Guardianship",10000269,1250030124,{"$f":"IF(ISNA(VLOOKUP(VALUE(L12),#REF!,2,FALSE)),\"\",VLOOKUP(VALUE(L12),#REF!,2,FALSE))","v":{"$error":"#REF!"}},null,106,"106Aud First Assistant County Auditor",10000011,"106FirstAud",1060010001]
[106,"106Aud Administration",10000015,1060010001,{"$f":"_xlfn.XLOOKUP(D13,FC_Master[Cost Center],FC_Master[rollup FC '#])","v":1060010001},null,null,null,"136","136Dispute Resolution Center",10050126,{"$error":"#N/A"},{"$f":"IF(ISNA(VLOOKUP(VALUE(L13),#REF!,2,FALSE)),\"\",VLOOKUP(VALUE(L13),#REF!,2,FALSE))","v":""},null,106,"106Aud Administration",10000015,"106Adm",1060010001]
[106,"106AUD AP, Grants & Fin Support",10000017,1060010001,{"$f":"_xlfn.XLOOKUP(D14,FC_Master[Cost Center],FC_Master[rollup FC '#])","v":1060010001},null,null,null,"147","147ES",10050003,{"$error":"#N/A"},{"$f":"IF(ISNA(VLOOKUP(VALUE(L14),#REF!,2,FALSE)),\"\",VLOOKUP(VALUE(L14),#REF!,2,FALSE))","v":""},null,106,"106AUD AP, Grants & Fin Support",10000017,"106APGrntFin",1060010001]
[106,"106Aud Payroll and Benefits Auditing",10000018,1060010001,{"$f":"_xlfn.XLOOKUP(D15,FC_Master[Cost Center],FC_Master[rollup FC '#])","v":1060010001},null,null,null,"155","155Criminal Justice Planning",10000724,{"$error":"#N/A"},{"$f":"IF(ISNA(VLOOKUP(VALUE(L15),#REF!,2,FALSE)),\"\",VLOOKUP(VALUE(L15),#REF!,2,FALSE))","v":""},null,106,"106Aud Payroll and Benefits Auditing",10000018,"106Payroll",1060010001]
[106,"106AUD Financial Reporting",10000019,1060010001,{"$f":"_xlfn.XLOOKUP(D16,FC_Master[Cost Center],FC_Master[rollup FC '#])","v":1060010001},null,null,null,"159","159Emergency Management",10000710,{"$error":"#N/A"},{"$f":"IF(ISNA(VLOOKUP(VALUE(L16),#REF!,2,FALSE)),\"\",VLOOKUP(VALUE(L16),#REF!,2,FALSE))","v":""},null,106,"106AUD Financial Reporting",10000019,"106FinRptg",1060010001]
[106,"106Aud Grants Auditing and Fin Rptg",10000020,1060010001,{"$f":"_xlfn.XLOOKUP(D17,FC_Master[Cost Center],FC_Master[rollup FC '#])","v":1060010001},null,null,null,null,null,null,null,null,null,106,"106Aud Grants Auditing and Fin Rptg",10000020,"106GrantsAud",1060010001]
[106,"106AUD Risk Evaluation & Consulting",10000021,1060010001,{"$f":"_xlfn.XLOOKUP(D18,FC_Master[Cost Center],FC_Master[rollup FC '#])","v":1060010001},null,null,null,null,null,null,null,null,null,106,"106AUD Risk Evaluation & Consulting",10000021,"106RskEval",1060010001]
[106,"106AUD Rev Estimation & Fin Analysis",10000022,1060010001,{"$f":"_xlfn.XLOOKUP(D19,FC_Master[Cost Center],FC_Master[rollup FC '#])","v":1060010001},null,null,null,null,null,null,null,null,null,106,"106AUD Rev Estimation & Fin Analysis",10000022,"106RevFin",1060010001]
[106,"106Aud Financial Sys Maintenance & Sp",10000023,1060010001,{"$f":"_xlfn.XLOOKUP(D20,FC_Master[Cost Center],FC_Master[rollup FC '#])","v":1060010001},null,null,null,null,null,null,null,null,null,106,"106Aud Financial Sys Maintenance & Sp",10000023,"106FinSysMnt",1060010001]
[106,"106Aud Procure Fin Sy Integration & Rptg",10050477,1060010001,{"$f":"_xlfn.XLOOKUP(D21,FC_Master[Cost Center],FC_Master[rollup FC '#])","v":1060010001},null,null,null,null,null,null,null,null,null,106,"106Aud Procure Fin Sy Integration & Rptg",10050477,"106Procure",1060010001]
[106,"106AUD Operations/Systems Compliance",10050626,1060010001,{"$f":"_xlfn.XLOOKUP(D22,FC_Master[Cost Center],FC_Master[rollup FC '#])","v":1060010001},null,null,null,null,null,null,null,null,null,106,"106AUD Operations/Systems Compliance",10050626,"106OpsSysCm",1060010001]
[106,"106AUD Technical Support",10050676,1060010001,{"$f":"_xlfn.XLOOKUP(D23,FC_Master[Cost Center],FC_Master[rollup FC '#])","v":1060010001},null,null,null,null,null,null,null,null,null,106,"106AUD Technical Support",10050676,"106TchSp",1060010001]
[106,"106AUD Business Support",10050677,1060010001,{"$f":"_xlfn.XLOOKUP(D24,FC_Master[Cost Center],FC_Master[rollup FC '#])","v":1060010001},null,null,null,null,null,null,null,null,null,106,"106AUD Business Support",10050677,"106BusSp",1060010001]
[106,"106AUD Disbursements Auditing",10050926,1060010001,{"$f":"_xlfn.XLOOKUP(D25,FC_Master[Cost Center],FC_Master[rollup FC '#])","v":1060010001},null,null,null,null,null,null,null,null,null,106,"106AUD Disbursements Auditing",10050926,"106Dsbrsmt",1060010001]
[106,"106AUD Executive Asst",10052151,1060010001,{"$f":"_xlfn.XLOOKUP(D26,FC_Master[Cost Center],FC_Master[rollup FC '#])","v":1060010001},null,null,null,null,null,null,null,null,null,106,"106AUD Executive Asst",10052151,"106ExcAsst",1060010001]
[106,"106Aud General Ledger",10052826,1060010001,{"$f":"_xlfn.XLOOKUP(D27,FC_Master[Cost Center],FC_Master[rollup FC '#])","v":1060010001},null,null,null,null,null,null,null,null,null,106,"106Aud General Ledger",10052826,"106GenLedger",1060010001]
[106,"106AUD Financial Accounting",10054077,1060010001,{"$f":"_xlfn.XLOOKUP(D28,FC_Master[Cost Center],FC_Master[rollup FC '#])","v":1060010001},null,null,null,null,null,null,null,null,null,106,"106AUD Financial Accounting",10054077,"106FinActg",1060010001]
[106,"106Aud Policy Compliance",10056252,1060010001,{"$f":"_xlfn.XLOOKUP(D29,FC_Master[Cost Center],FC_Master[rollup FC '#])","v":1060010001},null,null,null,null,null,null,null,null,null,106,"106Aud Policy Compliance",10056252,"106PlcyCm",1060010001]
[107,"107Treasurer",10000025,1070010001,{"$f":"_xlfn.XLOOKUP(D30,FC_Master[Cost Center],FC_Master[rollup FC '#])","v":1070010001},null,null,null,null,null,null,null,null,null,107,"107Treasurer",10000025,"107Treasurer",1070010001]
[107,"107Treasurer Administration",10000026,1070010001,{"$f":"_xlfn.XLOOKUP(D31,FC_Master[Cost Center],FC_Master[rollup FC '#])","v":1070010001},null,null,null,null,null,null,null,null,null,107,"107Treasurer Administration",10000026,"107TrsrAdm",1070010001]
[108,"108Tax Assessor Collector",10000027,1080010001,{"$f":"_xlfn.XLOOKUP(D32,FC_Master[Cost Center],FC_Master[rollup FC '#])","v":1080010001},null,null,null,null,null,null,null,null,null,108,"108Tax Assessor Collector",10000027,"108TaxAssr",1080010001]
[108,"108 Tax Operations Mgmt",10000028,1080010001,{"$f":"_xlfn.XLOOKUP(D33,FC_Master[Cost Center],FC_Master[rollup FC '#])","v":1080010001},null,null,null,null,null,null,null,null,null,108,"108 Tax Operations Mgmt",10000028,"108TxOpsMgmt",1080010001]
[108,"108Tax Business Analysis",10000029,1080010001,{"$f":"_xlfn.XLOOKUP(D34,FC_Master[Cost Center],FC_Master[rollup FC '#])","v":1080010001},null,null,null,null,null,null,null,null,null,108,"108Tax Business Analysis",10000029,"108TaxBA",1080010001]
[108,"108Tax Communications and Training Dir",10000030,1080010001,{"$f":"_xlfn.XLOOKUP(D35,FC_Master[Cost Center],FC_Master[rollup FC '#])","v":1080010001},null,null,null,null,null,null,null,null,null,108,"108Tax Communications and Training Dir",10000030,"108CommDir",1080010001]
[108,"108Tax Property Tax and Collections Dp",10000032,1080010001,{"$f":"_xlfn.XLOOKUP(D36,FC_Master[Cost Center],FC_Master[rollup FC '#])","v":1080010001},null,null,null,null,null,null,null,null,null,108,"108Tax Property Tax and Collections Dp",10000032,"108TaxClnDp",1080010001]
[108,"108Tax Motor Vehicle Deputy",10000038,1080010001,{"$f":"_xlfn.XLOOKUP(D37,FC_Master[Cost Center],FC_Master[rollup FC '#])","v":1080010001},null,null,null,null,null,null,null,null,null,108,"108Tax Motor Vehicle Deputy",10000038,"108MVDp",1080010001]
[108,"108Tax Manager B",10051377,1080010001,{"$f":"_xlfn.XLOOKUP(D38,FC_Master[Cost Center],FC_Master[rollup FC '#])","v":1080010001},null,null,null,null,null,null,null,null,null,108,"108Tax Manager B",10051377,"108TaxMgrB",1080010001]
[108,"108Tax Manager A",10053252,1080010001,{"$f":"_xlfn.XLOOKUP(D39,FC_Master[Cost Center],FC_Master[rollup FC '#])","v":1080010001},null,null,null,null,null,null,null,null,null,108,"108Tax Manager A",10053252,"108TaxMgrA",1080010001]
[108,"108Tax Manager C",10053253,1080010001,{"$f":"_xlfn.XLOOKUP(D40,FC_Master[Cost Center],FC_Master[rollup FC '#])","v":1080010001},null,null,null,null,null,null,null,null,null,108,"108Tax Manager C",10053253,"108TaxMgrC",1080010001]
[108,"108Tax Administrative Services",10054603,1080010001,{"$f":"_xlfn.XLOOKUP(D41,FC_Master[Cost Center],FC_Master[rollup FC '#])","v":1080010001},null,null,null,null,null,null,null,null,null,108,"108Tax Administrative Services",10054603,"108TxAdmSv",1080010001]
[108,"108 Tax Administrative Services-HR",10054651,1080010001,{"$f":"_xlfn.XLOOKUP(D42,FC_Master[Cost Center],FC_Master[rollup FC '#])","v":1080010001},null,null,null,null,null,null,null,null,null,108,"108 Tax Administrative Services-HR",10054651,"108TxAdmSvHR",1080010001]
[108,"108 Tax Administrative Services-HR A",10056606,1080010001,{"$f":"_xlfn.XLOOKUP(D43,FC_Master[Cost Center],FC_Master[rollup FC '#])","v":1080010001},null,null,null,null,null,null,null,null,null,108,"108 Tax Administrative Services-HR A",10056606,"108TxAdScHRA",1080010001]
[108,"108Tax Communications and Training",10000031,1080020001,{"$f":"_xlfn.XLOOKUP(D44,FC_Master[Cost Center],FC_Master[rollup FC '#])","v":1080020001},null,null,null,null,null,null,null,null,null,108,"108Tax Communications and Training",10000031,"108Comm",1080020001]
[108,"108Tax Communications and Training 2",10052326,1080020001,{"$f":"_xlfn.XLOOKUP(D45,FC_Master[Cost Center],FC_Master[rollup FC '#])","v":1080020001},null,null,null,null,null,null,null,null,null,108,"108Tax Communications and Training 2",10052326,"108Comm2",1080020001]
[108,"108Tax Communications and Training 3",10053401,1080020001,{"$f":"_xlfn.XLOOKUP(D46,FC_Master[Cost Center],FC_Master[rollup FC '#])","v":1080020001},null,null,null,null,null,null,null,null,null,108,"108Tax Communications and Training 3",10053401,"108Comm3",1080020001]
[108,"108Tax Communications and Training 3",10053401,1080020001,{"$f":"_xlfn.XLOOKUP(D47,FC_Master[Cost Center],FC_Master[rollup FC '#])","v":1080020001},null,null,null,null,null,null,null,null,null,108,"108Tax Communications and Training 3",10053401,"108Comm3",1080020001]
[108,"108Tax Property Tax A",10000033,1080030001,{"$f":"_xlfn.XLOOKUP(D48,FC_Master[Cost Center],FC_Master[rollup FC '#])","v":1080030001},null,null,null,null,null,null,null,null,null,108,"108Tax Property Tax A",10000033,"108PropTaxA",1080030001]
[108,"108Tax Property Tax A",10000033,1080030001,{"$f":"_xlfn.XLOOKUP(D49,FC_Master[Cost Center],FC_Master[rollup FC '#])","v":1080030001},null,null,null,null,null,null,null,null,null,108,"108Tax Property Tax A",10000033,"108PropTaxA",1080030001]
[108,"108Tax Property Tax B",10000034,1080030001,{"$f":"_xlfn.XLOOKUP(D50,FC_Master[Cost Center],FC_Master[rollup FC '#])","v":1080030001},null,null,null,null,null,null,null,null,null,108,"108Tax Property Tax B",10000034,"108PropTaxB",1080030001]
[108,"108Tax Property Tax B",10000034,1080030001,{"$f":"_xlfn.XLOOKUP(D51,FC_Master[Cost Center],FC_Master[rollup FC '#])","v":1080030001},null,null,null,null,null,null,null,null,null,108,"108Tax Property Tax B",10000034,"108PropTaxB",1080030001]
[108,"108Tax Collections",10000037,1080030001,{"$f":"_xlfn.XLOOKUP(D52,FC_Master[Cost Center],FC_Master[rollup FC '#])","v":1080030001},null,null,null,null,null,null,null,null,null,108,"108Tax Collections",10000037,"108Clns",1080030001]
[108,"108Tax Property Tax C",10050777,1080030001,{"$f":"_xlfn.XLOOKUP(D53,FC_Master[Cost Center],FC_Master[rollup FC '#])","v":1080030001},null,null,null,null,null,null,null,null,null,108,"108Tax Property Tax C",10050777,"108PropTaxC",1080030001]
[108,"108Tax Property Tax C",10050777,1080030001,{"$f":"_xlfn.XLOOKUP(D54,FC_Master[Cost Center],FC_Master[rollup FC '#])","v":1080030001},null,null,null,null,null,null,null,null,null,108,"108Tax Property Tax C",10050777,"108PropTaxC",1080030001]
[108,"108Tax Property Tax D",10050778,1080030001,{"$f":"_xlfn.XLOOKUP(D55,FC_Master[Cost Center],FC_Master[rollup FC '#])","v":1080030001},null,null,null,null,null,null,null,null,null,108,"108Tax Property Tax D",10050778,"108PropTaxD",1080030001]
[108,"108Tax Property Tax D",10050778,1080030001,{"$f":"_xlfn.XLOOKUP(D56,FC_Master[Cost Center],FC_Master[rollup FC '#])","v":1080030001},null,null,null,null,null,null,null,null,null,108,"108Tax Property Tax D",10050778,"108PropTaxD",1080030001]
[108,"108Tax Manager A",10051376,1080030001,{"$f":"_xlfn.XLOOKUP(D57,FC_Master[Cost Center],FC_Master[rollup FC '#])","v":1080030001},null,null,null,null,null,null,null,null,null,108,"108Tax Manager A",10051376,"108TaxMgrA",1080030001]
[108,"108Tax Manager B",10054301,1080030001,{"$f":"_xlfn.XLOOKUP(D58,FC_Master[Cost Center],FC_Master[rollup FC '#])","v":1080030001},null,null,null,null,null,null,null,null,null,108,"108Tax Manager B",10054301,"108TaxMgrB",1080030001]
[108,"108Tax Special Inventory Tax",10054976,1080030001,{"$f":"_xlfn.XLOOKUP(D59,FC_Master[Cost Center],FC_Master[rollup FC '#])","v":1080030001},null,null,null,null,null,null,null,null,null,108,"108Tax Special Inventory Tax",10054976,"108TaxSpInvt",1080030001]
[108,"108Tax Special Inventory Tax A",10055051,1080030001,{"$f":"_xlfn.XLOOKUP(D60,FC_Master[Cost Center],FC_Master[rollup FC '#])","v":1080030001},null,null,null,null,null,null,null,null,null,108,"108Tax Special Inventory Tax A",10055051,"108TxSpInvtA",1080030001]
[108,"108Tax Motor Vehicle A",10000039,1080070001,{"$f":"_xlfn.XLOOKUP(D61,FC_Master[Cost Center],FC_Master[rollup FC '#])","v":1080070001},null,null,null,null,null,null,null,null,null,108,"108Tax Motor Vehicle A",10000039,"108MVA",1080070001]
[108,"108Tax Motor Vehicle A",10000039,1080070001,{"$f":"_xlfn.XLOOKUP(D62,FC_Master[Cost Center],FC_Master[rollup FC '#])","v":1080070001},null,null,null,null,null,null,null,null,null,108,"108Tax Motor Vehicle A",10000039,"108MVA",1080070001]
[108,"108Tax Motor Vehicle B",10000040,1080070001,{"$f":"_xlfn.XLOOKUP(D63,FC_Master[Cost Center],FC_Master[rollup FC '#])","v":1080070001},null,null,null,null,null,null,null,null,null,108,"108Tax Motor Vehicle B",10000040,"108MVB",1080070001]
[108,"108Tax Motor Vehicle C",10000041,1080070001,{"$f":"_xlfn.XLOOKUP(D64,FC_Master[Cost Center],FC_Master[rollup FC '#])","v":1080070001},null,null,null,null,null,null,null,null,null,108,"108Tax Motor Vehicle C",10000041,"108MVC",1080070001]
[108,"108Tax Motor Vehicle C",10000041,1080070001,{"$f":"_xlfn.XLOOKUP(D65,FC_Master[Cost Center],FC_Master[rollup FC '#])","v":1080070001},null,null,null,null,null,null,null,null,null,108,"108Tax Motor Vehicle C",10000041,"108MVC",1080070001]
[108,"108Tax Motor Vehicle D",10000042,1080070001,{"$f":"_xlfn.XLOOKUP(D66,FC_Master[Cost Center],FC_Master[rollup FC '#])","v":1080070001},null,null,null,null,null,null,null,null,null,108,"108Tax Motor Vehicle D",10000042,"108MVD",1080070001]
[{"$f":"O67","v":108},{"$f":"P67","v":"108Tax Motor Vehicle D"},{"$f":"VALUE(Q67)","v":10000042},{"$f":"VALUE(S67)","v":1080070001},{"$f":"_xlfn.XLOOKUP(D67,FC_Master[Cost Center],FC_Master[rollup FC '#])","v":1080070001},null,null,null,null,null,null,null,null,null,108,"108Tax Motor Vehicle D",10000042,"108MVD",1080070001]
[108,"108Tax Motor Vehicle E",10000043,1080070001,{"$f":"_xlfn.XLOOKUP(D68,FC_Master[Cost Center],FC_Master[rollup FC '#])","v":1080070001},null,null,null,null,null,null,null,null,null,108,"108Tax Motor Vehicle E",10000043,"108MVE",1080070001]
[108,"108Tax Motor Vehicle E",10000043,1080070001,{"$f":"_xlfn.XLOOKUP(D69,FC_Master[Cost Center],FC_Master[rollup FC '#])","v":1080070001},null,null,null,null,null,null,null,null,null,108,"108Tax Motor Vehicle E",10000043,"108MVE",1080070001]
[108,"108Tax Motor Vehicle F",10050901,1080070001,{"$f":"_xlfn.XLOOKUP(D70,FC_Master[Cost Center],FC_Master[rollup FC '#])","v":1080070001},null,null,null,null,null,null,null,null,null,108,"108Tax Motor Vehicle F",10050901,"108MVF",1080070001]
[108,"108Tax Motor Vehicle G",10050902,1080070001,{"$f":"_xlfn.XLOOKUP(D71,FC_Master[Cost Center],FC_Master[rollup FC '#])","v":1080070001},null,null,null,null,null,null,null,null,null,108,"108Tax Motor Vehicle G",10050902,"108MVG",1080070001]
[108,"108Tax Motor Vehicle J",10053228,1080070001,{"$f":"_xlfn.XLOOKUP(D72,FC_Master[Cost Center],FC_Master[rollup FC '#])","v":1080070001},null,null,null,null,null,null,null,null,null,108,"108Tax Motor Vehicle J",10053228,"108MVJ",1080070001]
[108,"108Tax Motor Vehicle I",10053229,1080070001,{"$f":"_xlfn.XLOOKUP(D73,FC_Master[Cost Center],FC_Master[rollup FC '#])","v":1080070001},null,null,null,null,null,null,null,null,null,108,"108Tax Motor Vehicle I",10053229,"108MVI",1080070001]
[108,"108Tax Motor Vehicle H",10053230,1080070001,{"$f":"_xlfn.XLOOKUP(D74,FC_Master[Cost Center],FC_Master[rollup FC '#])","v":1080070001},null,null,null,null,null,null,null,null,null,108,"108Tax Motor Vehicle H",10053230,"108MVH",1080070001]
[108,"108Tax Motor Vehicle K",10053251,1080070001,{"$f":"_xlfn.XLOOKUP(D75,FC_Master[Cost Center],FC_Master[rollup FC '#])","v":1080070001},null,null,null,null,null,null,null,null,null,108,"108Tax Motor Vehicle K",10053251,"108MVK",1080070001]
[108,"108Tax Manager D",10054051,1080070001,{"$f":"_xlfn.XLOOKUP(D76,FC_Master[Cost Center],FC_Master[rollup FC '#])","v":1080070001},null,null,null,null,null,null,null,null,null,108,"108Tax Manager D",10054051,"108TaxMgrD",1080070001]
[108,"108Tax Motor Vehicle O",10055176,1080070001,{"$f":"_xlfn.XLOOKUP(D77,FC_Master[Cost Center],FC_Master[rollup FC '#])","v":1080070001},null,null,null,null,null,null,null,null,null,108,"108Tax Motor Vehicle O",10055176,"108MVO",1080070001]
[108,"108Tax Motor Vehicle Q",10055177,1080070001,{"$f":"_xlfn.XLOOKUP(D78,FC_Master[Cost Center],FC_Master[rollup FC '#])","v":1080070001},null,null,null,null,null,null,null,null,null,108,"108Tax Motor Vehicle Q",10055177,"108MVQ",1080070001]
[108,"108Tax Motor Vehicle M",10055178,1080070001,{"$f":"_xlfn.XLOOKUP(D79,FC_Master[Cost Center],FC_Master[rollup FC '#])","v":1080070001},null,null,null,null,null,null,null,null,null,108,"108Tax Motor Vehicle M",10055178,"108MVM",1080070001]
[108,"108Tax Motor Vehicle P",10055179,1080070001,{"$f":"_xlfn.XLOOKUP(D80,FC_Master[Cost Center],FC_Master[rollup FC '#])","v":1080070001},null,null,null,null,null,null,null,null,null,108,"108Tax Motor Vehicle P",10055179,"108MVP",1080070001]
[108,"108Tax Motor Vehicle L",10055180,1080070001,{"$f":"_xlfn.XLOOKUP(D81,FC_Master[Cost Center],FC_Master[rollup FC '#])","v":1080070001},null,null,null,null,null,null,null,null,null,108,"108Tax Motor Vehicle L",10055180,"108MVL",1080070001]
[108,"108Tax Motor Vehicle F",10055551,1080070001,{"$f":"_xlfn.XLOOKUP(D82,FC_Master[Cost Center],FC_Master[rollup FC '#])","v":1080070001},null,null,null,null,null,null,null,null,null,108,"108Tax Motor Vehicle F",10055551,"108TaxMVF",1080070001]
[108,"108Tax Voter Registration Director",10000044,1080080001,{"$f":"_xlfn.XLOOKUP(D83,FC_Master[Cost Center],FC_Master[rollup FC '#])","v":1080080001},null,null,null,null,null,null,null,null,null,108,"108Tax Voter Registration Director",10000044,"108VtrRg",1080080001]
[108,"108Tax Voter Registration-GIS",10000045,1080080001,{"$f":"_xlfn.XLOOKUP(D84,FC_Master[Cost Center],FC_Master[rollup FC '#])","v":1080080001},null,null,null,null,null,null,null,null,null,108,"108Tax Voter Registration-GIS",10000045,"108VtrRgGIS",1080080001]
[108,"108Tax Voter Registration-BusAnalysis",10000046,1080080001,{"$f":"_xlfn.XLOOKUP(D85,FC_Master[Cost Center],FC_Master[rollup FC '#])","v":1080080001},null,null,null,null,null,null,null,null,null,108,"108Tax Voter Registration-BusAnalysis",10000046,"108VtrRgBA",1080080001]
[108,"108Tax Voter Registration-Tax",10000047,1080080001,{"$f":"_xlfn.XLOOKUP(D86,FC_Master[Cost Center],FC_Master[rollup FC '#])","v":1080080001},null,null,null,null,null,null,null,null,null,108,"108Tax Voter Registration-Tax",10000047,"108VtrRgTax",1080080001]
[108,"108Tax Voter Registration-GIS B",10051776,1080080001,{"$f":"_xlfn.XLOOKUP(D87,FC_Master[Cost Center],FC_Master[rollup FC '#])","v":1080080001},null,null,null,null,null,null,null,null,null,108,"108Tax Voter Registration-GIS B",10051776,"108VtrRgGISB",1080080001]
[108,"108Tax Accounting Manager",10000048,1080090001,{"$f":"_xlfn.XLOOKUP(D88,FC_Master[Cost Center],FC_Master[rollup FC '#])","v":1080090001},null,null,null,null,null,null,null,null,null,108,"108Tax Accounting Manager",10000048,"108ActgMgr",1080090001]
[108,"108Tax Accounting A",10000049,1080090001,{"$f":"_xlfn.XLOOKUP(D89,FC_Master[Cost Center],FC_Master[rollup FC '#])","v":1080090001},null,null,null,null,null,null,null,null,null,108,"108Tax Accounting A",10000049,"108ActgA",1080090001]
[108,"108Tax Accounting B",10000050,1080090001,{"$f":"_xlfn.XLOOKUP(D90,FC_Master[Cost Center],FC_Master[rollup FC '#])","v":1080090001},null,null,null,null,null,null,null,null,null,108,"108Tax Accounting B",10000050,"108ActgB",1080090001]
[108,"108 Tax Accounting Lead",10050751,1080090001,{"$f":"_xlfn.XLOOKUP(D91,FC_Master[Cost Center],FC_Master[rollup FC '#])","v":1080090001},null,null,null,null,null,null,null,null,null,108,"108 Tax Accounting Lead",10050751,"108TxActgLd",1080090001]
[108,"108Tax IT",10051401,1080110001,{"$f":"_xlfn.XLOOKUP(D92,FC_Master[Cost Center],FC_Master[rollup FC '#])","v":1080110001},null,null,null,null,null,null,null,null,null,108,"108Tax IT",10051401,"108TaxIT",1080110001]
[108,"108Tax IT-GIS",10056654,1080110001,{"$f":"_xlfn.XLOOKUP(D93,FC_Master[Cost Center],FC_Master[rollup FC '#])","v":1080110001},null,null,null,null,null,null,null,null,null,108,"108Tax IT-GIS",10056654,"108TaxITGS",1080110001]
[108,"108Tax IT-GIS A",10056655,1080110001,{"$f":"_xlfn.XLOOKUP(D94,FC_Master[Cost Center],FC_Master[rollup FC '#])","v":1080110001},null,null,null,null,null,null,null,null,null,108,"108Tax IT-GIS A",10056655,"108TaxITGSA",1080110001]
[108,"108Tax Court Collections",10000035,1080120001,{"$f":"_xlfn.XLOOKUP(D95,FC_Master[Cost Center],FC_Master[rollup FC '#])","v":0},null,null,null,null,null,null,null,null,null,108,"108Tax Court Collections",10000035,"108CtCln",1080120001]
[108,"108Tax Court C",10000036,1080120001,{"$f":"_xlfn.XLOOKUP(D96,FC_Master[Cost Center],FC_Master[rollup FC '#])","v":0},null,null,null,null,null,null,null,null,null,108,"108Tax Court C",10000036,"108CtC",1080120001]
[108,"108Tax Court A",10053051,1080120001,{"$f":"_xlfn.XLOOKUP(D97,FC_Master[Cost Center],FC_Master[rollup FC '#])","v":0},null,null,null,null,null,null,null,null,null,108,"108Tax Court A",10053051,"108CtA",1080120001]
[108,"108Tax Court B",10053052,1080120001,{"$f":"_xlfn.XLOOKUP(D98,FC_Master[Cost Center],FC_Master[rollup FC '#])","v":0},null,null,null,null,null,null,null,null,null,108,"108Tax Court B",10053052,"108CtB",1080120001]
[109,"109PBO County Executive",10000051,1090010001,{"$f":"_xlfn.XLOOKUP(D99,FC_Master[Cost Center],FC_Master[rollup FC '#])","v":1090010001},null,null,null,null,null,null,null,null,null,109,"109PBO County Executive",10000051,"109PBOCE",1090010001]
[109,"109PBO Administration",10000054,1090010001,{"$f":"_xlfn.XLOOKUP(D100,FC_Master[Cost Center],FC_Master[rollup FC '#])","v":1090010001},null,null,null,null,null,null,null,null,null,109,"109PBO Administration",10000054,"109Adm",1090010001]
[109,"109PBO Planning",10000053,1090020001,{"$f":"_xlfn.XLOOKUP(D101,FC_Master[Cost Center],FC_Master[rollup FC '#])","v":1090020001},null,null,null,null,null,null,null,null,null,109,"109PBO Planning",10000053,"109Planning",1090020001]
[109,"109PBO Policy & Planning",10055276,1090020001,{"$f":"_xlfn.XLOOKUP(D102,FC_Master[Cost Center],FC_Master[rollup FC '#])","v":1090020001},null,null,null,null,null,null,null,null,null,109,"109PBO Policy & Planning",10055276,"109Plcy&Pln",1090020001]
[109,"109PBO Long Range Facilities Planning",10055278,1090020001,{"$f":"_xlfn.XLOOKUP(D103,FC_Master[Cost Center],FC_Master[rollup FC '#])","v":1090020001},null,null,null,null,null,null,null,null,null,109,"109PBO Long Range Facilities Planning",10055278,"109PBOLRFP",1090020001]
[109,"109PBO Budget",10000052,1090030001,{"$f":"_xlfn.XLOOKUP(D104,FC_Master[Cost Center],FC_Master[rollup FC '#])","v":1090030001},null,null,null,null,null,null,null,null,null,109,"109PBO Budget",10000052,"109Budget",1090030001]
[109,"109PBO Assist Bud Dir 1",10056202,1090030001,{"$f":"_xlfn.XLOOKUP(D105,FC_Master[Cost Center],FC_Master[rollup FC '#])","v":1090030001},null,null,null,null,null,null,null,null,null,109,"109PBO Assist Bud Dir 1",10056202,"109AsstBdg1",1090030001]
[109,"109PBO Assist Bud Dir 2",10056203,1090030001,{"$f":"_xlfn.XLOOKUP(D106,FC_Master[Cost Center],FC_Master[rollup FC '#])","v":1090030001},null,null,null,null,null,null,null,null,null,109,"109PBO Assist Bud Dir 2",10056203,"109AsstBdg2",1090030001]
[109,"109PBO Cash Investments",10000055,1090040001,{"$f":"_xlfn.XLOOKUP(D107,FC_Master[Cost Center],FC_Master[rollup FC '#])","v":1090040001},null,null,null,null,null,null,null,null,null,109,"109PBO Cash Investments",10000055,"109CashInvst",1090040001]
[109,"109PBO Corporations",10000056,1090050001,{"$f":"_xlfn.XLOOKUP(D108,FC_Master[Cost Center],FC_Master[rollup FC '#])","v":1090050001},null,null,null,null,null,null,null,null,null,109,"109PBO Corporations",10000056,"109Crp",1090050001]
[109,"109PBO Corporations Operations",10056678,1090050001,{"$f":"_xlfn.XLOOKUP(D109,FC_Master[Cost Center],FC_Master[rollup FC '#])","v":1090050001},null,null,null,null,null,null,null,null,null,109,"109PBO Corporations Operations",10056678,"109CRPOps",1090050001]
[109,"109PBO Econ Dev & Strategic Investments",10051801,1090080001,{"$f":"_xlfn.XLOOKUP(D110,FC_Master[Cost Center],FC_Master[rollup FC '#])","v":1090080001},null,null,null,null,null,null,null,null,null,109,"109PBO Econ Dev & Strategic Investments",10051801,"109ED&SI",1090080001]
[109,"109PBO Community Engagement",10055277,1090090001,{"$f":"_xlfn.XLOOKUP(D111,FC_Master[Cost Center],FC_Master[rollup FC '#])","v":1090090001},null,null,null,null,null,null,null,null,null,109,"109PBO Community Engagement",10055277,"109CmtyEngmt",1090090001]
[109,"109PBO Diversity Equity Inclusion",10056631,1090090001,{"$f":"_xlfn.XLOOKUP(D112,FC_Master[Cost Center],FC_Master[rollup FC '#])","v":1090090001},null,null,null,null,null,null,null,null,null,109,"109PBO Diversity Equity Inclusion",10056631,"109PBO DEI",1090090001]
[109,"109PBO Public Improvement District",10056827,1090100001,{"$f":"_xlfn.XLOOKUP(D113,FC_Master[Cost Center],FC_Master[rollup FC '#])","v":1090100001},null,null,null,null,null,null,null,null,null,109,"109PBO Public Improvement District",10056827,"109PbcImp",1090100001]
[110,"110General Administration",10052601,1100010000,{"$f":"_xlfn.XLOOKUP(D114,FC_Master[Cost Center],FC_Master[rollup FC '#])","v":1100010000},null,null,null,null,null,null,null,null,null,110,"110General Administration",10052601,"110GenAdm",1100010000]
[110,"110Intergovernmental",10000057,1100030001,{"$f":"_xlfn.XLOOKUP(D115,FC_Master[Cost Center],FC_Master[rollup FC '#])","v":1100030001},null,null,null,null,null,null,null,null,null,110,"110Intergovernmental",10000057,"110Intrgvmtl",1100030001]
[110,"110 Media",10000662,1100060001,{"$f":"_xlfn.XLOOKUP(D116,FC_Master[Cost Center],FC_Master[rollup FC '#])","v":1100060001},null,null,null,null,null,null,null,null,null,110,"110 Media",10000662,"110Media",1100060001]
[110,"110 Information Booth",10050701,1100060001,{"$f":"_xlfn.XLOOKUP(D117,FC_Master[Cost Center],FC_Master[rollup FC '#])","v":1100060001},null,null,null,null,null,null,null,null,null,110,"110 Information Booth",10050701,"110Info",1100060001]
[111,"111HR Management",10000058,1110010001,{"$f":"_xlfn.XLOOKUP(D118,FC_Master[Cost Center],FC_Master[rollup FC '#])","v":1110010001},null,null,null,null,null,null,null,null,null,111,"111HR Management",10000058,"111HRMgmt",1110010001]
[111,"111Administrative Services",10052426,1110010001,{"$f":"_xlfn.XLOOKUP(D119,FC_Master[Cost Center],FC_Master[rollup FC '#])","v":1110010001},null,null,null,null,null,null,null,null,null,111,"111Administrative Services",10052426,"111AdmSv",1110010001]
[111,"111 Total Rewards",10054901,1110010001,{"$f":"_xlfn.XLOOKUP(D120,FC_Master[Cost Center],FC_Master[rollup FC '#])","v":1110010001},null,null,null,null,null,null,null,null,null,111,"111 Total Rewards",10054901,"111TotRew",1110010001]
[111,"111 Talent Planning",10054902,1110010001,{"$f":"_xlfn.XLOOKUP(D121,FC_Master[Cost Center],FC_Master[rollup FC '#])","v":1110010001},null,null,null,null,null,null,null,null,null,111,"111 Talent Planning",10054902,"111TalPlan",1110010001]
[111,"111HR Compensation",10000061,1110020001,{"$f":"_xlfn.XLOOKUP(D122,FC_Master[Cost Center],FC_Master[rollup FC '#])","v":1110020001},null,null,null,null,null,null,null,null,null,111,"111HR Compensation",10000061,"111Comp",1110020001]
[111,"111Talent Services",10000060,1110030001,{"$f":"_xlfn.XLOOKUP(D123,FC_Master[Cost Center],FC_Master[rollup FC '#])","v":1110030001},null,null,null,null,null,null,null,null,null,111,"111Talent Services",10000060,"111TalentSv",1110030001]
[111,"111HR Settle",10050327,1110040001,{"$f":"_xlfn.XLOOKUP(D124,FC_Master[Cost Center],FC_Master[rollup FC '#])","v":1110040001},null,null,null,null,null,null,null,null,null,111,"111HR Settle",10050327,"111Settle",1110040001]
[111,"111HR Risk",10000066,1110048955,{"$f":"_xlfn.XLOOKUP(D125,FC_Master[Cost Center],FC_Master[rollup FC '#])","v":1110048955},null,null,null,null,null,null,null,null,null,111,"111HR Risk",10000066,"111HRRisk",1110048955]
[111,"111HR Risk Supervisor",10056126,1110048955,{"$f":"_xlfn.XLOOKUP(D126,FC_Master[Cost Center],FC_Master[rollup FC '#])","v":1110048955},null,null,null,null,null,null,null,null,null,111,"111HR Risk Supervisor",10056126,"111HRRskSupv",1110048955]
[111,"111HR Benefits Administration",10000063,1110068956,{"$f":"_xlfn.XLOOKUP(D127,FC_Master[Cost Center],FC_Master[rollup FC '#])","v":1110068956},null,null,null,null,null,null,null,null,null,111,"111HR Benefits Administration",10000063,"111BnfAdm",1110068956]
[111,"111HR Wellness Clinic Management",10000064,1110078956,{"$f":"_xlfn.XLOOKUP(D128,FC_Master[Cost Center],FC_Master[rollup FC '#])","v":1110078956},null,null,null,null,null,null,null,null,null,111,"111HR Wellness Clinic Management",10000064,"111WlsClnc",1110078956]
[111,"111HR Wellness Clinic Support Staff",10000065,1110078956,{"$f":"_xlfn.XLOOKUP(D129,FC_Master[Cost Center],FC_Master[rollup FC '#])","v":1110078956},null,null,null,null,null,null,null,null,null,111,"111HR Wellness Clinic Support Staff",10000065,"111WlsClncSp",1110078956]
[111,"111HRIS",10000059,1110080001,{"$f":"_xlfn.XLOOKUP(D130,FC_Master[Cost Center],FC_Master[rollup FC '#])","v":1110080001},null,null,null,null,null,null,null,null,null,111,"111HRIS",10000059,"111HRIS",1110080001]
[{"$f":"O131","v":111},{"$f":"P131","v":"111HR Services"},{"$f":"VALUE(Q131)","v":10051526},{"$f":"VALUE(S131)","v":1110100001},{"$f":"_xlfn.XLOOKUP(D131,FC_Master[Cost Center],FC_Master[rollup FC '#])","v":1110100001},null,null,null,null,null,null,null,null,null,111,"111HR Services",10051526,"111HRSv",1110100001]
[111,"111HR Engagement",10055401,1110100001,{"$f":"_xlfn.XLOOKUP(D132,FC_Master[Cost Center],FC_Master[rollup FC '#])","v":1110100001},null,null,null,null,null,null,null,null,null,111,"111HR Engagement",10055401,"111Engmt",1110100001]
[111,"111HR HIPAA",10052301,1110500001,{"$f":"_xlfn.XLOOKUP(D133,FC_Master[Cost Center],FC_Master[rollup FC '#])","v":1110500001},null,null,null,null,null,null,null,null,null,111,"111HR HIPAA",10052301,"111HIPAA",1110500001]
[112,"Deputy of Technology and Operations",10053976,1120010001,{"$f":"_xlfn.XLOOKUP(D134,FC_Master[Cost Center],FC_Master[rollup FC '#])","v":1120010001},null,null,null,null,null,null,null,null,null,112,"Deputy of Technology and Operations",10053976,"DpTchOps",1120010001]
[112,"112TCIS",10000068,1120020001,{"$f":"_xlfn.XLOOKUP(D135,FC_Master[Cost Center],FC_Master[rollup FC '#])","v":1120020001},null,null,null,null,null,null,null,null,null,112,"112TCIS",10000068,"112TCIS",1120020001]
[112,"112TCIS Admin Special Projects",10000080,1120020001,{"$f":"_xlfn.XLOOKUP(D136,FC_Master[Cost Center],FC_Master[rollup FC '#])","v":1120020001},null,null,null,null,null,null,null,null,null,112,"112TCIS Admin Special Projects",10000080,"112TCISSP",1120020001]
[112,"112TCIS Administration",10000085,1120020001,{"$f":"_xlfn.XLOOKUP(D137,FC_Master[Cost Center],FC_Master[rollup FC '#])","v":1120020001},null,null,null,null,null,null,null,null,null,112,"112TCIS Administration",10000085,"112Adm",1120020001]
[112,"112TCIS Admin Finance",10000086,1120020001,{"$f":"_xlfn.XLOOKUP(D138,FC_Master[Cost Center],FC_Master[rollup FC '#])","v":1120020001},null,null,null,null,null,null,null,null,null,112,"112TCIS Admin Finance",10000086,"112AdmFin",1120020001]
[112,"112TCIS CARS Director",10052776,1120020001,{"$f":"_xlfn.XLOOKUP(D139,FC_Master[Cost Center],FC_Master[rollup FC '#])","v":1120020001},null,null,null,null,null,null,null,null,null,112,"112TCIS CARS Director",10052776,"112CARSDir",1120020001]
[112,"112TCIS ITS-CARS Div",10052776,1120020001,{"$f":"_xlfn.XLOOKUP(D140,FC_Master[Cost Center],FC_Master[rollup FC '#])","v":1120020001},null,null,null,null,null,null,null,null,null,112,"112TCIS ITS-CARS Div",10052776,"112ITSCARS",1120020001]
[112,"112TCIS CARS Director",10052776,1120020001,{"$f":"_xlfn.XLOOKUP(D141,FC_Master[Cost Center],FC_Master[rollup FC '#])","v":1120020001},null,null,null,null,null,null,null,null,null,112,"112TCIS CARS Director",10052776,"112CARSDir",1120020001]
[112,"112TCIS - DIV",10052976,1120020001,{"$f":"_xlfn.XLOOKUP(D142,FC_Master[Cost Center],FC_Master[rollup FC '#])","v":1120020001},null,null,null,null,null,null,null,null,null,112,"112TCIS - DIV",10052976,"112TCISDIV",1120020001]
[112,"112TCIS Digital Equity",10056328,1120020001,{"$f":"_xlfn.XLOOKUP(D143,FC_Master[Cost Center],FC_Master[rollup FC '#])","v":1120020001},null,null,null,null,null,null,null,null,null,112,"112TCIS Digital Equity",10056328,"112DgEqt",1120020001]
[112,"112TCIS EIS Ops",10000071,1120040001,{"$f":"_xlfn.XLOOKUP(D144,FC_Master[Cost Center],FC_Master[rollup FC '#])","v":1120040001},null,null,null,null,null,null,null,null,null,112,"112TCIS EIS Ops",10000071,"112EISOps",1120040001]
[112,"112TCIS EIS Technology",10000078,1120040001,{"$f":"_xlfn.XLOOKUP(D145,FC_Master[Cost Center],FC_Master[rollup FC '#])","v":1120040001},null,null,null,null,null,null,null,null,null,112,"112TCIS EIS Technology",10000078,"112EISTech",1120040001]
[112,"112TCIS EIS EAS",10000079,1120040001,{"$f":"_xlfn.XLOOKUP(D146,FC_Master[Cost Center],FC_Master[rollup FC '#])","v":1120040001},null,null,null,null,null,null,null,null,null,112,"112TCIS EIS EAS",10000079,"112EISEAS",1120040001]
[112,"112TCIS EIS IDC Fcl & Monitoring Adm",10000082,1120040001,{"$f":"_xlfn.XLOOKUP(D147,FC_Master[Cost Center],FC_Master[rollup FC '#])","v":1120040001},null,null,null,null,null,null,null,null,null,112,"112TCIS EIS IDC Fcl & Monitoring Adm",10000082,"112EISIDCFcl",1120040001]
[112,"112TCIS EIS Service Desk Operations",10000083,1120040001,{"$f":"_xlfn.XLOOKUP(D148,FC_Master[Cost Center],FC_Master[rollup FC '#])","v":1120040001},null,null,null,null,null,null,null,null,null,112,"112TCIS EIS Service Desk Operations",10000083,"112EISSvDOps",1120040001]
[112,"112TCIS EIS Identity Access Mgmt Sv",10050251,1120040001,{"$f":"_xlfn.XLOOKUP(D149,FC_Master[Cost Center],FC_Master[rollup FC '#])","v":1120040001},null,null,null,null,null,null,null,null,null,112,"112TCIS EIS Identity Access Mgmt Sv",10050251,"112EISIAMS",1120040001]
[112,"112TCIS EIS Server Lifecycle Mgmt",10050252,1120040001,{"$f":"_xlfn.XLOOKUP(D150,FC_Master[Cost Center],FC_Master[rollup FC '#])","v":1120040001},null,null,null,null,null,null,null,null,null,112,"112TCIS EIS Server Lifecycle Mgmt",10050252,"112EISSLM",1120040001]
[112,"112TCIS EIS Service Desk",10051051,1120040001,{"$f":"_xlfn.XLOOKUP(D151,FC_Master[Cost Center],FC_Master[rollup FC '#])","v":1120040001},null,null,null,null,null,null,null,null,null,112,"112TCIS EIS Service Desk",10051051,"112EISSvd",1120040001]
[112,"112TCIS EIS LANWAN",10051202,1120040001,{"$f":"_xlfn.XLOOKUP(D152,FC_Master[Cost Center],FC_Master[rollup FC '#])","v":1120040001},null,null,null,null,null,null,null,null,null,112,"112TCIS EIS LANWAN",10051202,"112EISLANWAN",1120040001]
[112,"112TCIS Service Desk Tier II",10051676,1120040001,{"$f":"_xlfn.XLOOKUP(D153,FC_Master[Cost Center],FC_Master[rollup FC '#])","v":1120040001},null,null,null,null,null,null,null,null,null,112,"112TCIS Service Desk Tier II",10051676,"112SvDII",1120040001]
[112,"112TCIS EIS Service Desk - Operators",10051701,1120040001,{"$f":"_xlfn.XLOOKUP(D154,FC_Master[Cost Center],FC_Master[rollup FC '#])","v":1120040001},null,null,null,null,null,null,null,null,null,112,"112TCIS EIS Service Desk - Operators",10051701,"112EISSvDOpr",1120040001]
[112,"112TCIS Project Management Office",10000069,1120140001,{"$f":"_xlfn.XLOOKUP(D155,FC_Master[Cost Center],FC_Master[rollup FC '#])","v":1120140001},null,null,null,null,null,null,null,null,null,112,"112TCIS Project Management Office",10000069,"112PMO",1120140001]
[112,"112TCIS ITS Intake",10000070,1120140001,{"$f":"_xlfn.XLOOKUP(D156,FC_Master[Cost Center],FC_Master[rollup FC '#])","v":1120140001},null,null,null,null,null,null,null,null,null,112,"112TCIS ITS Intake",10000070,"112Intake",1120140001]
[112,"112TCIS General Government",10050576,1120140001,{"$f":"_xlfn.XLOOKUP(D157,FC_Master[Cost Center],FC_Master[rollup FC '#])","v":1120140001},null,null,null,null,null,null,null,null,null,112,"112TCIS General Government",10050576,"112GenGovt",1120140001]
[112,"112TCIS Public Safety Program",10051151,1120140001,{"$f":"_xlfn.XLOOKUP(D158,FC_Master[Cost Center],FC_Master[rollup FC '#])","v":1120140001},null,null,null,null,null,null,null,null,null,112,"112TCIS Public Safety Program",10051151,"112PbcSftPg",1120140001]
[112,"112TCIS Information Security",10053151,1120150001,{"$f":"_xlfn.XLOOKUP(D159,FC_Master[Cost Center],FC_Master[rollup FC '#])","v":1120150001},null,null,null,null,null,null,null,null,null,112,"112TCIS Information Security",10053151,"112InfoSec",1120150001]
[112,"112TCIS Support Services",10053339,1120150001,{"$f":"_xlfn.XLOOKUP(D160,FC_Master[Cost Center],FC_Master[rollup FC '#])","v":1120150001},null,null,null,null,null,null,null,null,null,112,"112TCIS Support Services",10053339,"112SpSv",1120150001]
[112,"112TCIS InfoSec - Operations",10053751,1120150001,{"$f":"_xlfn.XLOOKUP(D161,FC_Master[Cost Center],FC_Master[rollup FC '#])","v":1120150001},null,null,null,null,null,null,null,null,null,112,"112TCIS InfoSec - Operations",10053751,"112Ops",1120150001]
[112,"112TCIS InfoSec - Assurance",10053752,1120150001,{"$f":"_xlfn.XLOOKUP(D162,FC_Master[Cost Center],FC_Master[rollup FC '#])","v":1120150001},null,null,null,null,null,null,null,null,null,112,"112TCIS InfoSec - Assurance",10053752,"112Assurance",1120150001]
[112,"112TCIS Application Dev & Prd Support",10000073,1120170001,{"$f":"_xlfn.XLOOKUP(D163,FC_Master[Cost Center],FC_Master[rollup FC '#])","v":1120170001},null,null,null,null,null,null,null,null,null,112,"112TCIS Application Dev & Prd Support",10000073,"112ADPS",1120170001]
[112,"112TCIS ADPS Application & Prd Support",10000074,1120170001,{"$f":"_xlfn.XLOOKUP(D164,FC_Master[Cost Center],FC_Master[rollup FC '#])","v":1120170001},null,null,null,null,null,null,null,null,null,112,"112TCIS ADPS Application & Prd Support",10000074,"112ADPSAPS",1120170001]
[112,"112TCIS ADPS APS Prd Support",10000075,1120170001,{"$f":"_xlfn.XLOOKUP(D165,FC_Master[Cost Center],FC_Master[rollup FC '#])","v":1120170001},null,null,null,null,null,null,null,null,null,112,"112TCIS ADPS APS Prd Support",10000075,"112ADPSAPSPS",1120170001]
[112,"112TCIS ADPS Application Development",10000076,1120170001,{"$f":"_xlfn.XLOOKUP(D166,FC_Master[Cost Center],FC_Master[rollup FC '#])","v":1120170001},null,null,null,null,null,null,null,null,null,112,"112TCIS ADPS Application Development",10000076,"112ADPSAD",1120170001]
[112,"112TCIS Application Dev & Prd Support",10050351,1120170001,{"$f":"_xlfn.XLOOKUP(D167,FC_Master[Cost Center],FC_Master[rollup FC '#])","v":1120170001},null,null,null,null,null,null,null,null,null,112,"112TCIS Application Dev & Prd Support",10050351,"112ADPS",1120170001]
[112,"112 Privacy Office",10053952,1120310001,{"$f":"_xlfn.XLOOKUP(D168,FC_Master[Cost Center],FC_Master[rollup FC '#])","v":1120310001},null,null,null,null,null,null,null,null,null,112,"112 Privacy Office",10053952,"112PrivOfc",1120310001]
[112,"112TCIS RM Administration",10000661,1120400001,{"$f":"_xlfn.XLOOKUP(D169,FC_Master[Cost Center],FC_Master[rollup FC '#])","v":1120400001},null,null,null,null,null,null,null,null,null,112,"112TCIS RM Administration",10000661,"112RMAdm",1120400001]
[112,"112TCIS RM Support Services",10000668,1120400001,{"$f":"_xlfn.XLOOKUP(D170,FC_Master[Cost Center],FC_Master[rollup FC '#])","v":1120400001},null,null,null,null,null,null,null,null,null,112,"112TCIS RM Support Services",10000668,"112RMSupport",1120400001]
[112,"112TCIS Imaging",10000663,1120440001,{"$f":"_xlfn.XLOOKUP(D171,FC_Master[Cost Center],FC_Master[rollup FC '#])","v":1120400001},null,null,null,null,null,null,null,null,null,112,"112TCIS Imaging",10000663,"112Imaging",1120440001]
[112,"112TCIS Imaging Production",10000664,1120440001,{"$f":"_xlfn.XLOOKUP(D172,FC_Master[Cost Center],FC_Master[rollup FC '#])","v":1120400001},null,null,null,null,null,null,null,null,null,112,"112TCIS Imaging Production",10000664,"112IgP",1120440001]
[112,"112TCIS Archives",10051201,1120440001,{"$f":"_xlfn.XLOOKUP(D173,FC_Master[Cost Center],FC_Master[rollup FC '#])","v":1120400001},null,null,null,null,null,null,null,null,null,112,"112TCIS Archives",10051201,"112Archives",1120440001]
[112,"112TCIS Printing",10000670,1120460001,{"$f":"_xlfn.XLOOKUP(D174,FC_Master[Cost Center],FC_Master[rollup FC '#])","v":1120400001},null,null,null,null,null,null,null,null,null,112,"112TCIS Printing",10000670,"112Prnt",1120460001]
[112,"112TCIS Mail",10000669,1120480001,{"$f":"_xlfn.XLOOKUP(D175,FC_Master[Cost Center],FC_Master[rollup FC '#])","v":1120400001},null,null,null,null,null,null,null,null,null,112,"112TCIS Mail",10000669,"112Mail",1120480001]
[112,"112TCIS EIS Infra & Data Center Ops",10000081,1120500001,{"$f":"_xlfn.XLOOKUP(D176,FC_Master[Cost Center],FC_Master[rollup FC '#])","v":1120500001},null,null,null,null,null,null,null,null,null,112,"112TCIS EIS Infra & Data Center Ops",10000081,"112EISIDC",1120500001]
[114,"114Fcl Mgmt Director",10000088,1140010001,{"$f":"_xlfn.XLOOKUP(D177,FC_Master[Cost Center],FC_Master[rollup FC '#])","v":1140010001},null,null,null,null,null,null,null,null,null,114,"114Fcl Mgmt Director",10000088,"114FMDDir",1140010001]
[114,"114Fcl Administrative Director",10000089,1140010001,{"$f":"_xlfn.XLOOKUP(D178,FC_Master[Cost Center],FC_Master[rollup FC '#])","v":1140010001},null,null,null,null,null,null,null,null,null,114,"114Fcl Administrative Director",10000089,"114AdmDir",1140010001]
[114,"114Fcl Administrative",10000090,1140010001,{"$f":"_xlfn.XLOOKUP(D179,FC_Master[Cost Center],FC_Master[rollup FC '#])","v":1140010001},null,null,null,null,null,null,null,null,null,114,"114Fcl Administrative",10000090,"114Adm",1140010001]
[114,"114Facilties Financial",10000092,1140010001,{"$f":"_xlfn.XLOOKUP(D180,FC_Master[Cost Center],FC_Master[rollup FC '#])","v":1140010001},null,null,null,null,null,null,null,null,null,114,"114Facilties Financial",10000092,"114Fin",1140010001]
[114,"114Fcl Admin Inventory",10053593,1140010001,{"$f":"_xlfn.XLOOKUP(D181,FC_Master[Cost Center],FC_Master[rollup FC '#])","v":1140010001},null,null,null,null,null,null,null,null,null,114,"114Fcl Admin Inventory",10053593,"114AdmInv",1140010001]
[114,"114Fcl FMD HR",10055901,1140010001,{"$f":"_xlfn.XLOOKUP(D182,FC_Master[Cost Center],FC_Master[rollup FC '#])","v":1140010001},null,null,null,null,null,null,null,null,null,114,"114Fcl FMD HR",10055901,"114FMDHR",1140010001]
[114,"114Fcl FMD Office",10056178,1140010001,{"$f":"_xlfn.XLOOKUP(D183,FC_Master[Cost Center],FC_Master[rollup FC '#])","v":1140010001},null,null,null,null,null,null,null,null,null,114,"114Fcl FMD Office",10056178,"114FMDOffice",1140010001]
[114,"114Fcl Grounds Services",10000096,1140020001,{"$f":"_xlfn.XLOOKUP(D184,FC_Master[Cost Center],FC_Master[rollup FC '#])","v":1140020001},null,null,null,null,null,null,null,null,null,114,"114Fcl Grounds Services",10000096,"114Grnd",1140020001]
[114,"114Fcl Grnd/Custodial/Moving Sv",10000094,1140030001,{"$f":"_xlfn.XLOOKUP(D185,FC_Master[Cost Center],FC_Master[rollup FC '#])","v":1140030001},null,null,null,null,null,null,null,null,null,114,"114Fcl Grnd/Custodial/Moving Sv",10000094,"114GCM",1140030001]
[114,"114Fcl Custodial Services",10000097,1140030001,{"$f":"_xlfn.XLOOKUP(D186,FC_Master[Cost Center],FC_Master[rollup FC '#])","v":1140030001},null,null,null,null,null,null,null,null,null,114,"114Fcl Custodial Services",10000097,"114Cstdn",1140030001]
[114,"114Fcl Building Floor Care",10053001,1140030001,{"$f":"_xlfn.XLOOKUP(D187,FC_Master[Cost Center],FC_Master[rollup FC '#])","v":1140030001},null,null,null,null,null,null,null,null,null,114,"114Fcl Building Floor Care",10053001,"114BdFC",1140030001]
[114,"114Fcl Custodial Services-2",10053583,1140030001,{"$f":"_xlfn.XLOOKUP(D188,FC_Master[Cost Center],FC_Master[rollup FC '#])","v":1140030001},null,null,null,null,null,null,null,null,null,114,"114Fcl Custodial Services-2",10053583,"114Cstdn2",1140030001]
[114,"114Fcl Custodial Services-3",10053584,1140030001,{"$f":"_xlfn.XLOOKUP(D189,FC_Master[Cost Center],FC_Master[rollup FC '#])","v":1140030001},null,null,null,null,null,null,null,null,null,114,"114Fcl Custodial Services-3",10053584,"114Cstdn3",1140030001]
[114,"114Fcl Custodial Services-4",10053585,1140030001,{"$f":"_xlfn.XLOOKUP(D190,FC_Master[Cost Center],FC_Master[rollup FC '#])","v":1140030001},null,null,null,null,null,null,null,null,null,114,"114Fcl Custodial Services-4",10053585,"114Cstdn4",1140030001]
[114,"114Fcl Custodial Services-5",10053586,1140030001,{"$f":"_xlfn.XLOOKUP(D191,FC_Master[Cost Center],FC_Master[rollup FC '#])","v":1140030001},null,null,null,null,null,null,null,null,null,114,"114Fcl Custodial Services-5",10053586,"114Cstdn5",1140030001]
[114,"114Fcl Custodial Services-6",10053587,1140030001,{"$f":"_xlfn.XLOOKUP(D192,FC_Master[Cost Center],FC_Master[rollup FC '#])","v":1140030001},null,null,null,null,null,null,null,null,null,114,"114Fcl Custodial Services-6",10053587,"114Cstdn6",1140030001]
[114,"114Fcl Floor Crew",10055076,1140030001,{"$f":"_xlfn.XLOOKUP(D193,FC_Master[Cost Center],FC_Master[rollup FC '#])","v":1140030001},null,null,null,null,null,null,null,null,null,114,"114Fcl Floor Crew",10055076,"114FlCrw",1140030001]
[114,"114Fcl PM Custodial Sv Superintendent",10056603,1140030001,{"$f":"_xlfn.XLOOKUP(D194,FC_Master[Cost Center],FC_Master[rollup FC '#])","v":1140030001},null,null,null,null,null,null,null,null,null,114,"114Fcl PM Custodial Sv Superintendent",10056603,"114PMCusSS",1140030001]
[{"$f":"O195","v":114},{"$f":"P195","v":"114Fcl Security Services-700 Lavaca"},{"$f":"VALUE(Q195)","v":10000102},{"$f":"VALUE(S195)","v":1140040001},{"$f":"_xlfn.XLOOKUP(D195,FC_Master[Cost Center],FC_Master[rollup FC '#])","v":1140040001},null,null,null,null,null,null,null,null,null,114,"114Fcl Security Services-700 Lavaca",10000102,"114Sec700Lav",1140040001]
[114,"114Facilities Security Manager",10051001,1140040001,{"$f":"_xlfn.XLOOKUP(D196,FC_Master[Cost Center],FC_Master[rollup FC '#])","v":1140040001},null,null,null,null,null,null,null,null,null,114,"114Facilities Security Manager",10051001,"114SecMgr",1140040001]
[114,"114Fcl Parking",10053526,1140040001,{"$f":"_xlfn.XLOOKUP(D197,FC_Master[Cost Center],FC_Master[rollup FC '#])","v":1140040001},null,null,null,null,null,null,null,null,null,114,"114Fcl Parking",10053526,"114FclPrk",1140040001]
[114,"114Fcl Physical Security",10053551,1140040001,{"$f":"_xlfn.XLOOKUP(D198,FC_Master[Cost Center],FC_Master[rollup FC '#])","v":1140040001},null,null,null,null,null,null,null,null,null,114,"114Fcl Physical Security",10053551,"114PhysiSec",1140040001]
[114,"114Fcl Security Services-Evening",10053588,1140040001,{"$f":"_xlfn.XLOOKUP(D199,FC_Master[Cost Center],FC_Master[rollup FC '#])","v":1140040001},null,null,null,null,null,null,null,null,null,114,"114Fcl Security Services-Evening",10053588,"114SecEve",1140040001]
[114,"114Fcl Security Services-Night",10053589,1140040001,{"$f":"_xlfn.XLOOKUP(D200,FC_Master[Cost Center],FC_Master[rollup FC '#])","v":1140040001},null,null,null,null,null,null,null,null,null,114,"114Fcl Security Services-Night",10053589,"114SecNgt",1140040001]
[114,"114Fcl Security Services-Day",10053590,1140040001,{"$f":"_xlfn.XLOOKUP(D201,FC_Master[Cost Center],FC_Master[rollup FC '#])","v":1140040001},null,null,null,null,null,null,null,null,null,114,"114Fcl Security Services-Day",10053590,"114SecDay",1140040001]
[114,"114Fcl Security Services-Airport",10053591,1140040001,{"$f":"_xlfn.XLOOKUP(D202,FC_Master[Cost Center],FC_Master[rollup FC '#])","v":1140040001},null,null,null,null,null,null,null,null,null,114,"114Fcl Security Services-Airport",10053591,"114SecAirpt",1140040001]
[114,"114Fcl Security Center Operations",10053592,1140040001,{"$f":"_xlfn.XLOOKUP(D203,FC_Master[Cost Center],FC_Master[rollup FC '#])","v":1140040001},null,null,null,null,null,null,null,null,null,114,"114Fcl Security Center Operations",10053592,"114SecCtrOps",1140040001]
[114,"114Fcl Security Services-2433Ridgepoint",10055526,1140040001,{"$f":"_xlfn.XLOOKUP(D204,FC_Master[Cost Center],FC_Master[rollup FC '#])","v":1140040001},null,null,null,null,null,null,null,null,null,114,"114Fcl Security Services-2433Ridgepoint",10055526,"114Sec2433",1140040001]
[114,"114Fcl Electronic Security",10055601,1140040001,{"$f":"_xlfn.XLOOKUP(D205,FC_Master[Cost Center],FC_Master[rollup FC '#])","v":1140040001},null,null,null,null,null,null,null,null,null,114,"114Fcl Electronic Security",10055601,"114ElctSec",1140040001]
[114,"114Fcl Facilities Security Center Mgr",10056501,1140040001,{"$f":"_xlfn.XLOOKUP(D206,FC_Master[Cost Center],FC_Master[rollup FC '#])","v":1140040001},null,null,null,null,null,null,null,null,null,114,"114Fcl Facilities Security Center Mgr",10056501,"114FclSecMgr",1140040001]
[114,"114Fcl Security Services - MEO",10056604,1140040001,{"$f":"_xlfn.XLOOKUP(D207,FC_Master[Cost Center],FC_Master[rollup FC '#])","v":1140040001},null,null,null,null,null,null,null,null,null,114,"114Fcl Security Services - MEO",10056604,"114SecME",1140040001]
[114,"114Fcl Security Services- CFCF",10056605,1140040001,{"$f":"_xlfn.XLOOKUP(D208,FC_Master[Cost Center],FC_Master[rollup FC '#])","v":1140040001},null,null,null,null,null,null,null,null,null,114,"114Fcl Security Services- CFCF",10056605,"114SecCFCF",1140040001]
[114,"114Fcl Exposition Center Manager",10000105,1140080003,{"$f":"_xlfn.XLOOKUP(D209,FC_Master[Cost Center],FC_Master[rollup FC '#])","v":1140080003},null,null,null,null,null,null,null,null,null,114,"114Fcl Exposition Center Manager",10000105,"114ExpoMgr",1140080003]
[114,"114Fcl Exposition Center",10000106,1140080003,{"$f":"_xlfn.XLOOKUP(D210,FC_Master[Cost Center],FC_Master[rollup FC '#])","v":1140080003},null,null,null,null,null,null,null,null,null,114,"114Fcl Exposition Center",10000106,"114Expo",1140080003]
[114,"114Fcl Expo Center Coordinator",10053730,1140080003,{"$f":"_xlfn.XLOOKUP(D211,FC_Master[Cost Center],FC_Master[rollup FC '#])","v":1140080003},null,null,null,null,null,null,null,null,null,114,"114Fcl Expo Center Coordinator",10053730,"114ExpoCoord",1140080003]
[114,"114Fcl Expo Center Building Mnt Coord",10054751,1140080003,{"$f":"_xlfn.XLOOKUP(D212,FC_Master[Cost Center],FC_Master[rollup FC '#])","v":1140080003},null,null,null,null,null,null,null,null,null,114,"114Fcl Expo Center Building Mnt Coord",10054751,"114ExpoBdMnt",1140080003]
[114,"114Fcl Administrative Maintenance",10000091,1140090001,{"$f":"_xlfn.XLOOKUP(D213,FC_Master[Cost Center],FC_Master[rollup FC '#])","v":1140090001},null,null,null,null,null,null,null,null,null,114,"114Fcl Administrative Maintenance",10000091,"114AdmMnt",1140090001]
[114,"114Fcl Bldg Mnt and Repair Dir",10000093,1140090001,{"$f":"_xlfn.XLOOKUP(D214,FC_Master[Cost Center],FC_Master[rollup FC '#])","v":1140090001},null,null,null,null,null,null,null,null,null,114,"114Fcl Bldg Mnt and Repair Dir",10000093,"114BdMntDir",1140090001]
[114,"114Fcl Bldg Mnt and Repair Dir",10000093,1140090001,{"$f":"_xlfn.XLOOKUP(D215,FC_Master[Cost Center],FC_Master[rollup FC '#])","v":1140090001},null,null,null,null,null,null,null,null,null,114,"114Fcl Bldg Mnt and Repair Dir",10000093,"114BdMntDir",1140090001]
[114,"114Fcl Bldg Mnt & Repair Superintendent",10000107,1140090001,{"$f":"_xlfn.XLOOKUP(D216,FC_Master[Cost Center],FC_Master[rollup FC '#])","v":1140090001},null,null,null,null,null,null,null,null,null,114,"114Fcl Bldg Mnt & Repair Superintendent",10000107,"114BdMntSupt",1140090001]
[114,"114Fcl Bldg Mnt & Repair",10000108,1140090001,{"$f":"_xlfn.XLOOKUP(D217,FC_Master[Cost Center],FC_Master[rollup FC '#])","v":1140090001},null,null,null,null,null,null,null,null,null,114,"114Fcl Bldg Mnt & Repair",10000108,"114BdMnt",1140090001]
[114,"114Fcl Bldg Mnt and Repair Contracts",10000788,1140090001,{"$f":"_xlfn.XLOOKUP(D218,FC_Master[Cost Center],FC_Master[rollup FC '#])","v":1140090001},null,null,null,null,null,null,null,null,null,114,"114Fcl Bldg Mnt and Repair Contracts",10000788,"114BdMntCntr",1140090001]
[114,"114Fcl Bldg Mnt & Repair-2",10053576,1140090001,{"$f":"_xlfn.XLOOKUP(D219,FC_Master[Cost Center],FC_Master[rollup FC '#])","v":1140090001},null,null,null,null,null,null,null,null,null,114,"114Fcl Bldg Mnt & Repair-2",10053576,"114BdMnt2",1140090001]
[114,"114Fcl Bldg Mnt & Repair-3",10053577,1140090001,{"$f":"_xlfn.XLOOKUP(D220,FC_Master[Cost Center],FC_Master[rollup FC '#])","v":1140090001},null,null,null,null,null,null,null,null,null,114,"114Fcl Bldg Mnt & Repair-3",10053577,"114BdMnt3",1140090001]
[114,"114Fcl Bldg Mnt & Repair-4",10053578,1140090001,{"$f":"_xlfn.XLOOKUP(D221,FC_Master[Cost Center],FC_Master[rollup FC '#])","v":1140090001},null,null,null,null,null,null,null,null,null,114,"114Fcl Bldg Mnt & Repair-4",10053578,"114BdMnt4",1140090001]
[114,"114Fcl Contract Compliance",10053579,1140090001,{"$f":"_xlfn.XLOOKUP(D222,FC_Master[Cost Center],FC_Master[rollup FC '#])","v":1140090001},null,null,null,null,null,null,null,null,null,114,"114Fcl Contract Compliance",10053579,"114FclContra",1140090001]
[114,"114Fcl Electricians",10053580,1140090001,{"$f":"_xlfn.XLOOKUP(D223,FC_Master[Cost Center],FC_Master[rollup FC '#])","v":1140090001},null,null,null,null,null,null,null,null,null,114,"114Fcl Electricians",10053580,"114FclElect",1140090001]
[114,"114FclPlumbers",10053581,1140090001,{"$f":"_xlfn.XLOOKUP(D224,FC_Master[Cost Center],FC_Master[rollup FC '#])","v":1140090001},null,null,null,null,null,null,null,null,null,114,"114FclPlumbers",10053581,"114FclPlumb",1140090001]
[114,"114FclLocksmiths",10053582,1140090001,{"$f":"_xlfn.XLOOKUP(D225,FC_Master[Cost Center],FC_Master[rollup FC '#])","v":1140090001},null,null,null,null,null,null,null,null,null,114,"114FclLocksmiths",10053582,"114FclLocksm",1140090001]
[114,"114Fcl Pl Dsgn and Construction",10000103,1140110001,{"$f":"_xlfn.XLOOKUP(D226,FC_Master[Cost Center],FC_Master[rollup FC '#])","v":1140110001},"Not in PPOSE",null,null,null,null,null,null,null,null,114,"114Fcl Pl Dsgn and Construction",10000103,"114PlDsgn",1140110001]
[114,"114Fcl Pl Dsgn and Cnstn Isp",10000104,1140110001,{"$f":"_xlfn.XLOOKUP(D227,FC_Master[Cost Center],FC_Master[rollup FC '#])","v":1140110001},null,null,null,null,null,null,null,null,null,114,"114Fcl Pl Dsgn and Cnstn Isp",10000104,"114PlDsgnIsp",1140110001]
[115,"115Purchasing Office Administration",10000114,1150010001,{"$f":"_xlfn.XLOOKUP(D228,FC_Master[Cost Center],FC_Master[rollup FC '#])","v":1150010001},null,null,null,null,null,null,null,null,null,115,"115Purchasing Office Administration",10000114,"115Adm",1150010001]
[115,"115Purchasing Operations & Procurement",10000117,1150010001,{"$f":"_xlfn.XLOOKUP(D229,FC_Master[Cost Center],FC_Master[rollup FC '#])","v":1150010001},null,null,null,null,null,null,null,null,null,115,"115Purchasing Operations & Procurement",10000117,"115OpsPcmt",1150010001]
[115,"115Marvin Brice",10000729,1150010001,{"$f":"_xlfn.XLOOKUP(D230,FC_Master[Cost Center],FC_Master[rollup FC '#])","v":1150010001},null,null,null,null,null,null,null,null,null,115,"115Marvin Brice",10000729,"115BriceM",1150010001]
[115,"115Richard Villareal",10000732,1150010001,{"$f":"_xlfn.XLOOKUP(D231,FC_Master[Cost Center],FC_Master[rollup FC '#])","v":1150010001},null,null,null,null,null,null,null,null,null,115,"115Richard Villareal",10000732,"115VillarR",1150010001]
[115,"115John Pena",10000733,1150010001,{"$f":"_xlfn.XLOOKUP(D232,FC_Master[Cost Center],FC_Master[rollup FC '#])","v":1150010001},null,null,null,null,null,null,null,null,null,115,"115John Pena",10000733,"115PenaJ",1150010001]
[115,"115Mike Long",10000734,1150010001,{"$f":"_xlfn.XLOOKUP(D233,FC_Master[Cost Center],FC_Master[rollup FC '#])","v":1150010001},null,null,null,null,null,null,null,null,null,115,"115Mike Long",10000734,"115LongM",1150010001]
[115,"115David Walch",10000735,1150010001,{"$f":"_xlfn.XLOOKUP(D234,FC_Master[Cost Center],FC_Master[rollup FC '#])","v":1150010001},null,null,null,null,null,null,null,null,null,115,"115David Walch",10000735,"115WalchD",1150010001]
[115,"115Jason Walker",10000736,1150010001,{"$f":"_xlfn.XLOOKUP(D235,FC_Master[Cost Center],FC_Master[rollup FC '#])","v":1150010001},null,null,null,null,null,null,null,null,null,115,"115Jason Walker",10000736,"115WalkerJ",1150010001]
[115,"115Patrick Strittmatter",10000737,1150010001,{"$f":"_xlfn.XLOOKUP(D236,FC_Master[Cost Center],FC_Master[rollup FC '#])","v":1150010001},null,null,null,null,null,null,null,null,null,115,"115Patrick Strittmatter",10000737,"115StrittmP",1150010001]
[115,"115Purchasing Agent",10000739,1150010001,{"$f":"_xlfn.XLOOKUP(D237,FC_Master[Cost Center],FC_Master[rollup FC '#])","v":1150010001},null,null,null,null,null,null,null,null,null,115,"115Purchasing Agent",10000739,"115PurchAgen",1150010001]
[115,"115Jesse Herrera",10000741,1150010001,{"$f":"_xlfn.XLOOKUP(D238,FC_Master[Cost Center],FC_Master[rollup FC '#])","v":1150010001},null,null,null,null,null,null,null,null,null,115,"115Jesse Herrera",10000741,"115HerrerJ",1150010001]
[115,"115CW Bruner",10000742,1150010001,{"$f":"_xlfn.XLOOKUP(D239,FC_Master[Cost Center],FC_Master[rollup FC '#])","v":1150010001},null,null,null,null,null,null,null,null,null,115,"115CW Bruner",10000742,"115BrunerC",1150010001]
[115,"115Scott Wilson",10000743,1150010001,{"$f":"_xlfn.XLOOKUP(D240,FC_Master[Cost Center],FC_Master[rollup FC '#])","v":1150010001},null,null,null,null,null,null,null,null,null,115,"115Scott Wilson",10000743,"115WilsonS",1150010001]
[115,"115Nancy Barchus",10000745,1150010001,{"$f":"_xlfn.XLOOKUP(D241,FC_Master[Cost Center],FC_Master[rollup FC '#])","v":1150010001},null,null,null,null,null,null,null,null,null,115,"115Nancy Barchus",10000745,"115NancyB",1150010001]
[115,"115Rose Garcia",10000746,1150010001,{"$f":"_xlfn.XLOOKUP(D242,FC_Master[Cost Center],FC_Master[rollup FC '#])","v":1150010001},null,null,null,null,null,null,null,null,null,115,"115Rose Garcia",10000746,"115GarciaR",1150010001]
[115,"115Jesus Gomez",10050101,1150010001,{"$f":"_xlfn.XLOOKUP(D243,FC_Master[Cost Center],FC_Master[rollup FC '#])","v":1150010001},null,null,null,null,null,null,null,null,null,115,"115Jesus Gomez",10050101,"115GomezJ",1150010001]
[115,"115Sydney Ceder",10050102,1150010001,{"$f":"_xlfn.XLOOKUP(D244,FC_Master[Cost Center],FC_Master[rollup FC '#])","v":1150010001},null,null,null,null,null,null,null,null,null,115,"115Sydney Ceder",10050102,"115CederS",1150010001]
[115,"115Ruena Victorino",10050526,1150010001,{"$f":"_xlfn.XLOOKUP(D245,FC_Master[Cost Center],FC_Master[rollup FC '#])","v":1150010001},null,null,null,null,null,null,null,null,null,115,"115Ruena Victorino",10050526,"115VictorinR",1150010001]
[115,"115Rachel Fishback",10050551,1150010001,{"$f":"_xlfn.XLOOKUP(D246,FC_Master[Cost Center],FC_Master[rollup FC '#])","v":1150010001},null,null,null,null,null,null,null,null,null,115,"115Rachel Fishback",10050551,"115FishbackR",1150010001]
[115,"115Ashley Waffer",10051251,1150010001,{"$f":"_xlfn.XLOOKUP(D247,FC_Master[Cost Center],FC_Master[rollup FC '#])","v":1150010001},null,null,null,null,null,null,null,null,null,115,"115Ashley Waffer",10051251,"115WafferA",1150010001]
[115,"115Kimberly Elizondo",10051477,1150010001,{"$f":"_xlfn.XLOOKUP(D248,FC_Master[Cost Center],FC_Master[rollup FC '#])","v":1150010001},null,null,null,null,null,null,null,null,null,115,"115Kimberly Elizondo",10051477,"115ElizondoK",1150010001]
[115,"115Kimberly Elizondo",10051477,1150010001,{"$f":"_xlfn.XLOOKUP(D249,FC_Master[Cost Center],FC_Master[rollup FC '#])","v":1150010001},null,null,null,null,null,null,null,null,null,115,"115Kimberly Elizondo",10051477,"115ElizondoK",1150010001]
[115,"115Jonathan Harris",10051576,1150010001,{"$f":"_xlfn.XLOOKUP(D250,FC_Master[Cost Center],FC_Master[rollup FC '#])","v":1150010001},null,null,null,null,null,null,null,null,null,115,"115Jonathan Harris",10051576,"115HarrisJ",1150010001]
[115,"115Anthony Webb",10051651,1150010001,{"$f":"_xlfn.XLOOKUP(D251,FC_Master[Cost Center],FC_Master[rollup FC '#])","v":1150010001},null,null,null,null,null,null,null,null,null,115,"115Anthony Webb",10051651,"115WebbA",1150010001]
[115,"115Logan Brown",10051826,1150010001,{"$f":"_xlfn.XLOOKUP(D252,FC_Master[Cost Center],FC_Master[rollup FC '#])","v":1150010001},null,null,null,null,null,null,null,null,null,115,"115Logan Brown",10051826,"115BrownL",1150010001]
[115,"115Veronica Frederick",10051926,1150010001,{"$f":"_xlfn.XLOOKUP(D253,FC_Master[Cost Center],FC_Master[rollup FC '#])","v":1150010001},null,null,null,null,null,null,null,null,null,115,"115Veronica Frederick",10051926,"115FredericV",1150010001]
[115,"115Previous Buyers",10052701,1150010001,{"$f":"_xlfn.XLOOKUP(D254,FC_Master[Cost Center],FC_Master[rollup FC '#])","v":1150010001},null,null,null,null,null,null,null,null,null,115,"115Previous Buyers",10052701,"115PrevBuyer",1150010001]
[115,"115April Cook",10052801,1150010001,{"$f":"_xlfn.XLOOKUP(D255,FC_Master[Cost Center],FC_Master[rollup FC '#])","v":1150010001},"Not in PPOSE",null,null,null,null,null,null,null,null,115,"115April Cook",10052801,"115CookA",1150010001]
[115,"115Steve Villarreal",10052851,1150010001,{"$f":"_xlfn.XLOOKUP(D256,FC_Master[Cost Center],FC_Master[rollup FC '#])","v":1150010001},null,null,null,null,null,null,null,null,null,115,"115Steve Villarreal",10052851,"115VillarreS",1150010001]
[115,"115Nicole Goldbach",10053977,1150010001,{"$f":"_xlfn.XLOOKUP(D257,FC_Master[Cost Center],FC_Master[rollup FC '#])","v":1150010001},null,null,null,null,null,null,null,null,null,115,"115Nicole Goldbach",10053977,"115GoldbachN",1150010001]
[115,"115Ben Suddaby",10053978,1150010001,{"$f":"_xlfn.XLOOKUP(D258,FC_Master[Cost Center],FC_Master[rollup FC '#])","v":1150010001},null,null,null,null,null,null,null,null,null,115,"115Ben Suddaby",10053978,"115SuddabyB",1150010001]
[{"$f":"O259","v":115},{"$f":"P259","v":"115Ashley Tovar"},{"$f":"VALUE(Q259)","v":10053979},{"$f":"VALUE(S259)","v":1150010001},{"$f":"_xlfn.XLOOKUP(D259,FC_Master[Cost Center],FC_Master[rollup FC '#])","v":1150010001},null,null,null,null,null,null,null,null,null,115,"115Ashley Tovar",10053979,"115TovarA",1150010001]
[115,"115Purchasing Ops Project Coordinator",10054251,1150010001,{"$f":"_xlfn.XLOOKUP(D260,FC_Master[Cost Center],FC_Master[rollup FC '#])","v":1150010001},null,null,null,null,null,null,null,null,null,115,"115Purchasing Ops Project Coordinator",10054251,"115OpsProjC",1150010001]
[115,"115Teri Mendez",10054626,1150010001,{"$f":"_xlfn.XLOOKUP(D261,FC_Master[Cost Center],FC_Master[rollup FC '#])","v":1150010001},null,null,null,null,null,null,null,null,null,115,"115Teri Mendez",10054626,"115MendezT",1150010001]
[115,"115Purchasing Assets",10050976,1150020001,{"$f":"_xlfn.XLOOKUP(D262,FC_Master[Cost Center],FC_Master[rollup FC '#])","v":1150020001},null,null,null,null,null,null,null,null,null,115,"115Purchasing Assets",10050976,"115FAst",1150020001]
[115,"115Purchasing HUB Program",10000118,1150030001,{"$f":"_xlfn.XLOOKUP(D263,FC_Master[Cost Center],FC_Master[rollup FC '#])","v":1150030001},null,null,null,null,null,null,null,null,null,115,"115Purchasing HUB Program",10000118,"115HUB",1150030001]
[115,"115Purchasing HUB Team",10053926,1150030001,{"$f":"_xlfn.XLOOKUP(D264,FC_Master[Cost Center],FC_Master[rollup FC '#])","v":1150030001},null,null,null,null,null,null,null,null,null,115,"115Purchasing HUB Team",10053926,"115HUBT",1150030001]
[115,"115Lee Perry",10000730,1150040001,{"$f":"_xlfn.XLOOKUP(D265,FC_Master[Cost Center],FC_Master[rollup FC '#])","v":1150040001},null,null,null,null,null,null,null,null,null,115,"115Lee Perry",10000730,"115PerryJ",1150040001]
[115,"115Lee Perry",10000730,1150040001,{"$f":"_xlfn.XLOOKUP(D266,FC_Master[Cost Center],FC_Master[rollup FC '#])","v":1150040001},null,null,null,null,null,null,null,null,null,115,"115Lee Perry",10000730,"115PerryJ",1150040001]
[115,"115Jorge Talavera",10000738,1150040001,{"$f":"_xlfn.XLOOKUP(D267,FC_Master[Cost Center],FC_Master[rollup FC '#])","v":1150040001},null,null,null,null,null,null,null,null,null,115,"115Jorge Talavera",10000738,"115TalaveJ",1150040001]
[115,"115Jorge Talavera",10000738,1150040001,{"$f":"_xlfn.XLOOKUP(D268,FC_Master[Cost Center],FC_Master[rollup FC '#])","v":1150040001},null,null,null,null,null,null,null,null,null,115,"115Jorge Talavera",10000738,"115TalaveJ",1150040001]
[115,"115Loren Breland",10000740,1150040001,{"$f":"_xlfn.XLOOKUP(D269,FC_Master[Cost Center],FC_Master[rollup FC '#])","v":1150040001},null,null,null,null,null,null,null,null,null,115,"115Loren Breland",10000740,"115BrelanL",1150040001]
[115,"115Lori Clyde",10000744,1150040001,{"$f":"_xlfn.XLOOKUP(D270,FC_Master[Cost Center],FC_Master[rollup FC '#])","v":1150040001},null,null,null,null,null,null,null,null,null,115,"115Lori Clyde",10000744,"115ClydeL",1150040001]
[115,"115Wade Laursen",10050051,1150040001,{"$f":"_xlfn.XLOOKUP(D271,FC_Master[Cost Center],FC_Master[rollup FC '#])","v":1150040001},null,null,null,null,null,null,null,null,null,115,"115Wade Laursen",10050051,"115LaursenW",1150040001]
[115,"115Samuel Francis",10050052,1150040001,{"$f":"_xlfn.XLOOKUP(D272,FC_Master[Cost Center],FC_Master[rollup FC '#])","v":1150040001},null,null,null,null,null,null,null,null,null,115,"115Samuel Francis",10050052,"115FrancisS",1150040001]
[115,"115Jean Liburd",10051351,1150040001,{"$f":"_xlfn.XLOOKUP(D273,FC_Master[Cost Center],FC_Master[rollup FC '#])","v":1150040001},null,null,null,null,null,null,null,null,null,115,"115Jean Liburd",10051351,"115LiburdJ",1150040001]
[115,"115Patricia Estrada",10052001,1150040001,{"$f":"_xlfn.XLOOKUP(D274,FC_Master[Cost Center],FC_Master[rollup FC '#])","v":1150040001},null,null,null,null,null,null,null,null,null,115,"115Patricia Estrada",10052001,"115EstradaP",1150040001]
[115,"115Lynn Woods",10052051,1150040001,{"$f":"_xlfn.XLOOKUP(D275,FC_Master[Cost Center],FC_Master[rollup FC '#])","v":1150040001},null,null,null,null,null,null,null,null,null,115,"115Lynn Woods",10052051,"115Woods",1150040001]
[115,"115James Carey",10052201,1150040001,{"$f":"_xlfn.XLOOKUP(D276,FC_Master[Cost Center],FC_Master[rollup FC '#])","v":1150040001},null,null,null,null,null,null,null,null,null,115,"115James Carey",10052201,"115CareyJ",1150040001]
[115,"115Purchasing Commodities/IT",10052276,1150040001,{"$f":"_xlfn.XLOOKUP(D277,FC_Master[Cost Center],FC_Master[rollup FC '#])","v":1150040001},null,null,null,null,null,null,null,null,null,115,"115Purchasing Commodities/IT",10052276,"115PurComdIT",1150040001]
[115,"115Purchasing Construction",10052277,1150040001,{"$f":"_xlfn.XLOOKUP(D278,FC_Master[Cost Center],FC_Master[rollup FC '#])","v":1150040001},null,null,null,null,null,null,null,null,null,115,"115Purchasing Construction",10052277,"115PurCnstn",1150040001]
[115,"115Sara Kassem",10052476,1150040001,{"$f":"_xlfn.XLOOKUP(D279,FC_Master[Cost Center],FC_Master[rollup FC '#])","v":1150040001},null,null,null,null,null,null,null,null,null,115,"115Sara Kassem",10052476,"115KassemS",1150040001]
[115,"115Limbania Rodriguez",10052477,1150040001,{"$f":"_xlfn.XLOOKUP(D280,FC_Master[Cost Center],FC_Master[rollup FC '#])","v":1150040001},null,null,null,null,null,null,null,null,null,115,"115Limbania Rodriguez",10052477,"115RodrigL",1150040001]
[115,"115Limbania Rodriguez",10052477,1150040001,{"$f":"_xlfn.XLOOKUP(D281,FC_Master[Cost Center],FC_Master[rollup FC '#])","v":1150040001},null,null,null,null,null,null,null,null,null,115,"115Limbania Rodriguez",10052477,"115RodrigL",1150040001]
[115,"115Purchasing Procurement",10052676,1150040001,{"$f":"_xlfn.XLOOKUP(D282,FC_Master[Cost Center],FC_Master[rollup FC '#])","v":1150040001},null,null,null,null,null,null,null,null,null,115,"115Purchasing Procurement",10052676,"115Procure",1150040001]
[115,"115Purchasing Backend Support",10052677,1150040001,{"$f":"_xlfn.XLOOKUP(D283,FC_Master[Cost Center],FC_Master[rollup FC '#])","v":1150040001},null,null,null,null,null,null,null,null,null,115,"115Purchasing Backend Support",10052677,"115PurBESp",1150040001]
[115,"115Jennifer Winkler",10052751,1150040001,{"$f":"_xlfn.XLOOKUP(D284,FC_Master[Cost Center],FC_Master[rollup FC '#])","v":1150040001},null,null,null,null,null,null,null,null,null,115,"115Jennifer Winkler",10052751,"115WinklerJ",1150040001]
[115,"115Jennifer Winkler",10052751,1150040001,{"$f":"_xlfn.XLOOKUP(D285,FC_Master[Cost Center],FC_Master[rollup FC '#])","v":1150040001},null,null,null,null,null,null,null,null,null,115,"115Jennifer Winkler",10052751,"115WinklerJ",1150040001]
[115,"115Tawana Gardner",10052752,1150040001,{"$f":"_xlfn.XLOOKUP(D286,FC_Master[Cost Center],FC_Master[rollup FC '#])","v":1150040001},null,null,null,null,null,null,null,null,null,115,"115Tawana Gardner",10052752,"115GardnerT",1150040001]
[115,"115Priscilla Harrington",10053176,1150040001,{"$f":"_xlfn.XLOOKUP(D287,FC_Master[Cost Center],FC_Master[rollup FC '#])","v":1150040001},null,null,null,null,null,null,null,null,null,115,"115Priscilla Harrington",10053176,"115HarringtP",1150040001]
[115,"115Jennifer Proctor Romero",10053337,1150040001,{"$f":"_xlfn.XLOOKUP(D288,FC_Master[Cost Center],FC_Master[rollup FC '#])","v":1150040001},null,null,null,null,null,null,null,null,null,115,"115Jennifer Proctor Romero",10053337,"115RomeroJ",1150040001]
[115,"115Jerry Jones",10053451,1150040001,{"$f":"_xlfn.XLOOKUP(D289,FC_Master[Cost Center],FC_Master[rollup FC '#])","v":1150040001},null,null,null,null,null,null,null,null,null,115,"115Jerry Jones",10053451,"115JonesJ",1150040001]
[115,"115Geri Castaneda",10053477,1150040001,{"$f":"_xlfn.XLOOKUP(D290,FC_Master[Cost Center],FC_Master[rollup FC '#])","v":1150040001},null,null,null,null,null,null,null,null,null,115,"115Geri Castaneda",10053477,"115CastanedG",1150040001]
[115,"115Randle Jackson",10053594,1150040001,{"$f":"_xlfn.XLOOKUP(D291,FC_Master[Cost Center],FC_Master[rollup FC '#])","v":1150040001},null,null,null,null,null,null,null,null,null,115,"115Randle Jackson",10053594,"115JacksonR",1150040001]
[115,"115Karina Damian",10053677,1150040001,{"$f":"_xlfn.XLOOKUP(D292,FC_Master[Cost Center],FC_Master[rollup FC '#])","v":1150040001},null,null,null,null,null,null,null,null,null,115,"115Karina Damian",10053677,"115DamianK",1150040001]
[115,"115Bridgett Kovar",10053876,1150040001,{"$f":"_xlfn.XLOOKUP(D293,FC_Master[Cost Center],FC_Master[rollup FC '#])","v":1150040001},null,null,null,null,null,null,null,null,null,115,"115Bridgett Kovar",10053876,"115KovarB",1150040001]
[115,"115Jamal Williams",10054351,1150040001,{"$f":"_xlfn.XLOOKUP(D294,FC_Master[Cost Center],FC_Master[rollup FC '#])","v":1150040001},null,null,null,null,null,null,null,null,null,115,"115Jamal Williams",10054351,"115WilliamsJ",1150040001]
[115,"115Miriam Hogans",10054602,1150040001,{"$f":"_xlfn.XLOOKUP(D295,FC_Master[Cost Center],FC_Master[rollup FC '#])","v":1150040001},null,null,null,null,null,null,null,null,null,115,"115Miriam Hogans",10054602,"115HogansM",1150040001]
[115,"115Tina Litzner",10054826,1150040001,{"$f":"_xlfn.XLOOKUP(D296,FC_Master[Cost Center],FC_Master[rollup FC '#])","v":1150040001},null,null,null,null,null,null,null,null,null,115,"115Tina Litzner",10054826,"115LitznerT",1150040001]
[115,"115Thomas Lynch",10054827,1150040001,{"$f":"_xlfn.XLOOKUP(D297,FC_Master[Cost Center],FC_Master[rollup FC '#])","v":1150040001},null,null,null,null,null,null,null,null,null,115,"115Thomas Lynch",10054827,"115LynchT",1150040001]
[115,"115Brandon Hoffman",10054851,1150040001,{"$f":"_xlfn.XLOOKUP(D298,FC_Master[Cost Center],FC_Master[rollup FC '#])","v":1150040001},null,null,null,null,null,null,null,null,null,115,"115Brandon Hoffman",10054851,"115HoffmanB",1150040001]
[115,"115Pamela Quiroz",10054878,1150040001,{"$f":"_xlfn.XLOOKUP(D299,FC_Master[Cost Center],FC_Master[rollup FC '#])","v":1150040001},null,null,null,null,null,null,null,null,null,115,"115Pamela Quiroz",10054878,"115QuirozP",1150040001]
[115,"115Joe Hon",10054951,1150040001,{"$f":"_xlfn.XLOOKUP(D300,FC_Master[Cost Center],FC_Master[rollup FC '#])","v":1150040001},null,null,null,null,null,null,null,null,null,115,"115Joe Hon",10054951,"115HonJ",1150040001]
[115,"115Christopher Milledge",10055776,1150040001,{"$f":"_xlfn.XLOOKUP(D301,FC_Master[Cost Center],FC_Master[rollup FC '#])","v":1150040001},null,null,null,null,null,null,null,null,null,115,"115Christopher Milledge",10055776,"115MilledgeC",1150040001]
[115,"115Tara Hollingsworth",10055805,1150040001,{"$f":"_xlfn.XLOOKUP(D302,FC_Master[Cost Center],FC_Master[rollup FC '#])","v":1150040001},null,null,null,null,null,null,null,null,null,115,"115Tara Hollingsworth",10055805,"115HollingsT",1150040001]
[115,"115Ardian Shaholli",10055826,1150040001,{"$f":"_xlfn.XLOOKUP(D303,FC_Master[Cost Center],FC_Master[rollup FC '#])","v":1150040001},null,null,null,null,null,null,null,null,null,115,"115Ardian Shaholli",10055826,"115ShaholliA",1150040001]
[115,"115Olivia Thomas",10055951,1150040001,{"$f":"_xlfn.XLOOKUP(D304,FC_Master[Cost Center],FC_Master[rollup FC '#])","v":1150040001},null,null,null,null,null,null,null,null,null,115,"115Olivia Thomas",10055951,"115ThomasO",1150040001]
[115,"115Nick Morrow",10056101,1150040001,{"$f":"_xlfn.XLOOKUP(D305,FC_Master[Cost Center],FC_Master[rollup FC '#])","v":1150040001},null,null,null,null,null,null,null,null,null,115,"115Nick Morrow",10056101,"115MorrowN",1150040001]
[115,"115Lezlie Mills",10056179,1150040001,{"$f":"_xlfn.XLOOKUP(D306,FC_Master[Cost Center],FC_Master[rollup FC '#])","v":1150040001},null,null,null,null,null,null,null,null,null,115,"115Lezlie Mills",10056179,"115MillsL",1150040001]
[115,"115Miguel Mondragon",10056326,1150040001,{"$f":"_xlfn.XLOOKUP(D307,FC_Master[Cost Center],FC_Master[rollup FC '#])","v":1150040001},null,null,null,null,null,null,null,null,null,115,"115Miguel Mondragon",10056326,"115MondragoM",1150040001]
[115,"115Tammy Maines",10056327,1150040001,{"$f":"_xlfn.XLOOKUP(D308,FC_Master[Cost Center],FC_Master[rollup FC '#])","v":1150040001},null,null,null,null,null,null,null,null,null,115,"115Tammy Maines",10056327,"115MainesT",1150040001]
[115,"115Purchasing Contract Compliance",10052401,1150050001,{"$f":"_xlfn.XLOOKUP(D309,FC_Master[Cost Center],FC_Master[rollup FC '#])","v":1150050001},null,null,null,null,null,null,null,null,null,115,"115Purchasing Contract Compliance",10052401,"115CntrcCm",1150050001]
[116,"116VS Veterans Service",10000119,1160010001,{"$f":"_xlfn.XLOOKUP(D310,FC_Master[Cost Center],FC_Master[rollup FC '#])","v":1160010001},null,null,null,null,null,null,null,null,null,116,"116VS Veterans Service",10000119,"116VetSv",1160010001]
[116,"116VS Veterans Service Officer",10000777,1160010001,{"$f":"_xlfn.XLOOKUP(D311,FC_Master[Cost Center],FC_Master[rollup FC '#])","v":1160010001},null,null,null,null,null,null,null,null,null,116,"116VS Veterans Service Officer",10000777,"116VS",1160010001]
[119,"119County Attorney Administrative 1",10000128,1190010001,{"$f":"_xlfn.XLOOKUP(D312,FC_Master[Cost Center],FC_Master[rollup FC '#])","v":1190010001},null,null,null,null,null,null,null,null,null,119,"119County Attorney Administrative 1",10000128,"119Adm1",1190010001]
[119,"119County Attorney Administrative 2",10000129,1190010001,{"$f":"_xlfn.XLOOKUP(D313,FC_Master[Cost Center],FC_Master[rollup FC '#])","v":1190010001},null,null,null,null,null,null,null,null,null,119,"119County Attorney Administrative 2",10000129,"119Adm2",1190010001]
[119,"119County Attorney Business Analysis",10000130,1190010001,{"$f":"_xlfn.XLOOKUP(D314,FC_Master[Cost Center],FC_Master[rollup FC '#])","v":1190010001},null,null,null,null,null,null,null,null,null,119,"119County Attorney Business Analysis",10000130,"119BA",1190010001]
[119,"119Enforcement Litigation & Collections",10000137,1190010001,{"$f":"_xlfn.XLOOKUP(D315,FC_Master[Cost Center],FC_Master[rollup FC '#])","v":1190010001},null,null,null,null,null,null,null,null,null,119,"119Enforcement Litigation & Collections",10000137,"119EnfLtgCln",1190010001]
[119,"119County Attorney Litigation",10000138,1190010001,{"$f":"_xlfn.XLOOKUP(D316,FC_Master[Cost Center],FC_Master[rollup FC '#])","v":1190010001},null,null,null,null,null,null,null,null,null,119,"119County Attorney Litigation",10000138,"119Ltgtn",1190010001]
[119,"119County Attorney Transactions",10000140,1190010001,{"$f":"_xlfn.XLOOKUP(D317,FC_Master[Cost Center],FC_Master[rollup FC '#])","v":1190010001},null,null,null,null,null,null,null,null,null,119,"119County Attorney Transactions",10000140,"119Trnsns",1190010001]
[119,"119County Attorney Health Services",10000141,1190010001,{"$f":"_xlfn.XLOOKUP(D318,FC_Master[Cost Center],FC_Master[rollup FC '#])","v":1190010001},null,null,null,null,null,null,null,null,null,119,"119County Attorney Health Services",10000141,"119HlhSv",1190010001]
[119,"119County Attorney Land Use",10000142,1190010001,{"$f":"_xlfn.XLOOKUP(D319,FC_Master[Cost Center],FC_Master[rollup FC '#])","v":1190010001},null,null,null,null,null,null,null,null,null,119,"119County Attorney Land Use",10000142,"119LandUse",1190010001]
[119,"119County Attorney Administrative 3",10055376,1190010001,{"$f":"_xlfn.XLOOKUP(D320,FC_Master[Cost Center],FC_Master[rollup FC '#])","v":1190010001},null,null,null,null,null,null,null,null,null,119,"119County Attorney Administrative 3",10055376,"119Adm3",1190010001]
[119,"119County Attorney Trial Director",10000131,1190020001,{"$f":"_xlfn.XLOOKUP(D321,FC_Master[Cost Center],FC_Master[rollup FC '#])","v":1190020001},null,null,null,null,null,null,null,null,null,119,"119County Attorney Trial Director",10000131,"119TrialDir",1190020001]
[119,"119County Attorney Intake, RcdsMgmt",10000132,1190020001,{"$f":"_xlfn.XLOOKUP(D322,FC_Master[Cost Center],FC_Master[rollup FC '#])","v":1190020001},null,null,null,null,null,null,null,null,null,119,"119County Attorney Intake, RcdsMgmt",10000132,"119IntkCks",1190020001]
[{"$f":"O323","v":119},{"$f":"P323","v":"119County Attorney Trial"},{"$f":"VALUE(Q323)","v":10000133},{"$f":"VALUE(S323)","v":1190020001},{"$f":"_xlfn.XLOOKUP(D323,FC_Master[Cost Center],FC_Master[rollup FC '#])","v":1190020001},null,null,null,null,null,null,null,null,null,119,"119County Attorney Trial",10000133,"119Trial",1190020001]
[119,"119County Attorney Intake",10000134,1190020001,{"$f":"_xlfn.XLOOKUP(D324,FC_Master[Cost Center],FC_Master[rollup FC '#])","v":1190020001},null,null,null,null,null,null,null,null,null,119,"119County Attorney Intake",10000134,"119Intake",1190020001]
[119,"119County Attorney Family Violence",10000135,1190020001,{"$f":"_xlfn.XLOOKUP(D325,FC_Master[Cost Center],FC_Master[rollup FC '#])","v":1190020001},null,null,null,null,null,null,null,null,null,119,"119County Attorney Family Violence",10000135,"119FamVlc",1190020001]
[119,"119County Attorney Appellate",10000136,1190020001,{"$f":"_xlfn.XLOOKUP(D326,FC_Master[Cost Center],FC_Master[rollup FC '#])","v":1190020001},null,null,null,null,null,null,null,null,null,119,"119County Attorney Appellate",10000136,"119Applt",1190020001]
[119,"119County Attorney Investigative",10000143,1190020001,{"$f":"_xlfn.XLOOKUP(D327,FC_Master[Cost Center],FC_Master[rollup FC '#])","v":1190020001},null,null,null,null,null,null,null,null,null,119,"119County Attorney Investigative",10000143,"119Invstgtv",1190020001]
[119,"119County Attorney Records Management",10000145,1190020001,{"$f":"_xlfn.XLOOKUP(D328,FC_Master[Cost Center],FC_Master[rollup FC '#])","v":1190020001},null,null,null,null,null,null,null,null,null,119,"119County Attorney Records Management",10000145,"119RcdMgmt",1190020001]
[119,"119County Attorney Victim Services",10056329,1190020001,{"$f":"_xlfn.XLOOKUP(D329,FC_Master[Cost Center],FC_Master[rollup FC '#])","v":1190020001},null,null,null,null,null,null,null,null,null,119,"119County Attorney Victim Services",10056329,"119VctmSv",1190020001]
[119,"119County Attorney",10000125,1190030001,{"$f":"_xlfn.XLOOKUP(D330,FC_Master[Cost Center],FC_Master[rollup FC '#])","v":1190030001},null,null,null,null,null,null,null,null,null,119,"119County Attorney",10000125,"119CA",1190030001]
[119,"119County Attorney First Assistant",10000126,1190030001,{"$f":"_xlfn.XLOOKUP(D331,FC_Master[Cost Center],FC_Master[rollup FC '#])","v":1190030001},null,null,null,null,null,null,null,null,null,119,"119County Attorney First Assistant",10000126,"1191stAsst",1190030001]
[119,"119County Attorney Executive Assistant",10000127,1190030001,{"$f":"_xlfn.XLOOKUP(D332,FC_Master[Cost Center],FC_Master[rollup FC '#])","v":1190030001},null,null,null,null,null,null,null,null,null,119,"119County Attorney Executive Assistant",10000127,"119ExcAsst",1190030001]
[119,"119County Attorney Checks",10000146,1190030001,{"$f":"_xlfn.XLOOKUP(D333,FC_Master[Cost Center],FC_Master[rollup FC '#])","v":1190030001},null,null,null,null,null,null,null,null,null,119,"119County Attorney Checks",10000146,"119Checks",1190030001]
[119,"119County Attorney Underage Drkg Prvntn",10000144,1190040001,{"$f":"_xlfn.XLOOKUP(D334,FC_Master[Cost Center],FC_Master[rollup FC '#])","v":1190040001},null,null,null,null,null,null,null,null,null,119,"119County Attorney Underage Drkg Prvntn",10000144,"119UDPrvntn",1190040001]
[120,"120County Clerk",10000147,1200010001,{"$f":"_xlfn.XLOOKUP(D335,FC_Master[Cost Center],FC_Master[rollup FC '#])","v":1200010001},null,null,null,null,null,null,null,null,null,120,"120County Clerk",10000147,"120CCk",1200010001]
[120,"120County Clerk Chief Deputy",10000148,1200010001,{"$f":"_xlfn.XLOOKUP(D336,FC_Master[Cost Center],FC_Master[rollup FC '#])","v":1200010001},null,null,null,null,null,null,null,null,null,120,"120County Clerk Chief Deputy",10000148,"120ChfDpCCk",1200010001]
[120,"120County Clerk Administrative",10000149,1200010001,{"$f":"_xlfn.XLOOKUP(D337,FC_Master[Cost Center],FC_Master[rollup FC '#])","v":1200010001},null,null,null,null,null,null,null,null,null,120,"120County Clerk Administrative",10000149,"120Adm",1200010001]
[120,"120County Clerk Accounting",10000151,1200010001,{"$f":"_xlfn.XLOOKUP(D338,FC_Master[Cost Center],FC_Master[rollup FC '#])","v":1200010001},null,null,null,null,null,null,null,null,null,120,"120County Clerk Accounting",10000151,"120Actg",1200010001]
[120,"120County Clerk Court Services",10050951,1200010001,{"$f":"_xlfn.XLOOKUP(D339,FC_Master[Cost Center],FC_Master[rollup FC '#])","v":1200010001},null,null,null,null,null,null,null,null,null,120,"120County Clerk Court Services",10050951,"120CtSv",1200010001]
[120,"120County Clerk Administrative 2",10053326,1200010001,{"$f":"_xlfn.XLOOKUP(D340,FC_Master[Cost Center],FC_Master[rollup FC '#])","v":1200010001},null,null,null,null,null,null,null,null,null,120,"120County Clerk Administrative 2",10053326,"120Adm2",1200010001]
[120,"120County Clerk Admin Public Relations",10056726,1200010001,{"$f":"_xlfn.XLOOKUP(D341,FC_Master[Cost Center],FC_Master[rollup FC '#])","v":1200010001},null,null,null,null,null,null,null,null,null,120,"120County Clerk Admin Public Relations",10056726,"120AdmPbR",1200010001]
[120,"120County Clerk Admin Team",10055026,1200010108,{"$f":"_xlfn.XLOOKUP(D342,FC_Master[Cost Center],FC_Master[rollup FC '#])","v":1200010108},null,null,null,null,null,null,null,null,null,120,"120County Clerk Admin Team",10055026,"120AdmT",1200010108]
[120,"120County Clerk Accounting 2",10055876,1200030001,{"$f":"_xlfn.XLOOKUP(D343,FC_Master[Cost Center],FC_Master[rollup FC '#])","v":1200030001},null,null,null,null,null,null,null,null,null,120,"120County Clerk Accounting 2",10055876,"120Actg2",1200030001]
[120,"120County Clerk Elections Director",10000152,1200040001,{"$f":"_xlfn.XLOOKUP(D344,FC_Master[Cost Center],FC_Master[rollup FC '#])","v":1200040001},null,null,null,null,null,null,null,null,null,120,"120County Clerk Elections Director",10000152,"120ElnDir",1200040001]
[120,"120County Clerk Elections Early Voting",10050076,1200040001,{"$f":"_xlfn.XLOOKUP(D345,FC_Master[Cost Center],FC_Master[rollup FC '#])","v":1200040001},null,null,null,null,null,null,null,null,null,120,"120County Clerk Elections Early Voting",10050076,"120ElnEV",1200040001]
[120,"120Count Clerk Elections Management",10052501,1200040001,{"$f":"_xlfn.XLOOKUP(D346,FC_Master[Cost Center],FC_Master[rollup FC '#])","v":1200040001},null,null,null,null,null,null,null,null,null,120,"120Count Clerk Elections Management",10052501,"120ElnMgmt",1200040001]
[120,"120County Clerk Personnel",10053327,1200040001,{"$f":"_xlfn.XLOOKUP(D347,FC_Master[Cost Center],FC_Master[rollup FC '#])","v":1200040001},null,null,null,null,null,null,null,null,null,120,"120County Clerk Personnel",10053327,"120Prsnl",1200040001]
[120,"120County Clerk Ballot Tech",10053328,1200040001,{"$f":"_xlfn.XLOOKUP(D348,FC_Master[Cost Center],FC_Master[rollup FC '#])","v":1200040001},null,null,null,null,null,null,null,null,null,120,"120County Clerk Ballot Tech",10053328,"120BtTech",1200040001]
[120,"120 County Clerk Equipment",10053330,1200040001,{"$f":"_xlfn.XLOOKUP(D349,FC_Master[Cost Center],FC_Master[rollup FC '#])","v":1200040001},null,null,null,null,null,null,null,null,null,120,"120 County Clerk Equipment",10053330,"120Eqp",1200040001]
[120,"120County Clerk Operations",10053331,1200040001,{"$f":"_xlfn.XLOOKUP(D350,FC_Master[Cost Center],FC_Master[rollup FC '#])","v":1200040001},null,null,null,null,null,null,null,null,null,120,"120County Clerk Operations",10053331,"120Ops",1200040001]
[120,"120County Clerk Elections Management 2",10053980,1200040001,{"$f":"_xlfn.XLOOKUP(D351,FC_Master[Cost Center],FC_Master[rollup FC '#])","v":1200040001},null,null,null,null,null,null,null,null,null,120,"120County Clerk Elections Management 2",10053980,"12ElnMgmt2",1200040001]
[120,"120County Clerk Elections Training",10055976,1200040001,{"$f":"_xlfn.XLOOKUP(D352,FC_Master[Cost Center],FC_Master[rollup FC '#])","v":1200040001},null,null,null,null,null,null,null,null,null,120,"120County Clerk Elections Training",10055976,"120Training",1200040001]
[120,"120County Clerk Probate",10050876,1200060001,{"$f":"_xlfn.XLOOKUP(D353,FC_Master[Cost Center],FC_Master[rollup FC '#])","v":1200060001},null,null,null,null,null,null,null,null,null,120,"120County Clerk Probate",10050876,"120Prb",1200060001]
[120,"120County Clerk MH/Probate Team",10051476,1200060001,{"$f":"_xlfn.XLOOKUP(D354,FC_Master[Cost Center],FC_Master[rollup FC '#])","v":1200060001},null,null,null,null,null,null,null,null,null,120,"120County Clerk MH/Probate Team",10051476,"120MHPrbT",1200060001]
[120,"120County Clerk Civil",10000154,1200070001,{"$f":"_xlfn.XLOOKUP(D355,FC_Master[Cost Center],FC_Master[rollup FC '#])","v":1200070001},null,null,null,null,null,null,null,null,null,120,"120County Clerk Civil",10000154,"120Civil",1200070001]
[120,"120County Clerk Civil Team",10050228,1200070001,{"$f":"_xlfn.XLOOKUP(D356,FC_Master[Cost Center],FC_Master[rollup FC '#])","v":1200070001},null,null,null,null,null,null,null,null,null,120,"120County Clerk Civil Team",10050228,"120Civ",1200070001]
[120,"120County Clerk Collections Team",10053336,1200070001,{"$f":"_xlfn.XLOOKUP(D357,FC_Master[Cost Center],FC_Master[rollup FC '#])","v":1200070001},null,null,null,null,null,null,null,null,null,120,"120County Clerk Collections Team",10053336,"120ClnT",1200070001]
[120,"120County Clerk Misdemeanor Records",10000155,1200080001,{"$f":"_xlfn.XLOOKUP(D358,FC_Master[Cost Center],FC_Master[rollup FC '#])","v":1200080001},null,null,null,null,null,null,null,null,null,120,"120County Clerk Misdemeanor Records",10000155,"120MsdrRcd",1200080001]
[120,"120County Clerk Misdemeanor 2",10051102,1200080001,{"$f":"_xlfn.XLOOKUP(D359,FC_Master[Cost Center],FC_Master[rollup FC '#])","v":1200080001},null,null,null,null,null,null,null,null,null,120,"120County Clerk Misdemeanor 2",10051102,"120Msdr2",1200080001]
[120,"120County Clerk CCII's",10053351,1200080001,{"$f":"_xlfn.XLOOKUP(D360,FC_Master[Cost Center],FC_Master[rollup FC '#])","v":1200080001},null,null,null,null,null,null,null,null,null,120,"120County Clerk CCII's",10053351,"120CCII's",1200080001]
[120,"120County Clerk Bonds",10053352,1200080001,{"$f":"_xlfn.XLOOKUP(D361,FC_Master[Cost Center],FC_Master[rollup FC '#])","v":1200080001},null,null,null,null,null,null,null,null,null,120,"120County Clerk Bonds",10053352,"120Bonds",1200080001]
[120,"120County Clerk FC",10053354,1200080001,{"$f":"_xlfn.XLOOKUP(D362,FC_Master[Cost Center],FC_Master[rollup FC '#])","v":1200080001},null,null,null,null,null,null,null,null,null,120,"120County Clerk FC",10053354,"120FC",1200080001]
[120,"120County Clerk New Cases",10053355,1200080001,{"$f":"_xlfn.XLOOKUP(D363,FC_Master[Cost Center],FC_Master[rollup FC '#])","v":1200080001},null,null,null,null,null,null,null,null,null,120,"120County Clerk New Cases",10053355,"120NCases",1200080001]
[120,"120County Clerk Recording",10000156,1200090001,{"$f":"_xlfn.XLOOKUP(D364,FC_Master[Cost Center],FC_Master[rollup FC '#])","v":1200090001},null,null,null,null,null,null,null,null,null,120,"120County Clerk Recording",10000156,"120Rcdg",1200090001]
[120,"120Count Clerk Indexing",10053353,1200090001,{"$f":"_xlfn.XLOOKUP(D365,FC_Master[Cost Center],FC_Master[rollup FC '#])","v":1200090001},null,null,null,null,null,null,null,null,null,120,"120Count Clerk Indexing",10053353,"120Indx",1200090001]
[120,"120County Clerk Call Center",10053356,1200090001,{"$f":"_xlfn.XLOOKUP(D366,FC_Master[Cost Center],FC_Master[rollup FC '#])","v":1200090001},null,null,null,null,null,null,null,null,null,120,"120County Clerk Call Center",10053356,"120ClC",1200090001]
[120,"120County Clerk Front Desk",10053357,1200090001,{"$f":"_xlfn.XLOOKUP(D367,FC_Master[Cost Center],FC_Master[rollup FC '#])","v":1200090001},null,null,null,null,null,null,null,null,null,120,"120County Clerk Front Desk",10053357,"120FD",1200090001]
[120,"120County Clerk Recording 2",10054876,1200090001,{"$f":"_xlfn.XLOOKUP(D368,FC_Master[Cost Center],FC_Master[rollup FC '#])","v":1200090001},null,null,null,null,null,null,null,null,null,120,"120County Clerk Recording 2",10054876,"120Rcdg",1200090001]
[120,"120County Clerk Recording 2",10054877,1200090001,{"$f":"_xlfn.XLOOKUP(D369,FC_Master[Cost Center],FC_Master[rollup FC '#])","v":1200090001},null,null,null,null,null,null,null,null,null,120,"120County Clerk Recording 2",10054877,"120Rcdg2",1200090001]
[120,"120County Clerk Records Management",10000157,1200100108,{"$f":"_xlfn.XLOOKUP(D370,FC_Master[Cost Center],FC_Master[rollup FC '#])","v":1200100108},null,null,null,null,null,null,null,null,null,120,"120County Clerk Records Management",10000157,"120RcdMgmt",1200100108]
[120,"120County Clerk RM Offsite Records",10053332,1200100108,{"$f":"_xlfn.XLOOKUP(D371,FC_Master[Cost Center],FC_Master[rollup FC '#])","v":1200100108},null,null,null,null,null,null,null,null,null,120,"120County Clerk RM Offsite Records",10053332,"120OfsRcd",1200100108]
[120,"120County Clerk RM MISD Circulation",10053333,1200100108,{"$f":"_xlfn.XLOOKUP(D372,FC_Master[Cost Center],FC_Master[rollup FC '#])","v":1200100108},null,null,null,null,null,null,null,null,null,120,"120County Clerk RM MISD Circulation",10053333,"120MisdCirc",1200100108]
[120,"120County Clerk RM Probate Records",10053334,1200100108,{"$f":"_xlfn.XLOOKUP(D373,FC_Master[Cost Center],FC_Master[rollup FC '#])","v":1200100108},null,null,null,null,null,null,null,null,null,120,"120County Clerk RM Probate Records",10053334,"120PrbRcd",1200100108]
[120,"120County Clerk RM MISD Research",10053335,1200100108,{"$f":"_xlfn.XLOOKUP(D374,FC_Master[Cost Center],FC_Master[rollup FC '#])","v":1200100108},null,null,null,null,null,null,null,null,null,120,"120County Clerk RM MISD Research",10053335,"120MisdRsh",1200100108]
[120,"120County Clerk RM Civil Records",10056151,1200100108,{"$f":"_xlfn.XLOOKUP(D375,FC_Master[Cost Center],FC_Master[rollup FC '#])","v":1200100108},null,null,null,null,null,null,null,null,null,120,"120County Clerk RM Civil Records",10056151,"120RmCivRcd",1200100108]
[120,"120County Clerk RM MISD Records",10056152,1200100108,{"$f":"_xlfn.XLOOKUP(D376,FC_Master[Cost Center],FC_Master[rollup FC '#])","v":1200100108},null,null,null,null,null,null,null,null,null,120,"120County Clerk RM MISD Records",10056152,"120RmMisdRcd",1200100108]
[120,"120County Clerk Computer Resource Mgmt",10000150,1200100129,{"$f":"_xlfn.XLOOKUP(D377,FC_Master[Cost Center],FC_Master[rollup FC '#])","v":1200100129},null,null,null,null,null,null,null,null,null,120,"120County Clerk Computer Resource Mgmt",10000150,"120CmpRsrc",1200100129]
[121,"121District Clerk",10000158,1210010001,{"$f":"_xlfn.XLOOKUP(D378,FC_Master[Cost Center],FC_Master[rollup FC '#])","v":1210010001},null,null,null,null,null,null,null,null,null,121,"121District Clerk",10000158,"121DistClerk",1210010001]
[121,"121District Clerk Chief Deputy",10000159,1210010001,{"$f":"_xlfn.XLOOKUP(D379,FC_Master[Cost Center],FC_Master[rollup FC '#])","v":1210010001},null,null,null,null,null,null,null,null,null,121,"121District Clerk Chief Deputy",10000159,"121ChfDpDCk",1210010001]
[121,"121District Clerk Civil, Family, Intake",10000160,1210010001,{"$f":"_xlfn.XLOOKUP(D380,FC_Master[Cost Center],FC_Master[rollup FC '#])","v":1210010001},null,null,null,null,null,null,null,null,null,121,"121District Clerk Civil, Family, Intake",10000160,"121CivFam",1210010001]
[121,"121District Clerk Civil Supervisor",10000161,1210010001,{"$f":"_xlfn.XLOOKUP(D381,FC_Master[Cost Center],FC_Master[rollup FC '#])","v":1210010001},null,null,null,null,null,null,null,null,null,121,"121District Clerk Civil Supervisor",10000161,"121CivSupv",1210010001]
[121,"121District Clerk Civil",10000162,1210010001,{"$f":"_xlfn.XLOOKUP(D382,FC_Master[Cost Center],FC_Master[rollup FC '#])","v":1210010001},null,null,null,null,null,null,null,null,null,121,"121District Clerk Civil",10000162,"121Civil",1210010001]
[121,"121District Clerk Family",10000164,1210010001,{"$f":"_xlfn.XLOOKUP(D383,FC_Master[Cost Center],FC_Master[rollup FC '#])","v":1210010001},null,null,null,null,null,null,null,null,null,121,"121District Clerk Family",10000164,"121Family",1210010001]
[121,"121District Clerk Scanning",10000165,1210010001,{"$f":"_xlfn.XLOOKUP(D384,FC_Master[Cost Center],FC_Master[rollup FC '#])","v":1210010001},null,null,null,null,null,null,null,null,null,121,"121District Clerk Scanning",10000165,"121Scng",1210010001]
[121,"121District Clerk Civil Records Public",10000166,1210010001,{"$f":"_xlfn.XLOOKUP(D385,FC_Master[Cost Center],FC_Master[rollup FC '#])","v":1210010001},null,null,null,null,null,null,null,null,null,121,"121District Clerk Civil Records Public",10000166,"121CivRcdPbc",1210010001]
[121,"121District Clerk Financial Manager",10000167,1210010001,{"$f":"_xlfn.XLOOKUP(D386,FC_Master[Cost Center],FC_Master[rollup FC '#])","v":1210010001},null,null,null,null,null,null,null,null,null,121,"121District Clerk Financial Manager",10000167,"121FinMgr",1210010001]
[{"$f":"O387","v":121},{"$f":"P387","v":"121District Clerk Accounting"},{"$f":"VALUE(Q387)","v":10000168},{"$f":"VALUE(S387)","v":1210010001},{"$f":"_xlfn.XLOOKUP(D387,FC_Master[Cost Center],FC_Master[rollup FC '#])","v":1210010001},null,null,null,null,null,null,null,null,null,121,"121District Clerk Accounting",10000168,"121Actg",1210010001]
[121,"121District Clerk Jury",10000174,1210010001,{"$f":"_xlfn.XLOOKUP(D388,FC_Master[Cost Center],FC_Master[rollup FC '#])","v":1210010001},null,null,null,null,null,null,null,null,null,121,"121District Clerk Jury",10000174,"121Jury",1210010001]
[121,"121District Clerk Technical Sv and QA",10000175,1210010001,{"$f":"_xlfn.XLOOKUP(D389,FC_Master[Cost Center],FC_Master[rollup FC '#])","v":1210010001},null,null,null,null,null,null,null,null,null,121,"121District Clerk Technical Sv and QA",10000175,"121TchSv",1210010001]
[121,"121District Clerk Family Atty General",10050426,1210010001,{"$f":"_xlfn.XLOOKUP(D390,FC_Master[Cost Center],FC_Master[rollup FC '#])","v":1210010001},null,null,null,null,null,null,null,null,null,121,"121District Clerk Family Atty General",10050426,"121FamAG",1210010001]
[121,"121District Clerk Financial Collections",10051601,1210010001,{"$f":"_xlfn.XLOOKUP(D391,FC_Master[Cost Center],FC_Master[rollup FC '#])","v":1210010001},null,null,null,null,null,null,null,null,null,121,"121District Clerk Financial Collections",10051601,"121FinCln",1210010001]
[121,"121District Clerk Criminal Director",10000169,1210020001,{"$f":"_xlfn.XLOOKUP(D392,FC_Master[Cost Center],FC_Master[rollup FC '#])","v":1210020001},null,null,null,null,null,null,null,null,null,121,"121District Clerk Criminal Director",10000169,"121CrmDir",1210020001]
[121,"121District Clerk Criminal Supervisor",10000170,1210020001,{"$f":"_xlfn.XLOOKUP(D393,FC_Master[Cost Center],FC_Master[rollup FC '#])","v":1210020001},null,null,null,null,null,null,null,null,null,121,"121District Clerk Criminal Supervisor",10000170,"121CrmSupv",1210020001]
[121,"121District Clerk Criminal",10000171,1210020001,{"$f":"_xlfn.XLOOKUP(D394,FC_Master[Cost Center],FC_Master[rollup FC '#])","v":1210020001},null,null,null,null,null,null,null,null,null,121,"121District Clerk Criminal",10000171,"121Crm",1210020001]
[121,"121District Clerk Grand Jury",10000172,1210020001,{"$f":"_xlfn.XLOOKUP(D395,FC_Master[Cost Center],FC_Master[rollup FC '#])","v":1210020001},null,null,null,null,null,null,null,null,null,121,"121District Clerk Grand Jury",10000172,"121GrandJy",1210020001]
[121,"121District Clerk Criminal Records",10000173,1210020001,{"$f":"_xlfn.XLOOKUP(D396,FC_Master[Cost Center],FC_Master[rollup FC '#])","v":1210020001},null,null,null,null,null,null,null,null,null,121,"121District Clerk Criminal Records",10000173,"121CrmRcd",1210020001]
[121,"121Expunctions Division",10051076,1210020001,{"$f":"_xlfn.XLOOKUP(D397,FC_Master[Cost Center],FC_Master[rollup FC '#])","v":1210020001},null,null,null,null,null,null,null,null,null,121,"121Expunctions Division",10051076,"121ExpunsDiv",1210020001]
[122,"122Civil Courts",10000722,1220010001,{"$f":"_xlfn.XLOOKUP(D398,FC_Master[Cost Center],FC_Master[rollup FC '#])","v":1220010001},null,null,null,null,null,null,null,null,null,122,"122Civil Courts",10000722,"122CivilCt",1220010001]
[122,"122Civil Courts Visiting Judges",10051276,1220010001,{"$f":"_xlfn.XLOOKUP(D399,FC_Master[Cost Center],FC_Master[rollup FC '#])","v":1220010001},null,null,null,null,null,null,null,null,null,122,"122Civil Courts Visiting Judges",10051276,"122VstgJg",1220010001]
[122,"122Civil Courts State IV-D",10056401,1220010001,{"$f":"_xlfn.XLOOKUP(D400,FC_Master[Cost Center],FC_Master[rollup FC '#])","v":1220010001},null,null,null,null,null,null,null,null,null,122,"122Civil Courts State IV-D",10056401,"122SttIV-DCt",1220010001]
[122,"122Civil Courts-126th District Court",10000176,1220030001,{"$f":"_xlfn.XLOOKUP(D401,FC_Master[Cost Center],FC_Master[rollup FC '#])","v":1220010001},null,null,null,null,null,null,null,null,null,122,"122Civil Courts-126th District Court",10000176,"122-126DCt",1220030001]
[122,"122Civil Courts-200th District Court",10000184,1220040001,{"$f":"_xlfn.XLOOKUP(D402,FC_Master[Cost Center],FC_Master[rollup FC '#])","v":1220010001},null,null,null,null,null,null,null,null,null,122,"122Civil Courts-200th District Court",10000184,"122-200DCt",1220040001]
[122,"122Civil Courts-201st District Court",10000181,1220050001,{"$f":"_xlfn.XLOOKUP(D403,FC_Master[Cost Center],FC_Master[rollup FC '#])","v":1220010001},null,null,null,null,null,null,null,null,null,122,"122Civil Courts-201st District Court",10000181,"122-201DCt",1220050001]
[122,"122Civil Courts-250th District Court",10000177,1220060001,{"$f":"_xlfn.XLOOKUP(D404,FC_Master[Cost Center],FC_Master[rollup FC '#])","v":1220010001},null,null,null,null,null,null,null,null,null,122,"122Civil Courts-250th District Court",10000177,"122-250DCt",1220060001]
[122,"122Civil Courts-261st District Court",10000180,1220070001,{"$f":"_xlfn.XLOOKUP(D405,FC_Master[Cost Center],FC_Master[rollup FC '#])","v":1220010001},null,null,null,null,null,null,null,null,null,122,"122Civil Courts-261st District Court",10000180,"122-261DCt",1220070001]
[122,"122Civil Courts-345th District Court",10000185,1220080001,{"$f":"_xlfn.XLOOKUP(D406,FC_Master[Cost Center],FC_Master[rollup FC '#])","v":1220010001},null,null,null,null,null,null,null,null,null,122,"122Civil Courts-345th District Court",10000185,"122-345DCt",1220080001]
[122,"122Civil Courts-353rd District Court",10000183,1220090001,{"$f":"_xlfn.XLOOKUP(D407,FC_Master[Cost Center],FC_Master[rollup FC '#])","v":1220010001},null,null,null,null,null,null,null,null,null,122,"122Civil Courts-353rd District Court",10000183,"122-353DCt",1220090001]
[122,"122Civil Courts-419th District Court",10000182,1220100001,{"$f":"_xlfn.XLOOKUP(D408,FC_Master[Cost Center],FC_Master[rollup FC '#])","v":1220010001},null,null,null,null,null,null,null,null,null,122,"122Civil Courts-419th District Court",10000182,"122-419DCt",1220100001]
[122,"122Civil Courts-53rd District Court",10000179,1220110001,{"$f":"_xlfn.XLOOKUP(D409,FC_Master[Cost Center],FC_Master[rollup FC '#])","v":1220010001},null,null,null,null,null,null,null,null,null,122,"122Civil Courts-53rd District Court",10000179,"122-53DCt",1220110001]
[122,"122Civil Courts-98th District Court",10000178,1220120001,{"$f":"_xlfn.XLOOKUP(D410,FC_Master[Cost Center],FC_Master[rollup FC '#])","v":1220010001},null,null,null,null,null,null,null,null,null,122,"122Civil Courts-98th District Court",10000178,"122-98DCt",1220120001]
[122,"122Civil Courts-Associate Judge Hathcock",10000186,1220130001,{"$f":"_xlfn.XLOOKUP(D411,FC_Master[Cost Center],FC_Master[rollup FC '#])","v":1220010001},null,null,null,null,null,null,null,null,null,122,"122Civil Courts-Associate Judge Hathcock",10000186,"122AssocJg1",1220130001]
[122,"122Civil Cts-Associate Judge De La Llata",10000187,1220140001,{"$f":"_xlfn.XLOOKUP(D412,FC_Master[Cost Center],FC_Master[rollup FC '#])","v":1220010001},null,null,null,null,null,null,null,null,null,122,"122Civil Cts-Associate Judge De La Llata",10000187,"122AssocJg2",1220140001]
[122,"122Civil Courts-Associate Judge Arth",10000188,1220150001,{"$f":"_xlfn.XLOOKUP(D413,FC_Master[Cost Center],FC_Master[rollup FC '#])","v":1220010001},null,null,null,null,null,null,null,null,null,122,"122Civil Courts-Associate Judge Arth",10000188,"122AssocJg3",1220150001]
[122,"122Civil Courts-County Court at Law #1",10000189,1220160001,{"$f":"_xlfn.XLOOKUP(D414,FC_Master[Cost Center],FC_Master[rollup FC '#])","v":1220020001},null,null,null,null,null,null,null,null,null,122,"122Civil Courts-County Court at Law #1",10000189,"122CoCt1",1220160001]
[122,"122Civil Courts-County Court at Law #2",10000190,1220170001,{"$f":"_xlfn.XLOOKUP(D415,FC_Master[Cost Center],FC_Master[rollup FC '#])","v":1220020001},null,null,null,null,null,null,null,null,null,122,"122Civil Courts-County Court at Law #2",10000190,"122CoCt2",1220170001]
[122,"122Civil Courts-Ct Administrator's Ofc",10000193,1220180001,{"$f":"_xlfn.XLOOKUP(D416,FC_Master[Cost Center],FC_Master[rollup FC '#])","v":1220010001},null,null,null,null,null,null,null,null,null,122,"122Civil Courts-Ct Administrator's Ofc",10000193,"122CtAdm",1220180001]
[122,"122Civil Courts-Ct Adm Ofc-Planning",10000194,1220180001,{"$f":"_xlfn.XLOOKUP(D417,FC_Master[Cost Center],FC_Master[rollup FC '#])","v":1220010001},null,null,null,null,null,null,null,null,null,122,"122Civil Courts-Ct Adm Ofc-Planning",10000194,"122CtAdmPln",1220180001]
[122,"122Civil Courts-Courts Technology Team",10000195,1220190001,{"$f":"_xlfn.XLOOKUP(D418,FC_Master[Cost Center],FC_Master[rollup FC '#])","v":1220010001},null,null,null,null,null,null,null,null,null,122,"122Civil Courts-Courts Technology Team",10000195,"122CtCtTch",1220190001]
[122,"122Civil Courts-Courts Tech Support Team",10000783,1220190001,{"$f":"_xlfn.XLOOKUP(D419,FC_Master[Cost Center],FC_Master[rollup FC '#])","v":1220010001},null,null,null,null,null,null,null,null,null,122,"122Civil Courts-Courts Tech Support Team",10000783,"122CtTchSp",1220190001]
[122,"122Civil Courts-District Judges' Office",10000191,1220200001,{"$f":"_xlfn.XLOOKUP(D420,FC_Master[Cost Center],FC_Master[rollup FC '#])","v":1220010001},null,null,null,null,null,null,null,null,null,122,"122Civil Courts-District Judges' Office",10000191,"122DistJg",1220200001]
[122,"122Civil Courts-Planning",10000192,1220200001,{"$f":"_xlfn.XLOOKUP(D421,FC_Master[Cost Center],FC_Master[rollup FC '#])","v":1220010001},null,null,null,null,null,null,null,null,null,122,"122Civil Courts-Planning",10000192,"122Pln",1220200001]
[122,"122Civil Courts-Financial",10056652,1220200001,{"$f":"_xlfn.XLOOKUP(D422,FC_Master[Cost Center],FC_Master[rollup FC '#])","v":1220010001},null,null,null,null,null,null,null,null,null,122,"122Civil Courts-Financial",10056652,"122Fin",1220200001]
[122,"122Civil Courts-Substitute Ct Bailiffs",10000196,1220210001,{"$f":"_xlfn.XLOOKUP(D423,FC_Master[Cost Center],FC_Master[rollup FC '#])","v":1220010001},null,null,null,null,null,null,null,null,null,122,"122Civil Courts-Substitute Ct Bailiffs",10000196,"122SubCtBf",1220210001]
[122,"122 Civil Cts-Assoc Jg Mathews Rodriguez",10051176,1220270001,{"$f":"_xlfn.XLOOKUP(D424,FC_Master[Cost Center],FC_Master[rollup FC '#])","v":1220010001},null,null,null,null,null,null,null,null,null,122,"122 Civil Cts-Assoc Jg Mathews Rodriguez",10051176,"122AssocJg4",1220270001]
[122,"122Civil Courts-459th District Court",10052502,1220280001,{"$f":"_xlfn.XLOOKUP(D425,FC_Master[Cost Center],FC_Master[rollup FC '#])","v":1220010001},null,null,null,null,null,null,null,null,null,122,"122Civil Courts-459th District Court",10052502,"122-459DCt",1220280001]
[122,"122Civil Courts-455th District Court",10054527,1220290001,{"$f":"_xlfn.XLOOKUP(D426,FC_Master[Cost Center],FC_Master[rollup FC '#])","v":1220010001},null,null,null,null,null,null,null,null,null,122,"122Civil Courts-455th District Court",10054527,"122-455DCt",1220290001]
[123,"123DA District Attorney",10000197,1230010001,{"$f":"_xlfn.XLOOKUP(D427,FC_Master[Cost Center],FC_Master[rollup FC '#])","v":1230010001},null,null,null,null,null,null,null,null,null,123,"123DA District Attorney",10000197,"123DA",1230010001]
[123,"123DA 1st Assistant",10000198,1230010001,{"$f":"_xlfn.XLOOKUP(D428,FC_Master[Cost Center],FC_Master[rollup FC '#])","v":1230010001},null,null,null,null,null,null,null,null,null,123,"123DA 1st Assistant",10000198,"123DA1stAsst",1230010001]
[123,"123DA Administration",10000199,1230010001,{"$f":"_xlfn.XLOOKUP(D429,FC_Master[Cost Center],FC_Master[rollup FC '#])","v":1230010001},null,null,null,null,null,null,null,null,null,123,"123DA Administration",10000199,"123Adm",1230010001]
[123,"123DA Records",10000201,1230010001,{"$f":"_xlfn.XLOOKUP(D430,FC_Master[Cost Center],FC_Master[rollup FC '#])","v":1230010001},null,null,null,null,null,null,null,null,null,123,"123DA Records",10000201,"123Rcd",1230010001]
[123,"123DA County Financial",10000202,1230010001,{"$f":"_xlfn.XLOOKUP(D431,FC_Master[Cost Center],FC_Master[rollup FC '#])","v":1230010001},null,null,null,null,null,null,null,null,null,123,"123DA County Financial",10000202,"123CoFin",1230010001]
[123,"123DA Hot Checks",10000203,1230010001,{"$f":"_xlfn.XLOOKUP(D432,FC_Master[Cost Center],FC_Master[rollup FC '#])","v":1230010001},null,null,null,null,null,null,null,null,null,123,"123DA Hot Checks",10000203,"123HotCks",1230010001]
[123,"123DA Information Technology",10000204,1230010001,{"$f":"_xlfn.XLOOKUP(D433,FC_Master[Cost Center],FC_Master[rollup FC '#])","v":1230010001},null,null,null,null,null,null,null,null,null,123,"123DA Information Technology",10000204,"123IT",1230010001]
[123,"123DA Appellate",10000205,1230010001,{"$f":"_xlfn.XLOOKUP(D434,FC_Master[Cost Center],FC_Master[rollup FC '#])","v":1230010001},null,null,null,null,null,null,null,null,null,123,"123DA Appellate",10000205,"123Applt",1230010001]
[123,"123DA White Collar Crime",10000209,1230010001,{"$f":"_xlfn.XLOOKUP(D435,FC_Master[Cost Center],FC_Master[rollup FC '#])","v":1230010001},null,null,null,null,null,null,null,null,null,123,"123DA White Collar Crime",10000209,"123WCC",1230010001]
[123,"123DA Victim Witness",10000216,1230010001,{"$f":"_xlfn.XLOOKUP(D436,FC_Master[Cost Center],FC_Master[rollup FC '#])","v":1230010001},null,null,null,null,null,null,null,null,null,123,"123DA Victim Witness",10000216,"123VctmWns",1230010001]
[123,"123DA Victim Witness Support",10000217,1230010001,{"$f":"_xlfn.XLOOKUP(D437,FC_Master[Cost Center],FC_Master[rollup FC '#])","v":1230010001},null,null,null,null,null,null,null,null,null,123,"123DA Victim Witness Support",10000217,"123VctmWnsSp",1230010001]
[123,"123DA Investigations",10000218,1230010001,{"$f":"_xlfn.XLOOKUP(D438,FC_Master[Cost Center],FC_Master[rollup FC '#])","v":1230010001},null,null,null,null,null,null,null,null,null,123,"123DA Investigations",10000218,"123Invtgn",1230010001]
[123,"123DA County Investigations",10000219,1230010001,{"$f":"_xlfn.XLOOKUP(D439,FC_Master[Cost Center],FC_Master[rollup FC '#])","v":1230010001},null,null,null,null,null,null,null,null,null,123,"123DA County Investigations",10000219,"123CoInvtgn",1230010001]
[123,"123DA Trial Bureau",10000221,1230010001,{"$f":"_xlfn.XLOOKUP(D440,FC_Master[Cost Center],FC_Master[rollup FC '#])","v":1230010001},null,null,null,null,null,null,null,null,null,123,"123DA Trial Bureau",10000221,"123TrBr",1230010001]
[123,"123DA Trial Bureau Support",10000222,1230010001,{"$f":"_xlfn.XLOOKUP(D441,FC_Master[Cost Center],FC_Master[rollup FC '#])","v":1230010001},null,null,null,null,null,null,null,null,null,123,"123DA Trial Bureau Support",10000222,"123TrBrSp",1230010001]
[123,"123DA Courts",10000224,1230010001,{"$f":"_xlfn.XLOOKUP(D442,FC_Master[Cost Center],FC_Master[rollup FC '#])","v":1230010001},null,null,null,null,null,null,null,null,null,123,"123DA Courts",10000224,"123Ct",1230010001]
[123,"123DA 427th District Court",10000225,1230010001,{"$f":"_xlfn.XLOOKUP(D443,FC_Master[Cost Center],FC_Master[rollup FC '#])","v":1230010001},null,null,null,null,null,null,null,null,null,123,"123DA 427th District Court",10000225,"123-427DCt",1230010001]
[123,"123DA 167th District Court",10000226,1230010001,{"$f":"_xlfn.XLOOKUP(D444,FC_Master[Cost Center],FC_Master[rollup FC '#])","v":1230010001},null,null,null,null,null,null,null,null,null,123,"123DA 167th District Court",10000226,"123-167DCt",1230010001]
[123,"123DA 299th District Court",10000227,1230010001,{"$f":"_xlfn.XLOOKUP(D445,FC_Master[Cost Center],FC_Master[rollup FC '#])","v":1230010001},null,null,null,null,null,null,null,null,null,123,"123DA 299th District Court",10000227,"123-299DCt",1230010001]
[123,"123DA 331st District Court",10000228,1230010001,{"$f":"_xlfn.XLOOKUP(D446,FC_Master[Cost Center],FC_Master[rollup FC '#])","v":1230010001},null,null,null,null,null,null,null,null,null,123,"123DA 331st District Court",10000228,"123-331DCt",1230010001]
[123,"123DA 390th District Court",10000229,1230010001,{"$f":"_xlfn.XLOOKUP(D447,FC_Master[Cost Center],FC_Master[rollup FC '#])","v":1230010001},null,null,null,null,null,null,null,null,null,123,"123DA 390th District Court",10000229,"123-390DCt",1230010001]
[123,"123DA 403rd District Court",10000230,1230010001,{"$f":"_xlfn.XLOOKUP(D448,FC_Master[Cost Center],FC_Master[rollup FC '#])","v":1230010001},null,null,null,null,null,null,null,null,null,123,"123DA 403rd District Court",10000230,"123-403DCt",1230010001]
[123,"123DA 147th District Court",10000231,1230010001,{"$f":"_xlfn.XLOOKUP(D449,FC_Master[Cost Center],FC_Master[rollup FC '#])","v":1230010001},null,null,null,null,null,null,null,null,null,123,"123DA 147th District Court",10000231,"123-147DCt",1230010001]
[123,"123DA Grand Jury Attorney",10000232,1230010001,{"$f":"_xlfn.XLOOKUP(D450,FC_Master[Cost Center],FC_Master[rollup FC '#])","v":1230010001},null,null,null,null,null,null,null,null,null,123,"123DA Grand Jury Attorney",10000232,"123GJyAtty",1230010001]
[{"$f":"O451","v":123},{"$f":"P451","v":"123DA Grand Jury Support"},{"$f":"VALUE(Q451)","v":10000233},{"$f":"VALUE(S451)","v":1230010001},{"$f":"_xlfn.XLOOKUP(D451,FC_Master[Cost Center],FC_Master[rollup FC '#])","v":1230010001},null,null,null,null,null,null,null,null,null,123,"123DA Grand Jury Support",10000233,"123GJySp",1230010001]
[123,"123DA Special Victim Unit",10000234,1230010001,{"$f":"_xlfn.XLOOKUP(D452,FC_Master[Cost Center],FC_Master[rollup FC '#])","v":1230010001},null,null,null,null,null,null,null,null,null,123,"123DA Special Victim Unit",10000234,"123SVU",1230010001]
[123,"123DA SVU CPT",10000235,1230010001,{"$f":"_xlfn.XLOOKUP(D453,FC_Master[Cost Center],FC_Master[rollup FC '#])","v":1230010001},null,null,null,null,null,null,null,null,null,123,"123DA SVU CPT",10000235,"123SVUCPT",1230010001]
[123,"123DA Child Abuse",10000238,1230010001,{"$f":"_xlfn.XLOOKUP(D454,FC_Master[Cost Center],FC_Master[rollup FC '#])","v":1230010001},null,null,null,null,null,null,null,null,null,123,"123DA Child Abuse",10000238,"123DAChAbs",1230010001]
[123,"123DA Child Abuse",10000238,1230010001,{"$f":"_xlfn.XLOOKUP(D455,FC_Master[Cost Center],FC_Master[rollup FC '#])","v":1230010001},null,null,null,null,null,null,null,null,null,123,"123DA Child Abuse",10000238,"123DAChAbs",1230010001]
[123,"123DA SVU Adm",10000241,1230010001,{"$f":"_xlfn.XLOOKUP(D456,FC_Master[Cost Center],FC_Master[rollup FC '#])","v":1230010001},null,null,null,null,null,null,null,null,null,123,"123DA SVU Adm",10000241,"123SVUAdm",1230010001]
[123,"123DA Unassigned",10000718,1230010001,{"$f":"_xlfn.XLOOKUP(D457,FC_Master[Cost Center],FC_Master[rollup FC '#])","v":1230010001},null,null,null,null,null,null,null,null,null,123,"123DA Unassigned",10000718,"123Unasg",1230010001]
[123,"123DA 450th Dist CT",10051501,1230010001,{"$f":"_xlfn.XLOOKUP(D458,FC_Master[Cost Center],FC_Master[rollup FC '#])","v":1230010001},null,null,null,null,null,null,null,null,null,123,"123DA 450th Dist CT",10051501,"123DADistCT",1230010001]
[123,"123DA Sexual Assault",10052076,1230010001,{"$f":"_xlfn.XLOOKUP(D459,FC_Master[Cost Center],FC_Master[rollup FC '#])","v":1230010001},null,null,null,null,null,null,null,null,null,123,"123DA Sexual Assault",10052076,"123SxlAsslt",1230010001]
[123,"123DA Trial Bureau Adm",10052226,1230010001,{"$f":"_xlfn.XLOOKUP(D460,FC_Master[Cost Center],FC_Master[rollup FC '#])","v":1230010001},null,null,null,null,null,null,null,null,null,123,"123DA Trial Bureau Adm",10052226,"123TrBrAdm",1230010001]
[123,"123DA SVU Family Violence",10052251,1230010001,{"$f":"_xlfn.XLOOKUP(D461,FC_Master[Cost Center],FC_Master[rollup FC '#])","v":1230010001},null,null,null,null,null,null,null,null,null,123,"123DA SVU Family Violence",10052251,"123SVUFamVlc",1230010001]
[123,"123DA SVU Sexual Asslt",10052252,1230010001,{"$f":"_xlfn.XLOOKUP(D462,FC_Master[Cost Center],FC_Master[rollup FC '#])","v":1230010001},null,null,null,null,null,null,null,null,null,123,"123DA SVU Sexual Asslt",10052252,"123SxlAsslt",1230010001]
[123,"123DA Civil Rights",10052253,1230010001,{"$f":"_xlfn.XLOOKUP(D463,FC_Master[Cost Center],FC_Master[rollup FC '#])","v":1230010001},null,null,null,null,null,null,null,null,null,123,"123DA Civil Rights",10052253,"123CivRights",1230010001]
[123,"123DA Adm Support",10052254,1230010001,{"$f":"_xlfn.XLOOKUP(D464,FC_Master[Cost Center],FC_Master[rollup FC '#])","v":1230010001},null,null,null,null,null,null,null,null,null,123,"123DA Adm Support",10052254,"123AdmSp",1230010001]
[123,"123DA SVU Support",10052526,1230010001,{"$f":"_xlfn.XLOOKUP(D465,FC_Master[Cost Center],FC_Master[rollup FC '#])","v":1230010001},null,null,null,null,null,null,null,null,null,123,"123DA SVU Support",10052526,"123SVUSp",1230010001]
[123,"123DA Digital Forensics",10053276,1230010001,{"$f":"_xlfn.XLOOKUP(D466,FC_Master[Cost Center],FC_Master[rollup FC '#])","v":1230010001},null,null,null,null,null,null,null,null,null,123,"123DA Digital Forensics",10053276,"123DFrnc",1230010001]
[123,"123DA Digital Forensics",10053276,1230010001,{"$f":"_xlfn.XLOOKUP(D467,FC_Master[Cost Center],FC_Master[rollup FC '#])","v":1230010001},null,null,null,null,null,null,null,null,null,123,"123DA Digital Forensics",10053276,"123DFrnc",1230010001]
[123,"123DA Diversion Adm",10053277,1230010001,{"$f":"_xlfn.XLOOKUP(D468,FC_Master[Cost Center],FC_Master[rollup FC '#])","v":1230010001},null,null,null,null,null,null,null,null,null,123,"123DA Diversion Adm",10053277,"123DADvAdm",1230010001]
[123,"123DA Policy & Diversion",10053626,1230010001,{"$f":"_xlfn.XLOOKUP(D469,FC_Master[Cost Center],FC_Master[rollup FC '#])","v":1230010001},null,null,null,null,null,null,null,null,null,123,"123DA Policy & Diversion",10053626,"123DAPlcyDv",1230010001]
[123,"123DA 460th",10053651,1230010001,{"$f":"_xlfn.XLOOKUP(D470,FC_Master[Cost Center],FC_Master[rollup FC '#])","v":1230010001},null,null,null,null,null,null,null,null,null,123,"123DA 460th",10053651,"123DA 460th",1230010001]
[123,"123DA SVU Asst Dir",10054026,1230010001,{"$f":"_xlfn.XLOOKUP(D471,FC_Master[Cost Center],FC_Master[rollup FC '#])","v":1230010001},null,null,null,null,null,null,null,null,null,123,"123DA SVU Asst Dir",10054026,"123DDirAsst",1230010001]
[123,"123 DA Trial Asst Dir",10054601,1230010001,{"$f":"_xlfn.XLOOKUP(D472,FC_Master[Cost Center],FC_Master[rollup FC '#])","v":1230010001},null,null,null,null,null,null,null,null,null,123,"123 DA Trial Asst Dir",10054601,"123DATrlAD",1230010001]
[123,"123DA Conviction Integrity",10054652,1230010001,{"$f":"_xlfn.XLOOKUP(D473,FC_Master[Cost Center],FC_Master[rollup FC '#])","v":1230010001},null,null,null,null,null,null,null,null,null,123,"123DA Conviction Integrity",10054652,"123DACI",1230010001]
[123,"123DA CRU",10055101,1230010001,{"$f":"_xlfn.XLOOKUP(D474,FC_Master[Cost Center],FC_Master[rollup FC '#])","v":1230010001},null,null,null,null,null,null,null,null,null,123,"123DA CRU",10055101,"123DACRU",1230010001]
[123,"123DA CRU Admin",10055102,1230010001,{"$f":"_xlfn.XLOOKUP(D475,FC_Master[Cost Center],FC_Master[rollup FC '#])","v":1230010001},null,null,null,null,null,null,null,null,null,123,"123DA CRU Admin",10055102,"123DACRUAdm",1230010001]
[123,"123DA Training",10055126,1230010001,{"$f":"_xlfn.XLOOKUP(D476,FC_Master[Cost Center],FC_Master[rollup FC '#])","v":1230010001},null,null,null,null,null,null,null,null,null,123,"123DA Training",10055126,"123DATrn",1230010001]
[123,"123DA Diversion & Youth Justice",10055127,1230010001,{"$f":"_xlfn.XLOOKUP(D477,FC_Master[Cost Center],FC_Master[rollup FC '#])","v":1230010001},null,null,null,null,null,null,null,null,null,123,"123DA Diversion & Youth Justice",10055127,"123DADYJ",1230010001]
[123,"123DA Mental Health",10055201,1230010001,{"$f":"_xlfn.XLOOKUP(D478,FC_Master[Cost Center],FC_Master[rollup FC '#])","v":1230010001},null,null,null,null,null,null,null,null,null,123,"123DA Mental Health",10055201,"123DAMtHlh",1230010001]
[123,"123DA SVU Civil",10000239,1230020001,{"$f":"_xlfn.XLOOKUP(D479,FC_Master[Cost Center],FC_Master[rollup FC '#])","v":1230020001},null,null,null,null,null,null,null,null,null,123,"123DA SVU Civil",10000239,"123SVUCiv",1230020001]
[123,"123DA Family Justice Civil Support",10000240,1230020001,{"$f":"_xlfn.XLOOKUP(D480,FC_Master[Cost Center],FC_Master[rollup FC '#])","v":1230020001},null,null,null,null,null,null,null,null,null,123,"123DA Family Justice Civil Support",10000240,"123FJCSp",1230020001]
[123,"123DA Juvenile",10000237,1230030001,{"$f":"_xlfn.XLOOKUP(D481,FC_Master[Cost Center],FC_Master[rollup FC '#])","v":1230030001},null,null,null,null,null,null,null,null,null,123,"123DA Juvenile",10000237,"123Juvenile",1230030001]
[123,"123DA General State-Texas Mutual Ins",10000214,1230040001,{"$f":"_xlfn.XLOOKUP(D482,FC_Master[Cost Center],FC_Master[rollup FC '#])","v":1230040001},null,null,null,null,null,null,null,null,null,123,"123DA General State-Texas Mutual Ins",10000214,"123TxIns",1230040001]
[123,"123DA Special Prosecution",10000210,1230060001,{"$f":"_xlfn.XLOOKUP(D483,FC_Master[Cost Center],FC_Master[rollup FC '#])","v":1230060001},null,null,null,null,null,null,null,null,null,123,"123DA Special Prosecution",10000210,"123SPs",1230060001]
[123,"123DA Special Prosecution Support",10000211,1230060001,{"$f":"_xlfn.XLOOKUP(D484,FC_Master[Cost Center],FC_Master[rollup FC '#])","v":1230060001},null,null,null,null,null,null,null,null,null,123,"123DA Special Prosecution Support",10000211,"123SPsSp",1230060001]
[123,"123DA Motor Fuels Tax Fraud",10000212,1230060001,{"$f":"_xlfn.XLOOKUP(D485,FC_Master[Cost Center],FC_Master[rollup FC '#])","v":1230060001},null,null,null,null,null,null,null,null,null,123,"123DA Motor Fuels Tax Fraud",10000212,"123MFTF",1230060001]
[123,"123DA Public Integrity Unit",10000213,1230060001,{"$f":"_xlfn.XLOOKUP(D486,FC_Master[Cost Center],FC_Master[rollup FC '#])","v":1230060001},null,null,null,null,null,null,null,null,null,123,"123DA Public Integrity Unit",10000213,"123PIU",1230060001]
[123,"123DA Workers Comp Fraud Unit",10000215,1230060001,{"$f":"_xlfn.XLOOKUP(D487,FC_Master[Cost Center],FC_Master[rollup FC '#])","v":1230060001},null,null,null,null,null,null,null,null,null,123,"123DA Workers Comp Fraud Unit",10000215,"123WCFU",1230060001]
[124,"124Crm Courts Veterans Court",10000246,1240010001,{"$f":"_xlfn.XLOOKUP(D488,FC_Master[Cost Center],FC_Master[rollup FC '#])","v":1240010001},null,null,null,null,null,null,null,null,null,124,"124Crm Courts Veterans Court",10000246,"124VetCt",1240010001]
[124,"124Crm Courts 460th District Court",10053927,1240010001,{"$f":"_xlfn.XLOOKUP(D489,FC_Master[Cost Center],FC_Master[rollup FC '#])","v":1240010001},null,null,null,null,null,null,null,null,null,124,"124Crm Courts 460th District Court",10053927,"124-460DCt",1240010001]
[124,"124Crm Courts 147th District Court",10000261,1240020001,{"$f":"_xlfn.XLOOKUP(D490,FC_Master[Cost Center],FC_Master[rollup FC '#])","v":1240010001},null,null,null,null,null,null,null,null,null,124,"124Crm Courts 147th District Court",10000261,"124-147DCt",1240020001]
[124,"124Crm Courts 167th District Court",10000259,1240030001,{"$f":"_xlfn.XLOOKUP(D491,FC_Master[Cost Center],FC_Master[rollup FC '#])","v":1240010001},null,null,null,null,null,null,null,null,null,124,"124Crm Courts 167th District Court",10000259,"124-167DCt",1240030001]
[124,"124Crm Courts 299th District Court",10000262,1240040001,{"$f":"_xlfn.XLOOKUP(D492,FC_Master[Cost Center],FC_Master[rollup FC '#])","v":1240010001},null,null,null,null,null,null,null,null,null,124,"124Crm Courts 299th District Court",10000262,"124-299DCt",1240040001]
[124,"124Crm Courts 331st District Court",10000258,1240050001,{"$f":"_xlfn.XLOOKUP(D493,FC_Master[Cost Center],FC_Master[rollup FC '#])","v":1240010001},null,null,null,null,null,null,null,null,null,124,"124Crm Courts 331st District Court",10000258,"124-331DCt",1240050001]
[124,"124Crm Courts 390th District Court",10000242,1240060001,{"$f":"_xlfn.XLOOKUP(D494,FC_Master[Cost Center],FC_Master[rollup FC '#])","v":1240010001},null,null,null,null,null,null,null,null,null,124,"124Crm Courts 390th District Court",10000242,"124-390DCt",1240060001]
[124,"124Crm Courts 403rd District Court",10000253,1240070001,{"$f":"_xlfn.XLOOKUP(D495,FC_Master[Cost Center],FC_Master[rollup FC '#])","v":1240010001},null,null,null,null,null,null,null,null,null,124,"124Crm Courts 403rd District Court",10000253,"124-403DCt",1240070001]
[124,"124Crm Courts 427th District Court",10000254,1240080001,{"$f":"_xlfn.XLOOKUP(D496,FC_Master[Cost Center],FC_Master[rollup FC '#])","v":1240010001},null,null,null,null,null,null,null,null,null,124,"124Crm Courts 427th District Court",10000254,"124-427DCt",1240080001]
[124,"124Crm Courts Magistrate Court",10000243,1240090001,{"$f":"_xlfn.XLOOKUP(D497,FC_Master[Cost Center],FC_Master[rollup FC '#])","v":1240010001},null,null,null,null,null,null,null,null,null,124,"124Crm Courts Magistrate Court",10000243,"124MagCt",1240090001]
[124,"124Crm Courts Technology Team",10000247,1240100001,{"$f":"_xlfn.XLOOKUP(D498,FC_Master[Cost Center],FC_Master[rollup FC '#])","v":1240010001},null,null,null,null,null,null,null,null,null,124,"124Crm Courts Technology Team",10000247,"124Tch",1240100001]
[124,"124Crm Courts County Court at Law #3",10000260,1240120001,{"$f":"_xlfn.XLOOKUP(D499,FC_Master[Cost Center],FC_Master[rollup FC '#])","v":1240110001},null,null,null,null,null,null,null,null,null,124,"124Crm Courts County Court at Law #3",10000260,"124CoCt3",1240120001]
[124,"124Crm Courts County Court at Law #4",10000252,1240130001,{"$f":"_xlfn.XLOOKUP(D500,FC_Master[Cost Center],FC_Master[rollup FC '#])","v":1240110001},null,null,null,null,null,null,null,null,null,124,"124Crm Courts County Court at Law #4",10000252,"124CoCt4",1240130001]
[124,"124Crm Courts County Court at Law #5",10000257,1240140001,{"$f":"_xlfn.XLOOKUP(D501,FC_Master[Cost Center],FC_Master[rollup FC '#])","v":1240110001},null,null,null,null,null,null,null,null,null,124,"124Crm Courts County Court at Law #5",10000257,"124CoCt5",1240140001]
[124,"124Crm Courts County Court at Law #6",10000256,1240150001,{"$f":"_xlfn.XLOOKUP(D502,FC_Master[Cost Center],FC_Master[rollup FC '#])","v":1240110001},null,null,null,null,null,null,null,null,null,124,"124Crm Courts County Court at Law #6",10000256,"124CoCt6",1240150001]
[124,"124Crm Courts County Court at Law #7",10000263,1240160001,{"$f":"_xlfn.XLOOKUP(D503,FC_Master[Cost Center],FC_Master[rollup FC '#])","v":1240110001},null,null,null,null,null,null,null,null,null,124,"124Crm Courts County Court at Law #7",10000263,"124CoCt7",1240160001]
[124,"124Crm Courts County Court at Law #8",10000255,1240170001,{"$f":"_xlfn.XLOOKUP(D504,FC_Master[Cost Center],FC_Master[rollup FC '#])","v":1240110001},null,null,null,null,null,null,null,null,null,124,"124Crm Courts County Court at Law #8",10000255,"124CoCt8",1240170001]
[124,"124Crm Courts Administration",10000244,1240180001,{"$f":"_xlfn.XLOOKUP(D505,FC_Master[Cost Center],FC_Master[rollup FC '#])","v":1240110001},null,null,null,null,null,null,null,null,null,124,"124Crm Courts Administration",10000244,"124Adm",1240180001]
[124,"124Crm Courts Admin Coordinator",10000245,1240180001,{"$f":"_xlfn.XLOOKUP(D506,FC_Master[Cost Center],FC_Master[rollup FC '#])","v":1240110001},null,null,null,null,null,null,null,null,null,124,"124Crm Courts Admin Coordinator",10000245,"124AdmCoord",1240180001]
[124,"124Crm Courts Program Services",10000249,1240180001,{"$f":"_xlfn.XLOOKUP(D507,FC_Master[Cost Center],FC_Master[rollup FC '#])","v":1240110001},null,null,null,null,null,null,null,null,null,124,"124Crm Courts Program Services",10000249,"124PSv",1240180001]
[124,"124Crm Courts Financial",10000250,1240180001,{"$f":"_xlfn.XLOOKUP(D508,FC_Master[Cost Center],FC_Master[rollup FC '#])","v":1240110001},null,null,null,null,null,null,null,null,null,124,"124Crm Courts Financial",10000250,"124Fin",1240180001]
[124,"124Crm Courts Intake",10000251,1240180001,{"$f":"_xlfn.XLOOKUP(D509,FC_Master[Cost Center],FC_Master[rollup FC '#])","v":1240110001},null,null,null,null,null,null,null,null,null,124,"124Crm Courts Intake",10000251,"124Intake",1240180001]
[124,"124Crm Courts CUC Group",10050801,1240180001,{"$f":"_xlfn.XLOOKUP(D510,FC_Master[Cost Center],FC_Master[rollup FC '#])","v":1240110001},null,null,null,null,null,null,null,null,null,124,"124Crm Courts CUC Group",10050801,"124CUCGroup",1240180001]
[124,"124Crm Courts Visiting Judges",10051277,1240180001,{"$f":"_xlfn.XLOOKUP(D511,FC_Master[Cost Center],FC_Master[rollup FC '#])","v":1240110001},null,null,null,null,null,null,null,null,null,124,"124Crm Courts Visiting Judges",10051277,"124VstgJg",1240180001]
[124,"124Crm Courts Mental Health",10053201,1240180001,{"$f":"_xlfn.XLOOKUP(D512,FC_Master[Cost Center],FC_Master[rollup FC '#])","v":1240110001},null,null,null,null,null,null,null,null,null,124,"124Crm Courts Mental Health",10053201,"124CrCtMH",1240180001]
[124,"124Crm Courts MAC Group",10056127,1240180001,{"$f":"_xlfn.XLOOKUP(D513,FC_Master[Cost Center],FC_Master[rollup FC '#])","v":1240110001},null,null,null,null,null,null,null,null,null,124,"124Crm Courts MAC Group",10056127,"124MACGrp",1240180001]
[124,"124Crim Courts County Court at Law #9",10051626,1240470001,{"$f":"_xlfn.XLOOKUP(D514,FC_Master[Cost Center],FC_Master[rollup FC '#])","v":1240110001},null,null,null,null,null,null,null,null,null,124,"124Crim Courts County Court at Law #9",10051626,"124CoCt9",1240470001]
[{"$f":"O515","v":124},{"$f":"P515","v":"124Crm Courts 450th Dist CT"},{"$f":"VALUE(Q515)","v":10051551},{"$f":"VALUE(S515)","v":1240480001},{"$f":"_xlfn.XLOOKUP(D515,FC_Master[Cost Center],FC_Master[rollup FC '#])","v":1240010001},null,null,null,null,null,null,null,null,null,124,"124Crm Courts 450th Dist CT",10051551,"124CrmDistCT",1240480001]
[125,"125Probate Court",10000264,1250010001,{"$f":"_xlfn.XLOOKUP(D516,FC_Master[Cost Center],FC_Master[rollup FC '#])","v":1250010001},null,null,null,null,null,null,null,null,null,125,"125Probate Court",10000264,"125PrbCt",1250010001]
[125,"125Probate Court General First",10000266,1250010001,{"$f":"_xlfn.XLOOKUP(D517,FC_Master[Cost Center],FC_Master[rollup FC '#])","v":1250010001},null,null,null,null,null,null,null,null,null,125,"125Probate Court General First",10000266,"125General1",1250010001]
[125,"125Probate Court Visiting Judges",10051278,1250010001,{"$f":"_xlfn.XLOOKUP(D518,FC_Master[Cost Center],FC_Master[rollup FC '#])","v":1250010001},null,null,null,null,null,null,null,null,null,125,"125Probate Court Visiting Judges",10051278,"125VstgJg",1250010001]
[125,"125Probate Court Judicial First",10056635,1250010001,{"$f":"_xlfn.XLOOKUP(D519,FC_Master[Cost Center],FC_Master[rollup FC '#])","v":1250010001},null,null,null,null,null,null,null,null,null,125,"125Probate Court Judicial First",10056635,"125Judicial1",1250010001]
[125,"125Probate Court Judicial Second",10056527,1250040001,{"$f":"_xlfn.XLOOKUP(D520,FC_Master[Cost Center],FC_Master[rollup FC '#])","v":1250040001},null,null,null,null,null,null,null,null,null,125,"125Probate Court Judicial Second",10056527,"125Jud2",1250040001]
[125,"125Probate Court General Second",10056529,1250040001,{"$f":"_xlfn.XLOOKUP(D521,FC_Master[Cost Center],FC_Master[rollup FC '#])","v":1250040001},null,null,null,null,null,null,null,null,null,125,"125Probate Court General Second",10056529,"125General2",1250040001]
[125,"125Probate Court General Second",10056530,1250040001,{"$f":"_xlfn.XLOOKUP(D522,FC_Master[Cost Center],FC_Master[rollup FC '#])","v":1250040001},null,null,null,null,null,null,null,null,null,125,"125Probate Court General Second",10056530,"125General2",1250040001]
[126,"126Justice of the Peace 1 Planning",10000272,1260010001,{"$f":"_xlfn.XLOOKUP(D523,FC_Master[Cost Center],FC_Master[rollup FC '#])","v":1260010001},null,null,null,null,null,null,null,null,null,126,"126Justice of the Peace 1 Planning",10000272,"126JP1Pln",1260010001]
[126,"126Justice of the Peace 1 Visiting Judge",10051279,1260010001,{"$f":"_xlfn.XLOOKUP(D524,FC_Master[Cost Center],FC_Master[rollup FC '#])","v":1260010001},null,null,null,null,null,null,null,null,null,126,"126Justice of the Peace 1 Visiting Judge",10051279,"126VstgJg",1260010001]
[126,"126Justice of the Peace 1",10000270,1260020001,{"$f":"_xlfn.XLOOKUP(D525,FC_Master[Cost Center],FC_Master[rollup FC '#])","v":1260020001},null,null,null,null,null,null,null,null,null,126,"126Justice of the Peace 1",10000270,"126JP1",1260020001]
[126,"126Justice of the Peace 1 Organization",10000271,1260020001,{"$f":"_xlfn.XLOOKUP(D526,FC_Master[Cost Center],FC_Master[rollup FC '#])","v":1260020001},null,null,null,null,null,null,null,null,null,126,"126Justice of the Peace 1 Organization",10000271,"126JP1Org",1260020001]
[127,"127Justice of the Peace 2",10000273,1270010001,{"$f":"_xlfn.XLOOKUP(D527,FC_Master[Cost Center],FC_Master[rollup FC '#])","v":1270010001},null,null,null,null,null,null,null,null,null,127,"127Justice of the Peace 2",10000273,"127JP2",1270010001]
[127,"127Justice of the Peace 2 Visiting Judge",10051280,1270010001,{"$f":"_xlfn.XLOOKUP(D528,FC_Master[Cost Center],FC_Master[rollup FC '#])","v":1270010001},null,null,null,null,null,null,null,null,null,127,"127Justice of the Peace 2 Visiting Judge",10051280,"127VstgJg",1270010001]
[127,"127Justice of the Peace 2 Organization",10000274,1270020001,{"$f":"_xlfn.XLOOKUP(D529,FC_Master[Cost Center],FC_Master[rollup FC '#])","v":1270020001},null,null,null,null,null,null,null,null,null,127,"127Justice of the Peace 2 Organization",10000274,"127JP2Org",1270020001]
[128,"128Justice of the Peace 3 Visiting Judge",10051281,1280010001,{"$f":"_xlfn.XLOOKUP(D530,FC_Master[Cost Center],FC_Master[rollup FC '#])","v":1280010001},null,null,null,null,null,null,null,null,null,128,"128Justice of the Peace 3 Visiting Judge",10051281,"128VstgJg",1280010001]
[128,"128Justice of the Peace 3",10000275,1280020001,{"$f":"_xlfn.XLOOKUP(D531,FC_Master[Cost Center],FC_Master[rollup FC '#])","v":1280020001},null,null,null,null,null,null,null,null,null,128,"128Justice of the Peace 3",10000275,"128JP3",1280020001]
[128,"128Justice of the Peace 3 Organization",10000276,1280020001,{"$f":"_xlfn.XLOOKUP(D532,FC_Master[Cost Center],FC_Master[rollup FC '#])","v":1280020001},null,null,null,null,null,null,null,null,null,128,"128Justice of the Peace 3 Organization",10000276,"128JP3 Org",1280020001]
[129,"129Justice of the Peace 4",10000277,1290010001,{"$f":"_xlfn.XLOOKUP(D533,FC_Master[Cost Center],FC_Master[rollup FC '#])","v":1290010001},null,null,null,null,null,null,null,null,null,129,"129Justice of the Peace 4",10000277,"129JP4",1290010001]
[129,"129Justice of the Peace 4 Visiting Judge",10051282,1290010001,{"$f":"_xlfn.XLOOKUP(D534,FC_Master[Cost Center],FC_Master[rollup FC '#])","v":1290010001},null,null,null,null,null,null,null,null,null,129,"129Justice of the Peace 4 Visiting Judge",10051282,"129VstgJg",1290010001]
[129,"129Justice of the Peace 4 Organization",10000278,1290020001,{"$f":"_xlfn.XLOOKUP(D535,FC_Master[Cost Center],FC_Master[rollup FC '#])","v":1290020001},null,null,null,null,null,null,null,null,null,129,"129Justice of the Peace 4 Organization",10000278,"129JP4Org",1290020001]
[130,"130Justice of the Peace 5",10000279,1300010001,{"$f":"_xlfn.XLOOKUP(D536,FC_Master[Cost Center],FC_Master[rollup FC '#])","v":1300010001},null,null,null,null,null,null,null,null,null,130,"130Justice of the Peace 5",10000279,"130JP5",1300010001]
[130,"130Justice of the Peace 5 Visiting Judge",10051283,1300010001,{"$f":"_xlfn.XLOOKUP(D537,FC_Master[Cost Center],FC_Master[rollup FC '#])","v":1300010001},null,null,null,null,null,null,null,null,null,130,"130Justice of the Peace 5 Visiting Judge",10051283,"130VstgJg",1300010001]
[130,"130Justice of the Peace 5 Organization",10000280,1300020001,{"$f":"_xlfn.XLOOKUP(D538,FC_Master[Cost Center],FC_Master[rollup FC '#])","v":1300020001},null,null,null,null,null,null,null,null,null,130,"130Justice of the Peace 5 Organization",10000280,"130JP5Org",1300020001]
[131,"131Constable 1",10000281,1310020001,{"$f":"_xlfn.XLOOKUP(D539,FC_Master[Cost Center],FC_Master[rollup FC '#])","v":1310020001},null,null,null,null,null,null,null,null,null,131,"131Constable 1",10000281,"131Cnst1",1310020001]
[131,"131Constable 1 Organization",10000282,1310020001,{"$f":"_xlfn.XLOOKUP(D540,FC_Master[Cost Center],FC_Master[rollup FC '#])","v":1310020001},null,null,null,null,null,null,null,null,null,131,"131Constable 1 Organization",10000282,"131Org",1310020001]
[132,"132Constable 2 Civil Unit",10054728,1320010001,{"$f":"_xlfn.XLOOKUP(D541,FC_Master[Cost Center],FC_Master[rollup FC '#])","v":1320010001},null,null,null,null,null,null,null,null,null,132,"132Constable 2 Civil Unit",10054728,"132Civil",1320010001]
[132,"132Constable 2",10000283,1320020001,{"$f":"_xlfn.XLOOKUP(D542,FC_Master[Cost Center],FC_Master[rollup FC '#])","v":1320020001},null,null,null,null,null,null,null,null,null,132,"132Constable 2",10000283,"132Cnst2",1320020001]
[132,"132Constable 2 Organization",10000285,1320020001,{"$f":"_xlfn.XLOOKUP(D543,FC_Master[Cost Center],FC_Master[rollup FC '#])","v":1320020001},null,null,null,null,null,null,null,null,null,132,"132Constable 2 Organization",10000285,"132Org",1320020001]
[132,"132Constable 2 Admin",10052901,1320020001,{"$f":"_xlfn.XLOOKUP(D544,FC_Master[Cost Center],FC_Master[rollup FC '#])","v":1320020001},null,null,null,null,null,null,null,null,null,132,"132Constable 2 Admin",10052901,"132Adm2",1320020001]
[132,"132Constable 2 Criminal Unit",10054726,1320020001,{"$f":"_xlfn.XLOOKUP(D545,FC_Master[Cost Center],FC_Master[rollup FC '#])","v":1320020001},null,null,null,null,null,null,null,null,null,132,"132Constable 2 Criminal Unit",10054726,"132Criminal",1320020001]
[132,"132Constable 2 Administration",10000284,1320030001,{"$f":"_xlfn.XLOOKUP(D546,FC_Master[Cost Center],FC_Master[rollup FC '#])","v":1320030001},null,null,null,null,null,null,null,null,null,132,"132Constable 2 Administration",10000284,"132Adm",1320030001]
[132,"132Constable 2 Security Unit",10054727,1320040001,{"$f":"_xlfn.XLOOKUP(D547,FC_Master[Cost Center],FC_Master[rollup FC '#])","v":1320040001},null,null,null,null,null,null,null,null,null,132,"132Constable 2 Security Unit",10054727,"132Security",1320040001]
[132,"132Constable 2 Adm/Telecomm Unit",10054729,1320060001,{"$f":"_xlfn.XLOOKUP(D548,FC_Master[Cost Center],FC_Master[rollup FC '#])","v":1320060001},null,null,null,null,null,null,null,null,null,132,"132Constable 2 Adm/Telecomm Unit",10054729,"132Adm/Tlc",1320060001]
[133,"133Constable 3 Deputies",10000288,1330010001,{"$f":"_xlfn.XLOOKUP(D549,FC_Master[Cost Center],FC_Master[rollup FC '#])","v":1330010001},null,null,null,null,null,null,null,null,null,133,"133Constable 3 Deputies",10000288,"133Dp",1330010001]
[133,"133Constable 3 Chief Deputy",10050301,1330010001,{"$f":"_xlfn.XLOOKUP(D550,FC_Master[Cost Center],FC_Master[rollup FC '#])","v":1330010001},null,null,null,null,null,null,null,null,null,133,"133Constable 3 Chief Deputy",10050301,"133ChfDp",1330010001]
[133,"133Constable Lieutenant",10050302,1330010001,{"$f":"_xlfn.XLOOKUP(D551,FC_Master[Cost Center],FC_Master[rollup FC '#])","v":1330010001},null,null,null,null,null,null,null,null,null,133,"133Constable Lieutenant",10050302,"133Lt",1330010001]
[133,"133Constable 3",10000286,1330020001,{"$f":"_xlfn.XLOOKUP(D552,FC_Master[Cost Center],FC_Master[rollup FC '#])","v":1330020001},null,null,null,null,null,null,null,null,null,133,"133Constable 3",10000286,"133Cnst3",1330020001]
[133,"133Constable 3 Administration",10000287,1330020001,{"$f":"_xlfn.XLOOKUP(D553,FC_Master[Cost Center],FC_Master[rollup FC '#])","v":1330020001},null,null,null,null,null,null,null,null,null,133,"133Constable 3 Administration",10000287,"133Adm",1330020001]
[134,"134Constable 4 Organization",10000292,1340010001,{"$f":"_xlfn.XLOOKUP(D554,FC_Master[Cost Center],FC_Master[rollup FC '#])","v":1340010001},null,null,null,null,null,null,null,null,null,134,"134Constable 4 Organization",10000292,"134Org",1340010001]
[134,"134Constable 4 Community Service",10055326,1340010001,{"$f":"_xlfn.XLOOKUP(D555,FC_Master[Cost Center],FC_Master[rollup FC '#])","v":1340010001},null,null,null,null,null,null,null,null,null,134,"134Constable 4 Community Service",10055326,"134CmtySv",1340010001]
[134,"134Constable 4",10000290,1340020001,{"$f":"_xlfn.XLOOKUP(D556,FC_Master[Cost Center],FC_Master[rollup FC '#])","v":1340020001},null,null,null,null,null,null,null,null,null,134,"134Constable 4",10000290,"134Cnst4",1340020001]
[134,"134Constable 4 Administration",10000291,1340020001,{"$f":"_xlfn.XLOOKUP(D557,FC_Master[Cost Center],FC_Master[rollup FC '#])","v":1340020001},null,null,null,null,null,null,null,null,null,134,"134Constable 4 Administration",10000291,"134Adm",1340020001]
[135,"135Constable 5",10000293,1350010001,{"$f":"_xlfn.XLOOKUP(D558,FC_Master[Cost Center],FC_Master[rollup FC '#])","v":1350010001},null,null,null,null,null,null,null,null,null,135,"135Constable 5",10000293,"135Cnst5",1350010001]
[135,"135Constable 5 Management",10000294,1350010001,{"$f":"_xlfn.XLOOKUP(D559,FC_Master[Cost Center],FC_Master[rollup FC '#])","v":1350010001},null,null,null,null,null,null,null,null,null,135,"135Constable 5 Management",10000294,"135Mgmt",1350010001]
[135,"135Constable 5 HR/Financial",10000295,1350010001,{"$f":"_xlfn.XLOOKUP(D560,FC_Master[Cost Center],FC_Master[rollup FC '#])","v":1350010001},null,null,null,null,null,null,null,null,null,135,"135Constable 5 HR/Financial",10000295,"135HRFin",1350010001]
[135,"135Constable 5 Administration 2",10000297,1350010001,{"$f":"_xlfn.XLOOKUP(D561,FC_Master[Cost Center],FC_Master[rollup FC '#])","v":1350010001},null,null,null,null,null,null,null,null,null,135,"135Constable 5 Administration 2",10000297,"135Adm2",1350010001]
[135,"135Constable 5 Administration 1",10000298,1350010001,{"$f":"_xlfn.XLOOKUP(D562,FC_Master[Cost Center],FC_Master[rollup FC '#])","v":1350010001},null,null,null,null,null,null,null,null,null,135,"135Constable 5 Administration 1",10000298,"135Constable",1350010001]
[135,"135Constable 5 Business Analysis",10000299,1350010001,{"$f":"_xlfn.XLOOKUP(D563,FC_Master[Cost Center],FC_Master[rollup FC '#])","v":1350010001},null,null,null,null,null,null,null,null,null,135,"135Constable 5 Business Analysis",10000299,"135BA",1350010001]
[135,"135Constable 5 Deputies 1",10000300,1350010001,{"$f":"_xlfn.XLOOKUP(D564,FC_Master[Cost Center],FC_Master[rollup FC '#])","v":1350010001},null,null,null,null,null,null,null,null,null,135,"135Constable 5 Deputies 1",10000300,"135Dp1",1350010001]
[135,"135Constable 5 Deputies 2",10000301,1350010001,{"$f":"_xlfn.XLOOKUP(D565,FC_Master[Cost Center],FC_Master[rollup FC '#])","v":1350010001},null,null,null,null,null,null,null,null,null,135,"135Constable 5 Deputies 2",10000301,"135Dp2",1350010001]
[135,"135Constable 5 Deputies 3",10000302,1350010001,{"$f":"_xlfn.XLOOKUP(D566,FC_Master[Cost Center],FC_Master[rollup FC '#])","v":1350010001},null,null,null,null,null,null,null,null,null,135,"135Constable 5 Deputies 3",10000302,"135Dp3",1350010001]
[135,"135Constable 5 Deputies 4",10000303,1350010001,{"$f":"_xlfn.XLOOKUP(D567,FC_Master[Cost Center],FC_Master[rollup FC '#])","v":1350010001},null,null,null,null,null,null,null,null,null,135,"135Constable 5 Deputies 4",10000303,"135Dp4",1350010001]
[135,"135Constable 5 Operations",10050851,1350010001,{"$f":"_xlfn.XLOOKUP(D568,FC_Master[Cost Center],FC_Master[rollup FC '#])","v":1350010001},null,null,null,null,null,null,null,null,null,135,"135Constable 5 Operations",10050851,"135Ops",1350010001]
[135,"135Constable 5 Administration 3",10052126,1350010001,{"$f":"_xlfn.XLOOKUP(D569,FC_Master[Cost Center],FC_Master[rollup FC '#])","v":1350010001},null,null,null,null,null,null,null,null,null,135,"135Constable 5 Administration 3",10052126,"135Constable",1350010001]
[135,"135Constable 5 Deputies 5",10055751,1350010001,{"$f":"_xlfn.XLOOKUP(D570,FC_Master[Cost Center],FC_Master[rollup FC '#])","v":1350010001},null,null,null,null,null,null,null,null,null,135,"135Constable 5 Deputies 5",10055751,"135Dep5",1350010001]
[135,"135Constable 5 Administration",10056751,1350010001,{"$f":"_xlfn.XLOOKUP(D571,FC_Master[Cost Center],FC_Master[rollup FC '#])","v":1350010001},null,null,null,null,null,null,null,null,null,135,"135Constable 5 Administration",10056751,"135Adm",1350010001]
[137,"137SO Internal Affairs",10000449,1370020001,{"$f":"_xlfn.XLOOKUP(D572,FC_Master[Cost Center],FC_Master[rollup FC '#])","v":1370130001},null,null,null,null,null,null,null,null,null,137,"137SO Internal Affairs",10000449,"137IntnAfrs",1370020001]
[137,"137SO AS: Research and Planning",10000354,1370030001,{"$f":"_xlfn.XLOOKUP(D573,FC_Master[Cost Center],FC_Master[rollup FC '#])","v":1370130001},null,null,null,null,null,null,null,null,null,137,"137SO AS: Research and Planning",10000354,"137RsPl",1370030001]
[137,"137SO AS: Research and Planning Mgmt",10000794,1370030001,{"$f":"_xlfn.XLOOKUP(D574,FC_Master[Cost Center],FC_Master[rollup FC '#])","v":1370130001},null,null,null,null,null,null,null,null,null,137,"137SO AS: Research and Planning Mgmt",10000794,"137RsPlMgmt",1370030001]
[137,"137SO AS: Human Resources Mgmt",10000355,1370040001,{"$f":"_xlfn.XLOOKUP(D575,FC_Master[Cost Center],FC_Master[rollup FC '#])","v":1370170001},null,null,null,null,null,null,null,null,null,137,"137SO AS: Human Resources Mgmt",10000355,"137HRMgmt",1370040001]
[137,"137SO AS: Human Resources",10000356,1370040001,{"$f":"_xlfn.XLOOKUP(D576,FC_Master[Cost Center],FC_Master[rollup FC '#])","v":1370170001},null,null,null,null,null,null,null,null,null,137,"137SO AS: Human Resources",10000356,"137HR",1370040001]
[137,"137SO Military Leave",10000450,1370040001,{"$f":"_xlfn.XLOOKUP(D577,FC_Master[Cost Center],FC_Master[rollup FC '#])","v":1370170001},null,null,null,null,null,null,null,null,null,137,"137SO Military Leave",10000450,"137Military",1370040001]
[137,"137SO Unassigned",10000721,1370040001,{"$f":"_xlfn.XLOOKUP(D578,FC_Master[Cost Center],FC_Master[rollup FC '#])","v":1370170001},null,null,null,null,null,null,null,null,null,137,"137SO Unassigned",10000721,"137Unasg",1370040001]
[{"$f":"O579","v":137},{"$f":"P579","v":"137SO AS: Human Resources Supv"},{"$f":"VALUE(Q579)","v":10000791},{"$f":"VALUE(S579)","v":1370040001},{"$f":"_xlfn.XLOOKUP(D579,FC_Master[Cost Center],FC_Master[rollup FC '#])","v":1370170001},null,null,null,null,null,null,null,null,null,137,"137SO AS: Human Resources Supv",10000791,"137HRSupv",1370040001]
[137,"137SO AS: Recruiting",10052451,1370040001,{"$f":"_xlfn.XLOOKUP(D580,FC_Master[Cost Center],FC_Master[rollup FC '#])","v":1370170001},null,null,null,null,null,null,null,null,null,137,"137SO AS: Recruiting",10052451,"137Recruit",1370040001]
[137,"137SO AS: Finance Mgmt",10000357,1370050001,{"$f":"_xlfn.XLOOKUP(D581,FC_Master[Cost Center],FC_Master[rollup FC '#])","v":1370170001},null,null,null,null,null,null,null,null,null,137,"137SO AS: Finance Mgmt",10000357,"137FinMgmt",1370050001]
[137,"137SO AS: Finance Supv TCCC",10000358,1370050001,{"$f":"_xlfn.XLOOKUP(D582,FC_Master[Cost Center],FC_Master[rollup FC '#])","v":1370170001},null,null,null,null,null,null,null,null,null,137,"137SO AS: Finance Supv TCCC",10000358,"137FinSupv",1370050001]
[137,"137SO AS: Finance Supv Ruiz",10000359,1370050001,{"$f":"_xlfn.XLOOKUP(D583,FC_Master[Cost Center],FC_Master[rollup FC '#])","v":1370170001},null,null,null,null,null,null,null,null,null,137,"137SO AS: Finance Supv Ruiz",10000359,"137FinRuiz",1370050001]
[137,"137SO AS: Central Records",10000346,1370060001,{"$f":"_xlfn.XLOOKUP(D584,FC_Master[Cost Center],FC_Master[rollup FC '#])","v":1370170001},null,null,null,null,null,null,null,null,null,137,"137SO AS: Central Records",10000346,"137CRcd",1370060001]
[137,"137SO AS: Central Records Supv",10000350,1370060001,{"$f":"_xlfn.XLOOKUP(D585,FC_Master[Cost Center],FC_Master[rollup FC '#])","v":1370170001},null,null,null,null,null,null,null,null,null,137,"137SO AS: Central Records Supv",10000350,"137CRcdSupv",1370060001]
[137,"137SO AS: Central Warrants",10000347,1370070001,{"$f":"_xlfn.XLOOKUP(D586,FC_Master[Cost Center],FC_Master[rollup FC '#])","v":1370170001},null,null,null,null,null,null,null,null,null,137,"137SO AS: Central Warrants",10000347,"137CWrt",1370070001]
[137,"137SO AS: Central Warrants Mgmt",10000348,1370070001,{"$f":"_xlfn.XLOOKUP(D587,FC_Master[Cost Center],FC_Master[rollup FC '#])","v":1370170001},null,null,null,null,null,null,null,null,null,137,"137SO AS: Central Warrants Mgmt",10000348,"137CWrtMgmt",1370070001]
[137,"137SO AS: Lt Professional Services",10000329,1370080001,{"$f":"_xlfn.XLOOKUP(D588,FC_Master[Cost Center],FC_Master[rollup FC '#])","v":1370120001},null,null,null,null,null,null,null,null,null,137,"137SO AS: Lt Professional Services",10000329,"137LtPfS",1370080001]
[137,"137SO AS: Information Services",10000344,1370080001,{"$f":"_xlfn.XLOOKUP(D589,FC_Master[Cost Center],FC_Master[rollup FC '#])","v":1370120001},null,null,null,null,null,null,null,null,null,137,"137SO AS: Information Services",10000344,"137IS",1370080001]
[137,"137SO AS: Information Services Mgmt",10050826,1370080001,{"$f":"_xlfn.XLOOKUP(D590,FC_Master[Cost Center],FC_Master[rollup FC '#])","v":1370120001},null,null,null,null,null,null,null,null,null,137,"137SO AS: Information Services Mgmt",10050826,"137ISMgmt",1370080001]
[137,"137SO AS: Lt Training Academy",10000330,1370090001,{"$f":"_xlfn.XLOOKUP(D591,FC_Master[Cost Center],FC_Master[rollup FC '#])","v":1370170001},null,null,null,null,null,null,null,null,null,137,"137SO AS: Lt Training Academy",10000330,"137LtTrngAcd",1370090001]
[137,"137SO AS: Training Academy",10000342,1370090001,{"$f":"_xlfn.XLOOKUP(D592,FC_Master[Cost Center],FC_Master[rollup FC '#])","v":1370170001},null,null,null,null,null,null,null,null,null,137,"137SO AS: Training Academy",10000342,"137TrngAcd",1370090001]
[137,"137SO AS: Sgt Training Academy",10000795,1370090001,{"$f":"_xlfn.XLOOKUP(D593,FC_Master[Cost Center],FC_Master[rollup FC '#])","v":1370170001},null,null,null,null,null,null,null,null,null,137,"137SO AS: Sgt Training Academy",10000795,"137SgtTrng",1370090001]
[137,"137SO AS: Community Outreach Mgmt",10000341,1370110001,{"$f":"_xlfn.XLOOKUP(D594,FC_Master[Cost Center],FC_Master[rollup FC '#])","v":1370120001},null,null,null,null,null,null,null,null,null,137,"137SO AS: Community Outreach Mgmt",10000341,"137OtrhMgmt",1370110001]
[137,"137SO LE: Community Outreach",10000790,1370110001,{"$f":"_xlfn.XLOOKUP(D595,FC_Master[Cost Center],FC_Master[rollup FC '#])","v":1370120001},null,null,null,null,null,null,null,null,null,137,"137SO LE: Community Outreach",10000790,"137CmtyOtrh",1370110001]
[137,"137SO Major Administration and Support",10000308,1370120001,{"$f":"_xlfn.XLOOKUP(D596,FC_Master[Cost Center],FC_Master[rollup FC '#])","v":1370120001},null,null,null,null,null,null,null,null,null,137,"137SO Major Administration and Support",10000308,"137MajorAS",1370120001]
[137,"137SO AS: Legal Affairs",10056826,1370120001,{"$f":"_xlfn.XLOOKUP(D597,FC_Master[Cost Center],FC_Master[rollup FC '#])","v":1370120001},null,null,null,null,null,null,null,null,null,137,"137SO AS: Legal Affairs",10056826,"137LgAfrs",1370120001]
[137,"137SO Sheriff",10000304,1370130001,{"$f":"_xlfn.XLOOKUP(D598,FC_Master[Cost Center],FC_Master[rollup FC '#])","v":1370130001},null,null,null,null,null,null,null,null,null,137,"137SO Sheriff",10000304,"137Sheriff",1370130001]
[137,"137SO Chief Deputy Sheriff",10000305,1370130001,{"$f":"_xlfn.XLOOKUP(D599,FC_Master[Cost Center],FC_Master[rollup FC '#])","v":1370130001},null,null,null,null,null,null,null,null,null,137,"137SO Chief Deputy Sheriff",10000305,"137ChfDpShf",1370130001]
[137,"137SO Public Info & Forensic Media",10054326,1370130001,{"$f":"_xlfn.XLOOKUP(D600,FC_Master[Cost Center],FC_Master[rollup FC '#])","v":1370130001},null,null,null,null,null,null,null,null,null,137,"137SO Public Info & Forensic Media",10054326,"137PIFrncMdi",1370130001]
[137,"137SO AS: CJIS/TDC",10000345,1370140001,{"$f":"_xlfn.XLOOKUP(D601,FC_Master[Cost Center],FC_Master[rollup FC '#])","v":1370170001},null,null,null,null,null,null,null,null,null,137,"137SO AS: CJIS/TDC",10000345,"137CJISTDC",1370140001]
[137,"137SO AS: CJIS/TDC Supv",10000793,1370140001,{"$f":"_xlfn.XLOOKUP(D602,FC_Master[Cost Center],FC_Master[rollup FC '#])","v":1370170001},null,null,null,null,null,null,null,null,null,137,"137SO AS: CJIS/TDC Supv",10000793,"137CJISSupv",1370140001]
[137,"137SO Crc: Lt Complex Security",10000318,1370160001,{"$f":"_xlfn.XLOOKUP(D603,FC_Master[Cost Center],FC_Master[rollup FC '#])","v":1370440001},null,null,null,null,null,null,null,null,null,137,"137SO Crc: Lt Complex Security",10000318,"137LtCpxSec",1370160001]
[137,"137SO Crc: Complex Security: A-Shift",10000404,1370160001,{"$f":"_xlfn.XLOOKUP(D604,FC_Master[Cost Center],FC_Master[rollup FC '#])","v":1370440001},null,null,null,null,null,null,null,null,null,137,"137SO Crc: Complex Security: A-Shift",10000404,"137CpxSecASf",1370160001]
[137,"137SO Crc: Complex Security: B-Shift",10000405,1370160001,{"$f":"_xlfn.XLOOKUP(D605,FC_Master[Cost Center],FC_Master[rollup FC '#])","v":1370440001},null,null,null,null,null,null,null,null,null,137,"137SO Crc: Complex Security: B-Shift",10000405,"137CpxSecBSf",1370160001]
[137,"137SO Crc: Complex Security: C-Shift",10000406,1370160001,{"$f":"_xlfn.XLOOKUP(D606,FC_Master[Cost Center],FC_Master[rollup FC '#])","v":1370440001},null,null,null,null,null,null,null,null,null,137,"137SO Crc: Complex Security: C-Shift",10000406,"137CpxSecCSf",1370160001]
[137,"137SO Crc: Complex Security Support",10000408,1370160001,{"$f":"_xlfn.XLOOKUP(D607,FC_Master[Cost Center],FC_Master[rollup FC '#])","v":1370440001},null,null,null,null,null,null,null,null,null,137,"137SO Crc: Complex Security Support",10000408,"137CSS",1370160001]
[137,"137SO Crc: Sgt Complex Security",10000818,1370160001,{"$f":"_xlfn.XLOOKUP(D608,FC_Master[Cost Center],FC_Master[rollup FC '#])","v":1370440001},null,null,null,null,null,null,null,null,null,137,"137SO Crc: Sgt Complex Security",10000818,"137SgtCpxSec",1370160001]
[137,"137SO Crc: Complex Security: D-Shift",10052101,1370160001,{"$f":"_xlfn.XLOOKUP(D609,FC_Master[Cost Center],FC_Master[rollup FC '#])","v":1370440001},null,null,null,null,null,null,null,null,null,137,"137SO Crc: Complex Security: D-Shift",10052101,"137CpxSecDSf",1370160001]
[137,"137SO Crc: CSTU",10055576,1370160001,{"$f":"_xlfn.XLOOKUP(D610,FC_Master[Cost Center],FC_Master[rollup FC '#])","v":1370440001},null,null,null,null,null,null,null,null,null,137,"137SO Crc: CSTU",10055576,"137CSTU",1370160001]
[137,"137SO AS: CTECC",10000353,1370260001,{"$f":"_xlfn.XLOOKUP(D611,FC_Master[Cost Center],FC_Master[rollup FC '#])","v":1370260001},null,null,null,null,null,null,null,null,null,137,"137SO AS: CTECC",10000353,"137CTECC",1370260001]
[137,"137SO AS: Sgt CTECC",10052028,1370260001,{"$f":"_xlfn.XLOOKUP(D612,FC_Master[Cost Center],FC_Master[rollup FC '#])","v":1370260001},null,null,null,null,null,null,null,null,null,137,"137SO AS: Sgt CTECC",10052028,"137SgtCTECC",1370260001]
[137,"137SO Crc: Lt Building 1",10000323,1370270001,{"$f":"_xlfn.XLOOKUP(D613,FC_Master[Cost Center],FC_Master[rollup FC '#])","v":1370440001},null,null,null,null,null,null,null,null,null,137,"137SO Crc: Lt Building 1",10000323,"137LtBldg1",1370270001]
[137,"137SO Crc: Building 1: A-Shift",10000386,1370270001,{"$f":"_xlfn.XLOOKUP(D614,FC_Master[Cost Center],FC_Master[rollup FC '#])","v":1370440001},null,null,null,null,null,null,null,null,null,137,"137SO Crc: Building 1: A-Shift",10000386,"137Bldg1A",1370270001]
[137,"137SO Crc: Building 1: B-Shift",10000387,1370270001,{"$f":"_xlfn.XLOOKUP(D615,FC_Master[Cost Center],FC_Master[rollup FC '#])","v":1370440001},null,null,null,null,null,null,null,null,null,137,"137SO Crc: Building 1: B-Shift",10000387,"137Bldg1B",1370270001]
[137,"137SO Crc: Building 1: C-Shift",10000388,1370270001,{"$f":"_xlfn.XLOOKUP(D616,FC_Master[Cost Center],FC_Master[rollup FC '#])","v":1370440001},null,null,null,null,null,null,null,null,null,137,"137SO Crc: Building 1: C-Shift",10000388,"137Bldg1C",1370270001]
[137,"137SO Crc: Sgt Building 1",10000806,1370270001,{"$f":"_xlfn.XLOOKUP(D617,FC_Master[Cost Center],FC_Master[rollup FC '#])","v":1370440001},null,null,null,null,null,null,null,null,null,137,"137SO Crc: Sgt Building 1",10000806,"137SgtBldg1",1370270001]
[137,"137SO Crc: Lt Building 3, 5 & 9",10000322,1370280001,{"$f":"_xlfn.XLOOKUP(D618,FC_Master[Cost Center],FC_Master[rollup FC '#])","v":1370440001},null,null,null,null,null,null,null,null,null,137,"137SO Crc: Lt Building 3, 5 & 9",10000322,"137LtBldg359",1370280001]
[137,"137SO Crc: Sgt Building 3, 5 & 9",10000389,1370280001,{"$f":"_xlfn.XLOOKUP(D619,FC_Master[Cost Center],FC_Master[rollup FC '#])","v":1370440001},null,null,null,null,null,null,null,null,null,137,"137SO Crc: Sgt Building 3, 5 & 9",10000389,"137Sgt359",1370280001]
[137,"137SO Crc: Bldg 2&10: A-Shift",10000390,1370280001,{"$f":"_xlfn.XLOOKUP(D620,FC_Master[Cost Center],FC_Master[rollup FC '#])","v":1370440001},null,null,null,null,null,null,null,null,null,137,"137SO Crc: Bldg 2&10: A-Shift",10000390,"137Bldg2A",1370280001]
[137,"137SO Crc: Bldg 2&10: B-Shift",10000391,1370280001,{"$f":"_xlfn.XLOOKUP(D621,FC_Master[Cost Center],FC_Master[rollup FC '#])","v":1370440001},null,null,null,null,null,null,null,null,null,137,"137SO Crc: Bldg 2&10: B-Shift",10000391,"137Bldg2B",1370280001]
[137,"137SO Crc: Bldg 2&10: C-Shift",10000392,1370280001,{"$f":"_xlfn.XLOOKUP(D622,FC_Master[Cost Center],FC_Master[rollup FC '#])","v":1370440001},null,null,null,null,null,null,null,null,null,137,"137SO Crc: Bldg 2&10: C-Shift",10000392,"137Bldg2C",1370280001]
[137,"137SO Crc: Bldg 3 5/9: A-Shift",10000393,1370280001,{"$f":"_xlfn.XLOOKUP(D623,FC_Master[Cost Center],FC_Master[rollup FC '#])","v":1370440001},null,null,null,null,null,null,null,null,null,137,"137SO Crc: Bldg 3 5/9: A-Shift",10000393,"137Bldg3A",1370280001]
[137,"137SO Crc: Bldg 3 5/9: B-Shift",10000394,1370280001,{"$f":"_xlfn.XLOOKUP(D624,FC_Master[Cost Center],FC_Master[rollup FC '#])","v":1370440001},null,null,null,null,null,null,null,null,null,137,"137SO Crc: Bldg 3 5/9: B-Shift",10000394,"137Bldg3B",1370280001]
[137,"137SO Crc: Bldg 3 5/9: C-Shift",10000395,1370280001,{"$f":"_xlfn.XLOOKUP(D625,FC_Master[Cost Center],FC_Master[rollup FC '#])","v":1370440001},null,null,null,null,null,null,null,null,null,137,"137SO Crc: Bldg 3 5/9: C-Shift",10000395,"137Bldg3C",1370280001]
[137,"137SO Crc: Standards & Compliance",10054151,1370280001,{"$f":"_xlfn.XLOOKUP(D626,FC_Master[Cost Center],FC_Master[rollup FC '#])","v":1370440001},null,null,null,null,null,null,null,null,null,137,"137SO Crc: Standards & Compliance",10054151,"137Std&Cm",1370280001]
[137,"137SO Crc: Sgt Building 2 & 10",10054176,1370280001,{"$f":"_xlfn.XLOOKUP(D627,FC_Master[Cost Center],FC_Master[rollup FC '#])","v":1370440001},null,null,null,null,null,null,null,null,null,137,"137SO Crc: Sgt Building 2 & 10",10054176,"137Sgt2&10",1370280001]
[137,"137SO Crc: Programs",10056301,1370280001,{"$f":"_xlfn.XLOOKUP(D628,FC_Master[Cost Center],FC_Master[rollup FC '#])","v":1370440001},null,null,null,null,null,null,null,null,null,137,"137SO Crc: Programs",10056301,"137Pg",1370280001]
[137,"137SO Crc: PREA",10056302,1370280001,{"$f":"_xlfn.XLOOKUP(D629,FC_Master[Cost Center],FC_Master[rollup FC '#])","v":1370440001},null,null,null,null,null,null,null,null,null,137,"137SO Crc: PREA",10056302,"137Prea",1370280001]
[137,"137SO Crc: Recreation",10056303,1370280001,{"$f":"_xlfn.XLOOKUP(D630,FC_Master[Cost Center],FC_Master[rollup FC '#])","v":1370440001},null,null,null,null,null,null,null,null,null,137,"137SO Crc: Recreation",10056303,"137Recn",1370280001]
[137,"137SO Crc: CareWare",10056304,1370280001,{"$f":"_xlfn.XLOOKUP(D631,FC_Master[Cost Center],FC_Master[rollup FC '#])","v":1370440001},null,null,null,null,null,null,null,null,null,137,"137SO Crc: CareWare",10056304,"137CW",1370280001]
[137,"137SO Crc: Temp Manager",10056305,1370280001,{"$f":"_xlfn.XLOOKUP(D632,FC_Master[Cost Center],FC_Master[rollup FC '#])","v":1370440001},null,null,null,null,null,null,null,null,null,137,"137SO Crc: Temp Manager",10056305,"137TempMgr",1370280001]
[137,"137SO Crc: Mailroom",10056351,1370280001,{"$f":"_xlfn.XLOOKUP(D633,FC_Master[Cost Center],FC_Master[rollup FC '#])","v":1370440001},null,null,null,null,null,null,null,null,null,137,"137SO Crc: Mailroom",10056351,"137Mlr",1370280001]
[137,"137SO Crc: Housing & Special Operations",10000312,1370290001,{"$f":"_xlfn.XLOOKUP(D634,FC_Master[Cost Center],FC_Master[rollup FC '#])","v":1370440001},null,null,null,null,null,null,null,null,null,137,"137SO Crc: Housing & Special Operations",10000312,"137HsgSpOps",1370290001]
[137,"137SO Crc: Lt Building 12: T4",10000321,1370290001,{"$f":"_xlfn.XLOOKUP(D635,FC_Master[Cost Center],FC_Master[rollup FC '#])","v":1370440001},null,null,null,null,null,null,null,null,null,137,"137SO Crc: Lt Building 12: T4",10000321,"137Lt12T4",1370290001]
[137,"137SO Crc: Sgt Building 12: T1",10000810,1370290001,{"$f":"_xlfn.XLOOKUP(D636,FC_Master[Cost Center],FC_Master[rollup FC '#])","v":1370440001},null,null,null,null,null,null,null,null,null,137,"137SO Crc: Sgt Building 12: T1",10000810,"137Sgt12T1",1370290001]
[137,"137SO Crc: Sgt Building 12: T2",10000811,1370290001,{"$f":"_xlfn.XLOOKUP(D637,FC_Master[Cost Center],FC_Master[rollup FC '#])","v":1370440001},null,null,null,null,null,null,null,null,null,137,"137SO Crc: Sgt Building 12: T2",10000811,"137Sgt12T2",1370290001]
[137,"137SO Crc: Sgt Building 12: T3",10000812,1370290001,{"$f":"_xlfn.XLOOKUP(D638,FC_Master[Cost Center],FC_Master[rollup FC '#])","v":1370440001},null,null,null,null,null,null,null,null,null,137,"137SO Crc: Sgt Building 12: T3",10000812,"137Sgt12T3",1370290001]
[137,"137SO Crc: Building 12: T1",10000814,1370290001,{"$f":"_xlfn.XLOOKUP(D639,FC_Master[Cost Center],FC_Master[rollup FC '#])","v":1370440001},null,null,null,null,null,null,null,null,null,137,"137SO Crc: Building 12: T1",10000814,"137Bldg12T1",1370290001]
[137,"137SO Crc: Building 12: T2",10000815,1370290001,{"$f":"_xlfn.XLOOKUP(D640,FC_Master[Cost Center],FC_Master[rollup FC '#])","v":1370440001},null,null,null,null,null,null,null,null,null,137,"137SO Crc: Building 12: T2",10000815,"137Bldg12T2",1370290001]
[137,"137SO Crc: Building 12: T3",10000816,1370290001,{"$f":"_xlfn.XLOOKUP(D641,FC_Master[Cost Center],FC_Master[rollup FC '#])","v":1370440001},null,null,null,null,null,null,null,null,null,137,"137SO Crc: Building 12: T3",10000816,"137Bldg12T3",1370290001]
[137,"137SO Crc: Building 12: T4",10000817,1370290001,{"$f":"_xlfn.XLOOKUP(D642,FC_Master[Cost Center],FC_Master[rollup FC '#])","v":1370440001},null,null,null,null,null,null,null,null,null,137,"137SO Crc: Building 12: T4",10000817,"137Bldg12T4",1370290001]
[{"$f":"O643","v":137},{"$f":"P643","v":"137SO Crc: Sgt Building 12: T4"},{"$f":"VALUE(Q643)","v":10051976},{"$f":"VALUE(S643)","v":1370290001},{"$f":"_xlfn.XLOOKUP(D643,FC_Master[Cost Center],FC_Master[rollup FC '#])","v":1370440001},null,null,null,null,null,null,null,null,null,137,"137SO Crc: Sgt Building 12: T4",10051976,"137Sgt12T4",1370290001]
[137,"137SO Crc: Commissary",10000375,1370310001,{"$f":"_xlfn.XLOOKUP(D644,FC_Master[Cost Center],FC_Master[rollup FC '#])","v":1370310001},null,null,null,null,null,null,null,null,null,137,"137SO Crc: Commissary",10000375,"137Cmsry",1370310001]
[137,"137SO Crc: Warehouse Manager",10000802,1370310001,{"$f":"_xlfn.XLOOKUP(D645,FC_Master[Cost Center],FC_Master[rollup FC '#])","v":1370310001},null,null,null,null,null,null,null,null,null,137,"137SO Crc: Warehouse Manager",10000802,"137CmsryMgr",1370310001]
[137,"137SO AS: Lt Courthouse Security",10000327,1370320001,{"$f":"_xlfn.XLOOKUP(D646,FC_Master[Cost Center],FC_Master[rollup FC '#])","v":1370320001},null,null,null,null,null,null,null,null,null,137,"137SO AS: Lt Courthouse Security",10000327,"137LtCtSec",1370320001]
[137,"137SO Crc: Courthouse Security",10000368,1370320001,{"$f":"_xlfn.XLOOKUP(D647,FC_Master[Cost Center],FC_Master[rollup FC '#])","v":1370320001},null,null,null,null,null,null,null,null,null,137,"137SO Crc: Courthouse Security",10000368,"137CtSec",1370320001]
[137,"137SO AS: Sgt Courthouse Security",10000798,1370320001,{"$f":"_xlfn.XLOOKUP(D648,FC_Master[Cost Center],FC_Master[rollup FC '#])","v":1370320001},null,null,null,null,null,null,null,null,null,137,"137SO AS: Sgt Courthouse Security",10000798,"137SgtCtSec",1370320001]
[137,"137SO AS: Courthouse Security - Gen Fd",10051231,1370320001,{"$f":"_xlfn.XLOOKUP(D649,FC_Master[Cost Center],FC_Master[rollup FC '#])","v":1370320001},null,null,null,null,null,null,null,null,null,137,"137SO AS: Courthouse Security - Gen Fd",10051231,"137CtSecGF",1370320001]
[137,"137SO Crc: Facilities Bldg Mnt Engineer",10000339,1370330001,{"$f":"_xlfn.XLOOKUP(D650,FC_Master[Cost Center],FC_Master[rollup FC '#])","v":1370440001},null,null,null,null,null,null,null,null,null,137,"137SO Crc: Facilities Bldg Mnt Engineer",10000339,"137FclMnt",1370330001]
[137,"137SO Crc: Locksmith Supervisor",10056377,1370330001,{"$f":"_xlfn.XLOOKUP(D651,FC_Master[Cost Center],FC_Master[rollup FC '#])","v":1370440001},null,null,null,null,null,null,null,null,null,137,"137SO Crc: Locksmith Supervisor",10056377,"137LcsSupv",1370330001]
[137,"137SO Crc: Risk/Safety",10000340,1370340001,{"$f":"_xlfn.XLOOKUP(D652,FC_Master[Cost Center],FC_Master[rollup FC '#])","v":1370440001},null,null,null,null,null,null,null,null,null,137,"137SO Crc: Risk/Safety",10000340,"137RskSft",1370340001]
[137,"137SO Crc: Risk/Safety Mgmt",10000796,1370340001,{"$f":"_xlfn.XLOOKUP(D653,FC_Master[Cost Center],FC_Master[rollup FC '#])","v":1370440001},null,null,null,null,null,null,null,null,null,137,"137SO Crc: Risk/Safety Mgmt",10000796,"137RskMgmt",1370340001]
[137,"137SO Crc: Lt HSB",10000320,1370350001,{"$f":"_xlfn.XLOOKUP(D654,FC_Master[Cost Center],FC_Master[rollup FC '#])","v":1370440001},null,null,null,null,null,null,null,null,null,137,"137SO Crc: Lt HSB",10000320,"137LtHSB",1370350001]
[137,"137SO Crc: HSB: A-Shift",10000397,1370350001,{"$f":"_xlfn.XLOOKUP(D655,FC_Master[Cost Center],FC_Master[rollup FC '#])","v":1370440001},null,null,null,null,null,null,null,null,null,137,"137SO Crc: HSB: A-Shift",10000397,"137HSBA",1370350001]
[137,"137SO Crc: HSB: B-Shift",10000398,1370350001,{"$f":"_xlfn.XLOOKUP(D656,FC_Master[Cost Center],FC_Master[rollup FC '#])","v":1370440001},null,null,null,null,null,null,null,null,null,137,"137SO Crc: HSB: B-Shift",10000398,"137HSBB",1370350001]
[137,"137SO Crc: HSB: C-Shift",10000399,1370350001,{"$f":"_xlfn.XLOOKUP(D657,FC_Master[Cost Center],FC_Master[rollup FC '#])","v":1370440001},null,null,null,null,null,null,null,null,null,137,"137SO Crc: HSB: C-Shift",10000399,"137HSBC",1370350001]
[137,"137SO Crc: Sgt HSB",10000805,1370350001,{"$f":"_xlfn.XLOOKUP(D658,FC_Master[Cost Center],FC_Master[rollup FC '#])","v":1370440001},null,null,null,null,null,null,null,null,null,137,"137SO Crc: Sgt HSB",10000805,"137HSB",1370350001]
[137,"137SO Crc: Lt Hospital Vstn Unit",10000319,1370360001,{"$f":"_xlfn.XLOOKUP(D659,FC_Master[Cost Center],FC_Master[rollup FC '#])","v":1370440001},null,null,null,null,null,null,null,null,null,137,"137SO Crc: Lt Hospital Vstn Unit",10000319,"137LtHV",1370360001]
[137,"137SO Crc: Hospital Vstn Unit: A-Shift",10000401,1370360001,{"$f":"_xlfn.XLOOKUP(D660,FC_Master[Cost Center],FC_Master[rollup FC '#])","v":1370440001},null,null,null,null,null,null,null,null,null,137,"137SO Crc: Hospital Vstn Unit: A-Shift",10000401,"137HVA",1370360001]
[137,"137SO Crc: Hospital Vstn Unit: B-Shift",10000402,1370360001,{"$f":"_xlfn.XLOOKUP(D661,FC_Master[Cost Center],FC_Master[rollup FC '#])","v":1370440001},null,null,null,null,null,null,null,null,null,137,"137SO Crc: Hospital Vstn Unit: B-Shift",10000402,"137HVB",1370360001]
[137,"137SO Crc: Hospital Vstn Unit: C-Shift",10000403,1370360001,{"$f":"_xlfn.XLOOKUP(D662,FC_Master[Cost Center],FC_Master[rollup FC '#])","v":1370440001},null,null,null,null,null,null,null,null,null,137,"137SO Crc: Hospital Vstn Unit: C-Shift",10000403,"137HVC",1370360001]
[137,"137SO Crc: Sgt Hospital Vstn Unit",10000799,1370360001,{"$f":"_xlfn.XLOOKUP(D663,FC_Master[Cost Center],FC_Master[rollup FC '#])","v":1370440001},null,null,null,null,null,null,null,null,null,137,"137SO Crc: Sgt Hospital Vstn Unit",10000799,"137SgtHV",1370360001]
[137,"137SO Crc: Inmate Services",10000326,1370370001,{"$f":"_xlfn.XLOOKUP(D664,FC_Master[Cost Center],FC_Master[rollup FC '#])","v":1370440001},null,null,null,null,null,null,null,null,null,137,"137SO Crc: Inmate Services",10000326,"137InmateSv",1370370001]
[137,"137SO Crc: Food Services AM Shift",10000374,1370370001,{"$f":"_xlfn.XLOOKUP(D665,FC_Master[Cost Center],FC_Master[rollup FC '#])","v":1370440001},"Is this only for unpaid volunteers?",null,null,null,null,null,null,null,null,137,"137SO Crc: Food Services AM Shift",10000374,"137FoodSvAM",1370370001]
[137,"137SO Crc: Sgt Food Services",10000804,1370370001,{"$f":"_xlfn.XLOOKUP(D666,FC_Master[Cost Center],FC_Master[rollup FC '#])","v":1370440001},null,null,null,null,null,null,null,null,null,137,"137SO Crc: Sgt Food Services",10000804,"137SgtFoodSv",1370370001]
[137,"137SO Crc: Food Services PM Shift",10056076,1370370001,{"$f":"_xlfn.XLOOKUP(D667,FC_Master[Cost Center],FC_Master[rollup FC '#])","v":1370440001},null,null,null,null,null,null,null,null,null,137,"137SO Crc: Food Services PM Shift",10056076,"137FoodSvPM",1370370001]
[137,"137SO Crc: Facilities",10000376,1370380001,{"$f":"_xlfn.XLOOKUP(D668,FC_Master[Cost Center],FC_Master[rollup FC '#])","v":1370440001},null,null,null,null,null,null,null,null,null,137,"137SO Crc: Facilities",10000376,"137Fcl",1370380001]
[137,"137SO Crc: Sgt Facilities",10000803,1370380001,{"$f":"_xlfn.XLOOKUP(D669,FC_Master[Cost Center],FC_Master[rollup FC '#])","v":1370440001},null,null,null,null,null,null,null,null,null,137,"137SO Crc: Sgt Facilities",10000803,"137SgtFcl",1370380001]
[137,"137SO Crc: Maintenance Mgmt",10000369,1370390001,{"$f":"_xlfn.XLOOKUP(D670,FC_Master[Cost Center],FC_Master[rollup FC '#])","v":1370440001},null,null,null,null,null,null,null,null,null,137,"137SO Crc: Maintenance Mgmt",10000369,"137MntMgmt",1370390001]
[137,"137SO Crc: Maintenance Supv/Spt",10000371,1370390001,{"$f":"_xlfn.XLOOKUP(D671,FC_Master[Cost Center],FC_Master[rollup FC '#])","v":1370440001},null,null,null,null,null,null,null,null,null,137,"137SO Crc: Maintenance Supv/Spt",10000371,"137MntSupv",1370390001]
[137,"137SO Crc: Maintenance",10000372,1370390001,{"$f":"_xlfn.XLOOKUP(D672,FC_Master[Cost Center],FC_Master[rollup FC '#])","v":1370440001},null,null,null,null,null,null,null,null,null,137,"137SO Crc: Maintenance",10000372,"137Mnt",1370390001]
[137,"137SO Crc: Marketable Skills",10000370,1370400001,{"$f":"_xlfn.XLOOKUP(D673,FC_Master[Cost Center],FC_Master[rollup FC '#])","v":1370440001},null,null,null,null,null,null,null,null,null,137,"137SO Crc: Marketable Skills",10000370,"137MkSk",1370400001]
[137,"137SO Crc: Marketable Skills Mgmt",10000801,1370400001,{"$f":"_xlfn.XLOOKUP(D674,FC_Master[Cost Center],FC_Master[rollup FC '#])","v":1370440001},"Is this only for temps?",null,null,null,null,null,null,null,null,137,"137SO Crc: Marketable Skills Mgmt",10000801,"137MkSkMgmt",1370400001]
[137,"137SO Crc: Safety & Inmate Skills",10052353,1370400001,{"$f":"_xlfn.XLOOKUP(D675,FC_Master[Cost Center],FC_Master[rollup FC '#])","v":1370440001},null,null,null,null,null,null,null,null,null,137,"137SO Crc: Safety & Inmate Skills",10052353,"Sft/InmtSkl",1370400001]
[137,"137SO Crc: Lt Classifications/Rcd",10000317,1370410001,{"$f":"_xlfn.XLOOKUP(D676,FC_Master[Cost Center],FC_Master[rollup FC '#])","v":1370440001},null,null,null,null,null,null,null,null,null,137,"137SO Crc: Lt Classifications/Rcd",10000317,"137LtClfRcd",1370410001]
[137,"137SO Crc: Classifications/Rcd",10000409,1370410001,{"$f":"_xlfn.XLOOKUP(D677,FC_Master[Cost Center],FC_Master[rollup FC '#])","v":1370440001},null,null,null,null,null,null,null,null,null,137,"137SO Crc: Classifications/Rcd",10000409,"137ClfRcd",1370410001]
[137,"137SO Crc: Sgt/Spv Classifications/Rcd",10000800,1370410001,{"$f":"_xlfn.XLOOKUP(D678,FC_Master[Cost Center],FC_Master[rollup FC '#])","v":1370440001},null,null,null,null,null,null,null,null,null,137,"137SO Crc: Sgt/Spv Classifications/Rcd",10000800,"137SgtCfsRcd",1370410001]
[137,"137SO AS: Lt Transportation",10000328,1370420001,{"$f":"_xlfn.XLOOKUP(D679,FC_Master[Cost Center],FC_Master[rollup FC '#])","v":1370440001},null,null,null,null,null,null,null,null,null,137,"137SO AS: Lt Transportation",10000328,"137LtTrns",1370420001]
[137,"137SO AS: Transportation",10000367,1370420001,{"$f":"_xlfn.XLOOKUP(D680,FC_Master[Cost Center],FC_Master[rollup FC '#])","v":1370440001},null,null,null,null,null,null,null,null,null,137,"137SO AS: Transportation",10000367,"137Trns",1370420001]
[137,"137SO AS: Sgt Transportation",10000797,1370420001,{"$f":"_xlfn.XLOOKUP(D681,FC_Master[Cost Center],FC_Master[rollup FC '#])","v":1370440001},null,null,null,null,null,null,null,null,null,137,"137SO AS: Sgt Transportation",10000797,"137SgtTrns",1370420001]
[137,"137SO Crc: Lt Travis County Jail",10000325,1370430001,{"$f":"_xlfn.XLOOKUP(D682,FC_Master[Cost Center],FC_Master[rollup FC '#])","v":1370440001},null,null,null,null,null,null,null,null,null,137,"137SO Crc: Lt Travis County Jail",10000325,"137LtTCJ",1370430001]
[137,"137SO Crc: Sgt Travis County Jail",10000377,1370430001,{"$f":"_xlfn.XLOOKUP(D683,FC_Master[Cost Center],FC_Master[rollup FC '#])","v":1370440001},null,null,null,null,null,null,null,null,null,137,"137SO Crc: Sgt Travis County Jail",10000377,"137SgtTCJ",1370430001]
[137,"137SO Crc: Travis County Jail: A-Shift",10000378,1370430001,{"$f":"_xlfn.XLOOKUP(D684,FC_Master[Cost Center],FC_Master[rollup FC '#])","v":1370440001},null,null,null,null,null,null,null,null,null,137,"137SO Crc: Travis County Jail: A-Shift",10000378,"137TCJT1",1370430001]
[137,"137SO Crc: Travis County Jail: B-Shift",10000379,1370430001,{"$f":"_xlfn.XLOOKUP(D685,FC_Master[Cost Center],FC_Master[rollup FC '#])","v":1370440001},null,null,null,null,null,null,null,null,null,137,"137SO Crc: Travis County Jail: B-Shift",10000379,"137TCJT2",1370430001]
[137,"137SO Crc: Travis County Jail: C-Shift",10000380,1370430001,{"$f":"_xlfn.XLOOKUP(D686,FC_Master[Cost Center],FC_Master[rollup FC '#])","v":1370440001},null,null,null,null,null,null,null,null,null,137,"137SO Crc: Travis County Jail: C-Shift",10000380,"137TCJT3",1370430001]
[137,"137SO Major Corrections",10000306,1370440001,{"$f":"_xlfn.XLOOKUP(D687,FC_Master[Cost Center],FC_Master[rollup FC '#])","v":1370440001},null,null,null,null,null,null,null,null,null,137,"137SO Major Corrections",10000306,"137MajorCrc",1370440001]
[137,"137SO Crc: Housing & Compliance",10000313,1370440001,{"$f":"_xlfn.XLOOKUP(D688,FC_Master[Cost Center],FC_Master[rollup FC '#])","v":1370440001},null,null,null,null,null,null,null,null,null,137,"137SO Crc: Housing & Compliance",10000313,"137Hsg&Cm",1370440001]
[137,"137SO AS: Captain Downtown Operations",10000314,1370440001,{"$f":"_xlfn.XLOOKUP(D689,FC_Master[Cost Center],FC_Master[rollup FC '#])","v":1370440001},null,null,null,null,null,null,null,null,null,137,"137SO AS: Captain Downtown Operations",10000314,"137CpDwtOps",1370440001]
[137,"137SO Crc: Housing & Support Services",10000315,1370440001,{"$f":"_xlfn.XLOOKUP(D690,FC_Master[Cost Center],FC_Master[rollup FC '#])","v":1370440001},null,null,null,null,null,null,null,null,null,137,"137SO Crc: Housing & Support Services",10000315,"137Hsg&SpSv",1370440001]
[137,"137SO Crc: CB: A-Shift Non-Interlocal",10051228,1370440001,{"$f":"_xlfn.XLOOKUP(D691,FC_Master[Cost Center],FC_Master[rollup FC '#])","v":1370440001},null,null,null,null,null,null,null,null,null,137,"137SO Crc: CB: A-Shift Non-Interlocal",10051228,"137CBANonI",1370440001]
[137,"137SO Crc: CB: B-Shift Non-Interlocal",10051229,1370440001,{"$f":"_xlfn.XLOOKUP(D692,FC_Master[Cost Center],FC_Master[rollup FC '#])","v":1370440001},null,null,null,null,null,null,null,null,null,137,"137SO Crc: CB: B-Shift Non-Interlocal",10051229,"137CBBNonI",1370440001]
[137,"137SO Crc: CB: C-Shift Non-Interlocal",10051230,1370440001,{"$f":"_xlfn.XLOOKUP(D693,FC_Master[Cost Center],FC_Master[rollup FC '#])","v":1370440001},null,null,null,null,null,null,null,null,null,137,"137SO Crc: CB: C-Shift Non-Interlocal",10051230,"137CBCNonI",1370440001]
[137,"137SO AS: Crc Ofr Basic Recruit Acd",10051901,1370440001,{"$f":"_xlfn.XLOOKUP(D694,FC_Master[Cost Center],FC_Master[rollup FC '#])","v":1370440001},null,null,null,null,null,null,null,null,null,137,"137SO AS: Crc Ofr Basic Recruit Acd",10051901,"137COBRA",1370440001]
[137,"137SO Crc: PREA Compliance",10052576,1370440001,{"$f":"_xlfn.XLOOKUP(D695,FC_Master[Cost Center],FC_Master[rollup FC '#])","v":1370440001},null,null,null,null,null,null,null,null,null,137,"137SO Crc: PREA Compliance",10052576,"137CrcPREACm",1370440001]
[137,"137SO Crc: Food Service Security",10053301,1370440001,{"$f":"_xlfn.XLOOKUP(D696,FC_Master[Cost Center],FC_Master[rollup FC '#])","v":1370440001},null,null,null,null,null,null,null,null,null,137,"137SO Crc: Food Service Security",10053301,"137FoodSvSec",1370440001]
[137,"137SO AS: Crc Basic PO Course",10054053,1370440001,{"$f":"_xlfn.XLOOKUP(D697,FC_Master[Cost Center],FC_Master[rollup FC '#])","v":1370440001},null,null,null,null,null,null,null,null,null,137,"137SO AS: Crc Basic PO Course",10054053,"137CrcBPOC",1370440001]
[137,"137SO Crc: Lt Building 12: T1",10056626,1370440001,{"$f":"_xlfn.XLOOKUP(D698,FC_Master[Cost Center],FC_Master[rollup FC '#])","v":1370440001},null,null,null,null,null,null,null,null,null,137,"137SO Crc: Lt Building 12: T1",10056626,"137Lt12T1",1370440001]
[137,"137SO Crc: Lt Building 12: T2",10056627,1370440001,{"$f":"_xlfn.XLOOKUP(D699,FC_Master[Cost Center],FC_Master[rollup FC '#])","v":1370440001},null,null,null,null,null,null,null,null,null,137,"137SO Crc: Lt Building 12: T2",10056627,"137Lt12T2",1370440001]
[137,"137SO Crc: Lt Building 12: T3",10056628,1370440001,{"$f":"_xlfn.XLOOKUP(D700,FC_Master[Cost Center],FC_Master[rollup FC '#])","v":1370440001},null,null,null,null,null,null,null,null,null,137,"137SO Crc: Lt Building 12: T3",10056628,"137Lt12T3",1370440001]
[137,"137SO Crc: Inmate Logistics & Processing",10000316,1370460001,{"$f":"_xlfn.XLOOKUP(D701,FC_Master[Cost Center],FC_Master[rollup FC '#])","v":1370460001},null,null,null,null,null,null,null,null,null,137,"137SO Crc: Inmate Logistics & Processing",10000316,"137ImLogProc",1370460001]
[137,"137SO Crc: Lt Central Booking",10000324,1370460001,{"$f":"_xlfn.XLOOKUP(D702,FC_Master[Cost Center],FC_Master[rollup FC '#])","v":1370460001},null,null,null,null,null,null,null,null,null,137,"137SO Crc: Lt Central Booking",10000324,"137LtCB",1370460001]
[137,"137SO Crc: Sgt Central Booking",10000382,1370460001,{"$f":"_xlfn.XLOOKUP(D703,FC_Master[Cost Center],FC_Master[rollup FC '#])","v":1370460001},null,null,null,null,null,null,null,null,null,137,"137SO Crc: Sgt Central Booking",10000382,"137SgtCB",1370460001]
[137,"137SO Crc: Central Booking: A-Shift",10000383,1370460001,{"$f":"_xlfn.XLOOKUP(D704,FC_Master[Cost Center],FC_Master[rollup FC '#])","v":1370460001},null,null,null,null,null,null,null,null,null,137,"137SO Crc: Central Booking: A-Shift",10000383,"137CBA",1370460001]
[137,"137SO Crc: Central Booking: B-Shift",10000384,1370460001,{"$f":"_xlfn.XLOOKUP(D705,FC_Master[Cost Center],FC_Master[rollup FC '#])","v":1370460001},null,null,null,null,null,null,null,null,null,137,"137SO Crc: Central Booking: B-Shift",10000384,"137CBB",1370460001]
[137,"137SO Crc: Central Booking: C-Shift",10000385,1370460001,{"$f":"_xlfn.XLOOKUP(D706,FC_Master[Cost Center],FC_Master[rollup FC '#])","v":1370460001},null,null,null,null,null,null,null,null,null,137,"137SO Crc: Central Booking: C-Shift",10000385,"137CBC",1370460001]
[{"$f":"O707","v":137},{"$f":"P707","v":"137SO AS: TCJ Medical Supervisor"},{"$f":"VALUE(Q707)","v":10050377},{"$f":"VALUE(S707)","v":1370460001},{"$f":"_xlfn.XLOOKUP(D707,FC_Master[Cost Center],FC_Master[rollup FC '#])","v":1370460001},null,null,null,null,null,null,null,null,null,137,"137SO AS: TCJ Medical Supervisor",10050377,"137JMedSupv",1370460001]
[137,"137SO AS: TCJ Medical-Central Booking",10051227,1370460001,{"$f":"_xlfn.XLOOKUP(D708,FC_Master[Cost Center],FC_Master[rollup FC '#])","v":1370460001},null,null,null,null,null,null,null,null,null,137,"137SO AS: TCJ Medical-Central Booking",10051227,"137MedCB",1370460001]
[137,"137SO AS: Inmate Treatment CBF",10051778,1370460001,{"$f":"_xlfn.XLOOKUP(D709,FC_Master[Cost Center],FC_Master[rollup FC '#])","v":1370460001},null,null,null,null,null,null,null,null,null,137,"137SO AS: Inmate Treatment CBF",10051778,"137InmtTrtmt",1370460001]
[137,"137SO AS: Medical Services Director",10000360,1370490001,{"$f":"_xlfn.XLOOKUP(D710,FC_Master[Cost Center],FC_Master[rollup FC '#])","v":1370490001},null,null,null,null,null,null,null,null,null,137,"137SO AS: Medical Services Director",10000360,"137MedSvDir",1370490001]
[137,"137SO AS: TCCC Medical",10000361,1370490001,{"$f":"_xlfn.XLOOKUP(D711,FC_Master[Cost Center],FC_Master[rollup FC '#])","v":1370490001},null,null,null,null,null,null,null,null,null,137,"137SO AS: TCCC Medical",10000361,"137TCCCMed",1370490001]
[137,"137SO AS: TCJ Medical",10000362,1370490001,{"$f":"_xlfn.XLOOKUP(D712,FC_Master[Cost Center],FC_Master[rollup FC '#])","v":1370490001},null,null,null,null,null,null,null,null,null,137,"137SO AS: TCJ Medical",10000362,"137TCJMed",1370490001]
[137,"137SO AS: Medical Services",10000363,1370490001,{"$f":"_xlfn.XLOOKUP(D713,FC_Master[Cost Center],FC_Master[rollup FC '#])","v":1370490001},null,null,null,null,null,null,null,null,null,137,"137SO AS: Medical Services",10000363,"137MedSv",1370490001]
[137,"137SO AS: Pharmacy",10050326,1370490001,{"$f":"_xlfn.XLOOKUP(D714,FC_Master[Cost Center],FC_Master[rollup FC '#])","v":1370490001},null,null,null,null,null,null,null,null,null,137,"137SO AS: Pharmacy",10050326,"137Phm",1370490001]
[137,"137SO AS: TCCC Medical Supervisor",10050376,1370490001,{"$f":"_xlfn.XLOOKUP(D715,FC_Master[Cost Center],FC_Master[rollup FC '#])","v":1370490001},null,null,null,null,null,null,null,null,null,137,"137SO AS: TCCC Medical Supervisor",10050376,"137CCMedSupv",1370490001]
[137,"137SO AS: Pharmacy Supervisor",10050378,1370490001,{"$f":"_xlfn.XLOOKUP(D716,FC_Master[Cost Center],FC_Master[rollup FC '#])","v":1370490001},null,null,null,null,null,null,null,null,null,137,"137SO AS: Pharmacy Supervisor",10050378,"137PhmSupv",1370490001]
[137,"137SO LE: Crisis Intervention Team",10000343,1370520001,{"$f":"_xlfn.XLOOKUP(D717,FC_Master[Cost Center],FC_Master[rollup FC '#])","v":1370750001},null,null,null,null,null,null,null,null,null,137,"137SO LE: Crisis Intervention Team",10000343,"137CIT",1370520001]
[137,"137SO AS: Chapel",10000351,1370560001,{"$f":"_xlfn.XLOOKUP(D718,FC_Master[Cost Center],FC_Master[rollup FC '#])","v":1370580001},null,null,null,null,null,null,null,null,null,137,"137SO AS: Chapel",10000351,"137Chapel",1370560001]
[137,"137SO AS: Chapel Mgmt",10000789,1370560001,{"$f":"_xlfn.XLOOKUP(D719,FC_Master[Cost Center],FC_Master[rollup FC '#])","v":1370580001},null,null,null,null,null,null,null,null,null,137,"137SO AS: Chapel Mgmt",10000789,"137ChplMgmt",1370560001]
[137,"137SO AS: Inmate Treatment/Programs",10000364,1370570001,{"$f":"_xlfn.XLOOKUP(D720,FC_Master[Cost Center],FC_Master[rollup FC '#])","v":1370580001},null,null,null,null,null,null,null,null,null,137,"137SO AS: Inmate Treatment/Programs",10000364,"137ITP",1370570001]
[137,"137SO AS: TCCC Treatment",10000365,1370570001,{"$f":"_xlfn.XLOOKUP(D721,FC_Master[Cost Center],FC_Master[rollup FC '#])","v":1370580001},null,null,null,null,null,null,null,null,null,137,"137SO AS: TCCC Treatment",10000365,"137TCCCTrtmt",1370570001]
[137,"137SO AS: Downtown Treatment",10000366,1370570001,{"$f":"_xlfn.XLOOKUP(D722,FC_Master[Cost Center],FC_Master[rollup FC '#])","v":1370580001},null,null,null,null,null,null,null,null,null,137,"137SO AS: Downtown Treatment",10000366,"137DwtTrtmt",1370570001]
[137,"137SO AS: Inmate Programs",10000792,1370570001,{"$f":"_xlfn.XLOOKUP(D723,FC_Master[Cost Center],FC_Master[rollup FC '#])","v":1370580001},null,null,null,null,null,null,null,null,null,137,"137SO AS: Inmate Programs",10000792,"137IP",1370570001]
[137,"137SO AS: Inmate Treatment TCJ",10052577,1370570001,{"$f":"_xlfn.XLOOKUP(D724,FC_Master[Cost Center],FC_Master[rollup FC '#])","v":1370580001},null,null,null,null,null,null,null,null,null,137,"137SO AS: Inmate Treatment TCJ",10052577,"137ITTCJ",1370570001]
[137,"137SO AS: Office Mgmt",10056102,1370570001,{"$f":"_xlfn.XLOOKUP(D725,FC_Master[Cost Center],FC_Master[rollup FC '#])","v":1370580001},null,null,null,null,null,null,null,null,null,137,"137SO AS: Office Mgmt",10056102,"137OfcMgmt",1370570001]
[137,"137SO LE: K9",10000430,1370610001,{"$f":"_xlfn.XLOOKUP(D726,FC_Master[Cost Center],FC_Master[rollup FC '#])","v":1370750001},null,null,null,null,null,null,null,null,null,137,"137SO LE: K9",10000430,"137K9",1370610001]
[137,"137SO LE: Captain Central Command",10000309,1370620001,{"$f":"_xlfn.XLOOKUP(D727,FC_Master[Cost Center],FC_Master[rollup FC '#])","v":1370750001},null,null,null,null,null,null,null,null,null,137,"137SO LE: Captain Central Command",10000309,"137LECCmd",1370620001]
[137,"137SO LE: Lt Major Crimes",10000331,1370620001,{"$f":"_xlfn.XLOOKUP(D728,FC_Master[Cost Center],FC_Master[rollup FC '#])","v":1370750001},null,null,null,null,null,null,null,null,null,137,"137SO LE: Lt Major Crimes",10000331,"137LtMC",1370620001]
[137,"137SO LE: Sgt Major Crimes",10000412,1370620001,{"$f":"_xlfn.XLOOKUP(D729,FC_Master[Cost Center],FC_Master[rollup FC '#])","v":1370750001},null,null,null,null,null,null,null,null,null,137,"137SO LE: Sgt Major Crimes",10000412,"137SgtMC",1370620001]
[137,"137SO LE: Cntrl Area Cmd: Major Crimes",10000413,1370620001,{"$f":"_xlfn.XLOOKUP(D730,FC_Master[Cost Center],FC_Master[rollup FC '#])","v":1370750001},null,null,null,null,null,null,null,null,null,137,"137SO LE: Cntrl Area Cmd: Major Crimes",10000413,"137MC",1370620001]
[137,"137SO LE: Special Crimes",10000414,1370620001,{"$f":"_xlfn.XLOOKUP(D731,FC_Master[Cost Center],FC_Master[rollup FC '#])","v":1370750001},null,null,null,null,null,null,null,null,null,137,"137SO LE: Special Crimes",10000414,"137SC",1370620001]
[137,"137SO LE: East Area Cmd: CID",10000424,1370620001,{"$f":"_xlfn.XLOOKUP(D732,FC_Master[Cost Center],FC_Master[rollup FC '#])","v":1370750001},null,null,null,null,null,null,null,null,null,137,"137SO LE: East Area Cmd: CID",10000424,"137EAreaCID",1370620001]
[137,"137SO LE: West Area Cmd: CID",10000438,1370620001,{"$f":"_xlfn.XLOOKUP(D733,FC_Master[Cost Center],FC_Master[rollup FC '#])","v":1370750001},null,null,null,null,null,null,null,null,null,137,"137SO LE: West Area Cmd: CID",10000438,"137WAreaCID",1370620001]
[137,"137SO LE: Sgt West CID",10052177,1370620001,{"$f":"_xlfn.XLOOKUP(D734,FC_Master[Cost Center],FC_Master[rollup FC '#])","v":1370750001},null,null,null,null,null,null,null,null,null,137,"137SO LE: Sgt West CID",10052177,"137LESgtWCID",1370620001]
[137,"137SO LE: Lt Special Crimes",10052351,1370620001,{"$f":"_xlfn.XLOOKUP(D735,FC_Master[Cost Center],FC_Master[rollup FC '#])","v":1370750001},null,null,null,null,null,null,null,null,null,137,"137SO LE: Lt Special Crimes",10052351,"137LtSC",1370620001]
[137,"137SO LE: Sgt Special Crimes",10052352,1370620001,{"$f":"_xlfn.XLOOKUP(D736,FC_Master[Cost Center],FC_Master[rollup FC '#])","v":1370750001},null,null,null,null,null,null,null,null,null,137,"137SO LE: Sgt Special Crimes",10052352,"137SgtSC",1370620001]
[137,"137SO LE: Found Property",10052377,1370620001,{"$f":"_xlfn.XLOOKUP(D737,FC_Master[Cost Center],FC_Master[rollup FC '#])","v":1370750001},null,null,null,null,null,null,null,null,null,137,"137SO LE: Found Property",10052377,"137FndProp",1370620001]
[137,"137SO LE: Environmental Crimes",10052378,1370620001,{"$f":"_xlfn.XLOOKUP(D738,FC_Master[Cost Center],FC_Master[rollup FC '#])","v":1370750001},null,null,null,null,null,null,null,null,null,137,"137SO LE: Environmental Crimes",10052378,"137EnvCrme",1370620001]
[137,"137SO LE: Crime Scene",10000419,1370630001,{"$f":"_xlfn.XLOOKUP(D739,FC_Master[Cost Center],FC_Master[rollup FC '#])","v":1370750001},null,null,null,null,null,null,null,null,null,137,"137SO LE: Crime Scene",10000419,"137CrmeScn",1370630001]
[137,"137SO LE: Cntrl Ara Cmd: Evidence Ctrl",10051777,1370630001,{"$f":"_xlfn.XLOOKUP(D740,FC_Master[Cost Center],FC_Master[rollup FC '#])","v":1370750001},null,null,null,null,null,null,null,null,null,137,"137SO LE: Cntrl Ara Cmd: Evidence Ctrl",10051777,"137EviCtrl",1370630001]
[137,"137SO LE: Vehicle Impounds",10052376,1370630001,{"$f":"_xlfn.XLOOKUP(D741,FC_Master[Cost Center],FC_Master[rollup FC '#])","v":1370750001},null,null,null,null,null,null,null,null,null,137,"137SO LE: Vehicle Impounds",10052376,"137VehImpds",1370630001]
[137,"137SO LE: Forensics Services Division",10053901,1370630001,{"$f":"_xlfn.XLOOKUP(D742,FC_Master[Cost Center],FC_Master[rollup FC '#])","v":1370750001},null,null,null,null,null,null,null,null,null,137,"137SO LE: Forensics Services Division",10053901,"137FrncSvDiv",1370630001]
[137,"137SO LE: Cntrl Area Cmd: Comm Mgmt",10000416,1370640001,{"$f":"_xlfn.XLOOKUP(D743,FC_Master[Cost Center],FC_Master[rollup FC '#])","v":1370640001},null,null,null,null,null,null,null,null,null,137,"137SO LE: Cntrl Area Cmd: Comm Mgmt",10000416,"137CommMgmt",1370640001]
[137,"137SO LE: Cntrl Area Cmd: Comm Supv",10000417,1370640001,{"$f":"_xlfn.XLOOKUP(D744,FC_Master[Cost Center],FC_Master[rollup FC '#])","v":1370640001},null,null,null,null,null,null,null,null,null,137,"137SO LE: Cntrl Area Cmd: Comm Supv",10000417,"137CommSupv",1370640001]
[137,"137SO LE: Cntrl Area Cmd: Comm Team",10000418,1370640001,{"$f":"_xlfn.XLOOKUP(D745,FC_Master[Cost Center],FC_Master[rollup FC '#])","v":1370640001},null,null,null,null,null,null,null,null,null,137,"137SO LE: Cntrl Area Cmd: Comm Team",10000418,"137CommTeam",1370640001]
[137,"137SO LE: CAM",10056077,1370640001,{"$f":"_xlfn.XLOOKUP(D746,FC_Master[Cost Center],FC_Master[rollup FC '#])","v":1370640001},null,null,null,null,null,null,null,null,null,137,"137SO LE: CAM",10056077,"137ComAstMgr",1370640001]
[137,"137SO LE: Lake Patrol",10000443,1370670001,{"$f":"_xlfn.XLOOKUP(D747,FC_Master[Cost Center],FC_Master[rollup FC '#])","v":1370750001},null,null,null,null,null,null,null,null,null,137,"137SO LE: Lake Patrol",10000443,"137LkPatrol",1370670001]
[137,"137SO LE: Sgt Lake Patrol",10052153,1370670001,{"$f":"_xlfn.XLOOKUP(D748,FC_Master[Cost Center],FC_Master[rollup FC '#])","v":1370750001},null,null,null,null,null,null,null,null,null,137,"137SO LE: Sgt Lake Patrol",10052153,"137SgtLake",1370670001]
[137,"137SO LE: East Area Cmd: Estray",10050130,1370680001,{"$f":"_xlfn.XLOOKUP(D749,FC_Master[Cost Center],FC_Master[rollup FC '#])","v":1370750001},null,null,null,null,null,null,null,null,null,137,"137SO LE: East Area Cmd: Estray",10050130,"137EEstr",1370680001]
[137,"137SO LE: Sgt VICE",10000352,1370690001,{"$f":"_xlfn.XLOOKUP(D750,FC_Master[Cost Center],FC_Master[rollup FC '#])","v":1370750001},null,null,null,null,null,null,null,null,null,137,"137SO LE: Sgt VICE",10000352,"137SgtVICE",1370690001]
[137,"137SO LE: VICE",10000411,1370690001,{"$f":"_xlfn.XLOOKUP(D751,FC_Master[Cost Center],FC_Master[rollup FC '#])","v":1370750001},null,null,null,null,null,null,null,null,null,137,"137SO LE: VICE",10000411,"137VICE",1370690001]
[137,"137SO LE: Captain West Command",10000310,1370700001,{"$f":"_xlfn.XLOOKUP(D752,FC_Master[Cost Center],FC_Master[rollup FC '#])","v":1370750001},null,null,null,null,null,null,null,null,null,137,"137SO LE: Captain West Command",10000310,"137LEWCmd",1370700001]
[137,"137SO LE: Captain East Command",10000311,1370700001,{"$f":"_xlfn.XLOOKUP(D753,FC_Master[Cost Center],FC_Master[rollup FC '#])","v":1370750001},null,null,null,null,null,null,null,null,null,137,"137SO LE: Captain East Command",10000311,"137LEECmd",1370700001]
[137,"137SO LE: Lt East Cmd Days",10000333,1370700001,{"$f":"_xlfn.XLOOKUP(D754,FC_Master[Cost Center],FC_Master[rollup FC '#])","v":1370750001},null,null,null,null,null,null,null,null,null,137,"137SO LE: Lt East Cmd Days",10000333,"137LtEDay",1370700001]
[137,"137SO LE: Lt East Cmd Evenings",10000334,1370700001,{"$f":"_xlfn.XLOOKUP(D755,FC_Master[Cost Center],FC_Master[rollup FC '#])","v":1370750001},null,null,null,null,null,null,null,null,null,137,"137SO LE: Lt East Cmd Evenings",10000334,"137LtEEvg",1370700001]
[137,"137SO LE: Lt East Cmd Nights",10000335,1370700001,{"$f":"_xlfn.XLOOKUP(D756,FC_Master[Cost Center],FC_Master[rollup FC '#])","v":1370750001},null,null,null,null,null,null,null,null,null,137,"137SO LE: Lt East Cmd Nights",10000335,"137LtENgt",1370700001]
[137,"137SO LE: Lt West Cmd Days",10000336,1370700001,{"$f":"_xlfn.XLOOKUP(D757,FC_Master[Cost Center],FC_Master[rollup FC '#])","v":1370750001},null,null,null,null,null,null,null,null,null,137,"137SO LE: Lt West Cmd Days",10000336,"137LtWDay",1370700001]
[137,"137SO LE: Lt West Cmd Evenings",10000337,1370700001,{"$f":"_xlfn.XLOOKUP(D758,FC_Master[Cost Center],FC_Master[rollup FC '#])","v":1370750001},null,null,null,null,null,null,null,null,null,137,"137SO LE: Lt West Cmd Evenings",10000337,"137LtWEvg",1370700001]
[137,"137SO LE: Lt West Cmd Nights",10000338,1370700001,{"$f":"_xlfn.XLOOKUP(D759,FC_Master[Cost Center],FC_Master[rollup FC '#])","v":1370750001},null,null,null,null,null,null,null,null,null,137,"137SO LE: Lt West Cmd Nights",10000338,"137LtWNgt",1370700001]
[137,"137SO LE: Sgt East Area Cmd: Day",10000420,1370700001,{"$f":"_xlfn.XLOOKUP(D760,FC_Master[Cost Center],FC_Master[rollup FC '#])","v":1370750001},null,null,null,null,null,null,null,null,null,137,"137SO LE: Sgt East Area Cmd: Day",10000420,"137SgtEDay",1370700001]
[137,"137SO LE: East Area Cmd: Day Patrol1",10000421,1370700001,{"$f":"_xlfn.XLOOKUP(D761,FC_Master[Cost Center],FC_Master[rollup FC '#])","v":1370750001},null,null,null,null,null,null,null,null,null,137,"137SO LE: East Area Cmd: Day Patrol1",10000421,"137EDay1",1370700001]
[137,"137SO LE: East Area Cmd: Day Patrol2",10000422,1370700001,{"$f":"_xlfn.XLOOKUP(D762,FC_Master[Cost Center],FC_Master[rollup FC '#])","v":1370750001},null,null,null,null,null,null,null,null,null,137,"137SO LE: East Area Cmd: Day Patrol2",10000422,"137EDay2",1370700001]
[137,"137SO LE: East Area Cmd: Day Relief",10000423,1370700001,{"$f":"_xlfn.XLOOKUP(D763,FC_Master[Cost Center],FC_Master[rollup FC '#])","v":1370750001},null,null,null,null,null,null,null,null,null,137,"137SO LE: East Area Cmd: Day Relief",10000423,"137EDayRlf",1370700001]
[137,"137SO LE: ATPA",10000425,1370700001,{"$f":"_xlfn.XLOOKUP(D764,FC_Master[Cost Center],FC_Master[rollup FC '#])","v":1370750001},null,null,null,null,null,null,null,null,null,137,"137SO LE: ATPA",10000425,"137ATPA",1370700001]
[137,"137SO LE: Sgt East Area Cmd: Evg",10000426,1370700001,{"$f":"_xlfn.XLOOKUP(D765,FC_Master[Cost Center],FC_Master[rollup FC '#])","v":1370750001},null,null,null,null,null,null,null,null,null,137,"137SO LE: Sgt East Area Cmd: Evg",10000426,"137SgtEEvg",1370700001]
[137,"137SO LE: East Area Cmd: Evg Patrol1",10000427,1370700001,{"$f":"_xlfn.XLOOKUP(D766,FC_Master[Cost Center],FC_Master[rollup FC '#])","v":1370750001},null,null,null,null,null,null,null,null,null,137,"137SO LE: East Area Cmd: Evg Patrol1",10000427,"137EEvg1",1370700001]
[137,"137SO LE: East Area Cmd: Evg Patrol2",10000428,1370700001,{"$f":"_xlfn.XLOOKUP(D767,FC_Master[Cost Center],FC_Master[rollup FC '#])","v":1370750001},null,null,null,null,null,null,null,null,null,137,"137SO LE: East Area Cmd: Evg Patrol2",10000428,"137EEvg2",1370700001]
[137,"137SO LE: Sgt East Area Cmd: Night",10000431,1370700001,{"$f":"_xlfn.XLOOKUP(D768,FC_Master[Cost Center],FC_Master[rollup FC '#])","v":1370750001},null,null,null,null,null,null,null,null,null,137,"137SO LE: Sgt East Area Cmd: Night",10000431,"137SgtENgt",1370700001]
[137,"137SO LE: East Area Cmd: Night Patrol1",10000432,1370700001,{"$f":"_xlfn.XLOOKUP(D769,FC_Master[Cost Center],FC_Master[rollup FC '#])","v":1370750001},null,null,null,null,null,null,null,null,null,137,"137SO LE: East Area Cmd: Night Patrol1",10000432,"137ENgt1",1370700001]
[137,"137SO LE: East Area Cmd: Night Patrol2",10000433,1370700001,{"$f":"_xlfn.XLOOKUP(D770,FC_Master[Cost Center],FC_Master[rollup FC '#])","v":1370750001},null,null,null,null,null,null,null,null,null,137,"137SO LE: East Area Cmd: Night Patrol2",10000433,"137ENgt2",1370700001]
[{"$f":"O771","v":137},{"$f":"P771","v":"137SO LE: Sgt West Area Cmd: Day"},{"$f":"VALUE(Q771)","v":10000435},{"$f":"VALUE(S771)","v":1370700001},{"$f":"_xlfn.XLOOKUP(D771,FC_Master[Cost Center],FC_Master[rollup FC '#])","v":1370750001},null,null,null,null,null,null,null,null,null,137,"137SO LE: Sgt West Area Cmd: Day",10000435,"137SgtWDay",1370700001]
[137,"137SO LE: West Area Cmd: Day Patrol1",10000436,1370700001,{"$f":"_xlfn.XLOOKUP(D772,FC_Master[Cost Center],FC_Master[rollup FC '#])","v":1370750001},null,null,null,null,null,null,null,null,null,137,"137SO LE: West Area Cmd: Day Patrol1",10000436,"137WDay1",1370700001]
[137,"137SO LE: West Area Cmd: Day Patrol2",10000437,1370700001,{"$f":"_xlfn.XLOOKUP(D773,FC_Master[Cost Center],FC_Master[rollup FC '#])","v":1370750001},null,null,null,null,null,null,null,null,null,137,"137SO LE: West Area Cmd: Day Patrol2",10000437,"137WDay2",1370700001]
[137,"137SO LE: Sgt West Area Cmd: Evg",10000440,1370700001,{"$f":"_xlfn.XLOOKUP(D774,FC_Master[Cost Center],FC_Master[rollup FC '#])","v":1370750001},null,null,null,null,null,null,null,null,null,137,"137SO LE: Sgt West Area Cmd: Evg",10000440,"37SgtWEvg",1370700001]
[137,"137SO LE: West Area Cmd: Evg Patrol1",10000441,1370700001,{"$f":"_xlfn.XLOOKUP(D775,FC_Master[Cost Center],FC_Master[rollup FC '#])","v":1370750001},null,null,null,null,null,null,null,null,null,137,"137SO LE: West Area Cmd: Evg Patrol1",10000441,"137WEvg1",1370700001]
[137,"137SO LE: West Area Cmd: Evg Patrol2",10000442,1370700001,{"$f":"_xlfn.XLOOKUP(D776,FC_Master[Cost Center],FC_Master[rollup FC '#])","v":1370750001},null,null,null,null,null,null,null,null,null,137,"137SO LE: West Area Cmd: Evg Patrol2",10000442,"137WEvg2",1370700001]
[137,"137SO LE: Sgt West Area Cmd: Night",10000445,1370700001,{"$f":"_xlfn.XLOOKUP(D777,FC_Master[Cost Center],FC_Master[rollup FC '#])","v":1370750001},null,null,null,null,null,null,null,null,null,137,"137SO LE: Sgt West Area Cmd: Night",10000445,"137SgtWNgt",1370700001]
[137,"137SO LE: West Area Cmd: Night Patrol1",10000446,1370700001,{"$f":"_xlfn.XLOOKUP(D778,FC_Master[Cost Center],FC_Master[rollup FC '#])","v":1370750001},null,null,null,null,null,null,null,null,null,137,"137SO LE: West Area Cmd: Night Patrol1",10000446,"137WNgt1",1370700001]
[137,"137SO LE: West Area Cmd: Night Patrol2",10000447,1370700001,{"$f":"_xlfn.XLOOKUP(D779,FC_Master[Cost Center],FC_Master[rollup FC '#])","v":1370750001},null,null,null,null,null,null,null,null,null,137,"137SO LE: West Area Cmd: Night Patrol2",10000447,"137WNgt2",1370700001]
[137,"137SO LE: PDS",10000448,1370700001,{"$f":"_xlfn.XLOOKUP(D780,FC_Master[Cost Center],FC_Master[rollup FC '#])","v":1370750001},null,null,null,null,null,null,null,null,null,137,"137SO LE: PDS",10000448,"137PDS",1370700001]
[137,"137SO LE: NonEmployees",10050002,1370700001,{"$f":"_xlfn.XLOOKUP(D781,FC_Master[Cost Center],FC_Master[rollup FC '#])","v":1370750001},null,null,null,null,null,null,null,null,null,137,"137SO LE: NonEmployees",10050002,"137ENonEmp",1370700001]
[137,"137SO LE: West Area Cmd: SRO",10000444,1370710001,{"$f":"_xlfn.XLOOKUP(D782,FC_Master[Cost Center],FC_Master[rollup FC '#])","v":1370750001},null,null,null,null,null,null,null,null,null,137,"137SO LE: West Area Cmd: SRO",10000444,"137WSRO",1370710001]
[137,"137SO LE: Sgt School Resource Officer",10052176,1370710001,{"$f":"_xlfn.XLOOKUP(D783,FC_Master[Cost Center],FC_Master[rollup FC '#])","v":1370750001},null,null,null,null,null,null,null,null,null,137,"137SO LE: Sgt School Resource Officer",10052176,"137LESgtSRO",1370710001]
[137,"137SO LE: Lt Tac Ops",10000332,1370720001,{"$f":"_xlfn.XLOOKUP(D784,FC_Master[Cost Center],FC_Master[rollup FC '#])","v":1370750001},null,null,null,null,null,null,null,null,null,137,"137SO LE: Lt Tac Ops",10000332,"137LtTacOps",1370720001]
[137,"137SO LE: SWAT",10000410,1370720001,{"$f":"_xlfn.XLOOKUP(D785,FC_Master[Cost Center],FC_Master[rollup FC '#])","v":1370750001},null,null,null,null,null,null,null,null,null,137,"137SO LE: SWAT",10000410,"137SWAT",1370720001]
[137,"137SO LE: Sgt SWAT",10052027,1370720001,{"$f":"_xlfn.XLOOKUP(D786,FC_Master[Cost Center],FC_Master[rollup FC '#])","v":1370750001},null,null,null,null,null,null,null,null,null,137,"137SO LE: Sgt SWAT",10052027,"137SgtSWAT",1370720001]
[137,"137SO LE: HEAT",10000429,1370730001,{"$f":"_xlfn.XLOOKUP(D787,FC_Master[Cost Center],FC_Master[rollup FC '#])","v":1370750001},null,null,null,null,null,null,null,null,null,137,"137SO LE: HEAT",10000429,"137HEAT",1370730001]
[137,"137SO LE: DWI",10000434,1370730001,{"$f":"_xlfn.XLOOKUP(D788,FC_Master[Cost Center],FC_Master[rollup FC '#])","v":1370750001},null,null,null,null,null,null,null,null,null,137,"137SO LE: DWI",10000434,"137DWI",1370730001]
[137,"137SO LE: Motors",10000439,1370730001,{"$f":"_xlfn.XLOOKUP(D789,FC_Master[Cost Center],FC_Master[rollup FC '#])","v":1370750001},null,null,null,null,null,null,null,null,null,137,"137SO LE: Motors",10000439,"137Mtr",1370730001]
[137,"137SO LE: Lt West Cmd Special Ops Tfc",10050128,1370730001,{"$f":"_xlfn.XLOOKUP(D790,FC_Master[Cost Center],FC_Master[rollup FC '#])","v":1370750001},null,null,null,null,null,null,null,null,null,137,"137SO LE: Lt West Cmd Special Ops Tfc",10050128,"137LtWSplOps",1370730001]
[137,"137SO LE: Lt East Cmd Special Ops",10050129,1370730001,{"$f":"_xlfn.XLOOKUP(D791,FC_Master[Cost Center],FC_Master[rollup FC '#])","v":1370750001},null,null,null,null,null,null,null,null,null,137,"137SO LE: Lt East Cmd Special Ops",10050129,"137LtESplOps",1370730001]
[137,"137SO LE: Sgt Motors",10050151,1370730001,{"$f":"_xlfn.XLOOKUP(D792,FC_Master[Cost Center],FC_Master[rollup FC '#])","v":1370750001},null,null,null,null,null,null,null,null,null,137,"137SO LE: Sgt Motors",10050151,"137SgtMtr",1370730001]
[137,"137SO LE: Sgt East Cmd Special Ops",10050152,1370730001,{"$f":"_xlfn.XLOOKUP(D793,FC_Master[Cost Center],FC_Master[rollup FC '#])","v":1370750001},null,null,null,null,null,null,null,null,null,137,"137SO LE: Sgt East Cmd Special Ops",10050152,"137SgtEOps",1370730001]
[137,"137SO LE: Sgt HEAT",10052052,1370730001,{"$f":"_xlfn.XLOOKUP(D794,FC_Master[Cost Center],FC_Master[rollup FC '#])","v":1370750001},null,null,null,null,null,null,null,null,null,137,"137SO LE: Sgt HEAT",10052052,"137SgtHEAT",1370730001]
[137,"137SO LE: Cntrl Area Cmd: Victim Sv",10000415,1370740001,{"$f":"_xlfn.XLOOKUP(D795,FC_Master[Cost Center],FC_Master[rollup FC '#])","v":1370750001},null,null,null,null,null,null,null,null,null,137,"137SO LE: Cntrl Area Cmd: Victim Sv",10000415,"137VctmSv",1370740001]
[137,"137SO Major Law Enforcement",10000307,1370750001,{"$f":"_xlfn.XLOOKUP(D796,FC_Master[Cost Center],FC_Master[rollup FC '#])","v":1370750001},null,null,null,null,null,null,null,null,null,137,"137SO Major Law Enforcement",10000307,"137MajorLE",1370750001]
[137,"137SO LE: Sgt CTECC,SWAT/Wrt,VICE,PDS",10051226,1370750001,{"$f":"_xlfn.XLOOKUP(D797,FC_Master[Cost Center],FC_Master[rollup FC '#])","v":1370750001},null,null,null,null,null,null,null,null,null,137,"137SO LE: Sgt CTECC,SWAT/Wrt,VICE,PDS",10051226,"137SgtCTSWVC",1370750001]
[137,"137SO LE: Lt West Cmd Special Ops",10052152,1370750001,{"$f":"_xlfn.XLOOKUP(D798,FC_Master[Cost Center],FC_Master[rollup FC '#])","v":1370750001},null,null,null,null,null,null,null,null,null,137,"137SO LE: Lt West Cmd Special Ops",10052152,"137LTWOps",1370750001]
[138,"138ME Chief Medical Examiner",10000451,1380010001,{"$f":"_xlfn.XLOOKUP(D799,FC_Master[Cost Center],FC_Master[rollup FC '#])","v":1380010001},null,null,null,null,null,null,null,null,null,138,"138ME Chief Medical Examiner",10000451,"138ChfME",1380010001]
[138,"138ME Administrative Chief",10000454,1380010001,{"$f":"_xlfn.XLOOKUP(D800,FC_Master[Cost Center],FC_Master[rollup FC '#])","v":1380010001},null,null,null,null,null,null,null,null,null,138,"138ME Administrative Chief",10000454,"138AdmChf",1380010001]
[138,"138ME Administrative",10000456,1380010001,{"$f":"_xlfn.XLOOKUP(D801,FC_Master[Cost Center],FC_Master[rollup FC '#])","v":1380010001},null,null,null,null,null,null,null,null,null,138,"138ME Administrative",10000456,"138Adm",1380010001]
[138,"138ME Records Analysis",10000457,1380010001,{"$f":"_xlfn.XLOOKUP(D802,FC_Master[Cost Center],FC_Master[rollup FC '#])","v":1380010001},null,null,null,null,null,null,null,null,null,138,"138ME Records Analysis",10000457,"138RcdAnly",1380010001]
[138,"138ME Investigations & Morgue Ops",10054776,1380010001,{"$f":"_xlfn.XLOOKUP(D803,FC_Master[Cost Center],FC_Master[rollup FC '#])","v":1380010001},null,null,null,null,null,null,null,null,null,138,"138ME Investigations & Morgue Ops",10054776,"138MEInv&Mrg",1380010001]
[138,"138ME Medical Examiners",10000452,1380020001,{"$f":"_xlfn.XLOOKUP(D804,FC_Master[Cost Center],FC_Master[rollup FC '#])","v":1380020001},null,null,null,null,null,null,null,null,null,138,"138ME Medical Examiners",10000452,"138ME",1380020001]
[138,"138ME Forensic Toxicology",10000453,1380030001,{"$f":"_xlfn.XLOOKUP(D805,FC_Master[Cost Center],FC_Master[rollup FC '#])","v":1380030001},null,null,null,null,null,null,null,null,null,138,"138ME Forensic Toxicology",10000453,"138FrncTxc",1380030001]
[138,"138ME Investigative",10000455,1380050001,{"$f":"_xlfn.XLOOKUP(D806,FC_Master[Cost Center],FC_Master[rollup FC '#])","v":1380050001},null,null,null,null,null,null,null,null,null,138,"138ME Investigative",10000455,"138Invstgtv",1380050001]
[138,"138ME Forensic Autopsy",10000458,1380060001,{"$f":"_xlfn.XLOOKUP(D807,FC_Master[Cost Center],FC_Master[rollup FC '#])","v":1380060001},null,null,null,null,null,null,null,null,null,138,"138ME Forensic Autopsy",10000458,"138FrncAtp",1380060001]
[139,"CSCD and Pretrial Services Director",10000459,1390010001,{"$f":"_xlfn.XLOOKUP(D808,FC_Master[Cost Center],FC_Master[rollup FC '#])","v":1390010001},null,null,null,null,null,null,null,null,null,139,"CSCD and Pretrial Services Director",10000459,"CSCDPtSDir",1390010001]
[139,"CSCD and Pretrial Services Director",10000459,1390010001,{"$f":"_xlfn.XLOOKUP(D809,FC_Master[Cost Center],FC_Master[rollup FC '#])","v":1390010001},null,null,null,null,null,null,null,null,null,139,"CSCD and Pretrial Services Director",10000459,"CSCDPtSDir",1390010001]
[139,"139CSCD Chief Deputy",10000460,1390010001,{"$f":"_xlfn.XLOOKUP(D810,FC_Master[Cost Center],FC_Master[rollup FC '#])","v":1390010001},null,null,null,null,null,null,null,null,null,139,"139CSCD Chief Deputy",10000460,"139ChfDp",1390010001]
[139,"139CSCD Field Supervision",10000461,1390010001,{"$f":"_xlfn.XLOOKUP(D811,FC_Master[Cost Center],FC_Master[rollup FC '#])","v":1390010001},null,null,null,null,null,null,null,null,null,139,"139CSCD Field Supervision",10000461,"139FldSvsn",1390010001]
[139,"139CSCD Courts",10000462,1390010001,{"$f":"_xlfn.XLOOKUP(D812,FC_Master[Cost Center],FC_Master[rollup FC '#])","v":1390010001},null,null,null,null,null,null,null,null,null,139,"139CSCD Courts",10000462,"139CT",1390010001]
[139,"139CSCD Diagnostic",10000463,1390010001,{"$f":"_xlfn.XLOOKUP(D813,FC_Master[Cost Center],FC_Master[rollup FC '#])","v":1390010001},null,null,null,null,null,null,null,null,null,139,"139CSCD Diagnostic",10000463,"139Dgns",1390010001]
[139,"139CSCD Office Court/Diagnostic",10000464,1390010001,{"$f":"_xlfn.XLOOKUP(D814,FC_Master[Cost Center],FC_Master[rollup FC '#])","v":1390010001},null,null,null,null,null,null,null,null,null,139,"139CSCD Office Court/Diagnostic",10000464,"139Ct/Dgns",1390010001]
[139,"139CSCD Specialty Courts/Intake",10000465,1390010001,{"$f":"_xlfn.XLOOKUP(D815,FC_Master[Cost Center],FC_Master[rollup FC '#])","v":1390010001},null,null,null,null,null,null,null,null,null,139,"139CSCD Specialty Courts/Intake",10000465,"139SpltyCT",1390010001]
[139,"139CSCD TAIP",10000466,1390010001,{"$f":"_xlfn.XLOOKUP(D816,FC_Master[Cost Center],FC_Master[rollup FC '#])","v":1390010001},null,null,null,null,null,null,null,null,null,139,"139CSCD TAIP",10000466,"139TAIP",1390010001]
[139,"139CSCD Programs/Services",10000467,1390010001,{"$f":"_xlfn.XLOOKUP(D817,FC_Master[Cost Center],FC_Master[rollup FC '#])","v":1390010001},null,null,null,null,null,null,null,null,null,139,"139CSCD Programs/Services",10000467,"139PSv",1390010001]
[139,"139CSCD Specialized 3",10000468,1390010001,{"$f":"_xlfn.XLOOKUP(D818,FC_Master[Cost Center],FC_Master[rollup FC '#])","v":1390010001},null,null,null,null,null,null,null,null,null,139,"139CSCD Specialized 3",10000468,"139Spz3",1390010001]
[139,"139CSCD Specialized 2",10000469,1390010001,{"$f":"_xlfn.XLOOKUP(D819,FC_Master[Cost Center],FC_Master[rollup FC '#])","v":1390010001},null,null,null,null,null,null,null,null,null,139,"139CSCD Specialized 2",10000469,"139Spz2",1390010001]
[139,"139CSCD Specialized 1",10000470,1390010001,{"$f":"_xlfn.XLOOKUP(D820,FC_Master[Cost Center],FC_Master[rollup FC '#])","v":1390010001},null,null,null,null,null,null,null,null,null,139,"139CSCD Specialized 1",10000470,"139Spz1",1390010001]
[139,"139CSCD SMART",10000471,1390010001,{"$f":"_xlfn.XLOOKUP(D821,FC_Master[Cost Center],FC_Master[rollup FC '#])","v":1390010001},null,null,null,null,null,null,null,null,null,139,"139CSCD SMART",10000471,"139SMART",1390010001]
[139,"139CSCD SMART",10000471,1390010001,{"$f":"_xlfn.XLOOKUP(D822,FC_Master[Cost Center],FC_Master[rollup FC '#])","v":1390010001},null,null,null,null,null,null,null,null,null,139,"139CSCD SMART",10000471,"139SMART",1390010001]
[139,"139CSCD SMART Counselors",10000472,1390010001,{"$f":"_xlfn.XLOOKUP(D823,FC_Master[Cost Center],FC_Master[rollup FC '#])","v":1390010001},null,null,null,null,null,null,null,null,null,139,"139CSCD SMART Counselors",10000472,"139SMARTCsl",1390010001]
[139,"139CSCD Counseling Center",10000473,1390010001,{"$f":"_xlfn.XLOOKUP(D824,FC_Master[Cost Center],FC_Master[rollup FC '#])","v":1390010001},null,null,null,null,null,null,null,null,null,139,"139CSCD Counseling Center",10000473,"139CslCtr",1390010001]
[139,"139CSCD Counseling Center",10000473,1390010001,{"$f":"_xlfn.XLOOKUP(D825,FC_Master[Cost Center],FC_Master[rollup FC '#])","v":1390010001},null,null,null,null,null,null,null,null,null,139,"139CSCD Counseling Center",10000473,"139CslCtr",1390010001]
[139,"139CSCD Social Services",10000474,1390010001,{"$f":"_xlfn.XLOOKUP(D826,FC_Master[Cost Center],FC_Master[rollup FC '#])","v":1390010001},null,null,null,null,null,null,null,null,null,139,"139CSCD Social Services",10000474,"139SocSv",1390010001]
[139,"139CSCD CSR",10000475,1390010001,{"$f":"_xlfn.XLOOKUP(D827,FC_Master[Cost Center],FC_Master[rollup FC '#])","v":1390010001},null,null,null,null,null,null,null,null,null,139,"139CSCD CSR",10000475,"139CSR",1390010001]
[139,"139CSCD Court Services",10000476,1390010001,{"$f":"_xlfn.XLOOKUP(D828,FC_Master[Cost Center],FC_Master[rollup FC '#])","v":1390010001},null,null,null,null,null,null,null,null,null,139,"139CSCD Court Services",10000476,"139CSv",1390010001]
[139,"139CSCD Court Services",10000476,1390010001,{"$f":"_xlfn.XLOOKUP(D829,FC_Master[Cost Center],FC_Master[rollup FC '#])","v":1390010001},null,null,null,null,null,null,null,null,null,139,"139CSCD Court Services",10000476,"139CSv",1390010001]
[139,"139CSCD South 4",10000477,1390010001,{"$f":"_xlfn.XLOOKUP(D830,FC_Master[Cost Center],FC_Master[rollup FC '#])","v":1390010001},null,null,null,null,null,null,null,null,null,139,"139CSCD South 4",10000477,"139South4",1390010001]
[139,"139CSCD North 1",10000478,1390010001,{"$f":"_xlfn.XLOOKUP(D831,FC_Master[Cost Center],FC_Master[rollup FC '#])","v":1390010001},null,null,null,null,null,null,null,null,null,139,"139CSCD North 1",10000478,"139North1",1390010001]
[139,"139CSCD South 1",10000479,1390010001,{"$f":"_xlfn.XLOOKUP(D832,FC_Master[Cost Center],FC_Master[rollup FC '#])","v":1390010001},null,null,null,null,null,null,null,null,null,139,"139CSCD South 1",10000479,"139South1",1390010001]
[139,"139CSCD South 3",10000480,1390010001,{"$f":"_xlfn.XLOOKUP(D833,FC_Master[Cost Center],FC_Master[rollup FC '#])","v":1390010001},null,null,null,null,null,null,null,null,null,139,"139CSCD South 3",10000480,"139South3",1390010001]
[139,"139CSCD North 3",10000481,1390010001,{"$f":"_xlfn.XLOOKUP(D834,FC_Master[Cost Center],FC_Master[rollup FC '#])","v":1390010001},null,null,null,null,null,null,null,null,null,139,"139CSCD North 3",10000481,"139North3",1390010001]
[{"$f":"O835","v":139},{"$f":"P835","v":"139CSCD South 2"},{"$f":"VALUE(Q835)","v":10000482},{"$f":"VALUE(S835)","v":1390010001},{"$f":"_xlfn.XLOOKUP(D835,FC_Master[Cost Center],FC_Master[rollup FC '#])","v":1390010001},null,null,null,null,null,null,null,null,null,139,"139CSCD South 2",10000482,"139South2",1390010001]
[139,"139CSCD North 2",10000483,1390010001,{"$f":"_xlfn.XLOOKUP(D836,FC_Master[Cost Center],FC_Master[rollup FC '#])","v":1390010001},null,null,null,null,null,null,null,null,null,139,"139CSCD North 2",10000483,"139North2",1390010001]
[139,"139CSCD Operations",10000485,1390010001,{"$f":"_xlfn.XLOOKUP(D837,FC_Master[Cost Center],FC_Master[rollup FC '#])","v":1390010001},null,null,null,null,null,null,null,null,null,139,"139CSCD Operations",10000485,"139Ops",1390010001]
[139,"139CSCD Bookkeeping",10000486,1390010001,{"$f":"_xlfn.XLOOKUP(D838,FC_Master[Cost Center],FC_Master[rollup FC '#])","v":1390010001},null,null,null,null,null,null,null,null,null,139,"139CSCD Bookkeeping",10000486,"139Bkpg",1390010001]
[139,"139CSCD Financial",10000487,1390010001,{"$f":"_xlfn.XLOOKUP(D839,FC_Master[Cost Center],FC_Master[rollup FC '#])","v":1390010001},null,null,null,null,null,null,null,null,null,139,"139CSCD Financial",10000487,"139Fin",1390010001]
[139,"139CSCD Business Analysis",10000488,1390010001,{"$f":"_xlfn.XLOOKUP(D840,FC_Master[Cost Center],FC_Master[rollup FC '#])","v":1390010001},null,null,null,null,null,null,null,null,null,139,"139CSCD Business Analysis",10000488,"139BA",1390010001]
[139,"139CSCD Office North/Central",10000489,1390010001,{"$f":"_xlfn.XLOOKUP(D841,FC_Master[Cost Center],FC_Master[rollup FC '#])","v":1390010001},null,null,null,null,null,null,null,null,null,139,"139CSCD Office North/Central",10000489,"139N/Ctl",1390010001]
[139,"139CSCD Office South",10000490,1390010001,{"$f":"_xlfn.XLOOKUP(D842,FC_Master[Cost Center],FC_Master[rollup FC '#])","v":1390010001},null,null,null,null,null,null,null,null,null,139,"139CSCD Office South",10000490,"139South",1390010001]
[139,"139CSCD Human Resources",10000491,1390010001,{"$f":"_xlfn.XLOOKUP(D843,FC_Master[Cost Center],FC_Master[rollup FC '#])","v":1390010001},null,null,null,null,null,null,null,null,null,139,"139CSCD Human Resources",10000491,"139HR",1390010001]
[139,"139CSCD Unassigned",10000719,1390010001,{"$f":"_xlfn.XLOOKUP(D844,FC_Master[Cost Center],FC_Master[rollup FC '#])","v":1390010001},null,null,null,null,null,null,null,null,null,139,"139CSCD Unassigned",10000719,"139Unasg",1390010001]
[139,"139CSCD Information Technology",10050103,1390010001,{"$f":"_xlfn.XLOOKUP(D845,FC_Master[Cost Center],FC_Master[rollup FC '#])","v":1390010001},null,null,null,null,null,null,null,null,null,139,"139CSCD Information Technology",10050103,"139IT",1390010001]
[139,"139CSCD Staff Development",10051851,1390010001,{"$f":"_xlfn.XLOOKUP(D846,FC_Master[Cost Center],FC_Master[rollup FC '#])","v":1390010001},null,null,null,null,null,null,null,null,null,139,"139CSCD Staff Development",10051851,"139StfDev",1390010001]
[140,"140CES Director",10000494,1400010001,{"$f":"_xlfn.XLOOKUP(D847,FC_Master[Cost Center],FC_Master[rollup FC '#])","v":1400010001},null,null,null,null,null,null,null,null,null,140,"140CES Director",10000494,"140CESDir",1400010001]
[140,"140CES Administrative",10000495,1400010001,{"$f":"_xlfn.XLOOKUP(D848,FC_Master[Cost Center],FC_Master[rollup FC '#])","v":1400010001},null,null,null,null,null,null,null,null,null,140,"140CES Administrative",10000495,"140Adm",1400010001]
[140,"140CES Service Center",10000496,1400010001,{"$f":"_xlfn.XLOOKUP(D849,FC_Master[Cost Center],FC_Master[rollup FC '#])","v":1400010001},null,null,null,null,null,null,null,null,null,140,"140CES Service Center",10000496,"140SvCtr",1400010001]
[140,"140CES Phone Center - Downtown",10000497,1400010001,{"$f":"_xlfn.XLOOKUP(D850,FC_Master[Cost Center],FC_Master[rollup FC '#])","v":1400010001},null,null,null,null,null,null,null,null,null,140,"140CES Phone Center - Downtown",10000497,"140PhnCtr",1400010001]
[140,"140CES Safe Haven",10000501,1400010001,{"$f":"_xlfn.XLOOKUP(D851,FC_Master[Cost Center],FC_Master[rollup FC '#])","v":1400010001},null,null,null,null,null,null,null,null,null,140,"140CES Safe Haven",10000501,"140SHv",1400010001]
[140,"140CES Training",10053701,1400010001,{"$f":"_xlfn.XLOOKUP(D852,FC_Master[Cost Center],FC_Master[rollup FC '#])","v":1400010001},null,null,null,null,null,null,null,null,null,140,"140CES Training",10053701,"140Trng",1400010001]
[140,"140CES Service Center II",10053727,1400010001,{"$f":"_xlfn.XLOOKUP(D853,FC_Master[Cost Center],FC_Master[rollup FC '#])","v":1400010001},null,null,null,null,null,null,null,null,null,140,"140CES Service Center II",10053727,"140SvCtrII",1400010001]
[140,"140CES Education",10053728,1400010001,{"$f":"_xlfn.XLOOKUP(D854,FC_Master[Cost Center],FC_Master[rollup FC '#])","v":1400010001},null,null,null,null,null,null,null,null,null,140,"140CES Education",10053728,"140Edu",1400010001]
[140,"140CES Family Violence Support",10056352,1400010001,{"$f":"_xlfn.XLOOKUP(D855,FC_Master[Cost Center],FC_Master[rollup FC '#])","v":1400010001},null,null,null,null,null,null,null,null,null,140,"140CES Family Violence Support",10056352,"140FamVlcSp",1400010001]
[140,"140CES Education Classes",10000502,1400020001,{"$f":"_xlfn.XLOOKUP(D856,FC_Master[Cost Center],FC_Master[rollup FC '#])","v":1400020001},null,null,null,null,null,null,null,null,null,140,"140CES Education Classes",10000502,"140EduClass",1400020001]
[140,"140CES Alcohol and Other Drug Counselors",10000499,1400050001,{"$f":"_xlfn.XLOOKUP(D857,FC_Master[Cost Center],FC_Master[rollup FC '#])","v":1400050001},null,null,null,null,null,null,null,null,null,140,"140CES Alcohol and Other Drug Counselors",10000499,"140AODCsl",1400050001]
[140,"140CES AOD Classes",10000819,1400050001,{"$f":"_xlfn.XLOOKUP(D858,FC_Master[Cost Center],FC_Master[rollup FC '#])","v":1400050001},null,null,null,null,null,null,null,null,null,140,"140CES AOD Classes",10000819,"140AODClass",1400050001]
[140,"140CES Phoenix Court",10051451,1400050001,{"$f":"_xlfn.XLOOKUP(D859,FC_Master[Cost Center],FC_Master[rollup FC '#])","v":1400050001},null,null,null,null,null,null,null,null,null,140,"140CES Phoenix Court",10051451,"140PhoenixCt",1400050001]
[140,"140CES AOD Adm",10055226,1400050001,{"$f":"_xlfn.XLOOKUP(D860,FC_Master[Cost Center],FC_Master[rollup FC '#])","v":1400050001},null,null,null,null,null,null,null,null,null,140,"140CES AOD Adm",10055226,"140AODAdm",1400050001]
[140,"140CES Clinical",10000498,1400060001,{"$f":"_xlfn.XLOOKUP(D861,FC_Master[Cost Center],FC_Master[rollup FC '#])","v":1400060001},null,null,null,null,null,null,null,null,null,140,"140CES Clinical",10000498,"140Clinic",1400060001]
[140,"140CES Family Violence Counselors",10000500,1400070001,{"$f":"_xlfn.XLOOKUP(D862,FC_Master[Cost Center],FC_Master[rollup FC '#])","v":1400070001},null,null,null,null,null,null,null,null,null,140,"140CES Family Violence Counselors",10000500,"140FamVlcCsl",1400070001]
[140,"140CES CTC",10000726,1400080001,{"$f":"_xlfn.XLOOKUP(D863,FC_Master[Cost Center],FC_Master[rollup FC '#])","v":1400080001},null,null,null,null,null,null,null,null,null,140,"140CES CTC",10000726,"140CTC",1400080001]
[141,"Community Legal Sv County Executive",10056551,1410010001,{"$f":"_xlfn.XLOOKUP(D864,FC_Master[Cost Center],FC_Master[rollup FC '#])","v":1410010001},null,null,null,null,null,null,null,null,null,141,"Community Legal Sv County Executive",10056551,"CLgSCE",1410010001]
[141,"141 Community Legal Services",10056651,1410010001,{"$f":"_xlfn.XLOOKUP(D865,FC_Master[Cost Center],FC_Master[rollup FC '#])","v":1410010001},null,null,null,null,null,null,null,null,null,141,"141 Community Legal Services",10056651,"141CLgS",1410010001]
[141,"141CmLgSv Office of Parent Rep",10000657,1410020001,{"$f":"_xlfn.XLOOKUP(D866,FC_Master[Cost Center],FC_Master[rollup FC '#])","v":1410020001},null,null,null,null,null,null,null,null,null,141,"141CmLgSv Office of Parent Rep",10000657,"141PrtRep",1410020001]
[141,"141CmLgSv Office of Child Rep",10000656,1410030001,{"$f":"_xlfn.XLOOKUP(D867,FC_Master[Cost Center],FC_Master[rollup FC '#])","v":1410030001},null,null,null,null,null,null,null,null,null,141,"141CmLgSv Office of Child Rep",10000656,"141ChildRep",1410030001]
[141,"141CmLgSv Office of Child Rep 2",10050176,1410030001,{"$f":"_xlfn.XLOOKUP(D868,FC_Master[Cost Center],FC_Master[rollup FC '#])","v":1410030001},null,null,null,null,null,null,null,null,null,141,"141CmLgSv Office of Child Rep 2",10050176,"141ChildRep2",1410030001]
[141,"141CmLgSv Office of Child Rep 3",10051726,1410030001,{"$f":"_xlfn.XLOOKUP(D869,FC_Master[Cost Center],FC_Master[rollup FC '#])","v":1410030001},null,null,null,null,null,null,null,null,null,141,"141CmLgSv Office of Child Rep 3",10051726,"141ChildRep3",1410030001]
[141,"141CmLgSv Law Library Reference Attorney",10050202,1410040001,{"$f":"_xlfn.XLOOKUP(D870,FC_Master[Cost Center],FC_Master[rollup FC '#])","v":1410040001},null,null,null,null,null,null,null,null,null,141,"141CmLgSv Law Library Reference Attorney",10050202,"141RfrAtty",1410040001]
[141,"155CRS Law Library Reference Attorneys",10050202,1410040001,{"$f":"_xlfn.XLOOKUP(D871,FC_Master[Cost Center],FC_Master[rollup FC '#])","v":1410040001},null,null,null,null,null,null,null,null,null,141,"155CRS Law Library Reference Attorneys",10050202,"155RfrAtty",1410040001]
[141,"141CmLgSv Law Library Rfr Atty DL",10052652,1410040001,{"$f":"_xlfn.XLOOKUP(D872,FC_Master[Cost Center],FC_Master[rollup FC '#])","v":1410040001},null,null,null,null,null,null,null,null,null,141,"141CmLgSv Law Library Rfr Atty DL",10052652,"141RfrAttyDL",1410040001]
[141,"155CRS Law Library Rfr Atty DL",10052652,1410040001,{"$f":"_xlfn.XLOOKUP(D873,FC_Master[Cost Center],FC_Master[rollup FC '#])","v":1410040001},null,null,null,null,null,null,null,null,null,141,"155CRS Law Library Rfr Atty DL",10052652,"155RfrAttyDL",1410040001]
[141,"141CmLgSv Law Library",10000665,1410040100,{"$f":"_xlfn.XLOOKUP(D874,FC_Master[Cost Center],FC_Master[rollup FC '#])","v":1410040100},null,null,null,null,null,null,null,null,null,141,"141CmLgSv Law Library",10000665,"141LawLib",1410040100]
[141,"155CRS Law Library",10000665,1410040100,{"$f":"_xlfn.XLOOKUP(D875,FC_Master[Cost Center],FC_Master[rollup FC '#])","v":1410040100},null,null,null,null,null,null,null,null,null,141,"155CRS Law Library",10000665,"155LawLib",1410040100]
[141,"141CmLgSv Law Library Technical Services",10000666,1410040100,{"$f":"_xlfn.XLOOKUP(D876,FC_Master[Cost Center],FC_Master[rollup FC '#])","v":1410040100},null,null,null,null,null,null,null,null,null,141,"141CmLgSv Law Library Technical Services",10000666,"141LwLibTch",1410040100]
[141,"155CRS Law Library Technical Services",10000666,1410040100,{"$f":"_xlfn.XLOOKUP(D877,FC_Master[Cost Center],FC_Master[rollup FC '#])","v":1410040100},null,null,null,null,null,null,null,null,null,141,"155CRS Law Library Technical Services",10000666,"155LwLibTch",1410040100]
[141,"141CmLgSv Law Library Reference Services",10000667,1410040100,{"$f":"_xlfn.XLOOKUP(D878,FC_Master[Cost Center],FC_Master[rollup FC '#])","v":1410040100},null,null,null,null,null,null,null,null,null,141,"141CmLgSv Law Library Reference Services",10000667,"141LwLibRfr",1410040100]
[141,"155CRS Law Library Reference Services",10000667,1410040100,{"$f":"_xlfn.XLOOKUP(D879,FC_Master[Cost Center],FC_Master[rollup FC '#])","v":1410040100},null,null,null,null,null,null,null,null,null,141,"155CRS Law Library Reference Services",10000667,"155LwLibRfr",1410040100]
[142,"142PtS Case Management-AMU",10000503,1420010001,{"$f":"_xlfn.XLOOKUP(D880,FC_Master[Cost Center],FC_Master[rollup FC '#])","v":1420010001},null,null,null,null,null,null,null,null,null,142,"142PtS Case Management-AMU",10000503,"142CaseMAMU",1420010001]
[142,"142PtS Division Director",10000506,1420010001,{"$f":"_xlfn.XLOOKUP(D881,FC_Master[Cost Center],FC_Master[rollup FC '#])","v":1420010001},null,null,null,null,null,null,null,null,null,142,"142PtS Division Director",10000506,"142DivDir",1420010001]
[142,"142PtS Case Management-Super/FV/EM",10000508,1420010001,{"$f":"_xlfn.XLOOKUP(D882,FC_Master[Cost Center],FC_Master[rollup FC '#])","v":1420010001},null,null,null,null,null,null,null,null,null,142,"142PtS Case Management-Super/FV/EM",10000508,"142CaseMSvsn",1420010001]
[142,"142PtS Case Management-MH/AMU",10055301,1420010001,{"$f":"_xlfn.XLOOKUP(D883,FC_Master[Cost Center],FC_Master[rollup FC '#])","v":1420010001},null,null,null,null,null,null,null,null,null,142,"142PtS Case Management-MH/AMU",10055301,"142CaseMMHA",1420010001]
[142,"142PtS Case Management-EM",10055302,1420010001,{"$f":"_xlfn.XLOOKUP(D884,FC_Master[Cost Center],FC_Master[rollup FC '#])","v":1420010001},null,null,null,null,null,null,null,null,null,142,"142PtS Case Management-EM",10055302,"142CaseMEM",1420010001]
[142,"142PtS Support Staff-A Shift/B Shift",10000507,1420080001,{"$f":"_xlfn.XLOOKUP(D885,FC_Master[Cost Center],FC_Master[rollup FC '#])","v":1420010001},null,null,null,null,null,null,null,null,null,142,"142PtS Support Staff-A Shift/B Shift",10000507,"142SpStfA/B",1420080001]
[142,"142PtS Drug Court",10000784,1420150001,{"$f":"_xlfn.XLOOKUP(D886,FC_Master[Cost Center],FC_Master[rollup FC '#])","v":1420150001},null,null,null,null,null,null,null,null,null,142,"142PtS Drug Court",10000784,"142DrugCrt",1420150001]
[142,"142PtS Drug Court-Case Management",10050726,1420150001,{"$f":"_xlfn.XLOOKUP(D887,FC_Master[Cost Center],FC_Master[rollup FC '#])","v":1420150001},null,null,null,null,null,null,null,null,null,142,"142PtS Drug Court-Case Management",10050726,"142DrgCaseM",1420150001]
[142,"142PtS Drug Court-Counseling Services",10050727,1420150001,{"$f":"_xlfn.XLOOKUP(D888,FC_Master[Cost Center],FC_Master[rollup FC '#])","v":1420150001},null,null,null,null,null,null,null,null,null,142,"142PtS Drug Court-Counseling Services",10050727,"142DrgCslSv",1420150001]
[142,"142PtS DWI Court",10052452,1420150001,{"$f":"_xlfn.XLOOKUP(D889,FC_Master[Cost Center],FC_Master[rollup FC '#])","v":1420150001},null,null,null,null,null,null,null,null,null,142,"142PtS DWI Court",10052452,"142DWICourt",1420150001]
[142,"142PtS Human Resources Administration",10052551,1420150001,{"$f":"_xlfn.XLOOKUP(D890,FC_Master[Cost Center],FC_Master[rollup FC '#])","v":1420150001},null,null,null,null,null,null,null,null,null,142,"142PtS Human Resources Administration",10052551,"142PtSHRAd",1420150001]
[142,"142PtS Pretrial Investigations-A/B Shift",10000504,1420160001,{"$f":"_xlfn.XLOOKUP(D891,FC_Master[Cost Center],FC_Master[rollup FC '#])","v":1420160001},null,null,null,null,null,null,null,null,null,142,"142PtS Pretrial Investigations-A/B Shift",10000504,"142InvtgnAB",1420160001]
[142,"142PtS Pretrial Investigations-B/C Shift",10000505,1420160001,{"$f":"_xlfn.XLOOKUP(D892,FC_Master[Cost Center],FC_Master[rollup FC '#])","v":1420160001},null,null,null,null,null,null,null,null,null,142,"142PtS Pretrial Investigations-B/C Shift",10000505,"142InvtgnBC",1420160001]
[144,"144Public Defender's Office",10054001,1440010001,{"$f":"_xlfn.XLOOKUP(D893,FC_Master[Cost Center],FC_Master[rollup FC '#])","v":1440010001},null,null,null,null,null,null,null,null,null,144,"144Public Defender's Office",10054001,"144PDO",1440010001]
[144,"144PD Social Services Division",10056452,1440010001,{"$f":"_xlfn.XLOOKUP(D894,FC_Master[Cost Center],FC_Master[rollup FC '#])","v":1440010001},null,null,null,null,null,null,null,null,null,144,"144PD Social Services Division",10056452,"144SSDiv",1440010001]
[144,"144PD Training Division",10056453,1440010001,{"$f":"_xlfn.XLOOKUP(D895,FC_Master[Cost Center],FC_Master[rollup FC '#])","v":1440010001},null,null,null,null,null,null,null,null,null,144,"144PD Training Division",10056453,"144TrngDiv",1440010001]
[144,"144PD Holistic Practice Division",10056454,1440010001,{"$f":"_xlfn.XLOOKUP(D896,FC_Master[Cost Center],FC_Master[rollup FC '#])","v":1440010001},null,null,null,null,null,null,null,null,null,144,"144PD Holistic Practice Division",10056454,"144HpracDiv",1440010001]
[144,"144PD Legal Division",10056455,1440010001,{"$f":"_xlfn.XLOOKUP(D897,FC_Master[Cost Center],FC_Master[rollup FC '#])","v":1440010001},null,null,null,null,null,null,null,null,null,144,"144PD Legal Division",10056455,"144LgDiv",1440010001]
[144,"144PD Administrative Division",10056456,1440010001,{"$f":"_xlfn.XLOOKUP(D898,FC_Master[Cost Center],FC_Master[rollup FC '#])","v":1440010001},null,null,null,null,null,null,null,null,null,144,"144PD Administrative Division",10056456,"144AdmDiv",1440010001]
[{"$f":"O899","v":144},{"$f":"P899","v":"144JHD Juvenile Holistic Defense"},{"$f":"VALUE(Q899)","v":10000509},{"$f":"VALUE(S899)","v":1440050001},{"$f":"_xlfn.XLOOKUP(D899,FC_Master[Cost Center],FC_Master[rollup FC '#])","v":1440050001},null,null,null,null,null,null,null,null,null,144,"144JHD Juvenile Holistic Defense",10000509,"144JHD",1440050001]
[144,"144JHD Professional Staff",10000510,1440060001,{"$f":"_xlfn.XLOOKUP(D900,FC_Master[Cost Center],FC_Master[rollup FC '#])","v":1440060001},null,null,null,null,null,null,null,null,null,144,"144JHD Professional Staff",10000510,"144JHDPfStf",1440060001]
[144,"144JHD Finance",10050233,1440060001,{"$f":"_xlfn.XLOOKUP(D901,FC_Master[Cost Center],FC_Master[rollup FC '#])","v":1440060001},null,null,null,null,null,null,null,null,null,144,"144JHD Finance",10050233,"144JHDFin",1440060001]
[144,"144JHD Team A",10053595,1440060001,{"$f":"_xlfn.XLOOKUP(D902,FC_Master[Cost Center],FC_Master[rollup FC '#])","v":1440060001},null,null,null,null,null,null,null,null,null,144,"144JHD Team A",10053595,"144JHDTeamA",1440060001]
[144,"144JHD Team B",10053596,1440060001,{"$f":"_xlfn.XLOOKUP(D903,FC_Master[Cost Center],FC_Master[rollup FC '#])","v":1440060001},null,null,null,null,null,null,null,null,null,144,"144JHD Team B",10053596,"144JHDTeamB",1440060001]
[144,"144JHD Team C",10053597,1440060001,{"$f":"_xlfn.XLOOKUP(D904,FC_Master[Cost Center],FC_Master[rollup FC '#])","v":1440060001},null,null,null,null,null,null,null,null,null,144,"144JHD Team C",10053597,"144JHDTeamC",1440060001]
[144,"144JHD Team D",10054052,1440060001,{"$f":"_xlfn.XLOOKUP(D905,FC_Master[Cost Center],FC_Master[rollup FC '#])","v":1440060001},null,null,null,null,null,null,null,null,null,144,"144JHD Team D",10054052,"144JHDTeamD",1440060001]
[144,"144JHD Court Staff",10055676,1440060001,{"$f":"_xlfn.XLOOKUP(D906,FC_Master[Cost Center],FC_Master[rollup FC '#])","v":1440060001},null,null,null,null,null,null,null,null,null,144,"144JHD Court Staff",10055676,"144JHDCtStf",1440060001]
[144,"144JHD Administration",10000511,1440070001,{"$f":"_xlfn.XLOOKUP(D907,FC_Master[Cost Center],FC_Master[rollup FC '#])","v":1440070001},null,null,null,null,null,null,null,null,null,144,"144JHD Administration",10000511,"144JHDAdm",1440070001]
[144,"144JHD Support Staff",10053598,1440070001,{"$f":"_xlfn.XLOOKUP(D908,FC_Master[Cost Center],FC_Master[rollup FC '#])","v":1440070001},null,null,null,null,null,null,null,null,null,144,"144JHD Support Staff",10053598,"144JHDSpStf",1440070001]
[144,"144PD Mtl Hlh Hol Defense - Legal Adm",10000658,1440080001,{"$f":"_xlfn.XLOOKUP(D909,FC_Master[Cost Center],FC_Master[rollup FC '#])","v":1440080001},null,null,null,null,null,null,null,null,null,144,"144PD Mtl Hlh Hol Defense - Legal Adm",10000658,"144MHHDLA",1440080001]
[144,"144PD Mtl Hlh Hol Defense - Soc Sv Pgms",10000659,1440080001,{"$f":"_xlfn.XLOOKUP(D910,FC_Master[Cost Center],FC_Master[rollup FC '#])","v":1440080001},null,null,null,null,null,null,null,null,null,144,"144PD Mtl Hlh Hol Defense - Soc Sv Pgms",10000659,"144MHHDSS",1440080001]
[144,"144PD Mtl Hlh Hol Defense - Admin",10054576,1440080001,{"$f":"_xlfn.XLOOKUP(D911,FC_Master[Cost Center],FC_Master[rollup FC '#])","v":1440080001},null,null,null,null,null,null,null,null,null,144,"144PD Mtl Hlh Hol Defense - Admin",10054576,"144MHHDAdm",1440080001]
[145,"145JvP PlnRsh,Adm,HR,Hlh,Fcl,Food Dir",10000561,1450010001,{"$f":"_xlfn.XLOOKUP(D912,FC_Master[Cost Center],FC_Master[rollup FC '#])","v":1450010001},null,null,null,null,null,null,null,null,null,145,"145JvP PlnRsh,Adm,HR,Hlh,Fcl,Food Dir",10000561,"145PAHHFFDir",1450010001]
[{"$f":"O913","v":145},{"$f":"P913","v":"145JvP Grants"},10000572,1450020001,{"$f":"_xlfn.XLOOKUP(D913,FC_Master[Cost Center],FC_Master[rollup FC '#])","v":1450020001},null,null,null,null,null,null,null,null,null,145,"145JvP Grants",10000572,"145Grnt",1450020001]
[145,"145JvP Finance 3",10051301,1450100001,{"$f":"_xlfn.XLOOKUP(D914,FC_Master[Cost Center],FC_Master[rollup FC '#])","v":1450100001},null,null,null,null,null,null,null,null,null,145,"145JvP Finance 3",10051301,"145Fin3",1450100001]
[145,"145JvP Court Legal Management",10000514,1450170001,{"$f":"_xlfn.XLOOKUP(D915,FC_Master[Cost Center],FC_Master[rollup FC '#])","v":1450170001},null,null,null,null,null,null,null,null,null,145,"145JvP Court Legal Management",10000514,"145CtLgMgmt",1450170001]
[145,"145JvP Judicial #1",10000515,1450170001,{"$f":"_xlfn.XLOOKUP(D916,FC_Master[Cost Center],FC_Master[rollup FC '#])","v":1450170001},null,null,null,null,null,null,null,null,null,145,"145JvP Judicial #1",10000515,"145Jud1",1450170001]
[145,"145JvP Judicial #2",10000516,1450170001,{"$f":"_xlfn.XLOOKUP(D917,FC_Master[Cost Center],FC_Master[rollup FC '#])","v":1450170001},null,null,null,null,null,null,null,null,null,145,"145JvP Judicial #2",10000516,"145Jud2",1450170001]
[145,"145JvP Legal Services 2",10000520,1450180001,{"$f":"_xlfn.XLOOKUP(D918,FC_Master[Cost Center],FC_Master[rollup FC '#])","v":1450180001},null,null,null,null,null,null,null,null,null,145,"145JvP Legal Services 2",10000520,"145Lg2",1450180001]
[145,"145JvP Court Services 1",10000522,1450190001,{"$f":"_xlfn.XLOOKUP(D919,FC_Master[Cost Center],FC_Master[rollup FC '#])","v":1450190001},null,null,null,null,null,null,null,null,null,145,"145JvP Court Services 1",10000522,"145CSv1",1450190001]
[145,"145JvP Court Services 1",10000522,1450190001,{"$f":"_xlfn.XLOOKUP(D920,FC_Master[Cost Center],FC_Master[rollup FC '#])","v":1450190001},null,null,null,null,null,null,null,null,null,145,"145JvP Court Services 1",10000522,"145CSv1",1450190001]
[145,"145JvP Court Services 1 Intake",10000523,1450220001,{"$f":"_xlfn.XLOOKUP(D921,FC_Master[Cost Center],FC_Master[rollup FC '#])","v":1450220001},null,null,null,null,null,null,null,null,null,145,"145JvP Court Services 1 Intake",10000523,"145CSv1Intk",1450220001]
[145,"145JvP Probation Sv 2 - Field Central",10000537,1450250001,{"$f":"_xlfn.XLOOKUP(D922,FC_Master[Cost Center],FC_Master[rollup FC '#])","v":1450250001},null,null,null,null,null,null,null,null,null,145,"145JvP Probation Sv 2 - Field Central",10000537,"145Pbn2Ctl",1450250001]
[145,"145JvP Probation Sv 1 - Ints Svsn",10000535,1450260001,{"$f":"_xlfn.XLOOKUP(D923,FC_Master[Cost Center],FC_Master[rollup FC '#])","v":1450260001},null,null,null,null,null,null,null,null,null,145,"145JvP Probation Sv 1 - Ints Svsn",10000535,"145Pbn1IS",1450260001]
[145,"145JvP Special Sv Administration",10000528,1450300001,{"$f":"_xlfn.XLOOKUP(D924,FC_Master[Cost Center],FC_Master[rollup FC '#])","v":1450300001},null,null,null,null,null,null,null,null,null,145,"145JvP Special Sv Administration",10000528,"145SplAdm",1450300001]
[145,"145JvP Special Sv 4 - CRCG",10000532,1450310001,{"$f":"_xlfn.XLOOKUP(D925,FC_Master[Cost Center],FC_Master[rollup FC '#])","v":1450310001},null,null,null,null,null,null,null,null,null,145,"145JvP Special Sv 4 - CRCG",10000532,"145Spl4CRCG",1450310001]
[145,"145JvP Special Sv 3 - Drug Court",10000531,1450320001,{"$f":"_xlfn.XLOOKUP(D926,FC_Master[Cost Center],FC_Master[rollup FC '#])","v":1450320001},null,null,null,null,null,null,null,null,null,145,"145JvP Special Sv 3 - Drug Court",10000531,"145Spl3DrgCt",1450320001]
[145,"145JvP Special Sv 2 - Trtmt & Csl D Enr",10000530,1450330001,{"$f":"_xlfn.XLOOKUP(D927,FC_Master[Cost Center],FC_Master[rollup FC '#])","v":1450330001},null,null,null,null,null,null,null,null,null,145,"145JvP Special Sv 2 - Trtmt & Csl D Enr",10000530,"145Spl2TrCsl",1450330001]
[145,"145JvP Special Sv 1 - JJAEP",10000529,1450360001,{"$f":"_xlfn.XLOOKUP(D928,FC_Master[Cost Center],FC_Master[rollup FC '#])","v":1450360001},null,null,null,null,null,null,null,null,null,145,"145JvP Special Sv 1 - JJAEP",10000529,"145Spl1JJAEP",1450360001]
[145,"145JvP Unassigned",10000725,1450370001,{"$f":"_xlfn.XLOOKUP(D929,FC_Master[Cost Center],FC_Master[rollup FC '#])","v":1450370001},null,null,null,null,null,null,null,null,null,145,"145JvP Unassigned",10000725,"145Unasg",1450370001]
[145,"145JvP Res Svcs Counselors",10051327,1450430001,{"$f":"_xlfn.XLOOKUP(D930,FC_Master[Cost Center],FC_Master[rollup FC '#])","v":1450430001},null,null,null,null,null,null,null,null,null,145,"145JvP Res Svcs Counselors",10051327,"145RsdSvCsl",1450430001]
[145,"145JvP Domestic Relations 1A",10000577,1450460001,{"$f":"_xlfn.XLOOKUP(D931,FC_Master[Cost Center],FC_Master[rollup FC '#])","v":1450460001},null,null,null,null,null,null,null,null,null,145,"145JvP Domestic Relations 1A",10000577,"145DRl1A",1450460001]
[145,"145JvP Probation Sv 8 - Sex Offender",10051876,1450480001,{"$f":"_xlfn.XLOOKUP(D932,FC_Master[Cost Center],FC_Master[rollup FC '#])","v":1450480001},null,null,null,null,null,null,null,null,null,145,"145JvP Probation Sv 8 - Sex Offender",10051876,"145PbnSvs8SO",1450480001]
[145,"145JvP Administrative Support",10000513,1450600001,{"$f":"_xlfn.XLOOKUP(D933,FC_Master[Cost Center],FC_Master[rollup FC '#])","v":1450600001},null,null,null,null,null,null,null,null,null,145,"145JvP Administrative Support",10000513,"145AdmSp",1450600001]
[145,"145JvP Spl, Ct, Pbn Sv Chf Dp",10000517,1450600001,{"$f":"_xlfn.XLOOKUP(D934,FC_Master[Cost Center],FC_Master[rollup FC '#])","v":1450600001},null,null,null,null,null,null,null,null,null,145,"145JvP Spl, Ct, Pbn Sv Chf Dp",10000517,"145SCP",1450600001]
[145,"145JvP Post Adjudication Services",10000543,1450600001,{"$f":"_xlfn.XLOOKUP(D935,FC_Master[Cost Center],FC_Master[rollup FC '#])","v":1450600001},null,null,null,null,null,null,null,null,null,145,"145JvP Post Adjudication Services",10000543,"145PostAduSv",1450600001]
[145,"145JvP Finance, Research, IT Chf Dp",10000558,1450600001,{"$f":"_xlfn.XLOOKUP(D936,FC_Master[Cost Center],FC_Master[rollup FC '#])","v":1450600001},null,null,null,null,null,null,null,null,null,145,"145JvP Finance, Research, IT Chf Dp",10000558,"145FRIChfDp",1450600001]
[145,"145 JvP Accreditation Compliance",10000559,1450600001,{"$f":"_xlfn.XLOOKUP(D937,FC_Master[Cost Center],FC_Master[rollup FC '#])","v":1450600001},null,null,null,null,null,null,null,null,null,145,"145 JvP Accreditation Compliance",10000559,"145JvPAcdtCm",1450600001]
[145,"145JvP Planning and Research",10000567,1450600001,{"$f":"_xlfn.XLOOKUP(D938,FC_Master[Cost Center],FC_Master[rollup FC '#])","v":1450600001},null,null,null,null,null,null,null,null,null,145,"145JvP Planning and Research",10000567,"145PR",1450600001]
[145,"145JvP HR and Staff Development",10000570,1450600001,{"$f":"_xlfn.XLOOKUP(D939,FC_Master[Cost Center],FC_Master[rollup FC '#])","v":1450600001},null,null,null,null,null,null,null,null,null,145,"145JvP HR and Staff Development",10000570,"145HR",1450600001]
[145,"145JvP Finance 1",10000573,1450600001,{"$f":"_xlfn.XLOOKUP(D940,FC_Master[Cost Center],FC_Master[rollup FC '#])","v":1450600001},null,null,null,null,null,null,null,null,null,145,"145JvP Finance 1",10000573,"145Fin1",1450600001]
[145,"145JvP Finance 2",10000574,1450600001,{"$f":"_xlfn.XLOOKUP(D941,FC_Master[Cost Center],FC_Master[rollup FC '#])","v":1450600001},null,null,null,null,null,null,null,null,null,145,"145JvP Finance 2",10000574,"145Fin2",1450600001]
[145,"145JvP HR Support",10050230,1450600001,{"$f":"_xlfn.XLOOKUP(D942,FC_Master[Cost Center],FC_Master[rollup FC '#])","v":1450600001},null,null,null,null,null,null,null,null,null,145,"145JvP HR Support",10050230,"145HRSupport",1450600001]
[145,"145JvP HR Training",10050231,1450600001,{"$f":"_xlfn.XLOOKUP(D943,FC_Master[Cost Center],FC_Master[rollup FC '#])","v":1450600001},null,null,null,null,null,null,null,null,null,145,"145JvP HR Training",10050231,"145HRTrain",1450600001]
[145,"145JvP General Counsel",10050402,1450600001,{"$f":"_xlfn.XLOOKUP(D944,FC_Master[Cost Center],FC_Master[rollup FC '#])","v":1450600001},null,null,null,null,null,null,null,null,null,145,"145JvP General Counsel",10050402,"145GenCsl",1450600001]
[145,"145JvP IT, Planning and Research",10053426,1450600001,{"$f":"_xlfn.XLOOKUP(D945,FC_Master[Cost Center],FC_Master[rollup FC '#])","v":1450600001},null,null,null,null,null,null,null,null,null,145,"145JvP IT, Planning and Research",10053426,"145JvPITPR",1450600001]
[145,"145JvP Human Resources 1",10053726,1450600001,{"$f":"_xlfn.XLOOKUP(D946,FC_Master[Cost Center],FC_Master[rollup FC '#])","v":1450600001},null,null,null,null,null,null,null,null,null,145,"145JvP Human Resources 1",10053726,"145JvPHR1",1450600001]
[145,"145JvP Contracts",10054054,1450600001,{"$f":"_xlfn.XLOOKUP(D947,FC_Master[Cost Center],FC_Master[rollup FC '#])","v":1450600001},null,null,null,null,null,null,null,null,null,145,"145JvP Contracts",10054054,"145Cntrc",1450600001]
[145,"145JvP Accounting and Budget",10054126,1450600001,{"$f":"_xlfn.XLOOKUP(D948,FC_Master[Cost Center],FC_Master[rollup FC '#])","v":1450600001},null,null,null,null,null,null,null,null,null,145,"145JvP Accounting and Budget",10054126,"145ActgBdg",1450600001]
[145,"145JvP Health Services Admin",10055351,1450600001,{"$f":"_xlfn.XLOOKUP(D949,FC_Master[Cost Center],FC_Master[rollup FC '#])","v":1450600001},null,null,null,null,null,null,null,null,null,145,"145JvP Health Services Admin",10055351,"145HlhSvAdm",1450600001]
[145,"145JvP Executive Support",10055926,1450600001,{"$f":"_xlfn.XLOOKUP(D950,FC_Master[Cost Center],FC_Master[rollup FC '#])","v":1450600001},null,null,null,null,null,null,null,null,null,145,"145JvP Executive Support",10055926,"145ExcSp",1450600001]
[145,"145JvP Grants",10056176,1450600001,{"$f":"_xlfn.XLOOKUP(D951,FC_Master[Cost Center],FC_Master[rollup FC '#])","v":1450600001},null,null,null,null,null,null,null,null,null,145,"145JvP Grants",10056176,"145JvPGrnt",1450600001]
[145,"145JvP Records",10056276,1450600001,{"$f":"_xlfn.XLOOKUP(D952,FC_Master[Cost Center],FC_Master[rollup FC '#])","v":1450600001},null,null,null,null,null,null,null,null,null,145,"145JvP Records",10056276,"145Rcd",1450600001]
[145,"145JvP Diversity Equity Inclusion",10056426,1450600001,{"$f":"_xlfn.XLOOKUP(D953,FC_Master[Cost Center],FC_Master[rollup FC '#])","v":1450600001},null,null,null,null,null,null,null,null,null,145,"145JvP Diversity Equity Inclusion",10056426,"145DEI",1450600001]
[145,"145JvP Facilities Mgmt Services Mgr",10000564,1450610001,{"$f":"_xlfn.XLOOKUP(D954,FC_Master[Cost Center],FC_Master[rollup FC '#])","v":1450610001},null,null,null,null,null,null,null,null,null,145,"145JvP Facilities Mgmt Services Mgr",10000564,"145FclMgmt",1450610001]
[145,"145JvP Building Maintenance",10000565,1450610001,{"$f":"_xlfn.XLOOKUP(D955,FC_Master[Cost Center],FC_Master[rollup FC '#])","v":1450610001},null,null,null,null,null,null,null,null,null,145,"145JvP Building Maintenance",10000565,"145BdMnt",1450610001]
[145,"145JvP Custodians",10050232,1450610001,{"$f":"_xlfn.XLOOKUP(D956,FC_Master[Cost Center],FC_Master[rollup FC '#])","v":1450610001},null,null,null,null,null,null,null,null,null,145,"145JvP Custodians",10050232,"145Custodian",1450610001]
[145,"145JvP Security Operations",10054201,1450610001,{"$f":"_xlfn.XLOOKUP(D957,FC_Master[Cost Center],FC_Master[rollup FC '#])","v":1450610001},null,null,null,null,null,null,null,null,null,145,"145JvP Security Operations",10054201,"145SecOps",1450610001]
[145,"145JvP Facilities Support Services",10055426,1450610001,{"$f":"_xlfn.XLOOKUP(D958,FC_Master[Cost Center],FC_Master[rollup FC '#])","v":1450610001},null,null,null,null,null,null,null,null,null,145,"145JvP Facilities Support Services",10055426,"145FclSpSv",1450610001]
[145,"145JvP Fcl Support Sv Division Director",10055626,1450610001,{"$f":"_xlfn.XLOOKUP(D959,FC_Master[Cost Center],FC_Master[rollup FC '#])","v":1450610001},null,null,null,null,null,null,null,null,null,145,"145JvP Fcl Support Sv Division Director",10055626,"145FclSpSvDD",1450610001]
[145,"145JvP Food Services",10000563,1450620001,{"$f":"_xlfn.XLOOKUP(D960,FC_Master[Cost Center],FC_Master[rollup FC '#])","v":1450620001},null,null,null,null,null,null,null,null,null,145,"145JvP Food Services",10000563,"145Food",1450620001]
[145,"145JvP Food Services 1",10053776,1450620001,{"$f":"_xlfn.XLOOKUP(D961,FC_Master[Cost Center],FC_Master[rollup FC '#])","v":1450620001},null,null,null,null,null,null,null,null,null,145,"145JvP Food Services 1",10053776,"145FoodSv1",1450620001]
[145,"145JvP Trtmt and Csl & Health Services",10000544,1450630001,{"$f":"_xlfn.XLOOKUP(D962,FC_Master[Cost Center],FC_Master[rollup FC '#])","v":1450630001},null,null,null,null,null,null,null,null,null,145,"145JvP Trtmt and Csl & Health Services",10000544,"145TrCslHlh",1450630001]
[145,"145JvP Treatment and Counseling 1A",{"$f":"VALUE(Q963)","v":10000545},{"$f":"VALUE(S963)","v":1450630001},{"$f":"_xlfn.XLOOKUP(D963,FC_Master[Cost Center],FC_Master[rollup FC '#])","v":1450630001},null,null,null,null,null,null,null,null,null,145,"145JvP Treatment and Counseling 1A",10000545,"145TrCsl1A",1450630001]
[145,"145JvP Assessment Services",10000560,1450630001,{"$f":"_xlfn.XLOOKUP(D964,FC_Master[Cost Center],FC_Master[rollup FC '#])","v":1450630001},null,null,null,null,null,null,null,null,null,145,"145JvP Assessment Services",10000560,"145Asmt",1450630001]
[145,"145JvP Assessment Services 1",10000562,1450630001,{"$f":"_xlfn.XLOOKUP(D965,FC_Master[Cost Center],FC_Master[rollup FC '#])","v":1450630001},null,null,null,null,null,null,null,null,null,145,"145JvP Assessment Services 1",10000562,"145Asmt1",1450630001]
[145,"145JvP Medical Services",10000566,1450630001,{"$f":"_xlfn.XLOOKUP(D966,FC_Master[Cost Center],FC_Master[rollup FC '#])","v":1450630001},null,null,null,null,null,null,null,null,null,145,"145JvP Medical Services",10000566,"145Med",1450630001]
[145,"145JvP Youth Enrichment Sv",10050476,1450630001,{"$f":"_xlfn.XLOOKUP(D967,FC_Master[Cost Center],FC_Master[rollup FC '#])","v":1450630001},null,null,null,null,null,null,null,null,null,145,"145JvP Youth Enrichment Sv",10050476,"145YthEnr",1450630001]
[145,"145JvP Family Coordination Sv",10051328,1450630001,{"$f":"_xlfn.XLOOKUP(D968,FC_Master[Cost Center],FC_Master[rollup FC '#])","v":1450630001},null,null,null,null,null,null,null,null,null,145,"145JvP Family Coordination Sv",10051328,"145JvPFCSv",1450630001]
[145,"145JvP Social Services",10053729,1450630001,{"$f":"_xlfn.XLOOKUP(D969,FC_Master[Cost Center],FC_Master[rollup FC '#])","v":1450630001},null,null,null,null,null,null,null,null,null,145,"145JvP Social Services",10053729,"145SS",1450630001]
[145,"145JvP Functional Family Therapy",10053826,1450630001,{"$f":"_xlfn.XLOOKUP(D970,FC_Master[Cost Center],FC_Master[rollup FC '#])","v":1450630001},null,null,null,null,null,null,null,null,null,145,"145JvP Functional Family Therapy",10053826,"145JvPFFT",1450630001]
[145,"145JvP Treatment Services",10053827,1450630001,{"$f":"_xlfn.XLOOKUP(D971,FC_Master[Cost Center],FC_Master[rollup FC '#])","v":1450630001},null,null,null,null,null,null,null,null,null,145,"145JvP Treatment Services",10053827,"145TrtmtSv",1450630001]
[145,"145JvP Accreditation and Compliance Dir",10054076,1450630001,{"$f":"_xlfn.XLOOKUP(D972,FC_Master[Cost Center],FC_Master[rollup FC '#])","v":1450630001},null,null,null,null,null,null,null,null,null,145,"145JvP Accreditation and Compliance Dir",10054076,"145AcdtCmDir",1450630001]
[145,"145JvP Placement Coordination",10054101,1450630001,{"$f":"_xlfn.XLOOKUP(D973,FC_Master[Cost Center],FC_Master[rollup FC '#])","v":1450630001},null,null,null,null,null,null,null,null,null,145,"145JvP Placement Coordination",10054101,"145PlcCoord",1450630001]
[145,"145JvP Youth Enrichment Sv 2",10054426,1450630001,{"$f":"_xlfn.XLOOKUP(D974,FC_Master[Cost Center],FC_Master[rollup FC '#])","v":1450630001},null,null,null,null,null,null,null,null,null,145,"145JvP Youth Enrichment Sv 2",10054426,"145YthEnr2",1450630001]
[145,"145JvP Medical 1",10054777,1450630001,{"$f":"_xlfn.XLOOKUP(D975,FC_Master[Cost Center],FC_Master[rollup FC '#])","v":1450630001},null,null,null,null,null,null,null,null,null,145,"145JvP Medical 1",10054777,"145Med1",1450630001]
[145,"145JvP Psychology Interns",10054801,1450630001,{"$f":"_xlfn.XLOOKUP(D976,FC_Master[Cost Center],FC_Master[rollup FC '#])","v":1450630001},null,null,null,null,null,null,null,null,null,145,"145JvP Psychology Interns",10054801,"145PsyIntern",1450630001]
[{"$f":"O977","v":145},{"$f":"P977","v":"145JvP Probation Sv DD"},10054926,1450630001,{"$f":"_xlfn.XLOOKUP(D977,FC_Master[Cost Center],FC_Master[rollup FC '#])","v":1450630001},null,null,null,null,null,null,null,null,null,145,"145JvP Probation Sv DD",10054926,"145JvPPbSvDD",1450630001]
[145,"145JvP Psychology Interns",10055651,1450630001,{"$f":"_xlfn.XLOOKUP(D978,FC_Master[Cost Center],FC_Master[rollup FC '#])","v":1450630001},null,null,null,null,null,null,null,null,null,145,"145JvP Psychology Interns",10055651,"145PsyIntern",1450630001]
[145,"145JvP Chief Juvenile Probation Officer",10000512,1450640001,{"$f":"_xlfn.XLOOKUP(D979,FC_Master[Cost Center],FC_Master[rollup FC '#])","v":1450640001},null,null,null,null,null,null,null,null,null,145,"145JvP Chief Juvenile Probation Officer",10000512,"145JvPChf",1450640001]
[145,"145JvP Legal Services Dir",10000518,1450640001,{"$f":"_xlfn.XLOOKUP(D980,FC_Master[Cost Center],FC_Master[rollup FC '#])","v":1450640001},null,null,null,null,null,null,null,null,null,145,"145JvP Legal Services Dir",10000518,"145LgDir",1450640001]
[145,"145JvP Legal Services 1",10000519,1450640001,{"$f":"_xlfn.XLOOKUP(D981,FC_Master[Cost Center],FC_Master[rollup FC '#])","v":1450640001},null,null,null,null,null,null,null,null,null,145,"145JvP Legal Services 1",10000519,"145Lg1",1450640001]
[145,"145JvP Visiting Judges",10051284,1450640001,{"$f":"_xlfn.XLOOKUP(D982,FC_Master[Cost Center],FC_Master[rollup FC '#])","v":1450640001},null,null,null,null,null,null,null,null,null,145,"145JvP Visiting Judges",10051284,"145VstgJg",1450640001]
[145,"145JvP Court Reporters",10052726,1450640001,{"$f":"_xlfn.XLOOKUP(D983,FC_Master[Cost Center],FC_Master[rollup FC '#])","v":1450640001},null,null,null,null,null,null,null,null,null,145,"145JvP Court Reporters",10052726,"145CtRptr",1450640001]
[145,"145JvP Probation Sv Manager",10000534,1450650001,{"$f":"_xlfn.XLOOKUP(D984,FC_Master[Cost Center],FC_Master[rollup FC '#])","v":1450650001},null,null,null,null,null,null,null,null,null,145,"145JvP Probation Sv Manager",10000534,"145PbnMgr",1450650001]
[145,"145JvP Probation Sv 2 - Field North",10000536,1450650001,{"$f":"_xlfn.XLOOKUP(D985,FC_Master[Cost Center],FC_Master[rollup FC '#])","v":1450650001},null,null,null,null,null,null,null,null,null,145,"145JvP Probation Sv 2 - Field North",10000536,"145Pbn2N",1450650001]
[145,"145JvP Probation Sv 3 - Field South",10000538,1450650001,{"$f":"_xlfn.XLOOKUP(D986,FC_Master[Cost Center],FC_Master[rollup FC '#])","v":1450650001},null,null,null,null,null,null,null,null,null,145,"145JvP Probation Sv 3 - Field South",10000538,"145Pbn3S",1450650001]
[145,"145JvP Probation Sv 4 - SNDP",10000539,1450650001,{"$f":"_xlfn.XLOOKUP(D987,FC_Master[Cost Center],FC_Master[rollup FC '#])","v":1450650001},null,null,null,null,null,null,null,null,null,145,"145JvP Probation Sv 4 - SNDP",10000539,"145Pbn4SNDP",1450650001]
[145,"145JvP Probation Sv 5 - Resources",10000540,1450650001,{"$f":"_xlfn.XLOOKUP(D988,FC_Master[Cost Center],FC_Master[rollup FC '#])","v":1450650001},null,null,null,null,null,null,null,null,null,145,"145JvP Probation Sv 5 - Resources",10000540,"145Pbn5Rsrc",1450650001]
[145,"145JvP Probation Sv Administration",10000542,1450650001,{"$f":"_xlfn.XLOOKUP(D989,FC_Master[Cost Center],FC_Master[rollup FC '#])","v":1450650001},null,null,null,null,null,null,null,null,null,145,"145JvP Probation Sv Administration",10000542,"145PbnAdm",1450650001]
[145,"145JvP Court Services Dir",10000521,1450660001,{"$f":"_xlfn.XLOOKUP(D990,FC_Master[Cost Center],FC_Master[rollup FC '#])","v":1450660001},null,null,null,null,null,null,null,null,null,145,"145JvP Court Services Dir",10000521,"145CSvDir",1450660001]
[145,"145JvP Court Unit B",10000524,1450660001,{"$f":"_xlfn.XLOOKUP(D991,FC_Master[Cost Center],FC_Master[rollup FC '#])","v":1450660001},null,null,null,null,null,null,null,null,null,145,"145JvP Court Unit B",10000524,"145CtUnitB",1450660001]
[145,"145JvP Court Services DPU1",10000525,1450660001,{"$f":"_xlfn.XLOOKUP(D992,FC_Master[Cost Center],FC_Master[rollup FC '#])","v":1450660001},null,null,null,null,null,null,null,null,null,145,"145JvP Court Services DPU1",10000525,"145CSvDPU",1450660001]
[145,"145JvP Court Services Administration",10000526,1450660001,{"$f":"_xlfn.XLOOKUP(D993,FC_Master[Cost Center],FC_Master[rollup FC '#])","v":1450660001},null,null,null,null,null,null,null,null,null,145,"145JvP Court Services Administration",10000526,"145CSvAdm",1450660001]
[145,"145JvP Court Services Administration",10000526,1450660001,{"$f":"_xlfn.XLOOKUP(D994,FC_Master[Cost Center],FC_Master[rollup FC '#])","v":1450660001},null,null,null,null,null,null,null,null,null,145,"145JvP Court Services Administration",10000526,"145CSvAdm",1450660001]
[145,"145JvP Court Services Dir",10000533,1450660001,{"$f":"_xlfn.XLOOKUP(D995,FC_Master[Cost Center],FC_Master[rollup FC '#])","v":1450660001},null,null,null,null,null,null,null,null,null,145,"145JvP Court Services Dir",10000533,"145JvPCsvDir",1450660001]
[145,"145JvP Court Services - Crossover",10000541,1450660001,{"$f":"_xlfn.XLOOKUP(D996,FC_Master[Cost Center],FC_Master[rollup FC '#])","v":1450660001},null,null,null,null,null,null,null,null,null,145,"145JvP Court Services - Crossover",10000541,"145CSCOv",1450660001]
[145,"145 Court Services Div Mgr",10051751,1450660001,{"$f":"_xlfn.XLOOKUP(D997,FC_Master[Cost Center],FC_Master[rollup FC '#])","v":1450660001},null,null,null,null,null,null,null,null,null,145,"145 Court Services Div Mgr",10051751,"145CSvDivMgr",1450660001]
[145,"145JvP Outreach & Tracking",10053777,1450660001,{"$f":"_xlfn.XLOOKUP(D998,FC_Master[Cost Center],FC_Master[rollup FC '#])","v":1450660001},null,null,null,null,null,null,null,null,null,145,"145JvP Outreach & Tracking",10053777,"145Otrh",1450660001]
[145,"145JvP Intake AM",10053778,1450660001,{"$f":"_xlfn.XLOOKUP(D999,FC_Master[Cost Center],FC_Master[rollup FC '#])","v":1450660001},null,null,null,null,null,null,null,null,null,145,"145JvP Intake AM",10053778,"145IntkAM",1450660001]
[145,"145JvP Intake PM",10053779,1450660001,{"$f":"_xlfn.XLOOKUP(D1000,FC_Master[Cost Center],FC_Master[rollup FC '#])","v":1450660001},null,null,null,null,null,null,null,null,null,145,"145JvP Intake PM",10053779,"145IntkPM",1450660001]
[145,"145JvP Intake Overnight",10053782,1450660001,{"$f":"_xlfn.XLOOKUP(D1001,FC_Master[Cost Center],FC_Master[rollup FC '#])","v":1450660001},null,null,null,null,null,null,null,null,null,145,"145JvP Intake Overnight",10053782,"145IntkOvn",1450660001]
[145,"145JvP Court Unit A",10053828,1450660001,{"$f":"_xlfn.XLOOKUP(D1002,FC_Master[Cost Center],FC_Master[rollup FC '#])","v":1450660001},null,null,null,null,null,null,null,null,null,145,"145JvP Court Unit A",10053828,"145CtUnitA",1450660001]
[145,"145JvP Intake Overnight",10055827,1450660001,{"$f":"_xlfn.XLOOKUP(D1003,FC_Master[Cost Center],FC_Master[rollup FC '#])","v":1450660001},null,null,null,null,null,null,null,null,null,145,"145JvP Intake Overnight",10055827,"145IntkOvn",1450660001]
[145,"145JvP Detention Services Dir",10000546,1450670001,{"$f":"_xlfn.XLOOKUP(D1004,FC_Master[Cost Center],FC_Master[rollup FC '#])","v":1450670001},null,null,null,null,null,null,null,null,null,145,"145JvP Detention Services Dir",10000546,"145Dtn",1450670001]
[145,"145JvP Detention Services 1",10000547,1450670001,{"$f":"_xlfn.XLOOKUP(D1005,FC_Master[Cost Center],FC_Master[rollup FC '#])","v":1450670001},null,null,null,null,null,null,null,null,null,145,"145JvP Detention Services 1",10000547,"145Dtn1",1450670001]
[145,"145JvP Detention Services 1 Shift A",10000548,1450670001,{"$f":"_xlfn.XLOOKUP(D1006,FC_Master[Cost Center],FC_Master[rollup FC '#])","v":1450670001},null,null,null,null,null,null,null,null,null,145,"145JvP Detention Services 1 Shift A",10000548,"145Dtn1A",1450670001]
[145,"145JvP Detention Services 1 Shift B",10000549,1450670001,{"$f":"_xlfn.XLOOKUP(D1007,FC_Master[Cost Center],FC_Master[rollup FC '#])","v":1450670001},null,null,null,null,null,null,null,null,null,145,"145JvP Detention Services 1 Shift B",10000549,"145Dtn1B",1450670001]
[145,"145JvP Detention Services 1 Shift C",10000550,1450670001,{"$f":"_xlfn.XLOOKUP(D1008,FC_Master[Cost Center],FC_Master[rollup FC '#])","v":1450670001},null,null,null,null,null,null,null,null,null,145,"145JvP Detention Services 1 Shift C",10000550,"145Dtn1C",1450670001]
[{"$f":"O1009","v":145},{"$f":"P1009","v":"145JvP Detention Services 1 Shift D"},{"$f":"VALUE(Q1009)","v":10000551},1450670001,{"$f":"_xlfn.XLOOKUP(D1009,FC_Master[Cost Center],FC_Master[rollup FC '#])","v":1450670001},null,null,null,null,null,null,null,null,null,145,"145JvP Detention Services 1 Shift D",10000551,"145Dtn1D",1450670001]
[145,"145JvP Detention Services Administration",10000552,1450670001,{"$f":"_xlfn.XLOOKUP(D1010,FC_Master[Cost Center],FC_Master[rollup FC '#])","v":1450670001},null,null,null,null,null,null,null,null,null,145,"145JvP Detention Services Administration",10000552,"145DtnAdm",1450670001]
[145,"145JvP Detention Services 1 Shift A 2",10053780,1450670001,{"$f":"_xlfn.XLOOKUP(D1011,FC_Master[Cost Center],FC_Master[rollup FC '#])","v":1450670001},null,null,null,null,null,null,null,null,null,145,"145JvP Detention Services 1 Shift A 2",10053780,"145DtnSvSfA2",1450670001]
[145,"145JvP Detention Services 1 Shift C 2",10053781,1450670001,{"$f":"_xlfn.XLOOKUP(D1012,FC_Master[Cost Center],FC_Master[rollup FC '#])","v":1450670001},null,null,null,null,null,null,null,null,null,145,"145JvP Detention Services 1 Shift C 2",10053781,"145DtnSvSfC2",1450670001]
[145,"145JvP Detention Services 1 Shift D 2",10053807,1450670001,{"$f":"_xlfn.XLOOKUP(D1013,FC_Master[Cost Center],FC_Master[rollup FC '#])","v":1450670001},null,null,null,null,null,null,null,null,null,145,"145JvP Detention Services 1 Shift D 2",10053807,"145Dtn2D",1450670001]
[145,"145JvP Detention Services 1 Shift E",10053808,1450670001,{"$f":"_xlfn.XLOOKUP(D1014,FC_Master[Cost Center],FC_Master[rollup FC '#])","v":1450670001},null,null,null,null,null,null,null,null,null,145,"145JvP Detention Services 1 Shift E",10053808,"145Dtn1E",1450670001]
[145,"145JvP Residential Services Dir",10000553,1450680001,{"$f":"_xlfn.XLOOKUP(D1015,FC_Master[Cost Center],FC_Master[rollup FC '#])","v":1450680001},null,null,null,null,null,null,null,null,null,145,"145JvP Residential Services Dir",10000553,"145Rsd",1450680001]
[145,"145JvP Residential Services 7",10000554,1450680001,{"$f":"_xlfn.XLOOKUP(D1016,FC_Master[Cost Center],FC_Master[rollup FC '#])","v":1450680001},null,null,null,null,null,null,null,null,null,145,"145JvP Residential Services 7",10000554,"145Rsd7",1450680001]
[145,"145JvP Residential Services 4",10000556,1450680001,{"$f":"_xlfn.XLOOKUP(D1017,FC_Master[Cost Center],FC_Master[rollup FC '#])","v":1450680001},null,null,null,null,null,null,null,null,null,145,"145JvP Residential Services 4",10000556,"145Rsd4",1450680001]
[145,"145JvP Residential Services Adm",10000557,1450680001,{"$f":"_xlfn.XLOOKUP(D1018,FC_Master[Cost Center],FC_Master[rollup FC '#])","v":1450680001},null,null,null,null,null,null,null,null,null,145,"145JvP Residential Services Adm",10000557,"145RsdAdm",1450680001]
[145,"145JvP Residential Services Div Mgr",10050201,1450680001,{"$f":"_xlfn.XLOOKUP(D1019,FC_Master[Cost Center],FC_Master[rollup FC '#])","v":1450680001},null,null,null,null,null,null,null,null,null,145,"145JvP Residential Services Div Mgr",10050201,"145RsdMgr",1450680001]
[145,"145JvP Residential Services 1",10050428,1450680001,{"$f":"_xlfn.XLOOKUP(D1020,FC_Master[Cost Center],FC_Master[rollup FC '#])","v":1450680001},null,null,null,null,null,null,null,null,null,145,"145JvP Residential Services 1",10050428,"145Rsd1",1450680001]
[145,"145JvP Girls Secure Unit",10053801,1450680001,{"$f":"_xlfn.XLOOKUP(D1021,FC_Master[Cost Center],FC_Master[rollup FC '#])","v":1450680001},null,null,null,null,null,null,null,null,null,145,"145JvP Girls Secure Unit",10053801,"145GSU",1450680001]
[145,"145JvP Residential Services 6",10053802,1450680001,{"$f":"_xlfn.XLOOKUP(D1022,FC_Master[Cost Center],FC_Master[rollup FC '#])","v":1450680001},null,null,null,null,null,null,null,null,null,145,"145JvP Residential Services 6",10053802,"145Rsd6",1450680001]
[145,"145JvP Residential Services 5",10053803,1450680001,{"$f":"_xlfn.XLOOKUP(D1023,FC_Master[Cost Center],FC_Master[rollup FC '#])","v":1450680001},null,null,null,null,null,null,null,null,null,145,"145JvP Residential Services 5",10053803,"145Rsd5",1450680001]
[145,"145JvP Residential Services 2B",10053804,1450680001,{"$f":"_xlfn.XLOOKUP(D1024,FC_Master[Cost Center],FC_Master[rollup FC '#])","v":1450680001},null,null,null,null,null,null,null,null,null,145,"145JvP Residential Services 2B",10053804,"145Rsd2B",1450680001]
[145,"145JvP Residential Regional Program",10053805,1450680001,{"$f":"_xlfn.XLOOKUP(D1025,FC_Master[Cost Center],FC_Master[rollup FC '#])","v":1450680001},null,null,null,null,null,null,null,null,null,145,"145JvP Residential Regional Program",10053805,"145RsdPg",1450680001]
[145,"145JvP Residential Services 2",10053806,1450680001,{"$f":"_xlfn.XLOOKUP(D1026,FC_Master[Cost Center],FC_Master[rollup FC '#])","v":1450680001},null,null,null,null,null,null,null,null,null,145,"145JvP Residential Services 2",10053806,"145Rsd2",1450680001]
[145,"145JvP Residential Services 3",10053851,{"$f":"VALUE(S1027)","v":1450680001},{"$f":"_xlfn.XLOOKUP(D1027,FC_Master[Cost Center],FC_Master[rollup FC '#])","v":1450680001},null,null,null,null,null,null,null,null,null,145,"145JvP Residential Services 3",10053851,"145Rsd3",1450680001]
[145,"145JVP Residential Sv Administrator",10053951,1450680001,{"$f":"_xlfn.XLOOKUP(D1028,FC_Master[Cost Center],FC_Master[rollup FC '#])","v":1450680001},null,null,null,null,null,null,null,null,null,145,"145JVP Residential Sv Administrator",10053951,"145RsdAdm",1450680001]
[145,"145JVP Residential Services 9",10056632,1450680001,{"$f":"_xlfn.XLOOKUP(D1029,FC_Master[Cost Center],FC_Master[rollup FC '#])","v":1450680001},null,null,null,null,null,null,null,null,null,145,"145JVP Residential Services 9",10056632,"145RsdSv9",1450680001]
[145,"145JVP Residential Services 10",10056633,1450680001,{"$f":"_xlfn.XLOOKUP(D1030,FC_Master[Cost Center],FC_Master[rollup FC '#])","v":1450680001},null,null,null,null,null,null,null,null,null,145,"145JVP Residential Services 10",10056633,"145RsdSv10",1450680001]
[145,"145JVP Residential Services 11",10056634,1450680001,{"$f":"_xlfn.XLOOKUP(D1031,FC_Master[Cost Center],FC_Master[rollup FC '#])","v":1450680001},null,null,null,null,null,null,null,null,null,145,"145JVP Residential Services 11",10056634,"145RsdSv11",1450680001]
[145,"145JVP Residential Services 8",10056653,1450680001,{"$f":"_xlfn.XLOOKUP(D1032,FC_Master[Cost Center],FC_Master[rollup FC '#])","v":1450680001},null,null,null,null,null,null,null,null,null,145,"145JVP Residential Services 8",10056653,"145RsdSv8",1450680001]
[145,"145JvP Domestic Relations and Legal Dir",10000575,1450690001,{"$f":"_xlfn.XLOOKUP(D1033,FC_Master[Cost Center],FC_Master[rollup FC '#])","v":1450690001},null,null,null,null,null,null,null,null,null,145,"145JvP Domestic Relations and Legal Dir",10000575,"145DRLDir",1450690001]
[145,"145JvP Domestic Relations 1",10000576,1450690001,{"$f":"_xlfn.XLOOKUP(D1034,FC_Master[Cost Center],FC_Master[rollup FC '#])","v":1450690001},null,null,null,null,null,null,null,null,null,145,"145JvP Domestic Relations 1",10000576,"145DRl1",1450690001]
[145,"145JvP Domestic Relations Administration",10000578,1450690001,{"$f":"_xlfn.XLOOKUP(D1035,FC_Master[Cost Center],FC_Master[rollup FC '#])","v":1450690001},null,null,null,null,null,null,null,null,null,145,"145JvP Domestic Relations Administration",10000578,"145DRlAdm",1450690001]
[145,"145JvP Domestic Relations 2",10000579,1450690001,{"$f":"_xlfn.XLOOKUP(D1036,FC_Master[Cost Center],FC_Master[rollup FC '#])","v":1450690001},null,null,null,null,null,null,null,null,null,145,"145JvP Domestic Relations 2",10000579,"145DRl2",1450690001]
[145,"145JvP Domestic Relations 3",10000580,1450690001,{"$f":"_xlfn.XLOOKUP(D1037,FC_Master[Cost Center],FC_Master[rollup FC '#])","v":1450690001},null,null,null,null,null,null,null,null,null,145,"145JvP Domestic Relations 3",10000580,"145DRl3",1450690001]
[145,"145JvP Domestic Relations 4",10050401,1450690001,{"$f":"_xlfn.XLOOKUP(D1038,FC_Master[Cost Center],FC_Master[rollup FC '#])","v":1450690001},null,null,null,null,null,null,null,null,null,145,"145JvP Domestic Relations 4",10050401,"145DRl4",1450690001]
[145,"145JvP Domestic Relations Div Mgr",10053076,1450690001,{"$f":"_xlfn.XLOOKUP(D1039,FC_Master[Cost Center],FC_Master[rollup FC '#])","v":1450690001},null,null,null,null,null,null,null,null,null,145,"145JvP Domestic Relations Div Mgr",10053076,"145DRIDivMgr",1450690001]
[145,"145JvP Social Services Division",10054977,1450700001,{"$f":"_xlfn.XLOOKUP(D1040,FC_Master[Cost Center],FC_Master[rollup FC '#])","v":1450700001},null,null,null,null,null,null,null,null,null,145,"145JvP Social Services Division",10054977,"145SDiv",1450700001]
[145,"145JvP Cmty Care Fam Coordination Unit",10054978,1450700001,{"$f":"_xlfn.XLOOKUP(D1041,FC_Master[Cost Center],FC_Master[rollup FC '#])","v":1450700001},null,null,null,null,null,null,null,null,null,145,"145JvP Cmty Care Fam Coordination Unit",10054978,"145CCFC",1450700001]
[145,"145JvP Social Services Division Director",10054979,1450700001,{"$f":"_xlfn.XLOOKUP(D1042,FC_Master[Cost Center],FC_Master[rollup FC '#])","v":1450700001},null,null,null,null,null,null,null,null,null,145,"145JvP Social Services Division Director",10054979,"145SSDivDir",1450700001]
[145,"145JvP Re-entry Court Svcs & Coord Unit",10055001,1450700001,{"$f":"_xlfn.XLOOKUP(D1043,FC_Master[Cost Center],FC_Master[rollup FC '#])","v":1450700001},null,null,null,null,null,null,null,null,null,145,"145JvP Re-entry Court Svcs & Coord Unit",10055001,"145ReECSvCU",1450700001]
[145,"145JvP Cmty Engagement & Rsrc Dev Unit",10055002,1450700001,{"$f":"_xlfn.XLOOKUP(D1044,FC_Master[Cost Center],FC_Master[rollup FC '#])","v":1450700001},null,null,null,null,null,null,null,null,null,145,"145JvP Cmty Engagement & Rsrc Dev Unit",10055002,"145CmEgRsDv",1450700001]
[145,"145JvP Social Services Div Manager",10055077,1450700001,{"$f":"_xlfn.XLOOKUP(D1045,FC_Master[Cost Center],FC_Master[rollup FC '#])","v":1450700001},null,null,null,null,null,null,null,null,null,145,"145JvP Social Services Div Manager",10055077,"145SSDM",1450700001]
[145,"145JvP JJAEP",10055251,1450700001,{"$f":"_xlfn.XLOOKUP(D1046,FC_Master[Cost Center],FC_Master[rollup FC '#])","v":1450700001},null,null,null,null,null,null,null,null,null,145,"145JvP JJAEP",10055251,"145JJAEP",1450700001]
[145,"145JvP Re-entry Ct Svcs & Fam Coord Unit",10055851,1450700001,{"$f":"_xlfn.XLOOKUP(D1047,FC_Master[Cost Center],FC_Master[rollup FC '#])","v":1450700001},null,null,null,null,null,null,null,null,null,145,"145JvP Re-entry Ct Svcs & Fam Coord Unit",10055851,"145JvPRCSFCU",1450700001]
[145,"145JvP Planning and Research - Planning",10000568,1450710001,{"$f":"_xlfn.XLOOKUP(D1048,FC_Master[Cost Center],FC_Master[rollup FC '#])","v":1450710001},null,null,null,null,null,null,null,null,null,145,"145JvP Planning and Research - Planning",10000568,"145PRPln",1450710001]
[145,"145JvP Planning and Research - IT",10000569,1450710001,{"$f":"_xlfn.XLOOKUP(D1049,FC_Master[Cost Center],FC_Master[rollup FC '#])","v":1450710001},null,null,null,null,null,null,null,null,null,145,"145JvP Planning and Research - IT",10000569,"145PRIT",1450710001]
[145,"145JvP Planning and Research - IT",10000569,1450710001,{"$f":"_xlfn.XLOOKUP(D1050,FC_Master[Cost Center],FC_Master[rollup FC '#])","v":1450710001},null,null,null,null,null,null,null,null,null,145,"145JvP Planning and Research - IT",10000569,"145PRIT",1450710001]
[145,"145JvP IT - App Support",10054676,1450710001,{"$f":"_xlfn.XLOOKUP(D1051,FC_Master[Cost Center],FC_Master[rollup FC '#])","v":1450710001},null,null,null,null,null,null,null,null,null,145,"145JvP IT - App Support",10054676,"145ITAppSup",1450710001]
[145,"145JvP IT - Tech Support",10054677,1450710001,{"$f":"_xlfn.XLOOKUP(D1052,FC_Master[Cost Center],FC_Master[rollup FC '#])","v":1450710001},null,null,null,null,null,null,null,null,null,145,"145JvP IT - Tech Support",10054677,"145ITTchSup",1450710001]
[145,"145JvP IT - IT Support",10054678,1450710001,{"$f":"_xlfn.XLOOKUP(D1053,FC_Master[Cost Center],FC_Master[rollup FC '#])","v":1450710001},null,null,null,null,null,null,null,null,null,145,"145JvP IT - IT Support",10054678,"145ITITSup",1450710001]
[147,"147ES Tech and Comm",10000584,1470010001,{"$f":"_xlfn.XLOOKUP(D1054,FC_Master[Cost Center],FC_Master[rollup FC '#])","v":1470010001},null,null,null,null,null,null,null,null,null,147,"147ES Tech and Comm",10000584,"147TchComm",1470010001]
[147,"147ES Fire Marshal",10000585,1470020001,{"$f":"_xlfn.XLOOKUP(D1055,FC_Master[Cost Center],FC_Master[rollup FC '#])","v":1470020001},null,null,null,null,null,null,null,null,null,147,"147ES Fire Marshal",10000585,"147FireMrsl",1470020001]
[147,"Emergency Services County Executive",10000581,1470030001,{"$f":"_xlfn.XLOOKUP(D1056,FC_Master[Cost Center],FC_Master[rollup FC '#])","v":1470030001},null,null,null,null,null,null,null,null,null,147,"Emergency Services County Executive",10000581,"ESCE",1470030001]
[147,"147ES Administrative Services",10000583,1470030001,{"$f":"_xlfn.XLOOKUP(D1057,FC_Master[Cost Center],FC_Master[rollup FC '#])","v":1470030001},null,null,null,null,null,null,null,null,null,147,"147ES Administrative Services",10000583,"147Admin",1470030001]
[147,"147ES Emergency Sv Executive Office",10055451,1470030001,{"$f":"_xlfn.XLOOKUP(D1058,FC_Master[Cost Center],FC_Master[rollup FC '#])","v":1470030001},null,null,null,null,null,null,null,null,null,147,"147ES Emergency Sv Executive Office",10055451,"147ESExcOfc",1470030001]
[147,"147ES Financial Services",10056701,1470030001,{"$f":"_xlfn.XLOOKUP(D1059,FC_Master[Cost Center],FC_Master[rollup FC '#])","v":1470030001},null,null,null,null,null,null,null,null,null,147,"147ES Financial Services",10056701,"147FinSv",1470030001]
[147,"147ES Office of Emergency Management",10000582,1470040001,{"$f":"_xlfn.XLOOKUP(D1060,FC_Master[Cost Center],FC_Master[rollup FC '#])","v":1470040001},null,null,null,null,null,null,null,null,null,147,"147ES Office of Emergency Management",10000582,"147EmrgMgmt",1470040001]
[147,"147ES Finance",10055801,1470040001,{"$f":"_xlfn.XLOOKUP(D1061,FC_Master[Cost Center],FC_Master[rollup FC '#])","v":1470040001},null,null,null,null,null,null,null,null,null,147,"147ES Finance",10055801,"147Fin",1470040001]
[147,"147ES Operations",10055802,1470040001,{"$f":"_xlfn.XLOOKUP(D1062,FC_Master[Cost Center],FC_Master[rollup FC '#])","v":1470040001},null,null,null,null,null,null,null,null,null,147,"147ES Operations",10055802,"147Ops",1470040001]
[147,"147ES Special Projects Unit Finance",10055803,1470040001,{"$f":"_xlfn.XLOOKUP(D1063,FC_Master[Cost Center],FC_Master[rollup FC '#])","v":1470040001},null,null,null,null,null,null,null,null,null,147,"147ES Special Projects Unit Finance",10055803,"147SPFin",1470040001]
[147,"147ES Special Projects Unit Operations",10055804,1470040001,{"$f":"_xlfn.XLOOKUP(D1064,FC_Master[Cost Center],FC_Master[rollup FC '#])","v":1470040001},null,null,null,null,null,null,null,null,null,147,"147ES Special Projects Unit Operations",10055804,"147SPOps",1470040001]
[149,"149TNR Operations Management",10000587,1490010001,{"$f":"_xlfn.XLOOKUP(D1065,FC_Master[Cost Center],FC_Master[rollup FC '#])","v":1490010001},null,null,null,null,null,null,null,null,null,149,"149TNR Operations Management",10000587,"149OpMgmt",1490010001]
[149,"149TNR Adm Svcs - Records",10000591,1490010001,{"$f":"_xlfn.XLOOKUP(D1066,FC_Master[Cost Center],FC_Master[rollup FC '#])","v":1490010001},null,null,null,null,null,null,null,null,null,149,"149TNR Adm Svcs - Records",10000591,"149Records",1490010001]
[149,"149TNR Financial Services",10000594,1490010001,{"$f":"_xlfn.XLOOKUP(D1067,FC_Master[Cost Center],FC_Master[rollup FC '#])","v":1490010001},null,null,null,null,null,null,null,null,null,149,"149TNR Financial Services",10000594,"149FinSv",1490010001]
[149,"149TNR Financial Services - Operating",10000595,1490010001,{"$f":"_xlfn.XLOOKUP(D1068,FC_Master[Cost Center],FC_Master[rollup FC '#])","v":1490010001},null,null,null,null,null,null,null,null,null,149,"149TNR Financial Services - Operating",10000595,"149FinSvOpr",1490010001]
[149,"149TNR Dev Svcs Long Range Planning",10000603,1490010001,{"$f":"_xlfn.XLOOKUP(D1069,FC_Master[Cost Center],FC_Master[rollup FC '#])","v":1490010001},null,null,null,null,null,null,null,null,null,149,"149TNR Dev Svcs Long Range Planning",10000603,"149DSLRP",1490010001]
[149,"149TNR County Executive",10000586,1490010145,{"$f":"_xlfn.XLOOKUP(D1070,FC_Master[Cost Center],FC_Master[rollup FC '#])","v":1490010145},null,null,null,null,null,null,null,null,null,149,"149TNR County Executive",10000586,"149TNRCE",1490010145]
[149,"149TNR Administrative Services",10000588,1490010145,{"$f":"_xlfn.XLOOKUP(D1071,FC_Master[Cost Center],FC_Master[rollup FC '#])","v":1490010145},null,null,null,null,null,null,null,null,null,149,"149TNR Administrative Services",10000588,"149AdmSv",1490010145]
[149,"149TNR Adm Svcs - HR",10000589,1490010145,{"$f":"_xlfn.XLOOKUP(D1072,FC_Master[Cost Center],FC_Master[rollup FC '#])","v":1490010145},null,null,null,null,null,null,null,null,null,149,"149TNR Adm Svcs - HR",10000589,"149HR",1490010145]
[{"$f":"O1073","v":149},{"$f":"P1073","v":"149TNR Adm Svcs - Adm"},{"$f":"VALUE(Q1073)","v":10000590},1490010145,{"$f":"_xlfn.XLOOKUP(D1073,FC_Master[Cost Center],FC_Master[rollup FC '#])","v":1490010145},null,null,null,null,null,null,null,null,null,149,"149TNR Adm Svcs - Adm",10000590,"149Adm",1490010145]
[149,"149TNR Adm Svcs - Safety",10000592,1490010145,{"$f":"_xlfn.XLOOKUP(D1074,FC_Master[Cost Center],FC_Master[rollup FC '#])","v":1490010145},null,null,null,null,null,null,null,null,null,149,"149TNR Adm Svcs - Safety",10000592,"149Sft",1490010145]
[149,"149TNR Public Works",10000598,1490010145,{"$f":"_xlfn.XLOOKUP(D1075,FC_Master[Cost Center],FC_Master[rollup FC '#])","v":1490010145},null,null,null,null,null,null,null,null,null,149,"149TNR Public Works",10000598,"149PW",1490010145]
[149,"149TNR Road Maintenance",10000635,1490010145,{"$f":"_xlfn.XLOOKUP(D1076,FC_Master[Cost Center],FC_Master[rollup FC '#])","v":1490010145},null,null,null,null,null,null,null,null,null,149,"149TNR Road Maintenance",10000635,"149RoadMnt",1490010145]
[149,"149TNR Long Range Planning",10000596,1490100001,{"$f":"_xlfn.XLOOKUP(D1077,FC_Master[Cost Center],FC_Master[rollup FC '#])","v":1490100001},null,null,null,null,null,null,null,null,null,149,"149TNR Long Range Planning",10000596,"149Planning",1490100001]
[149,"149TNR GIS",10000597,1490100001,{"$f":"_xlfn.XLOOKUP(D1078,FC_Master[Cost Center],FC_Master[rollup FC '#])","v":1490100001},null,null,null,null,null,null,null,null,null,149,"149TNR GIS",10000597,"149GIS",1490100001]
[149,"149TNR GIS - SUB",10056026,1490100001,{"$f":"_xlfn.XLOOKUP(D1079,FC_Master[Cost Center],FC_Master[rollup FC '#])","v":1490100001},null,null,null,null,null,null,null,null,null,149,"149TNR GIS - SUB",10056026,"149GISSUB",1490100001]
[149,"149TNR Transportation Planning",10051101,1490100145,{"$f":"_xlfn.XLOOKUP(D1080,FC_Master[Cost Center],FC_Master[rollup FC '#])","v":1490100145},null,null,null,null,null,null,null,null,null,149,"149TNR Transportation Planning",10051101,"149TrnsPln",1490100145]
[149,"149TNR Natural Resources and Env Quality",10000610,1490110001,{"$f":"_xlfn.XLOOKUP(D1081,FC_Master[Cost Center],FC_Master[rollup FC '#])","v":1490110001},null,null,null,null,null,null,null,null,null,149,"149TNR Natural Resources and Env Quality",10000610,"149NREQ",1490110001]
[149,"149TNR Environmental Quality",10000613,1490110001,{"$f":"_xlfn.XLOOKUP(D1082,FC_Master[Cost Center],FC_Master[rollup FC '#])","v":1490110001},null,null,null,null,null,null,null,null,null,149,"149TNR Environmental Quality",10000613,"149EQ",1490110001]
[149,"149TNR Environmental Quality - EMC",10000614,1490110001,{"$f":"_xlfn.XLOOKUP(D1083,FC_Master[Cost Center],FC_Master[rollup FC '#])","v":1490110001},null,null,null,null,null,null,null,null,null,149,"149TNR Environmental Quality - EMC",10000614,"149EQEMC",1490110001]
[149,"149TNR Environmental Quality - Grants",10000616,1490110001,{"$f":"_xlfn.XLOOKUP(D1084,FC_Master[Cost Center],FC_Master[rollup FC '#])","v":1490110001},null,null,null,null,null,null,null,null,null,149,"149TNR Environmental Quality - Grants",10000616,"149EQGrnt",1490110001]
[149,"149TNR Environmental Quality – EPM",10055476,1490110001,{"$f":"_xlfn.XLOOKUP(D1085,FC_Master[Cost Center],FC_Master[rollup FC '#])","v":1490110001},null,null,null,null,null,null,null,null,null,149,"149TNR Environmental Quality – EPM",10055476,"149EQEPM",1490110001]
[149,"149TNR Natural Resources",10000611,1490120115,{"$f":"_xlfn.XLOOKUP(D1086,FC_Master[Cost Center],FC_Master[rollup FC '#])","v":1490120115},null,null,null,null,null,null,null,null,null,149,"149TNR Natural Resources",10000611,"149NRMgr",1490120115]
[149,"149TNR Natural Resources - BCP",10000612,1490120115,{"$f":"_xlfn.XLOOKUP(D1087,FC_Master[Cost Center],FC_Master[rollup FC '#])","v":1490120115},null,null,null,null,null,null,null,null,null,149,"149TNR Natural Resources - BCP",10000612,"149NRBCP",1490120115]
[149,"149TNR Natural Resources - BCP II",10053338,1490120115,{"$f":"_xlfn.XLOOKUP(D1088,FC_Master[Cost Center],FC_Master[rollup FC '#])","v":1490120115},null,null,null,null,null,null,null,null,null,149,"149TNR Natural Resources - BCP II",10053338,"149NRBCPII",1490120115]
[149,"149TNR Natural Resources - NR",10055701,1490120115,{"$f":"_xlfn.XLOOKUP(D1089,FC_Master[Cost Center],FC_Master[rollup FC '#])","v":1490120115},null,null,null,null,null,null,null,null,null,149,"149TNR Natural Resources - NR",10055701,"149NRNR",1490120115]
[149,"149TNR Natural Resources - BCP SUB",10056376,1490120115,{"$f":"_xlfn.XLOOKUP(D1090,FC_Master[Cost Center],FC_Master[rollup FC '#])","v":1490120115},null,null,null,null,null,null,null,null,null,149,"149TNR Natural Resources - BCP SUB",10056376,"149NRBCPSUB",1490120115]
[149,"149TNR Natural Resources-EPM",10056576,{"$f":"VALUE(S1091)","v":1490120115},{"$f":"_xlfn.XLOOKUP(D1091,FC_Master[Cost Center],FC_Master[rollup FC '#])","v":1490120115},null,null,null,null,null,null,null,null,null,149,"149TNR Natural Resources-EPM",10056576,"149NREPM",1490120115]
[149,"149TNR Natural Resources -BCPVC",10056851,1490120115,{"$f":"_xlfn.XLOOKUP(D1092,FC_Master[Cost Center],FC_Master[rollup FC '#])","v":1490120115},null,null,null,null,null,null,null,null,null,149,"149TNR Natural Resources -BCPVC",10056851,"149NRBCPVC",1490120115]
[149,"149TNR Development Sv-Review",10000604,1490130001,{"$f":"_xlfn.XLOOKUP(D1093,FC_Master[Cost Center],FC_Master[rollup FC '#])","v":1490130001},null,null,null,null,null,null,null,null,null,149,"149TNR Development Sv-Review",10000604,"149DevSvRvw",1490130001]
[149,"149TNR Development Sv-Plan Review",10000605,1490130001,{"$f":"_xlfn.XLOOKUP(D1094,FC_Master[Cost Center],FC_Master[rollup FC '#])","v":1490130001},null,null,null,null,null,null,null,null,null,149,"149TNR Development Sv-Plan Review",10000605,"149DevPlnRvw",1490130001]
[149,"149TNR Development Sv-Permits",10000606,1490130001,{"$f":"_xlfn.XLOOKUP(D1095,FC_Master[Cost Center],FC_Master[rollup FC '#])","v":1490130001},null,null,null,null,null,null,null,null,null,149,"149TNR Development Sv-Permits",10000606,"149DevSvTBD",1490130001]
[149,"149TNR Dev Sv-Enforcement/Inspection",10000607,1490130001,{"$f":"_xlfn.XLOOKUP(D1096,FC_Master[Cost Center],FC_Master[rollup FC '#])","v":1490130001},null,null,null,null,null,null,null,null,null,149,"149TNR Dev Sv-Enforcement/Inspection",10000607,"149DevEnfIsp",1490130001]
[149,"149TNR Dev Sv-Floodplain Mgt",10052951,1490130001,{"$f":"_xlfn.XLOOKUP(D1097,FC_Master[Cost Center],FC_Master[rollup FC '#])","v":1490130001},null,null,null,null,null,null,null,null,null,149,"149TNR Dev Sv-Floodplain Mgt",10052951,"149DevSvFpMg",1490130001]
[149,"149TNR Development Sv-Permit Intake",10000609,1490150001,{"$f":"_xlfn.XLOOKUP(D1098,FC_Master[Cost Center],FC_Master[rollup FC '#])","v":1490150001},null,null,null,null,null,null,null,null,null,149,"149TNR Development Sv-Permit Intake",10000609,"149DevSvPrmt",1490150001]
[149,"149TNR Environmental Quality - SWM",10000615,1490150001,{"$f":"_xlfn.XLOOKUP(D1099,FC_Master[Cost Center],FC_Master[rollup FC '#])","v":1490150001},null,null,null,null,null,null,null,null,null,149,"149TNR Environmental Quality - SWM",10000615,"149EQSWM",1490150001]
[149,"149TNR Environmental Quality-Post-Con",10053026,1490150001,{"$f":"_xlfn.XLOOKUP(D1100,FC_Master[Cost Center],FC_Master[rollup FC '#])","v":1490150001},null,null,null,null,null,null,null,null,null,149,"149TNR Environmental Quality-Post-Con",10053026,"149EQPostCon",1490150001]
[149,"149TNR Environmental Quality -Active-Con",10053501,1490150001,{"$f":"_xlfn.XLOOKUP(D1101,FC_Master[Cost Center],FC_Master[rollup FC '#])","v":1490150001},null,null,null,null,null,null,null,null,null,149,"149TNR Environmental Quality -Active-Con",10053501,"149EQAtivCon",1490150001]
[149,"149TNR Environmental Quality - SUB",10056051,1490150001,{"$f":"_xlfn.XLOOKUP(D1102,FC_Master[Cost Center],FC_Master[rollup FC '#])","v":1490150001},null,null,null,null,null,null,null,null,null,149,"149TNR Environmental Quality - SUB",10056051,"149EQSUB",1490150001]
[149,"149TNR Dev Sv-On-site Wastewater",10000608,1490160001,{"$f":"_xlfn.XLOOKUP(D1103,FC_Master[Cost Center],FC_Master[rollup FC '#])","v":1490160001},null,null,null,null,null,null,null,null,null,149,"149TNR Dev Sv-On-site Wastewater",10000608,"149DevOSS",1490160001]
[149,"149TNR OnSt Inspection",10053126,1490160001,{"$f":"_xlfn.XLOOKUP(D1104,FC_Master[Cost Center],FC_Master[rollup FC '#])","v":1490160001},null,null,null,null,null,null,null,null,null,149,"149TNR OnSt Inspection",10053126,"149OnStIsp",1490160001]
[149,"149TNR - Financial Services - CIP",10056776,1490170145,{"$f":"_xlfn.XLOOKUP(D1105,FC_Master[Cost Center],FC_Master[rollup FC '#])","v":1490170145},null,null,null,null,null,null,null,null,null,149,"149TNR - Financial Services - CIP",10056776,"149FinSvCIP",1490170145]
[149,"149TNR Real Estate",10000599,1490190001,{"$f":"_xlfn.XLOOKUP(D1106,FC_Master[Cost Center],FC_Master[rollup FC '#])","v":1490190001},null,null,null,null,null,null,null,null,null,149,"149TNR Real Estate",10000599,"149RealEst",1490190001]
[149,"149TNR Public Works-CIP",10000601,1490190001,{"$f":"_xlfn.XLOOKUP(D1107,FC_Master[Cost Center],FC_Master[rollup FC '#])","v":1490190001},null,null,null,null,null,null,null,null,null,149,"149TNR Public Works-CIP",10000601,"149PWCIP",1490190001]
[149,"149TNR Public Works-Inspection",10000602,1490190001,{"$f":"_xlfn.XLOOKUP(D1108,FC_Master[Cost Center],FC_Master[rollup FC '#])","v":1490190001},null,null,null,null,null,null,null,null,null,149,"149TNR Public Works-Inspection",10000602,"149PWIsp",1490190001]
[149,"149TNR Public Works-Survey and Records",10000600,1490190145,{"$f":"_xlfn.XLOOKUP(D1109,FC_Master[Cost Center],FC_Master[rollup FC '#])","v":1490190145},null,null,null,null,null,null,null,null,null,149,"149TNR Public Works-Survey and Records",10000600,"149PWSvyRcd",1490190145]
[149,"149TNR Road Maintenance -SUB",10056177,1490200001,{"$f":"_xlfn.XLOOKUP(D1110,FC_Master[Cost Center],FC_Master[rollup FC '#])","v":1490200001},null,null,null,null,null,null,null,null,null,149,"149TNR Road Maintenance -SUB",10056177,"149RdMSub",1490200001]
[149,"149TNR Road Mnt-Traffic",10056602,1490200001,{"$f":"_xlfn.XLOOKUP(D1111,FC_Master[Cost Center],FC_Master[rollup FC '#])","v":1490200001},null,null,null,null,null,null,null,null,null,149,"149TNR Road Mnt-Traffic",10056602,"149RdTraffic",1490200001]
[149,"149TNR Road Maintenance - Operations SUB",10056801,1490200001,{"$f":"_xlfn.XLOOKUP(D1112,FC_Master[Cost Center],FC_Master[rollup FC '#])","v":1490200001},null,null,null,null,null,null,null,null,null,149,"149TNR Road Maintenance - Operations SUB",10056801,"149RdMOpsSub",1490200001]
[149,"149TNR Road Mnt - Adm",10000636,1490200145,{"$f":"_xlfn.XLOOKUP(D1113,FC_Master[Cost Center],FC_Master[rollup FC '#])","v":1490200145},null,null,null,null,null,null,null,null,null,149,"149TNR Road Mnt - Adm",10000636,"149RdMAdm",1490200145]
[149,"149TNR Road Mnt - Operations",10000637,1490200145,{"$f":"_xlfn.XLOOKUP(D1114,FC_Master[Cost Center],FC_Master[rollup FC '#])","v":1490200145},null,null,null,null,null,null,null,null,null,149,"149TNR Road Mnt - Operations",10000637,"149RdMOps",1490200145]
[149,"149TNR Road Mnt - Traffic Eng",10000638,1490200145,{"$f":"_xlfn.XLOOKUP(D1115,FC_Master[Cost Center],FC_Master[rollup FC '#])","v":1490200145},null,null,null,null,null,null,null,null,null,149,"149TNR Road Mnt - Traffic Eng",10000638,"149RdMTfcEng",1490200145]
[149,"149TNR Road Mnt - Traffic Eng",10000638,1490200145,{"$f":"_xlfn.XLOOKUP(D1116,FC_Master[Cost Center],FC_Master[rollup FC '#])","v":1490200145},null,null,null,null,null,null,null,null,null,149,"149TNR Road Mnt - Traffic Eng",10000638,"149RdMTfcEng",1490200145]
[149,"149TNR Road Mnt - Signs & Striping",10000639,1490200145,{"$f":"_xlfn.XLOOKUP(D1117,FC_Master[Cost Center],FC_Master[rollup FC '#])","v":1490200145},null,null,null,null,null,null,null,null,null,149,"149TNR Road Mnt - Signs & Striping",10000639,"149RdMSgStrp",1490200145]
[149,"149TNR Road Mnt - ROW",10000640,1490200145,{"$f":"_xlfn.XLOOKUP(D1118,FC_Master[Cost Center],FC_Master[rollup FC '#])","v":1490200145},null,null,null,null,null,null,null,null,null,149,"149TNR Road Mnt - ROW",10000640,"149RdMntROW",1490200145]
[149,"149TNR Road Mnt - West ROW",10000641,1490200145,{"$f":"_xlfn.XLOOKUP(D1119,FC_Master[Cost Center],FC_Master[rollup FC '#])","v":1490200145},null,null,null,null,null,null,null,null,null,149,"149TNR Road Mnt - West ROW",10000641,"149RdMWROW",1490200145]
[149,"149TNR Road Mnt - West Drainage",10000642,1490200145,{"$f":"_xlfn.XLOOKUP(D1120,FC_Master[Cost Center],FC_Master[rollup FC '#])","v":1490200145},null,null,null,null,null,null,null,null,null,149,"149TNR Road Mnt - West Drainage",10000642,"149RdMWDrng",1490200145]
[149,"149TNR Road Mnt - East ROW",10000643,1490200145,{"$f":"_xlfn.XLOOKUP(D1121,FC_Master[Cost Center],FC_Master[rollup FC '#])","v":1490200145},null,null,null,null,null,null,null,null,null,149,"149TNR Road Mnt - East ROW",10000643,"149RdMEROW",1490200145]
[149,"149TNR Road Mnt - East Drainage",10000644,1490200145,{"$f":"_xlfn.XLOOKUP(D1122,FC_Master[Cost Center],FC_Master[rollup FC '#])","v":1490200145},null,null,null,null,null,null,null,null,null,149,"149TNR Road Mnt - East Drainage",10000644,"149RdMEDrng",1490200145]
[149,"149TNR Road Mnt - Roadway",10000645,1490200145,{"$f":"_xlfn.XLOOKUP(D1123,FC_Master[Cost Center],FC_Master[rollup FC '#])","v":1490200145},null,null,null,null,null,null,null,null,null,149,"149TNR Road Mnt - Roadway",10000645,"149Roadway",1490200145]
[149,"149TNR Road Mnt - Roadway Patching",10000646,1490200145,{"$f":"_xlfn.XLOOKUP(D1124,FC_Master[Cost Center],FC_Master[rollup FC '#])","v":1490200145},null,null,null,null,null,null,null,null,null,149,"149TNR Road Mnt - Roadway Patching",10000646,"149Patching",1490200145]
[149,"149TNR Road Mnt - Edge Shldr & Ped Way",10000647,1490200145,{"$f":"_xlfn.XLOOKUP(D1125,FC_Master[Cost Center],FC_Master[rollup FC '#])","v":1490200145},null,null,null,null,null,null,null,null,null,149,"149TNR Road Mnt - Edge Shldr & Ped Way",10000647,"149RdMESP",1490200145]
[149,"149TNR Road Mnt - Surface Treatment",10000648,1490200145,{"$f":"_xlfn.XLOOKUP(D1126,FC_Master[Cost Center],FC_Master[rollup FC '#])","v":1490200145},null,null,null,null,null,null,null,null,null,149,"149TNR Road Mnt - Surface Treatment",10000648,"149RdMRdwSfc",1490200145]
[149,"149TNR Road Mnt - Recon & Rehab",10000649,1490200145,{"$f":"_xlfn.XLOOKUP(D1127,FC_Master[Cost Center],FC_Master[rollup FC '#])","v":1490200145},null,null,null,null,null,null,null,null,null,149,"149TNR Road Mnt - Recon & Rehab",10000649,"149RdMERdwI",1490200145]
[149,"149TNR Parks",10000617,1490220001,{"$f":"_xlfn.XLOOKUP(D1128,FC_Master[Cost Center],FC_Master[rollup FC '#])","v":1490220001},null,null,null,null,null,null,null,null,null,149,"149TNR Parks",10000617,"149Pk",1490220001]
[149,"149TNR Parks - Operations",10000618,1490220001,{"$f":"_xlfn.XLOOKUP(D1129,FC_Master[Cost Center],FC_Master[rollup FC '#])","v":1490220001},null,null,null,null,null,null,null,null,null,149,"149TNR Parks - Operations",10000618,"149PkOps",1490220001]
[149,"149TNR Parks - Rangers",10000619,1490220001,{"$f":"_xlfn.XLOOKUP(D1130,FC_Master[Cost Center],FC_Master[rollup FC '#])","v":1490220001},null,null,null,null,null,null,null,null,null,149,"149TNR Parks - Rangers",10000619,"149PkRng",1490220001]
[149,"149TNR Parks - Rangers A",10000620,1490220001,{"$f":"_xlfn.XLOOKUP(D1131,FC_Master[Cost Center],FC_Master[rollup FC '#])","v":1490220001},null,null,null,null,null,null,null,null,null,149,"149TNR Parks - Rangers A",10000620,"149PkRngA",1490220001]
[149,"149TNR Parks - Rangers B",10000621,1490220001,{"$f":"_xlfn.XLOOKUP(D1132,FC_Master[Cost Center],FC_Master[rollup FC '#])","v":1490220001},null,null,null,null,null,null,null,null,null,149,"149TNR Parks - Rangers B",10000621,"149PkRngB",1490220001]
[149,"149TNR Parks - Rangers C",10000622,1490220001,{"$f":"_xlfn.XLOOKUP(D1133,FC_Master[Cost Center],FC_Master[rollup FC '#])","v":1490220001},null,null,null,null,null,null,null,null,null,149,"149TNR Parks - Rangers C",10000622,"149PkRngC",1490220001]
[149,"149TNR Parks - East",10000623,1490220001,{"$f":"_xlfn.XLOOKUP(D1134,FC_Master[Cost Center],FC_Master[rollup FC '#])","v":1490220001},null,null,null,null,null,null,null,null,null,149,"149TNR Parks - East",10000623,"149PkE",1490220001]
[149,"149TNR Parks - Webberville",10000624,1490220001,{"$f":"_xlfn.XLOOKUP(D1135,FC_Master[Cost Center],FC_Master[rollup FC '#])","v":1490220001},null,null,null,null,null,null,null,null,null,149,"149TNR Parks - Webberville",10000624,"149PkWbrvl",1490220001]
[149,"149TNR Parks - East Metro",10000625,1490220001,{"$f":"_xlfn.XLOOKUP(D1136,FC_Master[Cost Center],FC_Master[rollup FC '#])","v":1490220001},null,null,null,null,null,null,null,null,null,149,"149TNR Parks - East Metro",10000625,"149PkEMetro",1490220001]
[{"$f":"O1137","v":149},{"$f":"P1137","v":"149TNR Parks - Northeast Metro"},{"$f":"VALUE(Q1137)","v":10000626},1490220001,{"$f":"_xlfn.XLOOKUP(D1137,FC_Master[Cost Center],FC_Master[rollup FC '#])","v":1490220001},null,null,null,null,null,null,null,null,null,149,"149TNR Parks - Northeast Metro",10000626,"149PkNEMetro",1490220001]
[149,"149TNR Parks- Moya / Del Valle",10000627,1490220001,{"$f":"_xlfn.XLOOKUP(D1138,FC_Master[Cost Center],FC_Master[rollup FC '#])","v":1490220001},null,null,null,null,null,null,null,null,null,149,"149TNR Parks- Moya / Del Valle",10000627,"149PkMoyaDlV",1490220001]
[149,"149TNR Parks - Southeast Metro",10000628,1490220001,{"$f":"_xlfn.XLOOKUP(D1139,FC_Master[Cost Center],FC_Master[rollup FC '#])","v":1490220001},null,null,null,null,null,null,null,null,null,149,"149TNR Parks - Southeast Metro",10000628,"149PkSEMetro",1490220001]
[149,"149TNR Parks - West",10000629,1490220001,{"$f":"_xlfn.XLOOKUP(D1140,FC_Master[Cost Center],FC_Master[rollup FC '#])","v":1490220001},null,null,null,null,null,null,null,null,null,149,"149TNR Parks - West",10000629,"149PkW",1490220001]
[149,"149TNR Parks - Hamilton Pool Area",10000630,1490220001,{"$f":"_xlfn.XLOOKUP(D1141,FC_Master[Cost Center],FC_Master[rollup FC '#])","v":1490220001},null,null,null,null,null,null,null,null,null,149,"149TNR Parks - Hamilton Pool Area",10000630,"149PkHPA",1490220001]
[149,"149TNR Parks - Comanche Trail",10000631,1490220001,{"$f":"_xlfn.XLOOKUP(D1142,FC_Master[Cost Center],FC_Master[rollup FC '#])","v":1490220001},null,null,null,null,null,null,null,null,null,149,"149TNR Parks - Comanche Trail",10000631,"149PkCmchTr",1490220001]
[149,"149TNR Parks - Pace Bend",10000632,1490220001,{"$f":"_xlfn.XLOOKUP(D1143,FC_Master[Cost Center],FC_Master[rollup FC '#])","v":1490220001},null,null,null,null,null,null,null,null,null,149,"149TNR Parks - Pace Bend",10000632,"149PkPBnd",1490220001]
[149,"149TNR Parks - Northshore",10000633,1490220001,{"$f":"_xlfn.XLOOKUP(D1144,FC_Master[Cost Center],FC_Master[rollup FC '#])","v":1490220001},null,null,null,null,null,null,null,null,null,149,"149TNR Parks - Northshore",10000633,"149PkNshr",1490220001]
[149,"149TNR Parks - Mansfield Dam Area",10000634,1490220001,{"$f":"_xlfn.XLOOKUP(D1145,FC_Master[Cost Center],FC_Master[rollup FC '#])","v":1490220001},null,null,null,null,null,null,null,null,null,149,"149TNR Parks - Mansfield Dam Area",10000634,"149PkMDA",1490220001]
[149,"149TNR Parks-Northeast Metro Supv A",10050229,1490220001,{"$f":"_xlfn.XLOOKUP(D1146,FC_Master[Cost Center],FC_Master[rollup FC '#])","v":1490220001},null,null,null,null,null,null,null,null,null,149,"149TNR Parks-Northeast Metro Supv A",10050229,"149PkNEMetrA",1490220001]
[149,"149 TNR Park Land Mgmt",10052627,1490220001,{"$f":"_xlfn.XLOOKUP(D1147,FC_Master[Cost Center],FC_Master[rollup FC '#])","v":1490220001},null,null,null,null,null,null,null,null,null,149,"149 TNR Park Land Mgmt",10052627,"149PkLnMgmt",1490220001]
[149,"149TNR Parks - Arkansas Bend",10052876,1490220001,{"$f":"_xlfn.XLOOKUP(D1148,FC_Master[Cost Center],FC_Master[rollup FC '#])","v":1490220001},null,null,null,null,null,null,null,null,null,149,"149TNR Parks - Arkansas Bend",10052876,"149PkARBnd",1490220001]
[149,"149TNR Parks - Arkansas Bend SupvI",10052902,1490220001,{"$f":"_xlfn.XLOOKUP(D1149,FC_Master[Cost Center],FC_Master[rollup FC '#])","v":1490220001},null,null,null,null,null,null,null,null,null,149,"149TNR Parks - Arkansas Bend SupvI",10052902,"149PkARBndI",1490220001]
[149,"149TNR Parks-Hamilton Pool Area SupvI",10053101,1490220001,{"$f":"_xlfn.XLOOKUP(D1150,FC_Master[Cost Center],FC_Master[rollup FC '#])","v":1490220001},null,null,null,null,null,null,null,null,null,149,"149TNR Parks-Hamilton Pool Area SupvI",10053101,"149PkHPASupv",1490220001]
[149,"149TNR Parks - Rangers D",10054226,1490220001,{"$f":"_xlfn.XLOOKUP(D1151,FC_Master[Cost Center],FC_Master[rollup FC '#])","v":1490220001},null,null,null,null,null,null,null,null,null,149,"149TNR Parks - Rangers D",10054226,"149PkRngD",1490220001]
[149,"149TNR Parks-Northeast Metro SupvB",10054451,1490220001,{"$f":"_xlfn.XLOOKUP(D1152,FC_Master[Cost Center],FC_Master[rollup FC '#])","v":1490220001},null,null,null,null,null,null,null,null,null,149,"149TNR Parks-Northeast Metro SupvB",10054451,"149PkNEMetrB",1490220001]
[149,"149TNR Parks - Bee Creek",10054476,1490220001,{"$f":"_xlfn.XLOOKUP(D1153,FC_Master[Cost Center],FC_Master[rollup FC '#])","v":1490220001},null,null,null,null,null,null,null,null,null,149,"149TNR Parks - Bee Creek",10054476,"149PkBCreek",1490220001]
[149,"149TNR Parks - Bee Creek Supv B",10054501,1490220001,{"$f":"_xlfn.XLOOKUP(D1154,FC_Master[Cost Center],FC_Master[rollup FC '#])","v":1490220001},null,null,null,null,null,null,null,null,null,149,"149TNR Parks - Bee Creek Supv B",10054501,"149PkBCreekB",1490220001]
[149,"149TNR Parks - Bee Creek Supv A",10054502,{"$f":"VALUE(S1155)","v":1490220001},{"$f":"_xlfn.XLOOKUP(D1155,FC_Master[Cost Center],FC_Master[rollup FC '#])","v":1490220001},null,null,null,null,null,null,null,null,null,149,"149TNR Parks - Bee Creek Supv A",10054502,"149PkBCreekA",1490220001]
[149,"149TNR Park Land Mgmt - Supv A",10054551,1490220001,{"$f":"_xlfn.XLOOKUP(D1156,FC_Master[Cost Center],FC_Master[rollup FC '#])","v":1490220001},null,null,null,null,null,null,null,null,null,149,"149TNR Park Land Mgmt - Supv A",10054551,"149PkLnMgmtA",1490220001]
[149,"149TNR Parks -Timber Creek",10055726,1490220001,{"$f":"_xlfn.XLOOKUP(D1157,FC_Master[Cost Center],FC_Master[rollup FC '#])","v":1490220001},null,null,null,null,null,null,null,null,null,149,"149TNR Parks -Timber Creek",10055726,"149Timber",1490220001]
[149,"149TNR Parks - Operations",10056001,1490220001,{"$f":"_xlfn.XLOOKUP(D1158,FC_Master[Cost Center],FC_Master[rollup FC '#])","v":1490220001},null,null,null,null,null,null,null,null,null,149,"149TNR Parks - Operations",10056001,"149PkOps",1490220001]
[149,"149TNR Parks- Moya / Del Valle Sub A",10056226,1490220001,{"$f":"_xlfn.XLOOKUP(D1159,FC_Master[Cost Center],FC_Master[rollup FC '#])","v":1490220001},null,null,null,null,null,null,null,null,null,149,"149TNR Parks- Moya / Del Valle Sub A",10056226,"149PkMoyaA",1490220001]
[149,"149TNR Park Land Mgmt - Sub",10056526,1490220001,{"$f":"_xlfn.XLOOKUP(D1160,FC_Master[Cost Center],FC_Master[rollup FC '#])","v":1490220001},null,null,null,null,null,null,null,null,null,149,"149TNR Park Land Mgmt - Sub",10056526,"149PkLnSub",1490220001]
[149,"149TNRParks-Operations-Park Forester",10056577,1490220001,{"$f":"_xlfn.XLOOKUP(D1161,FC_Master[Cost Center],FC_Master[rollup FC '#])","v":1490220001},null,null,null,null,null,null,null,null,null,149,"149TNRParks-Operations-Park Forester",10056577,"149PkOPFst",1490220001]
[149,"149TNRParks-Operations-PLM",10056578,1490220001,{"$f":"_xlfn.XLOOKUP(D1162,FC_Master[Cost Center],FC_Master[rollup FC '#])","v":1490220001},null,null,null,null,null,null,null,null,null,149,"149TNRParks-Operations-PLM",10056578,"149PkOpsPLM",1490220001]
[{"$f":"O1163","v":149},{"$f":"P1163","v":"149TNR Parks - Rangers - LT"},{"$f":"VALUE(Q1163)","v":10056629},{"$f":"VALUE(S1163)","v":1490220001},{"$f":"_xlfn.XLOOKUP(D1163,FC_Master[Cost Center],FC_Master[rollup FC '#])","v":1490220001},null,null,null,null,null,null,null,null,null,149,"149TNR Parks - Rangers - LT",10056629,"149PkRngLT",1490220001]
[149,"149TNR Fleet Sv",10000650,1490350001,{"$f":"_xlfn.XLOOKUP(D1164,FC_Master[Cost Center],FC_Master[rollup FC '#])","v":1490350001},null,null,null,null,null,null,null,null,null,149,"149TNR Fleet Sv",10000650,"149FltSv",1490350001]
[149,"149TNR Fleet Sv - West",10000651,1490350001,{"$f":"_xlfn.XLOOKUP(D1165,FC_Master[Cost Center],FC_Master[rollup FC '#])","v":1490350001},null,null,null,null,null,null,null,null,null,149,"149TNR Fleet Sv - West",10000651,"149FltSvW",1490350001]
[149,"149TNR Fleet Sv - East Automotive",10000653,1490350001,{"$f":"_xlfn.XLOOKUP(D1166,FC_Master[Cost Center],FC_Master[rollup FC '#])","v":1490350001},null,null,null,null,null,null,null,null,null,149,"149TNR Fleet Sv - East Automotive",10000653,"149FltSvAuto",1490350001]
[149,"149TNR Fleet Sv Supv",10053476,1490350001,{"$f":"_xlfn.XLOOKUP(D1167,FC_Master[Cost Center],FC_Master[rollup FC '#])","v":1490350001},null,null,null,null,null,null,null,null,null,149,"149TNR Fleet Sv Supv",10053476,"149FltSvSupv",1490350001]
[149,"149TNR Fleet Sv - East Heavy Equipment",10000652,1490350145,{"$f":"_xlfn.XLOOKUP(D1168,FC_Master[Cost Center],FC_Master[rollup FC '#])","v":1490350145},null,null,null,null,null,null,null,null,null,149,"149TNR Fleet Sv - East Heavy Equipment",10000652,"149FltSvEEqp",1490350145]
[154,"154Civil Service Commission",10000654,1540010001,{"$f":"_xlfn.XLOOKUP(D1169,FC_Master[Cost Center],FC_Master[rollup FC '#])","v":1540010001},null,null,null,null,null,null,null,null,null,154,"154Civil Service Commission",10000654,"154CivSv",1540010001]
[155,"Data, Planning and Performance Mgmt",10000493,1550010001,{"$f":"_xlfn.XLOOKUP(D1170,FC_Master[Cost Center],FC_Master[rollup FC '#])","v":1550010001},null,null,null,null,null,null,null,null,null,155,"Data, Planning and Performance Mgmt",10000493,"DPPM",1550010001]
[155,"155JsPln Justice and Public Safety Adm",10000655,1550010001,{"$f":"_xlfn.XLOOKUP(D1171,FC_Master[Cost Center],FC_Master[rollup FC '#])","v":1550010001},null,null,null,null,null,null,null,null,null,155,"155JsPln Justice and Public Safety Adm",10000655,"155JPSAdm",1550010001]
[155,"155JsPln Planning",10000660,1550010001,{"$f":"_xlfn.XLOOKUP(D1172,FC_Master[Cost Center],FC_Master[rollup FC '#])","v":1550010001},null,null,null,null,null,null,null,null,null,155,"155JsPln Planning",10000660,"155Planning",1550010001]
[155,"155JsPln Reentry Resources",10053376,1550040001,{"$f":"_xlfn.XLOOKUP(D1173,FC_Master[Cost Center],FC_Master[rollup FC '#])","v":1550040001},null,null,null,null,null,null,null,null,null,155,"155JsPln Reentry Resources",10053376,"155JsPlnRtRs",1550040001]
[155,"155JsPln Data Research and Planning",10054376,1550180001,{"$f":"_xlfn.XLOOKUP(D1174,FC_Master[Cost Center],FC_Master[rollup FC '#])","v":1550180001},null,null,null,null,null,null,null,null,null,155,"155JsPln Data Research and Planning",10054376,"155JsPln DRP",1550180001]
[158,"158HHS County Executive",10000671,1580010001,{"$f":"_xlfn.XLOOKUP(D1175,FC_Master[Cost Center],FC_Master[rollup FC '#])","v":1580010001},null,null,null,null,null,null,null,null,null,158,"158HHS County Executive",10000671,"158HHSCE",1580010001]
[158,"158HHS County Executive Adm",10000749,1580010001,{"$f":"_xlfn.XLOOKUP(D1176,FC_Master[Cost Center],FC_Master[rollup FC '#])","v":1580010001},null,null,null,null,null,null,null,null,null,158,"158HHS County Executive Adm",10000749,"158ExcAdm",1580010001]
[158,"158HHS Supportive Housing",10056451,1580010001,{"$f":"_xlfn.XLOOKUP(D1177,FC_Master[Cost Center],FC_Master[rollup FC '#])","v":1580010001},null,null,null,null,null,null,null,null,null,158,"158HHS Supportive Housing",10056451,"158HHSSpHsg",1580010001]
[158,"158HHS Human Resources",10000693,1580020001,{"$f":"_xlfn.XLOOKUP(D1178,FC_Master[Cost Center],FC_Master[rollup FC '#])","v":1580020001},null,null,null,null,null,null,null,null,null,158,"158HHS Human Resources",10000693,"158HR",1580020001]
[158,"158HHS Unassigned",10000720,1580020001,{"$f":"_xlfn.XLOOKUP(D1179,FC_Master[Cost Center],FC_Master[rollup FC '#])","v":1580020001},null,null,null,null,null,null,null,null,null,158,"158HHS Unassigned",10000720,"158Unasg",1580020001]
[158,"158HHS Human Resources Mgr",10000767,1580020001,{"$f":"_xlfn.XLOOKUP(D1180,FC_Master[Cost Center],FC_Master[rollup FC '#])","v":1580020001},null,null,null,null,null,null,null,null,null,158,"158HHS Human Resources Mgr",10000767,"158HRMgr",1580020001]
[158,"158HHS Finance Manager",10000694,1580030001,{"$f":"_xlfn.XLOOKUP(D1181,FC_Master[Cost Center],FC_Master[rollup FC '#])","v":1580030001},null,null,null,null,null,null,null,null,null,158,"158HHS Finance Manager",10000694,"158FinMgr",1580030001]
[158,"158HHS Finance",10000695,1580030001,{"$f":"_xlfn.XLOOKUP(D1182,FC_Master[Cost Center],FC_Master[rollup FC '#])","v":1580030001},null,null,null,null,null,null,null,null,null,158,"158HHS Finance",10000695,"158Fin",1580030001]
[158,"158HHS Contract",10000696,1580030001,{"$f":"_xlfn.XLOOKUP(D1183,FC_Master[Cost Center],FC_Master[rollup FC '#])","v":1580030001},null,null,null,null,null,null,null,null,null,158,"158HHS Contract",10000696,"158Cntrc",1580030001]
[158,"158HHS Accounting",10053601,1580030001,{"$f":"_xlfn.XLOOKUP(D1184,FC_Master[Cost Center],FC_Master[rollup FC '#])","v":1580030001},null,null,null,null,null,null,null,null,null,158,"158HHS Accounting",10053601,"158Actg",1580030001]
[158,"158HHS Research and Planning Director",10000691,1580040001,{"$f":"_xlfn.XLOOKUP(D1185,FC_Master[Cost Center],FC_Master[rollup FC '#])","v":1580040001},null,null,null,null,null,null,null,null,null,158,"158HHS Research and Planning Director",10000691,"158RsPlDir",1580040001]
[158,"158HHS Research and Planning Mgr",10000692,1580040001,{"$f":"_xlfn.XLOOKUP(D1186,FC_Master[Cost Center],FC_Master[rollup FC '#])","v":1580040001},null,null,null,null,null,null,null,null,null,158,"158HHS Research and Planning Mgr",10000692,"158RsPlMgr",1580040001]
[158,"158HHS Research and Planning",10000748,1580040001,{"$f":"_xlfn.XLOOKUP(D1187,FC_Master[Cost Center],FC_Master[rollup FC '#])","v":1580040001},null,null,null,null,null,null,null,null,null,158,"158HHS Research and Planning",10000748,"158RsPl",1580040001]
[158,"158HHS Research and Planning Sr Planner",10000765,1580040001,{"$f":"_xlfn.XLOOKUP(D1188,FC_Master[Cost Center],FC_Master[rollup FC '#])","v":1580040001},null,null,null,null,null,null,null,null,null,158,"158HHS Research and Planning Sr Planner",10000765,"158RsPlSr",1580040001]
[158,"158HHS Research and Planning Planner",10000766,1580040001,{"$f":"_xlfn.XLOOKUP(D1189,FC_Master[Cost Center],FC_Master[rollup FC '#])","v":1580040001},null,null,null,null,null,null,null,null,null,158,"158HHS Research and Planning Planner",10000766,"158RsPlPln",1580040001]
[158,"158HHS Facilities",10000672,1580050001,{"$f":"_xlfn.XLOOKUP(D1190,FC_Master[Cost Center],FC_Master[rollup FC '#])","v":1580050001},null,null,null,null,null,null,null,null,null,158,"158HHS Facilities",10000672,"158HHSFcl",1580050001]
[158,"158HHS CDBG - Planning Mgr",10000697,1580060001,{"$f":"_xlfn.XLOOKUP(D1191,FC_Master[Cost Center],FC_Master[rollup FC '#])","v":1580060001},null,null,null,null,null,null,null,null,null,158,"158HHS CDBG - Planning Mgr",10000697,"158CDBGMgr",1580060001]
[158,"158HHS CDBG - Planning",10000768,1580060001,{"$f":"_xlfn.XLOOKUP(D1192,FC_Master[Cost Center],FC_Master[rollup FC '#])","v":1580060001},null,null,null,null,null,null,null,null,null,158,"158HHS CDBG - Planning",10000768,"158CDBG",1580060001]
[158,"158HHS Public Health Mgr",10000673,1580070001,{"$f":"_xlfn.XLOOKUP(D1193,FC_Master[Cost Center],FC_Master[rollup FC '#])","v":1580070001},null,null,null,null,null,null,null,null,null,158,"158HHS Public Health Mgr",10000673,"158pbchlhMgr",1580070001]
[158,"158HHS Public Health Adm COA",10000708,1580080001,{"$f":"_xlfn.XLOOKUP(D1194,FC_Master[Cost Center],FC_Master[rollup FC '#])","v":1580080001},null,null,null,null,null,null,null,null,null,158,"158HHS Public Health Adm COA",10000708,"158PbcHlh",1580080001]
[158,"158HHS Family Support Services Adm",10000698,1580100001,{"$f":"_xlfn.XLOOKUP(D1195,FC_Master[Cost Center],FC_Master[rollup FC '#])","v":1580100001},null,null,null,null,null,null,null,null,null,158,"158HHS Family Support Services Adm",10000698,"158FSSAdm",1580100001]
[158,"158HHS Family Support Sv Director",10000769,1580100001,{"$f":"_xlfn.XLOOKUP(D1196,FC_Master[Cost Center],FC_Master[rollup FC '#])","v":1580100001},null,null,null,null,null,null,null,null,null,158,"158HHS Family Support Sv Director",10000769,"158FSSDir",1580100001]
[158,"158HHS FSS - Case Mgmt Coordinators",10000699,1580110001,{"$f":"_xlfn.XLOOKUP(D1197,FC_Master[Cost Center],FC_Master[rollup FC '#])","v":1580110001},null,null,null,null,null,null,null,null,null,158,"158HHS FSS - Case Mgmt Coordinators",10000699,"158FSSCMC",1580110001]
[158,"158HHS FSS - Case Management Mgr",10000700,1580110001,{"$f":"_xlfn.XLOOKUP(D1198,FC_Master[Cost Center],FC_Master[rollup FC '#])","v":1580110001},null,null,null,null,null,null,null,null,null,158,"158HHS FSS - Case Management Mgr",10000700,"158FSSCMMgr",1580110001]
[158,"158HHS Supportive Case Management",10056201,1580110001,{"$f":"_xlfn.XLOOKUP(D1199,FC_Master[Cost Center],FC_Master[rollup FC '#])","v":1580110001},null,null,null,null,null,null,null,null,null,158,"158HHS Supportive Case Management",10056201,"158SPCaseM",1580110001]
[158,"158HHS FSS - East Rural Cmty Ctr",10000703,1580120001,{"$f":"_xlfn.XLOOKUP(D1200,FC_Master[Cost Center],FC_Master[rollup FC '#])","v":1580120001},null,null,null,null,null,null,null,null,null,158,"158HHS FSS - East Rural Cmty Ctr",10000703,"158FSSERC",1580120001]
[158,"158HHS FSS - East Rural Cmty Ctr Mgr",10000772,1580120001,{"$f":"_xlfn.XLOOKUP(D1201,FC_Master[Cost Center],FC_Master[rollup FC '#])","v":1580120001},null,null,null,null,null,null,null,null,null,158,"158HHS FSS - East Rural Cmty Ctr Mgr",10000772,"158FSSEMgr",1580120001]
[158,"158HHS FSS - North Rural Cmty Ctr",10000705,1580130001,{"$f":"_xlfn.XLOOKUP(D1202,FC_Master[Cost Center],FC_Master[rollup FC '#])","v":1580130001},null,null,null,null,null,null,null,null,null,158,"158HHS FSS - North Rural Cmty Ctr",10000705,"158FSSNRC",1580130001]
[158,"158HHS FSS - North Rural Cmty Ctr Mgr",10000774,1580130001,{"$f":"_xlfn.XLOOKUP(D1203,FC_Master[Cost Center],FC_Master[rollup FC '#])","v":1580130001},null,null,null,null,null,null,null,null,null,158,"158HHS FSS - North Rural Cmty Ctr Mgr",10000774,"158FSSNMgr",1580130001]
[158,"158HHS - Pflugerville Cmty Ctr OS",10056251,1580130001,{"$f":"_xlfn.XLOOKUP(D1204,FC_Master[Cost Center],FC_Master[rollup FC '#])","v":1580130001},null,null,null,null,null,null,null,null,null,158,"158HHS - Pflugerville Cmty Ctr OS",10056251,"158PCCOS",1580130001]
[158,"158HHS FSS - NW Rural Cmty Ctr",10000707,1580140001,{"$f":"_xlfn.XLOOKUP(D1205,FC_Master[Cost Center],FC_Master[rollup FC '#])","v":1580140001},null,null,null,null,null,null,null,null,null,158,"158HHS FSS - NW Rural Cmty Ctr",10000707,"158FSSNwRC",1580140001]
[158,"158HHS FSS - NW Rural Cmty Ctr Mgr",10000776,1580140001,{"$f":"_xlfn.XLOOKUP(D1206,FC_Master[Cost Center],FC_Master[rollup FC '#])","v":1580140001},null,null,null,null,null,null,null,null,null,158,"158HHS FSS - NW Rural Cmty Ctr Mgr",10000776,"158FSSNWMgr",1580140001]
[158,"158HHS FSS - Central Austin Cmty Ctr",10000702,1580150001,{"$f":"_xlfn.XLOOKUP(D1207,FC_Master[Cost Center],FC_Master[rollup FC '#])","v":1580150001},null,null,null,null,null,null,null,null,null,158,"158HHS FSS - Central Austin Cmty Ctr",10000702,"158FSSCACC",1580150001]
[158,"158HHS FSS - Central Austin Cmty Ctr OS",10000706,1580150001,{"$f":"_xlfn.XLOOKUP(D1208,FC_Master[Cost Center],FC_Master[rollup FC '#])","v":1580150001},null,null,null,null,null,null,null,null,null,158,"158HHS FSS - Central Austin Cmty Ctr OS",10000706,"158FSSCACCOS",1580150001]
[158,"158HHS FSS - Central Austin Cmty Ctr Mgr",10000771,1580150001,{"$f":"_xlfn.XLOOKUP(D1209,FC_Master[Cost Center],FC_Master[rollup FC '#])","v":1580150001},null,null,null,null,null,null,null,null,null,158,"158HHS FSS - Central Austin Cmty Ctr Mgr",10000771,"158FSSCACC",1580150001]
[158,"158HHS FSS-CentralAustin Cmty Ctr OS Mgr",10000775,1580150001,{"$f":"_xlfn.XLOOKUP(D1210,FC_Master[Cost Center],FC_Master[rollup FC '#])","v":1580150001},null,null,null,null,null,null,null,null,null,158,"158HHS FSS-CentralAustin Cmty Ctr OS Mgr",10000775,"158FSSCACCM",1580150001]
[158,"158HHS FSS - Supportive Case Management",10054778,1580150001,{"$f":"_xlfn.XLOOKUP(D1211,FC_Master[Cost Center],FC_Master[rollup FC '#])","v":1580150001},null,null,null,null,null,null,null,null,null,158,"158HHS FSS - Supportive Case Management",10054778,"158FSSSpCase",1580150001]
[158,"158HHS FSS - South Rural Cmty Ctr",10000701,1580170001,{"$f":"_xlfn.XLOOKUP(D1212,FC_Master[Cost Center],FC_Master[rollup FC '#])","v":1580170001},null,null,null,null,null,null,null,null,null,158,"158HHS FSS - South Rural Cmty Ctr",10000701,"158FSSSRC",1580170001]
[158,"158HHS FSS - South Rural Cmty Ctr Mgr",10000770,1580170001,{"$f":"_xlfn.XLOOKUP(D1213,FC_Master[Cost Center],FC_Master[rollup FC '#])","v":1580170001},null,null,null,null,null,null,null,null,null,158,"158HHS FSS - South Rural Cmty Ctr Mgr",10000770,"158FSSMgr",1580170001]
[158,"158HHS FSS - West Rural Cmty Ctr",10000704,1580180001,{"$f":"_xlfn.XLOOKUP(D1214,FC_Master[Cost Center],FC_Master[rollup FC '#])","v":1580180001},null,null,null,null,null,null,null,null,null,158,"158HHS FSS - West Rural Cmty Ctr",10000704,"158FSSWRC",1580180001]
[158,"158HHS FSS - West Rural Cmty Ctr Mgr",10000773,1580180001,{"$f":"_xlfn.XLOOKUP(D1215,FC_Master[Cost Center],FC_Master[rollup FC '#])","v":1580180001},null,null,null,null,null,null,null,null,null,158,"158HHS FSS - West Rural Cmty Ctr Mgr",10000773,"158FSSWMgr",1580180001]
[158,"158HHS Office of Children's Sv Director",10000757,1580190001,{"$f":"_xlfn.XLOOKUP(D1216,FC_Master[Cost Center],FC_Master[rollup FC '#])","v":1580190001},null,null,null,null,null,null,null,null,null,158,"158HHS Office of Children's Sv Director",10000757,"158CSrDir",1580190001]
[158,"158HHS Early Childhood",10000685,1580210001,{"$f":"_xlfn.XLOOKUP(D1217,FC_Master[Cost Center],FC_Master[rollup FC '#])","v":1580210001},null,null,null,null,null,null,null,null,null,158,"158HHS Early Childhood",10000685,"158Early",1580210001]
[158,"158HHS Practicum Edu & Quality Assurance",10056676,1580210001,{"$f":"_xlfn.XLOOKUP(D1218,FC_Master[Cost Center],FC_Master[rollup FC '#])","v":1580210001},null,null,null,null,null,null,null,null,null,158,"158HHS Practicum Edu & Quality Assurance",10056676,"158HHSPEQA",1580210001]
[158,"158HHS Office of Children's Sv Adm",10000684,1580220001,{"$f":"_xlfn.XLOOKUP(D1219,FC_Master[Cost Center],FC_Master[rollup FC '#])","v":1580220001},null,null,null,null,null,null,null,null,null,158,"158HHS Office of Children's Sv Adm",10000684,"158CSrAdm",1580220001]
[158,"158HHS Prevention & Intervention",10000689,1580220001,{"$f":"_xlfn.XLOOKUP(D1220,FC_Master[Cost Center],FC_Master[rollup FC '#])","v":1580220001},null,null,null,null,null,null,null,null,null,158,"158HHS Prevention & Intervention",10000689,"158Prvntn",1580220001]
[158,"158HHS Prevention & Intervention Mgr",10000761,1580220001,{"$f":"_xlfn.XLOOKUP(D1221,FC_Master[Cost Center],FC_Master[rollup FC '#])","v":1580220001},null,null,null,null,null,null,null,null,null,158,"158HHS Prevention & Intervention Mgr",10000761,"158PrvntnMgr",1580220001]
[158,"158HHS PIR Wraparound",10056630,1580220001,{"$f":"_xlfn.XLOOKUP(D1222,FC_Master[Cost Center],FC_Master[rollup FC '#])","v":1580220001},null,null,null,null,null,null,null,null,null,158,"158HHS PIR Wraparound",10056630,"158HHSWA",1580220001]
[158,"158HHS Family First",10000688,1580230001,{"$f":"_xlfn.XLOOKUP(D1223,FC_Master[Cost Center],FC_Master[rollup FC '#])","v":1580230001},null,null,null,null,null,null,null,null,null,158,"158HHS Family First",10000688,"158FamFirst",1580230001]
[158,"158HHS Healthy Families 1",10000686,1580240001,{"$f":"_xlfn.XLOOKUP(D1224,FC_Master[Cost Center],FC_Master[rollup FC '#])","v":1580240001},null,null,null,null,null,null,null,null,null,158,"158HHS Healthy Families 1",10000686,"158HF1",1580240001]
[158,"158HHS Healthy Families 2",10000687,1580240001,{"$f":"_xlfn.XLOOKUP(D1225,FC_Master[Cost Center],FC_Master[rollup FC '#])","v":1580240001},null,null,null,null,null,null,null,null,null,158,"158HHS Healthy Families 2",10000687,"158HF2",1580240001]
[158,"158HHS Healthy Families 1 Mgr",10000758,1580240001,{"$f":"_xlfn.XLOOKUP(D1226,FC_Master[Cost Center],FC_Master[rollup FC '#])","v":1580240001},null,null,null,null,null,null,null,null,null,158,"158HHS Healthy Families 1 Mgr",10000758,"158HFMgr1",1580240001]
[{"$f":"O1227","v":158},{"$f":"P1227","v":"158HHS Healthy Families 2 Mgr"},{"$f":"VALUE(Q1227)","v":10000759},{"$f":"VALUE(S1227)","v":1580240001},{"$f":"_xlfn.XLOOKUP(D1227,FC_Master[Cost Center],FC_Master[rollup FC '#])","v":1580240001},null,null,null,null,null,null,null,null,null,158,"158HHS Healthy Families 2 Mgr",10000759,"158HFMgr2",1580240001]
[158,"158HHS Healthy Families Expansion Pg",10050776,1580240001,{"$f":"_xlfn.XLOOKUP(D1228,FC_Master[Cost Center],FC_Master[rollup FC '#])","v":1580240001},null,null,null,null,null,null,null,null,null,158,"158HHS Healthy Families Expansion Pg",10050776,"158HFExpsnPg",1580240001]
[158,"158HHS TCP / TRIAD",10000690,1580260001,{"$f":"_xlfn.XLOOKUP(D1229,FC_Master[Cost Center],FC_Master[rollup FC '#])","v":1580260001},null,null,null,null,null,null,null,null,null,158,"158HHS TCP / TRIAD",10000690,"158TCP",1580260001]
[158,"158HHS TCP / TRIAD Mgr",10000762,1580260001,{"$f":"_xlfn.XLOOKUP(D1230,FC_Master[Cost Center],FC_Master[rollup FC '#])","v":1580260001},null,null,null,null,null,null,null,null,null,158,"158HHS TCP / TRIAD Mgr",10000762,"158TCPMgr",1580260001]
[158,"158HHS TCP Wraparound",10000762,1580260001,{"$f":"_xlfn.XLOOKUP(D1231,FC_Master[Cost Center],FC_Master[rollup FC '#])","v":1580260001},null,null,null,null,null,null,null,null,null,158,"158HHS TCP Wraparound",10000762,"158TCPWA",1580260001]
[158,"158HHS Systems of Care Initiative Mgr",10000763,1580260001,{"$f":"_xlfn.XLOOKUP(D1232,FC_Master[Cost Center],FC_Master[rollup FC '#])","v":1580260001},null,null,null,null,null,null,null,null,null,158,"158HHS Systems of Care Initiative Mgr",10000763,"158SysCrMgr",1580260001]
[158,"158HHS Systems of Care Initiative",10000764,1580260001,{"$f":"_xlfn.XLOOKUP(D1233,FC_Master[Cost Center],FC_Master[rollup FC '#])","v":1580260001},null,null,null,null,null,null,null,null,null,158,"158HHS Systems of Care Initiative",10000764,"158SysCr",1580260001]
[158,"158HHS Community Coordination",10056677,1580260001,{"$f":"_xlfn.XLOOKUP(D1234,FC_Master[Cost Center],FC_Master[rollup FC '#])","v":1580260001},null,null,null,null,null,null,null,null,null,158,"158HHS Community Coordination",10056677,"158CmtyC",1580260001]
[158,"158HHS Community Service Adm",10000674,1580270001,{"$f":"_xlfn.XLOOKUP(D1235,FC_Master[Cost Center],FC_Master[rollup FC '#])","v":1580270001},null,null,null,null,null,null,null,null,null,158,"158HHS Community Service Adm",10000674,"158CmtySv",1580270001]
[158,"158HHS Community Service Director",10000750,1580270001,{"$f":"_xlfn.XLOOKUP(D1236,FC_Master[Cost Center],FC_Master[rollup FC '#])","v":1580270001},null,null,null,null,null,null,null,null,null,158,"158HHS Community Service Director",10000750,"158CmtySvDir",1580270001]
[158,"158HHS Neighborhood Conf Cmte",10000675,1580280001,{"$f":"_xlfn.XLOOKUP(D1237,FC_Master[Cost Center],FC_Master[rollup FC '#])","v":1580280001},null,null,null,null,null,null,null,null,null,158,"158HHS Neighborhood Conf Cmte",10000675,"158NCC",1580280001]
[158,"158HHS Neighborhood Conf Cmte Mgr",10000752,1580280001,{"$f":"_xlfn.XLOOKUP(D1238,FC_Master[Cost Center],FC_Master[rollup FC '#])","v":1580280001},null,null,null,null,null,null,null,null,null,158,"158HHS Neighborhood Conf Cmte Mgr",10000752,"158NCCMgr",1580280001]
[158,"158HHS Work Based Learning",10000676,1580290001,{"$f":"_xlfn.XLOOKUP(D1239,FC_Master[Cost Center],FC_Master[rollup FC '#])","v":1580290001},null,null,null,null,null,null,null,null,null,158,"158HHS Work Based Learning",10000676,"158WBL",1580290001]
[158,"158HHS Work Based Learning Mgr",10000753,1580290001,{"$f":"_xlfn.XLOOKUP(D1240,FC_Master[Cost Center],FC_Master[rollup FC '#])","v":1580290001},null,null,null,null,null,null,null,null,null,158,"158HHS Work Based Learning Mgr",10000753,"158WBLMgr",1580290001]
[158,"158HHS Coming of Age",10000677,1580300001,{"$f":"_xlfn.XLOOKUP(D1241,FC_Master[Cost Center],FC_Master[rollup FC '#])","v":1580300001},null,null,null,null,null,null,null,null,null,158,"158HHS Coming of Age",10000677,"158CmgAge",1580300001]
[158,"158HHS Volunteers",10000709,1580300001,{"$f":"_xlfn.XLOOKUP(D1242,FC_Master[Cost Center],FC_Master[rollup FC '#])","v":1580300001},null,null,null,null,null,null,null,null,null,158,"158HHS Volunteers",10000709,"158Vltrs",1580300001]
[158,"158HHS Coming of Age Mgr",10000754,1580300001,{"$f":"_xlfn.XLOOKUP(D1243,FC_Master[Cost Center],FC_Master[rollup FC '#])","v":1580300001},null,null,null,null,null,null,null,null,null,158,"158HHS Coming of Age Mgr",10000754,"158CmgAgeMgr",1580300001]
[158,"158HHS Deaf Services",10000682,1580310001,{"$f":"_xlfn.XLOOKUP(D1244,FC_Master[Cost Center],FC_Master[rollup FC '#])","v":1580310001},null,null,null,null,null,null,null,null,null,158,"158HHS Deaf Services",10000682,"158Deaf",1580310001]
[158,"158HHS Deaf Services - Temp Staffing",10000683,1580310001,{"$f":"_xlfn.XLOOKUP(D1245,FC_Master[Cost Center],FC_Master[rollup FC '#])","v":1580310001},null,null,null,null,null,null,null,null,null,158,"158HHS Deaf Services - Temp Staffing",10000683,"158DeafTemp",1580310001]
[158,"158HHS Deaf Services Mgr",10000781,1580310001,{"$f":"_xlfn.XLOOKUP(D1246,FC_Master[Cost Center],FC_Master[rollup FC '#])","v":1580310001},null,null,null,null,null,null,null,null,null,158,"158HHS Deaf Services Mgr",10000781,"158DeafMgr",1580310001]
[158,"158HHS Housing Services",10000678,1580320001,{"$f":"_xlfn.XLOOKUP(D1247,FC_Master[Cost Center],FC_Master[rollup FC '#])","v":1580320001},null,null,null,null,null,null,null,null,null,158,"158HHS Housing Services",10000678,"158Hsg",1580320001]
[158,"158HHS Housing Services Supervisor 1",10000679,1580320001,{"$f":"_xlfn.XLOOKUP(D1248,FC_Master[Cost Center],FC_Master[rollup FC '#])","v":1580320001},null,null,null,null,null,null,null,null,null,158,"158HHS Housing Services Supervisor 1",10000679,"158HsgSupv1",1580320001]
[158,"158HHS Housing Services Carpenter 1",10000680,1580320001,{"$f":"_xlfn.XLOOKUP(D1249,FC_Master[Cost Center],FC_Master[rollup FC '#])","v":1580320001},null,null,null,null,null,null,null,null,null,158,"158HHS Housing Services Carpenter 1",10000680,"158Crpntr1",1580320001]
[158,"158HHS Housing Services Carpenter 2",10000681,1580320001,{"$f":"_xlfn.XLOOKUP(D1250,FC_Master[Cost Center],FC_Master[rollup FC '#])","v":1580320001},null,null,null,null,null,null,null,null,null,158,"158HHS Housing Services Carpenter 2",10000681,"158Crpntr2",1580320001]
[158,"158HHS Housing Services Supervisor 2",10000728,1580320001,{"$f":"_xlfn.XLOOKUP(D1251,FC_Master[Cost Center],FC_Master[rollup FC '#])","v":1580320001},null,null,null,null,null,null,null,null,null,158,"158HHS Housing Services Supervisor 2",10000728,"158HsgSupv2",1580320001]
[158,"158HHS Housing Services Mgr",10000755,1580320001,{"$f":"_xlfn.XLOOKUP(D1252,FC_Master[Cost Center],FC_Master[rollup FC '#])","v":1580320001},null,null,null,null,null,null,null,null,null,158,"158HHS Housing Services Mgr",10000755,"158HsgMgr",1580320001]
[158,"158HHS Housing Services Adm",10000756,1580320001,{"$f":"_xlfn.XLOOKUP(D1253,FC_Master[Cost Center],FC_Master[rollup FC '#])","v":1580320001},null,null,null,null,null,null,null,null,null,158,"158HHS Housing Services Adm",10000756,"158HsgAdm",1580320001]
[158,"158HHS Housing Services Program",10050276,1580320001,{"$f":"_xlfn.XLOOKUP(D1254,FC_Master[Cost Center],FC_Master[rollup FC '#])","v":1580320001},null,null,null,null,null,null,null,null,null,158,"158HHS Housing Services Program",10050276,"158HsgPg",1580320001]
[158,"158HHS AgriLife - Adm Staff",10000120,1580420001,{"$f":"_xlfn.XLOOKUP(D1255,FC_Master[Cost Center],FC_Master[rollup FC '#])","v":1580420001},null,null,null,null,null,null,null,null,null,158,"158HHS AgriLife - Adm Staff",10000120,"158AdmStf",1580420001]
[158,"158HHS Horticulture",10000122,1580420001,{"$f":"_xlfn.XLOOKUP(D1256,FC_Master[Cost Center],FC_Master[rollup FC '#])","v":1580420001},null,null,null,null,null,null,null,null,null,158,"158HHS Horticulture",10000122,"158Hort",1580420001]
[158,"158HHS AmeriCorp",10000123,1580420001,{"$f":"_xlfn.XLOOKUP(D1257,FC_Master[Cost Center],FC_Master[rollup FC '#])","v":1580420001},null,null,null,null,null,null,null,null,null,158,"158HHS AmeriCorp",10000123,"158Americorp",1580420001]
[158,"158HHS Family & Consumer Science",10000124,1580420001,{"$f":"_xlfn.XLOOKUP(D1258,FC_Master[Cost Center],FC_Master[rollup FC '#])","v":1580420001},null,null,null,null,null,null,null,null,null,158,"158HHS Family & Consumer Science",10000124,"158Fam&CmrSc",1580420001]
[158,"158HHS AgriLife - Adm Mgr",10000778,1580420001,{"$f":"_xlfn.XLOOKUP(D1259,FC_Master[Cost Center],FC_Master[rollup FC '#])","v":1580420001},null,null,null,null,null,null,null,null,null,158,"158HHS AgriLife - Adm Mgr",10000778,"158AgriMgr",1580420001]
[158,"158HHS County Extension Director",10000779,1580420001,{"$f":"_xlfn.XLOOKUP(D1260,FC_Master[Cost Center],FC_Master[rollup FC '#])","v":1580420001},null,null,null,null,null,null,null,null,null,158,"158HHS County Extension Director",10000779,"158CoExtDir",1580420001]
[158,"158HHS 4-H Capital",10000785,1580420001,{"$f":"_xlfn.XLOOKUP(D1261,FC_Master[Cost Center],FC_Master[rollup FC '#])","v":1580420001},null,null,null,null,null,null,null,null,null,158,"158HHS 4-H Capital",10000785,"158Four-HCap",1580420001]
[158,"158HHS Community Liaison",10000751,1580510001,{"$f":"_xlfn.XLOOKUP(D1262,FC_Master[Cost Center],FC_Master[rollup FC '#])","v":1580510001},null,null,null,null,null,null,null,null,null,158,"158HHS Community Liaison",10000751,"158CmtyLs",1580510001]
[158,"158HHS Chief Deputy",10052026,1580570001,{"$f":"_xlfn.XLOOKUP(D1263,FC_Master[Cost Center],FC_Master[rollup FC '#])","v":1580570001},null,null,null,null,null,null,null,null,null,158,"158HHS Chief Deputy",10052026,"158HHSChfDp",1580570001]
[158,"158HHS Chief Deputy Executive",10054752,1580570001,{"$f":"_xlfn.XLOOKUP(D1264,FC_Master[Cost Center],FC_Master[rollup FC '#])","v":1580570001},null,null,null,null,null,null,null,null,null,158,"158HHS Chief Deputy Executive",10054752,"158HHSChfExc",1580570001]
[158,"158HHS IT",10056476,1580570001,{"$f":"_xlfn.XLOOKUP(D1265,FC_Master[Cost Center],FC_Master[rollup FC '#])","v":1580570001},null,null,null,null,null,null,null,null,null,158,"158HHS IT",10056476,"158HHSIT",1580570001]
[159,"159STAR Flight Administrative",10000711,1590010001,{"$f":"_xlfn.XLOOKUP(D1266,FC_Master[Cost Center],FC_Master[rollup FC '#])","v":1590010001},null,null,null,null,null,null,null,null,null,159,"159STAR Flight Administrative",10000711,"159Adm",1590010001]
[159,"159STAR Flight Office",10056601,1590010001,{"$f":"_xlfn.XLOOKUP(D1267,FC_Master[Cost Center],FC_Master[rollup FC '#])","v":1590010001},null,null,null,null,null,null,null,null,null,159,"159STAR Flight Office",10056601,"159Office",1590010001]
[159,"159STAR Flight Operations",10000712,1590020001,{"$f":"_xlfn.XLOOKUP(D1268,FC_Master[Cost Center],FC_Master[rollup FC '#])","v":1590020001},null,null,null,null,null,null,null,null,null,159,"159STAR Flight Operations",10000712,"159Ops",1590020001]
[159,"159STAR Flight Pilots",10000713,1590030001,{"$f":"_xlfn.XLOOKUP(D1269,FC_Master[Cost Center],FC_Master[rollup FC '#])","v":1590030001},null,null,null,null,null,null,null,null,null,159,"159STAR Flight Pilots",10000713,"159Pilots",1590030001]
[159,"159STAR Flight Nurses",10000715,1590040001,{"$f":"_xlfn.XLOOKUP(D1270,FC_Master[Cost Center],FC_Master[rollup FC '#])","v":1590040001},null,null,null,null,null,null,null,null,null,159,"159STAR Flight Nurses",10000715,"159FtNrs",1590040001]
[159,"159STAR Flight Nurses",10000715,1590040001,{"$f":"_xlfn.XLOOKUP(D1271,FC_Master[Cost Center],FC_Master[rollup FC '#])","v":1590040001},null,null,null,null,null,null,null,null,null,159,"159STAR Flight Nurses",10000715,"159FtNrs",1590040001]
[159,"159STAR Flight Paramedics",10000716,1590050001,{"$f":"_xlfn.XLOOKUP(D1272,FC_Master[Cost Center],FC_Master[rollup FC '#])","v":1590050001},null,null,null,null,null,null,null,null,null,159,"159STAR Flight Paramedics",10000716,"159FtPrmd",1590050001]
[159,"159STAR Flight Nurses and Paramedics",10050227,1590050001,{"$f":"_xlfn.XLOOKUP(D1273,FC_Master[Cost Center],FC_Master[rollup FC '#])","v":1590050001},null,null,null,null,null,null,null,null,null,159,"159STAR Flight Nurses and Paramedics",10050227,"159FtNrsPrmd",1590050001]
[159,"159STAR Flight Maintenance",10000714,1590060001,{"$f":"_xlfn.XLOOKUP(D1274,FC_Master[Cost Center],FC_Master[rollup FC '#])","v":1590060001},null,null,null,null,null,null,null,null,null,159,"159STAR Flight Maintenance",10000714,"159Mnt",1590060001]
[{"$f":"O1275","v":159},{"$f":"P1275","v":"159STARFlight Div of Clinical Prfm & Edu"},{"$f":"VALUE(Q1275)","v":10052926},{"$f":"VALUE(S1275)","v":1590100001},{"$f":"_xlfn.XLOOKUP(D1275,FC_Master[Cost Center],FC_Master[rollup FC '#])","v":1590100001},null,null,null,null,null,null,null,null,null,159,"159STARFlight Div of Clinical Prfm & Edu",10052926,"159DivCP&E",1590100001]
[{"$f":"O1276","v":193},{"$f":"P1276","v":"193Legally Mandated Fees"},{"$f":"VALUE(Q1276)","v":10000717},{"$f":"VALUE(S1276)","v":1930050001},{"$f":"_xlfn.XLOOKUP(D1276,FC_Master[Cost Center],FC_Master[rollup FC '#])","v":1930060001},null,null,null,null,null,null,null,null,null,193,"193Legally Mandated Fees",10000717,"193LMF",1930050001]
[null,null,null,null,null,null,null,null,null,null,null,null,null,null,{"$error":"#N/A"},"120County Clerk Elections",10000153,"120Eln",{"$error":"#N/A"}]
[null,null,null,null,null,null,null,null,null,null,null,null,null,null,{"$error":"#N/A"},"137SO LE: Sgt West Area Cmd: Day",10051126,"137SgtWDay",{"$error":"#N/A"}]
[null,null,null,null,null,null,null,null,null,null,null,null,null,null,{"$error":"#N/A"},"145JvP Res Svcs Counselors",10051326,"145RsdSvCsl",{"$error":"#N/A"}]
[null,null,null,null,null,null,null,null,null,null,null,null,null,null,{"$error":"#N/A"},"111County Executive Ops Mgmt",10051426,"111CtyExcOM",{"$error":"#N/A"}]
[null,null,null,null,null,null,null,null,null,null,null,null,null,null,{"$error":"#N/A"},"125Probate Court General Second",10056528,"125General2",{"$error":"#N/A"}]

{"sheet":"Data WCI","index":25,"n_rows":28,"n_cols":3,"rows_kept":28,"cut":false,"hidden":true,"merged":[]}
["WCI Code","WCI Description","WCI Rate"]
[3064,"Sign Mfg - Metal",0]
[4299,"Printing",1.24E-2]
[4519,"Insect Control",1.6899999999999998E-2]
[5191,"Office Technician",0]
[5479,"Insulation Work & Drivers",3.6700000000000003E-2]
[5506,"Road Employees - Paving",4.3700000000000003E-2]
[5507,"Road Employees-Sub-Sur Wk",0]
[5606,"Road Maint., Mgmt personnel",5.5999999999999999E-3]
[7380,"Drivers",2.9700000000000001E-2]
[7422,"Airport, Helicopter Ops",1.3299999999999999E-2]
[7580,"Sewage Disposal Plant Opr",0]
[7720,"Law Enforcement, Ambulance",1.55E-2]
[8017,"Paint Store - Retail",0]
[8227,"Permanent-Yard Employees",0]
[8292,"Storage Warehouse",0]
[8391,"Auto Mechanics",1.2800000000000001E-2]
[8601,"Engineers, surveyors",1.8E-3]
[8810,"Clerical",1.6000000000000001E-3]
[8831,"Vet Hosp & Animal Control",0]
[8832,"Clinical professionals",1.9E-3]
[8833,"Hosp Professional & Clerk",4.7999999999999996E-3]
[8838,"Library/Museum-Prof&Cleri",0]
[9015,"Building Maint & Janitor",1.8800000000000001E-2]
[9079,"Cafeterias",0]
[9102,"Parks & Recreation",2.0799999999999999E-2]
[9403,"Garbage Collection",0]
[9999,"Not Applicable",0]

{"sheet":"Data CIs PB5 Filter","index":26,"n_rows":465,"n_cols":12,"rows_kept":465,"cut":false,"hidden":true,"merged":[]}
[{"$f":"_xlfn._xlws.FILTER('Data CIs PB5'!$B$2:$B$9999,ISNUMBER(SEARCH('Data CIs PB5'!$AY1,'Data CIs PB5'!$E$2:$E$9999)),_xlfn._xlws.FILTER('Data CIs PB5'!$B$2:$B$9999,'Data CIs PB5'!$B$2:$B$9999<>0))","v":"SBITA Principal"},{"$f":"_xlfn._xlws.FILTER('Data CIs PB5'!$B$2:$B$9999,ISNUMBER(SEARCH('Data CIs PB5'!$AY2,'Data CIs PB5'!$E$2:$E$9999)),_xlfn._xlws.FILTER('Data CIs PB5'!$B$2:$B$9999,'Data CIs PB5'!$B$2:$B$9999<>0))","v":"SBITA Principal"},{"$f":"_xlfn._xlws.FILTER('Data CIs PB5'!$B$2:$B$9999,ISNUMBER(SEARCH('Data CIs PB5'!$AY3,'Data CIs PB5'!$E$2:$E$9999)),_xlfn._xlws.FILTER('Data CIs PB5'!$B$2:$B$9999,'Data CIs PB5'!$B$2:$B$9999<>0))","v":"SBITA Principal"},{"$f":"_xlfn._xlws.FILTER('Data CIs PB5'!$B$2:$B$9999,ISNUMBER(SEARCH('Data CIs PB5'!$AY4,'Data CIs PB5'!$E$2:$E$9999)),_xlfn._xlws.FILTER('Data CIs PB5'!$B$2:$B$9999,'Data CIs PB5'!$B$2:$B$9999<>0))","v":"SBITA Principal"},{"$f":"_xlfn._xlws.FILTER('Data CIs PB5'!$B$2:$B$9999,ISNUMBER(SEARCH('Data CIs PB5'!$AY5,'Data CIs PB5'!$E$2:$E$9999)),_xlfn._xlws.FILTER('Data CIs PB5'!$B$2:$B$9999,'Data CIs PB5'!$B$2:$B$9999<>0))","v":"SBITA Principal"},{"$f":"_xlfn._xlws.FILTER('Data CIs PB5'!$B$2:$B$9999,ISNUMBER(SEARCH('Data CIs PB5'!$AY6,'Data CIs PB5'!$E$2:$E$9999)),_xlfn._xlws.FILTER('Data CIs PB5'!$B$2:$B$9999,'Data CIs PB5'!$B$2:$B$9999<>0))","v":"SBITA Principal"},{"$f":"_xlfn._xlws.FILTER('Data CIs PB5'!$B$2:$B$9999,ISNUMBER(SEARCH('Data CIs PB5'!$AY7,'Data CIs PB5'!$E$2:$E$9999)),_xlfn._xlws.FILTER('Data CIs PB5'!$B$2:$B$9999,'Data CIs PB5'!$B$2:$B$9999<>0))","v":"SBITA Principal"},{"$f":"_xlfn._xlws.FILTER('Data CIs PB5'!$B$2:$B$9999,ISNUMBER(SEARCH('Data CIs PB5'!$AY8,'Data CIs PB5'!$E$2:$E$9999)),_xlfn._xlws.FILTER('Data CIs PB5'!$B$2:$B$9999,'Data CIs PB5'!$B$2:$B$9999<>0))","v":"SBITA Principal"},{"$f":"_xlfn._xlws.FILTER('Data CIs PB5'!$B$2:$B$9999,ISNUMBER(SEARCH('Data CIs PB5'!$AY9,'Data CIs PB5'!$E$2:$E$9999)),_xlfn._xlws.FILTER('Data CIs PB5'!$B$2:$B$9999,'Data CIs PB5'!$B$2:$B$9999<>0))","v":"SBITA Principal"},{"$f":"_xlfn._xlws.FILTER('Data CIs PB5'!$B$2:$B$9999,ISNUMBER(SEARCH('Data CIs PB5'!$AY10,'Data CIs PB5'!$E$2:$E$9999)),_xlfn._xlws.FILTER('Data CIs PB5'!$B$2:$B$9999,'Data CIs PB5'!$B$2:$B$9999<>0))","v":"SBITA Principal"},{"$f":"_xlfn._xlws.FILTER('Data CIs PB5'!$B$2:$B$9999,ISNUMBER(SEARCH('Data CIs PB5'!$AY11,'Data CIs PB5'!$E$2:$E$9999)),_xlfn._xlws.FILTER('Data CIs PB5'!$B$2:$B$9999,'Data CIs PB5'!$B$2:$B$9999<>0))","v":"SBITA Principal"},{"$f":"_xlfn._xlws.FILTER('Data CIs PB5'!$B$2:$B$9999,ISNUMBER(SEARCH('Data CIs PB5'!$AY12,'Data CIs PB5'!$E$2:$E$9999)),_xlfn._xlws.FILTER('Data CIs PB5'!$B$2:$B$9999,'Data CIs PB5'!$B$2:$B$9999<>0))","v":"SBITA Principal"}]
["Capital Outlay-Aircraft & Boating Equipment","Capital Outlay-Aircraft & Boating Equipment","Capital Outlay-Aircraft & Boating Equipment","Capital Outlay-Aircraft & Boating Equipment","Capital Outlay-Aircraft & Boating Equipment","Capital Outlay-Aircraft & Boating Equipment","Capital Outlay-Aircraft & Boating Equipment","Capital Outlay-Aircraft & Boating Equipment","Capital Outlay-Aircraft & Boating Equipment","Capital Outlay-Aircraft & Boating Equipment","Capital Outlay-Aircraft & Boating Equipment","Capital Outlay-Aircraft & Boating Equipment"]
["Capital Outlay-Automobiles","Capital Outlay-Automobiles","Capital Outlay-Automobiles","Capital Outlay-Automobiles","Capital Outlay-Automobiles","Capital Outlay-Automobiles","Capital Outlay-Automobiles","Capital Outlay-Automobiles","Capital Outlay-Automobiles","Capital Outlay-Automobiles","Capital Outlay-Automobiles","Capital Outlay-Automobiles"]
["Capital Outlay-Automotive Repair & Equipment","Capital Outlay-Automotive Repair & Equipment","Capital Outlay-Automotive Repair & Equipment","Capital Outlay-Automotive Repair & Equipment","Capital Outlay-Automotive Repair & Equipment","Capital Outlay-Automotive Repair & Equipment","Capital Outlay-Automotive Repair & Equipment","Capital Outlay-Automotive Repair & Equipment","Capital Outlay-Automotive Repair & Equipment","Capital Outlay-Automotive Repair & Equipment","Capital Outlay-Automotive Repair & Equipment","Capital Outlay-Automotive Repair & Equipment"]
["Capital Outlay-Building Maintenance Equipment","Capital Outlay-Building Maintenance Equipment","Capital Outlay-Building Maintenance Equipment","Capital Outlay-Building Maintenance Equipment","Capital Outlay-Building Maintenance Equipment","Capital Outlay-Building Maintenance Equipment","Capital Outlay-Building Maintenance Equipment","Capital Outlay-Building Maintenance Equipment","Capital Outlay-Building Maintenance Equipment","Capital Outlay-Building Maintenance Equipment","Capital Outlay-Building Maintenance Equipment","Capital Outlay-Building Maintenance Equipment"]
["Capital Outlay-Computer Equipment","Capital Outlay-Computer Equipment","Capital Outlay-Computer Equipment","Capital Outlay-Computer Equipment","Capital Outlay-Computer Equipment","Capital Outlay-Computer Equipment","Capital Outlay-Computer Equipment","Capital Outlay-Computer Equipment","Capital Outlay-Computer Equipment","Capital Outlay-Computer Equipment","Capital Outlay-Computer Equipment","Capital Outlay-Computer Equipment"]
["Capital Outlay-Custodial Equipment","Capital Outlay-Custodial Equipment","Capital Outlay-Custodial Equipment","Capital Outlay-Custodial Equipment","Capital Outlay-Custodial Equipment","Capital Outlay-Custodial Equipment","Capital Outlay-Custodial Equipment","Capital Outlay-Custodial Equipment","Capital Outlay-Custodial Equipment","Capital Outlay-Custodial Equipment","Capital Outlay-Custodial Equipment","Capital Outlay-Custodial Equipment"]
["Capital Outlay-Educational/Communication Equipment","Capital Outlay-Educational/Communication Equipment","Capital Outlay-Educational/Communication Equipment","Capital Outlay-Educational/Communication Equipment","Capital Outlay-Educational/Communication Equipment","Capital Outlay-Educational/Communication Equipment","Capital Outlay-Educational/Communication Equipment","Capital Outlay-Educational/Communication Equipment","Capital Outlay-Educational/Communication Equipment","Capital Outlay-Educational/Communication Equipment","Capital Outlay-Educational/Communication Equipment","Capital Outlay-Educational/Communication Equipment"]
["Capital Outlay-Election Equipment","Capital Outlay-Election Equipment","Capital Outlay-Election Equipment","Capital Outlay-Election Equipment","Capital Outlay-Election Equipment","Capital Outlay-Election Equipment","Capital Outlay-Election Equipment","Capital Outlay-Election Equipment","Capital Outlay-Election Equipment","Capital Outlay-Election Equipment","Capital Outlay-Election Equipment","Capital Outlay-Election Equipment"]
["Capital Outlay-Electrical Equipment","Capital Outlay-Electrical Equipment","Capital Outlay-Electrical Equipment","Capital Outlay-Electrical Equipment","Capital Outlay-Electrical Equipment","Capital Outlay-Electrical Equipment","Capital Outlay-Electrical Equipment","Capital Outlay-Electrical Equipment","Capital Outlay-Electrical Equipment","Capital Outlay-Electrical Equipment","Capital Outlay-Electrical Equipment","Capital Outlay-Electrical Equipment"]
["Capital Outlay-Groundskeeping Equipment","Capital Outlay-Groundskeeping Equipment","Capital Outlay-Groundskeeping Equipment","Capital Outlay-Groundskeeping Equipment","Capital Outlay-Groundskeeping Equipment","Capital Outlay-Groundskeeping Equipment","Capital Outlay-Groundskeeping Equipment","Capital Outlay-Groundskeeping Equipment","Capital Outlay-Groundskeeping Equipment","Capital Outlay-Groundskeeping Equipment","Capital Outlay-Groundskeeping Equipment","Capital Outlay-Groundskeeping Equipment"]
["Capital Outlay-Institutional Equipment","Capital Outlay-Institutional Equipment","Capital Outlay-Institutional Equipment","Capital Outlay-Institutional Equipment","Capital Outlay-Institutional Equipment","Capital Outlay-Institutional Equipment","Capital Outlay-Institutional Equipment","Capital Outlay-Institutional Equipment","Capital Outlay-Institutional Equipment","Capital Outlay-Institutional Equipment","Capital Outlay-Institutional Equipment","Capital Outlay-Institutional Equipment"]
["Capital Outlay-Kitchen Equipment","Capital Outlay-Kitchen Equipment","Capital Outlay-Kitchen Equipment","Capital Outlay-Kitchen Equipment","Capital Outlay-Kitchen Equipment","Capital Outlay-Kitchen Equipment","Capital Outlay-Kitchen Equipment","Capital Outlay-Kitchen Equipment","Capital Outlay-Kitchen Equipment","Capital Outlay-Kitchen Equipment","Capital Outlay-Kitchen Equipment","Capital Outlay-Kitchen Equipment"]
["Capital Outlay-Laboratory Equipment","Capital Outlay-Laboratory Equipment","Capital Outlay-Laboratory Equipment","Capital Outlay-Laboratory Equipment","Capital Outlay-Laboratory Equipment","Capital Outlay-Laboratory Equipment","Capital Outlay-Laboratory Equipment","Capital Outlay-Laboratory Equipment","Capital Outlay-Laboratory Equipment","Capital Outlay-Laboratory Equipment","Capital Outlay-Laboratory Equipment","Capital Outlay-Laboratory Equipment"]
["Capital Outlay-Law Enforcement Equipment","Capital Outlay-Law Enforcement Equipment","Capital Outlay-Law Enforcement Equipment","Capital Outlay-Law Enforcement Equipment","Capital Outlay-Law Enforcement Equipment","Capital Outlay-Law Enforcement Equipment","Capital Outlay-Law Enforcement Equipment","Capital Outlay-Law Enforcement Equipment","Capital Outlay-Law Enforcement Equipment","Capital Outlay-Law Enforcement Equipment","Capital Outlay-Law Enforcement Equipment","Capital Outlay-Law Enforcement Equipment"]
["Capital Outlay-Medical/Dental/Safety Equipment","Capital Outlay-Medical/Dental/Safety Equipment","Capital Outlay-Medical/Dental/Safety Equipment","Capital Outlay-Medical/Dental/Safety Equipment","Capital Outlay-Medical/Dental/Safety Equipment","Capital Outlay-Medical/Dental/Safety Equipment","Capital Outlay-Medical/Dental/Safety Equipment","Capital Outlay-Medical/Dental/Safety Equipment","Capital Outlay-Medical/Dental/Safety Equipment","Capital Outlay-Medical/Dental/Safety Equipment","Capital Outlay-Medical/Dental/Safety Equipment","Capital Outlay-Medical/Dental/Safety Equipment"]
["Capital Outlay-Office Equipment","Capital Outlay-Office Equipment","Capital Outlay-Office Equipment","Capital Outlay-Office Equipment","Capital Outlay-Office Equipment","Capital Outlay-Office Equipment","Capital Outlay-Office Equipment","Capital Outlay-Office Equipment","Capital Outlay-Office Equipment","Capital Outlay-Office Equipment","Capital Outlay-Office Equipment","Capital Outlay-Office Equipment"]
["Capital Outlay-Office Furniture","Capital Outlay-Office Furniture","Capital Outlay-Office Furniture","Capital Outlay-Office Furniture","Capital Outlay-Office Furniture","Capital Outlay-Office Furniture","Capital Outlay-Office Furniture","Capital Outlay-Office Furniture","Capital Outlay-Office Furniture","Capital Outlay-Office Furniture","Capital Outlay-Office Furniture","Capital Outlay-Office Furniture"]
["Capital Outlay-Other Equipment","Capital Outlay-Other Equipment","Capital Outlay-Other Equipment","Capital Outlay-Other Equipment","Capital Outlay-Other Equipment","Capital Outlay-Other Equipment","Capital Outlay-Other Equipment","Capital Outlay-Other Equipment","Capital Outlay-Other Equipment","Capital Outlay-Other Equipment","Capital Outlay-Other Equipment","Capital Outlay-Other Equipment"]
["Capital Outlay-Recreational Equipment","Capital Outlay-Recreational Equipment","Capital Outlay-Recreational Equipment","Capital Outlay-Recreational Equipment","Capital Outlay-Recreational Equipment","Capital Outlay-Recreational Equipment","Capital Outlay-Recreational Equipment","Capital Outlay-Recreational Equipment","Capital Outlay-Recreational Equipment","Capital Outlay-Recreational Equipment","Capital Outlay-Recreational Equipment","Capital Outlay-Recreational Equipment"]
["Capital Outlay-Road and Highway Equipment","Capital Outlay-Road and Highway Equipment","Capital Outlay-Road and Highway Equipment","Capital Outlay-Road and Highway Equipment","Capital Outlay-Road and Highway Equipment","Capital Outlay-Road and Highway Equipment","Capital Outlay-Road and Highway Equipment","Capital Outlay-Road and Highway Equipment","Capital Outlay-Road and Highway Equipment","Capital Outlay-Road and Highway Equipment","Capital Outlay-Road and Highway Equipment","Capital Outlay-Road and Highway Equipment"]
["Capital Outlay-Software","Capital Outlay-Software","Capital Outlay-Software","Capital Outlay-Software","Capital Outlay-Software","Capital Outlay-Software","Capital Outlay-Software","Capital Outlay-Software","Capital Outlay-Software","Capital Outlay-Software","Capital Outlay-Software","Capital Outlay-Software"]
["Capital Outlay-Traffic Control/Signage Equipment","Capital Outlay-Traffic Control/Signage Equipment","Capital Outlay-Traffic Control/Signage Equipment","Capital Outlay-Traffic Control/Signage Equipment","Capital Outlay-Traffic Control/Signage Equipment","Capital Outlay-Traffic Control/Signage Equipment","Capital Outlay-Traffic Control/Signage Equipment","Capital Outlay-Traffic Control/Signage Equipment","Capital Outlay-Traffic Control/Signage Equipment","Capital Outlay-Traffic Control/Signage Equipment","Capital Outlay-Traffic Control/Signage Equipment","Capital Outlay-Traffic Control/Signage Equipment"]
["Cap Outlay Mtrl-Assets Under Construction","Cap Outlay Mtrl-Assets Under Construction","Cap Outlay Mtrl-Assets Under Construction","Cap Outlay Mtrl-Assets Under Construction","Cap Outlay Mtrl-Assets Under Construction","Cap Outlay Mtrl-Assets Under Construction","Cap Outlay Mtrl-Assets Under Construction","Cap Outlay Mtrl-Assets Under Construction","Cap Outlay Mtrl-Assets Under Construction","Cap Outlay Mtrl-Assets Under Construction","Cap Outlay Mtrl-Assets Under Construction","Cap Outlay Mtrl-Assets Under Construction"]
["Cap Outlay Mtrl-Building Improvements","Cap Outlay Mtrl-Building Improvements","Cap Outlay Mtrl-Building Improvements","Cap Outlay Mtrl-Building Improvements","Cap Outlay Mtrl-Building Improvements","Cap Outlay Mtrl-Building Improvements","Cap Outlay Mtrl-Building Improvements","Cap Outlay Mtrl-Building Improvements","Cap Outlay Mtrl-Building Improvements","Cap Outlay Mtrl-Building Improvements","Cap Outlay Mtrl-Building Improvements","Cap Outlay Mtrl-Building Improvements"]
["Cap Outlay Mtrl-Buildings","Cap Outlay Mtrl-Buildings","Cap Outlay Mtrl-Buildings","Cap Outlay Mtrl-Buildings","Cap Outlay Mtrl-Buildings","Cap Outlay Mtrl-Buildings","Cap Outlay Mtrl-Buildings","Cap Outlay Mtrl-Buildings","Cap Outlay Mtrl-Buildings","Cap Outlay Mtrl-Buildings","Cap Outlay Mtrl-Buildings","Cap Outlay Mtrl-Buildings"]
["Cap Outlay Mtrl-Improvements Other","Cap Outlay Mtrl-Improvements Other","Cap Outlay Mtrl-Improvements Other","Cap Outlay Mtrl-Improvements Other","Cap Outlay Mtrl-Improvements Other","Cap Outlay Mtrl-Improvements Other","Cap Outlay Mtrl-Improvements Other","Cap Outlay Mtrl-Improvements Other","Cap Outlay Mtrl-Improvements Other","Cap Outlay Mtrl-Improvements Other","Cap Outlay Mtrl-Improvements Other","Cap Outlay Mtrl-Improvements Other"]
["Cap Outlay Mtrl-Infrastructure/Improvements","Cap Outlay Mtrl-Infrastructure/Improvements","Cap Outlay Mtrl-Infrastructure/Improvements","Cap Outlay Mtrl-Infrastructure/Improvements","Cap Outlay Mtrl-Infrastructure/Improvements","Cap Outlay Mtrl-Infrastructure/Improvements","Cap Outlay Mtrl-Infrastructure/Improvements","Cap Outlay Mtrl-Infrastructure/Improvements","Cap Outlay Mtrl-Infrastructure/Improvements","Cap Outlay Mtrl-Infrastructure/Improvements","Cap Outlay Mtrl-Infrastructure/Improvements","Cap Outlay Mtrl-Infrastructure/Improvements"]
["Cap Outlay Mtrl-Land","Cap Outlay Mtrl-Land","Cap Outlay Mtrl-Land","Cap Outlay Mtrl-Land","Cap Outlay Mtrl-Land","Cap Outlay Mtrl-Land","Cap Outlay Mtrl-Land","Cap Outlay Mtrl-Land","Cap Outlay Mtrl-Land","Cap Outlay Mtrl-Land","Cap Outlay Mtrl-Land","Cap Outlay Mtrl-Land"]
["Cap Outlay Mtrl-Land-Right-of-Way","Cap Outlay Mtrl-Land-Right-of-Way","Cap Outlay Mtrl-Land-Right-of-Way","Cap Outlay Mtrl-Land-Right-of-Way","Cap Outlay Mtrl-Land-Right-of-Way","Cap Outlay Mtrl-Land-Right-of-Way","Cap Outlay Mtrl-Land-Right-of-Way","Cap Outlay Mtrl-Land-Right-of-Way","Cap Outlay Mtrl-Land-Right-of-Way","Cap Outlay Mtrl-Land-Right-of-Way","Cap Outlay Mtrl-Land-Right-of-Way","Cap Outlay Mtrl-Land-Right-of-Way"]
["Cap Outlay Mtrl-Leasehold Improvements","Cap Outlay Mtrl-Leasehold Improvements","Cap Outlay Mtrl-Leasehold Improvements","Cap Outlay Mtrl-Leasehold Improvements","Cap Outlay Mtrl-Leasehold Improvements","Cap Outlay Mtrl-Leasehold Improvements","Cap Outlay Mtrl-Leasehold Improvements","Cap Outlay Mtrl-Leasehold Improvements","Cap Outlay Mtrl-Leasehold Improvements","Cap Outlay Mtrl-Leasehold Improvements","Cap Outlay Mtrl-Leasehold Improvements","Cap Outlay Mtrl-Leasehold Improvements"]
["Cap Outlay Mtrl-Park Improvements","Cap Outlay Mtrl-Park Improvements","Cap Outlay Mtrl-Park Improvements","Cap Outlay Mtrl-Park Improvements","Cap Outlay Mtrl-Park Improvements","Cap Outlay Mtrl-Park Improvements","Cap Outlay Mtrl-Park Improvements","Cap Outlay Mtrl-Park Improvements","Cap Outlay Mtrl-Park Improvements","Cap Outlay Mtrl-Park Improvements","Cap Outlay Mtrl-Park Improvements","Cap Outlay Mtrl-Park Improvements"]
["Cap Outlay Mtrl-Sign  Traffic Control Equipment","Cap Outlay Mtrl-Sign  Traffic Control Equipment","Cap Outlay Mtrl-Sign  Traffic Control Equipment","Cap Outlay Mtrl-Sign  Traffic Control Equipment","Cap Outlay Mtrl-Sign  Traffic Control Equipment","Cap Outlay Mtrl-Sign  Traffic Control Equipment","Cap Outlay Mtrl-Sign  Traffic Control Equipment","Cap Outlay Mtrl-Sign  Traffic Control Equipment","Cap Outlay Mtrl-Sign  Traffic Control Equipment","Cap Outlay Mtrl-Sign  Traffic Control Equipment","Cap Outlay Mtrl-Sign  Traffic Control Equipment","Cap Outlay Mtrl-Sign  Traffic Control Equipment"]
["Cap Outlay Sv-Bridges","Cap Outlay Sv-Bridges","Cap Outlay Sv-Bridges","Cap Outlay Sv-Bridges","Cap Outlay Sv-Bridges","Cap Outlay Sv-Bridges","Cap Outlay Sv-Bridges","Cap Outlay Sv-Bridges","Cap Outlay Sv-Bridges","Cap Outlay Sv-Bridges","Cap Outlay Sv-Bridges","Cap Outlay Sv-Bridges"]
["Cap Outlay Sv-Building Improvements","Cap Outlay Sv-Building Improvements","Cap Outlay Sv-Building Improvements","Cap Outlay Sv-Building Improvements","Cap Outlay Sv-Building Improvements","Cap Outlay Sv-Building Improvements","Cap Outlay Sv-Building Improvements","Cap Outlay Sv-Building Improvements","Cap Outlay Sv-Building Improvements","Cap Outlay Sv-Building Improvements","Cap Outlay Sv-Building Improvements","Cap Outlay Sv-Building Improvements"]
["Cap Outlay Sv-Infrastructure Drainage","Cap Outlay Sv-Infrastructure Drainage","Cap Outlay Sv-Infrastructure Drainage","Cap Outlay Sv-Infrastructure Drainage","Cap Outlay Sv-Infrastructure Drainage","Cap Outlay Sv-Infrastructure Drainage","Cap Outlay Sv-Infrastructure Drainage","Cap Outlay Sv-Infrastructure Drainage","Cap Outlay Sv-Infrastructure Drainage","Cap Outlay Sv-Infrastructure Drainage","Cap Outlay Sv-Infrastructure Drainage","Cap Outlay Sv-Infrastructure Drainage"]
["Cap Outlay Sv-Infrastructure Roads","Cap Outlay Sv-Infrastructure Roads","Cap Outlay Sv-Infrastructure Roads","Cap Outlay Sv-Infrastructure Roads","Cap Outlay Sv-Infrastructure Roads","Cap Outlay Sv-Infrastructure Roads","Cap Outlay Sv-Infrastructure Roads","Cap Outlay Sv-Infrastructure Roads","Cap Outlay Sv-Infrastructure Roads","Cap Outlay Sv-Infrastructure Roads","Cap Outlay Sv-Infrastructure Roads","Cap Outlay Sv-Infrastructure Roads"]
["Cap Outlay Sv-Infrastructure Sidewalks","Cap Outlay Sv-Infrastructure Sidewalks","Cap Outlay Sv-Infrastructure Sidewalks","Cap Outlay Sv-Infrastructure Sidewalks","Cap Outlay Sv-Infrastructure Sidewalks","Cap Outlay Sv-Infrastructure Sidewalks","Cap Outlay Sv-Infrastructure Sidewalks","Cap Outlay Sv-Infrastructure Sidewalks","Cap Outlay Sv-Infrastructure Sidewalks","Cap Outlay Sv-Infrastructure Sidewalks","Cap Outlay Sv-Infrastructure Sidewalks","Cap Outlay Sv-Infrastructure Sidewalks"]
["Cap Outlay Sv-Installation-Equipment","Cap Outlay Sv-Installation-Equipment","Cap Outlay Sv-Installation-Equipment","Cap Outlay Sv-Installation-Equipment","Cap Outlay Sv-Installation-Equipment","Cap Outlay Sv-Installation-Equipment","Cap Outlay Sv-Installation-Equipment","Cap Outlay Sv-Installation-Equipment","Cap Outlay Sv-Installation-Equipment","Cap Outlay Sv-Installation-Equipment","Cap Outlay Sv-Installation-Equipment","Cap Outlay Sv-Installation-Equipment"]
["Cap Outlay Sv-Installation-Software","Cap Outlay Sv-Installation-Software","Cap Outlay Sv-Installation-Software","Cap Outlay Sv-Installation-Software","Cap Outlay Sv-Installation-Software","Cap Outlay Sv-Installation-Software","Cap Outlay Sv-Installation-Software","Cap Outlay Sv-Installation-Software","Cap Outlay Sv-Installation-Software","Cap Outlay Sv-Installation-Software","Cap Outlay Sv-Installation-Software","Cap Outlay Sv-Installation-Software"]
["Cap Outlay Sv-Park Improvements","Cap Outlay Sv-Park Improvements","Cap Outlay Sv-Park Improvements","Cap Outlay Sv-Park Improvements","Cap Outlay Sv-Park Improvements","Cap Outlay Sv-Park Improvements","Cap Outlay Sv-Park Improvements","Cap Outlay Sv-Park Improvements","Cap Outlay Sv-Park Improvements","Cap Outlay Sv-Park Improvements","Cap Outlay Sv-Park Improvements","Cap Outlay Sv-Park Improvements"]
["Cap Outlay Sv-Right of Way/Easements","Cap Outlay Sv-Right of Way/Easements","Cap Outlay Sv-Right of Way/Easements","Cap Outlay Sv-Right of Way/Easements","Cap Outlay Sv-Right of Way/Easements","Cap Outlay Sv-Right of Way/Easements","Cap Outlay Sv-Right of Way/Easements","Cap Outlay Sv-Right of Way/Easements","Cap Outlay Sv-Right of Way/Easements","Cap Outlay Sv-Right of Way/Easements","Cap Outlay Sv-Right of Way/Easements","Cap Outlay Sv-Right of Way/Easements"]
["Cap Outlay Sv-Road Construction","Cap Outlay Sv-Road Construction","Cap Outlay Sv-Road Construction","Cap Outlay Sv-Road Construction","Cap Outlay Sv-Road Construction","Cap Outlay Sv-Road Construction","Cap Outlay Sv-Road Construction","Cap Outlay Sv-Road Construction","Cap Outlay Sv-Road Construction","Cap Outlay Sv-Road Construction","Cap Outlay Sv-Road Construction","Cap Outlay Sv-Road Construction"]
["Background Check Services","Background Check Services","Background Check Services","Background Check Services","Background Check Services","Background Check Services","Background Check Services","Background Check Services","Background Check Services","Background Check Services","Background Check Services","Background Check Services"]
["Employee Assistance Programs","Employee Assistance Programs","Employee Assistance Programs","Employee Assistance Programs","Employee Assistance Programs","Employee Assistance Programs","Employee Assistance Programs","Employee Assistance Programs","Employee Assistance Programs","Employee Assistance Programs","Employee Assistance Programs","Employee Assistance Programs"]
["Employee Guaranteed Ride Home","Employee Guaranteed Ride Home","Employee Guaranteed Ride Home","Employee Guaranteed Ride Home","Employee Guaranteed Ride Home","Employee Guaranteed Ride Home","Employee Guaranteed Ride Home","Employee Guaranteed Ride Home","Employee Guaranteed Ride Home","Employee Guaranteed Ride Home","Employee Guaranteed Ride Home","Employee Guaranteed Ride Home"]
["Employee Recognition","Employee Recognition","Employee Recognition","Employee Recognition","Employee Recognition","Employee Recognition","Employee Recognition","Employee Recognition","Employee Recognition","Employee Recognition","Employee Recognition","Employee Recognition"]
["Employee Recruitment Expenses","Employee Recruitment Expenses","Employee Recruitment Expenses","Employee Recruitment Expenses","Employee Recruitment Expenses","Employee Recruitment Expenses","Employee Recruitment Expenses","Employee Recruitment Expenses","Employee Recruitment Expenses","Employee Recruitment Expenses","Employee Recruitment Expenses","Employee Recruitment Expenses"]
["Employee Relocation Expenses","Employee Relocation Expenses","Employee Relocation Expenses","Employee Relocation Expenses","Employee Relocation Expenses","Employee Relocation Expenses","Employee Relocation Expenses","Employee Relocation Expenses","Employee Relocation Expenses","Employee Relocation Expenses","Employee Relocation Expenses","Employee Relocation Expenses"]
["Pre-Employment Testing ","Pre-Employment Testing ","Pre-Employment Testing ","Pre-Employment Testing ","Pre-Employment Testing ","Pre-Employment Testing ","Pre-Employment Testing ","Pre-Employment Testing ","Pre-Employment Testing ","Pre-Employment Testing ","Pre-Employment Testing ","Pre-Employment Testing "]
["Tuition Reimbursement","Tuition Reimbursement","Tuition Reimbursement","Tuition Reimbursement","Tuition Reimbursement","Tuition Reimbursement","Tuition Reimbursement","Tuition Reimbursement","Tuition Reimbursement","Tuition Reimbursement","Tuition Reimbursement","Tuition Reimbursement"]
["Ad Litems","Ad Litems","Ad Litems","Ad Litems","Ad Litems","Ad Litems","Ad Litems","Ad Litems","Ad Litems","Ad Litems","Ad Litems","Ad Litems"]
["Confidential Informant Fees","Confidential Informant Fees","Confidential Informant Fees","Confidential Informant Fees","Confidential Informant Fees","Confidential Informant Fees","Confidential Informant Fees","Confidential Informant Fees","Confidential Informant Fees","Confidential Informant Fees","Confidential Informant Fees","Confidential Informant Fees"]
["Court Costs","Court Costs","Court Costs","Court Costs","Court Costs","Court Costs","Court Costs","Court Costs","Court Costs","Court Costs","Court Costs","Court Costs"]
["Court Ordered Attorney Fees","Court Ordered Attorney Fees","Court Ordered Attorney Fees","Court Ordered Attorney Fees","Court Ordered Attorney Fees","Court Ordered Attorney Fees","Court Ordered Attorney Fees","Court Ordered Attorney Fees","Court Ordered Attorney Fees","Court Ordered Attorney Fees","Court Ordered Attorney Fees","Court Ordered Attorney Fees"]
["Court Ordered Attorney Fees - CPS Mediations","Court Ordered Attorney Fees - CPS Mediations","Court Ordered Attorney Fees - CPS Mediations","Court Ordered Attorney Fees - CPS Mediations","Court Ordered Attorney Fees - CPS Mediations","Court Ordered Attorney Fees - CPS Mediations","Court Ordered Attorney Fees - CPS Mediations","Court Ordered Attorney Fees - CPS Mediations","Court Ordered Attorney Fees - CPS Mediations","Court Ordered Attorney Fees - CPS Mediations","Court Ordered Attorney Fees - CPS Mediations","Court Ordered Attorney Fees - CPS Mediations"]
["Court Ordered Attorney Fees - Non- CPS Juvenile","Court Ordered Attorney Fees - Non- CPS Juvenile","Court Ordered Attorney Fees - Non- CPS Juvenile","Court Ordered Attorney Fees - Non- CPS Juvenile","Court Ordered Attorney Fees - Non- CPS Juvenile","Court Ordered Attorney Fees - Non- CPS Juvenile","Court Ordered Attorney Fees - Non- CPS Juvenile","Court Ordered Attorney Fees - Non- CPS Juvenile","Court Ordered Attorney Fees - Non- CPS Juvenile","Court Ordered Attorney Fees - Non- CPS Juvenile","Court Ordered Attorney Fees - Non- CPS Juvenile","Court Ordered Attorney Fees - Non- CPS Juvenile"]
["Court Ordered Attorney Fees - Non-CPS Contempt","Court Ordered Attorney Fees - Non-CPS Contempt","Court Ordered Attorney Fees - Non-CPS Contempt","Court Ordered Attorney Fees - Non-CPS Contempt","Court Ordered Attorney Fees - Non-CPS Contempt","Court Ordered Attorney Fees - Non-CPS Contempt","Court Ordered Attorney Fees - Non-CPS Contempt","Court Ordered Attorney Fees - Non-CPS Contempt","Court Ordered Attorney Fees - Non-CPS Contempt","Court Ordered Attorney Fees - Non-CPS Contempt","Court Ordered Attorney Fees - Non-CPS Contempt","Court Ordered Attorney Fees - Non-CPS Contempt"]
["Court Ordered Attorney Fees - Non-Family","Court Ordered Attorney Fees - Non-Family","Court Ordered Attorney Fees - Non-Family","Court Ordered Attorney Fees - Non-Family","Court Ordered Attorney Fees - Non-Family","Court Ordered Attorney Fees - Non-Family","Court Ordered Attorney Fees - Non-Family","Court Ordered Attorney Fees - Non-Family","Court Ordered Attorney Fees - Non-Family","Court Ordered Attorney Fees - Non-Family","Court Ordered Attorney Fees - Non-Family","Court Ordered Attorney Fees - Non-Family"]
["Court Ordered Attorney Fees-Incidentals","Court Ordered Attorney Fees-Incidentals","Court Ordered Attorney Fees-Incidentals","Court Ordered Attorney Fees-Incidentals","Court Ordered Attorney Fees-Incidentals","Court Ordered Attorney Fees-Incidentals","Court Ordered Attorney Fees-Incidentals","Court Ordered Attorney Fees-Incidentals","Court Ordered Attorney Fees-Incidentals","Court Ordered Attorney Fees-Incidentals","Court Ordered Attorney Fees-Incidentals","Court Ordered Attorney Fees-Incidentals"]
["Court Ordered Atty Fees - Appeals","Court Ordered Atty Fees - Appeals","Court Ordered Atty Fees - Appeals","Court Ordered Atty Fees - Appeals","Court Ordered Atty Fees - Appeals","Court Ordered Atty Fees - Appeals","Court Ordered Atty Fees - Appeals","Court Ordered Atty Fees - Appeals","Court Ordered Atty Fees - Appeals","Court Ordered Atty Fees - Appeals","Court Ordered Atty Fees - Appeals","Court Ordered Atty Fees - Appeals"]
["Court Ordered Atty Fees - CPS Child Terminations","Court Ordered Atty Fees - CPS Child Terminations","Court Ordered Atty Fees - CPS Child Terminations","Court Ordered Atty Fees - CPS Child Terminations","Court Ordered Atty Fees - CPS Child Terminations","Court Ordered Atty Fees - CPS Child Terminations","Court Ordered Atty Fees - CPS Child Terminations","Court Ordered Atty Fees - CPS Child Terminations","Court Ordered Atty Fees - CPS Child Terminations","Court Ordered Atty Fees - CPS Child Terminations","Court Ordered Atty Fees - CPS Child Terminations","Court Ordered Atty Fees - CPS Child Terminations"]
["Court Ordered Atty Fees - CPS Parent Terminations","Court Ordered Atty Fees - CPS Parent Terminations","Court Ordered Atty Fees - CPS Parent Terminations","Court Ordered Atty Fees - CPS Parent Terminations","Court Ordered Atty Fees - CPS Parent Terminations","Court Ordered Atty Fees - CPS Parent Terminations","Court Ordered Atty Fees - CPS Parent Terminations","Court Ordered Atty Fees - CPS Parent Terminations","Court Ordered Atty Fees - CPS Parent Terminations","Court Ordered Atty Fees - CPS Parent Terminations","Court Ordered Atty Fees - CPS Parent Terminations","Court Ordered Atty Fees - CPS Parent Terminations"]
["Court Ordered Expert Witness Expenses","Court Ordered Expert Witness Expenses","Court Ordered Expert Witness Expenses","Court Ordered Expert Witness Expenses","Court Ordered Expert Witness Expenses","Court Ordered Expert Witness Expenses","Court Ordered Expert Witness Expenses","Court Ordered Expert Witness Expenses","Court Ordered Expert Witness Expenses","Court Ordered Expert Witness Expenses","Court Ordered Expert Witness Expenses","Court Ordered Expert Witness Expenses"]
["Court Ordered Investigator Expenses","Court Ordered Investigator Expenses","Court Ordered Investigator Expenses","Court Ordered Investigator Expenses","Court Ordered Investigator Expenses","Court Ordered Investigator Expenses","Court Ordered Investigator Expenses","Court Ordered Investigator Expenses","Court Ordered Investigator Expenses","Court Ordered Investigator Expenses","Court Ordered Investigator Expenses","Court Ordered Investigator Expenses"]
["Court Ordered Lab Testing","Court Ordered Lab Testing","Court Ordered Lab Testing","Court Ordered Lab Testing","Court Ordered Lab Testing","Court Ordered Lab Testing","Court Ordered Lab Testing","Court Ordered Lab Testing","Court Ordered Lab Testing","Court Ordered Lab Testing","Court Ordered Lab Testing","Court Ordered Lab Testing"]
["Court Ordered Psychological Evaluations","Court Ordered Psychological Evaluations","Court Ordered Psychological Evaluations","Court Ordered Psychological Evaluations","Court Ordered Psychological Evaluations","Court Ordered Psychological Evaluations","Court Ordered Psychological Evaluations","Court Ordered Psychological Evaluations","Court Ordered Psychological Evaluations","Court Ordered Psychological Evaluations","Court Ordered Psychological Evaluations","Court Ordered Psychological Evaluations"]
["Court Transcripts","Court Transcripts","Court Transcripts","Court Transcripts","Court Transcripts","Court Transcripts","Court Transcripts","Court Transcripts","Court Transcripts","Court Transcripts","Court Transcripts","Court Transcripts"]
["Expert Witness Testimony Exp","Expert Witness Testimony Exp","Expert Witness Testimony Exp","Expert Witness Testimony Exp","Expert Witness Testimony Exp","Expert Witness Testimony Exp","Expert Witness Testimony Exp","Expert Witness Testimony Exp","Expert Witness Testimony Exp","Expert Witness Testimony Exp","Expert Witness Testimony Exp","Expert Witness Testimony Exp"]
["Extradition Related Travel","Extradition Related Travel","Extradition Related Travel","Extradition Related Travel","Extradition Related Travel","Extradition Related Travel","Extradition Related Travel","Extradition Related Travel","Extradition Related Travel","Extradition Related Travel","Extradition Related Travel","Extradition Related Travel"]
["Grand Jury Fees","Grand Jury Fees","Grand Jury Fees","Grand Jury Fees","Grand Jury Fees","Grand Jury Fees","Grand Jury Fees","Grand Jury Fees","Grand Jury Fees","Grand Jury Fees","Grand Jury Fees","Grand Jury Fees"]
["Interpretation/Translation  Services-Court","Interpretation/Translation  Services-Court","Interpretation/Translation  Services-Court","Interpretation/Translation  Services-Court","Interpretation/Translation  Services-Court","Interpretation/Translation  Services-Court","Interpretation/Translation  Services-Court","Interpretation/Translation  Services-Court","Interpretation/Translation  Services-Court","Interpretation/Translation  Services-Court","Interpretation/Translation  Services-Court","Interpretation/Translation  Services-Court"]
["Jury Expenses","Jury Expenses","Jury Expenses","Jury Expenses","Jury Expenses","Jury Expenses","Jury Expenses","Jury Expenses","Jury Expenses","Jury Expenses","Jury Expenses","Jury Expenses"]
["Medical Exams - Victims","Medical Exams - Victims","Medical Exams - Victims","Medical Exams - Victims","Medical Exams - Victims","Medical Exams - Victims","Medical Exams - Victims","Medical Exams - Victims","Medical Exams - Victims","Medical Exams - Victims","Medical Exams - Victims","Medical Exams - Victims"]
["Mental Health Attorneys","Mental Health Attorneys","Mental Health Attorneys","Mental Health Attorneys","Mental Health Attorneys","Mental Health Attorneys","Mental Health Attorneys","Mental Health Attorneys","Mental Health Attorneys","Mental Health Attorneys","Mental Health Attorneys","Mental Health Attorneys"]
["Petit Jury Fees","Petit Jury Fees","Petit Jury Fees","Petit Jury Fees","Petit Jury Fees","Petit Jury Fees","Petit Jury Fees","Petit Jury Fees","Petit Jury Fees","Petit Jury Fees","Petit Jury Fees","Petit Jury Fees"]
["Special Masters","Special Masters","Special Masters","Special Masters","Special Masters","Special Masters","Special Masters","Special Masters","Special Masters","Special Masters","Special Masters","Special Masters"]
["Specialty Court Attorney Fees","Specialty Court Attorney Fees","Specialty Court Attorney Fees","Specialty Court Attorney Fees","Specialty Court Attorney Fees","Specialty Court Attorney Fees","Specialty Court Attorney Fees","Specialty Court Attorney Fees","Specialty Court Attorney Fees","Specialty Court Attorney Fees","Specialty Court Attorney Fees","Specialty Court Attorney Fees"]
["Substitute Court Reporter Charges","Substitute Court Reporter Charges","Substitute Court Reporter Charges","Substitute Court Reporter Charges","Substitute Court Reporter Charges","Substitute Court Reporter Charges","Substitute Court Reporter Charges","Substitute Court Reporter Charges","Substitute Court Reporter Charges","Substitute Court Reporter Charges","Substitute Court Reporter Charges","Substitute Court Reporter Charges"]
["Transcript Expenses","Transcript Expenses","Transcript Expenses","Transcript Expenses","Transcript Expenses","Transcript Expenses","Transcript Expenses","Transcript Expenses","Transcript Expenses","Transcript Expenses","Transcript Expenses","Transcript Expenses"]
["Visiting Judges - Contractor Fees","Visiting Judges - Contractor Fees","Visiting Judges - Contractor Fees","Visiting Judges - Contractor Fees","Visiting Judges - Contractor Fees","Visiting Judges - Contractor Fees","Visiting Judges - Contractor Fees","Visiting Judges - Contractor Fees","Visiting Judges - Contractor Fees","Visiting Judges - Contractor Fees","Visiting Judges - Contractor Fees","Visiting Judges - Contractor Fees"]
["Visiting Judges - Expense Reimbursement","Visiting Judges - Expense Reimbursement","Visiting Judges - Expense Reimbursement","Visiting Judges - Expense Reimbursement","Visiting Judges - Expense Reimbursement","Visiting Judges - Expense Reimbursement","Visiting Judges - Expense Reimbursement","Visiting Judges - Expense Reimbursement","Visiting Judges - Expense Reimbursement","Visiting Judges - Expense Reimbursement","Visiting Judges - Expense Reimbursement","Visiting Judges - Expense Reimbursement"]
["Witness Expenses","Witness Expenses","Witness Expenses","Witness Expenses","Witness Expenses","Witness Expenses","Witness Expenses","Witness Expenses","Witness Expenses","Witness Expenses","Witness Expenses","Witness Expenses"]
["Auto Liability Premiums","Auto Liability Premiums","Auto Liability Premiums","Auto Liability Premiums","Auto Liability Premiums","Auto Liability Premiums","Auto Liability Premiums","Auto Liability Premiums","Auto Liability Premiums","Auto Liability Premiums","Auto Liability Premiums","Auto Liability Premiums"]
["Bonds-Elected Officials","Bonds-Elected Officials","Bonds-Elected Officials","Bonds-Elected Officials","Bonds-Elected Officials","Bonds-Elected Officials","Bonds-Elected Officials","Bonds-Elected Officials","Bonds-Elected Officials","Bonds-Elected Officials","Bonds-Elected Officials","Bonds-Elected Officials"]
["COBRA Stop/Loss Premium Medical-HDHP","COBRA Stop/Loss Premium Medical-HDHP","COBRA Stop/Loss Premium Medical-HDHP","COBRA Stop/Loss Premium Medical-HDHP","COBRA Stop/Loss Premium Medical-HDHP","COBRA Stop/Loss Premium Medical-HDHP","COBRA Stop/Loss Premium Medical-HDHP","COBRA Stop/Loss Premium Medical-HDHP","COBRA Stop/Loss Premium Medical-HDHP","COBRA Stop/Loss Premium Medical-HDHP","COBRA Stop/Loss Premium Medical-HDHP","COBRA Stop/Loss Premium Medical-HDHP"]
["COBRA-Premium Medical-CoEPO","COBRA-Premium Medical-CoEPO","COBRA-Premium Medical-CoEPO","COBRA-Premium Medical-CoEPO","COBRA-Premium Medical-CoEPO","COBRA-Premium Medical-CoEPO","COBRA-Premium Medical-CoEPO","COBRA-Premium Medical-CoEPO","COBRA-Premium Medical-CoEPO","COBRA-Premium Medical-CoEPO","COBRA-Premium Medical-CoEPO","COBRA-Premium Medical-CoEPO"]
["COBRA-Premium Medical-CoEPO","COBRA-Premium Medical-CoEPO","COBRA-Premium Medical-CoEPO","COBRA-Premium Medical-CoEPO","COBRA-Premium Medical-CoEPO","COBRA-Premium Medical-CoEPO","COBRA-Premium Medical-CoEPO","COBRA-Premium Medical-CoEPO","COBRA-Premium Medical-CoEPO","COBRA-Premium Medical-CoEPO","COBRA-Premium Medical-CoEPO","COBRA-Premium Medical-CoEPO"]
["COBRA-Premium Medical-Consumer Choice","COBRA-Premium Medical-Consumer Choice","COBRA-Premium Medical-Consumer Choice","COBRA-Premium Medical-Consumer Choice","COBRA-Premium Medical-Consumer Choice","COBRA-Premium Medical-Consumer Choice","COBRA-Premium Medical-Consumer Choice","COBRA-Premium Medical-Consumer Choice","COBRA-Premium Medical-Consumer Choice","COBRA-Premium Medical-Consumer Choice","COBRA-Premium Medical-Consumer Choice","COBRA-Premium Medical-Consumer Choice"]
["COBRA-Premium Medical-EPO","COBRA-Premium Medical-EPO","COBRA-Premium Medical-EPO","COBRA-Premium Medical-EPO","COBRA-Premium Medical-EPO","COBRA-Premium Medical-EPO","COBRA-Premium Medical-EPO","COBRA-Premium Medical-EPO","COBRA-Premium Medical-EPO","COBRA-Premium Medical-EPO","COBRA-Premium Medical-EPO","COBRA-Premium Medical-EPO"]
["COBRA-Premium Medical-HDHP","COBRA-Premium Medical-HDHP","COBRA-Premium Medical-HDHP","COBRA-Premium Medical-HDHP","COBRA-Premium Medical-HDHP","COBRA-Premium Medical-HDHP","COBRA-Premium Medical-HDHP","COBRA-Premium Medical-HDHP","COBRA-Premium Medical-HDHP","COBRA-Premium Medical-HDHP","COBRA-Premium Medical-HDHP","COBRA-Premium Medical-HDHP"]
["COBRA-Premium Medical-PPO","COBRA-Premium Medical-PPO","COBRA-Premium Medical-PPO","COBRA-Premium Medical-PPO","COBRA-Premium Medical-PPO","COBRA-Premium Medical-PPO","COBRA-Premium Medical-PPO","COBRA-Premium Medical-PPO","COBRA-Premium Medical-PPO","COBRA-Premium Medical-PPO","COBRA-Premium Medical-PPO","COBRA-Premium Medical-PPO"]
["COBRA-Stop/Loss Premium Medical-CoEPO","COBRA-Stop/Loss Premium Medical-CoEPO","COBRA-Stop/Loss Premium Medical-CoEPO","COBRA-Stop/Loss Premium Medical-CoEPO","COBRA-Stop/Loss Premium Medical-CoEPO","COBRA-Stop/Loss Premium Medical-CoEPO","COBRA-Stop/Loss Premium Medical-CoEPO","COBRA-Stop/Loss Premium Medical-CoEPO","COBRA-Stop/Loss Premium Medical-CoEPO","COBRA-Stop/Loss Premium Medical-CoEPO","COBRA-Stop/Loss Premium Medical-CoEPO","COBRA-Stop/Loss Premium Medical-CoEPO"]
["COBRA-Stop/Loss Premium Medical-EPO","COBRA-Stop/Loss Premium Medical-EPO","COBRA-Stop/Loss Premium Medical-EPO","COBRA-Stop/Loss Premium Medical-EPO","COBRA-Stop/Loss Premium Medical-EPO","COBRA-Stop/Loss Premium Medical-EPO","COBRA-Stop/Loss Premium Medical-EPO","COBRA-Stop/Loss Premium Medical-EPO","COBRA-Stop/Loss Premium Medical-EPO","COBRA-Stop/Loss Premium Medical-EPO","COBRA-Stop/Loss Premium Medical-EPO","COBRA-Stop/Loss Premium Medical-EPO"]
["COBRA-Stop/Loss Premium Medical-PPO","COBRA-Stop/Loss Premium Medical-PPO","COBRA-Stop/Loss Premium Medical-PPO","COBRA-Stop/Loss Premium Medical-PPO","COBRA-Stop/Loss Premium Medical-PPO","COBRA-Stop/Loss Premium Medical-PPO","COBRA-Stop/Loss Premium Medical-PPO","COBRA-Stop/Loss Premium Medical-PPO","COBRA-Stop/Loss Premium Medical-PPO","COBRA-Stop/Loss Premium Medical-PPO","COBRA-Stop/Loss Premium Medical-PPO","COBRA-Stop/Loss Premium Medical-PPO"]
["E&O Insurance Premiums","E&O Insurance Premiums","E&O Insurance Premiums","E&O Insurance Premiums","E&O Insurance Premiums","E&O Insurance Premiums","E&O Insurance Premiums","E&O Insurance Premiums","E&O Insurance Premiums","E&O Insurance Premiums","E&O Insurance Premiums","E&O Insurance Premiums"]
["Employee Stop/Loss Premium Medical","Employee Stop/Loss Premium Medical","Employee Stop/Loss Premium Medical","Employee Stop/Loss Premium Medical","Employee Stop/Loss Premium Medical","Employee Stop/Loss Premium Medical","Employee Stop/Loss Premium Medical","Employee Stop/Loss Premium Medical","Employee Stop/Loss Premium Medical","Employee Stop/Loss Premium Medical","Employee Stop/Loss Premium Medical","Employee Stop/Loss Premium Medical"]
["Employee Stop/Loss Premium Medical-CoEPO","Employee Stop/Loss Premium Medical-CoEPO","Employee Stop/Loss Premium Medical-CoEPO","Employee Stop/Loss Premium Medical-CoEPO","Employee Stop/Loss Premium Medical-CoEPO","Employee Stop/Loss Premium Medical-CoEPO","Employee Stop/Loss Premium Medical-CoEPO","Employee Stop/Loss Premium Medical-CoEPO","Employee Stop/Loss Premium Medical-CoEPO","Employee Stop/Loss Premium Medical-CoEPO","Employee Stop/Loss Premium Medical-CoEPO","Employee Stop/Loss Premium Medical-CoEPO"]
["Employee Stop/Loss Premium Medical-Consumer Choice","Employee Stop/Loss Premium Medical-Consumer Choice","Employee Stop/Loss Premium Medical-Consumer Choice","Employee Stop/Loss Premium Medical-Consumer Choice","Employee Stop/Loss Premium Medical-Consumer Choice","Employee Stop/Loss Premium Medical-Consumer Choice","Employee Stop/Loss Premium Medical-Consumer Choice","Employee Stop/Loss Premium Medical-Consumer Choice","Employee Stop/Loss Premium Medical-Consumer Choice","Employee Stop/Loss Premium Medical-Consumer Choice","Employee Stop/Loss Premium Medical-Consumer Choice","Employee Stop/Loss Premium Medical-Consumer Choice"]
["Employee Stop/Loss Premium Medical-EPO","Employee Stop/Loss Premium Medical-EPO","Employee Stop/Loss Premium Medical-EPO","Employee Stop/Loss Premium Medical-EPO","Employee Stop/Loss Premium Medical-EPO","Employee Stop/Loss Premium Medical-EPO","Employee Stop/Loss Premium Medical-EPO","Employee Stop/Loss Premium Medical-EPO","Employee Stop/Loss Premium Medical-EPO","Employee Stop/Loss Premium Medical-EPO","Employee Stop/Loss Premium Medical-EPO","Employee Stop/Loss Premium Medical-EPO"]
["Employee Stop/Loss Premium Medical-HDHP","Employee Stop/Loss Premium Medical-HDHP","Employee Stop/Loss Premium Medical-HDHP","Employee Stop/Loss Premium Medical-HDHP","Employee Stop/Loss Premium Medical-HDHP","Employee Stop/Loss Premium Medical-HDHP","Employee Stop/Loss Premium Medical-HDHP","Employee Stop/Loss Premium Medical-HDHP","Employee Stop/Loss Premium Medical-HDHP","Employee Stop/Loss Premium Medical-HDHP","Employee Stop/Loss Premium Medical-HDHP","Employee Stop/Loss Premium Medical-HDHP"]
["Employee Stop/Loss Premium Medical-PPO","Employee Stop/Loss Premium Medical-PPO","Employee Stop/Loss Premium Medical-PPO","Employee Stop/Loss Premium Medical-PPO","Employee Stop/Loss Premium Medical-PPO","Employee Stop/Loss Premium Medical-PPO","Employee Stop/Loss Premium Medical-PPO","Employee Stop/Loss Premium Medical-PPO","Employee Stop/Loss Premium Medical-PPO","Employee Stop/Loss Premium Medical-PPO","Employee Stop/Loss Premium Medical-PPO","Employee Stop/Loss Premium Medical-PPO"]
["Employee-Premium Medical-CoEPO","Employee-Premium Medical-CoEPO","Employee-Premium Medical-CoEPO","Employee-Premium Medical-CoEPO","Employee-Premium Medical-CoEPO","Employee-Premium Medical-CoEPO","Employee-Premium Medical-CoEPO","Employee-Premium Medical-CoEPO","Employee-Premium Medical-CoEPO","Employee-Premium Medical-CoEPO","Employee-Premium Medical-CoEPO","Employee-Premium Medical-CoEPO"]
["Employee-Premium Medical-Consumer Choice","Employee-Premium Medical-Consumer Choice","Employee-Premium Medical-Consumer Choice","Employee-Premium Medical-Consumer Choice","Employee-Premium Medical-Consumer Choice","Employee-Premium Medical-Consumer Choice","Employee-Premium Medical-Consumer Choice","Employee-Premium Medical-Consumer Choice","Employee-Premium Medical-Consumer Choice","Employee-Premium Medical-Consumer Choice","Employee-Premium Medical-Consumer Choice","Employee-Premium Medical-Consumer Choice"]
["Employee-Premium Medical-EPO","Employee-Premium Medical-EPO","Employee-Premium Medical-EPO","Employee-Premium Medical-EPO","Employee-Premium Medical-EPO","Employee-Premium Medical-EPO","Employee-Premium Medical-EPO","Employee-Premium Medical-EPO","Employee-Premium Medical-EPO","Employee-Premium Medical-EPO","Employee-Premium Medical-EPO","Employee-Premium Medical-EPO"]
["Employee-Premium Medical-HDHP","Employee-Premium Medical-HDHP","Employee-Premium Medical-HDHP","Employee-Premium Medical-HDHP","Employee-Premium Medical-HDHP","Employee-Premium Medical-HDHP","Employee-Premium Medical-HDHP","Employee-Premium Medical-HDHP","Employee-Premium Medical-HDHP","Employee-Premium Medical-HDHP","Employee-Premium Medical-HDHP","Employee-Premium Medical-HDHP"]
["Employee-Premium Medical-PPO","Employee-Premium Medical-PPO","Employee-Premium Medical-PPO","Employee-Premium Medical-PPO","Employee-Premium Medical-PPO","Employee-Premium Medical-PPO","Employee-Premium Medical-PPO","Employee-Premium Medical-PPO","Employee-Premium Medical-PPO","Employee-Premium Medical-PPO","Employee-Premium Medical-PPO","Employee-Premium Medical-PPO"]
["General Insurance Premiums","General Insurance Premiums","General Insurance Premiums","General Insurance Premiums","General Insurance Premiums","General Insurance Premiums","General Insurance Premiums","General Insurance Premiums","General Insurance Premiums","General Insurance Premiums","General Insurance Premiums","General Insurance Premiums"]
["General Insurance Premiums - Conversion","General Insurance Premiums - Conversion","General Insurance Premiums - Conversion","General Insurance Premiums - Conversion","General Insurance Premiums - Conversion","General Insurance Premiums - Conversion","General Insurance Premiums - Conversion","General Insurance Premiums - Conversion","General Insurance Premiums - Conversion","General Insurance Premiums - Conversion","General Insurance Premiums - Conversion","General Insurance Premiums - Conversion"]
["General Liability Premiums","General Liability Premiums","General Liability Premiums","General Liability Premiums","General Liability Premiums","General Liability Premiums","General Liability Premiums","General Liability Premiums","General Liability Premiums","General Liability Premiums","General Liability Premiums","General Liability Premiums"]
["Insurance Premiums Risk Management","Insurance Premiums Risk Management","Insurance Premiums Risk Management","Insurance Premiums Risk Management","Insurance Premiums Risk Management","Insurance Premiums Risk Management","Insurance Premiums Risk Management","Insurance Premiums Risk Management","Insurance Premiums Risk Management","Insurance Premiums Risk Management","Insurance Premiums Risk Management","Insurance Premiums Risk Management"]
["Property Insurance Premiums","Property Insurance Premiums","Property Insurance Premiums","Property Insurance Premiums","Property Insurance Premiums","Property Insurance Premiums","Property Insurance Premiums","Property Insurance Premiums","Property Insurance Premiums","Property Insurance Premiums","Property Insurance Premiums","Property Insurance Premiums"]
["Ret<65 Stop/Loss Prem Medical-Consumer Choice","Ret<65 Stop/Loss Prem Medical-Consumer Choice","Ret<65 Stop/Loss Prem Medical-Consumer Choice","Ret<65 Stop/Loss Prem Medical-Consumer Choice","Ret<65 Stop/Loss Prem Medical-Consumer Choice","Ret<65 Stop/Loss Prem Medical-Consumer Choice","Ret<65 Stop/Loss Prem Medical-Consumer Choice","Ret<65 Stop/Loss Prem Medical-Consumer Choice","Ret<65 Stop/Loss Prem Medical-Consumer Choice","Ret<65 Stop/Loss Prem Medical-Consumer Choice","Ret<65 Stop/Loss Prem Medical-Consumer Choice","Ret<65 Stop/Loss Prem Medical-Consumer Choice"]
["Ret<65 Stop/Loss Prem Medical-HDHP","Ret<65 Stop/Loss Prem Medical-HDHP","Ret<65 Stop/Loss Prem Medical-HDHP","Ret<65 Stop/Loss Prem Medical-HDHP","Ret<65 Stop/Loss Prem Medical-HDHP","Ret<65 Stop/Loss Prem Medical-HDHP","Ret<65 Stop/Loss Prem Medical-HDHP","Ret<65 Stop/Loss Prem Medical-HDHP","Ret<65 Stop/Loss Prem Medical-HDHP","Ret<65 Stop/Loss Prem Medical-HDHP","Ret<65 Stop/Loss Prem Medical-HDHP","Ret<65 Stop/Loss Prem Medical-HDHP"]
["Ret>65 Stop/Loss Prem Medical-Consumer Choice","Ret>65 Stop/Loss Prem Medical-Consumer Choice","Ret>65 Stop/Loss Prem Medical-Consumer Choice","Ret>65 Stop/Loss Prem Medical-Consumer Choice","Ret>65 Stop/Loss Prem Medical-Consumer Choice","Ret>65 Stop/Loss Prem Medical-Consumer Choice","Ret>65 Stop/Loss Prem Medical-Consumer Choice","Ret>65 Stop/Loss Prem Medical-Consumer Choice","Ret>65 Stop/Loss Prem Medical-Consumer Choice","Ret>65 Stop/Loss Prem Medical-Consumer Choice","Ret>65 Stop/Loss Prem Medical-Consumer Choice","Ret>65 Stop/Loss Prem Medical-Consumer Choice"]
["Ret>65 Stop/Loss Prem Medical-HDHP","Ret>65 Stop/Loss Prem Medical-HDHP","Ret>65 Stop/Loss Prem Medical-HDHP","Ret>65 Stop/Loss Prem Medical-HDHP","Ret>65 Stop/Loss Prem Medical-HDHP","Ret>65 Stop/Loss Prem Medical-HDHP","Ret>65 Stop/Loss Prem Medical-HDHP","Ret>65 Stop/Loss Prem Medical-HDHP","Ret>65 Stop/Loss Prem Medical-HDHP","Ret>65 Stop/Loss Prem Medical-HDHP","Ret>65 Stop/Loss Prem Medical-HDHP","Ret>65 Stop/Loss Prem Medical-HDHP"]
["Retiree < 65 Stop/Loss Premium Medical-CoEPO","Retiree < 65 Stop/Loss Premium Medical-CoEPO","Retiree < 65 Stop/Loss Premium Medical-CoEPO","Retiree < 65 Stop/Loss Premium Medical-CoEPO","Retiree < 65 Stop/Loss Premium Medical-CoEPO","Retiree < 65 Stop/Loss Premium Medical-CoEPO","Retiree < 65 Stop/Loss Premium Medical-CoEPO","Retiree < 65 Stop/Loss Premium Medical-CoEPO","Retiree < 65 Stop/Loss Premium Medical-CoEPO","Retiree < 65 Stop/Loss Premium Medical-CoEPO","Retiree < 65 Stop/Loss Premium Medical-CoEPO","Retiree < 65 Stop/Loss Premium Medical-CoEPO"]
["Retiree < 65 Stop/Loss Premium Medical-EPO","Retiree < 65 Stop/Loss Premium Medical-EPO","Retiree < 65 Stop/Loss Premium Medical-EPO","Retiree < 65 Stop/Loss Premium Medical-EPO","Retiree < 65 Stop/Loss Premium Medical-EPO","Retiree < 65 Stop/Loss Premium Medical-EPO","Retiree < 65 Stop/Loss Premium Medical-EPO","Retiree < 65 Stop/Loss Premium Medical-EPO","Retiree < 65 Stop/Loss Premium Medical-EPO","Retiree < 65 Stop/Loss Premium Medical-EPO","Retiree < 65 Stop/Loss Premium Medical-EPO","Retiree < 65 Stop/Loss Premium Medical-EPO"]
["Retiree < 65 Stop/Loss Premium Medical-PPO","Retiree < 65 Stop/Loss Premium Medical-PPO","Retiree < 65 Stop/Loss Premium Medical-PPO","Retiree < 65 Stop/Loss Premium Medical-PPO","Retiree < 65 Stop/Loss Premium Medical-PPO","Retiree < 65 Stop/Loss Premium Medical-PPO","Retiree < 65 Stop/Loss Premium Medical-PPO","Retiree < 65 Stop/Loss Premium Medical-PPO","Retiree < 65 Stop/Loss Premium Medical-PPO","Retiree < 65 Stop/Loss Premium Medical-PPO","Retiree < 65 Stop/Loss Premium Medical-PPO","Retiree < 65 Stop/Loss Premium Medical-PPO"]
["Retiree >65 Stop/Loss Premium Medical-CO EPO","Retiree >65 Stop/Loss Premium Medical-CO EPO","Retiree >65 Stop/Loss Premium Medical-CO EPO","Retiree >65 Stop/Loss Premium Medical-CO EPO","Retiree >65 Stop/Loss Premium Medical-CO EPO","Retiree >65 Stop/Loss Premium Medical-CO EPO","Retiree >65 Stop/Loss Premium Medical-CO EPO","Retiree >65 Stop/Loss Premium Medical-CO EPO","Retiree >65 Stop/Loss Premium Medical-CO EPO","Retiree >65 Stop/Loss Premium Medical-CO EPO","Retiree >65 Stop/Loss Premium Medical-CO EPO","Retiree >65 Stop/Loss Premium Medical-CO EPO"]
["Retiree >65 Stop/Loss Premium Medical-EPO","Retiree >65 Stop/Loss Premium Medical-EPO","Retiree >65 Stop/Loss Premium Medical-EPO","Retiree >65 Stop/Loss Premium Medical-EPO","Retiree >65 Stop/Loss Premium Medical-EPO","Retiree >65 Stop/Loss Premium Medical-EPO","Retiree >65 Stop/Loss Premium Medical-EPO","Retiree >65 Stop/Loss Premium Medical-EPO","Retiree >65 Stop/Loss Premium Medical-EPO","Retiree >65 Stop/Loss Premium Medical-EPO","Retiree >65 Stop/Loss Premium Medical-EPO","Retiree >65 Stop/Loss Premium Medical-EPO"]
["Retiree >65 Stop/Loss Premium Medical-PPO","Retiree >65 Stop/Loss Premium Medical-PPO","Retiree >65 Stop/Loss Premium Medical-PPO","Retiree >65 Stop/Loss Premium Medical-PPO","Retiree >65 Stop/Loss Premium Medical-PPO","Retiree >65 Stop/Loss Premium Medical-PPO","Retiree >65 Stop/Loss Premium Medical-PPO","Retiree >65 Stop/Loss Premium Medical-PPO","Retiree >65 Stop/Loss Premium Medical-PPO","Retiree >65 Stop/Loss Premium Medical-PPO","Retiree >65 Stop/Loss Premium Medical-PPO","Retiree >65 Stop/Loss Premium Medical-PPO"]
["Retiree<65-Premium Medical-CoEPO","Retiree<65-Premium Medical-CoEPO","Retiree<65-Premium Medical-CoEPO","Retiree<65-Premium Medical-CoEPO","Retiree<65-Premium Medical-CoEPO","Retiree<65-Premium Medical-CoEPO","Retiree<65-Premium Medical-CoEPO","Retiree<65-Premium Medical-CoEPO","Retiree<65-Premium Medical-CoEPO","Retiree<65-Premium Medical-CoEPO","Retiree<65-Premium Medical-CoEPO","Retiree<65-Premium Medical-CoEPO"]
["Retiree<65-Premium Medical-Consumer Choice","Retiree<65-Premium Medical-Consumer Choice","Retiree<65-Premium Medical-Consumer Choice","Retiree<65-Premium Medical-Consumer Choice","Retiree<65-Premium Medical-Consumer Choice","Retiree<65-Premium Medical-Consumer Choice","Retiree<65-Premium Medical-Consumer Choice","Retiree<65-Premium Medical-Consumer Choice","Retiree<65-Premium Medical-Consumer Choice","Retiree<65-Premium Medical-Consumer Choice","Retiree<65-Premium Medical-Consumer Choice","Retiree<65-Premium Medical-Consumer Choice"]
["Retiree<65-Premium Medical-EPO","Retiree<65-Premium Medical-EPO","Retiree<65-Premium Medical-EPO","Retiree<65-Premium Medical-EPO","Retiree<65-Premium Medical-EPO","Retiree<65-Premium Medical-EPO","Retiree<65-Premium Medical-EPO","Retiree<65-Premium Medical-EPO","Retiree<65-Premium Medical-EPO","Retiree<65-Premium Medical-EPO","Retiree<65-Premium Medical-EPO","Retiree<65-Premium Medical-EPO"]
["Retiree<65-Premium Medical-HDHP","Retiree<65-Premium Medical-HDHP","Retiree<65-Premium Medical-HDHP","Retiree<65-Premium Medical-HDHP","Retiree<65-Premium Medical-HDHP","Retiree<65-Premium Medical-HDHP","Retiree<65-Premium Medical-HDHP","Retiree<65-Premium Medical-HDHP","Retiree<65-Premium Medical-HDHP","Retiree<65-Premium Medical-HDHP","Retiree<65-Premium Medical-HDHP","Retiree<65-Premium Medical-HDHP"]
["Retiree<65-Premium Medical-PPO","Retiree<65-Premium Medical-PPO","Retiree<65-Premium Medical-PPO","Retiree<65-Premium Medical-PPO","Retiree<65-Premium Medical-PPO","Retiree<65-Premium Medical-PPO","Retiree<65-Premium Medical-PPO","Retiree<65-Premium Medical-PPO","Retiree<65-Premium Medical-PPO","Retiree<65-Premium Medical-PPO","Retiree<65-Premium Medical-PPO","Retiree<65-Premium Medical-PPO"]
["Retiree>65-Premium Medical-CoEPO","Retiree>65-Premium Medical-CoEPO","Retiree>65-Premium Medical-CoEPO","Retiree>65-Premium Medical-CoEPO","Retiree>65-Premium Medical-CoEPO","Retiree>65-Premium Medical-CoEPO","Retiree>65-Premium Medical-CoEPO","Retiree>65-Premium Medical-CoEPO","Retiree>65-Premium Medical-CoEPO","Retiree>65-Premium Medical-CoEPO","Retiree>65-Premium Medical-CoEPO","Retiree>65-Premium Medical-CoEPO"]
["Retiree>65-Premium Medical-Consumer Choice","Retiree>65-Premium Medical-Consumer Choice","Retiree>65-Premium Medical-Consumer Choice","Retiree>65-Premium Medical-Consumer Choice","Retiree>65-Premium Medical-Consumer Choice","Retiree>65-Premium Medical-Consumer Choice","Retiree>65-Premium Medical-Consumer Choice","Retiree>65-Premium Medical-Consumer Choice","Retiree>65-Premium Medical-Consumer Choice","Retiree>65-Premium Medical-Consumer Choice","Retiree>65-Premium Medical-Consumer Choice","Retiree>65-Premium Medical-Consumer Choice"]
["Retiree>65-Premium Medical-EPO","Retiree>65-Premium Medical-EPO","Retiree>65-Premium Medical-EPO","Retiree>65-Premium Medical-EPO","Retiree>65-Premium Medical-EPO","Retiree>65-Premium Medical-EPO","Retiree>65-Premium Medical-EPO","Retiree>65-Premium Medical-EPO","Retiree>65-Premium Medical-EPO","Retiree>65-Premium Medical-EPO","Retiree>65-Premium Medical-EPO","Retiree>65-Premium Medical-EPO"]
["Retiree>65-Premium Medical-HDHP","Retiree>65-Premium Medical-HDHP","Retiree>65-Premium Medical-HDHP","Retiree>65-Premium Medical-HDHP","Retiree>65-Premium Medical-HDHP","Retiree>65-Premium Medical-HDHP","Retiree>65-Premium Medical-HDHP","Retiree>65-Premium Medical-HDHP","Retiree>65-Premium Medical-HDHP","Retiree>65-Premium Medical-HDHP","Retiree>65-Premium Medical-HDHP","Retiree>65-Premium Medical-HDHP"]
["Retiree>65-Premium Medical-MAPD","Retiree>65-Premium Medical-MAPD","Retiree>65-Premium Medical-MAPD","Retiree>65-Premium Medical-MAPD","Retiree>65-Premium Medical-MAPD","Retiree>65-Premium Medical-MAPD","Retiree>65-Premium Medical-MAPD","Retiree>65-Premium Medical-MAPD","Retiree>65-Premium Medical-MAPD","Retiree>65-Premium Medical-MAPD","Retiree>65-Premium Medical-MAPD","Retiree>65-Premium Medical-MAPD"]
["Retiree>65-Premium Medical-PPO","Retiree>65-Premium Medical-PPO","Retiree>65-Premium Medical-PPO","Retiree>65-Premium Medical-PPO","Retiree>65-Premium Medical-PPO","Retiree>65-Premium Medical-PPO","Retiree>65-Premium Medical-PPO","Retiree>65-Premium Medical-PPO","Retiree>65-Premium Medical-PPO","Retiree>65-Premium Medical-PPO","Retiree>65-Premium Medical-PPO","Retiree>65-Premium Medical-PPO"]
["Retiree-Premium Medical-Conversion","Retiree-Premium Medical-Conversion","Retiree-Premium Medical-Conversion","Retiree-Premium Medical-Conversion","Retiree-Premium Medical-Conversion","Retiree-Premium Medical-Conversion","Retiree-Premium Medical-Conversion","Retiree-Premium Medical-Conversion","Retiree-Premium Medical-Conversion","Retiree-Premium Medical-Conversion","Retiree-Premium Medical-Conversion","Retiree-Premium Medical-Conversion"]
["Retiree-Stop/Loss Premium Medical-Conversion","Retiree-Stop/Loss Premium Medical-Conversion","Retiree-Stop/Loss Premium Medical-Conversion","Retiree-Stop/Loss Premium Medical-Conversion","Retiree-Stop/Loss Premium Medical-Conversion","Retiree-Stop/Loss Premium Medical-Conversion","Retiree-Stop/Loss Premium Medical-Conversion","Retiree-Stop/Loss Premium Medical-Conversion","Retiree-Stop/Loss Premium Medical-Conversion","Retiree-Stop/Loss Premium Medical-Conversion","Retiree-Stop/Loss Premium Medical-Conversion","Retiree-Stop/Loss Premium Medical-Conversion"]
["Worker's Compensation Premiums","Worker's Compensation Premiums","Worker's Compensation Premiums","Worker's Compensation Premiums","Worker's Compensation Premiums","Worker's Compensation Premiums","Worker's Compensation Premiums","Worker's Compensation Premiums","Worker's Compensation Premiums","Worker's Compensation Premiums","Worker's Compensation Premiums","Worker's Compensation Premiums"]
["Auto Liability Administrative Expenses","Auto Liability Administrative Expenses","Auto Liability Administrative Expenses","Auto Liability Administrative Expenses","Auto Liability Administrative Expenses","Auto Liability Administrative Expenses","Auto Liability Administrative Expenses","Auto Liability Administrative Expenses","Auto Liability Administrative Expenses","Auto Liability Administrative Expenses","Auto Liability Administrative Expenses","Auto Liability Administrative Expenses"]
["Benefits Administration","Benefits Administration","Benefits Administration","Benefits Administration","Benefits Administration","Benefits Administration","Benefits Administration","Benefits Administration","Benefits Administration","Benefits Administration","Benefits Administration","Benefits Administration"]
["COBRA Actl Clms/Loss Pmts Medical-Consumer Choice","COBRA Actl Clms/Loss Pmts Medical-Consumer Choice","COBRA Actl Clms/Loss Pmts Medical-Consumer Choice","COBRA Actl Clms/Loss Pmts Medical-Consumer Choice","COBRA Actl Clms/Loss Pmts Medical-Consumer Choice","COBRA Actl Clms/Loss Pmts Medical-Consumer Choice","COBRA Actl Clms/Loss Pmts Medical-Consumer Choice","COBRA Actl Clms/Loss Pmts Medical-Consumer Choice","COBRA Actl Clms/Loss Pmts Medical-Consumer Choice","COBRA Actl Clms/Loss Pmts Medical-Consumer Choice","COBRA Actl Clms/Loss Pmts Medical-Consumer Choice","COBRA Actl Clms/Loss Pmts Medical-Consumer Choice"]
["COBRA Actl Clms/Loss Pmts Medical-HDHP","COBRA Actl Clms/Loss Pmts Medical-HDHP","COBRA Actl Clms/Loss Pmts Medical-HDHP","COBRA Actl Clms/Loss Pmts Medical-HDHP","COBRA Actl Clms/Loss Pmts Medical-HDHP","COBRA Actl Clms/Loss Pmts Medical-HDHP","COBRA Actl Clms/Loss Pmts Medical-HDHP","COBRA Actl Clms/Loss Pmts Medical-HDHP","COBRA Actl Clms/Loss Pmts Medical-HDHP","COBRA Actl Clms/Loss Pmts Medical-HDHP","COBRA Actl Clms/Loss Pmts Medical-HDHP","COBRA Actl Clms/Loss Pmts Medical-HDHP"]
["COBRA Pharmacy Clms/Loss Pmts Medical-Cons Choice","COBRA Pharmacy Clms/Loss Pmts Medical-Cons Choice","COBRA Pharmacy Clms/Loss Pmts Medical-Cons Choice","COBRA Pharmacy Clms/Loss Pmts Medical-Cons Choice","COBRA Pharmacy Clms/Loss Pmts Medical-Cons Choice","COBRA Pharmacy Clms/Loss Pmts Medical-Cons Choice","COBRA Pharmacy Clms/Loss Pmts Medical-Cons Choice","COBRA Pharmacy Clms/Loss Pmts Medical-Cons Choice","COBRA Pharmacy Clms/Loss Pmts Medical-Cons Choice","COBRA Pharmacy Clms/Loss Pmts Medical-Cons Choice","COBRA Pharmacy Clms/Loss Pmts Medical-Cons Choice","COBRA Pharmacy Clms/Loss Pmts Medical-Cons Choice"]
["COBRA Pharmacy Clms/Loss Pmts Medical-EPO","COBRA Pharmacy Clms/Loss Pmts Medical-EPO","COBRA Pharmacy Clms/Loss Pmts Medical-EPO","COBRA Pharmacy Clms/Loss Pmts Medical-EPO","COBRA Pharmacy Clms/Loss Pmts Medical-EPO","COBRA Pharmacy Clms/Loss Pmts Medical-EPO","COBRA Pharmacy Clms/Loss Pmts Medical-EPO","COBRA Pharmacy Clms/Loss Pmts Medical-EPO","COBRA Pharmacy Clms/Loss Pmts Medical-EPO","COBRA Pharmacy Clms/Loss Pmts Medical-EPO","COBRA Pharmacy Clms/Loss Pmts Medical-EPO","COBRA Pharmacy Clms/Loss Pmts Medical-EPO"]
["COBRA Pharmacy Clms/Loss Pmts Medical-HDHP","COBRA Pharmacy Clms/Loss Pmts Medical-HDHP","COBRA Pharmacy Clms/Loss Pmts Medical-HDHP","COBRA Pharmacy Clms/Loss Pmts Medical-HDHP","COBRA Pharmacy Clms/Loss Pmts Medical-HDHP","COBRA Pharmacy Clms/Loss Pmts Medical-HDHP","COBRA Pharmacy Clms/Loss Pmts Medical-HDHP","COBRA Pharmacy Clms/Loss Pmts Medical-HDHP","COBRA Pharmacy Clms/Loss Pmts Medical-HDHP","COBRA Pharmacy Clms/Loss Pmts Medical-HDHP","COBRA Pharmacy Clms/Loss Pmts Medical-HDHP","COBRA Pharmacy Clms/Loss Pmts Medical-HDHP"]
["COBRA Pharmacy Clms/Loss Pmts Medical-PPO","COBRA Pharmacy Clms/Loss Pmts Medical-PPO","COBRA Pharmacy Clms/Loss Pmts Medical-PPO","COBRA Pharmacy Clms/Loss Pmts Medical-PPO","COBRA Pharmacy Clms/Loss Pmts Medical-PPO","COBRA Pharmacy Clms/Loss Pmts Medical-PPO","COBRA Pharmacy Clms/Loss Pmts Medical-PPO","COBRA Pharmacy Clms/Loss Pmts Medical-PPO","COBRA Pharmacy Clms/Loss Pmts Medical-PPO","COBRA Pharmacy Clms/Loss Pmts Medical-PPO","COBRA Pharmacy Clms/Loss Pmts Medical-PPO","COBRA Pharmacy Clms/Loss Pmts Medical-PPO"]
["COBRA-Actual Claims/Loss Pmts Medical-CoEPO","COBRA-Actual Claims/Loss Pmts Medical-CoEPO","COBRA-Actual Claims/Loss Pmts Medical-CoEPO","COBRA-Actual Claims/Loss Pmts Medical-CoEPO","COBRA-Actual Claims/Loss Pmts Medical-CoEPO","COBRA-Actual Claims/Loss Pmts Medical-CoEPO","COBRA-Actual Claims/Loss Pmts Medical-CoEPO","COBRA-Actual Claims/Loss Pmts Medical-CoEPO","COBRA-Actual Claims/Loss Pmts Medical-CoEPO","COBRA-Actual Claims/Loss Pmts Medical-CoEPO","COBRA-Actual Claims/Loss Pmts Medical-CoEPO","COBRA-Actual Claims/Loss Pmts Medical-CoEPO"]
["COBRA-Actual Claims/Loss Pmts Medical-EPO","COBRA-Actual Claims/Loss Pmts Medical-EPO","COBRA-Actual Claims/Loss Pmts Medical-EPO","COBRA-Actual Claims/Loss Pmts Medical-EPO","COBRA-Actual Claims/Loss Pmts Medical-EPO","COBRA-Actual Claims/Loss Pmts Medical-EPO","COBRA-Actual Claims/Loss Pmts Medical-EPO","COBRA-Actual Claims/Loss Pmts Medical-EPO","COBRA-Actual Claims/Loss Pmts Medical-EPO","COBRA-Actual Claims/Loss Pmts Medical-EPO","COBRA-Actual Claims/Loss Pmts Medical-EPO","COBRA-Actual Claims/Loss Pmts Medical-EPO"]
["COBRA-Actual Claims/Loss Pmts Medical-PPO","COBRA-Actual Claims/Loss Pmts Medical-PPO","COBRA-Actual Claims/Loss Pmts Medical-PPO","COBRA-Actual Claims/Loss Pmts Medical-PPO","COBRA-Actual Claims/Loss Pmts Medical-PPO","COBRA-Actual Claims/Loss Pmts Medical-PPO","COBRA-Actual Claims/Loss Pmts Medical-PPO","COBRA-Actual Claims/Loss Pmts Medical-PPO","COBRA-Actual Claims/Loss Pmts Medical-PPO","COBRA-Actual Claims/Loss Pmts Medical-PPO","COBRA-Actual Claims/Loss Pmts Medical-PPO","COBRA-Actual Claims/Loss Pmts Medical-PPO"]
["COBRA-Admin-CoEPO","COBRA-Admin-CoEPO","COBRA-Admin-CoEPO","COBRA-Admin-CoEPO","COBRA-Admin-CoEPO","COBRA-Admin-CoEPO","COBRA-Admin-CoEPO","COBRA-Admin-CoEPO","COBRA-Admin-CoEPO","COBRA-Admin-CoEPO","COBRA-Admin-CoEPO","COBRA-Admin-CoEPO"]
["COBRA-Admin-Consumer Choice","COBRA-Admin-Consumer Choice","COBRA-Admin-Consumer Choice","COBRA-Admin-Consumer Choice","COBRA-Admin-Consumer Choice","COBRA-Admin-Consumer Choice","COBRA-Admin-Consumer Choice","COBRA-Admin-Consumer Choice","COBRA-Admin-Consumer Choice","COBRA-Admin-Consumer Choice","COBRA-Admin-Consumer Choice","COBRA-Admin-Consumer Choice"]
["COBRA-Admin-EPO","COBRA-Admin-EPO","COBRA-Admin-EPO","COBRA-Admin-EPO","COBRA-Admin-EPO","COBRA-Admin-EPO","COBRA-Admin-EPO","COBRA-Admin-EPO","COBRA-Admin-EPO","COBRA-Admin-EPO","COBRA-Admin-EPO","COBRA-Admin-EPO"]
["COBRA-Admin-HDHP","COBRA-Admin-HDHP","COBRA-Admin-HDHP","COBRA-Admin-HDHP","COBRA-Admin-HDHP","COBRA-Admin-HDHP","COBRA-Admin-HDHP","COBRA-Admin-HDHP","COBRA-Admin-HDHP","COBRA-Admin-HDHP","COBRA-Admin-HDHP","COBRA-Admin-HDHP"]
["COBRA-Admin-PPO","COBRA-Admin-PPO","COBRA-Admin-PPO","COBRA-Admin-PPO","COBRA-Admin-PPO","COBRA-Admin-PPO","COBRA-Admin-PPO","COBRA-Admin-PPO","COBRA-Admin-PPO","COBRA-Admin-PPO","COBRA-Admin-PPO","COBRA-Admin-PPO"]
["County Auto-Physical Damage","County Auto-Physical Damage","County Auto-Physical Damage","County Auto-Physical Damage","County Auto-Physical Damage","County Auto-Physical Damage","County Auto-Physical Damage","County Auto-Physical Damage","County Auto-Physical Damage","County Auto-Physical Damage","County Auto-Physical Damage","County Auto-Physical Damage"]
["E&O Actual Claims/Loss Payments","E&O Actual Claims/Loss Payments","E&O Actual Claims/Loss Payments","E&O Actual Claims/Loss Payments","E&O Actual Claims/Loss Payments","E&O Actual Claims/Loss Payments","E&O Actual Claims/Loss Payments","E&O Actual Claims/Loss Payments","E&O Actual Claims/Loss Payments","E&O Actual Claims/Loss Payments","E&O Actual Claims/Loss Payments","E&O Actual Claims/Loss Payments"]
["Emp Pharmacy Clms/Loss Pymts Medical-Cons Choice","Emp Pharmacy Clms/Loss Pymts Medical-Cons Choice","Emp Pharmacy Clms/Loss Pymts Medical-Cons Choice","Emp Pharmacy Clms/Loss Pymts Medical-Cons Choice","Emp Pharmacy Clms/Loss Pymts Medical-Cons Choice","Emp Pharmacy Clms/Loss Pymts Medical-Cons Choice","Emp Pharmacy Clms/Loss Pymts Medical-Cons Choice","Emp Pharmacy Clms/Loss Pymts Medical-Cons Choice","Emp Pharmacy Clms/Loss Pymts Medical-Cons Choice","Emp Pharmacy Clms/Loss Pymts Medical-Cons Choice","Emp Pharmacy Clms/Loss Pymts Medical-Cons Choice","Emp Pharmacy Clms/Loss Pymts Medical-Cons Choice"]
["Emp Pharmacy Clms/Loss Pymts Medical-EPO","Emp Pharmacy Clms/Loss Pymts Medical-EPO","Emp Pharmacy Clms/Loss Pymts Medical-EPO","Emp Pharmacy Clms/Loss Pymts Medical-EPO","Emp Pharmacy Clms/Loss Pymts Medical-EPO","Emp Pharmacy Clms/Loss Pymts Medical-EPO","Emp Pharmacy Clms/Loss Pymts Medical-EPO","Emp Pharmacy Clms/Loss Pymts Medical-EPO","Emp Pharmacy Clms/Loss Pymts Medical-EPO","Emp Pharmacy Clms/Loss Pymts Medical-EPO","Emp Pharmacy Clms/Loss Pymts Medical-EPO","Emp Pharmacy Clms/Loss Pymts Medical-EPO"]
["Emp Pharmacy Clms/Loss Pymts Medical-PPO","Emp Pharmacy Clms/Loss Pymts Medical-PPO","Emp Pharmacy Clms/Loss Pymts Medical-PPO","Emp Pharmacy Clms/Loss Pymts Medical-PPO","Emp Pharmacy Clms/Loss Pymts Medical-PPO","Emp Pharmacy Clms/Loss Pymts Medical-PPO","Emp Pharmacy Clms/Loss Pymts Medical-PPO","Emp Pharmacy Clms/Loss Pymts Medical-PPO","Emp Pharmacy Clms/Loss Pymts Medical-PPO","Emp Pharmacy Clms/Loss Pymts Medical-PPO","Emp Pharmacy Clms/Loss Pymts Medical-PPO","Emp Pharmacy Clms/Loss Pymts Medical-PPO"]
["Empl Actl Clms/Loss Pymts Medical-Consumer Choice","Empl Actl Clms/Loss Pymts Medical-Consumer Choice","Empl Actl Clms/Loss Pymts Medical-Consumer Choice","Empl Actl Clms/Loss Pymts Medical-Consumer Choice","Empl Actl Clms/Loss Pymts Medical-Consumer Choice","Empl Actl Clms/Loss Pymts Medical-Consumer Choice","Empl Actl Clms/Loss Pymts Medical-Consumer Choice","Empl Actl Clms/Loss Pymts Medical-Consumer Choice","Empl Actl Clms/Loss Pymts Medical-Consumer Choice","Empl Actl Clms/Loss Pymts Medical-Consumer Choice","Empl Actl Clms/Loss Pymts Medical-Consumer Choice","Empl Actl Clms/Loss Pymts Medical-Consumer Choice"]
["Empl Actl Clms/Loss Pymts Medical-HDHP","Empl Actl Clms/Loss Pymts Medical-HDHP","Empl Actl Clms/Loss Pymts Medical-HDHP","Empl Actl Clms/Loss Pymts Medical-HDHP","Empl Actl Clms/Loss Pymts Medical-HDHP","Empl Actl Clms/Loss Pymts Medical-HDHP","Empl Actl Clms/Loss Pymts Medical-HDHP","Empl Actl Clms/Loss Pymts Medical-HDHP","Empl Actl Clms/Loss Pymts Medical-HDHP","Empl Actl Clms/Loss Pymts Medical-HDHP","Empl Actl Clms/Loss Pymts Medical-HDHP","Empl Actl Clms/Loss Pymts Medical-HDHP"]
["Employee Actual Claims/Loss Payments Medical-CoEPO","Employee Actual Claims/Loss Payments Medical-CoEPO","Employee Actual Claims/Loss Payments Medical-CoEPO","Employee Actual Claims/Loss Payments Medical-CoEPO","Employee Actual Claims/Loss Payments Medical-CoEPO","Employee Actual Claims/Loss Payments Medical-CoEPO","Employee Actual Claims/Loss Payments Medical-CoEPO","Employee Actual Claims/Loss Payments Medical-CoEPO","Employee Actual Claims/Loss Payments Medical-CoEPO","Employee Actual Claims/Loss Payments Medical-CoEPO","Employee Actual Claims/Loss Payments Medical-CoEPO","Employee Actual Claims/Loss Payments Medical-CoEPO"]
["Employee Actual Claims/Loss Payments Medical-EPO","Employee Actual Claims/Loss Payments Medical-EPO","Employee Actual Claims/Loss Payments Medical-EPO","Employee Actual Claims/Loss Payments Medical-EPO","Employee Actual Claims/Loss Payments Medical-EPO","Employee Actual Claims/Loss Payments Medical-EPO","Employee Actual Claims/Loss Payments Medical-EPO","Employee Actual Claims/Loss Payments Medical-EPO","Employee Actual Claims/Loss Payments Medical-EPO","Employee Actual Claims/Loss Payments Medical-EPO","Employee Actual Claims/Loss Payments Medical-EPO","Employee Actual Claims/Loss Payments Medical-EPO"]
["Employee Actual Claims/Loss Payments Medical-PPO","Employee Actual Claims/Loss Payments Medical-PPO","Employee Actual Claims/Loss Payments Medical-PPO","Employee Actual Claims/Loss Payments Medical-PPO","Employee Actual Claims/Loss Payments Medical-PPO","Employee Actual Claims/Loss Payments Medical-PPO","Employee Actual Claims/Loss Payments Medical-PPO","Employee Actual Claims/Loss Payments Medical-PPO","Employee Actual Claims/Loss Payments Medical-PPO","Employee Actual Claims/Loss Payments Medical-PPO","Employee Actual Claims/Loss Payments Medical-PPO","Employee Actual Claims/Loss Payments Medical-PPO"]
["Employee-Admin-CoEPO","Employee-Admin-CoEPO","Employee-Admin-CoEPO","Employee-Admin-CoEPO","Employee-Admin-CoEPO","Employee-Admin-CoEPO","Employee-Admin-CoEPO","Employee-Admin-CoEPO","Employee-Admin-CoEPO","Employee-Admin-CoEPO","Employee-Admin-CoEPO","Employee-Admin-CoEPO"]
["Employee-Admin-Consumer Choice","Employee-Admin-Consumer Choice","Employee-Admin-Consumer Choice","Employee-Admin-Consumer Choice","Employee-Admin-Consumer Choice","Employee-Admin-Consumer Choice","Employee-Admin-Consumer Choice","Employee-Admin-Consumer Choice","Employee-Admin-Consumer Choice","Employee-Admin-Consumer Choice","Employee-Admin-Consumer Choice","Employee-Admin-Consumer Choice"]
["Employee-Admin-EPO","Employee-Admin-EPO","Employee-Admin-EPO","Employee-Admin-EPO","Employee-Admin-EPO","Employee-Admin-EPO","Employee-Admin-EPO","Employee-Admin-EPO","Employee-Admin-EPO","Employee-Admin-EPO","Employee-Admin-EPO","Employee-Admin-EPO"]
["Employee-Admin-HDHP","Employee-Admin-HDHP","Employee-Admin-HDHP","Employee-Admin-HDHP","Employee-Admin-HDHP","Employee-Admin-HDHP","Employee-Admin-HDHP","Employee-Admin-HDHP","Employee-Admin-HDHP","Employee-Admin-HDHP","Employee-Admin-HDHP","Employee-Admin-HDHP"]
["Employee-Admin-PPO","Employee-Admin-PPO","Employee-Admin-PPO","Employee-Admin-PPO","Employee-Admin-PPO","Employee-Admin-PPO","Employee-Admin-PPO","Employee-Admin-PPO","Employee-Admin-PPO","Employee-Admin-PPO","Employee-Admin-PPO","Employee-Admin-PPO"]
["General Liability Administrative Expenses","General Liability Administrative Expenses","General Liability Administrative Expenses","General Liability Administrative Expenses","General Liability Administrative Expenses","General Liability Administrative Expenses","General Liability Administrative Expenses","General Liability Administrative Expenses","General Liability Administrative Expenses","General Liability Administrative Expenses","General Liability Administrative Expenses","General Liability Administrative Expenses"]
["General Liability Claims","General Liability Claims","General Liability Claims","General Liability Claims","General Liability Claims","General Liability Claims","General Liability Claims","General Liability Claims","General Liability Claims","General Liability Claims","General Liability Claims","General Liability Claims"]
["Insurance Claims Court Filing Fees","Insurance Claims Court Filing Fees","Insurance Claims Court Filing Fees","Insurance Claims Court Filing Fees","Insurance Claims Court Filing Fees","Insurance Claims Court Filing Fees","Insurance Claims Court Filing Fees","Insurance Claims Court Filing Fees","Insurance Claims Court Filing Fees","Insurance Claims Court Filing Fees","Insurance Claims Court Filing Fees","Insurance Claims Court Filing Fees"]
["Insurance Claims Court Reporting Expense","Insurance Claims Court Reporting Expense","Insurance Claims Court Reporting Expense","Insurance Claims Court Reporting Expense","Insurance Claims Court Reporting Expense","Insurance Claims Court Reporting Expense","Insurance Claims Court Reporting Expense","Insurance Claims Court Reporting Expense","Insurance Claims Court Reporting Expense","Insurance Claims Court Reporting Expense","Insurance Claims Court Reporting Expense","Insurance Claims Court Reporting Expense"]
["Insurance Claims Legal Document/Dupl","Insurance Claims Legal Document/Dupl","Insurance Claims Legal Document/Dupl","Insurance Claims Legal Document/Dupl","Insurance Claims Legal Document/Dupl","Insurance Claims Legal Document/Dupl","Insurance Claims Legal Document/Dupl","Insurance Claims Legal Document/Dupl","Insurance Claims Legal Document/Dupl","Insurance Claims Legal Document/Dupl","Insurance Claims Legal Document/Dupl","Insurance Claims Legal Document/Dupl"]
["Insurance Claims Legal expenses","Insurance Claims Legal expenses","Insurance Claims Legal expenses","Insurance Claims Legal expenses","Insurance Claims Legal expenses","Insurance Claims Legal expenses","Insurance Claims Legal expenses","Insurance Claims Legal expenses","Insurance Claims Legal expenses","Insurance Claims Legal expenses","Insurance Claims Legal expenses","Insurance Claims Legal expenses"]
["Insurance Claims Witness Expenses","Insurance Claims Witness Expenses","Insurance Claims Witness Expenses","Insurance Claims Witness Expenses","Insurance Claims Witness Expenses","Insurance Claims Witness Expenses","Insurance Claims Witness Expenses","Insurance Claims Witness Expenses","Insurance Claims Witness Expenses","Insurance Claims Witness Expenses","Insurance Claims Witness Expenses","Insurance Claims Witness Expenses"]
["Internal Property Damage","Internal Property Damage","Internal Property Damage","Internal Property Damage","Internal Property Damage","Internal Property Damage","Internal Property Damage","Internal Property Damage","Internal Property Damage","Internal Property Damage","Internal Property Damage","Internal Property Damage"]
["Internal Property Damage Administrative Expenses","Internal Property Damage Administrative Expenses","Internal Property Damage Administrative Expenses","Internal Property Damage Administrative Expenses","Internal Property Damage Administrative Expenses","Internal Property Damage Administrative Expenses","Internal Property Damage Administrative Expenses","Internal Property Damage Administrative Expenses","Internal Property Damage Administrative Expenses","Internal Property Damage Administrative Expenses","Internal Property Damage Administrative Expenses","Internal Property Damage Administrative Expenses"]
["OPEB - All Employees","OPEB - All Employees","OPEB - All Employees","OPEB - All Employees","OPEB - All Employees","OPEB - All Employees","OPEB - All Employees","OPEB - All Employees","OPEB - All Employees","OPEB - All Employees","OPEB - All Employees","OPEB - All Employees"]
["Patient Centered Outcomes Rsch Institute","Patient Centered Outcomes Rsch Institute","Patient Centered Outcomes Rsch Institute","Patient Centered Outcomes Rsch Institute","Patient Centered Outcomes Rsch Institute","Patient Centered Outcomes Rsch Institute","Patient Centered Outcomes Rsch Institute","Patient Centered Outcomes Rsch Institute","Patient Centered Outcomes Rsch Institute","Patient Centered Outcomes Rsch Institute","Patient Centered Outcomes Rsch Institute","Patient Centered Outcomes Rsch Institute"]
["Personal Injury Claims","Personal Injury Claims","Personal Injury Claims","Personal Injury Claims","Personal Injury Claims","Personal Injury Claims","Personal Injury Claims","Personal Injury Claims","Personal Injury Claims","Personal Injury Claims","Personal Injury Claims","Personal Injury Claims"]
["Pharmaceutical Expenses","Pharmaceutical Expenses","Pharmaceutical Expenses","Pharmaceutical Expenses","Pharmaceutical Expenses","Pharmaceutical Expenses","Pharmaceutical Expenses","Pharmaceutical Expenses","Pharmaceutical Expenses","Pharmaceutical Expenses","Pharmaceutical Expenses","Pharmaceutical Expenses"]
["Pharmacy Claims","Pharmacy Claims","Pharmacy Claims","Pharmacy Claims","Pharmacy Claims","Pharmacy Claims","Pharmacy Claims","Pharmacy Claims","Pharmacy Claims","Pharmacy Claims","Pharmacy Claims","Pharmacy Claims"]
["Ret<65 Actl Clms/Loss Pmts Medical-Consumer Choice","Ret<65 Actl Clms/Loss Pmts Medical-Consumer Choice","Ret<65 Actl Clms/Loss Pmts Medical-Consumer Choice","Ret<65 Actl Clms/Loss Pmts Medical-Consumer Choice","Ret<65 Actl Clms/Loss Pmts Medical-Consumer Choice","Ret<65 Actl Clms/Loss Pmts Medical-Consumer Choice","Ret<65 Actl Clms/Loss Pmts Medical-Consumer Choice","Ret<65 Actl Clms/Loss Pmts Medical-Consumer Choice","Ret<65 Actl Clms/Loss Pmts Medical-Consumer Choice","Ret<65 Actl Clms/Loss Pmts Medical-Consumer Choice","Ret<65 Actl Clms/Loss Pmts Medical-Consumer Choice","Ret<65 Actl Clms/Loss Pmts Medical-Consumer Choice"]
["Ret<65 Actl Clms/Loss Pmts Medical-HDHP","Ret<65 Actl Clms/Loss Pmts Medical-HDHP","Ret<65 Actl Clms/Loss Pmts Medical-HDHP","Ret<65 Actl Clms/Loss Pmts Medical-HDHP","Ret<65 Actl Clms/Loss Pmts Medical-HDHP","Ret<65 Actl Clms/Loss Pmts Medical-HDHP","Ret<65 Actl Clms/Loss Pmts Medical-HDHP","Ret<65 Actl Clms/Loss Pmts Medical-HDHP","Ret<65 Actl Clms/Loss Pmts Medical-HDHP","Ret<65 Actl Clms/Loss Pmts Medical-HDHP","Ret<65 Actl Clms/Loss Pmts Medical-HDHP","Ret<65 Actl Clms/Loss Pmts Medical-HDHP"]
["Ret<65 Pharmacy Clms/Loss Pmts Medical-Cons Choice","Ret<65 Pharmacy Clms/Loss Pmts Medical-Cons Choice","Ret<65 Pharmacy Clms/Loss Pmts Medical-Cons Choice","Ret<65 Pharmacy Clms/Loss Pmts Medical-Cons Choice","Ret<65 Pharmacy Clms/Loss Pmts Medical-Cons Choice","Ret<65 Pharmacy Clms/Loss Pmts Medical-Cons Choice","Ret<65 Pharmacy Clms/Loss Pmts Medical-Cons Choice","Ret<65 Pharmacy Clms/Loss Pmts Medical-Cons Choice","Ret<65 Pharmacy Clms/Loss Pmts Medical-Cons Choice","Ret<65 Pharmacy Clms/Loss Pmts Medical-Cons Choice","Ret<65 Pharmacy Clms/Loss Pmts Medical-Cons Choice","Ret<65 Pharmacy Clms/Loss Pmts Medical-Cons Choice"]
["Ret<65 Pharmacy Clms/Loss Pmts Medical-EPO","Ret<65 Pharmacy Clms/Loss Pmts Medical-EPO","Ret<65 Pharmacy Clms/Loss Pmts Medical-EPO","Ret<65 Pharmacy Clms/Loss Pmts Medical-EPO","Ret<65 Pharmacy Clms/Loss Pmts Medical-EPO","Ret<65 Pharmacy Clms/Loss Pmts Medical-EPO","Ret<65 Pharmacy Clms/Loss Pmts Medical-EPO","Ret<65 Pharmacy Clms/Loss Pmts Medical-EPO","Ret<65 Pharmacy Clms/Loss Pmts Medical-EPO","Ret<65 Pharmacy Clms/Loss Pmts Medical-EPO","Ret<65 Pharmacy Clms/Loss Pmts Medical-EPO","Ret<65 Pharmacy Clms/Loss Pmts Medical-EPO"]
["Ret<65 Pharmacy Clms/Loss Pmts Medical-HDHP","Ret<65 Pharmacy Clms/Loss Pmts Medical-HDHP","Ret<65 Pharmacy Clms/Loss Pmts Medical-HDHP","Ret<65 Pharmacy Clms/Loss Pmts Medical-HDHP","Ret<65 Pharmacy Clms/Loss Pmts Medical-HDHP","Ret<65 Pharmacy Clms/Loss Pmts Medical-HDHP","Ret<65 Pharmacy Clms/Loss Pmts Medical-HDHP","Ret<65 Pharmacy Clms/Loss Pmts Medical-HDHP","Ret<65 Pharmacy Clms/Loss Pmts Medical-HDHP","Ret<65 Pharmacy Clms/Loss Pmts Medical-HDHP","Ret<65 Pharmacy Clms/Loss Pmts Medical-HDHP","Ret<65 Pharmacy Clms/Loss Pmts Medical-HDHP"]
["Ret<65 Pharmacy Clms/Loss Pmts Medical-PPO","Ret<65 Pharmacy Clms/Loss Pmts Medical-PPO","Ret<65 Pharmacy Clms/Loss Pmts Medical-PPO","Ret<65 Pharmacy Clms/Loss Pmts Medical-PPO","Ret<65 Pharmacy Clms/Loss Pmts Medical-PPO","Ret<65 Pharmacy Clms/Loss Pmts Medical-PPO","Ret<65 Pharmacy Clms/Loss Pmts Medical-PPO","Ret<65 Pharmacy Clms/Loss Pmts Medical-PPO","Ret<65 Pharmacy Clms/Loss Pmts Medical-PPO","Ret<65 Pharmacy Clms/Loss Pmts Medical-PPO","Ret<65 Pharmacy Clms/Loss Pmts Medical-PPO","Ret<65 Pharmacy Clms/Loss Pmts Medical-PPO"]
["Ret>65 Actl Clms/Loss Pmts Medical-Consumer Choice","Ret>65 Actl Clms/Loss Pmts Medical-Consumer Choice","Ret>65 Actl Clms/Loss Pmts Medical-Consumer Choice","Ret>65 Actl Clms/Loss Pmts Medical-Consumer Choice","Ret>65 Actl Clms/Loss Pmts Medical-Consumer Choice","Ret>65 Actl Clms/Loss Pmts Medical-Consumer Choice","Ret>65 Actl Clms/Loss Pmts Medical-Consumer Choice","Ret>65 Actl Clms/Loss Pmts Medical-Consumer Choice","Ret>65 Actl Clms/Loss Pmts Medical-Consumer Choice","Ret>65 Actl Clms/Loss Pmts Medical-Consumer Choice","Ret>65 Actl Clms/Loss Pmts Medical-Consumer Choice","Ret>65 Actl Clms/Loss Pmts Medical-Consumer Choice"]
["Ret>65 Actl Clms/Loss Pmts Medical-HDHP","Ret>65 Actl Clms/Loss Pmts Medical-HDHP","Ret>65 Actl Clms/Loss Pmts Medical-HDHP","Ret>65 Actl Clms/Loss Pmts Medical-HDHP","Ret>65 Actl Clms/Loss Pmts Medical-HDHP","Ret>65 Actl Clms/Loss Pmts Medical-HDHP","Ret>65 Actl Clms/Loss Pmts Medical-HDHP","Ret>65 Actl Clms/Loss Pmts Medical-HDHP","Ret>65 Actl Clms/Loss Pmts Medical-HDHP","Ret>65 Actl Clms/Loss Pmts Medical-HDHP","Ret>65 Actl Clms/Loss Pmts Medical-HDHP","Ret>65 Actl Clms/Loss Pmts Medical-HDHP"]
["Ret>65 Pharmacy Clms/Loss Pmts Medical-Cons Choice","Ret>65 Pharmacy Clms/Loss Pmts Medical-Cons Choice","Ret>65 Pharmacy Clms/Loss Pmts Medical-Cons Choice","Ret>65 Pharmacy Clms/Loss Pmts Medical-Cons Choice","Ret>65 Pharmacy Clms/Loss Pmts Medical-Cons Choice","Ret>65 Pharmacy Clms/Loss Pmts Medical-Cons Choice","Ret>65 Pharmacy Clms/Loss Pmts Medical-Cons Choice","Ret>65 Pharmacy Clms/Loss Pmts Medical-Cons Choice","Ret>65 Pharmacy Clms/Loss Pmts Medical-Cons Choice","Ret>65 Pharmacy Clms/Loss Pmts Medical-Cons Choice","Ret>65 Pharmacy Clms/Loss Pmts Medical-Cons Choice","Ret>65 Pharmacy Clms/Loss Pmts Medical-Cons Choice"]
["Ret>65 Pharmacy Clms/Loss Pmts Medical-Drug Progrm","Ret>65 Pharmacy Clms/Loss Pmts Medical-Drug Progrm","Ret>65 Pharmacy Clms/Loss Pmts Medical-Drug Progrm","Ret>65 Pharmacy Clms/Loss Pmts Medical-Drug Progrm","Ret>65 Pharmacy Clms/Loss Pmts Medical-Drug Progrm","Ret>65 Pharmacy Clms/Loss Pmts Medical-Drug Progrm","Ret>65 Pharmacy Clms/Loss Pmts Medical-Drug Progrm","Ret>65 Pharmacy Clms/Loss Pmts Medical-Drug Progrm","Ret>65 Pharmacy Clms/Loss Pmts Medical-Drug Progrm","Ret>65 Pharmacy Clms/Loss Pmts Medical-Drug Progrm","Ret>65 Pharmacy Clms/Loss Pmts Medical-Drug Progrm","Ret>65 Pharmacy Clms/Loss Pmts Medical-Drug Progrm"]
["Ret>65 Pharmacy Clms/Loss Pmts Medical-EPO","Ret>65 Pharmacy Clms/Loss Pmts Medical-EPO","Ret>65 Pharmacy Clms/Loss Pmts Medical-EPO","Ret>65 Pharmacy Clms/Loss Pmts Medical-EPO","Ret>65 Pharmacy Clms/Loss Pmts Medical-EPO","Ret>65 Pharmacy Clms/Loss Pmts Medical-EPO","Ret>65 Pharmacy Clms/Loss Pmts Medical-EPO","Ret>65 Pharmacy Clms/Loss Pmts Medical-EPO","Ret>65 Pharmacy Clms/Loss Pmts Medical-EPO","Ret>65 Pharmacy Clms/Loss Pmts Medical-EPO","Ret>65 Pharmacy Clms/Loss Pmts Medical-EPO","Ret>65 Pharmacy Clms/Loss Pmts Medical-EPO"]
["Ret>65 Pharmacy Clms/Loss Pmts Medical-HDHP","Ret>65 Pharmacy Clms/Loss Pmts Medical-HDHP","Ret>65 Pharmacy Clms/Loss Pmts Medical-HDHP","Ret>65 Pharmacy Clms/Loss Pmts Medical-HDHP","Ret>65 Pharmacy Clms/Loss Pmts Medical-HDHP","Ret>65 Pharmacy Clms/Loss Pmts Medical-HDHP","Ret>65 Pharmacy Clms/Loss Pmts Medical-HDHP","Ret>65 Pharmacy Clms/Loss Pmts Medical-HDHP","Ret>65 Pharmacy Clms/Loss Pmts Medical-HDHP","Ret>65 Pharmacy Clms/Loss Pmts Medical-HDHP","Ret>65 Pharmacy Clms/Loss Pmts Medical-HDHP","Ret>65 Pharmacy Clms/Loss Pmts Medical-HDHP"]
["Ret>65 Pharmacy Clms/Loss Pmts Medical-PPO","Ret>65 Pharmacy Clms/Loss Pmts Medical-PPO","Ret>65 Pharmacy Clms/Loss Pmts Medical-PPO","Ret>65 Pharmacy Clms/Loss Pmts Medical-PPO","Ret>65 Pharmacy Clms/Loss Pmts Medical-PPO","Ret>65 Pharmacy Clms/Loss Pmts Medical-PPO","Ret>65 Pharmacy Clms/Loss Pmts Medical-PPO","Ret>65 Pharmacy Clms/Loss Pmts Medical-PPO","Ret>65 Pharmacy Clms/Loss Pmts Medical-PPO","Ret>65 Pharmacy Clms/Loss Pmts Medical-PPO","Ret>65 Pharmacy Clms/Loss Pmts Medical-PPO","Ret>65 Pharmacy Clms/Loss Pmts Medical-PPO"]
["Retiree < 65 Actual Claims/Loss Pmts Medical-CoEPO","Retiree < 65 Actual Claims/Loss Pmts Medical-CoEPO","Retiree < 65 Actual Claims/Loss Pmts Medical-CoEPO","Retiree < 65 Actual Claims/Loss Pmts Medical-CoEPO","Retiree < 65 Actual Claims/Loss Pmts Medical-CoEPO","Retiree < 65 Actual Claims/Loss Pmts Medical-CoEPO","Retiree < 65 Actual Claims/Loss Pmts Medical-CoEPO","Retiree < 65 Actual Claims/Loss Pmts Medical-CoEPO","Retiree < 65 Actual Claims/Loss Pmts Medical-CoEPO","Retiree < 65 Actual Claims/Loss Pmts Medical-CoEPO","Retiree < 65 Actual Claims/Loss Pmts Medical-CoEPO","Retiree < 65 Actual Claims/Loss Pmts Medical-CoEPO"]
["Retiree < 65 Actual Claims/Loss Pmts Medical-EPO","Retiree < 65 Actual Claims/Loss Pmts Medical-EPO","Retiree < 65 Actual Claims/Loss Pmts Medical-EPO","Retiree < 65 Actual Claims/Loss Pmts Medical-EPO","Retiree < 65 Actual Claims/Loss Pmts Medical-EPO","Retiree < 65 Actual Claims/Loss Pmts Medical-EPO","Retiree < 65 Actual Claims/Loss Pmts Medical-EPO","Retiree < 65 Actual Claims/Loss Pmts Medical-EPO","Retiree < 65 Actual Claims/Loss Pmts Medical-EPO","Retiree < 65 Actual Claims/Loss Pmts Medical-EPO","Retiree < 65 Actual Claims/Loss Pmts Medical-EPO","Retiree < 65 Actual Claims/Loss Pmts Medical-EPO"]
["Retiree < 65 Actual Claims/Loss Pmts Medical-PPO","Retiree < 65 Actual Claims/Loss Pmts Medical-PPO","Retiree < 65 Actual Claims/Loss Pmts Medical-PPO","Retiree < 65 Actual Claims/Loss Pmts Medical-PPO","Retiree < 65 Actual Claims/Loss Pmts Medical-PPO","Retiree < 65 Actual Claims/Loss Pmts Medical-PPO","Retiree < 65 Actual Claims/Loss Pmts Medical-PPO","Retiree < 65 Actual Claims/Loss Pmts Medical-PPO","Retiree < 65 Actual Claims/Loss Pmts Medical-PPO","Retiree < 65 Actual Claims/Loss Pmts Medical-PPO","Retiree < 65 Actual Claims/Loss Pmts Medical-PPO","Retiree < 65 Actual Claims/Loss Pmts Medical-PPO"]
["Retiree >65 Actual Claims/Loss Pmts Medical-CO EPO","Retiree >65 Actual Claims/Loss Pmts Medical-CO EPO","Retiree >65 Actual Claims/Loss Pmts Medical-CO EPO","Retiree >65 Actual Claims/Loss Pmts Medical-CO EPO","Retiree >65 Actual Claims/Loss Pmts Medical-CO EPO","Retiree >65 Actual Claims/Loss Pmts Medical-CO EPO","Retiree >65 Actual Claims/Loss Pmts Medical-CO EPO","Retiree >65 Actual Claims/Loss Pmts Medical-CO EPO","Retiree >65 Actual Claims/Loss Pmts Medical-CO EPO","Retiree >65 Actual Claims/Loss Pmts Medical-CO EPO","Retiree >65 Actual Claims/Loss Pmts Medical-CO EPO","Retiree >65 Actual Claims/Loss Pmts Medical-CO EPO"]
["Retiree >65 Actual Claims/Loss Pmts Medical-EPO","Retiree >65 Actual Claims/Loss Pmts Medical-EPO","Retiree >65 Actual Claims/Loss Pmts Medical-EPO","Retiree >65 Actual Claims/Loss Pmts Medical-EPO","Retiree >65 Actual Claims/Loss Pmts Medical-EPO","Retiree >65 Actual Claims/Loss Pmts Medical-EPO","Retiree >65 Actual Claims/Loss Pmts Medical-EPO","Retiree >65 Actual Claims/Loss Pmts Medical-EPO","Retiree >65 Actual Claims/Loss Pmts Medical-EPO","Retiree >65 Actual Claims/Loss Pmts Medical-EPO","Retiree >65 Actual Claims/Loss Pmts Medical-EPO","Retiree >65 Actual Claims/Loss Pmts Medical-EPO"]
["Retiree >65 Actual Claims/Loss Pmts Medical-PPO","Retiree >65 Actual Claims/Loss Pmts Medical-PPO","Retiree >65 Actual Claims/Loss Pmts Medical-PPO","Retiree >65 Actual Claims/Loss Pmts Medical-PPO","Retiree >65 Actual Claims/Loss Pmts Medical-PPO","Retiree >65 Actual Claims/Loss Pmts Medical-PPO","Retiree >65 Actual Claims/Loss Pmts Medical-PPO","Retiree >65 Actual Claims/Loss Pmts Medical-PPO","Retiree >65 Actual Claims/Loss Pmts Medical-PPO","Retiree >65 Actual Claims/Loss Pmts Medical-PPO","Retiree >65 Actual Claims/Loss Pmts Medical-PPO","Retiree >65 Actual Claims/Loss Pmts Medical-PPO"]
["Retiree- Actual Claims/Loss Pmts Medical-PPO Conv","Retiree- Actual Claims/Loss Pmts Medical-PPO Conv","Retiree- Actual Claims/Loss Pmts Medical-PPO Conv","Retiree- Actual Claims/Loss Pmts Medical-PPO Conv","Retiree- Actual Claims/Loss Pmts Medical-PPO Conv","Retiree- Actual Claims/Loss Pmts Medical-PPO Conv","Retiree- Actual Claims/Loss Pmts Medical-PPO Conv","Retiree- Actual Claims/Loss Pmts Medical-PPO Conv","Retiree- Actual Claims/Loss Pmts Medical-PPO Conv","Retiree- Actual Claims/Loss Pmts Medical-PPO Conv","Retiree- Actual Claims/Loss Pmts Medical-PPO Conv","Retiree- Actual Claims/Loss Pmts Medical-PPO Conv"]
["Retiree<65-Admin-CoEPO","Retiree<65-Admin-CoEPO","Retiree<65-Admin-CoEPO","Retiree<65-Admin-CoEPO","Retiree<65-Admin-CoEPO","Retiree<65-Admin-CoEPO","Retiree<65-Admin-CoEPO","Retiree<65-Admin-CoEPO","Retiree<65-Admin-CoEPO","Retiree<65-Admin-CoEPO","Retiree<65-Admin-CoEPO","Retiree<65-Admin-CoEPO"]
["Retiree<65-Admin-Consumer Choice","Retiree<65-Admin-Consumer Choice","Retiree<65-Admin-Consumer Choice","Retiree<65-Admin-Consumer Choice","Retiree<65-Admin-Consumer Choice","Retiree<65-Admin-Consumer Choice","Retiree<65-Admin-Consumer Choice","Retiree<65-Admin-Consumer Choice","Retiree<65-Admin-Consumer Choice","Retiree<65-Admin-Consumer Choice","Retiree<65-Admin-Consumer Choice","Retiree<65-Admin-Consumer Choice"]
["Retiree<65-Admin-EPO","Retiree<65-Admin-EPO","Retiree<65-Admin-EPO","Retiree<65-Admin-EPO","Retiree<65-Admin-EPO","Retiree<65-Admin-EPO","Retiree<65-Admin-EPO","Retiree<65-Admin-EPO","Retiree<65-Admin-EPO","Retiree<65-Admin-EPO","Retiree<65-Admin-EPO","Retiree<65-Admin-EPO"]
["Retiree<65-Admin-HDHP","Retiree<65-Admin-HDHP","Retiree<65-Admin-HDHP","Retiree<65-Admin-HDHP","Retiree<65-Admin-HDHP","Retiree<65-Admin-HDHP","Retiree<65-Admin-HDHP","Retiree<65-Admin-HDHP","Retiree<65-Admin-HDHP","Retiree<65-Admin-HDHP","Retiree<65-Admin-HDHP","Retiree<65-Admin-HDHP"]
["Retiree<65-Admin-PPO","Retiree<65-Admin-PPO","Retiree<65-Admin-PPO","Retiree<65-Admin-PPO","Retiree<65-Admin-PPO","Retiree<65-Admin-PPO","Retiree<65-Admin-PPO","Retiree<65-Admin-PPO","Retiree<65-Admin-PPO","Retiree<65-Admin-PPO","Retiree<65-Admin-PPO","Retiree<65-Admin-PPO"]
["Retiree>65-Admin-CoEPO","Retiree>65-Admin-CoEPO","Retiree>65-Admin-CoEPO","Retiree>65-Admin-CoEPO","Retiree>65-Admin-CoEPO","Retiree>65-Admin-CoEPO","Retiree>65-Admin-CoEPO","Retiree>65-Admin-CoEPO","Retiree>65-Admin-CoEPO","Retiree>65-Admin-CoEPO","Retiree>65-Admin-CoEPO","Retiree>65-Admin-CoEPO"]
["Retiree>65-Admin-Consumer Choice","Retiree>65-Admin-Consumer Choice","Retiree>65-Admin-Consumer Choice","Retiree>65-Admin-Consumer Choice","Retiree>65-Admin-Consumer Choice","Retiree>65-Admin-Consumer Choice","Retiree>65-Admin-Consumer Choice","Retiree>65-Admin-Consumer Choice","Retiree>65-Admin-Consumer Choice","Retiree>65-Admin-Consumer Choice","Retiree>65-Admin-Consumer Choice","Retiree>65-Admin-Consumer Choice"]
["Retiree>65-Admin-EPO","Retiree>65-Admin-EPO","Retiree>65-Admin-EPO","Retiree>65-Admin-EPO","Retiree>65-Admin-EPO","Retiree>65-Admin-EPO","Retiree>65-Admin-EPO","Retiree>65-Admin-EPO","Retiree>65-Admin-EPO","Retiree>65-Admin-EPO","Retiree>65-Admin-EPO","Retiree>65-Admin-EPO"]
["Retiree>65-Admin-HDHP","Retiree>65-Admin-HDHP","Retiree>65-Admin-HDHP","Retiree>65-Admin-HDHP","Retiree>65-Admin-HDHP","Retiree>65-Admin-HDHP","Retiree>65-Admin-HDHP","Retiree>65-Admin-HDHP","Retiree>65-Admin-HDHP","Retiree>65-Admin-HDHP","Retiree>65-Admin-HDHP","Retiree>65-Admin-HDHP"]
["Retiree>65-Admin-PPO","Retiree>65-Admin-PPO","Retiree>65-Admin-PPO","Retiree>65-Admin-PPO","Retiree>65-Admin-PPO","Retiree>65-Admin-PPO","Retiree>65-Admin-PPO","Retiree>65-Admin-PPO","Retiree>65-Admin-PPO","Retiree>65-Admin-PPO","Retiree>65-Admin-PPO","Retiree>65-Admin-PPO"]
["Retiree>65-Premium Medical-MAPD","Retiree>65-Premium Medical-MAPD","Retiree>65-Premium Medical-MAPD","Retiree>65-Premium Medical-MAPD","Retiree>65-Premium Medical-MAPD","Retiree>65-Premium Medical-MAPD","Retiree>65-Premium Medical-MAPD","Retiree>65-Premium Medical-MAPD","Retiree>65-Premium Medical-MAPD","Retiree>65-Premium Medical-MAPD","Retiree>65-Premium Medical-MAPD","Retiree>65-Premium Medical-MAPD"]
["Retiree-Actual Claims/Loss Pmts Medical-CoEPO Conv","Retiree-Actual Claims/Loss Pmts Medical-CoEPO Conv","Retiree-Actual Claims/Loss Pmts Medical-CoEPO Conv","Retiree-Actual Claims/Loss Pmts Medical-CoEPO Conv","Retiree-Actual Claims/Loss Pmts Medical-CoEPO Conv","Retiree-Actual Claims/Loss Pmts Medical-CoEPO Conv","Retiree-Actual Claims/Loss Pmts Medical-CoEPO Conv","Retiree-Actual Claims/Loss Pmts Medical-CoEPO Conv","Retiree-Actual Claims/Loss Pmts Medical-CoEPO Conv","Retiree-Actual Claims/Loss Pmts Medical-CoEPO Conv","Retiree-Actual Claims/Loss Pmts Medical-CoEPO Conv","Retiree-Actual Claims/Loss Pmts Medical-CoEPO Conv"]
["Retiree-Actual Claims/Loss Pmts Medical-EPO-Conv","Retiree-Actual Claims/Loss Pmts Medical-EPO-Conv","Retiree-Actual Claims/Loss Pmts Medical-EPO-Conv","Retiree-Actual Claims/Loss Pmts Medical-EPO-Conv","Retiree-Actual Claims/Loss Pmts Medical-EPO-Conv","Retiree-Actual Claims/Loss Pmts Medical-EPO-Conv","Retiree-Actual Claims/Loss Pmts Medical-EPO-Conv","Retiree-Actual Claims/Loss Pmts Medical-EPO-Conv","Retiree-Actual Claims/Loss Pmts Medical-EPO-Conv","Retiree-Actual Claims/Loss Pmts Medical-EPO-Conv","Retiree-Actual Claims/Loss Pmts Medical-EPO-Conv","Retiree-Actual Claims/Loss Pmts Medical-EPO-Conv"]
["Retiree-Admin-Conversion","Retiree-Admin-Conversion","Retiree-Admin-Conversion","Retiree-Admin-Conversion","Retiree-Admin-Conversion","Retiree-Admin-Conversion","Retiree-Admin-Conversion","Retiree-Admin-Conversion","Retiree-Admin-Conversion","Retiree-Admin-Conversion","Retiree-Admin-Conversion","Retiree-Admin-Conversion"]
["Third Party Attorney Fee Claims","Third Party Attorney Fee Claims","Third Party Attorney Fee Claims","Third Party Attorney Fee Claims","Third Party Attorney Fee Claims","Third Party Attorney Fee Claims","Third Party Attorney Fee Claims","Third Party Attorney Fee Claims","Third Party Attorney Fee Claims","Third Party Attorney Fee Claims","Third Party Attorney Fee Claims","Third Party Attorney Fee Claims"]
["Third Party Auto Claims","Third Party Auto Claims","Third Party Auto Claims","Third Party Auto Claims","Third Party Auto Claims","Third Party Auto Claims","Third Party Auto Claims","Third Party Auto Claims","Third Party Auto Claims","Third Party Auto Claims","Third Party Auto Claims","Third Party Auto Claims"]
["Third Party Property Damage","Third Party Property Damage","Third Party Property Damage","Third Party Property Damage","Third Party Property Damage","Third Party Property Damage","Third Party Property Damage","Third Party Property Damage","Third Party Property Damage","Third Party Property Damage","Third Party Property Damage","Third Party Property Damage"]
["Third Party Property Damage-Starflight","Third Party Property Damage-Starflight","Third Party Property Damage-Starflight","Third Party Property Damage-Starflight","Third Party Property Damage-Starflight","Third Party Property Damage-Starflight","Third Party Property Damage-Starflight","Third Party Property Damage-Starflight","Third Party Property Damage-Starflight","Third Party Property Damage-Starflight","Third Party Property Damage-Starflight","Third Party Property Damage-Starflight"]
["Unemployment Insurance Actual Claims","Unemployment Insurance Actual Claims","Unemployment Insurance Actual Claims","Unemployment Insurance Actual Claims","Unemployment Insurance Actual Claims","Unemployment Insurance Actual Claims","Unemployment Insurance Actual Claims","Unemployment Insurance Actual Claims","Unemployment Insurance Actual Claims","Unemployment Insurance Actual Claims","Unemployment Insurance Actual Claims","Unemployment Insurance Actual Claims"]
["Worker's Comp Claims-Active Employee","Worker's Comp Claims-Active Employee","Worker's Comp Claims-Active Employee","Worker's Comp Claims-Active Employee","Worker's Comp Claims-Active Employee","Worker's Comp Claims-Active Employee","Worker's Comp Claims-Active Employee","Worker's Comp Claims-Active Employee","Worker's Comp Claims-Active Employee","Worker's Comp Claims-Active Employee","Worker's Comp Claims-Active Employee","Worker's Comp Claims-Active Employee"]
["Worker's Comp-Medical Bill Auditing","Worker's Comp-Medical Bill Auditing","Worker's Comp-Medical Bill Auditing","Worker's Comp-Medical Bill Auditing","Worker's Comp-Medical Bill Auditing","Worker's Comp-Medical Bill Auditing","Worker's Comp-Medical Bill Auditing","Worker's Comp-Medical Bill Auditing","Worker's Comp-Medical Bill Auditing","Worker's Comp-Medical Bill Auditing","Worker's Comp-Medical Bill Auditing","Worker's Comp-Medical Bill Auditing"]
["Worker's Comp-Third Party Adm","Worker's Comp-Third Party Adm","Worker's Comp-Third Party Adm","Worker's Comp-Third Party Adm","Worker's Comp-Third Party Adm","Worker's Comp-Third Party Adm","Worker's Comp-Third Party Adm","Worker's Comp-Third Party Adm","Worker's Comp-Third Party Adm","Worker's Comp-Third Party Adm","Worker's Comp-Third Party Adm","Worker's Comp-Third Party Adm"]
["Agency Contracts - Conversion","Agency Contracts - Conversion","Agency Contracts - Conversion","Agency Contracts - Conversion","Agency Contracts - Conversion","Agency Contracts - Conversion","Agency Contracts - Conversion","Agency Contracts - Conversion","Agency Contracts - Conversion","Agency Contracts - Conversion","Agency Contracts - Conversion","Agency Contracts - Conversion"]
["Appropriations to Other Public Entities","Appropriations to Other Public Entities","Appropriations to Other Public Entities","Appropriations to Other Public Entities","Appropriations to Other Public Entities","Appropriations to Other Public Entities","Appropriations to Other Public Entities","Appropriations to Other Public Entities","Appropriations to Other Public Entities","Appropriations to Other Public Entities","Appropriations to Other Public Entities","Appropriations to Other Public Entities"]
["PSF Distribution to ISDs","PSF Distribution to ISDs","PSF Distribution to ISDs","PSF Distribution to ISDs","PSF Distribution to ISDs","PSF Distribution to ISDs","PSF Distribution to ISDs","PSF Distribution to ISDs","PSF Distribution to ISDs","PSF Distribution to ISDs","PSF Distribution to ISDs","PSF Distribution to ISDs"]
["Subrecipient - Purchased Services - Conversion","Subrecipient - Purchased Services - Conversion","Subrecipient - Purchased Services - Conversion","Subrecipient - Purchased Services - Conversion","Subrecipient - Purchased Services - Conversion","Subrecipient - Purchased Services - Conversion","Subrecipient - Purchased Services - Conversion","Subrecipient - Purchased Services - Conversion","Subrecipient - Purchased Services - Conversion","Subrecipient - Purchased Services - Conversion","Subrecipient - Purchased Services - Conversion","Subrecipient - Purchased Services - Conversion"]
["Subrecipient-Operating Expenses","Subrecipient-Operating Expenses","Subrecipient-Operating Expenses","Subrecipient-Operating Expenses","Subrecipient-Operating Expenses","Subrecipient-Operating Expenses","Subrecipient-Operating Expenses","Subrecipient-Operating Expenses","Subrecipient-Operating Expenses","Subrecipient-Operating Expenses","Subrecipient-Operating Expenses","Subrecipient-Operating Expenses"]
["Subrecipient-Other ","Subrecipient-Other ","Subrecipient-Other ","Subrecipient-Other ","Subrecipient-Other ","Subrecipient-Other ","Subrecipient-Other ","Subrecipient-Other ","Subrecipient-Other ","Subrecipient-Other ","Subrecipient-Other ","Subrecipient-Other "]
["Subrecipient-Overtime","Subrecipient-Overtime","Subrecipient-Overtime","Subrecipient-Overtime","Subrecipient-Overtime","Subrecipient-Overtime","Subrecipient-Overtime","Subrecipient-Overtime","Subrecipient-Overtime","Subrecipient-Overtime","Subrecipient-Overtime","Subrecipient-Overtime"]
["Subrecipient-Salaries","Subrecipient-Salaries","Subrecipient-Salaries","Subrecipient-Salaries","Subrecipient-Salaries","Subrecipient-Salaries","Subrecipient-Salaries","Subrecipient-Salaries","Subrecipient-Salaries","Subrecipient-Salaries","Subrecipient-Salaries","Subrecipient-Salaries"]
["Subrecipient-Travel","Subrecipient-Travel","Subrecipient-Travel","Subrecipient-Travel","Subrecipient-Travel","Subrecipient-Travel","Subrecipient-Travel","Subrecipient-Travel","Subrecipient-Travel","Subrecipient-Travel","Subrecipient-Travel","Subrecipient-Travel"]
["Arbitrage Rebate Payment","Arbitrage Rebate Payment","Arbitrage Rebate Payment","Arbitrage Rebate Payment","Arbitrage Rebate Payment","Arbitrage Rebate Payment","Arbitrage Rebate Payment","Arbitrage Rebate Payment","Arbitrage Rebate Payment","Arbitrage Rebate Payment","Arbitrage Rebate Payment","Arbitrage Rebate Payment"]
["County Contribution to Grants","County Contribution to Grants","County Contribution to Grants","County Contribution to Grants","County Contribution to Grants","County Contribution to Grants","County Contribution to Grants","County Contribution to Grants","County Contribution to Grants","County Contribution to Grants","County Contribution to Grants","County Contribution to Grants"]
["Inmate Trust Fund Distribution","Inmate Trust Fund Distribution","Inmate Trust Fund Distribution","Inmate Trust Fund Distribution","Inmate Trust Fund Distribution","Inmate Trust Fund Distribution","Inmate Trust Fund Distribution","Inmate Trust Fund Distribution","Inmate Trust Fund Distribution","Inmate Trust Fund Distribution","Inmate Trust Fund Distribution","Inmate Trust Fund Distribution"]
["Interest Expense","Interest Expense","Interest Expense","Interest Expense","Interest Expense","Interest Expense","Interest Expense","Interest Expense","Interest Expense","Interest Expense","Interest Expense","Interest Expense"]
["Licenses & Permits","Licenses & Permits","Licenses & Permits","Licenses & Permits","Licenses & Permits","Licenses & Permits","Licenses & Permits","Licenses & Permits","Licenses & Permits","Licenses & Permits","Licenses & Permits","Licenses & Permits"]
["Other Miscellaneous Expenditure","Other Miscellaneous Expenditure","Other Miscellaneous Expenditure","Other Miscellaneous Expenditure","Other Miscellaneous Expenditure","Other Miscellaneous Expenditure","Other Miscellaneous Expenditure","Other Miscellaneous Expenditure","Other Miscellaneous Expenditure","Other Miscellaneous Expenditure","Other Miscellaneous Expenditure","Other Miscellaneous Expenditure"]
["Prior Year Expenditures/Revenues","Prior Year Expenditures/Revenues","Prior Year Expenditures/Revenues","Prior Year Expenditures/Revenues","Prior Year Expenditures/Revenues","Prior Year Expenditures/Revenues","Prior Year Expenditures/Revenues","Prior Year Expenditures/Revenues","Prior Year Expenditures/Revenues","Prior Year Expenditures/Revenues","Prior Year Expenditures/Revenues","Prior Year Expenditures/Revenues"]
["Property Taxes","Property Taxes","Property Taxes","Property Taxes","Property Taxes","Property Taxes","Property Taxes","Property Taxes","Property Taxes","Property Taxes","Property Taxes","Property Taxes"]
["Refunds Exp","Refunds Exp","Refunds Exp","Refunds Exp","Refunds Exp","Refunds Exp","Refunds Exp","Refunds Exp","Refunds Exp","Refunds Exp","Refunds Exp","Refunds Exp"]
["County Contribution to Grants","County Contribution to Grants","County Contribution to Grants","County Contribution to Grants","County Contribution to Grants","County Contribution to Grants","County Contribution to Grants","County Contribution to Grants","County Contribution to Grants","County Contribution to Grants","County Contribution to Grants","County Contribution to Grants"]
["Fund Fin Exp Offset-Other-Operating Tran","Fund Fin Exp Offset-Other-Operating Tran","Fund Fin Exp Offset-Other-Operating Tran","Fund Fin Exp Offset-Other-Operating Tran","Fund Fin Exp Offset-Other-Operating Tran","Fund Fin Exp Offset-Other-Operating Tran","Fund Fin Exp Offset-Other-Operating Tran","Fund Fin Exp Offset-Other-Operating Tran","Fund Fin Exp Offset-Other-Operating Tran","Fund Fin Exp Offset-Other-Operating Tran","Fund Fin Exp Offset-Other-Operating Tran","Fund Fin Exp Offset-Other-Operating Tran"]
["Fund Fin Rev Offset-Transfers Out","Fund Fin Rev Offset-Transfers Out","Fund Fin Rev Offset-Transfers Out","Fund Fin Rev Offset-Transfers Out","Fund Fin Rev Offset-Transfers Out","Fund Fin Rev Offset-Transfers Out","Fund Fin Rev Offset-Transfers Out","Fund Fin Rev Offset-Transfers Out","Fund Fin Rev Offset-Transfers Out","Fund Fin Rev Offset-Transfers Out","Fund Fin Rev Offset-Transfers Out","Fund Fin Rev Offset-Transfers Out"]
["Transfers to After School Youth Enrchmt","Transfers to After School Youth Enrchmt","Transfers to After School Youth Enrchmt","Transfers to After School Youth Enrchmt","Transfers to After School Youth Enrchmt","Transfers to After School Youth Enrchmt","Transfers to After School Youth Enrchmt","Transfers to After School Youth Enrchmt","Transfers to After School Youth Enrchmt","Transfers to After School Youth Enrchmt","Transfers to After School Youth Enrchmt","Transfers to After School Youth Enrchmt"]
["Transfers to Balcones Canyonland Pres Fd","Transfers to Balcones Canyonland Pres Fd","Transfers to Balcones Canyonland Pres Fd","Transfers to Balcones Canyonland Pres Fd","Transfers to Balcones Canyonland Pres Fd","Transfers to Balcones Canyonland Pres Fd","Transfers to Balcones Canyonland Pres Fd","Transfers to Balcones Canyonland Pres Fd","Transfers to Balcones Canyonland Pres Fd","Transfers to Balcones Canyonland Pres Fd","Transfers to Balcones Canyonland Pres Fd","Transfers to Balcones Canyonland Pres Fd"]
["Transfers to Child Welfare Jury Donations Fund","Transfers to Child Welfare Jury Donations Fund","Transfers to Child Welfare Jury Donations Fund","Transfers to Child Welfare Jury Donations Fund","Transfers to Child Welfare Jury Donations Fund","Transfers to Child Welfare Jury Donations Fund","Transfers to Child Welfare Jury Donations Fund","Transfers to Child Welfare Jury Donations Fund","Transfers to Child Welfare Jury Donations Fund","Transfers to Child Welfare Jury Donations Fund","Transfers to Child Welfare Jury Donations Fund","Transfers to Child Welfare Jury Donations Fund"]
["Transfers to Consolidated Debt Service Fd","Transfers to Consolidated Debt Service Fd","Transfers to Consolidated Debt Service Fd","Transfers to Consolidated Debt Service Fd","Transfers to Consolidated Debt Service Fd","Transfers to Consolidated Debt Service Fd","Transfers to Consolidated Debt Service Fd","Transfers to Consolidated Debt Service Fd","Transfers to Consolidated Debt Service Fd","Transfers to Consolidated Debt Service Fd","Transfers to Consolidated Debt Service Fd","Transfers to Consolidated Debt Service Fd"]
["Transfers to Contractual Capital Proj Fd","Transfers to Contractual Capital Proj Fd","Transfers to Contractual Capital Proj Fd","Transfers to Contractual Capital Proj Fd","Transfers to Contractual Capital Proj Fd","Transfers to Contractual Capital Proj Fd","Transfers to Contractual Capital Proj Fd","Transfers to Contractual Capital Proj Fd","Transfers to Contractual Capital Proj Fd","Transfers to Contractual Capital Proj Fd","Transfers to Contractual Capital Proj Fd","Transfers to Contractual Capital Proj Fd"]
["Transfers to Courthouse Security Fd","Transfers to Courthouse Security Fd","Transfers to Courthouse Security Fd","Transfers to Courthouse Security Fd","Transfers to Courthouse Security Fd","Transfers to Courthouse Security Fd","Transfers to Courthouse Security Fd","Transfers to Courthouse Security Fd","Transfers to Courthouse Security Fd","Transfers to Courthouse Security Fd","Transfers to Courthouse Security Fd","Transfers to Courthouse Security Fd"]
["Transfers to Debt Service-Taxable Fd","Transfers to Debt Service-Taxable Fd","Transfers to Debt Service-Taxable Fd","Transfers to Debt Service-Taxable Fd","Transfers to Debt Service-Taxable Fd","Transfers to Debt Service-Taxable Fd","Transfers to Debt Service-Taxable Fd","Transfers to Debt Service-Taxable Fd","Transfers to Debt Service-Taxable Fd","Transfers to Debt Service-Taxable Fd","Transfers to Debt Service-Taxable Fd","Transfers to Debt Service-Taxable Fd"]
["Transfers to Dispute Resolution Center Fd","Transfers to Dispute Resolution Center Fd","Transfers to Dispute Resolution Center Fd","Transfers to Dispute Resolution Center Fd","Transfers to Dispute Resolution Center Fd","Transfers to Dispute Resolution Center Fd","Transfers to Dispute Resolution Center Fd","Transfers to Dispute Resolution Center Fd","Transfers to Dispute Resolution Center Fd","Transfers to Dispute Resolution Center Fd","Transfers to Dispute Resolution Center Fd","Transfers to Dispute Resolution Center Fd"]
["Transfers to Employee Health Benefit Fd","Transfers to Employee Health Benefit Fd","Transfers to Employee Health Benefit Fd","Transfers to Employee Health Benefit Fd","Transfers to Employee Health Benefit Fd","Transfers to Employee Health Benefit Fd","Transfers to Employee Health Benefit Fd","Transfers to Employee Health Benefit Fd","Transfers to Employee Health Benefit Fd","Transfers to Employee Health Benefit Fd","Transfers to Employee Health Benefit Fd","Transfers to Employee Health Benefit Fd"]
["Transfers to General Fd","Transfers to General Fd","Transfers to General Fd","Transfers to General Fd","Transfers to General Fd","Transfers to General Fd","Transfers to General Fd","Transfers to General Fd","Transfers to General Fd","Transfers to General Fd","Transfers to General Fd","Transfers to General Fd"]
["Transfers to Juv Justice Alternative Edu","Transfers to Juv Justice Alternative Edu","Transfers to Juv Justice Alternative Edu","Transfers to Juv Justice Alternative Edu","Transfers to Juv Justice Alternative Edu","Transfers to Juv Justice Alternative Edu","Transfers to Juv Justice Alternative Edu","Transfers to Juv Justice Alternative Edu","Transfers to Juv Justice Alternative Edu","Transfers to Juv Justice Alternative Edu","Transfers to Juv Justice Alternative Edu","Transfers to Juv Justice Alternative Edu"]
["Transfers to Juvenile Deferred Prosecution Fd","Transfers to Juvenile Deferred Prosecution Fd","Transfers to Juvenile Deferred Prosecution Fd","Transfers to Juvenile Deferred Prosecution Fd","Transfers to Juvenile Deferred Prosecution Fd","Transfers to Juvenile Deferred Prosecution Fd","Transfers to Juvenile Deferred Prosecution Fd","Transfers to Juvenile Deferred Prosecution Fd","Transfers to Juvenile Deferred Prosecution Fd","Transfers to Juvenile Deferred Prosecution Fd","Transfers to Juvenile Deferred Prosecution Fd","Transfers to Juvenile Deferred Prosecution Fd"]
["Transfers to OOG Criminal Justice Division-StateFd","Transfers to OOG Criminal Justice Division-StateFd","Transfers to OOG Criminal Justice Division-StateFd","Transfers to OOG Criminal Justice Division-StateFd","Transfers to OOG Criminal Justice Division-StateFd","Transfers to OOG Criminal Justice Division-StateFd","Transfers to OOG Criminal Justice Division-StateFd","Transfers to OOG Criminal Justice Division-StateFd","Transfers to OOG Criminal Justice Division-StateFd","Transfers to OOG Criminal Justice Division-StateFd","Transfers to OOG Criminal Justice Division-StateFd","Transfers to OOG Criminal Justice Division-StateFd"]
["Transfers to Other Funds","Transfers to Other Funds","Transfers to Other Funds","Transfers to Other Funds","Transfers to Other Funds","Transfers to Other Funds","Transfers to Other Funds","Transfers to Other Funds","Transfers to Other Funds","Transfers to Other Funds","Transfers to Other Funds","Transfers to Other Funds"]
["Transfers to Professional Prosecuters Fd","Transfers to Professional Prosecuters Fd","Transfers to Professional Prosecuters Fd","Transfers to Professional Prosecuters Fd","Transfers to Professional Prosecuters Fd","Transfers to Professional Prosecuters Fd","Transfers to Professional Prosecuters Fd","Transfers to Professional Prosecuters Fd","Transfers to Professional Prosecuters Fd","Transfers to Professional Prosecuters Fd","Transfers to Professional Prosecuters Fd","Transfers to Professional Prosecuters Fd"]
["Transfers to Rd and Bridge Fd","Transfers to Rd and Bridge Fd","Transfers to Rd and Bridge Fd","Transfers to Rd and Bridge Fd","Transfers to Rd and Bridge Fd","Transfers to Rd and Bridge Fd","Transfers to Rd and Bridge Fd","Transfers to Rd and Bridge Fd","Transfers to Rd and Bridge Fd","Transfers to Rd and Bridge Fd","Transfers to Rd and Bridge Fd","Transfers to Rd and Bridge Fd"]
["Transfers to Rec Mgmt & Pres Fd","Transfers to Rec Mgmt & Pres Fd","Transfers to Rec Mgmt & Pres Fd","Transfers to Rec Mgmt & Pres Fd","Transfers to Rec Mgmt & Pres Fd","Transfers to Rec Mgmt & Pres Fd","Transfers to Rec Mgmt & Pres Fd","Transfers to Rec Mgmt & Pres Fd","Transfers to Rec Mgmt & Pres Fd","Transfers to Rec Mgmt & Pres Fd","Transfers to Rec Mgmt & Pres Fd","Transfers to Rec Mgmt & Pres Fd"]
["Transfers to Refunding Debt Service Fd","Transfers to Refunding Debt Service Fd","Transfers to Refunding Debt Service Fd","Transfers to Refunding Debt Service Fd","Transfers to Refunding Debt Service Fd","Transfers to Refunding Debt Service Fd","Transfers to Refunding Debt Service Fd","Transfers to Refunding Debt Service Fd","Transfers to Refunding Debt Service Fd","Transfers to Refunding Debt Service Fd","Transfers to Refunding Debt Service Fd","Transfers to Refunding Debt Service Fd"]
["Transfers to Self Insurance Fd","Transfers to Self Insurance Fd","Transfers to Self Insurance Fd","Transfers to Self Insurance Fd","Transfers to Self Insurance Fd","Transfers to Self Insurance Fd","Transfers to Self Insurance Fd","Transfers to Self Insurance Fd","Transfers to Self Insurance Fd","Transfers to Self Insurance Fd","Transfers to Self Insurance Fd","Transfers to Self Insurance Fd"]
["Transfers to Texas Dept of Transportation Fd","Transfers to Texas Dept of Transportation Fd","Transfers to Texas Dept of Transportation Fd","Transfers to Texas Dept of Transportation Fd","Transfers to Texas Dept of Transportation Fd","Transfers to Texas Dept of Transportation Fd","Transfers to Texas Dept of Transportation Fd","Transfers to Texas Dept of Transportation Fd","Transfers to Texas Dept of Transportation Fd","Transfers to Texas Dept of Transportation Fd","Transfers to Texas Dept of Transportation Fd","Transfers to Texas Dept of Transportation Fd"]
["Transfers to Texas Water Dev Board-Fed Cap Fd","Transfers to Texas Water Dev Board-Fed Cap Fd","Transfers to Texas Water Dev Board-Fed Cap Fd","Transfers to Texas Water Dev Board-Fed Cap Fd","Transfers to Texas Water Dev Board-Fed Cap Fd","Transfers to Texas Water Dev Board-Fed Cap Fd","Transfers to Texas Water Dev Board-Fed Cap Fd","Transfers to Texas Water Dev Board-Fed Cap Fd","Transfers to Texas Water Dev Board-Fed Cap Fd","Transfers to Texas Water Dev Board-Fed Cap Fd","Transfers to Texas Water Dev Board-Fed Cap Fd","Transfers to Texas Water Dev Board-Fed Cap Fd"]
["Transfers to Travis Co Bee Cave Rd Dist 1 Fd","Transfers to Travis Co Bee Cave Rd Dist 1 Fd","Transfers to Travis Co Bee Cave Rd Dist 1 Fd","Transfers to Travis Co Bee Cave Rd Dist 1 Fd","Transfers to Travis Co Bee Cave Rd Dist 1 Fd","Transfers to Travis Co Bee Cave Rd Dist 1 Fd","Transfers to Travis Co Bee Cave Rd Dist 1 Fd","Transfers to Travis Co Bee Cave Rd Dist 1 Fd","Transfers to Travis Co Bee Cave Rd Dist 1 Fd","Transfers to Travis Co Bee Cave Rd Dist 1 Fd","Transfers to Travis Co Bee Cave Rd Dist 1 Fd","Transfers to Travis Co Bee Cave Rd Dist 1 Fd"]
["Transfers to Truancy Court Fd","Transfers to Truancy Court Fd","Transfers to Truancy Court Fd","Transfers to Truancy Court Fd","Transfers to Truancy Court Fd","Transfers to Truancy Court Fd","Transfers to Truancy Court Fd","Transfers to Truancy Court Fd","Transfers to Truancy Court Fd","Transfers to Truancy Court Fd","Transfers to Truancy Court Fd","Transfers to Truancy Court Fd"]
["Transfers to Tx Dpt of Crm Js Cmty Justice Asst Di","Transfers to Tx Dpt of Crm Js Cmty Justice Asst Di","Transfers to Tx Dpt of Crm Js Cmty Justice Asst Di","Transfers to Tx Dpt of Crm Js Cmty Justice Asst Di","Transfers to Tx Dpt of Crm Js Cmty Justice Asst Di","Transfers to Tx Dpt of Crm Js Cmty Justice Asst Di","Transfers to Tx Dpt of Crm Js Cmty Justice Asst Di","Transfers to Tx Dpt of Crm Js Cmty Justice Asst Di","Transfers to Tx Dpt of Crm Js Cmty Justice Asst Di","Transfers to Tx Dpt of Crm Js Cmty Justice Asst Di","Transfers to Tx Dpt of Crm Js Cmty Justice Asst Di","Transfers to Tx Dpt of Crm Js Cmty Justice Asst Di"]
["Transfers to Tx Exposition and Heritage","Transfers to Tx Exposition and Heritage","Transfers to Tx Exposition and Heritage","Transfers to Tx Exposition and Heritage","Transfers to Tx Exposition and Heritage","Transfers to Tx Exposition and Heritage","Transfers to Tx Exposition and Heritage","Transfers to Tx Exposition and Heritage","Transfers to Tx Exposition and Heritage","Transfers to Tx Exposition and Heritage","Transfers to Tx Exposition and Heritage","Transfers to Tx Exposition and Heritage"]
["Transfers to Voter Registration Fd","Transfers to Voter Registration Fd","Transfers to Voter Registration Fd","Transfers to Voter Registration Fd","Transfers to Voter Registration Fd","Transfers to Voter Registration Fd","Transfers to Voter Registration Fd","Transfers to Voter Registration Fd","Transfers to Voter Registration Fd","Transfers to Voter Registration Fd","Transfers to Voter Registration Fd","Transfers to Voter Registration Fd"]
["Transfers-Grant Match - Conversion","Transfers-Grant Match - Conversion","Transfers-Grant Match - Conversion","Transfers-Grant Match - Conversion","Transfers-Grant Match - Conversion","Transfers-Grant Match - Conversion","Transfers-Grant Match - Conversion","Transfers-Grant Match - Conversion","Transfers-Grant Match - Conversion","Transfers-Grant Match - Conversion","Transfers-Grant Match - Conversion","Transfers-Grant Match - Conversion"]
["Trfrs to Perm Imprvmnt Bds Series 2000-Parks","Trfrs to Perm Imprvmnt Bds Series 2000-Parks","Trfrs to Perm Imprvmnt Bds Series 2000-Parks","Trfrs to Perm Imprvmnt Bds Series 2000-Parks","Trfrs to Perm Imprvmnt Bds Series 2000-Parks","Trfrs to Perm Imprvmnt Bds Series 2000-Parks","Trfrs to Perm Imprvmnt Bds Series 2000-Parks","Trfrs to Perm Imprvmnt Bds Series 2000-Parks","Trfrs to Perm Imprvmnt Bds Series 2000-Parks","Trfrs to Perm Imprvmnt Bds Series 2000-Parks","Trfrs to Perm Imprvmnt Bds Series 2000-Parks","Trfrs to Perm Imprvmnt Bds Series 2000-Parks"]
["Trfrs to UnLtd Tax Rd Bds Series 1998A","Trfrs to UnLtd Tax Rd Bds Series 1998A","Trfrs to UnLtd Tax Rd Bds Series 1998A","Trfrs to UnLtd Tax Rd Bds Series 1998A","Trfrs to UnLtd Tax Rd Bds Series 1998A","Trfrs to UnLtd Tax Rd Bds Series 1998A","Trfrs to UnLtd Tax Rd Bds Series 1998A","Trfrs to UnLtd Tax Rd Bds Series 1998A","Trfrs to UnLtd Tax Rd Bds Series 1998A","Trfrs to UnLtd Tax Rd Bds Series 1998A","Trfrs to UnLtd Tax Rd Bds Series 1998A","Trfrs to UnLtd Tax Rd Bds Series 1998A"]
["Trfrs to UnLtd Tax Rd Bds Series 1999","Trfrs to UnLtd Tax Rd Bds Series 1999","Trfrs to UnLtd Tax Rd Bds Series 1999","Trfrs to UnLtd Tax Rd Bds Series 1999","Trfrs to UnLtd Tax Rd Bds Series 1999","Trfrs to UnLtd Tax Rd Bds Series 1999","Trfrs to UnLtd Tax Rd Bds Series 1999","Trfrs to UnLtd Tax Rd Bds Series 1999","Trfrs to UnLtd Tax Rd Bds Series 1999","Trfrs to UnLtd Tax Rd Bds Series 1999","Trfrs to UnLtd Tax Rd Bds Series 1999","Trfrs to UnLtd Tax Rd Bds Series 1999"]
["Trfrs to UnLtd Tax Rd Bds Series 2000","Trfrs to UnLtd Tax Rd Bds Series 2000","Trfrs to UnLtd Tax Rd Bds Series 2000","Trfrs to UnLtd Tax Rd Bds Series 2000","Trfrs to UnLtd Tax Rd Bds Series 2000","Trfrs to UnLtd Tax Rd Bds Series 2000","Trfrs to UnLtd Tax Rd Bds Series 2000","Trfrs to UnLtd Tax Rd Bds Series 2000","Trfrs to UnLtd Tax Rd Bds Series 2000","Trfrs to UnLtd Tax Rd Bds Series 2000","Trfrs to UnLtd Tax Rd Bds Series 2000","Trfrs to UnLtd Tax Rd Bds Series 2000"]
["Trfrs to UnLtd Tax Rd Bds Series 2001","Trfrs to UnLtd Tax Rd Bds Series 2001","Trfrs to UnLtd Tax Rd Bds Series 2001","Trfrs to UnLtd Tax Rd Bds Series 2001","Trfrs to UnLtd Tax Rd Bds Series 2001","Trfrs to UnLtd Tax Rd Bds Series 2001","Trfrs to UnLtd Tax Rd Bds Series 2001","Trfrs to UnLtd Tax Rd Bds Series 2001","Trfrs to UnLtd Tax Rd Bds Series 2001","Trfrs to UnLtd Tax Rd Bds Series 2001","Trfrs to UnLtd Tax Rd Bds Series 2001","Trfrs to UnLtd Tax Rd Bds Series 2001"]
["Actuarial Services","Actuarial Services","Actuarial Services","Actuarial Services","Actuarial Services","Actuarial Services","Actuarial Services","Actuarial Services","Actuarial Services","Actuarial Services","Actuarial Services","Actuarial Services"]
["Administration Costs-IDC Posts","Administration Costs-IDC Posts","Administration Costs-IDC Posts","Administration Costs-IDC Posts","Administration Costs-IDC Posts","Administration Costs-IDC Posts","Administration Costs-IDC Posts","Administration Costs-IDC Posts","Administration Costs-IDC Posts","Administration Costs-IDC Posts","Administration Costs-IDC Posts","Administration Costs-IDC Posts"]
["Administration Costs-Manual","Administration Costs-Manual","Administration Costs-Manual","Administration Costs-Manual","Administration Costs-Manual","Administration Costs-Manual","Administration Costs-Manual","Administration Costs-Manual","Administration Costs-Manual","Administration Costs-Manual","Administration Costs-Manual","Administration Costs-Manual"]
["Advertising/Public Notification Services","Advertising/Public Notification Services","Advertising/Public Notification Services","Advertising/Public Notification Services","Advertising/Public Notification Services","Advertising/Public Notification Services","Advertising/Public Notification Services","Advertising/Public Notification Services","Advertising/Public Notification Services","Advertising/Public Notification Services","Advertising/Public Notification Services","Advertising/Public Notification Services"]
["Agency Dues and Memberships","Agency Dues and Memberships","Agency Dues and Memberships","Agency Dues and Memberships","Agency Dues and Memberships","Agency Dues and Memberships","Agency Dues and Memberships","Agency Dues and Memberships","Agency Dues and Memberships","Agency Dues and Memberships","Agency Dues and Memberships","Agency Dues and Memberships"]
["Air Transport Services","Air Transport Services","Air Transport Services","Air Transport Services","Air Transport Services","Air Transport Services","Air Transport Services","Air Transport Services","Air Transport Services","Air Transport Services","Air Transport Services","Air Transport Services"]
["Ambulance Service","Ambulance Service","Ambulance Service","Ambulance Service","Ambulance Service","Ambulance Service","Ambulance Service","Ambulance Service","Ambulance Service","Ambulance Service","Ambulance Service","Ambulance Service"]
["Animal Service Programs","Animal Service Programs","Animal Service Programs","Animal Service Programs","Animal Service Programs","Animal Service Programs","Animal Service Programs","Animal Service Programs","Animal Service Programs","Animal Service Programs","Animal Service Programs","Animal Service Programs"]
["Arbitrage Calculation Service","Arbitrage Calculation Service","Arbitrage Calculation Service","Arbitrage Calculation Service","Arbitrage Calculation Service","Arbitrage Calculation Service","Arbitrage Calculation Service","Arbitrage Calculation Service","Arbitrage Calculation Service","Arbitrage Calculation Service","Arbitrage Calculation Service","Arbitrage Calculation Service"]
["Arbitration/Mediation","Arbitration/Mediation","Arbitration/Mediation","Arbitration/Mediation","Arbitration/Mediation","Arbitration/Mediation","Arbitration/Mediation","Arbitration/Mediation","Arbitration/Mediation","Arbitration/Mediation","Arbitration/Mediation","Arbitration/Mediation"]
["Armored Motor Service","Armored Motor Service","Armored Motor Service","Armored Motor Service","Armored Motor Service","Armored Motor Service","Armored Motor Service","Armored Motor Service","Armored Motor Service","Armored Motor Service","Armored Motor Service","Armored Motor Service"]
["Auditing Services","Auditing Services","Auditing Services","Auditing Services","Auditing Services","Auditing Services","Auditing Services","Auditing Services","Auditing Services","Auditing Services","Auditing Services","Auditing Services"]
["Automobile Repairs & Maintenance","Automobile Repairs & Maintenance","Automobile Repairs & Maintenance","Automobile Repairs & Maintenance","Automobile Repairs & Maintenance","Automobile Repairs & Maintenance","Automobile Repairs & Maintenance","Automobile Repairs & Maintenance","Automobile Repairs & Maintenance","Automobile Repairs & Maintenance","Automobile Repairs & Maintenance","Automobile Repairs & Maintenance"]
["Bank Service Charges","Bank Service Charges","Bank Service Charges","Bank Service Charges","Bank Service Charges","Bank Service Charges","Bank Service Charges","Bank Service Charges","Bank Service Charges","Bank Service Charges","Bank Service Charges","Bank Service Charges"]
["Building Repairs & Maintenance","Building Repairs & Maintenance","Building Repairs & Maintenance","Building Repairs & Maintenance","Building Repairs & Maintenance","Building Repairs & Maintenance","Building Repairs & Maintenance","Building Repairs & Maintenance","Building Repairs & Maintenance","Building Repairs & Maintenance","Building Repairs & Maintenance","Building Repairs & Maintenance"]
["Cable TV Service","Cable TV Service","Cable TV Service","Cable TV Service","Cable TV Service","Cable TV Service","Cable TV Service","Cable TV Service","Cable TV Service","Cable TV Service","Cable TV Service","Cable TV Service"]
["Case Management Services","Case Management Services","Case Management Services","Case Management Services","Case Management Services","Case Management Services","Case Management Services","Case Management Services","Case Management Services","Case Management Services","Case Management Services","Case Management Services"]
["Cellular (Air) Time Usage","Cellular (Air) Time Usage","Cellular (Air) Time Usage","Cellular (Air) Time Usage","Cellular (Air) Time Usage","Cellular (Air) Time Usage","Cellular (Air) Time Usage","Cellular (Air) Time Usage","Cellular (Air) Time Usage","Cellular (Air) Time Usage","Cellular (Air) Time Usage","Cellular (Air) Time Usage"]
["Cellular Phone Allowance","Cellular Phone Allowance","Cellular Phone Allowance","Cellular Phone Allowance","Cellular Phone Allowance","Cellular Phone Allowance","Cellular Phone Allowance","Cellular Phone Allowance","Cellular Phone Allowance","Cellular Phone Allowance","Cellular Phone Allowance","Cellular Phone Allowance"]
["Child & Youth Development","Child & Youth Development","Child & Youth Development","Child & Youth Development","Child & Youth Development","Child & Youth Development","Child & Youth Development","Child & Youth Development","Child & Youth Development","Child & Youth Development","Child & Youth Development","Child & Youth Development"]
["Child/Elderly Care","Child/Elderly Care","Child/Elderly Care","Child/Elderly Care","Child/Elderly Care","Child/Elderly Care","Child/Elderly Care","Child/Elderly Care","Child/Elderly Care","Child/Elderly Care","Child/Elderly Care","Child/Elderly Care"]
["Cloud Based Subscription Services","Cloud Based Subscription Services","Cloud Based Subscription Services","Cloud Based Subscription Services","Cloud Based Subscription Services","Cloud Based Subscription Services","Cloud Based Subscription Services","Cloud Based Subscription Services","Cloud Based Subscription Services","Cloud Based Subscription Services","Cloud Based Subscription Services","Cloud Based Subscription Services"]
["Construction Services","Construction Services","Construction Services","Construction Services","Construction Services","Construction Services","Construction Services","Construction Services","Construction Services","Construction Services","Construction Services","Construction Services"]
["Counseling Services","Counseling Services","Counseling Services","Counseling Services","Counseling Services","Counseling Services","Counseling Services","Counseling Services","Counseling Services","Counseling Services","Counseling Services","Counseling Services"]
["COVID Response Distributions","COVID Response Distributions","COVID Response Distributions","COVID Response Distributions","COVID Response Distributions","COVID Response Distributions","COVID Response Distributions","COVID Response Distributions","COVID Response Distributions","COVID Response Distributions","COVID Response Distributions","COVID Response Distributions"]
["Custodial Services","Custodial Services","Custodial Services","Custodial Services","Custodial Services","Custodial Services","Custodial Services","Custodial Services","Custodial Services","Custodial Services","Custodial Services","Custodial Services"]
["Dental Services","Dental Services","Dental Services","Dental Services","Dental Services","Dental Services","Dental Services","Dental Services","Dental Services","Dental Services","Dental Services","Dental Services"]
["Disposal Service","Disposal Service","Disposal Service","Disposal Service","Disposal Service","Disposal Service","Disposal Service","Disposal Service","Disposal Service","Disposal Service","Disposal Service","Disposal Service"]
["Electric Utilities YE Accr","Electric Utilities YE Accr","Electric Utilities YE Accr","Electric Utilities YE Accr","Electric Utilities YE Accr","Electric Utilities YE Accr","Electric Utilities YE Accr","Electric Utilities YE Accr","Electric Utilities YE Accr","Electric Utilities YE Accr","Electric Utilities YE Accr","Electric Utilities YE Accr"]
["Electrical Service","Electrical Service","Electrical Service","Electrical Service","Electrical Service","Electrical Service","Electrical Service","Electrical Service","Electrical Service","Electrical Service","Electrical Service","Electrical Service"]
["Environmental Impact Services","Environmental Impact Services","Environmental Impact Services","Environmental Impact Services","Environmental Impact Services","Environmental Impact Services","Environmental Impact Services","Environmental Impact Services","Environmental Impact Services","Environmental Impact Services","Environmental Impact Services","Environmental Impact Services"]
["Exterminating Services","Exterminating Services","Exterminating Services","Exterminating Services","Exterminating Services","Exterminating Services","Exterminating Services","Exterminating Services","Exterminating Services","Exterminating Services","Exterminating Services","Exterminating Services"]
["External Placement Prisoners/Juveniles","External Placement Prisoners/Juveniles","External Placement Prisoners/Juveniles","External Placement Prisoners/Juveniles","External Placement Prisoners/Juveniles","External Placement Prisoners/Juveniles","External Placement Prisoners/Juveniles","External Placement Prisoners/Juveniles","External Placement Prisoners/Juveniles","External Placement Prisoners/Juveniles","External Placement Prisoners/Juveniles","External Placement Prisoners/Juveniles"]
["Financial Consulting Services","Financial Consulting Services","Financial Consulting Services","Financial Consulting Services","Financial Consulting Services","Financial Consulting Services","Financial Consulting Services","Financial Consulting Services","Financial Consulting Services","Financial Consulting Services","Financial Consulting Services","Financial Consulting Services"]
["Food Bank Assistance","Food Bank Assistance","Food Bank Assistance","Food Bank Assistance","Food Bank Assistance","Food Bank Assistance","Food Bank Assistance","Food Bank Assistance","Food Bank Assistance","Food Bank Assistance","Food Bank Assistance","Food Bank Assistance"]
["Food Voucher Assistance","Food Voucher Assistance","Food Voucher Assistance","Food Voucher Assistance","Food Voucher Assistance","Food Voucher Assistance","Food Voucher Assistance","Food Voucher Assistance","Food Voucher Assistance","Food Voucher Assistance","Food Voucher Assistance","Food Voucher Assistance"]
["Furniture & Office Equipment Repairs & Maintenance","Furniture & Office Equipment Repairs & Maintenance","Furniture & Office Equipment Repairs & Maintenance","Furniture & Office Equipment Repairs & Maintenance","Furniture & Office Equipment Repairs & Maintenance","Furniture & Office Equipment Repairs & Maintenance","Furniture & Office Equipment Repairs & Maintenance","Furniture & Office Equipment Repairs & Maintenance","Furniture & Office Equipment Repairs & Maintenance","Furniture & Office Equipment Repairs & Maintenance","Furniture & Office Equipment Repairs & Maintenance","Furniture & Office Equipment Repairs & Maintenance"]
["Gifts","Gifts","Gifts","Gifts","Gifts","Gifts","Gifts","Gifts","Gifts","Gifts","Gifts","Gifts"]
["Grounds Maintenance Services","Grounds Maintenance Services","Grounds Maintenance Services","Grounds Maintenance Services","Grounds Maintenance Services","Grounds Maintenance Services","Grounds Maintenance Services","Grounds Maintenance Services","Grounds Maintenance Services","Grounds Maintenance Services","Grounds Maintenance Services","Grounds Maintenance Services"]
["Hardware/Software Install Services","Hardware/Software Install Services","Hardware/Software Install Services","Hardware/Software Install Services","Hardware/Software Install Services","Hardware/Software Install Services","Hardware/Software Install Services","Hardware/Software Install Services","Hardware/Software Install Services","Hardware/Software Install Services","Hardware/Software Install Services","Hardware/Software Install Services"]
["Hardware/Software Maintenance","Hardware/Software Maintenance","Hardware/Software Maintenance","Hardware/Software Maintenance","Hardware/Software Maintenance","Hardware/Software Maintenance","Hardware/Software Maintenance","Hardware/Software Maintenance","Hardware/Software Maintenance","Hardware/Software Maintenance","Hardware/Software Maintenance","Hardware/Software Maintenance"]
["Hauling","Hauling","Hauling","Hauling","Hauling","Hauling","Hauling","Hauling","Hauling","Hauling","Hauling","Hauling"]
["Hazardous Material Removal","Hazardous Material Removal","Hazardous Material Removal","Hazardous Material Removal","Hazardous Material Removal","Hazardous Material Removal","Hazardous Material Removal","Hazardous Material Removal","Hazardous Material Removal","Hazardous Material Removal","Hazardous Material Removal","Hazardous Material Removal"]
["Helicopter Repairs & Maintenance","Helicopter Repairs & Maintenance","Helicopter Repairs & Maintenance","Helicopter Repairs & Maintenance","Helicopter Repairs & Maintenance","Helicopter Repairs & Maintenance","Helicopter Repairs & Maintenance","Helicopter Repairs & Maintenance","Helicopter Repairs & Maintenance","Helicopter Repairs & Maintenance","Helicopter Repairs & Maintenance","Helicopter Repairs & Maintenance"]
["Hospitalization Services","Hospitalization Services","Hospitalization Services","Hospitalization Services","Hospitalization Services","Hospitalization Services","Hospitalization Services","Hospitalization Services","Hospitalization Services","Hospitalization Services","Hospitalization Services","Hospitalization Services"]
["Indigent Medical Care - Conversion","Indigent Medical Care - Conversion","Indigent Medical Care - Conversion","Indigent Medical Care - Conversion","Indigent Medical Care - Conversion","Indigent Medical Care - Conversion","Indigent Medical Care - Conversion","Indigent Medical Care - Conversion","Indigent Medical Care - Conversion","Indigent Medical Care - Conversion","Indigent Medical Care - Conversion","Indigent Medical Care - Conversion"]
["Info Retrieval Svs","Info Retrieval Svs","Info Retrieval Svs","Info Retrieval Svs","Info Retrieval Svs","Info Retrieval Svs","Info Retrieval Svs","Info Retrieval Svs","Info Retrieval Svs","Info Retrieval Svs","Info Retrieval Svs","Info Retrieval Svs"]
["Interment Services","Interment Services","Interment Services","Interment Services","Interment Services","Interment Services","Interment Services","Interment Services","Interment Services","Interment Services","Interment Services","Interment Services"]
["Interpretation/Translation  Services-Other","Interpretation/Translation  Services-Other","Interpretation/Translation  Services-Other","Interpretation/Translation  Services-Other","Interpretation/Translation  Services-Other","Interpretation/Translation  Services-Other","Interpretation/Translation  Services-Other","Interpretation/Translation  Services-Other","Interpretation/Translation  Services-Other","Interpretation/Translation  Services-Other","Interpretation/Translation  Services-Other","Interpretation/Translation  Services-Other"]
["Investigative Services","Investigative Services","Investigative Services","Investigative Services","Investigative Services","Investigative Services","Investigative Services","Investigative Services","Investigative Services","Investigative Services","Investigative Services","Investigative Services"]
["IT Consulting","IT Consulting","IT Consulting","IT Consulting","IT Consulting","IT Consulting","IT Consulting","IT Consulting","IT Consulting","IT Consulting","IT Consulting","IT Consulting"]
["Lab Services","Lab Services","Lab Services","Lab Services","Lab Services","Lab Services","Lab Services","Lab Services","Lab Services","Lab Services","Lab Services","Lab Services"]
["Land Surveying","Land Surveying","Land Surveying","Land Surveying","Land Surveying","Land Surveying","Land Surveying","Land Surveying","Land Surveying","Land Surveying","Land Surveying","Land Surveying"]
["Laundry Services","Laundry Services","Laundry Services","Laundry Services","Laundry Services","Laundry Services","Laundry Services","Laundry Services","Laundry Services","Laundry Services","Laundry Services","Laundry Services"]
["LCRA Oversight Fee","LCRA Oversight Fee","LCRA Oversight Fee","LCRA Oversight Fee","LCRA Oversight Fee","LCRA Oversight Fee","LCRA Oversight Fee","LCRA Oversight Fee","LCRA Oversight Fee","LCRA Oversight Fee","LCRA Oversight Fee","LCRA Oversight Fee"]
["Legal Advisory Services ","Legal Advisory Services ","Legal Advisory Services ","Legal Advisory Services ","Legal Advisory Services ","Legal Advisory Services ","Legal Advisory Services ","Legal Advisory Services ","Legal Advisory Services ","Legal Advisory Services ","Legal Advisory Services ","Legal Advisory Services "]
["Legally Required Advert/Public Notif. Service","Legally Required Advert/Public Notif. Service","Legally Required Advert/Public Notif. Service","Legally Required Advert/Public Notif. Service","Legally Required Advert/Public Notif. Service","Legally Required Advert/Public Notif. Service","Legally Required Advert/Public Notif. Service","Legally Required Advert/Public Notif. Service","Legally Required Advert/Public Notif. Service","Legally Required Advert/Public Notif. Service","Legally Required Advert/Public Notif. Service","Legally Required Advert/Public Notif. Service"]
["Legislative Services","Legislative Services","Legislative Services","Legislative Services","Legislative Services","Legislative Services","Legislative Services","Legislative Services","Legislative Services","Legislative Services","Legislative Services","Legislative Services"]
["Long distance ","Long distance ","Long distance ","Long distance ","Long distance ","Long distance ","Long distance ","Long distance ","Long distance ","Long distance ","Long distance ","Long distance "]
["Non Employee Educational Services","Non Employee Educational Services","Non Employee Educational Services","Non Employee Educational Services","Non Employee Educational Services","Non Employee Educational Services","Non Employee Educational Services","Non Employee Educational Services","Non Employee Educational Services","Non Employee Educational Services","Non Employee Educational Services","Non Employee Educational Services"]
["Non Hazardous Waste Hauling/Removal","Non Hazardous Waste Hauling/Removal","Non Hazardous Waste Hauling/Removal","Non Hazardous Waste Hauling/Removal","Non Hazardous Waste Hauling/Removal","Non Hazardous Waste Hauling/Removal","Non Hazardous Waste Hauling/Removal","Non Hazardous Waste Hauling/Removal","Non Hazardous Waste Hauling/Removal","Non Hazardous Waste Hauling/Removal","Non Hazardous Waste Hauling/Removal","Non Hazardous Waste Hauling/Removal"]
["North Campus Operating & Maintenance Exp","North Campus Operating & Maintenance Exp","North Campus Operating & Maintenance Exp","North Campus Operating & Maintenance Exp","North Campus Operating & Maintenance Exp","North Campus Operating & Maintenance Exp","North Campus Operating & Maintenance Exp","North Campus Operating & Maintenance Exp","North Campus Operating & Maintenance Exp","North Campus Operating & Maintenance Exp","North Campus Operating & Maintenance Exp","North Campus Operating & Maintenance Exp"]
["Notary Services","Notary Services","Notary Services","Notary Services","Notary Services","Notary Services","Notary Services","Notary Services","Notary Services","Notary Services","Notary Services","Notary Services"]
["Nursing Services","Nursing Services","Nursing Services","Nursing Services","Nursing Services","Nursing Services","Nursing Services","Nursing Services","Nursing Services","Nursing Services","Nursing Services","Nursing Services"]
["Oil/Gas Service","Oil/Gas Service","Oil/Gas Service","Oil/Gas Service","Oil/Gas Service","Oil/Gas Service","Oil/Gas Service","Oil/Gas Service","Oil/Gas Service","Oil/Gas Service","Oil/Gas Service","Oil/Gas Service"]
["Omni Services","Omni Services","Omni Services","Omni Services","Omni Services","Omni Services","Omni Services","Omni Services","Omni Services","Omni Services","Omni Services","Omni Services"]
["Other Consulting Services","Other Consulting Services","Other Consulting Services","Other Consulting Services","Other Consulting Services","Other Consulting Services","Other Consulting Services","Other Consulting Services","Other Consulting Services","Other Consulting Services","Other Consulting Services","Other Consulting Services"]
["Other Equipment Repairs & Maintenance","Other Equipment Repairs & Maintenance","Other Equipment Repairs & Maintenance","Other Equipment Repairs & Maintenance","Other Equipment Repairs & Maintenance","Other Equipment Repairs & Maintenance","Other Equipment Repairs & Maintenance","Other Equipment Repairs & Maintenance","Other Equipment Repairs & Maintenance","Other Equipment Repairs & Maintenance","Other Equipment Repairs & Maintenance","Other Equipment Repairs & Maintenance"]
["Other Financial Services","Other Financial Services","Other Financial Services","Other Financial Services","Other Financial Services","Other Financial Services","Other Financial Services","Other Financial Services","Other Financial Services","Other Financial Services","Other Financial Services","Other Financial Services"]
["Other Human Services - Conversion","Other Human Services - Conversion","Other Human Services - Conversion","Other Human Services - Conversion","Other Human Services - Conversion","Other Human Services - Conversion","Other Human Services - Conversion","Other Human Services - Conversion","Other Human Services - Conversion","Other Human Services - Conversion","Other Human Services - Conversion","Other Human Services - Conversion"]
["Other Legal Services","Other Legal Services","Other Legal Services","Other Legal Services","Other Legal Services","Other Legal Services","Other Legal Services","Other Legal Services","Other Legal Services","Other Legal Services","Other Legal Services","Other Legal Services"]
["Other Medical Services","Other Medical Services","Other Medical Services","Other Medical Services","Other Medical Services","Other Medical Services","Other Medical Services","Other Medical Services","Other Medical Services","Other Medical Services","Other Medical Services","Other Medical Services"]
["Other Professional Services - Conversion","Other Professional Services - Conversion","Other Professional Services - Conversion","Other Professional Services - Conversion","Other Professional Services - Conversion","Other Professional Services - Conversion","Other Professional Services - Conversion","Other Professional Services - Conversion","Other Professional Services - Conversion","Other Professional Services - Conversion","Other Professional Services - Conversion","Other Professional Services - Conversion"]
["Other Purchased Services - Conversion","Other Purchased Services - Conversion","Other Purchased Services - Conversion","Other Purchased Services - Conversion","Other Purchased Services - Conversion","Other Purchased Services - Conversion","Other Purchased Services - Conversion","Other Purchased Services - Conversion","Other Purchased Services - Conversion","Other Purchased Services - Conversion","Other Purchased Services - Conversion","Other Purchased Services - Conversion"]
["Other Real Estate Services","Other Real Estate Services","Other Real Estate Services","Other Real Estate Services","Other Real Estate Services","Other Real Estate Services","Other Real Estate Services","Other Real Estate Services","Other Real Estate Services","Other Real Estate Services","Other Real Estate Services","Other Real Estate Services"]
["Other Services","Other Services","Other Services","Other Services","Other Services","Other Services","Other Services","Other Services","Other Services","Other Services","Other Services","Other Services"]
["Other Social Services","Other Social Services","Other Social Services","Other Social Services","Other Social Services","Other Social Services","Other Social Services","Other Social Services","Other Social Services","Other Social Services","Other Social Services","Other Social Services"]
["Outside Agency Contracts - Conversion","Outside Agency Contracts - Conversion","Outside Agency Contracts - Conversion","Outside Agency Contracts - Conversion","Outside Agency Contracts - Conversion","Outside Agency Contracts - Conversion","Outside Agency Contracts - Conversion","Outside Agency Contracts - Conversion","Outside Agency Contracts - Conversion","Outside Agency Contracts - Conversion","Outside Agency Contracts - Conversion","Outside Agency Contracts - Conversion"]
["Pharmacist Services","Pharmacist Services","Pharmacist Services","Pharmacist Services","Pharmacist Services","Pharmacist Services","Pharmacist Services","Pharmacist Services","Pharmacist Services","Pharmacist Services","Pharmacist Services","Pharmacist Services"]
["Physician Services","Physician Services","Physician Services","Physician Services","Physician Services","Physician Services","Physician Services","Physician Services","Physician Services","Physician Services","Physician Services","Physician Services"]
["Pool Operation Services","Pool Operation Services","Pool Operation Services","Pool Operation Services","Pool Operation Services","Pool Operation Services","Pool Operation Services","Pool Operation Services","Pool Operation Services","Pool Operation Services","Pool Operation Services","Pool Operation Services"]
["Postal/Freight out Services","Postal/Freight out Services","Postal/Freight out Services","Postal/Freight out Services","Postal/Freight out Services","Postal/Freight out Services","Postal/Freight out Services","Postal/Freight out Services","Postal/Freight out Services","Postal/Freight out Services","Postal/Freight out Services","Postal/Freight out Services"]
["Printing Services","Printing Services","Printing Services","Printing Services","Printing Services","Printing Services","Printing Services","Printing Services","Printing Services","Printing Services","Printing Services","Printing Services"]
["Property Appraisal Services","Property Appraisal Services","Property Appraisal Services","Property Appraisal Services","Property Appraisal Services","Property Appraisal Services","Property Appraisal Services","Property Appraisal Services","Property Appraisal Services","Property Appraisal Services","Property Appraisal Services","Property Appraisal Services"]
["Property Management Services","Property Management Services","Property Management Services","Property Management Services","Property Management Services","Property Management Services","Property Management Services","Property Management Services","Property Management Services","Property Management Services","Property Management Services","Property Management Services"]
["Psychiatric Services","Psychiatric Services","Psychiatric Services","Psychiatric Services","Psychiatric Services","Psychiatric Services","Psychiatric Services","Psychiatric Services","Psychiatric Services","Psychiatric Services","Psychiatric Services","Psychiatric Services"]
["Psychiatric/Psychological Evaluation Services-Conv","Psychiatric/Psychological Evaluation Services-Conv","Psychiatric/Psychological Evaluation Services-Conv","Psychiatric/Psychological Evaluation Services-Conv","Psychiatric/Psychological Evaluation Services-Conv","Psychiatric/Psychological Evaluation Services-Conv","Psychiatric/Psychological Evaluation Services-Conv","Psychiatric/Psychological Evaluation Services-Conv","Psychiatric/Psychological Evaluation Services-Conv","Psychiatric/Psychological Evaluation Services-Conv","Psychiatric/Psychological Evaluation Services-Conv","Psychiatric/Psychological Evaluation Services-Conv"]
["Psychological Services","Psychological Services","Psychological Services","Psychological Services","Psychological Services","Psychological Services","Psychological Services","Psychological Services","Psychological Services","Psychological Services","Psychological Services","Psychological Services"]
["Public Health Programs","Public Health Programs","Public Health Programs","Public Health Programs","Public Health Programs","Public Health Programs","Public Health Programs","Public Health Programs","Public Health Programs","Public Health Programs","Public Health Programs","Public Health Programs"]
["Radios/TV Communication Repairs & Maintenance","Radios/TV Communication Repairs & Maintenance","Radios/TV Communication Repairs & Maintenance","Radios/TV Communication Repairs & Maintenance","Radios/TV Communication Repairs & Maintenance","Radios/TV Communication Repairs & Maintenance","Radios/TV Communication Repairs & Maintenance","Radios/TV Communication Repairs & Maintenance","Radios/TV Communication Repairs & Maintenance","Radios/TV Communication Repairs & Maintenance","Radios/TV Communication Repairs & Maintenance","Radios/TV Communication Repairs & Maintenance"]
["Reimbursable Construction Services","Reimbursable Construction Services","Reimbursable Construction Services","Reimbursable Construction Services","Reimbursable Construction Services","Reimbursable Construction Services","Reimbursable Construction Services","Reimbursable Construction Services","Reimbursable Construction Services","Reimbursable Construction Services","Reimbursable Construction Services","Reimbursable Construction Services"]
["Rent Application Fee for MHPD","Rent Application Fee for MHPD","Rent Application Fee for MHPD","Rent Application Fee for MHPD","Rent Application Fee for MHPD","Rent Application Fee for MHPD","Rent Application Fee for MHPD","Rent Application Fee for MHPD","Rent Application Fee for MHPD","Rent Application Fee for MHPD","Rent Application Fee for MHPD","Rent Application Fee for MHPD"]
["Rent Assistance","Rent Assistance","Rent Assistance","Rent Assistance","Rent Assistance","Rent Assistance","Rent Assistance","Rent Assistance","Rent Assistance","Rent Assistance","Rent Assistance","Rent Assistance"]
["Rent Assistance - Best Single Source","Rent Assistance - Best Single Source","Rent Assistance - Best Single Source","Rent Assistance - Best Single Source","Rent Assistance - Best Single Source","Rent Assistance - Best Single Source","Rent Assistance - Best Single Source","Rent Assistance - Best Single Source","Rent Assistance - Best Single Source","Rent Assistance - Best Single Source","Rent Assistance - Best Single Source","Rent Assistance - Best Single Source"]
["Rent-Building & Land","Rent-Building & Land","Rent-Building & Land","Rent-Building & Land","Rent-Building & Land","Rent-Building & Land","Rent-Building & Land","Rent-Building & Land","Rent-Building & Land","Rent-Building & Land","Rent-Building & Land","Rent-Building & Land"]
["Rent-EDP Equipment/Software","Rent-EDP Equipment/Software","Rent-EDP Equipment/Software","Rent-EDP Equipment/Software","Rent-EDP Equipment/Software","Rent-EDP Equipment/Software","Rent-EDP Equipment/Software","Rent-EDP Equipment/Software","Rent-EDP Equipment/Software","Rent-EDP Equipment/Software","Rent-EDP Equipment/Software","Rent-EDP Equipment/Software"]
["Rent-Office Equipment","Rent-Office Equipment","Rent-Office Equipment","Rent-Office Equipment","Rent-Office Equipment","Rent-Office Equipment","Rent-Office Equipment","Rent-Office Equipment","Rent-Office Equipment","Rent-Office Equipment","Rent-Office Equipment","Rent-Office Equipment"]
["Rent-Other Machinery & Equipment","Rent-Other Machinery & Equipment","Rent-Other Machinery & Equipment","Rent-Other Machinery & Equipment","Rent-Other Machinery & Equipment","Rent-Other Machinery & Equipment","Rent-Other Machinery & Equipment","Rent-Other Machinery & Equipment","Rent-Other Machinery & Equipment","Rent-Other Machinery & Equipment","Rent-Other Machinery & Equipment","Rent-Other Machinery & Equipment"]
["Rent-Polling Places","Rent-Polling Places","Rent-Polling Places","Rent-Polling Places","Rent-Polling Places","Rent-Polling Places","Rent-Polling Places","Rent-Polling Places","Rent-Polling Places","Rent-Polling Places","Rent-Polling Places","Rent-Polling Places"]
["Residential Services - Conversion","Residential Services - Conversion","Residential Services - Conversion","Residential Services - Conversion","Residential Services - Conversion","Residential Services - Conversion","Residential Services - Conversion","Residential Services - Conversion","Residential Services - Conversion","Residential Services - Conversion","Residential Services - Conversion","Residential Services - Conversion"]
["Road Machinery & Equipment Repairs & Maintenance","Road Machinery & Equipment Repairs & Maintenance","Road Machinery & Equipment Repairs & Maintenance","Road Machinery & Equipment Repairs & Maintenance","Road Machinery & Equipment Repairs & Maintenance","Road Machinery & Equipment Repairs & Maintenance","Road Machinery & Equipment Repairs & Maintenance","Road Machinery & Equipment Repairs & Maintenance","Road Machinery & Equipment Repairs & Maintenance","Road Machinery & Equipment Repairs & Maintenance","Road Machinery & Equipment Repairs & Maintenance","Road Machinery & Equipment Repairs & Maintenance"]
["Road Repairs & Maintenance","Road Repairs & Maintenance","Road Repairs & Maintenance","Road Repairs & Maintenance","Road Repairs & Maintenance","Road Repairs & Maintenance","Road Repairs & Maintenance","Road Repairs & Maintenance","Road Repairs & Maintenance","Road Repairs & Maintenance","Road Repairs & Maintenance","Road Repairs & Maintenance"]
["Security Services","Security Services","Security Services","Security Services","Security Services","Security Services","Security Services","Security Services","Security Services","Security Services","Security Services","Security Services"]
["Septic Tank Repairs & Maintenance","Septic Tank Repairs & Maintenance","Septic Tank Repairs & Maintenance","Septic Tank Repairs & Maintenance","Septic Tank Repairs & Maintenance","Septic Tank Repairs & Maintenance","Septic Tank Repairs & Maintenance","Septic Tank Repairs & Maintenance","Septic Tank Repairs & Maintenance","Septic Tank Repairs & Maintenance","Septic Tank Repairs & Maintenance","Septic Tank Repairs & Maintenance"]
["Substance Abuse Program-Conversion","Substance Abuse Program-Conversion","Substance Abuse Program-Conversion","Substance Abuse Program-Conversion","Substance Abuse Program-Conversion","Substance Abuse Program-Conversion","Substance Abuse Program-Conversion","Substance Abuse Program-Conversion","Substance Abuse Program-Conversion","Substance Abuse Program-Conversion","Substance Abuse Program-Conversion","Substance Abuse Program-Conversion"]
["Substance Abuse Screening","Substance Abuse Screening","Substance Abuse Screening","Substance Abuse Screening","Substance Abuse Screening","Substance Abuse Screening","Substance Abuse Screening","Substance Abuse Screening","Substance Abuse Screening","Substance Abuse Screening","Substance Abuse Screening","Substance Abuse Screening"]
["Temp Personnel Services-Clerical/Managerial/Exec","Temp Personnel Services-Clerical/Managerial/Exec","Temp Personnel Services-Clerical/Managerial/Exec","Temp Personnel Services-Clerical/Managerial/Exec","Temp Personnel Services-Clerical/Managerial/Exec","Temp Personnel Services-Clerical/Managerial/Exec","Temp Personnel Services-Clerical/Managerial/Exec","Temp Personnel Services-Clerical/Managerial/Exec","Temp Personnel Services-Clerical/Managerial/Exec","Temp Personnel Services-Clerical/Managerial/Exec","Temp Personnel Services-Clerical/Managerial/Exec","Temp Personnel Services-Clerical/Managerial/Exec"]
["Transportation Assistance","Transportation Assistance","Transportation Assistance","Transportation Assistance","Transportation Assistance","Transportation Assistance","Transportation Assistance","Transportation Assistance","Transportation Assistance","Transportation Assistance","Transportation Assistance","Transportation Assistance"]
["Treatment Services","Treatment Services","Treatment Services","Treatment Services","Treatment Services","Treatment Services","Treatment Services","Treatment Services","Treatment Services","Treatment Services","Treatment Services","Treatment Services"]
["Tree Mitigation Services","Tree Mitigation Services","Tree Mitigation Services","Tree Mitigation Services","Tree Mitigation Services","Tree Mitigation Services","Tree Mitigation Services","Tree Mitigation Services","Tree Mitigation Services","Tree Mitigation Services","Tree Mitigation Services","Tree Mitigation Services"]
["Trunk Lines","Trunk Lines","Trunk Lines","Trunk Lines","Trunk Lines","Trunk Lines","Trunk Lines","Trunk Lines","Trunk Lines","Trunk Lines","Trunk Lines","Trunk Lines"]
["Uniform Rental Service","Uniform Rental Service","Uniform Rental Service","Uniform Rental Service","Uniform Rental Service","Uniform Rental Service","Uniform Rental Service","Uniform Rental Service","Uniform Rental Service","Uniform Rental Service","Uniform Rental Service","Uniform Rental Service"]
["Utilities - Conversion","Utilities - Conversion","Utilities - Conversion","Utilities - Conversion","Utilities - Conversion","Utilities - Conversion","Utilities - Conversion","Utilities - Conversion","Utilities - Conversion","Utilities - Conversion","Utilities - Conversion","Utilities - Conversion"]
["Utility Assistance ","Utility Assistance ","Utility Assistance ","Utility Assistance ","Utility Assistance ","Utility Assistance ","Utility Assistance ","Utility Assistance ","Utility Assistance ","Utility Assistance ","Utility Assistance ","Utility Assistance "]
["Utility Assistance -CEAP CoPay - Conversion","Utility Assistance -CEAP CoPay - Conversion","Utility Assistance -CEAP CoPay - Conversion","Utility Assistance -CEAP CoPay - Conversion","Utility Assistance -CEAP CoPay - Conversion","Utility Assistance -CEAP CoPay - Conversion","Utility Assistance -CEAP CoPay - Conversion","Utility Assistance -CEAP CoPay - Conversion","Utility Assistance -CEAP CoPay - Conversion","Utility Assistance -CEAP CoPay - Conversion","Utility Assistance -CEAP CoPay - Conversion","Utility Assistance -CEAP CoPay - Conversion"]
["Utility Assistance -CEAP Energy Crisis - Conv","Utility Assistance -CEAP Energy Crisis - Conv","Utility Assistance -CEAP Energy Crisis - Conv","Utility Assistance -CEAP Energy Crisis - Conv","Utility Assistance -CEAP Energy Crisis - Conv","Utility Assistance -CEAP Energy Crisis - Conv","Utility Assistance -CEAP Energy Crisis - Conv","Utility Assistance -CEAP Energy Crisis - Conv","Utility Assistance -CEAP Energy Crisis - Conv","Utility Assistance -CEAP Energy Crisis - Conv","Utility Assistance -CEAP Energy Crisis - Conv","Utility Assistance -CEAP Energy Crisis - Conv"]
["Utility Assistance -Donations - Conversion","Utility Assistance -Donations - Conversion","Utility Assistance -Donations - Conversion","Utility Assistance -Donations - Conversion","Utility Assistance -Donations - Conversion","Utility Assistance -Donations - Conversion","Utility Assistance -Donations - Conversion","Utility Assistance -Donations - Conversion","Utility Assistance -Donations - Conversion","Utility Assistance -Donations - Conversion","Utility Assistance -Donations - Conversion","Utility Assistance -Donations - Conversion"]
["Utility Assistance -Indigents - Conversion","Utility Assistance -Indigents - Conversion","Utility Assistance -Indigents - Conversion","Utility Assistance -Indigents - Conversion","Utility Assistance -Indigents - Conversion","Utility Assistance -Indigents - Conversion","Utility Assistance -Indigents - Conversion","Utility Assistance -Indigents - Conversion","Utility Assistance -Indigents - Conversion","Utility Assistance -Indigents - Conversion","Utility Assistance -Indigents - Conversion","Utility Assistance -Indigents - Conversion"]
["Utility Assistance-Best Single Source","Utility Assistance-Best Single Source","Utility Assistance-Best Single Source","Utility Assistance-Best Single Source","Utility Assistance-Best Single Source","Utility Assistance-Best Single Source","Utility Assistance-Best Single Source","Utility Assistance-Best Single Source","Utility Assistance-Best Single Source","Utility Assistance-Best Single Source","Utility Assistance-Best Single Source","Utility Assistance-Best Single Source"]
["Utility Assistance-CEAP Elderly - Conversion","Utility Assistance-CEAP Elderly - Conversion","Utility Assistance-CEAP Elderly - Conversion","Utility Assistance-CEAP Elderly - Conversion","Utility Assistance-CEAP Elderly - Conversion","Utility Assistance-CEAP Elderly - Conversion","Utility Assistance-CEAP Elderly - Conversion","Utility Assistance-CEAP Elderly - Conversion","Utility Assistance-CEAP Elderly - Conversion","Utility Assistance-CEAP Elderly - Conversion","Utility Assistance-CEAP Elderly - Conversion","Utility Assistance-CEAP Elderly - Conversion"]
["Utility Assistance-FEMA - Conversion","Utility Assistance-FEMA - Conversion","Utility Assistance-FEMA - Conversion","Utility Assistance-FEMA - Conversion","Utility Assistance-FEMA - Conversion","Utility Assistance-FEMA - Conversion","Utility Assistance-FEMA - Conversion","Utility Assistance-FEMA - Conversion","Utility Assistance-FEMA - Conversion","Utility Assistance-FEMA - Conversion","Utility Assistance-FEMA - Conversion","Utility Assistance-FEMA - Conversion"]
["Veterinary Services","Veterinary Services","Veterinary Services","Veterinary Services","Veterinary Services","Veterinary Services","Veterinary Services","Veterinary Services","Veterinary Services","Veterinary Services","Veterinary Services","Veterinary Services"]
["Volunteer Service Mgmt","Volunteer Service Mgmt","Volunteer Service Mgmt","Volunteer Service Mgmt","Volunteer Service Mgmt","Volunteer Service Mgmt","Volunteer Service Mgmt","Volunteer Service Mgmt","Volunteer Service Mgmt","Volunteer Service Mgmt","Volunteer Service Mgmt","Volunteer Service Mgmt"]
["Water Resource Dev Sv","Water Resource Dev Sv","Water Resource Dev Sv","Water Resource Dev Sv","Water Resource Dev Sv","Water Resource Dev Sv","Water Resource Dev Sv","Water Resource Dev Sv","Water Resource Dev Sv","Water Resource Dev Sv","Water Resource Dev Sv","Water Resource Dev Sv"]
["Water/Sewer Service","Water/Sewer Service","Water/Sewer Service","Water/Sewer Service","Water/Sewer Service","Water/Sewer Service","Water/Sewer Service","Water/Sewer Service","Water/Sewer Service","Water/Sewer Service","Water/Sewer Service","Water/Sewer Service"]
["Water/Sewer Utilities YE Accr","Water/Sewer Utilities YE Accr","Water/Sewer Utilities YE Accr","Water/Sewer Utilities YE Accr","Water/Sewer Utilities YE Accr","Water/Sewer Utilities YE Accr","Water/Sewer Utilities YE Accr","Water/Sewer Utilities YE Accr","Water/Sewer Utilities YE Accr","Water/Sewer Utilities YE Accr","Water/Sewer Utilities YE Accr","Water/Sewer Utilities YE Accr"]
["Wetland Mitigation","Wetland Mitigation","Wetland Mitigation","Wetland Mitigation","Wetland Mitigation","Wetland Mitigation","Wetland Mitigation","Wetland Mitigation","Wetland Mitigation","Wetland Mitigation","Wetland Mitigation","Wetland Mitigation"]
["Workforce Development","Workforce Development","Workforce Development","Workforce Development","Workforce Development","Workforce Development","Workforce Development","Workforce Development","Workforce Development","Workforce Development","Workforce Development","Workforce Development"]
["Aircraft and Boating Supplies & Equipment","Aircraft and Boating Supplies & Equipment","Aircraft and Boating Supplies & Equipment","Aircraft and Boating Supplies & Equipment","Aircraft and Boating Supplies & Equipment","Aircraft and Boating Supplies & Equipment","Aircraft and Boating Supplies & Equipment","Aircraft and Boating Supplies & Equipment","Aircraft and Boating Supplies & Equipment","Aircraft and Boating Supplies & Equipment","Aircraft and Boating Supplies & Equipment","Aircraft and Boating Supplies & Equipment"]
["Books","Books","Books","Books","Books","Books","Books","Books","Books","Books","Books","Books"]
["Building Maintenance Supplies & Equipment","Building Maintenance Supplies & Equipment","Building Maintenance Supplies & Equipment","Building Maintenance Supplies & Equipment","Building Maintenance Supplies & Equipment","Building Maintenance Supplies & Equipment","Building Maintenance Supplies & Equipment","Building Maintenance Supplies & Equipment","Building Maintenance Supplies & Equipment","Building Maintenance Supplies & Equipment","Building Maintenance Supplies & Equipment","Building Maintenance Supplies & Equipment"]
["Chemical Supplies & Equipment","Chemical Supplies & Equipment","Chemical Supplies & Equipment","Chemical Supplies & Equipment","Chemical Supplies & Equipment","Chemical Supplies & Equipment","Chemical Supplies & Equipment","Chemical Supplies & Equipment","Chemical Supplies & Equipment","Chemical Supplies & Equipment","Chemical Supplies & Equipment","Chemical Supplies & Equipment"]
["Clothing & Uniforms","Clothing & Uniforms","Clothing & Uniforms","Clothing & Uniforms","Clothing & Uniforms","Clothing & Uniforms","Clothing & Uniforms","Clothing & Uniforms","Clothing & Uniforms","Clothing & Uniforms","Clothing & Uniforms","Clothing & Uniforms"]
["Communication Supplies & Equipment","Communication Supplies & Equipment","Communication Supplies & Equipment","Communication Supplies & Equipment","Communication Supplies & Equipment","Communication Supplies & Equipment","Communication Supplies & Equipment","Communication Supplies & Equipment","Communication Supplies & Equipment","Communication Supplies & Equipment","Communication Supplies & Equipment","Communication Supplies & Equipment"]
["Computer Equipment & Peripherals","Computer Equipment & Peripherals","Computer Equipment & Peripherals","Computer Equipment & Peripherals","Computer Equipment & Peripherals","Computer Equipment & Peripherals","Computer Equipment & Peripherals","Computer Equipment & Peripherals","Computer Equipment & Peripherals","Computer Equipment & Peripherals","Computer Equipment & Peripherals","Computer Equipment & Peripherals"]
["CSCD Grant Designated Equipment","CSCD Grant Designated Equipment","CSCD Grant Designated Equipment","CSCD Grant Designated Equipment","CSCD Grant Designated Equipment","CSCD Grant Designated Equipment","CSCD Grant Designated Equipment","CSCD Grant Designated Equipment","CSCD Grant Designated Equipment","CSCD Grant Designated Equipment","CSCD Grant Designated Equipment","CSCD Grant Designated Equipment"]
["Currency Exchange Diff","Currency Exchange Diff","Currency Exchange Diff","Currency Exchange Diff","Currency Exchange Diff","Currency Exchange Diff","Currency Exchange Diff","Currency Exchange Diff","Currency Exchange Diff","Currency Exchange Diff","Currency Exchange Diff","Currency Exchange Diff"]
["Custodial Supplies & Equipment","Custodial Supplies & Equipment","Custodial Supplies & Equipment","Custodial Supplies & Equipment","Custodial Supplies & Equipment","Custodial Supplies & Equipment","Custodial Supplies & Equipment","Custodial Supplies & Equipment","Custodial Supplies & Equipment","Custodial Supplies & Equipment","Custodial Supplies & Equipment","Custodial Supplies & Equipment"]
["Drug & Pharmaceuticals Supplies","Drug & Pharmaceuticals Supplies","Drug & Pharmaceuticals Supplies","Drug & Pharmaceuticals Supplies","Drug & Pharmaceuticals Supplies","Drug & Pharmaceuticals Supplies","Drug & Pharmaceuticals Supplies","Drug & Pharmaceuticals Supplies","Drug & Pharmaceuticals Supplies","Drug & Pharmaceuticals Supplies","Drug & Pharmaceuticals Supplies","Drug & Pharmaceuticals Supplies"]
["Early Payment Discount-Contra","Early Payment Discount-Contra","Early Payment Discount-Contra","Early Payment Discount-Contra","Early Payment Discount-Contra","Early Payment Discount-Contra","Early Payment Discount-Contra","Early Payment Discount-Contra","Early Payment Discount-Contra","Early Payment Discount-Contra","Early Payment Discount-Contra","Early Payment Discount-Contra"]
["Electrical Supplies & Equipment","Electrical Supplies & Equipment","Electrical Supplies & Equipment","Electrical Supplies & Equipment","Electrical Supplies & Equipment","Electrical Supplies & Equipment","Electrical Supplies & Equipment","Electrical Supplies & Equipment","Electrical Supplies & Equipment","Electrical Supplies & Equipment","Electrical Supplies & Equipment","Electrical Supplies & Equipment"]
["Food & Groceries","Food & Groceries","Food & Groceries","Food & Groceries","Food & Groceries","Food & Groceries","Food & Groceries","Food & Groceries","Food & Groceries","Food & Groceries","Food & Groceries","Food & Groceries"]
["Fuel","Fuel","Fuel","Fuel","Fuel","Fuel","Fuel","Fuel","Fuel","Fuel","Fuel","Fuel"]
["Groundskeeping Supplies & Equipment","Groundskeeping Supplies & Equipment","Groundskeeping Supplies & Equipment","Groundskeeping Supplies & Equipment","Groundskeeping Supplies & Equipment","Groundskeeping Supplies & Equipment","Groundskeeping Supplies & Equipment","Groundskeeping Supplies & Equipment","Groundskeeping Supplies & Equipment","Groundskeeping Supplies & Equipment","Groundskeeping Supplies & Equipment","Groundskeeping Supplies & Equipment"]
["Hardware Supplies & Equipment","Hardware Supplies & Equipment","Hardware Supplies & Equipment","Hardware Supplies & Equipment","Hardware Supplies & Equipment","Hardware Supplies & Equipment","Hardware Supplies & Equipment","Hardware Supplies & Equipment","Hardware Supplies & Equipment","Hardware Supplies & Equipment","Hardware Supplies & Equipment","Hardware Supplies & Equipment"]
["Indisutrial Supplies & Equipment","Indisutrial Supplies & Equipment","Indisutrial Supplies & Equipment","Indisutrial Supplies & Equipment","Indisutrial Supplies & Equipment","Indisutrial Supplies & Equipment","Indisutrial Supplies & Equipment","Indisutrial Supplies & Equipment","Indisutrial Supplies & Equipment","Indisutrial Supplies & Equipment","Indisutrial Supplies & Equipment","Indisutrial Supplies & Equipment"]
["Initial Entry of Stock Balances (conversion)","Initial Entry of Stock Balances (conversion)","Initial Entry of Stock Balances (conversion)","Initial Entry of Stock Balances (conversion)","Initial Entry of Stock Balances (conversion)","Initial Entry of Stock Balances (conversion)","Initial Entry of Stock Balances (conversion)","Initial Entry of Stock Balances (conversion)","Initial Entry of Stock Balances (conversion)","Initial Entry of Stock Balances (conversion)","Initial Entry of Stock Balances (conversion)","Initial Entry of Stock Balances (conversion)"]
["Institutional Equipment","Institutional Equipment","Institutional Equipment","Institutional Equipment","Institutional Equipment","Institutional Equipment","Institutional Equipment","Institutional Equipment","Institutional Equipment","Institutional Equipment","Institutional Equipment","Institutional Equipment"]
["Kitchen Supplies & Equipment","Kitchen Supplies & Equipment","Kitchen Supplies & Equipment","Kitchen Supplies & Equipment","Kitchen Supplies & Equipment","Kitchen Supplies & Equipment","Kitchen Supplies & Equipment","Kitchen Supplies & Equipment","Kitchen Supplies & Equipment","Kitchen Supplies & Equipment","Kitchen Supplies & Equipment","Kitchen Supplies & Equipment"]
["Laboratory Supplies & Equipment","Laboratory Supplies & Equipment","Laboratory Supplies & Equipment","Laboratory Supplies & Equipment","Laboratory Supplies & Equipment","Laboratory Supplies & Equipment","Laboratory Supplies & Equipment","Laboratory Supplies & Equipment","Laboratory Supplies & Equipment","Laboratory Supplies & Equipment","Laboratory Supplies & Equipment","Laboratory Supplies & Equipment"]
["Law Enforcement Supplies & Equipment","Law Enforcement Supplies & Equipment","Law Enforcement Supplies & Equipment","Law Enforcement Supplies & Equipment","Law Enforcement Supplies & Equipment","Law Enforcement Supplies & Equipment","Law Enforcement Supplies & Equipment","Law Enforcement Supplies & Equipment","Law Enforcement Supplies & Equipment","Law Enforcement Supplies & Equipment","Law Enforcement Supplies & Equipment","Law Enforcement Supplies & Equipment"]
["Material Reclass YE","Material Reclass YE","Material Reclass YE","Material Reclass YE","Material Reclass YE","Material Reclass YE","Material Reclass YE","Material Reclass YE","Material Reclass YE","Material Reclass YE","Material Reclass YE","Material Reclass YE"]
["Material Reimbursement","Material Reimbursement","Material Reimbursement","Material Reimbursement","Material Reimbursement","Material Reimbursement","Material Reimbursement","Material Reimbursement","Material Reimbursement","Material Reimbursement","Material Reimbursement","Material Reimbursement"]
["Medical/Dental Supplies & Equipment","Medical/Dental Supplies & Equipment","Medical/Dental Supplies & Equipment","Medical/Dental Supplies & Equipment","Medical/Dental Supplies & Equipment","Medical/Dental Supplies & Equipment","Medical/Dental Supplies & Equipment","Medical/Dental Supplies & Equipment","Medical/Dental Supplies & Equipment","Medical/Dental Supplies & Equipment","Medical/Dental Supplies & Equipment","Medical/Dental Supplies & Equipment"]
["Office Equipment","Office Equipment","Office Equipment","Office Equipment","Office Equipment","Office Equipment","Office Equipment","Office Equipment","Office Equipment","Office Equipment","Office Equipment","Office Equipment"]
["Office Furniture","Office Furniture","Office Furniture","Office Furniture","Office Furniture","Office Furniture","Office Furniture","Office Furniture","Office Furniture","Office Furniture","Office Furniture","Office Furniture"]
["Office Supplies","Office Supplies","Office Supplies","Office Supplies","Office Supplies","Office Supplies","Office Supplies","Office Supplies","Office Supplies","Office Supplies","Office Supplies","Office Supplies"]
["Office Supplies/Equipment - Conversion","Office Supplies/Equipment - Conversion","Office Supplies/Equipment - Conversion","Office Supplies/Equipment - Conversion","Office Supplies/Equipment - Conversion","Office Supplies/Equipment - Conversion","Office Supplies/Equipment - Conversion","Office Supplies/Equipment - Conversion","Office Supplies/Equipment - Conversion","Office Supplies/Equipment - Conversion","Office Supplies/Equipment - Conversion","Office Supplies/Equipment - Conversion"]
["Oils & Lubricants","Oils & Lubricants","Oils & Lubricants","Oils & Lubricants","Oils & Lubricants","Oils & Lubricants","Oils & Lubricants","Oils & Lubricants","Oils & Lubricants","Oils & Lubricants","Oils & Lubricants","Oils & Lubricants"]
["Other Supplies & Equipment","Other Supplies & Equipment","Other Supplies & Equipment","Other Supplies & Equipment","Other Supplies & Equipment","Other Supplies & Equipment","Other Supplies & Equipment","Other Supplies & Equipment","Other Supplies & Equipment","Other Supplies & Equipment","Other Supplies & Equipment","Other Supplies & Equipment"]
["Paint Supplies & Equipment","Paint Supplies & Equipment","Paint Supplies & Equipment","Paint Supplies & Equipment","Paint Supplies & Equipment","Paint Supplies & Equipment","Paint Supplies & Equipment","Paint Supplies & Equipment","Paint Supplies & Equipment","Paint Supplies & Equipment","Paint Supplies & Equipment","Paint Supplies & Equipment"]
["Procurement Shipping","Procurement Shipping","Procurement Shipping","Procurement Shipping","Procurement Shipping","Procurement Shipping","Procurement Shipping","Procurement Shipping","Procurement Shipping","Procurement Shipping","Procurement Shipping","Procurement Shipping"]
["Prompt Pay Interest Expense","Prompt Pay Interest Expense","Prompt Pay Interest Expense","Prompt Pay Interest Expense","Prompt Pay Interest Expense","Prompt Pay Interest Expense","Prompt Pay Interest Expense","Prompt Pay Interest Expense","Prompt Pay Interest Expense","Prompt Pay Interest Expense","Prompt Pay Interest Expense","Prompt Pay Interest Expense"]
["Recreational Supplies & Equipment","Recreational Supplies & Equipment","Recreational Supplies & Equipment","Recreational Supplies & Equipment","Recreational Supplies & Equipment","Recreational Supplies & Equipment","Recreational Supplies & Equipment","Recreational Supplies & Equipment","Recreational Supplies & Equipment","Recreational Supplies & Equipment","Recreational Supplies & Equipment","Recreational Supplies & Equipment"]
["Road and Highway Supplies & Equipment","Road and Highway Supplies & Equipment","Road and Highway Supplies & Equipment","Road and Highway Supplies & Equipment","Road and Highway Supplies & Equipment","Road and Highway Supplies & Equipment","Road and Highway Supplies & Equipment","Road and Highway Supplies & Equipment","Road and Highway Supplies & Equipment","Road and Highway Supplies & Equipment","Road and Highway Supplies & Equipment","Road and Highway Supplies & Equipment"]
["Road Material-Asphaltic","Road Material-Asphaltic","Road Material-Asphaltic","Road Material-Asphaltic","Road Material-Asphaltic","Road Material-Asphaltic","Road Material-Asphaltic","Road Material-Asphaltic","Road Material-Asphaltic","Road Material-Asphaltic","Road Material-Asphaltic","Road Material-Asphaltic"]
["Road Material-Non Asphaltic","Road Material-Non Asphaltic","Road Material-Non Asphaltic","Road Material-Non Asphaltic","Road Material-Non Asphaltic","Road Material-Non Asphaltic","Road Material-Non Asphaltic","Road Material-Non Asphaltic","Road Material-Non Asphaltic","Road Material-Non Asphaltic","Road Material-Non Asphaltic","Road Material-Non Asphaltic"]
["Safety Supplies & Equipment","Safety Supplies & Equipment","Safety Supplies & Equipment","Safety Supplies & Equipment","Safety Supplies & Equipment","Safety Supplies & Equipment","Safety Supplies & Equipment","Safety Supplies & Equipment","Safety Supplies & Equipment","Safety Supplies & Equipment","Safety Supplies & Equipment","Safety Supplies & Equipment"]
["Software","Software","Software","Software","Software","Software","Software","Software","Software","Software","Software","Software"]
["Textile and Linen Supplies","Textile and Linen Supplies","Textile and Linen Supplies","Textile and Linen Supplies","Textile and Linen Supplies","Textile and Linen Supplies","Textile and Linen Supplies","Textile and Linen Supplies","Textile and Linen Supplies","Textile and Linen Supplies","Textile and Linen Supplies","Textile and Linen Supplies"]
["Traffic Control/Signage Supplies & Equipment","Traffic Control/Signage Supplies & Equipment","Traffic Control/Signage Supplies & Equipment","Traffic Control/Signage Supplies & Equipment","Traffic Control/Signage Supplies & Equipment","Traffic Control/Signage Supplies & Equipment","Traffic Control/Signage Supplies & Equipment","Traffic Control/Signage Supplies & Equipment","Traffic Control/Signage Supplies & Equipment","Traffic Control/Signage Supplies & Equipment","Traffic Control/Signage Supplies & Equipment","Traffic Control/Signage Supplies & Equipment"]
["Vehicle Supplies & Equipment","Vehicle Supplies & Equipment","Vehicle Supplies & Equipment","Vehicle Supplies & Equipment","Vehicle Supplies & Equipment","Vehicle Supplies & Equipment","Vehicle Supplies & Equipment","Vehicle Supplies & Equipment","Vehicle Supplies & Equipment","Vehicle Supplies & Equipment","Vehicle Supplies & Equipment","Vehicle Supplies & Equipment"]
["Veterinary/Livestock Supplies & Equipment","Veterinary/Livestock Supplies & Equipment","Veterinary/Livestock Supplies & Equipment","Veterinary/Livestock Supplies & Equipment","Veterinary/Livestock Supplies & Equipment","Veterinary/Livestock Supplies & Equipment","Veterinary/Livestock Supplies & Equipment","Veterinary/Livestock Supplies & Equipment","Veterinary/Livestock Supplies & Equipment","Veterinary/Livestock Supplies & Equipment","Veterinary/Livestock Supplies & Equipment","Veterinary/Livestock Supplies & Equipment"]
["Weatherization Material PPV","Weatherization Material PPV","Weatherization Material PPV","Weatherization Material PPV","Weatherization Material PPV","Weatherization Material PPV","Weatherization Material PPV","Weatherization Material PPV","Weatherization Material PPV","Weatherization Material PPV","Weatherization Material PPV","Weatherization Material PPV"]
["Weatherization Material Purchased","Weatherization Material Purchased","Weatherization Material Purchased","Weatherization Material Purchased","Weatherization Material Purchased","Weatherization Material Purchased","Weatherization Material Purchased","Weatherization Material Purchased","Weatherization Material Purchased","Weatherization Material Purchased","Weatherization Material Purchased","Weatherization Material Purchased"]
["Weatherization Material Scrap/Diff","Weatherization Material Scrap/Diff","Weatherization Material Scrap/Diff","Weatherization Material Scrap/Diff","Weatherization Material Scrap/Diff","Weatherization Material Scrap/Diff","Weatherization Material Scrap/Diff","Weatherization Material Scrap/Diff","Weatherization Material Scrap/Diff","Weatherization Material Scrap/Diff","Weatherization Material Scrap/Diff","Weatherization Material Scrap/Diff"]
["Weatherization Material Used","Weatherization Material Used","Weatherization Material Used","Weatherization Material Used","Weatherization Material Used","Weatherization Material Used","Weatherization Material Used","Weatherization Material Used","Weatherization Material Used","Weatherization Material Used","Weatherization Material Used","Weatherization Material Used"]
["Inhouse Training/Online Courses","Inhouse Training/Online Courses","Inhouse Training/Online Courses","Inhouse Training/Online Courses","Inhouse Training/Online Courses","Inhouse Training/Online Courses","Inhouse Training/Online Courses","Inhouse Training/Online Courses","Inhouse Training/Online Courses","Inhouse Training/Online Courses","Inhouse Training/Online Courses","Inhouse Training/Online Courses"]
["Professional Licenses","Professional Licenses","Professional Licenses","Professional Licenses","Professional Licenses","Professional Licenses","Professional Licenses","Professional Licenses","Professional Licenses","Professional Licenses","Professional Licenses","Professional Licenses"]
["Professional Membership","Professional Membership","Professional Membership","Professional Membership","Professional Membership","Professional Membership","Professional Membership","Professional Membership","Professional Membership","Professional Membership","Professional Membership","Professional Membership"]
["Registration Conferences/Seminars","Registration Conferences/Seminars","Registration Conferences/Seminars","Registration Conferences/Seminars","Registration Conferences/Seminars","Registration Conferences/Seminars","Registration Conferences/Seminars","Registration Conferences/Seminars","Registration Conferences/Seminars","Registration Conferences/Seminars","Registration Conferences/Seminars","Registration Conferences/Seminars"]
["Routine Mileage","Routine Mileage","Routine Mileage","Routine Mileage","Routine Mileage","Routine Mileage","Routine Mileage","Routine Mileage","Routine Mileage","Routine Mileage","Routine Mileage","Routine Mileage"]
["Subscriptions & Publications","Subscriptions & Publications","Subscriptions & Publications","Subscriptions & Publications","Subscriptions & Publications","Subscriptions & Publications","Subscriptions & Publications","Subscriptions & Publications","Subscriptions & Publications","Subscriptions & Publications","Subscriptions & Publications","Subscriptions & Publications"]
["Training Facility - Rental Expense","Training Facility - Rental Expense","Training Facility - Rental Expense","Training Facility - Rental Expense","Training Facility - Rental Expense","Training Facility - Rental Expense","Training Facility - Rental Expense","Training Facility - Rental Expense","Training Facility - Rental Expense","Training Facility - Rental Expense","Training Facility - Rental Expense","Training Facility - Rental Expense"]
["Training Material/Books","Training Material/Books","Training Material/Books","Training Material/Books","Training Material/Books","Training Material/Books","Training Material/Books","Training Material/Books","Training Material/Books","Training Material/Books","Training Material/Books","Training Material/Books"]
["Travel Encumbrances","Travel Encumbrances","Travel Encumbrances","Travel Encumbrances","Travel Encumbrances","Travel Encumbrances","Travel Encumbrances","Travel Encumbrances","Travel Encumbrances","Travel Encumbrances","Travel Encumbrances","Travel Encumbrances"]
["Travel Imputed Income","Travel Imputed Income","Travel Imputed Income","Travel Imputed Income","Travel Imputed Income","Travel Imputed Income","Travel Imputed Income","Travel Imputed Income","Travel Imputed Income","Travel Imputed Income","Travel Imputed Income","Travel Imputed Income"]
["Travel-Lodging  Meals & Other","Travel-Lodging  Meals & Other","Travel-Lodging  Meals & Other","Travel-Lodging  Meals & Other","Travel-Lodging  Meals & Other","Travel-Lodging  Meals & Other","Travel-Lodging  Meals & Other","Travel-Lodging  Meals & Other","Travel-Lodging  Meals & Other","Travel-Lodging  Meals & Other","Travel-Lodging  Meals & Other","Travel-Lodging  Meals & Other"]
["Travel-Mileage","Travel-Mileage","Travel-Mileage","Travel-Mileage","Travel-Mileage","Travel-Mileage","Travel-Mileage","Travel-Mileage","Travel-Mileage","Travel-Mileage","Travel-Mileage","Travel-Mileage"]

{"sheet":"Data CIs PB5","index":27,"n_rows":863,"n_cols":51,"rows_kept":863,"cut":false,"hidden":true,"merged":[]}
["Short Description","Full Description","Rollup CI","Commitment item","Category","Dept. Rollup Exclusions",null,"Operating CI's, check latest date and observe any that might need to be added",null,null,"Commitment item","Short Description","Full Description","Entered on","Category","Column1",null,"Comm Items master data table",null,null,"Commitment item","AVC C#I#","F3","F4","F5","F6","F7","F8","F9","F10","F11","F12",null,"Sort by Full name then PB5 rollup","Reporting Rollup 1","PB-5 Rollup","Reporting/Budget Control Rollup","HTE GL Acct","SAP GL Account","Long text","Exclude from PB-5","Column8","Column9","Column10","Column11","Column12",null,"Unique List",null,"Search Term CI Category",{"$f":"'Details (PB5)'!$A30","v":0}]
[null,{"$f":"budget_form_lookups[[#This Row],[Long text]]","v":"SBITA Principal"},{"$f":"IFERROR(INDEX(V:V,MATCH(D2,U:U,0)),D2)","v":530023},{"$f":"budget_form_lookups[[#This Row],[SAP GL Account]]","v":530025},{"$f":"budget_form_lookups[[#This Row],[PB-5 Rollup]]","v":"Capital Lease and Other Debt Expenses"},null,null,"Updated 01/27/23",null,null,500010,"Sal-Elctd/Apptd Ofcl","Salaries-Elected/Appointed Officials","2012-05-14",{"$f":"_xlfn.XLOOKUP(CI_s[[#This Row],[Commitment item]],AM:AM,AK:AK)","v":{"$error":"#N/A"}},{"$f":"_xlfn.XLOOKUP(CI_s[[#This Row],[Commitment item]],AM:AM,AN:AN)","v":{"$error":"#N/A"}},null,null,null,null,500010,500010,"Sal-Elctd/Apptd Ofcl",null,null,null,null,null,null,null,null,null,null,null,null,"Capital Lease and Other Debt Expenses","Capital Lease-Principal",8502,530025,"SBITA Principal","(willl be used by beth adams)",null,null,null,null,null,null,{"$f":"_xlfn._xlws.SORT(_xlfn.UNIQUE(_xlfn._xlws.FILTER(E2:E9999,E2:E9999<>\"\",\"\")),1)","v":"Capital Lease and Other Debt Expenses"},null,null,{"$f":"'Details (PB5)'!$A31","v":0}]
[null,{"$f":"budget_form_lookups[[#This Row],[Long text]]","v":"Capital Outlay-Aircraft & Boating Equipment"},520010,{"$f":"budget_form_lookups[[#This Row],[SAP GL Account]]","v":520010},{"$f":"budget_form_lookups[[#This Row],[PB-5 Rollup]]","v":"Capital Outlay Equipment"},null,null,"filter on data ci removed list",null,null,500011,"Longvty Pay-Elctd Of","Longevity Pay-Elected Officials","2017-04-19",{"$f":"_xlfn.XLOOKUP(CI_s[[#This Row],[Commitment item]],AM:AM,AK:AK)","v":{"$error":"#N/A"}},{"$f":"_xlfn.XLOOKUP(CI_s[[#This Row],[Commitment item]],AM:AM,AN:AN)","v":{"$error":"#N/A"}},null,null,null,null,500011,500010,"Longevity Pay-Elected Officials",null,null,null,null,null,null,null,null,null,null,null,"Capital Expenditures","Capital Outlay Equipment","Capital Outlay-Aircraft & Boating Equipment",8022,520010,"Capital Outlay-Aircraft & Boating Equipment",null,null,null,null,null,null,null,"Capital Outlay Equipment",null,null,{"$f":"'Details (PB5)'!$A32","v":0}]
[null,{"$f":"budget_form_lookups[[#This Row],[Long text]]","v":"Capital Outlay-Automobiles"},520010,{"$f":"budget_form_lookups[[#This Row],[SAP GL Account]]","v":520020},{"$f":"budget_form_lookups[[#This Row],[PB-5 Rollup]]","v":"Capital Outlay Equipment"},null,null,null,null,null,500020,"Sal-TermPay Apptd Of","Salaries-Termination Pay Appointed Officials","2012-05-14",{"$f":"_xlfn.XLOOKUP(CI_s[[#This Row],[Commitment item]],AM:AM,AK:AK)","v":{"$error":"#N/A"}},{"$f":"_xlfn.XLOOKUP(CI_s[[#This Row],[Commitment item]],AM:AM,AN:AN)","v":{"$error":"#N/A"}},null,null,null,null,500020,500010,null,null,null,null,null,null,null,null,null,null,null,null,null,"Capital Outlay Equipment","Capital Outlay-Automobiles",8020,520020,"Capital Outlay-Automobiles",null,null,null,null,null,null,null,"Capital Outlay Mtrl",null,null,{"$f":"'Details (PB5)'!$A33","v":0}]
[null,{"$f":"budget_form_lookups[[#This Row],[Long text]]","v":"Capital Outlay-Automotive Repair & Equipment"},520010,{"$f":"budget_form_lookups[[#This Row],[SAP GL Account]]","v":520030},{"$f":"budget_form_lookups[[#This Row],[PB-5 Rollup]]","v":"Capital Outlay Equipment"},null,null,null,null,null,500030,"Sal-Co Exec/Oth Mgr","Salaries-County Execs/Other Mgr","2012-05-14",{"$f":"_xlfn.XLOOKUP(CI_s[[#This Row],[Commitment item]],AM:AM,AK:AK)","v":{"$error":"#N/A"}},{"$f":"_xlfn.XLOOKUP(CI_s[[#This Row],[Commitment item]],AM:AM,AN:AN)","v":{"$error":"#N/A"}},null,null,null,null,500030,500030,"Sal-Co Exec/Oth Mgr",null,null,null,null,null,null,null,null,null,null,null,null,"Capital Outlay Equipment","Capital Outlay-Automotive Repair & Equipment",8021,520030,"Capital Outlay-Automotive Repair & Equipment",null,null,null,null,null,null,null,"Capital Outlay Svc",null,null,{"$f":"'Details (PB5)'!$A34","v":0}]
[null,{"$f":"budget_form_lookups[[#This Row],[Long text]]","v":"Capital Outlay-Building Maintenance Equipment"},520010,{"$f":"budget_form_lookups[[#This Row],[SAP GL Account]]","v":520040},{"$f":"budget_form_lookups[[#This Row],[PB-5 Rollup]]","v":"Capital Outlay Equipment"},null,null,null,null,null,500036,"Emergsick/Exec-COVID","Emerg Sick Leave- County Exec-COVID19","2020-03-24",{"$f":"_xlfn.XLOOKUP(CI_s[[#This Row],[Commitment item]],AM:AM,AK:AK)","v":{"$error":"#N/A"}},{"$f":"_xlfn.XLOOKUP(CI_s[[#This Row],[Commitment item]],AM:AM,AN:AN)","v":{"$error":"#N/A"}},null,null,null,null,500036,500030,null,null,null,null,null,null,null,null,null,null,null,null,null,"Capital Outlay Equipment","Capital Outlay-Building Maintenance Equipment",8011,520040,"Capital Outlay-Building Maintenance Equipment",null,null,null,null,null,null,null,"County Employment Related Expenses",null,null,{"$f":"'Details (PB5)'!$A35","v":0}]
[null,{"$f":"budget_form_lookups[[#This Row],[Long text]]","v":"Capital Outlay-Computer Equipment"},520010,{"$f":"budget_form_lookups[[#This Row],[SAP GL Account]]","v":520050},{"$f":"budget_form_lookups[[#This Row],[PB-5 Rollup]]","v":"Capital Outlay Equipment"},null,null,null,null,null,500037,"EmergFMLA/Exec-COVID","Emerg FMLA-County Exec-COVID19","2020-03-24",{"$f":"_xlfn.XLOOKUP(CI_s[[#This Row],[Commitment item]],AM:AM,AK:AK)","v":{"$error":"#N/A"}},{"$f":"_xlfn.XLOOKUP(CI_s[[#This Row],[Commitment item]],AM:AM,AN:AN)","v":{"$error":"#N/A"}},null,null,null,null,500037,500030,null,null,null,null,null,null,null,null,null,null,null,null,null,"Capital Outlay Equipment","Capital Outlay-Computer Equipment",8001,520050,"Capital Outlay-Computer Equipment",null,null,null,null,null,null,null,"Court and Law Enforcement Related Expenditures",null,null,{"$f":"'Details (PB5)'!$A36","v":0}]
[null,{"$f":"budget_form_lookups[[#This Row],[Long text]]","v":"Capital Outlay-Custodial Equipment"},520010,{"$f":"budget_form_lookups[[#This Row],[SAP GL Account]]","v":520060},{"$f":"budget_form_lookups[[#This Row],[PB-5 Rollup]]","v":"Capital Outlay Equipment"},null,null,null,null,null,500040,"Sal-TermPay Exec/Mgr","Salaries-Termination Pay County Execs/Other Mgr","2012-05-14",{"$f":"_xlfn.XLOOKUP(CI_s[[#This Row],[Commitment item]],AM:AM,AK:AK)","v":{"$error":"#N/A"}},{"$f":"_xlfn.XLOOKUP(CI_s[[#This Row],[Commitment item]],AM:AM,AN:AN)","v":{"$error":"#N/A"}},null,null,null,null,500040,500030,null,null,null,null,null,null,null,null,null,null,null,null,null,"Capital Outlay Equipment","Capital Outlay-Custodial Equipment",8031,520060,"Capital Outlay-Custodial Equipment",null,null,null,null,null,null,null,"Insurance Premiums",null,null,{"$f":"'Details (PB5)'!$A37","v":0}]
[null,{"$f":"budget_form_lookups[[#This Row],[Long text]]","v":"Capital Outlay-Educational/Communication Equipment"},520010,{"$f":"budget_form_lookups[[#This Row],[SAP GL Account]]","v":520070},{"$f":"budget_form_lookups[[#This Row],[PB-5 Rollup]]","v":"Capital Outlay Equipment"},null,null,null,null,null,500050,"Sal-Reg Emp","Salaries-Regular Employee","2012-05-14",{"$f":"_xlfn.XLOOKUP(CI_s[[#This Row],[Commitment item]],AM:AM,AK:AK)","v":{"$error":"#N/A"}},{"$f":"_xlfn.XLOOKUP(CI_s[[#This Row],[Commitment item]],AM:AM,AN:AN)","v":{"$error":"#N/A"}},null,null,null,null,500050,500050,"Sal-Reg Emp",null,null,null,null,null,null,null,null,null,null,null,null,"Capital Outlay Equipment","Capital Outlay-Educational/Communication Equipment",8013,520070,"Capital Outlay-Educational/Communication Equipment",null,null,null,null,null,null,null,"Loss & Claims",null,null,{"$f":"'Details (PB5)'!$A38","v":0}]
[null,{"$f":"budget_form_lookups[[#This Row],[Long text]]","v":"Capital Outlay-Election Equipment"},520010,{"$f":"budget_form_lookups[[#This Row],[SAP GL Account]]","v":520080},{"$f":"budget_form_lookups[[#This Row],[PB-5 Rollup]]","v":"Capital Outlay Equipment"},null,null,null,null,null,500055,"RegShtDf-NonExNonPOP","Regular Shift Diff-Non-Exempts Non-POPS","2018-11-09",{"$f":"_xlfn.XLOOKUP(CI_s[[#This Row],[Commitment item]],AM:AM,AK:AK)","v":{"$error":"#N/A"}},{"$f":"_xlfn.XLOOKUP(CI_s[[#This Row],[Commitment item]],AM:AM,AN:AN)","v":{"$error":"#N/A"}},null,null,null,null,500055,500050,null,null,null,null,null,null,null,null,null,null,null,null,null,"Capital Outlay Equipment","Capital Outlay-Election Equipment",8063,520080,"Capital Outlay-Election Equipment",null,null,null,null,null,null,null,"Miscellaneous Operating",null,null,{"$f":"'Details (PB5)'!$A39","v":0}]
[null,{"$f":"budget_form_lookups[[#This Row],[Long text]]","v":"Capital Outlay-Electrical Equipment"},520010,{"$f":"budget_form_lookups[[#This Row],[SAP GL Account]]","v":520090},{"$f":"budget_form_lookups[[#This Row],[PB-5 Rollup]]","v":"Capital Outlay Equipment"},null,null,null,null,null,500056,"Emergsick/Reg-COVID","Emerg Sick Leave-Regular Emp-COVID19","2020-03-24",{"$f":"_xlfn.XLOOKUP(CI_s[[#This Row],[Commitment item]],AM:AM,AK:AK)","v":{"$error":"#N/A"}},{"$f":"_xlfn.XLOOKUP(CI_s[[#This Row],[Commitment item]],AM:AM,AN:AN)","v":{"$error":"#N/A"}},null,null,null,null,500056,500050,null,null,"emailed Kelly",null,null,null,null,null,null,null,null,null,null,"Capital Outlay Equipment","Capital Outlay-Electrical Equipment",8012,520090,"Capital Outlay-Electrical Equipment",null,null,null,null,null,null,null,"Miscellaneous Operating Expenditures",null,null,{"$f":"'Details (PB5)'!$A40","v":0}]
[null,{"$f":"budget_form_lookups[[#This Row],[Long text]]","v":"Capital Outlay-Groundskeeping Equipment"},520010,{"$f":"budget_form_lookups[[#This Row],[SAP GL Account]]","v":520100},{"$f":"budget_form_lookups[[#This Row],[PB-5 Rollup]]","v":"Capital Outlay Equipment"},null,null,null,null,null,500057,"EmergFMLA/Reg-COVID","Emerg FMLA-Regular Emp-COVID19","2020-03-24",{"$f":"_xlfn.XLOOKUP(CI_s[[#This Row],[Commitment item]],AM:AM,AK:AK)","v":{"$error":"#N/A"}},{"$f":"_xlfn.XLOOKUP(CI_s[[#This Row],[Commitment item]],AM:AM,AN:AN)","v":{"$error":"#N/A"}},null,null,null,null,500057,500050,null,null,null,null,null,null,null,null,null,null,null,null,null,"Capital Outlay Equipment","Capital Outlay-Groundskeeping Equipment",8043,520100,"Capital Outlay-Groundskeeping Equipment",null,null,null,null,null,null,null,"Operating Transfers",null,null,{"$f":"'Details (PB5)'!$A41","v":0}]
[null,{"$f":"budget_form_lookups[[#This Row],[Long text]]","v":"Capital Outlay-Institutional Equipment"},520010,{"$f":"budget_form_lookups[[#This Row],[SAP GL Account]]","v":520110},{"$f":"budget_form_lookups[[#This Row],[PB-5 Rollup]]","v":"Capital Outlay Equipment"},null,null,null,null,null,500058,"RetentionPay-NonPOPS","Retention Pay-NonPOPS","2022-05-24",{"$f":"_xlfn.XLOOKUP(CI_s[[#This Row],[Commitment item]],AM:AM,AK:AK)","v":{"$error":"#N/A"}},{"$f":"_xlfn.XLOOKUP(CI_s[[#This Row],[Commitment item]],AM:AM,AN:AN)","v":{"$error":"#N/A"}},null,null,null,null,500060,500050,null,null,null,null,null,null,null,null,null,null,null,null,null,"Capital Outlay Equipment","Capital Outlay-Institutional Equipment",8036,520110,"Capital Outlay-Institutional Equipment",null,null,null,null,null,null,null,"Services"]
[null,{"$f":"budget_form_lookups[[#This Row],[Long text]]","v":"Capital Outlay-Kitchen Equipment"},520010,{"$f":"budget_form_lookups[[#This Row],[SAP GL Account]]","v":520120},{"$f":"budget_form_lookups[[#This Row],[PB-5 Rollup]]","v":"Capital Outlay Equipment"},null,null,null,null,null,500059,"Incentive Pay-NonPOP","Incentive Pay-NonPOPS","2023-07-26",{"$f":"_xlfn.XLOOKUP(CI_s[[#This Row],[Commitment item]],AM:AM,AK:AK)","v":{"$error":"#N/A"}},{"$f":"_xlfn.XLOOKUP(CI_s[[#This Row],[Commitment item]],AM:AM,AN:AN)","v":{"$error":"#N/A"}},null,null,null,null,500065,500050,null,null,null,null,null,null,null,null,null,null,null,null,null,"Capital Outlay Equipment","Capital Outlay-Kitchen Equipment",8032,520120,"Capital Outlay-Kitchen Equipment",null,null,null,null,null,null,null,"Supplies & Equipment"]
[null,{"$f":"budget_form_lookups[[#This Row],[Long text]]","v":"Capital Outlay-Laboratory Equipment"},520010,{"$f":"budget_form_lookups[[#This Row],[SAP GL Account]]","v":520130},{"$f":"budget_form_lookups[[#This Row],[PB-5 Rollup]]","v":"Capital Outlay Equipment"},null,null,null,null,null,500060,"Sal-Term Pay Reg Emp","Salaries-Termination Pay Regular Employee","2012-05-14",{"$f":"_xlfn.XLOOKUP(CI_s[[#This Row],[Commitment item]],AM:AM,AK:AK)","v":{"$error":"#N/A"}},{"$f":"_xlfn.XLOOKUP(CI_s[[#This Row],[Commitment item]],AM:AM,AN:AN)","v":{"$error":"#N/A"}},null,null,null,null,500076,500070,null,null,null,null,null,null,null,null,null,null,null,null,null,"Capital Outlay Equipment","Capital Outlay-Laboratory Equipment",8053,520130,"Capital Outlay-Laboratory Equipment",null,null,null,null,null,null,null,"Travel & Professional Development"]
[null,{"$f":"budget_form_lookups[[#This Row],[Long text]]","v":"Capital Outlay-Law Enforcement Equipment"},520010,{"$f":"budget_form_lookups[[#This Row],[SAP GL Account]]","v":520140},{"$f":"budget_form_lookups[[#This Row],[PB-5 Rollup]]","v":"Capital Outlay Equipment"},null,null,null,null,null,500065,"ParentLve-Non-POPS","Parental Leave - Non-POPS","2022-05-20",{"$f":"_xlfn.XLOOKUP(CI_s[[#This Row],[Commitment item]],AM:AM,AK:AK)","v":{"$error":"#N/A"}},{"$f":"_xlfn.XLOOKUP(CI_s[[#This Row],[Commitment item]],AM:AM,AN:AN)","v":{"$error":"#N/A"}},null,null,null,null,500077,500070,null,null,null,null,null,null,null,null,null,null,null,null,null,"Capital Outlay Equipment","Capital Outlay-Law Enforcement Equipment",8055,520140,"Capital Outlay-Law Enforcement Equipment"]
[null,{"$f":"budget_form_lookups[[#This Row],[Long text]]","v":"Capital Outlay-Medical/Dental/Safety Equipment"},520010,{"$f":"budget_form_lookups[[#This Row],[SAP GL Account]]","v":520150},{"$f":"budget_form_lookups[[#This Row],[PB-5 Rollup]]","v":"Capital Outlay Equipment"},null,null,null,null,null,500066,"Emergsick/Temp-COVID","Emerg Sick Leave-Temp Emp-COVID19","2020-03-24",{"$f":"_xlfn.XLOOKUP(CI_s[[#This Row],[Commitment item]],AM:AM,AK:AK)","v":{"$error":"#N/A"}},{"$f":"_xlfn.XLOOKUP(CI_s[[#This Row],[Commitment item]],AM:AM,AN:AN)","v":{"$error":"#N/A"}},null,null,null,null,500080,500080,"Visiting Judges",null,null,null,null,null,null,null,null,null,null,null,null,"Capital Outlay Equipment","Capital Outlay-Medical/Dental/Safety Equipment",8051,520150,"Capital Outlay-Medical/Dental/Safety Equipment"]
[null,{"$f":"budget_form_lookups[[#This Row],[Long text]]","v":"Capital Outlay-Office Equipment"},520010,{"$f":"budget_form_lookups[[#This Row],[SAP GL Account]]","v":520160},{"$f":"budget_form_lookups[[#This Row],[PB-5 Rollup]]","v":"Capital Outlay Equipment"},null,null,null,null,null,500067,"EmergFMLA/Temp-COVID","Emerg FMLA-Temp Emp-COVID19","2020-03-24",{"$f":"_xlfn.XLOOKUP(CI_s[[#This Row],[Commitment item]],AM:AM,AK:AK)","v":{"$error":"#N/A"}},{"$f":"_xlfn.XLOOKUP(CI_s[[#This Row],[Commitment item]],AM:AM,AN:AN)","v":{"$error":"#N/A"}},null,null,null,null,500090,500090,"Sal-Associate Judges",null,null,null,null,null,null,null,null,null,null,null,null,"Capital Outlay Equipment","Capital Outlay-Office Equipment",8001,520160,"Capital Outlay-Office Equipment"]
[null,{"$f":"budget_form_lookups[[#This Row],[Long text]]","v":"Capital Outlay-Office Furniture"},520010,{"$f":"budget_form_lookups[[#This Row],[SAP GL Account]]","v":520170},{"$f":"budget_form_lookups[[#This Row],[PB-5 Rollup]]","v":"Capital Outlay Equipment"},null,null,null,null,null,500070,"Sal-Temp Emp","Salaries-Temporary Employee","2012-05-14",{"$f":"_xlfn.XLOOKUP(CI_s[[#This Row],[Commitment item]],AM:AM,AK:AK)","v":{"$error":"#N/A"}},{"$f":"_xlfn.XLOOKUP(CI_s[[#This Row],[Commitment item]],AM:AM,AN:AN)","v":{"$error":"#N/A"}},null,null,null,null,500096,500090,null,null,null,null,null,null,null,null,null,null,null,null,null,"Capital Outlay Equipment","Capital Outlay-Office Furniture",8001,520170,"Capital Outlay-Office Furniture"]
[null,{"$f":"budget_form_lookups[[#This Row],[Long text]]","v":"Capital Outlay-Other Equipment"},520010,{"$f":"budget_form_lookups[[#This Row],[SAP GL Account]]","v":520180},{"$f":"budget_form_lookups[[#This Row],[PB-5 Rollup]]","v":"Capital Outlay Equipment"},null,null,null,null,null,500071,"Non-Tax Earn-TempEmp","Non-Taxable Earnings - Temp Empl","2023-11-01",{"$f":"_xlfn.XLOOKUP(CI_s[[#This Row],[Commitment item]],AM:AM,AK:AK)","v":{"$error":"#N/A"}},{"$f":"_xlfn.XLOOKUP(CI_s[[#This Row],[Commitment item]],AM:AM,AN:AN)","v":{"$error":"#N/A"}},null,null,null,null,500097,500090,null,null,null,null,null,null,null,null,null,null,null,null,null,"Capital Outlay Equipment","Capital Outlay-Other Equipment","8003, 8015, 8099",520180,"Capital Outlay-Other Equipment"]
[null,{"$f":"budget_form_lookups[[#This Row],[Long text]]","v":"Capital Outlay-Recreational Equipment"},520010,{"$f":"budget_form_lookups[[#This Row],[SAP GL Account]]","v":520190},{"$f":"budget_form_lookups[[#This Row],[PB-5 Rollup]]","v":"Capital Outlay Equipment"},null,null,null,null,null,500076,"Emergsick/Temp-COVID","Emerg Sick Leave-COVID19 Temp Emp","2020-03-24",{"$f":"_xlfn.XLOOKUP(CI_s[[#This Row],[Commitment item]],AM:AM,AK:AK)","v":{"$error":"#N/A"}},{"$f":"_xlfn.XLOOKUP(CI_s[[#This Row],[Commitment item]],AM:AM,AN:AN)","v":{"$error":"#N/A"}},null,null,null,null,500100,500090,null,null,null,null,null,null,null,null,null,null,null,null,null,"Capital Outlay Equipment","Capital Outlay-Recreational Equipment",8041,520190,"Capital Outlay-Recreational Equipment"]
[null,{"$f":"budget_form_lookups[[#This Row],[Long text]]","v":"Capital Outlay-Road and Highway Equipment"},520010,{"$f":"budget_form_lookups[[#This Row],[SAP GL Account]]","v":520200},{"$f":"budget_form_lookups[[#This Row],[PB-5 Rollup]]","v":"Capital Outlay Equipment"},null,null,null,null,null,500077,"EmergFMLA/Temp-COVID","Emerg FMLA-COVID19 Temp Emp","2020-03-24",{"$f":"_xlfn.XLOOKUP(CI_s[[#This Row],[Commitment item]],AM:AM,AK:AK)","v":{"$error":"#N/A"}},{"$f":"_xlfn.XLOOKUP(CI_s[[#This Row],[Commitment item]],AM:AM,AN:AN)","v":{"$error":"#N/A"}},null,null,null,null,501010,501010,"Sal-POPS",null,null,null,null,null,null,null,null,null,null,null,null,"Capital Outlay Equipment","Capital Outlay-Road and Highway Equipment",8061,520200,"Capital Outlay-Road and Highway Equipment"]
[null,{"$f":"budget_form_lookups[[#This Row],[Long text]]","v":"Capital Outlay-Software"},520010,{"$f":"budget_form_lookups[[#This Row],[SAP GL Account]]","v":520210},{"$f":"budget_form_lookups[[#This Row],[PB-5 Rollup]]","v":"Capital Outlay Equipment"},null,null,null,null,null,500078,"RetentionPay-TempEmp","Retention Pay-Temp Emp","2022-05-24",{"$f":"_xlfn.XLOOKUP(CI_s[[#This Row],[Commitment item]],AM:AM,AK:AK)","v":{"$error":"#N/A"}},{"$f":"_xlfn.XLOOKUP(CI_s[[#This Row],[Commitment item]],AM:AM,AN:AN)","v":{"$error":"#N/A"}},null,null,null,null,501015,501010,null,null,null,null,null,null,null,null,null,null,null,null,null,"Capital Outlay Equipment","Capital Outlay-Software",8002,520210,"Capital Outlay-Software"]
[null,{"$f":"budget_form_lookups[[#This Row],[Long text]]","v":"Capital Outlay-Traffic Control/Signage Equipment"},520010,{"$f":"budget_form_lookups[[#This Row],[SAP GL Account]]","v":520220},{"$f":"budget_form_lookups[[#This Row],[PB-5 Rollup]]","v":"Capital Outlay Equipment"},null,null,null,null,null,500079,"Incntve Pay-Temp Emp","Incentive Pay-Temp Emp","2023-07-27",{"$f":"_xlfn.XLOOKUP(CI_s[[#This Row],[Commitment item]],AM:AM,AK:AK)","v":{"$error":"#N/A"}},{"$f":"_xlfn.XLOOKUP(CI_s[[#This Row],[Commitment item]],AM:AM,AN:AN)","v":{"$error":"#N/A"}},null,null,null,null,501016,501010,null,null,null,null,null,null,null,null,null,null,null,null,null,"Capital Outlay Equipment","Capital Outlay-Traffic Control/Signage Equipment",8062,520220,"Capital Outlay-Traffic Control/Signage Equipment"]
[null,{"$f":"budget_form_lookups[[#This Row],[Long text]]","v":"Cap Outlay Mtrl-Assets Under Construction"},520010,{"$f":"budget_form_lookups[[#This Row],[SAP GL Account]]","v":522100},{"$f":"budget_form_lookups[[#This Row],[PB-5 Rollup]]","v":"Capital Outlay Mtrl"},null,null,null,null,null,500080,"Sal-Visiting Judges","Salaries-Visiting Judges","2012-05-14",{"$f":"_xlfn.XLOOKUP(CI_s[[#This Row],[Commitment item]],AM:AM,AK:AK)","v":{"$error":"#N/A"}},{"$f":"_xlfn.XLOOKUP(CI_s[[#This Row],[Commitment item]],AM:AM,AN:AN)","v":{"$error":"#N/A"}},null,null,null,null,501017,501010,null,null,null,null,null,null,null,null,null,null,null,null,null,"Capital Outlay Mtrl","Cap Outlay Mtrl-Sign, Traffic Control Equipment",8162,522100,"Cap Outlay Mtrl-Assets Under Construction"]
[null,{"$f":"budget_form_lookups[[#This Row],[Long text]]","v":"Cap Outlay Mtrl-Building Improvements"},520010,{"$f":"budget_form_lookups[[#This Row],[SAP GL Account]]","v":522010},{"$f":"budget_form_lookups[[#This Row],[PB-5 Rollup]]","v":"Capital Outlay Mtrl"},null,null,null,null,null,500090,"Sal-Associate Judges","Salaries-Associate Judges","2012-05-14",{"$f":"_xlfn.XLOOKUP(CI_s[[#This Row],[Commitment item]],AM:AM,AK:AK)","v":{"$error":"#N/A"}},{"$f":"_xlfn.XLOOKUP(CI_s[[#This Row],[Commitment item]],AM:AM,AN:AN)","v":{"$error":"#N/A"}},null,null,null,null,501020,501010,null,null,null,null,null,null,null,null,null,null,null,null,null,"Capital Outlay Mtrl","Cap Outlay Mtrl-Building Improvements",8104,522010,"Cap Outlay Mtrl-Building Improvements"]
[null,{"$f":"budget_form_lookups[[#This Row],[Long text]]","v":"Cap Outlay Mtrl-Buildings"},520010,{"$f":"budget_form_lookups[[#This Row],[SAP GL Account]]","v":522020},{"$f":"budget_form_lookups[[#This Row],[PB-5 Rollup]]","v":"Capital Outlay Mtrl"},null,null,null,null,null,500096,"Emergsick/AJud-COVID","Emerg Sick Leave-Assoc Judges-COVID19","2020-03-24",{"$f":"_xlfn.XLOOKUP(CI_s[[#This Row],[Commitment item]],AM:AM,AK:AK)","v":{"$error":"#N/A"}},{"$f":"_xlfn.XLOOKUP(CI_s[[#This Row],[Commitment item]],AM:AM,AN:AN)","v":{"$error":"#N/A"}},null,null,null,null,501025,501010,null,null,null,null,null,null,null,null,null,null,null,null,null,"Capital Outlay Mtrl","Cap Outlay Mtrl-Buildings",8105,522020,"Cap Outlay Mtrl-Buildings"]
[null,{"$f":"budget_form_lookups[[#This Row],[Long text]]","v":"Cap Outlay Mtrl-Improvements Other"},520010,{"$f":"budget_form_lookups[[#This Row],[SAP GL Account]]","v":522030},{"$f":"budget_form_lookups[[#This Row],[PB-5 Rollup]]","v":"Capital Outlay Mtrl"},null,null,null,null,null,500097,"EmergFMLA/AJud-COVID","Emerg FMLA-Assoc Judges-COVID19","2020-03-24",{"$f":"_xlfn.XLOOKUP(CI_s[[#This Row],[Commitment item]],AM:AM,AK:AK)","v":{"$error":"#N/A"}},{"$f":"_xlfn.XLOOKUP(CI_s[[#This Row],[Commitment item]],AM:AM,AN:AN)","v":{"$error":"#N/A"}},null,null,null,null,501030,501010,null,null,null,null,null,null,null,null,null,null,null,null,null,"Capital Outlay Mtrl","Cap Outlay Mtrl-Improvements Other","8122, 8116",522030,"Cap Outlay Mtrl-Improvements Other"]
[null,{"$f":"budget_form_lookups[[#This Row],[Long text]]","v":"Cap Outlay Mtrl-Infrastructure/Improvements"},520010,{"$f":"budget_form_lookups[[#This Row],[SAP GL Account]]","v":522040},{"$f":"budget_form_lookups[[#This Row],[PB-5 Rollup]]","v":"Capital Outlay Mtrl"},null,null,null,null,null,500100,"Sal-TermPay Assoc Ju","Salaries-Termination Pay Associate Judges","2012-05-14",{"$f":"_xlfn.XLOOKUP(CI_s[[#This Row],[Commitment item]],AM:AM,AK:AK)","v":{"$error":"#N/A"}},{"$f":"_xlfn.XLOOKUP(CI_s[[#This Row],[Commitment item]],AM:AM,AN:AN)","v":{"$error":"#N/A"}},null,null,null,null,502011,502010,"Overtime",null,null,null,null,null,null,null,null,null,null,null,null,"Capital Outlay Mtrl","Cap Outlay Mtrl-Infrastructure/Improvements",8123,522040,"Cap Outlay Mtrl-Infrastructure/Improvements"]
[null,{"$f":"budget_form_lookups[[#This Row],[Long text]]","v":"Cap Outlay Mtrl-Land"},520010,{"$f":"budget_form_lookups[[#This Row],[SAP GL Account]]","v":522050},{"$f":"budget_form_lookups[[#This Row],[PB-5 Rollup]]","v":"Capital Outlay Mtrl"},null,null,null,null,null,500510,"Sal-RegEmp RmbOth","Salaries-Regular Employee Reimburse Others","2012-05-14",{"$f":"_xlfn.XLOOKUP(CI_s[[#This Row],[Commitment item]],AM:AM,AK:AK)","v":{"$error":"#N/A"}},{"$f":"_xlfn.XLOOKUP(CI_s[[#This Row],[Commitment item]],AM:AM,AN:AN)","v":{"$error":"#N/A"}},null,null,null,null,502011,502010,null,null,null,null,null,null,null,null,null,null,null,null,null,"Capital Outlay Mtrl","Cap Outlay Mtrl-Land",8112,522050,"Cap Outlay Mtrl-Land"]
[null,{"$f":"budget_form_lookups[[#This Row],[Long text]]","v":"Cap Outlay Mtrl-Land-Right-of-Way"},520010,{"$f":"budget_form_lookups[[#This Row],[SAP GL Account]]","v":522060},{"$f":"budget_form_lookups[[#This Row],[PB-5 Rollup]]","v":"Capital Outlay Mtrl"},null,null,null,null,null,500511,"Sal-TempEmpRmbOth","Salaries-Temporary Employee-Reimburse Others","2012-05-14",{"$f":"_xlfn.XLOOKUP(CI_s[[#This Row],[Commitment item]],AM:AM,AK:AK)","v":{"$error":"#N/A"}},{"$f":"_xlfn.XLOOKUP(CI_s[[#This Row],[Commitment item]],AM:AM,AN:AN)","v":{"$error":"#N/A"}},null,null,null,null,502012,502010,null,null,null,null,null,null,null,null,null,null,null,null,null,"Capital Outlay Mtrl","Cap Outlay Mtrl-Land-Right-of-Way",8114,522060,"Cap Outlay Mtrl-Land-Right-of-Way"]
[null,{"$f":"budget_form_lookups[[#This Row],[Long text]]","v":"Cap Outlay Mtrl-Leasehold Improvements"},520010,{"$f":"budget_form_lookups[[#This Row],[SAP GL Account]]","v":522070},{"$f":"budget_form_lookups[[#This Row],[PB-5 Rollup]]","v":"Capital Outlay Mtrl"},null,null,null,null,null,500512,"Overtime-Rmb Oth","Overtime-Reimburse Others","2012-05-14",{"$f":"_xlfn.XLOOKUP(CI_s[[#This Row],[Commitment item]],AM:AM,AK:AK)","v":{"$error":"#N/A"}},{"$f":"_xlfn.XLOOKUP(CI_s[[#This Row],[Commitment item]],AM:AM,AN:AN)","v":{"$error":"#N/A"}},null,null,null,null,502013,502010,null,"new april 15",null,null,null,null,null,null,null,null,null,null,null,"Capital Outlay Mtrl","Cap Outlay Mtrl-Leasehold Improvements",8126,522070,"Cap Outlay Mtrl-Leasehold Improvements"]
[null,{"$f":"budget_form_lookups[[#This Row],[Long text]]","v":"Cap Outlay Mtrl-Park Improvements"},520010,{"$f":"budget_form_lookups[[#This Row],[SAP GL Account]]","v":522080},{"$f":"budget_form_lookups[[#This Row],[PB-5 Rollup]]","v":"Capital Outlay Mtrl"},null,null,null,null,null,500513,"LongvtyPay-RmbOth","Longevity Pay-Reimburse Others","2012-05-14",{"$f":"_xlfn.XLOOKUP(CI_s[[#This Row],[Commitment item]],AM:AM,AK:AK)","v":{"$error":"#N/A"}},{"$f":"_xlfn.XLOOKUP(CI_s[[#This Row],[Commitment item]],AM:AM,AN:AN)","v":{"$error":"#N/A"}},null,null,null,null,502014,502010,null,null,null,null,null,null,null,null,null,null,null,null,null,"Capital Outlay Mtrl","Cap Outlay Mtrl-Park Improvements",8119,522080,"Cap Outlay Mtrl-Park Improvements"]
[null,{"$f":"budget_form_lookups[[#This Row],[Long text]]","v":"Cap Outlay Mtrl-Sign  Traffic Control Equipment"},520010,{"$f":"budget_form_lookups[[#This Row],[SAP GL Account]]","v":522090},{"$f":"budget_form_lookups[[#This Row],[PB-5 Rollup]]","v":"Capital Outlay Mtrl"},null,null,null,null,null,500514,"FICA Rmb Oth","FICA Reimburse Others","2012-05-14",{"$f":"_xlfn.XLOOKUP(CI_s[[#This Row],[Commitment item]],AM:AM,AK:AK)","v":{"$error":"#N/A"}},{"$f":"_xlfn.XLOOKUP(CI_s[[#This Row],[Commitment item]],AM:AM,AN:AN)","v":{"$error":"#N/A"}},null,null,null,null,502015,502010,null,null,null,null,null,null,null,null,null,null,null,null,null,"Capital Outlay Mtrl","Cap Outlay Mtrl-Sign, Traffic Control Equipment",8162,522090,"Cap Outlay Mtrl-Sign  Traffic Control Equipment"]
[null,{"$f":"budget_form_lookups[[#This Row],[Long text]]","v":"Cap Outlay Sv-Bridges"},520010,{"$f":"budget_form_lookups[[#This Row],[SAP GL Account]]","v":521010},{"$f":"budget_form_lookups[[#This Row],[PB-5 Rollup]]","v":"Capital Outlay Svc"},null,null,null,null,null,500515,"Hospztn Rmb Oth","Hospitalization Reimburse Others","2012-05-14",{"$f":"_xlfn.XLOOKUP(CI_s[[#This Row],[Commitment item]],AM:AM,AK:AK)","v":{"$error":"#N/A"}},{"$f":"_xlfn.XLOOKUP(CI_s[[#This Row],[Commitment item]],AM:AM,AN:AN)","v":{"$error":"#N/A"}},null,null,null,null,502016,502010,null,null,null,null,null,null,null,null,null,null,null,null,null,"Capital Outlay Svc","Cap Outlay Svc-Bridges",8101,521010,"Cap Outlay Sv-Bridges"]
[null,{"$f":"budget_form_lookups[[#This Row],[Long text]]","v":"Cap Outlay Sv-Building Improvements"},520010,{"$f":"budget_form_lookups[[#This Row],[SAP GL Account]]","v":521020},{"$f":"budget_form_lookups[[#This Row],[PB-5 Rollup]]","v":"Capital Outlay Svc"},null,null,null,null,null,500516,"Retmt Rmb Oth","Retirement Reimburse Others","2012-05-14",{"$f":"_xlfn.XLOOKUP(CI_s[[#This Row],[Commitment item]],AM:AM,AK:AK)","v":{"$error":"#N/A"}},{"$f":"_xlfn.XLOOKUP(CI_s[[#This Row],[Commitment item]],AM:AM,AN:AN)","v":{"$error":"#N/A"}},null,null,null,null,502017,502010,null,null,null,null,null,null,null,null,null,null,null,null,null,"Capital Outlay Svc","Cap Outlay Svc-Building Improvements",8102,521020,"Cap Outlay Sv-Building Improvements"]
[null,{"$f":"budget_form_lookups[[#This Row],[Long text]]","v":"Cap Outlay Sv-Infrastructure Drainage"},520010,{"$f":"budget_form_lookups[[#This Row],[SAP GL Account]]","v":521030},{"$f":"budget_form_lookups[[#This Row],[PB-5 Rollup]]","v":"Capital Outlay Svc"},null,null,null,null,null,500517,"FICA Mdcr Rmb Oth","FICA Medicare Reimburse Others","2012-05-14",{"$f":"_xlfn.XLOOKUP(CI_s[[#This Row],[Commitment item]],AM:AM,AK:AK)","v":{"$error":"#N/A"}},{"$f":"_xlfn.XLOOKUP(CI_s[[#This Row],[Commitment item]],AM:AM,AN:AN)","v":{"$error":"#N/A"}},null,null,null,null,503000,503010,null,null,null,null,null,null,null,null,null,null,null,null,null,"Capital Outlay Svc","Cap Outlay Svc-Infrastructure Drainage",8166,521030,"Cap Outlay Sv-Infrastructure Drainage"]
[null,{"$f":"budget_form_lookups[[#This Row],[Long text]]","v":"Cap Outlay Sv-Infrastructure Roads"},520010,{"$f":"budget_form_lookups[[#This Row],[SAP GL Account]]","v":521040},{"$f":"budget_form_lookups[[#This Row],[PB-5 Rollup]]","v":"Capital Outlay Svc"},null,null,null,null,null,501010,"Sal-POPS","Salaries-POPS","2012-05-14",{"$f":"_xlfn.XLOOKUP(CI_s[[#This Row],[Commitment item]],AM:AM,AK:AK)","v":{"$error":"#N/A"}},{"$f":"_xlfn.XLOOKUP(CI_s[[#This Row],[Commitment item]],AM:AM,AN:AN)","v":{"$error":"#N/A"}},null,null,null,null,503020,503020,null,null,null,null,null,null,null,null,null,null,null,null,null,"Capital Outlay Svc","Cap Outlay Svc-Infrastructure Roads",8164,521040,"Cap Outlay Sv-Infrastructure Roads"]
[null,{"$f":"budget_form_lookups[[#This Row],[Long text]]","v":"Cap Outlay Sv-Infrastructure Sidewalks"},520010,{"$f":"budget_form_lookups[[#This Row],[SAP GL Account]]","v":521050},{"$f":"budget_form_lookups[[#This Row],[PB-5 Rollup]]","v":"Capital Outlay Svc"},null,null,null,null,null,501015,"RegShtDf-NonExPOPs","Regular Shift Diff-Non-Exempts POPS","2018-11-09",{"$f":"_xlfn.XLOOKUP(CI_s[[#This Row],[Commitment item]],AM:AM,AK:AK)","v":{"$error":"#N/A"}},{"$f":"_xlfn.XLOOKUP(CI_s[[#This Row],[Commitment item]],AM:AM,AN:AN)","v":{"$error":"#N/A"}},null,null,null,null,503030,503030,"TCLEOSE Pay",null,null,null,null,null,null,null,null,null,null,null,null,"Capital Outlay Svc","Cap Outlay Svc-Infrastructure Sidewalks",8165,521050,"Cap Outlay Sv-Infrastructure Sidewalks"]
[null,{"$f":"budget_form_lookups[[#This Row],[Long text]]","v":"Cap Outlay Sv-Installation-Equipment"},520010,{"$f":"budget_form_lookups[[#This Row],[SAP GL Account]]","v":521085},{"$f":"budget_form_lookups[[#This Row],[PB-5 Rollup]]","v":"Capital Outlay Svc"},null,null,null,null,null,501016,"Emergsick/POPS-COVID","Emerg Sick Leave-POPS-COVID19","2020-03-24",{"$f":"_xlfn.XLOOKUP(CI_s[[#This Row],[Commitment item]],AM:AM,AK:AK)","v":{"$error":"#N/A"}},{"$f":"_xlfn.XLOOKUP(CI_s[[#This Row],[Commitment item]],AM:AM,AN:AN)","v":{"$error":"#N/A"}},null,null,null,null,503040,503030,null,null,null,null,null,null,null,null,null,null,null,null,null,"Capital Outlay Svc","Cap Outlay Sv-Installation-Equipment",null,521085,"Cap Outlay Sv-Installation-Equipment"]
[null,{"$f":"budget_form_lookups[[#This Row],[Long text]]","v":"Cap Outlay Sv-Installation-Software"},520010,{"$f":"budget_form_lookups[[#This Row],[SAP GL Account]]","v":521090},{"$f":"budget_form_lookups[[#This Row],[PB-5 Rollup]]","v":"Capital Outlay Svc"},null,null,null,null,null,501017,"EmergFMLA/POPS-COVID","Emerg FMLA-POPS-COVID19","2020-03-24",{"$f":"_xlfn.XLOOKUP(CI_s[[#This Row],[Commitment item]],AM:AM,AK:AK)","v":{"$error":"#N/A"}},{"$f":"_xlfn.XLOOKUP(CI_s[[#This Row],[Commitment item]],AM:AM,AN:AN)","v":{"$error":"#N/A"}},null,null,null,null,503050,503030,null,null,null,null,null,null,null,null,null,null,null,null,null,"Capital Outlay Svc","Cap Outlay Sv-Installation-Software",null,521090,"Cap Outlay Sv-Installation-Software"]
[null,{"$f":"budget_form_lookups[[#This Row],[Long text]]","v":"Cap Outlay Sv-Park Improvements"},520010,{"$f":"budget_form_lookups[[#This Row],[SAP GL Account]]","v":521060},{"$f":"budget_form_lookups[[#This Row],[PB-5 Rollup]]","v":"Capital Outlay Svc"},null,null,null,null,null,501018,"Retention Pay-POPS","Retention Pay-POPS","2022-05-24",{"$f":"_xlfn.XLOOKUP(CI_s[[#This Row],[Commitment item]],AM:AM,AK:AK)","v":{"$error":"#N/A"}},{"$f":"_xlfn.XLOOKUP(CI_s[[#This Row],[Commitment item]],AM:AM,AN:AN)","v":{"$error":"#N/A"}},null,null,null,null,503060,503030,null,null,null,null,null,null,null,null,null,null,null,null,null,"Capital Outlay Svc","Cap Outlay Svc-Park Improvements",8120,521060,"Cap Outlay Sv-Park Improvements"]
[null,{"$f":"budget_form_lookups[[#This Row],[Long text]]","v":"Cap Outlay Sv-Right of Way/Easements"},520010,{"$f":"budget_form_lookups[[#This Row],[SAP GL Account]]","v":521070},{"$f":"budget_form_lookups[[#This Row],[PB-5 Rollup]]","v":"Capital Outlay Svc"},null,null,null,null,null,501019,"Incentive Pay-POPS","Incentive Pay-POPS","2023-07-27",{"$f":"_xlfn.XLOOKUP(CI_s[[#This Row],[Commitment item]],AM:AM,AK:AK)","v":{"$error":"#N/A"}},{"$f":"_xlfn.XLOOKUP(CI_s[[#This Row],[Commitment item]],AM:AM,AN:AN)","v":{"$error":"#N/A"}},null,null,null,null,503061,503030,null,null,null,null,null,null,null,null,null,null,null,null,null,"Capital Outlay Svc","Cap Outlay Svc-Right of Way/Easements",8115,521070,"Cap Outlay Sv-Right of Way/Easements"]
[null,{"$f":"budget_form_lookups[[#This Row],[Long text]]","v":"Cap Outlay Sv-Road Construction"},520010,{"$f":"budget_form_lookups[[#This Row],[SAP GL Account]]","v":521080},{"$f":"budget_form_lookups[[#This Row],[PB-5 Rollup]]","v":"Capital Outlay Svc"},null,null,null,null,null,501020,"Sal-TermPay POPS","Salaries-Termination Pay POPS","2012-05-14",{"$f":"_xlfn.XLOOKUP(CI_s[[#This Row],[Commitment item]],AM:AM,AK:AK)","v":{"$error":"#N/A"}},{"$f":"_xlfn.XLOOKUP(CI_s[[#This Row],[Commitment item]],AM:AM,AN:AN)","v":{"$error":"#N/A"}},null,null,null,null,503075,503070,null,null,null,null,null,null,null,null,null,null,null,null,null,"Capital Outlay Svc","Cap Outlay Svc-Road Construction",8124,521080,"Cap Outlay Sv-Road Construction"]
[null,{"$f":"budget_form_lookups[[#This Row],[Long text]]","v":"Background Check Services"},513010,{"$f":"budget_form_lookups[[#This Row],[SAP GL Account]]","v":513010},{"$f":"budget_form_lookups[[#This Row],[PB-5 Rollup]]","v":"County Employment Related Expenses"},null,null,null,null,null,501025,"Sal-VacPay50%-POPS","Salaries-Vacation Payout 50% - POPS","2017-07-05",{"$f":"_xlfn.XLOOKUP(CI_s[[#This Row],[Commitment item]],AM:AM,AK:AK)","v":{"$error":"#N/A"}},{"$f":"_xlfn.XLOOKUP(CI_s[[#This Row],[Commitment item]],AM:AM,AN:AN)","v":{"$error":"#N/A"}},null,null,null,null,503100,503100,"referral pay - new 1-18",null,null,null,null,null,null,null,null,null,null,null,null,"County Employment Related Expenses","County Employment Related Expenses",6099,513010,"Background Check Services"]
[null,{"$f":"budget_form_lookups[[#This Row],[Long text]]","v":"Employee Assistance Programs"},513010,{"$f":"budget_form_lookups[[#This Row],[SAP GL Account]]","v":513020},{"$f":"budget_form_lookups[[#This Row],[PB-5 Rollup]]","v":"County Employment Related Expenses"},null,null,null,null,null,501030,"Sal-VacPay100%-POPS","Salaries-Vacation Payout 100% - POPS","2017-07-05",{"$f":"_xlfn.XLOOKUP(CI_s[[#This Row],[Commitment item]],AM:AM,AK:AK)","v":{"$error":"#N/A"}},{"$f":"_xlfn.XLOOKUP(CI_s[[#This Row],[Commitment item]],AM:AM,AN:AN)","v":{"$error":"#N/A"}},null,null,null,null,503105,503105,"temp pay",null,null,null,null,null,null,null,null,null,null,null,null,"County Employment Related Expenses","County Employment Related Expenses",6401,513020,"Employee Assistance Programs"]
[null,{"$f":"budget_form_lookups[[#This Row],[Long text]]","v":"Employee Guaranteed Ride Home"},513010,{"$f":"budget_form_lookups[[#This Row],[SAP GL Account]]","v":513025},{"$f":"budget_form_lookups[[#This Row],[PB-5 Rollup]]","v":"County Employment Related Expenses"},null,null,null,null,null,501035,"ParentLeave-POPS","Parental Leave - POPS","2022-05-20",{"$f":"_xlfn.XLOOKUP(CI_s[[#This Row],[Commitment item]],AM:AM,AK:AK)","v":{"$error":"#N/A"}},{"$f":"_xlfn.XLOOKUP(CI_s[[#This Row],[Commitment item]],AM:AM,AN:AN)","v":{"$error":"#N/A"}},null,null,null,null,503110,503110,"Regular Shift Diff - Old Policy",null,null,null,null,null,null,null,null,null,null,null,null,"County Employment Related Expenses","County Employment Related Expenses",6401,513025,"Employee Guaranteed Ride Home"]
[null,{"$f":"budget_form_lookups[[#This Row],[Long text]]","v":"Employee Recognition"},513010,{"$f":"budget_form_lookups[[#This Row],[SAP GL Account]]","v":513030},{"$f":"budget_form_lookups[[#This Row],[PB-5 Rollup]]","v":"County Employment Related Expenses"},null,null,null,null,null,502010,"Overtime DO NOT USE","Overtime - DO NOT USE","2012-05-14",{"$f":"_xlfn.XLOOKUP(CI_s[[#This Row],[Commitment item]],AM:AM,AK:AK)","v":{"$error":"#N/A"}},{"$f":"_xlfn.XLOOKUP(CI_s[[#This Row],[Commitment item]],AM:AM,AN:AN)","v":{"$error":"#N/A"}},null,null,null,null,504020,506030,"Medical Insurance",null,null,null,null,null,null,null,null,null,null,null,null,"County Employment Related Expenses","County Employment Related Expenses",7506,513030,"Employee Recognition"]
[null,{"$f":"budget_form_lookups[[#This Row],[Long text]]","v":"Employee Recruitment Expenses"},513010,{"$f":"budget_form_lookups[[#This Row],[SAP GL Account]]","v":513040},{"$f":"budget_form_lookups[[#This Row],[PB-5 Rollup]]","v":"County Employment Related Expenses"},null,null,null,null,null,502011,"OTShtDfNonExNonPOPS","Overtime Shift Diff-Non-Exempts Non-POPS","2018-11-09",{"$f":"_xlfn.XLOOKUP(CI_s[[#This Row],[Commitment item]],AM:AM,AK:AK)","v":{"$error":"#N/A"}},{"$f":"_xlfn.XLOOKUP(CI_s[[#This Row],[Commitment item]],AM:AM,AN:AN)","v":{"$error":"#N/A"}},null,null,null,null,504030,506030,"Medical Insurance",null,null,null,null,null,null,null,null,null,null,null,null,"County Employment Related Expenses","County Employment Related Expenses",7522,513040,"Employee Recruitment Expenses"]
[null,{"$f":"budget_form_lookups[[#This Row],[Long text]]","v":"Employee Relocation Expenses"},513010,{"$f":"budget_form_lookups[[#This Row],[SAP GL Account]]","v":513050},{"$f":"budget_form_lookups[[#This Row],[PB-5 Rollup]]","v":"County Employment Related Expenses"},null,null,null,null,null,502012,"OTShtDfNonExPOPS","Overtime Shift Diff-Non-Exempts POPS","2018-12-21",{"$f":"_xlfn.XLOOKUP(CI_s[[#This Row],[Commitment item]],AM:AM,AK:AK)","v":{"$error":"#N/A"}},{"$f":"_xlfn.XLOOKUP(CI_s[[#This Row],[Commitment item]],AM:AM,AN:AN)","v":{"$error":"#N/A"}},null,null,null,null,504040,506050,"Other Benefits & Contras",null,null,null,null,null,null,null,null,null,null,null,null,"County Employment Related Expenses","County Employment Related Expenses",6405,513050,"Employee Relocation Expenses"]
[null,{"$f":"budget_form_lookups[[#This Row],[Long text]]","v":"Pre-Employment Testing "},513010,{"$f":"budget_form_lookups[[#This Row],[SAP GL Account]]","v":513060},{"$f":"budget_form_lookups[[#This Row],[PB-5 Rollup]]","v":"County Employment Related Expenses"},null,null,null,null,null,502013,"Overtime POPS","Overtime POPS","2018-12-21",{"$f":"_xlfn.XLOOKUP(CI_s[[#This Row],[Commitment item]],AM:AM,AK:AK)","v":{"$error":"#N/A"}},{"$f":"_xlfn.XLOOKUP(CI_s[[#This Row],[Commitment item]],AM:AM,AN:AN)","v":{"$error":"#N/A"}},null,null,null,null,504050,506050,"Other Benefits & Contras",null,null,null,null,null,null,null,null,null,null,null,null,"County Employment Related Expenses","County Employment Related Expenses","4099, 4016",513060,"Pre-Employment Testing "]
[null,{"$f":"budget_form_lookups[[#This Row],[Long text]]","v":"Tuition Reimbursement"},513070,{"$f":"budget_form_lookups[[#This Row],[SAP GL Account]]","v":513070},{"$f":"budget_form_lookups[[#This Row],[PB-5 Rollup]]","v":"County Employment Related Expenses"},null,null,null,null,null,502014,"Overtime non-POPS","Overtime non-POPS","2018-12-21",{"$f":"_xlfn.XLOOKUP(CI_s[[#This Row],[Commitment item]],AM:AM,AK:AK)","v":{"$error":"#N/A"}},{"$f":"_xlfn.XLOOKUP(CI_s[[#This Row],[Commitment item]],AM:AM,AN:AN)","v":{"$error":"#N/A"}},null,null,null,null,505011,505011,"Comp Abs",null,null,null,null,null,null,null,null,null,null,null,null,"County Employment Related Expenses","Tuition Reimbursement",6402,513070,"Tuition Reimbursement"]
[null,{"$f":"budget_form_lookups[[#This Row],[Long text]]","v":"Ad Litems"},514010,{"$f":"budget_form_lookups[[#This Row],[SAP GL Account]]","v":514010},{"$f":"budget_form_lookups[[#This Row],[PB-5 Rollup]]","v":"Court and Law Enforcement Related Expenditures"},null,null,null,null,null,502015,"Extra Hours Paid","Extra Hours Paid","2013-03-07",{"$f":"_xlfn.XLOOKUP(CI_s[[#This Row],[Commitment item]],AM:AM,AK:AK)","v":{"$error":"#N/A"}},{"$f":"_xlfn.XLOOKUP(CI_s[[#This Row],[Commitment item]],AM:AM,AN:AN)","v":{"$error":"#N/A"}},null,null,null,null,505020,505011,null,null,null,null,null,null,null,null,null,null,null,null,null,"Court and Law Enforcement Related Expenditures","Court and Law Enforcement Related Expenditures",6323,514010,"Ad Litems"]
[null,{"$f":"budget_form_lookups[[#This Row],[Long text]]","v":"Confidential Informant Fees"},514010,{"$f":"budget_form_lookups[[#This Row],[SAP GL Account]]","v":514020},{"$f":"budget_form_lookups[[#This Row],[PB-5 Rollup]]","v":"Court and Law Enforcement Related Expenditures"},null,null,null,null,null,502016,"ExtraHoursPaid-POPS","Extra Hours Paid POPS","2018-12-21",{"$f":"_xlfn.XLOOKUP(CI_s[[#This Row],[Commitment item]],AM:AM,AK:AK)","v":{"$error":"#N/A"}},{"$f":"_xlfn.XLOOKUP(CI_s[[#This Row],[Commitment item]],AM:AM,AN:AN)","v":{"$error":"#N/A"}},null,null,null,null,505021,505011,null,null,null,null,null,null,null,null,null,null,null,null,null,"Court and Law Enforcement Related Expenditures","Court and Law Enforcement Related Expenditures",7504,514020,"Confidential Informant Fees"]
[null,{"$f":"budget_form_lookups[[#This Row],[Long text]]","v":"Court Costs"},514010,{"$f":"budget_form_lookups[[#This Row],[SAP GL Account]]","v":514030},{"$f":"budget_form_lookups[[#This Row],[PB-5 Rollup]]","v":"Court and Law Enforcement Related Expenditures"},null,null,null,null,null,502017,"ExtraHoursPaidNonPOP","Extra Hours Paid non-POPS","2018-12-21",{"$f":"_xlfn.XLOOKUP(CI_s[[#This Row],[Commitment item]],AM:AM,AK:AK)","v":{"$error":"#N/A"}},{"$f":"_xlfn.XLOOKUP(CI_s[[#This Row],[Commitment item]],AM:AM,AN:AN)","v":{"$error":"#N/A"}},null,null,null,null,506010,506050,"Other Benefits & Contras",null,null,null,null,null,null,null,null,null,null,null,null,"Court and Law Enforcement Related Expenditures","Court and Law Enforcement Related Expenditures",6304,514030,"Court Costs"]
[null,{"$f":"budget_form_lookups[[#This Row],[Long text]]","v":"Court Ordered Attorney Fees"},514040,{"$f":"budget_form_lookups[[#This Row],[SAP GL Account]]","v":514040},{"$f":"budget_form_lookups[[#This Row],[PB-5 Rollup]]","v":"Court and Law Enforcement Related Expenditures"},null,null,null,null,null,503010,"Longvty Pay-All Emps","Longevity Pay-All Employees","2012-05-14",{"$f":"_xlfn.XLOOKUP(CI_s[[#This Row],[Commitment item]],AM:AM,AK:AK)","v":{"$error":"#N/A"}},{"$f":"_xlfn.XLOOKUP(CI_s[[#This Row],[Commitment item]],AM:AM,AN:AN)","v":{"$error":"#N/A"}},null,null,null,null,506020,506050,"Other Benefits & Contras",null,null,null,null,null,null,null,null,null,null,null,null,"Court and Law Enforcement Related Expenditures","Court Ordered Attorney Fees","6301/6302/6326",514040,"Court Ordered Attorney Fees"]
[null,{"$f":"budget_form_lookups[[#This Row],[Long text]]","v":"Court Ordered Attorney Fees - CPS Mediations"},514040,{"$f":"budget_form_lookups[[#This Row],[SAP GL Account]]","v":514060},{"$f":"budget_form_lookups[[#This Row],[PB-5 Rollup]]","v":"Court and Law Enforcement Related Expenditures"},null,null,null,null,null,503020,"Longvty Pay-Prs","Longevity Pay-Prosecutors","2012-05-14",{"$f":"_xlfn.XLOOKUP(CI_s[[#This Row],[Commitment item]],AM:AM,AK:AK)","v":{"$error":"#N/A"}},{"$f":"_xlfn.XLOOKUP(CI_s[[#This Row],[Commitment item]],AM:AM,AN:AN)","v":{"$error":"#N/A"}},null,null,null,null,506030,506030,"Medical Insurance",null,null,null,null,null,null,null,null,null,null,null,null,"Court and Law Enforcement Related Expenditures","Court Ordered Attorney Fees",6340,514060,"Court Ordered Attorney Fees - CPS Mediations"]
[null,{"$f":"budget_form_lookups[[#This Row],[Long text]]","v":"Court Ordered Attorney Fees - Non- CPS Juvenile"},514040,{"$f":"budget_form_lookups[[#This Row],[SAP GL Account]]","v":514080},{"$f":"budget_form_lookups[[#This Row],[PB-5 Rollup]]","v":"Court and Law Enforcement Related Expenditures"},null,null,null,null,null,503025,"System Tester Pay","System Tester Pay","2017-03-14",{"$f":"_xlfn.XLOOKUP(CI_s[[#This Row],[Commitment item]],AM:AM,AK:AK)","v":{"$error":"#N/A"}},{"$f":"_xlfn.XLOOKUP(CI_s[[#This Row],[Commitment item]],AM:AM,AN:AN)","v":{"$error":"#N/A"}},null,null,null,null,506040,506050,"Other Benefits & Contras",null,null,null,null,null,null,null,null,null,null,null,null,"Court and Law Enforcement Related Expenditures","Court Ordered Attorney Fees",6351,514080,"Court Ordered Attorney Fees - Non- CPS Juvenile"]
[null,{"$f":"budget_form_lookups[[#This Row],[Long text]]","v":"Court Ordered Attorney Fees - Non-CPS Contempt"},514040,{"$f":"budget_form_lookups[[#This Row],[SAP GL Account]]","v":514090},{"$f":"budget_form_lookups[[#This Row],[PB-5 Rollup]]","v":"Court and Law Enforcement Related Expenditures"},null,null,null,null,null,503026,"Lead Pay","Lead Pay","2019-03-13",{"$f":"_xlfn.XLOOKUP(CI_s[[#This Row],[Commitment item]],AM:AM,AK:AK)","v":{"$error":"#N/A"}},{"$f":"_xlfn.XLOOKUP(CI_s[[#This Row],[Commitment item]],AM:AM,AN:AN)","v":{"$error":"#N/A"}},null,null,null,null,506050,506050,"Other Benefits & Contras",null,null,null,null,null,null,null,null,null,null,null,null,"Court and Law Enforcement Related Expenditures","Court Ordered Attorney Fees",6350,514090,"Court Ordered Attorney Fees - Non-CPS Contempt"]
[null,{"$f":"budget_form_lookups[[#This Row],[Long text]]","v":"Court Ordered Attorney Fees - Non-Family"},514040,{"$f":"budget_form_lookups[[#This Row],[SAP GL Account]]","v":514095},{"$f":"budget_form_lookups[[#This Row],[PB-5 Rollup]]","v":"Court and Law Enforcement Related Expenditures"},null,null,null,null,null,503030,"TCLEOSE Pay","TCLEOSE Pay","2012-05-14",{"$f":"_xlfn.XLOOKUP(CI_s[[#This Row],[Commitment item]],AM:AM,AK:AK)","v":{"$error":"#N/A"}},{"$f":"_xlfn.XLOOKUP(CI_s[[#This Row],[Commitment item]],AM:AM,AN:AN)","v":{"$error":"#N/A"}},null,null,null,null,506055,506050,"Other Benefits & Contras",null,null,null,null,null,null,null,null,null,null,null,null,"Court and Law Enforcement Related Expenditures","Court Ordered Attorney Fees",6350,514095,"Court Ordered Attorney Fees - Non-Family"]
[null,{"$f":"budget_form_lookups[[#This Row],[Long text]]","v":"Court Ordered Attorney Fees-Incidentals"},514010,{"$f":"budget_form_lookups[[#This Row],[SAP GL Account]]","v":514046},{"$f":"budget_form_lookups[[#This Row],[PB-5 Rollup]]","v":"Court and Law Enforcement Related Expenditures"},null,null,null,null,null,503031,"Telecomm 911 Pay","Telecomm 911 Pay","2017-09-20",{"$f":"_xlfn.XLOOKUP(CI_s[[#This Row],[Commitment item]],AM:AM,AK:AK)","v":{"$error":"#N/A"}},{"$f":"_xlfn.XLOOKUP(CI_s[[#This Row],[Commitment item]],AM:AM,AN:AN)","v":{"$error":"#N/A"}},null,null,null,null,506060,506050,"Other Benefits & Contras",null,null,null,null,null,null,null,null,null,null,null,null,"Court and Law Enforcement Related Expenditures","Court and Law Enforcement Related Expenditures",null,514046,"Court Ordered Attorney Fees-Incidentals"]
[null,{"$f":"budget_form_lookups[[#This Row],[Long text]]","v":"Court Ordered Atty Fees - Appeals"},514048,{"$f":"budget_form_lookups[[#This Row],[SAP GL Account]]","v":514048},{"$f":"budget_form_lookups[[#This Row],[PB-5 Rollup]]","v":"Court and Law Enforcement Related Expenditures"},null,null,null,null,null,503035,"System Tester Pay","System Tester Pay","2020-04-21",{"$f":"_xlfn.XLOOKUP(CI_s[[#This Row],[Commitment item]],AM:AM,AK:AK)","v":{"$error":"#N/A"}},{"$f":"_xlfn.XLOOKUP(CI_s[[#This Row],[Commitment item]],AM:AM,AN:AN)","v":{"$error":"#N/A"}},null,null,null,null,506070,506070,"Unemployment Insurance",null,null,null,null,null,null,null,null,null,null,null,null,"Court and Law Enforcement Related Expenditures","Court Ordered Attorney Fees",null,514048,"Court Ordered Atty Fees - Appeals"]
[null,{"$f":"budget_form_lookups[[#This Row],[Long text]]","v":"Court Ordered Atty Fees - CPS Child Terminations"},514040,{"$f":"budget_form_lookups[[#This Row],[SAP GL Account]]","v":514050},{"$f":"budget_form_lookups[[#This Row],[PB-5 Rollup]]","v":"Court and Law Enforcement Related Expenditures"},null,null,null,null,null,503040,"Field Trng Pay","Field Training Pay","2012-05-14",{"$f":"_xlfn.XLOOKUP(CI_s[[#This Row],[Commitment item]],AM:AM,AK:AK)","v":{"$error":"#N/A"}},{"$f":"_xlfn.XLOOKUP(CI_s[[#This Row],[Commitment item]],AM:AM,AN:AN)","v":{"$error":"#N/A"}},null,null,null,null,510010,510010,null,null,null,null,null,null,null,null,null,null,null,null,null,"Court and Law Enforcement Related Expenditures","Court Ordered Attorney Fees",6342,514050,"Court Ordered Atty Fees - CPS Child Terminations"]
[null,{"$f":"budget_form_lookups[[#This Row],[Long text]]","v":"Court Ordered Atty Fees - CPS Parent Terminations"},514040,{"$f":"budget_form_lookups[[#This Row],[SAP GL Account]]","v":514070},{"$f":"budget_form_lookups[[#This Row],[PB-5 Rollup]]","v":"Court and Law Enforcement Related Expenditures"},null,null,null,null,null,503050,"Bilingual Pay","Bilingual Pay","2012-05-14",{"$f":"_xlfn.XLOOKUP(CI_s[[#This Row],[Commitment item]],AM:AM,AK:AK)","v":{"$error":"#N/A"}},{"$f":"_xlfn.XLOOKUP(CI_s[[#This Row],[Commitment item]],AM:AM,AN:AN)","v":{"$error":"#N/A"}},null,null,null,null,510020,510010,null,null,null,null,null,null,null,null,null,null,null,null,null,"Court and Law Enforcement Related Expenditures","Court Ordered Attorney Fees",6341,514070,"Court Ordered Atty Fees - CPS Parent Terminations"]
[null,{"$f":"budget_form_lookups[[#This Row],[Long text]]","v":"Court Ordered Expert Witness Expenses"},514010,{"$f":"budget_form_lookups[[#This Row],[SAP GL Account]]","v":514100},{"$f":"budget_form_lookups[[#This Row],[PB-5 Rollup]]","v":"Court and Law Enforcement Related Expenditures"},null,null,null,null,null,503060,"Civ Process Cert Pay","Civil Process Certification Pay","2012-05-14",{"$f":"_xlfn.XLOOKUP(CI_s[[#This Row],[Commitment item]],AM:AM,AK:AK)","v":{"$error":"#N/A"}},{"$f":"_xlfn.XLOOKUP(CI_s[[#This Row],[Commitment item]],AM:AM,AN:AN)","v":{"$error":"#N/A"}},null,null,null,null,510030,510010,null,null,null,null,null,null,null,null,null,null,null,null,null,"Court and Law Enforcement Related Expenditures","Court and Law Enforcement Related Expenditures",6325,514100,"Court Ordered Expert Witness Expenses"]
[null,{"$f":"budget_form_lookups[[#This Row],[Long text]]","v":"Court Ordered Investigator Expenses"},{"$f":"IFERROR(INDEX(V:V,MATCH(D66,U:U,0)),D66)","v":514010},{"$f":"budget_form_lookups[[#This Row],[SAP GL Account]]","v":514110},{"$f":"budget_form_lookups[[#This Row],[PB-5 Rollup]]","v":"Court and Law Enforcement Related Expenditures"},null,null,null,null,null,503061,"Cert Pay-Fire Marshl","Certification Pay-Fire Marshal","2015-03-19",{"$f":"_xlfn.XLOOKUP(CI_s[[#This Row],[Commitment item]],AM:AM,AK:AK)","v":{"$error":"#N/A"}},{"$f":"_xlfn.XLOOKUP(CI_s[[#This Row],[Commitment item]],AM:AM,AN:AN)","v":{"$error":"#N/A"}},null,null,null,null,510035,510010,null,null,null,null,null,null,null,null,null,null,null,null,null,"Court and Law Enforcement Related Expenditures","Court and Law Enforcement Related Expenditures",6325,514110,"Court Ordered Investigator Expenses"]
[null,{"$f":"budget_form_lookups[[#This Row],[Long text]]","v":"Court Ordered Lab Testing"},514010,{"$f":"budget_form_lookups[[#This Row],[SAP GL Account]]","v":514120},{"$f":"budget_form_lookups[[#This Row],[PB-5 Rollup]]","v":"Court and Law Enforcement Related Expenditures"},null,null,null,null,null,503070,"Suppl Sal-CAPSODAPSO","Supplemental Salary-CAPSO & DAPSO","2012-05-14",{"$f":"_xlfn.XLOOKUP(CI_s[[#This Row],[Commitment item]],AM:AM,AK:AK)","v":{"$error":"#N/A"}},{"$f":"_xlfn.XLOOKUP(CI_s[[#This Row],[Commitment item]],AM:AM,AN:AN)","v":{"$error":"#N/A"}},null,null,null,null,510040,510010,null,null,null,null,null,null,null,null,null,null,null,null,null,"Court and Law Enforcement Related Expenditures","Court and Law Enforcement Related Expenditures",6322,514120,"Court Ordered Lab Testing"]
[null,{"$f":"budget_form_lookups[[#This Row],[Long text]]","v":"Court Ordered Psychological Evaluations"},514010,{"$f":"budget_form_lookups[[#This Row],[SAP GL Account]]","v":514115},{"$f":"budget_form_lookups[[#This Row],[PB-5 Rollup]]","v":"Court and Law Enforcement Related Expenditures"},null,null,null,null,null,503075,"Suppl Sal-FelPros","Supplemental Salary-Felony Prosecutor","2015-09-08",{"$f":"_xlfn.XLOOKUP(CI_s[[#This Row],[Commitment item]],AM:AM,AK:AK)","v":{"$error":"#N/A"}},{"$f":"_xlfn.XLOOKUP(CI_s[[#This Row],[Commitment item]],AM:AM,AN:AN)","v":{"$error":"#N/A"}},null,null,null,null,510050,510010,null,null,null,null,null,null,null,null,null,null,null,null,null,"Court and Law Enforcement Related Expenditures","Court and Law Enforcement Related Expenditures",null,514115,"Court Ordered Psychological Evaluations"]
[null,{"$f":"budget_form_lookups[[#This Row],[Long text]]","v":"Court Transcripts"},514010,{"$f":"budget_form_lookups[[#This Row],[SAP GL Account]]","v":514130},{"$f":"budget_form_lookups[[#This Row],[PB-5 Rollup]]","v":"Court and Law Enforcement Related Expenditures"},null,null,null,null,null,503080,"Stipend-Vltrs","Stipend-Volunteers","2012-05-14",{"$f":"_xlfn.XLOOKUP(CI_s[[#This Row],[Commitment item]],AM:AM,AK:AK)","v":{"$error":"#N/A"}},{"$f":"_xlfn.XLOOKUP(CI_s[[#This Row],[Commitment item]],AM:AM,AN:AN)","v":{"$error":"#N/A"}},null,null,null,null,510060,510010,null,null,null,null,null,null,null,null,null,null,null,null,null,"Court and Law Enforcement Related Expenditures","Court and Law Enforcement Related Expenditures",6307,514130,"Court Transcripts"]
[null,{"$f":"budget_form_lookups[[#This Row],[Long text]]","v":"Expert Witness Testimony Exp"},514010,{"$f":"budget_form_lookups[[#This Row],[SAP GL Account]]","v":514140},{"$f":"budget_form_lookups[[#This Row],[PB-5 Rollup]]","v":"Court and Law Enforcement Related Expenditures"},null,null,null,null,null,503090,"Performance Pay","Performance Pay","2012-05-14",{"$f":"_xlfn.XLOOKUP(CI_s[[#This Row],[Commitment item]],AM:AM,AK:AK)","v":{"$error":"#N/A"}},{"$f":"_xlfn.XLOOKUP(CI_s[[#This Row],[Commitment item]],AM:AM,AN:AN)","v":{"$error":"#N/A"}},null,null,null,null,510070,510010,null,null,null,null,null,null,null,null,null,null,null,null,null,"Court and Law Enforcement Related Expenditures","Court and Law Enforcement Related Expenditures",6308,514140,"Expert Witness Testimony Exp"]
[null,{"$f":"budget_form_lookups[[#This Row],[Long text]]","v":"Extradition Related Travel"},514010,{"$f":"budget_form_lookups[[#This Row],[SAP GL Account]]","v":514150},{"$f":"budget_form_lookups[[#This Row],[PB-5 Rollup]]","v":"Court and Law Enforcement Related Expenditures"},null,null,null,null,null,503100,"Referral Pay","Referral Pay","2018-01-12",{"$f":"_xlfn.XLOOKUP(CI_s[[#This Row],[Commitment item]],AM:AM,AK:AK)","v":{"$error":"#N/A"}},{"$f":"_xlfn.XLOOKUP(CI_s[[#This Row],[Commitment item]],AM:AM,AN:AN)","v":{"$error":"#N/A"}},null,null,null,null,510080,510010,null,null,null,null,null,null,null,null,null,null,null,null,null,"Court and Law Enforcement Related Expenditures","Court and Law Enforcement Related Expenditures",6309,514150,"Extradition Related Travel"]
[null,{"$f":"budget_form_lookups[[#This Row],[Long text]]","v":"Grand Jury Fees"},514010,{"$f":"budget_form_lookups[[#This Row],[SAP GL Account]]","v":514160},{"$f":"budget_form_lookups[[#This Row],[PB-5 Rollup]]","v":"Court and Law Enforcement Related Expenditures"},null,null,null,null,null,503105,"Temp Salary Pay","Temp Salary Pay","2018-03-21",{"$f":"_xlfn.XLOOKUP(CI_s[[#This Row],[Commitment item]],AM:AM,AK:AK)","v":{"$error":"#N/A"}},{"$f":"_xlfn.XLOOKUP(CI_s[[#This Row],[Commitment item]],AM:AM,AN:AN)","v":{"$error":"#N/A"}},null,null,null,null,510090,510010,null,null,null,null,null,null,null,null,null,null,null,null,null,"Court and Law Enforcement Related Expenditures","Court and Law Enforcement Related Expenditures",6310,514160,"Grand Jury Fees"]
[null,{"$f":"budget_form_lookups[[#This Row],[Long text]]","v":"Interpretation/Translation  Services-Court"},514010,{"$f":"budget_form_lookups[[#This Row],[SAP GL Account]]","v":514170},{"$f":"budget_form_lookups[[#This Row],[PB-5 Rollup]]","v":"Court and Law Enforcement Related Expenditures"},null,null,null,null,null,503110,"RegShtDf-Old Policy","Regular Shift Diff-Old Policy","2020-04-21",{"$f":"_xlfn.XLOOKUP(CI_s[[#This Row],[Commitment item]],AM:AM,AK:AK)","v":{"$error":"#N/A"}},{"$f":"_xlfn.XLOOKUP(CI_s[[#This Row],[Commitment item]],AM:AM,AN:AN)","v":{"$error":"#N/A"}},null,null,null,null,510100,510010,null,null,null,null,null,null,null,null,null,null,null,null,null,"Court and Law Enforcement Related Expenditures","Court and Law Enforcement Related Expenditures",6018,514170,"Interpretation/Translation  Services-Court"]
[null,{"$f":"budget_form_lookups[[#This Row],[Long text]]","v":"Jury Expenses"},514010,{"$f":"budget_form_lookups[[#This Row],[SAP GL Account]]","v":514180},{"$f":"budget_form_lookups[[#This Row],[PB-5 Rollup]]","v":"Court and Law Enforcement Related Expenditures"},null,null,null,null,null,504010,"Sal Savings-Reg Emp","Salary Savings-Regular Employee","2012-05-14",{"$f":"_xlfn.XLOOKUP(CI_s[[#This Row],[Commitment item]],AM:AM,AK:AK)","v":{"$error":"#N/A"}},{"$f":"_xlfn.XLOOKUP(CI_s[[#This Row],[Commitment item]],AM:AM,AN:AN)","v":{"$error":"#N/A"}},null,null,null,null,510110,510010,null,null,null,null,null,null,null,null,null,null,null,null,null,"Court and Law Enforcement Related Expenditures","Court and Law Enforcement Related Expenditures",6311,514180,"Jury Expenses"]
[null,{"$f":"budget_form_lookups[[#This Row],[Long text]]","v":"Medical Exams - Victims"},514010,{"$f":"budget_form_lookups[[#This Row],[SAP GL Account]]","v":514190},{"$f":"budget_form_lookups[[#This Row],[PB-5 Rollup]]","v":"Court and Law Enforcement Related Expenditures"},null,null,null,null,null,504020,"Med Declines-Med Ins","Medical Declines-Medical Insurance","2012-05-14",{"$f":"_xlfn.XLOOKUP(CI_s[[#This Row],[Commitment item]],AM:AM,AK:AK)","v":{"$error":"#N/A"}},{"$f":"_xlfn.XLOOKUP(CI_s[[#This Row],[Commitment item]],AM:AM,AN:AN)","v":{"$error":"#N/A"}},null,null,null,null,510125,510120,null,null,null,null,null,null,null,null,null,null,null,null,null,"Court and Law Enforcement Related Expenditures","Court and Law Enforcement Related Expenditures",6313,514190,"Medical Exams - Victims"]
[null,{"$f":"budget_form_lookups[[#This Row],[Long text]]","v":"Mental Health Attorneys"},514010,{"$f":"budget_form_lookups[[#This Row],[SAP GL Account]]","v":514200},{"$f":"budget_form_lookups[[#This Row],[PB-5 Rollup]]","v":"Court and Law Enforcement Related Expenditures"},null,null,null,null,null,504030,"Vacant Slots-Med Ins","Vacant Slots-Medical Insurance","2012-05-14",{"$f":"_xlfn.XLOOKUP(CI_s[[#This Row],[Commitment item]],AM:AM,AK:AK)","v":{"$error":"#N/A"}},{"$f":"_xlfn.XLOOKUP(CI_s[[#This Row],[Commitment item]],AM:AM,AN:AN)","v":{"$error":"#N/A"}},null,null,null,null,510130,510010,null,null,null,null,null,null,null,null,null,null,null,null,null,"Court and Law Enforcement Related Expenditures","Court and Law Enforcement Related Expenditures",6323,514200,"Mental Health Attorneys"]
[null,{"$f":"budget_form_lookups[[#This Row],[Long text]]","v":"Petit Jury Fees"},514010,{"$f":"budget_form_lookups[[#This Row],[SAP GL Account]]","v":514210},{"$f":"budget_form_lookups[[#This Row],[PB-5 Rollup]]","v":"Court and Law Enforcement Related Expenditures"},null,null,null,null,null,504040,"FICA Tax Savings","FICA Tax Savings","2012-05-14",{"$f":"_xlfn.XLOOKUP(CI_s[[#This Row],[Commitment item]],AM:AM,AK:AK)","v":{"$error":"#N/A"}},{"$f":"_xlfn.XLOOKUP(CI_s[[#This Row],[Commitment item]],AM:AM,AN:AN)","v":{"$error":"#N/A"}},null,null,null,null,510140,510010,null,null,null,null,null,null,null,null,null,null,null,null,null,"Court and Law Enforcement Related Expenditures","Court and Law Enforcement Related Expenditures",6314,514210,"Petit Jury Fees"]
[null,{"$f":"budget_form_lookups[[#This Row],[Long text]]","v":"Special Masters"},514010,{"$f":"budget_form_lookups[[#This Row],[SAP GL Account]]","v":514220},{"$f":"budget_form_lookups[[#This Row],[PB-5 Rollup]]","v":"Court and Law Enforcement Related Expenditures"},null,null,null,null,null,504050,"Retmt Savings","Retirement Savings","2012-05-14",{"$f":"_xlfn.XLOOKUP(CI_s[[#This Row],[Commitment item]],AM:AM,AK:AK)","v":{"$error":"#N/A"}},{"$f":"_xlfn.XLOOKUP(CI_s[[#This Row],[Commitment item]],AM:AM,AN:AN)","v":{"$error":"#N/A"}},null,null,null,null,510150,510010,null,null,null,null,null,null,null,null,null,null,null,null,null,"Court and Law Enforcement Related Expenditures","Court and Law Enforcement Related Expenditures",6323,514220,"Special Masters"]
[null,{"$f":"budget_form_lookups[[#This Row],[Long text]]","v":"Specialty Court Attorney Fees"},514040,{"$f":"budget_form_lookups[[#This Row],[SAP GL Account]]","v":514045},{"$f":"budget_form_lookups[[#This Row],[PB-5 Rollup]]","v":"Court and Law Enforcement Related Expenditures"},null,null,null,null,null,505010,"DO NOT USE","DO NOT USE","2012-05-14",{"$f":"_xlfn.XLOOKUP(CI_s[[#This Row],[Commitment item]],AM:AM,AK:AK)","v":{"$error":"#N/A"}},{"$f":"_xlfn.XLOOKUP(CI_s[[#This Row],[Commitment item]],AM:AM,AN:AN)","v":{"$error":"#N/A"}},null,null,null,null,510160,510010,null,null,null,null,null,null,null,null,null,null,null,null,null,"Court and Law Enforcement Related Expenditures","Court Ordered Attorney Fees",null,514045,"Specialty Court Attorney Fees"]
[null,{"$f":"budget_form_lookups[[#This Row],[Long text]]","v":"Substitute Court Reporter Charges"},514010,{"$f":"budget_form_lookups[[#This Row],[SAP GL Account]]","v":514230},{"$f":"budget_form_lookups[[#This Row],[PB-5 Rollup]]","v":"Court and Law Enforcement Related Expenditures"},null,null,null,null,null,505011,"Comp Abs","Compensated Absences","2012-05-23",{"$f":"_xlfn.XLOOKUP(CI_s[[#This Row],[Commitment item]],AM:AM,AK:AK)","v":{"$error":"#N/A"}},{"$f":"_xlfn.XLOOKUP(CI_s[[#This Row],[Commitment item]],AM:AM,AN:AN)","v":{"$error":"#N/A"}},null,null,null,null,510170,510010,null,null,null,null,null,null,null,null,null,null,null,null,null,"Court and Law Enforcement Related Expenditures","Court and Law Enforcement Related Expenditures",6305,514230,"Substitute Court Reporter Charges"]
[null,{"$f":"budget_form_lookups[[#This Row],[Long text]]","v":"Transcript Expenses"},514010,{"$f":"budget_form_lookups[[#This Row],[SAP GL Account]]","v":514240},{"$f":"budget_form_lookups[[#This Row],[PB-5 Rollup]]","v":"Court and Law Enforcement Related Expenditures"},null,null,null,null,null,505020,"DO NOT USE","DO NOT USE","2012-05-14",{"$f":"_xlfn.XLOOKUP(CI_s[[#This Row],[Commitment item]],AM:AM,AK:AK)","v":{"$error":"#N/A"}},{"$f":"_xlfn.XLOOKUP(CI_s[[#This Row],[Commitment item]],AM:AM,AN:AN)","v":{"$error":"#N/A"}},null,null,null,null,510180,510010,null,null,null,null,null,null,null,null,null,null,null,null,null,"Court and Law Enforcement Related Expenditures","Court and Law Enforcement Related Expenditures",6306,514240,"Transcript Expenses"]
[null,{"$f":"budget_form_lookups[[#This Row],[Long text]]","v":"Visiting Judges - Contractor Fees"},514010,{"$f":"budget_form_lookups[[#This Row],[SAP GL Account]]","v":514249},{"$f":"budget_form_lookups[[#This Row],[PB-5 Rollup]]","v":"Court and Law Enforcement Related Expenditures"},null,null,null,null,null,505021,"Comp Abs-Near Term","Compensated Absences-Near Term","2012-05-23",{"$f":"_xlfn.XLOOKUP(CI_s[[#This Row],[Commitment item]],AM:AM,AK:AK)","v":{"$error":"#N/A"}},{"$f":"_xlfn.XLOOKUP(CI_s[[#This Row],[Commitment item]],AM:AM,AN:AN)","v":{"$error":"#N/A"}},null,null,null,null,510190,510010,null,null,null,null,null,null,null,null,null,null,null,null,null,"Court and Law Enforcement Related Expenditures","Court and Law Enforcement Related Expenditures",null,514249,"Visiting Judges - Contractor Fees"]
[null,{"$f":"budget_form_lookups[[#This Row],[Long text]]","v":"Visiting Judges - Expense Reimbursement"},514010,{"$f":"budget_form_lookups[[#This Row],[SAP GL Account]]","v":514250},{"$f":"budget_form_lookups[[#This Row],[PB-5 Rollup]]","v":"Court and Law Enforcement Related Expenditures"},null,null,null,null,null,506010,"FICA Tax-OASDI","FICA Tax-OASDI","2012-05-14",{"$f":"_xlfn.XLOOKUP(CI_s[[#This Row],[Commitment item]],AM:AM,AK:AK)","v":{"$error":"#N/A"}},{"$f":"_xlfn.XLOOKUP(CI_s[[#This Row],[Commitment item]],AM:AM,AN:AN)","v":{"$error":"#N/A"}},null,null,null,null,510200,510010,null,null,null,null,null,null,null,null,null,null,null,null,null,"Court and Law Enforcement Related Expenditures","Court and Law Enforcement Related Expenditures",6316,514250,"Visiting Judges - Expense Reimbursement"]
[null,{"$f":"budget_form_lookups[[#This Row],[Long text]]","v":"Witness Expenses"},514010,{"$f":"budget_form_lookups[[#This Row],[SAP GL Account]]","v":514260},{"$f":"budget_form_lookups[[#This Row],[PB-5 Rollup]]","v":"Court and Law Enforcement Related Expenditures"},null,null,null,null,null,506020,"FICA Tax-Mdcr","FICA Tax-Medicare","2012-05-14",{"$f":"_xlfn.XLOOKUP(CI_s[[#This Row],[Commitment item]],AM:AM,AK:AK)","v":{"$error":"#N/A"}},{"$f":"_xlfn.XLOOKUP(CI_s[[#This Row],[Commitment item]],AM:AM,AN:AN)","v":{"$error":"#N/A"}},null,null,null,null,510210,510010,null,null,null,null,null,null,null,null,null,null,null,null,null,"Court and Law Enforcement Related Expenditures","Court and Law Enforcement Related Expenditures",6318,514260,"Witness Expenses"]
[null,{"$f":"budget_form_lookups[[#This Row],[Long text]]","v":"Auto Liability Premiums"},515010,{"$f":"budget_form_lookups[[#This Row],[SAP GL Account]]","v":515340},{"$f":"budget_form_lookups[[#This Row],[PB-5 Rollup]]","v":"Insurance Premiums"},null,null,null,null,null,506030,"Med Ins Benefit","Medical Insurance Benefit","2012-05-14",{"$f":"_xlfn.XLOOKUP(CI_s[[#This Row],[Commitment item]],AM:AM,AK:AK)","v":{"$error":"#N/A"}},{"$f":"_xlfn.XLOOKUP(CI_s[[#This Row],[Commitment item]],AM:AM,AN:AN)","v":{"$error":"#N/A"}},null,null,null,null,510220,510010,null,null,null,null,null,null,null,null,null,null,null,null,null,"Insurance Premiums","Insurance Premiums",4401,515340,"Auto Liability Premiums","??"]
[null,{"$f":"budget_form_lookups[[#This Row],[Long text]]","v":"Bonds-Elected Officials"},515010,{"$f":"budget_form_lookups[[#This Row],[SAP GL Account]]","v":515420},{"$f":"budget_form_lookups[[#This Row],[PB-5 Rollup]]","v":"Insurance Premiums"},null,null,null,null,null,506040,"Life Ins Benefit","Life Insurance Benefit","2012-05-14",{"$f":"_xlfn.XLOOKUP(CI_s[[#This Row],[Commitment item]],AM:AM,AK:AK)","v":{"$error":"#N/A"}},{"$f":"_xlfn.XLOOKUP(CI_s[[#This Row],[Commitment item]],AM:AM,AN:AN)","v":{"$error":"#N/A"}},null,null,null,null,510230,510010,null,null,null,null,null,null,null,null,null,null,null,null,null,"Insurance Premiums","Insurance Premiums",4406,515420,"Bonds-Elected Officials","??"]
[null,{"$f":"budget_form_lookups[[#This Row],[Long text]]","v":"COBRA Stop/Loss Premium Medical-HDHP"},515010,{"$f":"budget_form_lookups[[#This Row],[SAP GL Account]]","v":515269},{"$f":"budget_form_lookups[[#This Row],[PB-5 Rollup]]","v":"Insurance Premiums"},null,null,null,null,null,506050,"Retmt Contribution","Retirement Contribution","2012-05-14",{"$f":"_xlfn.XLOOKUP(CI_s[[#This Row],[Commitment item]],AM:AM,AK:AK)","v":{"$error":"#N/A"}},{"$f":"_xlfn.XLOOKUP(CI_s[[#This Row],[Commitment item]],AM:AM,AN:AN)","v":{"$error":"#N/A"}},null,null,null,null,510240,510010,null,null,null,null,null,null,null,null,null,null,null,null,null,"Insurance Premiums","Insurance Premiums",null,515269,"COBRA Stop/Loss Premium Medical-HDHP","??"]
[null,{"$f":"budget_form_lookups[[#This Row],[Long text]]","v":"COBRA-Premium Medical-CoEPO"},515010,{"$f":"budget_form_lookups[[#This Row],[SAP GL Account]]","v":515264},{"$f":"budget_form_lookups[[#This Row],[PB-5 Rollup]]","v":"Insurance Premiums"},null,null,null,null,null,506055,"Ret Contribut-GASB68","Retirement Contribution-GASB 68","2016-08-23",{"$f":"_xlfn.XLOOKUP(CI_s[[#This Row],[Commitment item]],AM:AM,AK:AK)","v":{"$error":"#N/A"}},{"$f":"_xlfn.XLOOKUP(CI_s[[#This Row],[Commitment item]],AM:AM,AN:AN)","v":{"$error":"#N/A"}},null,null,null,null,510250,510010,null,null,null,null,null,null,null,null,null,null,null,null,null,"Insurance Premiums","Insurance Premiums",null,515264,"COBRA-Premium Medical-CoEPO","??"]
[null,{"$f":"budget_form_lookups[[#This Row],[Long text]]","v":"COBRA-Premium Medical-CoEPO"},515010,{"$f":"budget_form_lookups[[#This Row],[SAP GL Account]]","v":515267},{"$f":"budget_form_lookups[[#This Row],[PB-5 Rollup]]","v":"Insurance Premiums"},null,null,null,null,null,506060,"Workers Comp","Worker's Compensation","2012-05-14",{"$f":"_xlfn.XLOOKUP(CI_s[[#This Row],[Commitment item]],AM:AM,AK:AK)","v":{"$error":"#N/A"}},{"$f":"_xlfn.XLOOKUP(CI_s[[#This Row],[Commitment item]],AM:AM,AN:AN)","v":{"$error":"#N/A"}},null,null,null,null,510260,510010,null,null,null,null,null,null,null,null,null,null,null,null,null,"Insurance Premiums","Insurance Premiums",null,515267,"COBRA-Premium Medical-CoEPO","??"]
[null,{"$f":"budget_form_lookups[[#This Row],[Long text]]","v":"COBRA-Premium Medical-Consumer Choice"},515010,{"$f":"budget_form_lookups[[#This Row],[SAP GL Account]]","v":515268},{"$f":"budget_form_lookups[[#This Row],[PB-5 Rollup]]","v":"Insurance Premiums"},null,null,null,null,null,506070,"Unempt Ins","Unemployment Insurance","2012-05-14",{"$f":"_xlfn.XLOOKUP(CI_s[[#This Row],[Commitment item]],AM:AM,AK:AK)","v":{"$error":"#N/A"}},{"$f":"_xlfn.XLOOKUP(CI_s[[#This Row],[Commitment item]],AM:AM,AN:AN)","v":{"$error":"#N/A"}},null,null,null,null,510270,510010,null,null,null,null,null,null,null,null,null,null,null,null,null,"Insurance Premiums","Insurance Premiums",null,515268,"COBRA-Premium Medical-Consumer Choice","??"]
[null,{"$f":"budget_form_lookups[[#This Row],[Long text]]","v":"COBRA-Premium Medical-EPO"},515010,{"$f":"budget_form_lookups[[#This Row],[SAP GL Account]]","v":515266},{"$f":"budget_form_lookups[[#This Row],[PB-5 Rollup]]","v":"Insurance Premiums"},null,null,null,null,null,506998,"GW GASB68 PenExpOff","GW GASB68 Pension Expense Offset","2015-10-20",{"$f":"_xlfn.XLOOKUP(CI_s[[#This Row],[Commitment item]],AM:AM,AK:AK)","v":{"$error":"#N/A"}},{"$f":"_xlfn.XLOOKUP(CI_s[[#This Row],[Commitment item]],AM:AM,AN:AN)","v":{"$error":"#N/A"}},null,null,null,null,510280,510010,null,null,null,null,null,null,null,null,null,null,null,null,null,"Insurance Premiums","Insurance Premiums",null,515266,"COBRA-Premium Medical-EPO","??"]
[null,{"$f":"budget_form_lookups[[#This Row],[Long text]]","v":"COBRA-Premium Medical-HDHP"},515010,{"$f":"budget_form_lookups[[#This Row],[SAP GL Account]]","v":515270},{"$f":"budget_form_lookups[[#This Row],[PB-5 Rollup]]","v":"Insurance Premiums"},null,null,null,null,null,506999,"GW GASB68 PenExp","GW GASB68 Pension Expense","2015-10-20",{"$f":"_xlfn.XLOOKUP(CI_s[[#This Row],[Commitment item]],AM:AM,AK:AK)","v":{"$error":"#N/A"}},{"$f":"_xlfn.XLOOKUP(CI_s[[#This Row],[Commitment item]],AM:AM,AN:AN)","v":{"$error":"#N/A"}},null,null,null,null,510290,510010,null,null,null,null,null,null,null,null,null,null,null,null,null,"Insurance Premiums","Insurance Premiums",null,515270,"COBRA-Premium Medical-HDHP","??"]
[null,{"$f":"budget_form_lookups[[#This Row],[Long text]]","v":"COBRA-Premium Medical-PPO"},515010,{"$f":"budget_form_lookups[[#This Row],[SAP GL Account]]","v":515265},{"$f":"budget_form_lookups[[#This Row],[PB-5 Rollup]]","v":"Insurance Premiums"},null,null,null,null,null,510010,"Arcrft&Boat Sup&Eqp","Aircraft and Boating Supplies & Equipment","2012-05-14",{"$f":"_xlfn.XLOOKUP(CI_s[[#This Row],[Commitment item]],AM:AM,AK:AK)","v":"Supplies & Equipment"},{"$f":"_xlfn.XLOOKUP(CI_s[[#This Row],[Commitment item]],AM:AM,AN:AN)","v":"Aircraft and Boating Supplies & Equipment"},null,null,null,null,510300,510010,null,null,null,null,null,null,null,null,null,null,null,null,null,"Insurance Premiums","Insurance Premiums",null,515265,"COBRA-Premium Medical-PPO","??"]
[null,{"$f":"budget_form_lookups[[#This Row],[Long text]]","v":"COBRA-Stop/Loss Premium Medical-CoEPO"},515010,{"$f":"budget_form_lookups[[#This Row],[SAP GL Account]]","v":515261},{"$f":"budget_form_lookups[[#This Row],[PB-5 Rollup]]","v":"Insurance Premiums"},null,null,null,null,null,510020,"Books","Books","2012-05-14",{"$f":"_xlfn.XLOOKUP(CI_s[[#This Row],[Commitment item]],AM:AM,AK:AK)","v":"Supplies & Equipment"},{"$f":"_xlfn.XLOOKUP(CI_s[[#This Row],[Commitment item]],AM:AM,AN:AN)","v":"Books"},null,null,null,null,510310,510010,null,null,null,null,null,null,null,null,null,null,null,null,null,"Insurance Premiums","Insurance Premiums",null,515261,"COBRA-Stop/Loss Premium Medical-CoEPO","??"]
[null,{"$f":"budget_form_lookups[[#This Row],[Long text]]","v":"COBRA-Stop/Loss Premium Medical-EPO"},515010,{"$f":"budget_form_lookups[[#This Row],[SAP GL Account]]","v":515263},{"$f":"budget_form_lookups[[#This Row],[PB-5 Rollup]]","v":"Insurance Premiums"},null,null,null,null,null,510030,"Bldg Mnt Sup&Eqp","Building Maintenance Supplies & Equipment","2012-05-14",{"$f":"_xlfn.XLOOKUP(CI_s[[#This Row],[Commitment item]],AM:AM,AK:AK)","v":"Supplies & Equipment"},{"$f":"_xlfn.XLOOKUP(CI_s[[#This Row],[Commitment item]],AM:AM,AN:AN)","v":"Building Maintenance Supplies & Equipment"},null,null,null,null,510320,510010,null,null,null,null,null,null,null,null,null,null,null,null,null,"Insurance Premiums","Insurance Premiums",null,515263,"COBRA-Stop/Loss Premium Medical-EPO","??"]
[null,{"$f":"budget_form_lookups[[#This Row],[Long text]]","v":"COBRA-Stop/Loss Premium Medical-PPO"},515010,{"$f":"budget_form_lookups[[#This Row],[SAP GL Account]]","v":515262},{"$f":"budget_form_lookups[[#This Row],[PB-5 Rollup]]","v":"Insurance Premiums"},null,null,null,null,null,510035,"CSCDGrtEqp","CSCD Grant Designated Equipment","2012-12-03",{"$f":"_xlfn.XLOOKUP(CI_s[[#This Row],[Commitment item]],AM:AM,AK:AK)","v":"Supplies & Equipment"},{"$f":"_xlfn.XLOOKUP(CI_s[[#This Row],[Commitment item]],AM:AM,AN:AN)","v":"CSCD Grant Designated Equipment"},null,null,null,null,510330,510010,null,null,null,null,null,null,null,null,null,null,null,null,null,"Insurance Premiums","Insurance Premiums",null,515262,"COBRA-Stop/Loss Premium Medical-PPO","??"]
[null,{"$f":"budget_form_lookups[[#This Row],[Long text]]","v":"E&O Insurance Premiums"},515010,{"$f":"budget_form_lookups[[#This Row],[SAP GL Account]]","v":515410},{"$f":"budget_form_lookups[[#This Row],[PB-5 Rollup]]","v":"Insurance Premiums"},null,null,null,null,null,510040,"Chemical Sup&Eqp","Chemical Supplies & Equipment","2012-05-14",{"$f":"_xlfn.XLOOKUP(CI_s[[#This Row],[Commitment item]],AM:AM,AK:AK)","v":"Supplies & Equipment"},{"$f":"_xlfn.XLOOKUP(CI_s[[#This Row],[Commitment item]],AM:AM,AN:AN)","v":"Chemical Supplies & Equipment"},null,null,null,null,510340,510010,null,null,null,null,null,null,null,null,null,null,null,null,null,"Insurance Premiums","Insurance Premiums",4515,515410,"E&O Insurance Premiums","??"]
[null,{"$f":"budget_form_lookups[[#This Row],[Long text]]","v":"Employee Stop/Loss Premium Medical"},515010,{"$f":"budget_form_lookups[[#This Row],[SAP GL Account]]","v":515001},{"$f":"budget_form_lookups[[#This Row],[PB-5 Rollup]]","v":"Insurance Premiums"},null,null,null,null,null,510050,"Clothing & Uniforms","Clothing & Uniforms","2012-05-14",{"$f":"_xlfn.XLOOKUP(CI_s[[#This Row],[Commitment item]],AM:AM,AK:AK)","v":"Supplies & Equipment"},{"$f":"_xlfn.XLOOKUP(CI_s[[#This Row],[Commitment item]],AM:AM,AN:AN)","v":"Clothing & Uniforms"},null,null,null,null,510350,510010,null,null,null,null,null,null,null,null,null,null,null,null,null,"Insurance Premiums","Insurance Premiums",4402,515001,"Employee Stop/Loss Premium Medical","??"]
[null,{"$f":"budget_form_lookups[[#This Row],[Long text]]","v":"Employee Stop/Loss Premium Medical-CoEPO"},515010,{"$f":"budget_form_lookups[[#This Row],[SAP GL Account]]","v":515010},{"$f":"budget_form_lookups[[#This Row],[PB-5 Rollup]]","v":"Insurance Premiums"},null,null,null,null,null,510060,"Comm Sup&Eqp","Communication Supplies & Equipment","2012-05-14",{"$f":"_xlfn.XLOOKUP(CI_s[[#This Row],[Commitment item]],AM:AM,AK:AK)","v":"Supplies & Equipment"},{"$f":"_xlfn.XLOOKUP(CI_s[[#This Row],[Commitment item]],AM:AM,AN:AN)","v":"Communication Supplies & Equipment"},null,null,null,null,510360,510010,null,null,null,null,null,null,null,null,null,null,null,null,null,"Insurance Premiums","Insurance Premiums",4402,515010,"Employee Stop/Loss Premium Medical-CoEPO","??"]
[null,{"$f":"budget_form_lookups[[#This Row],[Long text]]","v":"Employee Stop/Loss Premium Medical-Consumer Choice"},515010,{"$f":"budget_form_lookups[[#This Row],[SAP GL Account]]","v":515011},{"$f":"budget_form_lookups[[#This Row],[PB-5 Rollup]]","v":"Insurance Premiums"},null,null,null,null,null,510070,"CmpEqp & Peripherals","Computer Equipment & Peripherals","2012-05-14",{"$f":"_xlfn.XLOOKUP(CI_s[[#This Row],[Commitment item]],AM:AM,AK:AK)","v":"Supplies & Equipment"},{"$f":"_xlfn.XLOOKUP(CI_s[[#This Row],[Commitment item]],AM:AM,AN:AN)","v":"Computer Equipment & Peripherals"},null,null,null,null,510400,510010,null,null,null,null,null,null,null,null,null,null,null,null,null,"Insurance Premiums","Insurance Premiums",null,515011,"Employee Stop/Loss Premium Medical-Consumer Choice","??"]
[null,{"$f":"budget_form_lookups[[#This Row],[Long text]]","v":"Employee Stop/Loss Premium Medical-EPO"},515010,{"$f":"budget_form_lookups[[#This Row],[SAP GL Account]]","v":515030},{"$f":"budget_form_lookups[[#This Row],[PB-5 Rollup]]","v":"Insurance Premiums"},null,null,null,null,null,510080,"Custodial Sup&Eqp","Custodial Supplies & Equipment","2012-05-14",{"$f":"_xlfn.XLOOKUP(CI_s[[#This Row],[Commitment item]],AM:AM,AK:AK)","v":"Supplies & Equipment"},{"$f":"_xlfn.XLOOKUP(CI_s[[#This Row],[Commitment item]],AM:AM,AN:AN)","v":"Custodial Supplies & Equipment"},null,null,null,null,510401,510010,null,null,null,null,null,null,null,null,null,null,null,null,null,"Insurance Premiums","Insurance Premiums",4402,515030,"Employee Stop/Loss Premium Medical-EPO","??"]
[null,{"$f":"budget_form_lookups[[#This Row],[Long text]]","v":"Employee Stop/Loss Premium Medical-HDHP"},515010,{"$f":"budget_form_lookups[[#This Row],[SAP GL Account]]","v":515012},{"$f":"budget_form_lookups[[#This Row],[PB-5 Rollup]]","v":"Insurance Premiums"},null,null,null,null,null,510090,"Drug & Pharm Sup","Drug & Pharmaceuticals Supplies","2012-05-14",{"$f":"_xlfn.XLOOKUP(CI_s[[#This Row],[Commitment item]],AM:AM,AK:AK)","v":"Supplies & Equipment"},{"$f":"_xlfn.XLOOKUP(CI_s[[#This Row],[Commitment item]],AM:AM,AN:AN)","v":"Drug & Pharmaceuticals Supplies"},null,null,null,null,510402,510010,null,null,null,null,null,null,null,null,null,null,null,null,null,"Insurance Premiums","Insurance Premiums",null,515012,"Employee Stop/Loss Premium Medical-HDHP","??"]
[null,{"$f":"budget_form_lookups[[#This Row],[Long text]]","v":"Employee Stop/Loss Premium Medical-PPO"},515010,{"$f":"budget_form_lookups[[#This Row],[SAP GL Account]]","v":515020},{"$f":"budget_form_lookups[[#This Row],[PB-5 Rollup]]","v":"Insurance Premiums"},null,null,null,null,null,510100,"Electrical Sup&Eqp","Electrical Supplies & Equipment","2012-05-14",{"$f":"_xlfn.XLOOKUP(CI_s[[#This Row],[Commitment item]],AM:AM,AK:AK)","v":"Supplies & Equipment"},{"$f":"_xlfn.XLOOKUP(CI_s[[#This Row],[Commitment item]],AM:AM,AN:AN)","v":"Electrical Supplies & Equipment"},null,null,null,null,510497,510010,null,null,null,null,null,null,null,null,null,null,null,null,null,"Insurance Premiums","Insurance Premiums",4402,515020,"Employee Stop/Loss Premium Medical-PPO","??"]
[null,{"$f":"budget_form_lookups[[#This Row],[Long text]]","v":"Employee-Premium Medical-CoEPO"},515010,{"$f":"budget_form_lookups[[#This Row],[SAP GL Account]]","v":515040},{"$f":"budget_form_lookups[[#This Row],[PB-5 Rollup]]","v":"Insurance Premiums"},null,null,null,null,null,510110,"Food & Groceries","Food & Groceries","2012-05-14",{"$f":"_xlfn.XLOOKUP(CI_s[[#This Row],[Commitment item]],AM:AM,AK:AK)","v":"Supplies & Equipment"},{"$f":"_xlfn.XLOOKUP(CI_s[[#This Row],[Commitment item]],AM:AM,AN:AN)","v":"Food & Groceries"},null,null,null,null,510498,510010,null,null,null,null,null,null,null,null,null,null,null,null,null,"Insurance Premiums","Insurance Premiums",4401,515040,"Employee-Premium Medical-CoEPO","??"]
[null,{"$f":"budget_form_lookups[[#This Row],[Long text]]","v":"Employee-Premium Medical-Consumer Choice"},515041,{"$f":"budget_form_lookups[[#This Row],[SAP GL Account]]","v":515041},{"$f":"budget_form_lookups[[#This Row],[PB-5 Rollup]]","v":"Insurance Premiums"},null,null,null,null,null,510120,"Fuel","Fuel","2012-05-14",{"$f":"_xlfn.XLOOKUP(CI_s[[#This Row],[Commitment item]],AM:AM,AK:AK)","v":"Fuels, Oils & Lubricants"},{"$f":"_xlfn.XLOOKUP(CI_s[[#This Row],[Commitment item]],AM:AM,AN:AN)","v":"Fuel"},null,null,null,null,510499,510010,null,null,null,null,null,null,null,null,null,null,null,null,null,"Insurance Premiums","Insurance Premiums",null,515041,"Employee-Premium Medical-Consumer Choice","??"]
[null,{"$f":"budget_form_lookups[[#This Row],[Long text]]","v":"Employee-Premium Medical-EPO"},515010,{"$f":"budget_form_lookups[[#This Row],[SAP GL Account]]","v":515060},{"$f":"budget_form_lookups[[#This Row],[PB-5 Rollup]]","v":"Insurance Premiums"},null,null,null,null,null,510125,"Oils & Lubricants","Oils & Lubricants","2012-06-14",{"$f":"_xlfn.XLOOKUP(CI_s[[#This Row],[Commitment item]],AM:AM,AK:AK)","v":"Fuels, Oils & Lubricants"},{"$f":"_xlfn.XLOOKUP(CI_s[[#This Row],[Commitment item]],AM:AM,AN:AN)","v":"Oils & Lubricants"},null,null,null,null,510900,510010,null,null,null,null,null,null,null,null,null,null,null,null,null,"Insurance Premiums","Insurance Premiums",4401,515060,"Employee-Premium Medical-EPO","??"]
[null,{"$f":"budget_form_lookups[[#This Row],[Long text]]","v":"Employee-Premium Medical-HDHP"},515010,{"$f":"budget_form_lookups[[#This Row],[SAP GL Account]]","v":515042},{"$f":"budget_form_lookups[[#This Row],[PB-5 Rollup]]","v":"Insurance Premiums"},null,null,null,null,null,510130,"Grndkpg Sup&Eqp","Groundskeeping Supplies & Equipment","2012-05-14",{"$f":"_xlfn.XLOOKUP(CI_s[[#This Row],[Commitment item]],AM:AM,AK:AK)","v":"Supplies & Equipment"},{"$f":"_xlfn.XLOOKUP(CI_s[[#This Row],[Commitment item]],AM:AM,AN:AN)","v":"Groundskeeping Supplies & Equipment"},null,null,null,null,510980,510010,null,null,null,null,null,null,null,null,null,null,null,null,null,"Insurance Premiums","Insurance Premiums",null,515042,"Employee-Premium Medical-HDHP","??"]
[null,{"$f":"budget_form_lookups[[#This Row],[Long text]]","v":"Employee-Premium Medical-PPO"},515010,{"$f":"budget_form_lookups[[#This Row],[SAP GL Account]]","v":515050},{"$f":"budget_form_lookups[[#This Row],[PB-5 Rollup]]","v":"Insurance Premiums"},null,null,null,null,null,510140,"Hdw Sup&Eqp","Hardware Supplies & Equipment","2012-05-14",{"$f":"_xlfn.XLOOKUP(CI_s[[#This Row],[Commitment item]],AM:AM,AK:AK)","v":"Supplies & Equipment"},{"$f":"_xlfn.XLOOKUP(CI_s[[#This Row],[Commitment item]],AM:AM,AN:AN)","v":"Hardware Supplies & Equipment"},null,null,null,null,510990,510010,null,null,null,null,null,null,null,null,null,null,null,null,null,"Insurance Premiums","Insurance Premiums",4401,515050,"Employee-Premium Medical-PPO","??"]
[null,{"$f":"budget_form_lookups[[#This Row],[Long text]]","v":"General Insurance Premiums"},515010,{"$f":"budget_form_lookups[[#This Row],[SAP GL Account]]","v":515320},{"$f":"budget_form_lookups[[#This Row],[PB-5 Rollup]]","v":"Insurance Premiums"},null,null,null,null,null,510150,"Institutional Eqp","Institutional Equipment","2012-05-14",{"$f":"_xlfn.XLOOKUP(CI_s[[#This Row],[Commitment item]],AM:AM,AK:AK)","v":"Supplies & Equipment"},{"$f":"_xlfn.XLOOKUP(CI_s[[#This Row],[Commitment item]],AM:AM,AN:AN)","v":"Institutional Equipment"},null,null,null,null,510999,510010,null,null,null,null,null,null,null,null,null,null,null,null,null,"Insurance Premiums","Insurance Premiums",4401,515320,"General Insurance Premiums","??"]
[null,{"$f":"budget_form_lookups[[#This Row],[Long text]]","v":"General Insurance Premiums - Conversion"},515010,{"$f":"budget_form_lookups[[#This Row],[SAP GL Account]]","v":515511},{"$f":"budget_form_lookups[[#This Row],[PB-5 Rollup]]","v":"Insurance Premiums"},null,null,null,null,null,510160,"Kitchen Sup&Eqp","Kitchen Supplies & Equipment","2012-05-14",{"$f":"_xlfn.XLOOKUP(CI_s[[#This Row],[Commitment item]],AM:AM,AK:AK)","v":"Supplies & Equipment"},{"$f":"_xlfn.XLOOKUP(CI_s[[#This Row],[Commitment item]],AM:AM,AN:AN)","v":"Kitchen Supplies & Equipment"},null,null,null,null,511020,511010,null,null,null,null,null,null,null,null,null,null,null,null,null,"Insurance Premiums","Insurance Premiums",4401,515511,"General Insurance Premiums - Conversion","??"]
[null,{"$f":"budget_form_lookups[[#This Row],[Long text]]","v":"General Liability Premiums"},515010,{"$f":"budget_form_lookups[[#This Row],[SAP GL Account]]","v":515330},{"$f":"budget_form_lookups[[#This Row],[PB-5 Rollup]]","v":"Insurance Premiums"},null,null,null,null,null,510170,"Laboratory Sup&Eqp","Laboratory Supplies & Equipment","2012-05-14",{"$f":"_xlfn.XLOOKUP(CI_s[[#This Row],[Commitment item]],AM:AM,AK:AK)","v":"Supplies & Equipment"},{"$f":"_xlfn.XLOOKUP(CI_s[[#This Row],[Commitment item]],AM:AM,AN:AN)","v":"Laboratory Supplies & Equipment"},null,null,null,null,511030,511010,null,null,null,null,null,null,null,null,null,null,null,null,null,"Insurance Premiums","Insurance Premiums",4401,515330,"General Liability Premiums","??"]
[null,{"$f":"budget_form_lookups[[#This Row],[Long text]]","v":"Insurance Premiums Risk Management"},515010,{"$f":"budget_form_lookups[[#This Row],[SAP GL Account]]","v":515510},{"$f":"budget_form_lookups[[#This Row],[PB-5 Rollup]]","v":"Insurance Premiums"},null,null,null,null,null,510180,"Law Enf Sup&Eqp","Law Enforcement Supplies & Equipment","2012-05-14",{"$f":"_xlfn.XLOOKUP(CI_s[[#This Row],[Commitment item]],AM:AM,AK:AK)","v":"Supplies & Equipment"},{"$f":"_xlfn.XLOOKUP(CI_s[[#This Row],[Commitment item]],AM:AM,AN:AN)","v":"Law Enforcement Supplies & Equipment"},null,null,null,null,511040,511010,null,null,null,null,null,null,null,null,null,null,null,null,null,"Insurance Premiums","Insurance Premiums",4405,515510,"Insurance Premiums Risk Management","??"]
[null,{"$f":"budget_form_lookups[[#This Row],[Long text]]","v":"Property Insurance Premiums"},515010,{"$f":"budget_form_lookups[[#This Row],[SAP GL Account]]","v":515430},{"$f":"budget_form_lookups[[#This Row],[PB-5 Rollup]]","v":"Insurance Premiums"},null,null,null,null,null,510190,"Med/Dental Sup&Eqp","Medical/Dental Supplies & Equipment","2012-05-14",{"$f":"_xlfn.XLOOKUP(CI_s[[#This Row],[Commitment item]],AM:AM,AK:AK)","v":"Supplies & Equipment"},{"$f":"_xlfn.XLOOKUP(CI_s[[#This Row],[Commitment item]],AM:AM,AN:AN)","v":"Medical/Dental Supplies & Equipment"},null,null,null,null,511050,511010,null,null,null,null,null,null,null,null,null,null,null,null,null,"Insurance Premiums","Insurance Premiums",4408,515430,"Property Insurance Premiums","??"]
[null,{"$f":"budget_form_lookups[[#This Row],[Long text]]","v":"Ret<65 Stop/Loss Prem Medical-Consumer Choice"},515010,{"$f":"budget_form_lookups[[#This Row],[SAP GL Account]]","v":515111},{"$f":"budget_form_lookups[[#This Row],[PB-5 Rollup]]","v":"Insurance Premiums"},null,null,null,null,null,510200,"Ofc Eqp","Office Equipment","2012-05-14",{"$f":"_xlfn.XLOOKUP(CI_s[[#This Row],[Commitment item]],AM:AM,AK:AK)","v":"Supplies & Equipment"},{"$f":"_xlfn.XLOOKUP(CI_s[[#This Row],[Commitment item]],AM:AM,AN:AN)","v":"Office Equipment"},null,null,null,null,511060,511010,null,null,null,null,null,null,null,null,null,null,null,null,null,"Insurance Premiums","Insurance Premiums",null,515111,"Ret<65 Stop/Loss Prem Medical-Consumer Choice","??"]
[null,{"$f":"budget_form_lookups[[#This Row],[Long text]]","v":"Ret<65 Stop/Loss Prem Medical-HDHP"},515010,{"$f":"budget_form_lookups[[#This Row],[SAP GL Account]]","v":515112},{"$f":"budget_form_lookups[[#This Row],[PB-5 Rollup]]","v":"Insurance Premiums"},null,null,null,null,null,510210,"Ofc Furn","Office Furniture","2012-05-14",{"$f":"_xlfn.XLOOKUP(CI_s[[#This Row],[Commitment item]],AM:AM,AK:AK)","v":"Supplies & Equipment"},{"$f":"_xlfn.XLOOKUP(CI_s[[#This Row],[Commitment item]],AM:AM,AN:AN)","v":"Office Furniture"},null,null,null,null,511070,511010,null,null,null,null,null,null,null,null,null,null,null,null,null,"Insurance Premiums","Insurance Premiums",null,515112,"Ret<65 Stop/Loss Prem Medical-HDHP","??"]
[null,{"$f":"budget_form_lookups[[#This Row],[Long text]]","v":"Ret>65 Stop/Loss Prem Medical-Consumer Choice"},515211,{"$f":"budget_form_lookups[[#This Row],[SAP GL Account]]","v":515211},{"$f":"budget_form_lookups[[#This Row],[PB-5 Rollup]]","v":"Insurance Premiums"},null,null,null,null,null,510220,"Ofc Sup","Office Supplies","2012-05-14",{"$f":"_xlfn.XLOOKUP(CI_s[[#This Row],[Commitment item]],AM:AM,AK:AK)","v":"Supplies & Equipment"},{"$f":"_xlfn.XLOOKUP(CI_s[[#This Row],[Commitment item]],AM:AM,AN:AN)","v":"Office Supplies"},null,null,null,null,511080,511010,null,null,null,null,null,null,null,null,null,null,null,null,null,"Insurance Premiums","Insurance Premiums",null,515211,"Ret>65 Stop/Loss Prem Medical-Consumer Choice","??"]
[null,{"$f":"budget_form_lookups[[#This Row],[Long text]]","v":"Ret>65 Stop/Loss Prem Medical-HDHP"},515010,{"$f":"budget_form_lookups[[#This Row],[SAP GL Account]]","v":515212},{"$f":"budget_form_lookups[[#This Row],[PB-5 Rollup]]","v":"Insurance Premiums"},null,null,null,null,null,510230,"Ofc Sup/Eqp-CO","Office Supplies/Equipment-Conversion","2012-05-14",{"$f":"_xlfn.XLOOKUP(CI_s[[#This Row],[Commitment item]],AM:AM,AK:AK)","v":"Supplies & Equipment"},{"$f":"_xlfn.XLOOKUP(CI_s[[#This Row],[Commitment item]],AM:AM,AN:AN)","v":"Office Supplies/Equipment - Conversion"},null,null,null,null,511090,511010,null,null,null,null,null,null,null,null,null,null,null,null,null,"Insurance Premiums","Insurance Premiums",null,515212,"Ret>65 Stop/Loss Prem Medical-HDHP","??"]
[null,{"$f":"budget_form_lookups[[#This Row],[Long text]]","v":"Retiree < 65 Stop/Loss Premium Medical-CoEPO"},515010,{"$f":"budget_form_lookups[[#This Row],[SAP GL Account]]","v":515110},{"$f":"budget_form_lookups[[#This Row],[PB-5 Rollup]]","v":"Insurance Premiums"},null,null,null,null,null,510240,"Oth Sup&Eqp","Other Supplies & Equipment","2012-05-14",{"$f":"_xlfn.XLOOKUP(CI_s[[#This Row],[Commitment item]],AM:AM,AK:AK)","v":"Supplies & Equipment"},{"$f":"_xlfn.XLOOKUP(CI_s[[#This Row],[Commitment item]],AM:AM,AN:AN)","v":"Other Supplies & Equipment"},null,null,null,null,511100,511010,null,null,null,null,null,null,null,null,null,null,null,null,null,"Insurance Premiums","Insurance Premiums",4412,515110,"Retiree < 65 Stop/Loss Premium Medical-CoEPO","??"]
[null,{"$f":"budget_form_lookups[[#This Row],[Long text]]","v":"Retiree < 65 Stop/Loss Premium Medical-EPO"},515010,{"$f":"budget_form_lookups[[#This Row],[SAP GL Account]]","v":515130},{"$f":"budget_form_lookups[[#This Row],[PB-5 Rollup]]","v":"Insurance Premiums"},null,null,null,null,null,510250,"Paint Sup&Eqp","Paint Supplies & Equipment","2012-05-14",{"$f":"_xlfn.XLOOKUP(CI_s[[#This Row],[Commitment item]],AM:AM,AK:AK)","v":"Supplies & Equipment"},{"$f":"_xlfn.XLOOKUP(CI_s[[#This Row],[Commitment item]],AM:AM,AN:AN)","v":"Paint Supplies & Equipment"},null,null,null,null,511110,511010,null,null,null,null,null,null,null,null,null,null,null,null,null,"Insurance Premiums","Insurance Premiums",4412,515130,"Retiree < 65 Stop/Loss Premium Medical-EPO","??"]
[null,{"$f":"budget_form_lookups[[#This Row],[Long text]]","v":"Retiree < 65 Stop/Loss Premium Medical-PPO"},515010,{"$f":"budget_form_lookups[[#This Row],[SAP GL Account]]","v":515120},{"$f":"budget_form_lookups[[#This Row],[PB-5 Rollup]]","v":"Insurance Premiums"},null,null,null,null,null,510260,"Safety Sup&Eqp","Safety Supplies & Equipment","2012-05-14",{"$f":"_xlfn.XLOOKUP(CI_s[[#This Row],[Commitment item]],AM:AM,AK:AK)","v":"Supplies & Equipment"},{"$f":"_xlfn.XLOOKUP(CI_s[[#This Row],[Commitment item]],AM:AM,AN:AN)","v":"Safety Supplies & Equipment"},null,null,null,null,511120,511010,null,null,null,null,null,null,null,null,null,null,null,null,null,"Insurance Premiums","Insurance Premiums",4412,515120,"Retiree < 65 Stop/Loss Premium Medical-PPO","??"]
[null,{"$f":"budget_form_lookups[[#This Row],[Long text]]","v":"Retiree >65 Stop/Loss Premium Medical-CO EPO"},515010,{"$f":"budget_form_lookups[[#This Row],[SAP GL Account]]","v":515210},{"$f":"budget_form_lookups[[#This Row],[PB-5 Rollup]]","v":"Insurance Premiums"},null,null,null,null,null,510270,"Recreational Sup&Eqp","Recreational Supplies & Equipment","2012-05-14",{"$f":"_xlfn.XLOOKUP(CI_s[[#This Row],[Commitment item]],AM:AM,AK:AK)","v":"Supplies & Equipment"},{"$f":"_xlfn.XLOOKUP(CI_s[[#This Row],[Commitment item]],AM:AM,AN:AN)","v":"Recreational Supplies & Equipment"},null,null,null,null,511121,511010,null,null,null,null,null,null,null,null,null,null,null,null,null,"Insurance Premiums","Insurance Premiums",4412,515210,"Retiree >65 Stop/Loss Premium Medical-CO EPO","??"]
[null,{"$f":"budget_form_lookups[[#This Row],[Long text]]","v":"Retiree >65 Stop/Loss Premium Medical-EPO"},515010,{"$f":"budget_form_lookups[[#This Row],[SAP GL Account]]","v":515230},{"$f":"budget_form_lookups[[#This Row],[PB-5 Rollup]]","v":"Insurance Premiums"},null,null,null,null,null,510280,"Rd & Hwy Sup&Eqp","Road and Highway Supplies & Equipment","2012-05-14",{"$f":"_xlfn.XLOOKUP(CI_s[[#This Row],[Commitment item]],AM:AM,AK:AK)","v":"Supplies & Equipment"},{"$f":"_xlfn.XLOOKUP(CI_s[[#This Row],[Commitment item]],AM:AM,AN:AN)","v":"Road and Highway Supplies & Equipment"},null,null,null,null,511122,511010,null,null,null,null,null,null,null,null,null,null,null,null,null,"Insurance Premiums","Insurance Premiums",4412,515230,"Retiree >65 Stop/Loss Premium Medical-EPO","??"]
[null,{"$f":"budget_form_lookups[[#This Row],[Long text]]","v":"Retiree >65 Stop/Loss Premium Medical-PPO"},515010,{"$f":"budget_form_lookups[[#This Row],[SAP GL Account]]","v":515220},{"$f":"budget_form_lookups[[#This Row],[PB-5 Rollup]]","v":"Insurance Premiums"},null,null,null,null,null,510290,"Rd Mat-Asphaltic","Road Material-Asphaltic","2012-05-14",{"$f":"_xlfn.XLOOKUP(CI_s[[#This Row],[Commitment item]],AM:AM,AK:AK)","v":"Supplies & Equipment"},{"$f":"_xlfn.XLOOKUP(CI_s[[#This Row],[Commitment item]],AM:AM,AN:AN)","v":"Road Material-Asphaltic"},null,null,null,null,511123,511010,null,null,null,null,null,null,null,null,null,null,null,null,null,"Insurance Premiums","Insurance Premiums",4412,515220,"Retiree >65 Stop/Loss Premium Medical-PPO","??"]
[null,{"$f":"budget_form_lookups[[#This Row],[Long text]]","v":"Retiree<65-Premium Medical-CoEPO"},515010,{"$f":"budget_form_lookups[[#This Row],[SAP GL Account]]","v":515140},{"$f":"budget_form_lookups[[#This Row],[PB-5 Rollup]]","v":"Insurance Premiums"},null,null,null,null,null,510300,"Rd Mat-NonAsphaltc","Road Material-Non Asphaltic","2012-05-14",{"$f":"_xlfn.XLOOKUP(CI_s[[#This Row],[Commitment item]],AM:AM,AK:AK)","v":"Supplies & Equipment"},{"$f":"_xlfn.XLOOKUP(CI_s[[#This Row],[Commitment item]],AM:AM,AN:AN)","v":"Road Material-Non Asphaltic"},null,null,null,null,511124,511010,null,null,null,null,null,null,null,null,null,null,null,null,null,"Insurance Premiums","Insurance Premiums",4407,515140,"Retiree<65-Premium Medical-CoEPO","??"]
[null,{"$f":"budget_form_lookups[[#This Row],[Long text]]","v":"Retiree<65-Premium Medical-Consumer Choice"},515141,{"$f":"budget_form_lookups[[#This Row],[SAP GL Account]]","v":515141},{"$f":"budget_form_lookups[[#This Row],[PB-5 Rollup]]","v":"Insurance Premiums"},null,null,null,null,null,510310,"Software","Software","2012-05-14",{"$f":"_xlfn.XLOOKUP(CI_s[[#This Row],[Commitment item]],AM:AM,AK:AK)","v":"Supplies & Equipment"},{"$f":"_xlfn.XLOOKUP(CI_s[[#This Row],[Commitment item]],AM:AM,AN:AN)","v":"Software"},null,null,null,null,511130,511010,null,null,null,null,null,null,null,null,null,null,null,null,null,"Insurance Premiums","Insurance Premiums",null,515141,"Retiree<65-Premium Medical-Consumer Choice","??"]
[null,{"$f":"budget_form_lookups[[#This Row],[Long text]]","v":"Retiree<65-Premium Medical-EPO"},515010,{"$f":"budget_form_lookups[[#This Row],[SAP GL Account]]","v":515160},{"$f":"budget_form_lookups[[#This Row],[PB-5 Rollup]]","v":"Insurance Premiums"},null,null,null,null,null,510320,"Textile & Linen Sup","Textile and Linen Supplies","2012-05-14",{"$f":"_xlfn.XLOOKUP(CI_s[[#This Row],[Commitment item]],AM:AM,AK:AK)","v":"Supplies & Equipment"},{"$f":"_xlfn.XLOOKUP(CI_s[[#This Row],[Commitment item]],AM:AM,AN:AN)","v":"Textile and Linen Supplies"},null,null,null,null,511140,511010,null,null,null,null,null,null,null,null,null,null,null,null,null,"Insurance Premiums","Insurance Premiums",4407,515160,"Retiree<65-Premium Medical-EPO","??"]
[null,{"$f":"budget_form_lookups[[#This Row],[Long text]]","v":"Retiree<65-Premium Medical-HDHP"},515010,{"$f":"budget_form_lookups[[#This Row],[SAP GL Account]]","v":515142},{"$f":"budget_form_lookups[[#This Row],[PB-5 Rollup]]","v":"Insurance Premiums"},null,null,null,null,null,510330,"Tfc Ctrl/Sg Sup&Eqp","Traffic Control/Signage Supplies & Equipment","2012-05-14",{"$f":"_xlfn.XLOOKUP(CI_s[[#This Row],[Commitment item]],AM:AM,AK:AK)","v":"Supplies & Equipment"},{"$f":"_xlfn.XLOOKUP(CI_s[[#This Row],[Commitment item]],AM:AM,AN:AN)","v":"Traffic Control/Signage Supplies & Equipment"},null,null,null,null,511145,511010,null,null,null,null,null,null,null,null,null,null,null,null,null,"Insurance Premiums","Insurance Premiums",null,515142,"Retiree<65-Premium Medical-HDHP","??"]
[null,{"$f":"budget_form_lookups[[#This Row],[Long text]]","v":"Retiree<65-Premium Medical-PPO"},515010,{"$f":"budget_form_lookups[[#This Row],[SAP GL Account]]","v":515150},{"$f":"budget_form_lookups[[#This Row],[PB-5 Rollup]]","v":"Insurance Premiums"},null,null,null,null,null,510340,"Vehicle Sup&Eqp","Vehicle Supplies & Equipment","2012-05-14",{"$f":"_xlfn.XLOOKUP(CI_s[[#This Row],[Commitment item]],AM:AM,AK:AK)","v":"Supplies & Equipment"},{"$f":"_xlfn.XLOOKUP(CI_s[[#This Row],[Commitment item]],AM:AM,AN:AN)","v":"Vehicle Supplies & Equipment"},null,null,null,null,511146,511010,null,null,null,null,null,null,null,null,null,null,null,null,null,"Insurance Premiums","Insurance Premiums",4407,515150,"Retiree<65-Premium Medical-PPO","??"]
[null,{"$f":"budget_form_lookups[[#This Row],[Long text]]","v":"Retiree>65-Premium Medical-CoEPO"},515010,{"$f":"budget_form_lookups[[#This Row],[SAP GL Account]]","v":515240},{"$f":"budget_form_lookups[[#This Row],[PB-5 Rollup]]","v":"Insurance Premiums"},null,null,null,null,null,510350,"Vet/Livestck Sup&Eqp","Veterinary/Livestock Supplies & Equipment","2012-05-14",{"$f":"_xlfn.XLOOKUP(CI_s[[#This Row],[Commitment item]],AM:AM,AK:AK)","v":"Supplies & Equipment"},{"$f":"_xlfn.XLOOKUP(CI_s[[#This Row],[Commitment item]],AM:AM,AN:AN)","v":"Veterinary/Livestock Supplies & Equipment"},null,null,null,null,511150,511010,null,null,null,null,null,null,null,null,null,null,null,null,null,"Insurance Premiums","Insurance Premiums",4407,515240,"Retiree>65-Premium Medical-CoEPO","??"]
[null,{"$f":"budget_form_lookups[[#This Row],[Long text]]","v":"Retiree>65-Premium Medical-Consumer Choice"},{"$f":"IFERROR(INDEX(V:V,MATCH(D130,U:U,0)),D130)","v":515241},{"$f":"budget_form_lookups[[#This Row],[SAP GL Account]]","v":515241},{"$f":"budget_form_lookups[[#This Row],[PB-5 Rollup]]","v":"Insurance Premiums"},null,null,null,null,null,510360,"Industrial Sup&Eqp","Industrial Supplies & Equipment","2012-05-14",{"$f":"_xlfn.XLOOKUP(CI_s[[#This Row],[Commitment item]],AM:AM,AK:AK)","v":"Supplies & Equipment"},{"$f":"_xlfn.XLOOKUP(CI_s[[#This Row],[Commitment item]],AM:AM,AN:AN)","v":"Indisutrial Supplies & Equipment"},null,null,null,null,511160,511010,null,null,null,null,null,null,null,null,null,null,null,null,null,"Insurance Premiums","Insurance Premiums",null,515241,"Retiree>65-Premium Medical-Consumer Choice","??"]
[null,{"$f":"budget_form_lookups[[#This Row],[Long text]]","v":"Retiree>65-Premium Medical-EPO"},515010,{"$f":"budget_form_lookups[[#This Row],[SAP GL Account]]","v":515260},{"$f":"budget_form_lookups[[#This Row],[PB-5 Rollup]]","v":"Insurance Premiums"},null,null,null,null,null,510400,"Material Purchased","Material Purchased","2015-12-06",{"$f":"_xlfn.XLOOKUP(CI_s[[#This Row],[Commitment item]],AM:AM,AK:AK)","v":"Supplies & Equipment"},{"$f":"_xlfn.XLOOKUP(CI_s[[#This Row],[Commitment item]],AM:AM,AN:AN)","v":"Weatherization Material Purchased"},null,null,null,null,511170,511010,null,null,null,null,null,null,null,null,null,null,null,null,null,"Insurance Premiums","Insurance Premiums",4407,515260,"Retiree>65-Premium Medical-EPO","??"]
[null,{"$f":"budget_form_lookups[[#This Row],[Long text]]","v":"Retiree>65-Premium Medical-HDHP"},515242,{"$f":"budget_form_lookups[[#This Row],[SAP GL Account]]","v":515243},{"$f":"budget_form_lookups[[#This Row],[PB-5 Rollup]]","v":"Insurance Premiums"},null,null,null,null,null,510401,"Material Used","Material Used","2015-12-06",{"$f":"_xlfn.XLOOKUP(CI_s[[#This Row],[Commitment item]],AM:AM,AK:AK)","v":"Supplies & Equipment"},{"$f":"_xlfn.XLOOKUP(CI_s[[#This Row],[Commitment item]],AM:AM,AN:AN)","v":"Weatherization Material Used"},null,null,null,null,511180,511010,null,null,null,null,null,null,null,null,null,null,null,null,null,"Insurance Premiums","Insurance Premiums",null,515243,"Retiree>65-Premium Medical-HDHP","??"]
[null,{"$f":"budget_form_lookups[[#This Row],[Long text]]","v":"Retiree>65-Premium Medical-MAPD"},515242,{"$f":"budget_form_lookups[[#This Row],[SAP GL Account]]","v":515242},{"$f":"budget_form_lookups[[#This Row],[PB-5 Rollup]]","v":"Insurance Premiums"},null,null,null,null,null,510402,"Material Scrap/Diff","Material Scrap/Diff","2015-12-06",{"$f":"_xlfn.XLOOKUP(CI_s[[#This Row],[Commitment item]],AM:AM,AK:AK)","v":"Supplies & Equipment"},{"$f":"_xlfn.XLOOKUP(CI_s[[#This Row],[Commitment item]],AM:AM,AN:AN)","v":"Weatherization Material Scrap/Diff"},null,null,null,null,511200,511010,null,null,null,null,null,null,null,null,null,null,null,null,null,"Insurance Premiums","Insurance Premiums",null,515242,"Retiree>65-Premium Medical-MAPD","??"]
[null,{"$f":"budget_form_lookups[[#This Row],[Long text]]","v":"Retiree>65-Premium Medical-PPO"},515010,{"$f":"budget_form_lookups[[#This Row],[SAP GL Account]]","v":515250},{"$f":"budget_form_lookups[[#This Row],[PB-5 Rollup]]","v":"Insurance Premiums"},null,null,null,null,null,510403,"Material PPV","Material PPV","2019-02-11",{"$f":"_xlfn.XLOOKUP(CI_s[[#This Row],[Commitment item]],AM:AM,AK:AK)","v":"Supplies & Equipment"},{"$f":"_xlfn.XLOOKUP(CI_s[[#This Row],[Commitment item]],AM:AM,AN:AN)","v":"Weatherization Material PPV"},null,null,null,null,511220,511010,null,null,null,null,null,null,null,null,null,null,null,null,null,"Insurance Premiums","Insurance Premiums",4407,515250,"Retiree>65-Premium Medical-PPO","??"]
[null,{"$f":"budget_form_lookups[[#This Row],[Long text]]","v":"Retiree-Premium Medical-Conversion"},515010,{"$f":"budget_form_lookups[[#This Row],[SAP GL Account]]","v":515512},{"$f":"budget_form_lookups[[#This Row],[PB-5 Rollup]]","v":"Insurance Premiums"},null,null,null,null,null,510497,"Material Reimburse","Material Reimbursement","2020-08-06",{"$f":"_xlfn.XLOOKUP(CI_s[[#This Row],[Commitment item]],AM:AM,AK:AK)","v":"Supplies & Equipment"},{"$f":"_xlfn.XLOOKUP(CI_s[[#This Row],[Commitment item]],AM:AM,AN:AN)","v":"Material Reimbursement"},null,null,null,null,511230,511010,null,null,null,null,null,null,null,null,null,null,null,null,null,"Insurance Premiums","Insurance Premiums",4407,515512,"Retiree-Premium Medical-Conversion","??"]
[null,{"$f":"budget_form_lookups[[#This Row],[Long text]]","v":"Retiree-Stop/Loss Premium Medical-Conversion"},515010,{"$f":"budget_form_lookups[[#This Row],[SAP GL Account]]","v":515513},{"$f":"budget_form_lookups[[#This Row],[PB-5 Rollup]]","v":"Insurance Premiums"},null,null,null,null,null,510498,"Material Reclass YE","Material Reclass YE","2020-08-06",{"$f":"_xlfn.XLOOKUP(CI_s[[#This Row],[Commitment item]],AM:AM,AK:AK)","v":"Supplies & Equipment"},{"$f":"_xlfn.XLOOKUP(CI_s[[#This Row],[Commitment item]],AM:AM,AN:AN)","v":"Material Reclass YE"},null,null,null,null,511231,511010,"just added for COVID Response Distributions",null,null,null,null,null,null,null,null,null,null,null,null,"Insurance Premiums","Insurance Premiums",4412,515513,"Retiree-Stop/Loss Premium Medical-Conversion","??"]
[null,{"$f":"budget_form_lookups[[#This Row],[Long text]]","v":"Worker's Compensation Premiums"},515010,{"$f":"budget_form_lookups[[#This Row],[SAP GL Account]]","v":515310},{"$f":"budget_form_lookups[[#This Row],[PB-5 Rollup]]","v":"Insurance Premiums"},null,null,null,null,null,510499,"Initial Entry of Stk","Initial Entry of Stock Balances (conversion)","2015-12-06",{"$f":"_xlfn.XLOOKUP(CI_s[[#This Row],[Commitment item]],AM:AM,AK:AK)","v":"Supplies & Equipment"},{"$f":"_xlfn.XLOOKUP(CI_s[[#This Row],[Commitment item]],AM:AM,AN:AN)","v":"Initial Entry of Stock Balances (conversion)"},null,null,null,null,511240,511010,null,null,null,null,null,null,null,null,null,null,null,null,null,"Insurance Premiums","Insurance Premiums",4403,515310,"Worker's Compensation Premiums","??"]
[null,{"$f":"budget_form_lookups[[#This Row],[Long text]]","v":"Auto Liability Administrative Expenses"},516000,{"$f":"budget_form_lookups[[#This Row],[SAP GL Account]]","v":516610},{"$f":"budget_form_lookups[[#This Row],[PB-5 Rollup]]","v":"Loss & Claims"},null,null,null,null,null,510900,"Prompt Pay Interest","Prompt Pay Interest Expense","2019-11-27",{"$f":"_xlfn.XLOOKUP(CI_s[[#This Row],[Commitment item]],AM:AM,AK:AK)","v":"Supplies & Equipment"},{"$f":"_xlfn.XLOOKUP(CI_s[[#This Row],[Commitment item]],AM:AM,AN:AN)","v":"Prompt Pay Interest Expense"},null,null,null,null,511250,511010,null,null,null,null,null,null,null,null,null,null,null,null,null,"Loss & Claims","Loss & Claims",4702,516610,"Auto Liability Administrative Expenses","??"]
[null,{"$f":"budget_form_lookups[[#This Row],[Long text]]","v":"Benefits Administration"},516000,{"$f":"budget_form_lookups[[#This Row],[SAP GL Account]]","v":516620},{"$f":"budget_form_lookups[[#This Row],[PB-5 Rollup]]","v":"Loss & Claims"},null,null,null,null,null,510980,"Curr Exch Diff","Curr Exchange Diff","2012-06-25",{"$f":"_xlfn.XLOOKUP(CI_s[[#This Row],[Commitment item]],AM:AM,AK:AK)","v":"Supplies & Equipment"},{"$f":"_xlfn.XLOOKUP(CI_s[[#This Row],[Commitment item]],AM:AM,AN:AN)","v":"Currency Exchange Diff"},null,null,null,null,511260,511010,null,null,null,null,null,null,null,null,null,null,null,null,null,"Loss & Claims","Loss & Claims",4701,516620,"Benefits Administration","??"]
[null,{"$f":"budget_form_lookups[[#This Row],[Long text]]","v":"COBRA Actl Clms/Loss Pmts Medical-Consumer Choice"},516000,{"$f":"budget_form_lookups[[#This Row],[SAP GL Account]]","v":516311},{"$f":"budget_form_lookups[[#This Row],[PB-5 Rollup]]","v":"Loss & Claims"},null,null,null,null,null,510990,"Procurement Shipping","Procurement Shipping","2012-05-14",{"$f":"_xlfn.XLOOKUP(CI_s[[#This Row],[Commitment item]],AM:AM,AK:AK)","v":"Supplies & Equipment"},{"$f":"_xlfn.XLOOKUP(CI_s[[#This Row],[Commitment item]],AM:AM,AN:AN)","v":"Procurement Shipping"},null,null,null,null,511270,511010,null,null,null,null,null,null,null,null,null,null,null,null,null,"Loss & Claims","Loss & Claims",null,516311,"COBRA Actl Clms/Loss Pmts Medical-Consumer Choice","??"]
[null,{"$f":"budget_form_lookups[[#This Row],[Long text]]","v":"COBRA Actl Clms/Loss Pmts Medical-HDHP"},516000,{"$f":"budget_form_lookups[[#This Row],[SAP GL Account]]","v":516312},{"$f":"budget_form_lookups[[#This Row],[PB-5 Rollup]]","v":"Loss & Claims"},null,null,null,null,null,510999,"Early Pmt Discount","Early Payment Discount-Contra","2012-05-14",{"$f":"_xlfn.XLOOKUP(CI_s[[#This Row],[Commitment item]],AM:AM,AK:AK)","v":"Supplies & Equipment"},{"$f":"_xlfn.XLOOKUP(CI_s[[#This Row],[Commitment item]],AM:AM,AN:AN)","v":"Early Payment Discount-Contra"},null,null,null,null,511280,511010,null,null,null,null,null,null,null,null,null,null,null,null,null,"Loss & Claims","Loss & Claims",null,516312,"COBRA Actl Clms/Loss Pmts Medical-HDHP","??"]
[null,{"$f":"budget_form_lookups[[#This Row],[Long text]]","v":"COBRA Pharmacy Clms/Loss Pmts Medical-Cons Choice"},515593,{"$f":"budget_form_lookups[[#This Row],[SAP GL Account]]","v":515593},{"$f":"budget_form_lookups[[#This Row],[PB-5 Rollup]]","v":"Loss & Claims"},null,null,null,null,null,511010,"Counseling Sv","Counseling Services","2012-05-14",{"$f":"_xlfn.XLOOKUP(CI_s[[#This Row],[Commitment item]],AM:AM,AK:AK)","v":"Services"},{"$f":"_xlfn.XLOOKUP(CI_s[[#This Row],[Commitment item]],AM:AM,AN:AN)","v":"Counseling Services"},null,null,null,null,511290,511010,null,null,null,null,null,null,null,null,null,null,null,null,null,"Loss & Claims","Loss & Claims",null,515593,"COBRA Pharmacy Clms/Loss Pmts Medical-Cons Choice","??"]
[null,{"$f":"budget_form_lookups[[#This Row],[Long text]]","v":"COBRA Pharmacy Clms/Loss Pmts Medical-EPO"},516000,{"$f":"budget_form_lookups[[#This Row],[SAP GL Account]]","v":515583},{"$f":"budget_form_lookups[[#This Row],[PB-5 Rollup]]","v":"Loss & Claims"},null,null,null,null,null,511020,"Dental Sv","Dental Services","2012-05-14",{"$f":"_xlfn.XLOOKUP(CI_s[[#This Row],[Commitment item]],AM:AM,AK:AK)","v":"Services"},{"$f":"_xlfn.XLOOKUP(CI_s[[#This Row],[Commitment item]],AM:AM,AN:AN)","v":"Dental Services"},null,null,null,null,511300,511010,null,null,null,null,null,null,null,null,null,null,null,null,null,"Loss & Claims","Loss & Claims",null,515583,"COBRA Pharmacy Clms/Loss Pmts Medical-EPO","??"]
[null,{"$f":"budget_form_lookups[[#This Row],[Long text]]","v":"COBRA Pharmacy Clms/Loss Pmts Medical-HDHP"},516000,{"$f":"budget_form_lookups[[#This Row],[SAP GL Account]]","v":515598},{"$f":"budget_form_lookups[[#This Row],[PB-5 Rollup]]","v":"Loss & Claims"},null,null,null,null,null,511030,"Hospztn Sv","Hospitalization Services","2012-05-14",{"$f":"_xlfn.XLOOKUP(CI_s[[#This Row],[Commitment item]],AM:AM,AK:AK)","v":"Services"},{"$f":"_xlfn.XLOOKUP(CI_s[[#This Row],[Commitment item]],AM:AM,AN:AN)","v":"Hospitalization Services"},null,null,null,null,511310,511010,null,null,null,null,null,null,null,null,null,null,null,null,null,"Loss & Claims","Loss & Claims",null,515598,"COBRA Pharmacy Clms/Loss Pmts Medical-HDHP","??"]
[null,{"$f":"budget_form_lookups[[#This Row],[Long text]]","v":"COBRA Pharmacy Clms/Loss Pmts Medical-PPO"},516000,{"$f":"budget_form_lookups[[#This Row],[SAP GL Account]]","v":515588},{"$f":"budget_form_lookups[[#This Row],[PB-5 Rollup]]","v":"Loss & Claims"},null,null,null,null,null,511040,"Nursing Sv","Nursing Services","2012-05-14",{"$f":"_xlfn.XLOOKUP(CI_s[[#This Row],[Commitment item]],AM:AM,AK:AK)","v":"Services"},{"$f":"_xlfn.XLOOKUP(CI_s[[#This Row],[Commitment item]],AM:AM,AN:AN)","v":"Nursing Services"},null,null,null,null,511320,511010,null,null,null,null,null,null,null,null,null,null,null,null,null,"Loss & Claims","Loss & Claims",null,515588,"COBRA Pharmacy Clms/Loss Pmts Medical-PPO","??"]
[null,{"$f":"budget_form_lookups[[#This Row],[Long text]]","v":"COBRA-Actual Claims/Loss Pmts Medical-CoEPO"},516000,{"$f":"budget_form_lookups[[#This Row],[SAP GL Account]]","v":516310},{"$f":"budget_form_lookups[[#This Row],[PB-5 Rollup]]","v":"Loss & Claims"},null,null,null,null,null,511050,"Pharmacist Sv","Pharmacist Services","2012-05-14",{"$f":"_xlfn.XLOOKUP(CI_s[[#This Row],[Commitment item]],AM:AM,AK:AK)","v":"Services"},{"$f":"_xlfn.XLOOKUP(CI_s[[#This Row],[Commitment item]],AM:AM,AN:AN)","v":"Pharmacist Services"},null,null,null,null,511330,511330,null,null,null,null,null,null,null,null,null,null,null,null,null,"Loss & Claims","Loss & Claims",4530,516310,"COBRA-Actual Claims/Loss Pmts Medical-CoEPO","??"]
[null,{"$f":"budget_form_lookups[[#This Row],[Long text]]","v":"COBRA-Actual Claims/Loss Pmts Medical-EPO"},516000,{"$f":"budget_form_lookups[[#This Row],[SAP GL Account]]","v":516330},{"$f":"budget_form_lookups[[#This Row],[PB-5 Rollup]]","v":"Loss & Claims"},null,null,null,null,null,511060,"Physician Sv","Physician Services","2012-05-14",{"$f":"_xlfn.XLOOKUP(CI_s[[#This Row],[Commitment item]],AM:AM,AK:AK)","v":"Services"},{"$f":"_xlfn.XLOOKUP(CI_s[[#This Row],[Commitment item]],AM:AM,AN:AN)","v":"Physician Services"},null,null,null,null,511340,511340,null,null,null,null,null,null,null,null,null,null,null,null,null,"Loss & Claims","Loss & Claims",4522,516330,"COBRA-Actual Claims/Loss Pmts Medical-EPO","??"]
[null,{"$f":"budget_form_lookups[[#This Row],[Long text]]","v":"COBRA-Actual Claims/Loss Pmts Medical-PPO"},516000,{"$f":"budget_form_lookups[[#This Row],[SAP GL Account]]","v":516320},{"$f":"budget_form_lookups[[#This Row],[PB-5 Rollup]]","v":"Loss & Claims"},null,null,null,null,null,511070,"Psych Sv","Psychiatric Services","2012-05-14",{"$f":"_xlfn.XLOOKUP(CI_s[[#This Row],[Commitment item]],AM:AM,AK:AK)","v":"Services"},{"$f":"_xlfn.XLOOKUP(CI_s[[#This Row],[Commitment item]],AM:AM,AN:AN)","v":"Psychiatric Services"},null,null,null,null,511350,511010,null,null,null,null,null,null,null,null,null,null,null,null,null,"Loss & Claims","Loss & Claims",4527,516320,"COBRA-Actual Claims/Loss Pmts Medical-PPO","??"]
[null,{"$f":"budget_form_lookups[[#This Row],[Long text]]","v":"COBRA-Admin-CoEPO"},516000,{"$f":"budget_form_lookups[[#This Row],[SAP GL Account]]","v":516340},{"$f":"budget_form_lookups[[#This Row],[PB-5 Rollup]]","v":"Loss & Claims"},null,null,null,null,null,511080,"Psychological Sv","Psychological Services","2012-05-14",{"$f":"_xlfn.XLOOKUP(CI_s[[#This Row],[Commitment item]],AM:AM,AK:AK)","v":"Services"},{"$f":"_xlfn.XLOOKUP(CI_s[[#This Row],[Commitment item]],AM:AM,AN:AN)","v":"Psychological Services"},null,null,null,null,511360,511360,null,null,null,null,null,null,null,null,null,null,null,null,null,"Loss & Claims","Loss & Claims","new",516340,"COBRA-Admin-CoEPO","??"]
[null,{"$f":"budget_form_lookups[[#This Row],[Long text]]","v":"COBRA-Admin-Consumer Choice"},516000,{"$f":"budget_form_lookups[[#This Row],[SAP GL Account]]","v":516341},{"$f":"budget_form_lookups[[#This Row],[PB-5 Rollup]]","v":"Loss & Claims"},null,null,null,null,null,511090,"Sub Abuse Screening","Substance Abuse Screening","2012-05-14",{"$f":"_xlfn.XLOOKUP(CI_s[[#This Row],[Commitment item]],AM:AM,AK:AK)","v":"Services"},{"$f":"_xlfn.XLOOKUP(CI_s[[#This Row],[Commitment item]],AM:AM,AN:AN)","v":"Substance Abuse Screening"},null,null,null,null,511370,511010,null,null,null,null,null,null,null,null,null,null,null,null,null,"Loss & Claims","Loss & Claims",null,516341,"COBRA-Admin-Consumer Choice","??"]
[null,{"$f":"budget_form_lookups[[#This Row],[Long text]]","v":"COBRA-Admin-EPO"},516000,{"$f":"budget_form_lookups[[#This Row],[SAP GL Account]]","v":516360},{"$f":"budget_form_lookups[[#This Row],[PB-5 Rollup]]","v":"Loss & Claims"},null,null,null,null,null,511100,"Trtmt Sv","Treatment Services","2012-05-14",{"$f":"_xlfn.XLOOKUP(CI_s[[#This Row],[Commitment item]],AM:AM,AK:AK)","v":"Services"},{"$f":"_xlfn.XLOOKUP(CI_s[[#This Row],[Commitment item]],AM:AM,AN:AN)","v":"Treatment Services"},null,null,null,null,511380,511010,null,null,null,null,null,null,null,null,null,null,null,null,null,"Loss & Claims","Loss & Claims","new",516360,"COBRA-Admin-EPO","??"]
[null,{"$f":"budget_form_lookups[[#This Row],[Long text]]","v":"COBRA-Admin-HDHP"},516000,{"$f":"budget_form_lookups[[#This Row],[SAP GL Account]]","v":516342},{"$f":"budget_form_lookups[[#This Row],[PB-5 Rollup]]","v":"Loss & Claims"},null,null,null,null,null,511110,"Veterinary Sv","Veterinary Services","2012-05-14",{"$f":"_xlfn.XLOOKUP(CI_s[[#This Row],[Commitment item]],AM:AM,AK:AK)","v":"Services"},{"$f":"_xlfn.XLOOKUP(CI_s[[#This Row],[Commitment item]],AM:AM,AN:AN)","v":"Veterinary Services"},null,null,null,null,511390,511390,null,null,null,null,null,null,null,null,null,null,null,null,null,"Loss & Claims","Loss & Claims",null,516342,"COBRA-Admin-HDHP","??"]
[null,{"$f":"budget_form_lookups[[#This Row],[Long text]]","v":"COBRA-Admin-PPO"},516000,{"$f":"budget_form_lookups[[#This Row],[SAP GL Account]]","v":516350},{"$f":"budget_form_lookups[[#This Row],[PB-5 Rollup]]","v":"Loss & Claims"},null,null,null,null,null,511120,"Oth Med Sv","Other Medical Services","2012-05-14",{"$f":"_xlfn.XLOOKUP(CI_s[[#This Row],[Commitment item]],AM:AM,AK:AK)","v":"Services"},{"$f":"_xlfn.XLOOKUP(CI_s[[#This Row],[Commitment item]],AM:AM,AN:AN)","v":"Other Medical Services"},null,null,null,null,511395,511395,null,null,null,null,null,null,null,null,null,null,null,null,null,"Loss & Claims","Loss & Claims","new",516350,"COBRA-Admin-PPO","??"]
[null,{"$f":"budget_form_lookups[[#This Row],[Long text]]","v":"County Auto-Physical Damage"},516000,{"$f":"budget_form_lookups[[#This Row],[SAP GL Account]]","v":516410},{"$f":"budget_form_lookups[[#This Row],[PB-5 Rollup]]","v":"Loss & Claims"},null,null,null,null,null,511121,"Residential Sv-CO","DO NOT USE","2012-05-14",{"$f":"_xlfn.XLOOKUP(CI_s[[#This Row],[Commitment item]],AM:AM,AK:AK)","v":"Services"},{"$f":"_xlfn.XLOOKUP(CI_s[[#This Row],[Commitment item]],AM:AM,AN:AN)","v":"Residential Services - Conversion"},null,null,null,null,511396,511010,null,null,null,null,null,null,null,null,null,null,null,null,null,"Loss & Claims","Loss & Claims",4511,516410,"County Auto-Physical Damage","??"]
[null,{"$f":"budget_form_lookups[[#This Row],[Long text]]","v":"E&O Actual Claims/Loss Payments"},516000,{"$f":"budget_form_lookups[[#This Row],[SAP GL Account]]","v":516420},{"$f":"budget_form_lookups[[#This Row],[PB-5 Rollup]]","v":"Loss & Claims"},null,null,null,null,null,511122,"PsychPsychlEvalSv-CO","Psychiatric/Psychological Evaluation Services-Conv","2012-05-14",{"$f":"_xlfn.XLOOKUP(CI_s[[#This Row],[Commitment item]],AM:AM,AK:AK)","v":"Services"},{"$f":"_xlfn.XLOOKUP(CI_s[[#This Row],[Commitment item]],AM:AM,AN:AN)","v":"Psychiatric/Psychological Evaluation Services-Conv"},null,null,null,null,511400,511010,null,null,null,null,null,null,null,null,null,null,null,null,null,"Loss & Claims","Loss & Claims",4715,516420,"E&O Actual Claims/Loss Payments","??"]
[null,{"$f":"budget_form_lookups[[#This Row],[Long text]]","v":"Emp Pharmacy Clms/Loss Pymts Medical-Cons Choice"},516000,{"$f":"budget_form_lookups[[#This Row],[SAP GL Account]]","v":515590},{"$f":"budget_form_lookups[[#This Row],[PB-5 Rollup]]","v":"Loss & Claims"},null,null,null,null,null,511123,"Indg Med Care-CO","Indigent Medical Care-Conversion","2012-05-14",{"$f":"_xlfn.XLOOKUP(CI_s[[#This Row],[Commitment item]],AM:AM,AK:AK)","v":"Services"},{"$f":"_xlfn.XLOOKUP(CI_s[[#This Row],[Commitment item]],AM:AM,AN:AN)","v":"Indigent Medical Care - Conversion"},null,null,null,null,511411,511010,null,null,null,null,null,null,null,null,null,null,null,null,null,"Loss & Claims","Loss & Claims",null,515590,"Emp Pharmacy Clms/Loss Pymts Medical-Cons Choice","??"]
[null,{"$f":"budget_form_lookups[[#This Row],[Long text]]","v":"Emp Pharmacy Clms/Loss Pymts Medical-EPO"},516000,{"$f":"budget_form_lookups[[#This Row],[SAP GL Account]]","v":515580},{"$f":"budget_form_lookups[[#This Row],[PB-5 Rollup]]","v":"Loss & Claims"},null,null,null,null,null,511124,"Sub Abuse Program-CO","Substance Abuse Program-Conversion","2012-05-14",{"$f":"_xlfn.XLOOKUP(CI_s[[#This Row],[Commitment item]],AM:AM,AK:AK)","v":"Services"},{"$f":"_xlfn.XLOOKUP(CI_s[[#This Row],[Commitment item]],AM:AM,AN:AN)","v":"Substance Abuse Program-Conversion"},null,null,null,null,511412,511010,null,null,null,null,null,null,null,null,null,null,null,null,null,"Loss & Claims","Loss & Claims",null,515580,"Emp Pharmacy Clms/Loss Pymts Medical-EPO","??"]
[null,{"$f":"budget_form_lookups[[#This Row],[Long text]]","v":"Emp Pharmacy Clms/Loss Pymts Medical-PPO"},516000,{"$f":"budget_form_lookups[[#This Row],[SAP GL Account]]","v":515585},{"$f":"budget_form_lookups[[#This Row],[PB-5 Rollup]]","v":"Loss & Claims"},null,null,null,null,null,511130,"Case Mgmt Sv","Case Management Services","2012-05-14",{"$f":"_xlfn.XLOOKUP(CI_s[[#This Row],[Commitment item]],AM:AM,AK:AK)","v":"Services"},{"$f":"_xlfn.XLOOKUP(CI_s[[#This Row],[Commitment item]],AM:AM,AN:AN)","v":"Case Management Services"},null,null,null,null,511413,511010,null,null,null,null,null,null,null,null,null,null,null,null,null,"Loss & Claims","Loss & Claims",null,515585,"Emp Pharmacy Clms/Loss Pymts Medical-PPO","??"]
[null,{"$f":"budget_form_lookups[[#This Row],[Long text]]","v":"Empl Actl Clms/Loss Pymts Medical-Consumer Choice"},516000,{"$f":"budget_form_lookups[[#This Row],[SAP GL Account]]","v":516011},{"$f":"budget_form_lookups[[#This Row],[PB-5 Rollup]]","v":"Loss & Claims"},null,null,null,null,null,511140,"Land Surveying","Land Surveying","2012-05-14",{"$f":"_xlfn.XLOOKUP(CI_s[[#This Row],[Commitment item]],AM:AM,AK:AK)","v":"Services"},{"$f":"_xlfn.XLOOKUP(CI_s[[#This Row],[Commitment item]],AM:AM,AN:AN)","v":"Land Surveying"},null,null,null,null,511414,511010,null,null,null,null,null,null,null,null,null,null,null,null,null,"Loss & Claims","Loss & Claims",null,516011,"Empl Actl Clms/Loss Pymts Medical-Consumer Choice","??"]
[null,{"$f":"budget_form_lookups[[#This Row],[Long text]]","v":"Empl Actl Clms/Loss Pymts Medical-HDHP"},516000,{"$f":"budget_form_lookups[[#This Row],[SAP GL Account]]","v":516012},{"$f":"budget_form_lookups[[#This Row],[PB-5 Rollup]]","v":"Loss & Claims"},null,null,null,null,null,511145,"Tree Mitigation Svcs","Tree Mitigation Services","2015-08-11",{"$f":"_xlfn.XLOOKUP(CI_s[[#This Row],[Commitment item]],AM:AM,AK:AK)","v":"Services"},{"$f":"_xlfn.XLOOKUP(CI_s[[#This Row],[Commitment item]],AM:AM,AN:AN)","v":"Tree Mitigation Services"},null,null,null,null,511415,511010,null,null,null,null,null,null,null,null,null,null,null,null,null,"Loss & Claims","Loss & Claims",null,516012,"Empl Actl Clms/Loss Pymts Medical-HDHP","??"]
[null,{"$f":"budget_form_lookups[[#This Row],[Long text]]","v":"Employee Actual Claims/Loss Payments Medical-CoEPO"},516000,{"$f":"budget_form_lookups[[#This Row],[SAP GL Account]]","v":516010},{"$f":"budget_form_lookups[[#This Row],[PB-5 Rollup]]","v":"Loss & Claims"},null,null,null,null,null,511146,"Wetland Mitigation","Wetland Mitigation","2022-06-17",{"$f":"_xlfn.XLOOKUP(CI_s[[#This Row],[Commitment item]],AM:AM,AK:AK)","v":"Services"},{"$f":"_xlfn.XLOOKUP(CI_s[[#This Row],[Commitment item]],AM:AM,AN:AN)","v":"Wetland Mitigation"},null,null,null,null,511416,511010,null,null,null,null,null,null,null,null,null,null,null,null,null,"Loss & Claims","Loss & Claims",4528,516010,"Employee Actual Claims/Loss Payments Medical-CoEPO","??"]
[null,{"$f":"budget_form_lookups[[#This Row],[Long text]]","v":"Employee Actual Claims/Loss Payments Medical-EPO"},516000,{"$f":"budget_form_lookups[[#This Row],[SAP GL Account]]","v":516030},{"$f":"budget_form_lookups[[#This Row],[PB-5 Rollup]]","v":"Loss & Claims"},null,null,null,null,null,511150,"Prop Apprsl Sv","Property Appraisal Services","2012-05-14",{"$f":"_xlfn.XLOOKUP(CI_s[[#This Row],[Commitment item]],AM:AM,AK:AK)","v":"Services"},{"$f":"_xlfn.XLOOKUP(CI_s[[#This Row],[Commitment item]],AM:AM,AN:AN)","v":"Property Appraisal Services"},null,null,null,null,511417,511417,null,null,null,null,null,null,null,null,null,null,null,null,null,"Loss & Claims","Loss & Claims",4520,516030,"Employee Actual Claims/Loss Payments Medical-EPO","??"]
[null,{"$f":"budget_form_lookups[[#This Row],[Long text]]","v":"Employee Actual Claims/Loss Payments Medical-PPO"},516000,{"$f":"budget_form_lookups[[#This Row],[SAP GL Account]]","v":516020},{"$f":"budget_form_lookups[[#This Row],[PB-5 Rollup]]","v":"Loss & Claims"},null,null,null,null,null,511160,"Prop Mgmt Sv","Property Management Services","2012-05-14",{"$f":"_xlfn.XLOOKUP(CI_s[[#This Row],[Commitment item]],AM:AM,AK:AK)","v":"Services"},{"$f":"_xlfn.XLOOKUP(CI_s[[#This Row],[Commitment item]],AM:AM,AN:AN)","v":"Property Management Services"},null,null,null,null,511420,511010,null,null,null,null,null,null,null,null,null,null,null,null,null,"Loss & Claims","Loss & Claims",4525,516020,"Employee Actual Claims/Loss Payments Medical-PPO","??"]
[null,{"$f":"budget_form_lookups[[#This Row],[Long text]]","v":"Employee-Admin-CoEPO"},516000,{"$f":"budget_form_lookups[[#This Row],[SAP GL Account]]","v":516040},{"$f":"budget_form_lookups[[#This Row],[PB-5 Rollup]]","v":"Loss & Claims"},null,null,null,null,null,511170,"Oth Real Estate Sv","Other Real Estate Services","2012-05-14",{"$f":"_xlfn.XLOOKUP(CI_s[[#This Row],[Commitment item]],AM:AM,AK:AK)","v":"Services"},{"$f":"_xlfn.XLOOKUP(CI_s[[#This Row],[Commitment item]],AM:AM,AN:AN)","v":"Other Real Estate Services"},null,null,null,null,511430,511010,null,null,null,null,null,null,null,null,null,null,null,null,null,"Loss & Claims","Loss & Claims",4716,516040,"Employee-Admin-CoEPO","??"]
[null,{"$f":"budget_form_lookups[[#This Row],[Long text]]","v":"Employee-Admin-Consumer Choice"},516000,{"$f":"budget_form_lookups[[#This Row],[SAP GL Account]]","v":516041},{"$f":"budget_form_lookups[[#This Row],[PB-5 Rollup]]","v":"Loss & Claims"},null,null,null,null,null,511180,"Actuarial Sv","Actuarial Services","2012-05-14",{"$f":"_xlfn.XLOOKUP(CI_s[[#This Row],[Commitment item]],AM:AM,AK:AK)","v":"Services"},{"$f":"_xlfn.XLOOKUP(CI_s[[#This Row],[Commitment item]],AM:AM,AN:AN)","v":"Actuarial Services"},null,null,null,null,511440,511010,null,null,null,null,null,null,null,null,null,null,null,null,null,"Loss & Claims","Loss & Claims",null,516041,"Employee-Admin-Consumer Choice","??"]
[null,{"$f":"budget_form_lookups[[#This Row],[Long text]]","v":"Employee-Admin-EPO"},516000,{"$f":"budget_form_lookups[[#This Row],[SAP GL Account]]","v":516060},{"$f":"budget_form_lookups[[#This Row],[PB-5 Rollup]]","v":"Loss & Claims"},null,null,null,null,null,511190,"Arbitrage Calc Sv","Arbitrage Calculation Service","2012-05-14",{"$f":"_xlfn.XLOOKUP(CI_s[[#This Row],[Commitment item]],AM:AM,AK:AK)","v":"Arbitrage Calculation Service"},{"$f":"_xlfn.XLOOKUP(CI_s[[#This Row],[Commitment item]],AM:AM,AN:AN)","v":"Arbitrage Calculation Service"},null,null,null,null,511441,511010,null,null,null,null,null,null,null,null,null,null,null,null,null,"Loss & Claims","Loss & Claims",4708,516060,"Employee-Admin-EPO","??"]
[null,{"$f":"budget_form_lookups[[#This Row],[Long text]]","v":"Employee-Admin-HDHP"},516000,{"$f":"budget_form_lookups[[#This Row],[SAP GL Account]]","v":516042},{"$f":"budget_form_lookups[[#This Row],[PB-5 Rollup]]","v":"Loss & Claims"},null,null,null,null,null,511200,"Auditing Sv","Auditing Services","2012-05-14",{"$f":"_xlfn.XLOOKUP(CI_s[[#This Row],[Commitment item]],AM:AM,AK:AK)","v":"Services"},{"$f":"_xlfn.XLOOKUP(CI_s[[#This Row],[Commitment item]],AM:AM,AN:AN)","v":"Auditing Services"},null,null,null,null,511442,511010,null,null,null,null,null,null,null,null,null,null,null,null,null,"Loss & Claims","Loss & Claims",null,516042,"Employee-Admin-HDHP","??"]
[null,{"$f":"budget_form_lookups[[#This Row],[Long text]]","v":"Employee-Admin-PPO"},516000,{"$f":"budget_form_lookups[[#This Row],[SAP GL Account]]","v":516050},{"$f":"budget_form_lookups[[#This Row],[PB-5 Rollup]]","v":"Loss & Claims"},null,null,null,null,null,511210,"Bank Svc Chgs","Bank Service Charges","2013-02-11",{"$f":"_xlfn.XLOOKUP(CI_s[[#This Row],[Commitment item]],AM:AM,AK:AK)","v":"Bank Service Charges"},{"$f":"_xlfn.XLOOKUP(CI_s[[#This Row],[Commitment item]],AM:AM,AN:AN)","v":"Bank Service Charges"},null,null,null,null,511459,511460,null,null,null,null,null,null,null,null,null,null,null,null,null,"Loss & Claims","Loss & Claims",4709,516050,"Employee-Admin-PPO","??"]
[null,{"$f":"budget_form_lookups[[#This Row],[Long text]]","v":"General Liability Administrative Expenses"},516000,{"$f":"budget_form_lookups[[#This Row],[SAP GL Account]]","v":516630},{"$f":"budget_form_lookups[[#This Row],[PB-5 Rollup]]","v":"Loss & Claims"},null,null,null,null,null,511220,"Fin Cslt Sv","Financial Consulting Services","2012-05-14",{"$f":"_xlfn.XLOOKUP(CI_s[[#This Row],[Commitment item]],AM:AM,AK:AK)","v":"Services"},{"$f":"_xlfn.XLOOKUP(CI_s[[#This Row],[Commitment item]],AM:AM,AN:AN)","v":"Financial Consulting Services"},null,null,null,null,511470,511460,null,null,null,null,null,null,null,null,null,null,null,null,null,"Loss & Claims","Loss & Claims",4703,516630,"General Liability Administrative Expenses","??"]
[null,{"$f":"budget_form_lookups[[#This Row],[Long text]]","v":"General Liability Claims"},516000,{"$f":"budget_form_lookups[[#This Row],[SAP GL Account]]","v":516430},{"$f":"budget_form_lookups[[#This Row],[PB-5 Rollup]]","v":"Loss & Claims"},null,null,null,null,null,511230,"Oth Fin Sv","Other Financial Services","2012-05-14",{"$f":"_xlfn.XLOOKUP(CI_s[[#This Row],[Commitment item]],AM:AM,AK:AK)","v":"Services"},{"$f":"_xlfn.XLOOKUP(CI_s[[#This Row],[Commitment item]],AM:AM,AN:AN)","v":"Other Financial Services"},null,null,null,null,511480,511460,null,null,null,null,null,null,null,null,null,null,null,null,null,"Loss & Claims","Loss & Claims",4504,516430,"General Liability Claims","??"]
[null,{"$f":"budget_form_lookups[[#This Row],[Long text]]","v":"Insurance Claims Court Filing Fees"},516000,{"$f":"budget_form_lookups[[#This Row],[SAP GL Account]]","v":516640},{"$f":"budget_form_lookups[[#This Row],[PB-5 Rollup]]","v":"Loss & Claims"},null,null,null,null,null,511231,"COVID Resp Distrib","COVID Response Distributions","2020-10-05",{"$f":"_xlfn.XLOOKUP(CI_s[[#This Row],[Commitment item]],AM:AM,AK:AK)","v":"Services"},{"$f":"_xlfn.XLOOKUP(CI_s[[#This Row],[Commitment item]],AM:AM,AN:AN)","v":"COVID Response Distributions"},null,null,null,null,511485,511460,null,null,null,null,null,null,null,null,null,null,null,null,null,"Loss & Claims","Loss & Claims",4710,516640,"Insurance Claims Court Filing Fees","??"]
[null,{"$f":"budget_form_lookups[[#This Row],[Long text]]","v":"Insurance Claims Court Reporting Expense"},516000,{"$f":"budget_form_lookups[[#This Row],[SAP GL Account]]","v":516650},{"$f":"budget_form_lookups[[#This Row],[PB-5 Rollup]]","v":"Loss & Claims"},null,null,null,null,null,511240,"ArbitrationMediation","Arbitration/Mediation","2012-05-14",{"$f":"_xlfn.XLOOKUP(CI_s[[#This Row],[Commitment item]],AM:AM,AK:AK)","v":"Services"},{"$f":"_xlfn.XLOOKUP(CI_s[[#This Row],[Commitment item]],AM:AM,AN:AN)","v":"Arbitration/Mediation"},null,null,null,null,511490,511010,null,null,null,null,null,null,null,null,null,null,null,null,null,"Loss & Claims","Loss & Claims",4711,516650,"Insurance Claims Court Reporting Expense","??"]
[null,{"$f":"budget_form_lookups[[#This Row],[Long text]]","v":"Insurance Claims Legal Document/Dupl"},516000,{"$f":"budget_form_lookups[[#This Row],[SAP GL Account]]","v":516660},{"$f":"budget_form_lookups[[#This Row],[PB-5 Rollup]]","v":"Loss & Claims"},null,null,null,null,null,511250,"Legal Advisory Sv","Legal Advisory Services","2012-05-14",{"$f":"_xlfn.XLOOKUP(CI_s[[#This Row],[Commitment item]],AM:AM,AK:AK)","v":"Services"},{"$f":"_xlfn.XLOOKUP(CI_s[[#This Row],[Commitment item]],AM:AM,AN:AN)","v":"Legal Advisory Services "},null,null,null,null,511500,511010,null,null,null,null,null,null,null,null,null,null,null,null,null,"Loss & Claims","Loss & Claims",4712,516660,"Insurance Claims Legal Document/Dupl","??"]
[null,{"$f":"budget_form_lookups[[#This Row],[Long text]]","v":"Insurance Claims Legal expenses"},516000,{"$f":"budget_form_lookups[[#This Row],[SAP GL Account]]","v":516670},{"$f":"budget_form_lookups[[#This Row],[PB-5 Rollup]]","v":"Loss & Claims"},null,null,null,null,null,511260,"Legislative Sv","Legislative Services","2012-05-14",{"$f":"_xlfn.XLOOKUP(CI_s[[#This Row],[Commitment item]],AM:AM,AK:AK)","v":"Services"},{"$f":"_xlfn.XLOOKUP(CI_s[[#This Row],[Commitment item]],AM:AM,AN:AN)","v":"Legislative Services"},null,null,null,null,511510,511010,null,"made standalone 10/1/15",null,null,null,null,null,null,null,null,null,null,null,"Loss & Claims","Loss & Claims",4707,516670,"Insurance Claims Legal expenses","??"]
[null,{"$f":"budget_form_lookups[[#This Row],[Long text]]","v":"Insurance Claims Witness Expenses"},516000,{"$f":"budget_form_lookups[[#This Row],[SAP GL Account]]","v":516680},{"$f":"budget_form_lookups[[#This Row],[PB-5 Rollup]]","v":"Loss & Claims"},null,null,null,null,null,511270,"Notary Sv","Notary Services","2012-05-14",{"$f":"_xlfn.XLOOKUP(CI_s[[#This Row],[Commitment item]],AM:AM,AK:AK)","v":"Services"},{"$f":"_xlfn.XLOOKUP(CI_s[[#This Row],[Commitment item]],AM:AM,AN:AN)","v":"Notary Services"},null,null,null,null,511520,511010,null,null,null,null,null,null,null,null,null,null,null,null,null,"Loss & Claims","Loss & Claims",4713,516680,"Insurance Claims Witness Expenses","??"]
[null,{"$f":"budget_form_lookups[[#This Row],[Long text]]","v":"Internal Property Damage"},516000,{"$f":"budget_form_lookups[[#This Row],[SAP GL Account]]","v":516440},{"$f":"budget_form_lookups[[#This Row],[PB-5 Rollup]]","v":"Loss & Claims"},null,null,null,null,null,511280,"Oth Legal Sv","Other Legal Services","2012-05-14",{"$f":"_xlfn.XLOOKUP(CI_s[[#This Row],[Commitment item]],AM:AM,AK:AK)","v":"Services"},{"$f":"_xlfn.XLOOKUP(CI_s[[#This Row],[Commitment item]],AM:AM,AN:AN)","v":"Other Legal Services"},null,null,null,null,511530,511010,null,null,null,null,null,null,null,null,null,null,null,null,null,"Loss & Claims","Loss & Claims",4506,516440,"Internal Property Damage","??"]
[null,{"$f":"budget_form_lookups[[#This Row],[Long text]]","v":"Internal Property Damage Administrative Expenses"},516000,{"$f":"budget_form_lookups[[#This Row],[SAP GL Account]]","v":516690},{"$f":"budget_form_lookups[[#This Row],[PB-5 Rollup]]","v":"Loss & Claims"},null,null,null,null,null,511290,"Animal Sv Programs","Animal Service Programs","2012-05-14",{"$f":"_xlfn.XLOOKUP(CI_s[[#This Row],[Commitment item]],AM:AM,AK:AK)","v":"Services"},{"$f":"_xlfn.XLOOKUP(CI_s[[#This Row],[Commitment item]],AM:AM,AN:AN)","v":"Animal Service Programs"},null,null,null,null,511540,511010,null,null,null,null,null,null,null,null,null,null,null,null,null,"Loss & Claims","Loss & Claims",4706,516690,"Internal Property Damage Administrative Expenses","??"]
[null,{"$f":"budget_form_lookups[[#This Row],[Long text]]","v":"OPEB - All Employees"},516000,{"$f":"budget_form_lookups[[#This Row],[SAP GL Account]]","v":516810},{"$f":"budget_form_lookups[[#This Row],[PB-5 Rollup]]","v":"Loss & Claims"},null,null,null,null,null,511300,"Child & Youth Dev","Child & Youth Development","2012-05-14",{"$f":"_xlfn.XLOOKUP(CI_s[[#This Row],[Commitment item]],AM:AM,AK:AK)","v":"Services"},{"$f":"_xlfn.XLOOKUP(CI_s[[#This Row],[Commitment item]],AM:AM,AN:AN)","v":"Child & Youth Development"},null,null,null,null,511560,511010,null,null,null,null,null,null,null,null,null,null,null,null,null,"Loss & Claims","Loss & Claims",4531,516810,"OPEB - All Employees","??"]
[null,{"$f":"budget_form_lookups[[#This Row],[Long text]]","v":"Patient Centered Outcomes Rsch Institute"},516000,{"$f":"budget_form_lookups[[#This Row],[SAP GL Account]]","v":516890},{"$f":"budget_form_lookups[[#This Row],[PB-5 Rollup]]","v":"Loss & Claims"},null,null,null,null,null,511310,"Child/Elderly Care","Child/Elderly Care","2012-05-14",{"$f":"_xlfn.XLOOKUP(CI_s[[#This Row],[Commitment item]],AM:AM,AK:AK)","v":"Services"},{"$f":"_xlfn.XLOOKUP(CI_s[[#This Row],[Commitment item]],AM:AM,AN:AN)","v":"Child/Elderly Care"},null,null,null,null,511570,511010,null,null,null,null,null,null,null,null,null,null,null,null,null,"Loss & Claims","Loss & Claims",4531,516890,"Patient Centered Outcomes Rsch Institute","??"]
[null,{"$f":"budget_form_lookups[[#This Row],[Long text]]","v":"Personal Injury Claims"},516000,{"$f":"budget_form_lookups[[#This Row],[SAP GL Account]]","v":516431},{"$f":"budget_form_lookups[[#This Row],[PB-5 Rollup]]","v":"Loss & Claims"},null,null,null,null,null,511330,"Food Bank Asstc","Food Bank Assistance","2012-05-14",{"$f":"_xlfn.XLOOKUP(CI_s[[#This Row],[Commitment item]],AM:AM,AK:AK)","v":"Food Bank Assistance"},{"$f":"_xlfn.XLOOKUP(CI_s[[#This Row],[Commitment item]],AM:AM,AN:AN)","v":"Food Bank Assistance"},null,null,null,null,511580,511010,null,null,null,null,null,null,null,null,null,null,null,null,null,"Loss & Claims","Loss & Claims",null,516431,"Personal Injury Claims","??"]
[null,{"$f":"budget_form_lookups[[#This Row],[Long text]]","v":"Pharmaceutical Expenses"},519634,{"$f":"budget_form_lookups[[#This Row],[SAP GL Account]]","v":519634},{"$f":"budget_form_lookups[[#This Row],[PB-5 Rollup]]","v":"Loss & Claims"},null,null,null,null,null,511340,"Food Voucher Asstc","Food Voucher Assistance","2012-05-14",{"$f":"_xlfn.XLOOKUP(CI_s[[#This Row],[Commitment item]],AM:AM,AK:AK)","v":"Food Voucher Assistance"},{"$f":"_xlfn.XLOOKUP(CI_s[[#This Row],[Commitment item]],AM:AM,AN:AN)","v":"Food Voucher Assistance"},null,null,null,null,511590,511010,null,null,null,null,null,null,null,null,null,null,null,null,null,"Loss & Claims","Loss & Claims",null,519634,"Pharmaceutical Expenses","??"]
[null,{"$f":"budget_form_lookups[[#This Row],[Long text]]","v":"Pharmacy Claims"},516000,{"$f":"budget_form_lookups[[#This Row],[SAP GL Account]]","v":516000},{"$f":"budget_form_lookups[[#This Row],[PB-5 Rollup]]","v":"Loss & Claims"},null,null,null,null,null,511350,"Gifts","Gifts","2012-05-14",{"$f":"_xlfn.XLOOKUP(CI_s[[#This Row],[Commitment item]],AM:AM,AK:AK)","v":"Services"},{"$f":"_xlfn.XLOOKUP(CI_s[[#This Row],[Commitment item]],AM:AM,AN:AN)","v":"Gifts"},null,null,null,null,511600,511010,null,null,null,null,null,null,null,null,null,null,null,null,null,"Loss & Claims","Loss & Claims",4528,516000,"Pharmacy Claims","??"]
[null,{"$f":"budget_form_lookups[[#This Row],[Long text]]","v":"Ret<65 Actl Clms/Loss Pmts Medical-Consumer Choice"},516000,{"$f":"budget_form_lookups[[#This Row],[SAP GL Account]]","v":516111},{"$f":"budget_form_lookups[[#This Row],[PB-5 Rollup]]","v":"Loss & Claims"},null,null,null,null,null,511360,"Interment Sv","Interment Services","2012-05-14",{"$f":"_xlfn.XLOOKUP(CI_s[[#This Row],[Commitment item]],AM:AM,AK:AK)","v":"Interment Services"},{"$f":"_xlfn.XLOOKUP(CI_s[[#This Row],[Commitment item]],AM:AM,AN:AN)","v":"Interment Services"},null,null,null,null,511610,511010,null,null,null,null,null,null,null,null,null,null,null,null,null,"Loss & Claims","Loss & Claims",null,516111,"Ret<65 Actl Clms/Loss Pmts Medical-Consumer Choice","??"]
[null,{"$f":"budget_form_lookups[[#This Row],[Long text]]","v":"Ret<65 Actl Clms/Loss Pmts Medical-HDHP"},516000,{"$f":"budget_form_lookups[[#This Row],[SAP GL Account]]","v":516112},{"$f":"budget_form_lookups[[#This Row],[PB-5 Rollup]]","v":"Loss & Claims"},null,null,null,null,null,511370,"Non Emp Edu Sv","Non Employee Educational Services","2012-05-14",{"$f":"_xlfn.XLOOKUP(CI_s[[#This Row],[Commitment item]],AM:AM,AK:AK)","v":"Services"},{"$f":"_xlfn.XLOOKUP(CI_s[[#This Row],[Commitment item]],AM:AM,AN:AN)","v":"Non Employee Educational Services"},null,null,null,null,511620,511010,null,null,null,null,null,null,null,null,null,null,null,null,null,"Loss & Claims","Loss & Claims",null,516112,"Ret<65 Actl Clms/Loss Pmts Medical-HDHP","??"]
[null,{"$f":"budget_form_lookups[[#This Row],[Long text]]","v":"Ret<65 Pharmacy Clms/Loss Pmts Medical-Cons Choice"},516000,{"$f":"budget_form_lookups[[#This Row],[SAP GL Account]]","v":515591},{"$f":"budget_form_lookups[[#This Row],[PB-5 Rollup]]","v":"Loss & Claims"},null,null,null,null,null,511380,"Pbc Hlh Programs","Public Health Programs","2012-05-14",{"$f":"_xlfn.XLOOKUP(CI_s[[#This Row],[Commitment item]],AM:AM,AK:AK)","v":"Services"},{"$f":"_xlfn.XLOOKUP(CI_s[[#This Row],[Commitment item]],AM:AM,AN:AN)","v":"Public Health Programs"},null,null,null,null,511625,511630,"new for 2021",null,null,null,null,null,null,null,null,null,null,null,null,"Loss & Claims","Loss & Claims",null,515591,"Ret<65 Pharmacy Clms/Loss Pmts Medical-Cons Choice","??"]
[null,{"$f":"budget_form_lookups[[#This Row],[Long text]]","v":"Ret<65 Pharmacy Clms/Loss Pmts Medical-EPO"},516000,{"$f":"budget_form_lookups[[#This Row],[SAP GL Account]]","v":515581},{"$f":"budget_form_lookups[[#This Row],[PB-5 Rollup]]","v":"Loss & Claims"},null,null,null,null,null,511390,"Rent Asstc","Rent Assistance","2012-05-14",{"$f":"_xlfn.XLOOKUP(CI_s[[#This Row],[Commitment item]],AM:AM,AK:AK)","v":"Rent Assistance"},{"$f":"_xlfn.XLOOKUP(CI_s[[#This Row],[Commitment item]],AM:AM,AN:AN)","v":"Rent Assistance"},null,null,null,null,511640,511550,"new rollup for 2018",null,null,null,null,null,null,null,null,null,null,null,null,"Loss & Claims","Loss & Claims",null,515581,"Ret<65 Pharmacy Clms/Loss Pmts Medical-EPO","??"]
[null,{"$f":"budget_form_lookups[[#This Row],[Long text]]","v":"Ret<65 Pharmacy Clms/Loss Pmts Medical-HDHP"},516000,{"$f":"budget_form_lookups[[#This Row],[SAP GL Account]]","v":515596},{"$f":"budget_form_lookups[[#This Row],[PB-5 Rollup]]","v":"Loss & Claims"},null,null,null,null,null,511395,"Rent Asstc-BSS","Rent Assistance-Best Single Source","2012-05-14",{"$f":"_xlfn.XLOOKUP(CI_s[[#This Row],[Commitment item]],AM:AM,AK:AK)","v":"Rent Assistance - Best Single Source"},{"$f":"_xlfn.XLOOKUP(CI_s[[#This Row],[Commitment item]],AM:AM,AN:AN)","v":"Rent Assistance - Best Single Source"},null,null,null,null,511660,511010,null,null,null,null,null,null,null,null,null,null,null,null,null,"Loss & Claims","Loss & Claims",null,515596,"Ret<65 Pharmacy Clms/Loss Pmts Medical-HDHP","??"]
[null,{"$f":"budget_form_lookups[[#This Row],[Long text]]","v":"Ret<65 Pharmacy Clms/Loss Pmts Medical-PPO"},516000,{"$f":"budget_form_lookups[[#This Row],[SAP GL Account]]","v":515586},{"$f":"budget_form_lookups[[#This Row],[PB-5 Rollup]]","v":"Loss & Claims"},null,null,null,null,null,511396,"RentAppFee-MHPD","Rent Application Fee for MHPD","2021-10-18",{"$f":"_xlfn.XLOOKUP(CI_s[[#This Row],[Commitment item]],AM:AM,AK:AK)","v":"Rent Application Fee for MHPD"},{"$f":"_xlfn.XLOOKUP(CI_s[[#This Row],[Commitment item]],AM:AM,AN:AN)","v":"Rent Application Fee for MHPD"},null,null,null,null,511670,511010,null,null,null,null,null,null,null,null,null,null,null,null,null,"Loss & Claims","Loss & Claims",null,515586,"Ret<65 Pharmacy Clms/Loss Pmts Medical-PPO","??"]
[null,{"$f":"budget_form_lookups[[#This Row],[Long text]]","v":"Ret>65 Actl Clms/Loss Pmts Medical-Consumer Choice"},516000,{"$f":"budget_form_lookups[[#This Row],[SAP GL Account]]","v":516211},{"$f":"budget_form_lookups[[#This Row],[PB-5 Rollup]]","v":"Loss & Claims"},null,null,null,null,null,511400,"Transportation Asstc","Transportation Assistance","2012-05-14",{"$f":"_xlfn.XLOOKUP(CI_s[[#This Row],[Commitment item]],AM:AM,AK:AK)","v":"Services"},{"$f":"_xlfn.XLOOKUP(CI_s[[#This Row],[Commitment item]],AM:AM,AN:AN)","v":"Transportation Assistance"},null,null,null,null,511671,511550,"new rollup for 2020",null,null,null,null,null,null,null,null,null,null,null,null,"Loss & Claims","Loss & Claims",null,516211,"Ret>65 Actl Clms/Loss Pmts Medical-Consumer Choice","??"]
[null,{"$f":"budget_form_lookups[[#This Row],[Long text]]","v":"Ret>65 Actl Clms/Loss Pmts Medical-HDHP"},516000,{"$f":"budget_form_lookups[[#This Row],[SAP GL Account]]","v":516212},{"$f":"budget_form_lookups[[#This Row],[PB-5 Rollup]]","v":"Loss & Claims"},null,null,null,null,null,511405,"Relocation Asstc","Relocation Assistance","2021-07-29",{"$f":"_xlfn.XLOOKUP(CI_s[[#This Row],[Commitment item]],AM:AM,AK:AK)","v":{"$error":"#N/A"}},{"$f":"_xlfn.XLOOKUP(CI_s[[#This Row],[Commitment item]],AM:AM,AN:AN)","v":{"$error":"#N/A"}},null,null,null,null,511680,511010,null,null,null,null,null,null,null,null,null,null,null,null,null,"Loss & Claims","Loss & Claims",null,516212,"Ret>65 Actl Clms/Loss Pmts Medical-HDHP","??"]
[null,{"$f":"budget_form_lookups[[#This Row],[Long text]]","v":"Ret>65 Pharmacy Clms/Loss Pmts Medical-Cons Choice"},516000,{"$f":"budget_form_lookups[[#This Row],[SAP GL Account]]","v":515592},{"$f":"budget_form_lookups[[#This Row],[PB-5 Rollup]]","v":"Loss & Claims"},null,null,null,null,null,511410,"UtlAsst","Utility Assistance","2012-05-14",{"$f":"_xlfn.XLOOKUP(CI_s[[#This Row],[Commitment item]],AM:AM,AK:AK)","v":"Utility Assistance "},{"$f":"_xlfn.XLOOKUP(CI_s[[#This Row],[Commitment item]],AM:AM,AN:AN)","v":"Utility Assistance "},null,null,null,null,511681,511681,null,null,null,null,null,null,null,null,null,null,null,null,null,"Loss & Claims","Loss & Claims",null,515592,"Ret>65 Pharmacy Clms/Loss Pmts Medical-Cons Choice","??"]
[null,{"$f":"budget_form_lookups[[#This Row],[Long text]]","v":"Ret>65 Pharmacy Clms/Loss Pmts Medical-Drug Progrm"},516000,{"$f":"budget_form_lookups[[#This Row],[SAP GL Account]]","v":515595},{"$f":"budget_form_lookups[[#This Row],[PB-5 Rollup]]","v":"Loss & Claims"},null,null,null,null,null,511411,"UtlAsst-CEAPCoPay-CO","DO NOT USE","2012-05-14",{"$f":"_xlfn.XLOOKUP(CI_s[[#This Row],[Commitment item]],AM:AM,AK:AK)","v":"Services"},{"$f":"_xlfn.XLOOKUP(CI_s[[#This Row],[Commitment item]],AM:AM,AN:AN)","v":"Utility Assistance -CEAP CoPay - Conversion"},null,null,null,null,511700,511010,null,null,null,null,null,null,null,null,null,null,null,null,null,"Loss & Claims","Loss & Claims",null,515595,"Ret>65 Pharmacy Clms/Loss Pmts Medical-Drug Progrm","??"]
[null,{"$f":"budget_form_lookups[[#This Row],[Long text]]","v":"Ret>65 Pharmacy Clms/Loss Pmts Medical-EPO"},516000,{"$f":"budget_form_lookups[[#This Row],[SAP GL Account]]","v":515582},{"$f":"budget_form_lookups[[#This Row],[PB-5 Rollup]]","v":"Loss & Claims"},null,null,null,null,null,511412,"UtlAsst-CEAPEgyCr-CO","DO NOT USE","2012-05-14",{"$f":"_xlfn.XLOOKUP(CI_s[[#This Row],[Commitment item]],AM:AM,AK:AK)","v":"Services"},{"$f":"_xlfn.XLOOKUP(CI_s[[#This Row],[Commitment item]],AM:AM,AN:AN)","v":"Utility Assistance -CEAP Energy Crisis - Conv"},null,null,null,null,511710,511710,null,null,null,null,null,null,null,null,null,null,null,null,null,"Loss & Claims","Loss & Claims",null,515582,"Ret>65 Pharmacy Clms/Loss Pmts Medical-EPO","??"]
[null,{"$f":"budget_form_lookups[[#This Row],[Long text]]","v":"Ret>65 Pharmacy Clms/Loss Pmts Medical-HDHP"},{"$f":"IFERROR(INDEX(V:V,MATCH(D194,U:U,0)),D194)","v":516000},{"$f":"budget_form_lookups[[#This Row],[SAP GL Account]]","v":515597},{"$f":"budget_form_lookups[[#This Row],[PB-5 Rollup]]","v":"Loss & Claims"},null,null,null,null,null,511413,"UtlAsst-Donatns-CO","DO NOT USE","2012-05-14",{"$f":"_xlfn.XLOOKUP(CI_s[[#This Row],[Commitment item]],AM:AM,AK:AK)","v":"Services"},{"$f":"_xlfn.XLOOKUP(CI_s[[#This Row],[Commitment item]],AM:AM,AN:AN)","v":"Utility Assistance -Donations - Conversion"},null,null,null,null,511720,511010,null,null,null,null,null,null,null,null,null,null,null,null,null,"Loss & Claims","Loss & Claims",null,515597,"Ret>65 Pharmacy Clms/Loss Pmts Medical-HDHP","??"]
[null,{"$f":"budget_form_lookups[[#This Row],[Long text]]","v":"Ret>65 Pharmacy Clms/Loss Pmts Medical-PPO"},516000,{"$f":"budget_form_lookups[[#This Row],[SAP GL Account]]","v":515587},{"$f":"budget_form_lookups[[#This Row],[PB-5 Rollup]]","v":"Loss & Claims"},null,null,null,null,null,511414,"UtlAsst-Indgs-CO","DO NOT USE","2012-05-14",{"$f":"_xlfn.XLOOKUP(CI_s[[#This Row],[Commitment item]],AM:AM,AK:AK)","v":"Services"},{"$f":"_xlfn.XLOOKUP(CI_s[[#This Row],[Commitment item]],AM:AM,AN:AN)","v":"Utility Assistance -Indigents - Conversion"},null,null,null,null,511730,511010,null,null,null,null,null,null,null,null,null,null,null,null,null,"Loss & Claims","Loss & Claims",null,515587,"Ret>65 Pharmacy Clms/Loss Pmts Medical-PPO","??"]
[null,{"$f":"budget_form_lookups[[#This Row],[Long text]]","v":"Retiree < 65 Actual Claims/Loss Pmts Medical-CoEPO"},516000,{"$f":"budget_form_lookups[[#This Row],[SAP GL Account]]","v":516110},{"$f":"budget_form_lookups[[#This Row],[PB-5 Rollup]]","v":"Loss & Claims"},null,null,null,null,null,511415,"UtlAsst-CEAPEldrlyCO","DO NOT USE","2012-05-14",{"$f":"_xlfn.XLOOKUP(CI_s[[#This Row],[Commitment item]],AM:AM,AK:AK)","v":"Services"},{"$f":"_xlfn.XLOOKUP(CI_s[[#This Row],[Commitment item]],AM:AM,AN:AN)","v":"Utility Assistance-CEAP Elderly - Conversion"},null,null,null,null,511740,511010,null,null,null,null,null,null,null,null,null,null,null,null,null,"Loss & Claims","Loss & Claims",4529,516110,"Retiree < 65 Actual Claims/Loss Pmts Medical-CoEPO","??"]
[null,{"$f":"budget_form_lookups[[#This Row],[Long text]]","v":"Retiree < 65 Actual Claims/Loss Pmts Medical-EPO"},516000,{"$f":"budget_form_lookups[[#This Row],[SAP GL Account]]","v":516130},{"$f":"budget_form_lookups[[#This Row],[PB-5 Rollup]]","v":"Loss & Claims"},null,null,null,null,null,511416,"UtlAsst-FEMA-CO","DO NOT USE","2012-05-14",{"$f":"_xlfn.XLOOKUP(CI_s[[#This Row],[Commitment item]],AM:AM,AK:AK)","v":"Services"},{"$f":"_xlfn.XLOOKUP(CI_s[[#This Row],[Commitment item]],AM:AM,AN:AN)","v":"Utility Assistance-FEMA - Conversion"},null,null,null,null,511760,511010,null,null,null,null,null,null,null,null,null,null,null,null,null,"Loss & Claims","Loss & Claims",4521,516130,"Retiree < 65 Actual Claims/Loss Pmts Medical-EPO","??"]
[null,{"$f":"budget_form_lookups[[#This Row],[Long text]]","v":"Retiree < 65 Actual Claims/Loss Pmts Medical-PPO"},516000,{"$f":"budget_form_lookups[[#This Row],[SAP GL Account]]","v":516120},{"$f":"budget_form_lookups[[#This Row],[PB-5 Rollup]]","v":"Loss & Claims"},null,null,null,null,null,511417,"UtlAsst-BSS","Utility Assistance-Best Single Source","2012-05-14",{"$f":"_xlfn.XLOOKUP(CI_s[[#This Row],[Commitment item]],AM:AM,AK:AK)","v":"Utility Assistance-Best Single Source"},{"$f":"_xlfn.XLOOKUP(CI_s[[#This Row],[Commitment item]],AM:AM,AN:AN)","v":"Utility Assistance-Best Single Source"},null,null,null,null,511770,511010,null,null,null,null,null,null,null,null,null,null,null,null,null,"Loss & Claims","Loss & Claims",4526,516120,"Retiree < 65 Actual Claims/Loss Pmts Medical-PPO","??"]
[null,{"$f":"budget_form_lookups[[#This Row],[Long text]]","v":"Retiree >65 Actual Claims/Loss Pmts Medical-CO EPO"},516000,{"$f":"budget_form_lookups[[#This Row],[SAP GL Account]]","v":516210},{"$f":"budget_form_lookups[[#This Row],[PB-5 Rollup]]","v":"Loss & Claims"},null,null,null,null,null,511420,"Vltr Sv Mgmt","Volunteer Service Mgmt","2012-05-14",{"$f":"_xlfn.XLOOKUP(CI_s[[#This Row],[Commitment item]],AM:AM,AK:AK)","v":"Services"},{"$f":"_xlfn.XLOOKUP(CI_s[[#This Row],[Commitment item]],AM:AM,AN:AN)","v":"Volunteer Service Mgmt"},null,null,null,null,511780,511010,null,null,null,null,null,null,null,null,null,null,null,null,null,"Loss & Claims","Loss & Claims",4529,516210,"Retiree >65 Actual Claims/Loss Pmts Medical-CO EPO","??"]
[null,{"$f":"budget_form_lookups[[#This Row],[Long text]]","v":"Retiree >65 Actual Claims/Loss Pmts Medical-EPO"},516000,{"$f":"budget_form_lookups[[#This Row],[SAP GL Account]]","v":516230},{"$f":"budget_form_lookups[[#This Row],[PB-5 Rollup]]","v":"Loss & Claims"},null,null,null,null,null,511430,"Workforce Dev","Workforce Development","2012-05-14",{"$f":"_xlfn.XLOOKUP(CI_s[[#This Row],[Commitment item]],AM:AM,AK:AK)","v":"Services"},{"$f":"_xlfn.XLOOKUP(CI_s[[#This Row],[Commitment item]],AM:AM,AN:AN)","v":"Workforce Development"},null,null,null,null,511790,511010,null,null,null,null,null,null,null,null,null,null,null,null,null,"Loss & Claims","Loss & Claims",4521,516230,"Retiree >65 Actual Claims/Loss Pmts Medical-EPO","??"]
[null,{"$f":"budget_form_lookups[[#This Row],[Long text]]","v":"Retiree >65 Actual Claims/Loss Pmts Medical-PPO"},516000,{"$f":"budget_form_lookups[[#This Row],[SAP GL Account]]","v":516220},{"$f":"budget_form_lookups[[#This Row],[PB-5 Rollup]]","v":"Loss & Claims"},null,null,null,null,null,511440,"Oth Social Sv","Other Social Services","2012-05-14",{"$f":"_xlfn.XLOOKUP(CI_s[[#This Row],[Commitment item]],AM:AM,AK:AK)","v":"Services"},{"$f":"_xlfn.XLOOKUP(CI_s[[#This Row],[Commitment item]],AM:AM,AN:AN)","v":"Other Social Services"},null,null,null,null,511810,511010,null,null,null,null,null,null,null,null,null,null,null,null,null,"Loss & Claims","Loss & Claims",4526,516220,"Retiree >65 Actual Claims/Loss Pmts Medical-PPO","??"]
[null,{"$f":"budget_form_lookups[[#This Row],[Long text]]","v":"Retiree- Actual Claims/Loss Pmts Medical-PPO Conv"},516000,{"$f":"budget_form_lookups[[#This Row],[SAP GL Account]]","v":516441},{"$f":"budget_form_lookups[[#This Row],[PB-5 Rollup]]","v":"Loss & Claims"},null,null,null,null,null,511441,"Outside AgCntrcs-CO","Outside Agency Contracts-Conversion","2012-05-14",{"$f":"_xlfn.XLOOKUP(CI_s[[#This Row],[Commitment item]],AM:AM,AK:AK)","v":"Services"},{"$f":"_xlfn.XLOOKUP(CI_s[[#This Row],[Commitment item]],AM:AM,AN:AN)","v":"Outside Agency Contracts - Conversion"},null,null,null,null,511819,511010,null,null,null,null,null,null,null,null,null,null,null,null,null,"Loss & Claims","Loss & Claims",4526,516441,"Retiree- Actual Claims/Loss Pmts Medical-PPO Conv","??"]
[null,{"$f":"budget_form_lookups[[#This Row],[Long text]]","v":"Retiree<65-Admin-CoEPO"},516000,{"$f":"budget_form_lookups[[#This Row],[SAP GL Account]]","v":516140},{"$f":"budget_form_lookups[[#This Row],[PB-5 Rollup]]","v":"Loss & Claims"},null,null,null,null,null,511442,"Oth Human Sv-CO","DO NOT USE","2012-05-14",{"$f":"_xlfn.XLOOKUP(CI_s[[#This Row],[Commitment item]],AM:AM,AK:AK)","v":"Services"},{"$f":"_xlfn.XLOOKUP(CI_s[[#This Row],[Commitment item]],AM:AM,AN:AN)","v":"Other Human Services - Conversion"},null,null,null,null,511820,511010,null,null,null,null,null,null,null,null,null,null,null,null,null,"Loss & Claims","Loss & Claims",4717,516140,"Retiree<65-Admin-CoEPO","??"]
[null,{"$f":"budget_form_lookups[[#This Row],[Long text]]","v":"Retiree<65-Admin-Consumer Choice"},516000,{"$f":"budget_form_lookups[[#This Row],[SAP GL Account]]","v":516141},{"$f":"budget_form_lookups[[#This Row],[PB-5 Rollup]]","v":"Loss & Claims"},null,null,null,null,null,511459,"Utilities-CO","DO NOT USE","2012-05-14",{"$f":"_xlfn.XLOOKUP(CI_s[[#This Row],[Commitment item]],AM:AM,AK:AK)","v":"Utilities"},{"$f":"_xlfn.XLOOKUP(CI_s[[#This Row],[Commitment item]],AM:AM,AN:AN)","v":"Utilities - Conversion"},null,null,null,null,511830,511010,null,null,null,null,null,null,null,null,null,null,null,null,null,"Loss & Claims","Loss & Claims",null,516141,"Retiree<65-Admin-Consumer Choice","??"]
[null,{"$f":"budget_form_lookups[[#This Row],[Long text]]","v":"Retiree<65-Admin-EPO"},516000,{"$f":"budget_form_lookups[[#This Row],[SAP GL Account]]","v":516160},{"$f":"budget_form_lookups[[#This Row],[PB-5 Rollup]]","v":"Loss & Claims"},null,null,null,null,null,511460,"Electrical Sv","Electrical Service","2012-05-14",{"$f":"_xlfn.XLOOKUP(CI_s[[#This Row],[Commitment item]],AM:AM,AK:AK)","v":"Utilities"},{"$f":"_xlfn.XLOOKUP(CI_s[[#This Row],[Commitment item]],AM:AM,AN:AN)","v":"Electrical Service"},null,null,null,null,511840,511010,null,null,null,null,null,null,null,null,null,null,null,null,null,"Loss & Claims","Loss & Claims",4717,516160,"Retiree<65-Admin-EPO","??"]
[null,{"$f":"budget_form_lookups[[#This Row],[Long text]]","v":"Retiree<65-Admin-HDHP"},516000,{"$f":"budget_form_lookups[[#This Row],[SAP GL Account]]","v":516142},{"$f":"budget_form_lookups[[#This Row],[PB-5 Rollup]]","v":"Loss & Claims"},null,null,null,null,null,511461,"Electrical Sv-YEAccr","Electrical Sv YE Accrual","2022-09-21",{"$f":"_xlfn.XLOOKUP(CI_s[[#This Row],[Commitment item]],AM:AM,AK:AK)","v":"Utilities"},{"$f":"_xlfn.XLOOKUP(CI_s[[#This Row],[Commitment item]],AM:AM,AN:AN)","v":"Electric Utilities YE Accr"},null,null,null,null,511850,511010,null,null,null,null,null,null,null,null,null,null,null,null,null,"Loss & Claims","Loss & Claims",null,516142,"Retiree<65-Admin-HDHP","??"]
[null,{"$f":"budget_form_lookups[[#This Row],[Long text]]","v":"Retiree<65-Admin-PPO"},516000,{"$f":"budget_form_lookups[[#This Row],[SAP GL Account]]","v":516150},{"$f":"budget_form_lookups[[#This Row],[PB-5 Rollup]]","v":"Loss & Claims"},null,null,null,null,null,511470,"Oil/Gas Sv","Oil/Gas Service","2012-05-14",{"$f":"_xlfn.XLOOKUP(CI_s[[#This Row],[Commitment item]],AM:AM,AK:AK)","v":"Utilities"},{"$f":"_xlfn.XLOOKUP(CI_s[[#This Row],[Commitment item]],AM:AM,AN:AN)","v":"Oil/Gas Service"},null,null,null,null,511855,511010,null,null,null,null,null,null,null,null,null,null,null,null,null,"Loss & Claims","Loss & Claims",4717,516150,"Retiree<65-Admin-PPO","??"]
[null,{"$f":"budget_form_lookups[[#This Row],[Long text]]","v":"Retiree>65-Admin-CoEPO"},516000,{"$f":"budget_form_lookups[[#This Row],[SAP GL Account]]","v":516240},{"$f":"budget_form_lookups[[#This Row],[PB-5 Rollup]]","v":"Loss & Claims"},null,null,null,null,null,511471,"Oil/GasSv-YEAccr","Oil/Gas Sv YE Accrual","2022-09-21",{"$f":"_xlfn.XLOOKUP(CI_s[[#This Row],[Commitment item]],AM:AM,AK:AK)","v":"Utilities"},{"$f":"_xlfn.XLOOKUP(CI_s[[#This Row],[Commitment item]],AM:AM,AN:AN)","v":"Water/Sewer Utilities YE Accr"},null,null,null,null,511856,511010,null,null,null,null,null,null,null,null,null,null,null,null,null,"Loss & Claims","Loss & Claims",4717,516240,"Retiree>65-Admin-CoEPO","??"]
[null,{"$f":"budget_form_lookups[[#This Row],[Long text]]","v":"Retiree>65-Admin-Consumer Choice"},516000,{"$f":"budget_form_lookups[[#This Row],[SAP GL Account]]","v":516241},{"$f":"budget_form_lookups[[#This Row],[PB-5 Rollup]]","v":"Loss & Claims"},null,null,null,null,null,511480,"Water/Sewer Sv","Water/Sewer Service","2012-05-14",{"$f":"_xlfn.XLOOKUP(CI_s[[#This Row],[Commitment item]],AM:AM,AK:AK)","v":"Utilities"},{"$f":"_xlfn.XLOOKUP(CI_s[[#This Row],[Commitment item]],AM:AM,AN:AN)","v":"Water/Sewer Service"},null,null,null,null,511870,511010,null,null,null,null,null,null,null,null,null,null,null,null,null,"Loss & Claims","Loss & Claims",null,516241,"Retiree>65-Admin-Consumer Choice","??"]
[null,{"$f":"budget_form_lookups[[#This Row],[Long text]]","v":"Retiree>65-Admin-EPO"},516000,{"$f":"budget_form_lookups[[#This Row],[SAP GL Account]]","v":516260},{"$f":"budget_form_lookups[[#This Row],[PB-5 Rollup]]","v":"Loss & Claims"},null,null,null,null,null,511481,"Water/SewerSv-YEAccr","Water/Sewer Sv YE Accrual","2022-09-21",{"$f":"_xlfn.XLOOKUP(CI_s[[#This Row],[Commitment item]],AM:AM,AK:AK)","v":{"$error":"#N/A"}},{"$f":"_xlfn.XLOOKUP(CI_s[[#This Row],[Commitment item]],AM:AM,AN:AN)","v":{"$error":"#N/A"}},null,null,null,null,511875,511010,null,null,null,null,null,null,null,null,null,null,null,null,null,"Loss & Claims","Loss & Claims",4717,516260,"Retiree>65-Admin-EPO","??"]
[null,{"$f":"budget_form_lookups[[#This Row],[Long text]]","v":"Retiree>65-Admin-HDHP"},516000,{"$f":"budget_form_lookups[[#This Row],[SAP GL Account]]","v":516242},{"$f":"budget_form_lookups[[#This Row],[PB-5 Rollup]]","v":"Loss & Claims"},null,null,null,null,null,511485,"Cable TV Service","Cable TV Service","2016-09-12",{"$f":"_xlfn.XLOOKUP(CI_s[[#This Row],[Commitment item]],AM:AM,AK:AK)","v":"Utilities"},{"$f":"_xlfn.XLOOKUP(CI_s[[#This Row],[Commitment item]],AM:AM,AN:AN)","v":"Cable TV Service"},null,null,null,null,511880,511010,null,null,null,null,null,null,null,null,null,null,null,null,null,"Loss & Claims","Loss & Claims",null,516242,"Retiree>65-Admin-HDHP","??"]
[null,{"$f":"budget_form_lookups[[#This Row],[Long text]]","v":"Retiree>65-Admin-PPO"},516000,{"$f":"budget_form_lookups[[#This Row],[SAP GL Account]]","v":516250},{"$f":"budget_form_lookups[[#This Row],[PB-5 Rollup]]","v":"Loss & Claims"},null,null,null,null,null,511490,"Air Transport Sv","Air Transport Services","2012-05-14",{"$f":"_xlfn.XLOOKUP(CI_s[[#This Row],[Commitment item]],AM:AM,AK:AK)","v":"Services"},{"$f":"_xlfn.XLOOKUP(CI_s[[#This Row],[Commitment item]],AM:AM,AN:AN)","v":"Air Transport Services"},null,null,null,null,511885,511010,null,null,null,null,null,null,null,null,null,null,null,null,null,"Loss & Claims","Loss & Claims",4717,516250,"Retiree>65-Admin-PPO","??"]
[null,{"$f":"budget_form_lookups[[#This Row],[Long text]]","v":"Retiree>65-Premium Medical-MAPD"},516000,{"$f":"budget_form_lookups[[#This Row],[SAP GL Account]]","v":515599},{"$f":"budget_form_lookups[[#This Row],[PB-5 Rollup]]","v":"Loss & Claims"},null,null,null,null,null,511500,"Ambulance Sv","Ambulance Service","2012-05-14",{"$f":"_xlfn.XLOOKUP(CI_s[[#This Row],[Commitment item]],AM:AM,AK:AK)","v":"Services"},{"$f":"_xlfn.XLOOKUP(CI_s[[#This Row],[Commitment item]],AM:AM,AN:AN)","v":"Ambulance Service"},null,null,null,null,511890,511010,null,null,null,null,null,null,null,null,null,null,null,null,null,"Loss & Claims","Loss & Claims",null,515599,"Retiree>65-Premium Medical-MAPD","??"]
[null,{"$f":"budget_form_lookups[[#This Row],[Long text]]","v":"Retiree-Actual Claims/Loss Pmts Medical-CoEPO Conv"},516000,{"$f":"budget_form_lookups[[#This Row],[SAP GL Account]]","v":516442},{"$f":"budget_form_lookups[[#This Row],[PB-5 Rollup]]","v":"Loss & Claims"},null,null,null,null,null,511510,"Armored Motor Sv","Armored Motor Service","2012-05-14",{"$f":"_xlfn.XLOOKUP(CI_s[[#This Row],[Commitment item]],AM:AM,AK:AK)","v":"Services"},{"$f":"_xlfn.XLOOKUP(CI_s[[#This Row],[Commitment item]],AM:AM,AN:AN)","v":"Armored Motor Service"},null,null,null,null,511900,511010,null,null,null,null,null,null,null,null,null,null,null,null,null,"Loss & Claims","Loss & Claims",4529,516442,"Retiree-Actual Claims/Loss Pmts Medical-CoEPO Conv","??"]
[null,{"$f":"budget_form_lookups[[#This Row],[Long text]]","v":"Retiree-Actual Claims/Loss Pmts Medical-EPO-Conv"},516000,{"$f":"budget_form_lookups[[#This Row],[SAP GL Account]]","v":516443},{"$f":"budget_form_lookups[[#This Row],[PB-5 Rollup]]","v":"Loss & Claims"},null,null,null,null,null,511520,"Auto Reprs&Mnt","Automobile Repairs & Maintenance","2012-05-14",{"$f":"_xlfn.XLOOKUP(CI_s[[#This Row],[Commitment item]],AM:AM,AK:AK)","v":"Services"},{"$f":"_xlfn.XLOOKUP(CI_s[[#This Row],[Commitment item]],AM:AM,AN:AN)","v":"Automobile Repairs & Maintenance"},null,null,null,null,511910,511010,null,null,null,null,null,null,null,null,null,null,null,null,null,"Loss & Claims","Loss & Claims",4521,516443,"Retiree-Actual Claims/Loss Pmts Medical-EPO-Conv","??"]
[null,{"$f":"budget_form_lookups[[#This Row],[Long text]]","v":"Retiree-Admin-Conversion"},516000,{"$f":"budget_form_lookups[[#This Row],[SAP GL Account]]","v":516444},{"$f":"budget_form_lookups[[#This Row],[PB-5 Rollup]]","v":"Loss & Claims"},null,null,null,null,null,511530,"Bldg Reprs&Mnt","Building Repairs & Maintenance","2012-05-14",{"$f":"_xlfn.XLOOKUP(CI_s[[#This Row],[Commitment item]],AM:AM,AK:AK)","v":"Services"},{"$f":"_xlfn.XLOOKUP(CI_s[[#This Row],[Commitment item]],AM:AM,AN:AN)","v":"Building Repairs & Maintenance"},null,null,null,null,511920,511010,null,null,null,null,null,null,null,null,null,null,null,null,null,"Loss & Claims","Loss & Claims",4717,516444,"Retiree-Admin-Conversion","??"]
[null,{"$f":"budget_form_lookups[[#This Row],[Long text]]","v":"Third Party Attorney Fee Claims"},516000,{"$f":"budget_form_lookups[[#This Row],[SAP GL Account]]","v":516460},{"$f":"budget_form_lookups[[#This Row],[PB-5 Rollup]]","v":"Loss & Claims"},null,null,null,null,null,511540,"Furn&OfcEqpReprs&Mnt","Furniture & Office Equipment Repairs & Maintenance","2012-05-14",{"$f":"_xlfn.XLOOKUP(CI_s[[#This Row],[Commitment item]],AM:AM,AK:AK)","v":"Services"},{"$f":"_xlfn.XLOOKUP(CI_s[[#This Row],[Commitment item]],AM:AM,AN:AN)","v":"Furniture & Office Equipment Repairs & Maintenance"},null,null,null,null,511930,511010,null,null,null,null,null,null,null,null,null,null,null,null,null,"Loss & Claims","Loss & Claims",4508,516460,"Third Party Attorney Fee Claims","??"]
[null,{"$f":"budget_form_lookups[[#This Row],[Long text]]","v":"Third Party Auto Claims"},516000,{"$f":"budget_form_lookups[[#This Row],[SAP GL Account]]","v":516470},{"$f":"budget_form_lookups[[#This Row],[PB-5 Rollup]]","v":"Loss & Claims"},null,null,null,null,null,511550,"Hdw/Sfw Mnt","Hardware/Software Maintenance","2012-05-14",{"$f":"_xlfn.XLOOKUP(CI_s[[#This Row],[Commitment item]],AM:AM,AK:AK)","v":"Hardware/Software Maintenance"},{"$f":"_xlfn.XLOOKUP(CI_s[[#This Row],[Commitment item]],AM:AM,AN:AN)","v":"Hardware/Software Maintenance"},null,null,null,null,511940,511010,null,null,null,null,null,null,null,null,null,null,null,null,null,"Loss & Claims","Loss & Claims",4503,516470,"Third Party Auto Claims","??"]
[null,{"$f":"budget_form_lookups[[#This Row],[Long text]]","v":"Third Party Property Damage"},516000,{"$f":"budget_form_lookups[[#This Row],[SAP GL Account]]","v":516480},{"$f":"budget_form_lookups[[#This Row],[PB-5 Rollup]]","v":"Loss & Claims"},null,null,null,null,null,511560,"Helicopter Reprs&Mnt","Helicopter/Aircraft Repairs & Maintenance","2012-05-14",{"$f":"_xlfn.XLOOKUP(CI_s[[#This Row],[Commitment item]],AM:AM,AK:AK)","v":"Services"},{"$f":"_xlfn.XLOOKUP(CI_s[[#This Row],[Commitment item]],AM:AM,AN:AN)","v":"Helicopter Repairs & Maintenance"},null,null,null,null,511950,511010,null,null,null,null,null,null,null,null,null,null,null,null,null,"Loss & Claims","Loss & Claims",4507,516480,"Third Party Property Damage","??"]
[null,{"$f":"budget_form_lookups[[#This Row],[Long text]]","v":"Third Party Property Damage-Starflight"},516000,{"$f":"budget_form_lookups[[#This Row],[SAP GL Account]]","v":516490},{"$f":"budget_form_lookups[[#This Row],[PB-5 Rollup]]","v":"Loss & Claims"},null,null,null,null,null,511570,"RadiosTVCommReprsMnt","Radios/TV Communication Repairs & Maintenance","2012-05-14",{"$f":"_xlfn.XLOOKUP(CI_s[[#This Row],[Commitment item]],AM:AM,AK:AK)","v":"Services"},{"$f":"_xlfn.XLOOKUP(CI_s[[#This Row],[Commitment item]],AM:AM,AN:AN)","v":"Radios/TV Communication Repairs & Maintenance"},null,null,null,null,511960,511010,null,null,null,null,null,null,null,null,null,null,null,null,null,"Loss & Claims","Loss & Claims",4510,516490,"Third Party Property Damage-Starflight","??"]
[null,{"$f":"budget_form_lookups[[#This Row],[Long text]]","v":"Unemployment Insurance Actual Claims"},516000,{"$f":"budget_form_lookups[[#This Row],[SAP GL Account]]","v":516500},{"$f":"budget_form_lookups[[#This Row],[PB-5 Rollup]]","v":"Loss & Claims"},null,null,null,null,null,511580,"Rd Mach&EqpReprs&Mnt","Road Machinery & Equipment Repairs & Maintenance","2012-05-14",{"$f":"_xlfn.XLOOKUP(CI_s[[#This Row],[Commitment item]],AM:AM,AK:AK)","v":"Services"},{"$f":"_xlfn.XLOOKUP(CI_s[[#This Row],[Commitment item]],AM:AM,AN:AN)","v":"Road Machinery & Equipment Repairs & Maintenance"},null,null,null,null,511971,511010,null,null,null,null,null,null,null,null,null,null,null,null,null,"Loss & Claims","Loss & Claims",2200,516500,"Unemployment Insurance Actual Claims","??"]
[null,{"$f":"budget_form_lookups[[#This Row],[Long text]]","v":"Worker's Comp Claims-Active Employee"},516000,{"$f":"budget_form_lookups[[#This Row],[SAP GL Account]]","v":516510},{"$f":"budget_form_lookups[[#This Row],[PB-5 Rollup]]","v":"Loss & Claims"},null,null,null,null,null,511590,"Rd Reprs&Mnt","Road Repairs & Maintenance","2012-05-14",{"$f":"_xlfn.XLOOKUP(CI_s[[#This Row],[Commitment item]],AM:AM,AK:AK)","v":"Services"},{"$f":"_xlfn.XLOOKUP(CI_s[[#This Row],[Commitment item]],AM:AM,AN:AN)","v":"Road Repairs & Maintenance"},null,null,null,null,511972,511010,null,null,null,null,null,null,null,null,null,null,null,null,null,"Loss & Claims","Loss & Claims",4505,516510,"Worker's Comp Claims-Active Employee","??"]
[null,{"$f":"budget_form_lookups[[#This Row],[Long text]]","v":"Worker's Comp-Medical Bill Auditing"},516000,{"$f":"budget_form_lookups[[#This Row],[SAP GL Account]]","v":516700},{"$f":"budget_form_lookups[[#This Row],[PB-5 Rollup]]","v":"Loss & Claims"},null,null,null,null,null,511600,"Septic TankReprs&Mnt","Septic Tank Repairs & Maintenance","2012-05-14",{"$f":"_xlfn.XLOOKUP(CI_s[[#This Row],[Commitment item]],AM:AM,AK:AK)","v":"Services"},{"$f":"_xlfn.XLOOKUP(CI_s[[#This Row],[Commitment item]],AM:AM,AN:AN)","v":"Septic Tank Repairs & Maintenance"},null,null,null,null,511973,511010,null,null,null,null,null,null,null,null,null,null,null,null,null,"Loss & Claims","Loss & Claims",4704,516700,"Worker's Comp-Medical Bill Auditing","??"]
[null,{"$f":"budget_form_lookups[[#This Row],[Long text]]","v":"Worker's Comp-Third Party Adm"},516000,{"$f":"budget_form_lookups[[#This Row],[SAP GL Account]]","v":516710},{"$f":"budget_form_lookups[[#This Row],[PB-5 Rollup]]","v":"Loss & Claims"},null,null,null,null,null,511610,"Grounds Mnt Svc","Grounds Maintenance Services","2012-05-14",{"$f":"_xlfn.XLOOKUP(CI_s[[#This Row],[Commitment item]],AM:AM,AK:AK)","v":"Services"},{"$f":"_xlfn.XLOOKUP(CI_s[[#This Row],[Commitment item]],AM:AM,AN:AN)","v":"Grounds Maintenance Services"},null,null,null,null,511980,511010,null,null,null,null,null,null,null,null,null,null,null,null,null,"Loss & Claims","Loss & Claims",4704,516710,"Worker's Comp-Third Party Adm","??"]
[null,{"$f":"budget_form_lookups[[#This Row],[Long text]]","v":"Agency Contracts - Conversion"},518010,{"$f":"budget_form_lookups[[#This Row],[SAP GL Account]]","v":518002},{"$f":"budget_form_lookups[[#This Row],[PB-5 Rollup]]","v":"Miscellaneous Operating"},null,null,null,null,null,511620,"Oth Eqp Reprs&Mnt","Other Equipment Repairs & Maintenance","2012-05-14",{"$f":"_xlfn.XLOOKUP(CI_s[[#This Row],[Commitment item]],AM:AM,AK:AK)","v":"Services"},{"$f":"_xlfn.XLOOKUP(CI_s[[#This Row],[Commitment item]],AM:AM,AN:AN)","v":"Other Equipment Repairs & Maintenance"},null,null,null,null,512020,512010,null,null,null,null,null,null,null,null,null,null,null,null,null,"Miscellaneous Operating","Subreceipient Services","6292, 6291, 6293",518002,"Agency Contracts - Conversion","??"]
[null,{"$f":"budget_form_lookups[[#This Row],[Long text]]","v":"Appropriations to Other Public Entities"},517010,{"$f":"budget_form_lookups[[#This Row],[SAP GL Account]]","v":517010},{"$f":"budget_form_lookups[[#This Row],[PB-5 Rollup]]","v":"Miscellaneous Operating"},null,null,null,null,null,511625,"Ncampus Oper&Mnt Exp","North Campus Operating & Maintenance Exp","2021-02-01",{"$f":"_xlfn.XLOOKUP(CI_s[[#This Row],[Commitment item]],AM:AM,AK:AK)","v":"Rent-Building & Land"},{"$f":"_xlfn.XLOOKUP(CI_s[[#This Row],[Commitment item]],AM:AM,AN:AN)","v":"North Campus Operating & Maintenance Exp"},null,null,null,null,512030,512010,null,null,null,null,null,null,null,null,null,null,null,null,null,"Miscellaneous Operating","Appropriations to Other Governments","7006 & 7007",517010,"Appropriations to Other Public Entities","??"]
[null,{"$f":"budget_form_lookups[[#This Row],[Long text]]","v":"PSF Distribution to ISDs"},517010,{"$f":"budget_form_lookups[[#This Row],[SAP GL Account]]","v":517015},{"$f":"budget_form_lookups[[#This Row],[PB-5 Rollup]]","v":"Miscellaneous Operating"},null,null,null,null,null,511630,"Rent-Bldg & Land","Rent-Building & Land","2012-05-14",{"$f":"_xlfn.XLOOKUP(CI_s[[#This Row],[Commitment item]],AM:AM,AK:AK)","v":"Rent-Building & Land"},{"$f":"_xlfn.XLOOKUP(CI_s[[#This Row],[Commitment item]],AM:AM,AN:AN)","v":"Rent-Building & Land"},null,null,null,null,512040,512010,null,null,null,null,null,null,null,null,null,null,null,null,null,"Miscellaneous Operating","Appropriations to Other Governments",null,517015,"PSF Distribution to ISDs","??"]
[null,{"$f":"budget_form_lookups[[#This Row],[Long text]]","v":"Subrecipient - Purchased Services - Conversion"},518010,{"$f":"budget_form_lookups[[#This Row],[SAP GL Account]]","v":518001},{"$f":"budget_form_lookups[[#This Row],[PB-5 Rollup]]","v":"Miscellaneous Operating"},null,null,null,null,null,511640,"Rent-EDP Eqp/Sfw","Rent-EDP Equipment/Software","2012-05-14",{"$f":"_xlfn.XLOOKUP(CI_s[[#This Row],[Commitment item]],AM:AM,AK:AK)","v":"Hardware/Software Maintenance"},{"$f":"_xlfn.XLOOKUP(CI_s[[#This Row],[Commitment item]],AM:AM,AN:AN)","v":"Rent-EDP Equipment/Software"},null,null,null,null,512050,512010,null,null,null,null,null,null,null,null,null,null,null,null,null,"Miscellaneous Operating","Subreceipient Services",6096,518001,"Subrecipient - Purchased Services - Conversion","??"]
[null,{"$f":"budget_form_lookups[[#This Row],[Long text]]","v":"Subrecipient-Operating Expenses"},518010,{"$f":"budget_form_lookups[[#This Row],[SAP GL Account]]","v":518030},{"$f":"budget_form_lookups[[#This Row],[PB-5 Rollup]]","v":"Miscellaneous Operating"},null,null,null,null,null,511650,"Rent-Ofc Eqp","Rent-Office Equipment","2012-05-14",{"$f":"_xlfn.XLOOKUP(CI_s[[#This Row],[Commitment item]],AM:AM,AK:AK)","v":"Rent-Office Equipment"},{"$f":"_xlfn.XLOOKUP(CI_s[[#This Row],[Commitment item]],AM:AM,AN:AN)","v":"Rent-Office Equipment"},null,null,null,null,512060,512010,null,null,null,null,null,null,null,null,null,null,null,null,null,"Miscellaneous Operating","Subreceipient Services","6096, 6292, 6291",518030,"Subrecipient-Operating Expenses","??"]
[null,{"$f":"budget_form_lookups[[#This Row],[Long text]]","v":"Subrecipient-Other "},518010,{"$f":"budget_form_lookups[[#This Row],[SAP GL Account]]","v":518120},{"$f":"budget_form_lookups[[#This Row],[PB-5 Rollup]]","v":"Miscellaneous Operating"},null,null,null,null,null,511660,"Rent-Polling Places","Rent-Polling Places","2012-05-14",{"$f":"_xlfn.XLOOKUP(CI_s[[#This Row],[Commitment item]],AM:AM,AK:AK)","v":"Services"},{"$f":"_xlfn.XLOOKUP(CI_s[[#This Row],[Commitment item]],AM:AM,AN:AN)","v":"Rent-Polling Places"},null,null,null,null,512070,512010,null,null,null,null,null,null,null,null,null,null,null,null,null,"Miscellaneous Operating","Subreceipient Services","6096, 6292, 6291",518120,"Subrecipient-Other ","??"]
[null,{"$f":"budget_form_lookups[[#This Row],[Long text]]","v":"Subrecipient-Overtime"},518010,{"$f":"budget_form_lookups[[#This Row],[SAP GL Account]]","v":518020},{"$f":"budget_form_lookups[[#This Row],[PB-5 Rollup]]","v":"Miscellaneous Operating"},null,null,null,null,null,511670,"Rent-Oth Mach & Eqp","Rent-Other Machinery & Equipment","2012-05-14",{"$f":"_xlfn.XLOOKUP(CI_s[[#This Row],[Commitment item]],AM:AM,AK:AK)","v":"Services"},{"$f":"_xlfn.XLOOKUP(CI_s[[#This Row],[Commitment item]],AM:AM,AN:AN)","v":"Rent-Other Machinery & Equipment"},null,null,null,null,512080,512010,null,null,null,null,null,null,null,null,null,null,null,null,null,"Miscellaneous Operating","Subreceipient Services","6096, 6292, 6291",518020,"Subrecipient-Overtime","??"]
[null,{"$f":"budget_form_lookups[[#This Row],[Long text]]","v":"Subrecipient-Salaries"},518010,{"$f":"budget_form_lookups[[#This Row],[SAP GL Account]]","v":518010},{"$f":"budget_form_lookups[[#This Row],[PB-5 Rollup]]","v":"Miscellaneous Operating"},null,null,null,null,null,511671,"Cloud based subs svc","Cloud based subscription services","2020-08-24",{"$f":"_xlfn.XLOOKUP(CI_s[[#This Row],[Commitment item]],AM:AM,AK:AK)","v":"Hardware/Software Maintenance"},{"$f":"_xlfn.XLOOKUP(CI_s[[#This Row],[Commitment item]],AM:AM,AN:AN)","v":"Cloud Based Subscription Services"},null,null,null,null,512090,512010,null,null,null,null,null,null,null,null,null,null,null,null,null,"Miscellaneous Operating","Subreceipient Services","6096, 6292, 6291",518010,"Subrecipient-Salaries","??"]
[null,{"$f":"budget_form_lookups[[#This Row],[Long text]]","v":"Subrecipient-Travel"},518010,{"$f":"budget_form_lookups[[#This Row],[SAP GL Account]]","v":518110},{"$f":"budget_form_lookups[[#This Row],[PB-5 Rollup]]","v":"Miscellaneous Operating"},null,null,null,null,null,511680,"Adv/Pbc Notifictn Sv","Advertising/Public Notification Services","2012-05-14",{"$f":"_xlfn.XLOOKUP(CI_s[[#This Row],[Commitment item]],AM:AM,AK:AK)","v":"Services"},{"$f":"_xlfn.XLOOKUP(CI_s[[#This Row],[Commitment item]],AM:AM,AN:AN)","v":"Advertising/Public Notification Services"},null,null,null,null,512100,512100,null,null,null,null,null,null,null,null,null,null,null,null,null,"Miscellaneous Operating","Subreceipient Services","6096, 6292, 6291",518110,"Subrecipient-Travel","??"]
[null,{"$f":"budget_form_lookups[[#This Row],[Long text]]","v":"Arbitrage Rebate Payment"},519010,{"$f":"budget_form_lookups[[#This Row],[SAP GL Account]]","v":519010},{"$f":"budget_form_lookups[[#This Row],[PB-5 Rollup]]","v":"Miscellaneous Operating Expenditures"},null,null,null,null,null,511681,"LglReq Adv/Pbc Notif","Legally Required Advert/Public Notif. Service","2018-09-06",{"$f":"_xlfn.XLOOKUP(CI_s[[#This Row],[Commitment item]],AM:AM,AK:AK)","v":"Legally Required Advert/Public Notif. Service"},{"$f":"_xlfn.XLOOKUP(CI_s[[#This Row],[Commitment item]],AM:AM,AN:AN)","v":"Legally Required Advert/Public Notif. Service"},null,null,null,null,512110,512010,null,null,null,null,null,null,null,null,null,null,null,null,null,"Miscellaneous Operating Expenditures","Arbitrage Rebate Payment",7519,519010,"Arbitrage Rebate Payment"]
[null,{"$f":"budget_form_lookups[[#This Row],[Long text]]","v":"County Contribution to Grants"},519880,{"$f":"budget_form_lookups[[#This Row],[SAP GL Account]]","v":519880},{"$f":"budget_form_lookups[[#This Row],[PB-5 Rollup]]","v":"Miscellaneous Operating Expenditures"},null,null,null,null,null,511700,"Cell(Air) Time Usage","Cellular (Air) Time Usage","2012-05-14",{"$f":"_xlfn.XLOOKUP(CI_s[[#This Row],[Commitment item]],AM:AM,AK:AK)","v":"Services"},{"$f":"_xlfn.XLOOKUP(CI_s[[#This Row],[Commitment item]],AM:AM,AN:AN)","v":"Cellular (Air) Time Usage"},null,null,null,null,512115,512010,null,null,null,null,null,null,null,null,null,null,null,null,null,"Miscellaneous Operating Expenditures","County Contribution to Grants",7599,519880,"County Contribution to Grants"]
[null,{"$f":"budget_form_lookups[[#This Row],[Long text]]","v":"Inmate Trust Fund Distribution"},519020,{"$f":"budget_form_lookups[[#This Row],[SAP GL Account]]","v":519020},{"$f":"budget_form_lookups[[#This Row],[PB-5 Rollup]]","v":"Miscellaneous Operating Expenditures"},null,null,null,null,null,511710,"Cell Allowance","Cellular Allowance","2012-05-14",{"$f":"_xlfn.XLOOKUP(CI_s[[#This Row],[Commitment item]],AM:AM,AK:AK)","v":"Cellular Phone Allowance"},{"$f":"_xlfn.XLOOKUP(CI_s[[#This Row],[Commitment item]],AM:AM,AN:AN)","v":"Cellular Phone Allowance"},null,null,null,null,512120,512010,null,null,null,null,null,null,null,null,null,null,null,null,null,"Miscellaneous Operating Expenditures","Inmate Trust Fund Distribution",7524,519020,"Inmate Trust Fund Distribution"]
[null,{"$f":"budget_form_lookups[[#This Row],[Long text]]","v":"Interest Expense"},519030,{"$f":"budget_form_lookups[[#This Row],[SAP GL Account]]","v":519030},{"$f":"budget_form_lookups[[#This Row],[PB-5 Rollup]]","v":"Miscellaneous Operating Expenditures"},null,null,null,null,null,511720,"Long distance","Long distance","2012-05-14",{"$f":"_xlfn.XLOOKUP(CI_s[[#This Row],[Commitment item]],AM:AM,AK:AK)","v":"Services"},{"$f":"_xlfn.XLOOKUP(CI_s[[#This Row],[Commitment item]],AM:AM,AN:AN)","v":"Long distance "},null,null,null,null,513020,513010,null,null,null,null,null,null,null,null,null,null,null,null,null,"Miscellaneous Operating Expenditures","Interest Expense",7510,519030,"Interest Expense"]
[null,{"$f":"budget_form_lookups[[#This Row],[Long text]]","v":"Licenses & Permits"},519040,{"$f":"budget_form_lookups[[#This Row],[SAP GL Account]]","v":519040},{"$f":"budget_form_lookups[[#This Row],[PB-5 Rollup]]","v":"Miscellaneous Operating Expenditures"},null,null,null,null,null,511730,"Postal/Frt out Sv","Postal/Freight out Services","2012-05-14",{"$f":"_xlfn.XLOOKUP(CI_s[[#This Row],[Commitment item]],AM:AM,AK:AK)","v":"Services"},{"$f":"_xlfn.XLOOKUP(CI_s[[#This Row],[Commitment item]],AM:AM,AN:AN)","v":"Postal/Freight out Services"},null,null,null,null,513025,513010,null,null,null,null,null,null,null,null,null,null,null,null,null,"Miscellaneous Operating Expenditures","Licenses & Permits","7512, 7517",519040,"Licenses & Permits"]
[null,{"$f":"budget_form_lookups[[#This Row],[Long text]]","v":"Other Miscellaneous Expenditure"},519080,{"$f":"budget_form_lookups[[#This Row],[SAP GL Account]]","v":519080},{"$f":"budget_form_lookups[[#This Row],[PB-5 Rollup]]","v":"Miscellaneous Operating Expenditures"},null,null,null,null,null,511740,"Trunk Lines","Trunk Lines","2012-05-14",{"$f":"_xlfn.XLOOKUP(CI_s[[#This Row],[Commitment item]],AM:AM,AK:AK)","v":"Services"},{"$f":"_xlfn.XLOOKUP(CI_s[[#This Row],[Commitment item]],AM:AM,AN:AN)","v":"Trunk Lines"},null,null,null,null,513030,513010,null,null,null,null,null,null,null,null,null,null,null,null,null,"Miscellaneous Operating Expenditures","Other Miscellaneous Expenditure",7599,519080,"Other Miscellaneous Expenditure"]
[null,{"$f":"budget_form_lookups[[#This Row],[Long text]]","v":"Prior Year Expenditures/Revenues"},519050,{"$f":"budget_form_lookups[[#This Row],[SAP GL Account]]","v":519050},{"$f":"budget_form_lookups[[#This Row],[PB-5 Rollup]]","v":"Miscellaneous Operating Expenditures"},null,null,null,null,null,511750,"Adm Cost-IDC Post","Administration Costs-IDC Post","2012-05-14",{"$f":"_xlfn.XLOOKUP(CI_s[[#This Row],[Commitment item]],AM:AM,AK:AK)","v":"Administration Costs-IDC Posts"},{"$f":"_xlfn.XLOOKUP(CI_s[[#This Row],[Commitment item]],AM:AM,AN:AN)","v":"Administration Costs-IDC Posts"},null,null,null,null,513040,513010,null,null,null,null,null,null,null,null,null,null,null,null,null,"Miscellaneous Operating Expenditures","Prior Year Expenditures/Revenues",7514,519050,"Prior Year Expenditures/Revenues"]
[null,{"$f":"budget_form_lookups[[#This Row],[Long text]]","v":"Property Taxes"},519060,{"$f":"budget_form_lookups[[#This Row],[SAP GL Account]]","v":519060},{"$f":"budget_form_lookups[[#This Row],[PB-5 Rollup]]","v":"Miscellaneous Operating Expenditures"},null,null,null,null,null,511751,"Adm Cost-Manual","Administration Costs-Manual","2012-05-14",{"$f":"_xlfn.XLOOKUP(CI_s[[#This Row],[Commitment item]],AM:AM,AK:AK)","v":"Administration Costs-Manual"},{"$f":"_xlfn.XLOOKUP(CI_s[[#This Row],[Commitment item]],AM:AM,AN:AN)","v":"Administration Costs-Manual"},null,null,null,null,513050,513010,null,null,null,null,null,null,null,null,null,null,null,null,null,"Miscellaneous Operating Expenditures","Property Taxes",7525,519060,"Property Taxes"]
[null,{"$f":"budget_form_lookups[[#This Row],[Long text]]","v":"Refunds Exp"},519070,{"$f":"budget_form_lookups[[#This Row],[SAP GL Account]]","v":519070},{"$f":"budget_form_lookups[[#This Row],[PB-5 Rollup]]","v":"Miscellaneous Operating Expenditures"},null,null,null,null,null,511760,"AgDues & Memberships","Agency Dues and Memberships","2012-05-14",{"$f":"_xlfn.XLOOKUP(CI_s[[#This Row],[Commitment item]],AM:AM,AK:AK)","v":"Services"},{"$f":"_xlfn.XLOOKUP(CI_s[[#This Row],[Commitment item]],AM:AM,AN:AN)","v":"Agency Dues and Memberships"},null,null,null,null,513060,513010,null,null,null,null,null,null,null,null,null,null,null,null,null,"Miscellaneous Operating Expenditures","Refunds Exp",7515,519070,"Refunds Exp"]
[null,{"$f":"budget_form_lookups[[#This Row],[Long text]]","v":"County Contribution to Grants"},595010,{"$f":"budget_form_lookups[[#This Row],[SAP GL Account]]","v":595010},{"$f":"budget_form_lookups[[#This Row],[PB-5 Rollup]]","v":"Operating Transfers"},null,null,null,null,null,511770,"Custodial Sv","Custodial Services","2012-05-14",{"$f":"_xlfn.XLOOKUP(CI_s[[#This Row],[Commitment item]],AM:AM,AK:AK)","v":"Services"},{"$f":"_xlfn.XLOOKUP(CI_s[[#This Row],[Commitment item]],AM:AM,AN:AN)","v":"Custodial Services"},null,null,null,null,514020,514010,null,null,null,null,null,null,null,null,null,null,null,null,null,"Operating Transfers","County Contribution to Grants",9001,595010,"County Contribution to Grants"]
[null,{"$f":"budget_form_lookups[[#This Row],[Long text]]","v":"Fund Fin Exp Offset-Other-Operating Tran"},595100,{"$f":"budget_form_lookups[[#This Row],[SAP GL Account]]","v":595100},{"$f":"budget_form_lookups[[#This Row],[PB-5 Rollup]]","v":"Operating Transfers"},null,null,null,null,null,511780,"Env Impact Sv","Environmental Impact Services","2012-05-14",{"$f":"_xlfn.XLOOKUP(CI_s[[#This Row],[Commitment item]],AM:AM,AK:AK)","v":"Services"},{"$f":"_xlfn.XLOOKUP(CI_s[[#This Row],[Commitment item]],AM:AM,AN:AN)","v":"Environmental Impact Services"},null,null,null,null,514030,514010,null,null,null,null,null,null,null,null,null,null,null,null,null,"Operating Transfers","Fund Fin Exp Offset-Other-Operating Tran",9041,595100,"Fund Fin Exp Offset-Other-Operating Tran"]
[null,{"$f":"budget_form_lookups[[#This Row],[Long text]]","v":"Fund Fin Rev Offset-Transfers Out"},595099,{"$f":"budget_form_lookups[[#This Row],[SAP GL Account]]","v":595099},{"$f":"budget_form_lookups[[#This Row],[PB-5 Rollup]]","v":"Operating Transfers"},null,null,null,null,null,511790,"Exterminating Sv","Exterminating Services","2012-05-14",{"$f":"_xlfn.XLOOKUP(CI_s[[#This Row],[Commitment item]],AM:AM,AK:AK)","v":"Services"},{"$f":"_xlfn.XLOOKUP(CI_s[[#This Row],[Commitment item]],AM:AM,AN:AN)","v":"Exterminating Services"},null,null,null,null,514040,514040,"COAF",null,null,null,null,null,null,null,null,null,null,null,null,"Operating Transfers","Fund Fin Rev Offset-Transfers Out",9041,595099,"Fund Fin Rev Offset-Transfers Out"]
[null,{"$f":"budget_form_lookups[[#This Row],[Long text]]","v":"Transfers to After School Youth Enrchmt"},590149,{"$f":"budget_form_lookups[[#This Row],[SAP GL Account]]","v":590149},{"$f":"budget_form_lookups[[#This Row],[PB-5 Rollup]]","v":"Operating Transfers"},null,null,null,null,null,511800,"Ext Plc Pris/JVs","External Placement Prisoners/Juveniles","2012-05-14",{"$f":"_xlfn.XLOOKUP(CI_s[[#This Row],[Commitment item]],AM:AM,AK:AK)","v":"External Placement Prisoners/Juveniles"},{"$f":"_xlfn.XLOOKUP(CI_s[[#This Row],[Commitment item]],AM:AM,AN:AN)","v":"External Placement Prisoners/Juveniles"},null,null,null,null,514045,514040,null,null,null,null,null,null,null,null,null,null,null,null,null,"Operating Transfers","Transfers to After School Youth Enrchmt",9047,590149,"Transfers to After School Youth Enrchmt"]
[null,{"$f":"budget_form_lookups[[#This Row],[Long text]]","v":"Transfers to Balcones Canyonland Pres Fd"},590115,{"$f":"budget_form_lookups[[#This Row],[SAP GL Account]]","v":590115},{"$f":"budget_form_lookups[[#This Row],[PB-5 Rollup]]","v":"Operating Transfers"},null,null,null,null,null,511810,"Hdw/Sfw Install Sv","Hardware/Software Install Services","2012-05-14",{"$f":"_xlfn.XLOOKUP(CI_s[[#This Row],[Commitment item]],AM:AM,AK:AK)","v":"Services"},{"$f":"_xlfn.XLOOKUP(CI_s[[#This Row],[Commitment item]],AM:AM,AN:AN)","v":"Hardware/Software Install Services"},null,null,null,null,514046,514010,null,null,null,null,null,null,null,null,null,null,null,null,null,"Operating Transfers","Transfers to Balcones Canyonland Pres Fd",9038,590115,"Transfers to Balcones Canyonland Pres Fd"]
[null,{"$f":"budget_form_lookups[[#This Row],[Long text]]","v":"Transfers to Child Welfare Jury Donations Fund"},590155,{"$f":"budget_form_lookups[[#This Row],[SAP GL Account]]","v":590155},{"$f":"budget_form_lookups[[#This Row],[PB-5 Rollup]]","v":"Operating Transfers"},null,null,null,null,null,511819,"Hauling","Hauling","2015-04-08",{"$f":"_xlfn.XLOOKUP(CI_s[[#This Row],[Commitment item]],AM:AM,AK:AK)","v":"Services"},{"$f":"_xlfn.XLOOKUP(CI_s[[#This Row],[Commitment item]],AM:AM,AN:AN)","v":"Hauling"},null,null,null,null,514050,514040,null,null,null,null,null,null,null,null,null,null,null,null,null,"Operating Transfers","Transfers to After School Youth Enrchmt",9047,590155,"Transfers to Child Welfare Jury Donations Fund"]
[null,{"$f":"budget_form_lookups[[#This Row],[Long text]]","v":"Transfers to Consolidated Debt Service Fd"},593001,{"$f":"budget_form_lookups[[#This Row],[SAP GL Account]]","v":593001},{"$f":"budget_form_lookups[[#This Row],[PB-5 Rollup]]","v":"Operating Transfers"},null,null,null,null,null,511820,"NonHz Removal","Non Hazardous Waste Hauling/Removal","2012-05-14",{"$f":"_xlfn.XLOOKUP(CI_s[[#This Row],[Commitment item]],AM:AM,AK:AK)","v":"Services"},{"$f":"_xlfn.XLOOKUP(CI_s[[#This Row],[Commitment item]],AM:AM,AN:AN)","v":"Non Hazardous Waste Hauling/Removal"},null,null,null,null,514060,514040,null,null,null,null,null,null,null,null,null,null,null,null,null,"Operating Transfers","Transfers to Consolidated Debt Service ",9394,593001,"Transfers to Consolidated Debt Service Fd"]
[null,{"$f":"budget_form_lookups[[#This Row],[Long text]]","v":"Transfers to Contractual Capital Proj Fd"},594050,{"$f":"budget_form_lookups[[#This Row],[SAP GL Account]]","v":594050},{"$f":"budget_form_lookups[[#This Row],[PB-5 Rollup]]","v":"Operating Transfers"},null,null,null,null,null,511830,"Hz Mat Removal","Hazardous Material Removal","2012-05-14",{"$f":"_xlfn.XLOOKUP(CI_s[[#This Row],[Commitment item]],AM:AM,AK:AK)","v":"Services"},{"$f":"_xlfn.XLOOKUP(CI_s[[#This Row],[Commitment item]],AM:AM,AN:AN)","v":"Hazardous Material Removal"},null,null,null,null,514070,514040,null,null,null,null,null,null,null,null,null,null,null,null,null,"Operating Transfers","Transfers to Contractual Capital Proj Fd",9475,594050,"Transfers to Contractual Capital Proj Fd"]
[null,{"$f":"budget_form_lookups[[#This Row],[Long text]]","v":"Transfers to Courthouse Security Fd"},590111,{"$f":"budget_form_lookups[[#This Row],[SAP GL Account]]","v":590111},{"$f":"budget_form_lookups[[#This Row],[PB-5 Rollup]]","v":"Operating Transfers"},null,null,null,null,null,511840,"Lab Services","Lab Services","2012-05-14",{"$f":"_xlfn.XLOOKUP(CI_s[[#This Row],[Commitment item]],AM:AM,AK:AK)","v":"Services"},{"$f":"_xlfn.XLOOKUP(CI_s[[#This Row],[Commitment item]],AM:AM,AN:AN)","v":"Lab Services"},null,null,null,null,514080,514040,null,null,null,null,null,null,null,null,null,null,null,null,null,"Operating Transfers","Transfers to Courthouse Security Fd",9031,590111,"Transfers to Courthouse Security Fd"]
[null,{"$f":"budget_form_lookups[[#This Row],[Long text]]","v":"Transfers to Debt Service-Taxable Fd"},593005,{"$f":"budget_form_lookups[[#This Row],[SAP GL Account]]","v":593005},{"$f":"budget_form_lookups[[#This Row],[PB-5 Rollup]]","v":"Operating Transfers"},null,null,null,null,null,511850,"IntrprtnTrnsltnSvOth","Interpretation/Translation Services-Other","2012-05-14",{"$f":"_xlfn.XLOOKUP(CI_s[[#This Row],[Commitment item]],AM:AM,AK:AK)","v":"Services"},{"$f":"_xlfn.XLOOKUP(CI_s[[#This Row],[Commitment item]],AM:AM,AN:AN)","v":"Interpretation/Translation  Services-Other"},null,null,null,null,514090,514040,null,null,null,null,null,null,null,null,null,null,null,null,null,"Operating Transfers","Transfers to Debt Service-Taxable Fd",9396,593005,"Transfers to Debt Service-Taxable Fd"]
[null,{"$f":"budget_form_lookups[[#This Row],[Long text]]","v":"Transfers to Dispute Resolution Center Fd"},590104,{"$f":"budget_form_lookups[[#This Row],[SAP GL Account]]","v":590104},{"$f":"budget_form_lookups[[#This Row],[PB-5 Rollup]]","v":"Operating Transfers"},null,null,null,null,null,511855,"Omni Services","Omni Services","2020-09-14",{"$f":"_xlfn.XLOOKUP(CI_s[[#This Row],[Commitment item]],AM:AM,AK:AK)","v":"Services"},{"$f":"_xlfn.XLOOKUP(CI_s[[#This Row],[Commitment item]],AM:AM,AN:AN)","v":"Omni Services"},null,null,null,null,514095,514040,null,null,null,null,null,null,null,null,null,null,null,null,null,"Operating Transfers","Transfers to Dispute Resolution Center Fd",9008,590104,"Transfers to Dispute Resolution Center Fd"]
[null,{"$f":"budget_form_lookups[[#This Row],[Long text]]","v":"Transfers to Employee Health Benefit Fd"},598956,{"$f":"budget_form_lookups[[#This Row],[SAP GL Account]]","v":598956},{"$f":"budget_form_lookups[[#This Row],[PB-5 Rollup]]","v":"Operating Transfers"},null,null,null,null,null,511856,"LCRA Oversight Fee","LCRA Oversight Fee","2021-10-19",{"$f":"_xlfn.XLOOKUP(CI_s[[#This Row],[Commitment item]],AM:AM,AK:AK)","v":"Services"},{"$f":"_xlfn.XLOOKUP(CI_s[[#This Row],[Commitment item]],AM:AM,AN:AN)","v":"LCRA Oversight Fee"},null,null,null,null,514100,514010,null,null,null,null,null,null,null,null,null,null,null,null,null,"Operating Transfers","Transfers to Employee Health Benefit Fd",9041,598956,"Transfers to Employee Health Benefit Fd"]
[null,{"$f":"budget_form_lookups[[#This Row],[Long text]]","v":"Transfers to General Fd"},590001,{"$f":"budget_form_lookups[[#This Row],[SAP GL Account]]","v":590001},{"$f":"budget_form_lookups[[#This Row],[PB-5 Rollup]]","v":"Operating Transfers"},null,null,null,null,null,511860,"Invstgtv Sv","Investigative Services","2012-05-14",{"$f":"_xlfn.XLOOKUP(CI_s[[#This Row],[Commitment item]],AM:AM,AK:AK)","v":"Investigative Services"},{"$f":"_xlfn.XLOOKUP(CI_s[[#This Row],[Commitment item]],AM:AM,AN:AN)","v":"Investigative Services"},null,null,null,null,514110,514010,null,null,null,null,null,null,null,null,null,null,null,null,"Other Financing Uses","Operating Transfers","Transfers to General Fd",9004,590001,"Transfers to General Fd"]
[null,{"$f":"budget_form_lookups[[#This Row],[Long text]]","v":"Transfers to Juv Justice Alternative Edu"},590107,{"$f":"budget_form_lookups[[#This Row],[SAP GL Account]]","v":590107},{"$f":"budget_form_lookups[[#This Row],[PB-5 Rollup]]","v":"Operating Transfers"},null,null,null,null,null,511870,"IT Cslt","IT Consulting","2012-05-14",{"$f":"_xlfn.XLOOKUP(CI_s[[#This Row],[Commitment item]],AM:AM,AK:AK)","v":"Services"},{"$f":"_xlfn.XLOOKUP(CI_s[[#This Row],[Commitment item]],AM:AM,AN:AN)","v":"IT Consulting"},null,null,null,null,514115,514010,null,null,null,null,null,null,null,null,null,null,null,null,null,"Operating Transfers","Transfers to Juv Justice Alternative Edu",9018,590107,"Transfers to Juv Justice Alternative Edu"]
[null,{"$f":"budget_form_lookups[[#This Row],[Long text]]","v":"Transfers to Juvenile Deferred Prosecution Fd"},590114,{"$f":"budget_form_lookups[[#This Row],[SAP GL Account]]","v":590114},{"$f":"budget_form_lookups[[#This Row],[PB-5 Rollup]]","v":"Operating Transfers"},null,null,null,null,null,511875,"Info Retrieval Svs","Information Retrieval/Data Services","2012-07-05",{"$f":"_xlfn.XLOOKUP(CI_s[[#This Row],[Commitment item]],AM:AM,AK:AK)","v":"Services"},{"$f":"_xlfn.XLOOKUP(CI_s[[#This Row],[Commitment item]],AM:AM,AN:AN)","v":"Info Retrieval Svs"},null,null,null,null,514120,514010,null,null,null,null,null,null,null,null,null,null,null,null,null,"Operating Transfers","Transfers to Juvenile Deferred Prosecution Fd",9037,590114,"Transfers to Juvenile Deferred Prosecution Fd"]
[null,{"$f":"budget_form_lookups[[#This Row],[Long text]]","v":"Transfers to OOG Criminal Justice Division-StateFd"},{"$f":"IFERROR(INDEX(V:V,MATCH(D258,U:U,0)),D258)","v":592058},{"$f":"budget_form_lookups[[#This Row],[SAP GL Account]]","v":592058},{"$f":"budget_form_lookups[[#This Row],[PB-5 Rollup]]","v":"Operating Transfers"},null,null,null,null,null,511880,"Laundry Sv","Laundry Services","2012-05-14",{"$f":"_xlfn.XLOOKUP(CI_s[[#This Row],[Commitment item]],AM:AM,AK:AK)","v":"Services"},{"$f":"_xlfn.XLOOKUP(CI_s[[#This Row],[Commitment item]],AM:AM,AN:AN)","v":"Laundry Services"},null,null,null,null,514130,514010,null,null,null,null,null,null,null,null,null,null,null,null,null,"Operating Transfers","Transfers to OOG Criminal Justice Division-StateFd",null,592058,"Transfers to OOG Criminal Justice Division-StateFd"]
[null,{"$f":"budget_form_lookups[[#This Row],[Long text]]","v":"Transfers to Other Funds"},595020,{"$f":"budget_form_lookups[[#This Row],[SAP GL Account]]","v":595020},{"$f":"budget_form_lookups[[#This Row],[PB-5 Rollup]]","v":"Operating Transfers"},null,null,null,null,null,511885,"Pool Operation Serv","Pool Operation Services","2022-01-06",{"$f":"_xlfn.XLOOKUP(CI_s[[#This Row],[Commitment item]],AM:AM,AK:AK)","v":"Services"},{"$f":"_xlfn.XLOOKUP(CI_s[[#This Row],[Commitment item]],AM:AM,AN:AN)","v":"Pool Operation Services"},null,null,null,null,514140,514010,null,null,null,null,null,null,null,null,null,null,null,null,null,"Operating Transfers","Transfers to Other Funds",9005,595020,"Transfers to Other Funds"]
[null,{"$f":"budget_form_lookups[[#This Row],[Long text]]","v":"Transfers to Professional Prosecuters Fd"},590122,{"$f":"budget_form_lookups[[#This Row],[SAP GL Account]]","v":590122},{"$f":"budget_form_lookups[[#This Row],[PB-5 Rollup]]","v":"Operating Transfers"},null,null,null,null,null,511890,"Oth Cslt Sv","Other Consulting Services","2012-05-14",{"$f":"_xlfn.XLOOKUP(CI_s[[#This Row],[Commitment item]],AM:AM,AK:AK)","v":"Services"},{"$f":"_xlfn.XLOOKUP(CI_s[[#This Row],[Commitment item]],AM:AM,AN:AN)","v":"Other Consulting Services"},null,null,null,null,514150,514010,null,null,null,null,null,null,null,null,null,null,null,null,null,"Operating Transfers","Transfers to Professional Prosecuters Fd",9047,590122,"Transfers to Professional Prosecuters Fd"]
[null,{"$f":"budget_form_lookups[[#This Row],[Long text]]","v":"Transfers to Rd and Bridge Fd"},590145,{"$f":"budget_form_lookups[[#This Row],[SAP GL Account]]","v":590145},{"$f":"budget_form_lookups[[#This Row],[PB-5 Rollup]]","v":"Operating Transfers"},null,null,null,null,null,511900,"Oth Sv","Other Services","2012-05-14",{"$f":"_xlfn.XLOOKUP(CI_s[[#This Row],[Commitment item]],AM:AM,AK:AK)","v":"Services"},{"$f":"_xlfn.XLOOKUP(CI_s[[#This Row],[Commitment item]],AM:AM,AN:AN)","v":"Other Services"},null,null,null,null,514160,514010,null,null,null,null,null,null,null,null,null,null,null,null,null,"Operating Transfers","Transfers to Rd and Bridge Fd",null,590145,"Transfers to Rd and Bridge Fd"]
[null,{"$f":"budget_form_lookups[[#This Row],[Long text]]","v":"Transfers to Rec Mgmt & Pres Fd"},590110,{"$f":"budget_form_lookups[[#This Row],[SAP GL Account]]","v":590110},{"$f":"budget_form_lookups[[#This Row],[PB-5 Rollup]]","v":"Operating Transfers"},null,null,null,null,null,511910,"Printing Sv","Printing Services","2012-05-14",{"$f":"_xlfn.XLOOKUP(CI_s[[#This Row],[Commitment item]],AM:AM,AK:AK)","v":"Services"},{"$f":"_xlfn.XLOOKUP(CI_s[[#This Row],[Commitment item]],AM:AM,AN:AN)","v":"Printing Services"},null,null,null,null,514170,514010,null,null,null,null,null,null,null,null,null,null,null,null,null,"Operating Transfers","Transfers to Rec Mgmt & Pres Fd",9031,590110,"Transfers to Rec Mgmt & Pres Fd"]
[null,{"$f":"budget_form_lookups[[#This Row],[Long text]]","v":"Transfers to Refunding Debt Service Fd"},593002,{"$f":"budget_form_lookups[[#This Row],[SAP GL Account]]","v":593002},{"$f":"budget_form_lookups[[#This Row],[PB-5 Rollup]]","v":"Operating Transfers"},null,null,null,null,null,511920,"Disposal Sv","Disposal Service","2012-05-14",{"$f":"_xlfn.XLOOKUP(CI_s[[#This Row],[Commitment item]],AM:AM,AK:AK)","v":"Services"},{"$f":"_xlfn.XLOOKUP(CI_s[[#This Row],[Commitment item]],AM:AM,AN:AN)","v":"Disposal Service"},null,null,null,null,514180,514010,null,null,null,null,null,null,null,null,null,null,null,null,null,"Operating Transfers","Transfers to Refunding Debt Service",9393,593002,"Transfers to Refunding Debt Service Fd"]
[null,{"$f":"budget_form_lookups[[#This Row],[Long text]]","v":"Transfers to Self Insurance Fd"},598955,{"$f":"budget_form_lookups[[#This Row],[SAP GL Account]]","v":598955},{"$f":"budget_form_lookups[[#This Row],[PB-5 Rollup]]","v":"Operating Transfers"},null,null,null,null,null,511930,"Rmb Cnstn Sv","Reimbursable Construction Services","2012-05-14",{"$f":"_xlfn.XLOOKUP(CI_s[[#This Row],[Commitment item]],AM:AM,AK:AK)","v":"Services"},{"$f":"_xlfn.XLOOKUP(CI_s[[#This Row],[Commitment item]],AM:AM,AN:AN)","v":"Reimbursable Construction Services"},null,null,null,null,514190,514010,null,null,null,null,null,null,null,null,null,null,null,null,null,"Operating Transfers","Transfers to Self Insurance Fd",9041,598955,"Transfers to Self Insurance Fd"]
[null,{"$f":"budget_form_lookups[[#This Row],[Long text]]","v":"Transfers to Texas Dept of Transportation Fd"},592031,{"$f":"budget_form_lookups[[#This Row],[SAP GL Account]]","v":592031},{"$f":"budget_form_lookups[[#This Row],[PB-5 Rollup]]","v":"Operating Transfers"},null,null,null,null,null,511940,"Security Sv","Security Services","2012-05-14",{"$f":"_xlfn.XLOOKUP(CI_s[[#This Row],[Commitment item]],AM:AM,AK:AK)","v":"Services"},{"$f":"_xlfn.XLOOKUP(CI_s[[#This Row],[Commitment item]],AM:AM,AN:AN)","v":"Security Services"},null,null,null,null,514200,514010,null,null,null,null,null,null,null,null,null,null,null,null,null,"Operating Transfers","Transfers to Texas Dept of Transportation Fd",null,592031,"Transfers to Texas Dept of Transportation Fd"]
[null,{"$f":"budget_form_lookups[[#This Row],[Long text]]","v":"Transfers to Texas Water Dev Board-Fed Cap Fd"},592041,{"$f":"budget_form_lookups[[#This Row],[SAP GL Account]]","v":592041},{"$f":"budget_form_lookups[[#This Row],[PB-5 Rollup]]","v":"Operating Transfers"},null,null,null,null,null,511950,"TmpPrsSv-ClrMgrlExec","Temp Personnel Services-Clerical/Managerial/Exec","2012-05-14",{"$f":"_xlfn.XLOOKUP(CI_s[[#This Row],[Commitment item]],AM:AM,AK:AK)","v":"Services"},{"$f":"_xlfn.XLOOKUP(CI_s[[#This Row],[Commitment item]],AM:AM,AN:AN)","v":"Temp Personnel Services-Clerical/Managerial/Exec"},null,null,null,null,514205,514040,null,null,null,null,null,null,null,null,null,null,null,null,null,"Operating Transfers","Transfers to Texas Water Dev Board-Fed Cap Fd",null,592041,"Transfers to Texas Water Dev Board-Fed Cap Fd"]
[null,{"$f":"budget_form_lookups[[#This Row],[Long text]]","v":"Transfers to Travis Co Bee Cave Rd Dist 1 Fd"},593004,{"$f":"budget_form_lookups[[#This Row],[SAP GL Account]]","v":593004},{"$f":"budget_form_lookups[[#This Row],[PB-5 Rollup]]","v":"Operating Transfers"},null,null,null,null,null,511960,"Uniform Rental Sv","Uniform Rental Service","2012-05-14",{"$f":"_xlfn.XLOOKUP(CI_s[[#This Row],[Commitment item]],AM:AM,AK:AK)","v":"Services"},{"$f":"_xlfn.XLOOKUP(CI_s[[#This Row],[Commitment item]],AM:AM,AN:AN)","v":"Uniform Rental Service"},null,null,null,null,514210,514010,null,null,null,null,null,null,null,null,null,null,null,null,null,"Operating Transfers","Transfers to Travis Cnty Bee Cave Rd Dist 1 Fd",9396,593004,"Transfers to Travis Co Bee Cave Rd Dist 1 Fd"]
[null,{"$f":"budget_form_lookups[[#This Row],[Long text]]","v":"Transfers to Truancy Court Fd"},590126,{"$f":"budget_form_lookups[[#This Row],[SAP GL Account]]","v":590126},{"$f":"budget_form_lookups[[#This Row],[PB-5 Rollup]]","v":"Operating Transfers"},null,null,null,null,null,511971,"Oth Pur Sv-CO","Other Purchased Services-Conversion","2012-05-14",{"$f":"_xlfn.XLOOKUP(CI_s[[#This Row],[Commitment item]],AM:AM,AK:AK)","v":"Services"},{"$f":"_xlfn.XLOOKUP(CI_s[[#This Row],[Commitment item]],AM:AM,AN:AN)","v":"Other Purchased Services - Conversion"},null,null,null,null,514220,514010,null,null,null,null,null,null,null,null,null,null,null,null,null,"Operating Transfers","Transfers to Truancy Court Fd",9047,590126,"Transfers to Truancy Court Fd"]
[null,{"$f":"budget_form_lookups[[#This Row],[Long text]]","v":"Transfers to Tx Dpt of Crm Js Cmty Justice Asst Di"},592045,{"$f":"budget_form_lookups[[#This Row],[SAP GL Account]]","v":592045},{"$f":"budget_form_lookups[[#This Row],[PB-5 Rollup]]","v":"Operating Transfers"},null,null,null,null,null,511972,"Oth Pf Sv-CO","Other Professional Services-Conversion","2012-05-14",{"$f":"_xlfn.XLOOKUP(CI_s[[#This Row],[Commitment item]],AM:AM,AK:AK)","v":"Services"},{"$f":"_xlfn.XLOOKUP(CI_s[[#This Row],[Commitment item]],AM:AM,AN:AN)","v":"Other Professional Services - Conversion"},null,null,null,null,514230,514010,null,null,null,null,null,null,null,null,null,null,null,null,null,"Operating Transfers","Transfers to Tx Dpt of Crm Js Cmty Justice Asst Di",null,592045,"Transfers to Tx Dpt of Crm Js Cmty Justice Asst Di"]
[null,{"$f":"budget_form_lookups[[#This Row],[Long text]]","v":"Transfers to Tx Exposition and Heritage"},590003,{"$f":"budget_form_lookups[[#This Row],[SAP GL Account]]","v":590003},{"$f":"budget_form_lookups[[#This Row],[PB-5 Rollup]]","v":"Operating Transfers"},null,null,null,null,null,511973,"Cnstn Sv","Construction Services","2012-05-14",{"$f":"_xlfn.XLOOKUP(CI_s[[#This Row],[Commitment item]],AM:AM,AK:AK)","v":"Services"},{"$f":"_xlfn.XLOOKUP(CI_s[[#This Row],[Commitment item]],AM:AM,AN:AN)","v":"Construction Services"},null,null,null,null,514240,514010,null,null,null,null,null,null,null,null,null,null,null,null,null,"Operating Transfers","Transfers to Tx Exposition and Heritage",9051,590003,"Transfers to Tx Exposition and Heritage"]
[null,{"$f":"budget_form_lookups[[#This Row],[Long text]]","v":"Transfers to Voter Registration Fd"},590105,{"$f":"budget_form_lookups[[#This Row],[SAP GL Account]]","v":590105},{"$f":"budget_form_lookups[[#This Row],[PB-5 Rollup]]","v":"Operating Transfers"},null,null,null,null,null,511980,"Wt Rsc Dev Sv","Water Resource Dev Sv","2012-05-14",{"$f":"_xlfn.XLOOKUP(CI_s[[#This Row],[Commitment item]],AM:AM,AK:AK)","v":"Services"},{"$f":"_xlfn.XLOOKUP(CI_s[[#This Row],[Commitment item]],AM:AM,AN:AN)","v":"Water Resource Dev Sv"},null,null,null,null,514249,514010,null,null,null,null,null,null,null,null,null,null,null,null,null,"Operating Transfers","Transfers to Voter Registration Fd",9018,590105,"Transfers to Voter Registration Fd"]
[null,{"$f":"budget_form_lookups[[#This Row],[Long text]]","v":"Transfers-Grant Match - Conversion"},595030,{"$f":"budget_form_lookups[[#This Row],[SAP GL Account]]","v":595030},{"$f":"budget_form_lookups[[#This Row],[PB-5 Rollup]]","v":"Operating Transfers"},null,null,null,null,null,512010,"Travel Enc","Travel Encumbrance","2012-05-14",{"$f":"_xlfn.XLOOKUP(CI_s[[#This Row],[Commitment item]],AM:AM,AK:AK)","v":"Travel & Prof Development"},{"$f":"_xlfn.XLOOKUP(CI_s[[#This Row],[Commitment item]],AM:AM,AN:AN)","v":"Travel Encumbrances"},null,null,null,null,514250,514010,null,null,null,null,null,null,null,null,null,null,null,null,null,"Operating Transfers","Transfers-Grant Match - Conversion",9041,595030,"Transfers-Grant Match - Conversion"]
[null,{"$f":"budget_form_lookups[[#This Row],[Long text]]","v":"Trfrs to Perm Imprvmnt Bds Series 2000-Parks"},594076,{"$f":"budget_form_lookups[[#This Row],[SAP GL Account]]","v":594076},{"$f":"budget_form_lookups[[#This Row],[PB-5 Rollup]]","v":"Operating Transfers"},null,null,null,null,null,512020,"Inhse Trng/Onlin Crs","Inhouse Training/Online Courses","2012-05-14",{"$f":"_xlfn.XLOOKUP(CI_s[[#This Row],[Commitment item]],AM:AM,AK:AK)","v":"Travel & Prof Development"},{"$f":"_xlfn.XLOOKUP(CI_s[[#This Row],[Commitment item]],AM:AM,AN:AN)","v":"Inhouse Training/Online Courses"},null,null,null,null,514260,514010,null,null,null,null,null,null,null,null,null,null,null,null,null,"Operating Transfers","Trfrs to Perm Imprvmnt Bds Series 2000-Parks",null,594076,"Trfrs to Perm Imprvmnt Bds Series 2000-Parks"]
[null,{"$f":"budget_form_lookups[[#This Row],[Long text]]","v":"Trfrs to UnLtd Tax Rd Bds Series 1998A"},594077,{"$f":"budget_form_lookups[[#This Row],[SAP GL Account]]","v":594077},{"$f":"budget_form_lookups[[#This Row],[PB-5 Rollup]]","v":"Operating Transfers"},null,null,null,null,null,512030,"Pf Licenses","Professional Licenses","2012-05-14",{"$f":"_xlfn.XLOOKUP(CI_s[[#This Row],[Commitment item]],AM:AM,AK:AK)","v":"Travel & Prof Development"},{"$f":"_xlfn.XLOOKUP(CI_s[[#This Row],[Commitment item]],AM:AM,AN:AN)","v":"Professional Licenses"},null,null,null,null,515001,515010,null,null,null,null,null,null,null,null,null,null,null,null,null,"Operating Transfers","Trfrs to UnLtd Tax Rd Bds Series 1998A",null,594077,"Trfrs to UnLtd Tax Rd Bds Series 1998A"]
[null,{"$f":"budget_form_lookups[[#This Row],[Long text]]","v":"Trfrs to UnLtd Tax Rd Bds Series 1999"},594078,{"$f":"budget_form_lookups[[#This Row],[SAP GL Account]]","v":594078},{"$f":"budget_form_lookups[[#This Row],[PB-5 Rollup]]","v":"Operating Transfers"},null,null,null,null,null,512040,"Pf Membership","Professional Membership","2012-05-14",{"$f":"_xlfn.XLOOKUP(CI_s[[#This Row],[Commitment item]],AM:AM,AK:AK)","v":"Travel & Prof Development"},{"$f":"_xlfn.XLOOKUP(CI_s[[#This Row],[Commitment item]],AM:AM,AN:AN)","v":"Professional Membership"},null,null,null,null,515011,515010,null,null,null,null,null,null,null,null,null,null,null,null,null,"Operating Transfers","Trfrs to UnLtd Tax Rd Bds Series 1999",null,594078,"Trfrs to UnLtd Tax Rd Bds Series 1999"]
[null,{"$f":"budget_form_lookups[[#This Row],[Long text]]","v":"Trfrs to UnLtd Tax Rd Bds Series 2000"},594079,{"$f":"budget_form_lookups[[#This Row],[SAP GL Account]]","v":594079},{"$f":"budget_form_lookups[[#This Row],[PB-5 Rollup]]","v":"Operating Transfers"},null,null,null,null,null,512050,"Rg Confs/Sems","Registration Conferences/Seminars","2012-05-14",{"$f":"_xlfn.XLOOKUP(CI_s[[#This Row],[Commitment item]],AM:AM,AK:AK)","v":"Travel & Prof Development"},{"$f":"_xlfn.XLOOKUP(CI_s[[#This Row],[Commitment item]],AM:AM,AN:AN)","v":"Registration Conferences/Seminars"},null,null,null,null,515012,515010,null,null,null,null,null,null,null,null,null,null,null,null,null,"Operating Transfers","Trfrs to UnLtd Tax Rd Bds Series 2000",null,594079,"Trfrs to UnLtd Tax Rd Bds Series 2000"]
[null,{"$f":"budget_form_lookups[[#This Row],[Long text]]","v":"Trfrs to UnLtd Tax Rd Bds Series 2001"},594080,{"$f":"budget_form_lookups[[#This Row],[SAP GL Account]]","v":594080},{"$f":"budget_form_lookups[[#This Row],[PB-5 Rollup]]","v":"Operating Transfers"},null,null,null,null,null,512060,"Subs & Pbcations","Subscriptions & Publications","2012-05-14",{"$f":"_xlfn.XLOOKUP(CI_s[[#This Row],[Commitment item]],AM:AM,AK:AK)","v":"Travel & Prof Development"},{"$f":"_xlfn.XLOOKUP(CI_s[[#This Row],[Commitment item]],AM:AM,AN:AN)","v":"Subscriptions & Publications"},null,null,null,null,515042,515010,null,null,null,null,null,null,null,null,null,null,null,null,null,"Operating Transfers","Trfrs to UnLtd Tax Rd Bds Series 2001",null,594080,"Trfrs to UnLtd Tax Rd Bds Series 2001"]
[null,{"$f":"budget_form_lookups[[#This Row],[Long text]]","v":"Actuarial Services"},511010,{"$f":"budget_form_lookups[[#This Row],[SAP GL Account]]","v":511180},{"$f":"budget_form_lookups[[#This Row],[PB-5 Rollup]]","v":"Services"},null,null,null,null,null,512070,"Trng Mat/Books","Training Material/Books","2012-05-14",{"$f":"_xlfn.XLOOKUP(CI_s[[#This Row],[Commitment item]],AM:AM,AK:AK)","v":"Travel & Prof Development"},{"$f":"_xlfn.XLOOKUP(CI_s[[#This Row],[Commitment item]],AM:AM,AN:AN)","v":"Training Material/Books"},null,null,null,null,515020,515010,null,null,null,null,null,null,null,null,null,null,null,null,null,"Services","Services",4001,511180,"Actuarial Services"]
[null,{"$f":"budget_form_lookups[[#This Row],[Long text]]","v":"Administration Costs-IDC Posts"},511750,{"$f":"budget_form_lookups[[#This Row],[SAP GL Account]]","v":511750},{"$f":"budget_form_lookups[[#This Row],[PB-5 Rollup]]","v":"Services"},null,null,null,null,null,512080,"Trng Fcl-RentExp","Training Facility-Rental Expense","2012-05-14",{"$f":"_xlfn.XLOOKUP(CI_s[[#This Row],[Commitment item]],AM:AM,AK:AK)","v":"Travel & Prof Development"},{"$f":"_xlfn.XLOOKUP(CI_s[[#This Row],[Commitment item]],AM:AM,AN:AN)","v":"Training Facility - Rental Expense"},null,null,null,null,515030,515010,null,null,null,null,null,null,null,null,null,null,null,null,null,"Services","Administration Costs-IDC Posts",7501,511750,"Administration Costs-IDC Posts"]
[null,{"$f":"budget_form_lookups[[#This Row],[Long text]]","v":"Administration Costs-Manual"},511751,{"$f":"budget_form_lookups[[#This Row],[SAP GL Account]]","v":511751},{"$f":"budget_form_lookups[[#This Row],[PB-5 Rollup]]","v":"Services"},null,null,null,null,null,512090,"Travel-Lodging Meals","Travel-Lodging Meals & Other","2012-05-14",{"$f":"_xlfn.XLOOKUP(CI_s[[#This Row],[Commitment item]],AM:AM,AK:AK)","v":"Travel & Prof Development"},{"$f":"_xlfn.XLOOKUP(CI_s[[#This Row],[Commitment item]],AM:AM,AN:AN)","v":"Travel-Lodging  Meals & Other"},null,null,null,null,515040,515010,null,null,null,null,null,null,null,null,null,null,null,null,null,"Services","Administration Costs-Manual",7520,511751,"Administration Costs-Manual"]
[null,{"$f":"budget_form_lookups[[#This Row],[Long text]]","v":"Advertising/Public Notification Services"},511010,{"$f":"budget_form_lookups[[#This Row],[SAP GL Account]]","v":511680},{"$f":"budget_form_lookups[[#This Row],[PB-5 Rollup]]","v":"Services"},null,null,null,null,null,512100,"Routine Mileage","Routine Mileage","2012-05-14",{"$f":"_xlfn.XLOOKUP(CI_s[[#This Row],[Commitment item]],AM:AM,AK:AK)","v":"Travel-Mileage"},{"$f":"_xlfn.XLOOKUP(CI_s[[#This Row],[Commitment item]],AM:AM,AN:AN)","v":"Routine Mileage"},null,null,null,null,515050,515010,null,null,null,null,null,null,null,null,null,null,null,null,null,"Services","Services",6029,511680,"Advertising/Public Notification Services"]
[null,{"$f":"budget_form_lookups[[#This Row],[Long text]]","v":"Agency Dues and Memberships"},511010,{"$f":"budget_form_lookups[[#This Row],[SAP GL Account]]","v":511760},{"$f":"budget_form_lookups[[#This Row],[PB-5 Rollup]]","v":"Services"},null,null,null,null,null,512110,"Travel Mileage","Travel Mileage","2012-07-18",{"$f":"_xlfn.XLOOKUP(CI_s[[#This Row],[Commitment item]],AM:AM,AK:AK)","v":"Travel & Prof Development"},{"$f":"_xlfn.XLOOKUP(CI_s[[#This Row],[Commitment item]],AM:AM,AN:AN)","v":"Travel-Mileage"},null,null,null,null,515060,515010,null,null,null,null,null,null,null,null,null,null,null,null,null,"Services","Services",7002,511760,"Agency Dues and Memberships"]
[null,{"$f":"budget_form_lookups[[#This Row],[Long text]]","v":"Air Transport Services"},511010,{"$f":"budget_form_lookups[[#This Row],[SAP GL Account]]","v":511490},{"$f":"budget_form_lookups[[#This Row],[PB-5 Rollup]]","v":"Services"},null,null,null,null,null,512115,"Trvl-Imputed Income","Travel Imputed Income","2022-08-11",{"$f":"_xlfn.XLOOKUP(CI_s[[#This Row],[Commitment item]],AM:AM,AK:AK)","v":"Travel & Prof Development"},{"$f":"_xlfn.XLOOKUP(CI_s[[#This Row],[Commitment item]],AM:AM,AN:AN)","v":"Travel Imputed Income"},null,null,null,null,515110,515010,null,null,null,null,null,null,null,null,null,null,null,null,null,"Services","Services",6011,511490,"Air Transport Services"]
[null,{"$f":"budget_form_lookups[[#This Row],[Long text]]","v":"Ambulance Service"},511010,{"$f":"budget_form_lookups[[#This Row],[SAP GL Account]]","v":511500},{"$f":"budget_form_lookups[[#This Row],[PB-5 Rollup]]","v":"Services"},null,null,null,null,null,512120,"Travel YE Accrual","Travel Year End Accrual","2016-05-26",{"$f":"_xlfn.XLOOKUP(CI_s[[#This Row],[Commitment item]],AM:AM,AK:AK)","v":"Travel & Prof Development"},{"$f":"_xlfn.XLOOKUP(CI_s[[#This Row],[Commitment item]],AM:AM,AN:AN)","v":"Travel-Year End Accrual"},null,null,null,null,515111,515010,null,null,null,null,null,null,null,null,null,null,null,null,null,"Services","Services",6002,511500,"Ambulance Service"]
[null,{"$f":"budget_form_lookups[[#This Row],[Long text]]","v":"Animal Service Programs"},511010,{"$f":"budget_form_lookups[[#This Row],[SAP GL Account]]","v":511290},{"$f":"budget_form_lookups[[#This Row],[PB-5 Rollup]]","v":"Services"},null,null,null,null,null,513010,"BackgrndCkSV","Background Check Services","2012-05-14",{"$f":"_xlfn.XLOOKUP(CI_s[[#This Row],[Commitment item]],AM:AM,AK:AK)","v":"County Employment Related Expenses"},{"$f":"_xlfn.XLOOKUP(CI_s[[#This Row],[Commitment item]],AM:AM,AN:AN)","v":"Background Check Services"},null,null,null,null,515112,515010,null,null,null,null,null,null,null,null,null,null,null,null,null,"Services","Services",6099,511290,"Animal Service Programs"]
[null,{"$f":"budget_form_lookups[[#This Row],[Long text]]","v":"Arbitrage Calculation Service"},511190,{"$f":"budget_form_lookups[[#This Row],[SAP GL Account]]","v":511190},{"$f":"budget_form_lookups[[#This Row],[PB-5 Rollup]]","v":"Services"},null,null,null,null,null,513020,"Emp Asstc Programs","Employee Assistance Programs","2012-05-14",{"$f":"_xlfn.XLOOKUP(CI_s[[#This Row],[Commitment item]],AM:AM,AK:AK)","v":"County Employment Related Expenses"},{"$f":"_xlfn.XLOOKUP(CI_s[[#This Row],[Commitment item]],AM:AM,AN:AN)","v":"Employee Assistance Programs"},null,null,null,null,515120,515010,null,null,null,null,null,null,null,null,null,null,null,null,null,"Services","Arbitrage Calculation Service",7520,511190,"Arbitrage Calculation Service"]
[null,{"$f":"budget_form_lookups[[#This Row],[Long text]]","v":"Arbitration/Mediation"},511010,{"$f":"budget_form_lookups[[#This Row],[SAP GL Account]]","v":511240},{"$f":"budget_form_lookups[[#This Row],[PB-5 Rollup]]","v":"Services"},null,null,null,null,null,513025,"Empl Guar Ride Home","Employee Guaranteed Ride Home","2022-01-28",{"$f":"_xlfn.XLOOKUP(CI_s[[#This Row],[Commitment item]],AM:AM,AK:AK)","v":"County Employment Related Expenses"},{"$f":"_xlfn.XLOOKUP(CI_s[[#This Row],[Commitment item]],AM:AM,AN:AN)","v":"Employee Guaranteed Ride Home"},null,null,null,null,515130,515010,null,null,null,null,null,null,null,null,null,null,null,null,null,"Services","Services",4099,511240,"Arbitration/Mediation"]
[null,{"$f":"budget_form_lookups[[#This Row],[Long text]]","v":"Armored Motor Service"},511010,{"$f":"budget_form_lookups[[#This Row],[SAP GL Account]]","v":511510},{"$f":"budget_form_lookups[[#This Row],[PB-5 Rollup]]","v":"Services"},null,null,null,null,null,513030,"Emp Recognition","Employee Recognition","2012-05-14",{"$f":"_xlfn.XLOOKUP(CI_s[[#This Row],[Commitment item]],AM:AM,AK:AK)","v":"County Employment Related Expenses"},{"$f":"_xlfn.XLOOKUP(CI_s[[#This Row],[Commitment item]],AM:AM,AN:AN)","v":"Employee Recognition"},null,null,null,null,515140,515010,null,null,null,null,null,null,null,null,null,null,null,null,null,"Services","Services",6004,511510,"Armored Motor Service"]
[null,{"$f":"budget_form_lookups[[#This Row],[Long text]]","v":"Auditing Services"},511010,{"$f":"budget_form_lookups[[#This Row],[SAP GL Account]]","v":511200},{"$f":"budget_form_lookups[[#This Row],[PB-5 Rollup]]","v":"Services"},null,null,null,null,null,513040,"Emp Recruitment Exps","Employee Recruitment Expenses","2012-05-14",{"$f":"_xlfn.XLOOKUP(CI_s[[#This Row],[Commitment item]],AM:AM,AK:AK)","v":"County Employment Related Expenses"},{"$f":"_xlfn.XLOOKUP(CI_s[[#This Row],[Commitment item]],AM:AM,AN:AN)","v":"Employee Recruitment Expenses"},null,null,null,null,515142,515010,null,null,null,null,null,null,null,null,null,null,null,null,null,"Services","Services",4005,511200,"Auditing Services"]
[null,{"$f":"budget_form_lookups[[#This Row],[Long text]]","v":"Automobile Repairs & Maintenance"},511010,{"$f":"budget_form_lookups[[#This Row],[SAP GL Account]]","v":511520},{"$f":"budget_form_lookups[[#This Row],[PB-5 Rollup]]","v":"Services"},null,null,null,null,null,513050,"Emp Relocation Exps","Employee Relocation Expenses","2012-05-14",{"$f":"_xlfn.XLOOKUP(CI_s[[#This Row],[Commitment item]],AM:AM,AK:AK)","v":"County Employment Related Expenses"},{"$f":"_xlfn.XLOOKUP(CI_s[[#This Row],[Commitment item]],AM:AM,AN:AN)","v":"Employee Relocation Expenses"},null,null,null,null,515150,515010,null,null,null,null,null,null,null,null,null,null,null,null,null,"Services","Services","5003, 6288",511520,"Automobile Repairs & Maintenance"]
[null,{"$f":"budget_form_lookups[[#This Row],[Long text]]","v":"Bank Service Charges"},511210,{"$f":"budget_form_lookups[[#This Row],[SAP GL Account]]","v":511210},{"$f":"budget_form_lookups[[#This Row],[PB-5 Rollup]]","v":"Services"},null,null,null,null,null,513060,"Pre-Empt Testing","Pre-Employment Testing","2012-05-14",{"$f":"_xlfn.XLOOKUP(CI_s[[#This Row],[Commitment item]],AM:AM,AK:AK)","v":"County Employment Related Expenses"},{"$f":"_xlfn.XLOOKUP(CI_s[[#This Row],[Commitment item]],AM:AM,AN:AN)","v":"Pre-Employment Testing "},null,null,null,null,515160,515010,null,null,null,null,null,null,null,null,null,null,null,null,null,"Services","Bank Service Charges",null,511210,"Bank Service Charges"]
[null,{"$f":"budget_form_lookups[[#This Row],[Long text]]","v":"Building Repairs & Maintenance"},511010,{"$f":"budget_form_lookups[[#This Row],[SAP GL Account]]","v":511530},{"$f":"budget_form_lookups[[#This Row],[PB-5 Rollup]]","v":"Services"},null,null,null,null,null,513070,"Tuition Rmbment","Tuition Reimbursement","2012-05-14",{"$f":"_xlfn.XLOOKUP(CI_s[[#This Row],[Commitment item]],AM:AM,AK:AK)","v":"Tuition Reimbursement"},{"$f":"_xlfn.XLOOKUP(CI_s[[#This Row],[Commitment item]],AM:AM,AN:AN)","v":"Tuition Reimbursement"},null,null,null,null,515210,515010,null,null,null,null,null,null,null,null,null,null,null,null,null,"Services","Services","5004, 6277",511530,"Building Repairs & Maintenance"]
[null,{"$f":"budget_form_lookups[[#This Row],[Long text]]","v":"Cable TV Service"},511460,{"$f":"budget_form_lookups[[#This Row],[SAP GL Account]]","v":511485},{"$f":"budget_form_lookups[[#This Row],[PB-5 Rollup]]","v":"Services"},null,null,null,null,null,514010,"Ad Litems","Ad Litems","2012-05-14",{"$f":"_xlfn.XLOOKUP(CI_s[[#This Row],[Commitment item]],AM:AM,AK:AK)","v":"Court and Law Enforcement Related Expenditures"},{"$f":"_xlfn.XLOOKUP(CI_s[[#This Row],[Commitment item]],AM:AM,AN:AN)","v":"Ad Litems"},null,null,null,null,515212,515010,null,null,null,null,null,null,null,null,null,null,null,null,null,"Services","Utilities",null,511485,"Cable TV Service"]
[null,{"$f":"budget_form_lookups[[#This Row],[Long text]]","v":"Case Management Services"},511010,{"$f":"budget_form_lookups[[#This Row],[SAP GL Account]]","v":511130},{"$f":"budget_form_lookups[[#This Row],[PB-5 Rollup]]","v":"Services"},null,null,null,null,null,514020,"Cnfdtl Informant","Confidential Informant Fees","2012-05-14",{"$f":"_xlfn.XLOOKUP(CI_s[[#This Row],[Commitment item]],AM:AM,AK:AK)","v":"Court and Law Enforcement Related Expenditures"},{"$f":"_xlfn.XLOOKUP(CI_s[[#This Row],[Commitment item]],AM:AM,AN:AN)","v":"Confidential Informant Fees"},null,null,null,null,515220,515010,null,null,null,null,null,null,null,null,null,null,null,null,null,"Services","Services",null,511130,"Case Management Services"]
[null,{"$f":"budget_form_lookups[[#This Row],[Long text]]","v":"Cellular (Air) Time Usage"},511010,{"$f":"budget_form_lookups[[#This Row],[SAP GL Account]]","v":511700},{"$f":"budget_form_lookups[[#This Row],[PB-5 Rollup]]","v":"Services"},null,null,null,null,null,514030,"Ct Costs","Court Costs","2012-05-14",{"$f":"_xlfn.XLOOKUP(CI_s[[#This Row],[Commitment item]],AM:AM,AK:AK)","v":"Court and Law Enforcement Related Expenditures"},{"$f":"_xlfn.XLOOKUP(CI_s[[#This Row],[Commitment item]],AM:AM,AN:AN)","v":"Court Costs"},null,null,null,null,515230,515010,null,null,null,null,null,null,null,null,null,null,null,null,null,"Services","Services",4106,511700,"Cellular (Air) Time Usage"]
[null,{"$f":"budget_form_lookups[[#This Row],[Long text]]","v":"Cellular Phone Allowance"},511710,{"$f":"budget_form_lookups[[#This Row],[SAP GL Account]]","v":511710},{"$f":"budget_form_lookups[[#This Row],[PB-5 Rollup]]","v":"Services"},null,null,null,null,null,514040,"COAttyFees","Court Ordered Attorney Fees","2012-05-14",{"$f":"_xlfn.XLOOKUP(CI_s[[#This Row],[Commitment item]],AM:AM,AK:AK)","v":"Court Ordered Attorney Fees"},{"$f":"_xlfn.XLOOKUP(CI_s[[#This Row],[Commitment item]],AM:AM,AN:AN)","v":"Court Ordered Attorney Fees"},null,null,null,null,515240,515010,null,null,null,null,null,null,null,null,null,null,null,null,null,"Services","Cellular Phone Allowance",null,511710,"Cellular Phone Allowance"]
[null,{"$f":"budget_form_lookups[[#This Row],[Long text]]","v":"Child & Youth Development"},511010,{"$f":"budget_form_lookups[[#This Row],[SAP GL Account]]","v":511300},{"$f":"budget_form_lookups[[#This Row],[PB-5 Rollup]]","v":"Services"},null,null,null,null,null,514045,"SpltyCOAttyFees","Specialty Court Attorney Fees","2012-05-15",{"$f":"_xlfn.XLOOKUP(CI_s[[#This Row],[Commitment item]],AM:AM,AK:AK)","v":"Court Ordered Attorney Fees"},{"$f":"_xlfn.XLOOKUP(CI_s[[#This Row],[Commitment item]],AM:AM,AN:AN)","v":"Specialty Court Attorney Fees"},null,null,null,null,515242,515242,null,null,null,null,null,null,null,null,null,null,null,null,null,"Services","Services",6295,511300,"Child & Youth Development"]
[null,{"$f":"budget_form_lookups[[#This Row],[Long text]]","v":"Child/Elderly Care"},511010,{"$f":"budget_form_lookups[[#This Row],[SAP GL Account]]","v":511310},{"$f":"budget_form_lookups[[#This Row],[PB-5 Rollup]]","v":"Services"},null,null,null,null,null,514046,"Ct Ord Atty Fees-Inc","Court Ordered Attorney Fees-Incidentals","2016-08-05",{"$f":"_xlfn.XLOOKUP(CI_s[[#This Row],[Commitment item]],AM:AM,AK:AK)","v":"Court and Law Enforcement Related Expenditures"},{"$f":"_xlfn.XLOOKUP(CI_s[[#This Row],[Commitment item]],AM:AM,AN:AN)","v":"Court Ordered Attorney Fees-Incidentals"},null,null,null,null,515243,515242,null,null,null,null,null,null,null,null,null,null,null,null,null,"Services","Services","6203 / 6204/dept 58-6205",511310,"Child/Elderly Care"]
[null,{"$f":"budget_form_lookups[[#This Row],[Long text]]","v":"Cloud Based Subscription Services"},511550,{"$f":"budget_form_lookups[[#This Row],[SAP GL Account]]","v":511671},{"$f":"budget_form_lookups[[#This Row],[PB-5 Rollup]]","v":"Services"},null,null,null,null,null,514048,"COAF-Appeals","Court Ordered Atty Fees-Appeals","2013-09-24",{"$f":"_xlfn.XLOOKUP(CI_s[[#This Row],[Commitment item]],AM:AM,AK:AK)","v":"Court Ordered Attorney Fees"},{"$f":"_xlfn.XLOOKUP(CI_s[[#This Row],[Commitment item]],AM:AM,AN:AN)","v":"Court Ordered Atty Fees - Appeals"},null,null,null,null,515250,515010,null,null,null,null,null,null,null,null,null,null,null,null,null,"Services","Hardware/Software Maintenance",6101,511671,"Cloud Based Subscription Services"]
[null,{"$f":"budget_form_lookups[[#This Row],[Long text]]","v":"Construction Services"},511010,{"$f":"budget_form_lookups[[#This Row],[SAP GL Account]]","v":511973},{"$f":"budget_form_lookups[[#This Row],[PB-5 Rollup]]","v":"Services"},null,null,null,null,null,514050,"COAF-CPS Child Term","Court Ordered Atty Fees-CPS Child Terminations","2012-05-14",{"$f":"_xlfn.XLOOKUP(CI_s[[#This Row],[Commitment item]],AM:AM,AK:AK)","v":"Court Ordered Attorney Fees"},{"$f":"_xlfn.XLOOKUP(CI_s[[#This Row],[Commitment item]],AM:AM,AN:AN)","v":"Court Ordered Atty Fees - CPS Child Terminations"},null,null,null,null,515260,515010,null,null,null,null,null,null,null,null,null,null,null,null,null,"Services","Services",null,511973,"Construction Services"]
[null,{"$f":"budget_form_lookups[[#This Row],[Long text]]","v":"Counseling Services"},511010,{"$f":"budget_form_lookups[[#This Row],[SAP GL Account]]","v":511010},{"$f":"budget_form_lookups[[#This Row],[PB-5 Rollup]]","v":"Services"},null,null,null,null,null,514060,"COAF-CPS Mediations","Court Ordered Attorney Fees-CPS Mediations","2012-05-14",{"$f":"_xlfn.XLOOKUP(CI_s[[#This Row],[Commitment item]],AM:AM,AK:AK)","v":"Court Ordered Attorney Fees"},{"$f":"_xlfn.XLOOKUP(CI_s[[#This Row],[Commitment item]],AM:AM,AN:AN)","v":"Court Ordered Attorney Fees - CPS Mediations"},null,null,null,null,515261,515010,null,null,null,null,null,null,null,null,null,null,null,null,null,"Services","Services","6024 / 6293",511010,"Counseling Services"]
[null,{"$f":"budget_form_lookups[[#This Row],[Long text]]","v":"COVID Response Distributions"},511010,{"$f":"budget_form_lookups[[#This Row],[SAP GL Account]]","v":511231},{"$f":"budget_form_lookups[[#This Row],[PB-5 Rollup]]","v":"Services"},null,null,null,null,null,514070,"COAF-CPS Parent Term","Court Ordered Atty Fees-CPS Parent Terminations","2012-05-14",{"$f":"_xlfn.XLOOKUP(CI_s[[#This Row],[Commitment item]],AM:AM,AK:AK)","v":"Court Ordered Attorney Fees"},{"$f":"_xlfn.XLOOKUP(CI_s[[#This Row],[Commitment item]],AM:AM,AN:AN)","v":"Court Ordered Atty Fees - CPS Parent Terminations"},null,null,null,null,515262,515010,null,null,null,null,null,null,null,null,null,null,null,null,null,"Services","Services","new",511231,"COVID Response Distributions"]
[null,{"$f":"budget_form_lookups[[#This Row],[Long text]]","v":"Custodial Services"},511010,{"$f":"budget_form_lookups[[#This Row],[SAP GL Account]]","v":511770},{"$f":"budget_form_lookups[[#This Row],[PB-5 Rollup]]","v":"Services"},null,null,null,null,null,514080,"COAF-Non-CPS JV","Court Ordered Attorney Fees-Non- CPS Juvenile","2012-05-14",{"$f":"_xlfn.XLOOKUP(CI_s[[#This Row],[Commitment item]],AM:AM,AK:AK)","v":"Court Ordered Attorney Fees"},{"$f":"_xlfn.XLOOKUP(CI_s[[#This Row],[Commitment item]],AM:AM,AN:AN)","v":"Court Ordered Attorney Fees - Non- CPS Juvenile"},null,null,null,null,515263,515010,null,null,null,null,null,null,null,null,null,null,null,null,null,"Services","Services",6099,511770,"Custodial Services"]
[null,{"$f":"budget_form_lookups[[#This Row],[Long text]]","v":"Dental Services"},511010,{"$f":"budget_form_lookups[[#This Row],[SAP GL Account]]","v":511020},{"$f":"budget_form_lookups[[#This Row],[PB-5 Rollup]]","v":"Services"},null,null,null,null,null,514090,"COAF-Non-CPSContempt","Court Ordered Attorney Fees-Non-CPS Contempt","2012-05-14",{"$f":"_xlfn.XLOOKUP(CI_s[[#This Row],[Commitment item]],AM:AM,AK:AK)","v":"Court Ordered Attorney Fees"},{"$f":"_xlfn.XLOOKUP(CI_s[[#This Row],[Commitment item]],AM:AM,AN:AN)","v":"Court Ordered Attorney Fees - Non-CPS Contempt"},null,null,null,null,515264,515010,null,null,null,null,null,null,null,null,null,null,null,null,null,"Services","Services","4009 / 6271",511020,"Dental Services"]
[null,{"$f":"budget_form_lookups[[#This Row],[Long text]]","v":"Disposal Service"},511010,{"$f":"budget_form_lookups[[#This Row],[SAP GL Account]]","v":511920},{"$f":"budget_form_lookups[[#This Row],[PB-5 Rollup]]","v":"Services"},null,null,null,null,null,514095,"COAF-Non-Family","Court Ordered Attorney Fees-Non-Family","2012-11-09",{"$f":"_xlfn.XLOOKUP(CI_s[[#This Row],[Commitment item]],AM:AM,AK:AK)","v":"Court Ordered Attorney Fees"},{"$f":"_xlfn.XLOOKUP(CI_s[[#This Row],[Commitment item]],AM:AM,AN:AN)","v":"Court Ordered Attorney Fees - Non-Family"},null,null,null,null,515265,515010,null,null,null,null,null,null,null,null,null,null,null,null,null,"Services","Services",6099,511920,"Disposal Service"]
[null,{"$f":"budget_form_lookups[[#This Row],[Long text]]","v":"Electric Utilities YE Accr"},511461,{"$f":"budget_form_lookups[[#This Row],[SAP GL Account]]","v":511461},{"$f":"budget_form_lookups[[#This Row],[PB-5 Rollup]]","v":"Services"},null,null,null,null,null,514100,"CtOrd Expert WtnsExp","Court Ordered Expert Witness Expenses","2012-05-14",{"$f":"_xlfn.XLOOKUP(CI_s[[#This Row],[Commitment item]],AM:AM,AK:AK)","v":"Court and Law Enforcement Related Expenditures"},{"$f":"_xlfn.XLOOKUP(CI_s[[#This Row],[Commitment item]],AM:AM,AN:AN)","v":"Court Ordered Expert Witness Expenses"},null,null,null,null,515266,515010,null,null,null,null,null,null,null,null,null,null,null,null,null,"Services","Utilities",4801,511461,"Electric Utilities YE Accr"]
[null,{"$f":"budget_form_lookups[[#This Row],[Long text]]","v":"Electrical Service"},511460,{"$f":"budget_form_lookups[[#This Row],[SAP GL Account]]","v":511460},{"$f":"budget_form_lookups[[#This Row],[PB-5 Rollup]]","v":"Services"},null,null,null,null,null,514110,"CtOrd Inv Exps","Court Ordered Investigator Expenses","2012-05-14",{"$f":"_xlfn.XLOOKUP(CI_s[[#This Row],[Commitment item]],AM:AM,AK:AK)","v":"Court and Law Enforcement Related Expenditures"},{"$f":"_xlfn.XLOOKUP(CI_s[[#This Row],[Commitment item]],AM:AM,AN:AN)","v":"Court Ordered Investigator Expenses"},null,null,null,null,515267,515010,"COBRA-Premium Medical-CoEPO",null,null,null,null,null,null,null,null,null,null,null,null,"Services","Utilities",4801,511460,"Electrical Service"]
[null,{"$f":"budget_form_lookups[[#This Row],[Long text]]","v":"Environmental Impact Services"},511010,{"$f":"budget_form_lookups[[#This Row],[SAP GL Account]]","v":511780},{"$f":"budget_form_lookups[[#This Row],[PB-5 Rollup]]","v":"Services"},null,null,null,null,null,514115,"CtOrd Psych Eval","Court Ordered Psychological Evaluations","2013-04-02",{"$f":"_xlfn.XLOOKUP(CI_s[[#This Row],[Commitment item]],AM:AM,AK:AK)","v":"Court and Law Enforcement Related Expenditures"},{"$f":"_xlfn.XLOOKUP(CI_s[[#This Row],[Commitment item]],AM:AM,AN:AN)","v":"Court Ordered Psychological Evaluations"},null,null,null,null,515268,515010,null,null,null,null,null,null,null,null,null,null,null,null,null,"Services","Services",6099,511780,"Environmental Impact Services"]
[null,{"$f":"budget_form_lookups[[#This Row],[Long text]]","v":"Exterminating Services"},511010,{"$f":"budget_form_lookups[[#This Row],[SAP GL Account]]","v":511790},{"$f":"budget_form_lookups[[#This Row],[PB-5 Rollup]]","v":"Services"},null,null,null,null,null,514120,"CtOrd Lab Testing","Court Ordered Lab Testing","2012-05-14",{"$f":"_xlfn.XLOOKUP(CI_s[[#This Row],[Commitment item]],AM:AM,AK:AK)","v":"Court and Law Enforcement Related Expenditures"},{"$f":"_xlfn.XLOOKUP(CI_s[[#This Row],[Commitment item]],AM:AM,AN:AN)","v":"Court Ordered Lab Testing"},null,null,null,null,515269,515010,null,null,null,null,null,null,null,null,null,null,null,null,null,"Services","Services",6009,511790,"Exterminating Services"]
[null,{"$f":"budget_form_lookups[[#This Row],[Long text]]","v":"External Placement Prisoners/Juveniles"},511800,{"$f":"budget_form_lookups[[#This Row],[SAP GL Account]]","v":511800},{"$f":"budget_form_lookups[[#This Row],[PB-5 Rollup]]","v":"Services"},null,null,null,null,null,514130,"Ct Transcripts","Court Transcripts","2012-05-14",{"$f":"_xlfn.XLOOKUP(CI_s[[#This Row],[Commitment item]],AM:AM,AK:AK)","v":"Court and Law Enforcement Related Expenditures"},{"$f":"_xlfn.XLOOKUP(CI_s[[#This Row],[Commitment item]],AM:AM,AN:AN)","v":"Court Transcripts"},null,null,null,null,515270,515010,null,null,null,null,null,null,null,null,null,null,null,null,null,"Services","External Placement Prisoners/Juveniles","6015/45-6205",511800,"External Placement Prisoners/Juveniles"]
[null,{"$f":"budget_form_lookups[[#This Row],[Long text]]","v":"Financial Consulting Services"},511010,{"$f":"budget_form_lookups[[#This Row],[SAP GL Account]]","v":511220},{"$f":"budget_form_lookups[[#This Row],[PB-5 Rollup]]","v":"Services"},null,null,null,null,null,514140,"Expert Wtns Testimny","Expert Witness Testimony Exp","2012-05-14",{"$f":"_xlfn.XLOOKUP(CI_s[[#This Row],[Commitment item]],AM:AM,AK:AK)","v":"Court and Law Enforcement Related Expenditures"},{"$f":"_xlfn.XLOOKUP(CI_s[[#This Row],[Commitment item]],AM:AM,AN:AN)","v":"Expert Witness Testimony Exp"},null,null,null,null,515310,515010,null,null,null,null,null,null,null,null,null,null,null,null,null,"Services","Services","4007, 4011",511220,"Financial Consulting Services"]
[null,{"$f":"budget_form_lookups[[#This Row],[Long text]]","v":"Food Bank Assistance"},511330,{"$f":"budget_form_lookups[[#This Row],[SAP GL Account]]","v":511330},{"$f":"budget_form_lookups[[#This Row],[PB-5 Rollup]]","v":"Services"},null,null,null,null,null,514150,"Extraditn Rel Travel","Extradition Related Travel","2012-05-14",{"$f":"_xlfn.XLOOKUP(CI_s[[#This Row],[Commitment item]],AM:AM,AK:AK)","v":"Court and Law Enforcement Related Expenditures"},{"$f":"_xlfn.XLOOKUP(CI_s[[#This Row],[Commitment item]],AM:AM,AN:AN)","v":"Extradition Related Travel"},null,null,null,null,515320,515010,null,null,null,null,null,null,null,null,null,null,null,null,null,"Services","Food Bank Assistance",6262,511330,"Food Bank Assistance"]
[null,{"$f":"budget_form_lookups[[#This Row],[Long text]]","v":"Food Voucher Assistance"},511340,{"$f":"budget_form_lookups[[#This Row],[SAP GL Account]]","v":511340},{"$f":"budget_form_lookups[[#This Row],[PB-5 Rollup]]","v":"Services"},null,null,null,null,null,514160,"Grand Jury Fees","Grand Jury Fees","2012-05-14",{"$f":"_xlfn.XLOOKUP(CI_s[[#This Row],[Commitment item]],AM:AM,AK:AK)","v":"Court and Law Enforcement Related Expenditures"},{"$f":"_xlfn.XLOOKUP(CI_s[[#This Row],[Commitment item]],AM:AM,AN:AN)","v":"Grand Jury Fees"},null,null,null,null,515330,515010,null,null,null,null,null,null,null,null,null,null,null,null,null,"Services","Food Voucher Assistance",6261,511340,"Food Voucher Assistance"]
[null,{"$f":"budget_form_lookups[[#This Row],[Long text]]","v":"Furniture & Office Equipment Repairs & Maintenance"},511010,{"$f":"budget_form_lookups[[#This Row],[SAP GL Account]]","v":511540},{"$f":"budget_form_lookups[[#This Row],[PB-5 Rollup]]","v":"Services"},null,null,null,null,null,514170,"Intrprtn/TrnsltnSvCt","Interpretation/Translation Services-Court","2012-05-14",{"$f":"_xlfn.XLOOKUP(CI_s[[#This Row],[Commitment item]],AM:AM,AK:AK)","v":"Court and Law Enforcement Related Expenditures"},{"$f":"_xlfn.XLOOKUP(CI_s[[#This Row],[Commitment item]],AM:AM,AN:AN)","v":"Interpretation/Translation  Services-Court"},null,null,null,null,515340,515010,null,null,null,null,null,null,null,null,null,null,null,null,null,"Services","Services","5005 / 5012/4910",511540,"Furniture & Office Equipment Repairs & Maintenance"]
[null,{"$f":"budget_form_lookups[[#This Row],[Long text]]","v":"Gifts"},511010,{"$f":"budget_form_lookups[[#This Row],[SAP GL Account]]","v":511350},{"$f":"budget_form_lookups[[#This Row],[PB-5 Rollup]]","v":"Services"},null,null,null,null,null,514180,"Jury Exps","Jury Expenses","2012-05-14",{"$f":"_xlfn.XLOOKUP(CI_s[[#This Row],[Commitment item]],AM:AM,AK:AK)","v":"Court and Law Enforcement Related Expenditures"},{"$f":"_xlfn.XLOOKUP(CI_s[[#This Row],[Commitment item]],AM:AM,AN:AN)","v":"Jury Expenses"},null,null,null,null,515410,515010,null,null,null,null,null,null,null,null,null,null,null,null,null,"Services","Services",6209,511350,"Gifts"]
[null,{"$f":"budget_form_lookups[[#This Row],[Long text]]","v":"Grounds Maintenance Services"},511010,{"$f":"budget_form_lookups[[#This Row],[SAP GL Account]]","v":511610},{"$f":"budget_form_lookups[[#This Row],[PB-5 Rollup]]","v":"Services"},null,null,null,null,null,514190,"Med Exams-Victims","Medical Exams-Victims","2012-05-14",{"$f":"_xlfn.XLOOKUP(CI_s[[#This Row],[Commitment item]],AM:AM,AK:AK)","v":"Court and Law Enforcement Related Expenditures"},{"$f":"_xlfn.XLOOKUP(CI_s[[#This Row],[Commitment item]],AM:AM,AN:AN)","v":"Medical Exams - Victims"},null,null,null,null,515420,515010,null,null,null,null,null,null,null,null,null,null,null,null,null,"Services","Services",null,511610,"Grounds Maintenance Services"]
[null,{"$f":"budget_form_lookups[[#This Row],[Long text]]","v":"Hardware/Software Install Services"},511010,{"$f":"budget_form_lookups[[#This Row],[SAP GL Account]]","v":511810},{"$f":"budget_form_lookups[[#This Row],[PB-5 Rollup]]","v":"Services"},null,null,null,null,null,514200,"Mtl Hlh Attys","Mental Health Attorneys","2012-05-14",{"$f":"_xlfn.XLOOKUP(CI_s[[#This Row],[Commitment item]],AM:AM,AK:AK)","v":"Court and Law Enforcement Related Expenditures"},{"$f":"_xlfn.XLOOKUP(CI_s[[#This Row],[Commitment item]],AM:AM,AN:AN)","v":"Mental Health Attorneys"},null,null,null,null,515430,515010,null,null,null,null,null,null,null,null,null,null,null,null,null,"Services","Services",6099,511810,"Hardware/Software Install Services"]
[null,{"$f":"budget_form_lookups[[#This Row],[Long text]]","v":"Hardware/Software Maintenance"},511550,{"$f":"budget_form_lookups[[#This Row],[SAP GL Account]]","v":511550},{"$f":"budget_form_lookups[[#This Row],[PB-5 Rollup]]","v":"Services"},null,null,null,null,null,514205,"Magst Hearing-AttFee","Magistration Hearing Attorney Fees","2022-04-05",{"$f":"_xlfn.XLOOKUP(CI_s[[#This Row],[Commitment item]],AM:AM,AK:AK)","v":{"$error":"#N/A"}},{"$f":"_xlfn.XLOOKUP(CI_s[[#This Row],[Commitment item]],AM:AM,AN:AN)","v":{"$error":"#N/A"}},null,null,null,null,515510,515010,null,null,null,null,null,null,null,null,null,null,null,null,null,"Services","Hardware/Software Maintenance",5002,511550,"Hardware/Software Maintenance"]
[null,{"$f":"budget_form_lookups[[#This Row],[Long text]]","v":"Hauling"},511010,{"$f":"budget_form_lookups[[#This Row],[SAP GL Account]]","v":511819},{"$f":"budget_form_lookups[[#This Row],[PB-5 Rollup]]","v":"Services"},null,null,null,null,null,514210,"Petit Jury Fees","Petit Jury Fees","2012-05-14",{"$f":"_xlfn.XLOOKUP(CI_s[[#This Row],[Commitment item]],AM:AM,AK:AK)","v":"Court and Law Enforcement Related Expenditures"},{"$f":"_xlfn.XLOOKUP(CI_s[[#This Row],[Commitment item]],AM:AM,AN:AN)","v":"Petit Jury Fees"},null,null,null,null,515511,515010,null,null,null,null,null,null,null,null,null,null,null,null,null,"Services","Services",6014,511819,"Hauling"]
[null,{"$f":"budget_form_lookups[[#This Row],[Long text]]","v":"Hazardous Material Removal"},511010,{"$f":"budget_form_lookups[[#This Row],[SAP GL Account]]","v":511830},{"$f":"budget_form_lookups[[#This Row],[PB-5 Rollup]]","v":"Services"},null,null,null,null,null,514220,"Special Masters","Special Masters","2012-05-14",{"$f":"_xlfn.XLOOKUP(CI_s[[#This Row],[Commitment item]],AM:AM,AK:AK)","v":"Court and Law Enforcement Related Expenditures"},{"$f":"_xlfn.XLOOKUP(CI_s[[#This Row],[Commitment item]],AM:AM,AN:AN)","v":"Special Masters"},null,null,null,null,515512,515010,null,null,null,null,null,null,null,null,null,null,null,null,null,"Services","Services",6099,511830,"Hazardous Material Removal"]
[null,{"$f":"budget_form_lookups[[#This Row],[Long text]]","v":"Helicopter Repairs & Maintenance"},511010,{"$f":"budget_form_lookups[[#This Row],[SAP GL Account]]","v":511560},{"$f":"budget_form_lookups[[#This Row],[PB-5 Rollup]]","v":"Services"},null,null,null,null,null,514230,"Sub Ct Reporter Chrg","Substitute Court Reporter Charges","2012-05-14",{"$f":"_xlfn.XLOOKUP(CI_s[[#This Row],[Commitment item]],AM:AM,AK:AK)","v":"Court and Law Enforcement Related Expenditures"},{"$f":"_xlfn.XLOOKUP(CI_s[[#This Row],[Commitment item]],AM:AM,AN:AN)","v":"Substitute Court Reporter Charges"},null,null,null,null,515513,515010,null,null,null,null,null,null,null,null,null,null,null,null,null,"Services","Services",5006,511560,"Helicopter Repairs & Maintenance"]
[null,{"$f":"budget_form_lookups[[#This Row],[Long text]]","v":"Hospitalization Services"},{"$f":"IFERROR(INDEX(V:V,MATCH(D322,U:U,0)),D322)","v":511010},{"$f":"budget_form_lookups[[#This Row],[SAP GL Account]]","v":511030},{"$f":"budget_form_lookups[[#This Row],[PB-5 Rollup]]","v":"Services"},null,null,null,null,null,514240,"Transcript Exps","Transcript Expenses","2012-05-14",{"$f":"_xlfn.XLOOKUP(CI_s[[#This Row],[Commitment item]],AM:AM,AK:AK)","v":"Court and Law Enforcement Related Expenditures"},{"$f":"_xlfn.XLOOKUP(CI_s[[#This Row],[Commitment item]],AM:AM,AN:AN)","v":"Transcript Expenses"},null,null,null,null,515580,516000,null,null,null,null,null,null,null,null,null,null,null,null,null,"Services","Services","6033 / 6272",511030,"Hospitalization Services"]
[null,{"$f":"budget_form_lookups[[#This Row],[Long text]]","v":"Indigent Medical Care - Conversion"},511010,{"$f":"budget_form_lookups[[#This Row],[SAP GL Account]]","v":511123},{"$f":"budget_form_lookups[[#This Row],[PB-5 Rollup]]","v":"Services"},null,null,null,null,null,514249,"VisitingJdgesCtctFee","Visiting Judges – Contractor Fees","2019-09-25",{"$f":"_xlfn.XLOOKUP(CI_s[[#This Row],[Commitment item]],AM:AM,AK:AK)","v":"Court and Law Enforcement Related Expenditures"},{"$f":"_xlfn.XLOOKUP(CI_s[[#This Row],[Commitment item]],AM:AM,AN:AN)","v":"Visiting Judges - Contractor Fees"},null,null,null,null,515581,516000,null,null,null,null,null,null,null,null,null,null,null,null,null,"Services","Services","6272, 6220",511123,"Indigent Medical Care - Conversion"]
[null,{"$f":"budget_form_lookups[[#This Row],[Long text]]","v":"Info Retrieval Svs"},511010,{"$f":"budget_form_lookups[[#This Row],[SAP GL Account]]","v":511875},{"$f":"budget_form_lookups[[#This Row],[PB-5 Rollup]]","v":"Services"},null,null,null,null,null,514250,"VisitingJdgesExpReim","Visiting Judges - Expense Reimbursement","2012-05-14",{"$f":"_xlfn.XLOOKUP(CI_s[[#This Row],[Commitment item]],AM:AM,AK:AK)","v":"Court and Law Enforcement Related Expenditures"},{"$f":"_xlfn.XLOOKUP(CI_s[[#This Row],[Commitment item]],AM:AM,AN:AN)","v":"Visiting Judges - Expense Reimbursement"},null,null,null,null,515582,516000,null,null,null,null,null,null,null,null,null,null,null,null,null,"Services","Services",null,511875,"Info Retrieval Svs"]
[null,{"$f":"budget_form_lookups[[#This Row],[Long text]]","v":"Interment Services"},511360,{"$f":"budget_form_lookups[[#This Row],[SAP GL Account]]","v":511360},{"$f":"budget_form_lookups[[#This Row],[PB-5 Rollup]]","v":"Services"},null,null,null,null,null,514260,"Witness Exps","Witness Expenses","2012-05-14",{"$f":"_xlfn.XLOOKUP(CI_s[[#This Row],[Commitment item]],AM:AM,AK:AK)","v":"Court and Law Enforcement Related Expenditures"},{"$f":"_xlfn.XLOOKUP(CI_s[[#This Row],[Commitment item]],AM:AM,AN:AN)","v":"Witness Expenses"},null,null,null,null,515583,516000,null,null,null,null,null,null,null,null,null,null,null,null,null,"Services","Interment Services",6017,511360,"Interment Services"]
[null,{"$f":"budget_form_lookups[[#This Row],[Long text]]","v":"Interpretation/Translation  Services-Other"},511010,{"$f":"budget_form_lookups[[#This Row],[SAP GL Account]]","v":511850},{"$f":"budget_form_lookups[[#This Row],[PB-5 Rollup]]","v":"Services"},null,null,null,null,null,515001,"EmpSLPremMed","Employee Stop/Loss Premium Medical","2012-05-14",{"$f":"_xlfn.XLOOKUP(CI_s[[#This Row],[Commitment item]],AM:AM,AK:AK)","v":"Insurance Premiums"},{"$f":"_xlfn.XLOOKUP(CI_s[[#This Row],[Commitment item]],AM:AM,AN:AN)","v":"Employee Stop/Loss Premium Medical"},null,null,null,null,515585,516000,null,null,null,null,null,null,null,null,null,null,null,null,null,"Services","Services",6018,511850,"Interpretation/Translation  Services-Other"]
[null,{"$f":"budget_form_lookups[[#This Row],[Long text]]","v":"Investigative Services"},511860,{"$f":"budget_form_lookups[[#This Row],[SAP GL Account]]","v":511860},{"$f":"budget_form_lookups[[#This Row],[PB-5 Rollup]]","v":"Services"},null,null,null,null,null,515010,"EmpSLPremMed-CoEPO","Employee Stop/Loss Premium Medical-CoEPO","2012-05-14",{"$f":"_xlfn.XLOOKUP(CI_s[[#This Row],[Commitment item]],AM:AM,AK:AK)","v":"Insurance Premiums"},{"$f":"_xlfn.XLOOKUP(CI_s[[#This Row],[Commitment item]],AM:AM,AN:AN)","v":"Employee Stop/Loss Premium Medical-CoEPO"},null,null,null,null,515586,516000,null,null,null,null,null,null,null,null,null,null,null,null,null,"Services","Investigative Services",7511,511860,"Investigative Services"]
[null,{"$f":"budget_form_lookups[[#This Row],[Long text]]","v":"IT Consulting"},511010,{"$f":"budget_form_lookups[[#This Row],[SAP GL Account]]","v":511870},{"$f":"budget_form_lookups[[#This Row],[PB-5 Rollup]]","v":"Services"},null,null,null,null,null,515011,"EmpSLPremMed-ConChc","Employee Stop/Loss Premium Medical-Consumer Choice","2015-08-11",{"$f":"_xlfn.XLOOKUP(CI_s[[#This Row],[Commitment item]],AM:AM,AK:AK)","v":"Insurance Premiums"},{"$f":"_xlfn.XLOOKUP(CI_s[[#This Row],[Commitment item]],AM:AM,AN:AN)","v":"Employee Stop/Loss Premium Medical-Consumer Choice"},null,null,null,null,515587,516000,null,null,null,null,null,null,null,null,null,null,null,null,null,"Services","Services",4007,511870,"IT Consulting"]
[null,{"$f":"budget_form_lookups[[#This Row],[Long text]]","v":"Lab Services"},511010,{"$f":"budget_form_lookups[[#This Row],[SAP GL Account]]","v":511840},{"$f":"budget_form_lookups[[#This Row],[PB-5 Rollup]]","v":"Services"},null,null,null,null,null,515012,"EmpSLPremMed-HDHP","Employee Stop/Loss Premium Medical-HDHP","2019-01-08",{"$f":"_xlfn.XLOOKUP(CI_s[[#This Row],[Commitment item]],AM:AM,AK:AK)","v":"Insurance Premiums"},{"$f":"_xlfn.XLOOKUP(CI_s[[#This Row],[Commitment item]],AM:AM,AN:AN)","v":"Employee Stop/Loss Premium Medical-HDHP"},null,null,null,null,515588,516000,null,null,null,null,null,null,null,null,null,null,null,null,null,"Services","Services",6016,511840,"Lab Services"]
[null,{"$f":"budget_form_lookups[[#This Row],[Long text]]","v":"Land Surveying"},511010,{"$f":"budget_form_lookups[[#This Row],[SAP GL Account]]","v":511140},{"$f":"budget_form_lookups[[#This Row],[PB-5 Rollup]]","v":"Services"},null,null,null,null,null,515020,"EmpSLPremMed-PPO","Employee Stop/Loss Premium Medical-PPO","2012-05-14",{"$f":"_xlfn.XLOOKUP(CI_s[[#This Row],[Commitment item]],AM:AM,AK:AK)","v":"Insurance Premiums"},{"$f":"_xlfn.XLOOKUP(CI_s[[#This Row],[Commitment item]],AM:AM,AN:AN)","v":"Employee Stop/Loss Premium Medical-PPO"},null,null,null,null,515589,516000,null,null,null,null,null,null,null,null,null,null,null,null,null,"Services","Services","4017/4007 (part)",511140,"Land Surveying"]
[null,{"$f":"budget_form_lookups[[#This Row],[Long text]]","v":"Laundry Services"},511010,{"$f":"budget_form_lookups[[#This Row],[SAP GL Account]]","v":511880},{"$f":"budget_form_lookups[[#This Row],[PB-5 Rollup]]","v":"Services"},null,null,null,null,null,515030,"EmpSLPremMed-EPO","Employee Stop/Loss Premium Medical-EPO","2012-05-14",{"$f":"_xlfn.XLOOKUP(CI_s[[#This Row],[Commitment item]],AM:AM,AK:AK)","v":"Insurance Premiums"},{"$f":"_xlfn.XLOOKUP(CI_s[[#This Row],[Commitment item]],AM:AM,AN:AN)","v":"Employee Stop/Loss Premium Medical-EPO"},null,null,null,null,515590,516000,null,null,null,null,null,null,null,null,null,null,null,null,null,"Services","Services",6019,511880,"Laundry Services"]
[null,{"$f":"budget_form_lookups[[#This Row],[Long text]]","v":"LCRA Oversight Fee"},511010,{"$f":"budget_form_lookups[[#This Row],[SAP GL Account]]","v":511856},{"$f":"budget_form_lookups[[#This Row],[PB-5 Rollup]]","v":"Services"},null,null,null,null,null,515040,"Emp-Prem Med-CoEPO","Employee-Premium Medical-CoEPO","2012-05-14",{"$f":"_xlfn.XLOOKUP(CI_s[[#This Row],[Commitment item]],AM:AM,AK:AK)","v":"Insurance Premiums"},{"$f":"_xlfn.XLOOKUP(CI_s[[#This Row],[Commitment item]],AM:AM,AN:AN)","v":"Employee-Premium Medical-CoEPO"},null,null,null,null,515591,516000,null,null,null,null,null,null,null,null,null,null,null,null,null,"Services","Services",null,511856,"LCRA Oversight Fee"]
[null,{"$f":"budget_form_lookups[[#This Row],[Long text]]","v":"Legal Advisory Services "},511010,{"$f":"budget_form_lookups[[#This Row],[SAP GL Account]]","v":511250},{"$f":"budget_form_lookups[[#This Row],[PB-5 Rollup]]","v":"Services"},null,null,null,null,null,515041,"Emp-Prem Med-ConChc","Employee-Premium Medical-Consumer Choice","2015-08-11",{"$f":"_xlfn.XLOOKUP(CI_s[[#This Row],[Commitment item]],AM:AM,AK:AK)","v":"Insurance Premiums"},{"$f":"_xlfn.XLOOKUP(CI_s[[#This Row],[Commitment item]],AM:AM,AN:AN)","v":"Employee-Premium Medical-Consumer Choice"},null,null,null,null,515592,516000,null,null,null,null,null,null,null,null,null,null,null,null,null,"Services","Services",4012,511250,"Legal Advisory Services "]
[null,{"$f":"budget_form_lookups[[#This Row],[Long text]]","v":"Legally Required Advert/Public Notif. Service"},511681,{"$f":"budget_form_lookups[[#This Row],[SAP GL Account]]","v":511681},{"$f":"budget_form_lookups[[#This Row],[PB-5 Rollup]]","v":"Services"},null,null,null,null,null,515042,"Emp-Prem Med-HDHP","Employee-Premium Medical-HDHP","2019-01-08",{"$f":"_xlfn.XLOOKUP(CI_s[[#This Row],[Commitment item]],AM:AM,AK:AK)","v":"Insurance Premiums"},{"$f":"_xlfn.XLOOKUP(CI_s[[#This Row],[Commitment item]],AM:AM,AN:AN)","v":"Employee-Premium Medical-HDHP"},null,null,null,null,515595,516000,null,null,null,null,null,null,null,null,null,null,null,null,null,"Services","Legally Required Advert/Public Notif. Service",null,511681,"Legally Required Advert/Public Notif. Service"]
[null,{"$f":"budget_form_lookups[[#This Row],[Long text]]","v":"Legislative Services"},511010,{"$f":"budget_form_lookups[[#This Row],[SAP GL Account]]","v":511260},{"$f":"budget_form_lookups[[#This Row],[PB-5 Rollup]]","v":"Services"},null,null,null,null,null,515050,"Emp-Prem Med-PPO","Employee-Premium Medical-PPO","2012-05-14",{"$f":"_xlfn.XLOOKUP(CI_s[[#This Row],[Commitment item]],AM:AM,AK:AK)","v":"Insurance Premiums"},{"$f":"_xlfn.XLOOKUP(CI_s[[#This Row],[Commitment item]],AM:AM,AN:AN)","v":"Employee-Premium Medical-PPO"},null,null,null,null,515596,516000,null,null,null,null,null,null,null,null,null,null,null,null,null,"Services","Services",7521,511260,"Legislative Services"]
[null,{"$f":"budget_form_lookups[[#This Row],[Long text]]","v":"Long distance "},511010,{"$f":"budget_form_lookups[[#This Row],[SAP GL Account]]","v":511720},{"$f":"budget_form_lookups[[#This Row],[PB-5 Rollup]]","v":"Services"},null,null,null,null,null,515060,"Emp-Prem Med-EPO","Employee-Premium Medical-EPO","2012-05-14",{"$f":"_xlfn.XLOOKUP(CI_s[[#This Row],[Commitment item]],AM:AM,AK:AK)","v":"Insurance Premiums"},{"$f":"_xlfn.XLOOKUP(CI_s[[#This Row],[Commitment item]],AM:AM,AN:AN)","v":"Employee-Premium Medical-EPO"},null,null,null,null,515597,516000,null,null,null,null,null,null,null,null,null,null,null,null,null,"Services","Services",4101,511720,"Long distance "]
[null,{"$f":"budget_form_lookups[[#This Row],[Long text]]","v":"Non Employee Educational Services"},511010,{"$f":"budget_form_lookups[[#This Row],[SAP GL Account]]","v":511370},{"$f":"budget_form_lookups[[#This Row],[PB-5 Rollup]]","v":"Services"},null,null,null,null,null,515110,"Ret<65SLPremMedCoEPO","Retiree < 65 Stop/Loss Premium Medical-CoEPO","2012-05-14",{"$f":"_xlfn.XLOOKUP(CI_s[[#This Row],[Commitment item]],AM:AM,AK:AK)","v":"Insurance Premiums"},{"$f":"_xlfn.XLOOKUP(CI_s[[#This Row],[Commitment item]],AM:AM,AN:AN)","v":"Retiree < 65 Stop/Loss Premium Medical-CoEPO"},null,null,null,null,515598,516000,null,null,null,null,null,null,null,null,null,null,null,null,null,"Services","Services","6099/6032",511370,"Non Employee Educational Services"]
[null,{"$f":"budget_form_lookups[[#This Row],[Long text]]","v":"Non Hazardous Waste Hauling/Removal"},511010,{"$f":"budget_form_lookups[[#This Row],[SAP GL Account]]","v":511820},{"$f":"budget_form_lookups[[#This Row],[PB-5 Rollup]]","v":"Services"},null,null,null,null,null,515111,"Ret<65SLPremMedConCh","Ret<65 Stop/Loss Prem Medical-Consumer Choice","2015-08-11",{"$f":"_xlfn.XLOOKUP(CI_s[[#This Row],[Commitment item]],AM:AM,AK:AK)","v":"Insurance Premiums"},{"$f":"_xlfn.XLOOKUP(CI_s[[#This Row],[Commitment item]],AM:AM,AN:AN)","v":"Ret<65 Stop/Loss Prem Medical-Consumer Choice"},null,null,null,null,515599,516000,null,null,null,null,null,null,null,null,null,null,null,null,null,"Services","Services",6014,511820,"Non Hazardous Waste Hauling/Removal"]
[null,{"$f":"budget_form_lookups[[#This Row],[Long text]]","v":"North Campus Operating & Maintenance Exp"},511630,{"$f":"budget_form_lookups[[#This Row],[SAP GL Account]]","v":511625},{"$f":"budget_form_lookups[[#This Row],[PB-5 Rollup]]","v":"Services"},null,null,null,null,null,515112,"Ret<65SLPremMedHDHP","Ret<65 Stop/Loss Prem Medical-HDHP","2019-01-08",{"$f":"_xlfn.XLOOKUP(CI_s[[#This Row],[Commitment item]],AM:AM,AK:AK)","v":"Insurance Premiums"},{"$f":"_xlfn.XLOOKUP(CI_s[[#This Row],[Commitment item]],AM:AM,AN:AN)","v":"Ret<65 Stop/Loss Prem Medical-HDHP"},null,null,null,null,516000,516000,null,null,null,null,null,null,null,null,null,null,null,null,null,"Services","Rent-Building & Land",6102,511625,"North Campus Operating & Maintenance Exp"]
[null,{"$f":"budget_form_lookups[[#This Row],[Long text]]","v":"Notary Services"},511010,{"$f":"budget_form_lookups[[#This Row],[SAP GL Account]]","v":511270},{"$f":"budget_form_lookups[[#This Row],[PB-5 Rollup]]","v":"Services"},null,null,null,null,null,515120,"Ret<65SLPremMed-PPO","Retiree < 65 Stop/Loss Premium Medical-PPO","2012-05-14",{"$f":"_xlfn.XLOOKUP(CI_s[[#This Row],[Commitment item]],AM:AM,AK:AK)","v":"Insurance Premiums"},{"$f":"_xlfn.XLOOKUP(CI_s[[#This Row],[Commitment item]],AM:AM,AN:AN)","v":"Retiree < 65 Stop/Loss Premium Medical-PPO"},null,null,null,null,516010,516000,null,null,null,null,null,null,null,null,null,null,null,null,null,"Services","Services",6022,511270,"Notary Services"]
[null,{"$f":"budget_form_lookups[[#This Row],[Long text]]","v":"Nursing Services"},511010,{"$f":"budget_form_lookups[[#This Row],[SAP GL Account]]","v":511040},{"$f":"budget_form_lookups[[#This Row],[PB-5 Rollup]]","v":"Services"},null,null,null,null,null,515130,"Ret<65SLPremMed-EPO","Retiree < 65 Stop/Loss Premium Medical-EPO","2012-05-14",{"$f":"_xlfn.XLOOKUP(CI_s[[#This Row],[Commitment item]],AM:AM,AK:AK)","v":"Insurance Premiums"},{"$f":"_xlfn.XLOOKUP(CI_s[[#This Row],[Commitment item]],AM:AM,AN:AN)","v":"Retiree < 65 Stop/Loss Premium Medical-EPO"},null,null,null,null,516011,516000,null,null,null,null,null,null,null,null,null,null,null,null,null,"Services","Services",6035,511040,"Nursing Services"]
[null,{"$f":"budget_form_lookups[[#This Row],[Long text]]","v":"Oil/Gas Service"},511460,{"$f":"budget_form_lookups[[#This Row],[SAP GL Account]]","v":511470},{"$f":"budget_form_lookups[[#This Row],[PB-5 Rollup]]","v":"Services"},null,null,null,null,null,515140,"Ret<65-Prem MedCoEPO","Retiree<65-Premium Medical-CoEPO","2012-05-14",{"$f":"_xlfn.XLOOKUP(CI_s[[#This Row],[Commitment item]],AM:AM,AK:AK)","v":"Insurance Premiums"},{"$f":"_xlfn.XLOOKUP(CI_s[[#This Row],[Commitment item]],AM:AM,AN:AN)","v":"Retiree<65-Premium Medical-CoEPO"},null,null,null,null,516012,516000,null,null,null,null,null,null,null,null,null,null,null,null,null,"Services","Utilities",4801,511470,"Oil/Gas Service"]
[null,{"$f":"budget_form_lookups[[#This Row],[Long text]]","v":"Omni Services"},511010,{"$f":"budget_form_lookups[[#This Row],[SAP GL Account]]","v":511855},{"$f":"budget_form_lookups[[#This Row],[PB-5 Rollup]]","v":"Services"},null,null,null,null,null,515141,"Ret<65-Prem MedConCh","Retiree<65-Premium Medical-Consumer Choice","2015-08-11",{"$f":"_xlfn.XLOOKUP(CI_s[[#This Row],[Commitment item]],AM:AM,AK:AK)","v":"Insurance Premiums"},{"$f":"_xlfn.XLOOKUP(CI_s[[#This Row],[Commitment item]],AM:AM,AN:AN)","v":"Retiree<65-Premium Medical-Consumer Choice"},null,null,null,null,516020,516000,null,null,null,null,null,null,null,null,null,null,null,null,null,"Services","Services",null,511855,"Omni Services"]
[null,{"$f":"budget_form_lookups[[#This Row],[Long text]]","v":"Other Consulting Services"},511010,{"$f":"budget_form_lookups[[#This Row],[SAP GL Account]]","v":511890},{"$f":"budget_form_lookups[[#This Row],[PB-5 Rollup]]","v":"Services"},null,null,null,null,null,515142,"Ret<65-Prem MedHDHP","Retiree<65-Premium Medical-HDHP","2019-01-08",{"$f":"_xlfn.XLOOKUP(CI_s[[#This Row],[Commitment item]],AM:AM,AK:AK)","v":"Insurance Premiums"},{"$f":"_xlfn.XLOOKUP(CI_s[[#This Row],[Commitment item]],AM:AM,AN:AN)","v":"Retiree<65-Premium Medical-HDHP"},null,null,null,null,516030,516000,null,null,null,null,null,null,null,null,null,null,null,null,null,"Services","Services",4007,511890,"Other Consulting Services"]
[null,{"$f":"budget_form_lookups[[#This Row],[Long text]]","v":"Other Equipment Repairs & Maintenance"},511010,{"$f":"budget_form_lookups[[#This Row],[SAP GL Account]]","v":511620},{"$f":"budget_form_lookups[[#This Row],[PB-5 Rollup]]","v":"Services"},null,null,null,null,null,515150,"Ret<65-Prem Med-PPO","Retiree<65-Premium Medical-PPO","2012-05-14",{"$f":"_xlfn.XLOOKUP(CI_s[[#This Row],[Commitment item]],AM:AM,AK:AK)","v":"Insurance Premiums"},{"$f":"_xlfn.XLOOKUP(CI_s[[#This Row],[Commitment item]],AM:AM,AN:AN)","v":"Retiree<65-Premium Medical-PPO"},null,null,null,null,516040,516000,null,null,null,null,null,null,null,null,null,null,null,null,null,"Services","Services","5001 & 5007",511620,"Other Equipment Repairs & Maintenance"]
[null,{"$f":"budget_form_lookups[[#This Row],[Long text]]","v":"Other Financial Services"},511010,{"$f":"budget_form_lookups[[#This Row],[SAP GL Account]]","v":511230},{"$f":"budget_form_lookups[[#This Row],[PB-5 Rollup]]","v":"Services"},null,null,null,null,null,515160,"Ret<65-Prem Med-EPO","Retiree<65-Premium Medical-EPO","2012-05-14",{"$f":"_xlfn.XLOOKUP(CI_s[[#This Row],[Commitment item]],AM:AM,AK:AK)","v":"Insurance Premiums"},{"$f":"_xlfn.XLOOKUP(CI_s[[#This Row],[Commitment item]],AM:AM,AN:AN)","v":"Retiree<65-Premium Medical-EPO"},null,null,null,null,516041,516000,null,null,null,null,null,null,null,null,null,null,null,null,null,"Services","Services","new",511230,"Other Financial Services"]
[null,{"$f":"budget_form_lookups[[#This Row],[Long text]]","v":"Other Human Services - Conversion"},511010,{"$f":"budget_form_lookups[[#This Row],[SAP GL Account]]","v":511442},{"$f":"budget_form_lookups[[#This Row],[PB-5 Rollup]]","v":"Services"},null,null,null,null,null,515210,"Ret>65SLPremMedCOEPO","Retiree >65 Stop/Loss Premium Medical-CO EPO","2012-05-14",{"$f":"_xlfn.XLOOKUP(CI_s[[#This Row],[Commitment item]],AM:AM,AK:AK)","v":"Insurance Premiums"},{"$f":"_xlfn.XLOOKUP(CI_s[[#This Row],[Commitment item]],AM:AM,AN:AN)","v":"Retiree >65 Stop/Loss Premium Medical-CO EPO"},null,null,null,null,516042,516000,null,null,null,null,null,null,null,null,null,null,null,null,null,"Services","Services",6299,511442,"Other Human Services - Conversion"]
[null,{"$f":"budget_form_lookups[[#This Row],[Long text]]","v":"Other Legal Services"},511010,{"$f":"budget_form_lookups[[#This Row],[SAP GL Account]]","v":511280},{"$f":"budget_form_lookups[[#This Row],[PB-5 Rollup]]","v":"Services"},null,null,null,null,null,515211,"Ret>65SLPremMedConCh","Ret>65 Stop/Loss Prem Medical-Consumer Choice","2015-08-11",{"$f":"_xlfn.XLOOKUP(CI_s[[#This Row],[Commitment item]],AM:AM,AK:AK)","v":"Insurance Premiums"},{"$f":"_xlfn.XLOOKUP(CI_s[[#This Row],[Commitment item]],AM:AM,AN:AN)","v":"Ret>65 Stop/Loss Prem Medical-Consumer Choice"},null,null,null,null,516050,516000,null,null,null,null,null,null,null,null,null,null,null,null,null,"Services","Services","new",511280,"Other Legal Services"]
[null,{"$f":"budget_form_lookups[[#This Row],[Long text]]","v":"Other Medical Services"},511010,{"$f":"budget_form_lookups[[#This Row],[SAP GL Account]]","v":511120},{"$f":"budget_form_lookups[[#This Row],[PB-5 Rollup]]","v":"Services"},null,null,null,null,null,515212,"Ret>65SLPremMedHDHP","Ret>65 Stop/Loss Prem Medical-HDHP","2019-01-08",{"$f":"_xlfn.XLOOKUP(CI_s[[#This Row],[Commitment item]],AM:AM,AK:AK)","v":"Insurance Premiums"},{"$f":"_xlfn.XLOOKUP(CI_s[[#This Row],[Commitment item]],AM:AM,AN:AN)","v":"Ret>65 Stop/Loss Prem Medical-HDHP"},null,null,null,null,516060,516000,null,null,null,null,null,null,null,null,null,null,null,null,null,"Services","Services","new",511120,"Other Medical Services"]
[null,{"$f":"budget_form_lookups[[#This Row],[Long text]]","v":"Other Professional Services - Conversion"},511010,{"$f":"budget_form_lookups[[#This Row],[SAP GL Account]]","v":511972},{"$f":"budget_form_lookups[[#This Row],[PB-5 Rollup]]","v":"Services"},null,null,null,null,null,515220,"Ret>65SLPremMed-PPO","Retiree >65 Stop/Loss Premium Medical-PPO","2012-05-14",{"$f":"_xlfn.XLOOKUP(CI_s[[#This Row],[Commitment item]],AM:AM,AK:AK)","v":"Insurance Premiums"},{"$f":"_xlfn.XLOOKUP(CI_s[[#This Row],[Commitment item]],AM:AM,AN:AN)","v":"Retiree >65 Stop/Loss Premium Medical-PPO"},null,null,null,null,516070,516000,null,null,null,null,null,null,null,null,null,null,null,null,null,"Services","Services",4099,511972,"Other Professional Services - Conversion"]
[null,{"$f":"budget_form_lookups[[#This Row],[Long text]]","v":"Other Purchased Services - Conversion"},511010,{"$f":"budget_form_lookups[[#This Row],[SAP GL Account]]","v":511971},{"$f":"budget_form_lookups[[#This Row],[PB-5 Rollup]]","v":"Services"},null,null,null,null,null,515230,"Ret>65SLPremMed-EPO","Retiree >65 Stop/Loss Premium Medical-EPO","2012-05-14",{"$f":"_xlfn.XLOOKUP(CI_s[[#This Row],[Commitment item]],AM:AM,AK:AK)","v":"Insurance Premiums"},{"$f":"_xlfn.XLOOKUP(CI_s[[#This Row],[Commitment item]],AM:AM,AN:AN)","v":"Retiree >65 Stop/Loss Premium Medical-EPO"},null,null,null,null,516080,516000,null,null,null,null,null,null,null,null,null,null,null,null,null,"Services","Services",6099,511971,"Other Purchased Services - Conversion"]
[null,{"$f":"budget_form_lookups[[#This Row],[Long text]]","v":"Other Real Estate Services"},511010,{"$f":"budget_form_lookups[[#This Row],[SAP GL Account]]","v":511170},{"$f":"budget_form_lookups[[#This Row],[PB-5 Rollup]]","v":"Services"},null,null,null,null,null,515240,"Ret>65PremMed-CoEPO","Retiree>65-Premium Medical-CoEPO","2012-05-14",{"$f":"_xlfn.XLOOKUP(CI_s[[#This Row],[Commitment item]],AM:AM,AK:AK)","v":"Insurance Premiums"},{"$f":"_xlfn.XLOOKUP(CI_s[[#This Row],[Commitment item]],AM:AM,AN:AN)","v":"Retiree>65-Premium Medical-CoEPO"},null,null,null,null,516090,516000,null,null,null,null,null,null,null,null,null,null,null,null,null,"Services","Services",4099,511170,"Other Real Estate Services"]
[null,{"$f":"budget_form_lookups[[#This Row],[Long text]]","v":"Other Services"},511010,{"$f":"budget_form_lookups[[#This Row],[SAP GL Account]]","v":511900},{"$f":"budget_form_lookups[[#This Row],[PB-5 Rollup]]","v":"Services"},null,null,null,null,null,515241,"Ret>65PremMed-ConChc","Retiree>65-Premium Medical-Consumer Choice","2015-08-11",{"$f":"_xlfn.XLOOKUP(CI_s[[#This Row],[Commitment item]],AM:AM,AK:AK)","v":"Insurance Premiums"},{"$f":"_xlfn.XLOOKUP(CI_s[[#This Row],[Commitment item]],AM:AM,AN:AN)","v":"Retiree>65-Premium Medical-Consumer Choice"},null,null,null,null,516100,516000,null,null,null,null,null,null,null,null,null,null,null,null,null,"Services","Services","4006/4099/6099/6007",511900,"Other Services"]
[null,{"$f":"budget_form_lookups[[#This Row],[Long text]]","v":"Other Social Services"},511010,{"$f":"budget_form_lookups[[#This Row],[SAP GL Account]]","v":511440},{"$f":"budget_form_lookups[[#This Row],[PB-5 Rollup]]","v":"Services"},null,null,null,null,null,515242,"Ret>65PremMed-MAPD","Retiree>65-Premium Medical-MAPD","2018-03-05",{"$f":"_xlfn.XLOOKUP(CI_s[[#This Row],[Commitment item]],AM:AM,AK:AK)","v":"Insurance Premiums"},{"$f":"_xlfn.XLOOKUP(CI_s[[#This Row],[Commitment item]],AM:AM,AN:AN)","v":"Retiree>65-Premium Medical-MAPD"},null,null,null,null,516110,516000,null,null,null,null,null,null,null,null,null,null,null,null,null,"Services","Services","6201, 6099, 6290",511440,"Other Social Services"]
[null,{"$f":"budget_form_lookups[[#This Row],[Long text]]","v":"Outside Agency Contracts - Conversion"},511010,{"$f":"budget_form_lookups[[#This Row],[SAP GL Account]]","v":511441},{"$f":"budget_form_lookups[[#This Row],[PB-5 Rollup]]","v":"Services"},null,null,null,null,null,515243,"Ret>65PremMed-HDHP","Retiree>65-Premium Medical-HDHP","2019-01-08",{"$f":"_xlfn.XLOOKUP(CI_s[[#This Row],[Commitment item]],AM:AM,AK:AK)","v":"Insurance Premiums"},{"$f":"_xlfn.XLOOKUP(CI_s[[#This Row],[Commitment item]],AM:AM,AN:AN)","v":"Retiree>65-Premium Medical-HDHP"},null,null,null,null,516111,516000,null,null,null,null,null,null,null,null,null,null,null,null,null,"Services","Services",6290,511441,"Outside Agency Contracts - Conversion"]
[null,{"$f":"budget_form_lookups[[#This Row],[Long text]]","v":"Pharmacist Services"},511010,{"$f":"budget_form_lookups[[#This Row],[SAP GL Account]]","v":511050},{"$f":"budget_form_lookups[[#This Row],[PB-5 Rollup]]","v":"Services"},null,null,null,null,null,515250,"Ret>65PremMed-PPO","Retiree>65-Premium Medical-PPO","2012-05-14",{"$f":"_xlfn.XLOOKUP(CI_s[[#This Row],[Commitment item]],AM:AM,AK:AK)","v":"Insurance Premiums"},{"$f":"_xlfn.XLOOKUP(CI_s[[#This Row],[Commitment item]],AM:AM,AN:AN)","v":"Retiree>65-Premium Medical-PPO"},null,null,null,null,516112,516000,null,null,null,null,null,null,null,null,null,null,null,null,null,"Services","Services",4014,511050,"Pharmacist Services"]
[null,{"$f":"budget_form_lookups[[#This Row],[Long text]]","v":"Physician Services"},511010,{"$f":"budget_form_lookups[[#This Row],[SAP GL Account]]","v":511060},{"$f":"budget_form_lookups[[#This Row],[PB-5 Rollup]]","v":"Services"},null,null,null,null,null,515260,"Ret>65PremMed-EPO","Retiree>65-Premium Medical-EPO","2012-05-14",{"$f":"_xlfn.XLOOKUP(CI_s[[#This Row],[Commitment item]],AM:AM,AK:AK)","v":"Insurance Premiums"},{"$f":"_xlfn.XLOOKUP(CI_s[[#This Row],[Commitment item]],AM:AM,AN:AN)","v":"Retiree>65-Premium Medical-EPO"},null,null,null,null,516120,516000,null,null,null,null,null,null,null,null,null,null,null,null,null,"Services","Services","4015 / 6272",511060,"Physician Services"]
[null,{"$f":"budget_form_lookups[[#This Row],[Long text]]","v":"Pool Operation Services"},511010,{"$f":"budget_form_lookups[[#This Row],[SAP GL Account]]","v":511885},{"$f":"budget_form_lookups[[#This Row],[PB-5 Rollup]]","v":"Services"},null,null,null,null,null,515261,"COBRASLPremMedCoEPO","COBRA Stop/Loss Premium Medical-CoEPO","2015-04-22",{"$f":"_xlfn.XLOOKUP(CI_s[[#This Row],[Commitment item]],AM:AM,AK:AK)","v":"Insurance Premiums"},{"$f":"_xlfn.XLOOKUP(CI_s[[#This Row],[Commitment item]],AM:AM,AN:AN)","v":"COBRA-Stop/Loss Premium Medical-CoEPO"},null,null,null,null,516130,516000,null,null,null,null,null,null,null,null,null,null,null,null,null,"Services","Services",6019,511885,"Pool Operation Services"]
[null,{"$f":"budget_form_lookups[[#This Row],[Long text]]","v":"Postal/Freight out Services"},511010,{"$f":"budget_form_lookups[[#This Row],[SAP GL Account]]","v":511730},{"$f":"budget_form_lookups[[#This Row],[PB-5 Rollup]]","v":"Services"},null,null,null,null,null,515262,"COBRASLPremMed-PPO","COBRA Stop/Loss Premium Medical-PPO","2015-04-22",{"$f":"_xlfn.XLOOKUP(CI_s[[#This Row],[Commitment item]],AM:AM,AK:AK)","v":"Insurance Premiums"},{"$f":"_xlfn.XLOOKUP(CI_s[[#This Row],[Commitment item]],AM:AM,AN:AN)","v":"COBRA-Stop/Loss Premium Medical-PPO"},null,null,null,null,516140,516000,null,null,null,null,null,null,null,null,null,null,null,null,null,"Services","Services","4102/6023",511730,"Postal/Freight out Services"]
[null,{"$f":"budget_form_lookups[[#This Row],[Long text]]","v":"Printing Services"},511010,{"$f":"budget_form_lookups[[#This Row],[SAP GL Account]]","v":511910},{"$f":"budget_form_lookups[[#This Row],[PB-5 Rollup]]","v":"Services"},null,null,null,null,null,515263,"COBRASLPremMed-EPO","COBRA Stop/Loss Premium Medical-EPO","2015-04-22",{"$f":"_xlfn.XLOOKUP(CI_s[[#This Row],[Commitment item]],AM:AM,AK:AK)","v":"Insurance Premiums"},{"$f":"_xlfn.XLOOKUP(CI_s[[#This Row],[Commitment item]],AM:AM,AN:AN)","v":"COBRA-Stop/Loss Premium Medical-EPO"},null,null,null,null,516141,516000,null,null,null,null,null,null,null,null,null,null,null,null,null,"Services","Services",6099,511910,"Printing Services"]
[null,{"$f":"budget_form_lookups[[#This Row],[Long text]]","v":"Property Appraisal Services"},511010,{"$f":"budget_form_lookups[[#This Row],[SAP GL Account]]","v":511150},{"$f":"budget_form_lookups[[#This Row],[PB-5 Rollup]]","v":"Services"},null,null,null,null,null,515264,"COBRASLPremMedConChc","COBRA Stop/Loss Premium Medical-Consumer Choice","2015-04-22",{"$f":"_xlfn.XLOOKUP(CI_s[[#This Row],[Commitment item]],AM:AM,AK:AK)","v":"Insurance Premiums"},{"$f":"_xlfn.XLOOKUP(CI_s[[#This Row],[Commitment item]],AM:AM,AN:AN)","v":"COBRA-Premium Medical-CoEPO"},null,null,null,null,516142,516000,null,null,null,null,null,null,null,null,null,null,null,null,null,"Services","Services","4002 and 6003",511150,"Property Appraisal Services"]
[null,{"$f":"budget_form_lookups[[#This Row],[Long text]]","v":"Property Management Services"},511010,{"$f":"budget_form_lookups[[#This Row],[SAP GL Account]]","v":511160},{"$f":"budget_form_lookups[[#This Row],[PB-5 Rollup]]","v":"Services"},null,null,null,null,null,515265,"COBRA-Prem Med-PPO","COBRA-Premium Medical-PPO","2015-04-22",{"$f":"_xlfn.XLOOKUP(CI_s[[#This Row],[Commitment item]],AM:AM,AK:AK)","v":"Insurance Premiums"},{"$f":"_xlfn.XLOOKUP(CI_s[[#This Row],[Commitment item]],AM:AM,AN:AN)","v":"COBRA-Premium Medical-PPO"},null,null,null,null,516150,516000,null,null,null,null,null,null,null,null,null,null,null,null,null,"Services","Services",4021,511160,"Property Management Services"]
[null,{"$f":"budget_form_lookups[[#This Row],[Long text]]","v":"Psychiatric Services"},511010,{"$f":"budget_form_lookups[[#This Row],[SAP GL Account]]","v":511070},{"$f":"budget_form_lookups[[#This Row],[PB-5 Rollup]]","v":"Services"},null,null,null,null,null,515266,"COBRA-Prem Med-EPO","COBRA-Premium Medical-EPO","2015-04-22",{"$f":"_xlfn.XLOOKUP(CI_s[[#This Row],[Commitment item]],AM:AM,AK:AK)","v":"Insurance Premiums"},{"$f":"_xlfn.XLOOKUP(CI_s[[#This Row],[Commitment item]],AM:AM,AN:AN)","v":"COBRA-Premium Medical-EPO"},null,null,null,null,516160,516000,null,null,null,null,null,null,null,null,null,null,null,null,null,"Services","Services",6315,511070,"Psychiatric Services"]
[null,{"$f":"budget_form_lookups[[#This Row],[Long text]]","v":"Psychiatric/Psychological Evaluation Services-Conv"},511010,{"$f":"budget_form_lookups[[#This Row],[SAP GL Account]]","v":511122},{"$f":"budget_form_lookups[[#This Row],[PB-5 Rollup]]","v":"Services"},null,null,null,null,null,515267,"COBRA-Prem MedCoEPO","COBRA-Premium Medical-CoEPO","2015-08-11",{"$f":"_xlfn.XLOOKUP(CI_s[[#This Row],[Commitment item]],AM:AM,AK:AK)","v":"Insurance Premiums"},{"$f":"_xlfn.XLOOKUP(CI_s[[#This Row],[Commitment item]],AM:AM,AN:AN)","v":"COBRA-Premium Medical-CoEPO"},null,null,null,null,516170,516000,null,null,null,null,null,null,null,null,null,null,null,null,null,"Services","Services",6315,511122,"Psychiatric/Psychological Evaluation Services-Conv"]
[null,{"$f":"budget_form_lookups[[#This Row],[Long text]]","v":"Psychological Services"},511010,{"$f":"budget_form_lookups[[#This Row],[SAP GL Account]]","v":511080},{"$f":"budget_form_lookups[[#This Row],[PB-5 Rollup]]","v":"Services"},null,null,null,null,null,515268,"COBRA-Prem MedConChc","COBRA-Premium Medical-Consumer Choice","2015-08-17",{"$f":"_xlfn.XLOOKUP(CI_s[[#This Row],[Commitment item]],AM:AM,AK:AK)","v":"Insurance Premiums"},{"$f":"_xlfn.XLOOKUP(CI_s[[#This Row],[Commitment item]],AM:AM,AN:AN)","v":"COBRA-Premium Medical-Consumer Choice"},null,null,null,null,516180,516000,null,null,null,null,null,null,null,null,null,null,null,null,null,"Services","Services",6315,511080,"Psychological Services"]
[null,{"$f":"budget_form_lookups[[#This Row],[Long text]]","v":"Public Health Programs"},511010,{"$f":"budget_form_lookups[[#This Row],[SAP GL Account]]","v":511380},{"$f":"budget_form_lookups[[#This Row],[PB-5 Rollup]]","v":"Services"},null,null,null,null,null,515269,"COBRASLPremMedHDHP","COBRA Stop/Loss Premium Medical-HDHP","2019-01-08",{"$f":"_xlfn.XLOOKUP(CI_s[[#This Row],[Commitment item]],AM:AM,AK:AK)","v":"Insurance Premiums"},{"$f":"_xlfn.XLOOKUP(CI_s[[#This Row],[Commitment item]],AM:AM,AN:AN)","v":"COBRA Stop/Loss Premium Medical-HDHP"},null,null,null,null,516190,516000,null,null,null,null,null,null,null,null,null,null,null,null,null,"Services","Services",6099,511380,"Public Health Programs"]
[null,{"$f":"budget_form_lookups[[#This Row],[Long text]]","v":"Radios/TV Communication Repairs & Maintenance"},511010,{"$f":"budget_form_lookups[[#This Row],[SAP GL Account]]","v":511570},{"$f":"budget_form_lookups[[#This Row],[PB-5 Rollup]]","v":"Services"},null,null,null,null,null,515270,"COBRA-PremMedHDHP","COBRA-Premium Medical-HDHP","2019-01-08",{"$f":"_xlfn.XLOOKUP(CI_s[[#This Row],[Commitment item]],AM:AM,AK:AK)","v":"Insurance Premiums"},{"$f":"_xlfn.XLOOKUP(CI_s[[#This Row],[Commitment item]],AM:AM,AN:AN)","v":"COBRA-Premium Medical-HDHP"},null,null,null,null,516200,516000,null,null,null,null,null,null,null,null,null,null,null,null,null,"Services","Services",5008,511570,"Radios/TV Communication Repairs & Maintenance"]
[null,{"$f":"budget_form_lookups[[#This Row],[Long text]]","v":"Reimbursable Construction Services"},511010,{"$f":"budget_form_lookups[[#This Row],[SAP GL Account]]","v":511930},{"$f":"budget_form_lookups[[#This Row],[PB-5 Rollup]]","v":"Services"},null,null,null,null,null,515310,"WC Premium","Worker's Compensation Premiums","2012-05-14",{"$f":"_xlfn.XLOOKUP(CI_s[[#This Row],[Commitment item]],AM:AM,AK:AK)","v":"Insurance Premiums"},{"$f":"_xlfn.XLOOKUP(CI_s[[#This Row],[Commitment item]],AM:AM,AN:AN)","v":"Worker's Compensation Premiums"},null,null,null,null,516210,516000,null,null,null,null,null,null,null,null,null,null,null,null,null,"Services","Services","6099 - CIP non capital reimbursement",511930,"Reimbursable Construction Services"]
[null,{"$f":"budget_form_lookups[[#This Row],[Long text]]","v":"Rent Application Fee for MHPD"},511010,{"$f":"budget_form_lookups[[#This Row],[SAP GL Account]]","v":511396},{"$f":"budget_form_lookups[[#This Row],[PB-5 Rollup]]","v":"Services"},null,null,null,null,null,515320,"Gen Ins Prem","General Insurance Premiums","2012-05-14",{"$f":"_xlfn.XLOOKUP(CI_s[[#This Row],[Commitment item]],AM:AM,AK:AK)","v":"Insurance Premiums"},{"$f":"_xlfn.XLOOKUP(CI_s[[#This Row],[Commitment item]],AM:AM,AN:AN)","v":"General Insurance Premiums"},null,null,null,null,516211,516000,null,null,null,null,null,null,null,null,null,null,null,null,null,"Services","Rent Application Fee for MHPD",null,511396,"Rent Application Fee for MHPD"]
[null,{"$f":"budget_form_lookups[[#This Row],[Long text]]","v":"Rent Assistance"},511390,{"$f":"budget_form_lookups[[#This Row],[SAP GL Account]]","v":511390},{"$f":"budget_form_lookups[[#This Row],[PB-5 Rollup]]","v":"Services"},null,null,null,null,null,515330,"Gen Liab Prem","General Liability Premiums","2012-05-14",{"$f":"_xlfn.XLOOKUP(CI_s[[#This Row],[Commitment item]],AM:AM,AK:AK)","v":"Insurance Premiums"},{"$f":"_xlfn.XLOOKUP(CI_s[[#This Row],[Commitment item]],AM:AM,AN:AN)","v":"General Liability Premiums"},null,null,null,null,516212,516000,null,null,null,null,null,null,null,null,null,null,null,null,null,"Services","Rent Assistance",6241,511390,"Rent Assistance"]
[null,{"$f":"budget_form_lookups[[#This Row],[Long text]]","v":"Rent Assistance - Best Single Source"},511395,{"$f":"budget_form_lookups[[#This Row],[SAP GL Account]]","v":511395},{"$f":"budget_form_lookups[[#This Row],[PB-5 Rollup]]","v":"Services"},null,null,null,null,null,515340,"Auto Liab Prem","Auto Liability Premiums","2012-05-14",{"$f":"_xlfn.XLOOKUP(CI_s[[#This Row],[Commitment item]],AM:AM,AK:AK)","v":"Insurance Premiums"},{"$f":"_xlfn.XLOOKUP(CI_s[[#This Row],[Commitment item]],AM:AM,AN:AN)","v":"Auto Liability Premiums"},null,null,null,null,516220,516000,null,null,null,null,null,null,null,null,null,null,null,null,null,"Services","Rent Assistance - Best Single Source",null,511395,"Rent Assistance - Best Single Source"]
[null,{"$f":"budget_form_lookups[[#This Row],[Long text]]","v":"Rent-Building & Land"},511630,{"$f":"budget_form_lookups[[#This Row],[SAP GL Account]]","v":511630},{"$f":"budget_form_lookups[[#This Row],[PB-5 Rollup]]","v":"Services"},null,null,null,null,null,515410,"E&O Ins Prem","E&O Insurance Premiums","2012-05-14",{"$f":"_xlfn.XLOOKUP(CI_s[[#This Row],[Commitment item]],AM:AM,AK:AK)","v":"Insurance Premiums"},{"$f":"_xlfn.XLOOKUP(CI_s[[#This Row],[Commitment item]],AM:AM,AN:AN)","v":"E&O Insurance Premiums"},null,null,null,null,516230,516000,null,null,null,null,null,null,null,null,null,null,null,null,null,"Services","Rent-Building & Land",6102,511630,"Rent-Building & Land"]
[null,{"$f":"budget_form_lookups[[#This Row],[Long text]]","v":"Rent-EDP Equipment/Software"},511550,{"$f":"budget_form_lookups[[#This Row],[SAP GL Account]]","v":511640},{"$f":"budget_form_lookups[[#This Row],[PB-5 Rollup]]","v":"Services"},null,null,null,null,null,515420,"Srty Bnds-All Ofcls","Surety Bonds-All Officials","2012-05-14",{"$f":"_xlfn.XLOOKUP(CI_s[[#This Row],[Commitment item]],AM:AM,AK:AK)","v":"Insurance Premiums"},{"$f":"_xlfn.XLOOKUP(CI_s[[#This Row],[Commitment item]],AM:AM,AN:AN)","v":"Bonds-Elected Officials"},null,null,null,null,516240,516000,null,null,null,null,null,null,null,null,null,null,null,null,null,"Services","Hardware/Software Maintenance",null,511640,"Rent-EDP Equipment/Software"]
[null,{"$f":"budget_form_lookups[[#This Row],[Long text]]","v":"Rent-Office Equipment"},511650,{"$f":"budget_form_lookups[[#This Row],[SAP GL Account]]","v":511650},{"$f":"budget_form_lookups[[#This Row],[PB-5 Rollup]]","v":"Services"},null,null,null,null,null,515430,"Prop Ins Prem","Property Insurance Premiums","2012-05-14",{"$f":"_xlfn.XLOOKUP(CI_s[[#This Row],[Commitment item]],AM:AM,AK:AK)","v":"Insurance Premiums"},{"$f":"_xlfn.XLOOKUP(CI_s[[#This Row],[Commitment item]],AM:AM,AN:AN)","v":"Property Insurance Premiums"},null,null,null,null,516241,516000,null,null,null,null,null,null,null,null,null,null,null,null,null,"Services","Rent-Office Equipment",6103,511650,"Rent-Office Equipment"]
[null,{"$f":"budget_form_lookups[[#This Row],[Long text]]","v":"Rent-Other Machinery & Equipment"},511010,{"$f":"budget_form_lookups[[#This Row],[SAP GL Account]]","v":511670},{"$f":"budget_form_lookups[[#This Row],[PB-5 Rollup]]","v":"Services"},null,null,null,null,null,515510,"Ins Prem Risk Mgmt","Insurance Premiums Risk Management","2012-05-14",{"$f":"_xlfn.XLOOKUP(CI_s[[#This Row],[Commitment item]],AM:AM,AK:AK)","v":"Insurance Premiums"},{"$f":"_xlfn.XLOOKUP(CI_s[[#This Row],[Commitment item]],AM:AM,AN:AN)","v":"Insurance Premiums Risk Management"},null,null,null,null,516242,516000,null,null,null,null,null,null,null,null,null,null,null,null,null,"Services","Services","6104/6106",511670,"Rent-Other Machinery & Equipment"]
[null,{"$f":"budget_form_lookups[[#This Row],[Long text]]","v":"Rent-Polling Places"},511010,{"$f":"budget_form_lookups[[#This Row],[SAP GL Account]]","v":511660},{"$f":"budget_form_lookups[[#This Row],[PB-5 Rollup]]","v":"Services"},null,null,null,null,null,515511,"Gen Ins Prem-CO","DO NOT USE","2012-05-14",{"$f":"_xlfn.XLOOKUP(CI_s[[#This Row],[Commitment item]],AM:AM,AK:AK)","v":"Insurance Premiums"},{"$f":"_xlfn.XLOOKUP(CI_s[[#This Row],[Commitment item]],AM:AM,AN:AN)","v":"General Insurance Premiums - Conversion"},null,null,null,null,516250,516000,null,null,null,null,null,null,null,null,null,null,null,null,null,"Services","Services",6105,511660,"Rent-Polling Places"]
[null,{"$f":"budget_form_lookups[[#This Row],[Long text]]","v":"Residential Services - Conversion"},511010,{"$f":"budget_form_lookups[[#This Row],[SAP GL Account]]","v":511121},{"$f":"budget_form_lookups[[#This Row],[PB-5 Rollup]]","v":"Services"},null,null,null,null,null,515512,"CtyContRetHealthcare","County Contribution for Retiree Healthcare","2012-05-14",{"$f":"_xlfn.XLOOKUP(CI_s[[#This Row],[Commitment item]],AM:AM,AK:AK)","v":"Insurance Premiums"},{"$f":"_xlfn.XLOOKUP(CI_s[[#This Row],[Commitment item]],AM:AM,AN:AN)","v":"Retiree-Premium Medical-Conversion"},null,null,null,null,516260,516000,null,null,null,null,null,null,null,null,null,null,null,null,null,"Services","Services",6024,511121,"Residential Services - Conversion"]
[null,{"$f":"budget_form_lookups[[#This Row],[Long text]]","v":"Road Machinery & Equipment Repairs & Maintenance"},511010,{"$f":"budget_form_lookups[[#This Row],[SAP GL Account]]","v":511580},{"$f":"budget_form_lookups[[#This Row],[PB-5 Rollup]]","v":"Services"},null,null,null,null,null,515513,"Ret-S/L Prem Med-CO","DO NOT USE","2012-05-14",{"$f":"_xlfn.XLOOKUP(CI_s[[#This Row],[Commitment item]],AM:AM,AK:AK)","v":"Insurance Premiums"},{"$f":"_xlfn.XLOOKUP(CI_s[[#This Row],[Commitment item]],AM:AM,AN:AN)","v":"Retiree-Stop/Loss Premium Medical-Conversion"},null,null,null,null,516270,516000,null,null,null,null,null,null,null,null,null,null,null,null,null,"Services","Services",5009,511580,"Road Machinery & Equipment Repairs & Maintenance"]
[null,{"$f":"budget_form_lookups[[#This Row],[Long text]]","v":"Road Repairs & Maintenance"},511010,{"$f":"budget_form_lookups[[#This Row],[SAP GL Account]]","v":511590},{"$f":"budget_form_lookups[[#This Row],[PB-5 Rollup]]","v":"Services"},null,null,null,null,null,515580,"EmpPharmClmLs-EPO","Emp Pharmacy Clms/Loss Pymts Medical-EPO","2015-08-19",{"$f":"_xlfn.XLOOKUP(CI_s[[#This Row],[Commitment item]],AM:AM,AK:AK)","v":"Loss & Claims"},{"$f":"_xlfn.XLOOKUP(CI_s[[#This Row],[Commitment item]],AM:AM,AN:AN)","v":"Emp Pharmacy Clms/Loss Pymts Medical-EPO"},null,null,null,null,516280,516000,null,null,null,null,null,null,null,null,null,null,null,null,null,"Services","Services",5010,511590,"Road Repairs & Maintenance"]
[null,{"$f":"budget_form_lookups[[#This Row],[Long text]]","v":"Security Services"},511010,{"$f":"budget_form_lookups[[#This Row],[SAP GL Account]]","v":511940},{"$f":"budget_form_lookups[[#This Row],[PB-5 Rollup]]","v":"Services"},null,null,null,null,null,515581,"Ret<65PharmClms-EPO","Ret<65 Pharmacy Clms/Loss Pmts Medical-EPO","2015-08-19",{"$f":"_xlfn.XLOOKUP(CI_s[[#This Row],[Commitment item]],AM:AM,AK:AK)","v":"Loss & Claims"},{"$f":"_xlfn.XLOOKUP(CI_s[[#This Row],[Commitment item]],AM:AM,AN:AN)","v":"Ret<65 Pharmacy Clms/Loss Pmts Medical-EPO"},null,null,null,null,516290,516000,null,null,null,null,null,null,null,null,null,null,null,null,null,"Services","Services",6031,511940,"Security Services"]
[null,{"$f":"budget_form_lookups[[#This Row],[Long text]]","v":"Septic Tank Repairs & Maintenance"},511010,{"$f":"budget_form_lookups[[#This Row],[SAP GL Account]]","v":511600},{"$f":"budget_form_lookups[[#This Row],[PB-5 Rollup]]","v":"Services"},null,null,null,null,null,515582,"Ret>65PharmClms-EPO","Ret>65 Pharmacy Clms/Loss Pmts Medical-EPO","2015-08-19",{"$f":"_xlfn.XLOOKUP(CI_s[[#This Row],[Commitment item]],AM:AM,AK:AK)","v":"Loss & Claims"},{"$f":"_xlfn.XLOOKUP(CI_s[[#This Row],[Commitment item]],AM:AM,AN:AN)","v":"Ret>65 Pharmacy Clms/Loss Pmts Medical-EPO"},null,null,null,null,516300,516000,null,null,null,null,null,null,null,null,null,null,null,null,null,"Services","Services",5011,511600,"Septic Tank Repairs & Maintenance"]
[null,{"$f":"budget_form_lookups[[#This Row],[Long text]]","v":"Substance Abuse Program-Conversion"},511010,{"$f":"budget_form_lookups[[#This Row],[SAP GL Account]]","v":511124},{"$f":"budget_form_lookups[[#This Row],[PB-5 Rollup]]","v":"Services"},null,null,null,null,null,515583,"COBRAPharmClms-EPO","COBRA Pharmacy Clms/Loss Pmts Medical-EPO","2015-08-19",{"$f":"_xlfn.XLOOKUP(CI_s[[#This Row],[Commitment item]],AM:AM,AK:AK)","v":"Loss & Claims"},{"$f":"_xlfn.XLOOKUP(CI_s[[#This Row],[Commitment item]],AM:AM,AN:AN)","v":"COBRA Pharmacy Clms/Loss Pmts Medical-EPO"},null,null,null,null,516310,516000,null,null,null,null,null,null,null,null,null,null,null,null,null,"Services","Services",6293,511124,"Substance Abuse Program-Conversion"]
[null,{"$f":"budget_form_lookups[[#This Row],[Long text]]","v":"Substance Abuse Screening"},511010,{"$f":"budget_form_lookups[[#This Row],[SAP GL Account]]","v":511090},{"$f":"budget_form_lookups[[#This Row],[PB-5 Rollup]]","v":"Services"},null,null,null,null,null,515585,"EmpPharmClmLs-PPO","Emp Pharmacy Clms/Loss Pymts Medical-PPO","2015-08-19",{"$f":"_xlfn.XLOOKUP(CI_s[[#This Row],[Commitment item]],AM:AM,AK:AK)","v":"Loss & Claims"},{"$f":"_xlfn.XLOOKUP(CI_s[[#This Row],[Commitment item]],AM:AM,AN:AN)","v":"Emp Pharmacy Clms/Loss Pymts Medical-PPO"},null,null,null,null,516311,516000,null,null,null,null,null,null,null,null,null,null,null,null,null,"Services","Services",6272,511090,"Substance Abuse Screening"]
[null,{"$f":"budget_form_lookups[[#This Row],[Long text]]","v":"Temp Personnel Services-Clerical/Managerial/Exec"},511010,{"$f":"budget_form_lookups[[#This Row],[SAP GL Account]]","v":511950},{"$f":"budget_form_lookups[[#This Row],[PB-5 Rollup]]","v":"Services"},null,null,null,null,null,515586,"Ret<65PharmClms-PPO","Ret<65 Pharmacy Clms/Loss Pmts Medical-PPO","2015-08-19",{"$f":"_xlfn.XLOOKUP(CI_s[[#This Row],[Commitment item]],AM:AM,AK:AK)","v":"Loss & Claims"},{"$f":"_xlfn.XLOOKUP(CI_s[[#This Row],[Commitment item]],AM:AM,AN:AN)","v":"Ret<65 Pharmacy Clms/Loss Pmts Medical-PPO"},null,null,null,null,516312,516000,null,null,null,null,null,null,null,null,null,null,null,null,null,"Services","Services",6008,511950,"Temp Personnel Services-Clerical/Managerial/Exec"]
[null,{"$f":"budget_form_lookups[[#This Row],[Long text]]","v":"Transportation Assistance"},511010,{"$f":"budget_form_lookups[[#This Row],[SAP GL Account]]","v":511400},{"$f":"budget_form_lookups[[#This Row],[PB-5 Rollup]]","v":"Services"},null,null,null,null,null,515587,"Ret>65PharmClms-PPO","Ret>65 Pharmacy Clms/Loss Pmts Medical-PPO","2015-08-19",{"$f":"_xlfn.XLOOKUP(CI_s[[#This Row],[Commitment item]],AM:AM,AK:AK)","v":"Loss & Claims"},{"$f":"_xlfn.XLOOKUP(CI_s[[#This Row],[Commitment item]],AM:AM,AN:AN)","v":"Ret>65 Pharmacy Clms/Loss Pmts Medical-PPO"},null,null,null,null,516320,516000,null,null,null,null,null,null,null,null,null,null,null,null,null,"Services","Services",6251,511400,"Transportation Assistance"]
[null,{"$f":"budget_form_lookups[[#This Row],[Long text]]","v":"Treatment Services"},{"$f":"IFERROR(INDEX(V:V,MATCH(D386,U:U,0)),D386)","v":511010},{"$f":"budget_form_lookups[[#This Row],[SAP GL Account]]","v":511100},{"$f":"budget_form_lookups[[#This Row],[PB-5 Rollup]]","v":"Services"},null,null,null,null,null,515588,"COBRAPharmClms-PPO","COBRA Pharmacy Clms/Loss Pmts Medical-PPO","2015-08-19",{"$f":"_xlfn.XLOOKUP(CI_s[[#This Row],[Commitment item]],AM:AM,AK:AK)","v":"Loss & Claims"},{"$f":"_xlfn.XLOOKUP(CI_s[[#This Row],[Commitment item]],AM:AM,AN:AN)","v":"COBRA Pharmacy Clms/Loss Pmts Medical-PPO"},null,null,null,null,516330,516000,null,null,null,null,null,null,null,null,null,null,null,null,null,"Services","Services","4019 / 6099 / 6291/4099",511100,"Treatment Services"]
[null,{"$f":"budget_form_lookups[[#This Row],[Long text]]","v":"Tree Mitigation Services"},511010,{"$f":"budget_form_lookups[[#This Row],[SAP GL Account]]","v":511145},{"$f":"budget_form_lookups[[#This Row],[PB-5 Rollup]]","v":"Services"},null,null,null,null,null,515590,"EmpPharmClmLs-CC","Emp Pharmacy Clms/Loss Pymts Medical-Cons Choice","2015-08-19",{"$f":"_xlfn.XLOOKUP(CI_s[[#This Row],[Commitment item]],AM:AM,AK:AK)","v":"Loss & Claims"},{"$f":"_xlfn.XLOOKUP(CI_s[[#This Row],[Commitment item]],AM:AM,AN:AN)","v":"Emp Pharmacy Clms/Loss Pymts Medical-Cons Choice"},null,null,null,null,516340,516000,null,null,null,null,null,null,null,null,null,null,null,null,null,"Services","Services",null,511145,"Tree Mitigation Services"]
[null,{"$f":"budget_form_lookups[[#This Row],[Long text]]","v":"Trunk Lines"},511010,{"$f":"budget_form_lookups[[#This Row],[SAP GL Account]]","v":511740},{"$f":"budget_form_lookups[[#This Row],[PB-5 Rollup]]","v":"Services"},null,null,null,null,null,515591,"Ret<65PharmClms-CC","Ret<65 Pharmacy Clms/Loss Pmts Medical-Cons Choice","2015-08-19",{"$f":"_xlfn.XLOOKUP(CI_s[[#This Row],[Commitment item]],AM:AM,AK:AK)","v":"Loss & Claims"},{"$f":"_xlfn.XLOOKUP(CI_s[[#This Row],[Commitment item]],AM:AM,AN:AN)","v":"Ret<65 Pharmacy Clms/Loss Pmts Medical-Cons Choice"},null,null,null,null,516341,516000,null,null,null,null,null,null,null,null,null,null,null,null,null,"Services","Services",4104,511740,"Trunk Lines"]
[null,{"$f":"budget_form_lookups[[#This Row],[Long text]]","v":"Uniform Rental Service"},511010,{"$f":"budget_form_lookups[[#This Row],[SAP GL Account]]","v":511960},{"$f":"budget_form_lookups[[#This Row],[PB-5 Rollup]]","v":"Services"},null,null,null,null,null,515592,"Ret>65PharmClms-CC","Ret>65 Pharmacy Clms/Loss Pmts Medical-Cons Choice","2015-08-19",{"$f":"_xlfn.XLOOKUP(CI_s[[#This Row],[Commitment item]],AM:AM,AK:AK)","v":"Loss & Claims"},{"$f":"_xlfn.XLOOKUP(CI_s[[#This Row],[Commitment item]],AM:AM,AN:AN)","v":"Ret>65 Pharmacy Clms/Loss Pmts Medical-Cons Choice"},null,null,null,null,516342,516000,null,null,null,null,null,null,null,null,null,null,null,null,null,"Services","Services",6028,511960,"Uniform Rental Service"]
[null,{"$f":"budget_form_lookups[[#This Row],[Long text]]","v":"Utilities - Conversion"},511460,{"$f":"budget_form_lookups[[#This Row],[SAP GL Account]]","v":511459},{"$f":"budget_form_lookups[[#This Row],[PB-5 Rollup]]","v":"Services"},null,null,null,null,null,515593,"COBRAPharmClms-CC","COBRA Pharmacy Clms/Loss Pmts Medical-Cons Choice","2015-08-19",{"$f":"_xlfn.XLOOKUP(CI_s[[#This Row],[Commitment item]],AM:AM,AK:AK)","v":"Loss & Claims"},{"$f":"_xlfn.XLOOKUP(CI_s[[#This Row],[Commitment item]],AM:AM,AN:AN)","v":"COBRA Pharmacy Clms/Loss Pmts Medical-Cons Choice"},null,null,null,null,516350,516000,null,null,null,null,null,null,null,null,null,null,null,null,null,"Services","Utilities",4801,511459,"Utilities - Conversion"]
[null,{"$f":"budget_form_lookups[[#This Row],[Long text]]","v":"Utility Assistance "},511410,{"$f":"budget_form_lookups[[#This Row],[SAP GL Account]]","v":511410},{"$f":"budget_form_lookups[[#This Row],[PB-5 Rollup]]","v":"Services"},null,null,null,null,null,515595,"Ret>65PharmClms-Drug","Ret>65 Pharmacy Clms/Loss Pmts Medical-Drug Progrm","2015-08-19",{"$f":"_xlfn.XLOOKUP(CI_s[[#This Row],[Commitment item]],AM:AM,AK:AK)","v":"Loss & Claims"},{"$f":"_xlfn.XLOOKUP(CI_s[[#This Row],[Commitment item]],AM:AM,AN:AN)","v":"Ret>65 Pharmacy Clms/Loss Pmts Medical-Drug Progrm"},null,null,null,null,516360,516000,null,null,null,null,null,null,null,null,null,null,null,null,null,"Services","Utility Assistance ","6227/6228/6229/6231/6232/6238",511410,"Utility Assistance "]
[null,{"$f":"budget_form_lookups[[#This Row],[Long text]]","v":"Utility Assistance -CEAP CoPay - Conversion"},511010,{"$f":"budget_form_lookups[[#This Row],[SAP GL Account]]","v":511411},{"$f":"budget_form_lookups[[#This Row],[PB-5 Rollup]]","v":"Services"},null,null,null,null,null,515596,"EmpPharmClmsMedHDHP","Emp Pharmacy Clms/Loss Pmts Medical-HDHP","2019-01-08",{"$f":"_xlfn.XLOOKUP(CI_s[[#This Row],[Commitment item]],AM:AM,AK:AK)","v":"Loss & Claims"},{"$f":"_xlfn.XLOOKUP(CI_s[[#This Row],[Commitment item]],AM:AM,AN:AN)","v":"Ret<65 Pharmacy Clms/Loss Pmts Medical-HDHP"},null,null,null,null,516370,516000,null,null,null,null,null,null,null,null,null,null,null,null,null,"Services","Services",6228,511411,"Utility Assistance -CEAP CoPay - Conversion"]
[null,{"$f":"budget_form_lookups[[#This Row],[Long text]]","v":"Utility Assistance -CEAP Energy Crisis - Conv"},511010,{"$f":"budget_form_lookups[[#This Row],[SAP GL Account]]","v":511412},{"$f":"budget_form_lookups[[#This Row],[PB-5 Rollup]]","v":"Services"},null,null,null,null,null,515597,"Ret<65PharmClmsHDHP","Ret<65 Pharmacy Clms/Loss Pmts Medical-HDHP","2019-01-08",{"$f":"_xlfn.XLOOKUP(CI_s[[#This Row],[Commitment item]],AM:AM,AK:AK)","v":"Loss & Claims"},{"$f":"_xlfn.XLOOKUP(CI_s[[#This Row],[Commitment item]],AM:AM,AN:AN)","v":"Ret>65 Pharmacy Clms/Loss Pmts Medical-HDHP"},null,null,null,null,516380,516000,null,null,null,null,null,null,null,null,null,null,null,null,null,"Services","Services",6229,511412,"Utility Assistance -CEAP Energy Crisis - Conv"]
[null,{"$f":"budget_form_lookups[[#This Row],[Long text]]","v":"Utility Assistance -Donations - Conversion"},511010,{"$f":"budget_form_lookups[[#This Row],[SAP GL Account]]","v":511413},{"$f":"budget_form_lookups[[#This Row],[PB-5 Rollup]]","v":"Services"},null,null,null,null,null,515598,"Ret>65PharmClmsHDHP","Ret>65 Pharmacy Clms/Loss Pmts Medical-HDHP","2019-01-08",{"$f":"_xlfn.XLOOKUP(CI_s[[#This Row],[Commitment item]],AM:AM,AK:AK)","v":"Loss & Claims"},{"$f":"_xlfn.XLOOKUP(CI_s[[#This Row],[Commitment item]],AM:AM,AN:AN)","v":"COBRA Pharmacy Clms/Loss Pmts Medical-HDHP"},null,null,null,null,516390,516000,null,null,null,null,null,null,null,null,null,null,null,null,null,"Services","Services",6232,511413,"Utility Assistance -Donations - Conversion"]
[null,{"$f":"budget_form_lookups[[#This Row],[Long text]]","v":"Utility Assistance -Indigents - Conversion"},511010,{"$f":"budget_form_lookups[[#This Row],[SAP GL Account]]","v":511414},{"$f":"budget_form_lookups[[#This Row],[PB-5 Rollup]]","v":"Services"},null,null,null,null,null,515599,"COBRAPharmClmsHDHP","COBRA Pharmacy Clms/Loss Pmts Medical-HDHP","2019-01-08",{"$f":"_xlfn.XLOOKUP(CI_s[[#This Row],[Commitment item]],AM:AM,AK:AK)","v":"Loss & Claims"},{"$f":"_xlfn.XLOOKUP(CI_s[[#This Row],[Commitment item]],AM:AM,AN:AN)","v":"Retiree>65-Premium Medical-MAPD"},null,null,null,null,516400,516000,null,null,null,null,null,null,null,null,null,null,null,null,null,"Services","Services",6231,511414,"Utility Assistance -Indigents - Conversion"]
[null,{"$f":"budget_form_lookups[[#This Row],[Long text]]","v":"Utility Assistance-Best Single Source"},511417,{"$f":"budget_form_lookups[[#This Row],[SAP GL Account]]","v":511417},{"$f":"budget_form_lookups[[#This Row],[PB-5 Rollup]]","v":"Services"},null,null,null,null,null,516000,"Pharmacy Claims","Pharmacy Claims","2014-11-04",{"$f":"_xlfn.XLOOKUP(CI_s[[#This Row],[Commitment item]],AM:AM,AK:AK)","v":"Loss & Claims"},{"$f":"_xlfn.XLOOKUP(CI_s[[#This Row],[Commitment item]],AM:AM,AN:AN)","v":"Pharmacy Claims"},null,null,null,null,516410,516000,null,null,null,null,null,null,null,null,null,null,null,null,null,"Services","Utility Assistance-Best Single Source",null,511417,"Utility Assistance-Best Single Source"]
[null,{"$f":"budget_form_lookups[[#This Row],[Long text]]","v":"Utility Assistance-CEAP Elderly - Conversion"},511010,{"$f":"budget_form_lookups[[#This Row],[SAP GL Account]]","v":511415},{"$f":"budget_form_lookups[[#This Row],[PB-5 Rollup]]","v":"Services"},null,null,null,null,null,516010,"Emp ActlCL Med-CoEPO","Employee Actual Claims/Loss Payments Medical-CoEPO","2012-05-14",{"$f":"_xlfn.XLOOKUP(CI_s[[#This Row],[Commitment item]],AM:AM,AK:AK)","v":"Loss & Claims"},{"$f":"_xlfn.XLOOKUP(CI_s[[#This Row],[Commitment item]],AM:AM,AN:AN)","v":"Employee Actual Claims/Loss Payments Medical-CoEPO"},null,null,null,null,516420,516000,null,null,null,null,null,null,null,null,null,null,null,null,null,"Services","Services",6227,511415,"Utility Assistance-CEAP Elderly - Conversion"]
[null,{"$f":"budget_form_lookups[[#This Row],[Long text]]","v":"Utility Assistance-FEMA - Conversion"},511010,{"$f":"budget_form_lookups[[#This Row],[SAP GL Account]]","v":511416},{"$f":"budget_form_lookups[[#This Row],[PB-5 Rollup]]","v":"Services"},null,null,null,null,null,516011,"Emp ActlCL Med-ConCh","Empl Actl Clms/Loss Pymts Medical-Consumer Choice","2015-08-11",{"$f":"_xlfn.XLOOKUP(CI_s[[#This Row],[Commitment item]],AM:AM,AK:AK)","v":"Loss & Claims"},{"$f":"_xlfn.XLOOKUP(CI_s[[#This Row],[Commitment item]],AM:AM,AN:AN)","v":"Empl Actl Clms/Loss Pymts Medical-Consumer Choice"},null,null,null,null,516430,516000,null,null,null,null,null,null,null,null,null,null,null,null,null,"Services","Services",6238,511416,"Utility Assistance-FEMA - Conversion"]
[null,{"$f":"budget_form_lookups[[#This Row],[Long text]]","v":"Veterinary Services"},511010,{"$f":"budget_form_lookups[[#This Row],[SAP GL Account]]","v":511110},{"$f":"budget_form_lookups[[#This Row],[PB-5 Rollup]]","v":"Services"},null,null,null,null,null,516012,"Emp ActlCL Med-HDHP","Empl Actl Clms/Loss Pymts Medical-HDHP","2019-01-08",{"$f":"_xlfn.XLOOKUP(CI_s[[#This Row],[Commitment item]],AM:AM,AK:AK)","v":"Loss & Claims"},{"$f":"_xlfn.XLOOKUP(CI_s[[#This Row],[Commitment item]],AM:AM,AN:AN)","v":"Empl Actl Clms/Loss Pymts Medical-HDHP"},null,null,null,null,516431,516000,null,null,null,null,null,null,null,null,null,null,null,null,null,"Services","Services","4018, 4099",511110,"Veterinary Services"]
[null,{"$f":"budget_form_lookups[[#This Row],[Long text]]","v":"Volunteer Service Mgmt"},511010,{"$f":"budget_form_lookups[[#This Row],[SAP GL Account]]","v":511420},{"$f":"budget_form_lookups[[#This Row],[PB-5 Rollup]]","v":"Services"},null,null,null,null,null,516020,"Emp Actl CL Med-PPO","Employee Actual Claims/Loss Payments Medical-PPO","2012-05-14",{"$f":"_xlfn.XLOOKUP(CI_s[[#This Row],[Commitment item]],AM:AM,AK:AK)","v":"Loss & Claims"},{"$f":"_xlfn.XLOOKUP(CI_s[[#This Row],[Commitment item]],AM:AM,AN:AN)","v":"Employee Actual Claims/Loss Payments Medical-PPO"},null,null,null,null,516440,516000,null,null,null,null,null,null,null,null,null,null,null,null,null,"Services","Services",6284,511420,"Volunteer Service Mgmt"]
[null,{"$f":"budget_form_lookups[[#This Row],[Long text]]","v":"Water Resource Dev Sv"},511010,{"$f":"budget_form_lookups[[#This Row],[SAP GL Account]]","v":511980},{"$f":"budget_form_lookups[[#This Row],[PB-5 Rollup]]","v":"Services"},null,null,null,null,null,516030,"Emp Actl CL Med-EPO","Employee Actual Claims/Loss Payments Medical-EPO","2012-05-14",{"$f":"_xlfn.XLOOKUP(CI_s[[#This Row],[Commitment item]],AM:AM,AK:AK)","v":"Loss & Claims"},{"$f":"_xlfn.XLOOKUP(CI_s[[#This Row],[Commitment item]],AM:AM,AN:AN)","v":"Employee Actual Claims/Loss Payments Medical-EPO"},null,null,null,null,516441,516000,null,null,null,null,null,null,null,null,null,null,null,null,null,"Services","Services",null,511980,"Water Resource Dev Sv"]
[null,{"$f":"budget_form_lookups[[#This Row],[Long text]]","v":"Water/Sewer Service"},511460,{"$f":"budget_form_lookups[[#This Row],[SAP GL Account]]","v":511480},{"$f":"budget_form_lookups[[#This Row],[PB-5 Rollup]]","v":"Services"},null,null,null,null,null,516040,"Emp-Adm-CoEPO","Employee-Admin-CoEPO","2012-05-14",{"$f":"_xlfn.XLOOKUP(CI_s[[#This Row],[Commitment item]],AM:AM,AK:AK)","v":"Loss & Claims"},{"$f":"_xlfn.XLOOKUP(CI_s[[#This Row],[Commitment item]],AM:AM,AN:AN)","v":"Employee-Admin-CoEPO"},null,null,null,null,516442,516000,null,null,null,null,null,null,null,null,null,null,null,null,null,"Services","Utilities",4801,511480,"Water/Sewer Service"]
[null,{"$f":"budget_form_lookups[[#This Row],[Long text]]","v":"Water/Sewer Utilities YE Accr"},511471,{"$f":"budget_form_lookups[[#This Row],[SAP GL Account]]","v":511471},{"$f":"budget_form_lookups[[#This Row],[PB-5 Rollup]]","v":"Services"},null,null,null,null,null,516041,"Emp-Adm-ConChc","Employee-Admin-Consumer Choice","2015-08-11",{"$f":"_xlfn.XLOOKUP(CI_s[[#This Row],[Commitment item]],AM:AM,AK:AK)","v":"Loss & Claims"},{"$f":"_xlfn.XLOOKUP(CI_s[[#This Row],[Commitment item]],AM:AM,AN:AN)","v":"Employee-Admin-Consumer Choice"},null,null,null,null,516443,516000,null,null,null,null,null,null,null,null,null,null,null,null,null,"Services","Utilities",4801,511471,"Water/Sewer Utilities YE Accr"]
[null,{"$f":"budget_form_lookups[[#This Row],[Long text]]","v":"Wetland Mitigation"},511010,{"$f":"budget_form_lookups[[#This Row],[SAP GL Account]]","v":511146},{"$f":"budget_form_lookups[[#This Row],[PB-5 Rollup]]","v":"Services"},null,null,null,null,null,516042,"Emp-Adm-HDHP","Employee-Admin-HDHP","2019-01-08",{"$f":"_xlfn.XLOOKUP(CI_s[[#This Row],[Commitment item]],AM:AM,AK:AK)","v":"Loss & Claims"},{"$f":"_xlfn.XLOOKUP(CI_s[[#This Row],[Commitment item]],AM:AM,AN:AN)","v":"Employee-Admin-HDHP"},null,null,null,null,516444,516000,null,null,null,null,null,null,null,null,null,null,null,null,null,"Services","Services",null,511146,"Wetland Mitigation"]
[null,{"$f":"budget_form_lookups[[#This Row],[Long text]]","v":"Workforce Development"},511010,{"$f":"budget_form_lookups[[#This Row],[SAP GL Account]]","v":511430},{"$f":"budget_form_lookups[[#This Row],[PB-5 Rollup]]","v":"Services"},null,null,null,null,null,516050,"Emp-Adm-PPO","Employee-Admin-PPO","2012-05-14",{"$f":"_xlfn.XLOOKUP(CI_s[[#This Row],[Commitment item]],AM:AM,AK:AK)","v":"Loss & Claims"},{"$f":"_xlfn.XLOOKUP(CI_s[[#This Row],[Commitment item]],AM:AM,AN:AN)","v":"Employee-Admin-PPO"},null,null,null,null,516460,516000,null,null,null,null,null,null,null,null,null,null,null,null,null,"Services","Services",6294,511430,"Workforce Development"]
[null,{"$f":"budget_form_lookups[[#This Row],[Long text]]","v":"Aircraft and Boating Supplies & Equipment"},510010,{"$f":"budget_form_lookups[[#This Row],[SAP GL Account]]","v":510010},{"$f":"budget_form_lookups[[#This Row],[PB-5 Rollup]]","v":"Supplies & Equipment"},null,null,null,null,null,516060,"Emp-Adm-EPO","Employee-Admin-EPO","2012-05-14",{"$f":"_xlfn.XLOOKUP(CI_s[[#This Row],[Commitment item]],AM:AM,AK:AK)","v":"Loss & Claims"},{"$f":"_xlfn.XLOOKUP(CI_s[[#This Row],[Commitment item]],AM:AM,AN:AN)","v":"Employee-Admin-EPO"},null,null,null,null,516470,516000,null,null,null,null,null,null,null,null,null,null,null,null,"Operating Expenditures ","Supplies & Equipment","Supplies & Equipment",3022,510010,"Aircraft and Boating Supplies & Equipment",null,null,null,null,null,"Capital Outlay Equipment"]
[null,{"$f":"budget_form_lookups[[#This Row],[Long text]]","v":"Books"},510010,{"$f":"budget_form_lookups[[#This Row],[SAP GL Account]]","v":510020},{"$f":"budget_form_lookups[[#This Row],[PB-5 Rollup]]","v":"Supplies & Equipment"},null,null,null,null,null,516110,"Ret<65ActlCLMedCoEPO","Retiree < 65 Actual Claims/Loss Pmts Medical-CoEPO","2012-05-14",{"$f":"_xlfn.XLOOKUP(CI_s[[#This Row],[Commitment item]],AM:AM,AK:AK)","v":"Loss & Claims"},{"$f":"_xlfn.XLOOKUP(CI_s[[#This Row],[Commitment item]],AM:AM,AN:AN)","v":"Retiree < 65 Actual Claims/Loss Pmts Medical-CoEPO"},null,null,null,null,516480,516000,null,null,null,null,null,null,null,null,null,null,null,null,null,"Supplies & Equipment","Supplies & Equipment",6312,510020,"Books",null,null,null,null,null,"Capital Outlay Mtrl"]
[null,{"$f":"budget_form_lookups[[#This Row],[Long text]]","v":"Building Maintenance Supplies & Equipment"},510010,{"$f":"budget_form_lookups[[#This Row],[SAP GL Account]]","v":510030},{"$f":"budget_form_lookups[[#This Row],[PB-5 Rollup]]","v":"Supplies & Equipment"},null,null,null,null,null,516111,"Ret<65ActlCLMedConCh","Ret<65 Actl Clms/Loss Pmts Medical-Consumer Choice","2015-08-11",{"$f":"_xlfn.XLOOKUP(CI_s[[#This Row],[Commitment item]],AM:AM,AK:AK)","v":"Loss & Claims"},{"$f":"_xlfn.XLOOKUP(CI_s[[#This Row],[Commitment item]],AM:AM,AN:AN)","v":"Ret<65 Actl Clms/Loss Pmts Medical-Consumer Choice"},null,null,null,null,516490,516000,null,null,null,null,null,null,null,null,null,null,null,null,null,"Supplies & Equipment","Supplies & Equipment","3011, 6278",510030,"Building Maintenance Supplies & Equipment",null,null,null,null,null,"County Employment Related Expenses"]
[null,{"$f":"budget_form_lookups[[#This Row],[Long text]]","v":"Chemical Supplies & Equipment"},510010,{"$f":"budget_form_lookups[[#This Row],[SAP GL Account]]","v":510040},{"$f":"budget_form_lookups[[#This Row],[PB-5 Rollup]]","v":"Supplies & Equipment"},null,null,null,null,null,516112,"Ret<65ActlCLMedHDHP","Ret<65 Actl Clms/Loss Pmts Medical-HDHP","2019-01-08",{"$f":"_xlfn.XLOOKUP(CI_s[[#This Row],[Commitment item]],AM:AM,AK:AK)","v":"Loss & Claims"},{"$f":"_xlfn.XLOOKUP(CI_s[[#This Row],[Commitment item]],AM:AM,AN:AN)","v":"Ret<65 Actl Clms/Loss Pmts Medical-HDHP"},null,null,null,null,516500,516000,null,null,null,null,null,null,null,null,null,null,null,null,null,"Supplies & Equipment","Supplies & Equipment",3054,510040,"Chemical Supplies & Equipment",null,null,null,null,null,"Insurance Premiums"]
[null,{"$f":"budget_form_lookups[[#This Row],[Long text]]","v":"Clothing & Uniforms"},510010,{"$f":"budget_form_lookups[[#This Row],[SAP GL Account]]","v":510050},{"$f":"budget_form_lookups[[#This Row],[PB-5 Rollup]]","v":"Supplies & Equipment"},null,null,null,null,null,516120,"Ret<65 ActlCLMed-PPO","Retiree < 65 Actual Claims/Loss Pmts Medical-PPO","2012-05-14",{"$f":"_xlfn.XLOOKUP(CI_s[[#This Row],[Commitment item]],AM:AM,AK:AK)","v":"Loss & Claims"},{"$f":"_xlfn.XLOOKUP(CI_s[[#This Row],[Commitment item]],AM:AM,AN:AN)","v":"Retiree < 65 Actual Claims/Loss Pmts Medical-PPO"},null,null,null,null,516510,516000,null,null,null,null,null,null,null,null,null,null,null,null,null,"Supplies & Equipment","Supplies & Equipment",3035,510050,"Clothing & Uniforms",null,null,null,null,null,"Loss & Claim"]
[null,{"$f":"budget_form_lookups[[#This Row],[Long text]]","v":"Communication Supplies & Equipment"},510010,{"$f":"budget_form_lookups[[#This Row],[SAP GL Account]]","v":510060},{"$f":"budget_form_lookups[[#This Row],[PB-5 Rollup]]","v":"Supplies & Equipment"},null,null,null,null,null,516130,"Ret<65 ActlCLMed-EPO","Retiree < 65 Actual Claims/Loss Pmts Medical-EPO","2012-05-14",{"$f":"_xlfn.XLOOKUP(CI_s[[#This Row],[Commitment item]],AM:AM,AK:AK)","v":"Loss & Claims"},{"$f":"_xlfn.XLOOKUP(CI_s[[#This Row],[Commitment item]],AM:AM,AN:AN)","v":"Retiree < 65 Actual Claims/Loss Pmts Medical-EPO"},null,null,null,null,516610,516000,null,null,null,null,null,null,null,null,null,null,null,null,null,"Supplies & Equipment","Supplies & Equipment",3013,510060,"Communication Supplies & Equipment",null,null,null,null,null,"Miscellaneous Operating"]
[null,{"$f":"budget_form_lookups[[#This Row],[Long text]]","v":"Computer Equipment & Peripherals"},510010,{"$f":"budget_form_lookups[[#This Row],[SAP GL Account]]","v":510070},{"$f":"budget_form_lookups[[#This Row],[PB-5 Rollup]]","v":"Supplies & Equipment"},null,null,null,null,null,516140,"Ret<65-Adm-CoEPO","Retiree<65-Admin-CoEPO","2012-05-14",{"$f":"_xlfn.XLOOKUP(CI_s[[#This Row],[Commitment item]],AM:AM,AK:AK)","v":"Loss & Claims"},{"$f":"_xlfn.XLOOKUP(CI_s[[#This Row],[Commitment item]],AM:AM,AN:AN)","v":"Retiree<65-Admin-CoEPO"},null,null,null,null,516620,516000,null,null,null,null,null,null,null,null,null,null,null,null,null,"Supplies & Equipment","Supplies & Equipment",3001,510070,"Computer Equipment & Peripherals",null,null,null,null,null,"Operating Transfers"]
[null,{"$f":"budget_form_lookups[[#This Row],[Long text]]","v":"CSCD Grant Designated Equipment"},510010,{"$f":"budget_form_lookups[[#This Row],[SAP GL Account]]","v":510035},{"$f":"budget_form_lookups[[#This Row],[PB-5 Rollup]]","v":"Supplies & Equipment"},null,null,null,null,null,516141,"Ret<65-Adm-ConChc","Retiree<65-Admin-Consumer Choice","2015-08-11",{"$f":"_xlfn.XLOOKUP(CI_s[[#This Row],[Commitment item]],AM:AM,AK:AK)","v":"Loss & Claims"},{"$f":"_xlfn.XLOOKUP(CI_s[[#This Row],[Commitment item]],AM:AM,AN:AN)","v":"Retiree<65-Admin-Consumer Choice"},null,null,null,null,516630,516000,null,null,null,null,null,null,null,null,null,null,null,null,null,"Supplies & Equipment","Supplies & Equipment",null,510035,"CSCD Grant Designated Equipment",null,null,null,null,null,"Court & Law Enforcement Related Expenditures"]
[null,{"$f":"budget_form_lookups[[#This Row],[Long text]]","v":"Currency Exchange Diff"},510010,{"$f":"budget_form_lookups[[#This Row],[SAP GL Account]]","v":510980},{"$f":"budget_form_lookups[[#This Row],[PB-5 Rollup]]","v":"Supplies & Equipment"},null,null,null,null,null,516142,"Ret<65-Adm-HDHP","Retiree<65-Admin-HDHP","2019-01-08",{"$f":"_xlfn.XLOOKUP(CI_s[[#This Row],[Commitment item]],AM:AM,AK:AK)","v":"Loss & Claims"},{"$f":"_xlfn.XLOOKUP(CI_s[[#This Row],[Commitment item]],AM:AM,AN:AN)","v":"Retiree<65-Admin-HDHP"},null,null,null,null,516640,516000,null,null,null,null,null,null,null,null,null,null,null,null,null,"Supplies & Equipment","Supplies & Equipment",null,510980,"Currency Exchange Diff"]
[null,{"$f":"budget_form_lookups[[#This Row],[Long text]]","v":"Custodial Supplies & Equipment"},510010,{"$f":"budget_form_lookups[[#This Row],[SAP GL Account]]","v":510080},{"$f":"budget_form_lookups[[#This Row],[PB-5 Rollup]]","v":"Supplies & Equipment"},null,null,null,null,null,516150,"Ret<65-Adm-PPO","Retiree<65-Admin-PPO","2012-05-14",{"$f":"_xlfn.XLOOKUP(CI_s[[#This Row],[Commitment item]],AM:AM,AK:AK)","v":"Loss & Claims"},{"$f":"_xlfn.XLOOKUP(CI_s[[#This Row],[Commitment item]],AM:AM,AN:AN)","v":"Retiree<65-Admin-PPO"},null,null,null,null,516650,516000,null,null,null,null,null,null,null,null,null,null,null,null,null,"Supplies & Equipment","Supplies & Equipment",3031,510080,"Custodial Supplies & Equipment",null,null,null,null,null,"Services"]
[null,{"$f":"budget_form_lookups[[#This Row],[Long text]]","v":"Drug & Pharmaceuticals Supplies"},510010,{"$f":"budget_form_lookups[[#This Row],[SAP GL Account]]","v":510090},{"$f":"budget_form_lookups[[#This Row],[PB-5 Rollup]]","v":"Supplies & Equipment"},null,null,null,null,null,516160,"Ret<65-Adm-EPO","Retiree<65-Admin-EPO","2012-05-14",{"$f":"_xlfn.XLOOKUP(CI_s[[#This Row],[Commitment item]],AM:AM,AK:AK)","v":"Loss & Claims"},{"$f":"_xlfn.XLOOKUP(CI_s[[#This Row],[Commitment item]],AM:AM,AN:AN)","v":"Retiree<65-Admin-EPO"},null,null,null,null,516660,516000,null,null,null,null,null,null,null,null,null,null,null,null,null,"Supplies & Equipment","Supplies & Equipment","3052/6222/6273",510090,"Drug & Pharmaceuticals Supplies",null,null,null,null,null,"Supplies & Equipment"]
[null,{"$f":"budget_form_lookups[[#This Row],[Long text]]","v":"Early Payment Discount-Contra"},510010,{"$f":"budget_form_lookups[[#This Row],[SAP GL Account]]","v":510999},{"$f":"budget_form_lookups[[#This Row],[PB-5 Rollup]]","v":"Supplies & Equipment"},null,null,null,null,null,516210,"Ret>65ActlCLMedCOEPO","Retiree >65 Actual Claims/Loss Pmts Medical-CO EPO","2012-05-14",{"$f":"_xlfn.XLOOKUP(CI_s[[#This Row],[Commitment item]],AM:AM,AK:AK)","v":"Loss & Claims"},{"$f":"_xlfn.XLOOKUP(CI_s[[#This Row],[Commitment item]],AM:AM,AN:AN)","v":"Retiree >65 Actual Claims/Loss Pmts Medical-CO EPO"},null,null,null,null,516670,516000,null,null,null,null,null,null,null,null,null,null,null,null,null,"Supplies & Equipment","Supplies & Equipment","new",510999,"Early Payment Discount-Contra"]
[null,{"$f":"budget_form_lookups[[#This Row],[Long text]]","v":"Electrical Supplies & Equipment"},510010,{"$f":"budget_form_lookups[[#This Row],[SAP GL Account]]","v":510100},{"$f":"budget_form_lookups[[#This Row],[PB-5 Rollup]]","v":"Supplies & Equipment"},null,null,null,null,null,516211,"Ret>65ActlCLMedConCh","Ret>65 Actl Clms/Loss Pmts Medical-Consumer Choice","2015-08-11",{"$f":"_xlfn.XLOOKUP(CI_s[[#This Row],[Commitment item]],AM:AM,AK:AK)","v":"Loss & Claims"},{"$f":"_xlfn.XLOOKUP(CI_s[[#This Row],[Commitment item]],AM:AM,AN:AN)","v":"Ret>65 Actl Clms/Loss Pmts Medical-Consumer Choice"},null,null,null,null,516680,516000,null,null,null,null,null,null,null,null,null,null,null,null,null,"Supplies & Equipment","Supplies & Equipment",3012,510100,"Electrical Supplies & Equipment",null,null,null,null,null,"Travel & Professional Development"]
[null,{"$f":"budget_form_lookups[[#This Row],[Long text]]","v":"Food & Groceries"},510010,{"$f":"budget_form_lookups[[#This Row],[SAP GL Account]]","v":510110},{"$f":"budget_form_lookups[[#This Row],[PB-5 Rollup]]","v":"Supplies & Equipment"},null,null,null,null,null,516212,"Ret>65ActlCLMedHDHP","Ret>65 Actl Clms/Loss Pmts Medical-HDHP","2019-01-08",{"$f":"_xlfn.XLOOKUP(CI_s[[#This Row],[Commitment item]],AM:AM,AK:AK)","v":"Loss & Claims"},{"$f":"_xlfn.XLOOKUP(CI_s[[#This Row],[Commitment item]],AM:AM,AN:AN)","v":"Ret>65 Actl Clms/Loss Pmts Medical-HDHP"},null,null,null,null,516690,516000,null,null,null,null,null,null,null,null,null,null,null,null,null,"Supplies & Equipment","Supplies & Equipment",3033,510110,"Food & Groceries"]
[null,{"$f":"budget_form_lookups[[#This Row],[Long text]]","v":"Fuel"},510120,{"$f":"budget_form_lookups[[#This Row],[SAP GL Account]]","v":510120},{"$f":"budget_form_lookups[[#This Row],[PB-5 Rollup]]","v":"Supplies & Equipment"},null,null,null,null,null,516220,"Ret>65ActlCLMedPPO","Retiree >65 Actual Claims/Loss Pmts Medical-PPO","2012-05-14",{"$f":"_xlfn.XLOOKUP(CI_s[[#This Row],[Commitment item]],AM:AM,AK:AK)","v":"Loss & Claims"},{"$f":"_xlfn.XLOOKUP(CI_s[[#This Row],[Commitment item]],AM:AM,AN:AN)","v":"Retiree >65 Actual Claims/Loss Pmts Medical-PPO"},null,null,null,null,516700,516000,null,null,null,null,null,null,null,null,null,null,null,null,null,"Supplies & Equipment","Fuels, Oils & Lubricants",3023,510120,"Fuel"]
[null,{"$f":"budget_form_lookups[[#This Row],[Long text]]","v":"Groundskeeping Supplies & Equipment"},510010,{"$f":"budget_form_lookups[[#This Row],[SAP GL Account]]","v":510130},{"$f":"budget_form_lookups[[#This Row],[PB-5 Rollup]]","v":"Supplies & Equipment"},null,null,null,null,null,516230,"Ret>65ActlCLMedEPO","Retiree >65 Actual Claims/Loss Pmts Medical-EPO","2012-05-14",{"$f":"_xlfn.XLOOKUP(CI_s[[#This Row],[Commitment item]],AM:AM,AK:AK)","v":"Loss & Claims"},{"$f":"_xlfn.XLOOKUP(CI_s[[#This Row],[Commitment item]],AM:AM,AN:AN)","v":"Retiree >65 Actual Claims/Loss Pmts Medical-EPO"},null,null,null,null,516710,516000,null,null,null,null,null,null,null,null,null,null,null,null,null,"Supplies & Equipment","Supplies & Equipment",3043,510130,"Groundskeeping Supplies & Equipment"]
[null,{"$f":"budget_form_lookups[[#This Row],[Long text]]","v":"Hardware Supplies & Equipment"},510010,{"$f":"budget_form_lookups[[#This Row],[SAP GL Account]]","v":510140},{"$f":"budget_form_lookups[[#This Row],[PB-5 Rollup]]","v":"Supplies & Equipment"},null,null,null,null,null,516240,"Ret>65-Adm-CoEPO","Retiree>65-Admin-CoEPO","2012-05-14",{"$f":"_xlfn.XLOOKUP(CI_s[[#This Row],[Commitment item]],AM:AM,AK:AK)","v":"Loss & Claims"},{"$f":"_xlfn.XLOOKUP(CI_s[[#This Row],[Commitment item]],AM:AM,AN:AN)","v":"Retiree>65-Admin-CoEPO"},null,null,null,null,516810,516000,null,null,null,null,null,null,null,null,null,null,null,null,null,"Supplies & Equipment","Supplies & Equipment",3015,510140,"Hardware Supplies & Equipment"]
[null,{"$f":"budget_form_lookups[[#This Row],[Long text]]","v":"Indisutrial Supplies & Equipment"},510010,{"$f":"budget_form_lookups[[#This Row],[SAP GL Account]]","v":510360},{"$f":"budget_form_lookups[[#This Row],[PB-5 Rollup]]","v":"Supplies & Equipment"},null,null,null,null,null,516241,"Ret>65-Adm-ConChc","Retiree>65-Admin-Consumer Choice","2015-08-11",{"$f":"_xlfn.XLOOKUP(CI_s[[#This Row],[Commitment item]],AM:AM,AK:AK)","v":"Loss & Claims"},{"$f":"_xlfn.XLOOKUP(CI_s[[#This Row],[Commitment item]],AM:AM,AN:AN)","v":"Retiree>65-Admin-Consumer Choice"},null,null,null,null,516890,516000,null,null,null,null,null,null,null,null,null,null,null,null,null,"Supplies & Equipment","Supplies & Equipment",null,510360,"Indisutrial Supplies & Equipment"]
[null,{"$f":"budget_form_lookups[[#This Row],[Long text]]","v":"Initial Entry of Stock Balances (conversion)"},510010,{"$f":"budget_form_lookups[[#This Row],[SAP GL Account]]","v":510499},{"$f":"budget_form_lookups[[#This Row],[PB-5 Rollup]]","v":"Supplies & Equipment"},null,null,null,null,null,516242,"Ret>65-Adm-HDHP","Retiree>65-Admin-HDHP","2019-01-08",{"$f":"_xlfn.XLOOKUP(CI_s[[#This Row],[Commitment item]],AM:AM,AK:AK)","v":"Loss & Claims"},{"$f":"_xlfn.XLOOKUP(CI_s[[#This Row],[Commitment item]],AM:AM,AN:AN)","v":"Retiree>65-Admin-HDHP"},null,null,null,null,517010,517010,null,null,null,null,null,null,null,null,null,null,null,null,null,"Supplies & Equipment","Supplies & Equipment",null,510499,"Initial Entry of Stock Balances (conversion)"]
[null,{"$f":"budget_form_lookups[[#This Row],[Long text]]","v":"Institutional Equipment"},510010,{"$f":"budget_form_lookups[[#This Row],[SAP GL Account]]","v":510150},{"$f":"budget_form_lookups[[#This Row],[PB-5 Rollup]]","v":"Supplies & Equipment"},null,null,null,null,null,516250,"Ret>65-Adm-PPO","Retiree>65-Admin-PPO","2012-05-14",{"$f":"_xlfn.XLOOKUP(CI_s[[#This Row],[Commitment item]],AM:AM,AK:AK)","v":"Loss & Claims"},{"$f":"_xlfn.XLOOKUP(CI_s[[#This Row],[Commitment item]],AM:AM,AN:AN)","v":"Retiree>65-Admin-PPO"},null,null,null,null,517015,517010,null,null,null,null,null,null,null,null,null,null,null,null,null,"Supplies & Equipment","Supplies & Equipment",3036,510150,"Institutional Equipment"]
[null,{"$f":"budget_form_lookups[[#This Row],[Long text]]","v":"Kitchen Supplies & Equipment"},510010,{"$f":"budget_form_lookups[[#This Row],[SAP GL Account]]","v":510160},{"$f":"budget_form_lookups[[#This Row],[PB-5 Rollup]]","v":"Supplies & Equipment"},null,null,null,null,null,516260,"Ret>65-Adm-EPO","Retiree>65-Admin-EPO","2012-05-14",{"$f":"_xlfn.XLOOKUP(CI_s[[#This Row],[Commitment item]],AM:AM,AK:AK)","v":"Loss & Claims"},{"$f":"_xlfn.XLOOKUP(CI_s[[#This Row],[Commitment item]],AM:AM,AN:AN)","v":"Retiree>65-Admin-EPO"},null,null,null,null,518001,518010,null,null,null,null,null,null,null,null,null,null,null,null,null,"Supplies & Equipment","Supplies & Equipment",3032,510160,"Kitchen Supplies & Equipment"]
[null,{"$f":"budget_form_lookups[[#This Row],[Long text]]","v":"Laboratory Supplies & Equipment"},510010,{"$f":"budget_form_lookups[[#This Row],[SAP GL Account]]","v":510170},{"$f":"budget_form_lookups[[#This Row],[PB-5 Rollup]]","v":"Supplies & Equipment"},null,null,null,null,null,516310,"COB ActlCL Med-CoEPO","COBRA Actual Claims/Loss Payments Medical-CoEPO","2012-05-14",{"$f":"_xlfn.XLOOKUP(CI_s[[#This Row],[Commitment item]],AM:AM,AK:AK)","v":"Loss & Claims"},{"$f":"_xlfn.XLOOKUP(CI_s[[#This Row],[Commitment item]],AM:AM,AN:AN)","v":"COBRA-Actual Claims/Loss Pmts Medical-CoEPO"},null,null,null,null,518002,518010,null,null,null,null,null,null,null,null,null,null,null,null,null,"Supplies & Equipment","Supplies & Equipment",3053,510170,"Laboratory Supplies & Equipment"]
[null,{"$f":"budget_form_lookups[[#This Row],[Long text]]","v":"Law Enforcement Supplies & Equipment"},510010,{"$f":"budget_form_lookups[[#This Row],[SAP GL Account]]","v":510180},{"$f":"budget_form_lookups[[#This Row],[PB-5 Rollup]]","v":"Supplies & Equipment"},null,null,null,null,null,516311,"COB ActlCL Med-ConCh","COBRA Actl Clms/Loss Pmts Medical-Consumer Choice","2015-08-11",{"$f":"_xlfn.XLOOKUP(CI_s[[#This Row],[Commitment item]],AM:AM,AK:AK)","v":"Loss & Claims"},{"$f":"_xlfn.XLOOKUP(CI_s[[#This Row],[Commitment item]],AM:AM,AN:AN)","v":"COBRA Actl Clms/Loss Pmts Medical-Consumer Choice"},null,null,null,null,518010,518010,null,null,null,null,null,null,null,null,null,null,null,null,null,"Supplies & Equipment","Supplies & Equipment",3055,510180,"Law Enforcement Supplies & Equipment"]
[null,{"$f":"budget_form_lookups[[#This Row],[Long text]]","v":"Material Reclass YE"},510010,{"$f":"budget_form_lookups[[#This Row],[SAP GL Account]]","v":510498},{"$f":"budget_form_lookups[[#This Row],[PB-5 Rollup]]","v":"Supplies & Equipment"},null,null,null,null,null,516312,"COB ActlCL Med-HDHP","COBRA Actl Clms/Loss Pmts Medical-HDHP","2019-01-08",{"$f":"_xlfn.XLOOKUP(CI_s[[#This Row],[Commitment item]],AM:AM,AK:AK)","v":"Loss & Claims"},{"$f":"_xlfn.XLOOKUP(CI_s[[#This Row],[Commitment item]],AM:AM,AN:AN)","v":"COBRA Actl Clms/Loss Pmts Medical-HDHP"},null,null,null,null,518020,518010,null,null,null,null,null,null,null,null,null,null,null,null,null,"Supplies & Equipment","Supplies & Equipment",null,510498,"Material Reclass YE"]
[null,{"$f":"budget_form_lookups[[#This Row],[Long text]]","v":"Material Reimbursement"},510010,{"$f":"budget_form_lookups[[#This Row],[SAP GL Account]]","v":510497},{"$f":"budget_form_lookups[[#This Row],[PB-5 Rollup]]","v":"Supplies & Equipment"},null,null,null,null,null,516320,"COB Actl CL Med-PPO","COBRA Actual Claims/Loss Payments Medical-PPO","2012-05-14",{"$f":"_xlfn.XLOOKUP(CI_s[[#This Row],[Commitment item]],AM:AM,AK:AK)","v":"Loss & Claims"},{"$f":"_xlfn.XLOOKUP(CI_s[[#This Row],[Commitment item]],AM:AM,AN:AN)","v":"COBRA-Actual Claims/Loss Pmts Medical-PPO"},null,null,null,null,518030,518010,null,null,null,null,null,null,null,null,null,null,null,null,null,"Supplies & Equipment","Supplies & Equipment",null,510497,"Material Reimbursement"]
[null,{"$f":"budget_form_lookups[[#This Row],[Long text]]","v":"Medical/Dental Supplies & Equipment"},510010,{"$f":"budget_form_lookups[[#This Row],[SAP GL Account]]","v":510190},{"$f":"budget_form_lookups[[#This Row],[PB-5 Rollup]]","v":"Supplies & Equipment"},null,null,null,null,null,516330,"COB Actl CL Med-EPO","COBRA Actual Claims/Loss Payments Medical-EPO","2012-05-14",{"$f":"_xlfn.XLOOKUP(CI_s[[#This Row],[Commitment item]],AM:AM,AK:AK)","v":"Loss & Claims"},{"$f":"_xlfn.XLOOKUP(CI_s[[#This Row],[Commitment item]],AM:AM,AN:AN)","v":"COBRA-Actual Claims/Loss Pmts Medical-EPO"},null,null,null,null,518110,518010,null,null,null,null,null,null,null,null,null,null,null,null,null,"Supplies & Equipment","Supplies & Equipment","3051/6225",510190,"Medical/Dental Supplies & Equipment"]
[null,{"$f":"budget_form_lookups[[#This Row],[Long text]]","v":"Office Equipment"},510010,{"$f":"budget_form_lookups[[#This Row],[SAP GL Account]]","v":510200},{"$f":"budget_form_lookups[[#This Row],[PB-5 Rollup]]","v":"Supplies & Equipment"},null,null,null,null,null,516340,"COBRA-Adm-CoEPO","COBRA-Admin-CoEPO","2012-05-14",{"$f":"_xlfn.XLOOKUP(CI_s[[#This Row],[Commitment item]],AM:AM,AK:AK)","v":"Loss & Claims"},{"$f":"_xlfn.XLOOKUP(CI_s[[#This Row],[Commitment item]],AM:AM,AN:AN)","v":"COBRA-Admin-CoEPO"},null,null,null,null,518120,518010,null,null,null,null,null,null,null,null,null,null,null,null,null,"Supplies & Equipment","Supplies & Equipment",3001,510200,"Office Equipment"]
[null,{"$f":"budget_form_lookups[[#This Row],[Long text]]","v":"Office Furniture"},510010,{"$f":"budget_form_lookups[[#This Row],[SAP GL Account]]","v":510210},{"$f":"budget_form_lookups[[#This Row],[PB-5 Rollup]]","v":"Supplies & Equipment"},null,null,null,null,null,516341,"COBRA-Adm-ConChc","COBRA-Admin-Consumer Choice","2015-08-11",{"$f":"_xlfn.XLOOKUP(CI_s[[#This Row],[Commitment item]],AM:AM,AK:AK)","v":"Loss & Claims"},{"$f":"_xlfn.XLOOKUP(CI_s[[#This Row],[Commitment item]],AM:AM,AN:AN)","v":"COBRA-Admin-Consumer Choice"},null,null,null,null,525280,525280,"stands on its own",null,null,null,null,null,null,null,null,null,null,null,null,"Supplies & Equipment","Supplies & Equipment",3001,510210,"Office Furniture"]
[null,{"$f":"budget_form_lookups[[#This Row],[Long text]]","v":"Office Supplies"},510010,{"$f":"budget_form_lookups[[#This Row],[SAP GL Account]]","v":510220},{"$f":"budget_form_lookups[[#This Row],[PB-5 Rollup]]","v":"Supplies & Equipment"},null,null,null,null,null,516342,"COBRA-Adm-HDHP","COBRA-Admin-HDHP","2019-01-08",{"$f":"_xlfn.XLOOKUP(CI_s[[#This Row],[Commitment item]],AM:AM,AK:AK)","v":"Loss & Claims"},{"$f":"_xlfn.XLOOKUP(CI_s[[#This Row],[Commitment item]],AM:AM,AN:AN)","v":"COBRA-Admin-HDHP"},null,null,null,null,520010,520010,null,null,null,null,null,null,null,null,null,null,null,null,null,"Supplies & Equipment","Supplies & Equipment",3001,510220,"Office Supplies"]
[null,{"$f":"budget_form_lookups[[#This Row],[Long text]]","v":"Office Supplies/Equipment - Conversion"},510010,{"$f":"budget_form_lookups[[#This Row],[SAP GL Account]]","v":510230},{"$f":"budget_form_lookups[[#This Row],[PB-5 Rollup]]","v":"Supplies & Equipment"},null,null,null,null,null,516350,"COBRA-Adm-PPO","COBRA-Admin-PPO","2012-05-14",{"$f":"_xlfn.XLOOKUP(CI_s[[#This Row],[Commitment item]],AM:AM,AK:AK)","v":"Loss & Claims"},{"$f":"_xlfn.XLOOKUP(CI_s[[#This Row],[Commitment item]],AM:AM,AN:AN)","v":"COBRA-Admin-PPO"},null,null,null,null,520020,520010,null,null,null,null,null,null,null,null,null,null,null,null,null,"Supplies & Equipment","Supplies & Equipment",3001,510230,"Office Supplies/Equipment - Conversion"]
[null,{"$f":"budget_form_lookups[[#This Row],[Long text]]","v":"Oils & Lubricants"},510120,{"$f":"budget_form_lookups[[#This Row],[SAP GL Account]]","v":510125},{"$f":"budget_form_lookups[[#This Row],[PB-5 Rollup]]","v":"Supplies & Equipment"},null,null,null,null,null,516360,"COBRA-Adm-EPO","COBRA-Admin-EPO","2012-05-14",{"$f":"_xlfn.XLOOKUP(CI_s[[#This Row],[Commitment item]],AM:AM,AK:AK)","v":"Loss & Claims"},{"$f":"_xlfn.XLOOKUP(CI_s[[#This Row],[Commitment item]],AM:AM,AN:AN)","v":"COBRA-Admin-EPO"},null,null,null,null,520030,520010,null,null,null,null,null,null,null,null,null,null,null,null,null,"Supplies & Equipment","Fuels, Oils & Lubricants",3023,510125,"Oils & Lubricants"]
[null,{"$f":"budget_form_lookups[[#This Row],[Long text]]","v":"Other Supplies & Equipment"},510010,{"$f":"budget_form_lookups[[#This Row],[SAP GL Account]]","v":510240},{"$f":"budget_form_lookups[[#This Row],[PB-5 Rollup]]","v":"Supplies & Equipment"},null,null,null,null,null,516410,"Co AutoPhysicalDmg","County Auto-Physical Damage","2012-05-14",{"$f":"_xlfn.XLOOKUP(CI_s[[#This Row],[Commitment item]],AM:AM,AK:AK)","v":"Loss & Claims"},{"$f":"_xlfn.XLOOKUP(CI_s[[#This Row],[Commitment item]],AM:AM,AN:AN)","v":"County Auto-Physical Damage"},null,null,null,null,520040,520010,null,null,null,null,null,null,null,null,null,null,null,null,null,"Supplies & Equipment","Supplies & Equipment","3099/7508",510240,"Other Supplies & Equipment"]
[null,{"$f":"budget_form_lookups[[#This Row],[Long text]]","v":"Paint Supplies & Equipment"},510010,{"$f":"budget_form_lookups[[#This Row],[SAP GL Account]]","v":510250},{"$f":"budget_form_lookups[[#This Row],[PB-5 Rollup]]","v":"Supplies & Equipment"},null,null,null,null,null,516420,"E&O Actl CL Pmts","E&O Actual Claims/Loss Payments","2012-05-14",{"$f":"_xlfn.XLOOKUP(CI_s[[#This Row],[Commitment item]],AM:AM,AK:AK)","v":"Loss & Claims"},{"$f":"_xlfn.XLOOKUP(CI_s[[#This Row],[Commitment item]],AM:AM,AN:AN)","v":"E&O Actual Claims/Loss Payments"},null,null,null,null,520050,520010,null,null,null,null,null,null,null,null,null,null,null,null,null,"Supplies & Equipment","Supplies & Equipment",3014,510250,"Paint Supplies & Equipment"]
[null,{"$f":"budget_form_lookups[[#This Row],[Long text]]","v":"Procurement Shipping"},510010,{"$f":"budget_form_lookups[[#This Row],[SAP GL Account]]","v":510990},{"$f":"budget_form_lookups[[#This Row],[PB-5 Rollup]]","v":"Supplies & Equipment"},null,null,null,null,null,516430,"Gen LiabClm","General Liability Claims","2012-05-14",{"$f":"_xlfn.XLOOKUP(CI_s[[#This Row],[Commitment item]],AM:AM,AK:AK)","v":"Loss & Claims"},{"$f":"_xlfn.XLOOKUP(CI_s[[#This Row],[Commitment item]],AM:AM,AN:AN)","v":"General Liability Claims"},null,null,null,null,520060,520010,null,null,null,null,null,null,null,null,null,null,null,null,null,"Supplies & Equipment","Supplies & Equipment","new",510990,"Procurement Shipping"]
[null,{"$f":"budget_form_lookups[[#This Row],[Long text]]","v":"Prompt Pay Interest Expense"},510010,{"$f":"budget_form_lookups[[#This Row],[SAP GL Account]]","v":510900},{"$f":"budget_form_lookups[[#This Row],[PB-5 Rollup]]","v":"Supplies & Equipment"},null,null,null,null,null,516431,"Personal Injury Clms","Personal Injury Claims","2020-04-01",{"$f":"_xlfn.XLOOKUP(CI_s[[#This Row],[Commitment item]],AM:AM,AK:AK)","v":"Loss & Claims"},{"$f":"_xlfn.XLOOKUP(CI_s[[#This Row],[Commitment item]],AM:AM,AN:AN)","v":"Personal Injury Claims"},null,null,null,null,520070,520010,null,null,null,null,null,null,null,null,null,null,null,null,null,"Supplies & Equipment","Supplies & Equipment",null,510900,"Prompt Pay Interest Expense"]
[null,{"$f":"budget_form_lookups[[#This Row],[Long text]]","v":"Recreational Supplies & Equipment"},510010,{"$f":"budget_form_lookups[[#This Row],[SAP GL Account]]","v":510270},{"$f":"budget_form_lookups[[#This Row],[PB-5 Rollup]]","v":"Supplies & Equipment"},null,null,null,null,null,516440,"Intn Prop Dmg","Internal Property Damage","2012-05-14",{"$f":"_xlfn.XLOOKUP(CI_s[[#This Row],[Commitment item]],AM:AM,AK:AK)","v":"Loss & Claims"},{"$f":"_xlfn.XLOOKUP(CI_s[[#This Row],[Commitment item]],AM:AM,AN:AN)","v":"Internal Property Damage"},null,null,null,null,520080,520010,null,null,null,null,null,null,null,null,null,null,null,null,null,"Supplies & Equipment","Supplies & Equipment",3041,510270,"Recreational Supplies & Equipment"]
[null,{"$f":"budget_form_lookups[[#This Row],[Long text]]","v":"Road and Highway Supplies & Equipment"},510010,{"$f":"budget_form_lookups[[#This Row],[SAP GL Account]]","v":510280},{"$f":"budget_form_lookups[[#This Row],[PB-5 Rollup]]","v":"Supplies & Equipment"},null,null,null,null,null,516441,"Ret-ActlCLMed-PPO CO","DO NOT USE","2012-05-14",{"$f":"_xlfn.XLOOKUP(CI_s[[#This Row],[Commitment item]],AM:AM,AK:AK)","v":"Loss & Claims"},{"$f":"_xlfn.XLOOKUP(CI_s[[#This Row],[Commitment item]],AM:AM,AN:AN)","v":"Retiree- Actual Claims/Loss Pmts Medical-PPO Conv"},null,null,null,null,520090,520010,null,null,null,null,null,null,null,null,null,null,null,null,null,"Supplies & Equipment","Supplies & Equipment",3061,510280,"Road and Highway Supplies & Equipment"]
[null,{"$f":"budget_form_lookups[[#This Row],[Long text]]","v":"Road Material-Asphaltic"},510010,{"$f":"budget_form_lookups[[#This Row],[SAP GL Account]]","v":510290},{"$f":"budget_form_lookups[[#This Row],[PB-5 Rollup]]","v":"Supplies & Equipment"},null,null,null,null,null,516442,"Ret-ActlCLMedCoEPOCO","DO NOT USE","2012-05-14",{"$f":"_xlfn.XLOOKUP(CI_s[[#This Row],[Commitment item]],AM:AM,AK:AK)","v":"Loss & Claims"},{"$f":"_xlfn.XLOOKUP(CI_s[[#This Row],[Commitment item]],AM:AM,AN:AN)","v":"Retiree-Actual Claims/Loss Pmts Medical-CoEPO Conv"},null,null,null,null,520100,520010,null,null,null,null,null,null,null,null,null,null,null,null,null,"Supplies & Equipment","Supplies & Equipment",3063,510290,"Road Material-Asphaltic"]
[null,{"$f":"budget_form_lookups[[#This Row],[Long text]]","v":"Road Material-Non Asphaltic"},510010,{"$f":"budget_form_lookups[[#This Row],[SAP GL Account]]","v":510300},{"$f":"budget_form_lookups[[#This Row],[PB-5 Rollup]]","v":"Supplies & Equipment"},null,null,null,null,null,516443,"Ret-ActlCLMed-EPO-CO","DO NOT USE","2012-05-14",{"$f":"_xlfn.XLOOKUP(CI_s[[#This Row],[Commitment item]],AM:AM,AK:AK)","v":"Loss & Claims"},{"$f":"_xlfn.XLOOKUP(CI_s[[#This Row],[Commitment item]],AM:AM,AN:AN)","v":"Retiree-Actual Claims/Loss Pmts Medical-EPO-Conv"},null,null,null,null,520110,520010,null,null,null,null,null,null,null,null,null,null,null,null,null,"Supplies & Equipment","Supplies & Equipment",3064,510300,"Road Material-Non Asphaltic"]
[null,{"$f":"budget_form_lookups[[#This Row],[Long text]]","v":"Safety Supplies & Equipment"},510010,{"$f":"budget_form_lookups[[#This Row],[SAP GL Account]]","v":510260},{"$f":"budget_form_lookups[[#This Row],[PB-5 Rollup]]","v":"Supplies & Equipment"},null,null,null,null,null,516444,"Ret-Adm-CO","DO NOT USE","2012-05-14",{"$f":"_xlfn.XLOOKUP(CI_s[[#This Row],[Commitment item]],AM:AM,AK:AK)","v":"Loss & Claims"},{"$f":"_xlfn.XLOOKUP(CI_s[[#This Row],[Commitment item]],AM:AM,AN:AN)","v":"Retiree-Admin-Conversion"},null,null,null,null,520120,520010,null,null,null,null,null,null,null,null,null,null,null,null,null,"Supplies & Equipment","Supplies & Equipment","new",510260,"Safety Supplies & Equipment"]
[null,{"$f":"budget_form_lookups[[#This Row],[Long text]]","v":"Software"},510010,{"$f":"budget_form_lookups[[#This Row],[SAP GL Account]]","v":510310},{"$f":"budget_form_lookups[[#This Row],[PB-5 Rollup]]","v":"Supplies & Equipment"},null,null,null,null,null,516460,"3rdPty AttyFeeClm","Third Party Attorney Fee Claims","2012-05-14",{"$f":"_xlfn.XLOOKUP(CI_s[[#This Row],[Commitment item]],AM:AM,AK:AK)","v":"Loss & Claims"},{"$f":"_xlfn.XLOOKUP(CI_s[[#This Row],[Commitment item]],AM:AM,AN:AN)","v":"Third Party Attorney Fee Claims"},null,null,null,null,520130,520010,null,null,null,null,null,null,null,null,null,null,null,null,null,"Supplies & Equipment","Supplies & Equipment",3002,510310,"Software"]
[null,{"$f":"budget_form_lookups[[#This Row],[Long text]]","v":"Textile and Linen Supplies"},510010,{"$f":"budget_form_lookups[[#This Row],[SAP GL Account]]","v":510320},{"$f":"budget_form_lookups[[#This Row],[PB-5 Rollup]]","v":"Supplies & Equipment"},null,null,null,null,null,516470,"3rdPty Auto Clm","Third Party Auto Claims","2012-05-14",{"$f":"_xlfn.XLOOKUP(CI_s[[#This Row],[Commitment item]],AM:AM,AK:AK)","v":"Loss & Claims"},{"$f":"_xlfn.XLOOKUP(CI_s[[#This Row],[Commitment item]],AM:AM,AN:AN)","v":"Third Party Auto Claims"},null,null,null,null,520140,520010,null,null,null,null,null,null,null,null,null,null,null,null,null,"Supplies & Equipment","Supplies & Equipment",3034,510320,"Textile and Linen Supplies"]
[null,{"$f":"budget_form_lookups[[#This Row],[Long text]]","v":"Traffic Control/Signage Supplies & Equipment"},510010,{"$f":"budget_form_lookups[[#This Row],[SAP GL Account]]","v":510330},{"$f":"budget_form_lookups[[#This Row],[PB-5 Rollup]]","v":"Supplies & Equipment"},null,null,null,null,null,516480,"3rdPty Prop Dmg","Third Party Property Damage","2012-05-14",{"$f":"_xlfn.XLOOKUP(CI_s[[#This Row],[Commitment item]],AM:AM,AK:AK)","v":"Loss & Claims"},{"$f":"_xlfn.XLOOKUP(CI_s[[#This Row],[Commitment item]],AM:AM,AN:AN)","v":"Third Party Property Damage"},null,null,null,null,520150,520010,null,null,null,null,null,null,null,null,null,null,null,null,null,"Supplies & Equipment","Supplies & Equipment",3062,510330,"Traffic Control/Signage Supplies & Equipment"]
[null,{"$f":"budget_form_lookups[[#This Row],[Long text]]","v":"Vehicle Supplies & Equipment"},510010,{"$f":"budget_form_lookups[[#This Row],[SAP GL Account]]","v":510340},{"$f":"budget_form_lookups[[#This Row],[PB-5 Rollup]]","v":"Supplies & Equipment"},null,null,null,null,null,516490,"3rdPty PropDmgStarFt","Third Party Property Damage-Starflight","2012-05-14",{"$f":"_xlfn.XLOOKUP(CI_s[[#This Row],[Commitment item]],AM:AM,AK:AK)","v":"Loss & Claims"},{"$f":"_xlfn.XLOOKUP(CI_s[[#This Row],[Commitment item]],AM:AM,AN:AN)","v":"Third Party Property Damage-Starflight"},null,null,null,null,520160,520010,null,null,null,null,null,null,null,null,null,null,null,null,null,"Supplies & Equipment","Supplies & Equipment","3021, 3020, 6289",510340,"Vehicle Supplies & Equipment"]
[null,{"$f":"budget_form_lookups[[#This Row],[Long text]]","v":"Veterinary/Livestock Supplies & Equipment"},{"$f":"IFERROR(INDEX(V:V,MATCH(D450,U:U,0)),D450)","v":510010},{"$f":"budget_form_lookups[[#This Row],[SAP GL Account]]","v":510350},{"$f":"budget_form_lookups[[#This Row],[PB-5 Rollup]]","v":"Supplies & Equipment"},null,null,null,null,null,516500,"Unempt Ins Actl Clm","Unemployment Insurance Actual Claims","2012-05-14",{"$f":"_xlfn.XLOOKUP(CI_s[[#This Row],[Commitment item]],AM:AM,AK:AK)","v":"Loss & Claims"},{"$f":"_xlfn.XLOOKUP(CI_s[[#This Row],[Commitment item]],AM:AM,AN:AN)","v":"Unemployment Insurance Actual Claims"},null,null,null,null,520170,520010,null,null,null,null,null,null,null,null,null,null,null,null,null,"Supplies & Equipment","Supplies & Equipment",3042,510350,"Veterinary/Livestock Supplies & Equipment"]
[null,{"$f":"budget_form_lookups[[#This Row],[Long text]]","v":"Weatherization Material PPV"},510403,{"$f":"budget_form_lookups[[#This Row],[SAP GL Account]]","v":510403},{"$f":"budget_form_lookups[[#This Row],[PB-5 Rollup]]","v":"Supplies & Equipment"},null,null,null,null,null,516510,"WC Clm-Active Emp","Worker's Comp Claims-Active Employee","2012-05-14",{"$f":"_xlfn.XLOOKUP(CI_s[[#This Row],[Commitment item]],AM:AM,AK:AK)","v":"Loss & Claims"},{"$f":"_xlfn.XLOOKUP(CI_s[[#This Row],[Commitment item]],AM:AM,AN:AN)","v":"Worker's Comp Claims-Active Employee"},null,null,null,null,520180,520010,null,null,null,null,null,null,null,null,null,null,null,null,null,"Supplies & Equipment","Supplies & Equipment",null,510403,"Weatherization Material PPV"]
[null,{"$f":"budget_form_lookups[[#This Row],[Long text]]","v":"Weatherization Material Purchased"},510010,{"$f":"budget_form_lookups[[#This Row],[SAP GL Account]]","v":510400},{"$f":"budget_form_lookups[[#This Row],[PB-5 Rollup]]","v":"Supplies & Equipment"},null,null,null,null,null,516610,"Auto Liab Adm Exps","Auto Liability Administrative Expenses","2012-05-14",{"$f":"_xlfn.XLOOKUP(CI_s[[#This Row],[Commitment item]],AM:AM,AK:AK)","v":"Loss & Claims"},{"$f":"_xlfn.XLOOKUP(CI_s[[#This Row],[Commitment item]],AM:AM,AN:AN)","v":"Auto Liability Administrative Expenses"},null,null,null,null,520190,520010,null,null,null,null,null,null,null,null,null,null,null,null,null,"Supplies & Equipment","Supplies & Equipment",null,510400,"Weatherization Material Purchased"]
[null,{"$f":"budget_form_lookups[[#This Row],[Long text]]","v":"Weatherization Material Scrap/Diff"},510010,{"$f":"budget_form_lookups[[#This Row],[SAP GL Account]]","v":510402},{"$f":"budget_form_lookups[[#This Row],[PB-5 Rollup]]","v":"Supplies & Equipment"},null,null,null,null,null,516620,"Benefits Adm","Benefits Administration","2012-05-14",{"$f":"_xlfn.XLOOKUP(CI_s[[#This Row],[Commitment item]],AM:AM,AK:AK)","v":"Loss & Claims"},{"$f":"_xlfn.XLOOKUP(CI_s[[#This Row],[Commitment item]],AM:AM,AN:AN)","v":"Benefits Administration"},null,null,null,null,520200,520010,null,null,null,null,null,null,null,null,null,null,null,null,null,"Supplies & Equipment","Supplies & Equipment",null,510402,"Weatherization Material Scrap/Diff"]
[null,{"$f":"budget_form_lookups[[#This Row],[Long text]]","v":"Weatherization Material Used"},510010,{"$f":"budget_form_lookups[[#This Row],[SAP GL Account]]","v":510401},{"$f":"budget_form_lookups[[#This Row],[PB-5 Rollup]]","v":"Supplies & Equipment"},null,null,null,null,null,516630,"Gen Liab Adm Exps","General Liability Administrative Expenses","2012-05-14",{"$f":"_xlfn.XLOOKUP(CI_s[[#This Row],[Commitment item]],AM:AM,AK:AK)","v":"Loss & Claims"},{"$f":"_xlfn.XLOOKUP(CI_s[[#This Row],[Commitment item]],AM:AM,AN:AN)","v":"General Liability Administrative Expenses"},null,null,null,null,520210,520010,null,null,null,null,null,null,null,null,null,null,null,null,null,"Supplies & Equipment","Supplies & Equipment",null,510401,"Weatherization Material Used"]
[null,{"$f":"budget_form_lookups[[#This Row],[Long text]]","v":"Inhouse Training/Online Courses"},512010,{"$f":"budget_form_lookups[[#This Row],[SAP GL Account]]","v":512020},{"$f":"budget_form_lookups[[#This Row],[PB-5 Rollup]]","v":"Travel & Professional Development"},null,null,null,null,null,516640,"InsClm Ct FilingFee","Insurance Claims Court Filing Fees","2012-05-14",{"$f":"_xlfn.XLOOKUP(CI_s[[#This Row],[Commitment item]],AM:AM,AK:AK)","v":"Loss & Claims"},{"$f":"_xlfn.XLOOKUP(CI_s[[#This Row],[Commitment item]],AM:AM,AN:AN)","v":"Insurance Claims Court Filing Fees"},null,null,null,null,520220,520010,null,null,null,null,null,null,null,null,null,null,null,null,null,"Travel & Professional Development","Travel & Prof Development",6506,512020,"Inhouse Training/Online Courses"]
[null,{"$f":"budget_form_lookups[[#This Row],[Long text]]","v":"Professional Licenses"},512010,{"$f":"budget_form_lookups[[#This Row],[SAP GL Account]]","v":512030},{"$f":"budget_form_lookups[[#This Row],[PB-5 Rollup]]","v":"Travel & Professional Development"},null,null,null,null,null,516650,"InsClm Ct Rptg Exp","Insurance Claims Court Reporting Expense","2012-05-14",{"$f":"_xlfn.XLOOKUP(CI_s[[#This Row],[Commitment item]],AM:AM,AK:AK)","v":"Loss & Claims"},{"$f":"_xlfn.XLOOKUP(CI_s[[#This Row],[Commitment item]],AM:AM,AN:AN)","v":"Insurance Claims Court Reporting Expense"},null,null,null,null,520501,520010,null,null,null,null,null,null,null,null,null,null,null,null,null,"Travel & Professional Development","Travel & Prof Development",6505,512030,"Professional Licenses"]
[null,{"$f":"budget_form_lookups[[#This Row],[Long text]]","v":"Professional Membership"},512010,{"$f":"budget_form_lookups[[#This Row],[SAP GL Account]]","v":512040},{"$f":"budget_form_lookups[[#This Row],[PB-5 Rollup]]","v":"Travel & Professional Development"},null,null,null,null,null,516660,"InsClm LegalDoc/Dupl","Insurance Claims Legal Document/Dupl","2012-05-14",{"$f":"_xlfn.XLOOKUP(CI_s[[#This Row],[Commitment item]],AM:AM,AK:AK)","v":"Loss & Claims"},{"$f":"_xlfn.XLOOKUP(CI_s[[#This Row],[Commitment item]],AM:AM,AN:AN)","v":"Insurance Claims Legal Document/Dupl"},null,null,null,null,520502,520010,null,null,null,null,null,null,null,null,null,null,null,null,null,"Travel & Professional Development","Travel & Prof Development","6502/6500",512040,"Professional Membership"]
[null,{"$f":"budget_form_lookups[[#This Row],[Long text]]","v":"Registration Conferences/Seminars"},512010,{"$f":"budget_form_lookups[[#This Row],[SAP GL Account]]","v":512050},{"$f":"budget_form_lookups[[#This Row],[PB-5 Rollup]]","v":"Travel & Professional Development"},null,null,null,null,null,516670,"InsClm Legal Exps","Insurance Claims Legal expenses","2012-05-14",{"$f":"_xlfn.XLOOKUP(CI_s[[#This Row],[Commitment item]],AM:AM,AK:AK)","v":"Loss & Claims"},{"$f":"_xlfn.XLOOKUP(CI_s[[#This Row],[Commitment item]],AM:AM,AN:AN)","v":"Insurance Claims Legal expenses"},null,null,null,null,520503,520010,null,null,null,null,null,null,null,null,null,null,null,null,null,"Travel & Professional Development","Travel & Prof Development",6504,512050,"Registration Conferences/Seminars"]
[null,{"$f":"budget_form_lookups[[#This Row],[Long text]]","v":"Routine Mileage"},512100,{"$f":"budget_form_lookups[[#This Row],[SAP GL Account]]","v":512100},{"$f":"budget_form_lookups[[#This Row],[PB-5 Rollup]]","v":"Travel & Professional Development"},null,null,null,null,null,516680,"InsClm Wtns Exps","Insurance Claims Witness Expenses","2012-05-14",{"$f":"_xlfn.XLOOKUP(CI_s[[#This Row],[Commitment item]],AM:AM,AK:AK)","v":"Loss & Claims"},{"$f":"_xlfn.XLOOKUP(CI_s[[#This Row],[Commitment item]],AM:AM,AN:AN)","v":"Insurance Claims Witness Expenses"},null,null,null,null,520504,520010,null,null,null,null,null,null,null,null,null,null,null,null,null,"Travel & Professional Development","Travel-Mileage","4201/4202/4203/4205",512100,"Routine Mileage"]
[null,{"$f":"budget_form_lookups[[#This Row],[Long text]]","v":"Subscriptions & Publications"},512010,{"$f":"budget_form_lookups[[#This Row],[SAP GL Account]]","v":512060},{"$f":"budget_form_lookups[[#This Row],[PB-5 Rollup]]","v":"Travel & Professional Development"},null,null,null,null,null,516690,"Intn PropDmg AdmExps","Internal Property Damage Administrative Expenses","2012-05-14",{"$f":"_xlfn.XLOOKUP(CI_s[[#This Row],[Commitment item]],AM:AM,AK:AK)","v":"Loss & Claims"},{"$f":"_xlfn.XLOOKUP(CI_s[[#This Row],[Commitment item]],AM:AM,AN:AN)","v":"Internal Property Damage Administrative Expenses"},null,null,null,null,520505,520010,null,null,null,null,null,null,null,null,null,null,null,null,null,"Travel & Professional Development","Travel & Prof Development",6501,512060,"Subscriptions & Publications"]
[null,{"$f":"budget_form_lookups[[#This Row],[Long text]]","v":"Training Facility - Rental Expense"},512010,{"$f":"budget_form_lookups[[#This Row],[SAP GL Account]]","v":512080},{"$f":"budget_form_lookups[[#This Row],[PB-5 Rollup]]","v":"Travel & Professional Development"},null,null,null,null,null,516700,"WC-Med Bill Auditing","Worker's Comp-Medical Bill Auditing","2012-05-14",{"$f":"_xlfn.XLOOKUP(CI_s[[#This Row],[Commitment item]],AM:AM,AK:AK)","v":"Loss & Claims"},{"$f":"_xlfn.XLOOKUP(CI_s[[#This Row],[Commitment item]],AM:AM,AN:AN)","v":"Worker's Comp-Medical Bill Auditing"},null,null,null,null,520506,520010,null,null,null,null,null,null,null,null,null,null,null,null,null,"Travel & Professional Development","Travel & Prof Development",6508,512080,"Training Facility - Rental Expense"]
[null,{"$f":"budget_form_lookups[[#This Row],[Long text]]","v":"Training Material/Books"},512010,{"$f":"budget_form_lookups[[#This Row],[SAP GL Account]]","v":512070},{"$f":"budget_form_lookups[[#This Row],[PB-5 Rollup]]","v":"Travel & Professional Development"},null,null,null,null,null,516710,"WC-3rdPty Adm","Worker's Comp-Third Party Adm","2012-05-14",{"$f":"_xlfn.XLOOKUP(CI_s[[#This Row],[Commitment item]],AM:AM,AK:AK)","v":"Loss & Claims"},{"$f":"_xlfn.XLOOKUP(CI_s[[#This Row],[Commitment item]],AM:AM,AN:AN)","v":"Worker's Comp-Third Party Adm"},null,null,null,null,520507,520010,null,null,null,null,null,null,null,null,null,null,null,null,null,"Travel & Professional Development","Travel & Prof Development",6507,512070,"Training Material/Books"]
[null,{"$f":"budget_form_lookups[[#This Row],[Long text]]","v":"Travel Encumbrances"},512010,{"$f":"budget_form_lookups[[#This Row],[SAP GL Account]]","v":512010},{"$f":"budget_form_lookups[[#This Row],[PB-5 Rollup]]","v":"Travel & Professional Development"},null,null,null,null,null,516810,"OPEB-All Emps","OPEB-All Employees","2012-05-14",{"$f":"_xlfn.XLOOKUP(CI_s[[#This Row],[Commitment item]],AM:AM,AK:AK)","v":"Loss & Claims"},{"$f":"_xlfn.XLOOKUP(CI_s[[#This Row],[Commitment item]],AM:AM,AN:AN)","v":"OPEB - All Employees"},null,null,null,null,520508,520010,null,null,null,null,null,null,null,null,null,null,null,null,null,"Travel & Professional Development","Travel & Prof Development","new",512010,"Travel Encumbrances"]
[null,{"$f":"budget_form_lookups[[#This Row],[Long text]]","v":"Travel Imputed Income"},512010,{"$f":"budget_form_lookups[[#This Row],[SAP GL Account]]","v":512115},{"$f":"budget_form_lookups[[#This Row],[PB-5 Rollup]]","v":"Travel & Professional Development"},null,null,null,null,null,516890,"PCORI Fee","Patient Centered Outcomes Rsch Institute","2014-07-23",{"$f":"_xlfn.XLOOKUP(CI_s[[#This Row],[Commitment item]],AM:AM,AK:AK)","v":"Loss & Claims"},{"$f":"_xlfn.XLOOKUP(CI_s[[#This Row],[Commitment item]],AM:AM,AN:AN)","v":"Patient Centered Outcomes Rsch Institute"},null,null,null,null,520509,520010,null,null,null,null,null,null,null,null,null,null,null,null,null,"Travel & Professional Development","Travel & Prof Development","4207/6503",512115,"Travel Imputed Income"]
[null,{"$f":"budget_form_lookups[[#This Row],[Long text]]","v":"Travel-Lodging  Meals & Other"},512010,{"$f":"budget_form_lookups[[#This Row],[SAP GL Account]]","v":512090},{"$f":"budget_form_lookups[[#This Row],[PB-5 Rollup]]","v":"Travel & Professional Development"},null,null,null,null,null,517010,"Aptns Public Entitie","Appropriations to Other Public Entities","2012-05-14",{"$f":"_xlfn.XLOOKUP(CI_s[[#This Row],[Commitment item]],AM:AM,AK:AK)","v":"Appropriations to Other Governments"},{"$f":"_xlfn.XLOOKUP(CI_s[[#This Row],[Commitment item]],AM:AM,AN:AN)","v":"Appropriations to Other Public Entities"},null,null,null,null,520510,520010,null,null,null,null,null,null,null,null,null,null,null,null,null,"Travel & Professional Development","Travel & Prof Development",null,512090,"Travel-Lodging  Meals & Other"]
[null,{"$f":"budget_form_lookups[[#This Row],[Long text]]","v":"Travel-Mileage"},512010,{"$f":"budget_form_lookups[[#This Row],[SAP GL Account]]","v":512110},{"$f":"budget_form_lookups[[#This Row],[PB-5 Rollup]]","v":"Travel & Professional Development"},null,null,null,null,null,517015,"PSF Distr to ISDs","PSF Distribution to ISDs","2013-09-10",{"$f":"_xlfn.XLOOKUP(CI_s[[#This Row],[Commitment item]],AM:AM,AK:AK)","v":"Appropriations to Other Governments"},{"$f":"_xlfn.XLOOKUP(CI_s[[#This Row],[Commitment item]],AM:AM,AN:AN)","v":"PSF Distribution to ISDs"},null,null,null,null,520511,520010,null,null,null,null,null,null,null,null,null,null,null,null,null,"Travel & Professional Development","Travel & Prof Development","4207/6503",512110,"Travel-Mileage"]
[null,null,null,null,null,null,null,null,null,null,518001,"Subrec-Pur Sv-CO","DO NOT USE","2012-05-14",{"$f":"_xlfn.XLOOKUP(CI_s[[#This Row],[Commitment item]],AM:AM,AK:AK)","v":"Subreceipient Services"},{"$f":"_xlfn.XLOOKUP(CI_s[[#This Row],[Commitment item]],AM:AM,AN:AN)","v":"Subrecipient - Purchased Services - Conversion"},null,null,null,null,521010,520010,null,null,null,null,null,null,null,null,null,null,null,null,null,"Travel & Professional Development","Travel & Prof Development","4207/6503",512120,"Travel-Year End Accrual"]
[null,null,null,null,null,null,null,null,null,null,518002,"AgContracts-CO","Agency Contracts-Conversion","2012-05-14",{"$f":"_xlfn.XLOOKUP(CI_s[[#This Row],[Commitment item]],AM:AM,AK:AK)","v":"Subreceipient Services"},{"$f":"_xlfn.XLOOKUP(CI_s[[#This Row],[Commitment item]],AM:AM,AN:AN)","v":"Agency Contracts - Conversion"},null,null,null,null,521020,520010,null,null,null,null,null,null,null,null,null,null,null,null,"Capital Expenditures","Other Financing Uses","Fund Financial Offset Debt - No Roll","Fund Fin Exp Offset-Bond Defeasance",598030,"Fund Fin Exp Offset-Bond Defeasance","Exclude"]
[null,null,null,null,null,null,null,null,null,null,518010,"Subrec-Sal","Subrecipient-Salaries","2012-05-14",{"$f":"_xlfn.XLOOKUP(CI_s[[#This Row],[Commitment item]],AM:AM,AK:AK)","v":"Subreceipient Services"},{"$f":"_xlfn.XLOOKUP(CI_s[[#This Row],[Commitment item]],AM:AM,AN:AN)","v":"Subrecipient-Salaries"},null,null,null,null,521030,520010]
[null,null,null,null,null,null,null,null,null,null,518020,"Subrec-Overtime","Subrecipient-Overtime","2012-05-14",{"$f":"_xlfn.XLOOKUP(CI_s[[#This Row],[Commitment item]],AM:AM,AK:AK)","v":"Subreceipient Services"},{"$f":"_xlfn.XLOOKUP(CI_s[[#This Row],[Commitment item]],AM:AM,AN:AN)","v":"Subrecipient-Overtime"},null,null,null,null,521040,520010]
[null,null,null,null,null,null,null,null,null,null,518030,"Subrec-Op Exp","Subrecipient-Operating Expenses","2012-05-14",{"$f":"_xlfn.XLOOKUP(CI_s[[#This Row],[Commitment item]],AM:AM,AK:AK)","v":"Subreceipient Services"},{"$f":"_xlfn.XLOOKUP(CI_s[[#This Row],[Commitment item]],AM:AM,AN:AN)","v":"Subrecipient-Operating Expenses"},null,null,null,null,521050,520010]
[null,null,null,null,null,null,null,null,null,null,518110,"Subrec-Travel","Subrecipient-Travel","2012-05-14",{"$f":"_xlfn.XLOOKUP(CI_s[[#This Row],[Commitment item]],AM:AM,AK:AK)","v":"Subreceipient Services"},{"$f":"_xlfn.XLOOKUP(CI_s[[#This Row],[Commitment item]],AM:AM,AN:AN)","v":"Subrecipient-Travel"},null,null,null,null,521060,520010]
[null,null,null,null,null,null,null,null,null,null,518120,"Subrecipient","Subrecipient","2012-05-14",{"$f":"_xlfn.XLOOKUP(CI_s[[#This Row],[Commitment item]],AM:AM,AK:AK)","v":"Subreceipient Services"},{"$f":"_xlfn.XLOOKUP(CI_s[[#This Row],[Commitment item]],AM:AM,AN:AN)","v":"Subrecipient-Other "},null,null,null,null,521070,520010]
[null,null,null,null,null,null,null,null,null,null,519005,"DonationExp","Donation Expense","2023-10-18",{"$f":"_xlfn.XLOOKUP(CI_s[[#This Row],[Commitment item]],AM:AM,AK:AK)","v":{"$error":"#N/A"}},{"$f":"_xlfn.XLOOKUP(CI_s[[#This Row],[Commitment item]],AM:AM,AN:AN)","v":{"$error":"#N/A"}},null,null,null,null,521080,520010]
[null,null,null,null,null,null,null,null,null,null,519010,"Arbitrage Rebate Pmt","Arbitrage Rebate Payment","2012-05-14",{"$f":"_xlfn.XLOOKUP(CI_s[[#This Row],[Commitment item]],AM:AM,AK:AK)","v":"Arbitrage Rebate Payment"},{"$f":"_xlfn.XLOOKUP(CI_s[[#This Row],[Commitment item]],AM:AM,AN:AN)","v":"Arbitrage Rebate Payment"},null,null,null,null,521085,520010]
[null,null,null,null,null,null,null,null,null,null,519020,"Inmate TrustFd Distb","Inmate Trust Fund Distribution","2012-05-14",{"$f":"_xlfn.XLOOKUP(CI_s[[#This Row],[Commitment item]],AM:AM,AK:AK)","v":"Inmate Trust Fund Distribution"},{"$f":"_xlfn.XLOOKUP(CI_s[[#This Row],[Commitment item]],AM:AM,AN:AN)","v":"Inmate Trust Fund Distribution"},null,null,null,null,521090,520010]
[null,null,null,null,null,null,null,null,null,null,519030,"Interest Exp","Interest Expense","2012-05-14",{"$f":"_xlfn.XLOOKUP(CI_s[[#This Row],[Commitment item]],AM:AM,AK:AK)","v":"Interest Expense"},{"$f":"_xlfn.XLOOKUP(CI_s[[#This Row],[Commitment item]],AM:AM,AN:AN)","v":"Interest Expense"},null,null,null,null,522010,520010]
[null,null,null,null,null,null,null,null,null,null,519035,"Fine/Penalty Exp","Fine/Penalty Expenditure","2018-02-02",{"$f":"_xlfn.XLOOKUP(CI_s[[#This Row],[Commitment item]],AM:AM,AK:AK)","v":{"$error":"#N/A"}},{"$f":"_xlfn.XLOOKUP(CI_s[[#This Row],[Commitment item]],AM:AM,AN:AN)","v":{"$error":"#N/A"}},null,null,null,null,522020,520010]
[null,null,null,null,null,null,null,null,null,null,519040,"Licenses & Permits","Licenses & Permits","2012-05-14",{"$f":"_xlfn.XLOOKUP(CI_s[[#This Row],[Commitment item]],AM:AM,AK:AK)","v":"Licenses & Permits"},{"$f":"_xlfn.XLOOKUP(CI_s[[#This Row],[Commitment item]],AM:AM,AN:AN)","v":"Licenses & Permits"},null,null,null,null,522030,520010]
[null,null,null,null,null,null,null,null,null,null,519050,"PY Expenditures/Revs","Prior Year Expenditures/Revenues","2012-05-14",{"$f":"_xlfn.XLOOKUP(CI_s[[#This Row],[Commitment item]],AM:AM,AK:AK)","v":"Prior Year Expenditures/Revenues"},{"$f":"_xlfn.XLOOKUP(CI_s[[#This Row],[Commitment item]],AM:AM,AN:AN)","v":"Prior Year Expenditures/Revenues"},null,null,null,null,522040,520010]
[null,null,null,null,null,null,null,null,null,null,519060,"Prop Taxes","Property Taxes","2012-05-14",{"$f":"_xlfn.XLOOKUP(CI_s[[#This Row],[Commitment item]],AM:AM,AK:AK)","v":"Property Taxes"},{"$f":"_xlfn.XLOOKUP(CI_s[[#This Row],[Commitment item]],AM:AM,AN:AN)","v":"Property Taxes"},null,null,null,null,522050,520010]
[null,null,null,null,null,null,null,null,null,null,519070,"Refds Exp","Refunds Exp","2012-05-14",{"$f":"_xlfn.XLOOKUP(CI_s[[#This Row],[Commitment item]],AM:AM,AK:AK)","v":"Refunds Exp"},{"$f":"_xlfn.XLOOKUP(CI_s[[#This Row],[Commitment item]],AM:AM,AN:AN)","v":"Refunds Exp"},null,null,null,null,522060,520010]
[null,null,null,null,null,null,null,null,null,null,519075,"Over/Short-TNRParks","Over/Short – TNR Parks","2022-07-27",{"$f":"_xlfn.XLOOKUP(CI_s[[#This Row],[Commitment item]],AM:AM,AK:AK)","v":{"$error":"#N/A"}},{"$f":"_xlfn.XLOOKUP(CI_s[[#This Row],[Commitment item]],AM:AM,AN:AN)","v":{"$error":"#N/A"}},null,null,null,null,522070,520010]
[null,null,null,null,null,null,null,null,null,null,519080,"Oth Misc Expenditure","Other Miscellaneous Expenditure","2012-05-14",{"$f":"_xlfn.XLOOKUP(CI_s[[#This Row],[Commitment item]],AM:AM,AK:AK)","v":"Other Miscellaneous Expenditure"},{"$f":"_xlfn.XLOOKUP(CI_s[[#This Row],[Commitment item]],AM:AM,AN:AN)","v":"Other Miscellaneous Expenditure"},null,null,null,null,522080,520010]
[null,null,null,null,null,null,null,null,null,null,519100,"GW-Interest Expense","DO NOT USE","2012-05-14",{"$f":"_xlfn.XLOOKUP(CI_s[[#This Row],[Commitment item]],AM:AM,AK:AK)","v":{"$error":"#N/A"}},{"$f":"_xlfn.XLOOKUP(CI_s[[#This Row],[Commitment item]],AM:AM,AN:AN)","v":{"$error":"#N/A"}},null,null,null,null,522090,520010]
[null,null,null,null,null,null,null,null,null,null,519110,"GW-Deferrd Loss Amtz","DO NOT USE","2012-05-14",{"$f":"_xlfn.XLOOKUP(CI_s[[#This Row],[Commitment item]],AM:AM,AK:AK)","v":{"$error":"#N/A"}},{"$f":"_xlfn.XLOOKUP(CI_s[[#This Row],[Commitment item]],AM:AM,AN:AN)","v":{"$error":"#N/A"}},null,null,null,null,522100,520010]
[null,null,null,null,null,null,null,null,null,null,519120,"GW-Accreted Interest","DO NOT USE","2012-05-14",{"$f":"_xlfn.XLOOKUP(CI_s[[#This Row],[Commitment item]],AM:AM,AK:AK)","v":{"$error":"#N/A"}},{"$f":"_xlfn.XLOOKUP(CI_s[[#This Row],[Commitment item]],AM:AM,AN:AN)","v":{"$error":"#N/A"}},null,null,null,null,522997,520010]
[null,null,null,null,null,null,null,null,null,null,519130,"GW-OrigIssueDiscAmtz","DO NOT USE","2012-05-14",{"$f":"_xlfn.XLOOKUP(CI_s[[#This Row],[Commitment item]],AM:AM,AK:AK)","v":{"$error":"#N/A"}},{"$f":"_xlfn.XLOOKUP(CI_s[[#This Row],[Commitment item]],AM:AM,AN:AN)","v":{"$error":"#N/A"}},null,null,null,null,524997,524997,"added"]
[null,null,null,null,null,null,null,null,null,null,519140,"GW-BndIssuanceCstAmt","DO NOT USE","2012-05-14",{"$f":"_xlfn.XLOOKUP(CI_s[[#This Row],[Commitment item]],AM:AM,AK:AK)","v":{"$error":"#N/A"}},{"$f":"_xlfn.XLOOKUP(CI_s[[#This Row],[Commitment item]],AM:AM,AN:AN)","v":{"$error":"#N/A"}},null,null,null,null,524998,520010]
[null,null,null,null,null,null,null,null,null,null,519150,"GW-Tax Collector","DO NOT USE","2012-05-14",{"$f":"_xlfn.XLOOKUP(CI_s[[#This Row],[Commitment item]],AM:AM,AK:AK)","v":{"$error":"#N/A"}},{"$f":"_xlfn.XLOOKUP(CI_s[[#This Row],[Commitment item]],AM:AM,AN:AN)","v":{"$error":"#N/A"}},null,null,null,null,524999,520010]
[null,null,null,null,null,null,null,null,null,null,519160,"GW-Comp Abs","GW-Compensated Absences","2012-05-14",{"$f":"_xlfn.XLOOKUP(CI_s[[#This Row],[Commitment item]],AM:AM,AK:AK)","v":{"$error":"#N/A"}},{"$f":"_xlfn.XLOOKUP(CI_s[[#This Row],[Commitment item]],AM:AM,AN:AN)","v":{"$error":"#N/A"}},null,null,null,null,530024,530023,"leases 2022"]
[null,null,null,null,null,null,null,null,null,null,519170,"GW-Cap Rel Oper Exp","DO NOT USE","2012-05-14",{"$f":"_xlfn.XLOOKUP(CI_s[[#This Row],[Commitment item]],AM:AM,AK:AK)","v":{"$error":"#N/A"}},{"$f":"_xlfn.XLOOKUP(CI_s[[#This Row],[Commitment item]],AM:AM,AN:AN)","v":{"$error":"#N/A"}},null,null,null,null,530025,530023,"leases 2022"]
[null,null,null,null,null,null,null,null,null,null,519180,"GW-Smart Facility","GW-Smart Facility","2012-05-14",{"$f":"_xlfn.XLOOKUP(CI_s[[#This Row],[Commitment item]],AM:AM,AK:AK)","v":{"$error":"#N/A"}},{"$f":"_xlfn.XLOOKUP(CI_s[[#This Row],[Commitment item]],AM:AM,AN:AN)","v":{"$error":"#N/A"}},null,null,null,null,530043,530023,"leases 2022"]
[null,null,null,null,null,null,null,null,null,null,519190,"GW-Loss on Cap Asset","GW-Loss on Sale of Capital Asset","2012-05-14",{"$f":"_xlfn.XLOOKUP(CI_s[[#This Row],[Commitment item]],AM:AM,AK:AK)","v":{"$error":"#N/A"}},{"$f":"_xlfn.XLOOKUP(CI_s[[#This Row],[Commitment item]],AM:AM,AN:AN)","v":{"$error":"#N/A"}},null,null,null,null,530044,530023,"leases 2022"]
[null,null,null,null,null,null,null,null,null,null,519191,"GW-Loss on Land Sale","GW-Loss on Sale of Land","2012-12-17",{"$f":"_xlfn.XLOOKUP(CI_s[[#This Row],[Commitment item]],AM:AM,AK:AK)","v":{"$error":"#N/A"}},{"$f":"_xlfn.XLOOKUP(CI_s[[#This Row],[Commitment item]],AM:AM,AN:AN)","v":{"$error":"#N/A"}},null,null,null,null,530045,530023,"leases 2022"]
[null,null,null,null,null,null,null,null,null,null,519192,"Loss on Lease Termin","Loss on Lease Termination","2021-10-05",{"$f":"_xlfn.XLOOKUP(CI_s[[#This Row],[Commitment item]],AM:AM,AK:AK)","v":{"$error":"#N/A"}},{"$f":"_xlfn.XLOOKUP(CI_s[[#This Row],[Commitment item]],AM:AM,AN:AN)","v":{"$error":"#N/A"}},null,null,null,null,514050,514040]
[null,null,null,null,null,null,null,null,null,null,519193,"Loss On SBITA Termin","Loss On SBITA Termination","2022-08-11",{"$f":"_xlfn.XLOOKUP(CI_s[[#This Row],[Commitment item]],AM:AM,AK:AK)","v":{"$error":"#N/A"}},{"$f":"_xlfn.XLOOKUP(CI_s[[#This Row],[Commitment item]],AM:AM,AN:AN)","v":{"$error":"#N/A"}},null,null,null,null,514060,514040]
[null,null,null,null,null,null,null,null,null,null,519510,"FFEO-Other","DO NOT USE","2012-05-14",{"$f":"_xlfn.XLOOKUP(CI_s[[#This Row],[Commitment item]],AM:AM,AK:AK)","v":{"$error":"#N/A"}},{"$f":"_xlfn.XLOOKUP(CI_s[[#This Row],[Commitment item]],AM:AM,AN:AN)","v":{"$error":"#N/A"}},null,null,null,null,514070,514040]
[null,null,null,null,null,null,null,null,null,null,519520,"FFEO-Other-Gen Ins","DO NOT USE","2012-05-14",{"$f":"_xlfn.XLOOKUP(CI_s[[#This Row],[Commitment item]],AM:AM,AK:AK)","v":{"$error":"#N/A"}},{"$f":"_xlfn.XLOOKUP(CI_s[[#This Row],[Commitment item]],AM:AM,AN:AN)","v":{"$error":"#N/A"}},null,null,null,null,514080,514040]
[null,null,null,null,null,null,null,null,null,null,519530,"FFEO-Other-Unempl","DO NOT USE","2012-05-14",{"$f":"_xlfn.XLOOKUP(CI_s[[#This Row],[Commitment item]],AM:AM,AK:AK)","v":{"$error":"#N/A"}},{"$f":"_xlfn.XLOOKUP(CI_s[[#This Row],[Commitment item]],AM:AM,AN:AN)","v":{"$error":"#N/A"}},null,null,null,null,514090,514040]
[null,null,null,null,null,null,null,null,null,null,519540,"FFEO-Other-InsPrm-GF","DO NOT USE","2012-05-14",{"$f":"_xlfn.XLOOKUP(CI_s[[#This Row],[Commitment item]],AM:AM,AK:AK)","v":{"$error":"#N/A"}},{"$f":"_xlfn.XLOOKUP(CI_s[[#This Row],[Commitment item]],AM:AM,AN:AN)","v":{"$error":"#N/A"}},null,null,null,null,514095,514040]
[null,null,null,null,null,null,null,null,null,null,519550,"FFEO-Other-WrkCmpIns","DO NOT USE","2012-05-14","Capital Lease and Other Debt Expenses",{"$f":"_xlfn.XLOOKUP(CI_s[[#This Row],[Commitment item]],AM:AM,AN:AN)","v":{"$error":"#N/A"}},null,null,null,null,514100,514010]
[null,null,null,null,null,null,null,null,null,null,519580,"FFEO-Oth-InsPrem-Oth","DO NOT USE","2012-05-14","Capital Lease and Other Debt Expenses",{"$f":"_xlfn.XLOOKUP(CI_s[[#This Row],[Commitment item]],AM:AM,AN:AN)","v":{"$error":"#N/A"}},null,null,null,null,514110,514010]
[null,null,null,null,null,null,null,null,null,null,519610,"FFEO-Oth-Healthcare","Fund Fin Exp Offset-Other-Healthcare","2012-05-14",{"$f":"_xlfn.XLOOKUP(CI_s[[#This Row],[Commitment item]],AM:AM,AK:AK)","v":{"$error":"#N/A"}},{"$f":"_xlfn.XLOOKUP(CI_s[[#This Row],[Commitment item]],AM:AM,AN:AN)","v":{"$error":"#N/A"}},null,null,null,null,514115,514010]
[null,null,null,null,null,null,null,null,null,null,519620,"FFEO-Oth-Hlhcre-Ret","Fund Fin Exp Offset-Other-Healthcare-Retirees","2012-05-14",{"$f":"_xlfn.XLOOKUP(CI_s[[#This Row],[Commitment item]],AM:AM,AK:AK)","v":{"$error":"#N/A"}},{"$f":"_xlfn.XLOOKUP(CI_s[[#This Row],[Commitment item]],AM:AM,AN:AN)","v":{"$error":"#N/A"}},null,null,null,null,514120,514010]
[null,null,null,null,null,null,null,null,null,null,519621,"FFEO-OPEB Ben Pmts","Fund Fin Exp Offset-OPEB Benefit Payments","2018-10-29",{"$f":"_xlfn.XLOOKUP(CI_s[[#This Row],[Commitment item]],AM:AM,AK:AK)","v":{"$error":"#N/A"}},{"$f":"_xlfn.XLOOKUP(CI_s[[#This Row],[Commitment item]],AM:AM,AN:AN)","v":{"$error":"#N/A"}},null,null,null,null,514130,514010]
[null,null,null,null,null,null,null,null,null,null,519630,"FFEO-Ind-ExpAlcOpGrt","Fund Fin Exp Offset-Indirect-Exp Alloc to Op Gran","2012-05-14",{"$f":"_xlfn.XLOOKUP(CI_s[[#This Row],[Commitment item]],AM:AM,AK:AK)","v":{"$error":"#N/A"}},{"$f":"_xlfn.XLOOKUP(CI_s[[#This Row],[Commitment item]],AM:AM,AN:AN)","v":{"$error":"#N/A"}},null,null,null,null,514140,514010]
[null,null,null,null,null,null,null,null,null,null,519631,"Commodity Expenses","Commodity Expenses","2012-06-20",{"$f":"_xlfn.XLOOKUP(CI_s[[#This Row],[Commitment item]],AM:AM,AK:AK)","v":{"$error":"#N/A"}},{"$f":"_xlfn.XLOOKUP(CI_s[[#This Row],[Commitment item]],AM:AM,AN:AN)","v":{"$error":"#N/A"}},null,null,null,null,514150,514010]
[null,null,null,null,null,null,null,null,null,null,519632,"Donated Equipment","Donated Equipment Expenses","2012-10-25",{"$f":"_xlfn.XLOOKUP(CI_s[[#This Row],[Commitment item]],AM:AM,AK:AK)","v":{"$error":"#N/A"}},{"$f":"_xlfn.XLOOKUP(CI_s[[#This Row],[Commitment item]],AM:AM,AN:AN)","v":{"$error":"#N/A"}},null,null,null,null,514160,514010]
[null,null,null,null,null,null,null,null,null,null,519633,"Exp Rel to NC Awards","Expense Related to Non-cash Awards","2012-10-31",{"$f":"_xlfn.XLOOKUP(CI_s[[#This Row],[Commitment item]],AM:AM,AK:AK)","v":{"$error":"#N/A"}},{"$f":"_xlfn.XLOOKUP(CI_s[[#This Row],[Commitment item]],AM:AM,AN:AN)","v":{"$error":"#N/A"}},null,null,null,null,514170,514010]
[null,null,null,null,null,null,null,null,null,null,519634,"Pharmaceutical Exps","Pharmaceutical Expenses","2015-10-19",{"$f":"_xlfn.XLOOKUP(CI_s[[#This Row],[Commitment item]],AM:AM,AK:AK)","v":"Loss & Claims"},{"$f":"_xlfn.XLOOKUP(CI_s[[#This Row],[Commitment item]],AM:AM,AN:AN)","v":"Pharmaceutical Expenses"},null,null,null,null,514180,514010]
[null,null,null,null,null,null,null,null,null,null,519635,"Donated Services Exp","Donated Services Expense","2017-12-07",{"$f":"_xlfn.XLOOKUP(CI_s[[#This Row],[Commitment item]],AM:AM,AK:AK)","v":{"$error":"#N/A"}},{"$f":"_xlfn.XLOOKUP(CI_s[[#This Row],[Commitment item]],AM:AM,AN:AN)","v":{"$error":"#N/A"}},null,null,null,null,514190,514010]
[null,null,null,null,null,null,null,null,null,null,519645,"FFEO-I/C Expds","Fund Fin Exp Offset-I/C Expenditures","2013-09-09",{"$f":"_xlfn.XLOOKUP(CI_s[[#This Row],[Commitment item]],AM:AM,AK:AK)","v":{"$error":"#N/A"}},{"$f":"_xlfn.XLOOKUP(CI_s[[#This Row],[Commitment item]],AM:AM,AN:AN)","v":{"$error":"#N/A"}},null,null,null,null,514200,514010]
[null,null,null,null,null,null,null,null,null,null,519650,"FFEO-Oth-I/C Lse Pmt","Fund Fin Exp Offset-Other-I/C Lease Payments","2012-05-14",{"$f":"_xlfn.XLOOKUP(CI_s[[#This Row],[Commitment item]],AM:AM,AK:AK)","v":{"$error":"#N/A"}},{"$f":"_xlfn.XLOOKUP(CI_s[[#This Row],[Commitment item]],AM:AM,AN:AN)","v":{"$error":"#N/A"}},null,null,null,null,514210,514010]
[null,null,null,null,null,null,null,null,null,null,519660,"FFEO-Other","Fund Fin Exp Offset-Other","2012-06-20",{"$f":"_xlfn.XLOOKUP(CI_s[[#This Row],[Commitment item]],AM:AM,AK:AK)","v":{"$error":"#N/A"}},{"$f":"_xlfn.XLOOKUP(CI_s[[#This Row],[Commitment item]],AM:AM,AN:AN)","v":{"$error":"#N/A"}},null,null,null,null,514220,514010]
[null,null,null,null,null,null,null,null,null,null,519662,"FFEO-Oth-General Ins","Fund Fin Exp Offset-Other-General Insurance","2012-06-20",{"$f":"_xlfn.XLOOKUP(CI_s[[#This Row],[Commitment item]],AM:AM,AK:AK)","v":{"$error":"#N/A"}},{"$f":"_xlfn.XLOOKUP(CI_s[[#This Row],[Commitment item]],AM:AM,AN:AN)","v":{"$error":"#N/A"}},null,null,null,null,514230,514010]
[null,null,null,null,null,null,null,null,null,null,519663,"FFEO-Oth-Unempt","Fund Fin Exp Offset-Other-Unemployment","2012-06-20",{"$f":"_xlfn.XLOOKUP(CI_s[[#This Row],[Commitment item]],AM:AM,AK:AK)","v":{"$error":"#N/A"}},{"$f":"_xlfn.XLOOKUP(CI_s[[#This Row],[Commitment item]],AM:AM,AN:AN)","v":{"$error":"#N/A"}},null,null,null,null,514240,514010]
[null,null,null,null,null,null,null,null,null,null,519664,"FFEO-Oth-Ins Prem-GF","Fund Fin Exp Offset-Other-Insurance Premiums-GF","2012-06-20",{"$f":"_xlfn.XLOOKUP(CI_s[[#This Row],[Commitment item]],AM:AM,AK:AK)","v":{"$error":"#N/A"}},{"$f":"_xlfn.XLOOKUP(CI_s[[#This Row],[Commitment item]],AM:AM,AN:AN)","v":{"$error":"#N/A"}},null,null,null,null,514249,514010]
[null,null,null,null,null,null,null,null,null,null,519665,"FFEO-Oth-Wrkr Comp","Fund Fin Exp Offset-Other-Workers Comp Insurance","2012-06-20",{"$f":"_xlfn.XLOOKUP(CI_s[[#This Row],[Commitment item]],AM:AM,AK:AK)","v":{"$error":"#N/A"}},{"$f":"_xlfn.XLOOKUP(CI_s[[#This Row],[Commitment item]],AM:AM,AN:AN)","v":{"$error":"#N/A"}},null,null,null,null,514250,514010]
[null,null,null,null,null,null,null,null,null,null,519668,"FFEO-Oth-InsPrem-Oth","Fund Fin Exp Offset-Other-Insurance Premiums-Oth","2012-06-20",{"$f":"_xlfn.XLOOKUP(CI_s[[#This Row],[Commitment item]],AM:AM,AK:AK)","v":{"$error":"#N/A"}},{"$f":"_xlfn.XLOOKUP(CI_s[[#This Row],[Commitment item]],AM:AM,AN:AN)","v":{"$error":"#N/A"}},null,null,null,null,514260,514010]
[null,null,null,null,null,null,null,null,null,null,519700,"GW-Cap Related Oper","GW-Capital Related Operating Expense","2012-07-02",{"$f":"_xlfn.XLOOKUP(CI_s[[#This Row],[Commitment item]],AM:AM,AK:AK)","v":{"$error":"#N/A"}},{"$f":"_xlfn.XLOOKUP(CI_s[[#This Row],[Commitment item]],AM:AM,AN:AN)","v":{"$error":"#N/A"}},null,null,null,null,515001,515010]
[null,null,null,null,null,null,null,null,null,null,519701,"FFEO-CapSals","Fund Fin Exp Offset-Capitalizable Salaries","2012-07-02",{"$f":"_xlfn.XLOOKUP(CI_s[[#This Row],[Commitment item]],AM:AM,AK:AK)","v":{"$error":"#N/A"}},{"$f":"_xlfn.XLOOKUP(CI_s[[#This Row],[Commitment item]],AM:AM,AN:AN)","v":{"$error":"#N/A"}},null,null,null,null,515011,515010]
[null,null,null,null,null,null,null,null,null,null,519702,"GW-CapRelGrntOper","GW-Capital Related Grant Operating Expense","2013-12-20",{"$f":"_xlfn.XLOOKUP(CI_s[[#This Row],[Commitment item]],AM:AM,AK:AK)","v":{"$error":"#N/A"}},{"$f":"_xlfn.XLOOKUP(CI_s[[#This Row],[Commitment item]],AM:AM,AN:AN)","v":{"$error":"#N/A"}},null,null,null,null,515012,515010]
[null,null,null,null,null,null,null,null,null,null,519710,"Landfill Remediation","Landfill Remediation","2012-07-02",{"$f":"_xlfn.XLOOKUP(CI_s[[#This Row],[Commitment item]],AM:AM,AK:AK)","v":{"$error":"#N/A"}},{"$f":"_xlfn.XLOOKUP(CI_s[[#This Row],[Commitment item]],AM:AM,AN:AN)","v":{"$error":"#N/A"}},null,null,null,null,515042,515010]
[null,null,null,null,null,null,null,null,null,null,519711,"ARO Expense","Asset Retirement Obligation Expense","2019-09-24",{"$f":"_xlfn.XLOOKUP(CI_s[[#This Row],[Commitment item]],AM:AM,AK:AK)","v":{"$error":"#N/A"}},{"$f":"_xlfn.XLOOKUP(CI_s[[#This Row],[Commitment item]],AM:AM,AN:AN)","v":{"$error":"#N/A"}},null,null,null,null,515020,515010]
[null,null,null,null,null,null,null,null,null,null,519720,"Waller Creek TIF","Waller Creek TIF","2012-07-02",{"$f":"_xlfn.XLOOKUP(CI_s[[#This Row],[Commitment item]],AM:AM,AK:AK)","v":{"$error":"#N/A"}},{"$f":"_xlfn.XLOOKUP(CI_s[[#This Row],[Commitment item]],AM:AM,AN:AN)","v":{"$error":"#N/A"}},null,null,null,null,515030,515010]
[null,null,null,null,null,null,null,null,null,null,519730,"DefeasanceCostOffset","Defeasance Costs Offset","2013-10-28",{"$f":"_xlfn.XLOOKUP(CI_s[[#This Row],[Commitment item]],AM:AM,AK:AK)","v":{"$error":"#N/A"}},{"$f":"_xlfn.XLOOKUP(CI_s[[#This Row],[Commitment item]],AM:AM,AN:AN)","v":{"$error":"#N/A"}},null,null,null,null,515040,515010]
[null,null,null,null,null,null,null,null,null,null,519731,"LossOnDefeasance","Loss on Defeasance","2013-10-30",{"$f":"_xlfn.XLOOKUP(CI_s[[#This Row],[Commitment item]],AM:AM,AK:AK)","v":{"$error":"#N/A"}},{"$f":"_xlfn.XLOOKUP(CI_s[[#This Row],[Commitment item]],AM:AM,AN:AN)","v":{"$error":"#N/A"}},null,null,null,null,515050,515010]
[null,null,null,null,null,null,null,null,null,null,519797,"RD-RecCapRel","Road District Reclass-Capital Related","2012-07-02",{"$f":"_xlfn.XLOOKUP(CI_s[[#This Row],[Commitment item]],AM:AM,AK:AK)","v":{"$error":"#N/A"}},{"$f":"_xlfn.XLOOKUP(CI_s[[#This Row],[Commitment item]],AM:AM,AN:AN)","v":{"$error":"#N/A"}},null,null,null,null,515060,515010]
[null,null,null,null,null,null,null,null,null,null,519810,"Interest Expense","DO NOT USE","2012-07-02",{"$f":"_xlfn.XLOOKUP(CI_s[[#This Row],[Commitment item]],AM:AM,AK:AK)","v":{"$error":"#N/A"}},{"$f":"_xlfn.XLOOKUP(CI_s[[#This Row],[Commitment item]],AM:AM,AN:AN)","v":{"$error":"#N/A"}},null,null,null,null,515110,515010]
[null,null,null,null,null,null,null,null,null,null,519811,"Interest Expense-Roa","DO NOT USE","2012-07-02",{"$f":"_xlfn.XLOOKUP(CI_s[[#This Row],[Commitment item]],AM:AM,AK:AK)","v":{"$error":"#N/A"}},{"$f":"_xlfn.XLOOKUP(CI_s[[#This Row],[Commitment item]],AM:AM,AN:AN)","v":{"$error":"#N/A"}},null,null,null,null,515111,515010]
[null,null,null,null,null,null,null,null,null,null,519820,"Deferred Loss Amorti","DO NOT USE","2012-07-02",{"$f":"_xlfn.XLOOKUP(CI_s[[#This Row],[Commitment item]],AM:AM,AK:AK)","v":{"$error":"#N/A"}},{"$f":"_xlfn.XLOOKUP(CI_s[[#This Row],[Commitment item]],AM:AM,AN:AN)","v":{"$error":"#N/A"}},null,null,null,null,515112,515010]
[null,null,null,null,null,null,null,null,null,null,519821,"Def Loss Amorti-RD","DO NOT USE","2012-07-02",{"$f":"_xlfn.XLOOKUP(CI_s[[#This Row],[Commitment item]],AM:AM,AK:AK)","v":{"$error":"#N/A"}},{"$f":"_xlfn.XLOOKUP(CI_s[[#This Row],[Commitment item]],AM:AM,AN:AN)","v":{"$error":"#N/A"}},null,null,null,null,515120,515010]
[null,null,null,null,null,null,null,null,null,null,519830,"Accreted Interest","DO NOT USE","2012-07-02",{"$f":"_xlfn.XLOOKUP(CI_s[[#This Row],[Commitment item]],AM:AM,AK:AK)","v":{"$error":"#N/A"}},{"$f":"_xlfn.XLOOKUP(CI_s[[#This Row],[Commitment item]],AM:AM,AN:AN)","v":{"$error":"#N/A"}},null,null,null,null,515130,515010]
[null,null,null,null,null,null,null,null,null,null,519840,"OID Amortization","DO NOT USE","2012-07-02",{"$f":"_xlfn.XLOOKUP(CI_s[[#This Row],[Commitment item]],AM:AM,AK:AK)","v":{"$error":"#N/A"}},{"$f":"_xlfn.XLOOKUP(CI_s[[#This Row],[Commitment item]],AM:AM,AN:AN)","v":{"$error":"#N/A"}},null,null,null,null,515140,515010]
[null,null,null,null,null,null,null,null,null,null,519841,"OID Amortization-RD","DO NOT USE","2012-07-02",{"$f":"_xlfn.XLOOKUP(CI_s[[#This Row],[Commitment item]],AM:AM,AK:AK)","v":{"$error":"#N/A"}},{"$f":"_xlfn.XLOOKUP(CI_s[[#This Row],[Commitment item]],AM:AM,AN:AN)","v":{"$error":"#N/A"}},null,null,null,null,515142,515010]
[null,null,null,null,null,null,null,null,null,null,519860,"Amtz BIC","DO NOT USE","2012-07-02",{"$f":"_xlfn.XLOOKUP(CI_s[[#This Row],[Commitment item]],AM:AM,AK:AK)","v":{"$error":"#N/A"}},{"$f":"_xlfn.XLOOKUP(CI_s[[#This Row],[Commitment item]],AM:AM,AN:AN)","v":{"$error":"#N/A"}},null,null,null,null,515150,515010]
[null,null,null,null,null,null,null,null,null,null,519861,"Amtz BIC-RD","DO NOT USE","2012-07-03",{"$f":"_xlfn.XLOOKUP(CI_s[[#This Row],[Commitment item]],AM:AM,AK:AK)","v":{"$error":"#N/A"}},{"$f":"_xlfn.XLOOKUP(CI_s[[#This Row],[Commitment item]],AM:AM,AN:AN)","v":{"$error":"#N/A"}},null,null,null,null,515160,515010]
[null,null,null,null,null,null,null,null,null,null,519880,"County Contr to Grts","County Contribution to Grants","2015-07-10",{"$f":"_xlfn.XLOOKUP(CI_s[[#This Row],[Commitment item]],AM:AM,AK:AK)","v":"County Contribution to Grants"},{"$f":"_xlfn.XLOOKUP(CI_s[[#This Row],[Commitment item]],AM:AM,AN:AN)","v":"County Contribution to Grants"},null,null,null,null,515210,515010]
[null,null,null,null,null,null,null,null,null,null,519901,"GW-Tax Coll","GW-Tax Collector","2012-06-20",{"$f":"_xlfn.XLOOKUP(CI_s[[#This Row],[Commitment item]],AM:AM,AK:AK)","v":{"$error":"#N/A"}},{"$f":"_xlfn.XLOOKUP(CI_s[[#This Row],[Commitment item]],AM:AM,AN:AN)","v":{"$error":"#N/A"}},null,null,null,null,515212,515010]
[null,null,null,null,null,null,null,null,null,null,519999,"GW GASB OPEB Exp","GW GASB OPEB Expense","2013-10-24",{"$f":"_xlfn.XLOOKUP(CI_s[[#This Row],[Commitment item]],AM:AM,AK:AK)","v":{"$error":"#N/A"}},{"$f":"_xlfn.XLOOKUP(CI_s[[#This Row],[Commitment item]],AM:AM,AN:AN)","v":{"$error":"#N/A"}},null,null,null,null,515220,515010]
[null,null,null,null,null,null,null,null,null,null,520010,"CapOut-Arcrft&BtEqp","Capital Outlay-Aircraft & Boating Equipment","2012-05-14",{"$f":"_xlfn.XLOOKUP(CI_s[[#This Row],[Commitment item]],AM:AM,AK:AK)","v":"Capital Outlay-Aircraft & Boating Equipment"},{"$f":"_xlfn.XLOOKUP(CI_s[[#This Row],[Commitment item]],AM:AM,AN:AN)","v":"Capital Outlay-Aircraft & Boating Equipment"},null,null,null,null,515230,515010]
[null,null,null,null,null,null,null,null,null,null,520020,"CapOut-Autos","Capital Outlay-Automobiles","2012-05-14",{"$f":"_xlfn.XLOOKUP(CI_s[[#This Row],[Commitment item]],AM:AM,AK:AK)","v":"Capital Outlay-Automobiles"},{"$f":"_xlfn.XLOOKUP(CI_s[[#This Row],[Commitment item]],AM:AM,AN:AN)","v":"Capital Outlay-Automobiles"},null,null,null,null,515240,515010]
[null,null,null,null,null,null,null,null,null,null,520030,"CapOut-Auto Repr&Eqp","Capital Outlay-Automotive Repair & Equipment","2012-05-14",{"$f":"_xlfn.XLOOKUP(CI_s[[#This Row],[Commitment item]],AM:AM,AK:AK)","v":"Capital Outlay-Automotive Repair & Equipment"},{"$f":"_xlfn.XLOOKUP(CI_s[[#This Row],[Commitment item]],AM:AM,AN:AN)","v":"Capital Outlay-Automotive Repair & Equipment"},null,null,null,null,515242,515242]
[null,null,null,null,null,null,null,null,null,null,520040,"CapOut-Bldg Mnt Eqp","Capital Outlay-Building Maintenance Equipment","2012-05-14",{"$f":"_xlfn.XLOOKUP(CI_s[[#This Row],[Commitment item]],AM:AM,AK:AK)","v":"Capital Outlay-Building Maintenance Equipment"},{"$f":"_xlfn.XLOOKUP(CI_s[[#This Row],[Commitment item]],AM:AM,AN:AN)","v":"Capital Outlay-Building Maintenance Equipment"},null,null,null,null,515243,515242]
[null,null,null,null,null,null,null,null,null,null,520050,"CapOut-Cmp Eqp","Capital Outlay-Computer Equipment","2012-05-14",{"$f":"_xlfn.XLOOKUP(CI_s[[#This Row],[Commitment item]],AM:AM,AK:AK)","v":"Capital Outlay-Computer Equipment"},{"$f":"_xlfn.XLOOKUP(CI_s[[#This Row],[Commitment item]],AM:AM,AN:AN)","v":"Capital Outlay-Computer Equipment"},null,null,null,null,515250,515010]
[null,null,null,null,null,null,null,null,null,null,520060,"CapOut-Custodial Eqp","Capital Outlay-Custodial Equipment","2012-05-14",{"$f":"_xlfn.XLOOKUP(CI_s[[#This Row],[Commitment item]],AM:AM,AK:AK)","v":"Capital Outlay-Custodial Equipment"},{"$f":"_xlfn.XLOOKUP(CI_s[[#This Row],[Commitment item]],AM:AM,AN:AN)","v":"Capital Outlay-Custodial Equipment"},null,null,null,null,515260,515010]
[null,null,null,null,null,null,null,null,null,null,520070,"CapOut-Edu/Comm Eqp","Capital Outlay-Educational/Communication Equipment","2012-05-14",{"$f":"_xlfn.XLOOKUP(CI_s[[#This Row],[Commitment item]],AM:AM,AK:AK)","v":"Capital Outlay-Educational/Communication Equipment"},{"$f":"_xlfn.XLOOKUP(CI_s[[#This Row],[Commitment item]],AM:AM,AN:AN)","v":"Capital Outlay-Educational/Communication Equipment"},null,null,null,null,515261,515010]
[null,null,null,null,null,null,null,null,null,null,520080,"CapOut-Election Eqp","Capital Outlay-Election Equipment","2012-05-14",{"$f":"_xlfn.XLOOKUP(CI_s[[#This Row],[Commitment item]],AM:AM,AK:AK)","v":"Capital Outlay-Election Equipment"},{"$f":"_xlfn.XLOOKUP(CI_s[[#This Row],[Commitment item]],AM:AM,AN:AN)","v":"Capital Outlay-Election Equipment"},null,null,null,null,515262,515010]
[null,null,null,null,null,null,null,null,null,null,520090,"CapOut-ElectricalEqp","Capital Outlay-Electrical Equipment","2012-05-14",{"$f":"_xlfn.XLOOKUP(CI_s[[#This Row],[Commitment item]],AM:AM,AK:AK)","v":"Capital Outlay-Electrical Equipment"},{"$f":"_xlfn.XLOOKUP(CI_s[[#This Row],[Commitment item]],AM:AM,AN:AN)","v":"Capital Outlay-Electrical Equipment"},null,null,null,null,515263,515010]
[null,null,null,null,null,null,null,null,null,null,520100,"CapOut-Grndkpg Eqp","Capital Outlay-Groundskeeping Equipment","2012-05-14",{"$f":"_xlfn.XLOOKUP(CI_s[[#This Row],[Commitment item]],AM:AM,AK:AK)","v":"Capital Outlay-Groundskeeping Equipment"},{"$f":"_xlfn.XLOOKUP(CI_s[[#This Row],[Commitment item]],AM:AM,AN:AN)","v":"Capital Outlay-Groundskeeping Equipment"},null,null,null,null,515264,515010]
[null,null,null,null,null,null,null,null,null,null,520110,"CapOut-InstitutnlEqp","Capital Outlay-Institutional Equipment","2012-05-14",{"$f":"_xlfn.XLOOKUP(CI_s[[#This Row],[Commitment item]],AM:AM,AK:AK)","v":"Capital Outlay-Institutional Equipment"},{"$f":"_xlfn.XLOOKUP(CI_s[[#This Row],[Commitment item]],AM:AM,AN:AN)","v":"Capital Outlay-Institutional Equipment"},null,null,null,null,515265,515010]
[null,null,null,null,null,null,null,null,null,null,520120,"CapOut-Kitchen Eqp","Capital Outlay-Kitchen Equipment","2012-05-14",{"$f":"_xlfn.XLOOKUP(CI_s[[#This Row],[Commitment item]],AM:AM,AK:AK)","v":"Capital Outlay-Kitchen Equipment"},{"$f":"_xlfn.XLOOKUP(CI_s[[#This Row],[Commitment item]],AM:AM,AN:AN)","v":"Capital Outlay-Kitchen Equipment"},null,null,null,null,515266,515010]
[null,null,null,null,null,null,null,null,null,null,520130,"CapOut-LaboratoryEqp","Capital Outlay-Laboratory Equipment","2012-05-14",{"$f":"_xlfn.XLOOKUP(CI_s[[#This Row],[Commitment item]],AM:AM,AK:AK)","v":"Capital Outlay-Laboratory Equipment"},{"$f":"_xlfn.XLOOKUP(CI_s[[#This Row],[Commitment item]],AM:AM,AN:AN)","v":"Capital Outlay-Laboratory Equipment"},null,null,null,null,515267,515010]
[null,null,null,null,null,null,null,null,null,null,520140,"CapOut-Law Enf Eqp","Capital Outlay-Law Enforcement Equipment","2012-05-14",{"$f":"_xlfn.XLOOKUP(CI_s[[#This Row],[Commitment item]],AM:AM,AK:AK)","v":"Capital Outlay-Law Enforcement Equipment"},{"$f":"_xlfn.XLOOKUP(CI_s[[#This Row],[Commitment item]],AM:AM,AN:AN)","v":"Capital Outlay-Law Enforcement Equipment"},null,null,null,null,515268,515010]
[null,null,null,null,null,null,null,null,null,null,520150,"CapOut-MedDntlSftyEq","Capital Outlay-Medical/Dental/Safety Equipment","2012-05-14",{"$f":"_xlfn.XLOOKUP(CI_s[[#This Row],[Commitment item]],AM:AM,AK:AK)","v":"Capital Outlay-Medical/Dental/Safety Equipment"},{"$f":"_xlfn.XLOOKUP(CI_s[[#This Row],[Commitment item]],AM:AM,AN:AN)","v":"Capital Outlay-Medical/Dental/Safety Equipment"},null,null,null,null,515269,515010]
[null,null,null,null,null,null,null,null,null,null,520160,"CapOut-Ofc Eqp","Capital Outlay-Office Equipment","2012-05-14",{"$f":"_xlfn.XLOOKUP(CI_s[[#This Row],[Commitment item]],AM:AM,AK:AK)","v":"Capital Outlay-Office Equipment"},{"$f":"_xlfn.XLOOKUP(CI_s[[#This Row],[Commitment item]],AM:AM,AN:AN)","v":"Capital Outlay-Office Equipment"},null,null,null,null,515270,515010]
[null,null,null,null,null,null,null,null,null,null,520170,"CapOut-Ofc Furn","Capital Outlay-Office Furniture","2012-05-14",{"$f":"_xlfn.XLOOKUP(CI_s[[#This Row],[Commitment item]],AM:AM,AK:AK)","v":"Capital Outlay-Office Furniture"},{"$f":"_xlfn.XLOOKUP(CI_s[[#This Row],[Commitment item]],AM:AM,AN:AN)","v":"Capital Outlay-Office Furniture"},null,null,null,null,515310,515010]
[null,null,null,null,null,null,null,null,null,null,520180,"CapOut-Oth Eqp","Capital Outlay-Other Equipment","2012-05-14",{"$f":"_xlfn.XLOOKUP(CI_s[[#This Row],[Commitment item]],AM:AM,AK:AK)","v":"Capital Outlay-Other Equipment"},{"$f":"_xlfn.XLOOKUP(CI_s[[#This Row],[Commitment item]],AM:AM,AN:AN)","v":"Capital Outlay-Other Equipment"},null,null,null,null,515320,515010]
[null,null,null,null,null,null,null,null,null,null,520190,"CapOut-Rec Eqp","Capital Outlay-Recreational Equipment","2012-05-14",{"$f":"_xlfn.XLOOKUP(CI_s[[#This Row],[Commitment item]],AM:AM,AK:AK)","v":"Capital Outlay-Recreational Equipment"},{"$f":"_xlfn.XLOOKUP(CI_s[[#This Row],[Commitment item]],AM:AM,AN:AN)","v":"Capital Outlay-Recreational Equipment"},null,null,null,null,515330,515010]
[null,null,null,null,null,null,null,null,null,null,520200,"CapOut-Rd & HwyEqp","Capital Outlay-Road and Highway Equipment","2012-05-14",{"$f":"_xlfn.XLOOKUP(CI_s[[#This Row],[Commitment item]],AM:AM,AK:AK)","v":"Capital Outlay-Road and Highway Equipment"},{"$f":"_xlfn.XLOOKUP(CI_s[[#This Row],[Commitment item]],AM:AM,AN:AN)","v":"Capital Outlay-Road and Highway Equipment"},null,null,null,null,515340,515010]
[null,null,null,null,null,null,null,null,null,null,520210,"CapOut-Sfw","Capital Outlay-Software","2012-05-14",{"$f":"_xlfn.XLOOKUP(CI_s[[#This Row],[Commitment item]],AM:AM,AK:AK)","v":"Capital Outlay-Software"},{"$f":"_xlfn.XLOOKUP(CI_s[[#This Row],[Commitment item]],AM:AM,AN:AN)","v":"Capital Outlay-Software"},null,null,null,null,515410,515010]
[null,null,null,null,null,null,null,null,null,null,520220,"CapOut-TfcCtrl/SgEqp","Capital Outlay-Traffic Control/Signage Equipment","2012-05-14",{"$f":"_xlfn.XLOOKUP(CI_s[[#This Row],[Commitment item]],AM:AM,AK:AK)","v":"Capital Outlay-Traffic Control/Signage Equipment"},{"$f":"_xlfn.XLOOKUP(CI_s[[#This Row],[Commitment item]],AM:AM,AN:AN)","v":"Capital Outlay-Traffic Control/Signage Equipment"},null,null,null,null,515420,515010]
[null,null,null,null,null,null,null,null,null,null,520501,"FFEO-Cap","Fund Fin Exp Offset-Cap","2012-05-14",{"$f":"_xlfn.XLOOKUP(CI_s[[#This Row],[Commitment item]],AM:AM,AK:AK)","v":{"$error":"#N/A"}},{"$f":"_xlfn.XLOOKUP(CI_s[[#This Row],[Commitment item]],AM:AM,AN:AN)","v":{"$error":"#N/A"}},null,null,null,null,515430,515010]
[null,null,null,null,null,null,null,null,null,null,520502,"FFEO-Cap-Lnd&LndImp","Fund Fin Exp Offset-Cap-Land & Land Improvements","2012-05-14",{"$f":"_xlfn.XLOOKUP(CI_s[[#This Row],[Commitment item]],AM:AM,AK:AK)","v":{"$error":"#N/A"}},{"$f":"_xlfn.XLOOKUP(CI_s[[#This Row],[Commitment item]],AM:AM,AN:AN)","v":{"$error":"#N/A"}},null,null,null,null,515510,515010]
[null,null,null,null,null,null,null,null,null,null,520503,"FFEO-Cap-Land Infra","Fund Fin Exp Offset-Cap-Land Infrastructure","2012-05-14",{"$f":"_xlfn.XLOOKUP(CI_s[[#This Row],[Commitment item]],AM:AM,AK:AK)","v":{"$error":"#N/A"}},{"$f":"_xlfn.XLOOKUP(CI_s[[#This Row],[Commitment item]],AM:AM,AN:AN)","v":{"$error":"#N/A"}},null,null,null,null,515511,515010]
[null,null,null,null,null,null,null,null,null,null,520504,"FFEO-Cap-BldgBldgImp","Fund Fin Exp Offset-Cap-Bldg & Bldg Improvements","2012-05-14",{"$f":"_xlfn.XLOOKUP(CI_s[[#This Row],[Commitment item]],AM:AM,AK:AK)","v":{"$error":"#N/A"}},{"$f":"_xlfn.XLOOKUP(CI_s[[#This Row],[Commitment item]],AM:AM,AN:AN)","v":{"$error":"#N/A"}},null,null,null,null,515512,515010]
[null,null,null,null,null,null,null,null,null,null,520505,"FFEO-Cap-ImpOthBldg","Fund Fin Exp Offset-Cap-Improvements Oth Than Bldg","2012-05-14",{"$f":"_xlfn.XLOOKUP(CI_s[[#This Row],[Commitment item]],AM:AM,AK:AK)","v":{"$error":"#N/A"}},{"$f":"_xlfn.XLOOKUP(CI_s[[#This Row],[Commitment item]],AM:AM,AN:AN)","v":{"$error":"#N/A"}},null,null,null,null,515513,515010]
[null,null,null,null,null,null,null,null,null,null,520506,"FFEO-Cap-MchEqpOth","Fund Fin Exp Offset-Cap-Machinery Eqp & Oth Assets","2012-05-14",{"$f":"_xlfn.XLOOKUP(CI_s[[#This Row],[Commitment item]],AM:AM,AK:AK)","v":{"$error":"#N/A"}},{"$f":"_xlfn.XLOOKUP(CI_s[[#This Row],[Commitment item]],AM:AM,AN:AN)","v":{"$error":"#N/A"}},null,null,null,null,515580,516000]
[null,null,null,null,null,null,null,null,null,null,520507,"FFEO-Cap-EqpCapLease","Fund Fin Exp Offset-Cap-Eqp Under Capital Lease","2012-05-14",{"$f":"_xlfn.XLOOKUP(CI_s[[#This Row],[Commitment item]],AM:AM,AK:AK)","v":{"$error":"#N/A"}},{"$f":"_xlfn.XLOOKUP(CI_s[[#This Row],[Commitment item]],AM:AM,AN:AN)","v":{"$error":"#N/A"}},null,null,null,null,515581,516000]
[null,null,null,null,null,null,null,null,null,null,520508,"FFEO-Cap-CIP","Fund Fin Exp Offset-Cap-Construction in Progress","2012-05-14",{"$f":"_xlfn.XLOOKUP(CI_s[[#This Row],[Commitment item]],AM:AM,AK:AK)","v":{"$error":"#N/A"}},{"$f":"_xlfn.XLOOKUP(CI_s[[#This Row],[Commitment item]],AM:AM,AN:AN)","v":{"$error":"#N/A"}},null,null,null,null,515582,516000]
[null,null,null,null,null,null,null,null,null,null,520509,"FFEO-Cap-Infra","Fund Fin Exp Offset-Cap-Infrastructure","2012-05-14",{"$f":"_xlfn.XLOOKUP(CI_s[[#This Row],[Commitment item]],AM:AM,AK:AK)","v":{"$error":"#N/A"}},{"$f":"_xlfn.XLOOKUP(CI_s[[#This Row],[Commitment item]],AM:AM,AN:AN)","v":{"$error":"#N/A"}},null,null,null,null,515583,516000]
[null,null,null,null,null,null,null,null,null,null,520510,"FFEO-Cap-Lsehold Imp","Fund Fin Exp Offset-Cap-Leasehold Improvements","2012-05-14",{"$f":"_xlfn.XLOOKUP(CI_s[[#This Row],[Commitment item]],AM:AM,AK:AK)","v":{"$error":"#N/A"}},{"$f":"_xlfn.XLOOKUP(CI_s[[#This Row],[Commitment item]],AM:AM,AN:AN)","v":{"$error":"#N/A"}},null,null,null,null,515585,516000]
[null,null,null,null,null,null,null,null,null,null,520511,"FFEO-Cap-Sfw Int","Fund Fin Exp Offset-Cap-Software Intangibles","2018-08-14",{"$f":"_xlfn.XLOOKUP(CI_s[[#This Row],[Commitment item]],AM:AM,AK:AK)","v":{"$error":"#N/A"}},{"$f":"_xlfn.XLOOKUP(CI_s[[#This Row],[Commitment item]],AM:AM,AN:AN)","v":{"$error":"#N/A"}},null,null,null,null,515586,516000]
[null,null,null,null,null,null,null,null,null,null,520512,"FFEO-Cp-RTU Lse Land","Fund Fin Exp Offset-Cap-Right-to-use Leased Land","2021-10-05",{"$f":"_xlfn.XLOOKUP(CI_s[[#This Row],[Commitment item]],AM:AM,AK:AK)","v":{"$error":"#N/A"}},{"$f":"_xlfn.XLOOKUP(CI_s[[#This Row],[Commitment item]],AM:AM,AN:AN)","v":{"$error":"#N/A"}},null,null,null,null,515587,516000]
[null,null,null,null,null,null,null,null,null,null,520514,"FFEO-Cp-RTU Lse Equp","Fund Fin Exp Offset-Cap-Right-to-use Leased Equip","2021-10-05",{"$f":"_xlfn.XLOOKUP(CI_s[[#This Row],[Commitment item]],AM:AM,AK:AK)","v":{"$error":"#N/A"}},{"$f":"_xlfn.XLOOKUP(CI_s[[#This Row],[Commitment item]],AM:AM,AN:AN)","v":{"$error":"#N/A"}},null,null,null,null,515588,516000]
[null,null,null,null,null,null,null,null,null,null,520515,"FFEO-Cp-RTU Lse Bldg","Fund Fin Exp Offset-Cap-Right-to-use Leased Bldg","2021-10-05",{"$f":"_xlfn.XLOOKUP(CI_s[[#This Row],[Commitment item]],AM:AM,AK:AK)","v":{"$error":"#N/A"}},{"$f":"_xlfn.XLOOKUP(CI_s[[#This Row],[Commitment item]],AM:AM,AN:AN)","v":{"$error":"#N/A"}},null,null,null,null,515589,516000]
[null,null,null,null,null,null,null,null,null,null,520518,"FFEO-Cp-RTU SBITA","Fund Fin Exp Offset-Cap-Right-to-use SBITA","2022-08-11",{"$f":"_xlfn.XLOOKUP(CI_s[[#This Row],[Commitment item]],AM:AM,AK:AK)","v":{"$error":"#N/A"}},{"$f":"_xlfn.XLOOKUP(CI_s[[#This Row],[Commitment item]],AM:AM,AN:AN)","v":{"$error":"#N/A"}},null,null,null,null,515590,516000]
[null,null,null,null,null,null,null,null,null,null,520519,"FFEO-Cap FP Equp","Fund Fin Exp Offset - Cap Financed Purchase Equip","2021-10-15",{"$f":"_xlfn.XLOOKUP(CI_s[[#This Row],[Commitment item]],AM:AM,AK:AK)","v":{"$error":"#N/A"}},{"$f":"_xlfn.XLOOKUP(CI_s[[#This Row],[Commitment item]],AM:AM,AN:AN)","v":{"$error":"#N/A"}},null,null,null,null,515591,516000]
[null,null,null,null,null,null,null,null,null,null,520520,"FFEO-Cap FP Bldg","Fund Fin Exp Offset - Cap Financed Purchase Bldg","2021-10-15",{"$f":"_xlfn.XLOOKUP(CI_s[[#This Row],[Commitment item]],AM:AM,AK:AK)","v":{"$error":"#N/A"}},{"$f":"_xlfn.XLOOKUP(CI_s[[#This Row],[Commitment item]],AM:AM,AN:AN)","v":{"$error":"#N/A"}},null,null,null,null,515592,516000]
[null,null,null,null,null,null,null,null,null,null,521010,"CpOtSv-Bridges","Cap Outlay Sv-Bridges","2012-05-14",{"$f":"_xlfn.XLOOKUP(CI_s[[#This Row],[Commitment item]],AM:AM,AK:AK)","v":"Cap Outlay Svc-Bridges"},{"$f":"_xlfn.XLOOKUP(CI_s[[#This Row],[Commitment item]],AM:AM,AN:AN)","v":"Cap Outlay Sv-Bridges"},null,null,null,null,515595,516000]
[null,null,null,null,null,null,null,null,null,null,521020,"CpOtSv-Bldg Imp","Cap Outlay Sv-Building Improvements","2012-05-14",{"$f":"_xlfn.XLOOKUP(CI_s[[#This Row],[Commitment item]],AM:AM,AK:AK)","v":"Cap Outlay Svc-Building Improvements"},{"$f":"_xlfn.XLOOKUP(CI_s[[#This Row],[Commitment item]],AM:AM,AN:AN)","v":"Cap Outlay Sv-Building Improvements"},null,null,null,null,515596,516000]
[null,null,null,null,null,null,null,null,null,null,521030,"CpOtSv-InfraDrng","Cap Outlay Sv-Infrastructure Drainage","2012-05-14",{"$f":"_xlfn.XLOOKUP(CI_s[[#This Row],[Commitment item]],AM:AM,AK:AK)","v":"Cap Outlay Svc-Infrastructure Drainage"},{"$f":"_xlfn.XLOOKUP(CI_s[[#This Row],[Commitment item]],AM:AM,AN:AN)","v":"Cap Outlay Sv-Infrastructure Drainage"},null,null,null,null,515597,516000]
[null,null,null,null,null,null,null,null,null,null,521040,"CpOtSv-Infra Rds","Cap Outlay Sv-Infrastructure Roads","2012-05-14",{"$f":"_xlfn.XLOOKUP(CI_s[[#This Row],[Commitment item]],AM:AM,AK:AK)","v":"Cap Outlay Svc-Infrastructure Roads"},{"$f":"_xlfn.XLOOKUP(CI_s[[#This Row],[Commitment item]],AM:AM,AN:AN)","v":"Cap Outlay Sv-Infrastructure Roads"},null,null,null,null,515598,516000]
[null,null,null,null,null,null,null,null,null,null,521050,"CpOtSv-Infra Sdwlks","Cap Outlay Sv-Infrastructure Sidewalks","2012-05-14",{"$f":"_xlfn.XLOOKUP(CI_s[[#This Row],[Commitment item]],AM:AM,AK:AK)","v":"Cap Outlay Svc-Infrastructure Sidewalks"},{"$f":"_xlfn.XLOOKUP(CI_s[[#This Row],[Commitment item]],AM:AM,AN:AN)","v":"Cap Outlay Sv-Infrastructure Sidewalks"},null,null,null,null,515599,516000]
[null,null,null,null,null,null,null,null,null,null,521060,"CpOtSv-Park Imp","Cap Outlay Sv-Park Improvements","2012-05-14",{"$f":"_xlfn.XLOOKUP(CI_s[[#This Row],[Commitment item]],AM:AM,AK:AK)","v":"Cap Outlay Svc-Park Improvements"},{"$f":"_xlfn.XLOOKUP(CI_s[[#This Row],[Commitment item]],AM:AM,AN:AN)","v":"Cap Outlay Sv-Park Improvements"},null,null,null,null,516000,516000]
[null,null,null,null,null,null,null,null,null,null,521070,"CpOtSv-ROWEasmnt","Cap Outlay Sv-Right of Way/Easements","2012-05-14",{"$f":"_xlfn.XLOOKUP(CI_s[[#This Row],[Commitment item]],AM:AM,AK:AK)","v":"Cap Outlay Svc-Right of Way/Easements"},{"$f":"_xlfn.XLOOKUP(CI_s[[#This Row],[Commitment item]],AM:AM,AN:AN)","v":"Cap Outlay Sv-Right of Way/Easements"},null,null,null,null,516010,516000]
[null,null,null,null,null,null,null,null,null,null,521080,"CpOtSv-Rd Cnstn","Cap Outlay Sv-Road Construction","2012-05-14",{"$f":"_xlfn.XLOOKUP(CI_s[[#This Row],[Commitment item]],AM:AM,AK:AK)","v":"Cap Outlay Svc-Road Construction"},{"$f":"_xlfn.XLOOKUP(CI_s[[#This Row],[Commitment item]],AM:AM,AN:AN)","v":"Cap Outlay Sv-Road Construction"},null,null,null,null,516011,516000]
[null,null,null,null,null,null,null,null,null,null,521085,"CpOtSv-Install Eqp","Cap Outlay Sv-Installation-Equipment","2012-05-14",{"$f":"_xlfn.XLOOKUP(CI_s[[#This Row],[Commitment item]],AM:AM,AK:AK)","v":"Cap Outlay Sv-Installation-Equipment"},{"$f":"_xlfn.XLOOKUP(CI_s[[#This Row],[Commitment item]],AM:AM,AN:AN)","v":"Cap Outlay Sv-Installation-Equipment"},null,null,null,null,516012,516000]
[null,null,null,null,null,null,null,null,null,null,521090,"CpOtSv-Install Sfw","Cap Outlay Sv-Installation-Software","2012-05-14",{"$f":"_xlfn.XLOOKUP(CI_s[[#This Row],[Commitment item]],AM:AM,AK:AK)","v":"Cap Outlay Sv-Installation-Software"},{"$f":"_xlfn.XLOOKUP(CI_s[[#This Row],[Commitment item]],AM:AM,AN:AN)","v":"Cap Outlay Sv-Installation-Software"},null,null,null,null,516020,516000]
[null,null,null,null,null,null,null,null,null,null,522010,"CpOtMt-Bldg Imp","Cap Outlay Mtrl-Building Improvements","2012-05-14",{"$f":"_xlfn.XLOOKUP(CI_s[[#This Row],[Commitment item]],AM:AM,AK:AK)","v":"Cap Outlay Mtrl-Building Improvements"},{"$f":"_xlfn.XLOOKUP(CI_s[[#This Row],[Commitment item]],AM:AM,AN:AN)","v":"Cap Outlay Mtrl-Building Improvements"},null,null,null,null,516030,516000]
[null,null,null,null,null,null,null,null,null,null,522020,"CpOtMt-Bldgs","Cap Outlay Mtrl-Buildings","2012-05-14",{"$f":"_xlfn.XLOOKUP(CI_s[[#This Row],[Commitment item]],AM:AM,AK:AK)","v":"Cap Outlay Mtrl-Buildings"},{"$f":"_xlfn.XLOOKUP(CI_s[[#This Row],[Commitment item]],AM:AM,AN:AN)","v":"Cap Outlay Mtrl-Buildings"},null,null,null,null,516040,516000]
[null,null,null,null,null,null,null,null,null,null,522030,"CpOtMt-Imp Oth","Cap Outlay Mtrl-Improvements Other","2012-05-14",{"$f":"_xlfn.XLOOKUP(CI_s[[#This Row],[Commitment item]],AM:AM,AK:AK)","v":"Cap Outlay Mtrl-Improvements Other"},{"$f":"_xlfn.XLOOKUP(CI_s[[#This Row],[Commitment item]],AM:AM,AN:AN)","v":"Cap Outlay Mtrl-Improvements Other"},null,null,null,null,516041,516000]
[null,null,null,null,null,null,null,null,null,null,522040,"CpOtMt-Infra/Imp","Cap Outlay Mtrl-Infrastructure/Improvements","2012-05-14",{"$f":"_xlfn.XLOOKUP(CI_s[[#This Row],[Commitment item]],AM:AM,AK:AK)","v":"Cap Outlay Mtrl-Infrastructure/Improvements"},{"$f":"_xlfn.XLOOKUP(CI_s[[#This Row],[Commitment item]],AM:AM,AN:AN)","v":"Cap Outlay Mtrl-Infrastructure/Improvements"},null,null,null,null,516042,516000]
[null,null,null,null,null,null,null,null,null,null,522050,"CpOtMt-Land","Cap Outlay Mtrl-Land","2012-05-14",{"$f":"_xlfn.XLOOKUP(CI_s[[#This Row],[Commitment item]],AM:AM,AK:AK)","v":"Cap Outlay Mtrl-Land"},{"$f":"_xlfn.XLOOKUP(CI_s[[#This Row],[Commitment item]],AM:AM,AN:AN)","v":"Cap Outlay Mtrl-Land"},null,null,null,null,516050,516000]
[null,null,null,null,null,null,null,null,null,null,522060,"CpOtMt-LandUseRts","Cap Outlay Mtrl-Land Use Rights","2012-05-14",{"$f":"_xlfn.XLOOKUP(CI_s[[#This Row],[Commitment item]],AM:AM,AK:AK)","v":"Cap Outlay Mtrl-Land-Right-of-Way"},{"$f":"_xlfn.XLOOKUP(CI_s[[#This Row],[Commitment item]],AM:AM,AN:AN)","v":"Cap Outlay Mtrl-Land-Right-of-Way"},null,null,null,null,516060,516000]
[null,null,null,null,null,null,null,null,null,null,522070,"CpOtMt-LHI","Cap Outlay Mtrl-Leasehold Improvements","2012-05-14",{"$f":"_xlfn.XLOOKUP(CI_s[[#This Row],[Commitment item]],AM:AM,AK:AK)","v":"Cap Outlay Mtrl-Leasehold Improvements"},{"$f":"_xlfn.XLOOKUP(CI_s[[#This Row],[Commitment item]],AM:AM,AN:AN)","v":"Cap Outlay Mtrl-Leasehold Improvements"},null,null,null,null,516070,516000]
[null,null,null,null,null,null,null,null,null,null,522080,"CpOtMt-Park Imp","Cap Outlay Mtrl-Park Improvements","2012-05-14",{"$f":"_xlfn.XLOOKUP(CI_s[[#This Row],[Commitment item]],AM:AM,AK:AK)","v":"Cap Outlay Mtrl-Park Improvements"},{"$f":"_xlfn.XLOOKUP(CI_s[[#This Row],[Commitment item]],AM:AM,AN:AN)","v":"Cap Outlay Mtrl-Park Improvements"},null,null,null,null,516080,516000]
[null,null,null,null,null,null,null,null,null,null,522090,"CpOtMt-SignTfcCtrlEq","Cap Outlay Mtrl-Sign Traffic Control Equipment","2012-05-14",{"$f":"_xlfn.XLOOKUP(CI_s[[#This Row],[Commitment item]],AM:AM,AK:AK)","v":"Cap Outlay Mtrl-Sign, Traffic Control Equipment"},{"$f":"_xlfn.XLOOKUP(CI_s[[#This Row],[Commitment item]],AM:AM,AN:AN)","v":"Cap Outlay Mtrl-Sign  Traffic Control Equipment"},null,null,null,null,516090,516000]
[null,null,null,null,null,null,null,null,null,null,522100,"CpOtMt-AuC Assets","Cap Outlay Mtrl-Assets Under Construction","2012-11-05",{"$f":"_xlfn.XLOOKUP(CI_s[[#This Row],[Commitment item]],AM:AM,AK:AK)","v":"Cap Outlay Mtrl-Sign, Traffic Control Equipment"},{"$f":"_xlfn.XLOOKUP(CI_s[[#This Row],[Commitment item]],AM:AM,AN:AN)","v":"Cap Outlay Mtrl-Assets Under Construction"},null,null,null,null,516100,516000]
[null,null,null,null,null,null,null,null,null,null,522110,"CpOt-RTU Lse Land","Cap Outlay-Right-to-use Leased Land","2021-10-05",{"$f":"_xlfn.XLOOKUP(CI_s[[#This Row],[Commitment item]],AM:AM,AK:AK)","v":{"$error":"#N/A"}},{"$f":"_xlfn.XLOOKUP(CI_s[[#This Row],[Commitment item]],AM:AM,AN:AN)","v":{"$error":"#N/A"}},null,null,null,null,516110,516000]
[null,null,null,null,null,null,null,null,null,null,522112,"CpOt-RTU Lse Equip","Cap Outlay-Right-to-use Leased Equipment","2021-10-05",{"$f":"_xlfn.XLOOKUP(CI_s[[#This Row],[Commitment item]],AM:AM,AK:AK)","v":{"$error":"#N/A"}},{"$f":"_xlfn.XLOOKUP(CI_s[[#This Row],[Commitment item]],AM:AM,AN:AN)","v":{"$error":"#N/A"}},null,null,null,null,516111,516000]
[null,null,null,null,null,null,null,null,null,null,522113,"CpOt-RTU Lse Bldg","Cap Outlay-Right-to-use Leased Building","2021-10-05",{"$f":"_xlfn.XLOOKUP(CI_s[[#This Row],[Commitment item]],AM:AM,AK:AK)","v":{"$error":"#N/A"}},{"$f":"_xlfn.XLOOKUP(CI_s[[#This Row],[Commitment item]],AM:AM,AN:AN)","v":{"$error":"#N/A"}},null,null,null,null,516112,516000]
[null,null,null,null,null,null,null,null,null,null,522116,"CpOt-RTU SBITA","Cap Outlay-Right-to-use SBITA","2022-08-11",{"$f":"_xlfn.XLOOKUP(CI_s[[#This Row],[Commitment item]],AM:AM,AK:AK)","v":{"$error":"#N/A"}},{"$f":"_xlfn.XLOOKUP(CI_s[[#This Row],[Commitment item]],AM:AM,AN:AN)","v":{"$error":"#N/A"}},null,null,null,null,516120,516000]
[null,null,null,null,null,null,null,null,null,null,522117,"CapOut-FP Equip","Cap Outlay - Financed Purchase Equipment","2021-10-15",{"$f":"_xlfn.XLOOKUP(CI_s[[#This Row],[Commitment item]],AM:AM,AK:AK)","v":{"$error":"#N/A"}},{"$f":"_xlfn.XLOOKUP(CI_s[[#This Row],[Commitment item]],AM:AM,AN:AN)","v":{"$error":"#N/A"}},null,null,null,null,516130,516000]
[null,null,null,null,null,null,null,null,null,null,522118,"CapOut-FP Bldg","Cap Outlay - Financed Purchase Building","2021-10-15",{"$f":"_xlfn.XLOOKUP(CI_s[[#This Row],[Commitment item]],AM:AM,AK:AK)","v":{"$error":"#N/A"}},{"$f":"_xlfn.XLOOKUP(CI_s[[#This Row],[Commitment item]],AM:AM,AN:AN)","v":{"$error":"#N/A"}},null,null,null,null,516140,516000]
[null,null,null,null,null,null,null,null,null,null,522997,"RD-RecCapOut","Road District Reclass-Capital Outlay","2012-07-02",{"$f":"_xlfn.XLOOKUP(CI_s[[#This Row],[Commitment item]],AM:AM,AK:AK)","v":{"$error":"#N/A"}},{"$f":"_xlfn.XLOOKUP(CI_s[[#This Row],[Commitment item]],AM:AM,AN:AN)","v":{"$error":"#N/A"}},null,null,null,null,516141,516000]
[null,null,null,null,null,null,null,null,null,null,523030,"Depr-Bldg & Bldg Imp","Depr Exp-Building & Building Improvements","2012-05-14",{"$f":"_xlfn.XLOOKUP(CI_s[[#This Row],[Commitment item]],AM:AM,AK:AK)","v":{"$error":"#N/A"}},{"$f":"_xlfn.XLOOKUP(CI_s[[#This Row],[Commitment item]],AM:AM,AN:AN)","v":{"$error":"#N/A"}},null,null,null,null,516142,516000]
[null,null,null,null,null,null,null,null,null,null,523040,"Depr-ImpOthThanBldg","Depr Exp-Improvements Other Than Building","2012-05-14",{"$f":"_xlfn.XLOOKUP(CI_s[[#This Row],[Commitment item]],AM:AM,AK:AK)","v":{"$error":"#N/A"}},{"$f":"_xlfn.XLOOKUP(CI_s[[#This Row],[Commitment item]],AM:AM,AN:AN)","v":{"$error":"#N/A"}},null,null,null,null,516150,516000]
[null,null,null,null,null,null,null,null,null,null,523050,"Depr-Infra","Depr Exp-Infrastructure","2012-05-14",{"$f":"_xlfn.XLOOKUP(CI_s[[#This Row],[Commitment item]],AM:AM,AK:AK)","v":{"$error":"#N/A"}},{"$f":"_xlfn.XLOOKUP(CI_s[[#This Row],[Commitment item]],AM:AM,AN:AN)","v":{"$error":"#N/A"}},null,null,null,null,516160,516000]
[null,null,null,null,null,null,null,null,null,null,523060,"Depr-LHI","Depr Exp-Leasehold Improvements","2012-05-14",{"$f":"_xlfn.XLOOKUP(CI_s[[#This Row],[Commitment item]],AM:AM,AK:AK)","v":{"$error":"#N/A"}},{"$f":"_xlfn.XLOOKUP(CI_s[[#This Row],[Commitment item]],AM:AM,AN:AN)","v":{"$error":"#N/A"}},null,null,null,null,516170,516000]
[null,null,null,null,null,null,null,null,null,null,523070,"Depr-MachEqp&OthAsts","Depr Exp-Machinery Equipment & Other Assets","2012-05-14",{"$f":"_xlfn.XLOOKUP(CI_s[[#This Row],[Commitment item]],AM:AM,AK:AK)","v":{"$error":"#N/A"}},{"$f":"_xlfn.XLOOKUP(CI_s[[#This Row],[Commitment item]],AM:AM,AN:AN)","v":{"$error":"#N/A"}},null,null,null,null,516180,516000]
[null,null,null,null,null,null,null,null,null,null,523080,"Depr-EqpCapLease","Depr Exp-Equipment Under Capital Lease","2012-05-14",{"$f":"_xlfn.XLOOKUP(CI_s[[#This Row],[Commitment item]],AM:AM,AK:AK)","v":{"$error":"#N/A"}},{"$f":"_xlfn.XLOOKUP(CI_s[[#This Row],[Commitment item]],AM:AM,AN:AN)","v":{"$error":"#N/A"}},null,null,null,null,516190,516000]
[null,null,null,null,null,null,null,null,null,null,523090,"Depr-Sfw Int","Depr Exp-Software Intangibles","2018-08-14",{"$f":"_xlfn.XLOOKUP(CI_s[[#This Row],[Commitment item]],AM:AM,AK:AK)","v":{"$error":"#N/A"}},{"$f":"_xlfn.XLOOKUP(CI_s[[#This Row],[Commitment item]],AM:AM,AN:AN)","v":{"$error":"#N/A"}},null,null,null,null,516200,516000]
[null,null,null,null,null,null,null,null,null,null,523100,"Amort-RTU Lse Land","Amortization Expense-Right-to-use Leased Land","2021-10-05",{"$f":"_xlfn.XLOOKUP(CI_s[[#This Row],[Commitment item]],AM:AM,AK:AK)","v":{"$error":"#N/A"}},{"$f":"_xlfn.XLOOKUP(CI_s[[#This Row],[Commitment item]],AM:AM,AN:AN)","v":{"$error":"#N/A"}},null,null,null,null,516210,516000]
[null,null,null,null,null,null,null,null,null,null,523102,"Amort-RTU Lse Equip","Amortization Expense-Right-to-use Leased Equipment","2021-10-05",{"$f":"_xlfn.XLOOKUP(CI_s[[#This Row],[Commitment item]],AM:AM,AK:AK)","v":{"$error":"#N/A"}},{"$f":"_xlfn.XLOOKUP(CI_s[[#This Row],[Commitment item]],AM:AM,AN:AN)","v":{"$error":"#N/A"}},null,null,null,null,516211,516000]
[null,null,null,null,null,null,null,null,null,null,523103,"Amort-RTU Lse Bldg","Amortization Expense-Right-to-use Leased Building","2021-10-05",{"$f":"_xlfn.XLOOKUP(CI_s[[#This Row],[Commitment item]],AM:AM,AK:AK)","v":{"$error":"#N/A"}},{"$f":"_xlfn.XLOOKUP(CI_s[[#This Row],[Commitment item]],AM:AM,AN:AN)","v":{"$error":"#N/A"}},null,null,null,null,516212,516000]
[null,null,null,null,null,null,null,null,null,null,523106,"Amort-RTU SBITA","Amortization Expense-Right-to-use SBITA","2022-08-11",{"$f":"_xlfn.XLOOKUP(CI_s[[#This Row],[Commitment item]],AM:AM,AK:AK)","v":{"$error":"#N/A"}},{"$f":"_xlfn.XLOOKUP(CI_s[[#This Row],[Commitment item]],AM:AM,AN:AN)","v":{"$error":"#N/A"}},null,null,null,null,516220,516000]
[null,null,null,null,null,null,null,null,null,null,524030,"AcDpAdj-Bldg&BldgImp","Accum Depr Adj-Building & Building Improvements","2012-05-14",{"$f":"_xlfn.XLOOKUP(CI_s[[#This Row],[Commitment item]],AM:AM,AK:AK)","v":{"$error":"#N/A"}},{"$f":"_xlfn.XLOOKUP(CI_s[[#This Row],[Commitment item]],AM:AM,AN:AN)","v":{"$error":"#N/A"}},null,null,null,null,516230,516000]
[null,null,null,null,null,null,null,null,null,null,524040,"AcDpAdj-ImpOthTnBldg","Accum Depr Adj-Improvements Other Than Building","2012-05-14",{"$f":"_xlfn.XLOOKUP(CI_s[[#This Row],[Commitment item]],AM:AM,AK:AK)","v":{"$error":"#N/A"}},{"$f":"_xlfn.XLOOKUP(CI_s[[#This Row],[Commitment item]],AM:AM,AN:AN)","v":{"$error":"#N/A"}},null,null,null,null,516240,516000]
[null,null,null,null,null,null,null,null,null,null,524050,"AcDpAdj-Infra","Accum Depr Adj-Infrastructure","2012-05-14",{"$f":"_xlfn.XLOOKUP(CI_s[[#This Row],[Commitment item]],AM:AM,AK:AK)","v":{"$error":"#N/A"}},{"$f":"_xlfn.XLOOKUP(CI_s[[#This Row],[Commitment item]],AM:AM,AN:AN)","v":{"$error":"#N/A"}},null,null,null,null,516241,516000]
[null,null,null,null,null,null,null,null,null,null,524060,"AcDpAdj-LHI","Accum Depr Adj-Leasehold Improvements","2012-05-14",{"$f":"_xlfn.XLOOKUP(CI_s[[#This Row],[Commitment item]],AM:AM,AK:AK)","v":{"$error":"#N/A"}},{"$f":"_xlfn.XLOOKUP(CI_s[[#This Row],[Commitment item]],AM:AM,AN:AN)","v":{"$error":"#N/A"}},null,null,null,null,516242,516000]
[null,null,null,null,null,null,null,null,null,null,524070,"AcDpAdj-MachEqp&Oth","Accum Depr Adj-Machinery Equipment & Other Assets","2012-05-14",{"$f":"_xlfn.XLOOKUP(CI_s[[#This Row],[Commitment item]],AM:AM,AK:AK)","v":{"$error":"#N/A"}},{"$f":"_xlfn.XLOOKUP(CI_s[[#This Row],[Commitment item]],AM:AM,AN:AN)","v":{"$error":"#N/A"}},null,null,null,null,516250,516000]
[null,null,null,null,null,null,null,null,null,null,524090,"AcDpAdj-Sfw Int","Accum Depr Adj-Software Intangibles","2018-08-14",{"$f":"_xlfn.XLOOKUP(CI_s[[#This Row],[Commitment item]],AM:AM,AK:AK)","v":{"$error":"#N/A"}},{"$f":"_xlfn.XLOOKUP(CI_s[[#This Row],[Commitment item]],AM:AM,AN:AN)","v":{"$error":"#N/A"}},null,null,null,null,516260,516000]
[null,null,null,null,null,null,null,null,null,null,524996,"Proj Stlmt- NonTC","Project Settlement -Non Travis County Asset","2018-08-17",{"$f":"_xlfn.XLOOKUP(CI_s[[#This Row],[Commitment item]],AM:AM,AK:AK)","v":{"$error":"#N/A"}},{"$f":"_xlfn.XLOOKUP(CI_s[[#This Row],[Commitment item]],AM:AM,AN:AN)","v":{"$error":"#N/A"}},null,null,null,null,516270,516000]
[null,null,null,null,null,null,null,null,null,null,524997,"StlmtCorrections","Settlement Corrections","2012-09-12",{"$f":"_xlfn.XLOOKUP(CI_s[[#This Row],[Commitment item]],AM:AM,AK:AK)","v":{"$error":"#N/A"}},{"$f":"_xlfn.XLOOKUP(CI_s[[#This Row],[Commitment item]],AM:AM,AN:AN)","v":{"$error":"#N/A"}},null,null,null,null,516280,516000]
[null,null,null,null,null,null,null,null,null,null,524998,"CapAssetIO-Offset","Capital Assets IO Offset","2012-05-14",{"$f":"_xlfn.XLOOKUP(CI_s[[#This Row],[Commitment item]],AM:AM,AK:AK)","v":{"$error":"#N/A"}},{"$f":"_xlfn.XLOOKUP(CI_s[[#This Row],[Commitment item]],AM:AM,AN:AN)","v":{"$error":"#N/A"}},null,null,null,null,516290,516000]
[null,null,null,null,null,null,null,null,null,null,524999,"Proj Stlmt-AUC","Project Settlement to AUC","2012-05-14",{"$f":"_xlfn.XLOOKUP(CI_s[[#This Row],[Commitment item]],AM:AM,AK:AK)","v":{"$error":"#N/A"}},{"$f":"_xlfn.XLOOKUP(CI_s[[#This Row],[Commitment item]],AM:AM,AN:AN)","v":{"$error":"#N/A"}},null,null,null,null,516300,516000]
[null,null,null,null,null,null,null,null,null,null,525001,"Refunding BIC","Refunding Bond Issuance Costs","2012-07-02",{"$f":"_xlfn.XLOOKUP(CI_s[[#This Row],[Commitment item]],AM:AM,AK:AK)","v":{"$error":"#N/A"}},{"$f":"_xlfn.XLOOKUP(CI_s[[#This Row],[Commitment item]],AM:AM,AN:AN)","v":{"$error":"#N/A"}},null,null,null,null,516310,516000]
[null,null,null,null,null,null,null,null,null,null,525005,"Bnd Issuance Costs","Bond Issuance Costs","2012-05-14",{"$f":"_xlfn.XLOOKUP(CI_s[[#This Row],[Commitment item]],AM:AM,AK:AK)","v":{"$error":"#N/A"}},{"$f":"_xlfn.XLOOKUP(CI_s[[#This Row],[Commitment item]],AM:AM,AN:AN)","v":{"$error":"#N/A"}},null,null,null,null,516311,516000]
[null,null,null,null,null,null,null,null,null,null,525010,"Capital Lease-Princ","Capital Lease-Principal","2012-05-14",{"$f":"_xlfn.XLOOKUP(CI_s[[#This Row],[Commitment item]],AM:AM,AK:AK)","v":{"$error":"#N/A"}},{"$f":"_xlfn.XLOOKUP(CI_s[[#This Row],[Commitment item]],AM:AM,AN:AN)","v":{"$error":"#N/A"}},null,null,null,null,516312,516000]
[null,null,null,null,null,null,null,null,null,null,525020,"Bnds-Princ","Bonds-Principal","2012-05-14",{"$f":"_xlfn.XLOOKUP(CI_s[[#This Row],[Commitment item]],AM:AM,AK:AK)","v":{"$error":"#N/A"}},{"$f":"_xlfn.XLOOKUP(CI_s[[#This Row],[Commitment item]],AM:AM,AN:AN)","v":{"$error":"#N/A"}},null,null,null,null,516320,516000]
[null,null,null,null,null,null,null,null,null,null,525110,"Capital Lease-Int","Capital Lease-Interest","2012-05-14",{"$f":"_xlfn.XLOOKUP(CI_s[[#This Row],[Commitment item]],AM:AM,AK:AK)","v":{"$error":"#N/A"}},{"$f":"_xlfn.XLOOKUP(CI_s[[#This Row],[Commitment item]],AM:AM,AN:AN)","v":{"$error":"#N/A"}},null,null,null,null,516330,516000]
[null,null,null,null,null,null,null,null,null,null,525120,"Bnds-Int","Bonds-Interest","2012-05-14",{"$f":"_xlfn.XLOOKUP(CI_s[[#This Row],[Commitment item]],AM:AM,AK:AK)","v":{"$error":"#N/A"}},{"$f":"_xlfn.XLOOKUP(CI_s[[#This Row],[Commitment item]],AM:AM,AN:AN)","v":{"$error":"#N/A"}},null,null,null,null,516340,516000]
[null,null,null,null,null,null,null,null,null,null,525210,"Paying Agent Fees","Paying Agent Fees","2012-05-14",{"$f":"_xlfn.XLOOKUP(CI_s[[#This Row],[Commitment item]],AM:AM,AK:AK)","v":{"$error":"#N/A"}},{"$f":"_xlfn.XLOOKUP(CI_s[[#This Row],[Commitment item]],AM:AM,AN:AN)","v":{"$error":"#N/A"}},null,null,null,null,516341,516000]
[null,null,null,null,null,null,null,null,null,null,525220,"Bnd DefeasanceEscrow","Bond Defeasance/Escrow","2012-05-14",{"$f":"_xlfn.XLOOKUP(CI_s[[#This Row],[Commitment item]],AM:AM,AK:AK)","v":{"$error":"#N/A"}},{"$f":"_xlfn.XLOOKUP(CI_s[[#This Row],[Commitment item]],AM:AM,AN:AN)","v":{"$error":"#N/A"}},null,null,null,null,516342,516000]
[null,null,null,null,null,null,null,null,null,null,525230,"GW-Interest Expense","GW-Interest Expense","2012-05-17",{"$f":"_xlfn.XLOOKUP(CI_s[[#This Row],[Commitment item]],AM:AM,AK:AK)","v":{"$error":"#N/A"}},{"$f":"_xlfn.XLOOKUP(CI_s[[#This Row],[Commitment item]],AM:AM,AN:AN)","v":{"$error":"#N/A"}},null,null,null,null,516350,516000]
[null,null,null,null,null,null,null,null,null,null,525240,"GW-Defr Loss Amtz","GW-Deferred Loss Amortization","2012-05-17",{"$f":"_xlfn.XLOOKUP(CI_s[[#This Row],[Commitment item]],AM:AM,AK:AK)","v":{"$error":"#N/A"}},{"$f":"_xlfn.XLOOKUP(CI_s[[#This Row],[Commitment item]],AM:AM,AN:AN)","v":{"$error":"#N/A"}},null,null,null,null,516360,516000]
[null,null,null,null,null,null,null,null,null,null,525250,"GW-Accreted Interest","GW-Accreted Interest","2012-05-17",{"$f":"_xlfn.XLOOKUP(CI_s[[#This Row],[Commitment item]],AM:AM,AK:AK)","v":{"$error":"#N/A"}},{"$f":"_xlfn.XLOOKUP(CI_s[[#This Row],[Commitment item]],AM:AM,AN:AN)","v":{"$error":"#N/A"}},null,null,null,null,516370,516000]
[null,null,null,null,null,null,null,null,null,null,525260,"GW-OID Amtz","GW-Original Issue Discount Amortization","2012-05-17",{"$f":"_xlfn.XLOOKUP(CI_s[[#This Row],[Commitment item]],AM:AM,AK:AK)","v":{"$error":"#N/A"}},{"$f":"_xlfn.XLOOKUP(CI_s[[#This Row],[Commitment item]],AM:AM,AN:AN)","v":{"$error":"#N/A"}},null,null,null,null,516380,516000]
[null,null,null,null,null,null,null,null,null,null,525270,"GW-BIC Amtz","GW-Bond Issuance Cost Amortization","2012-05-17",{"$f":"_xlfn.XLOOKUP(CI_s[[#This Row],[Commitment item]],AM:AM,AK:AK)","v":{"$error":"#N/A"}},{"$f":"_xlfn.XLOOKUP(CI_s[[#This Row],[Commitment item]],AM:AM,AN:AN)","v":{"$error":"#N/A"}},null,null,null,null,516390,516000]
[null,null,null,null,null,null,null,null,null,null,525280,"Prop Apprsl Fees","Property Appraisal Fees","2012-05-17",{"$f":"_xlfn.XLOOKUP(CI_s[[#This Row],[Commitment item]],AM:AM,AK:AK)","v":{"$error":"#N/A"}},{"$f":"_xlfn.XLOOKUP(CI_s[[#This Row],[Commitment item]],AM:AM,AN:AN)","v":{"$error":"#N/A"}},null,null,null,null,516400,516000]
[null,null,null,null,null,null,null,null,null,null,526001,"FFEO-Oth-BIC","Fund Fin Exp Offset-Other-Bond Issuance Costs","2012-05-14",{"$f":"_xlfn.XLOOKUP(CI_s[[#This Row],[Commitment item]],AM:AM,AK:AK)","v":{"$error":"#N/A"}},{"$f":"_xlfn.XLOOKUP(CI_s[[#This Row],[Commitment item]],AM:AM,AN:AN)","v":{"$error":"#N/A"}},null,null,null,null,516410,516000]
[null,null,null,null,null,null,null,null,null,null,526010,"FFEO-Oth-CapLsePrinc","Fund Fin Exp Offset-Other-Cap Lease Principle","2012-05-14",{"$f":"_xlfn.XLOOKUP(CI_s[[#This Row],[Commitment item]],AM:AM,AK:AK)","v":{"$error":"#N/A"}},{"$f":"_xlfn.XLOOKUP(CI_s[[#This Row],[Commitment item]],AM:AM,AN:AN)","v":{"$error":"#N/A"}},null,null,null,null,516420,516000]
[null,null,null,null,null,null,null,null,null,null,526020,"FFEO-Oth-Bnd&COPrinc","Fund Fin Exp Offset-Other-Bond and CO Principle","2012-05-14",{"$f":"_xlfn.XLOOKUP(CI_s[[#This Row],[Commitment item]],AM:AM,AK:AK)","v":{"$error":"#N/A"}},{"$f":"_xlfn.XLOOKUP(CI_s[[#This Row],[Commitment item]],AM:AM,AN:AN)","v":{"$error":"#N/A"}},null,null,null,null,516430,516000]
[null,null,null,null,null,null,null,null,null,null,526110,"Interest Expense","Interest Expense","2012-07-28",{"$f":"_xlfn.XLOOKUP(CI_s[[#This Row],[Commitment item]],AM:AM,AK:AK)","v":{"$error":"#N/A"}},{"$f":"_xlfn.XLOOKUP(CI_s[[#This Row],[Commitment item]],AM:AM,AN:AN)","v":{"$error":"#N/A"}},null,null,null,null,516431,516000]
[null,null,null,null,null,null,null,null,null,null,526111,"Interest Expense-RD","Interest Expense-Road District","2012-07-28",{"$f":"_xlfn.XLOOKUP(CI_s[[#This Row],[Commitment item]],AM:AM,AK:AK)","v":{"$error":"#N/A"}},{"$f":"_xlfn.XLOOKUP(CI_s[[#This Row],[Commitment item]],AM:AM,AN:AN)","v":{"$error":"#N/A"}},null,null,null,null,516440,516000]
[null,null,null,null,null,null,null,null,null,null,526120,"Defr Loss Amtz","Deferred Loss Amortization","2012-07-28",{"$f":"_xlfn.XLOOKUP(CI_s[[#This Row],[Commitment item]],AM:AM,AK:AK)","v":{"$error":"#N/A"}},{"$f":"_xlfn.XLOOKUP(CI_s[[#This Row],[Commitment item]],AM:AM,AN:AN)","v":{"$error":"#N/A"}},null,null,null,null,516441,516000]
[null,null,null,null,null,null,null,null,null,null,526121,"Defr Loss Amtz-RD","Deferred Loss Amortization-Road District","2012-07-28",{"$f":"_xlfn.XLOOKUP(CI_s[[#This Row],[Commitment item]],AM:AM,AK:AK)","v":{"$error":"#N/A"}},{"$f":"_xlfn.XLOOKUP(CI_s[[#This Row],[Commitment item]],AM:AM,AN:AN)","v":{"$error":"#N/A"}},null,null,null,null,516442,516000]
[null,null,null,null,null,null,null,null,null,null,526130,"Accreted Interest","Accreted Interest","2012-07-28",{"$f":"_xlfn.XLOOKUP(CI_s[[#This Row],[Commitment item]],AM:AM,AK:AK)","v":{"$error":"#N/A"}},{"$f":"_xlfn.XLOOKUP(CI_s[[#This Row],[Commitment item]],AM:AM,AN:AN)","v":{"$error":"#N/A"}},null,null,null,null,516443,516000]
[null,null,null,null,null,null,null,null,null,null,526140,"OID Amtz","Original Issue Discount Amortization","2012-07-28",{"$f":"_xlfn.XLOOKUP(CI_s[[#This Row],[Commitment item]],AM:AM,AK:AK)","v":{"$error":"#N/A"}},{"$f":"_xlfn.XLOOKUP(CI_s[[#This Row],[Commitment item]],AM:AM,AN:AN)","v":{"$error":"#N/A"}},null,null,null,null,516444,516000]
[null,null,null,null,null,null,null,null,null,null,526141,"OID Amtz-RD","Original Issue Discount Amortization-Road District","2012-07-28",{"$f":"_xlfn.XLOOKUP(CI_s[[#This Row],[Commitment item]],AM:AM,AK:AK)","v":{"$error":"#N/A"}},{"$f":"_xlfn.XLOOKUP(CI_s[[#This Row],[Commitment item]],AM:AM,AN:AN)","v":{"$error":"#N/A"}},null,null,null,null,516460,516000]
[null,null,null,null,null,null,null,null,null,null,526152,"Bond Defeasance Exp","Bond Defeasance Expense","2014-01-21",{"$f":"_xlfn.XLOOKUP(CI_s[[#This Row],[Commitment item]],AM:AM,AK:AK)","v":{"$error":"#N/A"}},{"$f":"_xlfn.XLOOKUP(CI_s[[#This Row],[Commitment item]],AM:AM,AN:AN)","v":{"$error":"#N/A"}},null,null,null,null,516470,516000]
[null,null,null,null,null,null,null,null,null,null,526160,"Amtz BIC","Amortization Bond Issuance Cost","2012-07-28",{"$f":"_xlfn.XLOOKUP(CI_s[[#This Row],[Commitment item]],AM:AM,AK:AK)","v":{"$error":"#N/A"}},{"$f":"_xlfn.XLOOKUP(CI_s[[#This Row],[Commitment item]],AM:AM,AN:AN)","v":{"$error":"#N/A"}},null,null,null,null,516480,516000]
[null,null,null,null,null,null,null,null,null,null,526161,"Amtz BIC-RD","Amortization Bond Issuance Cost-Road District","2012-07-28",{"$f":"_xlfn.XLOOKUP(CI_s[[#This Row],[Commitment item]],AM:AM,AK:AK)","v":{"$error":"#N/A"}},{"$f":"_xlfn.XLOOKUP(CI_s[[#This Row],[Commitment item]],AM:AM,AN:AN)","v":{"$error":"#N/A"}},null,null,null,null,516490,516000]
[null,null,null,null,null,null,null,null,null,null,526162,"BIC-Defeasance","Bond Issuance Cost–Defeasance","2014-01-21",{"$f":"_xlfn.XLOOKUP(CI_s[[#This Row],[Commitment item]],AM:AM,AK:AK)","v":{"$error":"#N/A"}},{"$f":"_xlfn.XLOOKUP(CI_s[[#This Row],[Commitment item]],AM:AM,AN:AN)","v":{"$error":"#N/A"}},null,null,null,null,516500,516000]
[null,null,null,null,null,null,null,null,null,null,526163,"GW-Bond Issuance Cos","GW-Bond Issuance Costs","2014-10-29",{"$f":"_xlfn.XLOOKUP(CI_s[[#This Row],[Commitment item]],AM:AM,AK:AK)","v":{"$error":"#N/A"}},{"$f":"_xlfn.XLOOKUP(CI_s[[#This Row],[Commitment item]],AM:AM,AN:AN)","v":{"$error":"#N/A"}},null,null,null,null,516510,516000]
[null,null,null,null,null,null,null,null,null,null,526210,"FFEO-CAB Interest","Fund Fin Exp Offset-CAB Interest Charges","2012-05-14",{"$f":"_xlfn.XLOOKUP(CI_s[[#This Row],[Commitment item]],AM:AM,AK:AK)","v":{"$error":"#N/A"}},{"$f":"_xlfn.XLOOKUP(CI_s[[#This Row],[Commitment item]],AM:AM,AN:AN)","v":{"$error":"#N/A"}},null,null,null,null,516610,516000]
[null,null,null,null,null,null,null,null,null,null,526220,"FFEO-Oth-RfdgEsrwPmt","Fund Fin Exp Offset-Other-Rfdg Escrow Payment","2012-05-14",{"$f":"_xlfn.XLOOKUP(CI_s[[#This Row],[Commitment item]],AM:AM,AK:AK)","v":{"$error":"#N/A"}},{"$f":"_xlfn.XLOOKUP(CI_s[[#This Row],[Commitment item]],AM:AM,AN:AN)","v":{"$error":"#N/A"}},null,null,null,null,516620,516000]
[null,null,null,null,null,null,null,null,null,null,529998,"Reimb Res Elim","Reimbursement Resolution Elimination","2015-10-19",{"$f":"_xlfn.XLOOKUP(CI_s[[#This Row],[Commitment item]],AM:AM,AK:AK)","v":{"$error":"#N/A"}},{"$f":"_xlfn.XLOOKUP(CI_s[[#This Row],[Commitment item]],AM:AM,AN:AN)","v":{"$error":"#N/A"}},null,null,null,null,516630,516000]
[null,null,null,null,null,null,null,null,null,null,530001,"Bnd Issuance Costs","Bond Issuance Costs","2015-07-09",{"$f":"_xlfn.XLOOKUP(CI_s[[#This Row],[Commitment item]],AM:AM,AK:AK)","v":{"$error":"#N/A"}},{"$f":"_xlfn.XLOOKUP(CI_s[[#This Row],[Commitment item]],AM:AM,AN:AN)","v":{"$error":"#N/A"}},null,null,null,null,516640,516000]
[null,null,null,null,null,null,null,null,null,null,530002,"Refunding BIC","Refunding Bond Issuance Costs","2015-07-09",{"$f":"_xlfn.XLOOKUP(CI_s[[#This Row],[Commitment item]],AM:AM,AK:AK)","v":{"$error":"#N/A"}},{"$f":"_xlfn.XLOOKUP(CI_s[[#This Row],[Commitment item]],AM:AM,AN:AN)","v":{"$error":"#N/A"}},null,null,null,null,516650,516000]
[null,null,null,null,null,null,null,null,null,null,530010,"Bnd DefeasanceEscrow","Bond Defeasance/Escrow","2015-07-09",{"$f":"_xlfn.XLOOKUP(CI_s[[#This Row],[Commitment item]],AM:AM,AK:AK)","v":{"$error":"#N/A"}},{"$f":"_xlfn.XLOOKUP(CI_s[[#This Row],[Commitment item]],AM:AM,AN:AN)","v":{"$error":"#N/A"}},null,null,null,null,516660,516000]
[null,null,null,null,null,null,null,null,null,null,530020,"Capital Lease-Princ","Capital Lease-Principal","2015-07-09",{"$f":"_xlfn.XLOOKUP(CI_s[[#This Row],[Commitment item]],AM:AM,AK:AK)","v":{"$error":"#N/A"}},{"$f":"_xlfn.XLOOKUP(CI_s[[#This Row],[Commitment item]],AM:AM,AN:AN)","v":{"$error":"#N/A"}},null,null,null,null,516670,516000]
[null,null,null,null,null,null,null,null,null,null,530023,"Lease Principal Exp","Lease Principal Expense","2021-07-07",{"$f":"_xlfn.XLOOKUP(CI_s[[#This Row],[Commitment item]],AM:AM,AK:AK)","v":{"$error":"#N/A"}},{"$f":"_xlfn.XLOOKUP(CI_s[[#This Row],[Commitment item]],AM:AM,AN:AN)","v":{"$error":"#N/A"}},null,null,null,null,516680,516000]
[null,null,null,null,null,null,null,null,null,null,530024,"Fin Purch Prin Exp","Financed Purchase Principal Expense","2021-07-07",{"$f":"_xlfn.XLOOKUP(CI_s[[#This Row],[Commitment item]],AM:AM,AK:AK)","v":{"$error":"#N/A"}},{"$f":"_xlfn.XLOOKUP(CI_s[[#This Row],[Commitment item]],AM:AM,AN:AN)","v":{"$error":"#N/A"}},null,null,null,null,516690,516000]
[null,null,null,null,null,null,null,null,null,null,530025,"SBITA Principal Exp","SBITA Principal","2022-08-11",{"$f":"_xlfn.XLOOKUP(CI_s[[#This Row],[Commitment item]],AM:AM,AK:AK)","v":"Capital Lease-Principal"},{"$f":"_xlfn.XLOOKUP(CI_s[[#This Row],[Commitment item]],AM:AM,AN:AN)","v":"SBITA Principal"},null,null,null,null,516700,516000]
[null,null,null,null,null,null,null,null,null,null,530030,"Bnds-Princ","Bonds-Principal","2015-07-09",{"$f":"_xlfn.XLOOKUP(CI_s[[#This Row],[Commitment item]],AM:AM,AK:AK)","v":{"$error":"#N/A"}},{"$f":"_xlfn.XLOOKUP(CI_s[[#This Row],[Commitment item]],AM:AM,AN:AN)","v":{"$error":"#N/A"}},null,null,null,null,516710,516000]
[null,null,null,null,null,null,null,null,null,null,530040,"Capital Lease-Int","Capital Lease-Interest","2015-07-09",{"$f":"_xlfn.XLOOKUP(CI_s[[#This Row],[Commitment item]],AM:AM,AK:AK)","v":{"$error":"#N/A"}},{"$f":"_xlfn.XLOOKUP(CI_s[[#This Row],[Commitment item]],AM:AM,AN:AN)","v":{"$error":"#N/A"}},null,null,null,null,516810,516000]
[null,null,null,null,null,null,null,null,null,null,530041,"Bnds-Int","Bonds-Interest","2015-07-09",{"$f":"_xlfn.XLOOKUP(CI_s[[#This Row],[Commitment item]],AM:AM,AK:AK)","v":{"$error":"#N/A"}},{"$f":"_xlfn.XLOOKUP(CI_s[[#This Row],[Commitment item]],AM:AM,AN:AN)","v":{"$error":"#N/A"}},null,null,null,null,516890,516000]
[null,null,null,null,null,null,null,null,null,null,530042,"Paying Agent Fees","Paying Agent Fees","2015-07-09",{"$f":"_xlfn.XLOOKUP(CI_s[[#This Row],[Commitment item]],AM:AM,AK:AK)","v":{"$error":"#N/A"}},{"$f":"_xlfn.XLOOKUP(CI_s[[#This Row],[Commitment item]],AM:AM,AN:AN)","v":{"$error":"#N/A"}},null,null,null,null,517010,517010]
[null,null,null,null,null,null,null,null,null,null,530043,"Lease Interest Exp","Lease Interest Expense","2021-08-27",{"$f":"_xlfn.XLOOKUP(CI_s[[#This Row],[Commitment item]],AM:AM,AK:AK)","v":{"$error":"#N/A"}},{"$f":"_xlfn.XLOOKUP(CI_s[[#This Row],[Commitment item]],AM:AM,AN:AN)","v":{"$error":"#N/A"}},null,null,null,null,517015,517010]
[null,null,null,null,null,null,null,null,null,null,530044,"Fin Purch Int Exp","Financed Purchase Interest Expense","2021-08-27",{"$f":"_xlfn.XLOOKUP(CI_s[[#This Row],[Commitment item]],AM:AM,AK:AK)","v":{"$error":"#N/A"}},{"$f":"_xlfn.XLOOKUP(CI_s[[#This Row],[Commitment item]],AM:AM,AN:AN)","v":{"$error":"#N/A"}},null,null,null,null,518001,518010]
[null,null,null,null,null,null,null,null,null,null,530045,"SBITA Interest Exp","SBITA Interest","2022-08-11",{"$f":"_xlfn.XLOOKUP(CI_s[[#This Row],[Commitment item]],AM:AM,AK:AK)","v":{"$error":"#N/A"}},{"$f":"_xlfn.XLOOKUP(CI_s[[#This Row],[Commitment item]],AM:AM,AN:AN)","v":{"$error":"#N/A"}},null,null,null,null,518002,518010]
[null,null,null,null,null,null,null,null,null,null,530060,"Prop Apprsl Fees","Property Appraisal Fees","2015-07-09",{"$f":"_xlfn.XLOOKUP(CI_s[[#This Row],[Commitment item]],AM:AM,AK:AK)","v":{"$error":"#N/A"}},{"$f":"_xlfn.XLOOKUP(CI_s[[#This Row],[Commitment item]],AM:AM,AN:AN)","v":{"$error":"#N/A"}},null,null,null,null,518010,518010]
[null,null,null,null,null,null,null,null,null,null,531001,"FFEO-Oth-BIC","Fund Fin Exp Offset-Other-Bond Issuance Costs","2015-07-09",{"$f":"_xlfn.XLOOKUP(CI_s[[#This Row],[Commitment item]],AM:AM,AK:AK)","v":{"$error":"#N/A"}},{"$f":"_xlfn.XLOOKUP(CI_s[[#This Row],[Commitment item]],AM:AM,AN:AN)","v":{"$error":"#N/A"}},null,null,null,null,518020,518010]
[null,null,null,null,null,null,null,null,null,null,531002,"BIC-Defeasance","Bond Issuance Cost–Defeasance","2015-07-09",{"$f":"_xlfn.XLOOKUP(CI_s[[#This Row],[Commitment item]],AM:AM,AK:AK)","v":{"$error":"#N/A"}},{"$f":"_xlfn.XLOOKUP(CI_s[[#This Row],[Commitment item]],AM:AM,AN:AN)","v":{"$error":"#N/A"}},null,null,null,null,518030,518010]
[null,null,null,null,null,null,null,null,null,null,531010,"FFEO-Oth-RfdgEsrwPmt","Fund Fin Exp Offset-Other-Rfdg Escrow Payment","2015-07-09",{"$f":"_xlfn.XLOOKUP(CI_s[[#This Row],[Commitment item]],AM:AM,AK:AK)","v":{"$error":"#N/A"}},{"$f":"_xlfn.XLOOKUP(CI_s[[#This Row],[Commitment item]],AM:AM,AN:AN)","v":{"$error":"#N/A"}},null,null,null,null,518110,518010]
[null,null,null,null,null,null,null,null,null,null,531020,"FFEO-Oth-CapLsePrinc","Fund Fin Exp Offset-Other-Cap Lease Principle","2015-07-09",{"$f":"_xlfn.XLOOKUP(CI_s[[#This Row],[Commitment item]],AM:AM,AK:AK)","v":{"$error":"#N/A"}},{"$f":"_xlfn.XLOOKUP(CI_s[[#This Row],[Commitment item]],AM:AM,AN:AN)","v":{"$error":"#N/A"}},null,null,null,null,518120,518010]
[null,null,null,null,null,null,null,null,null,null,531023,"FFEO-Lease Principal","Fund Fin Exp Offset-RTU Lease Principal Exp","2021-10-05",{"$f":"_xlfn.XLOOKUP(CI_s[[#This Row],[Commitment item]],AM:AM,AK:AK)","v":{"$error":"#N/A"}},{"$f":"_xlfn.XLOOKUP(CI_s[[#This Row],[Commitment item]],AM:AM,AN:AN)","v":{"$error":"#N/A"}},null,null,null,null,525280,525280]
[null,null,null,null,null,null,null,null,null,null,531024,"FFEO-Fin Purch Prin","Fund Fin Exp Offset-Financed Purch Prin Exp","2021-10-05",{"$f":"_xlfn.XLOOKUP(CI_s[[#This Row],[Commitment item]],AM:AM,AK:AK)","v":{"$error":"#N/A"}},{"$f":"_xlfn.XLOOKUP(CI_s[[#This Row],[Commitment item]],AM:AM,AN:AN)","v":{"$error":"#N/A"}},null,null,null,null,520010,520010]
[null,null,null,null,null,null,null,null,null,null,531025,"FFEO-SBITA Principal","Fund Fin Exp Offset-SBITA Principal Exp","2022-08-11",{"$f":"_xlfn.XLOOKUP(CI_s[[#This Row],[Commitment item]],AM:AM,AK:AK)","v":{"$error":"#N/A"}},{"$f":"_xlfn.XLOOKUP(CI_s[[#This Row],[Commitment item]],AM:AM,AN:AN)","v":{"$error":"#N/A"}},null,null,null,null,520020,520010]
[null,null,null,null,null,null,null,null,null,null,531030,"FFEO-Oth-Bnd&COPrinc","Fund Fin Exp Offset-Other-Bond and CO Principle","2015-07-09",{"$f":"_xlfn.XLOOKUP(CI_s[[#This Row],[Commitment item]],AM:AM,AK:AK)","v":{"$error":"#N/A"}},{"$f":"_xlfn.XLOOKUP(CI_s[[#This Row],[Commitment item]],AM:AM,AN:AN)","v":{"$error":"#N/A"}},null,null,null,null,520030,520010]
[null,null,null,null,null,null,null,null,null,null,531040,"Interest Expense","Interest Expense","2015-07-09",{"$f":"_xlfn.XLOOKUP(CI_s[[#This Row],[Commitment item]],AM:AM,AK:AK)","v":{"$error":"#N/A"}},{"$f":"_xlfn.XLOOKUP(CI_s[[#This Row],[Commitment item]],AM:AM,AN:AN)","v":{"$error":"#N/A"}},null,null,null,null,520040,520010]
[null,null,null,null,null,null,null,null,null,null,531041,"Interest Expense-RD","Interest Expense-Road District","2015-07-09",{"$f":"_xlfn.XLOOKUP(CI_s[[#This Row],[Commitment item]],AM:AM,AK:AK)","v":{"$error":"#N/A"}},{"$f":"_xlfn.XLOOKUP(CI_s[[#This Row],[Commitment item]],AM:AM,AN:AN)","v":{"$error":"#N/A"}},null,null,null,null,520050,520010]
[null,null,null,null,null,null,null,null,null,null,531042,"Defr Loss Amtz","Deferred Loss Amortization","2015-07-09",{"$f":"_xlfn.XLOOKUP(CI_s[[#This Row],[Commitment item]],AM:AM,AK:AK)","v":{"$error":"#N/A"}},{"$f":"_xlfn.XLOOKUP(CI_s[[#This Row],[Commitment item]],AM:AM,AN:AN)","v":{"$error":"#N/A"}},null,null,null,null,520060,520010]
[null,null,null,null,null,null,null,null,null,null,531043,"Defr Loss Amtz-RD","Deferred Loss Amortization-Road District","2015-07-09",{"$f":"_xlfn.XLOOKUP(CI_s[[#This Row],[Commitment item]],AM:AM,AK:AK)","v":{"$error":"#N/A"}},{"$f":"_xlfn.XLOOKUP(CI_s[[#This Row],[Commitment item]],AM:AM,AN:AN)","v":{"$error":"#N/A"}},null,null,null,null,520070,520010]
[null,null,null,null,null,null,null,null,null,null,531044,"Accreted Interest","Accreted Interest","2015-07-09",{"$f":"_xlfn.XLOOKUP(CI_s[[#This Row],[Commitment item]],AM:AM,AK:AK)","v":{"$error":"#N/A"}},{"$f":"_xlfn.XLOOKUP(CI_s[[#This Row],[Commitment item]],AM:AM,AN:AN)","v":{"$error":"#N/A"}},null,null,null,null,520080,520010]
[null,null,null,null,null,null,null,null,null,null,531045,"OID Amtz","Original Issue Discount Amortization","2015-07-09",{"$f":"_xlfn.XLOOKUP(CI_s[[#This Row],[Commitment item]],AM:AM,AK:AK)","v":{"$error":"#N/A"}},{"$f":"_xlfn.XLOOKUP(CI_s[[#This Row],[Commitment item]],AM:AM,AN:AN)","v":{"$error":"#N/A"}},null,null,null,null,520090,520010]
[null,null,null,null,null,null,null,null,null,null,531046,"OID Amtz-RD","Original Issue Discount Amortization-Road District","2015-07-09",{"$f":"_xlfn.XLOOKUP(CI_s[[#This Row],[Commitment item]],AM:AM,AK:AK)","v":{"$error":"#N/A"}},{"$f":"_xlfn.XLOOKUP(CI_s[[#This Row],[Commitment item]],AM:AM,AN:AN)","v":{"$error":"#N/A"}},null,null,null,null,520100,520010]
[null,null,null,null,null,null,null,null,null,null,531047,"Bond Defeasance Exp","Bond Defeasance Expense","2015-07-09",{"$f":"_xlfn.XLOOKUP(CI_s[[#This Row],[Commitment item]],AM:AM,AK:AK)","v":{"$error":"#N/A"}},{"$f":"_xlfn.XLOOKUP(CI_s[[#This Row],[Commitment item]],AM:AM,AN:AN)","v":{"$error":"#N/A"}},null,null,null,null,520110,520010]
[null,null,null,null,null,null,null,null,null,null,531048,"Amtz BIC","Amortization Bond Issuance Cost","2015-07-09",{"$f":"_xlfn.XLOOKUP(CI_s[[#This Row],[Commitment item]],AM:AM,AK:AK)","v":{"$error":"#N/A"}},{"$f":"_xlfn.XLOOKUP(CI_s[[#This Row],[Commitment item]],AM:AM,AN:AN)","v":{"$error":"#N/A"}},null,null,null,null,520120,520010]
[null,null,null,null,null,null,null,null,null,null,531049,"Amtz BIC-RD","Amortization Bond Issuance Cost-Road District","2015-07-09",{"$f":"_xlfn.XLOOKUP(CI_s[[#This Row],[Commitment item]],AM:AM,AK:AK)","v":{"$error":"#N/A"}},{"$f":"_xlfn.XLOOKUP(CI_s[[#This Row],[Commitment item]],AM:AM,AN:AN)","v":{"$error":"#N/A"}},null,null,null,null,520130,520010]
[null,null,null,null,null,null,null,null,null,null,531050,"GW-Bond Issuance Cos","GW-Bond Issuance Costs","2015-07-09",{"$f":"_xlfn.XLOOKUP(CI_s[[#This Row],[Commitment item]],AM:AM,AK:AK)","v":{"$error":"#N/A"}},{"$f":"_xlfn.XLOOKUP(CI_s[[#This Row],[Commitment item]],AM:AM,AN:AN)","v":{"$error":"#N/A"}},null,null,null,null,520140,520010]
[null,null,null,null,null,null,null,null,null,null,531059,"FFEO-CAB Interest","Fund Fin Exp Offset-CAB Interest Charges","2015-07-09",{"$f":"_xlfn.XLOOKUP(CI_s[[#This Row],[Commitment item]],AM:AM,AK:AK)","v":{"$error":"#N/A"}},{"$f":"_xlfn.XLOOKUP(CI_s[[#This Row],[Commitment item]],AM:AM,AN:AN)","v":{"$error":"#N/A"}},null,null,null,null,520150,520010]
[null,null,null,null,null,null,null,null,null,null,550010,"Administrative Fee","Administrative Fee","2021-05-24",{"$f":"_xlfn.XLOOKUP(CI_s[[#This Row],[Commitment item]],AM:AM,AK:AK)","v":{"$error":"#N/A"}},{"$f":"_xlfn.XLOOKUP(CI_s[[#This Row],[Commitment item]],AM:AM,AN:AN)","v":{"$error":"#N/A"}},null,null,null,null,520160,520010]
[null,null,null,null,null,null,null,null,null,null,550011,"Investment Expenses","Investment Expenses","2024-01-24",{"$f":"_xlfn.XLOOKUP(CI_s[[#This Row],[Commitment item]],AM:AM,AK:AK)","v":{"$error":"#N/A"}},{"$f":"_xlfn.XLOOKUP(CI_s[[#This Row],[Commitment item]],AM:AM,AN:AN)","v":{"$error":"#N/A"}},null,null,null,null,520170,520010]
[null,null,null,null,null,null,null,null,null,null,551010,"Jury Contributions","Jury Contributions","2021-05-24",{"$f":"_xlfn.XLOOKUP(CI_s[[#This Row],[Commitment item]],AM:AM,AK:AK)","v":{"$error":"#N/A"}},{"$f":"_xlfn.XLOOKUP(CI_s[[#This Row],[Commitment item]],AM:AM,AN:AN)","v":{"$error":"#N/A"}},null,null,null,null,520180,520010]
[null,null,null,null,null,null,null,null,null,null,551020,"CSF-ConCivilFee-EFS","CSF-Cons. Civil Fee - Statewide Elect. Filing Syst","2021-11-30",{"$f":"_xlfn.XLOOKUP(CI_s[[#This Row],[Commitment item]],AM:AM,AK:AK)","v":{"$error":"#N/A"}},{"$f":"_xlfn.XLOOKUP(CI_s[[#This Row],[Commitment item]],AM:AM,AN:AN)","v":{"$error":"#N/A"}},null,null,null,null,520190,520010]
[null,null,null,null,null,null,null,null,null,null,551021,"CSF-ConCivilFee-Indg","CSF-Con. Civil Fee - Basic Legal Services for Indg","2022-01-13",{"$f":"_xlfn.XLOOKUP(CI_s[[#This Row],[Commitment item]],AM:AM,AK:AK)","v":{"$error":"#N/A"}},{"$f":"_xlfn.XLOOKUP(CI_s[[#This Row],[Commitment item]],AM:AM,AN:AN)","v":{"$error":"#N/A"}},null,null,null,null,520200,520010]
[null,null,null,null,null,null,null,null,null,null,551022,"CSF-ConCivFee-JudTrn","CSF-Cons. Civil Fee- Jud. & Crt Persnl Training","2022-01-13",{"$f":"_xlfn.XLOOKUP(CI_s[[#This Row],[Commitment item]],AM:AM,AK:AK)","v":{"$error":"#N/A"}},{"$f":"_xlfn.XLOOKUP(CI_s[[#This Row],[Commitment item]],AM:AM,AN:AN)","v":{"$error":"#N/A"}},null,null,null,null,520210,520010]
[null,null,null,null,null,null,null,null,null,null,551070,"A/B Misd. Conv. Fee","A/B Misdemeanor Conv. Fee","2021-05-24",{"$f":"_xlfn.XLOOKUP(CI_s[[#This Row],[Commitment item]],AM:AM,AK:AK)","v":{"$error":"#N/A"}},{"$f":"_xlfn.XLOOKUP(CI_s[[#This Row],[Commitment item]],AM:AM,AN:AN)","v":{"$error":"#N/A"}},null,null,null,null,520220,520010]
[null,null,null,null,null,null,null,null,null,null,551080,"Appellate Jud Syst","Appellate Judicial System","2021-05-24",{"$f":"_xlfn.XLOOKUP(CI_s[[#This Row],[Commitment item]],AM:AM,AK:AK)","v":{"$error":"#N/A"}},{"$f":"_xlfn.XLOOKUP(CI_s[[#This Row],[Commitment item]],AM:AM,AN:AN)","v":{"$error":"#N/A"}},null,null,null,null,520501,520010]
[null,null,null,null,null,null,null,null,null,null,551090,"Birth Record Fee","Birth Record Fee","2021-05-24",{"$f":"_xlfn.XLOOKUP(CI_s[[#This Row],[Commitment item]],AM:AM,AK:AK)","v":{"$error":"#N/A"}},{"$f":"_xlfn.XLOOKUP(CI_s[[#This Row],[Commitment item]],AM:AM,AN:AN)","v":{"$error":"#N/A"}},null,null,null,null,520502,520010]
[null,null,null,null,null,null,null,null,null,null,551100,"ChildrensTrst Fd Fee","Childrens Trust Fund Fee","2021-05-24",{"$f":"_xlfn.XLOOKUP(CI_s[[#This Row],[Commitment item]],AM:AM,AK:AK)","v":{"$error":"#N/A"}},{"$f":"_xlfn.XLOOKUP(CI_s[[#This Row],[Commitment item]],AM:AM,AN:AN)","v":{"$error":"#N/A"}},null,null,null,null,520503,520010]
[null,null,null,null,null,null,null,null,null,null,551110,"Child. Pass.SftySeat","Child Passenger Safety Seat","2021-05-24",{"$f":"_xlfn.XLOOKUP(CI_s[[#This Row],[Commitment item]],AM:AM,AK:AK)","v":{"$error":"#N/A"}},{"$f":"_xlfn.XLOOKUP(CI_s[[#This Row],[Commitment item]],AM:AM,AN:AN)","v":{"$error":"#N/A"}},null,null,null,null,520504,520010]
[null,null,null,null,null,null,null,null,null,null,551120,"Civil Flng Fee-CClk","Civil Filing Fee-Co Clerk","2021-05-24",{"$f":"_xlfn.XLOOKUP(CI_s[[#This Row],[Commitment item]],AM:AM,AK:AK)","v":{"$error":"#N/A"}},{"$f":"_xlfn.XLOOKUP(CI_s[[#This Row],[Commitment item]],AM:AM,AN:AN)","v":{"$error":"#N/A"}},null,null,null,null,520505,520010]
[null,null,null,null,null,null,null,null,null,null,551130,"Correctional Mgt Fee","Correctional Management Fee","2021-05-24",{"$f":"_xlfn.XLOOKUP(CI_s[[#This Row],[Commitment item]],AM:AM,AK:AK)","v":{"$error":"#N/A"}},{"$f":"_xlfn.XLOOKUP(CI_s[[#This Row],[Commitment item]],AM:AM,AN:AN)","v":{"$error":"#N/A"}},null,null,null,null,520506,520010]
[null,null,null,null,null,null,null,null,null,null,551140,"CSPJCD 25 Cent Fee","CSPJCD 25 Cent Fee","2021-05-24",{"$f":"_xlfn.XLOOKUP(CI_s[[#This Row],[Commitment item]],AM:AM,AK:AK)","v":{"$error":"#N/A"}},{"$f":"_xlfn.XLOOKUP(CI_s[[#This Row],[Commitment item]],AM:AM,AN:AN)","v":{"$error":"#N/A"}},null,null,null,null,520507,520010]
[null,null,null,null,null,null,null,null,null,null,551150,"Court State Fees","Court State Fees","2021-05-24",{"$f":"_xlfn.XLOOKUP(CI_s[[#This Row],[Commitment item]],AM:AM,AK:AK)","v":{"$error":"#N/A"}},{"$f":"_xlfn.XLOOKUP(CI_s[[#This Row],[Commitment item]],AM:AM,AN:AN)","v":{"$error":"#N/A"}},null,null,null,null,520508,520010]
[null,null,null,null,null,null,null,null,null,null,551160,"Dist. Civ Family Law","District Civil Family Law","2021-05-24",{"$f":"_xlfn.XLOOKUP(CI_s[[#This Row],[Commitment item]],AM:AM,AK:AK)","v":{"$error":"#N/A"}},{"$f":"_xlfn.XLOOKUP(CI_s[[#This Row],[Commitment item]],AM:AM,AN:AN)","v":{"$error":"#N/A"}},null,null,null,null,520509,520010]
[null,null,null,null,null,null,null,null,null,null,551161,"CSF-DistCivFamSAPCRS","CSF-District Civil Family SAPCRS","2023-12-29",{"$f":"_xlfn.XLOOKUP(CI_s[[#This Row],[Commitment item]],AM:AM,AK:AK)","v":{"$error":"#N/A"}},{"$f":"_xlfn.XLOOKUP(CI_s[[#This Row],[Commitment item]],AM:AM,AN:AN)","v":{"$error":"#N/A"}},null,null,null,null,520510,520010]
[null,null,null,null,null,null,null,null,null,null,551170,"Dist Civ Non-Family","District Civil Non-Family","2021-05-24",{"$f":"_xlfn.XLOOKUP(CI_s[[#This Row],[Commitment item]],AM:AM,AK:AK)","v":{"$error":"#N/A"}},{"$f":"_xlfn.XLOOKUP(CI_s[[#This Row],[Commitment item]],AM:AM,AN:AN)","v":{"$error":"#N/A"}},null,null,null,null,520511,520010]
[null,null,null,null,null,null,null,null,null,null,551180,"DNATest-CSCD","DNATest-CSCD","2021-05-24",{"$f":"_xlfn.XLOOKUP(CI_s[[#This Row],[Commitment item]],AM:AM,AK:AK)","v":{"$error":"#N/A"}},{"$f":"_xlfn.XLOOKUP(CI_s[[#This Row],[Commitment item]],AM:AM,AN:AN)","v":{"$error":"#N/A"}},null,null,null,null,521010,520010]
[null,null,null,null,null,null,null,null,null,null,551190,"DNATest-CCk","DNATest-CCk","2021-05-24",{"$f":"_xlfn.XLOOKUP(CI_s[[#This Row],[Commitment item]],AM:AM,AK:AK)","v":{"$error":"#N/A"}},{"$f":"_xlfn.XLOOKUP(CI_s[[#This Row],[Commitment item]],AM:AM,AN:AN)","v":{"$error":"#N/A"}},null,null,null,null,521020,520010]
[null,null,null,null,null,null,null,null,null,null,551200,"DNATest-DCk","DNATest-DCk","2021-05-24",{"$f":"_xlfn.XLOOKUP(CI_s[[#This Row],[Commitment item]],AM:AM,AK:AK)","v":{"$error":"#N/A"}},{"$f":"_xlfn.XLOOKUP(CI_s[[#This Row],[Commitment item]],AM:AM,AN:AN)","v":{"$error":"#N/A"}},null,null,null,null,521030,520010]
[null,null,null,null,null,null,null,null,null,null,551230,"Family Trust Fee","Family Trust Fee","2021-05-24",{"$f":"_xlfn.XLOOKUP(CI_s[[#This Row],[Commitment item]],AM:AM,AK:AK)","v":{"$error":"#N/A"}},{"$f":"_xlfn.XLOOKUP(CI_s[[#This Row],[Commitment item]],AM:AM,AN:AN)","v":{"$error":"#N/A"}},null,null,null,null,521040,520010]
[null,null,null,null,null,null,null,null,null,null,551240,"Felony Convict Fee","Felony Conviction Fee","2021-05-24",{"$f":"_xlfn.XLOOKUP(CI_s[[#This Row],[Commitment item]],AM:AM,AK:AK)","v":{"$error":"#N/A"}},{"$f":"_xlfn.XLOOKUP(CI_s[[#This Row],[Commitment item]],AM:AM,AN:AN)","v":{"$error":"#N/A"}},null,null,null,null,521050,520010]
[null,null,null,null,null,null,null,null,null,null,551250,"Indigent Def Fee","Indigent Defense Fee","2021-05-24",{"$f":"_xlfn.XLOOKUP(CI_s[[#This Row],[Commitment item]],AM:AM,AK:AK)","v":{"$error":"#N/A"}},{"$f":"_xlfn.XLOOKUP(CI_s[[#This Row],[Commitment item]],AM:AM,AN:AN)","v":{"$error":"#N/A"}},null,null,null,null,521060,520010]
[null,null,null,null,null,null,null,null,null,null,551260,"Intox&Drug Conv ST40","Intoxic. & Drug Convict. ST40","2021-05-24",{"$f":"_xlfn.XLOOKUP(CI_s[[#This Row],[Commitment item]],AM:AM,AK:AK)","v":{"$error":"#N/A"}},{"$f":"_xlfn.XLOOKUP(CI_s[[#This Row],[Commitment item]],AM:AM,AN:AN)","v":{"$error":"#N/A"}},null,null,null,null,521070,520010]
[null,null,null,null,null,null,null,null,null,null,551270,"Jud. Civ Filing Fee","Judiciary Civil Filing Fee","2021-05-24",{"$f":"_xlfn.XLOOKUP(CI_s[[#This Row],[Commitment item]],AM:AM,AK:AK)","v":{"$error":"#N/A"}},{"$f":"_xlfn.XLOOKUP(CI_s[[#This Row],[Commitment item]],AM:AM,AN:AN)","v":{"$error":"#N/A"}},null,null,null,null,521080,520010]
[null,null,null,null,null,null,null,null,null,null,551280,"Jud. Cnvct Fee","Judiciary Conviction Fee","2021-05-24",{"$f":"_xlfn.XLOOKUP(CI_s[[#This Row],[Commitment item]],AM:AM,AK:AK)","v":{"$error":"#N/A"}},{"$f":"_xlfn.XLOOKUP(CI_s[[#This Row],[Commitment item]],AM:AM,AN:AN)","v":{"$error":"#N/A"}},null,null,null,null,521085,520010]
[null,null,null,null,null,null,null,null,null,null,551290,"Jury Srvc St. Costs","Jury Service State Costs","2021-05-24",{"$f":"_xlfn.XLOOKUP(CI_s[[#This Row],[Commitment item]],AM:AM,AK:AK)","v":{"$error":"#N/A"}},{"$f":"_xlfn.XLOOKUP(CI_s[[#This Row],[Commitment item]],AM:AM,AN:AN)","v":{"$error":"#N/A"}},null,null,null,null,521090,520010]
[null,null,null,null,null,null,null,null,null,null,551300,"DNATest-JVP","DNATest-JVP","2021-05-24",{"$f":"_xlfn.XLOOKUP(CI_s[[#This Row],[Commitment item]],AM:AM,AK:AK)","v":{"$error":"#N/A"}},{"$f":"_xlfn.XLOOKUP(CI_s[[#This Row],[Commitment item]],AM:AM,AN:AN)","v":{"$error":"#N/A"}},null,null,null,null,522010,520010]
[null,null,null,null,null,null,null,null,null,null,551305,"TruancyPrevDivFee","Truancy Prev. Diversion Fee","2021-05-24",{"$f":"_xlfn.XLOOKUP(CI_s[[#This Row],[Commitment item]],AM:AM,AK:AK)","v":{"$error":"#N/A"}},{"$f":"_xlfn.XLOOKUP(CI_s[[#This Row],[Commitment item]],AM:AM,AN:AN)","v":{"$error":"#N/A"}},null,null,null,null,522020,520010]
[null,null,null,null,null,null,null,null,null,null,551310,"Motor Weight Viol.","Motor Weight Violation","2021-05-24",{"$f":"_xlfn.XLOOKUP(CI_s[[#This Row],[Commitment item]],AM:AM,AK:AK)","v":{"$error":"#N/A"}},{"$f":"_xlfn.XLOOKUP(CI_s[[#This Row],[Commitment item]],AM:AM,AN:AN)","v":{"$error":"#N/A"}},null,null,null,null,522030,520010]
[null,null,null,null,null,null,null,null,null,null,551320,"Non-Discl. State Fee","Non-Disclosure State Fee","2021-05-24",{"$f":"_xlfn.XLOOKUP(CI_s[[#This Row],[Commitment item]],AM:AM,AK:AK)","v":{"$error":"#N/A"}},{"$f":"_xlfn.XLOOKUP(CI_s[[#This Row],[Commitment item]],AM:AM,AN:AN)","v":{"$error":"#N/A"}},null,null,null,null,522040,520010]
[null,null,null,null,null,null,null,null,null,null,551330,"Non-Jail Conv. Fee","Non-Jail Conviction Fee","2021-05-24",{"$f":"_xlfn.XLOOKUP(CI_s[[#This Row],[Commitment item]],AM:AM,AK:AK)","v":{"$error":"#N/A"}},{"$f":"_xlfn.XLOOKUP(CI_s[[#This Row],[Commitment item]],AM:AM,AN:AN)","v":{"$error":"#N/A"}},null,null,null,null,522050,520010]
[null,null,null,null,null,null,null,null,null,null,551335,"Jud. & Crt Trng Fee","Judicial & Court Training Fee","2021-05-24",{"$f":"_xlfn.XLOOKUP(CI_s[[#This Row],[Commitment item]],AM:AM,AK:AK)","v":{"$error":"#N/A"}},{"$f":"_xlfn.XLOOKUP(CI_s[[#This Row],[Commitment item]],AM:AM,AN:AN)","v":{"$error":"#N/A"}},null,null,null,null,522060,520010]
[null,null,null,null,null,null,null,null,null,null,551340,"Probate Filing Fee","Probate Filing Fee","2021-05-24",{"$f":"_xlfn.XLOOKUP(CI_s[[#This Row],[Commitment item]],AM:AM,AK:AK)","v":{"$error":"#N/A"}},{"$f":"_xlfn.XLOOKUP(CI_s[[#This Row],[Commitment item]],AM:AM,AN:AN)","v":{"$error":"#N/A"}},null,null,null,null,522070,520010]
[null,null,null,null,null,null,null,null,null,null,551350,"St.CivJusticeDataFee","State Civil Justice Data Fee","2021-05-24",{"$f":"_xlfn.XLOOKUP(CI_s[[#This Row],[Commitment item]],AM:AM,AK:AK)","v":{"$error":"#N/A"}},{"$f":"_xlfn.XLOOKUP(CI_s[[#This Row],[Commitment item]],AM:AM,AN:AN)","v":{"$error":"#N/A"}},null,null,null,null,522080,520010]
[null,null,null,null,null,null,null,null,null,null,551360,"St Tfc Fine","St Tfc Fine","2021-05-24",{"$f":"_xlfn.XLOOKUP(CI_s[[#This Row],[Commitment item]],AM:AM,AK:AK)","v":{"$error":"#N/A"}},{"$f":"_xlfn.XLOOKUP(CI_s[[#This Row],[Commitment item]],AM:AM,AN:AN)","v":{"$error":"#N/A"}},null,null,null,null,522090,520010]
[null,null,null,null,null,null,null,null,null,null,551361,"St Traff Fine $50/4%","State Traffic Fine $50 / 4%","2021-05-24",{"$f":"_xlfn.XLOOKUP(CI_s[[#This Row],[Commitment item]],AM:AM,AK:AK)","v":{"$error":"#N/A"}},{"$f":"_xlfn.XLOOKUP(CI_s[[#This Row],[Commitment item]],AM:AM,AN:AN)","v":{"$error":"#N/A"}},null,null,null,null,522100,520010]
[null,null,null,null,null,null,null,null,null,null,551362,"State DWI/DUI Fine","State DWI / DUI Fine","2021-05-24",{"$f":"_xlfn.XLOOKUP(CI_s[[#This Row],[Commitment item]],AM:AM,AK:AK)","v":{"$error":"#N/A"}},{"$f":"_xlfn.XLOOKUP(CI_s[[#This Row],[Commitment item]],AM:AM,AN:AN)","v":{"$error":"#N/A"}},null,null,null,null,522997,520010]
[null,null,null,null,null,null,null,null,null,null,551363,"CSF-MisdDrugOff$100","CSF-State Misdemeanor Drug Offense Fine $100","2023-02-16",{"$f":"_xlfn.XLOOKUP(CI_s[[#This Row],[Commitment item]],AM:AM,AK:AK)","v":{"$error":"#N/A"}},{"$f":"_xlfn.XLOOKUP(CI_s[[#This Row],[Commitment item]],AM:AM,AN:AN)","v":{"$error":"#N/A"}},null,null,null,null,524997,524997]
[null,null,null,null,null,null,null,null,null,null,551370,"Surety Posting Fee","Surety Posting Fee","2021-05-24",{"$f":"_xlfn.XLOOKUP(CI_s[[#This Row],[Commitment item]],AM:AM,AK:AK)","v":{"$error":"#N/A"}},{"$f":"_xlfn.XLOOKUP(CI_s[[#This Row],[Commitment item]],AM:AM,AN:AN)","v":{"$error":"#N/A"}},null,null,null,null,524998,520010]
[null,null,null,null,null,null,null,null,null,null,551380,"AMS Trauma Care","AMS Trauma Care","2021-05-24",{"$f":"_xlfn.XLOOKUP(CI_s[[#This Row],[Commitment item]],AM:AM,AK:AK)","v":{"$error":"#N/A"}},{"$f":"_xlfn.XLOOKUP(CI_s[[#This Row],[Commitment item]],AM:AM,AN:AN)","v":{"$error":"#N/A"}},null,null,null,null,524999,520010]
[null,null,null,null,null,null,null,null,null,null,551385,"Electr. Filing Fees","Electronic Filing Fees","2021-05-24",{"$f":"_xlfn.XLOOKUP(CI_s[[#This Row],[Commitment item]],AM:AM,AK:AK)","v":{"$error":"#N/A"}},{"$f":"_xlfn.XLOOKUP(CI_s[[#This Row],[Commitment item]],AM:AM,AN:AN)","v":{"$error":"#N/A"}}]
[null,null,null,null,null,null,null,null,null,null,551386,"CrimElectrFlngFees","Criminal Electronic Filing Fees","2021-05-24",{"$f":"_xlfn.XLOOKUP(CI_s[[#This Row],[Commitment item]],AM:AM,AK:AK)","v":{"$error":"#N/A"}},{"$f":"_xlfn.XLOOKUP(CI_s[[#This Row],[Commitment item]],AM:AM,AN:AN)","v":{"$error":"#N/A"}}]
[null,null,null,null,null,null,null,null,null,null,551399,"State FFCC Accrual","State Fines, Fees & Court Costs - Accrual","2021-10-18",{"$f":"_xlfn.XLOOKUP(CI_s[[#This Row],[Commitment item]],AM:AM,AK:AK)","v":{"$error":"#N/A"}},{"$f":"_xlfn.XLOOKUP(CI_s[[#This Row],[Commitment item]],AM:AM,AN:AN)","v":{"$error":"#N/A"}}]
[null,null,null,null,null,null,null,null,null,null,551400,"Schl Dist - Taxes","School Districts Tax Disbursements","2021-09-06",{"$f":"_xlfn.XLOOKUP(CI_s[[#This Row],[Commitment item]],AM:AM,AK:AK)","v":{"$error":"#N/A"}},{"$f":"_xlfn.XLOOKUP(CI_s[[#This Row],[Commitment item]],AM:AM,AN:AN)","v":{"$error":"#N/A"}}]
[null,null,null,null,null,null,null,null,null,null,551401,"Escheat to State","Escheat to State","2021-09-06",{"$f":"_xlfn.XLOOKUP(CI_s[[#This Row],[Commitment item]],AM:AM,AK:AK)","v":{"$error":"#N/A"}},{"$f":"_xlfn.XLOOKUP(CI_s[[#This Row],[Commitment item]],AM:AM,AN:AN)","v":{"$error":"#N/A"}}]
[null,null,null,null,null,null,null,null,null,null,551402,"Escheat to TCGF","Escheat to Travis County General Fund","2021-09-06",{"$f":"_xlfn.XLOOKUP(CI_s[[#This Row],[Commitment item]],AM:AM,AK:AK)","v":{"$error":"#N/A"}},{"$f":"_xlfn.XLOOKUP(CI_s[[#This Row],[Commitment item]],AM:AM,AN:AN)","v":{"$error":"#N/A"}}]
[null,null,null,null,null,null,null,null,null,null,551403,"TC Reimb. - Med","TC Reimbursment for Medical","2021-09-06",{"$f":"_xlfn.XLOOKUP(CI_s[[#This Row],[Commitment item]],AM:AM,AK:AK)","v":{"$error":"#N/A"}},{"$f":"_xlfn.XLOOKUP(CI_s[[#This Row],[Commitment item]],AM:AM,AN:AN)","v":{"$error":"#N/A"}}]
[null,null,null,null,null,null,null,null,null,null,551404,"TC Reimb. - Prop.","TC Reimbursment for Property Damages","2021-09-06",{"$f":"_xlfn.XLOOKUP(CI_s[[#This Row],[Commitment item]],AM:AM,AK:AK)","v":{"$error":"#N/A"}},{"$f":"_xlfn.XLOOKUP(CI_s[[#This Row],[Commitment item]],AM:AM,AN:AN)","v":{"$error":"#N/A"}}]
[null,null,null,null,null,null,null,null,null,null,551405,"US Dist.Court","Payments to US District Court","2021-09-06",{"$f":"_xlfn.XLOOKUP(CI_s[[#This Row],[Commitment item]],AM:AM,AK:AK)","v":{"$error":"#N/A"}},{"$f":"_xlfn.XLOOKUP(CI_s[[#This Row],[Commitment item]],AM:AM,AN:AN)","v":{"$error":"#N/A"}}]
[null,null,null,null,null,null,null,null,null,null,551406,"Escheat to USTrsry","Escheat to US Treasury","2021-12-03",{"$f":"_xlfn.XLOOKUP(CI_s[[#This Row],[Commitment item]],AM:AM,AK:AK)","v":{"$error":"#N/A"}},{"$f":"_xlfn.XLOOKUP(CI_s[[#This Row],[Commitment item]],AM:AM,AN:AN)","v":{"$error":"#N/A"}}]
[null,null,null,null,null,null,null,null,null,null,551410,"Fines,Fees,CC-Other","Fines, Fees, Court Costs - Other","2021-10-14",{"$f":"_xlfn.XLOOKUP(CI_s[[#This Row],[Commitment item]],AM:AM,AK:AK)","v":{"$error":"#N/A"}},{"$f":"_xlfn.XLOOKUP(CI_s[[#This Row],[Commitment item]],AM:AM,AN:AN)","v":{"$error":"#N/A"}}]
[null,null,null,null,null,null,null,null,null,null,551411,"Restitution-GovEnty","Restitution - Governmental Entities","2021-11-09",{"$f":"_xlfn.XLOOKUP(CI_s[[#This Row],[Commitment item]],AM:AM,AK:AK)","v":{"$error":"#N/A"}},{"$f":"_xlfn.XLOOKUP(CI_s[[#This Row],[Commitment item]],AM:AM,AN:AN)","v":{"$error":"#N/A"}}]
[null,null,null,null,null,null,null,null,null,null,551412,"PTDistOtherGov","Property Tax Distrib - Other Gov. Entity","2021-09-30",{"$f":"_xlfn.XLOOKUP(CI_s[[#This Row],[Commitment item]],AM:AM,AK:AK)","v":{"$error":"#N/A"}},{"$f":"_xlfn.XLOOKUP(CI_s[[#This Row],[Commitment item]],AM:AM,AN:AN)","v":{"$error":"#N/A"}}]
[null,null,null,null,null,null,null,null,null,null,551413,"PTDistTravisCounty","Property Tax Distrib - Travis County","2021-09-30",{"$f":"_xlfn.XLOOKUP(CI_s[[#This Row],[Commitment item]],AM:AM,AK:AK)","v":{"$error":"#N/A"}},{"$f":"_xlfn.XLOOKUP(CI_s[[#This Row],[Commitment item]],AM:AM,AN:AN)","v":{"$error":"#N/A"}}]
[null,null,null,null,null,null,null,null,null,null,551414,"DistOtherFidFund","Distributions to other fiduciary funds","2021-09-30",{"$f":"_xlfn.XLOOKUP(CI_s[[#This Row],[Commitment item]],AM:AM,AK:AK)","v":{"$error":"#N/A"}},{"$f":"_xlfn.XLOOKUP(CI_s[[#This Row],[Commitment item]],AM:AM,AN:AN)","v":{"$error":"#N/A"}}]
[null,null,null,null,null,null,null,null,null,null,551415,"ForfeitDistrib-Gov","Forfeiture Distributions to Governments","2021-10-11",{"$f":"_xlfn.XLOOKUP(CI_s[[#This Row],[Commitment item]],AM:AM,AK:AK)","v":{"$error":"#N/A"}},{"$f":"_xlfn.XLOOKUP(CI_s[[#This Row],[Commitment item]],AM:AM,AN:AN)","v":{"$error":"#N/A"}}]
[null,null,null,null,null,null,null,null,null,null,551416,"UnclaimedJuvRest","Unclaimed Juvenile Restitution","2021-10-11",{"$f":"_xlfn.XLOOKUP(CI_s[[#This Row],[Commitment item]],AM:AM,AK:AK)","v":{"$error":"#N/A"}},{"$f":"_xlfn.XLOOKUP(CI_s[[#This Row],[Commitment item]],AM:AM,AN:AN)","v":{"$error":"#N/A"}}]
[null,null,null,null,null,null,null,null,null,null,551417,"FIT Witholding","FIT Witholding","2021-10-14",{"$f":"_xlfn.XLOOKUP(CI_s[[#This Row],[Commitment item]],AM:AM,AK:AK)","v":{"$error":"#N/A"}},{"$f":"_xlfn.XLOOKUP(CI_s[[#This Row],[Commitment item]],AM:AM,AN:AN)","v":{"$error":"#N/A"}}]
[null,null,null,null,null,null,null,null,null,null,552000,"Surety Dep Refunds","Surety Deposit Refunds","2021-05-24",{"$f":"_xlfn.XLOOKUP(CI_s[[#This Row],[Commitment item]],AM:AM,AK:AK)","v":{"$error":"#N/A"}},{"$f":"_xlfn.XLOOKUP(CI_s[[#This Row],[Commitment item]],AM:AM,AN:AN)","v":{"$error":"#N/A"}}]
[null,null,null,null,null,null,null,null,null,null,552001,"Cash Bnd Dep Refunds","Cash Bond Deposit Refunds","2021-05-24",{"$f":"_xlfn.XLOOKUP(CI_s[[#This Row],[Commitment item]],AM:AM,AK:AK)","v":{"$error":"#N/A"}},{"$f":"_xlfn.XLOOKUP(CI_s[[#This Row],[Commitment item]],AM:AM,AN:AN)","v":{"$error":"#N/A"}}]
[null,null,null,null,null,null,null,null,null,null,552002,"Bond Refundings","Bond Refundings","2021-09-06",{"$f":"_xlfn.XLOOKUP(CI_s[[#This Row],[Commitment item]],AM:AM,AK:AK)","v":{"$error":"#N/A"}},{"$f":"_xlfn.XLOOKUP(CI_s[[#This Row],[Commitment item]],AM:AM,AN:AN)","v":{"$error":"#N/A"}}]
[null,null,null,null,null,null,null,null,null,null,552003,"Other Refunds","Other Refunds","2021-09-06",{"$f":"_xlfn.XLOOKUP(CI_s[[#This Row],[Commitment item]],AM:AM,AK:AK)","v":{"$error":"#N/A"}},{"$f":"_xlfn.XLOOKUP(CI_s[[#This Row],[Commitment item]],AM:AM,AN:AN)","v":{"$error":"#N/A"}}]
[null,null,null,null,null,null,null,null,null,null,553000,"PID Disbursements","PID Disbursements","2021-05-24",{"$f":"_xlfn.XLOOKUP(CI_s[[#This Row],[Commitment item]],AM:AM,AK:AK)","v":{"$error":"#N/A"}},{"$f":"_xlfn.XLOOKUP(CI_s[[#This Row],[Commitment item]],AM:AM,AN:AN)","v":{"$error":"#N/A"}}]
[null,null,null,null,null,null,null,null,null,null,553001,"Schl Dist Dsbrsmnts","School Districts Disburements","2021-05-24",{"$f":"_xlfn.XLOOKUP(CI_s[[#This Row],[Commitment item]],AM:AM,AK:AK)","v":{"$error":"#N/A"}},{"$f":"_xlfn.XLOOKUP(CI_s[[#This Row],[Commitment item]],AM:AM,AN:AN)","v":{"$error":"#N/A"}}]
[null,null,null,null,null,null,null,null,null,null,553002,"Commissary","Commissary Purchases - Keefe","2021-09-06",{"$f":"_xlfn.XLOOKUP(CI_s[[#This Row],[Commitment item]],AM:AM,AK:AK)","v":{"$error":"#N/A"}},{"$f":"_xlfn.XLOOKUP(CI_s[[#This Row],[Commitment item]],AM:AM,AN:AN)","v":{"$error":"#N/A"}}]
[null,null,null,null,null,null,null,null,null,null,553003,"Western Union","Payments to Western Union","2021-09-06",{"$f":"_xlfn.XLOOKUP(CI_s[[#This Row],[Commitment item]],AM:AM,AK:AK)","v":{"$error":"#N/A"}},{"$f":"_xlfn.XLOOKUP(CI_s[[#This Row],[Commitment item]],AM:AM,AN:AN)","v":{"$error":"#N/A"}}]
[null,null,null,null,null,null,null,null,null,null,553004,"Other 3rd Party Dist","Other 3rd Party Distributions","2021-09-28",{"$f":"_xlfn.XLOOKUP(CI_s[[#This Row],[Commitment item]],AM:AM,AK:AK)","v":{"$error":"#N/A"}},{"$f":"_xlfn.XLOOKUP(CI_s[[#This Row],[Commitment item]],AM:AM,AN:AN)","v":{"$error":"#N/A"}}]
[null,null,null,null,null,null,null,null,null,null,553005,"Restitution-NonGov","Restitution - Non-Governmental Entities","2021-09-28",{"$f":"_xlfn.XLOOKUP(CI_s[[#This Row],[Commitment item]],AM:AM,AK:AK)","v":{"$error":"#N/A"}},{"$f":"_xlfn.XLOOKUP(CI_s[[#This Row],[Commitment item]],AM:AM,AN:AN)","v":{"$error":"#N/A"}}]
[null,null,null,null,null,null,null,null,null,null,553006,"RE USE","RE USE","2021-09-28",{"$f":"_xlfn.XLOOKUP(CI_s[[#This Row],[Commitment item]],AM:AM,AK:AK)","v":{"$error":"#N/A"}},{"$f":"_xlfn.XLOOKUP(CI_s[[#This Row],[Commitment item]],AM:AM,AN:AN)","v":{"$error":"#N/A"}}]
[null,null,null,null,null,null,null,null,null,null,580010,"Resrv-Allocated","Reserves-Allocated","2012-05-14",{"$f":"_xlfn.XLOOKUP(CI_s[[#This Row],[Commitment item]],AM:AM,AK:AK)","v":{"$error":"#N/A"}},{"$f":"_xlfn.XLOOKUP(CI_s[[#This Row],[Commitment item]],AM:AM,AN:AN)","v":{"$error":"#N/A"}}]
[null,null,null,null,null,null,null,null,null,null,580015,"Resrv-Unallocated","Reserves-Unallocated","2012-05-14",{"$f":"_xlfn.XLOOKUP(CI_s[[#This Row],[Commitment item]],AM:AM,AK:AK)","v":{"$error":"#N/A"}},{"$f":"_xlfn.XLOOKUP(CI_s[[#This Row],[Commitment item]],AM:AM,AN:AN)","v":{"$error":"#N/A"}}]
[null,null,null,null,null,null,null,null,null,null,580020,"Resrv-Anti-Poverty","Reserves-Anti-Poverty","2012-05-14",{"$f":"_xlfn.XLOOKUP(CI_s[[#This Row],[Commitment item]],AM:AM,AK:AK)","v":{"$error":"#N/A"}},{"$f":"_xlfn.XLOOKUP(CI_s[[#This Row],[Commitment item]],AM:AM,AN:AN)","v":{"$error":"#N/A"}}]
[null,null,null,null,null,null,null,null,null,null,580030,"Resrv-BEFIT Auditor","Reserves-BEFIT Auditor","2012-05-14",{"$f":"_xlfn.XLOOKUP(CI_s[[#This Row],[Commitment item]],AM:AM,AK:AK)","v":{"$error":"#N/A"}},{"$f":"_xlfn.XLOOKUP(CI_s[[#This Row],[Commitment item]],AM:AM,AN:AN)","v":{"$error":"#N/A"}}]
[null,null,null,null,null,null,null,null,null,null,580040,"Resrv-BEFIT ITS","Reserves-BEFIT ITS","2012-05-14",{"$f":"_xlfn.XLOOKUP(CI_s[[#This Row],[Commitment item]],AM:AM,AK:AK)","v":{"$error":"#N/A"}},{"$f":"_xlfn.XLOOKUP(CI_s[[#This Row],[Commitment item]],AM:AM,AN:AN)","v":{"$error":"#N/A"}}]
[null,null,null,null,null,null,null,null,null,null,580050,"Resrv-BEFIT Pur","Reserves-BEFIT Purchasing","2012-05-14",{"$f":"_xlfn.XLOOKUP(CI_s[[#This Row],[Commitment item]],AM:AM,AK:AK)","v":{"$error":"#N/A"}},{"$f":"_xlfn.XLOOKUP(CI_s[[#This Row],[Commitment item]],AM:AM,AN:AN)","v":{"$error":"#N/A"}}]
[null,null,null,null,null,null,null,null,null,null,580060,"Resrv-CapOut","Reserves-Capital Outlay","2012-05-14",{"$f":"_xlfn.XLOOKUP(CI_s[[#This Row],[Commitment item]],AM:AM,AK:AK)","v":{"$error":"#N/A"}},{"$f":"_xlfn.XLOOKUP(CI_s[[#This Row],[Commitment item]],AM:AM,AN:AN)","v":{"$error":"#N/A"}}]
[null,null,null,null,null,null,null,null,null,null,580070,"Resrv-CAR Allocated","Reserves-CAR Allocated","2012-05-14",{"$f":"_xlfn.XLOOKUP(CI_s[[#This Row],[Commitment item]],AM:AM,AK:AK)","v":{"$error":"#N/A"}},{"$f":"_xlfn.XLOOKUP(CI_s[[#This Row],[Commitment item]],AM:AM,AN:AN)","v":{"$error":"#N/A"}}]
[null,null,null,null,null,null,null,null,null,null,580080,"Resrv-Ctastrphc Loss","Reserves-Catastrophic Loss","2012-05-14",{"$f":"_xlfn.XLOOKUP(CI_s[[#This Row],[Commitment item]],AM:AM,AK:AK)","v":{"$error":"#N/A"}},{"$f":"_xlfn.XLOOKUP(CI_s[[#This Row],[Commitment item]],AM:AM,AN:AN)","v":{"$error":"#N/A"}}]
[null,null,null,null,null,null,null,null,null,null,580090,"Resrv-CDBG","Reserves-CDBG","2012-05-14",{"$f":"_xlfn.XLOOKUP(CI_s[[#This Row],[Commitment item]],AM:AM,AK:AK)","v":{"$error":"#N/A"}},{"$f":"_xlfn.XLOOKUP(CI_s[[#This Row],[Commitment item]],AM:AM,AN:AN)","v":{"$error":"#N/A"}}]
[null,null,null,null,null,null,null,null,null,null,580100,"Resrv-Comp","Reserves-Compensation","2012-05-14",{"$f":"_xlfn.XLOOKUP(CI_s[[#This Row],[Commitment item]],AM:AM,AK:AK)","v":{"$error":"#N/A"}},{"$f":"_xlfn.XLOOKUP(CI_s[[#This Row],[Commitment item]],AM:AM,AN:AN)","v":{"$error":"#N/A"}}]
[null,null,null,null,null,null,null,null,null,null,580110,"Resrv-CSCD Cur Year","Reserves-CSCD Current Year","2012-05-14",{"$f":"_xlfn.XLOOKUP(CI_s[[#This Row],[Commitment item]],AM:AM,AK:AK)","v":{"$error":"#N/A"}},{"$f":"_xlfn.XLOOKUP(CI_s[[#This Row],[Commitment item]],AM:AM,AN:AN)","v":{"$error":"#N/A"}}]
[null,null,null,null,null,null,null,null,null,null,580120,"Resrv-Emergency","Reserves-Emergency","2012-05-14",{"$f":"_xlfn.XLOOKUP(CI_s[[#This Row],[Commitment item]],AM:AM,AK:AK)","v":{"$error":"#N/A"}},{"$f":"_xlfn.XLOOKUP(CI_s[[#This Row],[Commitment item]],AM:AM,AN:AN)","v":{"$error":"#N/A"}}]
[null,null,null,null,null,null,null,null,null,null,580130,"Resrv-Fuel&Util","Reserves-Fuel & Utility","2012-05-14",{"$f":"_xlfn.XLOOKUP(CI_s[[#This Row],[Commitment item]],AM:AM,AK:AK)","v":{"$error":"#N/A"}},{"$f":"_xlfn.XLOOKUP(CI_s[[#This Row],[Commitment item]],AM:AM,AN:AN)","v":{"$error":"#N/A"}}]
[null,null,null,null,null,null,null,null,null,null,580140,"Resrv-Grant Rel","Reserves-Grant Related","2012-05-14",{"$f":"_xlfn.XLOOKUP(CI_s[[#This Row],[Commitment item]],AM:AM,AK:AK)","v":{"$error":"#N/A"}},{"$f":"_xlfn.XLOOKUP(CI_s[[#This Row],[Commitment item]],AM:AM,AN:AN)","v":{"$error":"#N/A"}}]
[null,null,null,null,null,null,null,null,null,null,580150,"Resrv-Hlh & Human Sv","Reserves-Health & Human Services","2012-05-14",{"$f":"_xlfn.XLOOKUP(CI_s[[#This Row],[Commitment item]],AM:AM,AK:AK)","v":{"$error":"#N/A"}},{"$f":"_xlfn.XLOOKUP(CI_s[[#This Row],[Commitment item]],AM:AM,AN:AN)","v":{"$error":"#N/A"}}]
[null,null,null,null,null,null,null,null,null,null,580160,"Resrv-IJS/FACTS","Reserves-IJS/FACTS","2012-05-14",{"$f":"_xlfn.XLOOKUP(CI_s[[#This Row],[Commitment item]],AM:AM,AK:AK)","v":{"$error":"#N/A"}},{"$f":"_xlfn.XLOOKUP(CI_s[[#This Row],[Commitment item]],AM:AM,AN:AN)","v":{"$error":"#N/A"}}]
[null,null,null,null,null,null,null,null,null,null,580170,"Resrv-JlOvrcrdInmRel","Reserves-Inmate Related","2012-05-14",{"$f":"_xlfn.XLOOKUP(CI_s[[#This Row],[Commitment item]],AM:AM,AK:AK)","v":{"$error":"#N/A"}},{"$f":"_xlfn.XLOOKUP(CI_s[[#This Row],[Commitment item]],AM:AM,AN:AN)","v":{"$error":"#N/A"}}]
[null,null,null,null,null,null,null,null,null,null,580180,"Resrv-Jail Pharmacy","Reserves-Jail Pharmacy","2012-05-14",{"$f":"_xlfn.XLOOKUP(CI_s[[#This Row],[Commitment item]],AM:AM,AK:AK)","v":{"$error":"#N/A"}},{"$f":"_xlfn.XLOOKUP(CI_s[[#This Row],[Commitment item]],AM:AM,AN:AN)","v":{"$error":"#N/A"}}]
[null,null,null,null,null,null,null,null,null,null,580190,"Resrv-MtlHlhMobTrtmt","Reserves-Mental Health Mobile Treatment","2012-05-14",{"$f":"_xlfn.XLOOKUP(CI_s[[#This Row],[Commitment item]],AM:AM,AK:AK)","v":{"$error":"#N/A"}},{"$f":"_xlfn.XLOOKUP(CI_s[[#This Row],[Commitment item]],AM:AM,AN:AN)","v":{"$error":"#N/A"}}]
[null,null,null,null,null,null,null,null,null,null,580200,"Resrv-Oth FY Alloc","Reserves-Other Fiscal Year Allocation","2012-05-14",{"$f":"_xlfn.XLOOKUP(CI_s[[#This Row],[Commitment item]],AM:AM,AK:AK)","v":{"$error":"#N/A"}},{"$f":"_xlfn.XLOOKUP(CI_s[[#This Row],[Commitment item]],AM:AM,AN:AN)","v":{"$error":"#N/A"}}]
[null,null,null,null,null,null,null,null,null,null,580205,"Resrv-Intlcl Agrmnts","Reserves-Interlocal Agreements","2017-11-09",{"$f":"_xlfn.XLOOKUP(CI_s[[#This Row],[Commitment item]],AM:AM,AK:AK)","v":{"$error":"#N/A"}},{"$f":"_xlfn.XLOOKUP(CI_s[[#This Row],[Commitment item]],AM:AM,AN:AN)","v":{"$error":"#N/A"}}]
[null,null,null,null,null,null,null,null,null,null,580210,"Resrv-Planning","Reserves-Planning","2012-05-14",{"$f":"_xlfn.XLOOKUP(CI_s[[#This Row],[Commitment item]],AM:AM,AK:AK)","v":{"$error":"#N/A"}},{"$f":"_xlfn.XLOOKUP(CI_s[[#This Row],[Commitment item]],AM:AM,AN:AN)","v":{"$error":"#N/A"}}]
[null,null,null,null,null,null,null,null,null,null,580220,"Resrv-Psych Sv Shf","Reserves-Psychiatric Services Sheriff","2012-05-14",{"$f":"_xlfn.XLOOKUP(CI_s[[#This Row],[Commitment item]],AM:AM,AK:AK)","v":{"$error":"#N/A"}},{"$f":"_xlfn.XLOOKUP(CI_s[[#This Row],[Commitment item]],AM:AM,AN:AN)","v":{"$error":"#N/A"}}]
[null,null,null,null,null,null,null,null,null,null,580230,"Resrv-Pur","Reserves-Purchasing","2012-05-14",{"$f":"_xlfn.XLOOKUP(CI_s[[#This Row],[Commitment item]],AM:AM,AK:AK)","v":{"$error":"#N/A"}},{"$f":"_xlfn.XLOOKUP(CI_s[[#This Row],[Commitment item]],AM:AM,AN:AN)","v":{"$error":"#N/A"}}]
[null,null,null,null,null,null,null,null,null,null,580240,"Resrv-SmrtBldgFclMnt","Reserves-Smart Building Facility Maintenance","2012-05-14",{"$f":"_xlfn.XLOOKUP(CI_s[[#This Row],[Commitment item]],AM:AM,AK:AK)","v":{"$error":"#N/A"}},{"$f":"_xlfn.XLOOKUP(CI_s[[#This Row],[Commitment item]],AM:AM,AN:AN)","v":{"$error":"#N/A"}}]
[null,null,null,null,null,null,null,null,null,null,580260,"Resrv-Juv Justice","Reserves-Juvenile Justice TYC","2012-05-14",{"$f":"_xlfn.XLOOKUP(CI_s[[#This Row],[Commitment item]],AM:AM,AK:AK)","v":{"$error":"#N/A"}},{"$f":"_xlfn.XLOOKUP(CI_s[[#This Row],[Commitment item]],AM:AM,AN:AN)","v":{"$error":"#N/A"}}]
[null,null,null,null,null,null,null,null,null,null,580270,"Resrv-GASB34","Reserves-GASB34 Reserve","2012-05-14",{"$f":"_xlfn.XLOOKUP(CI_s[[#This Row],[Commitment item]],AM:AM,AK:AK)","v":{"$error":"#N/A"}},{"$f":"_xlfn.XLOOKUP(CI_s[[#This Row],[Commitment item]],AM:AM,AN:AN)","v":{"$error":"#N/A"}}]
[null,null,null,null,null,null,null,null,null,null,580280,"Resrv-BEFIT HRMD","Reserves-BEFIT HRMD","2012-05-14",{"$f":"_xlfn.XLOOKUP(CI_s[[#This Row],[Commitment item]],AM:AM,AK:AK)","v":{"$error":"#N/A"}},{"$f":"_xlfn.XLOOKUP(CI_s[[#This Row],[Commitment item]],AM:AM,AN:AN)","v":{"$error":"#N/A"}}]
[null,null,null,null,null,null,null,null,null,null,580290,"Resrv-Srs Disabled","Reserves-Seniors and Disabled","2012-05-14",{"$f":"_xlfn.XLOOKUP(CI_s[[#This Row],[Commitment item]],AM:AM,AK:AK)","v":{"$error":"#N/A"}},{"$f":"_xlfn.XLOOKUP(CI_s[[#This Row],[Commitment item]],AM:AM,AN:AN)","v":{"$error":"#N/A"}}]
[null,null,null,null,null,null,null,null,null,null,580300,"Resrv-Transition","Reserves-Transition","2012-05-14",{"$f":"_xlfn.XLOOKUP(CI_s[[#This Row],[Commitment item]],AM:AM,AK:AK)","v":{"$error":"#N/A"}},{"$f":"_xlfn.XLOOKUP(CI_s[[#This Row],[Commitment item]],AM:AM,AN:AN)","v":{"$error":"#N/A"}}]
[null,null,null,null,null,null,null,null,null,null,580310,"Resrv-State Cuts","Reserves-State Cuts","2012-05-14",{"$f":"_xlfn.XLOOKUP(CI_s[[#This Row],[Commitment item]],AM:AM,AK:AK)","v":{"$error":"#N/A"}},{"$f":"_xlfn.XLOOKUP(CI_s[[#This Row],[Commitment item]],AM:AM,AN:AN)","v":{"$error":"#N/A"}}]
[null,null,null,null,null,null,null,null,null,null,580320,"Resrv-Starflight Mnt","Reserves-Starflight Mnt","2012-05-14",{"$f":"_xlfn.XLOOKUP(CI_s[[#This Row],[Commitment item]],AM:AM,AK:AK)","v":{"$error":"#N/A"}},{"$f":"_xlfn.XLOOKUP(CI_s[[#This Row],[Commitment item]],AM:AM,AN:AN)","v":{"$error":"#N/A"}}]
[null,null,null,null,null,null,null,null,null,null,580330,"Resrv-TCSO Overtime","Reserves-TCSO Overtime","2012-05-14",{"$f":"_xlfn.XLOOKUP(CI_s[[#This Row],[Commitment item]],AM:AM,AK:AK)","v":{"$error":"#N/A"}},{"$f":"_xlfn.XLOOKUP(CI_s[[#This Row],[Commitment item]],AM:AM,AN:AN)","v":{"$error":"#N/A"}}]
[null,null,null,null,null,null,null,null,null,null,580340,"Resrv-Security","Reserves-Security","2012-08-02",{"$f":"_xlfn.XLOOKUP(CI_s[[#This Row],[Commitment item]],AM:AM,AK:AK)","v":{"$error":"#N/A"}},{"$f":"_xlfn.XLOOKUP(CI_s[[#This Row],[Commitment item]],AM:AM,AN:AN)","v":{"$error":"#N/A"}}]
[null,null,null,null,null,null,null,null,null,null,580350,"Resrv-Park Donations","Reserves-Park Donations","2016-04-06",{"$f":"_xlfn.XLOOKUP(CI_s[[#This Row],[Commitment item]],AM:AM,AK:AK)","v":{"$error":"#N/A"}},{"$f":"_xlfn.XLOOKUP(CI_s[[#This Row],[Commitment item]],AM:AM,AN:AN)","v":{"$error":"#N/A"}}]
[null,null,null,null,null,null,null,null,null,null,580360,"Resrv-Bud Stabiliztn","Reserves-Budget Stabilization","2020-07-16",{"$f":"_xlfn.XLOOKUP(CI_s[[#This Row],[Commitment item]],AM:AM,AK:AK)","v":{"$error":"#N/A"}},{"$f":"_xlfn.XLOOKUP(CI_s[[#This Row],[Commitment item]],AM:AM,AN:AN)","v":{"$error":"#N/A"}}]
[null,null,null,null,null,null,null,null,null,null,589999,"Grant DeOblg","Grant DeObligations","2017-02-21",{"$f":"_xlfn.XLOOKUP(CI_s[[#This Row],[Commitment item]],AM:AM,AK:AK)","v":{"$error":"#N/A"}},{"$f":"_xlfn.XLOOKUP(CI_s[[#This Row],[Commitment item]],AM:AM,AN:AN)","v":{"$error":"#N/A"}}]
[null,null,null,null,null,null,null,null,null,null,590001,"Trfr to Gen Fd","Transfers to General Fd","2012-05-14",{"$f":"_xlfn.XLOOKUP(CI_s[[#This Row],[Commitment item]],AM:AM,AK:AK)","v":"Transfers to General Fd"},{"$f":"_xlfn.XLOOKUP(CI_s[[#This Row],[Commitment item]],AM:AM,AN:AN)","v":"Transfers to General Fd"}]
[null,null,null,null,null,null,null,null,null,null,590003,"Trfr to Tx Expo Ctr","Transfers to Tx Exposition and Heritage","2012-05-14",{"$f":"_xlfn.XLOOKUP(CI_s[[#This Row],[Commitment item]],AM:AM,AK:AK)","v":"Transfers to Tx Exposition and Heritage"},{"$f":"_xlfn.XLOOKUP(CI_s[[#This Row],[Commitment item]],AM:AM,AN:AN)","v":"Transfers to Tx Exposition and Heritage"}]
[null,null,null,null,null,null,null,null,null,null,590100,"Trfr to LawLibraryFd","Transfers to Law Library Fd","2022-06-28",{"$f":"_xlfn.XLOOKUP(CI_s[[#This Row],[Commitment item]],AM:AM,AK:AK)","v":{"$error":"#N/A"}},{"$f":"_xlfn.XLOOKUP(CI_s[[#This Row],[Commitment item]],AM:AM,AN:AN)","v":{"$error":"#N/A"}}]
[null,null,null,null,null,null,null,null,null,null,590104,"Trfr to Disp Res Ctr","Transfers to Dispute Resolution Center Fd","2012-05-14",{"$f":"_xlfn.XLOOKUP(CI_s[[#This Row],[Commitment item]],AM:AM,AK:AK)","v":"Transfers to Dispute Resolution Center Fd"},{"$f":"_xlfn.XLOOKUP(CI_s[[#This Row],[Commitment item]],AM:AM,AN:AN)","v":"Transfers to Dispute Resolution Center Fd"}]
[null,null,null,null,null,null,null,null,null,null,590105,"Trfr to Voter Rg Fd","Transfers to Voter Registration Fd","2012-05-14",{"$f":"_xlfn.XLOOKUP(CI_s[[#This Row],[Commitment item]],AM:AM,AK:AK)","v":"Transfers to Voter Registration Fd"},{"$f":"_xlfn.XLOOKUP(CI_s[[#This Row],[Commitment item]],AM:AM,AN:AN)","v":"Transfers to Voter Registration Fd"}]
[null,null,null,null,null,null,null,null,null,null,590107,"Trfr to JJAEP Fd","Transfers to Juv Justice Alternative Edu Prog Fd","2012-05-14",{"$f":"_xlfn.XLOOKUP(CI_s[[#This Row],[Commitment item]],AM:AM,AK:AK)","v":"Transfers to Juv Justice Alternative Edu"},{"$f":"_xlfn.XLOOKUP(CI_s[[#This Row],[Commitment item]],AM:AM,AN:AN)","v":"Transfers to Juv Justice Alternative Edu"}]
[null,null,null,null,null,null,null,null,null,null,590110,"Trfr to RecMgt & Pre","Transfers to Rec Mgmt & Pres Fd","2020-07-15",{"$f":"_xlfn.XLOOKUP(CI_s[[#This Row],[Commitment item]],AM:AM,AK:AK)","v":"Transfers to Rec Mgmt & Pres Fd"},{"$f":"_xlfn.XLOOKUP(CI_s[[#This Row],[Commitment item]],AM:AM,AN:AN)","v":"Transfers to Rec Mgmt & Pres Fd"}]
[null,null,null,null,null,null,null,null,null,null,590111,"Trfr to Crthse Sec","Transfers to Courthouse Security Fd","2012-05-14",{"$f":"_xlfn.XLOOKUP(CI_s[[#This Row],[Commitment item]],AM:AM,AK:AK)","v":"Transfers to Courthouse Security Fd"},{"$f":"_xlfn.XLOOKUP(CI_s[[#This Row],[Commitment item]],AM:AM,AN:AN)","v":"Transfers to Courthouse Security Fd"}]
[null,null,null,null,null,null,null,null,null,null,590114,"Trfr to JV Def Prs","Transfers to Juvenile Deferred Prosecution Fd","2012-05-14",{"$f":"_xlfn.XLOOKUP(CI_s[[#This Row],[Commitment item]],AM:AM,AK:AK)","v":"Transfers to Juvenile Deferred Prosecution Fd"},{"$f":"_xlfn.XLOOKUP(CI_s[[#This Row],[Commitment item]],AM:AM,AN:AN)","v":"Transfers to Juvenile Deferred Prosecution Fd"}]
[null,null,null,null,null,null,null,null,null,null,590115,"Trfr to BCP Fd","Transfers to Balcones Canyonland Pres Fd","2012-05-14",{"$f":"_xlfn.XLOOKUP(CI_s[[#This Row],[Commitment item]],AM:AM,AK:AK)","v":"Transfers to Balcones Canyonland Pres Fd"},{"$f":"_xlfn.XLOOKUP(CI_s[[#This Row],[Commitment item]],AM:AM,AN:AN)","v":"Transfers to Balcones Canyonland Pres Fd"}]
[null,null,null,null,null,null,null,null,null,null,590120,"Trfr to Aban Veh/Lv","Transfer to Aban Veh/Lv","2022-10-14",{"$f":"_xlfn.XLOOKUP(CI_s[[#This Row],[Commitment item]],AM:AM,AK:AK)","v":{"$error":"#N/A"}},{"$f":"_xlfn.XLOOKUP(CI_s[[#This Row],[Commitment item]],AM:AM,AN:AN)","v":{"$error":"#N/A"}}]
[null,null,null,null,null,null,null,null,null,null,590122,"Trfr to Pf Prs Fd","Transfers to Professional Prosecutors Fd","2012-05-14",{"$f":"_xlfn.XLOOKUP(CI_s[[#This Row],[Commitment item]],AM:AM,AK:AK)","v":"Transfers to Professional Prosecuters Fd"},{"$f":"_xlfn.XLOOKUP(CI_s[[#This Row],[Commitment item]],AM:AM,AN:AN)","v":"Transfers to Professional Prosecuters Fd"}]
[null,null,null,null,null,null,null,null,null,null,590124,"Trfr to ProbJudFeeFd","Transfers to Probate Judiciary Fee Fd","2023-07-20",{"$f":"_xlfn.XLOOKUP(CI_s[[#This Row],[Commitment item]],AM:AM,AK:AK)","v":{"$error":"#N/A"}},{"$f":"_xlfn.XLOOKUP(CI_s[[#This Row],[Commitment item]],AM:AM,AN:AN)","v":{"$error":"#N/A"}}]
[null,null,null,null,null,null,null,null,null,null,590126,"Trfr to Truancy Fd","Transfers to Truancy Court Fd","2012-05-14",{"$f":"_xlfn.XLOOKUP(CI_s[[#This Row],[Commitment item]],AM:AM,AK:AK)","v":"Transfers to Truancy Court Fd"},{"$f":"_xlfn.XLOOKUP(CI_s[[#This Row],[Commitment item]],AM:AM,AN:AN)","v":"Transfers to Truancy Court Fd"}]
[null,null,null,null,null,null,null,null,null,null,590145,"Trfr to Rd&Bridge","Transfers to Rd and Bridge Fd","2015-07-17",{"$f":"_xlfn.XLOOKUP(CI_s[[#This Row],[Commitment item]],AM:AM,AK:AK)","v":"Transfers to Rd and Bridge Fd"},{"$f":"_xlfn.XLOOKUP(CI_s[[#This Row],[Commitment item]],AM:AM,AN:AN)","v":"Transfers to Rd and Bridge Fd"}]
[null,null,null,null,null,null,null,null,null,null,590149,"Trfr to AftSchlYE Fd","Transfers to After School Youth Enrchmt Fund","2013-01-22",{"$f":"_xlfn.XLOOKUP(CI_s[[#This Row],[Commitment item]],AM:AM,AK:AK)","v":"Transfers to After School Youth Enrchmt"},{"$f":"_xlfn.XLOOKUP(CI_s[[#This Row],[Commitment item]],AM:AM,AN:AN)","v":"Transfers to After School Youth Enrchmt"}]
[null,null,null,null,null,null,null,null,null,null,590152,"Trfr to JuvCaseMgr","Transfers to Juvenile Case Mgr Program Fund","2021-07-20",{"$f":"_xlfn.XLOOKUP(CI_s[[#This Row],[Commitment item]],AM:AM,AK:AK)","v":{"$error":"#N/A"}},{"$f":"_xlfn.XLOOKUP(CI_s[[#This Row],[Commitment item]],AM:AM,AN:AN)","v":{"$error":"#N/A"}}]
[null,null,null,null,null,null,null,null,null,null,590155,"Trfr to CWFD Fd","Transfers to Child Welfare Jury Donations Fund","2019-09-11",{"$f":"_xlfn.XLOOKUP(CI_s[[#This Row],[Commitment item]],AM:AM,AK:AK)","v":"Transfers to After School Youth Enrchmt"},{"$f":"_xlfn.XLOOKUP(CI_s[[#This Row],[Commitment item]],AM:AM,AN:AN)","v":"Transfers to Child Welfare Jury Donations Fund"}]
[null,null,null,null,null,null,null,null,null,null,590904,"Trfr to TCDA","Transfers to Travis County Development Auth.Fund","2019-09-24",{"$f":"_xlfn.XLOOKUP(CI_s[[#This Row],[Commitment item]],AM:AM,AK:AK)","v":{"$error":"#N/A"}},{"$f":"_xlfn.XLOOKUP(CI_s[[#This Row],[Commitment item]],AM:AM,AN:AN)","v":{"$error":"#N/A"}}]
[null,null,null,null,null,null,null,null,null,null,590905,"Trfr to CapEcoProgCo","Transfers to Capital Economic Progress Corp. Fund","2019-09-24",{"$f":"_xlfn.XLOOKUP(CI_s[[#This Row],[Commitment item]],AM:AM,AK:AK)","v":{"$error":"#N/A"}},{"$f":"_xlfn.XLOOKUP(CI_s[[#This Row],[Commitment item]],AM:AM,AN:AN)","v":{"$error":"#N/A"}}]
[null,null,null,null,null,null,null,null,null,null,590906,"Trfr to TCPubFacilCo","Transfers to TC Public Facilities Corporation Fund","2019-09-24",{"$f":"_xlfn.XLOOKUP(CI_s[[#This Row],[Commitment item]],AM:AM,AK:AK)","v":{"$error":"#N/A"}},{"$f":"_xlfn.XLOOKUP(CI_s[[#This Row],[Commitment item]],AM:AM,AN:AN)","v":{"$error":"#N/A"}}]
[null,null,null,null,null,null,null,null,null,null,592031,"Trfr to TxDot","Transfers to Texas Dept of Transportation Fd","2012-05-14",{"$f":"_xlfn.XLOOKUP(CI_s[[#This Row],[Commitment item]],AM:AM,AK:AK)","v":"Transfers to Texas Dept of Transportation Fd"},{"$f":"_xlfn.XLOOKUP(CI_s[[#This Row],[Commitment item]],AM:AM,AN:AN)","v":"Transfers to Texas Dept of Transportation Fd"}]
[null,null,null,null,null,null,null,null,null,null,592041,"Trfr to TxWDB-Cap Fd","Transfers to Texas Water Dev Board-Fed Cap Fd","2012-05-14",{"$f":"_xlfn.XLOOKUP(CI_s[[#This Row],[Commitment item]],AM:AM,AK:AK)","v":"Transfers to Texas Water Dev Board-Fed Cap Fd"},{"$f":"_xlfn.XLOOKUP(CI_s[[#This Row],[Commitment item]],AM:AM,AN:AN)","v":"Transfers to Texas Water Dev Board-Fed Cap Fd"}]
[null,null,null,null,null,null,null,null,null,null,592045,"Trfr to TDCJ-CJAD","Transfers to Tx Dpt of Crm Js Cmty Justice Asst Di","2015-05-28",{"$f":"_xlfn.XLOOKUP(CI_s[[#This Row],[Commitment item]],AM:AM,AK:AK)","v":"Transfers to Tx Dpt of Crm Js Cmty Justice Asst Di"},{"$f":"_xlfn.XLOOKUP(CI_s[[#This Row],[Commitment item]],AM:AM,AN:AN)","v":"Transfers to Tx Dpt of Crm Js Cmty Justice Asst Di"}]
[null,null,null,null,null,null,null,null,null,null,592058,"Trfr to OOG CJD-StFd","Transfers to OOG Criminal Justice Division-StateFd","2013-08-14",{"$f":"_xlfn.XLOOKUP(CI_s[[#This Row],[Commitment item]],AM:AM,AK:AK)","v":"Transfers to OOG Criminal Justice Division-StateFd"},{"$f":"_xlfn.XLOOKUP(CI_s[[#This Row],[Commitment item]],AM:AM,AN:AN)","v":"Transfers to OOG Criminal Justice Division-StateFd"}]
[null,null,null,null,null,null,null,null,null,null,593001,"Trfr to Cons Dbt Sv","Transfers to Consolidated Debt Service Fd","2012-05-14",{"$f":"_xlfn.XLOOKUP(CI_s[[#This Row],[Commitment item]],AM:AM,AK:AK)","v":"Transfers to Consolidated Debt Service "},{"$f":"_xlfn.XLOOKUP(CI_s[[#This Row],[Commitment item]],AM:AM,AN:AN)","v":"Transfers to Consolidated Debt Service Fd"}]
[null,null,null,null,null,null,null,null,null,null,593002,"Trfr to Refd Dbt Sv","Transfers to Refunding Debt Service Fd","2012-05-14",{"$f":"_xlfn.XLOOKUP(CI_s[[#This Row],[Commitment item]],AM:AM,AK:AK)","v":"Transfers to Refunding Debt Service"},{"$f":"_xlfn.XLOOKUP(CI_s[[#This Row],[Commitment item]],AM:AM,AN:AN)","v":"Transfers to Refunding Debt Service Fd"}]
[null,null,null,null,null,null,null,null,null,null,593004,"Trfr to TCBCRD Fd","Transfers to Travis Co Bee Cave Rd Dist 1 Fd","2012-05-14",{"$f":"_xlfn.XLOOKUP(CI_s[[#This Row],[Commitment item]],AM:AM,AK:AK)","v":"Transfers to Travis Cnty Bee Cave Rd Dist 1 Fd"},{"$f":"_xlfn.XLOOKUP(CI_s[[#This Row],[Commitment item]],AM:AM,AN:AN)","v":"Transfers to Travis Co Bee Cave Rd Dist 1 Fd"}]
[null,null,null,null,null,null,null,null,null,null,593005,"Trfr to Debt Sv Tx","Transfers to Debt Service-Taxable Fd","2012-05-14",{"$f":"_xlfn.XLOOKUP(CI_s[[#This Row],[Commitment item]],AM:AM,AK:AK)","v":"Transfers to Debt Service-Taxable Fd"},{"$f":"_xlfn.XLOOKUP(CI_s[[#This Row],[Commitment item]],AM:AM,AN:AN)","v":"Transfers to Debt Service-Taxable Fd"}]
[null,null,null,null,null,null,null,null,null,null,594050,"Trfr to CCPF","Transfers to Contractual Capital Proj Fd","2012-05-14",{"$f":"_xlfn.XLOOKUP(CI_s[[#This Row],[Commitment item]],AM:AM,AK:AK)","v":"Transfers to Contractual Capital Proj Fd"},{"$f":"_xlfn.XLOOKUP(CI_s[[#This Row],[Commitment item]],AM:AM,AN:AN)","v":"Transfers to Contractual Capital Proj Fd"}]
[null,null,null,null,null,null,null,null,null,null,594076,"Trfr to PIB 2000Pks","Trfrs to Perm Imprvmnt Bds Series 2000-Parks","2013-06-10",{"$f":"_xlfn.XLOOKUP(CI_s[[#This Row],[Commitment item]],AM:AM,AK:AK)","v":"Trfrs to Perm Imprvmnt Bds Series 2000-Parks"},{"$f":"_xlfn.XLOOKUP(CI_s[[#This Row],[Commitment item]],AM:AM,AN:AN)","v":"Trfrs to Perm Imprvmnt Bds Series 2000-Parks"}]
[null,null,null,null,null,null,null,null,null,null,594077,"Trfr to UT 1998A","Trfrs to UnLtd Tax Rd Bds Series 1998A","2013-06-10",{"$f":"_xlfn.XLOOKUP(CI_s[[#This Row],[Commitment item]],AM:AM,AK:AK)","v":"Trfrs to UnLtd Tax Rd Bds Series 1998A"},{"$f":"_xlfn.XLOOKUP(CI_s[[#This Row],[Commitment item]],AM:AM,AN:AN)","v":"Trfrs to UnLtd Tax Rd Bds Series 1998A"}]
[null,null,null,null,null,null,null,null,null,null,594078,"Trfr to UT 1999","Trfrs to UnLtd Tax Rd Bds Series 1999","2013-06-10",{"$f":"_xlfn.XLOOKUP(CI_s[[#This Row],[Commitment item]],AM:AM,AK:AK)","v":"Trfrs to UnLtd Tax Rd Bds Series 1999"},{"$f":"_xlfn.XLOOKUP(CI_s[[#This Row],[Commitment item]],AM:AM,AN:AN)","v":"Trfrs to UnLtd Tax Rd Bds Series 1999"}]
[null,null,null,null,null,null,null,null,null,null,594079,"Trfr to UT 2000","Trfrs to UnLtd Tax Rd Bds Series 2000","2013-06-10",{"$f":"_xlfn.XLOOKUP(CI_s[[#This Row],[Commitment item]],AM:AM,AK:AK)","v":"Trfrs to UnLtd Tax Rd Bds Series 2000"},{"$f":"_xlfn.XLOOKUP(CI_s[[#This Row],[Commitment item]],AM:AM,AN:AN)","v":"Trfrs to UnLtd Tax Rd Bds Series 2000"}]
[null,null,null,null,null,null,null,null,null,null,594080,"Trfr to UT 2001","Trfrs to UnLtd Tax Rd Bds Series 2001","2013-06-10",{"$f":"_xlfn.XLOOKUP(CI_s[[#This Row],[Commitment item]],AM:AM,AK:AK)","v":"Trfrs to UnLtd Tax Rd Bds Series 2001"},{"$f":"_xlfn.XLOOKUP(CI_s[[#This Row],[Commitment item]],AM:AM,AN:AN)","v":"Trfrs to UnLtd Tax Rd Bds Series 2001"}]
[null,null,null,null,null,null,null,null,null,null,595010,"Co Con to Grnts","County Contribution to Grants","2012-05-14",{"$f":"_xlfn.XLOOKUP(CI_s[[#This Row],[Commitment item]],AM:AM,AK:AK)","v":"County Contribution to Grants"},{"$f":"_xlfn.XLOOKUP(CI_s[[#This Row],[Commitment item]],AM:AM,AN:AN)","v":"County Contribution to Grants"}]
[null,null,null,null,null,null,null,null,null,null,595020,"Trfr to Other Fds","Transfers to Other Funds","2012-05-14",{"$f":"_xlfn.XLOOKUP(CI_s[[#This Row],[Commitment item]],AM:AM,AK:AK)","v":"Transfers to Other Funds"},{"$f":"_xlfn.XLOOKUP(CI_s[[#This Row],[Commitment item]],AM:AM,AN:AN)","v":"Transfers to Other Funds"}]
[null,null,null,null,null,null,null,null,null,null,595030,"Trfrs-Grnt Match-CO","DO NOT USE","2012-05-14",{"$f":"_xlfn.XLOOKUP(CI_s[[#This Row],[Commitment item]],AM:AM,AK:AK)","v":"Transfers-Grant Match - Conversion"},{"$f":"_xlfn.XLOOKUP(CI_s[[#This Row],[Commitment item]],AM:AM,AN:AN)","v":"Transfers-Grant Match - Conversion"}]
[null,null,null,null,null,null,null,null,null,null,595099,"FFRO-Trnfrs Out","Fund Fin Rev Offset-Transfers Out","2012-06-20",{"$f":"_xlfn.XLOOKUP(CI_s[[#This Row],[Commitment item]],AM:AM,AK:AK)","v":"Fund Fin Rev Offset-Transfers Out"},{"$f":"_xlfn.XLOOKUP(CI_s[[#This Row],[Commitment item]],AM:AM,AN:AN)","v":"Fund Fin Rev Offset-Transfers Out"}]
[null,null,null,null,null,null,null,null,null,null,595100,"FFEO-Oth-OprTrsfrOut","Fund Fin Exp Offset-Other-Operating Transfers Out","2012-05-14",{"$f":"_xlfn.XLOOKUP(CI_s[[#This Row],[Commitment item]],AM:AM,AK:AK)","v":"Fund Fin Exp Offset-Other-Operating Tran"},{"$f":"_xlfn.XLOOKUP(CI_s[[#This Row],[Commitment item]],AM:AM,AN:AN)","v":"Fund Fin Exp Offset-Other-Operating Tran"}]
[null,null,null,null,null,null,null,null,null,null,595998,"Dist to Min Venture","Distribution to Minority Venture","2018-10-26",{"$f":"_xlfn.XLOOKUP(CI_s[[#This Row],[Commitment item]],AM:AM,AK:AK)","v":{"$error":"#N/A"}},{"$f":"_xlfn.XLOOKUP(CI_s[[#This Row],[Commitment item]],AM:AM,AN:AN)","v":{"$error":"#N/A"}}]
[null,null,null,null,null,null,null,null,null,null,595999,"FFEO-Dist to Min Ven","Fund Fin Exp Offset-Distribution to Min Venture","2018-10-26",{"$f":"_xlfn.XLOOKUP(CI_s[[#This Row],[Commitment item]],AM:AM,AK:AK)","v":{"$error":"#N/A"}},{"$f":"_xlfn.XLOOKUP(CI_s[[#This Row],[Commitment item]],AM:AM,AN:AN)","v":{"$error":"#N/A"}}]
[null,null,null,null,null,null,null,null,null,null,596010,"OFU-Bond Refds-Par","Outflows from Bond Refundings-Par","2012-05-14",{"$f":"_xlfn.XLOOKUP(CI_s[[#This Row],[Commitment item]],AM:AM,AK:AK)","v":{"$error":"#N/A"}},{"$f":"_xlfn.XLOOKUP(CI_s[[#This Row],[Commitment item]],AM:AM,AN:AN)","v":{"$error":"#N/A"}}]
[null,null,null,null,null,null,null,null,null,null,596020,"OFU-Bond Refds-OID","Outflows from Bond Refundings-OID","2012-05-14",{"$f":"_xlfn.XLOOKUP(CI_s[[#This Row],[Commitment item]],AM:AM,AK:AK)","v":{"$error":"#N/A"}},{"$f":"_xlfn.XLOOKUP(CI_s[[#This Row],[Commitment item]],AM:AM,AN:AN)","v":{"$error":"#N/A"}}]
[null,null,null,null,null,null,null,null,null,null,596030,"OFU-Bond Defeasance","Outflows from Bond Defeasance Non Rdfg","2013-01-18",{"$f":"_xlfn.XLOOKUP(CI_s[[#This Row],[Commitment item]],AM:AM,AK:AK)","v":{"$error":"#N/A"}},{"$f":"_xlfn.XLOOKUP(CI_s[[#This Row],[Commitment item]],AM:AM,AN:AN)","v":{"$error":"#N/A"}}]
[null,null,null,null,null,null,null,null,null,null,596050,"Bnd Issue Dis-CO","Bond Issuance Discount- CO","2016-05-24",{"$f":"_xlfn.XLOOKUP(CI_s[[#This Row],[Commitment item]],AM:AM,AK:AK)","v":{"$error":"#N/A"}},{"$f":"_xlfn.XLOOKUP(CI_s[[#This Row],[Commitment item]],AM:AM,AN:AN)","v":{"$error":"#N/A"}}]
[null,null,null,null,null,null,null,null,null,null,596059,"Bnd Issue Dis-CO Off","Bond Issuance Discount- CO Offset","2016-05-24",{"$f":"_xlfn.XLOOKUP(CI_s[[#This Row],[Commitment item]],AM:AM,AK:AK)","v":{"$error":"#N/A"}},{"$f":"_xlfn.XLOOKUP(CI_s[[#This Row],[Commitment item]],AM:AM,AN:AN)","v":{"$error":"#N/A"}}]
[null,null,null,null,null,null,null,null,null,null,596060,"Bnd Issue Dis-PIB","Bond Issuance Discount- Perm Improve Bonds","2016-05-24",{"$f":"_xlfn.XLOOKUP(CI_s[[#This Row],[Commitment item]],AM:AM,AK:AK)","v":{"$error":"#N/A"}},{"$f":"_xlfn.XLOOKUP(CI_s[[#This Row],[Commitment item]],AM:AM,AN:AN)","v":{"$error":"#N/A"}}]
[null,null,null,null,null,null,null,null,null,null,596069,"Bnd Iss Dis-PIB Off","Bond Issuance Discount- Perm Improve Bonds Offset","2016-05-24",{"$f":"_xlfn.XLOOKUP(CI_s[[#This Row],[Commitment item]],AM:AM,AK:AK)","v":{"$error":"#N/A"}},{"$f":"_xlfn.XLOOKUP(CI_s[[#This Row],[Commitment item]],AM:AM,AN:AN)","v":{"$error":"#N/A"}}]
[null,null,null,null,null,null,null,null,null,null,596070,"Bnd Issue Dis-RD","Bond Issuance Discount- Road Bonds","2016-05-24",{"$f":"_xlfn.XLOOKUP(CI_s[[#This Row],[Commitment item]],AM:AM,AK:AK)","v":{"$error":"#N/A"}},{"$f":"_xlfn.XLOOKUP(CI_s[[#This Row],[Commitment item]],AM:AM,AN:AN)","v":{"$error":"#N/A"}}]
[null,null,null,null,null,null,null,null,null,null,596079,"Bnd Issue Dis-RD Off","Bond Issuance Discount- Road Bonds Offset","2016-05-24",{"$f":"_xlfn.XLOOKUP(CI_s[[#This Row],[Commitment item]],AM:AM,AK:AK)","v":{"$error":"#N/A"}},{"$f":"_xlfn.XLOOKUP(CI_s[[#This Row],[Commitment item]],AM:AM,AN:AN)","v":{"$error":"#N/A"}}]
[null,null,null,null,null,null,null,null,null,null,596080,"Bnd Issue Dis-SHS","Bond Issuance Discount- St Hwy System Bonds","2016-05-24",{"$f":"_xlfn.XLOOKUP(CI_s[[#This Row],[Commitment item]],AM:AM,AK:AK)","v":{"$error":"#N/A"}},{"$f":"_xlfn.XLOOKUP(CI_s[[#This Row],[Commitment item]],AM:AM,AN:AN)","v":{"$error":"#N/A"}}]
[null,null,null,null,null,null,null,null,null,null,596089,"Bnd Iss Dis-SHS Off","Bond Issuance Discount- St Hwy System Bonds Offset","2016-05-24",{"$f":"_xlfn.XLOOKUP(CI_s[[#This Row],[Commitment item]],AM:AM,AK:AK)","v":{"$error":"#N/A"}},{"$f":"_xlfn.XLOOKUP(CI_s[[#This Row],[Commitment item]],AM:AM,AN:AN)","v":{"$error":"#N/A"}}]
[null,null,null,null,null,null,null,null,null,null,597010,"OFU-Rd Dist OF-Par","Road District Outflows-Par","2012-05-14",{"$f":"_xlfn.XLOOKUP(CI_s[[#This Row],[Commitment item]],AM:AM,AK:AK)","v":{"$error":"#N/A"}},{"$f":"_xlfn.XLOOKUP(CI_s[[#This Row],[Commitment item]],AM:AM,AN:AN)","v":{"$error":"#N/A"}}]
[null,null,null,null,null,null,null,null,null,null,597020,"OFU-Rd Dist OF-OID","Road District Outflows-OID","2012-05-14",{"$f":"_xlfn.XLOOKUP(CI_s[[#This Row],[Commitment item]],AM:AM,AK:AK)","v":{"$error":"#N/A"}},{"$f":"_xlfn.XLOOKUP(CI_s[[#This Row],[Commitment item]],AM:AM,AN:AN)","v":{"$error":"#N/A"}}]
[null,null,null,null,null,null,null,null,null,null,598010,"FFEO-Oth-RfdgDbtPrnc","Fund Fin Exp Offset-Other-Rfdg Debt Principle","2012-05-14",{"$f":"_xlfn.XLOOKUP(CI_s[[#This Row],[Commitment item]],AM:AM,AK:AK)","v":{"$error":"#N/A"}},{"$f":"_xlfn.XLOOKUP(CI_s[[#This Row],[Commitment item]],AM:AM,AN:AN)","v":{"$error":"#N/A"}}]
[null,null,null,null,null,null,null,null,null,null,598030,"FFEO-Bd Defeasance","Fund Fin Exp Offset-Bond Defeasance","2013-01-18",{"$f":"_xlfn.XLOOKUP(CI_s[[#This Row],[Commitment item]],AM:AM,AK:AK)","v":"Fund Financial Offset Debt - No Roll"},{"$f":"_xlfn.XLOOKUP(CI_s[[#This Row],[Commitment item]],AM:AM,AN:AN)","v":"Fund Fin Exp Offset-Bond Defeasance"}]
[null,null,null,null,null,null,null,null,null,null,598955,"Trfr to SelfInsuraFd","Transfers to Self Insurance Fd","2020-07-17",{"$f":"_xlfn.XLOOKUP(CI_s[[#This Row],[Commitment item]],AM:AM,AK:AK)","v":"Transfers to Self Insurance Fd"},{"$f":"_xlfn.XLOOKUP(CI_s[[#This Row],[Commitment item]],AM:AM,AN:AN)","v":"Transfers to Self Insurance Fd"}]
[null,null,null,null,null,null,null,null,null,null,598956,"Trfr to EmpHlthBenFd","Transfers to Employee Health Benefit Fd","2015-07-16",{"$f":"_xlfn.XLOOKUP(CI_s[[#This Row],[Commitment item]],AM:AM,AK:AK)","v":"Transfers to Employee Health Benefit Fd"},{"$f":"_xlfn.XLOOKUP(CI_s[[#This Row],[Commitment item]],AM:AM,AN:AN)","v":"Transfers to Employee Health Benefit Fd"}]

{"sheet":"Data Jobs","index":28,"n_rows":1104,"n_cols":42,"rows_kept":1104,"cut":false,"hidden":true,"merged":[]}
["Object type","Start date","End Date","Planning status","Object name","Extended object ID","PG","WCI","WCI Rate","Minimum","Maximum","Query","Column1","Object name - verified to be bad jobs","Extended object ID","Remove","Column1",null,null,null,null,"M:\\Central PBOfiles\\SAP Reference - Lookups\\Job titles.XLSX",null,null,null,null,null,null,"Object type","Start date","End Date","Planning status","Object name","Extended object ID","PG","WCI","WCI Rate","Minimum","Maximum","Family Code","Family","Remove?"]
["C","1950-01-01","9999-12-31",1,"Accountant",20000118,"C10",8810,1.6000000000000001E-3,55877.5,82698.7,null,null,"ACC Intern",20000431,"x",null,null,null,null,null,"Updated ","2023-01-31",null,null,null,null,null,"C","1950-01-01","9999-12-31",1,"Accountant",20000118,"C10",8810,1.6000000000000001E-3,55877.5,82698.7,88005,"FINANCE",{"$f":"_xlfn.XLOOKUP(job_titles17[[#This Row],[Extended object ID]],O:O,P:P)","v":{"$error":"#N/A"}}]
["C","1950-01-01","9999-12-31",1,"Accountant Assoc",20000117,"C07",8810,1.6000000000000001E-3,50398.3,68037.710000000006,null,null,"Aircraft Maintenance Dir Succession",20053403,"x",null,null,null,null,null,"Update data from sheet",null,null,null,null,null,null,"C","1950-01-01","9999-12-31",1,"Accountant Assoc",20000117,"C07",8810,1.6000000000000001E-3,50398.3,68037.710000000006,88005,"FINANCE",{"$f":"_xlfn.XLOOKUP(job_titles17[[#This Row],[Extended object ID]],O:O,P:P)","v":{"$error":"#N/A"}}]
["C","1950-01-01","9999-12-31",1,"Accountant Lead",20000120,"C14",8810,1.6000000000000001E-3,66183.97,105894.35,null,null,"Aircraft Mechanic Sr Succession",20053026,"x",null,null,null,null,null,"update lookup dropdowns",null,null,null,null,null,null,"C","1950-01-01","9999-12-31",1,"Accountant Lead",20000120,"C14",8810,1.6000000000000001E-3,66183.97,105894.35,88005,"FINANCE",{"$f":"_xlfn.XLOOKUP(job_titles17[[#This Row],[Extended object ID]],O:O,P:P)","v":{"$error":"#N/A"}}]
["C","1950-01-01","9999-12-31",1,"Accountant Sr",20000119,"C12",8810,1.6000000000000001E-3,60437.1,90655.66,null,null,"Animal Control Supv",20000080,"x",null,null,null,null,null,"delete removes",null,null,null,null,null,null,"C","1950-01-01","9999-12-31",1,"Accountant Sr",20000119,"C12",8810,1.6000000000000001E-3,60437.1,90655.66,88005,"FINANCE",{"$f":"_xlfn.XLOOKUP(job_titles17[[#This Row],[Extended object ID]],O:O,P:P)","v":{"$error":"#N/A"}}]
["C","1950-01-01","9999-12-31",1,"Accounting Clerk",20000116,"C05",8810,1.6000000000000001E-3,47275.74,61458.46,null,null,"Applications Mgr Succession",20053301,"x",null,null,null,null,null,"delete NCF01",null,null,null,null,null,null,"C","1950-01-01","9999-12-31",1,"Accounting Clerk",20000116,"C05",8810,1.6000000000000001E-3,47275.74,61458.46,88005,"FINANCE",{"$f":"_xlfn.XLOOKUP(job_titles17[[#This Row],[Extended object ID]],O:O,P:P)","v":{"$error":"#N/A"}}]
["C","1950-01-01","9999-12-31",1,"Accreditation Compliance Officer",20000353,"C11",8810,1.6000000000000001E-3,58112.6,87168.9,null,null,"Aud Application Architect II Succession",20050051,"x",null,null,null,null,null,"delete N/A PGs",null,null,null,null,null,null,"C","1950-01-01","9999-12-31",1,"Accreditation Compliance Officer",20000353,"C11",8810,1.6000000000000001E-3,58112.6,87168.9,88015,"PROFESSIONAL SUPP",{"$f":"_xlfn.XLOOKUP(job_titles17[[#This Row],[Extended object ID]],O:O,P:P)","v":{"$error":"#N/A"}}]
["C","2015-10-01","9999-12-31",1,"Admin Services Div Dir Sr",20051158,"C19",8810,1.6000000000000001E-3,92836.33,148538.12,null,null,"Aud BI Architect II Succession",20052526,"x",null,null,null,null,null,"No Succession or Sn",null,null,null,null,null,null,"C","2015-10-01","9999-12-31",1,"Admin Services Div Dir Sr",20051158,"C19",8810,1.6000000000000001E-3,92836.33,148538.12,88014,"MANAGEMENT",{"$f":"_xlfn.XLOOKUP(job_titles17[[#This Row],[Extended object ID]],O:O,P:P)","v":{"$error":"#N/A"}}]
["C","2023-10-24","9999-12-31",1,"Admin Services Div Dir Sr Succession",20055801,"C19",8810,1.6000000000000001E-3,92836.33,148538.12,null,null,"Aud County Auditor Chief Asst I Sn",20050101,"x",null,null,null,null,null,"No Temps family",null,null,null,null,null,null,"C","2023-10-24","9999-12-31",1,"Admin Services Div Dir Sr Succession",20055801,"C19",8810,1.6000000000000001E-3,92836.33,148538.12,88014,"MANAGEMENT",{"$f":"_xlfn.XLOOKUP(job_titles17[[#This Row],[Extended object ID]],O:O,P:P)","v":{"$error":"#N/A"}}]
["C","1950-01-01","9999-12-31",1,"Administrative Assoc",20000101,"C09",8810,1.6000000000000001E-3,53987.92,78282.490000000005,null,null,"Aud Fin Aud Anly IV Succession",20051526,"x",null,null,null,null,null,"No County Execs family",null,null,null,null,null,null,"C","1950-01-01","9999-12-31",1,"Administrative Assoc",20000101,"C09",8810,1.6000000000000001E-3,53987.92,78282.490000000005,88004,"ADMINISTRATIVE SUPP",{"$f":"_xlfn.XLOOKUP(job_titles17[[#This Row],[Extended object ID]],O:O,P:P)","v":{"$error":"#N/A"}}]
["C","1950-01-01","9999-12-31",1,"Administrative Asst I",20000099,"C05",8810,1.6000000000000001E-3,47275.74,61458.46,null,null,"Aud Records Analyst Lead Succession",20053627,"x",null,null,null,null,null,"20.80 min",{"$f":"20.8*2080","v":43264},null,null,null,null,null,"C","1900-01-01","9999-12-31",1,"Administrative Assoc Succession",20055377,"C09",8810,1.6000000000000001E-3,53987.92,78282.490000000005,88004,"ADMINISTRATIVE SUPP",{"$f":"_xlfn.XLOOKUP(job_titles17[[#This Row],[Extended object ID]],O:O,P:P)","v":"x"}]
["C","1950-01-01","9999-12-31",1,"Administrative Asst II",20000100,"C07",8810,1.6000000000000001E-3,50398.3,68037.710000000006,null,null,"Benefits Administrator Succession",20050002,"x",null,null,null,null,null,"No elected/appointed",null,null,null,null,null,null,"C","1950-01-01","9999-12-31",1,"Administrative Asst I",20000099,"C05",8810,1.6000000000000001E-3,47275.74,61458.46,88004,"ADMINISTRATIVE SUPP",{"$f":"_xlfn.XLOOKUP(job_titles17[[#This Row],[Extended object ID]],O:O,P:P)","v":{"$error":"#N/A"}}]
["C","2020-10-13","9999-12-31",1,"Administrative Investigator",20053901,"C11",8810,1.6000000000000001E-3,58112.6,87168.9,null,null,"Budget Dir Succession",20000644,"x",null,null,null,null,null,null,null,null,null,null,null,null,"C","1950-01-01","9999-12-31",1,"Administrative Asst II",20000100,"C07",8810,1.6000000000000001E-3,50398.3,68037.710000000006,88004,"ADMINISTRATIVE SUPP",{"$f":"_xlfn.XLOOKUP(job_titles17[[#This Row],[Extended object ID]],O:O,P:P)","v":{"$error":"#N/A"}}]
["C","1950-01-01","9999-12-31",1,"Administrative Services Div Dir",20000317,"C18",8810,1.6000000000000001E-3,86761.41,138818.25,null,null,"Business Analyst II Succession",20050551,"x",null,null,null,null,null,null,null,null,null,null,null,null,"C","2020-10-13","9999-12-31",1,"Administrative Investigator",20053901,"C11",8810,1.6000000000000001E-3,58112.6,87168.9,88013,"COURT SERVICES",{"$f":"_xlfn.XLOOKUP(job_titles17[[#This Row],[Extended object ID]],O:O,P:P)","v":{"$error":"#N/A"}}]
["C","2018-03-20","9999-12-31",1,"Agenda Coordinator",20052453,"C12",8810,1.6000000000000001E-3,60437.1,90655.66,null,null,"Business Analyst III Succession",20051576,"x",null,null,null,null,null,null,null,null,null,null,null,null,"C","1950-01-01","9999-12-31",1,"Administrative Services Div Dir",20000317,"C18",8810,1.6000000000000001E-3,86761.41,138818.25,88014,"MANAGEMENT",{"$f":"_xlfn.XLOOKUP(job_titles17[[#This Row],[Extended object ID]],O:O,P:P)","v":{"$error":"#N/A"}}]
["C","1950-01-01","9999-12-31",1,"Aircraft Maintenance Dir",20000228,"C17",7422,1.3299999999999999E-2,81074.789999999994,129719.67,null,null,"Business Analyst III Succession",20053326,"x",null,null,null,null,null,null,null,null,null,null,null,null,"C","1950-01-01","9999-12-31",1,"Adult Probation Dir",20000517,"NCF01",9999,0,15080,500000,88023,"APPOINTED",{"$f":"_xlfn.XLOOKUP(job_titles17[[#This Row],[Extended object ID]],O:O,P:P)","v":{"$error":"#N/A"}}]
["C","1950-01-01","9999-12-31",1,"Aircraft Mechanic",20000226,"C14",7422,1.3299999999999999E-2,66183.97,105894.35,null,null,"Certified Peace Officer Lieutenant",20000530,"x",null,null,null,null,null,null,null,null,null,null,null,null,"C","2018-03-20","9999-12-31",1,"Agenda Coordinator",20052453,"C12",8810,1.6000000000000001E-3,60437.1,90655.66,88004,"ADMINISTRATIVE SUPP",{"$f":"_xlfn.XLOOKUP(job_titles17[[#This Row],[Extended object ID]],O:O,P:P)","v":{"$error":"#N/A"}}]
["C","1950-01-01","9999-12-31",1,"Aircraft Mechanic Sr",20000227,"C15",7422,1.3299999999999999E-2,70819.7,113311.53,null,null,"Certified Peace Officer Sergeant",20000528,"x",null,null,null,null,null,null,null,null,null,null,null,null,"C","1950-01-01","9999-12-31",1,"Aircraft Maintenance Dir",20000228,"C17",7422,1.3299999999999999E-2,81074.789999999994,129719.67,88012,"PUBLIC SAF/EMG MGMT",{"$f":"_xlfn.XLOOKUP(job_titles17[[#This Row],[Extended object ID]],O:O,P:P)","v":{"$error":"#N/A"}}]
["C","1950-01-01","9999-12-31",1,"Application Architect",20000451,"C20",8810,1.6000000000000001E-3,99345.18,158952.29,null,null,"Certified Peace Officer Sr",20000522,"x",null,null,null,null,null,null,null,null,null,null,null,null,"C","2019-10-03","9999-12-31",1,"Aircraft Maintenance Dir Succession",20053403,"GRD27",7422,1.3299999999999999E-2,77956.53,124730.53,88012,"PUBLIC SAF/EMG MGMT",{"$f":"_xlfn.XLOOKUP(job_titles17[[#This Row],[Extended object ID]],O:O,P:P)","v":"x"}]
["C","1950-01-01","9999-12-31",1,"Application Dev Analyst",20000454,"C14",8810,1.6000000000000001E-3,66183.97,105894.35,null,null,"Chief Deputy/Director of EMS Succession",20053027,"x",null,null,null,null,null,null,null,null,null,null,null,null,"C","1950-01-01","9999-12-31",1,"Aircraft Mechanic",20000226,"C14",7422,1.3299999999999999E-2,66183.97,105894.35,88012,"PUBLIC SAF/EMG MGMT",{"$f":"_xlfn.XLOOKUP(job_titles17[[#This Row],[Extended object ID]],O:O,P:P)","v":{"$error":"#N/A"}}]
["C","1950-01-01","9999-12-31",1,"Application Dev Analyst Sr",20000452,"C17",8810,1.6000000000000001E-3,81074.789999999994,129719.67,null,null,"Constable Sergeant Succession",20050005,"x",null,null,null,null,null,null,null,null,null,null,null,null,"C","1950-01-01","9999-12-31",1,"Aircraft Mechanic Sr",20000227,"C15",7422,1.3299999999999999E-2,70819.7,113311.53,88012,"PUBLIC SAF/EMG MGMT",{"$f":"_xlfn.XLOOKUP(job_titles17[[#This Row],[Extended object ID]],O:O,P:P)","v":{"$error":"#N/A"}}]
["C","1950-01-01","9999-12-31",1,"Applications Mgr",20000449,"C20",8810,1.6000000000000001E-3,99345.18,158952.29,null,null,"Corrections Certified Peace Officer",20000520,"x",null,null,null,null,null,null,null,null,null,null,null,null,"C","2019-02-15","9999-12-31",1,"Aircraft Mechanic Sr Succession",20053026,"GRD24",7422,1.3299999999999999E-2,63638.43,101821.41,88012,"PUBLIC SAF/EMG MGMT",{"$f":"_xlfn.XLOOKUP(job_titles17[[#This Row],[Extended object ID]],O:O,P:P)","v":"x"}]
["C","1950-01-01","9999-12-31",1,"Architectural Assoc",20000167,"C12",8601,1.8E-3,60437.1,90655.66,null,null,"County Executive ES Succession",20050004,"x",null,null,null,null,null,null,null,null,null,null,null,null,"C","1950-01-01","9999-12-31",1,"Americorp Participants",20000429,"NCF01",8810,1.6000000000000001E-3,15080,500000,88020,"TEMP/SEASONAL",{"$f":"_xlfn.XLOOKUP(job_titles17[[#This Row],[Extended object ID]],O:O,P:P)","v":"x"}]
["C","1950-01-01","9999-12-31",1,"Architectural Assoc Sr",20000168,"C14",8601,1.8E-3,66183.97,105894.35,null,null,"County Executive Succession",20050576,"x",null,null,null,null,null,null,null,null,null,null,null,null,"C","1950-01-01","9999-12-31",1,"Application Architect",20000451,"C20",8810,1.6000000000000001E-3,99345.18,158952.29,88021,"INFORMATION TECH",{"$f":"_xlfn.XLOOKUP(job_titles17[[#This Row],[Extended object ID]],O:O,P:P)","v":{"$error":"#N/A"}}]
["C","2019-11-05","9999-12-31",1,"Architectural Asst",20053501,"C10",8601,1.8E-3,55877.5,82698.7,null,null,"County Executive TNR Succession",20052426,"x",null,null,null,null,null,null,null,null,null,null,null,null,"C","1950-01-01","9999-12-31",1,"Application Dev Analyst",20000454,"C14",8810,1.6000000000000001E-3,66183.97,105894.35,88021,"INFORMATION TECH",{"$f":"_xlfn.XLOOKUP(job_titles17[[#This Row],[Extended object ID]],O:O,P:P)","v":{"$error":"#N/A"}}]
["C","2017-11-07","9999-12-31",1,"Architectural Division Manager",20052281,"C19",8601,1.8E-3,92836.33,148538.12,null,null,"County/District Clerk Div Dir Succession",20050201,"x",null,null,null,null,null,null,null,null,null,null,null,null,"C","1950-01-01","9999-12-31",1,"Application Dev Analyst Sr",20000452,"C17",8810,1.6000000000000001E-3,81074.789999999994,129719.67,88021,"INFORMATION TECH",{"$f":"_xlfn.XLOOKUP(job_titles17[[#This Row],[Extended object ID]],O:O,P:P)","v":{"$error":"#N/A"}}]
["C","2022-01-01","9999-12-31",1,"Archives Program Manager",20054676,"C13",8810,1.6000000000000001E-3,62854.59,100567.34,null,null,"Elections Div Dir Succession",20000645,"x",null,null,null,null,null,null,null,null,null,null,null,null,"C","1950-01-01","9999-12-31",1,"Applications Mgr",20000449,"C20",8810,1.6000000000000001E-3,99345.18,158952.29,88021,"INFORMATION TECH",{"$f":"_xlfn.XLOOKUP(job_titles17[[#This Row],[Extended object ID]],O:O,P:P)","v":{"$error":"#N/A"}}]
["C","1950-01-01","9999-12-31",1,"Archivist",20000347,"C09",8810,1.6000000000000001E-3,53987.92,78282.490000000005,null,null,"Environmental Rsrc Mgmt Specialist Sr",20000357,"x",null,null,null,null,null,null,null,null,null,null,null,null,"C","2019-08-13","9999-12-31",1,"Applications Mgr Succession",20053301,"GRD30",8810,1.6000000000000001E-3,95524.21,152838.82,88021,"INFORMATION TECH",{"$f":"_xlfn.XLOOKUP(job_titles17[[#This Row],[Extended object ID]],O:O,P:P)","v":"x"}]
["C","2018-10-30","9999-12-31",1,"Assistant Archivist",20052851,"C08",8810,1.6000000000000001E-3,52162.239999999998,75635.25,null,null,"Executive Asst Succession",20052576,"x",null,null,null,null,null,null,null,null,null,null,null,null,"C","1950-01-01","9999-12-31",1,"Architectural Assoc",20000167,"C12",8601,1.8E-3,60437.1,90655.66,88009,"ENGINEERING & ARCHITECTURAL",{"$f":"_xlfn.XLOOKUP(job_titles17[[#This Row],[Extended object ID]],O:O,P:P)","v":{"$error":"#N/A"}}]
["C","2021-10-02","9999-12-31",1,"Assistant HR Director, Total Rewards",20054378,"C21",8810,1.6000000000000001E-3,106310.9,175412.99,null,null,"Executive Asst Succession",20053428,"x",null,null,null,null,null,null,null,null,null,null,null,null,"C","1950-01-01","9999-12-31",1,"Architectural Assoc Sr",20000168,"C14",8601,1.8E-3,66183.97,105894.35,88009,"ENGINEERING & ARCHITECTURAL",{"$f":"_xlfn.XLOOKUP(job_titles17[[#This Row],[Extended object ID]],O:O,P:P)","v":{"$error":"#N/A"}}]
["C","2018-10-02","9999-12-31",1,"Assistant Parking Coordinator",20052801,"C04",7720,1.55E-2,45898.78,59668.41,null,null,"Financial Analyst Lead Succession",20053552,"x",null,null,null,null,null,null,null,null,null,null,null,null,"C","2019-11-05","9999-12-31",1,"Architectural Asst",20053501,"C10",8601,1.8E-3,55877.5,82698.7,88009,"ENGINEERING & ARCHITECTURAL",{"$f":"_xlfn.XLOOKUP(job_titles17[[#This Row],[Extended object ID]],O:O,P:P)","v":{"$error":"#N/A"}}]
["C","2019-09-25","9999-12-31",1,"Asst Chief Pilot",20053378,"C19",7422,1.3299999999999999E-2,92836.33,148538.12,null,null,"Financial Manager Succession",20000606,"x",null,null,null,null,null,null,null,null,null,null,null,null,"C","2017-11-07","9999-12-31",1,"Architectural Division Manager",20052281,"C19",8601,1.8E-3,92836.33,148538.12,88014,"MANAGEMENT",{"$f":"_xlfn.XLOOKUP(job_titles17[[#This Row],[Extended object ID]],O:O,P:P)","v":{"$error":"#N/A"}}]
["C","2021-10-02","9999-12-31",1,"Asst HR Dir Tal Plan Engage",20054377,"C21",8810,1.6000000000000001E-3,106310.9,175412.99,null,null,"Flight Registered Nurse Succession",20053701,"x",null,null,null,null,null,null,null,null,null,null,null,null,"C","2022-01-01","9999-12-31",1,"Archives Program Manager",20054676,"C13",8810,1.6000000000000001E-3,62854.59,100567.34,88014,"MANAGEMENT",{"$f":"_xlfn.XLOOKUP(job_titles17[[#This Row],[Extended object ID]],O:O,P:P)","v":{"$error":"#N/A"}}]
["C","2012-10-01","9999-12-31",1,"Asst Public Works Dir",20050084,"C20",5606,5.5999999999999999E-3,99345.18,158952.29,null,null,"GIS Coord Succession",20050401,"x",null,null,null,null,null,null,null,null,null,null,null,null,"C","1950-01-01","9999-12-31",1,"Archivist",20000347,"C09",8810,1.6000000000000001E-3,53987.92,78282.490000000005,88015,"PROFESSIONAL SUPP",{"$f":"_xlfn.XLOOKUP(job_titles17[[#This Row],[Extended object ID]],O:O,P:P)","v":{"$error":"#N/A"}}]
["C","1950-01-01","9999-12-31",1,"Attorney Deputy Chief Sr",20000335,"C26",8810,1.6000000000000001E-3,149111.1,246033.32,null,null,"Helicopter Pilot Sr Succession",20050026,"x",null,null,null,null,null,null,null,null,null,null,null,null,"C","2018-10-30","9999-12-31",1,"Assistant Archivist",20052851,"C08",8810,1.6000000000000001E-3,52162.239999999998,75635.25,88015,"PROFESSIONAL SUPP",{"$f":"_xlfn.XLOOKUP(job_titles17[[#This Row],[Extended object ID]],O:O,P:P)","v":{"$error":"#N/A"}}]
["C","1950-01-01","9999-12-31",1,"Attorney I",20000140,"C14",8810,1.6000000000000001E-3,66183.97,105894.35,null,null,"HHS Div Dir Succession",20051876,"x",null,null,null,null,null,null,null,null,null,null,null,null,"C","2021-10-02","9999-12-31",1,"Assistant HR Director, Total Rewards",20054378,"C21",8810,1.6000000000000001E-3,106310.9,175412.99,88014,"MANAGEMENT",{"$f":"_xlfn.XLOOKUP(job_titles17[[#This Row],[Extended object ID]],O:O,P:P)","v":{"$error":"#N/A"}}]
["C","1950-01-01","9999-12-31",1,"Attorney II",20000141,"C15",8810,1.6000000000000001E-3,70819.7,113311.53,null,null,"Human Resources Mgmt Dir Succession",20053776,"x",null,null,null,null,null,null,null,null,null,null,null,null,"C","2018-10-02","9999-12-31",1,"Assistant Parking Coordinator",20052801,"C04",7720,1.55E-2,45898.78,59668.41,88004,"ADMINISTRATIVE SUPP",{"$f":"_xlfn.XLOOKUP(job_titles17[[#This Row],[Extended object ID]],O:O,P:P)","v":{"$error":"#N/A"}}]
["C","1950-01-01","9999-12-31",1,"Attorney III",20000142,"C17",8810,1.6000000000000001E-3,81074.789999999994,129719.67,null,null,"Major Succession",20052676,"x",null,null,null,null,null,null,null,null,null,null,null,null,"C","1950-01-01","9999-12-31",1,"Assoc Judge/Magistrate/Referee",20000271,"NCF01",8810,1.6000000000000001E-3,15080,500000,88013,"COURT SERVICES",{"$f":"_xlfn.XLOOKUP(job_titles17[[#This Row],[Extended object ID]],O:O,P:P)","v":{"$error":"#N/A"}}]
["C","1950-01-01","9999-12-31",1,"Attorney IV",20000143,"C18",8810,1.6000000000000001E-3,86761.41,138818.25,null,null,"Patient Representative",20000204,"x",null,null,null,null,null,null,null,null,null,null,null,null,"C","2019-09-25","9999-12-31",1,"Asst Chief Pilot",20053378,"C19",7422,1.3299999999999999E-2,92836.33,148538.12,88012,"PUBLIC SAF/EMG MGMT",{"$f":"_xlfn.XLOOKUP(job_titles17[[#This Row],[Extended object ID]],O:O,P:P)","v":{"$error":"#N/A"}}]
["C","1950-01-01","9999-12-31",1,"Attorney V",20000144,"C20",8810,1.6000000000000001E-3,99345.18,158952.29,null,null,"Physician I Temp",20000430,"x",null,null,null,null,null,null,null,null,null,null,null,null,"C","2021-10-02","9999-12-31",1,"Asst HR Dir Tal Plan Engage",20054377,"C21",8810,1.6000000000000001E-3,106310.9,175412.99,88014,"MANAGEMENT",{"$f":"_xlfn.XLOOKUP(job_titles17[[#This Row],[Extended object ID]],O:O,P:P)","v":{"$error":"#N/A"}}]
["C","1950-01-01","9999-12-31",1,"Attorney VI",20000145,"C21",8810,1.6000000000000001E-3,106310.9,175412.99,null,null,"Physician II Succession",20050801,"x",null,null,null,null,null,null,null,null,null,null,null,null,"C","2012-10-01","9999-12-31",1,"Asst Public Works Dir",20050084,"C20",5606,5.5999999999999999E-3,99345.18,158952.29,88014,"MANAGEMENT",{"$f":"_xlfn.XLOOKUP(job_titles17[[#This Row],[Extended object ID]],O:O,P:P)","v":{"$error":"#N/A"}}]
["C","1950-01-01","9999-12-31",1,"Attorney VII",20000146,"C22",8810,1.6000000000000001E-3,113755.98,187697.37,null,null,"Planner Sr Succession",20050676,"x",null,null,null,null,null,null,null,null,null,null,null,null,"C","1950-01-01","9999-12-31",1,"Attorney Deputy Chief Sr",20000335,"C26",8810,1.6000000000000001E-3,149111.1,246033.32,88014,"MANAGEMENT",{"$f":"_xlfn.XLOOKUP(job_titles17[[#This Row],[Extended object ID]],O:O,P:P)","v":{"$error":"#N/A"}}]
["C","1950-01-01","9999-12-31",1,"Aud Administrative Analyst",20000548,"AUD18",8810,1.6000000000000001E-3,53000,84801,null,null,"Planning Mgr Succession",20051276,"x",null,null,null,null,null,null,null,null,null,null,null,null,"C","1950-01-01","9999-12-31",1,"Attorney I",20000140,"C14",8810,1.6000000000000001E-3,66183.97,105894.35,88006,"ATTORNEYS",{"$f":"_xlfn.XLOOKUP(job_titles17[[#This Row],[Extended object ID]],O:O,P:P)","v":{"$error":"#N/A"}}]
["C","1950-01-01","9999-12-31",1,"Aud Application Architect I",20000562,"AUD27",8810,1.6000000000000001E-3,101079,171834,null,null,"Project Mgr Succession",20051451,"x",null,null,null,null,null,null,null,null,null,null,null,null,"C","1950-01-01","9999-12-31",1,"Attorney II",20000141,"C15",8810,1.6000000000000001E-3,70819.7,113311.53,88006,"ATTORNEYS",{"$f":"_xlfn.XLOOKUP(job_titles17[[#This Row],[Extended object ID]],O:O,P:P)","v":{"$error":"#N/A"}}]
["C","1950-01-01","9999-12-31",1,"Aud Application Architect II",20000563,"AUD28",8810,1.6000000000000001E-3,109165,185580,null,null,"Public Defender Mental Health Succession",20050802,"x",null,null,null,null,null,null,null,null,null,null,null,null,"C","1950-01-01","9999-12-31",1,"Attorney III",20000142,"C17",8810,1.6000000000000001E-3,81074.789999999994,129719.67,88006,"ATTORNEYS",{"$f":"_xlfn.XLOOKUP(job_titles17[[#This Row],[Extended object ID]],O:O,P:P)","v":{"$error":"#N/A"}}]
["C","1950-01-01","9999-12-31",1,"Aud Application Dev Analyst I",20000564,"AUD23",8810,1.6000000000000001E-3,74297,126304,null,null,"Pur Asst Purchasing Agent Succession",20051101,"x",null,null,null,null,null,null,null,null,null,null,null,null,"C","1950-01-01","9999-12-31",1,"Attorney IV",20000143,"C18",8810,1.6000000000000001E-3,86761.41,138818.25,88006,"ATTORNEYS",{"$f":"_xlfn.XLOOKUP(job_titles17[[#This Row],[Extended object ID]],O:O,P:P)","v":{"$error":"#N/A"}}]
["C","1950-01-01","9999-12-31",1,"Aud Application Dev Analyst II",20000565,"AUD25",8810,1.6000000000000001E-3,86659,147320,null,null,"Pur Asst Purchasing Agent Succession",20051601,"x",null,null,null,null,null,null,null,null,null,null,null,null,"C","1950-01-01","9999-12-31",1,"Attorney V",20000144,"C20",8810,1.6000000000000001E-3,99345.18,158952.29,88006,"ATTORNEYS",{"$f":"_xlfn.XLOOKUP(job_titles17[[#This Row],[Extended object ID]],O:O,P:P)","v":{"$error":"#N/A"}}]
["C","1950-01-01","9999-12-31",1,"Aud Application Dev Analyst III",20000566,"AUD26",8810,1.6000000000000001E-3,93592,159105,null,null,"Risk Benefits Mgr Sr Succession",20050003,"x",null,null,null,null,null,null,null,null,null,null,null,null,"C","1950-01-01","9999-12-31",1,"Attorney VI",20000145,"C21",8810,1.6000000000000001E-3,106310.9,175412.99,88006,"ATTORNEYS",{"$f":"_xlfn.XLOOKUP(job_titles17[[#This Row],[Extended object ID]],O:O,P:P)","v":{"$error":"#N/A"}}]
["C","2013-09-03","9999-12-31",1,"Aud Application Security Administrator",20050361,"AUD25",8810,1.6000000000000001E-3,86659,147320,null,null,"Telecommunications Mgr Succession",20051676,"x",null,null,null,null,null,null,null,null,null,null,null,null,"C","1950-01-01","9999-12-31",1,"Attorney VII",20000146,"C22",8810,1.6000000000000001E-3,113755.98,187697.37,88006,"ATTORNEYS",{"$f":"_xlfn.XLOOKUP(job_titles17[[#This Row],[Extended object ID]],O:O,P:P)","v":{"$error":"#N/A"}}]
["C","2013-09-03","9999-12-31",1,"Aud Application Security Architect I",20050360,"AUD26",8810,1.6000000000000001E-3,93592,159105,null,null,null,"Extended object ID","x",null,null,null,null,null,null,null,null,null,null,null,null,"C","1950-01-01","9999-12-31",1,"Aud Administrative Analyst",20000548,"AUD18",8810,1.6000000000000001E-3,53000,84801,88026,"AUDITOR",{"$f":"_xlfn.XLOOKUP(job_titles17[[#This Row],[Extended object ID]],O:O,P:P)","v":{"$error":"#N/A"}}]
["C","2013-10-01","9999-12-31",1,"Aud Application Security Architect II",20050359,"AUD27",8810,1.6000000000000001E-3,101079,171834,null,null,null,20000431,"x",null,null,null,null,null,null,null,null,null,null,null,null,"C","1950-01-01","9999-12-31",1,"Aud Application Architect I",20000562,"AUD27",8810,1.6000000000000001E-3,101079,171834,88026,"AUDITOR",{"$f":"_xlfn.XLOOKUP(job_titles17[[#This Row],[Extended object ID]],O:O,P:P)","v":{"$error":"#N/A"}}]
["C","1950-01-01","9999-12-31",1,"Aud Auditor Assoc I",20000575,"AUD17",8810,1.6000000000000001E-3,49533,79253,null,null,null,20000429,"x",null,null,null,null,null,null,null,null,null,null,null,null,"C","1950-01-01","9999-12-31",1,"Aud Application Architect II",20000563,"AUD28",8810,1.6000000000000001E-3,109165,185580,88026,"AUDITOR",{"$f":"_xlfn.XLOOKUP(job_titles17[[#This Row],[Extended object ID]],O:O,P:P)","v":{"$error":"#N/A"}}]
["C","1950-01-01","9999-12-31",1,"Aud Auditor Assoc II",20000576,"AUD18",8810,1.6000000000000001E-3,53000,84801,null,null,null,20050002,"x",null,null,null,null,null,null,null,null,null,null,null,null,"C","1950-01-01","9999-12-31",1,"Aud Application Dev Analyst I",20000564,"AUD23",8810,1.6000000000000001E-3,74297,126304,88026,"AUDITOR",{"$f":"_xlfn.XLOOKUP(job_titles17[[#This Row],[Extended object ID]],O:O,P:P)","v":{"$error":"#N/A"}}]
["C","2018-10-01","9999-12-31",1,"Aud Auditor Assoc III",20052703,"AUD20",8810,1.6000000000000001E-3,58978,100263,null,null,null,20000644,"x",null,null,null,null,null,null,null,null,null,null,null,null,"C","1950-01-01","9999-12-31",1,"Aud Application Dev Analyst II",20000565,"AUD25",8810,1.6000000000000001E-3,86659,147320,88026,"AUDITOR",{"$f":"_xlfn.XLOOKUP(job_titles17[[#This Row],[Extended object ID]],O:O,P:P)","v":{"$error":"#N/A"}}]
["C","2013-09-03","9999-12-31",1,"Aud BI Architect I",20050354,"AUD27",8810,1.6000000000000001E-3,101079,171834,null,null,null,20000518,"x",null,null,null,null,null,null,null,null,null,null,null,null,"C","1950-01-01","9999-12-31",1,"Aud Application Dev Analyst III",20000566,"AUD26",8810,1.6000000000000001E-3,93592,159105,88026,"AUDITOR",{"$f":"_xlfn.XLOOKUP(job_titles17[[#This Row],[Extended object ID]],O:O,P:P)","v":{"$error":"#N/A"}}]
["C","1950-01-01","9999-12-31",1,"Aud BI Architect II",20000570,"AUD28",8810,1.6000000000000001E-3,109165,185580,null,null,null,20000294,"x",null,null,null,null,null,null,null,null,null,null,null,null,"C","2013-09-03","9999-12-31",1,"Aud Application Security Administrator",20050361,"AUD25",8810,1.6000000000000001E-3,86659,147320,88026,"AUDITOR",{"$f":"_xlfn.XLOOKUP(job_titles17[[#This Row],[Extended object ID]],O:O,P:P)","v":{"$error":"#N/A"}}]
["C","2013-09-11","9999-12-31",1,"Aud BI Dev Analyst I",20050356,"AUD23",8810,1.6000000000000001E-3,74297,126304,null,null,null,20000512,"x",null,null,null,null,null,null,null,null,null,null,null,null,"C","2013-09-03","9999-12-31",1,"Aud Application Security Architect I",20050360,"AUD26",8810,1.6000000000000001E-3,93592,159105,88026,"AUDITOR",{"$f":"_xlfn.XLOOKUP(job_titles17[[#This Row],[Extended object ID]],O:O,P:P)","v":{"$error":"#N/A"}}]
["C","2013-09-03","9999-12-31",1,"Aud BI Dev Analyst II",20050355,"AUD25",8810,1.6000000000000001E-3,86659,147320,null,null,null,20000505,"x",null,null,null,null,null,null,null,null,null,null,null,null,"C","2013-10-01","9999-12-31",1,"Aud Application Security Architect II",20050359,"AUD27",8810,1.6000000000000001E-3,101079,171834,88026,"AUDITOR",{"$f":"_xlfn.XLOOKUP(job_titles17[[#This Row],[Extended object ID]],O:O,P:P)","v":{"$error":"#N/A"}}]
["C","1950-01-01","9999-12-31",1,"Aud BI Dev Analyst III",20000569,"AUD26",8810,1.6000000000000001E-3,93592,159105,null,null,null,20000514,"x",null,null,null,null,null,null,null,null,null,null,null,null,"C","1950-01-01","9999-12-31",1,"Aud Auditor Assoc I",20000575,"AUD17",8810,1.6000000000000001E-3,49533,79253,88026,"AUDITOR",{"$f":"_xlfn.XLOOKUP(job_titles17[[#This Row],[Extended object ID]],O:O,P:P)","v":{"$error":"#N/A"}}]
["C","2013-09-10","9999-12-31",1,"Aud Business Analyst I",20050353,"AUD22",8810,1.6000000000000001E-3,68793,116948,null,null,null,20000503,"x",null,null,null,null,null,null,null,null,null,null,null,null,"C","1950-01-01","9999-12-31",1,"Aud Auditor Assoc II",20000576,"AUD18",8810,1.6000000000000001E-3,53000,84801,88026,"AUDITOR",{"$f":"_xlfn.XLOOKUP(job_titles17[[#This Row],[Extended object ID]],O:O,P:P)","v":{"$error":"#N/A"}}]
["C","2013-10-01","9999-12-31",1,"Aud Business Analyst II",20050352,"AUD24",8810,1.6000000000000001E-3,80240,136408,null,null,null,20000501,"x",null,null,null,null,null,null,null,null,null,null,null,null,"C","2018-10-01","9999-12-31",1,"Aud Auditor Assoc III",20052703,"AUD20",8810,1.6000000000000001E-3,58978,100263,88026,"AUDITOR",{"$f":"_xlfn.XLOOKUP(job_titles17[[#This Row],[Extended object ID]],O:O,P:P)","v":{"$error":"#N/A"}}]
["C","1950-01-01","9999-12-31",1,"Aud Business Analyst III",20000559,"AUD25",8810,1.6000000000000001E-3,86659,147320,null,null,null,20000502,"x",null,null,null,null,null,null,null,null,null,null,null,null,"C","2013-09-03","9999-12-31",1,"Aud BI Architect I",20050354,"AUD27",8810,1.6000000000000001E-3,101079,171834,88026,"AUDITOR",{"$f":"_xlfn.XLOOKUP(job_titles17[[#This Row],[Extended object ID]],O:O,P:P)","v":{"$error":"#N/A"}}]
["C","1950-01-01","9999-12-31",1,"Aud Business Consultant I",20000560,"AUD26",8810,1.6000000000000001E-3,93592,159105,null,null,null,20000149,"x",null,null,null,null,null,null,null,null,null,null,null,null,"C","1950-01-01","9999-12-31",1,"Aud BI Architect II",20000570,"AUD28",8810,1.6000000000000001E-3,109165,185580,88026,"AUDITOR",{"$f":"_xlfn.XLOOKUP(job_titles17[[#This Row],[Extended object ID]],O:O,P:P)","v":{"$error":"#N/A"}}]
["C","2023-10-31","9999-12-31",1,"Aud Business Consultant I Succession",20055778,"AUD26",8810,1.6000000000000001E-3,93592,159105,null,null,null,20000150,"x",null,null,null,null,null,null,null,null,null,null,null,null,"C","2013-09-11","9999-12-31",1,"Aud BI Dev Analyst I",20050356,"AUD23",8810,1.6000000000000001E-3,74297,126304,88026,"AUDITOR",{"$f":"_xlfn.XLOOKUP(job_titles17[[#This Row],[Extended object ID]],O:O,P:P)","v":{"$error":"#N/A"}}]
["C","1950-01-01","9999-12-31",1,"Aud Business Consultant II",20000561,"AUD28",8810,1.6000000000000001E-3,109165,185580,null,null,null,20000148,"x",null,null,null,null,null,null,null,null,null,null,null,null,"C","2013-09-03","9999-12-31",1,"Aud BI Dev Analyst II",20050355,"AUD25",8810,1.6000000000000001E-3,86659,147320,88026,"AUDITOR",{"$f":"_xlfn.XLOOKUP(job_titles17[[#This Row],[Extended object ID]],O:O,P:P)","v":{"$error":"#N/A"}}]
["C","2023-03-15","9999-12-31",1,"Aud Business Support Manager-ERP",20055526,"AUD30",8810,1.6000000000000001E-3,132089,224552,null,null,null,20000151,"x",null,null,null,null,null,null,null,null,null,null,null,null,"C","1950-01-01","9999-12-31",1,"Aud BI Dev Analyst III",20000569,"AUD26",8810,1.6000000000000001E-3,93592,159105,88026,"AUDITOR",{"$f":"_xlfn.XLOOKUP(job_titles17[[#This Row],[Extended object ID]],O:O,P:P)","v":{"$error":"#N/A"}}]
["C","1950-01-01","9999-12-31",1,"Aud County Auditor Chief Asst I",20000585,"AUD30",8810,1.6000000000000001E-3,132089,224552,null,null,null,20000152,"x",null,null,null,null,null,null,null,null,null,null,null,null,"C","2013-09-10","9999-12-31",1,"Aud Business Analyst I",20050353,"AUD22",8810,1.6000000000000001E-3,68793,116948,88026,"AUDITOR",{"$f":"_xlfn.XLOOKUP(job_titles17[[#This Row],[Extended object ID]],O:O,P:P)","v":{"$error":"#N/A"}}]
["C","1950-01-01","9999-12-31",1,"Aud County Auditor Chief Asst II",20000586,"AUD31",8810,1.6000000000000001E-3,145298,247007,null,null,null,20050085,"x",null,null,null,null,null,null,null,null,null,null,null,null,"C","2013-10-01","9999-12-31",1,"Aud Business Analyst II",20050352,"AUD24",8810,1.6000000000000001E-3,80240,136408,88026,"AUDITOR",{"$f":"_xlfn.XLOOKUP(job_titles17[[#This Row],[Extended object ID]],O:O,P:P)","v":{"$error":"#N/A"}}]
["C","1950-01-01","9999-12-31",1,"Aud County Auditor First Asst",20000587,"AUD32",8810,1.6000000000000001E-3,159828,271708,null,null,null,20000500,"x",null,null,null,null,null,null,null,null,null,null,null,null,"C","1950-01-01","9999-12-31",1,"Aud Business Analyst III",20000559,"AUD25",8810,1.6000000000000001E-3,86659,147320,88026,"AUDITOR",{"$f":"_xlfn.XLOOKUP(job_titles17[[#This Row],[Extended object ID]],O:O,P:P)","v":{"$error":"#N/A"}}]
["C","2020-10-01","9999-12-31",1,"Aud Data Scientist",20053802,"AUD25",8810,1.6000000000000001E-3,86659,147320,null,null,null,20000504,"x",null,null,null,null,null,null,null,null,null,null,null,null,"C","1950-01-01","9999-12-31",1,"Aud Business Consultant I",20000560,"AUD26",8810,1.6000000000000001E-3,93592,159105,88026,"AUDITOR",{"$f":"_xlfn.XLOOKUP(job_titles17[[#This Row],[Extended object ID]],O:O,P:P)","v":{"$error":"#N/A"}}]
["C","1950-01-01","9999-12-31",1,"Aud ERP System Administrator I",20000556,"AUD25",8810,1.6000000000000001E-3,86659,147320,null,null,null,20050201,"x",null,null,null,null,null,null,null,null,null,null,null,null,"C","2023-10-31","9999-12-31",1,"Aud Business Consultant I Succession",20055778,"AUD26",8810,1.6000000000000001E-3,93592,159105,88026,"AUDITOR",{"$f":"_xlfn.XLOOKUP(job_titles17[[#This Row],[Extended object ID]],O:O,P:P)","v":{"$error":"#N/A"}}]
["C","1950-01-01","9999-12-31",1,"Aud ERP System Administrator II",20000557,"AUD26",8810,1.6000000000000001E-3,93592,159105,null,null,null,20000506,"x",null,null,null,null,null,null,null,null,null,null,null,null,"C","1950-01-01","9999-12-31",1,"Aud Business Consultant II",20000561,"AUD28",8810,1.6000000000000001E-3,109165,185580,88026,"AUDITOR",{"$f":"_xlfn.XLOOKUP(job_titles17[[#This Row],[Extended object ID]],O:O,P:P)","v":{"$error":"#N/A"}}]
["C","1950-01-01","9999-12-31",1,"Aud ERP System Architect I",20000558,"AUD28",8810,1.6000000000000001E-3,109165,185580,null,null,null,20000507,"x",null,null,null,null,null,null,null,null,null,null,null,null,"C","2021-04-13","9999-12-31",1,"Aud Business Consultant II Succession",20054076,"AUD28",8810,1.6000000000000001E-3,109165,185580,88026,"AUDITOR",{"$f":"_xlfn.XLOOKUP(job_titles17[[#This Row],[Extended object ID]],O:O,P:P)","v":"x"}]
["C","2013-10-01","9999-12-31",1,"Aud ERP System Architect II",20050357,"AUD30",8810,1.6000000000000001E-3,132089,224552,null,null,null,20000508,"x",null,null,null,null,null,null,null,null,null,null,null,null,"C","2023-03-15","9999-12-31",1,"Aud Business Support Manager-ERP",20055526,"AUD30",8810,1.6000000000000001E-3,132089,224552,88026,"AUDITOR",{"$f":"_xlfn.XLOOKUP(job_titles17[[#This Row],[Extended object ID]],O:O,P:P)","v":{"$error":"#N/A"}}]
["C","1950-01-01","9999-12-31",1,"Aud Executive Asst",20000549,"AUD20",8810,1.6000000000000001E-3,58978,100263,null,null,null,20000417,"x",null,null,null,null,null,null,null,null,null,null,null,null,"C","1950-01-01","9999-12-31",1,"Aud County Auditor Chief Asst I",20000585,"AUD30",8810,1.6000000000000001E-3,132089,224552,88026,"AUDITOR",{"$f":"_xlfn.XLOOKUP(job_titles17[[#This Row],[Extended object ID]],O:O,P:P)","v":{"$error":"#N/A"}}]
["C","2023-10-01","9999-12-31",1,"Aud Fin Aud Anly IV Succession",20055751,"AUD25",8810,1.6000000000000001E-3,86659,147320,null,null,null,20000645,"x",null,null,null,null,null,null,null,null,null,null,null,null,"C","1950-01-01","9999-12-31",1,"Aud County Auditor Chief Asst II",20000586,"AUD31",8810,1.6000000000000001E-3,145298,247007,88026,"AUDITOR",{"$f":"_xlfn.XLOOKUP(job_titles17[[#This Row],[Extended object ID]],O:O,P:P)","v":{"$error":"#N/A"}}]
["C","2023-05-23","9999-12-31",1,"Aud Fin Aud Anly VI Succession",20055576,"AUD27",8810,1.6000000000000001E-3,101079,171834,null,null,null,20000147,"x",null,null,null,null,null,null,null,null,null,null,null,null,"C","1950-01-01","9999-12-31",1,"Aud County Auditor Chief Asst II Sn",20053851,"AUD31",8810,1.6000000000000001E-3,145298,247007,88026,"AUDITOR",{"$f":"_xlfn.XLOOKUP(job_titles17[[#This Row],[Extended object ID]],O:O,P:P)","v":"x"}]
["C","2013-07-01","9999-12-31",1,"AUD Finance/Transparency Support Mgr",20050351,"AUD30",8810,1.6000000000000001E-3,132089,224552,null,null,null,20000427,"x",null,null,null,null,null,null,null,null,null,null,null,null,"C","1950-01-01","9999-12-31",1,"Aud County Auditor First Asst",20000587,"AUD32",8810,1.6000000000000001E-3,159828,271708,88026,"AUDITOR",{"$f":"_xlfn.XLOOKUP(job_titles17[[#This Row],[Extended object ID]],O:O,P:P)","v":{"$error":"#N/A"}}]
["C","1900-01-01","9999-12-31",1,"Aud Financial Audit Mgr",20000583,"AUD28",8810,1.6000000000000001E-3,109165,185580,null,null,null,20000428,"x",null,null,null,null,null,null,null,null,null,null,null,null,"C","2020-10-01","9999-12-31",1,"Aud Data Scientist",20053802,"AUD25",8810,1.6000000000000001E-3,86659,147320,88026,"AUDITOR",{"$f":"_xlfn.XLOOKUP(job_titles17[[#This Row],[Extended object ID]],O:O,P:P)","v":{"$error":"#N/A"}}]
["C","1950-01-01","9999-12-31",1,"Aud Financial Auditor Analyst I",20000577,"AUD20",8810,1.6000000000000001E-3,58978,100263,null,null,null,20000340,"x",null,null,null,null,null,null,null,null,null,null,null,null,"C","1950-01-01","9999-12-31",1,"Aud ERP System Administrator I",20000556,"AUD25",8810,1.6000000000000001E-3,86659,147320,88026,"AUDITOR",{"$f":"_xlfn.XLOOKUP(job_titles17[[#This Row],[Extended object ID]],O:O,P:P)","v":{"$error":"#N/A"}}]
["C","1950-01-01","9999-12-31",1,"Aud Financial Auditor Analyst II",20000578,"AUD21",8810,1.6000000000000001E-3,63697,108285,null,null,null,20050026,"x",null,null,null,null,null,null,null,null,null,null,null,null,"C","1950-01-01","9999-12-31",1,"Aud ERP System Administrator II",20000557,"AUD26",8810,1.6000000000000001E-3,93592,159105,88026,"AUDITOR",{"$f":"_xlfn.XLOOKUP(job_titles17[[#This Row],[Extended object ID]],O:O,P:P)","v":{"$error":"#N/A"}}]
["C","1950-01-01","9999-12-31",1,"Aud Financial Auditor Analyst III",20000579,"AUD23",8810,1.6000000000000001E-3,74297,126304,null,null,null,20000272,"x",null,null,null,null,null,null,null,null,null,null,null,null,"C","1950-01-01","9999-12-31",1,"Aud ERP System Architect I",20000558,"AUD28",8810,1.6000000000000001E-3,109165,185580,88026,"AUDITOR",{"$f":"_xlfn.XLOOKUP(job_titles17[[#This Row],[Extended object ID]],O:O,P:P)","v":{"$error":"#N/A"}}]
["C","1950-01-01","9999-12-31",1,"Aud Financial Auditor Analyst IV",20000580,"AUD25",8810,1.6000000000000001E-3,86659,147320,null,null,null,20000509,"x",null,null,null,null,null,null,null,null,null,null,null,null,"C","2013-10-01","9999-12-31",1,"Aud ERP System Architect II",20050357,"AUD30",8810,1.6000000000000001E-3,132089,224552,88026,"AUDITOR",{"$f":"_xlfn.XLOOKUP(job_titles17[[#This Row],[Extended object ID]],O:O,P:P)","v":{"$error":"#N/A"}}]
["C","1950-01-01","9999-12-31",1,"Aud Financial Auditor Analyst V",20000581,"AUD26",8810,1.6000000000000001E-3,93592,159105,null,null,null,20000516,"x",null,null,null,null,null,null,null,null,null,null,null,null,"C","1950-01-01","9999-12-31",1,"Aud Executive Asst",20000549,"AUD20",8810,1.6000000000000001E-3,58978,100263,88026,"AUDITOR",{"$f":"_xlfn.XLOOKUP(job_titles17[[#This Row],[Extended object ID]],O:O,P:P)","v":{"$error":"#N/A"}}]
["C","1950-01-01","9999-12-31",1,"Aud Financial Auditor Analyst VI",20000582,"AUD27",8810,1.6000000000000001E-3,101079,171834,null,null,null,20000217,"x",null,null,null,null,null,null,null,null,null,null,null,null,"C","2023-10-01","9999-12-31",1,"Aud Fin Aud Anly IV Succession",20055751,"AUD25",8810,1.6000000000000001E-3,86659,147320,88026,"AUDITOR",{"$f":"_xlfn.XLOOKUP(job_titles17[[#This Row],[Extended object ID]],O:O,P:P)","v":{"$error":"#N/A"}}]
["C","1950-01-01","9999-12-31",1,"Aud Financial Systems Director-ERP",20000584,"AUD31",8810,1.6000000000000001E-3,145298,247007,null,null,null,20000079,"x",null,null,null,null,null,null,null,null,null,null,null,null,"C","2023-05-23","9999-12-31",1,"Aud Fin Aud Anly VI Succession",20055576,"AUD27",8810,1.6000000000000001E-3,101079,171834,88026,"AUDITOR",{"$f":"_xlfn.XLOOKUP(job_titles17[[#This Row],[Extended object ID]],O:O,P:P)","v":{"$error":"#N/A"}}]
["C","2020-10-01","9999-12-31",1,"Aud Lead Data Scientist",20053804,"AUD28",8810,1.6000000000000001E-3,109165,185580,null,null,null,20000602,"x",null,null,null,null,null,null,null,null,null,null,null,null,"C","2022-04-20","9999-12-31",1,"AUD Fin/TP Support Mgr Succession",20054804,"AUD30",8810,1.6000000000000001E-3,132089,224552,88026,"AUDITOR",{"$f":"_xlfn.XLOOKUP(job_titles17[[#This Row],[Extended object ID]],O:O,P:P)","v":"x"}]
["C","1950-01-01","9999-12-31",1,"Aud Office Mgr",20000550,"AUD20",8810,1.6000000000000001E-3,58978,100263,null,null,null,20000510,"x",null,null,null,null,null,null,null,null,null,null,null,null,"C","2013-07-01","9999-12-31",1,"AUD Finance/Transparency Support Mgr",20050351,"AUD30",8810,1.6000000000000001E-3,132089,224552,88026,"AUDITOR",{"$f":"_xlfn.XLOOKUP(job_titles17[[#This Row],[Extended object ID]],O:O,P:P)","v":{"$error":"#N/A"}}]
["C","1950-01-01","9999-12-31",1,"Aud Office Specialist",20000544,"AUD16",8810,1.6000000000000001E-3,46292,74068,null,null,null,20000332,"x",null,null,null,null,null,null,null,null,null,null,null,null,"C","1900-01-01","9999-12-31",1,"Aud Financial Audit Mgr",20000583,"AUD28",8810,1.6000000000000001E-3,109165,185580,88026,"AUDITOR",{"$f":"_xlfn.XLOOKUP(job_titles17[[#This Row],[Extended object ID]],O:O,P:P)","v":{"$error":"#N/A"}}]
["C","1950-01-01","9999-12-31","1900-01-01","Aud Office Specialist Sr",20000545,"AUD17",8810,1.6000000000000001E-3,49533,79253,null,null,null,20000515,"x",null,null,null,null,null,null,null,null,null,null,null,null,"C","1950-01-01","9999-12-31",1,"Aud Financial Auditor Analyst I",20000577,"AUD20",8810,1.6000000000000001E-3,58978,100263,88026,"AUDITOR",{"$f":"_xlfn.XLOOKUP(job_titles17[[#This Row],[Extended object ID]],O:O,P:P)","v":{"$error":"#N/A"}}]
["C","1950-01-01","9999-12-31",1,"Aud Records Analyst Assoc",20000553,"AUD17",8810,1.6000000000000001E-3,49533,79253,null,null,null,20050003,"x",null,null,null,null,null,null,null,null,null,null,null,null,"C","1950-01-01","9999-12-31",1,"Aud Financial Auditor Analyst II",20000578,"AUD21",8810,1.6000000000000001E-3,63697,108285,88026,"AUDITOR",{"$f":"_xlfn.XLOOKUP(job_titles17[[#This Row],[Extended object ID]],O:O,P:P)","v":{"$error":"#N/A"}}]
["C","1950-01-01","9999-12-31",1,"Aud Records Analyst Lead",20000555,"AUD20",8810,1.6000000000000001E-3,58978,100263,null,null,null,20000511,"x",null,null,null,null,null,null,null,null,null,null,null,null,"C","1950-01-01","9999-12-31",1,"Aud Financial Auditor Analyst III",20000579,"AUD23",8810,1.6000000000000001E-3,74297,126304,88026,"AUDITOR",{"$f":"_xlfn.XLOOKUP(job_titles17[[#This Row],[Extended object ID]],O:O,P:P)","v":{"$error":"#N/A"}}]
["C","1950-01-01","9999-12-31",1,"Aud Records Analyst Sr",20000554,"AUD19",8810,1.6000000000000001E-3,55120,93704,null,null,null,20000218,"x",null,null,null,null,null,null,null,null,null,null,null,null,"C","1950-01-01","9999-12-31",1,"Aud Financial Auditor Analyst IV",20000580,"AUD25",8810,1.6000000000000001E-3,86659,147320,88026,"AUDITOR",{"$f":"_xlfn.XLOOKUP(job_titles17[[#This Row],[Extended object ID]],O:O,P:P)","v":{"$error":"#N/A"}}]
["C","2020-10-01","9999-12-31",1,"Aud Senior Data Scientist",20053803,"AUD27",8810,1.6000000000000001E-3,101079,171834,null,null,null,20000513,"x",null,null,null,null,null,null,null,null,null,null,null,null,"C","1950-01-01","9999-12-31",1,"Aud Financial Auditor Analyst V",20000581,"AUD26",8810,1.6000000000000001E-3,93592,159105,88026,"AUDITOR",{"$f":"_xlfn.XLOOKUP(job_titles17[[#This Row],[Extended object ID]],O:O,P:P)","v":{"$error":"#N/A"}}]
["C","1950-01-01","9999-12-31",1,"Aud Systems Engineer I",20000571,"AUD23",8810,1.6000000000000001E-3,74297,126304,null,null,null,20000607,"x",null,null,null,null,null,null,null,null,null,null,null,null,"C","1950-01-01","9999-12-31",1,"Aud Financial Auditor Analyst VI",20000582,"AUD27",8810,1.6000000000000001E-3,101079,171834,88026,"AUDITOR",{"$f":"_xlfn.XLOOKUP(job_titles17[[#This Row],[Extended object ID]],O:O,P:P)","v":{"$error":"#N/A"}}]
["C","1950-01-01","9999-12-31",1,"Aud Systems Engineer II",20000572,"AUD25",8810,1.6000000000000001E-3,86659,147320,null,null,null,20049999,"x",null,null,null,null,null,null,null,null,null,null,null,null,"C","1950-01-01","9999-12-31",1,"Aud Financial Systems Director-ERP",20000584,"AUD31",8810,1.6000000000000001E-3,145298,247007,88026,"AUDITOR",{"$f":"_xlfn.XLOOKUP(job_titles17[[#This Row],[Extended object ID]],O:O,P:P)","v":{"$error":"#N/A"}}]
["C","1950-01-01","9999-12-31",1,"Aud Systems Engineer III",20000573,"AUD26",8810,1.6000000000000001E-3,93592,159105,null,null,null,20000408,"x",null,null,null,null,null,null,null,null,null,null,null,null,"C","2020-10-01","9999-12-31",1,"Aud Lead Data Scientist",20053804,"AUD28",8810,1.6000000000000001E-3,109165,185580,88026,"AUDITOR",{"$f":"_xlfn.XLOOKUP(job_titles17[[#This Row],[Extended object ID]],O:O,P:P)","v":{"$error":"#N/A"}}]
["C","2020-10-01","9999-12-31",5,"Audit business Long",20053926,"AUD26",null,null,93592,159105,null,null,null,20000409,"x",null,null,null,null,null,null,null,null,null,null,null,null,"C","1950-01-01","9999-12-31",1,"Aud Office Mgr",20000550,"AUD20",8810,1.6000000000000001E-3,58978,100263,88026,"AUDITOR",{"$f":"_xlfn.XLOOKUP(job_titles17[[#This Row],[Extended object ID]],O:O,P:P)","v":{"$error":"#N/A"}}]
["C","1950-01-01","9999-12-31",1,"Autopsy Tech",20000066,"C07",8833,4.7999999999999996E-3,50398.3,68037.710000000006,null,null,null,20000410,"x",null,null,null,null,null,null,null,null,null,null,null,null,"C","1950-01-01","9999-12-31",1,"Aud Office Specialist",20000544,"AUD16",8810,1.6000000000000001E-3,46292,74068,88026,"AUDITOR",{"$f":"_xlfn.XLOOKUP(job_titles17[[#This Row],[Extended object ID]],O:O,P:P)","v":{"$error":"#N/A"}}]
["C","1950-01-01","9999-12-31",1,"Autopsy Tech Chief",20000067,"C11",8833,4.7999999999999996E-3,58112.6,87168.9,null,null,null,20000411,"x",null,null,null,null,null,null,null,null,null,null,null,null,"C","1950-01-01","9999-12-31",1,"Aud Office Specialist Sr",20000545,"AUD17",8810,1.6000000000000001E-3,49533,79253,88026,"AUDITOR",{"$f":"_xlfn.XLOOKUP(job_titles17[[#This Row],[Extended object ID]],O:O,P:P)","v":{"$error":"#N/A"}}]
["C","2019-09-30","9999-12-31",1,"Autopsy Tech Chief Deputy",20053283,"C09",8833,4.7999999999999996E-3,53987.92,78282.490000000005,null,null,null,20000412,"x",null,null,null,null,null,null,null,null,null,null,null,null,"C","1950-01-01","9999-12-31",1,"Aud Records Analyst Assoc",20000553,"AUD17",8810,1.6000000000000001E-3,49533,79253,88026,"AUDITOR",{"$f":"_xlfn.XLOOKUP(job_titles17[[#This Row],[Extended object ID]],O:O,P:P)","v":{"$error":"#N/A"}}]
["C","2023-09-26","9999-12-31",1,"BCP Visitor Center Manager",20055727,"C13",8810,1.6000000000000001E-3,62854.59,100567.34,null,null,null,20000413,"x",null,null,null,null,null,null,null,null,null,null,null,null,"C","1950-01-01","9999-12-31",1,"Aud Records Analyst Lead",20000555,"AUD20",8810,1.6000000000000001E-3,58978,100263,88026,"AUDITOR",{"$f":"_xlfn.XLOOKUP(job_titles17[[#This Row],[Extended object ID]],O:O,P:P)","v":{"$error":"#N/A"}}]
["C","1950-01-01","9999-12-31",1,"Benefits Administrator",20000386,"C14",8810,1.6000000000000001E-3,66183.97,105894.35,null,null,null,20000414,"x",null,null,null,null,null,null,null,null,null,null,null,null,"C","1950-01-01","9999-12-31",1,"Aud Records Analyst Sr",20000554,"AUD19",8810,1.6000000000000001E-3,55120,93704,88026,"AUDITOR",{"$f":"_xlfn.XLOOKUP(job_titles17[[#This Row],[Extended object ID]],O:O,P:P)","v":{"$error":"#N/A"}}]
["C","2021-10-02","9999-12-31",1,"Benefits Manager",20054456,"C18",8810,1.6000000000000001E-3,86761.41,138818.25,null,null,null,20000415,"x",null,null,null,null,null,null,null,null,null,null,null,null,"C","2020-10-01","9999-12-31",1,"Aud Senior Data Scientist",20053803,"AUD27",8810,1.6000000000000001E-3,101079,171834,88026,"AUDITOR",{"$f":"_xlfn.XLOOKUP(job_titles17[[#This Row],[Extended object ID]],O:O,P:P)","v":{"$error":"#N/A"}}]
["C","2015-10-01","9999-12-31",1,"Benefits Specialist",20051154,"C09",8810,1.6000000000000001E-3,53987.92,78282.490000000005,null,null,null,20000416,"x",null,null,null,null,null,null,null,null,null,null,null,null,"C","1950-01-01","9999-12-31",1,"Aud Systems Engineer I",20000571,"AUD23",8810,1.6000000000000001E-3,74297,126304,88026,"AUDITOR",{"$f":"_xlfn.XLOOKUP(job_titles17[[#This Row],[Extended object ID]],O:O,P:P)","v":{"$error":"#N/A"}}]
["C","1950-01-01","9999-12-31",1,"Budget Asst Dir",20000275,"C19",8810,1.6000000000000001E-3,92836.33,148538.12,null,null,null,20000405,"x",null,null,null,null,null,null,null,null,null,null,null,null,"C","1950-01-01","9999-12-31",1,"Aud Systems Engineer II",20000572,"AUD25",8810,1.6000000000000001E-3,86659,147320,88026,"AUDITOR",{"$f":"_xlfn.XLOOKUP(job_titles17[[#This Row],[Extended object ID]],O:O,P:P)","v":{"$error":"#N/A"}}]
["C","1950-01-01","9999-12-31",1,"Budget Dir",20000276,"C24",8810,1.6000000000000001E-3,130239.35,214894.92,null,null,null,20000407,"x",null,null,null,null,null,null,null,null,null,null,null,null,"C","1950-01-01","9999-12-31",1,"Aud Systems Engineer III",20000573,"AUD26",8810,1.6000000000000001E-3,93592,159105,88026,"AUDITOR",{"$f":"_xlfn.XLOOKUP(job_titles17[[#This Row],[Extended object ID]],O:O,P:P)","v":{"$error":"#N/A"}}]
["C","2021-05-18","9999-12-31",1,"Building Automation System Specialist",20054104,"C10",8810,1.6000000000000001E-3,55877.5,82698.7,null,null,null,20050701,"x",null,null,null,null,null,null,null,null,null,null,null,null,"C","2020-10-01","9999-12-31",5,"Audit business Long",20053926,"AUD26",null,null,93592,159105,88026,"AUDITOR",{"$f":"_xlfn.XLOOKUP(job_titles17[[#This Row],[Extended object ID]],O:O,P:P)","v":{"$error":"#N/A"}}]
["C","2021-06-22","9999-12-31",1,"Building Energy Manager",20054153,"C14",8810,1.6000000000000001E-3,66183.97,105894.35,null,null,null,20050751,"x",null,null,null,null,null,null,null,null,null,null,null,null,"C","1950-01-01","9999-12-31",1,"Autopsy Tech",20000066,"C07",8833,4.7999999999999996E-3,50398.3,68037.710000000006,88003,"MEDICAL",{"$f":"_xlfn.XLOOKUP(job_titles17[[#This Row],[Extended object ID]],O:O,P:P)","v":{"$error":"#N/A"}}]
["C","2014-05-06","9999-12-31",1,"Building Maintenance & Repair Div Mgr",20050626,"C18",9015,1.8800000000000001E-2,86761.41,138818.25,null,null,null,20050776,"x",null,null,null,null,null,null,null,null,null,null,null,null,"C","1950-01-01","9999-12-31",1,"Autopsy Tech Chief",20000067,"C11",8833,4.7999999999999996E-3,58112.6,87168.9,88003,"MEDICAL",{"$f":"_xlfn.XLOOKUP(job_titles17[[#This Row],[Extended object ID]],O:O,P:P)","v":{"$error":"#N/A"}}]
["C","2019-02-19","9999-12-31",1,"Building Maintenance & Repr Asst Div Mgr",20052977,"C12",9015,1.8800000000000001E-2,60437.1,90655.66,null,null,null,20050801,"x",null,null,null,null,null,null,null,null,null,null,null,null,"C","2019-09-30","9999-12-31",1,"Autopsy Tech Chief Deputy",20053283,"C09",8833,4.7999999999999996E-3,53987.92,78282.490000000005,88003,"MEDICAL",{"$f":"_xlfn.XLOOKUP(job_titles17[[#This Row],[Extended object ID]],O:O,P:P)","v":{"$error":"#N/A"}}]
["C","1950-01-01","9999-12-31",1,"Building Maintenance Coord",20000009,"C07",9015,1.8800000000000001E-2,50398.3,68037.710000000006,null,null,null,20050802,"x",null,null,null,null,null,null,null,null,null,null,null,null,"C","2023-09-26","9999-12-31",1,"BCP Visitor Center Manager",20055727,"C13",8810,1.6000000000000001E-3,62854.59,100567.34,88015,"PROFESSIONAL SUPP",{"$f":"_xlfn.XLOOKUP(job_titles17[[#This Row],[Extended object ID]],O:O,P:P)","v":{"$error":"#N/A"}}]
["C","1950-01-01","9999-12-31",1,"Building Maintenance Div Mgr",20000339,"C18",9015,1.8800000000000001E-2,86761.41,138818.25,null,null,null,20050901,"x",null,null,null,null,null,null,null,null,null,null,null,null,"C","1950-01-01","9999-12-31",1,"Benefits Administrator",20000386,"C14",8810,1.6000000000000001E-3,66183.97,105894.35,88016,"HUMAN RESOURCES",{"$f":"_xlfn.XLOOKUP(job_titles17[[#This Row],[Extended object ID]],O:O,P:P)","v":{"$error":"#N/A"}}]
["C","1950-01-01","9999-12-31",1,"Building Maintenance Supt",20000011,"C10",9015,1.8800000000000001E-2,55877.5,82698.7,null,null,null,20050951,"x",null,null,null,null,null,null,null,null,null,null,null,null,"C","2021-10-02","9999-12-31",1,"Benefits Manager",20054456,"C18",8810,1.6000000000000001E-3,86761.41,138818.25,88016,"HUMAN RESOURCES",{"$f":"_xlfn.XLOOKUP(job_titles17[[#This Row],[Extended object ID]],O:O,P:P)","v":{"$error":"#N/A"}}]
["C","1950-01-01","9999-12-31",1,"Building Maintenance Supv",20000010,"C09",9015,1.8800000000000001E-2,53987.92,78282.490000000005,null,null,null,20050576,"x",null,null,null,null,null,null,null,null,null,null,null,null,"C","2015-10-01","9999-12-31",1,"Benefits Specialist",20051154,"C09",8810,1.6000000000000001E-3,53987.92,78282.490000000005,88016,"HUMAN RESOURCES",{"$f":"_xlfn.XLOOKUP(job_titles17[[#This Row],[Extended object ID]],O:O,P:P)","v":{"$error":"#N/A"}}]
["C","1950-01-01","9999-12-31",1,"Building Maintenance Worker",20000007,"C04",9015,1.8800000000000001E-2,45898.78,59668.41,null,null,null,20050526,"x",null,null,null,null,null,null,null,null,null,null,null,null,"C","1950-01-01","9999-12-31",1,"Budget Asst Dir",20000275,"C19",8810,1.6000000000000001E-3,92836.33,148538.12,88014,"MANAGEMENT",{"$f":"_xlfn.XLOOKUP(job_titles17[[#This Row],[Extended object ID]],O:O,P:P)","v":{"$error":"#N/A"}}]
["C","1950-01-01","9999-12-31",1,"Building Maintenance Worker Sr",20000008,"C06",9015,1.8800000000000001E-2,48694.01,65736.92,null,null,null,20050851,"x",null,null,null,null,null,null,null,null,null,null,null,null,"C","1950-01-01","9999-12-31",1,"Budget Dir",20000276,"C24",8810,1.6000000000000001E-3,130239.35,214894.92,88014,"MANAGEMENT",{"$f":"_xlfn.XLOOKUP(job_titles17[[#This Row],[Extended object ID]],O:O,P:P)","v":{"$error":"#N/A"}}]
["C","2015-04-28","9999-12-31",1,"Building Operations Division Manager",20050977,"C13",9015,1.8800000000000001E-2,62854.59,100567.34,null,null,null,20050876,"x",null,null,null,null,null,null,null,null,null,null,null,null,"C","2021-05-18","9999-12-31",1,"Building Automation System Specialist",20054104,"C10",8810,1.6000000000000001E-3,55877.5,82698.7,88002,"SKILLED TRADES",{"$f":"_xlfn.XLOOKUP(job_titles17[[#This Row],[Extended object ID]],O:O,P:P)","v":{"$error":"#N/A"}}]
["C","1950-01-01","9999-12-31",1,"Building Operations Worker",20000005,"C03",9015,1.8800000000000001E-2,44561.919999999998,57930.5,null,null,"Administrative Assoc Succession",20055377,"x",null,null,null,null,null,null,null,null,null,null,null,null,"C","2021-06-22","9999-12-31",1,"Building Energy Manager",20054153,"C14",8810,1.6000000000000001E-3,66183.97,105894.35,88002,"SKILLED TRADES",{"$f":"_xlfn.XLOOKUP(job_titles17[[#This Row],[Extended object ID]],O:O,P:P)","v":{"$error":"#N/A"}}]
["C","2016-06-01","9999-12-31",1,"Building Security Coordinator",20051501,"C06",9015,1.8800000000000001E-2,48694.01,65736.92,null,null,"Aud Business Consultant II Succession",20054076,"x",null,null,null,null,null,null,null,null,null,null,null,null,"C","2014-05-06","9999-12-31",1,"Building Maintenance & Repair Div Mgr",20050626,"C18",9015,1.8800000000000001E-2,86761.41,138818.25,88014,"MANAGEMENT",{"$f":"_xlfn.XLOOKUP(job_titles17[[#This Row],[Extended object ID]],O:O,P:P)","v":{"$error":"#N/A"}}]
["C","1950-01-01","9999-12-31",1,"Building Security Guard",20000012,"C04",9015,1.8800000000000001E-2,45898.78,59668.41,null,null,"Aud Business Consultant II Succession",20054076,"x",null,null,null,null,null,null,null,null,null,null,null,null,"C","2019-02-19","9999-12-31",1,"Building Maintenance & Repr Asst Div Mgr",20052977,"C12",9015,1.8800000000000001E-2,60437.1,90655.66,88014,"MANAGEMENT",{"$f":"_xlfn.XLOOKUP(job_titles17[[#This Row],[Extended object ID]],O:O,P:P)","v":{"$error":"#N/A"}}]
["C","2021-05-11","9999-12-31",1,"Building Security Guard Sr",20054102,"C05",7720,1.55E-2,47275.74,61458.46,null,null,"AUD Fin/TP Support Mgr Succession",20054804,"x",null,null,null,null,null,null,null,null,null,null,null,null,"C","1950-01-01","9999-12-31",1,"Building Maintenance Coord",20000009,"C07",9015,1.8800000000000001E-2,50398.3,68037.710000000006,88001,"MAINTENANCE",{"$f":"_xlfn.XLOOKUP(job_titles17[[#This Row],[Extended object ID]],O:O,P:P)","v":{"$error":"#N/A"}}]
["C","2018-10-02","9999-12-31",1,"Building Security Superintendent",20052828,"C10",7720,1.55E-2,55877.5,82698.7,null,null,"AUD Fin/TP Support Mgr Succession",20054804,"x",null,null,null,null,null,null,null,null,null,null,null,null,"C","1950-01-01","9999-12-31",1,"Building Maintenance Div Mgr",20000339,"C18",9015,1.8800000000000001E-2,86761.41,138818.25,88014,"MANAGEMENT",{"$f":"_xlfn.XLOOKUP(job_titles17[[#This Row],[Extended object ID]],O:O,P:P)","v":{"$error":"#N/A"}}]
["C","1950-01-01","9999-12-31",1,"Business Analyst Assoc",20000442,"C10",8810,1.6000000000000001E-3,55877.5,82698.7,null,null,"Clinic Supv Chief Succession",20054052,"x",null,null,null,null,null,null,null,null,null,null,null,null,"C","1950-01-01","9999-12-31",1,"Building Maintenance Supt",20000011,"C10",9015,1.8800000000000001E-2,55877.5,82698.7,88001,"MAINTENANCE",{"$f":"_xlfn.XLOOKUP(job_titles17[[#This Row],[Extended object ID]],O:O,P:P)","v":{"$error":"#N/A"}}]
["C","1950-01-01","9999-12-31",1,"Business Analyst I",20000445,"C12",8810,1.6000000000000001E-3,60437.1,90655.66,null,null,"Clinic Supv Chief Succession",20054052,"x",null,null,null,null,null,null,null,null,null,null,null,null,"C","1950-01-01","9999-12-31",1,"Building Maintenance Supv",20000010,"C09",9015,1.8800000000000001E-2,53987.92,78282.490000000005,88001,"MAINTENANCE",{"$f":"_xlfn.XLOOKUP(job_titles17[[#This Row],[Extended object ID]],O:O,P:P)","v":{"$error":"#N/A"}}]
["C","1950-01-01","9999-12-31",1,"Business Analyst II",20000444,"C14",8810,1.6000000000000001E-3,66183.97,105894.35,null,null,"County Executive HHS Succession",20054651,"x",null,null,null,null,null,null,null,null,null,null,null,null,"C","1950-01-01","9999-12-31",1,"Building Maintenance Worker",20000007,"C04",9015,1.8800000000000001E-2,45898.78,59668.41,88001,"MAINTENANCE",{"$f":"_xlfn.XLOOKUP(job_titles17[[#This Row],[Extended object ID]],O:O,P:P)","v":{"$error":"#N/A"}}]
["C","1950-01-01","9999-12-31",1,"Business Analyst III",20000443,"C16",8810,1.6000000000000001E-3,75776.03,121241.65,null,null,"County Executive HHS Succession",20054651,"x",null,null,null,null,null,null,null,null,null,null,null,null,"C","1950-01-01","9999-12-31",1,"Building Maintenance Worker Sr",20000008,"C06",9015,1.8800000000000001E-2,48694.01,65736.92,88001,"MAINTENANCE",{"$f":"_xlfn.XLOOKUP(job_titles17[[#This Row],[Extended object ID]],O:O,P:P)","v":{"$error":"#N/A"}}]
["C","1950-01-01","9999-12-31",1,"Business Consultant I",20000441,"C17",8810,1.6000000000000001E-3,81074.789999999994,129719.67,null,null,"County Executive JPS Succession",20054976,"x",null,null,null,null,null,null,null,null,null,null,null,null,"C","2015-04-28","9999-12-31",1,"Building Operations Division Manager",20050977,"C13",9015,1.8800000000000001E-2,62854.59,100567.34,88014,"MANAGEMENT",{"$f":"_xlfn.XLOOKUP(job_titles17[[#This Row],[Extended object ID]],O:O,P:P)","v":{"$error":"#N/A"}}]
["C","1950-01-01","9999-12-31",1,"Business Consultant II",20000440,"C19",8810,1.6000000000000001E-3,92836.33,148538.12,null,null,"County Executive JPS Succession",20054976,"x",null,null,null,null,null,null,null,null,null,null,null,null,"C","1950-01-01","9999-12-31",1,"Building Operations Worker",20000005,"C03",9015,1.8800000000000001E-2,44561.919999999998,57930.5,88001,"MAINTENANCE",{"$f":"_xlfn.XLOOKUP(job_titles17[[#This Row],[Extended object ID]],O:O,P:P)","v":{"$error":"#N/A"}}]
["C","2020-03-31","9999-12-31",1,"Business Continuity Planner",20053676,"C13",8810,1.6000000000000001E-3,62854.59,100567.34,null,null,"Court Legal Mgmt Adm Dir Succession",20055379,"x",null,null,null,null,null,null,null,null,null,null,null,null,"C","2016-06-01","9999-12-31",1,"Building Security Coordinator",20051501,"C06",9015,1.8800000000000001E-2,48694.01,65736.92,88001,"MAINTENANCE",{"$f":"_xlfn.XLOOKUP(job_titles17[[#This Row],[Extended object ID]],O:O,P:P)","v":{"$error":"#N/A"}}]
["C","1950-01-01","9999-12-31",1,"CADD Coordinator",20000612,"C11",8601,1.8E-3,58112.6,87168.9,null,null,"Customer Support Mgr Succession",20055326,"x",null,null,null,null,null,null,null,null,null,null,null,null,"C","1950-01-01","9999-12-31",1,"Building Security Guard",20000012,"C04",9015,1.8800000000000001E-2,45898.78,59668.41,88001,"MAINTENANCE",{"$f":"_xlfn.XLOOKUP(job_titles17[[#This Row],[Extended object ID]],O:O,P:P)","v":{"$error":"#N/A"}}]
["C","1950-01-01","9999-12-31",1,"Carpenter",20000038,"C07",5479,3.6700000000000003E-2,50398.3,68037.710000000006,null,null,"Financial Mgr Sr Succession",20054701,"x",null,null,null,null,null,null,null,null,null,null,null,null,"C","2021-05-11","9999-12-31",1,"Building Security Guard Sr",20054102,"C05",7720,1.55E-2,47275.74,61458.46,88001,"MAINTENANCE",{"$f":"_xlfn.XLOOKUP(job_titles17[[#This Row],[Extended object ID]],O:O,P:P)","v":{"$error":"#N/A"}}]
["C","1950-01-01","9999-12-31",1,"Carpenter Assoc",20000037,"C04",5479,3.6700000000000003E-2,45898.78,59668.41,null,null,"Financial Mgr Sr Succession",20054701,"x",null,null,null,null,null,null,null,null,null,null,null,null,"C","2018-10-02","9999-12-31",1,"Building Security Superintendent",20052828,"C10",7720,1.55E-2,55877.5,82698.7,88014,"MANAGEMENT",{"$f":"_xlfn.XLOOKUP(job_titles17[[#This Row],[Extended object ID]],O:O,P:P)","v":{"$error":"#N/A"}}]
["C","1950-01-01","9999-12-31",1,"Carpenter Sr",20000039,"C08",5479,3.6700000000000003E-2,52162.239999999998,75635.25,null,null,"Financial Mgr Succession",20054327,"x",null,null,null,null,null,null,null,null,null,null,null,null,"C","1950-01-01","9999-12-31",1,"Business Analyst Assoc",20000442,"C10",8810,1.6000000000000001E-3,55877.5,82698.7,88021,"INFORMATION TECH",{"$f":"_xlfn.XLOOKUP(job_titles17[[#This Row],[Extended object ID]],O:O,P:P)","v":{"$error":"#N/A"}}]
["C","1950-01-01","9999-12-31",1,"Case Worker",20000195,"C09",8810,1.6000000000000001E-3,53987.92,78282.490000000005,null,null,"Financial Mgr Succession",20054327,"x",null,null,null,null,null,null,null,null,null,null,null,null,"C","1950-01-01","9999-12-31",1,"Business Analyst I",20000445,"C12",8810,1.6000000000000001E-3,60437.1,90655.66,88021,"INFORMATION TECH",{"$f":"_xlfn.XLOOKUP(job_titles17[[#This Row],[Extended object ID]],O:O,P:P)","v":{"$error":"#N/A"}}]
["C","2023-08-08","9999-12-31",1,"CC Specialist Succession",20055676,"C08",8810,1.6000000000000001E-3,52162.239999999998,75635.25,null,null,"Helicopter Pilot Succession",20055051,"x",null,null,null,null,null,null,null,null,null,null,null,null,"C","1950-01-01","9999-12-31",1,"Business Analyst II",20000444,"C14",8810,1.6000000000000001E-3,66183.97,105894.35,88021,"INFORMATION TECH",{"$f":"_xlfn.XLOOKUP(job_titles17[[#This Row],[Extended object ID]],O:O,P:P)","v":{"$error":"#N/A"}}]
["C","1950-01-01","9999-12-31",1,"Certified Nursing Asst",20000049,"C03",8832,1.9E-3,44561.919999999998,57930.5,null,null,"Human Resources Mgr II Succession",20054026,"x",null,null,null,null,null,null,null,null,null,null,null,null,"C","1950-01-01","9999-12-31",1,"Business Analyst III",20000443,"C16",8810,1.6000000000000001E-3,75776.03,121241.65,88021,"INFORMATION TECH",{"$f":"_xlfn.XLOOKUP(job_titles17[[#This Row],[Extended object ID]],O:O,P:P)","v":{"$error":"#N/A"}}]
["C","1950-01-01","9999-12-31",1,"CES Dir",20000327,"C19",8810,1.6000000000000001E-3,92836.33,148538.12,null,null,"Human Resources Mgr II Succession",20054026,"x",null,null,null,null,null,null,null,null,null,null,null,null,"C","2016-06-28","9999-12-31",1,"Business Analyst III Succession",20051576,"GRD26",8810,1.6000000000000001E-3,72861.570000000007,116578.59,88021,"INFORMATION TECH",{"$f":"_xlfn.XLOOKUP(job_titles17[[#This Row],[Extended object ID]],O:O,P:P)","v":"x"}]
["C","1950-01-01","9999-12-31",1,"Chaplain",20000184,"C10",8810,1.6000000000000001E-3,55877.5,82698.7,null,null,"IT Dpt Div Mgr Succession",20054926,"x",null,null,null,null,null,null,null,null,null,null,null,null,"C","2019-09-16","9999-12-31",1,"Business Analyst III Succession",20053326,"GRD26",8810,1.6000000000000001E-3,72861.570000000007,116578.59,0,"0",{"$f":"_xlfn.XLOOKUP(job_titles17[[#This Row],[Extended object ID]],O:O,P:P)","v":"x"}]
["C","1950-01-01","9999-12-31",1,"Chaplain Sr",20000185,"C11",8810,1.6000000000000001E-3,58112.6,87168.9,null,null,"IT Dpt Div Mgr Succession",20054926,"x",null,null,null,null,null,null,null,null,null,null,null,null,"C","1950-01-01","9999-12-31",1,"Business Consultant I",20000441,"C17",8810,1.6000000000000001E-3,81074.789999999994,129719.67,88021,"INFORMATION TECH",{"$f":"_xlfn.XLOOKUP(job_titles17[[#This Row],[Extended object ID]],O:O,P:P)","v":{"$error":"#N/A"}}]
["C","1950-01-01","9999-12-31",1,"Chemical Dependency Counselor",20000190,"C09",8810,1.6000000000000001E-3,53987.92,78282.490000000005,null,null,"Judicial Executive Assistant Succession",20054951,"x",null,null,null,null,null,null,null,null,null,null,null,null,"C","1950-01-01","9999-12-31",1,"Business Consultant II",20000440,"C19",8810,1.6000000000000001E-3,92836.33,148538.12,88021,"INFORMATION TECH",{"$f":"_xlfn.XLOOKUP(job_titles17[[#This Row],[Extended object ID]],O:O,P:P)","v":{"$error":"#N/A"}}]
["C","1950-01-01","9999-12-31",1,"Chemical Dependency Counselor Sr",20000191,"C10",8810,1.6000000000000001E-3,55877.5,82698.7,null,null,"Judicial Executive Assistant Succession",20054951,"x",null,null,null,null,null,null,null,null,null,null,null,null,"C","2020-03-31","9999-12-31",1,"Business Continuity Planner",20053676,"C13",8810,1.6000000000000001E-3,62854.59,100567.34,88012,"PUBLIC SAF/EMG MGMT",{"$f":"_xlfn.XLOOKUP(job_titles17[[#This Row],[Extended object ID]],O:O,P:P)","v":{"$error":"#N/A"}}]
["C","2019-09-30","9999-12-31",1,"Chief Counsel",20053281,"C24",8810,1.6000000000000001E-3,130239.35,214894.92,null,null,"Planner Sr Succession",20054551,"x",null,null,null,null,null,null,null,null,null,null,null,null,"C","1950-01-01","9999-12-31",1,"CADD Coordinator",20000612,"C11",8601,1.8E-3,58112.6,87168.9,88009,"ENGINEERING & ARCHITECTURAL",{"$f":"_xlfn.XLOOKUP(job_titles17[[#This Row],[Extended object ID]],O:O,P:P)","v":{"$error":"#N/A"}}]
["C","2022-10-02","9999-12-31",1,"Chief Deputy Emergency Management Coord",20055276,"C15",8810,1.6000000000000001E-3,70819.7,113311.53,null,null,"Planner Sr Succession",20054551,"x",null,null,null,null,null,null,null,null,null,null,null,null,"C","1950-01-01","9999-12-31",1,"Carpenter",20000038,"C07",5479,3.6700000000000003E-2,50398.3,68037.710000000006,88002,"SKILLED TRADES",{"$f":"_xlfn.XLOOKUP(job_titles17[[#This Row],[Extended object ID]],O:O,P:P)","v":{"$error":"#N/A"}}]
["C","2021-08-24","9999-12-31",1,"Chief Deputy Emergency Services",20054226,"C22",8810,1.6000000000000001E-3,113755.98,187697.37,null,null,"Public Works Dir Succession",20054552,"x",null,null,null,null,null,null,null,null,null,null,null,null,"C","1950-01-01","9999-12-31",1,"Carpenter Assoc",20000037,"C04",5479,3.6700000000000003E-2,45898.78,59668.41,88002,"SKILLED TRADES",{"$f":"_xlfn.XLOOKUP(job_titles17[[#This Row],[Extended object ID]],O:O,P:P)","v":{"$error":"#N/A"}}]
["C","1950-01-01","9999-12-31",1,"Chief Emergency Management Coordinator",20000221,"C17",8810,1.6000000000000001E-3,81074.789999999994,129719.67,null,null,"Public Works Dir Succession",20054552,"x",null,null,null,null,null,null,null,null,null,null,null,null,"C","1950-01-01","9999-12-31",1,"Carpenter Sr",20000039,"C08",5479,3.6700000000000003E-2,52162.239999999998,75635.25,88002,"SKILLED TRADES",{"$f":"_xlfn.XLOOKUP(job_titles17[[#This Row],[Extended object ID]],O:O,P:P)","v":{"$error":"#N/A"}}]
["C","2018-06-19","9999-12-31",1,"Chief Information Security Officer",20052601,"C25",8810,1.6000000000000001E-3,139356.15,229937.65,null,null,"Social Services Program Adm Succession",20055052,"x",null,null,null,null,null,null,null,null,null,null,null,null,"C","1950-01-01","9999-12-31",1,"Case Worker",20000195,"C09",8810,1.6000000000000001E-3,53987.92,78282.490000000005,88011,"SOCIAL SVCS",{"$f":"_xlfn.XLOOKUP(job_titles17[[#This Row],[Extended object ID]],O:O,P:P)","v":{"$error":"#N/A"}}]
["C","2016-10-01","9999-12-31",1,"Chief Investment Officer",20051751,"C18",8810,1.6000000000000001E-3,86761.41,138818.25,null,null,"Telecomm 911 Mgr Succession",20054827,"x",null,null,null,null,null,null,null,null,null,null,null,null,"C","2023-08-08","9999-12-31",1,"CC Specialist Succession",20055676,"C08",8810,1.6000000000000001E-3,52162.239999999998,75635.25,88004,"ADMINISTRATIVE SUPP",{"$f":"_xlfn.XLOOKUP(job_titles17[[#This Row],[Extended object ID]],O:O,P:P)","v":{"$error":"#N/A"}}]
["C","2018-03-20","9999-12-31",1,"Chief of Staff to County Commissioner",20052452,"C14",8810,1.6000000000000001E-3,66183.97,105894.35,null,null,"Telecomm 911 Mgr Succession",20054827,"x",null,null,null,null,null,null,null,null,null,null,null,null,"C","1950-01-01","9999-12-31",1,"Certified Nursing Asst",20000049,"C03",8832,1.9E-3,44561.919999999998,57930.5,88003,"MEDICAL",{"$f":"_xlfn.XLOOKUP(job_titles17[[#This Row],[Extended object ID]],O:O,P:P)","v":{"$error":"#N/A"}}]
["C","2015-01-01","9999-12-31",1,"Chief of Staff to County Judge",20050926,"C19",8810,1.6000000000000001E-3,92836.33,148538.12,null,null,"Aud County Auditor Chief Asst II Sn",20053851,"x",null,null,null,null,null,null,null,null,null,null,null,null,"C","1950-01-01","9999-12-31",1,"Certified Peace Officer Sr",20000522,"GRD84",7720,1.55E-2,62908.959999999999,62908.959999999999,88024,"POPS TCSO",{"$f":"_xlfn.XLOOKUP(job_titles17[[#This Row],[Extended object ID]],O:O,P:P)","v":"x"}]
["C","2019-10-15","9999-12-31",1,"Chief Public Defender",20053451,"C26",8810,1.6000000000000001E-3,149111.1,246033.32,null,null,"Civil Service Comm Program Dir Sn",20051976,"x",null,null,null,null,null,null,null,null,null,null,null,null,"C","1950-01-01","9999-12-31",1,"CES Dir",20000327,"C19",8810,1.6000000000000001E-3,92836.33,148538.12,88014,"MANAGEMENT",{"$f":"_xlfn.XLOOKUP(job_titles17[[#This Row],[Extended object ID]],O:O,P:P)","v":{"$error":"#N/A"}}]
["C","2020-01-14","9999-12-31",1,"Chiller/Boiler Specialist",20053602,"C10",9015,1.8800000000000001E-2,55877.5,82698.7,null,null,"Corrections Captain Sn",20051826,"x",null,null,null,null,null,null,null,null,null,null,null,null,"C","1950-01-01","9999-12-31",1,"Chaplain",20000184,"C10",8810,1.6000000000000001E-3,55877.5,82698.7,88011,"SOCIAL SVCS",{"$f":"_xlfn.XLOOKUP(job_titles17[[#This Row],[Extended object ID]],O:O,P:P)","v":{"$error":"#N/A"}}]
["C","2017-10-01","9999-12-31",1,"Civil Service Cmn Asst Program Dir",20052253,"C13",8810,1.6000000000000001E-3,62854.59,100567.34,null,null,"County Clerk Deputy Chief Sn",20050951,"x",null,null,null,null,null,null,null,null,null,null,null,null,"C","1950-01-01","9999-12-31",1,"Chaplain Sr",20000185,"C11",8810,1.6000000000000001E-3,58112.6,87168.9,88011,"SOCIAL SVCS",{"$f":"_xlfn.XLOOKUP(job_titles17[[#This Row],[Extended object ID]],O:O,P:P)","v":{"$error":"#N/A"}}]
["C","2013-10-01","9999-12-31",1,"Civil Service Cmn Program Dir",20050428,"C15",8810,1.6000000000000001E-3,70819.7,113311.53,null,null,"County Commissioners Court Specialist Sn",20052001,"x",null,null,null,null,null,null,null,null,null,null,null,null,"C","1950-01-01","9999-12-31",1,"Chemical Dependency Counselor",20000190,"C09",8810,1.6000000000000001E-3,53987.92,78282.490000000005,88011,"SOCIAL SVCS",{"$f":"_xlfn.XLOOKUP(job_titles17[[#This Row],[Extended object ID]],O:O,P:P)","v":{"$error":"#N/A"}}]
["C","2021-10-02","9999-12-31",1,"Clinic Operations Officer",20054451,"C16",8832,1.9E-3,75776.03,121241.65,null,null,"Crime Scene & Evidence Manager Sn",20053151,"x",null,null,null,null,null,null,null,null,null,null,null,null,"C","1950-01-01","9999-12-31",1,"Chemical Dependency Counselor Sr",20000191,"C10",8810,1.6000000000000001E-3,55877.5,82698.7,88011,"SOCIAL SVCS",{"$f":"_xlfn.XLOOKUP(job_titles17[[#This Row],[Extended object ID]],O:O,P:P)","v":{"$error":"#N/A"}}]
["C","1950-01-01","9999-12-31",1,"Clinic Supv Chief",20000233,"C18",7422,1.3299999999999999E-2,86761.41,138818.25,null,null,"District Clerk Deputy Chief Sn",20050901,"x",null,null,null,null,null,null,null,null,null,null,null,null,"C","2019-09-30","9999-12-31",1,"Chief Counsel",20053281,"C24",8810,1.6000000000000001E-3,130239.35,214894.92,88014,"MANAGEMENT",{"$f":"_xlfn.XLOOKUP(job_titles17[[#This Row],[Extended object ID]],O:O,P:P)","v":{"$error":"#N/A"}}]
["C","2015-10-01","9999-12-31",1,"Clinical Mental Health Professional",20051176,"C11",8832,1.9E-3,58112.6,87168.9,null,null,"Economic & Strategic Pln Managing Dir Sn",20051726,"x",null,null,null,null,null,null,null,null,null,null,null,null,"C","2022-10-02","9999-12-31",1,"Chief Deputy Emergency Management Coord",20055276,"C15",8810,1.6000000000000001E-3,70819.7,113311.53,88012,"PUBLIC SAF/EMG MGMT",{"$f":"_xlfn.XLOOKUP(job_titles17[[#This Row],[Extended object ID]],O:O,P:P)","v":{"$error":"#N/A"}}]
["C","2015-10-01","9999-12-31",1,"Clinical Mental Health Professional Ld",20051178,"C13",8832,1.9E-3,62854.59,100567.34,null,null,"Emergency Radio Communications Mgr Sn",20054526,"x",null,null,null,null,null,null,null,null,null,null,null,null,"C","2021-08-24","9999-12-31",1,"Chief Deputy Emergency Services",20054226,"C22",8810,1.6000000000000001E-3,113755.98,187697.37,88012,"PUBLIC SAF/EMG MGMT",{"$f":"_xlfn.XLOOKUP(job_titles17[[#This Row],[Extended object ID]],O:O,P:P)","v":{"$error":"#N/A"}}]
["C","2015-10-01","9999-12-31",1,"Clinical Mental Health Professional Sr",20051177,"C12",8832,1.9E-3,60437.1,90655.66,null,null,"Executive Asst-Elected OfficialSn",20054152,"x",null,null,null,null,null,null,null,null,null,null,null,null,"C","2019-03-12","9999-12-31",1,"Chief Deputy/Director of EMS Succession",20053027,"GRD30",8810,1.6000000000000001E-3,95524.21,152838.82,88012,"PUBLIC SAF/EMG MGMT",{"$f":"_xlfn.XLOOKUP(job_titles17[[#This Row],[Extended object ID]],O:O,P:P)","v":"x"}]
["C","2016-02-23","9999-12-31",1,"Clinical Mental Health Professional Supv",20051326,"C16",8832,1.9E-3,75776.03,121241.65,null,null,"Fleet Div Mgr Sn",20052652,"x",null,null,null,null,null,null,null,null,null,null,null,null,"C","1950-01-01","9999-12-31",1,"Chief Emergency Management Coordinator",20000221,"C17",8810,1.6000000000000001E-3,81074.789999999994,129719.67,88012,"PUBLIC SAF/EMG MGMT",{"$f":"_xlfn.XLOOKUP(job_titles17[[#This Row],[Extended object ID]],O:O,P:P)","v":{"$error":"#N/A"}}]
["C","2022-01-01","9999-12-31",1,"Communications Director",20054776,"C20",8810,1.6000000000000001E-3,99345.18,158952.29,null,null,"Human Resources Financial Analyst Ld Sn",20050776,"x",null,null,null,null,null,null,null,null,null,null,null,null,"C","2018-06-19","9999-12-31",1,"Chief Information Security Officer",20052601,"C25",8810,1.6000000000000001E-3,139356.15,229937.65,88021,"INFORMATION TECH",{"$f":"_xlfn.XLOOKUP(job_titles17[[#This Row],[Extended object ID]],O:O,P:P)","v":{"$error":"#N/A"}}]
["C","2018-11-27","9999-12-31",1,"Community and Economic Development Spc",20052878,"C11",8810,1.6000000000000001E-3,58112.6,87168.9,null,null,"Information Technology Div Dir Sn",20051951,"x",null,null,null,null,null,null,null,null,null,null,null,null,"C","2016-10-01","9999-12-31",1,"Chief Investment Officer",20051751,"C18",8810,1.6000000000000001E-3,86761.41,138818.25,88014,"MANAGEMENT",{"$f":"_xlfn.XLOOKUP(job_titles17[[#This Row],[Extended object ID]],O:O,P:P)","v":{"$error":"#N/A"}}]
["C","2021-07-20","9999-12-31",1,"Community Engagement Specialist",20054177,"C11",8810,1.6000000000000001E-3,58112.6,87168.9,null,null,"Operations Director Sn",20051977,"x",null,null,null,null,null,null,null,null,null,null,null,null,"C","2018-03-20","9999-12-31",1,"Chief of Staff to County Commissioner",20052452,"C14",8810,1.6000000000000001E-3,66183.97,105894.35,88004,"ADMINISTRATIVE SUPP",{"$f":"_xlfn.XLOOKUP(job_titles17[[#This Row],[Extended object ID]],O:O,P:P)","v":{"$error":"#N/A"}}]
["C","1950-01-01","9999-12-31",1,"Community Liaison",20000273,"C09",8810,1.6000000000000001E-3,53987.92,78282.490000000005,null,null,"Probate Court Administrator Sn",20052203,"x",null,null,null,null,null,null,null,null,null,null,null,null,"C","2015-01-01","9999-12-31",1,"Chief of Staff to County Judge",20050926,"C19",8810,1.6000000000000001E-3,92836.33,148538.12,88004,"ADMINISTRATIVE SUPP",{"$f":"_xlfn.XLOOKUP(job_titles17[[#This Row],[Extended object ID]],O:O,P:P)","v":{"$error":"#N/A"}}]
["C","2020-08-25","9999-12-31",1,"Community Liaison Supervisor",20053801,"C11",8810,1.6000000000000001E-3,58112.6,87168.9,null,null,"Risk Safety Analyst Sr Sn",20052279,"x",null,null,null,null,null,null,null,null,null,null,null,null,"C","2022-09-20","9999-12-31",1,"Chief Psychiatrist",20055101,"NCF01",8832,1.9E-3,15080,500000,88003,"MEDICAL",{"$f":"_xlfn.XLOOKUP(job_titles17[[#This Row],[Extended object ID]],O:O,P:P)","v":{"$error":"#N/A"}}]
["C","2021-10-02","9999-12-31",1,"Compensation Analyst I",20054452,"C10",8810,1.6000000000000001E-3,55877.5,82698.7,null,null,"Tax Assessor-Collector Deputy Assoc Sn",20050701,"x",null,null,null,null,null,null,null,null,null,null,null,null,"C","2019-10-15","9999-12-31",1,"Chief Public Defender",20053451,"C26",8810,1.6000000000000001E-3,149111.1,246033.32,88014,"MANAGEMENT",{"$f":"_xlfn.XLOOKUP(job_titles17[[#This Row],[Extended object ID]],O:O,P:P)","v":{"$error":"#N/A"}}]
["C","2021-10-02","9999-12-31",1,"Compensation Analyst II",20054454,"C12",8810,1.6000000000000001E-3,60437.1,90655.66,null,null,"Tax Assessor-Collector Deputy Chf Sn",20052226,"x",null,null,null,null,null,null,null,null,null,null,null,null,"C","2020-01-14","9999-12-31",1,"Chiller/Boiler Specialist",20053602,"C10",9015,1.8800000000000001E-2,55877.5,82698.7,88002,"SKILLED TRADES",{"$f":"_xlfn.XLOOKUP(job_titles17[[#This Row],[Extended object ID]],O:O,P:P)","v":{"$error":"#N/A"}}]
["C","2021-10-02","9999-12-31",1,"Compensation Analyst Sr",20054427,"C15",8810,1.6000000000000001E-3,70819.7,113311.53,null,null,"Tax Assessor-Collector Deputy Chf Sn",20052228,"x",null,null,null,null,null,null,null,null,null,null,null,null,"C","2017-10-01","9999-12-31",1,"Civil Service Cmn Asst Program Dir",20052253,"C13",8810,1.6000000000000001E-3,62854.59,100567.34,88014,"MANAGEMENT",{"$f":"_xlfn.XLOOKUP(job_titles17[[#This Row],[Extended object ID]],O:O,P:P)","v":{"$error":"#N/A"}}]
["C","2021-10-02","9999-12-31",1,"Compensation Manager",20054426,"C18",8810,1.6000000000000001E-3,86761.41,138818.25,null,null,"Tax Assessor-Collector Div Dir Sn",20050751,"x",null,null,null,null,null,null,null,null,null,null,null,null,"C","2013-10-01","9999-12-31",1,"Civil Service Cmn Program Dir",20050428,"C15",8810,1.6000000000000001E-3,70819.7,113311.53,88014,"MANAGEMENT",{"$f":"_xlfn.XLOOKUP(job_titles17[[#This Row],[Extended object ID]],O:O,P:P)","v":{"$error":"#N/A"}}]
["C","2016-10-01","9999-12-31",1,"Compliance and Grants Administrator",20051704,"C11",8810,1.6000000000000001E-3,58112.6,87168.9,null,null,"Tax Assessor-Collector Div Dir Sn",20052227,"x",null,null,null,null,null,null,null,null,null,null,null,null,"C","2017-03-21","9999-12-31",1,"Civil Service Comm Program Dir Sn",20051976,"C15",8810,1.6000000000000001E-3,70819.7,113311.53,88014,"MANAGEMENT",{"$f":"_xlfn.XLOOKUP(job_titles17[[#This Row],[Extended object ID]],O:O,P:P)","v":"x"}]
["C","2021-08-17","9999-12-31",1,"Compliance and Privacy Analyst I",20054201,"C13",8810,1.6000000000000001E-3,62854.59,100567.34,null,null,"Tax Assessor-Collector Div Dir Sn",20052229,"x",null,null,null,null,null,null,null,null,null,null,null,null,"C","2021-10-02","9999-12-31",1,"Clinic Operations Officer",20054451,"C16",8832,1.9E-3,75776.03,121241.65,88014,"MANAGEMENT",{"$f":"_xlfn.XLOOKUP(job_titles17[[#This Row],[Extended object ID]],O:O,P:P)","v":{"$error":"#N/A"}}]
["C","2018-10-02","9999-12-31","1900-01-01","Compliance and Privacy Analyst II",20052830,"C14",8810,1.6000000000000001E-3,66183.97,105894.35,null,null,null,null,"x",null,null,null,null,null,null,null,null,null,null,null,null,"C","1950-01-01","9999-12-31",1,"Clinic Supv Chief",20000233,"C18",7422,1.3299999999999999E-2,86761.41,138818.25,88012,"PUBLIC SAF/EMG MGMT",{"$f":"_xlfn.XLOOKUP(job_titles17[[#This Row],[Extended object ID]],O:O,P:P)","v":{"$error":"#N/A"}}]
["C","2021-08-17","9999-12-31",1,"Compliance and Privacy Analyst Sr",20054202,"C16",8810,1.6000000000000001E-3,75776.03,121241.65,null,null,null,null,"x",null,null,null,null,null,null,null,null,null,null,null,null,"C","2021-02-09","9999-12-31",1,"Clinic Supv Chief Succession",20054052,"GRD27",7422,1.3299999999999999E-2,77956.53,124730.53,88012,"PUBLIC SAF/EMG MGMT",{"$f":"_xlfn.XLOOKUP(job_titles17[[#This Row],[Extended object ID]],O:O,P:P)","v":"x"}]
["C","2023-02-28","9999-12-31",1,"Constable Cadet",20055476,"GRD59",7720,1.55E-2,57000,57000,null,null,null,null,"x",null,null,null,null,null,null,null,null,null,null,null,null,"C","2015-10-01","9999-12-31",1,"Clinical Mental Health Professional",20051176,"C11",8832,1.9E-3,58112.6,87168.9,88011,"SOCIAL SVCS",{"$f":"_xlfn.XLOOKUP(job_titles17[[#This Row],[Extended object ID]],O:O,P:P)","v":{"$error":"#N/A"}}]
["C","2018-09-25","9999-12-31",1,"Constable Communications Specialist",20052776,"C07",8810,1.6000000000000001E-3,50398.3,68037.710000000006,null,null,null,null,"x",null,null,null,null,null,null,null,null,null,null,null,null,"C","2015-10-01","9999-12-31",1,"Clinical Mental Health Professional Ld",20051178,"C13",8832,1.9E-3,62854.59,100567.34,88011,"SOCIAL SVCS",{"$f":"_xlfn.XLOOKUP(job_titles17[[#This Row],[Extended object ID]],O:O,P:P)","v":{"$error":"#N/A"}}]
["C","2021-02-09","9999-12-31",1,"Constable Communications Specialist Sr",20054051,"C08",8810,1.6000000000000001E-3,52162.239999999998,75635.25,null,null,null,null,"x",null,null,null,null,null,null,null,null,null,null,null,null,"C","2015-10-01","9999-12-31",1,"Clinical Mental Health Professional Sr",20051177,"C12",8832,1.9E-3,60437.1,90655.66,88011,"SOCIAL SVCS",{"$f":"_xlfn.XLOOKUP(job_titles17[[#This Row],[Extended object ID]],O:O,P:P)","v":{"$error":"#N/A"}}]
["C","2018-09-25","9999-12-31",1,"Constable Communications Specialist Supv",20052777,"C10",8810,1.6000000000000001E-3,55877.5,82698.7,null,null,null,null,"x",null,null,null,null,null,null,null,null,null,null,null,null,"C","2016-02-23","9999-12-31",1,"Clinical Mental Health Professional Supv",20051326,"C16",8832,1.9E-3,75776.03,121241.65,88011,"SOCIAL SVCS",{"$f":"_xlfn.XLOOKUP(job_titles17[[#This Row],[Extended object ID]],O:O,P:P)","v":{"$error":"#N/A"}}]
["C","2021-12-07","9999-12-31",1,"Constable Corporal",20054576,"GRD65",7720,1.55E-2,79983.070000000007,79983.070000000007,null,null,null,null,"x",null,null,null,null,null,null,null,null,null,null,null,null,"C","1950-01-01","9999-12-31",1,"Commissary Mgr",20000294,"C11",8810,1.6000000000000001E-3,58112.6,87168.9,88014,"MANAGEMENT",{"$f":"_xlfn.XLOOKUP(job_titles17[[#This Row],[Extended object ID]],O:O,P:P)","v":"x"}]
["C","1950-01-01","9999-12-31",1,"Constable Deputy",20000533,"GRD60",7720,1.55E-2,64600,64600,null,null,null,null,"x",null,null,null,null,null,null,null,null,null,null,null,null,"C","2022-01-01","9999-12-31",1,"Communications Director",20054776,"C20",8810,1.6000000000000001E-3,99345.18,158952.29,88014,"MANAGEMENT",{"$f":"_xlfn.XLOOKUP(job_titles17[[#This Row],[Extended object ID]],O:O,P:P)","v":{"$error":"#N/A"}}]
["C","1950-01-01","9999-12-31",1,"Constable Deputy Chief",20000539,"GRD69",7720,1.55E-2,97555.19,97555.19,null,null,null,null,"x",null,null,null,null,null,null,null,null,null,null,null,null,"C","2018-11-27","9999-12-31",1,"Community and Economic Development Spc",20052878,"C11",8810,1.6000000000000001E-3,58112.6,87168.9,88015,"PROFESSIONAL SUPP",{"$f":"_xlfn.XLOOKUP(job_titles17[[#This Row],[Extended object ID]],O:O,P:P)","v":{"$error":"#N/A"}}]
["C","1950-01-01","9999-12-31",1,"Constable Deputy Sr",20000534,"GRD62",7720,1.55E-2,69163.91,69163.91,null,null,null,null,"x",null,null,null,null,null,null,null,null,null,null,null,null,"C","2021-07-20","9999-12-31",1,"Community Engagement Specialist",20054177,"C11",8810,1.6000000000000001E-3,58112.6,87168.9,88015,"PROFESSIONAL SUPP",{"$f":"_xlfn.XLOOKUP(job_titles17[[#This Row],[Extended object ID]],O:O,P:P)","v":{"$error":"#N/A"}}]
["C","2014-03-01","9999-12-31",1,"Constable Lieutenant",20050601,"GRD68",7720,1.55E-2,91089.42,91089.42,null,null,null,null,"x",null,null,null,null,null,null,null,null,null,null,null,null,"C","1950-01-01","9999-12-31",1,"Community Liaison",20000273,"C09",8810,1.6000000000000001E-3,53987.92,78282.490000000005,88014,"MANAGEMENT",{"$f":"_xlfn.XLOOKUP(job_titles17[[#This Row],[Extended object ID]],O:O,P:P)","v":{"$error":"#N/A"}}]
["C","1950-01-01","9999-12-31",1,"Constable Sergeant",20000537,"GRD67",7720,1.55E-2,88009.1,88009.1,null,null,null,null,"x",null,null,null,null,null,null,null,null,null,null,null,null,"C","2020-08-25","9999-12-31",1,"Community Liaison Supervisor",20053801,"C11",8810,1.6000000000000001E-3,58112.6,87168.9,88014,"MANAGEMENT",{"$f":"_xlfn.XLOOKUP(job_titles17[[#This Row],[Extended object ID]],O:O,P:P)","v":{"$error":"#N/A"}}]
["C","1950-01-01","9999-12-31",1,"Contract Compliance Specialist",20000183,"C13",8810,1.6000000000000001E-3,62854.59,100567.34,null,null,null,null,"x",null,null,null,null,null,null,null,null,null,null,null,null,"C","2021-10-02","9999-12-31",1,"Compensation Analyst I",20054452,"C10",8810,1.6000000000000001E-3,55877.5,82698.7,88016,"HUMAN RESOURCES",{"$f":"_xlfn.XLOOKUP(job_titles17[[#This Row],[Extended object ID]],O:O,P:P)","v":{"$error":"#N/A"}}]
["C","1950-01-01","9999-12-31",1,"Cook",20000022,"C02",8810,1.6000000000000001E-3,43264,56243.199999999997,null,null,null,null,"x",null,null,null,null,null,null,null,null,null,null,null,null,"C","2021-10-02","9999-12-31",1,"Compensation Analyst II",20054454,"C12",8810,1.6000000000000001E-3,60437.1,90655.66,88016,"HUMAN RESOURCES",{"$f":"_xlfn.XLOOKUP(job_titles17[[#This Row],[Extended object ID]],O:O,P:P)","v":{"$error":"#N/A"}}]
["C","2022-02-08","9999-12-31",1,"Corporate Privacy Officer",20054626,"C24",8810,1.6000000000000001E-3,130239.35,214894.92,null,null,null,null,"x",null,null,null,null,null,null,null,null,null,null,null,null,"C","2021-10-02","9999-12-31",1,"Compensation Analyst Sr",20054427,"C15",8810,1.6000000000000001E-3,70819.7,113311.53,88016,"HUMAN RESOURCES",{"$f":"_xlfn.XLOOKUP(job_titles17[[#This Row],[Extended object ID]],O:O,P:P)","v":{"$error":"#N/A"}}]
["C","2016-09-16","9999-12-31",1,"Corporations Managing Director",20051702,"C18",8810,1.6000000000000001E-3,86761.41,138818.25,null,null,null,null,"x",null,null,null,null,null,null,null,null,null,null,null,null,"C","2021-10-02","9999-12-31",1,"Compensation Manager",20054426,"C18",8810,1.6000000000000001E-3,86761.41,138818.25,88016,"HUMAN RESOURCES",{"$f":"_xlfn.XLOOKUP(job_titles17[[#This Row],[Extended object ID]],O:O,P:P)","v":{"$error":"#N/A"}}]
["C","2022-11-15","9999-12-31",1,"Corporations Operations Specialist",20055301,"C10",8810,1.6000000000000001E-3,55877.5,82698.7,null,null,null,null,"x",null,null,null,null,null,null,null,null,null,null,null,null,"C","2016-10-01","9999-12-31",1,"Compliance and Grants Administrator",20051704,"C11",8810,1.6000000000000001E-3,58112.6,87168.9,88015,"PROFESSIONAL SUPP",{"$f":"_xlfn.XLOOKUP(job_titles17[[#This Row],[Extended object ID]],O:O,P:P)","v":{"$error":"#N/A"}}]
["C","2016-09-16","9999-12-31",1,"Corporations Program Manager",20051701,"C15",8810,1.6000000000000001E-3,70819.7,113311.53,null,null,null,null,"x",null,null,null,null,null,null,null,null,null,null,null,null,"C","2021-08-17","9999-12-31",1,"Compliance and Privacy Analyst I",20054201,"C13",8810,1.6000000000000001E-3,62854.59,100567.34,88015,"PROFESSIONAL SUPP",{"$f":"_xlfn.XLOOKUP(job_titles17[[#This Row],[Extended object ID]],O:O,P:P)","v":{"$error":"#N/A"}}]
["C","2022-11-15","9999-12-31",1,"Corporations Project Coordinator",20055302,"C13",8810,1.6000000000000001E-3,62854.59,100567.34,null,null,null,null,"x",null,null,null,null,null,null,null,null,null,null,null,null,"C","2018-10-02","9999-12-31",1,"Compliance and Privacy Analyst II",20052830,"C14",8810,1.6000000000000001E-3,66183.97,105894.35,88015,"PROFESSIONAL SUPP",{"$f":"_xlfn.XLOOKUP(job_titles17[[#This Row],[Extended object ID]],O:O,P:P)","v":{"$error":"#N/A"}}]
["C","1950-01-01","9999-12-31","1900-01-01","Corrections Captain",20000215,"C20",7720,1.55E-2,99345.18,158952.29,null,null,null,null,"x",null,null,null,null,null,null,null,null,null,null,null,null,"C","2021-08-17","9999-12-31",1,"Compliance and Privacy Analyst Sr",20054202,"C16",8810,1.6000000000000001E-3,75776.03,121241.65,88015,"PROFESSIONAL SUPP",{"$f":"_xlfn.XLOOKUP(job_titles17[[#This Row],[Extended object ID]],O:O,P:P)","v":{"$error":"#N/A"}}]
["C","1950-01-01","9999-12-31",1,"Corrections Lieutenant",20000531,"GRD89",7720,1.55E-2,99446.9,99446.9,null,null,null,null,"x",null,null,null,null,null,null,null,null,null,null,null,null,"C","1950-01-01","9999-12-31",1,"Constable",20000512,"NCF01",7720,1.55E-2,15080,500000,88022,"ELECTED",{"$f":"_xlfn.XLOOKUP(job_titles17[[#This Row],[Extended object ID]],O:O,P:P)","v":"x"}]
["C","2019-09-30","9999-12-31",1,"Corrections Maintenance Worker",20053285,"C07",7720,1.55E-2,50398.3,68037.710000000006,null,null,null,null,"x",null,null,null,null,null,null,null,null,null,null,null,null,"C","2023-02-28","9999-12-31",1,"Constable Cadet",20055476,"GRD59",7720,1.55E-2,57000,57000,88025,"POPS NON-TCSO",{"$f":"_xlfn.XLOOKUP(job_titles17[[#This Row],[Extended object ID]],O:O,P:P)","v":{"$error":"#N/A"}}]
["C","1950-01-01","9999-12-31",1,"Corrections Officer",20000519,"GRD81",7720,1.55E-2,55000,55000,null,null,null,null,"x",null,null,null,null,null,null,null,null,null,null,null,null,"C","2018-09-25","9999-12-31",1,"Constable Communications Specialist",20052776,"C07",8810,1.6000000000000001E-3,50398.3,68037.710000000006,88012,"PUBLIC SAF/EMG MGMT",{"$f":"_xlfn.XLOOKUP(job_titles17[[#This Row],[Extended object ID]],O:O,P:P)","v":{"$error":"#N/A"}}]
["C","1950-01-01","9999-12-31",1,"Corrections Officer Sr",20000521,"GRD83",7720,1.55E-2,59323.61,59323.61,null,null,null,null,"x",null,null,null,null,null,null,null,null,null,null,null,null,"C","2021-02-09","9999-12-31",1,"Constable Communications Specialist Sr",20054051,"C08",8810,1.6000000000000001E-3,52162.239999999998,75635.25,88012,"PUBLIC SAF/EMG MGMT",{"$f":"_xlfn.XLOOKUP(job_titles17[[#This Row],[Extended object ID]],O:O,P:P)","v":{"$error":"#N/A"}}]
["C","1950-01-01","9999-12-31",1,"Corrections Sergeant",20000529,"GRD88",7720,1.55E-2,85056.94,85056.94,null,null,null,null,"x",null,null,null,null,null,null,null,null,null,null,null,null,"C","2018-09-25","9999-12-31",1,"Constable Communications Specialist Supv",20052777,"C10",8810,1.6000000000000001E-3,55877.5,82698.7,88012,"PUBLIC SAF/EMG MGMT",{"$f":"_xlfn.XLOOKUP(job_titles17[[#This Row],[Extended object ID]],O:O,P:P)","v":{"$error":"#N/A"}}]
["C","2013-10-01","9999-12-31","1900-01-01","Corrections Specialist",20050427,"C07",7720,1.55E-2,50398.3,68037.710000000006,null,null,null,null,"x",null,null,null,null,null,null,null,null,null,null,null,null,"C","2021-12-07","9999-12-31",1,"Constable Corporal",20054576,"GRD65",7720,1.55E-2,79983.070000000007,79983.070000000007,88025,"POPS NON-TCSO",{"$f":"_xlfn.XLOOKUP(job_titles17[[#This Row],[Extended object ID]],O:O,P:P)","v":{"$error":"#N/A"}}]
["C","1950-01-01","9999-12-31",1,"Cost Estimator",20000171,"C14",8601,1.8E-3,66183.97,105894.35,null,null,null,null,"x",null,null,null,null,null,null,null,null,null,null,null,null,"C","1950-01-01","9999-12-31",1,"Constable Deputy",20000533,"GRD60",7720,1.55E-2,64600,64600,88025,"POPS NON-TCSO",{"$f":"_xlfn.XLOOKUP(job_titles17[[#This Row],[Extended object ID]],O:O,P:P)","v":{"$error":"#N/A"}}]
["C","1950-01-01","9999-12-31",1,"Counselor",20000186,"C09",8810,1.6000000000000001E-3,53987.92,78282.490000000005,null,null,null,null,"x",null,null,null,null,null,null,null,null,null,null,null,null,"C","1950-01-01","9999-12-31",1,"Constable Deputy Chief",20000539,"GRD69",7720,1.55E-2,97555.19,97555.19,88025,"POPS NON-TCSO",{"$f":"_xlfn.XLOOKUP(job_titles17[[#This Row],[Extended object ID]],O:O,P:P)","v":{"$error":"#N/A"}}]
["C","1950-01-01","9999-12-31",1,"Counselor Sr",20000187,"C10",8810,1.6000000000000001E-3,55877.5,82698.7,null,null,null,null,"x",null,null,null,null,null,null,null,null,null,null,null,null,"C","1950-01-01","9999-12-31",1,"Constable Deputy Sr",20000534,"GRD62",7720,1.55E-2,69163.91,69163.91,88025,"POPS NON-TCSO",{"$f":"_xlfn.XLOOKUP(job_titles17[[#This Row],[Extended object ID]],O:O,P:P)","v":{"$error":"#N/A"}}]
["C","2023-11-28","9999-12-31",1,"County Clerk Asst Deputy Chief",20055826,"C20",8810,1.6000000000000001E-3,99345.18,158952.29,null,null,null,null,"x",null,null,null,null,null,null,null,null,null,null,null,null,"C","2014-03-01","9999-12-31",1,"Constable Lieutenant",20050601,"GRD68",7720,1.55E-2,91089.42,91089.42,88025,"POPS NON-TCSO",{"$f":"_xlfn.XLOOKUP(job_titles17[[#This Row],[Extended object ID]],O:O,P:P)","v":{"$error":"#N/A"}}]
["C","1950-01-01","9999-12-31",1,"County Clerk Deputy Chief",20000319,"C22",8810,1.6000000000000001E-3,113755.98,187697.37,null,null,null,null,"x",null,null,null,null,null,null,null,null,null,null,null,null,"C","1950-01-01","9999-12-31",1,"Constable Sergeant",20000537,"GRD67",7720,1.55E-2,88009.1,88009.1,88025,"POPS NON-TCSO",{"$f":"_xlfn.XLOOKUP(job_titles17[[#This Row],[Extended object ID]],O:O,P:P)","v":{"$error":"#N/A"}}]
["C","1950-01-01","9999-12-31","1900-01-01","County Commissioners Court Specialist",20000103,"C08",8810,1.6000000000000001E-3,52162.239999999998,75635.25,null,null,null,null,"x",null,null,null,null,null,null,null,null,null,null,null,null,"C","1950-01-01","9999-12-31",1,"Contract Compliance Specialist",20000183,"C13",8810,1.6000000000000001E-3,62854.59,100567.34,88010,"PURCHASING & INVENTORY CONTROL",{"$f":"_xlfn.XLOOKUP(job_titles17[[#This Row],[Extended object ID]],O:O,P:P)","v":{"$error":"#N/A"}}]
["C","2019-09-03","9999-12-31",5,"County Executive for Tch and Ops",20053352,null,null,null,null,null,null,null,null,null,"x",null,null,null,null,null,null,null,null,null,null,null,null,"C","1950-01-01","9999-12-31",1,"Cook",20000022,"C02",8810,1.6000000000000001E-3,43264,56243.199999999997,88001,"MAINTENANCE",{"$f":"_xlfn.XLOOKUP(job_titles17[[#This Row],[Extended object ID]],O:O,P:P)","v":{"$error":"#N/A"}}]
["C","1950-01-01","9999-12-31",1,"County/District Attorney Div Dir",20000331,"C24",8810,1.6000000000000001E-3,130239.35,214894.92,null,null,null,null,"x",null,null,null,null,null,null,null,null,null,null,null,null,"C","2022-02-08","9999-12-31",1,"Corporate Privacy Officer",20054626,"C24",8810,1.6000000000000001E-3,130239.35,214894.92,88014,"MANAGEMENT",{"$f":"_xlfn.XLOOKUP(job_titles17[[#This Row],[Extended object ID]],O:O,P:P)","v":{"$error":"#N/A"}}]
["C","1950-01-01","9999-12-31",1,"County/District Attorney Div Dir Asst",20000330,"C23",8810,1.6000000000000001E-3,121718.94,200836.25,null,null,null,null,"x",null,null,null,null,null,null,null,null,null,null,null,null,"C","2016-09-16","9999-12-31",1,"Corporations Managing Director",20051702,"C18",8810,1.6000000000000001E-3,86761.41,138818.25,88005,"FINANCE",{"$f":"_xlfn.XLOOKUP(job_titles17[[#This Row],[Extended object ID]],O:O,P:P)","v":{"$error":"#N/A"}}]
["C","2018-12-04","9999-12-31",1,"County/District Clerk Asst Div Dir",20052902,"C13",8810,1.6000000000000001E-3,62854.59,100567.34,null,null,null,null,"x",null,null,null,null,null,null,null,null,null,null,null,null,"C","2022-11-15","9999-12-31",1,"Corporations Operations Specialist",20055301,"C10",8810,1.6000000000000001E-3,55877.5,82698.7,88004,"ADMINISTRATIVE SUPP",{"$f":"_xlfn.XLOOKUP(job_titles17[[#This Row],[Extended object ID]],O:O,P:P)","v":{"$error":"#N/A"}}]
["C","1950-01-01","9999-12-31",1,"County/District Clerk Div Dir",20000284,"C17",8810,1.6000000000000001E-3,81074.789999999994,129719.67,null,null,null,null,"x",null,null,null,null,null,null,null,null,null,null,null,null,"C","2016-09-16","9999-12-31",1,"Corporations Program Manager",20051701,"C15",8810,1.6000000000000001E-3,70819.7,113311.53,88005,"FINANCE",{"$f":"_xlfn.XLOOKUP(job_titles17[[#This Row],[Extended object ID]],O:O,P:P)","v":{"$error":"#N/A"}}]
["C","2022-08-09","9999-12-31",1,"County/District Clerk Div Dir Succession",20055001,"GRD27",8810,1.6000000000000001E-3,77956.53,124730.53,null,null,null,null,"x",null,null,null,null,null,null,null,null,null,null,null,null,"C","2022-11-15","9999-12-31",1,"Corporations Project Coordinator",20055302,"C13",8810,1.6000000000000001E-3,62854.59,100567.34,88015,"PROFESSIONAL SUPP",{"$f":"_xlfn.XLOOKUP(job_titles17[[#This Row],[Extended object ID]],O:O,P:P)","v":{"$error":"#N/A"}}]
["C","1950-01-01","9999-12-31",1,"Court Bailiff",20000236,"C03",8810,1.6000000000000001E-3,44561.919999999998,57930.5,null,null,null,null,"x",null,null,null,null,null,null,null,null,null,null,null,null,"C","1950-01-01","9999-12-31",1,"Corrections Captain",20000215,"C20",7720,1.55E-2,99345.18,158952.29,88012,"PUBLIC SAF/EMG MGMT",{"$f":"_xlfn.XLOOKUP(job_titles17[[#This Row],[Extended object ID]],O:O,P:P)","v":{"$error":"#N/A"}}]
["C","1950-01-01","9999-12-31",1,"Court Clerk Asst",20000082,"C04",8810,1.6000000000000001E-3,45898.78,59668.41,null,null,null,null,"x",null,null,null,null,null,null,null,null,null,null,null,null,"C","2017-01-01","9999-12-31",1,"Corrections Captain Sn",20051826,"GRD29",7720,1.55E-2,89265.7,142825.07,88012,"PUBLIC SAF/EMG MGMT",{"$f":"_xlfn.XLOOKUP(job_titles17[[#This Row],[Extended object ID]],O:O,P:P)","v":"x"}]
["C","1950-01-01","9999-12-31",1,"Court Clerk I",20000083,"C05",8810,1.6000000000000001E-3,47275.74,61458.46,null,null,null,null,"x",null,null,null,null,null,null,null,null,null,null,null,null,"C","1950-01-01","9999-12-31",1,"Corrections Lieutenant",20000531,"GRD89",7720,1.55E-2,99446.9,99446.9,88024,"POPS TCSO",{"$f":"_xlfn.XLOOKUP(job_titles17[[#This Row],[Extended object ID]],O:O,P:P)","v":{"$error":"#N/A"}}]
["C","2021-01-12","9999-12-31",5,"Court Clerk I",20054001,null,null,null,null,null,null,null,null,null,"x",null,null,null,null,null,null,null,null,null,null,null,null,"C","2019-09-30","9999-12-31",1,"Corrections Maintenance Worker",20053285,"C07",7720,1.55E-2,50398.3,68037.710000000006,88001,"MAINTENANCE",{"$f":"_xlfn.XLOOKUP(job_titles17[[#This Row],[Extended object ID]],O:O,P:P)","v":{"$error":"#N/A"}}]
["C","1950-01-01","9999-12-31",1,"Court Clerk II",20000084,"C07",8810,1.6000000000000001E-3,50398.3,68037.710000000006,null,null,null,null,"x",null,null,null,null,null,null,null,null,null,null,null,null,"C","1950-01-01","9999-12-31",1,"Corrections Officer",20000519,"GRD81",7720,1.55E-2,55000,55000,88024,"POPS TCSO",{"$f":"_xlfn.XLOOKUP(job_titles17[[#This Row],[Extended object ID]],O:O,P:P)","v":{"$error":"#N/A"}}]
["C","1950-01-01","9999-12-31",1,"Court Clerk II Sr",20000085,"C08",8810,1.6000000000000001E-3,52162.239999999998,75635.25,null,null,null,null,"x",null,null,null,null,null,null,null,null,null,null,null,null,"C","1950-01-01","9999-12-31",1,"Corrections Officer Sr",20000521,"GRD83",7720,1.55E-2,59323.61,59323.61,88024,"POPS TCSO",{"$f":"_xlfn.XLOOKUP(job_titles17[[#This Row],[Extended object ID]],O:O,P:P)","v":{"$error":"#N/A"}}]
["C","1950-01-01","9999-12-31",1,"Court Legal Mgmt Adm Dir",20000318,"C21",8810,1.6000000000000001E-3,106310.9,175412.99,null,null,null,null,"x",null,null,null,null,null,null,null,null,null,null,null,null,"C","1950-01-01","9999-12-31",1,"Corrections Sergeant",20000529,"GRD88",7720,1.55E-2,85056.94,85056.94,88024,"POPS TCSO",{"$f":"_xlfn.XLOOKUP(job_titles17[[#This Row],[Extended object ID]],O:O,P:P)","v":{"$error":"#N/A"}}]
["C","1950-01-01","9999-12-31",1,"Court Operations Officer",20000088,"C10",8810,1.6000000000000001E-3,55877.5,82698.7,null,null,null,null,"x",null,null,null,null,null,null,null,null,null,null,null,null,"C","2013-10-01","9999-12-31",1,"Corrections Specialist",20050427,"C07",7720,1.55E-2,50398.3,68037.710000000006,88004,"ADMINISTRATIVE SUPP",{"$f":"_xlfn.XLOOKUP(job_titles17[[#This Row],[Extended object ID]],O:O,P:P)","v":{"$error":"#N/A"}}]
["C","1950-01-01","9999-12-31",1,"Court Reporter",20000237,"C19",8810,1.6000000000000001E-3,92836.33,148538.12,null,null,null,null,"x",null,null,null,null,null,null,null,null,null,null,null,null,"C","1950-01-01","9999-12-31",1,"Cost Estimator",20000171,"C14",8601,1.8E-3,66183.97,105894.35,88009,"ENGINEERING & ARCHITECTURAL",{"$f":"_xlfn.XLOOKUP(job_titles17[[#This Row],[Extended object ID]],O:O,P:P)","v":{"$error":"#N/A"}}]
["C","2013-08-20","9999-12-31",1,"Court Services Director",20050326,"C18",8810,1.6000000000000001E-3,86761.41,138818.25,null,null,null,null,"x",null,null,null,null,null,null,null,null,null,null,null,null,"C","1950-01-01","9999-12-31",1,"Counselor",20000186,"C09",8810,1.6000000000000001E-3,53987.92,78282.490000000005,88011,"SOCIAL SVCS",{"$f":"_xlfn.XLOOKUP(job_titles17[[#This Row],[Extended object ID]],O:O,P:P)","v":{"$error":"#N/A"}}]
["C","1950-01-01","9999-12-31",1,"Court Services Mgmt Adm Coord",20000282,"C10",8810,1.6000000000000001E-3,55877.5,82698.7,null,null,null,null,"x",null,null,null,null,null,null,null,null,null,null,null,null,"C","1950-01-01","9999-12-31",1,"Counselor Sr",20000187,"C10",8810,1.6000000000000001E-3,55877.5,82698.7,88011,"SOCIAL SVCS",{"$f":"_xlfn.XLOOKUP(job_titles17[[#This Row],[Extended object ID]],O:O,P:P)","v":{"$error":"#N/A"}}]
["C","1950-01-01","9999-12-31",1,"Court Services Program Mgr",20000296,"C14",8810,1.6000000000000001E-3,66183.97,105894.35,null,null,null,null,"x",null,null,null,null,null,null,null,null,null,null,null,null,"C","1950-01-01","9999-12-31",1,"County Attorney",20000505,"NCF01",8810,1.6000000000000001E-3,15080,500000,88022,"ELECTED",{"$f":"_xlfn.XLOOKUP(job_titles17[[#This Row],[Extended object ID]],O:O,P:P)","v":"x"}]
["C","2023-02-07","9999-12-31",1,"Court Services Program Mgr Succession",20055451,"C14",8810,1.6000000000000001E-3,66183.97,105894.35,null,null,null,null,"x",null,null,null,null,null,null,null,null,null,null,null,null,"C","1950-01-01","9999-12-31",1,"County Auditor",20000514,"NCF01",8810,1.6000000000000001E-3,15080,500000,88023,"APPOINTED",{"$f":"_xlfn.XLOOKUP(job_titles17[[#This Row],[Extended object ID]],O:O,P:P)","v":"x"}]
["C","2019-09-30","9999-12-31",1,"Crime Analyst",20053287,"C10",7720,1.55E-2,55877.5,82698.7,null,null,null,null,"x",null,null,null,null,null,null,null,null,null,null,null,null,"C","1950-01-01","9999-12-31",1,"County Clerk",20000503,"NCF01",8810,1.6000000000000001E-3,15080,500000,88022,"ELECTED",{"$f":"_xlfn.XLOOKUP(job_titles17[[#This Row],[Extended object ID]],O:O,P:P)","v":"x"}]
["C","2019-09-30","9999-12-31","1900-01-01","Crime Analyst Sr",20053288,"C12",7720,1.55E-2,60437.1,90655.66,null,null,null,null,"x",null,null,null,null,null,null,null,null,null,null,null,null,"C","2023-11-28","9999-12-31",1,"County Clerk Asst Deputy Chief",20055826,"C20",8810,1.6000000000000001E-3,99345.18,158952.29,88014,"MANAGEMENT",{"$f":"_xlfn.XLOOKUP(job_titles17[[#This Row],[Extended object ID]],O:O,P:P)","v":{"$error":"#N/A"}}]
["C","2021-10-19","9999-12-31",1,"Crime Analyst Supervisor",20054459,"C14",7720,1.55E-2,66183.97,105894.35,null,null,null,null,"x",null,null,null,null,null,null,null,null,null,null,null,null,"C","1950-01-01","9999-12-31",1,"County Clerk Deputy Chief",20000319,"C22",8810,1.6000000000000001E-3,113755.98,187697.37,88014,"MANAGEMENT",{"$f":"_xlfn.XLOOKUP(job_titles17[[#This Row],[Extended object ID]],O:O,P:P)","v":{"$error":"#N/A"}}]
["C","2019-03-12","9999-12-31",1,"Crime Scene & Evidence Manager",20053053,"C16",7720,1.55E-2,75776.03,121241.65,null,null,null,null,"x",null,null,null,null,null,null,null,null,null,null,null,null,"C","2015-01-30","9999-12-31",1,"County Clerk Deputy Chief Sn",20050951,"GRD31",8810,1.6000000000000001E-3,102222.02,163555.18,88014,"MANAGEMENT",{"$f":"_xlfn.XLOOKUP(job_titles17[[#This Row],[Extended object ID]],O:O,P:P)","v":"x"}]
["C","1950-01-01","9999-12-31",1,"Crime Scene Specialist",20000212,"C09",7720,1.55E-2,53987.92,78282.490000000005,null,null,null,null,"x",null,null,null,null,null,null,null,null,null,null,null,null,"C","1950-01-01","9999-12-31",1,"County Commissioner",20000501,"NCF01",8810,1.6000000000000001E-3,15080,500000,88022,"ELECTED",{"$f":"_xlfn.XLOOKUP(job_titles17[[#This Row],[Extended object ID]],O:O,P:P)","v":"x"}]
["C","2019-10-01","9999-12-31",1,"Crime Scene Specialist Lead",20053426,"C11",7720,1.55E-2,58112.6,87168.9,null,null,null,null,"x",null,null,null,null,null,null,null,null,null,null,null,null,"C","1950-01-01","9999-12-31",1,"County Commissioners Court Specialist",20000103,"C08",8810,1.6000000000000001E-3,52162.239999999998,75635.25,88004,"ADMINISTRATIVE SUPP",{"$f":"_xlfn.XLOOKUP(job_titles17[[#This Row],[Extended object ID]],O:O,P:P)","v":{"$error":"#N/A"}}]
["C","2017-12-01","9999-12-31",1,"CSCD Accounting Specialist I",20052311,"CSCD13",9999,0,30238.83,33883.199999999997,null,null,null,null,"x",null,null,null,null,null,null,null,null,null,null,null,null,"C","2017-04-19","9999-12-31",1,"County Commissioners Court Specialist Sn",20052001,"GRD16",8810,1.6000000000000001E-3,37024,55536,88004,"ADMINISTRATIVE SUPP",{"$f":"_xlfn.XLOOKUP(job_titles17[[#This Row],[Extended object ID]],O:O,P:P)","v":"x"}]
["C","2017-12-01","9999-12-31",1,"CSCD Accounting Specialist II",20052313,"CSCD14",9999,0,32345.46,36212.800000000003,null,null,null,null,"x",null,null,null,null,null,null,null,null,null,null,null,null,"C","1950-01-01","9999-12-31",1,"County Court At Law Judge",20000502,"NCF01",8810,1.6000000000000001E-3,15080,500000,88022,"ELECTED",{"$f":"_xlfn.XLOOKUP(job_titles17[[#This Row],[Extended object ID]],O:O,P:P)","v":"x"}]
["C","2017-12-01","9999-12-31",1,"CSCD Accounting Specialist III",20052315,"CSCD15",9999,0,34608.5,38750.400000000001,null,null,null,null,"x",null,null,null,null,null,null,null,null,null,null,null,null,"C","2023-07-25","9999-12-31",1,"County Executive CLgS",20055651,"C27",8810,1.6000000000000001E-3,159548.98000000001,263255.82,88007,"COUNTY EXECUTIVES",{"$f":"_xlfn.XLOOKUP(job_titles17[[#This Row],[Extended object ID]],O:O,P:P)","v":{"$error":"#N/A"}}]
["C","2017-12-01","9999-12-31",1,"CSCD Accounting Specialist IV",20052317,"CSCD16",9999,0,37024,41475.199999999997,null,null,null,null,"x",null,null,null,null,null,null,null,null,null,null,null,null,"C","2023-07-25","9999-12-31",1,"County Executive DDPPM",20055652,"C27",8810,1.6000000000000001E-3,159548.98000000001,263255.82,88007,"COUNTY EXECUTIVES",{"$f":"_xlfn.XLOOKUP(job_titles17[[#This Row],[Extended object ID]],O:O,P:P)","v":{"$error":"#N/A"}}]
["C","2017-12-01","9999-12-31",1,"CSCD Accounting Specialist V",20052319,"CSCD17",9999,0,39615.06,44366.400000000001,null,null,null,null,"x",null,null,null,null,null,null,null,null,null,null,null,null,"C","1950-01-01","9999-12-31",1,"County Executive ES",20000149,"GRD27",8810,1.6000000000000001E-3,77956.53,124730.53,88007,"COUNTY EXECUTIVES",{"$f":"_xlfn.XLOOKUP(job_titles17[[#This Row],[Extended object ID]],O:O,P:P)","v":"x"}]
["C","2017-12-01","9999-12-31",1,"CSCD Assistant Director",20052341,"CSCD32",9999,0,109380.75,122512,null,null,null,null,"x",null,null,null,null,null,null,null,null,null,null,null,null,"C","2012-06-08","9999-12-31",1,"County Executive ES Succession",20050004,"GRD34",8810,1.6000000000000001E-3,125230.14,200368.23,88007,"COUNTY EXECUTIVES",{"$f":"_xlfn.XLOOKUP(job_titles17[[#This Row],[Extended object ID]],O:O,P:P)","v":"x"}]
["C","2017-12-01","9999-12-31",1,"CSCD Business Analyst I",20052330,"CSCD20",9999,0,48530.77,54350.400000000001,null,null,null,null,"x",null,null,null,null,null,null,null,null,null,null,null,null,"C","2019-09-30","9999-12-31",1,"County Executive for Tch and Ops",20053302,"C28",8810,1.6000000000000001E-3,170717.4,281683.71999999997,88007,"COUNTY EXECUTIVES",{"$f":"_xlfn.XLOOKUP(job_titles17[[#This Row],[Extended object ID]],O:O,P:P)","v":{"$error":"#N/A"}}]
["C","2017-12-01","9999-12-31",1,"CSCD Business Analyst II",20052331,"CSCD21",9999,0,51934.48,58156.800000000003,null,null,null,null,"x",null,null,null,null,null,null,null,null,null,null,null,null,"C","2019-09-03","9999-12-31",5,"County Executive for Tch and Ops",20053352,null,null,null,null,null,0,"0",{"$f":"_xlfn.XLOOKUP(job_titles17[[#This Row],[Extended object ID]],O:O,P:P)","v":{"$error":"#N/A"}}]
["C","2017-12-01","9999-12-31",1,"CSCD Business Analyst III",20052333,"CSCD22",9999,0,55578.85,62254.400000000001,null,null,null,null,"x",null,null,null,null,null,null,null,null,null,null,null,null,"C","1950-01-01","9999-12-31",1,"County Executive HHS",20000150,"C27",8810,1.6000000000000001E-3,159548.98000000001,263255.82,88007,"COUNTY EXECUTIVES",{"$f":"_xlfn.XLOOKUP(job_titles17[[#This Row],[Extended object ID]],O:O,P:P)","v":"x"}]
["C","2017-12-01","9999-12-31",1,"CSCD Business Analyst IV",20052334,"CSCD24",9999,0,63638.43,71281.600000000006,null,null,null,null,"x",null,null,null,null,null,null,null,null,null,null,null,null,"C","2022-02-14","9999-12-31",1,"County Executive HHS Succession",20054651,"GRD36",8810,1.6000000000000001E-3,143376.06,229401.74,88007,"COUNTY EXECUTIVES",{"$f":"_xlfn.XLOOKUP(job_titles17[[#This Row],[Extended object ID]],O:O,P:P)","v":"x"}]
["C","2017-12-01","9999-12-31",1,"CSCD Case Work Specialist I",20052339,"CSCD14",9999,0,32345.46,36212.800000000003,null,null,null,null,"x",null,null,null,null,null,null,null,null,null,null,null,null,"C","1950-01-01","9999-12-31",1,"County Executive JPS",20000148,"C27",8810,1.6000000000000001E-3,159548.98000000001,263255.82,88007,"COUNTY EXECUTIVES",{"$f":"_xlfn.XLOOKUP(job_titles17[[#This Row],[Extended object ID]],O:O,P:P)","v":"x"}]
["C","2017-12-01","9999-12-31",1,"CSCD Case Work Specialist II",20052340,"CSCD16",9999,0,37024,41475.199999999997,null,null,null,null,"x",null,null,null,null,null,null,null,null,null,null,null,null,"C","2022-06-28","9999-12-31",1,"County Executive JPS Succession",20054976,"GRD36",8810,1.6000000000000001E-3,143376.06,229401.74,88007,"COUNTY EXECUTIVES",{"$f":"_xlfn.XLOOKUP(job_titles17[[#This Row],[Extended object ID]],O:O,P:P)","v":"x"}]
["C","2018-07-01","9999-12-31",1,"CSCD Case Work Specialist III",20052626,"CSCD17",9999,0,39615.06,44366.400000000001,null,null,null,null,"x",null,null,null,null,null,null,null,null,null,null,null,null,"C","1950-01-01","9999-12-31",1,"County Executive PBO",20000151,"C27",8810,1.6000000000000001E-3,159548.98000000001,263255.82,88007,"COUNTY EXECUTIVES",{"$f":"_xlfn.XLOOKUP(job_titles17[[#This Row],[Extended object ID]],O:O,P:P)","v":"x"}]
["C","2017-12-01","9999-12-31",1,"CSCD Case Work Specialist IV",20052401,"CSCD19",9999,0,45346.5,50793.599999999999,null,null,null,null,"x",null,null,null,null,null,null,null,null,null,null,null,null,"C","2014-03-27","9999-12-31",1,"County Executive Succession",20050576,"GRD34",8810,1.6000000000000001E-3,125230.14,200368.23,88007,"COUNTY EXECUTIVES",{"$f":"_xlfn.XLOOKUP(job_titles17[[#This Row],[Extended object ID]],O:O,P:P)","v":"x"}]
["C","2017-12-01","9999-12-31",1,"CSCD Chemical Dependency Counselor I",20052348,"CSCD16",9999,0,37024,41475.199999999997,null,null,null,null,"x",null,null,null,null,null,null,null,null,null,null,null,null,"C","1950-01-01","9999-12-31",1,"County Executive TNR",20000152,"C27",8810,1.6000000000000001E-3,159548.98000000001,263255.82,88007,"COUNTY EXECUTIVES",{"$f":"_xlfn.XLOOKUP(job_titles17[[#This Row],[Extended object ID]],O:O,P:P)","v":"x"}]
["C","2017-12-01","9999-12-31",1,"CSCD Chemical Dependency Counselor II",20052349,"CSCD18",9999,0,42382.080000000002,47465.599999999999,null,null,null,null,"x",null,null,null,null,null,null,null,null,null,null,null,null,"C","2018-02-23","9999-12-31",1,"County Executive TNR Succession",20052426,"GRD35",8810,1.6000000000000001E-3,133996.29999999999,214394.09,88007,"COUNTY EXECUTIVES",{"$f":"_xlfn.XLOOKUP(job_titles17[[#This Row],[Extended object ID]],O:O,P:P)","v":"x"}]
["C","2023-03-13","9999-12-31",1,"CSCD Clinical Mental Health Pf II",20055501,"CSCD22",9999,0,55578.85,62254.400000000001,null,null,null,null,"x",null,null,null,null,null,null,null,null,null,null,null,null,"C","1950-01-01","9999-12-31",1,"County Judge",20000500,"NCF01",8810,1.6000000000000001E-3,15080,500000,88022,"ELECTED",{"$f":"_xlfn.XLOOKUP(job_titles17[[#This Row],[Extended object ID]],O:O,P:P)","v":"x"}]
["C","2017-12-01","9999-12-31",1,"CSCD Clinical Mental Health Professional",20052287,"CSCD21",9999,0,51934.48,58156.800000000003,null,null,null,null,"x",null,null,null,null,null,null,null,null,null,null,null,null,"C","1950-01-01","9999-12-31",1,"County Treasurer",20000504,"NCF01",8810,1.6000000000000001E-3,15080,500000,88022,"ELECTED",{"$f":"_xlfn.XLOOKUP(job_titles17[[#This Row],[Extended object ID]],O:O,P:P)","v":"x"}]
["C","2017-12-01","9999-12-31",1,"CSCD Counselor I",20052350,"CSCD17",9999,0,39615.06,44366.400000000001,null,null,null,null,"x",null,null,null,null,null,null,null,null,null,null,null,null,"C","1950-01-01","9999-12-31",1,"County/District Attorney Div Dir",20000331,"C24",8810,1.6000000000000001E-3,130239.35,214894.92,88014,"MANAGEMENT",{"$f":"_xlfn.XLOOKUP(job_titles17[[#This Row],[Extended object ID]],O:O,P:P)","v":{"$error":"#N/A"}}]
["C","2017-12-01","9999-12-31",1,"CSCD Counselor II",20052351,"CSCD19",9999,0,45346.5,50793.599999999999,null,null,null,null,"x",null,null,null,null,null,null,null,null,null,null,null,null,"C","1950-01-01","9999-12-31",1,"County/District Attorney Div Dir Asst",20000330,"C23",8810,1.6000000000000001E-3,121718.94,200836.25,88014,"MANAGEMENT",{"$f":"_xlfn.XLOOKUP(job_titles17[[#This Row],[Extended object ID]],O:O,P:P)","v":{"$error":"#N/A"}}]
["C","2017-12-01","9999-12-31",1,"CSCD Counselor III",20052352,"CSCD20",9999,0,48530.77,54350.400000000001,null,null,null,null,"x",null,null,null,null,null,null,null,null,null,null,null,null,"C","2018-12-04","9999-12-31",1,"County/District Clerk Asst Div Dir",20052902,"C13",8810,1.6000000000000001E-3,62854.59,100567.34,88014,"MANAGEMENT",{"$f":"_xlfn.XLOOKUP(job_titles17[[#This Row],[Extended object ID]],O:O,P:P)","v":{"$error":"#N/A"}}]
["C","2017-12-01","9999-12-31",1,"CSCD Counselor IV",20052353,"CSCD22",9999,0,55578.85,62254.400000000001,null,null,null,null,"x",null,null,null,null,null,null,null,null,null,null,null,null,"C","1950-01-01","9999-12-31",1,"County/District Clerk Div Dir",20000284,"C17",8810,1.6000000000000001E-3,81074.789999999994,129719.67,88014,"MANAGEMENT",{"$f":"_xlfn.XLOOKUP(job_titles17[[#This Row],[Extended object ID]],O:O,P:P)","v":{"$error":"#N/A"}}]
["C","2017-12-01","9999-12-31",1,"CSCD Division Director I",20052309,"CSCD28",9999,0,83424.429999999993,93454.399999999994,null,null,null,null,"x",null,null,null,null,null,null,null,null,null,null,null,null,"C","2013-02-05","2013-12-31",1,"County/District Clerk Div Dir Succession",20050201,null,8810,1.6000000000000001E-3,null,null,0,"0",{"$f":"_xlfn.XLOOKUP(job_titles17[[#This Row],[Extended object ID]],O:O,P:P)","v":"x"}]
["C","2017-12-01","9999-12-31",1,"CSCD Division Director II",20052318,"CSCD29",9999,0,89265.7,99964.800000000003,null,null,null,null,"x",null,null,null,null,null,null,null,null,null,null,null,null,"C","2022-08-09","9999-12-31",1,"County/District Clerk Div Dir Succession",20055001,"GRD27",8810,1.6000000000000001E-3,77956.53,124730.53,88014,"MANAGEMENT",{"$f":"_xlfn.XLOOKUP(job_titles17[[#This Row],[Extended object ID]],O:O,P:P)","v":{"$error":"#N/A"}}]
["C","2017-12-01","9999-12-31",1,"CSCD Division Director III",20052323,"CSCD30",9999,0,95524.21,106974.39999999999,null,null,null,null,"x",null,null,null,null,null,null,null,null,null,null,null,null,"C","1950-01-01","9999-12-31",1,"Court Bailiff",20000236,"C03",8810,1.6000000000000001E-3,44561.919999999998,57930.5,88013,"COURT SERVICES",{"$f":"_xlfn.XLOOKUP(job_titles17[[#This Row],[Extended object ID]],O:O,P:P)","v":{"$error":"#N/A"}}]
["C","2017-12-01","9999-12-31",1,"CSCD Executive Assistant I",20052303,"CSCD18",9999,0,42382.080000000002,47465.599999999999,null,null,null,null,"x",null,null,null,null,null,null,null,null,null,null,null,null,"C","1950-01-01","9999-12-31",1,"Court Clerk Asst",20000082,"C04",8810,1.6000000000000001E-3,45898.78,59668.41,88004,"ADMINISTRATIVE SUPP",{"$f":"_xlfn.XLOOKUP(job_titles17[[#This Row],[Extended object ID]],O:O,P:P)","v":{"$error":"#N/A"}}]
["C","2017-12-01","9999-12-31",1,"CSCD Executive Assistant II",20052305,"CSCD19",9999,0,45346.5,50793.599999999999,null,null,null,null,"x",null,null,null,null,null,null,null,null,null,null,null,null,"C","1950-01-01","9999-12-31",1,"Court Clerk I",20000083,"C05",8810,1.6000000000000001E-3,47275.74,61458.46,88004,"ADMINISTRATIVE SUPP",{"$f":"_xlfn.XLOOKUP(job_titles17[[#This Row],[Extended object ID]],O:O,P:P)","v":{"$error":"#N/A"}}]
["C","2017-12-01","9999-12-31",1,"CSCD Executive Assistant III",20052306,"CSCD20",9999,0,48530.77,54350.400000000001,null,null,null,null,"x",null,null,null,null,null,null,null,null,null,null,null,null,"C","2021-01-12","9999-12-31",5,"Court Clerk I",20054001,null,null,null,null,null,0,"0",{"$f":"_xlfn.XLOOKUP(job_titles17[[#This Row],[Extended object ID]],O:O,P:P)","v":{"$error":"#N/A"}}]
["C","2017-12-01","9999-12-31",1,"CSCD Executive Assistant IV",20052307,"CSCD21",9999,0,51934.48,58156.800000000003,null,null,null,null,"x",null,null,null,null,null,null,null,null,null,null,null,null,"C","1950-01-01","9999-12-31",1,"Court Clerk II",20000084,"C07",8810,1.6000000000000001E-3,50398.3,68037.710000000006,88004,"ADMINISTRATIVE SUPP",{"$f":"_xlfn.XLOOKUP(job_titles17[[#This Row],[Extended object ID]],O:O,P:P)","v":{"$error":"#N/A"}}]
["C","2017-12-01","9999-12-31",1,"CSCD Financial Analyst I",20052302,"CSCD27",9999,0,77956.53,87297.600000000006,null,null,null,null,"x",null,null,null,null,null,null,null,null,null,null,null,null,"C","1950-01-01","9999-12-31",1,"Court Clerk II Sr",20000085,"C08",8810,1.6000000000000001E-3,52162.239999999998,75635.25,88004,"ADMINISTRATIVE SUPP",{"$f":"_xlfn.XLOOKUP(job_titles17[[#This Row],[Extended object ID]],O:O,P:P)","v":{"$error":"#N/A"}}]
["C","2017-12-01","9999-12-31",1,"CSCD Financial Analyst II",20052308,"CSCD28",9999,0,83424.429999999993,93454.399999999994,null,null,null,null,"x",null,null,null,null,null,null,null,null,null,null,null,null,"C","1950-01-01","9999-12-31",1,"Court Legal Mgmt Adm Dir",20000318,"C21",8810,1.6000000000000001E-3,106310.9,175412.99,88014,"MANAGEMENT",{"$f":"_xlfn.XLOOKUP(job_titles17[[#This Row],[Extended object ID]],O:O,P:P)","v":{"$error":"#N/A"}}]
["C","2017-12-01","9999-12-31",1,"CSCD Human Resources Specialist I",20052324,"CSCD13",9999,0,30238.83,33883.199999999997,null,null,null,null,"x",null,null,null,null,null,null,null,null,null,null,null,null,"C","2022-12-13","9999-12-31",1,"Court Legal Mgmt Adm Dir Succession",20055379,"C21",8810,1.6000000000000001E-3,106310.9,175412.99,88014,"MANAGEMENT",{"$f":"_xlfn.XLOOKUP(job_titles17[[#This Row],[Extended object ID]],O:O,P:P)","v":"x"}]
["C","2017-12-01","9999-12-31",1,"CSCD Human Resources Specialist II",20052326,"CSCD15",9999,0,34608.5,38750.400000000001,null,null,null,null,"x",null,null,null,null,null,null,null,null,null,null,null,null,"C","1950-01-01","9999-12-31",1,"Court Operations Officer",20000088,"C10",8810,1.6000000000000001E-3,55877.5,82698.7,88004,"ADMINISTRATIVE SUPP",{"$f":"_xlfn.XLOOKUP(job_titles17[[#This Row],[Extended object ID]],O:O,P:P)","v":{"$error":"#N/A"}}]
["C","2017-12-01","9999-12-31",1,"CSCD Human Resources Specialist III",20052328,"CSCD17",9999,0,39615.06,44366.400000000001,null,null,null,null,"x",null,null,null,null,null,null,null,null,null,null,null,null,"C","1950-01-01","9999-12-31",1,"Court Reporter",20000237,"C19",8810,1.6000000000000001E-3,92836.33,148538.12,88013,"COURT SERVICES",{"$f":"_xlfn.XLOOKUP(job_titles17[[#This Row],[Extended object ID]],O:O,P:P)","v":{"$error":"#N/A"}}]
["C","2017-12-01","9999-12-31",1,"CSCD Human Resources Specialist IV",20052329,"CSCD19",9999,0,45346.5,50793.599999999999,null,null,null,null,"x",null,null,null,null,null,null,null,null,null,null,null,null,"C","2013-08-20","9999-12-31",1,"Court Services Director",20050326,"C18",8810,1.6000000000000001E-3,86761.41,138818.25,88014,"MANAGEMENT",{"$f":"_xlfn.XLOOKUP(job_titles17[[#This Row],[Extended object ID]],O:O,P:P)","v":{"$error":"#N/A"}}]
["C","2017-12-01","9999-12-31",1,"CSCD Intake Specialist I",20052332,"CSCD13",9999,0,30238.83,33883.199999999997,null,null,null,null,"x",null,null,null,null,null,null,null,null,null,null,null,null,"C","1950-01-01","9999-12-31",1,"Court Services Mgmt Adm Coord",20000282,"C10",8810,1.6000000000000001E-3,55877.5,82698.7,88014,"MANAGEMENT",{"$f":"_xlfn.XLOOKUP(job_titles17[[#This Row],[Extended object ID]],O:O,P:P)","v":{"$error":"#N/A"}}]
["C","2017-12-01","9999-12-31",1,"CSCD Intake Specialist II",20052338,"CSCD15",9999,0,34608.5,38750.400000000001,null,null,null,null,"x",null,null,null,null,null,null,null,null,null,null,null,null,"C","1950-01-01","9999-12-31",1,"Court Services Program Mgr",20000296,"C14",8810,1.6000000000000001E-3,66183.97,105894.35,88014,"MANAGEMENT",{"$f":"_xlfn.XLOOKUP(job_titles17[[#This Row],[Extended object ID]],O:O,P:P)","v":{"$error":"#N/A"}}]
["C","2017-12-01","9999-12-31",1,"CSCD Intake Specialist III",20052402,"CSCD17",9999,0,39615.06,44366.400000000001,null,null,null,null,"x",null,null,null,null,null,null,null,null,null,null,null,null,"C","2023-02-07","9999-12-31",1,"Court Services Program Mgr Succession",20055451,"C14",8810,1.6000000000000001E-3,66183.97,105894.35,88014,"MANAGEMENT",{"$f":"_xlfn.XLOOKUP(job_titles17[[#This Row],[Extended object ID]],O:O,P:P)","v":{"$error":"#N/A"}}]
["C","2016-04-25","9999-12-31",1,"CSCD Internal Auditor",20051426,"CSCD24",9999,0,63638.43,71281.600000000006,null,null,null,null,"x",null,null,null,null,null,null,null,null,null,null,null,null,"C","2019-09-30","9999-12-31",1,"Crime Analyst",20053287,"C10",7720,1.55E-2,55877.5,82698.7,88012,"PUBLIC SAF/EMG MGMT",{"$f":"_xlfn.XLOOKUP(job_titles17[[#This Row],[Extended object ID]],O:O,P:P)","v":{"$error":"#N/A"}}]
["C","2017-12-01","9999-12-31",1,"CSCD Office Manager I",20052335,"CSCD21",9999,0,51934.48,58156.800000000003,null,null,null,null,"x",null,null,null,null,null,null,null,null,null,null,null,null,"C","2019-09-30","9999-12-31",1,"Crime Analyst Sr",20053288,"C12",7720,1.55E-2,60437.1,90655.66,88012,"PUBLIC SAF/EMG MGMT",{"$f":"_xlfn.XLOOKUP(job_titles17[[#This Row],[Extended object ID]],O:O,P:P)","v":{"$error":"#N/A"}}]
["C","2017-12-01","9999-12-31",1,"CSCD Office Manager II",20052336,"CSCD22",9999,0,55578.85,62254.400000000001,null,null,null,null,"x",null,null,null,null,null,null,null,null,null,null,null,null,"C","2021-10-19","9999-12-31",1,"Crime Analyst Supervisor",20054459,"C14",7720,1.55E-2,66183.97,105894.35,88012,"PUBLIC SAF/EMG MGMT",{"$f":"_xlfn.XLOOKUP(job_titles17[[#This Row],[Extended object ID]],O:O,P:P)","v":{"$error":"#N/A"}}]
["C","2017-12-01","9999-12-31",1,"CSCD Office Specialist I",20052310,"CSCD13",9999,0,30238.83,33883.199999999997,null,null,null,null,"x",null,null,null,null,null,null,null,null,null,null,null,null,"C","2019-03-12","9999-12-31",1,"Crime Scene & Evidence Manager",20053053,"C16",7720,1.55E-2,75776.03,121241.65,88012,"PUBLIC SAF/EMG MGMT",{"$f":"_xlfn.XLOOKUP(job_titles17[[#This Row],[Extended object ID]],O:O,P:P)","v":{"$error":"#N/A"}}]
["C","2017-12-01","9999-12-31",1,"CSCD Office Specialist II",20052312,"CSCD15",9999,0,34608.5,38750.400000000001,null,null,null,null,"x",null,null,null,null,null,null,null,null,null,null,null,null,"C","2019-05-19","9999-12-31",1,"Crime Scene & Evidence Manager Sn",20053151,"GRD26",7720,1.55E-2,72861.570000000007,116578.59,88012,"PUBLIC SAF/EMG MGMT",{"$f":"_xlfn.XLOOKUP(job_titles17[[#This Row],[Extended object ID]],O:O,P:P)","v":"x"}]
["C","2017-12-01","9999-12-31",1,"CSCD Office Specialist III",20052314,"CSCD17",9999,0,39615.06,44366.400000000001,null,null,null,null,"x",null,null,null,null,null,null,null,null,null,null,null,null,"C","1950-01-01","9999-12-31",1,"Crime Scene Specialist",20000212,"C09",7720,1.55E-2,53987.92,78282.490000000005,88012,"PUBLIC SAF/EMG MGMT",{"$f":"_xlfn.XLOOKUP(job_titles17[[#This Row],[Extended object ID]],O:O,P:P)","v":{"$error":"#N/A"}}]
["C","2017-12-01","9999-12-31",1,"CSCD Office Specialist IV",20052316,"CSCD19",9999,0,45346.5,50793.599999999999,null,null,null,null,"x",null,null,null,null,null,null,null,null,null,null,null,null,"C","2019-10-01","9999-12-31",1,"Crime Scene Specialist Lead",20053426,"C11",7720,1.55E-2,58112.6,87168.9,88012,"PUBLIC SAF/EMG MGMT",{"$f":"_xlfn.XLOOKUP(job_titles17[[#This Row],[Extended object ID]],O:O,P:P)","v":{"$error":"#N/A"}}]
["C","2017-12-01","9999-12-31",1,"CSCD Planner I",20052345,"CSCD21",9999,0,51934.48,58156.800000000003,null,null,null,null,"x",null,null,null,null,null,null,null,null,null,null,null,null,"C","2012-09-24","9999-12-31",1,"CSCD Accounting Clerk",20050055,"NCF01",9999,0,15080,500000,88005,"FINANCE",{"$f":"_xlfn.XLOOKUP(job_titles17[[#This Row],[Extended object ID]],O:O,P:P)","v":{"$error":"#N/A"}}]
["C","2017-12-01","9999-12-31",1,"CSCD Planner II",20052347,"CSCD24",9999,0,63638.43,71281.600000000006,null,null,null,null,"x",null,null,null,null,null,null,null,null,null,null,null,null,"C","2017-12-01","9999-12-31",1,"CSCD Accounting Specialist I",20052311,"CSCD13",9999,0,30238.83,33883.199999999997,88005,"FINANCE",{"$f":"_xlfn.XLOOKUP(job_titles17[[#This Row],[Extended object ID]],O:O,P:P)","v":{"$error":"#N/A"}}]
["C","2023-10-20","9999-12-31",1,"CSCD Probation Officer Court",20055776,"CSCD20",9999,0,48530.77,54350.400000000001,null,null,null,null,"x",null,null,null,null,null,null,null,null,null,null,null,null,"C","2017-12-01","9999-12-31",1,"CSCD Accounting Specialist II",20052313,"CSCD14",9999,0,32345.46,36212.800000000003,88005,"FINANCE",{"$f":"_xlfn.XLOOKUP(job_titles17[[#This Row],[Extended object ID]],O:O,P:P)","v":{"$error":"#N/A"}}]
["C","2017-12-01","9999-12-31",1,"CSCD Probation Officer I",20052342,"CSCD16",9999,0,37024,41475.199999999997,null,null,null,null,"x",null,null,null,null,null,null,null,null,null,null,null,null,"C","2017-12-01","9999-12-31",1,"CSCD Accounting Specialist III",20052315,"CSCD15",9999,0,34608.5,38750.400000000001,88005,"FINANCE",{"$f":"_xlfn.XLOOKUP(job_titles17[[#This Row],[Extended object ID]],O:O,P:P)","v":{"$error":"#N/A"}}]
["C","2017-12-01","9999-12-31",1,"CSCD Probation Officer II",20052343,"CSCD18",9999,0,42382.080000000002,47465.599999999999,null,null,null,null,"x",null,null,null,null,null,null,null,null,null,null,null,null,"C","2017-12-01","9999-12-31",1,"CSCD Accounting Specialist IV",20052317,"CSCD16",9999,0,37024,41475.199999999997,88005,"FINANCE",{"$f":"_xlfn.XLOOKUP(job_titles17[[#This Row],[Extended object ID]],O:O,P:P)","v":{"$error":"#N/A"}}]
["C","2017-12-01","9999-12-31",1,"CSCD Probation Officer III",20052344,"CSCD20",9999,0,48530.77,54350.400000000001,null,null,null,null,"x",null,null,null,null,null,null,null,null,null,null,null,null,"C","2017-12-01","9999-12-31",1,"CSCD Accounting Specialist V",20052319,"CSCD17",9999,0,39615.06,44366.400000000001,88005,"FINANCE",{"$f":"_xlfn.XLOOKUP(job_titles17[[#This Row],[Extended object ID]],O:O,P:P)","v":{"$error":"#N/A"}}]
["C","2017-12-01","9999-12-31",1,"CSCD Probation Officer IV",20052346,"CSCD22",9999,0,55578.85,62254.400000000001,null,null,null,null,"x",null,null,null,null,null,null,null,null,null,null,null,null,"C","2012-09-24","9999-12-31",1,"CSCD Administrative Assoc",20050063,"NCF01",9999,0,15080,500000,88004,"ADMINISTRATIVE SUPP",{"$f":"_xlfn.XLOOKUP(job_titles17[[#This Row],[Extended object ID]],O:O,P:P)","v":{"$error":"#N/A"}}]
["C","2023-10-20","9999-12-31",1,"CSCD Probation Officer Substance Use",20055777,"CSCD20",9999,0,48530.77,54350.400000000001,null,null,null,null,"x",null,null,null,null,null,null,null,null,null,null,null,null,"C","2012-09-24","9999-12-31",1,"CSCD Administrative Asst I",20050057,"NCF01",9999,0,15080,500000,88004,"ADMINISTRATIVE SUPP",{"$f":"_xlfn.XLOOKUP(job_titles17[[#This Row],[Extended object ID]],O:O,P:P)","v":{"$error":"#N/A"}}]
["C","2019-04-15","9999-12-31",1,"CSCD Psychologist",20053102,"CSCD26",9999,0,72861.570000000007,81619.199999999997,null,null,null,null,"x",null,null,null,null,null,null,null,null,null,null,null,null,"C","2012-09-24","9999-12-31",1,"CSCD Administrative Services Div Dir",20050080,"NCF01",9999,0,15080,500000,88014,"MANAGEMENT",{"$f":"_xlfn.XLOOKUP(job_titles17[[#This Row],[Extended object ID]],O:O,P:P)","v":{"$error":"#N/A"}}]
["C","2019-06-03","9999-12-31",1,"CSCD Re-Entry Program Coord",20053176,"CSCD20",9999,0,48530.77,54350.400000000001,null,null,null,null,"x",null,null,null,null,null,null,null,null,null,null,null,null,"C","2017-12-01","9999-12-31",1,"CSCD Assistant Director",20052341,"CSCD32",9999,0,109380.75,122512,88014,"MANAGEMENT",{"$f":"_xlfn.XLOOKUP(job_titles17[[#This Row],[Extended object ID]],O:O,P:P)","v":{"$error":"#N/A"}}]
["C","2017-12-01","9999-12-31",1,"CSCD Residential Specialist I",20052282,"CSCD13",9999,0,30238.83,33883.199999999997,null,null,null,null,"x",null,null,null,null,null,null,null,null,null,null,null,null,"C","2012-09-24","9999-12-31",1,"CSCD Business Analyst Assoc",20050070,"NCF01",9999,0,15080,500000,88021,"INFORMATION TECH",{"$f":"_xlfn.XLOOKUP(job_titles17[[#This Row],[Extended object ID]],O:O,P:P)","v":{"$error":"#N/A"}}]
["C","2017-12-01","9999-12-31",1,"CSCD Residential Specialist II",20052283,"CSCD15",9999,0,34608.5,38750.400000000001,null,null,null,null,"x",null,null,null,null,null,null,null,null,null,null,null,null,"C","2012-09-24","9999-12-31",1,"CSCD Business Analyst I",20050077,"NCF01",9999,0,15080,500000,88021,"INFORMATION TECH",{"$f":"_xlfn.XLOOKUP(job_titles17[[#This Row],[Extended object ID]],O:O,P:P)","v":{"$error":"#N/A"}}]
["C","2017-12-01","9999-12-31",1,"CSCD Residential Specialist III",20052284,"CSCD17",9999,0,39615.06,44366.400000000001,null,null,null,null,"x",null,null,null,null,null,null,null,null,null,null,null,null,"C","2017-12-01","9999-12-31",1,"CSCD Business Analyst I",20052330,"CSCD20",9999,0,48530.77,54350.400000000001,88021,"INFORMATION TECH",{"$f":"_xlfn.XLOOKUP(job_titles17[[#This Row],[Extended object ID]],O:O,P:P)","v":{"$error":"#N/A"}}]
["C","2017-12-01","9999-12-31",1,"CSCD Residential Specialist IV",20052285,"CSCD19",9999,0,45346.5,50793.599999999999,null,null,null,null,"x",null,null,null,null,null,null,null,null,null,null,null,null,"C","2012-09-24","9999-12-31",1,"CSCD Business Analyst II",20050152,"NCF01",9999,0,15080,500000,88021,"INFORMATION TECH",{"$f":"_xlfn.XLOOKUP(job_titles17[[#This Row],[Extended object ID]],O:O,P:P)","v":{"$error":"#N/A"}}]
["C","2021-09-23","9999-12-31",1,"CSCD Social Worker",20054278,"CSCD21",8810,1.6000000000000001E-3,51934.48,58156.800000000003,null,null,null,null,"x",null,null,null,null,null,null,null,null,null,null,null,null,"C","2017-12-01","9999-12-31",1,"CSCD Business Analyst II",20052331,"CSCD21",9999,0,51934.48,58156.800000000003,88021,"INFORMATION TECH",{"$f":"_xlfn.XLOOKUP(job_titles17[[#This Row],[Extended object ID]],O:O,P:P)","v":{"$error":"#N/A"}}]
["C","2017-12-01","9999-12-31",1,"CSCD Technician I",20052322,"CSCD12",9999,0,28262.42,31657.599999999999,null,null,null,null,"x",null,null,null,null,null,null,null,null,null,null,null,null,"C","2017-12-01","9999-12-31",1,"CSCD Business Analyst III",20052333,"CSCD22",9999,0,55578.85,62254.400000000001,88021,"INFORMATION TECH",{"$f":"_xlfn.XLOOKUP(job_titles17[[#This Row],[Extended object ID]],O:O,P:P)","v":{"$error":"#N/A"}}]
["C","2017-12-01","9999-12-31",1,"CSCD Technician II",20052325,"CSCD13",9999,0,30238.83,33883.199999999997,null,null,null,null,"x",null,null,null,null,null,null,null,null,null,null,null,null,"C","2017-12-01","9999-12-31",1,"CSCD Business Analyst IV",20052334,"CSCD24",9999,0,63638.43,71281.600000000006,88021,"INFORMATION TECH",{"$f":"_xlfn.XLOOKUP(job_titles17[[#This Row],[Extended object ID]],O:O,P:P)","v":{"$error":"#N/A"}}]
["C","2017-12-01","9999-12-31",1,"CSCD Technician III",20052327,"CSCD14",9999,0,32345.46,36212.800000000003,null,null,null,null,"x",null,null,null,null,null,null,null,null,null,null,null,null,"C","2012-09-24","9999-12-31",1,"CSCD Case Mgmt Coord",20050074,"NCF01",9999,0,15080,500000,88011,"SOCIAL SVCS",{"$f":"_xlfn.XLOOKUP(job_titles17[[#This Row],[Extended object ID]],O:O,P:P)","v":{"$error":"#N/A"}}]
["C","2017-12-01","9999-12-31",1,"CSCD Training Manager I",20052304,"CSCD24",9999,0,63638.43,71281.600000000006,null,null,null,null,"x",null,null,null,null,null,null,null,null,null,null,null,null,"C","2017-12-01","9999-12-31",1,"CSCD Case Work Specialist I",20052339,"CSCD14",9999,0,32345.46,36212.800000000003,88013,"COURT SERVICES",{"$f":"_xlfn.XLOOKUP(job_titles17[[#This Row],[Extended object ID]],O:O,P:P)","v":{"$error":"#N/A"}}]
["C","2017-12-01","9999-12-31",1,"CSCD Training Specialist I",20052320,"CSCD20",9999,0,48530.77,54350.400000000001,null,null,null,null,"x",null,null,null,null,null,null,null,null,null,null,null,null,"C","2017-12-01","9999-12-31",1,"CSCD Case Work Specialist II",20052340,"CSCD16",9999,0,37024,41475.199999999997,88013,"COURT SERVICES",{"$f":"_xlfn.XLOOKUP(job_titles17[[#This Row],[Extended object ID]],O:O,P:P)","v":{"$error":"#N/A"}}]
["C","2017-12-01","9999-12-31",1,"CSCD Training Specialist II",20052321,"CSCD22",9999,0,55578.85,62254.400000000001,null,null,null,null,"x",null,null,null,null,null,null,null,null,null,null,null,null,"C","2018-07-01","9999-12-31",1,"CSCD Case Work Specialist III",20052626,"CSCD17",9999,0,39615.06,44366.400000000001,88013,"COURT SERVICES",{"$f":"_xlfn.XLOOKUP(job_titles17[[#This Row],[Extended object ID]],O:O,P:P)","v":{"$error":"#N/A"}}]
["C","2019-09-18","9999-12-31",1,"CSCD Training Specialist Sr - PO",20053376,"CSCD22",9999,0,55578.85,62254.400000000001,null,null,null,null,"x",null,null,null,null,null,null,null,null,null,null,null,null,"C","2017-12-01","9999-12-31",1,"CSCD Case Work Specialist IV",20052401,"CSCD19",9999,0,45346.5,50793.599999999999,88013,"COURT SERVICES",{"$f":"_xlfn.XLOOKUP(job_titles17[[#This Row],[Extended object ID]],O:O,P:P)","v":{"$error":"#N/A"}}]
["C","2017-12-01","9999-12-31",1,"CSCD Unit Manager I",20052337,"CSCD24",9999,0,63638.43,71281.600000000006,null,null,null,null,"x",null,null,null,null,null,null,null,null,null,null,null,null,"C","2013-04-24","9999-12-31",1,"CSCD Case Worker",20050252,"NCF01",9999,0,15080,500000,88011,"SOCIAL SVCS",{"$f":"_xlfn.XLOOKUP(job_titles17[[#This Row],[Extended object ID]],O:O,P:P)","v":{"$error":"#N/A"}}]
["C","2017-12-01","9999-12-31",1,"CSCD Unit Manager II",20052301,"CSCD26",9999,0,72861.570000000007,81619.199999999997,null,null,null,null,"x",null,null,null,null,null,null,null,null,null,null,null,null,"C","2012-09-24","9999-12-31",1,"CSCD Chemical Dependency Counselor",20050061,"NCF01",9999,0,15080,500000,88011,"SOCIAL SVCS",{"$f":"_xlfn.XLOOKUP(job_titles17[[#This Row],[Extended object ID]],O:O,P:P)","v":{"$error":"#N/A"}}]
["C","2018-10-02","9999-12-31",1,"Custodial Services Superintendent",20052827,"C08",9015,1.8800000000000001E-2,52162.239999999998,75635.25,null,null,null,null,"x",null,null,null,null,null,null,null,null,null,null,null,null,"C","2017-12-01","9999-12-31",1,"CSCD Chemical Dependency Counselor I",20052348,"CSCD16",9999,0,37024,41475.199999999997,88011,"SOCIAL SVCS",{"$f":"_xlfn.XLOOKUP(job_titles17[[#This Row],[Extended object ID]],O:O,P:P)","v":{"$error":"#N/A"}}]
["C","1950-01-01","9999-12-31",1,"Custodian",20000000,"C02",9015,1.8800000000000001E-2,43264,56243.199999999997,null,null,null,null,"x",null,null,null,null,null,null,null,null,null,null,null,null,"C","2017-12-01","9999-12-31",1,"CSCD Chemical Dependency Counselor II",20052349,"CSCD18",9999,0,42382.080000000002,47465.599999999999,88011,"SOCIAL SVCS",{"$f":"_xlfn.XLOOKUP(job_titles17[[#This Row],[Extended object ID]],O:O,P:P)","v":{"$error":"#N/A"}}]
["C","1950-01-01","9999-12-31",1,"Custodian Lead",20000001,"C03",9015,1.8800000000000001E-2,44561.919999999998,57930.5,null,null,null,null,"x",null,null,null,null,null,null,null,null,null,null,null,null,"C","2012-09-24","9999-12-31",1,"CSCD Chemical Dependency Counselor Sr",20050065,"NCF01",9999,0,15080,500000,88011,"SOCIAL SVCS",{"$f":"_xlfn.XLOOKUP(job_titles17[[#This Row],[Extended object ID]],O:O,P:P)","v":{"$error":"#N/A"}}]
["C","1950-01-01","9999-12-31",1,"Custodian Services Supv",20000002,"C04",9015,1.8800000000000001E-2,45898.78,59668.41,null,null,null,null,"x",null,null,null,null,null,null,null,null,null,null,null,null,"C","2023-03-13","9999-12-31",1,"CSCD Clinical Mental Health Pf II",20055501,"CSCD22",9999,0,55578.85,62254.400000000001,88011,"SOCIAL SVCS",{"$f":"_xlfn.XLOOKUP(job_titles17[[#This Row],[Extended object ID]],O:O,P:P)","v":{"$error":"#N/A"}}]
["C","1950-01-01","9999-12-31",1,"Customer Support Analyst",20000471,"C10",8810,1.6000000000000001E-3,55877.5,82698.7,null,null,null,null,"x",null,null,null,null,null,null,null,null,null,null,null,null,"C","2017-12-01","9999-12-31",1,"CSCD Clinical Mental Health Professional",20052287,"CSCD21",9999,0,51934.48,58156.800000000003,88011,"SOCIAL SVCS",{"$f":"_xlfn.XLOOKUP(job_titles17[[#This Row],[Extended object ID]],O:O,P:P)","v":{"$error":"#N/A"}}]
["C","1950-01-01","9999-12-31",1,"Customer Support Analyst Sr",20000469,"C14",8810,1.6000000000000001E-3,66183.97,105894.35,null,null,null,null,"x",null,null,null,null,null,null,null,null,null,null,null,null,"C","2012-09-24","9999-12-31",1,"CSCD Counselor",20050062,"NCF01",9999,0,15080,500000,88011,"SOCIAL SVCS",{"$f":"_xlfn.XLOOKUP(job_titles17[[#This Row],[Extended object ID]],O:O,P:P)","v":{"$error":"#N/A"}}]
["C","1950-01-01","9999-12-31",1,"Customer Support Mgr",20000467,"C18",8810,1.6000000000000001E-3,86761.41,138818.25,null,null,null,null,"x",null,null,null,null,null,null,null,null,null,null,null,null,"C","2017-12-01","9999-12-31",1,"CSCD Counselor I",20052350,"CSCD17",9999,0,39615.06,44366.400000000001,88011,"SOCIAL SVCS",{"$f":"_xlfn.XLOOKUP(job_titles17[[#This Row],[Extended object ID]],O:O,P:P)","v":{"$error":"#N/A"}}]
["C","1950-01-01","9999-12-31",1,"Customer Support Supervisor",20000468,"C16",8810,1.6000000000000001E-3,75776.03,121241.65,null,null,null,null,"x",null,null,null,null,null,null,null,null,null,null,null,null,"C","2017-12-01","9999-12-31",1,"CSCD Counselor II",20052351,"CSCD19",9999,0,45346.5,50793.599999999999,88011,"SOCIAL SVCS",{"$f":"_xlfn.XLOOKUP(job_titles17[[#This Row],[Extended object ID]],O:O,P:P)","v":{"$error":"#N/A"}}]
["C","2022-08-02","9999-12-31",1,"Customer Support Supervisor Succession",20055026,"GRD26",8810,1.6000000000000001E-3,72861.570000000007,116578.59,null,null,null,null,"x",null,null,null,null,null,null,null,null,null,null,null,null,"C","2017-12-01","9999-12-31",1,"CSCD Counselor III",20052352,"CSCD20",9999,0,48530.77,54350.400000000001,88011,"SOCIAL SVCS",{"$f":"_xlfn.XLOOKUP(job_titles17[[#This Row],[Extended object ID]],O:O,P:P)","v":{"$error":"#N/A"}}]
["C","1950-01-01","9999-12-31",1,"Customer Support Tech",20000603,"C08",8810,1.6000000000000001E-3,52162.239999999998,75635.25,null,null,null,null,"x",null,null,null,null,null,null,null,null,null,null,null,null,"C","2017-12-01","9999-12-31",1,"CSCD Counselor IV",20052353,"CSCD22",9999,0,55578.85,62254.400000000001,88011,"SOCIAL SVCS",{"$f":"_xlfn.XLOOKUP(job_titles17[[#This Row],[Extended object ID]],O:O,P:P)","v":{"$error":"#N/A"}}]
["C","2022-10-18","9999-12-31",1,"Data Architect",20055177,"C20",8810,1.6000000000000001E-3,99345.18,158952.29,null,null,null,null,"x",null,null,null,null,null,null,null,null,null,null,null,null,"C","2012-09-24","9999-12-31",1,"CSCD Custodian",20050153,"NCF01",9999,0,15080,500000,88001,"MAINTENANCE",{"$f":"_xlfn.XLOOKUP(job_titles17[[#This Row],[Extended object ID]],O:O,P:P)","v":{"$error":"#N/A"}}]
["C","1950-01-01","9999-12-31",1,"Database Administrator",20000447,"C18",8810,1.6000000000000001E-3,86761.41,138818.25,null,null,null,null,"x",null,null,null,null,null,null,null,null,null,null,null,null,"C","2012-09-24","9999-12-31",1,"CSCD Customer Support Tech Sr",20050071,"NCF01",9999,0,15080,500000,88021,"INFORMATION TECH",{"$f":"_xlfn.XLOOKUP(job_titles17[[#This Row],[Extended object ID]],O:O,P:P)","v":{"$error":"#N/A"}}]
["C","2018-09-01","9999-12-31",1,"Dept Safety Program Administrator",20052726,"C14",8810,1.6000000000000001E-3,66183.97,105894.35,null,null,null,null,"x",null,null,null,null,null,null,null,null,null,null,null,null,"C","1950-01-01","9999-12-31",1,"CSCD Deputy Chief",20000325,"NCF01",9999,0,15080,500000,88014,"MANAGEMENT",{"$f":"_xlfn.XLOOKUP(job_titles17[[#This Row],[Extended object ID]],O:O,P:P)","v":{"$error":"#N/A"}}]
["C","1950-01-01","9999-12-31",1,"Deputy Emergency Management Coordinator",20000220,"C14",8810,1.6000000000000001E-3,66183.97,105894.35,null,null,null,null,"x",null,null,null,null,null,null,null,null,null,null,null,null,"C","2017-12-01","9999-12-31",1,"CSCD Division Director I",20052309,"CSCD28",9999,0,83424.429999999993,93454.399999999994,88014,"MANAGEMENT",{"$f":"_xlfn.XLOOKUP(job_titles17[[#This Row],[Extended object ID]],O:O,P:P)","v":{"$error":"#N/A"}}]
["C","2012-10-01","9999-12-31",1,"Dev Svcs Long Range Planning Div Dir",20050081,"C20",8601,1.8E-3,99345.18,158952.29,null,null,null,null,"x",null,null,null,null,null,null,null,null,null,null,null,null,"C","2017-12-01","9999-12-31",1,"CSCD Division Director II",20052318,"CSCD29",9999,0,89265.7,99964.800000000003,88014,"MANAGEMENT",{"$f":"_xlfn.XLOOKUP(job_titles17[[#This Row],[Extended object ID]],O:O,P:P)","v":{"$error":"#N/A"}}]
["C","2019-09-30","9999-12-31",1,"Development Services Division Manager",20053292,"C16",8810,1.6000000000000001E-3,75776.03,121241.65,null,null,null,null,"x",null,null,null,null,null,null,null,null,null,null,null,null,"C","2017-12-01","9999-12-31",1,"CSCD Division Director III",20052323,"CSCD30",9999,0,95524.21,106974.39999999999,88014,"MANAGEMENT",{"$f":"_xlfn.XLOOKUP(job_titles17[[#This Row],[Extended object ID]],O:O,P:P)","v":{"$error":"#N/A"}}]
["C","2022-10-02","9999-12-31",1,"Digital Forensic Analyst",20055226,"C12",7720,1.55E-2,60437.1,90655.66,null,null,null,null,"x",null,null,null,null,null,null,null,null,null,null,null,null,"C","2017-12-01","9999-12-31",1,"CSCD Executive Assistant I",20052303,"CSCD18",9999,0,42382.080000000002,47465.599999999999,88004,"ADMINISTRATIVE SUPP",{"$f":"_xlfn.XLOOKUP(job_titles17[[#This Row],[Extended object ID]],O:O,P:P)","v":{"$error":"#N/A"}}]
["C","2016-01-12","9999-12-31",1,"Dir Econ Dev & Strategic Investments",20051302,"C23",8810,1.6000000000000001E-3,121718.94,200836.25,null,null,null,null,"x",null,null,null,null,null,null,null,null,null,null,null,null,"C","2017-12-01","9999-12-31",1,"CSCD Executive Assistant II",20052305,"CSCD19",9999,0,45346.5,50793.599999999999,88004,"ADMINISTRATIVE SUPP",{"$f":"_xlfn.XLOOKUP(job_titles17[[#This Row],[Extended object ID]],O:O,P:P)","v":{"$error":"#N/A"}}]
["C","2020-06-09","9999-12-31",1,"Director of Holistic Practice",20053727,"C24",8810,1.6000000000000001E-3,130239.35,214894.92,null,null,null,null,"x",null,null,null,null,null,null,null,null,null,null,null,null,"C","2017-12-01","9999-12-31",1,"CSCD Executive Assistant III",20052306,"CSCD20",9999,0,48530.77,54350.400000000001,88004,"ADMINISTRATIVE SUPP",{"$f":"_xlfn.XLOOKUP(job_titles17[[#This Row],[Extended object ID]],O:O,P:P)","v":{"$error":"#N/A"}}]
["C","2019-09-30","9999-12-31",1,"Director of Policy and Analytics",20053289,"C18",8810,1.6000000000000001E-3,86761.41,138818.25,null,null,null,null,"x",null,null,null,null,null,null,null,null,null,null,null,null,"C","2017-12-01","9999-12-31",1,"CSCD Executive Assistant IV",20052307,"CSCD21",9999,0,51934.48,58156.800000000003,88004,"ADMINISTRATIVE SUPP",{"$f":"_xlfn.XLOOKUP(job_titles17[[#This Row],[Extended object ID]],O:O,P:P)","v":{"$error":"#N/A"}}]
["C","2020-06-09","9999-12-31",1,"Director of Trials and Training",20053728,"C24",8810,1.6000000000000001E-3,130239.35,214894.92,null,null,null,null,"x",null,null,null,null,null,null,null,null,null,null,null,null,"C","2012-09-24","9999-12-31",1,"CSCD Executive Asst",20050066,"NCF01",9999,0,15080,500000,88004,"ADMINISTRATIVE SUPP",{"$f":"_xlfn.XLOOKUP(job_titles17[[#This Row],[Extended object ID]],O:O,P:P)","v":{"$error":"#N/A"}}]
["C","1950-01-01","9999-12-31",1,"Dispatcher",20000205,"C04",8810,1.6000000000000001E-3,45898.78,59668.41,null,null,null,null,"x",null,null,null,null,null,null,null,null,null,null,null,null,"C","2017-12-01","9999-12-31",1,"CSCD Financial Analyst I",20052302,"CSCD27",9999,0,77956.53,87297.600000000006,88005,"FINANCE",{"$f":"_xlfn.XLOOKUP(job_titles17[[#This Row],[Extended object ID]],O:O,P:P)","v":{"$error":"#N/A"}}]
["C","1950-01-01","9999-12-31",1,"District Clerk Deputy Chief",20000320,"C21",8810,1.6000000000000001E-3,106310.9,175412.99,null,null,null,null,"x",null,null,null,null,null,null,null,null,null,null,null,null,"C","2017-12-01","9999-12-31",1,"CSCD Financial Analyst II",20052308,"CSCD28",9999,0,83424.429999999993,93454.399999999994,88005,"FINANCE",{"$f":"_xlfn.XLOOKUP(job_titles17[[#This Row],[Extended object ID]],O:O,P:P)","v":{"$error":"#N/A"}}]
["C","1950-01-01","9999-12-31",1,"District Park Mgr",20000304,"C15",7720,1.55E-2,70819.7,113311.53,null,null,null,null,"x",null,null,null,null,null,null,null,null,null,null,null,null,"C","2012-09-24","9999-12-31",1,"CSCD Financial Analyst Lead",20050078,"NCF01",9999,0,15080,500000,88005,"FINANCE",{"$f":"_xlfn.XLOOKUP(job_titles17[[#This Row],[Extended object ID]],O:O,P:P)","v":{"$error":"#N/A"}}]
["C","2019-09-25","9999-12-31",1,"Div Chief Clinical Performance & Edu",20053377,"C19",8810,1.6000000000000001E-3,92836.33,148538.12,null,null,null,null,"x",null,null,null,null,null,null,null,null,null,null,null,null,"C","2012-09-24","9999-12-31",1,"CSCD Financial Analyst Sr",20050072,"NCF01",9999,0,15080,500000,88005,"FINANCE",{"$f":"_xlfn.XLOOKUP(job_titles17[[#This Row],[Extended object ID]],O:O,P:P)","v":{"$error":"#N/A"}}]
["C","2021-07-20","9999-12-31",1,"Diversity, Equity, and Inclusion Officer",20054176,"C18",8810,1.6000000000000001E-3,86761.41,138818.25,null,null,null,null,"x",null,null,null,null,null,null,null,null,null,null,null,null,"C","2017-02-23","9999-12-31",1,"CSCD Human Resources Asst I",20051901,"NCF01",9999,0,15080,500000,88016,"HUMAN RESOURCES",{"$f":"_xlfn.XLOOKUP(job_titles17[[#This Row],[Extended object ID]],O:O,P:P)","v":{"$error":"#N/A"}}]
["C","2021-09-01","9999-12-31",1,"Division Manager",20054352,"C14",8810,1.6000000000000001E-3,66183.97,105894.35,null,null,null,null,"x",null,null,null,null,null,null,null,null,null,null,null,null,"C","2012-09-24","9999-12-31",1,"CSCD Human Resources Asst II",20050060,"NCF01",9999,0,15080,500000,88016,"HUMAN RESOURCES",{"$f":"_xlfn.XLOOKUP(job_titles17[[#This Row],[Extended object ID]],O:O,P:P)","v":{"$error":"#N/A"}}]
["C","2016-10-01","9999-12-31",1,"Economic & Strategic Planning Mg Dir",20051753,"C18",8810,1.6000000000000001E-3,86761.41,138818.25,null,null,null,null,"x",null,null,null,null,null,null,null,null,null,null,null,null,"C","2012-09-24","9999-12-31",1,"CSCD Human Resources Mgr I",20050079,"NCF01",9999,0,15080,500000,88016,"HUMAN RESOURCES",{"$f":"_xlfn.XLOOKUP(job_titles17[[#This Row],[Extended object ID]],O:O,P:P)","v":{"$error":"#N/A"}}]
["C","1950-01-01","9999-12-31",1,"Education Instructional Specialist",20000397,"C05",8810,1.6000000000000001E-3,47275.74,61458.46,null,null,null,null,"x",null,null,null,null,null,null,null,null,null,null,null,null,"C","2017-12-01","9999-12-31",1,"CSCD Human Resources Specialist I",20052324,"CSCD13",9999,0,30238.83,33883.199999999997,88016,"HUMAN RESOURCES",{"$f":"_xlfn.XLOOKUP(job_titles17[[#This Row],[Extended object ID]],O:O,P:P)","v":{"$error":"#N/A"}}]
["C","1950-01-01","9999-12-31",1,"Elections Administrator Asst",20000303,"C17",8810,1.6000000000000001E-3,81074.789999999994,129719.67,null,null,null,null,"x",null,null,null,null,null,null,null,null,null,null,null,null,"C","2017-12-01","9999-12-31",1,"CSCD Human Resources Specialist II",20052326,"CSCD15",9999,0,34608.5,38750.400000000001,88016,"HUMAN RESOURCES",{"$f":"_xlfn.XLOOKUP(job_titles17[[#This Row],[Extended object ID]],O:O,P:P)","v":{"$error":"#N/A"}}]
["C","2019-03-12","9999-12-31",1,"Elections Coord Sr",20053051,"C09",8810,1.6000000000000001E-3,53987.92,78282.490000000005,null,null,null,null,"x",null,null,null,null,null,null,null,null,null,null,null,null,"C","2017-12-01","9999-12-31",1,"CSCD Human Resources Specialist III",20052328,"CSCD17",9999,0,39615.06,44366.400000000001,88016,"HUMAN RESOURCES",{"$f":"_xlfn.XLOOKUP(job_titles17[[#This Row],[Extended object ID]],O:O,P:P)","v":{"$error":"#N/A"}}]
["C","1950-01-01","9999-12-31",1,"Elections Div Dir",20000308,"C20",8810,1.6000000000000001E-3,99345.18,158952.29,null,null,null,null,"x",null,null,null,null,null,null,null,null,null,null,null,null,"C","2017-12-01","9999-12-31",1,"CSCD Human Resources Specialist IV",20052329,"CSCD19",9999,0,45346.5,50793.599999999999,88016,"HUMAN RESOURCES",{"$f":"_xlfn.XLOOKUP(job_titles17[[#This Row],[Extended object ID]],O:O,P:P)","v":{"$error":"#N/A"}}]
["C","1950-01-01","9999-12-31",1,"Elections Mgmt Coord",20000302,"C13",8810,1.6000000000000001E-3,62854.59,100567.34,null,null,null,null,"x",null,null,null,null,null,null,null,null,null,null,null,null,"C","2017-12-01","9999-12-31",1,"CSCD Intake Specialist I",20052332,"CSCD13",9999,0,30238.83,33883.199999999997,88013,"COURT SERVICES",{"$f":"_xlfn.XLOOKUP(job_titles17[[#This Row],[Extended object ID]],O:O,P:P)","v":{"$error":"#N/A"}}]
["C","1950-01-01","9999-12-31",1,"Electrician",20000042,"C08",9015,1.8800000000000001E-2,52162.239999999998,75635.25,null,null,null,null,"x",null,null,null,null,null,null,null,null,null,null,null,null,"C","2017-12-01","9999-12-31",1,"CSCD Intake Specialist II",20052338,"CSCD15",9999,0,34608.5,38750.400000000001,88013,"COURT SERVICES",{"$f":"_xlfn.XLOOKUP(job_titles17[[#This Row],[Extended object ID]],O:O,P:P)","v":{"$error":"#N/A"}}]
["C","1950-01-01","9999-12-31",1,"Electrician Master",20000043,"C11",9015,1.8800000000000001E-2,58112.6,87168.9,null,null,null,null,"x",null,null,null,null,null,null,null,null,null,null,null,null,"C","2017-12-01","9999-12-31",1,"CSCD Intake Specialist III",20052402,"CSCD17",9999,0,39615.06,44366.400000000001,88013,"COURT SERVICES",{"$f":"_xlfn.XLOOKUP(job_titles17[[#This Row],[Extended object ID]],O:O,P:P)","v":{"$error":"#N/A"}}]
["C","2016-05-16","9999-12-31",1,"Electronic Security Coordinator",20051502,"C08",9015,1.8800000000000001E-2,52162.239999999998,75635.25,null,null,null,null,"x",null,null,null,null,null,null,null,null,null,null,null,null,"C","2016-04-25","9999-12-31",1,"CSCD Internal Auditor",20051426,"CSCD24",9999,0,63638.43,71281.600000000006,88013,"COURT SERVICES",{"$f":"_xlfn.XLOOKUP(job_titles17[[#This Row],[Extended object ID]],O:O,P:P)","v":{"$error":"#N/A"}}]
["C","2017-03-28","9999-12-31",1,"Electronic Security Coordinator Sr",20051978,"C10",8810,1.6000000000000001E-3,55877.5,82698.7,null,null,null,null,"x",null,null,null,null,null,null,null,null,null,null,null,null,"C","2012-09-24","9999-12-31",1,"CSCD Mailroom Services Asst",20050052,"NCF01",9999,0,15080,500000,88004,"ADMINISTRATIVE SUPP",{"$f":"_xlfn.XLOOKUP(job_titles17[[#This Row],[Extended object ID]],O:O,P:P)","v":{"$error":"#N/A"}}]
["C","2022-03-01","9999-12-31",1,"Electronic Security Supervisor",20054726,"C14",8810,1.6000000000000001E-3,66183.97,105894.35,null,null,null,null,"x",null,null,null,null,null,null,null,null,null,null,null,null,"C","2017-12-01","9999-12-31",1,"CSCD Office Manager I",20052335,"CSCD21",9999,0,51934.48,58156.800000000003,88014,"MANAGEMENT",{"$f":"_xlfn.XLOOKUP(job_titles17[[#This Row],[Extended object ID]],O:O,P:P)","v":{"$error":"#N/A"}}]
["C","1950-01-01","9999-12-31",1,"Emergency Radio Communications Mgr",20000497,"C19",8810,1.6000000000000001E-3,92836.33,148538.12,null,null,null,null,"x",null,null,null,null,null,null,null,null,null,null,null,null,"C","2017-12-01","9999-12-31",1,"CSCD Office Manager II",20052336,"CSCD22",9999,0,55578.85,62254.400000000001,88014,"MANAGEMENT",{"$f":"_xlfn.XLOOKUP(job_titles17[[#This Row],[Extended object ID]],O:O,P:P)","v":{"$error":"#N/A"}}]
["C","2021-10-02","9999-12-31",1,"Employee Relations Partner I",20054502,"C10",8810,1.6000000000000001E-3,55877.5,82698.7,null,null,null,null,"x",null,null,null,null,null,null,null,null,null,null,null,null,"C","2012-09-24","9999-12-31",1,"CSCD Office Specialist",20050056,"NCF01",9999,0,15080,500000,88004,"ADMINISTRATIVE SUPP",{"$f":"_xlfn.XLOOKUP(job_titles17[[#This Row],[Extended object ID]],O:O,P:P)","v":{"$error":"#N/A"}}]
["C","2021-10-02","9999-12-31",1,"Employee Relations Partner II",20054404,"C12",8810,1.6000000000000001E-3,60437.1,90655.66,null,null,null,null,"x",null,null,null,null,null,null,null,null,null,null,null,null,"C","2017-12-01","9999-12-31",1,"CSCD Office Specialist I",20052310,"CSCD13",9999,0,30238.83,33883.199999999997,88004,"ADMINISTRATIVE SUPP",{"$f":"_xlfn.XLOOKUP(job_titles17[[#This Row],[Extended object ID]],O:O,P:P)","v":{"$error":"#N/A"}}]
["C","2021-10-02","9999-12-31",1,"Employee Relations Partner Sr",20054455,"C14",8810,1.6000000000000001E-3,66183.97,105894.35,null,null,null,null,"x",null,null,null,null,null,null,null,null,null,null,null,null,"C","2017-12-01","9999-12-31",1,"CSCD Office Specialist II",20052312,"CSCD15",9999,0,34608.5,38750.400000000001,88004,"ADMINISTRATIVE SUPP",{"$f":"_xlfn.XLOOKUP(job_titles17[[#This Row],[Extended object ID]],O:O,P:P)","v":{"$error":"#N/A"}}]
["C","2018-04-10","9999-12-31",1,"EMS Training Captain",20052501,"C16",8832,1.9E-3,75776.03,121241.65,null,null,null,null,"x",null,null,null,null,null,null,null,null,null,null,null,null,"C","2017-12-01","9999-12-31",1,"CSCD Office Specialist III",20052314,"CSCD17",9999,0,39615.06,44366.400000000001,88004,"ADMINISTRATIVE SUPP",{"$f":"_xlfn.XLOOKUP(job_titles17[[#This Row],[Extended object ID]],O:O,P:P)","v":{"$error":"#N/A"}}]
["C","1950-01-01","9999-12-31",1,"Enforcement Officer I",20000263,"C06",8810,1.6000000000000001E-3,48694.01,65736.92,null,null,null,null,"x",null,null,null,null,null,null,null,null,null,null,null,null,"C","2017-12-01","9999-12-31",1,"CSCD Office Specialist IV",20052316,"CSCD19",9999,0,45346.5,50793.599999999999,88004,"ADMINISTRATIVE SUPP",{"$f":"_xlfn.XLOOKUP(job_titles17[[#This Row],[Extended object ID]],O:O,P:P)","v":{"$error":"#N/A"}}]
["C","1950-01-01","9999-12-31",1,"Enforcement Officer II",20000264,"C08",8810,1.6000000000000001E-3,52162.239999999998,75635.25,null,null,null,null,"x",null,null,null,null,null,null,null,null,null,null,null,null,"C","2012-09-24","9999-12-31",1,"CSCD Office Specialist Sr",20050059,"NCF01",9999,0,15080,500000,88004,"ADMINISTRATIVE SUPP",{"$f":"_xlfn.XLOOKUP(job_titles17[[#This Row],[Extended object ID]],O:O,P:P)","v":{"$error":"#N/A"}}]
["C","1950-01-01","9999-12-31",1,"Enforcement Officer Sr",20000265,"C09",8810,1.6000000000000001E-3,53987.92,78282.490000000005,null,null,null,null,"x",null,null,null,null,null,null,null,null,null,null,null,null,"C","2012-09-24","9999-12-31",1,"CSCD Office Supv",20050064,"NCF01",9999,0,15080,500000,88004,"ADMINISTRATIVE SUPP",{"$f":"_xlfn.XLOOKUP(job_titles17[[#This Row],[Extended object ID]],O:O,P:P)","v":{"$error":"#N/A"}}]
["C","1950-01-01","9999-12-31",1,"Engineer",20000165,"C16",8601,1.8E-3,75776.03,121241.65,null,null,null,null,"x",null,null,null,null,null,null,null,null,null,null,null,null,"C","2017-12-01","9999-12-31",1,"CSCD Planner I",20052345,"CSCD21",9999,0,51934.48,58156.800000000003,88008,"PLANNING & RESEARCH",{"$f":"_xlfn.XLOOKUP(job_titles17[[#This Row],[Extended object ID]],O:O,P:P)","v":{"$error":"#N/A"}}]
["C","1950-01-01","9999-12-31",1,"Engineer Sr",20000166,"C18",8601,1.8E-3,86761.41,138818.25,null,null,null,null,"x",null,null,null,null,null,null,null,null,null,null,null,null,"C","2017-12-01","9999-12-31",1,"CSCD Planner II",20052347,"CSCD24",9999,0,63638.43,71281.600000000006,88008,"PLANNING & RESEARCH",{"$f":"_xlfn.XLOOKUP(job_titles17[[#This Row],[Extended object ID]],O:O,P:P)","v":{"$error":"#N/A"}}]
["C","1950-01-01","9999-12-31",1,"Engineering Assoc",20000164,"C14",8601,1.8E-3,66183.97,105894.35,null,null,null,null,"x",null,null,null,null,null,null,null,null,null,null,null,null,"C","2012-09-24","9999-12-31",1,"CSCD Planner Sr",20050075,"NCF01",9999,0,15080,500000,88008,"PLANNING & RESEARCH",{"$f":"_xlfn.XLOOKUP(job_titles17[[#This Row],[Extended object ID]],O:O,P:P)","v":{"$error":"#N/A"}}]
["C","1950-01-01","9999-12-31",1,"Engineering Div Mgr",20000341,"C19",8601,1.8E-3,92836.33,148538.12,null,null,null,null,"x",null,null,null,null,null,null,null,null,null,null,null,null,"C","2023-10-20","9999-12-31",1,"CSCD Probation Officer Court",20055776,"CSCD20",9999,0,48530.77,54350.400000000001,88013,"COURT SERVICES",{"$f":"_xlfn.XLOOKUP(job_titles17[[#This Row],[Extended object ID]],O:O,P:P)","v":{"$error":"#N/A"}}]
["C","1950-01-01","9999-12-31",1,"Engineering Inspector Specialist",20000173,"C09",8601,1.8E-3,53987.92,78282.490000000005,null,null,null,null,"x",null,null,null,null,null,null,null,null,null,null,null,null,"C","2017-12-01","9999-12-31",1,"CSCD Probation Officer I",20052342,"CSCD16",9999,0,37024,41475.199999999997,88013,"COURT SERVICES",{"$f":"_xlfn.XLOOKUP(job_titles17[[#This Row],[Extended object ID]],O:O,P:P)","v":{"$error":"#N/A"}}]
["C","1950-01-01","9999-12-31",1,"Engineering Inspector Specialist Sr",20000174,"C11",8601,1.8E-3,58112.6,87168.9,null,null,null,null,"x",null,null,null,null,null,null,null,null,null,null,null,null,"C","2017-12-01","9999-12-31",1,"CSCD Probation Officer II",20052343,"CSCD18",9999,0,42382.080000000002,47465.599999999999,88013,"COURT SERVICES",{"$f":"_xlfn.XLOOKUP(job_titles17[[#This Row],[Extended object ID]],O:O,P:P)","v":{"$error":"#N/A"}}]
["C","1950-01-01","9999-12-31",1,"Engineering Specialist",20000162,"C10",8601,1.8E-3,55877.5,82698.7,null,null,null,null,"x",null,null,null,null,null,null,null,null,null,null,null,null,"C","2017-12-01","9999-12-31",1,"CSCD Probation Officer III",20052344,"CSCD20",9999,0,48530.77,54350.400000000001,88013,"COURT SERVICES",{"$f":"_xlfn.XLOOKUP(job_titles17[[#This Row],[Extended object ID]],O:O,P:P)","v":{"$error":"#N/A"}}]
["C","1950-01-01","9999-12-31",1,"Engineering Specialist Sr",20000163,"C12",8601,1.8E-3,60437.1,90655.66,null,null,null,null,"x",null,null,null,null,null,null,null,null,null,null,null,null,"C","2017-12-01","9999-12-31",1,"CSCD Probation Officer IV",20052346,"CSCD22",9999,0,55578.85,62254.400000000001,88013,"COURT SERVICES",{"$f":"_xlfn.XLOOKUP(job_titles17[[#This Row],[Extended object ID]],O:O,P:P)","v":{"$error":"#N/A"}}]
["C","1950-01-01","9999-12-31",1,"Engineering Tech",20000160,"C06",8601,1.8E-3,48694.01,65736.92,null,null,null,null,"x",null,null,null,null,null,null,null,null,null,null,null,null,"C","2023-10-20","9999-12-31",1,"CSCD Probation Officer Substance Use",20055777,"CSCD20",9999,0,48530.77,54350.400000000001,88013,"COURT SERVICES",{"$f":"_xlfn.XLOOKUP(job_titles17[[#This Row],[Extended object ID]],O:O,P:P)","v":{"$error":"#N/A"}}]
["C","1950-01-01","9999-12-31",1,"Engineering Tech Sr",20000161,"C08",8601,1.8E-3,52162.239999999998,75635.25,null,null,null,null,"x",null,null,null,null,null,null,null,null,null,null,null,null,"C","2019-04-15","9999-12-31",1,"CSCD Psychologist",20053102,"CSCD26",9999,0,72861.570000000007,81619.199999999997,88011,"SOCIAL SVCS",{"$f":"_xlfn.XLOOKUP(job_titles17[[#This Row],[Extended object ID]],O:O,P:P)","v":{"$error":"#N/A"}}]
["C","1950-01-01","9999-12-31",1,"Environmental Program Mgr",20000361,"C16",8810,1.6000000000000001E-3,75776.03,121241.65,null,null,null,null,"x",null,null,null,null,null,null,null,null,null,null,null,null,"C",-36522,"9999-12-31",1,"CSCD Purchasing Clerk III",20050151,"NCF01",9999,0,15080,500000,88010,"PURCHASING & INVENTORY CONTROL",{"$f":"_xlfn.XLOOKUP(job_titles17[[#This Row],[Extended object ID]],O:O,P:P)","v":{"$error":"#N/A"}}]
["C","1950-01-01","9999-12-31",1,"Environmental Project Mgr",20000360,"C15",8810,1.6000000000000001E-3,70819.7,113311.53,null,null,null,null,"x",null,null,null,null,null,null,null,null,null,null,null,null,"C","2019-06-03","9999-12-31",1,"CSCD Re-Entry Program Coord",20053176,"CSCD20",9999,0,48530.77,54350.400000000001,88011,"SOCIAL SVCS",{"$f":"_xlfn.XLOOKUP(job_titles17[[#This Row],[Extended object ID]],O:O,P:P)","v":{"$error":"#N/A"}}]
["C","1950-01-01","9999-12-31",1,"Environmental Specialist",20000358,"C11",8810,1.6000000000000001E-3,58112.6,87168.9,null,null,null,null,"x",null,null,null,null,null,null,null,null,null,null,null,null,"C","2017-12-01","9999-12-31",1,"CSCD Residential Specialist I",20052282,"CSCD13",9999,0,30238.83,33883.199999999997,88011,"SOCIAL SVCS",{"$f":"_xlfn.XLOOKUP(job_titles17[[#This Row],[Extended object ID]],O:O,P:P)","v":{"$error":"#N/A"}}]
["C","1950-01-01","9999-12-31",1,"Environmental Specialist Sr",20000359,"C12",8810,1.6000000000000001E-3,60437.1,90655.66,null,null,null,null,"x",null,null,null,null,null,null,null,null,null,null,null,null,"C","2017-12-01","9999-12-31",1,"CSCD Residential Specialist II",20052283,"CSCD15",9999,0,34608.5,38750.400000000001,88011,"SOCIAL SVCS",{"$f":"_xlfn.XLOOKUP(job_titles17[[#This Row],[Extended object ID]],O:O,P:P)","v":{"$error":"#N/A"}}]
["C","2018-07-10","9999-12-31",1,"Environmental Supervisor",20052651,"C14",9102,2.0799999999999999E-2,66183.97,105894.35,null,null,null,null,"x",null,null,null,null,null,null,null,null,null,null,null,null,"C","2017-12-01","9999-12-31",1,"CSCD Residential Specialist III",20052284,"CSCD17",9999,0,39615.06,44366.400000000001,88011,"SOCIAL SVCS",{"$f":"_xlfn.XLOOKUP(job_titles17[[#This Row],[Extended object ID]],O:O,P:P)","v":{"$error":"#N/A"}}]
["C","2013-07-02","9999-12-31",1,"Environmental Technician",20050302,"C06",9102,2.0799999999999999E-2,48694.01,65736.92,null,null,null,null,"x",null,null,null,null,null,null,null,null,null,null,null,null,"C","2017-12-01","9999-12-31",1,"CSCD Residential Specialist IV",20052285,"CSCD19",9999,0,45346.5,50793.599999999999,88011,"SOCIAL SVCS",{"$f":"_xlfn.XLOOKUP(job_titles17[[#This Row],[Extended object ID]],O:O,P:P)","v":{"$error":"#N/A"}}]
["C","2019-10-01","9999-12-31",1,"Equipment Operator Foreman",20053402,"C11",5506,4.3700000000000003E-2,58112.6,87168.9,null,null,null,null,"x",null,null,null,null,null,null,null,null,null,null,null,null,"C","2012-09-24","9999-12-31",1,"CSCD Social Services Aide",20050054,"NCF01",9999,0,15080,500000,88011,"SOCIAL SVCS",{"$f":"_xlfn.XLOOKUP(job_titles17[[#This Row],[Extended object ID]],O:O,P:P)","v":{"$error":"#N/A"}}]
["C","1950-01-01","9999-12-31",1,"Equipment Operator I",20000028,"C08",5506,4.3700000000000003E-2,52162.239999999998,75635.25,null,null,null,null,"x",null,null,null,null,null,null,null,null,null,null,null,null,"C","2012-09-24","9999-12-31",1,"CSCD Social Services Mgr",20050069,"NCF01",9999,0,15080,500000,88011,"SOCIAL SVCS",{"$f":"_xlfn.XLOOKUP(job_titles17[[#This Row],[Extended object ID]],O:O,P:P)","v":{"$error":"#N/A"}}]
["C","2015-10-01","9999-12-31",1,"Equipment Operator II",20051166,"C09",5506,4.3700000000000003E-2,53987.92,78282.490000000005,null,null,null,null,"x",null,null,null,null,null,null,null,null,null,null,null,null,"C","2012-09-24","9999-12-31",1,"CSCD Social Services Program Adm",20050076,"NCF01",9999,0,15080,500000,88011,"SOCIAL SVCS",{"$f":"_xlfn.XLOOKUP(job_titles17[[#This Row],[Extended object ID]],O:O,P:P)","v":{"$error":"#N/A"}}]
["C","2023-10-02","9999-12-31",1,"Equipment Operator III",20055804,"C10",5506,4.3700000000000003E-2,55877.5,82698.7,null,null,null,null,"x",null,null,null,null,null,null,null,null,null,null,null,null,"C","2012-09-24","9999-12-31",1,"CSCD Social Services Program Coord",20050068,"NCF01",9999,0,15080,500000,88011,"SOCIAL SVCS",{"$f":"_xlfn.XLOOKUP(job_titles17[[#This Row],[Extended object ID]],O:O,P:P)","v":{"$error":"#N/A"}}]
["C","1950-01-01","9999-12-31",1,"Equipment Tech",20000047,"C06",8391,1.2800000000000001E-2,48694.01,65736.92,null,null,null,null,"x",null,null,null,null,null,null,null,null,null,null,null,null,"C","2012-09-24","9999-12-31",1,"CSCD Social Services Program Spc Assoc",20050058,"NCF01",9999,0,15080,500000,88011,"SOCIAL SVCS",{"$f":"_xlfn.XLOOKUP(job_titles17[[#This Row],[Extended object ID]],O:O,P:P)","v":{"$error":"#N/A"}}]
["C","2014-01-01","9999-12-31",1,"Evidence Tech",20050501,"C07",7720,1.55E-2,50398.3,68037.710000000006,null,null,null,null,"x",null,null,null,null,null,null,null,null,null,null,null,null,"C","2012-09-24","9999-12-31",1,"CSCD Social Services Program Specialist",20050067,"NCF01",9999,0,15080,500000,88011,"SOCIAL SVCS",{"$f":"_xlfn.XLOOKUP(job_titles17[[#This Row],[Extended object ID]],O:O,P:P)","v":{"$error":"#N/A"}}]
["C","2013-10-01","9999-12-31",1,"Evidence Tech Lead",20050426,"C09",7720,1.55E-2,53987.92,78282.490000000005,null,null,null,null,"x",null,null,null,null,null,null,null,null,null,null,null,null,"C","2021-09-23","9999-12-31",1,"CSCD Social Worker",20054278,"CSCD21",8810,1.6000000000000001E-3,51934.48,58156.800000000003,88011,"SOCIAL SVCS",{"$f":"_xlfn.XLOOKUP(job_titles17[[#This Row],[Extended object ID]],O:O,P:P)","v":{"$error":"#N/A"}}]
["C","1950-01-01","9999-12-31",1,"Executive Asst",20000104,"C10",8810,1.6000000000000001E-3,55877.5,82698.7,null,null,null,null,"x",null,null,null,null,null,null,null,null,null,null,null,null,"C","2012-09-24","9999-12-31",1,"CSCD Substance Abuse Monitor",20050053,"NCF01",9999,0,15080,500000,88013,"COURT SERVICES",{"$f":"_xlfn.XLOOKUP(job_titles17[[#This Row],[Extended object ID]],O:O,P:P)","v":{"$error":"#N/A"}}]
["C","1950-01-01","9999-12-31",1,"Executive Asst-Elected Official",20000105,"C12",8810,1.6000000000000001E-3,60437.1,90655.66,null,null,null,null,"x",null,null,null,null,null,null,null,null,null,null,null,null,"C","2017-12-01","9999-12-31",1,"CSCD Technician I",20052322,"CSCD12",9999,0,28262.42,31657.599999999999,88013,"COURT SERVICES",{"$f":"_xlfn.XLOOKUP(job_titles17[[#This Row],[Extended object ID]],O:O,P:P)","v":{"$error":"#N/A"}}]
["C","2021-06-15","9999-12-31",2,"Executive Asst-Elected OfficialSn",20054151,"GRD22",null,null,55578.85,83368.27,null,null,null,null,"x",null,null,null,null,null,null,null,null,null,null,null,null,"C","2017-12-01","9999-12-31",1,"CSCD Technician II",20052325,"CSCD13",9999,0,30238.83,33883.199999999997,88013,"COURT SERVICES",{"$f":"_xlfn.XLOOKUP(job_titles17[[#This Row],[Extended object ID]],O:O,P:P)","v":{"$error":"#N/A"}}]
["C","2013-02-16","9999-12-31",1,"Exposition Center Coordinator",20050229,"C07",8810,1.6000000000000001E-3,50398.3,68037.710000000006,null,null,null,null,"x",null,null,null,null,null,null,null,null,null,null,null,null,"C","2017-12-01","9999-12-31",1,"CSCD Technician III",20052327,"CSCD14",9999,0,32345.46,36212.800000000003,88013,"COURT SERVICES",{"$f":"_xlfn.XLOOKUP(job_titles17[[#This Row],[Extended object ID]],O:O,P:P)","v":{"$error":"#N/A"}}]
["C","2014-07-01","9999-12-31",1,"Exposition Center Mgr",20050726,"C14",8810,1.6000000000000001E-3,66183.97,105894.35,null,null,null,null,"x",null,null,null,null,null,null,null,null,null,null,null,null,"C","2016-03-21","9999-12-31",1,"CSCD Training Education Coord I",20051401,"NCF01",9999,0,15080,500000,88016,"HUMAN RESOURCES",{"$f":"_xlfn.XLOOKUP(job_titles17[[#This Row],[Extended object ID]],O:O,P:P)","v":{"$error":"#N/A"}}]
["C","2021-12-21","9999-12-31",1,"Facilities Mechanical Engineer",20054603,"C16",8601,1.8E-3,75776.03,121241.65,null,null,null,null,"x",null,null,null,null,null,null,null,null,null,null,null,null,"C","2012-09-24","9999-12-31",1,"CSCD Training Education Coord Sr",20050073,"NCF01",9999,0,15080,500000,88016,"HUMAN RESOURCES",{"$f":"_xlfn.XLOOKUP(job_titles17[[#This Row],[Extended object ID]],O:O,P:P)","v":{"$error":"#N/A"}}]
["C","2020-06-16","9999-12-31",1,"Facilities Project Inspector",20053751,"C09",8601,1.8E-3,53987.92,78282.490000000005,null,null,null,null,"x",null,null,null,null,null,null,null,null,null,null,null,null,"C","2017-12-01","9999-12-31",1,"CSCD Training Manager I",20052304,"CSCD24",9999,0,63638.43,71281.600000000006,88014,"MANAGEMENT",{"$f":"_xlfn.XLOOKUP(job_titles17[[#This Row],[Extended object ID]],O:O,P:P)","v":{"$error":"#N/A"}}]
["C","1950-01-01","9999-12-31",1,"Facilities Project Mgr",20000169,"C16",8601,1.8E-3,75776.03,121241.65,null,null,null,null,"x",null,null,null,null,null,null,null,null,null,null,null,null,"C","2017-12-01","9999-12-31",1,"CSCD Training Specialist I",20052320,"CSCD20",9999,0,48530.77,54350.400000000001,88016,"HUMAN RESOURCES",{"$f":"_xlfn.XLOOKUP(job_titles17[[#This Row],[Extended object ID]],O:O,P:P)","v":{"$error":"#N/A"}}]
["C","1950-01-01","9999-12-31",1,"Facilities Project Mgr Sr",20000170,"C18",8601,1.8E-3,86761.41,138818.25,null,null,null,null,"x",null,null,null,null,null,null,null,null,null,null,null,null,"C","2017-12-01","9999-12-31",1,"CSCD Training Specialist II",20052321,"CSCD22",9999,0,55578.85,62254.400000000001,88016,"HUMAN RESOURCES",{"$f":"_xlfn.XLOOKUP(job_titles17[[#This Row],[Extended object ID]],O:O,P:P)","v":{"$error":"#N/A"}}]
["C","1950-01-01","9999-12-31",1,"Financial Analyst",20000121,"C11",8810,1.6000000000000001E-3,58112.6,87168.9,null,null,null,null,"x",null,null,null,null,null,null,null,null,null,null,null,null,"C","2019-09-18","9999-12-31",1,"CSCD Training Specialist Sr - PO",20053376,"CSCD22",9999,0,55578.85,62254.400000000001,88016,"HUMAN RESOURCES",{"$f":"_xlfn.XLOOKUP(job_titles17[[#This Row],[Extended object ID]],O:O,P:P)","v":{"$error":"#N/A"}}]
["C","1950-01-01","9999-12-31",1,"Financial Analyst Lead",20000123,"C15",8810,1.6000000000000001E-3,70819.7,113311.53,null,null,null,null,"x",null,null,null,null,null,null,null,null,null,null,null,null,"C","2014-06-01","9999-12-31",1,"CSCD Treatment and Asmt Div Dir",20050526,"NCF01",9999,0,15080,500000,88014,"MANAGEMENT",{"$f":"_xlfn.XLOOKUP(job_titles17[[#This Row],[Extended object ID]],O:O,P:P)","v":"x"}]
["C","1950-01-01","9999-12-31",1,"Financial Analyst Sr",20000122,"C13",8810,1.6000000000000001E-3,62854.59,100567.34,null,null,null,null,"x",null,null,null,null,null,null,null,null,null,null,null,null,"C","2017-12-01","9999-12-31",1,"CSCD Unit Manager I",20052337,"CSCD24",9999,0,63638.43,71281.600000000006,88014,"MANAGEMENT",{"$f":"_xlfn.XLOOKUP(job_titles17[[#This Row],[Extended object ID]],O:O,P:P)","v":{"$error":"#N/A"}}]
["C","1950-01-01","9999-12-31",1,"Financial Mgr",20000124,"C17",8810,1.6000000000000001E-3,81074.789999999994,129719.67,null,null,null,null,"x",null,null,null,null,null,null,null,null,null,null,null,null,"C","2017-12-01","9999-12-31",1,"CSCD Unit Manager II",20052301,"CSCD26",9999,0,72861.570000000007,81619.199999999997,88014,"MANAGEMENT",{"$f":"_xlfn.XLOOKUP(job_titles17[[#This Row],[Extended object ID]],O:O,P:P)","v":{"$error":"#N/A"}}]
["C","2015-10-01","9999-12-31",1,"Financial Mgr Sr",20051152,"C19",8810,1.6000000000000001E-3,92836.33,148538.12,null,null,null,null,"x",null,null,null,null,null,null,null,null,null,null,null,null,"C","2018-10-02","9999-12-31",1,"Custodial Services Superintendent",20052827,"C08",9015,1.8800000000000001E-2,52162.239999999998,75635.25,88014,"MANAGEMENT",{"$f":"_xlfn.XLOOKUP(job_titles17[[#This Row],[Extended object ID]],O:O,P:P)","v":{"$error":"#N/A"}}]
["C","2021-10-04","9999-12-31",5,"Financial Mgr Succession",20054301,"GRD27",null,null,77956.53,124730.53,null,null,null,null,"x",null,null,null,null,null,null,null,null,null,null,null,null,"C","1950-01-01","9999-12-31",1,"Custodian",20000000,"C02",9015,1.8800000000000001E-2,43264,56243.199999999997,88001,"MAINTENANCE",{"$f":"_xlfn.XLOOKUP(job_titles17[[#This Row],[Extended object ID]],O:O,P:P)","v":{"$error":"#N/A"}}]
["C","2021-09-21","9999-12-31",2,"Financial Mgr Succession",20054326,"GRD27",null,null,77956.53,124730.53,null,null,null,null,"x",null,null,null,null,null,null,null,null,null,null,null,null,"C","1950-01-01","9999-12-31",1,"Custodian Lead",20000001,"C03",9015,1.8800000000000001E-2,44561.919999999998,57930.5,88001,"MAINTENANCE",{"$f":"_xlfn.XLOOKUP(job_titles17[[#This Row],[Extended object ID]],O:O,P:P)","v":{"$error":"#N/A"}}]
["C","2017-10-01","9999-12-31",1,"Fire Education Outreach Coordinator",20052252,"C11",7720,1.55E-2,58112.6,87168.9,null,null,null,null,"x",null,null,null,null,null,null,null,null,null,null,null,null,"C","1950-01-01","9999-12-31",1,"Custodian Services Supv",20000002,"C04",9015,1.8800000000000001E-2,45898.78,59668.41,88001,"MAINTENANCE",{"$f":"_xlfn.XLOOKUP(job_titles17[[#This Row],[Extended object ID]],O:O,P:P)","v":{"$error":"#N/A"}}]
["C","1950-01-01","9999-12-31",1,"Fire Marshal",20000225,"C19",7720,1.55E-2,92836.33,148538.12,null,null,null,null,"x",null,null,null,null,null,null,null,null,null,null,null,null,"C","1950-01-01","9999-12-31",1,"Customer Support Analyst",20000471,"C10",8810,1.6000000000000001E-3,55877.5,82698.7,88021,"INFORMATION TECH",{"$f":"_xlfn.XLOOKUP(job_titles17[[#This Row],[Extended object ID]],O:O,P:P)","v":{"$error":"#N/A"}}]
["C","1950-01-01","9999-12-31",1,"Fire Marshal Asst",20000224,"C17",7720,1.55E-2,81074.789999999994,129719.67,null,null,null,null,"x",null,null,null,null,null,null,null,null,null,null,null,null,"C","1950-01-01","9999-12-31",1,"Customer Support Analyst Sr",20000469,"C14",8810,1.6000000000000001E-3,66183.97,105894.35,88021,"INFORMATION TECH",{"$f":"_xlfn.XLOOKUP(job_titles17[[#This Row],[Extended object ID]],O:O,P:P)","v":{"$error":"#N/A"}}]
["C","1950-01-01","9999-12-31",1,"Fire Marshal Deputy Asst I",20000617,"C12",7720,1.55E-2,60437.1,90655.66,null,null,null,null,"x",null,null,null,null,null,null,null,null,null,null,null,null,"C","1950-01-01","9999-12-31",1,"Customer Support Mgr",20000467,"C18",8810,1.6000000000000001E-3,86761.41,138818.25,88021,"INFORMATION TECH",{"$f":"_xlfn.XLOOKUP(job_titles17[[#This Row],[Extended object ID]],O:O,P:P)","v":{"$error":"#N/A"}}]
["C","1950-01-01","9999-12-31",1,"Fire Marshal Deputy Asst II",20000222,"C14",7720,1.55E-2,66183.97,105894.35,null,null,null,null,"x",null,null,null,null,null,null,null,null,null,null,null,null,"C","2022-11-15","9999-12-31",1,"Customer Support Mgr Succession",20055326,"C18",8810,1.6000000000000001E-3,86761.41,138818.25,88021,"INFORMATION TECH",{"$f":"_xlfn.XLOOKUP(job_titles17[[#This Row],[Extended object ID]],O:O,P:P)","v":"x"}]
["C","1950-01-01","9999-12-31",1,"Fire Marshal Deputy Asst III",20000223,"C16",7720,1.55E-2,75776.03,121241.65,null,null,null,null,"x",null,null,null,null,null,null,null,null,null,null,null,null,"C","1950-01-01","9999-12-31",1,"Customer Support Supervisor",20000468,"C16",8810,1.6000000000000001E-3,75776.03,121241.65,88021,"INFORMATION TECH",{"$f":"_xlfn.XLOOKUP(job_titles17[[#This Row],[Extended object ID]],O:O,P:P)","v":{"$error":"#N/A"}}]
["C","2017-10-01","9999-12-31",1,"Fire Plans Examiner",20052251,"C13",7720,1.55E-2,62854.59,100567.34,null,null,null,null,"x",null,null,null,null,null,null,null,null,null,null,null,null,"C","2022-08-02","9999-12-31",1,"Customer Support Supervisor Succession",20055026,"GRD26",8810,1.6000000000000001E-3,72861.570000000007,116578.59,0,"0",{"$f":"_xlfn.XLOOKUP(job_titles17[[#This Row],[Extended object ID]],O:O,P:P)","v":{"$error":"#N/A"}}]
["C","1950-01-01","9999-12-31",1,"Fleet Div Mgr",20000307,"C16",8810,1.6000000000000001E-3,75776.03,121241.65,null,null,null,null,"x",null,null,null,null,null,null,null,null,null,null,null,null,"C","1950-01-01","9999-12-31",1,"Customer Support Tech",20000603,"C08",8810,1.6000000000000001E-3,52162.239999999998,75635.25,88021,"INFORMATION TECH",{"$f":"_xlfn.XLOOKUP(job_titles17[[#This Row],[Extended object ID]],O:O,P:P)","v":{"$error":"#N/A"}}]
["C","1950-01-01","9999-12-31",1,"Fleet Services Associate",20000618,"C08",8810,1.6000000000000001E-3,52162.239999999998,75635.25,null,null,null,null,"x",null,null,null,null,null,null,null,null,null,null,null,null,"C","2022-10-18","9999-12-31",1,"Data Architect",20055177,"C20",8810,1.6000000000000001E-3,99345.18,158952.29,88021,"INFORMATION TECH",{"$f":"_xlfn.XLOOKUP(job_titles17[[#This Row],[Extended object ID]],O:O,P:P)","v":{"$error":"#N/A"}}]
["C","1950-01-01","9999-12-31",1,"Fleet Services Coord",20000036,"C13",8391,1.2800000000000001E-2,62854.59,100567.34,null,null,null,null,"x",null,null,null,null,null,null,null,null,null,null,null,null,"C","1950-01-01","9999-12-31",1,"Database Administrator",20000447,"C18",8810,1.6000000000000001E-3,86761.41,138818.25,88021,"INFORMATION TECH",{"$f":"_xlfn.XLOOKUP(job_titles17[[#This Row],[Extended object ID]],O:O,P:P)","v":{"$error":"#N/A"}}]
["C","1950-01-01","9999-12-31",1,"Flight Paramedic",20000063,"C14",7422,1.3299999999999999E-2,66183.97,105894.35,null,null,null,null,"x",null,null,null,null,null,null,null,null,null,null,null,null,"C","2018-09-01","9999-12-31",1,"Dept Safety Program Administrator",20052726,"C14",8810,1.6000000000000001E-3,66183.97,105894.35,88016,"HUMAN RESOURCES",{"$f":"_xlfn.XLOOKUP(job_titles17[[#This Row],[Extended object ID]],O:O,P:P)","v":{"$error":"#N/A"}}]
["C","2015-06-16","9999-12-31",1,"Flight Paramedic Sr",20051051,"C15",7422,1.3299999999999999E-2,70819.7,113311.53,null,null,null,null,"x",null,null,null,null,null,null,null,null,null,null,null,null,"C","1950-01-01","9999-12-31",1,"Deputy Emergency Management Coordinator",20000220,"C14",8810,1.6000000000000001E-3,66183.97,105894.35,88012,"PUBLIC SAF/EMG MGMT",{"$f":"_xlfn.XLOOKUP(job_titles17[[#This Row],[Extended object ID]],O:O,P:P)","v":{"$error":"#N/A"}}]
["C","1950-01-01","9999-12-31",1,"Flight Registered Nurse",20000064,"C17",7422,1.3299999999999999E-2,81074.789999999994,129719.67,null,null,null,null,"x",null,null,null,null,null,null,null,null,null,null,null,null,"C","2012-10-01","9999-12-31",1,"Dev Svcs Long Range Planning Div Dir",20050081,"C20",8601,1.8E-3,99345.18,158952.29,88014,"MANAGEMENT",{"$f":"_xlfn.XLOOKUP(job_titles17[[#This Row],[Extended object ID]],O:O,P:P)","v":{"$error":"#N/A"}}]
["C","2015-06-16","9999-12-31",1,"Flight Registered Nurse Sr",20051052,"C18",7422,1.3299999999999999E-2,86761.41,138818.25,null,null,null,null,"x",null,null,null,null,null,null,null,null,null,null,null,null,"C","2019-09-30","9999-12-31",1,"Development Services Division Manager",20053292,"C16",8810,1.6000000000000001E-3,75776.03,121241.65,88014,"MANAGEMENT",{"$f":"_xlfn.XLOOKUP(job_titles17[[#This Row],[Extended object ID]],O:O,P:P)","v":{"$error":"#N/A"}}]
["C","2017-10-01","9999-12-31",1,"Floodplain Project Manager",20052202,"C13",8810,1.6000000000000001E-3,62854.59,100567.34,null,null,null,null,"x",null,null,null,null,null,null,null,null,null,null,null,null,"C","2022-10-02","9999-12-31",1,"Digital Forensic Analyst",20055226,"C12",7720,1.55E-2,60437.1,90655.66,88012,"PUBLIC SAF/EMG MGMT",{"$f":"_xlfn.XLOOKUP(job_titles17[[#This Row],[Extended object ID]],O:O,P:P)","v":{"$error":"#N/A"}}]
["C","1950-01-01","9999-12-31",1,"Food Services Mgr",20000024,"C08",8810,1.6000000000000001E-3,52162.239999999998,75635.25,null,null,null,null,"x",null,null,null,null,null,null,null,null,null,null,null,null,"C","2016-01-12","9999-12-31",1,"Dir Econ Dev & Strategic Investments",20051302,"C23",8810,1.6000000000000001E-3,121718.94,200836.25,88014,"MANAGEMENT",{"$f":"_xlfn.XLOOKUP(job_titles17[[#This Row],[Extended object ID]],O:O,P:P)","v":{"$error":"#N/A"}}]
["C","1950-01-01","9999-12-31",1,"Food Services Supv",20000023,"C05",8810,1.6000000000000001E-3,47275.74,61458.46,null,null,null,null,"x",null,null,null,null,null,null,null,null,null,null,null,null,"C","2020-06-09","9999-12-31",1,"Director of Holistic Practice",20053727,"C24",8810,1.6000000000000001E-3,130239.35,214894.92,88014,"MANAGEMENT",{"$f":"_xlfn.XLOOKUP(job_titles17[[#This Row],[Extended object ID]],O:O,P:P)","v":{"$error":"#N/A"}}]
["C","1950-01-01","9999-12-31",1,"Forensic Accountant",20000132,"C13",8810,1.6000000000000001E-3,62854.59,100567.34,null,null,null,null,"x",null,null,null,null,null,null,null,null,null,null,null,null,"C","2019-09-30","9999-12-31",1,"Director of Policy and Analytics",20053289,"C18",8810,1.6000000000000001E-3,86761.41,138818.25,88014,"MANAGEMENT",{"$f":"_xlfn.XLOOKUP(job_titles17[[#This Row],[Extended object ID]],O:O,P:P)","v":{"$error":"#N/A"}}]
["C","1950-01-01","9999-12-31",1,"Forensic Accountant Sr",20000133,"C15",8810,1.6000000000000001E-3,70819.7,113311.53,null,null,null,null,"x",null,null,null,null,null,null,null,null,null,null,null,null,"C","2020-06-09","9999-12-31",1,"Director of Trials and Training",20053728,"C24",8810,1.6000000000000001E-3,130239.35,214894.92,88014,"MANAGEMENT",{"$f":"_xlfn.XLOOKUP(job_titles17[[#This Row],[Extended object ID]],O:O,P:P)","v":{"$error":"#N/A"}}]
["C","2022-10-25","9999-12-31",1,"Forensic Media Evidence Specialist",20055227,"C12",7720,1.55E-2,60437.1,90655.66,null,null,null,null,"x",null,null,null,null,null,null,null,null,null,null,null,null,"C","1950-01-01","9999-12-31",1,"Dispatcher",20000205,"C04",8810,1.6000000000000001E-3,45898.78,59668.41,88012,"PUBLIC SAF/EMG MGMT",{"$f":"_xlfn.XLOOKUP(job_titles17[[#This Row],[Extended object ID]],O:O,P:P)","v":{"$error":"#N/A"}}]
["C","1950-01-01","9999-12-31",1,"GIS Analyst",20000179,"C11",8601,1.8E-3,58112.6,87168.9,null,null,null,null,"x",null,null,null,null,null,null,null,null,null,null,null,null,"C","1950-01-01","9999-12-31",1,"District Attorney",20000506,"NCF01",8810,1.6000000000000001E-3,15080,500000,88022,"ELECTED",{"$f":"_xlfn.XLOOKUP(job_titles17[[#This Row],[Extended object ID]],O:O,P:P)","v":"x"}]
["C","1950-01-01","9999-12-31",1,"GIS Coord",20000180,"C13",8601,1.8E-3,62854.59,100567.34,null,null,null,null,"x",null,null,null,null,null,null,null,null,null,null,null,null,"C","1950-01-01","9999-12-31",1,"District Clerk",20000507,"NCF01",8810,1.6000000000000001E-3,15080,500000,88022,"ELECTED",{"$f":"_xlfn.XLOOKUP(job_titles17[[#This Row],[Extended object ID]],O:O,P:P)","v":"x"}]
["C","2017-04-04","9999-12-31",1,"GIS Manager",20052126,"C15",8810,1.6000000000000001E-3,70819.7,113311.53,null,null,null,null,"x",null,null,null,null,null,null,null,null,null,null,null,null,"C","1950-01-01","9999-12-31",1,"District Clerk Deputy Chief",20000320,"C21",8810,1.6000000000000001E-3,106310.9,175412.99,88014,"MANAGEMENT",{"$f":"_xlfn.XLOOKUP(job_titles17[[#This Row],[Extended object ID]],O:O,P:P)","v":{"$error":"#N/A"}}]
["C","1950-01-01","9999-12-31",1,"GIS Specialist",20000178,"C08",8601,1.8E-3,52162.239999999998,75635.25,null,null,null,null,"x",null,null,null,null,null,null,null,null,null,null,null,null,"C","2014-12-23","9999-12-31",1,"District Clerk Deputy Chief Sn",20050901,"GRD30",8810,1.6000000000000001E-3,95524.21,152838.82,88014,"MANAGEMENT",{"$f":"_xlfn.XLOOKUP(job_titles17[[#This Row],[Extended object ID]],O:O,P:P)","v":"x"}]
["C","2023-01-03","9999-12-31","1900-01-01","Grants Administrator",20055401,"C18",8810,1.6000000000000001E-3,86761.41,138818.25,null,null,null,null,"x",null,null,null,null,null,null,null,null,null,null,null,null,"C","1950-01-01","9999-12-31",1,"District Judge",20000508,"NCF01",8810,1.6000000000000001E-3,15080,500000,88022,"ELECTED",{"$f":"_xlfn.XLOOKUP(job_titles17[[#This Row],[Extended object ID]],O:O,P:P)","v":"x"}]
["C","2023-01-03","9999-12-31",1,"Grants Manager",20055402,"C14",8810,1.6000000000000001E-3,66183.97,105894.35,null,null,null,null,"x",null,null,null,null,null,null,null,null,null,null,null,null,"C","1950-01-01","9999-12-31",1,"District Park Mgr",20000304,"C15",7720,1.55E-2,70819.7,113311.53,88014,"MANAGEMENT",{"$f":"_xlfn.XLOOKUP(job_titles17[[#This Row],[Extended object ID]],O:O,P:P)","v":{"$error":"#N/A"}}]
["C","2015-10-01","9999-12-31",1,"Graphic Artist",20051155,"C08",8810,1.6000000000000001E-3,52162.239999999998,75635.25,null,null,null,null,"x",null,null,null,null,null,null,null,null,null,null,null,null,"C","2019-09-25","9999-12-31",1,"Div Chief Clinical Performance & Edu",20053377,"C19",8810,1.6000000000000001E-3,92836.33,148538.12,88012,"PUBLIC SAF/EMG MGMT",{"$f":"_xlfn.XLOOKUP(job_titles17[[#This Row],[Extended object ID]],O:O,P:P)","v":{"$error":"#N/A"}}]
["C","2022-05-24","9999-12-31",1,"Graphic Fabrication Tech",20054901,"C06",5606,5.5999999999999999E-3,48694.01,65736.92,null,null,null,null,"x",null,null,null,null,null,null,null,null,null,null,null,null,"C","2021-07-20","9999-12-31",1,"Diversity, Equity, and Inclusion Officer",20054176,"C18",8810,1.6000000000000001E-3,86761.41,138818.25,88014,"MANAGEMENT",{"$f":"_xlfn.XLOOKUP(job_titles17[[#This Row],[Extended object ID]],O:O,P:P)","v":{"$error":"#N/A"}}]
["C","1950-01-01","9999-12-31",1,"Groundskeeper",20000003,"C03",9015,1.8800000000000001E-2,44561.919999999998,57930.5,null,null,null,null,"x",null,null,null,null,null,null,null,null,null,null,null,null,"C","2021-09-01","9999-12-31",1,"Division Manager",20054352,"C14",8810,1.6000000000000001E-3,66183.97,105894.35,88014,"MANAGEMENT",{"$f":"_xlfn.XLOOKUP(job_titles17[[#This Row],[Extended object ID]],O:O,P:P)","v":{"$error":"#N/A"}}]
["C","2012-07-24","9999-12-31",1,"Groundskeeper Lead",20050027,"C04",9015,1.8800000000000001E-2,45898.78,59668.41,null,null,null,null,"x",null,null,null,null,null,null,null,null,null,null,null,null,"C","2016-10-01","9999-12-31",1,"Economic & Strategic Planning Mg Dir",20051753,"C18",8810,1.6000000000000001E-3,86761.41,138818.25,88014,"MANAGEMENT",{"$f":"_xlfn.XLOOKUP(job_titles17[[#This Row],[Extended object ID]],O:O,P:P)","v":{"$error":"#N/A"}}]
["C","1950-01-01","9999-12-31",1,"Groundskeeper Supv",20000004,"C06",9015,1.8800000000000001E-2,48694.01,65736.92,null,null,null,null,"x",null,null,null,null,null,null,null,null,null,null,null,null,"C","2016-10-04","9999-12-31",1,"Economic & Strategic Pln Managing Dir Sn",20051726,"GRD28",8810,1.6000000000000001E-3,83424.429999999993,133479.01,88014,"MANAGEMENT",{"$f":"_xlfn.XLOOKUP(job_titles17[[#This Row],[Extended object ID]],O:O,P:P)","v":"x"}]
["C","1950-01-01","9999-12-31",1,"Guardian Ad Litem I",20000268,"C09",8810,1.6000000000000001E-3,53987.92,78282.490000000005,null,null,null,null,"x",null,null,null,null,null,null,null,null,null,null,null,null,"C","1950-01-01","9999-12-31",1,"Education Instructional Specialist",20000397,"C05",8810,1.6000000000000001E-3,47275.74,61458.46,88017,"EDUCATION & TRAINING",{"$f":"_xlfn.XLOOKUP(job_titles17[[#This Row],[Extended object ID]],O:O,P:P)","v":{"$error":"#N/A"}}]
["C","1950-01-01","9999-12-31",1,"Guardian Ad Litem II",20000269,"C10",8810,1.6000000000000001E-3,55877.5,82698.7,null,null,null,null,"x",null,null,null,null,null,null,null,null,null,null,null,null,"C","1950-01-01","9999-12-31",1,"Election Day Worker",20049999,null,8810,1.6000000000000001E-3,null,null,0,"0",{"$f":"_xlfn.XLOOKUP(job_titles17[[#This Row],[Extended object ID]],O:O,P:P)","v":"x"}]
["C","1950-01-01","9999-12-31",1,"Guardian Ad Litem Sr",20000270,"C11",8810,1.6000000000000001E-3,58112.6,87168.9,null,null,null,null,"x",null,null,null,null,null,null,null,null,null,null,null,null,"C","1950-01-01","9999-12-31",1,"Elections Administrator Asst",20000303,"C17",8810,1.6000000000000001E-3,81074.789999999994,129719.67,88014,"MANAGEMENT",{"$f":"_xlfn.XLOOKUP(job_titles17[[#This Row],[Extended object ID]],O:O,P:P)","v":{"$error":"#N/A"}}]
["C","2014-06-03","9999-12-31",1,"Health & Wellness Program Administrator",20050651,"C13",8832,1.9E-3,62854.59,100567.34,null,null,null,null,"x",null,null,null,null,null,null,null,null,null,null,null,null,"C","1950-01-01","9999-12-31",1,"Elections Coord",20000417,"C07",8810,1.6000000000000001E-3,50398.3,68037.710000000006,88004,"ADMINISTRATIVE SUPP",{"$f":"_xlfn.XLOOKUP(job_titles17[[#This Row],[Extended object ID]],O:O,P:P)","v":"x"}]
["C","1950-01-01","9999-12-31",1,"Health Services Supv",20000055,"C17",8832,1.9E-3,81074.789999999994,129719.67,null,null,null,null,"x",null,null,null,null,null,null,null,null,null,null,null,null,"C","2019-03-12","9999-12-31",1,"Elections Coord Sr",20053051,"C09",8810,1.6000000000000001E-3,53987.92,78282.490000000005,88004,"ADMINISTRATIVE SUPP",{"$f":"_xlfn.XLOOKUP(job_titles17[[#This Row],[Extended object ID]],O:O,P:P)","v":{"$error":"#N/A"}}]
["C","1950-01-01","9999-12-31",1,"Helicopter Pilot",20000229,"C18",7422,1.3299999999999999E-2,86761.41,138818.25,null,null,null,null,"x",null,null,null,null,null,null,null,null,null,null,null,null,"C","1950-01-01","9999-12-31",1,"Elections Day Clerk",20000408,"NCF01",8810,1.6000000000000001E-3,15080,500000,88020,"TEMP/SEASONAL",{"$f":"_xlfn.XLOOKUP(job_titles17[[#This Row],[Extended object ID]],O:O,P:P)","v":"x"}]
["C","1950-01-01","9999-12-31",1,"Helicopter Pilot Chief Flight",20000231,"C20",7422,1.3299999999999999E-2,99345.18,158952.29,null,null,null,null,"x",null,null,null,null,null,null,null,null,null,null,null,null,"C","1950-01-01","9999-12-31",1,"Elections Day Judge",20000409,"NCF01",8810,1.6000000000000001E-3,15080,500000,88020,"TEMP/SEASONAL",{"$f":"_xlfn.XLOOKUP(job_titles17[[#This Row],[Extended object ID]],O:O,P:P)","v":"x"}]
["C","1950-01-01","9999-12-31",1,"Helicopter Pilot Sr",20000230,"C19",7422,1.3299999999999999E-2,92836.33,148538.12,null,null,null,null,"x",null,null,null,null,null,null,null,null,null,null,null,null,"C","1950-01-01","9999-12-31",1,"Elections Div Dir",20000308,"C20",8810,1.6000000000000001E-3,99345.18,158952.29,88014,"MANAGEMENT",{"$f":"_xlfn.XLOOKUP(job_titles17[[#This Row],[Extended object ID]],O:O,P:P)","v":{"$error":"#N/A"}}]
["C","2015-12-29","9999-12-31",1,"HHS Chief Deputy",20051301,"C22",8810,1.6000000000000001E-3,113755.98,187697.37,null,null,null,null,"x",null,null,null,null,null,null,null,null,null,null,null,null,"C","1950-01-01","9999-12-31",1,"Elections Early Voting Clerk",20000410,"NCF01",8810,1.6000000000000001E-3,15080,500000,88020,"TEMP/SEASONAL",{"$f":"_xlfn.XLOOKUP(job_titles17[[#This Row],[Extended object ID]],O:O,P:P)","v":"x"}]
["C","1950-01-01","9999-12-31",1,"HHS Div Dir",20000299,"C19",8810,1.6000000000000001E-3,92836.33,148538.12,null,null,null,null,"x",null,null,null,null,null,null,null,null,null,null,null,null,"C","1950-01-01","9999-12-31",1,"Elections Early Voting Deputy",20000411,"NCF01",8810,1.6000000000000001E-3,15080,500000,88020,"TEMP/SEASONAL",{"$f":"_xlfn.XLOOKUP(job_titles17[[#This Row],[Extended object ID]],O:O,P:P)","v":"x"}]
["C","2023-02-07","9999-12-31",1,"HIPAA Compliance and Privacy Auditor",20055452,"C16",8810,1.6000000000000001E-3,75776.03,121241.65,null,null,null,null,"x",null,null,null,null,null,null,null,null,null,null,null,null,"C","2018-03-28","9999-12-31",1,"Elections Early Voting Worker",20052476,"NCF01",8810,1.6000000000000001E-3,15080,500000,88020,"TEMP/SEASONAL",{"$f":"_xlfn.XLOOKUP(job_titles17[[#This Row],[Extended object ID]],O:O,P:P)","v":{"$error":"#N/A"}}]
["C","2015-10-14","9999-12-31",1,"HIPAA Compliance and Privacy Officer",20051251,"C21",8810,1.6000000000000001E-3,106310.9,175412.99,null,null,null,null,"x",null,null,null,null,null,null,null,null,null,null,null,null,"C","1950-01-01","9999-12-31",1,"Elections Mgmt Coord",20000302,"C13",8810,1.6000000000000001E-3,62854.59,100567.34,88014,"MANAGEMENT",{"$f":"_xlfn.XLOOKUP(job_titles17[[#This Row],[Extended object ID]],O:O,P:P)","v":{"$error":"#N/A"}}]
["C","2017-08-29","9999-12-31",1,"Histology Technician",20052201,"C08",8833,4.7999999999999996E-3,52162.239999999998,75635.25,null,null,null,null,"x",null,null,null,null,null,null,null,null,null,null,null,null,"C","2018-03-28","9999-12-31",1,"Elections Operations Clerk",20052477,"NCF01",8810,1.6000000000000001E-3,15080,500000,88020,"TEMP/SEASONAL",{"$f":"_xlfn.XLOOKUP(job_titles17[[#This Row],[Extended object ID]],O:O,P:P)","v":{"$error":"#N/A"}}]
["C","2015-10-01","9999-12-31",1,"Home Energy Auditor",20051167,"C09",8601,1.8E-3,53987.92,78282.490000000005,null,null,null,null,"x",null,null,null,null,null,null,null,null,null,null,null,null,"C","1950-01-01","9999-12-31",1,"Elections Operations Clerk I",20000412,"NCF01",8810,1.6000000000000001E-3,15080,500000,88020,"TEMP/SEASONAL",{"$f":"_xlfn.XLOOKUP(job_titles17[[#This Row],[Extended object ID]],O:O,P:P)","v":"x"}]
["C","1950-01-01","9999-12-31",1,"Home Repair Supv",20000040,"C10",5479,3.6700000000000003E-2,55877.5,82698.7,null,null,null,null,"x",null,null,null,null,null,null,null,null,null,null,null,null,"C","1950-01-01","9999-12-31",1,"Elections Operations Clerk II",20000413,"NCF01",8810,1.6000000000000001E-3,15080,500000,88020,"TEMP/SEASONAL",{"$f":"_xlfn.XLOOKUP(job_titles17[[#This Row],[Extended object ID]],O:O,P:P)","v":"x"}]
["C","1950-01-01","9999-12-31",1,"Housekeeper",20000610,"C02",9015,1.8800000000000001E-2,43264,56243.199999999997,null,null,null,null,"x",null,null,null,null,null,null,null,null,null,null,null,null,"C","1950-01-01","9999-12-31",1,"Elections Operations Clerk III",20000414,"NCF01",8810,1.6000000000000001E-3,15080,500000,88020,"TEMP/SEASONAL",{"$f":"_xlfn.XLOOKUP(job_titles17[[#This Row],[Extended object ID]],O:O,P:P)","v":"x"}]
["C","2021-10-02","9999-12-31",1,"HRIS Analyst",20054453,"C10",8810,1.6000000000000001E-3,55877.5,82698.7,null,null,null,null,"x",null,null,null,null,null,null,null,null,null,null,null,null,"C","1950-01-01","9999-12-31",1,"Elections Operations Clerk IV",20000415,"NCF01",8810,1.6000000000000001E-3,15080,500000,88020,"TEMP/SEASONAL",{"$f":"_xlfn.XLOOKUP(job_titles17[[#This Row],[Extended object ID]],O:O,P:P)","v":"x"}]
["C","1950-01-01","9999-12-31",1,"HRIS Specialist",20000385,"GRD25",8810,1.6000000000000001E-3,68095.87,108953.31,null,null,null,null,"x",null,null,null,null,null,null,null,null,null,null,null,null,"C","1950-01-01","9999-12-31",1,"Elections Operations Clerk V",20000416,"NCF01",8810,1.6000000000000001E-3,15080,500000,88020,"TEMP/SEASONAL",{"$f":"_xlfn.XLOOKUP(job_titles17[[#This Row],[Extended object ID]],O:O,P:P)","v":"x"}]
["C","1950-01-01","9999-12-31",1,"Human Resources Analyst I",20000379,"C10",8810,1.6000000000000001E-3,55877.5,82698.7,null,null,null,null,"x",null,null,null,null,null,null,null,null,null,null,null,null,"C","2014-10-01","9999-12-31",1,"Elections Operations Clerk VI",20050851,"NCF01",8810,1.6000000000000001E-3,15080,500000,88020,"TEMP/SEASONAL",{"$f":"_xlfn.XLOOKUP(job_titles17[[#This Row],[Extended object ID]],O:O,P:P)","v":"x"}]
["C","1950-01-01","9999-12-31",1,"Human Resources Analyst II",20000380,"C12",8810,1.6000000000000001E-3,60437.1,90655.66,null,null,null,null,"x",null,null,null,null,null,null,null,null,null,null,null,null,"C","1950-01-01","9999-12-31",1,"Elections Primary Day Wk Nt Tr",20000405,"NCF01",8810,1.6000000000000001E-3,15080,500000,88020,"TEMP/SEASONAL",{"$f":"_xlfn.XLOOKUP(job_titles17[[#This Row],[Extended object ID]],O:O,P:P)","v":"x"}]
["C","1950-01-01","9999-12-31",1,"Human Resources Analyst Sr",20000381,"C14",8810,1.6000000000000001E-3,66183.97,105894.35,null,null,null,null,"x",null,null,null,null,null,null,null,null,null,null,null,null,"C","1950-01-01","9999-12-31",1,"Elections Primary Tr",20000407,"NCF01",8810,1.6000000000000001E-3,15080,500000,88020,"TEMP/SEASONAL",{"$f":"_xlfn.XLOOKUP(job_titles17[[#This Row],[Extended object ID]],O:O,P:P)","v":"x"}]
["C","1950-01-01","9999-12-31",1,"Human Resources Asst I",20000368,"C04",8810,1.6000000000000001E-3,45898.78,59668.41,null,null,null,null,"x",null,null,null,null,null,null,null,null,null,null,null,null,"C","1950-01-01","9999-12-31",1,"Electrician",20000042,"C08",9015,1.8800000000000001E-2,52162.239999999998,75635.25,88002,"SKILLED TRADES",{"$f":"_xlfn.XLOOKUP(job_titles17[[#This Row],[Extended object ID]],O:O,P:P)","v":{"$error":"#N/A"}}]
["C","1950-01-01","9999-12-31",1,"Human Resources Asst II",20000369,"C06",8810,1.6000000000000001E-3,48694.01,65736.92,null,null,null,null,"x",null,null,null,null,null,null,null,null,null,null,null,null,"C","1950-01-01","9999-12-31",1,"Electrician Master",20000043,"C11",9015,1.8800000000000001E-2,58112.6,87168.9,88002,"SKILLED TRADES",{"$f":"_xlfn.XLOOKUP(job_titles17[[#This Row],[Extended object ID]],O:O,P:P)","v":{"$error":"#N/A"}}]
["C","1950-01-01","9999-12-31","1900-01-01","Human Resources Asst Sr",20000370,"C08",8810,1.6000000000000001E-3,52162.239999999998,75635.25,null,null,null,null,"x",null,null,null,null,null,null,null,null,null,null,null,null,"C","2016-05-16","9999-12-31",1,"Electronic Security Coordinator",20051502,"C08",9015,1.8800000000000001E-2,52162.239999999998,75635.25,88002,"SKILLED TRADES",{"$f":"_xlfn.XLOOKUP(job_titles17[[#This Row],[Extended object ID]],O:O,P:P)","v":{"$error":"#N/A"}}]
["C","2021-10-02","9999-12-31",1,"Human Resources Finance and Adm Mgr",20054401,"C17",8810,1.6000000000000001E-3,81074.789999999994,129719.67,null,null,null,null,"x",null,null,null,null,null,null,null,null,null,null,null,null,"C","2017-03-28","9999-12-31",1,"Electronic Security Coordinator Sr",20051978,"C10",8810,1.6000000000000001E-3,55877.5,82698.7,88002,"SKILLED TRADES",{"$f":"_xlfn.XLOOKUP(job_titles17[[#This Row],[Extended object ID]],O:O,P:P)","v":{"$error":"#N/A"}}]
["C","1950-01-01","9999-12-31",1,"Human Resources Mgmt Dir",20000338,"C23",8810,1.6000000000000001E-3,121718.94,200836.25,null,null,null,null,"x",null,null,null,null,null,null,null,null,null,null,null,null,"C","2022-03-01","9999-12-31",1,"Electronic Security Supervisor",20054726,"C14",8810,1.6000000000000001E-3,66183.97,105894.35,88014,"MANAGEMENT",{"$f":"_xlfn.XLOOKUP(job_titles17[[#This Row],[Extended object ID]],O:O,P:P)","v":{"$error":"#N/A"}}]
["C","1950-01-01","9999-12-31",1,"Human Resources Mgr I",20000383,"C16",8810,1.6000000000000001E-3,75776.03,121241.65,null,null,null,null,"x",null,null,null,null,null,null,null,null,null,null,null,null,"C","1950-01-01","9999-12-31",1,"Emergency Radio Communications Mgr",20000497,"C19",8810,1.6000000000000001E-3,92836.33,148538.12,88021,"INFORMATION TECH",{"$f":"_xlfn.XLOOKUP(job_titles17[[#This Row],[Extended object ID]],O:O,P:P)","v":{"$error":"#N/A"}}]
["C","1950-01-01","9999-12-31",1,"Human Resources Mgr II",20000384,"C17",8810,1.6000000000000001E-3,81074.789999999994,129719.67,null,null,null,null,"x",null,null,null,null,null,null,null,null,null,null,null,null,"C","2021-10-28","9999-12-31",1,"Emergency Radio Communications Mgr Sn",20054526,"GRD29",8810,1.6000000000000001E-3,89265.7,142825.07,88021,"INFORMATION TECH",{"$f":"_xlfn.XLOOKUP(job_titles17[[#This Row],[Extended object ID]],O:O,P:P)","v":"x"}]
["C","1950-01-01","9999-12-31",1,"Human Resources Specialist I",20000375,"C10",8810,1.6000000000000001E-3,55877.5,82698.7,null,null,null,null,"x",null,null,null,null,null,null,null,null,null,null,null,null,"C","2021-10-02","9999-12-31",1,"Employee Relations Partner I",20054502,"C10",8810,1.6000000000000001E-3,55877.5,82698.7,88016,"HUMAN RESOURCES",{"$f":"_xlfn.XLOOKUP(job_titles17[[#This Row],[Extended object ID]],O:O,P:P)","v":{"$error":"#N/A"}}]
["C","1950-01-01","9999-12-31",1,"Human Resources Specialist II",20000376,"C12",8810,1.6000000000000001E-3,60437.1,90655.66,null,null,null,null,"x",null,null,null,null,null,null,null,null,null,null,null,null,"C","2021-10-02","9999-12-31",1,"Employee Relations Partner II",20054404,"C12",8810,1.6000000000000001E-3,60437.1,90655.66,88016,"HUMAN RESOURCES",{"$f":"_xlfn.XLOOKUP(job_titles17[[#This Row],[Extended object ID]],O:O,P:P)","v":{"$error":"#N/A"}}]
["C","1950-01-01","9999-12-31",1,"Human Resources Specialist Sr",20000377,"C14",8810,1.6000000000000001E-3,66183.97,105894.35,null,null,null,null,"x",null,null,null,null,null,null,null,null,null,null,null,null,"C","2021-10-02","9999-12-31",1,"Employee Relations Partner Sr",20054455,"C14",8810,1.6000000000000001E-3,66183.97,105894.35,88016,"HUMAN RESOURCES",{"$f":"_xlfn.XLOOKUP(job_titles17[[#This Row],[Extended object ID]],O:O,P:P)","v":{"$error":"#N/A"}}]
["C","1950-01-01","9999-12-31",1,"HVAC Refrigeration Mechanic",20000035,"C09",9015,1.8800000000000001E-2,53987.92,78282.490000000005,null,null,null,null,"x",null,null,null,null,null,null,null,null,null,null,null,null,"C","2018-04-10","9999-12-31",1,"EMS Training Captain",20052501,"C16",8832,1.9E-3,75776.03,121241.65,88003,"MEDICAL",{"$f":"_xlfn.XLOOKUP(job_titles17[[#This Row],[Extended object ID]],O:O,P:P)","v":{"$error":"#N/A"}}]
["C","2012-04-17","9999-12-31",1,"Hydrogeologist",20050001,"C13",8601,1.8E-3,62854.59,100567.34,null,null,null,null,"x",null,null,null,null,null,null,null,null,null,null,null,null,"C","1950-01-01","9999-12-31",1,"Enforcement Officer I",20000263,"C06",8810,1.6000000000000001E-3,48694.01,65736.92,88013,"COURT SERVICES",{"$f":"_xlfn.XLOOKUP(job_titles17[[#This Row],[Extended object ID]],O:O,P:P)","v":{"$error":"#N/A"}}]
["C","2023-12-12","9999-12-31",1,"Hydrogeologist Sr",20055851,"C15",8601,1.8E-3,70819.7,113311.53,null,null,null,null,"x",null,null,null,null,null,null,null,null,null,null,null,null,"C","1950-01-01","9999-12-31",1,"Enforcement Officer II",20000264,"C08",8810,1.6000000000000001E-3,52162.239999999998,75635.25,88013,"COURT SERVICES",{"$f":"_xlfn.XLOOKUP(job_titles17[[#This Row],[Extended object ID]],O:O,P:P)","v":{"$error":"#N/A"}}]
["C","1950-01-01","9999-12-31",1,"Imaging Div Mgr",20000499,"C14",8810,1.6000000000000001E-3,66183.97,105894.35,null,null,null,null,"x",null,null,null,null,null,null,null,null,null,null,null,null,"C","1950-01-01","9999-12-31",1,"Enforcement Officer Sr",20000265,"C09",8810,1.6000000000000001E-3,53987.92,78282.490000000005,88013,"COURT SERVICES",{"$f":"_xlfn.XLOOKUP(job_titles17[[#This Row],[Extended object ID]],O:O,P:P)","v":{"$error":"#N/A"}}]
["C","1950-01-01","9999-12-31",1,"Imaging Lab Supervisor",20000402,"C07",8810,1.6000000000000001E-3,50398.3,68037.710000000006,null,null,null,null,"x",null,null,null,null,null,null,null,null,null,null,null,null,"C","1950-01-01","9999-12-31",1,"Engineer",20000165,"C16",8601,1.8E-3,75776.03,121241.65,88009,"ENGINEERING & ARCHITECTURAL",{"$f":"_xlfn.XLOOKUP(job_titles17[[#This Row],[Extended object ID]],O:O,P:P)","v":{"$error":"#N/A"}}]
["C","1950-01-01","9999-12-31",1,"Imaging Production Tech",20000401,"C04",8810,1.6000000000000001E-3,45898.78,59668.41,null,null,null,null,"x",null,null,null,null,null,null,null,null,null,null,null,null,"C","1950-01-01","9999-12-31",1,"Engineer Sr",20000166,"C18",8601,1.8E-3,86761.41,138818.25,88009,"ENGINEERING & ARCHITECTURAL",{"$f":"_xlfn.XLOOKUP(job_titles17[[#This Row],[Extended object ID]],O:O,P:P)","v":{"$error":"#N/A"}}]
["C","2022-10-02","9999-12-31",1,"Imaging Production Tech Senior",20055277,"C05",8810,1.6000000000000001E-3,47275.74,61458.46,null,null,null,null,"x",null,null,null,null,null,null,null,null,null,null,null,null,"C","1950-01-01","9999-12-31",1,"Engineering Assoc",20000164,"C14",8601,1.8E-3,66183.97,105894.35,88009,"ENGINEERING & ARCHITECTURAL",{"$f":"_xlfn.XLOOKUP(job_titles17[[#This Row],[Extended object ID]],O:O,P:P)","v":{"$error":"#N/A"}}]
["C","1950-01-01","9999-12-31","1900-01-01","Information Security Analyst",20000465,"C13",8810,1.6000000000000001E-3,62854.59,100567.34,null,null,null,null,"x",null,null,null,null,null,null,null,null,null,null,null,null,"C","1950-01-01","9999-12-31",1,"Engineering Div Mgr",20000341,"C19",8601,1.8E-3,92836.33,148538.12,88014,"MANAGEMENT",{"$f":"_xlfn.XLOOKUP(job_titles17[[#This Row],[Extended object ID]],O:O,P:P)","v":{"$error":"#N/A"}}]
["C","1950-01-01","9999-12-31",1,"Information Security Analyst Sr",20000463,"C17",8810,1.6000000000000001E-3,81074.789999999994,129719.67,null,null,null,null,"x",null,null,null,null,null,null,null,null,null,null,null,null,"C","1950-01-01","9999-12-31",1,"Engineering Inspector Specialist",20000173,"C09",8601,1.8E-3,53987.92,78282.490000000005,88009,"ENGINEERING & ARCHITECTURAL",{"$f":"_xlfn.XLOOKUP(job_titles17[[#This Row],[Extended object ID]],O:O,P:P)","v":{"$error":"#N/A"}}]
["C","2018-11-13","9999-12-31",1,"Information Security Architect",20052877,"C20",8810,1.6000000000000001E-3,99345.18,158952.29,null,null,null,null,"x",null,null,null,null,null,null,null,null,null,null,null,null,"C","1950-01-01","9999-12-31",1,"Engineering Inspector Specialist Sr",20000174,"C11",8601,1.8E-3,58112.6,87168.9,88009,"ENGINEERING & ARCHITECTURAL",{"$f":"_xlfn.XLOOKUP(job_titles17[[#This Row],[Extended object ID]],O:O,P:P)","v":{"$error":"#N/A"}}]
["C","2018-11-13","9999-12-31",1,"Information Systems Auditor",20052876,"C18",8810,1.6000000000000001E-3,86761.41,138818.25,null,null,null,null,"x",null,null,null,null,null,null,null,null,null,null,null,null,"C","1950-01-01","9999-12-31",1,"Engineering Specialist",20000162,"C10",8601,1.8E-3,55877.5,82698.7,88009,"ENGINEERING & ARCHITECTURAL",{"$f":"_xlfn.XLOOKUP(job_titles17[[#This Row],[Extended object ID]],O:O,P:P)","v":{"$error":"#N/A"}}]
["C","2019-10-15","9999-12-31","1900-01-01","Information Technology Director",20053452,"C24",8810,1.6000000000000001E-3,130239.35,214894.92,null,null,null,null,"x",null,null,null,null,null,null,null,null,null,null,null,null,"C","1950-01-01","9999-12-31",1,"Engineering Specialist Sr",20000163,"C12",8601,1.8E-3,60437.1,90655.66,88009,"ENGINEERING & ARCHITECTURAL",{"$f":"_xlfn.XLOOKUP(job_titles17[[#This Row],[Extended object ID]],O:O,P:P)","v":{"$error":"#N/A"}}]
["C","1950-01-01","9999-12-31",1,"Information Technology Div Dir",20000434,"C23",8810,1.6000000000000001E-3,121718.94,200836.25,null,null,null,null,"x",null,null,null,null,null,null,null,null,null,null,null,null,"C","1950-01-01","9999-12-31",1,"Engineering Tech",20000160,"C06",8601,1.8E-3,48694.01,65736.92,88009,"ENGINEERING & ARCHITECTURAL",{"$f":"_xlfn.XLOOKUP(job_titles17[[#This Row],[Extended object ID]],O:O,P:P)","v":{"$error":"#N/A"}}]
["C","2016-09-27","9999-12-31",1,"Infrastructure Architect",20051703,"C20",8810,1.6000000000000001E-3,99345.18,158952.29,null,null,null,null,"x",null,null,null,null,null,null,null,null,null,null,null,null,"C","1950-01-01","9999-12-31",1,"Engineering Tech Sr",20000161,"C08",8601,1.8E-3,52162.239999999998,75635.25,88009,"ENGINEERING & ARCHITECTURAL",{"$f":"_xlfn.XLOOKUP(job_titles17[[#This Row],[Extended object ID]],O:O,P:P)","v":{"$error":"#N/A"}}]
["C","2013-10-01","9999-12-31",1,"Inmate Mental Health & CES Dir",20050453,"C19",7720,1.55E-2,92836.33,148538.12,null,null,null,null,"x",null,null,null,null,null,null,null,null,null,null,null,null,"C","1950-01-01","9999-12-31",1,"Environmental Program Mgr",20000361,"C16",8810,1.6000000000000001E-3,75776.03,121241.65,88015,"PROFESSIONAL SUPP",{"$f":"_xlfn.XLOOKUP(job_titles17[[#This Row],[Extended object ID]],O:O,P:P)","v":{"$error":"#N/A"}}]
["C","1950-01-01","9999-12-31",1,"Intergovernmental Relations Officer",20000404,"C20",8810,1.6000000000000001E-3,99345.18,158952.29,null,null,null,null,"x",null,null,null,null,null,null,null,null,null,null,null,null,"C","1950-01-01","9999-12-31",1,"Environmental Project Mgr",20000360,"C15",8810,1.6000000000000001E-3,70819.7,113311.53,88015,"PROFESSIONAL SUPP",{"$f":"_xlfn.XLOOKUP(job_titles17[[#This Row],[Extended object ID]],O:O,P:P)","v":{"$error":"#N/A"}}]
["C","2015-10-01","9999-12-31",1,"Intergovernmental Relations Specialist",20051226,"C12",8810,1.6000000000000001E-3,60437.1,90655.66,null,null,null,null,"x",null,null,null,null,null,null,null,null,null,null,null,null,"C","1950-01-01","9999-12-31",1,"Environmental Specialist",20000358,"C11",8810,1.6000000000000001E-3,58112.6,87168.9,88015,"PROFESSIONAL SUPP",{"$f":"_xlfn.XLOOKUP(job_titles17[[#This Row],[Extended object ID]],O:O,P:P)","v":{"$error":"#N/A"}}]
["C","2014-12-23","9999-12-31",1,"Interior Designer",20050902,"C09",8601,1.8E-3,53987.92,78282.490000000005,null,null,null,null,"x",null,null,null,null,null,null,null,null,null,null,null,null,"C","1950-01-01","9999-12-31",1,"Environmental Specialist Sr",20000359,"C12",8810,1.6000000000000001E-3,60437.1,90655.66,88015,"PROFESSIONAL SUPP",{"$f":"_xlfn.XLOOKUP(job_titles17[[#This Row],[Extended object ID]],O:O,P:P)","v":{"$error":"#N/A"}}]
["C","2013-02-26","9999-12-31",1,"Internal Auditor",20050228,"C13",8810,1.6000000000000001E-3,62854.59,100567.34,null,null,null,null,"x",null,null,null,null,null,null,null,null,null,null,null,null,"C","2018-07-10","9999-12-31",1,"Environmental Supervisor",20052651,"C14",9102,2.0799999999999999E-2,66183.97,105894.35,88015,"PROFESSIONAL SUPP",{"$f":"_xlfn.XLOOKUP(job_titles17[[#This Row],[Extended object ID]],O:O,P:P)","v":{"$error":"#N/A"}}]
["C","1950-01-01","9999-12-31",1,"Interpreter",20000111,"C10",8810,1.6000000000000001E-3,55877.5,82698.7,null,null,null,null,"x",null,null,null,null,null,null,null,null,null,null,null,null,"C","2013-07-02","9999-12-31",1,"Environmental Technician",20050302,"C06",9102,2.0799999999999999E-2,48694.01,65736.92,88015,"PROFESSIONAL SUPP",{"$f":"_xlfn.XLOOKUP(job_titles17[[#This Row],[Extended object ID]],O:O,P:P)","v":{"$error":"#N/A"}}]
["C","1950-01-01","9999-12-31",1,"Interpreter Language/Court Sr",20000113,"C11",8810,1.6000000000000001E-3,58112.6,87168.9,null,null,null,null,"x",null,null,null,null,null,null,null,null,null,null,null,null,"C","2019-10-01","9999-12-31",1,"Equipment Operator Foreman",20053402,"C11",5506,4.3700000000000003E-2,58112.6,87168.9,88002,"SKILLED TRADES",{"$f":"_xlfn.XLOOKUP(job_titles17[[#This Row],[Extended object ID]],O:O,P:P)","v":{"$error":"#N/A"}}]
["C","1950-01-01","9999-12-31",1,"Interpreter Sr",20000112,"C11",8810,1.6000000000000001E-3,58112.6,87168.9,null,null,null,null,"x",null,null,null,null,null,null,null,null,null,null,null,null,"C","1950-01-01","9999-12-31",1,"Equipment Operator I",20000028,"C08",5506,4.3700000000000003E-2,52162.239999999998,75635.25,88002,"SKILLED TRADES",{"$f":"_xlfn.XLOOKUP(job_titles17[[#This Row],[Extended object ID]],O:O,P:P)","v":{"$error":"#N/A"}}]
["C","1950-01-01","9999-12-31",1,"Inventory Specialist",20000614,"C04",9015,1.8800000000000001E-2,45898.78,59668.41,null,null,null,null,"x",null,null,null,null,null,null,null,null,null,null,null,null,"C","2015-10-01","9999-12-31",1,"Equipment Operator II",20051166,"C09",5506,4.3700000000000003E-2,53987.92,78282.490000000005,88002,"SKILLED TRADES",{"$f":"_xlfn.XLOOKUP(job_titles17[[#This Row],[Extended object ID]],O:O,P:P)","v":{"$error":"#N/A"}}]
["C","2021-06-08","9999-12-31",1,"Investigations & Morgue Operations Chief",20054126,"C17",7720,1.55E-2,81074.789999999994,129719.67,null,null,null,null,"x",null,null,null,null,null,null,null,null,null,null,null,null,"C","2023-10-02","9999-12-31",1,"Equipment Operator III",20055804,"C10",5506,4.3700000000000003E-2,55877.5,82698.7,88002,"SKILLED TRADES",{"$f":"_xlfn.XLOOKUP(job_titles17[[#This Row],[Extended object ID]],O:O,P:P)","v":{"$error":"#N/A"}}]
["C","1950-01-01","9999-12-31",1,"Investigations Chief",20000214,"C19",7720,1.55E-2,92836.33,148538.12,null,null,null,null,"x",null,null,null,null,null,null,null,null,null,null,null,null,"C","1950-01-01","9999-12-31",1,"Equipment Tech",20000047,"C06",8391,1.2800000000000001E-2,48694.01,65736.92,88002,"SKILLED TRADES",{"$f":"_xlfn.XLOOKUP(job_titles17[[#This Row],[Extended object ID]],O:O,P:P)","v":{"$error":"#N/A"}}]
["C","1950-01-01","9999-12-31",1,"Investigations Lieutenant",20000542,"GRD69",7720,1.55E-2,97555.19,97555.19,null,null,null,null,"x",null,null,null,null,null,null,null,null,null,null,null,null,"C","2014-01-01","9999-12-31",1,"Evidence Tech",20050501,"C07",7720,1.55E-2,50398.3,68037.710000000006,88012,"PUBLIC SAF/EMG MGMT",{"$f":"_xlfn.XLOOKUP(job_titles17[[#This Row],[Extended object ID]],O:O,P:P)","v":{"$error":"#N/A"}}]
["C","2022-09-27","9999-12-31",1,"Investigations Supervisor",20055102,"C18",8810,1.6000000000000001E-3,86761.41,138818.25,null,null,null,null,"x",null,null,null,null,null,null,null,null,null,null,null,null,"C","2013-10-01","9999-12-31",1,"Evidence Tech Lead",20050426,"C09",7720,1.55E-2,53987.92,78282.490000000005,88012,"PUBLIC SAF/EMG MGMT",{"$f":"_xlfn.XLOOKUP(job_titles17[[#This Row],[Extended object ID]],O:O,P:P)","v":{"$error":"#N/A"}}]
["C","1950-01-01","9999-12-31",1,"Investigator",20000540,"GRD65",7720,1.55E-2,79983.070000000007,79983.070000000007,null,null,null,null,"x",null,null,null,null,null,null,null,null,null,null,null,null,"C","1950-01-01","9999-12-31",1,"Executive Asst",20000104,"C10",8810,1.6000000000000001E-3,55877.5,82698.7,88004,"ADMINISTRATIVE SUPP",{"$f":"_xlfn.XLOOKUP(job_titles17[[#This Row],[Extended object ID]],O:O,P:P)","v":{"$error":"#N/A"}}]
["C","2019-04-30","9999-12-31",1,"Investigator Senior",20053126,"GRD67",7720,1.55E-2,88009.1,88009.1,null,null,null,null,"x",null,null,null,null,null,null,null,null,null,null,null,null,"C","2018-06-01","9999-12-31",1,"Executive Asst Succession",20052576,"GRD20",8810,1.6000000000000001E-3,48530.77,72796.259999999995,88004,"ADMINISTRATIVE SUPP",{"$f":"_xlfn.XLOOKUP(job_titles17[[#This Row],[Extended object ID]],O:O,P:P)","v":"x"}]
["C","2016-10-01","9999-12-31",1,"Investment Manager",20051752,"C15",8810,1.6000000000000001E-3,70819.7,113311.53,null,null,null,null,"x",null,null,null,null,null,null,null,null,null,null,null,null,"C","2019-10-17","9999-12-31",1,"Executive Asst Succession",20053428,null,null,null,null,null,0,"0",{"$f":"_xlfn.XLOOKUP(job_titles17[[#This Row],[Extended object ID]],O:O,P:P)","v":"x"}]
["C","2015-10-01","9999-12-31",1,"Irrigation Specialist",20051157,"C05",9015,1.8800000000000001E-2,47275.74,61458.46,null,null,null,null,"x",null,null,null,null,null,null,null,null,null,null,null,null,"C","1950-01-01","9999-12-31",1,"Executive Asst-Elected Official",20000105,"C12",8810,1.6000000000000001E-3,60437.1,90655.66,88004,"ADMINISTRATIVE SUPP",{"$f":"_xlfn.XLOOKUP(job_titles17[[#This Row],[Extended object ID]],O:O,P:P)","v":{"$error":"#N/A"}}]
["C","2019-04-02","9999-12-31",1,"IT Disaster Recovery Analyst",20053076,"C18",8810,1.6000000000000001E-3,86761.41,138818.25,null,null,null,null,"x",null,null,null,null,null,null,null,null,null,null,null,null,"C","2021-06-15","9999-12-31",2,"Executive Asst-Elected OfficialSn",20054151,"GRD22",null,null,55578.85,83368.27,0,"0",{"$f":"_xlfn.XLOOKUP(job_titles17[[#This Row],[Extended object ID]],O:O,P:P)","v":{"$error":"#N/A"}}]
["C","1950-01-01","9999-12-31",1,"IT Dpt Div Mgr",20000496,"C20",8810,1.6000000000000001E-3,99345.18,158952.29,null,null,null,null,"x",null,null,null,null,null,null,null,null,null,null,null,null,"C","2021-06-15","9999-12-31",1,"Executive Asst-Elected OfficialSn",20054152,"GRD22",8810,1.6000000000000001E-3,55578.85,83368.27,88004,"ADMINISTRATIVE SUPP",{"$f":"_xlfn.XLOOKUP(job_titles17[[#This Row],[Extended object ID]],O:O,P:P)","v":"x"}]
["C","1950-01-01","9999-12-31",1,"Judicial Aide",20000086,"C08",8810,1.6000000000000001E-3,52162.239999999998,75635.25,null,null,null,null,"x",null,null,null,null,null,null,null,null,null,null,null,null,"C","2013-02-16","9999-12-31",1,"Exposition Center Coordinator",20050229,"C07",8810,1.6000000000000001E-3,50398.3,68037.710000000006,88014,"MANAGEMENT",{"$f":"_xlfn.XLOOKUP(job_titles17[[#This Row],[Extended object ID]],O:O,P:P)","v":{"$error":"#N/A"}}]
["C","1950-01-01","9999-12-31",1,"Judicial Aide Specialist",20000087,"C10",8810,1.6000000000000001E-3,55877.5,82698.7,null,null,null,null,"x",null,null,null,null,null,null,null,null,null,null,null,null,"C","2014-07-01","9999-12-31",1,"Exposition Center Mgr",20050726,"C14",8810,1.6000000000000001E-3,66183.97,105894.35,88014,"MANAGEMENT",{"$f":"_xlfn.XLOOKUP(job_titles17[[#This Row],[Extended object ID]],O:O,P:P)","v":{"$error":"#N/A"}}]
["C","2019-09-30","9999-12-31",1,"Judicial Executive Assistant",20053277,"C10",8810,1.6000000000000001E-3,55877.5,82698.7,null,null,null,null,"x",null,null,null,null,null,null,null,null,null,null,null,null,"C","1950-01-01","9999-12-31",1,"Extended Military Leave With Pay",20000427,"NCF01",7720,1.55E-2,15080,500000,88020,"TEMP/SEASONAL",{"$f":"_xlfn.XLOOKUP(job_titles17[[#This Row],[Extended object ID]],O:O,P:P)","v":"x"}]
["C","2015-10-01","9999-12-31",1,"Justice of the Peace Court Administrator",20051159,"C13",8810,1.6000000000000001E-3,62854.59,100567.34,null,null,null,null,"x",null,null,null,null,null,null,null,null,null,null,null,null,"C","1950-01-01","9999-12-31",1,"Extended Military Leave Without Pay",20000428,"NCF01",7720,1.55E-2,15080,500000,88020,"TEMP/SEASONAL",{"$f":"_xlfn.XLOOKUP(job_titles17[[#This Row],[Extended object ID]],O:O,P:P)","v":"x"}]
["C","2016-08-16","9999-12-31",1,"Justice Planning Div Dir",20051626,"C18",8810,1.6000000000000001E-3,86761.41,138818.25,null,null,null,null,"x",null,null,null,null,null,null,null,null,null,null,null,null,"C","2015-08-05","9999-12-31",1,"Extended Military Leave Without Pay POPS",20051126,"NCF01",7720,1.55E-2,15080,500000,88020,"TEMP/SEASONAL",{"$f":"_xlfn.XLOOKUP(job_titles17[[#This Row],[Extended object ID]],O:O,P:P)","v":{"$error":"#N/A"}}]
["C","1950-01-01","9999-12-31",1,"Juvenile Case Mgr",20000242,"C07",7720,1.55E-2,50398.3,68037.710000000006,null,null,null,null,"x",null,null,null,null,null,null,null,null,null,null,null,null,"C","2021-12-21","9999-12-31",1,"Facilities Mechanical Engineer",20054603,"C16",8601,1.8E-3,75776.03,121241.65,88009,"ENGINEERING & ARCHITECTURAL",{"$f":"_xlfn.XLOOKUP(job_titles17[[#This Row],[Extended object ID]],O:O,P:P)","v":{"$error":"#N/A"}}]
["C","1950-01-01","9999-12-31",1,"Juvenile Case Work Mgr",20000289,"C12",8810,1.6000000000000001E-3,60437.1,90655.66,null,null,null,null,"x",null,null,null,null,null,null,null,null,null,null,null,null,"C","1950-01-01","9999-12-31",1,"Facilities Mgmt Dir",20000340,"C23",8810,1.6000000000000001E-3,121718.94,200836.25,88014,"MANAGEMENT",{"$f":"_xlfn.XLOOKUP(job_titles17[[#This Row],[Extended object ID]],O:O,P:P)","v":"x"}]
["C","1950-01-01","9999-12-31",1,"Juvenile Detention Officer Asst",20000254,"C03",7720,1.55E-2,44561.919999999998,57930.5,null,null,null,null,"x",null,null,null,null,null,null,null,null,null,null,null,null,"C","2020-06-16","9999-12-31",1,"Facilities Project Inspector",20053751,"C09",8601,1.8E-3,53987.92,78282.490000000005,88009,"ENGINEERING & ARCHITECTURAL",{"$f":"_xlfn.XLOOKUP(job_titles17[[#This Row],[Extended object ID]],O:O,P:P)","v":{"$error":"#N/A"}}]
["C","1950-01-01","9999-12-31",1,"Juvenile Detention Officer I",20000255,"C05",7720,1.55E-2,47275.74,61458.46,null,null,null,null,"x",null,null,null,null,null,null,null,null,null,null,null,null,"C","1950-01-01","9999-12-31",1,"Facilities Project Mgr",20000169,"C16",8601,1.8E-3,75776.03,121241.65,88009,"ENGINEERING & ARCHITECTURAL",{"$f":"_xlfn.XLOOKUP(job_titles17[[#This Row],[Extended object ID]],O:O,P:P)","v":{"$error":"#N/A"}}]
["C","1950-01-01","9999-12-31",1,"Juvenile Detention Officer II",20000256,"C06",7720,1.55E-2,48694.01,65736.92,null,null,null,null,"x",null,null,null,null,null,null,null,null,null,null,null,null,"C","1950-01-01","9999-12-31",1,"Facilities Project Mgr Sr",20000170,"C18",8601,1.8E-3,86761.41,138818.25,88009,"ENGINEERING & ARCHITECTURAL",{"$f":"_xlfn.XLOOKUP(job_titles17[[#This Row],[Extended object ID]],O:O,P:P)","v":{"$error":"#N/A"}}]
["C","1950-01-01","9999-12-31",1,"Juvenile Detention Officer III",20000257,"C07",7720,1.55E-2,50398.3,68037.710000000006,null,null,null,null,"x",null,null,null,null,null,null,null,null,null,null,null,null,"C","1950-01-01","9999-12-31",1,"Financial Analyst",20000121,"C11",8810,1.6000000000000001E-3,58112.6,87168.9,88005,"FINANCE",{"$f":"_xlfn.XLOOKUP(job_titles17[[#This Row],[Extended object ID]],O:O,P:P)","v":{"$error":"#N/A"}}]
["C","2017-02-28","9999-12-31",1,"Juvenile Detention Officer Lead",20051926,"C08",7720,1.55E-2,52162.239999999998,75635.25,null,null,null,null,"x",null,null,null,null,null,null,null,null,null,null,null,null,"C","1950-01-01","9999-12-31",1,"Financial Analyst Lead",20000123,"C15",8810,1.6000000000000001E-3,70819.7,113311.53,88005,"FINANCE",{"$f":"_xlfn.XLOOKUP(job_titles17[[#This Row],[Extended object ID]],O:O,P:P)","v":{"$error":"#N/A"}}]
["C","2022-03-02","9999-12-31",1,"Juvenile Facilities Division Director",20054751,"C17",9015,1.8800000000000001E-2,81074.789999999994,129719.67,null,null,null,null,"x",null,null,null,null,null,null,null,null,null,null,null,null,"C","2019-12-06","9999-12-31",1,"Financial Analyst Lead Succession",20053552,"GRD24",8810,1.6000000000000001E-3,63638.43,101821.41,88005,"FINANCE",{"$f":"_xlfn.XLOOKUP(job_titles17[[#This Row],[Extended object ID]],O:O,P:P)","v":"x"}]
["C","1950-01-01","9999-12-31",1,"Juvenile Facilities Mgr",20000295,"C14",9015,1.8800000000000001E-2,66183.97,105894.35,null,null,null,null,"x",null,null,null,null,null,null,null,null,null,null,null,null,"C","1950-01-01","9999-12-31",1,"Financial Analyst Sr",20000122,"C13",8810,1.6000000000000001E-3,62854.59,100567.34,88005,"FINANCE",{"$f":"_xlfn.XLOOKUP(job_titles17[[#This Row],[Extended object ID]],O:O,P:P)","v":{"$error":"#N/A"}}]
["C","1950-01-01","9999-12-31",1,"Juvenile Probation Deputy Chief",20000324,"C21",8810,1.6000000000000001E-3,106310.9,175412.99,null,null,null,null,"x",null,null,null,null,null,null,null,null,null,null,null,null,"C","1950-01-01","9999-12-31",1,"Financial Mgr",20000124,"C17",8810,1.6000000000000001E-3,81074.789999999994,129719.67,88005,"FINANCE",{"$f":"_xlfn.XLOOKUP(job_titles17[[#This Row],[Extended object ID]],O:O,P:P)","v":{"$error":"#N/A"}}]
["C","1950-01-01","9999-12-31",1,"Juvenile Probation Dir",20000309,"C19",8810,1.6000000000000001E-3,92836.33,148538.12,null,null,null,null,"x",null,null,null,null,null,null,null,null,null,null,null,null,"C","2015-10-01","9999-12-31",1,"Financial Mgr Sr",20051152,"C19",8810,1.6000000000000001E-3,92836.33,148538.12,88005,"FINANCE",{"$f":"_xlfn.XLOOKUP(job_titles17[[#This Row],[Extended object ID]],O:O,P:P)","v":{"$error":"#N/A"}}]
["C","1950-01-01","9999-12-31",1,"Juvenile Probation Div Dir",20000285,"C17",8810,1.6000000000000001E-3,81074.789999999994,129719.67,null,null,null,null,"x",null,null,null,null,null,null,null,null,null,null,null,null,"C","2022-02-15","9999-12-31",1,"Financial Mgr Sr Succession",20054701,"C19",8810,1.6000000000000001E-3,92836.33,148538.12,88005,"FINANCE",{"$f":"_xlfn.XLOOKUP(job_titles17[[#This Row],[Extended object ID]],O:O,P:P)","v":"x"}]
["C","1950-01-01","9999-12-31",1,"Juvenile Probation Div Mgr",20000281,"C15",8810,1.6000000000000001E-3,70819.7,113311.53,null,null,null,null,"x",null,null,null,null,null,null,null,null,null,null,null,null,"C","2021-10-04","9999-12-31",5,"Financial Mgr Succession",20054301,"GRD27",null,null,77956.53,124730.53,0,"0",{"$f":"_xlfn.XLOOKUP(job_titles17[[#This Row],[Extended object ID]],O:O,P:P)","v":{"$error":"#N/A"}}]
["C","2021-10-02","9999-12-31",1,"Juvenile Probation Finance Director",20054460,"C20",8810,1.6000000000000001E-3,99345.18,158952.29,null,null,null,null,"x",null,null,null,null,null,null,null,null,null,null,null,null,"C","2021-09-21","9999-12-31",2,"Financial Mgr Succession",20054326,"GRD27",null,null,77956.53,124730.53,0,"0",{"$f":"_xlfn.XLOOKUP(job_titles17[[#This Row],[Extended object ID]],O:O,P:P)","v":{"$error":"#N/A"}}]
["C","1950-01-01","9999-12-31",1,"Juvenile Probation Officer Asst",20000249,"C05",7720,1.55E-2,47275.74,61458.46,null,null,null,null,"x",null,null,null,null,null,null,null,null,null,null,null,null,"C","2021-09-21","9999-12-31",1,"Financial Mgr Succession",20054327,"GRD27",8810,1.6000000000000001E-3,77956.53,124730.53,88005,"FINANCE",{"$f":"_xlfn.XLOOKUP(job_titles17[[#This Row],[Extended object ID]],O:O,P:P)","v":"x"}]
["C","1950-01-01","9999-12-31",1,"Juvenile Probation Officer I",20000250,"C08",7720,1.55E-2,52162.239999999998,75635.25,null,null,null,null,"x",null,null,null,null,null,null,null,null,null,null,null,null,"C","2017-10-01","9999-12-31",1,"Fire Education Outreach Coordinator",20052252,"C11",7720,1.55E-2,58112.6,87168.9,88012,"PUBLIC SAF/EMG MGMT",{"$f":"_xlfn.XLOOKUP(job_titles17[[#This Row],[Extended object ID]],O:O,P:P)","v":{"$error":"#N/A"}}]
["C","1950-01-01","9999-12-31",1,"Juvenile Probation Officer II",20000251,"C09",7720,1.55E-2,53987.92,78282.490000000005,null,null,null,null,"x",null,null,null,null,null,null,null,null,null,null,null,null,"C","1950-01-01","9999-12-31",1,"Fire Marshal",20000225,"C19",7720,1.55E-2,92836.33,148538.12,88012,"PUBLIC SAF/EMG MGMT",{"$f":"_xlfn.XLOOKUP(job_titles17[[#This Row],[Extended object ID]],O:O,P:P)","v":{"$error":"#N/A"}}]
["C","1950-01-01","9999-12-31",1,"Juvenile Probation Officer III",20000252,"C10",7720,1.55E-2,55877.5,82698.7,null,null,null,null,"x",null,null,null,null,null,null,null,null,null,null,null,null,"C","1950-01-01","9999-12-31",1,"Fire Marshal Asst",20000224,"C17",7720,1.55E-2,81074.789999999994,129719.67,88012,"PUBLIC SAF/EMG MGMT",{"$f":"_xlfn.XLOOKUP(job_titles17[[#This Row],[Extended object ID]],O:O,P:P)","v":{"$error":"#N/A"}}]
["C","1950-01-01","9999-12-31",1,"Juvenile Probation Officer Lead",20000253,"C11",7720,1.55E-2,58112.6,87168.9,null,null,null,null,"x",null,null,null,null,null,null,null,null,null,null,null,null,"C","1950-01-01","9999-12-31",1,"Fire Marshal Deputy Asst I",20000617,"C12",7720,1.55E-2,60437.1,90655.66,88012,"PUBLIC SAF/EMG MGMT",{"$f":"_xlfn.XLOOKUP(job_titles17[[#This Row],[Extended object ID]],O:O,P:P)","v":{"$error":"#N/A"}}]
["C","2019-12-31","9999-12-31",1,"Juvenile Probation Security Center Coord",20053553,"C06",7720,1.55E-2,48694.01,65736.92,null,null,null,null,"x",null,null,null,null,null,null,null,null,null,null,null,null,"C","1950-01-01","9999-12-31",1,"Fire Marshal Deputy Asst II",20000222,"C14",7720,1.55E-2,66183.97,105894.35,88012,"PUBLIC SAF/EMG MGMT",{"$f":"_xlfn.XLOOKUP(job_titles17[[#This Row],[Extended object ID]],O:O,P:P)","v":{"$error":"#N/A"}}]
["C","1950-01-01","9999-12-31",1,"Juvenile Rsdnt Treatment Officer Asst",20000258,"C04",7720,1.55E-2,45898.78,59668.41,null,null,null,null,"x",null,null,null,null,null,null,null,null,null,null,null,null,"C","1950-01-01","9999-12-31",1,"Fire Marshal Deputy Asst III",20000223,"C16",7720,1.55E-2,75776.03,121241.65,88012,"PUBLIC SAF/EMG MGMT",{"$f":"_xlfn.XLOOKUP(job_titles17[[#This Row],[Extended object ID]],O:O,P:P)","v":{"$error":"#N/A"}}]
["C","1950-01-01","9999-12-31",1,"Juvenile Rsdnt Treatment Officer I",20000259,"C05",7720,1.55E-2,47275.74,61458.46,null,null,null,null,"x",null,null,null,null,null,null,null,null,null,null,null,null,"C","2017-10-01","9999-12-31",1,"Fire Plans Examiner",20052251,"C13",7720,1.55E-2,62854.59,100567.34,88012,"PUBLIC SAF/EMG MGMT",{"$f":"_xlfn.XLOOKUP(job_titles17[[#This Row],[Extended object ID]],O:O,P:P)","v":{"$error":"#N/A"}}]
["C","1950-01-01","9999-12-31","1900-01-01","Juvenile Rsdnt Treatment Officer II",20000260,"C06",7720,1.55E-2,48694.01,65736.92,null,null,null,null,"x",null,null,null,null,null,null,null,null,null,null,null,null,"C","1950-01-01","9999-12-31",1,"Fleet Div Mgr",20000307,"C16",8810,1.6000000000000001E-3,75776.03,121241.65,88014,"MANAGEMENT",{"$f":"_xlfn.XLOOKUP(job_titles17[[#This Row],[Extended object ID]],O:O,P:P)","v":{"$error":"#N/A"}}]
["C","1950-01-01","9999-12-31",1,"Juvenile Rsdnt Treatment Officer III",20000261,"C07",7720,1.55E-2,50398.3,68037.710000000006,null,null,null,null,"x",null,null,null,null,null,null,null,null,null,null,null,null,"C","2018-07-16","9999-12-31",1,"Fleet Div Mgr Sn",20052652,"GRD26",8810,1.6000000000000001E-3,72861.570000000007,116578.59,88014,"MANAGEMENT",{"$f":"_xlfn.XLOOKUP(job_titles17[[#This Row],[Extended object ID]],O:O,P:P)","v":"x"}]
["C","2017-05-09","9999-12-31",1,"Juvenile Rsdnt Treatment Officer Lead",20052051,"C08",7720,1.55E-2,52162.239999999998,75635.25,null,null,null,null,"x",null,null,null,null,null,null,null,null,null,null,null,null,"C","1950-01-01","9999-12-31",1,"Fleet Services Associate",20000618,"C08",8810,1.6000000000000001E-3,52162.239999999998,75635.25,88002,"SKILLED TRADES",{"$f":"_xlfn.XLOOKUP(job_titles17[[#This Row],[Extended object ID]],O:O,P:P)","v":{"$error":"#N/A"}}]
["C","1950-01-01","9999-12-31",1,"Juvenile Rsdnt Treatment Officer Sr",20000262,"C08",7720,1.55E-2,52162.239999999998,75635.25,null,null,null,null,"x",null,null,null,null,null,null,null,null,null,null,null,null,"C","1950-01-01","9999-12-31",1,"Fleet Services Coord",20000036,"C13",8391,1.2800000000000001E-2,62854.59,100567.34,88002,"SKILLED TRADES",{"$f":"_xlfn.XLOOKUP(job_titles17[[#This Row],[Extended object ID]],O:O,P:P)","v":{"$error":"#N/A"}}]
["C","1950-01-01","9999-12-31",1,"Juvenile Shift Supv",20000288,"C12",7720,1.55E-2,60437.1,90655.66,null,null,null,null,"x",null,null,null,null,null,null,null,null,null,null,null,null,"C","1950-01-01","9999-12-31",1,"Flight Paramedic",20000063,"C14",7422,1.3299999999999999E-2,66183.97,105894.35,88003,"MEDICAL",{"$f":"_xlfn.XLOOKUP(job_titles17[[#This Row],[Extended object ID]],O:O,P:P)","v":{"$error":"#N/A"}}]
["C","2019-12-10","9999-12-31",1,"JvP Dir of Accreditation & Compliance",20053526,"C19",8810,1.6000000000000001E-3,92836.33,148538.12,null,null,null,null,"x",null,null,null,null,null,null,null,null,null,null,null,null,"C","2015-06-16","9999-12-31",1,"Flight Paramedic Sr",20051051,"C15",7422,1.3299999999999999E-2,70819.7,113311.53,88003,"MEDICAL",{"$f":"_xlfn.XLOOKUP(job_titles17[[#This Row],[Extended object ID]],O:O,P:P)","v":{"$error":"#N/A"}}]
["C","1950-01-01","9999-12-31",1,"Law Clerk I",20000138,"C06",8810,1.6000000000000001E-3,48694.01,65736.92,null,null,null,null,"x",null,null,null,null,null,null,null,null,null,null,null,null,"C","1950-01-01","9999-12-31",1,"Flight Registered Nurse",20000064,"C17",7422,1.3299999999999999E-2,81074.789999999994,129719.67,88003,"MEDICAL",{"$f":"_xlfn.XLOOKUP(job_titles17[[#This Row],[Extended object ID]],O:O,P:P)","v":{"$error":"#N/A"}}]
["C","1950-01-01","9999-12-31",1,"Law Clerk II",20000139,"C10",8810,1.6000000000000001E-3,55877.5,82698.7,null,null,null,null,"x",null,null,null,null,null,null,null,null,null,null,null,null,"C","2015-06-16","9999-12-31",1,"Flight Registered Nurse Sr",20051052,"C18",7422,1.3299999999999999E-2,86761.41,138818.25,88003,"MEDICAL",{"$f":"_xlfn.XLOOKUP(job_titles17[[#This Row],[Extended object ID]],O:O,P:P)","v":{"$error":"#N/A"}}]
["C","1950-01-01","9999-12-31",1,"Law Enforcement Captain",20000216,"C20",7720,1.55E-2,99345.18,158952.29,null,null,null,null,"x",null,null,null,null,null,null,null,null,null,null,null,null,"C","2020-04-03","9999-12-31",1,"Flight Registered Nurse Succession",20053701,"GRD25",7422,1.3299999999999999E-2,68095.87,108953.31,88003,"MEDICAL",{"$f":"_xlfn.XLOOKUP(job_titles17[[#This Row],[Extended object ID]],O:O,P:P)","v":"x"}]
["C","1950-01-01","9999-12-31",1,"Law Enforcement Detective",20000525,"GRD75",7720,1.55E-2,79983.070000000007,79983.070000000007,null,null,null,null,"x",null,null,null,null,null,null,null,null,null,null,null,null,"C","2017-10-01","9999-12-31",1,"Floodplain Project Manager",20052202,"C13",8810,1.6000000000000001E-3,62854.59,100567.34,88015,"PROFESSIONAL SUPP",{"$f":"_xlfn.XLOOKUP(job_titles17[[#This Row],[Extended object ID]],O:O,P:P)","v":{"$error":"#N/A"}}]
["C","1950-01-01","9999-12-31",1,"Law Enforcement Lieutenant",20000527,"GRD77",7720,1.55E-2,108394.66,108394.66,null,null,null,null,"x",null,null,null,null,null,null,null,null,null,null,null,null,"C","1950-01-01","9999-12-31",1,"Food Services Mgr",20000024,"C08",8810,1.6000000000000001E-3,52162.239999999998,75635.25,88001,"MAINTENANCE",{"$f":"_xlfn.XLOOKUP(job_titles17[[#This Row],[Extended object ID]],O:O,P:P)","v":{"$error":"#N/A"}}]
["C","1950-01-01","9999-12-31",1,"Law Enforcement Sergeant",20000526,"GRD76",7720,1.55E-2,92641.16,92641.16,null,null,null,null,"x",null,null,null,null,null,null,null,null,null,null,null,null,"C","1950-01-01","9999-12-31",1,"Food Services Supv",20000023,"C05",8810,1.6000000000000001E-3,47275.74,61458.46,88001,"MAINTENANCE",{"$f":"_xlfn.XLOOKUP(job_titles17[[#This Row],[Extended object ID]],O:O,P:P)","v":{"$error":"#N/A"}}]
["C","1950-01-01","9999-12-31",1,"Law Enforcement Sheriff Deputy",20000523,"GRD72",7720,1.55E-2,68000,68000,null,null,null,null,"x",null,null,null,null,null,null,null,null,null,null,null,null,"C","1950-01-01","9999-12-31",1,"Forensic Accountant",20000132,"C13",8810,1.6000000000000001E-3,62854.59,100567.34,88005,"FINANCE",{"$f":"_xlfn.XLOOKUP(job_titles17[[#This Row],[Extended object ID]],O:O,P:P)","v":{"$error":"#N/A"}}]
["C","1950-01-01","9999-12-31",1,"Law Enforcement Sheriff Deputy Sr",20000524,"GRD74",7720,1.55E-2,72804.12,72804.12,null,null,null,null,"x",null,null,null,null,null,null,null,null,null,null,null,null,"C","1950-01-01","9999-12-31",1,"Forensic Accountant Sr",20000133,"C15",8810,1.6000000000000001E-3,70819.7,113311.53,88005,"FINANCE",{"$f":"_xlfn.XLOOKUP(job_titles17[[#This Row],[Extended object ID]],O:O,P:P)","v":{"$error":"#N/A"}}]
["C","1950-01-01","9999-12-31",1,"Law Enforcement Specialist",20000114,"C07",8810,1.6000000000000001E-3,50398.3,68037.710000000006,null,null,null,null,"x",null,null,null,null,null,null,null,null,null,null,null,null,"C","2016-03-15","9999-12-31",1,"Forensic Fellow",20051376,"NCF01",8833,4.7999999999999996E-3,15080,500000,88003,"MEDICAL",{"$f":"_xlfn.XLOOKUP(job_titles17[[#This Row],[Extended object ID]],O:O,P:P)","v":{"$error":"#N/A"}}]
["C","1950-01-01","9999-12-31",1,"Law Librarian",20000345,"C12",8810,1.6000000000000001E-3,60437.1,90655.66,null,null,null,null,"x",null,null,null,null,null,null,null,null,null,null,null,null,"C","2022-10-25","9999-12-31",1,"Forensic Media Evidence Specialist",20055227,"C12",7720,1.55E-2,60437.1,90655.66,88012,"PUBLIC SAF/EMG MGMT",{"$f":"_xlfn.XLOOKUP(job_titles17[[#This Row],[Extended object ID]],O:O,P:P)","v":{"$error":"#N/A"}}]
["C","2019-09-30","9999-12-31",1,"Law Library Director",20053282,"C16",8810,1.6000000000000001E-3,75776.03,121241.65,null,null,null,null,"x",null,null,null,null,null,null,null,null,null,null,null,null,"C","1950-01-01","9999-12-31",1,"GIS Analyst",20000179,"C11",8601,1.8E-3,58112.6,87168.9,88009,"ENGINEERING & ARCHITECTURAL",{"$f":"_xlfn.XLOOKUP(job_titles17[[#This Row],[Extended object ID]],O:O,P:P)","v":{"$error":"#N/A"}}]
["C","2015-10-01","9999-12-31",1,"Law Library Tech Services Mgr",20051162,"C14",8838,0,66183.97,105894.35,null,null,null,null,"x",null,null,null,null,null,null,null,null,null,null,null,null,"C","1950-01-01","9999-12-31",1,"GIS Coord",20000180,"C13",8601,1.8E-3,62854.59,100567.34,88009,"ENGINEERING & ARCHITECTURAL",{"$f":"_xlfn.XLOOKUP(job_titles17[[#This Row],[Extended object ID]],O:O,P:P)","v":{"$error":"#N/A"}}]
["C","2022-10-01","9999-12-31",1,"LE Sheriff Cadet",20055076,"GRD71",7720,1.55E-2,60000,60000,null,null,null,null,"x",null,null,null,null,null,null,null,null,null,null,null,null,"C","2017-04-04","9999-12-31",1,"GIS Manager",20052126,"C15",8810,1.6000000000000001E-3,70819.7,113311.53,88009,"ENGINEERING & ARCHITECTURAL",{"$f":"_xlfn.XLOOKUP(job_titles17[[#This Row],[Extended object ID]],O:O,P:P)","v":{"$error":"#N/A"}}]
["C","2021-10-02","9999-12-31",1,"Learning & Development Coordinator Sr",20054458,"C14",8810,1.6000000000000001E-3,66183.97,105894.35,null,null,null,null,"x",null,null,null,null,null,null,null,null,null,null,null,null,"C","1950-01-01","9999-12-31",1,"GIS Specialist",20000178,"C08",8601,1.8E-3,52162.239999999998,75635.25,88009,"ENGINEERING & ARCHITECTURAL",{"$f":"_xlfn.XLOOKUP(job_titles17[[#This Row],[Extended object ID]],O:O,P:P)","v":{"$error":"#N/A"}}]
["C","2013-01-29","9999-12-31",1,"Leave Coordinator",20050176,"C10",8810,1.6000000000000001E-3,55877.5,82698.7,null,null,null,null,"x",null,null,null,null,null,null,null,null,null,null,null,null,"C","2023-01-03","9999-12-31",1,"Grants Administrator",20055401,"C18",8810,1.6000000000000001E-3,86761.41,138818.25,88015,"PROFESSIONAL SUPP",{"$f":"_xlfn.XLOOKUP(job_titles17[[#This Row],[Extended object ID]],O:O,P:P)","v":{"$error":"#N/A"}}]
["C","2020-06-09","9999-12-31",1,"Legal Director",20053726,"C24",8810,1.6000000000000001E-3,130239.35,214894.92,null,null,null,null,"x",null,null,null,null,null,null,null,null,null,null,null,null,"C","2023-01-03","9999-12-31",1,"Grants Manager",20055402,"C14",8810,1.6000000000000001E-3,66183.97,105894.35,88015,"PROFESSIONAL SUPP",{"$f":"_xlfn.XLOOKUP(job_titles17[[#This Row],[Extended object ID]],O:O,P:P)","v":{"$error":"#N/A"}}]
["C","1950-01-01","9999-12-31",1,"Legal Secretary",20000089,"C07",8810,1.6000000000000001E-3,50398.3,68037.710000000006,null,null,null,null,"x",null,null,null,null,null,null,null,null,null,null,null,null,"C","2015-10-01","9999-12-31",1,"Graphic Artist",20051155,"C08",8810,1.6000000000000001E-3,52162.239999999998,75635.25,88018,"IMAGING & GRAPHICS",{"$f":"_xlfn.XLOOKUP(job_titles17[[#This Row],[Extended object ID]],O:O,P:P)","v":{"$error":"#N/A"}}]
["C","1950-01-01","9999-12-31",1,"Legal Secretary Sr",20000090,"C08",8810,1.6000000000000001E-3,52162.239999999998,75635.25,null,null,null,null,"x",null,null,null,null,null,null,null,null,null,null,null,null,"C","2022-05-24","9999-12-31",1,"Graphic Fabrication Tech",20054901,"C06",5606,5.5999999999999999E-3,48694.01,65736.92,88002,"SKILLED TRADES",{"$f":"_xlfn.XLOOKUP(job_titles17[[#This Row],[Extended object ID]],O:O,P:P)","v":{"$error":"#N/A"}}]
["C","2023-12-19","9999-12-31",1,"Legal Secretary Sr Succession",20055876,"C08",null,null,52162.239999999998,75635.25,null,null,null,null,"x",null,null,null,null,null,null,null,null,null,null,null,null,"C","1950-01-01","9999-12-31",1,"Groundskeeper",20000003,"C03",9015,1.8800000000000001E-2,44561.919999999998,57930.5,88001,"MAINTENANCE",{"$f":"_xlfn.XLOOKUP(job_titles17[[#This Row],[Extended object ID]],O:O,P:P)","v":{"$error":"#N/A"}}]
["C","1950-01-01","9999-12-31",1,"Legal Services Program Mgr",20000280,"C15",8810,1.6000000000000001E-3,70819.7,113311.53,null,null,null,null,"x",null,null,null,null,null,null,null,null,null,null,null,null,"C","2012-07-24","9999-12-31",1,"Groundskeeper Lead",20050027,"C04",9015,1.8800000000000001E-2,45898.78,59668.41,88001,"MAINTENANCE",{"$f":"_xlfn.XLOOKUP(job_titles17[[#This Row],[Extended object ID]],O:O,P:P)","v":{"$error":"#N/A"}}]
["C","1950-01-01","9999-12-31",1,"Licensed Vocational Nurse",20000051,"C09",8832,1.9E-3,53987.92,78282.490000000005,null,null,null,null,"x",null,null,null,null,null,null,null,null,null,null,null,null,"C","1950-01-01","9999-12-31",1,"Groundskeeper Supv",20000004,"C06",9015,1.8800000000000001E-2,48694.01,65736.92,88001,"MAINTENANCE",{"$f":"_xlfn.XLOOKUP(job_titles17[[#This Row],[Extended object ID]],O:O,P:P)","v":{"$error":"#N/A"}}]
["C","2015-10-01","9999-12-31",1,"Life Safety Manager",20051160,"C16",8810,1.6000000000000001E-3,75776.03,121241.65,null,null,null,null,"x",null,null,null,null,null,null,null,null,null,null,null,null,"C","1950-01-01","9999-12-31",1,"Guardian Ad Litem I",20000268,"C09",8810,1.6000000000000001E-3,53987.92,78282.490000000005,88013,"COURT SERVICES",{"$f":"_xlfn.XLOOKUP(job_titles17[[#This Row],[Extended object ID]],O:O,P:P)","v":{"$error":"#N/A"}}]
["C","1950-01-01","9999-12-31",1,"Locksmith",20000046,"C08",9015,1.8800000000000001E-2,52162.239999999998,75635.25,null,null,null,null,"x",null,null,null,null,null,null,null,null,null,null,null,null,"C","1950-01-01","9999-12-31",1,"Guardian Ad Litem II",20000269,"C10",8810,1.6000000000000001E-3,55877.5,82698.7,88013,"COURT SERVICES",{"$f":"_xlfn.XLOOKUP(job_titles17[[#This Row],[Extended object ID]],O:O,P:P)","v":{"$error":"#N/A"}}]
["C","2012-10-01","9999-12-31",1,"Long Range Planning Mgr",20050082,"C17",8810,1.6000000000000001E-3,81074.789999999994,129719.67,null,null,null,null,"x",null,null,null,null,null,null,null,null,null,null,null,null,"C","1950-01-01","9999-12-31",1,"Guardian Ad Litem Sr",20000270,"C11",8810,1.6000000000000001E-3,58112.6,87168.9,88013,"COURT SERVICES",{"$f":"_xlfn.XLOOKUP(job_titles17[[#This Row],[Extended object ID]],O:O,P:P)","v":{"$error":"#N/A"}}]
["C","1950-01-01","9999-12-31",1,"Mailroom Services Asst",20000106,"C02",8810,1.6000000000000001E-3,43264,56243.199999999997,null,null,null,null,"x",null,null,null,null,null,null,null,null,null,null,null,null,"C","2014-06-03","9999-12-31",1,"Health & Wellness Program Administrator",20050651,"C13",8832,1.9E-3,62854.59,100567.34,88016,"HUMAN RESOURCES",{"$f":"_xlfn.XLOOKUP(job_titles17[[#This Row],[Extended object ID]],O:O,P:P)","v":{"$error":"#N/A"}}]
["C","1950-01-01","9999-12-31",1,"Mailroom Services Asst Sr",20000107,"C03",8810,1.6000000000000001E-3,44561.919999999998,57930.5,null,null,null,null,"x",null,null,null,null,null,null,null,null,null,null,null,null,"C","1950-01-01","9999-12-31",1,"Health Services Supv",20000055,"C17",8832,1.9E-3,81074.789999999994,129719.67,88003,"MEDICAL",{"$f":"_xlfn.XLOOKUP(job_titles17[[#This Row],[Extended object ID]],O:O,P:P)","v":{"$error":"#N/A"}}]
["C","2013-10-01","9999-12-31",1,"Marketable Skills Program Mgr",20050452,"C13",7720,1.55E-2,62854.59,100567.34,null,null,null,null,"x",null,null,null,null,null,null,null,null,null,null,null,null,"C","1950-01-01","9999-12-31",1,"Helicopter Pilot",20000229,"C18",7422,1.3299999999999999E-2,86761.41,138818.25,88012,"PUBLIC SAF/EMG MGMT",{"$f":"_xlfn.XLOOKUP(job_titles17[[#This Row],[Extended object ID]],O:O,P:P)","v":{"$error":"#N/A"}}]
["C","2019-10-29","9999-12-31",1,"ME Chief Operations Officer",20053476,"C21",8810,1.6000000000000001E-3,106310.9,175412.99,null,null,null,null,"x",null,null,null,null,null,null,null,null,null,null,null,null,"C","1950-01-01","9999-12-31",1,"Helicopter Pilot Chief Flight",20000231,"C20",7422,1.3299999999999999E-2,99345.18,158952.29,88012,"PUBLIC SAF/EMG MGMT",{"$f":"_xlfn.XLOOKUP(job_titles17[[#This Row],[Extended object ID]],O:O,P:P)","v":{"$error":"#N/A"}}]
["C","1950-01-01","9999-12-31",1,"ME Investigator Chief",20000071,"C16",8832,1.9E-3,75776.03,121241.65,null,null,null,null,"x",null,null,null,null,null,null,null,null,null,null,null,null,"C","1950-01-01","9999-12-31",1,"Helicopter Pilot Sr",20000230,"C19",7422,1.3299999999999999E-2,92836.33,148538.12,88012,"PUBLIC SAF/EMG MGMT",{"$f":"_xlfn.XLOOKUP(job_titles17[[#This Row],[Extended object ID]],O:O,P:P)","v":{"$error":"#N/A"}}]
["C","2015-07-14","9999-12-31",1,"ME Investigator Deputy Chief",20051077,"C15",7720,1.55E-2,70819.7,113311.53,null,null,null,null,"x",null,null,null,null,null,null,null,null,null,null,null,null,"C","2012-07-24","9999-12-31",1,"Helicopter Pilot Sr Succession",20050026,"GRD26",7422,1.3299999999999999E-2,72861.570000000007,116578.59,88012,"PUBLIC SAF/EMG MGMT",{"$f":"_xlfn.XLOOKUP(job_titles17[[#This Row],[Extended object ID]],O:O,P:P)","v":"x"}]
["C","1950-01-01","9999-12-31",1,"ME Investigator I",20000068,"C11",8832,1.9E-3,58112.6,87168.9,null,null,null,null,"x",null,null,null,null,null,null,null,null,null,null,null,null,"C","2022-09-20","9999-12-31",1,"Helicopter Pilot Succession",20055051,"GRD28",7422,1.3299999999999999E-2,83424.429999999993,133479.01,88012,"PUBLIC SAF/EMG MGMT",{"$f":"_xlfn.XLOOKUP(job_titles17[[#This Row],[Extended object ID]],O:O,P:P)","v":"x"}]
["C","1950-01-01","9999-12-31",1,"ME Investigator II",20000069,"C13",8832,1.9E-3,62854.59,100567.34,null,null,null,null,"x",null,null,null,null,null,null,null,null,null,null,null,null,"C","2015-12-29","9999-12-31",1,"HHS Chief Deputy",20051301,"C22",8810,1.6000000000000001E-3,113755.98,187697.37,88014,"MANAGEMENT",{"$f":"_xlfn.XLOOKUP(job_titles17[[#This Row],[Extended object ID]],O:O,P:P)","v":{"$error":"#N/A"}}]
["C","1950-01-01","9999-12-31",1,"Mechanic Automotive",20000030,"C08",8391,1.2800000000000001E-2,52162.239999999998,75635.25,null,null,null,null,"x",null,null,null,null,null,null,null,null,null,null,null,null,"C","1950-01-01","9999-12-31",1,"HHS Div Dir",20000299,"C19",8810,1.6000000000000001E-3,92836.33,148538.12,88014,"MANAGEMENT",{"$f":"_xlfn.XLOOKUP(job_titles17[[#This Row],[Extended object ID]],O:O,P:P)","v":{"$error":"#N/A"}}]
["C","1950-01-01","9999-12-31",1,"Mechanic Equipment",20000031,"C09",8391,1.2800000000000001E-2,53987.92,78282.490000000005,null,null,null,null,"x",null,null,null,null,null,null,null,null,null,null,null,null,"C","2017-01-30","9999-12-31",1,"HHS Div Dir Succession",20051876,"GRD28",8810,1.6000000000000001E-3,83424.429999999993,133479.01,88014,"MANAGEMENT",{"$f":"_xlfn.XLOOKUP(job_titles17[[#This Row],[Extended object ID]],O:O,P:P)","v":"x"}]
["C","1950-01-01","9999-12-31",1,"Mechanic Lead",20000619,"C10",8391,1.2800000000000001E-2,55877.5,82698.7,null,null,null,null,"x",null,null,null,null,null,null,null,null,null,null,null,null,"C","2023-02-07","9999-12-31",1,"HIPAA Compliance and Privacy Auditor",20055452,"C16",8810,1.6000000000000001E-3,75776.03,121241.65,88015,"PROFESSIONAL SUPP",{"$f":"_xlfn.XLOOKUP(job_titles17[[#This Row],[Extended object ID]],O:O,P:P)","v":{"$error":"#N/A"}}]
["C","1950-01-01","9999-12-31",1,"Mechanic Supervisor",20000032,"C11",8391,1.2800000000000001E-2,58112.6,87168.9,null,null,null,null,"x",null,null,null,null,null,null,null,null,null,null,null,null,"C","2015-10-14","9999-12-31",1,"HIPAA Compliance and Privacy Officer",20051251,"C21",8810,1.6000000000000001E-3,106310.9,175412.99,88014,"MANAGEMENT",{"$f":"_xlfn.XLOOKUP(job_titles17[[#This Row],[Extended object ID]],O:O,P:P)","v":{"$error":"#N/A"}}]
["C","1950-01-01","9999-12-31",1,"Media Operations Mgr",20000498,"C16",8810,1.6000000000000001E-3,75776.03,121241.65,null,null,null,null,"x",null,null,null,null,null,null,null,null,null,null,null,null,"C","2017-08-29","9999-12-31",1,"Histology Technician",20052201,"C08",8833,4.7999999999999996E-3,52162.239999999998,75635.25,88003,"MEDICAL",{"$f":"_xlfn.XLOOKUP(job_titles17[[#This Row],[Extended object ID]],O:O,P:P)","v":{"$error":"#N/A"}}]
["C","1950-01-01","9999-12-31",1,"Media Producer",20000403,"C10",8810,1.6000000000000001E-3,55877.5,82698.7,null,null,null,null,"x",null,null,null,null,null,null,null,null,null,null,null,null,"C","2015-10-01","9999-12-31",1,"Home Energy Auditor",20051167,"C09",8601,1.8E-3,53987.92,78282.490000000005,88002,"SKILLED TRADES",{"$f":"_xlfn.XLOOKUP(job_titles17[[#This Row],[Extended object ID]],O:O,P:P)","v":{"$error":"#N/A"}}]
["C","1950-01-01","9999-12-31",1,"Medical Assistant",20000050,"C05",8832,1.9E-3,47275.74,61458.46,null,null,null,null,"x",null,null,null,null,null,null,null,null,null,null,null,null,"C","1950-01-01","9999-12-31",1,"Home Repair Supv",20000040,"C10",5479,3.6700000000000003E-2,55877.5,82698.7,88002,"SKILLED TRADES",{"$f":"_xlfn.XLOOKUP(job_titles17[[#This Row],[Extended object ID]],O:O,P:P)","v":{"$error":"#N/A"}}]
["C","2020-02-25","9999-12-31",1,"Medical Assistant Sr",20053626,"C06",8832,1.9E-3,48694.01,65736.92,null,null,null,null,"x",null,null,null,null,null,null,null,null,null,null,null,null,"C","1950-01-01","9999-12-31",1,"Housekeeper",20000610,"C02",9015,1.8800000000000001E-2,43264,56243.199999999997,88001,"MAINTENANCE",{"$f":"_xlfn.XLOOKUP(job_titles17[[#This Row],[Extended object ID]],O:O,P:P)","v":{"$error":"#N/A"}}]
["C","1950-01-01","9999-12-31",1,"Medical Services Dir",20000297,"C20",8832,1.9E-3,99345.18,158952.29,null,null,null,null,"x",null,null,null,null,null,null,null,null,null,null,null,null,"C","2021-10-02","9999-12-31",1,"HRIS Analyst",20054453,"C10",8810,1.6000000000000001E-3,55877.5,82698.7,88016,"HUMAN RESOURCES",{"$f":"_xlfn.XLOOKUP(job_titles17[[#This Row],[Extended object ID]],O:O,P:P)","v":{"$error":"#N/A"}}]
["C","1950-01-01","9999-12-31",1,"Medical Supv Chief",20000234,"C18",8810,1.6000000000000001E-3,86761.41,138818.25,null,null,null,null,"x",null,null,null,null,null,null,null,null,null,null,null,null,"C","1950-01-01","9999-12-31",1,"HRIS Specialist",20000385,"GRD25",8810,1.6000000000000001E-3,68095.87,108953.31,88016,"HUMAN RESOURCES",{"$f":"_xlfn.XLOOKUP(job_titles17[[#This Row],[Extended object ID]],O:O,P:P)","v":{"$error":"#N/A"}}]
["C","1950-01-01","9999-12-31",1,"Mover",20000026,"C02",7380,2.9700000000000001E-2,43264,56243.199999999997,null,null,null,null,"x",null,null,null,null,null,null,null,null,null,null,null,null,"C","1950-01-01","9999-12-31",1,"Human Resources Analyst I",20000379,"C10",8810,1.6000000000000001E-3,55877.5,82698.7,88016,"HUMAN RESOURCES",{"$f":"_xlfn.XLOOKUP(job_titles17[[#This Row],[Extended object ID]],O:O,P:P)","v":{"$error":"#N/A"}}]
["C","2019-09-30","9999-12-31",1,"Multimedia Information Specialist",20053286,"C09",8810,1.6000000000000001E-3,53987.92,78282.490000000005,null,null,null,null,"x",null,null,null,null,null,null,null,null,null,null,null,null,"C","1950-01-01","9999-12-31",1,"Human Resources Analyst II",20000380,"C12",8810,1.6000000000000001E-3,60437.1,90655.66,88016,"HUMAN RESOURCES",{"$f":"_xlfn.XLOOKUP(job_titles17[[#This Row],[Extended object ID]],O:O,P:P)","v":{"$error":"#N/A"}}]
["C","1950-01-01","9999-12-31",1,"Natural Resources Env Qlty Div Dir",20000311,"C19",8810,1.6000000000000001E-3,92836.33,148538.12,null,null,null,null,"x",null,null,null,null,null,null,null,null,null,null,null,null,"C","1950-01-01","9999-12-31",1,"Human Resources Analyst Sr",20000381,"C14",8810,1.6000000000000001E-3,66183.97,105894.35,88016,"HUMAN RESOURCES",{"$f":"_xlfn.XLOOKUP(job_titles17[[#This Row],[Extended object ID]],O:O,P:P)","v":{"$error":"#N/A"}}]
["C","1950-01-01","9999-12-31",1,"Natural Resources Program Mgr",20000356,"C16",8810,1.6000000000000001E-3,75776.03,121241.65,null,null,null,null,"x",null,null,null,null,null,null,null,null,null,null,null,null,"C","1950-01-01","9999-12-31",1,"Human Resources Asst I",20000368,"C04",8810,1.6000000000000001E-3,45898.78,59668.41,88016,"HUMAN RESOURCES",{"$f":"_xlfn.XLOOKUP(job_titles17[[#This Row],[Extended object ID]],O:O,P:P)","v":{"$error":"#N/A"}}]
["C","2024-01-09","9999-12-31",1,"Natural Resources Program Mgr Succession",20055901,"C16",8810,1.6000000000000001E-3,75776.03,121241.65,null,null,null,null,"x",null,null,null,null,null,null,null,null,null,null,null,null,"C","1950-01-01","9999-12-31",1,"Human Resources Asst II",20000369,"C06",8810,1.6000000000000001E-3,48694.01,65736.92,88016,"HUMAN RESOURCES",{"$f":"_xlfn.XLOOKUP(job_titles17[[#This Row],[Extended object ID]],O:O,P:P)","v":{"$error":"#N/A"}}]
["C","1950-01-01","9999-12-31",1,"Natural Resources Specialist",20000352,"C10",9102,2.0799999999999999E-2,55877.5,82698.7,null,null,null,null,"x",null,null,null,null,null,null,null,null,null,null,null,null,"C","1950-01-01","9999-12-31",1,"Human Resources Asst Sr",20000370,"C08",8810,1.6000000000000001E-3,52162.239999999998,75635.25,88016,"HUMAN RESOURCES",{"$f":"_xlfn.XLOOKUP(job_titles17[[#This Row],[Extended object ID]],O:O,P:P)","v":{"$error":"#N/A"}}]
["C","2018-10-02","9999-12-31",1,"Natural Resources Specialist Senior",20052829,"C11",9102,2.0799999999999999E-2,58112.6,87168.9,null,null,null,null,"x",null,null,null,null,null,null,null,null,null,null,null,null,"C","2021-10-02","9999-12-31",1,"Human Resources Finance and Adm Mgr",20054401,"C17",8810,1.6000000000000001E-3,81074.789999999994,129719.67,88016,"HUMAN RESOURCES",{"$f":"_xlfn.XLOOKUP(job_titles17[[#This Row],[Extended object ID]],O:O,P:P)","v":{"$error":"#N/A"}}]
["C","2013-06-18","9999-12-31",1,"Natural Resources Supervisor",20050277,"C13",8810,1.6000000000000001E-3,62854.59,100567.34,null,null,null,null,"x",null,null,null,null,null,null,null,null,null,null,null,null,"C","2014-08-12","9999-12-31",1,"Human Resources Financial Analyst Ld Sn",20050776,"GRD25",8810,1.6000000000000001E-3,68095.87,108953.31,88016,"HUMAN RESOURCES",{"$f":"_xlfn.XLOOKUP(job_titles17[[#This Row],[Extended object ID]],O:O,P:P)","v":"x"}]
["C","1950-01-01","9999-12-31",1,"Natural Resources Tech",20000351,"C07",9102,2.0799999999999999E-2,50398.3,68037.710000000006,null,null,null,null,"x",null,null,null,null,null,null,null,null,null,null,null,null,"C","1950-01-01","9999-12-31",1,"Human Resources Mgmt Dir",20000338,"C23",8810,1.6000000000000001E-3,121718.94,200836.25,88014,"MANAGEMENT",{"$f":"_xlfn.XLOOKUP(job_titles17[[#This Row],[Extended object ID]],O:O,P:P)","v":{"$error":"#N/A"}}]
["C","1950-01-01","9999-12-31",1,"Network Architect",20000482,"C19",8810,1.6000000000000001E-3,92836.33,148538.12,null,null,null,null,"x",null,null,null,null,null,null,null,null,null,null,null,null,"C","2020-08-11","9999-12-31",1,"Human Resources Mgmt Dir Succession",20053776,"GRD32",8810,1.6000000000000001E-3,109380.75,175009.12,88014,"MANAGEMENT",{"$f":"_xlfn.XLOOKUP(job_titles17[[#This Row],[Extended object ID]],O:O,P:P)","v":"x"}]
["C","1950-01-01","9999-12-31",1,"Network Engineer",20000485,"C14",8810,1.6000000000000001E-3,66183.97,105894.35,null,null,null,null,"x",null,null,null,null,null,null,null,null,null,null,null,null,"C","1950-01-01","9999-12-31",1,"Human Resources Mgr I",20000383,"C16",8810,1.6000000000000001E-3,75776.03,121241.65,88016,"HUMAN RESOURCES",{"$f":"_xlfn.XLOOKUP(job_titles17[[#This Row],[Extended object ID]],O:O,P:P)","v":{"$error":"#N/A"}}]
["C",18264,"9999-12-31",1,"Network Engineer Sr",20000483,"C17",8810,1.6000000000000001E-3,81074.789999999994,129719.67,null,null,null,null,"x",null,null,null,null,null,null,null,null,null,null,null,null,"C","1950-01-01","9999-12-31",1,"Human Resources Mgr II",20000384,"C17",8810,1.6000000000000001E-3,81074.789999999994,129719.67,88016,"HUMAN RESOURCES",{"$f":"_xlfn.XLOOKUP(job_titles17[[#This Row],[Extended object ID]],O:O,P:P)","v":{"$error":"#N/A"}}]
["C","1950-01-01","9999-12-31",1,"Occupational Health Safety Engineer",20000391,"C16",8810,1.6000000000000001E-3,75776.03,121241.65,null,null,null,null,"x",null,null,null,null,null,null,null,null,null,null,null,null,"C","2021-01-26","9999-12-31",1,"Human Resources Mgr II Succession",20054026,"GRD27",8810,1.6000000000000001E-3,77956.53,124730.53,88016,"HUMAN RESOURCES",{"$f":"_xlfn.XLOOKUP(job_titles17[[#This Row],[Extended object ID]],O:O,P:P)","v":"x"}]
["C","2016-06-21","9999-12-31",1,"Off-Duty Facilitator",20051551,"C07",8810,1.6000000000000001E-3,50398.3,68037.710000000006,null,null,null,null,"x",null,null,null,null,null,null,null,null,null,null,null,null,"C","1950-01-01","9999-12-31",1,"Human Resources Specialist I",20000375,"C10",8810,1.6000000000000001E-3,55877.5,82698.7,88016,"HUMAN RESOURCES",{"$f":"_xlfn.XLOOKUP(job_titles17[[#This Row],[Extended object ID]],O:O,P:P)","v":{"$error":"#N/A"}}]
["C","1950-01-01","9999-12-31",1,"Office Asst",20000093,"C02",8810,1.6000000000000001E-3,43264,56243.199999999997,null,null,null,null,"x",null,null,null,null,null,null,null,null,null,null,null,null,"C","1950-01-01","9999-12-31",1,"Human Resources Specialist II",20000376,"C12",8810,1.6000000000000001E-3,60437.1,90655.66,88016,"HUMAN RESOURCES",{"$f":"_xlfn.XLOOKUP(job_titles17[[#This Row],[Extended object ID]],O:O,P:P)","v":{"$error":"#N/A"}}]
["C","1900-01-01","9999-12-31",1,"Office Mgr",20000278,"C10",8810,1.6000000000000001E-3,55877.5,82698.7,null,null,null,null,"x",null,null,null,null,null,null,null,null,null,null,null,null,"C","1950-01-01","9999-12-31",1,"Human Resources Specialist Sr",20000377,"C14",8810,1.6000000000000001E-3,66183.97,105894.35,88016,"HUMAN RESOURCES",{"$f":"_xlfn.XLOOKUP(job_titles17[[#This Row],[Extended object ID]],O:O,P:P)","v":{"$error":"#N/A"}}]
["C","1950-01-01","9999-12-31",1,"Office Mgr Sr",20000279,"C13",8810,1.6000000000000001E-3,62854.59,100567.34,null,null,null,null,"x",null,null,null,null,null,null,null,null,null,null,null,null,"C","1950-01-01","9999-12-31",1,"HVAC Refrigeration Mechanic",20000035,"C09",9015,1.8800000000000001E-2,53987.92,78282.490000000005,88002,"SKILLED TRADES",{"$f":"_xlfn.XLOOKUP(job_titles17[[#This Row],[Extended object ID]],O:O,P:P)","v":{"$error":"#N/A"}}]
["C","2022-10-11","9999-12-31",1,"Office Mgr Sr Succession",20055126,"C13",8810,1.6000000000000001E-3,62854.59,100567.34,null,null,null,null,"x",null,null,null,null,null,null,null,null,null,null,null,null,"C","2012-04-17","9999-12-31",1,"Hydrogeologist",20050001,"C13",8601,1.8E-3,62854.59,100567.34,88009,"ENGINEERING & ARCHITECTURAL",{"$f":"_xlfn.XLOOKUP(job_titles17[[#This Row],[Extended object ID]],O:O,P:P)","v":{"$error":"#N/A"}}]
["C","1950-01-01","9999-12-31",1,"Office Specialist",20000094,"C04",8810,1.6000000000000001E-3,45898.78,59668.41,null,null,null,null,"x",null,null,null,null,null,null,null,null,null,null,null,null,"C","2023-12-12","9999-12-31",1,"Hydrogeologist Sr",20055851,"C15",8601,1.8E-3,70819.7,113311.53,88009,"ENGINEERING & ARCHITECTURAL",{"$f":"_xlfn.XLOOKUP(job_titles17[[#This Row],[Extended object ID]],O:O,P:P)","v":{"$error":"#N/A"}}]
["C","1950-01-01","9999-12-31",1,"Office Specialist Sr",20000095,"C06",8810,1.6000000000000001E-3,48694.01,65736.92,null,null,null,null,"x",null,null,null,null,null,null,null,null,null,null,null,null,"C","1950-01-01","9999-12-31",1,"Imaging Div Mgr",20000499,"C14",8810,1.6000000000000001E-3,66183.97,105894.35,88021,"INFORMATION TECH",{"$f":"_xlfn.XLOOKUP(job_titles17[[#This Row],[Extended object ID]],O:O,P:P)","v":{"$error":"#N/A"}}]
["C","1950-01-01","9999-12-31",1,"Office Supv",20000102,"C08",8810,1.6000000000000001E-3,52162.239999999998,75635.25,null,null,null,null,"x",null,null,null,null,null,null,null,null,null,null,null,null,"C","1950-01-01","9999-12-31",1,"Imaging Lab Supervisor",20000402,"C07",8810,1.6000000000000001E-3,50398.3,68037.710000000006,88018,"IMAGING & GRAPHICS",{"$f":"_xlfn.XLOOKUP(job_titles17[[#This Row],[Extended object ID]],O:O,P:P)","v":{"$error":"#N/A"}}]
["C","1950-01-01","9999-12-31",1,"Operations Dir",20000232,"C21",8810,1.6000000000000001E-3,106310.9,175412.99,null,null,null,null,"x",null,null,null,null,null,null,null,null,null,null,null,null,"C","1950-01-01","9999-12-31",1,"Imaging Production Tech",20000401,"C04",8810,1.6000000000000001E-3,45898.78,59668.41,88018,"IMAGING & GRAPHICS",{"$f":"_xlfn.XLOOKUP(job_titles17[[#This Row],[Extended object ID]],O:O,P:P)","v":{"$error":"#N/A"}}]
["C","1950-01-01","9999-12-31",1,"Painter",20000041,"C05",9015,1.8800000000000001E-2,47275.74,61458.46,null,null,null,null,"x",null,null,null,null,null,null,null,null,null,null,null,null,"C","2022-10-02","9999-12-31",1,"Imaging Production Tech Senior",20055277,"C05",8810,1.6000000000000001E-3,47275.74,61458.46,88018,"IMAGING & GRAPHICS",{"$f":"_xlfn.XLOOKUP(job_titles17[[#This Row],[Extended object ID]],O:O,P:P)","v":{"$error":"#N/A"}}]
["C","1950-01-01","9999-12-31",1,"Paralegal",20000091,"C09",8810,1.6000000000000001E-3,53987.92,78282.490000000005,null,null,null,null,"x",null,null,null,null,null,null,null,null,null,null,null,null,"C","1950-01-01","9999-12-31",1,"Information Security Analyst",20000465,"C13",8810,1.6000000000000001E-3,62854.59,100567.34,88021,"INFORMATION TECH",{"$f":"_xlfn.XLOOKUP(job_titles17[[#This Row],[Extended object ID]],O:O,P:P)","v":{"$error":"#N/A"}}]
["C","1950-01-01","9999-12-31",1,"Paralegal Sr",20000092,"C11",8810,1.6000000000000001E-3,58112.6,87168.9,null,null,null,null,"x",null,null,null,null,null,null,null,null,null,null,null,null,"C","1950-01-01","9999-12-31",1,"Information Security Analyst Sr",20000463,"C17",8810,1.6000000000000001E-3,81074.789999999994,129719.67,88021,"INFORMATION TECH",{"$f":"_xlfn.XLOOKUP(job_titles17[[#This Row],[Extended object ID]],O:O,P:P)","v":{"$error":"#N/A"}}]
["C","2023-06-26","9999-12-31",1,"Paralegal Sr Succession",20055601,"C11",8810,1.6000000000000001E-3,58112.6,87168.9,null,null,null,null,"x",null,null,null,null,null,null,null,null,null,null,null,null,"C","2018-11-13","9999-12-31",1,"Information Security Architect",20052877,"C20",8810,1.6000000000000001E-3,99345.18,158952.29,88021,"INFORMATION TECH",{"$f":"_xlfn.XLOOKUP(job_titles17[[#This Row],[Extended object ID]],O:O,P:P)","v":{"$error":"#N/A"}}]
["C","2013-10-01","9999-12-31",1,"Park Forester",20050476,"C13",9102,2.0799999999999999E-2,62854.59,100567.34,null,null,null,null,"x",null,null,null,null,null,null,null,null,null,null,null,null,"C","2018-11-13","9999-12-31",1,"Information Systems Auditor",20052876,"C18",8810,1.6000000000000001E-3,86761.41,138818.25,88021,"INFORMATION TECH",{"$f":"_xlfn.XLOOKUP(job_titles17[[#This Row],[Extended object ID]],O:O,P:P)","v":{"$error":"#N/A"}}]
["C","2019-09-30","9999-12-31",1,"Park Land Management Supervisor",20053291,"C12",9102,2.0799999999999999E-2,60437.1,90655.66,null,null,null,null,"x",null,null,null,null,null,null,null,null,null,null,null,null,"C","2019-10-15","9999-12-31",1,"Information Technology Director",20053452,"C24",8810,1.6000000000000001E-3,130239.35,214894.92,88021,"INFORMATION TECH",{"$f":"_xlfn.XLOOKUP(job_titles17[[#This Row],[Extended object ID]],O:O,P:P)","v":{"$error":"#N/A"}}]
["C","2019-09-30","9999-12-31",1,"Park Land Management Technician",20053290,"C06",9102,2.0799999999999999E-2,48694.01,65736.92,null,null,null,null,"x",null,null,null,null,null,null,null,null,null,null,null,null,"C","1950-01-01","9999-12-31",1,"Information Technology Div Dir",20000434,"C23",8810,1.6000000000000001E-3,121718.94,200836.25,88021,"INFORMATION TECH",{"$f":"_xlfn.XLOOKUP(job_titles17[[#This Row],[Extended object ID]],O:O,P:P)","v":{"$error":"#N/A"}}]
["C","2014-10-07","9999-12-31",1,"Park Land Manager",20050826,"C14",9102,2.0799999999999999E-2,66183.97,105894.35,null,null,null,null,"x",null,null,null,null,null,null,null,null,null,null,null,null,"C","2017-02-28","9999-12-31",1,"Information Technology Div Dir Sn",20051951,"GRD32",8810,1.6000000000000001E-3,109380.75,175009.12,88021,"INFORMATION TECH",{"$f":"_xlfn.XLOOKUP(job_titles17[[#This Row],[Extended object ID]],O:O,P:P)","v":"x"}]
["C","2023-09-19","9999-12-31",1,"Park Land Resource Manager",20055701,"C16",9102,2.0799999999999999E-2,75776.03,121241.65,null,null,null,null,"x",null,null,null,null,null,null,null,null,null,null,null,null,"C","2016-09-27","9999-12-31",1,"Infrastructure Architect",20051703,"C20",8810,1.6000000000000001E-3,99345.18,158952.29,88021,"INFORMATION TECH",{"$f":"_xlfn.XLOOKUP(job_titles17[[#This Row],[Extended object ID]],O:O,P:P)","v":{"$error":"#N/A"}}]
["C","2021-10-19","9999-12-31",1,"Park Maintenance Foreman",20054476,"C06",9102,2.0799999999999999E-2,48694.01,65736.92,null,null,null,null,"x",null,null,null,null,null,null,null,null,null,null,null,null,"C","2013-10-01","9999-12-31",1,"Inmate Mental Health & CES Dir",20050453,"C19",7720,1.55E-2,92836.33,148538.12,88014,"MANAGEMENT",{"$f":"_xlfn.XLOOKUP(job_titles17[[#This Row],[Extended object ID]],O:O,P:P)","v":{"$error":"#N/A"}}]
["C","1950-01-01","9999-12-31",1,"Park Maintenance Worker",20000013,"C04",9102,2.0799999999999999E-2,45898.78,59668.41,null,null,null,null,"x",null,null,null,null,null,null,null,null,null,null,null,null,"C","1950-01-01","9999-12-31",1,"Intergovernmental Relations Officer",20000404,"C20",8810,1.6000000000000001E-3,99345.18,158952.29,88019,"PUBLIC INFORMATION",{"$f":"_xlfn.XLOOKUP(job_titles17[[#This Row],[Extended object ID]],O:O,P:P)","v":{"$error":"#N/A"}}]
["C","1950-01-01","9999-12-31",1,"Park Maintenance Worker Sr",20000014,"C05",9102,2.0799999999999999E-2,47275.74,61458.46,null,null,null,null,"x",null,null,null,null,null,null,null,null,null,null,null,null,"C","2015-10-01","9999-12-31",1,"Intergovernmental Relations Specialist",20051226,"C12",8810,1.6000000000000001E-3,60437.1,90655.66,88019,"PUBLIC INFORMATION",{"$f":"_xlfn.XLOOKUP(job_titles17[[#This Row],[Extended object ID]],O:O,P:P)","v":{"$error":"#N/A"}}]
["C","2019-02-19","9999-12-31",1,"Park Operations Specialist",20052976,"C03",8810,1.6000000000000001E-3,44561.919999999998,57930.5,null,null,null,null,"x",null,null,null,null,null,null,null,null,null,null,null,null,"C","2014-12-23","9999-12-31",1,"Interior Designer",20050902,"C09",8601,1.8E-3,53987.92,78282.490000000005,88009,"ENGINEERING & ARCHITECTURAL",{"$f":"_xlfn.XLOOKUP(job_titles17[[#This Row],[Extended object ID]],O:O,P:P)","v":{"$error":"#N/A"}}]
["C","1950-01-01","9999-12-31",1,"Park Ranger",20000532,"GRD60",9102,2.0799999999999999E-2,64600,64600,null,null,null,null,"x",null,null,null,null,null,null,null,null,null,null,null,null,"C","2013-02-26","9999-12-31",1,"Internal Auditor",20050228,"C13",8810,1.6000000000000001E-3,62854.59,100567.34,88005,"FINANCE",{"$f":"_xlfn.XLOOKUP(job_titles17[[#This Row],[Extended object ID]],O:O,P:P)","v":{"$error":"#N/A"}}]
["C","2018-05-01","9999-12-31",1,"Park Ranger Cadet",20052551,"GRD59",7720,1.55E-2,57000,57000,null,null,null,null,"x",null,null,null,null,null,null,null,null,null,null,null,null,"C","1950-01-01","9999-12-31",1,"Interpreter",20000111,"C10",8810,1.6000000000000001E-3,55877.5,82698.7,88004,"ADMINISTRATIVE SUPP",{"$f":"_xlfn.XLOOKUP(job_titles17[[#This Row],[Extended object ID]],O:O,P:P)","v":{"$error":"#N/A"}}]
["C","1950-01-01","9999-12-31",1,"Park Ranger Chief",20000538,"GRD70",7720,1.55E-2,0,0,null,null,null,null,"x",null,null,null,null,null,null,null,null,null,null,null,null,"C","1950-01-01","9999-12-31",1,"Interpreter Language/Court Sr",20000113,"C11",8810,1.6000000000000001E-3,58112.6,87168.9,88004,"ADMINISTRATIVE SUPP",{"$f":"_xlfn.XLOOKUP(job_titles17[[#This Row],[Extended object ID]],O:O,P:P)","v":{"$error":"#N/A"}}]
["C","2021-12-07","9999-12-31",1,"Park Ranger Corporal",20054577,"GRD65",7720,1.55E-2,79983.070000000007,79983.070000000007,null,null,null,null,"x",null,null,null,null,null,null,null,null,null,null,null,null,"C","1950-01-01","9999-12-31",1,"Interpreter Sign Language I",20000421,"C07",8810,1.6000000000000001E-3,50398.3,68037.710000000006,88020,"TEMP/SEASONAL",{"$f":"_xlfn.XLOOKUP(job_titles17[[#This Row],[Extended object ID]],O:O,P:P)","v":{"$error":"#N/A"}}]
["C","2021-09-21","9999-12-31",1,"Park Ranger Investigator",20054277,"GRD65",7720,1.55E-2,79983.070000000007,79983.070000000007,null,null,null,null,"x",null,null,null,null,null,null,null,null,null,null,null,null,"C","1950-01-01","9999-12-31",1,"Interpreter Sign Language II",20000422,"C09",8810,1.6000000000000001E-3,53987.92,78282.490000000005,88020,"TEMP/SEASONAL",{"$f":"_xlfn.XLOOKUP(job_titles17[[#This Row],[Extended object ID]],O:O,P:P)","v":{"$error":"#N/A"}}]
["C","2022-12-13","9999-12-31",1,"Park Ranger Lieutenant",20055378,"GRD68",7720,1.55E-2,91089.42,91089.42,null,null,null,null,"x",null,null,null,null,null,null,null,null,null,null,null,null,"C","1950-01-01","9999-12-31",1,"Interpreter Sign Language III",20000423,"C11",8810,1.6000000000000001E-3,58112.6,87168.9,88020,"TEMP/SEASONAL",{"$f":"_xlfn.XLOOKUP(job_titles17[[#This Row],[Extended object ID]],O:O,P:P)","v":{"$error":"#N/A"}}]
["C","1950-01-01","9999-12-31",1,"Park Ranger Sr",20000535,"GRD62",9102,2.0799999999999999E-2,69163.91,69163.91,null,null,null,null,"x",null,null,null,null,null,null,null,null,null,null,null,null,"C","1950-01-01","9999-12-31",1,"Interpreter Sign Language IV",20000424,"C12",8810,1.6000000000000001E-3,60437.1,90655.66,88020,"TEMP/SEASONAL",{"$f":"_xlfn.XLOOKUP(job_titles17[[#This Row],[Extended object ID]],O:O,P:P)","v":{"$error":"#N/A"}}]
["C","1950-01-01","9999-12-31",1,"Park Ranger Supv",20000536,"GRD67",9102,2.0799999999999999E-2,88009.1,88009.1,null,null,null,null,"x",null,null,null,null,null,null,null,null,null,null,null,null,"C","1950-01-01","9999-12-31",1,"Interpreter Sign Language V",20000425,"C15",8810,1.6000000000000001E-3,70819.7,113311.53,88020,"TEMP/SEASONAL",{"$f":"_xlfn.XLOOKUP(job_titles17[[#This Row],[Extended object ID]],O:O,P:P)","v":{"$error":"#N/A"}}]
["C","2015-10-01","9999-12-31",1,"Park Reservation Specialist",20051151,"C06",8810,1.6000000000000001E-3,48694.01,65736.92,null,null,null,null,"x",null,null,null,null,null,null,null,null,null,null,null,null,"C","1950-01-01","9999-12-31",1,"Interpreter Sign Language VI",20000426,"C16",8810,1.6000000000000001E-3,75776.03,121241.65,88020,"TEMP/SEASONAL",{"$f":"_xlfn.XLOOKUP(job_titles17[[#This Row],[Extended object ID]],O:O,P:P)","v":{"$error":"#N/A"}}]
["C","1950-01-01","9999-12-31",1,"Park Supv I",20000015,"C10",9102,2.0799999999999999E-2,55877.5,82698.7,null,null,null,null,"x",null,null,null,null,null,null,null,null,null,null,null,null,"C","1950-01-01","9999-12-31",1,"Interpreter Sr",20000112,"C11",8810,1.6000000000000001E-3,58112.6,87168.9,88004,"ADMINISTRATIVE SUPP",{"$f":"_xlfn.XLOOKUP(job_titles17[[#This Row],[Extended object ID]],O:O,P:P)","v":{"$error":"#N/A"}}]
["C","1950-01-01","9999-12-31",1,"Park Supv II",20000016,"C11",9102,2.0799999999999999E-2,58112.6,87168.9,null,null,null,null,"x",null,null,null,null,null,null,null,null,null,null,null,null,"C","1950-01-01","9999-12-31",1,"Inventory Specialist",20000614,"C04",9015,1.8800000000000001E-2,45898.78,59668.41,88001,"MAINTENANCE",{"$f":"_xlfn.XLOOKUP(job_titles17[[#This Row],[Extended object ID]],O:O,P:P)","v":{"$error":"#N/A"}}]
["C","1950-01-01","9999-12-31",1,"Parking Coordinator",20000611,"C06",8810,1.6000000000000001E-3,48694.01,65736.92,null,null,null,null,"x",null,null,null,null,null,null,null,null,null,null,null,null,"C","2021-06-08","9999-12-31",1,"Investigations & Morgue Operations Chief",20054126,"C17",7720,1.55E-2,81074.789999999994,129719.67,88012,"PUBLIC SAF/EMG MGMT",{"$f":"_xlfn.XLOOKUP(job_titles17[[#This Row],[Extended object ID]],O:O,P:P)","v":{"$error":"#N/A"}}]
["C","1950-01-01","9999-12-31",1,"Parks Div Asst Dir",20000306,"C18",9102,2.0799999999999999E-2,86761.41,138818.25,null,null,null,null,"x",null,null,null,null,null,null,null,null,null,null,null,null,"C","1950-01-01","9999-12-31",1,"Investigations Chief",20000214,"C19",7720,1.55E-2,92836.33,148538.12,88012,"PUBLIC SAF/EMG MGMT",{"$f":"_xlfn.XLOOKUP(job_titles17[[#This Row],[Extended object ID]],O:O,P:P)","v":{"$error":"#N/A"}}]
["C","1950-01-01","9999-12-31",1,"Parks Div Dir",20000313,"C22",8810,1.6000000000000001E-3,113755.98,187697.37,null,null,null,null,"x",null,null,null,null,null,null,null,null,null,null,null,null,"C","1950-01-01","9999-12-31",1,"Investigations Lieutenant",20000542,"GRD69",7720,1.55E-2,97555.19,97555.19,88025,"POPS NON-TCSO",{"$f":"_xlfn.XLOOKUP(job_titles17[[#This Row],[Extended object ID]],O:O,P:P)","v":{"$error":"#N/A"}}]
["C","2024-01-11","9999-12-31",1,"Parks Div Dir Succession",20055951,"C22",8810,1.6000000000000001E-3,113755.98,187697.37,null,null,null,null,"x",null,null,null,null,null,null,null,null,null,null,null,null,"C","2022-09-27","9999-12-31",1,"Investigations Supervisor",20055102,"C18",8810,1.6000000000000001E-3,86761.41,138818.25,88013,"COURT SERVICES",{"$f":"_xlfn.XLOOKUP(job_titles17[[#This Row],[Extended object ID]],O:O,P:P)","v":{"$error":"#N/A"}}]
["C","2019-11-19","9999-12-31",1,"Parks Manager",20053427,"C13",9102,2.0799999999999999E-2,62854.59,100567.34,null,null,null,null,"x",null,null,null,null,null,null,null,null,null,null,null,null,"C","1950-01-01","9999-12-31",1,"Investigator",20000540,"GRD65",7720,1.55E-2,79983.070000000007,79983.070000000007,88025,"POPS NON-TCSO",{"$f":"_xlfn.XLOOKUP(job_titles17[[#This Row],[Extended object ID]],O:O,P:P)","v":{"$error":"#N/A"}}]
["C","1950-01-01","9999-12-31",1,"Pharmacist",20000061,"C21",8832,1.9E-3,106310.9,175412.99,null,null,null,null,"x",null,null,null,null,null,null,null,null,null,null,null,null,"C","2019-04-30","9999-12-31",1,"Investigator Senior",20053126,"GRD67",7720,1.55E-2,88009.1,88009.1,88025,"POPS NON-TCSO",{"$f":"_xlfn.XLOOKUP(job_titles17[[#This Row],[Extended object ID]],O:O,P:P)","v":{"$error":"#N/A"}}]
["C","1950-01-01","9999-12-31",1,"Pharmacy Tech",20000060,"C04",8832,1.9E-3,45898.78,59668.41,null,null,null,null,"x",null,null,null,null,null,null,null,null,null,null,null,null,"C","2016-10-01","9999-12-31",1,"Investment Manager",20051752,"C15",8810,1.6000000000000001E-3,70819.7,113311.53,88014,"MANAGEMENT",{"$f":"_xlfn.XLOOKUP(job_titles17[[#This Row],[Extended object ID]],O:O,P:P)","v":{"$error":"#N/A"}}]
["C","1950-01-01","9999-12-31",1,"Physician Asst Nurse Practitioner",20000056,"C18",8832,1.9E-3,86761.41,138818.25,null,null,null,null,"x",null,null,null,null,null,null,null,null,null,null,null,null,"C","2015-10-01","9999-12-31",1,"Irrigation Specialist",20051157,"C05",9015,1.8800000000000001E-2,47275.74,61458.46,88001,"MAINTENANCE",{"$f":"_xlfn.XLOOKUP(job_titles17[[#This Row],[Extended object ID]],O:O,P:P)","v":{"$error":"#N/A"}}]
["C","1950-01-01","9999-12-31",1,"Physician I",20000057,"C26",8832,1.9E-3,149111.1,246033.32,null,null,null,null,"x",null,null,null,null,null,null,null,null,null,null,null,null,"C","2019-04-02","9999-12-31",1,"IT Disaster Recovery Analyst",20053076,"C18",8810,1.6000000000000001E-3,86761.41,138818.25,88021,"INFORMATION TECH",{"$f":"_xlfn.XLOOKUP(job_titles17[[#This Row],[Extended object ID]],O:O,P:P)","v":{"$error":"#N/A"}}]
["C","1950-01-01","9999-12-31",1,"Physician II",20000058,"C27",8832,1.9E-3,159548.98000000001,263255.82,null,null,null,null,"x",null,null,null,null,null,null,null,null,null,null,null,null,"C","1950-01-01","9999-12-31",1,"IT Dpt Div Mgr",20000496,"C20",8810,1.6000000000000001E-3,99345.18,158952.29,88021,"INFORMATION TECH",{"$f":"_xlfn.XLOOKUP(job_titles17[[#This Row],[Extended object ID]],O:O,P:P)","v":{"$error":"#N/A"}}]
["C","2024-01-09","9999-12-31",1,"PID Managing Director",20055926,"C18",8810,1.6000000000000001E-3,86761.41,138818.25,null,null,null,null,"x",null,null,null,null,null,null,null,null,null,null,null,null,"C","2022-07-01","9999-12-31",1,"IT Dpt Div Mgr Succession",20054926,"GRD30",8810,1.6000000000000001E-3,95524.21,152838.82,88021,"INFORMATION TECH",{"$f":"_xlfn.XLOOKUP(job_titles17[[#This Row],[Extended object ID]],O:O,P:P)","v":"x"}]
["C","2021-09-21","9999-12-31",1,"PkDivAsstDirPbcSftRsrcProtctn",20054276,"C18",8810,1.6000000000000001E-3,86761.41,138818.25,null,null,null,null,"x",null,null,null,null,null,null,null,null,null,null,null,null,"C","1950-01-01","9999-12-31",1,"Judicial Aide",20000086,"C08",8810,1.6000000000000001E-3,52162.239999999998,75635.25,88004,"ADMINISTRATIVE SUPP",{"$f":"_xlfn.XLOOKUP(job_titles17[[#This Row],[Extended object ID]],O:O,P:P)","v":{"$error":"#N/A"}}]
["C","1950-01-01","9999-12-31",1,"Planner",20000157,"C11",8810,1.6000000000000001E-3,58112.6,87168.9,null,null,null,null,"x",null,null,null,null,null,null,null,null,null,null,null,null,"C","1950-01-01","9999-12-31",1,"Judicial Aide Specialist",20000087,"C10",8810,1.6000000000000001E-3,55877.5,82698.7,88004,"ADMINISTRATIVE SUPP",{"$f":"_xlfn.XLOOKUP(job_titles17[[#This Row],[Extended object ID]],O:O,P:P)","v":{"$error":"#N/A"}}]
["C","2015-10-01","9999-12-31",1,"Planner II",20051161,"C12",8810,1.6000000000000001E-3,60437.1,90655.66,null,null,null,null,"x",null,null,null,null,null,null,null,null,null,null,null,null,"C","2019-09-30","9999-12-31",1,"Judicial Executive Assistant",20053277,"C10",8810,1.6000000000000001E-3,55877.5,82698.7,88004,"ADMINISTRATIVE SUPP",{"$f":"_xlfn.XLOOKUP(job_titles17[[#This Row],[Extended object ID]],O:O,P:P)","v":{"$error":"#N/A"}}]
["C","1950-01-01","9999-12-31",1,"Planner Mgmt Research Asst",20000153,"C04",8810,1.6000000000000001E-3,45898.78,59668.41,null,null,null,null,"x",null,null,null,null,null,null,null,null,null,null,null,null,"C","2022-06-28","9999-12-31",1,"Judicial Executive Assistant Succession",20054951,"GRD20",8810,1.6000000000000001E-3,48530.77,72796.259999999995,88004,"ADMINISTRATIVE SUPP",{"$f":"_xlfn.XLOOKUP(job_titles17[[#This Row],[Extended object ID]],O:O,P:P)","v":"x"}]
["C","1950-01-01","9999-12-31",1,"Planner Mgmt Research Specialist",20000155,"C09",8810,1.6000000000000001E-3,53987.92,78282.490000000005,null,null,null,null,"x",null,null,null,null,null,null,null,null,null,null,null,null,"C","1950-01-01","9999-12-31",1,"Justice Court Of Appeals 3rd District",20000272,"NCF01",9999,0,15080,500000,88013,"COURT SERVICES",{"$f":"_xlfn.XLOOKUP(job_titles17[[#This Row],[Extended object ID]],O:O,P:P)","v":"x"}]
["C","1950-01-01","9999-12-31",1,"Planner Mgmt Research Specialist Assoc",20000154,"C07",8810,1.6000000000000001E-3,50398.3,68037.710000000006,null,null,null,null,"x",null,null,null,null,null,null,null,null,null,null,null,null,"C","1950-01-01","9999-12-31",1,"Justice Of The Peace",20000509,"NCF01",8810,1.6000000000000001E-3,15080,500000,88022,"ELECTED",{"$f":"_xlfn.XLOOKUP(job_titles17[[#This Row],[Extended object ID]],O:O,P:P)","v":"x"}]
["C","1950-01-01","9999-12-31",1,"Planner Mgmt Research Specialist Sr",20000156,"C11",8810,1.6000000000000001E-3,58112.6,87168.9,null,null,null,null,"x",null,null,null,null,null,null,null,null,null,null,null,null,"C","2015-10-01","9999-12-31",1,"Justice of the Peace Court Administrator",20051159,"C13",8810,1.6000000000000001E-3,62854.59,100567.34,88014,"MANAGEMENT",{"$f":"_xlfn.XLOOKUP(job_titles17[[#This Row],[Extended object ID]],O:O,P:P)","v":{"$error":"#N/A"}}]
["C","1950-01-01","9999-12-31",1,"Planner Sr",20000158,"C13",8810,1.6000000000000001E-3,62854.59,100567.34,null,null,null,null,"x",null,null,null,null,null,null,null,null,null,null,null,null,"C","2017-04-30","9999-12-31",1,"Justice Of The Peace Sn",20052026,"NCF01",8810,1.6000000000000001E-3,15080,500000,88022,"ELECTED",{"$f":"_xlfn.XLOOKUP(job_titles17[[#This Row],[Extended object ID]],O:O,P:P)","v":{"$error":"#N/A"}}]
["C","1950-01-01","9999-12-31",1,"Planning & Budget Analyst I",20000134,"C11",8810,1.6000000000000001E-3,58112.6,87168.9,null,null,null,null,"x",null,null,null,null,null,null,null,null,null,null,null,null,"C","2016-08-16","9999-12-31",1,"Justice Planning Div Dir",20051626,"C18",8810,1.6000000000000001E-3,86761.41,138818.25,88014,"MANAGEMENT",{"$f":"_xlfn.XLOOKUP(job_titles17[[#This Row],[Extended object ID]],O:O,P:P)","v":{"$error":"#N/A"}}]
["C","1950-01-01","9999-12-31",1,"Planning & Budget Analyst II",20000135,"C13",8810,1.6000000000000001E-3,62854.59,100567.34,null,null,null,null,"x",null,null,null,null,null,null,null,null,null,null,null,null,"C","1950-01-01","9999-12-31",1,"Juvenile Case Mgr",20000242,"C07",7720,1.55E-2,50398.3,68037.710000000006,88013,"COURT SERVICES",{"$f":"_xlfn.XLOOKUP(job_titles17[[#This Row],[Extended object ID]],O:O,P:P)","v":{"$error":"#N/A"}}]
["C","1950-01-01","9999-12-31",1,"Planning & Budget Analyst III",20000136,"C15",8810,1.6000000000000001E-3,70819.7,113311.53,null,null,null,null,"x",null,null,null,null,null,null,null,null,null,null,null,null,"C","1950-01-01","9999-12-31",1,"Juvenile Case Work Mgr",20000289,"C12",8810,1.6000000000000001E-3,60437.1,90655.66,88014,"MANAGEMENT",{"$f":"_xlfn.XLOOKUP(job_titles17[[#This Row],[Extended object ID]],O:O,P:P)","v":{"$error":"#N/A"}}]
["C","1950-01-01","9999-12-31",1,"Planning & Budget Analyst Sr",20000137,"C17",8810,1.6000000000000001E-3,81074.789999999994,129719.67,null,null,null,null,"x",null,null,null,null,null,null,null,null,null,null,null,null,"C","1950-01-01","9999-12-31",1,"Juvenile Detention Officer Asst",20000254,"C03",7720,1.55E-2,44561.919999999998,57930.5,88013,"COURT SERVICES",{"$f":"_xlfn.XLOOKUP(job_titles17[[#This Row],[Extended object ID]],O:O,P:P)","v":{"$error":"#N/A"}}]
["C","2021-06-08","9999-12-31",1,"Planning & Budget Ld Operational Analyst",20054127,"C18",8810,1.6000000000000001E-3,86761.41,138818.25,null,null,null,null,"x",null,null,null,null,null,null,null,null,null,null,null,null,"C","1950-01-01","9999-12-31",1,"Juvenile Detention Officer I",20000255,"C05",7720,1.55E-2,47275.74,61458.46,88013,"COURT SERVICES",{"$f":"_xlfn.XLOOKUP(job_titles17[[#This Row],[Extended object ID]],O:O,P:P)","v":{"$error":"#N/A"}}]
["C","1950-01-01","9999-12-31",1,"Planning Mgr",20000159,"C16",8810,1.6000000000000001E-3,75776.03,121241.65,null,null,null,null,"x",null,null,null,null,null,null,null,null,null,null,null,null,"C","1950-01-01","9999-12-31",1,"Juvenile Detention Officer II",20000256,"C06",7720,1.55E-2,48694.01,65736.92,88013,"COURT SERVICES",{"$f":"_xlfn.XLOOKUP(job_titles17[[#This Row],[Extended object ID]],O:O,P:P)","v":{"$error":"#N/A"}}]
["C","1950-01-01","9999-12-31",1,"Planning Project Mgr",20000616,"C15",8810,1.6000000000000001E-3,70819.7,113311.53,null,null,null,null,"x",null,null,null,null,null,null,null,null,null,null,null,null,"C","1950-01-01","9999-12-31",1,"Juvenile Detention Officer III",20000257,"C07",7720,1.55E-2,50398.3,68037.710000000006,88013,"COURT SERVICES",{"$f":"_xlfn.XLOOKUP(job_titles17[[#This Row],[Extended object ID]],O:O,P:P)","v":{"$error":"#N/A"}}]
["C","1950-01-01","9999-12-31",1,"Plumber",20000044,"C08",9015,1.8800000000000001E-2,52162.239999999998,75635.25,null,null,null,null,"x",null,null,null,null,null,null,null,null,null,null,null,null,"C","2017-02-28","9999-12-31",1,"Juvenile Detention Officer Lead",20051926,"C08",7720,1.55E-2,52162.239999999998,75635.25,88013,"COURT SERVICES",{"$f":"_xlfn.XLOOKUP(job_titles17[[#This Row],[Extended object ID]],O:O,P:P)","v":{"$error":"#N/A"}}]
["C","1950-01-01","9999-12-31",1,"Plumber Master",20000045,"C10",9015,1.8800000000000001E-2,55877.5,82698.7,null,null,null,null,"x",null,null,null,null,null,null,null,null,null,null,null,null,"C","2022-03-02","9999-12-31",1,"Juvenile Facilities Division Director",20054751,"C17",9015,1.8800000000000001E-2,81074.789999999994,129719.67,88014,"MANAGEMENT",{"$f":"_xlfn.XLOOKUP(job_titles17[[#This Row],[Extended object ID]],O:O,P:P)","v":{"$error":"#N/A"}}]
["C","2017-06-06","9999-12-31",1,"PREA Coordinator",20052077,"C11",7720,1.55E-2,58112.6,87168.9,null,null,null,null,"x",null,null,null,null,null,null,null,null,null,null,null,null,"C","1950-01-01","9999-12-31",1,"Juvenile Facilities Mgr",20000295,"C14",9015,1.8800000000000001E-2,66183.97,105894.35,88014,"MANAGEMENT",{"$f":"_xlfn.XLOOKUP(job_titles17[[#This Row],[Extended object ID]],O:O,P:P)","v":{"$error":"#N/A"}}]
["C","1950-01-01","9999-12-31",1,"Pretrial Div Dir",20000292,"C17",8810,1.6000000000000001E-3,81074.789999999994,129719.67,null,null,null,null,"x",null,null,null,null,null,null,null,null,null,null,null,null,"C","1950-01-01","9999-12-31",1,"Juvenile Probation Deputy Chief",20000324,"C21",8810,1.6000000000000001E-3,106310.9,175412.99,88014,"MANAGEMENT",{"$f":"_xlfn.XLOOKUP(job_titles17[[#This Row],[Extended object ID]],O:O,P:P)","v":{"$error":"#N/A"}}]
["C","1950-01-01","9999-12-31",1,"Pretrial Mgr",20000291,"C13",8810,1.6000000000000001E-3,62854.59,100567.34,null,null,null,null,"x",null,null,null,null,null,null,null,null,null,null,null,null,"C","1950-01-01","9999-12-31",1,"Juvenile Probation Dir",20000309,"C19",8810,1.6000000000000001E-3,92836.33,148538.12,88014,"MANAGEMENT",{"$f":"_xlfn.XLOOKUP(job_titles17[[#This Row],[Extended object ID]],O:O,P:P)","v":{"$error":"#N/A"}}]
["C","1950-01-01","9999-12-31",1,"Pretrial Officer I",20000238,"C08",8810,1.6000000000000001E-3,52162.239999999998,75635.25,null,null,null,null,"x",null,null,null,null,null,null,null,null,null,null,null,null,"C","1950-01-01","9999-12-31",1,"Juvenile Probation Div Dir",20000285,"C17",8810,1.6000000000000001E-3,81074.789999999994,129719.67,88014,"MANAGEMENT",{"$f":"_xlfn.XLOOKUP(job_titles17[[#This Row],[Extended object ID]],O:O,P:P)","v":{"$error":"#N/A"}}]
["C","1950-01-01","9999-12-31",1,"Pretrial Officer II",20000239,"C09",8810,1.6000000000000001E-3,53987.92,78282.490000000005,null,null,null,null,"x",null,null,null,null,null,null,null,null,null,null,null,null,"C","1950-01-01","9999-12-31",1,"Juvenile Probation Div Mgr",20000281,"C15",8810,1.6000000000000001E-3,70819.7,113311.53,88014,"MANAGEMENT",{"$f":"_xlfn.XLOOKUP(job_titles17[[#This Row],[Extended object ID]],O:O,P:P)","v":{"$error":"#N/A"}}]
["C","1950-01-01","9999-12-31",1,"Pretrial Officer III",20000240,"C10",8810,1.6000000000000001E-3,55877.5,82698.7,null,null,null,null,"x",null,null,null,null,null,null,null,null,null,null,null,null,"C","2021-10-02","9999-12-31",1,"Juvenile Probation Finance Director",20054460,"C20",8810,1.6000000000000001E-3,99345.18,158952.29,88014,"MANAGEMENT",{"$f":"_xlfn.XLOOKUP(job_titles17[[#This Row],[Extended object ID]],O:O,P:P)","v":{"$error":"#N/A"}}]
["C","1950-01-01","9999-12-31",1,"Pretrial Officer Sr",20000241,"C11",8810,1.6000000000000001E-3,58112.6,87168.9,null,null,null,null,"x",null,null,null,null,null,null,null,null,null,null,null,null,"C","1950-01-01","9999-12-31",1,"Juvenile Probation Officer Asst",20000249,"C05",7720,1.55E-2,47275.74,61458.46,88013,"COURT SERVICES",{"$f":"_xlfn.XLOOKUP(job_titles17[[#This Row],[Extended object ID]],O:O,P:P)","v":{"$error":"#N/A"}}]
["C","1950-01-01","9999-12-31",1,"Probate Auditor",20000127,"C11",8810,1.6000000000000001E-3,58112.6,87168.9,null,null,null,null,"x",null,null,null,null,null,null,null,null,null,null,null,null,"C","1950-01-01","9999-12-31",1,"Juvenile Probation Officer Chief",20000516,"NCF01",8810,1.6000000000000001E-3,15080,500000,88023,"APPOINTED",{"$f":"_xlfn.XLOOKUP(job_titles17[[#This Row],[Extended object ID]],O:O,P:P)","v":"x"}]
["C","2020-01-14","9999-12-31",1,"Probate Auditor Sr",20053576,"C12",8810,1.6000000000000001E-3,60437.1,90655.66,null,null,null,null,"x",null,null,null,null,null,null,null,null,null,null,null,null,"C","1950-01-01","9999-12-31",1,"Juvenile Probation Officer I",20000250,"C08",7720,1.55E-2,52162.239999999998,75635.25,88013,"COURT SERVICES",{"$f":"_xlfn.XLOOKUP(job_titles17[[#This Row],[Extended object ID]],O:O,P:P)","v":{"$error":"#N/A"}}]
["C","1950-01-01","9999-12-31",1,"Probate Court Administrator",20000321,"C19",8810,1.6000000000000001E-3,92836.33,148538.12,null,null,null,null,"x",null,null,null,null,null,null,null,null,null,null,null,null,"C","1950-01-01","9999-12-31",1,"Juvenile Probation Officer II",20000251,"C09",7720,1.55E-2,53987.92,78282.490000000005,88013,"COURT SERVICES",{"$f":"_xlfn.XLOOKUP(job_titles17[[#This Row],[Extended object ID]],O:O,P:P)","v":{"$error":"#N/A"}}]
["C","1950-01-01","9999-12-31",1,"Program Coord",20000349,"C11",8810,1.6000000000000001E-3,58112.6,87168.9,null,null,null,null,"x",null,null,null,null,null,null,null,null,null,null,null,null,"C","1950-01-01","9999-12-31",1,"Juvenile Probation Officer III",20000252,"C10",7720,1.55E-2,55877.5,82698.7,88013,"COURT SERVICES",{"$f":"_xlfn.XLOOKUP(job_titles17[[#This Row],[Extended object ID]],O:O,P:P)","v":{"$error":"#N/A"}}]
["C","1950-01-01","9999-12-31",1,"Program Dir",20000235,"C22",8810,1.6000000000000001E-3,113755.98,187697.37,null,null,null,null,"x",null,null,null,null,null,null,null,null,null,null,null,null,"C","1950-01-01","9999-12-31",1,"Juvenile Probation Officer Lead",20000253,"C11",7720,1.55E-2,58112.6,87168.9,88013,"COURT SERVICES",{"$f":"_xlfn.XLOOKUP(job_titles17[[#This Row],[Extended object ID]],O:O,P:P)","v":{"$error":"#N/A"}}]
["C","2021-10-02","9999-12-31",1,"Program Generalist Sr",20054376,"C12",8810,1.6000000000000001E-3,60437.1,90655.66,null,null,null,null,"x",null,null,null,null,null,null,null,null,null,null,null,null,"C","2019-12-31","9999-12-31",1,"Juvenile Probation Security Center Coord",20053553,"C06",7720,1.55E-2,48694.01,65736.92,88001,"MAINTENANCE",{"$f":"_xlfn.XLOOKUP(job_titles17[[#This Row],[Extended object ID]],O:O,P:P)","v":{"$error":"#N/A"}}]
["C","1950-01-01","9999-12-31",1,"Program Manager",20000437,"C19",8810,1.6000000000000001E-3,92836.33,148538.12,null,null,null,null,"x",null,null,null,null,null,null,null,null,null,null,null,null,"C","1950-01-01","9999-12-31",1,"Juvenile Rsdnt Treatment Officer Asst",20000258,"C04",7720,1.55E-2,45898.78,59668.41,88013,"COURT SERVICES",{"$f":"_xlfn.XLOOKUP(job_titles17[[#This Row],[Extended object ID]],O:O,P:P)","v":{"$error":"#N/A"}}]
["C","1950-01-01","9999-12-31",1,"Program Manager Sr",20000436,"C20",8810,1.6000000000000001E-3,99345.18,158952.29,null,null,null,null,"x",null,null,null,null,null,null,null,null,null,null,null,null,"C","1950-01-01","9999-12-31",1,"Juvenile Rsdnt Treatment Officer I",20000259,"C05",7720,1.55E-2,47275.74,61458.46,88013,"COURT SERVICES",{"$f":"_xlfn.XLOOKUP(job_titles17[[#This Row],[Extended object ID]],O:O,P:P)","v":{"$error":"#N/A"}}]
["C","2015-10-01","9999-12-31",1,"Project Coordinator",20051203,"C14",8810,1.6000000000000001E-3,66183.97,105894.35,null,null,null,null,"x",null,null,null,null,null,null,null,null,null,null,null,null,"C","1950-01-01","9999-12-31",1,"Juvenile Rsdnt Treatment Officer II",20000260,"C06",7720,1.55E-2,48694.01,65736.92,88013,"COURT SERVICES",{"$f":"_xlfn.XLOOKUP(job_titles17[[#This Row],[Extended object ID]],O:O,P:P)","v":{"$error":"#N/A"}}]
["C","1950-01-01","9999-12-31",1,"Project Mgr",20000438,"C18",8810,1.6000000000000001E-3,86761.41,138818.25,null,null,null,null,"x",null,null,null,null,null,null,null,null,null,null,null,null,"C","1950-01-01","9999-12-31",1,"Juvenile Rsdnt Treatment Officer III",20000261,"C07",7720,1.55E-2,50398.3,68037.710000000006,88013,"COURT SERVICES",{"$f":"_xlfn.XLOOKUP(job_titles17[[#This Row],[Extended object ID]],O:O,P:P)","v":{"$error":"#N/A"}}]
["C","1950-01-01","9999-12-31",1,"Project Mgr Div Mgr",20000435,"GRD32",8810,1.6000000000000001E-3,109380.75,175009.12,null,null,null,null,"x",null,null,null,null,null,null,null,null,null,null,null,null,"C","2017-05-09","9999-12-31",1,"Juvenile Rsdnt Treatment Officer Lead",20052051,"C08",7720,1.55E-2,52162.239999999998,75635.25,88013,"COURT SERVICES",{"$f":"_xlfn.XLOOKUP(job_titles17[[#This Row],[Extended object ID]],O:O,P:P)","v":{"$error":"#N/A"}}]
["C","1950-01-01","9999-12-31",1,"Psychiatrist",20000062,"C27",8832,1.9E-3,159548.98000000001,263255.82,null,null,null,null,"x",null,null,null,null,null,null,null,null,null,null,null,null,"C","1950-01-01","9999-12-31",1,"Juvenile Rsdnt Treatment Officer Sr",20000262,"C08",7720,1.55E-2,52162.239999999998,75635.25,88013,"COURT SERVICES",{"$f":"_xlfn.XLOOKUP(job_titles17[[#This Row],[Extended object ID]],O:O,P:P)","v":{"$error":"#N/A"}}]
["C","1950-01-01","9999-12-31",1,"Psychological Svcs Mgr",20000651,"C18",8832,1.9E-3,86761.41,138818.25,null,null,null,null,"x",null,null,null,null,null,null,null,null,null,null,null,null,"C","1950-01-01","9999-12-31",1,"Juvenile Shift Supv",20000288,"C12",7720,1.55E-2,60437.1,90655.66,88014,"MANAGEMENT",{"$f":"_xlfn.XLOOKUP(job_titles17[[#This Row],[Extended object ID]],O:O,P:P)","v":{"$error":"#N/A"}}]
["C","1950-01-01","9999-12-31",1,"Psychologist",20000203,"C16",8832,1.9E-3,75776.03,121241.65,null,null,null,null,"x",null,null,null,null,null,null,null,null,null,null,null,null,"C","2019-12-10","9999-12-31",1,"JvP Dir of Accreditation & Compliance",20053526,"C19",8810,1.6000000000000001E-3,92836.33,148538.12,88014,"MANAGEMENT",{"$f":"_xlfn.XLOOKUP(job_titles17[[#This Row],[Extended object ID]],O:O,P:P)","v":{"$error":"#N/A"}}]
["C","2013-04-09","9999-12-31",1,"Psychology Intern",20050251,"C03",8832,1.9E-3,44561.919999999998,57930.5,null,null,null,null,"x",null,null,null,null,null,null,null,null,null,null,null,null,"C","1950-01-01","9999-12-31",1,"Law Clerk I",20000138,"C06",8810,1.6000000000000001E-3,48694.01,65736.92,88006,"ATTORNEYS",{"$f":"_xlfn.XLOOKUP(job_titles17[[#This Row],[Extended object ID]],O:O,P:P)","v":{"$error":"#N/A"}}]
["C","1950-01-01","9999-12-31",1,"Public Defender Mental Health",20000333,"C24",8810,1.6000000000000001E-3,130239.35,214894.92,null,null,null,null,"x",null,null,null,null,null,null,null,null,null,null,null,null,"C","1950-01-01","9999-12-31",1,"Law Clerk II",20000139,"C10",8810,1.6000000000000001E-3,55877.5,82698.7,88006,"ATTORNEYS",{"$f":"_xlfn.XLOOKUP(job_titles17[[#This Row],[Extended object ID]],O:O,P:P)","v":{"$error":"#N/A"}}]
["C","2022-05-03","9999-12-31",1,"Public Information & Social Media Spc",20054876,"C11",8810,1.6000000000000001E-3,58112.6,87168.9,null,null,null,null,"x",null,null,null,null,null,null,null,null,null,null,null,null,"C","1950-01-01","9999-12-31",1,"Law Enforcement Captain",20000216,"C20",7720,1.55E-2,99345.18,158952.29,88012,"PUBLIC SAF/EMG MGMT",{"$f":"_xlfn.XLOOKUP(job_titles17[[#This Row],[Extended object ID]],O:O,P:P)","v":{"$error":"#N/A"}}]
["C","1950-01-01","9999-12-31",1,"Public Information Officer Sr",20000605,"C13",8810,1.6000000000000001E-3,62854.59,100567.34,null,null,null,null,"x",null,null,null,null,null,null,null,null,null,null,null,null,"C","1950-01-01","9999-12-31",1,"Law Enforcement Detective",20000525,"GRD75",7720,1.55E-2,79983.070000000007,79983.070000000007,88024,"POPS TCSO",{"$f":"_xlfn.XLOOKUP(job_titles17[[#This Row],[Extended object ID]],O:O,P:P)","v":{"$error":"#N/A"}}]
["C","1950-01-01","9999-12-31",1,"Public Information Specialist",20000608,"C11",8810,1.6000000000000001E-3,58112.6,87168.9,null,null,null,null,"x",null,null,null,null,null,null,null,null,null,null,null,null,"C","1950-01-01","9999-12-31",1,"Law Enforcement Lieutenant",20000527,"GRD77",7720,1.55E-2,108394.66,108394.66,88024,"POPS TCSO",{"$f":"_xlfn.XLOOKUP(job_titles17[[#This Row],[Extended object ID]],O:O,P:P)","v":{"$error":"#N/A"}}]
["C","1950-01-01","9999-12-31",1,"Public Works Dir",20000343,"C23",8601,1.8E-3,121718.94,200836.25,null,null,null,null,"x",null,null,null,null,null,null,null,null,null,null,null,null,"C","1950-01-01","9999-12-31",1,"Law Enforcement Sergeant",20000526,"GRD76",7720,1.55E-2,92641.16,92641.16,88024,"POPS TCSO",{"$f":"_xlfn.XLOOKUP(job_titles17[[#This Row],[Extended object ID]],O:O,P:P)","v":{"$error":"#N/A"}}]
["C","1950-01-01","9999-12-31",1,"Pur Asset Coordinator",20000599,"C15",8810,1.6000000000000001E-3,70819.7,113311.53,null,null,null,null,"x",null,null,null,null,null,null,null,null,null,null,null,null,"C","1950-01-01","9999-12-31",1,"Law Enforcement Sheriff Deputy",20000523,"GRD72",7720,1.55E-2,68000,68000,88024,"POPS TCSO",{"$f":"_xlfn.XLOOKUP(job_titles17[[#This Row],[Extended object ID]],O:O,P:P)","v":{"$error":"#N/A"}}]
["C","1950-01-01","9999-12-31",1,"Pur Asset Specialist",20000598,"C07",8810,1.6000000000000001E-3,50398.3,68037.710000000006,null,null,null,null,"x",null,null,null,null,null,null,null,null,null,null,null,null,"C","1950-01-01","9999-12-31",1,"Law Enforcement Sheriff Deputy Sr",20000524,"GRD74",7720,1.55E-2,72804.12,72804.12,88024,"POPS TCSO",{"$f":"_xlfn.XLOOKUP(job_titles17[[#This Row],[Extended object ID]],O:O,P:P)","v":{"$error":"#N/A"}}]
["C","1950-01-01","9999-12-31",1,"Pur Assistant HUB Director",20000597,"C19",8810,1.6000000000000001E-3,92836.33,148538.12,null,null,null,null,"x",null,null,null,null,null,null,null,null,null,null,null,null,"C","1950-01-01","9999-12-31",1,"Law Enforcement Specialist",20000114,"C07",8810,1.6000000000000001E-3,50398.3,68037.710000000006,88004,"ADMINISTRATIVE SUPP",{"$f":"_xlfn.XLOOKUP(job_titles17[[#This Row],[Extended object ID]],O:O,P:P)","v":{"$error":"#N/A"}}]
["C","1950-01-01","9999-12-31",1,"Pur Asst Purchasing Agent",20000601,"C20",8810,1.6000000000000001E-3,99345.18,158952.29,null,null,null,null,"x",null,null,null,null,null,null,null,null,null,null,null,null,"C","1950-01-01","9999-12-31",1,"Law Librarian",20000345,"C12",8810,1.6000000000000001E-3,60437.1,90655.66,88015,"PROFESSIONAL SUPP",{"$f":"_xlfn.XLOOKUP(job_titles17[[#This Row],[Extended object ID]],O:O,P:P)","v":{"$error":"#N/A"}}]
["C","2017-10-01","9999-12-31",1,"Pur Business Analyst I",20052254,"C12",8810,1.6000000000000001E-3,60437.1,90655.66,null,null,null,null,"x",null,null,null,null,null,null,null,null,null,null,null,null,"C","2019-09-30","9999-12-31",1,"Law Library Director",20053282,"C16",8810,1.6000000000000001E-3,75776.03,121241.65,88014,"MANAGEMENT",{"$f":"_xlfn.XLOOKUP(job_titles17[[#This Row],[Extended object ID]],O:O,P:P)","v":{"$error":"#N/A"}}]
["C","2017-10-01","9999-12-31",1,"Pur Business Analyst II",20052277,"C15",8810,1.6000000000000001E-3,70819.7,113311.53,null,null,null,null,"x",null,null,null,null,null,null,null,null,null,null,null,null,"C","2015-10-01","9999-12-31",1,"Law Library Tech Services Mgr",20051162,"C14",8838,0,66183.97,105894.35,88015,"PROFESSIONAL SUPP",{"$f":"_xlfn.XLOOKUP(job_titles17[[#This Row],[Extended object ID]],O:O,P:P)","v":{"$error":"#N/A"}}]
["C","2019-11-01","9999-12-31",1,"Pur Community Liaison",20053479,"C11",8810,1.6000000000000001E-3,58112.6,87168.9,null,null,null,null,"x",null,null,null,null,null,null,null,null,null,null,null,null,"C","2022-10-01","9999-12-31",1,"LE Sheriff Cadet",20055076,"GRD71",7720,1.55E-2,60000,60000,88024,"POPS TCSO",{"$f":"_xlfn.XLOOKUP(job_titles17[[#This Row],[Extended object ID]],O:O,P:P)","v":{"$error":"#N/A"}}]
["C","2017-06-01","9999-12-31",1,"Pur Contract Compliance Director",20052076,"C23",8810,1.6000000000000001E-3,121718.94,200836.25,null,null,null,null,"x",null,null,null,null,null,null,null,null,null,null,null,null,"C","2021-10-02","9999-12-31",1,"Learning & Development Coordinator Sr",20054458,"C14",8810,1.6000000000000001E-3,66183.97,105894.35,88016,"HUMAN RESOURCES",{"$f":"_xlfn.XLOOKUP(job_titles17[[#This Row],[Extended object ID]],O:O,P:P)","v":{"$error":"#N/A"}}]
["C","2018-09-01","9999-12-31",1,"Pur Contract Compliance Monitor",20052751,"C10",8810,1.6000000000000001E-3,55877.5,82698.7,null,null,null,null,"x",null,null,null,null,null,null,null,null,null,null,null,null,"C","2013-01-29","9999-12-31",1,"Leave Coordinator",20050176,"C10",8810,1.6000000000000001E-3,55877.5,82698.7,88016,"HUMAN RESOURCES",{"$f":"_xlfn.XLOOKUP(job_titles17[[#This Row],[Extended object ID]],O:O,P:P)","v":{"$error":"#N/A"}}]
["C","2017-07-28","9999-12-31",1,"Pur Contract Compliance Officer",20052151,"C16",8810,1.6000000000000001E-3,75776.03,121241.65,null,null,null,null,"x",null,null,null,null,null,null,null,null,null,null,null,null,"C","2020-06-09","9999-12-31",1,"Legal Director",20053726,"C24",8810,1.6000000000000001E-3,130239.35,214894.92,88014,"MANAGEMENT",{"$f":"_xlfn.XLOOKUP(job_titles17[[#This Row],[Extended object ID]],O:O,P:P)","v":{"$error":"#N/A"}}]
["C","2017-12-01","9999-12-31",1,"Pur HUB Program Director",20052376,"C21",8810,1.6000000000000001E-3,106310.9,175412.99,null,null,null,null,"x",null,null,null,null,null,null,null,null,null,null,null,null,"C","1950-01-01","9999-12-31",1,"Legal Secretary",20000089,"C07",8810,1.6000000000000001E-3,50398.3,68037.710000000006,88004,"ADMINISTRATIVE SUPP",{"$f":"_xlfn.XLOOKUP(job_titles17[[#This Row],[Extended object ID]],O:O,P:P)","v":{"$error":"#N/A"}}]
["C","1950-01-01","9999-12-31",1,"Pur HUB Specialist",20000596,"C10",8810,1.6000000000000001E-3,55877.5,82698.7,null,null,null,null,"x",null,null,null,null,null,null,null,null,null,null,null,null,"C","1950-01-01","9999-12-31",1,"Legal Secretary Sr",20000090,"C08",8810,1.6000000000000001E-3,52162.239999999998,75635.25,88004,"ADMINISTRATIVE SUPP",{"$f":"_xlfn.XLOOKUP(job_titles17[[#This Row],[Extended object ID]],O:O,P:P)","v":{"$error":"#N/A"}}]
["C","2017-11-01","9999-12-31",1,"Pur Operations & Procurement Director",20052276,"C24",8810,1.6000000000000001E-3,130239.35,214894.92,null,null,null,null,"x",null,null,null,null,null,null,null,null,null,null,null,null,"C","2023-12-19","9999-12-31",1,"Legal Secretary Sr Succession",20055876,"C08",null,null,52162.239999999998,75635.25,88004,"ADMINISTRATIVE SUPP",{"$f":"_xlfn.XLOOKUP(job_titles17[[#This Row],[Extended object ID]],O:O,P:P)","v":{"$error":"#N/A"}}]
["C","2019-09-10","9999-12-31",1,"Pur Operations Consultant",20053276,"C20",8810,1.6000000000000001E-3,99345.18,158952.29,null,null,null,null,"x",null,null,null,null,null,null,null,null,null,null,null,null,"C","1950-01-01","9999-12-31",1,"Legal Services Program Mgr",20000280,"C15",8810,1.6000000000000001E-3,70819.7,113311.53,88014,"MANAGEMENT",{"$f":"_xlfn.XLOOKUP(job_titles17[[#This Row],[Extended object ID]],O:O,P:P)","v":{"$error":"#N/A"}}]
["C","2020-10-01","9999-12-31",1,"Pur Operations Program Coordinator",20053876,"C15",8810,1.6000000000000001E-3,70819.7,113311.53,null,null,null,null,"x",null,null,null,null,null,null,null,null,null,null,null,null,"C","1950-01-01","9999-12-31",1,"Licensed Vocational Nurse",20000051,"C09",8832,1.9E-3,53987.92,78282.490000000005,88003,"MEDICAL",{"$f":"_xlfn.XLOOKUP(job_titles17[[#This Row],[Extended object ID]],O:O,P:P)","v":{"$error":"#N/A"}}]
["C","2020-03-09","9999-12-31",1,"Pur Operations Project Coordinator I",20053651,"C13",8810,1.6000000000000001E-3,62854.59,100567.34,null,null,null,null,"x",null,null,null,null,null,null,null,null,null,null,null,null,"C","2015-10-01","9999-12-31",1,"Life Safety Manager",20051160,"C16",8810,1.6000000000000001E-3,75776.03,121241.65,88014,"MANAGEMENT",{"$f":"_xlfn.XLOOKUP(job_titles17[[#This Row],[Extended object ID]],O:O,P:P)","v":{"$error":"#N/A"}}]
["C","2020-12-15","9999-12-31",1,"Pur Operations Project Coordinator II",20053952,"C15",8810,1.6000000000000001E-3,70819.7,113311.53,null,null,null,null,"x",null,null,null,null,null,null,null,null,null,null,null,null,"C","1950-01-01","9999-12-31",1,"Locksmith",20000046,"C08",9015,1.8800000000000001E-2,52162.239999999998,75635.25,88002,"SKILLED TRADES",{"$f":"_xlfn.XLOOKUP(job_titles17[[#This Row],[Extended object ID]],O:O,P:P)","v":{"$error":"#N/A"}}]
["C","2019-01-16","9999-12-31",1,"Pur Operations Project Manager I",20052951,"C18",8810,1.6000000000000001E-3,86761.41,138818.25,null,null,null,null,"x",null,null,null,null,null,null,null,null,null,null,null,null,"C","2012-10-01","9999-12-31",1,"Long Range Planning Mgr",20050082,"C17",8810,1.6000000000000001E-3,81074.789999999994,129719.67,88014,"MANAGEMENT",{"$f":"_xlfn.XLOOKUP(job_titles17[[#This Row],[Extended object ID]],O:O,P:P)","v":{"$error":"#N/A"}}]
["C","2019-11-01","9999-12-31",1,"Pur Operations Specialist I",20053480,"C09",8810,1.6000000000000001E-3,53987.92,78282.490000000005,null,null,null,null,"x",null,null,null,null,null,null,null,null,null,null,null,null,"C","1950-01-01","9999-12-31",1,"Mailroom Services Asst",20000106,"C02",8810,1.6000000000000001E-3,43264,56243.199999999997,88004,"ADMINISTRATIVE SUPP",{"$f":"_xlfn.XLOOKUP(job_titles17[[#This Row],[Extended object ID]],O:O,P:P)","v":{"$error":"#N/A"}}]
["C","2020-12-15","9999-12-31",1,"Pur Operations Specialist II",20053951,"C12",8810,1.6000000000000001E-3,60437.1,90655.66,null,null,null,null,"x",null,null,null,null,null,null,null,null,null,null,null,null,"C","1950-01-01","9999-12-31",1,"Mailroom Services Asst Sr",20000107,"C03",8810,1.6000000000000001E-3,44561.919999999998,57930.5,88004,"ADMINISTRATIVE SUPP",{"$f":"_xlfn.XLOOKUP(job_titles17[[#This Row],[Extended object ID]],O:O,P:P)","v":{"$error":"#N/A"}}]
["C","2019-11-01","9999-12-31",1,"Pur Procurement Specialist I",20053481,"C10",8810,1.6000000000000001E-3,55877.5,82698.7,null,null,null,null,"x",null,null,null,null,null,null,null,null,null,null,null,null,"C","1950-01-01","9999-12-31",1,"Major",20000217,"C22",7720,1.55E-2,113755.98,187697.37,88012,"PUBLIC SAF/EMG MGMT",{"$f":"_xlfn.XLOOKUP(job_titles17[[#This Row],[Extended object ID]],O:O,P:P)","v":"x"}]
["C","2019-11-01","9999-12-31",1,"Pur Procurement Specialist II",20053482,"C13",8810,1.6000000000000001E-3,62854.59,100567.34,null,null,null,null,"x",null,null,null,null,null,null,null,null,null,null,null,null,"C",-36522,"9999-12-31",1,"Major Succession",20052676,"GRD31",7720,1.55E-2,102222.02,163555.18,88012,"PUBLIC SAF/EMG MGMT",{"$f":"_xlfn.XLOOKUP(job_titles17[[#This Row],[Extended object ID]],O:O,P:P)","v":"x"}]
["C","2019-11-01","9999-12-31",1,"Pur Procurement Specialist III",20053483,"C16",8810,1.6000000000000001E-3,75776.03,121241.65,null,null,null,null,"x",null,null,null,null,null,null,null,null,null,null,null,null,"C","2013-10-01","9999-12-31",1,"Marketable Skills Program Mgr",20050452,"C13",7720,1.55E-2,62854.59,100567.34,88002,"SKILLED TRADES",{"$f":"_xlfn.XLOOKUP(job_titles17[[#This Row],[Extended object ID]],O:O,P:P)","v":{"$error":"#N/A"}}]
["C","2019-11-01","9999-12-31",1,"Pur Project Manager II",20053477,"C19",8810,1.6000000000000001E-3,92836.33,148538.12,null,null,null,null,"x",null,null,null,null,null,null,null,null,null,null,null,null,"C","1950-01-01","9999-12-31",1,"ME Chief",20000079,"NCF01",8832,1.9E-3,15080,500000,88003,"MEDICAL",{"$f":"_xlfn.XLOOKUP(job_titles17[[#This Row],[Extended object ID]],O:O,P:P)","v":"x"}]
["C","2019-11-01","9999-12-31",1,"Pur Senior Procurement Specialist",20053484,"C19",8810,1.6000000000000001E-3,92836.33,148538.12,null,null,null,null,"x",null,null,null,null,null,null,null,null,null,null,null,null,"C","2019-10-29","9999-12-31",1,"ME Chief Operations Officer",20053476,"C21",8810,1.6000000000000001E-3,106310.9,175412.99,88014,"MANAGEMENT",{"$f":"_xlfn.XLOOKUP(job_titles17[[#This Row],[Extended object ID]],O:O,P:P)","v":{"$error":"#N/A"}}]
["C","1950-01-01","9999-12-31",1,"Pur Support Specialist I",20000590,"C03",8810,1.6000000000000001E-3,44561.919999999998,57930.5,null,null,null,null,"x",null,null,null,null,null,null,null,null,null,null,null,null,"C","2019-09-30","9999-12-31",1,"ME Deputy",20053284,"NCF01",8833,4.7999999999999996E-3,15080,500000,88003,"MEDICAL",{"$f":"_xlfn.XLOOKUP(job_titles17[[#This Row],[Extended object ID]],O:O,P:P)","v":{"$error":"#N/A"}}]
["C","1950-01-01","9999-12-31",1,"Pur Support Specialist II",20000591,"C05",8810,1.6000000000000001E-3,47275.74,61458.46,null,null,null,null,"x",null,null,null,null,null,null,null,null,null,null,null,null,"C","1950-01-01","9999-12-31",1,"ME Deputy Chief",20000078,"NCF01",8832,1.9E-3,15080,500000,88003,"MEDICAL",{"$f":"_xlfn.XLOOKUP(job_titles17[[#This Row],[Extended object ID]],O:O,P:P)","v":{"$error":"#N/A"}}]
["C","1950-01-01","9999-12-31",1,"Pur Support Specialist III",20000592,"C07",8810,1.6000000000000001E-3,50398.3,68037.710000000006,null,null,null,null,"x",null,null,null,null,null,null,null,null,null,null,null,null,"C","1950-01-01","9999-12-31",1,"ME Investigator Chief",20000071,"C16",8832,1.9E-3,75776.03,121241.65,88003,"MEDICAL",{"$f":"_xlfn.XLOOKUP(job_titles17[[#This Row],[Extended object ID]],O:O,P:P)","v":{"$error":"#N/A"}}]
["C","2022-05-03","9999-12-31",1,"Racial and Social Justice Officer",20054851,"C18",8810,1.6000000000000001E-3,86761.41,138818.25,null,null,null,null,"x",null,null,null,null,null,null,null,null,null,null,null,null,"C","2015-07-14","9999-12-31",1,"ME Investigator Deputy Chief",20051077,"C15",7720,1.55E-2,70819.7,113311.53,88003,"MEDICAL",{"$f":"_xlfn.XLOOKUP(job_titles17[[#This Row],[Extended object ID]],O:O,P:P)","v":{"$error":"#N/A"}}]
["C","2012-10-01","9999-12-31",1,"Real Estate Div Mgr",20050083,"C17",8601,1.8E-3,81074.789999999994,129719.67,null,null,null,null,"x",null,null,null,null,null,null,null,null,null,null,null,null,"C","1950-01-01","9999-12-31",1,"ME Investigator I",20000068,"C11",8832,1.9E-3,58112.6,87168.9,88003,"MEDICAL",{"$f":"_xlfn.XLOOKUP(job_titles17[[#This Row],[Extended object ID]],O:O,P:P)","v":{"$error":"#N/A"}}]
["C","1950-01-01","9999-12-31",1,"Recording Specialist I",20000108,"C05",8810,1.6000000000000001E-3,47275.74,61458.46,null,null,null,null,"x",null,null,null,null,null,null,null,null,null,null,null,null,"C","1950-01-01","9999-12-31",1,"ME Investigator II",20000069,"C13",8832,1.9E-3,62854.59,100567.34,88003,"MEDICAL",{"$f":"_xlfn.XLOOKUP(job_titles17[[#This Row],[Extended object ID]],O:O,P:P)","v":{"$error":"#N/A"}}]
["C","1950-01-01","9999-12-31",1,"Recording Specialist II",20000109,"C07",8810,1.6000000000000001E-3,50398.3,68037.710000000006,null,null,null,null,"x",null,null,null,null,null,null,null,null,null,null,null,null,"C","1950-01-01","9999-12-31",1,"Mechanic Automotive",20000030,"C08",8391,1.2800000000000001E-2,52162.239999999998,75635.25,88002,"SKILLED TRADES",{"$f":"_xlfn.XLOOKUP(job_titles17[[#This Row],[Extended object ID]],O:O,P:P)","v":{"$error":"#N/A"}}]
["C","1950-01-01","9999-12-31",1,"Recording Specialist Sr",20000110,"C08",8810,1.6000000000000001E-3,52162.239999999998,75635.25,null,null,null,null,"x",null,null,null,null,null,null,null,null,null,null,null,null,"C","1950-01-01","9999-12-31",1,"Mechanic Equipment",20000031,"C09",8391,1.2800000000000001E-2,53987.92,78282.490000000005,88002,"SKILLED TRADES",{"$f":"_xlfn.XLOOKUP(job_titles17[[#This Row],[Extended object ID]],O:O,P:P)","v":{"$error":"#N/A"}}]
["C","1950-01-01","9999-12-31",1,"Records Analyst",20000366,"C10",8810,1.6000000000000001E-3,55877.5,82698.7,null,null,null,null,"x",null,null,null,null,null,null,null,null,null,null,null,null,"C","1950-01-01","9999-12-31",1,"Mechanic Lead",20000619,"C10",8391,1.2800000000000001E-2,55877.5,82698.7,88002,"SKILLED TRADES",{"$f":"_xlfn.XLOOKUP(job_titles17[[#This Row],[Extended object ID]],O:O,P:P)","v":{"$error":"#N/A"}}]
["C","1950-01-01","9999-12-31",1,"Records Analyst Assoc",20000364,"C07",8810,1.6000000000000001E-3,50398.3,68037.710000000006,null,null,null,null,"x",null,null,null,null,null,null,null,null,null,null,null,null,"C","1950-01-01","9999-12-31",1,"Mechanic Supervisor",20000032,"C11",8391,1.2800000000000001E-2,58112.6,87168.9,88002,"SKILLED TRADES",{"$f":"_xlfn.XLOOKUP(job_titles17[[#This Row],[Extended object ID]],O:O,P:P)","v":{"$error":"#N/A"}}]
["C","1950-01-01","9999-12-31",1,"Records Analyst Asst",20000365,"C05",8810,1.6000000000000001E-3,47275.74,61458.46,null,null,null,null,"x",null,null,null,null,null,null,null,null,null,null,null,null,"C","1950-01-01","9999-12-31",1,"Media Operations Mgr",20000498,"C16",8810,1.6000000000000001E-3,75776.03,121241.65,88021,"INFORMATION TECH",{"$f":"_xlfn.XLOOKUP(job_titles17[[#This Row],[Extended object ID]],O:O,P:P)","v":{"$error":"#N/A"}}]
["C","1950-01-01","9999-12-31",1,"Records Analyst Supv",20000367,"C12",8810,1.6000000000000001E-3,60437.1,90655.66,null,null,null,null,"x",null,null,null,null,null,null,null,null,null,null,null,null,"C","1950-01-01","9999-12-31",1,"Media Producer",20000403,"C10",8810,1.6000000000000001E-3,55877.5,82698.7,88019,"PUBLIC INFORMATION",{"$f":"_xlfn.XLOOKUP(job_titles17[[#This Row],[Extended object ID]],O:O,P:P)","v":{"$error":"#N/A"}}]
["C","2020-09-15","9999-12-31",1,"Records Management Officer",20053827,"C17",8810,1.6000000000000001E-3,81074.789999999994,129719.67,null,null,null,null,"x",null,null,null,null,null,null,null,null,null,null,null,null,"C","1950-01-01","9999-12-31",1,"Medical Assistant",20000050,"C05",8832,1.9E-3,47275.74,61458.46,88003,"MEDICAL",{"$f":"_xlfn.XLOOKUP(job_titles17[[#This Row],[Extended object ID]],O:O,P:P)","v":{"$error":"#N/A"}}]
["C","2022-04-12","9999-12-31",1,"Recruiter I",20054801,"C10",8810,1.6000000000000001E-3,55877.5,82698.7,null,null,null,null,"x",null,null,null,null,null,null,null,null,null,null,null,null,"C","2020-02-25","9999-12-31",1,"Medical Assistant Sr",20053626,"C06",8832,1.9E-3,48694.01,65736.92,88003,"MEDICAL",{"$f":"_xlfn.XLOOKUP(job_titles17[[#This Row],[Extended object ID]],O:O,P:P)","v":{"$error":"#N/A"}}]
["C","2022-04-12","9999-12-31",1,"Recruiter II",20054802,"C12",8810,1.6000000000000001E-3,60437.1,90655.66,null,null,null,null,"x",null,null,null,null,null,null,null,null,null,null,null,null,"C","1950-01-01","9999-12-31",1,"Medical Services Dir",20000297,"C20",8832,1.9E-3,99345.18,158952.29,88014,"MANAGEMENT",{"$f":"_xlfn.XLOOKUP(job_titles17[[#This Row],[Extended object ID]],O:O,P:P)","v":{"$error":"#N/A"}}]
["C","1950-01-01","9999-12-31",1,"Registered Nurse Charge Nurse",20000054,"C16",8832,1.9E-3,75776.03,121241.65,null,null,null,null,"x",null,null,null,null,null,null,null,null,null,null,null,null,"C","1950-01-01","9999-12-31",1,"Medical Supv Chief",20000234,"C18",8810,1.6000000000000001E-3,86761.41,138818.25,88012,"PUBLIC SAF/EMG MGMT",{"$f":"_xlfn.XLOOKUP(job_titles17[[#This Row],[Extended object ID]],O:O,P:P)","v":{"$error":"#N/A"}}]
["C","1950-01-01","9999-12-31",1,"Registered Nurse I",20000052,"C13",8832,1.9E-3,62854.59,100567.34,null,null,null,null,"x",null,null,null,null,null,null,null,null,null,null,null,null,"C","1950-01-01","9999-12-31",1,"Mover",20000026,"C02",7380,2.9700000000000001E-2,43264,56243.199999999997,88001,"MAINTENANCE",{"$f":"_xlfn.XLOOKUP(job_titles17[[#This Row],[Extended object ID]],O:O,P:P)","v":{"$error":"#N/A"}}]
["C","1950-01-01","9999-12-31",1,"Registered Nurse II",20000053,"C14",8832,1.9E-3,66183.97,105894.35,null,null,null,null,"x",null,null,null,null,null,null,null,null,null,null,null,null,"C","2019-09-30","9999-12-31",1,"Multimedia Information Specialist",20053286,"C09",8810,1.6000000000000001E-3,53987.92,78282.490000000005,88012,"PUBLIC SAF/EMG MGMT",{"$f":"_xlfn.XLOOKUP(job_titles17[[#This Row],[Extended object ID]],O:O,P:P)","v":{"$error":"#N/A"}}]
["C","1950-01-01","9999-12-31",1,"Reprographics Production Tech",20000399,"C04",4299,1.24E-2,45898.78,59668.41,null,null,null,null,"x",null,null,null,null,null,null,null,null,null,null,null,null,"C","1950-01-01","9999-12-31",1,"Natural Resources Env Qlty Div Dir",20000311,"C19",8810,1.6000000000000001E-3,92836.33,148538.12,88014,"MANAGEMENT",{"$f":"_xlfn.XLOOKUP(job_titles17[[#This Row],[Extended object ID]],O:O,P:P)","v":{"$error":"#N/A"}}]
["C","2022-10-02","9999-12-31",1,"Reprographics Production Tech Lead",20055278,"C05",4299,1.24E-2,47275.74,61458.46,null,null,null,null,"x",null,null,null,null,null,null,null,null,null,null,null,null,"C","1950-01-01","9999-12-31",1,"Natural Resources Program Mgr",20000356,"C16",8810,1.6000000000000001E-3,75776.03,121241.65,88015,"PROFESSIONAL SUPP",{"$f":"_xlfn.XLOOKUP(job_titles17[[#This Row],[Extended object ID]],O:O,P:P)","v":{"$error":"#N/A"}}]
["C","1950-01-01","9999-12-31",1,"Reprographics Supervisor",20000400,"C07",4299,1.24E-2,50398.3,68037.710000000006,null,null,null,null,"x",null,null,null,null,null,null,null,null,null,null,null,null,"C","2024-01-09","9999-12-31",1,"Natural Resources Program Mgr Succession",20055901,"C16",8810,1.6000000000000001E-3,75776.03,121241.65,88015,"PROFESSIONAL SUPP",{"$f":"_xlfn.XLOOKUP(job_titles17[[#This Row],[Extended object ID]],O:O,P:P)","v":{"$error":"#N/A"}}]
["C","2021-10-02","9999-12-31",1,"Retirement Specialist",20054501,"C10",8810,1.6000000000000001E-3,55877.5,82698.7,null,null,null,null,"x",null,null,null,null,null,null,null,null,null,null,null,null,"C","1950-01-01","9999-12-31",1,"Natural Resources Specialist",20000352,"C10",9102,2.0799999999999999E-2,55877.5,82698.7,88015,"PROFESSIONAL SUPP",{"$f":"_xlfn.XLOOKUP(job_titles17[[#This Row],[Extended object ID]],O:O,P:P)","v":{"$error":"#N/A"}}]
["C","1950-01-01","9999-12-31",1,"Right Of Way Agent",20000362,"C12",8601,1.8E-3,60437.1,90655.66,null,null,null,null,"x",null,null,null,null,null,null,null,null,null,null,null,null,"C","2018-10-02","9999-12-31",1,"Natural Resources Specialist Senior",20052829,"C11",9102,2.0799999999999999E-2,58112.6,87168.9,88015,"PROFESSIONAL SUPP",{"$f":"_xlfn.XLOOKUP(job_titles17[[#This Row],[Extended object ID]],O:O,P:P)","v":{"$error":"#N/A"}}]
["C","2022-12-06","9999-12-31",1,"Right Of Way Agent Succession",20055376,"C12",null,null,60437.1,90655.66,null,null,null,null,"x",null,null,null,null,null,null,null,null,null,null,null,null,"C","2013-06-18","9999-12-31",1,"Natural Resources Supervisor",20050277,"C13",8810,1.6000000000000001E-3,62854.59,100567.34,88015,"PROFESSIONAL SUPP",{"$f":"_xlfn.XLOOKUP(job_titles17[[#This Row],[Extended object ID]],O:O,P:P)","v":{"$error":"#N/A"}}]
["C","2022-10-25","9999-12-31",1,"Risk Management Supervisor",20055201,"C16",8810,1.6000000000000001E-3,75776.03,121241.65,null,null,null,null,"x",null,null,null,null,null,null,null,null,null,null,null,null,"C","1950-01-01","9999-12-31",1,"Natural Resources Tech",20000351,"C07",9102,2.0799999999999999E-2,50398.3,68037.710000000006,88015,"PROFESSIONAL SUPP",{"$f":"_xlfn.XLOOKUP(job_titles17[[#This Row],[Extended object ID]],O:O,P:P)","v":{"$error":"#N/A"}}]
["C","2021-10-02","9999-12-31",1,"Risk Manager",20054457,"C18",8810,1.6000000000000001E-3,86761.41,138818.25,null,null,null,null,"x",null,null,null,null,null,null,null,null,null,null,null,null,"C","1950-01-01","9999-12-31",1,"Network Architect",20000482,"C19",8810,1.6000000000000001E-3,92836.33,148538.12,88021,"INFORMATION TECH",{"$f":"_xlfn.XLOOKUP(job_titles17[[#This Row],[Extended object ID]],O:O,P:P)","v":{"$error":"#N/A"}}]
["C","2019-09-30","9999-12-31",1,"Risk Safety Analyst I",20053278,"C10",8810,1.6000000000000001E-3,55877.5,82698.7,null,null,null,null,"x",null,null,null,null,null,null,null,null,null,null,null,null,"C","1950-01-01","9999-12-31",1,"Network Engineer",20000485,"C14",8810,1.6000000000000001E-3,66183.97,105894.35,88021,"INFORMATION TECH",{"$f":"_xlfn.XLOOKUP(job_titles17[[#This Row],[Extended object ID]],O:O,P:P)","v":{"$error":"#N/A"}}]
["C","2019-09-30","9999-12-31",1,"Risk Safety Analyst II",20053279,"C12",8810,1.6000000000000001E-3,60437.1,90655.66,null,null,null,null,"x",null,null,null,null,null,null,null,null,null,null,null,null,"C","1950-01-01","9999-12-31",1,"Network Engineer Sr",20000483,"C17",8810,1.6000000000000001E-3,81074.789999999994,129719.67,88021,"INFORMATION TECH",{"$f":"_xlfn.XLOOKUP(job_titles17[[#This Row],[Extended object ID]],O:O,P:P)","v":{"$error":"#N/A"}}]
["C","2019-09-30","9999-12-31",1,"Risk Safety Analyst Sr",20053280,"C14",8810,1.6000000000000001E-3,66183.97,105894.35,null,null,null,null,"x",null,null,null,null,null,null,null,null,null,null,null,null,"C","1950-01-01","9999-12-31",1,"Non Employee",20000602,null,null,null,null,null,0,"0",{"$f":"_xlfn.XLOOKUP(job_titles17[[#This Row],[Extended object ID]],O:O,P:P)","v":"x"}]
["C","1950-01-01","9999-12-31",1,"Risk Safety Specialist I",20000388,"C10",8810,1.6000000000000001E-3,55877.5,82698.7,null,null,null,null,"x",null,null,null,null,null,null,null,null,null,null,null,null,"C","1950-01-01","9999-12-31",1,"Occupational Health Safety Engineer",20000391,"C16",8810,1.6000000000000001E-3,75776.03,121241.65,88016,"HUMAN RESOURCES",{"$f":"_xlfn.XLOOKUP(job_titles17[[#This Row],[Extended object ID]],O:O,P:P)","v":{"$error":"#N/A"}}]
["C","1950-01-01","9999-12-31",1,"Risk Safety Specialist II",20000389,"C12",8810,1.6000000000000001E-3,60437.1,90655.66,null,null,null,null,"x",null,null,null,null,null,null,null,null,null,null,null,null,"C","2016-06-21","9999-12-31",1,"Off-Duty Facilitator",20051551,"C07",8810,1.6000000000000001E-3,50398.3,68037.710000000006,88004,"ADMINISTRATIVE SUPP",{"$f":"_xlfn.XLOOKUP(job_titles17[[#This Row],[Extended object ID]],O:O,P:P)","v":{"$error":"#N/A"}}]
["C","1950-01-01","9999-12-31",1,"Road Maintenance Mgr",20000020,"C15",5606,5.5999999999999999E-3,70819.7,113311.53,null,null,null,null,"x",null,null,null,null,null,null,null,null,null,null,null,null,"C","1950-01-01","9999-12-31",1,"Office Asst",20000093,"C02",8810,1.6000000000000001E-3,43264,56243.199999999997,88004,"ADMINISTRATIVE SUPP",{"$f":"_xlfn.XLOOKUP(job_titles17[[#This Row],[Extended object ID]],O:O,P:P)","v":{"$error":"#N/A"}}]
["C","1950-01-01","9999-12-31",1,"Road Maintenance Supv",20000019,"C13",5506,4.3700000000000003E-2,62854.59,100567.34,null,null,null,null,"x",null,null,null,null,null,null,null,null,null,null,null,null,"C","1900-01-01","9999-12-31",1,"Office Mgr",20000278,"C10",8810,1.6000000000000001E-3,55877.5,82698.7,88014,"MANAGEMENT",{"$f":"_xlfn.XLOOKUP(job_titles17[[#This Row],[Extended object ID]],O:O,P:P)","v":{"$error":"#N/A"}}]
["C","1950-01-01","9999-12-31",1,"Road Maintenance Worker I",20000017,"C04",5506,4.3700000000000003E-2,45898.78,59668.41,null,null,null,null,"x",null,null,null,null,null,null,null,null,null,null,null,null,"C","1950-01-01","9999-12-31",1,"Office Mgr Sr",20000279,"C13",8810,1.6000000000000001E-3,62854.59,100567.34,88014,"MANAGEMENT",{"$f":"_xlfn.XLOOKUP(job_titles17[[#This Row],[Extended object ID]],O:O,P:P)","v":{"$error":"#N/A"}}]
["C","2023-10-02","9999-12-31",1,"Road Maintenance Worker II",20055802,"C05",5506,4.3700000000000003E-2,47275.74,61458.46,null,null,null,null,"x",null,null,null,null,null,null,null,null,null,null,null,null,"C","2022-10-11","9999-12-31",1,"Office Mgr Sr Succession",20055126,"C13",8810,1.6000000000000001E-3,62854.59,100567.34,88014,"MANAGEMENT",{"$f":"_xlfn.XLOOKUP(job_titles17[[#This Row],[Extended object ID]],O:O,P:P)","v":{"$error":"#N/A"}}]
["C","2023-10-02","9999-12-31",1,"Road Maintenance Worker III",20055803,"C06",5506,4.3700000000000003E-2,48694.01,65736.92,null,null,null,null,"x",null,null,null,null,null,null,null,null,null,null,null,null,"C","1950-01-01","9999-12-31",1,"Office Specialist",20000094,"C04",8810,1.6000000000000001E-3,45898.78,59668.41,88004,"ADMINISTRATIVE SUPP",{"$f":"_xlfn.XLOOKUP(job_titles17[[#This Row],[Extended object ID]],O:O,P:P)","v":{"$error":"#N/A"}}]
["C","2019-10-01","9999-12-31",1,"Road Maintenance Worker Lead",20053401,"C07",5506,4.3700000000000003E-2,50398.3,68037.710000000006,null,null,null,null,"x",null,null,null,null,null,null,null,null,null,null,null,null,"C","1950-01-01","9999-12-31",1,"Office Specialist Sr",20000095,"C06",8810,1.6000000000000001E-3,48694.01,65736.92,88004,"ADMINISTRATIVE SUPP",{"$f":"_xlfn.XLOOKUP(job_titles17[[#This Row],[Extended object ID]],O:O,P:P)","v":{"$error":"#N/A"}}]
["C","1950-01-01","9999-12-31",1,"Road Maintenance Worker Sr (Signs)",20000018,"C05",5506,4.3700000000000003E-2,47275.74,61458.46,null,null,null,null,"x",null,null,null,null,null,null,null,null,null,null,null,null,"C","1950-01-01","9999-12-31",1,"Office Supv",20000102,"C08",8810,1.6000000000000001E-3,52162.239999999998,75635.25,88004,"ADMINISTRATIVE SUPP",{"$f":"_xlfn.XLOOKUP(job_titles17[[#This Row],[Extended object ID]],O:O,P:P)","v":{"$error":"#N/A"}}]
["C","2022-10-11","9999-12-31",1,"Road Maintenance Worker Trainee",20055151,"C02",5506,4.3700000000000003E-2,43264,56243.199999999997,null,null,null,null,"x",null,null,null,null,null,null,null,null,null,null,null,null,"C","1950-01-01","9999-12-31",1,"Operations Dir",20000232,"C21",8810,1.6000000000000001E-3,106310.9,175412.99,88012,"PUBLIC SAF/EMG MGMT",{"$f":"_xlfn.XLOOKUP(job_titles17[[#This Row],[Extended object ID]],O:O,P:P)","v":{"$error":"#N/A"}}]
["C","2018-03-06","9999-12-31",1,"Safety Specialist I",20052451,"C07",8810,1.6000000000000001E-3,50398.3,68037.710000000006,null,null,null,null,"x",null,null,null,null,null,null,null,null,null,null,null,null,"C","2017-03-21","9999-12-31",1,"Operations Director Sn",20051977,"GRD29",8810,1.6000000000000001E-3,89265.7,142825.07,88012,"PUBLIC SAF/EMG MGMT",{"$f":"_xlfn.XLOOKUP(job_titles17[[#This Row],[Extended object ID]],O:O,P:P)","v":"x"}]
["C","2017-10-01","9999-12-31",1,"Security Center Coordinator",20052280,"C06",8810,1.6000000000000001E-3,48694.01,65736.92,null,null,null,null,"x",null,null,null,null,null,null,null,null,null,null,null,null,"C","1950-01-01","9999-12-31",1,"Painter",20000041,"C05",9015,1.8800000000000001E-2,47275.74,61458.46,88002,"SKILLED TRADES",{"$f":"_xlfn.XLOOKUP(job_titles17[[#This Row],[Extended object ID]],O:O,P:P)","v":{"$error":"#N/A"}}]
["C","2016-11-29","9999-12-31",1,"Security Center Operator",20051801,"C04",8810,1.6000000000000001E-3,45898.78,59668.41,null,null,null,null,"x",null,null,null,null,null,null,null,null,null,null,null,null,"C","1950-01-01","9999-12-31",1,"Paralegal",20000091,"C09",8810,1.6000000000000001E-3,53987.92,78282.490000000005,88004,"ADMINISTRATIVE SUPP",{"$f":"_xlfn.XLOOKUP(job_titles17[[#This Row],[Extended object ID]],O:O,P:P)","v":{"$error":"#N/A"}}]
["C","2023-01-01","9999-12-31",1,"Security Center Supervisor",20055426,"C08",8810,1.6000000000000001E-3,52162.239999999998,75635.25,null,null,null,null,"x",null,null,null,null,null,null,null,null,null,null,null,null,"C","1950-01-01","9999-12-31",1,"Paralegal Sr",20000092,"C11",8810,1.6000000000000001E-3,58112.6,87168.9,88004,"ADMINISTRATIVE SUPP",{"$f":"_xlfn.XLOOKUP(job_titles17[[#This Row],[Extended object ID]],O:O,P:P)","v":{"$error":"#N/A"}}]
["C","1950-01-01","9999-12-31",1,"Security Coord",20000206,"C06",8810,1.6000000000000001E-3,48694.01,65736.92,null,null,null,null,"x",null,null,null,null,null,null,null,null,null,null,null,null,"C","2023-06-26","9999-12-31",1,"Paralegal Sr Succession",20055601,"C11",8810,1.6000000000000001E-3,58112.6,87168.9,88004,"ADMINISTRATIVE SUPP",{"$f":"_xlfn.XLOOKUP(job_titles17[[#This Row],[Extended object ID]],O:O,P:P)","v":{"$error":"#N/A"}}]
["C","2013-11-26","9999-12-31",1,"Security Manager",20050451,"C15",8810,1.6000000000000001E-3,70819.7,113311.53,null,null,null,null,"x",null,null,null,null,null,null,null,null,null,null,null,null,"C","2013-10-01","9999-12-31",1,"Park Forester",20050476,"C13",9102,2.0799999999999999E-2,62854.59,100567.34,88015,"PROFESSIONAL SUPP",{"$f":"_xlfn.XLOOKUP(job_titles17[[#This Row],[Extended object ID]],O:O,P:P)","v":{"$error":"#N/A"}}]
["C","2019-09-17","9999-12-31",1,"Senior Capital Analyst",20053351,"C18",8810,1.6000000000000001E-3,86761.41,138818.25,null,null,null,null,"x",null,null,null,null,null,null,null,null,null,null,null,null,"C","2019-09-30","9999-12-31",1,"Park Land Management Supervisor",20053291,"C12",9102,2.0799999999999999E-2,60437.1,90655.66,88015,"PROFESSIONAL SUPP",{"$f":"_xlfn.XLOOKUP(job_titles17[[#This Row],[Extended object ID]],O:O,P:P)","v":{"$error":"#N/A"}}]
["C","2021-10-02","9999-12-31",1,"Senior Recruiter",20054403,"C14",8810,1.6000000000000001E-3,66183.97,105894.35,null,null,null,null,"x",null,null,null,null,null,null,null,null,null,null,null,null,"C","2019-09-30","9999-12-31",1,"Park Land Management Technician",20053290,"C06",9102,2.0799999999999999E-2,48694.01,65736.92,88015,"PROFESSIONAL SUPP",{"$f":"_xlfn.XLOOKUP(job_titles17[[#This Row],[Extended object ID]],O:O,P:P)","v":{"$error":"#N/A"}}]
["C","2022-06-21","9999-12-31",1,"Sheriff Deputy-Facilities",20054927,"GRD84",7720,1.55E-2,62908.959999999999,62908.959999999999,null,null,null,null,"x",null,null,null,null,null,null,null,null,null,null,null,null,"C","2014-10-07","9999-12-31",1,"Park Land Manager",20050826,"C14",9102,2.0799999999999999E-2,66183.97,105894.35,88014,"MANAGEMENT",{"$f":"_xlfn.XLOOKUP(job_titles17[[#This Row],[Extended object ID]],O:O,P:P)","v":{"$error":"#N/A"}}]
["C","2019-03-12","9999-12-31",1,"Sheriff Fleet Services Coord",20053052,"C11",7720,1.55E-2,58112.6,87168.9,null,null,null,null,"x",null,null,null,null,null,null,null,null,null,null,null,null,"C","2023-09-19","9999-12-31",1,"Park Land Resource Manager",20055701,"C16",9102,2.0799999999999999E-2,75776.03,121241.65,88014,"MANAGEMENT",{"$f":"_xlfn.XLOOKUP(job_titles17[[#This Row],[Extended object ID]],O:O,P:P)","v":{"$error":"#N/A"}}]
["C","1950-01-01","9999-12-31",1,"Shipping Receiving Supply Asst",20000027,"C03",9015,1.8800000000000001E-2,44561.919999999998,57930.5,null,null,null,null,"x",null,null,null,null,null,null,null,null,null,null,null,null,"C","2021-10-19","9999-12-31",1,"Park Maintenance Foreman",20054476,"C06",9102,2.0799999999999999E-2,48694.01,65736.92,88001,"MAINTENANCE",{"$f":"_xlfn.XLOOKUP(job_titles17[[#This Row],[Extended object ID]],O:O,P:P)","v":{"$error":"#N/A"}}]
["C","1950-01-01","9999-12-31",1,"Small Equipment Tech",20000615,"C04",9102,2.0799999999999999E-2,45898.78,59668.41,null,null,null,null,"x",null,null,null,null,null,null,null,null,null,null,null,null,"C","1950-01-01","9999-12-31",1,"Park Maintenance Worker",20000013,"C04",9102,2.0799999999999999E-2,45898.78,59668.41,88001,"MAINTENANCE",{"$f":"_xlfn.XLOOKUP(job_titles17[[#This Row],[Extended object ID]],O:O,P:P)","v":{"$error":"#N/A"}}]
["C","1950-01-01","9999-12-31",1,"Social Services Aide",20000192,"C02",8810,1.6000000000000001E-3,43264,56243.199999999997,null,null,null,null,"x",null,null,null,null,null,null,null,null,null,null,null,null,"C","1950-01-01","9999-12-31",1,"Park Maintenance Worker Sr",20000014,"C05",9102,2.0799999999999999E-2,47275.74,61458.46,88001,"MAINTENANCE",{"$f":"_xlfn.XLOOKUP(job_titles17[[#This Row],[Extended object ID]],O:O,P:P)","v":{"$error":"#N/A"}}]
["C","1950-01-01","9999-12-31",1,"Social Services Asst",20000193,"C03",8810,1.6000000000000001E-3,44561.919999999998,57930.5,null,null,null,null,"x",null,null,null,null,null,null,null,null,null,null,null,null,"C","2019-02-19","9999-12-31",1,"Park Operations Specialist",20052976,"C03",8810,1.6000000000000001E-3,44561.919999999998,57930.5,88001,"MAINTENANCE",{"$f":"_xlfn.XLOOKUP(job_titles17[[#This Row],[Extended object ID]],O:O,P:P)","v":{"$error":"#N/A"}}]
["C","1950-01-01","9999-12-31",1,"Social Services Dir",20000298,"C16",8810,1.6000000000000001E-3,75776.03,121241.65,null,null,null,null,"x",null,null,null,null,null,null,null,null,null,null,null,null,"C","1950-01-01","9999-12-31",1,"Park Ranger",20000532,"GRD60",9102,2.0799999999999999E-2,64600,64600,88025,"POPS NON-TCSO",{"$f":"_xlfn.XLOOKUP(job_titles17[[#This Row],[Extended object ID]],O:O,P:P)","v":{"$error":"#N/A"}}]
["C","2021-12-21","9999-12-31",1,"Social Services JV Supervision Ofr I",20054601,"C05",7720,1.55E-2,47275.74,61458.46,null,null,null,null,"x",null,null,null,null,null,null,null,null,null,null,null,null,"C","2018-05-01","9999-12-31",1,"Park Ranger Cadet",20052551,"GRD59",7720,1.55E-2,57000,57000,88012,"PUBLIC SAF/EMG MGMT",{"$f":"_xlfn.XLOOKUP(job_titles17[[#This Row],[Extended object ID]],O:O,P:P)","v":{"$error":"#N/A"}}]
["C","2021-12-21","9999-12-31",1,"Social Services JV Supervision Ofr II",20054602,"C06",7720,1.55E-2,48694.01,65736.92,null,null,null,null,"x",null,null,null,null,null,null,null,null,null,null,null,null,"C","1950-01-01","9999-12-31",1,"Park Ranger Chief",20000538,"GRD70",7720,1.55E-2,0,0,88025,"POPS NON-TCSO",{"$f":"_xlfn.XLOOKUP(job_titles17[[#This Row],[Extended object ID]],O:O,P:P)","v":{"$error":"#N/A"}}]
["C","1950-01-01","9999-12-31",1,"Social Services Mgr",20000200,"C13",8810,1.6000000000000001E-3,62854.59,100567.34,null,null,null,null,"x",null,null,null,null,null,null,null,null,null,null,null,null,"C","2021-12-07","9999-12-31",1,"Park Ranger Corporal",20054577,"GRD65",7720,1.55E-2,79983.070000000007,79983.070000000007,88025,"POPS NON-TCSO",{"$f":"_xlfn.XLOOKUP(job_titles17[[#This Row],[Extended object ID]],O:O,P:P)","v":{"$error":"#N/A"}}]
["C","1950-01-01","9999-12-31",1,"Social Services Program Administrator",20000201,"C14",8810,1.6000000000000001E-3,66183.97,105894.35,null,null,null,null,"x",null,null,null,null,null,null,null,null,null,null,null,null,"C","2021-09-21","9999-12-31",1,"Park Ranger Investigator",20054277,"GRD65",7720,1.55E-2,79983.070000000007,79983.070000000007,88025,"POPS NON-TCSO",{"$f":"_xlfn.XLOOKUP(job_titles17[[#This Row],[Extended object ID]],O:O,P:P)","v":{"$error":"#N/A"}}]
["C","1950-01-01","9999-12-31",1,"Social Services Program Coord",20000199,"C11",8810,1.6000000000000001E-3,58112.6,87168.9,null,null,null,null,"x",null,null,null,null,null,null,null,null,null,null,null,null,"C","2022-12-13","9999-12-31",1,"Park Ranger Lieutenant",20055378,"GRD68",7720,1.55E-2,91089.42,91089.42,88025,"POPS NON-TCSO",{"$f":"_xlfn.XLOOKUP(job_titles17[[#This Row],[Extended object ID]],O:O,P:P)","v":{"$error":"#N/A"}}]
["C","1950-01-01","9999-12-31",1,"Social Services Program Specialist",20000198,"C08",8810,1.6000000000000001E-3,52162.239999999998,75635.25,null,null,null,null,"x",null,null,null,null,null,null,null,null,null,null,null,null,"C","1950-01-01","9999-12-31",1,"Park Ranger Sr",20000535,"GRD62",9102,2.0799999999999999E-2,69163.91,69163.91,88025,"POPS NON-TCSO",{"$f":"_xlfn.XLOOKUP(job_titles17[[#This Row],[Extended object ID]],O:O,P:P)","v":{"$error":"#N/A"}}]
["C","1950-01-01","9999-12-31",1,"Social Services Program Specialist Assoc",20000197,"C05",8810,1.6000000000000001E-3,47275.74,61458.46,null,null,null,null,"x",null,null,null,null,null,null,null,null,null,null,null,null,"C","1950-01-01","9999-12-31",1,"Park Ranger Supv",20000536,"GRD67",9102,2.0799999999999999E-2,88009.1,88009.1,88025,"POPS NON-TCSO",{"$f":"_xlfn.XLOOKUP(job_titles17[[#This Row],[Extended object ID]],O:O,P:P)","v":{"$error":"#N/A"}}]
["C","1950-01-01","9999-12-31",1,"Social Worker",20000202,"C11",8810,1.6000000000000001E-3,58112.6,87168.9,null,null,null,null,"x",null,null,null,null,null,null,null,null,null,null,null,null,"C","2015-10-01","9999-12-31",1,"Park Reservation Specialist",20051151,"C06",8810,1.6000000000000001E-3,48694.01,65736.92,88004,"ADMINISTRATIVE SUPP",{"$f":"_xlfn.XLOOKUP(job_titles17[[#This Row],[Extended object ID]],O:O,P:P)","v":{"$error":"#N/A"}}]
["C","2020-09-08","9999-12-31",1,"STAR Flight Outreach Coordinator",20053826,"C14",7422,1.3299999999999999E-2,66183.97,105894.35,null,null,null,null,"x",null,null,null,null,null,null,null,null,null,null,null,null,"C","1950-01-01","9999-12-31",1,"Park Supv I",20000015,"C10",9102,2.0799999999999999E-2,55877.5,82698.7,88001,"MAINTENANCE",{"$f":"_xlfn.XLOOKUP(job_titles17[[#This Row],[Extended object ID]],O:O,P:P)","v":{"$error":"#N/A"}}]
["C","2016-03-08","9999-12-31",1,"STAR Flight Safety Officer",20051351,"C20",7422,1.3299999999999999E-2,99345.18,158952.29,null,null,null,null,"x",null,null,null,null,null,null,null,null,null,null,null,null,"C","1950-01-01","9999-12-31",1,"Park Supv II",20000016,"C11",9102,2.0799999999999999E-2,58112.6,87168.9,88001,"MAINTENANCE",{"$f":"_xlfn.XLOOKUP(job_titles17[[#This Row],[Extended object ID]],O:O,P:P)","v":{"$error":"#N/A"}}]
["C","2022-10-18","9999-12-31",1,"StarFt Director of Aviation Operations",20055178,"C21",8810,1.6000000000000001E-3,106310.9,175412.99,null,null,null,null,"x",null,null,null,null,null,null,null,null,null,null,null,null,"C","1950-01-01","9999-12-31",1,"Park Tech I",20000418,"NCF01",9102,2.0799999999999999E-2,15080,500000,88020,"TEMP/SEASONAL",{"$f":"_xlfn.XLOOKUP(job_titles17[[#This Row],[Extended object ID]],O:O,P:P)","v":{"$error":"#N/A"}}]
["C","2022-10-18","9999-12-31",1,"StarFt Director of Medical Operations",20055179,"C21",8810,1.6000000000000001E-3,106310.9,175412.99,null,null,null,null,"x",null,null,null,null,null,null,null,null,null,null,null,null,"C","1950-01-01","9999-12-31",1,"Park Tech II",20000419,"NCF01",9102,2.0799999999999999E-2,15080,500000,88020,"TEMP/SEASONAL",{"$f":"_xlfn.XLOOKUP(job_titles17[[#This Row],[Extended object ID]],O:O,P:P)","v":{"$error":"#N/A"}}]
["C","2023-01-31","9999-12-31",1,"Strategic Advisor",20055453,"C18",8810,1.6000000000000001E-3,86761.41,138818.25,null,null,null,null,"x",null,null,null,null,null,null,null,null,null,null,null,null,"C","1950-01-01","9999-12-31",1,"Parking Coordinator",20000611,"C06",8810,1.6000000000000001E-3,48694.01,65736.92,88004,"ADMINISTRATIVE SUPP",{"$f":"_xlfn.XLOOKUP(job_titles17[[#This Row],[Extended object ID]],O:O,P:P)","v":{"$error":"#N/A"}}]
["C","1950-01-01","9999-12-31",1,"Strategic Planning Mgr",20000274,"GRD28",8810,1.6000000000000001E-3,83424.429999999993,133479.01,null,null,null,null,"x",null,null,null,null,null,null,null,null,null,null,null,null,"C","1950-01-01","9999-12-31",1,"Parks Div Asst Dir",20000306,"C18",9102,2.0799999999999999E-2,86761.41,138818.25,88014,"MANAGEMENT",{"$f":"_xlfn.XLOOKUP(job_titles17[[#This Row],[Extended object ID]],O:O,P:P)","v":{"$error":"#N/A"}}]
["C","1950-01-01","9999-12-31",1,"Support Services Mgr",20000301,"C14",8810,1.6000000000000001E-3,66183.97,105894.35,null,null,null,null,"x",null,null,null,null,null,null,null,null,null,null,null,null,"C","1950-01-01","9999-12-31",1,"Parks Div Dir",20000313,"C22",8810,1.6000000000000001E-3,113755.98,187697.37,88014,"MANAGEMENT",{"$f":"_xlfn.XLOOKUP(job_titles17[[#This Row],[Extended object ID]],O:O,P:P)","v":{"$error":"#N/A"}}]
["C","2022-12-06","9999-12-31",1,"Support Services Supervisor",20055351,"C11",8810,1.6000000000000001E-3,58112.6,87168.9,null,null,null,null,"x",null,null,null,null,null,null,null,null,null,null,null,null,"C","2024-01-11","9999-12-31",1,"Parks Div Dir Succession",20055951,"C22",8810,1.6000000000000001E-3,113755.98,187697.37,88014,"MANAGEMENT",{"$f":"_xlfn.XLOOKUP(job_titles17[[#This Row],[Extended object ID]],O:O,P:P)","v":{"$error":"#N/A"}}]
["C","2019-10-01","9999-12-31",1,"Supportive Case Manager",20053303,"C10",8810,1.6000000000000001E-3,55877.5,82698.7,null,null,null,null,"x",null,null,null,null,null,null,null,null,null,null,null,null,"C","2019-11-19","9999-12-31",1,"Parks Manager",20053427,"C13",9102,2.0799999999999999E-2,62854.59,100567.34,88014,"MANAGEMENT",{"$f":"_xlfn.XLOOKUP(job_titles17[[#This Row],[Extended object ID]],O:O,P:P)","v":{"$error":"#N/A"}}]
["C","1950-01-01","9999-12-31",1,"Survey Crew Spc",20000176,"C06",8601,1.8E-3,48694.01,65736.92,null,null,null,null,"x",null,null,null,null,null,null,null,null,null,null,null,null,"C","1950-01-01","9999-12-31",1,"Pharmacist",20000061,"C21",8832,1.9E-3,106310.9,175412.99,88003,"MEDICAL",{"$f":"_xlfn.XLOOKUP(job_titles17[[#This Row],[Extended object ID]],O:O,P:P)","v":{"$error":"#N/A"}}]
["C","1950-01-01","9999-12-31",1,"Survey Crew Tech",20000175,"C04",8601,1.8E-3,45898.78,59668.41,null,null,null,null,"x",null,null,null,null,null,null,null,null,null,null,null,null,"C","1950-01-01","9999-12-31",1,"Pharmacy Tech",20000060,"C04",8832,1.9E-3,45898.78,59668.41,88003,"MEDICAL",{"$f":"_xlfn.XLOOKUP(job_titles17[[#This Row],[Extended object ID]],O:O,P:P)","v":{"$error":"#N/A"}}]
["C","1950-01-01","9999-12-31",1,"Survey Records Mgr",20000177,"C14",8601,1.8E-3,66183.97,105894.35,null,null,null,null,"x",null,null,null,null,null,null,null,null,null,null,null,null,"C","1950-01-01","9999-12-31",1,"Physician Asst Nurse Practitioner",20000056,"C18",8832,1.9E-3,86761.41,138818.25,88003,"MEDICAL",{"$f":"_xlfn.XLOOKUP(job_titles17[[#This Row],[Extended object ID]],O:O,P:P)","v":{"$error":"#N/A"}}]
["C","2015-10-01","9999-12-31",1,"Systems Analyst",20051201,"C12",8810,1.6000000000000001E-3,60437.1,90655.66,null,null,null,null,"x",null,null,null,null,null,null,null,null,null,null,null,null,"C","1950-01-01","9999-12-31",1,"Physician I",20000057,"C26",8832,1.9E-3,149111.1,246033.32,88003,"MEDICAL",{"$f":"_xlfn.XLOOKUP(job_titles17[[#This Row],[Extended object ID]],O:O,P:P)","v":{"$error":"#N/A"}}]
["C","2015-10-01","9999-12-31",1,"Systems Analyst Sr",20051202,"C16",8810,1.6000000000000001E-3,75776.03,121241.65,null,null,null,null,"x",null,null,null,null,null,null,null,null,null,null,null,null,"C","1950-01-01","9999-12-31",1,"Physician II",20000058,"C27",8832,1.9E-3,159548.98000000001,263255.82,88003,"MEDICAL",{"$f":"_xlfn.XLOOKUP(job_titles17[[#This Row],[Extended object ID]],O:O,P:P)","v":{"$error":"#N/A"}}]
["C","1950-01-01","9999-12-31",1,"Systems Architect",20000488,"C20",8810,1.6000000000000001E-3,99345.18,158952.29,null,null,null,null,"x",null,null,null,null,null,null,null,null,null,null,null,null,"C","2014-10-01","9999-12-31",1,"Physician II Succession",20050801,"GRD33",8832,1.9E-3,117037.44,187259.76,88003,"MEDICAL",{"$f":"_xlfn.XLOOKUP(job_titles17[[#This Row],[Extended object ID]],O:O,P:P)","v":"x"}]
["C","1950-01-01","9999-12-31",1,"Systems Engineer",20000491,"C14",8810,1.6000000000000001E-3,66183.97,105894.35,null,null,null,null,"x",null,null,null,null,null,null,null,null,null,null,null,null,"C","2024-01-09","9999-12-31",1,"PID Managing Director",20055926,"C18",8810,1.6000000000000001E-3,86761.41,138818.25,88014,"MANAGEMENT",{"$f":"_xlfn.XLOOKUP(job_titles17[[#This Row],[Extended object ID]],O:O,P:P)","v":{"$error":"#N/A"}}]
["C","1950-01-01","9999-12-31",1,"Systems Engineer Sr",20000489,"C17",8810,1.6000000000000001E-3,81074.789999999994,129719.67,null,null,null,null,"x",null,null,null,null,null,null,null,null,null,null,null,null,"C","2021-09-21","9999-12-31",1,"PkDivAsstDirPbcSftRsrcProtctn",20054276,"C18",8810,1.6000000000000001E-3,86761.41,138818.25,88014,"MANAGEMENT",{"$f":"_xlfn.XLOOKUP(job_titles17[[#This Row],[Extended object ID]],O:O,P:P)","v":{"$error":"#N/A"}}]
["C","1950-01-01","9999-12-31",1,"Systems Operations Mgr",20000486,"C20",8810,1.6000000000000001E-3,99345.18,158952.29,null,null,null,null,"x",null,null,null,null,null,null,null,null,null,null,null,null,"C","1950-01-01","9999-12-31",1,"Planner",20000157,"C11",8810,1.6000000000000001E-3,58112.6,87168.9,88008,"PLANNING & RESEARCH",{"$f":"_xlfn.XLOOKUP(job_titles17[[#This Row],[Extended object ID]],O:O,P:P)","v":{"$error":"#N/A"}}]
["C","2021-10-02","9999-12-31",1,"Talent Planning & Engagement Manager",20054402,"C19",8810,1.6000000000000001E-3,92836.33,148538.12,null,null,null,null,"x",null,null,null,null,null,null,null,null,null,null,null,null,"C","2015-10-01","9999-12-31",1,"Planner II",20051161,"C12",8810,1.6000000000000001E-3,60437.1,90655.66,88008,"PLANNING & RESEARCH",{"$f":"_xlfn.XLOOKUP(job_titles17[[#This Row],[Extended object ID]],O:O,P:P)","v":{"$error":"#N/A"}}]
["C","1950-01-01","9999-12-31",1,"Tax Assessor-Collector Deputy Chf",20000323,"C22",8810,1.6000000000000001E-3,113755.98,187697.37,null,null,null,null,"x",null,null,null,null,null,null,null,null,null,null,null,null,"C","1950-01-01","9999-12-31",1,"Planner Mgmt Research Asst",20000153,"C04",8810,1.6000000000000001E-3,45898.78,59668.41,88008,"PLANNING & RESEARCH",{"$f":"_xlfn.XLOOKUP(job_titles17[[#This Row],[Extended object ID]],O:O,P:P)","v":{"$error":"#N/A"}}]
["C","1950-01-01","9999-12-31",1,"Tax Assessor-Collector Div Dir",20000286,"C19",8810,1.6000000000000001E-3,92836.33,148538.12,null,null,null,null,"x",null,null,null,null,null,null,null,null,null,null,null,null,"C","1950-01-01","9999-12-31",1,"Planner Mgmt Research Specialist",20000155,"C09",8810,1.6000000000000001E-3,53987.92,78282.490000000005,88008,"PLANNING & RESEARCH",{"$f":"_xlfn.XLOOKUP(job_titles17[[#This Row],[Extended object ID]],O:O,P:P)","v":{"$error":"#N/A"}}]
["C","2014-11-04","9999-12-31",1,"Tax Office Manager",20050828,"C14",8810,1.6000000000000001E-3,66183.97,105894.35,null,null,null,null,"x",null,null,null,null,null,null,null,null,null,null,null,null,"C","1950-01-01","9999-12-31",1,"Planner Mgmt Research Specialist Assoc",20000154,"C07",8810,1.6000000000000001E-3,50398.3,68037.710000000006,88008,"PLANNING & RESEARCH",{"$f":"_xlfn.XLOOKUP(job_titles17[[#This Row],[Extended object ID]],O:O,P:P)","v":{"$error":"#N/A"}}]
["C","2014-11-04","9999-12-31",1,"Tax Office Program Coordinator",20050827,"C09",8810,1.6000000000000001E-3,53987.92,78282.490000000005,null,null,null,null,"x",null,null,null,null,null,null,null,null,null,null,null,null,"C","1950-01-01","9999-12-31",1,"Planner Mgmt Research Specialist Sr",20000156,"C11",8810,1.6000000000000001E-3,58112.6,87168.9,88008,"PLANNING & RESEARCH",{"$f":"_xlfn.XLOOKUP(job_titles17[[#This Row],[Extended object ID]],O:O,P:P)","v":{"$error":"#N/A"}}]
["C","1950-01-01","9999-12-31",1,"Tax Specialist I",20000096,"C06",8810,1.6000000000000001E-3,48694.01,65736.92,null,null,null,null,"x",null,null,null,null,null,null,null,null,null,null,null,null,"C","1950-01-01","9999-12-31",1,"Planner Sr",20000158,"C13",8810,1.6000000000000001E-3,62854.59,100567.34,88008,"PLANNING & RESEARCH",{"$f":"_xlfn.XLOOKUP(job_titles17[[#This Row],[Extended object ID]],O:O,P:P)","v":{"$error":"#N/A"}}]
["C","1950-01-01","9999-12-31",1,"Tax Specialist II",20000097,"C07",8810,1.6000000000000001E-3,50398.3,68037.710000000006,null,null,null,null,"x",null,null,null,null,null,null,null,null,null,null,null,null,"C","2021-11-16","9999-12-31",1,"Planner Sr Succession",20054551,"GRD23",8810,1.6000000000000001E-3,59466.58,95146.48,88008,"PLANNING & RESEARCH",{"$f":"_xlfn.XLOOKUP(job_titles17[[#This Row],[Extended object ID]],O:O,P:P)","v":"x"}]
["C","1950-01-01","9999-12-31",1,"Tax Specialist III",20000098,"C08",8810,1.6000000000000001E-3,52162.239999999998,75635.25,null,null,null,null,"x",null,null,null,null,null,null,null,null,null,null,null,null,"C","1950-01-01","9999-12-31",1,"Planning & Budget Analyst I",20000134,"C11",8810,1.6000000000000001E-3,58112.6,87168.9,88005,"FINANCE",{"$f":"_xlfn.XLOOKUP(job_titles17[[#This Row],[Extended object ID]],O:O,P:P)","v":{"$error":"#N/A"}}]
["C","2021-09-28","9999-12-31",1,"Tax Specialist IV",20054351,"C09",8810,1.6000000000000001E-3,53987.92,78282.490000000005,null,null,null,null,"x",null,null,null,null,null,null,null,null,null,null,null,null,"C","1950-01-01","9999-12-31",1,"Planning & Budget Analyst II",20000135,"C13",8810,1.6000000000000001E-3,62854.59,100567.34,88005,"FINANCE",{"$f":"_xlfn.XLOOKUP(job_titles17[[#This Row],[Extended object ID]],O:O,P:P)","v":{"$error":"#N/A"}}]
["C","1950-01-01","9999-12-31",1,"Tax Supv",20000131,"C11",8810,1.6000000000000001E-3,58112.6,87168.9,null,null,null,null,"x",null,null,null,null,null,null,null,null,null,null,null,null,"C","1950-01-01","9999-12-31",1,"Planning & Budget Analyst III",20000136,"C15",8810,1.6000000000000001E-3,70819.7,113311.53,88005,"FINANCE",{"$f":"_xlfn.XLOOKUP(job_titles17[[#This Row],[Extended object ID]],O:O,P:P)","v":{"$error":"#N/A"}}]
["C","2022-04-19","9999-12-31",1,"TCSO Sr Recruiter",20054826,"C14",8810,1.6000000000000001E-3,66183.97,105894.35,null,null,null,null,"x",null,null,null,null,null,null,null,null,null,null,null,null,"C","1950-01-01","9999-12-31",1,"Planning & Budget Analyst Sr",20000137,"C17",8810,1.6000000000000001E-3,81074.789999999994,129719.67,88005,"FINANCE",{"$f":"_xlfn.XLOOKUP(job_titles17[[#This Row],[Extended object ID]],O:O,P:P)","v":{"$error":"#N/A"}}]
["C","1950-01-01","9999-12-31",1,"Technical Trainer",20000478,"C13",8810,1.6000000000000001E-3,62854.59,100567.34,null,null,null,null,"x",null,null,null,null,null,null,null,null,null,null,null,null,"C","2021-06-08","9999-12-31",1,"Planning & Budget Ld Operational Analyst",20054127,"C18",8810,1.6000000000000001E-3,86761.41,138818.25,88005,"FINANCE",{"$f":"_xlfn.XLOOKUP(job_titles17[[#This Row],[Extended object ID]],O:O,P:P)","v":{"$error":"#N/A"}}]
["C","2022-10-18","9999-12-31",1,"Technical Writer",20055176,"C12",8810,1.6000000000000001E-3,60437.1,90655.66,null,null,null,null,"x",null,null,null,null,null,null,null,null,null,null,null,null,"C","1950-01-01","9999-12-31",1,"Planning Mgr",20000159,"C16",8810,1.6000000000000001E-3,75776.03,121241.65,88008,"PLANNING & RESEARCH",{"$f":"_xlfn.XLOOKUP(job_titles17[[#This Row],[Extended object ID]],O:O,P:P)","v":{"$error":"#N/A"}}]
["C","2019-08-13","9999-12-31",1,"Technology & Operations Chief Deputy",20053251,"C23",8810,1.6000000000000001E-3,121718.94,200836.25,null,null,null,null,"x",null,null,null,null,null,null,null,null,null,null,null,null,"C","2015-10-01","9999-12-31",1,"Planning Mgr Succession",20051276,"GRD25",8810,1.6000000000000001E-3,68095.87,108953.31,88008,"PLANNING & RESEARCH",{"$f":"_xlfn.XLOOKUP(job_titles17[[#This Row],[Extended object ID]],O:O,P:P)","v":"x"}]
["C","2022-09-20","9999-12-31",1,"Telecomm 911 Asst Mgr",20055053,"C13",8810,1.6000000000000001E-3,62854.59,100567.34,null,null,null,null,"x",null,null,null,null,null,null,null,null,null,null,null,null,"C","1950-01-01","9999-12-31",1,"Planning Project Mgr",20000616,"C15",8810,1.6000000000000001E-3,70819.7,113311.53,88008,"PLANNING & RESEARCH",{"$f":"_xlfn.XLOOKUP(job_titles17[[#This Row],[Extended object ID]],O:O,P:P)","v":{"$error":"#N/A"}}]
["C","1950-01-01","9999-12-31",1,"Telecomm 911 Mgr",20000211,"C15",8810,1.6000000000000001E-3,70819.7,113311.53,null,null,null,null,"x",null,null,null,null,null,null,null,null,null,null,null,null,"C","1950-01-01","9999-12-31",1,"Plumber",20000044,"C08",9015,1.8800000000000001E-2,52162.239999999998,75635.25,88002,"SKILLED TRADES",{"$f":"_xlfn.XLOOKUP(job_titles17[[#This Row],[Extended object ID]],O:O,P:P)","v":{"$error":"#N/A"}}]
["C","1950-01-01","9999-12-31",1,"Telecomm 911 Specialist",20000208,"C08",8810,1.6000000000000001E-3,52162.239999999998,75635.25,null,null,null,null,"x",null,null,null,null,null,null,null,null,null,null,null,null,"C","1950-01-01","9999-12-31",1,"Plumber Master",20000045,"C10",9015,1.8800000000000001E-2,55877.5,82698.7,88002,"SKILLED TRADES",{"$f":"_xlfn.XLOOKUP(job_titles17[[#This Row],[Extended object ID]],O:O,P:P)","v":{"$error":"#N/A"}}]
["C","1950-01-01","9999-12-31",1,"Telecomm 911 Specialist Sr",20000209,"C09",8810,1.6000000000000001E-3,53987.92,78282.490000000005,null,null,null,null,"x",null,null,null,null,null,null,null,null,null,null,null,null,"C","2017-06-06","9999-12-31",1,"PREA Coordinator",20052077,"C11",7720,1.55E-2,58112.6,87168.9,88012,"PUBLIC SAF/EMG MGMT",{"$f":"_xlfn.XLOOKUP(job_titles17[[#This Row],[Extended object ID]],O:O,P:P)","v":{"$error":"#N/A"}}]
["C","1950-01-01","9999-12-31",1,"Telecomm 911 Specialist Supv",20000210,"C11",8810,1.6000000000000001E-3,58112.6,87168.9,null,null,null,null,"x",null,null,null,null,null,null,null,null,null,null,null,null,"C","1950-01-01","9999-12-31",1,"Pretrial Div Dir",20000292,"C17",8810,1.6000000000000001E-3,81074.789999999994,129719.67,88014,"MANAGEMENT",{"$f":"_xlfn.XLOOKUP(job_titles17[[#This Row],[Extended object ID]],O:O,P:P)","v":{"$error":"#N/A"}}]
["C","1950-01-01","9999-12-31",1,"TNR Chief Deputy",20000329,"C23",8810,1.6000000000000001E-3,121718.94,200836.25,null,null,null,null,"x",null,null,null,null,null,null,null,null,null,null,null,null,"C","1950-01-01","9999-12-31",1,"Pretrial Mgr",20000291,"C13",8810,1.6000000000000001E-3,62854.59,100567.34,88014,"MANAGEMENT",{"$f":"_xlfn.XLOOKUP(job_titles17[[#This Row],[Extended object ID]],O:O,P:P)","v":{"$error":"#N/A"}}]
["C","1950-01-01","9999-12-31",1,"Toxicologist",20000073,"C14",8832,1.9E-3,66183.97,105894.35,null,null,null,null,"x",null,null,null,null,null,null,null,null,null,null,null,null,"C","1950-01-01","9999-12-31",1,"Pretrial Officer I",20000238,"C08",8810,1.6000000000000001E-3,52162.239999999998,75635.25,88013,"COURT SERVICES",{"$f":"_xlfn.XLOOKUP(job_titles17[[#This Row],[Extended object ID]],O:O,P:P)","v":{"$error":"#N/A"}}]
["C","1950-01-01","9999-12-31",1,"Toxicologist Chief",20000075,"C19",8832,1.9E-3,92836.33,148538.12,null,null,null,null,"x",null,null,null,null,null,null,null,null,null,null,null,null,"C","1950-01-01","9999-12-31",1,"Pretrial Officer II",20000239,"C09",8810,1.6000000000000001E-3,53987.92,78282.490000000005,88013,"COURT SERVICES",{"$f":"_xlfn.XLOOKUP(job_titles17[[#This Row],[Extended object ID]],O:O,P:P)","v":{"$error":"#N/A"}}]
["C","1950-01-01","9999-12-31",1,"Toxicologist Deputy Chief",20000074,"C16",8832,1.9E-3,75776.03,121241.65,null,null,null,null,"x",null,null,null,null,null,null,null,null,null,null,null,null,"C","1950-01-01","9999-12-31",1,"Pretrial Officer III",20000240,"C10",8810,1.6000000000000001E-3,55877.5,82698.7,88013,"COURT SERVICES",{"$f":"_xlfn.XLOOKUP(job_titles17[[#This Row],[Extended object ID]],O:O,P:P)","v":{"$error":"#N/A"}}]
["C","1950-01-01","9999-12-31",1,"Toxicologist Laboratory Tech",20000072,"C07",8832,1.9E-3,50398.3,68037.710000000006,null,null,null,null,"x",null,null,null,null,null,null,null,null,null,null,null,null,"C","1950-01-01","9999-12-31",1,"Pretrial Officer Sr",20000241,"C11",8810,1.6000000000000001E-3,58112.6,87168.9,88013,"COURT SERVICES",{"$f":"_xlfn.XLOOKUP(job_titles17[[#This Row],[Extended object ID]],O:O,P:P)","v":{"$error":"#N/A"}}]
["C","1950-01-01","9999-12-31",1,"Training Education Coord I",20000392,"C08",8810,1.6000000000000001E-3,52162.239999999998,75635.25,null,null,null,null,"x",null,null,null,null,null,null,null,null,null,null,null,null,"C","1950-01-01","9999-12-31",1,"Probate Auditor",20000127,"C11",8810,1.6000000000000001E-3,58112.6,87168.9,88005,"FINANCE",{"$f":"_xlfn.XLOOKUP(job_titles17[[#This Row],[Extended object ID]],O:O,P:P)","v":{"$error":"#N/A"}}]
["C","1950-01-01","9999-12-31",1,"Training Education Coord II",20000393,"C10",8810,1.6000000000000001E-3,55877.5,82698.7,null,null,null,null,"x",null,null,null,null,null,null,null,null,null,null,null,null,"C","2020-01-14","9999-12-31",1,"Probate Auditor Sr",20053576,"C12",8810,1.6000000000000001E-3,60437.1,90655.66,88005,"FINANCE",{"$f":"_xlfn.XLOOKUP(job_titles17[[#This Row],[Extended object ID]],O:O,P:P)","v":{"$error":"#N/A"}}]
["C","1950-01-01","9999-12-31",1,"Training Education Coord Sr",20000394,"C12",8810,1.6000000000000001E-3,60437.1,90655.66,null,null,null,null,"x",null,null,null,null,null,null,null,null,null,null,null,null,"C","1950-01-01","9999-12-31",1,"Probate Court Administrator",20000321,"C19",8810,1.6000000000000001E-3,92836.33,148538.12,88014,"MANAGEMENT",{"$f":"_xlfn.XLOOKUP(job_titles17[[#This Row],[Extended object ID]],O:O,P:P)","v":{"$error":"#N/A"}}]
["C","2021-05-11","9999-12-31",1,"Training Supervisor",20054101,"C14",8810,1.6000000000000001E-3,66183.97,105894.35,null,null,null,null,"x",null,null,null,null,null,null,null,null,null,null,null,null,"C","2017-10-01","9999-12-31",1,"Probate Court Administrator Sn",20052203,"GRD29",8810,1.6000000000000001E-3,89265.7,142825.07,88014,"MANAGEMENT",{"$f":"_xlfn.XLOOKUP(job_titles17[[#This Row],[Extended object ID]],O:O,P:P)","v":"x"}]
["C","2022-11-01","9999-12-31",1,"Trauma Informed Care Program Adm",20055251,"C17",8810,1.6000000000000001E-3,81074.789999999994,129719.67,null,null,null,null,"x",null,null,null,null,null,null,null,null,null,null,null,null,"C","1950-01-01","9999-12-31",1,"Probate Judge",20000510,"NCF01",8810,1.6000000000000001E-3,15080,500000,88022,"ELECTED",{"$f":"_xlfn.XLOOKUP(job_titles17[[#This Row],[Extended object ID]],O:O,P:P)","v":"x"}]
["C","2023-07-11","9999-12-31",1,"Trauma Informed Care Specialist",20055626,"C11",8810,1.6000000000000001E-3,58112.6,87168.9,null,null,null,null,"x",null,null,null,null,null,null,null,null,null,null,null,null,"C","1950-01-01","9999-12-31",1,"Probation Case Work Mgr",20000290,"NCF01",9999,0,15080,500000,88014,"MANAGEMENT",{"$f":"_xlfn.XLOOKUP(job_titles17[[#This Row],[Extended object ID]],O:O,P:P)","v":{"$error":"#N/A"}}]
["C","1950-01-01","9999-12-31",1,"Veterans Services Officer",20000277,"C15",8810,1.6000000000000001E-3,70819.7,113311.53,null,null,null,null,"x",null,null,null,null,null,null,null,null,null,null,null,null,"C","1950-01-01","9999-12-31",1,"Probation Div Dir",20000316,"NCF01",9999,0,15080,500000,88014,"MANAGEMENT",{"$f":"_xlfn.XLOOKUP(job_titles17[[#This Row],[Extended object ID]],O:O,P:P)","v":{"$error":"#N/A"}}]
["C","2018-12-11","9999-12-31",1,"Veterans Services Officer Assistant Sr",20052926,"C11",8810,1.6000000000000001E-3,58112.6,87168.9,null,null,null,null,"x",null,null,null,null,null,null,null,null,null,null,null,null,"C","1950-01-01","9999-12-31",1,"Probation Div Mgr",20000287,"NCF01",9999,0,15080,500000,88014,"MANAGEMENT",{"$f":"_xlfn.XLOOKUP(job_titles17[[#This Row],[Extended object ID]],O:O,P:P)","v":{"$error":"#N/A"}}]
["C","2019-09-30","9999-12-31",1,"Veterans Services Specialist",20053293,"C06",8810,1.6000000000000001E-3,48694.01,65736.92,null,null,null,null,"x",null,null,null,null,null,null,null,null,null,null,null,null,"C","1950-01-01","9999-12-31",1,"Probation Officer Asst",20000244,"NCF01",9999,0,15080,500000,88013,"COURT SERVICES",{"$f":"_xlfn.XLOOKUP(job_titles17[[#This Row],[Extended object ID]],O:O,P:P)","v":{"$error":"#N/A"}}]
["C","1950-01-01","9999-12-31",1,"Veterans Svcs Ofcr Asst",20000621,"C09",8810,1.6000000000000001E-3,53987.92,78282.490000000005,null,null,null,null,"x",null,null,null,null,null,null,null,null,null,null,null,null,"C","1950-01-01","9999-12-31",1,"Probation Officer I",20000245,"NCF01",9999,0,15080,500000,88013,"COURT SERVICES",{"$f":"_xlfn.XLOOKUP(job_titles17[[#This Row],[Extended object ID]],O:O,P:P)","v":{"$error":"#N/A"}}]
["C","1950-01-01","9999-12-31",1,"Victim Counselor",20000188,"C09",8810,1.6000000000000001E-3,53987.92,78282.490000000005,null,null,null,null,"x",null,null,null,null,null,null,null,null,null,null,null,null,"C","1950-01-01","9999-12-31",1,"Probation Officer II",20000246,"NCF01",9999,0,15080,500000,88013,"COURT SERVICES",{"$f":"_xlfn.XLOOKUP(job_titles17[[#This Row],[Extended object ID]],O:O,P:P)","v":{"$error":"#N/A"}}]
["C","1950-01-01","9999-12-31",1,"Victim Counselor Sr",20000189,"C10",8810,1.6000000000000001E-3,55877.5,82698.7,null,null,null,null,"x",null,null,null,null,null,null,null,null,null,null,null,null,"C","1950-01-01","9999-12-31",1,"Probation Officer Lead",20000248,"NCF01",9999,0,15080,500000,88013,"COURT SERVICES",{"$f":"_xlfn.XLOOKUP(job_titles17[[#This Row],[Extended object ID]],O:O,P:P)","v":{"$error":"#N/A"}}]
["C","1950-01-01","9999-12-31",1,"Victim Witness Services Div Dir",20000293,"C17",8810,1.6000000000000001E-3,81074.789999999994,129719.67,null,null,null,null,"x",null,null,null,null,null,null,null,null,null,null,null,null,"C","1950-01-01","9999-12-31",1,"Probation Officer Sr",20000247,"NCF01",9999,0,15080,500000,88013,"COURT SERVICES",{"$f":"_xlfn.XLOOKUP(job_titles17[[#This Row],[Extended object ID]],O:O,P:P)","v":{"$error":"#N/A"}}]
["C","2019-12-31","9999-12-31",1,"Video Engineer",20053551,"C13",8810,1.6000000000000001E-3,62854.59,100567.34,null,null,null,null,"x",null,null,null,null,null,null,null,null,null,null,null,null,"C","1950-01-01","9999-12-31",1,"Program Coord",20000349,"C11",8810,1.6000000000000001E-3,58112.6,87168.9,88015,"PROFESSIONAL SUPP",{"$f":"_xlfn.XLOOKUP(job_titles17[[#This Row],[Extended object ID]],O:O,P:P)","v":{"$error":"#N/A"}}]
["C","2021-01-12","9999-12-31",1,"Virtual Training Coordinator",20053976,"C10",8810,1.6000000000000001E-3,55877.5,82698.7,null,null,null,null,"x",null,null,null,null,null,null,null,null,null,null,null,null,"C","1950-01-01","9999-12-31",1,"Program Dir",20000235,"C22",8810,1.6000000000000001E-3,113755.98,187697.37,88012,"PUBLIC SAF/EMG MGMT",{"$f":"_xlfn.XLOOKUP(job_titles17[[#This Row],[Extended object ID]],O:O,P:P)","v":{"$error":"#N/A"}}]
["C","2023-09-26","9999-12-31",1,"Visitor Center Outreach Coordinator",20055726,"C10",8810,1.6000000000000001E-3,55877.5,82698.7,null,null,null,null,"x",null,null,null,null,null,null,null,null,null,null,null,null,"C","2021-10-02","9999-12-31",1,"Program Generalist Sr",20054376,"C12",8810,1.6000000000000001E-3,60437.1,90655.66,88016,"HUMAN RESOURCES",{"$f":"_xlfn.XLOOKUP(job_titles17[[#This Row],[Extended object ID]],O:O,P:P)","v":{"$error":"#N/A"}}]
["C","1950-01-01","9999-12-31",1,"Volunteer Coord",20000398,"C08",8810,1.6000000000000001E-3,52162.239999999998,75635.25,null,null,null,null,"x",null,null,null,null,null,null,null,null,null,null,null,null,"C","1950-01-01","9999-12-31",1,"Program Manager",20000437,"C19",8810,1.6000000000000001E-3,92836.33,148538.12,88021,"INFORMATION TECH",{"$f":"_xlfn.XLOOKUP(job_titles17[[#This Row],[Extended object ID]],O:O,P:P)","v":{"$error":"#N/A"}}]
["C","1950-01-01","9999-12-31",1,"Voter Reg Outreach Program Coord",20050126,"C09",8810,1.6000000000000001E-3,53987.92,78282.490000000005,null,null,null,null,"x",null,null,null,null,null,null,null,null,null,null,null,null,"C","1950-01-01","9999-12-31",1,"Program Manager Sr",20000436,"C20",8810,1.6000000000000001E-3,99345.18,158952.29,88021,"INFORMATION TECH",{"$f":"_xlfn.XLOOKUP(job_titles17[[#This Row],[Extended object ID]],O:O,P:P)","v":{"$error":"#N/A"}}]
["C","2016-12-20","9999-12-31",1,"Warehouse Coordinator",20051851,"C08",7720,1.55E-2,52162.239999999998,75635.25,null,null,null,null,"x",null,null,null,null,null,null,null,null,null,null,null,null,"C","2015-10-01","9999-12-31",1,"Project Coordinator",20051203,"C14",8810,1.6000000000000001E-3,66183.97,105894.35,88021,"INFORMATION TECH",{"$f":"_xlfn.XLOOKUP(job_titles17[[#This Row],[Extended object ID]],O:O,P:P)","v":{"$error":"#N/A"}}]
["C","2023-04-10","9999-12-31",1,"Warehouse Manager",20055551,"C11",8292,0,58112.6,87168.9,null,null,null,null,"x",null,null,null,null,null,null,null,null,null,null,null,null,"C","1950-01-01","9999-12-31",1,"Project Mgr",20000438,"C18",8810,1.6000000000000001E-3,86761.41,138818.25,88021,"INFORMATION TECH",{"$f":"_xlfn.XLOOKUP(job_titles17[[#This Row],[Extended object ID]],O:O,P:P)","v":{"$error":"#N/A"}}]
["C","2015-10-01","9999-12-31",1,"Warehouse Operator",20051165,"C06",9015,1.8800000000000001E-2,48694.01,65736.92,null,null,null,null,"x",null,null,null,null,null,null,null,null,null,null,null,null,"C","1950-01-01","9999-12-31",1,"Project Mgr Div Mgr",20000435,"GRD32",8810,1.6000000000000001E-3,109380.75,175009.12,88021,"INFORMATION TECH",{"$f":"_xlfn.XLOOKUP(job_titles17[[#This Row],[Extended object ID]],O:O,P:P)","v":{"$error":"#N/A"}}]
["C","1950-01-01","9999-12-31",1,"Web Manager",20000458,"C18",8810,1.6000000000000001E-3,86761.41,138818.25,null,null,null,null,"x",null,null,null,null,null,null,null,null,null,null,null,null,"C","2016-05-17","9999-12-31",1,"Project Mgr Succession",20051451,"GRD27",8810,1.6000000000000001E-3,77956.53,124730.53,88021,"INFORMATION TECH",{"$f":"_xlfn.XLOOKUP(job_titles17[[#This Row],[Extended object ID]],O:O,P:P)","v":"x"}]
["C","1950-01-01","9999-12-31",1,"Webmaster",20000460,"C13",8810,1.6000000000000001E-3,62854.59,100567.34,null,null,null,null,"x",null,null,null,null,null,null,null,null,null,null,null,null,"C","1950-01-01","9999-12-31",1,"Psychiatrist",20000062,"C27",8832,1.9E-3,159548.98000000001,263255.82,88003,"MEDICAL",{"$f":"_xlfn.XLOOKUP(job_titles17[[#This Row],[Extended object ID]],O:O,P:P)","v":{"$error":"#N/A"}}]
["C","1950-01-01","9999-12-31",1,"Webmaster Sr",20000459,"C15",8810,1.6000000000000001E-3,70819.7,113311.53,null,null,null,null,"x",null,null,null,null,null,null,null,null,null,null,null,null,"C","1950-01-01","9999-12-31",1,"Psychological Svcs Mgr",20000651,"C18",8832,1.9E-3,86761.41,138818.25,88014,"MANAGEMENT",{"$f":"_xlfn.XLOOKUP(job_titles17[[#This Row],[Extended object ID]],O:O,P:P)","v":{"$error":"#N/A"}}]
["C","2021-10-19","9999-12-31",1,"Wildfire Mitigation Officer",20054478,"C16",7720,1.55E-2,75776.03,121241.65,null,null,null,null,"x",null,null,null,null,null,null,null,null,null,null,null,null,"C","1950-01-01","9999-12-31",1,"Psychologist",20000203,"C16",8832,1.9E-3,75776.03,121241.65,88011,"SOCIAL SVCS",{"$f":"_xlfn.XLOOKUP(job_titles17[[#This Row],[Extended object ID]],O:O,P:P)","v":{"$error":"#N/A"}}]
["C","2021-10-19","9999-12-31",1,"Wildfire Mitigation Specialist",20054477,"C14",7720,1.55E-2,66183.97,105894.35,null,null,null,null,"x",null,null,null,null,null,null,null,null,null,null,null,null,"C","2013-04-09","9999-12-31",1,"Psychology Intern",20050251,"C03",8832,1.9E-3,44561.919999999998,57930.5,88011,"SOCIAL SVCS",{"$f":"_xlfn.XLOOKUP(job_titles17[[#This Row],[Extended object ID]],O:O,P:P)","v":{"$error":"#N/A"}}]
["C","2021-05-11","9999-12-31",1,"Work Order Coordinator",20054103,"C06",8810,1.6000000000000001E-3,48694.01,65736.92,null,null,null,null,"x",null,null,null,null,null,null,null,null,null,null,null,null,"C","1950-01-01","9999-12-31",1,"Public Defender Juvenile",20000332,"C24",8810,1.6000000000000001E-3,130239.35,214894.92,88014,"MANAGEMENT",{"$f":"_xlfn.XLOOKUP(job_titles17[[#This Row],[Extended object ID]],O:O,P:P)","v":"x"}]
["C","2021-09-14","9999-12-31",1,"X-Ray Technician",20054251,"C10",8832,1.9E-3,55877.5,82698.7,null,null,null,null,"x",null,null,null,null,null,null,null,null,null,null,null,null,"C","1950-01-01","9999-12-31",1,"Public Defender Mental Health",20000333,"C24",8810,1.6000000000000001E-3,130239.35,214894.92,88014,"MANAGEMENT",{"$f":"_xlfn.XLOOKUP(job_titles17[[#This Row],[Extended object ID]],O:O,P:P)","v":{"$error":"#N/A"}}]
[null,null,null,null,null,null,null,null,null,null,null,null,null,null,null,"x",null,null,null,null,null,null,null,null,null,null,null,null,"C","2014-10-07","9999-12-31",1,"Public Defender Mental Health Succession",20050802,"GRD30",8810,1.6000000000000001E-3,95524.21,152838.82,88014,"MANAGEMENT",{"$f":"_xlfn.XLOOKUP(job_titles17[[#This Row],[Extended object ID]],O:O,P:P)","v":"x"}]
[null,null,null,null,null,null,null,null,null,null,null,null,null,null,null,"x",null,null,null,null,null,null,null,null,null,null,null,null,"C","2022-05-03","9999-12-31",1,"Public Information & Social Media Spc",20054876,"C11",8810,1.6000000000000001E-3,58112.6,87168.9,88019,"PUBLIC INFORMATION",{"$f":"_xlfn.XLOOKUP(job_titles17[[#This Row],[Extended object ID]],O:O,P:P)","v":{"$error":"#N/A"}}]
[null,null,null,null,null,null,null,null,null,null,null,null,null,null,null,"x",null,null,null,null,null,null,null,null,null,null,null,null,"C","1950-01-01","9999-12-31",1,"Public Information Officer Sr",20000605,"C13",8810,1.6000000000000001E-3,62854.59,100567.34,88012,"PUBLIC SAF/EMG MGMT",{"$f":"_xlfn.XLOOKUP(job_titles17[[#This Row],[Extended object ID]],O:O,P:P)","v":{"$error":"#N/A"}}]
[null,null,null,null,null,null,null,null,null,null,null,null,null,null,null,"x",null,null,null,null,null,null,null,null,null,null,null,null,"C","1950-01-01","9999-12-31",1,"Public Information Specialist",20000608,"C11",8810,1.6000000000000001E-3,58112.6,87168.9,88019,"PUBLIC INFORMATION",{"$f":"_xlfn.XLOOKUP(job_titles17[[#This Row],[Extended object ID]],O:O,P:P)","v":{"$error":"#N/A"}}]
[null,null,null,null,null,null,null,null,null,null,null,null,null,null,null,"x",null,null,null,null,null,null,null,null,null,null,null,null,"C","1950-01-01","9999-12-31",1,"Public Works Dir",20000343,"C23",8601,1.8E-3,121718.94,200836.25,88014,"MANAGEMENT",{"$f":"_xlfn.XLOOKUP(job_titles17[[#This Row],[Extended object ID]],O:O,P:P)","v":{"$error":"#N/A"}}]
[null,null,null,null,null,null,null,null,null,null,null,null,null,null,null,"x",null,null,null,null,null,null,null,null,null,null,null,null,"C","2021-11-16","9999-12-31",1,"Public Works Dir Succession",20054552,"GRD33",8601,1.8E-3,117037.44,187259.76,88014,"MANAGEMENT",{"$f":"_xlfn.XLOOKUP(job_titles17[[#This Row],[Extended object ID]],O:O,P:P)","v":"x"}]
[null,null,null,null,null,null,null,null,null,null,null,null,null,null,null,"x",null,null,null,null,null,null,null,null,null,null,null,null,"C","1950-01-01","9999-12-31",1,"Pur Asset Coordinator",20000599,"C15",8810,1.6000000000000001E-3,70819.7,113311.53,88027,"PUR PURCHASING",{"$f":"_xlfn.XLOOKUP(job_titles17[[#This Row],[Extended object ID]],O:O,P:P)","v":{"$error":"#N/A"}}]
[null,null,null,null,null,null,null,null,null,null,null,null,null,null,null,"x",null,null,null,null,null,null,null,null,null,null,null,null,"C","1950-01-01","9999-12-31",1,"Pur Asset Specialist",20000598,"C07",8810,1.6000000000000001E-3,50398.3,68037.710000000006,88027,"PUR PURCHASING",{"$f":"_xlfn.XLOOKUP(job_titles17[[#This Row],[Extended object ID]],O:O,P:P)","v":{"$error":"#N/A"}}]
[null,null,null,null,null,null,null,null,null,null,null,null,null,null,null,"x",null,null,null,null,null,null,null,null,null,null,null,null,"C","1950-01-01","9999-12-31",1,"Pur Assistant HUB Director",20000597,"C19",8810,1.6000000000000001E-3,92836.33,148538.12,88027,"PUR PURCHASING",{"$f":"_xlfn.XLOOKUP(job_titles17[[#This Row],[Extended object ID]],O:O,P:P)","v":{"$error":"#N/A"}}]
[null,null,null,null,null,null,null,null,null,null,null,null,null,null,null,"x",null,null,null,null,null,null,null,null,null,null,null,null,"C","1950-01-01","9999-12-31",1,"Pur Asst Purchasing Agent",20000601,"C20",8810,1.6000000000000001E-3,99345.18,158952.29,88027,"PUR PURCHASING",{"$f":"_xlfn.XLOOKUP(job_titles17[[#This Row],[Extended object ID]],O:O,P:P)","v":{"$error":"#N/A"}}]
[null,null,null,null,null,null,null,null,null,null,null,null,null,null,null,"x",null,null,null,null,null,null,null,null,null,null,null,null,"C","2015-07-28","9999-12-31",1,"Pur Asst Purchasing Agent Succession",20051101,"GRD30",8810,1.6000000000000001E-3,95524.21,152838.82,88027,"PUR PURCHASING",{"$f":"_xlfn.XLOOKUP(job_titles17[[#This Row],[Extended object ID]],O:O,P:P)","v":"x"}]
[null,null,null,null,null,null,null,null,null,null,null,null,null,null,null,"x",null,null,null,null,null,null,null,null,null,null,null,null,"C","2016-07-12","9999-12-31",1,"Pur Asst Purchasing Agent Succession",20051601,"GRD30",8810,1.6000000000000001E-3,95524.21,152838.82,88027,"PUR PURCHASING",{"$f":"_xlfn.XLOOKUP(job_titles17[[#This Row],[Extended object ID]],O:O,P:P)","v":"x"}]
[null,null,null,null,null,null,null,null,null,null,null,null,null,null,null,"x",null,null,null,null,null,null,null,null,null,null,null,null,"C","2017-10-01","9999-12-31",1,"Pur Business Analyst I",20052254,"C12",8810,1.6000000000000001E-3,60437.1,90655.66,88027,"PUR PURCHASING",{"$f":"_xlfn.XLOOKUP(job_titles17[[#This Row],[Extended object ID]],O:O,P:P)","v":{"$error":"#N/A"}}]
[null,null,null,null,null,null,null,null,null,null,null,null,null,null,null,"x",null,null,null,null,null,null,null,null,null,null,null,null,"C","2017-10-01","9999-12-31",1,"Pur Business Analyst II",20052277,"C15",8810,1.6000000000000001E-3,70819.7,113311.53,88027,"PUR PURCHASING",{"$f":"_xlfn.XLOOKUP(job_titles17[[#This Row],[Extended object ID]],O:O,P:P)","v":{"$error":"#N/A"}}]
[null,null,null,null,null,null,null,null,null,null,null,null,null,null,null,"x",null,null,null,null,null,null,null,null,null,null,null,null,"C","2019-11-01","9999-12-31",1,"Pur Community Liaison",20053479,"C11",8810,1.6000000000000001E-3,58112.6,87168.9,88027,"PUR PURCHASING",{"$f":"_xlfn.XLOOKUP(job_titles17[[#This Row],[Extended object ID]],O:O,P:P)","v":{"$error":"#N/A"}}]
[null,null,null,null,null,null,null,null,null,null,null,null,null,null,null,"x",null,null,null,null,null,null,null,null,null,null,null,null,"C","2017-06-01","9999-12-31",1,"Pur Contract Compliance Director",20052076,"C23",8810,1.6000000000000001E-3,121718.94,200836.25,88027,"PUR PURCHASING",{"$f":"_xlfn.XLOOKUP(job_titles17[[#This Row],[Extended object ID]],O:O,P:P)","v":{"$error":"#N/A"}}]
[null,null,null,null,null,null,null,null,null,null,null,null,null,null,null,"x",null,null,null,null,null,null,null,null,null,null,null,null,"C","2018-09-01","9999-12-31",1,"Pur Contract Compliance Monitor",20052751,"C10",8810,1.6000000000000001E-3,55877.5,82698.7,88027,"PUR PURCHASING",{"$f":"_xlfn.XLOOKUP(job_titles17[[#This Row],[Extended object ID]],O:O,P:P)","v":{"$error":"#N/A"}}]
[null,null,null,null,null,null,null,null,null,null,null,null,null,null,null,"x",null,null,null,null,null,null,null,null,null,null,null,null,"C","2017-07-28","9999-12-31",1,"Pur Contract Compliance Officer",20052151,"C16",8810,1.6000000000000001E-3,75776.03,121241.65,88027,"PUR PURCHASING",{"$f":"_xlfn.XLOOKUP(job_titles17[[#This Row],[Extended object ID]],O:O,P:P)","v":{"$error":"#N/A"}}]
[null,null,null,null,null,null,null,null,null,null,null,null,null,null,null,"x",null,null,null,null,null,null,null,null,null,null,null,null,"C","2017-12-01","9999-12-31",1,"Pur HUB Program Director",20052376,"C21",8810,1.6000000000000001E-3,106310.9,175412.99,88027,"PUR PURCHASING",{"$f":"_xlfn.XLOOKUP(job_titles17[[#This Row],[Extended object ID]],O:O,P:P)","v":{"$error":"#N/A"}}]
[null,null,null,null,null,null,null,null,null,null,null,null,null,null,null,"x",null,null,null,null,null,null,null,null,null,null,null,null,"C","1950-01-01","9999-12-31",1,"Pur HUB Specialist",20000596,"C10",8810,1.6000000000000001E-3,55877.5,82698.7,88027,"PUR PURCHASING",{"$f":"_xlfn.XLOOKUP(job_titles17[[#This Row],[Extended object ID]],O:O,P:P)","v":{"$error":"#N/A"}}]
[null,null,null,null,null,null,null,null,null,null,null,null,null,null,null,"x",null,null,null,null,null,null,null,null,null,null,null,null,"C","2017-11-01","9999-12-31",1,"Pur Operations & Procurement Director",20052276,"C24",8810,1.6000000000000001E-3,130239.35,214894.92,88027,"PUR PURCHASING",{"$f":"_xlfn.XLOOKUP(job_titles17[[#This Row],[Extended object ID]],O:O,P:P)","v":{"$error":"#N/A"}}]
[null,null,null,null,null,null,null,null,null,null,null,null,null,null,null,"x",null,null,null,null,null,null,null,null,null,null,null,null,"C","2019-09-10","9999-12-31",1,"Pur Operations Consultant",20053276,"C20",8810,1.6000000000000001E-3,99345.18,158952.29,88027,"PUR PURCHASING",{"$f":"_xlfn.XLOOKUP(job_titles17[[#This Row],[Extended object ID]],O:O,P:P)","v":{"$error":"#N/A"}}]
[null,null,null,null,null,null,null,null,null,null,null,null,null,null,null,"x",null,null,null,null,null,null,null,null,null,null,null,null,"C","2020-10-01","9999-12-31",1,"Pur Operations Program Coordinator",20053876,"C15",8810,1.6000000000000001E-3,70819.7,113311.53,88027,"PUR PURCHASING",{"$f":"_xlfn.XLOOKUP(job_titles17[[#This Row],[Extended object ID]],O:O,P:P)","v":{"$error":"#N/A"}}]
[null,null,null,null,null,null,null,null,null,null,null,null,null,null,null,"x",null,null,null,null,null,null,null,null,null,null,null,null,"C","2020-03-09","9999-12-31",1,"Pur Operations Project Coordinator I",20053651,"C13",8810,1.6000000000000001E-3,62854.59,100567.34,88027,"PUR PURCHASING",{"$f":"_xlfn.XLOOKUP(job_titles17[[#This Row],[Extended object ID]],O:O,P:P)","v":{"$error":"#N/A"}}]
[null,null,null,null,null,null,null,null,null,null,null,null,null,null,null,"x",null,null,null,null,null,null,null,null,null,null,null,null,"C","2020-12-15","9999-12-31",1,"Pur Operations Project Coordinator II",20053952,"C15",8810,1.6000000000000001E-3,70819.7,113311.53,88027,"PUR PURCHASING",{"$f":"_xlfn.XLOOKUP(job_titles17[[#This Row],[Extended object ID]],O:O,P:P)","v":{"$error":"#N/A"}}]
[null,null,null,null,null,null,null,null,null,null,null,null,null,null,null,"x",null,null,null,null,null,null,null,null,null,null,null,null,"C","2019-01-16","9999-12-31",1,"Pur Operations Project Manager I",20052951,"C18",8810,1.6000000000000001E-3,86761.41,138818.25,88027,"PUR PURCHASING",{"$f":"_xlfn.XLOOKUP(job_titles17[[#This Row],[Extended object ID]],O:O,P:P)","v":{"$error":"#N/A"}}]
[null,null,null,null,null,null,null,null,null,null,null,null,null,null,null,"x",null,null,null,null,null,null,null,null,null,null,null,null,"C","2019-11-01","9999-12-31",1,"Pur Operations Specialist I",20053480,"C09",8810,1.6000000000000001E-3,53987.92,78282.490000000005,88027,"PUR PURCHASING",{"$f":"_xlfn.XLOOKUP(job_titles17[[#This Row],[Extended object ID]],O:O,P:P)","v":{"$error":"#N/A"}}]
[null,null,null,null,null,null,null,null,null,null,null,null,null,null,null,"x",null,null,null,null,null,null,null,null,null,null,null,null,"C","2020-12-15","9999-12-31",1,"Pur Operations Specialist II",20053951,"C12",8810,1.6000000000000001E-3,60437.1,90655.66,88027,"PUR PURCHASING",{"$f":"_xlfn.XLOOKUP(job_titles17[[#This Row],[Extended object ID]],O:O,P:P)","v":{"$error":"#N/A"}}]
[null,null,null,null,null,null,null,null,null,null,null,null,null,null,null,"x",null,null,null,null,null,null,null,null,null,null,null,null,"C","2019-11-01","9999-12-31",1,"Pur Procurement Specialist I",20053481,"C10",8810,1.6000000000000001E-3,55877.5,82698.7,88027,"PUR PURCHASING",{"$f":"_xlfn.XLOOKUP(job_titles17[[#This Row],[Extended object ID]],O:O,P:P)","v":{"$error":"#N/A"}}]
[null,null,null,null,null,null,null,null,null,null,null,null,null,null,null,"x",null,null,null,null,null,null,null,null,null,null,null,null,"C","2019-11-01","9999-12-31",1,"Pur Procurement Specialist II",20053482,"C13",8810,1.6000000000000001E-3,62854.59,100567.34,88027,"PUR PURCHASING",{"$f":"_xlfn.XLOOKUP(job_titles17[[#This Row],[Extended object ID]],O:O,P:P)","v":{"$error":"#N/A"}}]
[null,null,null,null,null,null,null,null,null,null,null,null,null,null,null,"x",null,null,null,null,null,null,null,null,null,null,null,null,"C","2019-11-01","9999-12-31",1,"Pur Procurement Specialist III",20053483,"C16",8810,1.6000000000000001E-3,75776.03,121241.65,88027,"PUR PURCHASING",{"$f":"_xlfn.XLOOKUP(job_titles17[[#This Row],[Extended object ID]],O:O,P:P)","v":{"$error":"#N/A"}}]
[null,null,null,null,null,null,null,null,null,null,null,null,null,null,null,"x",null,null,null,null,null,null,null,null,null,null,null,null,"C","2019-11-01","9999-12-31",1,"Pur Project Manager II",20053477,"C19",8810,1.6000000000000001E-3,92836.33,148538.12,88027,"PUR PURCHASING",{"$f":"_xlfn.XLOOKUP(job_titles17[[#This Row],[Extended object ID]],O:O,P:P)","v":{"$error":"#N/A"}}]
[null,null,null,null,null,null,null,null,null,null,null,null,null,null,null,"x",null,null,null,null,null,null,null,null,null,null,null,null,"C","1950-01-01","9999-12-31",1,"Pur Purchasing Agent",20000515,"NCF01",8810,1.6000000000000001E-3,15080,500000,88023,"APPOINTED",{"$f":"_xlfn.XLOOKUP(job_titles17[[#This Row],[Extended object ID]],O:O,P:P)","v":"x"}]
[null,null,null,null,null,null,null,null,null,null,null,null,null,null,null,"x",null,null,null,null,null,null,null,null,null,null,null,null,"C","2019-11-01","9999-12-31",1,"Pur Senior Procurement Specialist",20053484,"C19",8810,1.6000000000000001E-3,92836.33,148538.12,88027,"PUR PURCHASING",{"$f":"_xlfn.XLOOKUP(job_titles17[[#This Row],[Extended object ID]],O:O,P:P)","v":{"$error":"#N/A"}}]
[null,null,null,null,null,null,null,null,null,null,null,null,null,null,null,"x",null,null,null,null,null,null,null,null,null,null,null,null,"C","1950-01-01","9999-12-31",1,"Pur Support Specialist I",20000590,"C03",8810,1.6000000000000001E-3,44561.919999999998,57930.5,88027,"PUR PURCHASING",{"$f":"_xlfn.XLOOKUP(job_titles17[[#This Row],[Extended object ID]],O:O,P:P)","v":{"$error":"#N/A"}}]
[null,null,null,null,null,null,null,null,null,null,null,null,null,null,null,"x",null,null,null,null,null,null,null,null,null,null,null,null,"C","1950-01-01","9999-12-31",1,"Pur Support Specialist II",20000591,"C05",8810,1.6000000000000001E-3,47275.74,61458.46,88027,"PUR PURCHASING",{"$f":"_xlfn.XLOOKUP(job_titles17[[#This Row],[Extended object ID]],O:O,P:P)","v":{"$error":"#N/A"}}]
[null,null,null,null,null,null,null,null,null,null,null,null,null,null,null,"x",null,null,null,null,null,null,null,null,null,null,null,null,"C","1950-01-01","9999-12-31",1,"Pur Support Specialist III",20000592,"C07",8810,1.6000000000000001E-3,50398.3,68037.710000000006,88027,"PUR PURCHASING",{"$f":"_xlfn.XLOOKUP(job_titles17[[#This Row],[Extended object ID]],O:O,P:P)","v":{"$error":"#N/A"}}]
[null,null,null,null,null,null,null,null,null,null,null,null,null,null,null,"x",null,null,null,null,null,null,null,null,null,null,null,null,"C","2022-05-03","9999-12-31",1,"Racial and Social Justice Officer",20054851,"C18",8810,1.6000000000000001E-3,86761.41,138818.25,88014,"MANAGEMENT",{"$f":"_xlfn.XLOOKUP(job_titles17[[#This Row],[Extended object ID]],O:O,P:P)","v":{"$error":"#N/A"}}]
[null,null,null,null,null,null,null,null,null,null,null,null,null,null,null,"x",null,null,null,null,null,null,null,null,null,null,null,null,"C","2012-10-01","9999-12-31",1,"Real Estate Div Mgr",20050083,"C17",8601,1.8E-3,81074.789999999994,129719.67,88015,"PROFESSIONAL SUPP",{"$f":"_xlfn.XLOOKUP(job_titles17[[#This Row],[Extended object ID]],O:O,P:P)","v":{"$error":"#N/A"}}]
[null,null,null,null,null,null,null,null,null,null,null,null,null,null,null,"x",null,null,null,null,null,null,null,null,null,null,null,null,"C","1950-01-01","9999-12-31",1,"Recording Specialist I",20000108,"C05",8810,1.6000000000000001E-3,47275.74,61458.46,88004,"ADMINISTRATIVE SUPP",{"$f":"_xlfn.XLOOKUP(job_titles17[[#This Row],[Extended object ID]],O:O,P:P)","v":{"$error":"#N/A"}}]
[null,null,null,null,null,null,null,null,null,null,null,null,null,null,null,"x",null,null,null,null,null,null,null,null,null,null,null,null,"C","1950-01-01","9999-12-31",1,"Recording Specialist II",20000109,"C07",8810,1.6000000000000001E-3,50398.3,68037.710000000006,88004,"ADMINISTRATIVE SUPP",{"$f":"_xlfn.XLOOKUP(job_titles17[[#This Row],[Extended object ID]],O:O,P:P)","v":{"$error":"#N/A"}}]
[null,null,null,null,null,null,null,null,null,null,null,null,null,null,null,"x",null,null,null,null,null,null,null,null,null,null,null,null,"C","1950-01-01","9999-12-31",1,"Recording Specialist Sr",20000110,"C08",8810,1.6000000000000001E-3,52162.239999999998,75635.25,88004,"ADMINISTRATIVE SUPP",{"$f":"_xlfn.XLOOKUP(job_titles17[[#This Row],[Extended object ID]],O:O,P:P)","v":{"$error":"#N/A"}}]
[null,null,null,null,null,null,null,null,null,null,null,null,null,null,null,"x",null,null,null,null,null,null,null,null,null,null,null,null,"C","1950-01-01","9999-12-31",1,"Records Analyst",20000366,"C10",8810,1.6000000000000001E-3,55877.5,82698.7,88015,"PROFESSIONAL SUPP",{"$f":"_xlfn.XLOOKUP(job_titles17[[#This Row],[Extended object ID]],O:O,P:P)","v":{"$error":"#N/A"}}]
[null,null,null,null,null,null,null,null,null,null,null,null,null,null,null,"x",null,null,null,null,null,null,null,null,null,null,null,null,"C","1950-01-01","9999-12-31",1,"Records Analyst Assoc",20000364,"C07",8810,1.6000000000000001E-3,50398.3,68037.710000000006,88015,"PROFESSIONAL SUPP",{"$f":"_xlfn.XLOOKUP(job_titles17[[#This Row],[Extended object ID]],O:O,P:P)","v":{"$error":"#N/A"}}]
[null,null,null,null,null,null,null,null,null,null,null,null,null,null,null,"x",null,null,null,null,null,null,null,null,null,null,null,null,"C","1950-01-01","9999-12-31",1,"Records Analyst Asst",20000365,"C05",8810,1.6000000000000001E-3,47275.74,61458.46,88015,"PROFESSIONAL SUPP",{"$f":"_xlfn.XLOOKUP(job_titles17[[#This Row],[Extended object ID]],O:O,P:P)","v":{"$error":"#N/A"}}]
[null,null,null,null,null,null,null,null,null,null,null,null,null,null,null,"x",null,null,null,null,null,null,null,null,null,null,null,null,"C","1950-01-01","9999-12-31",1,"Records Analyst Supv",20000367,"C12",8810,1.6000000000000001E-3,60437.1,90655.66,88015,"PROFESSIONAL SUPP",{"$f":"_xlfn.XLOOKUP(job_titles17[[#This Row],[Extended object ID]],O:O,P:P)","v":{"$error":"#N/A"}}]
[null,null,null,null,null,null,null,null,null,null,null,null,null,null,null,"x",null,null,null,null,null,null,null,null,null,null,null,null,"C","2020-09-15","9999-12-31",1,"Records Management Officer",20053827,"C17",8810,1.6000000000000001E-3,81074.789999999994,129719.67,88014,"MANAGEMENT",{"$f":"_xlfn.XLOOKUP(job_titles17[[#This Row],[Extended object ID]],O:O,P:P)","v":{"$error":"#N/A"}}]
[null,null,null,null,null,null,null,null,null,null,null,null,null,null,null,"x",null,null,null,null,null,null,null,null,null,null,null,null,"C","2022-04-12","9999-12-31",1,"Recruiter I",20054801,"C10",8810,1.6000000000000001E-3,55877.5,82698.7,88016,"HUMAN RESOURCES",{"$f":"_xlfn.XLOOKUP(job_titles17[[#This Row],[Extended object ID]],O:O,P:P)","v":{"$error":"#N/A"}}]
[null,null,null,null,null,null,null,null,null,null,null,null,null,null,null,"x",null,null,null,null,null,null,null,null,null,null,null,null,"C","2022-04-12","9999-12-31",1,"Recruiter II",20054802,"C12",8810,1.6000000000000001E-3,60437.1,90655.66,88016,"HUMAN RESOURCES",{"$f":"_xlfn.XLOOKUP(job_titles17[[#This Row],[Extended object ID]],O:O,P:P)","v":{"$error":"#N/A"}}]
[null,null,null,null,null,null,null,null,null,null,null,null,null,null,null,"x",null,null,null,null,null,null,null,null,null,null,null,null,"C","1950-01-01","9999-12-31",1,"Registered Nurse Charge Nurse",20000054,"C16",8832,1.9E-3,75776.03,121241.65,88003,"MEDICAL",{"$f":"_xlfn.XLOOKUP(job_titles17[[#This Row],[Extended object ID]],O:O,P:P)","v":{"$error":"#N/A"}}]
[null,null,null,null,null,null,null,null,null,null,null,null,null,null,null,"x",null,null,null,null,null,null,null,null,null,null,null,null,"C","1950-01-01","9999-12-31",1,"Registered Nurse I",20000052,"C13",8832,1.9E-3,62854.59,100567.34,88003,"MEDICAL",{"$f":"_xlfn.XLOOKUP(job_titles17[[#This Row],[Extended object ID]],O:O,P:P)","v":{"$error":"#N/A"}}]
[null,null,null,null,null,null,null,null,null,null,null,null,null,null,null,"x",null,null,null,null,null,null,null,null,null,null,null,null,"C","1950-01-01","9999-12-31",1,"Registered Nurse II",20000053,"C14",8832,1.9E-3,66183.97,105894.35,88003,"MEDICAL",{"$f":"_xlfn.XLOOKUP(job_titles17[[#This Row],[Extended object ID]],O:O,P:P)","v":{"$error":"#N/A"}}]
[null,null,null,null,null,null,null,null,null,null,null,null,null,null,null,"x",null,null,null,null,null,null,null,null,null,null,null,null,"C","1950-01-01","9999-12-31",1,"Reprographics Production Tech",20000399,"C04",4299,1.24E-2,45898.78,59668.41,88018,"IMAGING & GRAPHICS",{"$f":"_xlfn.XLOOKUP(job_titles17[[#This Row],[Extended object ID]],O:O,P:P)","v":{"$error":"#N/A"}}]
[null,null,null,null,null,null,null,null,null,null,null,null,null,null,null,"x",null,null,null,null,null,null,null,null,null,null,null,null,"C","2022-10-02","9999-12-31",1,"Reprographics Production Tech Lead",20055278,"C05",4299,1.24E-2,47275.74,61458.46,88018,"IMAGING & GRAPHICS",{"$f":"_xlfn.XLOOKUP(job_titles17[[#This Row],[Extended object ID]],O:O,P:P)","v":{"$error":"#N/A"}}]
[null,null,null,null,null,null,null,null,null,null,null,null,null,null,null,"x",null,null,null,null,null,null,null,null,null,null,null,null,"C","1950-01-01","9999-12-31",1,"Reprographics Supervisor",20000400,"C07",4299,1.24E-2,50398.3,68037.710000000006,88018,"IMAGING & GRAPHICS",{"$f":"_xlfn.XLOOKUP(job_titles17[[#This Row],[Extended object ID]],O:O,P:P)","v":{"$error":"#N/A"}}]
[null,null,null,null,null,null,null,null,null,null,null,null,null,null,null,"x",null,null,null,null,null,null,null,null,null,null,null,null,"C","2021-10-02","9999-12-31",1,"Retirement Specialist",20054501,"C10",8810,1.6000000000000001E-3,55877.5,82698.7,88016,"HUMAN RESOURCES",{"$f":"_xlfn.XLOOKUP(job_titles17[[#This Row],[Extended object ID]],O:O,P:P)","v":{"$error":"#N/A"}}]
[null,null,null,null,null,null,null,null,null,null,null,null,null,null,null,"x",null,null,null,null,null,null,null,null,null,null,null,null,"C","1950-01-01","9999-12-31",1,"Right Of Way Agent",20000362,"C12",8601,1.8E-3,60437.1,90655.66,88015,"PROFESSIONAL SUPP",{"$f":"_xlfn.XLOOKUP(job_titles17[[#This Row],[Extended object ID]],O:O,P:P)","v":{"$error":"#N/A"}}]
[null,null,null,null,null,null,null,null,null,null,null,null,null,null,null,"x",null,null,null,null,null,null,null,null,null,null,null,null,"C","2022-12-06","9999-12-31",1,"Right Of Way Agent Succession",20055376,"C12",null,null,60437.1,90655.66,88015,"PROFESSIONAL SUPP",{"$f":"_xlfn.XLOOKUP(job_titles17[[#This Row],[Extended object ID]],O:O,P:P)","v":{"$error":"#N/A"}}]
[null,null,null,null,null,null,null,null,null,null,null,null,null,null,null,"x",null,null,null,null,null,null,null,null,null,null,null,null,"C","2022-10-25","9999-12-31",1,"Risk Management Supervisor",20055201,"C16",8810,1.6000000000000001E-3,75776.03,121241.65,88016,"HUMAN RESOURCES",{"$f":"_xlfn.XLOOKUP(job_titles17[[#This Row],[Extended object ID]],O:O,P:P)","v":{"$error":"#N/A"}}]
[null,null,null,null,null,null,null,null,null,null,null,null,null,null,null,"x",null,null,null,null,null,null,null,null,null,null,null,null,"C","2021-10-02","9999-12-31",1,"Risk Manager",20054457,"C18",8810,1.6000000000000001E-3,86761.41,138818.25,88016,"HUMAN RESOURCES",{"$f":"_xlfn.XLOOKUP(job_titles17[[#This Row],[Extended object ID]],O:O,P:P)","v":{"$error":"#N/A"}}]
[null,null,null,null,null,null,null,null,null,null,null,null,null,null,null,"x",null,null,null,null,null,null,null,null,null,null,null,null,"C","2019-09-30","9999-12-31",1,"Risk Safety Analyst I",20053278,"C10",8810,1.6000000000000001E-3,55877.5,82698.7,88016,"HUMAN RESOURCES",{"$f":"_xlfn.XLOOKUP(job_titles17[[#This Row],[Extended object ID]],O:O,P:P)","v":{"$error":"#N/A"}}]
[null,null,null,null,null,null,null,null,null,null,null,null,null,null,null,"x",null,null,null,null,null,null,null,null,null,null,null,null,"C","2019-09-30","9999-12-31",1,"Risk Safety Analyst II",20053279,"C12",8810,1.6000000000000001E-3,60437.1,90655.66,88016,"HUMAN RESOURCES",{"$f":"_xlfn.XLOOKUP(job_titles17[[#This Row],[Extended object ID]],O:O,P:P)","v":{"$error":"#N/A"}}]
[null,null,null,null,null,null,null,null,null,null,null,null,null,null,null,"x",null,null,null,null,null,null,null,null,null,null,null,null,"C","2019-09-30","9999-12-31",1,"Risk Safety Analyst Sr",20053280,"C14",8810,1.6000000000000001E-3,66183.97,105894.35,88016,"HUMAN RESOURCES",{"$f":"_xlfn.XLOOKUP(job_titles17[[#This Row],[Extended object ID]],O:O,P:P)","v":{"$error":"#N/A"}}]
[null,null,null,null,null,null,null,null,null,null,null,null,null,null,null,"x",null,null,null,null,null,null,null,null,null,null,null,null,"C","2017-10-25","9999-12-31",1,"Risk Safety Analyst Sr Sn",20052279,"GRD23",8810,1.6000000000000001E-3,59466.58,95146.48,88016,"HUMAN RESOURCES",{"$f":"_xlfn.XLOOKUP(job_titles17[[#This Row],[Extended object ID]],O:O,P:P)","v":"x"}]
[null,null,null,null,null,null,null,null,null,null,null,null,null,null,null,"x",null,null,null,null,null,null,null,null,null,null,null,null,"C","1950-01-01","9999-12-31",1,"Risk Safety Specialist I",20000388,"C10",8810,1.6000000000000001E-3,55877.5,82698.7,88016,"HUMAN RESOURCES",{"$f":"_xlfn.XLOOKUP(job_titles17[[#This Row],[Extended object ID]],O:O,P:P)","v":{"$error":"#N/A"}}]
[null,null,null,null,null,null,null,null,null,null,null,null,null,null,null,"x",null,null,null,null,null,null,null,null,null,null,null,null,"C","1950-01-01","9999-12-31",1,"Risk Safety Specialist II",20000389,"C12",8810,1.6000000000000001E-3,60437.1,90655.66,88016,"HUMAN RESOURCES",{"$f":"_xlfn.XLOOKUP(job_titles17[[#This Row],[Extended object ID]],O:O,P:P)","v":{"$error":"#N/A"}}]
[null,null,null,null,null,null,null,null,null,null,null,null,null,null,null,"x",null,null,null,null,null,null,null,null,null,null,null,null,"C","1950-01-01","9999-12-31",1,"Road Maintenance Mgr",20000020,"C15",5606,5.5999999999999999E-3,70819.7,113311.53,88001,"MAINTENANCE",{"$f":"_xlfn.XLOOKUP(job_titles17[[#This Row],[Extended object ID]],O:O,P:P)","v":{"$error":"#N/A"}}]
[null,null,null,null,null,null,null,null,null,null,null,null,null,null,null,"x",null,null,null,null,null,null,null,null,null,null,null,null,"C","1950-01-01","9999-12-31",1,"Road Maintenance Supv",20000019,"C13",5506,4.3700000000000003E-2,62854.59,100567.34,88001,"MAINTENANCE",{"$f":"_xlfn.XLOOKUP(job_titles17[[#This Row],[Extended object ID]],O:O,P:P)","v":{"$error":"#N/A"}}]
[null,null,null,null,null,null,null,null,null,null,null,null,null,null,null,"x",null,null,null,null,null,null,null,null,null,null,null,null,"C","1950-01-01","9999-12-31",1,"Road Maintenance Worker I",20000017,"C04",5506,4.3700000000000003E-2,45898.78,59668.41,88001,"MAINTENANCE",{"$f":"_xlfn.XLOOKUP(job_titles17[[#This Row],[Extended object ID]],O:O,P:P)","v":{"$error":"#N/A"}}]
[null,null,null,null,null,null,null,null,null,null,null,null,null,null,null,"x",null,null,null,null,null,null,null,null,null,null,null,null,"C","2023-10-02","9999-12-31",1,"Road Maintenance Worker II",20055802,"C05",5506,4.3700000000000003E-2,47275.74,61458.46,88001,"MAINTENANCE",{"$f":"_xlfn.XLOOKUP(job_titles17[[#This Row],[Extended object ID]],O:O,P:P)","v":{"$error":"#N/A"}}]
[null,null,null,null,null,null,null,null,null,null,null,null,null,null,null,"x",null,null,null,null,null,null,null,null,null,null,null,null,"C","2023-10-02","9999-12-31",1,"Road Maintenance Worker III",20055803,"C06",5506,4.3700000000000003E-2,48694.01,65736.92,88001,"MAINTENANCE",{"$f":"_xlfn.XLOOKUP(job_titles17[[#This Row],[Extended object ID]],O:O,P:P)","v":{"$error":"#N/A"}}]
[null,null,null,null,null,null,null,null,null,null,null,null,null,null,null,"x",null,null,null,null,null,null,null,null,null,null,null,null,"C","2019-10-01","9999-12-31",1,"Road Maintenance Worker Lead",20053401,"C07",5506,4.3700000000000003E-2,50398.3,68037.710000000006,88001,"MAINTENANCE",{"$f":"_xlfn.XLOOKUP(job_titles17[[#This Row],[Extended object ID]],O:O,P:P)","v":{"$error":"#N/A"}}]
[null,null,null,null,null,null,null,null,null,null,null,null,null,null,null,"x",null,null,null,null,null,null,null,null,null,null,null,null,"C","1950-01-01","9999-12-31",1,"Road Maintenance Worker Sr (Signs)",20000018,"C05",5506,4.3700000000000003E-2,47275.74,61458.46,88001,"MAINTENANCE",{"$f":"_xlfn.XLOOKUP(job_titles17[[#This Row],[Extended object ID]],O:O,P:P)","v":{"$error":"#N/A"}}]
[null,null,null,null,null,null,null,null,null,null,null,null,null,null,null,"x",null,null,null,null,null,null,null,null,null,null,null,null,"C","2022-10-11","9999-12-31",1,"Road Maintenance Worker Trainee",20055151,"C02",5506,4.3700000000000003E-2,43264,56243.199999999997,88001,"MAINTENANCE",{"$f":"_xlfn.XLOOKUP(job_titles17[[#This Row],[Extended object ID]],O:O,P:P)","v":{"$error":"#N/A"}}]
[null,null,null,null,null,null,null,null,null,null,null,null,null,null,null,"x",null,null,null,null,null,null,null,null,null,null,null,null,"C","2018-03-06","9999-12-31",1,"Safety Specialist I",20052451,"C07",8810,1.6000000000000001E-3,50398.3,68037.710000000006,88016,"HUMAN RESOURCES",{"$f":"_xlfn.XLOOKUP(job_titles17[[#This Row],[Extended object ID]],O:O,P:P)","v":{"$error":"#N/A"}}]
[null,null,null,null,null,null,null,null,null,null,null,null,null,null,null,"x",null,null,null,null,null,null,null,null,null,null,null,null,"C","2017-10-01","9999-12-31",1,"Security Center Coordinator",20052280,"C06",8810,1.6000000000000001E-3,48694.01,65736.92,88001,"MAINTENANCE",{"$f":"_xlfn.XLOOKUP(job_titles17[[#This Row],[Extended object ID]],O:O,P:P)","v":{"$error":"#N/A"}}]
[null,null,null,null,null,null,null,null,null,null,null,null,null,null,null,"x",null,null,null,null,null,null,null,null,null,null,null,null,"C","2016-11-29","9999-12-31",1,"Security Center Operator",20051801,"C04",8810,1.6000000000000001E-3,45898.78,59668.41,88001,"MAINTENANCE",{"$f":"_xlfn.XLOOKUP(job_titles17[[#This Row],[Extended object ID]],O:O,P:P)","v":{"$error":"#N/A"}}]
[null,null,null,null,null,null,null,null,null,null,null,null,null,null,null,"x",null,null,null,null,null,null,null,null,null,null,null,null,"C","2023-01-01","9999-12-31",1,"Security Center Supervisor",20055426,"C08",8810,1.6000000000000001E-3,52162.239999999998,75635.25,88001,"MAINTENANCE",{"$f":"_xlfn.XLOOKUP(job_titles17[[#This Row],[Extended object ID]],O:O,P:P)","v":{"$error":"#N/A"}}]
[null,null,null,null,null,null,null,null,null,null,null,null,null,null,null,"x",null,null,null,null,null,null,null,null,null,null,null,null,"C","1950-01-01","9999-12-31",1,"Security Coord",20000206,"C06",8810,1.6000000000000001E-3,48694.01,65736.92,88012,"PUBLIC SAF/EMG MGMT",{"$f":"_xlfn.XLOOKUP(job_titles17[[#This Row],[Extended object ID]],O:O,P:P)","v":{"$error":"#N/A"}}]
[null,null,null,null,null,null,null,null,null,null,null,null,null,null,null,"x",null,null,null,null,null,null,null,null,null,null,null,null,"C","2013-11-26","9999-12-31",1,"Security Manager",20050451,"C15",8810,1.6000000000000001E-3,70819.7,113311.53,88014,"MANAGEMENT",{"$f":"_xlfn.XLOOKUP(job_titles17[[#This Row],[Extended object ID]],O:O,P:P)","v":{"$error":"#N/A"}}]
[null,null,null,null,null,null,null,null,null,null,null,null,null,null,null,"x",null,null,null,null,null,null,null,null,null,null,null,null,"C","2019-09-17","9999-12-31",1,"Senior Capital Analyst",20053351,"C18",8810,1.6000000000000001E-3,86761.41,138818.25,88005,"FINANCE",{"$f":"_xlfn.XLOOKUP(job_titles17[[#This Row],[Extended object ID]],O:O,P:P)","v":{"$error":"#N/A"}}]
[null,null,null,null,null,null,null,null,null,null,null,null,null,null,null,"x",null,null,null,null,null,null,null,null,null,null,null,null,"C","2021-10-02","9999-12-31",1,"Senior Recruiter",20054403,"C14",8810,1.6000000000000001E-3,66183.97,105894.35,88016,"HUMAN RESOURCES",{"$f":"_xlfn.XLOOKUP(job_titles17[[#This Row],[Extended object ID]],O:O,P:P)","v":{"$error":"#N/A"}}]
[null,null,null,null,null,null,null,null,null,null,null,null,null,null,null,"x",null,null,null,null,null,null,null,null,null,null,null,null,"C","1950-01-01","9999-12-31",1,"Sheriff",20000511,"NCF01",7720,1.55E-2,15080,500000,88022,"ELECTED",{"$f":"_xlfn.XLOOKUP(job_titles17[[#This Row],[Extended object ID]],O:O,P:P)","v":"x"}]
[null,null,null,null,null,null,null,null,null,null,null,null,null,null,null,"x",null,null,null,null,null,null,null,null,null,null,null,null,"C","1950-01-01","9999-12-31",1,"Sheriff Chief Deputy",20000218,"C23",7720,1.55E-2,121718.94,200836.25,88012,"PUBLIC SAF/EMG MGMT",{"$f":"_xlfn.XLOOKUP(job_titles17[[#This Row],[Extended object ID]],O:O,P:P)","v":"x"}]
[null,null,null,null,null,null,null,null,null,null,null,null,null,null,null,"x",null,null,null,null,null,null,null,null,null,null,null,null,"C","2022-06-21","9999-12-31",1,"Sheriff Deputy-Facilities",20054927,"GRD84",7720,1.55E-2,62908.959999999999,62908.959999999999,88024,"POPS TCSO",{"$f":"_xlfn.XLOOKUP(job_titles17[[#This Row],[Extended object ID]],O:O,P:P)","v":{"$error":"#N/A"}}]
[null,null,null,null,null,null,null,null,null,null,null,null,null,null,null,"x",null,null,null,null,null,null,null,null,null,null,null,null,"C","2019-03-12","9999-12-31",1,"Sheriff Fleet Services Coord",20053052,"C11",7720,1.55E-2,58112.6,87168.9,88002,"SKILLED TRADES",{"$f":"_xlfn.XLOOKUP(job_titles17[[#This Row],[Extended object ID]],O:O,P:P)","v":{"$error":"#N/A"}}]
[null,null,null,null,null,null,null,null,null,null,null,null,null,null,null,"x",null,null,null,null,null,null,null,null,null,null,null,null,"C","1950-01-01","9999-12-31",1,"Shipping Receiving Supply Asst",20000027,"C03",9015,1.8800000000000001E-2,44561.919999999998,57930.5,88001,"MAINTENANCE",{"$f":"_xlfn.XLOOKUP(job_titles17[[#This Row],[Extended object ID]],O:O,P:P)","v":{"$error":"#N/A"}}]
[null,null,null,null,null,null,null,null,null,null,null,null,null,null,null,"x",null,null,null,null,null,null,null,null,null,null,null,null,"C","1950-01-01","9999-12-31",1,"Small Equipment Tech",20000615,"C04",9102,2.0799999999999999E-2,45898.78,59668.41,88001,"MAINTENANCE",{"$f":"_xlfn.XLOOKUP(job_titles17[[#This Row],[Extended object ID]],O:O,P:P)","v":{"$error":"#N/A"}}]
[null,null,null,null,null,null,null,null,null,null,null,null,null,null,null,"x",null,null,null,null,null,null,null,null,null,null,null,null,"C","1950-01-01","9999-12-31",1,"Social Services Aide",20000192,"C02",8810,1.6000000000000001E-3,43264,56243.199999999997,88011,"SOCIAL SVCS",{"$f":"_xlfn.XLOOKUP(job_titles17[[#This Row],[Extended object ID]],O:O,P:P)","v":{"$error":"#N/A"}}]
[null,null,null,null,null,null,null,null,null,null,null,null,null,null,null,"x",null,null,null,null,null,null,null,null,null,null,null,null,"C","1950-01-01","9999-12-31",1,"Social Services Asst",20000193,"C03",8810,1.6000000000000001E-3,44561.919999999998,57930.5,88011,"SOCIAL SVCS",{"$f":"_xlfn.XLOOKUP(job_titles17[[#This Row],[Extended object ID]],O:O,P:P)","v":{"$error":"#N/A"}}]
[null,null,null,null,null,null,null,null,null,null,null,null,null,null,null,"x",null,null,null,null,null,null,null,null,null,null,null,null,"C","1950-01-01","9999-12-31",1,"Social Services Dir",20000298,"C16",8810,1.6000000000000001E-3,75776.03,121241.65,88014,"MANAGEMENT",{"$f":"_xlfn.XLOOKUP(job_titles17[[#This Row],[Extended object ID]],O:O,P:P)","v":{"$error":"#N/A"}}]
[null,null,null,null,null,null,null,null,null,null,null,null,null,null,null,"x",null,null,null,null,null,null,null,null,null,null,null,null,"C","2021-12-21","9999-12-31",1,"Social Services JV Supervision Ofr I",20054601,"C05",7720,1.55E-2,47275.74,61458.46,88013,"COURT SERVICES",{"$f":"_xlfn.XLOOKUP(job_titles17[[#This Row],[Extended object ID]],O:O,P:P)","v":{"$error":"#N/A"}}]
[null,null,null,null,null,null,null,null,null,null,null,null,null,null,null,"x",null,null,null,null,null,null,null,null,null,null,null,null,"C","2021-12-21","9999-12-31",1,"Social Services JV Supervision Ofr II",20054602,"C06",7720,1.55E-2,48694.01,65736.92,88013,"COURT SERVICES",{"$f":"_xlfn.XLOOKUP(job_titles17[[#This Row],[Extended object ID]],O:O,P:P)","v":{"$error":"#N/A"}}]
[null,null,null,null,null,null,null,null,null,null,null,null,null,null,null,"x",null,null,null,null,null,null,null,null,null,null,null,null,"C","1950-01-01","9999-12-31",1,"Social Services Mgr",20000200,"C13",8810,1.6000000000000001E-3,62854.59,100567.34,88011,"SOCIAL SVCS",{"$f":"_xlfn.XLOOKUP(job_titles17[[#This Row],[Extended object ID]],O:O,P:P)","v":{"$error":"#N/A"}}]
[null,null,null,null,null,null,null,null,null,null,null,null,null,null,null,"x",null,null,null,null,null,null,null,null,null,null,null,null,"C","2022-09-20","9999-12-31",1,"Social Services Program Adm Succession",20055052,"GRD24",8810,1.6000000000000001E-3,63638.43,101821.41,88011,"SOCIAL SVCS",{"$f":"_xlfn.XLOOKUP(job_titles17[[#This Row],[Extended object ID]],O:O,P:P)","v":"x"}]
[null,null,null,null,null,null,null,null,null,null,null,null,null,null,null,"x",null,null,null,null,null,null,null,null,null,null,null,null,"C","1950-01-01","9999-12-31",1,"Social Services Program Administrator",20000201,"C14",8810,1.6000000000000001E-3,66183.97,105894.35,88011,"SOCIAL SVCS",{"$f":"_xlfn.XLOOKUP(job_titles17[[#This Row],[Extended object ID]],O:O,P:P)","v":{"$error":"#N/A"}}]
[null,null,null,null,null,null,null,null,null,null,null,null,null,null,null,"x",null,null,null,null,null,null,null,null,null,null,null,null,"C","1950-01-01","9999-12-31",1,"Social Services Program Coord",20000199,"C11",8810,1.6000000000000001E-3,58112.6,87168.9,88011,"SOCIAL SVCS",{"$f":"_xlfn.XLOOKUP(job_titles17[[#This Row],[Extended object ID]],O:O,P:P)","v":{"$error":"#N/A"}}]
[null,null,null,null,null,null,null,null,null,null,null,null,null,null,null,"x",null,null,null,null,null,null,null,null,null,null,null,null,"C","1950-01-01","9999-12-31",1,"Social Services Program Specialist",20000198,"C08",8810,1.6000000000000001E-3,52162.239999999998,75635.25,88011,"SOCIAL SVCS",{"$f":"_xlfn.XLOOKUP(job_titles17[[#This Row],[Extended object ID]],O:O,P:P)","v":{"$error":"#N/A"}}]
[null,null,null,null,null,null,null,null,null,null,null,null,null,null,null,"x",null,null,null,null,null,null,null,null,null,null,null,null,"C","1950-01-01","9999-12-31",1,"Social Services Program Specialist Assoc",20000197,"C05",8810,1.6000000000000001E-3,47275.74,61458.46,88011,"SOCIAL SVCS",{"$f":"_xlfn.XLOOKUP(job_titles17[[#This Row],[Extended object ID]],O:O,P:P)","v":{"$error":"#N/A"}}]
[null,null,null,null,null,null,null,null,null,null,null,null,null,null,null,"x",null,null,null,null,null,null,null,null,null,null,null,null,"C","1950-01-01","9999-12-31",1,"Social Worker",20000202,"C11",8810,1.6000000000000001E-3,58112.6,87168.9,88011,"SOCIAL SVCS",{"$f":"_xlfn.XLOOKUP(job_titles17[[#This Row],[Extended object ID]],O:O,P:P)","v":{"$error":"#N/A"}}]
[null,null,null,null,null,null,null,null,null,null,null,null,null,null,null,"x",null,null,null,null,null,null,null,null,null,null,null,null,"C","2013-01-02","9999-12-31",1,"Special Asst to Commissioners Court",20050227,"NCF01",8810,1.6000000000000001E-3,15080,500000,88014,"MANAGEMENT",{"$f":"_xlfn.XLOOKUP(job_titles17[[#This Row],[Extended object ID]],O:O,P:P)","v":{"$error":"#N/A"}}]
[null,null,null,null,null,null,null,null,null,null,null,null,null,null,null,"x",null,null,null,null,null,null,null,null,null,null,null,null,"C","1950-01-01","9999-12-31",1,"STAR Flight Medical Director",20000607,"NCF01",8832,1.9E-3,15080,500000,88020,"TEMP/SEASONAL",{"$f":"_xlfn.XLOOKUP(job_titles17[[#This Row],[Extended object ID]],O:O,P:P)","v":"x"}]
[null,null,null,null,null,null,null,null,null,null,null,null,null,null,null,"x",null,null,null,null,null,null,null,null,null,null,null,null,"C","2020-09-08","9999-12-31",1,"STAR Flight Outreach Coordinator",20053826,"C14",7422,1.3299999999999999E-2,66183.97,105894.35,88012,"PUBLIC SAF/EMG MGMT",{"$f":"_xlfn.XLOOKUP(job_titles17[[#This Row],[Extended object ID]],O:O,P:P)","v":{"$error":"#N/A"}}]
[null,null,null,null,null,null,null,null,null,null,null,null,null,null,null,"x",null,null,null,null,null,null,null,null,null,null,null,null,"C","2016-03-08","9999-12-31",1,"STAR Flight Safety Officer",20051351,"C20",7422,1.3299999999999999E-2,99345.18,158952.29,88012,"PUBLIC SAF/EMG MGMT",{"$f":"_xlfn.XLOOKUP(job_titles17[[#This Row],[Extended object ID]],O:O,P:P)","v":{"$error":"#N/A"}}]
[null,null,null,null,null,null,null,null,null,null,null,null,null,null,null,"x",null,null,null,null,null,null,null,null,null,null,null,null,"C","2022-10-18","9999-12-31",1,"StarFt Director of Aviation Operations",20055178,"C21",8810,1.6000000000000001E-3,106310.9,175412.99,88012,"PUBLIC SAF/EMG MGMT",{"$f":"_xlfn.XLOOKUP(job_titles17[[#This Row],[Extended object ID]],O:O,P:P)","v":{"$error":"#N/A"}}]
[null,null,null,null,null,null,null,null,null,null,null,null,null,null,null,"x",null,null,null,null,null,null,null,null,null,null,null,null,"C","2022-10-18","9999-12-31",1,"StarFt Director of Medical Operations",20055179,"C21",8810,1.6000000000000001E-3,106310.9,175412.99,88012,"PUBLIC SAF/EMG MGMT",{"$f":"_xlfn.XLOOKUP(job_titles17[[#This Row],[Extended object ID]],O:O,P:P)","v":{"$error":"#N/A"}}]
[null,null,null,null,null,null,null,null,null,null,null,null,null,null,null,"x",null,null,null,null,null,null,null,null,null,null,null,null,"C","2023-01-31","9999-12-31",1,"Strategic Advisor",20055453,"C18",8810,1.6000000000000001E-3,86761.41,138818.25,88014,"MANAGEMENT",{"$f":"_xlfn.XLOOKUP(job_titles17[[#This Row],[Extended object ID]],O:O,P:P)","v":{"$error":"#N/A"}}]
[null,null,null,null,null,null,null,null,null,null,null,null,null,null,null,"x",null,null,null,null,null,null,null,null,null,null,null,null,"C","1950-01-01","9999-12-31",1,"Strategic Planning Mgr",20000274,"GRD28",8810,1.6000000000000001E-3,83424.429999999993,133479.01,88014,"MANAGEMENT",{"$f":"_xlfn.XLOOKUP(job_titles17[[#This Row],[Extended object ID]],O:O,P:P)","v":{"$error":"#N/A"}}]
[null,null,null,null,null,null,null,null,null,null,null,null,null,null,null,"x",null,null,null,null,null,null,null,null,null,null,null,null,"C","2016-05-23","9999-12-31",1,"Student Intern 1",20051476,null,null,null,null,null,88020,"TEMP/SEASONAL",{"$f":"_xlfn.XLOOKUP(job_titles17[[#This Row],[Extended object ID]],O:O,P:P)","v":{"$error":"#N/A"}}]
[null,null,null,null,null,null,null,null,null,null,null,null,null,null,null,"x",null,null,null,null,null,null,null,null,null,null,null,null,"C","2016-05-23","9999-12-31",1,"Student Intern 2",20051477,"NCF01",8810,1.6000000000000001E-3,15080,500000,88020,"TEMP/SEASONAL",{"$f":"_xlfn.XLOOKUP(job_titles17[[#This Row],[Extended object ID]],O:O,P:P)","v":{"$error":"#N/A"}}]
[null,null,null,null,null,null,null,null,null,null,null,null,null,null,null,"x",null,null,null,null,null,null,null,null,null,null,null,null,"C","2016-05-23","9999-12-31",1,"Student Intern 3",20051478,"NCF01",8810,1.6000000000000001E-3,15080,500000,88020,"TEMP/SEASONAL",{"$f":"_xlfn.XLOOKUP(job_titles17[[#This Row],[Extended object ID]],O:O,P:P)","v":{"$error":"#N/A"}}]
[null,null,null,null,null,null,null,null,null,null,null,null,null,null,null,"x",null,null,null,null,null,null,null,null,null,null,null,null,"C","2016-05-23","9999-12-31",1,"Student Intern 4",20051479,"NCF01",8810,1.6000000000000001E-3,15080,500000,88020,"TEMP/SEASONAL",{"$f":"_xlfn.XLOOKUP(job_titles17[[#This Row],[Extended object ID]],O:O,P:P)","v":{"$error":"#N/A"}}]
[null,null,null,null,null,null,null,null,null,null,null,null,null,null,null,"x",null,null,null,null,null,null,null,null,null,null,null,null,"C","1950-01-01","9999-12-31",1,"Support Services Mgr",20000301,"C14",8810,1.6000000000000001E-3,66183.97,105894.35,88014,"MANAGEMENT",{"$f":"_xlfn.XLOOKUP(job_titles17[[#This Row],[Extended object ID]],O:O,P:P)","v":{"$error":"#N/A"}}]
[null,null,null,null,null,null,null,null,null,null,null,null,null,null,null,"x",null,null,null,null,null,null,null,null,null,null,null,null,"C","2022-12-06","9999-12-31",1,"Support Services Supervisor",20055351,"C11",8810,1.6000000000000001E-3,58112.6,87168.9,88018,"IMAGING & GRAPHICS",{"$f":"_xlfn.XLOOKUP(job_titles17[[#This Row],[Extended object ID]],O:O,P:P)","v":{"$error":"#N/A"}}]
[null,null,null,null,null,null,null,null,null,null,null,null,null,null,null,"x",null,null,null,null,null,null,null,null,null,null,null,null,"C","2019-10-01","9999-12-31",1,"Supportive Case Manager",20053303,"C10",8810,1.6000000000000001E-3,55877.5,82698.7,88011,"SOCIAL SVCS",{"$f":"_xlfn.XLOOKUP(job_titles17[[#This Row],[Extended object ID]],O:O,P:P)","v":{"$error":"#N/A"}}]
[null,null,null,null,null,null,null,null,null,null,null,null,null,null,null,"x",null,null,null,null,null,null,null,null,null,null,null,null,"C","1950-01-01","9999-12-31",1,"Survey Crew Spc",20000176,"C06",8601,1.8E-3,48694.01,65736.92,88009,"ENGINEERING & ARCHITECTURAL",{"$f":"_xlfn.XLOOKUP(job_titles17[[#This Row],[Extended object ID]],O:O,P:P)","v":{"$error":"#N/A"}}]
[null,null,null,null,null,null,null,null,null,null,null,null,null,null,null,"x",null,null,null,null,null,null,null,null,null,null,null,null,"C","1950-01-01","9999-12-31",1,"Survey Crew Tech",20000175,"C04",8601,1.8E-3,45898.78,59668.41,88009,"ENGINEERING & ARCHITECTURAL",{"$f":"_xlfn.XLOOKUP(job_titles17[[#This Row],[Extended object ID]],O:O,P:P)","v":{"$error":"#N/A"}}]
[null,null,null,null,null,null,null,null,null,null,null,null,null,null,null,"x",null,null,null,null,null,null,null,null,null,null,null,null,"C","1950-01-01","9999-12-31",1,"Survey Records Mgr",20000177,"C14",8601,1.8E-3,66183.97,105894.35,88009,"ENGINEERING & ARCHITECTURAL",{"$f":"_xlfn.XLOOKUP(job_titles17[[#This Row],[Extended object ID]],O:O,P:P)","v":{"$error":"#N/A"}}]
[null,null,null,null,null,null,null,null,null,null,null,null,null,null,null,"x",null,null,null,null,null,null,null,null,null,null,null,null,"C","2015-10-01","9999-12-31",1,"Systems Analyst",20051201,"C12",8810,1.6000000000000001E-3,60437.1,90655.66,88021,"INFORMATION TECH",{"$f":"_xlfn.XLOOKUP(job_titles17[[#This Row],[Extended object ID]],O:O,P:P)","v":{"$error":"#N/A"}}]
[null,null,null,null,null,null,null,null,null,null,null,null,null,null,null,"x",null,null,null,null,null,null,null,null,null,null,null,null,"C","2015-10-01","9999-12-31",1,"Systems Analyst Sr",20051202,"C16",8810,1.6000000000000001E-3,75776.03,121241.65,88021,"INFORMATION TECH",{"$f":"_xlfn.XLOOKUP(job_titles17[[#This Row],[Extended object ID]],O:O,P:P)","v":{"$error":"#N/A"}}]
[null,null,null,null,null,null,null,null,null,null,null,null,null,null,null,"x",null,null,null,null,null,null,null,null,null,null,null,null,"C","1950-01-01","9999-12-31",1,"Systems Architect",20000488,"C20",8810,1.6000000000000001E-3,99345.18,158952.29,88021,"INFORMATION TECH",{"$f":"_xlfn.XLOOKUP(job_titles17[[#This Row],[Extended object ID]],O:O,P:P)","v":{"$error":"#N/A"}}]
[null,null,null,null,null,null,null,null,null,null,null,null,null,null,null,"x",null,null,null,null,null,null,null,null,null,null,null,null,"C","1950-01-01","9999-12-31",1,"Systems Engineer",20000491,"C14",8810,1.6000000000000001E-3,66183.97,105894.35,88021,"INFORMATION TECH",{"$f":"_xlfn.XLOOKUP(job_titles17[[#This Row],[Extended object ID]],O:O,P:P)","v":{"$error":"#N/A"}}]
[null,null,null,null,null,null,null,null,null,null,null,null,null,null,null,"x",null,null,null,null,null,null,null,null,null,null,null,null,"C","1950-01-01","9999-12-31",1,"Systems Engineer Sr",20000489,"C17",8810,1.6000000000000001E-3,81074.789999999994,129719.67,88021,"INFORMATION TECH",{"$f":"_xlfn.XLOOKUP(job_titles17[[#This Row],[Extended object ID]],O:O,P:P)","v":{"$error":"#N/A"}}]
[null,null,null,null,null,null,null,null,null,null,null,null,null,null,null,"x",null,null,null,null,null,null,null,null,null,null,null,null,"C","1950-01-01","9999-12-31",1,"Systems Operations Mgr",20000486,"C20",8810,1.6000000000000001E-3,99345.18,158952.29,88021,"INFORMATION TECH",{"$f":"_xlfn.XLOOKUP(job_titles17[[#This Row],[Extended object ID]],O:O,P:P)","v":{"$error":"#N/A"}}]
[null,null,null,null,null,null,null,null,null,null,null,null,null,null,null,"x",null,null,null,null,null,null,null,null,null,null,null,null,"C","2021-10-02","9999-12-31",1,"Talent Planning & Engagement Manager",20054402,"C19",8810,1.6000000000000001E-3,92836.33,148538.12,88016,"HUMAN RESOURCES",{"$f":"_xlfn.XLOOKUP(job_titles17[[#This Row],[Extended object ID]],O:O,P:P)","v":{"$error":"#N/A"}}]
[null,null,null,null,null,null,null,null,null,null,null,null,null,null,null,"x",null,null,null,null,null,null,null,null,null,null,null,null,"C","1950-01-01","9999-12-31",1,"Tax Assessor-Collector",20000513,"NCF01",8810,1.6000000000000001E-3,15080,500000,88022,"ELECTED",{"$f":"_xlfn.XLOOKUP(job_titles17[[#This Row],[Extended object ID]],O:O,P:P)","v":"x"}]
[null,null,null,null,null,null,null,null,null,null,null,null,null,null,null,"x",null,null,null,null,null,null,null,null,null,null,null,null,"C","2014-06-17","9999-12-31",1,"Tax Assessor-Collector Deputy Assoc Sn",20050701,"GRD29",8810,1.6000000000000001E-3,89265.7,142825.07,88014,"MANAGEMENT",{"$f":"_xlfn.XLOOKUP(job_titles17[[#This Row],[Extended object ID]],O:O,P:P)","v":"x"}]
[null,null,null,null,null,null,null,null,null,null,null,null,null,null,null,"x",null,null,null,null,null,null,null,null,null,null,null,null,"C","1950-01-01","9999-12-31",1,"Tax Assessor-Collector Deputy Chf",20000323,"C22",8810,1.6000000000000001E-3,113755.98,187697.37,88014,"MANAGEMENT",{"$f":"_xlfn.XLOOKUP(job_titles17[[#This Row],[Extended object ID]],O:O,P:P)","v":{"$error":"#N/A"}}]
[null,null,null,null,null,null,null,null,null,null,null,null,null,null,null,"x",null,null,null,null,null,null,null,null,null,null,null,null,"C","2017-10-01","9999-12-31",1,"Tax Assessor-Collector Deputy Chf Sn",20052226,"GRD31",null,null,102222.02,163555.18,88014,"MANAGEMENT",{"$f":"_xlfn.XLOOKUP(job_titles17[[#This Row],[Extended object ID]],O:O,P:P)","v":"x"}]
[null,null,null,null,null,null,null,null,null,null,null,null,null,null,null,"x",null,null,null,null,null,null,null,null,null,null,null,null,"C","2017-09-26","9999-12-31",1,"Tax Assessor-Collector Deputy Chf Sn",20052228,"GRD31",8810,1.6000000000000001E-3,102222.02,163555.18,88014,"MANAGEMENT",{"$f":"_xlfn.XLOOKUP(job_titles17[[#This Row],[Extended object ID]],O:O,P:P)","v":"x"}]
[null,null,null,null,null,null,null,null,null,null,null,null,null,null,null,"x",null,null,null,null,null,null,null,null,null,null,null,null,"C","1950-01-01","9999-12-31",1,"Tax Assessor-Collector Div Dir",20000286,"C19",8810,1.6000000000000001E-3,92836.33,148538.12,88014,"MANAGEMENT",{"$f":"_xlfn.XLOOKUP(job_titles17[[#This Row],[Extended object ID]],O:O,P:P)","v":{"$error":"#N/A"}}]
[null,null,null,null,null,null,null,null,null,null,null,null,null,null,null,"x",null,null,null,null,null,null,null,null,null,null,null,null,"C","2014-07-10","9999-12-31",1,"Tax Assessor-Collector Div Dir Sn",20050751,"GRD28",8810,1.6000000000000001E-3,83424.429999999993,133479.01,88014,"MANAGEMENT",{"$f":"_xlfn.XLOOKUP(job_titles17[[#This Row],[Extended object ID]],O:O,P:P)","v":"x"}]
[null,null,null,null,null,null,null,null,null,null,null,null,null,null,null,"x",null,null,null,null,null,null,null,null,null,null,null,null,"C","2017-10-01","9999-12-31",1,"Tax Assessor-Collector Div Dir Sn",20052227,"GRD29",null,null,89265.7,142825.07,88014,"MANAGEMENT",{"$f":"_xlfn.XLOOKUP(job_titles17[[#This Row],[Extended object ID]],O:O,P:P)","v":"x"}]
[null,null,null,null,null,null,null,null,null,null,null,null,null,null,null,"x",null,null,null,null,null,null,null,null,null,null,null,null,"C","2017-09-26","9999-12-31",1,"Tax Assessor-Collector Div Dir Sn",20052229,"GRD29",8810,1.6000000000000001E-3,89265.7,142825.07,88014,"MANAGEMENT",{"$f":"_xlfn.XLOOKUP(job_titles17[[#This Row],[Extended object ID]],O:O,P:P)","v":"x"}]
[null,null,null,null,null,null,null,null,null,null,null,null,null,null,null,"x",null,null,null,null,null,null,null,null,null,null,null,null,"C","2014-11-04","9999-12-31",1,"Tax Office Manager",20050828,"C14",8810,1.6000000000000001E-3,66183.97,105894.35,88014,"MANAGEMENT",{"$f":"_xlfn.XLOOKUP(job_titles17[[#This Row],[Extended object ID]],O:O,P:P)","v":{"$error":"#N/A"}}]
[null,null,null,null,null,null,null,null,null,null,null,null,null,null,null,"x",null,null,null,null,null,null,null,null,null,null,null,null,"C","2014-11-04","9999-12-31",1,"Tax Office Program Coordinator",20050827,"C09",8810,1.6000000000000001E-3,53987.92,78282.490000000005,88014,"MANAGEMENT",{"$f":"_xlfn.XLOOKUP(job_titles17[[#This Row],[Extended object ID]],O:O,P:P)","v":{"$error":"#N/A"}}]
[null,null,null,null,null,null,null,null,null,null,null,null,null,null,null,"x",null,null,null,null,null,null,null,null,null,null,null,null,"C","1950-01-01","9999-12-31",1,"Tax Specialist I",20000096,"C06",8810,1.6000000000000001E-3,48694.01,65736.92,88004,"ADMINISTRATIVE SUPP",{"$f":"_xlfn.XLOOKUP(job_titles17[[#This Row],[Extended object ID]],O:O,P:P)","v":{"$error":"#N/A"}}]
[null,null,null,null,null,null,null,null,null,null,null,null,null,null,null,"x",null,null,null,null,null,null,null,null,null,null,null,null,"C","1950-01-01","9999-12-31",1,"Tax Specialist II",20000097,"C07",8810,1.6000000000000001E-3,50398.3,68037.710000000006,88004,"ADMINISTRATIVE SUPP",{"$f":"_xlfn.XLOOKUP(job_titles17[[#This Row],[Extended object ID]],O:O,P:P)","v":{"$error":"#N/A"}}]
[null,null,null,null,null,null,null,null,null,null,null,null,null,null,null,"x",null,null,null,null,null,null,null,null,null,null,null,null,"C","1950-01-01","9999-12-31",1,"Tax Specialist III",20000098,"C08",8810,1.6000000000000001E-3,52162.239999999998,75635.25,88004,"ADMINISTRATIVE SUPP",{"$f":"_xlfn.XLOOKUP(job_titles17[[#This Row],[Extended object ID]],O:O,P:P)","v":{"$error":"#N/A"}}]
[null,null,null,null,null,null,null,null,null,null,null,null,null,null,null,"x",null,null,null,null,null,null,null,null,null,null,null,null,"C","2021-09-28","9999-12-31",1,"Tax Specialist IV",20054351,"C09",8810,1.6000000000000001E-3,53987.92,78282.490000000005,88004,"ADMINISTRATIVE SUPP",{"$f":"_xlfn.XLOOKUP(job_titles17[[#This Row],[Extended object ID]],O:O,P:P)","v":{"$error":"#N/A"}}]
[null,null,null,null,null,null,null,null,null,null,null,null,null,null,null,"x",null,null,null,null,null,null,null,null,null,null,null,null,"C","1950-01-01","9999-12-31",1,"Tax Supv",20000131,"C11",8810,1.6000000000000001E-3,58112.6,87168.9,88005,"FINANCE",{"$f":"_xlfn.XLOOKUP(job_titles17[[#This Row],[Extended object ID]],O:O,P:P)","v":{"$error":"#N/A"}}]
[null,null,null,null,null,null,null,null,null,null,null,null,null,null,null,"x",null,null,null,null,null,null,null,null,null,null,null,null,"C","2022-04-19","9999-12-31",1,"TCSO Sr Recruiter",20054826,"C14",8810,1.6000000000000001E-3,66183.97,105894.35,88016,"HUMAN RESOURCES",{"$f":"_xlfn.XLOOKUP(job_titles17[[#This Row],[Extended object ID]],O:O,P:P)","v":{"$error":"#N/A"}}]
[null,null,null,null,null,null,null,null,null,null,null,null,null,null,null,"x",null,null,null,null,null,null,null,null,null,null,null,null,"C","1950-01-01","9999-12-31",1,"Technical Trainer",20000478,"C13",8810,1.6000000000000001E-3,62854.59,100567.34,88021,"INFORMATION TECH",{"$f":"_xlfn.XLOOKUP(job_titles17[[#This Row],[Extended object ID]],O:O,P:P)","v":{"$error":"#N/A"}}]
[null,null,null,null,null,null,null,null,null,null,null,null,null,null,null,"x",null,null,null,null,null,null,null,null,null,null,null,null,"C","2022-10-18","9999-12-31",1,"Technical Writer",20055176,"C12",8810,1.6000000000000001E-3,60437.1,90655.66,88021,"INFORMATION TECH",{"$f":"_xlfn.XLOOKUP(job_titles17[[#This Row],[Extended object ID]],O:O,P:P)","v":{"$error":"#N/A"}}]
[null,null,null,null,null,null,null,null,null,null,null,null,null,null,null,"x",null,null,null,null,null,null,null,null,null,null,null,null,"C","2019-08-13","9999-12-31",1,"Technology & Operations Chief Deputy",20053251,"C23",8810,1.6000000000000001E-3,121718.94,200836.25,88014,"MANAGEMENT",{"$f":"_xlfn.XLOOKUP(job_titles17[[#This Row],[Extended object ID]],O:O,P:P)","v":{"$error":"#N/A"}}]
[null,null,null,null,null,null,null,null,null,null,null,null,null,null,null,"x",null,null,null,null,null,null,null,null,null,null,null,null,"C","2022-09-20","9999-12-31",1,"Telecomm 911 Asst Mgr",20055053,"C13",8810,1.6000000000000001E-3,62854.59,100567.34,88012,"PUBLIC SAF/EMG MGMT",{"$f":"_xlfn.XLOOKUP(job_titles17[[#This Row],[Extended object ID]],O:O,P:P)","v":{"$error":"#N/A"}}]
[null,null,null,null,null,null,null,null,null,null,null,null,null,null,null,"x",null,null,null,null,null,null,null,null,null,null,null,null,"C","1950-01-01","9999-12-31",1,"Telecomm 911 Mgr",20000211,"C15",8810,1.6000000000000001E-3,70819.7,113311.53,88012,"PUBLIC SAF/EMG MGMT",{"$f":"_xlfn.XLOOKUP(job_titles17[[#This Row],[Extended object ID]],O:O,P:P)","v":{"$error":"#N/A"}}]
[null,null,null,null,null,null,null,null,null,null,null,null,null,null,null,"x",null,null,null,null,null,null,null,null,null,null,null,null,"C","2022-04-16","9999-12-31",1,"Telecomm 911 Mgr Succession",20054827,"GRD25",8810,1.6000000000000001E-3,68095.87,108953.31,88012,"PUBLIC SAF/EMG MGMT",{"$f":"_xlfn.XLOOKUP(job_titles17[[#This Row],[Extended object ID]],O:O,P:P)","v":"x"}]
[null,null,null,null,null,null,null,null,null,null,null,null,null,null,null,"x",null,null,null,null,null,null,null,null,null,null,null,null,"C","1950-01-01","9999-12-31",1,"Telecomm 911 Specialist",20000208,"C08",8810,1.6000000000000001E-3,52162.239999999998,75635.25,88012,"PUBLIC SAF/EMG MGMT",{"$f":"_xlfn.XLOOKUP(job_titles17[[#This Row],[Extended object ID]],O:O,P:P)","v":{"$error":"#N/A"}}]
[null,null,null,null,null,null,null,null,null,null,null,null,null,null,null,"x",null,null,null,null,null,null,null,null,null,null,null,null,"C","1950-01-01","9999-12-31",1,"Telecomm 911 Specialist Sr",20000209,"C09",8810,1.6000000000000001E-3,53987.92,78282.490000000005,88012,"PUBLIC SAF/EMG MGMT",{"$f":"_xlfn.XLOOKUP(job_titles17[[#This Row],[Extended object ID]],O:O,P:P)","v":{"$error":"#N/A"}}]
[null,null,null,null,null,null,null,null,null,null,null,null,null,null,null,"x",null,null,null,null,null,null,null,null,null,null,null,null,"C","1950-01-01","9999-12-31",1,"Telecomm 911 Specialist Supv",20000210,"C11",8810,1.6000000000000001E-3,58112.6,87168.9,88012,"PUBLIC SAF/EMG MGMT",{"$f":"_xlfn.XLOOKUP(job_titles17[[#This Row],[Extended object ID]],O:O,P:P)","v":{"$error":"#N/A"}}]
[null,null,null,null,null,null,null,null,null,null,null,null,null,null,null,"x",null,null,null,null,null,null,null,null,null,null,null,null,"C","2016-08-23","9999-12-31",1,"Telecommunications Mgr Succession",20051676,"GRD29",8810,1.6000000000000001E-3,89265.7,142825.07,88021,"INFORMATION TECH",{"$f":"_xlfn.XLOOKUP(job_titles17[[#This Row],[Extended object ID]],O:O,P:P)","v":"x"}]
[null,null,null,null,null,null,null,null,null,null,null,null,null,null,null,"x",null,null,null,null,null,null,null,null,null,null,null,null,"C","1950-01-01","9999-12-31",1,"TNR Chief Deputy",20000329,"C23",8810,1.6000000000000001E-3,121718.94,200836.25,88014,"MANAGEMENT",{"$f":"_xlfn.XLOOKUP(job_titles17[[#This Row],[Extended object ID]],O:O,P:P)","v":{"$error":"#N/A"}}]
[null,null,null,null,null,null,null,null,null,null,null,null,null,null,null,"x",null,null,null,null,null,null,null,null,null,null,null,null,"C","1950-01-01","9999-12-31",1,"Toxicologist",20000073,"C14",8832,1.9E-3,66183.97,105894.35,88003,"MEDICAL",{"$f":"_xlfn.XLOOKUP(job_titles17[[#This Row],[Extended object ID]],O:O,P:P)","v":{"$error":"#N/A"}}]
[null,null,null,null,null,null,null,null,null,null,null,null,null,null,null,"x",null,null,null,null,null,null,null,null,null,null,null,null,"C","1950-01-01","9999-12-31",1,"Toxicologist Chief",20000075,"C19",8832,1.9E-3,92836.33,148538.12,88003,"MEDICAL",{"$f":"_xlfn.XLOOKUP(job_titles17[[#This Row],[Extended object ID]],O:O,P:P)","v":{"$error":"#N/A"}}]
[null,null,null,null,null,null,null,null,null,null,null,null,null,null,null,"x",null,null,null,null,null,null,null,null,null,null,null,null,"C","1950-01-01","9999-12-31",1,"Toxicologist Deputy Chief",20000074,"C16",8832,1.9E-3,75776.03,121241.65,88003,"MEDICAL",{"$f":"_xlfn.XLOOKUP(job_titles17[[#This Row],[Extended object ID]],O:O,P:P)","v":{"$error":"#N/A"}}]
[null,null,null,null,null,null,null,null,null,null,null,null,null,null,null,"x",null,null,null,null,null,null,null,null,null,null,null,null,"C","1950-01-01","9999-12-31",1,"Toxicologist Laboratory Tech",20000072,"C07",8832,1.9E-3,50398.3,68037.710000000006,88003,"MEDICAL",{"$f":"_xlfn.XLOOKUP(job_titles17[[#This Row],[Extended object ID]],O:O,P:P)","v":{"$error":"#N/A"}}]
[null,null,null,null,null,null,null,null,null,null,null,null,null,null,null,"x",null,null,null,null,null,null,null,null,null,null,null,null,"C","1950-01-01","9999-12-31",1,"Training Education Coord I",20000392,"C08",8810,1.6000000000000001E-3,52162.239999999998,75635.25,88016,"HUMAN RESOURCES",{"$f":"_xlfn.XLOOKUP(job_titles17[[#This Row],[Extended object ID]],O:O,P:P)","v":{"$error":"#N/A"}}]
[null,null,null,null,null,null,null,null,null,null,null,null,null,null,null,"x",null,null,null,null,null,null,null,null,null,null,null,null,"C","1950-01-01","9999-12-31",1,"Training Education Coord II",20000393,"C10",8810,1.6000000000000001E-3,55877.5,82698.7,88016,"HUMAN RESOURCES",{"$f":"_xlfn.XLOOKUP(job_titles17[[#This Row],[Extended object ID]],O:O,P:P)","v":{"$error":"#N/A"}}]
[null,null,null,null,null,null,null,null,null,null,null,null,null,null,null,"x",null,null,null,null,null,null,null,null,null,null,null,null,"C","1950-01-01","9999-12-31",1,"Training Education Coord Sr",20000394,"C12",8810,1.6000000000000001E-3,60437.1,90655.66,88016,"HUMAN RESOURCES",{"$f":"_xlfn.XLOOKUP(job_titles17[[#This Row],[Extended object ID]],O:O,P:P)","v":{"$error":"#N/A"}}]
[null,null,null,null,null,null,null,null,null,null,null,null,null,null,null,"x",null,null,null,null,null,null,null,null,null,null,null,null,"C","2021-05-11","9999-12-31",1,"Training Supervisor",20054101,"C14",8810,1.6000000000000001E-3,66183.97,105894.35,88016,"HUMAN RESOURCES",{"$f":"_xlfn.XLOOKUP(job_titles17[[#This Row],[Extended object ID]],O:O,P:P)","v":{"$error":"#N/A"}}]
[null,null,null,null,null,null,null,null,null,null,null,null,null,null,null,"x",null,null,null,null,null,null,null,null,null,null,null,null,"C","2022-11-01","9999-12-31",1,"Trauma Informed Care Program Adm",20055251,"C17",8810,1.6000000000000001E-3,81074.789999999994,129719.67,88011,"SOCIAL SVCS",{"$f":"_xlfn.XLOOKUP(job_titles17[[#This Row],[Extended object ID]],O:O,P:P)","v":{"$error":"#N/A"}}]
[null,null,null,null,null,null,null,null,null,null,null,null,null,null,null,"x",null,null,null,null,null,null,null,null,null,null,null,null,"C","2023-07-11","9999-12-31",1,"Trauma Informed Care Specialist",20055626,"C11",8810,1.6000000000000001E-3,58112.6,87168.9,88011,"SOCIAL SVCS",{"$f":"_xlfn.XLOOKUP(job_titles17[[#This Row],[Extended object ID]],O:O,P:P)","v":{"$error":"#N/A"}}]
[null,null,null,null,null,null,null,null,null,null,null,null,null,null,null,"x",null,null,null,null,null,null,null,null,null,null,null,null,"C","1950-01-01","9999-12-31",1,"Veterans Services Officer",20000277,"C15",8810,1.6000000000000001E-3,70819.7,113311.53,88014,"MANAGEMENT",{"$f":"_xlfn.XLOOKUP(job_titles17[[#This Row],[Extended object ID]],O:O,P:P)","v":{"$error":"#N/A"}}]
[null,null,null,null,null,null,null,null,null,null,null,null,null,null,null,"x",null,null,null,null,null,null,null,null,null,null,null,null,"C","2018-12-11","9999-12-31",1,"Veterans Services Officer Assistant Sr",20052926,"C11",8810,1.6000000000000001E-3,58112.6,87168.9,88015,"PROFESSIONAL SUPP",{"$f":"_xlfn.XLOOKUP(job_titles17[[#This Row],[Extended object ID]],O:O,P:P)","v":{"$error":"#N/A"}}]
[null,null,null,null,null,null,null,null,null,null,null,null,null,null,null,"x",null,null,null,null,null,null,null,null,null,null,null,null,"C","2019-09-30","9999-12-31",1,"Veterans Services Specialist",20053293,"C06",8810,1.6000000000000001E-3,48694.01,65736.92,88015,"PROFESSIONAL SUPP",{"$f":"_xlfn.XLOOKUP(job_titles17[[#This Row],[Extended object ID]],O:O,P:P)","v":{"$error":"#N/A"}}]
[null,null,null,null,null,null,null,null,null,null,null,null,null,null,null,"x",null,null,null,null,null,null,null,null,null,null,null,null,"C","1950-01-01","9999-12-31",1,"Veterans Svcs Ofcr Asst",20000621,"C09",8810,1.6000000000000001E-3,53987.92,78282.490000000005,88015,"PROFESSIONAL SUPP",{"$f":"_xlfn.XLOOKUP(job_titles17[[#This Row],[Extended object ID]],O:O,P:P)","v":{"$error":"#N/A"}}]
[null,null,null,null,null,null,null,null,null,null,null,null,null,null,null,"x",null,null,null,null,null,null,null,null,null,null,null,null,"C","1950-01-01","9999-12-31",1,"Victim Counselor",20000188,"C09",8810,1.6000000000000001E-3,53987.92,78282.490000000005,88011,"SOCIAL SVCS",{"$f":"_xlfn.XLOOKUP(job_titles17[[#This Row],[Extended object ID]],O:O,P:P)","v":{"$error":"#N/A"}}]
[null,null,null,null,null,null,null,null,null,null,null,null,null,null,null,"x",null,null,null,null,null,null,null,null,null,null,null,null,"C","1950-01-01","9999-12-31",1,"Victim Counselor Sr",20000189,"C10",8810,1.6000000000000001E-3,55877.5,82698.7,88011,"SOCIAL SVCS",{"$f":"_xlfn.XLOOKUP(job_titles17[[#This Row],[Extended object ID]],O:O,P:P)","v":{"$error":"#N/A"}}]
[null,null,null,null,null,null,null,null,null,null,null,null,null,null,null,"x",null,null,null,null,null,null,null,null,null,null,null,null,"C","1950-01-01","9999-12-31",1,"Victim Witness Services Div Dir",20000293,"C17",8810,1.6000000000000001E-3,81074.789999999994,129719.67,88014,"MANAGEMENT",{"$f":"_xlfn.XLOOKUP(job_titles17[[#This Row],[Extended object ID]],O:O,P:P)","v":{"$error":"#N/A"}}]
[null,null,null,null,null,null,null,null,null,null,null,null,null,null,null,"x",null,null,null,null,null,null,null,null,null,null,null,null,"C","2019-12-31","9999-12-31",1,"Video Engineer",20053551,"C13",8810,1.6000000000000001E-3,62854.59,100567.34,88019,"PUBLIC INFORMATION",{"$f":"_xlfn.XLOOKUP(job_titles17[[#This Row],[Extended object ID]],O:O,P:P)","v":{"$error":"#N/A"}}]
[null,null,null,null,null,null,null,null,null,null,null,null,null,null,null,"x",null,null,null,null,null,null,null,null,null,null,null,null,"C","2021-01-12","9999-12-31",1,"Virtual Training Coordinator",20053976,"C10",8810,1.6000000000000001E-3,55877.5,82698.7,88017,"EDUCATION & TRAINING",{"$f":"_xlfn.XLOOKUP(job_titles17[[#This Row],[Extended object ID]],O:O,P:P)","v":{"$error":"#N/A"}}]
[null,null,null,null,null,null,null,null,null,null,null,null,null,null,null,"x",null,null,null,null,null,null,null,null,null,null,null,null,"C","2014-11-25","9999-12-31",1,"Visiting Judge",20050876,"NCF01",8810,1.6000000000000001E-3,15080,500000,88020,"TEMP/SEASONAL",{"$f":"_xlfn.XLOOKUP(job_titles17[[#This Row],[Extended object ID]],O:O,P:P)","v":"x"}]
[null,null,null,null,null,null,null,null,null,null,null,null,null,null,null,"x",null,null,null,null,null,null,null,null,null,null,null,null,"C","2023-09-26","9999-12-31",1,"Visitor Center Outreach Coordinator",20055726,"C10",8810,1.6000000000000001E-3,55877.5,82698.7,88015,"PROFESSIONAL SUPP",{"$f":"_xlfn.XLOOKUP(job_titles17[[#This Row],[Extended object ID]],O:O,P:P)","v":{"$error":"#N/A"}}]
[null,null,null,null,null,null,null,null,null,null,null,null,null,null,null,"x",null,null,null,null,null,null,null,null,null,null,null,null,"C","1950-01-01","9999-12-31",1,"Volunteer Coord",20000398,"C08",8810,1.6000000000000001E-3,52162.239999999998,75635.25,88017,"EDUCATION & TRAINING",{"$f":"_xlfn.XLOOKUP(job_titles17[[#This Row],[Extended object ID]],O:O,P:P)","v":{"$error":"#N/A"}}]
[null,null,null,null,null,null,null,null,null,null,null,null,null,null,null,"x",null,null,null,null,null,null,null,null,null,null,null,null,"C","1950-01-01","9999-12-31",1,"Voter Reg Outreach Program Coord",20050126,"C09",8810,1.6000000000000001E-3,53987.92,78282.490000000005,88019,"PUBLIC INFORMATION",{"$f":"_xlfn.XLOOKUP(job_titles17[[#This Row],[Extended object ID]],O:O,P:P)","v":{"$error":"#N/A"}}]
[null,null,null,null,null,null,null,null,null,null,null,null,null,null,null,"x",null,null,null,null,null,null,null,null,null,null,null,null,"C","2016-12-20","9999-12-31",1,"Warehouse Coordinator",20051851,"C08",7720,1.55E-2,52162.239999999998,75635.25,88010,"PURCHASING & INVENTORY CONTROL",{"$f":"_xlfn.XLOOKUP(job_titles17[[#This Row],[Extended object ID]],O:O,P:P)","v":{"$error":"#N/A"}}]
[null,null,null,null,null,null,null,null,null,null,null,null,null,null,null,"x",null,null,null,null,null,null,null,null,null,null,null,null,"C","2023-04-10","9999-12-31",1,"Warehouse Manager",20055551,"C11",8292,0,58112.6,87168.9,88014,"MANAGEMENT",{"$f":"_xlfn.XLOOKUP(job_titles17[[#This Row],[Extended object ID]],O:O,P:P)","v":{"$error":"#N/A"}}]
[null,null,null,null,null,null,null,null,null,null,null,null,null,null,null,"x",null,null,null,null,null,null,null,null,null,null,null,null,"C","2015-10-01","9999-12-31",1,"Warehouse Operator",20051165,"C06",9015,1.8800000000000001E-2,48694.01,65736.92,88002,"SKILLED TRADES",{"$f":"_xlfn.XLOOKUP(job_titles17[[#This Row],[Extended object ID]],O:O,P:P)","v":{"$error":"#N/A"}}]
[null,null,null,null,null,null,null,null,null,null,null,null,null,null,null,"x",null,null,null,null,null,null,null,null,null,null,null,null,"C","1950-01-01","9999-12-31",1,"Web Manager",20000458,"C18",8810,1.6000000000000001E-3,86761.41,138818.25,88021,"INFORMATION TECH",{"$f":"_xlfn.XLOOKUP(job_titles17[[#This Row],[Extended object ID]],O:O,P:P)","v":{"$error":"#N/A"}}]
[null,null,null,null,null,null,null,null,null,null,null,null,null,null,null,"x",null,null,null,null,null,null,null,null,null,null,null,null,"C","1950-01-01","9999-12-31",1,"Webmaster",20000460,"C13",8810,1.6000000000000001E-3,62854.59,100567.34,88021,"INFORMATION TECH",{"$f":"_xlfn.XLOOKUP(job_titles17[[#This Row],[Extended object ID]],O:O,P:P)","v":{"$error":"#N/A"}}]
[null,null,null,null,null,null,null,null,null,null,null,null,null,null,null,"x",null,null,null,null,null,null,null,null,null,null,null,null,"C","1950-01-01","9999-12-31",1,"Webmaster Sr",20000459,"C15",8810,1.6000000000000001E-3,70819.7,113311.53,88021,"INFORMATION TECH",{"$f":"_xlfn.XLOOKUP(job_titles17[[#This Row],[Extended object ID]],O:O,P:P)","v":{"$error":"#N/A"}}]
[null,null,null,null,null,null,null,null,null,null,null,null,null,null,null,"x",null,null,null,null,null,null,null,null,null,null,null,null,"C","2021-10-19","9999-12-31",1,"Wildfire Mitigation Officer",20054478,"C16",7720,1.55E-2,75776.03,121241.65,88012,"PUBLIC SAF/EMG MGMT",{"$f":"_xlfn.XLOOKUP(job_titles17[[#This Row],[Extended object ID]],O:O,P:P)","v":{"$error":"#N/A"}}]
[null,null,null,null,null,null,null,null,null,null,null,null,null,null,null,"x",null,null,null,null,null,null,null,null,null,null,null,null,"C","2021-10-19","9999-12-31",1,"Wildfire Mitigation Specialist",20054477,"C14",7720,1.55E-2,66183.97,105894.35,88012,"PUBLIC SAF/EMG MGMT",{"$f":"_xlfn.XLOOKUP(job_titles17[[#This Row],[Extended object ID]],O:O,P:P)","v":{"$error":"#N/A"}}]
[null,null,null,null,null,null,null,null,null,null,null,null,null,null,null,"x",null,null,null,null,null,null,null,null,null,null,null,null,"C","2021-05-11","9999-12-31",1,"Work Order Coordinator",20054103,"C06",8810,1.6000000000000001E-3,48694.01,65736.92,88001,"MAINTENANCE",{"$f":"_xlfn.XLOOKUP(job_titles17[[#This Row],[Extended object ID]],O:O,P:P)","v":{"$error":"#N/A"}}]
[null,null,null,null,null,null,null,null,null,null,null,null,null,null,null,"x",null,null,null,null,null,null,null,null,null,null,null,null,"C","2021-09-14","9999-12-31",1,"X-Ray Technician",20054251,"C10",8832,1.9E-3,55877.5,82698.7,88003,"MEDICAL",{"$f":"_xlfn.XLOOKUP(job_titles17[[#This Row],[Extended object ID]],O:O,P:P)","v":{"$error":"#N/A"}}]
[null,null,null,null,null,null,null,null,null,null,null,null,null,null,null,"x",null,null,null,null,null,null,null,null,null,null,null,null,null,null,null,null,null,null,null,null,null,null,null,0,"0",{"$f":"_xlfn.XLOOKUP(job_titles17[[#This Row],[Extended object ID]],O:O,P:P)","v":{"$error":"#N/A"}}]
[null,null,null,null,null,null,null,null,null,null,null,null,null,null,null,"x",null,null,null,null,null,null,null,null,null,null,null,null,null,null,null,null,null,null,null,null,null,null,null,0,"0",{"$f":"_xlfn.XLOOKUP(job_titles17[[#This Row],[Extended object ID]],O:O,P:P)","v":{"$error":"#N/A"}}]
[null,null,null,null,null,null,null,null,null,null,null,null,null,null,null,"x",null,null,null,null,null,null,null,null,null,null,null,null,null,null,null,null,null,null,null,null,null,null,null,0,"0",{"$f":"_xlfn.XLOOKUP(job_titles17[[#This Row],[Extended object ID]],O:O,P:P)","v":{"$error":"#N/A"}}]
[null,null,null,null,null,null,null,null,null,null,null,null,null,null,null,"x",null,null,null,null,null,null,null,null,null,null,null,null,null,null,null,null,null,null,null,null,null,null,null,0,"0",{"$f":"_xlfn.XLOOKUP(job_titles17[[#This Row],[Extended object ID]],O:O,P:P)","v":{"$error":"#N/A"}}]
[null,null,null,null,null,null,null,null,null,null,null,null,null,null,null,"x",null,null,null,null,null,null,null,null,null,null,null,null,null,null,null,null,null,null,null,null,null,null,null,0,"0",{"$f":"_xlfn.XLOOKUP(job_titles17[[#This Row],[Extended object ID]],O:O,P:P)","v":{"$error":"#N/A"}}]
[null,null,null,null,null,null,null,null,null,null,null,null,null,null,null,"x",null,null,null,null,null,null,null,null,null,null,null,null,null,null,null,null,null,null,null,null,null,null,null,0,"0",{"$f":"_xlfn.XLOOKUP(job_titles17[[#This Row],[Extended object ID]],O:O,P:P)","v":{"$error":"#N/A"}}]
[null,null,null,null,null,null,null,null,null,null,null,null,null,null,null,"x",null,null,null,null,null,null,null,null,null,null,null,null,null,null,null,null,null,null,null,null,null,null,null,0,"0",{"$f":"_xlfn.XLOOKUP(job_titles17[[#This Row],[Extended object ID]],O:O,P:P)","v":{"$error":"#N/A"}}]
[null,null,null,null,null,null,null,null,null,null,null,null,null,null,null,"x",null,null,null,null,null,null,null,null,null,null,null,null,null,null,null,null,null,null,null,null,null,null,null,0,"0",{"$f":"_xlfn.XLOOKUP(job_titles17[[#This Row],[Extended object ID]],O:O,P:P)","v":{"$error":"#N/A"}}]
[null,null,null,null,null,null,null,null,null,null,null,null,null,null,null,"x",null,null,null,null,null,null,null,null,null,null,null,null,null,null,null,null,null,null,null,null,null,null,null,0,"0",{"$f":"_xlfn.XLOOKUP(job_titles17[[#This Row],[Extended object ID]],O:O,P:P)","v":{"$error":"#N/A"}}]
[null,null,null,null,null,null,null,null,null,null,null,null,null,null,null,"x",null,null,null,null,null,null,null,null,null,null,null,null,null,null,null,null,null,null,null,null,null,null,null,0,"0",{"$f":"_xlfn.XLOOKUP(job_titles17[[#This Row],[Extended object ID]],O:O,P:P)","v":{"$error":"#N/A"}}]
[null,null,null,null,null,null,null,null,null,null,null,null,null,null,null,"x",null,null,null,null,null,null,null,null,null,null,null,null,null,null,null,null,null,null,null,null,null,null,null,0,"0",{"$f":"_xlfn.XLOOKUP(job_titles17[[#This Row],[Extended object ID]],O:O,P:P)","v":{"$error":"#N/A"}}]
[null,null,null,null,null,null,null,null,null,null,null,null,null,null,null,"x",null,null,null,null,null,null,null,null,null,null,null,null,null,null,null,null,null,null,null,null,null,null,null,0,"0",{"$f":"_xlfn.XLOOKUP(job_titles17[[#This Row],[Extended object ID]],O:O,P:P)","v":{"$error":"#N/A"}}]
[null,null,null,null,null,null,null,null,null,null,null,null,null,null,null,"x",null,null,null,null,null,null,null,null,null,null,null,null,null,null,null,null,null,null,null,null,null,null,null,0,"0",{"$f":"_xlfn.XLOOKUP(job_titles17[[#This Row],[Extended object ID]],O:O,P:P)","v":{"$error":"#N/A"}}]
[null,null,null,null,null,null,null,null,null,null,null,null,null,null,null,"x",null,null,null,null,null,null,null,null,null,null,null,null,null,null,null,null,null,null,null,null,null,null,null,0,"0",{"$f":"_xlfn.XLOOKUP(job_titles17[[#This Row],[Extended object ID]],O:O,P:P)","v":{"$error":"#N/A"}}]
[null,null,null,null,null,null,null,null,null,null,null,null,null,null,null,"x",null,null,null,null,null,null,null,null,null,null,null,null,null,null,null,null,null,null,null,null,null,null,null,0,"0",{"$f":"_xlfn.XLOOKUP(job_titles17[[#This Row],[Extended object ID]],O:O,P:P)","v":{"$error":"#N/A"}}]
[null,null,null,null,null,null,null,null,null,null,null,null,null,null,null,"x",null,null,null,null,null,null,null,null,null,null,null,null,null,null,null,null,null,null,null,null,null,null,null,0,"0",{"$f":"_xlfn.XLOOKUP(job_titles17[[#This Row],[Extended object ID]],O:O,P:P)","v":{"$error":"#N/A"}}]
[null,null,null,null,null,null,null,null,null,null,null,null,null,null,null,"x",null,null,null,null,null,null,null,null,null,null,null,null,null,null,null,null,null,null,null,null,null,null,null,0,"0",{"$f":"_xlfn.XLOOKUP(job_titles17[[#This Row],[Extended object ID]],O:O,P:P)","v":{"$error":"#N/A"}}]
[null,null,null,null,null,null,null,null,null,null,null,null,null,null,null,"x",null,null,null,null,null,null,null,null,null,null,null,null,null,null,null,null,null,null,null,null,null,null,null,0,"0",{"$f":"_xlfn.XLOOKUP(job_titles17[[#This Row],[Extended object ID]],O:O,P:P)","v":{"$error":"#N/A"}}]
[null,null,null,null,null,null,null,null,null,null,null,null,null,null,null,"x",null,null,null,null,null,null,null,null,null,null,null,null,null,null,null,null,null,null,null,null,null,null,null,0,"0",{"$f":"_xlfn.XLOOKUP(job_titles17[[#This Row],[Extended object ID]],O:O,P:P)","v":{"$error":"#N/A"}}]
[null,null,null,null,null,null,null,null,null,null,null,null,null,null,null,"x",null,null,null,null,null,null,null,null,null,null,null,null,null,null,null,null,null,null,null,null,null,null,null,0,"0",{"$f":"_xlfn.XLOOKUP(job_titles17[[#This Row],[Extended object ID]],O:O,P:P)","v":{"$error":"#N/A"}}]
[null,null,null,null,null,null,null,null,null,null,null,null,null,null,null,"x",null,null,null,null,null,null,null,null,null,null,null,null,null,null,null,null,null,null,null,null,null,null,null,0,"0",{"$f":"_xlfn.XLOOKUP(job_titles17[[#This Row],[Extended object ID]],O:O,P:P)","v":{"$error":"#N/A"}}]
[null,null,null,null,null,null,null,null,null,null,null,null,null,null,null,"x",null,null,null,null,null,null,null,null,null,null,null,null,null,null,null,null,null,null,null,null,null,null,null,0,"0",{"$f":"_xlfn.XLOOKUP(job_titles17[[#This Row],[Extended object ID]],O:O,P:P)","v":{"$error":"#N/A"}}]
[null,null,null,null,null,null,null,null,null,null,null,null,null,null,null,"x",null,null,null,null,null,null,null,null,null,null,null,null,null,null,null,null,null,null,null,null,null,null,null,0,"0",{"$f":"_xlfn.XLOOKUP(job_titles17[[#This Row],[Extended object ID]],O:O,P:P)","v":{"$error":"#N/A"}}]
[null,null,null,null,null,null,null,null,null,null,null,null,null,null,null,"x",null,null,null,null,null,null,null,null,null,null,null,null,null,null,null,null,null,null,null,null,null,null,null,0,"0",{"$f":"_xlfn.XLOOKUP(job_titles17[[#This Row],[Extended object ID]],O:O,P:P)","v":{"$error":"#N/A"}}]
[null,null,null,null,null,null,null,null,null,null,null,null,null,null,null,"x",null,null,null,null,null,null,null,null,null,null,null,null,null,null,null,null,null,null,null,null,null,null,null,0,"0",{"$f":"_xlfn.XLOOKUP(job_titles17[[#This Row],[Extended object ID]],O:O,P:P)","v":{"$error":"#N/A"}}]
[null,null,null,null,null,null,null,null,null,null,null,null,null,null,null,"x",null,null,null,null,null,null,null,null,null,null,null,null,null,null,null,null,null,null,null,null,null,null,null,0,"0",{"$f":"_xlfn.XLOOKUP(job_titles17[[#This Row],[Extended object ID]],O:O,P:P)","v":{"$error":"#N/A"}}]
[null,null,null,null,null,null,null,null,null,null,null,null,null,null,null,"x",null,null,null,null,null,null,null,null,null,null,null,null,null,null,null,null,null,null,null,null,null,null,null,0,"0",{"$f":"_xlfn.XLOOKUP(job_titles17[[#This Row],[Extended object ID]],O:O,P:P)","v":{"$error":"#N/A"}}]
[null,null,null,null,null,null,null,null,null,null,null,null,null,null,null,"x",null,null,null,null,null,null,null,null,null,null,null,null,null,null,null,null,null,null,null,null,null,null,null,0,"0",{"$f":"_xlfn.XLOOKUP(job_titles17[[#This Row],[Extended object ID]],O:O,P:P)","v":{"$error":"#N/A"}}]
[null,null,null,null,null,null,null,null,null,null,null,null,null,null,null,"x",null,null,null,null,null,null,null,null,null,null,null,null,null,null,null,null,null,null,null,null,null,null,null,0,"0",{"$f":"_xlfn.XLOOKUP(job_titles17[[#This Row],[Extended object ID]],O:O,P:P)","v":{"$error":"#N/A"}}]
[null,null,null,null,null,null,null,null,null,null,null,null,null,null,null,"x",null,null,null,null,null,null,null,null,null,null,null,null,null,null,null,null,null,null,null,null,null,null,null,0,"0",{"$f":"_xlfn.XLOOKUP(job_titles17[[#This Row],[Extended object ID]],O:O,P:P)","v":{"$error":"#N/A"}}]
[null,null,null,null,null,null,null,null,null,null,null,null,null,null,null,"x",null,null,null,null,null,null,null,null,null,null,null,null,null,null,null,null,null,null,null,null,null,null,null,0,"0",{"$f":"_xlfn.XLOOKUP(job_titles17[[#This Row],[Extended object ID]],O:O,P:P)","v":{"$error":"#N/A"}}]
[null,null,null,null,null,null,null,null,null,null,null,null,null,null,null,"x",null,null,null,null,null,null,null,null,null,null,null,null,null,null,null,null,null,null,null,null,null,null,null,0,"0",{"$f":"_xlfn.XLOOKUP(job_titles17[[#This Row],[Extended object ID]],O:O,P:P)","v":{"$error":"#N/A"}}]
[null,null,null,null,null,null,null,null,null,null,null,null,null,null,null,"x",null,null,null,null,null,null,null,null,null,null,null,null,null,null,null,null,null,null,null,null,null,null,null,0,"0",{"$f":"_xlfn.XLOOKUP(job_titles17[[#This Row],[Extended object ID]],O:O,P:P)","v":{"$error":"#N/A"}}]
[null,null,null,null,null,null,null,null,null,null,null,null,null,null,null,"x",null,null,null,null,null,null,null,null,null,null,null,null,null,null,null,null,null,null,null,null,null,null,null,0,"0",{"$f":"_xlfn.XLOOKUP(job_titles17[[#This Row],[Extended object ID]],O:O,P:P)","v":{"$error":"#N/A"}}]
[null,null,null,null,null,null,null,null,null,null,null,null,null,null,null,"x",null,null,null,null,null,null,null,null,null,null,null,null,null,null,null,null,null,null,null,null,null,null,null,0,"0",{"$f":"_xlfn.XLOOKUP(job_titles17[[#This Row],[Extended object ID]],O:O,P:P)","v":{"$error":"#N/A"}}]
[null,null,null,null,null,null,null,null,null,null,null,null,null,null,null,"x",null,null,null,null,null,null,null,null,null,null,null,null,null,null,null,null,null,null,null,null,null,null,null,0,"0",{"$f":"_xlfn.XLOOKUP(job_titles17[[#This Row],[Extended object ID]],O:O,P:P)","v":{"$error":"#N/A"}}]
[null,null,null,null,null,null,null,null,null,null,null,null,null,null,null,"x",null,null,null,null,null,null,null,null,null,null,null,null,null,null,null,null,null,null,null,null,null,null,null,0,"0",{"$f":"_xlfn.XLOOKUP(job_titles17[[#This Row],[Extended object ID]],O:O,P:P)","v":{"$error":"#N/A"}}]
[null,null,null,null,null,null,null,null,null,null,null,null,null,null,null,"x",null,null,null,null,null,null,null,null,null,null,null,null,null,null,null,null,null,null,null,null,null,null,null,0,"0",{"$f":"_xlfn.XLOOKUP(job_titles17[[#This Row],[Extended object ID]],O:O,P:P)","v":{"$error":"#N/A"}}]
[null,null,null,null,null,null,null,null,null,null,null,null,null,null,null,"x",null,null,null,null,null,null,null,null,null,null,null,null,null,null,null,null,null,null,null,null,null,null,null,0,"0",{"$f":"_xlfn.XLOOKUP(job_titles17[[#This Row],[Extended object ID]],O:O,P:P)","v":{"$error":"#N/A"}}]
[null,null,null,null,null,null,null,null,null,null,null,null,null,null,null,"x",null,null,null,null,null,null,null,null,null,null,null,null,null,null,null,null,null,null,null,null,null,null,null,0,"0",{"$f":"_xlfn.XLOOKUP(job_titles17[[#This Row],[Extended object ID]],O:O,P:P)","v":{"$error":"#N/A"}}]
[null,null,null,null,null,null,null,null,null,null,null,null,null,null,null,"x",null,null,null,null,null,null,null,null,null,null,null,null,null,null,null,null,null,null,null,null,null,null,null,0,"0",{"$f":"_xlfn.XLOOKUP(job_titles17[[#This Row],[Extended object ID]],O:O,P:P)","v":{"$error":"#N/A"}}]
[null,null,null,null,null,null,null,null,null,null,null,null,null,null,null,"x",null,null,null,null,null,null,null,null,null,null,null,null,null,null,null,null,null,null,null,null,null,null,null,0,"0",{"$f":"_xlfn.XLOOKUP(job_titles17[[#This Row],[Extended object ID]],O:O,P:P)","v":{"$error":"#N/A"}}]
[null,null,null,null,null,null,null,null,null,null,null,null,null,null,null,"x",null,null,null,null,null,null,null,null,null,null,null,null,null,null,null,null,null,null,null,null,null,null,null,0,"0",{"$f":"_xlfn.XLOOKUP(job_titles17[[#This Row],[Extended object ID]],O:O,P:P)","v":{"$error":"#N/A"}}]
[null,null,null,null,null,null,null,null,null,null,null,null,null,null,null,"x",null,null,null,null,null,null,null,null,null,null,null,null,null,null,null,null,null,null,null,null,null,null,null,0,"0",{"$f":"_xlfn.XLOOKUP(job_titles17[[#This Row],[Extended object ID]],O:O,P:P)","v":{"$error":"#N/A"}}]
[null,null,null,null,null,null,null,null,null,null,null,null,null,null,null,"x",null,null,null,null,null,null,null,null,null,null,null,null,null,null,null,null,null,null,null,null,null,null,null,0,"0",{"$f":"_xlfn.XLOOKUP(job_titles17[[#This Row],[Extended object ID]],O:O,P:P)","v":{"$error":"#N/A"}}]
[null,null,null,null,null,null,null,null,null,null,null,null,null,null,null,"x",null,null,null,null,null,null,null,null,null,null,null,null,null,null,null,null,null,null,null,null,null,null,null,0,"0",{"$f":"_xlfn.XLOOKUP(job_titles17[[#This Row],[Extended object ID]],O:O,P:P)","v":{"$error":"#N/A"}}]
[null,null,null,null,null,null,null,null,null,null,null,null,null,null,null,"x",null,null,null,null,null,null,null,null,null,null,null,null,null,null,null,null,null,null,null,null,null,null,null,0,"0",{"$f":"_xlfn.XLOOKUP(job_titles17[[#This Row],[Extended object ID]],O:O,P:P)","v":{"$error":"#N/A"}}]
[null,null,null,null,null,null,null,null,null,null,null,null,null,null,null,"x",null,null,null,null,null,null,null,null,null,null,null,null,null,null,null,null,null,null,null,null,null,null,null,0,"0",{"$f":"_xlfn.XLOOKUP(job_titles17[[#This Row],[Extended object ID]],O:O,P:P)","v":{"$error":"#N/A"}}]
[null,null,null,null,null,null,null,null,null,null,null,null,null,null,null,"x",null,null,null,null,null,null,null,null,null,null,null,null,null,null,null,null,null,null,null,null,null,null,null,0,"0",{"$f":"_xlfn.XLOOKUP(job_titles17[[#This Row],[Extended object ID]],O:O,P:P)","v":{"$error":"#N/A"}}]
[null,null,null,null,null,null,null,null,null,null,null,null,null,null,null,"x",null,null,null,null,null,null,null,null,null,null,null,null,null,null,null,null,null,null,null,null,null,null,null,0,"0",{"$f":"_xlfn.XLOOKUP(job_titles17[[#This Row],[Extended object ID]],O:O,P:P)","v":{"$error":"#N/A"}}]
[null,null,null,null,null,null,null,null,null,null,null,null,null,null,null,"x",null,null,null,null,null,null,null,null,null,null,null,null,null,null,null,null,null,null,null,null,null,null,null,0,"0",{"$f":"_xlfn.XLOOKUP(job_titles17[[#This Row],[Extended object ID]],O:O,P:P)","v":{"$error":"#N/A"}}]
[null,null,null,null,null,null,null,null,null,null,null,null,null,null,null,"x",null,null,null,null,null,null,null,null,null,null,null,null,null,null,null,null,null,null,null,null,null,null,null,0,"0",{"$f":"_xlfn.XLOOKUP(job_titles17[[#This Row],[Extended object ID]],O:O,P:P)","v":{"$error":"#N/A"}}]
[null,null,null,null,null,null,null,null,null,null,null,null,null,null,null,"x",null,null,null,null,null,null,null,null,null,null,null,null,null,null,null,null,null,null,null,null,null,null,null,0,"0",{"$f":"_xlfn.XLOOKUP(job_titles17[[#This Row],[Extended object ID]],O:O,P:P)","v":{"$error":"#N/A"}}]
[null,null,null,null,null,null,null,null,null,null,null,null,null,null,null,"x",null,null,null,null,null,null,null,null,null,null,null,null,null,null,null,null,null,null,null,null,null,null,null,0,"0",{"$f":"_xlfn.XLOOKUP(job_titles17[[#This Row],[Extended object ID]],O:O,P:P)","v":{"$error":"#N/A"}}]
[null,null,null,null,null,null,null,null,null,null,null,null,null,null,null,"x",null,null,null,null,null,null,null,null,null,null,null,null,null,null,null,null,null,null,null,null,null,null,null,0,"0",{"$f":"_xlfn.XLOOKUP(job_titles17[[#This Row],[Extended object ID]],O:O,P:P)","v":{"$error":"#N/A"}}]
[null,null,null,null,null,null,null,null,null,null,null,null,null,null,null,"x",null,null,null,null,null,null,null,null,null,null,null,null,null,null,null,null,null,null,null,null,null,null,null,0,"0",{"$f":"_xlfn.XLOOKUP(job_titles17[[#This Row],[Extended object ID]],O:O,P:P)","v":{"$error":"#N/A"}}]
[null,null,null,null,null,null,null,null,null,null,null,null,null,null,null,"x",null,null,null,null,null,null,null,null,null,null,null,null,null,null,null,null,null,null,null,null,null,null,null,0,"0",{"$f":"_xlfn.XLOOKUP(job_titles17[[#This Row],[Extended object ID]],O:O,P:P)","v":{"$error":"#N/A"}}]
[null,null,null,null,null,null,null,null,null,null,null,null,null,null,null,"x",null,null,null,null,null,null,null,null,null,null,null,null,null,null,null,null,null,null,null,null,null,null,null,0,"0",{"$f":"_xlfn.XLOOKUP(job_titles17[[#This Row],[Extended object ID]],O:O,P:P)","v":{"$error":"#N/A"}}]
[null,null,null,null,null,null,null,null,null,null,null,null,null,null,null,"x",null,null,null,null,null,null,null,null,null,null,null,null,null,null,null,null,null,null,null,null,null,null,null,0,"0",{"$f":"_xlfn.XLOOKUP(job_titles17[[#This Row],[Extended object ID]],O:O,P:P)","v":{"$error":"#N/A"}}]
[null,null,null,null,null,null,null,null,null,null,null,null,null,null,null,"x",null,null,null,null,null,null,null,null,null,null,null,null,null,null,null,null,null,null,null,null,null,null,null,0,"0",{"$f":"_xlfn.XLOOKUP(job_titles17[[#This Row],[Extended object ID]],O:O,P:P)","v":{"$error":"#N/A"}}]
[null,null,null,null,null,null,null,null,null,null,null,null,null,null,null,"x",null,null,null,null,null,null,null,null,null,null,null,null,null,null,null,null,null,null,null,null,null,null,null,0,"0",{"$f":"_xlfn.XLOOKUP(job_titles17[[#This Row],[Extended object ID]],O:O,P:P)","v":{"$error":"#N/A"}}]
[null,null,null,null,null,null,null,null,null,null,null,null,null,null,null,"x",null,null,null,null,null,null,null,null,null,null,null,null,null,null,null,null,null,null,null,null,null,null,null,0,"0",{"$f":"_xlfn.XLOOKUP(job_titles17[[#This Row],[Extended object ID]],O:O,P:P)","v":{"$error":"#N/A"}}]
[null,null,null,null,null,null,null,null,null,null,null,null,null,null,null,"x",null,null,null,null,null,null,null,null,null,null,null,null,null,null,null,null,null,null,null,null,null,null,null,0,"0",{"$f":"_xlfn.XLOOKUP(job_titles17[[#This Row],[Extended object ID]],O:O,P:P)","v":{"$error":"#N/A"}}]
[null,null,null,null,null,null,null,null,null,null,null,null,null,null,null,"x",null,null,null,null,null,null,null,null,null,null,null,null,null,null,null,null,null,null,null,null,null,null,null,0,"0",{"$f":"_xlfn.XLOOKUP(job_titles17[[#This Row],[Extended object ID]],O:O,P:P)","v":{"$error":"#N/A"}}]
[null,null,null,null,null,null,null,null,null,null,null,null,null,null,null,"x",null,null,null,null,null,null,null,null,null,null,null,null,null,null,null,null,null,null,null,null,null,null,null,0,"0",{"$f":"_xlfn.XLOOKUP(job_titles17[[#This Row],[Extended object ID]],O:O,P:P)","v":{"$error":"#N/A"}}]
[null,null,null,null,null,null,null,null,null,null,null,null,null,null,null,"x",null,null,null,null,null,null,null,null,null,null,null,null,null,null,null,null,null,null,null,null,null,null,null,0,"0",{"$f":"_xlfn.XLOOKUP(job_titles17[[#This Row],[Extended object ID]],O:O,P:P)","v":{"$error":"#N/A"}}]
[null,null,null,null,null,null,null,null,null,null,null,null,null,null,null,"x",null,null,null,null,null,null,null,null,null,null,null,null,null,null,null,null,null,null,null,null,null,null,null,0,"0",{"$f":"_xlfn.XLOOKUP(job_titles17[[#This Row],[Extended object ID]],O:O,P:P)","v":{"$error":"#N/A"}}]
[null,null,null,null,null,null,null,null,null,null,null,null,null,null,null,"x",null,null,null,null,null,null,null,null,null,null,null,null,null,null,null,null,null,null,null,null,null,null,null,0,"0",{"$f":"_xlfn.XLOOKUP(job_titles17[[#This Row],[Extended object ID]],O:O,P:P)","v":{"$error":"#N/A"}}]
[null,null,null,null,null,null,null,null,null,null,null,null,null,null,null,"x",null,null,null,null,null,null,null,null,null,null,null,null,null,null,null,null,null,null,null,null,null,null,null,0,"0",{"$f":"_xlfn.XLOOKUP(job_titles17[[#This Row],[Extended object ID]],O:O,P:P)","v":{"$error":"#N/A"}}]
[null,null,null,null,null,null,null,null,null,null,null,null,null,null,null,"x",null,null,null,null,null,null,null,null,null,null,null,null,null,null,null,null,null,null,null,null,null,null,null,0,"0",{"$f":"_xlfn.XLOOKUP(job_titles17[[#This Row],[Extended object ID]],O:O,P:P)","v":{"$error":"#N/A"}}]
[null,null,null,null,null,null,null,null,null,null,null,null,null,null,null,"x",null,null,null,null,null,null,null,null,null,null,null,null,null,null,null,null,null,null,null,null,null,null,null,0,"0",{"$f":"_xlfn.XLOOKUP(job_titles17[[#This Row],[Extended object ID]],O:O,P:P)","v":{"$error":"#N/A"}}]
[null,null,null,null,null,null,null,null,null,null,null,null,null,null,null,"x",null,null,null,null,null,null,null,null,null,null,null,null,null,null,null,null,null,null,null,null,null,null,null,0,"0",{"$f":"_xlfn.XLOOKUP(job_titles17[[#This Row],[Extended object ID]],O:O,P:P)","v":{"$error":"#N/A"}}]
[null,null,null,null,null,null,null,null,null,null,null,null,null,null,null,"x",null,null,null,null,null,null,null,null,null,null,null,null,null,null,null,null,null,null,null,null,null,null,null,0,"0",{"$f":"_xlfn.XLOOKUP(job_titles17[[#This Row],[Extended object ID]],O:O,P:P)","v":{"$error":"#N/A"}}]
[null,null,null,null,null,null,null,null,null,null,null,null,null,null,null,"x",null,null,null,null,null,null,null,null,null,null,null,null,null,null,null,null,null,null,null,null,null,null,null,0,"0",{"$f":"_xlfn.XLOOKUP(job_titles17[[#This Row],[Extended object ID]],O:O,P:P)","v":{"$error":"#N/A"}}]
[null,null,null,null,null,null,null,null,null,null,null,null,null,null,null,"x",null,null,null,null,null,null,null,null,null,null,null,null,null,null,null,null,null,null,null,null,null,null,null,0,"0",{"$f":"_xlfn.XLOOKUP(job_titles17[[#This Row],[Extended object ID]],O:O,P:P)","v":{"$error":"#N/A"}}]
[null,null,null,null,null,null,null,null,null,null,null,null,null,null,null,"x",null,null,null,null,null,null,null,null,null,null,null,null,null,null,null,null,null,null,null,null,null,null,null,0,"0",{"$f":"_xlfn.XLOOKUP(job_titles17[[#This Row],[Extended object ID]],O:O,P:P)","v":{"$error":"#N/A"}}]
[null,null,null,null,null,null,null,null,null,null,null,null,null,null,null,"x",null,null,null,null,null,null,null,null,null,null,null,null,null,null,null,null,null,null,null,null,null,null,null,0,"0",{"$f":"_xlfn.XLOOKUP(job_titles17[[#This Row],[Extended object ID]],O:O,P:P)","v":{"$error":"#N/A"}}]
[null,null,null,null,null,null,null,null,null,null,null,null,null,null,null,"x",null,null,null,null,null,null,null,null,null,null,null,null,null,null,null,null,null,null,null,null,null,null,null,0,"0",{"$f":"_xlfn.XLOOKUP(job_titles17[[#This Row],[Extended object ID]],O:O,P:P)","v":{"$error":"#N/A"}}]
[null,null,null,null,null,null,null,null,null,null,null,null,null,null,null,"x",null,null,null,null,null,null,null,null,null,null,null,null,null,null,null,null,null,null,null,null,null,null,null,0,"0",{"$f":"_xlfn.XLOOKUP(job_titles17[[#This Row],[Extended object ID]],O:O,P:P)","v":{"$error":"#N/A"}}]
[null,null,null,null,null,null,null,null,null,null,null,null,null,null,null,"x",null,null,null,null,null,null,null,null,null,null,null,null,null,null,null,null,null,null,null,null,null,null,null,0,"0",{"$f":"_xlfn.XLOOKUP(job_titles17[[#This Row],[Extended object ID]],O:O,P:P)","v":{"$error":"#N/A"}}]
[null,null,null,null,null,null,null,null,null,null,null,null,null,null,null,"x",null,null,null,null,null,null,null,null,null,null,null,null,null,null,null,null,null,null,null,null,null,null,null,0,"0",{"$f":"_xlfn.XLOOKUP(job_titles17[[#This Row],[Extended object ID]],O:O,P:P)","v":{"$error":"#N/A"}}]
[null,null,null,null,null,null,null,null,null,null,null,null,null,null,null,"x",null,null,null,null,null,null,null,null,null,null,null,null,null,null,null,null,null,null,null,null,null,null,null,0,"0",{"$f":"_xlfn.XLOOKUP(job_titles17[[#This Row],[Extended object ID]],O:O,P:P)","v":{"$error":"#N/A"}}]
[null,null,null,null,null,null,null,null,null,null,null,null,null,null,null,"x",null,null,null,null,null,null,null,null,null,null,null,null,null,null,null,null,null,null,null,null,null,null,null,0,"0",{"$f":"_xlfn.XLOOKUP(job_titles17[[#This Row],[Extended object ID]],O:O,P:P)","v":{"$error":"#N/A"}}]
[null,null,null,null,null,null,null,null,null,null,null,null,null,null,null,"x",null,null,null,null,null,null,null,null,null,null,null,null,null,null,null,null,null,null,null,null,null,null,null,0,"0",{"$f":"_xlfn.XLOOKUP(job_titles17[[#This Row],[Extended object ID]],O:O,P:P)","v":{"$error":"#N/A"}}]
[null,null,null,null,null,null,null,null,null,null,null,null,null,null,null,"x",null,null,null,null,null,null,null,null,null,null,null,null,null,null,null,null,null,null,null,null,null,null,null,0,"0",{"$f":"_xlfn.XLOOKUP(job_titles17[[#This Row],[Extended object ID]],O:O,P:P)","v":{"$error":"#N/A"}}]
[null,null,null,null,null,null,null,null,null,null,null,null,null,null,null,"x",null,null,null,null,null,null,null,null,null,null,null,null,null,null,null,null,null,null,null,null,null,null,null,0,"0",{"$f":"_xlfn.XLOOKUP(job_titles17[[#This Row],[Extended object ID]],O:O,P:P)","v":{"$error":"#N/A"}}]
[null,null,null,null,null,null,null,null,null,null,null,null,null,null,null,"x",null,null,null,null,null,null,null,null,null,null,null,null,null,null,null,null,null,null,null,null,null,null,null,0,"0",{"$f":"_xlfn.XLOOKUP(job_titles17[[#This Row],[Extended object ID]],O:O,P:P)","v":{"$error":"#N/A"}}]
[null,null,null,null,null,null,null,null,null,null,null,null,null,null,null,"x",null,null,null,null,null,null,null,null,null,null,null,null,null,null,null,null,null,null,null,null,null,null,null,0,"0",{"$f":"_xlfn.XLOOKUP(job_titles17[[#This Row],[Extended object ID]],O:O,P:P)","v":{"$error":"#N/A"}}]
[null,null,null,null,null,null,null,null,null,null,null,null,null,null,null,"x",null,null,null,null,null,null,null,null,null,null,null,null,null,null,null,null,null,null,null,null,null,null,null,0,"0",{"$f":"_xlfn.XLOOKUP(job_titles17[[#This Row],[Extended object ID]],O:O,P:P)","v":{"$error":"#N/A"}}]
[null,null,null,null,null,null,null,null,null,null,null,null,null,null,null,"x",null,null,null,null,null,null,null,null,null,null,null,null,null,null,null,null,null,null,null,null,null,null,null,0,"0",{"$f":"_xlfn.XLOOKUP(job_titles17[[#This Row],[Extended object ID]],O:O,P:P)","v":{"$error":"#N/A"}}]
[null,null,null,null,null,null,null,null,null,null,null,null,null,null,null,"x",null,null,null,null,null,null,null,null,null,null,null,null,null,null,null,null,null,null,null,null,null,null,null,0,"0",{"$f":"_xlfn.XLOOKUP(job_titles17[[#This Row],[Extended object ID]],O:O,P:P)","v":{"$error":"#N/A"}}]
[null,null,null,null,null,null,null,null,null,null,null,null,null,null,null,"x",null,null,null,null,null,null,null,null,null,null,null,null,null,null,null,null,null,null,null,null,null,null,null,0,"0",{"$f":"_xlfn.XLOOKUP(job_titles17[[#This Row],[Extended object ID]],O:O,P:P)","v":{"$error":"#N/A"}}]
[null,null,null,null,null,null,null,null,null,null,null,null,null,null,null,"x",null,null,null,null,null,null,null,null,null,null,null,null,null,null,null,null,null,null,null,null,null,null,null,0,"0",{"$f":"_xlfn.XLOOKUP(job_titles17[[#This Row],[Extended object ID]],O:O,P:P)","v":{"$error":"#N/A"}}]
[null,null,null,null,null,null,null,null,null,null,null,null,null,null,null,"x",null,null,null,null,null,null,null,null,null,null,null,null,null,null,null,null,null,null,null,null,null,null,null,0,"0",{"$f":"_xlfn.XLOOKUP(job_titles17[[#This Row],[Extended object ID]],O:O,P:P)","v":{"$error":"#N/A"}}]
[null,null,null,null,null,null,null,null,null,null,null,null,null,null,null,"x",null,null,null,null,null,null,null,null,null,null,null,null,null,null,null,null,null,null,null,null,null,null,null,0,"0",{"$f":"_xlfn.XLOOKUP(job_titles17[[#This Row],[Extended object ID]],O:O,P:P)","v":{"$error":"#N/A"}}]
[null,null,null,null,null,null,null,null,null,null,null,null,null,null,null,"x",null,null,null,null,null,null,null,null,null,null,null,null,null,null,null,null,null,null,null,null,null,null,null,0,"0",{"$f":"_xlfn.XLOOKUP(job_titles17[[#This Row],[Extended object ID]],O:O,P:P)","v":{"$error":"#N/A"}}]
[null,null,null,null,null,null,null,null,null,null,null,null,null,null,null,"x",null,null,null,null,null,null,null,null,null,null,null,null,null,null,null,null,null,null,null,null,null,null,null,0,"0",{"$f":"_xlfn.XLOOKUP(job_titles17[[#This Row],[Extended object ID]],O:O,P:P)","v":{"$error":"#N/A"}}]
[null,null,null,null,null,null,null,null,null,null,null,null,null,null,null,"x",null,null,null,null,null,null,null,null,null,null,null,null,null,null,null,null,null,null,null,null,null,null,null,0,"0",{"$f":"_xlfn.XLOOKUP(job_titles17[[#This Row],[Extended object ID]],O:O,P:P)","v":{"$error":"#N/A"}}]
[null,null,null,null,null,null,null,null,null,null,null,null,null,null,null,"x",null,null,null,null,null,null,null,null,null,null,null,null,null,null,null,null,null,null,null,null,null,null,null,0,"0",{"$f":"_xlfn.XLOOKUP(job_titles17[[#This Row],[Extended object ID]],O:O,P:P)","v":{"$error":"#N/A"}}]
[null,null,null,null,null,null,null,null,null,null,null,null,null,null,null,"x",null,null,null,null,null,null,null,null,null,null,null,null,null,null,null,null,null,null,null,null,null,null,null,0,"0",{"$f":"_xlfn.XLOOKUP(job_titles17[[#This Row],[Extended object ID]],O:O,P:P)","v":{"$error":"#N/A"}}]
[null,null,null,null,null,null,null,null,null,null,null,null,null,null,null,"x",null,null,null,null,null,null,null,null,null,null,null,null,null,null,null,null,null,null,null,null,null,null,null,0,"0",{"$f":"_xlfn.XLOOKUP(job_titles17[[#This Row],[Extended object ID]],O:O,P:P)","v":{"$error":"#N/A"}}]
[null,null,null,null,null,null,null,null,null,null,null,null,null,null,null,"x",null,null,null,null,null,null,null,null,null,null,null,null,null,null,null,null,null,null,null,null,null,null,null,0,"0",{"$f":"_xlfn.XLOOKUP(job_titles17[[#This Row],[Extended object ID]],O:O,P:P)","v":{"$error":"#N/A"}}]
[null,null,null,null,null,null,null,null,null,null,null,null,null,null,null,"x",null,null,null,null,null,null,null,null,null,null,null,null,null,null,null,null,null,null,null,null,null,null,null,0,"0",{"$f":"_xlfn.XLOOKUP(job_titles17[[#This Row],[Extended object ID]],O:O,P:P)","v":{"$error":"#N/A"}}]
[null,null,null,null,null,null,null,null,null,null,null,null,null,null,null,"x",null,null,null,null,null,null,null,null,null,null,null,null,null,null,null,null,null,null,null,null,null,null,null,0,"0",{"$f":"_xlfn.XLOOKUP(job_titles17[[#This Row],[Extended object ID]],O:O,P:P)","v":{"$error":"#N/A"}}]
[null,null,null,null,null,null,null,null,null,null,null,null,null,null,null,"x",null,null,null,null,null,null,null,null,null,null,null,null,null,null,null,null,null,null,null,null,null,null,null,0,"0",{"$f":"_xlfn.XLOOKUP(job_titles17[[#This Row],[Extended object ID]],O:O,P:P)","v":{"$error":"#N/A"}}]
[null,null,null,null,null,null,null,null,null,null,null,null,null,null,null,"x",null,null,null,null,null,null,null,null,null,null,null,null,null,null,null,null,null,null,null,null,null,null,null,0,"0",{"$f":"_xlfn.XLOOKUP(job_titles17[[#This Row],[Extended object ID]],O:O,P:P)","v":{"$error":"#N/A"}}]
[null,null,null,null,null,null,null,null,null,null,null,null,null,null,null,"x"]
[null,null,null,null,null,null,null,null,null,null,null,null,null,null,null,"x"]

{"sheet":"Data OUs","index":29,"n_rows":1296,"n_cols":33,"rows_kept":1296,"cut":false,"hidden":true,"merged":[]}
["Dpt","Object name","Object ID","Object abbreviation","updated 04/17/2023","Dpt","Object name",null,null,"Dpt","Object name",null,"Removed -->","Dept","Object name","Extended object ID","Object abbreviation",null,null,"Planning status","Start date","End Date","Changed on","User name","Object name","Extended Object ID","Object abbreviation","Master CC","Dpt","AVC",null,null,"Object ID"]
[null,"Travis County",10000000,"TravisCty",null,{"$f":"'Details (PB5)'!D5","v":0},null,null,null,0,"111County Executive Ops Mgmt",null,null,"110","110General Administration","10050601","110GenAdm",null,null,"1","2021-04-27","9999-12-31","2021-04-27","DANIELD4","101 County Judge Administration","10054701","101CoAdm","1010010001",101,{"$f":"_xlfn.XLOOKUP(VALUE(OU[[#This Row],[Master CC]]),FC_Master[Cost Center],FC_Master[rollup FC '#],OU[[#This Row],[Master CC]])","v":1010010001},null,null,"10050601"]
[{"$f":"AC2","v":101},{"$f":"Y2","v":"101 County Judge Administration"},{"$f":"VALUE(Z2)","v":10054701},{"$f":"AA2","v":"101CoAdm"},null,null,null,null,null,0,"120County Clerk Elections",null,null,"115","115Local Purchasing Organization","10000112","115LocalPur",null,null,"1","2012-05-16","9999-12-31","2012-06-18","DORVALR","101County Judge","10050001","101CoJudge","1010010001",101,{"$f":"_xlfn.XLOOKUP(VALUE(OU[[#This Row],[Master CC]]),FC_Master[Cost Center],FC_Master[rollup FC '#],OU[[#This Row],[Master CC]])","v":1010010001},null,null,"10000112"]
[{"$f":"AC3","v":101},{"$f":"Y3","v":"101County Judge"},10050001,{"$f":"AA3","v":"101CoJudge"},null,null,null,null,null,0,"125Probate Court General Second",null,null,"117","117Historical Commission","10050127","117HistCmm",null,null,"1","1950-01-01","9999-12-31","2012-05-15","DATACONVERSI","102County Commissioner 1","10000003","102CC1","1020010001",102,{"$f":"_xlfn.XLOOKUP(VALUE(OU[[#This Row],[Master CC]]),FC_Master[Cost Center],FC_Master[rollup FC '#],OU[[#This Row],[Master CC]])","v":1020010001},null,null,"10050127"]
[102,"102County Commissioner 1",10000003,"102CC1",null,null,null,null,null,0,"137SO LE: Sgt West Area Cmd: Day",null,null,"122","122Civil Courts Technology Team","10000787","122CtTch",null,null,"1","1950-01-01","9999-12-31","2012-05-15","DATACONVERSI","103County Commissioner 2","10000004","103CC2","1030010001",103,{"$f":"_xlfn.XLOOKUP(VALUE(OU[[#This Row],[Master CC]]),FC_Master[Cost Center],FC_Master[rollup FC '#],OU[[#This Row],[Master CC]])","v":1030010001},null,null,"10000787"]
[103,"103County Commissioner 2",10000004,"103CC2",null,null,null,null,null,0,"145JvP Res Svcs Counselors",null,null,"124","124Crm Courts","10000723","124CrmCt",null,null,"1","1950-01-01","9999-12-31","2012-05-15","DATACONVERSI","103County Commissioner 2 Administration","10000005","103CC2Adm","1030010001",103,{"$f":"_xlfn.XLOOKUP(VALUE(OU[[#This Row],[Master CC]]),FC_Master[Cost Center],FC_Master[rollup FC '#],OU[[#This Row],[Master CC]])","v":1030010001},null,null,"10000723"]
[103,"103County Commissioner 2 Administration",10000005,"103CC2Adm",null,null,null,null,null,0,"Commissioners Court",null,null,"125","125Probate Court Accounting","10000268","125Actg",null,null,"1","1950-01-01","9999-12-31","2012-05-15","DATACONVERSI","104County Commissioner 3","10000006","104CC3","1040010001",104,{"$f":"_xlfn.XLOOKUP(VALUE(OU[[#This Row],[Master CC]]),FC_Master[Cost Center],FC_Master[rollup FC '#],OU[[#This Row],[Master CC]])","v":1040010001},null,null,"10000268"]
[104,"104County Commissioner 3",10000006,"104CC3",null,null,null,null,null,null,null,null,null,"125","125Probate Court Guardianship","10000269","125Gdnshp",null,null,"1","1950-01-01","9999-12-31","2012-05-15","DATACONVERSI","104County Commissioner 3 Administration","10000007","104CC3Adm","1040010001",104,{"$f":"_xlfn.XLOOKUP(VALUE(OU[[#This Row],[Master CC]]),FC_Master[Cost Center],FC_Master[rollup FC '#],OU[[#This Row],[Master CC]])","v":1040010001},null,null,"10000269"]
[104,"104County Commissioner 3 Administration",10000007,"104CC3Adm",null,null,null,null,null,null,null,null,null,"136","136Dispute Resolution Center","10050126","136DRC",null,null,"1","1950-01-01","9999-12-31","2012-05-15","DATACONVERSI","105County Commissioner 4","10000008","1055CC4","1050010001",105,{"$f":"_xlfn.XLOOKUP(VALUE(OU[[#This Row],[Master CC]]),FC_Master[Cost Center],FC_Master[rollup FC '#],OU[[#This Row],[Master CC]])","v":1050010001},null,null,"10050126"]
[105,"105County Commissioner 4",10000008,"1055CC4",null,null,null,null,null,null,null,null,null,"147","147ES","10050003","147ES",null,null,"1","1950-01-01","9999-12-31","2012-05-15","DATACONVERSI","105County Commissioner 4 Administration","10000009","105CC4Adm","1050010001",105,{"$f":"_xlfn.XLOOKUP(VALUE(OU[[#This Row],[Master CC]]),FC_Master[Cost Center],FC_Master[rollup FC '#],OU[[#This Row],[Master CC]])","v":1050010001},null,null,"10050003"]
[105,"105County Commissioner 4 Administration",10000009,"105CC4Adm",null,null,null,null,null,null,null,null,null,"155","155Criminal Justice Planning","10000724","155CJP",null,null,"1","2012-12-16","9999-12-31","2012-12-31","ROSSA","106Aud Administration","10000015","106Adm","1060010001",106,{"$f":"_xlfn.XLOOKUP(VALUE(OU[[#This Row],[Master CC]]),FC_Master[Cost Center],FC_Master[rollup FC '#],OU[[#This Row],[Master CC]])","v":1060010001},null,null,"10000724"]
[106,"106Aud Administration",10000015,"106Adm",null,null,null,null,null,null,null,null,null,"159","159Emergency Management","10000710","159EmrgMgmt",null,null,"1","2020-01-01","9999-12-31","2020-01-08","PFAFFEA","106AUD AP, Grants & Fin Support","10000017","106APGrntFin","1060010001",106,{"$f":"_xlfn.XLOOKUP(VALUE(OU[[#This Row],[Master CC]]),FC_Master[Cost Center],FC_Master[rollup FC '#],OU[[#This Row],[Master CC]])","v":1060010001},null,null,"10000710"]
[106,"106AUD AP, Grants & Fin Support",10000017,"106APGrntFin",null,null,null,null,null,null,null,null,null,"Adm","Adm Operations County Executive","10000067","AdmOpsCE",null,null,"1","2023-04-01","9999-12-31","2023-04-12","PFAFFEA","106AUD Business Support","10050677","106BusSp","1060010001",106,{"$f":"_xlfn.XLOOKUP(VALUE(OU[[#This Row],[Master CC]]),FC_Master[Cost Center],FC_Master[rollup FC '#],OU[[#This Row],[Master CC]])","v":1060010001},null,null,"10000067"]
[106,"106AUD Business Support",10050677,"106BusSp",null,null,null,null,null,null,null,null,null,"Com","Commissioners Court","10000001","CmmsrCourt",null,null,"1","1950-01-01","9999-12-31","2012-05-15","DATACONVERSI","106Aud County Auditor","10000010","106CoAud","1060010001",106,{"$f":"_xlfn.XLOOKUP(VALUE(OU[[#This Row],[Master CC]]),FC_Master[Cost Center],FC_Master[rollup FC '#],OU[[#This Row],[Master CC]])","v":1060010001},null,null,"10000001"]
[106,"106Aud County Auditor",10000010,"106CoAud",null,null,null,null,null,null,null,null,null,"Tra","Travis County","10000000","TravisCty",null,null,"1","2014-02-16","9999-12-31","2014-02-19","LAMROLC","106AUD Disbursements Auditing","10050926","106Dsbrsmt","1060010001",106,{"$f":"_xlfn.XLOOKUP(VALUE(OU[[#This Row],[Master CC]]),FC_Master[Cost Center],FC_Master[rollup FC '#],OU[[#This Row],[Master CC]])","v":1060010001},null,null,"10000000"]
[106,"106AUD Disbursements Auditing",10050926,"106Dsbrsmt",null,null,null,null,null,null,null,null,null,"112","112TCIS PMO Web Site Services","10000072","112PMOWSS",null,null,"1","2017-01-23","9999-12-31","2020-09-17","MILLERA1","106AUD Executive Asst","10052151","106ExcAsst","1060010001",106,{"$f":"_xlfn.XLOOKUP(VALUE(OU[[#This Row],[Master CC]]),FC_Master[Cost Center],FC_Master[rollup FC '#],OU[[#This Row],[Master CC]])","v":1060010001},null,null,"10000072"]
[106,"106AUD Executive Asst",10052151,"106ExcAsst",null,null,null,null,null,null,null,null,null,null,null,null,null,null,null,"1","2020-04-20","9999-12-31","2020-04-24","MILLERA1","106AUD Financial Accounting","10054077","106FinActg","1060010001",106,{"$f":"_xlfn.XLOOKUP(VALUE(OU[[#This Row],[Master CC]]),FC_Master[Cost Center],FC_Master[rollup FC '#],OU[[#This Row],[Master CC]])","v":1060010001}]
[106,"106AUD Financial Accounting",10054077,"106FinActg",null,null,null,null,null,null,null,null,null,null,null,null,null,null,null,"1","2020-01-01","9999-12-31","2020-01-27","BROUSSC","106AUD Financial Reporting","10000019","106FinRptg","1060010001",106,{"$f":"_xlfn.XLOOKUP(VALUE(OU[[#This Row],[Master CC]]),FC_Master[Cost Center],FC_Master[rollup FC '#],OU[[#This Row],[Master CC]])","v":1060010001}]
[106,"106AUD Financial Reporting",10000019,"106FinRptg",null,null,null,null,null,null,null,null,null,null,null,null,null,null,null,"1","2023-04-01","9999-12-31","2023-03-28","PFAFFEA","106Aud Financial Sys Maintenance & Sp","10000023","106FinSysMnt","1060010001",106,{"$f":"_xlfn.XLOOKUP(VALUE(OU[[#This Row],[Master CC]]),FC_Master[Cost Center],FC_Master[rollup FC '#],OU[[#This Row],[Master CC]])","v":1060010001}]
[106,"106Aud Financial Sys Maintenance & Sp",10000023,"106FinSysMnt",null,null,null,null,null,null,null,null,null,null,null,null,null,null,null,"1","1950-01-01","9999-12-31","2012-05-15","DATACONVERSI","106Aud First Assistant County Auditor","10000011","106FirstAud","1060010001",106,{"$f":"_xlfn.XLOOKUP(VALUE(OU[[#This Row],[Master CC]]),FC_Master[Cost Center],FC_Master[rollup FC '#],OU[[#This Row],[Master CC]])","v":1060010001}]
[106,"106Aud First Assistant County Auditor",10000011,"106FirstAud",null,null,null,null,null,null,null,null,null,null,null,null,null,null,null,"1","2020-01-01","9999-12-31","2020-01-27","BROUSSC","106Aud General Ledger","10052826","106GenLedger","1060010001",106,{"$f":"_xlfn.XLOOKUP(VALUE(OU[[#This Row],[Master CC]]),FC_Master[Cost Center],FC_Master[rollup FC '#],OU[[#This Row],[Master CC]])","v":1060010001}]
[106,"106Aud General Ledger",10052826,"106GenLedger",null,null,null,null,null,null,null,null,null,null,null,null,null,null,null,"1","2019-12-16","9999-12-31","2019-12-20","PFAFFEA","106Aud Grants Auditing and Fin Rptg","10000020","106GrantsAud","1060010001",106,{"$f":"_xlfn.XLOOKUP(VALUE(OU[[#This Row],[Master CC]]),FC_Master[Cost Center],FC_Master[rollup FC '#],OU[[#This Row],[Master CC]])","v":1060010001}]
[106,"106Aud Grants Auditing and Fin Rptg",10000020,"106GrantsAud",null,null,null,null,null,null,null,null,null,null,null,null,null,null,null,"1","2020-03-15","9999-12-31","2020-04-09","BROUSSC","106AUD Operations/Systems Compliance","10050626","106OpsSysCm","1060010001",106,{"$f":"_xlfn.XLOOKUP(VALUE(OU[[#This Row],[Master CC]]),FC_Master[Cost Center],FC_Master[rollup FC '#],OU[[#This Row],[Master CC]])","v":1060010001}]
[106,"106AUD Operations/Systems Compliance",10050626,"106OpsSysCm",null,null,null,null,null,null,null,null,null,null,null,null,null,null,null,"1","2024-01-01","9999-12-31","2023-12-22","ZAKIA","106Aud Payroll and Benefits Auditing","10000018","106Payroll","1060010001",106,{"$f":"_xlfn.XLOOKUP(VALUE(OU[[#This Row],[Master CC]]),FC_Master[Cost Center],FC_Master[rollup FC '#],OU[[#This Row],[Master CC]])","v":1060010001}]
[106,"106Aud Payroll and Benefits Auditing",10000018,"106Payroll",null,null,null,null,null,null,null,null,null,null,null,null,null,null,null,"1","2023-05-19","9999-12-31","2023-05-22","PFAFFEA","106Aud Policy Compliance","10056252","106PlcyCm","1060010001",106,{"$f":"_xlfn.XLOOKUP(VALUE(OU[[#This Row],[Master CC]]),FC_Master[Cost Center],FC_Master[rollup FC '#],OU[[#This Row],[Master CC]])","v":1060010001}]
[106,"106Aud Policy Compliance",10056252,"106PlcyCm",null,null,null,null,null,null,null,null,null,null,null,null,null,null,null,"1","2022-06-15","9999-12-31","2022-06-16","PFAFFEA","106Aud Procure Fin Sy Integration & Rptg","10050477","106Procure","1060010001",106,{"$f":"_xlfn.XLOOKUP(VALUE(OU[[#This Row],[Master CC]]),FC_Master[Cost Center],FC_Master[rollup FC '#],OU[[#This Row],[Master CC]])","v":1060010001}]
[106,"106Aud Procure Fin Sy Integration & Rptg",10050477,"106Procure",null,null,null,null,null,null,null,null,null,null,null,null,null,null,null,"1","2020-04-20","9999-12-31","2020-04-24","MILLERA1","106AUD Rev Estimation & Fin Analysis","10000022","106RevFin","1060010001",106,{"$f":"_xlfn.XLOOKUP(VALUE(OU[[#This Row],[Master CC]]),FC_Master[Cost Center],FC_Master[rollup FC '#],OU[[#This Row],[Master CC]])","v":1060010001}]
[106,"106AUD Rev Estimation & Fin Analysis",10000022,"106RevFin",null,null,null,null,null,null,null,null,null,null,null,null,null,null,null,"1","2020-04-20","9999-12-31","2020-04-24","MILLERA1","106AUD Risk Evaluation & Consulting","10000021","106RskEval","1060010001",106,{"$f":"_xlfn.XLOOKUP(VALUE(OU[[#This Row],[Master CC]]),FC_Master[Cost Center],FC_Master[rollup FC '#],OU[[#This Row],[Master CC]])","v":1060010001}]
[106,"106AUD Risk Evaluation & Consulting",10000021,"106RskEval",null,null,null,null,null,null,null,null,null,null,null,null,null,null,null,"1","2023-04-01","9999-12-31","2023-04-12","PFAFFEA","106AUD Technical Support","10050676","106TchSp","1060010001",106,{"$f":"_xlfn.XLOOKUP(VALUE(OU[[#This Row],[Master CC]]),FC_Master[Cost Center],FC_Master[rollup FC '#],OU[[#This Row],[Master CC]])","v":1060010001}]
[106,"106AUD Technical Support",10050676,"106TchSp",null,null,null,null,null,null,null,null,null,null,null,null,null,null,null,"1","1950-01-01","9999-12-31","2012-05-15","DATACONVERSI","107Treasurer","10000025","107Treasurer","1070010001",107,{"$f":"_xlfn.XLOOKUP(VALUE(OU[[#This Row],[Master CC]]),FC_Master[Cost Center],FC_Master[rollup FC '#],OU[[#This Row],[Master CC]])","v":1070010001}]
[107,"107Treasurer",10000025,"107Treasurer",null,null,null,null,null,null,null,null,null,null,null,null,null,null,null,"1","1950-01-01","9999-12-31","2012-05-15","DATACONVERSI","107Treasurer Administration","10000026","107TrsrAdm","1070010001",107,{"$f":"_xlfn.XLOOKUP(VALUE(OU[[#This Row],[Master CC]]),FC_Master[Cost Center],FC_Master[rollup FC '#],OU[[#This Row],[Master CC]])","v":1070010001}]
[107,"107Treasurer Administration",10000026,"107TrsrAdm",null,null,null,null,null,null,null,null,null,null,null,null,null,null,null,"1","2013-11-01","9999-12-31","2013-11-14","ARJONAE","108 Tax Accounting Lead","10050751","108TxActgLd","1080090001",108,{"$f":"_xlfn.XLOOKUP(VALUE(OU[[#This Row],[Master CC]]),FC_Master[Cost Center],FC_Master[rollup FC '#],OU[[#This Row],[Master CC]])","v":1080090001}]
[108,"108 Tax Accounting Lead",10050751,"108TxActgLd",null,null,null,null,null,null,null,null,null,null,null,null,null,null,null,"1","2021-02-25","9999-12-31","2021-03-01","VLAHODA","108 Tax Administrative Services-HR","10054651","108TxAdmSvHR","1080010001",108,{"$f":"_xlfn.XLOOKUP(VALUE(OU[[#This Row],[Master CC]]),FC_Master[Cost Center],FC_Master[rollup FC '#],OU[[#This Row],[Master CC]])","v":1080010001}]
[108,"108 Tax Administrative Services-HR",10054651,"108TxAdmSvHR",null,null,null,null,null,null,null,null,null,null,null,null,null,null,null,"1","2023-10-01","9999-12-31","2023-10-25","SHAHS1","108 Tax Administrative Services-HR A","10056606","108TxAdScHRA","1080010001",108,{"$f":"_xlfn.XLOOKUP(VALUE(OU[[#This Row],[Master CC]]),FC_Master[Cost Center],FC_Master[rollup FC '#],OU[[#This Row],[Master CC]])","v":1080010001}]
[108,"108 Tax Administrative Services-HR A",10056606,"108TxAdScHRA",null,null,null,null,null,null,null,null,null,null,null,null,null,null,null,"1","2021-03-01","9999-12-31","2021-03-02","VLAHODA","108 Tax Operations Mgmt","10000028","108TxOpsMgmt","1080010001",108,{"$f":"_xlfn.XLOOKUP(VALUE(OU[[#This Row],[Master CC]]),FC_Master[Cost Center],FC_Master[rollup FC '#],OU[[#This Row],[Master CC]])","v":1080010001}]
[108,"108 Tax Operations Mgmt",10000028,"108TxOpsMgmt",null,null,null,null,null,null,null,null,null,null,null,null,null,null,null,"1","1950-01-01","9999-12-31","2012-05-15","DATACONVERSI","108Tax Accounting A","10000049","108ActgA","1080090001",108,{"$f":"_xlfn.XLOOKUP(VALUE(OU[[#This Row],[Master CC]]),FC_Master[Cost Center],FC_Master[rollup FC '#],OU[[#This Row],[Master CC]])","v":1080090001}]
[108,"108Tax Accounting A",10000049,"108ActgA",null,null,null,null,null,null,null,null,null,null,null,null,null,null,null,"1","1950-01-01","9999-12-31","2012-05-15","DATACONVERSI","108Tax Accounting B","10000050","108ActgB","1080090001",108,{"$f":"_xlfn.XLOOKUP(VALUE(OU[[#This Row],[Master CC]]),FC_Master[Cost Center],FC_Master[rollup FC '#],OU[[#This Row],[Master CC]])","v":1080090001}]
[108,"108Tax Accounting B",10000050,"108ActgB",null,null,null,null,null,null,null,null,null,null,null,null,null,null,null,"1","2014-12-01","9999-12-31","2015-01-26","PFAFFEA","108Tax Accounting Manager","10000048","108ActgMgr","1080090001",108,{"$f":"_xlfn.XLOOKUP(VALUE(OU[[#This Row],[Master CC]]),FC_Master[Cost Center],FC_Master[rollup FC '#],OU[[#This Row],[Master CC]])","v":1080090001}]
[108,"108Tax Accounting Manager",10000048,"108ActgMgr",null,null,null,null,null,null,null,null,null,null,null,null,null,null,null,"1","2021-02-25","9999-12-31","2021-12-15","ALFAROA","108Tax Administrative Services","10054603","108TxAdmSv","1080010001",108,{"$f":"_xlfn.XLOOKUP(VALUE(OU[[#This Row],[Master CC]]),FC_Master[Cost Center],FC_Master[rollup FC '#],OU[[#This Row],[Master CC]])","v":1080010001}]
[108,"108Tax Administrative Services",10054603,"108TxAdmSv",null,null,null,null,null,null,null,null,null,null,null,null,null,null,null,"1","1950-01-01","9999-12-31","2012-05-15","DATACONVERSI","108Tax Assessor Collector","10000027","108TaxAssr","1080010001",108,{"$f":"_xlfn.XLOOKUP(VALUE(OU[[#This Row],[Master CC]]),FC_Master[Cost Center],FC_Master[rollup FC '#],OU[[#This Row],[Master CC]])","v":1080010001}]
[108,"108Tax Assessor Collector",10000027,"108TaxAssr",null,null,null,null,null,null,null,null,null,null,null,null,null,null,null,"1","1950-01-01","9999-12-31","2012-05-15","DATACONVERSI","108Tax Business Analysis","10000029","108TaxBA","1080010001",108,{"$f":"_xlfn.XLOOKUP(VALUE(OU[[#This Row],[Master CC]]),FC_Master[Cost Center],FC_Master[rollup FC '#],OU[[#This Row],[Master CC]])","v":1080010001}]
[108,"108Tax Business Analysis",10000029,"108TaxBA",null,null,null,null,null,null,null,null,null,null,null,null,null,null,null,"1","1950-01-01","9999-12-31","2012-05-15","DATACONVERSI","108Tax Collections","10000037","108Clns","1080030001",108,{"$f":"_xlfn.XLOOKUP(VALUE(OU[[#This Row],[Master CC]]),FC_Master[Cost Center],FC_Master[rollup FC '#],OU[[#This Row],[Master CC]])","v":1080030001}]
[108,"108Tax Collections",10000037,"108Clns",null,null,null,null,null,null,null,null,null,null,null,null,null,null,null,"1","1800-01-01","9999-12-31","2017-05-09","BROUSSC","108Tax Communications and Training","10000031","108Comm","1080020001",108,{"$f":"_xlfn.XLOOKUP(VALUE(OU[[#This Row],[Master CC]]),FC_Master[Cost Center],FC_Master[rollup FC '#],OU[[#This Row],[Master CC]])","v":1080020001}]
[108,"108Tax Communications and Training",10000031,"108Comm",null,null,null,null,null,null,null,null,null,null,null,null,null,null,null,"1","2017-03-22","9999-12-31","2017-05-09","BROUSSC","108Tax Communications and Training 2","10052326","108Comm2","1080020001",108,{"$f":"_xlfn.XLOOKUP(VALUE(OU[[#This Row],[Master CC]]),FC_Master[Cost Center],FC_Master[rollup FC '#],OU[[#This Row],[Master CC]])","v":1080020001}]
[108,"108Tax Communications and Training 2",10052326,"108Comm2",null,null,null,null,null,null,null,null,null,null,null,null,null,null,null,"1","2019-02-16","9999-12-31","2019-02-19","VLAHODA","108Tax Communications and Training 3","10053401","108Comm3","1080020001",108,{"$f":"_xlfn.XLOOKUP(VALUE(OU[[#This Row],[Master CC]]),FC_Master[Cost Center],FC_Master[rollup FC '#],OU[[#This Row],[Master CC]])","v":1080020001}]
[108,"108Tax Communications and Training 3",10053401,"108Comm3",null,null,null,null,null,null,null,null,null,null,null,null,null,null,null,"5","2019-02-19","9999-12-31","2019-02-19","VLAHODA","108Tax Communications and Training 3","10053401","108Comm3","1080020001",108,{"$f":"_xlfn.XLOOKUP(VALUE(OU[[#This Row],[Master CC]]),FC_Master[Cost Center],FC_Master[rollup FC '#],OU[[#This Row],[Master CC]])","v":1080020001}]
[108,"108Tax Communications and Training 3",10053401,"108Comm3",null,null,null,null,null,null,null,null,null,null,null,null,null,null,null,"1","2012-12-06","9999-12-31","2012-12-07","LAMROLC","108Tax Communications and Training Dir","10000030","108CommDir","1080010001",108,{"$f":"_xlfn.XLOOKUP(VALUE(OU[[#This Row],[Master CC]]),FC_Master[Cost Center],FC_Master[rollup FC '#],OU[[#This Row],[Master CC]])","v":1080010001}]
[108,"108Tax Communications and Training Dir",10000030,"108CommDir",null,null,null,null,null,null,null,null,null,null,null,null,null,null,null,"1","2023-10-01","9999-12-31","2023-03-03","DANIELD4","108Tax Court A","10053051","108CtA","1080120001",108,{"$f":"_xlfn.XLOOKUP(VALUE(OU[[#This Row],[Master CC]]),FC_Master[Cost Center],FC_Master[rollup FC '#],OU[[#This Row],[Master CC]])","v":0}]
[108,"108Tax Court A",10053051,"108CtA",null,null,null,null,null,null,null,null,null,null,null,null,null,null,null,"1","2023-10-01","9999-12-31","2023-03-03","DANIELD4","108Tax Court B","10053052","108CtB","1080120001",108,{"$f":"_xlfn.XLOOKUP(VALUE(OU[[#This Row],[Master CC]]),FC_Master[Cost Center],FC_Master[rollup FC '#],OU[[#This Row],[Master CC]])","v":0}]
[108,"108Tax Court B",10053052,"108CtB",null,null,null,null,null,null,null,null,null,null,null,null,null,null,null,"1","2023-10-01","9999-12-31","2023-03-03","DANIELD4","108Tax Court C","10000036","108CtC","1080120001",108,{"$f":"_xlfn.XLOOKUP(VALUE(OU[[#This Row],[Master CC]]),FC_Master[Cost Center],FC_Master[rollup FC '#],OU[[#This Row],[Master CC]])","v":0}]
[108,"108Tax Court C",10000036,"108CtC",null,null,null,null,null,null,null,null,null,null,null,null,null,null,null,"1","2023-10-01","9999-12-31","2023-03-03","DANIELD4","108Tax Court Collections","10000035","108CtCln","1080120001",108,{"$f":"_xlfn.XLOOKUP(VALUE(OU[[#This Row],[Master CC]]),FC_Master[Cost Center],FC_Master[rollup FC '#],OU[[#This Row],[Master CC]])","v":0}]
[108,"108Tax Court Collections",10000035,"108CtCln",null,null,null,null,null,null,null,null,null,null,null,null,null,null,null,"1","2015-04-01","9999-12-31","2015-04-28","PFAFFEA","108Tax IT","10051401","108TaxIT","1080110001",108,{"$f":"_xlfn.XLOOKUP(VALUE(OU[[#This Row],[Master CC]]),FC_Master[Cost Center],FC_Master[rollup FC '#],OU[[#This Row],[Master CC]])","v":1080110001}]
[108,"108Tax IT",10051401,"108TaxIT",null,null,null,null,null,null,null,null,null,null,null,null,null,null,null,"1","2023-10-01","9999-12-31","2023-11-02","ZAKIA","108Tax IT-GIS","10056654","108TaxITGS","1080110001",108,{"$f":"_xlfn.XLOOKUP(VALUE(OU[[#This Row],[Master CC]]),FC_Master[Cost Center],FC_Master[rollup FC '#],OU[[#This Row],[Master CC]])","v":1080110001}]
[108,"108Tax IT-GIS",10056654,"108TaxITGS",null,null,null,null,null,null,null,null,null,null,null,null,null,null,null,"1","2023-10-01","9999-12-31","2023-10-31","SHAHS1","108Tax IT-GIS A","10056655","108TaxITGSA","1080110001",108,{"$f":"_xlfn.XLOOKUP(VALUE(OU[[#This Row],[Master CC]]),FC_Master[Cost Center],FC_Master[rollup FC '#],OU[[#This Row],[Master CC]])","v":1080110001}]
[108,"108Tax IT-GIS A",10056655,"108TaxITGSA",null,null,null,null,null,null,null,null,null,null,null,null,null,null,null,"1","2015-03-02","9999-12-31","2015-03-26","PFAFFEA","108Tax Manager A","10051376","108TaxMgrA","1080030001",108,{"$f":"_xlfn.XLOOKUP(VALUE(OU[[#This Row],[Master CC]]),FC_Master[Cost Center],FC_Master[rollup FC '#],OU[[#This Row],[Master CC]])","v":1080030001}]
[108,"108Tax Manager A",10051376,"108TaxMgrA",null,null,null,null,null,null,null,null,null,null,null,null,null,null,null,"1","2018-10-22","9999-12-31","2018-11-09","VLAHODA","108Tax Manager A","10053252","108TaxMgrA","1080010001",108,{"$f":"_xlfn.XLOOKUP(VALUE(OU[[#This Row],[Master CC]]),FC_Master[Cost Center],FC_Master[rollup FC '#],OU[[#This Row],[Master CC]])","v":1080010001}]
[108,"108Tax Manager A",10053252,"108TaxMgrA",null,null,null,null,null,null,null,null,null,null,null,null,null,null,null,"1","2018-10-22","9999-12-31","2018-11-09","VLAHODA","108Tax Manager B","10051377","108TaxMgrB","1080010001",108,{"$f":"_xlfn.XLOOKUP(VALUE(OU[[#This Row],[Master CC]]),FC_Master[Cost Center],FC_Master[rollup FC '#],OU[[#This Row],[Master CC]])","v":1080010001}]
[108,"108Tax Manager B",10051377,"108TaxMgrB",null,null,null,null,null,null,null,null,null,null,null,null,null,null,null,"1","2020-07-10","9999-12-31","2020-07-13","BROUSSC","108Tax Manager B","10054301","108TaxMgrB","1080030001",108,{"$f":"_xlfn.XLOOKUP(VALUE(OU[[#This Row],[Master CC]]),FC_Master[Cost Center],FC_Master[rollup FC '#],OU[[#This Row],[Master CC]])","v":1080030001}]
[108,"108Tax Manager B",10054301,"108TaxMgrB",null,null,null,null,null,null,null,null,null,null,null,null,null,null,null,"1","2018-10-22","9999-12-31","2018-11-13","VLAHODA","108Tax Manager C","10053253","108TaxMgrC","1080010001",108,{"$f":"_xlfn.XLOOKUP(VALUE(OU[[#This Row],[Master CC]]),FC_Master[Cost Center],FC_Master[rollup FC '#],OU[[#This Row],[Master CC]])","v":1080010001}]
[108,"108Tax Manager C",10053253,"108TaxMgrC",null,null,null,null,null,null,null,null,null,null,null,null,null,null,null,"1","2020-01-03","9999-12-31","2020-01-10","MILLIGA","108Tax Manager D","10054051","108TaxMgrD","1080070001",108,{"$f":"_xlfn.XLOOKUP(VALUE(OU[[#This Row],[Master CC]]),FC_Master[Cost Center],FC_Master[rollup FC '#],OU[[#This Row],[Master CC]])","v":1080070001}]
[108,"108Tax Manager D",10054051,"108TaxMgrD",null,null,null,null,null,null,null,null,null,null,null,null,null,null,null,"1","2019-02-27","9999-12-31","2019-02-27","VLAHODA","108Tax Motor Vehicle A","10000039","108MVA","1080070001",108,{"$f":"_xlfn.XLOOKUP(VALUE(OU[[#This Row],[Master CC]]),FC_Master[Cost Center],FC_Master[rollup FC '#],OU[[#This Row],[Master CC]])","v":1080070001}]
[108,"108Tax Motor Vehicle A",10000039,"108MVA",null,null,null,null,null,null,null,null,null,null,null,null,null,null,null,"5","2015-03-02","9999-12-31","2018-03-29","BROUSSC","108Tax Motor Vehicle A","10000039","108MVA","1080070001",108,{"$f":"_xlfn.XLOOKUP(VALUE(OU[[#This Row],[Master CC]]),FC_Master[Cost Center],FC_Master[rollup FC '#],OU[[#This Row],[Master CC]])","v":1080070001}]
[108,"108Tax Motor Vehicle A",10000039,"108MVA",null,null,null,null,null,null,null,null,null,null,null,null,null,null,null,"1","2019-02-27","9999-12-31","2019-02-27","VLAHODA","108Tax Motor Vehicle B","10000040","108MVB","1080070001",108,{"$f":"_xlfn.XLOOKUP(VALUE(OU[[#This Row],[Master CC]]),FC_Master[Cost Center],FC_Master[rollup FC '#],OU[[#This Row],[Master CC]])","v":1080070001}]
[108,"108Tax Motor Vehicle B",10000040,"108MVB",null,null,null,null,null,null,null,null,null,null,null,null,null,null,null,"1","2019-02-27","9999-12-31","2019-02-27","VLAHODA","108Tax Motor Vehicle C","10000041","108MVC","1080070001",108,{"$f":"_xlfn.XLOOKUP(VALUE(OU[[#This Row],[Master CC]]),FC_Master[Cost Center],FC_Master[rollup FC '#],OU[[#This Row],[Master CC]])","v":1080070001}]
[108,"108Tax Motor Vehicle C",10000041,"108MVC",null,null,null,null,null,null,null,null,null,null,null,null,null,null,null,"5","2015-03-02","9999-12-31","2018-03-29","BROUSSC","108Tax Motor Vehicle C","10000041","108MVC","1080070001",108,{"$f":"_xlfn.XLOOKUP(VALUE(OU[[#This Row],[Master CC]]),FC_Master[Cost Center],FC_Master[rollup FC '#],OU[[#This Row],[Master CC]])","v":1080070001}]
[108,"108Tax Motor Vehicle C",10000041,"108MVC",null,null,null,null,null,null,null,null,null,null,null,null,null,null,null,"1","2014-11-01","9999-12-31","2014-11-10","BROUSSC","108Tax Motor Vehicle D","10000042","108MVD","1080070001",108,{"$f":"_xlfn.XLOOKUP(VALUE(OU[[#This Row],[Master CC]]),FC_Master[Cost Center],FC_Master[rollup FC '#],OU[[#This Row],[Master CC]])","v":1080070001}]
[108,"108Tax Motor Vehicle D",{"$f":"VALUE(Z66)","v":10000042},"108MVD",null,null,null,null,null,null,null,null,null,null,null,null,null,null,null,"5","2015-03-02","9999-12-31","2018-03-29","BROUSSC","108Tax Motor Vehicle D","10000042","108MVD","1080070001",108,{"$f":"_xlfn.XLOOKUP(VALUE(OU[[#This Row],[Master CC]]),FC_Master[Cost Center],FC_Master[rollup FC '#],OU[[#This Row],[Master CC]])","v":1080070001}]
[{"$f":"AC67","v":108},{"$f":"Y67","v":"108Tax Motor Vehicle D"},10000042,{"$f":"AA67","v":"108MVD"},null,null,null,null,null,null,null,null,null,null,null,null,null,null,null,"1","1950-01-01","9999-12-31","2012-05-15","DATACONVERSI","108Tax Motor Vehicle Deputy","10000038","108MVDp","1080010001",108,{"$f":"_xlfn.XLOOKUP(VALUE(OU[[#This Row],[Master CC]]),FC_Master[Cost Center],FC_Master[rollup FC '#],OU[[#This Row],[Master CC]])","v":1080010001}]
[108,"108Tax Motor Vehicle Deputy",10000038,"108MVDp",null,null,null,null,null,null,null,null,null,null,null,null,null,null,null,"1","2019-02-27","9999-12-31","2019-02-27","VLAHODA","108Tax Motor Vehicle E","10000043","108MVE","1080070001",108,{"$f":"_xlfn.XLOOKUP(VALUE(OU[[#This Row],[Master CC]]),FC_Master[Cost Center],FC_Master[rollup FC '#],OU[[#This Row],[Master CC]])","v":1080070001}]
[108,"108Tax Motor Vehicle E",10000043,"108MVE",null,null,null,null,null,null,null,null,null,null,null,null,null,null,null,"5","2015-03-02","9999-12-31","2018-03-29","BROUSSC","108Tax Motor Vehicle E","10000043","108MVE","1080070001",108,{"$f":"_xlfn.XLOOKUP(VALUE(OU[[#This Row],[Master CC]]),FC_Master[Cost Center],FC_Master[rollup FC '#],OU[[#This Row],[Master CC]])","v":1080070001}]
[108,"108Tax Motor Vehicle E",10000043,"108MVE",null,null,null,null,null,null,null,null,null,null,null,null,null,null,null,"1","2019-02-27","9999-12-31","2019-02-27","VLAHODA","108Tax Motor Vehicle F","10050901","108MVF","1080070001",108,{"$f":"_xlfn.XLOOKUP(VALUE(OU[[#This Row],[Master CC]]),FC_Master[Cost Center],FC_Master[rollup FC '#],OU[[#This Row],[Master CC]])","v":1080070001}]
[108,"108Tax Motor Vehicle F",10050901,"108MVF",null,null,null,null,null,null,null,null,null,null,null,null,null,null,null,"1","2022-06-07","9999-12-31","2022-06-10","DANIELD4","108Tax Motor Vehicle F","10055551","108TaxMVF","1080070001",108,{"$f":"_xlfn.XLOOKUP(VALUE(OU[[#This Row],[Master CC]]),FC_Master[Cost Center],FC_Master[rollup FC '#],OU[[#This Row],[Master CC]])","v":1080070001}]
[108,"108Tax Motor Vehicle F",10055551,"108TaxMVF",null,null,null,null,null,null,null,null,null,null,null,null,null,null,null,"1","2019-02-27","9999-12-31","2019-02-27","VLAHODA","108Tax Motor Vehicle G","10050902","108MVG","1080070001",108,{"$f":"_xlfn.XLOOKUP(VALUE(OU[[#This Row],[Master CC]]),FC_Master[Cost Center],FC_Master[rollup FC '#],OU[[#This Row],[Master CC]])","v":1080070001}]
[108,"108Tax Motor Vehicle G",10050902,"108MVG",null,null,null,null,null,null,null,null,null,null,null,null,null,null,null,"1","2018-10-22","9999-12-31","2018-11-13","VLAHODA","108Tax Motor Vehicle H","10053230","108MVH","1080070001",108,{"$f":"_xlfn.XLOOKUP(VALUE(OU[[#This Row],[Master CC]]),FC_Master[Cost Center],FC_Master[rollup FC '#],OU[[#This Row],[Master CC]])","v":1080070001}]
[108,"108Tax Motor Vehicle H",10053230,"108MVH",null,null,null,null,null,null,null,null,null,null,null,null,null,null,null,"1","2019-07-23","9999-12-31","2019-07-23","VLAHODA","108Tax Motor Vehicle I","10053229","108MVI","1080070001",108,{"$f":"_xlfn.XLOOKUP(VALUE(OU[[#This Row],[Master CC]]),FC_Master[Cost Center],FC_Master[rollup FC '#],OU[[#This Row],[Master CC]])","v":1080070001}]
[108,"108Tax Motor Vehicle I",10053229,"108MVI",null,null,null,null,null,null,null,null,null,null,null,null,null,null,null,"1","2018-10-22","9999-12-31","2018-11-13","VLAHODA","108Tax Motor Vehicle J","10053228","108MVJ","1080070001",108,{"$f":"_xlfn.XLOOKUP(VALUE(OU[[#This Row],[Master CC]]),FC_Master[Cost Center],FC_Master[rollup FC '#],OU[[#This Row],[Master CC]])","v":1080070001}]
[108,"108Tax Motor Vehicle J",10053228,"108MVJ",null,null,null,null,null,null,null,null,null,null,null,null,null,null,null,"1","2018-10-22","9999-12-31","2018-11-09","VLAHODA","108Tax Motor Vehicle K","10053251","108MVK","1080070001",108,{"$f":"_xlfn.XLOOKUP(VALUE(OU[[#This Row],[Master CC]]),FC_Master[Cost Center],FC_Master[rollup FC '#],OU[[#This Row],[Master CC]])","v":1080070001}]
[108,"108Tax Motor Vehicle K",10053251,"108MVK",null,null,null,null,null,null,null,null,null,null,null,null,null,null,null,"1","2021-12-10","9999-12-31","2021-12-16","DANIELD4","108Tax Motor Vehicle L","10055180","108MVL","1080070001",108,{"$f":"_xlfn.XLOOKUP(VALUE(OU[[#This Row],[Master CC]]),FC_Master[Cost Center],FC_Master[rollup FC '#],OU[[#This Row],[Master CC]])","v":1080070001}]
[108,"108Tax Motor Vehicle L",10055180,"108MVL",null,null,null,null,null,null,null,null,null,null,null,null,null,null,null,"1","2021-12-10","9999-12-31","2021-12-16","DANIELD4","108Tax Motor Vehicle M","10055178","108MVM","1080070001",108,{"$f":"_xlfn.XLOOKUP(VALUE(OU[[#This Row],[Master CC]]),FC_Master[Cost Center],FC_Master[rollup FC '#],OU[[#This Row],[Master CC]])","v":1080070001}]
[108,"108Tax Motor Vehicle M",10055178,"108MVM",null,null,null,null,null,null,null,null,null,null,null,null,null,null,null,"1","2021-12-10","9999-12-31","2021-12-16","DANIELD4","108Tax Motor Vehicle O","10055176","108MVO","1080070001",108,{"$f":"_xlfn.XLOOKUP(VALUE(OU[[#This Row],[Master CC]]),FC_Master[Cost Center],FC_Master[rollup FC '#],OU[[#This Row],[Master CC]])","v":1080070001}]
[108,"108Tax Motor Vehicle O",10055176,"108MVO",null,null,null,null,null,null,null,null,null,null,null,null,null,null,null,"1","2021-12-10","9999-12-31","2021-12-16","DANIELD4","108Tax Motor Vehicle P","10055179","108MVP","1080070001",108,{"$f":"_xlfn.XLOOKUP(VALUE(OU[[#This Row],[Master CC]]),FC_Master[Cost Center],FC_Master[rollup FC '#],OU[[#This Row],[Master CC]])","v":1080070001}]
[108,"108Tax Motor Vehicle P",10055179,"108MVP",null,null,null,null,null,null,null,null,null,null,null,null,null,null,null,"1","2021-12-10","9999-12-31","2021-12-16","DANIELD4","108Tax Motor Vehicle Q","10055177","108MVQ","1080070001",108,{"$f":"_xlfn.XLOOKUP(VALUE(OU[[#This Row],[Master CC]]),FC_Master[Cost Center],FC_Master[rollup FC '#],OU[[#This Row],[Master CC]])","v":1080070001}]
[108,"108Tax Motor Vehicle Q",10055177,"108MVQ",null,null,null,null,null,null,null,null,null,null,null,null,null,null,null,"1","1950-01-01","9999-12-31","2012-05-15","DATACONVERSI","108Tax Property Tax A","10000033","108PropTaxA","1080030001",108,{"$f":"_xlfn.XLOOKUP(VALUE(OU[[#This Row],[Master CC]]),FC_Master[Cost Center],FC_Master[rollup FC '#],OU[[#This Row],[Master CC]])","v":1080030001}]
[108,"108Tax Property Tax A",10000033,"108PropTaxA",null,null,null,null,null,null,null,null,null,null,null,null,null,null,null,"5","2015-03-02","9999-12-31","2018-03-29","BROUSSC","108Tax Property Tax A","10000033","108PropTaxA","1080030001",108,{"$f":"_xlfn.XLOOKUP(VALUE(OU[[#This Row],[Master CC]]),FC_Master[Cost Center],FC_Master[rollup FC '#],OU[[#This Row],[Master CC]])","v":1080030001}]
[108,"108Tax Property Tax A",10000033,"108PropTaxA",null,null,null,null,null,null,null,null,null,null,null,null,null,null,null,"1","1950-01-01","9999-12-31","2012-05-15","DATACONVERSI","108Tax Property Tax and Collections Dp","10000032","108TaxClnDp","1080010001",108,{"$f":"_xlfn.XLOOKUP(VALUE(OU[[#This Row],[Master CC]]),FC_Master[Cost Center],FC_Master[rollup FC '#],OU[[#This Row],[Master CC]])","v":1080010001}]
[108,"108Tax Property Tax and Collections Dp",10000032,"108TaxClnDp",null,null,null,null,null,null,null,null,null,null,null,null,null,null,null,"1","1950-01-01","9999-12-31","2012-05-15","DATACONVERSI","108Tax Property Tax B","10000034","108PropTaxB","1080030001",108,{"$f":"_xlfn.XLOOKUP(VALUE(OU[[#This Row],[Master CC]]),FC_Master[Cost Center],FC_Master[rollup FC '#],OU[[#This Row],[Master CC]])","v":1080030001}]
[108,"108Tax Property Tax B",10000034,"108PropTaxB",null,null,null,null,null,null,null,null,null,null,null,null,null,null,null,"5","2015-03-02","9999-12-31","2018-03-29","BROUSSC","108Tax Property Tax B","10000034","108PropTaxB","1080030001",108,{"$f":"_xlfn.XLOOKUP(VALUE(OU[[#This Row],[Master CC]]),FC_Master[Cost Center],FC_Master[rollup FC '#],OU[[#This Row],[Master CC]])","v":1080030001}]
[108,"108Tax Property Tax B",10000034,"108PropTaxB",null,null,null,null,null,null,null,null,null,null,null,null,null,null,null,"1","2013-12-16","9999-12-31","2013-12-17","ARJONAE","108Tax Property Tax C","10050777","108PropTaxC","1080030001",108,{"$f":"_xlfn.XLOOKUP(VALUE(OU[[#This Row],[Master CC]]),FC_Master[Cost Center],FC_Master[rollup FC '#],OU[[#This Row],[Master CC]])","v":1080030001}]
[108,"108Tax Property Tax C",10050777,"108PropTaxC",null,null,null,null,null,null,null,null,null,null,null,null,null,null,null,"5","2015-03-02","9999-12-31","2018-03-29","BROUSSC","108Tax Property Tax C","10050777","108PropTaxC","1080030001",108,{"$f":"_xlfn.XLOOKUP(VALUE(OU[[#This Row],[Master CC]]),FC_Master[Cost Center],FC_Master[rollup FC '#],OU[[#This Row],[Master CC]])","v":1080030001}]
[108,"108Tax Property Tax C",10050777,"108PropTaxC",null,null,null,null,null,null,null,null,null,null,null,null,null,null,null,"1","2013-12-16","9999-12-31","2013-12-17","ARJONAE","108Tax Property Tax D","10050778","108PropTaxD","1080030001",108,{"$f":"_xlfn.XLOOKUP(VALUE(OU[[#This Row],[Master CC]]),FC_Master[Cost Center],FC_Master[rollup FC '#],OU[[#This Row],[Master CC]])","v":1080030001}]
[108,"108Tax Property Tax D",10050778,"108PropTaxD",null,null,null,null,null,null,null,null,null,null,null,null,null,null,null,"5","2015-03-02","9999-12-31","2018-03-29","BROUSSC","108Tax Property Tax D","10050778","108PropTaxD","1080030001",108,{"$f":"_xlfn.XLOOKUP(VALUE(OU[[#This Row],[Master CC]]),FC_Master[Cost Center],FC_Master[rollup FC '#],OU[[#This Row],[Master CC]])","v":1080030001}]
[108,"108Tax Property Tax D",10050778,"108PropTaxD",null,null,null,null,null,null,null,null,null,null,null,null,null,null,null,"1","2021-11-05","9999-12-31","2021-11-10","BROUSSC","108Tax Special Inventory Tax","10054976","108TaxSpInvt","1080030001",108,{"$f":"_xlfn.XLOOKUP(VALUE(OU[[#This Row],[Master CC]]),FC_Master[Cost Center],FC_Master[rollup FC '#],OU[[#This Row],[Master CC]])","v":1080030001}]
[108,"108Tax Special Inventory Tax",10054976,"108TaxSpInvt",null,null,null,null,null,null,null,null,null,null,null,null,null,null,null,"1","2021-11-16","9999-12-31","2021-11-19","DANIELD4","108Tax Special Inventory Tax A","10055051","108TxSpInvtA","1080030001",108,{"$f":"_xlfn.XLOOKUP(VALUE(OU[[#This Row],[Master CC]]),FC_Master[Cost Center],FC_Master[rollup FC '#],OU[[#This Row],[Master CC]])","v":1080030001}]
[108,"108Tax Special Inventory Tax A",10055051,"108TxSpInvtA",null,null,null,null,null,null,null,null,null,null,null,null,null,null,null,"1","2014-11-01","9999-12-31","2014-11-10","BROUSSC","108Tax Voter Registration Director","10000044","108VtrRg","1080080001",108,{"$f":"_xlfn.XLOOKUP(VALUE(OU[[#This Row],[Master CC]]),FC_Master[Cost Center],FC_Master[rollup FC '#],OU[[#This Row],[Master CC]])","v":1080080001}]
[108,"108Tax Voter Registration Director",10000044,"108VtrRg",null,null,null,null,null,null,null,null,null,null,null,null,null,null,null,"1","2014-11-01","9999-12-31","2014-11-10","BROUSSC","108Tax Voter Registration-BusAnalysis","10000046","108VtrRgBA","1080080001",108,{"$f":"_xlfn.XLOOKUP(VALUE(OU[[#This Row],[Master CC]]),FC_Master[Cost Center],FC_Master[rollup FC '#],OU[[#This Row],[Master CC]])","v":1080080001}]
[108,"108Tax Voter Registration-BusAnalysis",10000046,"108VtrRgBA",null,null,null,null,null,null,null,null,null,null,null,null,null,null,null,"1","1950-01-01","9999-12-31","2012-05-15","DATACONVERSI","108Tax Voter Registration-GIS","10000045","108VtrRgGIS","1080080001",108,{"$f":"_xlfn.XLOOKUP(VALUE(OU[[#This Row],[Master CC]]),FC_Master[Cost Center],FC_Master[rollup FC '#],OU[[#This Row],[Master CC]])","v":1080080001}]
[108,"108Tax Voter Registration-GIS",10000045,"108VtrRgGIS",null,null,null,null,null,null,null,null,null,null,null,null,null,null,null,"1","2015-12-01","9999-12-31","2015-12-31","RAMIREV","108Tax Voter Registration-GIS B","10051776","108VtrRgGISB","1080080001",108,{"$f":"_xlfn.XLOOKUP(VALUE(OU[[#This Row],[Master CC]]),FC_Master[Cost Center],FC_Master[rollup FC '#],OU[[#This Row],[Master CC]])","v":1080080001}]
[108,"108Tax Voter Registration-GIS B",10051776,"108VtrRgGISB",null,null,null,null,null,null,null,null,null,null,null,null,null,null,null,"1","2014-11-01","9999-12-31","2014-11-10","BROUSSC","108Tax Voter Registration-Tax","10000047","108VtrRgTax","1080080001",108,{"$f":"_xlfn.XLOOKUP(VALUE(OU[[#This Row],[Master CC]]),FC_Master[Cost Center],FC_Master[rollup FC '#],OU[[#This Row],[Master CC]])","v":1080080001}]
[108,"108Tax Voter Registration-Tax",10000047,"108VtrRgTax",null,null,null,null,null,null,null,null,null,null,null,null,null,null,null,"1","1950-01-01","9999-12-31","2012-05-15","DATACONVERSI","109PBO Administration","10000054","109Adm","1090010001",109,{"$f":"_xlfn.XLOOKUP(VALUE(OU[[#This Row],[Master CC]]),FC_Master[Cost Center],FC_Master[rollup FC '#],OU[[#This Row],[Master CC]])","v":1090010001}]
[109,"109PBO Administration",10000054,"109Adm",null,null,null,null,null,null,null,null,null,null,null,null,null,null,null,"1","2023-04-27","9999-12-31","2023-04-27","PFAFFEA","109PBO Assist Bud Dir 1","10056202","109AsstBdg1","1090030001",109,{"$f":"_xlfn.XLOOKUP(VALUE(OU[[#This Row],[Master CC]]),FC_Master[Cost Center],FC_Master[rollup FC '#],OU[[#This Row],[Master CC]])","v":1090030001}]
[109,"109PBO Assist Bud Dir 1",10056202,"109AsstBdg1",null,null,null,null,null,null,null,null,null,null,null,null,null,null,null,"1","2023-04-27","9999-12-31","2023-04-27","PFAFFEA","109PBO Assist Bud Dir 2","10056203","109AsstBdg2","1090030001",109,{"$f":"_xlfn.XLOOKUP(VALUE(OU[[#This Row],[Master CC]]),FC_Master[Cost Center],FC_Master[rollup FC '#],OU[[#This Row],[Master CC]])","v":1090030001}]
[109,"109PBO Assist Bud Dir 2",10056203,"109AsstBdg2",null,null,null,null,null,null,null,null,null,null,null,null,null,null,null,"1","2014-03-04","9999-12-31","2014-03-04","LAMROLC","109PBO Budget","10000052","109Budget","1090030001",109,{"$f":"_xlfn.XLOOKUP(VALUE(OU[[#This Row],[Master CC]]),FC_Master[Cost Center],FC_Master[rollup FC '#],OU[[#This Row],[Master CC]])","v":1090030001}]
[109,"109PBO Budget",10000052,"109Budget",null,null,null,null,null,null,null,null,null,null,null,null,null,null,null,"1","2016-01-12","9999-12-31","2016-01-19","BROUSSC","109PBO Cash Investments","10000055","109CashInvst","1090040001",109,{"$f":"_xlfn.XLOOKUP(VALUE(OU[[#This Row],[Master CC]]),FC_Master[Cost Center],FC_Master[rollup FC '#],OU[[#This Row],[Master CC]])","v":1090040001}]
[109,"109PBO Cash Investments",10000055,"109CashInvst",null,null,null,null,null,null,null,null,null,null,null,null,null,null,null,"1","2023-10-01","9999-12-31","2023-10-31","PFAFFEA","109PBO Community Engagement","10055277","109CmtyEngmt","1090090001",109,{"$f":"_xlfn.XLOOKUP(VALUE(OU[[#This Row],[Master CC]]),FC_Master[Cost Center],FC_Master[rollup FC '#],OU[[#This Row],[Master CC]])","v":1090090001}]
[109,"109PBO Community Engagement",10055277,"109CmtyEngmt",null,null,null,null,null,null,null,null,null,null,null,null,null,null,null,"1","2016-01-12","9999-12-31","2016-01-19","BROUSSC","109PBO Corporations","10000056","109Crp","1090050001",109,{"$f":"_xlfn.XLOOKUP(VALUE(OU[[#This Row],[Master CC]]),FC_Master[Cost Center],FC_Master[rollup FC '#],OU[[#This Row],[Master CC]])","v":1090050001}]
[109,"109PBO Corporations",10000056,"109Crp",null,null,null,null,null,null,null,null,null,null,null,null,null,null,null,"1","2023-11-02","9999-12-31","2023-11-07","SHAHS1","109PBO Corporations Operations","10056678","109CRPOps","1090050001",109,{"$f":"_xlfn.XLOOKUP(VALUE(OU[[#This Row],[Master CC]]),FC_Master[Cost Center],FC_Master[rollup FC '#],OU[[#This Row],[Master CC]])","v":1090050001}]
[109,"109PBO Corporations Operations",10056678,"109CRPOps",null,null,null,null,null,null,null,null,null,null,null,null,null,null,null,"1","2015-07-10","9999-12-31","2015-07-31","FF_DORVALR","109PBO County Executive","10000051","109PBOCE","1090010001",109,{"$f":"_xlfn.XLOOKUP(VALUE(OU[[#This Row],[Master CC]]),FC_Master[Cost Center],FC_Master[rollup FC '#],OU[[#This Row],[Master CC]])","v":1090010001}]
[109,"109PBO County Executive",10000051,"109PBOCE",null,null,null,null,null,null,null,null,null,null,null,null,null,null,null,"1","2023-10-24","9999-12-31","2023-10-25","PFAFFEA","109PBO Diversity Equity Inclusion","10056631","109PBO DEI","1090090001",109,{"$f":"_xlfn.XLOOKUP(VALUE(OU[[#This Row],[Master CC]]),FC_Master[Cost Center],FC_Master[rollup FC '#],OU[[#This Row],[Master CC]])","v":1090090001}]
[109,"109PBO Diversity Equity Inclusion",10056631,"109PBO DEI",null,null,null,null,null,null,null,null,null,null,null,null,null,null,null,"1","2016-01-12","9999-12-31","2016-01-15","BROUSSC","109PBO Econ Dev & Strategic Investments","10051801","109ED&SI","1090080001",109,{"$f":"_xlfn.XLOOKUP(VALUE(OU[[#This Row],[Master CC]]),FC_Master[Cost Center],FC_Master[rollup FC '#],OU[[#This Row],[Master CC]])","v":1090080001}]
[109,"109PBO Econ Dev & Strategic Investments",10051801,"109ED&SI",null,null,null,null,null,null,null,null,null,null,null,null,null,null,null,"1","2022-01-01","9999-12-31","2022-01-05","GIPSONK","109PBO Long Range Facilities Planning","10055278","109PBOLRFP","1090020001",109,{"$f":"_xlfn.XLOOKUP(VALUE(OU[[#This Row],[Master CC]]),FC_Master[Cost Center],FC_Master[rollup FC '#],OU[[#This Row],[Master CC]])","v":1090020001}]
[109,"109PBO Long Range Facilities Planning",10055278,"109PBOLRFP",null,null,null,null,null,null,null,null,null,null,null,null,null,null,null,"1","2016-01-12","9999-12-31","2016-01-19","BROUSSC","109PBO Planning","10000053","109Planning","1090020001",109,{"$f":"_xlfn.XLOOKUP(VALUE(OU[[#This Row],[Master CC]]),FC_Master[Cost Center],FC_Master[rollup FC '#],OU[[#This Row],[Master CC]])","v":1090020001}]
[109,"109PBO Planning",10000053,"109Planning",null,null,null,null,null,null,null,null,null,null,null,null,null,null,null,"1","2022-01-01","9999-12-31","2022-01-05","GIPSONK","109PBO Policy & Planning","10055276","109Plcy&Pln","1090020001",109,{"$f":"_xlfn.XLOOKUP(VALUE(OU[[#This Row],[Master CC]]),FC_Master[Cost Center],FC_Master[rollup FC '#],OU[[#This Row],[Master CC]])","v":1090020001}]
[109,"109PBO Policy & Planning",10055276,"109Plcy&Pln",null,null,null,null,null,null,null,null,null,null,null,null,null,null,null,"1","2024-01-06","9999-12-31","2024-01-09","SHAHS1","109PBO Public Improvement District","10056827","109PbcImp","1090100001",109,{"$f":"_xlfn.XLOOKUP(VALUE(OU[[#This Row],[Master CC]]),FC_Master[Cost Center],FC_Master[rollup FC '#],OU[[#This Row],[Master CC]])","v":1090100001}]
[109,"109PBO Public Improvement District",10056827,"109PbcImp",null,null,null,null,null,null,null,null,null,null,null,null,null,null,null,"1","2015-02-24","9999-12-31","2015-02-24","BROUSSC","109Planning and Budget Office","10050077","109PBO","1090030001",109,{"$f":"_xlfn.XLOOKUP(VALUE(OU[[#This Row],[Master CC]]),FC_Master[Cost Center],FC_Master[rollup FC '#],OU[[#This Row],[Master CC]])","v":1090030001}]
[109,"109Planning and Budget Office",10050077,"109PBO",null,null,null,null,null,null,null,null,null,null,null,null,null,null,null,"1","2020-10-01","9999-12-31","2020-10-06","DANIELD4","110 Information Booth","10050701","110Info","1100060001",110,{"$f":"_xlfn.XLOOKUP(VALUE(OU[[#This Row],[Master CC]]),FC_Master[Cost Center],FC_Master[rollup FC '#],OU[[#This Row],[Master CC]])","v":1100060001}]
[110,"110 Information Booth",10050701,"110Info",null,null,null,null,null,null,null,null,null,null,null,null,null,null,null,"1","2020-10-01","9999-12-31","2020-10-06","DANIELD4","110 Media","10000662","110Media","1100060001",110,{"$f":"_xlfn.XLOOKUP(VALUE(OU[[#This Row],[Master CC]]),FC_Master[Cost Center],FC_Master[rollup FC '#],OU[[#This Row],[Master CC]])","v":1100060001}]
[110,"110 Media",10000662,"110Media",null,null,null,null,null,null,null,null,null,null,null,null,null,null,null,"1","2017-10-19","9999-12-31","2017-10-31","WANC","110General Administration","10052601","110GenAdm","1100010000",110,{"$f":"_xlfn.XLOOKUP(VALUE(OU[[#This Row],[Master CC]]),FC_Master[Cost Center],FC_Master[rollup FC '#],OU[[#This Row],[Master CC]])","v":1100010000}]
[110,"110General Administration",10052601,"110GenAdm",null,null,null,null,null,null,null,null,null,null,null,null,null,null,null,"1","2017-10-19","9999-12-31","2017-10-31","WANC","110Intergovernmental","10000057","110Intrgvmtl","1100030001",110,{"$f":"_xlfn.XLOOKUP(VALUE(OU[[#This Row],[Master CC]]),FC_Master[Cost Center],FC_Master[rollup FC '#],OU[[#This Row],[Master CC]])","v":1100030001}]
[110,"110Intergovernmental",10000057,"110Intrgvmtl",null,null,null,null,null,null,null,null,null,null,null,null,null,null,null,"1","2017-10-19","9999-12-31","2017-10-31","WANC","110PIO","10050601","110PIO","1100050001",110,{"$f":"_xlfn.XLOOKUP(VALUE(OU[[#This Row],[Master CC]]),FC_Master[Cost Center],FC_Master[rollup FC '#],OU[[#This Row],[Master CC]])","v":1100050001}]
[110,"110PIO",10050601,"110PIO",null,null,null,null,null,null,null,null,null,null,null,null,null,null,null,"1","2021-10-02","9999-12-31","2021-10-25","VILLARG","111 Talent Planning","10054902","111TalPlan","1110010001",111,{"$f":"_xlfn.XLOOKUP(VALUE(OU[[#This Row],[Master CC]]),FC_Master[Cost Center],FC_Master[rollup FC '#],OU[[#This Row],[Master CC]])","v":1110010001}]
[111,"111 Talent Planning",10054902,"111TalPlan",null,null,null,null,null,null,null,null,null,null,null,null,null,null,null,"1","2021-10-02","9999-12-31","2021-10-25","VILLARG","111 Total Rewards","10054901","111TotRew","1110010001",111,{"$f":"_xlfn.XLOOKUP(VALUE(OU[[#This Row],[Master CC]]),FC_Master[Cost Center],FC_Master[rollup FC '#],OU[[#This Row],[Master CC]])","v":1110010001}]
[111,"111 Total Rewards",10054901,"111TotRew",null,null,null,null,null,null,null,null,null,null,null,null,null,null,null,"1","2017-07-10","9999-12-31","2017-06-26","MILLERA1","111Administrative Services","10052426","111AdmSv","1110010001",111,{"$f":"_xlfn.XLOOKUP(VALUE(OU[[#This Row],[Master CC]]),FC_Master[Cost Center],FC_Master[rollup FC '#],OU[[#This Row],[Master CC]])","v":1110010001}]
[111,"111Administrative Services",10052426,"111AdmSv",null,null,null,null,null,null,null,null,null,null,null,null,null,null,null,"2","2015-06-09","9999-12-31","2015-06-09","LAMROLC","111County Executive Ops Mgmt","10051426","111CtyExcOM",null,null,{"$f":"_xlfn.XLOOKUP(VALUE(OU[[#This Row],[Master CC]]),FC_Master[Cost Center],FC_Master[rollup FC '#],OU[[#This Row],[Master CC]])","v":0}]
[0,"111County Executive Ops Mgmt",10051426,"111CtyExcOM",null,null,null,null,null,null,null,null,null,null,null,null,null,null,null,"1","1950-01-01","9999-12-31","2012-05-15","DATACONVERSI","111HR Benefits Administration","10000063","111BnfAdm","1110068956",111,{"$f":"_xlfn.XLOOKUP(VALUE(OU[[#This Row],[Master CC]]),FC_Master[Cost Center],FC_Master[rollup FC '#],OU[[#This Row],[Master CC]])","v":1110068956}]
[111,"111HR Benefits Administration",10000063,"111BnfAdm",null,null,null,null,null,null,null,null,null,null,null,null,null,null,null,"1","1950-01-01","9999-12-31","2012-05-15","DATACONVERSI","111HR Compensation","10000061","111Comp","1110020001",111,{"$f":"_xlfn.XLOOKUP(VALUE(OU[[#This Row],[Master CC]]),FC_Master[Cost Center],FC_Master[rollup FC '#],OU[[#This Row],[Master CC]])","v":1110020001}]
[111,"111HR Compensation",10000061,"111Comp",null,null,null,null,null,null,null,null,null,null,null,null,null,null,null,"1","2022-01-25","9999-12-31","2022-03-15","BROUSSC","111HR Engagement","10055401","111Engmt","1110100001",111,{"$f":"_xlfn.XLOOKUP(VALUE(OU[[#This Row],[Master CC]]),FC_Master[Cost Center],FC_Master[rollup FC '#],OU[[#This Row],[Master CC]])","v":1110100001}]
[111,"111HR Engagement",10055401,"111Engmt",null,null,null,null,null,null,null,null,null,null,null,null,null,null,null,"1","2017-03-28","9999-12-31","2017-04-11","VILLARG","111HR HIPAA","10052301","111HIPAA","1110500001",111,{"$f":"_xlfn.XLOOKUP(VALUE(OU[[#This Row],[Master CC]]),FC_Master[Cost Center],FC_Master[rollup FC '#],OU[[#This Row],[Master CC]])","v":1110500001}]
[111,"111HR HIPAA",10052301,"111HIPAA",null,null,null,null,null,null,null,null,null,null,null,null,null,null,null,"1","2019-10-01","9999-12-31","2019-10-17","GIPSONK","111HR Management","10000058","111HRMgmt","1110010001",111,{"$f":"_xlfn.XLOOKUP(VALUE(OU[[#This Row],[Master CC]]),FC_Master[Cost Center],FC_Master[rollup FC '#],OU[[#This Row],[Master CC]])","v":1110010001}]
[111,"111HR Management",10000058,"111HRMgmt",null,null,null,null,null,null,null,null,null,null,null,null,null,null,null,"1","2023-06-01","9999-12-31","2023-06-26","CHANGM","111HR Risk","10000066","111HRRisk","1110048955",111,{"$f":"_xlfn.XLOOKUP(VALUE(OU[[#This Row],[Master CC]]),FC_Master[Cost Center],FC_Master[rollup FC '#],OU[[#This Row],[Master CC]])","v":1110048955}]
[111,"111HR Risk",10000066,"111HRRisk",null,null,null,null,null,null,null,null,null,null,null,null,null,null,null,"1","2023-04-03","9999-12-31","2023-04-03","DANIELD4","111HR Risk Supervisor","10056126","111HRRskSupv","1110048955",111,{"$f":"_xlfn.XLOOKUP(VALUE(OU[[#This Row],[Master CC]]),FC_Master[Cost Center],FC_Master[rollup FC '#],OU[[#This Row],[Master CC]])","v":1110048955}]
[111,"111HR Risk Supervisor",{"$f":"VALUE(Z130)","v":10056126},"111HRRskSupv",null,null,null,null,null,null,null,null,null,null,null,null,null,null,null,"1","2022-01-25","9999-12-31","2022-03-21","MILLIGA","111HR Services","10051526","111HRSv","1110100001",111,{"$f":"_xlfn.XLOOKUP(VALUE(OU[[#This Row],[Master CC]]),FC_Master[Cost Center],FC_Master[rollup FC '#],OU[[#This Row],[Master CC]])","v":1110100001}]
[{"$f":"AC131","v":111},{"$f":"Y131","v":"111HR Services"},10051526,{"$f":"AA131","v":"111HRSv"},null,null,null,null,null,null,null,null,null,null,null,null,null,null,null,"1","2013-01-30","9999-12-31","2013-02-08","LAMROLC","111HR Settle","10050327","111Settle","1110040001",111,{"$f":"_xlfn.XLOOKUP(VALUE(OU[[#This Row],[Master CC]]),FC_Master[Cost Center],FC_Master[rollup FC '#],OU[[#This Row],[Master CC]])","v":1110040001}]
[111,"111HR Settle",10050327,"111Settle",null,null,null,null,null,null,null,null,null,null,null,null,null,null,null,"1","2014-10-06","9999-12-31","2014-10-06","BROUSSC","111HR Wellness Clinic Management","10000064","111WlsClnc","1110078956",111,{"$f":"_xlfn.XLOOKUP(VALUE(OU[[#This Row],[Master CC]]),FC_Master[Cost Center],FC_Master[rollup FC '#],OU[[#This Row],[Master CC]])","v":1110078956}]
[111,"111HR Wellness Clinic Management",10000064,"111WlsClnc",null,null,null,null,null,null,null,null,null,null,null,null,null,null,null,"1","2014-10-06","9999-12-31","2014-10-06","BROUSSC","111HR Wellness Clinic Support Staff","10000065","111WlsClncSp","1110078956",111,{"$f":"_xlfn.XLOOKUP(VALUE(OU[[#This Row],[Master CC]]),FC_Master[Cost Center],FC_Master[rollup FC '#],OU[[#This Row],[Master CC]])","v":1110078956}]
[111,"111HR Wellness Clinic Support Staff",10000065,"111WlsClncSp",null,null,null,null,null,null,null,null,null,null,null,null,null,null,null,"1","1950-01-01","9999-12-31","2012-05-15","DATACONVERSI","111HRIS","10000059","111HRIS","1110080001",111,{"$f":"_xlfn.XLOOKUP(VALUE(OU[[#This Row],[Master CC]]),FC_Master[Cost Center],FC_Master[rollup FC '#],OU[[#This Row],[Master CC]])","v":1110080001}]
[111,"111HRIS",10000059,"111HRIS",null,null,null,null,null,null,null,null,null,null,null,null,null,null,null,"1","2022-01-25","9999-12-31","2022-03-21","MILLIGA","111Talent Services","10000060","111TalentSv","1110030001",111,{"$f":"_xlfn.XLOOKUP(VALUE(OU[[#This Row],[Master CC]]),FC_Master[Cost Center],FC_Master[rollup FC '#],OU[[#This Row],[Master CC]])","v":1110030001}]
[111,"111Talent Services",10000060,"111TalentSv",null,null,null,null,null,null,null,null,null,null,null,null,null,null,null,"1","2019-10-01","9999-12-31","2019-10-22","GIPSONK","112 Privacy Office","10053952","112PrivOfc","1120310001",112,{"$f":"_xlfn.XLOOKUP(VALUE(OU[[#This Row],[Master CC]]),FC_Master[Cost Center],FC_Master[rollup FC '#],OU[[#This Row],[Master CC]])","v":1120310001}]
[112,"112 Privacy Office",10053952,"112PrivOfc",null,null,null,null,null,null,null,null,null,null,null,null,null,null,null,"1","2020-07-27","9999-12-31","2020-07-24","GIPSONK","112TCIS","10000068","112TCIS","1120020001",112,{"$f":"_xlfn.XLOOKUP(VALUE(OU[[#This Row],[Master CC]]),FC_Master[Cost Center],FC_Master[rollup FC '#],OU[[#This Row],[Master CC]])","v":1120020001}]
[112,"112TCIS",10000068,"112TCIS",null,null,null,null,null,null,null,null,null,null,null,null,null,null,null,"1","2020-07-27","9999-12-31","2020-07-24","GIPSONK","112TCIS - DIV","10052976","112TCISDIV","1120020001",112,{"$f":"_xlfn.XLOOKUP(VALUE(OU[[#This Row],[Master CC]]),FC_Master[Cost Center],FC_Master[rollup FC '#],OU[[#This Row],[Master CC]])","v":1120020001}]
[112,"112TCIS - DIV",10052976,"112TCISDIV",null,null,null,null,null,null,null,null,null,null,null,null,null,null,null,"1","2017-05-16","9999-12-31","2017-05-23","VILLARG","112TCIS Admin Finance","10000086","112AdmFin","1120020001",112,{"$f":"_xlfn.XLOOKUP(VALUE(OU[[#This Row],[Master CC]]),FC_Master[Cost Center],FC_Master[rollup FC '#],OU[[#This Row],[Master CC]])","v":1120020001}]
[112,"112TCIS Admin Finance",10000086,"112AdmFin",null,null,null,null,null,null,null,null,null,null,null,null,null,null,null,"1","2017-04-25","9999-12-31","2017-04-25","GIPSONK","112TCIS Admin Special Projects","10000080","112TCISSP","1120020001",112,{"$f":"_xlfn.XLOOKUP(VALUE(OU[[#This Row],[Master CC]]),FC_Master[Cost Center],FC_Master[rollup FC '#],OU[[#This Row],[Master CC]])","v":1120020001}]
[112,"112TCIS Admin Special Projects",10000080,"112TCISSP",null,null,null,null,null,null,null,null,null,null,null,null,null,null,null,"1","2020-07-27","9999-12-31","2020-07-24","GIPSONK","112TCIS Administration","10000085","112Adm","1120020001",112,{"$f":"_xlfn.XLOOKUP(VALUE(OU[[#This Row],[Master CC]]),FC_Master[Cost Center],FC_Master[rollup FC '#],OU[[#This Row],[Master CC]])","v":1120020001}]
[112,"112TCIS Administration",10000085,"112Adm",null,null,null,null,null,null,null,null,null,null,null,null,null,null,null,"1","1950-01-01","9999-12-31","2012-05-15","DATACONVERSI","112TCIS ADPS Application & Prd Support","10000074","112ADPSAPS","1120170001",112,{"$f":"_xlfn.XLOOKUP(VALUE(OU[[#This Row],[Master CC]]),FC_Master[Cost Center],FC_Master[rollup FC '#],OU[[#This Row],[Master CC]])","v":1120170001}]
[112,"112TCIS ADPS Application & Prd Support",10000074,"112ADPSAPS",null,null,null,null,null,null,null,null,null,null,null,null,null,null,null,"1","1950-01-01","9999-12-31","2012-05-15","DATACONVERSI","112TCIS ADPS Application Development","10000076","112ADPSAD","1120170001",112,{"$f":"_xlfn.XLOOKUP(VALUE(OU[[#This Row],[Master CC]]),FC_Master[Cost Center],FC_Master[rollup FC '#],OU[[#This Row],[Master CC]])","v":1120170001}]
[112,"112TCIS ADPS Application Development",10000076,"112ADPSAD",null,null,null,null,null,null,null,null,null,null,null,null,null,null,null,"1","2017-06-21","9999-12-31","2017-06-27","GIPSONK","112TCIS ADPS APS Prd Support","10000075","112ADPSAPSPS","1120170001",112,{"$f":"_xlfn.XLOOKUP(VALUE(OU[[#This Row],[Master CC]]),FC_Master[Cost Center],FC_Master[rollup FC '#],OU[[#This Row],[Master CC]])","v":1120170001}]
[112,"112TCIS ADPS APS Prd Support",10000075,"112ADPSAPSPS",null,null,null,null,null,null,null,null,null,null,null,null,null,null,null,"1","2019-10-01","9999-12-31","2019-10-22","GIPSONK","112TCIS Application Dev & Prd Support","10000073","112ADPS","1120170001",112,{"$f":"_xlfn.XLOOKUP(VALUE(OU[[#This Row],[Master CC]]),FC_Master[Cost Center],FC_Master[rollup FC '#],OU[[#This Row],[Master CC]])","v":1120170001}]
[112,"112TCIS Application Dev & Prd Support",10000073,"112ADPS",null,null,null,null,null,null,null,null,null,null,null,null,null,null,null,"1","2015-09-16","9999-12-31","2015-09-24","GIPSONK","112TCIS Application Dev & Prd Support","10050351","112ADPS","1120170001",112,{"$f":"_xlfn.XLOOKUP(VALUE(OU[[#This Row],[Master CC]]),FC_Master[Cost Center],FC_Master[rollup FC '#],OU[[#This Row],[Master CC]])","v":1120170001}]
[112,"112TCIS Application Dev & Prd Support",10050351,"112ADPS",null,null,null,null,null,null,null,null,null,null,null,null,null,null,null,"1","2022-10-01","9999-12-31","2022-10-04","DANIELD4","112TCIS Archives","10051201","112Archives","1120440001",112,{"$f":"_xlfn.XLOOKUP(VALUE(OU[[#This Row],[Master CC]]),FC_Master[Cost Center],FC_Master[rollup FC '#],OU[[#This Row],[Master CC]])","v":1120400001}]
[112,"112TCIS Archives",10051201,"112Archives",null,null,null,null,null,null,null,null,null,null,null,null,null,null,null,"1","2019-10-01","9999-12-31","2019-10-22","GIPSONK","112TCIS CARS Director","10052776","112CARSDir","1120020001",112,{"$f":"_xlfn.XLOOKUP(VALUE(OU[[#This Row],[Master CC]]),FC_Master[Cost Center],FC_Master[rollup FC '#],OU[[#This Row],[Master CC]])","v":1120020001}]
[112,"112TCIS CARS Director",10052776,"112CARSDir",null,null,null,null,null,null,null,null,null,null,null,null,null,null,null,"5","1800-01-01","9999-12-31","2019-10-17","GIPSONK","112TCIS CARS Director","10052776","112CARSDir","1120020001",112,{"$f":"_xlfn.XLOOKUP(VALUE(OU[[#This Row],[Master CC]]),FC_Master[Cost Center],FC_Master[rollup FC '#],OU[[#This Row],[Master CC]])","v":1120020001}]
[112,"112TCIS CARS Director",10052776,"112CARSDir",null,null,null,null,null,null,null,null,null,null,null,null,null,null,null,"1","2023-06-26","9999-12-31","2023-06-27","DANIELD4","112TCIS Digital Equity","10056328","112DgEqt","1120020001",112,{"$f":"_xlfn.XLOOKUP(VALUE(OU[[#This Row],[Master CC]]),FC_Master[Cost Center],FC_Master[rollup FC '#],OU[[#This Row],[Master CC]])","v":1120020001}]
[112,"112TCIS Digital Equity",10056328,"112DgEqt",null,null,null,null,null,null,null,null,null,null,null,null,null,null,null,"1","2017-10-30","9999-12-31","2017-10-31","GIPSONK","112TCIS EIS EAS","10000079","112EISEAS","1120040001",112,{"$f":"_xlfn.XLOOKUP(VALUE(OU[[#This Row],[Master CC]]),FC_Master[Cost Center],FC_Master[rollup FC '#],OU[[#This Row],[Master CC]])","v":1120040001}]
[112,"112TCIS EIS EAS",10000079,"112EISEAS",null,null,null,null,null,null,null,null,null,null,null,null,null,null,null,"1","2021-10-01","9999-12-31","2021-09-27","GIPSONK","112TCIS EIS IDC Fcl & Monitoring Adm","10000082","112EISIDCFcl","1120040001",112,{"$f":"_xlfn.XLOOKUP(VALUE(OU[[#This Row],[Master CC]]),FC_Master[Cost Center],FC_Master[rollup FC '#],OU[[#This Row],[Master CC]])","v":1120040001}]
[112,"112TCIS EIS IDC Fcl & Monitoring Adm",10000082,"112EISIDCFcl",null,null,null,null,null,null,null,null,null,null,null,null,null,null,null,"1","2017-01-30","9999-12-31","2017-01-30","VILLARG","112TCIS EIS Identity Access Mgmt Sv","10050251","112EISIAMS","1120040001",112,{"$f":"_xlfn.XLOOKUP(VALUE(OU[[#This Row],[Master CC]]),FC_Master[Cost Center],FC_Master[rollup FC '#],OU[[#This Row],[Master CC]])","v":1120040001}]
[112,"112TCIS EIS Identity Access Mgmt Sv",10050251,"112EISIAMS",null,null,null,null,null,null,null,null,null,null,null,null,null,null,null,"1","2017-10-01","9999-12-31","2017-09-08","GIPSONK","112TCIS EIS Infra & Data Center Ops","10000081","112EISIDC","1120500001",112,{"$f":"_xlfn.XLOOKUP(VALUE(OU[[#This Row],[Master CC]]),FC_Master[Cost Center],FC_Master[rollup FC '#],OU[[#This Row],[Master CC]])","v":1120500001}]
[112,"112TCIS EIS Infra & Data Center Ops",10000081,"112EISIDC",null,null,null,null,null,null,null,null,null,null,null,null,null,null,null,"1","2017-01-30","9999-12-31","2017-01-30","VILLARG","112TCIS EIS LANWAN","10051202","112EISLANWAN","1120040001",112,{"$f":"_xlfn.XLOOKUP(VALUE(OU[[#This Row],[Master CC]]),FC_Master[Cost Center],FC_Master[rollup FC '#],OU[[#This Row],[Master CC]])","v":1120040001}]
[112,"112TCIS EIS LANWAN",10051202,"112EISLANWAN",null,null,null,null,null,null,null,null,null,null,null,null,null,null,null,"1","2017-06-05","9999-12-31","2017-06-07","GIPSONK","112TCIS EIS Ops","10000071","112EISOps","1120040001",112,{"$f":"_xlfn.XLOOKUP(VALUE(OU[[#This Row],[Master CC]]),FC_Master[Cost Center],FC_Master[rollup FC '#],OU[[#This Row],[Master CC]])","v":1120040001}]
[112,"112TCIS EIS Ops",10000071,"112EISOps",null,null,null,null,null,null,null,null,null,null,null,null,null,null,null,"1","2017-01-30","9999-12-31","2017-01-31","VILLARG","112TCIS EIS Server Lifecycle Mgmt","10050252","112EISSLM","1120040001",112,{"$f":"_xlfn.XLOOKUP(VALUE(OU[[#This Row],[Master CC]]),FC_Master[Cost Center],FC_Master[rollup FC '#],OU[[#This Row],[Master CC]])","v":1120040001}]
[112,"112TCIS EIS Server Lifecycle Mgmt",10050252,"112EISSLM",null,null,null,null,null,null,null,null,null,null,null,null,null,null,null,"1","2021-10-01","9999-12-31","2021-11-02","GIPSONK","112TCIS EIS Service Desk","10051051","112EISSvd","1120040001",112,{"$f":"_xlfn.XLOOKUP(VALUE(OU[[#This Row],[Master CC]]),FC_Master[Cost Center],FC_Master[rollup FC '#],OU[[#This Row],[Master CC]])","v":1120040001}]
[112,"112TCIS EIS Service Desk",10051051,"112EISSvd",null,null,null,null,null,null,null,null,null,null,null,null,null,null,null,"1","2021-10-01","9999-12-31","2021-11-02","GIPSONK","112TCIS EIS Service Desk - Operators","10051701","112EISSvDOpr","1120040001",112,{"$f":"_xlfn.XLOOKUP(VALUE(OU[[#This Row],[Master CC]]),FC_Master[Cost Center],FC_Master[rollup FC '#],OU[[#This Row],[Master CC]])","v":1120040001}]
[112,"112TCIS EIS Service Desk - Operators",10051701,"112EISSvDOpr",null,null,null,null,null,null,null,null,null,null,null,null,null,null,null,"1","2021-10-01","9999-12-31","2021-09-27","GIPSONK","112TCIS EIS Service Desk Operations","10000083","112EISSvDOps","1120040001",112,{"$f":"_xlfn.XLOOKUP(VALUE(OU[[#This Row],[Master CC]]),FC_Master[Cost Center],FC_Master[rollup FC '#],OU[[#This Row],[Master CC]])","v":1120040001}]
[112,"112TCIS EIS Service Desk Operations",10000083,"112EISSvDOps",null,null,null,null,null,null,null,null,null,null,null,null,null,null,null,"1","2019-10-01","9999-12-31","2019-10-22","GIPSONK","112TCIS EIS Technology","10000078","112EISTech","1120040001",112,{"$f":"_xlfn.XLOOKUP(VALUE(OU[[#This Row],[Master CC]]),FC_Master[Cost Center],FC_Master[rollup FC '#],OU[[#This Row],[Master CC]])","v":1120040001}]
[112,"112TCIS EIS Technology",10000078,"112EISTech",null,null,null,null,null,null,null,null,null,null,null,null,null,null,null,"1","2013-07-01","9999-12-31","2013-07-11","ARJONAE","112TCIS General Government","10050576","112GenGovt","1120140001",112,{"$f":"_xlfn.XLOOKUP(VALUE(OU[[#This Row],[Master CC]]),FC_Master[Cost Center],FC_Master[rollup FC '#],OU[[#This Row],[Master CC]])","v":1120140001}]
[112,"112TCIS General Government",10050576,"112GenGovt",null,null,null,null,null,null,null,null,null,null,null,null,null,null,null,"1","2022-10-01","9999-12-31","2022-10-04","DANIELD4","112TCIS Imaging","10000663","112Imaging","1120440001",112,{"$f":"_xlfn.XLOOKUP(VALUE(OU[[#This Row],[Master CC]]),FC_Master[Cost Center],FC_Master[rollup FC '#],OU[[#This Row],[Master CC]])","v":1120400001}]
[112,"112TCIS Imaging",10000663,"112Imaging",null,null,null,null,null,null,null,null,null,null,null,null,null,null,null,"1","2022-10-01","9999-12-31","2022-10-04","DANIELD4","112TCIS Imaging Production","10000664","112IgP","1120440001",112,{"$f":"_xlfn.XLOOKUP(VALUE(OU[[#This Row],[Master CC]]),FC_Master[Cost Center],FC_Master[rollup FC '#],OU[[#This Row],[Master CC]])","v":1120400001}]
[112,"112TCIS Imaging Production",10000664,"112IgP",null,null,null,null,null,null,null,null,null,null,null,null,null,null,null,"1","2020-07-27","9999-12-31","2020-07-24","GIPSONK","112TCIS Information Security","10053151","112InfoSec","1120150001",112,{"$f":"_xlfn.XLOOKUP(VALUE(OU[[#This Row],[Master CC]]),FC_Master[Cost Center],FC_Master[rollup FC '#],OU[[#This Row],[Master CC]])","v":1120150001}]
[112,"112TCIS Information Security",10053151,"112InfoSec",null,null,null,null,null,null,null,null,null,null,null,null,null,null,null,"1","2019-07-25","9999-12-31","2019-07-31","BROUSSC","112TCIS InfoSec - Assurance","10053752","112Assurance","1120150001",112,{"$f":"_xlfn.XLOOKUP(VALUE(OU[[#This Row],[Master CC]]),FC_Master[Cost Center],FC_Master[rollup FC '#],OU[[#This Row],[Master CC]])","v":1120150001}]
[112,"112TCIS InfoSec - Assurance",10053752,"112Assurance",null,null,null,null,null,null,null,null,null,null,null,null,null,null,null,"1","2019-07-25","9999-12-31","2019-07-26","BROUSSC","112TCIS InfoSec - Operations","10053751","112Ops","1120150001",112,{"$f":"_xlfn.XLOOKUP(VALUE(OU[[#This Row],[Master CC]]),FC_Master[Cost Center],FC_Master[rollup FC '#],OU[[#This Row],[Master CC]])","v":1120150001}]
[112,"112TCIS InfoSec - Operations",10053751,"112Ops",null,null,null,null,null,null,null,null,null,null,null,null,null,null,null,"1","2022-10-03","9999-12-31","2022-10-06","DANIELD4","112TCIS ITS Intake","10000070","112Intake","1120140001",112,{"$f":"_xlfn.XLOOKUP(VALUE(OU[[#This Row],[Master CC]]),FC_Master[Cost Center],FC_Master[rollup FC '#],OU[[#This Row],[Master CC]])","v":1120140001}]
[112,"112TCIS ITS Intake",10000070,"112Intake",null,null,null,null,null,null,null,null,null,null,null,null,null,null,null,"3","2019-10-01","9999-12-31","2020-04-27","BUTLERV","112TCIS ITS-CARS Div","10052776","112ITSCARS","1120020001",112,{"$f":"_xlfn.XLOOKUP(VALUE(OU[[#This Row],[Master CC]]),FC_Master[Cost Center],FC_Master[rollup FC '#],OU[[#This Row],[Master CC]])","v":1120020001}]
[112,"112TCIS ITS-CARS Div",10052776,"112ITSCARS",null,null,null,null,null,null,null,null,null,null,null,null,null,null,null,"1","2022-10-01","9999-12-31","2022-10-04","DANIELD4","112TCIS Mail","10000669","112Mail","1120480001",112,{"$f":"_xlfn.XLOOKUP(VALUE(OU[[#This Row],[Master CC]]),FC_Master[Cost Center],FC_Master[rollup FC '#],OU[[#This Row],[Master CC]])","v":1120400001}]
[112,"112TCIS Mail",10000669,"112Mail",null,null,null,null,null,null,null,null,null,null,null,null,null,null,null,"1","2022-10-01","9999-12-31","2022-10-04","DANIELD4","112TCIS Printing","10000670","112Prnt","1120460001",112,{"$f":"_xlfn.XLOOKUP(VALUE(OU[[#This Row],[Master CC]]),FC_Master[Cost Center],FC_Master[rollup FC '#],OU[[#This Row],[Master CC]])","v":1120400001}]
[112,"112TCIS Printing",10000670,"112Prnt",null,null,null,null,null,null,null,null,null,null,null,null,null,null,null,"1","2019-10-01","9999-12-31","2019-10-22","GIPSONK","112TCIS Project Management Office","10000069","112PMO","1120140001",112,{"$f":"_xlfn.XLOOKUP(VALUE(OU[[#This Row],[Master CC]]),FC_Master[Cost Center],FC_Master[rollup FC '#],OU[[#This Row],[Master CC]])","v":1120140001}]
[112,"112TCIS Project Management Office",10000069,"112PMO",null,null,null,null,null,null,null,null,null,null,null,null,null,null,null,"1","2023-08-01","9999-12-31","2023-08-17","MILLIGA","112TCIS Public Safety Program","10051151","112PbcSftPg","1120140001",112,{"$f":"_xlfn.XLOOKUP(VALUE(OU[[#This Row],[Master CC]]),FC_Master[Cost Center],FC_Master[rollup FC '#],OU[[#This Row],[Master CC]])","v":1120140001}]
[112,"112TCIS Public Safety Program",10051151,"112PbcSftPg",null,null,null,null,null,null,null,null,null,null,null,null,null,null,null,"1","2022-10-01","9999-12-31","2022-10-04","DANIELD4","112TCIS RM Administration","10000661","112RMAdm","1120400001",112,{"$f":"_xlfn.XLOOKUP(VALUE(OU[[#This Row],[Master CC]]),FC_Master[Cost Center],FC_Master[rollup FC '#],OU[[#This Row],[Master CC]])","v":1120400001}]
[112,"112TCIS RM Administration",10000661,"112RMAdm",null,null,null,null,null,null,null,null,null,null,null,null,null,null,null,"1","2022-10-01","9999-12-31","2022-10-04","DANIELD4","112TCIS RM Support Services","10000668","112RMSupport","1120400001",112,{"$f":"_xlfn.XLOOKUP(VALUE(OU[[#This Row],[Master CC]]),FC_Master[Cost Center],FC_Master[rollup FC '#],OU[[#This Row],[Master CC]])","v":1120400001}]
[112,"112TCIS RM Support Services",10000668,"112RMSupport",null,null,null,null,null,null,null,null,null,null,null,null,null,null,null,"1","2021-10-01","9999-12-31","2021-11-02","GIPSONK","112TCIS Service Desk Tier II","10051676","112SvDII","1120040001",112,{"$f":"_xlfn.XLOOKUP(VALUE(OU[[#This Row],[Master CC]]),FC_Master[Cost Center],FC_Master[rollup FC '#],OU[[#This Row],[Master CC]])","v":1120040001}]
[112,"112TCIS Service Desk Tier II",10051676,"112SvDII",null,null,null,null,null,null,null,null,null,null,null,null,null,null,null,"1","2022-10-01","9999-12-31","2022-10-04","DANIELD4","112TCIS Support Services","10053339","112SpSv","1120150001",112,{"$f":"_xlfn.XLOOKUP(VALUE(OU[[#This Row],[Master CC]]),FC_Master[Cost Center],FC_Master[rollup FC '#],OU[[#This Row],[Master CC]])","v":1120150001}]
[112,"112TCIS Support Services",10053339,"112SpSv",null,null,null,null,null,null,null,null,null,null,null,null,null,null,null,"1","2014-04-01","9999-12-31","2014-04-11","FF_ROSSA","114Facilities Security Manager","10051001","114SecMgr","1140040001",114,{"$f":"_xlfn.XLOOKUP(VALUE(OU[[#This Row],[Master CC]]),FC_Master[Cost Center],FC_Master[rollup FC '#],OU[[#This Row],[Master CC]])","v":1140040001}]
[114,"114Facilities Security Manager",10051001,"114SecMgr",null,null,null,null,null,null,null,null,null,null,null,null,null,null,null,"1","1950-01-01","9999-12-31","2012-05-15","DATACONVERSI","114Facilties Financial","10000092","114Fin","1140010001",114,{"$f":"_xlfn.XLOOKUP(VALUE(OU[[#This Row],[Master CC]]),FC_Master[Cost Center],FC_Master[rollup FC '#],OU[[#This Row],[Master CC]])","v":1140010001}]
[114,"114Facilties Financial",10000092,"114Fin",null,null,null,null,null,null,null,null,null,null,null,null,null,null,null,"1","2019-06-10","9999-12-31","2019-06-11","FF_STEPHET1","114Fcl Admin Inventory","10053593","114AdmInv","1140010001",114,{"$f":"_xlfn.XLOOKUP(VALUE(OU[[#This Row],[Master CC]]),FC_Master[Cost Center],FC_Master[rollup FC '#],OU[[#This Row],[Master CC]])","v":1140010001}]
[114,"114Fcl Admin Inventory",10053593,"114AdmInv",null,null,null,null,null,null,null,null,null,null,null,null,null,null,null,"1","1950-01-01","9999-12-31","2012-05-15","DATACONVERSI","114Fcl Administrative","10000090","114Adm","1140010001",114,{"$f":"_xlfn.XLOOKUP(VALUE(OU[[#This Row],[Master CC]]),FC_Master[Cost Center],FC_Master[rollup FC '#],OU[[#This Row],[Master CC]])","v":1140010001}]
[114,"114Fcl Administrative",10000090,"114Adm",null,null,null,null,null,null,null,null,null,null,null,null,null,null,null,"1","1950-01-01","9999-12-31","2012-05-15","DATACONVERSI","114Fcl Administrative Director","10000089","114AdmDir","1140010001",114,{"$f":"_xlfn.XLOOKUP(VALUE(OU[[#This Row],[Master CC]]),FC_Master[Cost Center],FC_Master[rollup FC '#],OU[[#This Row],[Master CC]])","v":1140010001}]
[114,"114Fcl Administrative Director",10000089,"114AdmDir",null,null,null,null,null,null,null,null,null,null,null,null,null,null,null,"1","1950-01-01","9999-12-31","2012-05-15","DATACONVERSI","114Fcl Administrative Maintenance","10000091","114AdmMnt","1140090001",114,{"$f":"_xlfn.XLOOKUP(VALUE(OU[[#This Row],[Master CC]]),FC_Master[Cost Center],FC_Master[rollup FC '#],OU[[#This Row],[Master CC]])","v":1140090001}]
[114,"114Fcl Administrative Maintenance",10000091,"114AdmMnt",null,null,null,null,null,null,null,null,null,null,null,null,null,null,null,"1","2014-01-01","9999-12-31","2014-01-14","LAMROLC","114Fcl Bldg Mnt & Repair","10000108","114BdMnt","1140090001",114,{"$f":"_xlfn.XLOOKUP(VALUE(OU[[#This Row],[Master CC]]),FC_Master[Cost Center],FC_Master[rollup FC '#],OU[[#This Row],[Master CC]])","v":1140090001}]
[114,"114Fcl Bldg Mnt & Repair",10000108,"114BdMnt",null,null,null,null,null,null,null,null,null,null,null,null,null,null,null,"1","2019-04-29","9999-12-31","2019-04-30","BROUSSC","114Fcl Bldg Mnt & Repair Superintendent","10000107","114BdMntSupt","1140090001",114,{"$f":"_xlfn.XLOOKUP(VALUE(OU[[#This Row],[Master CC]]),FC_Master[Cost Center],FC_Master[rollup FC '#],OU[[#This Row],[Master CC]])","v":1140090001}]
[114,"114Fcl Bldg Mnt & Repair Superintendent",10000107,"114BdMntSupt",null,null,null,null,null,null,null,null,null,null,null,null,null,null,null,"1","2019-06-10","9999-12-31","2019-06-11","FF_STEPHET1","114Fcl Bldg Mnt & Repair-2","10053576","114BdMnt2","1140090001",114,{"$f":"_xlfn.XLOOKUP(VALUE(OU[[#This Row],[Master CC]]),FC_Master[Cost Center],FC_Master[rollup FC '#],OU[[#This Row],[Master CC]])","v":1140090001}]
[114,"114Fcl Bldg Mnt & Repair-2",10053576,"114BdMnt2",null,null,null,null,null,null,null,null,null,null,null,null,null,null,null,"1","2019-06-11","9999-12-31","2019-06-11","FF_STEPHET1","114Fcl Bldg Mnt & Repair-3","10053577","114BdMnt3","1140090001",114,{"$f":"_xlfn.XLOOKUP(VALUE(OU[[#This Row],[Master CC]]),FC_Master[Cost Center],FC_Master[rollup FC '#],OU[[#This Row],[Master CC]])","v":1140090001}]
[114,"114Fcl Bldg Mnt & Repair-3",10053577,"114BdMnt3",null,null,null,null,null,null,null,null,null,null,null,null,null,null,null,"1","2023-07-01","9999-12-31","2023-07-10","PFAFFEA","114Fcl Bldg Mnt & Repair-4","10053578","114BdMnt4","1140090001",114,{"$f":"_xlfn.XLOOKUP(VALUE(OU[[#This Row],[Master CC]]),FC_Master[Cost Center],FC_Master[rollup FC '#],OU[[#This Row],[Master CC]])","v":1140090001}]
[114,"114Fcl Bldg Mnt & Repair-4",10053578,"114BdMnt4",null,null,null,null,null,null,null,null,null,null,null,null,null,null,null,"1","2018-07-01","9999-12-31","2018-06-29","GIPSONK","114Fcl Bldg Mnt and Repair Contracts","10000788","114BdMntCntr","1140090001",114,{"$f":"_xlfn.XLOOKUP(VALUE(OU[[#This Row],[Master CC]]),FC_Master[Cost Center],FC_Master[rollup FC '#],OU[[#This Row],[Master CC]])","v":1140090001}]
[114,"114Fcl Bldg Mnt and Repair Contracts",10000788,"114BdMntCntr",null,null,null,null,null,null,null,null,null,null,null,null,null,null,null,"1","1950-01-01","9999-12-31","2012-05-15","DATACONVERSI","114Fcl Bldg Mnt and Repair Dir","10000093","114BdMntDir","1140090001",114,{"$f":"_xlfn.XLOOKUP(VALUE(OU[[#This Row],[Master CC]]),FC_Master[Cost Center],FC_Master[rollup FC '#],OU[[#This Row],[Master CC]])","v":1140090001}]
[114,"114Fcl Bldg Mnt and Repair Dir",10000093,"114BdMntDir",null,null,null,null,null,null,null,null,null,null,null,null,null,null,null,"5","2019-04-29","9999-12-31","2019-04-30","GIPSONK","114Fcl Bldg Mnt and Repair Dir","10000093","114BdMntDir","1140090001",114,{"$f":"_xlfn.XLOOKUP(VALUE(OU[[#This Row],[Master CC]]),FC_Master[Cost Center],FC_Master[rollup FC '#],OU[[#This Row],[Master CC]])","v":1140090001}]
[114,"114Fcl Bldg Mnt and Repair Dir",10000093,"114BdMntDir",null,null,null,null,null,null,null,null,null,null,null,null,null,null,null,"1","2021-11-30","9999-12-31","2021-12-01","GIPSONK","114Fcl Building Floor Care","10053001","114BdFC","1140030001",114,{"$f":"_xlfn.XLOOKUP(VALUE(OU[[#This Row],[Master CC]]),FC_Master[Cost Center],FC_Master[rollup FC '#],OU[[#This Row],[Master CC]])","v":1140030001}]
[114,"114Fcl Building Floor Care",10053001,"114BdFC",null,null,null,null,null,null,null,null,null,null,null,null,null,null,null,"1","2019-06-10","9999-12-31","2019-06-11","FF_STEPHET1","114Fcl Contract Compliance","10053579","114FclContra","1140090001",114,{"$f":"_xlfn.XLOOKUP(VALUE(OU[[#This Row],[Master CC]]),FC_Master[Cost Center],FC_Master[rollup FC '#],OU[[#This Row],[Master CC]])","v":1140090001}]
[114,"114Fcl Contract Compliance",{"$f":"VALUE(Z194)","v":10053579},"114FclContra",null,null,null,null,null,null,null,null,null,null,null,null,null,null,null,"1","2018-07-01","9999-12-31","2018-06-29","GIPSONK","114Fcl Custodial Services","10000097","114Cstdn","1140030001",114,{"$f":"_xlfn.XLOOKUP(VALUE(OU[[#This Row],[Master CC]]),FC_Master[Cost Center],FC_Master[rollup FC '#],OU[[#This Row],[Master CC]])","v":1140030001}]
[{"$f":"AC195","v":114},{"$f":"Y195","v":"114Fcl Custodial Services"},10000097,{"$f":"AA195","v":"114Cstdn"},null,null,null,null,null,null,null,null,null,null,null,null,null,null,null,"1","2019-06-10","9999-12-31","2019-06-11","FF_STEPHET1","114Fcl Custodial Services-2","10053583","114Cstdn2","1140030001",114,{"$f":"_xlfn.XLOOKUP(VALUE(OU[[#This Row],[Master CC]]),FC_Master[Cost Center],FC_Master[rollup FC '#],OU[[#This Row],[Master CC]])","v":1140030001}]
[114,"114Fcl Custodial Services-2",10053583,"114Cstdn2",null,null,null,null,null,null,null,null,null,null,null,null,null,null,null,"1","2019-06-11","9999-12-31","2019-06-11","FF_STEPHET1","114Fcl Custodial Services-3","10053584","114Cstdn3","1140030001",114,{"$f":"_xlfn.XLOOKUP(VALUE(OU[[#This Row],[Master CC]]),FC_Master[Cost Center],FC_Master[rollup FC '#],OU[[#This Row],[Master CC]])","v":1140030001}]
[114,"114Fcl Custodial Services-3",10053584,"114Cstdn3",null,null,null,null,null,null,null,null,null,null,null,null,null,null,null,"1","2019-06-11","9999-12-31","2019-06-11","FF_STEPHET1","114Fcl Custodial Services-4","10053585","114Cstdn4","1140030001",114,{"$f":"_xlfn.XLOOKUP(VALUE(OU[[#This Row],[Master CC]]),FC_Master[Cost Center],FC_Master[rollup FC '#],OU[[#This Row],[Master CC]])","v":1140030001}]
[114,"114Fcl Custodial Services-4",10053585,"114Cstdn4",null,null,null,null,null,null,null,null,null,null,null,null,null,null,null,"1","2019-06-11","9999-12-31","2019-06-11","FF_STEPHET1","114Fcl Custodial Services-5","10053586","114Cstdn5","1140030001",114,{"$f":"_xlfn.XLOOKUP(VALUE(OU[[#This Row],[Master CC]]),FC_Master[Cost Center],FC_Master[rollup FC '#],OU[[#This Row],[Master CC]])","v":1140030001}]
[114,"114Fcl Custodial Services-5",10053586,"114Cstdn5",null,null,null,null,null,null,null,null,null,null,null,null,null,null,null,"1","2019-06-11","9999-12-31","2019-06-11","FF_STEPHET1","114Fcl Custodial Services-6","10053587","114Cstdn6","1140030001",114,{"$f":"_xlfn.XLOOKUP(VALUE(OU[[#This Row],[Master CC]]),FC_Master[Cost Center],FC_Master[rollup FC '#],OU[[#This Row],[Master CC]])","v":1140030001}]
[114,"114Fcl Custodial Services-6",10053587,"114Cstdn6",null,null,null,null,null,null,null,null,null,null,null,null,null,null,null,"1","2019-06-10","9999-12-31","2019-06-11","FF_STEPHET1","114Fcl Electricians","10053580","114FclElect","1140090001",114,{"$f":"_xlfn.XLOOKUP(VALUE(OU[[#This Row],[Master CC]]),FC_Master[Cost Center],FC_Master[rollup FC '#],OU[[#This Row],[Master CC]])","v":1140090001}]
[114,"114Fcl Electricians",10053580,"114FclElect",null,null,null,null,null,null,null,null,null,null,null,null,null,null,null,"1","2022-06-30","9999-12-31","2022-07-05","BROUSSC","114Fcl Electronic Security","10055601","114ElctSec","1140040001",114,{"$f":"_xlfn.XLOOKUP(VALUE(OU[[#This Row],[Master CC]]),FC_Master[Cost Center],FC_Master[rollup FC '#],OU[[#This Row],[Master CC]])","v":1140040001}]
[114,"114Fcl Electronic Security",10055601,"114ElctSec",null,null,null,null,null,null,null,null,null,null,null,null,null,null,null,"1","2021-07-26","9999-12-31","2021-08-16","GIPSONK","114Fcl Expo Center Building Mnt Coord","10054751","114ExpoBdMnt","1140080003",114,{"$f":"_xlfn.XLOOKUP(VALUE(OU[[#This Row],[Master CC]]),FC_Master[Cost Center],FC_Master[rollup FC '#],OU[[#This Row],[Master CC]])","v":1140080003}]
[114,"114Fcl Expo Center Building Mnt Coord",10054751,"114ExpoBdMnt",null,null,null,null,null,null,null,null,null,null,null,null,null,null,null,"1","2019-07-23","9999-12-31","2019-07-24","GIPSONK","114Fcl Expo Center Coordinator","10053730","114ExpoCoord","1140080003",114,{"$f":"_xlfn.XLOOKUP(VALUE(OU[[#This Row],[Master CC]]),FC_Master[Cost Center],FC_Master[rollup FC '#],OU[[#This Row],[Master CC]])","v":1140080003}]
[114,"114Fcl Expo Center Coordinator",10053730,"114ExpoCoord",null,null,null,null,null,null,null,null,null,null,null,null,null,null,null,"1","1950-01-01","9999-12-31","2012-05-15","DATACONVERSI","114Fcl Exposition Center","10000106","114Expo","1140080003",114,{"$f":"_xlfn.XLOOKUP(VALUE(OU[[#This Row],[Master CC]]),FC_Master[Cost Center],FC_Master[rollup FC '#],OU[[#This Row],[Master CC]])","v":1140080003}]
[114,"114Fcl Exposition Center",10000106,"114Expo",null,null,null,null,null,null,null,null,null,null,null,null,null,null,null,"1","2021-04-01","9999-12-31","2021-04-01","BROUSSC","114Fcl Exposition Center Manager","10000105","114ExpoMgr","1140080003",114,{"$f":"_xlfn.XLOOKUP(VALUE(OU[[#This Row],[Master CC]]),FC_Master[Cost Center],FC_Master[rollup FC '#],OU[[#This Row],[Master CC]])","v":1140080003}]
[114,"114Fcl Exposition Center Manager",10000105,"114ExpoMgr",null,null,null,null,null,null,null,null,null,null,null,null,null,null,null,"1","2023-09-01","9999-12-31","2023-09-01","PFAFFEA","114Fcl Facilities Security Center Mgr","10056501","114FclSecMgr","1140040001",114,{"$f":"_xlfn.XLOOKUP(VALUE(OU[[#This Row],[Master CC]]),FC_Master[Cost Center],FC_Master[rollup FC '#],OU[[#This Row],[Master CC]])","v":1140040001}]
[114,"114Fcl Facilities Security Center Mgr",10056501,"114FclSecMgr",null,null,null,null,null,null,null,null,null,null,null,null,null,null,null,"1","2021-12-01","9999-12-31","2021-12-07","GIPSONK","114Fcl Floor Crew","10055076","114FlCrw","1140030001",114,{"$f":"_xlfn.XLOOKUP(VALUE(OU[[#This Row],[Master CC]]),FC_Master[Cost Center],FC_Master[rollup FC '#],OU[[#This Row],[Master CC]])","v":1140030001}]
[114,"114Fcl Floor Crew",10055076,"114FlCrw",null,null,null,null,null,null,null,null,null,null,null,null,null,null,null,"1","2022-11-22","9999-12-31","2022-11-30","PFAFFEA","114Fcl FMD HR","10055901","114FMDHR","1140010001",114,{"$f":"_xlfn.XLOOKUP(VALUE(OU[[#This Row],[Master CC]]),FC_Master[Cost Center],FC_Master[rollup FC '#],OU[[#This Row],[Master CC]])","v":1140010001}]
[114,"114Fcl FMD HR",10055901,"114FMDHR",null,null,null,null,null,null,null,null,null,null,null,null,null,null,null,"1","2023-04-14","9999-12-31","2023-04-17","PFAFFEA","114Fcl FMD Office","10056178","114FMDOffice","1140010001",114,{"$f":"_xlfn.XLOOKUP(VALUE(OU[[#This Row],[Master CC]]),FC_Master[Cost Center],FC_Master[rollup FC '#],OU[[#This Row],[Master CC]])","v":1140010001}]
[114,"114Fcl FMD Office",10056178,"114FMDOffice",null,null,null,null,null,null,null,null,null,null,null,null,null,null,null,"1","2017-07-28","9999-12-31","2017-07-31","BROUSSC","114Fcl Grnd/Custodial/Moving Sv","10000094","114GCM","1140030001",114,{"$f":"_xlfn.XLOOKUP(VALUE(OU[[#This Row],[Master CC]]),FC_Master[Cost Center],FC_Master[rollup FC '#],OU[[#This Row],[Master CC]])","v":1140030001}]
[114,"114Fcl Grnd/Custodial/Moving Sv",10000094,"114GCM",null,null,null,null,null,null,null,null,null,null,null,null,null,null,null,"1","2019-04-26","9999-12-31","2019-04-26","GIPSONK","114Fcl Grounds Services","10000096","114Grnd","1140020001",114,{"$f":"_xlfn.XLOOKUP(VALUE(OU[[#This Row],[Master CC]]),FC_Master[Cost Center],FC_Master[rollup FC '#],OU[[#This Row],[Master CC]])","v":1140020001}]
[114,"114Fcl Grounds Services",10000096,"114Grnd",null,null,null,null,null,null,null,null,null,null,null,null,null,null,null,"1","2019-10-01","9999-12-31","2019-10-17","GIPSONK","114Fcl Mgmt Director","10000088","114FMDDir","1140010001",114,{"$f":"_xlfn.XLOOKUP(VALUE(OU[[#This Row],[Master CC]]),FC_Master[Cost Center],FC_Master[rollup FC '#],OU[[#This Row],[Master CC]])","v":1140010001}]
[114,"114Fcl Mgmt Director",10000088,"114FMDDir",null,null,null,null,null,null,null,null,null,null,null,null,null,null,null,"1","2019-04-26","9999-12-31","2019-04-30","BROUSSC","114Fcl Parking","10053526","114FclPrk","1140040001",114,{"$f":"_xlfn.XLOOKUP(VALUE(OU[[#This Row],[Master CC]]),FC_Master[Cost Center],FC_Master[rollup FC '#],OU[[#This Row],[Master CC]])","v":1140040001}]
[114,"114Fcl Parking",10053526,"114FclPrk",null,null,null,null,null,null,null,null,null,null,null,null,null,null,null,"1","2023-09-01","9999-12-31","2023-09-06","PFAFFEA","114Fcl Physical Security","10053551","114PhysiSec","1140040001",114,{"$f":"_xlfn.XLOOKUP(VALUE(OU[[#This Row],[Master CC]]),FC_Master[Cost Center],FC_Master[rollup FC '#],OU[[#This Row],[Master CC]])","v":1140040001}]
[114,"114Fcl Physical Security",10053551,"114PhysiSec",null,null,null,null,null,null,null,null,null,null,null,null,null,null,null,"1","1950-01-01","9999-12-31","2012-05-15","DATACONVERSI","114Fcl Pl Dsgn and Cnstn Isp","10000104","114PlDsgnIsp","1140110001",114,{"$f":"_xlfn.XLOOKUP(VALUE(OU[[#This Row],[Master CC]]),FC_Master[Cost Center],FC_Master[rollup FC '#],OU[[#This Row],[Master CC]])","v":1140110001}]
[114,"114Fcl Pl Dsgn and Cnstn Isp",10000104,"114PlDsgnIsp",null,null,null,null,null,null,null,null,null,null,null,null,null,null,null,"1","1950-01-01","9999-12-31","2012-05-15","DATACONVERSI","114Fcl Pl Dsgn and Construction","10000103","114PlDsgn","1140110001",114,{"$f":"_xlfn.XLOOKUP(VALUE(OU[[#This Row],[Master CC]]),FC_Master[Cost Center],FC_Master[rollup FC '#],OU[[#This Row],[Master CC]])","v":1140110001}]
[114,"114Fcl Pl Dsgn and Construction",10000103,"114PlDsgn",null,null,null,null,null,null,null,null,null,null,null,null,null,null,null,"1","2023-10-05","9999-12-31","2023-11-09","GILV","114Fcl PM Custodial Sv Superintendent","10056603","114PMCusSS","1140030001",114,{"$f":"_xlfn.XLOOKUP(VALUE(OU[[#This Row],[Master CC]]),FC_Master[Cost Center],FC_Master[rollup FC '#],OU[[#This Row],[Master CC]])","v":1140030001}]
[114,"114Fcl PM Custodial Sv Superintendent",10056603,"114PMCusSS",null,null,null,null,null,null,null,null,null,null,null,null,null,null,null,"1","2023-09-01","9999-12-31","2023-09-06","PFAFFEA","114Fcl Security Center Operations","10053592","114SecCtrOps","1140040001",114,{"$f":"_xlfn.XLOOKUP(VALUE(OU[[#This Row],[Master CC]]),FC_Master[Cost Center],FC_Master[rollup FC '#],OU[[#This Row],[Master CC]])","v":1140040001}]
[114,"114Fcl Security Center Operations",10053592,"114SecCtrOps",null,null,null,null,null,null,null,null,null,null,null,null,null,null,null,"1","2024-01-05","9999-12-31","2024-01-08","SURKAM","114Fcl Security Services - MEO","10056604","114SecME","1140040001",114,{"$f":"_xlfn.XLOOKUP(VALUE(OU[[#This Row],[Master CC]]),FC_Master[Cost Center],FC_Master[rollup FC '#],OU[[#This Row],[Master CC]])","v":1140040001}]
[114,"114Fcl Security Services - MEO",10056604,"114SecME",null,null,null,null,null,null,null,null,null,null,null,null,null,null,null,"1","2024-01-05","9999-12-31","2024-01-08","SURKAM","114Fcl Security Services- CFCF","10056605","114SecCFCF","1140040001",114,{"$f":"_xlfn.XLOOKUP(VALUE(OU[[#This Row],[Master CC]]),FC_Master[Cost Center],FC_Master[rollup FC '#],OU[[#This Row],[Master CC]])","v":1140040001}]
[114,"114Fcl Security Services- CFCF",10056605,"114SecCFCF",null,null,null,null,null,null,null,null,null,null,null,null,null,null,null,"1","2022-06-13","9999-12-31","2022-06-16","PFAFFEA","114Fcl Security Services-2433Ridgepoint","10055526","114Sec2433","1140040001",114,{"$f":"_xlfn.XLOOKUP(VALUE(OU[[#This Row],[Master CC]]),FC_Master[Cost Center],FC_Master[rollup FC '#],OU[[#This Row],[Master CC]])","v":1140040001}]
[114,"114Fcl Security Services-2433Ridgepoint",10055526,"114Sec2433",null,null,null,null,null,null,null,null,null,null,null,null,null,null,null,"1","2019-06-10","9999-12-31","2022-06-06","BROUSSC","114Fcl Security Services-700 Lavaca","10000102","114Sec700Lav","1140040001",114,{"$f":"_xlfn.XLOOKUP(VALUE(OU[[#This Row],[Master CC]]),FC_Master[Cost Center],FC_Master[rollup FC '#],OU[[#This Row],[Master CC]])","v":1140040001}]
[114,"114Fcl Security Services-700 Lavaca",10000102,"114Sec700Lav",null,null,null,null,null,null,null,null,null,null,null,null,null,null,null,"1","2019-06-11","9999-12-31","2019-06-11","FF_STEPHET1","114Fcl Security Services-Airport","10053591","114SecAirpt","1140040001",114,{"$f":"_xlfn.XLOOKUP(VALUE(OU[[#This Row],[Master CC]]),FC_Master[Cost Center],FC_Master[rollup FC '#],OU[[#This Row],[Master CC]])","v":1140040001}]
[114,"114Fcl Security Services-Airport",10053591,"114SecAirpt",null,null,null,null,null,null,null,null,null,null,null,null,null,null,null,"1","2019-06-11","9999-12-31","2019-06-11","FF_STEPHET1","114Fcl Security Services-Day","10053590","114SecDay","1140040001",114,{"$f":"_xlfn.XLOOKUP(VALUE(OU[[#This Row],[Master CC]]),FC_Master[Cost Center],FC_Master[rollup FC '#],OU[[#This Row],[Master CC]])","v":1140040001}]
[114,"114Fcl Security Services-Day",10053590,"114SecDay",null,null,null,null,null,null,null,null,null,null,null,null,null,null,null,"1","2019-06-11","9999-12-31","2019-06-11","FF_STEPHET1","114Fcl Security Services-Evening","10053588","114SecEve","1140040001",114,{"$f":"_xlfn.XLOOKUP(VALUE(OU[[#This Row],[Master CC]]),FC_Master[Cost Center],FC_Master[rollup FC '#],OU[[#This Row],[Master CC]])","v":1140040001}]
[114,"114Fcl Security Services-Evening",10053588,"114SecEve",null,null,null,null,null,null,null,null,null,null,null,null,null,null,null,"1","2019-06-11","9999-12-31","2019-06-11","FF_STEPHET1","114Fcl Security Services-Night","10053589","114SecNgt","1140040001",114,{"$f":"_xlfn.XLOOKUP(VALUE(OU[[#This Row],[Master CC]]),FC_Master[Cost Center],FC_Master[rollup FC '#],OU[[#This Row],[Master CC]])","v":1140040001}]
[114,"114Fcl Security Services-Night",10053589,"114SecNgt",null,null,null,null,null,null,null,null,null,null,null,null,null,null,null,"1","2022-09-01","9999-12-31","2022-09-07","BROUSSC","114FclLocksmiths","10053582","114FclLocksm","1140090001",114,{"$f":"_xlfn.XLOOKUP(VALUE(OU[[#This Row],[Master CC]]),FC_Master[Cost Center],FC_Master[rollup FC '#],OU[[#This Row],[Master CC]])","v":1140090001}]
[114,"114FclLocksmiths",10053582,"114FclLocksm",null,null,null,null,null,null,null,null,null,null,null,null,null,null,null,"1","2019-06-10","9999-12-31","2019-06-11","FF_STEPHET1","114FclPlumbers","10053581","114FclPlumb","1140090001",114,{"$f":"_xlfn.XLOOKUP(VALUE(OU[[#This Row],[Master CC]]),FC_Master[Cost Center],FC_Master[rollup FC '#],OU[[#This Row],[Master CC]])","v":1140090001}]
[114,"114FclPlumbers",10053581,"114FclPlumb",null,null,null,null,null,null,null,null,null,null,null,null,null,null,null,"1","2017-12-01","9999-12-31","2017-12-07","GIPSONK","115Anthony Webb","10051651","115WebbA","1150010001",115,{"$f":"_xlfn.XLOOKUP(VALUE(OU[[#This Row],[Master CC]]),FC_Master[Cost Center],FC_Master[rollup FC '#],OU[[#This Row],[Master CC]])","v":1150010001}]
[115,"115Anthony Webb",10051651,"115WebbA",null,null,null,null,null,null,null,null,null,null,null,null,null,null,null,"1","2021-10-01","9999-12-31","2021-10-28","DANIELD4","115April Cook","10052801","115CookA","1150010001",115,{"$f":"_xlfn.XLOOKUP(VALUE(OU[[#This Row],[Master CC]]),FC_Master[Cost Center],FC_Master[rollup FC '#],OU[[#This Row],[Master CC]])","v":1150010001}]
[115,"115April Cook",10052801,"115CookA",null,null,null,null,null,null,null,null,null,null,null,null,null,null,null,"1","2023-10-01","9999-12-31","2023-10-24","CHANGM","115Ardian Shaholli","10055826","115ShaholliA","1150040001",115,{"$f":"_xlfn.XLOOKUP(VALUE(OU[[#This Row],[Master CC]]),FC_Master[Cost Center],FC_Master[rollup FC '#],OU[[#This Row],[Master CC]])","v":1150040001}]
[115,"115Ardian Shaholli",10055826,"115ShaholliA",null,null,null,null,null,null,null,null,null,null,null,null,null,null,null,"1","2021-04-20","9999-12-31","2021-04-29","DANIELD4","115Ashley Tovar","10053979","115TovarA","1150010001",115,{"$f":"_xlfn.XLOOKUP(VALUE(OU[[#This Row],[Master CC]]),FC_Master[Cost Center],FC_Master[rollup FC '#],OU[[#This Row],[Master CC]])","v":1150010001}]
[115,"115Ashley Tovar",10053979,"115TovarA",null,null,null,null,null,null,null,null,null,null,null,null,null,null,null,"1","2017-12-01","9999-12-31","2017-12-07","GIPSONK","115Ashley Waffer","10051251","115WafferA","1150010001",115,{"$f":"_xlfn.XLOOKUP(VALUE(OU[[#This Row],[Master CC]]),FC_Master[Cost Center],FC_Master[rollup FC '#],OU[[#This Row],[Master CC]])","v":1150010001}]
[115,"115Ashley Waffer",10051251,"115WafferA",null,null,null,null,null,null,null,null,null,null,null,null,null,null,null,"1","2020-12-16","9999-12-31","2020-12-16","GIPSONK","115Ben Suddaby","10053978","115SuddabyB","1150010001",115,{"$f":"_xlfn.XLOOKUP(VALUE(OU[[#This Row],[Master CC]]),FC_Master[Cost Center],FC_Master[rollup FC '#],OU[[#This Row],[Master CC]])","v":1150010001}]
[115,"115Ben Suddaby",10053978,"115SuddabyB",null,null,null,null,null,null,null,null,null,null,null,null,null,null,null,"1","2021-09-20","9999-12-31","2021-09-08","DANIELD4","115Brandon Hoffman","10054851","115HoffmanB","1150040001",115,{"$f":"_xlfn.XLOOKUP(VALUE(OU[[#This Row],[Master CC]]),FC_Master[Cost Center],FC_Master[rollup FC '#],OU[[#This Row],[Master CC]])","v":1150040001}]
[115,"115Brandon Hoffman",10054851,"115HoffmanB",null,null,null,null,null,null,null,null,null,null,null,null,null,null,null,"1","2019-10-01","9999-12-31","2019-12-06","GIPSONK","115Bridgett Kovar","10053876","115KovarB","1150040001",115,{"$f":"_xlfn.XLOOKUP(VALUE(OU[[#This Row],[Master CC]]),FC_Master[Cost Center],FC_Master[rollup FC '#],OU[[#This Row],[Master CC]])","v":1150040001}]
[115,"115Bridgett Kovar",10053876,"115KovarB",null,null,null,null,null,null,null,null,null,null,null,null,null,null,null,"1","2022-10-12","9999-12-31","2022-10-17","CHANGM","115Christopher Milledge","10055776","115MilledgeC","1150040001",115,{"$f":"_xlfn.XLOOKUP(VALUE(OU[[#This Row],[Master CC]]),FC_Master[Cost Center],FC_Master[rollup FC '#],OU[[#This Row],[Master CC]])","v":1150040001}]
[115,"115Christopher Milledge",10055776,"115MilledgeC",null,null,null,null,null,null,null,null,null,null,null,null,null,null,null,"1","2017-11-01","9999-12-31","2017-10-31","GIPSONK","115CW Bruner","10000742","115BrunerC","1150010001",115,{"$f":"_xlfn.XLOOKUP(VALUE(OU[[#This Row],[Master CC]]),FC_Master[Cost Center],FC_Master[rollup FC '#],OU[[#This Row],[Master CC]])","v":1150010001}]
[115,"115CW Bruner",10000742,"115BrunerC",null,null,null,null,null,null,null,null,null,null,null,null,null,null,null,"1","2018-10-13","9999-12-31","2018-10-15","GIPSONK","115David Walch","10000735","115WalchD","1150010001",115,{"$f":"_xlfn.XLOOKUP(VALUE(OU[[#This Row],[Master CC]]),FC_Master[Cost Center],FC_Master[rollup FC '#],OU[[#This Row],[Master CC]])","v":1150010001}]
[115,"115David Walch",10000735,"115WalchD",null,null,null,null,null,null,null,null,null,null,null,null,null,null,null,"1","2021-01-01","9999-12-31","2021-01-06","GIPSONK","115Geri Castaneda","10053477","115CastanedG","1150040001",115,{"$f":"_xlfn.XLOOKUP(VALUE(OU[[#This Row],[Master CC]]),FC_Master[Cost Center],FC_Master[rollup FC '#],OU[[#This Row],[Master CC]])","v":1150040001}]
[115,"115Geri Castaneda",10053477,"115CastanedG",null,null,null,null,null,null,null,null,null,null,null,null,null,null,null,"1","2023-03-06","9999-12-31","2023-03-08","BRADENA1","115Jamal Williams","10054351","115WilliamsJ","1150040001",115,{"$f":"_xlfn.XLOOKUP(VALUE(OU[[#This Row],[Master CC]]),FC_Master[Cost Center],FC_Master[rollup FC '#],OU[[#This Row],[Master CC]])","v":1150040001}]
[115,"115Jamal Williams",10054351,"115WilliamsJ",null,null,null,null,null,null,null,null,null,null,null,null,null,null,null,"1","2019-10-01","9999-12-31","2019-12-06","GIPSONK","115James Carey","10052201","115CareyJ","1150040001",115,{"$f":"_xlfn.XLOOKUP(VALUE(OU[[#This Row],[Master CC]]),FC_Master[Cost Center],FC_Master[rollup FC '#],OU[[#This Row],[Master CC]])","v":1150040001}]
[115,"115James Carey",10052201,"115CareyJ",null,null,null,null,null,null,null,null,null,null,null,null,null,null,null,"1","2019-09-16","9999-12-31","2019-09-24","GIPSONK","115Jason Walker","10000736","115WalkerJ","1150010001",115,{"$f":"_xlfn.XLOOKUP(VALUE(OU[[#This Row],[Master CC]]),FC_Master[Cost Center],FC_Master[rollup FC '#],OU[[#This Row],[Master CC]])","v":1150010001}]
[115,"115Jason Walker",10000736,"115WalkerJ",null,null,null,null,null,null,null,null,null,null,null,null,null,null,null,"1","2019-10-01","9999-12-31","2019-12-06","GIPSONK","115Jean Liburd","10051351","115LiburdJ","1150040001",115,{"$f":"_xlfn.XLOOKUP(VALUE(OU[[#This Row],[Master CC]]),FC_Master[Cost Center],FC_Master[rollup FC '#],OU[[#This Row],[Master CC]])","v":1150040001}]
[115,"115Jean Liburd",10051351,"115LiburdJ",null,null,null,null,null,null,null,null,null,null,null,null,null,null,null,"1","2019-10-01","9999-12-31","2019-12-06","GIPSONK","115Jennifer Proctor Romero","10053337","115RomeroJ","1150040001",115,{"$f":"_xlfn.XLOOKUP(VALUE(OU[[#This Row],[Master CC]]),FC_Master[Cost Center],FC_Master[rollup FC '#],OU[[#This Row],[Master CC]])","v":1150040001}]
[115,"115Jennifer Proctor Romero",10053337,"115RomeroJ",null,null,null,null,null,null,null,null,null,null,null,null,null,null,null,"1","2023-12-01","9999-12-31","2023-11-28","ZAKIA","115Jennifer Winkler","10052751","115WinklerJ","1150040001",115,{"$f":"_xlfn.XLOOKUP(VALUE(OU[[#This Row],[Master CC]]),FC_Master[Cost Center],FC_Master[rollup FC '#],OU[[#This Row],[Master CC]])","v":1150040001}]
[115,"115Jennifer Winkler",10052751,"115WinklerJ",null,null,null,null,null,null,null,null,null,null,null,null,null,null,null,"5","2018-01-01","9999-12-31","2017-12-22","GIPSONK","115Jennifer Winkler","10052751","115WinklerJ","1150040001",115,{"$f":"_xlfn.XLOOKUP(VALUE(OU[[#This Row],[Master CC]]),FC_Master[Cost Center],FC_Master[rollup FC '#],OU[[#This Row],[Master CC]])","v":1150040001}]
[115,"115Jennifer Winkler",10052751,"115WinklerJ",null,null,null,null,null,null,null,null,null,null,null,null,null,null,null,"1","2019-10-01","9999-12-31","2019-12-06","GIPSONK","115Jerry Jones","10053451","115JonesJ","1150040001",115,{"$f":"_xlfn.XLOOKUP(VALUE(OU[[#This Row],[Master CC]]),FC_Master[Cost Center],FC_Master[rollup FC '#],OU[[#This Row],[Master CC]])","v":1150040001}]
[115,"115Jerry Jones",10053451,"115JonesJ",null,null,null,null,null,null,null,null,null,null,null,null,null,null,null,"1","2017-12-01","9999-12-31","2017-12-07","GIPSONK","115Jesse Herrera","10000741","115HerrerJ","1150010001",115,{"$f":"_xlfn.XLOOKUP(VALUE(OU[[#This Row],[Master CC]]),FC_Master[Cost Center],FC_Master[rollup FC '#],OU[[#This Row],[Master CC]])","v":1150010001}]
[115,"115Jesse Herrera",10000741,"115HerrerJ",null,null,null,null,null,null,null,null,null,null,null,null,null,null,null,"1","2017-12-01","9999-12-31","2017-12-07","GIPSONK","115Jesus Gomez","10050101","115GomezJ","1150010001",115,{"$f":"_xlfn.XLOOKUP(VALUE(OU[[#This Row],[Master CC]]),FC_Master[Cost Center],FC_Master[rollup FC '#],OU[[#This Row],[Master CC]])","v":1150010001}]
[115,"115Jesus Gomez",10050101,"115GomezJ",null,null,null,null,null,null,null,null,null,null,null,null,null,null,null,"1","2021-11-03","9999-12-31","2021-11-09","BROUSSC","115Joe Hon","10054951","115HonJ","1150040001",115,{"$f":"_xlfn.XLOOKUP(VALUE(OU[[#This Row],[Master CC]]),FC_Master[Cost Center],FC_Master[rollup FC '#],OU[[#This Row],[Master CC]])","v":1150040001}]
[115,"115Joe Hon",10054951,"115HonJ",null,null,null,null,null,null,null,null,null,null,null,null,null,null,null,"1","2019-06-17","9999-12-31","2019-06-19","GIPSONK","115John Pena","10000733","115PenaJ","1150010001",115,{"$f":"_xlfn.XLOOKUP(VALUE(OU[[#This Row],[Master CC]]),FC_Master[Cost Center],FC_Master[rollup FC '#],OU[[#This Row],[Master CC]])","v":1150010001}]
[115,"115John Pena",10000733,"115PenaJ",null,null,null,null,null,null,null,null,null,null,null,null,null,null,null,"1","2019-06-11","9999-12-31","2019-06-14","BROUSSC","115Jonathan Harris","10051576","115HarrisJ","1150010001",115,{"$f":"_xlfn.XLOOKUP(VALUE(OU[[#This Row],[Master CC]]),FC_Master[Cost Center],FC_Master[rollup FC '#],OU[[#This Row],[Master CC]])","v":1150010001}]
[115,"115Jonathan Harris",10051576,"115HarrisJ",null,null,null,null,null,null,null,null,null,null,null,null,null,null,null,"1","2019-10-01","9999-12-31","2019-12-06","GIPSONK","115Jorge Talavera","10000738","115TalaveJ","1150040001",115,{"$f":"_xlfn.XLOOKUP(VALUE(OU[[#This Row],[Master CC]]),FC_Master[Cost Center],FC_Master[rollup FC '#],OU[[#This Row],[Master CC]])","v":1150040001}]
[115,"115Jorge Talavera",10000738,"115TalaveJ",null,null,null,null,null,null,null,null,null,null,null,null,null,null,null,"5","2017-12-01","9999-12-31","2018-03-29","BROUSSC","115Jorge Talavera","10000738","115TalaveJ","1150040001",115,{"$f":"_xlfn.XLOOKUP(VALUE(OU[[#This Row],[Master CC]]),FC_Master[Cost Center],FC_Master[rollup FC '#],OU[[#This Row],[Master CC]])","v":1150040001}]
[115,"115Jorge Talavera",10000738,"115TalaveJ",null,null,null,null,null,null,null,null,null,null,null,null,null,null,null,"1","2019-10-01","9999-12-31","2019-12-06","GIPSONK","115Karina Damian","10053677","115DamianK","1150040001",115,{"$f":"_xlfn.XLOOKUP(VALUE(OU[[#This Row],[Master CC]]),FC_Master[Cost Center],FC_Master[rollup FC '#],OU[[#This Row],[Master CC]])","v":1150040001}]
[115,"115Karina Damian",10053677,"115DamianK",null,null,null,null,null,null,null,null,null,null,null,null,null,null,null,"1","2018-08-27","9999-12-31","2018-08-27","GIPSONK","115Kimberly Elizondo","10051477","115ElizondoK","1150010001",115,{"$f":"_xlfn.XLOOKUP(VALUE(OU[[#This Row],[Master CC]]),FC_Master[Cost Center],FC_Master[rollup FC '#],OU[[#This Row],[Master CC]])","v":1150010001}]
[115,"115Kimberly Elizondo",{"$f":"VALUE(Z258)","v":10051477},"115ElizondoK",null,null,null,null,null,null,null,null,null,null,null,null,null,null,null,"3","2019-09-26","9999-12-31","2019-09-30","BUTLERV","115Kimberly Elizondo","10051477","115ElizondoK","1150010001",115,{"$f":"_xlfn.XLOOKUP(VALUE(OU[[#This Row],[Master CC]]),FC_Master[Cost Center],FC_Master[rollup FC '#],OU[[#This Row],[Master CC]])","v":1150010001}]
[{"$f":"AC259","v":115},{"$f":"Y259","v":"115Kimberly Elizondo"},10051477,{"$f":"AA259","v":"115ElizondoK"},null,null,null,null,null,null,null,null,null,null,null,null,null,null,null,"1","2019-10-01","9999-12-31","2019-12-06","GIPSONK","115Lee Perry","10000730","115PerryJ","1150040001",115,{"$f":"_xlfn.XLOOKUP(VALUE(OU[[#This Row],[Master CC]]),FC_Master[Cost Center],FC_Master[rollup FC '#],OU[[#This Row],[Master CC]])","v":1150040001}]
[115,"115Lee Perry",10000730,"115PerryJ",null,null,null,null,null,null,null,null,null,null,null,null,null,null,null,"5","2017-12-01","9999-12-31","2018-03-29","BROUSSC","115Lee Perry","10000730","115PerryJ","1150040001",115,{"$f":"_xlfn.XLOOKUP(VALUE(OU[[#This Row],[Master CC]]),FC_Master[Cost Center],FC_Master[rollup FC '#],OU[[#This Row],[Master CC]])","v":1150040001}]
[115,"115Lee Perry",10000730,"115PerryJ",null,null,null,null,null,null,null,null,null,null,null,null,null,null,null,"1","2023-04-17","9999-12-31","2023-04-18","BRADENA1","115Lezlie Mills","10056179","115MillsL","1150040001",115,{"$f":"_xlfn.XLOOKUP(VALUE(OU[[#This Row],[Master CC]]),FC_Master[Cost Center],FC_Master[rollup FC '#],OU[[#This Row],[Master CC]])","v":1150040001}]
[115,"115Lezlie Mills",10056179,"115MillsL",null,null,null,null,null,null,null,null,null,null,null,null,null,null,null,"1","2019-10-01","9999-12-31","2019-12-06","GIPSONK","115Limbania Rodriguez","10052477","115RodrigL","1150040001",115,{"$f":"_xlfn.XLOOKUP(VALUE(OU[[#This Row],[Master CC]]),FC_Master[Cost Center],FC_Master[rollup FC '#],OU[[#This Row],[Master CC]])","v":1150040001}]
[115,"115Limbania Rodriguez",10052477,"115RodrigL",null,null,null,null,null,null,null,null,null,null,null,null,null,null,null,"5","2018-06-11","9999-12-31","2018-06-12","GIPSONK","115Limbania Rodriguez","10052477","115RodrigL","1150040001",115,{"$f":"_xlfn.XLOOKUP(VALUE(OU[[#This Row],[Master CC]]),FC_Master[Cost Center],FC_Master[rollup FC '#],OU[[#This Row],[Master CC]])","v":1150040001}]
[115,"115Limbania Rodriguez",10052477,"115RodrigL",null,null,null,null,null,null,null,null,null,null,null,null,null,null,null,"1","1950-01-01","9999-12-31","2012-05-15","DATACONVERSI","115Local Purchasing Organization","10000112","115LocalPur","1150010001",115,{"$f":"_xlfn.XLOOKUP(VALUE(OU[[#This Row],[Master CC]]),FC_Master[Cost Center],FC_Master[rollup FC '#],OU[[#This Row],[Master CC]])","v":1150010001}]
[115,"115Local Purchasing Organization",10000112,"115LocalPur",null,null,null,null,null,null,null,null,null,null,null,null,null,null,null,"1","2017-12-01","9999-12-31","2017-12-07","GIPSONK","115Logan Brown","10051826","115BrownL","1150010001",115,{"$f":"_xlfn.XLOOKUP(VALUE(OU[[#This Row],[Master CC]]),FC_Master[Cost Center],FC_Master[rollup FC '#],OU[[#This Row],[Master CC]])","v":1150010001}]
[115,"115Logan Brown",10051826,"115BrownL",null,null,null,null,null,null,null,null,null,null,null,null,null,null,null,"1","2021-01-01","9999-12-31","2021-01-06","GIPSONK","115Loren Breland","10000740","115BrelanL","1150040001",115,{"$f":"_xlfn.XLOOKUP(VALUE(OU[[#This Row],[Master CC]]),FC_Master[Cost Center],FC_Master[rollup FC '#],OU[[#This Row],[Master CC]])","v":1150040001}]
[115,"115Loren Breland",10000740,"115BrelanL",null,null,null,null,null,null,null,null,null,null,null,null,null,null,null,"1","2019-10-01","9999-12-31","2019-12-06","GIPSONK","115Lori Clyde","10000744","115ClydeL","1150040001",115,{"$f":"_xlfn.XLOOKUP(VALUE(OU[[#This Row],[Master CC]]),FC_Master[Cost Center],FC_Master[rollup FC '#],OU[[#This Row],[Master CC]])","v":1150040001}]
[115,"115Lori Clyde",10000744,"115ClydeL",null,null,null,null,null,null,null,null,null,null,null,null,null,null,null,"1","2023-10-01","9999-12-31","2023-10-24","CHANGM","115Lynn Woods","10052051","115Woods","1150040001",115,{"$f":"_xlfn.XLOOKUP(VALUE(OU[[#This Row],[Master CC]]),FC_Master[Cost Center],FC_Master[rollup FC '#],OU[[#This Row],[Master CC]])","v":1150040001}]
[115,"115Lynn Woods",10052051,"115Woods",null,null,null,null,null,null,null,null,null,null,null,null,null,null,null,"1","2017-12-01","9999-12-31","2017-12-07","GIPSONK","115Marvin Brice","10000729","115BriceM","1150010001",115,{"$f":"_xlfn.XLOOKUP(VALUE(OU[[#This Row],[Master CC]]),FC_Master[Cost Center],FC_Master[rollup FC '#],OU[[#This Row],[Master CC]])","v":1150010001}]
[115,"115Marvin Brice",10000729,"115BriceM",null,null,null,null,null,null,null,null,null,null,null,null,null,null,null,"1","2023-06-05","9999-12-31","2023-06-05","BRADENA1","115Miguel Mondragon","10056326","115MondragoM","1150040001",115,{"$f":"_xlfn.XLOOKUP(VALUE(OU[[#This Row],[Master CC]]),FC_Master[Cost Center],FC_Master[rollup FC '#],OU[[#This Row],[Master CC]])","v":1150040001}]
[115,"115Miguel Mondragon",10056326,"115MondragoM",null,null,null,null,null,null,null,null,null,null,null,null,null,null,null,"1","2017-12-01","9999-12-31","2017-12-07","GIPSONK","115Mike Long","10000734","115LongM","1150010001",115,{"$f":"_xlfn.XLOOKUP(VALUE(OU[[#This Row],[Master CC]]),FC_Master[Cost Center],FC_Master[rollup FC '#],OU[[#This Row],[Master CC]])","v":1150010001}]
[115,"115Mike Long",10000734,"115LongM",null,null,null,null,null,null,null,null,null,null,null,null,null,null,null,"1","2022-10-12","9999-12-31","2022-10-18","BRADENA1","115Miriam Hogans","10054602","115HogansM","1150040001",115,{"$f":"_xlfn.XLOOKUP(VALUE(OU[[#This Row],[Master CC]]),FC_Master[Cost Center],FC_Master[rollup FC '#],OU[[#This Row],[Master CC]])","v":1150040001}]
[115,"115Miriam Hogans",10054602,"115HogansM",null,null,null,null,null,null,null,null,null,null,null,null,null,null,null,"1","2017-12-01","9999-12-31","2017-12-07","GIPSONK","115Nancy Barchus","10000745","115NancyB","1150010001",115,{"$f":"_xlfn.XLOOKUP(VALUE(OU[[#This Row],[Master CC]]),FC_Master[Cost Center],FC_Master[rollup FC '#],OU[[#This Row],[Master CC]])","v":1150010001}]
[115,"115Nancy Barchus",10000745,"115NancyB",null,null,null,null,null,null,null,null,null,null,null,null,null,null,null,"1","2023-07-01","9999-12-31","2023-06-21","BRADENA1","115Nick Morrow","10056101","115MorrowN","1150040001",115,{"$f":"_xlfn.XLOOKUP(VALUE(OU[[#This Row],[Master CC]]),FC_Master[Cost Center],FC_Master[rollup FC '#],OU[[#This Row],[Master CC]])","v":1150040001}]
[115,"115Nick Morrow",10056101,"115MorrowN",null,null,null,null,null,null,null,null,null,null,null,null,null,null,null,"1","2020-01-20","9999-12-31","2020-01-24","GIPSONK","115Nicole Goldbach","10053977","115GoldbachN","1150010001",115,{"$f":"_xlfn.XLOOKUP(VALUE(OU[[#This Row],[Master CC]]),FC_Master[Cost Center],FC_Master[rollup FC '#],OU[[#This Row],[Master CC]])","v":1150010001}]
[115,"115Nicole Goldbach",10053977,"115GoldbachN",null,null,null,null,null,null,null,null,null,null,null,null,null,null,null,"1","2024-01-08","9999-12-31","2024-01-23","HUTCHIT","115Olivia Thomas","10055951","115ThomasO","1150040001",115,{"$f":"_xlfn.XLOOKUP(VALUE(OU[[#This Row],[Master CC]]),FC_Master[Cost Center],FC_Master[rollup FC '#],OU[[#This Row],[Master CC]])","v":1150040001}]
[115,"115Olivia Thomas",10055951,"115ThomasO",null,null,null,null,null,null,null,null,null,null,null,null,null,null,null,"1","2023-06-05","9999-12-31","2023-06-06","BRADENA1","115Pamela Quiroz","10054878","115QuirozP","1150040001",115,{"$f":"_xlfn.XLOOKUP(VALUE(OU[[#This Row],[Master CC]]),FC_Master[Cost Center],FC_Master[rollup FC '#],OU[[#This Row],[Master CC]])","v":1150040001}]
[115,"115Pamela Quiroz",10054878,"115QuirozP",null,null,null,null,null,null,null,null,null,null,null,null,null,null,null,"1","2019-10-01","9999-12-31","2019-12-06","GIPSONK","115Patricia Estrada","10052001","115EstradaP","1150040001",115,{"$f":"_xlfn.XLOOKUP(VALUE(OU[[#This Row],[Master CC]]),FC_Master[Cost Center],FC_Master[rollup FC '#],OU[[#This Row],[Master CC]])","v":1150040001}]
[115,"115Patricia Estrada",10052001,"115EstradaP",null,null,null,null,null,null,null,null,null,null,null,null,null,null,null,"1","2019-09-26","9999-12-31","2020-10-22","VLAHODA","115Patrick Strittmatter","10000737","115StrittmP","1150010001",115,{"$f":"_xlfn.XLOOKUP(VALUE(OU[[#This Row],[Master CC]]),FC_Master[Cost Center],FC_Master[rollup FC '#],OU[[#This Row],[Master CC]])","v":1150010001}]
[115,"115Patrick Strittmatter",10000737,"115StrittmP",null,null,null,null,null,null,null,null,null,null,null,null,null,null,null,"1","2019-09-26","9999-12-31","2019-09-30","GIPSONK","115Previous Buyers","10052701","115PrevBuyer","1150010001",115,{"$f":"_xlfn.XLOOKUP(VALUE(OU[[#This Row],[Master CC]]),FC_Master[Cost Center],FC_Master[rollup FC '#],OU[[#This Row],[Master CC]])","v":1150010001}]
[115,"115Previous Buyers",10052701,"115PrevBuyer",null,null,null,null,null,null,null,null,null,null,null,null,null,null,null,"1","2019-10-01","9999-12-31","2019-12-06","GIPSONK","115Priscilla Harrington","10053176","115HarringtP","1150040001",115,{"$f":"_xlfn.XLOOKUP(VALUE(OU[[#This Row],[Master CC]]),FC_Master[Cost Center],FC_Master[rollup FC '#],OU[[#This Row],[Master CC]])","v":1150040001}]
[115,"115Priscilla Harrington",10053176,"115HarringtP",null,null,null,null,null,null,null,null,null,null,null,null,null,null,null,"1","2017-03-01","9999-12-31","2017-03-06","FF_STEPHET1","115Purchasing Agent","10000739","115PurchAgen","1150010001",115,{"$f":"_xlfn.XLOOKUP(VALUE(OU[[#This Row],[Master CC]]),FC_Master[Cost Center],FC_Master[rollup FC '#],OU[[#This Row],[Master CC]])","v":1150010001}]
[115,"115Purchasing Agent",10000739,"115PurchAgen",null,null,null,null,null,null,null,null,null,null,null,null,null,null,null,"1","2020-12-16","9999-12-31","2020-12-16","GIPSONK","115Purchasing Assets","10050976","115FAst","1150020001",115,{"$f":"_xlfn.XLOOKUP(VALUE(OU[[#This Row],[Master CC]]),FC_Master[Cost Center],FC_Master[rollup FC '#],OU[[#This Row],[Master CC]])","v":1150020001}]
[115,"115Purchasing Assets",10050976,"115FAst",null,null,null,null,null,null,null,null,null,null,null,null,null,null,null,"1","2019-09-26","9999-12-31","2019-10-04","GIPSONK","115Purchasing Backend Support","10052677","115PurBESp","1150040001",115,{"$f":"_xlfn.XLOOKUP(VALUE(OU[[#This Row],[Master CC]]),FC_Master[Cost Center],FC_Master[rollup FC '#],OU[[#This Row],[Master CC]])","v":1150040001}]
[115,"115Purchasing Backend Support",10052677,"115PurBESp",null,null,null,null,null,null,null,null,null,null,null,null,null,null,null,"1","2017-12-01","9999-12-31","2017-12-05","GIPSONK","115Purchasing Commodities/IT","10052276","115PurComdIT","1150040001",115,{"$f":"_xlfn.XLOOKUP(VALUE(OU[[#This Row],[Master CC]]),FC_Master[Cost Center],FC_Master[rollup FC '#],OU[[#This Row],[Master CC]])","v":1150040001}]
[115,"115Purchasing Commodities/IT",10052276,"115PurComdIT",null,null,null,null,null,null,null,null,null,null,null,null,null,null,null,"1","2017-12-01","9999-12-31","2017-12-05","GIPSONK","115Purchasing Construction","10052277","115PurCnstn","1150040001",115,{"$f":"_xlfn.XLOOKUP(VALUE(OU[[#This Row],[Master CC]]),FC_Master[Cost Center],FC_Master[rollup FC '#],OU[[#This Row],[Master CC]])","v":1150040001}]
[115,"115Purchasing Construction",10052277,"115PurCnstn",null,null,null,null,null,null,null,null,null,null,null,null,null,null,null,"1","2017-06-09","9999-12-31","2017-06-14","GIPSONK","115Purchasing Contract Compliance","10052401","115CntrcCm","1150050001",115,{"$f":"_xlfn.XLOOKUP(VALUE(OU[[#This Row],[Master CC]]),FC_Master[Cost Center],FC_Master[rollup FC '#],OU[[#This Row],[Master CC]])","v":1150050001}]
[115,"115Purchasing Contract Compliance",10052401,"115CntrcCm",null,null,null,null,null,null,null,null,null,null,null,null,null,null,null,"1","2016-09-01","9999-12-31","2016-09-27","GIPSONK","115Purchasing HUB Program","10000118","115HUB","1150030001",115,{"$f":"_xlfn.XLOOKUP(VALUE(OU[[#This Row],[Master CC]]),FC_Master[Cost Center],FC_Master[rollup FC '#],OU[[#This Row],[Master CC]])","v":1150030001}]
[115,"115Purchasing HUB Program",10000118,"115HUB",null,null,null,null,null,null,null,null,null,null,null,null,null,null,null,"1","2019-09-16","9999-12-31","2019-09-13","GIPSONK","115Purchasing HUB Team","10053926","115HUBT","1150030001",115,{"$f":"_xlfn.XLOOKUP(VALUE(OU[[#This Row],[Master CC]]),FC_Master[Cost Center],FC_Master[rollup FC '#],OU[[#This Row],[Master CC]])","v":1150030001}]
[115,"115Purchasing HUB Team",10053926,"115HUBT",null,null,null,null,null,null,null,null,null,null,null,null,null,null,null,"1","2019-09-11","9999-12-31","2019-09-13","GIPSONK","115Purchasing Office Administration","10000114","115Adm","1150010001",115,{"$f":"_xlfn.XLOOKUP(VALUE(OU[[#This Row],[Master CC]]),FC_Master[Cost Center],FC_Master[rollup FC '#],OU[[#This Row],[Master CC]])","v":1150010001}]
[115,"115Purchasing Office Administration",10000114,"115Adm",null,null,null,null,null,null,null,null,null,null,null,null,null,null,null,"1","2019-09-26","9999-12-31","2019-10-04","GIPSONK","115Purchasing Operations & Procurement","10000117","115OpsPcmt","1150010001",115,{"$f":"_xlfn.XLOOKUP(VALUE(OU[[#This Row],[Master CC]]),FC_Master[Cost Center],FC_Master[rollup FC '#],OU[[#This Row],[Master CC]])","v":1150010001}]
[115,"115Purchasing Operations & Procurement",10000117,"115OpsPcmt",null,null,null,null,null,null,null,null,null,null,null,null,null,null,null,"1","2020-03-09","9999-12-31","2020-03-11","GIPSONK","115Purchasing Ops Project Coordinator","10054251","115OpsProjC","1150010001",115,{"$f":"_xlfn.XLOOKUP(VALUE(OU[[#This Row],[Master CC]]),FC_Master[Cost Center],FC_Master[rollup FC '#],OU[[#This Row],[Master CC]])","v":1150010001}]
[115,"115Purchasing Ops Project Coordinator",10054251,"115OpsProjC",null,null,null,null,null,null,null,null,null,null,null,null,null,null,null,"1","2019-09-11","9999-12-31","2019-09-13","GIPSONK","115Purchasing Procurement","10052676","115Procure","1150040001",115,{"$f":"_xlfn.XLOOKUP(VALUE(OU[[#This Row],[Master CC]]),FC_Master[Cost Center],FC_Master[rollup FC '#],OU[[#This Row],[Master CC]])","v":1150040001}]
[115,"115Purchasing Procurement",10052676,"115Procure",null,null,null,null,null,null,null,null,null,null,null,null,null,null,null,"1","2019-01-16","9999-12-31","2019-01-25","GIPSONK","115Rachel Fishback","10050551","115FishbackR","1150010001",115,{"$f":"_xlfn.XLOOKUP(VALUE(OU[[#This Row],[Master CC]]),FC_Master[Cost Center],FC_Master[rollup FC '#],OU[[#This Row],[Master CC]])","v":1150010001}]
[115,"115Rachel Fishback",10050551,"115FishbackR",null,null,null,null,null,null,null,null,null,null,null,null,null,null,null,"1","2023-03-17","9999-12-31","2023-03-17","BRADENA1","115Randle Jackson","10053594","115JacksonR","1150040001",115,{"$f":"_xlfn.XLOOKUP(VALUE(OU[[#This Row],[Master CC]]),FC_Master[Cost Center],FC_Master[rollup FC '#],OU[[#This Row],[Master CC]])","v":1150040001}]
[115,"115Randle Jackson",10053594,"115JacksonR",null,null,null,null,null,null,null,null,null,null,null,null,null,null,null,"1","2017-12-01","9999-12-31","2017-12-07","GIPSONK","115Richard Villareal","10000732","115VillarR","1150010001",115,{"$f":"_xlfn.XLOOKUP(VALUE(OU[[#This Row],[Master CC]]),FC_Master[Cost Center],FC_Master[rollup FC '#],OU[[#This Row],[Master CC]])","v":1150010001}]
[115,"115Richard Villareal",10000732,"115VillarR",null,null,null,null,null,null,null,null,null,null,null,null,null,null,null,"1","2018-07-01","9999-12-31","2018-07-02","GIPSONK","115Rose Garcia","10000746","115GarciaR","1150010001",115,{"$f":"_xlfn.XLOOKUP(VALUE(OU[[#This Row],[Master CC]]),FC_Master[Cost Center],FC_Master[rollup FC '#],OU[[#This Row],[Master CC]])","v":1150010001}]
[115,"115Rose Garcia",10000746,"115GarciaR",null,null,null,null,null,null,null,null,null,null,null,null,null,null,null,"1","2017-12-01","9999-12-31","2017-12-07","GIPSONK","115Ruena Victorino","10050526","115VictorinR","1150010001",115,{"$f":"_xlfn.XLOOKUP(VALUE(OU[[#This Row],[Master CC]]),FC_Master[Cost Center],FC_Master[rollup FC '#],OU[[#This Row],[Master CC]])","v":1150010001}]
[115,"115Ruena Victorino",10050526,"115VictorinR",null,null,null,null,null,null,null,null,null,null,null,null,null,null,null,"1","2020-10-01","9999-12-31","2020-10-07","GIPSONK","115Samuel Francis","10050052","115FrancisS","1150040001",115,{"$f":"_xlfn.XLOOKUP(VALUE(OU[[#This Row],[Master CC]]),FC_Master[Cost Center],FC_Master[rollup FC '#],OU[[#This Row],[Master CC]])","v":1150040001}]
[115,"115Samuel Francis",10050052,"115FrancisS",null,null,null,null,null,null,null,null,null,null,null,null,null,null,null,"1","2019-10-01","9999-12-31","2019-12-06","GIPSONK","115Sara Kassem","10052476","115KassemS","1150040001",115,{"$f":"_xlfn.XLOOKUP(VALUE(OU[[#This Row],[Master CC]]),FC_Master[Cost Center],FC_Master[rollup FC '#],OU[[#This Row],[Master CC]])","v":1150040001}]
[115,"115Sara Kassem",10052476,"115KassemS",null,null,null,null,null,null,null,null,null,null,null,null,null,null,null,"1","2019-03-13","9999-12-31","2019-03-15","GIPSONK","115Scott Wilson","10000743","115WilsonS","1150010001",115,{"$f":"_xlfn.XLOOKUP(VALUE(OU[[#This Row],[Master CC]]),FC_Master[Cost Center],FC_Master[rollup FC '#],OU[[#This Row],[Master CC]])","v":1150010001}]
[115,"115Scott Wilson",10000743,"115WilsonS",null,null,null,null,null,null,null,null,null,null,null,null,null,null,null,"1","2019-01-31","9999-12-31","2019-02-01","GIPSONK","115Steve Villarreal","10052851","115VillarreS","1150010001",115,{"$f":"_xlfn.XLOOKUP(VALUE(OU[[#This Row],[Master CC]]),FC_Master[Cost Center],FC_Master[rollup FC '#],OU[[#This Row],[Master CC]])","v":1150010001}]
[115,"115Steve Villarreal",10052851,"115VillarreS",null,null,null,null,null,null,null,null,null,null,null,null,null,null,null,"1","2017-12-01","9999-12-31","2017-12-07","GIPSONK","115Sydney Ceder","10050102","115CederS","1150010001",115,{"$f":"_xlfn.XLOOKUP(VALUE(OU[[#This Row],[Master CC]]),FC_Master[Cost Center],FC_Master[rollup FC '#],OU[[#This Row],[Master CC]])","v":1150010001}]
[115,"115Sydney Ceder",10050102,"115CederS",null,null,null,null,null,null,null,null,null,null,null,null,null,null,null,"1","2023-06-05","9999-12-31","2023-06-05","CHANGM","115Tammy Maines","10056327","115MainesT","1150040001",115,{"$f":"_xlfn.XLOOKUP(VALUE(OU[[#This Row],[Master CC]]),FC_Master[Cost Center],FC_Master[rollup FC '#],OU[[#This Row],[Master CC]])","v":1150040001}]
[115,"115Tammy Maines",10056327,"115MainesT",null,null,null,null,null,null,null,null,null,null,null,null,null,null,null,"1","2022-10-01","9999-12-31","2022-11-04","MILLIGA","115Tara Hollingsworth","10055805","115HollingsT","1150040001",115,{"$f":"_xlfn.XLOOKUP(VALUE(OU[[#This Row],[Master CC]]),FC_Master[Cost Center],FC_Master[rollup FC '#],OU[[#This Row],[Master CC]])","v":1150040001}]
[115,"115Tara Hollingsworth",10055805,"115HollingsT",null,null,null,null,null,null,null,null,null,null,null,null,null,null,null,"1","2021-09-16","9999-12-31","2021-09-08","DANIELD4","115Tawana Gardner","10052752","115GardnerT","1150040001",115,{"$f":"_xlfn.XLOOKUP(VALUE(OU[[#This Row],[Master CC]]),FC_Master[Cost Center],FC_Master[rollup FC '#],OU[[#This Row],[Master CC]])","v":1150040001}]
[115,"115Tawana Gardner",10052752,"115GardnerT",null,null,null,null,null,null,null,null,null,null,null,null,null,null,null,"1","2021-02-09","9999-12-31","2021-02-12","DANIELD4","115Teri Mendez","10054626","115MendezT","1150010001",115,{"$f":"_xlfn.XLOOKUP(VALUE(OU[[#This Row],[Master CC]]),FC_Master[Cost Center],FC_Master[rollup FC '#],OU[[#This Row],[Master CC]])","v":1150010001}]
[115,"115Teri Mendez",10054626,"115MendezT",null,null,null,null,null,null,null,null,null,null,null,null,null,null,null,"1","2023-10-01","9999-12-31","2023-10-24","CHANGM","115Thomas Lynch","10054827","115LynchT","1150040001",115,{"$f":"_xlfn.XLOOKUP(VALUE(OU[[#This Row],[Master CC]]),FC_Master[Cost Center],FC_Master[rollup FC '#],OU[[#This Row],[Master CC]])","v":1150040001}]
[115,"115Thomas Lynch",10054827,"115LynchT",null,null,null,null,null,null,null,null,null,null,null,null,null,null,null,"1","2021-09-16","9999-12-31","2021-09-07","DANIELD4","115Tina Litzner","10054826","115LitznerT","1150040001",115,{"$f":"_xlfn.XLOOKUP(VALUE(OU[[#This Row],[Master CC]]),FC_Master[Cost Center],FC_Master[rollup FC '#],OU[[#This Row],[Master CC]])","v":1150040001}]
[115,"115Tina Litzner",10054826,"115LitznerT",null,null,null,null,null,null,null,null,null,null,null,null,null,null,null,"1","2017-12-01","9999-12-31","2017-12-07","GIPSONK","115Veronica Frederick","10051926","115FredericV","1150010001",115,{"$f":"_xlfn.XLOOKUP(VALUE(OU[[#This Row],[Master CC]]),FC_Master[Cost Center],FC_Master[rollup FC '#],OU[[#This Row],[Master CC]])","v":1150010001}]
[115,"115Veronica Frederick",10051926,"115FredericV",null,null,null,null,null,null,null,null,null,null,null,null,null,null,null,"1","2023-01-20","9999-12-31","2023-01-23","BRADENA1","115Wade Laursen","10050051","115LaursenW","1150040001",115,{"$f":"_xlfn.XLOOKUP(VALUE(OU[[#This Row],[Master CC]]),FC_Master[Cost Center],FC_Master[rollup FC '#],OU[[#This Row],[Master CC]])","v":1150040001}]
[115,"115Wade Laursen",10050051,"115LaursenW",null,null,null,null,null,null,null,null,null,null,null,null,null,null,null,"1","2017-10-01","9999-12-31","2017-09-26","FF_STEPHET1","116VS Veterans Service","10000119","116VetSv","1160010001",116,{"$f":"_xlfn.XLOOKUP(VALUE(OU[[#This Row],[Master CC]]),FC_Master[Cost Center],FC_Master[rollup FC '#],OU[[#This Row],[Master CC]])","v":1160010001}]
[116,"116VS Veterans Service",10000119,"116VetSv",null,null,null,null,null,null,null,null,null,null,null,null,null,null,null,"1","2017-10-01","9999-12-31","2017-09-26","FF_STEPHET1","116VS Veterans Service Officer","10000777","116VS","1160010001",116,{"$f":"_xlfn.XLOOKUP(VALUE(OU[[#This Row],[Master CC]]),FC_Master[Cost Center],FC_Master[rollup FC '#],OU[[#This Row],[Master CC]])","v":1160010001}]
[116,"116VS Veterans Service Officer",10000777,"116VS",null,null,null,null,null,null,null,null,null,null,null,null,null,null,null,"1","1950-01-01","9999-12-31","2012-11-19","DORVALR","117Historical Commission","10050127","117HistCmm","1170010001",117,{"$f":"_xlfn.XLOOKUP(VALUE(OU[[#This Row],[Master CC]]),FC_Master[Cost Center],FC_Master[rollup FC '#],OU[[#This Row],[Master CC]])","v":1170010001}]
[117,"117Historical Commission",10050127,"117HistCmm",null,null,null,null,null,null,null,null,null,null,null,null,null,null,null,"1","1950-01-01","9999-12-31","2012-05-15","DATACONVERSI","119County Attorney","10000125","119CA","1190030001",119,{"$f":"_xlfn.XLOOKUP(VALUE(OU[[#This Row],[Master CC]]),FC_Master[Cost Center],FC_Master[rollup FC '#],OU[[#This Row],[Master CC]])","v":1190030001}]
[119,"119County Attorney",10000125,"119CA",null,null,null,null,null,null,null,null,null,null,null,null,null,null,null,"1","2022-04-16","9999-12-31","2022-04-22","MILLIGA","119County Attorney Administrative 1","10000128","119Adm1","1190010001",119,{"$f":"_xlfn.XLOOKUP(VALUE(OU[[#This Row],[Master CC]]),FC_Master[Cost Center],FC_Master[rollup FC '#],OU[[#This Row],[Master CC]])","v":1190010001}]
[119,"119County Attorney Administrative 1",10000128,"119Adm1",null,null,null,null,null,null,null,null,null,null,null,null,null,null,null,"1","1950-01-01","9999-12-31","2012-05-15","DATACONVERSI","119County Attorney Administrative 2","10000129","119Adm2","1190010001",119,{"$f":"_xlfn.XLOOKUP(VALUE(OU[[#This Row],[Master CC]]),FC_Master[Cost Center],FC_Master[rollup FC '#],OU[[#This Row],[Master CC]])","v":1190010001}]
[119,"119County Attorney Administrative 2",10000129,"119Adm2",null,null,null,null,null,null,null,null,null,null,null,null,null,null,null,"1","2022-03-01","9999-12-31","2022-03-04","MILLIGA","119County Attorney Administrative 3","10055376","119Adm3","1190010001",119,{"$f":"_xlfn.XLOOKUP(VALUE(OU[[#This Row],[Master CC]]),FC_Master[Cost Center],FC_Master[rollup FC '#],OU[[#This Row],[Master CC]])","v":1190010001}]
[119,"119County Attorney Administrative 3",10055376,"119Adm3",null,null,null,null,null,null,null,null,null,null,null,null,null,null,null,"1","1950-01-01","9999-12-31","2012-05-15","DATACONVERSI","119County Attorney Appellate","10000136","119Applt","1190020001",119,{"$f":"_xlfn.XLOOKUP(VALUE(OU[[#This Row],[Master CC]]),FC_Master[Cost Center],FC_Master[rollup FC '#],OU[[#This Row],[Master CC]])","v":1190020001}]
[119,"119County Attorney Appellate",10000136,"119Applt",null,null,null,null,null,null,null,null,null,null,null,null,null,null,null,"1","1950-01-01","9999-12-31","2012-05-15","DATACONVERSI","119County Attorney Business Analysis","10000130","119BA","1190010001",119,{"$f":"_xlfn.XLOOKUP(VALUE(OU[[#This Row],[Master CC]]),FC_Master[Cost Center],FC_Master[rollup FC '#],OU[[#This Row],[Master CC]])","v":1190010001}]
[119,"119County Attorney Business Analysis",10000130,"119BA",null,null,null,null,null,null,null,null,null,null,null,null,null,null,null,"1","2022-03-22","9999-12-31","2022-03-07","MILLIGA","119County Attorney Checks","10000146","119Checks","1190030001",119,{"$f":"_xlfn.XLOOKUP(VALUE(OU[[#This Row],[Master CC]]),FC_Master[Cost Center],FC_Master[rollup FC '#],OU[[#This Row],[Master CC]])","v":1190030001}]
[119,"119County Attorney Checks",{"$f":"VALUE(Z322)","v":10000146},"119Checks",null,null,null,null,null,null,null,null,null,null,null,null,null,null,null,"1","1950-01-01","9999-12-31","2012-05-15","DATACONVERSI","119County Attorney Executive Assistant","10000127","119ExcAsst","1190030001",119,{"$f":"_xlfn.XLOOKUP(VALUE(OU[[#This Row],[Master CC]]),FC_Master[Cost Center],FC_Master[rollup FC '#],OU[[#This Row],[Master CC]])","v":1190030001}]
[{"$f":"AC323","v":119},{"$f":"Y323","v":"119County Attorney Executive Assistant"},10000127,{"$f":"AA323","v":"119ExcAsst"},null,null,null,null,null,null,null,null,null,null,null,null,null,null,null,"1","1950-01-01","9999-12-31","2012-05-15","DATACONVERSI","119County Attorney Family Violence","10000135","119FamVlc","1190020001",119,{"$f":"_xlfn.XLOOKUP(VALUE(OU[[#This Row],[Master CC]]),FC_Master[Cost Center],FC_Master[rollup FC '#],OU[[#This Row],[Master CC]])","v":1190020001}]
[119,"119County Attorney Family Violence",10000135,"119FamVlc",null,null,null,null,null,null,null,null,null,null,null,null,null,null,null,"1","1950-01-01","9999-12-31","2012-05-15","DATACONVERSI","119County Attorney First Assistant","10000126","1191stAsst","1190030001",119,{"$f":"_xlfn.XLOOKUP(VALUE(OU[[#This Row],[Master CC]]),FC_Master[Cost Center],FC_Master[rollup FC '#],OU[[#This Row],[Master CC]])","v":1190030001}]
[119,"119County Attorney First Assistant",10000126,"1191stAsst",null,null,null,null,null,null,null,null,null,null,null,null,null,null,null,"1","1950-01-01","9999-12-31","2012-05-15","DATACONVERSI","119County Attorney Health Services","10000141","119HlhSv","1190010001",119,{"$f":"_xlfn.XLOOKUP(VALUE(OU[[#This Row],[Master CC]]),FC_Master[Cost Center],FC_Master[rollup FC '#],OU[[#This Row],[Master CC]])","v":1190010001}]
[119,"119County Attorney Health Services",10000141,"119HlhSv",null,null,null,null,null,null,null,null,null,null,null,null,null,null,null,"1","1950-01-01","9999-12-31","2012-05-15","DATACONVERSI","119County Attorney Intake","10000134","119Intake","1190020001",119,{"$f":"_xlfn.XLOOKUP(VALUE(OU[[#This Row],[Master CC]]),FC_Master[Cost Center],FC_Master[rollup FC '#],OU[[#This Row],[Master CC]])","v":1190020001}]
[119,"119County Attorney Intake",10000134,"119Intake",null,null,null,null,null,null,null,null,null,null,null,null,null,null,null,"1","1950-01-01","9999-12-31","2012-05-15","DATACONVERSI","119County Attorney Intake, RcdsMgmt","10000132","119IntkCks","1190020001",119,{"$f":"_xlfn.XLOOKUP(VALUE(OU[[#This Row],[Master CC]]),FC_Master[Cost Center],FC_Master[rollup FC '#],OU[[#This Row],[Master CC]])","v":1190020001}]
[119,"119County Attorney Intake, RcdsMgmt",10000132,"119IntkCks",null,null,null,null,null,null,null,null,null,null,null,null,null,null,null,"1","1950-01-01","9999-12-31","2012-05-15","DATACONVERSI","119County Attorney Investigative","10000143","119Invstgtv","1190020001",119,{"$f":"_xlfn.XLOOKUP(VALUE(OU[[#This Row],[Master CC]]),FC_Master[Cost Center],FC_Master[rollup FC '#],OU[[#This Row],[Master CC]])","v":1190020001}]
[119,"119County Attorney Investigative",10000143,"119Invstgtv",null,null,null,null,null,null,null,null,null,null,null,null,null,null,null,"1","1950-01-01","9999-12-31","2012-05-15","DATACONVERSI","119County Attorney Land Use","10000142","119LandUse","1190010001",119,{"$f":"_xlfn.XLOOKUP(VALUE(OU[[#This Row],[Master CC]]),FC_Master[Cost Center],FC_Master[rollup FC '#],OU[[#This Row],[Master CC]])","v":1190010001}]
[119,"119County Attorney Land Use",10000142,"119LandUse",null,null,null,null,null,null,null,null,null,null,null,null,null,null,null,"1","1950-01-01","9999-12-31","2012-05-15","DATACONVERSI","119County Attorney Litigation","10000138","119Ltgtn","1190010001",119,{"$f":"_xlfn.XLOOKUP(VALUE(OU[[#This Row],[Master CC]]),FC_Master[Cost Center],FC_Master[rollup FC '#],OU[[#This Row],[Master CC]])","v":1190010001}]
[119,"119County Attorney Litigation",10000138,"119Ltgtn",null,null,null,null,null,null,null,null,null,null,null,null,null,null,null,"1","1950-01-01","9999-12-31","2012-05-15","DATACONVERSI","119County Attorney Records Management","10000145","119RcdMgmt","1190020001",119,{"$f":"_xlfn.XLOOKUP(VALUE(OU[[#This Row],[Master CC]]),FC_Master[Cost Center],FC_Master[rollup FC '#],OU[[#This Row],[Master CC]])","v":1190020001}]
[119,"119County Attorney Records Management",10000145,"119RcdMgmt",null,null,null,null,null,null,null,null,null,null,null,null,null,null,null,"1","1950-01-01","9999-12-31","2012-05-15","DATACONVERSI","119County Attorney Transactions","10000140","119Trnsns","1190010001",119,{"$f":"_xlfn.XLOOKUP(VALUE(OU[[#This Row],[Master CC]]),FC_Master[Cost Center],FC_Master[rollup FC '#],OU[[#This Row],[Master CC]])","v":1190010001}]
[119,"119County Attorney Transactions",10000140,"119Trnsns",null,null,null,null,null,null,null,null,null,null,null,null,null,null,null,"1","1950-01-01","9999-12-31","2012-05-15","DATACONVERSI","119County Attorney Trial","10000133","119Trial","1190020001",119,{"$f":"_xlfn.XLOOKUP(VALUE(OU[[#This Row],[Master CC]]),FC_Master[Cost Center],FC_Master[rollup FC '#],OU[[#This Row],[Master CC]])","v":1190020001}]
[119,"119County Attorney Trial",10000133,"119Trial",null,null,null,null,null,null,null,null,null,null,null,null,null,null,null,"1","1950-01-01","9999-12-31","2012-05-15","DATACONVERSI","119County Attorney Trial Director","10000131","119TrialDir","1190020001",119,{"$f":"_xlfn.XLOOKUP(VALUE(OU[[#This Row],[Master CC]]),FC_Master[Cost Center],FC_Master[rollup FC '#],OU[[#This Row],[Master CC]])","v":1190020001}]
[119,"119County Attorney Trial Director",10000131,"119TrialDir",null,null,null,null,null,null,null,null,null,null,null,null,null,null,null,"1","1950-01-01","9999-12-31","2012-05-15","DATACONVERSI","119County Attorney Underage Drkg Prvntn","10000144","119UDPrvntn","1190040001",119,{"$f":"_xlfn.XLOOKUP(VALUE(OU[[#This Row],[Master CC]]),FC_Master[Cost Center],FC_Master[rollup FC '#],OU[[#This Row],[Master CC]])","v":1190040001}]
[119,"119County Attorney Underage Drkg Prvntn",10000144,"119UDPrvntn",null,null,null,null,null,null,null,null,null,null,null,null,null,null,null,"1","2023-07-01","9999-12-31","2023-06-29","MILLIGA","119County Attorney Victim Services","10056329","119VctmSv","1190020001",119,{"$f":"_xlfn.XLOOKUP(VALUE(OU[[#This Row],[Master CC]]),FC_Master[Cost Center],FC_Master[rollup FC '#],OU[[#This Row],[Master CC]])","v":1190020001}]
[119,"119County Attorney Victim Services",10056329,"119VctmSv",null,null,null,null,null,null,null,null,null,null,null,null,null,null,null,"1","2022-04-01","9999-12-31","2022-03-30","VILLARG","119Enforcement Litigation & Collections","10000137","119EnfLtgCln","1190010001",119,{"$f":"_xlfn.XLOOKUP(VALUE(OU[[#This Row],[Master CC]]),FC_Master[Cost Center],FC_Master[rollup FC '#],OU[[#This Row],[Master CC]])","v":1190010001}]
[119,"119Enforcement Litigation & Collections",10000137,"119EnfLtgCln",null,null,null,null,null,null,null,null,null,null,null,null,null,null,null,"1","2021-06-07","9999-12-31","2021-06-10","VLAHODA","120 County Clerk Equipment","10053330","120Eqp","1200040001",120,{"$f":"_xlfn.XLOOKUP(VALUE(OU[[#This Row],[Master CC]]),FC_Master[Cost Center],FC_Master[rollup FC '#],OU[[#This Row],[Master CC]])","v":1200040001}]
[120,"120 County Clerk Equipment",10053330,"120Eqp",null,null,null,null,null,null,null,null,null,null,null,null,null,null,null,"1","2017-09-01","9999-12-31","2017-09-01","BROUSSC","120Count Clerk Elections Management","10052501","120ElnMgmt","1200040001",120,{"$f":"_xlfn.XLOOKUP(VALUE(OU[[#This Row],[Master CC]]),FC_Master[Cost Center],FC_Master[rollup FC '#],OU[[#This Row],[Master CC]])","v":1200040001}]
[120,"120Count Clerk Elections Management",10052501,"120ElnMgmt",null,null,null,null,null,null,null,null,null,null,null,null,null,null,null,"1","2019-01-01","9999-12-31","2019-01-02","KNOEDLT","120Count Clerk Indexing","10053353","120Indx","1200090001",120,{"$f":"_xlfn.XLOOKUP(VALUE(OU[[#This Row],[Master CC]]),FC_Master[Cost Center],FC_Master[rollup FC '#],OU[[#This Row],[Master CC]])","v":1200090001}]
[120,"120Count Clerk Indexing",10053353,"120Indx",null,null,null,null,null,null,null,null,null,null,null,null,null,null,null,"1","1950-01-01","9999-12-31","2012-05-15","DATACONVERSI","120County Clerk","10000147","120CCk","1200010001",120,{"$f":"_xlfn.XLOOKUP(VALUE(OU[[#This Row],[Master CC]]),FC_Master[Cost Center],FC_Master[rollup FC '#],OU[[#This Row],[Master CC]])","v":1200010001}]
[120,"120County Clerk",10000147,"120CCk",null,null,null,null,null,null,null,null,null,null,null,null,null,null,null,"1","1950-01-01","9999-12-31","2012-05-15","DATACONVERSI","120County Clerk Accounting","10000151","120Actg","1200010001",120,{"$f":"_xlfn.XLOOKUP(VALUE(OU[[#This Row],[Master CC]]),FC_Master[Cost Center],FC_Master[rollup FC '#],OU[[#This Row],[Master CC]])","v":1200010001}]
[120,"120County Clerk Accounting",10000151,"120Actg",null,null,null,null,null,null,null,null,null,null,null,null,null,null,null,"1","2022-11-30","9999-12-31","2022-11-18","PEPPERA","120County Clerk Accounting 2","10055876","120Actg2","1200030001",120,{"$f":"_xlfn.XLOOKUP(VALUE(OU[[#This Row],[Master CC]]),FC_Master[Cost Center],FC_Master[rollup FC '#],OU[[#This Row],[Master CC]])","v":1200030001}]
[120,"120County Clerk Accounting 2",10055876,"120Actg2",null,null,null,null,null,null,null,null,null,null,null,null,null,null,null,"1","2023-12-05","9999-12-31","2023-12-05","HUTCHIT","120County Clerk Admin Public Relations","10056726","120AdmPbR","1200010001",120,{"$f":"_xlfn.XLOOKUP(VALUE(OU[[#This Row],[Master CC]]),FC_Master[Cost Center],FC_Master[rollup FC '#],OU[[#This Row],[Master CC]])","v":1200010001}]
[120,"120County Clerk Admin Public Relations",10056726,"120AdmPbR",null,null,null,null,null,null,null,null,null,null,null,null,null,null,null,"1","2021-11-16","9999-12-31","2021-11-18","GIPSONK","120County Clerk Admin Team","10055026","120AdmT","1200010108",120,{"$f":"_xlfn.XLOOKUP(VALUE(OU[[#This Row],[Master CC]]),FC_Master[Cost Center],FC_Master[rollup FC '#],OU[[#This Row],[Master CC]])","v":1200010108}]
[120,"120County Clerk Admin Team",10055026,"120AdmT",null,null,null,null,null,null,null,null,null,null,null,null,null,null,null,"1","2023-03-01","9999-12-31","2023-03-15","MILLIGA","120County Clerk Administrative","10000149","120Adm","1200010001",120,{"$f":"_xlfn.XLOOKUP(VALUE(OU[[#This Row],[Master CC]]),FC_Master[Cost Center],FC_Master[rollup FC '#],OU[[#This Row],[Master CC]])","v":1200010001}]
[120,"120County Clerk Administrative",10000149,"120Adm",null,null,null,null,null,null,null,null,null,null,null,null,null,null,null,"1","2023-03-01","9999-12-31","2023-03-15","MILLIGA","120County Clerk Administrative 2","10053326","120Adm2","1200010001",120,{"$f":"_xlfn.XLOOKUP(VALUE(OU[[#This Row],[Master CC]]),FC_Master[Cost Center],FC_Master[rollup FC '#],OU[[#This Row],[Master CC]])","v":1200010001}]
[120,"120County Clerk Administrative 2",10053326,"120Adm2",null,null,null,null,null,null,null,null,null,null,null,null,null,null,null,"1","2021-06-07","9999-12-31","2021-06-10","VLAHODA","120County Clerk Ballot Tech","10053328","120BtTech","1200040001",120,{"$f":"_xlfn.XLOOKUP(VALUE(OU[[#This Row],[Master CC]]),FC_Master[Cost Center],FC_Master[rollup FC '#],OU[[#This Row],[Master CC]])","v":1200040001}]
[120,"120County Clerk Ballot Tech",10053328,"120BtTech",null,null,null,null,null,null,null,null,null,null,null,null,null,null,null,"1","2019-01-01","9999-12-31","2019-01-02","KNOEDLT","120County Clerk Bonds","10053352","120Bonds","1200080001",120,{"$f":"_xlfn.XLOOKUP(VALUE(OU[[#This Row],[Master CC]]),FC_Master[Cost Center],FC_Master[rollup FC '#],OU[[#This Row],[Master CC]])","v":1200080001}]
[120,"120County Clerk Bonds",10053352,"120Bonds",null,null,null,null,null,null,null,null,null,null,null,null,null,null,null,"1","2019-01-01","9999-12-31","2019-01-02","KNOEDLT","120County Clerk Call Center","10053356","120ClC","1200090001",120,{"$f":"_xlfn.XLOOKUP(VALUE(OU[[#This Row],[Master CC]]),FC_Master[Cost Center],FC_Master[rollup FC '#],OU[[#This Row],[Master CC]])","v":1200090001}]
[120,"120County Clerk Call Center",10053356,"120ClC",null,null,null,null,null,null,null,null,null,null,null,null,null,null,null,"1","2019-01-01","9999-12-31","2019-01-02","KNOEDLT","120County Clerk CCII's","10053351","120CCII's","1200080001",120,{"$f":"_xlfn.XLOOKUP(VALUE(OU[[#This Row],[Master CC]]),FC_Master[Cost Center],FC_Master[rollup FC '#],OU[[#This Row],[Master CC]])","v":1200080001}]
[120,"120County Clerk CCII's",10053351,"120CCII's",null,null,null,null,null,null,null,null,null,null,null,null,null,null,null,"1","1950-01-01","9999-12-31","2012-05-15","DATACONVERSI","120County Clerk Chief Deputy","10000148","120ChfDpCCk","1200010001",120,{"$f":"_xlfn.XLOOKUP(VALUE(OU[[#This Row],[Master CC]]),FC_Master[Cost Center],FC_Master[rollup FC '#],OU[[#This Row],[Master CC]])","v":1200010001}]
[120,"120County Clerk Chief Deputy",10000148,"120ChfDpCCk",null,null,null,null,null,null,null,null,null,null,null,null,null,null,null,"1","2020-10-06","9999-12-31","2020-10-14","VLAHODA","120County Clerk Civil","10000154","120Civil","1200070001",120,{"$f":"_xlfn.XLOOKUP(VALUE(OU[[#This Row],[Master CC]]),FC_Master[Cost Center],FC_Master[rollup FC '#],OU[[#This Row],[Master CC]])","v":1200070001}]
[120,"120County Clerk Civil",10000154,"120Civil",null,null,null,null,null,null,null,null,null,null,null,null,null,null,null,"1","2012-01-01","9999-12-31","2013-01-10","ROSSA","120County Clerk Civil Team","10050228","120Civ","1200070001",120,{"$f":"_xlfn.XLOOKUP(VALUE(OU[[#This Row],[Master CC]]),FC_Master[Cost Center],FC_Master[rollup FC '#],OU[[#This Row],[Master CC]])","v":1200070001}]
[120,"120County Clerk Civil Team",10050228,"120Civ",null,null,null,null,null,null,null,null,null,null,null,null,null,null,null,"1","2019-01-01","9999-12-31","2018-12-31","GIPSONK","120County Clerk Collections Team","10053336","120ClnT","1200070001",120,{"$f":"_xlfn.XLOOKUP(VALUE(OU[[#This Row],[Master CC]]),FC_Master[Cost Center],FC_Master[rollup FC '#],OU[[#This Row],[Master CC]])","v":1200070001}]
[120,"120County Clerk Collections Team",10053336,"120ClnT",null,null,null,null,null,null,null,null,null,null,null,null,null,null,null,"1","1950-01-01","9999-12-31","2012-05-15","DATACONVERSI","120County Clerk Computer Resource Mgmt","10000150","120CmpRsrc","1200100129",120,{"$f":"_xlfn.XLOOKUP(VALUE(OU[[#This Row],[Master CC]]),FC_Master[Cost Center],FC_Master[rollup FC '#],OU[[#This Row],[Master CC]])","v":1200100129}]
[120,"120County Clerk Computer Resource Mgmt",10000150,"120CmpRsrc",null,null,null,null,null,null,null,null,null,null,null,null,null,null,null,"1","2014-03-01","9999-12-31","2014-03-04","VILLARG","120County Clerk Court Services","10050951","120CtSv","1200010001",120,{"$f":"_xlfn.XLOOKUP(VALUE(OU[[#This Row],[Master CC]]),FC_Master[Cost Center],FC_Master[rollup FC '#],OU[[#This Row],[Master CC]])","v":1200010001}]
[120,"120County Clerk Court Services",10050951,"120CtSv",null,null,null,null,null,null,null,null,null,null,null,null,null,null,null,"1","2017-09-26","9999-12-31","2019-01-31","MILLERA1","120County Clerk Elections","10000153","120Eln",null,null,{"$f":"_xlfn.XLOOKUP(VALUE(OU[[#This Row],[Master CC]]),FC_Master[Cost Center],FC_Master[rollup FC '#],OU[[#This Row],[Master CC]])","v":0}]
[0,"120County Clerk Elections",10000153,"120Eln",null,null,null,null,null,null,null,null,null,null,null,null,null,null,null,"1","1950-01-01","9999-12-31","2012-05-15","DATACONVERSI","120County Clerk Elections Director","10000152","120ElnDir","1200040001",120,{"$f":"_xlfn.XLOOKUP(VALUE(OU[[#This Row],[Master CC]]),FC_Master[Cost Center],FC_Master[rollup FC '#],OU[[#This Row],[Master CC]])","v":1200040001}]
[120,"120County Clerk Elections Director",10000152,"120ElnDir",null,null,null,null,null,null,null,null,null,null,null,null,null,null,null,"1","2019-01-01","9999-12-31","2019-01-02","KNOEDLT","120County Clerk Elections Early Voting","10050076","120ElnEV","1200040001",120,{"$f":"_xlfn.XLOOKUP(VALUE(OU[[#This Row],[Master CC]]),FC_Master[Cost Center],FC_Master[rollup FC '#],OU[[#This Row],[Master CC]])","v":1200040001}]
[120,"120County Clerk Elections Early Voting",10050076,"120ElnEV",null,null,null,null,null,null,null,null,null,null,null,null,null,null,null,"1","2019-10-03","9999-12-31","2019-11-04","BROUSSC","120County Clerk Elections Management 2","10053980","12ElnMgmt2","1200040001",120,{"$f":"_xlfn.XLOOKUP(VALUE(OU[[#This Row],[Master CC]]),FC_Master[Cost Center],FC_Master[rollup FC '#],OU[[#This Row],[Master CC]])","v":1200040001}]
[120,"120County Clerk Elections Management 2",10053980,"12ElnMgmt2",null,null,null,null,null,null,null,null,null,null,null,null,null,null,null,"1","2023-02-06","9999-12-31","2023-01-19","PEPPERA","120County Clerk Elections Training","10055976","120Training","1200040001",120,{"$f":"_xlfn.XLOOKUP(VALUE(OU[[#This Row],[Master CC]]),FC_Master[Cost Center],FC_Master[rollup FC '#],OU[[#This Row],[Master CC]])","v":1200040001}]
[120,"120County Clerk Elections Training",10055976,"120Training",null,null,null,null,null,null,null,null,null,null,null,null,null,null,null,"1","2019-01-01","9999-12-31","2019-01-02","KNOEDLT","120County Clerk FC","10053354","120FC","1200080001",120,{"$f":"_xlfn.XLOOKUP(VALUE(OU[[#This Row],[Master CC]]),FC_Master[Cost Center],FC_Master[rollup FC '#],OU[[#This Row],[Master CC]])","v":1200080001}]
[120,"120County Clerk FC",10053354,"120FC",null,null,null,null,null,null,null,null,null,null,null,null,null,null,null,"1","2019-01-01","9999-12-31","2019-01-02","KNOEDLT","120County Clerk Front Desk","10053357","120FD","1200090001",120,{"$f":"_xlfn.XLOOKUP(VALUE(OU[[#This Row],[Master CC]]),FC_Master[Cost Center],FC_Master[rollup FC '#],OU[[#This Row],[Master CC]])","v":1200090001}]
[120,"120County Clerk Front Desk",10053357,"120FD",null,null,null,null,null,null,null,null,null,null,null,null,null,null,null,"1","2023-03-01","9999-12-31","2023-03-15","MILLIGA","120County Clerk MH/Probate Team","10051476","120MHPrbT","1200060001",120,{"$f":"_xlfn.XLOOKUP(VALUE(OU[[#This Row],[Master CC]]),FC_Master[Cost Center],FC_Master[rollup FC '#],OU[[#This Row],[Master CC]])","v":1200060001}]
[120,"120County Clerk MH/Probate Team",10051476,"120MHPrbT",null,null,null,null,null,null,null,null,null,null,null,null,null,null,null,"1","2014-06-16","9999-12-31","2014-06-24","BROUSSC","120County Clerk Misdemeanor 2","10051102","120Msdr2","1200080001",120,{"$f":"_xlfn.XLOOKUP(VALUE(OU[[#This Row],[Master CC]]),FC_Master[Cost Center],FC_Master[rollup FC '#],OU[[#This Row],[Master CC]])","v":1200080001}]
[120,"120County Clerk Misdemeanor 2",10051102,"120Msdr2",null,null,null,null,null,null,null,null,null,null,null,null,null,null,null,"1","1950-01-01","9999-12-31","2012-05-15","DATACONVERSI","120County Clerk Misdemeanor Records","10000155","120MsdrRcd","1200080001",120,{"$f":"_xlfn.XLOOKUP(VALUE(OU[[#This Row],[Master CC]]),FC_Master[Cost Center],FC_Master[rollup FC '#],OU[[#This Row],[Master CC]])","v":1200080001}]
[120,"120County Clerk Misdemeanor Records",10000155,"120MsdrRcd",null,null,null,null,null,null,null,null,null,null,null,null,null,null,null,"1","2019-01-01","9999-12-31","2019-01-02","KNOEDLT","120County Clerk New Cases","10053355","120NCases","1200080001",120,{"$f":"_xlfn.XLOOKUP(VALUE(OU[[#This Row],[Master CC]]),FC_Master[Cost Center],FC_Master[rollup FC '#],OU[[#This Row],[Master CC]])","v":1200080001}]
[120,"120County Clerk New Cases",10053355,"120NCases",null,null,null,null,null,null,null,null,null,null,null,null,null,null,null,"1","2021-06-07","9999-12-31","2021-06-10","VLAHODA","120County Clerk Operations","10053331","120Ops","1200040001",120,{"$f":"_xlfn.XLOOKUP(VALUE(OU[[#This Row],[Master CC]]),FC_Master[Cost Center],FC_Master[rollup FC '#],OU[[#This Row],[Master CC]])","v":1200040001}]
[120,"120County Clerk Operations",10053331,"120Ops",null,null,null,null,null,null,null,null,null,null,null,null,null,null,null,"1","2021-06-07","9999-12-31","2021-06-10","VLAHODA","120County Clerk Personnel","10053327","120Prsnl","1200040001",120,{"$f":"_xlfn.XLOOKUP(VALUE(OU[[#This Row],[Master CC]]),FC_Master[Cost Center],FC_Master[rollup FC '#],OU[[#This Row],[Master CC]])","v":1200040001}]
[120,"120County Clerk Personnel",10053327,"120Prsnl",null,null,null,null,null,null,null,null,null,null,null,null,null,null,null,"1","2023-03-01","9999-12-31","2023-03-15","MILLIGA","120County Clerk Probate","10050876","120Prb","1200060001",120,{"$f":"_xlfn.XLOOKUP(VALUE(OU[[#This Row],[Master CC]]),FC_Master[Cost Center],FC_Master[rollup FC '#],OU[[#This Row],[Master CC]])","v":1200060001}]
[120,"120County Clerk Probate",10050876,"120Prb",null,null,null,null,null,null,null,null,null,null,null,null,null,null,null,"1","1950-01-01","9999-12-31","2012-05-15","DATACONVERSI","120County Clerk Recording","10000156","120Rcdg","1200090001",120,{"$f":"_xlfn.XLOOKUP(VALUE(OU[[#This Row],[Master CC]]),FC_Master[Cost Center],FC_Master[rollup FC '#],OU[[#This Row],[Master CC]])","v":1200090001}]
[120,"120County Clerk Recording",10000156,"120Rcdg",null,null,null,null,null,null,null,null,null,null,null,null,null,null,null,"5","2021-09-10","9999-12-31","2021-09-16","VLAHODA","120County Clerk Recording 2","10054876","120Rcdg","1200090001",120,{"$f":"_xlfn.XLOOKUP(VALUE(OU[[#This Row],[Master CC]]),FC_Master[Cost Center],FC_Master[rollup FC '#],OU[[#This Row],[Master CC]])","v":1200090001}]
[120,"120County Clerk Recording 2",10054876,"120Rcdg",null,null,null,null,null,null,null,null,null,null,null,null,null,null,null,"1","2021-09-10","9999-12-31","2021-09-16","VLAHODA","120County Clerk Recording 2","10054877","120Rcdg2","1200090001",120,{"$f":"_xlfn.XLOOKUP(VALUE(OU[[#This Row],[Master CC]]),FC_Master[Cost Center],FC_Master[rollup FC '#],OU[[#This Row],[Master CC]])","v":1200090001}]
[120,"120County Clerk Recording 2",10054877,"120Rcdg2",null,null,null,null,null,null,null,null,null,null,null,null,null,null,null,"1","2023-03-01","9999-12-31","2023-03-15","MILLIGA","120County Clerk Records Management","10000157","120RcdMgmt","1200100108",120,{"$f":"_xlfn.XLOOKUP(VALUE(OU[[#This Row],[Master CC]]),FC_Master[Cost Center],FC_Master[rollup FC '#],OU[[#This Row],[Master CC]])","v":1200100108}]
[120,"120County Clerk Records Management",10000157,"120RcdMgmt",null,null,null,null,null,null,null,null,null,null,null,null,null,null,null,"1","2023-04-01","9999-12-31","2023-04-10","PEPPERA","120County Clerk RM Civil Records","10056151","120RmCivRcd","1200100108",120,{"$f":"_xlfn.XLOOKUP(VALUE(OU[[#This Row],[Master CC]]),FC_Master[Cost Center],FC_Master[rollup FC '#],OU[[#This Row],[Master CC]])","v":1200100108}]
[120,"120County Clerk RM Civil Records",10056151,"120RmCivRcd",null,null,null,null,null,null,null,null,null,null,null,null,null,null,null,"1","2023-04-01","9999-12-31","2023-04-12","PEPPERA","120County Clerk RM MISD Circulation","10053333","120MisdCirc","1200100108",120,{"$f":"_xlfn.XLOOKUP(VALUE(OU[[#This Row],[Master CC]]),FC_Master[Cost Center],FC_Master[rollup FC '#],OU[[#This Row],[Master CC]])","v":1200100108}]
[120,"120County Clerk RM MISD Circulation",10053333,"120MisdCirc",null,null,null,null,null,null,null,null,null,null,null,null,null,null,null,"1","2023-04-01","9999-12-31","2023-04-10","PEPPERA","120County Clerk RM MISD Records","10056152","120RmMisdRcd","1200100108",120,{"$f":"_xlfn.XLOOKUP(VALUE(OU[[#This Row],[Master CC]]),FC_Master[Cost Center],FC_Master[rollup FC '#],OU[[#This Row],[Master CC]])","v":1200100108}]
[120,"120County Clerk RM MISD Records",10056152,"120RmMisdRcd",null,null,null,null,null,null,null,null,null,null,null,null,null,null,null,"1","2023-04-01","9999-12-31","2023-04-12","PEPPERA","120County Clerk RM MISD Research","10053335","120MisdRsh","1200100108",120,{"$f":"_xlfn.XLOOKUP(VALUE(OU[[#This Row],[Master CC]]),FC_Master[Cost Center],FC_Master[rollup FC '#],OU[[#This Row],[Master CC]])","v":1200100108}]
[120,"120County Clerk RM MISD Research",10053335,"120MisdRsh",null,null,null,null,null,null,null,null,null,null,null,null,null,null,null,"1","2023-04-01","9999-12-31","2023-04-12","PHAMC","120County Clerk RM Offsite Records","10053332","120OfsRcd","1200100108",120,{"$f":"_xlfn.XLOOKUP(VALUE(OU[[#This Row],[Master CC]]),FC_Master[Cost Center],FC_Master[rollup FC '#],OU[[#This Row],[Master CC]])","v":1200100108}]
[120,"120County Clerk RM Offsite Records",10053332,"120OfsRcd",null,null,null,null,null,null,null,null,null,null,null,null,null,null,null,"1","2023-04-01","9999-12-31","2023-04-12","PHAMC","120County Clerk RM Probate Records","10053334","120PrbRcd","1200100108",120,{"$f":"_xlfn.XLOOKUP(VALUE(OU[[#This Row],[Master CC]]),FC_Master[Cost Center],FC_Master[rollup FC '#],OU[[#This Row],[Master CC]])","v":1200100108}]
[120,"120County Clerk RM Probate Records",10053334,"120PrbRcd",null,null,null,null,null,null,null,null,null,null,null,null,null,null,null,"1","1950-01-01","9999-12-31","2012-05-15","DATACONVERSI","121District Clerk","10000158","121DistClerk","1210010001",121,{"$f":"_xlfn.XLOOKUP(VALUE(OU[[#This Row],[Master CC]]),FC_Master[Cost Center],FC_Master[rollup FC '#],OU[[#This Row],[Master CC]])","v":1210010001}]
[121,"121District Clerk",10000158,"121DistClerk",null,null,null,null,null,null,null,null,null,null,null,null,null,null,null,"1","1950-01-01","9999-12-31","2012-05-15","DATACONVERSI","121District Clerk Accounting","10000168","121Actg","1210010001",121,{"$f":"_xlfn.XLOOKUP(VALUE(OU[[#This Row],[Master CC]]),FC_Master[Cost Center],FC_Master[rollup FC '#],OU[[#This Row],[Master CC]])","v":1210010001}]
[121,"121District Clerk Accounting",10000168,"121Actg",null,null,null,null,null,null,null,null,null,null,null,null,null,null,null,"1","1950-01-01","9999-12-31","2012-05-15","DATACONVERSI","121District Clerk Chief Deputy","10000159","121ChfDpDCk","1210010001",121,{"$f":"_xlfn.XLOOKUP(VALUE(OU[[#This Row],[Master CC]]),FC_Master[Cost Center],FC_Master[rollup FC '#],OU[[#This Row],[Master CC]])","v":1210010001}]
[121,"121District Clerk Chief Deputy",10000159,"121ChfDpDCk",null,null,null,null,null,null,null,null,null,null,null,null,null,null,null,"1","2015-05-04","9999-12-31","2015-05-06","RAMIREV","121District Clerk Civil","10000162","121Civil","1210010001",121,{"$f":"_xlfn.XLOOKUP(VALUE(OU[[#This Row],[Master CC]]),FC_Master[Cost Center],FC_Master[rollup FC '#],OU[[#This Row],[Master CC]])","v":1210010001}]
[121,"121District Clerk Civil",{"$f":"VALUE(Z386)","v":10000162},"121Civil",null,null,null,null,null,null,null,null,null,null,null,null,null,null,null,"1","2016-10-26","9999-12-31","2016-11-16","ARJONAE","121District Clerk Civil Records Public","10000166","121CivRcdPbc","1210010001",121,{"$f":"_xlfn.XLOOKUP(VALUE(OU[[#This Row],[Master CC]]),FC_Master[Cost Center],FC_Master[rollup FC '#],OU[[#This Row],[Master CC]])","v":1210010001}]
[{"$f":"AC387","v":121},{"$f":"Y387","v":"121District Clerk Civil Records Public"},10000166,{"$f":"AA387","v":"121CivRcdPbc"},null,null,null,null,null,null,null,null,null,null,null,null,null,null,null,"1","1950-01-01","9999-12-31","2012-05-15","DATACONVERSI","121District Clerk Civil Supervisor","10000161","121CivSupv","1210010001",121,{"$f":"_xlfn.XLOOKUP(VALUE(OU[[#This Row],[Master CC]]),FC_Master[Cost Center],FC_Master[rollup FC '#],OU[[#This Row],[Master CC]])","v":1210010001}]
[121,"121District Clerk Civil Supervisor",10000161,"121CivSupv",null,null,null,null,null,null,null,null,null,null,null,null,null,null,null,"1","1950-01-01","9999-12-31","2012-05-15","DATACONVERSI","121District Clerk Civil, Family, Intake","10000160","121CivFam","1210010001",121,{"$f":"_xlfn.XLOOKUP(VALUE(OU[[#This Row],[Master CC]]),FC_Master[Cost Center],FC_Master[rollup FC '#],OU[[#This Row],[Master CC]])","v":1210010001}]
[121,"121District Clerk Civil, Family, Intake",10000160,"121CivFam",null,null,null,null,null,null,null,null,null,null,null,null,null,null,null,"1","2015-08-17","9999-12-31","2015-08-27","RAMIREV","121District Clerk Criminal","10000171","121Crm","1210020001",121,{"$f":"_xlfn.XLOOKUP(VALUE(OU[[#This Row],[Master CC]]),FC_Master[Cost Center],FC_Master[rollup FC '#],OU[[#This Row],[Master CC]])","v":1210020001}]
[121,"121District Clerk Criminal",10000171,"121Crm",null,null,null,null,null,null,null,null,null,null,null,null,null,null,null,"1","1950-01-01","9999-12-31","2012-05-15","DATACONVERSI","121District Clerk Criminal Director","10000169","121CrmDir","1210020001",121,{"$f":"_xlfn.XLOOKUP(VALUE(OU[[#This Row],[Master CC]]),FC_Master[Cost Center],FC_Master[rollup FC '#],OU[[#This Row],[Master CC]])","v":1210020001}]
[121,"121District Clerk Criminal Director",10000169,"121CrmDir",null,null,null,null,null,null,null,null,null,null,null,null,null,null,null,"1","1950-01-01","9999-12-31","2012-05-15","DATACONVERSI","121District Clerk Criminal Records","10000173","121CrmRcd","1210020001",121,{"$f":"_xlfn.XLOOKUP(VALUE(OU[[#This Row],[Master CC]]),FC_Master[Cost Center],FC_Master[rollup FC '#],OU[[#This Row],[Master CC]])","v":1210020001}]
[121,"121District Clerk Criminal Records",10000173,"121CrmRcd",null,null,null,null,null,null,null,null,null,null,null,null,null,null,null,"1","1950-01-01","9999-12-31","2012-05-15","DATACONVERSI","121District Clerk Criminal Supervisor","10000170","121CrmSupv","1210020001",121,{"$f":"_xlfn.XLOOKUP(VALUE(OU[[#This Row],[Master CC]]),FC_Master[Cost Center],FC_Master[rollup FC '#],OU[[#This Row],[Master CC]])","v":1210020001}]
[121,"121District Clerk Criminal Supervisor",10000170,"121CrmSupv",null,null,null,null,null,null,null,null,null,null,null,null,null,null,null,"1","2016-09-13","9999-12-31","2016-10-28","RAMIREV","121District Clerk Family","10000164","121Family","1210010001",121,{"$f":"_xlfn.XLOOKUP(VALUE(OU[[#This Row],[Master CC]]),FC_Master[Cost Center],FC_Master[rollup FC '#],OU[[#This Row],[Master CC]])","v":1210010001}]
[121,"121District Clerk Family",10000164,"121Family",null,null,null,null,null,null,null,null,null,null,null,null,null,null,null,"1","2013-03-01","9999-12-31","2013-03-06","LAMROLC","121District Clerk Family Atty General","10050426","121FamAG","1210010001",121,{"$f":"_xlfn.XLOOKUP(VALUE(OU[[#This Row],[Master CC]]),FC_Master[Cost Center],FC_Master[rollup FC '#],OU[[#This Row],[Master CC]])","v":1210010001}]
[121,"121District Clerk Family Atty General",10050426,"121FamAG",null,null,null,null,null,null,null,null,null,null,null,null,null,null,null,"1","2015-10-08","9999-12-31","2015-10-21","BROUSSC","121District Clerk Financial Collections","10051601","121FinCln","1210010001",121,{"$f":"_xlfn.XLOOKUP(VALUE(OU[[#This Row],[Master CC]]),FC_Master[Cost Center],FC_Master[rollup FC '#],OU[[#This Row],[Master CC]])","v":1210010001}]
[121,"121District Clerk Financial Collections",10051601,"121FinCln",null,null,null,null,null,null,null,null,null,null,null,null,null,null,null,"1","1950-01-01","9999-12-31","2012-05-15","DATACONVERSI","121District Clerk Financial Manager","10000167","121FinMgr","1210010001",121,{"$f":"_xlfn.XLOOKUP(VALUE(OU[[#This Row],[Master CC]]),FC_Master[Cost Center],FC_Master[rollup FC '#],OU[[#This Row],[Master CC]])","v":1210010001}]
[121,"121District Clerk Financial Manager",10000167,"121FinMgr",null,null,null,null,null,null,null,null,null,null,null,null,null,null,null,"1","1950-01-01","9999-12-31","2012-05-15","DATACONVERSI","121District Clerk Grand Jury","10000172","121GrandJy","1210020001",121,{"$f":"_xlfn.XLOOKUP(VALUE(OU[[#This Row],[Master CC]]),FC_Master[Cost Center],FC_Master[rollup FC '#],OU[[#This Row],[Master CC]])","v":1210020001}]
[121,"121District Clerk Grand Jury",10000172,"121GrandJy",null,null,null,null,null,null,null,null,null,null,null,null,null,null,null,"1","1950-01-01","9999-12-31","2012-05-15","DATACONVERSI","121District Clerk Jury","10000174","121Jury","1210010001",121,{"$f":"_xlfn.XLOOKUP(VALUE(OU[[#This Row],[Master CC]]),FC_Master[Cost Center],FC_Master[rollup FC '#],OU[[#This Row],[Master CC]])","v":1210010001}]
[121,"121District Clerk Jury",10000174,"121Jury",null,null,null,null,null,null,null,null,null,null,null,null,null,null,null,"1","2016-10-26","9999-12-31","2016-11-16","ARJONAE","121District Clerk Scanning","10000165","121Scng","1210010001",121,{"$f":"_xlfn.XLOOKUP(VALUE(OU[[#This Row],[Master CC]]),FC_Master[Cost Center],FC_Master[rollup FC '#],OU[[#This Row],[Master CC]])","v":1210010001}]
[121,"121District Clerk Scanning",10000165,"121Scng",null,null,null,null,null,null,null,null,null,null,null,null,null,null,null,"1","1950-01-01","9999-12-31","2012-05-15","DATACONVERSI","121District Clerk Technical Sv and QA","10000175","121TchSv","1210010001",121,{"$f":"_xlfn.XLOOKUP(VALUE(OU[[#This Row],[Master CC]]),FC_Master[Cost Center],FC_Master[rollup FC '#],OU[[#This Row],[Master CC]])","v":1210010001}]
[121,"121District Clerk Technical Sv and QA",10000175,"121TchSv",null,null,null,null,null,null,null,null,null,null,null,null,null,null,null,"1","2015-08-17","9999-12-31","2015-08-27","RAMIREV","121Expunctions Division","10051076","121ExpunsDiv","1210020001",121,{"$f":"_xlfn.XLOOKUP(VALUE(OU[[#This Row],[Master CC]]),FC_Master[Cost Center],FC_Master[rollup FC '#],OU[[#This Row],[Master CC]])","v":1210020001}]
[121,"121Expunctions Division",10051076,"121ExpunsDiv",null,null,null,null,null,null,null,null,null,null,null,null,null,null,null,"1","2021-01-04","9999-12-31","2021-01-06","MILLIGA","122 Civil Cts-Assoc Jg Mathews Rodriguez","10051176","122AssocJg4","1220270001",122,{"$f":"_xlfn.XLOOKUP(VALUE(OU[[#This Row],[Master CC]]),FC_Master[Cost Center],FC_Master[rollup FC '#],OU[[#This Row],[Master CC]])","v":1220010001}]
[122,"122 Civil Cts-Assoc Jg Mathews Rodriguez",10051176,"122AssocJg4",null,null,null,null,null,null,null,null,null,null,null,null,null,null,null,"1","1950-01-01","9999-12-31","2012-05-15","DATACONVERSI","122Civil Courts","10000722","122CivilCt","1220010001",122,{"$f":"_xlfn.XLOOKUP(VALUE(OU[[#This Row],[Master CC]]),FC_Master[Cost Center],FC_Master[rollup FC '#],OU[[#This Row],[Master CC]])","v":1220010001}]
[122,"122Civil Courts",10000722,"122CivilCt",null,null,null,null,null,null,null,null,null,null,null,null,null,null,null,"1","2023-07-10","9999-12-31","2023-07-14","MILLIGA","122Civil Courts State IV-D","10056401","122SttIV-DCt","1220010001",122,{"$f":"_xlfn.XLOOKUP(VALUE(OU[[#This Row],[Master CC]]),FC_Master[Cost Center],FC_Master[rollup FC '#],OU[[#This Row],[Master CC]])","v":1220010001}]
[122,"122Civil Courts State IV-D",10056401,"122SttIV-DCt",null,null,null,null,null,null,null,null,null,null,null,null,null,null,null,"1","1950-01-01","9999-12-31","2012-05-15","DATACONVERSI","122Civil Courts Technology Team","10000787","122CtTch","1220190001",122,{"$f":"_xlfn.XLOOKUP(VALUE(OU[[#This Row],[Master CC]]),FC_Master[Cost Center],FC_Master[rollup FC '#],OU[[#This Row],[Master CC]])","v":1220010001}]
[122,"122Civil Courts Technology Team",10000787,"122CtTch",null,null,null,null,null,null,null,null,null,null,null,null,null,null,null,"1","2014-12-11","9999-12-31","2014-12-12","RAMIREV","122Civil Courts Visiting Judges","10051276","122VstgJg","1220010001",122,{"$f":"_xlfn.XLOOKUP(VALUE(OU[[#This Row],[Master CC]]),FC_Master[Cost Center],FC_Master[rollup FC '#],OU[[#This Row],[Master CC]])","v":1220010001}]
[122,"122Civil Courts Visiting Judges",10051276,"122VstgJg",null,null,null,null,null,null,null,null,null,null,null,null,null,null,null,"1","1950-01-01","9999-12-31","2012-05-15","DATACONVERSI","122Civil Courts-126th District Court","10000176","122-126DCt","1220030001",122,{"$f":"_xlfn.XLOOKUP(VALUE(OU[[#This Row],[Master CC]]),FC_Master[Cost Center],FC_Master[rollup FC '#],OU[[#This Row],[Master CC]])","v":1220010001}]
[122,"122Civil Courts-126th District Court",10000176,"122-126DCt",null,null,null,null,null,null,null,null,null,null,null,null,null,null,null,"1","1950-01-01","9999-12-31","2012-05-15","DATACONVERSI","122Civil Courts-200th District Court","10000184","122-200DCt","1220040001",122,{"$f":"_xlfn.XLOOKUP(VALUE(OU[[#This Row],[Master CC]]),FC_Master[Cost Center],FC_Master[rollup FC '#],OU[[#This Row],[Master CC]])","v":1220010001}]
[122,"122Civil Courts-200th District Court",10000184,"122-200DCt",null,null,null,null,null,null,null,null,null,null,null,null,null,null,null,"1","1950-01-01","9999-12-31","2012-05-15","DATACONVERSI","122Civil Courts-201st District Court","10000181","122-201DCt","1220050001",122,{"$f":"_xlfn.XLOOKUP(VALUE(OU[[#This Row],[Master CC]]),FC_Master[Cost Center],FC_Master[rollup FC '#],OU[[#This Row],[Master CC]])","v":1220010001}]
[122,"122Civil Courts-201st District Court",10000181,"122-201DCt",null,null,null,null,null,null,null,null,null,null,null,null,null,null,null,"1","1950-01-01","9999-12-31","2012-05-15","DATACONVERSI","122Civil Courts-250th District Court","10000177","122-250DCt","1220060001",122,{"$f":"_xlfn.XLOOKUP(VALUE(OU[[#This Row],[Master CC]]),FC_Master[Cost Center],FC_Master[rollup FC '#],OU[[#This Row],[Master CC]])","v":1220010001}]
[122,"122Civil Courts-250th District Court",10000177,"122-250DCt",null,null,null,null,null,null,null,null,null,null,null,null,null,null,null,"1","1950-01-01","9999-12-31","2012-05-15","DATACONVERSI","122Civil Courts-261st District Court","10000180","122-261DCt","1220070001",122,{"$f":"_xlfn.XLOOKUP(VALUE(OU[[#This Row],[Master CC]]),FC_Master[Cost Center],FC_Master[rollup FC '#],OU[[#This Row],[Master CC]])","v":1220010001}]
[122,"122Civil Courts-261st District Court",10000180,"122-261DCt",null,null,null,null,null,null,null,null,null,null,null,null,null,null,null,"1","1950-01-01","9999-12-31","2012-05-15","DATACONVERSI","122Civil Courts-345th District Court","10000185","122-345DCt","1220080001",122,{"$f":"_xlfn.XLOOKUP(VALUE(OU[[#This Row],[Master CC]]),FC_Master[Cost Center],FC_Master[rollup FC '#],OU[[#This Row],[Master CC]])","v":1220010001}]
[122,"122Civil Courts-345th District Court",10000185,"122-345DCt",null,null,null,null,null,null,null,null,null,null,null,null,null,null,null,"1","1950-01-01","9999-12-31","2012-05-15","DATACONVERSI","122Civil Courts-353rd District Court","10000183","122-353DCt","1220090001",122,{"$f":"_xlfn.XLOOKUP(VALUE(OU[[#This Row],[Master CC]]),FC_Master[Cost Center],FC_Master[rollup FC '#],OU[[#This Row],[Master CC]])","v":1220010001}]
[122,"122Civil Courts-353rd District Court",10000183,"122-353DCt",null,null,null,null,null,null,null,null,null,null,null,null,null,null,null,"1","1950-01-01","9999-12-31","2012-05-15","DATACONVERSI","122Civil Courts-419th District Court","10000182","122-419DCt","1220100001",122,{"$f":"_xlfn.XLOOKUP(VALUE(OU[[#This Row],[Master CC]]),FC_Master[Cost Center],FC_Master[rollup FC '#],OU[[#This Row],[Master CC]])","v":1220010001}]
[122,"122Civil Courts-419th District Court",10000182,"122-419DCt",null,null,null,null,null,null,null,null,null,null,null,null,null,null,null,"1","2021-01-12","9999-12-31","2021-01-12","MILLIGA","122Civil Courts-455th District Court","10054527","122-455DCt","1220290001",122,{"$f":"_xlfn.XLOOKUP(VALUE(OU[[#This Row],[Master CC]]),FC_Master[Cost Center],FC_Master[rollup FC '#],OU[[#This Row],[Master CC]])","v":1220010001}]
[122,"122Civil Courts-455th District Court",10054527,"122-455DCt",null,null,null,null,null,null,null,null,null,null,null,null,null,null,null,"1","2017-10-01","9999-12-31","2017-09-13","BROUSSC","122Civil Courts-459th District Court","10052502","122-459DCt","1220280001",122,{"$f":"_xlfn.XLOOKUP(VALUE(OU[[#This Row],[Master CC]]),FC_Master[Cost Center],FC_Master[rollup FC '#],OU[[#This Row],[Master CC]])","v":1220010001}]
[122,"122Civil Courts-459th District Court",10052502,"122-459DCt",null,null,null,null,null,null,null,null,null,null,null,null,null,null,null,"1","1950-01-01","9999-12-31","2012-05-15","DATACONVERSI","122Civil Courts-53rd District Court","10000179","122-53DCt","1220110001",122,{"$f":"_xlfn.XLOOKUP(VALUE(OU[[#This Row],[Master CC]]),FC_Master[Cost Center],FC_Master[rollup FC '#],OU[[#This Row],[Master CC]])","v":1220010001}]
[122,"122Civil Courts-53rd District Court",10000179,"122-53DCt",null,null,null,null,null,null,null,null,null,null,null,null,null,null,null,"1","1950-01-01","9999-12-31","2012-05-15","DATACONVERSI","122Civil Courts-98th District Court","10000178","122-98DCt","1220120001",122,{"$f":"_xlfn.XLOOKUP(VALUE(OU[[#This Row],[Master CC]]),FC_Master[Cost Center],FC_Master[rollup FC '#],OU[[#This Row],[Master CC]])","v":1220010001}]
[122,"122Civil Courts-98th District Court",10000178,"122-98DCt",null,null,null,null,null,null,null,null,null,null,null,null,null,null,null,"1","1950-01-01","9999-12-31","2012-05-15","DATACONVERSI","122Civil Courts-Associate Judge Arth","10000188","122AssocJg3","1220150001",122,{"$f":"_xlfn.XLOOKUP(VALUE(OU[[#This Row],[Master CC]]),FC_Master[Cost Center],FC_Master[rollup FC '#],OU[[#This Row],[Master CC]])","v":1220010001}]
[122,"122Civil Courts-Associate Judge Arth",10000188,"122AssocJg3",null,null,null,null,null,null,null,null,null,null,null,null,null,null,null,"1","1950-01-01","9999-12-31","2012-05-15","DATACONVERSI","122Civil Courts-Associate Judge Hathcock","10000186","122AssocJg1","1220130001",122,{"$f":"_xlfn.XLOOKUP(VALUE(OU[[#This Row],[Master CC]]),FC_Master[Cost Center],FC_Master[rollup FC '#],OU[[#This Row],[Master CC]])","v":1220010001}]
[122,"122Civil Courts-Associate Judge Hathcock",10000186,"122AssocJg1",null,null,null,null,null,null,null,null,null,null,null,null,null,null,null,"1","1950-01-01","9999-12-31","2012-05-15","DATACONVERSI","122Civil Courts-County Court at Law #1","10000189","122CoCt1","1220160001",122,{"$f":"_xlfn.XLOOKUP(VALUE(OU[[#This Row],[Master CC]]),FC_Master[Cost Center],FC_Master[rollup FC '#],OU[[#This Row],[Master CC]])","v":1220020001}]
[122,"122Civil Courts-County Court at Law #1",10000189,"122CoCt1",null,null,null,null,null,null,null,null,null,null,null,null,null,null,null,"1","1950-01-01","9999-12-31","2012-05-15","DATACONVERSI","122Civil Courts-County Court at Law #2","10000190","122CoCt2","1220170001",122,{"$f":"_xlfn.XLOOKUP(VALUE(OU[[#This Row],[Master CC]]),FC_Master[Cost Center],FC_Master[rollup FC '#],OU[[#This Row],[Master CC]])","v":1220020001}]
[122,"122Civil Courts-County Court at Law #2",10000190,"122CoCt2",null,null,null,null,null,null,null,null,null,null,null,null,null,null,null,"1","1950-01-01","9999-12-31","2012-05-15","DATACONVERSI","122Civil Courts-Courts Tech Support Team","10000783","122CtTchSp","1220190001",122,{"$f":"_xlfn.XLOOKUP(VALUE(OU[[#This Row],[Master CC]]),FC_Master[Cost Center],FC_Master[rollup FC '#],OU[[#This Row],[Master CC]])","v":1220010001}]
[122,"122Civil Courts-Courts Tech Support Team",10000783,"122CtTchSp",null,null,null,null,null,null,null,null,null,null,null,null,null,null,null,"1","1950-01-01","9999-12-31","2012-05-15","DATACONVERSI","122Civil Courts-Courts Technology Team","10000195","122CtCtTch","1220190001",122,{"$f":"_xlfn.XLOOKUP(VALUE(OU[[#This Row],[Master CC]]),FC_Master[Cost Center],FC_Master[rollup FC '#],OU[[#This Row],[Master CC]])","v":1220010001}]
[122,"122Civil Courts-Courts Technology Team",10000195,"122CtCtTch",null,null,null,null,null,null,null,null,null,null,null,null,null,null,null,"1","1950-01-01","9999-12-31","2012-05-15","DATACONVERSI","122Civil Courts-Ct Adm Ofc-Planning","10000194","122CtAdmPln","1220180001",122,{"$f":"_xlfn.XLOOKUP(VALUE(OU[[#This Row],[Master CC]]),FC_Master[Cost Center],FC_Master[rollup FC '#],OU[[#This Row],[Master CC]])","v":1220010001}]
[122,"122Civil Courts-Ct Adm Ofc-Planning",10000194,"122CtAdmPln",null,null,null,null,null,null,null,null,null,null,null,null,null,null,null,"1","1950-01-01","9999-12-31","2012-05-15","DATACONVERSI","122Civil Courts-Ct Administrator's Ofc","10000193","122CtAdm","1220180001",122,{"$f":"_xlfn.XLOOKUP(VALUE(OU[[#This Row],[Master CC]]),FC_Master[Cost Center],FC_Master[rollup FC '#],OU[[#This Row],[Master CC]])","v":1220010001}]
[122,"122Civil Courts-Ct Administrator's Ofc",10000193,"122CtAdm",null,null,null,null,null,null,null,null,null,null,null,null,null,null,null,"1","1950-01-01","9999-12-31","2012-05-15","DATACONVERSI","122Civil Courts-District Judges' Office","10000191","122DistJg","1220200001",122,{"$f":"_xlfn.XLOOKUP(VALUE(OU[[#This Row],[Master CC]]),FC_Master[Cost Center],FC_Master[rollup FC '#],OU[[#This Row],[Master CC]])","v":1220010001}]
[122,"122Civil Courts-District Judges' Office",10000191,"122DistJg",null,null,null,null,null,null,null,null,null,null,null,null,null,null,null,"1","2023-10-01","9999-12-31","2023-10-18","MILLIGA","122Civil Courts-Financial","10056652","122Fin","1220200001",122,{"$f":"_xlfn.XLOOKUP(VALUE(OU[[#This Row],[Master CC]]),FC_Master[Cost Center],FC_Master[rollup FC '#],OU[[#This Row],[Master CC]])","v":1220010001}]
[122,"122Civil Courts-Financial",10056652,"122Fin",null,null,null,null,null,null,null,null,null,null,null,null,null,null,null,"1","1950-01-01","9999-12-31","2012-05-15","DATACONVERSI","122Civil Courts-Planning","10000192","122Pln","1220200001",122,{"$f":"_xlfn.XLOOKUP(VALUE(OU[[#This Row],[Master CC]]),FC_Master[Cost Center],FC_Master[rollup FC '#],OU[[#This Row],[Master CC]])","v":1220010001}]
[122,"122Civil Courts-Planning",10000192,"122Pln",null,null,null,null,null,null,null,null,null,null,null,null,null,null,null,"1","1950-01-01","9999-12-31","2012-05-15","DATACONVERSI","122Civil Courts-Substitute Ct Bailiffs","10000196","122SubCtBf","1220210001",122,{"$f":"_xlfn.XLOOKUP(VALUE(OU[[#This Row],[Master CC]]),FC_Master[Cost Center],FC_Master[rollup FC '#],OU[[#This Row],[Master CC]])","v":1220010001}]
[122,"122Civil Courts-Substitute Ct Bailiffs",10000196,"122SubCtBf",null,null,null,null,null,null,null,null,null,null,null,null,null,null,null,"1","2019-04-16","9999-12-31","2019-04-26","VILLARG","122Civil Cts-Associate Judge De La Llata","10000187","122AssocJg2","1220140001",122,{"$f":"_xlfn.XLOOKUP(VALUE(OU[[#This Row],[Master CC]]),FC_Master[Cost Center],FC_Master[rollup FC '#],OU[[#This Row],[Master CC]])","v":1220010001}]
[122,"122Civil Cts-Associate Judge De La Llata",10000187,"122AssocJg2",null,null,null,null,null,null,null,null,null,null,null,null,null,null,null,"1","2021-01-27","9999-12-31","2021-02-02","MILLIGA","123 DA Trial Asst Dir","10054601","123DATrlAD","1230010001",123,{"$f":"_xlfn.XLOOKUP(VALUE(OU[[#This Row],[Master CC]]),FC_Master[Cost Center],FC_Master[rollup FC '#],OU[[#This Row],[Master CC]])","v":1230010001}]
[123,"123 DA Trial Asst Dir",10054601,"123DATrlAD",null,null,null,null,null,null,null,null,null,null,null,null,null,null,null,"1","1950-01-01","9999-12-31","2012-05-15","DATACONVERSI","123DA 147th District Court","10000231","123-147DCt","1230010001",123,{"$f":"_xlfn.XLOOKUP(VALUE(OU[[#This Row],[Master CC]]),FC_Master[Cost Center],FC_Master[rollup FC '#],OU[[#This Row],[Master CC]])","v":1230010001}]
[123,"123DA 147th District Court",10000231,"123-147DCt",null,null,null,null,null,null,null,null,null,null,null,null,null,null,null,"1","1950-01-01","9999-12-31","2012-05-15","DATACONVERSI","123DA 167th District Court","10000226","123-167DCt","1230010001",123,{"$f":"_xlfn.XLOOKUP(VALUE(OU[[#This Row],[Master CC]]),FC_Master[Cost Center],FC_Master[rollup FC '#],OU[[#This Row],[Master CC]])","v":1230010001}]
[123,"123DA 167th District Court",10000226,"123-167DCt",null,null,null,null,null,null,null,null,null,null,null,null,null,null,null,"1","1950-01-01","9999-12-31","2012-05-15","DATACONVERSI","123DA 1st Assistant","10000198","123DA1stAsst","1230010001",123,{"$f":"_xlfn.XLOOKUP(VALUE(OU[[#This Row],[Master CC]]),FC_Master[Cost Center],FC_Master[rollup FC '#],OU[[#This Row],[Master CC]])","v":1230010001}]
[123,"123DA 1st Assistant",10000198,"123DA1stAsst",null,null,null,null,null,null,null,null,null,null,null,null,null,null,null,"1","1950-01-01","9999-12-31","2012-05-15","DATACONVERSI","123DA 299th District Court","10000227","123-299DCt","1230010001",123,{"$f":"_xlfn.XLOOKUP(VALUE(OU[[#This Row],[Master CC]]),FC_Master[Cost Center],FC_Master[rollup FC '#],OU[[#This Row],[Master CC]])","v":1230010001}]
[123,"123DA 299th District Court",10000227,"123-299DCt",null,null,null,null,null,null,null,null,null,null,null,null,null,null,null,"1","1950-01-01","9999-12-31","2012-05-15","DATACONVERSI","123DA 331st District Court","10000228","123-331DCt","1230010001",123,{"$f":"_xlfn.XLOOKUP(VALUE(OU[[#This Row],[Master CC]]),FC_Master[Cost Center],FC_Master[rollup FC '#],OU[[#This Row],[Master CC]])","v":1230010001}]
[123,"123DA 331st District Court",10000228,"123-331DCt",null,null,null,null,null,null,null,null,null,null,null,null,null,null,null,"1","1950-01-01","9999-12-31","2012-05-15","DATACONVERSI","123DA 390th District Court","10000229","123-390DCt","1230010001",123,{"$f":"_xlfn.XLOOKUP(VALUE(OU[[#This Row],[Master CC]]),FC_Master[Cost Center],FC_Master[rollup FC '#],OU[[#This Row],[Master CC]])","v":1230010001}]
[123,"123DA 390th District Court",10000229,"123-390DCt",null,null,null,null,null,null,null,null,null,null,null,null,null,null,null,"1","1950-01-01","9999-12-31","2012-05-15","DATACONVERSI","123DA 403rd District Court","10000230","123-403DCt","1230010001",123,{"$f":"_xlfn.XLOOKUP(VALUE(OU[[#This Row],[Master CC]]),FC_Master[Cost Center],FC_Master[rollup FC '#],OU[[#This Row],[Master CC]])","v":1230010001}]
[123,"123DA 403rd District Court",10000230,"123-403DCt",null,null,null,null,null,null,null,null,null,null,null,null,null,null,null,"1","1950-01-01","9999-12-31","2012-05-15","DATACONVERSI","123DA 427th District Court","10000225","123-427DCt","1230010001",123,{"$f":"_xlfn.XLOOKUP(VALUE(OU[[#This Row],[Master CC]]),FC_Master[Cost Center],FC_Master[rollup FC '#],OU[[#This Row],[Master CC]])","v":1230010001}]
[123,"123DA 427th District Court",10000225,"123-427DCt",null,null,null,null,null,null,null,null,null,null,null,null,null,null,null,"1","2015-08-11","9999-12-31","2015-08-14","RAMIREV","123DA 450th Dist CT","10051501","123DADistCT","1230010001",123,{"$f":"_xlfn.XLOOKUP(VALUE(OU[[#This Row],[Master CC]]),FC_Master[Cost Center],FC_Master[rollup FC '#],OU[[#This Row],[Master CC]])","v":1230010001}]
[123,"123DA 450th Dist CT",10051501,"123DADistCT",null,null,null,null,null,null,null,null,null,null,null,null,null,null,null,"1","2019-06-25","9999-12-31","2019-06-25","GIPSONK","123DA 460th","10053651","123DA 460th","1230010001",123,{"$f":"_xlfn.XLOOKUP(VALUE(OU[[#This Row],[Master CC]]),FC_Master[Cost Center],FC_Master[rollup FC '#],OU[[#This Row],[Master CC]])","v":1230010001}]
[123,"123DA 460th",10053651,"123DA 460th",null,null,null,null,null,null,null,null,null,null,null,null,null,null,null,"1","2017-02-01","9999-12-31","2017-03-03","GIPSONK","123DA Adm Support","10052254","123AdmSp","1230010001",123,{"$f":"_xlfn.XLOOKUP(VALUE(OU[[#This Row],[Master CC]]),FC_Master[Cost Center],FC_Master[rollup FC '#],OU[[#This Row],[Master CC]])","v":1230010001}]
[123,"123DA Adm Support",10052254,"123AdmSp",null,null,null,null,null,null,null,null,null,null,null,null,null,null,null,"1","2015-05-16","9999-12-31","2015-05-29","RAMIREV","123DA Administration","10000199","123Adm","1230010001",123,{"$f":"_xlfn.XLOOKUP(VALUE(OU[[#This Row],[Master CC]]),FC_Master[Cost Center],FC_Master[rollup FC '#],OU[[#This Row],[Master CC]])","v":1230010001}]
[123,"123DA Administration",10000199,"123Adm",null,null,null,null,null,null,null,null,null,null,null,null,null,null,null,"1","2021-03-01","9999-12-31","2021-03-04","BROUSSC","123DA Appellate","10000205","123Applt","1230010001",123,{"$f":"_xlfn.XLOOKUP(VALUE(OU[[#This Row],[Master CC]]),FC_Master[Cost Center],FC_Master[rollup FC '#],OU[[#This Row],[Master CC]])","v":1230010001}]
[123,"123DA Appellate",10000205,"123Applt",null,null,null,null,null,null,null,null,null,null,null,null,null,null,null,"1","2021-12-03","9999-12-31","2021-12-16","ALFAROA","123DA Child Abuse","10000238","123DAChAbs","1230010001",123,{"$f":"_xlfn.XLOOKUP(VALUE(OU[[#This Row],[Master CC]]),FC_Master[Cost Center],FC_Master[rollup FC '#],OU[[#This Row],[Master CC]])","v":1230010001}]
[123,"123DA Child Abuse",10000238,"123DAChAbs",null,null,null,null,null,null,null,null,null,null,null,null,null,null,null,"2","2021-12-03","9999-12-31","2021-12-15","ALFAROA","123DA Child Abuse","10000238","123DAChAbs","1230010001",123,{"$f":"_xlfn.XLOOKUP(VALUE(OU[[#This Row],[Master CC]]),FC_Master[Cost Center],FC_Master[rollup FC '#],OU[[#This Row],[Master CC]])","v":1230010001}]
[123,"123DA Child Abuse",10000238,"123DAChAbs",null,null,null,null,null,null,null,null,null,null,null,null,null,null,null,"1","2021-01-27","9999-12-31","2021-02-02","MILLIGA","123DA Civil Rights","10052253","123CivRights","1230010001",123,{"$f":"_xlfn.XLOOKUP(VALUE(OU[[#This Row],[Master CC]]),FC_Master[Cost Center],FC_Master[rollup FC '#],OU[[#This Row],[Master CC]])","v":1230010001}]
[123,"123DA Civil Rights",10052253,"123CivRights",null,null,null,null,null,null,null,null,null,null,null,null,null,null,null,"1","2021-03-01","9999-12-31","2021-03-05","MILLIGA","123DA Conviction Integrity","10054652","123DACI","1230010001",123,{"$f":"_xlfn.XLOOKUP(VALUE(OU[[#This Row],[Master CC]]),FC_Master[Cost Center],FC_Master[rollup FC '#],OU[[#This Row],[Master CC]])","v":1230010001}]
[123,"123DA Conviction Integrity",{"$f":"VALUE(Z450)","v":10054652},"123DACI",null,null,null,null,null,null,null,null,null,null,null,null,null,null,null,"1","2021-03-01","9999-12-31","2021-03-04","BROUSSC","123DA County Financial","10000202","123CoFin","1230010001",123,{"$f":"_xlfn.XLOOKUP(VALUE(OU[[#This Row],[Master CC]]),FC_Master[Cost Center],FC_Master[rollup FC '#],OU[[#This Row],[Master CC]])","v":1230010001}]
[{"$f":"AC451","v":123},{"$f":"Y451","v":"123DA County Financial"},10000202,{"$f":"AA451","v":"123CoFin"},null,null,null,null,null,null,null,null,null,null,null,null,null,null,null,"1","1950-01-01","9999-12-31","2012-05-15","DATACONVERSI","123DA County Investigations","10000219","123CoInvtgn","1230010001",123,{"$f":"_xlfn.XLOOKUP(VALUE(OU[[#This Row],[Master CC]]),FC_Master[Cost Center],FC_Master[rollup FC '#],OU[[#This Row],[Master CC]])","v":1230010001}]
[123,"123DA County Investigations",10000219,"123CoInvtgn",null,null,null,null,null,null,null,null,null,null,null,null,null,null,null,"1","1950-01-01","9999-12-31","2012-05-15","DATACONVERSI","123DA Courts","10000224","123Ct","1230010001",123,{"$f":"_xlfn.XLOOKUP(VALUE(OU[[#This Row],[Master CC]]),FC_Master[Cost Center],FC_Master[rollup FC '#],OU[[#This Row],[Master CC]])","v":1230010001}]
[123,"123DA Courts",10000224,"123Ct",null,null,null,null,null,null,null,null,null,null,null,null,null,null,null,"1","2021-12-03","9999-12-31","2021-12-13","MILLIGA","123DA CRU","10055101","123DACRU","1230010001",123,{"$f":"_xlfn.XLOOKUP(VALUE(OU[[#This Row],[Master CC]]),FC_Master[Cost Center],FC_Master[rollup FC '#],OU[[#This Row],[Master CC]])","v":1230010001}]
[123,"123DA CRU",10055101,"123DACRU",null,null,null,null,null,null,null,null,null,null,null,null,null,null,null,"1","2021-12-03","9999-12-31","2021-12-13","MILLIGA","123DA CRU Admin","10055102","123DACRUAdm","1230010001",123,{"$f":"_xlfn.XLOOKUP(VALUE(OU[[#This Row],[Master CC]]),FC_Master[Cost Center],FC_Master[rollup FC '#],OU[[#This Row],[Master CC]])","v":1230010001}]
[123,"123DA CRU Admin",10055102,"123DACRUAdm",null,null,null,null,null,null,null,null,null,null,null,null,null,null,null,"1","2021-01-01","9999-12-31","2021-01-12","MILLIGA","123DA Digital Forensics","10053276","123DFrnc","1230010001",123,{"$f":"_xlfn.XLOOKUP(VALUE(OU[[#This Row],[Master CC]]),FC_Master[Cost Center],FC_Master[rollup FC '#],OU[[#This Row],[Master CC]])","v":1230010001}]
[123,"123DA Digital Forensics",10053276,"123DFrnc",null,null,null,null,null,null,null,null,null,null,null,null,null,null,null,"5","2020-01-01","9999-12-31","2021-01-11","MILLIGA","123DA Digital Forensics","10053276","123DFrnc","1230010001",123,{"$f":"_xlfn.XLOOKUP(VALUE(OU[[#This Row],[Master CC]]),FC_Master[Cost Center],FC_Master[rollup FC '#],OU[[#This Row],[Master CC]])","v":1230010001}]
[123,"123DA Digital Forensics",10053276,"123DFrnc",null,null,null,null,null,null,null,null,null,null,null,null,null,null,null,"1","1950-01-01","9999-12-31","2012-05-15","DATACONVERSI","123DA District Attorney","10000197","123DA","1230010001",123,{"$f":"_xlfn.XLOOKUP(VALUE(OU[[#This Row],[Master CC]]),FC_Master[Cost Center],FC_Master[rollup FC '#],OU[[#This Row],[Master CC]])","v":1230010001}]
[123,"123DA District Attorney",10000197,"123DA",null,null,null,null,null,null,null,null,null,null,null,null,null,null,null,"1","2021-12-03","9999-12-31","2021-12-13","MILLIGA","123DA Diversion & Youth Justice","10055127","123DADYJ","1230010001",123,{"$f":"_xlfn.XLOOKUP(VALUE(OU[[#This Row],[Master CC]]),FC_Master[Cost Center],FC_Master[rollup FC '#],OU[[#This Row],[Master CC]])","v":1230010001}]
[123,"123DA Diversion & Youth Justice",10055127,"123DADYJ",null,null,null,null,null,null,null,null,null,null,null,null,null,null,null,"1","2021-01-27","9999-12-31","2021-02-02","MILLIGA","123DA Diversion Adm","10053277","123DADvAdm","1230010001",123,{"$f":"_xlfn.XLOOKUP(VALUE(OU[[#This Row],[Master CC]]),FC_Master[Cost Center],FC_Master[rollup FC '#],OU[[#This Row],[Master CC]])","v":1230010001}]
[123,"123DA Diversion Adm",10053277,"123DADvAdm",null,null,null,null,null,null,null,null,null,null,null,null,null,null,null,"1","1950-01-01","9999-12-31","2012-05-15","DATACONVERSI","123DA Family Justice Civil Support","10000240","123FJCSp","1230020001",123,{"$f":"_xlfn.XLOOKUP(VALUE(OU[[#This Row],[Master CC]]),FC_Master[Cost Center],FC_Master[rollup FC '#],OU[[#This Row],[Master CC]])","v":1230020001}]
[123,"123DA Family Justice Civil Support",10000240,"123FJCSp",null,null,null,null,null,null,null,null,null,null,null,null,null,null,null,"1","1950-01-01","9999-12-31","2012-05-15","DATACONVERSI","123DA General State-Texas Mutual Ins","10000214","123TxIns","1230040001",123,{"$f":"_xlfn.XLOOKUP(VALUE(OU[[#This Row],[Master CC]]),FC_Master[Cost Center],FC_Master[rollup FC '#],OU[[#This Row],[Master CC]])","v":1230040001}]
[123,"123DA General State-Texas Mutual Ins",10000214,"123TxIns",null,null,null,null,null,null,null,null,null,null,null,null,null,null,null,"1","2021-01-27","9999-12-31","2021-02-02","MILLIGA","123DA Grand Jury Attorney","10000232","123GJyAtty","1230010001",123,{"$f":"_xlfn.XLOOKUP(VALUE(OU[[#This Row],[Master CC]]),FC_Master[Cost Center],FC_Master[rollup FC '#],OU[[#This Row],[Master CC]])","v":1230010001}]
[123,"123DA Grand Jury Attorney",10000232,"123GJyAtty",null,null,null,null,null,null,null,null,null,null,null,null,null,null,null,"1","2021-01-27","9999-12-31","2021-02-02","MILLIGA","123DA Grand Jury Support","10000233","123GJySp","1230010001",123,{"$f":"_xlfn.XLOOKUP(VALUE(OU[[#This Row],[Master CC]]),FC_Master[Cost Center],FC_Master[rollup FC '#],OU[[#This Row],[Master CC]])","v":1230010001}]
[123,"123DA Grand Jury Support",10000233,"123GJySp",null,null,null,null,null,null,null,null,null,null,null,null,null,null,null,"1","1950-01-01","9999-12-31","2012-05-15","DATACONVERSI","123DA Hot Checks","10000203","123HotCks","1230010001",123,{"$f":"_xlfn.XLOOKUP(VALUE(OU[[#This Row],[Master CC]]),FC_Master[Cost Center],FC_Master[rollup FC '#],OU[[#This Row],[Master CC]])","v":1230010001}]
[123,"123DA Hot Checks",10000203,"123HotCks",null,null,null,null,null,null,null,null,null,null,null,null,null,null,null,"1","1950-01-01","9999-12-31","2012-05-15","DATACONVERSI","123DA Information Technology","10000204","123IT","1230010001",123,{"$f":"_xlfn.XLOOKUP(VALUE(OU[[#This Row],[Master CC]]),FC_Master[Cost Center],FC_Master[rollup FC '#],OU[[#This Row],[Master CC]])","v":1230010001}]
[123,"123DA Information Technology",10000204,"123IT",null,null,null,null,null,null,null,null,null,null,null,null,null,null,null,"1","2021-01-27","9999-12-31","2021-02-02","MILLIGA","123DA Investigations","10000218","123Invtgn","1230010001",123,{"$f":"_xlfn.XLOOKUP(VALUE(OU[[#This Row],[Master CC]]),FC_Master[Cost Center],FC_Master[rollup FC '#],OU[[#This Row],[Master CC]])","v":1230010001}]
[123,"123DA Investigations",10000218,"123Invtgn",null,null,null,null,null,null,null,null,null,null,null,null,null,null,null,"1","2021-01-01","9999-12-31","2021-01-12","MILLIGA","123DA Juvenile","10000237","123Juvenile","1230030001",123,{"$f":"_xlfn.XLOOKUP(VALUE(OU[[#This Row],[Master CC]]),FC_Master[Cost Center],FC_Master[rollup FC '#],OU[[#This Row],[Master CC]])","v":1230030001}]
[123,"123DA Juvenile",10000237,"123Juvenile",null,null,null,null,null,null,null,null,null,null,null,null,null,null,null,"1","2021-12-03","9999-12-31","2021-12-16","MILLIGA","123DA Mental Health","10055201","123DAMtHlh","1230010001",123,{"$f":"_xlfn.XLOOKUP(VALUE(OU[[#This Row],[Master CC]]),FC_Master[Cost Center],FC_Master[rollup FC '#],OU[[#This Row],[Master CC]])","v":1230010001}]
[123,"123DA Mental Health",10055201,"123DAMtHlh",null,null,null,null,null,null,null,null,null,null,null,null,null,null,null,"1","1950-01-01","9999-12-31","2012-05-15","DATACONVERSI","123DA Motor Fuels Tax Fraud","10000212","123MFTF","1230060001",123,{"$f":"_xlfn.XLOOKUP(VALUE(OU[[#This Row],[Master CC]]),FC_Master[Cost Center],FC_Master[rollup FC '#],OU[[#This Row],[Master CC]])","v":1230060001}]
[123,"123DA Motor Fuels Tax Fraud",10000212,"123MFTF",null,null,null,null,null,null,null,null,null,null,null,null,null,null,null,"1","2021-03-01","9999-12-31","2021-03-04","BROUSSC","123DA Policy & Diversion","10053626","123DAPlcyDv","1230010001",123,{"$f":"_xlfn.XLOOKUP(VALUE(OU[[#This Row],[Master CC]]),FC_Master[Cost Center],FC_Master[rollup FC '#],OU[[#This Row],[Master CC]])","v":1230010001}]
[123,"123DA Policy & Diversion",10053626,"123DAPlcyDv",null,null,null,null,null,null,null,null,null,null,null,null,null,null,null,"1","2016-01-15","9999-12-31","2016-01-29","RAMIREV","123DA Public Integrity Unit","10000213","123PIU","1230060001",123,{"$f":"_xlfn.XLOOKUP(VALUE(OU[[#This Row],[Master CC]]),FC_Master[Cost Center],FC_Master[rollup FC '#],OU[[#This Row],[Master CC]])","v":1230060001}]
[123,"123DA Public Integrity Unit",10000213,"123PIU",null,null,null,null,null,null,null,null,null,null,null,null,null,null,null,"1","2021-01-01","9999-12-31","2021-01-12","MILLIGA","123DA Records","10000201","123Rcd","1230010001",123,{"$f":"_xlfn.XLOOKUP(VALUE(OU[[#This Row],[Master CC]]),FC_Master[Cost Center],FC_Master[rollup FC '#],OU[[#This Row],[Master CC]])","v":1230010001}]
[123,"123DA Records",10000201,"123Rcd",null,null,null,null,null,null,null,null,null,null,null,null,null,null,null,"1","2016-11-01","9999-12-31","2016-11-14","RAMIREV","123DA Sexual Assault","10052076","123SxlAsslt","1230010001",123,{"$f":"_xlfn.XLOOKUP(VALUE(OU[[#This Row],[Master CC]]),FC_Master[Cost Center],FC_Master[rollup FC '#],OU[[#This Row],[Master CC]])","v":1230010001}]
[123,"123DA Sexual Assault",10052076,"123SxlAsslt",null,null,null,null,null,null,null,null,null,null,null,null,null,null,null,"1","1950-01-01","9999-12-31","2012-05-15","DATACONVERSI","123DA Special Prosecution","10000210","123SPs","1230060001",123,{"$f":"_xlfn.XLOOKUP(VALUE(OU[[#This Row],[Master CC]]),FC_Master[Cost Center],FC_Master[rollup FC '#],OU[[#This Row],[Master CC]])","v":1230060001}]
[123,"123DA Special Prosecution",10000210,"123SPs",null,null,null,null,null,null,null,null,null,null,null,null,null,null,null,"1","1950-01-01","9999-12-31","2012-05-15","DATACONVERSI","123DA Special Prosecution Support","10000211","123SPsSp","1230060001",123,{"$f":"_xlfn.XLOOKUP(VALUE(OU[[#This Row],[Master CC]]),FC_Master[Cost Center],FC_Master[rollup FC '#],OU[[#This Row],[Master CC]])","v":1230060001}]
[123,"123DA Special Prosecution Support",10000211,"123SPsSp",null,null,null,null,null,null,null,null,null,null,null,null,null,null,null,"1","2017-02-01","9999-12-31","2017-03-01","VILLARG","123DA Special Victim Unit","10000234","123SVU","1230010001",123,{"$f":"_xlfn.XLOOKUP(VALUE(OU[[#This Row],[Master CC]]),FC_Master[Cost Center],FC_Master[rollup FC '#],OU[[#This Row],[Master CC]])","v":1230010001}]
[123,"123DA Special Victim Unit",10000234,"123SVU",null,null,null,null,null,null,null,null,null,null,null,null,null,null,null,"1","2017-02-01","9999-12-31","2017-03-01","VILLARG","123DA SVU Adm","10000241","123SVUAdm","1230010001",123,{"$f":"_xlfn.XLOOKUP(VALUE(OU[[#This Row],[Master CC]]),FC_Master[Cost Center],FC_Master[rollup FC '#],OU[[#This Row],[Master CC]])","v":1230010001}]
[123,"123DA SVU Adm",10000241,"123SVUAdm",null,null,null,null,null,null,null,null,null,null,null,null,null,null,null,"1","2019-12-16","9999-12-31","2019-12-20","BROUSSC","123DA SVU Asst Dir","10054026","123DDirAsst","1230010001",123,{"$f":"_xlfn.XLOOKUP(VALUE(OU[[#This Row],[Master CC]]),FC_Master[Cost Center],FC_Master[rollup FC '#],OU[[#This Row],[Master CC]])","v":1230010001}]
[123,"123DA SVU Asst Dir",10054026,"123DDirAsst",null,null,null,null,null,null,null,null,null,null,null,null,null,null,null,"1","2021-01-01","9999-12-31","2021-01-12","MILLIGA","123DA SVU Civil","10000239","123SVUCiv","1230020001",123,{"$f":"_xlfn.XLOOKUP(VALUE(OU[[#This Row],[Master CC]]),FC_Master[Cost Center],FC_Master[rollup FC '#],OU[[#This Row],[Master CC]])","v":1230020001}]
[123,"123DA SVU Civil",10000239,"123SVUCiv",null,null,null,null,null,null,null,null,null,null,null,null,null,null,null,"1","2021-01-01","9999-12-31","2021-01-12","MILLIGA","123DA SVU CPT","10000235","123SVUCPT","1230010001",123,{"$f":"_xlfn.XLOOKUP(VALUE(OU[[#This Row],[Master CC]]),FC_Master[Cost Center],FC_Master[rollup FC '#],OU[[#This Row],[Master CC]])","v":1230010001}]
[123,"123DA SVU CPT",10000235,"123SVUCPT",null,null,null,null,null,null,null,null,null,null,null,null,null,null,null,"1","2019-12-16","9999-12-31","2019-12-20","BROUSSC","123DA SVU Family Violence","10052251","123SVUFamVlc","1230010001",123,{"$f":"_xlfn.XLOOKUP(VALUE(OU[[#This Row],[Master CC]]),FC_Master[Cost Center],FC_Master[rollup FC '#],OU[[#This Row],[Master CC]])","v":1230010001}]
[123,"123DA SVU Family Violence",10052251,"123SVUFamVlc",null,null,null,null,null,null,null,null,null,null,null,null,null,null,null,"1","2017-02-01","9999-12-31","2017-03-03","GIPSONK","123DA SVU Sexual Asslt","10052252","123SxlAsslt","1230010001",123,{"$f":"_xlfn.XLOOKUP(VALUE(OU[[#This Row],[Master CC]]),FC_Master[Cost Center],FC_Master[rollup FC '#],OU[[#This Row],[Master CC]])","v":1230010001}]
[123,"123DA SVU Sexual Asslt",10052252,"123SxlAsslt",null,null,null,null,null,null,null,null,null,null,null,null,null,null,null,"1","2017-09-13","9999-12-31","2017-09-15","GIPSONK","123DA SVU Support","10052526","123SVUSp","1230010001",123,{"$f":"_xlfn.XLOOKUP(VALUE(OU[[#This Row],[Master CC]]),FC_Master[Cost Center],FC_Master[rollup FC '#],OU[[#This Row],[Master CC]])","v":1230010001}]
[123,"123DA SVU Support",10052526,"123SVUSp",null,null,null,null,null,null,null,null,null,null,null,null,null,null,null,"1","2021-12-03","9999-12-31","2021-12-13","MILLIGA","123DA Training","10055126","123DATrn","1230010001",123,{"$f":"_xlfn.XLOOKUP(VALUE(OU[[#This Row],[Master CC]]),FC_Master[Cost Center],FC_Master[rollup FC '#],OU[[#This Row],[Master CC]])","v":1230010001}]
[123,"123DA Training",10055126,"123DATrn",null,null,null,null,null,null,null,null,null,null,null,null,null,null,null,"1","1950-01-01","9999-12-31","2012-05-15","DATACONVERSI","123DA Trial Bureau","10000221","123TrBr","1230010001",123,{"$f":"_xlfn.XLOOKUP(VALUE(OU[[#This Row],[Master CC]]),FC_Master[Cost Center],FC_Master[rollup FC '#],OU[[#This Row],[Master CC]])","v":1230010001}]
[123,"123DA Trial Bureau",10000221,"123TrBr",null,null,null,null,null,null,null,null,null,null,null,null,null,null,null,"1","2017-02-01","9999-12-31","2017-03-03","GIPSONK","123DA Trial Bureau Adm","10052226","123TrBrAdm","1230010001",123,{"$f":"_xlfn.XLOOKUP(VALUE(OU[[#This Row],[Master CC]]),FC_Master[Cost Center],FC_Master[rollup FC '#],OU[[#This Row],[Master CC]])","v":1230010001}]
[123,"123DA Trial Bureau Adm",10052226,"123TrBrAdm",null,null,null,null,null,null,null,null,null,null,null,null,null,null,null,"1","1950-01-01","9999-12-31","2012-05-15","DATACONVERSI","123DA Trial Bureau Support","10000222","123TrBrSp","1230010001",123,{"$f":"_xlfn.XLOOKUP(VALUE(OU[[#This Row],[Master CC]]),FC_Master[Cost Center],FC_Master[rollup FC '#],OU[[#This Row],[Master CC]])","v":1230010001}]
[123,"123DA Trial Bureau Support",10000222,"123TrBrSp",null,null,null,null,null,null,null,null,null,null,null,null,null,null,null,"1","1950-01-01","9999-12-31","2012-05-15","DATACONVERSI","123DA Unassigned","10000718","123Unasg","1230010001",123,{"$f":"_xlfn.XLOOKUP(VALUE(OU[[#This Row],[Master CC]]),FC_Master[Cost Center],FC_Master[rollup FC '#],OU[[#This Row],[Master CC]])","v":1230010001}]
[123,"123DA Unassigned",10000718,"123Unasg",null,null,null,null,null,null,null,null,null,null,null,null,null,null,null,"1","2021-01-01","9999-12-31","2021-01-12","MILLIGA","123DA Victim Witness","10000216","123VctmWns","1230010001",123,{"$f":"_xlfn.XLOOKUP(VALUE(OU[[#This Row],[Master CC]]),FC_Master[Cost Center],FC_Master[rollup FC '#],OU[[#This Row],[Master CC]])","v":1230010001}]
[123,"123DA Victim Witness",10000216,"123VctmWns",null,null,null,null,null,null,null,null,null,null,null,null,null,null,null,"1","1950-01-01","9999-12-31","2012-05-15","DATACONVERSI","123DA Victim Witness Support","10000217","123VctmWnsSp","1230010001",123,{"$f":"_xlfn.XLOOKUP(VALUE(OU[[#This Row],[Master CC]]),FC_Master[Cost Center],FC_Master[rollup FC '#],OU[[#This Row],[Master CC]])","v":1230010001}]
[123,"123DA Victim Witness Support",10000217,"123VctmWnsSp",null,null,null,null,null,null,null,null,null,null,null,null,null,null,null,"1","1950-01-01","9999-12-31","2012-05-15","DATACONVERSI","123DA White Collar Crime","10000209","123WCC","1230010001",123,{"$f":"_xlfn.XLOOKUP(VALUE(OU[[#This Row],[Master CC]]),FC_Master[Cost Center],FC_Master[rollup FC '#],OU[[#This Row],[Master CC]])","v":1230010001}]
[123,"123DA White Collar Crime",10000209,"123WCC",null,null,null,null,null,null,null,null,null,null,null,null,null,null,null,"1","2017-02-01","9999-12-31","2017-03-01","VILLARG","123DA Workers Comp Fraud Unit","10000215","123WCFU","1230060001",123,{"$f":"_xlfn.XLOOKUP(VALUE(OU[[#This Row],[Master CC]]),FC_Master[Cost Center],FC_Master[rollup FC '#],OU[[#This Row],[Master CC]])","v":1230060001}]
[123,"123DA Workers Comp Fraud Unit",10000215,"123WCFU",null,null,null,null,null,null,null,null,null,null,null,null,null,null,null,"1","2015-10-01","9999-12-31","2015-10-22","BROUSSC","124Crim Courts County Court at Law #9","10051626","124CoCt9","1240470001",124,{"$f":"_xlfn.XLOOKUP(VALUE(OU[[#This Row],[Master CC]]),FC_Master[Cost Center],FC_Master[rollup FC '#],OU[[#This Row],[Master CC]])","v":1240110001}]
[124,"124Crim Courts County Court at Law #9",10051626,"124CoCt9",null,null,null,null,null,null,null,null,null,null,null,null,null,null,null,"1","1950-01-01","9999-12-31","2012-05-15","DATACONVERSI","124Crm Courts","10000723","124CrmCt","1240010001",124,{"$f":"_xlfn.XLOOKUP(VALUE(OU[[#This Row],[Master CC]]),FC_Master[Cost Center],FC_Master[rollup FC '#],OU[[#This Row],[Master CC]])","v":1240010001}]
[124,"124Crm Courts",10000723,"124CrmCt",null,null,null,null,null,null,null,null,null,null,null,null,null,null,null,"1","1950-01-01","9999-12-31","2012-05-15","DATACONVERSI","124Crm Courts 147th District Court","10000261","124-147DCt","1240020001",124,{"$f":"_xlfn.XLOOKUP(VALUE(OU[[#This Row],[Master CC]]),FC_Master[Cost Center],FC_Master[rollup FC '#],OU[[#This Row],[Master CC]])","v":1240010001}]
[124,"124Crm Courts 147th District Court",10000261,"124-147DCt",null,null,null,null,null,null,null,null,null,null,null,null,null,null,null,"1","1950-01-01","9999-12-31","2012-05-15","DATACONVERSI","124Crm Courts 167th District Court","10000259","124-167DCt","1240030001",124,{"$f":"_xlfn.XLOOKUP(VALUE(OU[[#This Row],[Master CC]]),FC_Master[Cost Center],FC_Master[rollup FC '#],OU[[#This Row],[Master CC]])","v":1240010001}]
[124,"124Crm Courts 167th District Court",10000259,"124-167DCt",null,null,null,null,null,null,null,null,null,null,null,null,null,null,null,"1","1950-01-01","9999-12-31","2012-05-15","DATACONVERSI","124Crm Courts 299th District Court","10000262","124-299DCt","1240040001",124,{"$f":"_xlfn.XLOOKUP(VALUE(OU[[#This Row],[Master CC]]),FC_Master[Cost Center],FC_Master[rollup FC '#],OU[[#This Row],[Master CC]])","v":1240010001}]
[124,"124Crm Courts 299th District Court",10000262,"124-299DCt",null,null,null,null,null,null,null,null,null,null,null,null,null,null,null,"1","1950-01-01","9999-12-31","2012-05-15","DATACONVERSI","124Crm Courts 331st District Court","10000258","124-331DCt","1240050001",124,{"$f":"_xlfn.XLOOKUP(VALUE(OU[[#This Row],[Master CC]]),FC_Master[Cost Center],FC_Master[rollup FC '#],OU[[#This Row],[Master CC]])","v":1240010001}]
[124,"124Crm Courts 331st District Court",10000258,"124-331DCt",null,null,null,null,null,null,null,null,null,null,null,null,null,null,null,"1","1950-01-01","9999-12-31","2012-05-15","DATACONVERSI","124Crm Courts 390th District Court","10000242","124-390DCt","1240060001",124,{"$f":"_xlfn.XLOOKUP(VALUE(OU[[#This Row],[Master CC]]),FC_Master[Cost Center],FC_Master[rollup FC '#],OU[[#This Row],[Master CC]])","v":1240010001}]
[124,"124Crm Courts 390th District Court",10000242,"124-390DCt",null,null,null,null,null,null,null,null,null,null,null,null,null,null,null,"1","1950-01-01","9999-12-31","2012-05-15","DATACONVERSI","124Crm Courts 403rd District Court","10000253","124-403DCt","1240070001",124,{"$f":"_xlfn.XLOOKUP(VALUE(OU[[#This Row],[Master CC]]),FC_Master[Cost Center],FC_Master[rollup FC '#],OU[[#This Row],[Master CC]])","v":1240010001}]
[124,"124Crm Courts 403rd District Court",10000253,"124-403DCt",null,null,null,null,null,null,null,null,null,null,null,null,null,null,null,"1","1950-01-01","9999-12-31","2012-05-15","DATACONVERSI","124Crm Courts 427th District Court","10000254","124-427DCt","1240080001",124,{"$f":"_xlfn.XLOOKUP(VALUE(OU[[#This Row],[Master CC]]),FC_Master[Cost Center],FC_Master[rollup FC '#],OU[[#This Row],[Master CC]])","v":1240010001}]
[124,"124Crm Courts 427th District Court",10000254,"124-427DCt",null,null,null,null,null,null,null,null,null,null,null,null,null,null,null,"1","2015-10-01","9999-12-31","2015-10-14","BROUSSC","124Crm Courts 450th Dist CT","10051551","124CrmDistCT","1240480001",124,{"$f":"_xlfn.XLOOKUP(VALUE(OU[[#This Row],[Master CC]]),FC_Master[Cost Center],FC_Master[rollup FC '#],OU[[#This Row],[Master CC]])","v":1240010001}]
[124,"124Crm Courts 450th Dist CT",10051551,"124CrmDistCT",null,null,null,null,null,null,null,null,null,null,null,null,null,null,null,"1","2019-09-13","9999-12-31","2019-09-16","MILLIGA","124Crm Courts 460th District Court","10053927","124-460DCt","1240010001",124,{"$f":"_xlfn.XLOOKUP(VALUE(OU[[#This Row],[Master CC]]),FC_Master[Cost Center],FC_Master[rollup FC '#],OU[[#This Row],[Master CC]])","v":1240010001}]
[124,"124Crm Courts 460th District Court",10053927,"124-460DCt",null,null,null,null,null,null,null,null,null,null,null,null,null,null,null,"1","2017-11-09","9999-12-31","2017-11-13","CHANGM","124Crm Courts Admin Coordinator","10000245","124AdmCoord","1240180001",124,{"$f":"_xlfn.XLOOKUP(VALUE(OU[[#This Row],[Master CC]]),FC_Master[Cost Center],FC_Master[rollup FC '#],OU[[#This Row],[Master CC]])","v":1240110001}]
[124,"124Crm Courts Admin Coordinator",10000245,"124AdmCoord",null,null,null,null,null,null,null,null,null,null,null,null,null,null,null,"1","1950-01-01","9999-12-31","2012-05-15","DATACONVERSI","124Crm Courts Administration","10000244","124Adm","1240180001",124,{"$f":"_xlfn.XLOOKUP(VALUE(OU[[#This Row],[Master CC]]),FC_Master[Cost Center],FC_Master[rollup FC '#],OU[[#This Row],[Master CC]])","v":1240110001}]
[124,"124Crm Courts Administration",10000244,"124Adm",null,null,null,null,null,null,null,null,null,null,null,null,null,null,null,"1","1950-01-01","9999-12-31","2012-05-15","DATACONVERSI","124Crm Courts County Court at Law #3","10000260","124CoCt3","1240120001",124,{"$f":"_xlfn.XLOOKUP(VALUE(OU[[#This Row],[Master CC]]),FC_Master[Cost Center],FC_Master[rollup FC '#],OU[[#This Row],[Master CC]])","v":1240110001}]
[124,"124Crm Courts County Court at Law #3",10000260,"124CoCt3",null,null,null,null,null,null,null,null,null,null,null,null,null,null,null,"1","1950-01-01","9999-12-31","2012-05-15","DATACONVERSI","124Crm Courts County Court at Law #4","10000252","124CoCt4","1240130001",124,{"$f":"_xlfn.XLOOKUP(VALUE(OU[[#This Row],[Master CC]]),FC_Master[Cost Center],FC_Master[rollup FC '#],OU[[#This Row],[Master CC]])","v":1240110001}]
[124,"124Crm Courts County Court at Law #4",10000252,"124CoCt4",null,null,null,null,null,null,null,null,null,null,null,null,null,null,null,"1","1950-01-01","9999-12-31","2012-05-15","DATACONVERSI","124Crm Courts County Court at Law #5","10000257","124CoCt5","1240140001",124,{"$f":"_xlfn.XLOOKUP(VALUE(OU[[#This Row],[Master CC]]),FC_Master[Cost Center],FC_Master[rollup FC '#],OU[[#This Row],[Master CC]])","v":1240110001}]
[124,"124Crm Courts County Court at Law #5",10000257,"124CoCt5",null,null,null,null,null,null,null,null,null,null,null,null,null,null,null,"1","1950-01-01","9999-12-31","2012-05-15","DATACONVERSI","124Crm Courts County Court at Law #6","10000256","124CoCt6","1240150001",124,{"$f":"_xlfn.XLOOKUP(VALUE(OU[[#This Row],[Master CC]]),FC_Master[Cost Center],FC_Master[rollup FC '#],OU[[#This Row],[Master CC]])","v":1240110001}]
[124,"124Crm Courts County Court at Law #6",10000256,"124CoCt6",null,null,null,null,null,null,null,null,null,null,null,null,null,null,null,"1","1950-01-01","9999-12-31","2012-05-15","DATACONVERSI","124Crm Courts County Court at Law #7","10000263","124CoCt7","1240160001",124,{"$f":"_xlfn.XLOOKUP(VALUE(OU[[#This Row],[Master CC]]),FC_Master[Cost Center],FC_Master[rollup FC '#],OU[[#This Row],[Master CC]])","v":1240110001}]
[124,"124Crm Courts County Court at Law #7",10000263,"124CoCt7",null,null,null,null,null,null,null,null,null,null,null,null,null,null,null,"1","1950-01-01","9999-12-31","2012-05-15","DATACONVERSI","124Crm Courts County Court at Law #8","10000255","124CoCt8","1240170001",124,{"$f":"_xlfn.XLOOKUP(VALUE(OU[[#This Row],[Master CC]]),FC_Master[Cost Center],FC_Master[rollup FC '#],OU[[#This Row],[Master CC]])","v":1240110001}]
[124,"124Crm Courts County Court at Law #8",10000255,"124CoCt8",null,null,null,null,null,null,null,null,null,null,null,null,null,null,null,"1","2013-12-16","9999-12-31","2013-12-19","VILLARG","124Crm Courts CUC Group","10050801","124CUCGroup","1240180001",124,{"$f":"_xlfn.XLOOKUP(VALUE(OU[[#This Row],[Master CC]]),FC_Master[Cost Center],FC_Master[rollup FC '#],OU[[#This Row],[Master CC]])","v":1240110001}]
[124,"124Crm Courts CUC Group",10050801,"124CUCGroup",null,null,null,null,null,null,null,null,null,null,null,null,null,null,null,"1","1950-01-01","9999-12-31","2012-05-15","DATACONVERSI","124Crm Courts Financial","10000250","124Fin","1240180001",124,{"$f":"_xlfn.XLOOKUP(VALUE(OU[[#This Row],[Master CC]]),FC_Master[Cost Center],FC_Master[rollup FC '#],OU[[#This Row],[Master CC]])","v":1240110001}]
[124,"124Crm Courts Financial",{"$f":"VALUE(Z514)","v":10000250},"124Fin",null,null,null,null,null,null,null,null,null,null,null,null,null,null,null,"1","1950-01-01","9999-12-31","2012-05-15","DATACONVERSI","124Crm Courts Intake","10000251","124Intake","1240180001",124,{"$f":"_xlfn.XLOOKUP(VALUE(OU[[#This Row],[Master CC]]),FC_Master[Cost Center],FC_Master[rollup FC '#],OU[[#This Row],[Master CC]])","v":1240110001}]
[{"$f":"AC515","v":124},{"$f":"Y515","v":"124Crm Courts Intake"},10000251,{"$f":"AA515","v":"124Intake"},null,null,null,null,null,null,null,null,null,null,null,null,null,null,null,"1","2023-04-18","9999-12-31","2023-04-20","MILLIGA","124Crm Courts MAC Group","10056127","124MACGrp","1240180001",124,{"$f":"_xlfn.XLOOKUP(VALUE(OU[[#This Row],[Master CC]]),FC_Master[Cost Center],FC_Master[rollup FC '#],OU[[#This Row],[Master CC]])","v":1240110001}]
[124,"124Crm Courts MAC Group",10056127,"124MACGrp",null,null,null,null,null,null,null,null,null,null,null,null,null,null,null,"1","1950-01-01","9999-12-31","2012-05-15","DATACONVERSI","124Crm Courts Magistrate Court","10000243","124MagCt","1240090001",124,{"$f":"_xlfn.XLOOKUP(VALUE(OU[[#This Row],[Master CC]]),FC_Master[Cost Center],FC_Master[rollup FC '#],OU[[#This Row],[Master CC]])","v":1240010001}]
[124,"124Crm Courts Magistrate Court",10000243,"124MagCt",null,null,null,null,null,null,null,null,null,null,null,null,null,null,null,"1","2018-11-01","9999-12-31","2018-11-01","PFAFFEA","124Crm Courts Mental Health","10053201","124CrCtMH","1240180001",124,{"$f":"_xlfn.XLOOKUP(VALUE(OU[[#This Row],[Master CC]]),FC_Master[Cost Center],FC_Master[rollup FC '#],OU[[#This Row],[Master CC]])","v":1240110001}]
[124,"124Crm Courts Mental Health",10053201,"124CrCtMH",null,null,null,null,null,null,null,null,null,null,null,null,null,null,null,"1","1950-01-01","9999-12-31","2012-05-15","DATACONVERSI","124Crm Courts Program Services","10000249","124PSv","1240180001",124,{"$f":"_xlfn.XLOOKUP(VALUE(OU[[#This Row],[Master CC]]),FC_Master[Cost Center],FC_Master[rollup FC '#],OU[[#This Row],[Master CC]])","v":1240110001}]
[124,"124Crm Courts Program Services",10000249,"124PSv",null,null,null,null,null,null,null,null,null,null,null,null,null,null,null,"1","1950-01-01","9999-12-31","2012-05-15","DATACONVERSI","124Crm Courts Technology Team","10000247","124Tch","1240100001",124,{"$f":"_xlfn.XLOOKUP(VALUE(OU[[#This Row],[Master CC]]),FC_Master[Cost Center],FC_Master[rollup FC '#],OU[[#This Row],[Master CC]])","v":1240010001}]
[124,"124Crm Courts Technology Team",10000247,"124Tch",null,null,null,null,null,null,null,null,null,null,null,null,null,null,null,"1","1950-01-01","9999-12-31","2012-05-15","DATACONVERSI","124Crm Courts Veterans Court","10000246","124VetCt","1240010001",124,{"$f":"_xlfn.XLOOKUP(VALUE(OU[[#This Row],[Master CC]]),FC_Master[Cost Center],FC_Master[rollup FC '#],OU[[#This Row],[Master CC]])","v":1240010001}]
[124,"124Crm Courts Veterans Court",10000246,"124VetCt",null,null,null,null,null,null,null,null,null,null,null,null,null,null,null,"1","2014-12-11","9999-12-31","2014-12-12","RAMIREV","124Crm Courts Visiting Judges","10051277","124VstgJg","1240180001",124,{"$f":"_xlfn.XLOOKUP(VALUE(OU[[#This Row],[Master CC]]),FC_Master[Cost Center],FC_Master[rollup FC '#],OU[[#This Row],[Master CC]])","v":1240110001}]
[124,"124Crm Courts Visiting Judges",10051277,"124VstgJg",null,null,null,null,null,null,null,null,null,null,null,null,null,null,null,"1","2023-11-01","9999-12-31","2023-11-07","PHAMC","125Probate Court","10000264","125PrbCt","1250010001",125,{"$f":"_xlfn.XLOOKUP(VALUE(OU[[#This Row],[Master CC]]),FC_Master[Cost Center],FC_Master[rollup FC '#],OU[[#This Row],[Master CC]])","v":1250010001}]
[125,"125Probate Court",10000264,"125PrbCt",null,null,null,null,null,null,null,null,null,null,null,null,null,null,null,"1","1950-01-01","9999-12-31","2012-05-15","DATACONVERSI","125Probate Court Accounting","10000268","125Actg","1250010001",125,{"$f":"_xlfn.XLOOKUP(VALUE(OU[[#This Row],[Master CC]]),FC_Master[Cost Center],FC_Master[rollup FC '#],OU[[#This Row],[Master CC]])","v":1250010001}]
[125,"125Probate Court Accounting",10000268,"125Actg",null,null,null,null,null,null,null,null,null,null,null,null,null,null,null,"1","2023-11-01","9999-12-31","2023-11-07","PHAMC","125Probate Court General First","10000266","125General1","1250010001",125,{"$f":"_xlfn.XLOOKUP(VALUE(OU[[#This Row],[Master CC]]),FC_Master[Cost Center],FC_Master[rollup FC '#],OU[[#This Row],[Master CC]])","v":1250010001}]
[125,"125Probate Court General First",10000266,"125General1",null,null,null,null,null,null,null,null,null,null,null,null,null,null,null,"2","2023-10-01","9999-12-31","2023-09-13","PHAMC","125Probate Court General Second","10056529","125General2","1250040001",125,{"$f":"_xlfn.XLOOKUP(VALUE(OU[[#This Row],[Master CC]]),FC_Master[Cost Center],FC_Master[rollup FC '#],OU[[#This Row],[Master CC]])","v":1250040001}]
[125,"125Probate Court General Second",10056529,"125General2",null,null,null,null,null,null,null,null,null,null,null,null,null,null,null,"1","2023-10-01","9999-12-31","2023-09-13","MILLIGA","125Probate Court General Second","10056530","125General2","1250040001",125,{"$f":"_xlfn.XLOOKUP(VALUE(OU[[#This Row],[Master CC]]),FC_Master[Cost Center],FC_Master[rollup FC '#],OU[[#This Row],[Master CC]])","v":1250040001}]
[125,"125Probate Court General Second",10056530,"125General2",null,null,null,null,null,null,null,null,null,null,null,null,null,null,null,"2","2023-10-01","9999-12-31","2023-09-13","PHAMC","125Probate Court General Second","10056528","125General2",null,null,{"$f":"_xlfn.XLOOKUP(VALUE(OU[[#This Row],[Master CC]]),FC_Master[Cost Center],FC_Master[rollup FC '#],OU[[#This Row],[Master CC]])","v":0}]
[0,"125Probate Court General Second",10056528,"125General2",null,null,null,null,null,null,null,null,null,null,null,null,null,null,null,"1","1950-01-01","9999-12-31","2012-05-15","DATACONVERSI","125Probate Court Guardianship","10000269","125Gdnshp","1250030124",125,{"$f":"_xlfn.XLOOKUP(VALUE(OU[[#This Row],[Master CC]]),FC_Master[Cost Center],FC_Master[rollup FC '#],OU[[#This Row],[Master CC]])","v":1250030124}]
[125,"125Probate Court Guardianship",10000269,"125Gdnshp",null,null,null,null,null,null,null,null,null,null,null,null,null,null,null,"1","2023-11-01","9999-12-31","2023-11-07","PHAMC","125Probate Court Judicial First","10056635","125Judicial1","1250010001",125,{"$f":"_xlfn.XLOOKUP(VALUE(OU[[#This Row],[Master CC]]),FC_Master[Cost Center],FC_Master[rollup FC '#],OU[[#This Row],[Master CC]])","v":1250010001}]
[125,"125Probate Court Judicial First",10056635,"125Judicial1",null,null,null,null,null,null,null,null,null,null,null,null,null,null,null,"1","2023-10-01","9999-12-31","2023-09-13","MILLIGA","125Probate Court Judicial Second","10056527","125Jud2","1250040001",125,{"$f":"_xlfn.XLOOKUP(VALUE(OU[[#This Row],[Master CC]]),FC_Master[Cost Center],FC_Master[rollup FC '#],OU[[#This Row],[Master CC]])","v":1250040001}]
[125,"125Probate Court Judicial Second",10056527,"125Jud2",null,null,null,null,null,null,null,null,null,null,null,null,null,null,null,"1","2014-12-11","9999-12-31","2014-12-12","RAMIREV","125Probate Court Visiting Judges","10051278","125VstgJg","1250010001",125,{"$f":"_xlfn.XLOOKUP(VALUE(OU[[#This Row],[Master CC]]),FC_Master[Cost Center],FC_Master[rollup FC '#],OU[[#This Row],[Master CC]])","v":1250010001}]
[125,"125Probate Court Visiting Judges",10051278,"125VstgJg",null,null,null,null,null,null,null,null,null,null,null,null,null,null,null,"1","1950-01-01","9999-12-31","2012-05-15","DATACONVERSI","126Justice of the Peace 1","10000270","126JP1","1260020001",126,{"$f":"_xlfn.XLOOKUP(VALUE(OU[[#This Row],[Master CC]]),FC_Master[Cost Center],FC_Master[rollup FC '#],OU[[#This Row],[Master CC]])","v":1260020001}]
[126,"126Justice of the Peace 1",10000270,"126JP1",null,null,null,null,null,null,null,null,null,null,null,null,null,null,null,"1","1950-01-01","9999-12-31","2012-05-15","DATACONVERSI","126Justice of the Peace 1 Organization","10000271","126JP1Org","1260020001",126,{"$f":"_xlfn.XLOOKUP(VALUE(OU[[#This Row],[Master CC]]),FC_Master[Cost Center],FC_Master[rollup FC '#],OU[[#This Row],[Master CC]])","v":1260020001}]
[126,"126Justice of the Peace 1 Organization",10000271,"126JP1Org",null,null,null,null,null,null,null,null,null,null,null,null,null,null,null,"1","1950-01-01","9999-12-31","2012-05-15","DATACONVERSI","126Justice of the Peace 1 Planning","10000272","126JP1Pln","1260010001",126,{"$f":"_xlfn.XLOOKUP(VALUE(OU[[#This Row],[Master CC]]),FC_Master[Cost Center],FC_Master[rollup FC '#],OU[[#This Row],[Master CC]])","v":1260010001}]
[126,"126Justice of the Peace 1 Planning",10000272,"126JP1Pln",null,null,null,null,null,null,null,null,null,null,null,null,null,null,null,"1","2014-12-11","9999-12-31","2014-12-12","HENDERL","126Justice of the Peace 1 Visiting Judge","10051279","126VstgJg","1260010001",126,{"$f":"_xlfn.XLOOKUP(VALUE(OU[[#This Row],[Master CC]]),FC_Master[Cost Center],FC_Master[rollup FC '#],OU[[#This Row],[Master CC]])","v":1260010001}]
[126,"126Justice of the Peace 1 Visiting Judge",10051279,"126VstgJg",null,null,null,null,null,null,null,null,null,null,null,null,null,null,null,"1","1950-01-01","9999-12-31","2012-05-15","DATACONVERSI","127Justice of the Peace 2","10000273","127JP2","1270010001",127,{"$f":"_xlfn.XLOOKUP(VALUE(OU[[#This Row],[Master CC]]),FC_Master[Cost Center],FC_Master[rollup FC '#],OU[[#This Row],[Master CC]])","v":1270010001}]
[127,"127Justice of the Peace 2",10000273,"127JP2",null,null,null,null,null,null,null,null,null,null,null,null,null,null,null,"1","1950-01-01","9999-12-31","2012-05-15","DATACONVERSI","127Justice of the Peace 2 Organization","10000274","127JP2Org","1270020001",127,{"$f":"_xlfn.XLOOKUP(VALUE(OU[[#This Row],[Master CC]]),FC_Master[Cost Center],FC_Master[rollup FC '#],OU[[#This Row],[Master CC]])","v":1270020001}]
[127,"127Justice of the Peace 2 Organization",10000274,"127JP2Org",null,null,null,null,null,null,null,null,null,null,null,null,null,null,null,"1","2014-12-11","9999-12-31","2014-12-12","HENDERL","127Justice of the Peace 2 Visiting Judge","10051280","127VstgJg","1270010001",127,{"$f":"_xlfn.XLOOKUP(VALUE(OU[[#This Row],[Master CC]]),FC_Master[Cost Center],FC_Master[rollup FC '#],OU[[#This Row],[Master CC]])","v":1270010001}]
[127,"127Justice of the Peace 2 Visiting Judge",10051280,"127VstgJg",null,null,null,null,null,null,null,null,null,null,null,null,null,null,null,"1","1950-01-01","9999-12-31","2012-05-15","DATACONVERSI","128Justice of the Peace 3","10000275","128JP3","1280020001",128,{"$f":"_xlfn.XLOOKUP(VALUE(OU[[#This Row],[Master CC]]),FC_Master[Cost Center],FC_Master[rollup FC '#],OU[[#This Row],[Master CC]])","v":1280020001}]
[128,"128Justice of the Peace 3",10000275,"128JP3",null,null,null,null,null,null,null,null,null,null,null,null,null,null,null,"1","1950-01-01","9999-12-31","2012-05-15","DATACONVERSI","128Justice of the Peace 3 Organization","10000276","128JP3 Org","1280020001",128,{"$f":"_xlfn.XLOOKUP(VALUE(OU[[#This Row],[Master CC]]),FC_Master[Cost Center],FC_Master[rollup FC '#],OU[[#This Row],[Master CC]])","v":1280020001}]
[128,"128Justice of the Peace 3 Organization",10000276,"128JP3 Org",null,null,null,null,null,null,null,null,null,null,null,null,null,null,null,"1","2014-12-11","9999-12-31","2014-12-12","HENDERL","128Justice of the Peace 3 Visiting Judge","10051281","128VstgJg","1280010001",128,{"$f":"_xlfn.XLOOKUP(VALUE(OU[[#This Row],[Master CC]]),FC_Master[Cost Center],FC_Master[rollup FC '#],OU[[#This Row],[Master CC]])","v":1280010001}]
[128,"128Justice of the Peace 3 Visiting Judge",10051281,"128VstgJg",null,null,null,null,null,null,null,null,null,null,null,null,null,null,null,"1","2019-03-27","9999-12-31","2019-03-27","BROUSSC","129Justice of the Peace 4","10000277","129JP4","1290010001",129,{"$f":"_xlfn.XLOOKUP(VALUE(OU[[#This Row],[Master CC]]),FC_Master[Cost Center],FC_Master[rollup FC '#],OU[[#This Row],[Master CC]])","v":1290010001}]
[129,"129Justice of the Peace 4",10000277,"129JP4",null,null,null,null,null,null,null,null,null,null,null,null,null,null,null,"1","2022-10-01","9999-12-31","2023-04-04","CHANGM","129Justice of the Peace 4 Organization","10000278","129JP4Org","1290020001",129,{"$f":"_xlfn.XLOOKUP(VALUE(OU[[#This Row],[Master CC]]),FC_Master[Cost Center],FC_Master[rollup FC '#],OU[[#This Row],[Master CC]])","v":1290020001}]
[129,"129Justice of the Peace 4 Organization",10000278,"129JP4Org",null,null,null,null,null,null,null,null,null,null,null,null,null,null,null,"1","2014-12-11","9999-12-31","2014-12-12","HENDERL","129Justice of the Peace 4 Visiting Judge","10051282","129VstgJg","1290010001",129,{"$f":"_xlfn.XLOOKUP(VALUE(OU[[#This Row],[Master CC]]),FC_Master[Cost Center],FC_Master[rollup FC '#],OU[[#This Row],[Master CC]])","v":1290010001}]
[129,"129Justice of the Peace 4 Visiting Judge",10051282,"129VstgJg",null,null,null,null,null,null,null,null,null,null,null,null,null,null,null,"1","1950-01-01","9999-12-31","2012-05-15","DATACONVERSI","130Justice of the Peace 5","10000279","130JP5","1300010001",130,{"$f":"_xlfn.XLOOKUP(VALUE(OU[[#This Row],[Master CC]]),FC_Master[Cost Center],FC_Master[rollup FC '#],OU[[#This Row],[Master CC]])","v":1300010001}]
[130,"130Justice of the Peace 5",10000279,"130JP5",null,null,null,null,null,null,null,null,null,null,null,null,null,null,null,"1","1950-01-01","9999-12-31","2012-05-15","DATACONVERSI","130Justice of the Peace 5 Organization","10000280","130JP5Org","1300020001",130,{"$f":"_xlfn.XLOOKUP(VALUE(OU[[#This Row],[Master CC]]),FC_Master[Cost Center],FC_Master[rollup FC '#],OU[[#This Row],[Master CC]])","v":1300020001}]
[130,"130Justice of the Peace 5 Organization",10000280,"130JP5Org",null,null,null,null,null,null,null,null,null,null,null,null,null,null,null,"1","2014-12-11","9999-12-31","2014-12-12","HENDERL","130Justice of the Peace 5 Visiting Judge","10051283","130VstgJg","1300010001",130,{"$f":"_xlfn.XLOOKUP(VALUE(OU[[#This Row],[Master CC]]),FC_Master[Cost Center],FC_Master[rollup FC '#],OU[[#This Row],[Master CC]])","v":1300010001}]
[130,"130Justice of the Peace 5 Visiting Judge",10051283,"130VstgJg",null,null,null,null,null,null,null,null,null,null,null,null,null,null,null,"1","1950-01-01","9999-12-31","2012-05-15","DATACONVERSI","131Constable 1","10000281","131Cnst1","1310020001",131,{"$f":"_xlfn.XLOOKUP(VALUE(OU[[#This Row],[Master CC]]),FC_Master[Cost Center],FC_Master[rollup FC '#],OU[[#This Row],[Master CC]])","v":1310020001}]
[131,"131Constable 1",10000281,"131Cnst1",null,null,null,null,null,null,null,null,null,null,null,null,null,null,null,"1","1950-01-01","9999-12-31","2012-05-15","DATACONVERSI","131Constable 1 Organization","10000282","131Org","1310020001",131,{"$f":"_xlfn.XLOOKUP(VALUE(OU[[#This Row],[Master CC]]),FC_Master[Cost Center],FC_Master[rollup FC '#],OU[[#This Row],[Master CC]])","v":1310020001}]
[131,"131Constable 1 Organization",10000282,"131Org",null,null,null,null,null,null,null,null,null,null,null,null,null,null,null,"1","1950-01-01","9999-12-31","2012-05-15","DATACONVERSI","132Constable 2","10000283","132Cnst2","1320020001",132,{"$f":"_xlfn.XLOOKUP(VALUE(OU[[#This Row],[Master CC]]),FC_Master[Cost Center],FC_Master[rollup FC '#],OU[[#This Row],[Master CC]])","v":1320020001}]
[132,"132Constable 2",10000283,"132Cnst2",null,null,null,null,null,null,null,null,null,null,null,null,null,null,null,"1","2021-05-17","9999-12-31","2021-05-20","BRADENA1","132Constable 2 Adm/Telecomm Unit","10054729","132Adm/Tlc","1320060001",132,{"$f":"_xlfn.XLOOKUP(VALUE(OU[[#This Row],[Master CC]]),FC_Master[Cost Center],FC_Master[rollup FC '#],OU[[#This Row],[Master CC]])","v":1320060001}]
[132,"132Constable 2 Adm/Telecomm Unit",10054729,"132Adm/Tlc",null,null,null,null,null,null,null,null,null,null,null,null,null,null,null,"1","2018-04-01","9999-12-31","2018-03-21","PFAFFEA","132Constable 2 Admin","10052901","132Adm2","1320020001",132,{"$f":"_xlfn.XLOOKUP(VALUE(OU[[#This Row],[Master CC]]),FC_Master[Cost Center],FC_Master[rollup FC '#],OU[[#This Row],[Master CC]])","v":1320020001}]
[132,"132Constable 2 Admin",10052901,"132Adm2",null,null,null,null,null,null,null,null,null,null,null,null,null,null,null,"1","1950-01-01","9999-12-31","2012-05-15","DATACONVERSI","132Constable 2 Administration","10000284","132Adm","1320030001",132,{"$f":"_xlfn.XLOOKUP(VALUE(OU[[#This Row],[Master CC]]),FC_Master[Cost Center],FC_Master[rollup FC '#],OU[[#This Row],[Master CC]])","v":1320030001}]
[132,"132Constable 2 Administration",10000284,"132Adm",null,null,null,null,null,null,null,null,null,null,null,null,null,null,null,"1","2021-05-17","9999-12-31","2021-05-20","BRADENA1","132Constable 2 Civil Unit","10054728","132Civil","1320010001",132,{"$f":"_xlfn.XLOOKUP(VALUE(OU[[#This Row],[Master CC]]),FC_Master[Cost Center],FC_Master[rollup FC '#],OU[[#This Row],[Master CC]])","v":1320010001}]
[132,"132Constable 2 Civil Unit",10054728,"132Civil",null,null,null,null,null,null,null,null,null,null,null,null,null,null,null,"1","2021-05-17","9999-12-31","2021-05-20","BRADENA1","132Constable 2 Criminal Unit","10054726","132Criminal","1320020001",132,{"$f":"_xlfn.XLOOKUP(VALUE(OU[[#This Row],[Master CC]]),FC_Master[Cost Center],FC_Master[rollup FC '#],OU[[#This Row],[Master CC]])","v":1320020001}]
[132,"132Constable 2 Criminal Unit",10054726,"132Criminal",null,null,null,null,null,null,null,null,null,null,null,null,null,null,null,"1","2023-08-01","9999-12-31","2023-08-14","PHAMC","132Constable 2 Organization","10000285","132Org","1320020001",132,{"$f":"_xlfn.XLOOKUP(VALUE(OU[[#This Row],[Master CC]]),FC_Master[Cost Center],FC_Master[rollup FC '#],OU[[#This Row],[Master CC]])","v":1320020001}]
[132,"132Constable 2 Organization",10000285,"132Org",null,null,null,null,null,null,null,null,null,null,null,null,null,null,null,"1","2021-05-17","9999-12-31","2021-05-20","BRADENA1","132Constable 2 Security Unit","10054727","132Security","1320040001",132,{"$f":"_xlfn.XLOOKUP(VALUE(OU[[#This Row],[Master CC]]),FC_Master[Cost Center],FC_Master[rollup FC '#],OU[[#This Row],[Master CC]])","v":1320040001}]
[132,"132Constable 2 Security Unit",10054727,"132Security",null,null,null,null,null,null,null,null,null,null,null,null,null,null,null,"1","1950-01-01","9999-12-31","2012-05-15","DATACONVERSI","133Constable 3","10000286","133Cnst3","1330020001",133,{"$f":"_xlfn.XLOOKUP(VALUE(OU[[#This Row],[Master CC]]),FC_Master[Cost Center],FC_Master[rollup FC '#],OU[[#This Row],[Master CC]])","v":1330020001}]
[133,"133Constable 3",10000286,"133Cnst3",null,null,null,null,null,null,null,null,null,null,null,null,null,null,null,"1","1950-01-01","9999-12-31","2012-05-15","DATACONVERSI","133Constable 3 Administration","10000287","133Adm","1330020001",133,{"$f":"_xlfn.XLOOKUP(VALUE(OU[[#This Row],[Master CC]]),FC_Master[Cost Center],FC_Master[rollup FC '#],OU[[#This Row],[Master CC]])","v":1330020001}]
[133,"133Constable 3 Administration",10000287,"133Adm",null,null,null,null,null,null,null,null,null,null,null,null,null,null,null,"1","2013-01-16","9999-12-31","2013-01-25","ROSSA","133Constable 3 Chief Deputy","10050301","133ChfDp","1330010001",133,{"$f":"_xlfn.XLOOKUP(VALUE(OU[[#This Row],[Master CC]]),FC_Master[Cost Center],FC_Master[rollup FC '#],OU[[#This Row],[Master CC]])","v":1330010001}]
[133,"133Constable 3 Chief Deputy",10050301,"133ChfDp",null,null,null,null,null,null,null,null,null,null,null,null,null,null,null,"1","1950-01-01","9999-12-31","2013-01-25","ROSSA","133Constable 3 Deputies","10000288","133Dp","1330010001",133,{"$f":"_xlfn.XLOOKUP(VALUE(OU[[#This Row],[Master CC]]),FC_Master[Cost Center],FC_Master[rollup FC '#],OU[[#This Row],[Master CC]])","v":1330010001}]
[133,"133Constable 3 Deputies",10000288,"133Dp",null,null,null,null,null,null,null,null,null,null,null,null,null,null,null,"1","2013-01-16","9999-12-31","2013-01-25","ROSSA","133Constable Lieutenant","10050302","133Lt","1330010001",133,{"$f":"_xlfn.XLOOKUP(VALUE(OU[[#This Row],[Master CC]]),FC_Master[Cost Center],FC_Master[rollup FC '#],OU[[#This Row],[Master CC]])","v":1330010001}]
[133,"133Constable Lieutenant",10050302,"133Lt",null,null,null,null,null,null,null,null,null,null,null,null,null,null,null,"1","1950-01-01","9999-12-31","2012-05-15","DATACONVERSI","134Constable 4","10000290","134Cnst4","1340020001",134,{"$f":"_xlfn.XLOOKUP(VALUE(OU[[#This Row],[Master CC]]),FC_Master[Cost Center],FC_Master[rollup FC '#],OU[[#This Row],[Master CC]])","v":1340020001}]
[134,"134Constable 4",10000290,"134Cnst4",null,null,null,null,null,null,null,null,null,null,null,null,null,null,null,"1","1950-01-01","9999-12-31","2012-05-15","DATACONVERSI","134Constable 4 Administration","10000291","134Adm","1340020001",134,{"$f":"_xlfn.XLOOKUP(VALUE(OU[[#This Row],[Master CC]]),FC_Master[Cost Center],FC_Master[rollup FC '#],OU[[#This Row],[Master CC]])","v":1340020001}]
[134,"134Constable 4 Administration",10000291,"134Adm",null,null,null,null,null,null,null,null,null,null,null,null,null,null,null,"1","2022-01-25","9999-12-31","2022-02-10","BROUSSC","134Constable 4 Community Service","10055326","134CmtySv","1340010001",134,{"$f":"_xlfn.XLOOKUP(VALUE(OU[[#This Row],[Master CC]]),FC_Master[Cost Center],FC_Master[rollup FC '#],OU[[#This Row],[Master CC]])","v":1340010001}]
[134,"134Constable 4 Community Service",10055326,"134CmtySv",null,null,null,null,null,null,null,null,null,null,null,null,null,null,null,"1","2017-06-14","9999-12-31","2017-06-19","BROUSSC","134Constable 4 Organization","10000292","134Org","1340010001",134,{"$f":"_xlfn.XLOOKUP(VALUE(OU[[#This Row],[Master CC]]),FC_Master[Cost Center],FC_Master[rollup FC '#],OU[[#This Row],[Master CC]])","v":1340010001}]
[134,"134Constable 4 Organization",10000292,"134Org",null,null,null,null,null,null,null,null,null,null,null,null,null,null,null,"1","1950-01-01","9999-12-31","2012-05-15","DATACONVERSI","135Constable 5","10000293","135Cnst5","1350010001",135,{"$f":"_xlfn.XLOOKUP(VALUE(OU[[#This Row],[Master CC]]),FC_Master[Cost Center],FC_Master[rollup FC '#],OU[[#This Row],[Master CC]])","v":1350010001}]
[135,"135Constable 5",10000293,"135Cnst5",null,null,null,null,null,null,null,null,null,null,null,null,null,null,null,"1","2023-12-01","9999-12-31","2023-12-22","HUTCHIT","135Constable 5 Administration","10056751","135Adm","1350010001",135,{"$f":"_xlfn.XLOOKUP(VALUE(OU[[#This Row],[Master CC]]),FC_Master[Cost Center],FC_Master[rollup FC '#],OU[[#This Row],[Master CC]])","v":1350010001}]
[135,"135Constable 5 Administration",10056751,"135Adm",null,null,null,null,null,null,null,null,null,null,null,null,null,null,null,"1","2015-02-06","9999-12-31","2015-02-13","PFAFFEA","135Constable 5 Administration 1","10000298","135Constable","1350010001",135,{"$f":"_xlfn.XLOOKUP(VALUE(OU[[#This Row],[Master CC]]),FC_Master[Cost Center],FC_Master[rollup FC '#],OU[[#This Row],[Master CC]])","v":1350010001}]
[135,"135Constable 5 Administration 1",10000298,"135Constable",null,null,null,null,null,null,null,null,null,null,null,null,null,null,null,"1","2015-02-06","9999-12-31","2015-02-13","PFAFFEA","135Constable 5 Administration 2","10000297","135Adm2","1350010001",135,{"$f":"_xlfn.XLOOKUP(VALUE(OU[[#This Row],[Master CC]]),FC_Master[Cost Center],FC_Master[rollup FC '#],OU[[#This Row],[Master CC]])","v":1350010001}]
[135,"135Constable 5 Administration 2",10000297,"135Adm2",null,null,null,null,null,null,null,null,null,null,null,null,null,null,null,"1","2016-12-19","9999-12-31","2016-12-30","CHEATHW","135Constable 5 Administration 3","10052126","135Constable","1350010001",135,{"$f":"_xlfn.XLOOKUP(VALUE(OU[[#This Row],[Master CC]]),FC_Master[Cost Center],FC_Master[rollup FC '#],OU[[#This Row],[Master CC]])","v":1350010001}]
[135,"135Constable 5 Administration 3",10052126,"135Constable",null,null,null,null,null,null,null,null,null,null,null,null,null,null,null,"1","2019-08-19","9999-12-31","2019-08-21","MILLIGA","135Constable 5 Business Analysis","10000299","135BA","1350010001",135,{"$f":"_xlfn.XLOOKUP(VALUE(OU[[#This Row],[Master CC]]),FC_Master[Cost Center],FC_Master[rollup FC '#],OU[[#This Row],[Master CC]])","v":1350010001}]
[135,"135Constable 5 Business Analysis",10000299,"135BA",null,null,null,null,null,null,null,null,null,null,null,null,null,null,null,"1","2015-10-01","9999-12-31","2015-09-21","PFAFFEA","135Constable 5 Deputies 1","10000300","135Dp1","1350010001",135,{"$f":"_xlfn.XLOOKUP(VALUE(OU[[#This Row],[Master CC]]),FC_Master[Cost Center],FC_Master[rollup FC '#],OU[[#This Row],[Master CC]])","v":1350010001}]
[135,"135Constable 5 Deputies 1",10000300,"135Dp1",null,null,null,null,null,null,null,null,null,null,null,null,null,null,null,"1","1950-01-01","9999-12-31","2012-05-15","DATACONVERSI","135Constable 5 Deputies 2","10000301","135Dp2","1350010001",135,{"$f":"_xlfn.XLOOKUP(VALUE(OU[[#This Row],[Master CC]]),FC_Master[Cost Center],FC_Master[rollup FC '#],OU[[#This Row],[Master CC]])","v":1350010001}]
[135,"135Constable 5 Deputies 2",10000301,"135Dp2",null,null,null,null,null,null,null,null,null,null,null,null,null,null,null,"1","1950-01-01","9999-12-31","2012-05-15","DATACONVERSI","135Constable 5 Deputies 3","10000302","135Dp3","1350010001",135,{"$f":"_xlfn.XLOOKUP(VALUE(OU[[#This Row],[Master CC]]),FC_Master[Cost Center],FC_Master[rollup FC '#],OU[[#This Row],[Master CC]])","v":1350010001}]
[135,"135Constable 5 Deputies 3",10000302,"135Dp3",null,null,null,null,null,null,null,null,null,null,null,null,null,null,null,"1","1950-01-01","9999-12-31","2012-05-15","DATACONVERSI","135Constable 5 Deputies 4","10000303","135Dp4","1350010001",135,{"$f":"_xlfn.XLOOKUP(VALUE(OU[[#This Row],[Master CC]]),FC_Master[Cost Center],FC_Master[rollup FC '#],OU[[#This Row],[Master CC]])","v":1350010001}]
[135,"135Constable 5 Deputies 4",10000303,"135Dp4",null,null,null,null,null,null,null,null,null,null,null,null,null,null,null,"1","2022-10-01","9999-12-31","2022-10-12","BRADENA1","135Constable 5 Deputies 5","10055751","135Dep5","1350010001",135,{"$f":"_xlfn.XLOOKUP(VALUE(OU[[#This Row],[Master CC]]),FC_Master[Cost Center],FC_Master[rollup FC '#],OU[[#This Row],[Master CC]])","v":1350010001}]
[135,"135Constable 5 Deputies 5",{"$f":"VALUE(Z578)","v":10055751},"135Dep5",null,null,null,null,null,null,null,null,null,null,null,null,null,null,null,"1","2023-12-01","9999-12-31","2023-12-22","PHAMC","135Constable 5 HR/Financial","10000295","135HRFin","1350010001",135,{"$f":"_xlfn.XLOOKUP(VALUE(OU[[#This Row],[Master CC]]),FC_Master[Cost Center],FC_Master[rollup FC '#],OU[[#This Row],[Master CC]])","v":1350010001}]
[{"$f":"AC579","v":135},{"$f":"Y579","v":"135Constable 5 HR/Financial"},10000295,{"$f":"AA579","v":"135HRFin"},null,null,null,null,null,null,null,null,null,null,null,null,null,null,null,"1","1950-01-01","9999-12-31","2012-05-15","DATACONVERSI","135Constable 5 Management","10000294","135Mgmt","1350010001",135,{"$f":"_xlfn.XLOOKUP(VALUE(OU[[#This Row],[Master CC]]),FC_Master[Cost Center],FC_Master[rollup FC '#],OU[[#This Row],[Master CC]])","v":1350010001}]
[135,"135Constable 5 Management",10000294,"135Mgmt",null,null,null,null,null,null,null,null,null,null,null,null,null,null,null,"1","2015-02-06","9999-12-31","2015-02-12","PFAFFEA","135Constable 5 Operations","10050851","135Ops","1350010001",135,{"$f":"_xlfn.XLOOKUP(VALUE(OU[[#This Row],[Master CC]]),FC_Master[Cost Center],FC_Master[rollup FC '#],OU[[#This Row],[Master CC]])","v":1350010001}]
[135,"135Constable 5 Operations",10050851,"135Ops",null,null,null,null,null,null,null,null,null,null,null,null,null,null,null,"1","2023-10-01","9999-12-31","2023-09-21","PEPPERA","136Dispute Resolution Center","10050126","136DRC","1360010104",136,{"$f":"_xlfn.XLOOKUP(VALUE(OU[[#This Row],[Master CC]]),FC_Master[Cost Center],FC_Master[rollup FC '#],OU[[#This Row],[Master CC]])","v":1360010104}]
[136,"136Dispute Resolution Center",10050126,"136DRC",null,null,null,null,null,null,null,null,null,null,null,null,null,null,null,"1","2023-03-16","9999-12-31","2023-03-16","PHAMC","137SO AS: Captain Downtown Operations","10000314","137CpDwtOps","1370440001",137,{"$f":"_xlfn.XLOOKUP(VALUE(OU[[#This Row],[Master CC]]),FC_Master[Cost Center],FC_Master[rollup FC '#],OU[[#This Row],[Master CC]])","v":1370440001}]
[137,"137SO AS: Captain Downtown Operations",10000314,"137CpDwtOps",null,null,null,null,null,null,null,null,null,null,null,null,null,null,null,"1","1950-01-01","9999-12-31","2012-05-15","DATACONVERSI","137SO AS: Central Records","10000346","137CRcd","1370060001",137,{"$f":"_xlfn.XLOOKUP(VALUE(OU[[#This Row],[Master CC]]),FC_Master[Cost Center],FC_Master[rollup FC '#],OU[[#This Row],[Master CC]])","v":1370170001}]
[137,"137SO AS: Central Records",10000346,"137CRcd",null,null,null,null,null,null,null,null,null,null,null,null,null,null,null,"1","1950-01-01","9999-12-31","2012-05-15","DATACONVERSI","137SO AS: Central Records Supv","10000350","137CRcdSupv","1370060001",137,{"$f":"_xlfn.XLOOKUP(VALUE(OU[[#This Row],[Master CC]]),FC_Master[Cost Center],FC_Master[rollup FC '#],OU[[#This Row],[Master CC]])","v":1370170001}]
[137,"137SO AS: Central Records Supv",10000350,"137CRcdSupv",null,null,null,null,null,null,null,null,null,null,null,null,null,null,null,"1","1950-01-01","9999-12-31","2012-05-15","DATACONVERSI","137SO AS: Central Warrants","10000347","137CWrt","1370070001",137,{"$f":"_xlfn.XLOOKUP(VALUE(OU[[#This Row],[Master CC]]),FC_Master[Cost Center],FC_Master[rollup FC '#],OU[[#This Row],[Master CC]])","v":1370170001}]
[137,"137SO AS: Central Warrants",10000347,"137CWrt",null,null,null,null,null,null,null,null,null,null,null,null,null,null,null,"1","1950-01-01","9999-12-31","2012-05-15","DATACONVERSI","137SO AS: Central Warrants Mgmt","10000348","137CWrtMgmt","1370070001",137,{"$f":"_xlfn.XLOOKUP(VALUE(OU[[#This Row],[Master CC]]),FC_Master[Cost Center],FC_Master[rollup FC '#],OU[[#This Row],[Master CC]])","v":1370170001}]
[137,"137SO AS: Central Warrants Mgmt",10000348,"137CWrtMgmt",null,null,null,null,null,null,null,null,null,null,null,null,null,null,null,"1","1950-01-01","9999-12-31","2012-05-15","DATACONVERSI","137SO AS: Chapel","10000351","137Chapel","1370560001",137,{"$f":"_xlfn.XLOOKUP(VALUE(OU[[#This Row],[Master CC]]),FC_Master[Cost Center],FC_Master[rollup FC '#],OU[[#This Row],[Master CC]])","v":1370580001}]
[137,"137SO AS: Chapel",10000351,"137Chapel",null,null,null,null,null,null,null,null,null,null,null,null,null,null,null,"1","2019-02-15","9999-12-31","2019-02-20","BRADENA1","137SO AS: Chapel Mgmt","10000789","137ChplMgmt","1370560001",137,{"$f":"_xlfn.XLOOKUP(VALUE(OU[[#This Row],[Master CC]]),FC_Master[Cost Center],FC_Master[rollup FC '#],OU[[#This Row],[Master CC]])","v":1370580001}]
[137,"137SO AS: Chapel Mgmt",10000789,"137ChplMgmt",null,null,null,null,null,null,null,null,null,null,null,null,null,null,null,"1","1950-01-01","9999-12-31","2012-05-15","DATACONVERSI","137SO AS: CJIS/TDC","10000345","137CJISTDC","1370140001",137,{"$f":"_xlfn.XLOOKUP(VALUE(OU[[#This Row],[Master CC]]),FC_Master[Cost Center],FC_Master[rollup FC '#],OU[[#This Row],[Master CC]])","v":1370170001}]
[137,"137SO AS: CJIS/TDC",10000345,"137CJISTDC",null,null,null,null,null,null,null,null,null,null,null,null,null,null,null,"1","1950-01-01","9999-12-31","2012-05-15","DATACONVERSI","137SO AS: CJIS/TDC Supv","10000793","137CJISSupv","1370140001",137,{"$f":"_xlfn.XLOOKUP(VALUE(OU[[#This Row],[Master CC]]),FC_Master[Cost Center],FC_Master[rollup FC '#],OU[[#This Row],[Master CC]])","v":1370170001}]
[137,"137SO AS: CJIS/TDC Supv",10000793,"137CJISSupv",null,null,null,null,null,null,null,null,null,null,null,null,null,null,null,"1","1950-01-01","9999-12-31","2012-05-15","DATACONVERSI","137SO AS: Community Outreach Mgmt","10000341","137OtrhMgmt","1370110001",137,{"$f":"_xlfn.XLOOKUP(VALUE(OU[[#This Row],[Master CC]]),FC_Master[Cost Center],FC_Master[rollup FC '#],OU[[#This Row],[Master CC]])","v":1370120001}]
[137,"137SO AS: Community Outreach Mgmt",10000341,"137OtrhMgmt",null,null,null,null,null,null,null,null,null,null,null,null,null,null,null,"1","2023-03-04","9999-12-31","2023-03-01","PHAMC","137SO AS: Courthouse Security - Gen Fd","10051231","137CtSecGF","1370320001",137,{"$f":"_xlfn.XLOOKUP(VALUE(OU[[#This Row],[Master CC]]),FC_Master[Cost Center],FC_Master[rollup FC '#],OU[[#This Row],[Master CC]])","v":1370320001}]
[137,"137SO AS: Courthouse Security - Gen Fd",10051231,"137CtSecGF",null,null,null,null,null,null,null,null,null,null,null,null,null,null,null,"1","2020-01-09","9999-12-31","2020-01-14","BRADENA1","137SO AS: Crc Basic PO Course","10054053","137CrcBPOC","1370440001",137,{"$f":"_xlfn.XLOOKUP(VALUE(OU[[#This Row],[Master CC]]),FC_Master[Cost Center],FC_Master[rollup FC '#],OU[[#This Row],[Master CC]])","v":1370440001}]
[137,"137SO AS: Crc Basic PO Course",10054053,"137CrcBPOC",null,null,null,null,null,null,null,null,null,null,null,null,null,null,null,"1","2016-03-28","9999-12-31","2016-04-05","MILLERA1","137SO AS: Crc Ofr Basic Recruit Acd","10051901","137COBRA","1370440001",137,{"$f":"_xlfn.XLOOKUP(VALUE(OU[[#This Row],[Master CC]]),FC_Master[Cost Center],FC_Master[rollup FC '#],OU[[#This Row],[Master CC]])","v":1370440001}]
[137,"137SO AS: Crc Ofr Basic Recruit Acd",10051901,"137COBRA",null,null,null,null,null,null,null,null,null,null,null,null,null,null,null,"1","2023-05-12","9999-12-31","2023-05-12","PHAMC","137SO AS: CTECC","10000353","137CTECC","1370260001",137,{"$f":"_xlfn.XLOOKUP(VALUE(OU[[#This Row],[Master CC]]),FC_Master[Cost Center],FC_Master[rollup FC '#],OU[[#This Row],[Master CC]])","v":1370260001}]
[137,"137SO AS: CTECC",10000353,"137CTECC",null,null,null,null,null,null,null,null,null,null,null,null,null,null,null,"1","2017-10-31","9999-12-31","2017-11-07","CHANGM","137SO AS: Downtown Treatment","10000366","137DwtTrtmt","1370570001",137,{"$f":"_xlfn.XLOOKUP(VALUE(OU[[#This Row],[Master CC]]),FC_Master[Cost Center],FC_Master[rollup FC '#],OU[[#This Row],[Master CC]])","v":1370580001}]
[137,"137SO AS: Downtown Treatment",10000366,"137DwtTrtmt",null,null,null,null,null,null,null,null,null,null,null,null,null,null,null,"1","1950-01-01","9999-12-31","2012-05-15","DATACONVERSI","137SO AS: Finance Mgmt","10000357","137FinMgmt","1370050001",137,{"$f":"_xlfn.XLOOKUP(VALUE(OU[[#This Row],[Master CC]]),FC_Master[Cost Center],FC_Master[rollup FC '#],OU[[#This Row],[Master CC]])","v":1370170001}]
[137,"137SO AS: Finance Mgmt",10000357,"137FinMgmt",null,null,null,null,null,null,null,null,null,null,null,null,null,null,null,"1","2023-04-27","9999-12-31","2023-05-03","PHAMC","137SO AS: Finance Supv Ruiz","10000359","137FinRuiz","1370050001",137,{"$f":"_xlfn.XLOOKUP(VALUE(OU[[#This Row],[Master CC]]),FC_Master[Cost Center],FC_Master[rollup FC '#],OU[[#This Row],[Master CC]])","v":1370170001}]
[137,"137SO AS: Finance Supv Ruiz",10000359,"137FinRuiz",null,null,null,null,null,null,null,null,null,null,null,null,null,null,null,"1","2023-04-25","9999-12-31","2023-05-03","PHAMC","137SO AS: Finance Supv TCCC","10000358","137FinSupv","1370050001",137,{"$f":"_xlfn.XLOOKUP(VALUE(OU[[#This Row],[Master CC]]),FC_Master[Cost Center],FC_Master[rollup FC '#],OU[[#This Row],[Master CC]])","v":1370170001}]
[137,"137SO AS: Finance Supv TCCC",10000358,"137FinSupv",null,null,null,null,null,null,null,null,null,null,null,null,null,null,null,"1","1950-01-01","9999-12-31","2012-05-15","DATACONVERSI","137SO AS: Human Resources","10000356","137HR","1370040001",137,{"$f":"_xlfn.XLOOKUP(VALUE(OU[[#This Row],[Master CC]]),FC_Master[Cost Center],FC_Master[rollup FC '#],OU[[#This Row],[Master CC]])","v":1370170001}]
[137,"137SO AS: Human Resources",10000356,"137HR",null,null,null,null,null,null,null,null,null,null,null,null,null,null,null,"1","1950-01-01","9999-12-31","2012-05-15","DATACONVERSI","137SO AS: Human Resources Mgmt","10000355","137HRMgmt","1370040001",137,{"$f":"_xlfn.XLOOKUP(VALUE(OU[[#This Row],[Master CC]]),FC_Master[Cost Center],FC_Master[rollup FC '#],OU[[#This Row],[Master CC]])","v":1370170001}]
[137,"137SO AS: Human Resources Mgmt",10000355,"137HRMgmt",null,null,null,null,null,null,null,null,null,null,null,null,null,null,null,"1","1950-01-01","9999-12-31","2012-05-15","DATACONVERSI","137SO AS: Human Resources Supv","10000791","137HRSupv","1370040001",137,{"$f":"_xlfn.XLOOKUP(VALUE(OU[[#This Row],[Master CC]]),FC_Master[Cost Center],FC_Master[rollup FC '#],OU[[#This Row],[Master CC]])","v":1370170001}]
[137,"137SO AS: Human Resources Supv",10000791,"137HRSupv",null,null,null,null,null,null,null,null,null,null,null,null,null,null,null,"1","1950-01-01","9999-12-31","2012-05-15","DATACONVERSI","137SO AS: Information Services","10000344","137IS","1370080001",137,{"$f":"_xlfn.XLOOKUP(VALUE(OU[[#This Row],[Master CC]]),FC_Master[Cost Center],FC_Master[rollup FC '#],OU[[#This Row],[Master CC]])","v":1370120001}]
[137,"137SO AS: Information Services",10000344,"137IS",null,null,null,null,null,null,null,null,null,null,null,null,null,null,null,"1","2019-02-04","9999-12-31","2019-02-08","MILLERA1","137SO AS: Information Services Mgmt","10050826","137ISMgmt","1370080001",137,{"$f":"_xlfn.XLOOKUP(VALUE(OU[[#This Row],[Master CC]]),FC_Master[Cost Center],FC_Master[rollup FC '#],OU[[#This Row],[Master CC]])","v":1370120001}]
[137,"137SO AS: Information Services Mgmt",10050826,"137ISMgmt",null,null,null,null,null,null,null,null,null,null,null,null,null,null,null,"1","2017-10-31","9999-12-31","2017-11-07","CHANGM","137SO AS: Inmate Programs","10000792","137IP","1370570001",137,{"$f":"_xlfn.XLOOKUP(VALUE(OU[[#This Row],[Master CC]]),FC_Master[Cost Center],FC_Master[rollup FC '#],OU[[#This Row],[Master CC]])","v":1370580001}]
[137,"137SO AS: Inmate Programs",10000792,"137IP",null,null,null,null,null,null,null,null,null,null,null,null,null,null,null,"1","2017-10-31","9999-12-31","2017-11-07","CHANGM","137SO AS: Inmate Treatment CBF","10051778","137InmtTrtmt","1370460001",137,{"$f":"_xlfn.XLOOKUP(VALUE(OU[[#This Row],[Master CC]]),FC_Master[Cost Center],FC_Master[rollup FC '#],OU[[#This Row],[Master CC]])","v":1370460001}]
[137,"137SO AS: Inmate Treatment CBF",10051778,"137InmtTrtmt",null,null,null,null,null,null,null,null,null,null,null,null,null,null,null,"1","2017-10-31","9999-12-31","2017-11-07","CHANGM","137SO AS: Inmate Treatment TCJ","10052577","137ITTCJ","1370570001",137,{"$f":"_xlfn.XLOOKUP(VALUE(OU[[#This Row],[Master CC]]),FC_Master[Cost Center],FC_Master[rollup FC '#],OU[[#This Row],[Master CC]])","v":1370580001}]
[137,"137SO AS: Inmate Treatment TCJ",10052577,"137ITTCJ",null,null,null,null,null,null,null,null,null,null,null,null,null,null,null,"1","2017-10-31","9999-12-31","2017-11-07","CHANGM","137SO AS: Inmate Treatment/Programs","10000364","137ITP","1370570001",137,{"$f":"_xlfn.XLOOKUP(VALUE(OU[[#This Row],[Master CC]]),FC_Master[Cost Center],FC_Master[rollup FC '#],OU[[#This Row],[Master CC]])","v":1370580001}]
[137,"137SO AS: Inmate Treatment/Programs",10000364,"137ITP",null,null,null,null,null,null,null,null,null,null,null,null,null,null,null,"1","2024-01-14","9999-12-31","2024-01-08","HUTCHIT","137SO AS: Legal Affairs","10056826","137LgAfrs","1370120001",137,{"$f":"_xlfn.XLOOKUP(VALUE(OU[[#This Row],[Master CC]]),FC_Master[Cost Center],FC_Master[rollup FC '#],OU[[#This Row],[Master CC]])","v":1370120001}]
[137,"137SO AS: Legal Affairs",10056826,"137LgAfrs",null,null,null,null,null,null,null,null,null,null,null,null,null,null,null,"1","2023-03-29","9999-12-31","2023-03-29","VILLARG","137SO AS: Lt Courthouse Security","10000327","137LtCtSec","1370320001",137,{"$f":"_xlfn.XLOOKUP(VALUE(OU[[#This Row],[Master CC]]),FC_Master[Cost Center],FC_Master[rollup FC '#],OU[[#This Row],[Master CC]])","v":1370320001}]
[137,"137SO AS: Lt Courthouse Security",10000327,"137LtCtSec",null,null,null,null,null,null,null,null,null,null,null,null,null,null,null,"1","2022-07-03","9999-12-31","2022-07-11","BROUSSC","137SO AS: Lt Professional Services","10000329","137LtPfS","1370080001",137,{"$f":"_xlfn.XLOOKUP(VALUE(OU[[#This Row],[Master CC]]),FC_Master[Cost Center],FC_Master[rollup FC '#],OU[[#This Row],[Master CC]])","v":1370120001}]
[137,"137SO AS: Lt Professional Services",10000329,"137LtPfS",null,null,null,null,null,null,null,null,null,null,null,null,null,null,null,"1","2019-01-06","9999-12-31","2019-01-11","MILLERA1","137SO AS: Lt Training Academy","10000330","137LtTrngAcd","1370090001",137,{"$f":"_xlfn.XLOOKUP(VALUE(OU[[#This Row],[Master CC]]),FC_Master[Cost Center],FC_Master[rollup FC '#],OU[[#This Row],[Master CC]])","v":1370170001}]
[137,"137SO AS: Lt Training Academy",10000330,"137LtTrngAcd",null,null,null,null,null,null,null,null,null,null,null,null,null,null,null,"1","2023-03-04","9999-12-31","2023-03-01","PHAMC","137SO AS: Lt Transportation","10000328","137LtTrns","1370420001",137,{"$f":"_xlfn.XLOOKUP(VALUE(OU[[#This Row],[Master CC]]),FC_Master[Cost Center],FC_Master[rollup FC '#],OU[[#This Row],[Master CC]])","v":1370440001}]
[137,"137SO AS: Lt Transportation",10000328,"137LtTrns",null,null,null,null,null,null,null,null,null,null,null,null,null,null,null,"1","1950-01-01","9999-12-31","2012-05-15","DATACONVERSI","137SO AS: Medical Services","10000363","137MedSv","1370490001",137,{"$f":"_xlfn.XLOOKUP(VALUE(OU[[#This Row],[Master CC]]),FC_Master[Cost Center],FC_Master[rollup FC '#],OU[[#This Row],[Master CC]])","v":1370490001}]
[137,"137SO AS: Medical Services",10000363,"137MedSv",null,null,null,null,null,null,null,null,null,null,null,null,null,null,null,"1","1950-01-01","9999-12-31","2012-05-15","DATACONVERSI","137SO AS: Medical Services Director","10000360","137MedSvDir","1370490001",137,{"$f":"_xlfn.XLOOKUP(VALUE(OU[[#This Row],[Master CC]]),FC_Master[Cost Center],FC_Master[rollup FC '#],OU[[#This Row],[Master CC]])","v":1370490001}]
[137,"137SO AS: Medical Services Director",10000360,"137MedSvDir",null,null,null,null,null,null,null,null,null,null,null,null,null,null,null,"1","2023-03-10","9999-12-31","2023-03-14","MILLIGA","137SO AS: Office Mgmt","10056102","137OfcMgmt","1370570001",137,{"$f":"_xlfn.XLOOKUP(VALUE(OU[[#This Row],[Master CC]]),FC_Master[Cost Center],FC_Master[rollup FC '#],OU[[#This Row],[Master CC]])","v":1370580001}]
[137,"137SO AS: Office Mgmt",10056102,"137OfcMgmt",null,null,null,null,null,null,null,null,null,null,null,null,null,null,null,"1","2013-01-16","9999-12-31","2013-01-30","LAMROLC","137SO AS: Pharmacy","10050326","137Phm","1370490001",137,{"$f":"_xlfn.XLOOKUP(VALUE(OU[[#This Row],[Master CC]]),FC_Master[Cost Center],FC_Master[rollup FC '#],OU[[#This Row],[Master CC]])","v":1370490001}]
[137,"137SO AS: Pharmacy",10050326,"137Phm",null,null,null,null,null,null,null,null,null,null,null,null,null,null,null,"1","2013-02-01","9999-12-31","2013-02-12","LAMROLC","137SO AS: Pharmacy Supervisor","10050378","137PhmSupv","1370490001",137,{"$f":"_xlfn.XLOOKUP(VALUE(OU[[#This Row],[Master CC]]),FC_Master[Cost Center],FC_Master[rollup FC '#],OU[[#This Row],[Master CC]])","v":1370490001}]
[137,"137SO AS: Pharmacy Supervisor",10050378,"137PhmSupv",null,null,null,null,null,null,null,null,null,null,null,null,null,null,null,"1","2017-06-27","9999-12-31","2017-06-30","BROUSSC","137SO AS: Recruiting","10052451","137Recruit","1370040001",137,{"$f":"_xlfn.XLOOKUP(VALUE(OU[[#This Row],[Master CC]]),FC_Master[Cost Center],FC_Master[rollup FC '#],OU[[#This Row],[Master CC]])","v":1370170001}]
[137,"137SO AS: Recruiting",10052451,"137Recruit",null,null,null,null,null,null,null,null,null,null,null,null,null,null,null,"1","1950-01-01","9999-12-31","2012-05-15","DATACONVERSI","137SO AS: Research and Planning","10000354","137RsPl","1370030001",137,{"$f":"_xlfn.XLOOKUP(VALUE(OU[[#This Row],[Master CC]]),FC_Master[Cost Center],FC_Master[rollup FC '#],OU[[#This Row],[Master CC]])","v":1370130001}]
[137,"137SO AS: Research and Planning",10000354,"137RsPl",null,null,null,null,null,null,null,null,null,null,null,null,null,null,null,"1","1950-01-01","9999-12-31","2012-05-15","DATACONVERSI","137SO AS: Research and Planning Mgmt","10000794","137RsPlMgmt","1370030001",137,{"$f":"_xlfn.XLOOKUP(VALUE(OU[[#This Row],[Master CC]]),FC_Master[Cost Center],FC_Master[rollup FC '#],OU[[#This Row],[Master CC]])","v":1370130001}]
[137,"137SO AS: Research and Planning Mgmt",10000794,"137RsPlMgmt",null,null,null,null,null,null,null,null,null,null,null,null,null,null,null,"1","2023-03-04","9999-12-31","2023-03-01","PHAMC","137SO AS: Sgt Courthouse Security","10000798","137SgtCtSec","1370320001",137,{"$f":"_xlfn.XLOOKUP(VALUE(OU[[#This Row],[Master CC]]),FC_Master[Cost Center],FC_Master[rollup FC '#],OU[[#This Row],[Master CC]])","v":1370320001}]
[137,"137SO AS: Sgt Courthouse Security",10000798,"137SgtCtSec",null,null,null,null,null,null,null,null,null,null,null,null,null,null,null,"1","2023-05-12","9999-12-31","2023-05-12","PHAMC","137SO AS: Sgt CTECC","10052028","137SgtCTECC","1370260001",137,{"$f":"_xlfn.XLOOKUP(VALUE(OU[[#This Row],[Master CC]]),FC_Master[Cost Center],FC_Master[rollup FC '#],OU[[#This Row],[Master CC]])","v":1370260001}]
[137,"137SO AS: Sgt CTECC",10052028,"137SgtCTECC",null,null,null,null,null,null,null,null,null,null,null,null,null,null,null,"1","1950-01-01","9999-12-31","2012-05-15","DATACONVERSI","137SO AS: Sgt Training Academy","10000795","137SgtTrng","1370090001",137,{"$f":"_xlfn.XLOOKUP(VALUE(OU[[#This Row],[Master CC]]),FC_Master[Cost Center],FC_Master[rollup FC '#],OU[[#This Row],[Master CC]])","v":1370170001}]
[137,"137SO AS: Sgt Training Academy",10000795,"137SgtTrng",null,null,null,null,null,null,null,null,null,null,null,null,null,null,null,"1","2023-03-04","9999-12-31","2023-03-01","PHAMC","137SO AS: Sgt Transportation","10000797","137SgtTrns","1370420001",137,{"$f":"_xlfn.XLOOKUP(VALUE(OU[[#This Row],[Master CC]]),FC_Master[Cost Center],FC_Master[rollup FC '#],OU[[#This Row],[Master CC]])","v":1370440001}]
[137,"137SO AS: Sgt Transportation",10000797,"137SgtTrns",null,null,null,null,null,null,null,null,null,null,null,null,null,null,null,"1","2013-01-16","9999-12-31","2013-01-30","LAMROLC","137SO AS: TCCC Medical","10000361","137TCCCMed","1370490001",137,{"$f":"_xlfn.XLOOKUP(VALUE(OU[[#This Row],[Master CC]]),FC_Master[Cost Center],FC_Master[rollup FC '#],OU[[#This Row],[Master CC]])","v":1370490001}]
[137,"137SO AS: TCCC Medical",10000361,"137TCCCMed",null,null,null,null,null,null,null,null,null,null,null,null,null,null,null,"1","2013-02-01","9999-12-31","2013-02-12","LAMROLC","137SO AS: TCCC Medical Supervisor","10050376","137CCMedSupv","1370490001",137,{"$f":"_xlfn.XLOOKUP(VALUE(OU[[#This Row],[Master CC]]),FC_Master[Cost Center],FC_Master[rollup FC '#],OU[[#This Row],[Master CC]])","v":1370490001}]
[137,"137SO AS: TCCC Medical Supervisor",10050376,"137CCMedSupv",null,null,null,null,null,null,null,null,null,null,null,null,null,null,null,"1","2017-10-31","9999-12-31","2017-11-07","CHANGM","137SO AS: TCCC Treatment","10000365","137TCCCTrtmt","1370570001",137,{"$f":"_xlfn.XLOOKUP(VALUE(OU[[#This Row],[Master CC]]),FC_Master[Cost Center],FC_Master[rollup FC '#],OU[[#This Row],[Master CC]])","v":1370580001}]
[137,"137SO AS: TCCC Treatment",10000365,"137TCCCTrtmt",null,null,null,null,null,null,null,null,null,null,null,null,null,null,null,"1","2013-01-16","9999-12-31","2013-01-30","LAMROLC","137SO AS: TCJ Medical","10000362","137TCJMed","1370490001",137,{"$f":"_xlfn.XLOOKUP(VALUE(OU[[#This Row],[Master CC]]),FC_Master[Cost Center],FC_Master[rollup FC '#],OU[[#This Row],[Master CC]])","v":1370490001}]
[137,"137SO AS: TCJ Medical",10000362,"137TCJMed",null,null,null,null,null,null,null,null,null,null,null,null,null,null,null,"1","2014-10-01","9999-12-31","2014-10-20","BROUSSC","137SO AS: TCJ Medical Supervisor","10050377","137JMedSupv","1370460001",137,{"$f":"_xlfn.XLOOKUP(VALUE(OU[[#This Row],[Master CC]]),FC_Master[Cost Center],FC_Master[rollup FC '#],OU[[#This Row],[Master CC]])","v":1370460001}]
[137,"137SO AS: TCJ Medical Supervisor",10050377,"137JMedSupv",null,null,null,null,null,null,null,null,null,null,null,null,null,null,null,"1","2014-10-01","9999-12-31","2014-10-20","BROUSSC","137SO AS: TCJ Medical-Central Booking","10051227","137MedCB","1370460001",137,{"$f":"_xlfn.XLOOKUP(VALUE(OU[[#This Row],[Master CC]]),FC_Master[Cost Center],FC_Master[rollup FC '#],OU[[#This Row],[Master CC]])","v":1370460001}]
[137,"137SO AS: TCJ Medical-Central Booking",10051227,"137MedCB",null,null,null,null,null,null,null,null,null,null,null,null,null,null,null,"1","1950-01-01","9999-12-31","2012-05-15","DATACONVERSI","137SO AS: Training Academy","10000342","137TrngAcd","1370090001",137,{"$f":"_xlfn.XLOOKUP(VALUE(OU[[#This Row],[Master CC]]),FC_Master[Cost Center],FC_Master[rollup FC '#],OU[[#This Row],[Master CC]])","v":1370170001}]
[137,"137SO AS: Training Academy",10000342,"137TrngAcd",null,null,null,null,null,null,null,null,null,null,null,null,null,null,null,"1","2023-03-04","9999-12-31","2023-03-01","PHAMC","137SO AS: Transportation","10000367","137Trns","1370420001",137,{"$f":"_xlfn.XLOOKUP(VALUE(OU[[#This Row],[Master CC]]),FC_Master[Cost Center],FC_Master[rollup FC '#],OU[[#This Row],[Master CC]])","v":1370440001}]
[137,"137SO AS: Transportation",10000367,"137Trns",null,null,null,null,null,null,null,null,null,null,null,null,null,null,null,"1","1950-01-01","9999-12-31","2012-05-15","DATACONVERSI","137SO Chief Deputy Sheriff","10000305","137ChfDpShf","1370130001",137,{"$f":"_xlfn.XLOOKUP(VALUE(OU[[#This Row],[Master CC]]),FC_Master[Cost Center],FC_Master[rollup FC '#],OU[[#This Row],[Master CC]])","v":1370130001}]
[137,"137SO Chief Deputy Sheriff",10000305,"137ChfDpShf",null,null,null,null,null,null,null,null,null,null,null,null,null,null,null,"1","1950-01-01","9999-12-31","2012-05-15","DATACONVERSI","137SO Crc: Bldg 2&10: A-Shift","10000390","137Bldg2A","1370280001",137,{"$f":"_xlfn.XLOOKUP(VALUE(OU[[#This Row],[Master CC]]),FC_Master[Cost Center],FC_Master[rollup FC '#],OU[[#This Row],[Master CC]])","v":1370440001}]
[137,"137SO Crc: Bldg 2&10: A-Shift",10000390,"137Bldg2A",null,null,null,null,null,null,null,null,null,null,null,null,null,null,null,"1","1950-01-01","9999-12-31","2012-05-15","DATACONVERSI","137SO Crc: Bldg 2&10: B-Shift","10000391","137Bldg2B","1370280001",137,{"$f":"_xlfn.XLOOKUP(VALUE(OU[[#This Row],[Master CC]]),FC_Master[Cost Center],FC_Master[rollup FC '#],OU[[#This Row],[Master CC]])","v":1370440001}]
[137,"137SO Crc: Bldg 2&10: B-Shift",10000391,"137Bldg2B",null,null,null,null,null,null,null,null,null,null,null,null,null,null,null,"1","1950-01-01","9999-12-31","2012-05-15","DATACONVERSI","137SO Crc: Bldg 2&10: C-Shift","10000392","137Bldg2C","1370280001",137,{"$f":"_xlfn.XLOOKUP(VALUE(OU[[#This Row],[Master CC]]),FC_Master[Cost Center],FC_Master[rollup FC '#],OU[[#This Row],[Master CC]])","v":1370440001}]
[137,"137SO Crc: Bldg 2&10: C-Shift",10000392,"137Bldg2C",null,null,null,null,null,null,null,null,null,null,null,null,null,null,null,"1","1950-01-01","9999-12-31","2012-05-15","DATACONVERSI","137SO Crc: Bldg 3 5/9: A-Shift","10000393","137Bldg3A","1370280001",137,{"$f":"_xlfn.XLOOKUP(VALUE(OU[[#This Row],[Master CC]]),FC_Master[Cost Center],FC_Master[rollup FC '#],OU[[#This Row],[Master CC]])","v":1370440001}]
[137,"137SO Crc: Bldg 3 5/9: A-Shift",10000393,"137Bldg3A",null,null,null,null,null,null,null,null,null,null,null,null,null,null,null,"1","1950-01-01","9999-12-31","2012-05-15","DATACONVERSI","137SO Crc: Bldg 3 5/9: B-Shift","10000394","137Bldg3B","1370280001",137,{"$f":"_xlfn.XLOOKUP(VALUE(OU[[#This Row],[Master CC]]),FC_Master[Cost Center],FC_Master[rollup FC '#],OU[[#This Row],[Master CC]])","v":1370440001}]
[137,"137SO Crc: Bldg 3 5/9: B-Shift",10000394,"137Bldg3B",null,null,null,null,null,null,null,null,null,null,null,null,null,null,null,"1","1950-01-01","9999-12-31","2012-05-15","DATACONVERSI","137SO Crc: Bldg 3 5/9: C-Shift","10000395","137Bldg3C","1370280001",137,{"$f":"_xlfn.XLOOKUP(VALUE(OU[[#This Row],[Master CC]]),FC_Master[Cost Center],FC_Master[rollup FC '#],OU[[#This Row],[Master CC]])","v":1370440001}]
[137,"137SO Crc: Bldg 3 5/9: C-Shift",10000395,"137Bldg3C",null,null,null,null,null,null,null,null,null,null,null,null,null,null,null,"1","1950-01-01","9999-12-31","2012-05-15","DATACONVERSI","137SO Crc: Building 1: A-Shift","10000386","137Bldg1A","1370270001",137,{"$f":"_xlfn.XLOOKUP(VALUE(OU[[#This Row],[Master CC]]),FC_Master[Cost Center],FC_Master[rollup FC '#],OU[[#This Row],[Master CC]])","v":1370440001}]
[137,"137SO Crc: Building 1: A-Shift",{"$f":"VALUE(Z642)","v":10000386},"137Bldg1A",null,null,null,null,null,null,null,null,null,null,null,null,null,null,null,"1","1950-01-01","9999-12-31","2012-05-15","DATACONVERSI","137SO Crc: Building 1: B-Shift","10000387","137Bldg1B","1370270001",137,{"$f":"_xlfn.XLOOKUP(VALUE(OU[[#This Row],[Master CC]]),FC_Master[Cost Center],FC_Master[rollup FC '#],OU[[#This Row],[Master CC]])","v":1370440001}]
[{"$f":"AC643","v":137},{"$f":"Y643","v":"137SO Crc: Building 1: B-Shift"},10000387,{"$f":"AA643","v":"137Bldg1B"},null,null,null,null,null,null,null,null,null,null,null,null,null,null,null,"1","1950-01-01","9999-12-31","2012-05-15","DATACONVERSI","137SO Crc: Building 1: C-Shift","10000388","137Bldg1C","1370270001",137,{"$f":"_xlfn.XLOOKUP(VALUE(OU[[#This Row],[Master CC]]),FC_Master[Cost Center],FC_Master[rollup FC '#],OU[[#This Row],[Master CC]])","v":1370440001}]
[137,"137SO Crc: Building 1: C-Shift",10000388,"137Bldg1C",null,null,null,null,null,null,null,null,null,null,null,null,null,null,null,"1","2016-06-13","9999-12-31","2016-06-13","LAMROLC","137SO Crc: Building 12: T1","10000814","137Bldg12T1","1370290001",137,{"$f":"_xlfn.XLOOKUP(VALUE(OU[[#This Row],[Master CC]]),FC_Master[Cost Center],FC_Master[rollup FC '#],OU[[#This Row],[Master CC]])","v":1370440001}]
[137,"137SO Crc: Building 12: T1",10000814,"137Bldg12T1",null,null,null,null,null,null,null,null,null,null,null,null,null,null,null,"1","2016-06-13","9999-12-31","2016-06-13","LAMROLC","137SO Crc: Building 12: T2","10000815","137Bldg12T2","1370290001",137,{"$f":"_xlfn.XLOOKUP(VALUE(OU[[#This Row],[Master CC]]),FC_Master[Cost Center],FC_Master[rollup FC '#],OU[[#This Row],[Master CC]])","v":1370440001}]
[137,"137SO Crc: Building 12: T2",10000815,"137Bldg12T2",null,null,null,null,null,null,null,null,null,null,null,null,null,null,null,"1","2016-06-13","9999-12-31","2016-06-13","LAMROLC","137SO Crc: Building 12: T3","10000816","137Bldg12T3","1370290001",137,{"$f":"_xlfn.XLOOKUP(VALUE(OU[[#This Row],[Master CC]]),FC_Master[Cost Center],FC_Master[rollup FC '#],OU[[#This Row],[Master CC]])","v":1370440001}]
[137,"137SO Crc: Building 12: T3",10000816,"137Bldg12T3",null,null,null,null,null,null,null,null,null,null,null,null,null,null,null,"1","2017-10-01","9999-12-31","2017-12-11","MILLERA1","137SO Crc: Building 12: T4","10000817","137Bldg12T4","1370290001",137,{"$f":"_xlfn.XLOOKUP(VALUE(OU[[#This Row],[Master CC]]),FC_Master[Cost Center],FC_Master[rollup FC '#],OU[[#This Row],[Master CC]])","v":1370440001}]
[137,"137SO Crc: Building 12: T4",10000817,"137Bldg12T4",null,null,null,null,null,null,null,null,null,null,null,null,null,null,null,"1","2023-05-25","9999-12-31","2023-05-30","BRADENA1","137SO Crc: CareWare","10056304","137CW","1370280001",137,{"$f":"_xlfn.XLOOKUP(VALUE(OU[[#This Row],[Master CC]]),FC_Master[Cost Center],FC_Master[rollup FC '#],OU[[#This Row],[Master CC]])","v":1370440001}]
[137,"137SO Crc: CareWare",10056304,"137CW",null,null,null,null,null,null,null,null,null,null,null,null,null,null,null,"1","2014-10-01","9999-12-31","2014-10-20","BROUSSC","137SO Crc: CB: A-Shift Non-Interlocal","10051228","137CBANonI","1370440001",137,{"$f":"_xlfn.XLOOKUP(VALUE(OU[[#This Row],[Master CC]]),FC_Master[Cost Center],FC_Master[rollup FC '#],OU[[#This Row],[Master CC]])","v":1370440001}]
[137,"137SO Crc: CB: A-Shift Non-Interlocal",10051228,"137CBANonI",null,null,null,null,null,null,null,null,null,null,null,null,null,null,null,"1","2014-10-01","9999-12-31","2014-10-20","BROUSSC","137SO Crc: CB: B-Shift Non-Interlocal","10051229","137CBBNonI","1370440001",137,{"$f":"_xlfn.XLOOKUP(VALUE(OU[[#This Row],[Master CC]]),FC_Master[Cost Center],FC_Master[rollup FC '#],OU[[#This Row],[Master CC]])","v":1370440001}]
[137,"137SO Crc: CB: B-Shift Non-Interlocal",10051229,"137CBBNonI",null,null,null,null,null,null,null,null,null,null,null,null,null,null,null,"1","2014-10-01","9999-12-31","2014-10-20","BROUSSC","137SO Crc: CB: C-Shift Non-Interlocal","10051230","137CBCNonI","1370440001",137,{"$f":"_xlfn.XLOOKUP(VALUE(OU[[#This Row],[Master CC]]),FC_Master[Cost Center],FC_Master[rollup FC '#],OU[[#This Row],[Master CC]])","v":1370440001}]
[137,"137SO Crc: CB: C-Shift Non-Interlocal",10051230,"137CBCNonI",null,null,null,null,null,null,null,null,null,null,null,null,null,null,null,"1","1950-01-01","9999-12-31","2012-05-15","DATACONVERSI","137SO Crc: Central Booking: A-Shift","10000383","137CBA","1370460001",137,{"$f":"_xlfn.XLOOKUP(VALUE(OU[[#This Row],[Master CC]]),FC_Master[Cost Center],FC_Master[rollup FC '#],OU[[#This Row],[Master CC]])","v":1370460001}]
[137,"137SO Crc: Central Booking: A-Shift",10000383,"137CBA",null,null,null,null,null,null,null,null,null,null,null,null,null,null,null,"1","1950-01-01","9999-12-31","2012-05-15","DATACONVERSI","137SO Crc: Central Booking: B-Shift","10000384","137CBB","1370460001",137,{"$f":"_xlfn.XLOOKUP(VALUE(OU[[#This Row],[Master CC]]),FC_Master[Cost Center],FC_Master[rollup FC '#],OU[[#This Row],[Master CC]])","v":1370460001}]
[137,"137SO Crc: Central Booking: B-Shift",10000384,"137CBB",null,null,null,null,null,null,null,null,null,null,null,null,null,null,null,"1","1950-01-01","9999-12-31","2012-05-15","DATACONVERSI","137SO Crc: Central Booking: C-Shift","10000385","137CBC","1370460001",137,{"$f":"_xlfn.XLOOKUP(VALUE(OU[[#This Row],[Master CC]]),FC_Master[Cost Center],FC_Master[rollup FC '#],OU[[#This Row],[Master CC]])","v":1370460001}]
[137,"137SO Crc: Central Booking: C-Shift",10000385,"137CBC",null,null,null,null,null,null,null,null,null,null,null,null,null,null,null,"1","1950-01-01","9999-12-31","2012-05-15","DATACONVERSI","137SO Crc: Classifications/Rcd","10000409","137ClfRcd","1370410001",137,{"$f":"_xlfn.XLOOKUP(VALUE(OU[[#This Row],[Master CC]]),FC_Master[Cost Center],FC_Master[rollup FC '#],OU[[#This Row],[Master CC]])","v":1370440001}]
[137,"137SO Crc: Classifications/Rcd",10000409,"137ClfRcd",null,null,null,null,null,null,null,null,null,null,null,null,null,null,null,"1","1950-01-01","9999-12-31","2012-05-15","DATACONVERSI","137SO Crc: Commissary","10000375","137Cmsry","1370310001",137,{"$f":"_xlfn.XLOOKUP(VALUE(OU[[#This Row],[Master CC]]),FC_Master[Cost Center],FC_Master[rollup FC '#],OU[[#This Row],[Master CC]])","v":1370310001}]
[137,"137SO Crc: Commissary",10000375,"137Cmsry",null,null,null,null,null,null,null,null,null,null,null,null,null,null,null,"1","1950-01-01","9999-12-31","2012-05-15","DATACONVERSI","137SO Crc: Complex Security Support","10000408","137CSS","1370160001",137,{"$f":"_xlfn.XLOOKUP(VALUE(OU[[#This Row],[Master CC]]),FC_Master[Cost Center],FC_Master[rollup FC '#],OU[[#This Row],[Master CC]])","v":1370440001}]
[137,"137SO Crc: Complex Security Support",10000408,"137CSS",null,null,null,null,null,null,null,null,null,null,null,null,null,null,null,"1","2012-12-20","9999-12-31","2012-12-20","LAMROLC","137SO Crc: Complex Security: A-Shift","10000404","137CpxSecASf","1370160001",137,{"$f":"_xlfn.XLOOKUP(VALUE(OU[[#This Row],[Master CC]]),FC_Master[Cost Center],FC_Master[rollup FC '#],OU[[#This Row],[Master CC]])","v":1370440001}]
[137,"137SO Crc: Complex Security: A-Shift",10000404,"137CpxSecASf",null,null,null,null,null,null,null,null,null,null,null,null,null,null,null,"1","2012-12-20","9999-12-31","2012-12-20","LAMROLC","137SO Crc: Complex Security: B-Shift","10000405","137CpxSecBSf","1370160001",137,{"$f":"_xlfn.XLOOKUP(VALUE(OU[[#This Row],[Master CC]]),FC_Master[Cost Center],FC_Master[rollup FC '#],OU[[#This Row],[Master CC]])","v":1370440001}]
[137,"137SO Crc: Complex Security: B-Shift",10000405,"137CpxSecBSf",null,null,null,null,null,null,null,null,null,null,null,null,null,null,null,"1","2012-12-20","9999-12-31","2012-12-20","LAMROLC","137SO Crc: Complex Security: C-Shift","10000406","137CpxSecCSf","1370160001",137,{"$f":"_xlfn.XLOOKUP(VALUE(OU[[#This Row],[Master CC]]),FC_Master[Cost Center],FC_Master[rollup FC '#],OU[[#This Row],[Master CC]])","v":1370440001}]
[137,"137SO Crc: Complex Security: C-Shift",10000406,"137CpxSecCSf",null,null,null,null,null,null,null,null,null,null,null,null,null,null,null,"1","2017-10-01","9999-12-31","2017-12-11","MILLERA1","137SO Crc: Complex Security: D-Shift","10052101","137CpxSecDSf","1370160001",137,{"$f":"_xlfn.XLOOKUP(VALUE(OU[[#This Row],[Master CC]]),FC_Master[Cost Center],FC_Master[rollup FC '#],OU[[#This Row],[Master CC]])","v":1370440001}]
[137,"137SO Crc: Complex Security: D-Shift",10052101,"137CpxSecDSf",null,null,null,null,null,null,null,null,null,null,null,null,null,null,null,"1","2017-10-01","9999-12-31","2017-09-12","MILLERA1","137SO Crc: Courthouse Security","10000368","137CtSec","1370320001",137,{"$f":"_xlfn.XLOOKUP(VALUE(OU[[#This Row],[Master CC]]),FC_Master[Cost Center],FC_Master[rollup FC '#],OU[[#This Row],[Master CC]])","v":1370320001}]
[137,"137SO Crc: Courthouse Security",10000368,"137CtSec",null,null,null,null,null,null,null,null,null,null,null,null,null,null,null,"1","2023-05-12","9999-12-31","2023-05-12","PHAMC","137SO Crc: CSTU","10055576","137CSTU","1370160001",137,{"$f":"_xlfn.XLOOKUP(VALUE(OU[[#This Row],[Master CC]]),FC_Master[Cost Center],FC_Master[rollup FC '#],OU[[#This Row],[Master CC]])","v":1370440001}]
[137,"137SO Crc: CSTU",10055576,"137CSTU",null,null,null,null,null,null,null,null,null,null,null,null,null,null,null,"1","1950-01-01","9999-12-31","2012-05-15","DATACONVERSI","137SO Crc: Facilities","10000376","137Fcl","1370380001",137,{"$f":"_xlfn.XLOOKUP(VALUE(OU[[#This Row],[Master CC]]),FC_Master[Cost Center],FC_Master[rollup FC '#],OU[[#This Row],[Master CC]])","v":1370440001}]
[137,"137SO Crc: Facilities",10000376,"137Fcl",null,null,null,null,null,null,null,null,null,null,null,null,null,null,null,"1","2015-04-16","9999-12-31","2015-06-05","BROUSSC","137SO Crc: Facilities Bldg Mnt Engineer","10000339","137FclMnt","1370330001",137,{"$f":"_xlfn.XLOOKUP(VALUE(OU[[#This Row],[Master CC]]),FC_Master[Cost Center],FC_Master[rollup FC '#],OU[[#This Row],[Master CC]])","v":1370440001}]
[137,"137SO Crc: Facilities Bldg Mnt Engineer",10000339,"137FclMnt",null,null,null,null,null,null,null,null,null,null,null,null,null,null,null,"1","2018-12-13","9999-12-31","2018-12-18","MILLERA1","137SO Crc: Food Service Security","10053301","137FoodSvSec","1370440001",137,{"$f":"_xlfn.XLOOKUP(VALUE(OU[[#This Row],[Master CC]]),FC_Master[Cost Center],FC_Master[rollup FC '#],OU[[#This Row],[Master CC]])","v":1370440001}]
[137,"137SO Crc: Food Service Security",10053301,"137FoodSvSec",null,null,null,null,null,null,null,null,null,null,null,null,null,null,null,"1","2023-02-26","9999-12-31","2023-02-22","PHAMC","137SO Crc: Food Services AM Shift","10000374","137FoodSvAM","1370370001",137,{"$f":"_xlfn.XLOOKUP(VALUE(OU[[#This Row],[Master CC]]),FC_Master[Cost Center],FC_Master[rollup FC '#],OU[[#This Row],[Master CC]])","v":1370440001}]
[137,"137SO Crc: Food Services AM Shift",10000374,"137FoodSvAM",null,null,null,null,null,null,null,null,null,null,null,null,null,null,null,"1","2023-02-26","9999-12-31","2023-02-23","BRADENA1","137SO Crc: Food Services PM Shift","10056076","137FoodSvPM","1370370001",137,{"$f":"_xlfn.XLOOKUP(VALUE(OU[[#This Row],[Master CC]]),FC_Master[Cost Center],FC_Master[rollup FC '#],OU[[#This Row],[Master CC]])","v":1370440001}]
[137,"137SO Crc: Food Services PM Shift",10056076,"137FoodSvPM",null,null,null,null,null,null,null,null,null,null,null,null,null,null,null,"1","1950-01-01","9999-12-31","2012-05-15","DATACONVERSI","137SO Crc: Hospital Vstn Unit: A-Shift","10000401","137HVA","1370360001",137,{"$f":"_xlfn.XLOOKUP(VALUE(OU[[#This Row],[Master CC]]),FC_Master[Cost Center],FC_Master[rollup FC '#],OU[[#This Row],[Master CC]])","v":1370440001}]
[137,"137SO Crc: Hospital Vstn Unit: A-Shift",10000401,"137HVA",null,null,null,null,null,null,null,null,null,null,null,null,null,null,null,"1","1950-01-01","9999-12-31","2012-05-15","DATACONVERSI","137SO Crc: Hospital Vstn Unit: B-Shift","10000402","137HVB","1370360001",137,{"$f":"_xlfn.XLOOKUP(VALUE(OU[[#This Row],[Master CC]]),FC_Master[Cost Center],FC_Master[rollup FC '#],OU[[#This Row],[Master CC]])","v":1370440001}]
[137,"137SO Crc: Hospital Vstn Unit: B-Shift",10000402,"137HVB",null,null,null,null,null,null,null,null,null,null,null,null,null,null,null,"1","1950-01-01","9999-12-31","2012-05-15","DATACONVERSI","137SO Crc: Hospital Vstn Unit: C-Shift","10000403","137HVC","1370360001",137,{"$f":"_xlfn.XLOOKUP(VALUE(OU[[#This Row],[Master CC]]),FC_Master[Cost Center],FC_Master[rollup FC '#],OU[[#This Row],[Master CC]])","v":1370440001}]
[137,"137SO Crc: Hospital Vstn Unit: C-Shift",10000403,"137HVC",null,null,null,null,null,null,null,null,null,null,null,null,null,null,null,"1","2023-03-16","9999-12-31","2023-03-16","PHAMC","137SO Crc: Housing & Compliance","10000313","137Hsg&Cm","1370440001",137,{"$f":"_xlfn.XLOOKUP(VALUE(OU[[#This Row],[Master CC]]),FC_Master[Cost Center],FC_Master[rollup FC '#],OU[[#This Row],[Master CC]])","v":1370440001}]
[137,"137SO Crc: Housing & Compliance",10000313,"137Hsg&Cm",null,null,null,null,null,null,null,null,null,null,null,null,null,null,null,"1","2023-03-16","9999-12-31","2023-03-16","PHAMC","137SO Crc: Housing & Special Operations","10000312","137HsgSpOps","1370290001",137,{"$f":"_xlfn.XLOOKUP(VALUE(OU[[#This Row],[Master CC]]),FC_Master[Cost Center],FC_Master[rollup FC '#],OU[[#This Row],[Master CC]])","v":1370440001}]
[137,"137SO Crc: Housing & Special Operations",10000312,"137HsgSpOps",null,null,null,null,null,null,null,null,null,null,null,null,null,null,null,"1","2023-03-16","9999-12-31","2023-03-16","PHAMC","137SO Crc: Housing & Support Services","10000315","137Hsg&SpSv","1370440001",137,{"$f":"_xlfn.XLOOKUP(VALUE(OU[[#This Row],[Master CC]]),FC_Master[Cost Center],FC_Master[rollup FC '#],OU[[#This Row],[Master CC]])","v":1370440001}]
[137,"137SO Crc: Housing & Support Services",10000315,"137Hsg&SpSv",null,null,null,null,null,null,null,null,null,null,null,null,null,null,null,"1","1950-01-01","9999-12-31","2012-05-15","DATACONVERSI","137SO Crc: HSB: A-Shift","10000397","137HSBA","1370350001",137,{"$f":"_xlfn.XLOOKUP(VALUE(OU[[#This Row],[Master CC]]),FC_Master[Cost Center],FC_Master[rollup FC '#],OU[[#This Row],[Master CC]])","v":1370440001}]
[137,"137SO Crc: HSB: A-Shift",10000397,"137HSBA",null,null,null,null,null,null,null,null,null,null,null,null,null,null,null,"1","1950-01-01","9999-12-31","2012-05-15","DATACONVERSI","137SO Crc: HSB: B-Shift","10000398","137HSBB","1370350001",137,{"$f":"_xlfn.XLOOKUP(VALUE(OU[[#This Row],[Master CC]]),FC_Master[Cost Center],FC_Master[rollup FC '#],OU[[#This Row],[Master CC]])","v":1370440001}]
[137,"137SO Crc: HSB: B-Shift",10000398,"137HSBB",null,null,null,null,null,null,null,null,null,null,null,null,null,null,null,"1","1950-01-01","9999-12-31","2012-05-15","DATACONVERSI","137SO Crc: HSB: C-Shift","10000399","137HSBC","1370350001",137,{"$f":"_xlfn.XLOOKUP(VALUE(OU[[#This Row],[Master CC]]),FC_Master[Cost Center],FC_Master[rollup FC '#],OU[[#This Row],[Master CC]])","v":1370440001}]
[137,"137SO Crc: HSB: C-Shift",10000399,"137HSBC",null,null,null,null,null,null,null,null,null,null,null,null,null,null,null,"1","2023-03-16","9999-12-31","2023-03-16","PHAMC","137SO Crc: Inmate Logistics & Processing","10000316","137ImLogProc","1370460001",137,{"$f":"_xlfn.XLOOKUP(VALUE(OU[[#This Row],[Master CC]]),FC_Master[Cost Center],FC_Master[rollup FC '#],OU[[#This Row],[Master CC]])","v":1370460001}]
[137,"137SO Crc: Inmate Logistics & Processing",10000316,"137ImLogProc",null,null,null,null,null,null,null,null,null,null,null,null,null,null,null,"1","2023-03-16","9999-12-31","2023-03-16","PHAMC","137SO Crc: Inmate Services","10000326","137InmateSv","1370370001",137,{"$f":"_xlfn.XLOOKUP(VALUE(OU[[#This Row],[Master CC]]),FC_Master[Cost Center],FC_Master[rollup FC '#],OU[[#This Row],[Master CC]])","v":1370440001}]
[137,"137SO Crc: Inmate Services",10000326,"137InmateSv",null,null,null,null,null,null,null,null,null,null,null,null,null,null,null,"1","2023-07-17","9999-12-31","2023-07-19","HUTCHIT","137SO Crc: Locksmith Supervisor","10056377","137LcsSupv","1370330001",137,{"$f":"_xlfn.XLOOKUP(VALUE(OU[[#This Row],[Master CC]]),FC_Master[Cost Center],FC_Master[rollup FC '#],OU[[#This Row],[Master CC]])","v":1370440001}]
[137,"137SO Crc: Locksmith Supervisor",10056377,"137LcsSupv",null,null,null,null,null,null,null,null,null,null,null,null,null,null,null,"1","2021-01-01","9999-12-31","2020-12-30","GIPSONK","137SO Crc: Lt Building 1","10000323","137LtBldg1","1370270001",137,{"$f":"_xlfn.XLOOKUP(VALUE(OU[[#This Row],[Master CC]]),FC_Master[Cost Center],FC_Master[rollup FC '#],OU[[#This Row],[Master CC]])","v":1370440001}]
[137,"137SO Crc: Lt Building 1",10000323,"137LtBldg1",null,null,null,null,null,null,null,null,null,null,null,null,null,null,null,"1","2023-10-10","9999-12-31","2023-10-12","BRADENA1","137SO Crc: Lt Building 12: T1","10056626","137Lt12T1","1370440001",137,{"$f":"_xlfn.XLOOKUP(VALUE(OU[[#This Row],[Master CC]]),FC_Master[Cost Center],FC_Master[rollup FC '#],OU[[#This Row],[Master CC]])","v":1370440001}]
[137,"137SO Crc: Lt Building 12: T1",10056626,"137Lt12T1",null,null,null,null,null,null,null,null,null,null,null,null,null,null,null,"1","2023-10-10","9999-12-31","2023-10-12","BRADENA1","137SO Crc: Lt Building 12: T2","10056627","137Lt12T2","1370440001",137,{"$f":"_xlfn.XLOOKUP(VALUE(OU[[#This Row],[Master CC]]),FC_Master[Cost Center],FC_Master[rollup FC '#],OU[[#This Row],[Master CC]])","v":1370440001}]
[137,"137SO Crc: Lt Building 12: T2",10056627,"137Lt12T2",null,null,null,null,null,null,null,null,null,null,null,null,null,null,null,"1","2023-10-10","9999-12-31","2023-10-12","BRADENA1","137SO Crc: Lt Building 12: T3","10056628","137Lt12T3","1370440001",137,{"$f":"_xlfn.XLOOKUP(VALUE(OU[[#This Row],[Master CC]]),FC_Master[Cost Center],FC_Master[rollup FC '#],OU[[#This Row],[Master CC]])","v":1370440001}]
[137,"137SO Crc: Lt Building 12: T3",10056628,"137Lt12T3",null,null,null,null,null,null,null,null,null,null,null,null,null,null,null,"1","2023-05-25","9999-12-31","2023-10-11","PHAMC","137SO Crc: Lt Building 12: T4","10000321","137Lt12T4","1370290001",137,{"$f":"_xlfn.XLOOKUP(VALUE(OU[[#This Row],[Master CC]]),FC_Master[Cost Center],FC_Master[rollup FC '#],OU[[#This Row],[Master CC]])","v":1370440001}]
[137,"137SO Crc: Lt Building 12: T4",10000321,"137Lt12T4",null,null,null,null,null,null,null,null,null,null,null,null,null,null,null,"1","2020-01-30","9999-12-31","2020-01-30","LAMROLC","137SO Crc: Lt Building 3, 5 & 9","10000322","137LtBldg359","1370280001",137,{"$f":"_xlfn.XLOOKUP(VALUE(OU[[#This Row],[Master CC]]),FC_Master[Cost Center],FC_Master[rollup FC '#],OU[[#This Row],[Master CC]])","v":1370440001}]
[137,"137SO Crc: Lt Building 3, 5 & 9",10000322,"137LtBldg359",null,null,null,null,null,null,null,null,null,null,null,null,null,null,null,"1","2014-10-01","9999-12-31","2014-10-20","BROUSSC","137SO Crc: Lt Central Booking","10000324","137LtCB","1370460001",137,{"$f":"_xlfn.XLOOKUP(VALUE(OU[[#This Row],[Master CC]]),FC_Master[Cost Center],FC_Master[rollup FC '#],OU[[#This Row],[Master CC]])","v":1370460001}]
[137,"137SO Crc: Lt Central Booking",10000324,"137LtCB",null,null,null,null,null,null,null,null,null,null,null,null,null,null,null,"1","2018-02-01","9999-12-31","2018-02-01","MILLERA1","137SO Crc: Lt Classifications/Rcd","10000317","137LtClfRcd","1370410001",137,{"$f":"_xlfn.XLOOKUP(VALUE(OU[[#This Row],[Master CC]]),FC_Master[Cost Center],FC_Master[rollup FC '#],OU[[#This Row],[Master CC]])","v":1370440001}]
[137,"137SO Crc: Lt Classifications/Rcd",10000317,"137LtClfRcd",null,null,null,null,null,null,null,null,null,null,null,null,null,null,null,"1","2021-01-01","9999-12-31","2020-12-30","GIPSONK","137SO Crc: Lt Complex Security","10000318","137LtCpxSec","1370160001",137,{"$f":"_xlfn.XLOOKUP(VALUE(OU[[#This Row],[Master CC]]),FC_Master[Cost Center],FC_Master[rollup FC '#],OU[[#This Row],[Master CC]])","v":1370440001}]
[137,"137SO Crc: Lt Complex Security",10000318,"137LtCpxSec",null,null,null,null,null,null,null,null,null,null,null,null,null,null,null,"1","2022-07-03","9999-12-31","2022-07-11","BROUSSC","137SO Crc: Lt Hospital Vstn Unit","10000319","137LtHV","1370360001",137,{"$f":"_xlfn.XLOOKUP(VALUE(OU[[#This Row],[Master CC]]),FC_Master[Cost Center],FC_Master[rollup FC '#],OU[[#This Row],[Master CC]])","v":1370440001}]
[137,"137SO Crc: Lt Hospital Vstn Unit",10000319,"137LtHV",null,null,null,null,null,null,null,null,null,null,null,null,null,null,null,"1","2022-07-03","9999-12-31","2022-07-11","BROUSSC","137SO Crc: Lt HSB","10000320","137LtHSB","1370350001",137,{"$f":"_xlfn.XLOOKUP(VALUE(OU[[#This Row],[Master CC]]),FC_Master[Cost Center],FC_Master[rollup FC '#],OU[[#This Row],[Master CC]])","v":1370440001}]
[137,"137SO Crc: Lt HSB",10000320,"137LtHSB",null,null,null,null,null,null,null,null,null,null,null,null,null,null,null,"1","1950-01-01","9999-12-31","2012-05-15","DATACONVERSI","137SO Crc: Lt Travis County Jail","10000325","137LtTCJ","1370430001",137,{"$f":"_xlfn.XLOOKUP(VALUE(OU[[#This Row],[Master CC]]),FC_Master[Cost Center],FC_Master[rollup FC '#],OU[[#This Row],[Master CC]])","v":1370440001}]
[137,"137SO Crc: Lt Travis County Jail",10000325,"137LtTCJ",null,null,null,null,null,null,null,null,null,null,null,null,null,null,null,"1","2023-06-25","9999-12-31","2023-06-27","HUTCHIT","137SO Crc: Mailroom","10056351","137Mlr","1370280001",137,{"$f":"_xlfn.XLOOKUP(VALUE(OU[[#This Row],[Master CC]]),FC_Master[Cost Center],FC_Master[rollup FC '#],OU[[#This Row],[Master CC]])","v":1370440001}]
[137,"137SO Crc: Mailroom",10056351,"137Mlr",null,null,null,null,null,null,null,null,null,null,null,null,null,null,null,"1","1950-01-01","9999-12-31","2012-05-15","DATACONVERSI","137SO Crc: Maintenance","10000372","137Mnt","1370390001",137,{"$f":"_xlfn.XLOOKUP(VALUE(OU[[#This Row],[Master CC]]),FC_Master[Cost Center],FC_Master[rollup FC '#],OU[[#This Row],[Master CC]])","v":1370440001}]
[137,"137SO Crc: Maintenance",10000372,"137Mnt",null,null,null,null,null,null,null,null,null,null,null,null,null,null,null,"1","1950-01-01","9999-12-31","2012-05-15","DATACONVERSI","137SO Crc: Maintenance Mgmt","10000369","137MntMgmt","1370390001",137,{"$f":"_xlfn.XLOOKUP(VALUE(OU[[#This Row],[Master CC]]),FC_Master[Cost Center],FC_Master[rollup FC '#],OU[[#This Row],[Master CC]])","v":1370440001}]
[137,"137SO Crc: Maintenance Mgmt",10000369,"137MntMgmt",null,null,null,null,null,null,null,null,null,null,null,null,null,null,null,"1","1950-01-01","9999-12-31","2012-05-15","DATACONVERSI","137SO Crc: Maintenance Supv/Spt","10000371","137MntSupv","1370390001",137,{"$f":"_xlfn.XLOOKUP(VALUE(OU[[#This Row],[Master CC]]),FC_Master[Cost Center],FC_Master[rollup FC '#],OU[[#This Row],[Master CC]])","v":1370440001}]
[137,"137SO Crc: Maintenance Supv/Spt",10000371,"137MntSupv",null,null,null,null,null,null,null,null,null,null,null,null,null,null,null,"1","1950-01-01","9999-12-31","2012-05-15","DATACONVERSI","137SO Crc: Marketable Skills","10000370","137MkSk","1370400001",137,{"$f":"_xlfn.XLOOKUP(VALUE(OU[[#This Row],[Master CC]]),FC_Master[Cost Center],FC_Master[rollup FC '#],OU[[#This Row],[Master CC]])","v":1370440001}]
[137,"137SO Crc: Marketable Skills",10000370,"137MkSk",null,null,null,null,null,null,null,null,null,null,null,null,null,null,null,"1","2017-05-01","9999-12-31","2017-05-04","MILLERA1","137SO Crc: Marketable Skills Mgmt","10000801","137MkSkMgmt","1370400001",137,{"$f":"_xlfn.XLOOKUP(VALUE(OU[[#This Row],[Master CC]]),FC_Master[Cost Center],FC_Master[rollup FC '#],OU[[#This Row],[Master CC]])","v":1370440001}]
[137,"137SO Crc: Marketable Skills Mgmt",10000801,"137MkSkMgmt",null,null,null,null,null,null,null,null,null,null,null,null,null,null,null,"1","2023-05-25","9999-12-31","2023-05-30","BRADENA1","137SO Crc: PREA","10056302","137Prea","1370280001",137,{"$f":"_xlfn.XLOOKUP(VALUE(OU[[#This Row],[Master CC]]),FC_Master[Cost Center],FC_Master[rollup FC '#],OU[[#This Row],[Master CC]])","v":1370440001}]
[137,"137SO Crc: PREA",10056302,"137Prea",null,null,null,null,null,null,null,null,null,null,null,null,null,null,null,"1","2017-09-06","9999-12-31","2017-10-04","BROUSSC","137SO Crc: PREA Compliance","10052576","137CrcPREACm","1370440001",137,{"$f":"_xlfn.XLOOKUP(VALUE(OU[[#This Row],[Master CC]]),FC_Master[Cost Center],FC_Master[rollup FC '#],OU[[#This Row],[Master CC]])","v":1370440001}]
[137,"137SO Crc: PREA Compliance",10052576,"137CrcPREACm",null,null,null,null,null,null,null,null,null,null,null,null,null,null,null,"1","2023-05-25","9999-12-31","2023-05-30","BRADENA1","137SO Crc: Programs","10056301","137Pg","1370280001",137,{"$f":"_xlfn.XLOOKUP(VALUE(OU[[#This Row],[Master CC]]),FC_Master[Cost Center],FC_Master[rollup FC '#],OU[[#This Row],[Master CC]])","v":1370440001}]
[137,"137SO Crc: Programs",10056301,"137Pg",null,null,null,null,null,null,null,null,null,null,null,null,null,null,null,"1","2023-05-25","9999-12-31","2023-05-30","BRADENA1","137SO Crc: Recreation","10056303","137Recn","1370280001",137,{"$f":"_xlfn.XLOOKUP(VALUE(OU[[#This Row],[Master CC]]),FC_Master[Cost Center],FC_Master[rollup FC '#],OU[[#This Row],[Master CC]])","v":1370440001}]
[137,"137SO Crc: Recreation",10056303,"137Recn",null,null,null,null,null,null,null,null,null,null,null,null,null,null,null,"1","1950-01-01","9999-12-31","2012-05-15","DATACONVERSI","137SO Crc: Risk/Safety","10000340","137RskSft","1370340001",137,{"$f":"_xlfn.XLOOKUP(VALUE(OU[[#This Row],[Master CC]]),FC_Master[Cost Center],FC_Master[rollup FC '#],OU[[#This Row],[Master CC]])","v":1370440001}]
[137,"137SO Crc: Risk/Safety",10000340,"137RskSft",null,null,null,null,null,null,null,null,null,null,null,null,null,null,null,"1","2017-05-01","9999-12-31","2017-05-11","MILLERA1","137SO Crc: Risk/Safety Mgmt","10000796","137RskMgmt","1370340001",137,{"$f":"_xlfn.XLOOKUP(VALUE(OU[[#This Row],[Master CC]]),FC_Master[Cost Center],FC_Master[rollup FC '#],OU[[#This Row],[Master CC]])","v":1370440001}]
[137,"137SO Crc: Risk/Safety Mgmt",10000796,"137RskMgmt",null,null,null,null,null,null,null,null,null,null,null,null,null,null,null,"1","2017-06-27","9999-12-31","2017-07-03","BROUSSC","137SO Crc: Safety & Inmate Skills","10052353","Sft/InmtSkl","1370400001",137,{"$f":"_xlfn.XLOOKUP(VALUE(OU[[#This Row],[Master CC]]),FC_Master[Cost Center],FC_Master[rollup FC '#],OU[[#This Row],[Master CC]])","v":1370440001}]
[137,"137SO Crc: Safety & Inmate Skills",{"$f":"VALUE(Z706)","v":10052353},"Sft/InmtSkl",null,null,null,null,null,null,null,null,null,null,null,null,null,null,null,"1","1950-01-01","9999-12-31","2012-05-15","DATACONVERSI","137SO Crc: Sgt Building 1","10000806","137SgtBldg1","1370270001",137,{"$f":"_xlfn.XLOOKUP(VALUE(OU[[#This Row],[Master CC]]),FC_Master[Cost Center],FC_Master[rollup FC '#],OU[[#This Row],[Master CC]])","v":1370440001}]
[{"$f":"AC707","v":137},{"$f":"Y707","v":"137SO Crc: Sgt Building 1"},10000806,{"$f":"AA707","v":"137SgtBldg1"},null,null,null,null,null,null,null,null,null,null,null,null,null,null,null,"1","2016-06-13","9999-12-31","2016-06-13","LAMROLC","137SO Crc: Sgt Building 12: T1","10000810","137Sgt12T1","1370290001",137,{"$f":"_xlfn.XLOOKUP(VALUE(OU[[#This Row],[Master CC]]),FC_Master[Cost Center],FC_Master[rollup FC '#],OU[[#This Row],[Master CC]])","v":1370440001}]
[137,"137SO Crc: Sgt Building 12: T1",10000810,"137Sgt12T1",null,null,null,null,null,null,null,null,null,null,null,null,null,null,null,"1","2016-06-13","9999-12-31","2016-06-14","MILLERA1","137SO Crc: Sgt Building 12: T2","10000811","137Sgt12T2","1370290001",137,{"$f":"_xlfn.XLOOKUP(VALUE(OU[[#This Row],[Master CC]]),FC_Master[Cost Center],FC_Master[rollup FC '#],OU[[#This Row],[Master CC]])","v":1370440001}]
[137,"137SO Crc: Sgt Building 12: T2",10000811,"137Sgt12T2",null,null,null,null,null,null,null,null,null,null,null,null,null,null,null,"1","2016-06-13","9999-12-31","2016-06-14","MILLERA1","137SO Crc: Sgt Building 12: T3","10000812","137Sgt12T3","1370290001",137,{"$f":"_xlfn.XLOOKUP(VALUE(OU[[#This Row],[Master CC]]),FC_Master[Cost Center],FC_Master[rollup FC '#],OU[[#This Row],[Master CC]])","v":1370440001}]
[137,"137SO Crc: Sgt Building 12: T3",10000812,"137Sgt12T3",null,null,null,null,null,null,null,null,null,null,null,null,null,null,null,"1","2017-10-01","9999-12-31","2017-12-11","MILLERA1","137SO Crc: Sgt Building 12: T4","10051976","137Sgt12T4","1370290001",137,{"$f":"_xlfn.XLOOKUP(VALUE(OU[[#This Row],[Master CC]]),FC_Master[Cost Center],FC_Master[rollup FC '#],OU[[#This Row],[Master CC]])","v":1370440001}]
[137,"137SO Crc: Sgt Building 12: T4",10051976,"137Sgt12T4",null,null,null,null,null,null,null,null,null,null,null,null,null,null,null,"1","2022-07-03","9999-12-31","2022-07-11","BROUSSC","137SO Crc: Sgt Building 2 & 10","10054176","137Sgt2&10","1370280001",137,{"$f":"_xlfn.XLOOKUP(VALUE(OU[[#This Row],[Master CC]]),FC_Master[Cost Center],FC_Master[rollup FC '#],OU[[#This Row],[Master CC]])","v":1370440001}]
[137,"137SO Crc: Sgt Building 2 & 10",10054176,"137Sgt2&10",null,null,null,null,null,null,null,null,null,null,null,null,null,null,null,"1","2020-02-03","9999-12-31","2020-02-03","LAMROLC","137SO Crc: Sgt Building 3, 5 & 9","10000389","137Sgt359","1370280001",137,{"$f":"_xlfn.XLOOKUP(VALUE(OU[[#This Row],[Master CC]]),FC_Master[Cost Center],FC_Master[rollup FC '#],OU[[#This Row],[Master CC]])","v":1370440001}]
[137,"137SO Crc: Sgt Building 3, 5 & 9",10000389,"137Sgt359",null,null,null,null,null,null,null,null,null,null,null,null,null,null,null,"1","1950-01-01","9999-12-31","2012-05-15","DATACONVERSI","137SO Crc: Sgt Central Booking","10000382","137SgtCB","1370460001",137,{"$f":"_xlfn.XLOOKUP(VALUE(OU[[#This Row],[Master CC]]),FC_Master[Cost Center],FC_Master[rollup FC '#],OU[[#This Row],[Master CC]])","v":1370460001}]
[137,"137SO Crc: Sgt Central Booking",10000382,"137SgtCB",null,null,null,null,null,null,null,null,null,null,null,null,null,null,null,"1","1950-01-01","9999-12-31","2012-05-15","DATACONVERSI","137SO Crc: Sgt Complex Security","10000818","137SgtCpxSec","1370160001",137,{"$f":"_xlfn.XLOOKUP(VALUE(OU[[#This Row],[Master CC]]),FC_Master[Cost Center],FC_Master[rollup FC '#],OU[[#This Row],[Master CC]])","v":1370440001}]
[137,"137SO Crc: Sgt Complex Security",10000818,"137SgtCpxSec",null,null,null,null,null,null,null,null,null,null,null,null,null,null,null,"1","1950-01-01","9999-12-31","2012-05-15","DATACONVERSI","137SO Crc: Sgt Facilities","10000803","137SgtFcl","1370380001",137,{"$f":"_xlfn.XLOOKUP(VALUE(OU[[#This Row],[Master CC]]),FC_Master[Cost Center],FC_Master[rollup FC '#],OU[[#This Row],[Master CC]])","v":1370440001}]
[137,"137SO Crc: Sgt Facilities",10000803,"137SgtFcl",null,null,null,null,null,null,null,null,null,null,null,null,null,null,null,"1","1950-01-01","9999-12-31","2012-05-15","DATACONVERSI","137SO Crc: Sgt Food Services","10000804","137SgtFoodSv","1370370001",137,{"$f":"_xlfn.XLOOKUP(VALUE(OU[[#This Row],[Master CC]]),FC_Master[Cost Center],FC_Master[rollup FC '#],OU[[#This Row],[Master CC]])","v":1370440001}]
[137,"137SO Crc: Sgt Food Services",10000804,"137SgtFoodSv",null,null,null,null,null,null,null,null,null,null,null,null,null,null,null,"1","1950-01-01","9999-12-31","2012-05-15","DATACONVERSI","137SO Crc: Sgt Hospital Vstn Unit","10000799","137SgtHV","1370360001",137,{"$f":"_xlfn.XLOOKUP(VALUE(OU[[#This Row],[Master CC]]),FC_Master[Cost Center],FC_Master[rollup FC '#],OU[[#This Row],[Master CC]])","v":1370440001}]
[137,"137SO Crc: Sgt Hospital Vstn Unit",10000799,"137SgtHV",null,null,null,null,null,null,null,null,null,null,null,null,null,null,null,"1","1950-01-01","9999-12-31","2012-05-15","DATACONVERSI","137SO Crc: Sgt HSB","10000805","137HSB","1370350001",137,{"$f":"_xlfn.XLOOKUP(VALUE(OU[[#This Row],[Master CC]]),FC_Master[Cost Center],FC_Master[rollup FC '#],OU[[#This Row],[Master CC]])","v":1370440001}]
[137,"137SO Crc: Sgt HSB",10000805,"137HSB",null,null,null,null,null,null,null,null,null,null,null,null,null,null,null,"1","1950-01-01","9999-12-31","2012-05-15","DATACONVERSI","137SO Crc: Sgt Travis County Jail","10000377","137SgtTCJ","1370430001",137,{"$f":"_xlfn.XLOOKUP(VALUE(OU[[#This Row],[Master CC]]),FC_Master[Cost Center],FC_Master[rollup FC '#],OU[[#This Row],[Master CC]])","v":1370440001}]
[137,"137SO Crc: Sgt Travis County Jail",10000377,"137SgtTCJ",null,null,null,null,null,null,null,null,null,null,null,null,null,null,null,"1","1950-01-01","9999-12-31","2012-05-15","DATACONVERSI","137SO Crc: Sgt/Spv Classifications/Rcd","10000800","137SgtCfsRcd","1370410001",137,{"$f":"_xlfn.XLOOKUP(VALUE(OU[[#This Row],[Master CC]]),FC_Master[Cost Center],FC_Master[rollup FC '#],OU[[#This Row],[Master CC]])","v":1370440001}]
[137,"137SO Crc: Sgt/Spv Classifications/Rcd",10000800,"137SgtCfsRcd",null,null,null,null,null,null,null,null,null,null,null,null,null,null,null,"1","2023-03-16","9999-12-31","2023-03-16","PHAMC","137SO Crc: Standards & Compliance","10054151","137Std&Cm","1370280001",137,{"$f":"_xlfn.XLOOKUP(VALUE(OU[[#This Row],[Master CC]]),FC_Master[Cost Center],FC_Master[rollup FC '#],OU[[#This Row],[Master CC]])","v":1370440001}]
[137,"137SO Crc: Standards & Compliance",10054151,"137Std&Cm",null,null,null,null,null,null,null,null,null,null,null,null,null,null,null,"1","2023-05-25","9999-12-31","2023-05-30","BRADENA1","137SO Crc: Temp Manager","10056305","137TempMgr","1370280001",137,{"$f":"_xlfn.XLOOKUP(VALUE(OU[[#This Row],[Master CC]]),FC_Master[Cost Center],FC_Master[rollup FC '#],OU[[#This Row],[Master CC]])","v":1370440001}]
[137,"137SO Crc: Temp Manager",10056305,"137TempMgr",null,null,null,null,null,null,null,null,null,null,null,null,null,null,null,"1","1950-01-01","9999-12-31","2012-05-15","DATACONVERSI","137SO Crc: Travis County Jail: A-Shift","10000378","137TCJT1","1370430001",137,{"$f":"_xlfn.XLOOKUP(VALUE(OU[[#This Row],[Master CC]]),FC_Master[Cost Center],FC_Master[rollup FC '#],OU[[#This Row],[Master CC]])","v":1370440001}]
[137,"137SO Crc: Travis County Jail: A-Shift",10000378,"137TCJT1",null,null,null,null,null,null,null,null,null,null,null,null,null,null,null,"1","1950-01-01","9999-12-31","2012-05-15","DATACONVERSI","137SO Crc: Travis County Jail: B-Shift","10000379","137TCJT2","1370430001",137,{"$f":"_xlfn.XLOOKUP(VALUE(OU[[#This Row],[Master CC]]),FC_Master[Cost Center],FC_Master[rollup FC '#],OU[[#This Row],[Master CC]])","v":1370440001}]
[137,"137SO Crc: Travis County Jail: B-Shift",10000379,"137TCJT2",null,null,null,null,null,null,null,null,null,null,null,null,null,null,null,"1","1950-01-01","9999-12-31","2012-05-15","DATACONVERSI","137SO Crc: Travis County Jail: C-Shift","10000380","137TCJT3","1370430001",137,{"$f":"_xlfn.XLOOKUP(VALUE(OU[[#This Row],[Master CC]]),FC_Master[Cost Center],FC_Master[rollup FC '#],OU[[#This Row],[Master CC]])","v":1370440001}]
[137,"137SO Crc: Travis County Jail: C-Shift",10000380,"137TCJT3",null,null,null,null,null,null,null,null,null,null,null,null,null,null,null,"1","2023-05-12","9999-12-31","2023-05-12","PHAMC","137SO Crc: Warehouse Manager","10000802","137CmsryMgr","1370310001",137,{"$f":"_xlfn.XLOOKUP(VALUE(OU[[#This Row],[Master CC]]),FC_Master[Cost Center],FC_Master[rollup FC '#],OU[[#This Row],[Master CC]])","v":1370310001}]
[137,"137SO Crc: Warehouse Manager",10000802,"137CmsryMgr",null,null,null,null,null,null,null,null,null,null,null,null,null,null,null,"1","1950-01-01","9999-12-31","2012-05-15","DATACONVERSI","137SO Internal Affairs","10000449","137IntnAfrs","1370020001",137,{"$f":"_xlfn.XLOOKUP(VALUE(OU[[#This Row],[Master CC]]),FC_Master[Cost Center],FC_Master[rollup FC '#],OU[[#This Row],[Master CC]])","v":1370130001}]
[137,"137SO Internal Affairs",10000449,"137IntnAfrs",null,null,null,null,null,null,null,null,null,null,null,null,null,null,null,"1","2017-05-01","9999-12-31","2017-05-04","MILLERA1","137SO LE: ATPA","10000425","137ATPA","1370700001",137,{"$f":"_xlfn.XLOOKUP(VALUE(OU[[#This Row],[Master CC]]),FC_Master[Cost Center],FC_Master[rollup FC '#],OU[[#This Row],[Master CC]])","v":1370750001}]
[137,"137SO LE: ATPA",10000425,"137ATPA",null,null,null,null,null,null,null,null,null,null,null,null,null,null,null,"1","2023-03-16","9999-12-31","2023-03-16","PHAMC","137SO LE: CAM","10056077","137ComAstMgr","1370640001",137,{"$f":"_xlfn.XLOOKUP(VALUE(OU[[#This Row],[Master CC]]),FC_Master[Cost Center],FC_Master[rollup FC '#],OU[[#This Row],[Master CC]])","v":1370640001}]
[137,"137SO LE: CAM",10056077,"137ComAstMgr",null,null,null,null,null,null,null,null,null,null,null,null,null,null,null,"1","1950-01-01","9999-12-31","2012-05-15","DATACONVERSI","137SO LE: Captain Central Command","10000309","137LECCmd","1370620001",137,{"$f":"_xlfn.XLOOKUP(VALUE(OU[[#This Row],[Master CC]]),FC_Master[Cost Center],FC_Master[rollup FC '#],OU[[#This Row],[Master CC]])","v":1370750001}]
[137,"137SO LE: Captain Central Command",10000309,"137LECCmd",null,null,null,null,null,null,null,null,null,null,null,null,null,null,null,"1","1950-01-01","9999-12-31","2012-05-15","DATACONVERSI","137SO LE: Captain East Command","10000311","137LEECmd","1370700001",137,{"$f":"_xlfn.XLOOKUP(VALUE(OU[[#This Row],[Master CC]]),FC_Master[Cost Center],FC_Master[rollup FC '#],OU[[#This Row],[Master CC]])","v":1370750001}]
[137,"137SO LE: Captain East Command",10000311,"137LEECmd",null,null,null,null,null,null,null,null,null,null,null,null,null,null,null,"1","1950-01-01","9999-12-31","2012-05-15","DATACONVERSI","137SO LE: Captain West Command","10000310","137LEWCmd","1370700001",137,{"$f":"_xlfn.XLOOKUP(VALUE(OU[[#This Row],[Master CC]]),FC_Master[Cost Center],FC_Master[rollup FC '#],OU[[#This Row],[Master CC]])","v":1370750001}]
[137,"137SO LE: Captain West Command",10000310,"137LEWCmd",null,null,null,null,null,null,null,null,null,null,null,null,null,null,null,"1","2021-02-10","9999-12-31","2021-02-22","BRADENA1","137SO LE: Cntrl Ara Cmd: Evidence Ctrl","10051777","137EviCtrl","1370630001",137,{"$f":"_xlfn.XLOOKUP(VALUE(OU[[#This Row],[Master CC]]),FC_Master[Cost Center],FC_Master[rollup FC '#],OU[[#This Row],[Master CC]])","v":1370750001}]
[137,"137SO LE: Cntrl Ara Cmd: Evidence Ctrl",10051777,"137EviCtrl",null,null,null,null,null,null,null,null,null,null,null,null,null,null,null,"1","1950-01-01","9999-12-31","2012-05-15","DATACONVERSI","137SO LE: Cntrl Area Cmd: Comm Mgmt","10000416","137CommMgmt","1370640001",137,{"$f":"_xlfn.XLOOKUP(VALUE(OU[[#This Row],[Master CC]]),FC_Master[Cost Center],FC_Master[rollup FC '#],OU[[#This Row],[Master CC]])","v":1370640001}]
[137,"137SO LE: Cntrl Area Cmd: Comm Mgmt",10000416,"137CommMgmt",null,null,null,null,null,null,null,null,null,null,null,null,null,null,null,"1","1950-01-01","9999-12-31","2012-05-15","DATACONVERSI","137SO LE: Cntrl Area Cmd: Comm Supv","10000417","137CommSupv","1370640001",137,{"$f":"_xlfn.XLOOKUP(VALUE(OU[[#This Row],[Master CC]]),FC_Master[Cost Center],FC_Master[rollup FC '#],OU[[#This Row],[Master CC]])","v":1370640001}]
[137,"137SO LE: Cntrl Area Cmd: Comm Supv",10000417,"137CommSupv",null,null,null,null,null,null,null,null,null,null,null,null,null,null,null,"1","1950-01-01","9999-12-31","2012-05-15","DATACONVERSI","137SO LE: Cntrl Area Cmd: Comm Team","10000418","137CommTeam","1370640001",137,{"$f":"_xlfn.XLOOKUP(VALUE(OU[[#This Row],[Master CC]]),FC_Master[Cost Center],FC_Master[rollup FC '#],OU[[#This Row],[Master CC]])","v":1370640001}]
[137,"137SO LE: Cntrl Area Cmd: Comm Team",10000418,"137CommTeam",null,null,null,null,null,null,null,null,null,null,null,null,null,null,null,"1","1950-01-01","9999-12-31","2012-05-15","DATACONVERSI","137SO LE: Cntrl Area Cmd: Major Crimes","10000413","137MC","1370620001",137,{"$f":"_xlfn.XLOOKUP(VALUE(OU[[#This Row],[Master CC]]),FC_Master[Cost Center],FC_Master[rollup FC '#],OU[[#This Row],[Master CC]])","v":1370750001}]
[137,"137SO LE: Cntrl Area Cmd: Major Crimes",10000413,"137MC",null,null,null,null,null,null,null,null,null,null,null,null,null,null,null,"1","1950-01-01","9999-12-31","2012-05-15","DATACONVERSI","137SO LE: Cntrl Area Cmd: Victim Sv","10000415","137VctmSv","1370740001",137,{"$f":"_xlfn.XLOOKUP(VALUE(OU[[#This Row],[Master CC]]),FC_Master[Cost Center],FC_Master[rollup FC '#],OU[[#This Row],[Master CC]])","v":1370750001}]
[137,"137SO LE: Cntrl Area Cmd: Victim Sv",10000415,"137VctmSv",null,null,null,null,null,null,null,null,null,null,null,null,null,null,null,"1","2023-05-12","9999-12-31","2023-05-12","PHAMC","137SO LE: Community Outreach","10000790","137CmtyOtrh","1370110001",137,{"$f":"_xlfn.XLOOKUP(VALUE(OU[[#This Row],[Master CC]]),FC_Master[Cost Center],FC_Master[rollup FC '#],OU[[#This Row],[Master CC]])","v":1370120001}]
[137,"137SO LE: Community Outreach",10000790,"137CmtyOtrh",null,null,null,null,null,null,null,null,null,null,null,null,null,null,null,"1","2021-02-10","9999-12-31","2021-02-22","BRADENA1","137SO LE: Crime Scene","10000419","137CrmeScn","1370630001",137,{"$f":"_xlfn.XLOOKUP(VALUE(OU[[#This Row],[Master CC]]),FC_Master[Cost Center],FC_Master[rollup FC '#],OU[[#This Row],[Master CC]])","v":1370750001}]
[137,"137SO LE: Crime Scene",10000419,"137CrmeScn",null,null,null,null,null,null,null,null,null,null,null,null,null,null,null,"1","2018-10-19","9999-12-31","2018-11-20","BROUSSC","137SO LE: Crisis Intervention Team","10000343","137CIT","1370520001",137,{"$f":"_xlfn.XLOOKUP(VALUE(OU[[#This Row],[Master CC]]),FC_Master[Cost Center],FC_Master[rollup FC '#],OU[[#This Row],[Master CC]])","v":1370750001}]
[137,"137SO LE: Crisis Intervention Team",10000343,"137CIT",null,null,null,null,null,null,null,null,null,null,null,null,null,null,null,"1","2019-07-21","9999-12-31","2019-08-06","BROUSSC","137SO LE: DWI","10000434","137DWI","1370730001",137,{"$f":"_xlfn.XLOOKUP(VALUE(OU[[#This Row],[Master CC]]),FC_Master[Cost Center],FC_Master[rollup FC '#],OU[[#This Row],[Master CC]])","v":1370750001}]
[137,"137SO LE: DWI",10000434,"137DWI",null,null,null,null,null,null,null,null,null,null,null,null,null,null,null,"1","2014-06-16","9999-12-31","2014-06-17","BROUSSC","137SO LE: East Area Cmd: CID","10000424","137EAreaCID","1370620001",137,{"$f":"_xlfn.XLOOKUP(VALUE(OU[[#This Row],[Master CC]]),FC_Master[Cost Center],FC_Master[rollup FC '#],OU[[#This Row],[Master CC]])","v":1370750001}]
[137,"137SO LE: East Area Cmd: CID",10000424,"137EAreaCID",null,null,null,null,null,null,null,null,null,null,null,null,null,null,null,"1","1950-01-01","9999-12-31","2012-05-15","DATACONVERSI","137SO LE: East Area Cmd: Day Patrol1","10000421","137EDay1","1370700001",137,{"$f":"_xlfn.XLOOKUP(VALUE(OU[[#This Row],[Master CC]]),FC_Master[Cost Center],FC_Master[rollup FC '#],OU[[#This Row],[Master CC]])","v":1370750001}]
[137,"137SO LE: East Area Cmd: Day Patrol1",10000421,"137EDay1",null,null,null,null,null,null,null,null,null,null,null,null,null,null,null,"1","1950-01-01","9999-12-31","2012-05-15","DATACONVERSI","137SO LE: East Area Cmd: Day Patrol2","10000422","137EDay2","1370700001",137,{"$f":"_xlfn.XLOOKUP(VALUE(OU[[#This Row],[Master CC]]),FC_Master[Cost Center],FC_Master[rollup FC '#],OU[[#This Row],[Master CC]])","v":1370750001}]
[137,"137SO LE: East Area Cmd: Day Patrol2",10000422,"137EDay2",null,null,null,null,null,null,null,null,null,null,null,null,null,null,null,"1","1950-01-01","9999-12-31","2012-05-15","DATACONVERSI","137SO LE: East Area Cmd: Day Relief","10000423","137EDayRlf","1370700001",137,{"$f":"_xlfn.XLOOKUP(VALUE(OU[[#This Row],[Master CC]]),FC_Master[Cost Center],FC_Master[rollup FC '#],OU[[#This Row],[Master CC]])","v":1370750001}]
[137,"137SO LE: East Area Cmd: Day Relief",10000423,"137EDayRlf",null,null,null,null,null,null,null,null,null,null,null,null,null,null,null,"1","2017-05-01","9999-12-31","2017-05-11","MILLERA1","137SO LE: East Area Cmd: Estray","10050130","137EEstr","1370680001",137,{"$f":"_xlfn.XLOOKUP(VALUE(OU[[#This Row],[Master CC]]),FC_Master[Cost Center],FC_Master[rollup FC '#],OU[[#This Row],[Master CC]])","v":1370750001}]
[137,"137SO LE: East Area Cmd: Estray",10050130,"137EEstr",null,null,null,null,null,null,null,null,null,null,null,null,null,null,null,"1","1950-01-01","9999-12-31","2012-05-15","DATACONVERSI","137SO LE: East Area Cmd: Evg Patrol1","10000427","137EEvg1","1370700001",137,{"$f":"_xlfn.XLOOKUP(VALUE(OU[[#This Row],[Master CC]]),FC_Master[Cost Center],FC_Master[rollup FC '#],OU[[#This Row],[Master CC]])","v":1370750001}]
[137,"137SO LE: East Area Cmd: Evg Patrol1",10000427,"137EEvg1",null,null,null,null,null,null,null,null,null,null,null,null,null,null,null,"1","1950-01-01","9999-12-31","2012-05-15","DATACONVERSI","137SO LE: East Area Cmd: Evg Patrol2","10000428","137EEvg2","1370700001",137,{"$f":"_xlfn.XLOOKUP(VALUE(OU[[#This Row],[Master CC]]),FC_Master[Cost Center],FC_Master[rollup FC '#],OU[[#This Row],[Master CC]])","v":1370750001}]
[137,"137SO LE: East Area Cmd: Evg Patrol2",10000428,"137EEvg2",null,null,null,null,null,null,null,null,null,null,null,null,null,null,null,"1","1950-01-01","9999-12-31","2012-05-15","DATACONVERSI","137SO LE: East Area Cmd: Night Patrol1","10000432","137ENgt1","1370700001",137,{"$f":"_xlfn.XLOOKUP(VALUE(OU[[#This Row],[Master CC]]),FC_Master[Cost Center],FC_Master[rollup FC '#],OU[[#This Row],[Master CC]])","v":1370750001}]
[137,"137SO LE: East Area Cmd: Night Patrol1",10000432,"137ENgt1",null,null,null,null,null,null,null,null,null,null,null,null,null,null,null,"1","1950-01-01","9999-12-31","2012-05-15","DATACONVERSI","137SO LE: East Area Cmd: Night Patrol2","10000433","137ENgt2","1370700001",137,{"$f":"_xlfn.XLOOKUP(VALUE(OU[[#This Row],[Master CC]]),FC_Master[Cost Center],FC_Master[rollup FC '#],OU[[#This Row],[Master CC]])","v":1370750001}]
[137,"137SO LE: East Area Cmd: Night Patrol2",10000433,"137ENgt2",null,null,null,null,null,null,null,null,null,null,null,null,null,null,null,"1","2017-05-01","9999-12-31","2017-05-10","MILLERA1","137SO LE: Environmental Crimes","10052378","137EnvCrme","1370620001",137,{"$f":"_xlfn.XLOOKUP(VALUE(OU[[#This Row],[Master CC]]),FC_Master[Cost Center],FC_Master[rollup FC '#],OU[[#This Row],[Master CC]])","v":1370750001}]
[137,"137SO LE: Environmental Crimes",10052378,"137EnvCrme",null,null,null,null,null,null,null,null,null,null,null,null,null,null,null,"1","2023-03-16","9999-12-31","2023-03-16","PHAMC","137SO LE: Forensics Services Division","10053901","137FrncSvDiv","1370630001",137,{"$f":"_xlfn.XLOOKUP(VALUE(OU[[#This Row],[Master CC]]),FC_Master[Cost Center],FC_Master[rollup FC '#],OU[[#This Row],[Master CC]])","v":1370750001}]
[137,"137SO LE: Forensics Services Division",10053901,"137FrncSvDiv",null,null,null,null,null,null,null,null,null,null,null,null,null,null,null,"1","2017-05-01","9999-12-31","2017-05-10","MILLERA1","137SO LE: Found Property","10052377","137FndProp","1370620001",137,{"$f":"_xlfn.XLOOKUP(VALUE(OU[[#This Row],[Master CC]]),FC_Master[Cost Center],FC_Master[rollup FC '#],OU[[#This Row],[Master CC]])","v":1370750001}]
[137,"137SO LE: Found Property",10052377,"137FndProp",null,null,null,null,null,null,null,null,null,null,null,null,null,null,null,"1","2017-05-01","9999-12-31","2017-05-04","VILLARG","137SO LE: HEAT","10000429","137HEAT","1370730001",137,{"$f":"_xlfn.XLOOKUP(VALUE(OU[[#This Row],[Master CC]]),FC_Master[Cost Center],FC_Master[rollup FC '#],OU[[#This Row],[Master CC]])","v":1370750001}]
[137,"137SO LE: HEAT",10000429,"137HEAT",null,null,null,null,null,null,null,null,null,null,null,null,null,null,null,"1","2017-05-01","9999-12-31","2017-05-04","MILLERA1","137SO LE: K9","10000430","137K9","1370610001",137,{"$f":"_xlfn.XLOOKUP(VALUE(OU[[#This Row],[Master CC]]),FC_Master[Cost Center],FC_Master[rollup FC '#],OU[[#This Row],[Master CC]])","v":1370750001}]
[137,"137SO LE: K9",10000430,"137K9",null,null,null,null,null,null,null,null,null,null,null,null,null,null,null,"1","2017-05-01","9999-12-31","2017-05-04","VILLARG","137SO LE: Lake Patrol","10000443","137LkPatrol","1370670001",137,{"$f":"_xlfn.XLOOKUP(VALUE(OU[[#This Row],[Master CC]]),FC_Master[Cost Center],FC_Master[rollup FC '#],OU[[#This Row],[Master CC]])","v":1370750001}]
[137,"137SO LE: Lake Patrol",10000443,"137LkPatrol",null,null,null,null,null,null,null,null,null,null,null,null,null,null,null,"1","1950-01-01","9999-12-31","2012-05-15","DATACONVERSI","137SO LE: Lt East Cmd Days","10000333","137LtEDay","1370700001",137,{"$f":"_xlfn.XLOOKUP(VALUE(OU[[#This Row],[Master CC]]),FC_Master[Cost Center],FC_Master[rollup FC '#],OU[[#This Row],[Master CC]])","v":1370750001}]
[137,"137SO LE: Lt East Cmd Days",10000333,"137LtEDay",null,null,null,null,null,null,null,null,null,null,null,null,null,null,null,"1","1950-01-01","9999-12-31","2012-05-15","DATACONVERSI","137SO LE: Lt East Cmd Evenings","10000334","137LtEEvg","1370700001",137,{"$f":"_xlfn.XLOOKUP(VALUE(OU[[#This Row],[Master CC]]),FC_Master[Cost Center],FC_Master[rollup FC '#],OU[[#This Row],[Master CC]])","v":1370750001}]
[137,"137SO LE: Lt East Cmd Evenings",10000334,"137LtEEvg",null,null,null,null,null,null,null,null,null,null,null,null,null,null,null,"1","2014-10-01","9999-12-31","2014-10-20","BROUSSC","137SO LE: Lt East Cmd Nights","10000335","137LtENgt","1370700001",137,{"$f":"_xlfn.XLOOKUP(VALUE(OU[[#This Row],[Master CC]]),FC_Master[Cost Center],FC_Master[rollup FC '#],OU[[#This Row],[Master CC]])","v":1370750001}]
[137,"137SO LE: Lt East Cmd Nights",10000335,"137LtENgt",null,null,null,null,null,null,null,null,null,null,null,null,null,null,null,"1","2012-12-05","9999-12-31","2012-12-05","LAMROLC","137SO LE: Lt East Cmd Special Ops","10050129","137LtESplOps","1370730001",137,{"$f":"_xlfn.XLOOKUP(VALUE(OU[[#This Row],[Master CC]]),FC_Master[Cost Center],FC_Master[rollup FC '#],OU[[#This Row],[Master CC]])","v":1370750001}]
[137,"137SO LE: Lt East Cmd Special Ops",10050129,"137LtESplOps",null,null,null,null,null,null,null,null,null,null,null,null,null,null,null,"1","2017-05-01","9999-12-31","2017-05-04","VILLARG","137SO LE: Lt Major Crimes","10000331","137LtMC","1370620001",137,{"$f":"_xlfn.XLOOKUP(VALUE(OU[[#This Row],[Master CC]]),FC_Master[Cost Center],FC_Master[rollup FC '#],OU[[#This Row],[Master CC]])","v":1370750001}]
[137,"137SO LE: Lt Major Crimes",10000331,"137LtMC",null,null,null,null,null,null,null,null,null,null,null,null,null,null,null,"1","2017-05-01","9999-12-31","2017-05-03","MILLERA1","137SO LE: Lt Special Crimes","10052351","137LtSC","1370620001",137,{"$f":"_xlfn.XLOOKUP(VALUE(OU[[#This Row],[Master CC]]),FC_Master[Cost Center],FC_Master[rollup FC '#],OU[[#This Row],[Master CC]])","v":1370750001}]
[137,"137SO LE: Lt Special Crimes",10052351,"137LtSC",null,null,null,null,null,null,null,null,null,null,null,null,null,null,null,"1","2022-04-17","9999-12-31","2022-04-13","BRADENA1","137SO LE: Lt Tac Ops","10000332","137LtTacOps","1370720001",137,{"$f":"_xlfn.XLOOKUP(VALUE(OU[[#This Row],[Master CC]]),FC_Master[Cost Center],FC_Master[rollup FC '#],OU[[#This Row],[Master CC]])","v":1370750001}]
[137,"137SO LE: Lt Tac Ops",10000332,"137LtTacOps",null,null,null,null,null,null,null,null,null,null,null,null,null,null,null,"1","1950-01-01","9999-12-31","2012-05-15","DATACONVERSI","137SO LE: Lt West Cmd Days","10000336","137LtWDay","1370700001",137,{"$f":"_xlfn.XLOOKUP(VALUE(OU[[#This Row],[Master CC]]),FC_Master[Cost Center],FC_Master[rollup FC '#],OU[[#This Row],[Master CC]])","v":1370750001}]
[137,"137SO LE: Lt West Cmd Days",10000336,"137LtWDay",null,null,null,null,null,null,null,null,null,null,null,null,null,null,null,"1","1950-01-01","9999-12-31","2012-05-15","DATACONVERSI","137SO LE: Lt West Cmd Evenings","10000337","137LtWEvg","1370700001",137,{"$f":"_xlfn.XLOOKUP(VALUE(OU[[#This Row],[Master CC]]),FC_Master[Cost Center],FC_Master[rollup FC '#],OU[[#This Row],[Master CC]])","v":1370750001}]
[137,"137SO LE: Lt West Cmd Evenings",10000337,"137LtWEvg",null,null,null,null,null,null,null,null,null,null,null,null,null,null,null,"1","1950-01-01","9999-12-31","2012-05-15","DATACONVERSI","137SO LE: Lt West Cmd Nights","10000338","137LtWNgt","1370700001",137,{"$f":"_xlfn.XLOOKUP(VALUE(OU[[#This Row],[Master CC]]),FC_Master[Cost Center],FC_Master[rollup FC '#],OU[[#This Row],[Master CC]])","v":1370750001}]
[137,"137SO LE: Lt West Cmd Nights",10000338,"137LtWNgt",null,null,null,null,null,null,null,null,null,null,null,null,null,null,null,"1","2017-05-01","9999-12-31","2017-05-05","MILLERA1","137SO LE: Lt West Cmd Special Ops","10052152","137LTWOps","1370750001",137,{"$f":"_xlfn.XLOOKUP(VALUE(OU[[#This Row],[Master CC]]),FC_Master[Cost Center],FC_Master[rollup FC '#],OU[[#This Row],[Master CC]])","v":1370750001}]
[137,"137SO LE: Lt West Cmd Special Ops",10052152,"137LTWOps",null,null,null,null,null,null,null,null,null,null,null,null,null,null,null,"1","2017-01-01","9999-12-31","2017-01-31","FF_LAMROLC","137SO LE: Lt West Cmd Special Ops Tfc","10050128","137LtWSplOps","1370730001",137,{"$f":"_xlfn.XLOOKUP(VALUE(OU[[#This Row],[Master CC]]),FC_Master[Cost Center],FC_Master[rollup FC '#],OU[[#This Row],[Master CC]])","v":1370750001}]
[137,"137SO LE: Lt West Cmd Special Ops Tfc",{"$f":"VALUE(Z770)","v":10050128},"137LtWSplOps",null,null,null,null,null,null,null,null,null,null,null,null,null,null,null,"1","2017-05-01","9999-12-31","2017-05-04","VILLARG","137SO LE: Motors","10000439","137Mtr","1370730001",137,{"$f":"_xlfn.XLOOKUP(VALUE(OU[[#This Row],[Master CC]]),FC_Master[Cost Center],FC_Master[rollup FC '#],OU[[#This Row],[Master CC]])","v":1370750001}]
[{"$f":"AC771","v":137},{"$f":"Y771","v":"137SO LE: Motors"},10000439,{"$f":"AA771","v":"137Mtr"},null,null,null,null,null,null,null,null,null,null,null,null,null,null,null,"1","2020-11-15","9999-12-31","2020-11-20","BRADENA1","137SO LE: NonEmployees","10050002","137ENonEmp","1370700001",137,{"$f":"_xlfn.XLOOKUP(VALUE(OU[[#This Row],[Master CC]]),FC_Master[Cost Center],FC_Master[rollup FC '#],OU[[#This Row],[Master CC]])","v":1370750001}]
[137,"137SO LE: NonEmployees",10050002,"137ENonEmp",null,null,null,null,null,null,null,null,null,null,null,null,null,null,null,"1","2017-05-01","9999-12-31","2017-05-03","MILLERA1","137SO LE: PDS","10000448","137PDS","1370700001",137,{"$f":"_xlfn.XLOOKUP(VALUE(OU[[#This Row],[Master CC]]),FC_Master[Cost Center],FC_Master[rollup FC '#],OU[[#This Row],[Master CC]])","v":1370750001}]
[137,"137SO LE: PDS",10000448,"137PDS",null,null,null,null,null,null,null,null,null,null,null,null,null,null,null,"1","2015-01-01","9999-12-31","2017-03-07","MILLERA1","137SO LE: Sgt CTECC,SWAT/Wrt,VICE,PDS","10051226","137SgtCTSWVC","1370750001",137,{"$f":"_xlfn.XLOOKUP(VALUE(OU[[#This Row],[Master CC]]),FC_Master[Cost Center],FC_Master[rollup FC '#],OU[[#This Row],[Master CC]])","v":1370750001}]
[137,"137SO LE: Sgt CTECC,SWAT/Wrt,VICE,PDS",10051226,"137SgtCTSWVC",null,null,null,null,null,null,null,null,null,null,null,null,null,null,null,"1","1950-01-01","9999-12-31","2012-05-15","DATACONVERSI","137SO LE: Sgt East Area Cmd: Day","10000420","137SgtEDay","1370700001",137,{"$f":"_xlfn.XLOOKUP(VALUE(OU[[#This Row],[Master CC]]),FC_Master[Cost Center],FC_Master[rollup FC '#],OU[[#This Row],[Master CC]])","v":1370750001}]
[137,"137SO LE: Sgt East Area Cmd: Day",10000420,"137SgtEDay",null,null,null,null,null,null,null,null,null,null,null,null,null,null,null,"1","1950-01-01","9999-12-31","2012-05-15","DATACONVERSI","137SO LE: Sgt East Area Cmd: Evg","10000426","137SgtEEvg","1370700001",137,{"$f":"_xlfn.XLOOKUP(VALUE(OU[[#This Row],[Master CC]]),FC_Master[Cost Center],FC_Master[rollup FC '#],OU[[#This Row],[Master CC]])","v":1370750001}]
[137,"137SO LE: Sgt East Area Cmd: Evg",10000426,"137SgtEEvg",null,null,null,null,null,null,null,null,null,null,null,null,null,null,null,"1","1950-01-01","9999-12-31","2012-05-15","DATACONVERSI","137SO LE: Sgt East Area Cmd: Night","10000431","137SgtENgt","1370700001",137,{"$f":"_xlfn.XLOOKUP(VALUE(OU[[#This Row],[Master CC]]),FC_Master[Cost Center],FC_Master[rollup FC '#],OU[[#This Row],[Master CC]])","v":1370750001}]
[137,"137SO LE: Sgt East Area Cmd: Night",10000431,"137SgtENgt",null,null,null,null,null,null,null,null,null,null,null,null,null,null,null,"1","2017-05-01","9999-12-31","2017-05-04","VILLARG","137SO LE: Sgt East Cmd Special Ops","10050152","137SgtEOps","1370730001",137,{"$f":"_xlfn.XLOOKUP(VALUE(OU[[#This Row],[Master CC]]),FC_Master[Cost Center],FC_Master[rollup FC '#],OU[[#This Row],[Master CC]])","v":1370750001}]
[137,"137SO LE: Sgt East Cmd Special Ops",10050152,"137SgtEOps",null,null,null,null,null,null,null,null,null,null,null,null,null,null,null,"1","2016-09-19","9999-12-31","2016-10-20","BROUSSC","137SO LE: Sgt HEAT","10052052","137SgtHEAT","1370730001",137,{"$f":"_xlfn.XLOOKUP(VALUE(OU[[#This Row],[Master CC]]),FC_Master[Cost Center],FC_Master[rollup FC '#],OU[[#This Row],[Master CC]])","v":1370750001}]
[137,"137SO LE: Sgt HEAT",10052052,"137SgtHEAT",null,null,null,null,null,null,null,null,null,null,null,null,null,null,null,"1","2017-01-01","9999-12-31","2017-02-08","ARJONAE","137SO LE: Sgt Lake Patrol","10052153","137SgtLake","1370670001",137,{"$f":"_xlfn.XLOOKUP(VALUE(OU[[#This Row],[Master CC]]),FC_Master[Cost Center],FC_Master[rollup FC '#],OU[[#This Row],[Master CC]])","v":1370750001}]
[137,"137SO LE: Sgt Lake Patrol",10052153,"137SgtLake",null,null,null,null,null,null,null,null,null,null,null,null,null,null,null,"1","2017-05-01","9999-12-31","2017-05-04","VILLARG","137SO LE: Sgt Major Crimes","10000412","137SgtMC","1370620001",137,{"$f":"_xlfn.XLOOKUP(VALUE(OU[[#This Row],[Master CC]]),FC_Master[Cost Center],FC_Master[rollup FC '#],OU[[#This Row],[Master CC]])","v":1370750001}]
[137,"137SO LE: Sgt Major Crimes",10000412,"137SgtMC",null,null,null,null,null,null,null,null,null,null,null,null,null,null,null,"1","2016-09-19","9999-12-31","2016-10-18","ARJONAE","137SO LE: Sgt Motors","10050151","137SgtMtr","1370730001",137,{"$f":"_xlfn.XLOOKUP(VALUE(OU[[#This Row],[Master CC]]),FC_Master[Cost Center],FC_Master[rollup FC '#],OU[[#This Row],[Master CC]])","v":1370750001}]
[137,"137SO LE: Sgt Motors",10050151,"137SgtMtr",null,null,null,null,null,null,null,null,null,null,null,null,null,null,null,"1","2018-10-20","9999-12-31","2018-11-20","BROUSSC","137SO LE: Sgt School Resource Officer","10052176","137LESgtSRO","1370710001",137,{"$f":"_xlfn.XLOOKUP(VALUE(OU[[#This Row],[Master CC]]),FC_Master[Cost Center],FC_Master[rollup FC '#],OU[[#This Row],[Master CC]])","v":1370750001}]
[137,"137SO LE: Sgt School Resource Officer",10052176,"137LESgtSRO",null,null,null,null,null,null,null,null,null,null,null,null,null,null,null,"1","2017-07-01","9999-12-31","2017-07-07","BROUSSC","137SO LE: Sgt Special Crimes","10052352","137SgtSC","1370620001",137,{"$f":"_xlfn.XLOOKUP(VALUE(OU[[#This Row],[Master CC]]),FC_Master[Cost Center],FC_Master[rollup FC '#],OU[[#This Row],[Master CC]])","v":1370750001}]
[137,"137SO LE: Sgt Special Crimes",10052352,"137SgtSC",null,null,null,null,null,null,null,null,null,null,null,null,null,null,null,"1","2016-09-19","9999-12-31","2016-10-18","MILLERA1","137SO LE: Sgt SWAT","10052027","137SgtSWAT","1370720001",137,{"$f":"_xlfn.XLOOKUP(VALUE(OU[[#This Row],[Master CC]]),FC_Master[Cost Center],FC_Master[rollup FC '#],OU[[#This Row],[Master CC]])","v":1370750001}]
[137,"137SO LE: Sgt SWAT",10052027,"137SgtSWAT",null,null,null,null,null,null,null,null,null,null,null,null,null,null,null,"1","2016-09-19","9999-12-31","2016-10-18","ARJONAE","137SO LE: Sgt VICE","10000352","137SgtVICE","1370690001",137,{"$f":"_xlfn.XLOOKUP(VALUE(OU[[#This Row],[Master CC]]),FC_Master[Cost Center],FC_Master[rollup FC '#],OU[[#This Row],[Master CC]])","v":1370750001}]
[137,"137SO LE: Sgt VICE",10000352,"137SgtVICE",null,null,null,null,null,null,null,null,null,null,null,null,null,null,null,"1","2014-06-16","9999-12-31","2014-06-30","BROUSSC","137SO LE: Sgt West Area Cmd: Day","10000435","137SgtWDay","1370700001",137,{"$f":"_xlfn.XLOOKUP(VALUE(OU[[#This Row],[Master CC]]),FC_Master[Cost Center],FC_Master[rollup FC '#],OU[[#This Row],[Master CC]])","v":1370750001}]
[137,"137SO LE: Sgt West Area Cmd: Day",10000435,"137SgtWDay",null,null,null,null,null,null,null,null,null,null,null,null,null,null,null,"5","2014-06-16","9999-12-31","2021-01-26","BROUSSC","137SO LE: Sgt West Area Cmd: Day","10051126","137SgtWDay",null,null,{"$f":"_xlfn.XLOOKUP(VALUE(OU[[#This Row],[Master CC]]),FC_Master[Cost Center],FC_Master[rollup FC '#],OU[[#This Row],[Master CC]])","v":0}]
[0,"137SO LE: Sgt West Area Cmd: Day",10051126,"137SgtWDay",null,null,null,null,null,null,null,null,null,null,null,null,null,null,null,"1","1950-01-01","9999-12-31","2012-05-15","DATACONVERSI","137SO LE: Sgt West Area Cmd: Evg","10000440","37SgtWEvg","1370700001",137,{"$f":"_xlfn.XLOOKUP(VALUE(OU[[#This Row],[Master CC]]),FC_Master[Cost Center],FC_Master[rollup FC '#],OU[[#This Row],[Master CC]])","v":1370750001}]
[137,"137SO LE: Sgt West Area Cmd: Evg",10000440,"37SgtWEvg",null,null,null,null,null,null,null,null,null,null,null,null,null,null,null,"1","1950-01-01","9999-12-31","2012-05-15","DATACONVERSI","137SO LE: Sgt West Area Cmd: Night","10000445","137SgtWNgt","1370700001",137,{"$f":"_xlfn.XLOOKUP(VALUE(OU[[#This Row],[Master CC]]),FC_Master[Cost Center],FC_Master[rollup FC '#],OU[[#This Row],[Master CC]])","v":1370750001}]
[137,"137SO LE: Sgt West Area Cmd: Night",10000445,"137SgtWNgt",null,null,null,null,null,null,null,null,null,null,null,null,null,null,null,"1","2017-01-01","9999-12-31","2017-02-08","MILLERA1","137SO LE: Sgt West CID","10052177","137LESgtWCID","1370620001",137,{"$f":"_xlfn.XLOOKUP(VALUE(OU[[#This Row],[Master CC]]),FC_Master[Cost Center],FC_Master[rollup FC '#],OU[[#This Row],[Master CC]])","v":1370750001}]
[137,"137SO LE: Sgt West CID",10052177,"137LESgtWCID",null,null,null,null,null,null,null,null,null,null,null,null,null,null,null,"1","2017-05-01","9999-12-31","2017-05-04","MILLERA1","137SO LE: Special Crimes","10000414","137SC","1370620001",137,{"$f":"_xlfn.XLOOKUP(VALUE(OU[[#This Row],[Master CC]]),FC_Master[Cost Center],FC_Master[rollup FC '#],OU[[#This Row],[Master CC]])","v":1370750001}]
[137,"137SO LE: Special Crimes",10000414,"137SC",null,null,null,null,null,null,null,null,null,null,null,null,null,null,null,"1","2016-11-07","9999-12-31","2016-12-05","BROUSSC","137SO LE: SWAT","10000410","137SWAT","1370720001",137,{"$f":"_xlfn.XLOOKUP(VALUE(OU[[#This Row],[Master CC]]),FC_Master[Cost Center],FC_Master[rollup FC '#],OU[[#This Row],[Master CC]])","v":1370750001}]
[137,"137SO LE: SWAT",10000410,"137SWAT",null,null,null,null,null,null,null,null,null,null,null,null,null,null,null,"1","2017-05-01","9999-12-31","2017-05-10","MILLERA1","137SO LE: Vehicle Impounds","10052376","137VehImpds","1370630001",137,{"$f":"_xlfn.XLOOKUP(VALUE(OU[[#This Row],[Master CC]]),FC_Master[Cost Center],FC_Master[rollup FC '#],OU[[#This Row],[Master CC]])","v":1370750001}]
[137,"137SO LE: Vehicle Impounds",10052376,"137VehImpds",null,null,null,null,null,null,null,null,null,null,null,null,null,null,null,"1","2016-11-07","9999-12-31","2016-12-05","BROUSSC","137SO LE: VICE","10000411","137VICE","1370690001",137,{"$f":"_xlfn.XLOOKUP(VALUE(OU[[#This Row],[Master CC]]),FC_Master[Cost Center],FC_Master[rollup FC '#],OU[[#This Row],[Master CC]])","v":1370750001}]
[137,"137SO LE: VICE",10000411,"137VICE",null,null,null,null,null,null,null,null,null,null,null,null,null,null,null,"1","2017-01-01","9999-12-31","2017-02-15","ARJONAE","137SO LE: West Area Cmd: CID","10000438","137WAreaCID","1370620001",137,{"$f":"_xlfn.XLOOKUP(VALUE(OU[[#This Row],[Master CC]]),FC_Master[Cost Center],FC_Master[rollup FC '#],OU[[#This Row],[Master CC]])","v":1370750001}]
[137,"137SO LE: West Area Cmd: CID",10000438,"137WAreaCID",null,null,null,null,null,null,null,null,null,null,null,null,null,null,null,"1","1950-01-01","9999-12-31","2012-05-15","DATACONVERSI","137SO LE: West Area Cmd: Day Patrol1","10000436","137WDay1","1370700001",137,{"$f":"_xlfn.XLOOKUP(VALUE(OU[[#This Row],[Master CC]]),FC_Master[Cost Center],FC_Master[rollup FC '#],OU[[#This Row],[Master CC]])","v":1370750001}]
[137,"137SO LE: West Area Cmd: Day Patrol1",10000436,"137WDay1",null,null,null,null,null,null,null,null,null,null,null,null,null,null,null,"1","1950-01-01","9999-12-31","2012-05-15","DATACONVERSI","137SO LE: West Area Cmd: Day Patrol2","10000437","137WDay2","1370700001",137,{"$f":"_xlfn.XLOOKUP(VALUE(OU[[#This Row],[Master CC]]),FC_Master[Cost Center],FC_Master[rollup FC '#],OU[[#This Row],[Master CC]])","v":1370750001}]
[137,"137SO LE: West Area Cmd: Day Patrol2",10000437,"137WDay2",null,null,null,null,null,null,null,null,null,null,null,null,null,null,null,"1","1950-01-01","9999-12-31","2012-05-15","DATACONVERSI","137SO LE: West Area Cmd: Evg Patrol1","10000441","137WEvg1","1370700001",137,{"$f":"_xlfn.XLOOKUP(VALUE(OU[[#This Row],[Master CC]]),FC_Master[Cost Center],FC_Master[rollup FC '#],OU[[#This Row],[Master CC]])","v":1370750001}]
[137,"137SO LE: West Area Cmd: Evg Patrol1",10000441,"137WEvg1",null,null,null,null,null,null,null,null,null,null,null,null,null,null,null,"1","1950-01-01","9999-12-31","2012-05-15","DATACONVERSI","137SO LE: West Area Cmd: Evg Patrol2","10000442","137WEvg2","1370700001",137,{"$f":"_xlfn.XLOOKUP(VALUE(OU[[#This Row],[Master CC]]),FC_Master[Cost Center],FC_Master[rollup FC '#],OU[[#This Row],[Master CC]])","v":1370750001}]
[137,"137SO LE: West Area Cmd: Evg Patrol2",10000442,"137WEvg2",null,null,null,null,null,null,null,null,null,null,null,null,null,null,null,"1","1950-01-01","9999-12-31","2012-05-15","DATACONVERSI","137SO LE: West Area Cmd: Night Patrol1","10000446","137WNgt1","1370700001",137,{"$f":"_xlfn.XLOOKUP(VALUE(OU[[#This Row],[Master CC]]),FC_Master[Cost Center],FC_Master[rollup FC '#],OU[[#This Row],[Master CC]])","v":1370750001}]
[137,"137SO LE: West Area Cmd: Night Patrol1",10000446,"137WNgt1",null,null,null,null,null,null,null,null,null,null,null,null,null,null,null,"1","1950-01-01","9999-12-31","2012-05-15","DATACONVERSI","137SO LE: West Area Cmd: Night Patrol2","10000447","137WNgt2","1370700001",137,{"$f":"_xlfn.XLOOKUP(VALUE(OU[[#This Row],[Master CC]]),FC_Master[Cost Center],FC_Master[rollup FC '#],OU[[#This Row],[Master CC]])","v":1370750001}]
[137,"137SO LE: West Area Cmd: Night Patrol2",10000447,"137WNgt2",null,null,null,null,null,null,null,null,null,null,null,null,null,null,null,"1","2018-11-20","9999-12-31","2018-11-20","BROUSSC","137SO LE: West Area Cmd: SRO","10000444","137WSRO","1370710001",137,{"$f":"_xlfn.XLOOKUP(VALUE(OU[[#This Row],[Master CC]]),FC_Master[Cost Center],FC_Master[rollup FC '#],OU[[#This Row],[Master CC]])","v":1370750001}]
[137,"137SO LE: West Area Cmd: SRO",10000444,"137WSRO",null,null,null,null,null,null,null,null,null,null,null,null,null,null,null,"1","1950-01-01","9999-12-31","2012-05-15","DATACONVERSI","137SO Major Administration and Support","10000308","137MajorAS","1370120001",137,{"$f":"_xlfn.XLOOKUP(VALUE(OU[[#This Row],[Master CC]]),FC_Master[Cost Center],FC_Master[rollup FC '#],OU[[#This Row],[Master CC]])","v":1370120001}]
[137,"137SO Major Administration and Support",10000308,"137MajorAS",null,null,null,null,null,null,null,null,null,null,null,null,null,null,null,"1","2014-10-01","9999-12-31","2014-10-20","BROUSSC","137SO Major Corrections","10000306","137MajorCrc","1370440001",137,{"$f":"_xlfn.XLOOKUP(VALUE(OU[[#This Row],[Master CC]]),FC_Master[Cost Center],FC_Master[rollup FC '#],OU[[#This Row],[Master CC]])","v":1370440001}]
[137,"137SO Major Corrections",10000306,"137MajorCrc",null,null,null,null,null,null,null,null,null,null,null,null,null,null,null,"1","2014-10-01","9999-12-31","2014-10-20","BROUSSC","137SO Major Law Enforcement","10000307","137MajorLE","1370750001",137,{"$f":"_xlfn.XLOOKUP(VALUE(OU[[#This Row],[Master CC]]),FC_Master[Cost Center],FC_Master[rollup FC '#],OU[[#This Row],[Master CC]])","v":1370750001}]
[137,"137SO Major Law Enforcement",10000307,"137MajorLE",null,null,null,null,null,null,null,null,null,null,null,null,null,null,null,"1","1950-01-01","9999-12-31","2012-05-15","DATACONVERSI","137SO Military Leave","10000450","137Military","1370040001",137,{"$f":"_xlfn.XLOOKUP(VALUE(OU[[#This Row],[Master CC]]),FC_Master[Cost Center],FC_Master[rollup FC '#],OU[[#This Row],[Master CC]])","v":1370170001}]
[137,"137SO Military Leave",10000450,"137Military",null,null,null,null,null,null,null,null,null,null,null,null,null,null,null,"1","2020-08-16","9999-12-31","2020-08-06","BROUSSC","137SO Public Info & Forensic Media","10054326","137PIFrncMdi","1370130001",137,{"$f":"_xlfn.XLOOKUP(VALUE(OU[[#This Row],[Master CC]]),FC_Master[Cost Center],FC_Master[rollup FC '#],OU[[#This Row],[Master CC]])","v":1370130001}]
[137,"137SO Public Info & Forensic Media",10054326,"137PIFrncMdi",null,null,null,null,null,null,null,null,null,null,null,null,null,null,null,"1","1950-01-01","9999-12-31","2012-05-15","DATACONVERSI","137SO Sheriff","10000304","137Sheriff","1370130001",137,{"$f":"_xlfn.XLOOKUP(VALUE(OU[[#This Row],[Master CC]]),FC_Master[Cost Center],FC_Master[rollup FC '#],OU[[#This Row],[Master CC]])","v":1370130001}]
[137,"137SO Sheriff",10000304,"137Sheriff",null,null,null,null,null,null,null,null,null,null,null,null,null,null,null,"1","1950-01-01","9999-12-31","2012-05-15","DATACONVERSI","137SO Unassigned","10000721","137Unasg","1370040001",137,{"$f":"_xlfn.XLOOKUP(VALUE(OU[[#This Row],[Master CC]]),FC_Master[Cost Center],FC_Master[rollup FC '#],OU[[#This Row],[Master CC]])","v":1370170001}]
[137,"137SO Unassigned",10000721,"137Unasg",null,null,null,null,null,null,null,null,null,null,null,null,null,null,null,"1","1950-01-01","9999-12-31","2012-05-15","DATACONVERSI","138ME Administrative","10000456","138Adm","1380010001",138,{"$f":"_xlfn.XLOOKUP(VALUE(OU[[#This Row],[Master CC]]),FC_Master[Cost Center],FC_Master[rollup FC '#],OU[[#This Row],[Master CC]])","v":1380010001}]
[138,"138ME Administrative",10000456,"138Adm",null,null,null,null,null,null,null,null,null,null,null,null,null,null,null,"1","2014-09-15","9999-12-31","2014-09-15","BROUSSC","138ME Administrative Chief","10000454","138AdmChf","1380010001",138,{"$f":"_xlfn.XLOOKUP(VALUE(OU[[#This Row],[Master CC]]),FC_Master[Cost Center],FC_Master[rollup FC '#],OU[[#This Row],[Master CC]])","v":1380010001}]
[138,"138ME Administrative Chief",10000454,"138AdmChf",null,null,null,null,null,null,null,null,null,null,null,null,null,null,null,"1","1950-01-01","9999-12-31","2012-05-15","DATACONVERSI","138ME Chief Medical Examiner","10000451","138ChfME","1380010001",138,{"$f":"_xlfn.XLOOKUP(VALUE(OU[[#This Row],[Master CC]]),FC_Master[Cost Center],FC_Master[rollup FC '#],OU[[#This Row],[Master CC]])","v":1380010001}]
[138,"138ME Chief Medical Examiner",10000451,"138ChfME",null,null,null,null,null,null,null,null,null,null,null,null,null,null,null,"1","2021-07-01","9999-12-31","2021-08-03","MILLIGA","138ME Forensic Autopsy","10000458","138FrncAtp","1380060001",138,{"$f":"_xlfn.XLOOKUP(VALUE(OU[[#This Row],[Master CC]]),FC_Master[Cost Center],FC_Master[rollup FC '#],OU[[#This Row],[Master CC]])","v":1380060001}]
[138,"138ME Forensic Autopsy",10000458,"138FrncAtp",null,null,null,null,null,null,null,null,null,null,null,null,null,null,null,"1","2014-09-15","9999-12-31","2014-09-15","BROUSSC","138ME Forensic Toxicology","10000453","138FrncTxc","1380030001",138,{"$f":"_xlfn.XLOOKUP(VALUE(OU[[#This Row],[Master CC]]),FC_Master[Cost Center],FC_Master[rollup FC '#],OU[[#This Row],[Master CC]])","v":1380030001}]
[138,"138ME Forensic Toxicology",10000453,"138FrncTxc",null,null,null,null,null,null,null,null,null,null,null,null,null,null,null,"1","2021-07-01","9999-12-31","2021-08-03","MILLIGA","138ME Investigations & Morgue Ops","10054776","138MEInv&Mrg","1380010001",138,{"$f":"_xlfn.XLOOKUP(VALUE(OU[[#This Row],[Master CC]]),FC_Master[Cost Center],FC_Master[rollup FC '#],OU[[#This Row],[Master CC]])","v":1380010001}]
[138,"138ME Investigations & Morgue Ops",10054776,"138MEInv&Mrg",null,null,null,null,null,null,null,null,null,null,null,null,null,null,null,"1","2021-07-01","9999-12-31","2021-08-03","MILLIGA","138ME Investigative","10000455","138Invstgtv","1380050001",138,{"$f":"_xlfn.XLOOKUP(VALUE(OU[[#This Row],[Master CC]]),FC_Master[Cost Center],FC_Master[rollup FC '#],OU[[#This Row],[Master CC]])","v":1380050001}]
[138,"138ME Investigative",10000455,"138Invstgtv",null,null,null,null,null,null,null,null,null,null,null,null,null,null,null,"1","2014-09-15","9999-12-31","2014-09-15","BROUSSC","138ME Medical Examiners","10000452","138ME","1380020001",138,{"$f":"_xlfn.XLOOKUP(VALUE(OU[[#This Row],[Master CC]]),FC_Master[Cost Center],FC_Master[rollup FC '#],OU[[#This Row],[Master CC]])","v":1380020001}]
[138,"138ME Medical Examiners",10000452,"138ME",null,null,null,null,null,null,null,null,null,null,null,null,null,null,null,"1","1950-01-01","9999-12-31","2012-05-15","DATACONVERSI","138ME Records Analysis","10000457","138RcdAnly","1380010001",138,{"$f":"_xlfn.XLOOKUP(VALUE(OU[[#This Row],[Master CC]]),FC_Master[Cost Center],FC_Master[rollup FC '#],OU[[#This Row],[Master CC]])","v":1380010001}]
[138,"138ME Records Analysis",10000457,"138RcdAnly",null,null,null,null,null,null,null,null,null,null,null,null,null,null,null,"1","2018-02-01","9999-12-31","2018-02-02","KNOEDLT","139CSCD Bookkeeping","10000486","139Bkpg","1390010001",139,{"$f":"_xlfn.XLOOKUP(VALUE(OU[[#This Row],[Master CC]]),FC_Master[Cost Center],FC_Master[rollup FC '#],OU[[#This Row],[Master CC]])","v":1390010001}]
[139,"139CSCD Bookkeeping",10000486,"139Bkpg",null,null,null,null,null,null,null,null,null,null,null,null,null,null,null,"1","1950-01-01","9999-12-31","2012-05-15","DATACONVERSI","139CSCD Business Analysis","10000488","139BA","1390010001",139,{"$f":"_xlfn.XLOOKUP(VALUE(OU[[#This Row],[Master CC]]),FC_Master[Cost Center],FC_Master[rollup FC '#],OU[[#This Row],[Master CC]])","v":1390010001}]
[139,"139CSCD Business Analysis",10000488,"139BA",null,null,null,null,null,null,null,null,null,null,null,null,null,null,null,"1","1950-01-01","9999-12-31","2012-05-15","DATACONVERSI","139CSCD Chief Deputy","10000460","139ChfDp","1390010001",139,{"$f":"_xlfn.XLOOKUP(VALUE(OU[[#This Row],[Master CC]]),FC_Master[Cost Center],FC_Master[rollup FC '#],OU[[#This Row],[Master CC]])","v":1390010001}]
[139,"139CSCD Chief Deputy",10000460,"139ChfDp",null,null,null,null,null,null,null,null,null,null,null,null,null,null,null,"1","2017-10-16","9999-12-31","2017-10-18","GIPSONK","139CSCD Counseling Center","10000473","139CslCtr","1390010001",139,{"$f":"_xlfn.XLOOKUP(VALUE(OU[[#This Row],[Master CC]]),FC_Master[Cost Center],FC_Master[rollup FC '#],OU[[#This Row],[Master CC]])","v":1390010001}]
[139,"139CSCD Counseling Center",10000473,"139CslCtr",null,null,null,null,null,null,null,null,null,null,null,null,null,null,null,"5","2017-05-08","9999-12-31","2017-05-08","GIPSONK","139CSCD Counseling Center","10000473","139CslCtr","1390010001",139,{"$f":"_xlfn.XLOOKUP(VALUE(OU[[#This Row],[Master CC]]),FC_Master[Cost Center],FC_Master[rollup FC '#],OU[[#This Row],[Master CC]])","v":1390010001}]
[139,"139CSCD Counseling Center",10000473,"139CslCtr",null,null,null,null,null,null,null,null,null,null,null,null,null,null,null,"1","2014-11-01","9999-12-31","2014-11-14","RAMIREV","139CSCD Court Services","10000476","139CSv","1390010001",139,{"$f":"_xlfn.XLOOKUP(VALUE(OU[[#This Row],[Master CC]]),FC_Master[Cost Center],FC_Master[rollup FC '#],OU[[#This Row],[Master CC]])","v":1390010001}]
[139,"139CSCD Court Services",10000476,"139CSv",null,null,null,null,null,null,null,null,null,null,null,null,null,null,null,"5","2014-11-01","9999-12-31","2018-03-29","BROUSSC","139CSCD Court Services","10000476","139CSv","1390010001",139,{"$f":"_xlfn.XLOOKUP(VALUE(OU[[#This Row],[Master CC]]),FC_Master[Cost Center],FC_Master[rollup FC '#],OU[[#This Row],[Master CC]])","v":1390010001}]
[139,"139CSCD Court Services",10000476,"139CSv",null,null,null,null,null,null,null,null,null,null,null,null,null,null,null,"1","2014-11-16","9999-12-31","2014-11-17","RAMIREV","139CSCD Courts","10000462","139CT","1390010001",139,{"$f":"_xlfn.XLOOKUP(VALUE(OU[[#This Row],[Master CC]]),FC_Master[Cost Center],FC_Master[rollup FC '#],OU[[#This Row],[Master CC]])","v":1390010001}]
[139,"139CSCD Courts",10000462,"139CT",null,null,null,null,null,null,null,null,null,null,null,null,null,null,null,"1","1950-01-01","9999-12-31","2012-05-15","DATACONVERSI","139CSCD CSR","10000475","139CSR","1390010001",139,{"$f":"_xlfn.XLOOKUP(VALUE(OU[[#This Row],[Master CC]]),FC_Master[Cost Center],FC_Master[rollup FC '#],OU[[#This Row],[Master CC]])","v":1390010001}]
[139,"139CSCD CSR",10000475,"139CSR",null,null,null,null,null,null,null,null,null,null,null,null,null,null,null,"1","2017-10-16","9999-12-31","2017-10-23","GIPSONK","139CSCD Diagnostic","10000463","139Dgns","1390010001",139,{"$f":"_xlfn.XLOOKUP(VALUE(OU[[#This Row],[Master CC]]),FC_Master[Cost Center],FC_Master[rollup FC '#],OU[[#This Row],[Master CC]])","v":1390010001}]
[139,"139CSCD Diagnostic",10000463,"139Dgns",null,null,null,null,null,null,null,null,null,null,null,null,null,null,null,"1","2014-11-01","9999-12-31","2014-11-14","RAMIREV","139CSCD Field Supervision","10000461","139FldSvsn","1390010001",139,{"$f":"_xlfn.XLOOKUP(VALUE(OU[[#This Row],[Master CC]]),FC_Master[Cost Center],FC_Master[rollup FC '#],OU[[#This Row],[Master CC]])","v":1390010001}]
[139,"139CSCD Field Supervision",10000461,"139FldSvsn",null,null,null,null,null,null,null,null,null,null,null,null,null,null,null,"1","2020-01-10","9999-12-31","2020-01-08","GIPSONK","139CSCD Financial","10000487","139Fin","1390010001",139,{"$f":"_xlfn.XLOOKUP(VALUE(OU[[#This Row],[Master CC]]),FC_Master[Cost Center],FC_Master[rollup FC '#],OU[[#This Row],[Master CC]])","v":1390010001}]
[139,"139CSCD Financial",10000487,"139Fin",null,null,null,null,null,null,null,null,null,null,null,null,null,null,null,"1","2015-02-01","9999-12-31","2015-02-23","RAMIREV","139CSCD Human Resources","10000491","139HR","1390010001",139,{"$f":"_xlfn.XLOOKUP(VALUE(OU[[#This Row],[Master CC]]),FC_Master[Cost Center],FC_Master[rollup FC '#],OU[[#This Row],[Master CC]])","v":1390010001}]
[139,"139CSCD Human Resources",10000491,"139HR",null,null,null,null,null,null,null,null,null,null,null,null,null,null,null,"1","2020-01-10","9999-12-31","2020-01-08","GIPSONK","139CSCD Information Technology","10050103","139IT","1390010001",139,{"$f":"_xlfn.XLOOKUP(VALUE(OU[[#This Row],[Master CC]]),FC_Master[Cost Center],FC_Master[rollup FC '#],OU[[#This Row],[Master CC]])","v":1390010001}]
[139,"139CSCD Information Technology",10050103,"139IT",null,null,null,null,null,null,null,null,null,null,null,null,null,null,null,"1","1950-01-01","9999-12-31","2012-05-15","DATACONVERSI","139CSCD North 1","10000478","139North1","1390010001",139,{"$f":"_xlfn.XLOOKUP(VALUE(OU[[#This Row],[Master CC]]),FC_Master[Cost Center],FC_Master[rollup FC '#],OU[[#This Row],[Master CC]])","v":1390010001}]
[139,"139CSCD North 1",{"$f":"VALUE(Z834)","v":10000478},"139North1",null,null,null,null,null,null,null,null,null,null,null,null,null,null,null,"1","2014-11-01","9999-12-31","2014-11-17","RAMIREV","139CSCD North 2","10000483","139North2","1390010001",139,{"$f":"_xlfn.XLOOKUP(VALUE(OU[[#This Row],[Master CC]]),FC_Master[Cost Center],FC_Master[rollup FC '#],OU[[#This Row],[Master CC]])","v":1390010001}]
[{"$f":"AC835","v":139},{"$f":"Y835","v":"139CSCD North 2"},10000483,{"$f":"AA835","v":"139North2"},null,null,null,null,null,null,null,null,null,null,null,null,null,null,null,"1","2014-11-01","9999-12-31","2014-11-17","RAMIREV","139CSCD North 3","10000481","139North3","1390010001",139,{"$f":"_xlfn.XLOOKUP(VALUE(OU[[#This Row],[Master CC]]),FC_Master[Cost Center],FC_Master[rollup FC '#],OU[[#This Row],[Master CC]])","v":1390010001}]
[139,"139CSCD North 3",10000481,"139North3",null,null,null,null,null,null,null,null,null,null,null,null,null,null,null,"1","2020-01-10","9999-12-31","2020-01-08","GIPSONK","139CSCD Office Court/Diagnostic","10000464","139Ct/Dgns","1390010001",139,{"$f":"_xlfn.XLOOKUP(VALUE(OU[[#This Row],[Master CC]]),FC_Master[Cost Center],FC_Master[rollup FC '#],OU[[#This Row],[Master CC]])","v":1390010001}]
[139,"139CSCD Office Court/Diagnostic",10000464,"139Ct/Dgns",null,null,null,null,null,null,null,null,null,null,null,null,null,null,null,"1","2020-10-16","9999-12-31","2020-10-16","STEINE","139CSCD Office North/Central","10000489","139N/Ctl","1390010001",139,{"$f":"_xlfn.XLOOKUP(VALUE(OU[[#This Row],[Master CC]]),FC_Master[Cost Center],FC_Master[rollup FC '#],OU[[#This Row],[Master CC]])","v":1390010001}]
[139,"139CSCD Office North/Central",10000489,"139N/Ctl",null,null,null,null,null,null,null,null,null,null,null,null,null,null,null,"1","2023-01-04","9999-12-31","2023-01-05","PEPPERA","139CSCD Office South","10000490","139South","1390010001",139,{"$f":"_xlfn.XLOOKUP(VALUE(OU[[#This Row],[Master CC]]),FC_Master[Cost Center],FC_Master[rollup FC '#],OU[[#This Row],[Master CC]])","v":1390010001}]
[139,"139CSCD Office South",10000490,"139South",null,null,null,null,null,null,null,null,null,null,null,null,null,null,null,"1","2015-02-01","9999-12-31","2015-02-23","RAMIREV","139CSCD Operations","10000485","139Ops","1390010001",139,{"$f":"_xlfn.XLOOKUP(VALUE(OU[[#This Row],[Master CC]]),FC_Master[Cost Center],FC_Master[rollup FC '#],OU[[#This Row],[Master CC]])","v":1390010001}]
[139,"139CSCD Operations",10000485,"139Ops",null,null,null,null,null,null,null,null,null,null,null,null,null,null,null,"1","2015-02-01","9999-12-31","2015-02-23","RAMIREV","139CSCD Programs/Services","10000467","139PSv","1390010001",139,{"$f":"_xlfn.XLOOKUP(VALUE(OU[[#This Row],[Master CC]]),FC_Master[Cost Center],FC_Master[rollup FC '#],OU[[#This Row],[Master CC]])","v":1390010001}]
[139,"139CSCD Programs/Services",10000467,"139PSv",null,null,null,null,null,null,null,null,null,null,null,null,null,null,null,"1","2017-10-16","9999-12-31","2017-10-18","GIPSONK","139CSCD SMART","10000471","139SMART","1390010001",139,{"$f":"_xlfn.XLOOKUP(VALUE(OU[[#This Row],[Master CC]]),FC_Master[Cost Center],FC_Master[rollup FC '#],OU[[#This Row],[Master CC]])","v":1390010001}]
[139,"139CSCD SMART",10000471,"139SMART",null,null,null,null,null,null,null,null,null,null,null,null,null,null,null,"5","2017-05-08","9999-12-31","2017-05-08","GIPSONK","139CSCD SMART","10000471","139SMART","1390010001",139,{"$f":"_xlfn.XLOOKUP(VALUE(OU[[#This Row],[Master CC]]),FC_Master[Cost Center],FC_Master[rollup FC '#],OU[[#This Row],[Master CC]])","v":1390010001}]
[139,"139CSCD SMART",10000471,"139SMART",null,null,null,null,null,null,null,null,null,null,null,null,null,null,null,"1","2023-01-12","9999-12-31","2023-01-13","PEPPERA","139CSCD SMART Counselors","10000472","139SMARTCsl","1390010001",139,{"$f":"_xlfn.XLOOKUP(VALUE(OU[[#This Row],[Master CC]]),FC_Master[Cost Center],FC_Master[rollup FC '#],OU[[#This Row],[Master CC]])","v":1390010001}]
[139,"139CSCD SMART Counselors",10000472,"139SMARTCsl",null,null,null,null,null,null,null,null,null,null,null,null,null,null,null,"1","2014-04-16","9999-12-31","2014-11-17","RAMIREV","139CSCD Social Services","10000474","139SocSv","1390010001",139,{"$f":"_xlfn.XLOOKUP(VALUE(OU[[#This Row],[Master CC]]),FC_Master[Cost Center],FC_Master[rollup FC '#],OU[[#This Row],[Master CC]])","v":1390010001}]
[139,"139CSCD Social Services",10000474,"139SocSv",null,null,null,null,null,null,null,null,null,null,null,null,null,null,null,"1","2014-11-01","9999-12-31","2014-11-17","RAMIREV","139CSCD South 1","10000479","139South1","1390010001",139,{"$f":"_xlfn.XLOOKUP(VALUE(OU[[#This Row],[Master CC]]),FC_Master[Cost Center],FC_Master[rollup FC '#],OU[[#This Row],[Master CC]])","v":1390010001}]
[139,"139CSCD South 1",10000479,"139South1",null,null,null,null,null,null,null,null,null,null,null,null,null,null,null,"1","2014-11-01","9999-12-31","2014-11-17","RAMIREV","139CSCD South 2","10000482","139South2","1390010001",139,{"$f":"_xlfn.XLOOKUP(VALUE(OU[[#This Row],[Master CC]]),FC_Master[Cost Center],FC_Master[rollup FC '#],OU[[#This Row],[Master CC]])","v":1390010001}]
[139,"139CSCD South 2",10000482,"139South2",null,null,null,null,null,null,null,null,null,null,null,null,null,null,null,"1","2014-11-01","9999-12-31","2014-11-17","RAMIREV","139CSCD South 3","10000480","139South3","1390010001",139,{"$f":"_xlfn.XLOOKUP(VALUE(OU[[#This Row],[Master CC]]),FC_Master[Cost Center],FC_Master[rollup FC '#],OU[[#This Row],[Master CC]])","v":1390010001}]
[139,"139CSCD South 3",10000480,"139South3",null,null,null,null,null,null,null,null,null,null,null,null,null,null,null,"1","2014-11-01","9999-12-31","2014-11-17","RAMIREV","139CSCD South 4","10000477","139South4","1390010001",139,{"$f":"_xlfn.XLOOKUP(VALUE(OU[[#This Row],[Master CC]]),FC_Master[Cost Center],FC_Master[rollup FC '#],OU[[#This Row],[Master CC]])","v":1390010001}]
[139,"139CSCD South 4",10000477,"139South4",null,null,null,null,null,null,null,null,null,null,null,null,null,null,null,"1","1950-01-01","9999-12-31","2012-05-15","DATACONVERSI","139CSCD Specialized 1","10000470","139Spz1","1390010001",139,{"$f":"_xlfn.XLOOKUP(VALUE(OU[[#This Row],[Master CC]]),FC_Master[Cost Center],FC_Master[rollup FC '#],OU[[#This Row],[Master CC]])","v":1390010001}]
[139,"139CSCD Specialized 1",10000470,"139Spz1",null,null,null,null,null,null,null,null,null,null,null,null,null,null,null,"1","1950-01-01","9999-12-31","2012-05-15","DATACONVERSI","139CSCD Specialized 2","10000469","139Spz2","1390010001",139,{"$f":"_xlfn.XLOOKUP(VALUE(OU[[#This Row],[Master CC]]),FC_Master[Cost Center],FC_Master[rollup FC '#],OU[[#This Row],[Master CC]])","v":1390010001}]
[139,"139CSCD Specialized 2",10000469,"139Spz2",null,null,null,null,null,null,null,null,null,null,null,null,null,null,null,"1","1950-01-01","9999-12-31","2012-05-15","DATACONVERSI","139CSCD Specialized 3","10000468","139Spz3","1390010001",139,{"$f":"_xlfn.XLOOKUP(VALUE(OU[[#This Row],[Master CC]]),FC_Master[Cost Center],FC_Master[rollup FC '#],OU[[#This Row],[Master CC]])","v":1390010001}]
[139,"139CSCD Specialized 3",10000468,"139Spz3",null,null,null,null,null,null,null,null,null,null,null,null,null,null,null,"1","2014-11-16","9999-12-31","2014-11-17","RAMIREV","139CSCD Specialty Courts/Intake","10000465","139SpltyCT","1390010001",139,{"$f":"_xlfn.XLOOKUP(VALUE(OU[[#This Row],[Master CC]]),FC_Master[Cost Center],FC_Master[rollup FC '#],OU[[#This Row],[Master CC]])","v":1390010001}]
[139,"139CSCD Specialty Courts/Intake",10000465,"139SpltyCT",null,null,null,null,null,null,null,null,null,null,null,null,null,null,null,"1","2016-03-18","9999-12-31","2016-03-25","RAMIREV","139CSCD Staff Development","10051851","139StfDev","1390010001",139,{"$f":"_xlfn.XLOOKUP(VALUE(OU[[#This Row],[Master CC]]),FC_Master[Cost Center],FC_Master[rollup FC '#],OU[[#This Row],[Master CC]])","v":1390010001}]
[139,"139CSCD Staff Development",10051851,"139StfDev",null,null,null,null,null,null,null,null,null,null,null,null,null,null,null,"1","2017-10-16","9999-12-31","2017-10-18","GIPSONK","139CSCD TAIP","10000466","139TAIP","1390010001",139,{"$f":"_xlfn.XLOOKUP(VALUE(OU[[#This Row],[Master CC]]),FC_Master[Cost Center],FC_Master[rollup FC '#],OU[[#This Row],[Master CC]])","v":1390010001}]
[139,"139CSCD TAIP",10000466,"139TAIP",null,null,null,null,null,null,null,null,null,null,null,null,null,null,null,"1","1950-01-01","9999-12-31","2012-05-15","DATACONVERSI","139CSCD Unassigned","10000719","139Unasg","1390010001",139,{"$f":"_xlfn.XLOOKUP(VALUE(OU[[#This Row],[Master CC]]),FC_Master[Cost Center],FC_Master[rollup FC '#],OU[[#This Row],[Master CC]])","v":1390010001}]
[139,"139CSCD Unassigned",10000719,"139Unasg",null,null,null,null,null,null,null,null,null,null,null,null,null,null,null,"1","1950-01-01","9999-12-31","2012-05-15","DATACONVERSI","140CES Administrative","10000495","140Adm","1400010001",140,{"$f":"_xlfn.XLOOKUP(VALUE(OU[[#This Row],[Master CC]]),FC_Master[Cost Center],FC_Master[rollup FC '#],OU[[#This Row],[Master CC]])","v":1400010001}]
[140,"140CES Administrative",10000495,"140Adm",null,null,null,null,null,null,null,null,null,null,null,null,null,null,null,"1","1950-01-01","9999-12-31","2012-05-15","DATACONVERSI","140CES Alcohol and Other Drug Counselors","10000499","140AODCsl","1400050001",140,{"$f":"_xlfn.XLOOKUP(VALUE(OU[[#This Row],[Master CC]]),FC_Master[Cost Center],FC_Master[rollup FC '#],OU[[#This Row],[Master CC]])","v":1400050001}]
[140,"140CES Alcohol and Other Drug Counselors",10000499,"140AODCsl",null,null,null,null,null,null,null,null,null,null,null,null,null,null,null,"1","2022-01-03","9999-12-31","2022-01-03","GIPSONK","140CES AOD Adm","10055226","140AODAdm","1400050001",140,{"$f":"_xlfn.XLOOKUP(VALUE(OU[[#This Row],[Master CC]]),FC_Master[Cost Center],FC_Master[rollup FC '#],OU[[#This Row],[Master CC]])","v":1400050001}]
[140,"140CES AOD Adm",10055226,"140AODAdm",null,null,null,null,null,null,null,null,null,null,null,null,null,null,null,"1","1950-01-01","9999-12-31","2012-05-15","DATACONVERSI","140CES AOD Classes","10000819","140AODClass","1400050001",140,{"$f":"_xlfn.XLOOKUP(VALUE(OU[[#This Row],[Master CC]]),FC_Master[Cost Center],FC_Master[rollup FC '#],OU[[#This Row],[Master CC]])","v":1400050001}]
[140,"140CES AOD Classes",10000819,"140AODClass",null,null,null,null,null,null,null,null,null,null,null,null,null,null,null,"1","1950-01-01","9999-12-31","2012-05-15","DATACONVERSI","140CES Clinical","10000498","140Clinic","1400060001",140,{"$f":"_xlfn.XLOOKUP(VALUE(OU[[#This Row],[Master CC]]),FC_Master[Cost Center],FC_Master[rollup FC '#],OU[[#This Row],[Master CC]])","v":1400060001}]
[140,"140CES Clinical",10000498,"140Clinic",null,null,null,null,null,null,null,null,null,null,null,null,null,null,null,"1","1950-01-01","9999-12-31","2012-05-15","DATACONVERSI","140CES CTC","10000726","140CTC","1400080001",140,{"$f":"_xlfn.XLOOKUP(VALUE(OU[[#This Row],[Master CC]]),FC_Master[Cost Center],FC_Master[rollup FC '#],OU[[#This Row],[Master CC]])","v":1400080001}]
[140,"140CES CTC",10000726,"140CTC",null,null,null,null,null,null,null,null,null,null,null,null,null,null,null,"1","1950-01-01","9999-12-31","2012-05-15","DATACONVERSI","140CES Director","10000494","140CESDir","1400010001",140,{"$f":"_xlfn.XLOOKUP(VALUE(OU[[#This Row],[Master CC]]),FC_Master[Cost Center],FC_Master[rollup FC '#],OU[[#This Row],[Master CC]])","v":1400010001}]
[140,"140CES Director",10000494,"140CESDir",null,null,null,null,null,null,null,null,null,null,null,null,null,null,null,"1","2019-07-16","9999-12-31","2019-07-22","GIPSONK","140CES Education","10053728","140Edu","1400010001",140,{"$f":"_xlfn.XLOOKUP(VALUE(OU[[#This Row],[Master CC]]),FC_Master[Cost Center],FC_Master[rollup FC '#],OU[[#This Row],[Master CC]])","v":1400010001}]
[140,"140CES Education",10053728,"140Edu",null,null,null,null,null,null,null,null,null,null,null,null,null,null,null,"1","1950-01-01","9999-12-31","2012-05-15","DATACONVERSI","140CES Education Classes","10000502","140EduClass","1400020001",140,{"$f":"_xlfn.XLOOKUP(VALUE(OU[[#This Row],[Master CC]]),FC_Master[Cost Center],FC_Master[rollup FC '#],OU[[#This Row],[Master CC]])","v":1400020001}]
[140,"140CES Education Classes",10000502,"140EduClass",null,null,null,null,null,null,null,null,null,null,null,null,null,null,null,"1","1950-01-01","9999-12-31","2012-05-15","DATACONVERSI","140CES Family Violence Counselors","10000500","140FamVlcCsl","1400070001",140,{"$f":"_xlfn.XLOOKUP(VALUE(OU[[#This Row],[Master CC]]),FC_Master[Cost Center],FC_Master[rollup FC '#],OU[[#This Row],[Master CC]])","v":1400070001}]
[140,"140CES Family Violence Counselors",10000500,"140FamVlcCsl",null,null,null,null,null,null,null,null,null,null,null,null,null,null,null,"1","2023-06-27","9999-12-31","2023-06-30","CHANGM","140CES Family Violence Support","10056352","140FamVlcSp","1400010001",140,{"$f":"_xlfn.XLOOKUP(VALUE(OU[[#This Row],[Master CC]]),FC_Master[Cost Center],FC_Master[rollup FC '#],OU[[#This Row],[Master CC]])","v":1400010001}]
[140,"140CES Family Violence Support",10056352,"140FamVlcSp",null,null,null,null,null,null,null,null,null,null,null,null,null,null,null,"1","2015-07-01","9999-12-31","2015-07-31","PFAFFEA","140CES Phoenix Court","10051451","140PhoenixCt","1400050001",140,{"$f":"_xlfn.XLOOKUP(VALUE(OU[[#This Row],[Master CC]]),FC_Master[Cost Center],FC_Master[rollup FC '#],OU[[#This Row],[Master CC]])","v":1400050001}]
[140,"140CES Phoenix Court",10051451,"140PhoenixCt",null,null,null,null,null,null,null,null,null,null,null,null,null,null,null,"1","2020-10-01","9999-12-31","2021-05-12","GIPSONK","140CES Phone Center - Downtown","10000497","140PhnCtr","1400010001",140,{"$f":"_xlfn.XLOOKUP(VALUE(OU[[#This Row],[Master CC]]),FC_Master[Cost Center],FC_Master[rollup FC '#],OU[[#This Row],[Master CC]])","v":1400010001}]
[140,"140CES Phone Center - Downtown",10000497,"140PhnCtr",null,null,null,null,null,null,null,null,null,null,null,null,null,null,null,"1","1950-01-01","9999-12-31","2012-05-15","DATACONVERSI","140CES Safe Haven","10000501","140SHv","1400010001",140,{"$f":"_xlfn.XLOOKUP(VALUE(OU[[#This Row],[Master CC]]),FC_Master[Cost Center],FC_Master[rollup FC '#],OU[[#This Row],[Master CC]])","v":1400010001}]
[140,"140CES Safe Haven",10000501,"140SHv",null,null,null,null,null,null,null,null,null,null,null,null,null,null,null,"1","1950-01-01","9999-12-31","2012-05-15","DATACONVERSI","140CES Service Center","10000496","140SvCtr","1400010001",140,{"$f":"_xlfn.XLOOKUP(VALUE(OU[[#This Row],[Master CC]]),FC_Master[Cost Center],FC_Master[rollup FC '#],OU[[#This Row],[Master CC]])","v":1400010001}]
[140,"140CES Service Center",10000496,"140SvCtr",null,null,null,null,null,null,null,null,null,null,null,null,null,null,null,"1","2019-07-16","9999-12-31","2019-07-22","GIPSONK","140CES Service Center II","10053727","140SvCtrII","1400010001",140,{"$f":"_xlfn.XLOOKUP(VALUE(OU[[#This Row],[Master CC]]),FC_Master[Cost Center],FC_Master[rollup FC '#],OU[[#This Row],[Master CC]])","v":1400010001}]
[140,"140CES Service Center II",10053727,"140SvCtrII",null,null,null,null,null,null,null,null,null,null,null,null,null,null,null,"1","2021-07-12","9999-12-31","2021-07-13","GIPSONK","140CES Training","10053701","140Trng","1400010001",140,{"$f":"_xlfn.XLOOKUP(VALUE(OU[[#This Row],[Master CC]]),FC_Master[Cost Center],FC_Master[rollup FC '#],OU[[#This Row],[Master CC]])","v":1400010001}]
[140,"140CES Training",10053701,"140Trng",null,null,null,null,null,null,null,null,null,null,null,null,null,null,null,"1","2023-10-01","9999-12-31","2023-10-11","PEPPERA","141 Community Legal Services","10056651","141CLgS","1410010001",141,{"$f":"_xlfn.XLOOKUP(VALUE(OU[[#This Row],[Master CC]]),FC_Master[Cost Center],FC_Master[rollup FC '#],OU[[#This Row],[Master CC]])","v":1410010001}]
[141,"141 Community Legal Services",10056651,"141CLgS",null,null,null,null,null,null,null,null,null,null,null,null,null,null,null,"1","2023-10-01","9999-12-31","2023-10-11","PEPPERA","141CmLgSv Law Library","10000665","141LawLib","1410040100",141,{"$f":"_xlfn.XLOOKUP(VALUE(OU[[#This Row],[Master CC]]),FC_Master[Cost Center],FC_Master[rollup FC '#],OU[[#This Row],[Master CC]])","v":1410040100}]
[141,"141CmLgSv Law Library",10000665,"141LawLib",null,null,null,null,null,null,null,null,null,null,null,null,null,null,null,"1","2023-10-01","9999-12-31","2023-09-19","PEPPERA","141CmLgSv Law Library Reference Attorney","10050202","141RfrAtty","1410040001",141,{"$f":"_xlfn.XLOOKUP(VALUE(OU[[#This Row],[Master CC]]),FC_Master[Cost Center],FC_Master[rollup FC '#],OU[[#This Row],[Master CC]])","v":1410040001}]
[141,"141CmLgSv Law Library Reference Attorney",10050202,"141RfrAtty",null,null,null,null,null,null,null,null,null,null,null,null,null,null,null,"1","2023-10-01","9999-12-31","2023-09-19","PEPPERA","141CmLgSv Law Library Reference Services","10000667","141LwLibRfr","1410040100",141,{"$f":"_xlfn.XLOOKUP(VALUE(OU[[#This Row],[Master CC]]),FC_Master[Cost Center],FC_Master[rollup FC '#],OU[[#This Row],[Master CC]])","v":1410040100}]
[141,"141CmLgSv Law Library Reference Services",10000667,"141LwLibRfr",null,null,null,null,null,null,null,null,null,null,null,null,null,null,null,"1","2023-10-01","9999-12-31","2023-09-19","PEPPERA","141CmLgSv Law Library Rfr Atty DL","10052652","141RfrAttyDL","1410040001",141,{"$f":"_xlfn.XLOOKUP(VALUE(OU[[#This Row],[Master CC]]),FC_Master[Cost Center],FC_Master[rollup FC '#],OU[[#This Row],[Master CC]])","v":1410040001}]
[141,"141CmLgSv Law Library Rfr Atty DL",10052652,"141RfrAttyDL",null,null,null,null,null,null,null,null,null,null,null,null,null,null,null,"1","2023-10-01","9999-12-31","2023-09-19","PEPPERA","141CmLgSv Law Library Technical Services","10000666","141LwLibTch","1410040100",141,{"$f":"_xlfn.XLOOKUP(VALUE(OU[[#This Row],[Master CC]]),FC_Master[Cost Center],FC_Master[rollup FC '#],OU[[#This Row],[Master CC]])","v":1410040100}]
[141,"141CmLgSv Law Library Technical Services",10000666,"141LwLibTch",null,null,null,null,null,null,null,null,null,null,null,null,null,null,null,"1","2023-10-01","9999-12-31","2023-10-11","PEPPERA","141CmLgSv Office of Child Rep","10000656","141ChildRep","1410030001",141,{"$f":"_xlfn.XLOOKUP(VALUE(OU[[#This Row],[Master CC]]),FC_Master[Cost Center],FC_Master[rollup FC '#],OU[[#This Row],[Master CC]])","v":1410030001}]
[141,"141CmLgSv Office of Child Rep",10000656,"141ChildRep",null,null,null,null,null,null,null,null,null,null,null,null,null,null,null,"1","2023-10-01","9999-12-31","2023-09-19","PEPPERA","141CmLgSv Office of Child Rep 2","10050176","141ChildRep2","1410030001",141,{"$f":"_xlfn.XLOOKUP(VALUE(OU[[#This Row],[Master CC]]),FC_Master[Cost Center],FC_Master[rollup FC '#],OU[[#This Row],[Master CC]])","v":1410030001}]
[141,"141CmLgSv Office of Child Rep 2",10050176,"141ChildRep2",null,null,null,null,null,null,null,null,null,null,null,null,null,null,null,"1","2023-10-01","9999-12-31","2023-09-19","PEPPERA","141CmLgSv Office of Child Rep 3","10051726","141ChildRep3","1410030001",141,{"$f":"_xlfn.XLOOKUP(VALUE(OU[[#This Row],[Master CC]]),FC_Master[Cost Center],FC_Master[rollup FC '#],OU[[#This Row],[Master CC]])","v":1410030001}]
[141,"141CmLgSv Office of Child Rep 3",10051726,"141ChildRep3",null,null,null,null,null,null,null,null,null,null,null,null,null,null,null,"1","2023-10-01","9999-12-31","2023-10-11","PEPPERA","141CmLgSv Office of Parent Rep","10000657","141PrtRep","1410020001",141,{"$f":"_xlfn.XLOOKUP(VALUE(OU[[#This Row],[Master CC]]),FC_Master[Cost Center],FC_Master[rollup FC '#],OU[[#This Row],[Master CC]])","v":1410020001}]
[141,"141CmLgSv Office of Parent Rep",10000657,"141PrtRep",null,null,null,null,null,null,null,null,null,null,null,null,null,null,null,"1","2022-02-01","9999-12-31","2022-02-09","MILLIGA","142PtS Case Management-AMU","10000503","142CaseMAMU","1420010001",142,{"$f":"_xlfn.XLOOKUP(VALUE(OU[[#This Row],[Master CC]]),FC_Master[Cost Center],FC_Master[rollup FC '#],OU[[#This Row],[Master CC]])","v":1420010001}]
[142,"142PtS Case Management-AMU",10000503,"142CaseMAMU",null,null,null,null,null,null,null,null,null,null,null,null,null,null,null,"1","2022-02-01","9999-12-31","2022-02-09","MILLIGA","142PtS Case Management-EM","10055302","142CaseMEM","1420010001",142,{"$f":"_xlfn.XLOOKUP(VALUE(OU[[#This Row],[Master CC]]),FC_Master[Cost Center],FC_Master[rollup FC '#],OU[[#This Row],[Master CC]])","v":1420010001}]
[142,"142PtS Case Management-EM",10055302,"142CaseMEM",null,null,null,null,null,null,null,null,null,null,null,null,null,null,null,"1","2022-02-01","9999-12-31","2022-02-09","MILLIGA","142PtS Case Management-MH/AMU","10055301","142CaseMMHA","1420010001",142,{"$f":"_xlfn.XLOOKUP(VALUE(OU[[#This Row],[Master CC]]),FC_Master[Cost Center],FC_Master[rollup FC '#],OU[[#This Row],[Master CC]])","v":1420010001}]
[142,"142PtS Case Management-MH/AMU",10055301,"142CaseMMHA",null,null,null,null,null,null,null,null,null,null,null,null,null,null,null,"1","2022-02-01","9999-12-31","2022-02-09","MILLIGA","142PtS Case Management-Super/FV/EM","10000508","142CaseMSvsn","1420010001",142,{"$f":"_xlfn.XLOOKUP(VALUE(OU[[#This Row],[Master CC]]),FC_Master[Cost Center],FC_Master[rollup FC '#],OU[[#This Row],[Master CC]])","v":1420010001}]
[142,"142PtS Case Management-Super/FV/EM",10000508,"142CaseMSvsn",null,null,null,null,null,null,null,null,null,null,null,null,null,null,null,"1","2015-02-01","9999-12-31","2015-02-23","RAMIREV","142PtS Division Director","10000506","142DivDir","1420010001",142,{"$f":"_xlfn.XLOOKUP(VALUE(OU[[#This Row],[Master CC]]),FC_Master[Cost Center],FC_Master[rollup FC '#],OU[[#This Row],[Master CC]])","v":1420010001}]
[142,"142PtS Division Director",10000506,"142DivDir",null,null,null,null,null,null,null,null,null,null,null,null,null,null,null,"1","2020-06-15","9999-12-31","2020-06-11","BROUSSC","142PtS Drug Court","10000784","142DrugCrt","1420150001",142,{"$f":"_xlfn.XLOOKUP(VALUE(OU[[#This Row],[Master CC]]),FC_Master[Cost Center],FC_Master[rollup FC '#],OU[[#This Row],[Master CC]])","v":1420150001}]
[142,"142PtS Drug Court",10000784,"142DrugCrt",null,null,null,null,null,null,null,null,null,null,null,null,null,null,null,"1","2013-11-01","9999-12-31","2014-06-03","BROUSSC","142PtS Drug Court-Case Management","10050726","142DrgCaseM","1420150001",142,{"$f":"_xlfn.XLOOKUP(VALUE(OU[[#This Row],[Master CC]]),FC_Master[Cost Center],FC_Master[rollup FC '#],OU[[#This Row],[Master CC]])","v":1420150001}]
[142,"142PtS Drug Court-Case Management",10050726,"142DrgCaseM",null,null,null,null,null,null,null,null,null,null,null,null,null,null,null,"1","2013-11-01","9999-12-31","2014-06-03","BROUSSC","142PtS Drug Court-Counseling Services","10050727","142DrgCslSv","1420150001",142,{"$f":"_xlfn.XLOOKUP(VALUE(OU[[#This Row],[Master CC]]),FC_Master[Cost Center],FC_Master[rollup FC '#],OU[[#This Row],[Master CC]])","v":1420150001}]
[142,"142PtS Drug Court-Counseling Services",10050727,"142DrgCslSv",null,null,null,null,null,null,null,null,null,null,null,null,null,null,null,"1","2020-09-01","9999-12-31","2020-08-14","CHANGM","142PtS DWI Court","10052452","142DWICourt","1420150001",142,{"$f":"_xlfn.XLOOKUP(VALUE(OU[[#This Row],[Master CC]]),FC_Master[Cost Center],FC_Master[rollup FC '#],OU[[#This Row],[Master CC]])","v":1420150001}]
[142,"142PtS DWI Court",10052452,"142DWICourt",null,null,null,null,null,null,null,null,null,null,null,null,null,null,null,"1","2021-05-17","9999-12-31","2021-06-11","STEINE","142PtS Human Resources Administration","10052551","142PtSHRAd","1420150001",142,{"$f":"_xlfn.XLOOKUP(VALUE(OU[[#This Row],[Master CC]]),FC_Master[Cost Center],FC_Master[rollup FC '#],OU[[#This Row],[Master CC]])","v":1420150001}]
[142,"142PtS Human Resources Administration",10052551,"142PtSHRAd",null,null,null,null,null,null,null,null,null,null,null,null,null,null,null,"1","2022-02-01","9999-12-31","2022-02-09","MILLIGA","142PtS Pretrial Investigations-A/B Shift","10000504","142InvtgnAB","1420160001",142,{"$f":"_xlfn.XLOOKUP(VALUE(OU[[#This Row],[Master CC]]),FC_Master[Cost Center],FC_Master[rollup FC '#],OU[[#This Row],[Master CC]])","v":1420160001}]
[142,"142PtS Pretrial Investigations-A/B Shift",10000504,"142InvtgnAB",null,null,null,null,null,null,null,null,null,null,null,null,null,null,null,"1","2022-02-01","9999-12-31","2022-02-09","MILLIGA","142PtS Pretrial Investigations-B/C Shift","10000505","142InvtgnBC","1420160001",142,{"$f":"_xlfn.XLOOKUP(VALUE(OU[[#This Row],[Master CC]]),FC_Master[Cost Center],FC_Master[rollup FC '#],OU[[#This Row],[Master CC]])","v":1420160001}]
[142,"142PtS Pretrial Investigations-B/C Shift",10000505,"142InvtgnBC",null,null,null,null,null,null,null,null,null,null,null,null,null,null,null,"1","1950-01-01","9999-12-31","2012-05-15","DATACONVERSI","142PtS Support Staff-A Shift/B Shift","10000507","142SpStfA/B","1420080001",142,{"$f":"_xlfn.XLOOKUP(VALUE(OU[[#This Row],[Master CC]]),FC_Master[Cost Center],FC_Master[rollup FC '#],OU[[#This Row],[Master CC]])","v":1420010001}]
[142,"142PtS Support Staff-A Shift/B Shift",10000507,"142SpStfA/B",null,null,null,null,null,null,null,null,null,null,null,null,null,null,null,"1","2023-10-01","9999-12-31","2023-09-19","PEPPERA","144JHD Administration","10000511","144JHDAdm","1440070001",144,{"$f":"_xlfn.XLOOKUP(VALUE(OU[[#This Row],[Master CC]]),FC_Master[Cost Center],FC_Master[rollup FC '#],OU[[#This Row],[Master CC]])","v":1440070001}]
[144,"144JHD Administration",10000511,"144JHDAdm",null,null,null,null,null,null,null,null,null,null,null,null,null,null,null,"1","2023-10-01","9999-12-31","2023-09-19","PEPPERA","144JHD Court Staff","10055676","144JHDCtStf","1440060001",144,{"$f":"_xlfn.XLOOKUP(VALUE(OU[[#This Row],[Master CC]]),FC_Master[Cost Center],FC_Master[rollup FC '#],OU[[#This Row],[Master CC]])","v":1440060001}]
[144,"144JHD Court Staff",{"$f":"VALUE(Z898)","v":10055676},"144JHDCtStf",null,null,null,null,null,null,null,null,null,null,null,null,null,null,null,"1","2023-10-01","9999-12-31","2023-09-19","PEPPERA","144JHD Finance","10050233","144JHDFin","1440060001",144,{"$f":"_xlfn.XLOOKUP(VALUE(OU[[#This Row],[Master CC]]),FC_Master[Cost Center],FC_Master[rollup FC '#],OU[[#This Row],[Master CC]])","v":1440060001}]
[{"$f":"AC899","v":144},{"$f":"Y899","v":"144JHD Finance"},10050233,{"$f":"AA899","v":"144JHDFin"},null,null,null,null,null,null,null,null,null,null,null,null,null,null,null,"1","2023-10-01","9999-12-31","2023-09-19","PEPPERA","144JHD Juvenile Holistic Defense","10000509","144JHD","1440050001",144,{"$f":"_xlfn.XLOOKUP(VALUE(OU[[#This Row],[Master CC]]),FC_Master[Cost Center],FC_Master[rollup FC '#],OU[[#This Row],[Master CC]])","v":1440050001}]
[144,"144JHD Juvenile Holistic Defense",10000509,"144JHD",null,null,null,null,null,null,null,null,null,null,null,null,null,null,null,"1","2023-10-01","9999-12-31","2023-09-19","PEPPERA","144JHD Professional Staff","10000510","144JHDPfStf","1440060001",144,{"$f":"_xlfn.XLOOKUP(VALUE(OU[[#This Row],[Master CC]]),FC_Master[Cost Center],FC_Master[rollup FC '#],OU[[#This Row],[Master CC]])","v":1440060001}]
[144,"144JHD Professional Staff",10000510,"144JHDPfStf",null,null,null,null,null,null,null,null,null,null,null,null,null,null,null,"1","2023-10-01","9999-12-31","2023-09-19","PEPPERA","144JHD Support Staff","10053598","144JHDSpStf","1440070001",144,{"$f":"_xlfn.XLOOKUP(VALUE(OU[[#This Row],[Master CC]]),FC_Master[Cost Center],FC_Master[rollup FC '#],OU[[#This Row],[Master CC]])","v":1440070001}]
[144,"144JHD Support Staff",10053598,"144JHDSpStf",null,null,null,null,null,null,null,null,null,null,null,null,null,null,null,"1","2023-10-01","9999-12-31","2023-09-19","PEPPERA","144JHD Team A","10053595","144JHDTeamA","1440060001",144,{"$f":"_xlfn.XLOOKUP(VALUE(OU[[#This Row],[Master CC]]),FC_Master[Cost Center],FC_Master[rollup FC '#],OU[[#This Row],[Master CC]])","v":1440060001}]
[144,"144JHD Team A",10053595,"144JHDTeamA",null,null,null,null,null,null,null,null,null,null,null,null,null,null,null,"1","2023-10-01","9999-12-31","2023-09-19","PEPPERA","144JHD Team B","10053596","144JHDTeamB","1440060001",144,{"$f":"_xlfn.XLOOKUP(VALUE(OU[[#This Row],[Master CC]]),FC_Master[Cost Center],FC_Master[rollup FC '#],OU[[#This Row],[Master CC]])","v":1440060001}]
[144,"144JHD Team B",10053596,"144JHDTeamB",null,null,null,null,null,null,null,null,null,null,null,null,null,null,null,"1","2023-10-01","9999-12-31","2023-09-19","PEPPERA","144JHD Team C","10053597","144JHDTeamC","1440060001",144,{"$f":"_xlfn.XLOOKUP(VALUE(OU[[#This Row],[Master CC]]),FC_Master[Cost Center],FC_Master[rollup FC '#],OU[[#This Row],[Master CC]])","v":1440060001}]
[144,"144JHD Team C",10053597,"144JHDTeamC",null,null,null,null,null,null,null,null,null,null,null,null,null,null,null,"1","2023-10-01","9999-12-31","2023-09-19","PEPPERA","144JHD Team D","10054052","144JHDTeamD","1440060001",144,{"$f":"_xlfn.XLOOKUP(VALUE(OU[[#This Row],[Master CC]]),FC_Master[Cost Center],FC_Master[rollup FC '#],OU[[#This Row],[Master CC]])","v":1440060001}]
[144,"144JHD Team D",10054052,"144JHDTeamD",null,null,null,null,null,null,null,null,null,null,null,null,null,null,null,"1","2023-08-14","9999-12-31","2023-08-16","PEPPERA","144PD Administrative Division","10056456","144AdmDiv","1440010001",144,{"$f":"_xlfn.XLOOKUP(VALUE(OU[[#This Row],[Master CC]]),FC_Master[Cost Center],FC_Master[rollup FC '#],OU[[#This Row],[Master CC]])","v":1440010001}]
[144,"144PD Administrative Division",10056456,"144AdmDiv",null,null,null,null,null,null,null,null,null,null,null,null,null,null,null,"1","2023-08-14","9999-12-31","2023-08-16","PEPPERA","144PD Holistic Practice Division","10056454","144HpracDiv","1440010001",144,{"$f":"_xlfn.XLOOKUP(VALUE(OU[[#This Row],[Master CC]]),FC_Master[Cost Center],FC_Master[rollup FC '#],OU[[#This Row],[Master CC]])","v":1440010001}]
[144,"144PD Holistic Practice Division",10056454,"144HpracDiv",null,null,null,null,null,null,null,null,null,null,null,null,null,null,null,"1","2023-08-14","9999-12-31","2023-08-16","PEPPERA","144PD Legal Division","10056455","144LgDiv","1440010001",144,{"$f":"_xlfn.XLOOKUP(VALUE(OU[[#This Row],[Master CC]]),FC_Master[Cost Center],FC_Master[rollup FC '#],OU[[#This Row],[Master CC]])","v":1440010001}]
[144,"144PD Legal Division",10056455,"144LgDiv",null,null,null,null,null,null,null,null,null,null,null,null,null,null,null,"1","2023-10-01","9999-12-31","2023-09-19","PEPPERA","144PD Mtl Hlh Hol Defense - Admin","10054576","144MHHDAdm","1440080001",144,{"$f":"_xlfn.XLOOKUP(VALUE(OU[[#This Row],[Master CC]]),FC_Master[Cost Center],FC_Master[rollup FC '#],OU[[#This Row],[Master CC]])","v":1440080001}]
[144,"144PD Mtl Hlh Hol Defense - Admin",10054576,"144MHHDAdm",null,null,null,null,null,null,null,null,null,null,null,null,null,null,null,"1","2023-10-01","9999-12-31","2023-09-19","PEPPERA","144PD Mtl Hlh Hol Defense - Legal Adm","10000658","144MHHDLA","1440080001",144,{"$f":"_xlfn.XLOOKUP(VALUE(OU[[#This Row],[Master CC]]),FC_Master[Cost Center],FC_Master[rollup FC '#],OU[[#This Row],[Master CC]])","v":1440080001}]
[144,"144PD Mtl Hlh Hol Defense - Legal Adm",10000658,"144MHHDLA",null,null,null,null,null,null,null,null,null,null,null,null,null,null,null,"1","2023-10-01","9999-12-31","2023-09-19","PEPPERA","144PD Mtl Hlh Hol Defense - Soc Sv Pgms","10000659","144MHHDSS","1440080001",144,{"$f":"_xlfn.XLOOKUP(VALUE(OU[[#This Row],[Master CC]]),FC_Master[Cost Center],FC_Master[rollup FC '#],OU[[#This Row],[Master CC]])","v":1440080001}]
[144,"144PD Mtl Hlh Hol Defense - Soc Sv Pgms",10000659,"144MHHDSS",null,null,null,null,null,null,null,null,null,null,null,null,null,null,null,"1","2023-08-14","9999-12-31","2023-08-16","PEPPERA","144PD Social Services Division","10056452","144SSDiv","1440010001",144,{"$f":"_xlfn.XLOOKUP(VALUE(OU[[#This Row],[Master CC]]),FC_Master[Cost Center],FC_Master[rollup FC '#],OU[[#This Row],[Master CC]])","v":1440010001}]
[144,"144PD Social Services Division",10056452,"144SSDiv",null,null,null,null,null,null,null,null,null,null,null,null,null,null,null,"1","2023-08-14","9999-12-31","2023-08-16","PEPPERA","144PD Training Division","10056453","144TrngDiv","1440010001",144,{"$f":"_xlfn.XLOOKUP(VALUE(OU[[#This Row],[Master CC]]),FC_Master[Cost Center],FC_Master[rollup FC '#],OU[[#This Row],[Master CC]])","v":1440010001}]
[144,"144PD Training Division",10056453,"144TrngDiv",null,null,null,null,null,null,null,null,null,null,null,null,null,null,null,"1","2023-10-01","9999-12-31","2023-09-19","PEPPERA","144Public Defender's Office","10054001","144PDO","1440010001",144,{"$f":"_xlfn.XLOOKUP(VALUE(OU[[#This Row],[Master CC]]),FC_Master[Cost Center],FC_Master[rollup FC '#],OU[[#This Row],[Master CC]])","v":1440010001}]
[144,"144Public Defender's Office",10054001,"144PDO",null,null,null,null,null,null,null,null,null,null,null,null,null,null,null,"1","2020-10-01","9999-12-31","2020-10-22","VLAHODA","145 Court Services Div Mgr","10051751","145CSvDivMgr","1450660001",145,{"$f":"_xlfn.XLOOKUP(VALUE(OU[[#This Row],[Master CC]]),FC_Master[Cost Center],FC_Master[rollup FC '#],OU[[#This Row],[Master CC]])","v":1450660001}]
[145,"145 Court Services Div Mgr",10051751,"145CSvDivMgr",null,null,null,null,null,null,null,null,null,null,null,null,null,null,null,"1","2020-10-01","9999-12-31","2020-10-22","VLAHODA","145 JvP Accreditation Compliance","10000559","145JvPAcdtCm","1450600001",145,{"$f":"_xlfn.XLOOKUP(VALUE(OU[[#This Row],[Master CC]]),FC_Master[Cost Center],FC_Master[rollup FC '#],OU[[#This Row],[Master CC]])","v":1450600001}]
[145,"145 JvP Accreditation Compliance",10000559,"145JvPAcdtCm",null,null,null,null,null,null,null,null,null,null,null,null,null,null,null,"1","2020-10-01","9999-12-31","2020-10-22","VLAHODA","145JvP Accounting and Budget","10054126","145ActgBdg","1450600001",145,{"$f":"_xlfn.XLOOKUP(VALUE(OU[[#This Row],[Master CC]]),FC_Master[Cost Center],FC_Master[rollup FC '#],OU[[#This Row],[Master CC]])","v":1450600001}]
[145,"145JvP Accounting and Budget",10054126,"145ActgBdg",null,null,null,null,null,null,null,null,null,null,null,null,null,null,null,"1","2022-05-18","9999-12-31","2022-05-23","BROUSSC","145JvP Accreditation and Compliance Dir","10054076","145AcdtCmDir","1450630001",145,{"$f":"_xlfn.XLOOKUP(VALUE(OU[[#This Row],[Master CC]]),FC_Master[Cost Center],FC_Master[rollup FC '#],OU[[#This Row],[Master CC]])","v":1450630001}]
[145,"145JvP Accreditation and Compliance Dir",10054076,"145AcdtCmDir",null,null,null,null,null,null,null,null,null,null,null,null,null,null,null,"1","2022-03-01","9999-12-31","2022-02-25","PFAFFEA","145JvP Administrative Support","10000513","145AdmSp","1450600001",145,{"$f":"_xlfn.XLOOKUP(VALUE(OU[[#This Row],[Master CC]]),FC_Master[Cost Center],FC_Master[rollup FC '#],OU[[#This Row],[Master CC]])","v":1450600001}]
[145,"145JvP Administrative Support",10000513,"145AdmSp",null,null,null,null,null,null,null,null,null,null,null,null,null,null,null,"1","2021-02-01","9999-12-31","2021-02-04","VLAHODA","145JvP Assessment Services","10000560","145Asmt","1450630001",145,{"$f":"_xlfn.XLOOKUP(VALUE(OU[[#This Row],[Master CC]]),FC_Master[Cost Center],FC_Master[rollup FC '#],OU[[#This Row],[Master CC]])","v":1450630001}]
[145,"145JvP Assessment Services",10000560,"145Asmt",null,null,null,null,null,null,null,null,null,null,null,null,null,null,null,"1","2020-10-01","9999-12-31","2020-10-22","VLAHODA","145JvP Assessment Services 1","10000562","145Asmt1","1450630001",145,{"$f":"_xlfn.XLOOKUP(VALUE(OU[[#This Row],[Master CC]]),FC_Master[Cost Center],FC_Master[rollup FC '#],OU[[#This Row],[Master CC]])","v":1450630001}]
[145,"145JvP Assessment Services 1",10000562,"145Asmt1",null,null,null,null,null,null,null,null,null,null,null,null,null,null,null,"1","2020-10-01","9999-12-31","2021-01-22","VLAHODA","145JvP Building Maintenance","10000565","145BdMnt","1450610001",145,{"$f":"_xlfn.XLOOKUP(VALUE(OU[[#This Row],[Master CC]]),FC_Master[Cost Center],FC_Master[rollup FC '#],OU[[#This Row],[Master CC]])","v":1450610001}]
[145,"145JvP Building Maintenance",10000565,"145BdMnt",null,null,null,null,null,null,null,null,null,null,null,null,null,null,null,"1","2020-10-01","9999-12-31","2020-10-22","VLAHODA","145JvP Chief Juvenile Probation Officer","10000512","145JvPChf","1450640001",145,{"$f":"_xlfn.XLOOKUP(VALUE(OU[[#This Row],[Master CC]]),FC_Master[Cost Center],FC_Master[rollup FC '#],OU[[#This Row],[Master CC]])","v":1450640001}]
[145,"145JvP Chief Juvenile Probation Officer",10000512,"145JvPChf",null,null,null,null,null,null,null,null,null,null,null,null,null,null,null,"1","2022-10-05","9999-12-31","2022-10-12","PFAFFEA","145JvP Cmty Care Fam Coordination Unit","10054978","145CCFC","1450700001",145,{"$f":"_xlfn.XLOOKUP(VALUE(OU[[#This Row],[Master CC]]),FC_Master[Cost Center],FC_Master[rollup FC '#],OU[[#This Row],[Master CC]])","v":1450700001}]
[145,"145JvP Cmty Care Fam Coordination Unit",10054978,"145CCFC",null,null,null,null,null,null,null,null,null,null,null,null,null,null,null,"1","2022-10-05","9999-12-31","2022-10-12","PFAFFEA","145JvP Cmty Engagement & Rsrc Dev Unit","10055002","145CmEgRsDv","1450700001",145,{"$f":"_xlfn.XLOOKUP(VALUE(OU[[#This Row],[Master CC]]),FC_Master[Cost Center],FC_Master[rollup FC '#],OU[[#This Row],[Master CC]])","v":1450700001}]
[145,"145JvP Cmty Engagement & Rsrc Dev Unit",10055002,"145CmEgRsDv",null,null,null,null,null,null,null,null,null,null,null,null,null,null,null,"1","2022-03-22","9999-12-31","2023-03-24","VILLARG","145JvP Contracts","10054054","145Cntrc","1450600001",145,{"$f":"_xlfn.XLOOKUP(VALUE(OU[[#This Row],[Master CC]]),FC_Master[Cost Center],FC_Master[rollup FC '#],OU[[#This Row],[Master CC]])","v":1450600001}]
[145,"145JvP Contracts",10054054,"145Cntrc",null,null,null,null,null,null,null,null,null,null,null,null,null,null,null,"1","1950-01-01","9999-12-31","2012-05-15","DATACONVERSI","145JvP Court Legal Management","10000514","145CtLgMgmt","1450170001",145,{"$f":"_xlfn.XLOOKUP(VALUE(OU[[#This Row],[Master CC]]),FC_Master[Cost Center],FC_Master[rollup FC '#],OU[[#This Row],[Master CC]])","v":1450170001}]
[145,"145JvP Court Legal Management",10000514,"145CtLgMgmt",null,null,null,null,null,null,null,null,null,null,null,null,null,null,null,"1","2020-10-01","9999-12-31","2020-10-22","VLAHODA","145JvP Court Reporters","10052726","145CtRptr","1450640001",145,{"$f":"_xlfn.XLOOKUP(VALUE(OU[[#This Row],[Master CC]]),FC_Master[Cost Center],FC_Master[rollup FC '#],OU[[#This Row],[Master CC]])","v":1450640001}]
[145,"145JvP Court Reporters",10052726,"145CtRptr",null,null,null,null,null,null,null,null,null,null,null,null,null,null,null,"1","2020-10-01","9999-12-31","2021-01-26","VLAHODA","145JvP Court Services - Crossover","10000541","145CSCOv","1450660001",145,{"$f":"_xlfn.XLOOKUP(VALUE(OU[[#This Row],[Master CC]]),FC_Master[Cost Center],FC_Master[rollup FC '#],OU[[#This Row],[Master CC]])","v":1450660001}]
[145,"145JvP Court Services - Crossover",10000541,"145CSCOv",null,null,null,null,null,null,null,null,null,null,null,null,null,null,null,"1","1950-01-01","9999-12-31","2012-05-15","DATACONVERSI","145JvP Court Services 1","10000522","145CSv1","1450190001",145,{"$f":"_xlfn.XLOOKUP(VALUE(OU[[#This Row],[Master CC]]),FC_Master[Cost Center],FC_Master[rollup FC '#],OU[[#This Row],[Master CC]])","v":1450190001}]
[145,"145JvP Court Services 1",10000522,"145CSv1",null,null,null,null,null,null,null,null,null,null,null,null,null,null,null,"5","2015-12-16","9999-12-31","2018-03-29","BROUSSC","145JvP Court Services 1","10000522","145CSv1","1450190001",145,{"$f":"_xlfn.XLOOKUP(VALUE(OU[[#This Row],[Master CC]]),FC_Master[Cost Center],FC_Master[rollup FC '#],OU[[#This Row],[Master CC]])","v":1450190001}]
[145,"145JvP Court Services 1",10000522,"145CSv1",null,null,null,null,null,null,null,null,null,null,null,null,null,null,null,"1","1950-01-01","9999-12-31","2012-05-15","DATACONVERSI","145JvP Court Services 1 Intake","10000523","145CSv1Intk","1450220001",145,{"$f":"_xlfn.XLOOKUP(VALUE(OU[[#This Row],[Master CC]]),FC_Master[Cost Center],FC_Master[rollup FC '#],OU[[#This Row],[Master CC]])","v":1450220001}]
[145,"145JvP Court Services 1 Intake",10000523,"145CSv1Intk",null,null,null,null,null,null,null,null,null,null,null,null,null,null,null,"1","2022-03-02","9999-12-31","2022-03-06","PFAFFEA","145JvP Court Services Administration","10000526","145CSvAdm","1450660001",145,{"$f":"_xlfn.XLOOKUP(VALUE(OU[[#This Row],[Master CC]]),FC_Master[Cost Center],FC_Master[rollup FC '#],OU[[#This Row],[Master CC]])","v":1450660001}]
[145,"145JvP Court Services Administration",10000526,"145CSvAdm",null,null,null,null,null,null,null,null,null,null,null,null,null,null,null,"5","2019-09-01","9999-12-31","2019-09-12","PFAFFEA","145JvP Court Services Administration","10000526","145CSvAdm","1450660001",145,{"$f":"_xlfn.XLOOKUP(VALUE(OU[[#This Row],[Master CC]]),FC_Master[Cost Center],FC_Master[rollup FC '#],OU[[#This Row],[Master CC]])","v":1450660001}]
[145,"145JvP Court Services Administration",10000526,"145CSvAdm",null,null,null,null,null,null,null,null,null,null,null,null,null,null,null,"1","2020-10-01","9999-12-31","2021-01-26","VLAHODA","145JvP Court Services Dir","10000521","145CSvDir","1450660001",145,{"$f":"_xlfn.XLOOKUP(VALUE(OU[[#This Row],[Master CC]]),FC_Master[Cost Center],FC_Master[rollup FC '#],OU[[#This Row],[Master CC]])","v":1450660001}]
[145,"145JvP Court Services Dir",10000521,"145CSvDir",null,null,null,null,null,null,null,null,null,null,null,null,null,null,null,"1","2021-10-01","9999-12-31","2021-10-24","VILLARG","145JvP Court Services Dir","10000533","145JvPCsvDir","1450660001",145,{"$f":"_xlfn.XLOOKUP(VALUE(OU[[#This Row],[Master CC]]),FC_Master[Cost Center],FC_Master[rollup FC '#],OU[[#This Row],[Master CC]])","v":1450660001}]
[145,"145JvP Court Services Dir",10000533,"145JvPCsvDir",null,null,null,null,null,null,null,null,null,null,null,null,null,null,null,"1","2020-10-01","9999-12-31","2020-10-22","VLAHODA","145JvP Court Services DPU1","10000525","145CSvDPU","1450660001",145,{"$f":"_xlfn.XLOOKUP(VALUE(OU[[#This Row],[Master CC]]),FC_Master[Cost Center],FC_Master[rollup FC '#],OU[[#This Row],[Master CC]])","v":1450660001}]
[145,"145JvP Court Services DPU1",10000525,"145CSvDPU",null,null,null,null,null,null,null,null,null,null,null,null,null,null,null,"1","2020-10-01","9999-12-31","2020-10-22","VLAHODA","145JvP Court Unit A","10053828","145CtUnitA","1450660001",145,{"$f":"_xlfn.XLOOKUP(VALUE(OU[[#This Row],[Master CC]]),FC_Master[Cost Center],FC_Master[rollup FC '#],OU[[#This Row],[Master CC]])","v":1450660001}]
[145,"145JvP Court Unit A",10053828,"145CtUnitA",null,null,null,null,null,null,null,null,null,null,null,null,null,null,null,"1","2020-10-01","9999-12-31","2021-01-26","VLAHODA","145JvP Court Unit B","10000524","145CtUnitB","1450660001",145,{"$f":"_xlfn.XLOOKUP(VALUE(OU[[#This Row],[Master CC]]),FC_Master[Cost Center],FC_Master[rollup FC '#],OU[[#This Row],[Master CC]])","v":1450660001}]
[145,"145JvP Court Unit B",10000524,"145CtUnitB",null,null,null,null,null,null,null,null,null,null,null,null,null,null,null,"1","2020-10-01","9999-12-31","2020-10-22","VLAHODA","145JvP Custodians","10050232","145Custodian","1450610001",145,{"$f":"_xlfn.XLOOKUP(VALUE(OU[[#This Row],[Master CC]]),FC_Master[Cost Center],FC_Master[rollup FC '#],OU[[#This Row],[Master CC]])","v":1450610001}]
[145,"145JvP Custodians",10050232,"145Custodian",null,null,null,null,null,null,null,null,null,null,null,null,null,null,null,"1","2021-07-01","9999-12-31","2021-06-30","VLAHODA","145JvP Detention Services 1","10000547","145Dtn1","1450670001",145,{"$f":"_xlfn.XLOOKUP(VALUE(OU[[#This Row],[Master CC]]),FC_Master[Cost Center],FC_Master[rollup FC '#],OU[[#This Row],[Master CC]])","v":1450670001}]
[145,"145JvP Detention Services 1",10000547,"145Dtn1",null,null,null,null,null,null,null,null,null,null,null,null,null,null,null,"1","2020-10-01","9999-12-31","2020-10-22","VLAHODA","145JvP Detention Services 1 Shift A","10000548","145Dtn1A","1450670001",145,{"$f":"_xlfn.XLOOKUP(VALUE(OU[[#This Row],[Master CC]]),FC_Master[Cost Center],FC_Master[rollup FC '#],OU[[#This Row],[Master CC]])","v":1450670001}]
[145,"145JvP Detention Services 1 Shift A",10000548,"145Dtn1A",null,null,null,null,null,null,null,null,null,null,null,null,null,null,null,"1","2020-10-01","9999-12-31","2020-10-22","VLAHODA","145JvP Detention Services 1 Shift A 2","10053780","145DtnSvSfA2","1450670001",145,{"$f":"_xlfn.XLOOKUP(VALUE(OU[[#This Row],[Master CC]]),FC_Master[Cost Center],FC_Master[rollup FC '#],OU[[#This Row],[Master CC]])","v":1450670001}]
[145,"145JvP Detention Services 1 Shift A 2",10053780,"145DtnSvSfA2",null,null,null,null,null,null,null,null,null,null,null,null,null,null,null,"1","2020-10-01","9999-12-31","2021-01-26","VLAHODA","145JvP Detention Services 1 Shift B","10000549","145Dtn1B","1450670001",145,{"$f":"_xlfn.XLOOKUP(VALUE(OU[[#This Row],[Master CC]]),FC_Master[Cost Center],FC_Master[rollup FC '#],OU[[#This Row],[Master CC]])","v":1450670001}]
[145,"145JvP Detention Services 1 Shift B",10000549,"145Dtn1B",null,null,null,null,null,null,null,null,null,null,null,null,null,null,null,"1","2020-10-01","9999-12-31","2021-01-26","VLAHODA","145JvP Detention Services 1 Shift C","10000550","145Dtn1C","1450670001",145,{"$f":"_xlfn.XLOOKUP(VALUE(OU[[#This Row],[Master CC]]),FC_Master[Cost Center],FC_Master[rollup FC '#],OU[[#This Row],[Master CC]])","v":1450670001}]
[145,"145JvP Detention Services 1 Shift C",10000550,"145Dtn1C",null,null,null,null,null,null,null,null,null,null,null,null,null,null,null,"1","2020-10-01","9999-12-31","2020-10-22","VLAHODA","145JvP Detention Services 1 Shift C 2","10053781","145DtnSvSfC2","1450670001",145,{"$f":"_xlfn.XLOOKUP(VALUE(OU[[#This Row],[Master CC]]),FC_Master[Cost Center],FC_Master[rollup FC '#],OU[[#This Row],[Master CC]])","v":1450670001}]
[145,"145JvP Detention Services 1 Shift C 2",10053781,"145DtnSvSfC2",null,null,null,null,null,null,null,null,null,null,null,null,null,null,null,"1","2020-10-01","9999-12-31","2020-10-22","VLAHODA","145JvP Detention Services 1 Shift D","10000551","145Dtn1D","1450670001",145,{"$f":"_xlfn.XLOOKUP(VALUE(OU[[#This Row],[Master CC]]),FC_Master[Cost Center],FC_Master[rollup FC '#],OU[[#This Row],[Master CC]])","v":1450670001}]
[145,"145JvP Detention Services 1 Shift D",10000551,"145Dtn1D",null,null,null,null,null,null,null,null,null,null,null,null,null,null,null,"1","2020-10-01","9999-12-31","2020-10-22","VLAHODA","145JvP Detention Services 1 Shift D 2","10053807","145Dtn2D","1450670001",145,{"$f":"_xlfn.XLOOKUP(VALUE(OU[[#This Row],[Master CC]]),FC_Master[Cost Center],FC_Master[rollup FC '#],OU[[#This Row],[Master CC]])","v":1450670001}]
[145,"145JvP Detention Services 1 Shift D 2",10053807,"145Dtn2D",null,null,null,null,null,null,null,null,null,null,null,null,null,null,null,"1","2020-10-01","9999-12-31","2020-10-22","VLAHODA","145JvP Detention Services 1 Shift E","10053808","145Dtn1E","1450670001",145,{"$f":"_xlfn.XLOOKUP(VALUE(OU[[#This Row],[Master CC]]),FC_Master[Cost Center],FC_Master[rollup FC '#],OU[[#This Row],[Master CC]])","v":1450670001}]
[145,"145JvP Detention Services 1 Shift E",10053808,"145Dtn1E",null,null,null,null,null,null,null,null,null,null,null,null,null,null,null,"1","2022-02-24","9999-12-31","2022-02-25","PFAFFEA","145JvP Detention Services Administration","10000552","145DtnAdm","1450670001",145,{"$f":"_xlfn.XLOOKUP(VALUE(OU[[#This Row],[Master CC]]),FC_Master[Cost Center],FC_Master[rollup FC '#],OU[[#This Row],[Master CC]])","v":1450670001}]
[145,"145JvP Detention Services Administration",10000552,"145DtnAdm",null,null,null,null,null,null,null,null,null,null,null,null,null,null,null,"1","2020-10-01","9999-12-31","2020-10-22","VLAHODA","145JvP Detention Services Dir","10000546","145Dtn","1450670001",145,{"$f":"_xlfn.XLOOKUP(VALUE(OU[[#This Row],[Master CC]]),FC_Master[Cost Center],FC_Master[rollup FC '#],OU[[#This Row],[Master CC]])","v":1450670001}]
[145,"145JvP Detention Services Dir",10000546,"145Dtn",null,null,null,null,null,null,null,null,null,null,null,null,null,null,null,"1","2023-07-18","9999-12-31","2023-07-19","HUTCHIT","145JvP Diversity Equity Inclusion","10056426","145DEI","1450600001",145,{"$f":"_xlfn.XLOOKUP(VALUE(OU[[#This Row],[Master CC]]),FC_Master[Cost Center],FC_Master[rollup FC '#],OU[[#This Row],[Master CC]])","v":1450600001}]
[145,"145JvP Diversity Equity Inclusion",10056426,"145DEI",null,null,null,null,null,null,null,null,null,null,null,null,null,null,null,"1","2020-10-01","9999-12-31","2020-10-22","VLAHODA","145JvP Domestic Relations 1","10000576","145DRl1","1450690001",145,{"$f":"_xlfn.XLOOKUP(VALUE(OU[[#This Row],[Master CC]]),FC_Master[Cost Center],FC_Master[rollup FC '#],OU[[#This Row],[Master CC]])","v":1450690001}]
[145,"145JvP Domestic Relations 1",10000576,"145DRl1",null,null,null,null,null,null,null,null,null,null,null,null,null,null,null,"1","1950-01-01","9999-12-31","2012-05-15","DATACONVERSI","145JvP Domestic Relations 1A","10000577","145DRl1A","1450460001",145,{"$f":"_xlfn.XLOOKUP(VALUE(OU[[#This Row],[Master CC]]),FC_Master[Cost Center],FC_Master[rollup FC '#],OU[[#This Row],[Master CC]])","v":1450460001}]
[145,"145JvP Domestic Relations 1A",10000577,"145DRl1A",null,null,null,null,null,null,null,null,null,null,null,null,null,null,null,"1","2020-10-01","9999-12-31","2020-10-22","VLAHODA","145JvP Domestic Relations 2","10000579","145DRl2","1450690001",145,{"$f":"_xlfn.XLOOKUP(VALUE(OU[[#This Row],[Master CC]]),FC_Master[Cost Center],FC_Master[rollup FC '#],OU[[#This Row],[Master CC]])","v":1450690001}]
[145,"145JvP Domestic Relations 2",10000579,"145DRl2",null,null,null,null,null,null,null,null,null,null,null,null,null,null,null,"1","2020-10-01","9999-12-31","2020-10-22","VLAHODA","145JvP Domestic Relations 3","10000580","145DRl3","1450690001",145,{"$f":"_xlfn.XLOOKUP(VALUE(OU[[#This Row],[Master CC]]),FC_Master[Cost Center],FC_Master[rollup FC '#],OU[[#This Row],[Master CC]])","v":1450690001}]
[145,"145JvP Domestic Relations 3",10000580,"145DRl3",null,null,null,null,null,null,null,null,null,null,null,null,null,null,null,"1","2022-04-12","9999-12-31","2022-04-14","PFAFFEA","145JvP Domestic Relations 4","10050401","145DRl4","1450690001",145,{"$f":"_xlfn.XLOOKUP(VALUE(OU[[#This Row],[Master CC]]),FC_Master[Cost Center],FC_Master[rollup FC '#],OU[[#This Row],[Master CC]])","v":1450690001}]
[145,"145JvP Domestic Relations 4",10050401,"145DRl4",null,null,null,null,null,null,null,null,null,null,null,null,null,null,null,"1","2020-10-01","9999-12-31","2020-10-22","VLAHODA","145JvP Domestic Relations Administration","10000578","145DRlAdm","1450690001",145,{"$f":"_xlfn.XLOOKUP(VALUE(OU[[#This Row],[Master CC]]),FC_Master[Cost Center],FC_Master[rollup FC '#],OU[[#This Row],[Master CC]])","v":1450690001}]
[145,"145JvP Domestic Relations Administration",10000578,"145DRlAdm",null,null,null,null,null,null,null,null,null,null,null,null,null,null,null,"1","2020-10-01","9999-12-31","2020-10-22","VLAHODA","145JvP Domestic Relations and Legal Dir","10000575","145DRLDir","1450690001",145,{"$f":"_xlfn.XLOOKUP(VALUE(OU[[#This Row],[Master CC]]),FC_Master[Cost Center],FC_Master[rollup FC '#],OU[[#This Row],[Master CC]])","v":1450690001}]
[145,"145JvP Domestic Relations and Legal Dir",10000575,"145DRLDir",null,null,null,null,null,null,null,null,null,null,null,null,null,null,null,"1","2020-10-01","9999-12-31","2020-10-22","VLAHODA","145JvP Domestic Relations Div Mgr","10053076","145DRIDivMgr","1450690001",145,{"$f":"_xlfn.XLOOKUP(VALUE(OU[[#This Row],[Master CC]]),FC_Master[Cost Center],FC_Master[rollup FC '#],OU[[#This Row],[Master CC]])","v":1450690001}]
[145,"145JvP Domestic Relations Div Mgr",10053076,"145DRIDivMgr",null,null,null,null,null,null,null,null,null,null,null,null,null,null,null,"1","2022-12-13","9999-12-31","2022-12-15","SURKAM","145JvP Executive Support","10055926","145ExcSp","1450600001",145,{"$f":"_xlfn.XLOOKUP(VALUE(OU[[#This Row],[Master CC]]),FC_Master[Cost Center],FC_Master[rollup FC '#],OU[[#This Row],[Master CC]])","v":1450600001}]
[145,"145JvP Executive Support",{"$f":"VALUE(Z962)","v":10055926},"145ExcSp",null,null,null,null,null,null,null,null,null,null,null,null,null,null,null,"1","2022-11-07","9999-12-31","2022-11-08","SURKAM","145JvP Facilities Mgmt Services Mgr","10000564","145FclMgmt","1450610001",145,{"$f":"_xlfn.XLOOKUP(VALUE(OU[[#This Row],[Master CC]]),FC_Master[Cost Center],FC_Master[rollup FC '#],OU[[#This Row],[Master CC]])","v":1450610001}]
[{"$f":"AC963","v":145},{"$f":"Y963","v":"145JvP Facilities Mgmt Services Mgr"},10000564,{"$f":"AA963","v":"145FclMgmt"},null,null,null,null,null,null,null,null,null,null,null,null,null,null,null,"1","2022-04-11","9999-12-31","2022-04-12","CHANGM","145JvP Facilities Support Services","10055426","145FclSpSv","1450610001",145,{"$f":"_xlfn.XLOOKUP(VALUE(OU[[#This Row],[Master CC]]),FC_Master[Cost Center],FC_Master[rollup FC '#],OU[[#This Row],[Master CC]])","v":1450610001}]
[145,"145JvP Facilities Support Services",10055426,"145FclSpSv",null,null,null,null,null,null,null,null,null,null,null,null,null,null,null,"1","2020-10-01","9999-12-31","2021-01-22","VLAHODA","145JvP Family Coordination Sv","10051328","145JvPFCSv","1450630001",145,{"$f":"_xlfn.XLOOKUP(VALUE(OU[[#This Row],[Master CC]]),FC_Master[Cost Center],FC_Master[rollup FC '#],OU[[#This Row],[Master CC]])","v":1450630001}]
[145,"145JvP Family Coordination Sv",10051328,"145JvPFCSv",null,null,null,null,null,null,null,null,null,null,null,null,null,null,null,"1","2022-09-28","9999-12-31","2022-09-29","SURKAM","145JvP Fcl Support Sv Division Director","10055626","145FclSpSvDD","1450610001",145,{"$f":"_xlfn.XLOOKUP(VALUE(OU[[#This Row],[Master CC]]),FC_Master[Cost Center],FC_Master[rollup FC '#],OU[[#This Row],[Master CC]])","v":1450610001}]
[145,"145JvP Fcl Support Sv Division Director",10055626,"145FclSpSvDD",null,null,null,null,null,null,null,null,null,null,null,null,null,null,null,"1","2020-10-01","9999-12-31","2020-10-22","VLAHODA","145JvP Finance 1","10000573","145Fin1","1450600001",145,{"$f":"_xlfn.XLOOKUP(VALUE(OU[[#This Row],[Master CC]]),FC_Master[Cost Center],FC_Master[rollup FC '#],OU[[#This Row],[Master CC]])","v":1450600001}]
[145,"145JvP Finance 1",10000573,"145Fin1",null,null,null,null,null,null,null,null,null,null,null,null,null,null,null,"1","2020-10-01","9999-12-31","2020-10-22","VLAHODA","145JvP Finance 2","10000574","145Fin2","1450600001",145,{"$f":"_xlfn.XLOOKUP(VALUE(OU[[#This Row],[Master CC]]),FC_Master[Cost Center],FC_Master[rollup FC '#],OU[[#This Row],[Master CC]])","v":1450600001}]
[145,"145JvP Finance 2",10000574,"145Fin2",null,null,null,null,null,null,null,null,null,null,null,null,null,null,null,"1","2014-10-01","9999-12-31","2015-01-06","PFAFFEA","145JvP Finance 3","10051301","145Fin3","1450100001",145,{"$f":"_xlfn.XLOOKUP(VALUE(OU[[#This Row],[Master CC]]),FC_Master[Cost Center],FC_Master[rollup FC '#],OU[[#This Row],[Master CC]])","v":1450100001}]
[145,"145JvP Finance 3",10051301,"145Fin3",null,null,null,null,null,null,null,null,null,null,null,null,null,null,null,"1","2020-10-01","9999-12-31","2020-10-22","VLAHODA","145JvP Finance, Research, IT Chf Dp","10000558","145FRIChfDp","1450600001",145,{"$f":"_xlfn.XLOOKUP(VALUE(OU[[#This Row],[Master CC]]),FC_Master[Cost Center],FC_Master[rollup FC '#],OU[[#This Row],[Master CC]])","v":1450600001}]
[145,"145JvP Finance, Research, IT Chf Dp",10000558,"145FRIChfDp",null,null,null,null,null,null,null,null,null,null,null,null,null,null,null,"1","2023-07-18","9999-12-31","2023-07-27","SURKAM","145JvP Food Services","10000563","145Food","1450620001",145,{"$f":"_xlfn.XLOOKUP(VALUE(OU[[#This Row],[Master CC]]),FC_Master[Cost Center],FC_Master[rollup FC '#],OU[[#This Row],[Master CC]])","v":1450620001}]
[145,"145JvP Food Services",10000563,"145Food",null,null,null,null,null,null,null,null,null,null,null,null,null,null,null,"1","2020-10-01","9999-12-31","2020-10-22","VLAHODA","145JvP Food Services 1","10053776","145FoodSv1","1450620001",145,{"$f":"_xlfn.XLOOKUP(VALUE(OU[[#This Row],[Master CC]]),FC_Master[Cost Center],FC_Master[rollup FC '#],OU[[#This Row],[Master CC]])","v":1450620001}]
[145,"145JvP Food Services 1",10053776,"145FoodSv1",null,null,null,null,null,null,null,null,null,null,null,null,null,null,null,"1","2020-10-01","9999-12-31","2021-01-22","VLAHODA","145JvP Functional Family Therapy","10053826","145JvPFFT","1450630001",145,{"$f":"_xlfn.XLOOKUP(VALUE(OU[[#This Row],[Master CC]]),FC_Master[Cost Center],FC_Master[rollup FC '#],OU[[#This Row],[Master CC]])","v":1450630001}]
[145,"145JvP Functional Family Therapy",10053826,"145JvPFFT",null,null,null,null,null,null,null,null,null,null,null,null,null,null,null,"1","2020-10-01","9999-12-31","2021-01-22","VLAHODA","145JvP General Counsel","10050402","145GenCsl","1450600001",145,{"$f":"_xlfn.XLOOKUP(VALUE(OU[[#This Row],[Master CC]]),FC_Master[Cost Center],FC_Master[rollup FC '#],OU[[#This Row],[Master CC]])","v":1450600001}]
[145,"145JvP General Counsel",10050402,"145GenCsl",null,null,null,null,null,null,null,null,null,null,null,null,null,null,null,"1","2020-10-01","9999-12-31","2020-10-22","VLAHODA","145JvP Girls Secure Unit","10053801","145GSU","1450680001",145,{"$f":"_xlfn.XLOOKUP(VALUE(OU[[#This Row],[Master CC]]),FC_Master[Cost Center],FC_Master[rollup FC '#],OU[[#This Row],[Master CC]])","v":1450680001}]
[145,"145JvP Girls Secure Unit",10053801,"145GSU",null,null,null,null,null,null,null,null,null,null,null,null,null,null,null,"1","2023-03-22","9999-12-31","2023-03-24","VILLARG","145JvP Grants","10000572","145Grnt","1450020001",145,{"$f":"_xlfn.XLOOKUP(VALUE(OU[[#This Row],[Master CC]]),FC_Master[Cost Center],FC_Master[rollup FC '#],OU[[#This Row],[Master CC]])","v":1450020001}]
[145,"145JvP Grants",10000572,"145Grnt",null,null,null,null,null,null,null,null,null,null,null,null,null,null,null,"1","2023-04-11","9999-12-31","2023-04-13","BROUSSC","145JvP Grants","10056176","145JvPGrnt","1450600001",145,{"$f":"_xlfn.XLOOKUP(VALUE(OU[[#This Row],[Master CC]]),FC_Master[Cost Center],FC_Master[rollup FC '#],OU[[#This Row],[Master CC]])","v":1450600001}]
[145,"145JvP Grants",10056176,"145JvPGrnt",null,null,null,null,null,null,null,null,null,null,null,null,null,null,null,"1","2022-02-24","9999-12-31","2022-02-25","PFAFFEA","145JvP Health Services Admin","10055351","145HlhSvAdm","1450600001",145,{"$f":"_xlfn.XLOOKUP(VALUE(OU[[#This Row],[Master CC]]),FC_Master[Cost Center],FC_Master[rollup FC '#],OU[[#This Row],[Master CC]])","v":1450600001}]
[145,"145JvP Health Services Admin",10055351,"145HlhSvAdm",null,null,null,null,null,null,null,null,null,null,null,null,null,null,null,"1","2020-10-01","9999-12-31","2020-10-22","VLAHODA","145JvP HR and Staff Development","10000570","145HR","1450600001",145,{"$f":"_xlfn.XLOOKUP(VALUE(OU[[#This Row],[Master CC]]),FC_Master[Cost Center],FC_Master[rollup FC '#],OU[[#This Row],[Master CC]])","v":1450600001}]
[145,"145JvP HR and Staff Development",10000570,"145HR",null,null,null,null,null,null,null,null,null,null,null,null,null,null,null,"1","2022-03-29","9999-12-31","2022-04-01","PFAFFEA","145JvP HR Support","10050230","145HRSupport","1450600001",145,{"$f":"_xlfn.XLOOKUP(VALUE(OU[[#This Row],[Master CC]]),FC_Master[Cost Center],FC_Master[rollup FC '#],OU[[#This Row],[Master CC]])","v":1450600001}]
[145,"145JvP HR Support",10050230,"145HRSupport",null,null,null,null,null,null,null,null,null,null,null,null,null,null,null,"1","2020-10-01","9999-12-31","2020-10-22","VLAHODA","145JvP HR Training","10050231","145HRTrain","1450600001",145,{"$f":"_xlfn.XLOOKUP(VALUE(OU[[#This Row],[Master CC]]),FC_Master[Cost Center],FC_Master[rollup FC '#],OU[[#This Row],[Master CC]])","v":1450600001}]
[145,"145JvP HR Training",10050231,"145HRTrain",null,null,null,null,null,null,null,null,null,null,null,null,null,null,null,"1","2020-10-01","9999-12-31","2020-10-22","VLAHODA","145JvP Human Resources 1","10053726","145JvPHR1","1450600001",145,{"$f":"_xlfn.XLOOKUP(VALUE(OU[[#This Row],[Master CC]]),FC_Master[Cost Center],FC_Master[rollup FC '#],OU[[#This Row],[Master CC]])","v":1450600001}]
[145,"145JvP Human Resources 1",10053726,"145JvPHR1",null,null,null,null,null,null,null,null,null,null,null,null,null,null,null,"1","2020-10-01","9999-12-31","2020-10-22","VLAHODA","145JvP Intake AM","10053778","145IntkAM","1450660001",145,{"$f":"_xlfn.XLOOKUP(VALUE(OU[[#This Row],[Master CC]]),FC_Master[Cost Center],FC_Master[rollup FC '#],OU[[#This Row],[Master CC]])","v":1450660001}]
[145,"145JvP Intake AM",10053778,"145IntkAM",null,null,null,null,null,null,null,null,null,null,null,null,null,null,null,"1","2020-10-01","9999-12-31","2021-01-26","VLAHODA","145JvP Intake Overnight","10053782","145IntkOvn","1450660001",145,{"$f":"_xlfn.XLOOKUP(VALUE(OU[[#This Row],[Master CC]]),FC_Master[Cost Center],FC_Master[rollup FC '#],OU[[#This Row],[Master CC]])","v":1450660001}]
[145,"145JvP Intake Overnight",10053782,"145IntkOvn",null,null,null,null,null,null,null,null,null,null,null,null,null,null,null,"1","2022-11-07","9999-12-31","2022-11-08","SURKAM","145JvP Intake Overnight","10055827","145IntkOvn","1450660001",145,{"$f":"_xlfn.XLOOKUP(VALUE(OU[[#This Row],[Master CC]]),FC_Master[Cost Center],FC_Master[rollup FC '#],OU[[#This Row],[Master CC]])","v":1450660001}]
[145,"145JvP Intake Overnight",10055827,"145IntkOvn",null,null,null,null,null,null,null,null,null,null,null,null,null,null,null,"1","2020-10-01","9999-12-31","2020-10-22","VLAHODA","145JvP Intake PM","10053779","145IntkPM","1450660001",145,{"$f":"_xlfn.XLOOKUP(VALUE(OU[[#This Row],[Master CC]]),FC_Master[Cost Center],FC_Master[rollup FC '#],OU[[#This Row],[Master CC]])","v":1450660001}]
[145,"145JvP Intake PM",10053779,"145IntkPM",null,null,null,null,null,null,null,null,null,null,null,null,null,null,null,"1","2021-02-16","9999-12-31","2021-08-26","VLAHODA","145JvP IT - App Support","10054676","145ITAppSup","1450710001",145,{"$f":"_xlfn.XLOOKUP(VALUE(OU[[#This Row],[Master CC]]),FC_Master[Cost Center],FC_Master[rollup FC '#],OU[[#This Row],[Master CC]])","v":1450710001}]
[145,"145JvP IT - App Support",10054676,"145ITAppSup",null,null,null,null,null,null,null,null,null,null,null,null,null,null,null,"1","2021-08-09","9999-12-31","2021-08-31","VLAHODA","145JvP IT - IT Support","10054678","145ITITSup","1450710001",145,{"$f":"_xlfn.XLOOKUP(VALUE(OU[[#This Row],[Master CC]]),FC_Master[Cost Center],FC_Master[rollup FC '#],OU[[#This Row],[Master CC]])","v":1450710001}]
[145,"145JvP IT - IT Support",10054678,"145ITITSup",null,null,null,null,null,null,null,null,null,null,null,null,null,null,null,"1","2021-02-16","9999-12-31","2021-08-26","VLAHODA","145JvP IT - Tech Support","10054677","145ITTchSup","1450710001",145,{"$f":"_xlfn.XLOOKUP(VALUE(OU[[#This Row],[Master CC]]),FC_Master[Cost Center],FC_Master[rollup FC '#],OU[[#This Row],[Master CC]])","v":1450710001}]
[145,"145JvP IT - Tech Support",10054677,"145ITTchSup",null,null,null,null,null,null,null,null,null,null,null,null,null,null,null,"1","2020-10-01","9999-12-31","2020-10-22","VLAHODA","145JvP IT, Planning and Research","10053426","145JvPITPR","1450600001",145,{"$f":"_xlfn.XLOOKUP(VALUE(OU[[#This Row],[Master CC]]),FC_Master[Cost Center],FC_Master[rollup FC '#],OU[[#This Row],[Master CC]])","v":1450600001}]
[145,"145JvP IT, Planning and Research",10053426,"145JvPITPR",null,null,null,null,null,null,null,null,null,null,null,null,null,null,null,"1","2022-04-19","9999-12-31","2022-04-27","BROUSSC","145JvP JJAEP","10055251","145JJAEP","1450700001",145,{"$f":"_xlfn.XLOOKUP(VALUE(OU[[#This Row],[Master CC]]),FC_Master[Cost Center],FC_Master[rollup FC '#],OU[[#This Row],[Master CC]])","v":1450700001}]
[145,"145JvP JJAEP",10055251,"145JJAEP",null,null,null,null,null,null,null,null,null,null,null,null,null,null,null,"1","1950-01-01","9999-12-31","2012-05-15","DATACONVERSI","145JvP Judicial #1","10000515","145Jud1","1450170001",145,{"$f":"_xlfn.XLOOKUP(VALUE(OU[[#This Row],[Master CC]]),FC_Master[Cost Center],FC_Master[rollup FC '#],OU[[#This Row],[Master CC]])","v":1450170001}]
[145,"145JvP Judicial #1",10000515,"145Jud1",null,null,null,null,null,null,null,null,null,null,null,null,null,null,null,"1","1950-01-01","9999-12-31","2012-05-15","DATACONVERSI","145JvP Judicial #2","10000516","145Jud2","1450170001",145,{"$f":"_xlfn.XLOOKUP(VALUE(OU[[#This Row],[Master CC]]),FC_Master[Cost Center],FC_Master[rollup FC '#],OU[[#This Row],[Master CC]])","v":1450170001}]
[145,"145JvP Judicial #2",10000516,"145Jud2",null,null,null,null,null,null,null,null,null,null,null,null,null,null,null,"1","2020-10-01","9999-12-31","2020-10-22","VLAHODA","145JvP Legal Services 1","10000519","145Lg1","1450640001",145,{"$f":"_xlfn.XLOOKUP(VALUE(OU[[#This Row],[Master CC]]),FC_Master[Cost Center],FC_Master[rollup FC '#],OU[[#This Row],[Master CC]])","v":1450640001}]
[145,"145JvP Legal Services 1",10000519,"145Lg1",null,null,null,null,null,null,null,null,null,null,null,null,null,null,null,"1","1950-01-01","9999-12-31","2012-05-15","DATACONVERSI","145JvP Legal Services 2","10000520","145Lg2","1450180001",145,{"$f":"_xlfn.XLOOKUP(VALUE(OU[[#This Row],[Master CC]]),FC_Master[Cost Center],FC_Master[rollup FC '#],OU[[#This Row],[Master CC]])","v":1450180001}]
[145,"145JvP Legal Services 2",10000520,"145Lg2",null,null,null,null,null,null,null,null,null,null,null,null,null,null,null,"1","2022-03-01","9999-12-31","2022-02-25","PFAFFEA","145JvP Legal Services Dir","10000518","145LgDir","1450640001",145,{"$f":"_xlfn.XLOOKUP(VALUE(OU[[#This Row],[Master CC]]),FC_Master[Cost Center],FC_Master[rollup FC '#],OU[[#This Row],[Master CC]])","v":1450640001}]
[145,"145JvP Legal Services Dir",10000518,"145LgDir",null,null,null,null,null,null,null,null,null,null,null,null,null,null,null,"1","2021-08-16","9999-12-31","2021-08-24","VLAHODA","145JvP Medical 1","10054777","145Med1","1450630001",145,{"$f":"_xlfn.XLOOKUP(VALUE(OU[[#This Row],[Master CC]]),FC_Master[Cost Center],FC_Master[rollup FC '#],OU[[#This Row],[Master CC]])","v":1450630001}]
[145,"145JvP Medical 1",10054777,"145Med1",null,null,null,null,null,null,null,null,null,null,null,null,null,null,null,"1","2020-10-01","9999-12-31","2021-01-22","VLAHODA","145JvP Medical Services","10000566","145Med","1450630001",145,{"$f":"_xlfn.XLOOKUP(VALUE(OU[[#This Row],[Master CC]]),FC_Master[Cost Center],FC_Master[rollup FC '#],OU[[#This Row],[Master CC]])","v":1450630001}]
[145,"145JvP Medical Services",10000566,"145Med",null,null,null,null,null,null,null,null,null,null,null,null,null,null,null,"1","2020-10-01","9999-12-31","2020-10-22","VLAHODA","145JvP Outreach & Tracking","10053777","145Otrh","1450660001",145,{"$f":"_xlfn.XLOOKUP(VALUE(OU[[#This Row],[Master CC]]),FC_Master[Cost Center],FC_Master[rollup FC '#],OU[[#This Row],[Master CC]])","v":1450660001}]
[145,"145JvP Outreach & Tracking",10053777,"145Otrh",null,null,null,null,null,null,null,null,null,null,null,null,null,null,null,"1","2020-10-01","9999-12-31","2020-10-22","VLAHODA","145JvP Placement Coordination","10054101","145PlcCoord","1450630001",145,{"$f":"_xlfn.XLOOKUP(VALUE(OU[[#This Row],[Master CC]]),FC_Master[Cost Center],FC_Master[rollup FC '#],OU[[#This Row],[Master CC]])","v":1450630001}]
[145,"145JvP Placement Coordination",10054101,"145PlcCoord",null,null,null,null,null,null,null,null,null,null,null,null,null,null,null,"1","2020-10-01","9999-12-31","2020-10-22","VLAHODA","145JvP Planning and Research","10000567","145PR","1450600001",145,{"$f":"_xlfn.XLOOKUP(VALUE(OU[[#This Row],[Master CC]]),FC_Master[Cost Center],FC_Master[rollup FC '#],OU[[#This Row],[Master CC]])","v":1450600001}]
[145,"145JvP Planning and Research",10000567,"145PR",null,null,null,null,null,null,null,null,null,null,null,null,null,null,null,"1","2020-10-01","9999-12-31","2020-10-22","VLAHODA","145JvP Planning and Research - IT","10000569","145PRIT","1450710001",145,{"$f":"_xlfn.XLOOKUP(VALUE(OU[[#This Row],[Master CC]]),FC_Master[Cost Center],FC_Master[rollup FC '#],OU[[#This Row],[Master CC]])","v":1450710001}]
[145,"145JvP Planning and Research - IT",10000569,"145PRIT",null,null,null,null,null,null,null,null,null,null,null,null,null,null,null,"2","2021-08-09","9999-12-31","2021-08-31","GILV","145JvP Planning and Research - IT","10000569","145PRIT","1450710001",145,{"$f":"_xlfn.XLOOKUP(VALUE(OU[[#This Row],[Master CC]]),FC_Master[Cost Center],FC_Master[rollup FC '#],OU[[#This Row],[Master CC]])","v":1450710001}]
[145,"145JvP Planning and Research - IT",10000569,"145PRIT",null,null,null,null,null,null,null,null,null,null,null,null,null,null,null,"1","2020-10-01","9999-12-31","2020-10-22","VLAHODA","145JvP Planning and Research - Planning","10000568","145PRPln","1450710001",145,{"$f":"_xlfn.XLOOKUP(VALUE(OU[[#This Row],[Master CC]]),FC_Master[Cost Center],FC_Master[rollup FC '#],OU[[#This Row],[Master CC]])","v":1450710001}]
[145,"145JvP Planning and Research - Planning",10000568,"145PRPln",null,null,null,null,null,null,null,null,null,null,null,null,null,null,null,"1","1950-01-01","9999-12-31","2012-05-15","DATACONVERSI","145JvP PlnRsh,Adm,HR,Hlh,Fcl,Food Dir","10000561","145PAHHFFDir","1450010001",145,{"$f":"_xlfn.XLOOKUP(VALUE(OU[[#This Row],[Master CC]]),FC_Master[Cost Center],FC_Master[rollup FC '#],OU[[#This Row],[Master CC]])","v":1450010001}]
[145,"145JvP PlnRsh,Adm,HR,Hlh,Fcl,Food Dir",10000561,"145PAHHFFDir",null,null,null,null,null,null,null,null,null,null,null,null,null,null,null,"1","2020-10-01","9999-12-31","2020-10-22","VLAHODA","145JvP Post Adjudication Services","10000543","145PostAduSv","1450600001",145,{"$f":"_xlfn.XLOOKUP(VALUE(OU[[#This Row],[Master CC]]),FC_Master[Cost Center],FC_Master[rollup FC '#],OU[[#This Row],[Master CC]])","v":1450600001}]
[145,"145JvP Post Adjudication Services",10000543,"145PostAduSv",null,null,null,null,null,null,null,null,null,null,null,null,null,null,null,"1","1950-01-01","9999-12-31","2012-05-15","DATACONVERSI","145JvP Probation Sv 1 - Ints Svsn","10000535","145Pbn1IS","1450260001",145,{"$f":"_xlfn.XLOOKUP(VALUE(OU[[#This Row],[Master CC]]),FC_Master[Cost Center],FC_Master[rollup FC '#],OU[[#This Row],[Master CC]])","v":1450260001}]
[145,"145JvP Probation Sv 1 - Ints Svsn",10000535,"145Pbn1IS",null,null,null,null,null,null,null,null,null,null,null,null,null,null,null,"1","1950-01-01","9999-12-31","2012-05-15","DATACONVERSI","145JvP Probation Sv 2 - Field Central","10000537","145Pbn2Ctl","1450250001",145,{"$f":"_xlfn.XLOOKUP(VALUE(OU[[#This Row],[Master CC]]),FC_Master[Cost Center],FC_Master[rollup FC '#],OU[[#This Row],[Master CC]])","v":1450250001}]
[145,"145JvP Probation Sv 2 - Field Central",10000537,"145Pbn2Ctl",null,null,null,null,null,null,null,null,null,null,null,null,null,null,null,"1","2020-10-01","9999-12-31","2021-01-26","VLAHODA","145JvP Probation Sv 2 - Field North","10000536","145Pbn2N","1450650001",145,{"$f":"_xlfn.XLOOKUP(VALUE(OU[[#This Row],[Master CC]]),FC_Master[Cost Center],FC_Master[rollup FC '#],OU[[#This Row],[Master CC]])","v":1450650001}]
[145,"145JvP Probation Sv 2 - Field North",10000536,"145Pbn2N",null,null,null,null,null,null,null,null,null,null,null,null,null,null,null,"1","2020-10-01","9999-12-31","2021-01-26","VLAHODA","145JvP Probation Sv 3 - Field South","10000538","145Pbn3S","1450650001",145,{"$f":"_xlfn.XLOOKUP(VALUE(OU[[#This Row],[Master CC]]),FC_Master[Cost Center],FC_Master[rollup FC '#],OU[[#This Row],[Master CC]])","v":1450650001}]
[145,"145JvP Probation Sv 3 - Field South",10000538,"145Pbn3S",null,null,null,null,null,null,null,null,null,null,null,null,null,null,null,"1","2020-10-01","9999-12-31","2021-01-26","VLAHODA","145JvP Probation Sv 4 - SNDP","10000539","145Pbn4SNDP","1450650001",145,{"$f":"_xlfn.XLOOKUP(VALUE(OU[[#This Row],[Master CC]]),FC_Master[Cost Center],FC_Master[rollup FC '#],OU[[#This Row],[Master CC]])","v":1450650001}]
[145,"145JvP Probation Sv 4 - SNDP",10000539,"145Pbn4SNDP",null,null,null,null,null,null,null,null,null,null,null,null,null,null,null,"1","2020-10-01","9999-12-31","2021-01-26","VLAHODA","145JvP Probation Sv 5 - Resources","10000540","145Pbn5Rsrc","1450650001",145,{"$f":"_xlfn.XLOOKUP(VALUE(OU[[#This Row],[Master CC]]),FC_Master[Cost Center],FC_Master[rollup FC '#],OU[[#This Row],[Master CC]])","v":1450650001}]
[145,"145JvP Probation Sv 5 - Resources",10000540,"145Pbn5Rsrc",null,null,null,null,null,null,null,null,null,null,null,null,null,null,null,"1","2016-04-01","9999-12-31","2016-05-24","BROUSSC","145JvP Probation Sv 8 - Sex Offender","10051876","145PbnSvs8SO","1450480001",145,{"$f":"_xlfn.XLOOKUP(VALUE(OU[[#This Row],[Master CC]]),FC_Master[Cost Center],FC_Master[rollup FC '#],OU[[#This Row],[Master CC]])","v":1450480001}]
[145,"145JvP Probation Sv 8 - Sex Offender",10051876,"145PbnSvs8SO",null,null,null,null,null,null,null,null,null,null,null,null,null,null,null,"1","2022-02-24","9999-12-31","2022-02-25","PFAFFEA","145JvP Probation Sv Administration","10000542","145PbnAdm","1450650001",145,{"$f":"_xlfn.XLOOKUP(VALUE(OU[[#This Row],[Master CC]]),FC_Master[Cost Center],FC_Master[rollup FC '#],OU[[#This Row],[Master CC]])","v":1450650001}]
[145,"145JvP Probation Sv Administration",10000542,"145PbnAdm",null,null,null,null,null,null,null,null,null,null,null,null,null,null,null,"1","2021-10-16","9999-12-31","2021-10-25","PFAFFEA","145JvP Probation Sv DD","10054926","145JvPPbSvDD","1450630001",145,{"$f":"_xlfn.XLOOKUP(VALUE(OU[[#This Row],[Master CC]]),FC_Master[Cost Center],FC_Master[rollup FC '#],OU[[#This Row],[Master CC]])","v":1450630001}]
[145,"145JvP Probation Sv DD",10054926,"145JvPPbSvDD",null,null,null,null,null,null,null,null,null,null,null,null,null,null,null,"1","2020-10-01","9999-12-31","2021-01-26","VLAHODA","145JvP Probation Sv Manager","10000534","145PbnMgr","1450650001",145,{"$f":"_xlfn.XLOOKUP(VALUE(OU[[#This Row],[Master CC]]),FC_Master[Cost Center],FC_Master[rollup FC '#],OU[[#This Row],[Master CC]])","v":1450650001}]
[145,"145JvP Probation Sv Manager",10000534,"145PbnMgr",null,null,null,null,null,null,null,null,null,null,null,null,null,null,null,"1","2021-08-16","9999-12-31","2021-08-26","VLAHODA","145JvP Psychology Interns","10054801","145PsyIntern","1450630001",145,{"$f":"_xlfn.XLOOKUP(VALUE(OU[[#This Row],[Master CC]]),FC_Master[Cost Center],FC_Master[rollup FC '#],OU[[#This Row],[Master CC]])","v":1450630001}]
[145,"145JvP Psychology Interns",10054801,"145PsyIntern",null,null,null,null,null,null,null,null,null,null,null,null,null,null,null,"1","2022-09-08","9999-12-31","2022-09-12","SURKAM","145JvP Psychology Interns","10055651","145PsyIntern","1450630001",145,{"$f":"_xlfn.XLOOKUP(VALUE(OU[[#This Row],[Master CC]]),FC_Master[Cost Center],FC_Master[rollup FC '#],OU[[#This Row],[Master CC]])","v":1450630001}]
[145,"145JvP Psychology Interns",10055651,"145PsyIntern",null,null,null,null,null,null,null,null,null,null,null,null,null,null,null,"1","2023-04-26","9999-12-31","2023-05-17","CHANGM","145JvP Records","10056276","145Rcd","1450600001",145,{"$f":"_xlfn.XLOOKUP(VALUE(OU[[#This Row],[Master CC]]),FC_Master[Cost Center],FC_Master[rollup FC '#],OU[[#This Row],[Master CC]])","v":1450600001}]
[145,"145JvP Records",10056276,"145Rcd",null,null,null,null,null,null,null,null,null,null,null,null,null,null,null,"1","2021-10-01","9999-12-31","2021-11-12","PFAFFEA","145JvP Re-entry Court Svcs & Coord Unit","10055001","145ReECSvCU","1450700001",145,{"$f":"_xlfn.XLOOKUP(VALUE(OU[[#This Row],[Master CC]]),FC_Master[Cost Center],FC_Master[rollup FC '#],OU[[#This Row],[Master CC]])","v":1450700001}]
[145,"145JvP Re-entry Court Svcs & Coord Unit",10055001,"145ReECSvCU",null,null,null,null,null,null,null,null,null,null,null,null,null,null,null,"1","2022-11-07","9999-12-31","2022-11-09","SURKAM","145JvP Re-entry Ct Svcs & Fam Coord Unit","10055851","145JvPRCSFCU","1450700001",145,{"$f":"_xlfn.XLOOKUP(VALUE(OU[[#This Row],[Master CC]]),FC_Master[Cost Center],FC_Master[rollup FC '#],OU[[#This Row],[Master CC]])","v":1450700001}]
[145,"145JvP Re-entry Ct Svcs & Fam Coord Unit",10055851,"145JvPRCSFCU",null,null,null,null,null,null,null,null,null,null,null,null,null,null,null,"1","2015-01-01","9999-12-31","2015-01-28","PFAFFEA","145JvP Res Svcs Counselors","10051327","145RsdSvCsl","1450430001",145,{"$f":"_xlfn.XLOOKUP(VALUE(OU[[#This Row],[Master CC]]),FC_Master[Cost Center],FC_Master[rollup FC '#],OU[[#This Row],[Master CC]])","v":1450430001}]
[145,"145JvP Res Svcs Counselors",10051327,"145RsdSvCsl",null,null,null,null,null,null,null,null,null,null,null,null,null,null,null,"5","2015-01-01","9999-12-31","2015-01-28","PFAFFEA","145JvP Res Svcs Counselors","10051326","145RsdSvCsl",null,null,{"$f":"_xlfn.XLOOKUP(VALUE(OU[[#This Row],[Master CC]]),FC_Master[Cost Center],FC_Master[rollup FC '#],OU[[#This Row],[Master CC]])","v":0}]
[0,"145JvP Res Svcs Counselors",10051326,"145RsdSvCsl",null,null,null,null,null,null,null,null,null,null,null,null,null,null,null,"1","2023-06-10","9999-12-31","2023-06-09","CHANGM","145JvP Residential Regional Program","10053805","145RsdPg","1450680001",145,{"$f":"_xlfn.XLOOKUP(VALUE(OU[[#This Row],[Master CC]]),FC_Master[Cost Center],FC_Master[rollup FC '#],OU[[#This Row],[Master CC]])","v":1450680001}]
[145,"145JvP Residential Regional Program",10053805,"145RsdPg",null,null,null,null,null,null,null,null,null,null,null,null,null,null,null,"1","2023-06-10","9999-12-31","2023-06-09","CHANGM","145JvP Residential Services 1","10050428","145Rsd1","1450680001",145,{"$f":"_xlfn.XLOOKUP(VALUE(OU[[#This Row],[Master CC]]),FC_Master[Cost Center],FC_Master[rollup FC '#],OU[[#This Row],[Master CC]])","v":1450680001}]
[145,"145JvP Residential Services 1",10050428,"145Rsd1",null,null,null,null,null,null,null,null,null,null,null,null,null,null,null,"1","2023-10-16","9999-12-31","2023-11-07","HUTCHIT","145JVP Residential Services 10","10056633","145RsdSv10","1450680001",145,{"$f":"_xlfn.XLOOKUP(VALUE(OU[[#This Row],[Master CC]]),FC_Master[Cost Center],FC_Master[rollup FC '#],OU[[#This Row],[Master CC]])","v":1450680001}]
[145,"145JVP Residential Services 10",{"$f":"VALUE(Z1026)","v":10056633},"145RsdSv10",null,null,null,null,null,null,null,null,null,null,null,null,null,null,null,"1","2023-10-16","9999-12-31","2023-11-07","HUTCHIT","145JVP Residential Services 11","10056634","145RsdSv11","1450680001",145,{"$f":"_xlfn.XLOOKUP(VALUE(OU[[#This Row],[Master CC]]),FC_Master[Cost Center],FC_Master[rollup FC '#],OU[[#This Row],[Master CC]])","v":1450680001}]
[{"$f":"AC1027","v":145},{"$f":"Y1027","v":"145JVP Residential Services 11"},10056634,{"$f":"AA1027","v":"145RsdSv11"},null,null,null,null,null,null,null,null,null,null,null,null,null,null,null,"1","2023-11-03","9999-12-31","2023-11-08","SHAHS1","145JvP Residential Services 2","10053806","145Rsd2","1450680001",145,{"$f":"_xlfn.XLOOKUP(VALUE(OU[[#This Row],[Master CC]]),FC_Master[Cost Center],FC_Master[rollup FC '#],OU[[#This Row],[Master CC]])","v":1450680001}]
[145,"145JvP Residential Services 2",10053806,"145Rsd2",null,null,null,null,null,null,null,null,null,null,null,null,null,null,null,"1","2020-10-01","9999-12-31","2021-01-26","VLAHODA","145JvP Residential Services 2B","10053804","145Rsd2B","1450680001",145,{"$f":"_xlfn.XLOOKUP(VALUE(OU[[#This Row],[Master CC]]),FC_Master[Cost Center],FC_Master[rollup FC '#],OU[[#This Row],[Master CC]])","v":1450680001}]
[145,"145JvP Residential Services 2B",10053804,"145Rsd2B",null,null,null,null,null,null,null,null,null,null,null,null,null,null,null,"1","2023-11-03","9999-12-31","2023-11-08","SHAHS1","145JvP Residential Services 3","10053851","145Rsd3","1450680001",145,{"$f":"_xlfn.XLOOKUP(VALUE(OU[[#This Row],[Master CC]]),FC_Master[Cost Center],FC_Master[rollup FC '#],OU[[#This Row],[Master CC]])","v":1450680001}]
[145,"145JvP Residential Services 3",10053851,"145Rsd3",null,null,null,null,null,null,null,null,null,null,null,null,null,null,null,"1","2023-06-10","9999-12-31","2023-06-09","CHANGM","145JvP Residential Services 4","10000556","145Rsd4","1450680001",145,{"$f":"_xlfn.XLOOKUP(VALUE(OU[[#This Row],[Master CC]]),FC_Master[Cost Center],FC_Master[rollup FC '#],OU[[#This Row],[Master CC]])","v":1450680001}]
[145,"145JvP Residential Services 4",10000556,"145Rsd4",null,null,null,null,null,null,null,null,null,null,null,null,null,null,null,"1","2023-06-10","9999-12-31","2023-06-09","CHANGM","145JvP Residential Services 5","10053803","145Rsd5","1450680001",145,{"$f":"_xlfn.XLOOKUP(VALUE(OU[[#This Row],[Master CC]]),FC_Master[Cost Center],FC_Master[rollup FC '#],OU[[#This Row],[Master CC]])","v":1450680001}]
[145,"145JvP Residential Services 5",10053803,"145Rsd5",null,null,null,null,null,null,null,null,null,null,null,null,null,null,null,"1","2023-06-10","9999-12-31","2023-06-09","CHANGM","145JvP Residential Services 6","10053802","145Rsd6","1450680001",145,{"$f":"_xlfn.XLOOKUP(VALUE(OU[[#This Row],[Master CC]]),FC_Master[Cost Center],FC_Master[rollup FC '#],OU[[#This Row],[Master CC]])","v":1450680001}]
[145,"145JvP Residential Services 6",10053802,"145Rsd6",null,null,null,null,null,null,null,null,null,null,null,null,null,null,null,"1","2023-06-10","9999-12-31","2023-06-09","CHANGM","145JvP Residential Services 7","10000554","145Rsd7","1450680001",145,{"$f":"_xlfn.XLOOKUP(VALUE(OU[[#This Row],[Master CC]]),FC_Master[Cost Center],FC_Master[rollup FC '#],OU[[#This Row],[Master CC]])","v":1450680001}]
[145,"145JvP Residential Services 7",10000554,"145Rsd7",null,null,null,null,null,null,null,null,null,null,null,null,null,null,null,"1","2023-10-16","9999-12-31","2023-11-07","HUTCHIT","145JVP Residential Services 8","10056653","145RsdSv8","1450680001",145,{"$f":"_xlfn.XLOOKUP(VALUE(OU[[#This Row],[Master CC]]),FC_Master[Cost Center],FC_Master[rollup FC '#],OU[[#This Row],[Master CC]])","v":1450680001}]
[145,"145JVP Residential Services 8",10056653,"145RsdSv8",null,null,null,null,null,null,null,null,null,null,null,null,null,null,null,"1","2023-10-16","9999-12-31","2023-11-07","HUTCHIT","145JVP Residential Services 9","10056632","145RsdSv9","1450680001",145,{"$f":"_xlfn.XLOOKUP(VALUE(OU[[#This Row],[Master CC]]),FC_Master[Cost Center],FC_Master[rollup FC '#],OU[[#This Row],[Master CC]])","v":1450680001}]
[145,"145JVP Residential Services 9",10056632,"145RsdSv9",null,null,null,null,null,null,null,null,null,null,null,null,null,null,null,"1","2022-02-24","9999-12-31","2022-02-25","PFAFFEA","145JvP Residential Services Adm","10000557","145RsdAdm","1450680001",145,{"$f":"_xlfn.XLOOKUP(VALUE(OU[[#This Row],[Master CC]]),FC_Master[Cost Center],FC_Master[rollup FC '#],OU[[#This Row],[Master CC]])","v":1450680001}]
[145,"145JvP Residential Services Adm",10000557,"145RsdAdm",null,null,null,null,null,null,null,null,null,null,null,null,null,null,null,"1","2020-10-01","9999-12-31","2020-10-22","VLAHODA","145JvP Residential Services Dir","10000553","145Rsd","1450680001",145,{"$f":"_xlfn.XLOOKUP(VALUE(OU[[#This Row],[Master CC]]),FC_Master[Cost Center],FC_Master[rollup FC '#],OU[[#This Row],[Master CC]])","v":1450680001}]
[145,"145JvP Residential Services Dir",10000553,"145Rsd",null,null,null,null,null,null,null,null,null,null,null,null,null,null,null,"1","2021-02-01","9999-12-31","2021-02-12","VLAHODA","145JvP Residential Services Div Mgr","10050201","145RsdMgr","1450680001",145,{"$f":"_xlfn.XLOOKUP(VALUE(OU[[#This Row],[Master CC]]),FC_Master[Cost Center],FC_Master[rollup FC '#],OU[[#This Row],[Master CC]])","v":1450680001}]
[145,"145JvP Residential Services Div Mgr",10050201,"145RsdMgr",null,null,null,null,null,null,null,null,null,null,null,null,null,null,null,"1","2023-11-03","9999-12-31","2023-11-08","SHAHS1","145JVP Residential Sv Administrator","10053951","145RsdAdm","1450680001",145,{"$f":"_xlfn.XLOOKUP(VALUE(OU[[#This Row],[Master CC]]),FC_Master[Cost Center],FC_Master[rollup FC '#],OU[[#This Row],[Master CC]])","v":1450680001}]
[145,"145JVP Residential Sv Administrator",10053951,"145RsdAdm",null,null,null,null,null,null,null,null,null,null,null,null,null,null,null,"1","2023-01-04","9999-12-31","2023-01-10","BROUSSC","145JvP Security Operations","10054201","145SecOps","1450610001",145,{"$f":"_xlfn.XLOOKUP(VALUE(OU[[#This Row],[Master CC]]),FC_Master[Cost Center],FC_Master[rollup FC '#],OU[[#This Row],[Master CC]])","v":1450610001}]
[145,"145JvP Security Operations",10054201,"145SecOps",null,null,null,null,null,null,null,null,null,null,null,null,null,null,null,"1","2020-10-01","9999-12-31","2020-10-22","VLAHODA","145JvP Social Services","10053729","145SS","1450630001",145,{"$f":"_xlfn.XLOOKUP(VALUE(OU[[#This Row],[Master CC]]),FC_Master[Cost Center],FC_Master[rollup FC '#],OU[[#This Row],[Master CC]])","v":1450630001}]
[145,"145JvP Social Services",10053729,"145SS",null,null,null,null,null,null,null,null,null,null,null,null,null,null,null,"1","2021-10-01","9999-12-31","2021-12-09","CHANGM","145JvP Social Services Div Manager","10055077","145SSDM","1450700001",145,{"$f":"_xlfn.XLOOKUP(VALUE(OU[[#This Row],[Master CC]]),FC_Master[Cost Center],FC_Master[rollup FC '#],OU[[#This Row],[Master CC]])","v":1450700001}]
[145,"145JvP Social Services Div Manager",10055077,"145SSDM",null,null,null,null,null,null,null,null,null,null,null,null,null,null,null,"1","2021-10-01","9999-12-31","2021-11-10","PFAFFEA","145JvP Social Services Division","10054977","145SDiv","1450700001",145,{"$f":"_xlfn.XLOOKUP(VALUE(OU[[#This Row],[Master CC]]),FC_Master[Cost Center],FC_Master[rollup FC '#],OU[[#This Row],[Master CC]])","v":1450700001}]
[145,"145JvP Social Services Division",10054977,"145SDiv",null,null,null,null,null,null,null,null,null,null,null,null,null,null,null,"1","2021-10-01","9999-12-31","2021-11-10","PFAFFEA","145JvP Social Services Division Director","10054979","145SSDivDir","1450700001",145,{"$f":"_xlfn.XLOOKUP(VALUE(OU[[#This Row],[Master CC]]),FC_Master[Cost Center],FC_Master[rollup FC '#],OU[[#This Row],[Master CC]])","v":1450700001}]
[145,"145JvP Social Services Division Director",10054979,"145SSDivDir",null,null,null,null,null,null,null,null,null,null,null,null,null,null,null,"1","2022-04-14","9999-12-31","2022-04-18","PFAFFEA","145JvP Special Sv 1 - JJAEP","10000529","145Spl1JJAEP","1450360001",145,{"$f":"_xlfn.XLOOKUP(VALUE(OU[[#This Row],[Master CC]]),FC_Master[Cost Center],FC_Master[rollup FC '#],OU[[#This Row],[Master CC]])","v":1450360001}]
[145,"145JvP Special Sv 1 - JJAEP",10000529,"145Spl1JJAEP",null,null,null,null,null,null,null,null,null,null,null,null,null,null,null,"1","2015-10-01","9999-12-31","2016-09-13","PFAFFEA","145JvP Special Sv 2 - Trtmt & Csl D Enr","10000530","145Spl2TrCsl","1450330001",145,{"$f":"_xlfn.XLOOKUP(VALUE(OU[[#This Row],[Master CC]]),FC_Master[Cost Center],FC_Master[rollup FC '#],OU[[#This Row],[Master CC]])","v":1450330001}]
[145,"145JvP Special Sv 2 - Trtmt & Csl D Enr",10000530,"145Spl2TrCsl",null,null,null,null,null,null,null,null,null,null,null,null,null,null,null,"1","1950-01-01","9999-12-31","2012-05-15","DATACONVERSI","145JvP Special Sv 3 - Drug Court","10000531","145Spl3DrgCt","1450320001",145,{"$f":"_xlfn.XLOOKUP(VALUE(OU[[#This Row],[Master CC]]),FC_Master[Cost Center],FC_Master[rollup FC '#],OU[[#This Row],[Master CC]])","v":1450320001}]
[145,"145JvP Special Sv 3 - Drug Court",10000531,"145Spl3DrgCt",null,null,null,null,null,null,null,null,null,null,null,null,null,null,null,"1","2018-05-01","9999-12-31","2018-05-25","BROUSSC","145JvP Special Sv 4 - CRCG","10000532","145Spl4CRCG","1450310001",145,{"$f":"_xlfn.XLOOKUP(VALUE(OU[[#This Row],[Master CC]]),FC_Master[Cost Center],FC_Master[rollup FC '#],OU[[#This Row],[Master CC]])","v":1450310001}]
[145,"145JvP Special Sv 4 - CRCG",10000532,"145Spl4CRCG",null,null,null,null,null,null,null,null,null,null,null,null,null,null,null,"1","1950-01-01","9999-12-31","2012-05-15","DATACONVERSI","145JvP Special Sv Administration","10000528","145SplAdm","1450300001",145,{"$f":"_xlfn.XLOOKUP(VALUE(OU[[#This Row],[Master CC]]),FC_Master[Cost Center],FC_Master[rollup FC '#],OU[[#This Row],[Master CC]])","v":1450300001}]
[145,"145JvP Special Sv Administration",10000528,"145SplAdm",null,null,null,null,null,null,null,null,null,null,null,null,null,null,null,"1","2020-10-01","9999-12-31","2020-10-22","VLAHODA","145JvP Spl, Ct, Pbn Sv Chf Dp","10000517","145SCP","1450600001",145,{"$f":"_xlfn.XLOOKUP(VALUE(OU[[#This Row],[Master CC]]),FC_Master[Cost Center],FC_Master[rollup FC '#],OU[[#This Row],[Master CC]])","v":1450600001}]
[145,"145JvP Spl, Ct, Pbn Sv Chf Dp",10000517,"145SCP",null,null,null,null,null,null,null,null,null,null,null,null,null,null,null,"1","2020-10-01","9999-12-31","2020-10-22","VLAHODA","145JvP Treatment and Counseling 1A","10000545","145TrCsl1A","1450630001",145,{"$f":"_xlfn.XLOOKUP(VALUE(OU[[#This Row],[Master CC]]),FC_Master[Cost Center],FC_Master[rollup FC '#],OU[[#This Row],[Master CC]])","v":1450630001}]
[145,"145JvP Treatment and Counseling 1A",10000545,"145TrCsl1A",null,null,null,null,null,null,null,null,null,null,null,null,null,null,null,"1","2020-10-01","9999-12-31","2020-10-22","VLAHODA","145JvP Treatment Services","10053827","145TrtmtSv","1450630001",145,{"$f":"_xlfn.XLOOKUP(VALUE(OU[[#This Row],[Master CC]]),FC_Master[Cost Center],FC_Master[rollup FC '#],OU[[#This Row],[Master CC]])","v":1450630001}]
[145,"145JvP Treatment Services",10053827,"145TrtmtSv",null,null,null,null,null,null,null,null,null,null,null,null,null,null,null,"1","2020-10-01","9999-12-31","2021-01-22","VLAHODA","145JvP Trtmt and Csl & Health Services","10000544","145TrCslHlh","1450630001",145,{"$f":"_xlfn.XLOOKUP(VALUE(OU[[#This Row],[Master CC]]),FC_Master[Cost Center],FC_Master[rollup FC '#],OU[[#This Row],[Master CC]])","v":1450630001}]
[145,"145JvP Trtmt and Csl & Health Services",10000544,"145TrCslHlh",null,null,null,null,null,null,null,null,null,null,null,null,null,null,null,"1","1950-01-01","9999-12-31","2012-05-15","DATACONVERSI","145JvP Unassigned","10000725","145Unasg","1450370001",145,{"$f":"_xlfn.XLOOKUP(VALUE(OU[[#This Row],[Master CC]]),FC_Master[Cost Center],FC_Master[rollup FC '#],OU[[#This Row],[Master CC]])","v":1450370001}]
[145,"145JvP Unassigned",10000725,"145Unasg",null,null,null,null,null,null,null,null,null,null,null,null,null,null,null,"1","2021-02-01","9999-12-31","2021-02-04","VLAHODA","145JvP Visiting Judges","10051284","145VstgJg","1450640001",145,{"$f":"_xlfn.XLOOKUP(VALUE(OU[[#This Row],[Master CC]]),FC_Master[Cost Center],FC_Master[rollup FC '#],OU[[#This Row],[Master CC]])","v":1450640001}]
[145,"145JvP Visiting Judges",10051284,"145VstgJg",null,null,null,null,null,null,null,null,null,null,null,null,null,null,null,"1","2020-10-01","9999-12-31","2020-10-22","VLAHODA","145JvP Youth Enrichment Sv","10050476","145YthEnr","1450630001",145,{"$f":"_xlfn.XLOOKUP(VALUE(OU[[#This Row],[Master CC]]),FC_Master[Cost Center],FC_Master[rollup FC '#],OU[[#This Row],[Master CC]])","v":1450630001}]
[145,"145JvP Youth Enrichment Sv",10050476,"145YthEnr",null,null,null,null,null,null,null,null,null,null,null,null,null,null,null,"1","2020-11-02","9999-12-31","2020-11-17","VLAHODA","145JvP Youth Enrichment Sv 2","10054426","145YthEnr2","1450630001",145,{"$f":"_xlfn.XLOOKUP(VALUE(OU[[#This Row],[Master CC]]),FC_Master[Cost Center],FC_Master[rollup FC '#],OU[[#This Row],[Master CC]])","v":1450630001}]
[145,"145JvP Youth Enrichment Sv 2",10054426,"145YthEnr2",null,null,null,null,null,null,null,null,null,null,null,null,null,null,null,"1","1950-01-01","9999-12-31","2014-03-06","FF_ROSSA","147ES","10050003","147ES","1470010001",147,{"$f":"_xlfn.XLOOKUP(VALUE(OU[[#This Row],[Master CC]]),FC_Master[Cost Center],FC_Master[rollup FC '#],OU[[#This Row],[Master CC]])","v":1470010001}]
[147,"147ES",10050003,"147ES",null,null,null,null,null,null,null,null,null,null,null,null,null,null,null,"1","1950-01-01","9999-12-31","2017-12-04","BROUSSC","147ES Administrative Services","10000583","147Admin","1470030001",147,{"$f":"_xlfn.XLOOKUP(VALUE(OU[[#This Row],[Master CC]]),FC_Master[Cost Center],FC_Master[rollup FC '#],OU[[#This Row],[Master CC]])","v":1470030001}]
[147,"147ES Administrative Services",10000583,"147Admin",null,null,null,null,null,null,null,null,null,null,null,null,null,null,null,"1","2022-04-20","9999-12-31","2022-04-26","DANIELD4","147ES Emergency Sv Executive Office","10055451","147ESExcOfc","1470030001",147,{"$f":"_xlfn.XLOOKUP(VALUE(OU[[#This Row],[Master CC]]),FC_Master[Cost Center],FC_Master[rollup FC '#],OU[[#This Row],[Master CC]])","v":1470030001}]
[147,"147ES Emergency Sv Executive Office",10055451,"147ESExcOfc",null,null,null,null,null,null,null,null,null,null,null,null,null,null,null,"1","2022-10-03","9999-12-31","2022-11-04","BROUSSC","147ES Finance","10055801","147Fin","1470040001",147,{"$f":"_xlfn.XLOOKUP(VALUE(OU[[#This Row],[Master CC]]),FC_Master[Cost Center],FC_Master[rollup FC '#],OU[[#This Row],[Master CC]])","v":1470040001}]
[147,"147ES Finance",10055801,"147Fin",null,null,null,null,null,null,null,null,null,null,null,null,null,null,null,"1","2023-11-06","9999-12-31","2023-11-13","SHAHS1","147ES Financial Services","10056701","147FinSv","1470030001",147,{"$f":"_xlfn.XLOOKUP(VALUE(OU[[#This Row],[Master CC]]),FC_Master[Cost Center],FC_Master[rollup FC '#],OU[[#This Row],[Master CC]])","v":1470030001}]
[147,"147ES Financial Services",10056701,"147FinSv",null,null,null,null,null,null,null,null,null,null,null,null,null,null,null,"1","1950-01-01","9999-12-31","2012-05-15","DATACONVERSI","147ES Fire Marshal","10000585","147FireMrsl","1470020001",147,{"$f":"_xlfn.XLOOKUP(VALUE(OU[[#This Row],[Master CC]]),FC_Master[Cost Center],FC_Master[rollup FC '#],OU[[#This Row],[Master CC]])","v":1470020001}]
[147,"147ES Fire Marshal",10000585,"147FireMrsl",null,null,null,null,null,null,null,null,null,null,null,null,null,null,null,"1","1950-01-01","9999-12-31","2012-05-15","DATACONVERSI","147ES Office of Emergency Management","10000582","147EmrgMgmt","1470040001",147,{"$f":"_xlfn.XLOOKUP(VALUE(OU[[#This Row],[Master CC]]),FC_Master[Cost Center],FC_Master[rollup FC '#],OU[[#This Row],[Master CC]])","v":1470040001}]
[147,"147ES Office of Emergency Management",10000582,"147EmrgMgmt",null,null,null,null,null,null,null,null,null,null,null,null,null,null,null,"1","2022-10-03","9999-12-31","2022-11-04","BROUSSC","147ES Operations","10055802","147Ops","1470040001",147,{"$f":"_xlfn.XLOOKUP(VALUE(OU[[#This Row],[Master CC]]),FC_Master[Cost Center],FC_Master[rollup FC '#],OU[[#This Row],[Master CC]])","v":1470040001}]
[147,"147ES Operations",10055802,"147Ops",null,null,null,null,null,null,null,null,null,null,null,null,null,null,null,"1","2022-10-03","9999-12-31","2022-11-10","DANIELD4","147ES Special Projects Unit Finance","10055803","147SPFin","1470040001",147,{"$f":"_xlfn.XLOOKUP(VALUE(OU[[#This Row],[Master CC]]),FC_Master[Cost Center],FC_Master[rollup FC '#],OU[[#This Row],[Master CC]])","v":1470040001}]
[147,"147ES Special Projects Unit Finance",10055803,"147SPFin",null,null,null,null,null,null,null,null,null,null,null,null,null,null,null,"1","2022-10-03","9999-12-31","2022-11-10","DANIELD4","147ES Special Projects Unit Operations","10055804","147SPOps","1470040001",147,{"$f":"_xlfn.XLOOKUP(VALUE(OU[[#This Row],[Master CC]]),FC_Master[Cost Center],FC_Master[rollup FC '#],OU[[#This Row],[Master CC]])","v":1470040001}]
[147,"147ES Special Projects Unit Operations",10055804,"147SPOps",null,null,null,null,null,null,null,null,null,null,null,null,null,null,null,"1","2022-04-20","9999-12-31","2022-04-27","BROUSSC","147ES Tech and Comm","10000584","147TchComm","1470010001",147,{"$f":"_xlfn.XLOOKUP(VALUE(OU[[#This Row],[Master CC]]),FC_Master[Cost Center],FC_Master[rollup FC '#],OU[[#This Row],[Master CC]])","v":1470010001}]
[147,"147ES Tech and Comm",10000584,"147TchComm",null,null,null,null,null,null,null,null,null,null,null,null,null,null,null,"1","2023-09-05","9999-12-31","2023-09-07","PFAFFEA","149 TNR Park Land Mgmt","10052627","149PkLnMgmt","1490220001",149,{"$f":"_xlfn.XLOOKUP(VALUE(OU[[#This Row],[Master CC]]),FC_Master[Cost Center],FC_Master[rollup FC '#],OU[[#This Row],[Master CC]])","v":1490220001}]
[149,"149 TNR Park Land Mgmt",10052627,"149PkLnMgmt",null,null,null,null,null,null,null,null,null,null,null,null,null,null,null,"1","2024-01-03","9999-12-31","2024-01-04","SHAHS1","149TNR - Financial Services - CIP","10056776","149FinSvCIP","1490170145",149,{"$f":"_xlfn.XLOOKUP(VALUE(OU[[#This Row],[Master CC]]),FC_Master[Cost Center],FC_Master[rollup FC '#],OU[[#This Row],[Master CC]])","v":1490170145}]
[149,"149TNR - Financial Services - CIP",10056776,"149FinSvCIP",null,null,null,null,null,null,null,null,null,null,null,null,null,null,null,"1","1950-01-01","9999-12-31","2012-05-15","DATACONVERSI","149TNR Adm Svcs - Adm","10000590","149Adm","1490010145",149,{"$f":"_xlfn.XLOOKUP(VALUE(OU[[#This Row],[Master CC]]),FC_Master[Cost Center],FC_Master[rollup FC '#],OU[[#This Row],[Master CC]])","v":1490010145}]
[149,"149TNR Adm Svcs - Adm",10000590,"149Adm",null,null,null,null,null,null,null,null,null,null,null,null,null,null,null,"1","1950-01-01","9999-12-31","2012-05-15","DATACONVERSI","149TNR Adm Svcs - HR","10000589","149HR","1490010145",149,{"$f":"_xlfn.XLOOKUP(VALUE(OU[[#This Row],[Master CC]]),FC_Master[Cost Center],FC_Master[rollup FC '#],OU[[#This Row],[Master CC]])","v":1490010145}]
[149,"149TNR Adm Svcs - HR",10000589,"149HR",null,null,null,null,null,null,null,null,null,null,null,null,null,null,null,"1","1950-01-01","9999-12-31","2012-05-15","DATACONVERSI","149TNR Adm Svcs - Records","10000591","149Records","1490010001",149,{"$f":"_xlfn.XLOOKUP(VALUE(OU[[#This Row],[Master CC]]),FC_Master[Cost Center],FC_Master[rollup FC '#],OU[[#This Row],[Master CC]])","v":1490010001}]
[149,"149TNR Adm Svcs - Records",10000591,"149Records",null,null,null,null,null,null,null,null,null,null,null,null,null,null,null,"1","1950-01-01","9999-12-31","2012-05-15","DATACONVERSI","149TNR Adm Svcs - Safety","10000592","149Sft","1490010145",149,{"$f":"_xlfn.XLOOKUP(VALUE(OU[[#This Row],[Master CC]]),FC_Master[Cost Center],FC_Master[rollup FC '#],OU[[#This Row],[Master CC]])","v":1490010145}]
[149,"149TNR Adm Svcs - Safety",10000592,"149Sft",null,null,null,null,null,null,null,null,null,null,null,null,null,null,null,"1","1950-01-01","9999-12-31","2012-05-15","DATACONVERSI","149TNR Administrative Services","10000588","149AdmSv","1490010145",149,{"$f":"_xlfn.XLOOKUP(VALUE(OU[[#This Row],[Master CC]]),FC_Master[Cost Center],FC_Master[rollup FC '#],OU[[#This Row],[Master CC]])","v":1490010145}]
[149,"149TNR Administrative Services",10000588,"149AdmSv",null,null,null,null,null,null,null,null,null,null,null,null,null,null,null,"1","1950-01-01","9999-12-31","2012-05-24","ROSSA","149TNR County Executive","10000586","149TNRCE","1490010145",149,{"$f":"_xlfn.XLOOKUP(VALUE(OU[[#This Row],[Master CC]]),FC_Master[Cost Center],FC_Master[rollup FC '#],OU[[#This Row],[Master CC]])","v":1490010145}]
[149,"149TNR County Executive",10000586,"149TNRCE",null,null,null,null,null,null,null,null,null,null,null,null,null,null,null,"1","2012-10-01","9999-12-31","2012-12-13","DORVALR","149TNR Dev Svcs Long Range Planning","10000603","149DSLRP","1490010001",149,{"$f":"_xlfn.XLOOKUP(VALUE(OU[[#This Row],[Master CC]]),FC_Master[Cost Center],FC_Master[rollup FC '#],OU[[#This Row],[Master CC]])","v":1490010001}]
[149,"149TNR Dev Svcs Long Range Planning",10000603,"149DSLRP",null,null,null,null,null,null,null,null,null,null,null,null,null,null,null,"1","1950-01-01","9999-12-31","2012-05-15","DATACONVERSI","149TNR Dev Sv-Enforcement/Inspection","10000607","149DevEnfIsp","1490130001",149,{"$f":"_xlfn.XLOOKUP(VALUE(OU[[#This Row],[Master CC]]),FC_Master[Cost Center],FC_Master[rollup FC '#],OU[[#This Row],[Master CC]])","v":1490130001}]
[149,"149TNR Dev Sv-Enforcement/Inspection",10000607,"149DevEnfIsp",null,null,null,null,null,null,null,null,null,null,null,null,null,null,null,"1","2018-04-30","9999-12-31","2018-05-30","PFAFFEA","149TNR Dev Sv-Floodplain Mgt","10052951","149DevSvFpMg","1490130001",149,{"$f":"_xlfn.XLOOKUP(VALUE(OU[[#This Row],[Master CC]]),FC_Master[Cost Center],FC_Master[rollup FC '#],OU[[#This Row],[Master CC]])","v":1490130001}]
[149,"149TNR Dev Sv-Floodplain Mgt",10052951,"149DevSvFpMg",null,null,null,null,null,null,null,null,null,null,null,null,null,null,null,"1","1950-01-01","9999-12-31","2012-05-15","DATACONVERSI","149TNR Dev Sv-On-site Wastewater","10000608","149DevOSS","1490160001",149,{"$f":"_xlfn.XLOOKUP(VALUE(OU[[#This Row],[Master CC]]),FC_Master[Cost Center],FC_Master[rollup FC '#],OU[[#This Row],[Master CC]])","v":1490160001}]
[149,"149TNR Dev Sv-On-site Wastewater",10000608,"149DevOSS",null,null,null,null,null,null,null,null,null,null,null,null,null,null,null,"1","2018-06-01","9999-12-31","2018-06-14","BROUSSC","149TNR Development Sv-Permit Intake","10000609","149DevSvPrmt","1490150001",149,{"$f":"_xlfn.XLOOKUP(VALUE(OU[[#This Row],[Master CC]]),FC_Master[Cost Center],FC_Master[rollup FC '#],OU[[#This Row],[Master CC]])","v":1490150001}]
[149,"149TNR Development Sv-Permit Intake",10000609,"149DevSvPrmt",null,null,null,null,null,null,null,null,null,null,null,null,null,null,null,"1","1950-01-01","9999-12-31","2012-05-15","DATACONVERSI","149TNR Development Sv-Permits","10000606","149DevSvTBD","1490130001",149,{"$f":"_xlfn.XLOOKUP(VALUE(OU[[#This Row],[Master CC]]),FC_Master[Cost Center],FC_Master[rollup FC '#],OU[[#This Row],[Master CC]])","v":1490130001}]
[149,"149TNR Development Sv-Permits",10000606,"149DevSvTBD",null,null,null,null,null,null,null,null,null,null,null,null,null,null,null,"1","1950-01-01","9999-12-31","2012-05-15","DATACONVERSI","149TNR Development Sv-Plan Review","10000605","149DevPlnRvw","1490130001",149,{"$f":"_xlfn.XLOOKUP(VALUE(OU[[#This Row],[Master CC]]),FC_Master[Cost Center],FC_Master[rollup FC '#],OU[[#This Row],[Master CC]])","v":1490130001}]
[149,"149TNR Development Sv-Plan Review",10000605,"149DevPlnRvw",null,null,null,null,null,null,null,null,null,null,null,null,null,null,null,"1","1950-01-01","9999-12-31","2012-05-15","DATACONVERSI","149TNR Development Sv-Review","10000604","149DevSvRvw","1490130001",149,{"$f":"_xlfn.XLOOKUP(VALUE(OU[[#This Row],[Master CC]]),FC_Master[Cost Center],FC_Master[rollup FC '#],OU[[#This Row],[Master CC]])","v":1490130001}]
[149,"149TNR Development Sv-Review",10000604,"149DevSvRvw",null,null,null,null,null,null,null,null,null,null,null,null,null,null,null,"1","1950-01-01","9999-12-31","2012-05-15","DATACONVERSI","149TNR Environmental Quality","10000613","149EQ","1490110001",149,{"$f":"_xlfn.XLOOKUP(VALUE(OU[[#This Row],[Master CC]]),FC_Master[Cost Center],FC_Master[rollup FC '#],OU[[#This Row],[Master CC]])","v":1490110001}]
[149,"149TNR Environmental Quality",10000613,"149EQ",null,null,null,null,null,null,null,null,null,null,null,null,null,null,null,"1","1950-01-01","9999-12-31","2012-05-15","DATACONVERSI","149TNR Environmental Quality - EMC","10000614","149EQEMC","1490110001",149,{"$f":"_xlfn.XLOOKUP(VALUE(OU[[#This Row],[Master CC]]),FC_Master[Cost Center],FC_Master[rollup FC '#],OU[[#This Row],[Master CC]])","v":1490110001}]
[149,"149TNR Environmental Quality - EMC",10000614,"149EQEMC",null,null,null,null,null,null,null,null,null,null,null,null,null,null,null,"1","2022-05-03","9999-12-31","2022-05-06","BROUSSC","149TNR Environmental Quality – EPM","10055476","149EQEPM","1490110001",149,{"$f":"_xlfn.XLOOKUP(VALUE(OU[[#This Row],[Master CC]]),FC_Master[Cost Center],FC_Master[rollup FC '#],OU[[#This Row],[Master CC]])","v":1490110001}]
[149,"149TNR Environmental Quality – EPM",10055476,"149EQEPM",null,null,null,null,null,null,null,null,null,null,null,null,null,null,null,"1","2015-11-23","9999-12-31","2015-11-24","HENDERL","149TNR Environmental Quality - Grants","10000616","149EQGrnt","1490110001",149,{"$f":"_xlfn.XLOOKUP(VALUE(OU[[#This Row],[Master CC]]),FC_Master[Cost Center],FC_Master[rollup FC '#],OU[[#This Row],[Master CC]])","v":1490110001}]
[149,"149TNR Environmental Quality - Grants",10000616,"149EQGrnt",null,null,null,null,null,null,null,null,null,null,null,null,null,null,null,"1","2023-02-10","9999-12-31","2023-02-16","PFAFFEA","149TNR Environmental Quality - SUB","10056051","149EQSUB","1490150001",149,{"$f":"_xlfn.XLOOKUP(VALUE(OU[[#This Row],[Master CC]]),FC_Master[Cost Center],FC_Master[rollup FC '#],OU[[#This Row],[Master CC]])","v":1490150001}]
[149,"149TNR Environmental Quality - SUB",{"$f":"VALUE(Z1090)","v":10056051},"149EQSUB",null,null,null,null,null,null,null,null,null,null,null,null,null,null,null,"1","1950-01-01","9999-12-31","2012-05-15","DATACONVERSI","149TNR Environmental Quality - SWM","10000615","149EQSWM","1490150001",149,{"$f":"_xlfn.XLOOKUP(VALUE(OU[[#This Row],[Master CC]]),FC_Master[Cost Center],FC_Master[rollup FC '#],OU[[#This Row],[Master CC]])","v":1490150001}]
[{"$f":"AC1091","v":149},{"$f":"Y1091","v":"149TNR Environmental Quality - SWM"},10000615,{"$f":"AA1091","v":"149EQSWM"},null,null,null,null,null,null,null,null,null,null,null,null,null,null,null,"1","2019-02-12","9999-12-31","2019-11-26","VLAHODA","149TNR Environmental Quality -Active-Con","10053501","149EQAtivCon","1490150001",149,{"$f":"_xlfn.XLOOKUP(VALUE(OU[[#This Row],[Master CC]]),FC_Master[Cost Center],FC_Master[rollup FC '#],OU[[#This Row],[Master CC]])","v":1490150001}]
[149,"149TNR Environmental Quality -Active-Con",10053501,"149EQAtivCon",null,null,null,null,null,null,null,null,null,null,null,null,null,null,null,"1","2018-07-10","9999-12-31","2018-07-24","BROUSSC","149TNR Environmental Quality-Post-Con","10053026","149EQPostCon","1490150001",149,{"$f":"_xlfn.XLOOKUP(VALUE(OU[[#This Row],[Master CC]]),FC_Master[Cost Center],FC_Master[rollup FC '#],OU[[#This Row],[Master CC]])","v":1490150001}]
[149,"149TNR Environmental Quality-Post-Con",10053026,"149EQPostCon",null,null,null,null,null,null,null,null,null,null,null,null,null,null,null,"1","1950-01-01","9999-12-31","2012-05-15","DATACONVERSI","149TNR Financial Services","10000594","149FinSv","1490010001",149,{"$f":"_xlfn.XLOOKUP(VALUE(OU[[#This Row],[Master CC]]),FC_Master[Cost Center],FC_Master[rollup FC '#],OU[[#This Row],[Master CC]])","v":1490010001}]
[149,"149TNR Financial Services",10000594,"149FinSv",null,null,null,null,null,null,null,null,null,null,null,null,null,null,null,"1","2015-02-01","9999-12-31","2015-03-02","BROUSSC","149TNR Financial Services - Operating","10000595","149FinSvOpr","1490010001",149,{"$f":"_xlfn.XLOOKUP(VALUE(OU[[#This Row],[Master CC]]),FC_Master[Cost Center],FC_Master[rollup FC '#],OU[[#This Row],[Master CC]])","v":1490010001}]
[149,"149TNR Financial Services - Operating",10000595,"149FinSvOpr",null,null,null,null,null,null,null,null,null,null,null,null,null,null,null,"1","2013-10-01","9999-12-31","2014-08-26","BROUSSC","149TNR Fleet Sv","10000650","149FltSv","1490350001",149,{"$f":"_xlfn.XLOOKUP(VALUE(OU[[#This Row],[Master CC]]),FC_Master[Cost Center],FC_Master[rollup FC '#],OU[[#This Row],[Master CC]])","v":1490350001}]
[149,"149TNR Fleet Sv",10000650,"149FltSv",null,null,null,null,null,null,null,null,null,null,null,null,null,null,null,"1","2019-03-26","9999-12-31","2019-03-26","PFAFFEA","149TNR Fleet Sv - East Automotive","10000653","149FltSvAuto","1490350001",149,{"$f":"_xlfn.XLOOKUP(VALUE(OU[[#This Row],[Master CC]]),FC_Master[Cost Center],FC_Master[rollup FC '#],OU[[#This Row],[Master CC]])","v":1490350001}]
[149,"149TNR Fleet Sv - East Automotive",10000653,"149FltSvAuto",null,null,null,null,null,null,null,null,null,null,null,null,null,null,null,"1","2019-03-26","9999-12-31","2019-03-26","PFAFFEA","149TNR Fleet Sv - East Heavy Equipment","10000652","149FltSvEEqp","1490350145",149,{"$f":"_xlfn.XLOOKUP(VALUE(OU[[#This Row],[Master CC]]),FC_Master[Cost Center],FC_Master[rollup FC '#],OU[[#This Row],[Master CC]])","v":1490350145}]
[149,"149TNR Fleet Sv - East Heavy Equipment",10000652,"149FltSvEEqp",null,null,null,null,null,null,null,null,null,null,null,null,null,null,null,"1","2019-03-26","9999-12-31","2019-03-26","PFAFFEA","149TNR Fleet Sv - West","10000651","149FltSvW","1490350001",149,{"$f":"_xlfn.XLOOKUP(VALUE(OU[[#This Row],[Master CC]]),FC_Master[Cost Center],FC_Master[rollup FC '#],OU[[#This Row],[Master CC]])","v":1490350001}]
[149,"149TNR Fleet Sv - West",10000651,"149FltSvW",null,null,null,null,null,null,null,null,null,null,null,null,null,null,null,"1","2019-02-15","9999-12-31","2019-03-25","BROUSSC","149TNR Fleet Sv Supv","10053476","149FltSvSupv","1490350001",149,{"$f":"_xlfn.XLOOKUP(VALUE(OU[[#This Row],[Master CC]]),FC_Master[Cost Center],FC_Master[rollup FC '#],OU[[#This Row],[Master CC]])","v":1490350001}]
[149,"149TNR Fleet Sv Supv",10053476,"149FltSvSupv",null,null,null,null,null,null,null,null,null,null,null,null,null,null,null,"1","1950-01-01","9999-12-31","2012-05-15","DATACONVERSI","149TNR GIS","10000597","149GIS","1490100001",149,{"$f":"_xlfn.XLOOKUP(VALUE(OU[[#This Row],[Master CC]]),FC_Master[Cost Center],FC_Master[rollup FC '#],OU[[#This Row],[Master CC]])","v":1490100001}]
[149,"149TNR GIS",10000597,"149GIS",null,null,null,null,null,null,null,null,null,null,null,null,null,null,null,"1","2023-01-26","9999-12-31","2023-01-28","PFAFFEA","149TNR GIS - SUB","10056026","149GISSUB","1490100001",149,{"$f":"_xlfn.XLOOKUP(VALUE(OU[[#This Row],[Master CC]]),FC_Master[Cost Center],FC_Master[rollup FC '#],OU[[#This Row],[Master CC]])","v":1490100001}]
[149,"149TNR GIS - SUB",10056026,"149GISSUB",null,null,null,null,null,null,null,null,null,null,null,null,null,null,null,"1","1950-01-01","9999-12-31","2012-05-15","DATACONVERSI","149TNR Long Range Planning","10000596","149Planning","1490100001",149,{"$f":"_xlfn.XLOOKUP(VALUE(OU[[#This Row],[Master CC]]),FC_Master[Cost Center],FC_Master[rollup FC '#],OU[[#This Row],[Master CC]])","v":1490100001}]
[149,"149TNR Long Range Planning",10000596,"149Planning",null,null,null,null,null,null,null,null,null,null,null,null,null,null,null,"1","1950-01-01","9999-12-31","2012-05-15","DATACONVERSI","149TNR Natural Resources","10000611","149NRMgr","1490120115",149,{"$f":"_xlfn.XLOOKUP(VALUE(OU[[#This Row],[Master CC]]),FC_Master[Cost Center],FC_Master[rollup FC '#],OU[[#This Row],[Master CC]])","v":1490120115}]
[149,"149TNR Natural Resources",10000611,"149NRMgr",null,null,null,null,null,null,null,null,null,null,null,null,null,null,null,"1","1950-01-01","9999-12-31","2012-05-15","DATACONVERSI","149TNR Natural Resources - BCP","10000612","149NRBCP","1490120115",149,{"$f":"_xlfn.XLOOKUP(VALUE(OU[[#This Row],[Master CC]]),FC_Master[Cost Center],FC_Master[rollup FC '#],OU[[#This Row],[Master CC]])","v":1490120115}]
[149,"149TNR Natural Resources - BCP",10000612,"149NRBCP",null,null,null,null,null,null,null,null,null,null,null,null,null,null,null,"1","2019-01-23","9999-12-31","2019-01-30","BROUSSC","149TNR Natural Resources - BCP II","10053338","149NRBCPII","1490120115",149,{"$f":"_xlfn.XLOOKUP(VALUE(OU[[#This Row],[Master CC]]),FC_Master[Cost Center],FC_Master[rollup FC '#],OU[[#This Row],[Master CC]])","v":1490120115}]
[149,"149TNR Natural Resources - BCP II",10053338,"149NRBCPII",null,null,null,null,null,null,null,null,null,null,null,null,null,null,null,"1","2023-07-03","9999-12-31","2023-07-10","PFAFFEA","149TNR Natural Resources - BCP SUB","10056376","149NRBCPSUB","1490120115",149,{"$f":"_xlfn.XLOOKUP(VALUE(OU[[#This Row],[Master CC]]),FC_Master[Cost Center],FC_Master[rollup FC '#],OU[[#This Row],[Master CC]])","v":1490120115}]
[149,"149TNR Natural Resources - BCP SUB",10056376,"149NRBCPSUB",null,null,null,null,null,null,null,null,null,null,null,null,null,null,null,"1","2022-09-23","9999-12-31","2022-09-26","BROUSSC","149TNR Natural Resources - NR","10055701","149NRNR","1490120115",149,{"$f":"_xlfn.XLOOKUP(VALUE(OU[[#This Row],[Master CC]]),FC_Master[Cost Center],FC_Master[rollup FC '#],OU[[#This Row],[Master CC]])","v":1490120115}]
[149,"149TNR Natural Resources - NR",10055701,"149NRNR",null,null,null,null,null,null,null,null,null,null,null,null,null,null,null,"1","1950-01-01","9999-12-31","2012-05-15","DATACONVERSI","149TNR Natural Resources and Env Quality","10000610","149NREQ","1490110001",149,{"$f":"_xlfn.XLOOKUP(VALUE(OU[[#This Row],[Master CC]]),FC_Master[Cost Center],FC_Master[rollup FC '#],OU[[#This Row],[Master CC]])","v":1490110001}]
[149,"149TNR Natural Resources and Env Quality",10000610,"149NREQ",null,null,null,null,null,null,null,null,null,null,null,null,null,null,null,"1","2024-01-23","9999-12-31","2024-01-24","PFAFFEA","149TNR Natural Resources -BCPVC","10056851","149NRBCPVC","1490120115",149,{"$f":"_xlfn.XLOOKUP(VALUE(OU[[#This Row],[Master CC]]),FC_Master[Cost Center],FC_Master[rollup FC '#],OU[[#This Row],[Master CC]])","v":1490120115}]
[149,"149TNR Natural Resources -BCPVC",10056851,"149NRBCPVC",null,null,null,null,null,null,null,null,null,null,null,null,null,null,null,"1","2023-10-01","9999-12-31","2023-10-04","PEPPERA","149TNR Natural Resources-EPM","10056576","149NREPM","1490120115",149,{"$f":"_xlfn.XLOOKUP(VALUE(OU[[#This Row],[Master CC]]),FC_Master[Cost Center],FC_Master[rollup FC '#],OU[[#This Row],[Master CC]])","v":1490120115}]
[149,"149TNR Natural Resources-EPM",10056576,"149NREPM",null,null,null,null,null,null,null,null,null,null,null,null,null,null,null,"1","2019-10-09","9999-12-31","2019-10-15","PFAFFEA","149TNR OnSt Inspection","10053126","149OnStIsp","1490160001",149,{"$f":"_xlfn.XLOOKUP(VALUE(OU[[#This Row],[Master CC]]),FC_Master[Cost Center],FC_Master[rollup FC '#],OU[[#This Row],[Master CC]])","v":1490160001}]
[149,"149TNR OnSt Inspection",10053126,"149OnStIsp",null,null,null,null,null,null,null,null,null,null,null,null,null,null,null,"1","1950-01-01","9999-12-31","2012-05-15","DATACONVERSI","149TNR Operations Management","10000587","149OpMgmt","1490010001",149,{"$f":"_xlfn.XLOOKUP(VALUE(OU[[#This Row],[Master CC]]),FC_Master[Cost Center],FC_Master[rollup FC '#],OU[[#This Row],[Master CC]])","v":1490010001}]
[149,"149TNR Operations Management",10000587,"149OpMgmt",null,null,null,null,null,null,null,null,null,null,null,null,null,null,null,"1","2023-09-05","9999-12-31","2023-09-06","PFAFFEA","149TNR Park Land Mgmt - Sub","10056526","149PkLnSub","1490220001",149,{"$f":"_xlfn.XLOOKUP(VALUE(OU[[#This Row],[Master CC]]),FC_Master[Cost Center],FC_Master[rollup FC '#],OU[[#This Row],[Master CC]])","v":1490220001}]
[149,"149TNR Park Land Mgmt - Sub",10056526,"149PkLnSub",null,null,null,null,null,null,null,null,null,null,null,null,null,null,null,"1","2021-01-21","9999-12-31","2021-01-22","VLAHODA","149TNR Park Land Mgmt - Supv A","10054551","149PkLnMgmtA","1490220001",149,{"$f":"_xlfn.XLOOKUP(VALUE(OU[[#This Row],[Master CC]]),FC_Master[Cost Center],FC_Master[rollup FC '#],OU[[#This Row],[Master CC]])","v":1490220001}]
[149,"149TNR Park Land Mgmt - Supv A",10054551,"149PkLnMgmtA",null,null,null,null,null,null,null,null,null,null,null,null,null,null,null,"1","1950-01-01","9999-12-31","2012-05-15","DATACONVERSI","149TNR Parks","10000617","149Pk","1490220001",149,{"$f":"_xlfn.XLOOKUP(VALUE(OU[[#This Row],[Master CC]]),FC_Master[Cost Center],FC_Master[rollup FC '#],OU[[#This Row],[Master CC]])","v":1490220001}]
[149,"149TNR Parks",10000617,"149Pk",null,null,null,null,null,null,null,null,null,null,null,null,null,null,null,"1","2018-03-15","9999-12-31","2018-03-16","PFAFFEA","149TNR Parks - Arkansas Bend","10052876","149PkARBnd","1490220001",149,{"$f":"_xlfn.XLOOKUP(VALUE(OU[[#This Row],[Master CC]]),FC_Master[Cost Center],FC_Master[rollup FC '#],OU[[#This Row],[Master CC]])","v":1490220001}]
[149,"149TNR Parks - Arkansas Bend",10052876,"149PkARBnd",null,null,null,null,null,null,null,null,null,null,null,null,null,null,null,"1","2018-03-15","9999-12-31","2018-04-11","PFAFFEA","149TNR Parks - Arkansas Bend SupvI","10052902","149PkARBndI","1490220001",149,{"$f":"_xlfn.XLOOKUP(VALUE(OU[[#This Row],[Master CC]]),FC_Master[Cost Center],FC_Master[rollup FC '#],OU[[#This Row],[Master CC]])","v":1490220001}]
[149,"149TNR Parks - Arkansas Bend SupvI",10052902,"149PkARBndI",null,null,null,null,null,null,null,null,null,null,null,null,null,null,null,"1","2020-12-01","9999-12-31","2020-12-23","GIPSONK","149TNR Parks - Bee Creek","10054476","149PkBCreek","1490220001",149,{"$f":"_xlfn.XLOOKUP(VALUE(OU[[#This Row],[Master CC]]),FC_Master[Cost Center],FC_Master[rollup FC '#],OU[[#This Row],[Master CC]])","v":1490220001}]
[149,"149TNR Parks - Bee Creek",10054476,"149PkBCreek",null,null,null,null,null,null,null,null,null,null,null,null,null,null,null,"1","2020-12-01","9999-12-31","2020-12-29","PFAFFEA","149TNR Parks - Bee Creek Supv A","10054502","149PkBCreekA","1490220001",149,{"$f":"_xlfn.XLOOKUP(VALUE(OU[[#This Row],[Master CC]]),FC_Master[Cost Center],FC_Master[rollup FC '#],OU[[#This Row],[Master CC]])","v":1490220001}]
[149,"149TNR Parks - Bee Creek Supv A",10054502,"149PkBCreekA",null,null,null,null,null,null,null,null,null,null,null,null,null,null,null,"1","2020-12-01","9999-12-31","2020-12-29","PFAFFEA","149TNR Parks - Bee Creek Supv B","10054501","149PkBCreekB","1490220001",149,{"$f":"_xlfn.XLOOKUP(VALUE(OU[[#This Row],[Master CC]]),FC_Master[Cost Center],FC_Master[rollup FC '#],OU[[#This Row],[Master CC]])","v":1490220001}]
[149,"149TNR Parks - Bee Creek Supv B",10054501,"149PkBCreekB",null,null,null,null,null,null,null,null,null,null,null,null,null,null,null,"1","1950-01-01","9999-12-31","2012-05-15","DATACONVERSI","149TNR Parks - Comanche Trail","10000631","149PkCmchTr","1490220001",149,{"$f":"_xlfn.XLOOKUP(VALUE(OU[[#This Row],[Master CC]]),FC_Master[Cost Center],FC_Master[rollup FC '#],OU[[#This Row],[Master CC]])","v":1490220001}]
[149,"149TNR Parks - Comanche Trail",10000631,"149PkCmchTr",null,null,null,null,null,null,null,null,null,null,null,null,null,null,null,"1","1950-01-01","9999-12-31","2012-05-15","DATACONVERSI","149TNR Parks - East","10000623","149PkE","1490220001",149,{"$f":"_xlfn.XLOOKUP(VALUE(OU[[#This Row],[Master CC]]),FC_Master[Cost Center],FC_Master[rollup FC '#],OU[[#This Row],[Master CC]])","v":1490220001}]
[149,"149TNR Parks - East",10000623,"149PkE",null,null,null,null,null,null,null,null,null,null,"155CRS Law Library Reference Attorneys",null,null,null,null,"1","1950-01-01","9999-12-31","2012-05-15","DATACONVERSI","149TNR Parks - East Metro","10000625","149PkEMetro","1490220001",149,{"$f":"_xlfn.XLOOKUP(VALUE(OU[[#This Row],[Master CC]]),FC_Master[Cost Center],FC_Master[rollup FC '#],OU[[#This Row],[Master CC]])","v":1490220001}]
[149,"149TNR Parks - East Metro",10000625,"149PkEMetro",null,null,null,null,null,null,null,null,null,null,null,null,null,null,null,"1","1950-01-01","9999-12-31","2012-05-15","DATACONVERSI","149TNR Parks - Hamilton Pool Area","10000630","149PkHPA","1490220001",149,{"$f":"_xlfn.XLOOKUP(VALUE(OU[[#This Row],[Master CC]]),FC_Master[Cost Center],FC_Master[rollup FC '#],OU[[#This Row],[Master CC]])","v":1490220001}]
[149,"149TNR Parks - Hamilton Pool Area",10000630,"149PkHPA",null,null,null,null,null,null,null,null,null,null,null,null,null,null,null,"1","1950-01-01","9999-12-31","2012-05-15","DATACONVERSI","149TNR Parks - Mansfield Dam Area","10000634","149PkMDA","1490220001",149,{"$f":"_xlfn.XLOOKUP(VALUE(OU[[#This Row],[Master CC]]),FC_Master[Cost Center],FC_Master[rollup FC '#],OU[[#This Row],[Master CC]])","v":1490220001}]
[149,"149TNR Parks - Mansfield Dam Area",10000634,"149PkMDA",null,null,null,null,null,null,null,null,null,null,null,null,null,null,null,"1","1950-01-01","9999-12-31","2012-05-15","DATACONVERSI","149TNR Parks - Northeast Metro","10000626","149PkNEMetro","1490220001",149,{"$f":"_xlfn.XLOOKUP(VALUE(OU[[#This Row],[Master CC]]),FC_Master[Cost Center],FC_Master[rollup FC '#],OU[[#This Row],[Master CC]])","v":1490220001}]
[149,"149TNR Parks - Northeast Metro",10000626,"149PkNEMetro",null,null,null,null,null,null,null,null,null,null,null,null,null,null,null,"1","2018-04-10","9999-12-31","2018-04-18","PFAFFEA","149TNR Parks - Northshore","10000633","149PkNshr","1490220001",149,{"$f":"_xlfn.XLOOKUP(VALUE(OU[[#This Row],[Master CC]]),FC_Master[Cost Center],FC_Master[rollup FC '#],OU[[#This Row],[Master CC]])","v":1490220001}]
[149,"149TNR Parks - Northshore",10000633,"149PkNshr",null,null,null,null,null,null,null,null,null,null,null,null,null,null,null,"1","1950-01-01","9999-12-31","2012-05-15","DATACONVERSI","149TNR Parks - Operations","10000618","149PkOps","1490220001",149,{"$f":"_xlfn.XLOOKUP(VALUE(OU[[#This Row],[Master CC]]),FC_Master[Cost Center],FC_Master[rollup FC '#],OU[[#This Row],[Master CC]])","v":1490220001}]
[149,"149TNR Parks - Operations",10000618,"149PkOps",null,null,null,null,null,null,null,null,null,null,null,null,null,null,null,"1","2023-03-13","9999-12-31","2023-03-13","VILLARG","149TNR Parks - Operations","10056001","149PkOps","1490220001",149,{"$f":"_xlfn.XLOOKUP(VALUE(OU[[#This Row],[Master CC]]),FC_Master[Cost Center],FC_Master[rollup FC '#],OU[[#This Row],[Master CC]])","v":1490220001}]
[149,"149TNR Parks - Operations",10056001,"149PkOps",null,null,null,null,null,null,null,null,null,null,null,null,null,null,null,"1","1950-01-01","9999-12-31","2012-05-15","DATACONVERSI","149TNR Parks - Pace Bend","10000632","149PkPBnd","1490220001",149,{"$f":"_xlfn.XLOOKUP(VALUE(OU[[#This Row],[Master CC]]),FC_Master[Cost Center],FC_Master[rollup FC '#],OU[[#This Row],[Master CC]])","v":1490220001}]
[149,"149TNR Parks - Pace Bend",10000632,"149PkPBnd",null,null,null,null,null,null,null,null,null,null,null,null,null,null,null,"1","2023-05-17","9999-12-31","2023-05-17","CHANGM","149TNR Parks - Rangers","10000619","149PkRng","1490220001",149,{"$f":"_xlfn.XLOOKUP(VALUE(OU[[#This Row],[Master CC]]),FC_Master[Cost Center],FC_Master[rollup FC '#],OU[[#This Row],[Master CC]])","v":1490220001}]
[149,"149TNR Parks - Rangers",10000619,"149PkRng",null,null,null,null,null,null,null,null,null,null,null,null,null,null,null,"1","2023-10-12","9999-12-31","2023-10-17","PFAFFEA","149TNR Parks - Rangers - LT","10056629","149PkRngLT","1490220001",149,{"$f":"_xlfn.XLOOKUP(VALUE(OU[[#This Row],[Master CC]]),FC_Master[Cost Center],FC_Master[rollup FC '#],OU[[#This Row],[Master CC]])","v":1490220001}]
[149,"149TNR Parks - Rangers - LT",10056629,"149PkRngLT",null,null,null,null,null,null,null,null,null,null,null,null,null,null,null,"1","2024-01-25","9999-12-31","2024-01-26","SHAHS1","149TNR Parks - Rangers A","10000620","149PkRngA","1490220001",149,{"$f":"_xlfn.XLOOKUP(VALUE(OU[[#This Row],[Master CC]]),FC_Master[Cost Center],FC_Master[rollup FC '#],OU[[#This Row],[Master CC]])","v":1490220001}]
[149,"149TNR Parks - Rangers A",10000620,"149PkRngA",null,null,null,null,null,null,null,null,null,null,null,null,null,null,null,"1","2024-01-25","9999-12-31","2024-01-26","SHAHS1","149TNR Parks - Rangers B","10000621","149PkRngB","1490220001",149,{"$f":"_xlfn.XLOOKUP(VALUE(OU[[#This Row],[Master CC]]),FC_Master[Cost Center],FC_Master[rollup FC '#],OU[[#This Row],[Master CC]])","v":1490220001}]
[149,"149TNR Parks - Rangers B",10000621,"149PkRngB",null,null,null,null,null,null,null,null,null,null,null,null,null,null,null,"1","2024-01-25","9999-12-31","2024-01-26","SHAHS1","149TNR Parks - Rangers C","10000622","149PkRngC","1490220001",149,{"$f":"_xlfn.XLOOKUP(VALUE(OU[[#This Row],[Master CC]]),FC_Master[Cost Center],FC_Master[rollup FC '#],OU[[#This Row],[Master CC]])","v":1490220001}]
[149,"149TNR Parks - Rangers C",10000622,"149PkRngC",null,null,null,null,null,null,null,null,null,null,null,null,null,null,null,"1","2024-01-25","9999-12-31","2024-01-26","SHAHS1","149TNR Parks - Rangers D","10054226","149PkRngD","1490220001",149,{"$f":"_xlfn.XLOOKUP(VALUE(OU[[#This Row],[Master CC]]),FC_Master[Cost Center],FC_Master[rollup FC '#],OU[[#This Row],[Master CC]])","v":1490220001}]
[149,"149TNR Parks - Rangers D",10054226,"149PkRngD",null,null,null,null,null,null,null,null,null,null,null,null,null,null,null,"1","1950-01-01","9999-12-31","2012-05-15","DATACONVERSI","149TNR Parks - Southeast Metro","10000628","149PkSEMetro","1490220001",149,{"$f":"_xlfn.XLOOKUP(VALUE(OU[[#This Row],[Master CC]]),FC_Master[Cost Center],FC_Master[rollup FC '#],OU[[#This Row],[Master CC]])","v":1490220001}]
[149,"149TNR Parks - Southeast Metro",10000628,"149PkSEMetro",null,null,null,null,null,null,null,null,null,null,null,null,null,null,null,"1","1950-01-01","9999-12-31","2012-05-15","DATACONVERSI","149TNR Parks - Webberville","10000624","149PkWbrvl","1490220001",149,{"$f":"_xlfn.XLOOKUP(VALUE(OU[[#This Row],[Master CC]]),FC_Master[Cost Center],FC_Master[rollup FC '#],OU[[#This Row],[Master CC]])","v":1490220001}]
[149,"149TNR Parks - Webberville",10000624,"149PkWbrvl",null,null,null,null,null,null,null,null,null,null,null,null,null,null,null,"1","1950-01-01","9999-12-31","2012-05-15","DATACONVERSI","149TNR Parks - West","10000629","149PkW","1490220001",149,{"$f":"_xlfn.XLOOKUP(VALUE(OU[[#This Row],[Master CC]]),FC_Master[Cost Center],FC_Master[rollup FC '#],OU[[#This Row],[Master CC]])","v":1490220001}]
[149,"149TNR Parks - West",10000629,"149PkW",null,null,null,null,null,null,null,null,null,null,null,null,null,null,null,"1","1950-01-01","9999-12-31","2012-05-15","DATACONVERSI","149TNR Parks- Moya / Del Valle","10000627","149PkMoyaDlV","1490220001",149,{"$f":"_xlfn.XLOOKUP(VALUE(OU[[#This Row],[Master CC]]),FC_Master[Cost Center],FC_Master[rollup FC '#],OU[[#This Row],[Master CC]])","v":1490220001}]
[149,"149TNR Parks- Moya / Del Valle",10000627,"149PkMoyaDlV",null,null,null,null,null,null,null,null,null,null,null,null,null,null,null,"1","2023-05-01","9999-12-31","2023-05-02","PFAFFEA","149TNR Parks- Moya / Del Valle Sub A","10056226","149PkMoyaA","1490220001",149,{"$f":"_xlfn.XLOOKUP(VALUE(OU[[#This Row],[Master CC]]),FC_Master[Cost Center],FC_Master[rollup FC '#],OU[[#This Row],[Master CC]])","v":1490220001}]
[149,"149TNR Parks- Moya / Del Valle Sub A",10056226,"149PkMoyaA",null,null,null,null,null,null,null,null,null,null,null,null,null,null,null,"1","2022-10-01","9999-12-31","2022-10-04","PFAFFEA","149TNR Parks -Timber Creek","10055726","149Timber","1490220001",149,{"$f":"_xlfn.XLOOKUP(VALUE(OU[[#This Row],[Master CC]]),FC_Master[Cost Center],FC_Master[rollup FC '#],OU[[#This Row],[Master CC]])","v":1490220001}]
[149,"149TNR Parks -Timber Creek",10055726,"149Timber",null,null,null,null,null,null,null,null,null,null,null,null,null,null,null,"1","2018-09-04","9999-12-31","2018-09-17","PFAFFEA","149TNR Parks-Hamilton Pool Area SupvI","10053101","149PkHPASupv","1490220001",149,{"$f":"_xlfn.XLOOKUP(VALUE(OU[[#This Row],[Master CC]]),FC_Master[Cost Center],FC_Master[rollup FC '#],OU[[#This Row],[Master CC]])","v":1490220001}]
[149,"149TNR Parks-Hamilton Pool Area SupvI",10053101,"149PkHPASupv",null,null,null,null,null,null,null,null,null,null,null,null,null,null,null,"1","2020-12-01","9999-12-31","2020-12-29","PFAFFEA","149TNR Parks-Northeast Metro Supv A","10050229","149PkNEMetrA","1490220001",149,{"$f":"_xlfn.XLOOKUP(VALUE(OU[[#This Row],[Master CC]]),FC_Master[Cost Center],FC_Master[rollup FC '#],OU[[#This Row],[Master CC]])","v":1490220001}]
[149,"149TNR Parks-Northeast Metro Supv A",10050229,"149PkNEMetrA","remove duplicates after copy",{"$f":"'Details (PB5)'!D5","v":0},null,null,null,null,null,null,null,null,null,null,null,null,null,"1","2020-12-01","9999-12-31","2020-12-23","GIPSONK","149TNR Parks-Northeast Metro SupvB","10054451","149PkNEMetrB","1490220001",149,{"$f":"_xlfn.XLOOKUP(VALUE(OU[[#This Row],[Master CC]]),FC_Master[Cost Center],FC_Master[rollup FC '#],OU[[#This Row],[Master CC]])","v":1490220001}]
[149,"149TNR Parks-Northeast Metro SupvB",10054451,"149PkNEMetrB",null,null,null,null,null,null,null,null,null,null,null,null,null,null,null,"1","1950-01-01","9999-12-31","2012-05-15","DATACONVERSI","149TNR Public Works","10000598","149PW","1490010145",149,{"$f":"_xlfn.XLOOKUP(VALUE(OU[[#This Row],[Master CC]]),FC_Master[Cost Center],FC_Master[rollup FC '#],OU[[#This Row],[Master CC]])","v":1490010145}]
[149,"149TNR Public Works",10000598,"149PW",null,null,null,null,null,null,null,null,null,null,null,null,null,null,null,"1","1950-01-01","9999-12-31","2012-05-15","DATACONVERSI","149TNR Public Works-CIP","10000601","149PWCIP","1490190001",149,{"$f":"_xlfn.XLOOKUP(VALUE(OU[[#This Row],[Master CC]]),FC_Master[Cost Center],FC_Master[rollup FC '#],OU[[#This Row],[Master CC]])","v":1490190001}]
[149,"149TNR Public Works-CIP",10000601,"149PWCIP",null,null,null,null,null,null,null,null,null,null,null,null,null,null,null,"1","1950-01-01","9999-12-31","2012-05-15","DATACONVERSI","149TNR Public Works-Inspection","10000602","149PWIsp","1490190001",149,{"$f":"_xlfn.XLOOKUP(VALUE(OU[[#This Row],[Master CC]]),FC_Master[Cost Center],FC_Master[rollup FC '#],OU[[#This Row],[Master CC]])","v":1490190001}]
[149,"149TNR Public Works-Inspection",10000602,"149PWIsp",null,null,null,null,null,null,null,null,null,null,null,null,null,null,null,"1","1950-01-01","9999-12-31","2012-05-15","DATACONVERSI","149TNR Public Works-Survey and Records","10000600","149PWSvyRcd","1490190145",149,{"$f":"_xlfn.XLOOKUP(VALUE(OU[[#This Row],[Master CC]]),FC_Master[Cost Center],FC_Master[rollup FC '#],OU[[#This Row],[Master CC]])","v":1490190145}]
[149,"149TNR Public Works-Survey and Records",10000600,"149PWSvyRcd",null,null,null,null,null,null,null,null,null,null,null,null,null,null,null,"1","2012-10-01","9999-12-31","2012-12-13","DORVALR","149TNR Real Estate","10000599","149RealEst","1490190001",149,{"$f":"_xlfn.XLOOKUP(VALUE(OU[[#This Row],[Master CC]]),FC_Master[Cost Center],FC_Master[rollup FC '#],OU[[#This Row],[Master CC]])","v":1490190001}]
[149,"149TNR Real Estate",10000599,"149RealEst",null,null,null,null,null,null,null,null,null,null,null,null,null,null,null,"1","2012-10-01","9999-12-31","2012-12-13","DORVALR","149TNR Road Maintenance","10000635","149RoadMnt","1490010145",149,{"$f":"_xlfn.XLOOKUP(VALUE(OU[[#This Row],[Master CC]]),FC_Master[Cost Center],FC_Master[rollup FC '#],OU[[#This Row],[Master CC]])","v":1490010145}]
[149,"149TNR Road Maintenance",10000635,"149RoadMnt",null,null,null,null,null,null,null,null,null,null,null,null,null,null,null,"1","2024-01-02","9999-12-31","2024-01-04","PFAFFEA","149TNR Road Maintenance - Operations SUB","10056801","149RdMOpsSub","1490200001",149,{"$f":"_xlfn.XLOOKUP(VALUE(OU[[#This Row],[Master CC]]),FC_Master[Cost Center],FC_Master[rollup FC '#],OU[[#This Row],[Master CC]])","v":1490200001}]
[149,"149TNR Road Maintenance - Operations SUB",10056801,"149RdMOpsSub",null,null,null,null,null,null,null,null,null,null,null,null,null,null,null,"1","2023-04-14","9999-12-31","2023-04-17","PFAFFEA","149TNR Road Maintenance -SUB","10056177","149RdMSub","1490200001",149,{"$f":"_xlfn.XLOOKUP(VALUE(OU[[#This Row],[Master CC]]),FC_Master[Cost Center],FC_Master[rollup FC '#],OU[[#This Row],[Master CC]])","v":1490200001}]
[149,"149TNR Road Maintenance -SUB",{"$f":"VALUE(Z1154)","v":10056177},"149RdMSub",null,null,null,null,null,null,null,null,null,null,null,null,null,null,null,"1","1950-01-01","9999-12-31","2012-05-15","DATACONVERSI","149TNR Road Mnt - Adm","10000636","149RdMAdm","1490200145",149,{"$f":"_xlfn.XLOOKUP(VALUE(OU[[#This Row],[Master CC]]),FC_Master[Cost Center],FC_Master[rollup FC '#],OU[[#This Row],[Master CC]])","v":1490200145}]
[{"$f":"AC1155","v":149},{"$f":"Y1155","v":"149TNR Road Mnt - Adm"},10000636,{"$f":"AA1155","v":"149RdMAdm"},null,null,null,null,null,null,null,null,null,null,null,null,null,null,null,"1","1950-01-01","9999-12-31","2012-05-15","DATACONVERSI","149TNR Road Mnt - East Drainage","10000644","149RdMEDrng","1490200145",149,{"$f":"_xlfn.XLOOKUP(VALUE(OU[[#This Row],[Master CC]]),FC_Master[Cost Center],FC_Master[rollup FC '#],OU[[#This Row],[Master CC]])","v":1490200145}]
[149,"149TNR Road Mnt - East Drainage",10000644,"149RdMEDrng",null,null,null,null,null,null,null,null,null,null,null,null,null,null,null,"1","1950-01-01","9999-12-31","2012-05-15","DATACONVERSI","149TNR Road Mnt - East ROW","10000643","149RdMEROW","1490200145",149,{"$f":"_xlfn.XLOOKUP(VALUE(OU[[#This Row],[Master CC]]),FC_Master[Cost Center],FC_Master[rollup FC '#],OU[[#This Row],[Master CC]])","v":1490200145}]
[149,"149TNR Road Mnt - East ROW",10000643,"149RdMEROW",null,null,null,null,null,null,null,null,null,null,null,null,null,null,null,"1","1950-01-01","9999-12-31","2012-05-15","DATACONVERSI","149TNR Road Mnt - Edge Shldr & Ped Way","10000647","149RdMESP","1490200145",149,{"$f":"_xlfn.XLOOKUP(VALUE(OU[[#This Row],[Master CC]]),FC_Master[Cost Center],FC_Master[rollup FC '#],OU[[#This Row],[Master CC]])","v":1490200145}]
[149,"149TNR Road Mnt - Edge Shldr & Ped Way",10000647,"149RdMESP",null,null,null,null,null,null,null,null,null,null,null,null,null,null,null,"1","1950-01-01","9999-12-31","2012-05-15","DATACONVERSI","149TNR Road Mnt - Operations","10000637","149RdMOps","1490200145",149,{"$f":"_xlfn.XLOOKUP(VALUE(OU[[#This Row],[Master CC]]),FC_Master[Cost Center],FC_Master[rollup FC '#],OU[[#This Row],[Master CC]])","v":1490200145}]
[149,"149TNR Road Mnt - Operations",10000637,"149RdMOps",null,null,null,null,null,null,null,null,null,null,null,null,null,null,null,"1","1950-01-01","9999-12-31","2012-05-15","DATACONVERSI","149TNR Road Mnt - Recon & Rehab","10000649","149RdMERdwI","1490200145",149,{"$f":"_xlfn.XLOOKUP(VALUE(OU[[#This Row],[Master CC]]),FC_Master[Cost Center],FC_Master[rollup FC '#],OU[[#This Row],[Master CC]])","v":1490200145}]
[149,"149TNR Road Mnt - Recon & Rehab",10000649,"149RdMERdwI",null,null,null,null,null,null,null,null,null,null,null,null,null,null,null,"1","2015-05-01","9999-12-31","2015-05-08","HENDERL","149TNR Road Mnt - Roadway","10000645","149Roadway","1490200145",149,{"$f":"_xlfn.XLOOKUP(VALUE(OU[[#This Row],[Master CC]]),FC_Master[Cost Center],FC_Master[rollup FC '#],OU[[#This Row],[Master CC]])","v":1490200145}]
[149,"149TNR Road Mnt - Roadway",10000645,"149Roadway",null,null,null,null,null,null,null,null,null,null,null,null,null,null,null,"1","1950-01-01","9999-12-31","2012-05-15","DATACONVERSI","149TNR Road Mnt - Roadway Patching","10000646","149Patching","1490200145",149,{"$f":"_xlfn.XLOOKUP(VALUE(OU[[#This Row],[Master CC]]),FC_Master[Cost Center],FC_Master[rollup FC '#],OU[[#This Row],[Master CC]])","v":1490200145}]
[149,"149TNR Road Mnt - Roadway Patching",10000646,"149Patching",null,null,null,null,null,null,null,null,null,null,null,null,null,null,null,"1","2015-05-01","9999-12-31","2015-05-12","HENDERL","149TNR Road Mnt - ROW","10000640","149RdMntROW","1490200145",149,{"$f":"_xlfn.XLOOKUP(VALUE(OU[[#This Row],[Master CC]]),FC_Master[Cost Center],FC_Master[rollup FC '#],OU[[#This Row],[Master CC]])","v":1490200145}]
[149,"149TNR Road Mnt - ROW",10000640,"149RdMntROW",null,null,null,null,null,null,null,null,null,null,null,null,null,null,null,"1","2019-11-16","9999-12-31","2019-11-15","PFAFFEA","149TNR Road Mnt - Signs & Striping","10000639","149RdMSgStrp","1490200145",149,{"$f":"_xlfn.XLOOKUP(VALUE(OU[[#This Row],[Master CC]]),FC_Master[Cost Center],FC_Master[rollup FC '#],OU[[#This Row],[Master CC]])","v":1490200145}]
[149,"149TNR Road Mnt - Signs & Striping",10000639,"149RdMSgStrp",null,null,null,null,null,null,null,null,null,null,null,null,null,null,null,"1","1950-01-01","9999-12-31","2012-05-15","DATACONVERSI","149TNR Road Mnt - Surface Treatment","10000648","149RdMRdwSfc","1490200145",149,{"$f":"_xlfn.XLOOKUP(VALUE(OU[[#This Row],[Master CC]]),FC_Master[Cost Center],FC_Master[rollup FC '#],OU[[#This Row],[Master CC]])","v":1490200145}]
[149,"149TNR Road Mnt - Surface Treatment",10000648,"149RdMRdwSfc",null,null,null,null,null,null,null,null,null,null,null,null,null,null,null,"1","1950-01-01","9999-12-31","2012-05-15","DATACONVERSI","149TNR Road Mnt - Traffic Eng","10000638","149RdMTfcEng","1490200145",149,{"$f":"_xlfn.XLOOKUP(VALUE(OU[[#This Row],[Master CC]]),FC_Master[Cost Center],FC_Master[rollup FC '#],OU[[#This Row],[Master CC]])","v":1490200145}]
[149,"149TNR Road Mnt - Traffic Eng",10000638,"149RdMTfcEng",null,null,null,null,null,null,null,null,null,null,null,null,null,null,null,"5","2015-05-01","9999-12-31","2018-03-29","BROUSSC","149TNR Road Mnt - Traffic Eng","10000638","149RdMTfcEng","1490200145",149,{"$f":"_xlfn.XLOOKUP(VALUE(OU[[#This Row],[Master CC]]),FC_Master[Cost Center],FC_Master[rollup FC '#],OU[[#This Row],[Master CC]])","v":1490200145}]
[149,"149TNR Road Mnt - Traffic Eng",10000638,"149RdMTfcEng",null,null,null,null,null,null,null,null,null,null,null,null,null,null,null,"1","1950-01-01","9999-12-31","2012-05-15","DATACONVERSI","149TNR Road Mnt - West Drainage","10000642","149RdMWDrng","1490200145",149,{"$f":"_xlfn.XLOOKUP(VALUE(OU[[#This Row],[Master CC]]),FC_Master[Cost Center],FC_Master[rollup FC '#],OU[[#This Row],[Master CC]])","v":1490200145}]
[149,"149TNR Road Mnt - West Drainage",10000642,"149RdMWDrng",null,null,null,null,null,null,null,null,null,null,null,null,null,null,null,"1","1950-01-01","9999-12-31","2012-05-15","DATACONVERSI","149TNR Road Mnt - West ROW","10000641","149RdMWROW","1490200145",149,{"$f":"_xlfn.XLOOKUP(VALUE(OU[[#This Row],[Master CC]]),FC_Master[Cost Center],FC_Master[rollup FC '#],OU[[#This Row],[Master CC]])","v":1490200145}]
[149,"149TNR Road Mnt - West ROW",10000641,"149RdMWROW",null,null,null,null,null,null,null,null,null,null,null,null,null,null,null,"1","2023-10-06","9999-12-31","2023-10-06","PEPPERA","149TNR Road Mnt-Traffic","10056602","149RdTraffic","1490200001",149,{"$f":"_xlfn.XLOOKUP(VALUE(OU[[#This Row],[Master CC]]),FC_Master[Cost Center],FC_Master[rollup FC '#],OU[[#This Row],[Master CC]])","v":1490200001}]
[149,"149TNR Road Mnt-Traffic",10056602,"149RdTraffic",null,null,null,null,null,null,null,null,null,null,null,null,null,null,null,"1","2013-10-01","9999-12-31","2014-06-04","BROUSSC","149TNR Transportation Planning","10051101","149TrnsPln","1490100145",149,{"$f":"_xlfn.XLOOKUP(VALUE(OU[[#This Row],[Master CC]]),FC_Master[Cost Center],FC_Master[rollup FC '#],OU[[#This Row],[Master CC]])","v":1490100145}]
[149,"149TNR Transportation Planning",10051101,"149TrnsPln",null,null,null,null,null,null,null,null,null,null,null,null,null,null,null,"1","2023-10-01","9999-12-31","2023-10-05","PEPPERA","149TNRParks-Operations-Park Forester","10056577","149PkOPFst","1490220001",149,{"$f":"_xlfn.XLOOKUP(VALUE(OU[[#This Row],[Master CC]]),FC_Master[Cost Center],FC_Master[rollup FC '#],OU[[#This Row],[Master CC]])","v":1490220001}]
[149,"149TNRParks-Operations-Park Forester",10056577,"149PkOPFst",null,null,null,null,null,null,null,null,null,null,null,null,null,null,null,"1","2023-10-01","9999-12-31","2023-10-05","PEPPERA","149TNRParks-Operations-PLM","10056578","149PkOpsPLM","1490220001",149,{"$f":"_xlfn.XLOOKUP(VALUE(OU[[#This Row],[Master CC]]),FC_Master[Cost Center],FC_Master[rollup FC '#],OU[[#This Row],[Master CC]])","v":1490220001}]
[149,"149TNRParks-Operations-PLM",10056578,"149PkOpsPLM",null,null,null,null,null,null,null,null,null,null,null,null,null,null,null,"1","1950-01-01","9999-12-31","2012-05-15","DATACONVERSI","154Civil Service Commission","10000654","154CivSv","1540010001",154,{"$f":"_xlfn.XLOOKUP(VALUE(OU[[#This Row],[Master CC]]),FC_Master[Cost Center],FC_Master[rollup FC '#],OU[[#This Row],[Master CC]])","v":1540010001}]
[154,"154Civil Service Commission",10000654,"154CivSv",null,null,null,null,null,null,null,null,null,null,null,null,null,null,null,"5","2018-01-01","9999-12-31","2017-12-19","GIPSONK","155CRS Law Library","10000665","155LawLib","1410040100",141,{"$f":"_xlfn.XLOOKUP(VALUE(OU[[#This Row],[Master CC]]),FC_Master[Cost Center],FC_Master[rollup FC '#],OU[[#This Row],[Master CC]])","v":1410040100}]
[141,"155CRS Law Library",10000665,"155LawLib",null,null,null,null,null,null,null,null,null,null,null,null,null,null,null,"5","2018-01-01","9999-12-31","2017-12-19","GIPSONK","155CRS Law Library Reference Attorneys","10050202","155RfrAtty","1410040001",141,{"$f":"_xlfn.XLOOKUP(VALUE(OU[[#This Row],[Master CC]]),FC_Master[Cost Center],FC_Master[rollup FC '#],OU[[#This Row],[Master CC]])","v":1410040001}]
[141,"155CRS Law Library Reference Attorneys",10050202,"155RfrAtty",null,null,null,null,null,null,null,null,null,null,null,null,null,null,null,"5","2018-01-01","9999-12-31","2017-12-19","GIPSONK","155CRS Law Library Reference Services","10000667","155LwLibRfr","1410040100",141,{"$f":"_xlfn.XLOOKUP(VALUE(OU[[#This Row],[Master CC]]),FC_Master[Cost Center],FC_Master[rollup FC '#],OU[[#This Row],[Master CC]])","v":1410040100}]
[141,"155CRS Law Library Reference Services",10000667,"155LwLibRfr",null,null,null,null,null,null,null,null,null,null,null,null,null,null,null,"5","2018-01-01","9999-12-31","2017-12-19","GIPSONK","155CRS Law Library Rfr Atty DL","10052652","155RfrAttyDL","1410040001",141,{"$f":"_xlfn.XLOOKUP(VALUE(OU[[#This Row],[Master CC]]),FC_Master[Cost Center],FC_Master[rollup FC '#],OU[[#This Row],[Master CC]])","v":1410040001}]
[141,"155CRS Law Library Rfr Atty DL",10052652,"155RfrAttyDL",null,null,null,null,null,null,null,null,null,null,null,null,null,null,null,"5","2018-01-01","9999-12-31","2017-12-19","GIPSONK","155CRS Law Library Technical Services","10000666","155LwLibTch","1410040100",141,{"$f":"_xlfn.XLOOKUP(VALUE(OU[[#This Row],[Master CC]]),FC_Master[Cost Center],FC_Master[rollup FC '#],OU[[#This Row],[Master CC]])","v":1410040100}]
[141,"155CRS Law Library Technical Services",10000666,"155LwLibTch",null,null,null,null,null,null,null,null,null,null,null,null,null,null,null,"1","2023-10-01","9999-12-31","2023-09-19","PEPPERA","155JsPln Data Research and Planning","10054376","155JsPln DRP","1550180001",155,{"$f":"_xlfn.XLOOKUP(VALUE(OU[[#This Row],[Master CC]]),FC_Master[Cost Center],FC_Master[rollup FC '#],OU[[#This Row],[Master CC]])","v":1550180001}]
[155,"155JsPln Data Research and Planning",10054376,"155JsPln DRP",null,null,null,null,null,null,null,null,null,null,null,null,null,null,null,"1","2015-03-10","9999-12-31","2015-03-24","GIPSONK","155JsPln Justice and Public Safety Adm","10000655","155JPSAdm","1550010001",155,{"$f":"_xlfn.XLOOKUP(VALUE(OU[[#This Row],[Master CC]]),FC_Master[Cost Center],FC_Master[rollup FC '#],OU[[#This Row],[Master CC]])","v":1550010001}]
[155,"155JsPln Justice and Public Safety Adm",10000655,"155JPSAdm",null,null,null,null,null,null,null,null,null,null,null,null,null,null,null,"1","2015-03-10","9999-12-31","2015-03-24","GIPSONK","155JsPln Planning","10000660","155Planning","1550010001",155,{"$f":"_xlfn.XLOOKUP(VALUE(OU[[#This Row],[Master CC]]),FC_Master[Cost Center],FC_Master[rollup FC '#],OU[[#This Row],[Master CC]])","v":1550010001}]
[155,"155JsPln Planning",10000660,"155Planning",null,null,null,null,null,null,null,null,null,null,null,null,null,null,null,"1","2023-10-01","9999-12-31","2023-09-19","PEPPERA","155JsPln Reentry Resources","10053376","155JsPlnRtRs","1550040001",155,{"$f":"_xlfn.XLOOKUP(VALUE(OU[[#This Row],[Master CC]]),FC_Master[Cost Center],FC_Master[rollup FC '#],OU[[#This Row],[Master CC]])","v":1550040001}]
[155,"155JsPln Reentry Resources",10053376,"155JsPlnRtRs",null,null,null,null,null,null,null,null,null,null,null,null,null,null,null,"1","2015-03-10","9999-12-31","2015-03-24","GIPSONK","155Justice Planning","10000724","155JsPln","1550010001",155,{"$f":"_xlfn.XLOOKUP(VALUE(OU[[#This Row],[Master CC]]),FC_Master[Cost Center],FC_Master[rollup FC '#],OU[[#This Row],[Master CC]])","v":1550010001}]
[155,"155Justice Planning",10000724,"155JsPln",null,null,null,null,null,null,null,null,null,null,null,null,null,null,null,"1","2023-04-16","9999-12-31","2023-05-15","SURKAM","158HHS - Pflugerville Cmty Ctr OS","10056251","158PCCOS","1580130001",158,{"$f":"_xlfn.XLOOKUP(VALUE(OU[[#This Row],[Master CC]]),FC_Master[Cost Center],FC_Master[rollup FC '#],OU[[#This Row],[Master CC]])","v":1580130001}]
[158,"158HHS - Pflugerville Cmty Ctr OS",10056251,"158PCCOS",null,null,null,null,null,null,null,null,null,null,null,null,null,null,null,"1","2014-10-01","9999-12-31","2015-01-07","PFAFFEA","158HHS 4-H Capital","10000785","158Four-HCap","1580420001",158,{"$f":"_xlfn.XLOOKUP(VALUE(OU[[#This Row],[Master CC]]),FC_Master[Cost Center],FC_Master[rollup FC '#],OU[[#This Row],[Master CC]])","v":1580420001}]
[158,"158HHS 4-H Capital",10000785,"158Four-HCap",null,null,null,null,null,null,null,null,null,null,null,null,null,null,null,"1","2019-06-10","9999-12-31","2019-06-13","PFAFFEA","158HHS Accounting","10053601","158Actg","1580030001",158,{"$f":"_xlfn.XLOOKUP(VALUE(OU[[#This Row],[Master CC]]),FC_Master[Cost Center],FC_Master[rollup FC '#],OU[[#This Row],[Master CC]])","v":1580030001}]
[158,"158HHS Accounting",10053601,"158Actg",null,null,null,null,null,null,null,null,null,null,null,null,null,null,null,"1","1950-01-01","9999-12-31","2012-05-15","DATACONVERSI","158HHS AgriLife - Adm Mgr","10000778","158AgriMgr","1580420001",158,{"$f":"_xlfn.XLOOKUP(VALUE(OU[[#This Row],[Master CC]]),FC_Master[Cost Center],FC_Master[rollup FC '#],OU[[#This Row],[Master CC]])","v":1580420001}]
[158,"158HHS AgriLife - Adm Mgr",10000778,"158AgriMgr",null,null,null,null,null,null,null,null,null,null,null,null,null,null,null,"1","1950-01-01","9999-12-31","2012-05-15","DATACONVERSI","158HHS AgriLife - Adm Staff","10000120","158AdmStf","1580420001",158,{"$f":"_xlfn.XLOOKUP(VALUE(OU[[#This Row],[Master CC]]),FC_Master[Cost Center],FC_Master[rollup FC '#],OU[[#This Row],[Master CC]])","v":1580420001}]
[158,"158HHS AgriLife - Adm Staff",10000120,"158AdmStf",null,null,null,null,null,null,null,null,null,null,null,null,null,null,null,"1","2017-08-14","9999-12-31","2017-08-28","BROUSSC","158HHS AmeriCorp","10000123","158Americorp","1580420001",158,{"$f":"_xlfn.XLOOKUP(VALUE(OU[[#This Row],[Master CC]]),FC_Master[Cost Center],FC_Master[rollup FC '#],OU[[#This Row],[Master CC]])","v":1580420001}]
[158,"158HHS AmeriCorp",10000123,"158Americorp",null,null,null,null,null,null,null,null,null,null,null,null,null,null,null,"1","1950-01-01","9999-12-31","2012-05-15","DATACONVERSI","158HHS CDBG - Planning","10000768","158CDBG","1580060001",158,{"$f":"_xlfn.XLOOKUP(VALUE(OU[[#This Row],[Master CC]]),FC_Master[Cost Center],FC_Master[rollup FC '#],OU[[#This Row],[Master CC]])","v":1580060001}]
[158,"158HHS CDBG - Planning",10000768,"158CDBG",null,null,null,null,null,null,null,null,null,null,null,null,null,null,null,"1","2023-08-16","9999-12-31","2023-08-16","SURKAM","158HHS CDBG - Planning Mgr","10000697","158CDBGMgr","1580060001",158,{"$f":"_xlfn.XLOOKUP(VALUE(OU[[#This Row],[Master CC]]),FC_Master[Cost Center],FC_Master[rollup FC '#],OU[[#This Row],[Master CC]])","v":1580060001}]
[158,"158HHS CDBG - Planning Mgr",10000697,"158CDBGMgr",null,null,null,null,null,null,null,null,null,null,null,null,null,null,null,"1","2017-10-01","9999-12-31","2017-09-26","FF_STEPHET1","158HHS Chief Deputy","10052026","158HHSChfDp","1580570001",158,{"$f":"_xlfn.XLOOKUP(VALUE(OU[[#This Row],[Master CC]]),FC_Master[Cost Center],FC_Master[rollup FC '#],OU[[#This Row],[Master CC]])","v":1580570001}]
[158,"158HHS Chief Deputy",10052026,"158HHSChfDp",null,null,null,null,null,null,null,null,null,null,null,null,null,null,null,"1","2021-08-01","9999-12-31","2021-07-28","BROUSSC","158HHS Chief Deputy Executive","10054752","158HHSChfExc","1580570001",158,{"$f":"_xlfn.XLOOKUP(VALUE(OU[[#This Row],[Master CC]]),FC_Master[Cost Center],FC_Master[rollup FC '#],OU[[#This Row],[Master CC]])","v":1580570001}]
[158,"158HHS Chief Deputy Executive",10054752,"158HHSChfExc",null,null,null,null,null,null,null,null,null,null,null,null,null,null,null,"1","1950-01-01","9999-12-31","2012-05-15","DATACONVERSI","158HHS Coming of Age","10000677","158CmgAge","1580300001",158,{"$f":"_xlfn.XLOOKUP(VALUE(OU[[#This Row],[Master CC]]),FC_Master[Cost Center],FC_Master[rollup FC '#],OU[[#This Row],[Master CC]])","v":1580300001}]
[158,"158HHS Coming of Age",10000677,"158CmgAge",null,null,null,null,null,null,null,null,null,null,null,null,null,null,null,"1","2014-10-01","9999-12-31","2014-09-26","BROUSSC","158HHS Coming of Age Mgr","10000754","158CmgAgeMgr","1580300001",158,{"$f":"_xlfn.XLOOKUP(VALUE(OU[[#This Row],[Master CC]]),FC_Master[Cost Center],FC_Master[rollup FC '#],OU[[#This Row],[Master CC]])","v":1580300001}]
[158,"158HHS Coming of Age Mgr",10000754,"158CmgAgeMgr",null,null,null,null,null,null,null,null,null,null,null,null,null,null,null,"1","2023-10-01","9999-12-31","2023-10-16","HUTCHIT","158HHS Community Coordination","10056677","158CmtyC","1580260001",158,{"$f":"_xlfn.XLOOKUP(VALUE(OU[[#This Row],[Master CC]]),FC_Master[Cost Center],FC_Master[rollup FC '#],OU[[#This Row],[Master CC]])","v":1580260001}]
[158,"158HHS Community Coordination",10056677,"158CmtyC",null,null,null,null,null,null,null,null,null,null,null,null,null,null,null,"1","2016-10-01","9999-12-31","2016-10-12","PFAFFEA","158HHS Community Liaison","10000751","158CmtyLs","1580510001",158,{"$f":"_xlfn.XLOOKUP(VALUE(OU[[#This Row],[Master CC]]),FC_Master[Cost Center],FC_Master[rollup FC '#],OU[[#This Row],[Master CC]])","v":1580510001}]
[158,"158HHS Community Liaison",10000751,"158CmtyLs",null,null,null,null,null,null,null,null,null,null,null,null,null,null,null,"1","1950-01-01","9999-12-31","2012-05-15","DATACONVERSI","158HHS Community Service Adm","10000674","158CmtySv","1580270001",158,{"$f":"_xlfn.XLOOKUP(VALUE(OU[[#This Row],[Master CC]]),FC_Master[Cost Center],FC_Master[rollup FC '#],OU[[#This Row],[Master CC]])","v":1580270001}]
[158,"158HHS Community Service Adm",10000674,"158CmtySv",null,null,null,null,null,null,null,null,null,null,null,null,null,null,null,"1","2019-05-01","9999-12-31","2019-05-03","BROUSSC","158HHS Community Service Director","10000750","158CmtySvDir","1580270001",158,{"$f":"_xlfn.XLOOKUP(VALUE(OU[[#This Row],[Master CC]]),FC_Master[Cost Center],FC_Master[rollup FC '#],OU[[#This Row],[Master CC]])","v":1580270001}]
[158,"158HHS Community Service Director",10000750,"158CmtySvDir",null,null,null,null,null,null,null,null,null,null,null,null,null,null,null,"1","2020-03-09","9999-12-31","2020-03-23","STEINE","158HHS Contract","10000696","158Cntrc","1580030001",158,{"$f":"_xlfn.XLOOKUP(VALUE(OU[[#This Row],[Master CC]]),FC_Master[Cost Center],FC_Master[rollup FC '#],OU[[#This Row],[Master CC]])","v":1580030001}]
[158,"158HHS Contract",10000696,"158Cntrc",null,null,null,null,null,null,null,null,null,null,null,null,null,null,null,"1","2020-10-01","9999-12-31","2021-08-10","BRADENA1","158HHS County Executive","10000671","158HHSCE","1580010001",158,{"$f":"_xlfn.XLOOKUP(VALUE(OU[[#This Row],[Master CC]]),FC_Master[Cost Center],FC_Master[rollup FC '#],OU[[#This Row],[Master CC]])","v":1580010001}]
[158,"158HHS County Executive",10000671,"158HHSCE",null,null,null,null,null,null,null,null,null,null,null,null,null,null,null,"1","2019-05-01","9999-12-31","2019-05-03","BROUSSC","158HHS County Executive Adm","10000749","158ExcAdm","1580010001",158,{"$f":"_xlfn.XLOOKUP(VALUE(OU[[#This Row],[Master CC]]),FC_Master[Cost Center],FC_Master[rollup FC '#],OU[[#This Row],[Master CC]])","v":1580010001}]
[158,"158HHS County Executive Adm",10000749,"158ExcAdm",null,null,null,null,null,null,null,null,null,null,null,null,null,null,null,"1","2019-05-01","9999-12-31","2019-05-03","BROUSSC","158HHS County Extension Director","10000779","158CoExtDir","1580420001",158,{"$f":"_xlfn.XLOOKUP(VALUE(OU[[#This Row],[Master CC]]),FC_Master[Cost Center],FC_Master[rollup FC '#],OU[[#This Row],[Master CC]])","v":1580420001}]
[158,"158HHS County Extension Director",10000779,"158CoExtDir",null,null,null,null,null,null,null,null,null,null,null,null,null,null,null,"1","1950-01-01","9999-12-31","2012-05-15","DATACONVERSI","158HHS Deaf Services","10000682","158Deaf","1580310001",158,{"$f":"_xlfn.XLOOKUP(VALUE(OU[[#This Row],[Master CC]]),FC_Master[Cost Center],FC_Master[rollup FC '#],OU[[#This Row],[Master CC]])","v":1580310001}]
[158,"158HHS Deaf Services",10000682,"158Deaf",null,null,null,null,null,null,null,null,null,null,null,null,null,null,null,"1","1950-01-01","9999-12-31","2012-05-15","DATACONVERSI","158HHS Deaf Services - Temp Staffing","10000683","158DeafTemp","1580310001",158,{"$f":"_xlfn.XLOOKUP(VALUE(OU[[#This Row],[Master CC]]),FC_Master[Cost Center],FC_Master[rollup FC '#],OU[[#This Row],[Master CC]])","v":1580310001}]
[158,"158HHS Deaf Services - Temp Staffing",10000683,"158DeafTemp",null,{"$f":"'Details (PB5)'!D5","v":0},null,null,null,null,null,null,null,null,null,null,null,null,null,"1","1950-01-01","9999-12-31","2012-05-15","DATACONVERSI","158HHS Deaf Services Mgr","10000781","158DeafMgr","1580310001",158,{"$f":"_xlfn.XLOOKUP(VALUE(OU[[#This Row],[Master CC]]),FC_Master[Cost Center],FC_Master[rollup FC '#],OU[[#This Row],[Master CC]])","v":1580310001}]
[{"$f":"AC1207","v":158},{"$f":"Y1207","v":"158HHS Deaf Services Mgr"},10000781,{"$f":"AA1207","v":"158DeafMgr"},null,null,null,null,null,null,null,null,null,null,null,null,null,null,null,"1","2023-10-01","9999-12-31","2023-10-16","HUTCHIT","158HHS Early Childhood","10000685","158Early","1580210001",158,{"$f":"_xlfn.XLOOKUP(VALUE(OU[[#This Row],[Master CC]]),FC_Master[Cost Center],FC_Master[rollup FC '#],OU[[#This Row],[Master CC]])","v":1580210001}]
[158,"158HHS Early Childhood",10000685,"158Early",null,null,null,null,null,null,null,null,null,null,null,null,null,null,null,"1","2021-08-01","9999-12-31","2021-07-29","STEINE","158HHS Facilities","10000672","158HHSFcl","1580050001",158,{"$f":"_xlfn.XLOOKUP(VALUE(OU[[#This Row],[Master CC]]),FC_Master[Cost Center],FC_Master[rollup FC '#],OU[[#This Row],[Master CC]])","v":1580050001}]
[158,"158HHS Facilities",10000672,"158HHSFcl",null,null,null,null,null,null,null,null,null,null,null,null,null,null,null,"1","2014-10-01","9999-12-31","2015-01-07","PFAFFEA","158HHS Family & Consumer Science","10000124","158Fam&CmrSc","1580420001",158,{"$f":"_xlfn.XLOOKUP(VALUE(OU[[#This Row],[Master CC]]),FC_Master[Cost Center],FC_Master[rollup FC '#],OU[[#This Row],[Master CC]])","v":1580420001}]
[158,"158HHS Family & Consumer Science",10000124,"158Fam&CmrSc",null,null,null,null,null,null,null,null,null,null,null,null,null,null,null,"1","2023-10-01","9999-12-31","2023-10-16","HUTCHIT","158HHS Family First","10000688","158FamFirst","1580230001",158,{"$f":"_xlfn.XLOOKUP(VALUE(OU[[#This Row],[Master CC]]),FC_Master[Cost Center],FC_Master[rollup FC '#],OU[[#This Row],[Master CC]])","v":1580230001}]
[158,"158HHS Family First",10000688,"158FamFirst",null,null,null,null,null,null,null,null,null,null,null,null,null,null,null,"1","1950-01-01","9999-12-31","2012-05-15","DATACONVERSI","158HHS Family Support Services Adm","10000698","158FSSAdm","1580100001",158,{"$f":"_xlfn.XLOOKUP(VALUE(OU[[#This Row],[Master CC]]),FC_Master[Cost Center],FC_Master[rollup FC '#],OU[[#This Row],[Master CC]])","v":1580100001}]
[158,"158HHS Family Support Services Adm",10000698,"158FSSAdm",null,null,null,null,null,null,null,null,null,null,null,null,null,null,null,"1","2019-05-01","9999-12-31","2019-05-03","BROUSSC","158HHS Family Support Sv Director","10000769","158FSSDir","1580100001",158,{"$f":"_xlfn.XLOOKUP(VALUE(OU[[#This Row],[Master CC]]),FC_Master[Cost Center],FC_Master[rollup FC '#],OU[[#This Row],[Master CC]])","v":1580100001}]
[158,"158HHS Family Support Sv Director",10000769,"158FSSDir",null,null,null,null,null,null,null,null,null,null,null,null,null,null,null,"1","1950-01-01","9999-12-31","2012-05-15","DATACONVERSI","158HHS Finance","10000695","158Fin","1580030001",158,{"$f":"_xlfn.XLOOKUP(VALUE(OU[[#This Row],[Master CC]]),FC_Master[Cost Center],FC_Master[rollup FC '#],OU[[#This Row],[Master CC]])","v":1580030001}]
[158,"158HHS Finance",10000695,"158Fin",null,null,null,null,null,null,null,null,null,null,null,null,null,null,null,"1","2016-10-01","9999-12-31","2016-10-12","PFAFFEA","158HHS Finance Manager","10000694","158FinMgr","1580030001",158,{"$f":"_xlfn.XLOOKUP(VALUE(OU[[#This Row],[Master CC]]),FC_Master[Cost Center],FC_Master[rollup FC '#],OU[[#This Row],[Master CC]])","v":1580030001}]
[158,"158HHS Finance Manager",10000694,"158FinMgr",null,null,null,null,null,null,null,null,null,null,null,null,null,null,null,"1","1950-01-01","9999-12-31","2012-05-15","DATACONVERSI","158HHS FSS - Case Management Mgr","10000700","158FSSCMMgr","1580110001",158,{"$f":"_xlfn.XLOOKUP(VALUE(OU[[#This Row],[Master CC]]),FC_Master[Cost Center],FC_Master[rollup FC '#],OU[[#This Row],[Master CC]])","v":1580110001}]
[158,"158HHS FSS - Case Management Mgr",10000700,"158FSSCMMgr",null,null,null,null,null,null,null,null,null,null,null,null,null,null,null,"1","1950-01-01","9999-12-31","2012-05-15","DATACONVERSI","158HHS FSS - Case Mgmt Coordinators","10000699","158FSSCMC","1580110001",158,{"$f":"_xlfn.XLOOKUP(VALUE(OU[[#This Row],[Master CC]]),FC_Master[Cost Center],FC_Master[rollup FC '#],OU[[#This Row],[Master CC]])","v":1580110001}]
[158,"158HHS FSS - Case Mgmt Coordinators",10000699,"158FSSCMC",null,null,null,null,null,null,null,null,null,null,null,null,null,null,null,"1","2021-05-01","9999-12-31","2021-05-07","STEINE","158HHS FSS - Central Austin Cmty Ctr","10000702","158FSSCACC","1580150001",158,{"$f":"_xlfn.XLOOKUP(VALUE(OU[[#This Row],[Master CC]]),FC_Master[Cost Center],FC_Master[rollup FC '#],OU[[#This Row],[Master CC]])","v":1580150001}]
[158,"158HHS FSS - Central Austin Cmty Ctr",{"$f":"VALUE(Z1218)","v":10000702},"158FSSCACC",null,null,null,null,null,null,null,null,null,null,null,null,null,null,null,"1","2021-05-01","9999-12-31","2021-05-07","STEINE","158HHS FSS - Central Austin Cmty Ctr Mgr","10000771","158FSSCACC","1580150001",158,{"$f":"_xlfn.XLOOKUP(VALUE(OU[[#This Row],[Master CC]]),FC_Master[Cost Center],FC_Master[rollup FC '#],OU[[#This Row],[Master CC]])","v":1580150001}]
[158,"158HHS FSS - Central Austin Cmty Ctr Mgr",10000771,"158FSSCACC",null,null,null,null,null,null,null,null,null,null,null,null,null,null,null,"1","2021-10-16","9999-12-31","2021-10-26","BROUSSC","158HHS FSS - Central Austin Cmty Ctr OS","10000706","158FSSCACCOS","1580150001",158,{"$f":"_xlfn.XLOOKUP(VALUE(OU[[#This Row],[Master CC]]),FC_Master[Cost Center],FC_Master[rollup FC '#],OU[[#This Row],[Master CC]])","v":1580150001}]
[158,"158HHS FSS - Central Austin Cmty Ctr OS",10000706,"158FSSCACCOS",null,null,null,null,null,null,null,null,null,null,null,null,null,null,null,"1","1950-01-01","9999-12-31","2012-05-15","DATACONVERSI","158HHS FSS - East Rural Cmty Ctr","10000703","158FSSERC","1580120001",158,{"$f":"_xlfn.XLOOKUP(VALUE(OU[[#This Row],[Master CC]]),FC_Master[Cost Center],FC_Master[rollup FC '#],OU[[#This Row],[Master CC]])","v":1580120001}]
[158,"158HHS FSS - East Rural Cmty Ctr",10000703,"158FSSERC",null,null,null,null,null,null,null,null,null,null,null,null,null,null,null,"1","1950-01-01","9999-12-31","2012-05-15","DATACONVERSI","158HHS FSS - East Rural Cmty Ctr Mgr","10000772","158FSSEMgr","1580120001",158,{"$f":"_xlfn.XLOOKUP(VALUE(OU[[#This Row],[Master CC]]),FC_Master[Cost Center],FC_Master[rollup FC '#],OU[[#This Row],[Master CC]])","v":1580120001}]
[158,"158HHS FSS - East Rural Cmty Ctr Mgr",10000772,"158FSSEMgr",null,null,null,null,null,null,null,null,null,null,null,null,null,null,null,"1","1950-01-01","9999-12-31","2012-05-15","DATACONVERSI","158HHS FSS - North Rural Cmty Ctr","10000705","158FSSNRC","1580130001",158,{"$f":"_xlfn.XLOOKUP(VALUE(OU[[#This Row],[Master CC]]),FC_Master[Cost Center],FC_Master[rollup FC '#],OU[[#This Row],[Master CC]])","v":1580130001}]
[158,"158HHS FSS - North Rural Cmty Ctr",10000705,"158FSSNRC",null,null,null,null,null,null,null,null,null,null,null,null,null,null,null,"1","2015-05-16","9999-12-31","2015-06-26","BROUSSC","158HHS FSS - North Rural Cmty Ctr Mgr","10000774","158FSSNMgr","1580130001",158,{"$f":"_xlfn.XLOOKUP(VALUE(OU[[#This Row],[Master CC]]),FC_Master[Cost Center],FC_Master[rollup FC '#],OU[[#This Row],[Master CC]])","v":1580130001}]
[158,"158HHS FSS - North Rural Cmty Ctr Mgr",10000774,"158FSSNMgr",null,null,null,null,null,null,null,null,null,null,null,null,null,null,null,"1","1950-01-01","9999-12-31","2012-05-15","DATACONVERSI","158HHS FSS - NW Rural Cmty Ctr","10000707","158FSSNwRC","1580140001",158,{"$f":"_xlfn.XLOOKUP(VALUE(OU[[#This Row],[Master CC]]),FC_Master[Cost Center],FC_Master[rollup FC '#],OU[[#This Row],[Master CC]])","v":1580140001}]
[158,"158HHS FSS - NW Rural Cmty Ctr",10000707,"158FSSNwRC",null,null,null,null,null,null,null,null,null,null,null,null,null,null,null,"1","2015-06-19","9999-12-31","2015-06-29","PFAFFEA","158HHS FSS - NW Rural Cmty Ctr Mgr","10000776","158FSSNWMgr","1580140001",158,{"$f":"_xlfn.XLOOKUP(VALUE(OU[[#This Row],[Master CC]]),FC_Master[Cost Center],FC_Master[rollup FC '#],OU[[#This Row],[Master CC]])","v":1580140001}]
[158,"158HHS FSS - NW Rural Cmty Ctr Mgr",10000776,"158FSSNWMgr",null,null,null,null,null,null,null,null,null,null,null,null,null,null,null,"1","1950-01-01","9999-12-31","2012-05-15","DATACONVERSI","158HHS FSS - South Rural Cmty Ctr","10000701","158FSSSRC","1580170001",158,{"$f":"_xlfn.XLOOKUP(VALUE(OU[[#This Row],[Master CC]]),FC_Master[Cost Center],FC_Master[rollup FC '#],OU[[#This Row],[Master CC]])","v":1580170001}]
[158,"158HHS FSS - South Rural Cmty Ctr",10000701,"158FSSSRC",null,null,null,null,null,null,null,null,null,null,null,null,null,null,null,"1","1950-01-01","9999-12-31","2012-05-15","DATACONVERSI","158HHS FSS - South Rural Cmty Ctr Mgr","10000770","158FSSMgr","1580170001",158,{"$f":"_xlfn.XLOOKUP(VALUE(OU[[#This Row],[Master CC]]),FC_Master[Cost Center],FC_Master[rollup FC '#],OU[[#This Row],[Master CC]])","v":1580170001}]
[158,"158HHS FSS - South Rural Cmty Ctr Mgr",10000770,"158FSSMgr",null,null,null,null,null,null,null,null,null,null,null,null,null,null,null,"1","2021-09-01","9999-12-31","2021-08-30","BROUSSC","158HHS FSS - Supportive Case Management","10054778","158FSSSpCase","1580150001",158,{"$f":"_xlfn.XLOOKUP(VALUE(OU[[#This Row],[Master CC]]),FC_Master[Cost Center],FC_Master[rollup FC '#],OU[[#This Row],[Master CC]])","v":1580150001}]
[158,"158HHS FSS - Supportive Case Management",10054778,"158FSSSpCase",null,null,null,null,null,null,null,null,null,null,null,null,null,null,null,"1","1950-01-01","9999-12-31","2012-05-15","DATACONVERSI","158HHS FSS - West Rural Cmty Ctr","10000704","158FSSWRC","1580180001",158,{"$f":"_xlfn.XLOOKUP(VALUE(OU[[#This Row],[Master CC]]),FC_Master[Cost Center],FC_Master[rollup FC '#],OU[[#This Row],[Master CC]])","v":1580180001}]
[158,"158HHS FSS - West Rural Cmty Ctr",10000704,"158FSSWRC",null,null,null,null,null,null,null,null,null,null,null,null,null,null,null,"1","1950-01-01","9999-12-31","2012-05-15","DATACONVERSI","158HHS FSS - West Rural Cmty Ctr Mgr","10000773","158FSSWMgr","1580180001",158,{"$f":"_xlfn.XLOOKUP(VALUE(OU[[#This Row],[Master CC]]),FC_Master[Cost Center],FC_Master[rollup FC '#],OU[[#This Row],[Master CC]])","v":1580180001}]
[158,"158HHS FSS - West Rural Cmty Ctr Mgr",10000773,"158FSSWMgr",null,null,null,null,null,null,null,null,null,null,null,null,null,null,null,"1","2021-10-16","9999-12-31","2021-10-26","BROUSSC","158HHS FSS-CentralAustin Cmty Ctr OS Mgr","10000775","158FSSCACCM","1580150001",158,{"$f":"_xlfn.XLOOKUP(VALUE(OU[[#This Row],[Master CC]]),FC_Master[Cost Center],FC_Master[rollup FC '#],OU[[#This Row],[Master CC]])","v":1580150001}]
[158,"158HHS FSS-CentralAustin Cmty Ctr OS Mgr",10000775,"158FSSCACCM",null,null,null,null,null,null,null,null,null,null,null,null,null,null,null,"1","1950-01-01","9999-12-31","2012-05-15","DATACONVERSI","158HHS Healthy Families 1","10000686","158HF1","1580240001",158,{"$f":"_xlfn.XLOOKUP(VALUE(OU[[#This Row],[Master CC]]),FC_Master[Cost Center],FC_Master[rollup FC '#],OU[[#This Row],[Master CC]])","v":1580240001}]
[158,"158HHS Healthy Families 1",10000686,"158HF1",null,null,null,null,null,null,null,null,null,null,null,null,null,null,null,"1","1950-01-01","9999-12-31","2012-05-15","DATACONVERSI","158HHS Healthy Families 1 Mgr","10000758","158HFMgr1","1580240001",158,{"$f":"_xlfn.XLOOKUP(VALUE(OU[[#This Row],[Master CC]]),FC_Master[Cost Center],FC_Master[rollup FC '#],OU[[#This Row],[Master CC]])","v":1580240001}]
[158,"158HHS Healthy Families 1 Mgr",10000758,"158HFMgr1",null,null,null,null,null,null,null,null,null,null,null,null,null,null,null,"1","1950-01-01","9999-12-31","2012-05-15","DATACONVERSI","158HHS Healthy Families 2","10000687","158HF2","1580240001",158]
[158,"158HHS Healthy Families 2",10000687,"158HF2",null,null,null,null,null,null,null,null,null,null,null,null,null,null,null,"1","2014-10-01","9999-12-31","2014-09-26","BROUSSC","158HHS Healthy Families 2 Mgr","10000759","158HFMgr2","1580240001",158]
[158,"158HHS Healthy Families 2 Mgr",10000759,"158HFMgr2",null,null,null,null,null,null,null,null,null,null,null,null,null,null,null,"1","2013-11-18","9999-12-31","2013-12-16","LAMROLC","158HHS Healthy Families Expansion Pg","10050776","158HFExpsnPg","1580240001",158]
[158,"158HHS Healthy Families Expansion Pg",10050776,"158HFExpsnPg",null,null,null,null,null,null,null,null,null,null,null,null,null,null,null,"1","2014-10-01","9999-12-31","2015-01-07","PFAFFEA","158HHS Horticulture","10000122","158Hort","1580420001",158]
[158,"158HHS Horticulture",10000122,"158Hort",null,null,null,null,null,null,null,null,null,null,null,null,null,null,null,"1","1950-01-01","9999-12-31","2012-05-15","DATACONVERSI","158HHS Housing Services","10000678","158Hsg","1580320001",158]
[158,"158HHS Housing Services",10000678,"158Hsg",null,null,null,null,null,null,null,null,null,null,null,null,null,null,null,"1","1950-01-01","9999-12-31","2012-05-15","DATACONVERSI","158HHS Housing Services Adm","10000756","158HsgAdm","1580320001",158]
[158,"158HHS Housing Services Adm",10000756,"158HsgAdm",null,null,null,null,null,null,null,null,null,null,null,null,null,null,null,"1","1950-01-01","9999-12-31","2012-05-15","DATACONVERSI","158HHS Housing Services Carpenter 1","10000680","158Crpntr1","1580320001",158]
[158,"158HHS Housing Services Carpenter 1",10000680,"158Crpntr1",null,null,null,null,null,null,null,null,null,null,null,null,null,null,null,"1","2020-03-25","9999-12-31","2020-03-26","STEINE","158HHS Housing Services Carpenter 2","10000681","158Crpntr2","1580320001",158]
[158,"158HHS Housing Services Carpenter 2",10000681,"158Crpntr2",null,null,null,null,null,null,null,null,null,null,null,null,null,null,null,"1","2014-10-01","9999-12-31","2014-09-26","BROUSSC","158HHS Housing Services Mgr","10000755","158HsgMgr","1580320001",158]
[158,"158HHS Housing Services Mgr",10000755,"158HsgMgr",null,null,null,null,null,null,null,null,null,null,null,null,null,null,null,"1","2013-01-09","9999-12-31","2013-01-09","LAMROLC","158HHS Housing Services Program","10050276","158HsgPg","1580320001",158]
[158,"158HHS Housing Services Program",10050276,"158HsgPg",null,null,null,null,null,null,null,null,null,null,null,null,null,null,null,"1","1950-01-01","9999-12-31","2012-05-15","DATACONVERSI","158HHS Housing Services Supervisor 1","10000679","158HsgSupv1","1580320001",158]
[158,"158HHS Housing Services Supervisor 1",10000679,"158HsgSupv1",null,null,null,null,null,null,null,null,null,null,null,null,null,null,null,"1","1950-01-01","9999-12-31","2012-05-15","DATACONVERSI","158HHS Housing Services Supervisor 2","10000728","158HsgSupv2","1580320001",158]
[158,"158HHS Housing Services Supervisor 2",10000728,"158HsgSupv2",null,null,null,null,null,null,null,null,null,null,null,null,null,null,null,"1","1950-01-01","9999-12-31","2012-05-15","DATACONVERSI","158HHS Human Resources","10000693","158HR","1580020001",158]
[158,"158HHS Human Resources",10000693,"158HR",null,null,null,null,null,null,null,null,null,null,null,null,null,null,null,"1","2016-10-01","9999-12-31","2016-10-12","PFAFFEA","158HHS Human Resources Mgr","10000767","158HRMgr","1580020001",158]
[158,"158HHS Human Resources Mgr",10000767,"158HRMgr",null,null,null,null,null,null,null,null,null,null,null,null,null,null,null,"1","2023-08-30","9999-12-31","2023-08-31","SURKAM","158HHS IT","10056476","158HHSIT","1580570001",158]
[158,"158HHS IT",10056476,"158HHSIT",null,null,null,null,null,null,null,null,null,null,null,null,null,null,null,"1","1950-01-01","9999-12-31","2012-05-15","DATACONVERSI","158HHS Neighborhood Conf Cmte","10000675","158NCC","1580280001",158]
[158,"158HHS Neighborhood Conf Cmte",10000675,"158NCC",null,null,null,null,null,null,null,null,null,null,null,null,null,null,null,"1","2014-10-01","9999-12-31","2014-09-26","BROUSSC","158HHS Neighborhood Conf Cmte Mgr","10000752","158NCCMgr","1580280001",158]
[158,"158HHS Neighborhood Conf Cmte Mgr",10000752,"158NCCMgr",null,null,null,null,null,null,null,null,null,null,null,null,null,null,null,"1","1950-01-01","9999-12-31","2012-05-15","DATACONVERSI","158HHS Office of Children's Sv Adm","10000684","158CSrAdm","1580220001",158]
[158,"158HHS Office of Children's Sv Adm",10000684,"158CSrAdm",null,null,null,null,null,null,null,null,null,null,null,null,null,null,null,"1","2019-05-01","9999-12-31","2019-05-03","BROUSSC","158HHS Office of Children's Sv Director","10000757","158CSrDir","1580190001",158]
[158,"158HHS Office of Children's Sv Director",10000757,"158CSrDir",null,null,null,null,null,null,null,null,null,null,null,null,null,null,null,"1","2023-10-01","9999-12-31","2023-10-17","SURKAM","158HHS PIR Wraparound","10056630","158HHSWA","1580220001",158]
[158,"158HHS PIR Wraparound",10056630,"158HHSWA",null,null,null,null,null,null,null,null,null,null,null,null,null,null,null,"1","2023-10-01","9999-12-31","2023-10-16","HUTCHIT","158HHS Practicum Edu & Quality Assurance","10056676","158HHSPEQA","1580210001",158]
[158,"158HHS Practicum Edu & Quality Assurance",10056676,"158HHSPEQA",null,null,null,null,null,null,null,null,null,null,null,null,null,null,null,"1","1950-01-01","9999-12-31","2012-05-15","DATACONVERSI","158HHS Prevention & Intervention","10000689","158Prvntn","1580220001",158]
[158,"158HHS Prevention & Intervention",10000689,"158Prvntn",null,null,null,null,null,null,null,null,null,null,null,null,null,null,null,"1","1950-01-01","9999-12-31","2012-05-15","DATACONVERSI","158HHS Prevention & Intervention Mgr","10000761","158PrvntnMgr","1580220001",158]
[158,"158HHS Prevention & Intervention Mgr",10000761,"158PrvntnMgr",null,null,null,null,null,null,null,null,null,null,null,null,null,null,null,"1","1950-01-01","9999-12-31","2012-05-15","DATACONVERSI","158HHS Public Health Adm COA","10000708","158PbcHlh","1580080001",158]
[158,"158HHS Public Health Adm COA",10000708,"158PbcHlh",null,null,null,null,null,null,null,null,null,null,null,null,null,null,null,"1","2019-05-01","9999-12-31","2019-05-03","BROUSSC","158HHS Public Health Mgr","10000673","158pbchlhMgr","1580070001",158]
[158,"158HHS Public Health Mgr",10000673,"158pbchlhMgr",null,null,null,null,null,null,null,null,null,null,null,null,null,null,null,"1","1950-01-01","9999-12-31","2012-05-15","DATACONVERSI","158HHS Research and Planning","10000748","158RsPl","1580040001",158]
[158,"158HHS Research and Planning",10000748,"158RsPl",null,null,null,null,null,null,null,null,null,null,null,null,null,null,null,"1","2019-05-01","9999-12-31","2019-05-03","BROUSSC","158HHS Research and Planning Director","10000691","158RsPlDir","1580040001",158]
[158,"158HHS Research and Planning Director",10000691,"158RsPlDir",null,null,null,null,null,null,null,null,null,null,null,null,null,null,null,"1","1950-01-01","9999-12-31","2012-05-15","DATACONVERSI","158HHS Research and Planning Mgr","10000692","158RsPlMgr","1580040001",158]
[158,"158HHS Research and Planning Mgr",10000692,"158RsPlMgr",null,null,null,null,null,null,null,null,null,null,null,null,null,null,null,"1","1950-01-01","9999-12-31","2012-05-15","DATACONVERSI","158HHS Research and Planning Planner","10000766","158RsPlPln","1580040001",158]
[158,"158HHS Research and Planning Planner",10000766,"158RsPlPln",null,null,null,null,null,null,null,null,null,null,null,null,null,null,null,"1","1950-01-01","9999-12-31","2012-05-15","DATACONVERSI","158HHS Research and Planning Sr Planner","10000765","158RsPlSr","1580040001",158]
[158,"158HHS Research and Planning Sr Planner",10000765,"158RsPlSr",null,null,null,null,null,null,null,null,null,null,null,null,null,null,null,"1","2022-10-01","9999-12-31","2023-04-26","SURKAM","158HHS Supportive Case Management","10056201","158SPCaseM","1580110001",158]
[158,"158HHS Supportive Case Management",10056201,"158SPCaseM",null,null,null,null,null,null,null,null,null,null,null,null,null,null,null,"1","2023-08-14","9999-12-31","2023-08-15","SURKAM","158HHS Supportive Housing","10056451","158HHSSpHsg","1580010001",158]
[158,"158HHS Supportive Housing",10056451,"158HHSSpHsg",null,null,null,null,null,null,null,null,null,null,null,null,null,null,null,"1","1950-01-01","9999-12-31","2012-05-15","DATACONVERSI","158HHS Systems of Care Initiative","10000764","158SysCr","1580260001",158]
[158,"158HHS Systems of Care Initiative",10000764,"158SysCr",null,null,null,null,null,null,null,null,null,null,null,null,null,null,null,"1","1950-01-01","9999-12-31","2012-05-15","DATACONVERSI","158HHS Systems of Care Initiative Mgr","10000763","158SysCrMgr","1580260001",158]
[158,"158HHS Systems of Care Initiative Mgr",10000763,"158SysCrMgr",null,null,null,null,null,null,null,null,null,null,null,null,null,null,null,"1","2020-10-06","9999-12-31","2020-10-27","STEINE","158HHS TCP / TRIAD","10000690","158TCP","1580260001",158]
[158,"158HHS TCP / TRIAD",10000690,"158TCP",null,null,null,null,null,null,null,null,null,null,null,null,null,null,null,"1","2020-10-06","9999-12-31","2020-10-27","STEINE","158HHS TCP / TRIAD Mgr","10000762","158TCPMgr","1580260001",158]
[158,"158HHS TCP / TRIAD Mgr",10000762,"158TCPMgr",null,null,null,null,null,null,null,null,null,null,null,null,null,null,null,"3","2023-10-02","9999-12-31","2023-10-18","GILV","158HHS TCP Wraparound","10000762","158TCPWA","1580260001",158]
[{"$f":"AC1271","v":158},{"$f":"Y1271","v":"158HHS TCP Wraparound"},10000762,{"$f":"AA1271","v":"158TCPWA"},null,null,null,null,null,null,null,null,null,null,null,null,null,null,null,"1","1950-01-01","9999-12-31","2012-05-15","DATACONVERSI","158HHS Unassigned","10000720","158Unasg","1580020001",158]
[158,"158HHS Unassigned",10000720,"158Unasg",null,null,null,null,null,null,null,null,null,null,null,null,null,null,null,"1","1950-01-01","9999-12-31","2012-05-15","DATACONVERSI","158HHS Volunteers","10000709","158Vltrs","1580300001",158]
[158,"158HHS Volunteers",10000709,"158Vltrs",null,null,null,null,null,null,null,null,null,null,null,null,null,null,null,"1","2020-03-16","9999-12-31","2020-05-08","BROUSSC","158HHS Work Based Learning","10000676","158WBL","1580290001",158]
[158,"158HHS Work Based Learning",10000676,"158WBL",null,null,null,null,null,null,null,null,null,null,null,null,null,null,null,"1","2014-10-01","9999-12-31","2014-09-26","BROUSSC","158HHS Work Based Learning Mgr","10000753","158WBLMgr","1580290001",158]
[158,"158HHS Work Based Learning Mgr",10000753,"158WBLMgr",null,null,null,null,null,null,null,null,null,null,null,null,null,null,null,"1","1950-01-01","9999-12-31","2012-05-15","DATACONVERSI","159Emergency Management","10000710","159EmrgMgmt","1590010001",159]
[159,"159Emergency Management",10000710,"159EmrgMgmt",null,null,null,null,null,null,null,null,null,null,null,null,null,null,null,"1","2022-04-29","9999-12-31","2022-05-02","CHANGM","159STAR Flight Administrative","10000711","159Adm","1590010001",159]
[159,"159STAR Flight Administrative",10000711,"159Adm",null,null,null,null,null,null,null,null,null,null,null,null,null,null,null,"1","1950-01-01","9999-12-31","2012-05-15","DATACONVERSI","159STAR Flight Maintenance","10000714","159Mnt","1590060001",159]
[159,"159STAR Flight Maintenance",10000714,"159Mnt",null,null,null,null,null,null,null,null,null,null,null,null,null,null,null,"1","1950-01-01","9999-12-31","2012-05-15","DATACONVERSI","159STAR Flight Nurses","10000715","159FtNrs","1590040001",159]
[159,"159STAR Flight Nurses",10000715,"159FtNrs",null,null,null,null,null,null,null,null,null,null,null,null,null,null,null,"5","2019-10-01","9999-12-31","2019-10-14","KNOEDLT","159STAR Flight Nurses","10000715","159FtNrs","1590040001",159]
[159,"159STAR Flight Nurses",10000715,"159FtNrs",null,null,null,null,null,null,null,null,null,null,null,null,null,null,null,"1","2012-12-16","9999-12-31","2013-01-03","ROSSA","159STAR Flight Nurses and Paramedics","10050227","159FtNrsPrmd","1590050001",159]
[159,"159STAR Flight Nurses and Paramedics",10050227,"159FtNrsPrmd",null,null,null,null,null,null,null,null,null,null,null,null,null,null,null,"1","2023-10-01","9999-12-31","2023-10-12","KOJMM","159STAR Flight Office","10056601","159Office","1590010001",159]
[159,"159STAR Flight Office",{"$f":"VALUE(Z1282)","v":10056601},"159Office",null,null,null,null,null,null,null,null,null,null,null,null,null,null,null,"1","1950-01-01","9999-12-31","2012-05-15","DATACONVERSI","159STAR Flight Operations","10000712","159Ops","1590020001",159]
[159,"159STAR Flight Operations",10000712,"159Ops",null,null,null,null,null,null,null,null,null,null,null,null,null,null,null,"1","1950-01-01","9999-12-31","2012-05-15","DATACONVERSI","159STAR Flight Paramedics","10000716","159FtPrmd","1590050001",159]
[{"$f":"AC1284","v":159},{"$f":"Y1284","v":"159STAR Flight Paramedics"},10000716,{"$f":"AA1284","v":"159FtPrmd"},null,null,null,null,null,null,null,null,null,null,null,null,null,null,null,"1","1950-01-01","9999-12-31","2012-05-15","DATACONVERSI","159STAR Flight Pilots","10000713","159Pilots","1590030001",159]
[159,"159STAR Flight Pilots",10000713,"159Pilots",null,null,null,null,null,null,null,null,null,null,null,null,null,null,null,"1","2023-06-01","9999-12-31","2023-06-05","DANIELD4","159STARFlight Div of Clinical Prfm & Edu","10052926","159DivCP&E","1590100001",159]
[159,"159STARFlight Div of Clinical Prfm & Edu",10052926,"159DivCP&E",null,null,null,null,null,null,null,null,null,null,null,null,null,null,null,"1","1950-01-01","9999-12-31","2012-05-15","DATACONVERSI","193Legally Mandated Fees","10000717","193LMF","1930050001",193]
[193,"193Legally Mandated Fees",10000717,"193LMF",null,null,null,null,null,null,null,null,null,null,null,null,null,null,null,"1","1950-01-01","9999-12-31","2012-06-12","ROSSA","Commissioners Court","10000001","CmmsrCourt"]
[0,"Commissioners Court",10000001,"CmmsrCourt",null,null,null,null,null,null,null,null,null,null,null,null,null,null,null,"1","2023-10-01","9999-12-31","2023-09-18","PEPPERA","Community Legal Sv County Executive","10056551","CLgSCE","1410010001",141]
[141,"Community Legal Sv County Executive",10056551,"CLgSCE",null,null,null,null,null,null,null,null,null,null,null,null,null,null,null,"1","2019-10-01","9999-12-31","2019-10-04","GIPSONK","County Executive Technology & Operations","10000067","CtyExcTchOps","1120010001",112]
[112,"County Executive Technology & Operations",10000067,"CtyExcTchOps",null,null,null,null,null,null,null,null,null,null,null,null,null,null,null,"1","1950-01-01","9999-12-31","2012-05-15","DATACONVERSI","CSCD and Pretrial Services Director","10000459","CSCDPtSDir","1390010001",139]
[139,"CSCD and Pretrial Services Director",10000459,"CSCDPtSDir",null,null,null,null,null,null,null,null,null,null,null,null,null,null,null,"2","2014-08-13","9999-12-31","2014-08-07","VILLARG","CSCD and Pretrial Services Director","10000459","CSCDPtSDir","1390010001",139]
[139,"CSCD and Pretrial Services Director",10000459,"CSCDPtSDir",null,null,null,null,null,null,null,null,null,null,null,null,null,null,null,"1","2023-10-01","9999-12-31","2023-09-19","PEPPERA","Data, Planning and Performance Mgmt","10000493","DPPM","1550010001",155]
[155,"Data, Planning and Performance Mgmt",10000493,"DPPM",null,null,null,null,null,null,null,null,null,null,null,null,null,null,null,"1","2019-10-01","9999-12-31","2019-10-07","GIPSONK","Deputy of Technology and Operations","10053976","DpTchOps","1120010001",112]
[112,"Deputy of Technology and Operations",10053976,"DpTchOps",null,null,null,null,null,null,null,null,null,null,null,null,null,null,null,"1","1950-01-01","9999-12-31","2012-05-15","DATACONVERSI","Emergency Services County Executive","10000581","ESCE","1470030001",147]
[147,"Emergency Services County Executive",10000581,"ESCE",null,null,null,null,null,null,null,null,null,null,null,null,null,null,null,"1","1950-01-01","9999-12-31","2012-05-15","DATACONVERSI","Travis County","10000000","TravisCty"]

{"sheet":"Data CIs Removed","index":30,"n_rows":136,"n_cols":4,"rows_kept":136,"cut":false,"hidden":true,"merged":[]}
["Short Description","Full Description","Rollup CI","Commitment Item"]
["OFU-Bond Refds-Par","Outflows from Bond Refundings-Par",596010,596010]
["OFU-Bond Refds-OID","Outflows from Bond Refundings-OID",596020,596020]
["OFU-Bond Defeasance","Outflows from Bond Defeasance Non Rdfg",596030,596030]
["OFU-Rd Dist OF-Par","Road District Outflows-Par",597010,597010]
["OFU-Rd Dist OF-OID","Road District Outflows-OID",597020,597020]
["Trfr to AftSchlYE Fd","Transfers to After School Youth Enrchmt Fund",590149,590149]
["Trfr to TxDot","Transfers to Texas Dept of Transportation Fd",592031,592031]
["Trfr to TxWDB-Cap Fd","Transfers to Texas Water Dev Board-Fed Cap Fd",592041,592041]
["Trfr to Cons Dbt Sv","Transfers to Consolidated Debt Service Fd",593001,593001]
["Trfr to Refd Dbt Sv","Transfers to Refunding Debt Service Fd",593002,593002]
["Trfr to TCBCRD Fd","Transfers to Travis Co Bee Cave Rd Dist 1 Fd",593004,593004]
["Trfr to Debt Sv Tx","Transfers to Debt Service-Taxable Fd",593005,593005]
["Trfr to CCPF","Transfers to Contractual Capital Proj Fd",594050,594050]
["Trfr to Pf Prs Fd","Transfers to Professional Prosecuters Fd",590122,590122]
["Resrv-Allocated","Reserves-Allocated",580010,580010]
["Resrv-Unallocated","Reserves-Unallocated",580015,580015]
["Resrv-Anti-Poverty","Reserves-Anti-Poverty",580020,580020]
["Resrv-BEFIT Auditor","Reserves-BEFIT Auditor",580030,580030]
["Resrv-BEFIT ITS","Reserves-BEFIT ITS",580040,580040]
["Resrv-BEFIT Pur","Reserves-BEFIT Purchasing",580050,580050]
["Resrv-CapOut","Reserves-Capital Outlay",580060,580060]
["Resrv-CAR Allocated","Reserves-CAR Allocated",580070,580070]
["Resrv-Ctastrphc Loss","Reserves-Catastrophic Loss",580080,580080]
["Resrv-CDBG","Reserves-CDBG",580090,580090]
["Resrv-Comp","Reserves-Compensation",580100,580100]
["Resrv-CSCD Cur Year","Reserves-CSCD Current Year",580110,580110]
["Resrv-Emergency","Reserves-Emergency",580120,580120]
["Resrv-Fuel&Util","Reserves-Fuel & Utility",580130,580130]
["Resrv-Grant Rel","Reserves-Grant Related",580140,580140]
["Resrv-Hlh & Human Sv","Reserves-Health & Human Services",580150,580150]
["Resrv-IJS/FACTS","Reserves-IJS/FACTS",580160,580160]
["Resrv-JlOvrcrdInmRel","Reserves-Inmate Related",580170,580170]
["Resrv-Jail Pharmacy","Reserves-Jail Pharmacy",580180,580180]
["Resrv-MtlHlhMobTrtmt","Reserves-Mental Health Mobile Treatment",580190,580190]
["Resrv-Oth FY Alloc","Reserves-Other Fiscal Year Allocation",580200,580200]
["Resrv-Planning","Reserves-Planning",580210,580210]
["Resrv-Psych Sv Shf","Reserves-Psychiatric Services Sheriff",580220,580220]
["Resrv-Pur","Reserves-Purchasing",580230,580230]
["Resrv-SmrtBldgFclMnt","Reserves-Smart Building Facility Maintenance",580240,580240]
["Resrv-Juv Justice","Reserves-Juvenile Justice TYC",580260,580260]
["Resrv-GASB34","Reserves-GASB34 Reserve",580270,580270]
["Resrv-BEFIT HRMD","Reserves-BEFIT HRMD",580280,580280]
["Resrv-Srs Disabled","Reserves-Seniors and Disabled",580290,580290]
["Resrv-Transition","Reserves-Transition",580300,580300]
["Resrv-State Cuts","Reserves-State Cuts",580310,580310]
["Resrv-Starflight Mnt","Reserves-Starflight Mnt",580320,580320]
["Resrv-TCSO Overtime","Reserves-TCSO Overtime",580330,580330]
["Resrv-Security","Reserves-Security",580340,580340]
["Trfr to Gen Fd","Transfers to General Fd",590001,590001]
["Bnd Issuance Costs","Bond Issuance Costs",525005,525005]
["Capital Lease-Princ","Capital Lease-Principal",525010,525010]
["Bnds-Princ","Bonds-Principal",525020,525020]
["Capital Lease-Int","Capital Lease-Interest",525110,525110]
["Bnds-Int","Bonds-Interest",525120,525120]
["Paying Agent Fees","Paying Agent Fees",525210,525210]
["Bnd DefeasanceEscrow","Bond Defeasance/Escrow",525220,525220]
["Arbitrage Rebate Pmt","Arbitrage Rebate Payment",519010,519010]
["Inmate TrustFd Distb","Inmate Trust Fund Distribution",519020,519020]
["Interest Exp","Interest Expense",519030,519030]
["Licenses & Permits","Licenses & Permits",519040,519040]
["PY Expenditures/Revs","Prior Year Expenditures/Revenues",519050,519050]
["Prop Taxes","Property Taxes",519060,519060]
["Refds Exp","Refunds Exp",519070,519070]
["Oth Misc Expenditure","Other Miscellaneous Expenditure",519080,519080]
["Aptns Public Entitie","Appropriations to Other Public Entities",517010,517010]
["Subrec-Sal","Subrecipient-Salaries",518010,518010]
["Subrec-Overtime","Subrecipient-Overtime",518010,518020]
["Subrec-Op Exp","Subrecipient-Operating Expenses",518010,518030]
["Subrec-Travel","Subrecipient-Travel",518010,518110]
["Subrec-Other","Subrecipient-Other",518010,518120]
["Emp ActlCL Med-CoEPO","Employee Actual Claims/Loss Payments Medical-CoEPO",516010,516010]
["Emp Actl CL Med-PPO","Employee Actual Claims/Loss Payments Medical-PPO",516010,516020]
["Emp Actl CL Med-EPO","Employee Actual Claims/Loss Payments Medical-EPO",516010,516030]
["Emp-Adm-CoEPO","Employee-Admin-CoEPO",516010,516040]
["Emp-Adm-PPO","Employee-Admin-PPO",516010,516050]
["Emp-Adm-EPO","Employee-Admin-EPO",516010,516060]
["Ret<65ActlCLMedCoEPO","Retiree < 65 Actual Claims/Loss Pmts Medical-CoEPO",516010,516110]
["Ret<65 ActlCLMed-PPO","Retiree < 65 Actual Claims/Loss Pmts Medical-PPO",516010,516120]
["Ret<65 ActlCLMed-EPO","Retiree < 65 Actual Claims/Loss Pmts Medical-EPO",516010,516130]
["Ret<65-Adm-CoEPO","Retiree<65-Admin-CoEPO",516010,516140]
["Ret<65-Adm-PPO","Retiree<65-Admin-PPO",516010,516150]
["Ret<65-Adm-EPO","Retiree<65-Admin-EPO",516010,516160]
["Ret>65ActlCLMedCOEPO","Retiree >65 Actual Claims/Loss Pmts Medical-CO EPO",516010,516210]
["Ret>65ActlCLMedPPO","Retiree >65 Actual Claims/Loss Pmts Medical-PPO",516010,516220]
["Ret>65ActlCLMedEPO","Retiree >65 Actual Claims/Loss Pmts Medical-EPO",516010,516230]
["Ret>65-Adm-CoEPO","Retiree>65-Admin-CoEPO",516010,516240]
["Ret>65-Adm-PPO","Retiree>65-Admin-PPO",516010,516250]
["Ret>65-Adm-EPO","Retiree>65-Admin-EPO",516010,516260]
["COBRA-Prem Med CoEPO","COBRA-Premium Medical CoEPO",516010,516310]
["COBRA-Prem Med PPO","COBRA-Premium Medical PPO",516010,516320]
["COBRA-Prem Med EPO","COBRA-Premium Medical EPO",516010,516330]
["COBRA-Adm-CoEPO","COBRA-Admin-CoEPO",516010,516340]
["COBRA-Adm-PPO","COBRA-Admin-PPO",516010,516350]
["COBRA-Adm-EPO","COBRA-Admin-EPO",516010,516360]
["EmpSLPremMed","Employee Stop/Loss Premium Medical",515010,515001]
["EmpSLPremMed-CoEPO","Employee Stop/Loss Premium Medical-CoEPO",515010,515010]
["EmpSLPremMed-PPO","Employee Stop/Loss Premium Medical-PPO",515010,515020]
["EmpSLPremMed-EPO","Employee Stop/Loss Premium Medical-EPO",515010,515030]
["Emp-Prem Med-CoEPO","Employee-Premium Medical-CoEPO",515010,515040]
["Emp-Prem Med-PPO","Employee-Premium Medical-PPO",515010,515050]
["Emp-Prem Med-EPO","Employee-Premium Medical-EPO",515010,515060]
["Ret<65SLPremMedCoEPO","Retiree < 65 Stop/Loss Premium Medical-CoEPO",515010,515110]
["Ret<65SLPremMed-PPO","Retiree < 65 Stop/Loss Premium Medical-PPO",515010,515120]
["Ret<65SLPremMed-EPO","Retiree < 65 Stop/Loss Premium Medical-EPO",515010,515130]
["Ret<65-Prem MedCoEPO","Retiree<65-Premium Medical-CoEPO",515010,515140]
["Ret<65-Prem Med-PPO","Retiree<65-Premium Medical-PPO",515010,515150]
["Ret<65-Prem Med-EPO","Retiree<65-Premium Medical-EPO",515010,515160]
["Ret>65SLPremMedCOEPO","Retiree >65 Stop/Loss Premium Medical-CO EPO",515010,515210]
["Ret>65SLPremMed-PPO","Retiree >65 Stop/Loss Premium Medical-PPO",515010,515220]
["Ret>65SLPremMed-EPO","Retiree >65 Stop/Loss Premium Medical-EPO",515010,515230]
["Ret>65PremMed-CoEPO","Retiree>65-Premium Medical-CoEPO",515010,515240]
["Ret>65PremMed-PPO","Retiree>65-Premium Medical-PPO",515010,515250]
["Ret>65PremMed-EPO","Retiree>65-Premium Medical-EPO",515010,515260]
[null,"General Insurance Premiums - Conversion",515010,515511]
[null,"Retiree-Premium Medical-Conversion",515010,515512]
[null,"Retiree-Stop/Loss Premium Medical-Conversion",515010,515513]
[null,"Retiree-Admin-Conversion",516000,516444]
[null,"Agency Contracts - Conversion",518010,518002]
[null,"Subrecipient - Purchased Services - Conversion",518010,518001]
[null,"Transfers-Grant Match - Conversion",595030,595030]
[null,"Indigent Medical Care - Conversion",511010,511123]
[null,"Other Human Services - Conversion",511010,511442]
[null,"Other Professional Services - Conversion",511010,511972]
[null,"Other Purchased Services - Conversion",511010,511971]
[null,"Outside Agency Contracts - Conversion",511010,511441]
[null,"Residential Services - Conversion",511010,511121]
[null,"Substance Abuse Program-Conversion",511010,511124]
[null,"Utilities - Conversion",511460,511459]
[null,"Utility Assistance -CEAP CoPay - Conversion",511010,511411]
[null,"Utility Assistance -Donations - Conversion",511010,511413]
[null,"Utility Assistance -Indigents - Conversion",511010,511414]
[null,"Utility Assistance-CEAP Elderly - Conversion",511010,511415]
[null,"Utility Assistance-FEMA - Conversion",511010,511416]
[null,"Initial Entry of Stock Balances (conversion)",510010,510499]
[null,"Office Supplies/Equipment - Conversion",510010,510230]

{"sheet":"Data Jobs Removed","index":31,"n_rows":69,"n_cols":7,"rows_kept":69,"cut":false,"hidden":true,"merged":[]}
["Object Type","Start date","End Date","Planning status","Object name","Extended object ID","Reason for Removal"]
["C","1950-01-01","9999-12-31","1","ACC Intern","20000431"]
["C","1950-01-01","9999-12-31","1","Americorp Participants","20000429"]
["C","2012-05-29","9999-12-31","1","Benefits Administrator Succession","20050002"]
["C","1950-01-01","9999-12-31","1","Budget Dir Succession","20000644"]
["C","1950-01-01","9999-12-31","1","Cadet","20000518"]
["C","1950-01-01","9999-12-31","1","Commissary Mgr","20000294"]
["C","1950-01-01","9999-12-31","1","Constable","20000512"]
["C","1950-01-01","9999-12-31","1","County Attorney","20000505"]
["C","1950-01-01","9999-12-31","1","County Auditor","20000514"]
["C","1950-01-01","9999-12-31","1","County Clerk","20000503"]
["C","1950-01-01","9999-12-31","1","County Commissioner","20000501"]
["C","1950-01-01","9999-12-31","1","County Court At Law Judge","20000502"]
["C","1950-01-01","9999-12-31","1","County Executive ES","20000149"]
["C","1950-01-01","9999-12-31","1","County Executive HHS","20000150"]
["C","1950-01-01","9999-12-31","1","County Executive JPS","20000148"]
["C","1950-01-01","9999-12-31","1","County Executive PBO","20000151"]
["C","1950-01-01","9999-12-31","1","County Executive TNR","20000152"]
["C","2012-10-16","9999-12-31","1","County Executive TS","20050085"]
["C","1950-01-01","9999-12-31","1","County Judge","20000500"]
["C","1950-01-01","9999-12-31","1","County Treasurer","20000504"]
["C","2013-02-05","9999-12-31","1","County/District Clerk Div Dir Succession","20050201"]
["C","1950-01-01","9999-12-31","1","District Attorney","20000506"]
["C","1950-01-01","9999-12-31","1","District Clerk","20000507"]
["C","1950-01-01","9999-12-31","1","District Judge","20000508"]
["C","1950-01-01","9999-12-31","1","Elections Coord Spc Project Temp 13","20000417"]
["C","1950-01-01","9999-12-31","1","Elections Div Dir Succession","20000645"]
["C","1950-01-01","9999-12-31","1","Executive Mgr Adm Operations","20000147"]
["C","1950-01-01","9999-12-31","1","Extended Military Leave With Pay","20000427"]
["C","1950-01-01","9999-12-31","1","Extended Military Leave Without Pay","20000428"]
["C","1950-01-01","9999-12-31","1","Facilities Mgmt Dir","20000340"]
["C","2012-07-24","9999-12-31","1","Helicopter Pilot Sr Succession","20050026"]
["C","1950-01-01","9999-12-31","1","Justice Court Of Appeals 3rd District","20000272"]
["C","1950-01-01","9999-12-31","1","Justice Of The Peace","20000509"]
["C","1950-01-01","9999-12-31","1","Juvenile Probation Officer Chief","20000516"]
["C","1950-01-01","9999-12-31","1","Major","20000217"]
["C","1950-01-01","9999-12-31","1","ME Chief","20000079"]
["C","1950-01-01","9999-12-31","1","Non Employee","20000602"]
["C","1950-01-01","9999-12-31","1","Probate Judge","20000510"]
["C","1950-01-01","9999-12-31","1","Public Defender Juvenile","20000332"]
["C","1950-01-01","9999-12-31","1","Pur Purchasing Agent","20000515"]
["C","2012-05-29","9999-12-31","1","Risk Benefits Mgr Sr Succession","20050003"]
["C","1950-01-01","9999-12-31","1","Sheriff","20000511"]
["C","1950-01-01","9999-12-31","1","Sheriff Deputy Chief","20000218"]
["C","1950-01-01","9999-12-31","1","Tax Assessor-Collector","20000513"]
["C","1950-01-01","9999-12-31","1","STAR Flight Medical Director","20000607"]
["C","1950-01-01","9999-12-31","1","Election Day Worker","20049999"]
["C","1950-01-01","9999-12-31","1","Elections Day Clerk 4","20000408"]
["C","1950-01-01","9999-12-31","1","Elections Day Judge 5","20000409"]
["C","1950-01-01","9999-12-31","1","Elections Early Voting Clerk 6","20000410"]
["C","1950-01-01","9999-12-31","1","Elections Early Voting Deputy 7","20000411"]
["C","1950-01-01","9999-12-31","1","Elections Operations Clerk I 8","20000412"]
["C","1950-01-01","9999-12-31","1","Elections Operations Clerk II 9","20000413"]
["C","1950-01-01","9999-12-31","1","Elections Operations Clerk III 10","20000414"]
["C","1950-01-01","9999-12-31","1","Elections Operations Clerk IV 11","20000415"]
["C","1950-01-01","9999-12-31","1","Elections Operations Clerk V 12","20000416"]
["C","1950-01-01","9999-12-31","1","Elections Primary Day Wk Nt Tr 1","20000405"]
["C","1950-01-01","9999-12-31","1","Elections Primary Tr 3","20000407"]
["C","2014-06-17","9999-12-31","1","Tax Assessor-Collector Deputy Assoc Sn",20050701,"Succession"]
["C","2014-07-10","9999-12-31","1","Tax Assessor-Collector Div Dir Sn",20050751,"Succession"]
["C","2014-08-12","9999-12-31","1","Human Resources Financial Analyst Ld Sn",20050776,"Succession"]
["C","2014-10-01","9999-12-31","1","Physician II Succession",20050801,"Succession"]
["C","2014-10-07","9999-12-31","1","Public Defender Mental Health Succession",20050802,"Succession"]
["C","2014-12-23","9999-12-31","1","District Clerk Deputy Chief Sn",20050901,"Succession"]
["C","2015-01-30","9999-12-31","1","County Clerk Deputy Chief Sn",20050951,"Succession"]
["C","2014-03-27","9999-12-31","1","County Executive Succession",20050576,"Succession"]
["C","2014-06-01","9999-12-31","1","CSCD Psychological Svcs Mgr",20050526,"NFC01"]
["C","2014-10-01","9999-12-31","1","Elections Operations Clerk VI",20050851,"NFC01"]
["C","2014-11-25","9999-12-31","1","Visiting Judge",20050876,"NFC01"]

{"sheet":"Data FA Lookup","index":32,"n_rows":1725,"n_cols":12,"rows_kept":1725,"cut":false,"hidden":true,"merged":[]}
["Functional Area","Department","Description","Cost Center","Name","Valid From","Valid To","Created on","Actual: Primary Costs (Lock Indicator)","Commitments Update (Lock Indicator)","Plan: Primary Costs (Lock Indicator)","AVC Fund Ctr"]
["1120","100","Travis County",1000000000,"100TC0000","1950-01-01","9999-12-31","2012-05-14","No","No","No",{"$f":"IF(A2=\"????\",\"\",_xlfn.XLOOKUP('Data FA Lookup'!$D2,'FC Master'!A:A,'FC Master'!Q:Q,'Data FA Lookup'!$D2,0,1))","v":1000000000}]
["1120","100","Travis County-Cons Debt Svc",1000003001,"100TC3001","1950-01-01","9999-12-31","2012-05-14","No","No","No",{"$f":"IF(A3=\"????\",\"\",_xlfn.XLOOKUP('Data FA Lookup'!$D3,'FC Master'!A:A,'FC Master'!Q:Q,'Data FA Lookup'!$D3,0,1))","v":1000003001}]
["1120","100","Travis County-Refunding Debt Svc",1000003002,"100TC3005","1950-01-01","9999-12-31","2012-08-16","No","No","No",{"$f":"IF(A4=\"????\",\"\",_xlfn.XLOOKUP('Data FA Lookup'!$D4,'FC Master'!A:A,'FC Master'!Q:Q,'Data FA Lookup'!$D4,0,1))","v":1000003002}]
["1120","100","Travis County-Debt Svc-Taxable",1000003005,"100TC3005","1950-01-01","9999-12-31","2012-05-14","No","No","No",{"$f":"IF(A5=\"????\",\"\",_xlfn.XLOOKUP('Data FA Lookup'!$D5,'FC Master'!A:A,'FC Master'!Q:Q,'Data FA Lookup'!$D5,0,1))","v":1000003005}]
["1120","100","Travis County-Perm School",1000008905,"100TC8905","1950-01-01","9999-12-31","2012-05-14","No","No","No",{"$f":"IF(A6=\"????\",\"\",_xlfn.XLOOKUP('Data FA Lookup'!$D6,'FC Master'!A:A,'FC Master'!Q:Q,'Data FA Lookup'!$D6,0,1))","v":1000008905}]
["1120","100","Road Dist-NW TC Rd Dist 3",1000013003,"100RdDist3003","1950-01-01","9999-12-31","2012-05-14","No","No","No",{"$f":"IF(A7=\"????\",\"\",_xlfn.XLOOKUP('Data FA Lookup'!$D7,'FC Master'!A:A,'FC Master'!Q:Q,'Data FA Lookup'!$D7,0,1))","v":1000013003}]
["1120","100","Road Dist-TC Bee Cave Rd Dist1",1000013004,"100RdDist3004","1950-01-01","9999-12-31","2012-05-14","No","No","No",{"$f":"IF(A8=\"????\",\"\",_xlfn.XLOOKUP('Data FA Lookup'!$D8,'FC Master'!A:A,'FC Master'!Q:Q,'Data FA Lookup'!$D8,0,1))","v":1000013004}]
["1120","100","Road Dist-SW Travis Co Dist 1",1000014004,"100RdDist4004","1950-01-01","9999-12-31","2012-05-14","No","No","No",{"$f":"IF(A9=\"????\",\"\",_xlfn.XLOOKUP('Data FA Lookup'!$D9,'FC Master'!A:A,'FC Master'!Q:Q,'Data FA Lookup'!$D9,0,1))","v":1000014004}]
["1120","100","Road Dist-TC Bee Cave Rd Dist1 Cap Proj",1000014051,"100RdDist4051","1950-01-01","9999-12-31","2012-05-14","No","No","No",{"$f":"IF(A10=\"????\",\"\",_xlfn.XLOOKUP('Data FA Lookup'!$D10,'FC Master'!A:A,'FC Master'!Q:Q,'Data FA Lookup'!$D10,0,1))","v":1000014051}]
["1110","101","County Judge Adm-GF",1010010001,"101Adm0001","1950-01-01","9999-12-31","2012-05-14","No","No","No",{"$f":"IF(A11=\"????\",\"\",_xlfn.XLOOKUP('Data FA Lookup'!$D11,'FC Master'!A:A,'FC Master'!Q:Q,'Data FA Lookup'!$D11,0,1))","v":1010010001}]
["1230","101","County Judge JV Board-GF",1010020001,"101JVBoard0001","1950-01-01","9999-12-31","2012-05-14","No","No","No",{"$f":"IF(A12=\"????\",\"\",_xlfn.XLOOKUP('Data FA Lookup'!$D12,'FC Master'!A:A,'FC Master'!Q:Q,'Data FA Lookup'!$D12,0,1))","v":1010020001}]
["1110","102","Co Comm Pct 1 Adm-GF",1020010001,"102Adm0001","1950-01-01","9999-12-31","2012-05-14","No","No","No",{"$f":"IF(A13=\"????\",\"\",_xlfn.XLOOKUP('Data FA Lookup'!$D13,'FC Master'!A:A,'FC Master'!Q:Q,'Data FA Lookup'!$D13,0,1))","v":1020010001}]
["1110","102","Co Comm Pct 1 CAR-GF",1028000001,"102CAR0001","1950-01-01","9999-12-31","2012-05-15","No","No","No",{"$f":"IF(A14=\"????\",\"\",_xlfn.XLOOKUP('Data FA Lookup'!$D14,'FC Master'!A:A,'FC Master'!Q:Q,'Data FA Lookup'!$D14,0,1))","v":1028000001}]
["1110","103","Co Comm Pct 2 Adm-GF",1030010001,"103Adm0001","1950-01-01","9999-12-31","2012-05-14","No","No","No",{"$f":"IF(A15=\"????\",\"\",_xlfn.XLOOKUP('Data FA Lookup'!$D15,'FC Master'!A:A,'FC Master'!Q:Q,'Data FA Lookup'!$D15,0,1))","v":1030010001}]
["1110","104","Co Comm Pct 3 Adm-GF",1040010001,"104Adm0001","1950-01-01","9999-12-31","2012-05-14","No","No","No",{"$f":"IF(A16=\"????\",\"\",_xlfn.XLOOKUP('Data FA Lookup'!$D16,'FC Master'!A:A,'FC Master'!Q:Q,'Data FA Lookup'!$D16,0,1))","v":1040010001}]
["1110","105","Co Comm Pct 4 Adm-GF",1050010001,"105Adm0001","1950-01-01","9999-12-31","2012-05-14","No","No","No",{"$f":"IF(A17=\"????\",\"\",_xlfn.XLOOKUP('Data FA Lookup'!$D17,'FC Master'!A:A,'FC Master'!Q:Q,'Data FA Lookup'!$D17,0,1))","v":1050010001}]
["1120","106","Co Auditor Aud-GF",1060010001,"106Aud0001","1950-01-01","9999-12-31","2012-05-14","No","No","No",{"$f":"IF(A18=\"????\",\"\",_xlfn.XLOOKUP('Data FA Lookup'!$D18,'FC Master'!A:A,'FC Master'!Q:Q,'Data FA Lookup'!$D18,0,1))","v":1060010001}]
["1120","106","Co Auditor BEFIT-GF",1060020001,"106BEFIT0001","1950-01-01","9999-12-31","2012-05-14","No","No","No",{"$f":"IF(A19=\"????\",\"\",_xlfn.XLOOKUP('Data FA Lookup'!$D19,'FC Master'!A:A,'FC Master'!Q:Q,'Data FA Lookup'!$D19,0,1))","v":1060020001}]
["1120","106","Co Auditor BEFIT-CO 2010 Nontax",1060024063,"106BEFIT4063","1950-01-01","9999-12-31","2012-05-14","No","No","No",{"$f":"IF(A20=\"????\",\"\",_xlfn.XLOOKUP('Data FA Lookup'!$D20,'FC Master'!A:A,'FC Master'!Q:Q,'Data FA Lookup'!$D20,0,1))","v":1060024063}]
["1120","106","Co Auditor BEFIT-CO 2011 Nontax",1060024068,"106BEFIT4068","1950-01-01","9999-12-31","2012-05-14","No","No","No",{"$f":"IF(A21=\"????\",\"\",_xlfn.XLOOKUP('Data FA Lookup'!$D21,'FC Master'!A:A,'FC Master'!Q:Q,'Data FA Lookup'!$D21,0,1))","v":1060024068}]
["1120","106","Co Auditor BEFIT-CO 2012",1060024072,"106BEFIT4072","1950-01-01","9999-12-31","2012-06-20","No","No","No",{"$f":"IF(A22=\"????\",\"\",_xlfn.XLOOKUP('Data FA Lookup'!$D22,'FC Master'!A:A,'FC Master'!Q:Q,'Data FA Lookup'!$D22,0,1))","v":1060024072}]
["1120","106","SAP County-wide Maintenance & Support",1060030001,"106SAPCWM&S0001","1950-01-01","9999-12-31","2014-03-27","No","No","No",{"$f":"IF(A23=\"????\",\"\",_xlfn.XLOOKUP('Data FA Lookup'!$D23,'FC Master'!A:A,'FC Master'!Q:Q,'Data FA Lookup'!$D23,0,1))","v":1060030001}]
["1110","106","Privacy and HIPAA Compliance-GF",1060040001,"106PvcyHIPAA0001","1950-01-01","9999-12-31","2015-09-10","No","No","No",{"$f":"IF(A24=\"????\",\"\",_xlfn.XLOOKUP('Data FA Lookup'!$D24,'FC Master'!A:A,'FC Master'!Q:Q,'Data FA Lookup'!$D24,0,1))","v":1060040001}]
["1120","106","Co Auditor Aud-HIPAA-Travis Co. Self Ins",1060048955,"106HIPAA8955","1950-01-01","9999-12-31","2015-01-12","No","No","No",{"$f":"IF(A25=\"????\",\"\",_xlfn.XLOOKUP('Data FA Lookup'!$D25,'FC Master'!A:A,'FC Master'!Q:Q,'Data FA Lookup'!$D25,0,1))","v":1060048955}]
["1120","106","Co Auditor Aud-HIPAA-Emp Health Benefit",1060048956,"106HIPAA8956","1950-01-01","9999-12-31","2015-01-12","No","No","No",{"$f":"IF(A26=\"????\",\"\",_xlfn.XLOOKUP('Data FA Lookup'!$D26,'FC Master'!A:A,'FC Master'!Q:Q,'Data FA Lookup'!$D26,0,1))","v":1060048956}]
["1120","107","County Treasurer Adm-GF",1070010001,"107Adm0001","1950-01-01","9999-12-31","2012-05-14","No","No","No",{"$f":"IF(A27=\"????\",\"\",_xlfn.XLOOKUP('Data FA Lookup'!$D27,'FC Master'!A:A,'FC Master'!Q:Q,'Data FA Lookup'!$D27,0,1))","v":1070010001}]
["1120","107","County Treasurer Adm-Unclaimed Property",1070010121,"107Adm0121","1950-01-01","9999-12-31","2012-09-17","No","No","No",{"$f":"IF(A28=\"????\",\"\",_xlfn.XLOOKUP('Data FA Lookup'!$D28,'FC Master'!A:A,'FC Master'!Q:Q,'Data FA Lookup'!$D28,0,1))","v":1070010121}]
["1130","108","Tax Collector Administration-GF",1080010001,"108Adm0001","1950-01-01","9999-12-31","2012-05-14","No","No","No",{"$f":"IF(A29=\"????\",\"\",_xlfn.XLOOKUP('Data FA Lookup'!$D29,'FC Master'!A:A,'FC Master'!Q:Q,'Data FA Lookup'!$D29,0,1))","v":1080010001}]
["1130","108","Tax Collector Pbc Info and Trng Cln-GF",1080020001,"108PITCln0001","1950-01-01","9999-12-31","2012-05-14","No","No","No",{"$f":"IF(A30=\"????\",\"\",_xlfn.XLOOKUP('Data FA Lookup'!$D30,'FC Master'!A:A,'FC Master'!Q:Q,'Data FA Lookup'!$D30,0,1))","v":1080020001}]
["1130","108","Tax Collector Prop Tax Cln-GF",1080030001,"108PropTaxCln0001","1950-01-01","9999-12-31","2012-05-14","No","No","No",{"$f":"IF(A31=\"????\",\"\",_xlfn.XLOOKUP('Data FA Lookup'!$D31,'FC Master'!A:A,'FC Master'!Q:Q,'Data FA Lookup'!$D31,0,1))","v":1080030001}]
["1130","108","Motor Vehicle Inventory Tax-Interest",1080030150,"108MtrVhInvTxInt0150","1950-01-01","9999-12-31","2013-09-24","No","No","No",{"$f":"IF(A32=\"????\",\"\",_xlfn.XLOOKUP('Data FA Lookup'!$D32,'FC Master'!A:A,'FC Master'!Q:Q,'Data FA Lookup'!$D32,0,1))","v":1080030150}]
["1130","108","Tax Collector Prop Tax Cln-CO2010 Nontax",1080034063,"108PropTaxCln4063","1950-01-01","9999-12-31","2012-05-14","No","No","No",{"$f":"IF(A33=\"????\",\"\",_xlfn.XLOOKUP('Data FA Lookup'!$D33,'FC Master'!A:A,'FC Master'!Q:Q,'Data FA Lookup'!$D33,0,1))","v":1080034063}]
["1210","108","Tax Collector County Court at Law Cln-GF",1080040001,"108CtyCtCln0001","1950-01-01","9999-12-31","2012-05-14","No","No","No",{"$f":"IF(A34=\"????\",\"\",_xlfn.XLOOKUP('Data FA Lookup'!$D34,'FC Master'!A:A,'FC Master'!Q:Q,'Data FA Lookup'!$D34,0,1))","v":1080040001}]
["1210","108","Tax Collector JP Collections-GF",1080050001,"108JPCln0001","1950-01-01","9999-12-31","2012-05-14","No","No","No",{"$f":"IF(A35=\"????\",\"\",_xlfn.XLOOKUP('Data FA Lookup'!$D35,'FC Master'!A:A,'FC Master'!Q:Q,'Data FA Lookup'!$D35,0,1))","v":1080050001}]
["1210","108","Tax Collector District CT at Law Cln- GF",1080060001,"108DistCtCln0001","1950-01-01","9999-12-31","2020-12-16","No","No","No",{"$f":"IF(A36=\"????\",\"\",_xlfn.XLOOKUP('Data FA Lookup'!$D36,'FC Master'!A:A,'FC Master'!Q:Q,'Data FA Lookup'!$D36,0,1))","v":1080060001}]
["1130","108","Tax Collector Motor Veh Collections-GF",1080070001,"108MotorVehCln0001","1950-01-01","9999-12-31","2012-05-14","No","No","No",{"$f":"IF(A37=\"????\",\"\",_xlfn.XLOOKUP('Data FA Lookup'!$D37,'FC Master'!A:A,'FC Master'!Q:Q,'Data FA Lookup'!$D37,0,1))","v":1080070001}]
["1130","108","Tax Collector Voter Registration Cln-GF",1080080001,"108VoterRgCln0001","1950-01-01","9999-12-31","2012-05-14","No","No","No",{"$f":"IF(A38=\"????\",\"\",_xlfn.XLOOKUP('Data FA Lookup'!$D38,'FC Master'!A:A,'FC Master'!Q:Q,'Data FA Lookup'!$D38,0,1))","v":1080080001}]
["1130","108","Tax Collector Voter Reg Cln-Eln Cntrt",1080080128,"108VoterRgCln0128","1950-01-01","9999-12-31","2012-05-14","No","No","No",{"$f":"IF(A39=\"????\",\"\",_xlfn.XLOOKUP('Data FA Lookup'!$D39,'FC Master'!A:A,'FC Master'!Q:Q,'Data FA Lookup'!$D39,0,1))","v":1080080128}]
["1130","108","Tax Collector Accounting-GF",1080090001,"108Acctg0001","1950-01-01","9999-12-31","2012-05-14","No","No","No",{"$f":"IF(A40=\"????\",\"\",_xlfn.XLOOKUP('Data FA Lookup'!$D40,'FC Master'!A:A,'FC Master'!Q:Q,'Data FA Lookup'!$D40,0,1))","v":1080090001}]
["1150","108","Tax Collector Voter Cln Ch19-GF",1080100001,"108VoterClnCh190001","1950-01-01","9999-12-31","2012-05-14","No","No","No",{"$f":"IF(A41=\"????\",\"\",_xlfn.XLOOKUP('Data FA Lookup'!$D41,'FC Master'!A:A,'FC Master'!Q:Q,'Data FA Lookup'!$D41,0,1))","v":1080100001}]
["1150","108","Tax Collector Voter Cln Ch19-Voter Rg Fd",1080100105,"108VoterClnCh190001","1950-01-01","9999-12-31","2012-05-14","No","No","No",{"$f":"IF(A42=\"????\",\"\",_xlfn.XLOOKUP('Data FA Lookup'!$D42,'FC Master'!A:A,'FC Master'!Q:Q,'Data FA Lookup'!$D42,0,1))","v":1080100105}]
["1130","108","Tax Collector IT-GF",1080110001,"108ITConsol0001","1950-01-01","9999-12-31","2015-02-25","No","No","No",{"$f":"IF(A43=\"????\",\"\",_xlfn.XLOOKUP('Data FA Lookup'!$D43,'FC Master'!A:A,'FC Master'!Q:Q,'Data FA Lookup'!$D43,0,1))","v":1080110001}]
["1130","108","Tax Collector CAR-TaxAdm GF",1088000001,"108CAR0001","1950-01-01","9999-12-31","2012-05-15","No","No","No",{"$f":"IF(A44=\"????\",\"\",_xlfn.XLOOKUP('Data FA Lookup'!$D44,'FC Master'!A:A,'FC Master'!Q:Q,'Data FA Lookup'!$D44,0,1))","v":1088000001}]
["1120","109","PBO Administration-GF",1090010001,"109Adm0001","1950-01-01","9999-12-31","2012-05-14","No","No","No",{"$f":"IF(A45=\"????\",\"\",_xlfn.XLOOKUP('Data FA Lookup'!$D45,'FC Master'!A:A,'FC Master'!Q:Q,'Data FA Lookup'!$D45,0,1))","v":1090010001}]
["1120","109","PBO Planning-GF",1090020001,"109Planning0001","1950-01-01","9999-12-31","2012-05-14","No","No","No",{"$f":"IF(A46=\"????\",\"\",_xlfn.XLOOKUP('Data FA Lookup'!$D46,'FC Master'!A:A,'FC Master'!Q:Q,'Data FA Lookup'!$D46,0,1))","v":1090020001}]
["1120","109","PBO Budgeting-GF",1090030001,"109Budgeting0001","1950-01-01","9999-12-31","2012-05-14","No","No","No",{"$f":"IF(A47=\"????\",\"\",_xlfn.XLOOKUP('Data FA Lookup'!$D47,'FC Master'!A:A,'FC Master'!Q:Q,'Data FA Lookup'!$D47,0,1))","v":1090030001}]
["1120","109","PBO Investment Management-GF",1090040001,"109IM0001","1950-01-01","9999-12-31","2012-05-14","No","No","No",{"$f":"IF(A48=\"????\",\"\",_xlfn.XLOOKUP('Data FA Lookup'!$D48,'FC Master'!A:A,'FC Master'!Q:Q,'Data FA Lookup'!$D48,0,1))","v":1090040001}]
["1120","109","PBO Corporations-GF",1090050001,"109Corps0001","1950-01-01","9999-12-31","2012-05-14","No","No","No",{"$f":"IF(A49=\"????\",\"\",_xlfn.XLOOKUP('Data FA Lookup'!$D49,'FC Master'!A:A,'FC Master'!Q:Q,'Data FA Lookup'!$D49,0,1))","v":1090050001}]
["1120","109","PBO Cash Investments",1090060000,"109IntDistPC0000","1950-01-01","9999-12-31","2012-05-14","No","No","No",{"$f":"IF(A50=\"????\",\"\",_xlfn.XLOOKUP('Data FA Lookup'!$D50,'FC Master'!A:A,'FC Master'!Q:Q,'Data FA Lookup'!$D50,0,1))","v":1090060000}]
["1120","109","PBO PC Investments",1090070000,"109PCInvest0000","1950-01-01","9999-12-31","2012-07-06","No","No","No",{"$f":"IF(A51=\"????\",\"\",_xlfn.XLOOKUP('Data FA Lookup'!$D51,'FC Master'!A:A,'FC Master'!Q:Q,'Data FA Lookup'!$D51,0,1))","v":1090070000}]
["1120","109","PBO Econ Dev & Strategic Inv.-GF",1090080001,"109EDSI0001","2015-10-01","9999-12-31","2016-01-14","No","No","No",{"$f":"IF(A52=\"????\",\"\",_xlfn.XLOOKUP('Data FA Lookup'!$D52,'FC Master'!A:A,'FC Master'!Q:Q,'Data FA Lookup'!$D52,0,1))","v":1090080001}]
["1120","109","PBO CAR-TaxAdm GF",1098000001,"109CAR0001","1950-01-01","9999-12-31","2012-05-15","No","No","No",{"$f":"IF(A53=\"????\",\"\",_xlfn.XLOOKUP('Data FA Lookup'!$D53,'FC Master'!A:A,'FC Master'!Q:Q,'Data FA Lookup'!$D53,0,1))","v":1098000001}]
["1120","110","Travis County-PSF Distribution to ISDs",1100008905,"110TCPSFDistISD8905","1950-01-01","9999-12-31","2013-09-10","No","No","No",{"$f":"IF(A54=\"????\",\"\",_xlfn.XLOOKUP('Data FA Lookup'!$D54,'FC Master'!A:A,'FC Master'!Q:Q,'Data FA Lookup'!$D54,0,1))","v":1100008905}]
["1110","110","General Adm Non Divisional",1100010000,"110NonDivisional0000","1950-01-01","9999-12-31","2012-05-14","No","No","No",{"$f":"IF(A55=\"????\",\"\",_xlfn.XLOOKUP('Data FA Lookup'!$D55,'FC Master'!A:A,'FC Master'!Q:Q,'Data FA Lookup'!$D55,0,1))","v":1100010000}]
["1110","110","General Adm Non Divisional-GF",1100010001,"110NonDivisional0001","1950-01-01","9999-12-31","2016-11-15","No","No","No",{"$f":"IF(A56=\"????\",\"\",_xlfn.XLOOKUP('Data FA Lookup'!$D56,'FC Master'!A:A,'FC Master'!Q:Q,'Data FA Lookup'!$D56,0,1))","v":1100010001}]
["1110","110","General Adm Spl Asst To Comm Ct-GF",1100020001,"110SpAstCC0001","1950-01-01","9999-12-31","2012-05-14","No","No","No",{"$f":"IF(A57=\"????\",\"\",_xlfn.XLOOKUP('Data FA Lookup'!$D57,'FC Master'!A:A,'FC Master'!Q:Q,'Data FA Lookup'!$D57,0,1))","v":1100020001}]
["1110","110","General Adm Intergovt Relations-GF",1100030001,"110IntGovRel0001","1950-01-01","9999-12-31","2012-05-14","No","No","No",{"$f":"IF(A58=\"????\",\"\",_xlfn.XLOOKUP('Data FA Lookup'!$D58,'FC Master'!A:A,'FC Master'!Q:Q,'Data FA Lookup'!$D58,0,1))","v":1100030001}]
["1610","110","General Adm Waller Creek Dev-GF",1100040001,"110WallerCrk0001","1950-01-01","9999-12-31","2012-05-14","No","No","No",{"$f":"IF(A59=\"????\",\"\",_xlfn.XLOOKUP('Data FA Lookup'!$D59,'FC Master'!A:A,'FC Master'!Q:Q,'Data FA Lookup'!$D59,0,1))","v":1100040001}]
["1110","110","General Adm Public Info Office-GF",1100050001,"110PubInfoOffice0001","1950-01-01","9999-12-31","2017-10-12","No","No","No",{"$f":"IF(A60=\"????\",\"\",_xlfn.XLOOKUP('Data FA Lookup'!$D60,'FC Master'!A:A,'FC Master'!Q:Q,'Data FA Lookup'!$D60,0,1))","v":1100050001}]
["1110","110","General Adm Media-GF",1100060001,"110Media0001","1950-01-01","9999-12-31","2020-05-29","No","No","No",{"$f":"IF(A61=\"????\",\"\",_xlfn.XLOOKUP('Data FA Lookup'!$D61,'FC Master'!A:A,'FC Master'!Q:Q,'Data FA Lookup'!$D61,0,1))","v":1100060001}]
["1110","110","General Admin CAR",1108000001,"110GenAdminCAR","1950-01-01","9999-12-31","2020-09-17","No","No","No",{"$f":"IF(A62=\"????\",\"\",_xlfn.XLOOKUP('Data FA Lookup'!$D62,'FC Master'!A:A,'FC Master'!Q:Q,'Data FA Lookup'!$D62,0,1))","v":1108000001}]
["1110","111","HRMD Adm-GF",1110010001,"111Adm0001","1950-01-01","9999-12-31","2012-05-14","No","No","No",{"$f":"IF(A63=\"????\",\"\",_xlfn.XLOOKUP('Data FA Lookup'!$D63,'FC Master'!A:A,'FC Master'!Q:Q,'Data FA Lookup'!$D63,0,1))","v":1110010001}]
["1110","111","HRMD Compensation-GF",1110020001,"111Compensation0001","1950-01-01","9999-12-31","2012-05-14","No","No","No",{"$f":"IF(A64=\"????\",\"\",_xlfn.XLOOKUP('Data FA Lookup'!$D64,'FC Master'!A:A,'FC Master'!Q:Q,'Data FA Lookup'!$D64,0,1))","v":1110020001}]
["1110","111","HRMD Staffing and Recruitment-GF",1110030001,"111StaffingRecr0001","1950-01-01","9999-12-31","2012-05-14","No","No","No",{"$f":"IF(A65=\"????\",\"\",_xlfn.XLOOKUP('Data FA Lookup'!$D65,'FC Master'!A:A,'FC Master'!Q:Q,'Data FA Lookup'!$D65,0,1))","v":1110030001}]
["1110","111","HRMD Risk Mgmt-GF",1110040001,"111RiskMgmt0001","1950-01-01","9999-12-31","2012-05-14","No","No","No",{"$f":"IF(A66=\"????\",\"\",_xlfn.XLOOKUP('Data FA Lookup'!$D66,'FC Master'!A:A,'FC Master'!Q:Q,'Data FA Lookup'!$D66,0,1))","v":1110040001}]
["1110","111","HRMD Risk Mgmt-Travis Co. Self Ins",1110048955,"111RiskMgmt8955","1950-01-01","9999-12-31","2012-05-14","No","No","No",{"$f":"IF(A67=\"????\",\"\",_xlfn.XLOOKUP('Data FA Lookup'!$D67,'FC Master'!A:A,'FC Master'!Q:Q,'Data FA Lookup'!$D67,0,1))","v":1110048955}]
["1110","111","HRMD Safety/Loss Prevtn Pg-GF",1110050001,"111SaftyLossPrev0001","1950-01-01","9999-12-31","2012-05-14","No","No","No",{"$f":"IF(A68=\"????\",\"\",_xlfn.XLOOKUP('Data FA Lookup'!$D68,'FC Master'!A:A,'FC Master'!Q:Q,'Data FA Lookup'!$D68,0,1))","v":1110050001}]
["1110","111","HRMD Benefits-Emp Health Benefit",1110068956,"111EmpHlthBnfts8956","1950-01-01","9999-12-31","2012-05-14","No","No","No",{"$f":"IF(A69=\"????\",\"\",_xlfn.XLOOKUP('Data FA Lookup'!$D69,'FC Master'!A:A,'FC Master'!Q:Q,'Data FA Lookup'!$D69,0,1))","v":1110068956}]
["1110","111","HRMD Wellness Hth Clinic-Emp Hth Ben",1110078956,"111WellHlthClnc8956","1950-01-01","9999-12-31","2012-05-14","No","No","No",{"$f":"IF(A70=\"????\",\"\",_xlfn.XLOOKUP('Data FA Lookup'!$D70,'FC Master'!A:A,'FC Master'!Q:Q,'Data FA Lookup'!$D70,0,1))","v":1110078956}]
["1110","111","HRMD HRIS-GF",1110080001,"111HRIS0001","1950-01-01","9999-12-31","2013-11-08","No","No","No",{"$f":"IF(A71=\"????\",\"\",_xlfn.XLOOKUP('Data FA Lookup'!$D71,'FC Master'!A:A,'FC Master'!Q:Q,'Data FA Lookup'!$D71,0,1))","v":1110080001}]
["1110","111","HRMD ADA Program-GF",1110090001,"111ADAProgram0001","1950-01-01","9999-12-31","2014-01-17","No","No","No",{"$f":"IF(A72=\"????\",\"\",_xlfn.XLOOKUP('Data FA Lookup'!$D72,'FC Master'!A:A,'FC Master'!Q:Q,'Data FA Lookup'!$D72,0,1))","v":1110090001}]
["1110","111","HRMD Organizational Development-GF",1110100001,"111OrgDev0001","1950-01-01","9999-12-31","2015-08-14","No","No","No",{"$f":"IF(A73=\"????\",\"\",_xlfn.XLOOKUP('Data FA Lookup'!$D73,'FC Master'!A:A,'FC Master'!Q:Q,'Data FA Lookup'!$D73,0,1))","v":1110100001}]
["1110","111","HRMD HIPAA-GF",1110500001,"111HIPAA0001","1950-01-01","9999-12-31","2017-04-03","No","No","No",{"$f":"IF(A74=\"????\",\"\",_xlfn.XLOOKUP('Data FA Lookup'!$D74,'FC Master'!A:A,'FC Master'!Q:Q,'Data FA Lookup'!$D74,0,1))","v":1110500001}]
["1110","111","HRMD CAR-GenAdm GF",1118000001,"HRMD CAR-GenAdm GF","1950-01-01","9999-12-31","2015-05-19","No","No","No",{"$f":"IF(A75=\"????\",\"\",_xlfn.XLOOKUP('Data FA Lookup'!$D75,'FC Master'!A:A,'FC Master'!Q:Q,'Data FA Lookup'!$D75,0,1))","v":1118000001}]
["1110","112","TCIS ExM-GF",1120010001,"112ExM0001","1950-01-01","9999-12-31","2012-05-14","No","No","No",{"$f":"IF(A76=\"????\",\"\",_xlfn.XLOOKUP('Data FA Lookup'!$D76,'FC Master'!A:A,'FC Master'!Q:Q,'Data FA Lookup'!$D76,0,1))","v":1120010001}]
["1110","112","TCIS ExM-Rec Mgmt Fd",1120010108,"112ExM0108","1950-01-01","9999-12-31","2012-05-14","No","No","No",{"$f":"IF(A77=\"????\",\"\",_xlfn.XLOOKUP('Data FA Lookup'!$D77,'FC Master'!A:A,'FC Master'!Q:Q,'Data FA Lookup'!$D77,0,1))","v":1120010108}]
["1110","112","TCIS ExM-CO 2011 Nontax",1120014068,"112ExM4068","1950-01-01","9999-12-31","2012-05-30","No","No","No",{"$f":"IF(A78=\"????\",\"\",_xlfn.XLOOKUP('Data FA Lookup'!$D78,'FC Master'!A:A,'FC Master'!Q:Q,'Data FA Lookup'!$D78,0,1))","v":1120014068}]
["1110","112","TCIS Adm-GF",1120020001,"112Adm0001","1950-01-01","9999-12-31","2012-05-14","No","No","No",{"$f":"IF(A79=\"????\",\"\",_xlfn.XLOOKUP('Data FA Lookup'!$D79,'FC Master'!A:A,'FC Master'!Q:Q,'Data FA Lookup'!$D79,0,1))","v":1120020001}]
["1110","112","TCIS Admin-CSCD Equipment",1120020117,"112CSCD0117","1950-01-01","9999-12-31","2014-06-18","No","No","No",{"$f":"IF(A80=\"????\",\"\",_xlfn.XLOOKUP('Data FA Lookup'!$D80,'FC Master'!A:A,'FC Master'!Q:Q,'Data FA Lookup'!$D80,0,1))","v":1120020117}]
["1110","112","TCIS Admin - Eln Cntrt Fund",1120020128,"112Adm0128","1950-01-01","9999-12-31","2018-12-14","No","No","No",{"$f":"IF(A81=\"????\",\"\",_xlfn.XLOOKUP('Data FA Lookup'!$D81,'FC Master'!A:A,'FC Master'!Q:Q,'Data FA Lookup'!$D81,0,1))","v":1120020128}]
["1110","112","TCIS Adm-County Clerk Archival Fd",1120020129,"112Adm0129","1900-01-01","9999-12-31","2016-12-02","No","No","No",{"$f":"IF(A82=\"????\",\"\",_xlfn.XLOOKUP('Data FA Lookup'!$D82,'FC Master'!A:A,'FC Master'!Q:Q,'Data FA Lookup'!$D82,0,1))","v":1120020129}]
["1110","112","TCIS-Admin-Juve Case Mgr Fund",1120020137,"112Adm0137","1950-01-01","9999-12-31","2019-08-27","No","No","No",{"$f":"IF(A83=\"????\",\"\",_xlfn.XLOOKUP('Data FA Lookup'!$D83,'FC Master'!A:A,'FC Master'!Q:Q,'Data FA Lookup'!$D83,0,1))","v":1120020137}]
["1110","112","TCIS Adm-CO 1998",1120024016,"112Adm4016","1950-01-01","9999-12-31","2012-05-14","No","No","No",{"$f":"IF(A84=\"????\",\"\",_xlfn.XLOOKUP('Data FA Lookup'!$D84,'FC Master'!A:A,'FC Master'!Q:Q,'Data FA Lookup'!$D84,0,1))","v":1120024016}]
["1110","112","TCIS Adm-CO 1998A",1120024025,"112Adm4025","1950-01-01","9999-12-31","2012-05-14","No","No","No",{"$f":"IF(A85=\"????\",\"\",_xlfn.XLOOKUP('Data FA Lookup'!$D85,'FC Master'!A:A,'FC Master'!Q:Q,'Data FA Lookup'!$D85,0,1))","v":1120024025}]
["1110","112","TCIS Adm-CO 1999",1120024029,"112Adm4029","1950-01-01","9999-12-31","2012-05-14","No","No","No",{"$f":"IF(A86=\"????\",\"\",_xlfn.XLOOKUP('Data FA Lookup'!$D86,'FC Master'!A:A,'FC Master'!Q:Q,'Data FA Lookup'!$D86,0,1))","v":1120024029}]
["1110","112","TCIS Adm-CO 2000",1120024030,"112Adm4030","1950-01-01","9999-12-31","2012-05-14","No","No","No",{"$f":"IF(A87=\"????\",\"\",_xlfn.XLOOKUP('Data FA Lookup'!$D87,'FC Master'!A:A,'FC Master'!Q:Q,'Data FA Lookup'!$D87,0,1))","v":1120024030}]
["1110","112","TCIS Adm-CO 2001",1120024032,"112Adm4032","1950-01-01","9999-12-31","2012-05-14","No","No","No",{"$f":"IF(A88=\"????\",\"\",_xlfn.XLOOKUP('Data FA Lookup'!$D88,'FC Master'!A:A,'FC Master'!Q:Q,'Data FA Lookup'!$D88,0,1))","v":1120024032}]
["1110","112","TCIS Adm-CO 2008",1120024056,"112Adm4056","1950-01-01","9999-12-31","2012-05-14","No","No","No",{"$f":"IF(A89=\"????\",\"\",_xlfn.XLOOKUP('Data FA Lookup'!$D89,'FC Master'!A:A,'FC Master'!Q:Q,'Data FA Lookup'!$D89,0,1))","v":1120024056}]
["1110","112","TCIS Adm-CO 2009",1120024059,"112Adm4059","1950-01-01","9999-12-31","2012-05-14","No","No","No",{"$f":"IF(A90=\"????\",\"\",_xlfn.XLOOKUP('Data FA Lookup'!$D90,'FC Master'!A:A,'FC Master'!Q:Q,'Data FA Lookup'!$D90,0,1))","v":1120024059}]
["1110","112","TCIS Adm-CO 2011 Nontax",1120024068,"112Adm4068","1950-01-01","9999-12-31","2012-05-14","No","No","No",{"$f":"IF(A91=\"????\",\"\",_xlfn.XLOOKUP('Data FA Lookup'!$D91,'FC Master'!A:A,'FC Master'!Q:Q,'Data FA Lookup'!$D91,0,1))","v":1120024068}]
["1110","112","TCIS Adm-Financial-Desktop Sv-GF",1120030001,"112AdmDeskSv0001","1950-01-01","9999-12-31","2012-05-14","No","No","No",{"$f":"IF(A92=\"????\",\"\",_xlfn.XLOOKUP('Data FA Lookup'!$D92,'FC Master'!A:A,'FC Master'!Q:Q,'Data FA Lookup'!$D92,0,1))","v":1120020001}]
["1110","112","TCIS NSS",1120040000,"112NSS0000","2013-05-20","9999-12-31","2013-05-20","No","No","No",{"$f":"IF(A93=\"????\",\"\",_xlfn.XLOOKUP('Data FA Lookup'!$D93,'FC Master'!A:A,'FC Master'!Q:Q,'Data FA Lookup'!$D93,0,1))","v":1120040000}]
["1110","112","TCIS NSS-GF",1120040001,"112NSS0001","1950-01-01","9999-12-31","2012-05-14","No","No","No",{"$f":"IF(A94=\"????\",\"\",_xlfn.XLOOKUP('Data FA Lookup'!$D94,'FC Master'!A:A,'FC Master'!Q:Q,'Data FA Lookup'!$D94,0,1))","v":1120040001}]
["1110","112","TCIS NSS-700 Lavaca Complex",1120040002,"112NSS0002","1950-01-01","9999-12-31","2015-01-13","No","No","No",{"$f":"IF(A95=\"????\",\"\",_xlfn.XLOOKUP('Data FA Lookup'!$D95,'FC Master'!A:A,'FC Master'!Q:Q,'Data FA Lookup'!$D95,0,1))","v":1120040002}]
["1110","112","TCIS NSS-Tx Expo & Heritage-Expo Fd",1120040003,"112NSS0003","2015-09-14","9999-12-31","2015-09-14","No","No","No",{"$f":"IF(A96=\"????\",\"\",_xlfn.XLOOKUP('Data FA Lookup'!$D96,'FC Master'!A:A,'FC Master'!Q:Q,'Data FA Lookup'!$D96,0,1))","v":1120040003}]
["1110","112","TCIS NSS-Voter Registration Fd",1120040105,"112NSS0105","1950-01-01","9999-12-31","2012-05-14","No","No","No",{"$f":"IF(A97=\"????\",\"\",_xlfn.XLOOKUP('Data FA Lookup'!$D97,'FC Master'!A:A,'FC Master'!Q:Q,'Data FA Lookup'!$D97,0,1))","v":1120040105}]
["1110","112","TCIS NSS-BCP Building",1120040115,"112NSS0115","1950-01-01","9999-12-31","2019-11-13","No","No","No",{"$f":"IF(A98=\"????\",\"\",_xlfn.XLOOKUP('Data FA Lookup'!$D98,'FC Master'!A:A,'FC Master'!Q:Q,'Data FA Lookup'!$D98,0,1))","v":1120040115}]
["1110","112","TCIS NSS-Justice Court Tech Fd",1120040125,"112NSS0125","1950-01-01","9999-12-31","2012-05-14","No","No","No",{"$f":"IF(A99=\"????\",\"\",_xlfn.XLOOKUP('Data FA Lookup'!$D99,'FC Master'!A:A,'FC Master'!Q:Q,'Data FA Lookup'!$D99,0,1))","v":1120040125}]
["1110","112","TCIS NSS-Elections Contract Fd",1120040128,"112NSS0128","1950-01-01","9999-12-31","2012-05-14","No","No","No",{"$f":"IF(A100=\"????\",\"\",_xlfn.XLOOKUP('Data FA Lookup'!$D100,'FC Master'!A:A,'FC Master'!Q:Q,'Data FA Lookup'!$D100,0,1))","v":1120040128}]
["1110","112","TCIS NSS-OAG Grant-State",1120042059,"112NSS2059","1950-01-01","9999-12-31","2012-05-14","Yes","Yes","Yes",{"$f":"IF(A101=\"????\",\"\",_xlfn.XLOOKUP('Data FA Lookup'!$D101,'FC Master'!A:A,'FC Master'!Q:Q,'Data FA Lookup'!$D101,0,1))","v":1120042059}]
["1110","112","TCIS NSS-CO 2001A",1120044034,"112NSS4034","1950-01-01","9999-12-31","2012-05-14","No","No","No",{"$f":"IF(A102=\"????\",\"\",_xlfn.XLOOKUP('Data FA Lookup'!$D102,'FC Master'!A:A,'FC Master'!Q:Q,'Data FA Lookup'!$D102,0,1))","v":1120044034}]
["1110","112","TCIS NSS-CO 2003",1120044038,"112NSS4038","1950-01-01","9999-12-31","2012-05-14","No","No","No",{"$f":"IF(A103=\"????\",\"\",_xlfn.XLOOKUP('Data FA Lookup'!$D103,'FC Master'!A:A,'FC Master'!Q:Q,'Data FA Lookup'!$D103,0,1))","v":1120044038}]
["1110","112","TCIS NSS-CO 2007",1120044052,"112NSS4052","1950-01-01","9999-12-31","2012-05-14","No","No","No",{"$f":"IF(A104=\"????\",\"\",_xlfn.XLOOKUP('Data FA Lookup'!$D104,'FC Master'!A:A,'FC Master'!Q:Q,'Data FA Lookup'!$D104,0,1))","v":1120044052}]
["1110","112","TCIS NSS-CO 2008",1120044056,"112NSS4056","1950-01-01","9999-12-31","2012-05-14","No","No","No",{"$f":"IF(A105=\"????\",\"\",_xlfn.XLOOKUP('Data FA Lookup'!$D105,'FC Master'!A:A,'FC Master'!Q:Q,'Data FA Lookup'!$D105,0,1))","v":1120044056}]
["1110","112","TCIS NSS-CO 2009",1120044059,"112NSS4059","1950-01-01","9999-12-31","2012-05-14","No","No","No",{"$f":"IF(A106=\"????\",\"\",_xlfn.XLOOKUP('Data FA Lookup'!$D106,'FC Master'!A:A,'FC Master'!Q:Q,'Data FA Lookup'!$D106,0,1))","v":1120044059}]
["1110","112","TCIS NSS-CO 2010 Nontax",1120044063,"112NSS4063","1950-01-01","9999-12-31","2012-05-14","No","No","No",{"$f":"IF(A107=\"????\",\"\",_xlfn.XLOOKUP('Data FA Lookup'!$D107,'FC Master'!A:A,'FC Master'!Q:Q,'Data FA Lookup'!$D107,0,1))","v":1120044063}]
["1110","112","TCIS NSS-CO 2011 Nontax",1120044068,"112NSS4068","1950-01-01","9999-12-31","2012-05-14","No","No","No",{"$f":"IF(A108=\"????\",\"\",_xlfn.XLOOKUP('Data FA Lookup'!$D108,'FC Master'!A:A,'FC Master'!Q:Q,'Data FA Lookup'!$D108,0,1))","v":1120044068}]
["1110","112","TCIS NSS-CO 2012",1120044072,"112NSS4072","1950-01-01","9999-12-31","2012-06-07","No","No","No",{"$f":"IF(A109=\"????\",\"\",_xlfn.XLOOKUP('Data FA Lookup'!$D109,'FC Master'!A:A,'FC Master'!Q:Q,'Data FA Lookup'!$D109,0,1))","v":1120044072}]
["1110","112","TCIS NSS App and DB Adm-GF",1120050001,"112NSSAppDBA0001","1950-01-01","9999-12-31","2012-05-14","No","No","No",{"$f":"IF(A110=\"????\",\"\",_xlfn.XLOOKUP('Data FA Lookup'!$D110,'FC Master'!A:A,'FC Master'!Q:Q,'Data FA Lookup'!$D110,0,1))","v":1120040001}]
["1110","112","TCIS NSS-ISR-GF",1120060001,"112NSSISR0001","1950-01-01","9999-12-31","2012-05-14","No","No","No",{"$f":"IF(A111=\"????\",\"\",_xlfn.XLOOKUP('Data FA Lookup'!$D111,'FC Master'!A:A,'FC Master'!Q:Q,'Data FA Lookup'!$D111,0,1))","v":1120040001}]
["1110","112","TCIS NSS-IDC-GF",1120070001,"112NSSIDC0001","1950-01-01","9999-12-31","2012-05-14","No","No","No",{"$f":"IF(A112=\"????\",\"\",_xlfn.XLOOKUP('Data FA Lookup'!$D112,'FC Master'!A:A,'FC Master'!Q:Q,'Data FA Lookup'!$D112,0,1))","v":1120070001}]
["1110","112","TCIS NSS-IDC-Fac & Mon Adm-GF",1120080001,"112NSSFacMon0001","1950-01-01","9999-12-31","2012-05-14","No","No","No",{"$f":"IF(A113=\"????\",\"\",_xlfn.XLOOKUP('Data FA Lookup'!$D113,'FC Master'!A:A,'FC Master'!Q:Q,'Data FA Lookup'!$D113,0,1))","v":1120040001}]
["1110","112","TCIS NSS-ISR-Dcty Sv Rem Sv Adm-GF",1120090001,"112NSSDrctySv0001","1950-01-01","9999-12-31","2012-05-14","No","No","No",{"$f":"IF(A114=\"????\",\"\",_xlfn.XLOOKUP('Data FA Lookup'!$D114,'FC Master'!A:A,'FC Master'!Q:Q,'Data FA Lookup'!$D114,0,1))","v":1120040001}]
["1110","112","TCIS NSS-Ntwk and TLC Ops-GF",1120100001,"112NSSNtwkOps0001","1950-01-01","9999-12-31","2012-05-14","No","No","No",{"$f":"IF(A115=\"????\",\"\",_xlfn.XLOOKUP('Data FA Lookup'!$D115,'FC Master'!A:A,'FC Master'!Q:Q,'Data FA Lookup'!$D115,0,1))","v":1120100001}]
["1110","112","TCIS Technical Support-GF",1120110001,"112TechSupp0001","1950-01-01","9999-12-31","2012-05-14","No","No","No",{"$f":"IF(A116=\"????\",\"\",_xlfn.XLOOKUP('Data FA Lookup'!$D116,'FC Master'!A:A,'FC Master'!Q:Q,'Data FA Lookup'!$D116,0,1))","v":1120110001}]
["1110","112","TCIS Tech Support-OAG Grant State",1120112059,"112TechSupp2059","1950-01-01","9999-12-31","2012-05-14","Yes","Yes","Yes",{"$f":"IF(A117=\"????\",\"\",_xlfn.XLOOKUP('Data FA Lookup'!$D117,'FC Master'!A:A,'FC Master'!Q:Q,'Data FA Lookup'!$D117,0,1))","v":1120112059}]
["1110","112","TCIS Technical Support-CO 1999",1120114029,"112TechSupp4029","1950-01-01","2012-09-30","2012-05-14","No","No","No",{"$f":"IF(A118=\"????\",\"\",_xlfn.XLOOKUP('Data FA Lookup'!$D118,'FC Master'!A:A,'FC Master'!Q:Q,'Data FA Lookup'!$D118,0,1))","v":1120114029}]
["1110","112","TCIS Voice Comm-GF",1120120001,"112VocComm0001","1950-01-01","2012-09-30","2012-05-14","No","No","No",{"$f":"IF(A119=\"????\",\"\",_xlfn.XLOOKUP('Data FA Lookup'!$D119,'FC Master'!A:A,'FC Master'!Q:Q,'Data FA Lookup'!$D119,0,1))","v":1120120001}]
["1110","112","TCIS Voice Comm-Cert of Oblig 2001A",1120124034,"112VocComm4034","1950-01-01","2012-09-30","2012-05-14","No","No","No",{"$f":"IF(A120=\"????\",\"\",_xlfn.XLOOKUP('Data FA Lookup'!$D120,'FC Master'!A:A,'FC Master'!Q:Q,'Data FA Lookup'!$D120,0,1))","v":1120124034}]
["1110","112","TCIS Production Support-GF",1120130001,"112PrdSupp0001","1950-01-01","2012-09-30","2012-05-14","No","No","No",{"$f":"IF(A121=\"????\",\"\",_xlfn.XLOOKUP('Data FA Lookup'!$D121,'FC Master'!A:A,'FC Master'!Q:Q,'Data FA Lookup'!$D121,0,1))","v":1120130001}]
["1110","112","TCIS Program Mgmt Office-GF",1120140001,"112ProgMgmt0001","1950-01-01","9999-12-31","2012-05-14","No","No","No",{"$f":"IF(A122=\"????\",\"\",_xlfn.XLOOKUP('Data FA Lookup'!$D122,'FC Master'!A:A,'FC Master'!Q:Q,'Data FA Lookup'!$D122,0,1))","v":1120140001}]
["1110","112","TCIS Project Mgmt Office-CO 2011 Nontax",1120144068,"112ProjMgmt4068","1950-01-01","9999-12-31","2012-05-14","No","No","No",{"$f":"IF(A123=\"????\",\"\",_xlfn.XLOOKUP('Data FA Lookup'!$D123,'FC Master'!A:A,'FC Master'!Q:Q,'Data FA Lookup'!$D123,0,1))","v":1120144068}]
["1110","112","TCIS Information Security-GF",1120150001,"112InfSec0001","1950-01-01","9999-12-31","2012-05-14","No","No","No",{"$f":"IF(A124=\"????\",\"\",_xlfn.XLOOKUP('Data FA Lookup'!$D124,'FC Master'!A:A,'FC Master'!Q:Q,'Data FA Lookup'!$D124,0,1))","v":1120150001}]
["1110","112","TCIS Information Security-Emp Hlth Bnfs",1120158956,"112InfSec8956","1950-01-01","9999-12-31","2012-05-14","No","No","No",{"$f":"IF(A125=\"????\",\"\",_xlfn.XLOOKUP('Data FA Lookup'!$D125,'FC Master'!A:A,'FC Master'!Q:Q,'Data FA Lookup'!$D125,0,1))","v":1120158956}]
["1110","112","TCIS NSS SD-GF",1120160001,"112SDO0001","1950-01-01","9999-12-31","2012-05-14","No","No","No",{"$f":"IF(A126=\"????\",\"\",_xlfn.XLOOKUP('Data FA Lookup'!$D126,'FC Master'!A:A,'FC Master'!Q:Q,'Data FA Lookup'!$D126,0,1))","v":1120160001}]
["1110","112","TCIS NSS SD-Records Mgmt Fd",1120160108,"112SDO0108","1950-01-01","2012-09-30","2012-05-14","No","No","No",{"$f":"IF(A127=\"????\",\"\",_xlfn.XLOOKUP('Data FA Lookup'!$D127,'FC Master'!A:A,'FC Master'!Q:Q,'Data FA Lookup'!$D127,0,1))","v":1120160108}]
["1110","112","TCIS NSS SD-Justice Court Tech Fd",1120160125,"112SDO0125","1950-01-01","2012-09-30","2012-05-14","No","No","No",{"$f":"IF(A128=\"????\",\"\",_xlfn.XLOOKUP('Data FA Lookup'!$D128,'FC Master'!A:A,'FC Master'!Q:Q,'Data FA Lookup'!$D128,0,1))","v":1120160125}]
["1110","112","TCIS NSS SD-Emp Hlth Bnfs",1120168956,"112SDO8956","1950-01-01","2012-09-30","2012-05-14","No","No","No",{"$f":"IF(A129=\"????\",\"\",_xlfn.XLOOKUP('Data FA Lookup'!$D129,'FC Master'!A:A,'FC Master'!Q:Q,'Data FA Lookup'!$D129,0,1))","v":1120168956}]
["1110","112","TCIS ADPS-GF",1120170001,"112ADPS0001","1950-01-01","9999-12-31","2012-05-14","No","No","No",{"$f":"IF(A130=\"????\",\"\",_xlfn.XLOOKUP('Data FA Lookup'!$D130,'FC Master'!A:A,'FC Master'!Q:Q,'Data FA Lookup'!$D130,0,1))","v":1120170001}]
["1110","112","TCIS ADPS-Js Ct Tech Fd",1120170125,"112ADPS0125","1950-01-01","9999-12-31","2012-05-14","No","No","No",{"$f":"IF(A131=\"????\",\"\",_xlfn.XLOOKUP('Data FA Lookup'!$D131,'FC Master'!A:A,'FC Master'!Q:Q,'Data FA Lookup'!$D131,0,1))","v":1120170125}]
["1110","112","TCIS ADPS-CO 2007",1120174052,"112ADPS4052","1950-01-01","9999-12-31","2012-05-14","No","No","No",{"$f":"IF(A132=\"????\",\"\",_xlfn.XLOOKUP('Data FA Lookup'!$D132,'FC Master'!A:A,'FC Master'!Q:Q,'Data FA Lookup'!$D132,0,1))","v":1120174052}]
["1110","112","TCIS ADPS-App and Prod Support-GF",1120180001,"112ADPSSupp0001","1950-01-01","9999-12-31","2012-05-14","No","No","No",{"$f":"IF(A133=\"????\",\"\",_xlfn.XLOOKUP('Data FA Lookup'!$D133,'FC Master'!A:A,'FC Master'!Q:Q,'Data FA Lookup'!$D133,0,1))","v":1120180001}]
["1110","112","TCIS ADPS-Application Development-GF",1120190001,"112ADPSDev0001","1950-01-01","9999-12-31","2012-05-14","No","No","No",{"$f":"IF(A134=\"????\",\"\",_xlfn.XLOOKUP('Data FA Lookup'!$D134,'FC Master'!A:A,'FC Master'!Q:Q,'Data FA Lookup'!$D134,0,1))","v":1120190001}]
["1110","112","TCIS Network Services-GF",1120200001,"112NtwkSvs0001","1950-01-01","2012-09-30","2012-05-14","No","No","No",{"$f":"IF(A135=\"????\",\"\",_xlfn.XLOOKUP('Data FA Lookup'!$D135,'FC Master'!A:A,'FC Master'!Q:Q,'Data FA Lookup'!$D135,0,1))","v":1120200001}]
["1110","112","TCIS Network Services-CO 2001A",1120204034,"112NtwkSvs4034","1950-01-01","2012-09-30","2012-05-14","No","No","No",{"$f":"IF(A136=\"????\",\"\",_xlfn.XLOOKUP('Data FA Lookup'!$D136,'FC Master'!A:A,'FC Master'!Q:Q,'Data FA Lookup'!$D136,0,1))","v":1120204034}]
["1110","112","TCIS Network Services-CO 2005",1120204044,"112NtwkSvs4044","1950-01-01","2012-09-30","2012-05-14","No","No","No",{"$f":"IF(A137=\"????\",\"\",_xlfn.XLOOKUP('Data FA Lookup'!$D137,'FC Master'!A:A,'FC Master'!Q:Q,'Data FA Lookup'!$D137,0,1))","v":1120204044}]
["1110","112","TCIS Computer Central-GF",1120210001,"112CtlCompGenAdm0001","1950-01-01","2012-09-30","2012-05-14","No","No","No",{"$f":"IF(A138=\"????\",\"\",_xlfn.XLOOKUP('Data FA Lookup'!$D138,'FC Master'!A:A,'FC Master'!Q:Q,'Data FA Lookup'!$D138,0,1))","v":1120210001}]
["1110","112","TCIS BEFIT-GF",1120220001,"112BEFIT0001","1950-01-01","9999-12-31","2012-05-14","No","No","No",{"$f":"IF(A139=\"????\",\"\",_xlfn.XLOOKUP('Data FA Lookup'!$D139,'FC Master'!A:A,'FC Master'!Q:Q,'Data FA Lookup'!$D139,0,1))","v":1120220001}]
["1110","112","TCIS Program Mgmt Office MDS-GF",1120230001,"112PMMDS0001","1950-01-01","9999-12-31","2012-05-14","No","No","No",{"$f":"IF(A140=\"????\",\"\",_xlfn.XLOOKUP('Data FA Lookup'!$D140,'FC Master'!A:A,'FC Master'!Q:Q,'Data FA Lookup'!$D140,0,1))","v":1120140001}]
["1210","112","TCIS Computer Ctl Crm Js-GF",1120240001,"112CtlCompCrmJs0001","1950-01-01","2012-09-30","2012-05-14","No","No","No",{"$f":"IF(A141=\"????\",\"\",_xlfn.XLOOKUP('Data FA Lookup'!$D141,'FC Master'!A:A,'FC Master'!Q:Q,'Data FA Lookup'!$D141,0,1))","v":1120240001}]
["1110","112","TCIS NSS-Server Life Mgmt-GF",1120250001,"112NSSSLM0001","1950-01-01","9999-12-31","2012-06-18","No","No","No",{"$f":"IF(A142=\"????\",\"\",_xlfn.XLOOKUP('Data FA Lookup'!$D142,'FC Master'!A:A,'FC Master'!Q:Q,'Data FA Lookup'!$D142,0,1))","v":1120040001}]
["1110","112","TCIS NSS-Inf Security Optns-GF",1120260001,"112NSSISO0001","1950-01-01","9999-12-31","2012-06-18","No","No","No",{"$f":"IF(A143=\"????\",\"\",_xlfn.XLOOKUP('Data FA Lookup'!$D143,'FC Master'!A:A,'FC Master'!Q:Q,'Data FA Lookup'!$D143,0,1))","v":1120040001}]
["1110","112","TCIS ADPS-Training-GF",1120270001,"112ADPSTraining0001","2012-10-01","9999-12-31","2013-03-27","No","No","No",{"$f":"IF(A144=\"????\",\"\",_xlfn.XLOOKUP('Data FA Lookup'!$D144,'FC Master'!A:A,'FC Master'!Q:Q,'Data FA Lookup'!$D144,0,1))","v":1120170001}]
["1110","112","TCIS Prog Mgmt Web DevTeam-GF",1120280001,"112PMWebDevTm0001","2012-10-01","9999-12-31","2013-03-27","No","No","No",{"$f":"IF(A145=\"????\",\"\",_xlfn.XLOOKUP('Data FA Lookup'!$D145,'FC Master'!A:A,'FC Master'!Q:Q,'Data FA Lookup'!$D145,0,1))","v":1120140001}]
["1110","112","TCIS Prog Mgmt Mobile Data Team-GF",1120290001,"112PMMobData0001","2012-10-01","9999-12-31","2013-03-27","No","No","No",{"$f":"IF(A146=\"????\",\"\",_xlfn.XLOOKUP('Data FA Lookup'!$D146,'FC Master'!A:A,'FC Master'!Q:Q,'Data FA Lookup'!$D146,0,1))","v":1120140001}]
["1110","112","TCIS NSS-Client Technology Services-GF",1120300001,"112NSS-CTS0001","2012-10-01","9999-12-31","2013-10-28","No","No","No",{"$f":"IF(A147=\"????\",\"\",_xlfn.XLOOKUP('Data FA Lookup'!$D147,'FC Master'!A:A,'FC Master'!Q:Q,'Data FA Lookup'!$D147,0,1))","v":1120040001}]
["1110","112","TCIS Privacy Office-GF",1120310001,"112PrivOffce0001","1950-01-01","9999-12-31","2019-06-04","No","No","No",{"$f":"IF(A148=\"????\",\"\",_xlfn.XLOOKUP('Data FA Lookup'!$D148,'FC Master'!A:A,'FC Master'!Q:Q,'Data FA Lookup'!$D148,0,1))","v":1120310001}]
["1110","112","TCIS BPE-GF",1120500001,"112BPE0001","1950-01-01","9999-12-31","2016-08-29","No","No","No",{"$f":"IF(A149=\"????\",\"\",_xlfn.XLOOKUP('Data FA Lookup'!$D149,'FC Master'!A:A,'FC Master'!Q:Q,'Data FA Lookup'!$D149,0,1))","v":1120500001}]
["1110","112","TCIS CAR-GenAdm GF",1128000001,"112CARGenAdm0001","1950-01-01","9999-12-31","2012-05-15","No","No","No",{"$f":"IF(A150=\"????\",\"\",_xlfn.XLOOKUP('Data FA Lookup'!$D150,'FC Master'!A:A,'FC Master'!Q:Q,'Data FA Lookup'!$D150,0,1))","v":1128000001}]
["1210","112","TCIS CAR-CrmJs GF",1128010001,"112CARCrmJs0001","1950-01-01","9999-12-31","2012-05-15","No","No","No",{"$f":"IF(A151=\"????\",\"\",_xlfn.XLOOKUP('Data FA Lookup'!$D151,'FC Master'!A:A,'FC Master'!Q:Q,'Data FA Lookup'!$D151,0,1))","v":1128010001}]
["1710","112","TCIS CAR-RdBg GF",1128020001,"112CARRdBg0001","1950-01-01","9999-12-31","2012-05-15","No","No","No",{"$f":"IF(A152=\"????\",\"\",_xlfn.XLOOKUP('Data FA Lookup'!$D152,'FC Master'!A:A,'FC Master'!Q:Q,'Data FA Lookup'!$D152,0,1))","v":1128020001}]
["1310","112","TCIS CAR-LE GF",1128030001,"112CARLE0001","1950-01-01","9999-12-31","2012-05-15","No","No","No",{"$f":"IF(A153=\"????\",\"\",_xlfn.XLOOKUP('Data FA Lookup'!$D153,'FC Master'!A:A,'FC Master'!Q:Q,'Data FA Lookup'!$D153,0,1))","v":1128030001}]
["1110","112","TCIS Reimbursement Resolution Funds-GF",1129000001,"112ReimburseRes0001","1950-01-01","9999-12-31","2013-05-07","No","No","No",{"$f":"IF(A154=\"????\",\"\",_xlfn.XLOOKUP('Data FA Lookup'!$D154,'FC Master'!A:A,'FC Master'!Q:Q,'Data FA Lookup'!$D154,0,1))","v":1129000001}]
["1140","114","FMD Adm-GF",1140010001,"114Adm0001","1950-01-01","9999-12-31","2012-05-14","No","No","No",{"$f":"IF(A155=\"????\",\"\",_xlfn.XLOOKUP('Data FA Lookup'!$D155,'FC Master'!A:A,'FC Master'!Q:Q,'Data FA Lookup'!$D155,0,1))","v":1140010001}]
["1140","114","FMD Groundskeeping-GF",1140020001,"114Grndskpng0001","1950-01-01","9999-12-31","2012-05-14","No","No","No",{"$f":"IF(A156=\"????\",\"\",_xlfn.XLOOKUP('Data FA Lookup'!$D156,'FC Master'!A:A,'FC Master'!Q:Q,'Data FA Lookup'!$D156,0,1))","v":1140020001}]
["1140","114","FMD Custodial Svs-GF",1140030001,"114Custodial0001","1950-01-01","9999-12-31","2012-05-14","No","No","No",{"$f":"IF(A157=\"????\",\"\",_xlfn.XLOOKUP('Data FA Lookup'!$D157,'FC Master'!A:A,'FC Master'!Q:Q,'Data FA Lookup'!$D157,0,1))","v":1140030001}]
["1140","114","FMD Security Svs-GF",1140040001,"114SecuritySvs0001","1950-01-01","9999-12-31","2012-05-14","No","No","No",{"$f":"IF(A158=\"????\",\"\",_xlfn.XLOOKUP('Data FA Lookup'!$D158,'FC Master'!A:A,'FC Master'!Q:Q,'Data FA Lookup'!$D158,0,1))","v":1140040001}]
["1140","114","FMD Security Svs-Ele. Contracts Fd",1140040128,"114SecuritySvs0128","1950-01-01","9999-12-31","2019-06-04","No","No","No",{"$f":"IF(A159=\"????\",\"\",_xlfn.XLOOKUP('Data FA Lookup'!$D159,'FC Master'!A:A,'FC Master'!Q:Q,'Data FA Lookup'!$D159,0,1))","v":1140040128}]
["1140","114","FMD Security Svs-Js Ct Bldg Sec Fd",1140040136,"114SecuritySvs0136","1950-01-01","9999-12-31","2012-05-14","No","No","No",{"$f":"IF(A160=\"????\",\"\",_xlfn.XLOOKUP('Data FA Lookup'!$D160,'FC Master'!A:A,'FC Master'!Q:Q,'Data FA Lookup'!$D160,0,1))","v":1140040136}]
["1140","114","FMD Security Services-Cap Proj",1140044063,"114SecuritySvs4063","1950-01-01","9999-12-31","2012-05-14","No","No","No",{"$f":"IF(A161=\"????\",\"\",_xlfn.XLOOKUP('Data FA Lookup'!$D161,'FC Master'!A:A,'FC Master'!Q:Q,'Data FA Lookup'!$D161,0,1))","v":1140044063}]
["1140","114","FMD Operations 700 Lavaca-Lavaca Cmplx",1140060002,"114Lavaca0002","1950-01-01","9999-12-31","2012-05-14","No","No","No",{"$f":"IF(A162=\"????\",\"\",_xlfn.XLOOKUP('Data FA Lookup'!$D162,'FC Master'!A:A,'FC Master'!Q:Q,'Data FA Lookup'!$D162,0,1))","v":1140060002}]
["1750","114","FMD Operations-Balcones Canyonlnds Pres.",1140060115,"114BCP0115","1950-01-01","9999-12-31","2019-11-13","No","No","No",{"$f":"IF(A163=\"????\",\"\",_xlfn.XLOOKUP('Data FA Lookup'!$D163,'FC Master'!A:A,'FC Master'!Q:Q,'Data FA Lookup'!$D163,0,1))","v":1140060115}]
["1140","114","FMD Facilities Engineering-Cap Proj",1140070000,"114FacEng0000","1950-01-01","9999-12-31","2012-05-14","No","No","No",{"$f":"IF(A164=\"????\",\"\",_xlfn.XLOOKUP('Data FA Lookup'!$D164,'FC Master'!A:A,'FC Master'!Q:Q,'Data FA Lookup'!$D164,0,1))","v":1140070000}]
["1610","114","FMD Tx Expo & Heritage-GF",1140080001,"114TxExpo0001","1950-01-01","9999-12-31","2012-05-14","No","No","No",{"$f":"IF(A165=\"????\",\"\",_xlfn.XLOOKUP('Data FA Lookup'!$D165,'FC Master'!A:A,'FC Master'!Q:Q,'Data FA Lookup'!$D165,0,1))","v":1140080001}]
["1610","114","FMD-Tx Expo & Heritage-Expo Fd",1140080003,"114TxExpo0003","1950-01-01","9999-12-31","2012-05-14","No","No","No",{"$f":"IF(A166=\"????\",\"\",_xlfn.XLOOKUP('Data FA Lookup'!$D166,'FC Master'!A:A,'FC Master'!Q:Q,'Data FA Lookup'!$D166,0,1))","v":1140080003}]
["1610","114","FMD-Tx Expo & Heritage-LT CO 2003",1140084038,"114TxExpo4038","1950-01-01","9999-12-31","2012-05-14","No","No","No",{"$f":"IF(A167=\"????\",\"\",_xlfn.XLOOKUP('Data FA Lookup'!$D167,'FC Master'!A:A,'FC Master'!Q:Q,'Data FA Lookup'!$D167,0,1))","v":1140084038}]
["1140","114","FMD Building Maintenance-Cap Proj",1140090000,"114BdMnt0000","1950-01-01","9999-12-31","2012-05-14","No","No","No",{"$f":"IF(A168=\"????\",\"\",_xlfn.XLOOKUP('Data FA Lookup'!$D168,'FC Master'!A:A,'FC Master'!Q:Q,'Data FA Lookup'!$D168,0,1))","v":1140090000}]
["1140","114","FMD Building Maintenance-GF",1140090001,"114BdMnt0001","1950-01-01","9999-12-31","2012-05-14","No","No","No",{"$f":"IF(A169=\"????\",\"\",_xlfn.XLOOKUP('Data FA Lookup'!$D169,'FC Master'!A:A,'FC Master'!Q:Q,'Data FA Lookup'!$D169,0,1))","v":1140090001}]
["1140","114","FMD Building Maintenance Js Ct Tech",1140090125,"114BdMnt0125","1950-01-01","9999-12-31","2012-05-14","No","No","No",{"$f":"IF(A170=\"????\",\"\",_xlfn.XLOOKUP('Data FA Lookup'!$D170,'FC Master'!A:A,'FC Master'!Q:Q,'Data FA Lookup'!$D170,0,1))","v":1140090125}]
["1140","114","FMD Old Courthouse Block-GF",1140100001,"114Courthouse0001","1950-01-01","9999-12-31","2012-05-14","No","No","No",{"$f":"IF(A171=\"????\",\"\",_xlfn.XLOOKUP('Data FA Lookup'!$D171,'FC Master'!A:A,'FC Master'!Q:Q,'Data FA Lookup'!$D171,0,1))","v":1140100001}]
["1140","114","FMD Proj Mgmt Svs FacMgmt",1140110000,"114PMFacMgmt0000","1950-01-01","9999-12-31","2012-05-14","No","No","No",{"$f":"IF(A172=\"????\",\"\",_xlfn.XLOOKUP('Data FA Lookup'!$D172,'FC Master'!A:A,'FC Master'!Q:Q,'Data FA Lookup'!$D172,0,1))","v":1140110000}]
["1140","114","FMD PM Personnel Positions-GF",1140110001,"114PMPerPos0001","2013-10-01","9999-12-31","2014-04-14","No","No","No",{"$f":"IF(A173=\"????\",\"\",_xlfn.XLOOKUP('Data FA Lookup'!$D173,'FC Master'!A:A,'FC Master'!Q:Q,'Data FA Lookup'!$D173,0,1))","v":1140110001}]
["1140","114","FMD Proj Mgmt Svs FacMgmt",1140115001,"114PMFacMgmt5001","1950-01-01","9999-12-31","2016-10-06","No","No","No",{"$f":"IF(A174=\"????\",\"\",_xlfn.XLOOKUP('Data FA Lookup'!$D174,'FC Master'!A:A,'FC Master'!Q:Q,'Data FA Lookup'!$D174,0,1))","v":1140115001}]
["1210","114","FMD Proj Mgmt Svs Crm Jus",1140120000,"114PMCrmJus0000","1950-01-01","9999-12-31","2012-05-14","No","No","No",{"$f":"IF(A175=\"????\",\"\",_xlfn.XLOOKUP('Data FA Lookup'!$D175,'FC Master'!A:A,'FC Master'!Q:Q,'Data FA Lookup'!$D175,0,1))","v":1140120000}]
["1310","114","FMD Proj Mgmt Svs Law Enforcement",1140130000,"114PMLE0000","1950-01-01","9999-12-31","2012-05-14","No","No","No",{"$f":"IF(A176=\"????\",\"\",_xlfn.XLOOKUP('Data FA Lookup'!$D176,'FC Master'!A:A,'FC Master'!Q:Q,'Data FA Lookup'!$D176,0,1))","v":1140130000}]
["1410","114","FMD Proj Mgmt Svs Housing & Booking",1140140000,"114PMHsgBkg0000","1950-01-01","9999-12-31","2012-05-14","No","No","No",{"$f":"IF(A177=\"????\",\"\",_xlfn.XLOOKUP('Data FA Lookup'!$D177,'FC Master'!A:A,'FC Master'!Q:Q,'Data FA Lookup'!$D177,0,1))","v":1140140000}]
["1230","114","FMD Proj Mgmt Svs Juvenile Svs",1140150000,"114PMJuvSv0000","1950-01-01","9999-12-31","2012-05-14","No","No","No",{"$f":"IF(A178=\"????\",\"\",_xlfn.XLOOKUP('Data FA Lookup'!$D178,'FC Master'!A:A,'FC Master'!Q:Q,'Data FA Lookup'!$D178,0,1))","v":1140150000}]
["1520","114","FMD Proj Mgmt Svs Public Health",1140160000,"114PMPbcHlh0000","1950-01-01","9999-12-31","2012-05-14","No","No","No",{"$f":"IF(A179=\"????\",\"\",_xlfn.XLOOKUP('Data FA Lookup'!$D179,'FC Master'!A:A,'FC Master'!Q:Q,'Data FA Lookup'!$D179,0,1))","v":1140160000}]
["1530","114","FMD Proj Mgmt Svs Human Services",1140170000,"114PMHumanSv0000","1950-01-01","9999-12-31","2012-05-14","No","No","No",{"$f":"IF(A180=\"????\",\"\",_xlfn.XLOOKUP('Data FA Lookup'!$D180,'FC Master'!A:A,'FC Master'!Q:Q,'Data FA Lookup'!$D180,0,1))","v":1140170000}]
["1710","114","FMD Proj Mgmt Svs Roads & Bridges",1140180000,"114PMRdBg0000","1950-01-01","9999-12-31","2012-05-14","No","No","No",{"$f":"IF(A181=\"????\",\"\",_xlfn.XLOOKUP('Data FA Lookup'!$D181,'FC Master'!A:A,'FC Master'!Q:Q,'Data FA Lookup'!$D181,0,1))","v":1140180000}]
["1630","114","FMD Proj Mgmt Svs Parks & Rec",1140190000,"114PMParksRec0000","1950-01-01","9999-12-31","2012-05-14","No","No","No",{"$f":"IF(A182=\"????\",\"\",_xlfn.XLOOKUP('Data FA Lookup'!$D182,'FC Master'!A:A,'FC Master'!Q:Q,'Data FA Lookup'!$D182,0,1))","v":1140190000}]
["1110","114","FMD Proj Mgmt Svs General Adm",1140200000,"114PMGenAdm0000","1950-01-01","9999-12-31","2012-05-14","No","No","No",{"$f":"IF(A183=\"????\",\"\",_xlfn.XLOOKUP('Data FA Lookup'!$D183,'FC Master'!A:A,'FC Master'!Q:Q,'Data FA Lookup'!$D183,0,1))","v":1140200000}]
["1220","114","FMD Proj Mgmt Svs Civil Justice",1140210000,"114PrjMgmtSvsCivJstc","1950-01-01","9999-12-31","2018-02-02","No","No","No",{"$f":"IF(A184=\"????\",\"\",_xlfn.XLOOKUP('Data FA Lookup'!$D184,'FC Master'!A:A,'FC Master'!Q:Q,'Data FA Lookup'!$D184,0,1))","v":1140210000}]
["1140","114","FMD CAR-FacMgmt GF",1148000001,"114CARFacMgmt0001","1950-01-01","9999-12-31","2012-05-15","No","No","No",{"$f":"IF(A185=\"????\",\"\",_xlfn.XLOOKUP('Data FA Lookup'!$D185,'FC Master'!A:A,'FC Master'!Q:Q,'Data FA Lookup'!$D185,0,1))","v":1148000001}]
["1520","114","FMD CAR-PbcHlh GF",1148010001,"114CARPbcHlh0001","1950-01-01","9999-12-31","2012-05-15","No","No","No",{"$f":"IF(A186=\"????\",\"\",_xlfn.XLOOKUP('Data FA Lookup'!$D186,'FC Master'!A:A,'FC Master'!Q:Q,'Data FA Lookup'!$D186,0,1))","v":1148010001}]
["1210","114","FMD CAR-CrmJs GF",1148020001,"114CARCrmJs0001","1950-01-01","9999-12-31","2012-05-15","No","No","No",{"$f":"IF(A187=\"????\",\"\",_xlfn.XLOOKUP('Data FA Lookup'!$D187,'FC Master'!A:A,'FC Master'!Q:Q,'Data FA Lookup'!$D187,0,1))","v":1148020001}]
["1310","114","FMD CAR-LE GF",1148030001,"114CARLE0001","1950-01-01","9999-12-31","2012-05-15","No","No","No",{"$f":"IF(A188=\"????\",\"\",_xlfn.XLOOKUP('Data FA Lookup'!$D188,'FC Master'!A:A,'FC Master'!Q:Q,'Data FA Lookup'!$D188,0,1))","v":1148030001}]
["1410","114","FMD CAR-HsgBkg GF",1148040001,"114CARHsgBkg0001","1950-01-01","9999-12-31","2012-05-15","No","No","No",{"$f":"IF(A189=\"????\",\"\",_xlfn.XLOOKUP('Data FA Lookup'!$D189,'FC Master'!A:A,'FC Master'!Q:Q,'Data FA Lookup'!$D189,0,1))","v":1148040001}]
["1230","114","FMD CAR-JuvSv GF",1148050001,"114CARJuvSv0001","1950-01-01","9999-12-31","2012-05-15","No","No","No",{"$f":"IF(A190=\"????\",\"\",_xlfn.XLOOKUP('Data FA Lookup'!$D190,'FC Master'!A:A,'FC Master'!Q:Q,'Data FA Lookup'!$D190,0,1))","v":1148050001}]
["1630","114","FMD CAR-ParksRec GF",1148060001,"114CARParksRec0001","1950-01-01","9999-12-31","2012-05-15","No","No","No",{"$f":"IF(A191=\"????\",\"\",_xlfn.XLOOKUP('Data FA Lookup'!$D191,'FC Master'!A:A,'FC Master'!Q:Q,'Data FA Lookup'!$D191,0,1))","v":1148060001}]
["1610","114","FMD CAR-EconDev GF",1148070001,"114CAREconDev0001","1950-01-01","9999-12-31","2012-05-15","No","No","No",{"$f":"IF(A192=\"????\",\"\",_xlfn.XLOOKUP('Data FA Lookup'!$D192,'FC Master'!A:A,'FC Master'!Q:Q,'Data FA Lookup'!$D192,0,1))","v":1148070001}]
["1530","114","FMD CAR-HumSv GF",1148080001,"114CARHumSv0001","1950-01-01","9999-12-31","2012-05-15","No","No","No",{"$f":"IF(A193=\"????\",\"\",_xlfn.XLOOKUP('Data FA Lookup'!$D193,'FC Master'!A:A,'FC Master'!Q:Q,'Data FA Lookup'!$D193,0,1))","v":1148080001}]
["1220","114","FMD CAR - Civil Justice GF",1148090001,"114CAR-CivJust0001","1950-01-01","9999-12-31","2018-02-02","No","No","No",{"$f":"IF(A194=\"????\",\"\",_xlfn.XLOOKUP('Data FA Lookup'!$D194,'FC Master'!A:A,'FC Master'!Q:Q,'Data FA Lookup'!$D194,0,1))","v":1148090001}]
["1140","114","FMD Reimbursement Resolution Funds-GF",1149000001,"114ReimburseRes0001","1950-01-01","9999-12-31","2013-05-07","No","No","No",{"$f":"IF(A195=\"????\",\"\",_xlfn.XLOOKUP('Data FA Lookup'!$D195,'FC Master'!A:A,'FC Master'!Q:Q,'Data FA Lookup'!$D195,0,1))","v":1149000001}]
["1120","115","Purchasing Office Administration-GF",1150010001,"115Adm0001","1950-01-01","9999-12-31","2012-05-14","No","No","No",{"$f":"IF(A196=\"????\",\"\",_xlfn.XLOOKUP('Data FA Lookup'!$D196,'FC Master'!A:A,'FC Master'!Q:Q,'Data FA Lookup'!$D196,0,1))","v":1150010001}]
["1120","115","Purchasing Office Fixed Assets-GF",1150020001,"115FxdAssets0001","1950-01-01","9999-12-31","2012-05-14","No","No","No",{"$f":"IF(A197=\"????\",\"\",_xlfn.XLOOKUP('Data FA Lookup'!$D197,'FC Master'!A:A,'FC Master'!Q:Q,'Data FA Lookup'!$D197,0,1))","v":1150020001}]
["1120","115","Purchasing Office HUB Pram-GF",1150030001,"115HUB0001","1950-01-01","9999-12-31","2012-05-14","No","No","No",{"$f":"IF(A198=\"????\",\"\",_xlfn.XLOOKUP('Data FA Lookup'!$D198,'FC Master'!A:A,'FC Master'!Q:Q,'Data FA Lookup'!$D198,0,1))","v":1150030001}]
["1120","115","Purchasing Office Procurement-GF",1150040001,"115Prcmnt0001","1950-01-01","9999-12-31","2019-03-18","No","No","No",{"$f":"IF(A199=\"????\",\"\",_xlfn.XLOOKUP('Data FA Lookup'!$D199,'FC Master'!A:A,'FC Master'!Q:Q,'Data FA Lookup'!$D199,0,1))","v":1150040001}]
["1120","115","Purchasing Office Contract Compliance-GF",1150050001,"115CntrcComp0001","1950-01-01","9999-12-31","2019-03-18","No","No","No",{"$f":"IF(A200=\"????\",\"\",_xlfn.XLOOKUP('Data FA Lookup'!$D200,'FC Master'!A:A,'FC Master'!Q:Q,'Data FA Lookup'!$D200,0,1))","v":1150050001}]
["1120","115","Purchasing CAR-Purchasing GF",1158000001,"115CARPurchasing0001","1950-01-01","9999-12-31","2013-04-17","No","No","No",{"$f":"IF(A201=\"????\",\"\",_xlfn.XLOOKUP('Data FA Lookup'!$D201,'FC Master'!A:A,'FC Master'!Q:Q,'Data FA Lookup'!$D201,0,1))","v":1158000001}]
["1530","116","Veterans Services Adm-GF",1160010001,"116VetSvsAdm0001","1950-01-01","9999-12-31","2017-08-31","No","No","No",{"$f":"IF(A202=\"????\",\"\",_xlfn.XLOOKUP('Data FA Lookup'!$D202,'FC Master'!A:A,'FC Master'!Q:Q,'Data FA Lookup'!$D202,0,1))","v":1160010001}]
["1530","","Veterans Services Adm-Juror Contrib Fd",1160010162,"116VetSvsAdm0162","1950-01-01","9999-12-31","2021-08-26","No","No","No",{"$f":"IF(A203=\"????\",\"\",_xlfn.XLOOKUP('Data FA Lookup'!$D203,'FC Master'!A:A,'FC Master'!Q:Q,'Data FA Lookup'!$D203,0,1))","v":0}]
["1650","117","Historical Commission-GF",1170010001,"117HistComm0001","1950-01-01","9999-12-31","2012-05-14","No","No","No",{"$f":"IF(A204=\"????\",\"\",_xlfn.XLOOKUP('Data FA Lookup'!$D204,'FC Master'!A:A,'FC Master'!Q:Q,'Data FA Lookup'!$D204,0,1))","v":1170010001}]
["1650","117","Historical Commission-City of Manor Grnt",1170012007,"117HistComm2007","1950-01-01","9999-12-31","2012-05-14","Yes","Yes","Yes",{"$f":"IF(A205=\"????\",\"\",_xlfn.XLOOKUP('Data FA Lookup'!$D205,'FC Master'!A:A,'FC Master'!Q:Q,'Data FA Lookup'!$D205,0,1))","v":1170012007}]
["1650","117","Historical Commission-Tx Hist Cmn Grant",1170012035,"117HistComm2035","1950-01-01","9999-12-31","2012-05-14","Yes","Yes","Yes",{"$f":"IF(A206=\"????\",\"\",_xlfn.XLOOKUP('Data FA Lookup'!$D206,'FC Master'!A:A,'FC Master'!Q:Q,'Data FA Lookup'!$D206,0,1))","v":1170012035}]
["1220","119","CA Civil-GF",1190010001,"119Civ0001","1950-01-01","9999-12-31","2012-05-14","No","No","No",{"$f":"IF(A207=\"????\",\"\",_xlfn.XLOOKUP('Data FA Lookup'!$D207,'FC Master'!A:A,'FC Master'!Q:Q,'Data FA Lookup'!$D207,0,1))","v":1190010001}]
["1220","119","CA Civil-LEOSE/Elected Ofls Fd",1190010116,"119Civ0116","1950-01-01","9999-12-31","2012-05-14","No","No","No",{"$f":"IF(A208=\"????\",\"\",_xlfn.XLOOKUP('Data FA Lookup'!$D208,'FC Master'!A:A,'FC Master'!Q:Q,'Data FA Lookup'!$D208,0,1))","v":1190010116}]
["1220","119","CA Civil-COA Grant",1190012006,"119Civ2006","1950-01-01","2012-09-30","2012-05-14","Yes","Yes","Yes",{"$f":"IF(A209=\"????\",\"\",_xlfn.XLOOKUP('Data FA Lookup'!$D209,'FC Master'!A:A,'FC Master'!Q:Q,'Data FA Lookup'!$D209,0,1))","v":1190012006}]
["1220","119","CA Civil-OOG Crm Jus Dv Grant",1190012016,"119Civ2016","1950-01-01","2012-09-30","2012-05-14","Yes","Yes","Yes",{"$f":"IF(A210=\"????\",\"\",_xlfn.XLOOKUP('Data FA Lookup'!$D210,'FC Master'!A:A,'FC Master'!Q:Q,'Data FA Lookup'!$D210,0,1))","v":1190012016}]
["1220","119","CA Civil-OAG Grant State",1190012059,"119Civ2059","1950-01-01","2012-09-30","2012-05-14","Yes","Yes","Yes",{"$f":"IF(A211=\"????\",\"\",_xlfn.XLOOKUP('Data FA Lookup'!$D211,'FC Master'!A:A,'FC Master'!Q:Q,'Data FA Lookup'!$D211,0,1))","v":1190012059}]
["1220","119","CA Civil-UT Rd Bds 1998",1190014019,"119Civ4019","1950-01-01","2012-09-30","2012-05-14","No","No","No",{"$f":"IF(A212=\"????\",\"\",_xlfn.XLOOKUP('Data FA Lookup'!$D212,'FC Master'!A:A,'FC Master'!Q:Q,'Data FA Lookup'!$D212,0,1))","v":1190014019}]
["1220","119","CA Civil-PIB 1998-Parks",1190014020,"119Civ4020","1950-01-01","2012-09-30","2012-05-14","No","No","No",{"$f":"IF(A213=\"????\",\"\",_xlfn.XLOOKUP('Data FA Lookup'!$D213,'FC Master'!A:A,'FC Master'!Q:Q,'Data FA Lookup'!$D213,0,1))","v":1190014020}]
["1220","119","CA Civil-UT Rd Bds 1998-Sh45",1190014023,"119Civ4023","1950-01-01","2012-09-30","2012-05-14","No","No","No",{"$f":"IF(A214=\"????\",\"\",_xlfn.XLOOKUP('Data FA Lookup'!$D214,'FC Master'!A:A,'FC Master'!Q:Q,'Data FA Lookup'!$D214,0,1))","v":1190014023}]
["1210","119","CA Criminal-GF",1190020001,"119Crm0001","1950-01-01","9999-12-31","2012-05-14","No","No","No",{"$f":"IF(A215=\"????\",\"\",_xlfn.XLOOKUP('Data FA Lookup'!$D215,'FC Master'!A:A,'FC Master'!Q:Q,'Data FA Lookup'!$D215,0,1))","v":1190020001}]
["1210","119","CA Criminal-LEOSE/Elected Ofls Fd",1190020116,"119Crm0116","1950-01-01","9999-12-31","2012-05-14","No","No","No",{"$f":"IF(A216=\"????\",\"\",_xlfn.XLOOKUP('Data FA Lookup'!$D216,'FC Master'!A:A,'FC Master'!Q:Q,'Data FA Lookup'!$D216,0,1))","v":1190020116}]
["1210","119","CA Criminal-DWI Pre-Diversion",1190020154,"119Crim0154","2017-05-03","9999-12-31","2017-05-03","No","No","No",{"$f":"IF(A217=\"????\",\"\",_xlfn.XLOOKUP('Data FA Lookup'!$D217,'FC Master'!A:A,'FC Master'!Q:Q,'Data FA Lookup'!$D217,0,1))","v":1190020154}]
["1220","119","CA Check Division-GF",1190030001,"119ChkDiv0001","1950-01-01","9999-12-31","2012-05-14","No","No","No",{"$f":"IF(A218=\"????\",\"\",_xlfn.XLOOKUP('Data FA Lookup'!$D218,'FC Master'!A:A,'FC Master'!Q:Q,'Data FA Lookup'!$D218,0,1))","v":1190030001}]
["1210","119","CA Check Division-CAPSO Fd",1190030101,"119ChkDiv0101","1950-01-01","9999-12-31","2012-05-14","No","No","No",{"$f":"IF(A219=\"????\",\"\",_xlfn.XLOOKUP('Data FA Lookup'!$D219,'FC Master'!A:A,'FC Master'!Q:Q,'Data FA Lookup'!$D219,0,1))","v":1190030101}]
["1220","119","CA Underage Drinking Prvtn-GF",1190040001,"119UndAgeDrk0001","1950-01-01","9999-12-31","2012-05-14","No","No","No",{"$f":"IF(A220=\"????\",\"\",_xlfn.XLOOKUP('Data FA Lookup'!$D220,'FC Master'!A:A,'FC Master'!Q:Q,'Data FA Lookup'!$D220,0,1))","v":1190040001}]
["1220","119","CA Underage Drinking Prvtn-TxDOT Grant",1190042031,"119UndAgeDrk2031","1950-01-01","9999-12-31","2012-05-14","Yes","Yes","Yes",{"$f":"IF(A221=\"????\",\"\",_xlfn.XLOOKUP('Data FA Lookup'!$D221,'FC Master'!A:A,'FC Master'!Q:Q,'Data FA Lookup'!$D221,0,1))","v":1190042031}]
["1220","119","CA Civil-Prof Prosecutors Fd",1190050122,"119Civ0122","1950-01-01","9999-12-31","2012-05-14","No","No","No",{"$f":"IF(A222=\"????\",\"\",_xlfn.XLOOKUP('Data FA Lookup'!$D222,'FC Master'!A:A,'FC Master'!Q:Q,'Data FA Lookup'!$D222,0,1))","v":1190050122}]
["1220","119","CA CAR-CivJs GF",1198000001,"119CAR0001","1950-01-01","9999-12-31","2012-05-15","No","No","No",{"$f":"IF(A223=\"????\",\"\",_xlfn.XLOOKUP('Data FA Lookup'!$D223,'FC Master'!A:A,'FC Master'!Q:Q,'Data FA Lookup'!$D223,0,1))","v":1198000001}]
["1210","119","CA CAR-CrmJs GF",1198010001,"119CAR0001","1950-01-01","9999-12-31","2012-05-15","No","No","No",{"$f":"IF(A224=\"????\",\"\",_xlfn.XLOOKUP('Data FA Lookup'!$D224,'FC Master'!A:A,'FC Master'!Q:Q,'Data FA Lookup'!$D224,0,1))","v":1198010001}]
["1110","120","Co Clerk Adm-GF",1200010001,"120Adm0001","1950-01-01","9999-12-31","2012-05-14","No","No","No",{"$f":"IF(A225=\"????\",\"\",_xlfn.XLOOKUP('Data FA Lookup'!$D225,'FC Master'!A:A,'FC Master'!Q:Q,'Data FA Lookup'!$D225,0,1))","v":1200010001}]
["1110","120","Co Clerk Administration-Records Mgmt Fd",1200010108,"120Admin0108","1950-01-01","9999-12-31","2013-05-21","No","No","No",{"$f":"IF(A226=\"????\",\"\",_xlfn.XLOOKUP('Data FA Lookup'!$D226,'FC Master'!A:A,'FC Master'!Q:Q,'Data FA Lookup'!$D226,0,1))","v":1200010108}]
["1110","120","Co Clerk Computer Services-GF",1200020001,"120CompSvs0001","1950-01-01","9999-12-31","2012-05-14","No","No","No",{"$f":"IF(A227=\"????\",\"\",_xlfn.XLOOKUP('Data FA Lookup'!$D227,'FC Master'!A:A,'FC Master'!Q:Q,'Data FA Lookup'!$D227,0,1))","v":1200020001}]
["1110","120","Co Clerk Comp Service-Co Clerk Arch Fnd",1200020004,"120CompSrvcs0004","1900-01-01","9999-12-31","2021-09-15","No","No","No",{"$f":"IF(A228=\"????\",\"\",_xlfn.XLOOKUP('Data FA Lookup'!$D228,'FC Master'!A:A,'FC Master'!Q:Q,'Data FA Lookup'!$D228,0,1))","v":1200020004}]
["1110","120","Co Clerk Comp Services-Records Mgmt Fd",1200020108,"120CompSrvcs0108","1950-01-01","9999-12-31","2013-05-21","No","No","No",{"$f":"IF(A229=\"????\",\"\",_xlfn.XLOOKUP('Data FA Lookup'!$D229,'FC Master'!A:A,'FC Master'!Q:Q,'Data FA Lookup'!$D229,0,1))","v":1200020108}]
["1110","120","Co Clerk Comp Service-Co Clerk Arch Fnd",1200020129,"120CompSrvcs0129","1950-01-01","9999-12-31","2013-05-21","No","No","No",{"$f":"IF(A230=\"????\",\"\",_xlfn.XLOOKUP('Data FA Lookup'!$D230,'FC Master'!A:A,'FC Master'!Q:Q,'Data FA Lookup'!$D230,0,1))","v":1200020129}]
["1110","120","Co Clerk Accounting-GF",1200030001,"120Accounting0001","1950-01-01","9999-12-31","2012-05-14","No","No","No",{"$f":"IF(A231=\"????\",\"\",_xlfn.XLOOKUP('Data FA Lookup'!$D231,'FC Master'!A:A,'FC Master'!Q:Q,'Data FA Lookup'!$D231,0,1))","v":1200030001}]
["1110","120","CO Clerk Accounting-Records Mgmt Fd",1200030108,"120ACCTNG-RM0108","1950-01-01","9999-12-31","2018-07-18","No","No","No",{"$f":"IF(A232=\"????\",\"\",_xlfn.XLOOKUP('Data FA Lookup'!$D232,'FC Master'!A:A,'FC Master'!Q:Q,'Data FA Lookup'!$D232,0,1))","v":1200030108}]
["1150","120","Co Clerk Eln Adm – Capital Proj",1200040000,"120ElnAdmCP0000","1950-01-01","9999-12-31","2019-06-11","No","No","No",{"$f":"IF(A233=\"????\",\"\",_xlfn.XLOOKUP('Data FA Lookup'!$D233,'FC Master'!A:A,'FC Master'!Q:Q,'Data FA Lookup'!$D233,0,1))","v":1200040000}]
["1150","120","Co Clerk Eln Adm-GF",1200040001,"120ElnAdm0001","1950-01-01","9999-12-31","2012-05-14","No","No","No",{"$f":"IF(A234=\"????\",\"\",_xlfn.XLOOKUP('Data FA Lookup'!$D234,'FC Master'!A:A,'FC Master'!Q:Q,'Data FA Lookup'!$D234,0,1))","v":1200040001}]
["1150","120","Co Clerk Eln Adm-Eln Cntrt Fd",1200040128,"120ElnAdm0128","1950-01-01","9999-12-31","2012-05-14","No","No","No",{"$f":"IF(A235=\"????\",\"\",_xlfn.XLOOKUP('Data FA Lookup'!$D235,'FC Master'!A:A,'FC Master'!Q:Q,'Data FA Lookup'!$D235,0,1))","v":1200040128}]
["1150","120","Co Clerk Eln Adm Fee-Eln Cntrt Fd",1200050128,"120ElnAdmFee0128","1950-01-01","9999-12-31","2012-05-14","No","No","No",{"$f":"IF(A236=\"????\",\"\",_xlfn.XLOOKUP('Data FA Lookup'!$D236,'FC Master'!A:A,'FC Master'!Q:Q,'Data FA Lookup'!$D236,0,1))","v":1200050128}]
["1220","120","Co Clerk Probate-GF",1200060001,"120Probate0001","1950-01-01","9999-12-31","2012-05-14","No","No","No",{"$f":"IF(A237=\"????\",\"\",_xlfn.XLOOKUP('Data FA Lookup'!$D237,'FC Master'!A:A,'FC Master'!Q:Q,'Data FA Lookup'!$D237,0,1))","v":1200060001}]
["1220","120","Co Clerk Probate -Records Mgmt Preser",1200060110,"120Probate0110","1950-01-01","9999-12-31","2012-05-14","No","No","No",{"$f":"IF(A238=\"????\",\"\",_xlfn.XLOOKUP('Data FA Lookup'!$D238,'FC Master'!A:A,'FC Master'!Q:Q,'Data FA Lookup'!$D238,0,1))","v":1200060110}]
["1220","120","Co Clerk Probate-Courthouse Sec Fd",1200060111,"120Probate0111","1950-01-01","9999-12-31","2012-05-14","No","No","No",{"$f":"IF(A239=\"????\",\"\",_xlfn.XLOOKUP('Data FA Lookup'!$D239,'FC Master'!A:A,'FC Master'!Q:Q,'Data FA Lookup'!$D239,0,1))","v":1200060111}]
["1220","120","Co Clerk Probate-Ct Rptr Sv Fnd",1200060113,"120Probate0113","1950-01-01","9999-12-31","2012-05-14","No","No","No",{"$f":"IF(A240=\"????\",\"\",_xlfn.XLOOKUP('Data FA Lookup'!$D240,'FC Master'!A:A,'FC Master'!Q:Q,'Data FA Lookup'!$D240,0,1))","v":1200060113}]
["1220","120","Co Clerk Probate-Ct Record Preservation",1200060141,"120Probate0141","1950-01-01","9999-12-31","2012-05-14","No","No","No",{"$f":"IF(A241=\"????\",\"\",_xlfn.XLOOKUP('Data FA Lookup'!$D241,'FC Master'!A:A,'FC Master'!Q:Q,'Data FA Lookup'!$D241,0,1))","v":1200060141}]
["1220","120","Co Clerk Probate-CivilCourthouseImpFd",1200060151,"120Probate0151","1900-01-01","9999-12-31","2013-08-16","No","No","No",{"$f":"IF(A242=\"????\",\"\",_xlfn.XLOOKUP('Data FA Lookup'!$D242,'FC Master'!A:A,'FC Master'!Q:Q,'Data FA Lookup'!$D242,0,1))","v":1200060151}]
["1220","120","Co Clerk Probate-Jury Fund",1200060156,"120Probate0156","1950-01-01","9999-12-31","2021-08-03","No","No","No",{"$f":"IF(A243=\"????\",\"\",_xlfn.XLOOKUP('Data FA Lookup'!$D243,'FC Master'!A:A,'FC Master'!Q:Q,'Data FA Lookup'!$D243,0,1))","v":1200060156}]
["1220","120","Co Clerk Probate-Lang Access Fund",1200060158,"120Probate0158","1950-01-01","9999-12-31","2021-08-03","No","No","No",{"$f":"IF(A244=\"????\",\"\",_xlfn.XLOOKUP('Data FA Lookup'!$D244,'FC Master'!A:A,'FC Master'!Q:Q,'Data FA Lookup'!$D244,0,1))","v":1200060158}]
["1220","120","Co Clerk Probate-TC RecMgmt&Pres",1200060160,"120Probate0160","1950-01-01","9999-12-31","2021-08-03","No","No","No",{"$f":"IF(A245=\"????\",\"\",_xlfn.XLOOKUP('Data FA Lookup'!$D245,'FC Master'!A:A,'FC Master'!Q:Q,'Data FA Lookup'!$D245,0,1))","v":1200060160}]
["1220","120","Co Clerk Civil-GF",1200070001,"120Civil0001","1950-01-01","9999-12-31","2012-05-14","No","No","No",{"$f":"IF(A246=\"????\",\"\",_xlfn.XLOOKUP('Data FA Lookup'!$D246,'FC Master'!A:A,'FC Master'!Q:Q,'Data FA Lookup'!$D246,0,1))","v":1200070001}]
["1220","120","Co Clerk Civil-Records Mgmt Preser",1200070110,"120Civil0110","1950-01-01","9999-12-31","2012-05-14","No","No","No",{"$f":"IF(A247=\"????\",\"\",_xlfn.XLOOKUP('Data FA Lookup'!$D247,'FC Master'!A:A,'FC Master'!Q:Q,'Data FA Lookup'!$D247,0,1))","v":1200070110}]
["1220","120","Co Clerk Civil-Courthouse Sec Fd",1200070111,"120Civil0111","1950-01-01","9999-12-31","2012-05-14","No","No","No",{"$f":"IF(A248=\"????\",\"\",_xlfn.XLOOKUP('Data FA Lookup'!$D248,'FC Master'!A:A,'FC Master'!Q:Q,'Data FA Lookup'!$D248,0,1))","v":1200070111}]
["1220","120","Co Clerk Civil-Ct Rptr Sv Fnd",1200070113,"120Civil0113","1950-01-01","9999-12-31","2012-05-14","No","No","No",{"$f":"IF(A249=\"????\",\"\",_xlfn.XLOOKUP('Data FA Lookup'!$D249,'FC Master'!A:A,'FC Master'!Q:Q,'Data FA Lookup'!$D249,0,1))","v":1200070113}]
["1220","120","Co Clerk Civil-Ct Record Preservation",1200070141,"120Civil0141","1950-01-01","9999-12-31","2012-05-14","No","No","No",{"$f":"IF(A250=\"????\",\"\",_xlfn.XLOOKUP('Data FA Lookup'!$D250,'FC Master'!A:A,'FC Master'!Q:Q,'Data FA Lookup'!$D250,0,1))","v":1200070141}]
["1220","120","Co Clerk Civil-CivilCourthouseImpFd",1200070151,"120Civil0151","1900-01-01","9999-12-31","2013-08-16","No","No","No",{"$f":"IF(A251=\"????\",\"\",_xlfn.XLOOKUP('Data FA Lookup'!$D251,'FC Master'!A:A,'FC Master'!Q:Q,'Data FA Lookup'!$D251,0,1))","v":1200070151}]
["1220","120","Co Clerk Civil-Cty Jury Fund",1200070156,"120Civil0156","1950-01-01","9999-12-31","2021-08-03","No","No","No",{"$f":"IF(A252=\"????\",\"\",_xlfn.XLOOKUP('Data FA Lookup'!$D252,'FC Master'!A:A,'FC Master'!Q:Q,'Data FA Lookup'!$D252,0,1))","v":1200070156}]
["1220","120","Co Clerk Civil-Lang Access Fund",1200070158,"120Civil0158","1950-01-01","9999-12-31","2021-08-03","No","No","No",{"$f":"IF(A253=\"????\",\"\",_xlfn.XLOOKUP('Data FA Lookup'!$D253,'FC Master'!A:A,'FC Master'!Q:Q,'Data FA Lookup'!$D253,0,1))","v":1200070158}]
["1220","120","Co Clerk Civil-TC RecMgmt&Pres",1200070160,"120Civ0160","1950-01-01","9999-12-31","2021-08-03","No","No","No",{"$f":"IF(A254=\"????\",\"\",_xlfn.XLOOKUP('Data FA Lookup'!$D254,'FC Master'!A:A,'FC Master'!Q:Q,'Data FA Lookup'!$D254,0,1))","v":1200070160}]
["1210","120","Co Clerk Crm-GF",1200080001,"120Crm0001","1950-01-01","9999-12-31","2012-05-14","No","No","No",{"$f":"IF(A255=\"????\",\"\",_xlfn.XLOOKUP('Data FA Lookup'!$D255,'FC Master'!A:A,'FC Master'!Q:Q,'Data FA Lookup'!$D255,0,1))","v":1200080001}]
["1210","120","Co Clerk Crm-Records Mgmt Fd",1200080108,"120Crm0108","1950-01-01","9999-12-31","2012-05-14","No","No","No",{"$f":"IF(A256=\"????\",\"\",_xlfn.XLOOKUP('Data FA Lookup'!$D256,'FC Master'!A:A,'FC Master'!Q:Q,'Data FA Lookup'!$D256,0,1))","v":1200080108}]
["1210","120","Co Clerk Crm-Records Mgmt Preser",1200080110,"120Crm0110","1950-01-01","9999-12-31","2012-05-14","No","No","No",{"$f":"IF(A257=\"????\",\"\",_xlfn.XLOOKUP('Data FA Lookup'!$D257,'FC Master'!A:A,'FC Master'!Q:Q,'Data FA Lookup'!$D257,0,1))","v":1200080110}]
["1210","120","Co Clerk Crm-Courthouse Sec Fd",1200080111,"120Crm0111","1950-01-01","9999-12-31","2012-05-14","No","No","No",{"$f":"IF(A258=\"????\",\"\",_xlfn.XLOOKUP('Data FA Lookup'!$D258,'FC Master'!A:A,'FC Master'!Q:Q,'Data FA Lookup'!$D258,0,1))","v":1200080111}]
["1210","120","Co Clerk Crm-Ct Rptr Sv Fnd",1200080113,"120CrmCtRptr0113","1950-01-01","9999-12-31","2019-12-02","No","No","No",{"$f":"IF(A259=\"????\",\"\",_xlfn.XLOOKUP('Data FA Lookup'!$D259,'FC Master'!A:A,'FC Master'!Q:Q,'Data FA Lookup'!$D259,0,1))","v":1200080113}]
["1210","120","Co Clerk Crm-JV Delinquency Preventn",1200080119,"120Crm0119","1950-01-01","9999-12-31","2012-05-14","No","No","No",{"$f":"IF(A260=\"????\",\"\",_xlfn.XLOOKUP('Data FA Lookup'!$D260,'FC Master'!A:A,'FC Master'!Q:Q,'Data FA Lookup'!$D260,0,1))","v":1200080119}]
["1210","120","Co Clerk Crm-Juvenile Case Mgr Fd",1200080137,"120Crm0137","1950-01-01","9999-12-31","2012-05-14","No","No","No",{"$f":"IF(A261=\"????\",\"\",_xlfn.XLOOKUP('Data FA Lookup'!$D261,'FC Master'!A:A,'FC Master'!Q:Q,'Data FA Lookup'!$D261,0,1))","v":1200080137}]
["1210","120","Co Clerk Crm-Co/Dist Court Tech Fd",1200080140,"120Crm0140","1950-01-01","9999-12-31","2012-05-14","No","No","No",{"$f":"IF(A262=\"????\",\"\",_xlfn.XLOOKUP('Data FA Lookup'!$D262,'FC Master'!A:A,'FC Master'!Q:Q,'Data FA Lookup'!$D262,0,1))","v":1200080140}]
["1220","120","Co Clerk Crm-RdBg Fnd",1200080145,"120Crm0145","1950-01-01","9999-12-31","2020-03-20","No","No","No",{"$f":"IF(A263=\"????\",\"\",_xlfn.XLOOKUP('Data FA Lookup'!$D263,'FC Master'!A:A,'FC Master'!Q:Q,'Data FA Lookup'!$D263,0,1))","v":1200080145}]
["1210","120","Co Clerk Crm-Jury Fee Fund",1200080156,"120Crm0156","1950-01-01","9999-12-31","2020-01-10","No","No","No",{"$f":"IF(A264=\"????\",\"\",_xlfn.XLOOKUP('Data FA Lookup'!$D264,'FC Master'!A:A,'FC Master'!Q:Q,'Data FA Lookup'!$D264,0,1))","v":1200080156}]
["1210","120","Co Clerk Crm-Spec Court Fund",1200080157,"Co Clk Crm-Spec Ct","1950-01-01","9999-12-31","2020-05-01","No","No","No",{"$f":"IF(A265=\"????\",\"\",_xlfn.XLOOKUP('Data FA Lookup'!$D265,'FC Master'!A:A,'FC Master'!Q:Q,'Data FA Lookup'!$D265,0,1))","v":1200080157}]
["1110","120","Co Clerk Recording-GF",1200090001,"120Recording0001","1950-01-01","9999-12-31","2012-05-14","No","No","No",{"$f":"IF(A266=\"????\",\"\",_xlfn.XLOOKUP('Data FA Lookup'!$D266,'FC Master'!A:A,'FC Master'!Q:Q,'Data FA Lookup'!$D266,0,1))","v":1200090001}]
["1110","120","Co Clerk Recording-Records Mgmt Fd",1200090108,"120Recording0108","1950-01-01","9999-12-31","2012-05-14","No","No","No",{"$f":"IF(A267=\"????\",\"\",_xlfn.XLOOKUP('Data FA Lookup'!$D267,'FC Master'!A:A,'FC Master'!Q:Q,'Data FA Lookup'!$D267,0,1))","v":1200090108}]
["1110","120","Co Clerk Recording-Courthouse Sec Fd",1200090111,"120Recording0111","1950-01-01","9999-12-31","2012-05-14","No","No","No",{"$f":"IF(A268=\"????\",\"\",_xlfn.XLOOKUP('Data FA Lookup'!$D268,'FC Master'!A:A,'FC Master'!Q:Q,'Data FA Lookup'!$D268,0,1))","v":1200090111}]
["1110","120","Co Clerk Records Mgmt-GF",1200100001,"120RecMgmt0001","1950-01-01","9999-12-31","2012-05-14","No","No","No",{"$f":"IF(A269=\"????\",\"\",_xlfn.XLOOKUP('Data FA Lookup'!$D269,'FC Master'!A:A,'FC Master'!Q:Q,'Data FA Lookup'!$D269,0,1))","v":1200100001}]
["1110","120","Co Clerk Records Mgmt-Co Clerk Arch Fnd",1200100004,"120RecMgmt0004","1900-01-01","9999-12-31","2021-09-15","No","No","No",{"$f":"IF(A270=\"????\",\"\",_xlfn.XLOOKUP('Data FA Lookup'!$D270,'FC Master'!A:A,'FC Master'!Q:Q,'Data FA Lookup'!$D270,0,1))","v":1200100004}]
["1110","120","Co Clerk Records Mgmt-Records Mgmt Fd",1200100108,"120RecMgmt0108","1950-01-01","9999-12-31","2012-05-14","No","No","No",{"$f":"IF(A271=\"????\",\"\",_xlfn.XLOOKUP('Data FA Lookup'!$D271,'FC Master'!A:A,'FC Master'!Q:Q,'Data FA Lookup'!$D271,0,1))","v":1200100108}]
["1110","120","Co Clerk Records Mgmt-Courthouse Sec Fd",1200100111,"120RecMgmt0111","1950-01-01","9999-12-31","2012-05-14","No","No","No",{"$f":"IF(A272=\"????\",\"\",_xlfn.XLOOKUP('Data FA Lookup'!$D272,'FC Master'!A:A,'FC Master'!Q:Q,'Data FA Lookup'!$D272,0,1))","v":1200100111}]
["1110","120","Co Clerk Records Mgmt-Co Clerk Arch Fnd",1200100129,"120RecMgmt0129","1950-01-01","9999-12-31","2012-05-14","No","No","No",{"$f":"IF(A273=\"????\",\"\",_xlfn.XLOOKUP('Data FA Lookup'!$D273,'FC Master'!A:A,'FC Master'!Q:Q,'Data FA Lookup'!$D273,0,1))","v":1200100129}]
["1150","120","Co Clerk Eln-Chargeable-GF",1200110001,"ELNCHGABLE","1950-01-01","9999-12-31","2021-06-10","No","No","No",{"$f":"IF(A274=\"????\",\"\",_xlfn.XLOOKUP('Data FA Lookup'!$D274,'FC Master'!A:A,'FC Master'!Q:Q,'Data FA Lookup'!$D274,0,1))","v":1200110001}]
["1110","120","Co Clerk CAR-GenAdm GF",1208000001,"120CAR0001","1950-01-01","9999-12-31","2012-05-15","No","No","No",{"$f":"IF(A275=\"????\",\"\",_xlfn.XLOOKUP('Data FA Lookup'!$D275,'FC Master'!A:A,'FC Master'!Q:Q,'Data FA Lookup'!$D275,0,1))","v":1208000001}]
["1150","120","Co Clerk CAR-ElnAdm GF",1208010001,"120CAR0001","1950-01-01","9999-12-31","2012-05-15","No","No","No",{"$f":"IF(A276=\"????\",\"\",_xlfn.XLOOKUP('Data FA Lookup'!$D276,'FC Master'!A:A,'FC Master'!Q:Q,'Data FA Lookup'!$D276,0,1))","v":1208010001}]
["1220","121","Dist Clerk Civil-GF",1210010001,"121Civ0001","1950-01-01","9999-12-31","2012-05-14","No","No","No",{"$f":"IF(A277=\"????\",\"\",_xlfn.XLOOKUP('Data FA Lookup'!$D277,'FC Master'!A:A,'FC Master'!Q:Q,'Data FA Lookup'!$D277,0,1))","v":1210010001}]
["1220","121","Dist Clerk Civil-Records Mgmt Fd",1210010108,"121Civ0108","1950-01-01","9999-12-31","2012-05-14","No","No","No",{"$f":"IF(A278=\"????\",\"\",_xlfn.XLOOKUP('Data FA Lookup'!$D278,'FC Master'!A:A,'FC Master'!Q:Q,'Data FA Lookup'!$D278,0,1))","v":1210010108}]
["1220","121","Dist Clerk Civil-Records Mgmt Preser",1210010110,"121Civ0110","1950-01-01","9999-12-31","2012-05-14","No","No","No",{"$f":"IF(A279=\"????\",\"\",_xlfn.XLOOKUP('Data FA Lookup'!$D279,'FC Master'!A:A,'FC Master'!Q:Q,'Data FA Lookup'!$D279,0,1))","v":1210010110}]
["1220","121","Dist Clerk Civil-Courthouse Security Fd",1210010111,"121Civ0111","1950-01-01","9999-12-31","2012-05-14","No","No","No",{"$f":"IF(A280=\"????\",\"\",_xlfn.XLOOKUP('Data FA Lookup'!$D280,'FC Master'!A:A,'FC Master'!Q:Q,'Data FA Lookup'!$D280,0,1))","v":1210010111}]
["1220","121","Dist Clerk Civil-Ct Rptr Sv Fnd",1210010113,"121Civ0113","1950-01-01","9999-12-31","2012-05-14","No","No","No",{"$f":"IF(A281=\"????\",\"\",_xlfn.XLOOKUP('Data FA Lookup'!$D281,'FC Master'!A:A,'FC Master'!Q:Q,'Data FA Lookup'!$D281,0,1))","v":1210010113}]
["1220","121","Dist Clerk Civil-Dist Clerk Records Mgmt",1210010127,"121Civ0127","1950-01-01","9999-12-31","2012-05-14","No","No","No",{"$f":"IF(A282=\"????\",\"\",_xlfn.XLOOKUP('Data FA Lookup'!$D282,'FC Master'!A:A,'FC Master'!Q:Q,'Data FA Lookup'!$D282,0,1))","v":1210010127}]
["1220","121","Dist Clerk Civil-Family Protection Fd",1210010130,"121Civ0130","1950-01-01","9999-12-31","2012-05-14","No","No","No",{"$f":"IF(A283=\"????\",\"\",_xlfn.XLOOKUP('Data FA Lookup'!$D283,'FC Master'!A:A,'FC Master'!Q:Q,'Data FA Lookup'!$D283,0,1))","v":1210010130}]
["1220","121","Dist Clerk Civil-Dist Ct Recrds Tech Fd",1210010139,"121Civ0139","1950-01-01","9999-12-31","2012-05-14","No","No","No",{"$f":"IF(A284=\"????\",\"\",_xlfn.XLOOKUP('Data FA Lookup'!$D284,'FC Master'!A:A,'FC Master'!Q:Q,'Data FA Lookup'!$D284,0,1))","v":1210010139}]
["1220","121","Dist Clerk Civil-Court Record Pres",1210010141,"121Civ0141","1950-01-01","9999-12-31","2012-05-14","No","No","No",{"$f":"IF(A285=\"????\",\"\",_xlfn.XLOOKUP('Data FA Lookup'!$D285,'FC Master'!A:A,'FC Master'!Q:Q,'Data FA Lookup'!$D285,0,1))","v":1210010141}]
["1220","121","Dist Clerk Civil-Civ Crthse Imp Fd",1210010151,"121Civ0151","1950-01-01","9999-12-31","2013-09-27","No","No","No",{"$f":"IF(A286=\"????\",\"\",_xlfn.XLOOKUP('Data FA Lookup'!$D286,'FC Master'!A:A,'FC Master'!Q:Q,'Data FA Lookup'!$D286,0,1))","v":1210010151}]
["1220","121","Dist Clerk Civil-Jury Fund",1210010156,"121CIV0156","1950-01-01","9999-12-31","2021-08-03","No","No","No",{"$f":"IF(A287=\"????\",\"\",_xlfn.XLOOKUP('Data FA Lookup'!$D287,'FC Master'!A:A,'FC Master'!Q:Q,'Data FA Lookup'!$D287,0,1))","v":1210010156}]
["1220","121","Dist Clerk Civil-Lang Access Fund",1210010158,"121CIV0158","1950-01-01","9999-12-31","2021-08-03","No","No","No",{"$f":"IF(A288=\"????\",\"\",_xlfn.XLOOKUP('Data FA Lookup'!$D288,'FC Master'!A:A,'FC Master'!Q:Q,'Data FA Lookup'!$D288,0,1))","v":1210010158}]
["1220","121","Dist Clerk Civil-TC RecMgmt&Pres",1210010160,"121CIV0160","1950-01-01","9999-12-31","2021-08-03","No","No","No",{"$f":"IF(A289=\"????\",\"\",_xlfn.XLOOKUP('Data FA Lookup'!$D289,'FC Master'!A:A,'FC Master'!Q:Q,'Data FA Lookup'!$D289,0,1))","v":1210010160}]
["1210","121","Dist Clerk Crm-GF",1210020001,"121Crm0001","1950-01-01","9999-12-31","2012-05-14","No","No","No",{"$f":"IF(A290=\"????\",\"\",_xlfn.XLOOKUP('Data FA Lookup'!$D290,'FC Master'!A:A,'FC Master'!Q:Q,'Data FA Lookup'!$D290,0,1))","v":1210020001}]
["1210","121","Dist Clerk Crm-Records Mgmt Preser",1210020110,"121Crm0110","1950-01-01","9999-12-31","2012-05-14","No","No","No",{"$f":"IF(A291=\"????\",\"\",_xlfn.XLOOKUP('Data FA Lookup'!$D291,'FC Master'!A:A,'FC Master'!Q:Q,'Data FA Lookup'!$D291,0,1))","v":1210020110}]
["1210","121","Dist Clerk Crm-Courthouse Security Fd",1210020111,"121Crm0111","1950-01-01","9999-12-31","2012-05-14","No","No","No",{"$f":"IF(A292=\"????\",\"\",_xlfn.XLOOKUP('Data FA Lookup'!$D292,'FC Master'!A:A,'FC Master'!Q:Q,'Data FA Lookup'!$D292,0,1))","v":1210020111}]
["1210","121","Dist Clerk Crm-Ct Rptr Sv Fnd",1210020113,"121Crim0113","1950-01-01","9999-12-31","2019-12-16","No","No","No",{"$f":"IF(A293=\"????\",\"\",_xlfn.XLOOKUP('Data FA Lookup'!$D293,'FC Master'!A:A,'FC Master'!Q:Q,'Data FA Lookup'!$D293,0,1))","v":1210020113}]
["1210","121","Dist Clerk Crm-Jv Delinquency Preventn",1210020119,"121Crm0119","1950-01-01","9999-12-31","2012-05-14","No","No","No",{"$f":"IF(A294=\"????\",\"\",_xlfn.XLOOKUP('Data FA Lookup'!$D294,'FC Master'!A:A,'FC Master'!Q:Q,'Data FA Lookup'!$D294,0,1))","v":1210020119}]
["1210","121","Dist Clerk Crm-Dist Clerk Records Mang",1210020127,"121Crm0127","1950-01-01","9999-12-31","2012-05-14","No","No","No",{"$f":"IF(A295=\"????\",\"\",_xlfn.XLOOKUP('Data FA Lookup'!$D295,'FC Master'!A:A,'FC Master'!Q:Q,'Data FA Lookup'!$D295,0,1))","v":1210020127}]
["1210","121","Dist Clerk Crm-Dist Ct Recrds Tech Fd",1210020139,"121Crm0139","1950-01-01","9999-12-31","2012-05-14","No","No","No",{"$f":"IF(A296=\"????\",\"\",_xlfn.XLOOKUP('Data FA Lookup'!$D296,'FC Master'!A:A,'FC Master'!Q:Q,'Data FA Lookup'!$D296,0,1))","v":1210020139}]
["1210","121","Dist Clerk Crm-Co/Dist Court Tech Fd",1210020140,"121Crm0140","1950-01-01","9999-12-31","2012-05-14","No","No","No",{"$f":"IF(A297=\"????\",\"\",_xlfn.XLOOKUP('Data FA Lookup'!$D297,'FC Master'!A:A,'FC Master'!Q:Q,'Data FA Lookup'!$D297,0,1))","v":1210020140}]
["1210","121","Dist Clerk Crm-RdBg Fd",1210020145,"121Crm0145","1950-01-01","9999-12-31","2012-05-14","No","No","No",{"$f":"IF(A298=\"????\",\"\",_xlfn.XLOOKUP('Data FA Lookup'!$D298,'FC Master'!A:A,'FC Master'!Q:Q,'Data FA Lookup'!$D298,0,1))","v":1210020145}]
["1210","121","Dist Clerk Crm-County Jury Fd",1210020156,"126Crm0156","1950-01-01","9999-12-31","2020-03-13","No","No","No",{"$f":"IF(A299=\"????\",\"\",_xlfn.XLOOKUP('Data FA Lookup'!$D299,'FC Master'!A:A,'FC Master'!Q:Q,'Data FA Lookup'!$D299,0,1))","v":1210020156}]
["1210","121","Dist Clerk Crm-Spec Court Fund",1210020157,"Dist Clk Crm-Spec Ct","1950-01-01","9999-12-31","2020-05-01","No","No","No",{"$f":"IF(A300=\"????\",\"\",_xlfn.XLOOKUP('Data FA Lookup'!$D300,'FC Master'!A:A,'FC Master'!Q:Q,'Data FA Lookup'!$D300,0,1))","v":1210020157}]
["1220","121","Dist Clerk District Legally Mtd Civil-GF",1210030001,"121DistLglMtdCv0001","1950-01-01","9999-12-31","2012-05-14","No","No","No",{"$f":"IF(A301=\"????\",\"\",_xlfn.XLOOKUP('Data FA Lookup'!$D301,'FC Master'!A:A,'FC Master'!Q:Q,'Data FA Lookup'!$D301,0,1))","v":1210030001}]
["1220","121","Dist Clerk County Legally Mtd Civil-GF",1210040001,"121CoLglMtdCv0001","1950-01-01","9999-12-31","2012-05-14","No","No","No",{"$f":"IF(A302=\"????\",\"\",_xlfn.XLOOKUP('Data FA Lookup'!$D302,'FC Master'!A:A,'FC Master'!Q:Q,'Data FA Lookup'!$D302,0,1))","v":1210040001}]
["1210","121","Dist Clerk District Legally Mtd Crm-GF",1210050001,"121DistLglMtdCrm0001","1950-01-01","9999-12-31","2012-05-14","No","No","No",{"$f":"IF(A303=\"????\",\"\",_xlfn.XLOOKUP('Data FA Lookup'!$D303,'FC Master'!A:A,'FC Master'!Q:Q,'Data FA Lookup'!$D303,0,1))","v":1210050001}]
["1210","121","Dist Clerk County Legally Mtd Crm-GF",1210060001,"121CoLglMtdCrm0001","1950-01-01","9999-12-31","2012-05-14","No","No","No",{"$f":"IF(A304=\"????\",\"\",_xlfn.XLOOKUP('Data FA Lookup'!$D304,'FC Master'!A:A,'FC Master'!Q:Q,'Data FA Lookup'!$D304,0,1))","v":1210060001}]
["1220","121","Dist Clerk CAR-CivJs GF",1218000001,"121CAR0001","1950-01-01","9999-12-31","2012-05-15","No","No","No",{"$f":"IF(A305=\"????\",\"\",_xlfn.XLOOKUP('Data FA Lookup'!$D305,'FC Master'!A:A,'FC Master'!Q:Q,'Data FA Lookup'!$D305,0,1))","v":1218000001}]
["1210","121","Dist Clerk CAR-CrmJs GF",1218010001,"121CAR0001","1950-01-01","9999-12-31","2012-05-15","No","No","No",{"$f":"IF(A306=\"????\",\"\",_xlfn.XLOOKUP('Data FA Lookup'!$D306,'FC Master'!A:A,'FC Master'!Q:Q,'Data FA Lookup'!$D306,0,1))","v":1218010001}]
["1220","122","Civil Courts District-GF",1220010001,"122Dist0001","1950-01-01","9999-12-31","2012-05-14","No","No","No",{"$f":"IF(A307=\"????\",\"\",_xlfn.XLOOKUP('Data FA Lookup'!$D307,'FC Master'!A:A,'FC Master'!Q:Q,'Data FA Lookup'!$D307,0,1))","v":1220010001}]
["1220","122","Civil Courts District-Ct Rptr Sv Fnd",1220010113,"122Dist0113","1950-01-01","9999-12-31","2012-05-14","No","No","No",{"$f":"IF(A308=\"????\",\"\",_xlfn.XLOOKUP('Data FA Lookup'!$D308,'FC Master'!A:A,'FC Master'!Q:Q,'Data FA Lookup'!$D308,0,1))","v":1220010113}]
["1220","122","Civil Courts Dist-OOG Crm Jus Dv Grant",1220012016,"122Dist2016","1950-01-01","9999-12-31","2012-05-14","Yes","Yes","Yes",{"$f":"IF(A309=\"????\",\"\",_xlfn.XLOOKUP('Data FA Lookup'!$D309,'FC Master'!A:A,'FC Master'!Q:Q,'Data FA Lookup'!$D309,0,1))","v":1220012016}]
["1220","122","Civil Courts District-OOG CJD-StFd Grant",1220012058,"122Dist2058","1950-01-01","9999-12-31","2012-05-14","Yes","Yes","Yes",{"$f":"IF(A310=\"????\",\"\",_xlfn.XLOOKUP('Data FA Lookup'!$D310,'FC Master'!A:A,'FC Master'!Q:Q,'Data FA Lookup'!$D310,0,1))","v":1220012058}]
["1220","122","Civil Courts District-CO 2001A",1220014034,"122Dist4034","1950-01-01","9999-12-31","2012-05-14","No","No","No",{"$f":"IF(A311=\"????\",\"\",_xlfn.XLOOKUP('Data FA Lookup'!$D311,'FC Master'!A:A,'FC Master'!Q:Q,'Data FA Lookup'!$D311,0,1))","v":1220014034}]
["1220","122","Civil Courts County-GF",1220020001,"122Co0001","1950-01-01","9999-12-31","2012-05-14","No","No","No",{"$f":"IF(A312=\"????\",\"\",_xlfn.XLOOKUP('Data FA Lookup'!$D312,'FC Master'!A:A,'FC Master'!Q:Q,'Data FA Lookup'!$D312,0,1))","v":1220020001}]
["1220","122","Civil Courts County-Ct Rptr Sv Fnd",1220020113,"122Co0113","1950-01-01","9999-12-31","2012-05-14","No","No","No",{"$f":"IF(A313=\"????\",\"\",_xlfn.XLOOKUP('Data FA Lookup'!$D313,'FC Master'!A:A,'FC Master'!Q:Q,'Data FA Lookup'!$D313,0,1))","v":1220020113}]
["1220","122","Civil Courts 126th District Court-GF",1220030001,"122126DC0001","1950-01-01","9999-12-31","2012-05-14","No","No","No",{"$f":"IF(A314=\"????\",\"\",_xlfn.XLOOKUP('Data FA Lookup'!$D314,'FC Master'!A:A,'FC Master'!Q:Q,'Data FA Lookup'!$D314,0,1))","v":1220010001}]
["1220","122","Civil Courts 200th District Court-GF",1220040001,"122200DC0001","1950-01-01","9999-12-31","2012-05-14","No","No","No",{"$f":"IF(A315=\"????\",\"\",_xlfn.XLOOKUP('Data FA Lookup'!$D315,'FC Master'!A:A,'FC Master'!Q:Q,'Data FA Lookup'!$D315,0,1))","v":1220010001}]
["1220","122","Civil Courts 201st District Court-GF",1220050001,"122201DC0001","1950-01-01","9999-12-31","2012-05-14","No","No","No",{"$f":"IF(A316=\"????\",\"\",_xlfn.XLOOKUP('Data FA Lookup'!$D316,'FC Master'!A:A,'FC Master'!Q:Q,'Data FA Lookup'!$D316,0,1))","v":1220010001}]
["1220","122","Civil Courts 250th District Court-GF",1220060001,"122250DC0001","1950-01-01","9999-12-31","2012-05-14","No","No","No",{"$f":"IF(A317=\"????\",\"\",_xlfn.XLOOKUP('Data FA Lookup'!$D317,'FC Master'!A:A,'FC Master'!Q:Q,'Data FA Lookup'!$D317,0,1))","v":1220010001}]
["1220","122","Civil Courts 261st District Court-GF",1220070001,"122261DC0001","1950-01-01","9999-12-31","2012-05-14","No","No","No",{"$f":"IF(A318=\"????\",\"\",_xlfn.XLOOKUP('Data FA Lookup'!$D318,'FC Master'!A:A,'FC Master'!Q:Q,'Data FA Lookup'!$D318,0,1))","v":1220010001}]
["1220","122","Civil Courts 345th District Court-GF",1220080001,"122345DC0001","1950-01-01","9999-12-31","2012-05-14","No","No","No",{"$f":"IF(A319=\"????\",\"\",_xlfn.XLOOKUP('Data FA Lookup'!$D319,'FC Master'!A:A,'FC Master'!Q:Q,'Data FA Lookup'!$D319,0,1))","v":1220010001}]
["1220","122","Civil Courts 353rd District Court-GF",1220090001,"122353DC0001","1950-01-01","9999-12-31","2012-05-14","No","No","No",{"$f":"IF(A320=\"????\",\"\",_xlfn.XLOOKUP('Data FA Lookup'!$D320,'FC Master'!A:A,'FC Master'!Q:Q,'Data FA Lookup'!$D320,0,1))","v":1220010001}]
["1220","122","Civil Courts 419th District Court-GF",1220100001,"122419DC0001","1950-01-01","9999-12-31","2012-05-14","No","No","No",{"$f":"IF(A321=\"????\",\"\",_xlfn.XLOOKUP('Data FA Lookup'!$D321,'FC Master'!A:A,'FC Master'!Q:Q,'Data FA Lookup'!$D321,0,1))","v":1220010001}]
["1220","122","Civil Courts 53rd District Court-GF",1220110001,"122053DC0001","1950-01-01","9999-12-31","2012-05-14","No","No","No",{"$f":"IF(A322=\"????\",\"\",_xlfn.XLOOKUP('Data FA Lookup'!$D322,'FC Master'!A:A,'FC Master'!Q:Q,'Data FA Lookup'!$D322,0,1))","v":1220010001}]
["1220","122","Civil Courts 98th District Court-GF",1220120001,"122098DC0001","1950-01-01","9999-12-31","2012-05-14","No","No","No",{"$f":"IF(A323=\"????\",\"\",_xlfn.XLOOKUP('Data FA Lookup'!$D323,'FC Master'!A:A,'FC Master'!Q:Q,'Data FA Lookup'!$D323,0,1))","v":1220010001}]
["1220","122","Civil Courts Assoc Judge 1-GF",1220130001,"122AssocJudge10001","1950-01-01","9999-12-31","2012-05-14","No","No","No",{"$f":"IF(A324=\"????\",\"\",_xlfn.XLOOKUP('Data FA Lookup'!$D324,'FC Master'!A:A,'FC Master'!Q:Q,'Data FA Lookup'!$D324,0,1))","v":1220010001}]
["1220","122","Civil Courts Assoc Judge 2-GF",1220140001,"122AssocJudge20001","1950-01-01","9999-12-31","2012-05-14","No","No","No",{"$f":"IF(A325=\"????\",\"\",_xlfn.XLOOKUP('Data FA Lookup'!$D325,'FC Master'!A:A,'FC Master'!Q:Q,'Data FA Lookup'!$D325,0,1))","v":1220010001}]
["1220","122","Civil Courts Assoc Judge 3-GF",1220150001,"122AssocJudge30001","1950-01-01","9999-12-31","2012-05-14","No","No","No",{"$f":"IF(A326=\"????\",\"\",_xlfn.XLOOKUP('Data FA Lookup'!$D326,'FC Master'!A:A,'FC Master'!Q:Q,'Data FA Lookup'!$D326,0,1))","v":1220010001}]
["1220","122","Civil Courts Civil Co Ct at Law 1-GF",1220160001,"122CC10001","1950-01-01","9999-12-31","2012-05-14","No","No","No",{"$f":"IF(A327=\"????\",\"\",_xlfn.XLOOKUP('Data FA Lookup'!$D327,'FC Master'!A:A,'FC Master'!Q:Q,'Data FA Lookup'!$D327,0,1))","v":1220020001}]
["1220","122","Civil Courts Civil Co Ct at Law 2-GF",1220170001,"122CC20001","1950-01-01","9999-12-31","2012-05-14","No","No","No",{"$f":"IF(A328=\"????\",\"\",_xlfn.XLOOKUP('Data FA Lookup'!$D328,'FC Master'!A:A,'FC Master'!Q:Q,'Data FA Lookup'!$D328,0,1))","v":1220020001}]
["1220","122","Civil Courts Ct Administrator's Ofc-GF",1220180001,"122CtAdmOfc0001","1950-01-01","9999-12-31","2012-05-14","No","No","No",{"$f":"IF(A329=\"????\",\"\",_xlfn.XLOOKUP('Data FA Lookup'!$D329,'FC Master'!A:A,'FC Master'!Q:Q,'Data FA Lookup'!$D329,0,1))","v":1220010001}]
["1220","122","Civil Courts Cts Tech Team-GF",1220190001,"122CtTechTeam0001","1950-01-01","9999-12-31","2012-05-14","No","No","No",{"$f":"IF(A330=\"????\",\"\",_xlfn.XLOOKUP('Data FA Lookup'!$D330,'FC Master'!A:A,'FC Master'!Q:Q,'Data FA Lookup'!$D330,0,1))","v":1220010001}]
["1220","122","Civil Courts District Judges' Ofc-GF",1220200001,"122DistJdgOfc0001","1950-01-01","9999-12-31","2012-05-14","No","No","No",{"$f":"IF(A331=\"????\",\"\",_xlfn.XLOOKUP('Data FA Lookup'!$D331,'FC Master'!A:A,'FC Master'!Q:Q,'Data FA Lookup'!$D331,0,1))","v":1220010001}]
["1220","122","Civil Courts Substitute Ct Bailiffs-GF",1220210001,"122SubCtBail0001","1950-01-01","9999-12-31","2012-05-14","No","No","No",{"$f":"IF(A332=\"????\",\"\",_xlfn.XLOOKUP('Data FA Lookup'!$D332,'FC Master'!A:A,'FC Master'!Q:Q,'Data FA Lookup'!$D332,0,1))","v":1220010001}]
["1220","122","Civil Courts General Unallocated-GF",1220220001,"122GenUnAlloc0001","1950-01-01","9999-12-31","2012-05-14","No","No","No",{"$f":"IF(A333=\"????\",\"\",_xlfn.XLOOKUP('Data FA Lookup'!$D333,'FC Master'!A:A,'FC Master'!Q:Q,'Data FA Lookup'!$D333,0,1))","v":1220010001}]
["1220","122","Civil Courts-Co LMF-GF",1220230001,"122CCCoLMF0001","1950-01-01","9999-12-31","2012-05-14","Yes","Yes","Yes",{"$f":"IF(A334=\"????\",\"\",_xlfn.XLOOKUP('Data FA Lookup'!$D334,'FC Master'!A:A,'FC Master'!Q:Q,'Data FA Lookup'!$D334,0,1))","v":1930010001}]
["1220","122","Civil Courts-App LMF-GF",1220240001,"122CCAppLMF0001","1950-01-01","9999-12-31","2012-05-14","Yes","Yes","Yes",{"$f":"IF(A335=\"????\",\"\",_xlfn.XLOOKUP('Data FA Lookup'!$D335,'FC Master'!A:A,'FC Master'!Q:Q,'Data FA Lookup'!$D335,0,1))","v":1930040001}]
["1220","122","Civil Courts-3rdCt LMF-GF",1220250001,"122CC3CLMF0001","1950-01-01","9999-12-31","2012-05-14","Yes","No","Yes",{"$f":"IF(A336=\"????\",\"\",_xlfn.XLOOKUP('Data FA Lookup'!$D336,'FC Master'!A:A,'FC Master'!Q:Q,'Data FA Lookup'!$D336,0,1))","v":1930040001}]
["1220","122","Civil Courts-District LMF-GF",1220260001,"122CCDisLMF0001","1950-01-01","9999-12-31","2012-05-14","Yes","Yes","Yes",{"$f":"IF(A337=\"????\",\"\",_xlfn.XLOOKUP('Data FA Lookup'!$D337,'FC Master'!A:A,'FC Master'!Q:Q,'Data FA Lookup'!$D337,0,1))","v":1930040001}]
["1220","122","Civil Courts Assoc Judge 4-GF",1220270001,"122AssocJudge40001","1950-01-01","9999-12-31","2014-09-18","No","No","No",{"$f":"IF(A338=\"????\",\"\",_xlfn.XLOOKUP('Data FA Lookup'!$D338,'FC Master'!A:A,'FC Master'!Q:Q,'Data FA Lookup'!$D338,0,1))","v":1220010001}]
["1220","122","Civil Courts 459th District Court-GF",1220280001,"122459DC0001","1950-01-01","9999-12-31","2017-09-07","No","No","No",{"$f":"IF(A339=\"????\",\"\",_xlfn.XLOOKUP('Data FA Lookup'!$D339,'FC Master'!A:A,'FC Master'!Q:Q,'Data FA Lookup'!$D339,0,1))","v":1220010001}]
["1220","122","Civil Courts 455th District Court - GF",1220290001,"122455DC0001","1950-01-01","9999-12-31","2021-01-13","No","No","No",{"$f":"IF(A340=\"????\",\"\",_xlfn.XLOOKUP('Data FA Lookup'!$D340,'FC Master'!A:A,'FC Master'!Q:Q,'Data FA Lookup'!$D340,0,1))","v":1220010001}]
["1220","122","Civil Courts CAR-CivJs GF",1228000001,"122CAR0001","1950-01-01","9999-12-31","2012-05-15","No","No","No",{"$f":"IF(A341=\"????\",\"\",_xlfn.XLOOKUP('Data FA Lookup'!$D341,'FC Master'!A:A,'FC Master'!Q:Q,'Data FA Lookup'!$D341,0,1))","v":1228000001}]
["1210","123","DA Criminal Justice-GF",1230010001,"123Crm0001","1950-01-01","9999-12-31","2012-05-14","No","No","No",{"$f":"IF(A342=\"????\",\"\",_xlfn.XLOOKUP('Data FA Lookup'!$D342,'FC Master'!A:A,'FC Master'!Q:Q,'Data FA Lookup'!$D342,0,1))","v":1230010001}]
["1210","123","DA Criminal Justice-DAPSO",1230010102,"123Crm0102","1950-01-01","9999-12-31","2012-05-14","No","No","No",{"$f":"IF(A343=\"????\",\"\",_xlfn.XLOOKUP('Data FA Lookup'!$D343,'FC Master'!A:A,'FC Master'!Q:Q,'Data FA Lookup'!$D343,0,1))","v":1230010102}]
["1210","123","DA Criminal Js-State Forfeited Prop Fd",1230010103,"123Crm0103","1950-01-01","9999-12-31","2012-05-14","No","No","No",{"$f":"IF(A344=\"????\",\"\",_xlfn.XLOOKUP('Data FA Lookup'!$D344,'FC Master'!A:A,'FC Master'!Q:Q,'Data FA Lookup'!$D344,0,1))","v":1230010103}]
["1210","123","DA Criminal Justice-LEOSE-Elected Ofcls",1230010116,"123Crm0116","1950-01-01","9999-12-31","2012-05-14","No","No","No",{"$f":"IF(A345=\"????\",\"\",_xlfn.XLOOKUP('Data FA Lookup'!$D345,'FC Master'!A:A,'FC Master'!Q:Q,'Data FA Lookup'!$D345,0,1))","v":1230010116}]
["1210","123","DA Criminal Justice-Fam Protctn Fd",1230010130,"123Crm0130","1950-01-01","9999-12-31","2012-05-14","No","No","No",{"$f":"IF(A346=\"????\",\"\",_xlfn.XLOOKUP('Data FA Lookup'!$D346,'FC Master'!A:A,'FC Master'!Q:Q,'Data FA Lookup'!$D346,0,1))","v":1230010130}]
["1210","123","DA Criminal Justice-COA Grant",1230012006,"123Crm2006","1950-01-01","9999-12-31","2012-05-14","Yes","Yes","Yes",{"$f":"IF(A347=\"????\",\"\",_xlfn.XLOOKUP('Data FA Lookup'!$D347,'FC Master'!A:A,'FC Master'!Q:Q,'Data FA Lookup'!$D347,0,1))","v":1230012006}]
["1210","123","DA Criminal Justice-OAG Grant",1230012019,"123Crm2019","1950-01-01","9999-12-31","2012-05-14","Yes","Yes","Yes",{"$f":"IF(A348=\"????\",\"\",_xlfn.XLOOKUP('Data FA Lookup'!$D348,'FC Master'!A:A,'FC Master'!Q:Q,'Data FA Lookup'!$D348,0,1))","v":1230012019}]
["1210","123","DA Criminal Justice-TCEQ Grant",1230012025,"123Crm2025","1950-01-01","9999-12-31","2012-05-14","Yes","Yes","Yes",{"$f":"IF(A349=\"????\",\"\",_xlfn.XLOOKUP('Data FA Lookup'!$D349,'FC Master'!A:A,'FC Master'!Q:Q,'Data FA Lookup'!$D349,0,1))","v":1230012025}]
["1210","123","DA Criminal Justice-OAG St Fd Grant",1230012059,"123Crm2059","1950-01-01","9999-12-31","2012-05-14","Yes","Yes","Yes",{"$f":"IF(A350=\"????\",\"\",_xlfn.XLOOKUP('Data FA Lookup'!$D350,'FC Master'!A:A,'FC Master'!Q:Q,'Data FA Lookup'!$D350,0,1))","v":1230012059}]
["1210","123","DA Criminal Justice-OAG-US Dept of Jst",1230012090,"123Crm2090","1900-01-01","9999-12-31","2014-08-04","Yes","Yes","Yes",{"$f":"IF(A351=\"????\",\"\",_xlfn.XLOOKUP('Data FA Lookup'!$D351,'FC Master'!A:A,'FC Master'!Q:Q,'Data FA Lookup'!$D351,0,1))","v":1230012090}]
["1220","123","DA Civil Justice-Title IV-E Billable-GF",1230020001,"123Civ0001","1950-01-01","9999-12-31","2012-05-14","No","No","No",{"$f":"IF(A352=\"????\",\"\",_xlfn.XLOOKUP('Data FA Lookup'!$D352,'FC Master'!A:A,'FC Master'!Q:Q,'Data FA Lookup'!$D352,0,1))","v":1230020001}]
["1220","123","DA Civil Justice-DAPSO",1230020102,"123Civ0102","1950-01-01","9999-12-31","2012-05-14","No","No","No",{"$f":"IF(A353=\"????\",\"\",_xlfn.XLOOKUP('Data FA Lookup'!$D353,'FC Master'!A:A,'FC Master'!Q:Q,'Data FA Lookup'!$D353,0,1))","v":1230020102}]
["1220","123","DA Civil Js-State Forfeited Prop Fd",1230020103,"123Civ0103","1950-01-01","9999-12-31","2012-05-14","No","No","No",{"$f":"IF(A354=\"????\",\"\",_xlfn.XLOOKUP('Data FA Lookup'!$D354,'FC Master'!A:A,'FC Master'!Q:Q,'Data FA Lookup'!$D354,0,1))","v":1230020103}]
["1220","123","DA Civil Justice-LEOSE-Elected Ofcls",1230020116,"123Civ0116","1950-01-01","9999-12-31","2012-05-14","No","No","No",{"$f":"IF(A355=\"????\",\"\",_xlfn.XLOOKUP('Data FA Lookup'!$D355,'FC Master'!A:A,'FC Master'!Q:Q,'Data FA Lookup'!$D355,0,1))","v":1230020116}]
["1230","123","DA Juvenile Justice-GF",1230030001,"123JV0001","1950-01-01","9999-12-31","2012-05-14","No","No","No",{"$f":"IF(A356=\"????\",\"\",_xlfn.XLOOKUP('Data FA Lookup'!$D356,'FC Master'!A:A,'FC Master'!Q:Q,'Data FA Lookup'!$D356,0,1))","v":1230030001}]
["1230","123","DA Juvenile Justice-DAPSO",1230030102,"123JV0102","1950-01-01","9999-12-31","2012-05-14","No","No","No",{"$f":"IF(A357=\"????\",\"\",_xlfn.XLOOKUP('Data FA Lookup'!$D357,'FC Master'!A:A,'FC Master'!Q:Q,'Data FA Lookup'!$D357,0,1))","v":1230030102}]
["1230","123","DA Juvenile Js-State Forfeited Prop Fd",1230030103,"123JV0103","1950-01-01","9999-12-31","2012-05-14","No","No","No",{"$f":"IF(A358=\"????\",\"\",_xlfn.XLOOKUP('Data FA Lookup'!$D358,'FC Master'!A:A,'FC Master'!Q:Q,'Data FA Lookup'!$D358,0,1))","v":1230030103}]
["1230","123","DA Juvenile Justice-LEOSE-Elected Ofcls",1230030116,"123JV0116","1950-01-01","9999-12-31","2012-05-14","No","No","No",{"$f":"IF(A359=\"????\",\"\",_xlfn.XLOOKUP('Data FA Lookup'!$D359,'FC Master'!A:A,'FC Master'!Q:Q,'Data FA Lookup'!$D359,0,1))","v":1230030116}]
["1210","123","DA Workers Comp Fraud-GF",1230040001,"123WkrsCompFrd0001","1950-01-01","9999-12-31","2012-05-14","No","No","No",{"$f":"IF(A360=\"????\",\"\",_xlfn.XLOOKUP('Data FA Lookup'!$D360,'FC Master'!A:A,'FC Master'!Q:Q,'Data FA Lookup'!$D360,0,1))","v":1230040001}]
["1210","123","DA Org Crime/Nuisance Abmt-GF",1230050001,"123NuisAbtmnt0001","1950-01-01","9999-12-31","2012-05-14","No","No","No",{"$f":"IF(A361=\"????\",\"\",_xlfn.XLOOKUP('Data FA Lookup'!$D361,'FC Master'!A:A,'FC Master'!Q:Q,'Data FA Lookup'!$D361,0,1))","v":1230050001}]
["1210","123","DA Public Integrity Unit-GF",1230060001,"123DAPIUIG0001","1950-01-01","9999-12-31","2012-05-14","No","No","No",{"$f":"IF(A362=\"????\",\"\",_xlfn.XLOOKUP('Data FA Lookup'!$D362,'FC Master'!A:A,'FC Master'!Q:Q,'Data FA Lookup'!$D362,0,1))","v":1230060001}]
["1210","123","DA Pbc Integrity Unit-St Tx Compt Grnt",1230062021,"123PIU2021","1950-01-01","9999-12-31","2012-05-14","Yes","Yes","Yes",{"$f":"IF(A363=\"????\",\"\",_xlfn.XLOOKUP('Data FA Lookup'!$D363,'FC Master'!A:A,'FC Master'!Q:Q,'Data FA Lookup'!$D363,0,1))","v":1230062021}]
["1220","123","DA Civil Js-Non-Billable-GF",1230070001,"123CivNB0001","1950-01-01","9999-12-31","2012-05-14","No","No","No",{"$f":"IF(A364=\"????\",\"\",_xlfn.XLOOKUP('Data FA Lookup'!$D364,'FC Master'!A:A,'FC Master'!Q:Q,'Data FA Lookup'!$D364,0,1))","v":1230070001}]
["1210","123","DA CAR-CrmJs GF",1238000001,"123CAR0001","1950-01-01","9999-12-31","2012-05-15","No","No","No",{"$f":"IF(A365=\"????\",\"\",_xlfn.XLOOKUP('Data FA Lookup'!$D365,'FC Master'!A:A,'FC Master'!Q:Q,'Data FA Lookup'!$D365,0,1))","v":1238000001}]
["1210","124","Criminal Courts District-GF",1240010001,"124Dist0001","1950-01-01","9999-12-31","2012-05-14","No","No","No",{"$f":"IF(A366=\"????\",\"\",_xlfn.XLOOKUP('Data FA Lookup'!$D366,'FC Master'!A:A,'FC Master'!Q:Q,'Data FA Lookup'!$D366,0,1))","v":1240010001}]
["1210","124","Criminal Courts 147th District Court-GF",1240020001,"124DC1470001","1950-01-01","9999-12-31","2012-05-14","No","No","No",{"$f":"IF(A367=\"????\",\"\",_xlfn.XLOOKUP('Data FA Lookup'!$D367,'FC Master'!A:A,'FC Master'!Q:Q,'Data FA Lookup'!$D367,0,1))","v":1240010001}]
["1210","124","Criminal Courts 167th District Court -GF",1240030001,"124DC1670001","1950-01-01","9999-12-31","2012-05-14","No","No","No",{"$f":"IF(A368=\"????\",\"\",_xlfn.XLOOKUP('Data FA Lookup'!$D368,'FC Master'!A:A,'FC Master'!Q:Q,'Data FA Lookup'!$D368,0,1))","v":1240010001}]
["1210","124","Criminal Courts 299th District Court-GF",1240040001,"124DC2990001","1950-01-01","9999-12-31","2012-05-14","No","No","No",{"$f":"IF(A369=\"????\",\"\",_xlfn.XLOOKUP('Data FA Lookup'!$D369,'FC Master'!A:A,'FC Master'!Q:Q,'Data FA Lookup'!$D369,0,1))","v":1240010001}]
["1210","124","Criminal Courts 331st District Court-GF",1240050001,"124DC3310001","1950-01-01","9999-12-31","2012-05-14","No","No","No",{"$f":"IF(A370=\"????\",\"\",_xlfn.XLOOKUP('Data FA Lookup'!$D370,'FC Master'!A:A,'FC Master'!Q:Q,'Data FA Lookup'!$D370,0,1))","v":1240010001}]
["1210","124","Criminal Courts 390th District Court-GF",1240060001,"124DC3900001","1950-01-01","9999-12-31","2012-05-14","No","No","No",{"$f":"IF(A371=\"????\",\"\",_xlfn.XLOOKUP('Data FA Lookup'!$D371,'FC Master'!A:A,'FC Master'!Q:Q,'Data FA Lookup'!$D371,0,1))","v":1240010001}]
["1210","124","Criminal Courts 403rd District Court-GF",1240070001,"124DC4030001","1950-01-01","9999-12-31","2012-05-14","No","No","No",{"$f":"IF(A372=\"????\",\"\",_xlfn.XLOOKUP('Data FA Lookup'!$D372,'FC Master'!A:A,'FC Master'!Q:Q,'Data FA Lookup'!$D372,0,1))","v":1240010001}]
["1210","124","Criminal Courts 427th District Court-GF",1240080001,"124DC4270001","1950-01-01","9999-12-31","2012-05-14","No","No","No",{"$f":"IF(A373=\"????\",\"\",_xlfn.XLOOKUP('Data FA Lookup'!$D373,'FC Master'!A:A,'FC Master'!Q:Q,'Data FA Lookup'!$D373,0,1))","v":1240010001}]
["1210","124","Criminal Courts Magistrate Court-GF",1240090001,"124MagCt0001","1950-01-01","9999-12-31","2012-05-14","No","No","No",{"$f":"IF(A374=\"????\",\"\",_xlfn.XLOOKUP('Data FA Lookup'!$D374,'FC Master'!A:A,'FC Master'!Q:Q,'Data FA Lookup'!$D374,0,1))","v":1240010001}]
["1210","124","Criminal Courts Technology Team-GF",1240100001,"124TechTeam0001","1950-01-01","9999-12-31","2012-05-14","No","No","No",{"$f":"IF(A375=\"????\",\"\",_xlfn.XLOOKUP('Data FA Lookup'!$D375,'FC Master'!A:A,'FC Master'!Q:Q,'Data FA Lookup'!$D375,0,1))","v":1240010001}]
["1210","124","Criminal Courts County Division-GF",1240110001,"124Co0001","1950-01-01","9999-12-31","2012-05-14","No","No","No",{"$f":"IF(A376=\"????\",\"\",_xlfn.XLOOKUP('Data FA Lookup'!$D376,'FC Master'!A:A,'FC Master'!Q:Q,'Data FA Lookup'!$D376,0,1))","v":1240110001}]
["1210","124","Criminal Courts County Court 3-GF",1240120001,"124CC30001","1950-01-01","9999-12-31","2012-05-14","No","No","No",{"$f":"IF(A377=\"????\",\"\",_xlfn.XLOOKUP('Data FA Lookup'!$D377,'FC Master'!A:A,'FC Master'!Q:Q,'Data FA Lookup'!$D377,0,1))","v":1240110001}]
["1210","124","Criminal Courts County Court 4-GF",1240130001,"124CC40001","1950-01-01","9999-12-31","2012-05-14","No","No","No",{"$f":"IF(A378=\"????\",\"\",_xlfn.XLOOKUP('Data FA Lookup'!$D378,'FC Master'!A:A,'FC Master'!Q:Q,'Data FA Lookup'!$D378,0,1))","v":1240110001}]
["1210","124","Criminal Courts County Court 5-GF",1240140001,"124CC50001","1950-01-01","9999-12-31","2012-05-14","No","No","No",{"$f":"IF(A379=\"????\",\"\",_xlfn.XLOOKUP('Data FA Lookup'!$D379,'FC Master'!A:A,'FC Master'!Q:Q,'Data FA Lookup'!$D379,0,1))","v":1240110001}]
["1210","124","Criminal Courts County Court 6-GF",1240150001,"124CC60001","1950-01-01","9999-12-31","2012-05-14","No","No","No",{"$f":"IF(A380=\"????\",\"\",_xlfn.XLOOKUP('Data FA Lookup'!$D380,'FC Master'!A:A,'FC Master'!Q:Q,'Data FA Lookup'!$D380,0,1))","v":1240110001}]
["1210","124","Criminal Courts County Court 7-GF",1240160001,"124CC70001","1950-01-01","9999-12-31","2012-05-14","No","No","No",{"$f":"IF(A381=\"????\",\"\",_xlfn.XLOOKUP('Data FA Lookup'!$D381,'FC Master'!A:A,'FC Master'!Q:Q,'Data FA Lookup'!$D381,0,1))","v":1240110001}]
["1210","124","Criminal Courts County Court 8-GF",1240170001,"124CC80001","1950-01-01","9999-12-31","2012-05-14","No","No","No",{"$f":"IF(A382=\"????\",\"\",_xlfn.XLOOKUP('Data FA Lookup'!$D382,'FC Master'!A:A,'FC Master'!Q:Q,'Data FA Lookup'!$D382,0,1))","v":1240110001}]
["1210","124","Criminal Courts Administration Unit-GF",1240180001,"124Adm0001","1950-01-01","9999-12-31","2012-05-14","No","No","No",{"$f":"IF(A383=\"????\",\"\",_xlfn.XLOOKUP('Data FA Lookup'!$D383,'FC Master'!A:A,'FC Master'!Q:Q,'Data FA Lookup'!$D383,0,1))","v":1240110001}]
["1210","124","Crm Cts Drg Ct Pg-GF",1240190001,"124DrgCtPg0001","1950-01-01","2014-05-02","2012-05-14","No","No","No",{"$f":"IF(A384=\"????\",\"\",_xlfn.XLOOKUP('Data FA Lookup'!$D384,'FC Master'!A:A,'FC Master'!Q:Q,'Data FA Lookup'!$D384,0,1))","v":1240190001}]
["1210","124","Crm Cts Drg Ct Pg-Drug Ct Pg",1240190131,"124DrgCtPg0131","1950-01-01","2012-09-30","2012-05-14","No","No","No",{"$f":"IF(A385=\"????\",\"\",_xlfn.XLOOKUP('Data FA Lookup'!$D385,'FC Master'!A:A,'FC Master'!Q:Q,'Data FA Lookup'!$D385,0,1))","v":1240190131}]
["1210","124","Crm Cts Drg Ct Pg-OOG Crm Jus Dv Grant",1240192016,"124DrgCtPg2016","1950-01-01","2012-09-30","2012-05-14","Yes","Yes","Yes",{"$f":"IF(A386=\"????\",\"\",_xlfn.XLOOKUP('Data FA Lookup'!$D386,'FC Master'!A:A,'FC Master'!Q:Q,'Data FA Lookup'!$D386,0,1))","v":1240192016}]
["1210","124","Crm Cts Drg Ct Pg-Tx Veterans Cmn Grant",1240192039,"124DrgCtPg2039","1950-01-01","9999-12-31","2012-05-14","Yes","No","Yes",{"$f":"IF(A387=\"????\",\"\",_xlfn.XLOOKUP('Data FA Lookup'!$D387,'FC Master'!A:A,'FC Master'!Q:Q,'Data FA Lookup'!$D387,0,1))","v":1240192039}]
["1210","124","Crm Cts Drg Ct Pg-OOG CJD-St Fd Grant",1240192058,"124DrgCtPg2058","1950-01-01","2012-09-30","2012-05-14","Yes","Yes","Yes",{"$f":"IF(A388=\"????\",\"\",_xlfn.XLOOKUP('Data FA Lookup'!$D388,'FC Master'!A:A,'FC Master'!Q:Q,'Data FA Lookup'!$D388,0,1))","v":1240192058}]
["1210","124","Crm Cts Drg Ct Pg Visiting Judge-GF",1240200001,"124DrgCtPgVJDG0001","1950-01-01","9999-12-31","2012-12-05","No","No","No",{"$f":"IF(A389=\"????\",\"\",_xlfn.XLOOKUP('Data FA Lookup'!$D389,'FC Master'!A:A,'FC Master'!Q:Q,'Data FA Lookup'!$D389,0,1))","v":1240010001}]
["1210","124","Crm Cts Drg Ct Jud Trvl-Drug Ct Pg",1240240131,"124DrgCtJudTvl0131","1950-01-01","2012-09-30","2012-05-14","No","No","No",{"$f":"IF(A390=\"????\",\"\",_xlfn.XLOOKUP('Data FA Lookup'!$D390,'FC Master'!A:A,'FC Master'!Q:Q,'Data FA Lookup'!$D390,0,1))","v":1240240131}]
["1210","124","Criminal Courts Veterans Ct-GF",1240250001,"124VetCt0001","1950-01-01","9999-12-31","2012-05-14","No","No","No",{"$f":"IF(A391=\"????\",\"\",_xlfn.XLOOKUP('Data FA Lookup'!$D391,'FC Master'!A:A,'FC Master'!Q:Q,'Data FA Lookup'!$D391,0,1))","v":1240250001}]
["1210","124","Criminal Courts Veterans Ct-Drug Ct Pg",1240250131,"124VetCt0131","1950-01-01","9999-12-31","2012-05-14","No","No","No",{"$f":"IF(A392=\"????\",\"\",_xlfn.XLOOKUP('Data FA Lookup'!$D392,'FC Master'!A:A,'FC Master'!Q:Q,'Data FA Lookup'!$D392,0,1))","v":1240250131}]
["1210","124","Criminal Courts District LMF-GF",1240270001,"124CCDCtLMF0001","1950-01-01","2012-09-30","2012-05-14","No","No","No",{"$f":"IF(A393=\"????\",\"\",_xlfn.XLOOKUP('Data FA Lookup'!$D393,'FC Master'!A:A,'FC Master'!Q:Q,'Data FA Lookup'!$D393,0,1))","v":1940010001}]
["1210","124","Criminal Courts District LMF-147thDCt-GF",1240280001,"124CCDCtLMF1470001","1950-01-01","9999-12-31","2012-05-14","Yes","No","Yes",{"$f":"IF(A394=\"????\",\"\",_xlfn.XLOOKUP('Data FA Lookup'!$D394,'FC Master'!A:A,'FC Master'!Q:Q,'Data FA Lookup'!$D394,0,1))","v":1240280001}]
["1210","124","Criminal Courts District LMF-167thDCt-GF",1240290001,"124CCDCtLMF1670001","1950-01-01","9999-12-31","2012-05-14","Yes","No","Yes",{"$f":"IF(A395=\"????\",\"\",_xlfn.XLOOKUP('Data FA Lookup'!$D395,'FC Master'!A:A,'FC Master'!Q:Q,'Data FA Lookup'!$D395,0,1))","v":1240290001}]
["1210","124","Criminal Courts District LMF-299thDCt-GF",1240300001,"124CCDCtLMF2990001","1950-01-01","9999-12-31","2012-05-14","Yes","No","Yes",{"$f":"IF(A396=\"????\",\"\",_xlfn.XLOOKUP('Data FA Lookup'!$D396,'FC Master'!A:A,'FC Master'!Q:Q,'Data FA Lookup'!$D396,0,1))","v":1240300001}]
["1210","124","Criminal Courts District LMF-331stDCt-GF",1240310001,"124CCDCtLMF3310001","1950-01-01","9999-12-31","2012-05-14","Yes","No","Yes",{"$f":"IF(A397=\"????\",\"\",_xlfn.XLOOKUP('Data FA Lookup'!$D397,'FC Master'!A:A,'FC Master'!Q:Q,'Data FA Lookup'!$D397,0,1))","v":1240310001}]
["1210","124","Criminal Courts District LMF-390thDCt-GF",1240320001,"124CCDCtLMF3900001","1950-01-01","9999-12-31","2012-05-14","Yes","No","Yes",{"$f":"IF(A398=\"????\",\"\",_xlfn.XLOOKUP('Data FA Lookup'!$D398,'FC Master'!A:A,'FC Master'!Q:Q,'Data FA Lookup'!$D398,0,1))","v":1240320001}]
["1210","124","Criminal Courts District LMF-403rdDCt-GF",1240330001,"124CCDCtLMF4030001","1950-01-01","9999-12-31","2012-05-14","Yes","No","Yes",{"$f":"IF(A399=\"????\",\"\",_xlfn.XLOOKUP('Data FA Lookup'!$D399,'FC Master'!A:A,'FC Master'!Q:Q,'Data FA Lookup'!$D399,0,1))","v":1240330001}]
["1210","124","Criminal Courts District LMF-427thDCt-GF",1240340001,"124CCDCtLMF4270001","1950-01-01","9999-12-31","2012-05-14","Yes","No","Yes",{"$f":"IF(A400=\"????\",\"\",_xlfn.XLOOKUP('Data FA Lookup'!$D400,'FC Master'!A:A,'FC Master'!Q:Q,'Data FA Lookup'!$D400,0,1))","v":1240340001}]
["1210","124","Criminal Courts LMF-Magistrate Ct-GF",1240350001,"124CCLMFMagCt0001","1950-01-01","9999-12-31","2012-05-14","Yes","No","Yes",{"$f":"IF(A401=\"????\",\"\",_xlfn.XLOOKUP('Data FA Lookup'!$D401,'FC Master'!A:A,'FC Master'!Q:Q,'Data FA Lookup'!$D401,0,1))","v":1240350001}]
["1210","124","Criminal Courts LMF-Drug Ct-GF",1240360001,"124CCLMFDrugCt0001","1950-01-01","9999-12-31","2012-05-14","Yes","No","Yes",{"$f":"IF(A402=\"????\",\"\",_xlfn.XLOOKUP('Data FA Lookup'!$D402,'FC Master'!A:A,'FC Master'!Q:Q,'Data FA Lookup'!$D402,0,1))","v":1240360001}]
["1210","124","Criminal Courts County LMF-GF",1240370001,"124CCCoLMF0001","1950-01-01","2012-09-30","2012-05-14","No","No","No",{"$f":"IF(A403=\"????\",\"\",_xlfn.XLOOKUP('Data FA Lookup'!$D403,'FC Master'!A:A,'FC Master'!Q:Q,'Data FA Lookup'!$D403,0,1))","v":1240370001}]
["1210","124","Criminal Courts LMF-County Court 3-GF",1240380001,"124CCCoLMFCt30001","1950-01-01","9999-12-31","2012-05-14","Yes","No","Yes",{"$f":"IF(A404=\"????\",\"\",_xlfn.XLOOKUP('Data FA Lookup'!$D404,'FC Master'!A:A,'FC Master'!Q:Q,'Data FA Lookup'!$D404,0,1))","v":1240370001}]
["1210","124","Criminal Courts LMF-County Court 4-GF",1240390001,"124CCCoLMFCt40001","1950-01-01","9999-12-31","2012-05-14","Yes","No","Yes",{"$f":"IF(A405=\"????\",\"\",_xlfn.XLOOKUP('Data FA Lookup'!$D405,'FC Master'!A:A,'FC Master'!Q:Q,'Data FA Lookup'!$D405,0,1))","v":1240370001}]
["1210","124","Criminal Courts LMF-County Court 5-GF",1240400001,"124CCCoLMFCt50001","1950-01-01","9999-12-31","2012-05-14","Yes","No","Yes",{"$f":"IF(A406=\"????\",\"\",_xlfn.XLOOKUP('Data FA Lookup'!$D406,'FC Master'!A:A,'FC Master'!Q:Q,'Data FA Lookup'!$D406,0,1))","v":1240370001}]
["1210","124","Criminal Courts LMF-County Court 6-GF",1240410001,"124CCCoLMFCt60001","1950-01-01","9999-12-31","2012-05-14","Yes","No","Yes",{"$f":"IF(A407=\"????\",\"\",_xlfn.XLOOKUP('Data FA Lookup'!$D407,'FC Master'!A:A,'FC Master'!Q:Q,'Data FA Lookup'!$D407,0,1))","v":1240370001}]
["1210","124","Criminal Courts LMF-County Court 7-GF",1240420001,"124CCCoLMFCt70001","1950-01-01","9999-12-31","2012-05-14","Yes","No","Yes",{"$f":"IF(A408=\"????\",\"\",_xlfn.XLOOKUP('Data FA Lookup'!$D408,'FC Master'!A:A,'FC Master'!Q:Q,'Data FA Lookup'!$D408,0,1))","v":1240370001}]
["1210","124","Criminal Courts LMF-County Court 8-GF",1240430001,"124CCCoLMFCt80001","1950-01-01","9999-12-31","2012-05-14","Yes","No","Yes",{"$f":"IF(A409=\"????\",\"\",_xlfn.XLOOKUP('Data FA Lookup'!$D409,'FC Master'!A:A,'FC Master'!Q:Q,'Data FA Lookup'!$D409,0,1))","v":1240370001}]
["1210","124","Criminal Courts LMF-DWI Court-GF",1240440001,"124CCCoLMFDWICt0001","1950-01-01","9999-12-31","2012-05-14","No","No","No",{"$f":"IF(A410=\"????\",\"\",_xlfn.XLOOKUP('Data FA Lookup'!$D410,'FC Master'!A:A,'FC Master'!Q:Q,'Data FA Lookup'!$D410,0,1))","v":1240370001}]
["1210","124","Criminal Courts LMF-Veterans Court-GF",1240450001,"124CCCoLMFVetCt0001","1950-01-01","9999-12-31","2012-05-14","Yes","No","Yes",{"$f":"IF(A411=\"????\",\"\",_xlfn.XLOOKUP('Data FA Lookup'!$D411,'FC Master'!A:A,'FC Master'!Q:Q,'Data FA Lookup'!$D411,0,1))","v":1240370001}]
["1210","124","Criminal Courts-Vet Court Optg-GF",1240460001,"124CCCoVtCtOp0001","1950-01-01","9999-12-31","2012-12-05","No","No","No",{"$f":"IF(A412=\"????\",\"\",_xlfn.XLOOKUP('Data FA Lookup'!$D412,'FC Master'!A:A,'FC Master'!Q:Q,'Data FA Lookup'!$D412,0,1))","v":1240110001}]
["1210","124","Criminal Courts County Court 9-GF",1240470001,"124CC90001","1950-01-01","9999-12-31","2015-09-10","No","No","No",{"$f":"IF(A413=\"????\",\"\",_xlfn.XLOOKUP('Data FA Lookup'!$D413,'FC Master'!A:A,'FC Master'!Q:Q,'Data FA Lookup'!$D413,0,1))","v":1240110001}]
["1210","124","Criminal Courts 450th District Court-GF",1240480001,"124DC4500001","1950-01-01","9999-12-31","2015-10-14","No","No","No",{"$f":"IF(A414=\"????\",\"\",_xlfn.XLOOKUP('Data FA Lookup'!$D414,'FC Master'!A:A,'FC Master'!Q:Q,'Data FA Lookup'!$D414,0,1))","v":1240010001}]
["1210","124","Criminal Courts 460th District Court-GF",1240490001,"124DC4600001","1950-01-01","9999-12-31","2019-08-26","No","No","No",{"$f":"IF(A415=\"????\",\"\",_xlfn.XLOOKUP('Data FA Lookup'!$D415,'FC Master'!A:A,'FC Master'!Q:Q,'Data FA Lookup'!$D415,0,1))","v":1240010001}]
["1210","124","Criminal Courts CAR-CrmJs GF",1248000001,"124CAR0001","1950-01-01","9999-12-31","2012-05-15","No","No","No",{"$f":"IF(A416=\"????\",\"\",_xlfn.XLOOKUP('Data FA Lookup'!$D416,'FC Master'!A:A,'FC Master'!Q:Q,'Data FA Lookup'!$D416,0,1))","v":1248000001}]
["1220","125","Probate Court-GF",1250010001,"125ProbCt0001","1950-01-01","9999-12-31","2012-05-14","No","No","No",{"$f":"IF(A417=\"????\",\"\",_xlfn.XLOOKUP('Data FA Lookup'!$D417,'FC Master'!A:A,'FC Master'!Q:Q,'Data FA Lookup'!$D417,0,1))","v":1250010001}]
["1220","125","Probate Court-Court Reporter Sv Fd",1250010113,"125ProbCt0113","1950-01-01","9999-12-31","2012-05-14","No","No","No",{"$f":"IF(A418=\"????\",\"\",_xlfn.XLOOKUP('Data FA Lookup'!$D418,'FC Master'!A:A,'FC Master'!Q:Q,'Data FA Lookup'!$D418,0,1))","v":1250010113}]
["1220","125","Probate Court-Judiciary Fee Fd",1250010124,"125ProbCt0124","1950-01-01","9999-12-31","2012-05-14","No","No","No",{"$f":"IF(A419=\"????\",\"\",_xlfn.XLOOKUP('Data FA Lookup'!$D419,'FC Master'!A:A,'FC Master'!Q:Q,'Data FA Lookup'!$D419,0,1))","v":1250010124}]
["1220","125","Probate Court-Grdnshp Probate Grdnshp Fd",1250010132,"125ProbCt0132","1950-01-01","9999-12-31","2012-05-14","No","No","No",{"$f":"IF(A420=\"????\",\"\",_xlfn.XLOOKUP('Data FA Lookup'!$D420,'FC Master'!A:A,'FC Master'!Q:Q,'Data FA Lookup'!$D420,0,1))","v":1250010132}]
["1220","125","Probate Court-Jud Educ&Suppt Fd",1250010159,"125ProbCt0159","1950-01-01","9999-12-31","2021-08-03","No","No","No",{"$f":"IF(A421=\"????\",\"\",_xlfn.XLOOKUP('Data FA Lookup'!$D421,'FC Master'!A:A,'FC Master'!Q:Q,'Data FA Lookup'!$D421,0,1))","v":1250010159}]
["1220","125","Probate Court-Mental Hth-GF",1250020001,"125MntlHlth0001","1950-01-01","9999-12-31","2012-05-14","No","No","No",{"$f":"IF(A422=\"????\",\"\",_xlfn.XLOOKUP('Data FA Lookup'!$D422,'FC Master'!A:A,'FC Master'!Q:Q,'Data FA Lookup'!$D422,0,1))","v":1250020001}]
["1220","125","Probate Court-Mental Hth Judcy Fee Fd",1250020124,"125MntlHlth0124","1950-01-01","9999-12-31","2012-05-14","No","No","No",{"$f":"IF(A423=\"????\",\"\",_xlfn.XLOOKUP('Data FA Lookup'!$D423,'FC Master'!A:A,'FC Master'!Q:Q,'Data FA Lookup'!$D423,0,1))","v":1250020124}]
["1220","125","Probate Court-Guardianship-GF",1250030001,"125Guardshp0001","1950-01-01","9999-12-31","2012-05-14","No","No","No",{"$f":"IF(A424=\"????\",\"\",_xlfn.XLOOKUP('Data FA Lookup'!$D424,'FC Master'!A:A,'FC Master'!Q:Q,'Data FA Lookup'!$D424,0,1))","v":1250030001}]
["1220","125","Probate Court-Guardianship Judcy Fee Fd",1250030124,"125Guardshp0124","1950-01-01","9999-12-31","2012-05-14","No","No","No",{"$f":"IF(A425=\"????\",\"\",_xlfn.XLOOKUP('Data FA Lookup'!$D425,'FC Master'!A:A,'FC Master'!Q:Q,'Data FA Lookup'!$D425,0,1))","v":1250030124}]
["1220","126","JP1 Civil-GF",1260010001,"126Civ0001","1950-01-01","9999-12-31","2012-05-14","No","No","No",{"$f":"IF(A426=\"????\",\"\",_xlfn.XLOOKUP('Data FA Lookup'!$D426,'FC Master'!A:A,'FC Master'!Q:Q,'Data FA Lookup'!$D426,0,1))","v":1260010001}]
["1220","126","JP1 Civil-Jst Ct Technology",1260010125,"126Civ0125","1950-01-01","9999-12-31","2012-05-14","No","No","No",{"$f":"IF(A427=\"????\",\"\",_xlfn.XLOOKUP('Data FA Lookup'!$D427,'FC Master'!A:A,'FC Master'!Q:Q,'Data FA Lookup'!$D427,0,1))","v":1260010125}]
["1220","126","JP1 Civil-Vital Statistic Presrvtn",1260010133,"126Civ0133","1950-01-01","9999-12-31","2012-05-14","No","No","No",{"$f":"IF(A428=\"????\",\"\",_xlfn.XLOOKUP('Data FA Lookup'!$D428,'FC Master'!A:A,'FC Master'!Q:Q,'Data FA Lookup'!$D428,0,1))","v":1260010133}]
["1220","126","JP1 Civil-Language Access Fd",1260010158,"126Civ0158","1950-01-01","9999-12-31","2021-08-03","No","No","No",{"$f":"IF(A429=\"????\",\"\",_xlfn.XLOOKUP('Data FA Lookup'!$D429,'FC Master'!A:A,'FC Master'!Q:Q,'Data FA Lookup'!$D429,0,1))","v":1260010158}]
["1220","126","JP1 Civil-Justice Ct Suppt Fd",1260010161,"126Civ0161","1950-01-01","9999-12-31","2021-08-03","No","No","No",{"$f":"IF(A430=\"????\",\"\",_xlfn.XLOOKUP('Data FA Lookup'!$D430,'FC Master'!A:A,'FC Master'!Q:Q,'Data FA Lookup'!$D430,0,1))","v":1260010161}]
["1210","126","JP1 Criminal-GF",1260020001,"126Crm0001","1950-01-01","9999-12-31","2012-05-14","No","No","No",{"$f":"IF(A431=\"????\",\"\",_xlfn.XLOOKUP('Data FA Lookup'!$D431,'FC Master'!A:A,'FC Master'!Q:Q,'Data FA Lookup'!$D431,0,1))","v":1260020001}]
["1210","126","JP1 Criminal-Courthouse Security Fd",1260020111,"126Crm0111","1950-01-01","9999-12-31","2012-05-14","No","No","No",{"$f":"IF(A432=\"????\",\"\",_xlfn.XLOOKUP('Data FA Lookup'!$D432,'FC Master'!A:A,'FC Master'!Q:Q,'Data FA Lookup'!$D432,0,1))","v":1260020111}]
["1210","126","JP1 Criminal-Js Ct Technology",1260020125,"126Crm0125","1950-01-01","9999-12-31","2012-05-14","No","No","No",{"$f":"IF(A433=\"????\",\"\",_xlfn.XLOOKUP('Data FA Lookup'!$D433,'FC Master'!A:A,'FC Master'!Q:Q,'Data FA Lookup'!$D433,0,1))","v":1260020125}]
["1210","126","JP1 Criminal-Justice Ct Bldg Security",1260020136,"126Crm0136","1950-01-01","9999-12-31","2012-05-14","No","No","No",{"$f":"IF(A434=\"????\",\"\",_xlfn.XLOOKUP('Data FA Lookup'!$D434,'FC Master'!A:A,'FC Master'!Q:Q,'Data FA Lookup'!$D434,0,1))","v":1260020136}]
["1210","126","JP1 Criminal-Juvenile Case Mgr Fd",1260020137,"126Crm0137","1950-01-01","9999-12-31","2012-05-14","No","No","No",{"$f":"IF(A435=\"????\",\"\",_xlfn.XLOOKUP('Data FA Lookup'!$D435,'FC Master'!A:A,'FC Master'!Q:Q,'Data FA Lookup'!$D435,0,1))","v":1260020137}]
["1210","126","JP1 Criminal-RdBg Fd",1260020145,"126Crm0145","1950-01-01","9999-12-31","2012-05-14","No","No","No",{"$f":"IF(A436=\"????\",\"\",_xlfn.XLOOKUP('Data FA Lookup'!$D436,'FC Master'!A:A,'FC Master'!Q:Q,'Data FA Lookup'!$D436,0,1))","v":1260020145}]
["1210","126","JP1 Criminal-Juv Case Mgr Pgm Fd",1260020152,"126Crm0152","1950-01-01","9999-12-31","2013-12-23","No","No","No",{"$f":"IF(A437=\"????\",\"\",_xlfn.XLOOKUP('Data FA Lookup'!$D437,'FC Master'!A:A,'FC Master'!Q:Q,'Data FA Lookup'!$D437,0,1))","v":1260020152}]
["1210","126","JP1 Criminal-County Jury Fd",1260020156,"126Crm0156","1950-01-01","9999-12-31","2019-12-26","No","No","No",{"$f":"IF(A438=\"????\",\"\",_xlfn.XLOOKUP('Data FA Lookup'!$D438,'FC Master'!A:A,'FC Master'!Q:Q,'Data FA Lookup'!$D438,0,1))","v":1260020156}]
["1210","126","JP1 Criminal-Tx DPS Grant",1260022028,"126Crm2028","1950-01-01","9999-12-31","2012-05-14","Yes","Yes","Yes",{"$f":"IF(A439=\"????\",\"\",_xlfn.XLOOKUP('Data FA Lookup'!$D439,'FC Master'!A:A,'FC Master'!Q:Q,'Data FA Lookup'!$D439,0,1))","v":1260022028}]
["1210","126","JP1 Criminal-Tx DPS-State Fd",1260022069,"126Crm2069","1950-01-01","2007-09-30","2015-04-15","Yes","Yes","Yes",{"$f":"IF(A440=\"????\",\"\",_xlfn.XLOOKUP('Data FA Lookup'!$D440,'FC Master'!A:A,'FC Master'!Q:Q,'Data FA Lookup'!$D440,0,1))","v":1260022069}]
["1230","126","JP1 Juvenile Svs-Truancy Civil Court Fd",1260050153,"126JuvSvs0153","1950-01-01","9999-12-31","2015-08-21","No","No","No",{"$f":"IF(A441=\"????\",\"\",_xlfn.XLOOKUP('Data FA Lookup'!$D441,'FC Master'!A:A,'FC Master'!Q:Q,'Data FA Lookup'!$D441,0,1))","v":1260050153}]
["1220","127","JP2 Civil-GF",1270010001,"127Civ0001","1950-01-01","9999-12-31","2012-05-14","No","No","No",{"$f":"IF(A442=\"????\",\"\",_xlfn.XLOOKUP('Data FA Lookup'!$D442,'FC Master'!A:A,'FC Master'!Q:Q,'Data FA Lookup'!$D442,0,1))","v":1270010001}]
["1220","127","JP2 Civil-Js Ct Technology",1270010125,"127Civ0125","1950-01-01","9999-12-31","2012-05-14","No","No","No",{"$f":"IF(A443=\"????\",\"\",_xlfn.XLOOKUP('Data FA Lookup'!$D443,'FC Master'!A:A,'FC Master'!Q:Q,'Data FA Lookup'!$D443,0,1))","v":1270010125}]
["1220","127","JP2 Civil-Vital Statistic Presrvtn",1270010133,"127Civ0133","1950-01-01","9999-12-31","2012-05-14","No","No","No",{"$f":"IF(A444=\"????\",\"\",_xlfn.XLOOKUP('Data FA Lookup'!$D444,'FC Master'!A:A,'FC Master'!Q:Q,'Data FA Lookup'!$D444,0,1))","v":1270010133}]
["1220","127","JP2 Civil-Justice Ct Bldg Security",1270010136,"127Civ0136","1950-01-01","9999-12-31","2012-05-14","No","No","No",{"$f":"IF(A445=\"????\",\"\",_xlfn.XLOOKUP('Data FA Lookup'!$D445,'FC Master'!A:A,'FC Master'!Q:Q,'Data FA Lookup'!$D445,0,1))","v":1270010136}]
["1220","127","JP2 Civil-Language Access Fd",1270010158,"127Civ0158","1950-01-01","9999-12-31","2021-08-03","No","No","No",{"$f":"IF(A446=\"????\",\"\",_xlfn.XLOOKUP('Data FA Lookup'!$D446,'FC Master'!A:A,'FC Master'!Q:Q,'Data FA Lookup'!$D446,0,1))","v":1270010158}]
["1220","127","JP2 Civil-Justice Ct Suppt Fd",1270010161,"127Civ0161","1950-01-01","9999-12-31","2021-08-03","No","No","No",{"$f":"IF(A447=\"????\",\"\",_xlfn.XLOOKUP('Data FA Lookup'!$D447,'FC Master'!A:A,'FC Master'!Q:Q,'Data FA Lookup'!$D447,0,1))","v":1270010161}]
["1210","127","JP2 Criminal-GF",1270020001,"127Crm0001","1950-01-01","9999-12-31","2012-05-14","No","No","No",{"$f":"IF(A448=\"????\",\"\",_xlfn.XLOOKUP('Data FA Lookup'!$D448,'FC Master'!A:A,'FC Master'!Q:Q,'Data FA Lookup'!$D448,0,1))","v":1270020001}]
["1210","127","JP2 Criminal-Courthouse Security Fd",1270020111,"127Crm0111","1950-01-01","9999-12-31","2012-05-14","No","No","No",{"$f":"IF(A449=\"????\",\"\",_xlfn.XLOOKUP('Data FA Lookup'!$D449,'FC Master'!A:A,'FC Master'!Q:Q,'Data FA Lookup'!$D449,0,1))","v":1270020111}]
["1210","127","JP2 Criminal-Js Ct Technology",1270020125,"127Crm0125","1950-01-01","9999-12-31","2012-05-14","No","No","No",{"$f":"IF(A450=\"????\",\"\",_xlfn.XLOOKUP('Data FA Lookup'!$D450,'FC Master'!A:A,'FC Master'!Q:Q,'Data FA Lookup'!$D450,0,1))","v":1270020125}]
["1210","127","JP2 Criminal-Justice Ct Bldg Security",1270020136,"127Crm0136","1950-01-01","9999-12-31","2012-05-14","No","No","No",{"$f":"IF(A451=\"????\",\"\",_xlfn.XLOOKUP('Data FA Lookup'!$D451,'FC Master'!A:A,'FC Master'!Q:Q,'Data FA Lookup'!$D451,0,1))","v":1270020136}]
["1210","127","JP2 Criminal-Juvenile Case Mgr Fd",1270020137,"127Crm0137","1950-01-01","9999-12-31","2012-05-14","No","No","No",{"$f":"IF(A452=\"????\",\"\",_xlfn.XLOOKUP('Data FA Lookup'!$D452,'FC Master'!A:A,'FC Master'!Q:Q,'Data FA Lookup'!$D452,0,1))","v":1270020137}]
["1210","127","JP2 Criminal-RdBg Fd",1270020145,"127Crm0145","1950-01-01","9999-12-31","2012-05-14","No","No","No",{"$f":"IF(A453=\"????\",\"\",_xlfn.XLOOKUP('Data FA Lookup'!$D453,'FC Master'!A:A,'FC Master'!Q:Q,'Data FA Lookup'!$D453,0,1))","v":1270020145}]
["1210","127","JP2 Criminal-Juv Case Mgr Pgm Fd",1270020152,"127Crm0152","1950-01-01","9999-12-31","2013-12-23","No","No","No",{"$f":"IF(A454=\"????\",\"\",_xlfn.XLOOKUP('Data FA Lookup'!$D454,'FC Master'!A:A,'FC Master'!Q:Q,'Data FA Lookup'!$D454,0,1))","v":1270020152}]
["1210","127","JP2 Criminal-County Jury Fd",1270020156,"127Crm0156","1950-01-01","9999-12-31","2019-12-26","No","No","No",{"$f":"IF(A455=\"????\",\"\",_xlfn.XLOOKUP('Data FA Lookup'!$D455,'FC Master'!A:A,'FC Master'!Q:Q,'Data FA Lookup'!$D455,0,1))","v":1270020156}]
["1220","127","JP2 Accounting Civil-GF",1270030001,"127CivAcctg0001","1950-01-01","9999-12-31","2012-05-14","No","No","No",{"$f":"IF(A456=\"????\",\"\",_xlfn.XLOOKUP('Data FA Lookup'!$D456,'FC Master'!A:A,'FC Master'!Q:Q,'Data FA Lookup'!$D456,0,1))","v":1270030001}]
["1210","127","JP2 Accounting Criminal-GF",1270040001,"127CrmAcctg0001","1950-01-01","9999-12-31","2012-05-14","No","No","No",{"$f":"IF(A457=\"????\",\"\",_xlfn.XLOOKUP('Data FA Lookup'!$D457,'FC Master'!A:A,'FC Master'!Q:Q,'Data FA Lookup'!$D457,0,1))","v":1270040001}]
["1230","127","JP2 Juvenile Svs-Truancy Civil Court Fd",1270050153,"127JuvSvs0153","1950-01-01","9999-12-31","2015-08-21","No","No","No",{"$f":"IF(A458=\"????\",\"\",_xlfn.XLOOKUP('Data FA Lookup'!$D458,'FC Master'!A:A,'FC Master'!Q:Q,'Data FA Lookup'!$D458,0,1))","v":1270050153}]
["1220","127","JP2 CAR-CivJs GF",1278000001,"127CAR0001","1950-01-01","9999-12-31","2012-05-15","No","No","No",{"$f":"IF(A459=\"????\",\"\",_xlfn.XLOOKUP('Data FA Lookup'!$D459,'FC Master'!A:A,'FC Master'!Q:Q,'Data FA Lookup'!$D459,0,1))","v":1278000001}]
["1210","127","JP2 CAR-CrmJs GF",1278010001,"127CAR0001","1950-01-01","9999-12-31","2012-05-15","No","No","No",{"$f":"IF(A460=\"????\",\"\",_xlfn.XLOOKUP('Data FA Lookup'!$D460,'FC Master'!A:A,'FC Master'!Q:Q,'Data FA Lookup'!$D460,0,1))","v":1278010001}]
["1220","128","JP3 Civil-GF",1280010001,"128Civ0001","1950-01-01","9999-12-31","2012-05-14","No","No","No",{"$f":"IF(A461=\"????\",\"\",_xlfn.XLOOKUP('Data FA Lookup'!$D461,'FC Master'!A:A,'FC Master'!Q:Q,'Data FA Lookup'!$D461,0,1))","v":1280010001}]
["1220","128","JP3 Civil-Js Ct Technology",1280010125,"128Civ0125","1950-01-01","9999-12-31","2012-05-14","No","No","No",{"$f":"IF(A462=\"????\",\"\",_xlfn.XLOOKUP('Data FA Lookup'!$D462,'FC Master'!A:A,'FC Master'!Q:Q,'Data FA Lookup'!$D462,0,1))","v":1280010125}]
["1220","128","JP3 Civil-Vital Statistic Presrvtn",1280010133,"128Civ0133","1950-01-01","9999-12-31","2012-05-14","No","No","No",{"$f":"IF(A463=\"????\",\"\",_xlfn.XLOOKUP('Data FA Lookup'!$D463,'FC Master'!A:A,'FC Master'!Q:Q,'Data FA Lookup'!$D463,0,1))","v":1280010133}]
["1220","128","JP3 Civil-Language Access Fd",1280010158,"128Civ0158","1950-01-01","9999-12-31","2021-08-03","No","No","No",{"$f":"IF(A464=\"????\",\"\",_xlfn.XLOOKUP('Data FA Lookup'!$D464,'FC Master'!A:A,'FC Master'!Q:Q,'Data FA Lookup'!$D464,0,1))","v":1280010158}]
["1220","128","JP3 Civil-Justice Ct Suppt Fd",1280010161,"128Civ0161","1950-01-01","9999-12-31","2021-08-03","No","No","No",{"$f":"IF(A465=\"????\",\"\",_xlfn.XLOOKUP('Data FA Lookup'!$D465,'FC Master'!A:A,'FC Master'!Q:Q,'Data FA Lookup'!$D465,0,1))","v":1280010161}]
["1210","128","JP3 Criminal-GF",1280020001,"128Crm0001","1950-01-01","9999-12-31","2012-05-14","No","No","No",{"$f":"IF(A466=\"????\",\"\",_xlfn.XLOOKUP('Data FA Lookup'!$D466,'FC Master'!A:A,'FC Master'!Q:Q,'Data FA Lookup'!$D466,0,1))","v":1280020001}]
["1210","128","JP3 Criminal-Courthouse Security Fd",1280020111,"128Crm0111","1950-01-01","9999-12-31","2012-05-14","No","No","No",{"$f":"IF(A467=\"????\",\"\",_xlfn.XLOOKUP('Data FA Lookup'!$D467,'FC Master'!A:A,'FC Master'!Q:Q,'Data FA Lookup'!$D467,0,1))","v":1280020111}]
["1210","128","JP3 Criminal-Js Ct Technology",1280020125,"128Crm0125","1950-01-01","9999-12-31","2012-05-14","No","No","No",{"$f":"IF(A468=\"????\",\"\",_xlfn.XLOOKUP('Data FA Lookup'!$D468,'FC Master'!A:A,'FC Master'!Q:Q,'Data FA Lookup'!$D468,0,1))","v":1280020125}]
["1210","128","JP3 Criminal-Justice Ct Bldg Security",1280020136,"128Crm0136","1950-01-01","9999-12-31","2012-05-14","No","No","No",{"$f":"IF(A469=\"????\",\"\",_xlfn.XLOOKUP('Data FA Lookup'!$D469,'FC Master'!A:A,'FC Master'!Q:Q,'Data FA Lookup'!$D469,0,1))","v":1280020136}]
["1210","128","JP3 Criminal-Juvenile Case Mgr Fd",1280020137,"128Crm0137","1950-01-01","9999-12-31","2012-05-14","No","No","No",{"$f":"IF(A470=\"????\",\"\",_xlfn.XLOOKUP('Data FA Lookup'!$D470,'FC Master'!A:A,'FC Master'!Q:Q,'Data FA Lookup'!$D470,0,1))","v":1280020137}]
["1210","128","JP3 Criminal-RdBg Fd",1280020145,"128Crm0145","1950-01-01","9999-12-31","2012-05-14","No","No","No",{"$f":"IF(A471=\"????\",\"\",_xlfn.XLOOKUP('Data FA Lookup'!$D471,'FC Master'!A:A,'FC Master'!Q:Q,'Data FA Lookup'!$D471,0,1))","v":1280020145}]
["1210","128","JP3 Criminal-Juv Case Mgr Pgm Fd",1280020152,"128Crm0152","1950-01-01","9999-12-31","2013-12-23","No","No","No",{"$f":"IF(A472=\"????\",\"\",_xlfn.XLOOKUP('Data FA Lookup'!$D472,'FC Master'!A:A,'FC Master'!Q:Q,'Data FA Lookup'!$D472,0,1))","v":1280020152}]
["1210","128","JP3 Criminal-County Jury Fd",1280020156,"128Crm0156","1950-01-01","9999-12-31","2019-12-26","No","No","No",{"$f":"IF(A473=\"????\",\"\",_xlfn.XLOOKUP('Data FA Lookup'!$D473,'FC Master'!A:A,'FC Master'!Q:Q,'Data FA Lookup'!$D473,0,1))","v":1280020156}]
["1210","128","JP3 Criminal-Tx DPS Grant",1280022028,"128Crm2028","1950-01-01","9999-12-31","2012-05-14","Yes","Yes","Yes",{"$f":"IF(A474=\"????\",\"\",_xlfn.XLOOKUP('Data FA Lookup'!$D474,'FC Master'!A:A,'FC Master'!Q:Q,'Data FA Lookup'!$D474,0,1))","v":1280022028}]
["1210","128","JP3 Criminal-Tx DPS-State Fd",1280022069,"128Crm2069","1950-01-01","2007-09-30","2015-04-15","Yes","Yes","Yes",{"$f":"IF(A475=\"????\",\"\",_xlfn.XLOOKUP('Data FA Lookup'!$D475,'FC Master'!A:A,'FC Master'!Q:Q,'Data FA Lookup'!$D475,0,1))","v":1280022069}]
["1230","128","JP3 Juvenile Svs-Truancy Civil Court Fd",1280050153,"128JuvSvs0153","1950-01-01","9999-12-31","2015-08-21","No","No","No",{"$f":"IF(A476=\"????\",\"\",_xlfn.XLOOKUP('Data FA Lookup'!$D476,'FC Master'!A:A,'FC Master'!Q:Q,'Data FA Lookup'!$D476,0,1))","v":1280050153}]
["1210","128","JP3 CAR-CrmJs GF",1288000001,"128CAR0001","1950-01-01","9999-12-31","2012-05-15","No","No","No",{"$f":"IF(A477=\"????\",\"\",_xlfn.XLOOKUP('Data FA Lookup'!$D477,'FC Master'!A:A,'FC Master'!Q:Q,'Data FA Lookup'!$D477,0,1))","v":1288000001}]
["1220","129","JP4 Civil-GF",1290010001,"129Civ0001","1950-01-01","9999-12-31","2012-05-14","No","No","No",{"$f":"IF(A478=\"????\",\"\",_xlfn.XLOOKUP('Data FA Lookup'!$D478,'FC Master'!A:A,'FC Master'!Q:Q,'Data FA Lookup'!$D478,0,1))","v":1290010001}]
["1220","129","JP4 Civil-Vital Statistic Presrvtn",1290010133,"129Civ0133","1950-01-01","9999-12-31","2012-05-14","No","No","No",{"$f":"IF(A479=\"????\",\"\",_xlfn.XLOOKUP('Data FA Lookup'!$D479,'FC Master'!A:A,'FC Master'!Q:Q,'Data FA Lookup'!$D479,0,1))","v":1290010133}]
["1220","129","JP4 Civil-Language Access Fd",1290010158,"129Civ0158","1950-01-01","9999-12-31","2021-08-03","No","No","No",{"$f":"IF(A480=\"????\",\"\",_xlfn.XLOOKUP('Data FA Lookup'!$D480,'FC Master'!A:A,'FC Master'!Q:Q,'Data FA Lookup'!$D480,0,1))","v":1290010158}]
["1220","129","JP4 Civil-Justice Ct Suppt Fd",1290010161,"129Civ0161","1950-01-01","9999-12-31","2021-08-03","No","No","No",{"$f":"IF(A481=\"????\",\"\",_xlfn.XLOOKUP('Data FA Lookup'!$D481,'FC Master'!A:A,'FC Master'!Q:Q,'Data FA Lookup'!$D481,0,1))","v":1290010161}]
["1210","129","JP4 Criminal-GF",1290020001,"129Crm0001","1950-01-01","9999-12-31","2012-05-14","No","No","No",{"$f":"IF(A482=\"????\",\"\",_xlfn.XLOOKUP('Data FA Lookup'!$D482,'FC Master'!A:A,'FC Master'!Q:Q,'Data FA Lookup'!$D482,0,1))","v":1290020001}]
["1210","129","JP4 Criminal-Courthouse Security Fd",1290020111,"129Crm0111","1950-01-01","9999-12-31","2012-05-14","No","No","No",{"$f":"IF(A483=\"????\",\"\",_xlfn.XLOOKUP('Data FA Lookup'!$D483,'FC Master'!A:A,'FC Master'!Q:Q,'Data FA Lookup'!$D483,0,1))","v":1290020111}]
["1210","129","JP4 Criminal-Js Ct Technology",1290020125,"129Crm0125","1950-01-01","9999-12-31","2012-05-14","No","No","No",{"$f":"IF(A484=\"????\",\"\",_xlfn.XLOOKUP('Data FA Lookup'!$D484,'FC Master'!A:A,'FC Master'!Q:Q,'Data FA Lookup'!$D484,0,1))","v":1290020125}]
["1210","129","JP4 Criminal-Justice Ct Bldg Security",1290020136,"129Crm0136","1950-01-01","9999-12-31","2012-05-14","No","No","No",{"$f":"IF(A485=\"????\",\"\",_xlfn.XLOOKUP('Data FA Lookup'!$D485,'FC Master'!A:A,'FC Master'!Q:Q,'Data FA Lookup'!$D485,0,1))","v":1290020136}]
["1210","129","JP4 Criminal-Juvenile Case Mgr Fd",1290020137,"129Crm0137","1950-01-01","9999-12-31","2012-05-14","No","No","No",{"$f":"IF(A486=\"????\",\"\",_xlfn.XLOOKUP('Data FA Lookup'!$D486,'FC Master'!A:A,'FC Master'!Q:Q,'Data FA Lookup'!$D486,0,1))","v":1290020137}]
["1210","129","JP4 Criminal-RdBg Fd",1290020145,"129Crm0145","1950-01-01","9999-12-31","2012-05-14","No","No","No",{"$f":"IF(A487=\"????\",\"\",_xlfn.XLOOKUP('Data FA Lookup'!$D487,'FC Master'!A:A,'FC Master'!Q:Q,'Data FA Lookup'!$D487,0,1))","v":1290020145}]
["1210","129","JP4 Criminal-Juv Case Mgr Pgm Fd",1290020152,"129Crm0152","1950-01-01","9999-12-31","2013-12-23","No","No","No",{"$f":"IF(A488=\"????\",\"\",_xlfn.XLOOKUP('Data FA Lookup'!$D488,'FC Master'!A:A,'FC Master'!Q:Q,'Data FA Lookup'!$D488,0,1))","v":1290020152}]
["1210","129","JP4 Criminal-County Jury Fd",1290020156,"129Crm0156","1950-01-01","9999-12-31","2019-12-26","No","No","No",{"$f":"IF(A489=\"????\",\"\",_xlfn.XLOOKUP('Data FA Lookup'!$D489,'FC Master'!A:A,'FC Master'!Q:Q,'Data FA Lookup'!$D489,0,1))","v":1290020156}]
["1220","129","JP4 AdmCivil-GF",1290030001,"129AdmCiv0001","1950-01-01","2019-04-24","2012-05-14","No","No","No",{"$f":"IF(A490=\"????\",\"\",_xlfn.XLOOKUP('Data FA Lookup'!$D490,'FC Master'!A:A,'FC Master'!Q:Q,'Data FA Lookup'!$D490,0,1))","v":1290010001}]
["1220","129","JP4 AdmCivil-GF",1290030001,"129AdmCiv0001","2019-04-25","9999-12-31","2012-05-14","Yes","Yes","Yes",{"$f":"IF(A491=\"????\",\"\",_xlfn.XLOOKUP('Data FA Lookup'!$D491,'FC Master'!A:A,'FC Master'!Q:Q,'Data FA Lookup'!$D491,0,1))","v":1290010001}]
["1210","129","JP4 AdmCriminal-GF",1290040001,"129AdmCrm0001","1950-01-01","2019-04-24","2012-05-14","No","No","No",{"$f":"IF(A492=\"????\",\"\",_xlfn.XLOOKUP('Data FA Lookup'!$D492,'FC Master'!A:A,'FC Master'!Q:Q,'Data FA Lookup'!$D492,0,1))","v":1290020001}]
["1210","129","JP4 AdmCriminal-GF",1290040001,"129AdmCrm0001","2019-04-25","9999-12-31","2012-05-14","Yes","Yes","Yes",{"$f":"IF(A493=\"????\",\"\",_xlfn.XLOOKUP('Data FA Lookup'!$D493,'FC Master'!A:A,'FC Master'!Q:Q,'Data FA Lookup'!$D493,0,1))","v":1290020001}]
["1230","129","JP4 Juvenile Svs-Truancy Civil Court Fd",1290050153,"129JuvSvs0153","1950-01-01","9999-12-31","2015-08-21","No","No","No",{"$f":"IF(A494=\"????\",\"\",_xlfn.XLOOKUP('Data FA Lookup'!$D494,'FC Master'!A:A,'FC Master'!Q:Q,'Data FA Lookup'!$D494,0,1))","v":1290050153}]
["1210","129","JP4 CAR-Criminal Justice-GF",1298000001,"129CARCrmJs0001","1950-01-01","9999-12-31","2013-09-13","No","No","No",{"$f":"IF(A495=\"????\",\"\",_xlfn.XLOOKUP('Data FA Lookup'!$D495,'FC Master'!A:A,'FC Master'!Q:Q,'Data FA Lookup'!$D495,0,1))","v":1298000001}]
["1220","130","JP5 Civil-GF",1300010001,"130Civ0001","1950-01-01","9999-12-31","2012-05-14","No","No","No",{"$f":"IF(A496=\"????\",\"\",_xlfn.XLOOKUP('Data FA Lookup'!$D496,'FC Master'!A:A,'FC Master'!Q:Q,'Data FA Lookup'!$D496,0,1))","v":1300010001}]
["1220","130","JP5 Civil-Js Ct Tech Fd",1300010125,"130Civ0125","1950-01-01","9999-12-31","2012-05-14","No","No","No",{"$f":"IF(A497=\"????\",\"\",_xlfn.XLOOKUP('Data FA Lookup'!$D497,'FC Master'!A:A,'FC Master'!Q:Q,'Data FA Lookup'!$D497,0,1))","v":1300010125}]
["1220","130","JP5 Civil-Vital Stat Pres Fd",1300010133,"130Civ0133","1950-01-01","9999-12-31","2016-11-07","No","No","No",{"$f":"IF(A498=\"????\",\"\",_xlfn.XLOOKUP('Data FA Lookup'!$D498,'FC Master'!A:A,'FC Master'!Q:Q,'Data FA Lookup'!$D498,0,1))","v":1300010133}]
["1220","130","JP5 Civil-Language Access Fd",1300010158,"130Civ0158","1950-01-01","9999-12-31","2021-08-03","No","No","No",{"$f":"IF(A499=\"????\",\"\",_xlfn.XLOOKUP('Data FA Lookup'!$D499,'FC Master'!A:A,'FC Master'!Q:Q,'Data FA Lookup'!$D499,0,1))","v":1300010158}]
["1220","130","JP5 Civil-Justice Ct Suppt Fd",1300010161,"130Civ0161","1950-01-01","9999-12-31","2021-08-03","No","No","No",{"$f":"IF(A500=\"????\",\"\",_xlfn.XLOOKUP('Data FA Lookup'!$D500,'FC Master'!A:A,'FC Master'!Q:Q,'Data FA Lookup'!$D500,0,1))","v":1300010161}]
["1210","130","JP5 Criminal-GF",1300020001,"130Crm0001","1950-01-01","9999-12-31","2012-05-14","No","No","No",{"$f":"IF(A501=\"????\",\"\",_xlfn.XLOOKUP('Data FA Lookup'!$D501,'FC Master'!A:A,'FC Master'!Q:Q,'Data FA Lookup'!$D501,0,1))","v":1300020001}]
["1210","130","JP5 Criminal-Courthouse Security Fd",1300020111,"130Crm0111","1950-01-01","9999-12-31","2012-05-14","No","No","No",{"$f":"IF(A502=\"????\",\"\",_xlfn.XLOOKUP('Data FA Lookup'!$D502,'FC Master'!A:A,'FC Master'!Q:Q,'Data FA Lookup'!$D502,0,1))","v":1300020111}]
["1210","130","JP5 Criminal-Js Ct Technology",1300020125,"130Crm0125","1950-01-01","9999-12-31","2012-05-14","No","No","No",{"$f":"IF(A503=\"????\",\"\",_xlfn.XLOOKUP('Data FA Lookup'!$D503,'FC Master'!A:A,'FC Master'!Q:Q,'Data FA Lookup'!$D503,0,1))","v":1300020125}]
["1210","130","JP5 Criminal-Justice Ct Bldg Security",1300020136,"130Crm0136","1950-01-01","9999-12-31","2012-05-14","No","No","No",{"$f":"IF(A504=\"????\",\"\",_xlfn.XLOOKUP('Data FA Lookup'!$D504,'FC Master'!A:A,'FC Master'!Q:Q,'Data FA Lookup'!$D504,0,1))","v":1300020136}]
["1210","130","JP5 Criminal-Juvenile Case Mgr Fd",1300020137,"130Crm0137","1950-01-01","9999-12-31","2012-05-14","No","No","No",{"$f":"IF(A505=\"????\",\"\",_xlfn.XLOOKUP('Data FA Lookup'!$D505,'FC Master'!A:A,'FC Master'!Q:Q,'Data FA Lookup'!$D505,0,1))","v":1300020137}]
["1210","130","JP5 Criminal-RdBg Fd",1300020145,"130Crm0145","1950-01-01","9999-12-31","2012-05-14","No","No","No",{"$f":"IF(A506=\"????\",\"\",_xlfn.XLOOKUP('Data FA Lookup'!$D506,'FC Master'!A:A,'FC Master'!Q:Q,'Data FA Lookup'!$D506,0,1))","v":1300020145}]
["1210","130","JP5 Criminal-Juv Case Mgr Pgm Fd",1300020152,"130Crm0152","1950-01-01","9999-12-31","2013-12-23","No","No","No",{"$f":"IF(A507=\"????\",\"\",_xlfn.XLOOKUP('Data FA Lookup'!$D507,'FC Master'!A:A,'FC Master'!Q:Q,'Data FA Lookup'!$D507,0,1))","v":1300020152}]
["1210","130","JP5 Criminal-County Jury Fd",1300020156,"130Crm0156","1950-01-01","9999-12-31","2019-12-26","No","No","No",{"$f":"IF(A508=\"????\",\"\",_xlfn.XLOOKUP('Data FA Lookup'!$D508,'FC Master'!A:A,'FC Master'!Q:Q,'Data FA Lookup'!$D508,0,1))","v":1300020156}]
["1230","130","JP5 Juvenile Svs-Truancy Civil Court Fd",1300050153,"130JuvSvs0153","1950-01-01","9999-12-31","2015-08-21","No","No","No",{"$f":"IF(A509=\"????\",\"\",_xlfn.XLOOKUP('Data FA Lookup'!$D509,'FC Master'!A:A,'FC Master'!Q:Q,'Data FA Lookup'!$D509,0,1))","v":1300050153}]
["1220","130","JP5 CAR-CivJs GF",1308000001,"130CAR0001","1950-01-01","9999-12-31","2012-05-15","No","No","No",{"$f":"IF(A510=\"????\",\"\",_xlfn.XLOOKUP('Data FA Lookup'!$D510,'FC Master'!A:A,'FC Master'!Q:Q,'Data FA Lookup'!$D510,0,1))","v":1308000001}]
["1310","131","Constable1 Civil-GF",1310010001,"131Civ0001","1950-01-01","9999-12-31","2012-05-14","No","No","No",{"$f":"IF(A511=\"????\",\"\",_xlfn.XLOOKUP('Data FA Lookup'!$D511,'FC Master'!A:A,'FC Master'!Q:Q,'Data FA Lookup'!$D511,0,1))","v":1310010001}]
["1310","131","Constable1 Civil-TCEQ Grant",1310012025,"131Civ2025","1950-01-01","9999-12-31","2012-05-14","Yes","No","Yes",{"$f":"IF(A512=\"????\",\"\",_xlfn.XLOOKUP('Data FA Lookup'!$D512,'FC Master'!A:A,'FC Master'!Q:Q,'Data FA Lookup'!$D512,0,1))","v":1310012025}]
["1310","131","Constable1 Criminal-GF",1310020001,"131Crm0001","1950-01-01","9999-12-31","2012-05-14","No","No","No",{"$f":"IF(A513=\"????\",\"\",_xlfn.XLOOKUP('Data FA Lookup'!$D513,'FC Master'!A:A,'FC Master'!Q:Q,'Data FA Lookup'!$D513,0,1))","v":1310020001}]
["1310","131","Constable1 Criminal-LEOSE Fd",1310020116,"131Crm0116","1950-01-01","9999-12-31","2012-05-14","No","No","No",{"$f":"IF(A514=\"????\",\"\",_xlfn.XLOOKUP('Data FA Lookup'!$D514,'FC Master'!A:A,'FC Master'!Q:Q,'Data FA Lookup'!$D514,0,1))","v":1310020116}]
["1310","131","Constable1 Criminal-TCEQ Grant",1310022025,"131Crm2025","1950-01-01","9999-12-31","2012-05-14","Yes","Yes","Yes",{"$f":"IF(A515=\"????\",\"\",_xlfn.XLOOKUP('Data FA Lookup'!$D515,'FC Master'!A:A,'FC Master'!Q:Q,'Data FA Lookup'!$D515,0,1))","v":1310022025}]
["1310","131","Constable1 Security-GF",1310040001,"131Sec0001","1950-01-01","9999-12-31","2012-05-14","No","No","No",{"$f":"IF(A516=\"????\",\"\",_xlfn.XLOOKUP('Data FA Lookup'!$D516,'FC Master'!A:A,'FC Master'!Q:Q,'Data FA Lookup'!$D516,0,1))","v":1310040001}]
["1310","131","Constable1 Security-TCEQ Grant",1310042025,"131Sec2025","1950-01-01","9999-12-31","2012-05-14","Yes","No","Yes",{"$f":"IF(A517=\"????\",\"\",_xlfn.XLOOKUP('Data FA Lookup'!$D517,'FC Master'!A:A,'FC Master'!Q:Q,'Data FA Lookup'!$D517,0,1))","v":1310042025}]
["1310","131","Constable1 CAR-LE GF",1318000001,"131CAR0001","1950-01-01","9999-12-31","2012-05-15","No","No","No",{"$f":"IF(A518=\"????\",\"\",_xlfn.XLOOKUP('Data FA Lookup'!$D518,'FC Master'!A:A,'FC Master'!Q:Q,'Data FA Lookup'!$D518,0,1))","v":1318000001}]
["1310","132","Constable2 Civil-GF",1320010001,"132Civ0001","1950-01-01","9999-12-31","2012-05-14","No","No","No",{"$f":"IF(A519=\"????\",\"\",_xlfn.XLOOKUP('Data FA Lookup'!$D519,'FC Master'!A:A,'FC Master'!Q:Q,'Data FA Lookup'!$D519,0,1))","v":1320010001}]
["1310","132","Constable2 Civil-TCEQ Grant",1320012025,"132Civ2025","1950-01-01","9999-12-31","2012-05-14","Yes","Yes","Yes",{"$f":"IF(A520=\"????\",\"\",_xlfn.XLOOKUP('Data FA Lookup'!$D520,'FC Master'!A:A,'FC Master'!Q:Q,'Data FA Lookup'!$D520,0,1))","v":1320012025}]
["1310","132","Constable2 Criminal-GF",1320020001,"132Crm0001","1950-01-01","9999-12-31","2012-05-14","No","No","No",{"$f":"IF(A521=\"????\",\"\",_xlfn.XLOOKUP('Data FA Lookup'!$D521,'FC Master'!A:A,'FC Master'!Q:Q,'Data FA Lookup'!$D521,0,1))","v":1320020001}]
["1310","132","Constable2 Criminal-Law Enf Fd",1320020103,"132Crm0103","1950-01-01","9999-12-31","2012-05-14","No","No","No",{"$f":"IF(A522=\"????\",\"\",_xlfn.XLOOKUP('Data FA Lookup'!$D522,'FC Master'!A:A,'FC Master'!Q:Q,'Data FA Lookup'!$D522,0,1))","v":1320020103}]
["1310","132","Constable2 Criminal-LEOSE Fd",1320020116,"132Crm0116","1950-01-01","9999-12-31","2012-05-14","No","No","No",{"$f":"IF(A523=\"????\",\"\",_xlfn.XLOOKUP('Data FA Lookup'!$D523,'FC Master'!A:A,'FC Master'!Q:Q,'Data FA Lookup'!$D523,0,1))","v":1320020116}]
["1310","132","Constable2 Criminal-TCEQ Grant",1320022025,"132Crm2025","1950-01-01","9999-12-31","2012-05-14","Yes","No","Yes",{"$f":"IF(A524=\"????\",\"\",_xlfn.XLOOKUP('Data FA Lookup'!$D524,'FC Master'!A:A,'FC Master'!Q:Q,'Data FA Lookup'!$D524,0,1))","v":1320022025}]
["1310","132","Constable2 Adm-GF",1320030001,"132Adm0001","1950-01-01","9999-12-31","2012-05-14","No","No","No",{"$f":"IF(A525=\"????\",\"\",_xlfn.XLOOKUP('Data FA Lookup'!$D525,'FC Master'!A:A,'FC Master'!Q:Q,'Data FA Lookup'!$D525,0,1))","v":1320030001}]
["1310","132","Constable2 Security-GF",1320040001,"132Sec0001","1950-01-01","9999-12-31","2012-05-14","No","No","No",{"$f":"IF(A526=\"????\",\"\",_xlfn.XLOOKUP('Data FA Lookup'!$D526,'FC Master'!A:A,'FC Master'!Q:Q,'Data FA Lookup'!$D526,0,1))","v":1320040001}]
["1310","132","Constable2 Interlocal Agreement-GF",1320050001,"132IntloclAgmt0001","1950-01-01","9999-12-31","2012-05-14","No","No","No",{"$f":"IF(A527=\"????\",\"\",_xlfn.XLOOKUP('Data FA Lookup'!$D527,'FC Master'!A:A,'FC Master'!Q:Q,'Data FA Lookup'!$D527,0,1))","v":1320050001}]
["1310","132","Constable2 Telecommunications-GF",1320060001,"132Telecom0001","1950-01-01","9999-12-31","2018-03-20","No","No","No",{"$f":"IF(A528=\"????\",\"\",_xlfn.XLOOKUP('Data FA Lookup'!$D528,'FC Master'!A:A,'FC Master'!Q:Q,'Data FA Lookup'!$D528,0,1))","v":1320060001}]
["1310","132","Constable2 CAR-LE GF",1328000001,"132CAR0001","1950-01-01","9999-12-31","2012-05-15","No","No","No",{"$f":"IF(A529=\"????\",\"\",_xlfn.XLOOKUP('Data FA Lookup'!$D529,'FC Master'!A:A,'FC Master'!Q:Q,'Data FA Lookup'!$D529,0,1))","v":1328000001}]
["1310","133","Constable3 Civil-GF",1330010001,"133Civ0001","1950-01-01","9999-12-31","2012-05-14","No","No","No",{"$f":"IF(A530=\"????\",\"\",_xlfn.XLOOKUP('Data FA Lookup'!$D530,'FC Master'!A:A,'FC Master'!Q:Q,'Data FA Lookup'!$D530,0,1))","v":1330010001}]
["1310","133","Constable3 Civil-TCEQ Grant",1330012025,"133Civ2025","1950-01-01","9999-12-31","2012-05-14","Yes","No","Yes",{"$f":"IF(A531=\"????\",\"\",_xlfn.XLOOKUP('Data FA Lookup'!$D531,'FC Master'!A:A,'FC Master'!Q:Q,'Data FA Lookup'!$D531,0,1))","v":1330012025}]
["1310","133","Constable3 Criminal-GF",1330020001,"133Crm0001","1950-01-01","9999-12-31","2012-05-14","No","No","No",{"$f":"IF(A532=\"????\",\"\",_xlfn.XLOOKUP('Data FA Lookup'!$D532,'FC Master'!A:A,'FC Master'!Q:Q,'Data FA Lookup'!$D532,0,1))","v":1330020001}]
["1310","133","Constable3 Criminal-LEOSE Fd",1330020116,"133Crm0116","1950-01-01","9999-12-31","2012-05-14","No","No","No",{"$f":"IF(A533=\"????\",\"\",_xlfn.XLOOKUP('Data FA Lookup'!$D533,'FC Master'!A:A,'FC Master'!Q:Q,'Data FA Lookup'!$D533,0,1))","v":1330020116}]
["1310","133","Constable3 Criminal-OOG Crm Jus Dv Grant",1330022016,"133Crm2016","1950-01-01","9999-12-31","2012-05-14","Yes","Yes","Yes",{"$f":"IF(A534=\"????\",\"\",_xlfn.XLOOKUP('Data FA Lookup'!$D534,'FC Master'!A:A,'FC Master'!Q:Q,'Data FA Lookup'!$D534,0,1))","v":1330022016}]
["1310","133","Constable3 Criminal-TCEQ Grant",1330022025,"133Crm2025","1950-01-01","9999-12-31","2012-05-14","Yes","Yes","Yes",{"$f":"IF(A535=\"????\",\"\",_xlfn.XLOOKUP('Data FA Lookup'!$D535,'FC Master'!A:A,'FC Master'!Q:Q,'Data FA Lookup'!$D535,0,1))","v":1330022025}]
["1310","133","Constable3 Criminal-US DOJ Grant",1330022051,"133Crm2051","1950-01-01","9999-12-31","2012-05-14","Yes","Yes","Yes",{"$f":"IF(A536=\"????\",\"\",_xlfn.XLOOKUP('Data FA Lookup'!$D536,'FC Master'!A:A,'FC Master'!Q:Q,'Data FA Lookup'!$D536,0,1))","v":1330022051}]
["1310","133","Constable 3 Adm-GF",1330030001,"133Adm0001","1950-01-01","9999-12-31","2012-05-14","No","No","No",{"$f":"IF(A537=\"????\",\"\",_xlfn.XLOOKUP('Data FA Lookup'!$D537,'FC Master'!A:A,'FC Master'!Q:Q,'Data FA Lookup'!$D537,0,1))","v":1330030001}]
["1310","133","Constable 3 PbcSft-GF",1330040001,"133PbcSft0001","1950-01-01","9999-12-31","2012-05-14","No","No","No",{"$f":"IF(A538=\"????\",\"\",_xlfn.XLOOKUP('Data FA Lookup'!$D538,'FC Master'!A:A,'FC Master'!Q:Q,'Data FA Lookup'!$D538,0,1))","v":1330040001}]
["1310","133","Constable 3 Security-GF",1330050001,"133Sec0001","1950-01-01","9999-12-31","2012-05-14","No","No","No",{"$f":"IF(A539=\"????\",\"\",_xlfn.XLOOKUP('Data FA Lookup'!$D539,'FC Master'!A:A,'FC Master'!Q:Q,'Data FA Lookup'!$D539,0,1))","v":1330050001}]
["1310","133","Constable 3 Security-Js Ct Bldg Sec Fd",1330050136,"133Sec0136","1950-01-01","9999-12-31","2020-02-25","No","No","No",{"$f":"IF(A540=\"????\",\"\",_xlfn.XLOOKUP('Data FA Lookup'!$D540,'FC Master'!A:A,'FC Master'!Q:Q,'Data FA Lookup'!$D540,0,1))","v":1330050136}]
["1310","133","Constable 3 LE-GF",1330060001,"133LE0001","1950-01-01","9999-12-31","2012-05-14","No","No","No",{"$f":"IF(A541=\"????\",\"\",_xlfn.XLOOKUP('Data FA Lookup'!$D541,'FC Master'!A:A,'FC Master'!Q:Q,'Data FA Lookup'!$D541,0,1))","v":1330060001}]
["1310","133","Constable 3 CAR-LE GF",1338000001,"133CAR0001","1950-01-01","9999-12-31","2012-05-15","No","No","No",{"$f":"IF(A542=\"????\",\"\",_xlfn.XLOOKUP('Data FA Lookup'!$D542,'FC Master'!A:A,'FC Master'!Q:Q,'Data FA Lookup'!$D542,0,1))","v":1338000001}]
["1310","134","Constable 4 Civil-GF",1340010001,"134Civ0001","1950-01-01","9999-12-31","2012-05-14","No","No","No",{"$f":"IF(A543=\"????\",\"\",_xlfn.XLOOKUP('Data FA Lookup'!$D543,'FC Master'!A:A,'FC Master'!Q:Q,'Data FA Lookup'!$D543,0,1))","v":1340010001}]
["1310","134","Constable 4 Criminal-GF",1340020001,"134Crm0001","1950-01-01","9999-12-31","2012-05-14","No","No","No",{"$f":"IF(A544=\"????\",\"\",_xlfn.XLOOKUP('Data FA Lookup'!$D544,'FC Master'!A:A,'FC Master'!Q:Q,'Data FA Lookup'!$D544,0,1))","v":1340020001}]
["1310","134","Constable 4 Criminal-LEOSE Fd",1340020116,"134Crm0116","1950-01-01","9999-12-31","2012-05-14","No","No","No",{"$f":"IF(A545=\"????\",\"\",_xlfn.XLOOKUP('Data FA Lookup'!$D545,'FC Master'!A:A,'FC Master'!Q:Q,'Data FA Lookup'!$D545,0,1))","v":1340020116}]
["1310","134","Constable 4 Security-GF",1340040001,"134Sec0001","1950-01-01","9999-12-31","2012-05-14","No","No","No",{"$f":"IF(A546=\"????\",\"\",_xlfn.XLOOKUP('Data FA Lookup'!$D546,'FC Master'!A:A,'FC Master'!Q:Q,'Data FA Lookup'!$D546,0,1))","v":1340040001}]
["1310","134","Constable 4 CAR-LE GF",1348000001,"134CAR0001","1950-01-01","9999-12-31","2012-05-15","No","No","No",{"$f":"IF(A547=\"????\",\"\",_xlfn.XLOOKUP('Data FA Lookup'!$D547,'FC Master'!A:A,'FC Master'!Q:Q,'Data FA Lookup'!$D547,0,1))","v":1348000001}]
["1310","135","Constable 5 Civil-GF",1350010001,"135Civ0001","1950-01-01","9999-12-31","2012-05-14","No","No","No",{"$f":"IF(A548=\"????\",\"\",_xlfn.XLOOKUP('Data FA Lookup'!$D548,'FC Master'!A:A,'FC Master'!Q:Q,'Data FA Lookup'!$D548,0,1))","v":1350010001}]
["1310","135","Constable 5 Civil-Elections Contract Fd",1350010128,"135Civ0128","1950-01-01","9999-12-31","2012-05-14","No","No","No",{"$f":"IF(A549=\"????\",\"\",_xlfn.XLOOKUP('Data FA Lookup'!$D549,'FC Master'!A:A,'FC Master'!Q:Q,'Data FA Lookup'!$D549,0,1))","v":1350010128}]
["1310","135","Constable 5 Civil-TCEQ Grant",1350012025,"135Civ2025","1950-01-01","9999-12-31","2012-05-14","Yes","No","Yes",{"$f":"IF(A550=\"????\",\"\",_xlfn.XLOOKUP('Data FA Lookup'!$D550,'FC Master'!A:A,'FC Master'!Q:Q,'Data FA Lookup'!$D550,0,1))","v":1350012025}]
["1310","135","Constable 5 Criminal-GF",1350020001,"135Crm0001","1950-01-01","9999-12-31","2012-05-14","No","No","No",{"$f":"IF(A551=\"????\",\"\",_xlfn.XLOOKUP('Data FA Lookup'!$D551,'FC Master'!A:A,'FC Master'!Q:Q,'Data FA Lookup'!$D551,0,1))","v":1350020001}]
["1310","135","Constable 5 Criminal-LEOSE Fd",1350020116,"135Crm0116","1950-01-01","9999-12-31","2012-05-14","No","No","No",{"$f":"IF(A552=\"????\",\"\",_xlfn.XLOOKUP('Data FA Lookup'!$D552,'FC Master'!A:A,'FC Master'!Q:Q,'Data FA Lookup'!$D552,0,1))","v":1350020116}]
["1310","135","Constable 5 Criminal-Js Ct Tech Fd",1350020125,"135Crm0125","1950-01-01","9999-12-31","2012-05-14","No","No","No",{"$f":"IF(A553=\"????\",\"\",_xlfn.XLOOKUP('Data FA Lookup'!$D553,'FC Master'!A:A,'FC Master'!Q:Q,'Data FA Lookup'!$D553,0,1))","v":1350020125}]
["1310","135","Constable 5 Criminal-COA Grant",1350022006,"135Crm2006","1950-01-01","9999-12-31","2012-05-14","Yes","Yes","Yes",{"$f":"IF(A554=\"????\",\"\",_xlfn.XLOOKUP('Data FA Lookup'!$D554,'FC Master'!A:A,'FC Master'!Q:Q,'Data FA Lookup'!$D554,0,1))","v":1350022006}]
["1310","135","Constable 5 Criminal-TCEQ Grant",1350022025,"135Crm2025","1950-01-01","9999-12-31","2012-05-14","Yes","No","Yes",{"$f":"IF(A555=\"????\",\"\",_xlfn.XLOOKUP('Data FA Lookup'!$D555,'FC Master'!A:A,'FC Master'!Q:Q,'Data FA Lookup'!$D555,0,1))","v":1350022025}]
["1310","135","Constable 5 Absent Student Asst Pg-GF",1350030001,"135AbStudAstPg0001","1950-01-01","9999-12-31","2012-05-14","No","No","No",{"$f":"IF(A556=\"????\",\"\",_xlfn.XLOOKUP('Data FA Lookup'!$D556,'FC Master'!A:A,'FC Master'!Q:Q,'Data FA Lookup'!$D556,0,1))","v":1350030001}]
["1310","135","Constable 5 Security-GF",1350040001,"135Sec0001","1950-01-01","9999-12-31","2012-05-14","No","No","No",{"$f":"IF(A557=\"????\",\"\",_xlfn.XLOOKUP('Data FA Lookup'!$D557,'FC Master'!A:A,'FC Master'!Q:Q,'Data FA Lookup'!$D557,0,1))","v":1350040001}]
["1310","135","Constable 5 Forfeited Property-Law Enf F",1350050103,"135ForfProp0103","1950-01-01","9999-12-31","2012-05-14","No","No","No",{"$f":"IF(A558=\"????\",\"\",_xlfn.XLOOKUP('Data FA Lookup'!$D558,'FC Master'!A:A,'FC Master'!Q:Q,'Data FA Lookup'!$D558,0,1))","v":1350050103}]
["1310","135","Constable 5 Executive-GF",1350060001,"135Exc0001","1950-01-01","9999-12-31","2012-05-14","No","No","No",{"$f":"IF(A559=\"????\",\"\",_xlfn.XLOOKUP('Data FA Lookup'!$D559,'FC Master'!A:A,'FC Master'!Q:Q,'Data FA Lookup'!$D559,0,1))","v":1350060001}]
["1310","135","Constable 5 Administration-GF",1350070001,"135Adm0001","1950-01-01","9999-12-31","2012-05-14","No","No","No",{"$f":"IF(A560=\"????\",\"\",_xlfn.XLOOKUP('Data FA Lookup'!$D560,'FC Master'!A:A,'FC Master'!Q:Q,'Data FA Lookup'!$D560,0,1))","v":1350070001}]
["1310","135","Constable 5 Disabled Parking-GF",1350080001,"135DsbPkg0001","1950-01-01","9999-12-31","2012-05-14","No","No","No",{"$f":"IF(A561=\"????\",\"\",_xlfn.XLOOKUP('Data FA Lookup'!$D561,'FC Master'!A:A,'FC Master'!Q:Q,'Data FA Lookup'!$D561,0,1))","v":1350080001}]
["1310","135","Constable 5 AG Civil-GF",1350090001,"135AGCiv0001","1950-01-01","9999-12-31","2012-05-14","No","No","No",{"$f":"IF(A562=\"????\",\"\",_xlfn.XLOOKUP('Data FA Lookup'!$D562,'FC Master'!A:A,'FC Master'!Q:Q,'Data FA Lookup'!$D562,0,1))","v":1350090001}]
["1310","135","Constable 5 AG Criminal-GF",1350100001,"135AGCrm0001","1950-01-01","9999-12-31","2012-05-14","No","No","No",{"$f":"IF(A563=\"????\",\"\",_xlfn.XLOOKUP('Data FA Lookup'!$D563,'FC Master'!A:A,'FC Master'!Q:Q,'Data FA Lookup'!$D563,0,1))","v":1350100001}]
["1310","135","Constable 5 Abandoned Vehicles-Ab Veh Fd",1350110120,"135AbanVeh0120","1950-01-01","9999-12-31","2014-01-27","No","No","No",{"$f":"IF(A564=\"????\",\"\",_xlfn.XLOOKUP('Data FA Lookup'!$D564,'FC Master'!A:A,'FC Master'!Q:Q,'Data FA Lookup'!$D564,0,1))","v":1350110120}]
["1310","135","Constable 5 CAR-LE GF",1358000001,"135CAR0001","1950-01-01","9999-12-31","2012-05-15","No","No","No",{"$f":"IF(A565=\"????\",\"\",_xlfn.XLOOKUP('Data FA Lookup'!$D565,'FC Master'!A:A,'FC Master'!Q:Q,'Data FA Lookup'!$D565,0,1))","v":1358000001}]
["1220","136","Dispute Resolution Center-DRC fd",1360010104,"136DRC0104","1950-01-01","9999-12-31","2012-05-14","No","No","No",{"$f":"IF(A566=\"????\",\"\",_xlfn.XLOOKUP('Data FA Lookup'!$D566,'FC Master'!A:A,'FC Master'!Q:Q,'Data FA Lookup'!$D566,0,1))","v":1360010104}]
["1310","137","TCSO Exec Adm Intelligence-GF",1370010001,"137ExAdmIntel0001","1950-01-01","9999-12-31","2012-05-14","No","No","No",{"$f":"IF(A567=\"????\",\"\",_xlfn.XLOOKUP('Data FA Lookup'!$D567,'FC Master'!A:A,'FC Master'!Q:Q,'Data FA Lookup'!$D567,0,1))","v":1370130001}]
["1310","137","TCSO Exec Adm Internal Affairs-GF",1370020001,"137ExAdmIA0001","1950-01-01","9999-12-31","2012-05-14","No","No","No",{"$f":"IF(A568=\"????\",\"\",_xlfn.XLOOKUP('Data FA Lookup'!$D568,'FC Master'!A:A,'FC Master'!Q:Q,'Data FA Lookup'!$D568,0,1))","v":1370130001}]
["1310","137","TCSO Exec Adm Resrch and Plan-GF",1370030001,"137ExAdmRhPlng0001","1950-01-01","9999-12-31","2012-05-14","No","No","No",{"$f":"IF(A569=\"????\",\"\",_xlfn.XLOOKUP('Data FA Lookup'!$D569,'FC Master'!A:A,'FC Master'!Q:Q,'Data FA Lookup'!$D569,0,1))","v":1370130001}]
["1410","137","TCSO Adm/Supp HR-GF",1370040001,"137AdmHR0001","1950-01-01","9999-12-31","2012-05-14","No","No","No",{"$f":"IF(A570=\"????\",\"\",_xlfn.XLOOKUP('Data FA Lookup'!$D570,'FC Master'!A:A,'FC Master'!Q:Q,'Data FA Lookup'!$D570,0,1))","v":1370170001}]
["1410","137","TCSO Adm/Supp Finance-GF",1370050001,"137AdmFin0001","1950-01-01","9999-12-31","2012-05-14","No","No","No",{"$f":"IF(A571=\"????\",\"\",_xlfn.XLOOKUP('Data FA Lookup'!$D571,'FC Master'!A:A,'FC Master'!Q:Q,'Data FA Lookup'!$D571,0,1))","v":1370170001}]
["1410","137","TCSO Adm/Supp Central Records-GF",1370060001,"137AdmCtlRec0001","1950-01-01","9999-12-31","2012-05-14","No","No","No",{"$f":"IF(A572=\"????\",\"\",_xlfn.XLOOKUP('Data FA Lookup'!$D572,'FC Master'!A:A,'FC Master'!Q:Q,'Data FA Lookup'!$D572,0,1))","v":1370170001}]
["1410","137","TCSO Adm/Supp Central Warrants-GF",1370070001,"137AdmCtlWts0001","1950-01-01","9999-12-31","2012-05-14","No","No","No",{"$f":"IF(A573=\"????\",\"\",_xlfn.XLOOKUP('Data FA Lookup'!$D573,'FC Master'!A:A,'FC Master'!Q:Q,'Data FA Lookup'!$D573,0,1))","v":1370170001}]
["1310","137","TCSO Adm/Supp ITS-GF",1370080001,"137AdmITS0001","1950-01-01","9999-12-31","2012-05-14","No","No","No",{"$f":"IF(A574=\"????\",\"\",_xlfn.XLOOKUP('Data FA Lookup'!$D574,'FC Master'!A:A,'FC Master'!Q:Q,'Data FA Lookup'!$D574,0,1))","v":1370120001}]
["1410","137","TCSO Adm/Supp Training Academy-GF",1370090001,"137AdmTrngAcd0001","1950-01-01","9999-12-31","2012-05-14","No","No","No",{"$f":"IF(A575=\"????\",\"\",_xlfn.XLOOKUP('Data FA Lookup'!$D575,'FC Master'!A:A,'FC Master'!Q:Q,'Data FA Lookup'!$D575,0,1))","v":1370170001}]
["1410","137","TCSO Adm/Supp Firing Range-GF",1370100001,"137AdmFrgRng0001","1950-01-01","9999-12-31","2012-05-14","No","No","No",{"$f":"IF(A576=\"????\",\"\",_xlfn.XLOOKUP('Data FA Lookup'!$D576,'FC Master'!A:A,'FC Master'!Q:Q,'Data FA Lookup'!$D576,0,1))","v":1370170001}]
["1310","137","TCSO Adm/Supp Community Services-GF",1370110001,"137AdmCmtySvs0001","1950-01-01","9999-12-31","2012-05-14","No","No","No",{"$f":"IF(A577=\"????\",\"\",_xlfn.XLOOKUP('Data FA Lookup'!$D577,'FC Master'!A:A,'FC Master'!Q:Q,'Data FA Lookup'!$D577,0,1))","v":1370120001}]
["1310","137","TCSO Adm/Supp Pub Safety-GF",1370120001,"137AdmPubSfty0001","1950-01-01","9999-12-31","2012-05-14","No","No","No",{"$f":"IF(A578=\"????\",\"\",_xlfn.XLOOKUP('Data FA Lookup'!$D578,'FC Master'!A:A,'FC Master'!Q:Q,'Data FA Lookup'!$D578,0,1))","v":1370120001}]
["1310","137","TCSO Exec Adm-GF",1370130001,"137ExAdm0001","1950-01-01","9999-12-31","2012-05-14","No","No","No",{"$f":"IF(A579=\"????\",\"\",_xlfn.XLOOKUP('Data FA Lookup'!$D579,'FC Master'!A:A,'FC Master'!Q:Q,'Data FA Lookup'!$D579,0,1))","v":1370130001}]
["1410","137","TCSO Adm/Supp CJIS/TDC-GF",1370140001,"137AdmCJIS0001","1950-01-01","9999-12-31","2012-05-14","No","No","No",{"$f":"IF(A580=\"????\",\"\",_xlfn.XLOOKUP('Data FA Lookup'!$D580,'FC Master'!A:A,'FC Master'!Q:Q,'Data FA Lookup'!$D580,0,1))","v":1370170001}]
["1410","137","TCSO Med Svs Mental Health-GF",1370150001,"137MSMenHlh0001","1950-01-01","9999-12-31","2012-05-14","No","No","No",{"$f":"IF(A581=\"????\",\"\",_xlfn.XLOOKUP('Data FA Lookup'!$D581,'FC Master'!A:A,'FC Master'!Q:Q,'Data FA Lookup'!$D581,0,1))","v":1370490001}]
["1410","137","TCSO Crc Complex Security-GF",1370160001,"137CrcComplex0001","1950-01-01","9999-12-31","2012-05-14","No","No","No",{"$f":"IF(A582=\"????\",\"\",_xlfn.XLOOKUP('Data FA Lookup'!$D582,'FC Master'!A:A,'FC Master'!Q:Q,'Data FA Lookup'!$D582,0,1))","v":1370440001}]
["1410","137","TCSO Adm/Supp Housing-GF",1370170001,"137AdmHsng0001","1950-01-01","9999-12-31","2014-06-20","No","No","No",{"$f":"IF(A583=\"????\",\"\",_xlfn.XLOOKUP('Data FA Lookup'!$D583,'FC Master'!A:A,'FC Master'!Q:Q,'Data FA Lookup'!$D583,0,1))","v":1370170001}]
["1310","137","TCSO CTECC-GF",1370260001,"137CTECC0001","1950-01-01","9999-12-31","2012-05-14","No","No","No",{"$f":"IF(A584=\"????\",\"\",_xlfn.XLOOKUP('Data FA Lookup'!$D584,'FC Master'!A:A,'FC Master'!Q:Q,'Data FA Lookup'!$D584,0,1))","v":1370260001}]
["1410","137","TCSO Crc Building 1-GF",1370270001,"137CrcBldg10001","1950-01-01","9999-12-31","2012-05-14","No","No","No",{"$f":"IF(A585=\"????\",\"\",_xlfn.XLOOKUP('Data FA Lookup'!$D585,'FC Master'!A:A,'FC Master'!Q:Q,'Data FA Lookup'!$D585,0,1))","v":1370440001}]
["1410","137","TCSO Crc Bldg 2 3 5-9 10 & CCB-GF",1370280001,"137CrcBldg20001","1950-01-01","9999-12-31","2012-05-14","No","No","No",{"$f":"IF(A586=\"????\",\"\",_xlfn.XLOOKUP('Data FA Lookup'!$D586,'FC Master'!A:A,'FC Master'!Q:Q,'Data FA Lookup'!$D586,0,1))","v":1370440001}]
["1410","137","TCSO Crc Building 12-GF",1370290001,"137CrcBldg120001","1950-01-01","9999-12-31","2012-05-14","No","No","No",{"$f":"IF(A587=\"????\",\"\",_xlfn.XLOOKUP('Data FA Lookup'!$D587,'FC Master'!A:A,'FC Master'!Q:Q,'Data FA Lookup'!$D587,0,1))","v":1370440001}]
["1410","137","TCSO Crc Central Booking Facility-GF",1370300001,"137CrcCtlBkgFac0001","1950-01-01","9999-12-31","2012-05-14","No","No","No",{"$f":"IF(A588=\"????\",\"\",_xlfn.XLOOKUP('Data FA Lookup'!$D588,'FC Master'!A:A,'FC Master'!Q:Q,'Data FA Lookup'!$D588,0,1))","v":1370440001}]
["1410","137","TCSO Crc Commissary-GF",1370310001,"137CrcCmsry0001","1950-01-01","9999-12-31","2012-05-14","No","No","No",{"$f":"IF(A589=\"????\",\"\",_xlfn.XLOOKUP('Data FA Lookup'!$D589,'FC Master'!A:A,'FC Master'!Q:Q,'Data FA Lookup'!$D589,0,1))","v":1370310001}]
["1410","137","TCSO Crc Commissary-Comm Fd",1370310112,"137CrcCmsry0112","1950-01-01","9999-12-31","2012-05-14","No","No","No",{"$f":"IF(A590=\"????\",\"\",_xlfn.XLOOKUP('Data FA Lookup'!$D590,'FC Master'!A:A,'FC Master'!Q:Q,'Data FA Lookup'!$D590,0,1))","v":1370310112}]
["1310","137","TCSO Courthouse Security-GF",1370320001,"137CthseSec0001","1950-01-01","9999-12-31","2012-05-14","No","No","No",{"$f":"IF(A591=\"????\",\"\",_xlfn.XLOOKUP('Data FA Lookup'!$D591,'FC Master'!A:A,'FC Master'!Q:Q,'Data FA Lookup'!$D591,0,1))","v":1370320001}]
["1310","137","TCSO Courthouse Security-Cthse Sec Fd",1370320111,"137CthseSec0111","1950-01-01","9999-12-31","2012-05-14","No","No","No",{"$f":"IF(A592=\"????\",\"\",_xlfn.XLOOKUP('Data FA Lookup'!$D592,'FC Master'!A:A,'FC Master'!Q:Q,'Data FA Lookup'!$D592,0,1))","v":1370320111}]
["1410","137","TCSO Crc Engineering-GF",1370330001,"137CrcEng0001","1950-01-01","9999-12-31","2012-05-14","No","No","No",{"$f":"IF(A593=\"????\",\"\",_xlfn.XLOOKUP('Data FA Lookup'!$D593,'FC Master'!A:A,'FC Master'!Q:Q,'Data FA Lookup'!$D593,0,1))","v":1370440001}]
["1410","137","TCSO Crc Fire & Safety-GF",1370340001,"137CrcFireSfty0001","1950-01-01","9999-12-31","2012-05-14","No","No","No",{"$f":"IF(A594=\"????\",\"\",_xlfn.XLOOKUP('Data FA Lookup'!$D594,'FC Master'!A:A,'FC Master'!Q:Q,'Data FA Lookup'!$D594,0,1))","v":1370440001}]
["1410","137","TCSO Crc Health Svs Bldg-GF",1370350001,"137CrcHlhSvBd0001","1950-01-01","9999-12-31","2012-05-14","No","No","No",{"$f":"IF(A595=\"????\",\"\",_xlfn.XLOOKUP('Data FA Lookup'!$D595,'FC Master'!A:A,'FC Master'!Q:Q,'Data FA Lookup'!$D595,0,1))","v":1370440001}]
["1410","137","TCSO Crc Hospital Visit Unit-GF",1370360001,"137CrcHospVisit0001","1950-01-01","9999-12-31","2012-05-14","No","No","No",{"$f":"IF(A596=\"????\",\"\",_xlfn.XLOOKUP('Data FA Lookup'!$D596,'FC Master'!A:A,'FC Master'!Q:Q,'Data FA Lookup'!$D596,0,1))","v":1370440001}]
["1410","137","TCSO Crc Kitchen-GF",1370370001,"137CrcKitchen0001","1950-01-01","9999-12-31","2012-05-14","No","No","No",{"$f":"IF(A597=\"????\",\"\",_xlfn.XLOOKUP('Data FA Lookup'!$D597,'FC Master'!A:A,'FC Master'!Q:Q,'Data FA Lookup'!$D597,0,1))","v":1370440001}]
["1410","137","TCSO Crc Laundry & Warehouse-GF",1370380001,"137CrcLaundry0001","1950-01-01","9999-12-31","2012-05-14","No","No","No",{"$f":"IF(A598=\"????\",\"\",_xlfn.XLOOKUP('Data FA Lookup'!$D598,'FC Master'!A:A,'FC Master'!Q:Q,'Data FA Lookup'!$D598,0,1))","v":1370440001}]
["1410","137","TCSO Crc Maintenance-GF",1370390001,"137CrcMnt0001","1950-01-01","9999-12-31","2012-05-14","No","No","No",{"$f":"IF(A599=\"????\",\"\",_xlfn.XLOOKUP('Data FA Lookup'!$D599,'FC Master'!A:A,'FC Master'!Q:Q,'Data FA Lookup'!$D599,0,1))","v":1370440001}]
["1410","137","TCSO Crc Marketable Skills & SWAP-GF",1370400001,"137CrcSWAP0001","1950-01-01","9999-12-31","2012-05-14","No","No","No",{"$f":"IF(A600=\"????\",\"\",_xlfn.XLOOKUP('Data FA Lookup'!$D600,'FC Master'!A:A,'FC Master'!Q:Q,'Data FA Lookup'!$D600,0,1))","v":1370440001}]
["1410","137","TCSO Crc Classification/Records-GF",1370410001,"137CrcClassRec0001","1950-01-01","9999-12-31","2013-02-06","No","No","No",{"$f":"IF(A601=\"????\",\"\",_xlfn.XLOOKUP('Data FA Lookup'!$D601,'FC Master'!A:A,'FC Master'!Q:Q,'Data FA Lookup'!$D601,0,1))","v":1370440001}]
["1410","137","TCSO Crc Transportation-GF",1370420001,"137CrcTranport0001","1950-01-01","9999-12-31","2012-05-14","No","No","No",{"$f":"IF(A602=\"????\",\"\",_xlfn.XLOOKUP('Data FA Lookup'!$D602,'FC Master'!A:A,'FC Master'!Q:Q,'Data FA Lookup'!$D602,0,1))","v":1370440001}]
["1410","137","TCSO Crc Travis County Jail-GF",1370430001,"137CrcTCJail0001","1950-01-01","9999-12-31","2012-05-14","No","No","No",{"$f":"IF(A603=\"????\",\"\",_xlfn.XLOOKUP('Data FA Lookup'!$D603,'FC Master'!A:A,'FC Master'!Q:Q,'Data FA Lookup'!$D603,0,1))","v":1370440001}]
["1410","137","TCSO Crc Support Br-Cap Proj",1370440000,"137CrcSupportBr0000","1950-01-01","9999-12-31","2012-06-20","No","No","No",{"$f":"IF(A604=\"????\",\"\",_xlfn.XLOOKUP('Data FA Lookup'!$D604,'FC Master'!A:A,'FC Master'!Q:Q,'Data FA Lookup'!$D604,0,1))","v":1370440000}]
["1410","137","TCSO Crc Support Br-GF",1370440001,"137CrcSupportBr0001","1950-01-01","9999-12-31","2012-05-14","No","No","No",{"$f":"IF(A605=\"????\",\"\",_xlfn.XLOOKUP('Data FA Lookup'!$D605,'FC Master'!A:A,'FC Master'!Q:Q,'Data FA Lookup'!$D605,0,1))","v":1370440001}]
["1410","137","TCSO Crc Support Br-CO 2001A",1370444034,"137CrcSupportBr4034","1950-01-01","9999-12-31","2012-05-14","No","No","No",{"$f":"IF(A606=\"????\",\"\",_xlfn.XLOOKUP('Data FA Lookup'!$D606,'FC Master'!A:A,'FC Master'!Q:Q,'Data FA Lookup'!$D606,0,1))","v":1370444034}]
["1410","137","TCSO Crc Support Br-CO 2005",1370444044,"137CrcSupportBr4044","1950-01-01","9999-12-31","2012-05-14","No","No","No",{"$f":"IF(A607=\"????\",\"\",_xlfn.XLOOKUP('Data FA Lookup'!$D607,'FC Master'!A:A,'FC Master'!Q:Q,'Data FA Lookup'!$D607,0,1))","v":1370444044}]
["1410","137","TCSO Crc Support Br-CO 2007A",1370444055,"137CrcSupportBr4055","1950-01-01","9999-12-31","2012-05-14","No","No","No",{"$f":"IF(A608=\"????\",\"\",_xlfn.XLOOKUP('Data FA Lookup'!$D608,'FC Master'!A:A,'FC Master'!Q:Q,'Data FA Lookup'!$D608,0,1))","v":1370444055}]
["1410","137","TCSO Crc Support Br-CO 2008",1370444056,"137CrcSupportBr4056","1950-01-01","9999-12-31","2012-05-14","No","No","No",{"$f":"IF(A609=\"????\",\"\",_xlfn.XLOOKUP('Data FA Lookup'!$D609,'FC Master'!A:A,'FC Master'!Q:Q,'Data FA Lookup'!$D609,0,1))","v":1370444056}]
["1410","137","TCSO Crc Support Br-CO 2010 Non Tax",1370444063,"137CrcSupportBr4063","1950-01-01","9999-12-31","2012-05-14","No","No","No",{"$f":"IF(A610=\"????\",\"\",_xlfn.XLOOKUP('Data FA Lookup'!$D610,'FC Master'!A:A,'FC Master'!Q:Q,'Data FA Lookup'!$D610,0,1))","v":1370444063}]
["1410","137","TCSO Crc Support Br-CO 2011 Non Tax",1370444068,"137CrcSupportBr4068","1950-01-01","9999-12-31","2012-05-14","No","No","No",{"$f":"IF(A611=\"????\",\"\",_xlfn.XLOOKUP('Data FA Lookup'!$D611,'FC Master'!A:A,'FC Master'!Q:Q,'Data FA Lookup'!$D611,0,1))","v":1370444068}]
["1410","137","TCSO Central Booking-GF",1370460001,"137CtlBkg0001","1950-01-01","9999-12-31","2012-05-14","No","No","No",{"$f":"IF(A612=\"????\",\"\",_xlfn.XLOOKUP('Data FA Lookup'!$D612,'FC Master'!A:A,'FC Master'!Q:Q,'Data FA Lookup'!$D612,0,1))","v":1370460001}]
["1410","137","TCSO Med Svs Drugs/Pharmaceuticals-GF",1370470001,"137MSPharmDrg0001","1950-01-01","9999-12-31","2012-05-14","No","No","No",{"$f":"IF(A613=\"????\",\"\",_xlfn.XLOOKUP('Data FA Lookup'!$D613,'FC Master'!A:A,'FC Master'!Q:Q,'Data FA Lookup'!$D613,0,1))","v":1370490001}]
["1410","137","TCSO Medical Svs Pharmacy-GF",1370480001,"137MSPharmacy0001","1950-01-01","9999-12-31","2012-05-14","No","No","No",{"$f":"IF(A614=\"????\",\"\",_xlfn.XLOOKUP('Data FA Lookup'!$D614,'FC Master'!A:A,'FC Master'!Q:Q,'Data FA Lookup'!$D614,0,1))","v":1370490001}]
["1410","137","TCSO Medical Svs Contracted Med Svs-GF",1370490001,"137MSCntrctMedSv0001","1950-01-01","9999-12-31","2012-05-14","No","No","No",{"$f":"IF(A615=\"????\",\"\",_xlfn.XLOOKUP('Data FA Lookup'!$D615,'FC Master'!A:A,'FC Master'!Q:Q,'Data FA Lookup'!$D615,0,1))","v":1370490001}]
["1410","137","TCSO Med Svs Dentist-GF",1370500001,"137MSDentist0001","1950-01-01","9999-12-31","2012-05-14","No","No","No",{"$f":"IF(A616=\"????\",\"\",_xlfn.XLOOKUP('Data FA Lookup'!$D616,'FC Master'!A:A,'FC Master'!Q:Q,'Data FA Lookup'!$D616,0,1))","v":1370490001}]
["1410","137","TCSO Medical Services (Conversion)-GF",1370510001,"137MSConv0001","1950-01-01","9999-12-31","2012-05-14","Yes","Yes","Yes",{"$f":"IF(A617=\"????\",\"\",_xlfn.XLOOKUP('Data FA Lookup'!$D617,'FC Master'!A:A,'FC Master'!Q:Q,'Data FA Lookup'!$D617,0,1))","v":1370490001}]
["1310","137","TCSO LE Mental Health",1370520001,"137LEMntlHlth0001","1950-01-01","9999-12-31","2012-05-14","No","No","No",{"$f":"IF(A618=\"????\",\"\",_xlfn.XLOOKUP('Data FA Lookup'!$D618,'FC Master'!A:A,'FC Master'!Q:Q,'Data FA Lookup'!$D618,0,1))","v":1370750001}]
["1310","137","TCSO Fed Forfeited Property-GF",1370530001,"137FedForfProp0001","1950-01-01","9999-12-31","2020-02-04","No","No","No",{"$f":"IF(A619=\"????\",\"\",_xlfn.XLOOKUP('Data FA Lookup'!$D619,'FC Master'!A:A,'FC Master'!Q:Q,'Data FA Lookup'!$D619,0,1))","v":1370530001}]
["1310","137","TCSO Fed Forfeited Property-LE Fd",1370530103,"137FedForfProp0103","1950-01-01","9999-12-31","2012-05-14","No","No","No",{"$f":"IF(A620=\"????\",\"\",_xlfn.XLOOKUP('Data FA Lookup'!$D620,'FC Master'!A:A,'FC Master'!Q:Q,'Data FA Lookup'!$D620,0,1))","v":1370530103}]
["1310","137","TCSO State Forfeited Property-LE Fd",1370540103,"137StForfProp0103","1950-01-01","9999-12-31","2012-05-14","No","No","No",{"$f":"IF(A621=\"????\",\"\",_xlfn.XLOOKUP('Data FA Lookup'!$D621,'FC Master'!A:A,'FC Master'!Q:Q,'Data FA Lookup'!$D621,0,1))","v":1370540103}]
["1410","137","TCSO Inmate Svs Chaplain-GF",1370560001,"137ISChaplain0001","1950-01-01","9999-12-31","2012-05-14","No","No","No",{"$f":"IF(A622=\"????\",\"\",_xlfn.XLOOKUP('Data FA Lookup'!$D622,'FC Master'!A:A,'FC Master'!Q:Q,'Data FA Lookup'!$D622,0,1))","v":1370580001}]
["1410","137","TCSO Inmate Svs Counseling-GF",1370570001,"137ISCounseling0001","1950-01-01","9999-12-31","2012-05-14","No","No","No",{"$f":"IF(A623=\"????\",\"\",_xlfn.XLOOKUP('Data FA Lookup'!$D623,'FC Master'!A:A,'FC Master'!Q:Q,'Data FA Lookup'!$D623,0,1))","v":1370580001}]
["1410","137","TCSO Inmate Svs Programs-GF",1370580001,"137ISPrograms0001","1950-01-01","9999-12-31","2012-05-14","No","No","No",{"$f":"IF(A624=\"????\",\"\",_xlfn.XLOOKUP('Data FA Lookup'!$D624,'FC Master'!A:A,'FC Master'!Q:Q,'Data FA Lookup'!$D624,0,1))","v":1370580001}]
["1410","137","TCSO Inmate Srvcs (Conversion)-GF",1370590001,"137ISConv0001","1950-01-01","2014-10-01","2012-05-14","No","No","No",{"$f":"IF(A625=\"????\",\"\",_xlfn.XLOOKUP('Data FA Lookup'!$D625,'FC Master'!A:A,'FC Master'!Q:Q,'Data FA Lookup'!$D625,0,1))","v":1370580001}]
["1310","137","TCSO Auto Theft Task Force-GF",1370600001,"137AutoThftTF0001","1950-01-01","9999-12-31","2012-05-14","No","No","No",{"$f":"IF(A626=\"????\",\"\",_xlfn.XLOOKUP('Data FA Lookup'!$D626,'FC Master'!A:A,'FC Master'!Q:Q,'Data FA Lookup'!$D626,0,1))","v":1370750001}]
["1310","137","TCSO Auto Theft Task Force-LE Fd",1370600103,"137AutoThftTF0103","1950-01-01","9999-12-31","2012-05-14","No","No","No",{"$f":"IF(A627=\"????\",\"\",_xlfn.XLOOKUP('Data FA Lookup'!$D627,'FC Master'!A:A,'FC Master'!Q:Q,'Data FA Lookup'!$D627,0,1))","v":1370600103}]
["1310","137","TCSO Auto Theft Task Force-Tx DMV Grant",1370602026,"137AutoThftTF2026","1950-01-01","9999-12-31","2012-05-14","Yes","Yes","Yes",{"$f":"IF(A628=\"????\",\"\",_xlfn.XLOOKUP('Data FA Lookup'!$D628,'FC Master'!A:A,'FC Master'!Q:Q,'Data FA Lookup'!$D628,0,1))","v":1370602026}]
["1310","137","TCSO LE Canine-GF",1370610001,"137LECanine0001","1950-01-01","9999-12-31","2012-05-14","No","No","No",{"$f":"IF(A629=\"????\",\"\",_xlfn.XLOOKUP('Data FA Lookup'!$D629,'FC Master'!A:A,'FC Master'!Q:Q,'Data FA Lookup'!$D629,0,1))","v":1370750001}]
["1310","137","TCSO LE CID-GF",1370620001,"137LECID0001","1950-01-01","9999-12-31","2012-05-14","No","No","No",{"$f":"IF(A630=\"????\",\"\",_xlfn.XLOOKUP('Data FA Lookup'!$D630,'FC Master'!A:A,'FC Master'!Q:Q,'Data FA Lookup'!$D630,0,1))","v":1370750001}]
["1310","137","TCSO LE Crime Lab-GF",1370630001,"137LECrimeLab0001","1950-01-01","9999-12-31","2012-05-14","No","No","No",{"$f":"IF(A631=\"????\",\"\",_xlfn.XLOOKUP('Data FA Lookup'!$D631,'FC Master'!A:A,'FC Master'!Q:Q,'Data FA Lookup'!$D631,0,1))","v":1370750001}]
["1310","137","TCSO LE Dispatch-GF",1370640001,"137LEDispatch0001","1950-01-01","9999-12-31","2012-05-14","No","No","No",{"$f":"IF(A632=\"????\",\"\",_xlfn.XLOOKUP('Data FA Lookup'!$D632,'FC Master'!A:A,'FC Master'!Q:Q,'Data FA Lookup'!$D632,0,1))","v":1370640001}]
["1310","137","TCSO LE Dive Team-GF",1370650001,"137LEDiveTeam0001","1950-01-01","9999-12-31","2012-05-14","No","No","No",{"$f":"IF(A633=\"????\",\"\",_xlfn.XLOOKUP('Data FA Lookup'!$D633,'FC Master'!A:A,'FC Master'!Q:Q,'Data FA Lookup'!$D633,0,1))","v":1370750001}]
["1310","137","TCSO LE Impound Vehicle-GF",1370660001,"137LEImpVehicle0001","1950-01-01","9999-12-31","2012-05-14","No","No","No",{"$f":"IF(A634=\"????\",\"\",_xlfn.XLOOKUP('Data FA Lookup'!$D634,'FC Master'!A:A,'FC Master'!Q:Q,'Data FA Lookup'!$D634,0,1))","v":1370750001}]
["1310","137","TCSO LE Lake Patrol-GF",1370670001,"137LELakePatrol0001","1950-01-01","9999-12-31","2012-05-14","No","No","No",{"$f":"IF(A635=\"????\",\"\",_xlfn.XLOOKUP('Data FA Lookup'!$D635,'FC Master'!A:A,'FC Master'!Q:Q,'Data FA Lookup'!$D635,0,1))","v":1370750001}]
["1310","137","TCSO LE Livestock-GF",1370680001,"137LELivestock0001","1950-01-01","9999-12-31","2012-05-14","No","No","No",{"$f":"IF(A636=\"????\",\"\",_xlfn.XLOOKUP('Data FA Lookup'!$D636,'FC Master'!A:A,'FC Master'!Q:Q,'Data FA Lookup'!$D636,0,1))","v":1370750001}]
["1310","137","TCSO LE Narcotics-GF",1370690001,"137LENarcotics0001","1950-01-01","9999-12-31","2012-05-14","No","No","No",{"$f":"IF(A637=\"????\",\"\",_xlfn.XLOOKUP('Data FA Lookup'!$D637,'FC Master'!A:A,'FC Master'!Q:Q,'Data FA Lookup'!$D637,0,1))","v":1370750001}]
["1310","137","TCSO LE Patrol-GF",1370700001,"137LEPatrol0001","1950-01-01","9999-12-31","2012-05-14","No","No","No",{"$f":"IF(A638=\"????\",\"\",_xlfn.XLOOKUP('Data FA Lookup'!$D638,'FC Master'!A:A,'FC Master'!Q:Q,'Data FA Lookup'!$D638,0,1))","v":1370750001}]
["1310","137","TCSO LE School Resource Officer-GF",1370710001,"137LESRO0001","1950-01-01","9999-12-31","2012-05-14","No","No","No",{"$f":"IF(A639=\"????\",\"\",_xlfn.XLOOKUP('Data FA Lookup'!$D639,'FC Master'!A:A,'FC Master'!Q:Q,'Data FA Lookup'!$D639,0,1))","v":1370750001}]
["1310","137","TCSO LE SWAT-GF",1370720001,"137LESWAT0001","1950-01-01","9999-12-31","2012-05-14","No","No","No",{"$f":"IF(A640=\"????\",\"\",_xlfn.XLOOKUP('Data FA Lookup'!$D640,'FC Master'!A:A,'FC Master'!Q:Q,'Data FA Lookup'!$D640,0,1))","v":1370750001}]
["1310","137","TCSO LE Traffic-GF",1370730001,"137LETraffic0001","1950-01-01","9999-12-31","2012-05-14","No","No","No",{"$f":"IF(A641=\"????\",\"\",_xlfn.XLOOKUP('Data FA Lookup'!$D641,'FC Master'!A:A,'FC Master'!Q:Q,'Data FA Lookup'!$D641,0,1))","v":1370750001}]
["1310","137","TCSO LE Victim Services-GF",1370740001,"137LEVicSrvcs0001","1950-01-01","9999-12-31","2012-05-14","No","No","No",{"$f":"IF(A642=\"????\",\"\",_xlfn.XLOOKUP('Data FA Lookup'!$D642,'FC Master'!A:A,'FC Master'!Q:Q,'Data FA Lookup'!$D642,0,1))","v":1370750001}]
["1310","137","TCSO LE Support Br-GF",1370750001,"137LESupportBr0001","1950-01-01","9999-12-31","2012-05-14","No","No","No",{"$f":"IF(A643=\"????\",\"\",_xlfn.XLOOKUP('Data FA Lookup'!$D643,'FC Master'!A:A,'FC Master'!Q:Q,'Data FA Lookup'!$D643,0,1))","v":1370750001}]
["1310","137","TCSO LE Support Br-LEOSE Fd",1370750116,"137LESupportBr0116","1950-01-01","9999-12-31","2012-05-14","No","No","No",{"$f":"IF(A644=\"????\",\"\",_xlfn.XLOOKUP('Data FA Lookup'!$D644,'FC Master'!A:A,'FC Master'!Q:Q,'Data FA Lookup'!$D644,0,1))","v":1370750116}]
["1310","137","TCSO LE Support Br-Aban Veh & Livestock",1370750120,"137LESupportBr0120","1950-01-01","9999-12-31","2012-05-14","No","No","No",{"$f":"IF(A645=\"????\",\"\",_xlfn.XLOOKUP('Data FA Lookup'!$D645,'FC Master'!A:A,'FC Master'!Q:Q,'Data FA Lookup'!$D645,0,1))","v":1370750120}]
["1310","137","TCSO LE Support Br-Child Abuse Fd",1370750135,"137LESupportBr0135","1950-01-01","9999-12-31","2012-05-14","No","No","No",{"$f":"IF(A646=\"????\",\"\",_xlfn.XLOOKUP('Data FA Lookup'!$D646,'FC Master'!A:A,'FC Master'!Q:Q,'Data FA Lookup'!$D646,0,1))","v":1370750135}]
["1310","137","TCSO LE Support Br-RdBrdg Fd",1370750145,"137LESupportBr0145","1950-01-01","9999-12-31","2012-05-14","No","No","No",{"$f":"IF(A647=\"????\",\"\",_xlfn.XLOOKUP('Data FA Lookup'!$D647,'FC Master'!A:A,'FC Master'!Q:Q,'Data FA Lookup'!$D647,0,1))","v":1370750145}]
["1310","137","TCSO LE Support Br-Jury Fd",1370750156,"137LESupportBr0156","2020-06-01","9999-12-31","2020-06-02","No","No","No",{"$f":"IF(A648=\"????\",\"\",_xlfn.XLOOKUP('Data FA Lookup'!$D648,'FC Master'!A:A,'FC Master'!Q:Q,'Data FA Lookup'!$D648,0,1))","v":1370750156}]
["1310","137","TCSO LE Support Br-TCEQ Grant",1370752025,"137LESupportBr2025","1950-01-01","9999-12-31","2012-05-14","Yes","Yes","Yes",{"$f":"IF(A649=\"????\",\"\",_xlfn.XLOOKUP('Data FA Lookup'!$D649,'FC Master'!A:A,'FC Master'!Q:Q,'Data FA Lookup'!$D649,0,1))","v":1370752025}]
["1310","137","TCSO LE Support Br-CO 2010 Non Tax",1370754063,"137LESupportBr4063","1950-01-01","9999-12-31","2012-05-14","No","No","No",{"$f":"IF(A650=\"????\",\"\",_xlfn.XLOOKUP('Data FA Lookup'!$D650,'FC Master'!A:A,'FC Master'!Q:Q,'Data FA Lookup'!$D650,0,1))","v":1370754063}]
["1310","137","TCSO Grant Adm-Inactive Grant Conversion",1370760000,"137GrntAdm0000","1950-01-01","9999-12-31","2012-05-14","No","No","No",{"$f":"IF(A651=\"????\",\"\",_xlfn.XLOOKUP('Data FA Lookup'!$D651,'FC Master'!A:A,'FC Master'!Q:Q,'Data FA Lookup'!$D651,0,1))","v":1370760000}]
["1410","137","TCSO Crc Risk Management GF",1370770001,"137CrcRiskMgmt0001","1950-01-01","9999-12-31","2012-05-14","No","No","No",{"$f":"IF(A652=\"????\",\"\",_xlfn.XLOOKUP('Data FA Lookup'!$D652,'FC Master'!A:A,'FC Master'!Q:Q,'Data FA Lookup'!$D652,0,1))","v":1370770001}]
["1310","137","TCSO LE Risk Management GF",1370780001,"137LERiskMgmt0001","1950-01-01","9999-12-31","2012-05-14","No","No","No",{"$f":"IF(A653=\"????\",\"\",_xlfn.XLOOKUP('Data FA Lookup'!$D653,'FC Master'!A:A,'FC Master'!Q:Q,'Data FA Lookup'!$D653,0,1))","v":1370780001}]
["1410","137","TCSO Crc Visitation",1370790000,"137CrcVisit0000","1900-01-01","9999-12-31","2012-06-18","No","No","No",{"$f":"IF(A654=\"????\",\"\",_xlfn.XLOOKUP('Data FA Lookup'!$D654,'FC Master'!A:A,'FC Master'!Q:Q,'Data FA Lookup'!$D654,0,1))","v":1370790000}]
["1410","137","TCSO Crc Visitation-GF",1370790001,"137CrcVisit0001","1900-01-01","9999-12-31","2012-06-18","No","No","No",{"$f":"IF(A655=\"????\",\"\",_xlfn.XLOOKUP('Data FA Lookup'!$D655,'FC Master'!A:A,'FC Master'!Q:Q,'Data FA Lookup'!$D655,0,1))","v":1370440001}]
["1410","137","TCSO CAR-HsgBkg GF",1378000001,"137CARHshBkg0001","1950-01-01","9999-12-31","2012-05-15","No","No","No",{"$f":"IF(A656=\"????\",\"\",_xlfn.XLOOKUP('Data FA Lookup'!$D656,'FC Master'!A:A,'FC Master'!Q:Q,'Data FA Lookup'!$D656,0,1))","v":1378000001}]
["1310","137","TCSO CAR-LE GF",1378010001,"137CARLE0001","1950-01-01","9999-12-31","2012-05-15","No","No","No",{"$f":"IF(A657=\"????\",\"\",_xlfn.XLOOKUP('Data FA Lookup'!$D657,'FC Master'!A:A,'FC Master'!Q:Q,'Data FA Lookup'!$D657,0,1))","v":1378010001}]
["1410","137","TCSO Reimbursement Resolution Funds-GF",1379000001,"137ReimburseRes0001","1950-01-01","9999-12-31","2013-05-07","No","No","No",{"$f":"IF(A658=\"????\",\"\",_xlfn.XLOOKUP('Data FA Lookup'!$D658,'FC Master'!A:A,'FC Master'!Q:Q,'Data FA Lookup'!$D658,0,1))","v":1379000001}]
["1310","138","FY 2017 CO Issuance",1380010000,"138FY17CO0000","1950-01-01","9999-12-31","2017-05-16","No","No","No",{"$f":"IF(A659=\"????\",\"\",_xlfn.XLOOKUP('Data FA Lookup'!$D659,'FC Master'!A:A,'FC Master'!Q:Q,'Data FA Lookup'!$D659,0,1))","v":1380010000}]
["1310","138","ME Adm-GF",1380010001,"138Adm0001","1950-01-01","9999-12-31","2012-05-14","No","No","No",{"$f":"IF(A660=\"????\",\"\",_xlfn.XLOOKUP('Data FA Lookup'!$D660,'FC Master'!A:A,'FC Master'!Q:Q,'Data FA Lookup'!$D660,0,1))","v":1380010001}]
["1310","138","ME Pathology-GF",1380020001,"138Pathology0001","1950-01-01","9999-12-31","2012-05-14","No","No","No",{"$f":"IF(A661=\"????\",\"\",_xlfn.XLOOKUP('Data FA Lookup'!$D661,'FC Master'!A:A,'FC Master'!Q:Q,'Data FA Lookup'!$D661,0,1))","v":1380020001}]
["1310","138","ME Laboratory-GF",1380030001,"138Laboratory0001","1950-01-01","9999-12-31","2012-05-14","No","No","No",{"$f":"IF(A662=\"????\",\"\",_xlfn.XLOOKUP('Data FA Lookup'!$D662,'FC Master'!A:A,'FC Master'!Q:Q,'Data FA Lookup'!$D662,0,1))","v":1380030001}]
["1310","138","ME Histology-GF",1380040001,"138Histology0001","1950-01-01","9999-12-31","2012-05-14","No","No","No",{"$f":"IF(A663=\"????\",\"\",_xlfn.XLOOKUP('Data FA Lookup'!$D663,'FC Master'!A:A,'FC Master'!Q:Q,'Data FA Lookup'!$D663,0,1))","v":1380040001}]
["1310","138","ME Investigative-GF",1380050001,"138Investigative0001","1950-01-01","9999-12-31","2012-05-14","No","No","No",{"$f":"IF(A664=\"????\",\"\",_xlfn.XLOOKUP('Data FA Lookup'!$D664,'FC Master'!A:A,'FC Master'!Q:Q,'Data FA Lookup'!$D664,0,1))","v":1380050001}]
["1310","138","ME Autopsy-GF",1380060001,"138Autopsy0001","1950-01-01","9999-12-31","2012-05-14","No","No","No",{"$f":"IF(A665=\"????\",\"\",_xlfn.XLOOKUP('Data FA Lookup'!$D665,'FC Master'!A:A,'FC Master'!Q:Q,'Data FA Lookup'!$D665,0,1))","v":1380060001}]
["1310","138","ME Forensic Laboratory-CO 2001A",1380074034,"138ForensicLab4034","1950-01-01","9999-12-31","2012-05-14","No","No","No",{"$f":"IF(A666=\"????\",\"\",_xlfn.XLOOKUP('Data FA Lookup'!$D666,'FC Master'!A:A,'FC Master'!Q:Q,'Data FA Lookup'!$D666,0,1))","v":1380074034}]
["1310","138","ME Morgue-PI Bds 1990",1380084005,"138Morgue4005","1950-01-01","2012-09-30","2012-05-14","No","No","No",{"$f":"IF(A667=\"????\",\"\",_xlfn.XLOOKUP('Data FA Lookup'!$D667,'FC Master'!A:A,'FC Master'!Q:Q,'Data FA Lookup'!$D667,0,1))","v":1380084005}]
["1310","138","ME CAR-LE GF",1388000001,"138CARLE0001","1950-01-01","9999-12-31","2012-05-15","No","No","No",{"$f":"IF(A668=\"????\",\"\",_xlfn.XLOOKUP('Data FA Lookup'!$D668,'FC Master'!A:A,'FC Master'!Q:Q,'Data FA Lookup'!$D668,0,1))","v":1388000001}]
["1310","138","ME Reimbursement Resolution Funds-GF",1389000001,"138ReimbRes0001","1950-01-01","9999-12-31","2016-11-29","No","No","No",{"$f":"IF(A669=\"????\",\"\",_xlfn.XLOOKUP('Data FA Lookup'!$D669,'FC Master'!A:A,'FC Master'!Q:Q,'Data FA Lookup'!$D669,0,1))","v":1389000001}]
["1420","139","CSCD Supervision GF",1390010001,"139Supervision0001","1950-01-01","9999-12-31","2012-05-14","No","No","No",{"$f":"IF(A670=\"????\",\"\",_xlfn.XLOOKUP('Data FA Lookup'!$D670,'FC Master'!A:A,'FC Master'!Q:Q,'Data FA Lookup'!$D670,0,1))","v":1390010001}]
["1420","139","CSCD Supervision-CSCD Eqp Acq Fd",1390010117,"139Supervision0117","1950-01-01","9999-12-31","2012-05-14","No","No","No",{"$f":"IF(A671=\"????\",\"\",_xlfn.XLOOKUP('Data FA Lookup'!$D671,'FC Master'!A:A,'FC Master'!Q:Q,'Data FA Lookup'!$D671,0,1))","v":1390010117}]
["1420","139","CSCD Supervision-CSCD Local Fd",1390010143,"139Supervision0143","1950-01-01","9999-12-31","2012-05-14","No","No","No",{"$f":"IF(A672=\"????\",\"\",_xlfn.XLOOKUP('Data FA Lookup'!$D672,'FC Master'!A:A,'FC Master'!Q:Q,'Data FA Lookup'!$D672,0,1))","v":1390010143}]
["1420","139","CSCD-Spec Court Fund",1390010157,"CSCD-Spec Co Fd","2020-05-01","9999-12-31","2020-05-05","No","No","No",{"$f":"IF(A673=\"????\",\"\",_xlfn.XLOOKUP('Data FA Lookup'!$D673,'FC Master'!A:A,'FC Master'!Q:Q,'Data FA Lookup'!$D673,0,1))","v":1390010157}]
["1420","139","CSCD Supervision-OOG Crm Jus Dv Grant",1390012016,"139Supervision2016","1950-01-01","9999-12-31","2012-05-14","Yes","Yes","Yes",{"$f":"IF(A674=\"????\",\"\",_xlfn.XLOOKUP('Data FA Lookup'!$D674,'FC Master'!A:A,'FC Master'!Q:Q,'Data FA Lookup'!$D674,0,1))","v":1390012016}]
["1420","139","CSCD Supervision-TDCJ-CJAD Grant",1390012045,"139Supervision2045","1950-01-01","9999-12-31","2012-05-14","Yes","Yes","Yes",{"$f":"IF(A675=\"????\",\"\",_xlfn.XLOOKUP('Data FA Lookup'!$D675,'FC Master'!A:A,'FC Master'!Q:Q,'Data FA Lookup'!$D675,0,1))","v":1390012045}]
["1420","139","CSCD Supervision-US DOJ Grant",1390012051,"139Supervision2051","1950-01-01","9999-12-31","2012-05-14","Yes","Yes","Yes",{"$f":"IF(A676=\"????\",\"\",_xlfn.XLOOKUP('Data FA Lookup'!$D676,'FC Master'!A:A,'FC Master'!Q:Q,'Data FA Lookup'!$D676,0,1))","v":1390012051}]
["1420","139","CSCD Supervision-US Dept HHS",1390012055,"139Supervision2055","1950-01-01","9999-12-31","2012-05-14","Yes","Yes","Yes",{"$f":"IF(A677=\"????\",\"\",_xlfn.XLOOKUP('Data FA Lookup'!$D677,'FC Master'!A:A,'FC Master'!Q:Q,'Data FA Lookup'!$D677,0,1))","v":1390012055}]
["1420","139","CSCD Supervision-OOG CJD-St Fd Grant",1390012058,"139Supervision2058","1950-01-01","9999-12-31","2012-05-14","Yes","Yes","Yes",{"$f":"IF(A678=\"????\",\"\",_xlfn.XLOOKUP('Data FA Lookup'!$D678,'FC Master'!A:A,'FC Master'!Q:Q,'Data FA Lookup'!$D678,0,1))","v":1390012058}]
["1420","139","CSCD CAR-Svsn GF",1398000001,"139CARSvsn0001","1950-01-01","9999-12-31","2012-05-15","No","No","No",{"$f":"IF(A679=\"????\",\"\",_xlfn.XLOOKUP('Data FA Lookup'!$D679,'FC Master'!A:A,'FC Master'!Q:Q,'Data FA Lookup'!$D679,0,1))","v":1398000001}]
["1420","140","TCCES CES-Administration-GF",1400010001,"140Admin0001","1950-01-01","9999-12-31","2012-05-14","No","No","No",{"$f":"IF(A680=\"????\",\"\",_xlfn.XLOOKUP('Data FA Lookup'!$D680,'FC Master'!A:A,'FC Master'!Q:Q,'Data FA Lookup'!$D680,0,1))","v":1400010001}]
["1420","140","TCCES Education-GF",1400020001,"140Educ0001","1950-01-01","9999-12-31","2012-05-14","No","No","No",{"$f":"IF(A681=\"????\",\"\",_xlfn.XLOOKUP('Data FA Lookup'!$D681,'FC Master'!A:A,'FC Master'!Q:Q,'Data FA Lookup'!$D681,0,1))","v":1400020001}]
["1420","140","TCCES Education-TCCES Fd",1400020148,"140Educ0148","1950-01-01","9999-12-31","2012-05-14","No","No","No",{"$f":"IF(A682=\"????\",\"\",_xlfn.XLOOKUP('Data FA Lookup'!$D682,'FC Master'!A:A,'FC Master'!Q:Q,'Data FA Lookup'!$D682,0,1))","v":1400020148}]
["1420","140","TCCES Education-US DOJ Grant",1400022051,"140Educ2051","1950-01-01","9999-12-31","2012-05-14","Yes","Yes","Yes",{"$f":"IF(A683=\"????\",\"\",_xlfn.XLOOKUP('Data FA Lookup'!$D683,'FC Master'!A:A,'FC Master'!Q:Q,'Data FA Lookup'!$D683,0,1))","v":1400022051}]
["1420","140","TCCES Service Center-GF",1400030001,"140ServCtr0001","1950-01-01","9999-12-31","2012-05-14","No","No","No",{"$f":"IF(A684=\"????\",\"\",_xlfn.XLOOKUP('Data FA Lookup'!$D684,'FC Master'!A:A,'FC Master'!Q:Q,'Data FA Lookup'!$D684,0,1))","v":1400030001}]
["1420","140","TCCES Phone Center-Down Town-GF",1400040001,"140PhoneCtrDwnT0001","1950-01-01","9999-12-31","2012-05-14","No","No","No",{"$f":"IF(A685=\"????\",\"\",_xlfn.XLOOKUP('Data FA Lookup'!$D685,'FC Master'!A:A,'FC Master'!Q:Q,'Data FA Lookup'!$D685,0,1))","v":1400040001}]
["1420","140","TCCES CES Alcohol & Other Drug-GF",1400050001,"140CES0001","1950-01-01","9999-12-31","2012-05-14","No","No","No",{"$f":"IF(A686=\"????\",\"\",_xlfn.XLOOKUP('Data FA Lookup'!$D686,'FC Master'!A:A,'FC Master'!Q:Q,'Data FA Lookup'!$D686,0,1))","v":1400050001}]
["1420","140","TCCES Alcohol & Other Drug Counseling-GF",1400060001,"140AlcDrgCnslg0001","1950-01-01","9999-12-31","2012-05-14","No","No","No",{"$f":"IF(A687=\"????\",\"\",_xlfn.XLOOKUP('Data FA Lookup'!$D687,'FC Master'!A:A,'FC Master'!Q:Q,'Data FA Lookup'!$D687,0,1))","v":1400060001}]
["1420","140","TCCES Family Violence Counseling-GF",1400070001,"140FamVioCnslg0001","1950-01-01","9999-12-31","2012-05-14","No","No","No",{"$f":"IF(A688=\"????\",\"\",_xlfn.XLOOKUP('Data FA Lookup'!$D688,'FC Master'!A:A,'FC Master'!Q:Q,'Data FA Lookup'!$D688,0,1))","v":1400070001}]
["1420","140","TCCES Commitment to Change-GF",1400080001,"140CommToChg0001","1950-01-01","9999-12-31","2012-05-14","No","No","No",{"$f":"IF(A689=\"????\",\"\",_xlfn.XLOOKUP('Data FA Lookup'!$D689,'FC Master'!A:A,'FC Master'!Q:Q,'Data FA Lookup'!$D689,0,1))","v":1400080001}]
["1420","140","TCCES Phoenix Court-GF",1400090001,"140PhoenixCourt0001","1950-01-01","9999-12-31","2018-07-09","No","No","No",{"$f":"IF(A690=\"????\",\"\",_xlfn.XLOOKUP('Data FA Lookup'!$D690,'FC Master'!A:A,'FC Master'!Q:Q,'Data FA Lookup'!$D690,0,1))","v":1400090001}]
["1420","140","TCCES Juvenile Education Classes-GF",1400100001,"140JuvEduc0001","1950-01-01","9999-12-31","2020-02-18","No","No","No",{"$f":"IF(A691=\"????\",\"\",_xlfn.XLOOKUP('Data FA Lookup'!$D691,'FC Master'!A:A,'FC Master'!Q:Q,'Data FA Lookup'!$D691,0,1))","v":1400100001}]
["1420","140","TCCES Crime Victims Program-GF",1400110001,"140CrimVic0001","1950-01-01","9999-12-31","2020-02-18","No","No","No",{"$f":"IF(A692=\"????\",\"\",_xlfn.XLOOKUP('Data FA Lookup'!$D692,'FC Master'!A:A,'FC Master'!Q:Q,'Data FA Lookup'!$D692,0,1))","v":1400110001}]
["1420","140","TCCES CAR-Education-GF",1408000001,"140CAREducation0001","1950-01-01","9999-12-31","2013-09-13","No","No","No",{"$f":"IF(A693=\"????\",\"\",_xlfn.XLOOKUP('Data FA Lookup'!$D693,'FC Master'!A:A,'FC Master'!Q:Q,'Data FA Lookup'!$D693,0,1))","v":1408000001}]
["1420","142","Pretrial Supervision-GF",1420010001,"142Supvn0001","1950-01-01","9999-12-31","2012-05-14","No","No","No",{"$f":"IF(A694=\"????\",\"\",_xlfn.XLOOKUP('Data FA Lookup'!$D694,'FC Master'!A:A,'FC Master'!Q:Q,'Data FA Lookup'!$D694,0,1))","v":1420010001}]
["1420","142","Pretrial Family Violence Pg-GF",1420020001,"142FamViol0001","1950-01-01","9999-12-31","2012-05-14","No","No","No",{"$f":"IF(A695=\"????\",\"\",_xlfn.XLOOKUP('Data FA Lookup'!$D695,'FC Master'!A:A,'FC Master'!Q:Q,'Data FA Lookup'!$D695,0,1))","v":1420010001}]
["1420","142","Pretrial Intensive Supervision Pg-GF",1420030001,"142IntSupvn0001","1950-01-01","9999-12-31","2012-05-14","No","No","No",{"$f":"IF(A696=\"????\",\"\",_xlfn.XLOOKUP('Data FA Lookup'!$D696,'FC Master'!A:A,'FC Master'!Q:Q,'Data FA Lookup'!$D696,0,1))","v":1420010001}]
["1420","142","Pretrial Mental Health Pg-GF",1420040001,"142MentalHlth0001","1950-01-01","9999-12-31","2012-05-14","No","No","No",{"$f":"IF(A697=\"????\",\"\",_xlfn.XLOOKUP('Data FA Lookup'!$D697,'FC Master'!A:A,'FC Master'!Q:Q,'Data FA Lookup'!$D697,0,1))","v":1420010001}]
["1420","142","Pretrial Electronic Monitoring Pg-GF",1420050001,"142ElecMonitor0001","1950-01-01","9999-12-31","2012-05-14","No","No","No",{"$f":"IF(A698=\"????\",\"\",_xlfn.XLOOKUP('Data FA Lookup'!$D698,'FC Master'!A:A,'FC Master'!Q:Q,'Data FA Lookup'!$D698,0,1))","v":1420010001}]
["1420","142","Pretrial Intervention Pg-GF",1420060001,"142Intervention0001","1950-01-01","9999-12-31","2012-05-14","No","No","No",{"$f":"IF(A699=\"????\",\"\",_xlfn.XLOOKUP('Data FA Lookup'!$D699,'FC Master'!A:A,'FC Master'!Q:Q,'Data FA Lookup'!$D699,0,1))","v":1420010001}]
["1420","142","Alcohol Monitoring Unit Pg-GF",1420070001,"142AlcMonitor0001","1950-01-01","9999-12-31","2012-05-14","No","No","No",{"$f":"IF(A700=\"????\",\"\",_xlfn.XLOOKUP('Data FA Lookup'!$D700,'FC Master'!A:A,'FC Master'!Q:Q,'Data FA Lookup'!$D700,0,1))","v":1420010001}]
["1420","142","Pretrial Support Staff Shift A-GF",1420080001,"142SuppA0001","1950-01-01","9999-12-31","2012-05-14","No","No","No",{"$f":"IF(A701=\"????\",\"\",_xlfn.XLOOKUP('Data FA Lookup'!$D701,'FC Master'!A:A,'FC Master'!Q:Q,'Data FA Lookup'!$D701,0,1))","v":1420010001}]
["1420","142","Pretrial Support Staff Shift B-GF",1420090001,"142SuppB0001","1950-01-01","9999-12-31","2012-05-14","No","No","No",{"$f":"IF(A702=\"????\",\"\",_xlfn.XLOOKUP('Data FA Lookup'!$D702,'FC Master'!A:A,'FC Master'!Q:Q,'Data FA Lookup'!$D702,0,1))","v":1420010001}]
["1410","142","Pretrial Training Coordinator-GF",1420100001,"142Training0001","1950-01-01","9999-12-31","2012-05-14","No","No","No",{"$f":"IF(A703=\"????\",\"\",_xlfn.XLOOKUP('Data FA Lookup'!$D703,'FC Master'!A:A,'FC Master'!Q:Q,'Data FA Lookup'!$D703,0,1))","v":1420160001}]
["1420","142","Pretrial Division Director Office-GF",1420110001,"142DirDiv0001","1950-01-01","9999-12-31","2012-05-14","No","No","No",{"$f":"IF(A704=\"????\",\"\",_xlfn.XLOOKUP('Data FA Lookup'!$D704,'FC Master'!A:A,'FC Master'!Q:Q,'Data FA Lookup'!$D704,0,1))","v":1420010001}]
["1420","142","Pretrial Executive Office-GF",1420120001,"142ExcOfc0001","1950-01-01","9999-12-31","2012-05-14","No","No","No",{"$f":"IF(A705=\"????\",\"\",_xlfn.XLOOKUP('Data FA Lookup'!$D705,'FC Master'!A:A,'FC Master'!Q:Q,'Data FA Lookup'!$D705,0,1))","v":1420010001}]
["1410","142","Pretrial Central Booking Shift A-GF",1420130001,"142CntlBkgA0001","1950-01-01","9999-12-31","2012-05-14","No","No","No",{"$f":"IF(A706=\"????\",\"\",_xlfn.XLOOKUP('Data FA Lookup'!$D706,'FC Master'!A:A,'FC Master'!Q:Q,'Data FA Lookup'!$D706,0,1))","v":1420160001}]
["1410","142","Pretrial Central Booking Shift B-GF",1420140001,"142CntlBkgB0001","1950-01-01","9999-12-31","2012-05-14","No","No","No",{"$f":"IF(A707=\"????\",\"\",_xlfn.XLOOKUP('Data FA Lookup'!$D707,'FC Master'!A:A,'FC Master'!Q:Q,'Data FA Lookup'!$D707,0,1))","v":1420160001}]
["1420","142","Pretrial Drug Court Pg-GF",1420150001,"142DrgCt0001","1950-01-01","9999-12-31","2012-05-14","No","No","No",{"$f":"IF(A708=\"????\",\"\",_xlfn.XLOOKUP('Data FA Lookup'!$D708,'FC Master'!A:A,'FC Master'!Q:Q,'Data FA Lookup'!$D708,0,1))","v":1420150001}]
["1420","142","Pretrial Drug Court-Drg Ct Pg Fd",1420150131,"142DrgCt0131","1950-01-01","9999-12-31","2012-05-14","No","No","No",{"$f":"IF(A709=\"????\",\"\",_xlfn.XLOOKUP('Data FA Lookup'!$D709,'FC Master'!A:A,'FC Master'!Q:Q,'Data FA Lookup'!$D709,0,1))","v":1420150131}]
["1420","142","Pretrial Drug Court-OOG CJD-St Fd Grant",1420152058,"142DrgCt2058","1950-01-01","9999-12-31","2012-05-14","Yes","No","Yes",{"$f":"IF(A710=\"????\",\"\",_xlfn.XLOOKUP('Data FA Lookup'!$D710,'FC Master'!A:A,'FC Master'!Q:Q,'Data FA Lookup'!$D710,0,1))","v":1420152058}]
["1410","142","Pretrial Investigation Unit-GF",1420160001,"142Investigation0001","1950-01-01","9999-12-31","2015-10-06","No","No","No",{"$f":"IF(A711=\"????\",\"\",_xlfn.XLOOKUP('Data FA Lookup'!$D711,'FC Master'!A:A,'FC Master'!Q:Q,'Data FA Lookup'!$D711,0,1))","v":1420160001}]
["1230","143","JPD Executive-GF",1430100001,"143Exc0001","1950-01-01","9999-12-31","2012-05-14","No","No","No",{"$f":"IF(A712=\"????\",\"\",_xlfn.XLOOKUP('Data FA Lookup'!$D712,'FC Master'!A:A,'FC Master'!Q:Q,'Data FA Lookup'!$D712,0,1))","v":1430100001}]
["1230","143","JPD Attorney Staff-GF",1430200001,"143Atty0001","1950-01-01","9999-12-31","2012-05-14","No","No","No",{"$f":"IF(A713=\"????\",\"\",_xlfn.XLOOKUP('Data FA Lookup'!$D713,'FC Master'!A:A,'FC Master'!Q:Q,'Data FA Lookup'!$D713,0,1))","v":1430200001}]
["1230","143","JPD Investigation Staff-GF",1430300001,"143Investigatn0001","1950-01-01","9999-12-31","2012-05-14","No","No","No",{"$f":"IF(A714=\"????\",\"\",_xlfn.XLOOKUP('Data FA Lookup'!$D714,'FC Master'!A:A,'FC Master'!Q:Q,'Data FA Lookup'!$D714,0,1))","v":1430300001}]
["1230","143","JPD Administrative Staff-GF",1430400001,"143Adm0001","1950-01-01","9999-12-31","2012-05-14","No","No","No",{"$f":"IF(A715=\"????\",\"\",_xlfn.XLOOKUP('Data FA Lookup'!$D715,'FC Master'!A:A,'FC Master'!Q:Q,'Data FA Lookup'!$D715,0,1))","v":1430400001}]
["1210","144","PD-Chief Public Defender-GF",1440010001,"144PD0001","1950-01-01","2020-12-31","2019-10-14","No","No","No",{"$f":"IF(A716=\"????\",\"\",_xlfn.XLOOKUP('Data FA Lookup'!$D716,'FC Master'!A:A,'FC Master'!Q:Q,'Data FA Lookup'!$D716,0,1))","v":1440010001}]
["1210","144","PD-Chief Public Defender-GF",1440010001,"144PD0001","2021-01-01","9999-12-31","2019-10-14","No","No","No",{"$f":"IF(A717=\"????\",\"\",_xlfn.XLOOKUP('Data FA Lookup'!$D717,'FC Master'!A:A,'FC Master'!Q:Q,'Data FA Lookup'!$D717,0,1))","v":1440010001}]
["1210","144","PD - Felony Division-GF",1440020001,"144Felony0001","1950-01-01","9999-12-31","2019-10-14","No","No","No",{"$f":"IF(A718=\"????\",\"\",_xlfn.XLOOKUP('Data FA Lookup'!$D718,'FC Master'!A:A,'FC Master'!Q:Q,'Data FA Lookup'!$D718,0,1))","v":1440020001}]
["1210","144","PD - Misdemeanor Division-GF",1440030001,"144Misd0001","1950-01-01","9999-12-31","2019-10-14","No","No","No",{"$f":"IF(A719=\"????\",\"\",_xlfn.XLOOKUP('Data FA Lookup'!$D719,'FC Master'!A:A,'FC Master'!Q:Q,'Data FA Lookup'!$D719,0,1))","v":1440030001}]
["1210","144","PD - Training Division-GF",1440040001,"144Train0001","1950-01-01","9999-12-31","2019-10-14","No","No","No",{"$f":"IF(A720=\"????\",\"\",_xlfn.XLOOKUP('Data FA Lookup'!$D720,'FC Master'!A:A,'FC Master'!Q:Q,'Data FA Lookup'!$D720,0,1))","v":1440040001}]
["1230","145","JvP GA-Admin-GF",1450010001,"145GAAdm0001","1950-01-01","9999-12-31","2012-05-14","Yes","Yes","Yes",{"$f":"IF(A721=\"????\",\"\",_xlfn.XLOOKUP('Data FA Lookup'!$D721,'FC Master'!A:A,'FC Master'!Q:Q,'Data FA Lookup'!$D721,0,1))","v":1450010001}]
["1230","145","JvP GA-Financial Srvcs-GF",1450020001,"145GAFinSrvc0001","1950-01-01","9999-12-31","2012-05-14","Yes","Yes","Yes",{"$f":"IF(A722=\"????\",\"\",_xlfn.XLOOKUP('Data FA Lookup'!$D722,'FC Master'!A:A,'FC Master'!Q:Q,'Data FA Lookup'!$D722,0,1))","v":1450020001}]
["1230","145","JvP GA-Support Srvcs-GF",1450030001,"145GASuppSrvc0001","1950-01-01","9999-12-31","2012-05-14","Yes","Yes","Yes",{"$f":"IF(A723=\"????\",\"\",_xlfn.XLOOKUP('Data FA Lookup'!$D723,'FC Master'!A:A,'FC Master'!Q:Q,'Data FA Lookup'!$D723,0,1))","v":1450030001}]
["1230","145","JvP GA-General Counsel-GF",1450040001,"145GAGenCnsl0001","1950-01-01","9999-12-31","2012-05-14","Yes","Yes","Yes",{"$f":"IF(A724=\"????\",\"\",_xlfn.XLOOKUP('Data FA Lookup'!$D724,'FC Master'!A:A,'FC Master'!Q:Q,'Data FA Lookup'!$D724,0,1))","v":1450040001}]
["1230","145","JvP HR&SD Admin-GF",1450050001,"145HRAdm0001","1950-01-01","9999-12-31","2012-05-14","Yes","Yes","Yes",{"$f":"IF(A725=\"????\",\"\",_xlfn.XLOOKUP('Data FA Lookup'!$D725,'FC Master'!A:A,'FC Master'!Q:Q,'Data FA Lookup'!$D725,0,1))","v":1450050001}]
["1230","145","JvP HR&SD HR-GF",1450060001,"145HR0001","1950-01-01","9999-12-31","2012-05-14","Yes","Yes","Yes",{"$f":"IF(A726=\"????\",\"\",_xlfn.XLOOKUP('Data FA Lookup'!$D726,'FC Master'!A:A,'FC Master'!Q:Q,'Data FA Lookup'!$D726,0,1))","v":1450060001}]
["1230","145","JvP HR&SD Staff Dev-GF",1450070001,"145StfDev0001","1950-01-01","9999-12-31","2012-05-14","Yes","Yes","Yes",{"$f":"IF(A727=\"????\",\"\",_xlfn.XLOOKUP('Data FA Lookup'!$D727,'FC Master'!A:A,'FC Master'!Q:Q,'Data FA Lookup'!$D727,0,1))","v":1450070001}]
["1230","145","JvP IT/P and R Admin-GF",1450080001,"145ITAdm0001","1950-01-01","9999-12-31","2012-05-14","Yes","Yes","Yes",{"$f":"IF(A728=\"????\",\"\",_xlfn.XLOOKUP('Data FA Lookup'!$D728,'FC Master'!A:A,'FC Master'!Q:Q,'Data FA Lookup'!$D728,0,1))","v":1450080001}]
["1230","145","JvP IT/P and R Research-GF",1450090001,"145ITRsh0001","1950-01-01","9999-12-31","2012-05-14","Yes","Yes","Yes",{"$f":"IF(A729=\"????\",\"\",_xlfn.XLOOKUP('Data FA Lookup'!$D729,'FC Master'!A:A,'FC Master'!Q:Q,'Data FA Lookup'!$D729,0,1))","v":1450090001}]
["1230","145","JvP IT/P and R Systems Support-GF",1450100001,"145ITSysSppt0001","1950-01-01","9999-12-31","2012-05-14","Yes","Yes","Yes",{"$f":"IF(A730=\"????\",\"\",_xlfn.XLOOKUP('Data FA Lookup'!$D730,'FC Master'!A:A,'FC Master'!Q:Q,'Data FA Lookup'!$D730,0,1))","v":1450100001}]
["1230","145","JvP Fac Ops Admin-GF",1450110001,"145FOAdm0001","1950-01-01","9999-12-31","2012-05-14","Yes","Yes","Yes",{"$f":"IF(A731=\"????\",\"\",_xlfn.XLOOKUP('Data FA Lookup'!$D731,'FC Master'!A:A,'FC Master'!Q:Q,'Data FA Lookup'!$D731,0,1))","v":1450110001}]
["1230","145","JvP Fac Ops Building Maint-GF",1450120001,"145FOBdMnt0001","1950-01-01","9999-12-31","2012-05-14","No","No","No",{"$f":"IF(A732=\"????\",\"\",_xlfn.XLOOKUP('Data FA Lookup'!$D732,'FC Master'!A:A,'FC Master'!Q:Q,'Data FA Lookup'!$D732,0,1))","v":1450120001}]
["1230","145","JvP Fac Ops HouseKeeping-GF",1450130001,"145FOHseKp0001","1950-01-01","9999-12-31","2012-05-14","Yes","Yes","Yes",{"$f":"IF(A733=\"????\",\"\",_xlfn.XLOOKUP('Data FA Lookup'!$D733,'FC Master'!A:A,'FC Master'!Q:Q,'Data FA Lookup'!$D733,0,1))","v":1450130001}]
["1230","145","JvP Food Srvcs-GF",1450140001,"145FdSrvc0001","1950-01-01","9999-12-31","2012-05-14","Yes","Yes","Yes",{"$f":"IF(A734=\"????\",\"\",_xlfn.XLOOKUP('Data FA Lookup'!$D734,'FC Master'!A:A,'FC Master'!Q:Q,'Data FA Lookup'!$D734,0,1))","v":1450140001}]
["1230","145","JvP Hlth Srvcs Medical-GF",1450150001,"145HSMed0001","1950-01-01","9999-12-31","2012-05-14","Yes","Yes","Yes",{"$f":"IF(A735=\"????\",\"\",_xlfn.XLOOKUP('Data FA Lookup'!$D735,'FC Master'!A:A,'FC Master'!Q:Q,'Data FA Lookup'!$D735,0,1))","v":1450150001}]
["1230","145","JvP Hlth Srvcs Assessments-GF",1450160001,"145HSAsmts0001","1950-01-01","9999-12-31","2012-05-14","Yes","Yes","Yes",{"$f":"IF(A736=\"????\",\"\",_xlfn.XLOOKUP('Data FA Lookup'!$D736,'FC Master'!A:A,'FC Master'!Q:Q,'Data FA Lookup'!$D736,0,1))","v":1450160001}]
["1230","145","JvP Legal Srvcs Judicial-GF",1450170001,"145LglSvcJud0001","1950-01-01","9999-12-31","2012-05-14","Yes","Yes","Yes",{"$f":"IF(A737=\"????\",\"\",_xlfn.XLOOKUP('Data FA Lookup'!$D737,'FC Master'!A:A,'FC Master'!Q:Q,'Data FA Lookup'!$D737,0,1))","v":1450170001}]
["1230","145","JvP Legal Srvcs Judicial-Truancy Ct Fd",1450170126,"145LglSvcJud0126","1950-01-01","9999-12-31","2012-05-14","No","No","No",{"$f":"IF(A738=\"????\",\"\",_xlfn.XLOOKUP('Data FA Lookup'!$D738,'FC Master'!A:A,'FC Master'!Q:Q,'Data FA Lookup'!$D738,0,1))","v":1450170126}]
["1230","145","JvP Legal Srvcs Legal-GF",1450180001,"145LglSvcLgl0001","1950-01-01","9999-12-31","2012-05-14","Yes","Yes","Yes",{"$f":"IF(A739=\"????\",\"\",_xlfn.XLOOKUP('Data FA Lookup'!$D739,'FC Master'!A:A,'FC Master'!Q:Q,'Data FA Lookup'!$D739,0,1))","v":1450180001}]
["1230","145","JvP Legal Srvcs Legal-Truancy Ct Fd",1450180126,"145LglSvcLgl0126","1950-01-01","9999-12-31","2012-05-14","No","No","No",{"$f":"IF(A740=\"????\",\"\",_xlfn.XLOOKUP('Data FA Lookup'!$D740,'FC Master'!A:A,'FC Master'!Q:Q,'Data FA Lookup'!$D740,0,1))","v":1450180126}]
["1230","145","JvP Crt Srvcs Admin-GF",1450190001,"145CrtSvcAdm0001","1950-01-01","9999-12-31","2012-05-14","Yes","Yes","Yes",{"$f":"IF(A741=\"????\",\"\",_xlfn.XLOOKUP('Data FA Lookup'!$D741,'FC Master'!A:A,'FC Master'!Q:Q,'Data FA Lookup'!$D741,0,1))","v":1450190001}]
["1230","145","JvP Crt Srvcs Court Unit-GF",1450200001,"145CrtSvcCtUnit0001","1950-01-01","9999-12-31","2012-05-14","Yes","Yes","Yes",{"$f":"IF(A742=\"????\",\"\",_xlfn.XLOOKUP('Data FA Lookup'!$D742,'FC Master'!A:A,'FC Master'!Q:Q,'Data FA Lookup'!$D742,0,1))","v":1450200001}]
["1230","145","JvP Crt Srvcs Def Prosecution Unit-GF",1450210001,"145CrtSvcDefPro0001","1950-01-01","9999-12-31","2012-05-14","Yes","Yes","Yes",{"$f":"IF(A743=\"????\",\"\",_xlfn.XLOOKUP('Data FA Lookup'!$D743,'FC Master'!A:A,'FC Master'!Q:Q,'Data FA Lookup'!$D743,0,1))","v":1450210001}]
["1230","145","JvP Crt Srvcs Intake-GF",1450220001,"145CrtSvcIntake0001","1950-01-01","9999-12-31","2012-05-14","Yes","Yes","Yes",{"$f":"IF(A744=\"????\",\"\",_xlfn.XLOOKUP('Data FA Lookup'!$D744,'FC Master'!A:A,'FC Master'!Q:Q,'Data FA Lookup'!$D744,0,1))","v":1450220001}]
["1230","145","JvP Crt Srvcs Victim Srvcs-GF",1450230001,"145CrtSvcVicSvc0001","1950-01-01","9999-12-31","2012-05-14","Yes","Yes","Yes",{"$f":"IF(A745=\"????\",\"\",_xlfn.XLOOKUP('Data FA Lookup'!$D745,'FC Master'!A:A,'FC Master'!Q:Q,'Data FA Lookup'!$D745,0,1))","v":1450230001}]
["1230","145","JvP Prob Srvcs Admin-GF",1450240001,"145PSAdm0001","1950-01-01","9999-12-31","2012-05-14","Yes","Yes","Yes",{"$f":"IF(A746=\"????\",\"\",_xlfn.XLOOKUP('Data FA Lookup'!$D746,'FC Master'!A:A,'FC Master'!Q:Q,'Data FA Lookup'!$D746,0,1))","v":1450240001}]
["1230","145","JvP Prob Srvcs Field Unit-GF",1450250001,"145PSFldUnit0001","1950-01-01","9999-12-31","2012-05-14","Yes","Yes","Yes",{"$f":"IF(A747=\"????\",\"\",_xlfn.XLOOKUP('Data FA Lookup'!$D747,'FC Master'!A:A,'FC Master'!Q:Q,'Data FA Lookup'!$D747,0,1))","v":1450250001}]
["1230","145","JvP Prob Srvcs ISP-GF",1450260001,"145PSISP0001","1950-01-01","9999-12-31","2012-05-14","Yes","Yes","Yes",{"$f":"IF(A748=\"????\",\"\",_xlfn.XLOOKUP('Data FA Lookup'!$D748,'FC Master'!A:A,'FC Master'!Q:Q,'Data FA Lookup'!$D748,0,1))","v":1450260001}]
["1230","145","JvP Prob Srvcs Resources-GF",1450270001,"145PSRsrcs0001","1950-01-01","9999-12-31","2012-05-14","Yes","Yes","Yes",{"$f":"IF(A749=\"????\",\"\",_xlfn.XLOOKUP('Data FA Lookup'!$D749,'FC Master'!A:A,'FC Master'!Q:Q,'Data FA Lookup'!$D749,0,1))","v":1450270001}]
["1230","145","JvP Prob Srvcs-Special Needs Div Prgms-G",1450280001,"145PSSNDP0001","1950-01-01","9999-12-31","2012-05-14","Yes","Yes","Yes",{"$f":"IF(A750=\"????\",\"\",_xlfn.XLOOKUP('Data FA Lookup'!$D750,'FC Master'!A:A,'FC Master'!Q:Q,'Data FA Lookup'!$D750,0,1))","v":1450280001}]
["1230","145","JvP Prob Srvcs Cross Over Unit-GF",1450290001,"145PSCOU0001","1950-01-01","9999-12-31","2012-05-14","Yes","Yes","Yes",{"$f":"IF(A751=\"????\",\"\",_xlfn.XLOOKUP('Data FA Lookup'!$D751,'FC Master'!A:A,'FC Master'!Q:Q,'Data FA Lookup'!$D751,0,1))","v":1450290001}]
["1230","145","JvP Spec Srvcs Admin-GF",1450300001,"145SSAdm0001","1950-01-01","9999-12-31","2012-05-14","No","No","No",{"$f":"IF(A752=\"????\",\"\",_xlfn.XLOOKUP('Data FA Lookup'!$D752,'FC Master'!A:A,'FC Master'!Q:Q,'Data FA Lookup'!$D752,0,1))","v":1450300001}]
["1230","145","JvP Spec Srvcs CRCG & Care Coord-GF",1450310001,"145SSCRCG-CC0001","1950-01-01","9999-12-31","2012-05-14","Yes","Yes","Yes",{"$f":"IF(A753=\"????\",\"\",_xlfn.XLOOKUP('Data FA Lookup'!$D753,'FC Master'!A:A,'FC Master'!Q:Q,'Data FA Lookup'!$D753,0,1))","v":1450310001}]
["1230","145","JvP Spec Srvcs Drug Court-GF",1450320001,"145SSDrgCt0001","1950-01-01","9999-12-31","2012-05-14","No","No","No",{"$f":"IF(A754=\"????\",\"\",_xlfn.XLOOKUP('Data FA Lookup'!$D754,'FC Master'!A:A,'FC Master'!Q:Q,'Data FA Lookup'!$D754,0,1))","v":1450320001}]
["1230","145","JvP Spec Srvcs Enrichment Center-GF",1450330001,"145SSEnrchCtr0001","1950-01-01","9999-12-31","2012-05-14","Yes","Yes","Yes",{"$f":"IF(A755=\"????\",\"\",_xlfn.XLOOKUP('Data FA Lookup'!$D755,'FC Master'!A:A,'FC Master'!Q:Q,'Data FA Lookup'!$D755,0,1))","v":1450330001}]
["1230","145","JvP Spec Srvcs Mental Health Court-GF",1450340001,"145SSMntlHlthCt0001","1950-01-01","9999-12-31","2012-05-14","Yes","Yes","Yes",{"$f":"IF(A756=\"????\",\"\",_xlfn.XLOOKUP('Data FA Lookup'!$D756,'FC Master'!A:A,'FC Master'!Q:Q,'Data FA Lookup'!$D756,0,1))","v":1450340001}]
["1230","145","JvP Spec Srvcs Truancy Court-GF",1450350001,"145SSTrncyCt0001","1950-01-01","9999-12-31","2012-05-14","No","No","No",{"$f":"IF(A757=\"????\",\"\",_xlfn.XLOOKUP('Data FA Lookup'!$D757,'FC Master'!A:A,'FC Master'!Q:Q,'Data FA Lookup'!$D757,0,1))","v":1450350001}]
["1230","145","JvP Spec Srvcs JJAEP-GF",1450360001,"145SSJJAEP0001","1950-01-01","9999-12-31","2012-05-14","No","No","No",{"$f":"IF(A758=\"????\",\"\",_xlfn.XLOOKUP('Data FA Lookup'!$D758,'FC Master'!A:A,'FC Master'!Q:Q,'Data FA Lookup'!$D758,0,1))","v":1450360001}]
["1230","145","JvP Spec Srvcs JJAEP Fd",1450360107,"145SSJJAEP0107","1950-01-01","9999-12-31","2012-05-14","No","No","No",{"$f":"IF(A759=\"????\",\"\",_xlfn.XLOOKUP('Data FA Lookup'!$D759,'FC Master'!A:A,'FC Master'!Q:Q,'Data FA Lookup'!$D759,0,1))","v":1450360107}]
["1230","145","JvP Spec Srvcs JJAEP-TCCES Fd",1450360148,"145SSJJAEP0148","1950-01-01","9999-12-31","2012-05-14","No","No","No",{"$f":"IF(A760=\"????\",\"\",_xlfn.XLOOKUP('Data FA Lookup'!$D760,'FC Master'!A:A,'FC Master'!Q:Q,'Data FA Lookup'!$D760,0,1))","v":1450360148}]
["1230","145","JvP Detention Srvcs-GF",1450370001,"145DetSvc0001","1950-01-01","9999-12-31","2012-05-14","Yes","Yes","Yes",{"$f":"IF(A761=\"????\",\"\",_xlfn.XLOOKUP('Data FA Lookup'!$D761,'FC Master'!A:A,'FC Master'!Q:Q,'Data FA Lookup'!$D761,0,1))","v":1450370001}]
["1230","145","JvP Res Srvcs Admin-GF",1450380001,"145RSAdm0001","1950-01-01","9999-12-31","2012-05-14","Yes","Yes","Yes",{"$f":"IF(A762=\"????\",\"\",_xlfn.XLOOKUP('Data FA Lookup'!$D762,'FC Master'!A:A,'FC Master'!Q:Q,'Data FA Lookup'!$D762,0,1))","v":1450380001}]
["1230","145","JvP Res Srvcs Program Support-GF",1450390001,"145RSPgmSupp0001","1950-01-01","9999-12-31","2012-05-14","Yes","Yes","Yes",{"$f":"IF(A763=\"????\",\"\",_xlfn.XLOOKUP('Data FA Lookup'!$D763,'FC Master'!A:A,'FC Master'!Q:Q,'Data FA Lookup'!$D763,0,1))","v":1450390001}]
["1230","145","JvP Res Srvcs Direct Care-GF",1450400001,"145RSDirCare0001","1950-01-01","9999-12-31","2012-05-14","Yes","Yes","Yes",{"$f":"IF(A764=\"????\",\"\",_xlfn.XLOOKUP('Data FA Lookup'!$D764,'FC Master'!A:A,'FC Master'!Q:Q,'Data FA Lookup'!$D764,0,1))","v":1450400001}]
["1230","145","JvP Trmt and Couns Admin-GF",1450410001,"145TrtmtAdm0001","1950-01-01","9999-12-31","2012-05-14","Yes","Yes","Yes",{"$f":"IF(A765=\"????\",\"\",_xlfn.XLOOKUP('Data FA Lookup'!$D765,'FC Master'!A:A,'FC Master'!Q:Q,'Data FA Lookup'!$D765,0,1))","v":1450410001}]
["1230","145","JvP Trmt and Couns Crisis Counseling-GF",1450420001,"145TrtmtCouns0001","1950-01-01","9999-12-31","2012-05-14","Yes","Yes","Yes",{"$f":"IF(A766=\"????\",\"\",_xlfn.XLOOKUP('Data FA Lookup'!$D766,'FC Master'!A:A,'FC Master'!Q:Q,'Data FA Lookup'!$D766,0,1))","v":1450420001}]
["1230","145","JvP Trmt and Couns Treatment-GF",1450430001,"145TrtmtTrtmt0001","1950-01-01","9999-12-31","2012-05-14","Yes","Yes","Yes",{"$f":"IF(A767=\"????\",\"\",_xlfn.XLOOKUP('Data FA Lookup'!$D767,'FC Master'!A:A,'FC Master'!Q:Q,'Data FA Lookup'!$D767,0,1))","v":1450430001}]
["1230","145","JvP Dom Rel Off Admin-GF",1450440001,"145DROAdm0001","1950-01-01","9999-12-31","2012-05-14","Yes","Yes","Yes",{"$f":"IF(A768=\"????\",\"\",_xlfn.XLOOKUP('Data FA Lookup'!$D768,'FC Master'!A:A,'FC Master'!Q:Q,'Data FA Lookup'!$D768,0,1))","v":1450440001}]
["1230","145","JvP Dom Rel Off Admin-TCCES Fd",1450440148,"145DROAdm0148","1950-01-01","9999-12-31","2012-05-14","No","No","No",{"$f":"IF(A769=\"????\",\"\",_xlfn.XLOOKUP('Data FA Lookup'!$D769,'FC Master'!A:A,'FC Master'!Q:Q,'Data FA Lookup'!$D769,0,1))","v":1450440148}]
["1230","145","JvP Dom Rel Off Customer Srvc Opers-GF",1450450001,"145DROCustSrv0001","1950-01-01","9999-12-31","2012-05-14","Yes","Yes","Yes",{"$f":"IF(A770=\"????\",\"\",_xlfn.XLOOKUP('Data FA Lookup'!$D770,'FC Master'!A:A,'FC Master'!Q:Q,'Data FA Lookup'!$D770,0,1))","v":1450450001}]
["1230","145","JvP Dom Rel Off Family Court Srvcs-GF",1450460001,"145DROFamCt0001","1950-01-01","9999-12-31","2012-05-14","Yes","Yes","Yes",{"$f":"IF(A771=\"????\",\"\",_xlfn.XLOOKUP('Data FA Lookup'!$D771,'FC Master'!A:A,'FC Master'!Q:Q,'Data FA Lookup'!$D771,0,1))","v":1450460001}]
["1230","145","JvP Dom Rel Off Legal Srvcs-GF",1450470001,"145DROLglSvc0001","1950-01-01","9999-12-31","2012-05-14","Yes","Yes","Yes",{"$f":"IF(A772=\"????\",\"\",_xlfn.XLOOKUP('Data FA Lookup'!$D772,'FC Master'!A:A,'FC Master'!Q:Q,'Data FA Lookup'!$D772,0,1))","v":1450470001}]
["1230","145","JvP Prob Srvcs Sex Offender Unit-GF",1450480001,"145PSSexOff0001","1950-01-01","9999-12-31","2015-04-20","No","No","No",{"$f":"IF(A773=\"????\",\"\",_xlfn.XLOOKUP('Data FA Lookup'!$D773,'FC Master'!A:A,'FC Master'!Q:Q,'Data FA Lookup'!$D773,0,1))","v":1450480001}]
["1230","145","JvP NonDivisional-GF",1450560001,"145NonDiv0001","1950-01-01","9999-12-31","2012-05-14","No","No","No",{"$f":"IF(A774=\"????\",\"\",_xlfn.XLOOKUP('Data FA Lookup'!$D774,'FC Master'!A:A,'FC Master'!Q:Q,'Data FA Lookup'!$D774,0,1))","v":1450560001}]
["1230","145","JvP NonDivisional-Juv Fee Fd",1450560106,"145NonDiv0106","1950-01-01","9999-12-31","2012-05-14","No","No","No",{"$f":"IF(A775=\"????\",\"\",_xlfn.XLOOKUP('Data FA Lookup'!$D775,'FC Master'!A:A,'FC Master'!Q:Q,'Data FA Lookup'!$D775,0,1))","v":1450560106}]
["1230","145","JvP NonDivisional-Juv Def Pros Fd",1450560114,"145NonDiv0114","1950-01-01","9999-12-31","2012-05-14","No","No","No",{"$f":"IF(A776=\"????\",\"\",_xlfn.XLOOKUP('Data FA Lookup'!$D776,'FC Master'!A:A,'FC Master'!Q:Q,'Data FA Lookup'!$D776,0,1))","v":1450560114}]
["1230","145","JvP NonDivisional-Juv Del Prvntn Fd",1450560119,"145NonDiv0119","1950-01-01","9999-12-31","2012-05-14","No","No","No",{"$f":"IF(A777=\"????\",\"\",_xlfn.XLOOKUP('Data FA Lookup'!$D777,'FC Master'!A:A,'FC Master'!Q:Q,'Data FA Lookup'!$D777,0,1))","v":1450560119}]
["1230","145","JvP NonDivisional-Unclaimed Juv Rest",1450560144,"145NonDiv0144","1950-01-01","9999-12-31","2012-05-14","No","No","No",{"$f":"IF(A778=\"????\",\"\",_xlfn.XLOOKUP('Data FA Lookup'!$D778,'FC Master'!A:A,'FC Master'!Q:Q,'Data FA Lookup'!$D778,0,1))","v":1450560144}]
["1230","145","JvP NonDivisional-Gardner House",1450560146,"145NonDiv0146","1950-01-01","9999-12-31","2012-05-14","No","No","No",{"$f":"IF(A779=\"????\",\"\",_xlfn.XLOOKUP('Data FA Lookup'!$D779,'FC Master'!A:A,'FC Master'!Q:Q,'Data FA Lookup'!$D779,0,1))","v":1450560146}]
["1230","145","JvP NonDivisional- ATCI Grant",1450562001,"145NonDiv2001","1950-01-01","9999-12-31","2012-05-14","Yes","Yes","Yes",{"$f":"IF(A780=\"????\",\"\",_xlfn.XLOOKUP('Data FA Lookup'!$D780,'FC Master'!A:A,'FC Master'!Q:Q,'Data FA Lookup'!$D780,0,1))","v":1450562001}]
["1230","145","JvP NonDivisional- OOG Grant",1450562016,"145NonDiv2016","1950-01-01","9999-12-31","2012-05-14","Yes","Yes","Yes",{"$f":"IF(A781=\"????\",\"\",_xlfn.XLOOKUP('Data FA Lookup'!$D781,'FC Master'!A:A,'FC Master'!Q:Q,'Data FA Lookup'!$D781,0,1))","v":1450562016}]
["1230","145","JvP NonDivisional-OAG Grant",1450562019,"145NonDiv2019","1950-01-01","9999-12-31","2012-05-14","Yes","Yes","Yes",{"$f":"IF(A782=\"????\",\"\",_xlfn.XLOOKUP('Data FA Lookup'!$D782,'FC Master'!A:A,'FC Master'!Q:Q,'Data FA Lookup'!$D782,0,1))","v":1450562019}]
["1230","145","JvP NonDivisional-StVRCforTX Grant",1450562022,"145NonDiv2022","1950-01-01","9999-12-31","2012-05-14","Yes","Yes","Yes",{"$f":"IF(A783=\"????\",\"\",_xlfn.XLOOKUP('Data FA Lookup'!$D783,'FC Master'!A:A,'FC Master'!Q:Q,'Data FA Lookup'!$D783,0,1))","v":1450562022}]
["1230","145","JvP NonDivisional- TJJDHHS Grant",1450562036,"145NonDiv2036","1950-01-01","9999-12-31","2012-05-14","Yes","Yes","Yes",{"$f":"IF(A784=\"????\",\"\",_xlfn.XLOOKUP('Data FA Lookup'!$D784,'FC Master'!A:A,'FC Master'!Q:Q,'Data FA Lookup'!$D784,0,1))","v":1450562036}]
["1230","145","JvP NonDivisional- DOJ Grant",1450562051,"145NonDiv2051","1950-01-01","9999-12-31","2012-05-14","Yes","Yes","Yes",{"$f":"IF(A785=\"????\",\"\",_xlfn.XLOOKUP('Data FA Lookup'!$D785,'FC Master'!A:A,'FC Master'!Q:Q,'Data FA Lookup'!$D785,0,1))","v":1450562051}]
["1230","145","JvP NonDivisional- USHHS Grant",1450562055,"145NonDiv2055","1950-01-01","9999-12-31","2012-05-14","Yes","Yes","Yes",{"$f":"IF(A786=\"????\",\"\",_xlfn.XLOOKUP('Data FA Lookup'!$D786,'FC Master'!A:A,'FC Master'!Q:Q,'Data FA Lookup'!$D786,0,1))","v":1450562055}]
["1230","145","JvP NonDivisional- OOG CJD-St Fd",1450562058,"145NonDiv2058","1950-01-01","9999-12-31","2014-08-04","Yes","Yes","Yes",{"$f":"IF(A787=\"????\",\"\",_xlfn.XLOOKUP('Data FA Lookup'!$D787,'FC Master'!A:A,'FC Master'!Q:Q,'Data FA Lookup'!$D787,0,1))","v":1450562058}]
["1230","145","JvP NonDivisional- TJJD Grant",1450562060,"145NonDiv2060","1950-01-01","9999-12-31","2012-05-14","Yes","Yes","Yes",{"$f":"IF(A788=\"????\",\"\",_xlfn.XLOOKUP('Data FA Lookup'!$D788,'FC Master'!A:A,'FC Master'!Q:Q,'Data FA Lookup'!$D788,0,1))","v":1450562060}]
["1230","145","JvP NonDivisional- TJJD DOJ Grant",1450562063,"145NonDiv2063","1950-01-01","9999-12-31","2012-05-14","Yes","Yes","Yes",{"$f":"IF(A789=\"????\",\"\",_xlfn.XLOOKUP('Data FA Lookup'!$D789,'FC Master'!A:A,'FC Master'!Q:Q,'Data FA Lookup'!$D789,0,1))","v":1450562063}]
["1230","145","JvP NonDivisional- ATCI Grant",1450562078,"145NonDiv2078","1950-01-01","9999-12-31","2014-05-08","Yes","Yes","Yes",{"$f":"IF(A790=\"????\",\"\",_xlfn.XLOOKUP('Data FA Lookup'!$D790,'FC Master'!A:A,'FC Master'!Q:Q,'Data FA Lookup'!$D790,0,1))","v":1450562078}]
["1230","145","JvP NonDivisional- OOG Crm Jst Div",1450562089,"145NonDiv2089","1950-01-01","9999-12-31","2014-08-04","Yes","Yes","Yes",{"$f":"IF(A791=\"????\",\"\",_xlfn.XLOOKUP('Data FA Lookup'!$D791,'FC Master'!A:A,'FC Master'!Q:Q,'Data FA Lookup'!$D791,0,1))","v":1450562089}]
["1230","145","JvP NonDivisional-CO 2005",1450564044,"145NonDiv4044","1950-01-01","9999-12-31","2012-05-14","No","No","No",{"$f":"IF(A792=\"????\",\"\",_xlfn.XLOOKUP('Data FA Lookup'!$D792,'FC Master'!A:A,'FC Master'!Q:Q,'Data FA Lookup'!$D792,0,1))","v":1450564044}]
["1230","145","JvP Admin Services-GF",1450600001,"145AdmSvc0001","1950-01-01","9999-12-31","2020-10-07","No","No","No",{"$f":"IF(A793=\"????\",\"\",_xlfn.XLOOKUP('Data FA Lookup'!$D793,'FC Master'!A:A,'FC Master'!Q:Q,'Data FA Lookup'!$D793,0,1))","v":1450600001}]
["1230","145","JvP Facilities Operations-GF",1450610001,"145FacOp0001","1950-01-01","9999-12-31","2020-10-07","No","No","No",{"$f":"IF(A794=\"????\",\"\",_xlfn.XLOOKUP('Data FA Lookup'!$D794,'FC Master'!A:A,'FC Master'!Q:Q,'Data FA Lookup'!$D794,0,1))","v":1450610001}]
["1230","145","JvP Food Services-GF",1450620001,"145FdSvc0001","1950-01-01","9999-12-31","2020-10-07","No","No","No",{"$f":"IF(A795=\"????\",\"\",_xlfn.XLOOKUP('Data FA Lookup'!$D795,'FC Master'!A:A,'FC Master'!Q:Q,'Data FA Lookup'!$D795,0,1))","v":1450620001}]
["1230","145","JvP Health Services-GF",1450630001,"145HlthSvc0001","1950-01-01","9999-12-31","2020-10-07","No","No","No",{"$f":"IF(A796=\"????\",\"\",_xlfn.XLOOKUP('Data FA Lookup'!$D796,'FC Master'!A:A,'FC Master'!Q:Q,'Data FA Lookup'!$D796,0,1))","v":1450630001}]
["1230","145","JvP Court Administration-GF",1450640001,"145CtAdm0001","1950-01-01","9999-12-31","2020-10-07","No","No","No",{"$f":"IF(A797=\"????\",\"\",_xlfn.XLOOKUP('Data FA Lookup'!$D797,'FC Master'!A:A,'FC Master'!Q:Q,'Data FA Lookup'!$D797,0,1))","v":1450640001}]
["1230","145","JvP Probation Services-GF",1450650001,"145ProbSvc0001","1950-01-01","9999-12-31","2020-10-07","No","No","No",{"$f":"IF(A798=\"????\",\"\",_xlfn.XLOOKUP('Data FA Lookup'!$D798,'FC Master'!A:A,'FC Master'!Q:Q,'Data FA Lookup'!$D798,0,1))","v":1450650001}]
["1230","145","JvP Court Services-GF",1450660001,"145CtSvc0001","1950-01-01","9999-12-31","2020-10-07","No","No","No",{"$f":"IF(A799=\"????\",\"\",_xlfn.XLOOKUP('Data FA Lookup'!$D799,'FC Master'!A:A,'FC Master'!Q:Q,'Data FA Lookup'!$D799,0,1))","v":1450660001}]
["1230","145","JvP Detention Services-GF",1450670001,"145DetS0001","1950-01-01","9999-12-31","2020-10-07","No","No","No",{"$f":"IF(A800=\"????\",\"\",_xlfn.XLOOKUP('Data FA Lookup'!$D800,'FC Master'!A:A,'FC Master'!Q:Q,'Data FA Lookup'!$D800,0,1))","v":1450670001}]
["1230","145","JvP Residential Services-GF",1450680001,"145ResSvc0001","1950-01-01","9999-12-31","2020-10-07","No","No","No",{"$f":"IF(A801=\"????\",\"\",_xlfn.XLOOKUP('Data FA Lookup'!$D801,'FC Master'!A:A,'FC Master'!Q:Q,'Data FA Lookup'!$D801,0,1))","v":1450680001}]
["1230","145","JvP Domestic Relations-GF",1450690001,"145DomRel0001","1950-01-01","9999-12-31","2020-10-07","No","No","No",{"$f":"IF(A802=\"????\",\"\",_xlfn.XLOOKUP('Data FA Lookup'!$D802,'FC Master'!A:A,'FC Master'!Q:Q,'Data FA Lookup'!$D802,0,1))","v":1450690001}]
["1230","145","JvP Social Services-GF",1450700001,"145SocServ0001","1950-01-01","9999-12-31","2021-10-27","No","No","No",{"$f":"IF(A803=\"????\",\"\",_xlfn.XLOOKUP('Data FA Lookup'!$D803,'FC Master'!A:A,'FC Master'!Q:Q,'Data FA Lookup'!$D803,0,1))","v":1450700001}]
["1230","145","JvP CAR-JuvSvs GF",1458000001,"145CARJucSv0001","1950-01-01","9999-12-31","2012-05-15","No","No","No",{"$f":"IF(A804=\"????\",\"\",_xlfn.XLOOKUP('Data FA Lookup'!$D804,'FC Master'!A:A,'FC Master'!Q:Q,'Data FA Lookup'!$D804,0,1))","v":1458000001}]
["1320","147","Emrg Svs Tech and Comm-GF",1470010001,"147TechComm0001","1950-01-01","9999-12-31","2012-05-14","No","No","No",{"$f":"IF(A805=\"????\",\"\",_xlfn.XLOOKUP('Data FA Lookup'!$D805,'FC Master'!A:A,'FC Master'!Q:Q,'Data FA Lookup'!$D805,0,1))","v":1470010001}]
["1320","147","Emrg Svs Tech and Comm-CAPGOG 911 Fees",1470010142,"147TechComm0142","1950-01-01","9999-12-31","2012-05-14","No","No","No",{"$f":"IF(A806=\"????\",\"\",_xlfn.XLOOKUP('Data FA Lookup'!$D806,'FC Master'!A:A,'FC Master'!Q:Q,'Data FA Lookup'!$D806,0,1))","v":1470010142}]
["1320","147","Emrg Svs Tech and Comm-CO 2005",1470014044,"147TechComm4044","1950-01-01","9999-12-31","2012-05-14","No","No","No",{"$f":"IF(A807=\"????\",\"\",_xlfn.XLOOKUP('Data FA Lookup'!$D807,'FC Master'!A:A,'FC Master'!Q:Q,'Data FA Lookup'!$D807,0,1))","v":1470014044}]
["1320","147","Emrg Svs Fire Marshal-GF",1470020001,"147FireMshl0001","1950-01-01","9999-12-31","2012-05-14","No","No","No",{"$f":"IF(A808=\"????\",\"\",_xlfn.XLOOKUP('Data FA Lookup'!$D808,'FC Master'!A:A,'FC Master'!Q:Q,'Data FA Lookup'!$D808,0,1))","v":1470020001}]
["1320","147","Emrg Svs Fire Marshal-LEOSE",1470020118,"147FireMshl0118","1950-01-01","9999-12-31","2012-05-14","No","No","No",{"$f":"IF(A809=\"????\",\"\",_xlfn.XLOOKUP('Data FA Lookup'!$D809,'FC Master'!A:A,'FC Master'!Q:Q,'Data FA Lookup'!$D809,0,1))","v":1470020118}]
["1320","147","Emrg Svs Fire Marshal-Fire Code Fd",1470020134,"147FireMshl0134","1950-01-01","9999-12-31","2012-05-14","No","No","No",{"$f":"IF(A810=\"????\",\"\",_xlfn.XLOOKUP('Data FA Lookup'!$D810,'FC Master'!A:A,'FC Master'!Q:Q,'Data FA Lookup'!$D810,0,1))","v":1470020134}]
["1320","147","Emrg Svs Adm-GF",1470030001,"147Adm0001","1950-01-01","9999-12-31","2012-05-14","No","No","No",{"$f":"IF(A811=\"????\",\"\",_xlfn.XLOOKUP('Data FA Lookup'!$D811,'FC Master'!A:A,'FC Master'!Q:Q,'Data FA Lookup'!$D811,0,1))","v":1470030001}]
["1320","147","Emrg Svs Emergency Mgmt-GF",1470040001,"147EmrgMgmt0001","1950-01-01","9999-12-31","2012-05-14","No","No","No",{"$f":"IF(A812=\"????\",\"\",_xlfn.XLOOKUP('Data FA Lookup'!$D812,'FC Master'!A:A,'FC Master'!Q:Q,'Data FA Lookup'!$D812,0,1))","v":1470040001}]
["1320","147","Emrg Svs Emrg Mgmt-OOG Dv Emrg Mgmt Grnt",1470042017,"147EmrgMgmt2017","1950-01-01","9999-12-31","2012-05-14","Yes","Yes","Yes",{"$f":"IF(A813=\"????\",\"\",_xlfn.XLOOKUP('Data FA Lookup'!$D813,'FC Master'!A:A,'FC Master'!Q:Q,'Data FA Lookup'!$D813,0,1))","v":1470042017}]
["1320","147","Emrg Svs Emrg Mgmt-Tx DPS Grant",1470042028,"147EmrgMgmt2028","1950-01-01","9999-12-31","2012-05-14","Yes","Yes","Yes",{"$f":"IF(A814=\"????\",\"\",_xlfn.XLOOKUP('Data FA Lookup'!$D814,'FC Master'!A:A,'FC Master'!Q:Q,'Data FA Lookup'!$D814,0,1))","v":1470042028}]
["1510","147","Emrg Svs First Responders",1470050001,"147FrstResp0001","1950-01-01","2019-05-23","2012-05-14","No","No","No",{"$f":"IF(A815=\"????\",\"\",_xlfn.XLOOKUP('Data FA Lookup'!$D815,'FC Master'!A:A,'FC Master'!Q:Q,'Data FA Lookup'!$D815,0,1))","v":1470050001}]
["1510","147","Emrg Svs First Responders",1470050001,"147FrstResp0001","2019-05-24","9999-12-31","2012-05-14","Yes","Yes","Yes",{"$f":"IF(A816=\"????\",\"\",_xlfn.XLOOKUP('Data FA Lookup'!$D816,'FC Master'!A:A,'FC Master'!Q:Q,'Data FA Lookup'!$D816,0,1))","v":1470050001}]
["1320","147","Emrg Svs Emergency Event-GF",1470060001,"147EmrgEvent0001","1950-01-01","9999-12-31","2020-03-04","No","No","No",{"$f":"IF(A817=\"????\",\"\",_xlfn.XLOOKUP('Data FA Lookup'!$D817,'FC Master'!A:A,'FC Master'!Q:Q,'Data FA Lookup'!$D817,0,1))","v":1470060001}]
["1320","147","Emrg Svs CAR-EmrgMgmt GF",1478000001,"147CAREmrgMgmt0001","1950-01-01","9999-12-31","2012-05-15","No","No","No",{"$f":"IF(A818=\"????\",\"\",_xlfn.XLOOKUP('Data FA Lookup'!$D818,'FC Master'!A:A,'FC Master'!Q:Q,'Data FA Lookup'!$D818,0,1))","v":1478000001}]
["1710","149","TNR Administrative Services-GF",1490010001,"149Adm0001","1950-01-01","9999-12-31","2012-05-14","No","No","No",{"$f":"IF(A819=\"????\",\"\",_xlfn.XLOOKUP('Data FA Lookup'!$D819,'FC Master'!A:A,'FC Master'!Q:Q,'Data FA Lookup'!$D819,0,1))","v":1490010001}]
["1710","149","TNR Administrative Services-RdBg Fd",1490010145,"149Adm0145","1950-01-01","9999-12-31","2012-05-14","No","No","No",{"$f":"IF(A820=\"????\",\"\",_xlfn.XLOOKUP('Data FA Lookup'!$D820,'FC Master'!A:A,'FC Master'!Q:Q,'Data FA Lookup'!$D820,0,1))","v":1490010145}]
["1710","149","TNR Administrative Services-CCPF",1490014050,"149Adm4050","1950-01-01","9999-12-31","2012-05-14","No","No","No",{"$f":"IF(A821=\"????\",\"\",_xlfn.XLOOKUP('Data FA Lookup'!$D821,'FC Master'!A:A,'FC Master'!Q:Q,'Data FA Lookup'!$D821,0,1))","v":1490014050}]
["1710","149","TNR Administrative Services-CCPF",1490015001,"149Adm5001","1950-01-01","9999-12-31","2015-10-14","No","No","No",{"$f":"IF(A822=\"????\",\"\",_xlfn.XLOOKUP('Data FA Lookup'!$D822,'FC Master'!A:A,'FC Master'!Q:Q,'Data FA Lookup'!$D822,0,1))","v":1490015001}]
["1710","149","TNR Central Files-GF",1490020001,"149CtlFiles0001","1950-01-01","9999-12-31","2012-05-14","No","No","No",{"$f":"IF(A823=\"????\",\"\",_xlfn.XLOOKUP('Data FA Lookup'!$D823,'FC Master'!A:A,'FC Master'!Q:Q,'Data FA Lookup'!$D823,0,1))","v":1490020001}]
["1710","149","TNR Central Files-RdBg Fd",1490020145,"149CtlFiles0145","1950-01-01","9999-12-31","2012-05-14","No","No","No",{"$f":"IF(A824=\"????\",\"\",_xlfn.XLOOKUP('Data FA Lookup'!$D824,'FC Master'!A:A,'FC Master'!Q:Q,'Data FA Lookup'!$D824,0,1))","v":1490020145}]
["1710","149","TNR Executive Office-GF",1490030001,"149ExcOfc0001","1950-01-01","9999-12-31","2012-05-14","No","No","No",{"$f":"IF(A825=\"????\",\"\",_xlfn.XLOOKUP('Data FA Lookup'!$D825,'FC Master'!A:A,'FC Master'!Q:Q,'Data FA Lookup'!$D825,0,1))","v":1490030001}]
["1710","149","TNR Executive Office-RdBg Fd",1490030145,"149ExcOfc0145","1950-01-01","9999-12-31","2012-05-14","No","No","No",{"$f":"IF(A826=\"????\",\"\",_xlfn.XLOOKUP('Data FA Lookup'!$D826,'FC Master'!A:A,'FC Master'!Q:Q,'Data FA Lookup'!$D826,0,1))","v":1490030145}]
["1710","149","TNR Human Resources-GF",1490040001,"149HumRes0001","1950-01-01","9999-12-31","2012-05-14","No","No","No",{"$f":"IF(A827=\"????\",\"\",_xlfn.XLOOKUP('Data FA Lookup'!$D827,'FC Master'!A:A,'FC Master'!Q:Q,'Data FA Lookup'!$D827,0,1))","v":1490040001}]
["1710","149","TNR Human Resources-RdBg Fd",1490040145,"149HumRes0145","1950-01-01","9999-12-31","2012-05-14","No","No","No",{"$f":"IF(A828=\"????\",\"\",_xlfn.XLOOKUP('Data FA Lookup'!$D828,'FC Master'!A:A,'FC Master'!Q:Q,'Data FA Lookup'!$D828,0,1))","v":1490040145}]
["1710","149","TNR Mailroom Services-GF",1490050001,"149Mailroom0001","1950-01-01","9999-12-31","2012-05-14","No","No","No",{"$f":"IF(A829=\"????\",\"\",_xlfn.XLOOKUP('Data FA Lookup'!$D829,'FC Master'!A:A,'FC Master'!Q:Q,'Data FA Lookup'!$D829,0,1))","v":1490050001}]
["1710","149","TNR Mailroom Services-RdBg Fd",1490050145,"149Mailroom0145","1950-01-01","9999-12-31","2012-05-14","No","No","No",{"$f":"IF(A830=\"????\",\"\",_xlfn.XLOOKUP('Data FA Lookup'!$D830,'FC Master'!A:A,'FC Master'!Q:Q,'Data FA Lookup'!$D830,0,1))","v":1490050145}]
["1710","149","TNR Financial Services-GF",1490060001,"149FinSvs0001","1950-01-01","9999-12-31","2012-05-14","No","No","No",{"$f":"IF(A831=\"????\",\"\",_xlfn.XLOOKUP('Data FA Lookup'!$D831,'FC Master'!A:A,'FC Master'!Q:Q,'Data FA Lookup'!$D831,0,1))","v":1490060001}]
["1710","149","TNR Financial Services-RdBg Fd",1490060145,"149FinSvs0145","1950-01-01","9999-12-31","2012-05-14","No","No","No",{"$f":"IF(A832=\"????\",\"\",_xlfn.XLOOKUP('Data FA Lookup'!$D832,'FC Master'!A:A,'FC Master'!Q:Q,'Data FA Lookup'!$D832,0,1))","v":1490060145}]
["1710","149","TNR Risk/Safety-GF",1490070001,"149RiskSafety0001","1950-01-01","9999-12-31","2012-05-14","No","No","No",{"$f":"IF(A833=\"????\",\"\",_xlfn.XLOOKUP('Data FA Lookup'!$D833,'FC Master'!A:A,'FC Master'!Q:Q,'Data FA Lookup'!$D833,0,1))","v":1490070001}]
["1710","149","TNR Risk/Safety-RdBg Fd",1490070145,"149RiskSafety0145","1950-01-01","9999-12-31","2012-05-14","No","No","No",{"$f":"IF(A834=\"????\",\"\",_xlfn.XLOOKUP('Data FA Lookup'!$D834,'FC Master'!A:A,'FC Master'!Q:Q,'Data FA Lookup'!$D834,0,1))","v":1490070145}]
["1710","149","TNR Risk/Safety-CCPF",1490074050,"149RiskSafety4050","1950-01-01","9999-12-31","2012-05-14","No","No","No",{"$f":"IF(A835=\"????\",\"\",_xlfn.XLOOKUP('Data FA Lookup'!$D835,'FC Master'!A:A,'FC Master'!Q:Q,'Data FA Lookup'!$D835,0,1))","v":1490074050}]
["1710","149","TNR Risk/Safety-CCPF",1490075001,"149RiskSafety5001","1950-01-01","9999-12-31","2015-10-14","No","No","No",{"$f":"IF(A836=\"????\",\"\",_xlfn.XLOOKUP('Data FA Lookup'!$D836,'FC Master'!A:A,'FC Master'!Q:Q,'Data FA Lookup'!$D836,0,1))","v":1490075001}]
["1710","149","TNR Comprehensive Planning-GF",1490080001,"149CompPlng0001","1950-01-01","9999-12-31","2012-05-14","No","No","No",{"$f":"IF(A837=\"????\",\"\",_xlfn.XLOOKUP('Data FA Lookup'!$D837,'FC Master'!A:A,'FC Master'!Q:Q,'Data FA Lookup'!$D837,0,1))","v":1490080001}]
["1710","149","TNR Comprehensive Planning-RdBg Fd",1490080145,"149CompPlng0145","1950-01-01","9999-12-31","2012-05-14","No","No","No",{"$f":"IF(A838=\"????\",\"\",_xlfn.XLOOKUP('Data FA Lookup'!$D838,'FC Master'!A:A,'FC Master'!Q:Q,'Data FA Lookup'!$D838,0,1))","v":1490080145}]
["1710","149","TNR GIS-GF",1490090001,"149GIS0001","1950-01-01","9999-12-31","2012-05-14","No","No","No",{"$f":"IF(A839=\"????\",\"\",_xlfn.XLOOKUP('Data FA Lookup'!$D839,'FC Master'!A:A,'FC Master'!Q:Q,'Data FA Lookup'!$D839,0,1))","v":1490090001}]
["1710","149","TNR GIS-RdBg Fd",1490090145,"149GIS0145","1950-01-01","9999-12-31","2012-05-14","No","No","No",{"$f":"IF(A840=\"????\",\"\",_xlfn.XLOOKUP('Data FA Lookup'!$D840,'FC Master'!A:A,'FC Master'!Q:Q,'Data FA Lookup'!$D840,0,1))","v":1490090145}]
["1710","149","TNR Planning-GF",1490100001,"149Planning0001","1950-01-01","9999-12-31","2012-05-14","No","No","No",{"$f":"IF(A841=\"????\",\"\",_xlfn.XLOOKUP('Data FA Lookup'!$D841,'FC Master'!A:A,'FC Master'!Q:Q,'Data FA Lookup'!$D841,0,1))","v":1490100001}]
["1710","149","TNR Planning-RdBg Fd",1490100145,"149Planning0145","1950-01-01","9999-12-31","2012-05-14","No","No","No",{"$f":"IF(A842=\"????\",\"\",_xlfn.XLOOKUP('Data FA Lookup'!$D842,'FC Master'!A:A,'FC Master'!Q:Q,'Data FA Lookup'!$D842,0,1))","v":1490100145}]
["1750","149","TNR Environmental Quality-GF",1490110001,"149EnvQlty0001","1950-01-01","9999-12-31","2012-05-14","No","No","No",{"$f":"IF(A843=\"????\",\"\",_xlfn.XLOOKUP('Data FA Lookup'!$D843,'FC Master'!A:A,'FC Master'!Q:Q,'Data FA Lookup'!$D843,0,1))","v":1490110001}]
["1750","149","TNR Environmental Quality-700 Lavaca-GF",1490110002,"149EnvQlty0002","1950-01-01","9999-12-31","2014-07-16","No","No","No",{"$f":"IF(A844=\"????\",\"\",_xlfn.XLOOKUP('Data FA Lookup'!$D844,'FC Master'!A:A,'FC Master'!Q:Q,'Data FA Lookup'!$D844,0,1))","v":1490110002}]
["1750","149","TNR Environmental Quality-RdBg Fd",1490110145,"149EnvQlty0145","1950-01-01","9999-12-31","2012-05-14","No","No","No",{"$f":"IF(A845=\"????\",\"\",_xlfn.XLOOKUP('Data FA Lookup'!$D845,'FC Master'!A:A,'FC Master'!Q:Q,'Data FA Lookup'!$D845,0,1))","v":1490110145}]
["1750","149","TNR Environmental Quality-CAPCOG Grant",1490112002,"149EnvQlty2002","1950-01-01","9999-12-31","2012-05-14","Yes","Yes","Yes",{"$f":"IF(A846=\"????\",\"\",_xlfn.XLOOKUP('Data FA Lookup'!$D846,'FC Master'!A:A,'FC Master'!Q:Q,'Data FA Lookup'!$D846,0,1))","v":1490112002}]
["1750","149","TNR Environmental Quality-CAMPO Grant",1490112003,"149EnvQlty2003","1950-01-01","9999-12-31","2012-05-14","Yes","Yes","Yes",{"$f":"IF(A847=\"????\",\"\",_xlfn.XLOOKUP('Data FA Lookup'!$D847,'FC Master'!A:A,'FC Master'!Q:Q,'Data FA Lookup'!$D847,0,1))","v":1490112003}]
["1750","149","TNR Environmental Quality-TCEQ Grant",1490112025,"149EnvQlty2025","1950-01-01","9999-12-31","2012-05-14","Yes","Yes","Yes",{"$f":"IF(A848=\"????\",\"\",_xlfn.XLOOKUP('Data FA Lookup'!$D848,'FC Master'!A:A,'FC Master'!Q:Q,'Data FA Lookup'!$D848,0,1))","v":1490112025}]
["1750","149","TNR Natural Resources-BCCP Grant_Bond",1490120000,"149NatRsrcs0000","1950-01-01","9999-12-31","2015-12-10","No","No","No",{"$f":"IF(A849=\"????\",\"\",_xlfn.XLOOKUP('Data FA Lookup'!$D849,'FC Master'!A:A,'FC Master'!Q:Q,'Data FA Lookup'!$D849,0,1))","v":1490120000}]
["1750","149","TNR Natural Resources-GF",1490120001,"149NatRsrcs0001","1950-01-01","9999-12-31","2012-05-14","No","No","No",{"$f":"IF(A850=\"????\",\"\",_xlfn.XLOOKUP('Data FA Lookup'!$D850,'FC Master'!A:A,'FC Master'!Q:Q,'Data FA Lookup'!$D850,0,1))","v":1490120001}]
["1750","149","TNR Natural Resources-BCCP",1490120115,"149NatRsrcs0115","1950-01-01","9999-12-31","2012-05-14","No","No","No",{"$f":"IF(A851=\"????\",\"\",_xlfn.XLOOKUP('Data FA Lookup'!$D851,'FC Master'!A:A,'FC Master'!Q:Q,'Data FA Lookup'!$D851,0,1))","v":1490120115}]
["1750","149","TNR Natural Resources-TPWD Fed Cap Grant",1490122038,"149NatRsrcs2038","1950-01-01","9999-12-31","2012-05-14","Yes","Yes","Yes",{"$f":"IF(A852=\"????\",\"\",_xlfn.XLOOKUP('Data FA Lookup'!$D852,'FC Master'!A:A,'FC Master'!Q:Q,'Data FA Lookup'!$D852,0,1))","v":1490122038}]
["1750","149","TNR Natural Resources-Cap Proj",1490124034,"149NatRsrcs4034","1950-01-01","9999-12-31","2012-05-14","No","No","No",{"$f":"IF(A853=\"????\",\"\",_xlfn.XLOOKUP('Data FA Lookup'!$D853,'FC Master'!A:A,'FC Master'!Q:Q,'Data FA Lookup'!$D853,0,1))","v":1490124034}]
["1750","149","TNR Development Services-GF",1490130001,"149DevSvs0001","1950-01-01","9999-12-31","2012-05-14","No","No","No",{"$f":"IF(A854=\"????\",\"\",_xlfn.XLOOKUP('Data FA Lookup'!$D854,'FC Master'!A:A,'FC Master'!Q:Q,'Data FA Lookup'!$D854,0,1))","v":1490130001}]
["1750","149","TNR Development Svs-Northridge Grant",1490132014,"149DevSvs2014","1950-01-01","9999-12-31","2012-05-14","Yes","Yes","Yes",{"$f":"IF(A855=\"????\",\"\",_xlfn.XLOOKUP('Data FA Lookup'!$D855,'FC Master'!A:A,'FC Master'!Q:Q,'Data FA Lookup'!$D855,0,1))","v":1490132014}]
["1750","149","TNR Development Services-Tx DRA Grant",1490132029,"149DevSvs2029","1950-01-01","9999-12-31","2012-05-14","Yes","Yes","Yes",{"$f":"IF(A856=\"????\",\"\",_xlfn.XLOOKUP('Data FA Lookup'!$D856,'FC Master'!A:A,'FC Master'!Q:Q,'Data FA Lookup'!$D856,0,1))","v":1490132029}]
["1750","149","TNR Development Svs-Tx Water Dev Bd Grnt",1490132040,"149DevSvs2040","1950-01-01","9999-12-31","2012-05-14","Yes","Yes","Yes",{"$f":"IF(A857=\"????\",\"\",_xlfn.XLOOKUP('Data FA Lookup'!$D857,'FC Master'!A:A,'FC Master'!Q:Q,'Data FA Lookup'!$D857,0,1))","v":1490132040}]
["1750","149","TNR Development Services-HUD Grant",1490132054,"149DevSvs2054","1950-01-01","9999-12-31","2012-05-14","Yes","Yes","Yes",{"$f":"IF(A858=\"????\",\"\",_xlfn.XLOOKUP('Data FA Lookup'!$D858,'FC Master'!A:A,'FC Master'!Q:Q,'Data FA Lookup'!$D858,0,1))","v":1490132054}]
["1750","149","TNR Development Svs-Willims Co Grant",1490132056,"149DevSvs2056","1950-01-01","9999-12-31","2012-05-14","Yes","Yes","Yes",{"$f":"IF(A859=\"????\",\"\",_xlfn.XLOOKUP('Data FA Lookup'!$D859,'FC Master'!A:A,'FC Master'!Q:Q,'Data FA Lookup'!$D859,0,1))","v":1490132056}]
["1750","149","TNR Development Svcs-TX Water Dev Board",1490132092,"149DevSvs2092","1900-01-01","9999-12-31","2014-08-15","Yes","Yes","Yes",{"$f":"IF(A860=\"????\",\"\",_xlfn.XLOOKUP('Data FA Lookup'!$D860,'FC Master'!A:A,'FC Master'!Q:Q,'Data FA Lookup'!$D860,0,1))","v":1490132092}]
["1750","149","TNR Development Services-Cap Proj",1490134057,"149DevSvs4057","1950-01-01","9999-12-31","2012-05-14","No","No","No",{"$f":"IF(A861=\"????\",\"\",_xlfn.XLOOKUP('Data FA Lookup'!$D861,'FC Master'!A:A,'FC Master'!Q:Q,'Data FA Lookup'!$D861,0,1))","v":1490134057}]
["1140","149","TNR East Service Center-GF",1490140001,"149ESvCenter0001","1950-01-01","9999-12-31","2012-05-14","No","No","No",{"$f":"IF(A862=\"????\",\"\",_xlfn.XLOOKUP('Data FA Lookup'!$D862,'FC Master'!A:A,'FC Master'!Q:Q,'Data FA Lookup'!$D862,0,1))","v":1490140001}]
["1140","149","TNR East Service Center-Cap Proj",1490144056,"149ESvCenter4056","1950-01-01","9999-12-31","2012-05-14","No","No","No",{"$f":"IF(A863=\"????\",\"\",_xlfn.XLOOKUP('Data FA Lookup'!$D863,'FC Master'!A:A,'FC Master'!Q:Q,'Data FA Lookup'!$D863,0,1))","v":1490144056}]
["1730","149","TNR Stormwater Management-Cap Proj",1490150000,"149StmwtMgmt0000","1950-01-01","9999-12-31","2012-05-14","No","No","No",{"$f":"IF(A864=\"????\",\"\",_xlfn.XLOOKUP('Data FA Lookup'!$D864,'FC Master'!A:A,'FC Master'!Q:Q,'Data FA Lookup'!$D864,0,1))","v":1490150000}]
["1730","149","TNR Stormwater Management-GF",1490150001,"149StmwtMgmt0001","1950-01-01","9999-12-31","2012-05-14","No","No","No",{"$f":"IF(A865=\"????\",\"\",_xlfn.XLOOKUP('Data FA Lookup'!$D865,'FC Master'!A:A,'FC Master'!Q:Q,'Data FA Lookup'!$D865,0,1))","v":1490150001}]
["1730","149","TNR Stormwater Mgmt-Northridge Grant",1490152014,"149StmwtMgmt2014","1950-01-01","9999-12-31","2012-05-14","Yes","Yes","Yes",{"$f":"IF(A866=\"????\",\"\",_xlfn.XLOOKUP('Data FA Lookup'!$D866,'FC Master'!A:A,'FC Master'!Q:Q,'Data FA Lookup'!$D866,0,1))","v":1490152014}]
["1730","149","TNR StormwaterMgmt-OOG Dv Emrg Mgmt Grnt",1490152017,"149StmwtMgmt2017","1950-01-01","9999-12-31","2012-05-14","Yes","Yes","Yes",{"$f":"IF(A867=\"????\",\"\",_xlfn.XLOOKUP('Data FA Lookup'!$D867,'FC Master'!A:A,'FC Master'!Q:Q,'Data FA Lookup'!$D867,0,1))","v":1490152017}]
["1730","149","TNR Stormwater Mgmt-Tx DPS Cap Grnt",1490152027,"149StmwtMgmt2027","1950-01-01","9999-12-31","2012-05-14","Yes","Yes","Yes",{"$f":"IF(A868=\"????\",\"\",_xlfn.XLOOKUP('Data FA Lookup'!$D868,'FC Master'!A:A,'FC Master'!Q:Q,'Data FA Lookup'!$D868,0,1))","v":1490152027}]
["1730","149","TNR StormwaterMgmt-TxWatDev Cap Grnt",1490152041,"149StmwtMgmt2041","1950-01-01","9999-12-31","2012-05-14","Yes","Yes","Yes",{"$f":"IF(A869=\"????\",\"\",_xlfn.XLOOKUP('Data FA Lookup'!$D869,'FC Master'!A:A,'FC Master'!Q:Q,'Data FA Lookup'!$D869,0,1))","v":1490152041}]
["1760","149","TNR Onsite Sewage Facilities-GF",1490160001,"149OnStSewage0001","1950-01-01","9999-12-31","2012-05-14","No","No","No",{"$f":"IF(A870=\"????\",\"\",_xlfn.XLOOKUP('Data FA Lookup'!$D870,'FC Master'!A:A,'FC Master'!Q:Q,'Data FA Lookup'!$D870,0,1))","v":1490160001}]
["1740","149","TNR RM-GIS-RdBg Fd",1490170145,"149RMGIS0145","1950-01-01","9999-12-31","2012-05-14","No","No","No",{"$f":"IF(A871=\"????\",\"\",_xlfn.XLOOKUP('Data FA Lookup'!$D871,'FC Master'!A:A,'FC Master'!Q:Q,'Data FA Lookup'!$D871,0,1))","v":1490170145}]
["1710","149","TNR Survey-GF",1490180001,"149Survey0001","1950-01-01","9999-12-31","2012-05-14","No","No","No",{"$f":"IF(A872=\"????\",\"\",_xlfn.XLOOKUP('Data FA Lookup'!$D872,'FC Master'!A:A,'FC Master'!Q:Q,'Data FA Lookup'!$D872,0,1))","v":1490180001}]
["1710","149","TNR Survey-RdBg Fd",1490180145,"149Survey0145","1950-01-01","9999-12-31","2012-05-14","No","No","No",{"$f":"IF(A873=\"????\",\"\",_xlfn.XLOOKUP('Data FA Lookup'!$D873,'FC Master'!A:A,'FC Master'!Q:Q,'Data FA Lookup'!$D873,0,1))","v":1490180145}]
["1710","149","TNR Rd Capacity and Bg Rplmt-Cap Proj",1490190000,"149RdCapBgRplmt0000","1950-01-01","9999-12-31","2012-05-14","No","No","No",{"$f":"IF(A874=\"????\",\"\",_xlfn.XLOOKUP('Data FA Lookup'!$D874,'FC Master'!A:A,'FC Master'!Q:Q,'Data FA Lookup'!$D874,0,1))","v":1490190000}]
["1710","149","TNR Rd Capacity and Bg Rplmt-GF",1490190001,"149RdCapBgRplmt0001","1950-01-01","9999-12-31","2012-05-14","No","No","No",{"$f":"IF(A875=\"????\",\"\",_xlfn.XLOOKUP('Data FA Lookup'!$D875,'FC Master'!A:A,'FC Master'!Q:Q,'Data FA Lookup'!$D875,0,1))","v":1490190001}]
["1710","149","TNR Rd Capacity and Bg Rplmt-RdBg Fd",1490190145,"149RdCapBgRplmt0145","1950-01-01","9999-12-31","2012-05-14","No","No","No",{"$f":"IF(A876=\"????\",\"\",_xlfn.XLOOKUP('Data FA Lookup'!$D876,'FC Master'!A:A,'FC Master'!Q:Q,'Data FA Lookup'!$D876,0,1))","v":1490190145}]
["1710","149","TNR Rd Capacity & Bg Rplmt-UNT Fed Grant",1490192030,"149RdCapBgRplmt2030","1950-01-01","9999-12-31","2012-05-14","Yes","Yes","Yes",{"$f":"IF(A877=\"????\",\"\",_xlfn.XLOOKUP('Data FA Lookup'!$D877,'FC Master'!A:A,'FC Master'!Q:Q,'Data FA Lookup'!$D877,0,1))","v":1490192030}]
["1710","149","TNR Rd Capacity & Bg Rplmt-HUD Grant",1490192054,"149RdCapBgRplmt2054","1950-01-01","9999-12-31","2012-05-14","Yes","Yes","Yes",{"$f":"IF(A878=\"????\",\"\",_xlfn.XLOOKUP('Data FA Lookup'!$D878,'FC Master'!A:A,'FC Master'!Q:Q,'Data FA Lookup'!$D878,0,1))","v":1490192054}]
["1710","149","TNR Rd Capacity and Bg Rplmt-TNRSidewalk",1490195003,"149RdCapBgRplmt5003","1950-01-01","9999-12-31","2018-11-07","No","No","No",{"$f":"IF(A879=\"????\",\"\",_xlfn.XLOOKUP('Data FA Lookup'!$D879,'FC Master'!A:A,'FC Master'!Q:Q,'Data FA Lookup'!$D879,0,1))","v":1490195003}]
["1710","149","TNR Rd & Bridge Maintenance-Cap Proj",1490200000,"149RdBgMnt0000","1950-01-01","9999-12-31","2012-05-14","No","No","No",{"$f":"IF(A880=\"????\",\"\",_xlfn.XLOOKUP('Data FA Lookup'!$D880,'FC Master'!A:A,'FC Master'!Q:Q,'Data FA Lookup'!$D880,0,1))","v":1490200000}]
["1710","149","TNR Rd & Bridge Maintenance-GF",1490200001,"149RdBgMnt0001","1950-01-01","9999-12-31","2012-05-14","No","No","No",{"$f":"IF(A881=\"????\",\"\",_xlfn.XLOOKUP('Data FA Lookup'!$D881,'FC Master'!A:A,'FC Master'!Q:Q,'Data FA Lookup'!$D881,0,1))","v":1490200001}]
["1710","149","TNR Rd & Bridge Maintenance-RdBg Fd",1490200145,"149RdBgMnt0145","1950-01-01","9999-12-31","2012-05-14","No","No","No",{"$f":"IF(A882=\"????\",\"\",_xlfn.XLOOKUP('Data FA Lookup'!$D882,'FC Master'!A:A,'FC Master'!Q:Q,'Data FA Lookup'!$D882,0,1))","v":1490200145}]
["1710","149","TNR Rd & Bridge Maintenance-CMTA Grant",1490202004,"149RdBgMnt2004","1950-01-01","9999-12-31","2012-05-14","Yes","Yes","Yes",{"$f":"IF(A883=\"????\",\"\",_xlfn.XLOOKUP('Data FA Lookup'!$D883,'FC Master'!A:A,'FC Master'!Q:Q,'Data FA Lookup'!$D883,0,1))","v":1490202004}]
["1710","149","TNR Rd & Bridge Mnt-TxDOT St Cap Grnt",1490202032,"149RdBgMnt2032","1950-01-01","9999-12-31","2012-05-14","Yes","No","Yes",{"$f":"IF(A884=\"????\",\"\",_xlfn.XLOOKUP('Data FA Lookup'!$D884,'FC Master'!A:A,'FC Master'!Q:Q,'Data FA Lookup'!$D884,0,1))","v":1490202032}]
["1710","149","TNR Rd & Bridge Mnt-Tx Water Dev Board G",1490202040,"149RdBgMnt2040","1950-01-01","9999-12-31","2012-05-14","Yes","Yes","Yes",{"$f":"IF(A885=\"????\",\"\",_xlfn.XLOOKUP('Data FA Lookup'!$D885,'FC Master'!A:A,'FC Master'!Q:Q,'Data FA Lookup'!$D885,0,1))","v":1490202040}]
["1710","149","TNR Rd & Bridge Maintenance-CMTA Grant",1490202071,"149RdBgMnt2071","1950-01-01","9999-12-31","2012-05-14","No","No","Yes",{"$f":"IF(A886=\"????\",\"\",_xlfn.XLOOKUP('Data FA Lookup'!$D886,'FC Master'!A:A,'FC Master'!Q:Q,'Data FA Lookup'!$D886,0,1))","v":1490202071}]
["1710","149","TNR Rd & Bridge Mnt-TxDOT Fed Cap Grnt",1490202075,"149RdBgMnt2075","1950-01-01","9999-12-31","2012-05-14","Yes","Yes","Yes",{"$f":"IF(A887=\"????\",\"\",_xlfn.XLOOKUP('Data FA Lookup'!$D887,'FC Master'!A:A,'FC Master'!Q:Q,'Data FA Lookup'!$D887,0,1))","v":1490202075}]
["1710","149","TNR Sign Shop Services-GF",1490210001,"149SignShopSvs0001","1950-01-01","9999-12-31","2012-05-14","No","No","No",{"$f":"IF(A888=\"????\",\"\",_xlfn.XLOOKUP('Data FA Lookup'!$D888,'FC Master'!A:A,'FC Master'!Q:Q,'Data FA Lookup'!$D888,0,1))","v":1490210001}]
["1710","149","TNR Sign Shop Services-RdBg Fd",1490210145,"149SignShopSvs0145","1950-01-01","9999-12-31","2012-05-14","No","No","No",{"$f":"IF(A889=\"????\",\"\",_xlfn.XLOOKUP('Data FA Lookup'!$D889,'FC Master'!A:A,'FC Master'!Q:Q,'Data FA Lookup'!$D889,0,1))","v":1490210145}]
["1630","149","TNR Park Services-Cap Proj",1490220000,"149ParkSvs0000","1950-01-01","9999-12-31","2012-05-14","No","No","No",{"$f":"IF(A890=\"????\",\"\",_xlfn.XLOOKUP('Data FA Lookup'!$D890,'FC Master'!A:A,'FC Master'!Q:Q,'Data FA Lookup'!$D890,0,1))","v":1490220000}]
["1630","149","TNR Park Services-GF",1490220001,"149ParkSvs0001","1950-01-01","9999-12-31","2012-05-14","No","No","No",{"$f":"IF(A891=\"????\",\"\",_xlfn.XLOOKUP('Data FA Lookup'!$D891,'FC Master'!A:A,'FC Master'!Q:Q,'Data FA Lookup'!$D891,0,1))","v":1490220001}]
["1630","149","TNR Park Services-LCRA Fd",1490220109,"149ParkSvs0109","1950-01-01","9999-12-31","2012-05-14","No","No","No",{"$f":"IF(A892=\"????\",\"\",_xlfn.XLOOKUP('Data FA Lookup'!$D892,'FC Master'!A:A,'FC Master'!Q:Q,'Data FA Lookup'!$D892,0,1))","v":1490220109}]
["1630","149","TNR Park Services-Mary Quilan Fd",1490220123,"149ParkSvs0123","1950-01-01","9999-12-31","2012-05-14","No","No","No",{"$f":"IF(A893=\"????\",\"\",_xlfn.XLOOKUP('Data FA Lookup'!$D893,'FC Master'!A:A,'FC Master'!Q:Q,'Data FA Lookup'!$D893,0,1))","v":1490220123}]
["1630","149","TNR Park Services-TxDOT St Cap Grnt",1490222032,"149ParkSvs2032","1950-01-01","9999-12-31","2012-05-14","Yes","No","Yes",{"$f":"IF(A894=\"????\",\"\",_xlfn.XLOOKUP('Data FA Lookup'!$D894,'FC Master'!A:A,'FC Master'!Q:Q,'Data FA Lookup'!$D894,0,1))","v":1490222032}]
["1630","149","TNR Park Services-TPW Dpt St Cap Grant",1490222037,"149ParkSvs2037","1950-01-01","9999-12-31","2012-05-14","Yes","Yes","Yes",{"$f":"IF(A895=\"????\",\"\",_xlfn.XLOOKUP('Data FA Lookup'!$D895,'FC Master'!A:A,'FC Master'!Q:Q,'Data FA Lookup'!$D895,0,1))","v":1490222037}]
["1630","149","TNR Park Services-CMTA Grant",1490222071,"149ParkSvs2071","1950-01-01","9999-12-31","2012-05-14","Yes","Yes","Yes",{"$f":"IF(A896=\"????\",\"\",_xlfn.XLOOKUP('Data FA Lookup'!$D896,'FC Master'!A:A,'FC Master'!Q:Q,'Data FA Lookup'!$D896,0,1))","v":1490222071}]
["1630","149","TNR Park Services-TxDOT Fed Cap Grnt",1490222075,"149ParkSvs2075","1950-01-01","9999-12-31","2012-05-14","Yes","Yes","Yes",{"$f":"IF(A897=\"????\",\"\",_xlfn.XLOOKUP('Data FA Lookup'!$D897,'FC Master'!A:A,'FC Master'!Q:Q,'Data FA Lookup'!$D897,0,1))","v":1490222075}]
["1630","149","TNR Park Rangers-GF",1490230001,"149ParkRngrs0001","1950-01-01","9999-12-31","2012-05-14","No","No","No",{"$f":"IF(A898=\"????\",\"\",_xlfn.XLOOKUP('Data FA Lookup'!$D898,'FC Master'!A:A,'FC Master'!Q:Q,'Data FA Lookup'!$D898,0,1))","v":1490230001}]
["1710","149","TNR Customer Services-GF",1490250001,"149CustSvs0001","1950-01-01","9999-12-31","2012-05-14","No","No","No",{"$f":"IF(A899=\"????\",\"\",_xlfn.XLOOKUP('Data FA Lookup'!$D899,'FC Master'!A:A,'FC Master'!Q:Q,'Data FA Lookup'!$D899,0,1))","v":1490250001}]
["1710","149","TNR Customer Services-RdBg Fd",1490250145,"149CustSvs0145","1950-01-01","9999-12-31","2012-05-14","No","No","No",{"$f":"IF(A900=\"????\",\"\",_xlfn.XLOOKUP('Data FA Lookup'!$D900,'FC Master'!A:A,'FC Master'!Q:Q,'Data FA Lookup'!$D900,0,1))","v":1490250145}]
["1710","149","TNR Child Safety Pg-GF",1490260001,"149ChildSafety0001","1950-01-01","9999-12-31","2012-05-14","No","No","No",{"$f":"IF(A901=\"????\",\"\",_xlfn.XLOOKUP('Data FA Lookup'!$D901,'FC Master'!A:A,'FC Master'!Q:Q,'Data FA Lookup'!$D901,0,1))","v":1490260001}]
["1630","149","TNR Parks Cntrt Agencies-Sbdvn Pkld Fd",1490274049,"149PksCntrAgy4049","1950-01-01","9999-12-31","2012-05-14","No","No","No",{"$f":"IF(A902=\"????\",\"\",_xlfn.XLOOKUP('Data FA Lookup'!$D902,'FC Master'!A:A,'FC Master'!Q:Q,'Data FA Lookup'!$D902,0,1))","v":1490274049}]
["1630","149","TNR Parks Cntrt Agencies-Sbdvn Pkld Fd",1490275000,"149PksCntrAgy5000","1950-01-01","9999-12-31","2015-09-30","No","No","No",{"$f":"IF(A903=\"????\",\"\",_xlfn.XLOOKUP('Data FA Lookup'!$D903,'FC Master'!A:A,'FC Master'!Q:Q,'Data FA Lookup'!$D903,0,1))","v":1490275000}]
["1710","149","TNR Services To Othr Govts-GF",1490280001,"149SvtoOthrGov0001","1950-01-01","9999-12-31","2012-05-14","No","No","No",{"$f":"IF(A904=\"????\",\"\",_xlfn.XLOOKUP('Data FA Lookup'!$D904,'FC Master'!A:A,'FC Master'!Q:Q,'Data FA Lookup'!$D904,0,1))","v":1490280001}]
["1710","149","TNR Intergov Agreements-Roads-CCPF",1490294050,"149IntGovAgrmt4050","1950-01-01","9999-12-31","2012-05-14","No","No","No",{"$f":"IF(A905=\"????\",\"\",_xlfn.XLOOKUP('Data FA Lookup'!$D905,'FC Master'!A:A,'FC Master'!Q:Q,'Data FA Lookup'!$D905,0,1))","v":1490294050}]
["1710","149","TNR Intergov Agreements-Roads-CCPF",1490295001,"149IntGovAgrmt5001","1950-01-01","9999-12-31","2015-09-30","No","No","No",{"$f":"IF(A906=\"????\",\"\",_xlfn.XLOOKUP('Data FA Lookup'!$D906,'FC Master'!A:A,'FC Master'!Q:Q,'Data FA Lookup'!$D906,0,1))","v":1490295001}]
["1710","149","TNR Private Agency Contract-Roads-CCPF",1490304050,"149PvtAgncyCnt4050","1950-01-01","9999-12-31","2012-05-14","No","No","No",{"$f":"IF(A907=\"????\",\"\",_xlfn.XLOOKUP('Data FA Lookup'!$D907,'FC Master'!A:A,'FC Master'!Q:Q,'Data FA Lookup'!$D907,0,1))","v":1490304050}]
["1710","149","TNR Private Agency Contract-Roads-CCPF",1490305001,"149PvtAgncyCnt5001","1950-01-01","9999-12-31","2015-09-30","No","No","No",{"$f":"IF(A908=\"????\",\"\",_xlfn.XLOOKUP('Data FA Lookup'!$D908,'FC Master'!A:A,'FC Master'!Q:Q,'Data FA Lookup'!$D908,0,1))","v":1490305001}]
["1710","149","TNR Centralized Fleet Services-Cap Proj",1490310000,"149CtlFleet0000","1950-01-01","9999-12-31","2012-05-14","No","No","No",{"$f":"IF(A909=\"????\",\"\",_xlfn.XLOOKUP('Data FA Lookup'!$D909,'FC Master'!A:A,'FC Master'!Q:Q,'Data FA Lookup'!$D909,0,1))","v":1490310000}]
["1630","149","TNR Private Agency Contract-Parks-CCPF",1490324050,"149PvtAgcyCntPks4050","1950-01-01","9999-12-31","2012-05-14","No","No","No",{"$f":"IF(A910=\"????\",\"\",_xlfn.XLOOKUP('Data FA Lookup'!$D910,'FC Master'!A:A,'FC Master'!Q:Q,'Data FA Lookup'!$D910,0,1))","v":1490324050}]
["1630","149","TNR Private Agency Contract-Parks-CCPF",1490325001,"149PvtAgcyCntPks5001","1950-01-01","9999-12-31","2015-09-30","No","No","No",{"$f":"IF(A911=\"????\",\"\",_xlfn.XLOOKUP('Data FA Lookup'!$D911,'FC Master'!A:A,'FC Master'!Q:Q,'Data FA Lookup'!$D911,0,1))","v":1490325001}]
["1610","149","TNR Lake Travis Econ Dev-GF",1490330001,"149LakeTravis0001","1950-01-01","9999-12-31","2012-05-14","No","No","No",{"$f":"IF(A912=\"????\",\"\",_xlfn.XLOOKUP('Data FA Lookup'!$D912,'FC Master'!A:A,'FC Master'!Q:Q,'Data FA Lookup'!$D912,0,1))","v":1490330001}]
["1610","149","TNR Lake Travis Econ Dev-Lake Travis Fd",1490330147,"149LakeTravis0147","1950-01-01","9999-12-31","2012-05-14","No","No","No",{"$f":"IF(A913=\"????\",\"\",_xlfn.XLOOKUP('Data FA Lookup'!$D913,'FC Master'!A:A,'FC Master'!Q:Q,'Data FA Lookup'!$D913,0,1))","v":1490330147}]
["1710","149","TNR Fleet Services Roads & Bridges",1490350000,"149FleetRdBg0000","1950-01-01","9999-12-31","2012-05-14","No","No","No",{"$f":"IF(A914=\"????\",\"\",_xlfn.XLOOKUP('Data FA Lookup'!$D914,'FC Master'!A:A,'FC Master'!Q:Q,'Data FA Lookup'!$D914,0,1))","v":1490350000}]
["1710","149","TNR Fleet Services Roads & Bridges-GF",1490350001,"149FleetRdBg0001","1950-01-01","9999-12-31","2012-10-16","No","No","No",{"$f":"IF(A915=\"????\",\"\",_xlfn.XLOOKUP('Data FA Lookup'!$D915,'FC Master'!A:A,'FC Master'!Q:Q,'Data FA Lookup'!$D915,0,1))","v":1490350001}]
["1710","149","TNR Fleet Services Roads & Bridges-RdBg",1490350145,"149FleetRdBg0145","1950-01-01","9999-12-31","2012-10-16","No","No","No",{"$f":"IF(A916=\"????\",\"\",_xlfn.XLOOKUP('Data FA Lookup'!$D916,'FC Master'!A:A,'FC Master'!Q:Q,'Data FA Lookup'!$D916,0,1))","v":1490350145}]
["1110","149","TNR Fleet Services General Adm",1490360000,"149FleetGenAdm0000","1950-01-01","9999-12-31","2012-05-14","No","No","No",{"$f":"IF(A917=\"????\",\"\",_xlfn.XLOOKUP('Data FA Lookup'!$D917,'FC Master'!A:A,'FC Master'!Q:Q,'Data FA Lookup'!$D917,0,1))","v":1490360000}]
["1210","149","TNR Fleet Services Criminal Justice",1490370000,"149FleetCrmJs0000","1950-01-01","9999-12-31","2012-05-14","No","No","No",{"$f":"IF(A918=\"????\",\"\",_xlfn.XLOOKUP('Data FA Lookup'!$D918,'FC Master'!A:A,'FC Master'!Q:Q,'Data FA Lookup'!$D918,0,1))","v":1490370000}]
["1310","149","TNR Fleet Services Law Enforcement",1490380000,"149FleetLE0000","1950-01-01","9999-12-31","2012-05-14","No","No","No",{"$f":"IF(A919=\"????\",\"\",_xlfn.XLOOKUP('Data FA Lookup'!$D919,'FC Master'!A:A,'FC Master'!Q:Q,'Data FA Lookup'!$D919,0,1))","v":1490380000}]
["1410","149","TNR Fleet Services Housing & Booking",1490390000,"149FleetHsgBkg0000","1950-01-01","9999-12-31","2012-05-14","No","No","No",{"$f":"IF(A920=\"????\",\"\",_xlfn.XLOOKUP('Data FA Lookup'!$D920,'FC Master'!A:A,'FC Master'!Q:Q,'Data FA Lookup'!$D920,0,1))","v":1490390000}]
["1230","149","TNR Fleet Services Juvenile Svs",1490400000,"149FleetJuvSv0000","1950-01-01","9999-12-31","2012-05-14","No","No","No",{"$f":"IF(A921=\"????\",\"\",_xlfn.XLOOKUP('Data FA Lookup'!$D921,'FC Master'!A:A,'FC Master'!Q:Q,'Data FA Lookup'!$D921,0,1))","v":1490400000}]
["1520","149","TNR Fleet Services Public Health",1490410000,"149FleetPbcHlh0000","1950-01-01","9999-12-31","2012-05-14","No","No","No",{"$f":"IF(A922=\"????\",\"\",_xlfn.XLOOKUP('Data FA Lookup'!$D922,'FC Master'!A:A,'FC Master'!Q:Q,'Data FA Lookup'!$D922,0,1))","v":1490410000}]
["1530","149","TNR Fleet Services Human Svs",1490420000,"149FleetHumanSv0000","1950-01-01","9999-12-31","2012-05-14","No","No","No",{"$f":"IF(A923=\"????\",\"\",_xlfn.XLOOKUP('Data FA Lookup'!$D923,'FC Master'!A:A,'FC Master'!Q:Q,'Data FA Lookup'!$D923,0,1))","v":1490420000}]
["1630","149","TNR Fleet Services Parks & Rec",1490430000,"149FleetParksRec0000","1950-01-01","9999-12-31","2012-05-14","No","No","No",{"$f":"IF(A924=\"????\",\"\",_xlfn.XLOOKUP('Data FA Lookup'!$D924,'FC Master'!A:A,'FC Master'!Q:Q,'Data FA Lookup'!$D924,0,1))","v":1490430000}]
["1710","149","TNR Burial Services-GF",1490440001,"149BurialSvs0001","1950-01-01","9999-12-31","2014-09-04","No","No","No",{"$f":"IF(A925=\"????\",\"\",_xlfn.XLOOKUP('Data FA Lookup'!$D925,'FC Master'!A:A,'FC Master'!Q:Q,'Data FA Lookup'!$D925,0,1))","v":1490440001}]
["1710","149","TNR Transfer Station-GF",1490450001,"149TrfrStation0001","1950-01-01","9999-12-31","2014-09-04","No","No","No",{"$f":"IF(A926=\"????\",\"\",_xlfn.XLOOKUP('Data FA Lookup'!$D926,'FC Master'!A:A,'FC Master'!Q:Q,'Data FA Lookup'!$D926,0,1))","v":1490450001}]
["1710","149","TNR Landfill Maintenance-GF",1490460001,"149LandfillMntc0001","1950-01-01","9999-12-31","2014-09-04","No","No","No",{"$f":"IF(A927=\"????\",\"\",_xlfn.XLOOKUP('Data FA Lookup'!$D927,'FC Master'!A:A,'FC Master'!Q:Q,'Data FA Lookup'!$D927,0,1))","v":1490460001}]
["1320","149","TNR Emergency Response-GF",1490470001,"149EmerResponse0001","1950-01-01","9999-12-31","2016-08-29","No","No","No",{"$f":"IF(A928=\"????\",\"\",_xlfn.XLOOKUP('Data FA Lookup'!$D928,'FC Master'!A:A,'FC Master'!Q:Q,'Data FA Lookup'!$D928,0,1))","v":1490470001}]
["1630","149","TNR Risk Mgmt Claim-Parks",1497760001,"149RskMgtClmPks0001","1950-01-01","9999-12-31","2013-12-11","No","No","No",{"$f":"IF(A929=\"????\",\"\",_xlfn.XLOOKUP('Data FA Lookup'!$D929,'FC Master'!A:A,'FC Master'!Q:Q,'Data FA Lookup'!$D929,0,1))","v":1497760001}]
["1710","149","TNR Risk Mgmt Claim-Fleet",1497770001,"149RskMgtClmFlt0001","1950-01-01","9999-12-31","2013-12-11","No","No","No",{"$f":"IF(A930=\"????\",\"\",_xlfn.XLOOKUP('Data FA Lookup'!$D930,'FC Master'!A:A,'FC Master'!Q:Q,'Data FA Lookup'!$D930,0,1))","v":1497770001}]
["1710","149","TNR CAR- Roads & Bridges GF",1498000001,"149CARRdBg0001","1950-01-01","9999-12-31","2012-05-15","No","No","No",{"$f":"IF(A931=\"????\",\"\",_xlfn.XLOOKUP('Data FA Lookup'!$D931,'FC Master'!A:A,'FC Master'!Q:Q,'Data FA Lookup'!$D931,0,1))","v":1498000001}]
["1730","149","TNR CAR-Drng GF",1498010001,"149CARDrng0001","1950-01-01","9999-12-31","2012-05-15","No","No","No",{"$f":"IF(A932=\"????\",\"\",_xlfn.XLOOKUP('Data FA Lookup'!$D932,'FC Master'!A:A,'FC Master'!Q:Q,'Data FA Lookup'!$D932,0,1))","v":1498010001}]
["1760","149","TNR CAR-Sanitation GF",1498020001,"149CARSanitation0001","1950-01-01","9999-12-31","2012-05-15","No","No","No",{"$f":"IF(A933=\"????\",\"\",_xlfn.XLOOKUP('Data FA Lookup'!$D933,'FC Master'!A:A,'FC Master'!Q:Q,'Data FA Lookup'!$D933,0,1))","v":1498020001}]
["1630","149","TNR CAR- Parks & Rec GF",1498030001,"149CARParksRec0001","1950-01-01","9999-12-31","2012-05-15","No","No","No",{"$f":"IF(A934=\"????\",\"\",_xlfn.XLOOKUP('Data FA Lookup'!$D934,'FC Master'!A:A,'FC Master'!Q:Q,'Data FA Lookup'!$D934,0,1))","v":1498030001}]
["1110","149","TNR CAR-GenAdm GF",1498040001,"149CARGenAdm0001","1950-01-01","9999-12-31","2012-05-15","No","No","No",{"$f":"IF(A935=\"????\",\"\",_xlfn.XLOOKUP('Data FA Lookup'!$D935,'FC Master'!A:A,'FC Master'!Q:Q,'Data FA Lookup'!$D935,0,1))","v":1498040001}]
["1210","149","TNR CAR-CrmJs GF",1498050001,"149CARCrmJs0001","1950-01-01","9999-12-31","2012-05-15","No","No","No",{"$f":"IF(A936=\"????\",\"\",_xlfn.XLOOKUP('Data FA Lookup'!$D936,'FC Master'!A:A,'FC Master'!Q:Q,'Data FA Lookup'!$D936,0,1))","v":1498050001}]
["1310","149","TNR CAR-LE GF",1498060001,"149CARLE0001","1950-01-01","9999-12-31","2012-05-15","No","No","No",{"$f":"IF(A937=\"????\",\"\",_xlfn.XLOOKUP('Data FA Lookup'!$D937,'FC Master'!A:A,'FC Master'!Q:Q,'Data FA Lookup'!$D937,0,1))","v":1498060001}]
["1410","149","TNR CAR-HsgBkg GF",1498070001,"149CARHsgBkg0001","1950-01-01","9999-12-31","2012-05-15","No","No","No",{"$f":"IF(A938=\"????\",\"\",_xlfn.XLOOKUP('Data FA Lookup'!$D938,'FC Master'!A:A,'FC Master'!Q:Q,'Data FA Lookup'!$D938,0,1))","v":1498070001}]
["1530","149","TNR CAR-HumSv GF",1498080001,"149CARHumSv0001","1950-01-01","9999-12-31","2012-05-15","No","No","No",{"$f":"IF(A939=\"????\",\"\",_xlfn.XLOOKUP('Data FA Lookup'!$D939,'FC Master'!A:A,'FC Master'!Q:Q,'Data FA Lookup'!$D939,0,1))","v":1498080001}]
["1710","149","TNR Reimbursement Resolution Funds-GF",1499000001,"149ReimburseRes0001","1950-01-01","9999-12-31","2013-05-07","No","No","No",{"$f":"IF(A940=\"????\",\"\",_xlfn.XLOOKUP('Data FA Lookup'!$D940,'FC Master'!A:A,'FC Master'!Q:Q,'Data FA Lookup'!$D940,0,1))","v":1499000001}]
["1110","154","Civil Service Commission-GF",1540010001,"154Adm0001","1950-01-01","9999-12-31","2012-05-14","No","No","No",{"$f":"IF(A941=\"????\",\"\",_xlfn.XLOOKUP('Data FA Lookup'!$D941,'FC Master'!A:A,'FC Master'!Q:Q,'Data FA Lookup'!$D941,0,1))","v":1540010001}]
["1210","155","JsPln-Executive & Adm-GF",1550010001,"155Adm0001","1950-01-01","9999-12-31","2012-05-14","No","No","No",{"$f":"IF(A942=\"????\",\"\",_xlfn.XLOOKUP('Data FA Lookup'!$D942,'FC Master'!A:A,'FC Master'!Q:Q,'Data FA Lookup'!$D942,0,1))","v":1550010001}]
["1210","155","JsPln-Reentry Program After Care-GF",1550020001,"155RePg0001","1950-01-01","9999-12-31","2012-05-14","No","No","No",{"$f":"IF(A943=\"????\",\"\",_xlfn.XLOOKUP('Data FA Lookup'!$D943,'FC Master'!A:A,'FC Master'!Q:Q,'Data FA Lookup'!$D943,0,1))","v":1550020001}]
["1210","155","JsPln-Programmatic-GF",1550030001,"155Pgmatic0001","1950-01-01","9999-12-31","2012-05-14","No","No","No",{"$f":"IF(A944=\"????\",\"\",_xlfn.XLOOKUP('Data FA Lookup'!$D944,'FC Master'!A:A,'FC Master'!Q:Q,'Data FA Lookup'!$D944,0,1))","v":1550030001}]
["1210","155","JsPln-Offender Workforce Dev-GF",1550040001,"155OffWkDev0001","1950-01-01","9999-12-31","2012-05-14","No","No","No",{"$f":"IF(A945=\"????\",\"\",_xlfn.XLOOKUP('Data FA Lookup'!$D945,'FC Master'!A:A,'FC Master'!Q:Q,'Data FA Lookup'!$D945,0,1))","v":1550040001}]
["1210","155","JsPln-Offender Workforce Dev-US DOJ Grnt",1550042051,"155OffWkDev2051","1950-01-01","9999-12-31","2012-05-14","Yes","Yes","Yes",{"$f":"IF(A946=\"????\",\"\",_xlfn.XLOOKUP('Data FA Lookup'!$D946,'FC Master'!A:A,'FC Master'!Q:Q,'Data FA Lookup'!$D946,0,1))","v":1550042051}]
["1210","155","JsPln-Ofc of Parent Rep-GF",1550050001,"155OfcPrtRep0001","1950-01-01","9999-12-31","2012-05-14","No","No","No",{"$f":"IF(A947=\"????\",\"\",_xlfn.XLOOKUP('Data FA Lookup'!$D947,'FC Master'!A:A,'FC Master'!Q:Q,'Data FA Lookup'!$D947,0,1))","v":1550050001}]
["1210","155","JsPln-Ofc of Parent Rep-SCT Grant",1550052023,"155OfcPrtRep2023","1950-01-01","9999-12-31","2012-05-14","Yes","Yes","Yes",{"$f":"IF(A948=\"????\",\"\",_xlfn.XLOOKUP('Data FA Lookup'!$D948,'FC Master'!A:A,'FC Master'!Q:Q,'Data FA Lookup'!$D948,0,1))","v":1550052023}]
["1210","155","JsPln-Office of Child Rep -GF",1550060001,"155OfcChRep0001","1950-01-01","9999-12-31","2012-05-14","No","No","No",{"$f":"IF(A949=\"????\",\"\",_xlfn.XLOOKUP('Data FA Lookup'!$D949,'FC Master'!A:A,'FC Master'!Q:Q,'Data FA Lookup'!$D949,0,1))","v":1550060001}]
["1210","155","JsPln-Office of Child Rep-SCT Grant",1550062023,"155OfcChRep2023","1950-01-01","9999-12-31","2012-05-14","Yes","Yes","Yes",{"$f":"IF(A950=\"????\",\"\",_xlfn.XLOOKUP('Data FA Lookup'!$D950,'FC Master'!A:A,'FC Master'!Q:Q,'Data FA Lookup'!$D950,0,1))","v":1550062023}]
["1210","155","JsPln-Mental Health Pub Def-GF",1550070001,"155MtlHlhPD0001","1950-01-01","9999-12-31","2012-05-14","No","No","No",{"$f":"IF(A951=\"????\",\"\",_xlfn.XLOOKUP('Data FA Lookup'!$D951,'FC Master'!A:A,'FC Master'!Q:Q,'Data FA Lookup'!$D951,0,1))","v":1550070001}]
["1210","155","JsPln-Mental Health Pub Def-OCA Grant",1550072015,"155MtlHlhPD2015","1950-01-01","9999-12-31","2012-05-14","Yes","Yes","Yes",{"$f":"IF(A952=\"????\",\"\",_xlfn.XLOOKUP('Data FA Lookup'!$D952,'FC Master'!A:A,'FC Master'!Q:Q,'Data FA Lookup'!$D952,0,1))","v":1550072015}]
["1210","155","JsPln-Exc&Adm Byrne-OOG Crm Jus Dv Grant",1550082016,"155ExcAdmByrne2016","1950-01-01","9999-12-31","2012-05-14","Yes","Yes","Yes",{"$f":"IF(A953=\"????\",\"\",_xlfn.XLOOKUP('Data FA Lookup'!$D953,'FC Master'!A:A,'FC Master'!Q:Q,'Data FA Lookup'!$D953,0,1))","v":1550082016}]
["1420","155","JsPln-C&R Byrne-OOG Crm Jus Dv Grant",1550092016,"155CRByrne2016","1950-01-01","9999-12-31","2012-05-14","Yes","No","Yes",{"$f":"IF(A954=\"????\",\"\",_xlfn.XLOOKUP('Data FA Lookup'!$D954,'FC Master'!A:A,'FC Master'!Q:Q,'Data FA Lookup'!$D954,0,1))","v":1550092016}]
["1230","155","JsPln-Juvenile Byrne-OOG Crm Jus Dv Grnt",1550102016,"155JvPByrne2016","1950-01-01","9999-12-31","2012-05-14","Yes","Yes","Yes",{"$f":"IF(A955=\"????\",\"\",_xlfn.XLOOKUP('Data FA Lookup'!$D955,'FC Master'!A:A,'FC Master'!Q:Q,'Data FA Lookup'!$D955,0,1))","v":1550102016}]
["1310","155","JsPln-LE Byrne-OOG Crm Jus Dv Grant",1550112016,"155LEByrne2016","1950-01-01","9999-12-31","2012-05-14","Yes","No","Yes",{"$f":"IF(A956=\"????\",\"\",_xlfn.XLOOKUP('Data FA Lookup'!$D956,'FC Master'!A:A,'FC Master'!Q:Q,'Data FA Lookup'!$D956,0,1))","v":1550112016}]
["1210","155","JsPln-IOTC or Inside Out Training-GF",1550120001,"155IOTC0001","1950-01-01","9999-12-31","2012-05-14","No","No","No",{"$f":"IF(A957=\"????\",\"\",_xlfn.XLOOKUP('Data FA Lookup'!$D957,'FC Master'!A:A,'FC Master'!Q:Q,'Data FA Lookup'!$D957,0,1))","v":1550120001}]
["1210","155","JsPln-Planning-GF",1550130001,"155Planning0001","1950-01-01","9999-12-31","2012-05-14","No","No","No",{"$f":"IF(A958=\"????\",\"\",_xlfn.XLOOKUP('Data FA Lookup'!$D958,'FC Master'!A:A,'FC Master'!Q:Q,'Data FA Lookup'!$D958,0,1))","v":1550130001}]
["1320","155","JsPln-Communications-GF",1550140001,"155Communication0001","1950-01-01","2012-09-30","2012-05-14","No","No","No",{"$f":"IF(A959=\"????\",\"\",_xlfn.XLOOKUP('Data FA Lookup'!$D959,'FC Master'!A:A,'FC Master'!Q:Q,'Data FA Lookup'!$D959,0,1))","v":1550140001}]
["1320","155","JsPln-Communications-LT CO 2003",1550144038,"155Communication4038","1950-01-01","2012-09-30","2012-05-14","No","No","No",{"$f":"IF(A960=\"????\",\"\",_xlfn.XLOOKUP('Data FA Lookup'!$D960,'FC Master'!A:A,'FC Master'!Q:Q,'Data FA Lookup'!$D960,0,1))","v":1550144038}]
["1220","155","JsPln-Civil Library-GF",1550150001,"155JsPlnCivLib0001","1950-01-01","9999-12-31","2017-12-04","No","No","No",{"$f":"IF(A961=\"????\",\"\",_xlfn.XLOOKUP('Data FA Lookup'!$D961,'FC Master'!A:A,'FC Master'!Q:Q,'Data FA Lookup'!$D961,0,1))","v":1550150001}]
["1220","155","JSPln-Civil Library-Law Library Fund",1550150100,"155JsPlnCiviLib0100","1950-01-01","9999-12-31","2017-12-04","No","No","No",{"$f":"IF(A962=\"????\",\"\",_xlfn.XLOOKUP('Data FA Lookup'!$D962,'FC Master'!A:A,'FC Master'!Q:Q,'Data FA Lookup'!$D962,0,1))","v":1550150100}]
["1210","155","JsPln-Criminal Library-GF",1550160001,"155JsPlnCrimLib0001","1950-01-01","9999-12-31","2017-12-04","No","No","No",{"$f":"IF(A963=\"????\",\"\",_xlfn.XLOOKUP('Data FA Lookup'!$D963,'FC Master'!A:A,'FC Master'!Q:Q,'Data FA Lookup'!$D963,0,1))","v":1550160001}]
["1210","155","JSPln-Criminal Library-Law Library Fund",1550160100,"155JsPlnCrimLib0100","1950-01-01","9999-12-31","2017-12-04","No","No","No",{"$f":"IF(A964=\"????\",\"\",_xlfn.XLOOKUP('Data FA Lookup'!$D964,'FC Master'!A:A,'FC Master'!Q:Q,'Data FA Lookup'!$D964,0,1))","v":1550160100}]
["1210","155","JSPln-Pub Def-GF",1550170001,"155JsPlnPubDef0001","1950-01-01","9999-12-31","2019-08-23","No","No","No",{"$f":"IF(A965=\"????\",\"\",_xlfn.XLOOKUP('Data FA Lookup'!$D965,'FC Master'!A:A,'FC Master'!Q:Q,'Data FA Lookup'!$D965,0,1))","v":1550170001}]
["1320","155","JsPln-CAR-LE GF",1558000001,"155CARLE0001","1950-01-01","9999-12-31","2012-05-15","No","No","No",{"$f":"IF(A966=\"????\",\"\",_xlfn.XLOOKUP('Data FA Lookup'!$D966,'FC Master'!A:A,'FC Master'!Q:Q,'Data FA Lookup'!$D966,0,1))","v":1558000001}]
["1110","157","CRS Adm-GF",1570010001,"157Adm0001","1950-01-01","9999-12-31","2012-05-14","No","No","No",{"$f":"IF(A967=\"????\",\"\",_xlfn.XLOOKUP('Data FA Lookup'!$D967,'FC Master'!A:A,'FC Master'!Q:Q,'Data FA Lookup'!$D967,0,1))","v":1570010001}]
["1110","157","CRS Adm-Records Management Fd",1570010108,"157Adm0108","1950-01-01","9999-12-31","2012-05-14","No","No","No",{"$f":"IF(A968=\"????\",\"\",_xlfn.XLOOKUP('Data FA Lookup'!$D968,'FC Master'!A:A,'FC Master'!Q:Q,'Data FA Lookup'!$D968,0,1))","v":1570010108}]
["1110","157","CRS Copiers/Central Repairs-GF",1570020001,"157CtlRepair0001","1950-01-01","9999-12-31","2012-05-14","No","No","No",{"$f":"IF(A969=\"????\",\"\",_xlfn.XLOOKUP('Data FA Lookup'!$D969,'FC Master'!A:A,'FC Master'!Q:Q,'Data FA Lookup'!$D969,0,1))","v":1570020001}]
["1110","157","CR Copiers/Central Repairs-Jus Ct Tech",1570020125,"157CtlRepair0125","1950-01-01","9999-12-31","2012-05-14","No","No","No",{"$f":"IF(A970=\"????\",\"\",_xlfn.XLOOKUP('Data FA Lookup'!$D970,'FC Master'!A:A,'FC Master'!Q:Q,'Data FA Lookup'!$D970,0,1))","v":1570020125}]
["1110","157","CRS Records Mgmt & Comm-Rec Mgmt Fd",1570030108,"157RM and Comm0108","1950-01-01","9999-12-31","2012-05-14","No","No","No",{"$f":"IF(A971=\"????\",\"\",_xlfn.XLOOKUP('Data FA Lookup'!$D971,'FC Master'!A:A,'FC Master'!Q:Q,'Data FA Lookup'!$D971,0,1))","v":1570030108}]
["1110","157","CRS Imaging-GF",1570040001,"157Imaging0001","1950-01-01","9999-12-31","2012-05-14","No","No","No",{"$f":"IF(A972=\"????\",\"\",_xlfn.XLOOKUP('Data FA Lookup'!$D972,'FC Master'!A:A,'FC Master'!Q:Q,'Data FA Lookup'!$D972,0,1))","v":1570040001}]
["1110","157","CRS Imaging-Records Management Fd",1570040108,"157Imaging0108","1950-01-01","9999-12-31","2012-05-14","No","No","No",{"$f":"IF(A973=\"????\",\"\",_xlfn.XLOOKUP('Data FA Lookup'!$D973,'FC Master'!A:A,'FC Master'!Q:Q,'Data FA Lookup'!$D973,0,1))","v":1570040108}]
["1110","157","CRS Imaging-County Clerk Archival Fd",1570040129,"157Imaging0129","1950-01-01","9999-12-31","2012-05-14","No","No","No",{"$f":"IF(A974=\"????\",\"\",_xlfn.XLOOKUP('Data FA Lookup'!$D974,'FC Master'!A:A,'FC Master'!Q:Q,'Data FA Lookup'!$D974,0,1))","v":1570040129}]
["1110","157","CRS Imaging-Court Record Preservation",1570040141,"157Imaging0141","1950-01-01","9999-12-31","2012-05-14","No","No","No",{"$f":"IF(A975=\"????\",\"\",_xlfn.XLOOKUP('Data FA Lookup'!$D975,'FC Master'!A:A,'FC Master'!Q:Q,'Data FA Lookup'!$D975,0,1))","v":1570040141}]
["1110","157","CRS Info Control-Recs Mgmt Preser",1570050110,"157InfoCtl0110","1950-01-01","9999-12-31","2012-05-14","No","No","No",{"$f":"IF(A976=\"????\",\"\",_xlfn.XLOOKUP('Data FA Lookup'!$D976,'FC Master'!A:A,'FC Master'!Q:Q,'Data FA Lookup'!$D976,0,1))","v":1570050110}]
["1220","157","CRS Civil Library-GF",1570060001,"157CivilLib0001","1950-01-01","9999-12-31","2012-05-14","No","No","No",{"$f":"IF(A977=\"????\",\"\",_xlfn.XLOOKUP('Data FA Lookup'!$D977,'FC Master'!A:A,'FC Master'!Q:Q,'Data FA Lookup'!$D977,0,1))","v":1570060001}]
["1220","157","CRS Civil Library-Law Library Fd",1570060100,"157CivilLib0100","1950-01-01","9999-12-31","2012-05-14","No","No","No",{"$f":"IF(A978=\"????\",\"\",_xlfn.XLOOKUP('Data FA Lookup'!$D978,'FC Master'!A:A,'FC Master'!Q:Q,'Data FA Lookup'!$D978,0,1))","v":1570060100}]
["1220","157","CRS Civil Library-Tx Edu Ag Grant",1570062033,"157CivilLib2033","1950-01-01","9999-12-31","2012-05-14","Yes","Yes","Yes",{"$f":"IF(A979=\"????\",\"\",_xlfn.XLOOKUP('Data FA Lookup'!$D979,'FC Master'!A:A,'FC Master'!Q:Q,'Data FA Lookup'!$D979,0,1))","v":1570062033}]
["1210","157","CRS Criminal Library-GF",1570070001,"157CrmLib0001","1950-01-01","9999-12-31","2012-05-14","No","No","No",{"$f":"IF(A980=\"????\",\"\",_xlfn.XLOOKUP('Data FA Lookup'!$D980,'FC Master'!A:A,'FC Master'!Q:Q,'Data FA Lookup'!$D980,0,1))","v":1570070001}]
["1210","157","CRS Criminal Library-Law Library Fd",1570070100,"157CrmLib0100","1950-01-01","9999-12-31","2012-05-14","No","No","No",{"$f":"IF(A981=\"????\",\"\",_xlfn.XLOOKUP('Data FA Lookup'!$D981,'FC Master'!A:A,'FC Master'!Q:Q,'Data FA Lookup'!$D981,0,1))","v":1570070100}]
["1110","157","CRS Mail-GF",1570080001,"157Mail0001","1950-01-01","9999-12-31","2012-05-14","No","No","No",{"$f":"IF(A982=\"????\",\"\",_xlfn.XLOOKUP('Data FA Lookup'!$D982,'FC Master'!A:A,'FC Master'!Q:Q,'Data FA Lookup'!$D982,0,1))","v":1570080001}]
["1110","157","CRS Media-GF",1570090001,"157Media0001","1950-01-01","9999-12-31","2012-05-14","No","No","No",{"$f":"IF(A983=\"????\",\"\",_xlfn.XLOOKUP('Data FA Lookup'!$D983,'FC Master'!A:A,'FC Master'!Q:Q,'Data FA Lookup'!$D983,0,1))","v":1570090001}]
["1110","157","CRS Media-CO 2010-Nontax",1570094063,"157Media4063","1950-01-01","9999-12-31","2012-05-14","No","No","No",{"$f":"IF(A984=\"????\",\"\",_xlfn.XLOOKUP('Data FA Lookup'!$D984,'FC Master'!A:A,'FC Master'!Q:Q,'Data FA Lookup'!$D984,0,1))","v":1570094063}]
["1110","157","CRS Records/Consulting-GF",1570100001,"157RcrdsCsltg0001","1950-01-01","9999-12-31","2012-05-14","No","No","No",{"$f":"IF(A985=\"????\",\"\",_xlfn.XLOOKUP('Data FA Lookup'!$D985,'FC Master'!A:A,'FC Master'!Q:Q,'Data FA Lookup'!$D985,0,1))","v":1570100001}]
["1110","157","CRS Records/Consulting-Recs Mgmt Fd",1570100108,"157RcrdsCsltg0108","1950-01-01","9999-12-31","2012-05-14","No","No","No",{"$f":"IF(A986=\"????\",\"\",_xlfn.XLOOKUP('Data FA Lookup'!$D986,'FC Master'!A:A,'FC Master'!Q:Q,'Data FA Lookup'!$D986,0,1))","v":1570100108}]
["1110","157","CRS Records/Consulting-Recs Mgmt Preser",1570100110,"157RcrdsCsltg0110","1950-01-01","9999-12-31","2012-05-14","No","No","No",{"$f":"IF(A987=\"????\",\"\",_xlfn.XLOOKUP('Data FA Lookup'!$D987,'FC Master'!A:A,'FC Master'!Q:Q,'Data FA Lookup'!$D987,0,1))","v":1570100110}]
["1110","157","CRS Records/Consulting-CCk Arch Fd",1570100129,"157RcrdsCsltg0129","1950-01-01","9999-12-31","2012-05-14","No","No","No",{"$f":"IF(A988=\"????\",\"\",_xlfn.XLOOKUP('Data FA Lookup'!$D988,'FC Master'!A:A,'FC Master'!Q:Q,'Data FA Lookup'!$D988,0,1))","v":1570100129}]
["1110","157","CRS Records/Consulting-Ct Rec Preser",1570100141,"157RcrdsCsltg0141","1950-01-01","9999-12-31","2012-05-14","No","No","No",{"$f":"IF(A989=\"????\",\"\",_xlfn.XLOOKUP('Data FA Lookup'!$D989,'FC Master'!A:A,'FC Master'!Q:Q,'Data FA Lookup'!$D989,0,1))","v":1570100141}]
["1110","","CRS Records/Consulting-TC RecMgmt&Pres",1570100160,"157RcrdsCsltg0160","1950-01-01","9999-12-31","2021-08-25","No","No","No",{"$f":"IF(A990=\"????\",\"\",_xlfn.XLOOKUP('Data FA Lookup'!$D990,'FC Master'!A:A,'FC Master'!Q:Q,'Data FA Lookup'!$D990,0,1))","v":1570100160}]
["1110","157","RMCR Printing-GF",1570110001,"157Printing0001","1950-01-01","9999-12-31","2012-05-14","No","No","No",{"$f":"IF(A991=\"????\",\"\",_xlfn.XLOOKUP('Data FA Lookup'!$D991,'FC Master'!A:A,'FC Master'!Q:Q,'Data FA Lookup'!$D991,0,1))","v":1570110001}]
["1110","157","CRS Printing-700 Lavaca Complex",1570110002,"157Printing0002","1950-01-01","9999-12-31","2015-12-23","No","No","No",{"$f":"IF(A992=\"????\",\"\",_xlfn.XLOOKUP('Data FA Lookup'!$D992,'FC Master'!A:A,'FC Master'!Q:Q,'Data FA Lookup'!$D992,0,1))","v":1570110002}]
["1110","157","CRS Printing-Employee Health Ben Fd",1570118956,"157Printing8956","1950-01-01","9999-12-31","2015-07-30","No","No","No",{"$f":"IF(A993=\"????\",\"\",_xlfn.XLOOKUP('Data FA Lookup'!$D993,'FC Master'!A:A,'FC Master'!Q:Q,'Data FA Lookup'!$D993,0,1))","v":1570118956}]
["1110","157","CRS CAR-GenAdm GF",1578000001,"157CARGenAdm0001","1950-01-01","9999-12-31","2012-05-15","No","No","No",{"$f":"IF(A994=\"????\",\"\",_xlfn.XLOOKUP('Data FA Lookup'!$D994,'FC Master'!A:A,'FC Master'!Q:Q,'Data FA Lookup'!$D994,0,1))","v":1578000001}]
["1530","158","HHS County Executive Adm-GF",1580010001,"158CEAdm0001","1950-01-01","9999-12-31","2012-05-14","No","No","No",{"$f":"IF(A995=\"????\",\"\",_xlfn.XLOOKUP('Data FA Lookup'!$D995,'FC Master'!A:A,'FC Master'!Q:Q,'Data FA Lookup'!$D995,0,1))","v":1580010001}]
["1530","158","HHS County Executive Adm-COA HHS Grant",1580012057,"158CEAdm2057","1950-01-01","9999-12-31","2012-05-14","Yes","No","Yes",{"$f":"IF(A996=\"????\",\"\",_xlfn.XLOOKUP('Data FA Lookup'!$D996,'FC Master'!A:A,'FC Master'!Q:Q,'Data FA Lookup'!$D996,0,1))","v":1580012057}]
["1530","158","HHS County Executive Adm-CO 1997",1580014014,"158CEAdm4014","1950-01-01","9999-12-31","2012-05-14","No","No","No",{"$f":"IF(A997=\"????\",\"\",_xlfn.XLOOKUP('Data FA Lookup'!$D997,'FC Master'!A:A,'FC Master'!Q:Q,'Data FA Lookup'!$D997,0,1))","v":1580014014}]
["1530","158","HHS Human Resource-GF",1580020001,"158HumRsrcs0001","1950-01-01","9999-12-31","2012-05-14","No","No","No",{"$f":"IF(A998=\"????\",\"\",_xlfn.XLOOKUP('Data FA Lookup'!$D998,'FC Master'!A:A,'FC Master'!Q:Q,'Data FA Lookup'!$D998,0,1))","v":1580020001}]
["1530","158","HHS Finance-GF",1580030001,"158Finance0001","1950-01-01","9999-12-31","2012-05-14","No","No","No",{"$f":"IF(A999=\"????\",\"\",_xlfn.XLOOKUP('Data FA Lookup'!$D999,'FC Master'!A:A,'FC Master'!Q:Q,'Data FA Lookup'!$D999,0,1))","v":1580030001}]
["1510","158","HHS Research and Planning-GF",1580040001,"158RshandPlng0001","1950-01-01","9999-12-31","2012-05-14","No","No","No",{"$f":"IF(A1000=\"????\",\"\",_xlfn.XLOOKUP('Data FA Lookup'!$D1000,'FC Master'!A:A,'FC Master'!Q:Q,'Data FA Lookup'!$D1000,0,1))","v":1580040001}]
["1530","158","HHS Facilities-GF",1580050001,"158Facilities0001","1950-01-01","9999-12-31","2012-05-14","No","No","No",{"$f":"IF(A1001=\"????\",\"\",_xlfn.XLOOKUP('Data FA Lookup'!$D1001,'FC Master'!A:A,'FC Master'!Q:Q,'Data FA Lookup'!$D1001,0,1))","v":1580050001}]
["1530","158","HHS CDBG Planning-GF",1580060001,"158CDBGPlng0001","1950-01-01","9999-12-31","2012-05-14","No","No","No",{"$f":"IF(A1002=\"????\",\"\",_xlfn.XLOOKUP('Data FA Lookup'!$D1002,'FC Master'!A:A,'FC Master'!Q:Q,'Data FA Lookup'!$D1002,0,1))","v":1580060001}]
["1530","158","HHS CDBG Planning-Tx Hist Cmn Grant",1580062035,"158CDBGPlng2035","1950-01-01","9999-12-31","2012-05-14","Yes","No","Yes",{"$f":"IF(A1003=\"????\",\"\",_xlfn.XLOOKUP('Data FA Lookup'!$D1003,'FC Master'!A:A,'FC Master'!Q:Q,'Data FA Lookup'!$D1003,0,1))","v":1580062035}]
["1530","158","HHS CDBG Planning-HUD Grant",1580062054,"158CDBGPlng2054","1950-01-01","9999-12-31","2012-05-14","Yes","Yes","Yes",{"$f":"IF(A1004=\"????\",\"\",_xlfn.XLOOKUP('Data FA Lookup'!$D1004,'FC Master'!A:A,'FC Master'!Q:Q,'Data FA Lookup'!$D1004,0,1))","v":1580062054}]
["1530","158","HHS Public Health Mgr-GF",1580070001,"158PubHlth0001","1950-01-01","9999-12-31","2012-05-14","No","No","No",{"$f":"IF(A1005=\"????\",\"\",_xlfn.XLOOKUP('Data FA Lookup'!$D1005,'FC Master'!A:A,'FC Master'!Q:Q,'Data FA Lookup'!$D1005,0,1))","v":1580070001}]
["1530","158","HHS Public Health Adm COA-GF",1580080001,"158PubHlthCOAAdm0001","1950-01-01","9999-12-31","2012-05-14","No","No","No",{"$f":"IF(A1006=\"????\",\"\",_xlfn.XLOOKUP('Data FA Lookup'!$D1006,'FC Master'!A:A,'FC Master'!Q:Q,'Data FA Lookup'!$D1006,0,1))","v":1580080001}]
["1520","158","HHS Inter COA Public Hlh-GF",1580090001,"158COAPbcHlh0001","1950-01-01","9999-12-31","2012-05-14","No","No","No",{"$f":"IF(A1007=\"????\",\"\",_xlfn.XLOOKUP('Data FA Lookup'!$D1007,'FC Master'!A:A,'FC Master'!Q:Q,'Data FA Lookup'!$D1007,0,1))","v":1580090001}]
["1530","158","HHS FSS-Adm Svs-GF",1580100001,"158FSSAdmSv0001","1950-01-01","9999-12-31","2012-05-14","No","No","No",{"$f":"IF(A1008=\"????\",\"\",_xlfn.XLOOKUP('Data FA Lookup'!$D1008,'FC Master'!A:A,'FC Master'!Q:Q,'Data FA Lookup'!$D1008,0,1))","v":1580100001}]
["1530","158","HHS FSS-Adm Svs-Atmos Grant",1580102000,"158FSSAdmSv2000","1950-01-01","9999-12-31","2012-05-14","Yes","Yes","Yes",{"$f":"IF(A1009=\"????\",\"\",_xlfn.XLOOKUP('Data FA Lookup'!$D1009,'FC Master'!A:A,'FC Master'!Q:Q,'Data FA Lookup'!$D1009,0,1))","v":1580102000}]
["1530","158","HHS FSS-Adm Svs-Emrg Food&Shelter Grnt",1580102010,"158FSSAdmSv2010","1950-01-01","9999-12-31","2012-05-14","Yes","Yes","Yes",{"$f":"IF(A1010=\"????\",\"\",_xlfn.XLOOKUP('Data FA Lookup'!$D1010,'FC Master'!A:A,'FC Master'!Q:Q,'Data FA Lookup'!$D1010,0,1))","v":1580102010}]
["1530","158","HHS FSS-Adm Svs-TCEQ Grant",1580102025,"158FSSAdmSv2025","1950-01-01","9999-12-31","2012-05-14","Yes","Yes","Yes",{"$f":"IF(A1011=\"????\",\"\",_xlfn.XLOOKUP('Data FA Lookup'!$D1011,'FC Master'!A:A,'FC Master'!Q:Q,'Data FA Lookup'!$D1011,0,1))","v":1580102025}]
["1530","158","HHS FSS-Adm Svs-Tx Gas Grant",1580102034,"158FSSAdmSv2034","1950-01-01","9999-12-31","2012-05-14","Yes","Yes","Yes",{"$f":"IF(A1012=\"????\",\"\",_xlfn.XLOOKUP('Data FA Lookup'!$D1012,'FC Master'!A:A,'FC Master'!Q:Q,'Data FA Lookup'!$D1012,0,1))","v":1580102034}]
["1530","158","HHS FSS-Adm Svs-TXU Grant",1580102049,"158FSSAdmSv2049","1950-01-01","9999-12-31","2012-05-14","Yes","Yes","Yes",{"$f":"IF(A1013=\"????\",\"\",_xlfn.XLOOKUP('Data FA Lookup'!$D1013,'FC Master'!A:A,'FC Master'!Q:Q,'Data FA Lookup'!$D1013,0,1))","v":1580102049}]
["1530","158","HHS FSS-Adm Svs-TDHCA-USHHS Grant",1580102061,"158FSSAdmSv2061","1950-01-01","9999-12-31","2012-05-14","Yes","Yes","Yes",{"$f":"IF(A1014=\"????\",\"\",_xlfn.XLOOKUP('Data FA Lookup'!$D1014,'FC Master'!A:A,'FC Master'!Q:Q,'Data FA Lookup'!$D1014,0,1))","v":1580102061}]
["1530","158","HHS FSS-Adm Svs-TDHCA-USHUD Grant",1580102062,"158FSSAdmSv2062","1950-01-01","9999-12-31","2012-05-14","Yes","No","Yes",{"$f":"IF(A1015=\"????\",\"\",_xlfn.XLOOKUP('Data FA Lookup'!$D1015,'FC Master'!A:A,'FC Master'!Q:Q,'Data FA Lookup'!$D1015,0,1))","v":1580102062}]
["1530","158","HHS FSS-Case Mgmt-GF",1580110001,"158FSSCaseM0001","1950-01-01","9999-12-31","2012-05-14","No","No","No",{"$f":"IF(A1016=\"????\",\"\",_xlfn.XLOOKUP('Data FA Lookup'!$D1016,'FC Master'!A:A,'FC Master'!Q:Q,'Data FA Lookup'!$D1016,0,1))","v":1580110001}]
["1530","158","HHS FSS-East Rural Cmty CT-GF",1580120001,"158EstRCmtyCtr0001","1950-01-01","9999-12-31","2012-05-14","No","No","No",{"$f":"IF(A1017=\"????\",\"\",_xlfn.XLOOKUP('Data FA Lookup'!$D1017,'FC Master'!A:A,'FC Master'!Q:Q,'Data FA Lookup'!$D1017,0,1))","v":1580120001}]
["1530","158","HHS FSS-North Rural Cmty Ctr-GF",1580130001,"158NthRCmtyCtr0001","1950-01-01","9999-12-31","2012-05-14","No","No","No",{"$f":"IF(A1018=\"????\",\"\",_xlfn.XLOOKUP('Data FA Lookup'!$D1018,'FC Master'!A:A,'FC Master'!Q:Q,'Data FA Lookup'!$D1018,0,1))","v":1580130001}]
["1530","158","HHS FSS-Northwest Rural Cmty Ctr-GF",1580140001,"158NWRCmtyCtr0001","1950-01-01","9999-12-31","2012-05-14","No","No","No",{"$f":"IF(A1019=\"????\",\"\",_xlfn.XLOOKUP('Data FA Lookup'!$D1019,'FC Master'!A:A,'FC Master'!Q:Q,'Data FA Lookup'!$D1019,0,1))","v":1580140001}]
["1530","158","HHS FSS-Palm Square Cmty Ctr-GF",1580150001,"158PSqCmtyCtr0001","1950-01-01","9999-12-31","2012-05-14","No","No","No",{"$f":"IF(A1020=\"????\",\"\",_xlfn.XLOOKUP('Data FA Lookup'!$D1020,'FC Master'!A:A,'FC Master'!Q:Q,'Data FA Lookup'!$D1020,0,1))","v":1580150001}]
["1530","158","HHS FSS-Post Road Cmty Ctr-GF",1580160001,"158PstRdCmtyCtr0001","1950-01-01","9999-12-31","2012-05-14","No","No","No",{"$f":"IF(A1021=\"????\",\"\",_xlfn.XLOOKUP('Data FA Lookup'!$D1021,'FC Master'!A:A,'FC Master'!Q:Q,'Data FA Lookup'!$D1021,0,1))","v":1580160001}]
["1530","158","HHS FSS-South Rural Cmty Ctr-GF",1580170001,"158SthRCmtyCtr0001","1950-01-01","9999-12-31","2012-05-14","No","No","No",{"$f":"IF(A1022=\"????\",\"\",_xlfn.XLOOKUP('Data FA Lookup'!$D1022,'FC Master'!A:A,'FC Master'!Q:Q,'Data FA Lookup'!$D1022,0,1))","v":1580170001}]
["1530","158","HHS FSS-West Rural Cmty Ctr-GF",1580180001,"158WstRCmtyCtr0001","1950-01-01","9999-12-31","2012-05-14","No","No","No",{"$f":"IF(A1023=\"????\",\"\",_xlfn.XLOOKUP('Data FA Lookup'!$D1023,'FC Master'!A:A,'FC Master'!Q:Q,'Data FA Lookup'!$D1023,0,1))","v":1580180001}]
["1530","158","HHS Ofc of Children's Svs Adm-GF",1580190001,"158OCSAdm0001","1950-01-01","9999-12-31","2012-05-14","No","No","No",{"$f":"IF(A1024=\"????\",\"\",_xlfn.XLOOKUP('Data FA Lookup'!$D1024,'FC Master'!A:A,'FC Master'!Q:Q,'Data FA Lookup'!$D1024,0,1))","v":1580190001}]
["1530","158","HHS OCS Adm-ATCIC Grant",1580192001,"158OCSAdm2001","1950-01-01","9999-12-31","2012-05-14","Yes","Yes","Yes",{"$f":"IF(A1025=\"????\",\"\",_xlfn.XLOOKUP('Data FA Lookup'!$D1025,'FC Master'!A:A,'FC Master'!Q:Q,'Data FA Lookup'!$D1025,0,1))","v":1580192001}]
["1530","158","HHS OCS Adm-Casey Family Pgs Grant",1580192005,"158OCSAdm2005","1950-01-01","9999-12-31","2012-05-14","Yes","Yes","Yes",{"$f":"IF(A1026=\"????\",\"\",_xlfn.XLOOKUP('Data FA Lookup'!$D1026,'FC Master'!A:A,'FC Master'!Q:Q,'Data FA Lookup'!$D1026,0,1))","v":1580192005}]
["1530","158","HHS OCS Adm-Milburn Grant",1580192011,"158OCSAdm2011","1950-01-01","9999-12-31","2012-05-14","Yes","Yes","Yes",{"$f":"IF(A1027=\"????\",\"\",_xlfn.XLOOKUP('Data FA Lookup'!$D1027,'FC Master'!A:A,'FC Master'!Q:Q,'Data FA Lookup'!$D1027,0,1))","v":1580192011}]
["1530","158","HHS OCS Adm-Tx Dpt of F&PS Grant",1580192046,"158OCSAdm2046","1950-01-01","9999-12-31","2012-05-14","Yes","Yes","Yes",{"$f":"IF(A1028=\"????\",\"\",_xlfn.XLOOKUP('Data FA Lookup'!$D1028,'FC Master'!A:A,'FC Master'!Q:Q,'Data FA Lookup'!$D1028,0,1))","v":1580192046}]
["1530","158","HHS OCS Adm-US Dpt of HHS Grant",1580192055,"158OCSAdm2055","1950-01-01","9999-12-31","2012-05-14","Yes","Yes","Yes",{"$f":"IF(A1029=\"????\",\"\",_xlfn.XLOOKUP('Data FA Lookup'!$D1029,'FC Master'!A:A,'FC Master'!Q:Q,'Data FA Lookup'!$D1029,0,1))","v":1580192055}]
["1530","158","HHS OCS Adm-ATCIC Grant",1580192085,"158OCSAdm2085","1950-01-01","9999-12-31","2014-05-08","Yes","Yes","Yes",{"$f":"IF(A1030=\"????\",\"\",_xlfn.XLOOKUP('Data FA Lookup'!$D1030,'FC Master'!A:A,'FC Master'!Q:Q,'Data FA Lookup'!$D1030,0,1))","v":1580192085}]
["1230","158","HHS OCS Adm CPS Board-GF",1580200001,"158OCSCPSBd0001","1950-01-01","9999-12-31","2012-05-14","No","No","No",{"$f":"IF(A1031=\"????\",\"\",_xlfn.XLOOKUP('Data FA Lookup'!$D1031,'FC Master'!A:A,'FC Master'!Q:Q,'Data FA Lookup'!$D1031,0,1))","v":1580200001}]
["1230","158","HHS OCS Adm CPS Board-CWJD",1580200155,"158OCSCPSCWJD0155","1950-01-01","9999-12-31","2019-09-11","No","No","No",{"$f":"IF(A1032=\"????\",\"\",_xlfn.XLOOKUP('Data FA Lookup'!$D1032,'FC Master'!A:A,'FC Master'!Q:Q,'Data FA Lookup'!$D1032,0,1))","v":1580200155}]
["1530","158","HHS Home Visiting Program-GF",1580210001,"158HmVist0001","1950-01-01","9999-12-31","2012-05-14","No","No","No",{"$f":"IF(A1033=\"????\",\"\",_xlfn.XLOOKUP('Data FA Lookup'!$D1033,'FC Master'!A:A,'FC Master'!Q:Q,'Data FA Lookup'!$D1033,0,1))","v":1580210001}]
["1530","158","HHS Prevention & Intervention-GF",1580220001,"158P&I0001","1950-01-01","9999-12-31","2012-05-14","No","No","No",{"$f":"IF(A1034=\"????\",\"\",_xlfn.XLOOKUP('Data FA Lookup'!$D1034,'FC Master'!A:A,'FC Master'!Q:Q,'Data FA Lookup'!$D1034,0,1))","v":1580220001}]
["1230","158","HHS Family First",1580230001,"158FIRST0001","1950-01-01","9999-12-31","2012-05-14","No","No","No",{"$f":"IF(A1035=\"????\",\"\",_xlfn.XLOOKUP('Data FA Lookup'!$D1035,'FC Master'!A:A,'FC Master'!Q:Q,'Data FA Lookup'!$D1035,0,1))","v":1580230001}]
["1530","158","HHS Healthy Families 1-GF",1580240001,"158HF10001","1950-01-01","9999-12-31","2012-05-14","No","No","No",{"$f":"IF(A1036=\"????\",\"\",_xlfn.XLOOKUP('Data FA Lookup'!$D1036,'FC Master'!A:A,'FC Master'!Q:Q,'Data FA Lookup'!$D1036,0,1))","v":1580240001}]
["1530","158","HHS Healthy Families 1-Ch Abs Prev Fd",1580240135,"158HF10135","1950-01-01","9999-12-31","2012-05-14","No","No","No",{"$f":"IF(A1037=\"????\",\"\",_xlfn.XLOOKUP('Data FA Lookup'!$D1037,'FC Master'!A:A,'FC Master'!Q:Q,'Data FA Lookup'!$D1037,0,1))","v":1580240135}]
["1530","158","HHS Healthy Families 2-GF",1580250001,"158HF20001","1950-01-01","9999-12-31","2012-05-14","No","No","No",{"$f":"IF(A1038=\"????\",\"\",_xlfn.XLOOKUP('Data FA Lookup'!$D1038,'FC Master'!A:A,'FC Master'!Q:Q,'Data FA Lookup'!$D1038,0,1))","v":1580250001}]
["1530","158","HHS System of Care initiatives-GF",1580260001,"158SysCI0001","1950-01-01","9999-12-31","2012-05-14","No","No","No",{"$f":"IF(A1039=\"????\",\"\",_xlfn.XLOOKUP('Data FA Lookup'!$D1039,'FC Master'!A:A,'FC Master'!Q:Q,'Data FA Lookup'!$D1039,0,1))","v":1580260001}]
["1530","158","HHS Community Svs Adm-GF",1580270001,"158CmtySv0001","1950-01-01","9999-12-31","2012-05-14","No","No","No",{"$f":"IF(A1040=\"????\",\"\",_xlfn.XLOOKUP('Data FA Lookup'!$D1040,'FC Master'!A:A,'FC Master'!Q:Q,'Data FA Lookup'!$D1040,0,1))","v":1580270001}]
["1530","158","HHS Neighborhood Conf Comm-GF",1580280001,"158NCC0001","1950-01-01","9999-12-31","2012-05-14","No","No","No",{"$f":"IF(A1041=\"????\",\"\",_xlfn.XLOOKUP('Data FA Lookup'!$D1041,'FC Master'!A:A,'FC Master'!Q:Q,'Data FA Lookup'!$D1041,0,1))","v":1580280001}]
["1530","158","HHS Work Based Learning-GF",1580290001,"158WBL0001","1950-01-01","9999-12-31","2012-05-14","No","No","No",{"$f":"IF(A1042=\"????\",\"\",_xlfn.XLOOKUP('Data FA Lookup'!$D1042,'FC Master'!A:A,'FC Master'!Q:Q,'Data FA Lookup'!$D1042,0,1))","v":1580290001}]
["1530","158","HHS Coming of Age-GF",1580300001,"158CmgAge0001","1950-01-01","9999-12-31","2012-05-14","No","No","No",{"$f":"IF(A1043=\"????\",\"\",_xlfn.XLOOKUP('Data FA Lookup'!$D1043,'FC Master'!A:A,'FC Master'!Q:Q,'Data FA Lookup'!$D1043,0,1))","v":1580300001}]
["1530","158","HHS CmgAge-CmgAge Austin Metro Grant",1580302008,"158CmgAge2008","1950-01-01","9999-12-31","2012-05-14","Yes","Yes","Yes",{"$f":"IF(A1044=\"????\",\"\",_xlfn.XLOOKUP('Data FA Lookup'!$D1044,'FC Master'!A:A,'FC Master'!Q:Q,'Data FA Lookup'!$D1044,0,1))","v":1580302008}]
["1530","158","HHS CmgAge-Corp Natl & Cmty Sv Grant",1580302009,"158CmgAge2009","1950-01-01","9999-12-31","2012-05-14","Yes","Yes","Yes",{"$f":"IF(A1045=\"????\",\"\",_xlfn.XLOOKUP('Data FA Lookup'!$D1045,'FC Master'!A:A,'FC Master'!Q:Q,'Data FA Lookup'!$D1045,0,1))","v":1580302009}]
["1530","158","HHS CmgAge-UNT Fed Grant",1580302030,"158CmgAge2030","1950-01-01","9999-12-31","2012-05-14","Yes","Yes","Yes",{"$f":"IF(A1046=\"????\",\"\",_xlfn.XLOOKUP('Data FA Lookup'!$D1046,'FC Master'!A:A,'FC Master'!Q:Q,'Data FA Lookup'!$D1046,0,1))","v":1580302030}]
["1530","158","HHS CmgAge-Tx Dpt on A&DS Grant",1580302044,"158CmgAge2044","1950-01-01","9999-12-31","2012-05-14","Yes","Yes","Yes",{"$f":"IF(A1047=\"????\",\"\",_xlfn.XLOOKUP('Data FA Lookup'!$D1047,'FC Master'!A:A,'FC Master'!Q:Q,'Data FA Lookup'!$D1047,0,1))","v":1580302044}]
["1530","158","DSHS CmgAge-UNT St Grant",1580302093,"158CmgAge2093","1950-01-01","9999-12-31","2015-02-25","Yes","Yes","Yes",{"$f":"IF(A1048=\"????\",\"\",_xlfn.XLOOKUP('Data FA Lookup'!$D1048,'FC Master'!A:A,'FC Master'!Q:Q,'Data FA Lookup'!$D1048,0,1))","v":1580302093}]
["1530","158","HHS Deaf Svs-GF",1580310001,"158DeafSvs0001","1950-01-01","9999-12-31","2012-05-14","No","No","No",{"$f":"IF(A1049=\"????\",\"\",_xlfn.XLOOKUP('Data FA Lookup'!$D1049,'FC Master'!A:A,'FC Master'!Q:Q,'Data FA Lookup'!$D1049,0,1))","v":1580310001}]
["1530","158","HHS Housing Adm-GF",1580320001,"158HSAdm0001","1950-01-01","9999-12-31","2012-05-14","No","No","No",{"$f":"IF(A1050=\"????\",\"\",_xlfn.XLOOKUP('Data FA Lookup'!$D1050,'FC Master'!A:A,'FC Master'!Q:Q,'Data FA Lookup'!$D1050,0,1))","v":1580320001}]
["1530","158","HHS Housing Repair-GF",1580330001,"158HsgRepair0001","1950-01-01","9999-12-31","2012-05-14","No","No","No",{"$f":"IF(A1051=\"????\",\"\",_xlfn.XLOOKUP('Data FA Lookup'!$D1051,'FC Master'!A:A,'FC Master'!Q:Q,'Data FA Lookup'!$D1051,0,1))","v":1580330001}]
["1530","158","HHS Housing Repair-TACAA Grant",1580332043,"158HsgRepair2043","1950-01-01","9999-12-31","2012-05-14","Yes","No","Yes",{"$f":"IF(A1052=\"????\",\"\",_xlfn.XLOOKUP('Data FA Lookup'!$D1052,'FC Master'!A:A,'FC Master'!Q:Q,'Data FA Lookup'!$D1052,0,1))","v":1580332043}]
["1530","158","HHS Housing Repair-TDHCA-DOE Grant",1580332047,"158HsgRepair2047","1950-01-01","9999-12-31","2012-05-14","Yes","Yes","Yes",{"$f":"IF(A1053=\"????\",\"\",_xlfn.XLOOKUP('Data FA Lookup'!$D1053,'FC Master'!A:A,'FC Master'!Q:Q,'Data FA Lookup'!$D1053,0,1))","v":1580332047}]
["1530","158","HHS Housing Repair-TDHCA-USHHS Grant",1580332061,"158HsgRepair2061","1950-01-01","9999-12-31","2012-05-14","Yes","Yes","Yes",{"$f":"IF(A1054=\"????\",\"\",_xlfn.XLOOKUP('Data FA Lookup'!$D1054,'FC Master'!A:A,'FC Master'!Q:Q,'Data FA Lookup'!$D1054,0,1))","v":1580332061}]
["1530","158","HHS COA Weatherization Interlocal-GF",1580340001,"158COAWea0001","1950-01-01","9999-12-31","2012-05-14","No","No","No",{"$f":"IF(A1055=\"????\",\"\",_xlfn.XLOOKUP('Data FA Lookup'!$D1055,'FC Master'!A:A,'FC Master'!Q:Q,'Data FA Lookup'!$D1055,0,1))","v":1580340001}]
["1520","158","HHS EHS Consmr/Comm Prot-Hlthfd Prmts",1580350138,"158EHSConsumProt0138","1950-01-01","9999-12-31","2012-05-14","No","No","No",{"$f":"IF(A1056=\"????\",\"\",_xlfn.XLOOKUP('Data FA Lookup'!$D1056,'FC Master'!A:A,'FC Master'!Q:Q,'Data FA Lookup'!$D1056,0,1))","v":1580350138}]
["1530","158","HHS Adm ATCHHS-Hlthfd Prmts",1580360138,"158AdmATCHHS0138","1950-01-01","9999-12-31","2012-05-14","No","No","No",{"$f":"IF(A1057=\"????\",\"\",_xlfn.XLOOKUP('Data FA Lookup'!$D1057,'FC Master'!A:A,'FC Master'!Q:Q,'Data FA Lookup'!$D1057,0,1))","v":1580360138}]
["1530","158","HHS Probation Svs-GF",1580370001,"158PrbSvs0001","1950-01-01","9999-12-31","2012-05-14","No","No","No",{"$f":"IF(A1058=\"????\",\"\",_xlfn.XLOOKUP('Data FA Lookup'!$D1058,'FC Master'!A:A,'FC Master'!Q:Q,'Data FA Lookup'!$D1058,0,1))","v":1580370001}]
["1510","158","HHS Clinic Services-GF",1580380001,"158ClinicSvs0001","1950-01-01","9999-12-31","2012-05-14","No","No","No",{"$f":"IF(A1059=\"????\",\"\",_xlfn.XLOOKUP('Data FA Lookup'!$D1059,'FC Master'!A:A,'FC Master'!Q:Q,'Data FA Lookup'!$D1059,0,1))","v":1580380001}]
["1530","158","HHS CDPS Immunization Svs-GF",1580390001,"158CDPSImmun0001","1950-01-01","9999-12-31","2012-05-14","No","No","No",{"$f":"IF(A1060=\"????\",\"\",_xlfn.XLOOKUP('Data FA Lookup'!$D1060,'FC Master'!A:A,'FC Master'!Q:Q,'Data FA Lookup'!$D1060,0,1))","v":1580390001}]
["1510","158","HHS Health District Svs-GF",1580400001,"158HthDstSvs0001","1950-01-01","9999-12-31","2012-05-14","No","No","No",{"$f":"IF(A1061=\"????\",\"\",_xlfn.XLOOKUP('Data FA Lookup'!$D1061,'FC Master'!A:A,'FC Master'!Q:Q,'Data FA Lookup'!$D1061,0,1))","v":1580400001}]
["1530","158","HHS Veterans Service Adm-GF",1580410001,"158VetSvsAdm0001","1950-01-01","9999-12-31","2012-05-14","Yes","Yes","Yes",{"$f":"IF(A1062=\"????\",\"\",_xlfn.XLOOKUP('Data FA Lookup'!$D1062,'FC Master'!A:A,'FC Master'!Q:Q,'Data FA Lookup'!$D1062,0,1))","v":1580410001}]
["1530","158","HHS-Veterans Services Adm-US DOL Grant",1580412053,"158VetSvsAdm2053","1950-01-01","2017-10-16","2012-05-14","Yes","Yes","Yes",{"$f":"IF(A1063=\"????\",\"\",_xlfn.XLOOKUP('Data FA Lookup'!$D1063,'FC Master'!A:A,'FC Master'!Q:Q,'Data FA Lookup'!$D1063,0,1))","v":1580412053}]
["1530","158","HHS Texas Ag Ext Svs Adm-GF",1580420001,"158HHS-TAESAdm0001","1950-01-01","9999-12-31","2012-05-14","No","No","No",{"$f":"IF(A1064=\"????\",\"\",_xlfn.XLOOKUP('Data FA Lookup'!$D1064,'FC Master'!A:A,'FC Master'!Q:Q,'Data FA Lookup'!$D1064,0,1))","v":1580420001}]
["1530","158","HHS TAES Agr/Horticulture Pgs-GF",1580430001,"158HortPgs0001","1950-01-01","9999-12-31","2012-05-14","No","No","No",{"$f":"IF(A1065=\"????\",\"\",_xlfn.XLOOKUP('Data FA Lookup'!$D1065,'FC Master'!A:A,'FC Master'!Q:Q,'Data FA Lookup'!$D1065,0,1))","v":1580430001}]
["1530","158","HHS TAES Agr/Hort Pgs-Onestar Grnt",1580432020,"158HortPgs2020","1950-01-01","9999-12-31","2012-05-14","Yes","Yes","Yes",{"$f":"IF(A1066=\"????\",\"\",_xlfn.XLOOKUP('Data FA Lookup'!$D1066,'FC Master'!A:A,'FC Master'!Q:Q,'Data FA Lookup'!$D1066,0,1))","v":1580432020}]
["1530","158","HHS TAES 4-H and Youth Dev Pg-GF",1580440001,"1584HYouth0001","1950-01-01","9999-12-31","2012-05-14","No","No","No",{"$f":"IF(A1067=\"????\",\"\",_xlfn.XLOOKUP('Data FA Lookup'!$D1067,'FC Master'!A:A,'FC Master'!Q:Q,'Data FA Lookup'!$D1067,0,1))","v":1580440001}]
["1530","158","HHS TAES 4-H and Youth Dev Pg-AYES Fd",1580440149,"1584HYouth0149","1950-01-01","9999-12-31","2012-12-04","No","No","No",{"$f":"IF(A1068=\"????\",\"\",_xlfn.XLOOKUP('Data FA Lookup'!$D1068,'FC Master'!A:A,'FC Master'!Q:Q,'Data FA Lookup'!$D1068,0,1))","v":1580440149}]
["1530","158","HHS TAES Family & Consumer Sci Pg-GF",1580450001,"158FamConsSciPg0001","1950-01-01","9999-12-31","2012-05-14","No","No","No",{"$f":"IF(A1069=\"????\",\"\",_xlfn.XLOOKUP('Data FA Lookup'!$D1069,'FC Master'!A:A,'FC Master'!Q:Q,'Data FA Lookup'!$D1069,0,1))","v":1580450001}]
["1530","158","HHS TAES Media Services-GF",1580460001,"158MediaSvs0001","1950-01-01","9999-12-31","2012-05-14","No","No","No",{"$f":"IF(A1070=\"????\",\"\",_xlfn.XLOOKUP('Data FA Lookup'!$D1070,'FC Master'!A:A,'FC Master'!Q:Q,'Data FA Lookup'!$D1070,0,1))","v":1580460001}]
["1530","158","HHS TAES Integrated Pest Mgmt Pg-GF",1580470001,"158IntPestMgmt0001","1950-01-01","9999-12-31","2012-05-14","No","No","No",{"$f":"IF(A1071=\"????\",\"\",_xlfn.XLOOKUP('Data FA Lookup'!$D1071,'FC Master'!A:A,'FC Master'!Q:Q,'Data FA Lookup'!$D1071,0,1))","v":1580470001}]
["1530","158","HHS TAES Wildlife Mgmt Sv-GF",1580480001,"158WldlfMgmtSv0001","1950-01-01","9999-12-31","2012-05-14","No","No","No",{"$f":"IF(A1072=\"????\",\"\",_xlfn.XLOOKUP('Data FA Lookup'!$D1072,'FC Master'!A:A,'FC Master'!Q:Q,'Data FA Lookup'!$D1072,0,1))","v":1580480001}]
["1530","158","HHS TAES Nutrition & Health-GF",1580490001,"158NutHlth0001","1950-01-01","9999-12-31","2012-05-14","No","No","No",{"$f":"IF(A1073=\"????\",\"\",_xlfn.XLOOKUP('Data FA Lookup'!$D1073,'FC Master'!A:A,'FC Master'!Q:Q,'Data FA Lookup'!$D1073,0,1))","v":1580490001}]
["1530","158","HHS TCP / TRIAD-GF",1580500001,"158TCPTRIAD0001","1950-01-01","9999-12-31","2012-05-14","No","No","No",{"$f":"IF(A1074=\"????\",\"\",_xlfn.XLOOKUP('Data FA Lookup'!$D1074,'FC Master'!A:A,'FC Master'!Q:Q,'Data FA Lookup'!$D1074,0,1))","v":1580500001}]
["1530","158","HHS Community Liaison-GF",1580510001,"158CmtyLiaison0001","1950-01-01","9999-12-31","2012-05-14","No","No","No",{"$f":"IF(A1075=\"????\",\"\",_xlfn.XLOOKUP('Data FA Lookup'!$D1075,'FC Master'!A:A,'FC Master'!Q:Q,'Data FA Lookup'!$D1075,0,1))","v":1580510001}]
["1230","158","HHS CPS Court Ordered-GF",1580520001,"158CPSCO0001","1950-01-01","9999-12-31","2012-05-14","No","No","No",{"$f":"IF(A1076=\"????\",\"\",_xlfn.XLOOKUP('Data FA Lookup'!$D1076,'FC Master'!A:A,'FC Master'!Q:Q,'Data FA Lookup'!$D1076,0,1))","v":1580520001}]
["1230","158","HHS CPS Title 4E-GF",1580530001,"158CPSTitle4E0001","1950-01-01","9999-12-31","2012-05-14","No","No","No",{"$f":"IF(A1077=\"????\",\"\",_xlfn.XLOOKUP('Data FA Lookup'!$D1077,'FC Master'!A:A,'FC Master'!Q:Q,'Data FA Lookup'!$D1077,0,1))","v":1580530001}]
["1530","158","HHS Social Service Contracts-GF",1580540001,"158SSCntrc0001","1950-01-01","9999-12-31","2012-05-14","No","No","No",{"$f":"IF(A1078=\"????\",\"\",_xlfn.XLOOKUP('Data FA Lookup'!$D1078,'FC Master'!A:A,'FC Master'!Q:Q,'Data FA Lookup'!$D1078,0,1))","v":1580540001}]
["1510","158","HHS Inter COA Healthcare-GF",1580550001,"158COAHlhcare0001","1950-01-01","9999-12-31","2012-05-14","No","No","No",{"$f":"IF(A1079=\"????\",\"\",_xlfn.XLOOKUP('Data FA Lookup'!$D1079,'FC Master'!A:A,'FC Master'!Q:Q,'Data FA Lookup'!$D1079,0,1))","v":1580550001}]
["1530","158","HHS Inter COA Human Svs-GF",1580560001,"158COAHumanSv0001","1950-01-01","9999-12-31","2012-05-14","No","No","No",{"$f":"IF(A1080=\"????\",\"\",_xlfn.XLOOKUP('Data FA Lookup'!$D1080,'FC Master'!A:A,'FC Master'!Q:Q,'Data FA Lookup'!$D1080,0,1))","v":1580560001}]
["1530","158","HHS Chief Deputy Dir. - GF",1580570001,"158ChiefDeputy0001","1950-01-01","9999-12-31","2016-10-07","No","No","No",{"$f":"IF(A1081=\"????\",\"\",_xlfn.XLOOKUP('Data FA Lookup'!$D1081,'FC Master'!A:A,'FC Master'!Q:Q,'Data FA Lookup'!$D1081,0,1))","v":1580570001}]
["1530","158","HHS SSC - Workforce Development-GF",1580580001,"158SSCWkfDev0001","1950-01-01","9999-12-31","2020-04-02","No","No","No",{"$f":"IF(A1082=\"????\",\"\",_xlfn.XLOOKUP('Data FA Lookup'!$D1082,'FC Master'!A:A,'FC Master'!Q:Q,'Data FA Lookup'!$D1082,0,1))","v":1580580001}]
["1530","158","HHS SSC-Supportive Svcs for Com Livng-GF",1580590001,"158SSCSupSvcComLiv01","1950-01-01","9999-12-31","2020-04-02","No","No","No",{"$f":"IF(A1083=\"????\",\"\",_xlfn.XLOOKUP('Data FA Lookup'!$D1083,'FC Master'!A:A,'FC Master'!Q:Q,'Data FA Lookup'!$D1083,0,1))","v":1580590001}]
["1530","158","HHS SSC - Holistic Family Services-GF",1580600001,"158SSCHolFamSvc0001","1950-01-01","9999-12-31","2020-04-02","No","No","No",{"$f":"IF(A1084=\"????\",\"\",_xlfn.XLOOKUP('Data FA Lookup'!$D1084,'FC Master'!A:A,'FC Master'!Q:Q,'Data FA Lookup'!$D1084,0,1))","v":1580600001}]
["1530","158","HHS SSC - Public Health Social Servcs-GF",1580610001,"158SSCPubHlthSS0001","1950-01-01","9999-12-31","2020-04-02","No","No","No",{"$f":"IF(A1085=\"????\",\"\",_xlfn.XLOOKUP('Data FA Lookup'!$D1085,'FC Master'!A:A,'FC Master'!Q:Q,'Data FA Lookup'!$D1085,0,1))","v":1580610001}]
["1530","158","HHS SSC - Safety Intervention Servcs-GF",1580620001,"158SSCSafIntervSvc01","1950-01-01","9999-12-31","2020-04-02","No","No","No",{"$f":"IF(A1086=\"????\",\"\",_xlfn.XLOOKUP('Data FA Lookup'!$D1086,'FC Master'!A:A,'FC Master'!Q:Q,'Data FA Lookup'!$D1086,0,1))","v":1580620001}]
["1530","158","HHS SSC - Housing Continuum-GF",1580630001,"158SSCHousCont0001","1950-01-01","9999-12-31","2020-04-02","No","No","No",{"$f":"IF(A1087=\"????\",\"\",_xlfn.XLOOKUP('Data FA Lookup'!$D1087,'FC Master'!A:A,'FC Master'!Q:Q,'Data FA Lookup'!$D1087,0,1))","v":1580630001}]
["1530","158","HHS SSC - Access to Basic Supports-GF",1580640001,"158SSCAccBasSupp0001","1950-01-01","9999-12-31","2020-04-02","No","No","No",{"$f":"IF(A1088=\"????\",\"\",_xlfn.XLOOKUP('Data FA Lookup'!$D1088,'FC Master'!A:A,'FC Master'!Q:Q,'Data FA Lookup'!$D1088,0,1))","v":1580640001}]
["1530","158","HHS SSC - Child and Youth Development-GF",1580650001,"158SSCChYthDev0001","1950-01-01","9999-12-31","2020-04-02","No","No","No",{"$f":"IF(A1089=\"????\",\"\",_xlfn.XLOOKUP('Data FA Lookup'!$D1089,'FC Master'!A:A,'FC Master'!Q:Q,'Data FA Lookup'!$D1089,0,1))","v":1580650001}]
["1530","158","HHS SSC - Behavioral Health-GF",1580660001,"158SSCBehHlth0001","1950-01-01","9999-12-31","2020-04-02","No","No","No",{"$f":"IF(A1090=\"????\",\"\",_xlfn.XLOOKUP('Data FA Lookup'!$D1090,'FC Master'!A:A,'FC Master'!Q:Q,'Data FA Lookup'!$D1090,0,1))","v":1580660001}]
["1530","158","HHS CAR-HumanSrvcs GF",1588010001,"158CAR0001","1950-01-01","9999-12-31","2016-08-19","No","No","No",{"$f":"IF(A1091=\"????\",\"\",_xlfn.XLOOKUP('Data FA Lookup'!$D1091,'FC Master'!A:A,'FC Master'!Q:Q,'Data FA Lookup'!$D1091,0,1))","v":1588010001}]
["1510","159","EMS Starflight – Capital Proj",1590010000,"159StFltCPProj0000","1950-01-01","9999-12-31","2019-06-11","No","No","No",{"$f":"IF(A1092=\"????\",\"\",_xlfn.XLOOKUP('Data FA Lookup'!$D1092,'FC Master'!A:A,'FC Master'!Q:Q,'Data FA Lookup'!$D1092,0,1))","v":1590010000}]
["1510","159","EMS Star Flight Administrative-GF",1590010001,"159StFltAdm0001","1950-01-01","9999-12-31","2012-05-14","No","No","No",{"$f":"IF(A1093=\"????\",\"\",_xlfn.XLOOKUP('Data FA Lookup'!$D1093,'FC Master'!A:A,'FC Master'!Q:Q,'Data FA Lookup'!$D1093,0,1))","v":1590010001}]
["1510","159","EMS StarFlight-OOG Div of Emergency Mgmt",1590012017,"159StFltOptgs2017","1900-01-01","1949-12-31","2014-08-15","Yes","No","Yes",{"$f":"IF(A1094=\"????\",\"\",_xlfn.XLOOKUP('Data FA Lookup'!$D1094,'FC Master'!A:A,'FC Master'!Q:Q,'Data FA Lookup'!$D1094,0,1))","v":1590012017}]
["1510","159","EMS StarFlight-OOG Div of Emergency Mgmt",1590012017,"159StFltOptgs2017","1950-01-01","9999-12-31","2014-08-15","Yes","Yes","Yes",{"$f":"IF(A1095=\"????\",\"\",_xlfn.XLOOKUP('Data FA Lookup'!$D1095,'FC Master'!A:A,'FC Master'!Q:Q,'Data FA Lookup'!$D1095,0,1))","v":1590012017}]
["1510","159","EMS StarFlight-OOG Div Emrg Fed Cap Grnt",1590012018,"159StFltOptgs2018","1950-01-01","9999-12-31","2012-05-14","Yes","Yes","Yes",{"$f":"IF(A1096=\"????\",\"\",_xlfn.XLOOKUP('Data FA Lookup'!$D1096,'FC Master'!A:A,'FC Master'!Q:Q,'Data FA Lookup'!$D1096,0,1))","v":1590012018}]
["1510","159","EMS StarFlight-CATRAC",1590012048,"159StFltOptgs2048","1950-01-01","9999-12-31","2012-05-14","Yes","No","Yes",{"$f":"IF(A1097=\"????\",\"\",_xlfn.XLOOKUP('Data FA Lookup'!$D1097,'FC Master'!A:A,'FC Master'!Q:Q,'Data FA Lookup'!$D1097,0,1))","v":1590012048}]
["1510","159","EMS Star Flight-CO 2005",1590014044,"159StFltOptgs4044","1950-01-01","9999-12-31","2012-05-14","No","No","No",{"$f":"IF(A1098=\"????\",\"\",_xlfn.XLOOKUP('Data FA Lookup'!$D1098,'FC Master'!A:A,'FC Master'!Q:Q,'Data FA Lookup'!$D1098,0,1))","v":1590014044}]
["1510","159","EMS Star Flight-CO 2010-Nontax",1590014063,"159StFltOptgs4063","1950-01-01","9999-12-31","2012-05-14","No","No","No",{"$f":"IF(A1099=\"????\",\"\",_xlfn.XLOOKUP('Data FA Lookup'!$D1099,'FC Master'!A:A,'FC Master'!Q:Q,'Data FA Lookup'!$D1099,0,1))","v":1590014063}]
["1510","159","EMS Star Flight Operations-GF",1590020001,"159StFltOps0001","1950-01-01","9999-12-31","2012-05-14","No","No","No",{"$f":"IF(A1100=\"????\",\"\",_xlfn.XLOOKUP('Data FA Lookup'!$D1100,'FC Master'!A:A,'FC Master'!Q:Q,'Data FA Lookup'!$D1100,0,1))","v":1590020001}]
["1510","159","EMS Star Flight Pilots-GF",1590030001,"159StFltPilots0001","1950-01-01","9999-12-31","2012-05-14","No","No","No",{"$f":"IF(A1101=\"????\",\"\",_xlfn.XLOOKUP('Data FA Lookup'!$D1101,'FC Master'!A:A,'FC Master'!Q:Q,'Data FA Lookup'!$D1101,0,1))","v":1590030001}]
["1510","159","EMS Star Flight Nurses-GF",1590040001,"159StFltNurses0001","1950-01-01","9999-12-31","2012-05-14","No","No","No",{"$f":"IF(A1102=\"????\",\"\",_xlfn.XLOOKUP('Data FA Lookup'!$D1102,'FC Master'!A:A,'FC Master'!Q:Q,'Data FA Lookup'!$D1102,0,1))","v":1590040001}]
["1510","159","EMS Star Flight Paramedics-GF",1590050001,"159StFltParMed0001","1950-01-01","9999-12-31","2012-05-14","No","No","No",{"$f":"IF(A1103=\"????\",\"\",_xlfn.XLOOKUP('Data FA Lookup'!$D1103,'FC Master'!A:A,'FC Master'!Q:Q,'Data FA Lookup'!$D1103,0,1))","v":1590050001}]
["1510","159","EMS Star Flight Maintenance-GF",1590060001,"159StFltMnt0001","1950-01-01","9999-12-31","2012-05-14","No","No","No",{"$f":"IF(A1104=\"????\",\"\",_xlfn.XLOOKUP('Data FA Lookup'!$D1104,'FC Master'!A:A,'FC Master'!Q:Q,'Data FA Lookup'!$D1104,0,1))","v":1590060001}]
["1510","159","EMS Star Flight Interlocal Svs-GF",1590070001,"159IntLocalSvs0001","1950-01-01","9999-12-31","2012-05-14","No","No","No",{"$f":"IF(A1105=\"????\",\"\",_xlfn.XLOOKUP('Data FA Lookup'!$D1105,'FC Master'!A:A,'FC Master'!Q:Q,'Data FA Lookup'!$D1105,0,1))","v":1590070001}]
["1510","159","EMS Emrg Med Sv-GF",1590080001,"159EMS0001","1950-01-01","9999-12-31","2012-05-14","No","No","No",{"$f":"IF(A1106=\"????\",\"\",_xlfn.XLOOKUP('Data FA Lookup'!$D1106,'FC Master'!A:A,'FC Master'!Q:Q,'Data FA Lookup'!$D1106,0,1))","v":1590080001}]
["1510","159","EMS Emrg Med Sv-CO 2006",1590084002,"159EMS4002","1950-01-01","9999-12-31","2012-05-14","No","No","No",{"$f":"IF(A1107=\"????\",\"\",_xlfn.XLOOKUP('Data FA Lookup'!$D1107,'FC Master'!A:A,'FC Master'!Q:Q,'Data FA Lookup'!$D1107,0,1))","v":1590084002}]
["1510","159","EMS Emrg Med Sv-CO 2007",1590084052,"159EMS4052","1950-01-01","9999-12-31","2012-05-14","No","No","No",{"$f":"IF(A1108=\"????\",\"\",_xlfn.XLOOKUP('Data FA Lookup'!$D1108,'FC Master'!A:A,'FC Master'!Q:Q,'Data FA Lookup'!$D1108,0,1))","v":1590084052}]
["1510","159","EMS Emrg Med Sv-CO 2009",1590084059,"159EMS4059","1950-01-01","9999-12-31","2012-05-14","No","No","No",{"$f":"IF(A1109=\"????\",\"\",_xlfn.XLOOKUP('Data FA Lookup'!$D1109,'FC Master'!A:A,'FC Master'!Q:Q,'Data FA Lookup'!$D1109,0,1))","v":1590084059}]
["1510","159","EMS Emrg Med Sv-CO 2011",1590084068,"159EMS4068","1950-01-01","9999-12-31","2012-05-14","No","No","No",{"$f":"IF(A1110=\"????\",\"\",_xlfn.XLOOKUP('Data FA Lookup'!$D1110,'FC Master'!A:A,'FC Master'!Q:Q,'Data FA Lookup'!$D1110,0,1))","v":1590084068}]
["1510","159","EMS Emergency Service Districts-GF",1590090001,"159ESD0001","1950-01-01","9999-12-31","2012-05-14","No","No","No",{"$f":"IF(A1111=\"????\",\"\",_xlfn.XLOOKUP('Data FA Lookup'!$D1111,'FC Master'!A:A,'FC Master'!Q:Q,'Data FA Lookup'!$D1111,0,1))","v":1590090001}]
["1510","159","EMS Clin Perf & Educ-GF",1590100001,"159DCPE0001","1950-01-01","9999-12-31","2012-05-14","No","No","No",{"$f":"IF(A1112=\"????\",\"\",_xlfn.XLOOKUP('Data FA Lookup'!$D1112,'FC Master'!A:A,'FC Master'!Q:Q,'Data FA Lookup'!$D1112,0,1))","v":1590100001}]
["1320","159","EMS Emrg Fire Svcs",1590110000,"159EMS0000","1950-01-01","9999-12-31","2013-05-20","No","No","No",{"$f":"IF(A1113=\"????\",\"\",_xlfn.XLOOKUP('Data FA Lookup'!$D1113,'FC Master'!A:A,'FC Master'!Q:Q,'Data FA Lookup'!$D1113,0,1))","v":1590110000}]
["1320","159","EMS Emrg Fire Sv-GF",1590110001,"159EMS0001","1950-01-01","9999-12-31","2012-12-10","No","No","No",{"$f":"IF(A1114=\"????\",\"\",_xlfn.XLOOKUP('Data FA Lookup'!$D1114,'FC Master'!A:A,'FC Master'!Q:Q,'Data FA Lookup'!$D1114,0,1))","v":1590110001}]
["1510","159","EMS CAR-DevRegIn GF",1598000001,"159CAR0DevRegln001","1950-01-01","9999-12-31","2012-05-15","No","No","No",{"$f":"IF(A1115=\"????\",\"\",_xlfn.XLOOKUP('Data FA Lookup'!$D1115,'FC Master'!A:A,'FC Master'!Q:Q,'Data FA Lookup'!$D1115,0,1))","v":1598000001}]
["1510","159","EMS Reimbursement Resolution Funds-GF",1599000001,"159ReimburseRes0001","1950-01-01","9999-12-31","2013-05-07","No","No","No",{"$f":"IF(A1116=\"????\",\"\",_xlfn.XLOOKUP('Data FA Lookup'!$D1116,'FC Master'!A:A,'FC Master'!Q:Q,'Data FA Lookup'!$D1116,0,1))","v":1599000001}]
["1110","190","Ctl Computer-County Judge-GenAdm",1901100000,"190-101GenAdm0000","1950-01-01","9999-12-31","2012-05-14","No","No","No",{"$f":"IF(A1117=\"????\",\"\",_xlfn.XLOOKUP('Data FA Lookup'!$D1117,'FC Master'!A:A,'FC Master'!Q:Q,'Data FA Lookup'!$D1117,0,1))","v":1901100000}]
["1230","190","Ctl Computer-County Judge-JuvSvs",1901110000,"190-101JuvSvs0000","1950-01-01","9999-12-31","2012-05-14","No","No","No",{"$f":"IF(A1118=\"????\",\"\",_xlfn.XLOOKUP('Data FA Lookup'!$D1118,'FC Master'!A:A,'FC Master'!Q:Q,'Data FA Lookup'!$D1118,0,1))","v":1901110000}]
["1110","190","Ctl Computer-CC Pct 1-GenAdm",1901120000,"190-102GenAdm0000","1950-01-01","9999-12-31","2012-05-14","No","No","No",{"$f":"IF(A1119=\"????\",\"\",_xlfn.XLOOKUP('Data FA Lookup'!$D1119,'FC Master'!A:A,'FC Master'!Q:Q,'Data FA Lookup'!$D1119,0,1))","v":1901120000}]
["1110","190","Ctl Computer-CC Pct 2-GenAdm",1901130000,"190-103GenAdm0000","1950-01-01","9999-12-31","2012-05-14","No","No","No",{"$f":"IF(A1120=\"????\",\"\",_xlfn.XLOOKUP('Data FA Lookup'!$D1120,'FC Master'!A:A,'FC Master'!Q:Q,'Data FA Lookup'!$D1120,0,1))","v":1901130000}]
["1110","190","Ctl Computer-CC Pct 3-GenAdm",1901140000,"190-104GenAdm0000","1950-01-01","9999-12-31","2012-05-14","No","No","No",{"$f":"IF(A1121=\"????\",\"\",_xlfn.XLOOKUP('Data FA Lookup'!$D1121,'FC Master'!A:A,'FC Master'!Q:Q,'Data FA Lookup'!$D1121,0,1))","v":1901140000}]
["1110","190","Ctl Computer-CC Pct 4-GenAdm",1901150000,"190-105GenAdm0000","1950-01-01","9999-12-31","2012-05-14","No","No","No",{"$f":"IF(A1122=\"????\",\"\",_xlfn.XLOOKUP('Data FA Lookup'!$D1122,'FC Master'!A:A,'FC Master'!Q:Q,'Data FA Lookup'!$D1122,0,1))","v":1901150000}]
["1120","190","Ctl Computer-County Auditor-FinAdm",1901160000,"190-106FinAdm0000","1950-01-01","9999-12-31","2012-05-14","No","No","No",{"$f":"IF(A1123=\"????\",\"\",_xlfn.XLOOKUP('Data FA Lookup'!$D1123,'FC Master'!A:A,'FC Master'!Q:Q,'Data FA Lookup'!$D1123,0,1))","v":1901160000}]
["1120","190","Ctl Computer-County Treasurer-FinAdm",1901170000,"190-107FinAdm0000","1950-01-01","9999-12-31","2012-05-14","No","No","No",{"$f":"IF(A1124=\"????\",\"\",_xlfn.XLOOKUP('Data FA Lookup'!$D1124,'FC Master'!A:A,'FC Master'!Q:Q,'Data FA Lookup'!$D1124,0,1))","v":1901170000}]
["1130","190","Ctl Computer-Tax Collector-TaxAdm",1901180000,"190-108TaxAdm0000","1950-01-01","9999-12-31","2012-05-14","No","No","No",{"$f":"IF(A1125=\"????\",\"\",_xlfn.XLOOKUP('Data FA Lookup'!$D1125,'FC Master'!A:A,'FC Master'!Q:Q,'Data FA Lookup'!$D1125,0,1))","v":1901180000}]
["1210","190","Ctl Computer-Tax Collector-CrmJs",1901190000,"190-108CrmJs0000","1950-01-01","9999-12-31","2012-05-14","No","No","No",{"$f":"IF(A1126=\"????\",\"\",_xlfn.XLOOKUP('Data FA Lookup'!$D1126,'FC Master'!A:A,'FC Master'!Q:Q,'Data FA Lookup'!$D1126,0,1))","v":1901190000}]
["1150","190","Ctl Computer-Tax Collector-ElnAdm",1901200000,"190-108ElnAdm0000","1950-01-01","9999-12-31","2012-05-14","No","No","No",{"$f":"IF(A1127=\"????\",\"\",_xlfn.XLOOKUP('Data FA Lookup'!$D1127,'FC Master'!A:A,'FC Master'!Q:Q,'Data FA Lookup'!$D1127,0,1))","v":1901200000}]
["1120","190","Ctl Computer-Planning And Budget-FinAdm",1901210000,"190-109FinAdm0000","1950-01-01","9999-12-31","2012-05-14","No","No","No",{"$f":"IF(A1128=\"????\",\"\",_xlfn.XLOOKUP('Data FA Lookup'!$D1128,'FC Master'!A:A,'FC Master'!Q:Q,'Data FA Lookup'!$D1128,0,1))","v":1901210000}]
["1110","190","Ctl Computer-General Adm-GenAdm",1901220000,"190-110GenAdm0000","1950-01-01","9999-12-31","2012-05-14","No","No","No",{"$f":"IF(A1129=\"????\",\"\",_xlfn.XLOOKUP('Data FA Lookup'!$D1129,'FC Master'!A:A,'FC Master'!Q:Q,'Data FA Lookup'!$D1129,0,1))","v":1901220000}]
["1510","190","Ctl Computer-General Adm-Hlhcare",1901230000,"190-110Hlhcare0000","1950-01-01","9999-12-31","2012-05-14","No","No","No",{"$f":"IF(A1130=\"????\",\"\",_xlfn.XLOOKUP('Data FA Lookup'!$D1130,'FC Master'!A:A,'FC Master'!Q:Q,'Data FA Lookup'!$D1130,0,1))","v":1901230000}]
["1610","190","Ctl Computer-General Adm-EconDev",1901240000,"190-110EconDev0000","1950-01-01","9999-12-31","2012-05-14","No","No","No",{"$f":"IF(A1131=\"????\",\"\",_xlfn.XLOOKUP('Data FA Lookup'!$D1131,'FC Master'!A:A,'FC Master'!Q:Q,'Data FA Lookup'!$D1131,0,1))","v":1901240000}]
["1110","190","Ctl Computer-Human Resource Mgmt-GenAdm",1901250000,"190-111GenAdm0000","1950-01-01","9999-12-31","2012-05-14","No","No","No",{"$f":"IF(A1132=\"????\",\"\",_xlfn.XLOOKUP('Data FA Lookup'!$D1132,'FC Master'!A:A,'FC Master'!Q:Q,'Data FA Lookup'!$D1132,0,1))","v":1901250000}]
["1110","190","Ctl Computer-ITS-GenAdm",1901260000,"190-112GenAdm0000","1950-01-01","9999-12-31","2012-05-14","No","No","No",{"$f":"IF(A1133=\"????\",\"\",_xlfn.XLOOKUP('Data FA Lookup'!$D1133,'FC Master'!A:A,'FC Master'!Q:Q,'Data FA Lookup'!$D1133,0,1))","v":1901260000}]
["1610","190","Ctl Computer-EXPO Center-EconDev",1901270000,"190-113EconDev0000","1950-01-01","9999-12-31","2012-05-14","No","No","No",{"$f":"IF(A1134=\"????\",\"\",_xlfn.XLOOKUP('Data FA Lookup'!$D1134,'FC Master'!A:A,'FC Master'!Q:Q,'Data FA Lookup'!$D1134,0,1))","v":1901270000}]
["1140","190","Ctl Computer-Facilities Mgmt-FacMgmt",1901280000,"190-114FacMgmt0000","1950-01-01","9999-12-31","2012-05-14","No","No","No",{"$f":"IF(A1135=\"????\",\"\",_xlfn.XLOOKUP('Data FA Lookup'!$D1135,'FC Master'!A:A,'FC Master'!Q:Q,'Data FA Lookup'!$D1135,0,1))","v":1901280000}]
["1610","190","Ctl Computer-Facilities Mgmt-EconDev",1901290000,"190-114EconDev0000","1950-01-01","9999-12-31","2012-05-14","No","No","No",{"$f":"IF(A1136=\"????\",\"\",_xlfn.XLOOKUP('Data FA Lookup'!$D1136,'FC Master'!A:A,'FC Master'!Q:Q,'Data FA Lookup'!$D1136,0,1))","v":1901290000}]
["1120","190","Ctl Computer-Purchasing-FinAdm",1901300000,"190-115FinAdm0000","1950-01-01","9999-12-31","2012-05-14","No","No","No",{"$f":"IF(A1137=\"????\",\"\",_xlfn.XLOOKUP('Data FA Lookup'!$D1137,'FC Master'!A:A,'FC Master'!Q:Q,'Data FA Lookup'!$D1137,0,1))","v":1901300000}]
["1530","190","Ctl Computer-Veterans Services-HumanSvs",1901310000,"190-116HumanSvs00000","1950-01-01","9999-12-31","2012-05-14","No","No","No",{"$f":"IF(A1138=\"????\",\"\",_xlfn.XLOOKUP('Data FA Lookup'!$D1138,'FC Master'!A:A,'FC Master'!Q:Q,'Data FA Lookup'!$D1138,0,1))","v":1901310000}]
["1630","190","Ctl Computer-Historical Comm-Cul&Edu",1901320000,"190-117Cul&Edu0000","1950-01-01","9999-12-31","2012-05-14","No","No","No",{"$f":"IF(A1139=\"????\",\"\",_xlfn.XLOOKUP('Data FA Lookup'!$D1139,'FC Master'!A:A,'FC Master'!Q:Q,'Data FA Lookup'!$D1139,0,1))","v":1901320000}]
["1530","190","Ctl Computer-Agr Ext Serv-HumanSvs",1901330000,"190-118HumanSvs0000","1950-01-01","9999-12-31","2012-05-14","No","No","No",{"$f":"IF(A1140=\"????\",\"\",_xlfn.XLOOKUP('Data FA Lookup'!$D1140,'FC Master'!A:A,'FC Master'!Q:Q,'Data FA Lookup'!$D1140,0,1))","v":1901330000}]
["1220","190","Ctl Computer-County Attorney-CivJs",1901340000,"190-119CivJs0000","1950-01-01","9999-12-31","2012-05-14","No","No","No",{"$f":"IF(A1141=\"????\",\"\",_xlfn.XLOOKUP('Data FA Lookup'!$D1141,'FC Master'!A:A,'FC Master'!Q:Q,'Data FA Lookup'!$D1141,0,1))","v":1901340000}]
["1210","190","Ctl Computer-County Attorney-CrmJs",1901350000,"190-119CrmJs0000","1950-01-01","9999-12-31","2012-05-14","No","No","No",{"$f":"IF(A1142=\"????\",\"\",_xlfn.XLOOKUP('Data FA Lookup'!$D1142,'FC Master'!A:A,'FC Master'!Q:Q,'Data FA Lookup'!$D1142,0,1))","v":1901350000}]
["1110","190","Ctl Computer-County Clerk-GenAdm",1901360000,"190-120GenAdm0000","1950-01-01","9999-12-31","2012-05-14","No","No","No",{"$f":"IF(A1143=\"????\",\"\",_xlfn.XLOOKUP('Data FA Lookup'!$D1143,'FC Master'!A:A,'FC Master'!Q:Q,'Data FA Lookup'!$D1143,0,1))","v":1901360000}]
["1150","190","Ctl Computer-County Clerk-ElnAdm",1901370000,"190-120ElnAdm0000","1950-01-01","9999-12-31","2012-05-14","No","No","No",{"$f":"IF(A1144=\"????\",\"\",_xlfn.XLOOKUP('Data FA Lookup'!$D1144,'FC Master'!A:A,'FC Master'!Q:Q,'Data FA Lookup'!$D1144,0,1))","v":1901370000}]
["1220","190","Ctl Computer-County Clerk-CivJs",1901380000,"190-120CivJs0000","1950-01-01","9999-12-31","2012-05-14","No","No","No",{"$f":"IF(A1145=\"????\",\"\",_xlfn.XLOOKUP('Data FA Lookup'!$D1145,'FC Master'!A:A,'FC Master'!Q:Q,'Data FA Lookup'!$D1145,0,1))","v":1901380000}]
["1210","190","Ctl Computer-County Clerk-CrmJs",1901390000,"190-120CrmJs0000","1950-01-01","9999-12-31","2012-05-14","No","No","No",{"$f":"IF(A1146=\"????\",\"\",_xlfn.XLOOKUP('Data FA Lookup'!$D1146,'FC Master'!A:A,'FC Master'!Q:Q,'Data FA Lookup'!$D1146,0,1))","v":1901390000}]
["1220","190","Ctl Computer-District Clerk-CivJs",1901400000,"190-121CivJs00000","1950-01-01","9999-12-31","2012-05-14","No","No","No",{"$f":"IF(A1147=\"????\",\"\",_xlfn.XLOOKUP('Data FA Lookup'!$D1147,'FC Master'!A:A,'FC Master'!Q:Q,'Data FA Lookup'!$D1147,0,1))","v":1901400000}]
["1210","190","Ctl Computer-District Clerk-CrmJs",1901410000,"190-121CrmJs0000","1950-01-01","9999-12-31","2012-05-14","No","No","No",{"$f":"IF(A1148=\"????\",\"\",_xlfn.XLOOKUP('Data FA Lookup'!$D1148,'FC Master'!A:A,'FC Master'!Q:Q,'Data FA Lookup'!$D1148,0,1))","v":1901410000}]
["1220","190","Ctl Computer-Civil Courts-CivJs",1901420000,"190-122CivJs0000","1950-01-01","9999-12-31","2012-05-14","No","No","No",{"$f":"IF(A1149=\"????\",\"\",_xlfn.XLOOKUP('Data FA Lookup'!$D1149,'FC Master'!A:A,'FC Master'!Q:Q,'Data FA Lookup'!$D1149,0,1))","v":1901420000}]
["1210","190","Ctl Computer-District Attorney-CrmJs",1901430000,"190-123CrmJs0000","1950-01-01","9999-12-31","2012-05-14","No","No","No",{"$f":"IF(A1150=\"????\",\"\",_xlfn.XLOOKUP('Data FA Lookup'!$D1150,'FC Master'!A:A,'FC Master'!Q:Q,'Data FA Lookup'!$D1150,0,1))","v":1901430000}]
["1220","190","Ctl Computer-District Attorney-CivJs",1901440000,"190-123CivJs0000","1950-01-01","9999-12-31","2012-05-14","No","No","No",{"$f":"IF(A1151=\"????\",\"\",_xlfn.XLOOKUP('Data FA Lookup'!$D1151,'FC Master'!A:A,'FC Master'!Q:Q,'Data FA Lookup'!$D1151,0,1))","v":1901440000}]
["1210","190","Ctl Computer-Criminal Courts-CrmJs",1901450000,"190-124CrmJs0000","1950-01-01","9999-12-31","2012-05-14","No","No","No",{"$f":"IF(A1152=\"????\",\"\",_xlfn.XLOOKUP('Data FA Lookup'!$D1152,'FC Master'!A:A,'FC Master'!Q:Q,'Data FA Lookup'!$D1152,0,1))","v":1901450000}]
["1220","190","Ctl Computer-Probate Court-CivJs",1901460000,"190-125CivJs0000","1950-01-01","9999-12-31","2012-05-14","No","No","No",{"$f":"IF(A1153=\"????\",\"\",_xlfn.XLOOKUP('Data FA Lookup'!$D1153,'FC Master'!A:A,'FC Master'!Q:Q,'Data FA Lookup'!$D1153,0,1))","v":1901460000}]
["1220","190","Ctl Computer-Justice Of Peace 1-CivJs",1901470000,"190-126CivJs0000","1950-01-01","9999-12-31","2012-05-14","No","No","No",{"$f":"IF(A1154=\"????\",\"\",_xlfn.XLOOKUP('Data FA Lookup'!$D1154,'FC Master'!A:A,'FC Master'!Q:Q,'Data FA Lookup'!$D1154,0,1))","v":1901470000}]
["1210","190","Ctl Computer-Justice Of Peace 1-CrmJs",1901480000,"190-126CrmJs0000","1950-01-01","9999-12-31","2012-05-14","No","No","No",{"$f":"IF(A1155=\"????\",\"\",_xlfn.XLOOKUP('Data FA Lookup'!$D1155,'FC Master'!A:A,'FC Master'!Q:Q,'Data FA Lookup'!$D1155,0,1))","v":1901480000}]
["1220","190","Ctl Computer-Justice Of Peace 2-CivJs",1901490000,"190-127CivJs0000","1950-01-01","9999-12-31","2012-05-14","No","No","No",{"$f":"IF(A1156=\"????\",\"\",_xlfn.XLOOKUP('Data FA Lookup'!$D1156,'FC Master'!A:A,'FC Master'!Q:Q,'Data FA Lookup'!$D1156,0,1))","v":1901490000}]
["1210","190","Ctl Computer-Justice Of Peace 2-CrmJs",1901500000,"190-127CrmJs0000","1950-01-01","9999-12-31","2012-05-14","No","No","No",{"$f":"IF(A1157=\"????\",\"\",_xlfn.XLOOKUP('Data FA Lookup'!$D1157,'FC Master'!A:A,'FC Master'!Q:Q,'Data FA Lookup'!$D1157,0,1))","v":1901500000}]
["1220","190","Ctl Computer-Justice Of Peace 3-CivJs",1901510000,"190-128CivJs0000","1950-01-01","9999-12-31","2012-05-14","No","No","No",{"$f":"IF(A1158=\"????\",\"\",_xlfn.XLOOKUP('Data FA Lookup'!$D1158,'FC Master'!A:A,'FC Master'!Q:Q,'Data FA Lookup'!$D1158,0,1))","v":1901510000}]
["1210","190","Ctl Computer-Justice Of Peace 3-CrmJs",1901520000,"190-128CrmJs0000","1950-01-01","9999-12-31","2012-05-14","No","No","No",{"$f":"IF(A1159=\"????\",\"\",_xlfn.XLOOKUP('Data FA Lookup'!$D1159,'FC Master'!A:A,'FC Master'!Q:Q,'Data FA Lookup'!$D1159,0,1))","v":1901520000}]
["1220","190","Ctl Computer-Justice Of Peace 4-CivJs",1901530000,"190-129CivJs0000","1950-01-01","9999-12-31","2012-05-14","No","No","No",{"$f":"IF(A1160=\"????\",\"\",_xlfn.XLOOKUP('Data FA Lookup'!$D1160,'FC Master'!A:A,'FC Master'!Q:Q,'Data FA Lookup'!$D1160,0,1))","v":1901530000}]
["1210","190","Ctl Computer-Justice Of Peace 4-CrmJs",1901540000,"190-129CrmJs0000","1950-01-01","9999-12-31","2012-05-14","No","No","No",{"$f":"IF(A1161=\"????\",\"\",_xlfn.XLOOKUP('Data FA Lookup'!$D1161,'FC Master'!A:A,'FC Master'!Q:Q,'Data FA Lookup'!$D1161,0,1))","v":1901540000}]
["1220","190","Ctl Computer-Justice Of Peace 5-CivJs",1901550000,"190-130CivJs0000","1950-01-01","9999-12-31","2012-05-14","No","No","No",{"$f":"IF(A1162=\"????\",\"\",_xlfn.XLOOKUP('Data FA Lookup'!$D1162,'FC Master'!A:A,'FC Master'!Q:Q,'Data FA Lookup'!$D1162,0,1))","v":1901550000}]
["1210","190","Ctl Computer-Justice Of Peace 5-CrmJs",1901560000,"190-130CrmJs0000","1950-01-01","9999-12-31","2012-05-14","No","No","No",{"$f":"IF(A1163=\"????\",\"\",_xlfn.XLOOKUP('Data FA Lookup'!$D1163,'FC Master'!A:A,'FC Master'!Q:Q,'Data FA Lookup'!$D1163,0,1))","v":1901560000}]
["1310","190","Ctl Computer-Constable 1-LE",1901570000,"190-131LE0000","1950-01-01","9999-12-31","2012-05-14","No","No","No",{"$f":"IF(A1164=\"????\",\"\",_xlfn.XLOOKUP('Data FA Lookup'!$D1164,'FC Master'!A:A,'FC Master'!Q:Q,'Data FA Lookup'!$D1164,0,1))","v":1901570000}]
["1310","190","Ctl Computer-Constable 2-LE",1901580000,"190-132LE0000","1950-01-01","9999-12-31","2012-05-14","No","No","No",{"$f":"IF(A1165=\"????\",\"\",_xlfn.XLOOKUP('Data FA Lookup'!$D1165,'FC Master'!A:A,'FC Master'!Q:Q,'Data FA Lookup'!$D1165,0,1))","v":1901580000}]
["1310","190","Ctl Computer-Constable 3-LE",1901590000,"190-133LE0000","1950-01-01","9999-12-31","2012-05-14","No","No","No",{"$f":"IF(A1166=\"????\",\"\",_xlfn.XLOOKUP('Data FA Lookup'!$D1166,'FC Master'!A:A,'FC Master'!Q:Q,'Data FA Lookup'!$D1166,0,1))","v":1901590000}]
["1310","190","Ctl Computer-Constable 4-LE",1901600000,"190-134LE0000","1950-01-01","9999-12-31","2012-05-14","No","No","No",{"$f":"IF(A1167=\"????\",\"\",_xlfn.XLOOKUP('Data FA Lookup'!$D1167,'FC Master'!A:A,'FC Master'!Q:Q,'Data FA Lookup'!$D1167,0,1))","v":1901600000}]
["1310","190","Ctl Computer-Constable 5-LE",1901610000,"190-135LE0000","1950-01-01","9999-12-31","2012-05-14","No","No","No",{"$f":"IF(A1168=\"????\",\"\",_xlfn.XLOOKUP('Data FA Lookup'!$D1168,'FC Master'!A:A,'FC Master'!Q:Q,'Data FA Lookup'!$D1168,0,1))","v":1901610000}]
["1220","190","Ctl Computer-Dispute Resol Ctr-CivJs",1901620000,"190-136CivJs0000","1950-01-01","9999-12-31","2012-05-14","No","No","No",{"$f":"IF(A1169=\"????\",\"\",_xlfn.XLOOKUP('Data FA Lookup'!$D1169,'FC Master'!A:A,'FC Master'!Q:Q,'Data FA Lookup'!$D1169,0,1))","v":1901620000}]
["1310","190","Ctl Computer-Sheriff-LE",1901630000,"190-137LE0000","1950-01-01","9999-12-31","2012-05-14","No","No","No",{"$f":"IF(A1170=\"????\",\"\",_xlfn.XLOOKUP('Data FA Lookup'!$D1170,'FC Master'!A:A,'FC Master'!Q:Q,'Data FA Lookup'!$D1170,0,1))","v":1901630000}]
["1410","190","Ctl Computer-Sheriff-HsgBkg",1901640000,"190-137HsgBkg0000","1950-01-01","9999-12-31","2012-05-14","No","No","No",{"$f":"IF(A1171=\"????\",\"\",_xlfn.XLOOKUP('Data FA Lookup'!$D1171,'FC Master'!A:A,'FC Master'!Q:Q,'Data FA Lookup'!$D1171,0,1))","v":1901640000}]
["1310","190","Ctl Computer-Medical Examiner-LE",1901650000,"190-138LE0000","1950-01-01","9999-12-31","2012-05-14","No","No","No",{"$f":"IF(A1172=\"????\",\"\",_xlfn.XLOOKUP('Data FA Lookup'!$D1172,'FC Master'!A:A,'FC Master'!Q:Q,'Data FA Lookup'!$D1172,0,1))","v":1901650000}]
["1420","190","Ctl Computer-CSCD-Svsn",1901660000,"190-139Svsn0000","1950-01-01","9999-12-31","2012-05-14","No","No","No",{"$f":"IF(A1173=\"????\",\"\",_xlfn.XLOOKUP('Data FA Lookup'!$D1173,'FC Master'!A:A,'FC Master'!Q:Q,'Data FA Lookup'!$D1173,0,1))","v":1901660000}]
["1420","190","Ctl Computer-TCCES-Svsn",1901670000,"190-140Svsn0000","1950-01-01","9999-12-31","2012-05-14","No","No","No",{"$f":"IF(A1174=\"????\",\"\",_xlfn.XLOOKUP('Data FA Lookup'!$D1174,'FC Master'!A:A,'FC Master'!Q:Q,'Data FA Lookup'!$D1174,0,1))","v":1901670000}]
["1420","190","Ctl Computer-Pretrial Services-Svsn",1901680000,"190-142Svsn0000","1950-01-01","9999-12-31","2012-05-14","No","No","No",{"$f":"IF(A1175=\"????\",\"\",_xlfn.XLOOKUP('Data FA Lookup'!$D1175,'FC Master'!A:A,'FC Master'!Q:Q,'Data FA Lookup'!$D1175,0,1))","v":1901680000}]
["1410","190","Ctl Computer-Pretrial Services-HsgBkg",1901690000,"190-142HsgBkg0000","1950-01-01","9999-12-31","2012-05-14","No","No","No",{"$f":"IF(A1176=\"????\",\"\",_xlfn.XLOOKUP('Data FA Lookup'!$D1176,'FC Master'!A:A,'FC Master'!Q:Q,'Data FA Lookup'!$D1176,0,1))","v":1901690000}]
["1230","190","Ctl Computer-Juvenile Public Dfdr-JuvSvs",1901700000,"190-143JuvSvs0000","1950-01-01","9999-12-31","2012-05-14","No","No","No",{"$f":"IF(A1177=\"????\",\"\",_xlfn.XLOOKUP('Data FA Lookup'!$D1177,'FC Master'!A:A,'FC Master'!Q:Q,'Data FA Lookup'!$D1177,0,1))","v":1901700000}]
["1230","190","Ctl Computer-Juvenile Probation-JuvSvs",1901710000,"190-145JuvSvs0000","1950-01-01","9999-12-31","2012-05-14","No","No","No",{"$f":"IF(A1178=\"????\",\"\",_xlfn.XLOOKUP('Data FA Lookup'!$D1178,'FC Master'!A:A,'FC Master'!Q:Q,'Data FA Lookup'!$D1178,0,1))","v":1901710000}]
["1510","190","Ctl Computer-Emergency Services-Hlhcare",1901720000,"190-147Hlhcare0000","1950-01-01","9999-12-31","2012-05-14","No","No","No",{"$f":"IF(A1179=\"????\",\"\",_xlfn.XLOOKUP('Data FA Lookup'!$D1179,'FC Master'!A:A,'FC Master'!Q:Q,'Data FA Lookup'!$D1179,0,1))","v":1901720000}]
["1320","190","Ctl Computer-Emergency Services-EmrgMgmt",1901730000,"190-147EmrgMgmt0000","1950-01-01","9999-12-31","2012-05-14","No","No","No",{"$f":"IF(A1180=\"????\",\"\",_xlfn.XLOOKUP('Data FA Lookup'!$D1180,'FC Master'!A:A,'FC Master'!Q:Q,'Data FA Lookup'!$D1180,0,1))","v":1901730000}]
["1710","190","Ctl Computer-TNR-RdBg",1901740000,"190-149RdBg0000","1950-01-01","9999-12-31","2012-05-14","No","No","No",{"$f":"IF(A1181=\"????\",\"\",_xlfn.XLOOKUP('Data FA Lookup'!$D1181,'FC Master'!A:A,'FC Master'!Q:Q,'Data FA Lookup'!$D1181,0,1))","v":1901740000}]
["1650","190","Ctl Computer-TNR-Parks&Rec",1901750000,"190-149Parks&Rec0000","1950-01-01","9999-12-31","2012-05-14","No","No","No",{"$f":"IF(A1182=\"????\",\"\",_xlfn.XLOOKUP('Data FA Lookup'!$D1182,'FC Master'!A:A,'FC Master'!Q:Q,'Data FA Lookup'!$D1182,0,1))","v":1901750000}]
["1750","190","Ctl Computer-TNR-ConservNR",1901760000,"190-149ConservNR0000","1950-01-01","9999-12-31","2012-05-14","No","No","No",{"$f":"IF(A1183=\"????\",\"\",_xlfn.XLOOKUP('Data FA Lookup'!$D1183,'FC Master'!A:A,'FC Master'!Q:Q,'Data FA Lookup'!$D1183,0,1))","v":1901760000}]
["1140","190","Ctl Computer-TNR-FacMgmt",1901770000,"190-149FacMgmt0000","1950-01-01","9999-12-31","2012-05-14","No","No","No",{"$f":"IF(A1184=\"????\",\"\",_xlfn.XLOOKUP('Data FA Lookup'!$D1184,'FC Master'!A:A,'FC Master'!Q:Q,'Data FA Lookup'!$D1184,0,1))","v":1901770000}]
["1730","190","Ctl Computer-TNR-Drng",1901780000,"190-149Drng0000","1950-01-01","9999-12-31","2012-05-14","No","No","No",{"$f":"IF(A1185=\"????\",\"\",_xlfn.XLOOKUP('Data FA Lookup'!$D1185,'FC Master'!A:A,'FC Master'!Q:Q,'Data FA Lookup'!$D1185,0,1))","v":1901780000}]
["1760","190","Ctl Computer-TNR-Sanitation",1901790000,"190-149Sanitation000","1950-01-01","9999-12-31","2012-05-14","No","No","No",{"$f":"IF(A1186=\"????\",\"\",_xlfn.XLOOKUP('Data FA Lookup'!$D1186,'FC Master'!A:A,'FC Master'!Q:Q,'Data FA Lookup'!$D1186,0,1))","v":1901790000}]
["1740","190","Ctl Computer-TNR-DevRegIn",1901800000,"190-149DevRegIn0000","1950-01-01","9999-12-31","2012-05-14","No","No","No",{"$f":"IF(A1187=\"????\",\"\",_xlfn.XLOOKUP('Data FA Lookup'!$D1187,'FC Master'!A:A,'FC Master'!Q:Q,'Data FA Lookup'!$D1187,0,1))","v":1901800000}]
["1530","190","Ctl Computer-TNR-HumanSvs",1901810000,"190-149HumanSvs0000","1950-01-01","9999-12-31","2012-05-14","No","No","No",{"$f":"IF(A1188=\"????\",\"\",_xlfn.XLOOKUP('Data FA Lookup'!$D1188,'FC Master'!A:A,'FC Master'!Q:Q,'Data FA Lookup'!$D1188,0,1))","v":1901810000}]
["1110","190","Ctl Computer-Civil Service Cmn-GenAdm",1901820000,"190-154GenAdm0000","1950-01-01","9999-12-31","2012-05-14","No","No","No",{"$f":"IF(A1189=\"????\",\"\",_xlfn.XLOOKUP('Data FA Lookup'!$D1189,'FC Master'!A:A,'FC Master'!Q:Q,'Data FA Lookup'!$D1189,0,1))","v":1901820000}]
["1210","190","Ctl Computer-CJP-CrmJs",1901830000,"190-155CrmJs0000","1950-01-01","9999-12-31","2012-05-14","No","No","No",{"$f":"IF(A1190=\"????\",\"\",_xlfn.XLOOKUP('Data FA Lookup'!$D1190,'FC Master'!A:A,'FC Master'!Q:Q,'Data FA Lookup'!$D1190,0,1))","v":1901830000}]
["1510","190","Ctl Computer-CJP-Hlhcare",1901840000,"190-155Hlhcare0000","1950-01-01","9999-12-31","2012-05-14","No","No","No",{"$f":"IF(A1191=\"????\",\"\",_xlfn.XLOOKUP('Data FA Lookup'!$D1191,'FC Master'!A:A,'FC Master'!Q:Q,'Data FA Lookup'!$D1191,0,1))","v":1901840000}]
["1320","190","Ctl Computer-CJP-EmrgMgmt",1901850000,"190-155EmrgMgmt0000","1950-01-01","9999-12-31","2012-05-14","No","No","No",{"$f":"IF(A1192=\"????\",\"\",_xlfn.XLOOKUP('Data FA Lookup'!$D1192,'FC Master'!A:A,'FC Master'!Q:Q,'Data FA Lookup'!$D1192,0,1))","v":1901850000}]
["1420","190","Ctl Computer-CJP-Svsn",1901860000,"190-155Svsn0000","1950-01-01","9999-12-31","2012-05-14","No","No","No",{"$f":"IF(A1193=\"????\",\"\",_xlfn.XLOOKUP('Data FA Lookup'!$D1193,'FC Master'!A:A,'FC Master'!Q:Q,'Data FA Lookup'!$D1193,0,1))","v":1901860000}]
["1230","190","Ctl Computer-CJP-JuvSvs",1901870000,"190-155JuvSvs0000","1950-01-01","9999-12-31","2012-05-14","No","No","No",{"$f":"IF(A1194=\"????\",\"\",_xlfn.XLOOKUP('Data FA Lookup'!$D1194,'FC Master'!A:A,'FC Master'!Q:Q,'Data FA Lookup'!$D1194,0,1))","v":1901870000}]
["1310","190","Ctl Computer-CJP-LE",1901880000,"190-155LE0000","1950-01-01","9999-12-31","2012-05-14","No","No","No",{"$f":"IF(A1195=\"????\",\"\",_xlfn.XLOOKUP('Data FA Lookup'!$D1195,'FC Master'!A:A,'FC Master'!Q:Q,'Data FA Lookup'!$D1195,0,1))","v":1901880000}]
["1110","190","Ctl Computer-CRS-GenAdm",1901890000,"190-157GenAdm0000","1950-01-01","9999-12-31","2012-05-14","No","No","No",{"$f":"IF(A1196=\"????\",\"\",_xlfn.XLOOKUP('Data FA Lookup'!$D1196,'FC Master'!A:A,'FC Master'!Q:Q,'Data FA Lookup'!$D1196,0,1))","v":1901890000}]
["1220","190","Ctl Computer-CRS-CivJs",1901900000,"190-157CivJs0000","1950-01-01","9999-12-31","2012-05-14","No","No","No",{"$f":"IF(A1197=\"????\",\"\",_xlfn.XLOOKUP('Data FA Lookup'!$D1197,'FC Master'!A:A,'FC Master'!Q:Q,'Data FA Lookup'!$D1197,0,1))","v":1901900000}]
["1210","190","Ctl Computer-CRS-CrmJs",1901910000,"190-157CrmJs0000","1950-01-01","9999-12-31","2012-05-14","No","No","No",{"$f":"IF(A1198=\"????\",\"\",_xlfn.XLOOKUP('Data FA Lookup'!$D1198,'FC Master'!A:A,'FC Master'!Q:Q,'Data FA Lookup'!$D1198,0,1))","v":1901910000}]
["1510","190","Ctl Computer-HHS-Hlhcare",1901920000,"190-158Hlhcare0000","1950-01-01","9999-12-31","2012-05-14","No","No","No",{"$f":"IF(A1199=\"????\",\"\",_xlfn.XLOOKUP('Data FA Lookup'!$D1199,'FC Master'!A:A,'FC Master'!Q:Q,'Data FA Lookup'!$D1199,0,1))","v":1901920000}]
["1520","190","Ctl Computer-HHS-PbcHlh",1901930000,"190-158PbcHlh0000","1950-01-01","9999-12-31","2012-05-14","No","No","No",{"$f":"IF(A1200=\"????\",\"\",_xlfn.XLOOKUP('Data FA Lookup'!$D1200,'FC Master'!A:A,'FC Master'!Q:Q,'Data FA Lookup'!$D1200,0,1))","v":1901930000}]
["1530","190","Ctl Computer-HHS-HumanSvs",1901940000,"190-158HumanSvs0000","1950-01-01","9999-12-31","2012-05-14","No","No","No",{"$f":"IF(A1201=\"????\",\"\",_xlfn.XLOOKUP('Data FA Lookup'!$D1201,'FC Master'!A:A,'FC Master'!Q:Q,'Data FA Lookup'!$D1201,0,1))","v":1901940000}]
["1230","190","Ctl Computer-HHS-JuvSvs",1901950000,"190-158JuvSvs0000","1950-01-01","9999-12-31","2012-05-14","No","No","No",{"$f":"IF(A1202=\"????\",\"\",_xlfn.XLOOKUP('Data FA Lookup'!$D1202,'FC Master'!A:A,'FC Master'!Q:Q,'Data FA Lookup'!$D1202,0,1))","v":1901950000}]
["1510","190","Ctl Computer-EMS-Hlhcare",1901960000,"190-159Hlhcare0000","1950-01-01","9999-12-31","2012-05-14","No","No","No",{"$f":"IF(A1203=\"????\",\"\",_xlfn.XLOOKUP('Data FA Lookup'!$D1203,'FC Master'!A:A,'FC Master'!Q:Q,'Data FA Lookup'!$D1203,0,1))","v":1901960000}]
["1220","190","Ctl Computer-Legally Mtd Fees-CivJs",1901970000,"190-193CivJs0000","1950-01-01","9999-12-31","2012-05-14","No","No","No",{"$f":"IF(A1204=\"????\",\"\",_xlfn.XLOOKUP('Data FA Lookup'!$D1204,'FC Master'!A:A,'FC Master'!Q:Q,'Data FA Lookup'!$D1204,0,1))","v":1901970000}]
["1210","190","Ctl Computer-Legally Mtd Fees-CrmJs",1901980000,"190-194CrmJs0000","1950-01-01","9999-12-31","2012-05-14","No","No","No",{"$f":"IF(A1205=\"????\",\"\",_xlfn.XLOOKUP('Data FA Lookup'!$D1205,'FC Master'!A:A,'FC Master'!Q:Q,'Data FA Lookup'!$D1205,0,1))","v":1901980000}]
["1210","190","Ctl Computer-Pub Defender's Ofc-CrimJs",1901990000,"190-144PD0000","1950-01-01","9999-12-31","2021-02-09","No","No","No",{"$f":"IF(A1206=\"????\",\"\",_xlfn.XLOOKUP('Data FA Lookup'!$D1206,'FC Master'!A:A,'FC Master'!Q:Q,'Data FA Lookup'!$D1206,0,1))","v":1901990000}]
["1110","190","Ctl Computer CAR-County Judge-GenAdm",1908000001,"190-101CARGenAdm0001","1950-01-01","9999-12-31","2012-05-15","No","No","No",{"$f":"IF(A1207=\"????\",\"\",_xlfn.XLOOKUP('Data FA Lookup'!$D1207,'FC Master'!A:A,'FC Master'!Q:Q,'Data FA Lookup'!$D1207,0,1))","v":1908000001}]
["1110","190","Ctl Computer CAR-County Judge-JuvSvs",1908000001,"190-101CARJuvSvs0001","1950-01-01","9999-12-31","2012-05-15","No","No","No",{"$f":"IF(A1208=\"????\",\"\",_xlfn.XLOOKUP('Data FA Lookup'!$D1208,'FC Master'!A:A,'FC Master'!Q:Q,'Data FA Lookup'!$D1208,0,1))","v":1908000001}]
["1110","190","Ctl Computer CAR-CC Pct 1-GenAdm",1908000001,"190-102CARGenAdm0001","1950-01-01","9999-12-31","2012-05-15","No","No","No",{"$f":"IF(A1209=\"????\",\"\",_xlfn.XLOOKUP('Data FA Lookup'!$D1209,'FC Master'!A:A,'FC Master'!Q:Q,'Data FA Lookup'!$D1209,0,1))","v":1908000001}]
["1110","190","Ctl Computer CAR-CC Pct 2-GenAdm",1908000001,"190-103CARGenAdm0001","1950-01-01","9999-12-31","2012-05-15","No","No","No",{"$f":"IF(A1210=\"????\",\"\",_xlfn.XLOOKUP('Data FA Lookup'!$D1210,'FC Master'!A:A,'FC Master'!Q:Q,'Data FA Lookup'!$D1210,0,1))","v":1908000001}]
["1110","190","Ctl Computer CAR-CC Pct 3-GenAdm",1908000001,"190-104CARGenAdm0001","1950-01-01","9999-12-31","2012-05-15","No","No","No",{"$f":"IF(A1211=\"????\",\"\",_xlfn.XLOOKUP('Data FA Lookup'!$D1211,'FC Master'!A:A,'FC Master'!Q:Q,'Data FA Lookup'!$D1211,0,1))","v":1908000001}]
["1110","190","Ctl Computer CAR-CC Pct 4-GenAdm",1908000001,"190-105CARGenAdm0001","1950-01-01","9999-12-31","2012-05-15","No","No","No",{"$f":"IF(A1212=\"????\",\"\",_xlfn.XLOOKUP('Data FA Lookup'!$D1212,'FC Master'!A:A,'FC Master'!Q:Q,'Data FA Lookup'!$D1212,0,1))","v":1908000001}]
["1110","190","Ctl Computer CAR-County Auditor-FinAdm",1908000001,"190-106CARFinAdm0001","1950-01-01","9999-12-31","2012-05-15","No","No","No",{"$f":"IF(A1213=\"????\",\"\",_xlfn.XLOOKUP('Data FA Lookup'!$D1213,'FC Master'!A:A,'FC Master'!Q:Q,'Data FA Lookup'!$D1213,0,1))","v":1908000001}]
["1110","190","Ctl Computer CAR-County Treasurer-FinAdm",1908000001,"190-107CARFinAdm0001","1950-01-01","9999-12-31","2012-05-15","No","No","No",{"$f":"IF(A1214=\"????\",\"\",_xlfn.XLOOKUP('Data FA Lookup'!$D1214,'FC Master'!A:A,'FC Master'!Q:Q,'Data FA Lookup'!$D1214,0,1))","v":1908000001}]
["1110","190","Ctl Computer CAR-Tax Collector-TaxAdm",1908000001,"190-108CARTaxAdm0001","1950-01-01","9999-12-31","2012-05-15","No","No","No",{"$f":"IF(A1215=\"????\",\"\",_xlfn.XLOOKUP('Data FA Lookup'!$D1215,'FC Master'!A:A,'FC Master'!Q:Q,'Data FA Lookup'!$D1215,0,1))","v":1908000001}]
["1110","190","Ctl Computer CAR-Tax Collector-CrmJs",1908000001,"190-108CARCrmJs0001","1950-01-01","9999-12-31","2012-05-15","No","No","No",{"$f":"IF(A1216=\"????\",\"\",_xlfn.XLOOKUP('Data FA Lookup'!$D1216,'FC Master'!A:A,'FC Master'!Q:Q,'Data FA Lookup'!$D1216,0,1))","v":1908000001}]
["1110","190","Ctl Computer CAR-Tax Collector-ElnAdm",1908000001,"190-108CARElnAdm0001","1950-01-01","9999-12-31","2012-05-15","No","No","No",{"$f":"IF(A1217=\"????\",\"\",_xlfn.XLOOKUP('Data FA Lookup'!$D1217,'FC Master'!A:A,'FC Master'!Q:Q,'Data FA Lookup'!$D1217,0,1))","v":1908000001}]
["1110","190","Ctl Computer CAR-PBO-FinAdm",1908000001,"190-109CARFinAdm0001","1950-01-01","9999-12-31","2012-05-15","No","No","No",{"$f":"IF(A1218=\"????\",\"\",_xlfn.XLOOKUP('Data FA Lookup'!$D1218,'FC Master'!A:A,'FC Master'!Q:Q,'Data FA Lookup'!$D1218,0,1))","v":1908000001}]
["1110","190","Ctl Computer CAR-General Adm-GenAdm",1908000001,"190-110CARGenAdm0001","1950-01-01","9999-12-31","2012-05-15","No","No","No",{"$f":"IF(A1219=\"????\",\"\",_xlfn.XLOOKUP('Data FA Lookup'!$D1219,'FC Master'!A:A,'FC Master'!Q:Q,'Data FA Lookup'!$D1219,0,1))","v":1908000001}]
["1110","190","Ctl Computer CAR-General Adm-Hlhcare",1908000001,"190-110CARHlh0001","1950-01-01","9999-12-31","2012-05-15","No","No","No",{"$f":"IF(A1220=\"????\",\"\",_xlfn.XLOOKUP('Data FA Lookup'!$D1220,'FC Master'!A:A,'FC Master'!Q:Q,'Data FA Lookup'!$D1220,0,1))","v":1908000001}]
["1110","190","Ctl Computer CAR-General Adm-EconDev",1908000001,"190-110CAREcon0001","1950-01-01","9999-12-31","2012-05-15","No","No","No",{"$f":"IF(A1221=\"????\",\"\",_xlfn.XLOOKUP('Data FA Lookup'!$D1221,'FC Master'!A:A,'FC Master'!Q:Q,'Data FA Lookup'!$D1221,0,1))","v":1908000001}]
["1110","190","Ctl Computer CAR-HRMD-GenAdm",1908000001,"190-111CARGenAdm0001","1950-01-01","9999-12-31","2012-05-15","No","No","No",{"$f":"IF(A1222=\"????\",\"\",_xlfn.XLOOKUP('Data FA Lookup'!$D1222,'FC Master'!A:A,'FC Master'!Q:Q,'Data FA Lookup'!$D1222,0,1))","v":1908000001}]
["1110","190","Ctl Computer CAR-ITS-GenAdm",1908000001,"190-112CARGenAdm0001","1950-01-01","9999-12-31","2012-05-15","No","No","No",{"$f":"IF(A1223=\"????\",\"\",_xlfn.XLOOKUP('Data FA Lookup'!$D1223,'FC Master'!A:A,'FC Master'!Q:Q,'Data FA Lookup'!$D1223,0,1))","v":1908000001}]
["1110","190","Ctl Computer CAR-EXPO Center-EconDev",1908000001,"190-113CAREcon0001","1950-01-01","9999-12-31","2012-05-15","No","No","No",{"$f":"IF(A1224=\"????\",\"\",_xlfn.XLOOKUP('Data FA Lookup'!$D1224,'FC Master'!A:A,'FC Master'!Q:Q,'Data FA Lookup'!$D1224,0,1))","v":1908000001}]
["1110","190","Ctl Computer CAR-Facilities Mgmt-FacMgmt",1908000001,"190-114CARFac0001","1950-01-01","9999-12-31","2012-05-15","No","No","No",{"$f":"IF(A1225=\"????\",\"\",_xlfn.XLOOKUP('Data FA Lookup'!$D1225,'FC Master'!A:A,'FC Master'!Q:Q,'Data FA Lookup'!$D1225,0,1))","v":1908000001}]
["1110","190","Ctl Computer CAR-Facilities Mgmt-EconDev",1908000001,"190-114CAREcon0001","1950-01-01","9999-12-31","2012-05-15","No","No","No",{"$f":"IF(A1226=\"????\",\"\",_xlfn.XLOOKUP('Data FA Lookup'!$D1226,'FC Master'!A:A,'FC Master'!Q:Q,'Data FA Lookup'!$D1226,0,1))","v":1908000001}]
["1110","190","Ctl Computer CAR-Purchasing-FinAdm",1908000001,"190-115CARFinAdm0001","1950-01-01","9999-12-31","2012-05-15","No","No","No",{"$f":"IF(A1227=\"????\",\"\",_xlfn.XLOOKUP('Data FA Lookup'!$D1227,'FC Master'!A:A,'FC Master'!Q:Q,'Data FA Lookup'!$D1227,0,1))","v":1908000001}]
["1110","190","Ctl Computer CAR-Veterans Svs-HumanSvs",1908000001,"190-116CARHuman0001","1950-01-01","9999-12-31","2012-05-15","No","No","No",{"$f":"IF(A1228=\"????\",\"\",_xlfn.XLOOKUP('Data FA Lookup'!$D1228,'FC Master'!A:A,'FC Master'!Q:Q,'Data FA Lookup'!$D1228,0,1))","v":1908000001}]
["1110","190","Ctl Computer CAR-Historical Comm-Cul&Edu",1908000001,"190-117CARCulEdu0001","1950-01-01","9999-12-31","2012-05-15","No","No","No",{"$f":"IF(A1229=\"????\",\"\",_xlfn.XLOOKUP('Data FA Lookup'!$D1229,'FC Master'!A:A,'FC Master'!Q:Q,'Data FA Lookup'!$D1229,0,1))","v":1908000001}]
["1110","190","Ctl Computer CAR-Agr Ext Serv-HumanSvs",1908000001,"190-118CARHuman0001","1950-01-01","9999-12-31","2012-05-15","No","No","No",{"$f":"IF(A1230=\"????\",\"\",_xlfn.XLOOKUP('Data FA Lookup'!$D1230,'FC Master'!A:A,'FC Master'!Q:Q,'Data FA Lookup'!$D1230,0,1))","v":1908000001}]
["1110","190","Ctl Computer CAR-County Attorney-CivJs",1908000001,"190-119CARCivJs0001","1950-01-01","9999-12-31","2012-05-15","No","No","No",{"$f":"IF(A1231=\"????\",\"\",_xlfn.XLOOKUP('Data FA Lookup'!$D1231,'FC Master'!A:A,'FC Master'!Q:Q,'Data FA Lookup'!$D1231,0,1))","v":1908000001}]
["1110","190","Ctl Computer CAR-County Attorney-CrmJs",1908000001,"190-119CARCrmJs0001","1950-01-01","9999-12-31","2012-05-15","No","No","No",{"$f":"IF(A1232=\"????\",\"\",_xlfn.XLOOKUP('Data FA Lookup'!$D1232,'FC Master'!A:A,'FC Master'!Q:Q,'Data FA Lookup'!$D1232,0,1))","v":1908000001}]
["1110","190","Ctl Computer CAR-County Clerk-GenAdm",1908000001,"190-120CARGenAdm0001","1950-01-01","9999-12-31","2012-05-15","No","No","No",{"$f":"IF(A1233=\"????\",\"\",_xlfn.XLOOKUP('Data FA Lookup'!$D1233,'FC Master'!A:A,'FC Master'!Q:Q,'Data FA Lookup'!$D1233,0,1))","v":1908000001}]
["1110","190","Ctl Computer CAR-County Clerk-ElnAdm",1908000001,"190-120CARElnAdm0001","1950-01-01","9999-12-31","2012-05-15","No","No","No",{"$f":"IF(A1234=\"????\",\"\",_xlfn.XLOOKUP('Data FA Lookup'!$D1234,'FC Master'!A:A,'FC Master'!Q:Q,'Data FA Lookup'!$D1234,0,1))","v":1908000001}]
["1110","190","Ctl Computer CAR-County Clerk-CivJs",1908000001,"190-120CARCivJs0001","1950-01-01","9999-12-31","2012-05-15","No","No","No",{"$f":"IF(A1235=\"????\",\"\",_xlfn.XLOOKUP('Data FA Lookup'!$D1235,'FC Master'!A:A,'FC Master'!Q:Q,'Data FA Lookup'!$D1235,0,1))","v":1908000001}]
["1110","190","Ctl Computer CAR-County Clerk-CrmJs",1908000001,"190-120CARCrmJs0001","1950-01-01","9999-12-31","2012-05-15","No","No","No",{"$f":"IF(A1236=\"????\",\"\",_xlfn.XLOOKUP('Data FA Lookup'!$D1236,'FC Master'!A:A,'FC Master'!Q:Q,'Data FA Lookup'!$D1236,0,1))","v":1908000001}]
["1110","190","Ctl Computer CAR-District Clerk-CivJs",1908000001,"190-121CARCivJs0001","1950-01-01","9999-12-31","2012-05-15","No","No","No",{"$f":"IF(A1237=\"????\",\"\",_xlfn.XLOOKUP('Data FA Lookup'!$D1237,'FC Master'!A:A,'FC Master'!Q:Q,'Data FA Lookup'!$D1237,0,1))","v":1908000001}]
["1110","190","Ctl Computer CAR-District Clerk-CrmJs",1908000001,"190-121CARCrmJs0001","1950-01-01","9999-12-31","2012-05-15","No","No","No",{"$f":"IF(A1238=\"????\",\"\",_xlfn.XLOOKUP('Data FA Lookup'!$D1238,'FC Master'!A:A,'FC Master'!Q:Q,'Data FA Lookup'!$D1238,0,1))","v":1908000001}]
["1110","190","Ctl Computer CAR-Civil Courts-CivJs",1908000001,"190-122CARCivJs0001","1950-01-01","9999-12-31","2012-05-15","No","No","No",{"$f":"IF(A1239=\"????\",\"\",_xlfn.XLOOKUP('Data FA Lookup'!$D1239,'FC Master'!A:A,'FC Master'!Q:Q,'Data FA Lookup'!$D1239,0,1))","v":1908000001}]
["1110","190","Ctl Computer CAR-District Attorney-CrmJs",1908000001,"190-123CARCrmJs0001","1950-01-01","9999-12-31","2012-05-15","No","No","No",{"$f":"IF(A1240=\"????\",\"\",_xlfn.XLOOKUP('Data FA Lookup'!$D1240,'FC Master'!A:A,'FC Master'!Q:Q,'Data FA Lookup'!$D1240,0,1))","v":1908000001}]
["1110","190","Ctl Computer CAR-District Attorney-CivJs",1908000001,"190-123CARCivJs0001","1950-01-01","9999-12-31","2012-05-15","No","No","No",{"$f":"IF(A1241=\"????\",\"\",_xlfn.XLOOKUP('Data FA Lookup'!$D1241,'FC Master'!A:A,'FC Master'!Q:Q,'Data FA Lookup'!$D1241,0,1))","v":1908000001}]
["1110","190","Ctl Computer CAR-Criminal Courts-CrmJs",1908000001,"190-124CARCrmJs0001","1950-01-01","9999-12-31","2012-05-15","No","No","No",{"$f":"IF(A1242=\"????\",\"\",_xlfn.XLOOKUP('Data FA Lookup'!$D1242,'FC Master'!A:A,'FC Master'!Q:Q,'Data FA Lookup'!$D1242,0,1))","v":1908000001}]
["1110","190","Ctl Computer CAR-Probate Court-CivJs",1908000001,"190-125CARCivJs0001","1950-01-01","9999-12-31","2012-05-15","No","No","No",{"$f":"IF(A1243=\"????\",\"\",_xlfn.XLOOKUP('Data FA Lookup'!$D1243,'FC Master'!A:A,'FC Master'!Q:Q,'Data FA Lookup'!$D1243,0,1))","v":1908000001}]
["1110","190","Ctl Computer CAR-JP 1-CivJs",1908000001,"190-126CARCivJs0001","1950-01-01","9999-12-31","2012-05-15","No","No","No",{"$f":"IF(A1244=\"????\",\"\",_xlfn.XLOOKUP('Data FA Lookup'!$D1244,'FC Master'!A:A,'FC Master'!Q:Q,'Data FA Lookup'!$D1244,0,1))","v":1908000001}]
["1110","190","Ctl Computer CAR-JP 1-CrmJs",1908000001,"190-126CARCrmJs0001","1950-01-01","9999-12-31","2012-05-15","No","No","No",{"$f":"IF(A1245=\"????\",\"\",_xlfn.XLOOKUP('Data FA Lookup'!$D1245,'FC Master'!A:A,'FC Master'!Q:Q,'Data FA Lookup'!$D1245,0,1))","v":1908000001}]
["1110","190","Ctl Computer CAR-JP 2-CivJs",1908000001,"190-127CARCivJs0001","1950-01-01","9999-12-31","2012-05-15","No","No","No",{"$f":"IF(A1246=\"????\",\"\",_xlfn.XLOOKUP('Data FA Lookup'!$D1246,'FC Master'!A:A,'FC Master'!Q:Q,'Data FA Lookup'!$D1246,0,1))","v":1908000001}]
["1110","190","Ctl Computer CAR-JP 2-CrmJs",1908000001,"190-127CARCrmJs0001","1950-01-01","9999-12-31","2012-05-15","No","No","No",{"$f":"IF(A1247=\"????\",\"\",_xlfn.XLOOKUP('Data FA Lookup'!$D1247,'FC Master'!A:A,'FC Master'!Q:Q,'Data FA Lookup'!$D1247,0,1))","v":1908000001}]
["1110","190","Ctl Computer CAR-JP 3-CivJs",1908000001,"190-128CARCivJs0001","1950-01-01","9999-12-31","2012-05-15","No","No","No",{"$f":"IF(A1248=\"????\",\"\",_xlfn.XLOOKUP('Data FA Lookup'!$D1248,'FC Master'!A:A,'FC Master'!Q:Q,'Data FA Lookup'!$D1248,0,1))","v":1908000001}]
["1110","190","Ctl Computer CAR-JP 3-CrmJs",1908000001,"190-128CARCrmJs0001","1950-01-01","9999-12-31","2012-05-15","No","No","No",{"$f":"IF(A1249=\"????\",\"\",_xlfn.XLOOKUP('Data FA Lookup'!$D1249,'FC Master'!A:A,'FC Master'!Q:Q,'Data FA Lookup'!$D1249,0,1))","v":1908000001}]
["1110","190","Ctl Computer CAR-JP 4-CivJs",1908000001,"190-129CARCivJs0001","1950-01-01","9999-12-31","2012-05-15","No","No","No",{"$f":"IF(A1250=\"????\",\"\",_xlfn.XLOOKUP('Data FA Lookup'!$D1250,'FC Master'!A:A,'FC Master'!Q:Q,'Data FA Lookup'!$D1250,0,1))","v":1908000001}]
["1110","190","Ctl Computer CAR-JP 4-CrmJs",1908000001,"190-129CARCrmJs0001","1950-01-01","9999-12-31","2012-05-15","No","No","No",{"$f":"IF(A1251=\"????\",\"\",_xlfn.XLOOKUP('Data FA Lookup'!$D1251,'FC Master'!A:A,'FC Master'!Q:Q,'Data FA Lookup'!$D1251,0,1))","v":1908000001}]
["1110","190","Ctl Computer CAR-JP 5-CivJs",1908000001,"190-130CARCivJs0001","1950-01-01","9999-12-31","2012-05-15","No","No","No",{"$f":"IF(A1252=\"????\",\"\",_xlfn.XLOOKUP('Data FA Lookup'!$D1252,'FC Master'!A:A,'FC Master'!Q:Q,'Data FA Lookup'!$D1252,0,1))","v":1908000001}]
["1110","190","Ctl Computer CAR-JP 5-CrmJs",1908000001,"190-130CARCrmJs0001","1950-01-01","9999-12-31","2012-05-15","No","No","No",{"$f":"IF(A1253=\"????\",\"\",_xlfn.XLOOKUP('Data FA Lookup'!$D1253,'FC Master'!A:A,'FC Master'!Q:Q,'Data FA Lookup'!$D1253,0,1))","v":1908000001}]
["1110","190","Ctl Computer CAR-Constable 1-LE",1908000001,"190-131CARLE0001","1950-01-01","9999-12-31","2012-05-15","No","No","No",{"$f":"IF(A1254=\"????\",\"\",_xlfn.XLOOKUP('Data FA Lookup'!$D1254,'FC Master'!A:A,'FC Master'!Q:Q,'Data FA Lookup'!$D1254,0,1))","v":1908000001}]
["1110","190","Ctl Computer CAR-Constable 2-LE",1908000001,"190-132CARLE0001","1950-01-01","9999-12-31","2012-05-15","No","No","No",{"$f":"IF(A1255=\"????\",\"\",_xlfn.XLOOKUP('Data FA Lookup'!$D1255,'FC Master'!A:A,'FC Master'!Q:Q,'Data FA Lookup'!$D1255,0,1))","v":1908000001}]
["1110","190","Ctl Computer CAR-Constable 3-LE",1908000001,"190-133CARLE0001","1950-01-01","9999-12-31","2012-05-15","No","No","No",{"$f":"IF(A1256=\"????\",\"\",_xlfn.XLOOKUP('Data FA Lookup'!$D1256,'FC Master'!A:A,'FC Master'!Q:Q,'Data FA Lookup'!$D1256,0,1))","v":1908000001}]
["1110","190","Ctl Computer CAR-Constable 4-LE",1908000001,"190-134CARLE0001","1950-01-01","9999-12-31","2012-05-15","No","No","No",{"$f":"IF(A1257=\"????\",\"\",_xlfn.XLOOKUP('Data FA Lookup'!$D1257,'FC Master'!A:A,'FC Master'!Q:Q,'Data FA Lookup'!$D1257,0,1))","v":1908000001}]
["1110","190","Ctl Computer CAR-Constable 5-LE",1908000001,"190-135CARLE0001","1950-01-01","9999-12-31","2012-05-15","No","No","No",{"$f":"IF(A1258=\"????\",\"\",_xlfn.XLOOKUP('Data FA Lookup'!$D1258,'FC Master'!A:A,'FC Master'!Q:Q,'Data FA Lookup'!$D1258,0,1))","v":1908000001}]
["1110","190","Ctl Computer CAR-Dispute Resol Ctr-CivJs",1908000001,"190-136CARCivJs0001","1950-01-01","9999-12-31","2012-05-15","No","No","No",{"$f":"IF(A1259=\"????\",\"\",_xlfn.XLOOKUP('Data FA Lookup'!$D1259,'FC Master'!A:A,'FC Master'!Q:Q,'Data FA Lookup'!$D1259,0,1))","v":1908000001}]
["1110","190","Ctl Computer CAR-Sheriff-LE",1908000001,"190-137CARLE0001","1950-01-01","9999-12-31","2012-05-15","No","No","No",{"$f":"IF(A1260=\"????\",\"\",_xlfn.XLOOKUP('Data FA Lookup'!$D1260,'FC Master'!A:A,'FC Master'!Q:Q,'Data FA Lookup'!$D1260,0,1))","v":1908000001}]
["1110","190","Ctl Computer CAR-Sheriff-HsgBkg",1908000001,"190-137CARHsgBkg0001","1950-01-01","9999-12-31","2012-05-15","No","No","No",{"$f":"IF(A1261=\"????\",\"\",_xlfn.XLOOKUP('Data FA Lookup'!$D1261,'FC Master'!A:A,'FC Master'!Q:Q,'Data FA Lookup'!$D1261,0,1))","v":1908000001}]
["1110","190","Ctl Computer CAR-Medical Examiner-LE",1908000001,"190-138CARLE0001","1950-01-01","9999-12-31","2012-05-15","No","No","No",{"$f":"IF(A1262=\"????\",\"\",_xlfn.XLOOKUP('Data FA Lookup'!$D1262,'FC Master'!A:A,'FC Master'!Q:Q,'Data FA Lookup'!$D1262,0,1))","v":1908000001}]
["1110","190","Ctl Computer CAR-CSCD-Svsn",1908000001,"190-139CARSvsn0001","1950-01-01","9999-12-31","2012-05-15","No","No","No",{"$f":"IF(A1263=\"????\",\"\",_xlfn.XLOOKUP('Data FA Lookup'!$D1263,'FC Master'!A:A,'FC Master'!Q:Q,'Data FA Lookup'!$D1263,0,1))","v":1908000001}]
["1110","190","Ctl Computer CAR-TCCES-Svsn",1908000001,"190-140CARSvsn0001","1950-01-01","9999-12-31","2012-05-15","No","No","No",{"$f":"IF(A1264=\"????\",\"\",_xlfn.XLOOKUP('Data FA Lookup'!$D1264,'FC Master'!A:A,'FC Master'!Q:Q,'Data FA Lookup'!$D1264,0,1))","v":1908000001}]
["1110","190","Ctl Computer CAR-Pretrial Services-Svsn",1908000001,"190-142CARSvsn0001","1950-01-01","9999-12-31","2012-05-15","No","No","No",{"$f":"IF(A1265=\"????\",\"\",_xlfn.XLOOKUP('Data FA Lookup'!$D1265,'FC Master'!A:A,'FC Master'!Q:Q,'Data FA Lookup'!$D1265,0,1))","v":1908000001}]
["1110","190","Ctl Computer CAR-Pretrial Svs-HsgBkg",1908000001,"190-142CARHsgBkg0001","1950-01-01","9999-12-31","2012-05-15","No","No","No",{"$f":"IF(A1266=\"????\",\"\",_xlfn.XLOOKUP('Data FA Lookup'!$D1266,'FC Master'!A:A,'FC Master'!Q:Q,'Data FA Lookup'!$D1266,0,1))","v":1908000001}]
["1110","190","Ctl Computer CAR-Juv Public Dfdr-JuvSvs",1908000001,"190-143CARJuvSvs0001","1950-01-01","9999-12-31","2012-05-15","No","No","No",{"$f":"IF(A1267=\"????\",\"\",_xlfn.XLOOKUP('Data FA Lookup'!$D1267,'FC Master'!A:A,'FC Master'!Q:Q,'Data FA Lookup'!$D1267,0,1))","v":1908000001}]
["1110","190","Ctl Computer CAR-Juv Probation-JuvSvs",1908000001,"190-145CARJuvSvs0001","1950-01-01","9999-12-31","2012-05-15","No","No","No",{"$f":"IF(A1268=\"????\",\"\",_xlfn.XLOOKUP('Data FA Lookup'!$D1268,'FC Master'!A:A,'FC Master'!Q:Q,'Data FA Lookup'!$D1268,0,1))","v":1908000001}]
["1110","190","Ctl Computer CAR-Emergency Svs-Hlhcare",1908000001,"190-147CARHlh0001","1950-01-01","9999-12-31","2012-05-15","No","No","No",{"$f":"IF(A1269=\"????\",\"\",_xlfn.XLOOKUP('Data FA Lookup'!$D1269,'FC Master'!A:A,'FC Master'!Q:Q,'Data FA Lookup'!$D1269,0,1))","v":1908000001}]
["1110","190","Ctl Computer CAR-Emergency Svs-EmrgMgmt",1908000001,"190-147CAREmrg0001","1950-01-01","9999-12-31","2012-05-15","No","No","No",{"$f":"IF(A1270=\"????\",\"\",_xlfn.XLOOKUP('Data FA Lookup'!$D1270,'FC Master'!A:A,'FC Master'!Q:Q,'Data FA Lookup'!$D1270,0,1))","v":1908000001}]
["1110","190","Ctl Computer CAR-TNR-RdBg",1908000001,"190-149CARRdBg0001","1950-01-01","9999-12-31","2012-05-15","No","No","No",{"$f":"IF(A1271=\"????\",\"\",_xlfn.XLOOKUP('Data FA Lookup'!$D1271,'FC Master'!A:A,'FC Master'!Q:Q,'Data FA Lookup'!$D1271,0,1))","v":1908000001}]
["1110","190","Ctl Computer CAR-TNR-Parks&Rec",1908000001,"190-149CARParks0001","1950-01-01","9999-12-31","2012-05-15","No","No","No",{"$f":"IF(A1272=\"????\",\"\",_xlfn.XLOOKUP('Data FA Lookup'!$D1272,'FC Master'!A:A,'FC Master'!Q:Q,'Data FA Lookup'!$D1272,0,1))","v":1908000001}]
["1110","190","Ctl Computer CAR-TNR-ConservNR",1908000001,"190-149CARConser0001","1950-01-01","9999-12-31","2012-05-15","No","No","No",{"$f":"IF(A1273=\"????\",\"\",_xlfn.XLOOKUP('Data FA Lookup'!$D1273,'FC Master'!A:A,'FC Master'!Q:Q,'Data FA Lookup'!$D1273,0,1))","v":1908000001}]
["1110","190","Ctl Computer CAR-TNR-FacMgmt",1908000001,"190-149CARFac0001","1950-01-01","9999-12-31","2012-05-15","No","No","No",{"$f":"IF(A1274=\"????\",\"\",_xlfn.XLOOKUP('Data FA Lookup'!$D1274,'FC Master'!A:A,'FC Master'!Q:Q,'Data FA Lookup'!$D1274,0,1))","v":1908000001}]
["1110","190","Ctl Computer CAR-TNR-Drng",1908000001,"190-149CARDrng0001","1950-01-01","9999-12-31","2012-05-15","No","No","No",{"$f":"IF(A1275=\"????\",\"\",_xlfn.XLOOKUP('Data FA Lookup'!$D1275,'FC Master'!A:A,'FC Master'!Q:Q,'Data FA Lookup'!$D1275,0,1))","v":1908000001}]
["1110","190","Ctl Computer CAR-TNR-Sanitation",1908000001,"190-149CARSntn0001","1950-01-01","9999-12-31","2012-05-15","No","No","No",{"$f":"IF(A1276=\"????\",\"\",_xlfn.XLOOKUP('Data FA Lookup'!$D1276,'FC Master'!A:A,'FC Master'!Q:Q,'Data FA Lookup'!$D1276,0,1))","v":1908000001}]
["1110","190","Ctl Computer CAR-TNR-DevRegIn",1908000001,"190-149CARDevReg0001","1950-01-01","9999-12-31","2012-05-15","No","No","No",{"$f":"IF(A1277=\"????\",\"\",_xlfn.XLOOKUP('Data FA Lookup'!$D1277,'FC Master'!A:A,'FC Master'!Q:Q,'Data FA Lookup'!$D1277,0,1))","v":1908000001}]
["1110","190","Ctl Computer CAR-TNR-HumanSvs",1908000001,"190-149CARHuman0001","1950-01-01","9999-12-31","2012-05-15","No","No","No",{"$f":"IF(A1278=\"????\",\"\",_xlfn.XLOOKUP('Data FA Lookup'!$D1278,'FC Master'!A:A,'FC Master'!Q:Q,'Data FA Lookup'!$D1278,0,1))","v":1908000001}]
["1110","190","Ctl Computer CAR-Civil Service-GenAdm",1908000001,"190-154CARGenAdm0001","1950-01-01","9999-12-31","2012-05-15","No","No","No",{"$f":"IF(A1279=\"????\",\"\",_xlfn.XLOOKUP('Data FA Lookup'!$D1279,'FC Master'!A:A,'FC Master'!Q:Q,'Data FA Lookup'!$D1279,0,1))","v":1908000001}]
["1110","190","Ctl Computer CAR-CJP-CrmJs",1908000001,"190-155CARCrmJs0001","1950-01-01","9999-12-31","2012-05-15","No","No","No",{"$f":"IF(A1280=\"????\",\"\",_xlfn.XLOOKUP('Data FA Lookup'!$D1280,'FC Master'!A:A,'FC Master'!Q:Q,'Data FA Lookup'!$D1280,0,1))","v":1908000001}]
["1110","190","Ctl Computer CAR-CJP-Hlhcare",1908000001,"190-155CARHlh0001","1950-01-01","9999-12-31","2012-05-15","No","No","No",{"$f":"IF(A1281=\"????\",\"\",_xlfn.XLOOKUP('Data FA Lookup'!$D1281,'FC Master'!A:A,'FC Master'!Q:Q,'Data FA Lookup'!$D1281,0,1))","v":1908000001}]
["1110","190","Ctl Computer CAR-CJP-EmrgMgmt",1908000001,"190-155CAREmrg0001","1950-01-01","9999-12-31","2012-05-15","No","No","No",{"$f":"IF(A1282=\"????\",\"\",_xlfn.XLOOKUP('Data FA Lookup'!$D1282,'FC Master'!A:A,'FC Master'!Q:Q,'Data FA Lookup'!$D1282,0,1))","v":1908000001}]
["1110","190","Ctl Computer CAR-CJP-Svsn",1908000001,"190-155CARSvsn0001","1950-01-01","9999-12-31","2012-05-15","No","No","No",{"$f":"IF(A1283=\"????\",\"\",_xlfn.XLOOKUP('Data FA Lookup'!$D1283,'FC Master'!A:A,'FC Master'!Q:Q,'Data FA Lookup'!$D1283,0,1))","v":1908000001}]
["1110","190","Ctl Computer CAR-CJP-JuvSvs",1908000001,"190-155CARJuvSvs0001","1950-01-01","9999-12-31","2012-05-15","No","No","No",{"$f":"IF(A1284=\"????\",\"\",_xlfn.XLOOKUP('Data FA Lookup'!$D1284,'FC Master'!A:A,'FC Master'!Q:Q,'Data FA Lookup'!$D1284,0,1))","v":1908000001}]
["1110","190","Ctl Computer CAR-CJP-LE",1908000001,"190-155CARLE0001","1950-01-01","9999-12-31","2012-05-15","No","No","No",{"$f":"IF(A1285=\"????\",\"\",_xlfn.XLOOKUP('Data FA Lookup'!$D1285,'FC Master'!A:A,'FC Master'!Q:Q,'Data FA Lookup'!$D1285,0,1))","v":1908000001}]
["1110","190","Ctl Computer CAR-CRS-GenAdm",1908000001,"190-157CARGenAdm0001","1950-01-01","9999-12-31","2012-05-15","No","No","No",{"$f":"IF(A1286=\"????\",\"\",_xlfn.XLOOKUP('Data FA Lookup'!$D1286,'FC Master'!A:A,'FC Master'!Q:Q,'Data FA Lookup'!$D1286,0,1))","v":1908000001}]
["1110","190","Ctl Computer CAR-CRS-CivJs",1908000001,"190-157CARCivJs0001","1950-01-01","9999-12-31","2012-05-15","No","No","No",{"$f":"IF(A1287=\"????\",\"\",_xlfn.XLOOKUP('Data FA Lookup'!$D1287,'FC Master'!A:A,'FC Master'!Q:Q,'Data FA Lookup'!$D1287,0,1))","v":1908000001}]
["1110","190","Ctl Computer CAR-CRS-CrmJs",1908000001,"190-157CARCrmJs0001","1950-01-01","9999-12-31","2012-05-15","No","No","No",{"$f":"IF(A1288=\"????\",\"\",_xlfn.XLOOKUP('Data FA Lookup'!$D1288,'FC Master'!A:A,'FC Master'!Q:Q,'Data FA Lookup'!$D1288,0,1))","v":1908000001}]
["1110","190","Ctl Computer CAR-HHS-Hlhcare",1908000001,"190-158CARHlh0001","1950-01-01","9999-12-31","2012-05-15","No","No","No",{"$f":"IF(A1289=\"????\",\"\",_xlfn.XLOOKUP('Data FA Lookup'!$D1289,'FC Master'!A:A,'FC Master'!Q:Q,'Data FA Lookup'!$D1289,0,1))","v":1908000001}]
["1110","190","Ctl Computer CAR-HHS-PbcHlh",1908000001,"190-158CARPbcHlh0001","1950-01-01","9999-12-31","2012-05-15","No","No","No",{"$f":"IF(A1290=\"????\",\"\",_xlfn.XLOOKUP('Data FA Lookup'!$D1290,'FC Master'!A:A,'FC Master'!Q:Q,'Data FA Lookup'!$D1290,0,1))","v":1908000001}]
["1110","190","Ctl Computer CAR-HHS-HumanSvs",1908000001,"190-158CARHuman0001","1950-01-01","9999-12-31","2012-05-15","No","No","No",{"$f":"IF(A1291=\"????\",\"\",_xlfn.XLOOKUP('Data FA Lookup'!$D1291,'FC Master'!A:A,'FC Master'!Q:Q,'Data FA Lookup'!$D1291,0,1))","v":1908000001}]
["1110","190","Ctl Computer CAR-HHS-JuvSvs",1908000001,"190-158CARJuvSvs0001","1950-01-01","9999-12-31","2012-05-15","No","No","No",{"$f":"IF(A1292=\"????\",\"\",_xlfn.XLOOKUP('Data FA Lookup'!$D1292,'FC Master'!A:A,'FC Master'!Q:Q,'Data FA Lookup'!$D1292,0,1))","v":1908000001}]
["1110","190","Ctl Computer CAR-EMS-Hlhcare",1908000001,"190-159CARHlh0001","1950-01-01","9999-12-31","2012-05-15","No","No","No",{"$f":"IF(A1293=\"????\",\"\",_xlfn.XLOOKUP('Data FA Lookup'!$D1293,'FC Master'!A:A,'FC Master'!Q:Q,'Data FA Lookup'!$D1293,0,1))","v":1908000001}]
["1110","190","Ctl Computer CAR-Legally Mtd Fees-CivJs",1908000001,"190-193CARCivJs0001","1950-01-01","9999-12-31","2012-05-15","No","No","No",{"$f":"IF(A1294=\"????\",\"\",_xlfn.XLOOKUP('Data FA Lookup'!$D1294,'FC Master'!A:A,'FC Master'!Q:Q,'Data FA Lookup'!$D1294,0,1))","v":1908000001}]
["1110","190","Ctl Computer CAR-Legally Mtd Fees-CrmJs",1908000001,"190-194CARCrmJs0001","1950-01-01","9999-12-31","2012-05-15","No","No","No",{"$f":"IF(A1295=\"????\",\"\",_xlfn.XLOOKUP('Data FA Lookup'!$D1295,'FC Master'!A:A,'FC Master'!Q:Q,'Data FA Lookup'!$D1295,0,1))","v":1908000001}]
["1110","190","Ctl Computer CAR-Public Defender-CrimJs",1908000001,"190-144CARPD0001","1950-01-01","9999-12-31","2021-02-09","No","No","No",{"$f":"IF(A1296=\"????\",\"\",_xlfn.XLOOKUP('Data FA Lookup'!$D1296,'FC Master'!A:A,'FC Master'!Q:Q,'Data FA Lookup'!$D1296,0,1))","v":1908000001}]
["1110","191","Ctl RentUtil-County Judge-GenAdm",1911100001,"191-101GenAdm0001","1950-01-01","9999-12-31","2012-05-14","No","No","No",{"$f":"IF(A1297=\"????\",\"\",_xlfn.XLOOKUP('Data FA Lookup'!$D1297,'FC Master'!A:A,'FC Master'!Q:Q,'Data FA Lookup'!$D1297,0,1))","v":1911100001}]
["1230","191","Ctl RentUtil-County Judge-JuvSvs",1911110001,"191-101JuvSvs0001","1950-01-01","9999-12-31","2012-05-14","No","No","No",{"$f":"IF(A1298=\"????\",\"\",_xlfn.XLOOKUP('Data FA Lookup'!$D1298,'FC Master'!A:A,'FC Master'!Q:Q,'Data FA Lookup'!$D1298,0,1))","v":1911110001}]
["1110","191","Ctl RentUtil-CC-Pct 1-GenAdm",1911120001,"191-102GenAdm0001","1950-01-01","9999-12-31","2012-05-14","No","No","No",{"$f":"IF(A1299=\"????\",\"\",_xlfn.XLOOKUP('Data FA Lookup'!$D1299,'FC Master'!A:A,'FC Master'!Q:Q,'Data FA Lookup'!$D1299,0,1))","v":1911120001}]
["1110","191","Ctl RentUtil-CC Pct 2-GenAdm",1911130001,"191-103GenAdm0001","1950-01-01","9999-12-31","2012-05-14","No","No","No",{"$f":"IF(A1300=\"????\",\"\",_xlfn.XLOOKUP('Data FA Lookup'!$D1300,'FC Master'!A:A,'FC Master'!Q:Q,'Data FA Lookup'!$D1300,0,1))","v":1911130001}]
["1110","191","Ctl RentUtil-CC Pct 3-GenAdm",1911140001,"191-104GenAdm0001","1950-01-01","9999-12-31","2012-05-14","No","No","No",{"$f":"IF(A1301=\"????\",\"\",_xlfn.XLOOKUP('Data FA Lookup'!$D1301,'FC Master'!A:A,'FC Master'!Q:Q,'Data FA Lookup'!$D1301,0,1))","v":1911140001}]
["1110","191","Ctl RentUtil-CC Pct 4-GenAdm",1911150001,"191-105GenAdm0001","1950-01-01","9999-12-31","2012-05-14","No","No","No",{"$f":"IF(A1302=\"????\",\"\",_xlfn.XLOOKUP('Data FA Lookup'!$D1302,'FC Master'!A:A,'FC Master'!Q:Q,'Data FA Lookup'!$D1302,0,1))","v":1911150001}]
["1120","191","Ctl RentUtil-County Auditor-FinAdm",1911160001,"191-106FinAdm0001","1950-01-01","9999-12-31","2012-05-14","No","No","No",{"$f":"IF(A1303=\"????\",\"\",_xlfn.XLOOKUP('Data FA Lookup'!$D1303,'FC Master'!A:A,'FC Master'!Q:Q,'Data FA Lookup'!$D1303,0,1))","v":1911160001}]
["1120","191","Ctl RentUtil-County Treasurer-FinAdm",1911170001,"191-107FinAdm0001","1950-01-01","9999-12-31","2012-05-14","No","No","No",{"$f":"IF(A1304=\"????\",\"\",_xlfn.XLOOKUP('Data FA Lookup'!$D1304,'FC Master'!A:A,'FC Master'!Q:Q,'Data FA Lookup'!$D1304,0,1))","v":1911170001}]
["1130","191","Ctl RentUtil-Tax Collector-TaxAdm",1911180001,"191-108TaxAdm0001","1950-01-01","9999-12-31","2012-05-14","No","No","No",{"$f":"IF(A1305=\"????\",\"\",_xlfn.XLOOKUP('Data FA Lookup'!$D1305,'FC Master'!A:A,'FC Master'!Q:Q,'Data FA Lookup'!$D1305,0,1))","v":1911180001}]
["1210","191","Ctl RentUtil-Tax Collector-CrmJs",1911190001,"191-108CrmJs0001","1950-01-01","9999-12-31","2012-05-14","No","No","No",{"$f":"IF(A1306=\"????\",\"\",_xlfn.XLOOKUP('Data FA Lookup'!$D1306,'FC Master'!A:A,'FC Master'!Q:Q,'Data FA Lookup'!$D1306,0,1))","v":1911190001}]
["1150","191","Ctl RentUtil-Tax Collector-ElnAdm",1911200001,"191-108ElnAdm0001","1950-01-01","9999-12-31","2012-05-14","No","No","No",{"$f":"IF(A1307=\"????\",\"\",_xlfn.XLOOKUP('Data FA Lookup'!$D1307,'FC Master'!A:A,'FC Master'!Q:Q,'Data FA Lookup'!$D1307,0,1))","v":1911200001}]
["1120","191","Ctl RentUtil-Planning And Budget-FinAdm",1911210001,"191-109FinAdm0001","1950-01-01","9999-12-31","2012-05-14","No","No","No",{"$f":"IF(A1308=\"????\",\"\",_xlfn.XLOOKUP('Data FA Lookup'!$D1308,'FC Master'!A:A,'FC Master'!Q:Q,'Data FA Lookup'!$D1308,0,1))","v":1911210001}]
["1110","191","Ctl RentUtil-General Adm-GenAdm",1911220001,"191-110GenAdm0001","1950-01-01","9999-12-31","2012-05-14","No","No","No",{"$f":"IF(A1309=\"????\",\"\",_xlfn.XLOOKUP('Data FA Lookup'!$D1309,'FC Master'!A:A,'FC Master'!Q:Q,'Data FA Lookup'!$D1309,0,1))","v":1911220001}]
["1510","191","Ctl RentUtil-General Adm-Hlhcare",1911230001,"191-110Hlhcare0001","1950-01-01","9999-12-31","2012-05-14","No","No","No",{"$f":"IF(A1310=\"????\",\"\",_xlfn.XLOOKUP('Data FA Lookup'!$D1310,'FC Master'!A:A,'FC Master'!Q:Q,'Data FA Lookup'!$D1310,0,1))","v":1911230001}]
["1610","191","Ctl RentUtil-General Adm-EconDev",1911240001,"191-110EconDev0001","1950-01-01","9999-12-31","2012-05-14","No","No","No",{"$f":"IF(A1311=\"????\",\"\",_xlfn.XLOOKUP('Data FA Lookup'!$D1311,'FC Master'!A:A,'FC Master'!Q:Q,'Data FA Lookup'!$D1311,0,1))","v":1911240001}]
["1110","191","Ctl RentUtil-Human Resource Mgmt-GenAdm",1911250001,"191-111GenAdm0001","1950-01-01","9999-12-31","2012-05-14","No","No","No",{"$f":"IF(A1312=\"????\",\"\",_xlfn.XLOOKUP('Data FA Lookup'!$D1312,'FC Master'!A:A,'FC Master'!Q:Q,'Data FA Lookup'!$D1312,0,1))","v":1911250001}]
["1110","191","Ctl RentUtil-ITS-GenAdm",1911260001,"191-112GenAdm0001","1950-01-01","9999-12-31","2012-05-14","No","No","No",{"$f":"IF(A1313=\"????\",\"\",_xlfn.XLOOKUP('Data FA Lookup'!$D1313,'FC Master'!A:A,'FC Master'!Q:Q,'Data FA Lookup'!$D1313,0,1))","v":1911260001}]
["1610","191","Ctl RentUtil-EXPO Center-EconDev",1911270001,"191-113EconDev0001","1950-01-01","9999-12-31","2012-05-14","No","No","No",{"$f":"IF(A1314=\"????\",\"\",_xlfn.XLOOKUP('Data FA Lookup'!$D1314,'FC Master'!A:A,'FC Master'!Q:Q,'Data FA Lookup'!$D1314,0,1))","v":1911270001}]
["1140","191","Ctl RentUtil-Facilities Mgmt-FacMgmt",1911280001,"191-114FacMgmt0001","1950-01-01","9999-12-31","2012-05-14","No","No","No",{"$f":"IF(A1315=\"????\",\"\",_xlfn.XLOOKUP('Data FA Lookup'!$D1315,'FC Master'!A:A,'FC Master'!Q:Q,'Data FA Lookup'!$D1315,0,1))","v":1911280001}]
["1610","191","Ctl RentUtil-Facilities Mgmt-EconDev",1911290001,"191-114EconDev0001","1950-01-01","9999-12-31","2012-05-14","No","No","No",{"$f":"IF(A1316=\"????\",\"\",_xlfn.XLOOKUP('Data FA Lookup'!$D1316,'FC Master'!A:A,'FC Master'!Q:Q,'Data FA Lookup'!$D1316,0,1))","v":1911290001}]
["1120","191","Ctl RentUtil-Purchasing-FinAdm",1911300001,"191-115FinAdm0001","1950-01-01","9999-12-31","2012-05-14","No","No","No",{"$f":"IF(A1317=\"????\",\"\",_xlfn.XLOOKUP('Data FA Lookup'!$D1317,'FC Master'!A:A,'FC Master'!Q:Q,'Data FA Lookup'!$D1317,0,1))","v":1911300001}]
["1530","191","Ctl RentUtil-Veterans Services-HumanSvs",1911310001,"191-116HumanSvs0001","1950-01-01","9999-12-31","2012-05-14","No","No","No",{"$f":"IF(A1318=\"????\",\"\",_xlfn.XLOOKUP('Data FA Lookup'!$D1318,'FC Master'!A:A,'FC Master'!Q:Q,'Data FA Lookup'!$D1318,0,1))","v":1911310001}]
["1650","191","Ctl RentUtil-Historical Comm-Cul&Edu",1911320001,"191-117Cul&Edu0001","1950-01-01","9999-12-31","2012-05-14","No","No","No",{"$f":"IF(A1319=\"????\",\"\",_xlfn.XLOOKUP('Data FA Lookup'!$D1319,'FC Master'!A:A,'FC Master'!Q:Q,'Data FA Lookup'!$D1319,0,1))","v":1911320001}]
["1530","191","Ctl RentUtil-Agr Ext Serv-HumanSvs",1911330001,"191-118HumanSvs0001","1950-01-01","9999-12-31","2012-05-14","No","No","No",{"$f":"IF(A1320=\"????\",\"\",_xlfn.XLOOKUP('Data FA Lookup'!$D1320,'FC Master'!A:A,'FC Master'!Q:Q,'Data FA Lookup'!$D1320,0,1))","v":1911330001}]
["1220","191","Ctl RentUtil-County Attorney-CivJs",1911340001,"191-119CivJs0001","1950-01-01","9999-12-31","2012-05-14","No","No","No",{"$f":"IF(A1321=\"????\",\"\",_xlfn.XLOOKUP('Data FA Lookup'!$D1321,'FC Master'!A:A,'FC Master'!Q:Q,'Data FA Lookup'!$D1321,0,1))","v":1911340001}]
["1210","191","Ctl RentUtil-County Attorney-CrmJs",1911350001,"191-119CrmJs0001","1950-01-01","9999-12-31","2012-05-14","No","No","No",{"$f":"IF(A1322=\"????\",\"\",_xlfn.XLOOKUP('Data FA Lookup'!$D1322,'FC Master'!A:A,'FC Master'!Q:Q,'Data FA Lookup'!$D1322,0,1))","v":1911350001}]
["1110","191","Ctl RentUtil-County Clerk-GenAdm",1911360001,"191-120GenAdm0001","1950-01-01","9999-12-31","2012-05-14","No","No","No",{"$f":"IF(A1323=\"????\",\"\",_xlfn.XLOOKUP('Data FA Lookup'!$D1323,'FC Master'!A:A,'FC Master'!Q:Q,'Data FA Lookup'!$D1323,0,1))","v":1911360001}]
["1150","191","Ctl RentUtil-County Clerk-ElnAdm",1911370001,"191-120ElnAdm0001","1950-01-01","9999-12-31","2012-05-14","No","No","No",{"$f":"IF(A1324=\"????\",\"\",_xlfn.XLOOKUP('Data FA Lookup'!$D1324,'FC Master'!A:A,'FC Master'!Q:Q,'Data FA Lookup'!$D1324,0,1))","v":1911370001}]
["1220","191","Ctl RentUtil-County Clerk-CivJs",1911380001,"191-120CivJs0001","1950-01-01","9999-12-31","2012-05-14","No","No","No",{"$f":"IF(A1325=\"????\",\"\",_xlfn.XLOOKUP('Data FA Lookup'!$D1325,'FC Master'!A:A,'FC Master'!Q:Q,'Data FA Lookup'!$D1325,0,1))","v":1911380001}]
["1210","191","Ctl RentUtil-County Clerk-CrmJs",1911390001,"191-120CrmJs0001","1950-01-01","9999-12-31","2012-05-14","No","No","No",{"$f":"IF(A1326=\"????\",\"\",_xlfn.XLOOKUP('Data FA Lookup'!$D1326,'FC Master'!A:A,'FC Master'!Q:Q,'Data FA Lookup'!$D1326,0,1))","v":1911390001}]
["1220","191","Ctl RentUtil-District Clerk-CivJs",1911400001,"191-121CivJs0001","1950-01-01","9999-12-31","2012-05-14","No","No","No",{"$f":"IF(A1327=\"????\",\"\",_xlfn.XLOOKUP('Data FA Lookup'!$D1327,'FC Master'!A:A,'FC Master'!Q:Q,'Data FA Lookup'!$D1327,0,1))","v":1911400001}]
["1210","191","Ctl RentUtil-District Clerk-CrmJs",1911410001,"191-121CrmJs0001","1950-01-01","9999-12-31","2012-05-14","No","No","No",{"$f":"IF(A1328=\"????\",\"\",_xlfn.XLOOKUP('Data FA Lookup'!$D1328,'FC Master'!A:A,'FC Master'!Q:Q,'Data FA Lookup'!$D1328,0,1))","v":1911410001}]
["1220","191","Ctl RentUtil-Civil Courts-CivJs",1911420001,"191-122CivJs0001","1950-01-01","9999-12-31","2012-05-14","No","No","No",{"$f":"IF(A1329=\"????\",\"\",_xlfn.XLOOKUP('Data FA Lookup'!$D1329,'FC Master'!A:A,'FC Master'!Q:Q,'Data FA Lookup'!$D1329,0,1))","v":1911420001}]
["1210","191","Ctl RentUtil-District Attorney-CrmJs",1911430001,"191-123CrmJs0001","1950-01-01","9999-12-31","2012-05-14","No","No","No",{"$f":"IF(A1330=\"????\",\"\",_xlfn.XLOOKUP('Data FA Lookup'!$D1330,'FC Master'!A:A,'FC Master'!Q:Q,'Data FA Lookup'!$D1330,0,1))","v":1911430001}]
["1220","191","Ctl RentUtil-District Attorney-CivJs",1911440001,"191-123CivJs0001","1950-01-01","9999-12-31","2012-05-14","No","No","No",{"$f":"IF(A1331=\"????\",\"\",_xlfn.XLOOKUP('Data FA Lookup'!$D1331,'FC Master'!A:A,'FC Master'!Q:Q,'Data FA Lookup'!$D1331,0,1))","v":1911440001}]
["1210","191","Ctl RentUtil-Criminal Courts-CrmJs",1911450001,"191-124CrmJs0001","1950-01-01","9999-12-31","2012-05-14","No","No","No",{"$f":"IF(A1332=\"????\",\"\",_xlfn.XLOOKUP('Data FA Lookup'!$D1332,'FC Master'!A:A,'FC Master'!Q:Q,'Data FA Lookup'!$D1332,0,1))","v":1911450001}]
["1220","191","Ctl RentUtil-Probate Court-CivJs",1911460001,"191-125CivJs0001","1950-01-01","9999-12-31","2012-05-14","No","No","No",{"$f":"IF(A1333=\"????\",\"\",_xlfn.XLOOKUP('Data FA Lookup'!$D1333,'FC Master'!A:A,'FC Master'!Q:Q,'Data FA Lookup'!$D1333,0,1))","v":1911460001}]
["1220","191","Ctl RentUtil-Justice Of Peace 1-CivJs",1911470001,"191-126CivJs0001","1950-01-01","9999-12-31","2012-05-14","No","No","No",{"$f":"IF(A1334=\"????\",\"\",_xlfn.XLOOKUP('Data FA Lookup'!$D1334,'FC Master'!A:A,'FC Master'!Q:Q,'Data FA Lookup'!$D1334,0,1))","v":1911470001}]
["1210","191","Ctl RentUtil-Justice Of Peace 1-CrmJs",1911480001,"191-126CrmJs0001","1950-01-01","9999-12-31","2012-05-14","No","No","No",{"$f":"IF(A1335=\"????\",\"\",_xlfn.XLOOKUP('Data FA Lookup'!$D1335,'FC Master'!A:A,'FC Master'!Q:Q,'Data FA Lookup'!$D1335,0,1))","v":1911480001}]
["1220","191","Ctl RentUtil-Justice Of Peace 2-CivJs",1911490001,"191-127CivJs0001","1950-01-01","9999-12-31","2012-05-14","No","No","No",{"$f":"IF(A1336=\"????\",\"\",_xlfn.XLOOKUP('Data FA Lookup'!$D1336,'FC Master'!A:A,'FC Master'!Q:Q,'Data FA Lookup'!$D1336,0,1))","v":1911490001}]
["1210","191","Ctl RentUtil-Justice Of Peace 2-CrmJs",1911500001,"191-127CrmJs0001","1950-01-01","9999-12-31","2012-05-14","No","No","No",{"$f":"IF(A1337=\"????\",\"\",_xlfn.XLOOKUP('Data FA Lookup'!$D1337,'FC Master'!A:A,'FC Master'!Q:Q,'Data FA Lookup'!$D1337,0,1))","v":1911500001}]
["1220","191","Ctl RentUtil-Justice Of Peace 3-CivJs",1911510001,"191-128CivJs0001","1950-01-01","9999-12-31","2012-05-14","No","No","No",{"$f":"IF(A1338=\"????\",\"\",_xlfn.XLOOKUP('Data FA Lookup'!$D1338,'FC Master'!A:A,'FC Master'!Q:Q,'Data FA Lookup'!$D1338,0,1))","v":1911510001}]
["1210","191","Ctl RentUtil-Justice Of Peace 3-CrmJs",1911520001,"191-128CrmJs0001","1950-01-01","9999-12-31","2012-05-14","No","No","No",{"$f":"IF(A1339=\"????\",\"\",_xlfn.XLOOKUP('Data FA Lookup'!$D1339,'FC Master'!A:A,'FC Master'!Q:Q,'Data FA Lookup'!$D1339,0,1))","v":1911520001}]
["1220","191","Ctl RentUtil-Justice Of Peace 4-CivJs",1911530001,"191-129CivJs0001","1950-01-01","9999-12-31","2012-05-14","No","No","No",{"$f":"IF(A1340=\"????\",\"\",_xlfn.XLOOKUP('Data FA Lookup'!$D1340,'FC Master'!A:A,'FC Master'!Q:Q,'Data FA Lookup'!$D1340,0,1))","v":1911530001}]
["1210","191","Ctl RentUtil-Justice Of Peace 4-CrmJs",1911540001,"191-129CrmJs0001","1950-01-01","9999-12-31","2012-05-14","No","No","No",{"$f":"IF(A1341=\"????\",\"\",_xlfn.XLOOKUP('Data FA Lookup'!$D1341,'FC Master'!A:A,'FC Master'!Q:Q,'Data FA Lookup'!$D1341,0,1))","v":1911540001}]
["1220","191","Ctl RentUtil-Justice Of Peace 5-CivJs",1911550001,"191-130CivJs0001","1950-01-01","9999-12-31","2012-05-14","No","No","No",{"$f":"IF(A1342=\"????\",\"\",_xlfn.XLOOKUP('Data FA Lookup'!$D1342,'FC Master'!A:A,'FC Master'!Q:Q,'Data FA Lookup'!$D1342,0,1))","v":1911550001}]
["1210","191","Ctl RentUtil-Justice Of Peace 5-CrmJs",1911560001,"191-130CrmJs0001","1950-01-01","9999-12-31","2012-05-14","No","No","No",{"$f":"IF(A1343=\"????\",\"\",_xlfn.XLOOKUP('Data FA Lookup'!$D1343,'FC Master'!A:A,'FC Master'!Q:Q,'Data FA Lookup'!$D1343,0,1))","v":1911560001}]
["1310","191","Ctl RentUtil-Constable 1-LE",1911570001,"191-131LE0001","1950-01-01","9999-12-31","2012-05-14","No","No","No",{"$f":"IF(A1344=\"????\",\"\",_xlfn.XLOOKUP('Data FA Lookup'!$D1344,'FC Master'!A:A,'FC Master'!Q:Q,'Data FA Lookup'!$D1344,0,1))","v":1911570001}]
["1310","191","Ctl RentUtil-Constable 2-LE",1911580001,"191-132LE0001","1950-01-01","9999-12-31","2012-05-14","No","No","No",{"$f":"IF(A1345=\"????\",\"\",_xlfn.XLOOKUP('Data FA Lookup'!$D1345,'FC Master'!A:A,'FC Master'!Q:Q,'Data FA Lookup'!$D1345,0,1))","v":1911580001}]
["1310","191","Ctl RentUtil-Constable 3-LE",1911590001,"191-133LE0001","1950-01-01","9999-12-31","2012-05-14","No","No","No",{"$f":"IF(A1346=\"????\",\"\",_xlfn.XLOOKUP('Data FA Lookup'!$D1346,'FC Master'!A:A,'FC Master'!Q:Q,'Data FA Lookup'!$D1346,0,1))","v":1911590001}]
["1310","191","Ctl RentUtil-Constable 4-LE",1911600001,"191-134LE0001","1950-01-01","9999-12-31","2012-05-14","No","No","No",{"$f":"IF(A1347=\"????\",\"\",_xlfn.XLOOKUP('Data FA Lookup'!$D1347,'FC Master'!A:A,'FC Master'!Q:Q,'Data FA Lookup'!$D1347,0,1))","v":1911600001}]
["1310","191","Ctl RentUtil-Constable 5-LE",1911610001,"191-135LE0001","1950-01-01","9999-12-31","2012-05-14","No","No","No",{"$f":"IF(A1348=\"????\",\"\",_xlfn.XLOOKUP('Data FA Lookup'!$D1348,'FC Master'!A:A,'FC Master'!Q:Q,'Data FA Lookup'!$D1348,0,1))","v":1911610001}]
["1220","191","Ctl RentUtil-Dispute Resol Ctr-CivJs",1911620001,"191-136CivJs0001","1950-01-01","9999-12-31","2012-05-14","No","No","No",{"$f":"IF(A1349=\"????\",\"\",_xlfn.XLOOKUP('Data FA Lookup'!$D1349,'FC Master'!A:A,'FC Master'!Q:Q,'Data FA Lookup'!$D1349,0,1))","v":1911620001}]
["1310","191","Ctl RentUtil-Sheriff-LE",1911630001,"191-137LE0001","1950-01-01","9999-12-31","2012-05-14","No","No","No",{"$f":"IF(A1350=\"????\",\"\",_xlfn.XLOOKUP('Data FA Lookup'!$D1350,'FC Master'!A:A,'FC Master'!Q:Q,'Data FA Lookup'!$D1350,0,1))","v":1911630001}]
["1410","191","Ctl RentUtil-Sheriff-HsgBkg",1911640001,"191-137HsgBkg0001","1950-01-01","9999-12-31","2012-05-14","No","No","No",{"$f":"IF(A1351=\"????\",\"\",_xlfn.XLOOKUP('Data FA Lookup'!$D1351,'FC Master'!A:A,'FC Master'!Q:Q,'Data FA Lookup'!$D1351,0,1))","v":1911640001}]
["1310","191","Ctl RentUtil-Medical Examiner-LE",1911650001,"191-138LE0001","1950-01-01","9999-12-31","2012-05-14","No","No","No",{"$f":"IF(A1352=\"????\",\"\",_xlfn.XLOOKUP('Data FA Lookup'!$D1352,'FC Master'!A:A,'FC Master'!Q:Q,'Data FA Lookup'!$D1352,0,1))","v":1911650001}]
["1420","191","Ctl RentUtil-CSCD-Svsn",1911660001,"191-139Svsn0001","1950-01-01","9999-12-31","2012-05-14","No","No","No",{"$f":"IF(A1353=\"????\",\"\",_xlfn.XLOOKUP('Data FA Lookup'!$D1353,'FC Master'!A:A,'FC Master'!Q:Q,'Data FA Lookup'!$D1353,0,1))","v":1911660001}]
["1420","191","Ctl RentUtil-TCCES-Svsn",1911670001,"191-140Svsn0001","1950-01-01","9999-12-31","2012-05-14","No","No","No",{"$f":"IF(A1354=\"????\",\"\",_xlfn.XLOOKUP('Data FA Lookup'!$D1354,'FC Master'!A:A,'FC Master'!Q:Q,'Data FA Lookup'!$D1354,0,1))","v":1911670001}]
["1420","191","Ctl RentUtil-Pretrial Services-Svsn",1911680001,"191-142Svsn0001","1950-01-01","9999-12-31","2012-05-14","No","No","No",{"$f":"IF(A1355=\"????\",\"\",_xlfn.XLOOKUP('Data FA Lookup'!$D1355,'FC Master'!A:A,'FC Master'!Q:Q,'Data FA Lookup'!$D1355,0,1))","v":1911680001}]
["1410","191","Ctl RentUtil-Pretrial Services-HsgBkg",1911690001,"191-142HsgBkg0001","1950-01-01","9999-12-31","2012-05-14","No","No","No",{"$f":"IF(A1356=\"????\",\"\",_xlfn.XLOOKUP('Data FA Lookup'!$D1356,'FC Master'!A:A,'FC Master'!Q:Q,'Data FA Lookup'!$D1356,0,1))","v":1911690001}]
["1230","191","Ctl RentUtil-Juvenile Public Dfdr-JuvSvs",1911700001,"191-143JuvSvs0001","1950-01-01","9999-12-31","2012-05-14","No","No","No",{"$f":"IF(A1357=\"????\",\"\",_xlfn.XLOOKUP('Data FA Lookup'!$D1357,'FC Master'!A:A,'FC Master'!Q:Q,'Data FA Lookup'!$D1357,0,1))","v":1911700001}]
["1230","191","Ctl RentUtil-Juvenile Probation-JuvSvs",1911710001,"191-145JuvSvs0001","1950-01-01","9999-12-31","2012-05-14","No","No","No",{"$f":"IF(A1358=\"????\",\"\",_xlfn.XLOOKUP('Data FA Lookup'!$D1358,'FC Master'!A:A,'FC Master'!Q:Q,'Data FA Lookup'!$D1358,0,1))","v":1911710001}]
["1510","191","Ctl RentUtil-Emergency Services-Hlhcare",1911720001,"191-147Hlhcare0001","1950-01-01","9999-12-31","2012-05-14","No","No","No",{"$f":"IF(A1359=\"????\",\"\",_xlfn.XLOOKUP('Data FA Lookup'!$D1359,'FC Master'!A:A,'FC Master'!Q:Q,'Data FA Lookup'!$D1359,0,1))","v":1911720001}]
["1320","191","Ctl RentUtil-Emergency Services-EmrgMgmt",1911730001,"191-147EmrgMgmt0001","1950-01-01","9999-12-31","2012-05-14","No","No","No",{"$f":"IF(A1360=\"????\",\"\",_xlfn.XLOOKUP('Data FA Lookup'!$D1360,'FC Master'!A:A,'FC Master'!Q:Q,'Data FA Lookup'!$D1360,0,1))","v":1911730001}]
["1710","191","Ctl RentUtil-TNR-RdBg",1911740001,"191-149RdBg0001","1950-01-01","9999-12-31","2012-05-14","No","No","No",{"$f":"IF(A1361=\"????\",\"\",_xlfn.XLOOKUP('Data FA Lookup'!$D1361,'FC Master'!A:A,'FC Master'!Q:Q,'Data FA Lookup'!$D1361,0,1))","v":1911740001}]
["1630","191","Ctl RentUtil-TNR-Parks&Rec",1911750001,"191-149Parks&Rec0001","1950-01-01","9999-12-31","2012-05-14","No","No","No",{"$f":"IF(A1362=\"????\",\"\",_xlfn.XLOOKUP('Data FA Lookup'!$D1362,'FC Master'!A:A,'FC Master'!Q:Q,'Data FA Lookup'!$D1362,0,1))","v":1911750001}]
["1750","191","Ctl RentUtil-TNR-ConservNR",1911760001,"191-149ConservNR0001","1950-01-01","9999-12-31","2012-05-14","No","No","No",{"$f":"IF(A1363=\"????\",\"\",_xlfn.XLOOKUP('Data FA Lookup'!$D1363,'FC Master'!A:A,'FC Master'!Q:Q,'Data FA Lookup'!$D1363,0,1))","v":1911760001}]
["1140","191","Ctl RentUtil-TNR-FacMgmt",1911770001,"191-149FacMgmt0001","1950-01-01","9999-12-31","2012-05-14","No","No","No",{"$f":"IF(A1364=\"????\",\"\",_xlfn.XLOOKUP('Data FA Lookup'!$D1364,'FC Master'!A:A,'FC Master'!Q:Q,'Data FA Lookup'!$D1364,0,1))","v":1911770001}]
["1730","191","Ctl RentUtil-TNR-Drng",1911780001,"191-149Drng0001","1950-01-01","9999-12-31","2012-05-14","No","No","No",{"$f":"IF(A1365=\"????\",\"\",_xlfn.XLOOKUP('Data FA Lookup'!$D1365,'FC Master'!A:A,'FC Master'!Q:Q,'Data FA Lookup'!$D1365,0,1))","v":1911780001}]
["1760","191","Ctl RentUtil-TNR-Sanitation",1911790001,"191-149Sanitatn0001","1950-01-01","9999-12-31","2012-05-14","No","No","No",{"$f":"IF(A1366=\"????\",\"\",_xlfn.XLOOKUP('Data FA Lookup'!$D1366,'FC Master'!A:A,'FC Master'!Q:Q,'Data FA Lookup'!$D1366,0,1))","v":1911790001}]
["1740","191","Ctl RentUtil-TNR-DevRegIn",1911800001,"191-149DevRegIn0001","1950-01-01","9999-12-31","2012-05-14","No","No","No",{"$f":"IF(A1367=\"????\",\"\",_xlfn.XLOOKUP('Data FA Lookup'!$D1367,'FC Master'!A:A,'FC Master'!Q:Q,'Data FA Lookup'!$D1367,0,1))","v":1911800001}]
["1530","191","Ctl RentUtil-TNR-HumanSvs",1911810001,"191-149HumanSvs0001","1950-01-01","9999-12-31","2012-05-14","No","No","No",{"$f":"IF(A1368=\"????\",\"\",_xlfn.XLOOKUP('Data FA Lookup'!$D1368,'FC Master'!A:A,'FC Master'!Q:Q,'Data FA Lookup'!$D1368,0,1))","v":1911810001}]
["1110","191","Ctl RentUtil-Civil Service Cmn-GenAdm",1911820001,"191-154GenAdm0001","1950-01-01","9999-12-31","2012-05-14","No","No","No",{"$f":"IF(A1369=\"????\",\"\",_xlfn.XLOOKUP('Data FA Lookup'!$D1369,'FC Master'!A:A,'FC Master'!Q:Q,'Data FA Lookup'!$D1369,0,1))","v":1911820001}]
["1210","191","Ctl RentUtil-CJP-CrmJs",1911830001,"191-155CrmJs0001","1950-01-01","9999-12-31","2012-05-14","No","No","No",{"$f":"IF(A1370=\"????\",\"\",_xlfn.XLOOKUP('Data FA Lookup'!$D1370,'FC Master'!A:A,'FC Master'!Q:Q,'Data FA Lookup'!$D1370,0,1))","v":1911830001}]
["1510","191","Ctl RentUtil-CJP-Hlhcare",1911840001,"191-155Hlhcare0001","1950-01-01","9999-12-31","2012-05-14","No","No","No",{"$f":"IF(A1371=\"????\",\"\",_xlfn.XLOOKUP('Data FA Lookup'!$D1371,'FC Master'!A:A,'FC Master'!Q:Q,'Data FA Lookup'!$D1371,0,1))","v":1911840001}]
["1320","191","Ctl RentUtil-CJP-EmrgMgmt",1911850001,"191-155EmrgMgmt0001","1950-01-01","9999-12-31","2012-05-14","No","No","No",{"$f":"IF(A1372=\"????\",\"\",_xlfn.XLOOKUP('Data FA Lookup'!$D1372,'FC Master'!A:A,'FC Master'!Q:Q,'Data FA Lookup'!$D1372,0,1))","v":1911850001}]
["1420","191","Ctl RentUtil-CJP-Svsn",1911860001,"191-155Svsn0001","1950-01-01","9999-12-31","2012-05-14","No","No","No",{"$f":"IF(A1373=\"????\",\"\",_xlfn.XLOOKUP('Data FA Lookup'!$D1373,'FC Master'!A:A,'FC Master'!Q:Q,'Data FA Lookup'!$D1373,0,1))","v":1911860001}]
["1230","191","Ctl RentUtil-CJP-JuvSvs",1911870001,"191-155JuvSvs0001","1950-01-01","9999-12-31","2012-05-14","No","No","No",{"$f":"IF(A1374=\"????\",\"\",_xlfn.XLOOKUP('Data FA Lookup'!$D1374,'FC Master'!A:A,'FC Master'!Q:Q,'Data FA Lookup'!$D1374,0,1))","v":1911870001}]
["1310","191","Ctl RentUtil-CJP-LE",1911880001,"191-155LE0001","1950-01-01","9999-12-31","2012-05-14","No","No","No",{"$f":"IF(A1375=\"????\",\"\",_xlfn.XLOOKUP('Data FA Lookup'!$D1375,'FC Master'!A:A,'FC Master'!Q:Q,'Data FA Lookup'!$D1375,0,1))","v":1911880001}]
["1110","191","Ctl RentUtil-CRS-GenAdm",1911890001,"191-157GenAdm0001","1950-01-01","9999-12-31","2012-05-14","No","No","No",{"$f":"IF(A1376=\"????\",\"\",_xlfn.XLOOKUP('Data FA Lookup'!$D1376,'FC Master'!A:A,'FC Master'!Q:Q,'Data FA Lookup'!$D1376,0,1))","v":1911890001}]
["1220","191","Ctl RentUtil-CRS-CivJs",1911900001,"191-157CivJs0001","1950-01-01","9999-12-31","2012-05-14","No","No","No",{"$f":"IF(A1377=\"????\",\"\",_xlfn.XLOOKUP('Data FA Lookup'!$D1377,'FC Master'!A:A,'FC Master'!Q:Q,'Data FA Lookup'!$D1377,0,1))","v":1911900001}]
["1210","191","Ctl RentUtil-CRS-CrmJs",1911910001,"191-157CrmJs0001","1950-01-01","9999-12-31","2012-05-14","No","No","No",{"$f":"IF(A1378=\"????\",\"\",_xlfn.XLOOKUP('Data FA Lookup'!$D1378,'FC Master'!A:A,'FC Master'!Q:Q,'Data FA Lookup'!$D1378,0,1))","v":1911910001}]
["1510","191","Ctl RentUtil-HHS-Hlhcare",1911920001,"191-158Hlhcare0001","1950-01-01","9999-12-31","2012-05-14","No","No","No",{"$f":"IF(A1379=\"????\",\"\",_xlfn.XLOOKUP('Data FA Lookup'!$D1379,'FC Master'!A:A,'FC Master'!Q:Q,'Data FA Lookup'!$D1379,0,1))","v":1911920001}]
["1520","191","Ctl RentUtil-HHS-PbcHlh",1911930001,"191-158PbcHlh0001","1950-01-01","9999-12-31","2012-05-14","No","No","No",{"$f":"IF(A1380=\"????\",\"\",_xlfn.XLOOKUP('Data FA Lookup'!$D1380,'FC Master'!A:A,'FC Master'!Q:Q,'Data FA Lookup'!$D1380,0,1))","v":1911930001}]
["1530","191","Ctl RentUtil-HHS-HumanSvs",1911940001,"191-158HumanSvs0001","1950-01-01","9999-12-31","2012-05-14","No","No","No",{"$f":"IF(A1381=\"????\",\"\",_xlfn.XLOOKUP('Data FA Lookup'!$D1381,'FC Master'!A:A,'FC Master'!Q:Q,'Data FA Lookup'!$D1381,0,1))","v":1911940001}]
["1230","191","Ctl RentUtil-HHS-JuvSvs",1911950001,"191-158JuvSvs0001","1950-01-01","9999-12-31","2012-05-14","No","No","No",{"$f":"IF(A1382=\"????\",\"\",_xlfn.XLOOKUP('Data FA Lookup'!$D1382,'FC Master'!A:A,'FC Master'!Q:Q,'Data FA Lookup'!$D1382,0,1))","v":1911950001}]
["1510","191","Ctl RentUtil-EMS-Hlhcare",1911960001,"191-159Hlhcare0001","1950-01-01","9999-12-31","2012-05-14","No","No","No",{"$f":"IF(A1383=\"????\",\"\",_xlfn.XLOOKUP('Data FA Lookup'!$D1383,'FC Master'!A:A,'FC Master'!Q:Q,'Data FA Lookup'!$D1383,0,1))","v":1911960001}]
["1220","191","Ctl RentUtil-Legally Mtd Fees-CivJs",1911970001,"191-193CivJs0001","1950-01-01","9999-12-31","2012-05-14","No","No","No",{"$f":"IF(A1384=\"????\",\"\",_xlfn.XLOOKUP('Data FA Lookup'!$D1384,'FC Master'!A:A,'FC Master'!Q:Q,'Data FA Lookup'!$D1384,0,1))","v":1911970001}]
["1210","191","Ctl RentUtil-Legally Mtd Fees-CrmJs",1911980001,"191-194CrmJs0001","1950-01-01","9999-12-31","2012-05-14","No","No","No",{"$f":"IF(A1385=\"????\",\"\",_xlfn.XLOOKUP('Data FA Lookup'!$D1385,'FC Master'!A:A,'FC Master'!Q:Q,'Data FA Lookup'!$D1385,0,1))","v":1911980001}]
["1110","192","Ctl Fleet-County Judge-GenAdm",1921100001,"192-101GenAdm0001","1950-01-01","9999-12-31","2012-05-14","No","No","No",{"$f":"IF(A1386=\"????\",\"\",_xlfn.XLOOKUP('Data FA Lookup'!$D1386,'FC Master'!A:A,'FC Master'!Q:Q,'Data FA Lookup'!$D1386,0,1))","v":1921100001}]
["1230","192","Ctl Fleet-County Judge-JuvSvs",1921110001,"192-101JuvSvs0001","1950-01-01","9999-12-31","2012-05-14","No","No","No",{"$f":"IF(A1387=\"????\",\"\",_xlfn.XLOOKUP('Data FA Lookup'!$D1387,'FC Master'!A:A,'FC Master'!Q:Q,'Data FA Lookup'!$D1387,0,1))","v":1921110001}]
["1110","192","Ctl Fleet-CC-Pct 1-GenAdm",1921120001,"192-102GenAdm0001","1950-01-01","9999-12-31","2012-05-14","No","No","No",{"$f":"IF(A1388=\"????\",\"\",_xlfn.XLOOKUP('Data FA Lookup'!$D1388,'FC Master'!A:A,'FC Master'!Q:Q,'Data FA Lookup'!$D1388,0,1))","v":1921120001}]
["1110","192","Ctl Fleet-CC Pct 2-GenAdm",1921130001,"192-103GenAdm0001","1950-01-01","9999-12-31","2012-05-14","No","No","No",{"$f":"IF(A1389=\"????\",\"\",_xlfn.XLOOKUP('Data FA Lookup'!$D1389,'FC Master'!A:A,'FC Master'!Q:Q,'Data FA Lookup'!$D1389,0,1))","v":1921130001}]
["1110","192","Ctl Fleet-CC Pct 3-GenAdm",1921140001,"192-104GenAdm0001","1950-01-01","9999-12-31","2012-05-14","No","No","No",{"$f":"IF(A1390=\"????\",\"\",_xlfn.XLOOKUP('Data FA Lookup'!$D1390,'FC Master'!A:A,'FC Master'!Q:Q,'Data FA Lookup'!$D1390,0,1))","v":1921140001}]
["1110","192","Ctl Fleet-CC Pct 4-GenAdm",1921150001,"192-105GenAdm0001","1950-01-01","9999-12-31","2012-05-14","No","No","No",{"$f":"IF(A1391=\"????\",\"\",_xlfn.XLOOKUP('Data FA Lookup'!$D1391,'FC Master'!A:A,'FC Master'!Q:Q,'Data FA Lookup'!$D1391,0,1))","v":1921150001}]
["1120","192","Ctl Fleet-County Auditor-FinAdm",1921160001,"192-106FinAdm0001","1950-01-01","9999-12-31","2012-05-14","No","No","No",{"$f":"IF(A1392=\"????\",\"\",_xlfn.XLOOKUP('Data FA Lookup'!$D1392,'FC Master'!A:A,'FC Master'!Q:Q,'Data FA Lookup'!$D1392,0,1))","v":1921160001}]
["1120","192","Ctl Fleet-County Treasurer-FinAdm",1921170001,"192-107FinAdm0001","1950-01-01","9999-12-31","2012-05-14","No","No","No",{"$f":"IF(A1393=\"????\",\"\",_xlfn.XLOOKUP('Data FA Lookup'!$D1393,'FC Master'!A:A,'FC Master'!Q:Q,'Data FA Lookup'!$D1393,0,1))","v":1921170001}]
["1130","192","Ctl Fleet-Tax Collector-TaxAdm",1921180001,"192-108TaxAdm0001","1950-01-01","9999-12-31","2012-05-14","No","No","No",{"$f":"IF(A1394=\"????\",\"\",_xlfn.XLOOKUP('Data FA Lookup'!$D1394,'FC Master'!A:A,'FC Master'!Q:Q,'Data FA Lookup'!$D1394,0,1))","v":1921180001}]
["1210","192","Ctl Fleet-Tax Collector-CrmJs",1921190001,"192-108CrmJs0001","1950-01-01","9999-12-31","2012-05-14","No","No","No",{"$f":"IF(A1395=\"????\",\"\",_xlfn.XLOOKUP('Data FA Lookup'!$D1395,'FC Master'!A:A,'FC Master'!Q:Q,'Data FA Lookup'!$D1395,0,1))","v":1921190001}]
["1150","192","Ctl Fleet-Tax Collector-ElnAdm",1921200001,"192-108ElnAdm0001","1950-01-01","9999-12-31","2012-05-14","No","No","No",{"$f":"IF(A1396=\"????\",\"\",_xlfn.XLOOKUP('Data FA Lookup'!$D1396,'FC Master'!A:A,'FC Master'!Q:Q,'Data FA Lookup'!$D1396,0,1))","v":1921200001}]
["1120","192","Ctl Fleet-Planning And Budget-FinAdm",1921210001,"192-109FinAdm0001","1950-01-01","9999-12-31","2012-05-14","No","No","No",{"$f":"IF(A1397=\"????\",\"\",_xlfn.XLOOKUP('Data FA Lookup'!$D1397,'FC Master'!A:A,'FC Master'!Q:Q,'Data FA Lookup'!$D1397,0,1))","v":1921210001}]
["1110","192","Ctl Fleet-General Adm-GenAdm",1921220001,"192-110GenAdm0001","1950-01-01","9999-12-31","2012-05-14","No","No","No",{"$f":"IF(A1398=\"????\",\"\",_xlfn.XLOOKUP('Data FA Lookup'!$D1398,'FC Master'!A:A,'FC Master'!Q:Q,'Data FA Lookup'!$D1398,0,1))","v":1921220001}]
["1510","192","Ctl Fleet-General Adm-Hlhcare",1921230001,"192-110Hlhcare0001","1950-01-01","9999-12-31","2012-05-14","No","No","No",{"$f":"IF(A1399=\"????\",\"\",_xlfn.XLOOKUP('Data FA Lookup'!$D1399,'FC Master'!A:A,'FC Master'!Q:Q,'Data FA Lookup'!$D1399,0,1))","v":1921230001}]
["1610","192","Ctl Fleet-General Adm-EconDev",1921240001,"192-110EconDev0001","1950-01-01","9999-12-31","2012-05-14","No","No","No",{"$f":"IF(A1400=\"????\",\"\",_xlfn.XLOOKUP('Data FA Lookup'!$D1400,'FC Master'!A:A,'FC Master'!Q:Q,'Data FA Lookup'!$D1400,0,1))","v":1921240001}]
["1110","192","Ctl Fleet-Human Resource Mgmt-GenAdm",1921250001,"192-111GenAdm0001","1950-01-01","9999-12-31","2012-05-14","No","No","No",{"$f":"IF(A1401=\"????\",\"\",_xlfn.XLOOKUP('Data FA Lookup'!$D1401,'FC Master'!A:A,'FC Master'!Q:Q,'Data FA Lookup'!$D1401,0,1))","v":1921250001}]
["1110","192","Ctl Fleet-ITS-GenAdm",1921260001,"192-112GenAdm0001","1950-01-01","9999-12-31","2012-05-14","No","No","No",{"$f":"IF(A1402=\"????\",\"\",_xlfn.XLOOKUP('Data FA Lookup'!$D1402,'FC Master'!A:A,'FC Master'!Q:Q,'Data FA Lookup'!$D1402,0,1))","v":1921260001}]
["1610","192","Ctl Fleet-EXPO Center-EconDev",1921270001,"192-113EconDev0001","1950-01-01","9999-12-31","2012-05-14","No","No","No",{"$f":"IF(A1403=\"????\",\"\",_xlfn.XLOOKUP('Data FA Lookup'!$D1403,'FC Master'!A:A,'FC Master'!Q:Q,'Data FA Lookup'!$D1403,0,1))","v":1921270001}]
["1140","192","Ctl Fleet-Facilities Mgmt-FacMgmt",1921280001,"192-114FacMgmt0001","1950-01-01","9999-12-31","2012-05-14","No","No","No",{"$f":"IF(A1404=\"????\",\"\",_xlfn.XLOOKUP('Data FA Lookup'!$D1404,'FC Master'!A:A,'FC Master'!Q:Q,'Data FA Lookup'!$D1404,0,1))","v":1921280001}]
["1610","192","Ctl Fleet-Facilities Mgmt-EconDev",1921290001,"192-114EconDev0001","1950-01-01","9999-12-31","2012-05-14","No","No","No",{"$f":"IF(A1405=\"????\",\"\",_xlfn.XLOOKUP('Data FA Lookup'!$D1405,'FC Master'!A:A,'FC Master'!Q:Q,'Data FA Lookup'!$D1405,0,1))","v":1921290001}]
["1120","192","Ctl Fleet-Purchasing-FinAdm",1921300001,"192-115FinAdm0001","1950-01-01","9999-12-31","2012-05-14","No","No","No",{"$f":"IF(A1406=\"????\",\"\",_xlfn.XLOOKUP('Data FA Lookup'!$D1406,'FC Master'!A:A,'FC Master'!Q:Q,'Data FA Lookup'!$D1406,0,1))","v":1921300001}]
["1530","192","Ctl Fleet-Veterans Services-HumanSvs",1921310001,"192-116HumanSvs0001","1950-01-01","9999-12-31","2012-05-14","No","No","No",{"$f":"IF(A1407=\"????\",\"\",_xlfn.XLOOKUP('Data FA Lookup'!$D1407,'FC Master'!A:A,'FC Master'!Q:Q,'Data FA Lookup'!$D1407,0,1))","v":1921310001}]
["1650","192","Ctl Fleet-Historical Comm-Cul&Edu",1921320001,"192-117Cul&Edu0001","1950-01-01","9999-12-31","2012-05-14","No","No","No",{"$f":"IF(A1408=\"????\",\"\",_xlfn.XLOOKUP('Data FA Lookup'!$D1408,'FC Master'!A:A,'FC Master'!Q:Q,'Data FA Lookup'!$D1408,0,1))","v":1921320001}]
["1530","192","Ctl Fleet-Agr Ext Serv-HumanSvs",1921330001,"192-118HumanSvs0001","1950-01-01","9999-12-31","2012-05-14","No","No","No",{"$f":"IF(A1409=\"????\",\"\",_xlfn.XLOOKUP('Data FA Lookup'!$D1409,'FC Master'!A:A,'FC Master'!Q:Q,'Data FA Lookup'!$D1409,0,1))","v":1921330001}]
["1220","192","Ctl Fleet-County Attorney-CivJs",1921340001,"192-119CivJs0001","1950-01-01","9999-12-31","2012-05-14","No","No","No",{"$f":"IF(A1410=\"????\",\"\",_xlfn.XLOOKUP('Data FA Lookup'!$D1410,'FC Master'!A:A,'FC Master'!Q:Q,'Data FA Lookup'!$D1410,0,1))","v":1921340001}]
["1210","192","Ctl Fleet-County Attorney-CrmJs",1921350001,"192-119CrmJs0001","1950-01-01","9999-12-31","2012-05-14","No","No","No",{"$f":"IF(A1411=\"????\",\"\",_xlfn.XLOOKUP('Data FA Lookup'!$D1411,'FC Master'!A:A,'FC Master'!Q:Q,'Data FA Lookup'!$D1411,0,1))","v":1921350001}]
["1110","192","Ctl Fleet-County Clerk-GenAdm",1921360001,"192-120GenAdm0001","1950-01-01","9999-12-31","2012-05-14","No","No","No",{"$f":"IF(A1412=\"????\",\"\",_xlfn.XLOOKUP('Data FA Lookup'!$D1412,'FC Master'!A:A,'FC Master'!Q:Q,'Data FA Lookup'!$D1412,0,1))","v":1921360001}]
["1150","192","Ctl Fleet-County Clerk-ElnAdm",1921370001,"192-120ElnAdm0001","1950-01-01","9999-12-31","2012-05-14","No","No","No",{"$f":"IF(A1413=\"????\",\"\",_xlfn.XLOOKUP('Data FA Lookup'!$D1413,'FC Master'!A:A,'FC Master'!Q:Q,'Data FA Lookup'!$D1413,0,1))","v":1921370001}]
["1220","192","Ctl Fleet-County Clerk-CivJs",1921380001,"192-120CivJs0001","1950-01-01","9999-12-31","2012-05-14","No","No","No",{"$f":"IF(A1414=\"????\",\"\",_xlfn.XLOOKUP('Data FA Lookup'!$D1414,'FC Master'!A:A,'FC Master'!Q:Q,'Data FA Lookup'!$D1414,0,1))","v":1921380001}]
["1210","192","Ctl Fleet-County Clerk-CrmJs",1921390001,"192-120CrmJs0001","1950-01-01","9999-12-31","2012-05-14","No","No","No",{"$f":"IF(A1415=\"????\",\"\",_xlfn.XLOOKUP('Data FA Lookup'!$D1415,'FC Master'!A:A,'FC Master'!Q:Q,'Data FA Lookup'!$D1415,0,1))","v":1921390001}]
["1220","192","Ctl Fleet-District Clerk-CivJs",1921400001,"192-121CivJs0001","1950-01-01","9999-12-31","2012-05-14","No","No","No",{"$f":"IF(A1416=\"????\",\"\",_xlfn.XLOOKUP('Data FA Lookup'!$D1416,'FC Master'!A:A,'FC Master'!Q:Q,'Data FA Lookup'!$D1416,0,1))","v":1921400001}]
["1210","192","Ctl Fleet-District Clerk-CrmJs",1921410001,"192-121CrmJs0001","1950-01-01","9999-12-31","2012-05-14","No","No","No",{"$f":"IF(A1417=\"????\",\"\",_xlfn.XLOOKUP('Data FA Lookup'!$D1417,'FC Master'!A:A,'FC Master'!Q:Q,'Data FA Lookup'!$D1417,0,1))","v":1921410001}]
["1220","192","Ctl Fleet-Civil Courts-CivJs",1921420001,"192-122CivJs0001","1950-01-01","9999-12-31","2012-05-14","No","No","No",{"$f":"IF(A1418=\"????\",\"\",_xlfn.XLOOKUP('Data FA Lookup'!$D1418,'FC Master'!A:A,'FC Master'!Q:Q,'Data FA Lookup'!$D1418,0,1))","v":1921420001}]
["1210","192","Ctl Fleet-District Attorney-CrmJs",1921430001,"192-123CrmJs0001","1950-01-01","9999-12-31","2012-05-14","No","No","No",{"$f":"IF(A1419=\"????\",\"\",_xlfn.XLOOKUP('Data FA Lookup'!$D1419,'FC Master'!A:A,'FC Master'!Q:Q,'Data FA Lookup'!$D1419,0,1))","v":1921430001}]
["1220","192","Ctl Fleet-District Attorney-CivJs",1921440001,"192-123CivJs0001","1950-01-01","9999-12-31","2012-05-14","No","No","No",{"$f":"IF(A1420=\"????\",\"\",_xlfn.XLOOKUP('Data FA Lookup'!$D1420,'FC Master'!A:A,'FC Master'!Q:Q,'Data FA Lookup'!$D1420,0,1))","v":1921440001}]
["1210","192","Ctl Fleet-Criminal Courts-CrmJs",1921450001,"192-124CrmJs0001","1950-01-01","9999-12-31","2012-05-14","No","No","No",{"$f":"IF(A1421=\"????\",\"\",_xlfn.XLOOKUP('Data FA Lookup'!$D1421,'FC Master'!A:A,'FC Master'!Q:Q,'Data FA Lookup'!$D1421,0,1))","v":1921450001}]
["1220","192","Ctl Fleet-Probate Court-CivJs",1921460001,"192-125CivJs0001","1950-01-01","9999-12-31","2012-05-14","No","No","No",{"$f":"IF(A1422=\"????\",\"\",_xlfn.XLOOKUP('Data FA Lookup'!$D1422,'FC Master'!A:A,'FC Master'!Q:Q,'Data FA Lookup'!$D1422,0,1))","v":1921460001}]
["1220","192","Ctl Fleet-Justice Of Peace 1-CivJs",1921470001,"192-126CivJs0001","1950-01-01","9999-12-31","2012-05-14","No","No","No",{"$f":"IF(A1423=\"????\",\"\",_xlfn.XLOOKUP('Data FA Lookup'!$D1423,'FC Master'!A:A,'FC Master'!Q:Q,'Data FA Lookup'!$D1423,0,1))","v":1921470001}]
["1210","192","Ctl Fleet-Justice Of Peace 1-CrmJs",1921480001,"192-126CrmJs0001","1950-01-01","9999-12-31","2012-05-14","No","No","No",{"$f":"IF(A1424=\"????\",\"\",_xlfn.XLOOKUP('Data FA Lookup'!$D1424,'FC Master'!A:A,'FC Master'!Q:Q,'Data FA Lookup'!$D1424,0,1))","v":1921480001}]
["1220","192","Ctl Fleet-Justice Of Peace 2-CivJs",1921490001,"192-127CivJs0001","1950-01-01","9999-12-31","2012-05-14","No","No","No",{"$f":"IF(A1425=\"????\",\"\",_xlfn.XLOOKUP('Data FA Lookup'!$D1425,'FC Master'!A:A,'FC Master'!Q:Q,'Data FA Lookup'!$D1425,0,1))","v":1921490001}]
["1210","192","Ctl Fleet-Justice Of Peace 2-CrmJs",1921500001,"192-127CrmJs0001","1950-01-01","9999-12-31","2012-05-14","No","No","No",{"$f":"IF(A1426=\"????\",\"\",_xlfn.XLOOKUP('Data FA Lookup'!$D1426,'FC Master'!A:A,'FC Master'!Q:Q,'Data FA Lookup'!$D1426,0,1))","v":1921500001}]
["1220","192","Ctl Fleet-Justice Of Peace 3-CivJs",1921510001,"192-128CivJs0001","1950-01-01","9999-12-31","2012-05-14","No","No","No",{"$f":"IF(A1427=\"????\",\"\",_xlfn.XLOOKUP('Data FA Lookup'!$D1427,'FC Master'!A:A,'FC Master'!Q:Q,'Data FA Lookup'!$D1427,0,1))","v":1921510001}]
["1210","192","Ctl Fleet-Justice Of Peace 3-CrmJs",1921520001,"192-128CrmJs0001","1950-01-01","9999-12-31","2012-05-14","No","No","No",{"$f":"IF(A1428=\"????\",\"\",_xlfn.XLOOKUP('Data FA Lookup'!$D1428,'FC Master'!A:A,'FC Master'!Q:Q,'Data FA Lookup'!$D1428,0,1))","v":1921520001}]
["1220","192","Ctl Fleet-Justice Of Peace 4-CivJs",1921530001,"192-129CivJs0001","1950-01-01","9999-12-31","2012-05-14","No","No","No",{"$f":"IF(A1429=\"????\",\"\",_xlfn.XLOOKUP('Data FA Lookup'!$D1429,'FC Master'!A:A,'FC Master'!Q:Q,'Data FA Lookup'!$D1429,0,1))","v":1921530001}]
["1210","192","Ctl Fleet-Justice Of Peace 4-CrmJs",1921540001,"192-129CrmJs0001","1950-01-01","9999-12-31","2012-05-14","No","No","No",{"$f":"IF(A1430=\"????\",\"\",_xlfn.XLOOKUP('Data FA Lookup'!$D1430,'FC Master'!A:A,'FC Master'!Q:Q,'Data FA Lookup'!$D1430,0,1))","v":1921540001}]
["1220","192","Ctl Fleet-Justice Of Peace 5-CivJs",1921550001,"192-130CivJs0001","1950-01-01","9999-12-31","2012-05-14","No","No","No",{"$f":"IF(A1431=\"????\",\"\",_xlfn.XLOOKUP('Data FA Lookup'!$D1431,'FC Master'!A:A,'FC Master'!Q:Q,'Data FA Lookup'!$D1431,0,1))","v":1921550001}]
["1210","192","Ctl Fleet-Justice Of Peace 5-CrmJs",1921560001,"192-130CrmJs0001","1950-01-01","9999-12-31","2012-05-14","No","No","No",{"$f":"IF(A1432=\"????\",\"\",_xlfn.XLOOKUP('Data FA Lookup'!$D1432,'FC Master'!A:A,'FC Master'!Q:Q,'Data FA Lookup'!$D1432,0,1))","v":1921560001}]
["1310","192","Ctl Fleet-Constable 1-LE",1921570001,"192-131LE0001","1950-01-01","9999-12-31","2012-05-14","No","No","No",{"$f":"IF(A1433=\"????\",\"\",_xlfn.XLOOKUP('Data FA Lookup'!$D1433,'FC Master'!A:A,'FC Master'!Q:Q,'Data FA Lookup'!$D1433,0,1))","v":1921570001}]
["1310","192","Ctl Fleet-Constable 2-LE",1921580001,"192-132LE0001","1950-01-01","9999-12-31","2012-05-14","No","No","No",{"$f":"IF(A1434=\"????\",\"\",_xlfn.XLOOKUP('Data FA Lookup'!$D1434,'FC Master'!A:A,'FC Master'!Q:Q,'Data FA Lookup'!$D1434,0,1))","v":1921580001}]
["1310","192","Ctl Fleet-Constable 3-LE",1921590001,"192-133LE0001","1950-01-01","9999-12-31","2012-05-14","No","No","No",{"$f":"IF(A1435=\"????\",\"\",_xlfn.XLOOKUP('Data FA Lookup'!$D1435,'FC Master'!A:A,'FC Master'!Q:Q,'Data FA Lookup'!$D1435,0,1))","v":1921590001}]
["1310","192","Ctl Fleet-Constable 4-LE",1921600001,"192-134LE0001","1950-01-01","9999-12-31","2012-05-14","No","No","No",{"$f":"IF(A1436=\"????\",\"\",_xlfn.XLOOKUP('Data FA Lookup'!$D1436,'FC Master'!A:A,'FC Master'!Q:Q,'Data FA Lookup'!$D1436,0,1))","v":1921600001}]
["1310","192","Ctl Fleet-Constable 5-LE",1921610001,"192-135LE0001","1950-01-01","9999-12-31","2012-05-14","No","No","No",{"$f":"IF(A1437=\"????\",\"\",_xlfn.XLOOKUP('Data FA Lookup'!$D1437,'FC Master'!A:A,'FC Master'!Q:Q,'Data FA Lookup'!$D1437,0,1))","v":1921610001}]
["1220","192","Ctl Fleet-Dispute Resol Ctr-CivJs",1921620001,"192-136CivJs0001","1950-01-01","9999-12-31","2012-05-14","No","No","No",{"$f":"IF(A1438=\"????\",\"\",_xlfn.XLOOKUP('Data FA Lookup'!$D1438,'FC Master'!A:A,'FC Master'!Q:Q,'Data FA Lookup'!$D1438,0,1))","v":1921620001}]
["1310","192","Ctl Fleet-Sheriff-LE",1921630001,"192-137LE0001","1950-01-01","9999-12-31","2012-05-14","No","No","No",{"$f":"IF(A1439=\"????\",\"\",_xlfn.XLOOKUP('Data FA Lookup'!$D1439,'FC Master'!A:A,'FC Master'!Q:Q,'Data FA Lookup'!$D1439,0,1))","v":1921630001}]
["1410","192","Ctl Fleet-Sheriff-HsgBkg",1921640001,"192-137HsgBkg0001","1950-01-01","9999-12-31","2012-05-14","No","No","No",{"$f":"IF(A1440=\"????\",\"\",_xlfn.XLOOKUP('Data FA Lookup'!$D1440,'FC Master'!A:A,'FC Master'!Q:Q,'Data FA Lookup'!$D1440,0,1))","v":1921640001}]
["1310","192","Ctl Fleet-Medical Examiner-LE",1921650001,"192-138LE0001","1950-01-01","9999-12-31","2012-05-14","No","No","No",{"$f":"IF(A1441=\"????\",\"\",_xlfn.XLOOKUP('Data FA Lookup'!$D1441,'FC Master'!A:A,'FC Master'!Q:Q,'Data FA Lookup'!$D1441,0,1))","v":1921650001}]
["1420","192","Ctl Fleet-CSCD-Svsn",1921660001,"192-139Svsn0001","1950-01-01","9999-12-31","2012-05-14","No","No","No",{"$f":"IF(A1442=\"????\",\"\",_xlfn.XLOOKUP('Data FA Lookup'!$D1442,'FC Master'!A:A,'FC Master'!Q:Q,'Data FA Lookup'!$D1442,0,1))","v":1921660001}]
["1420","192","Ctl Fleet-TCCES-Svsn",1921670001,"192-140Svsn0001","1950-01-01","9999-12-31","2012-05-14","No","No","No",{"$f":"IF(A1443=\"????\",\"\",_xlfn.XLOOKUP('Data FA Lookup'!$D1443,'FC Master'!A:A,'FC Master'!Q:Q,'Data FA Lookup'!$D1443,0,1))","v":1921670001}]
["1420","192","Ctl Fleet-Pretrial Services-Svsn",1921680001,"192-142Svsn0001","1950-01-01","9999-12-31","2012-05-14","No","No","No",{"$f":"IF(A1444=\"????\",\"\",_xlfn.XLOOKUP('Data FA Lookup'!$D1444,'FC Master'!A:A,'FC Master'!Q:Q,'Data FA Lookup'!$D1444,0,1))","v":1921680001}]
["1410","192","Ctl Fleet-Pretrial Services-HsgBkg",1921690001,"192-142HsgBkg0001","1950-01-01","9999-12-31","2012-05-14","No","No","No",{"$f":"IF(A1445=\"????\",\"\",_xlfn.XLOOKUP('Data FA Lookup'!$D1445,'FC Master'!A:A,'FC Master'!Q:Q,'Data FA Lookup'!$D1445,0,1))","v":1921690001}]
["1230","192","Ctl Fleet-Juvenile Public Dfdr-JuvSvs",1921700001,"192-143JuvSvs0001","1950-01-01","9999-12-31","2012-05-14","No","No","No",{"$f":"IF(A1446=\"????\",\"\",_xlfn.XLOOKUP('Data FA Lookup'!$D1446,'FC Master'!A:A,'FC Master'!Q:Q,'Data FA Lookup'!$D1446,0,1))","v":1921700001}]
["1230","192","Ctl Fleet-Juvenile Probation-JuvSvs",1921710001,"192-145JuvSvs0001","1950-01-01","9999-12-31","2012-05-14","No","No","No",{"$f":"IF(A1447=\"????\",\"\",_xlfn.XLOOKUP('Data FA Lookup'!$D1447,'FC Master'!A:A,'FC Master'!Q:Q,'Data FA Lookup'!$D1447,0,1))","v":1921710001}]
["1510","192","Ctl Fleet-Emergency Services-Hlhcare",1921720001,"192-147Hlhcare0001","1950-01-01","9999-12-31","2012-05-14","No","No","No",{"$f":"IF(A1448=\"????\",\"\",_xlfn.XLOOKUP('Data FA Lookup'!$D1448,'FC Master'!A:A,'FC Master'!Q:Q,'Data FA Lookup'!$D1448,0,1))","v":1921720001}]
["1320","192","Ctl Fleet-Emergency Services-EmrgMgmt",1921730001,"192-147EmrgMgmt0001","1950-01-01","9999-12-31","2012-05-14","No","No","No",{"$f":"IF(A1449=\"????\",\"\",_xlfn.XLOOKUP('Data FA Lookup'!$D1449,'FC Master'!A:A,'FC Master'!Q:Q,'Data FA Lookup'!$D1449,0,1))","v":1921730001}]
["1710","192","Ctl Fleet-TNR-RdBg",1921740001,"192-149RdBg0001","1950-01-01","9999-12-31","2012-05-14","No","No","No",{"$f":"IF(A1450=\"????\",\"\",_xlfn.XLOOKUP('Data FA Lookup'!$D1450,'FC Master'!A:A,'FC Master'!Q:Q,'Data FA Lookup'!$D1450,0,1))","v":1921740001}]
["1630","192","Ctl Fleet-TNR-Parks&Rec",1921750001,"192-149Parks&Rec0001","1950-01-01","9999-12-31","2012-05-14","No","No","No",{"$f":"IF(A1451=\"????\",\"\",_xlfn.XLOOKUP('Data FA Lookup'!$D1451,'FC Master'!A:A,'FC Master'!Q:Q,'Data FA Lookup'!$D1451,0,1))","v":1921750001}]
["1750","192","Ctl Fleet-TNR-ConservNR",1921760001,"192-149ConservNR0001","1950-01-01","9999-12-31","2012-05-14","No","No","No",{"$f":"IF(A1452=\"????\",\"\",_xlfn.XLOOKUP('Data FA Lookup'!$D1452,'FC Master'!A:A,'FC Master'!Q:Q,'Data FA Lookup'!$D1452,0,1))","v":1921760001}]
["1140","192","Ctl Fleet-TNR-FacMgmt",1921770001,"192-149FacMgmt0001","1950-01-01","9999-12-31","2012-05-14","No","No","No",{"$f":"IF(A1453=\"????\",\"\",_xlfn.XLOOKUP('Data FA Lookup'!$D1453,'FC Master'!A:A,'FC Master'!Q:Q,'Data FA Lookup'!$D1453,0,1))","v":1921770001}]
["1730","192","Ctl Fleet-TNR-Drng",1921780001,"192-149Drng0001","1950-01-01","9999-12-31","2012-05-14","No","No","No",{"$f":"IF(A1454=\"????\",\"\",_xlfn.XLOOKUP('Data FA Lookup'!$D1454,'FC Master'!A:A,'FC Master'!Q:Q,'Data FA Lookup'!$D1454,0,1))","v":1921780001}]
["1760","192","Ctl Fleet-TNR-Sanitation",1921790001,"192-149Sanitation000","1950-01-01","9999-12-31","2012-05-14","No","No","No",{"$f":"IF(A1455=\"????\",\"\",_xlfn.XLOOKUP('Data FA Lookup'!$D1455,'FC Master'!A:A,'FC Master'!Q:Q,'Data FA Lookup'!$D1455,0,1))","v":1921790001}]
["1740","192","Ctl Fleet-TNR-DevRegIn",1921800001,"192-149DevRegIn0001","1950-01-01","9999-12-31","2012-05-14","No","No","No",{"$f":"IF(A1456=\"????\",\"\",_xlfn.XLOOKUP('Data FA Lookup'!$D1456,'FC Master'!A:A,'FC Master'!Q:Q,'Data FA Lookup'!$D1456,0,1))","v":1921800001}]
["1530","192","Ctl Fleet-TNR-HumanSvs",1921810001,"192-149HumanSvs0001","1950-01-01","9999-12-31","2012-05-14","No","No","No",{"$f":"IF(A1457=\"????\",\"\",_xlfn.XLOOKUP('Data FA Lookup'!$D1457,'FC Master'!A:A,'FC Master'!Q:Q,'Data FA Lookup'!$D1457,0,1))","v":1921810001}]
["1110","192","Ctl Fleet-Civil Service Cmn-GenAdm",1921820001,"192-154GenAdm0001","1950-01-01","9999-12-31","2012-05-14","No","No","No",{"$f":"IF(A1458=\"????\",\"\",_xlfn.XLOOKUP('Data FA Lookup'!$D1458,'FC Master'!A:A,'FC Master'!Q:Q,'Data FA Lookup'!$D1458,0,1))","v":1921820001}]
["1210","192","Ctl Fleet-CJP-CrmJs",1921830001,"192-155CrmJs0001","1950-01-01","9999-12-31","2012-05-14","No","No","No",{"$f":"IF(A1459=\"????\",\"\",_xlfn.XLOOKUP('Data FA Lookup'!$D1459,'FC Master'!A:A,'FC Master'!Q:Q,'Data FA Lookup'!$D1459,0,1))","v":1921830001}]
["1510","192","Ctl Fleet-CJP-Hlhcare",1921840001,"192-155Hlhcare0001","1950-01-01","9999-12-31","2012-05-14","No","No","No",{"$f":"IF(A1460=\"????\",\"\",_xlfn.XLOOKUP('Data FA Lookup'!$D1460,'FC Master'!A:A,'FC Master'!Q:Q,'Data FA Lookup'!$D1460,0,1))","v":1921840001}]
["1320","192","Ctl Fleet-CJP-EmrgMgmt",1921850001,"192-155EmrgMgmt0001","1950-01-01","9999-12-31","2012-05-14","No","No","No",{"$f":"IF(A1461=\"????\",\"\",_xlfn.XLOOKUP('Data FA Lookup'!$D1461,'FC Master'!A:A,'FC Master'!Q:Q,'Data FA Lookup'!$D1461,0,1))","v":1921850001}]
["1420","192","Ctl Fleet-CJP-Svsn",1921860001,"192-155Svsn0001","1950-01-01","9999-12-31","2012-05-14","No","No","No",{"$f":"IF(A1462=\"????\",\"\",_xlfn.XLOOKUP('Data FA Lookup'!$D1462,'FC Master'!A:A,'FC Master'!Q:Q,'Data FA Lookup'!$D1462,0,1))","v":1921860001}]
["1230","192","Ctl Fleet-CJP-JuvSvs",1921870001,"192-155JuvSvs0001","1950-01-01","9999-12-31","2012-05-14","No","No","No",{"$f":"IF(A1463=\"????\",\"\",_xlfn.XLOOKUP('Data FA Lookup'!$D1463,'FC Master'!A:A,'FC Master'!Q:Q,'Data FA Lookup'!$D1463,0,1))","v":1921870001}]
["1310","192","Ctl Fleet-CJP-LE",1921880001,"192-155LE0001","1950-01-01","9999-12-31","2012-05-14","No","No","No",{"$f":"IF(A1464=\"????\",\"\",_xlfn.XLOOKUP('Data FA Lookup'!$D1464,'FC Master'!A:A,'FC Master'!Q:Q,'Data FA Lookup'!$D1464,0,1))","v":1921880001}]
["1110","192","Ctl Fleet-CRS-GenAdm",1921890001,"192-157GenAdm0001","1950-01-01","9999-12-31","2012-05-14","No","No","No",{"$f":"IF(A1465=\"????\",\"\",_xlfn.XLOOKUP('Data FA Lookup'!$D1465,'FC Master'!A:A,'FC Master'!Q:Q,'Data FA Lookup'!$D1465,0,1))","v":1921890001}]
["1220","192","Ctl Fleet-CRS-CivJs",1921900001,"192-157CivJs0001","1950-01-01","9999-12-31","2012-05-14","No","No","No",{"$f":"IF(A1466=\"????\",\"\",_xlfn.XLOOKUP('Data FA Lookup'!$D1466,'FC Master'!A:A,'FC Master'!Q:Q,'Data FA Lookup'!$D1466,0,1))","v":1921900001}]
["1210","192","Ctl Fleet-CRS-CrmJs",1921910001,"192-157CrmJs0001","1950-01-01","9999-12-31","2012-05-14","No","No","No",{"$f":"IF(A1467=\"????\",\"\",_xlfn.XLOOKUP('Data FA Lookup'!$D1467,'FC Master'!A:A,'FC Master'!Q:Q,'Data FA Lookup'!$D1467,0,1))","v":1921910001}]
["1510","192","Ctl Fleet-HHS-Hlhcare",1921920001,"192-158Hlhcare0001","1950-01-01","9999-12-31","2012-05-14","No","No","No",{"$f":"IF(A1468=\"????\",\"\",_xlfn.XLOOKUP('Data FA Lookup'!$D1468,'FC Master'!A:A,'FC Master'!Q:Q,'Data FA Lookup'!$D1468,0,1))","v":1921920001}]
["1520","192","Ctl Fleet-HHS-PbcHlh",1921930001,"192-158PbcHlh0001","1950-01-01","9999-12-31","2012-05-14","No","No","No",{"$f":"IF(A1469=\"????\",\"\",_xlfn.XLOOKUP('Data FA Lookup'!$D1469,'FC Master'!A:A,'FC Master'!Q:Q,'Data FA Lookup'!$D1469,0,1))","v":1921930001}]
["1530","192","Ctl Fleet-HHS-HumanSvs",1921940001,"192-158HumanSvs0001","1950-01-01","9999-12-31","2012-05-14","No","No","No",{"$f":"IF(A1470=\"????\",\"\",_xlfn.XLOOKUP('Data FA Lookup'!$D1470,'FC Master'!A:A,'FC Master'!Q:Q,'Data FA Lookup'!$D1470,0,1))","v":1921940001}]
["1230","192","Ctl Fleet-HHS-JuvSvs",1921950001,"192-158JuvSvs0001","1950-01-01","9999-12-31","2012-05-14","No","No","No",{"$f":"IF(A1471=\"????\",\"\",_xlfn.XLOOKUP('Data FA Lookup'!$D1471,'FC Master'!A:A,'FC Master'!Q:Q,'Data FA Lookup'!$D1471,0,1))","v":1921950001}]
["1510","192","Ctl Fleet-EMS-Hlhcare",1921960001,"192-159Hlhcare0001","1950-01-01","9999-12-31","2012-05-14","No","No","No",{"$f":"IF(A1472=\"????\",\"\",_xlfn.XLOOKUP('Data FA Lookup'!$D1472,'FC Master'!A:A,'FC Master'!Q:Q,'Data FA Lookup'!$D1472,0,1))","v":1921960001}]
["1220","192","Ctl Fleet-Legally Mtd Fees-CivJs",1921970001,"192-193CivJs0001","1950-01-01","9999-12-31","2012-05-14","No","No","No",{"$f":"IF(A1473=\"????\",\"\",_xlfn.XLOOKUP('Data FA Lookup'!$D1473,'FC Master'!A:A,'FC Master'!Q:Q,'Data FA Lookup'!$D1473,0,1))","v":1921970001}]
["1210","192","Ctl Fleet-Legally Mtd Fees-CrmJs",1921980001,"192-194CrmJs0001","1950-01-01","9999-12-31","2012-05-14","No","No","No",{"$f":"IF(A1474=\"????\",\"\",_xlfn.XLOOKUP('Data FA Lookup'!$D1474,'FC Master'!A:A,'FC Master'!Q:Q,'Data FA Lookup'!$D1474,0,1))","v":1921980001}]
["1110","192","Ctl Fleet-TNR-Parks&Rec",1921990001,"192-149Parks&Rec0001","1950-01-01","9999-12-31","2012-11-02","No","No","No",{"$f":"IF(A1475=\"????\",\"\",_xlfn.XLOOKUP('Data FA Lookup'!$D1475,'FC Master'!A:A,'FC Master'!Q:Q,'Data FA Lookup'!$D1475,0,1))","v":1921990001}]
["1110","192","Ctl Fleet-Facilities Mgmt-FacMgmt",1922000001,"192-114FacMgmt0001","1950-01-01","9999-12-31","2012-11-02","No","No","No",{"$f":"IF(A1476=\"????\",\"\",_xlfn.XLOOKUP('Data FA Lookup'!$D1476,'FC Master'!A:A,'FC Master'!Q:Q,'Data FA Lookup'!$D1476,0,1))","v":1922000001}]
["1710","192","Ctl Fleet CAR-RdBg GF",1928000001,"192CAR-RdBg0001","1950-01-01","9999-12-31","2012-05-15","No","No","No",{"$f":"IF(A1477=\"????\",\"\",_xlfn.XLOOKUP('Data FA Lookup'!$D1477,'FC Master'!A:A,'FC Master'!Q:Q,'Data FA Lookup'!$D1477,0,1))","v":1928000001}]
["1110","192","Ctl Fleet CAR-GenAdm GF",1928010001,"192CAR-GenAdm0001","1950-01-01","9999-12-31","2012-05-15","No","No","No",{"$f":"IF(A1478=\"????\",\"\",_xlfn.XLOOKUP('Data FA Lookup'!$D1478,'FC Master'!A:A,'FC Master'!Q:Q,'Data FA Lookup'!$D1478,0,1))","v":1928010001}]
["1140","192","Ctl Fleet CAR-FacMgmt GF",1928030001,"192CAR-FacMgmt0001","1950-01-01","9999-12-31","2012-05-15","No","No","No",{"$f":"IF(A1479=\"????\",\"\",_xlfn.XLOOKUP('Data FA Lookup'!$D1479,'FC Master'!A:A,'FC Master'!Q:Q,'Data FA Lookup'!$D1479,0,1))","v":1928030001}]
["1210","192","Ctl Fleet CAR-CrmJs GF",1928050001,"192CAR-CrmJs0001","1950-01-01","9999-12-31","2012-05-15","No","No","No",{"$f":"IF(A1480=\"????\",\"\",_xlfn.XLOOKUP('Data FA Lookup'!$D1480,'FC Master'!A:A,'FC Master'!Q:Q,'Data FA Lookup'!$D1480,0,1))","v":1928050001}]
["1230","192","Ctl Fleet CAR-JsSys Juvenile Services GF",1928070001,"192CAR-JsSysJuvS0001","1900-01-01","9999-12-31","2014-07-08","No","No","No",{"$f":"IF(A1481=\"????\",\"\",_xlfn.XLOOKUP('Data FA Lookup'!$D1481,'FC Master'!A:A,'FC Master'!Q:Q,'Data FA Lookup'!$D1481,0,1))","v":1928070001}]
["1310","192","Ctl Fleet CAR-LE GF",1928080001,"192CAR-LE0001","1950-01-01","9999-12-31","2012-05-15","No","No","No",{"$f":"IF(A1482=\"????\",\"\",_xlfn.XLOOKUP('Data FA Lookup'!$D1482,'FC Master'!A:A,'FC Master'!Q:Q,'Data FA Lookup'!$D1482,0,1))","v":1928080001}]
["1410","192","Ctl Fleet CAR-HsgBkg GF",1928100001,"192CAR-HsgBkg0001","1950-01-01","9999-12-31","2012-05-15","No","No","No",{"$f":"IF(A1483=\"????\",\"\",_xlfn.XLOOKUP('Data FA Lookup'!$D1483,'FC Master'!A:A,'FC Master'!Q:Q,'Data FA Lookup'!$D1483,0,1))","v":1928100001}]
["1420","192","Ctl Fleet CAR-CrcRehab Supervision GF",1928110001,"192CAR-CrcRehabS0001","1900-01-01","9999-12-31","2014-07-08","No","No","No",{"$f":"IF(A1484=\"????\",\"\",_xlfn.XLOOKUP('Data FA Lookup'!$D1484,'FC Master'!A:A,'FC Master'!Q:Q,'Data FA Lookup'!$D1484,0,1))","v":1928110001}]
["1530","192","Ctl Fleet CAR-HHS Human Services GF",1928150001,"192CAR-HHSHumSvc0001","1900-01-01","9999-12-31","2014-07-08","No","No","No",{"$f":"IF(A1485=\"????\",\"\",_xlfn.XLOOKUP('Data FA Lookup'!$D1485,'FC Master'!A:A,'FC Master'!Q:Q,'Data FA Lookup'!$D1485,0,1))","v":1928150001}]
["1630","192","Ctl Fleet CAR-Pk/Recreation GF",1928200001,"192CAR-Pk/Rec0001","1950-01-01","9999-12-31","2012-05-15","No","No","No",{"$f":"IF(A1486=\"????\",\"\",_xlfn.XLOOKUP('Data FA Lookup'!$D1486,'FC Master'!A:A,'FC Master'!Q:Q,'Data FA Lookup'!$D1486,0,1))","v":1928200001}]
["1220","193","Civil Courts-Co-LMF-GF",1930010001,"193CCCoLMF0001","1950-01-01","9999-12-31","2012-08-19","No","No","No",{"$f":"IF(A1487=\"????\",\"\",_xlfn.XLOOKUP('Data FA Lookup'!$D1487,'FC Master'!A:A,'FC Master'!Q:Q,'Data FA Lookup'!$D1487,0,1))","v":1930010001}]
["1220","193","Civil Courts Civil Co Ct at Law 1-LMF-GF",1930020001,"193CC1LMF0001","1950-01-01","9999-12-31","2012-08-19","No","No","No",{"$f":"IF(A1488=\"????\",\"\",_xlfn.XLOOKUP('Data FA Lookup'!$D1488,'FC Master'!A:A,'FC Master'!Q:Q,'Data FA Lookup'!$D1488,0,1))","v":1930010001}]
["1220","193","Civil Courts Civil Co Ct at Law 2-LMF-GF",1930030001,"193CC2LMF0001","1950-01-01","9999-12-31","2012-08-19","No","No","No",{"$f":"IF(A1489=\"????\",\"\",_xlfn.XLOOKUP('Data FA Lookup'!$D1489,'FC Master'!A:A,'FC Master'!Q:Q,'Data FA Lookup'!$D1489,0,1))","v":1930010001}]
["1220","193","Civil Courts-App-LMF-GF",1930040001,"193CCAppLMF0001","1950-01-01","9999-12-31","2012-08-19","No","No","No",{"$f":"IF(A1490=\"????\",\"\",_xlfn.XLOOKUP('Data FA Lookup'!$D1490,'FC Master'!A:A,'FC Master'!Q:Q,'Data FA Lookup'!$D1490,0,1))","v":1930060001}]
["1220","193","Civil Courts-3rdCt-LMF-GF",1930050001,"193CC3CLMF0001","1950-01-01","9999-12-31","2012-08-19","No","No","No",{"$f":"IF(A1491=\"????\",\"\",_xlfn.XLOOKUP('Data FA Lookup'!$D1491,'FC Master'!A:A,'FC Master'!Q:Q,'Data FA Lookup'!$D1491,0,1))","v":1930060001}]
["1220","193","Civil Courts-District-LMF-GF",1930060001,"193CCDisLMF0001","1950-01-01","9999-12-31","2012-08-19","No","No","No",{"$f":"IF(A1492=\"????\",\"\",_xlfn.XLOOKUP('Data FA Lookup'!$D1492,'FC Master'!A:A,'FC Master'!Q:Q,'Data FA Lookup'!$D1492,0,1))","v":1930060001}]
["1220","193","Civil Courts 126th District Court-LMF-GF",1930070001,"193126DCLMF0001","1950-01-01","9999-12-31","2012-08-19","No","No","No",{"$f":"IF(A1493=\"????\",\"\",_xlfn.XLOOKUP('Data FA Lookup'!$D1493,'FC Master'!A:A,'FC Master'!Q:Q,'Data FA Lookup'!$D1493,0,1))","v":1930060001}]
["1220","193","Civil Courts 200th District Court-LMF-GF",1930080001,"193200DCLMF0001","1950-01-01","9999-12-31","2012-08-19","No","No","No",{"$f":"IF(A1494=\"????\",\"\",_xlfn.XLOOKUP('Data FA Lookup'!$D1494,'FC Master'!A:A,'FC Master'!Q:Q,'Data FA Lookup'!$D1494,0,1))","v":1930060001}]
["1220","193","Civil Courts 201st District Court-LMF-GF",1930090001,"193201DCLMF0001","1950-01-01","9999-12-31","2012-08-19","No","No","No",{"$f":"IF(A1495=\"????\",\"\",_xlfn.XLOOKUP('Data FA Lookup'!$D1495,'FC Master'!A:A,'FC Master'!Q:Q,'Data FA Lookup'!$D1495,0,1))","v":1930060001}]
["1220","193","Civil Courts 250th District Court-LMF-GF",1930100001,"193250DCLMF0001","1950-01-01","9999-12-31","2012-08-19","No","No","No",{"$f":"IF(A1496=\"????\",\"\",_xlfn.XLOOKUP('Data FA Lookup'!$D1496,'FC Master'!A:A,'FC Master'!Q:Q,'Data FA Lookup'!$D1496,0,1))","v":1930060001}]
["1220","193","Civil Courts 261st District Court-LMF-GF",1930110001,"193261DCLMF0001","1950-01-01","9999-12-31","2012-08-19","No","No","No",{"$f":"IF(A1497=\"????\",\"\",_xlfn.XLOOKUP('Data FA Lookup'!$D1497,'FC Master'!A:A,'FC Master'!Q:Q,'Data FA Lookup'!$D1497,0,1))","v":1930060001}]
["1220","193","Civil Courts 345th District Court-LMF-GF",1930120001,"193345DCLMF0001","1950-01-01","9999-12-31","2012-08-19","No","No","No",{"$f":"IF(A1498=\"????\",\"\",_xlfn.XLOOKUP('Data FA Lookup'!$D1498,'FC Master'!A:A,'FC Master'!Q:Q,'Data FA Lookup'!$D1498,0,1))","v":1930060001}]
["1220","193","Civil Courts 353rd District Court-LMF-GF",1930130001,"193353DCLMF0001","1950-01-01","9999-12-31","2012-08-19","No","No","No",{"$f":"IF(A1499=\"????\",\"\",_xlfn.XLOOKUP('Data FA Lookup'!$D1499,'FC Master'!A:A,'FC Master'!Q:Q,'Data FA Lookup'!$D1499,0,1))","v":1930060001}]
["1220","193","Civil Courts 419th District Court-LMF-GF",1930140001,"193419DCLMF0001","1950-01-01","9999-12-31","2012-08-19","No","No","No",{"$f":"IF(A1500=\"????\",\"\",_xlfn.XLOOKUP('Data FA Lookup'!$D1500,'FC Master'!A:A,'FC Master'!Q:Q,'Data FA Lookup'!$D1500,0,1))","v":1930060001}]
["1220","193","Civil Courts 53rd District Court-LMF-GF",1930150001,"193053DCLMF0001","1950-01-01","9999-12-31","2012-08-19","No","No","No",{"$f":"IF(A1501=\"????\",\"\",_xlfn.XLOOKUP('Data FA Lookup'!$D1501,'FC Master'!A:A,'FC Master'!Q:Q,'Data FA Lookup'!$D1501,0,1))","v":1930060001}]
["1220","193","Civil Courts 98th District Court-LMF-GF",1930160001,"193098DCLMF0001","1950-01-01","9999-12-31","2012-08-19","No","No","No",{"$f":"IF(A1502=\"????\",\"\",_xlfn.XLOOKUP('Data FA Lookup'!$D1502,'FC Master'!A:A,'FC Master'!Q:Q,'Data FA Lookup'!$D1502,0,1))","v":1930060001}]
["1220","193","Civil Courts Assoc Judge 1-LMF-GF",1930170001,"193AsscJudge1LMF0001","1950-01-01","9999-12-31","2012-08-19","No","No","No",{"$f":"IF(A1503=\"????\",\"\",_xlfn.XLOOKUP('Data FA Lookup'!$D1503,'FC Master'!A:A,'FC Master'!Q:Q,'Data FA Lookup'!$D1503,0,1))","v":1930060001}]
["1220","193","Civil Courts Assoc Judge 2-LMF-GF",1930180001,"193AsscJudge2LMF0001","1950-01-01","9999-12-31","2012-08-19","No","No","No",{"$f":"IF(A1504=\"????\",\"\",_xlfn.XLOOKUP('Data FA Lookup'!$D1504,'FC Master'!A:A,'FC Master'!Q:Q,'Data FA Lookup'!$D1504,0,1))","v":1930060001}]
["1220","193","Civil Courts Assoc Judge 3-LMF-GF",1930190001,"193AsscJudge3LMF0001","1950-01-01","9999-12-31","2012-08-19","No","No","No",{"$f":"IF(A1505=\"????\",\"\",_xlfn.XLOOKUP('Data FA Lookup'!$D1505,'FC Master'!A:A,'FC Master'!Q:Q,'Data FA Lookup'!$D1505,0,1))","v":1930060001}]
["1220","193","Civil Courts General Unallocated-LMF-GF",1930200001,"193GenUnAllLMF0001","1950-01-01","9999-12-31","2012-08-19","No","No","No",{"$f":"IF(A1506=\"????\",\"\",_xlfn.XLOOKUP('Data FA Lookup'!$D1506,'FC Master'!A:A,'FC Master'!Q:Q,'Data FA Lookup'!$D1506,0,1))","v":1930060001}]
["1220","193","Civil Courts Assoc Judge 1-LMF-GF",1930210001,"193AsscJudge1LMF0001","2014-10-01","9999-12-31","2015-03-10","No","No","No",{"$f":"IF(A1507=\"????\",\"\",_xlfn.XLOOKUP('Data FA Lookup'!$D1507,'FC Master'!A:A,'FC Master'!Q:Q,'Data FA Lookup'!$D1507,0,1))","v":1930060001}]
["1220","193","Civil Courts 459th District Court-LMF-GF",1930220001,"193459DCLMF0001","1950-01-01","9999-12-31","2017-09-07","No","No","No",{"$f":"IF(A1508=\"????\",\"\",_xlfn.XLOOKUP('Data FA Lookup'!$D1508,'FC Master'!A:A,'FC Master'!Q:Q,'Data FA Lookup'!$D1508,0,1))","v":1930060001}]
["1220","193","Civil Courts 455th District Court-LMF-GF",1930230001,"193455DCLLMF0001","1950-01-01","9999-12-31","2021-01-14","No","No","No",{"$f":"IF(A1509=\"????\",\"\",_xlfn.XLOOKUP('Data FA Lookup'!$D1509,'FC Master'!A:A,'FC Master'!Q:Q,'Data FA Lookup'!$D1509,0,1))","v":1930060001}]
["1210","194","Criminal Courts County LMF-GF",1940010001,"194CCCoLMF0001","1950-01-01","9999-12-31","2012-08-19","No","No","No",{"$f":"IF(A1510=\"????\",\"\",_xlfn.XLOOKUP('Data FA Lookup'!$D1510,'FC Master'!A:A,'FC Master'!Q:Q,'Data FA Lookup'!$D1510,0,1))","v":1940010001}]
["1210","194","Criminal Courts LMF-County Court 3-GF",1940030001,"194CCCoLMFCt30001","1950-01-01","9999-12-31","2012-08-19","No","No","No",{"$f":"IF(A1511=\"????\",\"\",_xlfn.XLOOKUP('Data FA Lookup'!$D1511,'FC Master'!A:A,'FC Master'!Q:Q,'Data FA Lookup'!$D1511,0,1))","v":1940010001}]
["1210","194","Criminal Courts LMF-County Court 4-GF",1940040001,"194CCCoLMFCt40001","1950-01-01","9999-12-31","2012-08-19","No","No","No",{"$f":"IF(A1512=\"????\",\"\",_xlfn.XLOOKUP('Data FA Lookup'!$D1512,'FC Master'!A:A,'FC Master'!Q:Q,'Data FA Lookup'!$D1512,0,1))","v":1940010001}]
["1210","194","Criminal Courts LMF-County Court 5-GF",1940050001,"194CCCoLMFCt50001","1950-01-01","9999-12-31","2012-08-19","No","No","No",{"$f":"IF(A1513=\"????\",\"\",_xlfn.XLOOKUP('Data FA Lookup'!$D1513,'FC Master'!A:A,'FC Master'!Q:Q,'Data FA Lookup'!$D1513,0,1))","v":1940010001}]
["1210","194","Criminal Courts LMF-County Court 6-GF",1940060001,"194CCCoLMFCt60001","1950-01-01","9999-12-31","2012-08-19","No","No","No",{"$f":"IF(A1514=\"????\",\"\",_xlfn.XLOOKUP('Data FA Lookup'!$D1514,'FC Master'!A:A,'FC Master'!Q:Q,'Data FA Lookup'!$D1514,0,1))","v":1940010001}]
["1210","194","Criminal Courts LMF-County Court 7-GF",1940070001,"194CCCoLMFCt70001","1950-01-01","9999-12-31","2012-08-19","No","No","No",{"$f":"IF(A1515=\"????\",\"\",_xlfn.XLOOKUP('Data FA Lookup'!$D1515,'FC Master'!A:A,'FC Master'!Q:Q,'Data FA Lookup'!$D1515,0,1))","v":1940010001}]
["1210","194","Criminal Courts LMF-County Court 8-GF",1940080001,"194CCCoLMFCt80001","1950-01-01","9999-12-31","2012-08-19","No","No","No",{"$f":"IF(A1516=\"????\",\"\",_xlfn.XLOOKUP('Data FA Lookup'!$D1516,'FC Master'!A:A,'FC Master'!Q:Q,'Data FA Lookup'!$D1516,0,1))","v":1940010001}]
["1210","194","Criminal Courts LMF-County Court 9-GF",1940090001,"194CCCoLMFCt90001","1950-01-01","9999-12-31","2015-09-10","No","No","No",{"$f":"IF(A1517=\"????\",\"\",_xlfn.XLOOKUP('Data FA Lookup'!$D1517,'FC Master'!A:A,'FC Master'!Q:Q,'Data FA Lookup'!$D1517,0,1))","v":1940010001}]
["1210","194","Criminal Courts LMF-DWI Court-GF",1940500001,"194CCCoLMFDWICt0001","1950-01-01","9999-12-31","2012-08-19","No","No","No",{"$f":"IF(A1518=\"????\",\"\",_xlfn.XLOOKUP('Data FA Lookup'!$D1518,'FC Master'!A:A,'FC Master'!Q:Q,'Data FA Lookup'!$D1518,0,1))","v":1940010001}]
["1210","194","Criminal Courts LMF-Veterans Court-GF",1940510001,"194CCCoLMFVetCt0001","1950-01-01","9999-12-31","2012-08-19","No","No","No",{"$f":"IF(A1519=\"????\",\"\",_xlfn.XLOOKUP('Data FA Lookup'!$D1519,'FC Master'!A:A,'FC Master'!Q:Q,'Data FA Lookup'!$D1519,0,1))","v":1940010001}]
["1210","194","Criminal Courts County LMF-Prj Engage-GF",1940520001,"194CCCoPJENGLMF0001","1950-01-01","9999-12-31","2012-12-05","No","No","No",{"$f":"IF(A1520=\"????\",\"\",_xlfn.XLOOKUP('Data FA Lookup'!$D1520,'FC Master'!A:A,'FC Master'!Q:Q,'Data FA Lookup'!$D1520,0,1))","v":1940010001}]
["1210","194","Criminal Courts District LMF-GF",1941010001,"194CCDCtLMF0001","1950-01-01","9999-12-31","2012-08-19","No","No","No",{"$f":"IF(A1521=\"????\",\"\",_xlfn.XLOOKUP('Data FA Lookup'!$D1521,'FC Master'!A:A,'FC Master'!Q:Q,'Data FA Lookup'!$D1521,0,1))","v":1941010001}]
["1210","194","Criminal Courts District LMF-147thDCt-GF",1941470001,"194CCDCtLMF1470001","1950-01-01","9999-12-31","2012-08-19","No","No","No",{"$f":"IF(A1522=\"????\",\"\",_xlfn.XLOOKUP('Data FA Lookup'!$D1522,'FC Master'!A:A,'FC Master'!Q:Q,'Data FA Lookup'!$D1522,0,1))","v":1941010001}]
["1210","194","Criminal Courts District LMF-167thDCt-GF",1941670001,"194CCDCtLMF1670001","1950-01-01","9999-12-31","2012-08-19","No","No","No",{"$f":"IF(A1523=\"????\",\"\",_xlfn.XLOOKUP('Data FA Lookup'!$D1523,'FC Master'!A:A,'FC Master'!Q:Q,'Data FA Lookup'!$D1523,0,1))","v":1941010001}]
["1210","194","Criminal Courts District LMF-299thDCt-GF",1942990001,"194CCDCtLMF2990001","1950-01-01","9999-12-31","2012-08-19","No","No","No",{"$f":"IF(A1524=\"????\",\"\",_xlfn.XLOOKUP('Data FA Lookup'!$D1524,'FC Master'!A:A,'FC Master'!Q:Q,'Data FA Lookup'!$D1524,0,1))","v":1941010001}]
["1210","194","Criminal Courts District LMF-331stDCt-GF",1943310001,"194CCDCtLMF3310001","1950-01-01","9999-12-31","2012-08-19","No","No","No",{"$f":"IF(A1525=\"????\",\"\",_xlfn.XLOOKUP('Data FA Lookup'!$D1525,'FC Master'!A:A,'FC Master'!Q:Q,'Data FA Lookup'!$D1525,0,1))","v":1941010001}]
["1210","194","Criminal Courts District LMF-390thDCt-GF",1943900001,"194CCDCtLMF3900001","1950-01-01","9999-12-31","2012-08-19","No","No","No",{"$f":"IF(A1526=\"????\",\"\",_xlfn.XLOOKUP('Data FA Lookup'!$D1526,'FC Master'!A:A,'FC Master'!Q:Q,'Data FA Lookup'!$D1526,0,1))","v":1941010001}]
["1210","194","Criminal Courts District LMF-403rdDCt-GF",1944030001,"194CCDCtLMF4030001","1950-01-01","9999-12-31","2012-08-19","No","No","No",{"$f":"IF(A1527=\"????\",\"\",_xlfn.XLOOKUP('Data FA Lookup'!$D1527,'FC Master'!A:A,'FC Master'!Q:Q,'Data FA Lookup'!$D1527,0,1))","v":1941010001}]
["1210","194","Criminal Courts District LMF-427thDCt-GF",1944270001,"194CCDCtLMF4270001","1950-01-01","9999-12-31","2012-08-19","No","No","No",{"$f":"IF(A1528=\"????\",\"\",_xlfn.XLOOKUP('Data FA Lookup'!$D1528,'FC Master'!A:A,'FC Master'!Q:Q,'Data FA Lookup'!$D1528,0,1))","v":1941010001}]
["1210","194","Criminal Courts LMF-Magistrate Ct-GF",1944280001,"194CCLMFMagCt0001","1950-01-01","9999-12-31","2012-08-19","No","No","No",{"$f":"IF(A1529=\"????\",\"\",_xlfn.XLOOKUP('Data FA Lookup'!$D1529,'FC Master'!A:A,'FC Master'!Q:Q,'Data FA Lookup'!$D1529,0,1))","v":1941010001}]
["1210","194","Criminal Courts LMF-Drug Ct-GF",1944290001,"194CCLMFDrugCt0001","1950-01-01","9999-12-31","2012-08-19","No","No","No",{"$f":"IF(A1530=\"????\",\"\",_xlfn.XLOOKUP('Data FA Lookup'!$D1530,'FC Master'!A:A,'FC Master'!Q:Q,'Data FA Lookup'!$D1530,0,1))","v":1941010001}]
["1210","194","Criminal Cts LMF-Attorney ProTem-NonInd",1944300001,"194CCLMFAttyPTNI0001","1950-01-01","9999-12-31","2013-08-27","No","No","No",{"$f":"IF(A1531=\"????\",\"\",_xlfn.XLOOKUP('Data FA Lookup'!$D1531,'FC Master'!A:A,'FC Master'!Q:Q,'Data FA Lookup'!$D1531,0,1))","v":1941010001}]
["1210","194","Criminal Courts LMF-County Crt 4-Felony",1944310001,"194CCLMFCt4Fel0001","1950-01-01","9999-12-31","2013-09-24","No","No","No",{"$f":"IF(A1532=\"????\",\"\",_xlfn.XLOOKUP('Data FA Lookup'!$D1532,'FC Master'!A:A,'FC Master'!Q:Q,'Data FA Lookup'!$D1532,0,1))","v":1941010001}]
["1210","194","Criminal Courts LMF-450th District Ct",1944500001,"194CCLMF450thDC0001","1950-01-01","9999-12-31","2015-08-11","No","No","No",{"$f":"IF(A1533=\"????\",\"\",_xlfn.XLOOKUP('Data FA Lookup'!$D1533,'FC Master'!A:A,'FC Master'!Q:Q,'Data FA Lookup'!$D1533,0,1))","v":1941010001}]
["1210","194","Criminal Courts District LMF-460DCt",1944600001,"194CCLMF460thDC0001","1950-01-01","9999-12-31","2019-08-26","No","No","No",{"$f":"IF(A1534=\"????\",\"\",_xlfn.XLOOKUP('Data FA Lookup'!$D1534,'FC Master'!A:A,'FC Master'!Q:Q,'Data FA Lookup'!$D1534,0,1))","v":1941010001}]
["1320","195","Centralized Emergency Response GF",1950010001,"195CenEmrgResp0001","1950-01-01","9999-12-31","2021-09-23","No","No","No",{"$f":"IF(A1535=\"????\",\"\",_xlfn.XLOOKUP('Data FA Lookup'!$D1535,'FC Master'!A:A,'FC Master'!Q:Q,'Data FA Lookup'!$D1535,0,1))","v":1950010001}]
["1110","196","Comp Abs-County Judge-GenAdm",1961100000,"196-101GenAdm0000","1950-01-01","9999-12-31","2012-05-14","No","No","No",{"$f":"IF(A1536=\"????\",\"\",_xlfn.XLOOKUP('Data FA Lookup'!$D1536,'FC Master'!A:A,'FC Master'!Q:Q,'Data FA Lookup'!$D1536,0,1))","v":1961100000}]
["1230","196","Comp Abs-County Judge-JuvSvs",1961110000,"196-101JuvSvs0000","1950-01-01","9999-12-31","2012-05-14","No","No","No",{"$f":"IF(A1537=\"????\",\"\",_xlfn.XLOOKUP('Data FA Lookup'!$D1537,'FC Master'!A:A,'FC Master'!Q:Q,'Data FA Lookup'!$D1537,0,1))","v":1961110000}]
["1110","196","Comp Abs-CC-Pct 1-GenAdm",1961120000,"196-102GenAdm0000","1950-01-01","9999-12-31","2012-05-14","No","No","No",{"$f":"IF(A1538=\"????\",\"\",_xlfn.XLOOKUP('Data FA Lookup'!$D1538,'FC Master'!A:A,'FC Master'!Q:Q,'Data FA Lookup'!$D1538,0,1))","v":1961120000}]
["1110","196","Comp Abs-CC Pct 2-GenAdm",1961130000,"196-103GenAdm0000","1950-01-01","9999-12-31","2012-05-14","No","No","No",{"$f":"IF(A1539=\"????\",\"\",_xlfn.XLOOKUP('Data FA Lookup'!$D1539,'FC Master'!A:A,'FC Master'!Q:Q,'Data FA Lookup'!$D1539,0,1))","v":1961130000}]
["1110","196","Comp Abs-CC Pct 3-GenAdm",1961140000,"196-104GenAdm0000","1950-01-01","9999-12-31","2012-05-14","No","No","No",{"$f":"IF(A1540=\"????\",\"\",_xlfn.XLOOKUP('Data FA Lookup'!$D1540,'FC Master'!A:A,'FC Master'!Q:Q,'Data FA Lookup'!$D1540,0,1))","v":1961140000}]
["1110","196","Comp Abs-CC Pct 4-GenAdm",1961150000,"196-105GenAdm0000","1950-01-01","9999-12-31","2012-05-14","No","No","No",{"$f":"IF(A1541=\"????\",\"\",_xlfn.XLOOKUP('Data FA Lookup'!$D1541,'FC Master'!A:A,'FC Master'!Q:Q,'Data FA Lookup'!$D1541,0,1))","v":1961150000}]
["1120","196","Comp Abs-County Auditor-FinAdm",1961160000,"196-106FinAdm0000","1950-01-01","9999-12-31","2012-05-14","No","No","No",{"$f":"IF(A1542=\"????\",\"\",_xlfn.XLOOKUP('Data FA Lookup'!$D1542,'FC Master'!A:A,'FC Master'!Q:Q,'Data FA Lookup'!$D1542,0,1))","v":1961160000}]
["1120","196","Comp Abs-County Treasurer-FinAdm",1961170000,"196-107FinAdm0000","1950-01-01","9999-12-31","2012-05-14","No","No","No",{"$f":"IF(A1543=\"????\",\"\",_xlfn.XLOOKUP('Data FA Lookup'!$D1543,'FC Master'!A:A,'FC Master'!Q:Q,'Data FA Lookup'!$D1543,0,1))","v":1961170000}]
["1130","196","Comp Abs-Tax Collector-TaxAdm",1961180000,"196-108TaxAdm0000","1950-01-01","9999-12-31","2012-05-14","No","No","No",{"$f":"IF(A1544=\"????\",\"\",_xlfn.XLOOKUP('Data FA Lookup'!$D1544,'FC Master'!A:A,'FC Master'!Q:Q,'Data FA Lookup'!$D1544,0,1))","v":1961180000}]
["1210","196","Comp Abs-Tax Collector-CrmJs",1961190000,"196-108CrmJs0000","1950-01-01","9999-12-31","2012-05-14","No","No","No",{"$f":"IF(A1545=\"????\",\"\",_xlfn.XLOOKUP('Data FA Lookup'!$D1545,'FC Master'!A:A,'FC Master'!Q:Q,'Data FA Lookup'!$D1545,0,1))","v":1961190000}]
["1150","196","Comp Abs-Tax Collector-ElnAdm",1961200000,"196-108ElnAdm0000","1950-01-01","9999-12-31","2012-05-14","No","No","No",{"$f":"IF(A1546=\"????\",\"\",_xlfn.XLOOKUP('Data FA Lookup'!$D1546,'FC Master'!A:A,'FC Master'!Q:Q,'Data FA Lookup'!$D1546,0,1))","v":1961200000}]
["1120","196","Comp Abs-Planning And Budget-FinAdm",1961210000,"196-109FinAdm0000","1950-01-01","9999-12-31","2012-05-14","No","No","No",{"$f":"IF(A1547=\"????\",\"\",_xlfn.XLOOKUP('Data FA Lookup'!$D1547,'FC Master'!A:A,'FC Master'!Q:Q,'Data FA Lookup'!$D1547,0,1))","v":1961210000}]
["1110","196","Comp Abs-General Adm-GenAdm",1961220000,"196-110GenAdm0000","1950-01-01","9999-12-31","2012-05-14","No","No","No",{"$f":"IF(A1548=\"????\",\"\",_xlfn.XLOOKUP('Data FA Lookup'!$D1548,'FC Master'!A:A,'FC Master'!Q:Q,'Data FA Lookup'!$D1548,0,1))","v":1961220000}]
["1510","196","Comp Abs-General Adm-Hlhcare",1961230000,"196-110Hlhcare0000","1950-01-01","9999-12-31","2012-05-14","No","No","No",{"$f":"IF(A1549=\"????\",\"\",_xlfn.XLOOKUP('Data FA Lookup'!$D1549,'FC Master'!A:A,'FC Master'!Q:Q,'Data FA Lookup'!$D1549,0,1))","v":1961230000}]
["1610","196","Comp Abs-General Adm-EconDev",1961240000,"196-110EconDev0000","1950-01-01","9999-12-31","2012-05-14","No","No","No",{"$f":"IF(A1550=\"????\",\"\",_xlfn.XLOOKUP('Data FA Lookup'!$D1550,'FC Master'!A:A,'FC Master'!Q:Q,'Data FA Lookup'!$D1550,0,1))","v":1961240000}]
["1110","196","Comp Abs-Human Resource Mgmt-GenAdm",1961250000,"196-111GenAdm0000","1950-01-01","9999-12-31","2012-05-14","No","No","No",{"$f":"IF(A1551=\"????\",\"\",_xlfn.XLOOKUP('Data FA Lookup'!$D1551,'FC Master'!A:A,'FC Master'!Q:Q,'Data FA Lookup'!$D1551,0,1))","v":1961250000}]
["1110","196","Comp Abs-ITS-GenAdm",1961260000,"196-112GenAdm0000","1950-01-01","9999-12-31","2012-05-14","No","No","No",{"$f":"IF(A1552=\"????\",\"\",_xlfn.XLOOKUP('Data FA Lookup'!$D1552,'FC Master'!A:A,'FC Master'!Q:Q,'Data FA Lookup'!$D1552,0,1))","v":1961260000}]
["1610","196","Comp Abs-EXPO Center-EconDev",1961270000,"196-113EconDev0000","1950-01-01","9999-12-31","2012-05-14","No","No","No",{"$f":"IF(A1553=\"????\",\"\",_xlfn.XLOOKUP('Data FA Lookup'!$D1553,'FC Master'!A:A,'FC Master'!Q:Q,'Data FA Lookup'!$D1553,0,1))","v":1961270000}]
["1140","196","Comp Abs-Facilities Mgmt-FacMgmt",1961280000,"196-114FacMgmt0000","1950-01-01","9999-12-31","2012-05-14","No","No","No",{"$f":"IF(A1554=\"????\",\"\",_xlfn.XLOOKUP('Data FA Lookup'!$D1554,'FC Master'!A:A,'FC Master'!Q:Q,'Data FA Lookup'!$D1554,0,1))","v":1961280000}]
["1610","196","Comp Abs-Facilities Mgmt-EconDev",1961290000,"196-114EconDev0000","1950-01-01","9999-12-31","2012-05-14","No","No","No",{"$f":"IF(A1555=\"????\",\"\",_xlfn.XLOOKUP('Data FA Lookup'!$D1555,'FC Master'!A:A,'FC Master'!Q:Q,'Data FA Lookup'!$D1555,0,1))","v":1961290000}]
["1120","196","Comp Abs-Purchasing-FinAdm",1961300000,"196-115FinAdm0000","1950-01-01","9999-12-31","2012-05-14","No","No","No",{"$f":"IF(A1556=\"????\",\"\",_xlfn.XLOOKUP('Data FA Lookup'!$D1556,'FC Master'!A:A,'FC Master'!Q:Q,'Data FA Lookup'!$D1556,0,1))","v":1961300000}]
["1530","196","Comp Abs-Veterans Services-HumanSvs",1961310000,"196-116HumanSvs0000","1950-01-01","9999-12-31","2012-05-14","No","No","No",{"$f":"IF(A1557=\"????\",\"\",_xlfn.XLOOKUP('Data FA Lookup'!$D1557,'FC Master'!A:A,'FC Master'!Q:Q,'Data FA Lookup'!$D1557,0,1))","v":1961310000}]
["1650","196","Comp Abs-Historical Comm-Cul&Edu",1961320000,"196-117Cul&Edu0000","1950-01-01","9999-12-31","2012-05-14","No","No","No",{"$f":"IF(A1558=\"????\",\"\",_xlfn.XLOOKUP('Data FA Lookup'!$D1558,'FC Master'!A:A,'FC Master'!Q:Q,'Data FA Lookup'!$D1558,0,1))","v":1961320000}]
["1530","196","Comp Abs-Agr Ext Serv-HumanSvs",1961330000,"196-118HumanSvs0000","1950-01-01","9999-12-31","2012-05-14","No","No","No",{"$f":"IF(A1559=\"????\",\"\",_xlfn.XLOOKUP('Data FA Lookup'!$D1559,'FC Master'!A:A,'FC Master'!Q:Q,'Data FA Lookup'!$D1559,0,1))","v":1961330000}]
["1220","196","Comp Abs-County Attorney-CivJs",1961340000,"196-119CivJs0000","1950-01-01","9999-12-31","2012-05-14","No","No","No",{"$f":"IF(A1560=\"????\",\"\",_xlfn.XLOOKUP('Data FA Lookup'!$D1560,'FC Master'!A:A,'FC Master'!Q:Q,'Data FA Lookup'!$D1560,0,1))","v":1961340000}]
["1210","196","Comp Abs-County Attorney-CrmJs",1961350000,"196-119CrmJs0000","1950-01-01","9999-12-31","2012-05-14","No","No","No",{"$f":"IF(A1561=\"????\",\"\",_xlfn.XLOOKUP('Data FA Lookup'!$D1561,'FC Master'!A:A,'FC Master'!Q:Q,'Data FA Lookup'!$D1561,0,1))","v":1961350000}]
["1110","196","Comp Abs-County Clerk-GenAdm",1961360000,"196-120GenAdm0000","1950-01-01","9999-12-31","2012-05-14","No","No","No",{"$f":"IF(A1562=\"????\",\"\",_xlfn.XLOOKUP('Data FA Lookup'!$D1562,'FC Master'!A:A,'FC Master'!Q:Q,'Data FA Lookup'!$D1562,0,1))","v":1961360000}]
["1150","196","Comp Abs-County Clerk-ElnAdm",1961370000,"196-120ElnAdm0000","1950-01-01","9999-12-31","2012-05-14","No","No","No",{"$f":"IF(A1563=\"????\",\"\",_xlfn.XLOOKUP('Data FA Lookup'!$D1563,'FC Master'!A:A,'FC Master'!Q:Q,'Data FA Lookup'!$D1563,0,1))","v":1961370000}]
["1220","196","Comp Abs-County Clerk-CivJs",1961380000,"196-120CivJs0000","1950-01-01","9999-12-31","2012-05-14","No","No","No",{"$f":"IF(A1564=\"????\",\"\",_xlfn.XLOOKUP('Data FA Lookup'!$D1564,'FC Master'!A:A,'FC Master'!Q:Q,'Data FA Lookup'!$D1564,0,1))","v":1961380000}]
["1210","196","Comp Abs-County Clerk-CrmJs",1961390000,"196-120CrmJs0000","1950-01-01","9999-12-31","2012-05-14","No","No","No",{"$f":"IF(A1565=\"????\",\"\",_xlfn.XLOOKUP('Data FA Lookup'!$D1565,'FC Master'!A:A,'FC Master'!Q:Q,'Data FA Lookup'!$D1565,0,1))","v":1961390000}]
["1220","196","Comp Abs-District Clerk-CivJs",1961400000,"196-121CivJs0000","1950-01-01","9999-12-31","2012-05-14","No","No","No",{"$f":"IF(A1566=\"????\",\"\",_xlfn.XLOOKUP('Data FA Lookup'!$D1566,'FC Master'!A:A,'FC Master'!Q:Q,'Data FA Lookup'!$D1566,0,1))","v":1961400000}]
["1210","196","Comp Abs-District Clerk-CrmJs",1961410000,"196-121CrmJs0000","1950-01-01","9999-12-31","2012-05-14","No","No","No",{"$f":"IF(A1567=\"????\",\"\",_xlfn.XLOOKUP('Data FA Lookup'!$D1567,'FC Master'!A:A,'FC Master'!Q:Q,'Data FA Lookup'!$D1567,0,1))","v":1961410000}]
["1220","196","Comp Abs-Civil Courts-CivJs",1961420000,"196-122CivJs0000","1950-01-01","9999-12-31","2012-05-14","No","No","No",{"$f":"IF(A1568=\"????\",\"\",_xlfn.XLOOKUP('Data FA Lookup'!$D1568,'FC Master'!A:A,'FC Master'!Q:Q,'Data FA Lookup'!$D1568,0,1))","v":1961420000}]
["1210","196","Comp Abs-District Attorney-CrmJs",1961430000,"196-123CrmJs0000","1950-01-01","9999-12-31","2012-05-14","No","No","No",{"$f":"IF(A1569=\"????\",\"\",_xlfn.XLOOKUP('Data FA Lookup'!$D1569,'FC Master'!A:A,'FC Master'!Q:Q,'Data FA Lookup'!$D1569,0,1))","v":1961430000}]
["1220","196","Comp Abs-District Attorney-CivJs",1961440000,"196-123CivJs0000","1950-01-01","9999-12-31","2012-05-14","No","No","No",{"$f":"IF(A1570=\"????\",\"\",_xlfn.XLOOKUP('Data FA Lookup'!$D1570,'FC Master'!A:A,'FC Master'!Q:Q,'Data FA Lookup'!$D1570,0,1))","v":1961440000}]
["1210","196","Comp Abs-Criminal Courts-CrmJs",1961450000,"196-124CrmJs0000","1950-01-01","9999-12-31","2012-05-14","No","No","No",{"$f":"IF(A1571=\"????\",\"\",_xlfn.XLOOKUP('Data FA Lookup'!$D1571,'FC Master'!A:A,'FC Master'!Q:Q,'Data FA Lookup'!$D1571,0,1))","v":1961450000}]
["1220","196","Comp Abs-Probate Court-CivJs",1961460000,"196-125CivJs0000","1950-01-01","9999-12-31","2012-05-14","No","No","No",{"$f":"IF(A1572=\"????\",\"\",_xlfn.XLOOKUP('Data FA Lookup'!$D1572,'FC Master'!A:A,'FC Master'!Q:Q,'Data FA Lookup'!$D1572,0,1))","v":1961460000}]
["1220","196","Comp Abs-Justice Of Peace 1-CivJs",1961470000,"196-126CivJs0000","1950-01-01","9999-12-31","2012-05-14","No","No","No",{"$f":"IF(A1573=\"????\",\"\",_xlfn.XLOOKUP('Data FA Lookup'!$D1573,'FC Master'!A:A,'FC Master'!Q:Q,'Data FA Lookup'!$D1573,0,1))","v":1961470000}]
["1210","196","Comp Abs-Justice Of Peace 1-CrmJs",1961480000,"196-126CrmJs0000","1950-01-01","9999-12-31","2012-05-14","No","No","No",{"$f":"IF(A1574=\"????\",\"\",_xlfn.XLOOKUP('Data FA Lookup'!$D1574,'FC Master'!A:A,'FC Master'!Q:Q,'Data FA Lookup'!$D1574,0,1))","v":1961480000}]
["1220","196","Comp Abs-Justice Of Peace 2-CivJs",1961490000,"196-127CivJs0000","1950-01-01","9999-12-31","2012-05-14","No","No","No",{"$f":"IF(A1575=\"????\",\"\",_xlfn.XLOOKUP('Data FA Lookup'!$D1575,'FC Master'!A:A,'FC Master'!Q:Q,'Data FA Lookup'!$D1575,0,1))","v":1961490000}]
["1210","196","Comp Abs-Justice Of Peace 2-CrmJs",1961500000,"196-127CrmJs0000","1950-01-01","9999-12-31","2012-05-14","No","No","No",{"$f":"IF(A1576=\"????\",\"\",_xlfn.XLOOKUP('Data FA Lookup'!$D1576,'FC Master'!A:A,'FC Master'!Q:Q,'Data FA Lookup'!$D1576,0,1))","v":1961500000}]
["1220","196","Comp Abs-Justice Of Peace 3-CivJs",1961510000,"196-128CivJs0000","1950-01-01","9999-12-31","2012-05-14","No","No","No",{"$f":"IF(A1577=\"????\",\"\",_xlfn.XLOOKUP('Data FA Lookup'!$D1577,'FC Master'!A:A,'FC Master'!Q:Q,'Data FA Lookup'!$D1577,0,1))","v":1961510000}]
["1210","196","Comp Abs-Justice Of Peace 3-CrmJs",1961520000,"196-128CrmJs0000","1950-01-01","9999-12-31","2012-05-14","No","No","No",{"$f":"IF(A1578=\"????\",\"\",_xlfn.XLOOKUP('Data FA Lookup'!$D1578,'FC Master'!A:A,'FC Master'!Q:Q,'Data FA Lookup'!$D1578,0,1))","v":1961520000}]
["1220","196","Comp Abs-Justice Of Peace 4-CivJs",1961530000,"196-129CivJs0000","1950-01-01","9999-12-31","2012-05-14","No","No","No",{"$f":"IF(A1579=\"????\",\"\",_xlfn.XLOOKUP('Data FA Lookup'!$D1579,'FC Master'!A:A,'FC Master'!Q:Q,'Data FA Lookup'!$D1579,0,1))","v":1961530000}]
["1210","196","Comp Abs-Justice Of Peace 4-CrmJs",1961540000,"196-129CrmJs0000","1950-01-01","9999-12-31","2012-05-14","No","No","No",{"$f":"IF(A1580=\"????\",\"\",_xlfn.XLOOKUP('Data FA Lookup'!$D1580,'FC Master'!A:A,'FC Master'!Q:Q,'Data FA Lookup'!$D1580,0,1))","v":1961540000}]
["1220","196","Comp Abs-Justice Of Peace 5-CivJs",1961550000,"196-130CivJs0000","1950-01-01","9999-12-31","2012-05-14","No","No","No",{"$f":"IF(A1581=\"????\",\"\",_xlfn.XLOOKUP('Data FA Lookup'!$D1581,'FC Master'!A:A,'FC Master'!Q:Q,'Data FA Lookup'!$D1581,0,1))","v":1961550000}]
["1210","196","Comp Abs-Justice Of Peace 5-CrmJs",1961560000,"196-130CrmJs0000","1950-01-01","9999-12-31","2012-05-14","No","No","No",{"$f":"IF(A1582=\"????\",\"\",_xlfn.XLOOKUP('Data FA Lookup'!$D1582,'FC Master'!A:A,'FC Master'!Q:Q,'Data FA Lookup'!$D1582,0,1))","v":1961560000}]
["1310","196","Comp Abs-Constable 1-LE",1961570000,"196-131LE0000","1950-01-01","9999-12-31","2012-05-14","No","No","No",{"$f":"IF(A1583=\"????\",\"\",_xlfn.XLOOKUP('Data FA Lookup'!$D1583,'FC Master'!A:A,'FC Master'!Q:Q,'Data FA Lookup'!$D1583,0,1))","v":1961570000}]
["1310","196","Comp Abs-Constable 2-LE",1961580000,"196-132LE0000","1950-01-01","9999-12-31","2012-05-14","No","No","No",{"$f":"IF(A1584=\"????\",\"\",_xlfn.XLOOKUP('Data FA Lookup'!$D1584,'FC Master'!A:A,'FC Master'!Q:Q,'Data FA Lookup'!$D1584,0,1))","v":1961580000}]
["1310","196","Comp Abs-Constable 3-LE",1961590000,"196-133LE0000","1950-01-01","9999-12-31","2012-05-14","No","No","No",{"$f":"IF(A1585=\"????\",\"\",_xlfn.XLOOKUP('Data FA Lookup'!$D1585,'FC Master'!A:A,'FC Master'!Q:Q,'Data FA Lookup'!$D1585,0,1))","v":1961590000}]
["1310","196","Comp Abs-Constable 4-LE",1961600000,"196-134LE0000","1950-01-01","9999-12-31","2012-05-14","No","No","No",{"$f":"IF(A1586=\"????\",\"\",_xlfn.XLOOKUP('Data FA Lookup'!$D1586,'FC Master'!A:A,'FC Master'!Q:Q,'Data FA Lookup'!$D1586,0,1))","v":1961600000}]
["1310","196","Comp Abs-Constable 5-LE",1961610000,"196-135LE0000","1950-01-01","9999-12-31","2012-05-14","No","No","No",{"$f":"IF(A1587=\"????\",\"\",_xlfn.XLOOKUP('Data FA Lookup'!$D1587,'FC Master'!A:A,'FC Master'!Q:Q,'Data FA Lookup'!$D1587,0,1))","v":1961610000}]
["1220","196","Comp Abs-Dispute Resol Ctr-CivJs",1961620000,"196-136CivJs0000","1950-01-01","9999-12-31","2012-05-14","No","No","No",{"$f":"IF(A1588=\"????\",\"\",_xlfn.XLOOKUP('Data FA Lookup'!$D1588,'FC Master'!A:A,'FC Master'!Q:Q,'Data FA Lookup'!$D1588,0,1))","v":1961620000}]
["1310","196","Comp Abs-Sheriff-LE",1961630000,"196-137LE0000","1950-01-01","9999-12-31","2012-05-14","No","No","No",{"$f":"IF(A1589=\"????\",\"\",_xlfn.XLOOKUP('Data FA Lookup'!$D1589,'FC Master'!A:A,'FC Master'!Q:Q,'Data FA Lookup'!$D1589,0,1))","v":1961630000}]
["1410","196","Comp Abs-Sheriff-HsgBkg",1961640000,"196-137HsgBkg0000","1950-01-01","9999-12-31","2012-05-14","No","No","No",{"$f":"IF(A1590=\"????\",\"\",_xlfn.XLOOKUP('Data FA Lookup'!$D1590,'FC Master'!A:A,'FC Master'!Q:Q,'Data FA Lookup'!$D1590,0,1))","v":1961640000}]
["1310","196","Comp Abs-Medical Examiner-LE",1961650000,"196-138LE0000","1950-01-01","9999-12-31","2012-05-14","No","No","No",{"$f":"IF(A1591=\"????\",\"\",_xlfn.XLOOKUP('Data FA Lookup'!$D1591,'FC Master'!A:A,'FC Master'!Q:Q,'Data FA Lookup'!$D1591,0,1))","v":1961650000}]
["1420","196","Comp Abs-CSCD-Svsn",1961660000,"196-139Svsn0000","1950-01-01","9999-12-31","2012-05-14","No","No","No",{"$f":"IF(A1592=\"????\",\"\",_xlfn.XLOOKUP('Data FA Lookup'!$D1592,'FC Master'!A:A,'FC Master'!Q:Q,'Data FA Lookup'!$D1592,0,1))","v":1961660000}]
["1420","196","Comp Abs-TCCES-Svsn",1961670000,"196-140Svsn0000","1950-01-01","9999-12-31","2012-05-14","No","No","No",{"$f":"IF(A1593=\"????\",\"\",_xlfn.XLOOKUP('Data FA Lookup'!$D1593,'FC Master'!A:A,'FC Master'!Q:Q,'Data FA Lookup'!$D1593,0,1))","v":1961670000}]
["1420","196","Comp Abs-Pretrial Services-Svsn",1961680000,"196-142Svsn0000","1950-01-01","9999-12-31","2012-05-14","No","No","No",{"$f":"IF(A1594=\"????\",\"\",_xlfn.XLOOKUP('Data FA Lookup'!$D1594,'FC Master'!A:A,'FC Master'!Q:Q,'Data FA Lookup'!$D1594,0,1))","v":1961680000}]
["1410","196","Comp Abs-Pretrial Services-HsgBkg",1961690000,"196-142HsgBkg0000","1950-01-01","9999-12-31","2012-05-14","No","No","No",{"$f":"IF(A1595=\"????\",\"\",_xlfn.XLOOKUP('Data FA Lookup'!$D1595,'FC Master'!A:A,'FC Master'!Q:Q,'Data FA Lookup'!$D1595,0,1))","v":1961690000}]
["1230","196","Comp Abs-Juvenile Public Dfdr-JuvSvs",1961700000,"196-143JuvSvs0000","1950-01-01","9999-12-31","2012-05-14","No","No","No",{"$f":"IF(A1596=\"????\",\"\",_xlfn.XLOOKUP('Data FA Lookup'!$D1596,'FC Master'!A:A,'FC Master'!Q:Q,'Data FA Lookup'!$D1596,0,1))","v":1961700000}]
["1230","196","Comp Abs-Juvenile Probation-JuvSvs",1961710000,"196-145JuvSvs0000","1950-01-01","9999-12-31","2012-05-14","No","No","No",{"$f":"IF(A1597=\"????\",\"\",_xlfn.XLOOKUP('Data FA Lookup'!$D1597,'FC Master'!A:A,'FC Master'!Q:Q,'Data FA Lookup'!$D1597,0,1))","v":1961710000}]
["1510","196","Comp Abs-Emergency Services-Hlhcare",1961720000,"196-147Hlhcare0000","1950-01-01","9999-12-31","2012-05-14","No","No","No",{"$f":"IF(A1598=\"????\",\"\",_xlfn.XLOOKUP('Data FA Lookup'!$D1598,'FC Master'!A:A,'FC Master'!Q:Q,'Data FA Lookup'!$D1598,0,1))","v":1961720000}]
["1320","196","Comp Abs-Emergency Services-EmrgMgmt",1961730000,"196-147EmrgMgmt0000","1950-01-01","9999-12-31","2012-05-14","No","No","No",{"$f":"IF(A1599=\"????\",\"\",_xlfn.XLOOKUP('Data FA Lookup'!$D1599,'FC Master'!A:A,'FC Master'!Q:Q,'Data FA Lookup'!$D1599,0,1))","v":1961730000}]
["1710","196","Comp Abs-TNR-RdBg",1961740000,"196-149RdBg0000","1950-01-01","9999-12-31","2012-05-14","No","No","No",{"$f":"IF(A1600=\"????\",\"\",_xlfn.XLOOKUP('Data FA Lookup'!$D1600,'FC Master'!A:A,'FC Master'!Q:Q,'Data FA Lookup'!$D1600,0,1))","v":1961740000}]
["1630","196","Comp Abs-TNR-Parks&Rec",1961750000,"196-149Parks&Rec0000","1950-01-01","9999-12-31","2012-05-14","No","No","No",{"$f":"IF(A1601=\"????\",\"\",_xlfn.XLOOKUP('Data FA Lookup'!$D1601,'FC Master'!A:A,'FC Master'!Q:Q,'Data FA Lookup'!$D1601,0,1))","v":1961750000}]
["1750","196","Comp Abs-TNR-ConservNR",1961760000,"196-149ConservNR0000","1950-01-01","9999-12-31","2012-05-14","No","No","No",{"$f":"IF(A1602=\"????\",\"\",_xlfn.XLOOKUP('Data FA Lookup'!$D1602,'FC Master'!A:A,'FC Master'!Q:Q,'Data FA Lookup'!$D1602,0,1))","v":1961760000}]
["1140","196","Comp Abs-TNR-FacMgmt",1961770000,"196-149FacMgmt0000","1950-01-01","9999-12-31","2012-05-14","No","No","No",{"$f":"IF(A1603=\"????\",\"\",_xlfn.XLOOKUP('Data FA Lookup'!$D1603,'FC Master'!A:A,'FC Master'!Q:Q,'Data FA Lookup'!$D1603,0,1))","v":1961770000}]
["1730","196","Comp Abs-TNR-Drng",1961780000,"196-149Drng0000","1950-01-01","9999-12-31","2012-05-14","No","No","No",{"$f":"IF(A1604=\"????\",\"\",_xlfn.XLOOKUP('Data FA Lookup'!$D1604,'FC Master'!A:A,'FC Master'!Q:Q,'Data FA Lookup'!$D1604,0,1))","v":1961780000}]
["1760","196","Comp Abs-TNR-Sanitation",1961790000,"196-149Sanitation000","1950-01-01","9999-12-31","2012-05-14","No","No","No",{"$f":"IF(A1605=\"????\",\"\",_xlfn.XLOOKUP('Data FA Lookup'!$D1605,'FC Master'!A:A,'FC Master'!Q:Q,'Data FA Lookup'!$D1605,0,1))","v":1961790000}]
["1740","196","Comp Abs-TNR-DevRegIn",1961800000,"196-149DevRegIn0000","1950-01-01","9999-12-31","2012-05-14","No","No","No",{"$f":"IF(A1606=\"????\",\"\",_xlfn.XLOOKUP('Data FA Lookup'!$D1606,'FC Master'!A:A,'FC Master'!Q:Q,'Data FA Lookup'!$D1606,0,1))","v":1961800000}]
["1530","196","Comp Abs-TNR-HumanSvs",1961810000,"196-149HumanSvs0000","1950-01-01","9999-12-31","2012-05-14","No","No","No",{"$f":"IF(A1607=\"????\",\"\",_xlfn.XLOOKUP('Data FA Lookup'!$D1607,'FC Master'!A:A,'FC Master'!Q:Q,'Data FA Lookup'!$D1607,0,1))","v":1961810000}]
["1110","196","Comp Abs-Civil Service Cmn-GenAdm",1961820000,"196-154GenAdm0000","1950-01-01","9999-12-31","2012-05-14","No","No","No",{"$f":"IF(A1608=\"????\",\"\",_xlfn.XLOOKUP('Data FA Lookup'!$D1608,'FC Master'!A:A,'FC Master'!Q:Q,'Data FA Lookup'!$D1608,0,1))","v":1961820000}]
["1210","196","Comp Abs-CJP-CrmJs",1961830000,"196-155CrmJs0000","1950-01-01","9999-12-31","2012-05-14","No","No","No",{"$f":"IF(A1609=\"????\",\"\",_xlfn.XLOOKUP('Data FA Lookup'!$D1609,'FC Master'!A:A,'FC Master'!Q:Q,'Data FA Lookup'!$D1609,0,1))","v":1961830000}]
["1510","196","Comp Abs-CJP-Hlhcare",1961840000,"196-155Hlhcare0000","1950-01-01","9999-12-31","2012-05-14","No","No","No",{"$f":"IF(A1610=\"????\",\"\",_xlfn.XLOOKUP('Data FA Lookup'!$D1610,'FC Master'!A:A,'FC Master'!Q:Q,'Data FA Lookup'!$D1610,0,1))","v":1961840000}]
["1320","196","Comp Abs-CJP-EmrgMgmt",1961850000,"196-155EmrgMgmt0000","1950-01-01","9999-12-31","2012-05-14","No","No","No",{"$f":"IF(A1611=\"????\",\"\",_xlfn.XLOOKUP('Data FA Lookup'!$D1611,'FC Master'!A:A,'FC Master'!Q:Q,'Data FA Lookup'!$D1611,0,1))","v":1961850000}]
["1420","196","Comp Abs-CJP-Svsn",1961860000,"196-155Svsn0000","1950-01-01","9999-12-31","2012-05-14","No","No","No",{"$f":"IF(A1612=\"????\",\"\",_xlfn.XLOOKUP('Data FA Lookup'!$D1612,'FC Master'!A:A,'FC Master'!Q:Q,'Data FA Lookup'!$D1612,0,1))","v":1961860000}]
["1230","196","Comp Abs-CJP-JuvSvs",1961870000,"196-155JuvSvs0000","1950-01-01","9999-12-31","2012-05-14","No","No","No",{"$f":"IF(A1613=\"????\",\"\",_xlfn.XLOOKUP('Data FA Lookup'!$D1613,'FC Master'!A:A,'FC Master'!Q:Q,'Data FA Lookup'!$D1613,0,1))","v":1961870000}]
["1310","196","Comp Abs-CJP-LE",1961880000,"196-155LE0000","1950-01-01","9999-12-31","2012-05-14","No","No","No",{"$f":"IF(A1614=\"????\",\"\",_xlfn.XLOOKUP('Data FA Lookup'!$D1614,'FC Master'!A:A,'FC Master'!Q:Q,'Data FA Lookup'!$D1614,0,1))","v":1961880000}]
["1110","196","Comp Abs-CRS-GenAdm",1961890000,"196-157GenAdm0000","1950-01-01","9999-12-31","2012-05-14","No","No","No",{"$f":"IF(A1615=\"????\",\"\",_xlfn.XLOOKUP('Data FA Lookup'!$D1615,'FC Master'!A:A,'FC Master'!Q:Q,'Data FA Lookup'!$D1615,0,1))","v":1961890000}]
["1220","196","Comp Abs-CRS-CivJs",1961900000,"196-157CivJs0000","1950-01-01","9999-12-31","2012-05-14","No","No","No",{"$f":"IF(A1616=\"????\",\"\",_xlfn.XLOOKUP('Data FA Lookup'!$D1616,'FC Master'!A:A,'FC Master'!Q:Q,'Data FA Lookup'!$D1616,0,1))","v":1961900000}]
["1210","196","Comp Abs-CRS-CrmJs",1961910000,"196-157CrmJs0000","1950-01-01","9999-12-31","2012-05-14","No","No","No",{"$f":"IF(A1617=\"????\",\"\",_xlfn.XLOOKUP('Data FA Lookup'!$D1617,'FC Master'!A:A,'FC Master'!Q:Q,'Data FA Lookup'!$D1617,0,1))","v":1961910000}]
["1510","196","Comp Abs-HHS-Hlhcare",1961920000,"196-158Hlhcare0000","1950-01-01","9999-12-31","2012-05-14","No","No","No",{"$f":"IF(A1618=\"????\",\"\",_xlfn.XLOOKUP('Data FA Lookup'!$D1618,'FC Master'!A:A,'FC Master'!Q:Q,'Data FA Lookup'!$D1618,0,1))","v":1961920000}]
["1520","196","Comp Abs-HHS-PbcHlh",1961930000,"196-158PbcHlh0000","1950-01-01","9999-12-31","2012-05-14","No","No","No",{"$f":"IF(A1619=\"????\",\"\",_xlfn.XLOOKUP('Data FA Lookup'!$D1619,'FC Master'!A:A,'FC Master'!Q:Q,'Data FA Lookup'!$D1619,0,1))","v":1961930000}]
["1530","196","Comp Abs-HHS-HumanSvs",1961940000,"196-158HumanSvs0000","1950-01-01","9999-12-31","2012-05-14","No","No","No",{"$f":"IF(A1620=\"????\",\"\",_xlfn.XLOOKUP('Data FA Lookup'!$D1620,'FC Master'!A:A,'FC Master'!Q:Q,'Data FA Lookup'!$D1620,0,1))","v":1961940000}]
["1230","196","Comp Abs-HHS-JuvSvs",1961950000,"196-158JuvSvs0000","1950-01-01","9999-12-31","2012-05-14","No","No","No",{"$f":"IF(A1621=\"????\",\"\",_xlfn.XLOOKUP('Data FA Lookup'!$D1621,'FC Master'!A:A,'FC Master'!Q:Q,'Data FA Lookup'!$D1621,0,1))","v":1961950000}]
["1510","196","Comp Abs-EMS-Hlhcare",1961960000,"196-159Hlhcare0000","1950-01-01","9999-12-31","2012-05-14","No","No","No",{"$f":"IF(A1622=\"????\",\"\",_xlfn.XLOOKUP('Data FA Lookup'!$D1622,'FC Master'!A:A,'FC Master'!Q:Q,'Data FA Lookup'!$D1622,0,1))","v":1961960000}]
["1220","196","Comp Abs-Legally Mtd Fees-CivJs",1961970000,"196-196CivJs0000","1950-01-01","9999-12-31","2012-05-14","No","No","No",{"$f":"IF(A1623=\"????\",\"\",_xlfn.XLOOKUP('Data FA Lookup'!$D1623,'FC Master'!A:A,'FC Master'!Q:Q,'Data FA Lookup'!$D1623,0,1))","v":1961970000}]
["1210","196","Comp Abs-Legally Mtd Fees-CrmJs",1961980000,"196-194CrmJs0000","1950-01-01","9999-12-31","2012-05-14","No","No","No",{"$f":"IF(A1624=\"????\",\"\",_xlfn.XLOOKUP('Data FA Lookup'!$D1624,'FC Master'!A:A,'FC Master'!Q:Q,'Data FA Lookup'!$D1624,0,1))","v":1961980000}]
["1410","197","Centralized Projects",1970000000,"197CtlProjects0000","1950-01-01","9999-12-31","2012-05-14","No","No","No",{"$f":"IF(A1625=\"????\",\"\",_xlfn.XLOOKUP('Data FA Lookup'!$D1625,'FC Master'!A:A,'FC Master'!Q:Q,'Data FA Lookup'!$D1625,0,1))","v":1970000000}]
["1120","198","Reserves",1980000000,"198Reserves0000","1950-01-01","9999-12-31","2012-05-14","No","No","No",{"$f":"IF(A1626=\"????\",\"\",_xlfn.XLOOKUP('Data FA Lookup'!$D1626,'FC Master'!A:A,'FC Master'!Q:Q,'Data FA Lookup'!$D1626,0,1))","v":1980000000}]
["1110","889","Hospitalization Contra-GenAdm",8890010000,"889GenAdm0000","1950-01-01","2012-09-30","2012-05-14","Yes","Yes","Yes",{"$f":"IF(A1627=\"????\",\"\",_xlfn.XLOOKUP('Data FA Lookup'!$D1627,'FC Master'!A:A,'FC Master'!Q:Q,'Data FA Lookup'!$D1627,0,1))","v":8890010000}]
["1120","889","Hospitalization Contra-FinAdm",8890020000,"889FinAdm0000","1950-01-01","2012-09-30","2012-05-14","Yes","Yes","Yes",{"$f":"IF(A1628=\"????\",\"\",_xlfn.XLOOKUP('Data FA Lookup'!$D1628,'FC Master'!A:A,'FC Master'!Q:Q,'Data FA Lookup'!$D1628,0,1))","v":8890020000}]
["1130","889","Hospitalization Contra-TaxAdm",8890030000,"889TaxAdm0000","1950-01-01","2012-09-30","2012-05-14","Yes","Yes","Yes",{"$f":"IF(A1629=\"????\",\"\",_xlfn.XLOOKUP('Data FA Lookup'!$D1629,'FC Master'!A:A,'FC Master'!Q:Q,'Data FA Lookup'!$D1629,0,1))","v":8890030000}]
["1140","889","Hospitalization Contra-FacMgmt",8890040000,"889FacMgmt0000","1950-01-01","2012-09-30","2012-05-14","Yes","Yes","Yes",{"$f":"IF(A1630=\"????\",\"\",_xlfn.XLOOKUP('Data FA Lookup'!$D1630,'FC Master'!A:A,'FC Master'!Q:Q,'Data FA Lookup'!$D1630,0,1))","v":8890040000}]
["1150","889","Hospitalization Contra-ElnAdm",8890050000,"889ElnAdm0000","1950-01-01","2012-09-30","2012-05-14","Yes","Yes","Yes",{"$f":"IF(A1631=\"????\",\"\",_xlfn.XLOOKUP('Data FA Lookup'!$D1631,'FC Master'!A:A,'FC Master'!Q:Q,'Data FA Lookup'!$D1631,0,1))","v":8890050000}]
["1210","889","Hospitalization Contra-CrmJs",8890060000,"889CrmJs0000","1950-01-01","2012-09-30","2012-05-14","Yes","Yes","Yes",{"$f":"IF(A1632=\"????\",\"\",_xlfn.XLOOKUP('Data FA Lookup'!$D1632,'FC Master'!A:A,'FC Master'!Q:Q,'Data FA Lookup'!$D1632,0,1))","v":8890060000}]
["1220","889","Hospitalization Contra-CivJs",8890070000,"889CivJs0000","1950-01-01","2012-09-30","2012-05-14","Yes","Yes","Yes",{"$f":"IF(A1633=\"????\",\"\",_xlfn.XLOOKUP('Data FA Lookup'!$D1633,'FC Master'!A:A,'FC Master'!Q:Q,'Data FA Lookup'!$D1633,0,1))","v":8890070000}]
["1230","889","Hospitalization Contra-JuvSvs",8890080000,"889JuvSvs0000","1950-01-01","2012-09-30","2012-05-14","Yes","Yes","Yes",{"$f":"IF(A1634=\"????\",\"\",_xlfn.XLOOKUP('Data FA Lookup'!$D1634,'FC Master'!A:A,'FC Master'!Q:Q,'Data FA Lookup'!$D1634,0,1))","v":8890080000}]
["1310","889","Hospitalization Contra-LE",8890090000,"889LE0000","1950-01-01","2012-09-30","2012-05-14","Yes","Yes","Yes",{"$f":"IF(A1635=\"????\",\"\",_xlfn.XLOOKUP('Data FA Lookup'!$D1635,'FC Master'!A:A,'FC Master'!Q:Q,'Data FA Lookup'!$D1635,0,1))","v":8890090000}]
["1320","889","Hospitalization Contra-EmrgMgmt",8890100000,"889EmrgMgmt0000","1950-01-01","2012-09-30","2012-05-14","Yes","Yes","Yes",{"$f":"IF(A1636=\"????\",\"\",_xlfn.XLOOKUP('Data FA Lookup'!$D1636,'FC Master'!A:A,'FC Master'!Q:Q,'Data FA Lookup'!$D1636,0,1))","v":8890100000}]
["1410","889","Hospitalization Contra-HsgBkg",8890110000,"889HsgBkg0000","1950-01-01","2012-09-30","2012-05-14","Yes","Yes","Yes",{"$f":"IF(A1637=\"????\",\"\",_xlfn.XLOOKUP('Data FA Lookup'!$D1637,'FC Master'!A:A,'FC Master'!Q:Q,'Data FA Lookup'!$D1637,0,1))","v":8890110000}]
["1420","889","Hospitalization Contra-Svsn",8890120000,"889Svsn0000","1950-01-01","2012-09-30","2012-05-14","Yes","Yes","Yes",{"$f":"IF(A1638=\"????\",\"\",_xlfn.XLOOKUP('Data FA Lookup'!$D1638,'FC Master'!A:A,'FC Master'!Q:Q,'Data FA Lookup'!$D1638,0,1))","v":8890120000}]
["1510","889","Hospitalization Contra-Hlhcare",8890130000,"8890Hlhcare0000","1950-01-01","2012-09-30","2012-05-14","Yes","Yes","Yes",{"$f":"IF(A1639=\"????\",\"\",_xlfn.XLOOKUP('Data FA Lookup'!$D1639,'FC Master'!A:A,'FC Master'!Q:Q,'Data FA Lookup'!$D1639,0,1))","v":8890130000}]
["1520","889","Hospitalization Contra-PbcHlh",8890140000,"889PbcHlh0000","1950-01-01","2012-09-30","2012-05-14","Yes","Yes","Yes",{"$f":"IF(A1640=\"????\",\"\",_xlfn.XLOOKUP('Data FA Lookup'!$D1640,'FC Master'!A:A,'FC Master'!Q:Q,'Data FA Lookup'!$D1640,0,1))","v":8890140000}]
["1530","889","Hospitalization Contra-HumanSvs",8890150000,"889HumanSvs0000","1950-01-01","2012-09-30","2012-05-14","Yes","Yes","Yes",{"$f":"IF(A1641=\"????\",\"\",_xlfn.XLOOKUP('Data FA Lookup'!$D1641,'FC Master'!A:A,'FC Master'!Q:Q,'Data FA Lookup'!$D1641,0,1))","v":8890150000}]
["1610","889","Hospitalization Contra-EconDev",8890160000,"889EconDev0000","1950-01-01","2012-09-30","2012-05-14","Yes","Yes","Yes",{"$f":"IF(A1642=\"????\",\"\",_xlfn.XLOOKUP('Data FA Lookup'!$D1642,'FC Master'!A:A,'FC Master'!Q:Q,'Data FA Lookup'!$D1642,0,1))","v":8890160000}]
["1630","889","Hospitalization Contra-Parks&Rec",8890180000,"889Parks&Rec0000","1950-01-01","2012-09-30","2012-05-14","Yes","Yes","Yes",{"$f":"IF(A1643=\"????\",\"\",_xlfn.XLOOKUP('Data FA Lookup'!$D1643,'FC Master'!A:A,'FC Master'!Q:Q,'Data FA Lookup'!$D1643,0,1))","v":8890180000}]
["1650","889","Hospitalization Contra-Cul&Edu",8890190000,"889Cul&Edu0000","1950-01-01","2012-09-30","2012-05-14","Yes","Yes","Yes",{"$f":"IF(A1644=\"????\",\"\",_xlfn.XLOOKUP('Data FA Lookup'!$D1644,'FC Master'!A:A,'FC Master'!Q:Q,'Data FA Lookup'!$D1644,0,1))","v":8890190000}]
["1710","889","Hospitalization Contra-RdBg",8890200000,"889RdBg0000","1950-01-01","2012-09-30","2012-05-14","Yes","Yes","Yes",{"$f":"IF(A1645=\"????\",\"\",_xlfn.XLOOKUP('Data FA Lookup'!$D1645,'FC Master'!A:A,'FC Master'!Q:Q,'Data FA Lookup'!$D1645,0,1))","v":8890200000}]
["1730","889","Hospitalization Contra-Drng",8890210000,"889Drng0000","1950-01-01","2012-09-30","2012-05-14","Yes","Yes","Yes",{"$f":"IF(A1646=\"????\",\"\",_xlfn.XLOOKUP('Data FA Lookup'!$D1646,'FC Master'!A:A,'FC Master'!Q:Q,'Data FA Lookup'!$D1646,0,1))","v":8890210000}]
["1750","889","Hospitalization Contra-ConservNR",8890230000,"889ConservNR0000","1950-01-01","2012-09-30","2012-05-14","Yes","Yes","Yes",{"$f":"IF(A1647=\"????\",\"\",_xlfn.XLOOKUP('Data FA Lookup'!$D1647,'FC Master'!A:A,'FC Master'!Q:Q,'Data FA Lookup'!$D1647,0,1))","v":8890230000}]
["1760","889","Hospitalization Contra-Sanitation",8890240000,"889Sanitation0000","1950-01-01","2012-09-30","2012-05-14","Yes","Yes","Yes",{"$f":"IF(A1648=\"????\",\"\",_xlfn.XLOOKUP('Data FA Lookup'!$D1648,'FC Master'!A:A,'FC Master'!Q:Q,'Data FA Lookup'!$D1648,0,1))","v":8890240000}]
["1740","889","Hospitalization Contra-DevRegIn",8890250000,"889DevRegIn0000","1950-01-01","2012-09-30","2012-05-14","Yes","Yes","Yes",{"$f":"IF(A1649=\"????\",\"\",_xlfn.XLOOKUP('Data FA Lookup'!$D1649,'FC Master'!A:A,'FC Master'!Q:Q,'Data FA Lookup'!$D1649,0,1))","v":8890250000}]
["1110","890","Central Computers-GenAdm",8900010000,"890GenAdm0000","1950-01-01","2012-09-30","2012-05-14","Yes","Yes","Yes",{"$f":"IF(A1650=\"????\",\"\",_xlfn.XLOOKUP('Data FA Lookup'!$D1650,'FC Master'!A:A,'FC Master'!Q:Q,'Data FA Lookup'!$D1650,0,1))","v":8900010000}]
["1120","890","Central Computers-FinAdm",8900020000,"890FinAdm0000","1950-01-01","2012-09-30","2012-05-14","Yes","Yes","Yes",{"$f":"IF(A1651=\"????\",\"\",_xlfn.XLOOKUP('Data FA Lookup'!$D1651,'FC Master'!A:A,'FC Master'!Q:Q,'Data FA Lookup'!$D1651,0,1))","v":8900020000}]
["1130","890","Central Computers-TaxAdm",8900030000,"890TaxAdm0000","1950-01-01","2012-09-30","2012-05-14","Yes","Yes","Yes",{"$f":"IF(A1652=\"????\",\"\",_xlfn.XLOOKUP('Data FA Lookup'!$D1652,'FC Master'!A:A,'FC Master'!Q:Q,'Data FA Lookup'!$D1652,0,1))","v":8900030000}]
["1140","890","Central Computers-FacMgmt",8900040000,"890FacMgmt0000","1950-01-01","2012-09-30","2012-05-14","Yes","Yes","Yes",{"$f":"IF(A1653=\"????\",\"\",_xlfn.XLOOKUP('Data FA Lookup'!$D1653,'FC Master'!A:A,'FC Master'!Q:Q,'Data FA Lookup'!$D1653,0,1))","v":8900040000}]
["1150","890","Central Computers-ElnAdm",8900050000,"890ElnAdm0000","1950-01-01","2012-09-30","2012-05-14","Yes","Yes","Yes",{"$f":"IF(A1654=\"????\",\"\",_xlfn.XLOOKUP('Data FA Lookup'!$D1654,'FC Master'!A:A,'FC Master'!Q:Q,'Data FA Lookup'!$D1654,0,1))","v":8900050000}]
["1210","890","Central Computers-CrmJs",8900060000,"890CrmJs0000","1950-01-01","2012-09-30","2012-05-14","Yes","Yes","Yes",{"$f":"IF(A1655=\"????\",\"\",_xlfn.XLOOKUP('Data FA Lookup'!$D1655,'FC Master'!A:A,'FC Master'!Q:Q,'Data FA Lookup'!$D1655,0,1))","v":8900060000}]
["1220","890","Central Computers-CivJs",8900070000,"890CivJs0000","1950-01-01","2012-09-30","2012-05-14","Yes","Yes","Yes",{"$f":"IF(A1656=\"????\",\"\",_xlfn.XLOOKUP('Data FA Lookup'!$D1656,'FC Master'!A:A,'FC Master'!Q:Q,'Data FA Lookup'!$D1656,0,1))","v":8900070000}]
["1230","890","Central Computers-JuvSvs",8900080000,"890JuvSvs0000","1950-01-01","2012-09-30","2012-05-14","Yes","Yes","Yes",{"$f":"IF(A1657=\"????\",\"\",_xlfn.XLOOKUP('Data FA Lookup'!$D1657,'FC Master'!A:A,'FC Master'!Q:Q,'Data FA Lookup'!$D1657,0,1))","v":8900080000}]
["1310","890","Central Computers-LE",8900090000,"890LE0000","1950-01-01","2012-09-30","2012-05-14","Yes","Yes","Yes",{"$f":"IF(A1658=\"????\",\"\",_xlfn.XLOOKUP('Data FA Lookup'!$D1658,'FC Master'!A:A,'FC Master'!Q:Q,'Data FA Lookup'!$D1658,0,1))","v":8900090000}]
["1320","890","Central Computers-EmrgMgmt",8900100000,"890EmrgMgmt0000","1950-01-01","2012-09-30","2012-05-14","Yes","Yes","Yes",{"$f":"IF(A1659=\"????\",\"\",_xlfn.XLOOKUP('Data FA Lookup'!$D1659,'FC Master'!A:A,'FC Master'!Q:Q,'Data FA Lookup'!$D1659,0,1))","v":8900100000}]
["1410","890","Central Computers-HsgBkg",8900110000,"890HsgBkg0000","1950-01-01","2012-09-30","2012-05-14","Yes","Yes","Yes",{"$f":"IF(A1660=\"????\",\"\",_xlfn.XLOOKUP('Data FA Lookup'!$D1660,'FC Master'!A:A,'FC Master'!Q:Q,'Data FA Lookup'!$D1660,0,1))","v":8900110000}]
["1420","890","Central Computers-Svsn",8900120000,"890Svsn0000","1950-01-01","2012-09-30","2012-05-14","Yes","Yes","Yes",{"$f":"IF(A1661=\"????\",\"\",_xlfn.XLOOKUP('Data FA Lookup'!$D1661,'FC Master'!A:A,'FC Master'!Q:Q,'Data FA Lookup'!$D1661,0,1))","v":8900120000}]
["1510","890","Central Computers-Hlhcare",8900130000,"8900Hlhcare0000","1950-01-01","2012-09-30","2012-05-14","Yes","Yes","Yes",{"$f":"IF(A1662=\"????\",\"\",_xlfn.XLOOKUP('Data FA Lookup'!$D1662,'FC Master'!A:A,'FC Master'!Q:Q,'Data FA Lookup'!$D1662,0,1))","v":8900130000}]
["1520","890","Central Computers-PbcHlh",8900140000,"890PbcHlh0000","1950-01-01","2012-09-30","2012-05-14","Yes","Yes","Yes",{"$f":"IF(A1663=\"????\",\"\",_xlfn.XLOOKUP('Data FA Lookup'!$D1663,'FC Master'!A:A,'FC Master'!Q:Q,'Data FA Lookup'!$D1663,0,1))","v":8900140000}]
["1530","890","Central Computers-HumanSvs",8900150000,"890HumanSvs0000","1950-01-01","2012-09-30","2012-05-14","Yes","Yes","Yes",{"$f":"IF(A1664=\"????\",\"\",_xlfn.XLOOKUP('Data FA Lookup'!$D1664,'FC Master'!A:A,'FC Master'!Q:Q,'Data FA Lookup'!$D1664,0,1))","v":8900150000}]
["1610","890","Central Computers-EconDev",8900160000,"890EconDev0000","1950-01-01","2012-09-30","2012-05-14","Yes","Yes","Yes",{"$f":"IF(A1665=\"????\",\"\",_xlfn.XLOOKUP('Data FA Lookup'!$D1665,'FC Master'!A:A,'FC Master'!Q:Q,'Data FA Lookup'!$D1665,0,1))","v":8900160000}]
["1630","890","Central Computers-Parks&Rec",8900180000,"890Parks&Rec0000","1950-01-01","2012-09-30","2012-05-14","Yes","Yes","Yes",{"$f":"IF(A1666=\"????\",\"\",_xlfn.XLOOKUP('Data FA Lookup'!$D1666,'FC Master'!A:A,'FC Master'!Q:Q,'Data FA Lookup'!$D1666,0,1))","v":8900180000}]
["1650","890","Central Computers-Cul&Edu",8900190000,"890Cul&Edu0000","1950-01-01","2012-09-30","2012-05-14","Yes","Yes","Yes",{"$f":"IF(A1667=\"????\",\"\",_xlfn.XLOOKUP('Data FA Lookup'!$D1667,'FC Master'!A:A,'FC Master'!Q:Q,'Data FA Lookup'!$D1667,0,1))","v":8900190000}]
["1710","890","Central Computers-RdBg",8900200000,"890RdBg0000","1950-01-01","2012-09-30","2012-05-14","Yes","Yes","Yes",{"$f":"IF(A1668=\"????\",\"\",_xlfn.XLOOKUP('Data FA Lookup'!$D1668,'FC Master'!A:A,'FC Master'!Q:Q,'Data FA Lookup'!$D1668,0,1))","v":8900200000}]
["1730","890","Central Computers-Drng",8900210000,"890Drng0000","1950-01-01","2012-09-30","2012-05-14","Yes","Yes","Yes",{"$f":"IF(A1669=\"????\",\"\",_xlfn.XLOOKUP('Data FA Lookup'!$D1669,'FC Master'!A:A,'FC Master'!Q:Q,'Data FA Lookup'!$D1669,0,1))","v":8900210000}]
["1750","890","Central Computers-ConservNR",8900230000,"890ConservNR0000","1950-01-01","2012-09-30","2012-05-14","Yes","Yes","Yes",{"$f":"IF(A1670=\"????\",\"\",_xlfn.XLOOKUP('Data FA Lookup'!$D1670,'FC Master'!A:A,'FC Master'!Q:Q,'Data FA Lookup'!$D1670,0,1))","v":8900230000}]
["1760","890","Central Computers-Sanitation",8900240000,"890Sanitation0000","1950-01-01","2012-09-30","2012-05-14","Yes","Yes","Yes",{"$f":"IF(A1671=\"????\",\"\",_xlfn.XLOOKUP('Data FA Lookup'!$D1671,'FC Master'!A:A,'FC Master'!Q:Q,'Data FA Lookup'!$D1671,0,1))","v":8900240000}]
["1740","890","Central Computers-DevRegIn",8900250000,"890DevRegIn0000","1950-01-01","2012-09-30","2012-05-14","Yes","Yes","Yes",{"$f":"IF(A1672=\"????\",\"\",_xlfn.XLOOKUP('Data FA Lookup'!$D1672,'FC Master'!A:A,'FC Master'!Q:Q,'Data FA Lookup'!$D1672,0,1))","v":8900250000}]
["1110","890","Ctl Computers CAR-GenAdm GF",8908000001,"890CAR-GenAdm0001","1950-01-01","2015-12-31","2012-05-15","Yes","Yes","Yes",{"$f":"IF(A1673=\"????\",\"\",_xlfn.XLOOKUP('Data FA Lookup'!$D1673,'FC Master'!A:A,'FC Master'!Q:Q,'Data FA Lookup'!$D1673,0,1))","v":8908000001}]
["1120","890","Ctl Computers CAR-FinAdm GF",8908010001,"890CAR-FinAdm0001","1950-01-01","2015-12-31","2012-05-15","Yes","Yes","Yes",{"$f":"IF(A1674=\"????\",\"\",_xlfn.XLOOKUP('Data FA Lookup'!$D1674,'FC Master'!A:A,'FC Master'!Q:Q,'Data FA Lookup'!$D1674,0,1))","v":8908010001}]
["1130","890","Ctl Computers CAR-TaxAdm GF",8908020001,"890CAR-TaxAdm0001","1950-01-01","2015-12-31","2012-05-15","Yes","Yes","Yes",{"$f":"IF(A1675=\"????\",\"\",_xlfn.XLOOKUP('Data FA Lookup'!$D1675,'FC Master'!A:A,'FC Master'!Q:Q,'Data FA Lookup'!$D1675,0,1))","v":8908020001}]
["1140","890","Ctl Computers CAR-FacMgmt GF",8908030001,"890CAR-FacMgmt0001","1950-01-01","2015-12-31","2012-05-15","Yes","Yes","Yes",{"$f":"IF(A1676=\"????\",\"\",_xlfn.XLOOKUP('Data FA Lookup'!$D1676,'FC Master'!A:A,'FC Master'!Q:Q,'Data FA Lookup'!$D1676,0,1))","v":8908030001}]
["1150","890","Ctl Computers CAR-ElnAdm GF",8908040001,"890CAR-ElnAdm0001","1950-01-01","2015-12-31","2012-05-15","Yes","Yes","Yes",{"$f":"IF(A1677=\"????\",\"\",_xlfn.XLOOKUP('Data FA Lookup'!$D1677,'FC Master'!A:A,'FC Master'!Q:Q,'Data FA Lookup'!$D1677,0,1))","v":8908040001}]
["1210","890","Ctl Computers CAR-CrmJs GF",8908050001,"890CAR-CrmJs0001","1950-01-01","2016-03-31","2012-05-15","Yes","Yes","Yes",{"$f":"IF(A1678=\"????\",\"\",_xlfn.XLOOKUP('Data FA Lookup'!$D1678,'FC Master'!A:A,'FC Master'!Q:Q,'Data FA Lookup'!$D1678,0,1))","v":8908050001}]
["1220","890","Ctl Computers CAR-CivJs GF",8908060001,"890CAR-CivJs0001","1950-01-01","2016-03-31","2012-05-15","Yes","Yes","Yes",{"$f":"IF(A1679=\"????\",\"\",_xlfn.XLOOKUP('Data FA Lookup'!$D1679,'FC Master'!A:A,'FC Master'!Q:Q,'Data FA Lookup'!$D1679,0,1))","v":8908060001}]
["1230","890","Ctl Computers CAR-JuvSvs GF",8908070001,"890CAR-JuvSvs0001","1950-01-01","2015-12-31","2012-05-15","Yes","Yes","Yes",{"$f":"IF(A1680=\"????\",\"\",_xlfn.XLOOKUP('Data FA Lookup'!$D1680,'FC Master'!A:A,'FC Master'!Q:Q,'Data FA Lookup'!$D1680,0,1))","v":8908070001}]
["1310","890","Ctl Computers CAR-LE GF",8908080001,"890CAR-LE0001","1950-01-01","2015-12-31","2012-05-15","Yes","Yes","Yes",{"$f":"IF(A1681=\"????\",\"\",_xlfn.XLOOKUP('Data FA Lookup'!$D1681,'FC Master'!A:A,'FC Master'!Q:Q,'Data FA Lookup'!$D1681,0,1))","v":8908080001}]
["1320","890","Ctl Computers CAR-EmrgMgmt GF",8908090001,"890CAR-EmrgMgmt0001","1950-01-01","2015-12-31","2012-05-15","Yes","Yes","Yes",{"$f":"IF(A1682=\"????\",\"\",_xlfn.XLOOKUP('Data FA Lookup'!$D1682,'FC Master'!A:A,'FC Master'!Q:Q,'Data FA Lookup'!$D1682,0,1))","v":8908090001}]
["1410","890","Ctl Computers CAR-HsgBkg GF",8908100001,"890CAR-HsgBkg0001","1950-01-01","2015-12-31","2012-05-15","Yes","Yes","Yes",{"$f":"IF(A1683=\"????\",\"\",_xlfn.XLOOKUP('Data FA Lookup'!$D1683,'FC Master'!A:A,'FC Master'!Q:Q,'Data FA Lookup'!$D1683,0,1))","v":8908100001}]
["1420","890","Ctl Computers CAR-Svsn GF",8908110001,"890CAR-Svsn0001","1950-01-01","2016-03-31","2012-05-15","Yes","Yes","Yes",{"$f":"IF(A1684=\"????\",\"\",_xlfn.XLOOKUP('Data FA Lookup'!$D1684,'FC Master'!A:A,'FC Master'!Q:Q,'Data FA Lookup'!$D1684,0,1))","v":8908110001}]
["1510","890","Ctl Computers CAR-DevRegIn GF",8908120001,"890CAR-DevRegln0001","1950-01-01","2015-12-31","2012-05-15","Yes","Yes","Yes",{"$f":"IF(A1685=\"????\",\"\",_xlfn.XLOOKUP('Data FA Lookup'!$D1685,'FC Master'!A:A,'FC Master'!Q:Q,'Data FA Lookup'!$D1685,0,1))","v":8908120001}]
["1530","890","Ctl Computers CAR-Hlhcare GF",8908130001,"890CAR-Hlhcare0001","1950-01-01","2016-03-31","2012-05-15","Yes","Yes","Yes",{"$f":"IF(A1686=\"????\",\"\",_xlfn.XLOOKUP('Data FA Lookup'!$D1686,'FC Master'!A:A,'FC Master'!Q:Q,'Data FA Lookup'!$D1686,0,1))","v":8908130001}]
["1610","890","Ctl Computers CAR-PbcHlh GF",8908140001,"890CAR-PbcHlh0001","1950-01-01","2015-12-31","2012-05-15","Yes","Yes","Yes",{"$f":"IF(A1687=\"????\",\"\",_xlfn.XLOOKUP('Data FA Lookup'!$D1687,'FC Master'!A:A,'FC Master'!Q:Q,'Data FA Lookup'!$D1687,0,1))","v":8908140001}]
["1630","890","Ctl Computers CAR-HumanSvs GF",8908150001,"890CAR-HumanSvs0001","1950-01-01","2016-03-31","2012-05-15","Yes","Yes","Yes",{"$f":"IF(A1688=\"????\",\"\",_xlfn.XLOOKUP('Data FA Lookup'!$D1688,'FC Master'!A:A,'FC Master'!Q:Q,'Data FA Lookup'!$D1688,0,1))","v":8908150001}]
["1710","890","Ctl Computers CAR-EconDev GF",8908160001,"890CAR-EconDev0001","1950-01-01","2016-03-31","2012-05-15","Yes","Yes","Yes",{"$f":"IF(A1689=\"????\",\"\",_xlfn.XLOOKUP('Data FA Lookup'!$D1689,'FC Master'!A:A,'FC Master'!Q:Q,'Data FA Lookup'!$D1689,0,1))","v":8908160001}]
["1730","890","Ctl Computers CAR-Drainage GF",8908170001,"890CAR-Drainage0001","1950-01-01","2016-03-31","2012-05-15","Yes","Yes","Yes",{"$f":"IF(A1690=\"????\",\"\",_xlfn.XLOOKUP('Data FA Lookup'!$D1690,'FC Master'!A:A,'FC Master'!Q:Q,'Data FA Lookup'!$D1690,0,1))","v":8908170001}]
["1750","890","Ctl Computers CAR-Conser & Natural Rsrc",8908180001,"890CAR-ConserNR0001","1950-01-01","2016-03-31","2012-05-15","Yes","Yes","Yes",{"$f":"IF(A1691=\"????\",\"\",_xlfn.XLOOKUP('Data FA Lookup'!$D1691,'FC Master'!A:A,'FC Master'!Q:Q,'Data FA Lookup'!$D1691,0,1))","v":8908180001}]
["1760","890","Ctl Computers CAR-Sanitation GF",8908190001,"890CAR-Sanitation000","1950-01-01","2015-12-31","2012-05-15","Yes","Yes","Yes",{"$f":"IF(A1692=\"????\",\"\",_xlfn.XLOOKUP('Data FA Lookup'!$D1692,'FC Master'!A:A,'FC Master'!Q:Q,'Data FA Lookup'!$D1692,0,1))","v":8908190001}]
["1630","890","Ctl Computers CAR-ParksRec GF",8908200001,"890CAR-ParksRec0001","1950-01-01","2015-12-31","2012-05-15","Yes","Yes","Yes",{"$f":"IF(A1693=\"????\",\"\",_xlfn.XLOOKUP('Data FA Lookup'!$D1693,'FC Master'!A:A,'FC Master'!Q:Q,'Data FA Lookup'!$D1693,0,1))","v":8908200001}]
["1740","890","Ctl Computers CAR-DevReg GF",8908230001,"890CAR-DevReg0001","1950-01-01","2015-12-31","2012-05-15","Yes","Yes","Yes",{"$f":"IF(A1694=\"????\",\"\",_xlfn.XLOOKUP('Data FA Lookup'!$D1694,'FC Master'!A:A,'FC Master'!Q:Q,'Data FA Lookup'!$D1694,0,1))","v":8908230001}]
["1110","891","Central Rent & Utilities-GenAdm",8910010000,"891GenAdm0000","1950-01-01","2013-05-31","2012-05-14","Yes","Yes","Yes",{"$f":"IF(A1695=\"????\",\"\",_xlfn.XLOOKUP('Data FA Lookup'!$D1695,'FC Master'!A:A,'FC Master'!Q:Q,'Data FA Lookup'!$D1695,0,1))","v":8910010000}]
["1120","891","Central Rent & Utilities-FinAdm",8910020000,"891FinAdm0000","1950-01-01","2012-09-30","2012-05-14","Yes","Yes","Yes",{"$f":"IF(A1696=\"????\",\"\",_xlfn.XLOOKUP('Data FA Lookup'!$D1696,'FC Master'!A:A,'FC Master'!Q:Q,'Data FA Lookup'!$D1696,0,1))","v":8910020000}]
["1130","891","Central Rent & Utilities-TaxAdm",8910030000,"891TaxAdm0000","1950-01-01","2012-09-30","2012-05-14","Yes","Yes","Yes",{"$f":"IF(A1697=\"????\",\"\",_xlfn.XLOOKUP('Data FA Lookup'!$D1697,'FC Master'!A:A,'FC Master'!Q:Q,'Data FA Lookup'!$D1697,0,1))","v":8910030000}]
["1140","891","Central Rent & Utilities-FacMgmt",8910040000,"891FacMgmt0000","1950-01-01","2012-09-30","2012-05-14","Yes","Yes","Yes",{"$f":"IF(A1698=\"????\",\"\",_xlfn.XLOOKUP('Data FA Lookup'!$D1698,'FC Master'!A:A,'FC Master'!Q:Q,'Data FA Lookup'!$D1698,0,1))","v":8910040000}]
["1150","891","Central Rent & Utilities-ElnAdm",8910050000,"891ElnAdm0000","1950-01-01","2012-09-30","2012-05-14","Yes","Yes","Yes",{"$f":"IF(A1699=\"????\",\"\",_xlfn.XLOOKUP('Data FA Lookup'!$D1699,'FC Master'!A:A,'FC Master'!Q:Q,'Data FA Lookup'!$D1699,0,1))","v":8910050000}]
["1210","891","Central Rent & Utilities-CrmJs",8910060000,"891CrmJs0000","1950-01-01","2012-09-30","2012-05-14","Yes","Yes","Yes",{"$f":"IF(A1700=\"????\",\"\",_xlfn.XLOOKUP('Data FA Lookup'!$D1700,'FC Master'!A:A,'FC Master'!Q:Q,'Data FA Lookup'!$D1700,0,1))","v":8910060000}]
["1220","891","Central Rent & Utilities-CivJs",8910070000,"891CivJs0000","1950-01-01","2012-09-30","2012-05-14","Yes","Yes","Yes",{"$f":"IF(A1701=\"????\",\"\",_xlfn.XLOOKUP('Data FA Lookup'!$D1701,'FC Master'!A:A,'FC Master'!Q:Q,'Data FA Lookup'!$D1701,0,1))","v":8910070000}]
["1230","891","Central Rent & Utilities-JuvSvs",8910080000,"891JuvSvs0000","1950-01-01","2012-09-30","2012-05-14","Yes","Yes","Yes",{"$f":"IF(A1702=\"????\",\"\",_xlfn.XLOOKUP('Data FA Lookup'!$D1702,'FC Master'!A:A,'FC Master'!Q:Q,'Data FA Lookup'!$D1702,0,1))","v":8910080000}]
["1310","891","Central Rent & Utilities-LE",8910090000,"891LE0000","1950-01-01","2012-09-30","2012-05-14","Yes","Yes","Yes",{"$f":"IF(A1703=\"????\",\"\",_xlfn.XLOOKUP('Data FA Lookup'!$D1703,'FC Master'!A:A,'FC Master'!Q:Q,'Data FA Lookup'!$D1703,0,1))","v":8910090000}]
["1320","891","Central Rent & Utilities-EmrgMgmt",8910100000,"891EmrgMgmt0000","1950-01-01","2012-09-30","2012-05-14","Yes","Yes","Yes",{"$f":"IF(A1704=\"????\",\"\",_xlfn.XLOOKUP('Data FA Lookup'!$D1704,'FC Master'!A:A,'FC Master'!Q:Q,'Data FA Lookup'!$D1704,0,1))","v":8910100000}]
["1410","891","Central Rent & Utilities-HsgBkg",8910110000,"891HsgBkg0000","1950-01-01","2012-09-30","2012-05-14","Yes","Yes","Yes",{"$f":"IF(A1705=\"????\",\"\",_xlfn.XLOOKUP('Data FA Lookup'!$D1705,'FC Master'!A:A,'FC Master'!Q:Q,'Data FA Lookup'!$D1705,0,1))","v":8910110000}]
["1420","891","Central Rent & Utilities-Svsn",8910120000,"891Svsn0000","1950-01-01","2012-09-30","2012-05-14","Yes","Yes","Yes",{"$f":"IF(A1706=\"????\",\"\",_xlfn.XLOOKUP('Data FA Lookup'!$D1706,'FC Master'!A:A,'FC Master'!Q:Q,'Data FA Lookup'!$D1706,0,1))","v":8910120000}]
["1510","891","Central Rent & Utilities-Hlhcare",8910130000,"8910Hlhcare0000","1950-01-01","2012-09-30","2012-05-14","Yes","Yes","Yes",{"$f":"IF(A1707=\"????\",\"\",_xlfn.XLOOKUP('Data FA Lookup'!$D1707,'FC Master'!A:A,'FC Master'!Q:Q,'Data FA Lookup'!$D1707,0,1))","v":8910130000}]
["1520","891","Central Rent & Utilities-PbcHlh",8910140000,"891PbcHlh0000","1950-01-01","2013-09-30","2012-05-14","Yes","Yes","Yes",{"$f":"IF(A1708=\"????\",\"\",_xlfn.XLOOKUP('Data FA Lookup'!$D1708,'FC Master'!A:A,'FC Master'!Q:Q,'Data FA Lookup'!$D1708,0,1))","v":8910140000}]
["1530","891","Central Rent & Utilities-HumanSvs",8910150000,"891HumanSvs0000","1950-01-01","2012-09-30","2012-05-14","Yes","Yes","Yes",{"$f":"IF(A1709=\"????\",\"\",_xlfn.XLOOKUP('Data FA Lookup'!$D1709,'FC Master'!A:A,'FC Master'!Q:Q,'Data FA Lookup'!$D1709,0,1))","v":8910150000}]
["1610","891","Central Rent & Utilities-EconDev",8910160000,"891EconDev0000","1950-01-01","2012-09-30","2012-05-14","Yes","Yes","Yes",{"$f":"IF(A1710=\"????\",\"\",_xlfn.XLOOKUP('Data FA Lookup'!$D1710,'FC Master'!A:A,'FC Master'!Q:Q,'Data FA Lookup'!$D1710,0,1))","v":8910160000}]
["1630","891","Central Rent & Utilities-Parks&Rec",8910180000,"891Parks&Rec0000","1950-01-01","2012-09-30","2012-05-14","Yes","Yes","Yes",{"$f":"IF(A1711=\"????\",\"\",_xlfn.XLOOKUP('Data FA Lookup'!$D1711,'FC Master'!A:A,'FC Master'!Q:Q,'Data FA Lookup'!$D1711,0,1))","v":8910180000}]
["1650","891","Central Rent & Utilities-Cul&Edu",8910190000,"891Cul&Edu0000","1950-01-01","2012-09-30","2012-05-14","Yes","Yes","Yes",{"$f":"IF(A1712=\"????\",\"\",_xlfn.XLOOKUP('Data FA Lookup'!$D1712,'FC Master'!A:A,'FC Master'!Q:Q,'Data FA Lookup'!$D1712,0,1))","v":8910190000}]
["1710","891","Central Rent & Utilities-RdBg",8910200000,"891RdBg0000","1950-01-01","2012-09-30","2012-05-14","Yes","Yes","Yes",{"$f":"IF(A1713=\"????\",\"\",_xlfn.XLOOKUP('Data FA Lookup'!$D1713,'FC Master'!A:A,'FC Master'!Q:Q,'Data FA Lookup'!$D1713,0,1))","v":8910200000}]
["1730","891","Central Rent & Utilities-Drng",8910210000,"891Drng0000","1950-01-01","2012-09-30","2012-05-14","Yes","Yes","Yes",{"$f":"IF(A1714=\"????\",\"\",_xlfn.XLOOKUP('Data FA Lookup'!$D1714,'FC Master'!A:A,'FC Master'!Q:Q,'Data FA Lookup'!$D1714,0,1))","v":8910210000}]
["1750","891","Central Rent & Utilities-ConservNR",8910230000,"891ConservNR0000","1950-01-01","2012-09-30","2012-05-14","Yes","Yes","Yes",{"$f":"IF(A1715=\"????\",\"\",_xlfn.XLOOKUP('Data FA Lookup'!$D1715,'FC Master'!A:A,'FC Master'!Q:Q,'Data FA Lookup'!$D1715,0,1))","v":8910230000}]
["1760","891","Central Rent & Utilities-Sanitation",8910240000,"891Sanitation0000","1950-01-01","2012-09-30","2012-05-14","Yes","Yes","Yes",{"$f":"IF(A1716=\"????\",\"\",_xlfn.XLOOKUP('Data FA Lookup'!$D1716,'FC Master'!A:A,'FC Master'!Q:Q,'Data FA Lookup'!$D1716,0,1))","v":8910240000}]
["1740","891","Central Rent & Utilities-DevRegIn",8910250000,"891DevRegIn0000","1950-01-01","2012-09-30","2012-05-14","Yes","Yes","Yes",{"$f":"IF(A1717=\"????\",\"\",_xlfn.XLOOKUP('Data FA Lookup'!$D1717,'FC Master'!A:A,'FC Master'!Q:Q,'Data FA Lookup'!$D1717,0,1))","v":8910250000}]
["1110","892","Ctl Fleet CAR-GenAdm GF",8928000001,"892CAR-GenAdm0001","1950-01-01","2015-12-31","2012-05-15","Yes","Yes","Yes",{"$f":"IF(A1718=\"????\",\"\",_xlfn.XLOOKUP('Data FA Lookup'!$D1718,'FC Master'!A:A,'FC Master'!Q:Q,'Data FA Lookup'!$D1718,0,1))","v":8928000001}]
["1140","892","Ctl Fleet CAR-FacMgmt GF",8928030001,"892CAR-FacMgmt0001","1950-01-01","2015-12-31","2012-05-15","Yes","Yes","Yes",{"$f":"IF(A1719=\"????\",\"\",_xlfn.XLOOKUP('Data FA Lookup'!$D1719,'FC Master'!A:A,'FC Master'!Q:Q,'Data FA Lookup'!$D1719,0,1))","v":8928030001}]
["1210","892","Ctl Fleet CAR-CrmJs GF",8928050001,"892CAR-CrmJs0001","1950-01-01","2015-12-31","2012-05-15","Yes","Yes","Yes",{"$f":"IF(A1720=\"????\",\"\",_xlfn.XLOOKUP('Data FA Lookup'!$D1720,'FC Master'!A:A,'FC Master'!Q:Q,'Data FA Lookup'!$D1720,0,1))","v":8928050001}]
["1310","892","Ctl Fleet CAR-LE GF",8928080001,"892CAR-LE0001","1950-01-01","2015-12-31","2012-05-15","Yes","Yes","Yes",{"$f":"IF(A1721=\"????\",\"\",_xlfn.XLOOKUP('Data FA Lookup'!$D1721,'FC Master'!A:A,'FC Master'!Q:Q,'Data FA Lookup'!$D1721,0,1))","v":8928080001}]
["1410","892","Ctl Fleet CAR-HsgBkg GF",8928100001,"892CAR-HsgBkg0001","1950-01-01","2015-12-31","2012-05-15","Yes","Yes","Yes",{"$f":"IF(A1722=\"????\",\"\",_xlfn.XLOOKUP('Data FA Lookup'!$D1722,'FC Master'!A:A,'FC Master'!Q:Q,'Data FA Lookup'!$D1722,0,1))","v":8928100001}]
["1630","892","Ctl Fleet CAR-ParksRec GF",8928200001,"892CAR-ParksRec0001","1950-01-01","2015-12-31","2012-05-15","Yes","Yes","Yes",{"$f":"IF(A1723=\"????\",\"\",_xlfn.XLOOKUP('Data FA Lookup'!$D1723,'FC Master'!A:A,'FC Master'!Q:Q,'Data FA Lookup'!$D1723,0,1))","v":8928200001}]
["1710","892","Ctl Fleet CAR-RdBg GF",8928210001,"892CAR-RdBg0001","1950-01-01","2015-12-31","2012-05-15","Yes","Yes","Yes",{"$f":"IF(A1724=\"????\",\"\",_xlfn.XLOOKUP('Data FA Lookup'!$D1724,'FC Master'!A:A,'FC Master'!Q:Q,'Data FA Lookup'!$D1724,0,1))","v":8928210001}]
[null,null,null,null,null,null,null,null,null,null,null,{"$f":"IF(A1725=\"????\",\"\",_xlfn.XLOOKUP('Data FA Lookup'!$D1725,'FC Master'!A:A,'FC Master'!Q:Q,'Data FA Lookup'!$D1725,0,1))","v":0}]

{"sheet":"Data WCI by job","index":33,"n_rows":1102,"n_cols":31,"rows_kept":1102,"cut":false,"hidden":true,"merged":[]}
["Job key","Workers Compensation Classification Code","End Date","WCI Rate",null,"Object type","Start date","End Date","Planning status","Object name","Extended object ID","PG","WCI","WCI Rate","Minimum","Maximum","Family Code","Family","Query","S_AHR_61016497 - Org Management -> Reports -> Existing Jobs ","Column16","Column17","Column18","Column19","Column20","Column21","Updated:","1/25/2021 1:34:31 PM","Column24","Min","41600"]
[{"$f":"job_titles8[[#This Row],[Extended object ID]]","v":20000000},{"$f":"job_titles8[[#This Row],[WCI]]","v":9015},"9999-12-31",{"$f":"job_titles8[[#This Row],[WCI Rate]]","v":1.8800000000000001E-2},null,"C","1950-01-01","9999-12-31",1,"Custodian",20000000,"C02",9015,1.8800000000000001E-2,43264,56243.199999999997,88001,"MAINTENANCE"]
[{"$f":"job_titles8[[#This Row],[Extended object ID]]","v":20000001},{"$f":"job_titles8[[#This Row],[WCI]]","v":9015},"9999-12-31",{"$f":"job_titles8[[#This Row],[WCI Rate]]","v":1.8800000000000001E-2},null,"C","1950-01-01","9999-12-31",1,"Custodian Lead",20000001,"C03",9015,1.8800000000000001E-2,44561.919999999998,57930.5,88001,"MAINTENANCE"]
[{"$f":"job_titles8[[#This Row],[Extended object ID]]","v":20000002},{"$f":"job_titles8[[#This Row],[WCI]]","v":9015},"9999-12-31",{"$f":"job_titles8[[#This Row],[WCI Rate]]","v":1.8800000000000001E-2},null,"C","1950-01-01","9999-12-31",1,"Custodian Services Supv",20000002,"C04",9015,1.8800000000000001E-2,45898.78,59668.41,88001,"MAINTENANCE"]
[{"$f":"job_titles8[[#This Row],[Extended object ID]]","v":20000003},{"$f":"job_titles8[[#This Row],[WCI]]","v":9015},"9999-12-31",{"$f":"job_titles8[[#This Row],[WCI Rate]]","v":1.8800000000000001E-2},null,"C","1950-01-01","9999-12-31",1,"Groundskeeper",20000003,"C03",9015,1.8800000000000001E-2,44561.919999999998,57930.5,88001,"MAINTENANCE"]
[{"$f":"job_titles8[[#This Row],[Extended object ID]]","v":20000004},{"$f":"job_titles8[[#This Row],[WCI]]","v":9015},"9999-12-31",{"$f":"job_titles8[[#This Row],[WCI Rate]]","v":1.8800000000000001E-2},null,"C","1950-01-01","9999-12-31",1,"Groundskeeper Supv",20000004,"C06",9015,1.8800000000000001E-2,48694.01,65736.92,88001,"MAINTENANCE"]
[{"$f":"job_titles8[[#This Row],[Extended object ID]]","v":20000005},{"$f":"job_titles8[[#This Row],[WCI]]","v":9015},"9999-12-31",{"$f":"job_titles8[[#This Row],[WCI Rate]]","v":1.8800000000000001E-2},null,"C","1950-01-01","9999-12-31",1,"Building Operations Worker",20000005,"C03",9015,1.8800000000000001E-2,44561.919999999998,57930.5,88001,"MAINTENANCE"]
[{"$f":"job_titles8[[#This Row],[Extended object ID]]","v":20000007},{"$f":"job_titles8[[#This Row],[WCI]]","v":9015},"9999-12-31",{"$f":"job_titles8[[#This Row],[WCI Rate]]","v":1.8800000000000001E-2},null,"C","1950-01-01","9999-12-31",1,"Building Maintenance Worker",20000007,"C04",9015,1.8800000000000001E-2,45898.78,59668.41,88001,"MAINTENANCE"]
[{"$f":"job_titles8[[#This Row],[Extended object ID]]","v":20000008},{"$f":"job_titles8[[#This Row],[WCI]]","v":9015},"9999-12-31",{"$f":"job_titles8[[#This Row],[WCI Rate]]","v":1.8800000000000001E-2},null,"C","1950-01-01","9999-12-31",1,"Building Maintenance Worker Sr",20000008,"C06",9015,1.8800000000000001E-2,48694.01,65736.92,88001,"MAINTENANCE"]
[{"$f":"job_titles8[[#This Row],[Extended object ID]]","v":20000009},{"$f":"job_titles8[[#This Row],[WCI]]","v":9015},"9999-12-31",{"$f":"job_titles8[[#This Row],[WCI Rate]]","v":1.8800000000000001E-2},null,"C","1950-01-01","9999-12-31",1,"Building Maintenance Coord",20000009,"C07",9015,1.8800000000000001E-2,50398.3,68037.710000000006,88001,"MAINTENANCE"]
[{"$f":"job_titles8[[#This Row],[Extended object ID]]","v":20000010},{"$f":"job_titles8[[#This Row],[WCI]]","v":9015},"9999-12-31",{"$f":"job_titles8[[#This Row],[WCI Rate]]","v":1.8800000000000001E-2},null,"C","1950-01-01","9999-12-31",1,"Building Maintenance Supv",20000010,"C09",9015,1.8800000000000001E-2,53987.92,78282.490000000005,88001,"MAINTENANCE"]
[{"$f":"job_titles8[[#This Row],[Extended object ID]]","v":20000011},{"$f":"job_titles8[[#This Row],[WCI]]","v":9015},"9999-12-31",{"$f":"job_titles8[[#This Row],[WCI Rate]]","v":1.8800000000000001E-2},null,"C","1950-01-01","9999-12-31",1,"Building Maintenance Supt",20000011,"C10",9015,1.8800000000000001E-2,55877.5,82698.7,88001,"MAINTENANCE"]
[{"$f":"job_titles8[[#This Row],[Extended object ID]]","v":20000012},{"$f":"job_titles8[[#This Row],[WCI]]","v":9015},"9999-12-31",{"$f":"job_titles8[[#This Row],[WCI Rate]]","v":1.8800000000000001E-2},null,"C","1950-01-01","9999-12-31",1,"Building Security Guard",20000012,"C04",9015,1.8800000000000001E-2,45898.78,59668.41,88001,"MAINTENANCE"]
[{"$f":"job_titles8[[#This Row],[Extended object ID]]","v":20000013},{"$f":"job_titles8[[#This Row],[WCI]]","v":9102},"9999-12-31",{"$f":"job_titles8[[#This Row],[WCI Rate]]","v":2.0799999999999999E-2},null,"C","1950-01-01","9999-12-31",1,"Park Maintenance Worker",20000013,"C04",9102,2.0799999999999999E-2,45898.78,59668.41,88001,"MAINTENANCE"]
[{"$f":"job_titles8[[#This Row],[Extended object ID]]","v":20000014},{"$f":"job_titles8[[#This Row],[WCI]]","v":9102},"9999-12-31",{"$f":"job_titles8[[#This Row],[WCI Rate]]","v":2.0799999999999999E-2},null,"C","1950-01-01","9999-12-31",1,"Park Maintenance Worker Sr",20000014,"C05",9102,2.0799999999999999E-2,47275.74,61458.46,88001,"MAINTENANCE"]
[{"$f":"job_titles8[[#This Row],[Extended object ID]]","v":20000015},{"$f":"job_titles8[[#This Row],[WCI]]","v":9102},"9999-12-31",{"$f":"job_titles8[[#This Row],[WCI Rate]]","v":2.0799999999999999E-2},null,"C","1950-01-01","9999-12-31",1,"Park Supv I",20000015,"C10",9102,2.0799999999999999E-2,55877.5,82698.7,88001,"MAINTENANCE"]
[{"$f":"job_titles8[[#This Row],[Extended object ID]]","v":20000016},{"$f":"job_titles8[[#This Row],[WCI]]","v":9102},"9999-12-31",{"$f":"job_titles8[[#This Row],[WCI Rate]]","v":2.0799999999999999E-2},null,"C","1950-01-01","9999-12-31",1,"Park Supv II",20000016,"C11",9102,2.0799999999999999E-2,58112.6,87168.9,88001,"MAINTENANCE"]
[{"$f":"job_titles8[[#This Row],[Extended object ID]]","v":20000017},{"$f":"job_titles8[[#This Row],[WCI]]","v":5506},"9999-12-31",{"$f":"job_titles8[[#This Row],[WCI Rate]]","v":4.3700000000000003E-2},null,"C","1950-01-01","9999-12-31",1,"Road Maintenance Worker I",20000017,"C04",5506,4.3700000000000003E-2,45898.78,59668.41,88001,"MAINTENANCE"]
[{"$f":"job_titles8[[#This Row],[Extended object ID]]","v":20000018},{"$f":"job_titles8[[#This Row],[WCI]]","v":5506},"9999-12-31",{"$f":"job_titles8[[#This Row],[WCI Rate]]","v":4.3700000000000003E-2},null,"C","1950-01-01","9999-12-31",1,"Road Maintenance Worker Sr (Signs)",20000018,"C05",5506,4.3700000000000003E-2,47275.74,61458.46,88001,"MAINTENANCE"]
[{"$f":"job_titles8[[#This Row],[Extended object ID]]","v":20000019},{"$f":"job_titles8[[#This Row],[WCI]]","v":5506},"9999-12-31",{"$f":"job_titles8[[#This Row],[WCI Rate]]","v":4.3700000000000003E-2},null,"C","1950-01-01","9999-12-31",1,"Road Maintenance Supv",20000019,"C13",5506,4.3700000000000003E-2,62854.59,100567.34,88001,"MAINTENANCE"]
[{"$f":"job_titles8[[#This Row],[Extended object ID]]","v":20000020},{"$f":"job_titles8[[#This Row],[WCI]]","v":5606},"9999-12-31",{"$f":"job_titles8[[#This Row],[WCI Rate]]","v":5.5999999999999999E-3},null,"C","1950-01-01","9999-12-31",1,"Road Maintenance Mgr",20000020,"C15",5606,5.5999999999999999E-3,70819.7,113311.53,88001,"MAINTENANCE"]
[{"$f":"job_titles8[[#This Row],[Extended object ID]]","v":20000022},{"$f":"job_titles8[[#This Row],[WCI]]","v":8810},"9999-12-31",{"$f":"job_titles8[[#This Row],[WCI Rate]]","v":1.6000000000000001E-3},null,"C","1950-01-01","9999-12-31",1,"Cook",20000022,"C02",8810,1.6000000000000001E-3,43264,56243.199999999997,88001,"MAINTENANCE"]
[{"$f":"job_titles8[[#This Row],[Extended object ID]]","v":20000023},{"$f":"job_titles8[[#This Row],[WCI]]","v":8810},"9999-12-31",{"$f":"job_titles8[[#This Row],[WCI Rate]]","v":1.6000000000000001E-3},null,"C","1950-01-01","9999-12-31",1,"Food Services Supv",20000023,"C05",8810,1.6000000000000001E-3,47275.74,61458.46,88001,"MAINTENANCE"]
[{"$f":"job_titles8[[#This Row],[Extended object ID]]","v":20000024},{"$f":"job_titles8[[#This Row],[WCI]]","v":8810},"9999-12-31",{"$f":"job_titles8[[#This Row],[WCI Rate]]","v":1.6000000000000001E-3},null,"C","1950-01-01","9999-12-31",1,"Food Services Mgr",20000024,"C08",8810,1.6000000000000001E-3,52162.239999999998,75635.25,88001,"MAINTENANCE"]
[{"$f":"job_titles8[[#This Row],[Extended object ID]]","v":20000026},{"$f":"job_titles8[[#This Row],[WCI]]","v":7380},"9999-12-31",{"$f":"job_titles8[[#This Row],[WCI Rate]]","v":2.9700000000000001E-2},null,"C","1950-01-01","9999-12-31",1,"Mover",20000026,"C02",7380,2.9700000000000001E-2,43264,56243.199999999997,88001,"MAINTENANCE"]
[{"$f":"job_titles8[[#This Row],[Extended object ID]]","v":20000027},{"$f":"job_titles8[[#This Row],[WCI]]","v":9015},"9999-12-31",{"$f":"job_titles8[[#This Row],[WCI Rate]]","v":1.8800000000000001E-2},null,"C","1950-01-01","9999-12-31",1,"Shipping Receiving Supply Asst",20000027,"C03",9015,1.8800000000000001E-2,44561.919999999998,57930.5,88001,"MAINTENANCE"]
[{"$f":"job_titles8[[#This Row],[Extended object ID]]","v":20000028},{"$f":"job_titles8[[#This Row],[WCI]]","v":5506},"9999-12-31",{"$f":"job_titles8[[#This Row],[WCI Rate]]","v":4.3700000000000003E-2},null,"C","1950-01-01","9999-12-31",1,"Equipment Operator I",20000028,"C08",5506,4.3700000000000003E-2,52162.239999999998,75635.25,88002,"SKILLED TRADES"]
[{"$f":"job_titles8[[#This Row],[Extended object ID]]","v":20000030},{"$f":"job_titles8[[#This Row],[WCI]]","v":8391},"9999-12-31",{"$f":"job_titles8[[#This Row],[WCI Rate]]","v":1.2800000000000001E-2},null,"C","1950-01-01","9999-12-31",1,"Mechanic Automotive",20000030,"C08",8391,1.2800000000000001E-2,52162.239999999998,75635.25,88002,"SKILLED TRADES"]
[{"$f":"job_titles8[[#This Row],[Extended object ID]]","v":20000031},{"$f":"job_titles8[[#This Row],[WCI]]","v":8391},"9999-12-31",{"$f":"job_titles8[[#This Row],[WCI Rate]]","v":1.2800000000000001E-2},null,"C","1950-01-01","9999-12-31",1,"Mechanic Equipment",20000031,"C09",8391,1.2800000000000001E-2,53987.92,78282.490000000005,88002,"SKILLED TRADES"]
[{"$f":"job_titles8[[#This Row],[Extended object ID]]","v":20000032},{"$f":"job_titles8[[#This Row],[WCI]]","v":8391},"9999-12-31",{"$f":"job_titles8[[#This Row],[WCI Rate]]","v":1.2800000000000001E-2},null,"C","1950-01-01","9999-12-31",1,"Mechanic Supervisor",20000032,"C11",8391,1.2800000000000001E-2,58112.6,87168.9,88002,"SKILLED TRADES"]
[{"$f":"job_titles8[[#This Row],[Extended object ID]]","v":20000035},{"$f":"job_titles8[[#This Row],[WCI]]","v":9015},"9999-12-31",{"$f":"job_titles8[[#This Row],[WCI Rate]]","v":1.8800000000000001E-2},null,"C","1950-01-01","9999-12-31",1,"HVAC Refrigeration Mechanic",20000035,"C09",9015,1.8800000000000001E-2,53987.92,78282.490000000005,88002,"SKILLED TRADES"]
[{"$f":"job_titles8[[#This Row],[Extended object ID]]","v":20000036},{"$f":"job_titles8[[#This Row],[WCI]]","v":8391},"9999-12-31",{"$f":"job_titles8[[#This Row],[WCI Rate]]","v":1.2800000000000001E-2},null,"C","1950-01-01","9999-12-31",1,"Fleet Services Coord",20000036,"C13",8391,1.2800000000000001E-2,62854.59,100567.34,88002,"SKILLED TRADES"]
[{"$f":"job_titles8[[#This Row],[Extended object ID]]","v":20000037},{"$f":"job_titles8[[#This Row],[WCI]]","v":5479},"9999-12-31",{"$f":"job_titles8[[#This Row],[WCI Rate]]","v":3.6700000000000003E-2},null,"C","1950-01-01","9999-12-31",1,"Carpenter Assoc",20000037,"C04",5479,3.6700000000000003E-2,45898.78,59668.41,88002,"SKILLED TRADES"]
[{"$f":"job_titles8[[#This Row],[Extended object ID]]","v":20000038},{"$f":"job_titles8[[#This Row],[WCI]]","v":5479},"9999-12-31",{"$f":"job_titles8[[#This Row],[WCI Rate]]","v":3.6700000000000003E-2},null,"C","1950-01-01","9999-12-31",1,"Carpenter",20000038,"C07",5479,3.6700000000000003E-2,50398.3,68037.710000000006,88002,"SKILLED TRADES"]
[{"$f":"job_titles8[[#This Row],[Extended object ID]]","v":20000039},{"$f":"job_titles8[[#This Row],[WCI]]","v":5479},"9999-12-31",{"$f":"job_titles8[[#This Row],[WCI Rate]]","v":3.6700000000000003E-2},null,"C","1950-01-01","9999-12-31",1,"Carpenter Sr",20000039,"C08",5479,3.6700000000000003E-2,52162.239999999998,75635.25,88002,"SKILLED TRADES"]
[{"$f":"job_titles8[[#This Row],[Extended object ID]]","v":20000040},{"$f":"job_titles8[[#This Row],[WCI]]","v":5479},"9999-12-31",{"$f":"job_titles8[[#This Row],[WCI Rate]]","v":3.6700000000000003E-2},null,"C","1950-01-01","9999-12-31",1,"Home Repair Supv",20000040,"C10",5479,3.6700000000000003E-2,55877.5,82698.7,88002,"SKILLED TRADES"]
[{"$f":"job_titles8[[#This Row],[Extended object ID]]","v":20000041},{"$f":"job_titles8[[#This Row],[WCI]]","v":9015},"9999-12-31",{"$f":"job_titles8[[#This Row],[WCI Rate]]","v":1.8800000000000001E-2},null,"C","1950-01-01","9999-12-31",1,"Painter",20000041,"C05",9015,1.8800000000000001E-2,47275.74,61458.46,88002,"SKILLED TRADES"]
[{"$f":"job_titles8[[#This Row],[Extended object ID]]","v":20000042},{"$f":"job_titles8[[#This Row],[WCI]]","v":9015},"9999-12-31",{"$f":"job_titles8[[#This Row],[WCI Rate]]","v":1.8800000000000001E-2},null,"C","1950-01-01","9999-12-31",1,"Electrician",20000042,"C08",9015,1.8800000000000001E-2,52162.239999999998,75635.25,88002,"SKILLED TRADES"]
[{"$f":"job_titles8[[#This Row],[Extended object ID]]","v":20000043},{"$f":"job_titles8[[#This Row],[WCI]]","v":9015},"9999-12-31",{"$f":"job_titles8[[#This Row],[WCI Rate]]","v":1.8800000000000001E-2},null,"C","1950-01-01","9999-12-31",1,"Electrician Master",20000043,"C11",9015,1.8800000000000001E-2,58112.6,87168.9,88002,"SKILLED TRADES"]
[{"$f":"job_titles8[[#This Row],[Extended object ID]]","v":20000044},{"$f":"job_titles8[[#This Row],[WCI]]","v":9015},"9999-12-31",{"$f":"job_titles8[[#This Row],[WCI Rate]]","v":1.8800000000000001E-2},null,"C","1950-01-01","9999-12-31",1,"Plumber",20000044,"C08",9015,1.8800000000000001E-2,52162.239999999998,75635.25,88002,"SKILLED TRADES"]
[{"$f":"job_titles8[[#This Row],[Extended object ID]]","v":20000045},{"$f":"job_titles8[[#This Row],[WCI]]","v":9015},"9999-12-31",{"$f":"job_titles8[[#This Row],[WCI Rate]]","v":1.8800000000000001E-2},null,"C","1950-01-01","9999-12-31",1,"Plumber Master",20000045,"C10",9015,1.8800000000000001E-2,55877.5,82698.7,88002,"SKILLED TRADES"]
[{"$f":"job_titles8[[#This Row],[Extended object ID]]","v":20000046},{"$f":"job_titles8[[#This Row],[WCI]]","v":9015},"9999-12-31",{"$f":"job_titles8[[#This Row],[WCI Rate]]","v":1.8800000000000001E-2},null,"C","1950-01-01","9999-12-31",1,"Locksmith",20000046,"C08",9015,1.8800000000000001E-2,52162.239999999998,75635.25,88002,"SKILLED TRADES"]
[{"$f":"job_titles8[[#This Row],[Extended object ID]]","v":20000047},{"$f":"job_titles8[[#This Row],[WCI]]","v":8391},"9999-12-31",{"$f":"job_titles8[[#This Row],[WCI Rate]]","v":1.2800000000000001E-2},null,"C","1950-01-01","9999-12-31",1,"Equipment Tech",20000047,"C06",8391,1.2800000000000001E-2,48694.01,65736.92,88002,"SKILLED TRADES"]
[{"$f":"job_titles8[[#This Row],[Extended object ID]]","v":20000049},{"$f":"job_titles8[[#This Row],[WCI]]","v":8832},"9999-12-31",{"$f":"job_titles8[[#This Row],[WCI Rate]]","v":1.9E-3},null,"C","1950-01-01","9999-12-31",1,"Certified Nursing Asst",20000049,"C03",8832,1.9E-3,44561.919999999998,57930.5,88003,"MEDICAL"]
[{"$f":"job_titles8[[#This Row],[Extended object ID]]","v":20000050},{"$f":"job_titles8[[#This Row],[WCI]]","v":8832},"9999-12-31",{"$f":"job_titles8[[#This Row],[WCI Rate]]","v":1.9E-3},null,"C","1950-01-01","9999-12-31",1,"Medical Assistant",20000050,"C05",8832,1.9E-3,47275.74,61458.46,88003,"MEDICAL"]
[{"$f":"job_titles8[[#This Row],[Extended object ID]]","v":20000051},{"$f":"job_titles8[[#This Row],[WCI]]","v":8832},"9999-12-31",{"$f":"job_titles8[[#This Row],[WCI Rate]]","v":1.9E-3},null,"C","1950-01-01","9999-12-31",1,"Licensed Vocational Nurse",20000051,"C09",8832,1.9E-3,53987.92,78282.490000000005,88003,"MEDICAL"]
[{"$f":"job_titles8[[#This Row],[Extended object ID]]","v":20000052},{"$f":"job_titles8[[#This Row],[WCI]]","v":8832},"9999-12-31",{"$f":"job_titles8[[#This Row],[WCI Rate]]","v":1.9E-3},null,"C","1950-01-01","9999-12-31",1,"Registered Nurse I",20000052,"C13",8832,1.9E-3,62854.59,100567.34,88003,"MEDICAL"]
[{"$f":"job_titles8[[#This Row],[Extended object ID]]","v":20000053},{"$f":"job_titles8[[#This Row],[WCI]]","v":8832},"9999-12-31",{"$f":"job_titles8[[#This Row],[WCI Rate]]","v":1.9E-3},null,"C","1950-01-01","9999-12-31",1,"Registered Nurse II",20000053,"C14",8832,1.9E-3,66183.97,105894.35,88003,"MEDICAL"]
[{"$f":"job_titles8[[#This Row],[Extended object ID]]","v":20000054},{"$f":"job_titles8[[#This Row],[WCI]]","v":8832},"9999-12-31",{"$f":"job_titles8[[#This Row],[WCI Rate]]","v":1.9E-3},null,"C","1950-01-01","9999-12-31",1,"Registered Nurse Charge Nurse",20000054,"C16",8832,1.9E-3,75776.03,121241.65,88003,"MEDICAL"]
[{"$f":"job_titles8[[#This Row],[Extended object ID]]","v":20000055},{"$f":"job_titles8[[#This Row],[WCI]]","v":8832},"9999-12-31",{"$f":"job_titles8[[#This Row],[WCI Rate]]","v":1.9E-3},null,"C","1950-01-01","9999-12-31",1,"Health Services Supv",20000055,"C17",8832,1.9E-3,81074.789999999994,129719.67,88003,"MEDICAL"]
[{"$f":"job_titles8[[#This Row],[Extended object ID]]","v":20000056},{"$f":"job_titles8[[#This Row],[WCI]]","v":8832},"9999-12-31",{"$f":"job_titles8[[#This Row],[WCI Rate]]","v":1.9E-3},null,"C","1950-01-01","9999-12-31",1,"Physician Asst Nurse Practitioner",20000056,"C18",8832,1.9E-3,86761.41,138818.25,88003,"MEDICAL"]
[{"$f":"job_titles8[[#This Row],[Extended object ID]]","v":20000057},{"$f":"job_titles8[[#This Row],[WCI]]","v":8832},"9999-12-31",{"$f":"job_titles8[[#This Row],[WCI Rate]]","v":1.9E-3},null,"C","1950-01-01","9999-12-31",1,"Physician I",20000057,"C26",8832,1.9E-3,149111.1,246033.32,88003,"MEDICAL"]
[{"$f":"job_titles8[[#This Row],[Extended object ID]]","v":20000058},{"$f":"job_titles8[[#This Row],[WCI]]","v":8832},"9999-12-31",{"$f":"job_titles8[[#This Row],[WCI Rate]]","v":1.9E-3},null,"C","1950-01-01","9999-12-31",1,"Physician II",20000058,"C27",8832,1.9E-3,159548.98000000001,263255.82,88003,"MEDICAL"]
[{"$f":"job_titles8[[#This Row],[Extended object ID]]","v":20000060},{"$f":"job_titles8[[#This Row],[WCI]]","v":8832},"9999-12-31",{"$f":"job_titles8[[#This Row],[WCI Rate]]","v":1.9E-3},null,"C","1950-01-01","9999-12-31",1,"Pharmacy Tech",20000060,"C04",8832,1.9E-3,45898.78,59668.41,88003,"MEDICAL"]
[{"$f":"job_titles8[[#This Row],[Extended object ID]]","v":20000061},{"$f":"job_titles8[[#This Row],[WCI]]","v":8832},"9999-12-31",{"$f":"job_titles8[[#This Row],[WCI Rate]]","v":1.9E-3},null,"C","1950-01-01","9999-12-31",1,"Pharmacist",20000061,"C21",8832,1.9E-3,106310.9,175412.99,88003,"MEDICAL"]
[{"$f":"job_titles8[[#This Row],[Extended object ID]]","v":20000062},{"$f":"job_titles8[[#This Row],[WCI]]","v":8832},"9999-12-31",{"$f":"job_titles8[[#This Row],[WCI Rate]]","v":1.9E-3},null,"C","1950-01-01","9999-12-31",1,"Psychiatrist",20000062,"C27",8832,1.9E-3,159548.98000000001,263255.82,88003,"MEDICAL"]
[{"$f":"job_titles8[[#This Row],[Extended object ID]]","v":20000063},{"$f":"job_titles8[[#This Row],[WCI]]","v":7422},"9999-12-31",{"$f":"job_titles8[[#This Row],[WCI Rate]]","v":1.3299999999999999E-2},null,"C","1950-01-01","9999-12-31",1,"Flight Paramedic",20000063,"C14",7422,1.3299999999999999E-2,66183.97,105894.35,88003,"MEDICAL"]
[{"$f":"job_titles8[[#This Row],[Extended object ID]]","v":20000064},{"$f":"job_titles8[[#This Row],[WCI]]","v":7422},"9999-12-31",{"$f":"job_titles8[[#This Row],[WCI Rate]]","v":1.3299999999999999E-2},null,"C","1950-01-01","9999-12-31",1,"Flight Registered Nurse",20000064,"C17",7422,1.3299999999999999E-2,81074.789999999994,129719.67,88003,"MEDICAL"]
[{"$f":"job_titles8[[#This Row],[Extended object ID]]","v":20000066},{"$f":"job_titles8[[#This Row],[WCI]]","v":8833},"9999-12-31",{"$f":"job_titles8[[#This Row],[WCI Rate]]","v":4.7999999999999996E-3},null,"C","1950-01-01","9999-12-31",1,"Autopsy Tech",20000066,"C07",8833,4.7999999999999996E-3,50398.3,68037.710000000006,88003,"MEDICAL"]
[{"$f":"job_titles8[[#This Row],[Extended object ID]]","v":20000067},{"$f":"job_titles8[[#This Row],[WCI]]","v":8833},"9999-12-31",{"$f":"job_titles8[[#This Row],[WCI Rate]]","v":4.7999999999999996E-3},null,"C","1950-01-01","9999-12-31",1,"Autopsy Tech Chief",20000067,"C11",8833,4.7999999999999996E-3,58112.6,87168.9,88003,"MEDICAL"]
[{"$f":"job_titles8[[#This Row],[Extended object ID]]","v":20000068},{"$f":"job_titles8[[#This Row],[WCI]]","v":8832},"9999-12-31",{"$f":"job_titles8[[#This Row],[WCI Rate]]","v":1.9E-3},null,"C","1950-01-01","9999-12-31",1,"ME Investigator I",20000068,"C11",8832,1.9E-3,58112.6,87168.9,88003,"MEDICAL"]
[{"$f":"job_titles8[[#This Row],[Extended object ID]]","v":20000069},{"$f":"job_titles8[[#This Row],[WCI]]","v":8832},"9999-12-31",{"$f":"job_titles8[[#This Row],[WCI Rate]]","v":1.9E-3},null,"C","1950-01-01","9999-12-31",1,"ME Investigator II",20000069,"C13",8832,1.9E-3,62854.59,100567.34,88003,"MEDICAL"]
[{"$f":"job_titles8[[#This Row],[Extended object ID]]","v":20000071},{"$f":"job_titles8[[#This Row],[WCI]]","v":8832},"9999-12-31",{"$f":"job_titles8[[#This Row],[WCI Rate]]","v":1.9E-3},null,"C","1950-01-01","9999-12-31",1,"ME Investigator Chief",20000071,"C16",8832,1.9E-3,75776.03,121241.65,88003,"MEDICAL"]
[{"$f":"job_titles8[[#This Row],[Extended object ID]]","v":20000072},{"$f":"job_titles8[[#This Row],[WCI]]","v":8832},"9999-12-31",{"$f":"job_titles8[[#This Row],[WCI Rate]]","v":1.9E-3},null,"C","1950-01-01","9999-12-31",1,"Toxicologist Laboratory Tech",20000072,"C07",8832,1.9E-3,50398.3,68037.710000000006,88003,"MEDICAL"]
[{"$f":"job_titles8[[#This Row],[Extended object ID]]","v":20000073},{"$f":"job_titles8[[#This Row],[WCI]]","v":8832},"9999-12-31",{"$f":"job_titles8[[#This Row],[WCI Rate]]","v":1.9E-3},null,"C","1950-01-01","9999-12-31",1,"Toxicologist",20000073,"C14",8832,1.9E-3,66183.97,105894.35,88003,"MEDICAL"]
[{"$f":"job_titles8[[#This Row],[Extended object ID]]","v":20000074},{"$f":"job_titles8[[#This Row],[WCI]]","v":8832},"9999-12-31",{"$f":"job_titles8[[#This Row],[WCI Rate]]","v":1.9E-3},null,"C","1950-01-01","9999-12-31",1,"Toxicologist Deputy Chief",20000074,"C16",8832,1.9E-3,75776.03,121241.65,88003,"MEDICAL"]
[{"$f":"job_titles8[[#This Row],[Extended object ID]]","v":20000075},{"$f":"job_titles8[[#This Row],[WCI]]","v":8832},"9999-12-31",{"$f":"job_titles8[[#This Row],[WCI Rate]]","v":1.9E-3},null,"C","1950-01-01","9999-12-31",1,"Toxicologist Chief",20000075,"C19",8832,1.9E-3,92836.33,148538.12,88003,"MEDICAL"]
[{"$f":"job_titles8[[#This Row],[Extended object ID]]","v":20000078},{"$f":"job_titles8[[#This Row],[WCI]]","v":8832},"9999-12-31",{"$f":"job_titles8[[#This Row],[WCI Rate]]","v":1.9E-3},null,"C","1950-01-01","9999-12-31",1,"ME Deputy Chief",20000078,"NCF01",8832,1.9E-3,15080,500000,88003,"MEDICAL"]
[{"$f":"job_titles8[[#This Row],[Extended object ID]]","v":20000079},{"$f":"job_titles8[[#This Row],[WCI]]","v":8832},"9999-12-31",{"$f":"job_titles8[[#This Row],[WCI Rate]]","v":1.9E-3},null,"C","1950-01-01","9999-12-31",1,"ME Chief",20000079,"NCF01",8832,1.9E-3,15080,500000,88003,"MEDICAL"]
[{"$f":"job_titles8[[#This Row],[Extended object ID]]","v":20000082},{"$f":"job_titles8[[#This Row],[WCI]]","v":8810},"9999-12-31",{"$f":"job_titles8[[#This Row],[WCI Rate]]","v":1.6000000000000001E-3},null,"C","1950-01-01","9999-12-31",1,"Court Clerk Asst",20000082,"C04",8810,1.6000000000000001E-3,45898.78,59668.41,88004,"ADMINISTRATIVE SUPP"]
[{"$f":"job_titles8[[#This Row],[Extended object ID]]","v":20000083},{"$f":"job_titles8[[#This Row],[WCI]]","v":8810},"9999-12-31",{"$f":"job_titles8[[#This Row],[WCI Rate]]","v":1.6000000000000001E-3},null,"C","1950-01-01","9999-12-31",1,"Court Clerk I",20000083,"C05",8810,1.6000000000000001E-3,47275.74,61458.46,88004,"ADMINISTRATIVE SUPP"]
[{"$f":"job_titles8[[#This Row],[Extended object ID]]","v":20000084},{"$f":"job_titles8[[#This Row],[WCI]]","v":8810},"9999-12-31",{"$f":"job_titles8[[#This Row],[WCI Rate]]","v":1.6000000000000001E-3},null,"C","1950-01-01","9999-12-31",1,"Court Clerk II",20000084,"C07",8810,1.6000000000000001E-3,50398.3,68037.710000000006,88004,"ADMINISTRATIVE SUPP"]
[{"$f":"job_titles8[[#This Row],[Extended object ID]]","v":20000085},{"$f":"job_titles8[[#This Row],[WCI]]","v":8810},"9999-12-31",{"$f":"job_titles8[[#This Row],[WCI Rate]]","v":1.6000000000000001E-3},null,"C","1950-01-01","9999-12-31",1,"Court Clerk II Sr",20000085,"C08",8810,1.6000000000000001E-3,52162.239999999998,75635.25,88004,"ADMINISTRATIVE SUPP"]
[{"$f":"job_titles8[[#This Row],[Extended object ID]]","v":20000086},{"$f":"job_titles8[[#This Row],[WCI]]","v":8810},"9999-12-31",{"$f":"job_titles8[[#This Row],[WCI Rate]]","v":1.6000000000000001E-3},null,"C","1950-01-01","9999-12-31",1,"Judicial Aide",20000086,"C08",8810,1.6000000000000001E-3,52162.239999999998,75635.25,88004,"ADMINISTRATIVE SUPP"]
[{"$f":"job_titles8[[#This Row],[Extended object ID]]","v":20000087},{"$f":"job_titles8[[#This Row],[WCI]]","v":8810},"9999-12-31",{"$f":"job_titles8[[#This Row],[WCI Rate]]","v":1.6000000000000001E-3},null,"C","1950-01-01","9999-12-31",1,"Judicial Aide Specialist",20000087,"C10",8810,1.6000000000000001E-3,55877.5,82698.7,88004,"ADMINISTRATIVE SUPP"]
[{"$f":"job_titles8[[#This Row],[Extended object ID]]","v":20000088},{"$f":"job_titles8[[#This Row],[WCI]]","v":8810},"9999-12-31",{"$f":"job_titles8[[#This Row],[WCI Rate]]","v":1.6000000000000001E-3},null,"C","1950-01-01","9999-12-31",1,"Court Operations Officer",20000088,"C10",8810,1.6000000000000001E-3,55877.5,82698.7,88004,"ADMINISTRATIVE SUPP"]
[{"$f":"job_titles8[[#This Row],[Extended object ID]]","v":20000089},{"$f":"job_titles8[[#This Row],[WCI]]","v":8810},"9999-12-31",{"$f":"job_titles8[[#This Row],[WCI Rate]]","v":1.6000000000000001E-3},null,"C","1950-01-01","9999-12-31",1,"Legal Secretary",20000089,"C07",8810,1.6000000000000001E-3,50398.3,68037.710000000006,88004,"ADMINISTRATIVE SUPP"]
[{"$f":"job_titles8[[#This Row],[Extended object ID]]","v":20000090},{"$f":"job_titles8[[#This Row],[WCI]]","v":8810},"9999-12-31",{"$f":"job_titles8[[#This Row],[WCI Rate]]","v":1.6000000000000001E-3},null,"C","1950-01-01","9999-12-31",1,"Legal Secretary Sr",20000090,"C08",8810,1.6000000000000001E-3,52162.239999999998,75635.25,88004,"ADMINISTRATIVE SUPP"]
[{"$f":"job_titles8[[#This Row],[Extended object ID]]","v":20000091},{"$f":"job_titles8[[#This Row],[WCI]]","v":8810},"9999-12-31",{"$f":"job_titles8[[#This Row],[WCI Rate]]","v":1.6000000000000001E-3},null,"C","1950-01-01","9999-12-31",1,"Paralegal",20000091,"C09",8810,1.6000000000000001E-3,53987.92,78282.490000000005,88004,"ADMINISTRATIVE SUPP"]
[{"$f":"job_titles8[[#This Row],[Extended object ID]]","v":20000092},{"$f":"job_titles8[[#This Row],[WCI]]","v":8810},"9999-12-31",{"$f":"job_titles8[[#This Row],[WCI Rate]]","v":1.6000000000000001E-3},null,"C","1950-01-01","9999-12-31",1,"Paralegal Sr",20000092,"C11",8810,1.6000000000000001E-3,58112.6,87168.9,88004,"ADMINISTRATIVE SUPP"]
[{"$f":"job_titles8[[#This Row],[Extended object ID]]","v":20000093},{"$f":"job_titles8[[#This Row],[WCI]]","v":8810},"9999-12-31",{"$f":"job_titles8[[#This Row],[WCI Rate]]","v":1.6000000000000001E-3},null,"C","1950-01-01","9999-12-31",1,"Office Asst",20000093,"C02",8810,1.6000000000000001E-3,43264,56243.199999999997,88004,"ADMINISTRATIVE SUPP"]
[{"$f":"job_titles8[[#This Row],[Extended object ID]]","v":20000094},{"$f":"job_titles8[[#This Row],[WCI]]","v":8810},"9999-12-31",{"$f":"job_titles8[[#This Row],[WCI Rate]]","v":1.6000000000000001E-3},null,"C","1950-01-01","9999-12-31",1,"Office Specialist",20000094,"C04",8810,1.6000000000000001E-3,45898.78,59668.41,88004,"ADMINISTRATIVE SUPP"]
[{"$f":"job_titles8[[#This Row],[Extended object ID]]","v":20000095},{"$f":"job_titles8[[#This Row],[WCI]]","v":8810},"9999-12-31",{"$f":"job_titles8[[#This Row],[WCI Rate]]","v":1.6000000000000001E-3},null,"C","1950-01-01","9999-12-31",1,"Office Specialist Sr",20000095,"C06",8810,1.6000000000000001E-3,48694.01,65736.92,88004,"ADMINISTRATIVE SUPP"]
[{"$f":"job_titles8[[#This Row],[Extended object ID]]","v":20000096},{"$f":"job_titles8[[#This Row],[WCI]]","v":8810},"9999-12-31",{"$f":"job_titles8[[#This Row],[WCI Rate]]","v":1.6000000000000001E-3},null,"C","1950-01-01","9999-12-31",1,"Tax Specialist I",20000096,"C06",8810,1.6000000000000001E-3,48694.01,65736.92,88004,"ADMINISTRATIVE SUPP"]
[{"$f":"job_titles8[[#This Row],[Extended object ID]]","v":20000097},{"$f":"job_titles8[[#This Row],[WCI]]","v":8810},"9999-12-31",{"$f":"job_titles8[[#This Row],[WCI Rate]]","v":1.6000000000000001E-3},null,"C","1950-01-01","9999-12-31",1,"Tax Specialist II",20000097,"C07",8810,1.6000000000000001E-3,50398.3,68037.710000000006,88004,"ADMINISTRATIVE SUPP"]
[{"$f":"job_titles8[[#This Row],[Extended object ID]]","v":20000098},{"$f":"job_titles8[[#This Row],[WCI]]","v":8810},"9999-12-31",{"$f":"job_titles8[[#This Row],[WCI Rate]]","v":1.6000000000000001E-3},null,"C","1950-01-01","9999-12-31",1,"Tax Specialist III",20000098,"C08",8810,1.6000000000000001E-3,52162.239999999998,75635.25,88004,"ADMINISTRATIVE SUPP"]
[{"$f":"job_titles8[[#This Row],[Extended object ID]]","v":20000099},{"$f":"job_titles8[[#This Row],[WCI]]","v":8810},"9999-12-31",{"$f":"job_titles8[[#This Row],[WCI Rate]]","v":1.6000000000000001E-3},null,"C","1950-01-01","9999-12-31",1,"Administrative Asst I",20000099,"C05",8810,1.6000000000000001E-3,47275.74,61458.46,88004,"ADMINISTRATIVE SUPP"]
[{"$f":"job_titles8[[#This Row],[Extended object ID]]","v":20000100},{"$f":"job_titles8[[#This Row],[WCI]]","v":8810},"9999-12-31",{"$f":"job_titles8[[#This Row],[WCI Rate]]","v":1.6000000000000001E-3},null,"C","1950-01-01","9999-12-31",1,"Administrative Asst II",20000100,"C07",8810,1.6000000000000001E-3,50398.3,68037.710000000006,88004,"ADMINISTRATIVE SUPP"]
[{"$f":"job_titles8[[#This Row],[Extended object ID]]","v":20000101},{"$f":"job_titles8[[#This Row],[WCI]]","v":8810},"9999-12-31",{"$f":"job_titles8[[#This Row],[WCI Rate]]","v":1.6000000000000001E-3},null,"C","1950-01-01","9999-12-31",1,"Administrative Assoc",20000101,"C09",8810,1.6000000000000001E-3,53987.92,78282.490000000005,88004,"ADMINISTRATIVE SUPP"]
[{"$f":"job_titles8[[#This Row],[Extended object ID]]","v":20000102},{"$f":"job_titles8[[#This Row],[WCI]]","v":8810},"9999-12-31",{"$f":"job_titles8[[#This Row],[WCI Rate]]","v":1.6000000000000001E-3},null,"C","1950-01-01","9999-12-31",1,"Office Supv",20000102,"C08",8810,1.6000000000000001E-3,52162.239999999998,75635.25,88004,"ADMINISTRATIVE SUPP"]
[{"$f":"job_titles8[[#This Row],[Extended object ID]]","v":20000103},{"$f":"job_titles8[[#This Row],[WCI]]","v":8810},"9999-12-31",{"$f":"job_titles8[[#This Row],[WCI Rate]]","v":1.6000000000000001E-3},null,"C","1950-01-01","9999-12-31",1,"County Commissioners Court Specialist",20000103,"C08",8810,1.6000000000000001E-3,52162.239999999998,75635.25,88004,"ADMINISTRATIVE SUPP"]
[{"$f":"job_titles8[[#This Row],[Extended object ID]]","v":20000104},{"$f":"job_titles8[[#This Row],[WCI]]","v":8810},"9999-12-31",{"$f":"job_titles8[[#This Row],[WCI Rate]]","v":1.6000000000000001E-3},null,"C","1950-01-01","9999-12-31",1,"Executive Asst",20000104,"C10",8810,1.6000000000000001E-3,55877.5,82698.7,88004,"ADMINISTRATIVE SUPP"]
[{"$f":"job_titles8[[#This Row],[Extended object ID]]","v":20000105},{"$f":"job_titles8[[#This Row],[WCI]]","v":8810},"9999-12-31",{"$f":"job_titles8[[#This Row],[WCI Rate]]","v":1.6000000000000001E-3},null,"C","1950-01-01","9999-12-31",1,"Executive Asst-Elected Official",20000105,"C12",8810,1.6000000000000001E-3,60437.1,90655.66,88004,"ADMINISTRATIVE SUPP"]
[{"$f":"job_titles8[[#This Row],[Extended object ID]]","v":20000106},{"$f":"job_titles8[[#This Row],[WCI]]","v":8810},"9999-12-31",{"$f":"job_titles8[[#This Row],[WCI Rate]]","v":1.6000000000000001E-3},null,"C","1950-01-01","9999-12-31",1,"Mailroom Services Asst",20000106,"C02",8810,1.6000000000000001E-3,43264,56243.199999999997,88004,"ADMINISTRATIVE SUPP"]
[{"$f":"job_titles8[[#This Row],[Extended object ID]]","v":20000107},{"$f":"job_titles8[[#This Row],[WCI]]","v":8810},"9999-12-31",{"$f":"job_titles8[[#This Row],[WCI Rate]]","v":1.6000000000000001E-3},null,"C","1950-01-01","9999-12-31",1,"Mailroom Services Asst Sr",20000107,"C03",8810,1.6000000000000001E-3,44561.919999999998,57930.5,88004,"ADMINISTRATIVE SUPP"]
[{"$f":"job_titles8[[#This Row],[Extended object ID]]","v":20000108},{"$f":"job_titles8[[#This Row],[WCI]]","v":8810},"9999-12-31",{"$f":"job_titles8[[#This Row],[WCI Rate]]","v":1.6000000000000001E-3},null,"C","1950-01-01","9999-12-31",1,"Recording Specialist I",20000108,"C05",8810,1.6000000000000001E-3,47275.74,61458.46,88004,"ADMINISTRATIVE SUPP"]
[{"$f":"job_titles8[[#This Row],[Extended object ID]]","v":20000109},{"$f":"job_titles8[[#This Row],[WCI]]","v":8810},"9999-12-31",{"$f":"job_titles8[[#This Row],[WCI Rate]]","v":1.6000000000000001E-3},null,"C","1950-01-01","9999-12-31",1,"Recording Specialist II",20000109,"C07",8810,1.6000000000000001E-3,50398.3,68037.710000000006,88004,"ADMINISTRATIVE SUPP"]
[{"$f":"job_titles8[[#This Row],[Extended object ID]]","v":20000110},{"$f":"job_titles8[[#This Row],[WCI]]","v":8810},"9999-12-31",{"$f":"job_titles8[[#This Row],[WCI Rate]]","v":1.6000000000000001E-3},null,"C","1950-01-01","9999-12-31",1,"Recording Specialist Sr",20000110,"C08",8810,1.6000000000000001E-3,52162.239999999998,75635.25,88004,"ADMINISTRATIVE SUPP"]
[{"$f":"job_titles8[[#This Row],[Extended object ID]]","v":20000111},{"$f":"job_titles8[[#This Row],[WCI]]","v":8810},"9999-12-31",{"$f":"job_titles8[[#This Row],[WCI Rate]]","v":1.6000000000000001E-3},null,"C","1950-01-01","9999-12-31",1,"Interpreter",20000111,"C10",8810,1.6000000000000001E-3,55877.5,82698.7,88004,"ADMINISTRATIVE SUPP"]
[{"$f":"job_titles8[[#This Row],[Extended object ID]]","v":20000112},{"$f":"job_titles8[[#This Row],[WCI]]","v":8810},"9999-12-31",{"$f":"job_titles8[[#This Row],[WCI Rate]]","v":1.6000000000000001E-3},null,"C","1950-01-01","9999-12-31",1,"Interpreter Sr",20000112,"C11",8810,1.6000000000000001E-3,58112.6,87168.9,88004,"ADMINISTRATIVE SUPP"]
[{"$f":"job_titles8[[#This Row],[Extended object ID]]","v":20000113},{"$f":"job_titles8[[#This Row],[WCI]]","v":8810},"9999-12-31",{"$f":"job_titles8[[#This Row],[WCI Rate]]","v":1.6000000000000001E-3},null,"C","1950-01-01","9999-12-31",1,"Interpreter Language/Court Sr",20000113,"C11",8810,1.6000000000000001E-3,58112.6,87168.9,88004,"ADMINISTRATIVE SUPP"]
[{"$f":"job_titles8[[#This Row],[Extended object ID]]","v":20000114},{"$f":"job_titles8[[#This Row],[WCI]]","v":8810},"9999-12-31",{"$f":"job_titles8[[#This Row],[WCI Rate]]","v":1.6000000000000001E-3},null,"C","1950-01-01","9999-12-31",1,"Law Enforcement Specialist",20000114,"C07",8810,1.6000000000000001E-3,50398.3,68037.710000000006,88004,"ADMINISTRATIVE SUPP"]
[{"$f":"job_titles8[[#This Row],[Extended object ID]]","v":20000116},{"$f":"job_titles8[[#This Row],[WCI]]","v":8810},"9999-12-31",{"$f":"job_titles8[[#This Row],[WCI Rate]]","v":1.6000000000000001E-3},null,"C","1950-01-01","9999-12-31",1,"Accounting Clerk",20000116,"C05",8810,1.6000000000000001E-3,47275.74,61458.46,88005,"FINANCE"]
[{"$f":"job_titles8[[#This Row],[Extended object ID]]","v":20000117},{"$f":"job_titles8[[#This Row],[WCI]]","v":8810},"9999-12-31",{"$f":"job_titles8[[#This Row],[WCI Rate]]","v":1.6000000000000001E-3},null,"C","1950-01-01","9999-12-31",1,"Accountant Assoc",20000117,"C07",8810,1.6000000000000001E-3,50398.3,68037.710000000006,88005,"FINANCE"]
[{"$f":"job_titles8[[#This Row],[Extended object ID]]","v":20000118},{"$f":"job_titles8[[#This Row],[WCI]]","v":8810},"9999-12-31",{"$f":"job_titles8[[#This Row],[WCI Rate]]","v":1.6000000000000001E-3},null,"C","1950-01-01","9999-12-31",1,"Accountant",20000118,"C10",8810,1.6000000000000001E-3,55877.5,82698.7,88005,"FINANCE"]
[{"$f":"job_titles8[[#This Row],[Extended object ID]]","v":20000119},{"$f":"job_titles8[[#This Row],[WCI]]","v":8810},"9999-12-31",{"$f":"job_titles8[[#This Row],[WCI Rate]]","v":1.6000000000000001E-3},null,"C","1950-01-01","9999-12-31",1,"Accountant Sr",20000119,"C12",8810,1.6000000000000001E-3,60437.1,90655.66,88005,"FINANCE"]
[{"$f":"job_titles8[[#This Row],[Extended object ID]]","v":20000120},{"$f":"job_titles8[[#This Row],[WCI]]","v":8810},"9999-12-31",{"$f":"job_titles8[[#This Row],[WCI Rate]]","v":1.6000000000000001E-3},null,"C","1950-01-01","9999-12-31",1,"Accountant Lead",20000120,"C14",8810,1.6000000000000001E-3,66183.97,105894.35,88005,"FINANCE"]
[{"$f":"job_titles8[[#This Row],[Extended object ID]]","v":20000121},{"$f":"job_titles8[[#This Row],[WCI]]","v":8810},"9999-12-31",{"$f":"job_titles8[[#This Row],[WCI Rate]]","v":1.6000000000000001E-3},null,"C","1950-01-01","9999-12-31",1,"Financial Analyst",20000121,"C11",8810,1.6000000000000001E-3,58112.6,87168.9,88005,"FINANCE"]
[{"$f":"job_titles8[[#This Row],[Extended object ID]]","v":20000122},{"$f":"job_titles8[[#This Row],[WCI]]","v":8810},"9999-12-31",{"$f":"job_titles8[[#This Row],[WCI Rate]]","v":1.6000000000000001E-3},null,"C","1950-01-01","9999-12-31",1,"Financial Analyst Sr",20000122,"C13",8810,1.6000000000000001E-3,62854.59,100567.34,88005,"FINANCE"]
[{"$f":"job_titles8[[#This Row],[Extended object ID]]","v":20000123},{"$f":"job_titles8[[#This Row],[WCI]]","v":8810},"9999-12-31",{"$f":"job_titles8[[#This Row],[WCI Rate]]","v":1.6000000000000001E-3},null,"C","1950-01-01","9999-12-31",1,"Financial Analyst Lead",20000123,"C15",8810,1.6000000000000001E-3,70819.7,113311.53,88005,"FINANCE"]
[{"$f":"job_titles8[[#This Row],[Extended object ID]]","v":20000124},{"$f":"job_titles8[[#This Row],[WCI]]","v":8810},"9999-12-31",{"$f":"job_titles8[[#This Row],[WCI Rate]]","v":1.6000000000000001E-3},null,"C","1950-01-01","9999-12-31",1,"Financial Mgr",20000124,"C17",8810,1.6000000000000001E-3,81074.789999999994,129719.67,88005,"FINANCE"]
[{"$f":"job_titles8[[#This Row],[Extended object ID]]","v":20000127},{"$f":"job_titles8[[#This Row],[WCI]]","v":8810},"9999-12-31",{"$f":"job_titles8[[#This Row],[WCI Rate]]","v":1.6000000000000001E-3},null,"C","1950-01-01","9999-12-31",1,"Probate Auditor",20000127,"C11",8810,1.6000000000000001E-3,58112.6,87168.9,88005,"FINANCE"]
[{"$f":"job_titles8[[#This Row],[Extended object ID]]","v":20000131},{"$f":"job_titles8[[#This Row],[WCI]]","v":8810},"9999-12-31",{"$f":"job_titles8[[#This Row],[WCI Rate]]","v":1.6000000000000001E-3},null,"C","1950-01-01","9999-12-31",1,"Tax Supv",20000131,"C11",8810,1.6000000000000001E-3,58112.6,87168.9,88005,"FINANCE"]
[{"$f":"job_titles8[[#This Row],[Extended object ID]]","v":20000132},{"$f":"job_titles8[[#This Row],[WCI]]","v":8810},"9999-12-31",{"$f":"job_titles8[[#This Row],[WCI Rate]]","v":1.6000000000000001E-3},null,"C","1950-01-01","9999-12-31",1,"Forensic Accountant",20000132,"C13",8810,1.6000000000000001E-3,62854.59,100567.34,88005,"FINANCE"]
[{"$f":"job_titles8[[#This Row],[Extended object ID]]","v":20000133},{"$f":"job_titles8[[#This Row],[WCI]]","v":8810},"9999-12-31",{"$f":"job_titles8[[#This Row],[WCI Rate]]","v":1.6000000000000001E-3},null,"C","1950-01-01","9999-12-31",1,"Forensic Accountant Sr",20000133,"C15",8810,1.6000000000000001E-3,70819.7,113311.53,88005,"FINANCE"]
[{"$f":"job_titles8[[#This Row],[Extended object ID]]","v":20000134},{"$f":"job_titles8[[#This Row],[WCI]]","v":8810},"9999-12-31",{"$f":"job_titles8[[#This Row],[WCI Rate]]","v":1.6000000000000001E-3},null,"C","1950-01-01","9999-12-31",1,"Planning & Budget Analyst I",20000134,"C11",8810,1.6000000000000001E-3,58112.6,87168.9,88005,"FINANCE"]
[{"$f":"job_titles8[[#This Row],[Extended object ID]]","v":20000135},{"$f":"job_titles8[[#This Row],[WCI]]","v":8810},"9999-12-31",{"$f":"job_titles8[[#This Row],[WCI Rate]]","v":1.6000000000000001E-3},null,"C","1950-01-01","9999-12-31",1,"Planning & Budget Analyst II",20000135,"C13",8810,1.6000000000000001E-3,62854.59,100567.34,88005,"FINANCE"]
[{"$f":"job_titles8[[#This Row],[Extended object ID]]","v":20000136},{"$f":"job_titles8[[#This Row],[WCI]]","v":8810},"9999-12-31",{"$f":"job_titles8[[#This Row],[WCI Rate]]","v":1.6000000000000001E-3},null,"C","1950-01-01","9999-12-31",1,"Planning & Budget Analyst III",20000136,"C15",8810,1.6000000000000001E-3,70819.7,113311.53,88005,"FINANCE"]
[{"$f":"job_titles8[[#This Row],[Extended object ID]]","v":20000137},{"$f":"job_titles8[[#This Row],[WCI]]","v":8810},"9999-12-31",{"$f":"job_titles8[[#This Row],[WCI Rate]]","v":1.6000000000000001E-3},null,"C","1950-01-01","9999-12-31",1,"Planning & Budget Analyst Sr",20000137,"C17",8810,1.6000000000000001E-3,81074.789999999994,129719.67,88005,"FINANCE"]
[{"$f":"job_titles8[[#This Row],[Extended object ID]]","v":20000138},{"$f":"job_titles8[[#This Row],[WCI]]","v":8810},"9999-12-31",{"$f":"job_titles8[[#This Row],[WCI Rate]]","v":1.6000000000000001E-3},null,"C","1950-01-01","9999-12-31",1,"Law Clerk I",20000138,"C06",8810,1.6000000000000001E-3,48694.01,65736.92,88006,"ATTORNEYS"]
[{"$f":"job_titles8[[#This Row],[Extended object ID]]","v":20000139},{"$f":"job_titles8[[#This Row],[WCI]]","v":8810},"9999-12-31",{"$f":"job_titles8[[#This Row],[WCI Rate]]","v":1.6000000000000001E-3},null,"C","1950-01-01","9999-12-31",1,"Law Clerk II",20000139,"C10",8810,1.6000000000000001E-3,55877.5,82698.7,88006,"ATTORNEYS"]
[{"$f":"job_titles8[[#This Row],[Extended object ID]]","v":20000140},{"$f":"job_titles8[[#This Row],[WCI]]","v":8810},"9999-12-31",{"$f":"job_titles8[[#This Row],[WCI Rate]]","v":1.6000000000000001E-3},null,"C","1950-01-01","9999-12-31",1,"Attorney I",20000140,"C14",8810,1.6000000000000001E-3,66183.97,105894.35,88006,"ATTORNEYS"]
[{"$f":"job_titles8[[#This Row],[Extended object ID]]","v":20000141},{"$f":"job_titles8[[#This Row],[WCI]]","v":8810},"9999-12-31",{"$f":"job_titles8[[#This Row],[WCI Rate]]","v":1.6000000000000001E-3},null,"C","1950-01-01","9999-12-31",1,"Attorney II",20000141,"C15",8810,1.6000000000000001E-3,70819.7,113311.53,88006,"ATTORNEYS"]
[{"$f":"job_titles8[[#This Row],[Extended object ID]]","v":20000142},{"$f":"job_titles8[[#This Row],[WCI]]","v":8810},"9999-12-31",{"$f":"job_titles8[[#This Row],[WCI Rate]]","v":1.6000000000000001E-3},null,"C","1950-01-01","9999-12-31",1,"Attorney III",20000142,"C17",8810,1.6000000000000001E-3,81074.789999999994,129719.67,88006,"ATTORNEYS"]
[{"$f":"job_titles8[[#This Row],[Extended object ID]]","v":20000143},{"$f":"job_titles8[[#This Row],[WCI]]","v":8810},"9999-12-31",{"$f":"job_titles8[[#This Row],[WCI Rate]]","v":1.6000000000000001E-3},null,"C","1950-01-01","9999-12-31",1,"Attorney IV",20000143,"C18",8810,1.6000000000000001E-3,86761.41,138818.25,88006,"ATTORNEYS"]
[{"$f":"job_titles8[[#This Row],[Extended object ID]]","v":20000144},{"$f":"job_titles8[[#This Row],[WCI]]","v":8810},"9999-12-31",{"$f":"job_titles8[[#This Row],[WCI Rate]]","v":1.6000000000000001E-3},null,"C","1950-01-01","9999-12-31",1,"Attorney V",20000144,"C20",8810,1.6000000000000001E-3,99345.18,158952.29,88006,"ATTORNEYS"]
[{"$f":"job_titles8[[#This Row],[Extended object ID]]","v":20000145},{"$f":"job_titles8[[#This Row],[WCI]]","v":8810},"9999-12-31",{"$f":"job_titles8[[#This Row],[WCI Rate]]","v":1.6000000000000001E-3},null,"C","1950-01-01","9999-12-31",1,"Attorney VI",20000145,"C21",8810,1.6000000000000001E-3,106310.9,175412.99,88006,"ATTORNEYS"]
[{"$f":"job_titles8[[#This Row],[Extended object ID]]","v":20000146},{"$f":"job_titles8[[#This Row],[WCI]]","v":8810},"9999-12-31",{"$f":"job_titles8[[#This Row],[WCI Rate]]","v":1.6000000000000001E-3},null,"C","1950-01-01","9999-12-31",1,"Attorney VII",20000146,"C22",8810,1.6000000000000001E-3,113755.98,187697.37,88006,"ATTORNEYS"]
[{"$f":"job_titles8[[#This Row],[Extended object ID]]","v":20000148},{"$f":"job_titles8[[#This Row],[WCI]]","v":8810},"9999-12-31",{"$f":"job_titles8[[#This Row],[WCI Rate]]","v":1.6000000000000001E-3},null,"C","1950-01-01","9999-12-31",1,"County Executive JPS",20000148,"C27",8810,1.6000000000000001E-3,159548.98000000001,263255.82,88007,"COUNTY EXECUTIVES"]
[{"$f":"job_titles8[[#This Row],[Extended object ID]]","v":20000149},{"$f":"job_titles8[[#This Row],[WCI]]","v":8810},"9999-12-31",{"$f":"job_titles8[[#This Row],[WCI Rate]]","v":1.6000000000000001E-3},null,"C","1950-01-01","9999-12-31",1,"County Executive ES",20000149,"GRD27",8810,1.6000000000000001E-3,77956.53,124730.53,88007,"COUNTY EXECUTIVES"]
[{"$f":"job_titles8[[#This Row],[Extended object ID]]","v":20000150},{"$f":"job_titles8[[#This Row],[WCI]]","v":8810},"9999-12-31",{"$f":"job_titles8[[#This Row],[WCI Rate]]","v":1.6000000000000001E-3},null,"C","1950-01-01","9999-12-31",1,"County Executive HHS",20000150,"C27",8810,1.6000000000000001E-3,159548.98000000001,263255.82,88007,"COUNTY EXECUTIVES",null,"331702.33319999999"]
[{"$f":"job_titles8[[#This Row],[Extended object ID]]","v":20000151},{"$f":"job_titles8[[#This Row],[WCI]]","v":8810},"9999-12-31",{"$f":"job_titles8[[#This Row],[WCI Rate]]","v":1.6000000000000001E-3},null,"C","1950-01-01","9999-12-31",1,"County Executive PBO",20000151,"C27",8810,1.6000000000000001E-3,159548.98000000001,263255.82,88007,"COUNTY EXECUTIVES"]
[{"$f":"job_titles8[[#This Row],[Extended object ID]]","v":20000152},{"$f":"job_titles8[[#This Row],[WCI]]","v":8810},"9999-12-31",{"$f":"job_titles8[[#This Row],[WCI Rate]]","v":1.6000000000000001E-3},null,"C","1950-01-01","9999-12-31",1,"County Executive TNR",20000152,"C27",8810,1.6000000000000001E-3,159548.98000000001,263255.82,88007,"COUNTY EXECUTIVES"]
[{"$f":"job_titles8[[#This Row],[Extended object ID]]","v":20000153},{"$f":"job_titles8[[#This Row],[WCI]]","v":8810},"9999-12-31",{"$f":"job_titles8[[#This Row],[WCI Rate]]","v":1.6000000000000001E-3},null,"C","1950-01-01","9999-12-31",1,"Planner Mgmt Research Asst",20000153,"C04",8810,1.6000000000000001E-3,45898.78,59668.41,88008,"PLANNING & RESEARCH"]
[{"$f":"job_titles8[[#This Row],[Extended object ID]]","v":20000154},{"$f":"job_titles8[[#This Row],[WCI]]","v":8810},"9999-12-31",{"$f":"job_titles8[[#This Row],[WCI Rate]]","v":1.6000000000000001E-3},null,"C","1950-01-01","9999-12-31",1,"Planner Mgmt Research Specialist Assoc",20000154,"C07",8810,1.6000000000000001E-3,50398.3,68037.710000000006,88008,"PLANNING & RESEARCH"]
[{"$f":"job_titles8[[#This Row],[Extended object ID]]","v":20000155},{"$f":"job_titles8[[#This Row],[WCI]]","v":8810},"9999-12-31",{"$f":"job_titles8[[#This Row],[WCI Rate]]","v":1.6000000000000001E-3},null,"C","1950-01-01","9999-12-31",1,"Planner Mgmt Research Specialist",20000155,"C09",8810,1.6000000000000001E-3,53987.92,78282.490000000005,88008,"PLANNING & RESEARCH"]
[{"$f":"job_titles8[[#This Row],[Extended object ID]]","v":20000156},{"$f":"job_titles8[[#This Row],[WCI]]","v":8810},"9999-12-31",{"$f":"job_titles8[[#This Row],[WCI Rate]]","v":1.6000000000000001E-3},null,"C","1950-01-01","9999-12-31",1,"Planner Mgmt Research Specialist Sr",20000156,"C11",8810,1.6000000000000001E-3,58112.6,87168.9,88008,"PLANNING & RESEARCH"]
[{"$f":"job_titles8[[#This Row],[Extended object ID]]","v":20000157},{"$f":"job_titles8[[#This Row],[WCI]]","v":8810},"9999-12-31",{"$f":"job_titles8[[#This Row],[WCI Rate]]","v":1.6000000000000001E-3},null,"C","1950-01-01","9999-12-31",1,"Planner",20000157,"C11",8810,1.6000000000000001E-3,58112.6,87168.9,88008,"PLANNING & RESEARCH"]
[{"$f":"job_titles8[[#This Row],[Extended object ID]]","v":20000158},{"$f":"job_titles8[[#This Row],[WCI]]","v":8810},"9999-12-31",{"$f":"job_titles8[[#This Row],[WCI Rate]]","v":1.6000000000000001E-3},null,"C","1950-01-01","9999-12-31",1,"Planner Sr",20000158,"C13",8810,1.6000000000000001E-3,62854.59,100567.34,88008,"PLANNING & RESEARCH"]
[{"$f":"job_titles8[[#This Row],[Extended object ID]]","v":20000159},{"$f":"job_titles8[[#This Row],[WCI]]","v":8810},"9999-12-31",{"$f":"job_titles8[[#This Row],[WCI Rate]]","v":1.6000000000000001E-3},null,"C","1950-01-01","9999-12-31",1,"Planning Mgr",20000159,"C16",8810,1.6000000000000001E-3,75776.03,121241.65,88008,"PLANNING & RESEARCH"]
[{"$f":"job_titles8[[#This Row],[Extended object ID]]","v":20000160},{"$f":"job_titles8[[#This Row],[WCI]]","v":8601},"9999-12-31",{"$f":"job_titles8[[#This Row],[WCI Rate]]","v":1.8E-3},null,"C","1950-01-01","9999-12-31",1,"Engineering Tech",20000160,"C06",8601,1.8E-3,48694.01,65736.92,88009,"ENGINEERING & ARCHITECTURAL"]
[{"$f":"job_titles8[[#This Row],[Extended object ID]]","v":20000161},{"$f":"job_titles8[[#This Row],[WCI]]","v":8601},"9999-12-31",{"$f":"job_titles8[[#This Row],[WCI Rate]]","v":1.8E-3},null,"C","1950-01-01","9999-12-31",1,"Engineering Tech Sr",20000161,"C08",8601,1.8E-3,52162.239999999998,75635.25,88009,"ENGINEERING & ARCHITECTURAL"]
[{"$f":"job_titles8[[#This Row],[Extended object ID]]","v":20000162},{"$f":"job_titles8[[#This Row],[WCI]]","v":8601},"9999-12-31",{"$f":"job_titles8[[#This Row],[WCI Rate]]","v":1.8E-3},null,"C","1950-01-01","9999-12-31",1,"Engineering Specialist",20000162,"C10",8601,1.8E-3,55877.5,82698.7,88009,"ENGINEERING & ARCHITECTURAL"]
[{"$f":"job_titles8[[#This Row],[Extended object ID]]","v":20000163},{"$f":"job_titles8[[#This Row],[WCI]]","v":8601},"9999-12-31",{"$f":"job_titles8[[#This Row],[WCI Rate]]","v":1.8E-3},null,"C","1950-01-01","9999-12-31",1,"Engineering Specialist Sr",20000163,"C12",8601,1.8E-3,60437.1,90655.66,88009,"ENGINEERING & ARCHITECTURAL"]
[{"$f":"job_titles8[[#This Row],[Extended object ID]]","v":20000164},{"$f":"job_titles8[[#This Row],[WCI]]","v":8601},"9999-12-31",{"$f":"job_titles8[[#This Row],[WCI Rate]]","v":1.8E-3},null,"C","1950-01-01","9999-12-31",1,"Engineering Assoc",20000164,"C14",8601,1.8E-3,66183.97,105894.35,88009,"ENGINEERING & ARCHITECTURAL"]
[{"$f":"job_titles8[[#This Row],[Extended object ID]]","v":20000165},{"$f":"job_titles8[[#This Row],[WCI]]","v":8601},"9999-12-31",{"$f":"job_titles8[[#This Row],[WCI Rate]]","v":1.8E-3},null,"C","1950-01-01","9999-12-31",1,"Engineer",20000165,"C16",8601,1.8E-3,75776.03,121241.65,88009,"ENGINEERING & ARCHITECTURAL"]
[{"$f":"job_titles8[[#This Row],[Extended object ID]]","v":20000166},{"$f":"job_titles8[[#This Row],[WCI]]","v":8601},"9999-12-31",{"$f":"job_titles8[[#This Row],[WCI Rate]]","v":1.8E-3},null,"C","1950-01-01","9999-12-31",1,"Engineer Sr",20000166,"C18",8601,1.8E-3,86761.41,138818.25,88009,"ENGINEERING & ARCHITECTURAL"]
[{"$f":"job_titles8[[#This Row],[Extended object ID]]","v":20000167},{"$f":"job_titles8[[#This Row],[WCI]]","v":8601},"9999-12-31",{"$f":"job_titles8[[#This Row],[WCI Rate]]","v":1.8E-3},null,"C","1950-01-01","9999-12-31",1,"Architectural Assoc",20000167,"C12",8601,1.8E-3,60437.1,90655.66,88009,"ENGINEERING & ARCHITECTURAL"]
[{"$f":"job_titles8[[#This Row],[Extended object ID]]","v":20000168},{"$f":"job_titles8[[#This Row],[WCI]]","v":8601},"9999-12-31",{"$f":"job_titles8[[#This Row],[WCI Rate]]","v":1.8E-3},null,"C","1950-01-01","9999-12-31",1,"Architectural Assoc Sr",20000168,"C14",8601,1.8E-3,66183.97,105894.35,88009,"ENGINEERING & ARCHITECTURAL"]
[{"$f":"job_titles8[[#This Row],[Extended object ID]]","v":20000169},{"$f":"job_titles8[[#This Row],[WCI]]","v":8601},"9999-12-31",{"$f":"job_titles8[[#This Row],[WCI Rate]]","v":1.8E-3},null,"C","1950-01-01","9999-12-31",1,"Facilities Project Mgr",20000169,"C16",8601,1.8E-3,75776.03,121241.65,88009,"ENGINEERING & ARCHITECTURAL"]
[{"$f":"job_titles8[[#This Row],[Extended object ID]]","v":20000170},{"$f":"job_titles8[[#This Row],[WCI]]","v":8601},"9999-12-31",{"$f":"job_titles8[[#This Row],[WCI Rate]]","v":1.8E-3},null,"C","1950-01-01","9999-12-31",1,"Facilities Project Mgr Sr",20000170,"C18",8601,1.8E-3,86761.41,138818.25,88009,"ENGINEERING & ARCHITECTURAL"]
[{"$f":"job_titles8[[#This Row],[Extended object ID]]","v":20000171},{"$f":"job_titles8[[#This Row],[WCI]]","v":8601},"9999-12-31",{"$f":"job_titles8[[#This Row],[WCI Rate]]","v":1.8E-3},null,"C","1950-01-01","9999-12-31",1,"Cost Estimator",20000171,"C14",8601,1.8E-3,66183.97,105894.35,88009,"ENGINEERING & ARCHITECTURAL"]
[{"$f":"job_titles8[[#This Row],[Extended object ID]]","v":20000173},{"$f":"job_titles8[[#This Row],[WCI]]","v":8601},"9999-12-31",{"$f":"job_titles8[[#This Row],[WCI Rate]]","v":1.8E-3},null,"C","1950-01-01","9999-12-31",1,"Engineering Inspector Specialist",20000173,"C09",8601,1.8E-3,53987.92,78282.490000000005,88009,"ENGINEERING & ARCHITECTURAL"]
[{"$f":"job_titles8[[#This Row],[Extended object ID]]","v":20000174},{"$f":"job_titles8[[#This Row],[WCI]]","v":8601},"9999-12-31",{"$f":"job_titles8[[#This Row],[WCI Rate]]","v":1.8E-3},null,"C","1950-01-01","9999-12-31",1,"Engineering Inspector Specialist Sr",20000174,"C11",8601,1.8E-3,58112.6,87168.9,88009,"ENGINEERING & ARCHITECTURAL"]
[{"$f":"job_titles8[[#This Row],[Extended object ID]]","v":20000175},{"$f":"job_titles8[[#This Row],[WCI]]","v":8601},"9999-12-31",{"$f":"job_titles8[[#This Row],[WCI Rate]]","v":1.8E-3},null,"C","1950-01-01","9999-12-31",1,"Survey Crew Tech",20000175,"C04",8601,1.8E-3,45898.78,59668.41,88009,"ENGINEERING & ARCHITECTURAL"]
[{"$f":"job_titles8[[#This Row],[Extended object ID]]","v":20000176},{"$f":"job_titles8[[#This Row],[WCI]]","v":8601},"9999-12-31",{"$f":"job_titles8[[#This Row],[WCI Rate]]","v":1.8E-3},null,"C","1950-01-01","9999-12-31",1,"Survey Crew Spc",20000176,"C06",8601,1.8E-3,48694.01,65736.92,88009,"ENGINEERING & ARCHITECTURAL"]
[{"$f":"job_titles8[[#This Row],[Extended object ID]]","v":20000177},{"$f":"job_titles8[[#This Row],[WCI]]","v":8601},"9999-12-31",{"$f":"job_titles8[[#This Row],[WCI Rate]]","v":1.8E-3},null,"C","1950-01-01","9999-12-31",1,"Survey Records Mgr",20000177,"C14",8601,1.8E-3,66183.97,105894.35,88009,"ENGINEERING & ARCHITECTURAL"]
[{"$f":"job_titles8[[#This Row],[Extended object ID]]","v":20000178},{"$f":"job_titles8[[#This Row],[WCI]]","v":8601},"9999-12-31",{"$f":"job_titles8[[#This Row],[WCI Rate]]","v":1.8E-3},null,"C","1950-01-01","9999-12-31",1,"GIS Specialist",20000178,"C08",8601,1.8E-3,52162.239999999998,75635.25,88009,"ENGINEERING & ARCHITECTURAL"]
[{"$f":"job_titles8[[#This Row],[Extended object ID]]","v":20000179},{"$f":"job_titles8[[#This Row],[WCI]]","v":8601},"9999-12-31",{"$f":"job_titles8[[#This Row],[WCI Rate]]","v":1.8E-3},null,"C","1950-01-01","9999-12-31",1,"GIS Analyst",20000179,"C11",8601,1.8E-3,58112.6,87168.9,88009,"ENGINEERING & ARCHITECTURAL"]
[{"$f":"job_titles8[[#This Row],[Extended object ID]]","v":20000180},{"$f":"job_titles8[[#This Row],[WCI]]","v":8601},"9999-12-31",{"$f":"job_titles8[[#This Row],[WCI Rate]]","v":1.8E-3},null,"C","1950-01-01","9999-12-31",1,"GIS Coord",20000180,"C13",8601,1.8E-3,62854.59,100567.34,88009,"ENGINEERING & ARCHITECTURAL"]
[{"$f":"job_titles8[[#This Row],[Extended object ID]]","v":20000183},{"$f":"job_titles8[[#This Row],[WCI]]","v":8810},"9999-12-31",{"$f":"job_titles8[[#This Row],[WCI Rate]]","v":1.6000000000000001E-3},null,"C","1950-01-01","9999-12-31",1,"Contract Compliance Specialist",20000183,"C13",8810,1.6000000000000001E-3,62854.59,100567.34,88010,"PURCHASING & INVENTORY CONTROL"]
[{"$f":"job_titles8[[#This Row],[Extended object ID]]","v":20000184},{"$f":"job_titles8[[#This Row],[WCI]]","v":8810},"9999-12-31",{"$f":"job_titles8[[#This Row],[WCI Rate]]","v":1.6000000000000001E-3},null,"C","1950-01-01","9999-12-31",1,"Chaplain",20000184,"C10",8810,1.6000000000000001E-3,55877.5,82698.7,88011,"SOCIAL SVCS"]
[{"$f":"job_titles8[[#This Row],[Extended object ID]]","v":20000185},{"$f":"job_titles8[[#This Row],[WCI]]","v":8810},"9999-12-31",{"$f":"job_titles8[[#This Row],[WCI Rate]]","v":1.6000000000000001E-3},null,"C","1950-01-01","9999-12-31",1,"Chaplain Sr",20000185,"C11",8810,1.6000000000000001E-3,58112.6,87168.9,88011,"SOCIAL SVCS"]
[{"$f":"job_titles8[[#This Row],[Extended object ID]]","v":20000186},{"$f":"job_titles8[[#This Row],[WCI]]","v":8810},"9999-12-31",{"$f":"job_titles8[[#This Row],[WCI Rate]]","v":1.6000000000000001E-3},null,"C","1950-01-01","9999-12-31",1,"Counselor",20000186,"C09",8810,1.6000000000000001E-3,53987.92,78282.490000000005,88011,"SOCIAL SVCS"]
[{"$f":"job_titles8[[#This Row],[Extended object ID]]","v":20000187},{"$f":"job_titles8[[#This Row],[WCI]]","v":8810},"9999-12-31",{"$f":"job_titles8[[#This Row],[WCI Rate]]","v":1.6000000000000001E-3},null,"C","1950-01-01","9999-12-31",1,"Counselor Sr",20000187,"C10",8810,1.6000000000000001E-3,55877.5,82698.7,88011,"SOCIAL SVCS"]
[{"$f":"job_titles8[[#This Row],[Extended object ID]]","v":20000188},{"$f":"job_titles8[[#This Row],[WCI]]","v":8810},"9999-12-31",{"$f":"job_titles8[[#This Row],[WCI Rate]]","v":1.6000000000000001E-3},null,"C","1950-01-01","9999-12-31",1,"Victim Counselor",20000188,"C09",8810,1.6000000000000001E-3,53987.92,78282.490000000005,88011,"SOCIAL SVCS"]
[{"$f":"job_titles8[[#This Row],[Extended object ID]]","v":20000189},{"$f":"job_titles8[[#This Row],[WCI]]","v":8810},"9999-12-31",{"$f":"job_titles8[[#This Row],[WCI Rate]]","v":1.6000000000000001E-3},null,"C","1950-01-01","9999-12-31",1,"Victim Counselor Sr",20000189,"C10",8810,1.6000000000000001E-3,55877.5,82698.7,88011,"SOCIAL SVCS"]
[{"$f":"job_titles8[[#This Row],[Extended object ID]]","v":20000190},{"$f":"job_titles8[[#This Row],[WCI]]","v":8810},"9999-12-31",{"$f":"job_titles8[[#This Row],[WCI Rate]]","v":1.6000000000000001E-3},null,"C","1950-01-01","9999-12-31",1,"Chemical Dependency Counselor",20000190,"C09",8810,1.6000000000000001E-3,53987.92,78282.490000000005,88011,"SOCIAL SVCS"]
[{"$f":"job_titles8[[#This Row],[Extended object ID]]","v":20000191},{"$f":"job_titles8[[#This Row],[WCI]]","v":8810},"9999-12-31",{"$f":"job_titles8[[#This Row],[WCI Rate]]","v":1.6000000000000001E-3},null,"C","1950-01-01","9999-12-31",1,"Chemical Dependency Counselor Sr",20000191,"C10",8810,1.6000000000000001E-3,55877.5,82698.7,88011,"SOCIAL SVCS"]
[{"$f":"job_titles8[[#This Row],[Extended object ID]]","v":20000192},{"$f":"job_titles8[[#This Row],[WCI]]","v":8810},"9999-12-31",{"$f":"job_titles8[[#This Row],[WCI Rate]]","v":1.6000000000000001E-3},null,"C","1950-01-01","9999-12-31",1,"Social Services Aide",20000192,"C02",8810,1.6000000000000001E-3,43264,56243.199999999997,88011,"SOCIAL SVCS"]
[{"$f":"job_titles8[[#This Row],[Extended object ID]]","v":20000193},{"$f":"job_titles8[[#This Row],[WCI]]","v":8810},"9999-12-31",{"$f":"job_titles8[[#This Row],[WCI Rate]]","v":1.6000000000000001E-3},null,"C","1950-01-01","9999-12-31",1,"Social Services Asst",20000193,"C03",8810,1.6000000000000001E-3,44561.919999999998,57930.5,88011,"SOCIAL SVCS"]
[{"$f":"job_titles8[[#This Row],[Extended object ID]]","v":20000195},{"$f":"job_titles8[[#This Row],[WCI]]","v":8810},"9999-12-31",{"$f":"job_titles8[[#This Row],[WCI Rate]]","v":1.6000000000000001E-3},null,"C","1950-01-01","9999-12-31",1,"Case Worker",20000195,"C09",8810,1.6000000000000001E-3,53987.92,78282.490000000005,88011,"SOCIAL SVCS"]
[{"$f":"job_titles8[[#This Row],[Extended object ID]]","v":20000197},{"$f":"job_titles8[[#This Row],[WCI]]","v":8810},"9999-12-31",{"$f":"job_titles8[[#This Row],[WCI Rate]]","v":1.6000000000000001E-3},null,"C","1950-01-01","9999-12-31",1,"Social Services Program Specialist Assoc",20000197,"C05",8810,1.6000000000000001E-3,47275.74,61458.46,88011,"SOCIAL SVCS"]
[{"$f":"job_titles8[[#This Row],[Extended object ID]]","v":20000198},{"$f":"job_titles8[[#This Row],[WCI]]","v":8810},"9999-12-31",{"$f":"job_titles8[[#This Row],[WCI Rate]]","v":1.6000000000000001E-3},null,"C","1950-01-01","9999-12-31",1,"Social Services Program Specialist",20000198,"C08",8810,1.6000000000000001E-3,52162.239999999998,75635.25,88011,"SOCIAL SVCS"]
[{"$f":"job_titles8[[#This Row],[Extended object ID]]","v":20000199},{"$f":"job_titles8[[#This Row],[WCI]]","v":8810},"9999-12-31",{"$f":"job_titles8[[#This Row],[WCI Rate]]","v":1.6000000000000001E-3},null,"C","1950-01-01","9999-12-31",1,"Social Services Program Coord",20000199,"C11",8810,1.6000000000000001E-3,58112.6,87168.9,88011,"SOCIAL SVCS"]
[{"$f":"job_titles8[[#This Row],[Extended object ID]]","v":20000200},{"$f":"job_titles8[[#This Row],[WCI]]","v":8810},"9999-12-31",{"$f":"job_titles8[[#This Row],[WCI Rate]]","v":1.6000000000000001E-3},null,"C","1950-01-01","9999-12-31",1,"Social Services Mgr",20000200,"C13",8810,1.6000000000000001E-3,62854.59,100567.34,88011,"SOCIAL SVCS"]
[{"$f":"job_titles8[[#This Row],[Extended object ID]]","v":20000201},{"$f":"job_titles8[[#This Row],[WCI]]","v":8810},"9999-12-31",{"$f":"job_titles8[[#This Row],[WCI Rate]]","v":1.6000000000000001E-3},null,"C","1950-01-01","9999-12-31",1,"Social Services Program Administrator",20000201,"C14",8810,1.6000000000000001E-3,66183.97,105894.35,88011,"SOCIAL SVCS"]
[{"$f":"job_titles8[[#This Row],[Extended object ID]]","v":20000202},{"$f":"job_titles8[[#This Row],[WCI]]","v":8810},"9999-12-31",{"$f":"job_titles8[[#This Row],[WCI Rate]]","v":1.6000000000000001E-3},null,"C","1950-01-01","9999-12-31",1,"Social Worker",20000202,"C11",8810,1.6000000000000001E-3,58112.6,87168.9,88011,"SOCIAL SVCS"]
[{"$f":"job_titles8[[#This Row],[Extended object ID]]","v":20000203},{"$f":"job_titles8[[#This Row],[WCI]]","v":8832},"9999-12-31",{"$f":"job_titles8[[#This Row],[WCI Rate]]","v":1.9E-3},null,"C","1950-01-01","9999-12-31",1,"Psychologist",20000203,"C16",8832,1.9E-3,75776.03,121241.65,88011,"SOCIAL SVCS"]
[{"$f":"job_titles8[[#This Row],[Extended object ID]]","v":20000205},{"$f":"job_titles8[[#This Row],[WCI]]","v":8810},"9999-12-31",{"$f":"job_titles8[[#This Row],[WCI Rate]]","v":1.6000000000000001E-3},null,"C","1950-01-01","9999-12-31",1,"Dispatcher",20000205,"C04",8810,1.6000000000000001E-3,45898.78,59668.41,88012,"PUBLIC SAF/EMG MGMT"]
[{"$f":"job_titles8[[#This Row],[Extended object ID]]","v":20000206},{"$f":"job_titles8[[#This Row],[WCI]]","v":8810},"9999-12-31",{"$f":"job_titles8[[#This Row],[WCI Rate]]","v":1.6000000000000001E-3},null,"C","1950-01-01","9999-12-31",1,"Security Coord",20000206,"C06",8810,1.6000000000000001E-3,48694.01,65736.92,88012,"PUBLIC SAF/EMG MGMT"]
[{"$f":"job_titles8[[#This Row],[Extended object ID]]","v":20000208},{"$f":"job_titles8[[#This Row],[WCI]]","v":8810},"9999-12-31",{"$f":"job_titles8[[#This Row],[WCI Rate]]","v":1.6000000000000001E-3},null,"C","1950-01-01","9999-12-31",1,"Telecomm 911 Specialist",20000208,"C08",8810,1.6000000000000001E-3,52162.239999999998,75635.25,88012,"PUBLIC SAF/EMG MGMT"]
[{"$f":"job_titles8[[#This Row],[Extended object ID]]","v":20000209},{"$f":"job_titles8[[#This Row],[WCI]]","v":8810},"9999-12-31",{"$f":"job_titles8[[#This Row],[WCI Rate]]","v":1.6000000000000001E-3},null,"C","1950-01-01","9999-12-31",1,"Telecomm 911 Specialist Sr",20000209,"C09",8810,1.6000000000000001E-3,53987.92,78282.490000000005,88012,"PUBLIC SAF/EMG MGMT"]
[{"$f":"job_titles8[[#This Row],[Extended object ID]]","v":20000210},{"$f":"job_titles8[[#This Row],[WCI]]","v":8810},"9999-12-31",{"$f":"job_titles8[[#This Row],[WCI Rate]]","v":1.6000000000000001E-3},null,"C","1950-01-01","9999-12-31",1,"Telecomm 911 Specialist Supv",20000210,"C11",8810,1.6000000000000001E-3,58112.6,87168.9,88012,"PUBLIC SAF/EMG MGMT"]
[{"$f":"job_titles8[[#This Row],[Extended object ID]]","v":20000211},{"$f":"job_titles8[[#This Row],[WCI]]","v":8810},"9999-12-31",{"$f":"job_titles8[[#This Row],[WCI Rate]]","v":1.6000000000000001E-3},null,"C","1950-01-01","9999-12-31",1,"Telecomm 911 Mgr",20000211,"C15",8810,1.6000000000000001E-3,70819.7,113311.53,88012,"PUBLIC SAF/EMG MGMT"]
[{"$f":"job_titles8[[#This Row],[Extended object ID]]","v":20000212},{"$f":"job_titles8[[#This Row],[WCI]]","v":7720},"9999-12-31",{"$f":"job_titles8[[#This Row],[WCI Rate]]","v":1.55E-2},null,"C","1950-01-01","9999-12-31",1,"Crime Scene Specialist",20000212,"C09",7720,1.55E-2,53987.92,78282.490000000005,88012,"PUBLIC SAF/EMG MGMT"]
[{"$f":"job_titles8[[#This Row],[Extended object ID]]","v":20000214},{"$f":"job_titles8[[#This Row],[WCI]]","v":7720},"9999-12-31",{"$f":"job_titles8[[#This Row],[WCI Rate]]","v":1.55E-2},null,"C","1950-01-01","9999-12-31",1,"Investigations Chief",20000214,"C19",7720,1.55E-2,92836.33,148538.12,88012,"PUBLIC SAF/EMG MGMT"]
[{"$f":"job_titles8[[#This Row],[Extended object ID]]","v":20000215},{"$f":"job_titles8[[#This Row],[WCI]]","v":7720},"9999-12-31",{"$f":"job_titles8[[#This Row],[WCI Rate]]","v":1.55E-2},null,"C","1950-01-01","9999-12-31",1,"Corrections Captain",20000215,"C20",7720,1.55E-2,99345.18,158952.29,88012,"PUBLIC SAF/EMG MGMT"]
[{"$f":"job_titles8[[#This Row],[Extended object ID]]","v":20000216},{"$f":"job_titles8[[#This Row],[WCI]]","v":7720},"9999-12-31",{"$f":"job_titles8[[#This Row],[WCI Rate]]","v":1.55E-2},null,"C","1950-01-01","9999-12-31",1,"Law Enforcement Captain",20000216,"C20",7720,1.55E-2,99345.18,158952.29,88012,"PUBLIC SAF/EMG MGMT"]
[{"$f":"job_titles8[[#This Row],[Extended object ID]]","v":20000217},{"$f":"job_titles8[[#This Row],[WCI]]","v":7720},"9999-12-31",{"$f":"job_titles8[[#This Row],[WCI Rate]]","v":1.55E-2},null,"C","1950-01-01","9999-12-31",1,"Major",20000217,"C22",7720,1.55E-2,113755.98,187697.37,88012,"PUBLIC SAF/EMG MGMT"]
[{"$f":"job_titles8[[#This Row],[Extended object ID]]","v":20000218},{"$f":"job_titles8[[#This Row],[WCI]]","v":7720},"9999-12-31",{"$f":"job_titles8[[#This Row],[WCI Rate]]","v":1.55E-2},null,"C","1950-01-01","9999-12-31",1,"Sheriff Chief Deputy",20000218,"C23",7720,1.55E-2,121718.94,200836.25,88012,"PUBLIC SAF/EMG MGMT"]
[{"$f":"job_titles8[[#This Row],[Extended object ID]]","v":20000220},{"$f":"job_titles8[[#This Row],[WCI]]","v":8810},"9999-12-31",{"$f":"job_titles8[[#This Row],[WCI Rate]]","v":1.6000000000000001E-3},null,"C","1950-01-01","9999-12-31",1,"Deputy Emergency Management Coordinator",20000220,"C14",8810,1.6000000000000001E-3,66183.97,105894.35,88012,"PUBLIC SAF/EMG MGMT"]
[{"$f":"job_titles8[[#This Row],[Extended object ID]]","v":20000221},{"$f":"job_titles8[[#This Row],[WCI]]","v":8810},"9999-12-31",{"$f":"job_titles8[[#This Row],[WCI Rate]]","v":1.6000000000000001E-3},null,"C","1950-01-01","9999-12-31",1,"Chief Emergency Management Coordinator",20000221,"C17",8810,1.6000000000000001E-3,81074.789999999994,129719.67,88012,"PUBLIC SAF/EMG MGMT"]
[{"$f":"job_titles8[[#This Row],[Extended object ID]]","v":20000222},{"$f":"job_titles8[[#This Row],[WCI]]","v":7720},"9999-12-31",{"$f":"job_titles8[[#This Row],[WCI Rate]]","v":1.55E-2},null,"C","1950-01-01","9999-12-31",1,"Fire Marshal Deputy Asst II",20000222,"C14",7720,1.55E-2,66183.97,105894.35,88012,"PUBLIC SAF/EMG MGMT"]
[{"$f":"job_titles8[[#This Row],[Extended object ID]]","v":20000223},{"$f":"job_titles8[[#This Row],[WCI]]","v":7720},"9999-12-31",{"$f":"job_titles8[[#This Row],[WCI Rate]]","v":1.55E-2},null,"C","1950-01-01","9999-12-31",1,"Fire Marshal Deputy Asst III",20000223,"C16",7720,1.55E-2,75776.03,121241.65,88012,"PUBLIC SAF/EMG MGMT"]
[{"$f":"job_titles8[[#This Row],[Extended object ID]]","v":20000224},{"$f":"job_titles8[[#This Row],[WCI]]","v":7720},"9999-12-31",{"$f":"job_titles8[[#This Row],[WCI Rate]]","v":1.55E-2},null,"C","1950-01-01","9999-12-31",1,"Fire Marshal Asst",20000224,"C17",7720,1.55E-2,81074.789999999994,129719.67,88012,"PUBLIC SAF/EMG MGMT"]
[{"$f":"job_titles8[[#This Row],[Extended object ID]]","v":20000225},{"$f":"job_titles8[[#This Row],[WCI]]","v":7720},"9999-12-31",{"$f":"job_titles8[[#This Row],[WCI Rate]]","v":1.55E-2},null,"C","1950-01-01","9999-12-31",1,"Fire Marshal",20000225,"C19",7720,1.55E-2,92836.33,148538.12,88012,"PUBLIC SAF/EMG MGMT"]
[{"$f":"job_titles8[[#This Row],[Extended object ID]]","v":20000226},{"$f":"job_titles8[[#This Row],[WCI]]","v":7422},"9999-12-31",{"$f":"job_titles8[[#This Row],[WCI Rate]]","v":1.3299999999999999E-2},null,"C","1950-01-01","9999-12-31",1,"Aircraft Mechanic",20000226,"C14",7422,1.3299999999999999E-2,66183.97,105894.35,88012,"PUBLIC SAF/EMG MGMT"]
[{"$f":"job_titles8[[#This Row],[Extended object ID]]","v":20000227},{"$f":"job_titles8[[#This Row],[WCI]]","v":7422},"9999-12-31",{"$f":"job_titles8[[#This Row],[WCI Rate]]","v":1.3299999999999999E-2},null,"C","1950-01-01","9999-12-31",1,"Aircraft Mechanic Sr",20000227,"C15",7422,1.3299999999999999E-2,70819.7,113311.53,88012,"PUBLIC SAF/EMG MGMT"]
[{"$f":"job_titles8[[#This Row],[Extended object ID]]","v":20000228},{"$f":"job_titles8[[#This Row],[WCI]]","v":7422},"9999-12-31",{"$f":"job_titles8[[#This Row],[WCI Rate]]","v":1.3299999999999999E-2},null,"C","1950-01-01","9999-12-31",1,"Aircraft Maintenance Dir",20000228,"C17",7422,1.3299999999999999E-2,81074.789999999994,129719.67,88012,"PUBLIC SAF/EMG MGMT"]
[{"$f":"job_titles8[[#This Row],[Extended object ID]]","v":20000229},{"$f":"job_titles8[[#This Row],[WCI]]","v":7422},"9999-12-31",{"$f":"job_titles8[[#This Row],[WCI Rate]]","v":1.3299999999999999E-2},null,"C","1950-01-01","9999-12-31",1,"Helicopter Pilot",20000229,"C18",7422,1.3299999999999999E-2,86761.41,138818.25,88012,"PUBLIC SAF/EMG MGMT"]
[{"$f":"job_titles8[[#This Row],[Extended object ID]]","v":20000230},{"$f":"job_titles8[[#This Row],[WCI]]","v":7422},"9999-12-31",{"$f":"job_titles8[[#This Row],[WCI Rate]]","v":1.3299999999999999E-2},null,"C","1950-01-01","9999-12-31",1,"Helicopter Pilot Sr",20000230,"C19",7422,1.3299999999999999E-2,92836.33,148538.12,88012,"PUBLIC SAF/EMG MGMT"]
[{"$f":"job_titles8[[#This Row],[Extended object ID]]","v":20000231},{"$f":"job_titles8[[#This Row],[WCI]]","v":7422},"9999-12-31",{"$f":"job_titles8[[#This Row],[WCI Rate]]","v":1.3299999999999999E-2},null,"C","1950-01-01","9999-12-31",1,"Helicopter Pilot Chief Flight",20000231,"C20",7422,1.3299999999999999E-2,99345.18,158952.29,88012,"PUBLIC SAF/EMG MGMT"]
[{"$f":"job_titles8[[#This Row],[Extended object ID]]","v":20000232},{"$f":"job_titles8[[#This Row],[WCI]]","v":8810},"9999-12-31",{"$f":"job_titles8[[#This Row],[WCI Rate]]","v":1.6000000000000001E-3},null,"C","1950-01-01","9999-12-31",1,"Operations Dir",20000232,"C21",8810,1.6000000000000001E-3,106310.9,175412.99,88012,"PUBLIC SAF/EMG MGMT"]
[{"$f":"job_titles8[[#This Row],[Extended object ID]]","v":20000233},{"$f":"job_titles8[[#This Row],[WCI]]","v":7422},"9999-12-31",{"$f":"job_titles8[[#This Row],[WCI Rate]]","v":1.3299999999999999E-2},null,"C","1950-01-01","9999-12-31",1,"Clinic Supv Chief",20000233,"C18",7422,1.3299999999999999E-2,86761.41,138818.25,88012,"PUBLIC SAF/EMG MGMT"]
[{"$f":"job_titles8[[#This Row],[Extended object ID]]","v":20000234},{"$f":"job_titles8[[#This Row],[WCI]]","v":8810},"9999-12-31",{"$f":"job_titles8[[#This Row],[WCI Rate]]","v":1.6000000000000001E-3},null,"C","1950-01-01","9999-12-31",1,"Medical Supv Chief",20000234,"C18",8810,1.6000000000000001E-3,86761.41,138818.25,88012,"PUBLIC SAF/EMG MGMT"]
[{"$f":"job_titles8[[#This Row],[Extended object ID]]","v":20000235},{"$f":"job_titles8[[#This Row],[WCI]]","v":8810},"9999-12-31",{"$f":"job_titles8[[#This Row],[WCI Rate]]","v":1.6000000000000001E-3},null,"C","1950-01-01","9999-12-31",1,"Program Dir",20000235,"C22",8810,1.6000000000000001E-3,113755.98,187697.37,88012,"PUBLIC SAF/EMG MGMT"]
[{"$f":"job_titles8[[#This Row],[Extended object ID]]","v":20000236},{"$f":"job_titles8[[#This Row],[WCI]]","v":8810},"9999-12-31",{"$f":"job_titles8[[#This Row],[WCI Rate]]","v":1.6000000000000001E-3},null,"C","1950-01-01","9999-12-31",1,"Court Bailiff",20000236,"C03",8810,1.6000000000000001E-3,44561.919999999998,57930.5,88013,"COURT SERVICES"]
[{"$f":"job_titles8[[#This Row],[Extended object ID]]","v":20000237},{"$f":"job_titles8[[#This Row],[WCI]]","v":8810},"9999-12-31",{"$f":"job_titles8[[#This Row],[WCI Rate]]","v":1.6000000000000001E-3},null,"C","1950-01-01","9999-12-31",1,"Court Reporter",20000237,"C19",8810,1.6000000000000001E-3,92836.33,148538.12,88013,"COURT SERVICES"]
[{"$f":"job_titles8[[#This Row],[Extended object ID]]","v":20000238},{"$f":"job_titles8[[#This Row],[WCI]]","v":8810},"9999-12-31",{"$f":"job_titles8[[#This Row],[WCI Rate]]","v":1.6000000000000001E-3},null,"C","1950-01-01","9999-12-31",1,"Pretrial Officer I",20000238,"C08",8810,1.6000000000000001E-3,52162.239999999998,75635.25,88013,"COURT SERVICES"]
[{"$f":"job_titles8[[#This Row],[Extended object ID]]","v":20000239},{"$f":"job_titles8[[#This Row],[WCI]]","v":8810},"9999-12-31",{"$f":"job_titles8[[#This Row],[WCI Rate]]","v":1.6000000000000001E-3},null,"C","1950-01-01","9999-12-31",1,"Pretrial Officer II",20000239,"C09",8810,1.6000000000000001E-3,53987.92,78282.490000000005,88013,"COURT SERVICES"]
[{"$f":"job_titles8[[#This Row],[Extended object ID]]","v":20000240},{"$f":"job_titles8[[#This Row],[WCI]]","v":8810},"9999-12-31",{"$f":"job_titles8[[#This Row],[WCI Rate]]","v":1.6000000000000001E-3},null,"C","1950-01-01","9999-12-31",1,"Pretrial Officer III",20000240,"C10",8810,1.6000000000000001E-3,55877.5,82698.7,88013,"COURT SERVICES"]
[{"$f":"job_titles8[[#This Row],[Extended object ID]]","v":20000241},{"$f":"job_titles8[[#This Row],[WCI]]","v":8810},"9999-12-31",{"$f":"job_titles8[[#This Row],[WCI Rate]]","v":1.6000000000000001E-3},null,"C","1950-01-01","9999-12-31",1,"Pretrial Officer Sr",20000241,"C11",8810,1.6000000000000001E-3,58112.6,87168.9,88013,"COURT SERVICES"]
[{"$f":"job_titles8[[#This Row],[Extended object ID]]","v":20000242},{"$f":"job_titles8[[#This Row],[WCI]]","v":7720},"9999-12-31",{"$f":"job_titles8[[#This Row],[WCI Rate]]","v":1.55E-2},null,"C","1950-01-01","9999-12-31",1,"Juvenile Case Mgr",20000242,"C07",7720,1.55E-2,50398.3,68037.710000000006,88013,"COURT SERVICES"]
[{"$f":"job_titles8[[#This Row],[Extended object ID]]","v":20000244},{"$f":"job_titles8[[#This Row],[WCI]]","v":9999},"9999-12-31",{"$f":"job_titles8[[#This Row],[WCI Rate]]","v":0},null,"C","1950-01-01","9999-12-31",1,"Probation Officer Asst",20000244,"NCF01",9999,0,15080,500000,88013,"COURT SERVICES"]
[{"$f":"job_titles8[[#This Row],[Extended object ID]]","v":20000245},{"$f":"job_titles8[[#This Row],[WCI]]","v":9999},"9999-12-31",{"$f":"job_titles8[[#This Row],[WCI Rate]]","v":0},null,"C","1950-01-01","9999-12-31",1,"Probation Officer I",20000245,"NCF01",9999,0,15080,500000,88013,"COURT SERVICES"]
[{"$f":"job_titles8[[#This Row],[Extended object ID]]","v":20000246},{"$f":"job_titles8[[#This Row],[WCI]]","v":9999},"9999-12-31",{"$f":"job_titles8[[#This Row],[WCI Rate]]","v":0},null,"C","1950-01-01","9999-12-31",1,"Probation Officer II",20000246,"NCF01",9999,0,15080,500000,88013,"COURT SERVICES"]
[{"$f":"job_titles8[[#This Row],[Extended object ID]]","v":20000247},{"$f":"job_titles8[[#This Row],[WCI]]","v":9999},"9999-12-31",{"$f":"job_titles8[[#This Row],[WCI Rate]]","v":0},null,"C","1950-01-01","9999-12-31",1,"Probation Officer Sr",20000247,"NCF01",9999,0,15080,500000,88013,"COURT SERVICES"]
[{"$f":"job_titles8[[#This Row],[Extended object ID]]","v":20000248},{"$f":"job_titles8[[#This Row],[WCI]]","v":9999},"9999-12-31",{"$f":"job_titles8[[#This Row],[WCI Rate]]","v":0},null,"C","1950-01-01","9999-12-31",1,"Probation Officer Lead",20000248,"NCF01",9999,0,15080,500000,88013,"COURT SERVICES"]
[{"$f":"job_titles8[[#This Row],[Extended object ID]]","v":20000249},{"$f":"job_titles8[[#This Row],[WCI]]","v":7720},"9999-12-31",{"$f":"job_titles8[[#This Row],[WCI Rate]]","v":1.55E-2},null,"C","1950-01-01","9999-12-31",1,"Juvenile Probation Officer Asst",20000249,"C05",7720,1.55E-2,47275.74,61458.46,88013,"COURT SERVICES"]
[{"$f":"job_titles8[[#This Row],[Extended object ID]]","v":20000250},{"$f":"job_titles8[[#This Row],[WCI]]","v":7720},"9999-12-31",{"$f":"job_titles8[[#This Row],[WCI Rate]]","v":1.55E-2},null,"C","1950-01-01","9999-12-31",1,"Juvenile Probation Officer I",20000250,"C08",7720,1.55E-2,52162.239999999998,75635.25,88013,"COURT SERVICES"]
[{"$f":"job_titles8[[#This Row],[Extended object ID]]","v":20000251},{"$f":"job_titles8[[#This Row],[WCI]]","v":7720},"9999-12-31",{"$f":"job_titles8[[#This Row],[WCI Rate]]","v":1.55E-2},null,"C","1950-01-01","9999-12-31",1,"Juvenile Probation Officer II",20000251,"C09",7720,1.55E-2,53987.92,78282.490000000005,88013,"COURT SERVICES"]
[{"$f":"job_titles8[[#This Row],[Extended object ID]]","v":20000252},{"$f":"job_titles8[[#This Row],[WCI]]","v":7720},"9999-12-31",{"$f":"job_titles8[[#This Row],[WCI Rate]]","v":1.55E-2},null,"C","1950-01-01","9999-12-31",1,"Juvenile Probation Officer III",20000252,"C10",7720,1.55E-2,55877.5,82698.7,88013,"COURT SERVICES"]
[{"$f":"job_titles8[[#This Row],[Extended object ID]]","v":20000253},{"$f":"job_titles8[[#This Row],[WCI]]","v":7720},"9999-12-31",{"$f":"job_titles8[[#This Row],[WCI Rate]]","v":1.55E-2},null,"C","1950-01-01","9999-12-31",1,"Juvenile Probation Officer Lead",20000253,"C11",7720,1.55E-2,58112.6,87168.9,88013,"COURT SERVICES"]
[{"$f":"job_titles8[[#This Row],[Extended object ID]]","v":20000254},{"$f":"job_titles8[[#This Row],[WCI]]","v":7720},"9999-12-31",{"$f":"job_titles8[[#This Row],[WCI Rate]]","v":1.55E-2},null,"C","1950-01-01","9999-12-31",1,"Juvenile Detention Officer Asst",20000254,"C03",7720,1.55E-2,44561.919999999998,57930.5,88013,"COURT SERVICES"]
[{"$f":"job_titles8[[#This Row],[Extended object ID]]","v":20000255},{"$f":"job_titles8[[#This Row],[WCI]]","v":7720},"9999-12-31",{"$f":"job_titles8[[#This Row],[WCI Rate]]","v":1.55E-2},null,"C","1950-01-01","9999-12-31",1,"Juvenile Detention Officer I",20000255,"C05",7720,1.55E-2,47275.74,61458.46,88013,"COURT SERVICES"]
[{"$f":"job_titles8[[#This Row],[Extended object ID]]","v":20000256},{"$f":"job_titles8[[#This Row],[WCI]]","v":7720},"9999-12-31",{"$f":"job_titles8[[#This Row],[WCI Rate]]","v":1.55E-2},null,"C","1950-01-01","9999-12-31",1,"Juvenile Detention Officer II",20000256,"C06",7720,1.55E-2,48694.01,65736.92,88013,"COURT SERVICES"]
[{"$f":"job_titles8[[#This Row],[Extended object ID]]","v":20000257},{"$f":"job_titles8[[#This Row],[WCI]]","v":7720},"9999-12-31",{"$f":"job_titles8[[#This Row],[WCI Rate]]","v":1.55E-2},null,"C","1950-01-01","9999-12-31",1,"Juvenile Detention Officer III",20000257,"C07",7720,1.55E-2,50398.3,68037.710000000006,88013,"COURT SERVICES"]
[{"$f":"job_titles8[[#This Row],[Extended object ID]]","v":20000258},{"$f":"job_titles8[[#This Row],[WCI]]","v":7720},"9999-12-31",{"$f":"job_titles8[[#This Row],[WCI Rate]]","v":1.55E-2},null,"C","1950-01-01","9999-12-31",1,"Juvenile Rsdnt Treatment Officer Asst",20000258,"C04",7720,1.55E-2,45898.78,59668.41,88013,"COURT SERVICES"]
[{"$f":"job_titles8[[#This Row],[Extended object ID]]","v":20000259},{"$f":"job_titles8[[#This Row],[WCI]]","v":7720},"9999-12-31",{"$f":"job_titles8[[#This Row],[WCI Rate]]","v":1.55E-2},null,"C","1950-01-01","9999-12-31",1,"Juvenile Rsdnt Treatment Officer I",20000259,"C05",7720,1.55E-2,47275.74,61458.46,88013,"COURT SERVICES"]
[{"$f":"job_titles8[[#This Row],[Extended object ID]]","v":20000260},{"$f":"job_titles8[[#This Row],[WCI]]","v":7720},"9999-12-31",{"$f":"job_titles8[[#This Row],[WCI Rate]]","v":1.55E-2},null,"C","1950-01-01","9999-12-31",1,"Juvenile Rsdnt Treatment Officer II",20000260,"C06",7720,1.55E-2,48694.01,65736.92,88013,"COURT SERVICES"]
[{"$f":"job_titles8[[#This Row],[Extended object ID]]","v":20000261},{"$f":"job_titles8[[#This Row],[WCI]]","v":7720},"9999-12-31",{"$f":"job_titles8[[#This Row],[WCI Rate]]","v":1.55E-2},null,"C","1950-01-01","9999-12-31",1,"Juvenile Rsdnt Treatment Officer III",20000261,"C07",7720,1.55E-2,50398.3,68037.710000000006,88013,"COURT SERVICES"]
[{"$f":"job_titles8[[#This Row],[Extended object ID]]","v":20000262},{"$f":"job_titles8[[#This Row],[WCI]]","v":7720},"9999-12-31",{"$f":"job_titles8[[#This Row],[WCI Rate]]","v":1.55E-2},null,"C","1950-01-01","9999-12-31",1,"Juvenile Rsdnt Treatment Officer Sr",20000262,"C08",7720,1.55E-2,52162.239999999998,75635.25,88013,"COURT SERVICES"]
[{"$f":"job_titles8[[#This Row],[Extended object ID]]","v":20000263},{"$f":"job_titles8[[#This Row],[WCI]]","v":8810},"9999-12-31",{"$f":"job_titles8[[#This Row],[WCI Rate]]","v":1.6000000000000001E-3},null,"C","1950-01-01","9999-12-31",1,"Enforcement Officer I",20000263,"C06",8810,1.6000000000000001E-3,48694.01,65736.92,88013,"COURT SERVICES"]
[{"$f":"job_titles8[[#This Row],[Extended object ID]]","v":20000264},{"$f":"job_titles8[[#This Row],[WCI]]","v":8810},"9999-12-31",{"$f":"job_titles8[[#This Row],[WCI Rate]]","v":1.6000000000000001E-3},null,"C","1950-01-01","9999-12-31",1,"Enforcement Officer II",20000264,"C08",8810,1.6000000000000001E-3,52162.239999999998,75635.25,88013,"COURT SERVICES"]
[{"$f":"job_titles8[[#This Row],[Extended object ID]]","v":20000265},{"$f":"job_titles8[[#This Row],[WCI]]","v":8810},"9999-12-31",{"$f":"job_titles8[[#This Row],[WCI Rate]]","v":1.6000000000000001E-3},null,"C","1950-01-01","9999-12-31",1,"Enforcement Officer Sr",20000265,"C09",8810,1.6000000000000001E-3,53987.92,78282.490000000005,88013,"COURT SERVICES"]
[{"$f":"job_titles8[[#This Row],[Extended object ID]]","v":20000268},{"$f":"job_titles8[[#This Row],[WCI]]","v":8810},"9999-12-31",{"$f":"job_titles8[[#This Row],[WCI Rate]]","v":1.6000000000000001E-3},null,"C","1950-01-01","9999-12-31",1,"Guardian Ad Litem I",20000268,"C09",8810,1.6000000000000001E-3,53987.92,78282.490000000005,88013,"COURT SERVICES"]
[{"$f":"job_titles8[[#This Row],[Extended object ID]]","v":20000269},{"$f":"job_titles8[[#This Row],[WCI]]","v":8810},"9999-12-31",{"$f":"job_titles8[[#This Row],[WCI Rate]]","v":1.6000000000000001E-3},null,"C","1950-01-01","9999-12-31",1,"Guardian Ad Litem II",20000269,"C10",8810,1.6000000000000001E-3,55877.5,82698.7,88013,"COURT SERVICES"]
[{"$f":"job_titles8[[#This Row],[Extended object ID]]","v":20000270},{"$f":"job_titles8[[#This Row],[WCI]]","v":8810},"9999-12-31",{"$f":"job_titles8[[#This Row],[WCI Rate]]","v":1.6000000000000001E-3},null,"C","1950-01-01","9999-12-31",1,"Guardian Ad Litem Sr",20000270,"C11",8810,1.6000000000000001E-3,58112.6,87168.9,88013,"COURT SERVICES"]
[{"$f":"job_titles8[[#This Row],[Extended object ID]]","v":20000271},{"$f":"job_titles8[[#This Row],[WCI]]","v":8810},"9999-12-31",{"$f":"job_titles8[[#This Row],[WCI Rate]]","v":1.6000000000000001E-3},null,"C","1950-01-01","9999-12-31",1,"Assoc Judge/Magistrate/Referee",20000271,"NCF01",8810,1.6000000000000001E-3,15080,500000,88013,"COURT SERVICES"]
[{"$f":"job_titles8[[#This Row],[Extended object ID]]","v":20000272},{"$f":"job_titles8[[#This Row],[WCI]]","v":9999},"9999-12-31",{"$f":"job_titles8[[#This Row],[WCI Rate]]","v":0},null,"C","1950-01-01","9999-12-31",1,"Justice Court Of Appeals 3rd District",20000272,"NCF01",9999,0,15080,500000,88013,"COURT SERVICES"]
[{"$f":"job_titles8[[#This Row],[Extended object ID]]","v":20000273},{"$f":"job_titles8[[#This Row],[WCI]]","v":8810},"9999-12-31",{"$f":"job_titles8[[#This Row],[WCI Rate]]","v":1.6000000000000001E-3},null,"C","1950-01-01","9999-12-31",1,"Community Liaison",20000273,"C09",8810,1.6000000000000001E-3,53987.92,78282.490000000005,88014,"MANAGEMENT"]
[{"$f":"job_titles8[[#This Row],[Extended object ID]]","v":20000274},{"$f":"job_titles8[[#This Row],[WCI]]","v":8810},"9999-12-31",{"$f":"job_titles8[[#This Row],[WCI Rate]]","v":1.6000000000000001E-3},null,"C","1950-01-01","9999-12-31",1,"Strategic Planning Mgr",20000274,"GRD28",8810,1.6000000000000001E-3,83424.429999999993,133479.01,88014,"MANAGEMENT"]
[{"$f":"job_titles8[[#This Row],[Extended object ID]]","v":20000275},{"$f":"job_titles8[[#This Row],[WCI]]","v":8810},"9999-12-31",{"$f":"job_titles8[[#This Row],[WCI Rate]]","v":1.6000000000000001E-3},null,"C","1950-01-01","9999-12-31",1,"Budget Asst Dir",20000275,"C19",8810,1.6000000000000001E-3,92836.33,148538.12,88014,"MANAGEMENT"]
[{"$f":"job_titles8[[#This Row],[Extended object ID]]","v":20000276},{"$f":"job_titles8[[#This Row],[WCI]]","v":8810},"9999-12-31",{"$f":"job_titles8[[#This Row],[WCI Rate]]","v":1.6000000000000001E-3},null,"C","1950-01-01","9999-12-31",1,"Budget Dir",20000276,"C24",8810,1.6000000000000001E-3,130239.35,214894.92,88014,"MANAGEMENT"]
[{"$f":"job_titles8[[#This Row],[Extended object ID]]","v":20000277},{"$f":"job_titles8[[#This Row],[WCI]]","v":8810},"9999-12-31",{"$f":"job_titles8[[#This Row],[WCI Rate]]","v":1.6000000000000001E-3},null,"C","1950-01-01","9999-12-31",1,"Veterans Services Officer",20000277,"C15",8810,1.6000000000000001E-3,70819.7,113311.53,88014,"MANAGEMENT"]
[{"$f":"job_titles8[[#This Row],[Extended object ID]]","v":20000278},{"$f":"job_titles8[[#This Row],[WCI]]","v":8810},"9999-12-31",{"$f":"job_titles8[[#This Row],[WCI Rate]]","v":1.6000000000000001E-3},null,"C","1900-01-01","9999-12-31",1,"Office Mgr",20000278,"C10",8810,1.6000000000000001E-3,55877.5,82698.7,88014,"MANAGEMENT"]
[{"$f":"job_titles8[[#This Row],[Extended object ID]]","v":20000279},{"$f":"job_titles8[[#This Row],[WCI]]","v":8810},"9999-12-31",{"$f":"job_titles8[[#This Row],[WCI Rate]]","v":1.6000000000000001E-3},null,"C","1950-01-01","9999-12-31",1,"Office Mgr Sr",20000279,"C13",8810,1.6000000000000001E-3,62854.59,100567.34,88014,"MANAGEMENT"]
[{"$f":"job_titles8[[#This Row],[Extended object ID]]","v":20000280},{"$f":"job_titles8[[#This Row],[WCI]]","v":8810},"9999-12-31",{"$f":"job_titles8[[#This Row],[WCI Rate]]","v":1.6000000000000001E-3},null,"C","1950-01-01","9999-12-31",1,"Legal Services Program Mgr",20000280,"C15",8810,1.6000000000000001E-3,70819.7,113311.53,88014,"MANAGEMENT"]
[{"$f":"job_titles8[[#This Row],[Extended object ID]]","v":20000281},{"$f":"job_titles8[[#This Row],[WCI]]","v":8810},"9999-12-31",{"$f":"job_titles8[[#This Row],[WCI Rate]]","v":1.6000000000000001E-3},null,"C","1950-01-01","9999-12-31",1,"Juvenile Probation Div Mgr",20000281,"C15",8810,1.6000000000000001E-3,70819.7,113311.53,88014,"MANAGEMENT"]
[{"$f":"job_titles8[[#This Row],[Extended object ID]]","v":20000282},{"$f":"job_titles8[[#This Row],[WCI]]","v":8810},"9999-12-31",{"$f":"job_titles8[[#This Row],[WCI Rate]]","v":1.6000000000000001E-3},null,"C","1950-01-01","9999-12-31",1,"Court Services Mgmt Adm Coord",20000282,"C10",8810,1.6000000000000001E-3,55877.5,82698.7,88014,"MANAGEMENT"]
[{"$f":"job_titles8[[#This Row],[Extended object ID]]","v":20000284},{"$f":"job_titles8[[#This Row],[WCI]]","v":8810},"9999-12-31",{"$f":"job_titles8[[#This Row],[WCI Rate]]","v":1.6000000000000001E-3},null,"C","1950-01-01","9999-12-31",1,"County/District Clerk Div Dir",20000284,"C17",8810,1.6000000000000001E-3,81074.789999999994,129719.67,88014,"MANAGEMENT"]
[{"$f":"job_titles8[[#This Row],[Extended object ID]]","v":20000285},{"$f":"job_titles8[[#This Row],[WCI]]","v":8810},"9999-12-31",{"$f":"job_titles8[[#This Row],[WCI Rate]]","v":1.6000000000000001E-3},null,"C","1950-01-01","9999-12-31",1,"Juvenile Probation Div Dir",20000285,"C17",8810,1.6000000000000001E-3,81074.789999999994,129719.67,88014,"MANAGEMENT"]
[{"$f":"job_titles8[[#This Row],[Extended object ID]]","v":20000286},{"$f":"job_titles8[[#This Row],[WCI]]","v":8810},"9999-12-31",{"$f":"job_titles8[[#This Row],[WCI Rate]]","v":1.6000000000000001E-3},null,"C","1950-01-01","9999-12-31",1,"Tax Assessor-Collector Div Dir",20000286,"C19",8810,1.6000000000000001E-3,92836.33,148538.12,88014,"MANAGEMENT"]
[{"$f":"job_titles8[[#This Row],[Extended object ID]]","v":20000287},{"$f":"job_titles8[[#This Row],[WCI]]","v":9999},"9999-12-31",{"$f":"job_titles8[[#This Row],[WCI Rate]]","v":0},null,"C","1950-01-01","9999-12-31",1,"Probation Div Mgr",20000287,"NCF01",9999,0,15080,500000,88014,"MANAGEMENT"]
[{"$f":"job_titles8[[#This Row],[Extended object ID]]","v":20000288},{"$f":"job_titles8[[#This Row],[WCI]]","v":7720},"9999-12-31",{"$f":"job_titles8[[#This Row],[WCI Rate]]","v":1.55E-2},null,"C","1950-01-01","9999-12-31",1,"Juvenile Shift Supv",20000288,"C12",7720,1.55E-2,60437.1,90655.66,88014,"MANAGEMENT"]
[{"$f":"job_titles8[[#This Row],[Extended object ID]]","v":20000289},{"$f":"job_titles8[[#This Row],[WCI]]","v":8810},"9999-12-31",{"$f":"job_titles8[[#This Row],[WCI Rate]]","v":1.6000000000000001E-3},null,"C","1950-01-01","9999-12-31",1,"Juvenile Case Work Mgr",20000289,"C12",8810,1.6000000000000001E-3,60437.1,90655.66,88014,"MANAGEMENT"]
[{"$f":"job_titles8[[#This Row],[Extended object ID]]","v":20000290},{"$f":"job_titles8[[#This Row],[WCI]]","v":9999},"9999-12-31",{"$f":"job_titles8[[#This Row],[WCI Rate]]","v":0},null,"C","1950-01-01","9999-12-31",1,"Probation Case Work Mgr",20000290,"NCF01",9999,0,15080,500000,88014,"MANAGEMENT"]
[{"$f":"job_titles8[[#This Row],[Extended object ID]]","v":20000291},{"$f":"job_titles8[[#This Row],[WCI]]","v":8810},"9999-12-31",{"$f":"job_titles8[[#This Row],[WCI Rate]]","v":1.6000000000000001E-3},null,"C","1950-01-01","9999-12-31",1,"Pretrial Mgr",20000291,"C13",8810,1.6000000000000001E-3,62854.59,100567.34,88014,"MANAGEMENT"]
[{"$f":"job_titles8[[#This Row],[Extended object ID]]","v":20000292},{"$f":"job_titles8[[#This Row],[WCI]]","v":8810},"9999-12-31",{"$f":"job_titles8[[#This Row],[WCI Rate]]","v":1.6000000000000001E-3},null,"C","1950-01-01","9999-12-31",1,"Pretrial Div Dir",20000292,"C17",8810,1.6000000000000001E-3,81074.789999999994,129719.67,88014,"MANAGEMENT"]
[{"$f":"job_titles8[[#This Row],[Extended object ID]]","v":20000293},{"$f":"job_titles8[[#This Row],[WCI]]","v":8810},"9999-12-31",{"$f":"job_titles8[[#This Row],[WCI Rate]]","v":1.6000000000000001E-3},null,"C","1950-01-01","9999-12-31",1,"Victim Witness Services Div Dir",20000293,"C17",8810,1.6000000000000001E-3,81074.789999999994,129719.67,88014,"MANAGEMENT"]
[{"$f":"job_titles8[[#This Row],[Extended object ID]]","v":20000294},{"$f":"job_titles8[[#This Row],[WCI]]","v":8810},"9999-12-31",{"$f":"job_titles8[[#This Row],[WCI Rate]]","v":1.6000000000000001E-3},null,"C","1950-01-01","9999-12-31",1,"Commissary Mgr",20000294,"C11",8810,1.6000000000000001E-3,58112.6,87168.9,88014,"MANAGEMENT"]
[{"$f":"job_titles8[[#This Row],[Extended object ID]]","v":20000295},{"$f":"job_titles8[[#This Row],[WCI]]","v":9015},"9999-12-31",{"$f":"job_titles8[[#This Row],[WCI Rate]]","v":1.8800000000000001E-2},null,"C","1950-01-01","9999-12-31",1,"Juvenile Facilities Mgr",20000295,"C14",9015,1.8800000000000001E-2,66183.97,105894.35,88014,"MANAGEMENT"]
[{"$f":"job_titles8[[#This Row],[Extended object ID]]","v":20000296},{"$f":"job_titles8[[#This Row],[WCI]]","v":8810},"9999-12-31",{"$f":"job_titles8[[#This Row],[WCI Rate]]","v":1.6000000000000001E-3},null,"C","1950-01-01","9999-12-31",1,"Court Services Program Mgr",20000296,"C14",8810,1.6000000000000001E-3,66183.97,105894.35,88014,"MANAGEMENT"]
[{"$f":"job_titles8[[#This Row],[Extended object ID]]","v":20000297},{"$f":"job_titles8[[#This Row],[WCI]]","v":8832},"9999-12-31",{"$f":"job_titles8[[#This Row],[WCI Rate]]","v":1.9E-3},null,"C","1950-01-01","9999-12-31",1,"Medical Services Dir",20000297,"C20",8832,1.9E-3,99345.18,158952.29,88014,"MANAGEMENT"]
[{"$f":"job_titles8[[#This Row],[Extended object ID]]","v":20000298},{"$f":"job_titles8[[#This Row],[WCI]]","v":8810},"9999-12-31",{"$f":"job_titles8[[#This Row],[WCI Rate]]","v":1.6000000000000001E-3},null,"C","1950-01-01","9999-12-31",1,"Social Services Dir",20000298,"C16",8810,1.6000000000000001E-3,75776.03,121241.65,88014,"MANAGEMENT"]
[{"$f":"job_titles8[[#This Row],[Extended object ID]]","v":20000299},{"$f":"job_titles8[[#This Row],[WCI]]","v":8810},"9999-12-31",{"$f":"job_titles8[[#This Row],[WCI Rate]]","v":1.6000000000000001E-3},null,"C","1950-01-01","9999-12-31",1,"HHS Div Dir",20000299,"C19",8810,1.6000000000000001E-3,92836.33,148538.12,88014,"MANAGEMENT"]
[{"$f":"job_titles8[[#This Row],[Extended object ID]]","v":20000301},{"$f":"job_titles8[[#This Row],[WCI]]","v":8810},"9999-12-31",{"$f":"job_titles8[[#This Row],[WCI Rate]]","v":1.6000000000000001E-3},null,"C","1950-01-01","9999-12-31",1,"Support Services Mgr",20000301,"C14",8810,1.6000000000000001E-3,66183.97,105894.35,88014,"MANAGEMENT"]
[{"$f":"job_titles8[[#This Row],[Extended object ID]]","v":20000302},{"$f":"job_titles8[[#This Row],[WCI]]","v":8810},"9999-12-31",{"$f":"job_titles8[[#This Row],[WCI Rate]]","v":1.6000000000000001E-3},null,"C","1950-01-01","9999-12-31",1,"Elections Mgmt Coord",20000302,"C13",8810,1.6000000000000001E-3,62854.59,100567.34,88014,"MANAGEMENT"]
[{"$f":"job_titles8[[#This Row],[Extended object ID]]","v":20000303},{"$f":"job_titles8[[#This Row],[WCI]]","v":8810},"9999-12-31",{"$f":"job_titles8[[#This Row],[WCI Rate]]","v":1.6000000000000001E-3},null,"C","1950-01-01","9999-12-31",1,"Elections Administrator Asst",20000303,"C17",8810,1.6000000000000001E-3,81074.789999999994,129719.67,88014,"MANAGEMENT"]
[{"$f":"job_titles8[[#This Row],[Extended object ID]]","v":20000304},{"$f":"job_titles8[[#This Row],[WCI]]","v":7720},"9999-12-31",{"$f":"job_titles8[[#This Row],[WCI Rate]]","v":1.55E-2},null,"C","1950-01-01","9999-12-31",1,"District Park Mgr",20000304,"C15",7720,1.55E-2,70819.7,113311.53,88014,"MANAGEMENT"]
[{"$f":"job_titles8[[#This Row],[Extended object ID]]","v":20000306},{"$f":"job_titles8[[#This Row],[WCI]]","v":9102},"9999-12-31",{"$f":"job_titles8[[#This Row],[WCI Rate]]","v":2.0799999999999999E-2},null,"C","1950-01-01","9999-12-31",1,"Parks Div Asst Dir",20000306,"C18",9102,2.0799999999999999E-2,86761.41,138818.25,88014,"MANAGEMENT"]
[{"$f":"job_titles8[[#This Row],[Extended object ID]]","v":20000307},{"$f":"job_titles8[[#This Row],[WCI]]","v":8810},"9999-12-31",{"$f":"job_titles8[[#This Row],[WCI Rate]]","v":1.6000000000000001E-3},null,"C","1950-01-01","9999-12-31",1,"Fleet Div Mgr",20000307,"C16",8810,1.6000000000000001E-3,75776.03,121241.65,88014,"MANAGEMENT"]
[{"$f":"job_titles8[[#This Row],[Extended object ID]]","v":20000308},{"$f":"job_titles8[[#This Row],[WCI]]","v":8810},"9999-12-31",{"$f":"job_titles8[[#This Row],[WCI Rate]]","v":1.6000000000000001E-3},null,"C","1950-01-01","9999-12-31",1,"Elections Div Dir",20000308,"C20",8810,1.6000000000000001E-3,99345.18,158952.29,88014,"MANAGEMENT"]
[{"$f":"job_titles8[[#This Row],[Extended object ID]]","v":20000309},{"$f":"job_titles8[[#This Row],[WCI]]","v":8810},"9999-12-31",{"$f":"job_titles8[[#This Row],[WCI Rate]]","v":1.6000000000000001E-3},null,"C","1950-01-01","9999-12-31",1,"Juvenile Probation Dir",20000309,"C19",8810,1.6000000000000001E-3,92836.33,148538.12,88014,"MANAGEMENT"]
[{"$f":"job_titles8[[#This Row],[Extended object ID]]","v":20000311},{"$f":"job_titles8[[#This Row],[WCI]]","v":8810},"9999-12-31",{"$f":"job_titles8[[#This Row],[WCI Rate]]","v":1.6000000000000001E-3},null,"C","1950-01-01","9999-12-31",1,"Natural Resources Env Qlty Div Dir",20000311,"C19",8810,1.6000000000000001E-3,92836.33,148538.12,88014,"MANAGEMENT"]
[{"$f":"job_titles8[[#This Row],[Extended object ID]]","v":20000313},{"$f":"job_titles8[[#This Row],[WCI]]","v":8810},"9999-12-31",{"$f":"job_titles8[[#This Row],[WCI Rate]]","v":1.6000000000000001E-3},null,"C","1950-01-01","9999-12-31",1,"Parks Div Dir",20000313,"C22",8810,1.6000000000000001E-3,113755.98,187697.37,88014,"MANAGEMENT"]
[{"$f":"job_titles8[[#This Row],[Extended object ID]]","v":20000316},{"$f":"job_titles8[[#This Row],[WCI]]","v":9999},"9999-12-31",{"$f":"job_titles8[[#This Row],[WCI Rate]]","v":0},null,"C","1950-01-01","9999-12-31",1,"Probation Div Dir",20000316,"NCF01",9999,0,15080,500000,88014,"MANAGEMENT"]
[{"$f":"job_titles8[[#This Row],[Extended object ID]]","v":20000317},{"$f":"job_titles8[[#This Row],[WCI]]","v":8810},"9999-12-31",{"$f":"job_titles8[[#This Row],[WCI Rate]]","v":1.6000000000000001E-3},null,"C","1950-01-01","9999-12-31",1,"Administrative Services Div Dir",20000317,"C18",8810,1.6000000000000001E-3,86761.41,138818.25,88014,"MANAGEMENT"]
[{"$f":"job_titles8[[#This Row],[Extended object ID]]","v":20000318},{"$f":"job_titles8[[#This Row],[WCI]]","v":8810},"9999-12-31",{"$f":"job_titles8[[#This Row],[WCI Rate]]","v":1.6000000000000001E-3},null,"C","1950-01-01","9999-12-31",1,"Court Legal Mgmt Adm Dir",20000318,"C21",8810,1.6000000000000001E-3,106310.9,175412.99,88014,"MANAGEMENT"]
[{"$f":"job_titles8[[#This Row],[Extended object ID]]","v":20000319},{"$f":"job_titles8[[#This Row],[WCI]]","v":8810},"9999-12-31",{"$f":"job_titles8[[#This Row],[WCI Rate]]","v":1.6000000000000001E-3},null,"C","1950-01-01","9999-12-31",1,"County Clerk Deputy Chief",20000319,"C22",8810,1.6000000000000001E-3,113755.98,187697.37,88014,"MANAGEMENT"]
[{"$f":"job_titles8[[#This Row],[Extended object ID]]","v":20000320},{"$f":"job_titles8[[#This Row],[WCI]]","v":8810},"9999-12-31",{"$f":"job_titles8[[#This Row],[WCI Rate]]","v":1.6000000000000001E-3},null,"C","1950-01-01","9999-12-31",1,"District Clerk Deputy Chief",20000320,"C21",8810,1.6000000000000001E-3,106310.9,175412.99,88014,"MANAGEMENT"]
[{"$f":"job_titles8[[#This Row],[Extended object ID]]","v":20000321},{"$f":"job_titles8[[#This Row],[WCI]]","v":8810},"9999-12-31",{"$f":"job_titles8[[#This Row],[WCI Rate]]","v":1.6000000000000001E-3},null,"C","1950-01-01","9999-12-31",1,"Probate Court Administrator",20000321,"C19",8810,1.6000000000000001E-3,92836.33,148538.12,88014,"MANAGEMENT"]
[{"$f":"job_titles8[[#This Row],[Extended object ID]]","v":20000323},{"$f":"job_titles8[[#This Row],[WCI]]","v":8810},"9999-12-31",{"$f":"job_titles8[[#This Row],[WCI Rate]]","v":1.6000000000000001E-3},null,"C","1950-01-01","9999-12-31",1,"Tax Assessor-Collector Deputy Chf",20000323,"C22",8810,1.6000000000000001E-3,113755.98,187697.37,88014,"MANAGEMENT"]
[{"$f":"job_titles8[[#This Row],[Extended object ID]]","v":20000324},{"$f":"job_titles8[[#This Row],[WCI]]","v":8810},"9999-12-31",{"$f":"job_titles8[[#This Row],[WCI Rate]]","v":1.6000000000000001E-3},null,"C","1950-01-01","9999-12-31",1,"Juvenile Probation Deputy Chief",20000324,"C21",8810,1.6000000000000001E-3,106310.9,175412.99,88014,"MANAGEMENT"]
[{"$f":"job_titles8[[#This Row],[Extended object ID]]","v":20000325},{"$f":"job_titles8[[#This Row],[WCI]]","v":9999},"9999-12-31",{"$f":"job_titles8[[#This Row],[WCI Rate]]","v":0},null,"C","1950-01-01","9999-12-31",1,"CSCD Deputy Chief",20000325,"NCF01",9999,0,15080,500000,88014,"MANAGEMENT"]
[{"$f":"job_titles8[[#This Row],[Extended object ID]]","v":20000327},{"$f":"job_titles8[[#This Row],[WCI]]","v":8810},"9999-12-31",{"$f":"job_titles8[[#This Row],[WCI Rate]]","v":1.6000000000000001E-3},null,"C","1950-01-01","9999-12-31",1,"CES Dir",20000327,"C19",8810,1.6000000000000001E-3,92836.33,148538.12,88014,"MANAGEMENT"]
[{"$f":"job_titles8[[#This Row],[Extended object ID]]","v":20000329},{"$f":"job_titles8[[#This Row],[WCI]]","v":8810},"9999-12-31",{"$f":"job_titles8[[#This Row],[WCI Rate]]","v":1.6000000000000001E-3},null,"C","1950-01-01","9999-12-31",1,"TNR Chief Deputy",20000329,"C23",8810,1.6000000000000001E-3,121718.94,200836.25,88014,"MANAGEMENT"]
[{"$f":"job_titles8[[#This Row],[Extended object ID]]","v":20000330},{"$f":"job_titles8[[#This Row],[WCI]]","v":8810},"9999-12-31",{"$f":"job_titles8[[#This Row],[WCI Rate]]","v":1.6000000000000001E-3},null,"C","1950-01-01","9999-12-31",1,"County/District Attorney Div Dir Asst",20000330,"C23",8810,1.6000000000000001E-3,121718.94,200836.25,88014,"MANAGEMENT"]
[{"$f":"job_titles8[[#This Row],[Extended object ID]]","v":20000331},{"$f":"job_titles8[[#This Row],[WCI]]","v":8810},"9999-12-31",{"$f":"job_titles8[[#This Row],[WCI Rate]]","v":1.6000000000000001E-3},null,"C","1950-01-01","9999-12-31",1,"County/District Attorney Div Dir",20000331,"C24",8810,1.6000000000000001E-3,130239.35,214894.92,88014,"MANAGEMENT"]
[{"$f":"job_titles8[[#This Row],[Extended object ID]]","v":20000332},{"$f":"job_titles8[[#This Row],[WCI]]","v":8810},"9999-12-31",{"$f":"job_titles8[[#This Row],[WCI Rate]]","v":1.6000000000000001E-3},null,"C","1950-01-01","9999-12-31",1,"Public Defender Juvenile",20000332,"C24",8810,1.6000000000000001E-3,130239.35,214894.92,88014,"MANAGEMENT"]
[{"$f":"job_titles8[[#This Row],[Extended object ID]]","v":20000333},{"$f":"job_titles8[[#This Row],[WCI]]","v":8810},"9999-12-31",{"$f":"job_titles8[[#This Row],[WCI Rate]]","v":1.6000000000000001E-3},null,"C","1950-01-01","9999-12-31",1,"Public Defender Mental Health",20000333,"C24",8810,1.6000000000000001E-3,130239.35,214894.92,88014,"MANAGEMENT"]
[{"$f":"job_titles8[[#This Row],[Extended object ID]]","v":20000335},{"$f":"job_titles8[[#This Row],[WCI]]","v":8810},"9999-12-31",{"$f":"job_titles8[[#This Row],[WCI Rate]]","v":1.6000000000000001E-3},null,"C","1950-01-01","9999-12-31",1,"Attorney Deputy Chief Sr",20000335,"C26",8810,1.6000000000000001E-3,149111.1,246033.32,88014,"MANAGEMENT"]
[{"$f":"job_titles8[[#This Row],[Extended object ID]]","v":20000338},{"$f":"job_titles8[[#This Row],[WCI]]","v":8810},"9999-12-31",{"$f":"job_titles8[[#This Row],[WCI Rate]]","v":1.6000000000000001E-3},null,"C","1950-01-01","9999-12-31",1,"Human Resources Mgmt Dir",20000338,"C23",8810,1.6000000000000001E-3,121718.94,200836.25,88014,"MANAGEMENT"]
[{"$f":"job_titles8[[#This Row],[Extended object ID]]","v":20000339},{"$f":"job_titles8[[#This Row],[WCI]]","v":9015},"9999-12-31",{"$f":"job_titles8[[#This Row],[WCI Rate]]","v":1.8800000000000001E-2},null,"C","1950-01-01","9999-12-31",1,"Building Maintenance Div Mgr",20000339,"C18",9015,1.8800000000000001E-2,86761.41,138818.25,88014,"MANAGEMENT"]
[{"$f":"job_titles8[[#This Row],[Extended object ID]]","v":20000340},{"$f":"job_titles8[[#This Row],[WCI]]","v":8810},"9999-12-31",{"$f":"job_titles8[[#This Row],[WCI Rate]]","v":1.6000000000000001E-3},null,"C","1950-01-01","9999-12-31",1,"Facilities Mgmt Dir",20000340,"C23",8810,1.6000000000000001E-3,121718.94,200836.25,88014,"MANAGEMENT"]
[{"$f":"job_titles8[[#This Row],[Extended object ID]]","v":20000341},{"$f":"job_titles8[[#This Row],[WCI]]","v":8601},"9999-12-31",{"$f":"job_titles8[[#This Row],[WCI Rate]]","v":1.8E-3},null,"C","1950-01-01","9999-12-31",1,"Engineering Div Mgr",20000341,"C19",8601,1.8E-3,92836.33,148538.12,88014,"MANAGEMENT"]
[{"$f":"job_titles8[[#This Row],[Extended object ID]]","v":20000343},{"$f":"job_titles8[[#This Row],[WCI]]","v":8601},"9999-12-31",{"$f":"job_titles8[[#This Row],[WCI Rate]]","v":1.8E-3},null,"C","1950-01-01","9999-12-31",1,"Public Works Dir",20000343,"C23",8601,1.8E-3,121718.94,200836.25,88014,"MANAGEMENT"]
[{"$f":"job_titles8[[#This Row],[Extended object ID]]","v":20000345},{"$f":"job_titles8[[#This Row],[WCI]]","v":8810},"9999-12-31",{"$f":"job_titles8[[#This Row],[WCI Rate]]","v":1.6000000000000001E-3},null,"C","1950-01-01","9999-12-31",1,"Law Librarian",20000345,"C12",8810,1.6000000000000001E-3,60437.1,90655.66,88015,"PROFESSIONAL SUPP"]
[{"$f":"job_titles8[[#This Row],[Extended object ID]]","v":20000347},{"$f":"job_titles8[[#This Row],[WCI]]","v":8810},"9999-12-31",{"$f":"job_titles8[[#This Row],[WCI Rate]]","v":1.6000000000000001E-3},null,"C","1950-01-01","9999-12-31",1,"Archivist",20000347,"C09",8810,1.6000000000000001E-3,53987.92,78282.490000000005,88015,"PROFESSIONAL SUPP"]
[{"$f":"job_titles8[[#This Row],[Extended object ID]]","v":20000349},{"$f":"job_titles8[[#This Row],[WCI]]","v":8810},"9999-12-31",{"$f":"job_titles8[[#This Row],[WCI Rate]]","v":1.6000000000000001E-3},null,"C","1950-01-01","9999-12-31",1,"Program Coord",20000349,"C11",8810,1.6000000000000001E-3,58112.6,87168.9,88015,"PROFESSIONAL SUPP"]
[{"$f":"job_titles8[[#This Row],[Extended object ID]]","v":20000351},{"$f":"job_titles8[[#This Row],[WCI]]","v":9102},"9999-12-31",{"$f":"job_titles8[[#This Row],[WCI Rate]]","v":2.0799999999999999E-2},null,"C","1950-01-01","9999-12-31",1,"Natural Resources Tech",20000351,"C07",9102,2.0799999999999999E-2,50398.3,68037.710000000006,88015,"PROFESSIONAL SUPP"]
[{"$f":"job_titles8[[#This Row],[Extended object ID]]","v":20000352},{"$f":"job_titles8[[#This Row],[WCI]]","v":9102},"9999-12-31",{"$f":"job_titles8[[#This Row],[WCI Rate]]","v":2.0799999999999999E-2},null,"C","1950-01-01","9999-12-31",1,"Natural Resources Specialist",20000352,"C10",9102,2.0799999999999999E-2,55877.5,82698.7,88015,"PROFESSIONAL SUPP"]
[{"$f":"job_titles8[[#This Row],[Extended object ID]]","v":20000353},{"$f":"job_titles8[[#This Row],[WCI]]","v":8810},"9999-12-31",{"$f":"job_titles8[[#This Row],[WCI Rate]]","v":1.6000000000000001E-3},null,"C","1950-01-01","9999-12-31",1,"Accreditation Compliance Officer",20000353,"C11",8810,1.6000000000000001E-3,58112.6,87168.9,88015,"PROFESSIONAL SUPP"]
[{"$f":"job_titles8[[#This Row],[Extended object ID]]","v":20000356},{"$f":"job_titles8[[#This Row],[WCI]]","v":8810},"9999-12-31",{"$f":"job_titles8[[#This Row],[WCI Rate]]","v":1.6000000000000001E-3},null,"C","1950-01-01","9999-12-31",1,"Natural Resources Program Mgr",20000356,"C16",8810,1.6000000000000001E-3,75776.03,121241.65,88015,"PROFESSIONAL SUPP"]
[{"$f":"job_titles8[[#This Row],[Extended object ID]]","v":20000358},{"$f":"job_titles8[[#This Row],[WCI]]","v":8810},"9999-12-31",{"$f":"job_titles8[[#This Row],[WCI Rate]]","v":1.6000000000000001E-3},null,"C","1950-01-01","9999-12-31",1,"Environmental Specialist",20000358,"C11",8810,1.6000000000000001E-3,58112.6,87168.9,88015,"PROFESSIONAL SUPP"]
[{"$f":"job_titles8[[#This Row],[Extended object ID]]","v":20000359},{"$f":"job_titles8[[#This Row],[WCI]]","v":8810},"9999-12-31",{"$f":"job_titles8[[#This Row],[WCI Rate]]","v":1.6000000000000001E-3},null,"C","1950-01-01","9999-12-31",1,"Environmental Specialist Sr",20000359,"C12",8810,1.6000000000000001E-3,60437.1,90655.66,88015,"PROFESSIONAL SUPP"]
[{"$f":"job_titles8[[#This Row],[Extended object ID]]","v":20000360},{"$f":"job_titles8[[#This Row],[WCI]]","v":8810},"9999-12-31",{"$f":"job_titles8[[#This Row],[WCI Rate]]","v":1.6000000000000001E-3},null,"C","1950-01-01","9999-12-31",1,"Environmental Project Mgr",20000360,"C15",8810,1.6000000000000001E-3,70819.7,113311.53,88015,"PROFESSIONAL SUPP"]
[{"$f":"job_titles8[[#This Row],[Extended object ID]]","v":20000361},{"$f":"job_titles8[[#This Row],[WCI]]","v":8810},"9999-12-31",{"$f":"job_titles8[[#This Row],[WCI Rate]]","v":1.6000000000000001E-3},null,"C","1950-01-01","9999-12-31",1,"Environmental Program Mgr",20000361,"C16",8810,1.6000000000000001E-3,75776.03,121241.65,88015,"PROFESSIONAL SUPP"]
[{"$f":"job_titles8[[#This Row],[Extended object ID]]","v":20000362},{"$f":"job_titles8[[#This Row],[WCI]]","v":8601},"9999-12-31",{"$f":"job_titles8[[#This Row],[WCI Rate]]","v":1.8E-3},null,"C","1950-01-01","9999-12-31",1,"Right Of Way Agent",20000362,"C12",8601,1.8E-3,60437.1,90655.66,88015,"PROFESSIONAL SUPP"]
[{"$f":"job_titles8[[#This Row],[Extended object ID]]","v":20000364},{"$f":"job_titles8[[#This Row],[WCI]]","v":8810},"9999-12-31",{"$f":"job_titles8[[#This Row],[WCI Rate]]","v":1.6000000000000001E-3},null,"C","1950-01-01","9999-12-31",1,"Records Analyst Assoc",20000364,"C07",8810,1.6000000000000001E-3,50398.3,68037.710000000006,88015,"PROFESSIONAL SUPP"]
[{"$f":"job_titles8[[#This Row],[Extended object ID]]","v":20000365},{"$f":"job_titles8[[#This Row],[WCI]]","v":8810},"9999-12-31",{"$f":"job_titles8[[#This Row],[WCI Rate]]","v":1.6000000000000001E-3},null,"C","1950-01-01","9999-12-31",1,"Records Analyst Asst",20000365,"C05",8810,1.6000000000000001E-3,47275.74,61458.46,88015,"PROFESSIONAL SUPP"]
[{"$f":"job_titles8[[#This Row],[Extended object ID]]","v":20000366},{"$f":"job_titles8[[#This Row],[WCI]]","v":8810},"9999-12-31",{"$f":"job_titles8[[#This Row],[WCI Rate]]","v":1.6000000000000001E-3},null,"C","1950-01-01","9999-12-31",1,"Records Analyst",20000366,"C10",8810,1.6000000000000001E-3,55877.5,82698.7,88015,"PROFESSIONAL SUPP"]
[{"$f":"job_titles8[[#This Row],[Extended object ID]]","v":20000367},{"$f":"job_titles8[[#This Row],[WCI]]","v":8810},"9999-12-31",{"$f":"job_titles8[[#This Row],[WCI Rate]]","v":1.6000000000000001E-3},null,"C","1950-01-01","9999-12-31",1,"Records Analyst Supv",20000367,"C12",8810,1.6000000000000001E-3,60437.1,90655.66,88015,"PROFESSIONAL SUPP"]
[{"$f":"job_titles8[[#This Row],[Extended object ID]]","v":20000368},{"$f":"job_titles8[[#This Row],[WCI]]","v":8810},"9999-12-31",{"$f":"job_titles8[[#This Row],[WCI Rate]]","v":1.6000000000000001E-3},null,"C","1950-01-01","9999-12-31",1,"Human Resources Asst I",20000368,"C04",8810,1.6000000000000001E-3,45898.78,59668.41,88016,"HUMAN RESOURCES"]
[{"$f":"job_titles8[[#This Row],[Extended object ID]]","v":20000369},{"$f":"job_titles8[[#This Row],[WCI]]","v":8810},"9999-12-31",{"$f":"job_titles8[[#This Row],[WCI Rate]]","v":1.6000000000000001E-3},null,"C","1950-01-01","9999-12-31",1,"Human Resources Asst II",20000369,"C06",8810,1.6000000000000001E-3,48694.01,65736.92,88016,"HUMAN RESOURCES"]
[{"$f":"job_titles8[[#This Row],[Extended object ID]]","v":20000370},{"$f":"job_titles8[[#This Row],[WCI]]","v":8810},"9999-12-31",{"$f":"job_titles8[[#This Row],[WCI Rate]]","v":1.6000000000000001E-3},null,"C","1950-01-01","9999-12-31",1,"Human Resources Asst Sr",20000370,"C08",8810,1.6000000000000001E-3,52162.239999999998,75635.25,88016,"HUMAN RESOURCES"]
[{"$f":"job_titles8[[#This Row],[Extended object ID]]","v":20000375},{"$f":"job_titles8[[#This Row],[WCI]]","v":8810},"9999-12-31",{"$f":"job_titles8[[#This Row],[WCI Rate]]","v":1.6000000000000001E-3},null,"C","1950-01-01","9999-12-31",1,"Human Resources Specialist I",20000375,"C10",8810,1.6000000000000001E-3,55877.5,82698.7,88016,"HUMAN RESOURCES"]
[{"$f":"job_titles8[[#This Row],[Extended object ID]]","v":20000376},{"$f":"job_titles8[[#This Row],[WCI]]","v":8810},"9999-12-31",{"$f":"job_titles8[[#This Row],[WCI Rate]]","v":1.6000000000000001E-3},null,"C","1950-01-01","9999-12-31",1,"Human Resources Specialist II",20000376,"C12",8810,1.6000000000000001E-3,60437.1,90655.66,88016,"HUMAN RESOURCES"]
[{"$f":"job_titles8[[#This Row],[Extended object ID]]","v":20000377},{"$f":"job_titles8[[#This Row],[WCI]]","v":8810},"9999-12-31",{"$f":"job_titles8[[#This Row],[WCI Rate]]","v":1.6000000000000001E-3},null,"C","1950-01-01","9999-12-31",1,"Human Resources Specialist Sr",20000377,"C14",8810,1.6000000000000001E-3,66183.97,105894.35,88016,"HUMAN RESOURCES"]
[{"$f":"job_titles8[[#This Row],[Extended object ID]]","v":20000379},{"$f":"job_titles8[[#This Row],[WCI]]","v":8810},"9999-12-31",{"$f":"job_titles8[[#This Row],[WCI Rate]]","v":1.6000000000000001E-3},null,"C","1950-01-01","9999-12-31",1,"Human Resources Analyst I",20000379,"C10",8810,1.6000000000000001E-3,55877.5,82698.7,88016,"HUMAN RESOURCES"]
[{"$f":"job_titles8[[#This Row],[Extended object ID]]","v":20000380},{"$f":"job_titles8[[#This Row],[WCI]]","v":8810},"9999-12-31",{"$f":"job_titles8[[#This Row],[WCI Rate]]","v":1.6000000000000001E-3},null,"C","1950-01-01","9999-12-31",1,"Human Resources Analyst II",20000380,"C12",8810,1.6000000000000001E-3,60437.1,90655.66,88016,"HUMAN RESOURCES"]
[{"$f":"job_titles8[[#This Row],[Extended object ID]]","v":20000381},{"$f":"job_titles8[[#This Row],[WCI]]","v":8810},"9999-12-31",{"$f":"job_titles8[[#This Row],[WCI Rate]]","v":1.6000000000000001E-3},null,"C","1950-01-01","9999-12-31",1,"Human Resources Analyst Sr",20000381,"C14",8810,1.6000000000000001E-3,66183.97,105894.35,88016,"HUMAN RESOURCES"]
[{"$f":"job_titles8[[#This Row],[Extended object ID]]","v":20000383},{"$f":"job_titles8[[#This Row],[WCI]]","v":8810},"9999-12-31",{"$f":"job_titles8[[#This Row],[WCI Rate]]","v":1.6000000000000001E-3},null,"C","1950-01-01","9999-12-31",1,"Human Resources Mgr I",20000383,"C16",8810,1.6000000000000001E-3,75776.03,121241.65,88016,"HUMAN RESOURCES"]
[{"$f":"job_titles8[[#This Row],[Extended object ID]]","v":20000384},{"$f":"job_titles8[[#This Row],[WCI]]","v":8810},"9999-12-31",{"$f":"job_titles8[[#This Row],[WCI Rate]]","v":1.6000000000000001E-3},null,"C","1950-01-01","9999-12-31",1,"Human Resources Mgr II",20000384,"C17",8810,1.6000000000000001E-3,81074.789999999994,129719.67,88016,"HUMAN RESOURCES"]
[{"$f":"job_titles8[[#This Row],[Extended object ID]]","v":20000385},{"$f":"job_titles8[[#This Row],[WCI]]","v":8810},"9999-12-31",{"$f":"job_titles8[[#This Row],[WCI Rate]]","v":1.6000000000000001E-3},null,"C","1950-01-01","9999-12-31",1,"HRIS Specialist",20000385,"GRD25",8810,1.6000000000000001E-3,68095.87,108953.31,88016,"HUMAN RESOURCES"]
[{"$f":"job_titles8[[#This Row],[Extended object ID]]","v":20000386},{"$f":"job_titles8[[#This Row],[WCI]]","v":8810},"9999-12-31",{"$f":"job_titles8[[#This Row],[WCI Rate]]","v":1.6000000000000001E-3},null,"C","1950-01-01","9999-12-31",1,"Benefits Administrator",20000386,"C14",8810,1.6000000000000001E-3,66183.97,105894.35,88016,"HUMAN RESOURCES"]
[{"$f":"job_titles8[[#This Row],[Extended object ID]]","v":20000388},{"$f":"job_titles8[[#This Row],[WCI]]","v":8810},"9999-12-31",{"$f":"job_titles8[[#This Row],[WCI Rate]]","v":1.6000000000000001E-3},null,"C","1950-01-01","9999-12-31",1,"Risk Safety Specialist I",20000388,"C10",8810,1.6000000000000001E-3,55877.5,82698.7,88016,"HUMAN RESOURCES"]
[{"$f":"job_titles8[[#This Row],[Extended object ID]]","v":20000389},{"$f":"job_titles8[[#This Row],[WCI]]","v":8810},"9999-12-31",{"$f":"job_titles8[[#This Row],[WCI Rate]]","v":1.6000000000000001E-3},null,"C","1950-01-01","9999-12-31",1,"Risk Safety Specialist II",20000389,"C12",8810,1.6000000000000001E-3,60437.1,90655.66,88016,"HUMAN RESOURCES"]
[{"$f":"job_titles8[[#This Row],[Extended object ID]]","v":20000391},{"$f":"job_titles8[[#This Row],[WCI]]","v":8810},"9999-12-31",{"$f":"job_titles8[[#This Row],[WCI Rate]]","v":1.6000000000000001E-3},null,"C","1950-01-01","9999-12-31",1,"Occupational Health Safety Engineer",20000391,"C16",8810,1.6000000000000001E-3,75776.03,121241.65,88016,"HUMAN RESOURCES"]
[{"$f":"job_titles8[[#This Row],[Extended object ID]]","v":20000392},{"$f":"job_titles8[[#This Row],[WCI]]","v":8810},"9999-12-31",{"$f":"job_titles8[[#This Row],[WCI Rate]]","v":1.6000000000000001E-3},null,"C","1950-01-01","9999-12-31",1,"Training Education Coord I",20000392,"C08",8810,1.6000000000000001E-3,52162.239999999998,75635.25,88016,"HUMAN RESOURCES"]
[{"$f":"job_titles8[[#This Row],[Extended object ID]]","v":20000393},{"$f":"job_titles8[[#This Row],[WCI]]","v":8810},"9999-12-31",{"$f":"job_titles8[[#This Row],[WCI Rate]]","v":1.6000000000000001E-3},null,"C","1950-01-01","9999-12-31",1,"Training Education Coord II",20000393,"C10",8810,1.6000000000000001E-3,55877.5,82698.7,88016,"HUMAN RESOURCES"]
[{"$f":"job_titles8[[#This Row],[Extended object ID]]","v":20000394},{"$f":"job_titles8[[#This Row],[WCI]]","v":8810},"9999-12-31",{"$f":"job_titles8[[#This Row],[WCI Rate]]","v":1.6000000000000001E-3},null,"C","1950-01-01","9999-12-31",1,"Training Education Coord Sr",20000394,"C12",8810,1.6000000000000001E-3,60437.1,90655.66,88016,"HUMAN RESOURCES"]
[{"$f":"job_titles8[[#This Row],[Extended object ID]]","v":20000397},{"$f":"job_titles8[[#This Row],[WCI]]","v":8810},"9999-12-31",{"$f":"job_titles8[[#This Row],[WCI Rate]]","v":1.6000000000000001E-3},null,"C","1950-01-01","9999-12-31",1,"Education Instructional Specialist",20000397,"C05",8810,1.6000000000000001E-3,47275.74,61458.46,88017,"EDUCATION & TRAINING"]
[{"$f":"job_titles8[[#This Row],[Extended object ID]]","v":20000398},{"$f":"job_titles8[[#This Row],[WCI]]","v":8810},"9999-12-31",{"$f":"job_titles8[[#This Row],[WCI Rate]]","v":1.6000000000000001E-3},null,"C","1950-01-01","9999-12-31",1,"Volunteer Coord",20000398,"C08",8810,1.6000000000000001E-3,52162.239999999998,75635.25,88017,"EDUCATION & TRAINING"]
[{"$f":"job_titles8[[#This Row],[Extended object ID]]","v":20000399},{"$f":"job_titles8[[#This Row],[WCI]]","v":4299},"9999-12-31",{"$f":"job_titles8[[#This Row],[WCI Rate]]","v":1.24E-2},null,"C","1950-01-01","9999-12-31",1,"Reprographics Production Tech",20000399,"C04",4299,1.24E-2,45898.78,59668.41,88018,"IMAGING & GRAPHICS"]
[{"$f":"job_titles8[[#This Row],[Extended object ID]]","v":20000400},{"$f":"job_titles8[[#This Row],[WCI]]","v":4299},"9999-12-31",{"$f":"job_titles8[[#This Row],[WCI Rate]]","v":1.24E-2},null,"C","1950-01-01","9999-12-31",1,"Reprographics Supervisor",20000400,"C07",4299,1.24E-2,50398.3,68037.710000000006,88018,"IMAGING & GRAPHICS"]
[{"$f":"job_titles8[[#This Row],[Extended object ID]]","v":20000401},{"$f":"job_titles8[[#This Row],[WCI]]","v":8810},"9999-12-31",{"$f":"job_titles8[[#This Row],[WCI Rate]]","v":1.6000000000000001E-3},null,"C","1950-01-01","9999-12-31",1,"Imaging Production Tech",20000401,"C04",8810,1.6000000000000001E-3,45898.78,59668.41,88018,"IMAGING & GRAPHICS"]
[{"$f":"job_titles8[[#This Row],[Extended object ID]]","v":20000402},{"$f":"job_titles8[[#This Row],[WCI]]","v":8810},"9999-12-31",{"$f":"job_titles8[[#This Row],[WCI Rate]]","v":1.6000000000000001E-3},null,"C","1950-01-01","9999-12-31",1,"Imaging Lab Supervisor",20000402,"C07",8810,1.6000000000000001E-3,50398.3,68037.710000000006,88018,"IMAGING & GRAPHICS"]
[{"$f":"job_titles8[[#This Row],[Extended object ID]]","v":20000403},{"$f":"job_titles8[[#This Row],[WCI]]","v":8810},"9999-12-31",{"$f":"job_titles8[[#This Row],[WCI Rate]]","v":1.6000000000000001E-3},null,"C","1950-01-01","9999-12-31",1,"Media Producer",20000403,"C10",8810,1.6000000000000001E-3,55877.5,82698.7,88019,"PUBLIC INFORMATION"]
[{"$f":"job_titles8[[#This Row],[Extended object ID]]","v":20000404},{"$f":"job_titles8[[#This Row],[WCI]]","v":8810},"9999-12-31",{"$f":"job_titles8[[#This Row],[WCI Rate]]","v":1.6000000000000001E-3},null,"C","1950-01-01","9999-12-31",1,"Intergovernmental Relations Officer",20000404,"C20",8810,1.6000000000000001E-3,99345.18,158952.29,88019,"PUBLIC INFORMATION"]
[{"$f":"job_titles8[[#This Row],[Extended object ID]]","v":20000405},{"$f":"job_titles8[[#This Row],[WCI]]","v":8810},"9999-12-31",{"$f":"job_titles8[[#This Row],[WCI Rate]]","v":1.6000000000000001E-3},null,"C","1950-01-01","9999-12-31",1,"Elections Primary Day Wk Nt Tr",20000405,"NCF01",8810,1.6000000000000001E-3,15080,500000,88020,"TEMP/SEASONAL"]
[{"$f":"job_titles8[[#This Row],[Extended object ID]]","v":20000407},{"$f":"job_titles8[[#This Row],[WCI]]","v":8810},"9999-12-31",{"$f":"job_titles8[[#This Row],[WCI Rate]]","v":1.6000000000000001E-3},null,"C","1950-01-01","9999-12-31",1,"Elections Primary Tr",20000407,"NCF01",8810,1.6000000000000001E-3,15080,500000,88020,"TEMP/SEASONAL"]
[{"$f":"job_titles8[[#This Row],[Extended object ID]]","v":20000408},{"$f":"job_titles8[[#This Row],[WCI]]","v":8810},"9999-12-31",{"$f":"job_titles8[[#This Row],[WCI Rate]]","v":1.6000000000000001E-3},null,"C","1950-01-01","9999-12-31",1,"Elections Day Clerk",20000408,"NCF01",8810,1.6000000000000001E-3,15080,500000,88020,"TEMP/SEASONAL"]
[{"$f":"job_titles8[[#This Row],[Extended object ID]]","v":20000409},{"$f":"job_titles8[[#This Row],[WCI]]","v":8810},"9999-12-31",{"$f":"job_titles8[[#This Row],[WCI Rate]]","v":1.6000000000000001E-3},null,"C","1950-01-01","9999-12-31",1,"Elections Day Judge",20000409,"NCF01",8810,1.6000000000000001E-3,15080,500000,88020,"TEMP/SEASONAL"]
[{"$f":"job_titles8[[#This Row],[Extended object ID]]","v":20000410},{"$f":"job_titles8[[#This Row],[WCI]]","v":8810},"9999-12-31",{"$f":"job_titles8[[#This Row],[WCI Rate]]","v":1.6000000000000001E-3},null,"C","1950-01-01","9999-12-31",1,"Elections Early Voting Clerk",20000410,"NCF01",8810,1.6000000000000001E-3,15080,500000,88020,"TEMP/SEASONAL"]
[{"$f":"job_titles8[[#This Row],[Extended object ID]]","v":20000411},{"$f":"job_titles8[[#This Row],[WCI]]","v":8810},"9999-12-31",{"$f":"job_titles8[[#This Row],[WCI Rate]]","v":1.6000000000000001E-3},null,"C","1950-01-01","9999-12-31",1,"Elections Early Voting Deputy",20000411,"NCF01",8810,1.6000000000000001E-3,15080,500000,88020,"TEMP/SEASONAL"]
[{"$f":"job_titles8[[#This Row],[Extended object ID]]","v":20000412},{"$f":"job_titles8[[#This Row],[WCI]]","v":8810},"9999-12-31",{"$f":"job_titles8[[#This Row],[WCI Rate]]","v":1.6000000000000001E-3},null,"C","1950-01-01","9999-12-31",1,"Elections Operations Clerk I",20000412,"NCF01",8810,1.6000000000000001E-3,15080,500000,88020,"TEMP/SEASONAL"]
[{"$f":"job_titles8[[#This Row],[Extended object ID]]","v":20000413},{"$f":"job_titles8[[#This Row],[WCI]]","v":8810},"9999-12-31",{"$f":"job_titles8[[#This Row],[WCI Rate]]","v":1.6000000000000001E-3},null,"C","1950-01-01","9999-12-31",1,"Elections Operations Clerk II",20000413,"NCF01",8810,1.6000000000000001E-3,15080,500000,88020,"TEMP/SEASONAL"]
[{"$f":"job_titles8[[#This Row],[Extended object ID]]","v":20000414},{"$f":"job_titles8[[#This Row],[WCI]]","v":8810},"9999-12-31",{"$f":"job_titles8[[#This Row],[WCI Rate]]","v":1.6000000000000001E-3},null,"C","1950-01-01","9999-12-31",1,"Elections Operations Clerk III",20000414,"NCF01",8810,1.6000000000000001E-3,15080,500000,88020,"TEMP/SEASONAL"]
[{"$f":"job_titles8[[#This Row],[Extended object ID]]","v":20000415},{"$f":"job_titles8[[#This Row],[WCI]]","v":8810},"9999-12-31",{"$f":"job_titles8[[#This Row],[WCI Rate]]","v":1.6000000000000001E-3},null,"C","1950-01-01","9999-12-31",1,"Elections Operations Clerk IV",20000415,"NCF01",8810,1.6000000000000001E-3,15080,500000,88020,"TEMP/SEASONAL"]
[{"$f":"job_titles8[[#This Row],[Extended object ID]]","v":20000416},{"$f":"job_titles8[[#This Row],[WCI]]","v":8810},"9999-12-31",{"$f":"job_titles8[[#This Row],[WCI Rate]]","v":1.6000000000000001E-3},null,"C","1950-01-01","9999-12-31",1,"Elections Operations Clerk V",20000416,"NCF01",8810,1.6000000000000001E-3,15080,500000,88020,"TEMP/SEASONAL"]
[{"$f":"job_titles8[[#This Row],[Extended object ID]]","v":20000417},{"$f":"job_titles8[[#This Row],[WCI]]","v":8810},"9999-12-31",{"$f":"job_titles8[[#This Row],[WCI Rate]]","v":1.6000000000000001E-3},null,"C","1950-01-01","9999-12-31",1,"Elections Coord",20000417,"C07",8810,1.6000000000000001E-3,50398.3,68037.710000000006,88004,"ADMINISTRATIVE SUPP"]
[{"$f":"job_titles8[[#This Row],[Extended object ID]]","v":20000418},{"$f":"job_titles8[[#This Row],[WCI]]","v":9102},"9999-12-31",{"$f":"job_titles8[[#This Row],[WCI Rate]]","v":2.0799999999999999E-2},null,"C","1950-01-01","9999-12-31",1,"Park Tech I",20000418,"NCF01",9102,2.0799999999999999E-2,15080,500000,88020,"TEMP/SEASONAL"]
[{"$f":"job_titles8[[#This Row],[Extended object ID]]","v":20000419},{"$f":"job_titles8[[#This Row],[WCI]]","v":9102},"9999-12-31",{"$f":"job_titles8[[#This Row],[WCI Rate]]","v":2.0799999999999999E-2},null,"C","1950-01-01","9999-12-31",1,"Park Tech II",20000419,"NCF01",9102,2.0799999999999999E-2,15080,500000,88020,"TEMP/SEASONAL"]
[{"$f":"job_titles8[[#This Row],[Extended object ID]]","v":20000421},{"$f":"job_titles8[[#This Row],[WCI]]","v":8810},"9999-12-31",{"$f":"job_titles8[[#This Row],[WCI Rate]]","v":1.6000000000000001E-3},null,"C","1950-01-01","9999-12-31",1,"Interpreter Sign Language I",20000421,"C07",8810,1.6000000000000001E-3,50398.3,68037.710000000006,88020,"TEMP/SEASONAL"]
[{"$f":"job_titles8[[#This Row],[Extended object ID]]","v":20000422},{"$f":"job_titles8[[#This Row],[WCI]]","v":8810},"9999-12-31",{"$f":"job_titles8[[#This Row],[WCI Rate]]","v":1.6000000000000001E-3},null,"C","1950-01-01","9999-12-31",1,"Interpreter Sign Language II",20000422,"C09",8810,1.6000000000000001E-3,53987.92,78282.490000000005,88020,"TEMP/SEASONAL"]
[{"$f":"job_titles8[[#This Row],[Extended object ID]]","v":20000423},{"$f":"job_titles8[[#This Row],[WCI]]","v":8810},"9999-12-31",{"$f":"job_titles8[[#This Row],[WCI Rate]]","v":1.6000000000000001E-3},null,"C","1950-01-01","9999-12-31",1,"Interpreter Sign Language III",20000423,"C11",8810,1.6000000000000001E-3,58112.6,87168.9,88020,"TEMP/SEASONAL"]
[{"$f":"job_titles8[[#This Row],[Extended object ID]]","v":20000424},{"$f":"job_titles8[[#This Row],[WCI]]","v":8810},"9999-12-31",{"$f":"job_titles8[[#This Row],[WCI Rate]]","v":1.6000000000000001E-3},null,"C","1950-01-01","9999-12-31",1,"Interpreter Sign Language IV",20000424,"C12",8810,1.6000000000000001E-3,60437.1,90655.66,88020,"TEMP/SEASONAL"]
[{"$f":"job_titles8[[#This Row],[Extended object ID]]","v":20000425},{"$f":"job_titles8[[#This Row],[WCI]]","v":8810},"9999-12-31",{"$f":"job_titles8[[#This Row],[WCI Rate]]","v":1.6000000000000001E-3},null,"C","1950-01-01","9999-12-31",1,"Interpreter Sign Language V",20000425,"C15",8810,1.6000000000000001E-3,70819.7,113311.53,88020,"TEMP/SEASONAL"]
[{"$f":"job_titles8[[#This Row],[Extended object ID]]","v":20000426},{"$f":"job_titles8[[#This Row],[WCI]]","v":8810},"9999-12-31",{"$f":"job_titles8[[#This Row],[WCI Rate]]","v":1.6000000000000001E-3},null,"C","1950-01-01","9999-12-31",1,"Interpreter Sign Language VI",20000426,"C16",8810,1.6000000000000001E-3,75776.03,121241.65,88020,"TEMP/SEASONAL"]
[{"$f":"job_titles8[[#This Row],[Extended object ID]]","v":20000427},{"$f":"job_titles8[[#This Row],[WCI]]","v":7720},"9999-12-31",{"$f":"job_titles8[[#This Row],[WCI Rate]]","v":1.55E-2},null,"C","1950-01-01","9999-12-31",1,"Extended Military Leave With Pay",20000427,"NCF01",7720,1.55E-2,15080,500000,88020,"TEMP/SEASONAL"]
[{"$f":"job_titles8[[#This Row],[Extended object ID]]","v":20000428},{"$f":"job_titles8[[#This Row],[WCI]]","v":7720},"9999-12-31",{"$f":"job_titles8[[#This Row],[WCI Rate]]","v":1.55E-2},null,"C","1950-01-01","9999-12-31",1,"Extended Military Leave Without Pay",20000428,"NCF01",7720,1.55E-2,15080,500000,88020,"TEMP/SEASONAL"]
[{"$f":"job_titles8[[#This Row],[Extended object ID]]","v":20000429},{"$f":"job_titles8[[#This Row],[WCI]]","v":8810},"9999-12-31",{"$f":"job_titles8[[#This Row],[WCI Rate]]","v":1.6000000000000001E-3},null,"C","1950-01-01","9999-12-31",1,"Americorp Participants",20000429,"NCF01",8810,1.6000000000000001E-3,15080,500000,88020,"TEMP/SEASONAL"]
[{"$f":"job_titles8[[#This Row],[Extended object ID]]","v":20000434},{"$f":"job_titles8[[#This Row],[WCI]]","v":8810},"9999-12-31",{"$f":"job_titles8[[#This Row],[WCI Rate]]","v":1.6000000000000001E-3},null,"C","1950-01-01","9999-12-31",1,"Information Technology Div Dir",20000434,"C23",8810,1.6000000000000001E-3,121718.94,200836.25,88021,"INFORMATION TECH"]
[{"$f":"job_titles8[[#This Row],[Extended object ID]]","v":20000435},{"$f":"job_titles8[[#This Row],[WCI]]","v":8810},"9999-12-31",{"$f":"job_titles8[[#This Row],[WCI Rate]]","v":1.6000000000000001E-3},null,"C","1950-01-01","9999-12-31",1,"Project Mgr Div Mgr",20000435,"GRD32",8810,1.6000000000000001E-3,109380.75,175009.12,88021,"INFORMATION TECH"]
[{"$f":"job_titles8[[#This Row],[Extended object ID]]","v":20000436},{"$f":"job_titles8[[#This Row],[WCI]]","v":8810},"9999-12-31",{"$f":"job_titles8[[#This Row],[WCI Rate]]","v":1.6000000000000001E-3},null,"C","1950-01-01","9999-12-31",1,"Program Manager Sr",20000436,"C20",8810,1.6000000000000001E-3,99345.18,158952.29,88021,"INFORMATION TECH"]
[{"$f":"job_titles8[[#This Row],[Extended object ID]]","v":20000437},{"$f":"job_titles8[[#This Row],[WCI]]","v":8810},"9999-12-31",{"$f":"job_titles8[[#This Row],[WCI Rate]]","v":1.6000000000000001E-3},null,"C","1950-01-01","9999-12-31",1,"Program Manager",20000437,"C19",8810,1.6000000000000001E-3,92836.33,148538.12,88021,"INFORMATION TECH"]
[{"$f":"job_titles8[[#This Row],[Extended object ID]]","v":20000438},{"$f":"job_titles8[[#This Row],[WCI]]","v":8810},"9999-12-31",{"$f":"job_titles8[[#This Row],[WCI Rate]]","v":1.6000000000000001E-3},null,"C","1950-01-01","9999-12-31",1,"Project Mgr",20000438,"C18",8810,1.6000000000000001E-3,86761.41,138818.25,88021,"INFORMATION TECH"]
[{"$f":"job_titles8[[#This Row],[Extended object ID]]","v":20000440},{"$f":"job_titles8[[#This Row],[WCI]]","v":8810},"9999-12-31",{"$f":"job_titles8[[#This Row],[WCI Rate]]","v":1.6000000000000001E-3},null,"C","1950-01-01","9999-12-31",1,"Business Consultant II",20000440,"C19",8810,1.6000000000000001E-3,92836.33,148538.12,88021,"INFORMATION TECH"]
[{"$f":"job_titles8[[#This Row],[Extended object ID]]","v":20000441},{"$f":"job_titles8[[#This Row],[WCI]]","v":8810},"9999-12-31",{"$f":"job_titles8[[#This Row],[WCI Rate]]","v":1.6000000000000001E-3},null,"C","1950-01-01","9999-12-31",1,"Business Consultant I",20000441,"C17",8810,1.6000000000000001E-3,81074.789999999994,129719.67,88021,"INFORMATION TECH",null,null,0]
[{"$f":"job_titles8[[#This Row],[Extended object ID]]","v":20000442},{"$f":"job_titles8[[#This Row],[WCI]]","v":8810},"9999-12-31",{"$f":"job_titles8[[#This Row],[WCI Rate]]","v":1.6000000000000001E-3},null,"C","1950-01-01","9999-12-31",1,"Business Analyst Assoc",20000442,"C10",8810,1.6000000000000001E-3,55877.5,82698.7,88021,"INFORMATION TECH",null,null,0]
[{"$f":"job_titles8[[#This Row],[Extended object ID]]","v":20000443},{"$f":"job_titles8[[#This Row],[WCI]]","v":8810},"9999-12-31",{"$f":"job_titles8[[#This Row],[WCI Rate]]","v":1.6000000000000001E-3},null,"C","1950-01-01","9999-12-31",1,"Business Analyst III",20000443,"C16",8810,1.6000000000000001E-3,75776.03,121241.65,88021,"INFORMATION TECH"]
[{"$f":"job_titles8[[#This Row],[Extended object ID]]","v":20000444},{"$f":"job_titles8[[#This Row],[WCI]]","v":8810},"9999-12-31",{"$f":"job_titles8[[#This Row],[WCI Rate]]","v":1.6000000000000001E-3},null,"C","1950-01-01","9999-12-31",1,"Business Analyst II",20000444,"C14",8810,1.6000000000000001E-3,66183.97,105894.35,88021,"INFORMATION TECH"]
[{"$f":"job_titles8[[#This Row],[Extended object ID]]","v":20000445},{"$f":"job_titles8[[#This Row],[WCI]]","v":8810},"9999-12-31",{"$f":"job_titles8[[#This Row],[WCI Rate]]","v":1.6000000000000001E-3},null,"C","1950-01-01","9999-12-31",1,"Business Analyst I",20000445,"C12",8810,1.6000000000000001E-3,60437.1,90655.66,88021,"INFORMATION TECH"]
[{"$f":"job_titles8[[#This Row],[Extended object ID]]","v":20000447},{"$f":"job_titles8[[#This Row],[WCI]]","v":8810},"9999-12-31",{"$f":"job_titles8[[#This Row],[WCI Rate]]","v":1.6000000000000001E-3},null,"C","1950-01-01","9999-12-31",1,"Database Administrator",20000447,"C18",8810,1.6000000000000001E-3,86761.41,138818.25,88021,"INFORMATION TECH",null,null,112789.83,142115.18580000001]
[{"$f":"job_titles8[[#This Row],[Extended object ID]]","v":20000449},{"$f":"job_titles8[[#This Row],[WCI]]","v":8810},"9999-12-31",{"$f":"job_titles8[[#This Row],[WCI Rate]]","v":1.6000000000000001E-3},null,"C","1950-01-01","9999-12-31",1,"Applications Mgr",20000449,"C20",8810,1.6000000000000001E-3,99345.18,158952.29,88021,"INFORMATION TECH"]
[{"$f":"job_titles8[[#This Row],[Extended object ID]]","v":20000451},{"$f":"job_titles8[[#This Row],[WCI]]","v":8810},"9999-12-31",{"$f":"job_titles8[[#This Row],[WCI Rate]]","v":1.6000000000000001E-3},null,"C","1950-01-01","9999-12-31",1,"Application Architect",20000451,"C20",8810,1.6000000000000001E-3,99345.18,158952.29,88021,"INFORMATION TECH"]
[{"$f":"job_titles8[[#This Row],[Extended object ID]]","v":20000452},{"$f":"job_titles8[[#This Row],[WCI]]","v":8810},"9999-12-31",{"$f":"job_titles8[[#This Row],[WCI Rate]]","v":1.6000000000000001E-3},null,"C","1950-01-01","9999-12-31",1,"Application Dev Analyst Sr",20000452,"C17",8810,1.6000000000000001E-3,81074.789999999994,129719.67,88021,"INFORMATION TECH"]
[{"$f":"job_titles8[[#This Row],[Extended object ID]]","v":20000454},{"$f":"job_titles8[[#This Row],[WCI]]","v":8810},"9999-12-31",{"$f":"job_titles8[[#This Row],[WCI Rate]]","v":1.6000000000000001E-3},null,"C","1950-01-01","9999-12-31",1,"Application Dev Analyst",20000454,"C14",8810,1.6000000000000001E-3,66183.97,105894.35,88021,"INFORMATION TECH"]
[{"$f":"job_titles8[[#This Row],[Extended object ID]]","v":20000458},{"$f":"job_titles8[[#This Row],[WCI]]","v":8810},"9999-12-31",{"$f":"job_titles8[[#This Row],[WCI Rate]]","v":1.6000000000000001E-3},null,"C","1950-01-01","9999-12-31",1,"Web Manager",20000458,"C18",8810,1.6000000000000001E-3,86761.41,138818.25,88021,"INFORMATION TECH"]
[{"$f":"job_titles8[[#This Row],[Extended object ID]]","v":20000459},{"$f":"job_titles8[[#This Row],[WCI]]","v":8810},"9999-12-31",{"$f":"job_titles8[[#This Row],[WCI Rate]]","v":1.6000000000000001E-3},null,"C","1950-01-01","9999-12-31",1,"Webmaster Sr",20000459,"C15",8810,1.6000000000000001E-3,70819.7,113311.53,88021,"INFORMATION TECH"]
[{"$f":"job_titles8[[#This Row],[Extended object ID]]","v":20000460},{"$f":"job_titles8[[#This Row],[WCI]]","v":8810},"9999-12-31",{"$f":"job_titles8[[#This Row],[WCI Rate]]","v":1.6000000000000001E-3},null,"C","1950-01-01","9999-12-31",1,"Webmaster",20000460,"C13",8810,1.6000000000000001E-3,62854.59,100567.34,88021,"INFORMATION TECH"]
[{"$f":"job_titles8[[#This Row],[Extended object ID]]","v":20000463},{"$f":"job_titles8[[#This Row],[WCI]]","v":8810},"9999-12-31",{"$f":"job_titles8[[#This Row],[WCI Rate]]","v":1.6000000000000001E-3},null,"C","1950-01-01","9999-12-31",1,"Information Security Analyst Sr",20000463,"C17",8810,1.6000000000000001E-3,81074.789999999994,129719.67,88021,"INFORMATION TECH"]
[{"$f":"job_titles8[[#This Row],[Extended object ID]]","v":20000465},{"$f":"job_titles8[[#This Row],[WCI]]","v":8810},"9999-12-31",{"$f":"job_titles8[[#This Row],[WCI Rate]]","v":1.6000000000000001E-3},null,"C","1950-01-01","9999-12-31",1,"Information Security Analyst",20000465,"C13",8810,1.6000000000000001E-3,62854.59,100567.34,88021,"INFORMATION TECH"]
[{"$f":"job_titles8[[#This Row],[Extended object ID]]","v":20000467},{"$f":"job_titles8[[#This Row],[WCI]]","v":8810},"9999-12-31",{"$f":"job_titles8[[#This Row],[WCI Rate]]","v":1.6000000000000001E-3},null,"C","1950-01-01","9999-12-31",1,"Customer Support Mgr",20000467,"C18",8810,1.6000000000000001E-3,86761.41,138818.25,88021,"INFORMATION TECH"]
[{"$f":"job_titles8[[#This Row],[Extended object ID]]","v":20000468},{"$f":"job_titles8[[#This Row],[WCI]]","v":8810},"9999-12-31",{"$f":"job_titles8[[#This Row],[WCI Rate]]","v":1.6000000000000001E-3},null,"C","1950-01-01","9999-12-31",1,"Customer Support Supervisor",20000468,"C16",8810,1.6000000000000001E-3,75776.03,121241.65,88021,"INFORMATION TECH"]
[{"$f":"job_titles8[[#This Row],[Extended object ID]]","v":20000469},{"$f":"job_titles8[[#This Row],[WCI]]","v":8810},"9999-12-31",{"$f":"job_titles8[[#This Row],[WCI Rate]]","v":1.6000000000000001E-3},null,"C","1950-01-01","9999-12-31",1,"Customer Support Analyst Sr",20000469,"C14",8810,1.6000000000000001E-3,66183.97,105894.35,88021,"INFORMATION TECH"]
[{"$f":"job_titles8[[#This Row],[Extended object ID]]","v":20000471},{"$f":"job_titles8[[#This Row],[WCI]]","v":8810},"9999-12-31",{"$f":"job_titles8[[#This Row],[WCI Rate]]","v":1.6000000000000001E-3},null,"C","1950-01-01","9999-12-31",1,"Customer Support Analyst",20000471,"C10",8810,1.6000000000000001E-3,55877.5,82698.7,88021,"INFORMATION TECH"]
[{"$f":"job_titles8[[#This Row],[Extended object ID]]","v":20000478},{"$f":"job_titles8[[#This Row],[WCI]]","v":8810},"9999-12-31",{"$f":"job_titles8[[#This Row],[WCI Rate]]","v":1.6000000000000001E-3},null,"C","1950-01-01","9999-12-31",1,"Technical Trainer",20000478,"C13",8810,1.6000000000000001E-3,62854.59,100567.34,88021,"INFORMATION TECH"]
[{"$f":"job_titles8[[#This Row],[Extended object ID]]","v":20000482},{"$f":"job_titles8[[#This Row],[WCI]]","v":8810},"9999-12-31",{"$f":"job_titles8[[#This Row],[WCI Rate]]","v":1.6000000000000001E-3},null,"C","1950-01-01","9999-12-31",1,"Network Architect",20000482,"C19",8810,1.6000000000000001E-3,92836.33,148538.12,88021,"INFORMATION TECH"]
[{"$f":"job_titles8[[#This Row],[Extended object ID]]","v":20000483},{"$f":"job_titles8[[#This Row],[WCI]]","v":8810},"9999-12-31",{"$f":"job_titles8[[#This Row],[WCI Rate]]","v":1.6000000000000001E-3},null,"C","1950-01-01","9999-12-31",1,"Network Engineer Sr",20000483,"C17",8810,1.6000000000000001E-3,81074.789999999994,129719.67,88021,"INFORMATION TECH"]
[{"$f":"job_titles8[[#This Row],[Extended object ID]]","v":20000485},{"$f":"job_titles8[[#This Row],[WCI]]","v":8810},"9999-12-31",{"$f":"job_titles8[[#This Row],[WCI Rate]]","v":1.6000000000000001E-3},null,"C","1950-01-01","9999-12-31",1,"Network Engineer",20000485,"C14",8810,1.6000000000000001E-3,66183.97,105894.35,88021,"INFORMATION TECH"]
[{"$f":"job_titles8[[#This Row],[Extended object ID]]","v":20000486},{"$f":"job_titles8[[#This Row],[WCI]]","v":8810},"9999-12-31",{"$f":"job_titles8[[#This Row],[WCI Rate]]","v":1.6000000000000001E-3},null,"C","1950-01-01","9999-12-31",1,"Systems Operations Mgr",20000486,"C20",8810,1.6000000000000001E-3,99345.18,158952.29,88021,"INFORMATION TECH"]
[{"$f":"job_titles8[[#This Row],[Extended object ID]]","v":20000488},{"$f":"job_titles8[[#This Row],[WCI]]","v":8810},"9999-12-31",{"$f":"job_titles8[[#This Row],[WCI Rate]]","v":1.6000000000000001E-3},null,"C","1950-01-01","9999-12-31",1,"Systems Architect",20000488,"C20",8810,1.6000000000000001E-3,99345.18,158952.29,88021,"INFORMATION TECH"]
[{"$f":"job_titles8[[#This Row],[Extended object ID]]","v":20000489},{"$f":"job_titles8[[#This Row],[WCI]]","v":8810},"9999-12-31",{"$f":"job_titles8[[#This Row],[WCI Rate]]","v":1.6000000000000001E-3},null,"C","1950-01-01","9999-12-31",1,"Systems Engineer Sr",20000489,"C17",8810,1.6000000000000001E-3,81074.789999999994,129719.67,88021,"INFORMATION TECH"]
[{"$f":"job_titles8[[#This Row],[Extended object ID]]","v":20000491},{"$f":"job_titles8[[#This Row],[WCI]]","v":8810},"9999-12-31",{"$f":"job_titles8[[#This Row],[WCI Rate]]","v":1.6000000000000001E-3},null,"C","1950-01-01","9999-12-31",1,"Systems Engineer",20000491,"C14",8810,1.6000000000000001E-3,66183.97,105894.35,88021,"INFORMATION TECH"]
[{"$f":"job_titles8[[#This Row],[Extended object ID]]","v":20000496},{"$f":"job_titles8[[#This Row],[WCI]]","v":8810},"9999-12-31",{"$f":"job_titles8[[#This Row],[WCI Rate]]","v":1.6000000000000001E-3},null,"C","1950-01-01","9999-12-31",1,"IT Dpt Div Mgr",20000496,"C20",8810,1.6000000000000001E-3,99345.18,158952.29,88021,"INFORMATION TECH"]
[{"$f":"job_titles8[[#This Row],[Extended object ID]]","v":20000497},{"$f":"job_titles8[[#This Row],[WCI]]","v":8810},"9999-12-31",{"$f":"job_titles8[[#This Row],[WCI Rate]]","v":1.6000000000000001E-3},null,"C","1950-01-01","9999-12-31",1,"Emergency Radio Communications Mgr",20000497,"C19",8810,1.6000000000000001E-3,92836.33,148538.12,88021,"INFORMATION TECH"]
[{"$f":"job_titles8[[#This Row],[Extended object ID]]","v":20000498},{"$f":"job_titles8[[#This Row],[WCI]]","v":8810},"9999-12-31",{"$f":"job_titles8[[#This Row],[WCI Rate]]","v":1.6000000000000001E-3},null,"C","1950-01-01","9999-12-31",1,"Media Operations Mgr",20000498,"C16",8810,1.6000000000000001E-3,75776.03,121241.65,88021,"INFORMATION TECH"]
[{"$f":"job_titles8[[#This Row],[Extended object ID]]","v":20000499},{"$f":"job_titles8[[#This Row],[WCI]]","v":8810},"9999-12-31",{"$f":"job_titles8[[#This Row],[WCI Rate]]","v":1.6000000000000001E-3},null,"C","1950-01-01","9999-12-31",1,"Imaging Div Mgr",20000499,"C14",8810,1.6000000000000001E-3,66183.97,105894.35,88021,"INFORMATION TECH"]
[{"$f":"job_titles8[[#This Row],[Extended object ID]]","v":20000500},{"$f":"job_titles8[[#This Row],[WCI]]","v":8810},"9999-12-31",{"$f":"job_titles8[[#This Row],[WCI Rate]]","v":1.6000000000000001E-3},null,"C","1950-01-01","9999-12-31",1,"County Judge",20000500,"NCF01",8810,1.6000000000000001E-3,15080,500000,88022,"ELECTED"]
[{"$f":"job_titles8[[#This Row],[Extended object ID]]","v":20000501},{"$f":"job_titles8[[#This Row],[WCI]]","v":8810},"9999-12-31",{"$f":"job_titles8[[#This Row],[WCI Rate]]","v":1.6000000000000001E-3},null,"C","1950-01-01","9999-12-31",1,"County Commissioner",20000501,"NCF01",8810,1.6000000000000001E-3,15080,500000,88022,"ELECTED"]
[{"$f":"job_titles8[[#This Row],[Extended object ID]]","v":20000502},{"$f":"job_titles8[[#This Row],[WCI]]","v":8810},"9999-12-31",{"$f":"job_titles8[[#This Row],[WCI Rate]]","v":1.6000000000000001E-3},null,"C","1950-01-01","9999-12-31",1,"County Court At Law Judge",20000502,"NCF01",8810,1.6000000000000001E-3,15080,500000,88022,"ELECTED"]
[{"$f":"job_titles8[[#This Row],[Extended object ID]]","v":20000503},{"$f":"job_titles8[[#This Row],[WCI]]","v":8810},"9999-12-31",{"$f":"job_titles8[[#This Row],[WCI Rate]]","v":1.6000000000000001E-3},null,"C","1950-01-01","9999-12-31",1,"County Clerk",20000503,"NCF01",8810,1.6000000000000001E-3,15080,500000,88022,"ELECTED"]
[{"$f":"job_titles8[[#This Row],[Extended object ID]]","v":20000504},{"$f":"job_titles8[[#This Row],[WCI]]","v":8810},"9999-12-31",{"$f":"job_titles8[[#This Row],[WCI Rate]]","v":1.6000000000000001E-3},null,"C","1950-01-01","9999-12-31",1,"County Treasurer",20000504,"NCF01",8810,1.6000000000000001E-3,15080,500000,88022,"ELECTED"]
[{"$f":"job_titles8[[#This Row],[Extended object ID]]","v":20000505},{"$f":"job_titles8[[#This Row],[WCI]]","v":8810},"9999-12-31",{"$f":"job_titles8[[#This Row],[WCI Rate]]","v":1.6000000000000001E-3},null,"C","1950-01-01","9999-12-31",1,"County Attorney",20000505,"NCF01",8810,1.6000000000000001E-3,15080,500000,88022,"ELECTED"]
[{"$f":"job_titles8[[#This Row],[Extended object ID]]","v":20000506},{"$f":"job_titles8[[#This Row],[WCI]]","v":8810},"9999-12-31",{"$f":"job_titles8[[#This Row],[WCI Rate]]","v":1.6000000000000001E-3},null,"C","1950-01-01","9999-12-31",1,"District Attorney",20000506,"NCF01",8810,1.6000000000000001E-3,15080,500000,88022,"ELECTED"]
[{"$f":"job_titles8[[#This Row],[Extended object ID]]","v":20000507},{"$f":"job_titles8[[#This Row],[WCI]]","v":8810},"9999-12-31",{"$f":"job_titles8[[#This Row],[WCI Rate]]","v":1.6000000000000001E-3},null,"C","1950-01-01","9999-12-31",1,"District Clerk",20000507,"NCF01",8810,1.6000000000000001E-3,15080,500000,88022,"ELECTED"]
[{"$f":"job_titles8[[#This Row],[Extended object ID]]","v":20000508},{"$f":"job_titles8[[#This Row],[WCI]]","v":8810},"9999-12-31",{"$f":"job_titles8[[#This Row],[WCI Rate]]","v":1.6000000000000001E-3},null,"C","1950-01-01","9999-12-31",1,"District Judge",20000508,"NCF01",8810,1.6000000000000001E-3,15080,500000,88022,"ELECTED"]
[{"$f":"job_titles8[[#This Row],[Extended object ID]]","v":20000509},{"$f":"job_titles8[[#This Row],[WCI]]","v":8810},"9999-12-31",{"$f":"job_titles8[[#This Row],[WCI Rate]]","v":1.6000000000000001E-3},null,"C","1950-01-01","9999-12-31",1,"Justice Of The Peace",20000509,"NCF01",8810,1.6000000000000001E-3,15080,500000,88022,"ELECTED"]
[{"$f":"job_titles8[[#This Row],[Extended object ID]]","v":20000510},{"$f":"job_titles8[[#This Row],[WCI]]","v":8810},"9999-12-31",{"$f":"job_titles8[[#This Row],[WCI Rate]]","v":1.6000000000000001E-3},null,"C","1950-01-01","9999-12-31",1,"Probate Judge",20000510,"NCF01",8810,1.6000000000000001E-3,15080,500000,88022,"ELECTED"]
[{"$f":"job_titles8[[#This Row],[Extended object ID]]","v":20000511},{"$f":"job_titles8[[#This Row],[WCI]]","v":7720},"9999-12-31",{"$f":"job_titles8[[#This Row],[WCI Rate]]","v":1.55E-2},null,"C","1950-01-01","9999-12-31",1,"Sheriff",20000511,"NCF01",7720,1.55E-2,15080,500000,88022,"ELECTED"]
[{"$f":"job_titles8[[#This Row],[Extended object ID]]","v":20000512},{"$f":"job_titles8[[#This Row],[WCI]]","v":7720},"9999-12-31",{"$f":"job_titles8[[#This Row],[WCI Rate]]","v":1.55E-2},null,"C","1950-01-01","9999-12-31",1,"Constable",20000512,"NCF01",7720,1.55E-2,15080,500000,88022,"ELECTED"]
[{"$f":"job_titles8[[#This Row],[Extended object ID]]","v":20000513},{"$f":"job_titles8[[#This Row],[WCI]]","v":8810},"9999-12-31",{"$f":"job_titles8[[#This Row],[WCI Rate]]","v":1.6000000000000001E-3},null,"C","1950-01-01","9999-12-31",1,"Tax Assessor-Collector",20000513,"NCF01",8810,1.6000000000000001E-3,15080,500000,88022,"ELECTED"]
[{"$f":"job_titles8[[#This Row],[Extended object ID]]","v":20000514},{"$f":"job_titles8[[#This Row],[WCI]]","v":8810},"9999-12-31",{"$f":"job_titles8[[#This Row],[WCI Rate]]","v":1.6000000000000001E-3},null,"C","1950-01-01","9999-12-31",1,"County Auditor",20000514,"NCF01",8810,1.6000000000000001E-3,15080,500000,88023,"APPOINTED"]
[{"$f":"job_titles8[[#This Row],[Extended object ID]]","v":20000515},{"$f":"job_titles8[[#This Row],[WCI]]","v":8810},"9999-12-31",{"$f":"job_titles8[[#This Row],[WCI Rate]]","v":1.6000000000000001E-3},null,"C","1950-01-01","9999-12-31",1,"Pur Purchasing Agent",20000515,"NCF01",8810,1.6000000000000001E-3,15080,500000,88023,"APPOINTED"]
[{"$f":"job_titles8[[#This Row],[Extended object ID]]","v":20000516},{"$f":"job_titles8[[#This Row],[WCI]]","v":8810},"9999-12-31",{"$f":"job_titles8[[#This Row],[WCI Rate]]","v":1.6000000000000001E-3},null,"C","1950-01-01","9999-12-31",1,"Juvenile Probation Officer Chief",20000516,"NCF01",8810,1.6000000000000001E-3,15080,500000,88023,"APPOINTED"]
[{"$f":"job_titles8[[#This Row],[Extended object ID]]","v":20000517},{"$f":"job_titles8[[#This Row],[WCI]]","v":9999},"9999-12-31",{"$f":"job_titles8[[#This Row],[WCI Rate]]","v":0},null,"C","1950-01-01","9999-12-31",1,"Adult Probation Dir",20000517,"NCF01",9999,0,15080,500000,88023,"APPOINTED"]
[{"$f":"job_titles8[[#This Row],[Extended object ID]]","v":20000519},{"$f":"job_titles8[[#This Row],[WCI]]","v":7720},"9999-12-31",{"$f":"job_titles8[[#This Row],[WCI Rate]]","v":1.55E-2},null,"C","1950-01-01","9999-12-31",1,"Corrections Officer",20000519,"GRD81",7720,1.55E-2,55000,55000,88024,"POPS TCSO"]
[{"$f":"job_titles8[[#This Row],[Extended object ID]]","v":20000521},{"$f":"job_titles8[[#This Row],[WCI]]","v":7720},"9999-12-31",{"$f":"job_titles8[[#This Row],[WCI Rate]]","v":1.55E-2},null,"C","1950-01-01","9999-12-31",1,"Corrections Officer Sr",20000521,"GRD83",7720,1.55E-2,59323.61,59323.61,88024,"POPS TCSO"]
[{"$f":"job_titles8[[#This Row],[Extended object ID]]","v":20000522},{"$f":"job_titles8[[#This Row],[WCI]]","v":7720},"9999-12-31",{"$f":"job_titles8[[#This Row],[WCI Rate]]","v":1.55E-2},null,"C","1950-01-01","9999-12-31",1,"Certified Peace Officer Sr",20000522,"GRD84",7720,1.55E-2,62908.959999999999,62908.959999999999,88024,"POPS TCSO"]
[{"$f":"job_titles8[[#This Row],[Extended object ID]]","v":20000523},{"$f":"job_titles8[[#This Row],[WCI]]","v":7720},"9999-12-31",{"$f":"job_titles8[[#This Row],[WCI Rate]]","v":1.55E-2},null,"C","1950-01-01","9999-12-31",1,"Law Enforcement Sheriff Deputy",20000523,"GRD72",7720,1.55E-2,68000,68000,88024,"POPS TCSO"]
[{"$f":"job_titles8[[#This Row],[Extended object ID]]","v":20000524},{"$f":"job_titles8[[#This Row],[WCI]]","v":7720},"9999-12-31",{"$f":"job_titles8[[#This Row],[WCI Rate]]","v":1.55E-2},null,"C","1950-01-01","9999-12-31",1,"Law Enforcement Sheriff Deputy Sr",20000524,"GRD74",7720,1.55E-2,72804.12,72804.12,88024,"POPS TCSO"]
[{"$f":"job_titles8[[#This Row],[Extended object ID]]","v":20000525},{"$f":"job_titles8[[#This Row],[WCI]]","v":7720},"9999-12-31",{"$f":"job_titles8[[#This Row],[WCI Rate]]","v":1.55E-2},null,"C","1950-01-01","9999-12-31",1,"Law Enforcement Detective",20000525,"GRD75",7720,1.55E-2,79983.070000000007,79983.070000000007,88024,"POPS TCSO"]
[{"$f":"job_titles8[[#This Row],[Extended object ID]]","v":20000526},{"$f":"job_titles8[[#This Row],[WCI]]","v":7720},"9999-12-31",{"$f":"job_titles8[[#This Row],[WCI Rate]]","v":1.55E-2},null,"C","1950-01-01","9999-12-31",1,"Law Enforcement Sergeant",20000526,"GRD76",7720,1.55E-2,92641.16,92641.16,88024,"POPS TCSO"]
[{"$f":"job_titles8[[#This Row],[Extended object ID]]","v":20000527},{"$f":"job_titles8[[#This Row],[WCI]]","v":7720},"9999-12-31",{"$f":"job_titles8[[#This Row],[WCI Rate]]","v":1.55E-2},null,"C","1950-01-01","9999-12-31",1,"Law Enforcement Lieutenant",20000527,"GRD77",7720,1.55E-2,108394.66,108394.66,88024,"POPS TCSO"]
[{"$f":"job_titles8[[#This Row],[Extended object ID]]","v":20000529},{"$f":"job_titles8[[#This Row],[WCI]]","v":7720},"9999-12-31",{"$f":"job_titles8[[#This Row],[WCI Rate]]","v":1.55E-2},null,"C","1950-01-01","9999-12-31",1,"Corrections Sergeant",20000529,"GRD88",7720,1.55E-2,85056.94,85056.94,88024,"POPS TCSO"]
[{"$f":"job_titles8[[#This Row],[Extended object ID]]","v":20000531},{"$f":"job_titles8[[#This Row],[WCI]]","v":7720},"9999-12-31",{"$f":"job_titles8[[#This Row],[WCI Rate]]","v":1.55E-2},null,"C","1950-01-01","9999-12-31",1,"Corrections Lieutenant",20000531,"GRD89",7720,1.55E-2,99446.9,99446.9,88024,"POPS TCSO"]
[{"$f":"job_titles8[[#This Row],[Extended object ID]]","v":20000532},{"$f":"job_titles8[[#This Row],[WCI]]","v":9102},"9999-12-31",{"$f":"job_titles8[[#This Row],[WCI Rate]]","v":2.0799999999999999E-2},null,"C","1950-01-01","9999-12-31",1,"Park Ranger",20000532,"GRD60",9102,2.0799999999999999E-2,64600,64600,88025,"POPS NON-TCSO"]
[{"$f":"job_titles8[[#This Row],[Extended object ID]]","v":20000533},{"$f":"job_titles8[[#This Row],[WCI]]","v":7720},"9999-12-31",{"$f":"job_titles8[[#This Row],[WCI Rate]]","v":1.55E-2},null,"C","1950-01-01","9999-12-31",1,"Constable Deputy",20000533,"GRD60",7720,1.55E-2,64600,64600,88025,"POPS NON-TCSO"]
[{"$f":"job_titles8[[#This Row],[Extended object ID]]","v":20000534},{"$f":"job_titles8[[#This Row],[WCI]]","v":7720},"9999-12-31",{"$f":"job_titles8[[#This Row],[WCI Rate]]","v":1.55E-2},null,"C","1950-01-01","9999-12-31",1,"Constable Deputy Sr",20000534,"GRD62",7720,1.55E-2,69163.91,69163.91,88025,"POPS NON-TCSO"]
[{"$f":"job_titles8[[#This Row],[Extended object ID]]","v":20000535},{"$f":"job_titles8[[#This Row],[WCI]]","v":9102},"9999-12-31",{"$f":"job_titles8[[#This Row],[WCI Rate]]","v":2.0799999999999999E-2},null,"C","1950-01-01","9999-12-31",1,"Park Ranger Sr",20000535,"GRD62",9102,2.0799999999999999E-2,69163.91,69163.91,88025,"POPS NON-TCSO"]
[{"$f":"job_titles8[[#This Row],[Extended object ID]]","v":20000536},{"$f":"job_titles8[[#This Row],[WCI]]","v":9102},"9999-12-31",{"$f":"job_titles8[[#This Row],[WCI Rate]]","v":2.0799999999999999E-2},null,"C","1950-01-01","9999-12-31",1,"Park Ranger Supv",20000536,"GRD67",9102,2.0799999999999999E-2,88009.1,88009.1,88025,"POPS NON-TCSO"]
[{"$f":"job_titles8[[#This Row],[Extended object ID]]","v":20000537},{"$f":"job_titles8[[#This Row],[WCI]]","v":7720},"9999-12-31",{"$f":"job_titles8[[#This Row],[WCI Rate]]","v":1.55E-2},null,"C","1950-01-01","9999-12-31",1,"Constable Sergeant",20000537,"GRD67",7720,1.55E-2,88009.1,88009.1,88025,"POPS NON-TCSO"]
[{"$f":"job_titles8[[#This Row],[Extended object ID]]","v":20000538},{"$f":"job_titles8[[#This Row],[WCI]]","v":7720},"9999-12-31",{"$f":"job_titles8[[#This Row],[WCI Rate]]","v":1.55E-2},null,"C","1950-01-01","9999-12-31",1,"Park Ranger Chief",20000538,"GRD70",7720,1.55E-2,0,0,88025,"POPS NON-TCSO"]
[{"$f":"job_titles8[[#This Row],[Extended object ID]]","v":20000539},{"$f":"job_titles8[[#This Row],[WCI]]","v":7720},"9999-12-31",{"$f":"job_titles8[[#This Row],[WCI Rate]]","v":1.55E-2},null,"C","1950-01-01","9999-12-31",1,"Constable Deputy Chief",20000539,"GRD69",7720,1.55E-2,97555.19,97555.19,88025,"POPS NON-TCSO"]
[{"$f":"job_titles8[[#This Row],[Extended object ID]]","v":20000540},{"$f":"job_titles8[[#This Row],[WCI]]","v":7720},"9999-12-31",{"$f":"job_titles8[[#This Row],[WCI Rate]]","v":1.55E-2},null,"C","1950-01-01","9999-12-31",1,"Investigator",20000540,"GRD65",7720,1.55E-2,79983.070000000007,79983.070000000007,88025,"POPS NON-TCSO"]
[{"$f":"job_titles8[[#This Row],[Extended object ID]]","v":20000542},{"$f":"job_titles8[[#This Row],[WCI]]","v":7720},"9999-12-31",{"$f":"job_titles8[[#This Row],[WCI Rate]]","v":1.55E-2},null,"C","1950-01-01","9999-12-31",1,"Investigations Lieutenant",20000542,"GRD69",7720,1.55E-2,97555.19,97555.19,88025,"POPS NON-TCSO"]
[{"$f":"job_titles8[[#This Row],[Extended object ID]]","v":20000544},{"$f":"job_titles8[[#This Row],[WCI]]","v":8810},"9999-12-31",{"$f":"job_titles8[[#This Row],[WCI Rate]]","v":1.6000000000000001E-3},null,"C","1950-01-01","9999-12-31",1,"Aud Office Specialist",20000544,"AUD16",8810,1.6000000000000001E-3,46292,74068,88026,"AUDITOR"]
[{"$f":"job_titles8[[#This Row],[Extended object ID]]","v":20000545},{"$f":"job_titles8[[#This Row],[WCI]]","v":8810},"9999-12-31",{"$f":"job_titles8[[#This Row],[WCI Rate]]","v":1.6000000000000001E-3},null,"C","1950-01-01","9999-12-31",1,"Aud Office Specialist Sr",20000545,"AUD17",8810,1.6000000000000001E-3,49533,79253,88026,"AUDITOR"]
[{"$f":"job_titles8[[#This Row],[Extended object ID]]","v":20000548},{"$f":"job_titles8[[#This Row],[WCI]]","v":8810},"9999-12-31",{"$f":"job_titles8[[#This Row],[WCI Rate]]","v":1.6000000000000001E-3},null,"C","1950-01-01","9999-12-31",1,"Aud Administrative Analyst",20000548,"AUD18",8810,1.6000000000000001E-3,53000,84801,88026,"AUDITOR"]
[{"$f":"job_titles8[[#This Row],[Extended object ID]]","v":20000549},{"$f":"job_titles8[[#This Row],[WCI]]","v":8810},"9999-12-31",{"$f":"job_titles8[[#This Row],[WCI Rate]]","v":1.6000000000000001E-3},null,"C","1950-01-01","9999-12-31",1,"Aud Executive Asst",20000549,"AUD20",8810,1.6000000000000001E-3,58978,100263,88026,"AUDITOR"]
[{"$f":"job_titles8[[#This Row],[Extended object ID]]","v":20000550},{"$f":"job_titles8[[#This Row],[WCI]]","v":8810},"9999-12-31",{"$f":"job_titles8[[#This Row],[WCI Rate]]","v":1.6000000000000001E-3},null,"C","1950-01-01","9999-12-31",1,"Aud Office Mgr",20000550,"AUD20",8810,1.6000000000000001E-3,58978,100263,88026,"AUDITOR"]
[{"$f":"job_titles8[[#This Row],[Extended object ID]]","v":20000553},{"$f":"job_titles8[[#This Row],[WCI]]","v":8810},"9999-12-31",{"$f":"job_titles8[[#This Row],[WCI Rate]]","v":1.6000000000000001E-3},null,"C","1950-01-01","9999-12-31",1,"Aud Records Analyst Assoc",20000553,"AUD17",8810,1.6000000000000001E-3,49533,79253,88026,"AUDITOR"]
[{"$f":"job_titles8[[#This Row],[Extended object ID]]","v":20000554},{"$f":"job_titles8[[#This Row],[WCI]]","v":8810},"9999-12-31",{"$f":"job_titles8[[#This Row],[WCI Rate]]","v":1.6000000000000001E-3},null,"C","1950-01-01","9999-12-31",1,"Aud Records Analyst Sr",20000554,"AUD19",8810,1.6000000000000001E-3,55120,93704,88026,"AUDITOR"]
[{"$f":"job_titles8[[#This Row],[Extended object ID]]","v":20000555},{"$f":"job_titles8[[#This Row],[WCI]]","v":8810},"9999-12-31",{"$f":"job_titles8[[#This Row],[WCI Rate]]","v":1.6000000000000001E-3},null,"C","1950-01-01","9999-12-31",1,"Aud Records Analyst Lead",20000555,"AUD20",8810,1.6000000000000001E-3,58978,100263,88026,"AUDITOR"]
[{"$f":"job_titles8[[#This Row],[Extended object ID]]","v":20000556},{"$f":"job_titles8[[#This Row],[WCI]]","v":8810},"9999-12-31",{"$f":"job_titles8[[#This Row],[WCI Rate]]","v":1.6000000000000001E-3},null,"C","1950-01-01","9999-12-31",1,"Aud ERP System Administrator I",20000556,"AUD25",8810,1.6000000000000001E-3,86659,147320,88026,"AUDITOR"]
[{"$f":"job_titles8[[#This Row],[Extended object ID]]","v":20000557},{"$f":"job_titles8[[#This Row],[WCI]]","v":8810},"9999-12-31",{"$f":"job_titles8[[#This Row],[WCI Rate]]","v":1.6000000000000001E-3},null,"C","1950-01-01","9999-12-31",1,"Aud ERP System Administrator II",20000557,"AUD26",8810,1.6000000000000001E-3,93592,159105,88026,"AUDITOR"]
[{"$f":"job_titles8[[#This Row],[Extended object ID]]","v":20000558},{"$f":"job_titles8[[#This Row],[WCI]]","v":8810},"9999-12-31",{"$f":"job_titles8[[#This Row],[WCI Rate]]","v":1.6000000000000001E-3},null,"C","1950-01-01","9999-12-31",1,"Aud ERP System Architect I",20000558,"AUD28",8810,1.6000000000000001E-3,109165,185580,88026,"AUDITOR"]
[{"$f":"job_titles8[[#This Row],[Extended object ID]]","v":20000559},{"$f":"job_titles8[[#This Row],[WCI]]","v":8810},"9999-12-31",{"$f":"job_titles8[[#This Row],[WCI Rate]]","v":1.6000000000000001E-3},null,"C","1950-01-01","9999-12-31",1,"Aud Business Analyst III",20000559,"AUD25",8810,1.6000000000000001E-3,86659,147320,88026,"AUDITOR"]
[{"$f":"job_titles8[[#This Row],[Extended object ID]]","v":20000560},{"$f":"job_titles8[[#This Row],[WCI]]","v":8810},"9999-12-31",{"$f":"job_titles8[[#This Row],[WCI Rate]]","v":1.6000000000000001E-3},null,"C","1950-01-01","9999-12-31",1,"Aud Business Consultant I",20000560,"AUD26",8810,1.6000000000000001E-3,93592,159105,88026,"AUDITOR"]
[{"$f":"job_titles8[[#This Row],[Extended object ID]]","v":20000561},{"$f":"job_titles8[[#This Row],[WCI]]","v":8810},"9999-12-31",{"$f":"job_titles8[[#This Row],[WCI Rate]]","v":1.6000000000000001E-3},null,"C","1950-01-01","9999-12-31",1,"Aud Business Consultant II",20000561,"AUD28",8810,1.6000000000000001E-3,109165,185580,88026,"AUDITOR"]
[{"$f":"job_titles8[[#This Row],[Extended object ID]]","v":20000562},{"$f":"job_titles8[[#This Row],[WCI]]","v":8810},"9999-12-31",{"$f":"job_titles8[[#This Row],[WCI Rate]]","v":1.6000000000000001E-3},null,"C","1950-01-01","9999-12-31",1,"Aud Application Architect I",20000562,"AUD27",8810,1.6000000000000001E-3,101079,171834,88026,"AUDITOR"]
[{"$f":"job_titles8[[#This Row],[Extended object ID]]","v":20000563},{"$f":"job_titles8[[#This Row],[WCI]]","v":8810},"9999-12-31",{"$f":"job_titles8[[#This Row],[WCI Rate]]","v":1.6000000000000001E-3},null,"C","1950-01-01","9999-12-31",1,"Aud Application Architect II",20000563,"AUD28",8810,1.6000000000000001E-3,109165,185580,88026,"AUDITOR"]
[{"$f":"job_titles8[[#This Row],[Extended object ID]]","v":20000564},{"$f":"job_titles8[[#This Row],[WCI]]","v":8810},"9999-12-31",{"$f":"job_titles8[[#This Row],[WCI Rate]]","v":1.6000000000000001E-3},null,"C","1950-01-01","9999-12-31",1,"Aud Application Dev Analyst I",20000564,"AUD23",8810,1.6000000000000001E-3,74297,126304,88026,"AUDITOR"]
[{"$f":"job_titles8[[#This Row],[Extended object ID]]","v":20000565},{"$f":"job_titles8[[#This Row],[WCI]]","v":8810},"9999-12-31",{"$f":"job_titles8[[#This Row],[WCI Rate]]","v":1.6000000000000001E-3},null,"C","1950-01-01","9999-12-31",1,"Aud Application Dev Analyst II",20000565,"AUD25",8810,1.6000000000000001E-3,86659,147320,88026,"AUDITOR"]
[{"$f":"job_titles8[[#This Row],[Extended object ID]]","v":20000566},{"$f":"job_titles8[[#This Row],[WCI]]","v":8810},"9999-12-31",{"$f":"job_titles8[[#This Row],[WCI Rate]]","v":1.6000000000000001E-3},null,"C","1950-01-01","9999-12-31",1,"Aud Application Dev Analyst III",20000566,"AUD26",8810,1.6000000000000001E-3,93592,159105,88026,"AUDITOR"]
[{"$f":"job_titles8[[#This Row],[Extended object ID]]","v":20000569},{"$f":"job_titles8[[#This Row],[WCI]]","v":8810},"9999-12-31",{"$f":"job_titles8[[#This Row],[WCI Rate]]","v":1.6000000000000001E-3},null,"C","1950-01-01","9999-12-31",1,"Aud BI Dev Analyst III",20000569,"AUD26",8810,1.6000000000000001E-3,93592,159105,88026,"AUDITOR"]
[{"$f":"job_titles8[[#This Row],[Extended object ID]]","v":20000570},{"$f":"job_titles8[[#This Row],[WCI]]","v":8810},"9999-12-31",{"$f":"job_titles8[[#This Row],[WCI Rate]]","v":1.6000000000000001E-3},null,"C","1950-01-01","9999-12-31",1,"Aud BI Architect II",20000570,"AUD28",8810,1.6000000000000001E-3,109165,185580,88026,"AUDITOR"]
[{"$f":"job_titles8[[#This Row],[Extended object ID]]","v":20000571},{"$f":"job_titles8[[#This Row],[WCI]]","v":8810},"9999-12-31",{"$f":"job_titles8[[#This Row],[WCI Rate]]","v":1.6000000000000001E-3},null,"C","1950-01-01","9999-12-31",1,"Aud Systems Engineer I",20000571,"AUD23",8810,1.6000000000000001E-3,74297,126304,88026,"AUDITOR"]
[{"$f":"job_titles8[[#This Row],[Extended object ID]]","v":20000572},{"$f":"job_titles8[[#This Row],[WCI]]","v":8810},"9999-12-31",{"$f":"job_titles8[[#This Row],[WCI Rate]]","v":1.6000000000000001E-3},null,"C","1950-01-01","9999-12-31",1,"Aud Systems Engineer II",20000572,"AUD25",8810,1.6000000000000001E-3,86659,147320,88026,"AUDITOR"]
[{"$f":"job_titles8[[#This Row],[Extended object ID]]","v":20000573},{"$f":"job_titles8[[#This Row],[WCI]]","v":8810},"9999-12-31",{"$f":"job_titles8[[#This Row],[WCI Rate]]","v":1.6000000000000001E-3},null,"C","1950-01-01","9999-12-31",1,"Aud Systems Engineer III",20000573,"AUD26",8810,1.6000000000000001E-3,93592,159105,88026,"AUDITOR"]
[{"$f":"job_titles8[[#This Row],[Extended object ID]]","v":20000575},{"$f":"job_titles8[[#This Row],[WCI]]","v":8810},"9999-12-31",{"$f":"job_titles8[[#This Row],[WCI Rate]]","v":1.6000000000000001E-3},null,"C","1950-01-01","9999-12-31",1,"Aud Auditor Assoc I",20000575,"AUD17",8810,1.6000000000000001E-3,49533,79253,88026,"AUDITOR"]
[{"$f":"job_titles8[[#This Row],[Extended object ID]]","v":20000576},{"$f":"job_titles8[[#This Row],[WCI]]","v":8810},"9999-12-31",{"$f":"job_titles8[[#This Row],[WCI Rate]]","v":1.6000000000000001E-3},null,"C","1950-01-01","9999-12-31",1,"Aud Auditor Assoc II",20000576,"AUD18",8810,1.6000000000000001E-3,53000,84801,88026,"AUDITOR"]
[{"$f":"job_titles8[[#This Row],[Extended object ID]]","v":20000577},{"$f":"job_titles8[[#This Row],[WCI]]","v":8810},"9999-12-31",{"$f":"job_titles8[[#This Row],[WCI Rate]]","v":1.6000000000000001E-3},null,"C","1950-01-01","9999-12-31",1,"Aud Financial Auditor Analyst I",20000577,"AUD20",8810,1.6000000000000001E-3,58978,100263,88026,"AUDITOR"]
[{"$f":"job_titles8[[#This Row],[Extended object ID]]","v":20000578},{"$f":"job_titles8[[#This Row],[WCI]]","v":8810},"9999-12-31",{"$f":"job_titles8[[#This Row],[WCI Rate]]","v":1.6000000000000001E-3},null,"C","1950-01-01","9999-12-31",1,"Aud Financial Auditor Analyst II",20000578,"AUD21",8810,1.6000000000000001E-3,63697,108285,88026,"AUDITOR"]
[{"$f":"job_titles8[[#This Row],[Extended object ID]]","v":20000579},{"$f":"job_titles8[[#This Row],[WCI]]","v":8810},"9999-12-31",{"$f":"job_titles8[[#This Row],[WCI Rate]]","v":1.6000000000000001E-3},null,"C","1950-01-01","9999-12-31",1,"Aud Financial Auditor Analyst III",20000579,"AUD23",8810,1.6000000000000001E-3,74297,126304,88026,"AUDITOR"]
[{"$f":"job_titles8[[#This Row],[Extended object ID]]","v":20000580},{"$f":"job_titles8[[#This Row],[WCI]]","v":8810},"9999-12-31",{"$f":"job_titles8[[#This Row],[WCI Rate]]","v":1.6000000000000001E-3},null,"C","1950-01-01","9999-12-31",1,"Aud Financial Auditor Analyst IV",20000580,"AUD25",8810,1.6000000000000001E-3,86659,147320,88026,"AUDITOR"]
[{"$f":"job_titles8[[#This Row],[Extended object ID]]","v":20000581},{"$f":"job_titles8[[#This Row],[WCI]]","v":8810},"9999-12-31",{"$f":"job_titles8[[#This Row],[WCI Rate]]","v":1.6000000000000001E-3},null,"C","1950-01-01","9999-12-31",1,"Aud Financial Auditor Analyst V",20000581,"AUD26",8810,1.6000000000000001E-3,93592,159105,88026,"AUDITOR"]
[{"$f":"job_titles8[[#This Row],[Extended object ID]]","v":20000582},{"$f":"job_titles8[[#This Row],[WCI]]","v":8810},"9999-12-31",{"$f":"job_titles8[[#This Row],[WCI Rate]]","v":1.6000000000000001E-3},null,"C","1950-01-01","9999-12-31",1,"Aud Financial Auditor Analyst VI",20000582,"AUD27",8810,1.6000000000000001E-3,101079,171834,88026,"AUDITOR"]
[{"$f":"job_titles8[[#This Row],[Extended object ID]]","v":20000583},{"$f":"job_titles8[[#This Row],[WCI]]","v":8810},"9999-12-31",{"$f":"job_titles8[[#This Row],[WCI Rate]]","v":1.6000000000000001E-3},null,"C","1900-01-01","9999-12-31",1,"Aud Financial Audit Mgr",20000583,"AUD28",8810,1.6000000000000001E-3,109165,185580,88026,"AUDITOR"]
[{"$f":"job_titles8[[#This Row],[Extended object ID]]","v":20000584},{"$f":"job_titles8[[#This Row],[WCI]]","v":8810},"9999-12-31",{"$f":"job_titles8[[#This Row],[WCI Rate]]","v":1.6000000000000001E-3},null,"C","1950-01-01","9999-12-31",1,"Aud Financial Systems Director-ERP",20000584,"AUD31",8810,1.6000000000000001E-3,145298,247007,88026,"AUDITOR"]
[{"$f":"job_titles8[[#This Row],[Extended object ID]]","v":20000585},{"$f":"job_titles8[[#This Row],[WCI]]","v":8810},"9999-12-31",{"$f":"job_titles8[[#This Row],[WCI Rate]]","v":1.6000000000000001E-3},null,"C","1950-01-01","9999-12-31",1,"Aud County Auditor Chief Asst I",20000585,"AUD30",8810,1.6000000000000001E-3,132089,224552,88026,"AUDITOR"]
[{"$f":"job_titles8[[#This Row],[Extended object ID]]","v":20000586},{"$f":"job_titles8[[#This Row],[WCI]]","v":8810},"9999-12-31",{"$f":"job_titles8[[#This Row],[WCI Rate]]","v":1.6000000000000001E-3},null,"C","1950-01-01","9999-12-31",1,"Aud County Auditor Chief Asst II",20000586,"AUD31",8810,1.6000000000000001E-3,145298,247007,88026,"AUDITOR"]
[{"$f":"job_titles8[[#This Row],[Extended object ID]]","v":20000587},{"$f":"job_titles8[[#This Row],[WCI]]","v":8810},"9999-12-31",{"$f":"job_titles8[[#This Row],[WCI Rate]]","v":1.6000000000000001E-3},null,"C","1950-01-01","9999-12-31",1,"Aud County Auditor First Asst",20000587,"AUD32",8810,1.6000000000000001E-3,159828,271708,88026,"AUDITOR"]
[{"$f":"job_titles8[[#This Row],[Extended object ID]]","v":20000590},{"$f":"job_titles8[[#This Row],[WCI]]","v":8810},"9999-12-31",{"$f":"job_titles8[[#This Row],[WCI Rate]]","v":1.6000000000000001E-3},null,"C","1950-01-01","9999-12-31",1,"Pur Support Specialist I",20000590,"C03",8810,1.6000000000000001E-3,44561.919999999998,57930.5,88027,"PUR PURCHASING"]
[{"$f":"job_titles8[[#This Row],[Extended object ID]]","v":20000591},{"$f":"job_titles8[[#This Row],[WCI]]","v":8810},"9999-12-31",{"$f":"job_titles8[[#This Row],[WCI Rate]]","v":1.6000000000000001E-3},null,"C","1950-01-01","9999-12-31",1,"Pur Support Specialist II",20000591,"C05",8810,1.6000000000000001E-3,47275.74,61458.46,88027,"PUR PURCHASING"]
[{"$f":"job_titles8[[#This Row],[Extended object ID]]","v":20000592},{"$f":"job_titles8[[#This Row],[WCI]]","v":8810},"9999-12-31",{"$f":"job_titles8[[#This Row],[WCI Rate]]","v":1.6000000000000001E-3},null,"C","1950-01-01","9999-12-31",1,"Pur Support Specialist III",20000592,"C07",8810,1.6000000000000001E-3,50398.3,68037.710000000006,88027,"PUR PURCHASING"]
[{"$f":"job_titles8[[#This Row],[Extended object ID]]","v":20000596},{"$f":"job_titles8[[#This Row],[WCI]]","v":8810},"9999-12-31",{"$f":"job_titles8[[#This Row],[WCI Rate]]","v":1.6000000000000001E-3},null,"C","1950-01-01","9999-12-31",1,"Pur HUB Specialist",20000596,"C10",8810,1.6000000000000001E-3,55877.5,82698.7,88027,"PUR PURCHASING"]
[{"$f":"job_titles8[[#This Row],[Extended object ID]]","v":20000597},{"$f":"job_titles8[[#This Row],[WCI]]","v":8810},"9999-12-31",{"$f":"job_titles8[[#This Row],[WCI Rate]]","v":1.6000000000000001E-3},null,"C","1950-01-01","9999-12-31",1,"Pur Assistant HUB Director",20000597,"C19",8810,1.6000000000000001E-3,92836.33,148538.12,88027,"PUR PURCHASING"]
[{"$f":"job_titles8[[#This Row],[Extended object ID]]","v":20000598},{"$f":"job_titles8[[#This Row],[WCI]]","v":8810},"9999-12-31",{"$f":"job_titles8[[#This Row],[WCI Rate]]","v":1.6000000000000001E-3},null,"C","1950-01-01","9999-12-31",1,"Pur Asset Specialist",20000598,"C07",8810,1.6000000000000001E-3,50398.3,68037.710000000006,88027,"PUR PURCHASING"]
[{"$f":"job_titles8[[#This Row],[Extended object ID]]","v":20000599},{"$f":"job_titles8[[#This Row],[WCI]]","v":8810},"9999-12-31",{"$f":"job_titles8[[#This Row],[WCI Rate]]","v":1.6000000000000001E-3},null,"C","1950-01-01","9999-12-31",1,"Pur Asset Coordinator",20000599,"C15",8810,1.6000000000000001E-3,70819.7,113311.53,88027,"PUR PURCHASING"]
[{"$f":"job_titles8[[#This Row],[Extended object ID]]","v":20000601},{"$f":"job_titles8[[#This Row],[WCI]]","v":8810},"9999-12-31",{"$f":"job_titles8[[#This Row],[WCI Rate]]","v":1.6000000000000001E-3},null,"C","1950-01-01","9999-12-31",1,"Pur Asst Purchasing Agent",20000601,"C20",8810,1.6000000000000001E-3,99345.18,158952.29,88027,"PUR PURCHASING"]
[{"$f":"job_titles8[[#This Row],[Extended object ID]]","v":20000602},{"$f":"job_titles8[[#This Row],[WCI]]","v":0},"9999-12-31",{"$f":"job_titles8[[#This Row],[WCI Rate]]","v":0},null,"C","1950-01-01","9999-12-31",1,"Non Employee",20000602,null,null,null,null,null,0,"0"]
[{"$f":"job_titles8[[#This Row],[Extended object ID]]","v":20000603},{"$f":"job_titles8[[#This Row],[WCI]]","v":8810},"9999-12-31",{"$f":"job_titles8[[#This Row],[WCI Rate]]","v":1.6000000000000001E-3},null,"C","1950-01-01","9999-12-31",1,"Customer Support Tech",20000603,"C08",8810,1.6000000000000001E-3,52162.239999999998,75635.25,88021,"INFORMATION TECH"]
[{"$f":"job_titles8[[#This Row],[Extended object ID]]","v":20000605},{"$f":"job_titles8[[#This Row],[WCI]]","v":8810},"9999-12-31",{"$f":"job_titles8[[#This Row],[WCI Rate]]","v":1.6000000000000001E-3},null,"C","1950-01-01","9999-12-31",1,"Public Information Officer Sr",20000605,"C13",8810,1.6000000000000001E-3,62854.59,100567.34,88012,"PUBLIC SAF/EMG MGMT"]
[{"$f":"job_titles8[[#This Row],[Extended object ID]]","v":20000607},{"$f":"job_titles8[[#This Row],[WCI]]","v":8832},"9999-12-31",{"$f":"job_titles8[[#This Row],[WCI Rate]]","v":1.9E-3},null,"C","1950-01-01","9999-12-31",1,"STAR Flight Medical Director",20000607,"NCF01",8832,1.9E-3,15080,500000,88020,"TEMP/SEASONAL"]
[{"$f":"job_titles8[[#This Row],[Extended object ID]]","v":20000608},{"$f":"job_titles8[[#This Row],[WCI]]","v":8810},"9999-12-31",{"$f":"job_titles8[[#This Row],[WCI Rate]]","v":1.6000000000000001E-3},null,"C","1950-01-01","9999-12-31",1,"Public Information Specialist",20000608,"C11",8810,1.6000000000000001E-3,58112.6,87168.9,88019,"PUBLIC INFORMATION"]
[{"$f":"job_titles8[[#This Row],[Extended object ID]]","v":20000610},{"$f":"job_titles8[[#This Row],[WCI]]","v":9015},"9999-12-31",{"$f":"job_titles8[[#This Row],[WCI Rate]]","v":1.8800000000000001E-2},null,"C","1950-01-01","9999-12-31",1,"Housekeeper",20000610,"C02",9015,1.8800000000000001E-2,43264,56243.199999999997,88001,"MAINTENANCE"]
[{"$f":"job_titles8[[#This Row],[Extended object ID]]","v":20000611},{"$f":"job_titles8[[#This Row],[WCI]]","v":8810},"9999-12-31",{"$f":"job_titles8[[#This Row],[WCI Rate]]","v":1.6000000000000001E-3},null,"C","1950-01-01","9999-12-31",1,"Parking Coordinator",20000611,"C06",8810,1.6000000000000001E-3,48694.01,65736.92,88004,"ADMINISTRATIVE SUPP"]
[{"$f":"job_titles8[[#This Row],[Extended object ID]]","v":20000612},{"$f":"job_titles8[[#This Row],[WCI]]","v":8601},"9999-12-31",{"$f":"job_titles8[[#This Row],[WCI Rate]]","v":1.8E-3},null,"C","1950-01-01","9999-12-31",1,"CADD Coordinator",20000612,"C11",8601,1.8E-3,58112.6,87168.9,88009,"ENGINEERING & ARCHITECTURAL"]
[{"$f":"job_titles8[[#This Row],[Extended object ID]]","v":20000614},{"$f":"job_titles8[[#This Row],[WCI]]","v":9015},"9999-12-31",{"$f":"job_titles8[[#This Row],[WCI Rate]]","v":1.8800000000000001E-2},null,"C","1950-01-01","9999-12-31",1,"Inventory Specialist",20000614,"C04",9015,1.8800000000000001E-2,45898.78,59668.41,88001,"MAINTENANCE"]
[{"$f":"job_titles8[[#This Row],[Extended object ID]]","v":20000615},{"$f":"job_titles8[[#This Row],[WCI]]","v":9102},"9999-12-31",{"$f":"job_titles8[[#This Row],[WCI Rate]]","v":2.0799999999999999E-2},null,"C","1950-01-01","9999-12-31",1,"Small Equipment Tech",20000615,"C04",9102,2.0799999999999999E-2,45898.78,59668.41,88001,"MAINTENANCE"]
[{"$f":"job_titles8[[#This Row],[Extended object ID]]","v":20000616},{"$f":"job_titles8[[#This Row],[WCI]]","v":8810},"9999-12-31",{"$f":"job_titles8[[#This Row],[WCI Rate]]","v":1.6000000000000001E-3},null,"C","1950-01-01","9999-12-31",1,"Planning Project Mgr",20000616,"C15",8810,1.6000000000000001E-3,70819.7,113311.53,88008,"PLANNING & RESEARCH"]
[{"$f":"job_titles8[[#This Row],[Extended object ID]]","v":20000617},{"$f":"job_titles8[[#This Row],[WCI]]","v":7720},"9999-12-31",{"$f":"job_titles8[[#This Row],[WCI Rate]]","v":1.55E-2},null,"C","1950-01-01","9999-12-31",1,"Fire Marshal Deputy Asst I",20000617,"C12",7720,1.55E-2,60437.1,90655.66,88012,"PUBLIC SAF/EMG MGMT"]
[{"$f":"job_titles8[[#This Row],[Extended object ID]]","v":20000618},{"$f":"job_titles8[[#This Row],[WCI]]","v":8810},"9999-12-31",{"$f":"job_titles8[[#This Row],[WCI Rate]]","v":1.6000000000000001E-3},null,"C","1950-01-01","9999-12-31",1,"Fleet Services Associate",20000618,"C08",8810,1.6000000000000001E-3,52162.239999999998,75635.25,88002,"SKILLED TRADES"]
[{"$f":"job_titles8[[#This Row],[Extended object ID]]","v":20000619},{"$f":"job_titles8[[#This Row],[WCI]]","v":8391},"9999-12-31",{"$f":"job_titles8[[#This Row],[WCI Rate]]","v":1.2800000000000001E-2},null,"C","1950-01-01","9999-12-31",1,"Mechanic Lead",20000619,"C10",8391,1.2800000000000001E-2,55877.5,82698.7,88002,"SKILLED TRADES"]
[{"$f":"job_titles8[[#This Row],[Extended object ID]]","v":20000621},{"$f":"job_titles8[[#This Row],[WCI]]","v":8810},"9999-12-31",{"$f":"job_titles8[[#This Row],[WCI Rate]]","v":1.6000000000000001E-3},null,"C","1950-01-01","9999-12-31",1,"Veterans Svcs Ofcr Asst",20000621,"C09",8810,1.6000000000000001E-3,53987.92,78282.490000000005,88015,"PROFESSIONAL SUPP"]
[{"$f":"job_titles8[[#This Row],[Extended object ID]]","v":20000651},{"$f":"job_titles8[[#This Row],[WCI]]","v":8832},"9999-12-31",{"$f":"job_titles8[[#This Row],[WCI Rate]]","v":1.9E-3},null,"C","1950-01-01","9999-12-31",1,"Psychological Svcs Mgr",20000651,"C18",8832,1.9E-3,86761.41,138818.25,88014,"MANAGEMENT"]
[{"$f":"job_titles8[[#This Row],[Extended object ID]]","v":20049999},{"$f":"job_titles8[[#This Row],[WCI]]","v":8810},"9999-12-31",{"$f":"job_titles8[[#This Row],[WCI Rate]]","v":1.6000000000000001E-3},null,"C","1950-01-01","9999-12-31",1,"Election Day Worker",20049999,null,8810,1.6000000000000001E-3,null,null,0,"0"]
[{"$f":"job_titles8[[#This Row],[Extended object ID]]","v":20050001},{"$f":"job_titles8[[#This Row],[WCI]]","v":8601},"9999-12-31",{"$f":"job_titles8[[#This Row],[WCI Rate]]","v":1.8E-3},null,"C","2012-04-17","9999-12-31",1,"Hydrogeologist",20050001,"C13",8601,1.8E-3,62854.59,100567.34,88009,"ENGINEERING & ARCHITECTURAL"]
[{"$f":"job_titles8[[#This Row],[Extended object ID]]","v":20050004},{"$f":"job_titles8[[#This Row],[WCI]]","v":8810},"9999-12-31",{"$f":"job_titles8[[#This Row],[WCI Rate]]","v":1.6000000000000001E-3},null,"C","2012-06-08","9999-12-31",1,"County Executive ES Succession",20050004,"GRD34",8810,1.6000000000000001E-3,125230.14,200368.23,88007,"COUNTY EXECUTIVES"]
[{"$f":"job_titles8[[#This Row],[Extended object ID]]","v":20050026},{"$f":"job_titles8[[#This Row],[WCI]]","v":7422},"9999-12-31",{"$f":"job_titles8[[#This Row],[WCI Rate]]","v":1.3299999999999999E-2},null,"C","2012-07-24","9999-12-31",1,"Helicopter Pilot Sr Succession",20050026,"GRD26",7422,1.3299999999999999E-2,72861.570000000007,116578.59,88012,"PUBLIC SAF/EMG MGMT"]
[{"$f":"job_titles8[[#This Row],[Extended object ID]]","v":20050027},{"$f":"job_titles8[[#This Row],[WCI]]","v":9015},"9999-12-31",{"$f":"job_titles8[[#This Row],[WCI Rate]]","v":1.8800000000000001E-2},null,"C","2012-07-24","9999-12-31",1,"Groundskeeper Lead",20050027,"C04",9015,1.8800000000000001E-2,45898.78,59668.41,88001,"MAINTENANCE"]
[{"$f":"job_titles8[[#This Row],[Extended object ID]]","v":20050052},{"$f":"job_titles8[[#This Row],[WCI]]","v":9999},"9999-12-31",{"$f":"job_titles8[[#This Row],[WCI Rate]]","v":0},null,"C","2012-09-24","9999-12-31",1,"CSCD Mailroom Services Asst",20050052,"NCF01",9999,0,15080,500000,88004,"ADMINISTRATIVE SUPP"]
[{"$f":"job_titles8[[#This Row],[Extended object ID]]","v":20050053},{"$f":"job_titles8[[#This Row],[WCI]]","v":9999},"9999-12-31",{"$f":"job_titles8[[#This Row],[WCI Rate]]","v":0},null,"C","2012-09-24","9999-12-31",1,"CSCD Substance Abuse Monitor",20050053,"NCF01",9999,0,15080,500000,88013,"COURT SERVICES"]
[{"$f":"job_titles8[[#This Row],[Extended object ID]]","v":20050054},{"$f":"job_titles8[[#This Row],[WCI]]","v":9999},"9999-12-31",{"$f":"job_titles8[[#This Row],[WCI Rate]]","v":0},null,"C","2012-09-24","9999-12-31",1,"CSCD Social Services Aide",20050054,"NCF01",9999,0,15080,500000,88011,"SOCIAL SVCS"]
[{"$f":"job_titles8[[#This Row],[Extended object ID]]","v":20050055},{"$f":"job_titles8[[#This Row],[WCI]]","v":9999},"9999-12-31",{"$f":"job_titles8[[#This Row],[WCI Rate]]","v":0},null,"C","2012-09-24","9999-12-31",1,"CSCD Accounting Clerk",20050055,"NCF01",9999,0,15080,500000,88005,"FINANCE"]
[{"$f":"job_titles8[[#This Row],[Extended object ID]]","v":20050056},{"$f":"job_titles8[[#This Row],[WCI]]","v":9999},"9999-12-31",{"$f":"job_titles8[[#This Row],[WCI Rate]]","v":0},null,"C","2012-09-24","9999-12-31",1,"CSCD Office Specialist",20050056,"NCF01",9999,0,15080,500000,88004,"ADMINISTRATIVE SUPP"]
[{"$f":"job_titles8[[#This Row],[Extended object ID]]","v":20050057},{"$f":"job_titles8[[#This Row],[WCI]]","v":9999},"9999-12-31",{"$f":"job_titles8[[#This Row],[WCI Rate]]","v":0},null,"C","2012-09-24","9999-12-31",1,"CSCD Administrative Asst I",20050057,"NCF01",9999,0,15080,500000,88004,"ADMINISTRATIVE SUPP"]
[{"$f":"job_titles8[[#This Row],[Extended object ID]]","v":20050058},{"$f":"job_titles8[[#This Row],[WCI]]","v":9999},"9999-12-31",{"$f":"job_titles8[[#This Row],[WCI Rate]]","v":0},null,"C","2012-09-24","9999-12-31",1,"CSCD Social Services Program Spc Assoc",20050058,"NCF01",9999,0,15080,500000,88011,"SOCIAL SVCS"]
[{"$f":"job_titles8[[#This Row],[Extended object ID]]","v":20050059},{"$f":"job_titles8[[#This Row],[WCI]]","v":9999},"9999-12-31",{"$f":"job_titles8[[#This Row],[WCI Rate]]","v":0},null,"C","2012-09-24","9999-12-31",1,"CSCD Office Specialist Sr",20050059,"NCF01",9999,0,15080,500000,88004,"ADMINISTRATIVE SUPP"]
[{"$f":"job_titles8[[#This Row],[Extended object ID]]","v":20050060},{"$f":"job_titles8[[#This Row],[WCI]]","v":9999},"9999-12-31",{"$f":"job_titles8[[#This Row],[WCI Rate]]","v":0},null,"C","2012-09-24","9999-12-31",1,"CSCD Human Resources Asst II",20050060,"NCF01",9999,0,15080,500000,88016,"HUMAN RESOURCES"]
[{"$f":"job_titles8[[#This Row],[Extended object ID]]","v":20050061},{"$f":"job_titles8[[#This Row],[WCI]]","v":9999},"9999-12-31",{"$f":"job_titles8[[#This Row],[WCI Rate]]","v":0},null,"C","2012-09-24","9999-12-31",1,"CSCD Chemical Dependency Counselor",20050061,"NCF01",9999,0,15080,500000,88011,"SOCIAL SVCS"]
[{"$f":"job_titles8[[#This Row],[Extended object ID]]","v":20050062},{"$f":"job_titles8[[#This Row],[WCI]]","v":9999},"9999-12-31",{"$f":"job_titles8[[#This Row],[WCI Rate]]","v":0},null,"C","2012-09-24","9999-12-31",1,"CSCD Counselor",20050062,"NCF01",9999,0,15080,500000,88011,"SOCIAL SVCS"]
[{"$f":"job_titles8[[#This Row],[Extended object ID]]","v":20050063},{"$f":"job_titles8[[#This Row],[WCI]]","v":9999},"9999-12-31",{"$f":"job_titles8[[#This Row],[WCI Rate]]","v":0},null,"C","2012-09-24","9999-12-31",1,"CSCD Administrative Assoc",20050063,"NCF01",9999,0,15080,500000,88004,"ADMINISTRATIVE SUPP"]
[{"$f":"job_titles8[[#This Row],[Extended object ID]]","v":20050064},{"$f":"job_titles8[[#This Row],[WCI]]","v":9999},"9999-12-31",{"$f":"job_titles8[[#This Row],[WCI Rate]]","v":0},null,"C","2012-09-24","9999-12-31",1,"CSCD Office Supv",20050064,"NCF01",9999,0,15080,500000,88004,"ADMINISTRATIVE SUPP"]
[{"$f":"job_titles8[[#This Row],[Extended object ID]]","v":20050065},{"$f":"job_titles8[[#This Row],[WCI]]","v":9999},"9999-12-31",{"$f":"job_titles8[[#This Row],[WCI Rate]]","v":0},null,"C","2012-09-24","9999-12-31",1,"CSCD Chemical Dependency Counselor Sr",20050065,"NCF01",9999,0,15080,500000,88011,"SOCIAL SVCS"]
[{"$f":"job_titles8[[#This Row],[Extended object ID]]","v":20050066},{"$f":"job_titles8[[#This Row],[WCI]]","v":9999},"9999-12-31",{"$f":"job_titles8[[#This Row],[WCI Rate]]","v":0},null,"C","2012-09-24","9999-12-31",1,"CSCD Executive Asst",20050066,"NCF01",9999,0,15080,500000,88004,"ADMINISTRATIVE SUPP"]
[{"$f":"job_titles8[[#This Row],[Extended object ID]]","v":20050067},{"$f":"job_titles8[[#This Row],[WCI]]","v":9999},"9999-12-31",{"$f":"job_titles8[[#This Row],[WCI Rate]]","v":0},null,"C","2012-09-24","9999-12-31",1,"CSCD Social Services Program Specialist",20050067,"NCF01",9999,0,15080,500000,88011,"SOCIAL SVCS"]
[{"$f":"job_titles8[[#This Row],[Extended object ID]]","v":20050068},{"$f":"job_titles8[[#This Row],[WCI]]","v":9999},"9999-12-31",{"$f":"job_titles8[[#This Row],[WCI Rate]]","v":0},null,"C","2012-09-24","9999-12-31",1,"CSCD Social Services Program Coord",20050068,"NCF01",9999,0,15080,500000,88011,"SOCIAL SVCS"]
[{"$f":"job_titles8[[#This Row],[Extended object ID]]","v":20050069},{"$f":"job_titles8[[#This Row],[WCI]]","v":9999},"9999-12-31",{"$f":"job_titles8[[#This Row],[WCI Rate]]","v":0},null,"C","2012-09-24","9999-12-31",1,"CSCD Social Services Mgr",20050069,"NCF01",9999,0,15080,500000,88011,"SOCIAL SVCS"]
[{"$f":"job_titles8[[#This Row],[Extended object ID]]","v":20050070},{"$f":"job_titles8[[#This Row],[WCI]]","v":9999},"9999-12-31",{"$f":"job_titles8[[#This Row],[WCI Rate]]","v":0},null,"C","2012-09-24","9999-12-31",1,"CSCD Business Analyst Assoc",20050070,"NCF01",9999,0,15080,500000,88021,"INFORMATION TECH"]
[{"$f":"job_titles8[[#This Row],[Extended object ID]]","v":20050071},{"$f":"job_titles8[[#This Row],[WCI]]","v":9999},"9999-12-31",{"$f":"job_titles8[[#This Row],[WCI Rate]]","v":0},null,"C","2012-09-24","9999-12-31",1,"CSCD Customer Support Tech Sr",20050071,"NCF01",9999,0,15080,500000,88021,"INFORMATION TECH"]
[{"$f":"job_titles8[[#This Row],[Extended object ID]]","v":20050072},{"$f":"job_titles8[[#This Row],[WCI]]","v":9999},"9999-12-31",{"$f":"job_titles8[[#This Row],[WCI Rate]]","v":0},null,"C","2012-09-24","9999-12-31",1,"CSCD Financial Analyst Sr",20050072,"NCF01",9999,0,15080,500000,88005,"FINANCE"]
[{"$f":"job_titles8[[#This Row],[Extended object ID]]","v":20050073},{"$f":"job_titles8[[#This Row],[WCI]]","v":9999},"9999-12-31",{"$f":"job_titles8[[#This Row],[WCI Rate]]","v":0},null,"C","2012-09-24","9999-12-31",1,"CSCD Training Education Coord Sr",20050073,"NCF01",9999,0,15080,500000,88016,"HUMAN RESOURCES"]
[{"$f":"job_titles8[[#This Row],[Extended object ID]]","v":20050074},{"$f":"job_titles8[[#This Row],[WCI]]","v":9999},"9999-12-31",{"$f":"job_titles8[[#This Row],[WCI Rate]]","v":0},null,"C","2012-09-24","9999-12-31",1,"CSCD Case Mgmt Coord",20050074,"NCF01",9999,0,15080,500000,88011,"SOCIAL SVCS"]
[{"$f":"job_titles8[[#This Row],[Extended object ID]]","v":20050075},{"$f":"job_titles8[[#This Row],[WCI]]","v":9999},"9999-12-31",{"$f":"job_titles8[[#This Row],[WCI Rate]]","v":0},null,"C","2012-09-24","9999-12-31",1,"CSCD Planner Sr",20050075,"NCF01",9999,0,15080,500000,88008,"PLANNING & RESEARCH"]
[{"$f":"job_titles8[[#This Row],[Extended object ID]]","v":20050076},{"$f":"job_titles8[[#This Row],[WCI]]","v":9999},"9999-12-31",{"$f":"job_titles8[[#This Row],[WCI Rate]]","v":0},null,"C","2012-09-24","9999-12-31",1,"CSCD Social Services Program Adm",20050076,"NCF01",9999,0,15080,500000,88011,"SOCIAL SVCS"]
[{"$f":"job_titles8[[#This Row],[Extended object ID]]","v":20050077},{"$f":"job_titles8[[#This Row],[WCI]]","v":9999},"9999-12-31",{"$f":"job_titles8[[#This Row],[WCI Rate]]","v":0},null,"C","2012-09-24","9999-12-31",1,"CSCD Business Analyst I",20050077,"NCF01",9999,0,15080,500000,88021,"INFORMATION TECH"]
[{"$f":"job_titles8[[#This Row],[Extended object ID]]","v":20050078},{"$f":"job_titles8[[#This Row],[WCI]]","v":9999},"9999-12-31",{"$f":"job_titles8[[#This Row],[WCI Rate]]","v":0},null,"C","2012-09-24","9999-12-31",1,"CSCD Financial Analyst Lead",20050078,"NCF01",9999,0,15080,500000,88005,"FINANCE"]
[{"$f":"job_titles8[[#This Row],[Extended object ID]]","v":20050079},{"$f":"job_titles8[[#This Row],[WCI]]","v":9999},"9999-12-31",{"$f":"job_titles8[[#This Row],[WCI Rate]]","v":0},null,"C","2012-09-24","9999-12-31",1,"CSCD Human Resources Mgr I",20050079,"NCF01",9999,0,15080,500000,88016,"HUMAN RESOURCES"]
[{"$f":"job_titles8[[#This Row],[Extended object ID]]","v":20050080},{"$f":"job_titles8[[#This Row],[WCI]]","v":9999},"9999-12-31",{"$f":"job_titles8[[#This Row],[WCI Rate]]","v":0},null,"C","2012-09-24","9999-12-31",1,"CSCD Administrative Services Div Dir",20050080,"NCF01",9999,0,15080,500000,88014,"MANAGEMENT"]
[{"$f":"job_titles8[[#This Row],[Extended object ID]]","v":20050081},{"$f":"job_titles8[[#This Row],[WCI]]","v":8601},"9999-12-31",{"$f":"job_titles8[[#This Row],[WCI Rate]]","v":1.8E-3},null,"C","2012-10-01","9999-12-31",1,"Dev Svcs Long Range Planning Div Dir",20050081,"C20",8601,1.8E-3,99345.18,158952.29,88014,"MANAGEMENT"]
[{"$f":"job_titles8[[#This Row],[Extended object ID]]","v":20050082},{"$f":"job_titles8[[#This Row],[WCI]]","v":8810},"9999-12-31",{"$f":"job_titles8[[#This Row],[WCI Rate]]","v":1.6000000000000001E-3},null,"C","2012-10-01","9999-12-31",1,"Long Range Planning Mgr",20050082,"C17",8810,1.6000000000000001E-3,81074.789999999994,129719.67,88014,"MANAGEMENT"]
[{"$f":"job_titles8[[#This Row],[Extended object ID]]","v":20050083},{"$f":"job_titles8[[#This Row],[WCI]]","v":8601},"9999-12-31",{"$f":"job_titles8[[#This Row],[WCI Rate]]","v":1.8E-3},null,"C","2012-10-01","9999-12-31",1,"Real Estate Div Mgr",20050083,"C17",8601,1.8E-3,81074.789999999994,129719.67,88015,"PROFESSIONAL SUPP"]
[{"$f":"job_titles8[[#This Row],[Extended object ID]]","v":20050084},{"$f":"job_titles8[[#This Row],[WCI]]","v":5606},"9999-12-31",{"$f":"job_titles8[[#This Row],[WCI Rate]]","v":5.5999999999999999E-3},null,"C","2012-10-01","9999-12-31",1,"Asst Public Works Dir",20050084,"C20",5606,5.5999999999999999E-3,99345.18,158952.29,88014,"MANAGEMENT"]
[{"$f":"job_titles8[[#This Row],[Extended object ID]]","v":20050126},{"$f":"job_titles8[[#This Row],[WCI]]","v":8810},"9999-12-31",{"$f":"job_titles8[[#This Row],[WCI Rate]]","v":1.6000000000000001E-3},null,"C","1950-01-01","9999-12-31",1,"Voter Reg Outreach Program Coord",20050126,"C09",8810,1.6000000000000001E-3,53987.92,78282.490000000005,88019,"PUBLIC INFORMATION"]
[{"$f":"job_titles8[[#This Row],[Extended object ID]]","v":20050151},{"$f":"job_titles8[[#This Row],[WCI]]","v":9999},"9999-12-31",{"$f":"job_titles8[[#This Row],[WCI Rate]]","v":0},null,"C",-36522,"9999-12-31",1,"CSCD Purchasing Clerk III",20050151,"NCF01",9999,0,15080,500000,88010,"PURCHASING & INVENTORY CONTROL"]
[{"$f":"job_titles8[[#This Row],[Extended object ID]]","v":20050152},{"$f":"job_titles8[[#This Row],[WCI]]","v":9999},"9999-12-31",{"$f":"job_titles8[[#This Row],[WCI Rate]]","v":0},null,"C","2012-09-24","9999-12-31",1,"CSCD Business Analyst II",20050152,"NCF01",9999,0,15080,500000,88021,"INFORMATION TECH"]
[{"$f":"job_titles8[[#This Row],[Extended object ID]]","v":20050153},{"$f":"job_titles8[[#This Row],[WCI]]","v":9999},"9999-12-31",{"$f":"job_titles8[[#This Row],[WCI Rate]]","v":0},null,"C","2012-09-24","9999-12-31",1,"CSCD Custodian",20050153,"NCF01",9999,0,15080,500000,88001,"MAINTENANCE"]
[{"$f":"job_titles8[[#This Row],[Extended object ID]]","v":20050176},{"$f":"job_titles8[[#This Row],[WCI]]","v":8810},"9999-12-31",{"$f":"job_titles8[[#This Row],[WCI Rate]]","v":1.6000000000000001E-3},null,"C","2013-01-29","9999-12-31",1,"Leave Coordinator",20050176,"C10",8810,1.6000000000000001E-3,55877.5,82698.7,88016,"HUMAN RESOURCES"]
[{"$f":"job_titles8[[#This Row],[Extended object ID]]","v":20050201},{"$f":"job_titles8[[#This Row],[WCI]]","v":8810},"9999-12-31",{"$f":"job_titles8[[#This Row],[WCI Rate]]","v":1.6000000000000001E-3},null,"C","2013-02-05","2013-12-31",1,"County/District Clerk Div Dir Succession",20050201,null,8810,1.6000000000000001E-3,null,null,0,"0"]
[{"$f":"job_titles8[[#This Row],[Extended object ID]]","v":20050227},{"$f":"job_titles8[[#This Row],[WCI]]","v":8810},"9999-12-31",{"$f":"job_titles8[[#This Row],[WCI Rate]]","v":1.6000000000000001E-3},null,"C","2013-01-02","9999-12-31",1,"Special Asst to Commissioners Court",20050227,"NCF01",8810,1.6000000000000001E-3,15080,500000,88014,"MANAGEMENT"]
[{"$f":"job_titles8[[#This Row],[Extended object ID]]","v":20050228},{"$f":"job_titles8[[#This Row],[WCI]]","v":8810},"9999-12-31",{"$f":"job_titles8[[#This Row],[WCI Rate]]","v":1.6000000000000001E-3},null,"C","2013-02-26","9999-12-31",1,"Internal Auditor",20050228,"C13",8810,1.6000000000000001E-3,62854.59,100567.34,88005,"FINANCE"]
[{"$f":"job_titles8[[#This Row],[Extended object ID]]","v":20050229},{"$f":"job_titles8[[#This Row],[WCI]]","v":8810},"9999-12-31",{"$f":"job_titles8[[#This Row],[WCI Rate]]","v":1.6000000000000001E-3},null,"C","2013-02-16","9999-12-31",1,"Exposition Center Coordinator",20050229,"C07",8810,1.6000000000000001E-3,50398.3,68037.710000000006,88014,"MANAGEMENT"]
[{"$f":"job_titles8[[#This Row],[Extended object ID]]","v":20050251},{"$f":"job_titles8[[#This Row],[WCI]]","v":8832},"9999-12-31",{"$f":"job_titles8[[#This Row],[WCI Rate]]","v":1.9E-3},null,"C","2013-04-09","9999-12-31",1,"Psychology Intern",20050251,"C03",8832,1.9E-3,44561.919999999998,57930.5,88011,"SOCIAL SVCS"]
[{"$f":"job_titles8[[#This Row],[Extended object ID]]","v":20050252},{"$f":"job_titles8[[#This Row],[WCI]]","v":9999},"9999-12-31",{"$f":"job_titles8[[#This Row],[WCI Rate]]","v":0},null,"C","2013-04-24","9999-12-31",1,"CSCD Case Worker",20050252,"NCF01",9999,0,15080,500000,88011,"SOCIAL SVCS"]
[{"$f":"job_titles8[[#This Row],[Extended object ID]]","v":20050277},{"$f":"job_titles8[[#This Row],[WCI]]","v":8810},"9999-12-31",{"$f":"job_titles8[[#This Row],[WCI Rate]]","v":1.6000000000000001E-3},null,"C","2013-06-18","9999-12-31",1,"Natural Resources Supervisor",20050277,"C13",8810,1.6000000000000001E-3,62854.59,100567.34,88015,"PROFESSIONAL SUPP"]
[{"$f":"job_titles8[[#This Row],[Extended object ID]]","v":20050302},{"$f":"job_titles8[[#This Row],[WCI]]","v":9102},"9999-12-31",{"$f":"job_titles8[[#This Row],[WCI Rate]]","v":2.0799999999999999E-2},null,"C","2013-07-02","9999-12-31",1,"Environmental Technician",20050302,"C06",9102,2.0799999999999999E-2,48694.01,65736.92,88015,"PROFESSIONAL SUPP"]
[{"$f":"job_titles8[[#This Row],[Extended object ID]]","v":20050326},{"$f":"job_titles8[[#This Row],[WCI]]","v":8810},"9999-12-31",{"$f":"job_titles8[[#This Row],[WCI Rate]]","v":1.6000000000000001E-3},null,"C","2013-08-20","9999-12-31",1,"Court Services Director",20050326,"C18",8810,1.6000000000000001E-3,86761.41,138818.25,88014,"MANAGEMENT"]
[{"$f":"job_titles8[[#This Row],[Extended object ID]]","v":20050351},{"$f":"job_titles8[[#This Row],[WCI]]","v":8810},"9999-12-31",{"$f":"job_titles8[[#This Row],[WCI Rate]]","v":1.6000000000000001E-3},null,"C","2013-07-01","9999-12-31",1,"AUD Finance/Transparency Support Mgr",20050351,"AUD30",8810,1.6000000000000001E-3,132089,224552,88026,"AUDITOR"]
[{"$f":"job_titles8[[#This Row],[Extended object ID]]","v":20050352},{"$f":"job_titles8[[#This Row],[WCI]]","v":8810},"9999-12-31",{"$f":"job_titles8[[#This Row],[WCI Rate]]","v":1.6000000000000001E-3},null,"C","2013-10-01","9999-12-31",1,"Aud Business Analyst II",20050352,"AUD24",8810,1.6000000000000001E-3,80240,136408,88026,"AUDITOR"]
[{"$f":"job_titles8[[#This Row],[Extended object ID]]","v":20050353},{"$f":"job_titles8[[#This Row],[WCI]]","v":8810},"9999-12-31",{"$f":"job_titles8[[#This Row],[WCI Rate]]","v":1.6000000000000001E-3},null,"C","2013-09-10","9999-12-31",1,"Aud Business Analyst I",20050353,"AUD22",8810,1.6000000000000001E-3,68793,116948,88026,"AUDITOR"]
[{"$f":"job_titles8[[#This Row],[Extended object ID]]","v":20050354},{"$f":"job_titles8[[#This Row],[WCI]]","v":8810},"9999-12-31",{"$f":"job_titles8[[#This Row],[WCI Rate]]","v":1.6000000000000001E-3},null,"C","2013-09-03","9999-12-31",1,"Aud BI Architect I",20050354,"AUD27",8810,1.6000000000000001E-3,101079,171834,88026,"AUDITOR"]
[{"$f":"job_titles8[[#This Row],[Extended object ID]]","v":20050355},{"$f":"job_titles8[[#This Row],[WCI]]","v":8810},"9999-12-31",{"$f":"job_titles8[[#This Row],[WCI Rate]]","v":1.6000000000000001E-3},null,"C","2013-09-03","9999-12-31",1,"Aud BI Dev Analyst II",20050355,"AUD25",8810,1.6000000000000001E-3,86659,147320,88026,"AUDITOR"]
[{"$f":"job_titles8[[#This Row],[Extended object ID]]","v":20050356},{"$f":"job_titles8[[#This Row],[WCI]]","v":8810},"9999-12-31",{"$f":"job_titles8[[#This Row],[WCI Rate]]","v":1.6000000000000001E-3},null,"C","2013-09-11","9999-12-31",1,"Aud BI Dev Analyst I",20050356,"AUD23",8810,1.6000000000000001E-3,74297,126304,88026,"AUDITOR"]
[{"$f":"job_titles8[[#This Row],[Extended object ID]]","v":20050357},{"$f":"job_titles8[[#This Row],[WCI]]","v":8810},"9999-12-31",{"$f":"job_titles8[[#This Row],[WCI Rate]]","v":1.6000000000000001E-3},null,"C","2013-10-01","9999-12-31",1,"Aud ERP System Architect II",20050357,"AUD30",8810,1.6000000000000001E-3,132089,224552,88026,"AUDITOR"]
[{"$f":"job_titles8[[#This Row],[Extended object ID]]","v":20050359},{"$f":"job_titles8[[#This Row],[WCI]]","v":8810},"9999-12-31",{"$f":"job_titles8[[#This Row],[WCI Rate]]","v":1.6000000000000001E-3},null,"C","2013-10-01","9999-12-31",1,"Aud Application Security Architect II",20050359,"AUD27",8810,1.6000000000000001E-3,101079,171834,88026,"AUDITOR"]
[{"$f":"job_titles8[[#This Row],[Extended object ID]]","v":20050360},{"$f":"job_titles8[[#This Row],[WCI]]","v":8810},"9999-12-31",{"$f":"job_titles8[[#This Row],[WCI Rate]]","v":1.6000000000000001E-3},null,"C","2013-09-03","9999-12-31",1,"Aud Application Security Architect I",20050360,"AUD26",8810,1.6000000000000001E-3,93592,159105,88026,"AUDITOR"]
[{"$f":"job_titles8[[#This Row],[Extended object ID]]","v":20050361},{"$f":"job_titles8[[#This Row],[WCI]]","v":8810},"9999-12-31",{"$f":"job_titles8[[#This Row],[WCI Rate]]","v":1.6000000000000001E-3},null,"C","2013-09-03","9999-12-31",1,"Aud Application Security Administrator",20050361,"AUD25",8810,1.6000000000000001E-3,86659,147320,88026,"AUDITOR"]
[{"$f":"job_titles8[[#This Row],[Extended object ID]]","v":20050426},{"$f":"job_titles8[[#This Row],[WCI]]","v":7720},"9999-12-31",{"$f":"job_titles8[[#This Row],[WCI Rate]]","v":1.55E-2},null,"C","2013-10-01","9999-12-31",1,"Evidence Tech Lead",20050426,"C09",7720,1.55E-2,53987.92,78282.490000000005,88012,"PUBLIC SAF/EMG MGMT"]
[{"$f":"job_titles8[[#This Row],[Extended object ID]]","v":20050427},{"$f":"job_titles8[[#This Row],[WCI]]","v":7720},"9999-12-31",{"$f":"job_titles8[[#This Row],[WCI Rate]]","v":1.55E-2},null,"C","2013-10-01","9999-12-31",1,"Corrections Specialist",20050427,"C07",7720,1.55E-2,50398.3,68037.710000000006,88004,"ADMINISTRATIVE SUPP"]
[{"$f":"job_titles8[[#This Row],[Extended object ID]]","v":20050428},{"$f":"job_titles8[[#This Row],[WCI]]","v":8810},"9999-12-31",{"$f":"job_titles8[[#This Row],[WCI Rate]]","v":1.6000000000000001E-3},null,"C","2013-10-01","9999-12-31",1,"Civil Service Cmn Program Dir",20050428,"C15",8810,1.6000000000000001E-3,70819.7,113311.53,88014,"MANAGEMENT"]
[{"$f":"job_titles8[[#This Row],[Extended object ID]]","v":20050451},{"$f":"job_titles8[[#This Row],[WCI]]","v":8810},"9999-12-31",{"$f":"job_titles8[[#This Row],[WCI Rate]]","v":1.6000000000000001E-3},null,"C","2013-11-26","9999-12-31",1,"Security Manager",20050451,"C15",8810,1.6000000000000001E-3,70819.7,113311.53,88014,"MANAGEMENT"]
[{"$f":"job_titles8[[#This Row],[Extended object ID]]","v":20050452},{"$f":"job_titles8[[#This Row],[WCI]]","v":7720},"9999-12-31",{"$f":"job_titles8[[#This Row],[WCI Rate]]","v":1.55E-2},null,"C","2013-10-01","9999-12-31",1,"Marketable Skills Program Mgr",20050452,"C13",7720,1.55E-2,62854.59,100567.34,88002,"SKILLED TRADES"]
[{"$f":"job_titles8[[#This Row],[Extended object ID]]","v":20050453},{"$f":"job_titles8[[#This Row],[WCI]]","v":7720},"9999-12-31",{"$f":"job_titles8[[#This Row],[WCI Rate]]","v":1.55E-2},null,"C","2013-10-01","9999-12-31",1,"Inmate Mental Health & CES Dir",20050453,"C19",7720,1.55E-2,92836.33,148538.12,88014,"MANAGEMENT"]
[{"$f":"job_titles8[[#This Row],[Extended object ID]]","v":20050476},{"$f":"job_titles8[[#This Row],[WCI]]","v":9102},"9999-12-31",{"$f":"job_titles8[[#This Row],[WCI Rate]]","v":2.0799999999999999E-2},null,"C","2013-10-01","9999-12-31",1,"Park Forester",20050476,"C13",9102,2.0799999999999999E-2,62854.59,100567.34,88015,"PROFESSIONAL SUPP"]
[{"$f":"job_titles8[[#This Row],[Extended object ID]]","v":20050501},{"$f":"job_titles8[[#This Row],[WCI]]","v":7720},"9999-12-31",{"$f":"job_titles8[[#This Row],[WCI Rate]]","v":1.55E-2},null,"C","2014-01-01","9999-12-31",1,"Evidence Tech",20050501,"C07",7720,1.55E-2,50398.3,68037.710000000006,88012,"PUBLIC SAF/EMG MGMT"]
[{"$f":"job_titles8[[#This Row],[Extended object ID]]","v":20050526},{"$f":"job_titles8[[#This Row],[WCI]]","v":9999},"9999-12-31",{"$f":"job_titles8[[#This Row],[WCI Rate]]","v":0},null,"C","2014-06-01","9999-12-31",1,"CSCD Treatment and Asmt Div Dir",20050526,"NCF01",9999,0,15080,500000,88014,"MANAGEMENT"]
[{"$f":"job_titles8[[#This Row],[Extended object ID]]","v":20050576},{"$f":"job_titles8[[#This Row],[WCI]]","v":8810},"9999-12-31",{"$f":"job_titles8[[#This Row],[WCI Rate]]","v":1.6000000000000001E-3},null,"C","2014-03-27","9999-12-31",1,"County Executive Succession",20050576,"GRD34",8810,1.6000000000000001E-3,125230.14,200368.23,88007,"COUNTY EXECUTIVES"]
[{"$f":"job_titles8[[#This Row],[Extended object ID]]","v":20050601},{"$f":"job_titles8[[#This Row],[WCI]]","v":7720},"9999-12-31",{"$f":"job_titles8[[#This Row],[WCI Rate]]","v":1.55E-2},null,"C","2014-03-01","9999-12-31",1,"Constable Lieutenant",20050601,"GRD68",7720,1.55E-2,91089.42,91089.42,88025,"POPS NON-TCSO"]
[{"$f":"job_titles8[[#This Row],[Extended object ID]]","v":20050626},{"$f":"job_titles8[[#This Row],[WCI]]","v":9015},"9999-12-31",{"$f":"job_titles8[[#This Row],[WCI Rate]]","v":1.8800000000000001E-2},null,"C","2014-05-06","9999-12-31",1,"Building Maintenance & Repair Div Mgr",20050626,"C18",9015,1.8800000000000001E-2,86761.41,138818.25,88014,"MANAGEMENT"]
[{"$f":"job_titles8[[#This Row],[Extended object ID]]","v":20050651},{"$f":"job_titles8[[#This Row],[WCI]]","v":8832},"9999-12-31",{"$f":"job_titles8[[#This Row],[WCI Rate]]","v":1.9E-3},null,"C","2014-06-03","9999-12-31",1,"Health & Wellness Program Administrator",20050651,"C13",8832,1.9E-3,62854.59,100567.34,88016,"HUMAN RESOURCES"]
[{"$f":"job_titles8[[#This Row],[Extended object ID]]","v":20050701},{"$f":"job_titles8[[#This Row],[WCI]]","v":8810},"9999-12-31",{"$f":"job_titles8[[#This Row],[WCI Rate]]","v":1.6000000000000001E-3},null,"C","2014-06-17","9999-12-31",1,"Tax Assessor-Collector Deputy Assoc Sn",20050701,"GRD29",8810,1.6000000000000001E-3,89265.7,142825.07,88014,"MANAGEMENT"]
[{"$f":"job_titles8[[#This Row],[Extended object ID]]","v":20050726},{"$f":"job_titles8[[#This Row],[WCI]]","v":8810},"9999-12-31",{"$f":"job_titles8[[#This Row],[WCI Rate]]","v":1.6000000000000001E-3},null,"C","2014-07-01","9999-12-31",1,"Exposition Center Mgr",20050726,"C14",8810,1.6000000000000001E-3,66183.97,105894.35,88014,"MANAGEMENT"]
[{"$f":"job_titles8[[#This Row],[Extended object ID]]","v":20050751},{"$f":"job_titles8[[#This Row],[WCI]]","v":8810},"9999-12-31",{"$f":"job_titles8[[#This Row],[WCI Rate]]","v":1.6000000000000001E-3},null,"C","2014-07-10","9999-12-31",1,"Tax Assessor-Collector Div Dir Sn",20050751,"GRD28",8810,1.6000000000000001E-3,83424.429999999993,133479.01,88014,"MANAGEMENT"]
[{"$f":"job_titles8[[#This Row],[Extended object ID]]","v":20050776},{"$f":"job_titles8[[#This Row],[WCI]]","v":8810},"9999-12-31",{"$f":"job_titles8[[#This Row],[WCI Rate]]","v":1.6000000000000001E-3},null,"C","2014-08-12","9999-12-31",1,"Human Resources Financial Analyst Ld Sn",20050776,"GRD25",8810,1.6000000000000001E-3,68095.87,108953.31,88016,"HUMAN RESOURCES"]
[{"$f":"job_titles8[[#This Row],[Extended object ID]]","v":20050801},{"$f":"job_titles8[[#This Row],[WCI]]","v":8832},"9999-12-31",{"$f":"job_titles8[[#This Row],[WCI Rate]]","v":1.9E-3},null,"C","2014-10-01","9999-12-31",1,"Physician II Succession",20050801,"GRD33",8832,1.9E-3,117037.44,187259.76,88003,"MEDICAL"]
[{"$f":"job_titles8[[#This Row],[Extended object ID]]","v":20050802},{"$f":"job_titles8[[#This Row],[WCI]]","v":8810},"9999-12-31",{"$f":"job_titles8[[#This Row],[WCI Rate]]","v":1.6000000000000001E-3},null,"C","2014-10-07","9999-12-31",1,"Public Defender Mental Health Succession",20050802,"GRD30",8810,1.6000000000000001E-3,95524.21,152838.82,88014,"MANAGEMENT"]
[{"$f":"job_titles8[[#This Row],[Extended object ID]]","v":20050826},{"$f":"job_titles8[[#This Row],[WCI]]","v":9102},"9999-12-31",{"$f":"job_titles8[[#This Row],[WCI Rate]]","v":2.0799999999999999E-2},null,"C","2014-10-07","9999-12-31",1,"Park Land Manager",20050826,"C14",9102,2.0799999999999999E-2,66183.97,105894.35,88014,"MANAGEMENT"]
[{"$f":"job_titles8[[#This Row],[Extended object ID]]","v":20050827},{"$f":"job_titles8[[#This Row],[WCI]]","v":8810},"9999-12-31",{"$f":"job_titles8[[#This Row],[WCI Rate]]","v":1.6000000000000001E-3},null,"C","2014-11-04","9999-12-31",1,"Tax Office Program Coordinator",20050827,"C09",8810,1.6000000000000001E-3,53987.92,78282.490000000005,88014,"MANAGEMENT"]
[{"$f":"job_titles8[[#This Row],[Extended object ID]]","v":20050828},{"$f":"job_titles8[[#This Row],[WCI]]","v":8810},"9999-12-31",{"$f":"job_titles8[[#This Row],[WCI Rate]]","v":1.6000000000000001E-3},null,"C","2014-11-04","9999-12-31",1,"Tax Office Manager",20050828,"C14",8810,1.6000000000000001E-3,66183.97,105894.35,88014,"MANAGEMENT"]
[{"$f":"job_titles8[[#This Row],[Extended object ID]]","v":20050851},{"$f":"job_titles8[[#This Row],[WCI]]","v":8810},"9999-12-31",{"$f":"job_titles8[[#This Row],[WCI Rate]]","v":1.6000000000000001E-3},null,"C","2014-10-01","9999-12-31",1,"Elections Operations Clerk VI",20050851,"NCF01",8810,1.6000000000000001E-3,15080,500000,88020,"TEMP/SEASONAL"]
[{"$f":"job_titles8[[#This Row],[Extended object ID]]","v":20050876},{"$f":"job_titles8[[#This Row],[WCI]]","v":8810},"9999-12-31",{"$f":"job_titles8[[#This Row],[WCI Rate]]","v":1.6000000000000001E-3},null,"C","2014-11-25","9999-12-31",1,"Visiting Judge",20050876,"NCF01",8810,1.6000000000000001E-3,15080,500000,88020,"TEMP/SEASONAL"]
[{"$f":"job_titles8[[#This Row],[Extended object ID]]","v":20050901},{"$f":"job_titles8[[#This Row],[WCI]]","v":8810},"9999-12-31",{"$f":"job_titles8[[#This Row],[WCI Rate]]","v":1.6000000000000001E-3},null,"C","2014-12-23","9999-12-31",1,"District Clerk Deputy Chief Sn",20050901,"GRD30",8810,1.6000000000000001E-3,95524.21,152838.82,88014,"MANAGEMENT"]
[{"$f":"job_titles8[[#This Row],[Extended object ID]]","v":20050902},{"$f":"job_titles8[[#This Row],[WCI]]","v":8601},"9999-12-31",{"$f":"job_titles8[[#This Row],[WCI Rate]]","v":1.8E-3},null,"C","2014-12-23","9999-12-31",1,"Interior Designer",20050902,"C09",8601,1.8E-3,53987.92,78282.490000000005,88009,"ENGINEERING & ARCHITECTURAL"]
[{"$f":"job_titles8[[#This Row],[Extended object ID]]","v":20050926},{"$f":"job_titles8[[#This Row],[WCI]]","v":8810},"9999-12-31",{"$f":"job_titles8[[#This Row],[WCI Rate]]","v":1.6000000000000001E-3},null,"C","2015-01-01","9999-12-31",1,"Chief of Staff to County Judge",20050926,"C19",8810,1.6000000000000001E-3,92836.33,148538.12,88004,"ADMINISTRATIVE SUPP"]
[{"$f":"job_titles8[[#This Row],[Extended object ID]]","v":20050951},{"$f":"job_titles8[[#This Row],[WCI]]","v":8810},"9999-12-31",{"$f":"job_titles8[[#This Row],[WCI Rate]]","v":1.6000000000000001E-3},null,"C","2015-01-30","9999-12-31",1,"County Clerk Deputy Chief Sn",20050951,"GRD31",8810,1.6000000000000001E-3,102222.02,163555.18,88014,"MANAGEMENT"]
[{"$f":"job_titles8[[#This Row],[Extended object ID]]","v":20050977},{"$f":"job_titles8[[#This Row],[WCI]]","v":9015},"9999-12-31",{"$f":"job_titles8[[#This Row],[WCI Rate]]","v":1.8800000000000001E-2},null,"C","2015-04-28","9999-12-31",1,"Building Operations Division Manager",20050977,"C13",9015,1.8800000000000001E-2,62854.59,100567.34,88014,"MANAGEMENT"]
[{"$f":"job_titles8[[#This Row],[Extended object ID]]","v":20051051},{"$f":"job_titles8[[#This Row],[WCI]]","v":7422},"9999-12-31",{"$f":"job_titles8[[#This Row],[WCI Rate]]","v":1.3299999999999999E-2},null,"C","2015-06-16","9999-12-31",1,"Flight Paramedic Sr",20051051,"C15",7422,1.3299999999999999E-2,70819.7,113311.53,88003,"MEDICAL"]
[{"$f":"job_titles8[[#This Row],[Extended object ID]]","v":20051052},{"$f":"job_titles8[[#This Row],[WCI]]","v":7422},"9999-12-31",{"$f":"job_titles8[[#This Row],[WCI Rate]]","v":1.3299999999999999E-2},null,"C","2015-06-16","9999-12-31",1,"Flight Registered Nurse Sr",20051052,"C18",7422,1.3299999999999999E-2,86761.41,138818.25,88003,"MEDICAL"]
[{"$f":"job_titles8[[#This Row],[Extended object ID]]","v":20051077},{"$f":"job_titles8[[#This Row],[WCI]]","v":7720},"9999-12-31",{"$f":"job_titles8[[#This Row],[WCI Rate]]","v":1.55E-2},null,"C","2015-07-14","9999-12-31",1,"ME Investigator Deputy Chief",20051077,"C15",7720,1.55E-2,70819.7,113311.53,88003,"MEDICAL"]
[{"$f":"job_titles8[[#This Row],[Extended object ID]]","v":20051101},{"$f":"job_titles8[[#This Row],[WCI]]","v":8810},"9999-12-31",{"$f":"job_titles8[[#This Row],[WCI Rate]]","v":1.6000000000000001E-3},null,"C","2015-07-28","9999-12-31",1,"Pur Asst Purchasing Agent Succession",20051101,"GRD30",8810,1.6000000000000001E-3,95524.21,152838.82,88027,"PUR PURCHASING"]
[{"$f":"job_titles8[[#This Row],[Extended object ID]]","v":20051126},{"$f":"job_titles8[[#This Row],[WCI]]","v":7720},"9999-12-31",{"$f":"job_titles8[[#This Row],[WCI Rate]]","v":1.55E-2},null,"C","2015-08-05","9999-12-31",1,"Extended Military Leave Without Pay POPS",20051126,"NCF01",7720,1.55E-2,15080,500000,88020,"TEMP/SEASONAL"]
[{"$f":"job_titles8[[#This Row],[Extended object ID]]","v":20051151},{"$f":"job_titles8[[#This Row],[WCI]]","v":8810},"9999-12-31",{"$f":"job_titles8[[#This Row],[WCI Rate]]","v":1.6000000000000001E-3},null,"C","2015-10-01","9999-12-31",1,"Park Reservation Specialist",20051151,"C06",8810,1.6000000000000001E-3,48694.01,65736.92,88004,"ADMINISTRATIVE SUPP"]
[{"$f":"job_titles8[[#This Row],[Extended object ID]]","v":20051152},{"$f":"job_titles8[[#This Row],[WCI]]","v":8810},"9999-12-31",{"$f":"job_titles8[[#This Row],[WCI Rate]]","v":1.6000000000000001E-3},null,"C","2015-10-01","9999-12-31",1,"Financial Mgr Sr",20051152,"C19",8810,1.6000000000000001E-3,92836.33,148538.12,88005,"FINANCE"]
[{"$f":"job_titles8[[#This Row],[Extended object ID]]","v":20051154},{"$f":"job_titles8[[#This Row],[WCI]]","v":8810},"9999-12-31",{"$f":"job_titles8[[#This Row],[WCI Rate]]","v":1.6000000000000001E-3},null,"C","2015-10-01","9999-12-31",1,"Benefits Specialist",20051154,"C09",8810,1.6000000000000001E-3,53987.92,78282.490000000005,88016,"HUMAN RESOURCES"]
[{"$f":"job_titles8[[#This Row],[Extended object ID]]","v":20051155},{"$f":"job_titles8[[#This Row],[WCI]]","v":8810},"9999-12-31",{"$f":"job_titles8[[#This Row],[WCI Rate]]","v":1.6000000000000001E-3},null,"C","2015-10-01","9999-12-31",1,"Graphic Artist",20051155,"C08",8810,1.6000000000000001E-3,52162.239999999998,75635.25,88018,"IMAGING & GRAPHICS"]
[{"$f":"job_titles8[[#This Row],[Extended object ID]]","v":20051157},{"$f":"job_titles8[[#This Row],[WCI]]","v":9015},"9999-12-31",{"$f":"job_titles8[[#This Row],[WCI Rate]]","v":1.8800000000000001E-2},null,"C","2015-10-01","9999-12-31",1,"Irrigation Specialist",20051157,"C05",9015,1.8800000000000001E-2,47275.74,61458.46,88001,"MAINTENANCE"]
[{"$f":"job_titles8[[#This Row],[Extended object ID]]","v":20051158},{"$f":"job_titles8[[#This Row],[WCI]]","v":8810},"9999-12-31",{"$f":"job_titles8[[#This Row],[WCI Rate]]","v":1.6000000000000001E-3},null,"C","2015-10-01","9999-12-31",1,"Admin Services Div Dir Sr",20051158,"C19",8810,1.6000000000000001E-3,92836.33,148538.12,88014,"MANAGEMENT"]
[{"$f":"job_titles8[[#This Row],[Extended object ID]]","v":20051159},{"$f":"job_titles8[[#This Row],[WCI]]","v":8810},"9999-12-31",{"$f":"job_titles8[[#This Row],[WCI Rate]]","v":1.6000000000000001E-3},null,"C","2015-10-01","9999-12-31",1,"Justice of the Peace Court Administrator",20051159,"C13",8810,1.6000000000000001E-3,62854.59,100567.34,88014,"MANAGEMENT"]
[{"$f":"job_titles8[[#This Row],[Extended object ID]]","v":20051160},{"$f":"job_titles8[[#This Row],[WCI]]","v":8810},"9999-12-31",{"$f":"job_titles8[[#This Row],[WCI Rate]]","v":1.6000000000000001E-3},null,"C","2015-10-01","9999-12-31",1,"Life Safety Manager",20051160,"C16",8810,1.6000000000000001E-3,75776.03,121241.65,88014,"MANAGEMENT"]
[{"$f":"job_titles8[[#This Row],[Extended object ID]]","v":20051161},{"$f":"job_titles8[[#This Row],[WCI]]","v":8810},"9999-12-31",{"$f":"job_titles8[[#This Row],[WCI Rate]]","v":1.6000000000000001E-3},null,"C","2015-10-01","9999-12-31",1,"Planner II",20051161,"C12",8810,1.6000000000000001E-3,60437.1,90655.66,88008,"PLANNING & RESEARCH"]
[{"$f":"job_titles8[[#This Row],[Extended object ID]]","v":20051162},{"$f":"job_titles8[[#This Row],[WCI]]","v":8838},"9999-12-31",{"$f":"job_titles8[[#This Row],[WCI Rate]]","v":0},null,"C","2015-10-01","9999-12-31",1,"Law Library Tech Services Mgr",20051162,"C14",8838,0,66183.97,105894.35,88015,"PROFESSIONAL SUPP"]
[{"$f":"job_titles8[[#This Row],[Extended object ID]]","v":20051165},{"$f":"job_titles8[[#This Row],[WCI]]","v":9015},"9999-12-31",{"$f":"job_titles8[[#This Row],[WCI Rate]]","v":1.8800000000000001E-2},null,"C","2015-10-01","9999-12-31",1,"Warehouse Operator",20051165,"C06",9015,1.8800000000000001E-2,48694.01,65736.92,88002,"SKILLED TRADES"]
[{"$f":"job_titles8[[#This Row],[Extended object ID]]","v":20051166},{"$f":"job_titles8[[#This Row],[WCI]]","v":5506},"9999-12-31",{"$f":"job_titles8[[#This Row],[WCI Rate]]","v":4.3700000000000003E-2},null,"C","2015-10-01","9999-12-31",1,"Equipment Operator II",20051166,"C09",5506,4.3700000000000003E-2,53987.92,78282.490000000005,88002,"SKILLED TRADES"]
[{"$f":"job_titles8[[#This Row],[Extended object ID]]","v":20051167},{"$f":"job_titles8[[#This Row],[WCI]]","v":8601},"9999-12-31",{"$f":"job_titles8[[#This Row],[WCI Rate]]","v":1.8E-3},null,"C","2015-10-01","9999-12-31",1,"Home Energy Auditor",20051167,"C09",8601,1.8E-3,53987.92,78282.490000000005,88002,"SKILLED TRADES"]
[{"$f":"job_titles8[[#This Row],[Extended object ID]]","v":20051176},{"$f":"job_titles8[[#This Row],[WCI]]","v":8832},"9999-12-31",{"$f":"job_titles8[[#This Row],[WCI Rate]]","v":1.9E-3},null,"C","2015-10-01","9999-12-31",1,"Clinical Mental Health Professional",20051176,"C11",8832,1.9E-3,58112.6,87168.9,88011,"SOCIAL SVCS"]
[{"$f":"job_titles8[[#This Row],[Extended object ID]]","v":20051177},{"$f":"job_titles8[[#This Row],[WCI]]","v":8832},"9999-12-31",{"$f":"job_titles8[[#This Row],[WCI Rate]]","v":1.9E-3},null,"C","2015-10-01","9999-12-31",1,"Clinical Mental Health Professional Sr",20051177,"C12",8832,1.9E-3,60437.1,90655.66,88011,"SOCIAL SVCS"]
[{"$f":"job_titles8[[#This Row],[Extended object ID]]","v":20051178},{"$f":"job_titles8[[#This Row],[WCI]]","v":8832},"9999-12-31",{"$f":"job_titles8[[#This Row],[WCI Rate]]","v":1.9E-3},null,"C","2015-10-01","9999-12-31",1,"Clinical Mental Health Professional Ld",20051178,"C13",8832,1.9E-3,62854.59,100567.34,88011,"SOCIAL SVCS"]
[{"$f":"job_titles8[[#This Row],[Extended object ID]]","v":20051201},{"$f":"job_titles8[[#This Row],[WCI]]","v":8810},"9999-12-31",{"$f":"job_titles8[[#This Row],[WCI Rate]]","v":1.6000000000000001E-3},null,"C","2015-10-01","9999-12-31",1,"Systems Analyst",20051201,"C12",8810,1.6000000000000001E-3,60437.1,90655.66,88021,"INFORMATION TECH"]
[{"$f":"job_titles8[[#This Row],[Extended object ID]]","v":20051202},{"$f":"job_titles8[[#This Row],[WCI]]","v":8810},"9999-12-31",{"$f":"job_titles8[[#This Row],[WCI Rate]]","v":1.6000000000000001E-3},null,"C","2015-10-01","9999-12-31",1,"Systems Analyst Sr",20051202,"C16",8810,1.6000000000000001E-3,75776.03,121241.65,88021,"INFORMATION TECH"]
[{"$f":"job_titles8[[#This Row],[Extended object ID]]","v":20051203},{"$f":"job_titles8[[#This Row],[WCI]]","v":8810},"9999-12-31",{"$f":"job_titles8[[#This Row],[WCI Rate]]","v":1.6000000000000001E-3},null,"C","2015-10-01","9999-12-31",1,"Project Coordinator",20051203,"C14",8810,1.6000000000000001E-3,66183.97,105894.35,88021,"INFORMATION TECH"]
[{"$f":"job_titles8[[#This Row],[Extended object ID]]","v":20051226},{"$f":"job_titles8[[#This Row],[WCI]]","v":8810},"9999-12-31",{"$f":"job_titles8[[#This Row],[WCI Rate]]","v":1.6000000000000001E-3},null,"C","2015-10-01","9999-12-31",1,"Intergovernmental Relations Specialist",20051226,"C12",8810,1.6000000000000001E-3,60437.1,90655.66,88019,"PUBLIC INFORMATION"]
[{"$f":"job_titles8[[#This Row],[Extended object ID]]","v":20051251},{"$f":"job_titles8[[#This Row],[WCI]]","v":8810},"9999-12-31",{"$f":"job_titles8[[#This Row],[WCI Rate]]","v":1.6000000000000001E-3},null,"C","2015-10-14","9999-12-31",1,"HIPAA Compliance and Privacy Officer",20051251,"C21",8810,1.6000000000000001E-3,106310.9,175412.99,88014,"MANAGEMENT"]
[{"$f":"job_titles8[[#This Row],[Extended object ID]]","v":20051276},{"$f":"job_titles8[[#This Row],[WCI]]","v":8810},"9999-12-31",{"$f":"job_titles8[[#This Row],[WCI Rate]]","v":1.6000000000000001E-3},null,"C","2015-10-01","9999-12-31",1,"Planning Mgr Succession",20051276,"GRD25",8810,1.6000000000000001E-3,68095.87,108953.31,88008,"PLANNING & RESEARCH"]
[{"$f":"job_titles8[[#This Row],[Extended object ID]]","v":20051301},{"$f":"job_titles8[[#This Row],[WCI]]","v":8810},"9999-12-31",{"$f":"job_titles8[[#This Row],[WCI Rate]]","v":1.6000000000000001E-3},null,"C","2015-12-29","9999-12-31",1,"HHS Chief Deputy",20051301,"C22",8810,1.6000000000000001E-3,113755.98,187697.37,88014,"MANAGEMENT"]
[{"$f":"job_titles8[[#This Row],[Extended object ID]]","v":20051302},{"$f":"job_titles8[[#This Row],[WCI]]","v":8810},"9999-12-31",{"$f":"job_titles8[[#This Row],[WCI Rate]]","v":1.6000000000000001E-3},null,"C","2016-01-12","9999-12-31",1,"Dir Econ Dev & Strategic Investments",20051302,"C23",8810,1.6000000000000001E-3,121718.94,200836.25,88014,"MANAGEMENT"]
[{"$f":"job_titles8[[#This Row],[Extended object ID]]","v":20051326},{"$f":"job_titles8[[#This Row],[WCI]]","v":8832},"9999-12-31",{"$f":"job_titles8[[#This Row],[WCI Rate]]","v":1.9E-3},null,"C","2016-02-23","9999-12-31",1,"Clinical Mental Health Professional Supv",20051326,"C16",8832,1.9E-3,75776.03,121241.65,88011,"SOCIAL SVCS"]
[{"$f":"job_titles8[[#This Row],[Extended object ID]]","v":20051351},{"$f":"job_titles8[[#This Row],[WCI]]","v":7422},"9999-12-31",{"$f":"job_titles8[[#This Row],[WCI Rate]]","v":1.3299999999999999E-2},null,"C","2016-03-08","9999-12-31",1,"STAR Flight Safety Officer",20051351,"C20",7422,1.3299999999999999E-2,99345.18,158952.29,88012,"PUBLIC SAF/EMG MGMT"]
[{"$f":"job_titles8[[#This Row],[Extended object ID]]","v":20051376},{"$f":"job_titles8[[#This Row],[WCI]]","v":8833},"9999-12-31",{"$f":"job_titles8[[#This Row],[WCI Rate]]","v":4.7999999999999996E-3},null,"C","2016-03-15","9999-12-31",1,"Forensic Fellow",20051376,"NCF01",8833,4.7999999999999996E-3,15080,500000,88003,"MEDICAL"]
[{"$f":"job_titles8[[#This Row],[Extended object ID]]","v":20051401},{"$f":"job_titles8[[#This Row],[WCI]]","v":9999},"9999-12-31",{"$f":"job_titles8[[#This Row],[WCI Rate]]","v":0},null,"C","2016-03-21","9999-12-31",1,"CSCD Training Education Coord I",20051401,"NCF01",9999,0,15080,500000,88016,"HUMAN RESOURCES"]
[{"$f":"job_titles8[[#This Row],[Extended object ID]]","v":20051426},{"$f":"job_titles8[[#This Row],[WCI]]","v":9999},"9999-12-31",{"$f":"job_titles8[[#This Row],[WCI Rate]]","v":0},null,"C","2016-04-25","9999-12-31",1,"CSCD Internal Auditor",20051426,"CSCD24",9999,0,63638.43,71281.600000000006,88013,"COURT SERVICES"]
[{"$f":"job_titles8[[#This Row],[Extended object ID]]","v":20051451},{"$f":"job_titles8[[#This Row],[WCI]]","v":8810},"9999-12-31",{"$f":"job_titles8[[#This Row],[WCI Rate]]","v":1.6000000000000001E-3},null,"C","2016-05-17","9999-12-31",1,"Project Mgr Succession",20051451,"GRD27",8810,1.6000000000000001E-3,77956.53,124730.53,88021,"INFORMATION TECH"]
[{"$f":"job_titles8[[#This Row],[Extended object ID]]","v":20051476},{"$f":"job_titles8[[#This Row],[WCI]]","v":0},"9999-12-31",{"$f":"job_titles8[[#This Row],[WCI Rate]]","v":0},null,"C","2016-05-23","9999-12-31",1,"Student Intern 1",20051476,null,null,null,null,null,88020,"TEMP/SEASONAL"]
[{"$f":"job_titles8[[#This Row],[Extended object ID]]","v":20051477},{"$f":"job_titles8[[#This Row],[WCI]]","v":8810},"9999-12-31",{"$f":"job_titles8[[#This Row],[WCI Rate]]","v":1.6000000000000001E-3},null,"C","2016-05-23","9999-12-31",1,"Student Intern 2",20051477,"NCF01",8810,1.6000000000000001E-3,15080,500000,88020,"TEMP/SEASONAL"]
[{"$f":"job_titles8[[#This Row],[Extended object ID]]","v":20051478},{"$f":"job_titles8[[#This Row],[WCI]]","v":8810},"9999-12-31",{"$f":"job_titles8[[#This Row],[WCI Rate]]","v":1.6000000000000001E-3},null,"C","2016-05-23","9999-12-31",1,"Student Intern 3",20051478,"NCF01",8810,1.6000000000000001E-3,15080,500000,88020,"TEMP/SEASONAL"]
[{"$f":"job_titles8[[#This Row],[Extended object ID]]","v":20051479},{"$f":"job_titles8[[#This Row],[WCI]]","v":8810},"9999-12-31",{"$f":"job_titles8[[#This Row],[WCI Rate]]","v":1.6000000000000001E-3},null,"C","2016-05-23","9999-12-31",1,"Student Intern 4",20051479,"NCF01",8810,1.6000000000000001E-3,15080,500000,88020,"TEMP/SEASONAL"]
[{"$f":"job_titles8[[#This Row],[Extended object ID]]","v":20051501},{"$f":"job_titles8[[#This Row],[WCI]]","v":9015},"9999-12-31",{"$f":"job_titles8[[#This Row],[WCI Rate]]","v":1.8800000000000001E-2},null,"C","2016-06-01","9999-12-31",1,"Building Security Coordinator",20051501,"C06",9015,1.8800000000000001E-2,48694.01,65736.92,88001,"MAINTENANCE"]
[{"$f":"job_titles8[[#This Row],[Extended object ID]]","v":20051502},{"$f":"job_titles8[[#This Row],[WCI]]","v":9015},"9999-12-31",{"$f":"job_titles8[[#This Row],[WCI Rate]]","v":1.8800000000000001E-2},null,"C","2016-05-16","9999-12-31",1,"Electronic Security Coordinator",20051502,"C08",9015,1.8800000000000001E-2,52162.239999999998,75635.25,88002,"SKILLED TRADES"]
[{"$f":"job_titles8[[#This Row],[Extended object ID]]","v":20051551},{"$f":"job_titles8[[#This Row],[WCI]]","v":8810},"9999-12-31",{"$f":"job_titles8[[#This Row],[WCI Rate]]","v":1.6000000000000001E-3},null,"C","2016-06-21","9999-12-31",1,"Off-Duty Facilitator",20051551,"C07",8810,1.6000000000000001E-3,50398.3,68037.710000000006,88004,"ADMINISTRATIVE SUPP"]
[{"$f":"job_titles8[[#This Row],[Extended object ID]]","v":20051576},{"$f":"job_titles8[[#This Row],[WCI]]","v":8810},"9999-12-31",{"$f":"job_titles8[[#This Row],[WCI Rate]]","v":1.6000000000000001E-3},null,"C","2016-06-28","9999-12-31",1,"Business Analyst III Succession",20051576,"GRD26",8810,1.6000000000000001E-3,72861.570000000007,116578.59,88021,"INFORMATION TECH"]
[{"$f":"job_titles8[[#This Row],[Extended object ID]]","v":20051601},{"$f":"job_titles8[[#This Row],[WCI]]","v":8810},"9999-12-31",{"$f":"job_titles8[[#This Row],[WCI Rate]]","v":1.6000000000000001E-3},null,"C","2016-07-12","9999-12-31",1,"Pur Asst Purchasing Agent Succession",20051601,"GRD30",8810,1.6000000000000001E-3,95524.21,152838.82,88027,"PUR PURCHASING"]
[{"$f":"job_titles8[[#This Row],[Extended object ID]]","v":20051626},{"$f":"job_titles8[[#This Row],[WCI]]","v":8810},"9999-12-31",{"$f":"job_titles8[[#This Row],[WCI Rate]]","v":1.6000000000000001E-3},null,"C","2016-08-16","9999-12-31",1,"Justice Planning Div Dir",20051626,"C18",8810,1.6000000000000001E-3,86761.41,138818.25,88014,"MANAGEMENT"]
[{"$f":"job_titles8[[#This Row],[Extended object ID]]","v":20051676},{"$f":"job_titles8[[#This Row],[WCI]]","v":8810},"9999-12-31",{"$f":"job_titles8[[#This Row],[WCI Rate]]","v":1.6000000000000001E-3},null,"C","2016-08-23","9999-12-31",1,"Telecommunications Mgr Succession",20051676,"GRD29",8810,1.6000000000000001E-3,89265.7,142825.07,88021,"INFORMATION TECH"]
[{"$f":"job_titles8[[#This Row],[Extended object ID]]","v":20051701},{"$f":"job_titles8[[#This Row],[WCI]]","v":8810},"9999-12-31",{"$f":"job_titles8[[#This Row],[WCI Rate]]","v":1.6000000000000001E-3},null,"C","2016-09-16","9999-12-31",1,"Corporations Program Manager",20051701,"C15",8810,1.6000000000000001E-3,70819.7,113311.53,88005,"FINANCE"]
[{"$f":"job_titles8[[#This Row],[Extended object ID]]","v":20051702},{"$f":"job_titles8[[#This Row],[WCI]]","v":8810},"9999-12-31",{"$f":"job_titles8[[#This Row],[WCI Rate]]","v":1.6000000000000001E-3},null,"C","2016-09-16","9999-12-31",1,"Corporations Managing Director",20051702,"C18",8810,1.6000000000000001E-3,86761.41,138818.25,88005,"FINANCE"]
[{"$f":"job_titles8[[#This Row],[Extended object ID]]","v":20051703},{"$f":"job_titles8[[#This Row],[WCI]]","v":8810},"9999-12-31",{"$f":"job_titles8[[#This Row],[WCI Rate]]","v":1.6000000000000001E-3},null,"C","2016-09-27","9999-12-31",1,"Infrastructure Architect",20051703,"C20",8810,1.6000000000000001E-3,99345.18,158952.29,88021,"INFORMATION TECH"]
[{"$f":"job_titles8[[#This Row],[Extended object ID]]","v":20051704},{"$f":"job_titles8[[#This Row],[WCI]]","v":8810},"9999-12-31",{"$f":"job_titles8[[#This Row],[WCI Rate]]","v":1.6000000000000001E-3},null,"C","2016-10-01","9999-12-31",1,"Compliance and Grants Administrator",20051704,"C11",8810,1.6000000000000001E-3,58112.6,87168.9,88015,"PROFESSIONAL SUPP"]
[{"$f":"job_titles8[[#This Row],[Extended object ID]]","v":20051726},{"$f":"job_titles8[[#This Row],[WCI]]","v":8810},"9999-12-31",{"$f":"job_titles8[[#This Row],[WCI Rate]]","v":1.6000000000000001E-3},null,"C","2016-10-04","9999-12-31",1,"Economic & Strategic Pln Managing Dir Sn",20051726,"GRD28",8810,1.6000000000000001E-3,83424.429999999993,133479.01,88014,"MANAGEMENT"]
[{"$f":"job_titles8[[#This Row],[Extended object ID]]","v":20051751},{"$f":"job_titles8[[#This Row],[WCI]]","v":8810},"9999-12-31",{"$f":"job_titles8[[#This Row],[WCI Rate]]","v":1.6000000000000001E-3},null,"C","2016-10-01","9999-12-31",1,"Chief Investment Officer",20051751,"C18",8810,1.6000000000000001E-3,86761.41,138818.25,88014,"MANAGEMENT"]
[{"$f":"job_titles8[[#This Row],[Extended object ID]]","v":20051752},{"$f":"job_titles8[[#This Row],[WCI]]","v":8810},"9999-12-31",{"$f":"job_titles8[[#This Row],[WCI Rate]]","v":1.6000000000000001E-3},null,"C","2016-10-01","9999-12-31",1,"Investment Manager",20051752,"C15",8810,1.6000000000000001E-3,70819.7,113311.53,88014,"MANAGEMENT"]
[{"$f":"job_titles8[[#This Row],[Extended object ID]]","v":20051753},{"$f":"job_titles8[[#This Row],[WCI]]","v":8810},"9999-12-31",{"$f":"job_titles8[[#This Row],[WCI Rate]]","v":1.6000000000000001E-3},null,"C","2016-10-01","9999-12-31",1,"Economic & Strategic Planning Mg Dir",20051753,"C18",8810,1.6000000000000001E-3,86761.41,138818.25,88014,"MANAGEMENT"]
[{"$f":"job_titles8[[#This Row],[Extended object ID]]","v":20051801},{"$f":"job_titles8[[#This Row],[WCI]]","v":8810},"9999-12-31",{"$f":"job_titles8[[#This Row],[WCI Rate]]","v":1.6000000000000001E-3},null,"C","2016-11-29","9999-12-31",1,"Security Center Operator",20051801,"C04",8810,1.6000000000000001E-3,45898.78,59668.41,88001,"MAINTENANCE"]
[{"$f":"job_titles8[[#This Row],[Extended object ID]]","v":20051826},{"$f":"job_titles8[[#This Row],[WCI]]","v":7720},"9999-12-31",{"$f":"job_titles8[[#This Row],[WCI Rate]]","v":1.55E-2},null,"C","2017-01-01","9999-12-31",1,"Corrections Captain Sn",20051826,"GRD29",7720,1.55E-2,89265.7,142825.07,88012,"PUBLIC SAF/EMG MGMT"]
[{"$f":"job_titles8[[#This Row],[Extended object ID]]","v":20051851},{"$f":"job_titles8[[#This Row],[WCI]]","v":7720},"9999-12-31",{"$f":"job_titles8[[#This Row],[WCI Rate]]","v":1.55E-2},null,"C","2016-12-20","9999-12-31",1,"Warehouse Coordinator",20051851,"C08",7720,1.55E-2,52162.239999999998,75635.25,88010,"PURCHASING & INVENTORY CONTROL"]
[{"$f":"job_titles8[[#This Row],[Extended object ID]]","v":20051876},{"$f":"job_titles8[[#This Row],[WCI]]","v":8810},"9999-12-31",{"$f":"job_titles8[[#This Row],[WCI Rate]]","v":1.6000000000000001E-3},null,"C","2017-01-30","9999-12-31",1,"HHS Div Dir Succession",20051876,"GRD28",8810,1.6000000000000001E-3,83424.429999999993,133479.01,88014,"MANAGEMENT"]
[{"$f":"job_titles8[[#This Row],[Extended object ID]]","v":20051901},{"$f":"job_titles8[[#This Row],[WCI]]","v":9999},"9999-12-31",{"$f":"job_titles8[[#This Row],[WCI Rate]]","v":0},null,"C","2017-02-23","9999-12-31",1,"CSCD Human Resources Asst I",20051901,"NCF01",9999,0,15080,500000,88016,"HUMAN RESOURCES"]
[{"$f":"job_titles8[[#This Row],[Extended object ID]]","v":20051926},{"$f":"job_titles8[[#This Row],[WCI]]","v":7720},"9999-12-31",{"$f":"job_titles8[[#This Row],[WCI Rate]]","v":1.55E-2},null,"C","2017-02-28","9999-12-31",1,"Juvenile Detention Officer Lead",20051926,"C08",7720,1.55E-2,52162.239999999998,75635.25,88013,"COURT SERVICES"]
[{"$f":"job_titles8[[#This Row],[Extended object ID]]","v":20051951},{"$f":"job_titles8[[#This Row],[WCI]]","v":8810},"9999-12-31",{"$f":"job_titles8[[#This Row],[WCI Rate]]","v":1.6000000000000001E-3},null,"C","2017-02-28","9999-12-31",1,"Information Technology Div Dir Sn",20051951,"GRD32",8810,1.6000000000000001E-3,109380.75,175009.12,88021,"INFORMATION TECH"]
[{"$f":"job_titles8[[#This Row],[Extended object ID]]","v":20051976},{"$f":"job_titles8[[#This Row],[WCI]]","v":8810},"9999-12-31",{"$f":"job_titles8[[#This Row],[WCI Rate]]","v":1.6000000000000001E-3},null,"C","2017-03-21","9999-12-31",1,"Civil Service Comm Program Dir Sn",20051976,"C15",8810,1.6000000000000001E-3,70819.7,113311.53,88014,"MANAGEMENT"]
[{"$f":"job_titles8[[#This Row],[Extended object ID]]","v":20051977},{"$f":"job_titles8[[#This Row],[WCI]]","v":8810},"9999-12-31",{"$f":"job_titles8[[#This Row],[WCI Rate]]","v":1.6000000000000001E-3},null,"C","2017-03-21","9999-12-31",1,"Operations Director Sn",20051977,"GRD29",8810,1.6000000000000001E-3,89265.7,142825.07,88012,"PUBLIC SAF/EMG MGMT"]
[{"$f":"job_titles8[[#This Row],[Extended object ID]]","v":20051978},{"$f":"job_titles8[[#This Row],[WCI]]","v":8810},"9999-12-31",{"$f":"job_titles8[[#This Row],[WCI Rate]]","v":1.6000000000000001E-3},null,"C","2017-03-28","9999-12-31",1,"Electronic Security Coordinator Sr",20051978,"C10",8810,1.6000000000000001E-3,55877.5,82698.7,88002,"SKILLED TRADES"]
[{"$f":"job_titles8[[#This Row],[Extended object ID]]","v":20052001},{"$f":"job_titles8[[#This Row],[WCI]]","v":8810},"9999-12-31",{"$f":"job_titles8[[#This Row],[WCI Rate]]","v":1.6000000000000001E-3},null,"C","2017-04-19","9999-12-31",1,"County Commissioners Court Specialist Sn",20052001,"GRD16",8810,1.6000000000000001E-3,37024,55536,88004,"ADMINISTRATIVE SUPP"]
[{"$f":"job_titles8[[#This Row],[Extended object ID]]","v":20052026},{"$f":"job_titles8[[#This Row],[WCI]]","v":8810},"9999-12-31",{"$f":"job_titles8[[#This Row],[WCI Rate]]","v":1.6000000000000001E-3},null,"C","2017-04-30","9999-12-31",1,"Justice Of The Peace Sn",20052026,"NCF01",8810,1.6000000000000001E-3,15080,500000,88022,"ELECTED"]
[{"$f":"job_titles8[[#This Row],[Extended object ID]]","v":20052051},{"$f":"job_titles8[[#This Row],[WCI]]","v":7720},"9999-12-31",{"$f":"job_titles8[[#This Row],[WCI Rate]]","v":1.55E-2},null,"C","2017-05-09","9999-12-31",1,"Juvenile Rsdnt Treatment Officer Lead",20052051,"C08",7720,1.55E-2,52162.239999999998,75635.25,88013,"COURT SERVICES"]
[{"$f":"job_titles8[[#This Row],[Extended object ID]]","v":20052076},{"$f":"job_titles8[[#This Row],[WCI]]","v":8810},"9999-12-31",{"$f":"job_titles8[[#This Row],[WCI Rate]]","v":1.6000000000000001E-3},null,"C","2017-06-01","9999-12-31",1,"Pur Contract Compliance Director",20052076,"C23",8810,1.6000000000000001E-3,121718.94,200836.25,88027,"PUR PURCHASING"]
[{"$f":"job_titles8[[#This Row],[Extended object ID]]","v":20052077},{"$f":"job_titles8[[#This Row],[WCI]]","v":7720},"9999-12-31",{"$f":"job_titles8[[#This Row],[WCI Rate]]","v":1.55E-2},null,"C","2017-06-06","9999-12-31",1,"PREA Coordinator",20052077,"C11",7720,1.55E-2,58112.6,87168.9,88012,"PUBLIC SAF/EMG MGMT"]
[{"$f":"job_titles8[[#This Row],[Extended object ID]]","v":20052126},{"$f":"job_titles8[[#This Row],[WCI]]","v":8810},"9999-12-31",{"$f":"job_titles8[[#This Row],[WCI Rate]]","v":1.6000000000000001E-3},null,"C","2017-04-04","9999-12-31",1,"GIS Manager",20052126,"C15",8810,1.6000000000000001E-3,70819.7,113311.53,88009,"ENGINEERING & ARCHITECTURAL"]
[{"$f":"job_titles8[[#This Row],[Extended object ID]]","v":20052151},{"$f":"job_titles8[[#This Row],[WCI]]","v":8810},"9999-12-31",{"$f":"job_titles8[[#This Row],[WCI Rate]]","v":1.6000000000000001E-3},null,"C","2017-07-28","9999-12-31",1,"Pur Contract Compliance Officer",20052151,"C16",8810,1.6000000000000001E-3,75776.03,121241.65,88027,"PUR PURCHASING"]
[{"$f":"job_titles8[[#This Row],[Extended object ID]]","v":20052201},{"$f":"job_titles8[[#This Row],[WCI]]","v":8833},"9999-12-31",{"$f":"job_titles8[[#This Row],[WCI Rate]]","v":4.7999999999999996E-3},null,"C","2017-08-29","9999-12-31",1,"Histology Technician",20052201,"C08",8833,4.7999999999999996E-3,52162.239999999998,75635.25,88003,"MEDICAL"]
[{"$f":"job_titles8[[#This Row],[Extended object ID]]","v":20052202},{"$f":"job_titles8[[#This Row],[WCI]]","v":8810},"9999-12-31",{"$f":"job_titles8[[#This Row],[WCI Rate]]","v":1.6000000000000001E-3},null,"C","2017-10-01","9999-12-31",1,"Floodplain Project Manager",20052202,"C13",8810,1.6000000000000001E-3,62854.59,100567.34,88015,"PROFESSIONAL SUPP"]
[{"$f":"job_titles8[[#This Row],[Extended object ID]]","v":20052203},{"$f":"job_titles8[[#This Row],[WCI]]","v":8810},"9999-12-31",{"$f":"job_titles8[[#This Row],[WCI Rate]]","v":1.6000000000000001E-3},null,"C","2017-10-01","9999-12-31",1,"Probate Court Administrator Sn",20052203,"GRD29",8810,1.6000000000000001E-3,89265.7,142825.07,88014,"MANAGEMENT"]
[{"$f":"job_titles8[[#This Row],[Extended object ID]]","v":20052226},{"$f":"job_titles8[[#This Row],[WCI]]","v":0},"9999-12-31",{"$f":"job_titles8[[#This Row],[WCI Rate]]","v":0},null,"C","2017-10-01","9999-12-31",1,"Tax Assessor-Collector Deputy Chf Sn",20052226,"GRD31",null,null,102222.02,163555.18,88014,"MANAGEMENT"]
[{"$f":"job_titles8[[#This Row],[Extended object ID]]","v":20052227},{"$f":"job_titles8[[#This Row],[WCI]]","v":0},"9999-12-31",{"$f":"job_titles8[[#This Row],[WCI Rate]]","v":0},null,"C","2017-10-01","9999-12-31",1,"Tax Assessor-Collector Div Dir Sn",20052227,"GRD29",null,null,89265.7,142825.07,88014,"MANAGEMENT"]
[{"$f":"job_titles8[[#This Row],[Extended object ID]]","v":20052228},{"$f":"job_titles8[[#This Row],[WCI]]","v":8810},"9999-12-31",{"$f":"job_titles8[[#This Row],[WCI Rate]]","v":1.6000000000000001E-3},null,"C","2017-09-26","9999-12-31",1,"Tax Assessor-Collector Deputy Chf Sn",20052228,"GRD31",8810,1.6000000000000001E-3,102222.02,163555.18,88014,"MANAGEMENT"]
[{"$f":"job_titles8[[#This Row],[Extended object ID]]","v":20052229},{"$f":"job_titles8[[#This Row],[WCI]]","v":8810},"9999-12-31",{"$f":"job_titles8[[#This Row],[WCI Rate]]","v":1.6000000000000001E-3},null,"C","2017-09-26","9999-12-31",1,"Tax Assessor-Collector Div Dir Sn",20052229,"GRD29",8810,1.6000000000000001E-3,89265.7,142825.07,88014,"MANAGEMENT"]
[{"$f":"job_titles8[[#This Row],[Extended object ID]]","v":20052251},{"$f":"job_titles8[[#This Row],[WCI]]","v":7720},"9999-12-31",{"$f":"job_titles8[[#This Row],[WCI Rate]]","v":1.55E-2},null,"C","2017-10-01","9999-12-31",1,"Fire Plans Examiner",20052251,"C13",7720,1.55E-2,62854.59,100567.34,88012,"PUBLIC SAF/EMG MGMT"]
[{"$f":"job_titles8[[#This Row],[Extended object ID]]","v":20052252},{"$f":"job_titles8[[#This Row],[WCI]]","v":7720},"9999-12-31",{"$f":"job_titles8[[#This Row],[WCI Rate]]","v":1.55E-2},null,"C","2017-10-01","9999-12-31",1,"Fire Education Outreach Coordinator",20052252,"C11",7720,1.55E-2,58112.6,87168.9,88012,"PUBLIC SAF/EMG MGMT"]
[{"$f":"job_titles8[[#This Row],[Extended object ID]]","v":20052253},{"$f":"job_titles8[[#This Row],[WCI]]","v":8810},"9999-12-31",{"$f":"job_titles8[[#This Row],[WCI Rate]]","v":1.6000000000000001E-3},null,"C","2017-10-01","9999-12-31",1,"Civil Service Cmn Asst Program Dir",20052253,"C13",8810,1.6000000000000001E-3,62854.59,100567.34,88014,"MANAGEMENT"]
[{"$f":"job_titles8[[#This Row],[Extended object ID]]","v":20052254},{"$f":"job_titles8[[#This Row],[WCI]]","v":8810},"9999-12-31",{"$f":"job_titles8[[#This Row],[WCI Rate]]","v":1.6000000000000001E-3},null,"C","2017-10-01","9999-12-31",1,"Pur Business Analyst I",20052254,"C12",8810,1.6000000000000001E-3,60437.1,90655.66,88027,"PUR PURCHASING"]
[{"$f":"job_titles8[[#This Row],[Extended object ID]]","v":20052276},{"$f":"job_titles8[[#This Row],[WCI]]","v":8810},"9999-12-31",{"$f":"job_titles8[[#This Row],[WCI Rate]]","v":1.6000000000000001E-3},null,"C","2017-11-01","9999-12-31",1,"Pur Operations & Procurement Director",20052276,"C24",8810,1.6000000000000001E-3,130239.35,214894.92,88027,"PUR PURCHASING"]
[{"$f":"job_titles8[[#This Row],[Extended object ID]]","v":20052277},{"$f":"job_titles8[[#This Row],[WCI]]","v":8810},"9999-12-31",{"$f":"job_titles8[[#This Row],[WCI Rate]]","v":1.6000000000000001E-3},null,"C","2017-10-01","9999-12-31",1,"Pur Business Analyst II",20052277,"C15",8810,1.6000000000000001E-3,70819.7,113311.53,88027,"PUR PURCHASING"]
[{"$f":"job_titles8[[#This Row],[Extended object ID]]","v":20052279},{"$f":"job_titles8[[#This Row],[WCI]]","v":8810},"9999-12-31",{"$f":"job_titles8[[#This Row],[WCI Rate]]","v":1.6000000000000001E-3},null,"C","2017-10-25","9999-12-31",1,"Risk Safety Analyst Sr Sn",20052279,"GRD23",8810,1.6000000000000001E-3,59466.58,95146.48,88016,"HUMAN RESOURCES"]
[{"$f":"job_titles8[[#This Row],[Extended object ID]]","v":20052280},{"$f":"job_titles8[[#This Row],[WCI]]","v":8810},"9999-12-31",{"$f":"job_titles8[[#This Row],[WCI Rate]]","v":1.6000000000000001E-3},null,"C","2017-10-01","9999-12-31",1,"Security Center Coordinator",20052280,"C06",8810,1.6000000000000001E-3,48694.01,65736.92,88001,"MAINTENANCE"]
[{"$f":"job_titles8[[#This Row],[Extended object ID]]","v":20052281},{"$f":"job_titles8[[#This Row],[WCI]]","v":8601},"9999-12-31",{"$f":"job_titles8[[#This Row],[WCI Rate]]","v":1.8E-3},null,"C","2017-11-07","9999-12-31",1,"Architectural Division Manager",20052281,"C19",8601,1.8E-3,92836.33,148538.12,88014,"MANAGEMENT"]
[{"$f":"job_titles8[[#This Row],[Extended object ID]]","v":20052282},{"$f":"job_titles8[[#This Row],[WCI]]","v":9999},"9999-12-31",{"$f":"job_titles8[[#This Row],[WCI Rate]]","v":0},null,"C","2017-12-01","9999-12-31",1,"CSCD Residential Specialist I",20052282,"CSCD13",9999,0,30238.83,33883.199999999997,88011,"SOCIAL SVCS"]
[{"$f":"job_titles8[[#This Row],[Extended object ID]]","v":20052283},{"$f":"job_titles8[[#This Row],[WCI]]","v":9999},"9999-12-31",{"$f":"job_titles8[[#This Row],[WCI Rate]]","v":0},null,"C","2017-12-01","9999-12-31",1,"CSCD Residential Specialist II",20052283,"CSCD15",9999,0,34608.5,38750.400000000001,88011,"SOCIAL SVCS"]
[{"$f":"job_titles8[[#This Row],[Extended object ID]]","v":20052284},{"$f":"job_titles8[[#This Row],[WCI]]","v":9999},"9999-12-31",{"$f":"job_titles8[[#This Row],[WCI Rate]]","v":0},null,"C","2017-12-01","9999-12-31",1,"CSCD Residential Specialist III",20052284,"CSCD17",9999,0,39615.06,44366.400000000001,88011,"SOCIAL SVCS"]
[{"$f":"job_titles8[[#This Row],[Extended object ID]]","v":20052285},{"$f":"job_titles8[[#This Row],[WCI]]","v":9999},"9999-12-31",{"$f":"job_titles8[[#This Row],[WCI Rate]]","v":0},null,"C","2017-12-01","9999-12-31",1,"CSCD Residential Specialist IV",20052285,"CSCD19",9999,0,45346.5,50793.599999999999,88011,"SOCIAL SVCS"]
[{"$f":"job_titles8[[#This Row],[Extended object ID]]","v":20052287},{"$f":"job_titles8[[#This Row],[WCI]]","v":9999},"9999-12-31",{"$f":"job_titles8[[#This Row],[WCI Rate]]","v":0},null,"C","2017-12-01","9999-12-31",1,"CSCD Clinical Mental Health Professional",20052287,"CSCD21",9999,0,51934.48,58156.800000000003,88011,"SOCIAL SVCS"]
[{"$f":"job_titles8[[#This Row],[Extended object ID]]","v":20052301},{"$f":"job_titles8[[#This Row],[WCI]]","v":9999},"9999-12-31",{"$f":"job_titles8[[#This Row],[WCI Rate]]","v":0},null,"C","2017-12-01","9999-12-31",1,"CSCD Unit Manager II",20052301,"CSCD26",9999,0,72861.570000000007,81619.199999999997,88014,"MANAGEMENT"]
[{"$f":"job_titles8[[#This Row],[Extended object ID]]","v":20052302},{"$f":"job_titles8[[#This Row],[WCI]]","v":9999},"9999-12-31",{"$f":"job_titles8[[#This Row],[WCI Rate]]","v":0},null,"C","2017-12-01","9999-12-31",1,"CSCD Financial Analyst I",20052302,"CSCD27",9999,0,77956.53,87297.600000000006,88005,"FINANCE"]
[{"$f":"job_titles8[[#This Row],[Extended object ID]]","v":20052303},{"$f":"job_titles8[[#This Row],[WCI]]","v":9999},"9999-12-31",{"$f":"job_titles8[[#This Row],[WCI Rate]]","v":0},null,"C","2017-12-01","9999-12-31",1,"CSCD Executive Assistant I",20052303,"CSCD18",9999,0,42382.080000000002,47465.599999999999,88004,"ADMINISTRATIVE SUPP"]
[{"$f":"job_titles8[[#This Row],[Extended object ID]]","v":20052304},{"$f":"job_titles8[[#This Row],[WCI]]","v":9999},"9999-12-31",{"$f":"job_titles8[[#This Row],[WCI Rate]]","v":0},null,"C","2017-12-01","9999-12-31",1,"CSCD Training Manager I",20052304,"CSCD24",9999,0,63638.43,71281.600000000006,88014,"MANAGEMENT"]
[{"$f":"job_titles8[[#This Row],[Extended object ID]]","v":20052305},{"$f":"job_titles8[[#This Row],[WCI]]","v":9999},"9999-12-31",{"$f":"job_titles8[[#This Row],[WCI Rate]]","v":0},null,"C","2017-12-01","9999-12-31",1,"CSCD Executive Assistant II",20052305,"CSCD19",9999,0,45346.5,50793.599999999999,88004,"ADMINISTRATIVE SUPP"]
[{"$f":"job_titles8[[#This Row],[Extended object ID]]","v":20052306},{"$f":"job_titles8[[#This Row],[WCI]]","v":9999},"9999-12-31",{"$f":"job_titles8[[#This Row],[WCI Rate]]","v":0},null,"C","2017-12-01","9999-12-31",1,"CSCD Executive Assistant III",20052306,"CSCD20",9999,0,48530.77,54350.400000000001,88004,"ADMINISTRATIVE SUPP"]
[{"$f":"job_titles8[[#This Row],[Extended object ID]]","v":20052307},{"$f":"job_titles8[[#This Row],[WCI]]","v":9999},"9999-12-31",{"$f":"job_titles8[[#This Row],[WCI Rate]]","v":0},null,"C","2017-12-01","9999-12-31",1,"CSCD Executive Assistant IV",20052307,"CSCD21",9999,0,51934.48,58156.800000000003,88004,"ADMINISTRATIVE SUPP"]
[{"$f":"job_titles8[[#This Row],[Extended object ID]]","v":20052308},{"$f":"job_titles8[[#This Row],[WCI]]","v":9999},"9999-12-31",{"$f":"job_titles8[[#This Row],[WCI Rate]]","v":0},null,"C","2017-12-01","9999-12-31",1,"CSCD Financial Analyst II",20052308,"CSCD28",9999,0,83424.429999999993,93454.399999999994,88005,"FINANCE"]
[{"$f":"job_titles8[[#This Row],[Extended object ID]]","v":20052309},{"$f":"job_titles8[[#This Row],[WCI]]","v":9999},"9999-12-31",{"$f":"job_titles8[[#This Row],[WCI Rate]]","v":0},null,"C","2017-12-01","9999-12-31",1,"CSCD Division Director I",20052309,"CSCD28",9999,0,83424.429999999993,93454.399999999994,88014,"MANAGEMENT"]
[{"$f":"job_titles8[[#This Row],[Extended object ID]]","v":20052310},{"$f":"job_titles8[[#This Row],[WCI]]","v":9999},"9999-12-31",{"$f":"job_titles8[[#This Row],[WCI Rate]]","v":0},null,"C","2017-12-01","9999-12-31",1,"CSCD Office Specialist I",20052310,"CSCD13",9999,0,30238.83,33883.199999999997,88004,"ADMINISTRATIVE SUPP"]
[{"$f":"job_titles8[[#This Row],[Extended object ID]]","v":20052311},{"$f":"job_titles8[[#This Row],[WCI]]","v":9999},"9999-12-31",{"$f":"job_titles8[[#This Row],[WCI Rate]]","v":0},null,"C","2017-12-01","9999-12-31",1,"CSCD Accounting Specialist I",20052311,"CSCD13",9999,0,30238.83,33883.199999999997,88005,"FINANCE"]
[{"$f":"job_titles8[[#This Row],[Extended object ID]]","v":20052312},{"$f":"job_titles8[[#This Row],[WCI]]","v":9999},"9999-12-31",{"$f":"job_titles8[[#This Row],[WCI Rate]]","v":0},null,"C","2017-12-01","9999-12-31",1,"CSCD Office Specialist II",20052312,"CSCD15",9999,0,34608.5,38750.400000000001,88004,"ADMINISTRATIVE SUPP"]
[{"$f":"job_titles8[[#This Row],[Extended object ID]]","v":20052313},{"$f":"job_titles8[[#This Row],[WCI]]","v":9999},"9999-12-31",{"$f":"job_titles8[[#This Row],[WCI Rate]]","v":0},null,"C","2017-12-01","9999-12-31",1,"CSCD Accounting Specialist II",20052313,"CSCD14",9999,0,32345.46,36212.800000000003,88005,"FINANCE"]
[{"$f":"job_titles8[[#This Row],[Extended object ID]]","v":20052314},{"$f":"job_titles8[[#This Row],[WCI]]","v":9999},"9999-12-31",{"$f":"job_titles8[[#This Row],[WCI Rate]]","v":0},null,"C","2017-12-01","9999-12-31",1,"CSCD Office Specialist III",20052314,"CSCD17",9999,0,39615.06,44366.400000000001,88004,"ADMINISTRATIVE SUPP"]
[{"$f":"job_titles8[[#This Row],[Extended object ID]]","v":20052315},{"$f":"job_titles8[[#This Row],[WCI]]","v":9999},"9999-12-31",{"$f":"job_titles8[[#This Row],[WCI Rate]]","v":0},null,"C","2017-12-01","9999-12-31",1,"CSCD Accounting Specialist III",20052315,"CSCD15",9999,0,34608.5,38750.400000000001,88005,"FINANCE"]
[{"$f":"job_titles8[[#This Row],[Extended object ID]]","v":20052316},{"$f":"job_titles8[[#This Row],[WCI]]","v":9999},"9999-12-31",{"$f":"job_titles8[[#This Row],[WCI Rate]]","v":0},null,"C","2017-12-01","9999-12-31",1,"CSCD Office Specialist IV",20052316,"CSCD19",9999,0,45346.5,50793.599999999999,88004,"ADMINISTRATIVE SUPP"]
[{"$f":"job_titles8[[#This Row],[Extended object ID]]","v":20052317},{"$f":"job_titles8[[#This Row],[WCI]]","v":9999},"9999-12-31",{"$f":"job_titles8[[#This Row],[WCI Rate]]","v":0},null,"C","2017-12-01","9999-12-31",1,"CSCD Accounting Specialist IV",20052317,"CSCD16",9999,0,37024,41475.199999999997,88005,"FINANCE"]
[{"$f":"job_titles8[[#This Row],[Extended object ID]]","v":20052318},{"$f":"job_titles8[[#This Row],[WCI]]","v":9999},"9999-12-31",{"$f":"job_titles8[[#This Row],[WCI Rate]]","v":0},null,"C","2017-12-01","9999-12-31",1,"CSCD Division Director II",20052318,"CSCD29",9999,0,89265.7,99964.800000000003,88014,"MANAGEMENT"]
[{"$f":"job_titles8[[#This Row],[Extended object ID]]","v":20052319},{"$f":"job_titles8[[#This Row],[WCI]]","v":9999},"9999-12-31",{"$f":"job_titles8[[#This Row],[WCI Rate]]","v":0},null,"C","2017-12-01","9999-12-31",1,"CSCD Accounting Specialist V",20052319,"CSCD17",9999,0,39615.06,44366.400000000001,88005,"FINANCE"]
[{"$f":"job_titles8[[#This Row],[Extended object ID]]","v":20052320},{"$f":"job_titles8[[#This Row],[WCI]]","v":9999},"9999-12-31",{"$f":"job_titles8[[#This Row],[WCI Rate]]","v":0},null,"C","2017-12-01","9999-12-31",1,"CSCD Training Specialist I",20052320,"CSCD20",9999,0,48530.77,54350.400000000001,88016,"HUMAN RESOURCES"]
[{"$f":"job_titles8[[#This Row],[Extended object ID]]","v":20052321},{"$f":"job_titles8[[#This Row],[WCI]]","v":9999},"9999-12-31",{"$f":"job_titles8[[#This Row],[WCI Rate]]","v":0},null,"C","2017-12-01","9999-12-31",1,"CSCD Training Specialist II",20052321,"CSCD22",9999,0,55578.85,62254.400000000001,88016,"HUMAN RESOURCES"]
[{"$f":"job_titles8[[#This Row],[Extended object ID]]","v":20052322},{"$f":"job_titles8[[#This Row],[WCI]]","v":9999},"9999-12-31",{"$f":"job_titles8[[#This Row],[WCI Rate]]","v":0},null,"C","2017-12-01","9999-12-31",1,"CSCD Technician I",20052322,"CSCD12",9999,0,28262.42,31657.599999999999,88013,"COURT SERVICES"]
[{"$f":"job_titles8[[#This Row],[Extended object ID]]","v":20052323},{"$f":"job_titles8[[#This Row],[WCI]]","v":9999},"9999-12-31",{"$f":"job_titles8[[#This Row],[WCI Rate]]","v":0},null,"C","2017-12-01","9999-12-31",1,"CSCD Division Director III",20052323,"CSCD30",9999,0,95524.21,106974.39999999999,88014,"MANAGEMENT"]
[{"$f":"job_titles8[[#This Row],[Extended object ID]]","v":20052324},{"$f":"job_titles8[[#This Row],[WCI]]","v":9999},"9999-12-31",{"$f":"job_titles8[[#This Row],[WCI Rate]]","v":0},null,"C","2017-12-01","9999-12-31",1,"CSCD Human Resources Specialist I",20052324,"CSCD13",9999,0,30238.83,33883.199999999997,88016,"HUMAN RESOURCES"]
[{"$f":"job_titles8[[#This Row],[Extended object ID]]","v":20052325},{"$f":"job_titles8[[#This Row],[WCI]]","v":9999},"9999-12-31",{"$f":"job_titles8[[#This Row],[WCI Rate]]","v":0},null,"C","2017-12-01","9999-12-31",1,"CSCD Technician II",20052325,"CSCD13",9999,0,30238.83,33883.199999999997,88013,"COURT SERVICES"]
[{"$f":"job_titles8[[#This Row],[Extended object ID]]","v":20052326},{"$f":"job_titles8[[#This Row],[WCI]]","v":9999},"9999-12-31",{"$f":"job_titles8[[#This Row],[WCI Rate]]","v":0},null,"C","2017-12-01","9999-12-31",1,"CSCD Human Resources Specialist II",20052326,"CSCD15",9999,0,34608.5,38750.400000000001,88016,"HUMAN RESOURCES"]
[{"$f":"job_titles8[[#This Row],[Extended object ID]]","v":20052327},{"$f":"job_titles8[[#This Row],[WCI]]","v":9999},"9999-12-31",{"$f":"job_titles8[[#This Row],[WCI Rate]]","v":0},null,"C","2017-12-01","9999-12-31",1,"CSCD Technician III",20052327,"CSCD14",9999,0,32345.46,36212.800000000003,88013,"COURT SERVICES"]
[{"$f":"job_titles8[[#This Row],[Extended object ID]]","v":20052328},{"$f":"job_titles8[[#This Row],[WCI]]","v":9999},"9999-12-31",{"$f":"job_titles8[[#This Row],[WCI Rate]]","v":0},null,"C","2017-12-01","9999-12-31",1,"CSCD Human Resources Specialist III",20052328,"CSCD17",9999,0,39615.06,44366.400000000001,88016,"HUMAN RESOURCES"]
[{"$f":"job_titles8[[#This Row],[Extended object ID]]","v":20052329},{"$f":"job_titles8[[#This Row],[WCI]]","v":9999},"9999-12-31",{"$f":"job_titles8[[#This Row],[WCI Rate]]","v":0},null,"C","2017-12-01","9999-12-31",1,"CSCD Human Resources Specialist IV",20052329,"CSCD19",9999,0,45346.5,50793.599999999999,88016,"HUMAN RESOURCES"]
[{"$f":"job_titles8[[#This Row],[Extended object ID]]","v":20052330},{"$f":"job_titles8[[#This Row],[WCI]]","v":9999},"9999-12-31",{"$f":"job_titles8[[#This Row],[WCI Rate]]","v":0},null,"C","2017-12-01","9999-12-31",1,"CSCD Business Analyst I",20052330,"CSCD20",9999,0,48530.77,54350.400000000001,88021,"INFORMATION TECH"]
[{"$f":"job_titles8[[#This Row],[Extended object ID]]","v":20052331},{"$f":"job_titles8[[#This Row],[WCI]]","v":9999},"9999-12-31",{"$f":"job_titles8[[#This Row],[WCI Rate]]","v":0},null,"C","2017-12-01","9999-12-31",1,"CSCD Business Analyst II",20052331,"CSCD21",9999,0,51934.48,58156.800000000003,88021,"INFORMATION TECH"]
[{"$f":"job_titles8[[#This Row],[Extended object ID]]","v":20052332},{"$f":"job_titles8[[#This Row],[WCI]]","v":9999},"9999-12-31",{"$f":"job_titles8[[#This Row],[WCI Rate]]","v":0},null,"C","2017-12-01","9999-12-31",1,"CSCD Intake Specialist I",20052332,"CSCD13",9999,0,30238.83,33883.199999999997,88013,"COURT SERVICES"]
[{"$f":"job_titles8[[#This Row],[Extended object ID]]","v":20052333},{"$f":"job_titles8[[#This Row],[WCI]]","v":9999},"9999-12-31",{"$f":"job_titles8[[#This Row],[WCI Rate]]","v":0},null,"C","2017-12-01","9999-12-31",1,"CSCD Business Analyst III",20052333,"CSCD22",9999,0,55578.85,62254.400000000001,88021,"INFORMATION TECH"]
[{"$f":"job_titles8[[#This Row],[Extended object ID]]","v":20052334},{"$f":"job_titles8[[#This Row],[WCI]]","v":9999},"9999-12-31",{"$f":"job_titles8[[#This Row],[WCI Rate]]","v":0},null,"C","2017-12-01","9999-12-31",1,"CSCD Business Analyst IV",20052334,"CSCD24",9999,0,63638.43,71281.600000000006,88021,"INFORMATION TECH"]
[{"$f":"job_titles8[[#This Row],[Extended object ID]]","v":20052335},{"$f":"job_titles8[[#This Row],[WCI]]","v":9999},"9999-12-31",{"$f":"job_titles8[[#This Row],[WCI Rate]]","v":0},null,"C","2017-12-01","9999-12-31",1,"CSCD Office Manager I",20052335,"CSCD21",9999,0,51934.48,58156.800000000003,88014,"MANAGEMENT"]
[{"$f":"job_titles8[[#This Row],[Extended object ID]]","v":20052336},{"$f":"job_titles8[[#This Row],[WCI]]","v":9999},"9999-12-31",{"$f":"job_titles8[[#This Row],[WCI Rate]]","v":0},null,"C","2017-12-01","9999-12-31",1,"CSCD Office Manager II",20052336,"CSCD22",9999,0,55578.85,62254.400000000001,88014,"MANAGEMENT"]
[{"$f":"job_titles8[[#This Row],[Extended object ID]]","v":20052337},{"$f":"job_titles8[[#This Row],[WCI]]","v":9999},"9999-12-31",{"$f":"job_titles8[[#This Row],[WCI Rate]]","v":0},null,"C","2017-12-01","9999-12-31",1,"CSCD Unit Manager I",20052337,"CSCD24",9999,0,63638.43,71281.600000000006,88014,"MANAGEMENT"]
[{"$f":"job_titles8[[#This Row],[Extended object ID]]","v":20052338},{"$f":"job_titles8[[#This Row],[WCI]]","v":9999},"9999-12-31",{"$f":"job_titles8[[#This Row],[WCI Rate]]","v":0},null,"C","2017-12-01","9999-12-31",1,"CSCD Intake Specialist II",20052338,"CSCD15",9999,0,34608.5,38750.400000000001,88013,"COURT SERVICES"]
[{"$f":"job_titles8[[#This Row],[Extended object ID]]","v":20052339},{"$f":"job_titles8[[#This Row],[WCI]]","v":9999},"9999-12-31",{"$f":"job_titles8[[#This Row],[WCI Rate]]","v":0},null,"C","2017-12-01","9999-12-31",1,"CSCD Case Work Specialist I",20052339,"CSCD14",9999,0,32345.46,36212.800000000003,88013,"COURT SERVICES"]
[{"$f":"job_titles8[[#This Row],[Extended object ID]]","v":20052340},{"$f":"job_titles8[[#This Row],[WCI]]","v":9999},"9999-12-31",{"$f":"job_titles8[[#This Row],[WCI Rate]]","v":0},null,"C","2017-12-01","9999-12-31",1,"CSCD Case Work Specialist II",20052340,"CSCD16",9999,0,37024,41475.199999999997,88013,"COURT SERVICES"]
[{"$f":"job_titles8[[#This Row],[Extended object ID]]","v":20052341},{"$f":"job_titles8[[#This Row],[WCI]]","v":9999},"9999-12-31",{"$f":"job_titles8[[#This Row],[WCI Rate]]","v":0},null,"C","2017-12-01","9999-12-31",1,"CSCD Assistant Director",20052341,"CSCD32",9999,0,109380.75,122512,88014,"MANAGEMENT"]
[{"$f":"job_titles8[[#This Row],[Extended object ID]]","v":20052342},{"$f":"job_titles8[[#This Row],[WCI]]","v":9999},"9999-12-31",{"$f":"job_titles8[[#This Row],[WCI Rate]]","v":0},null,"C","2017-12-01","9999-12-31",1,"CSCD Probation Officer I",20052342,"CSCD16",9999,0,37024,41475.199999999997,88013,"COURT SERVICES"]
[{"$f":"job_titles8[[#This Row],[Extended object ID]]","v":20052343},{"$f":"job_titles8[[#This Row],[WCI]]","v":9999},"9999-12-31",{"$f":"job_titles8[[#This Row],[WCI Rate]]","v":0},null,"C","2017-12-01","9999-12-31",1,"CSCD Probation Officer II",20052343,"CSCD18",9999,0,42382.080000000002,47465.599999999999,88013,"COURT SERVICES"]
[{"$f":"job_titles8[[#This Row],[Extended object ID]]","v":20052344},{"$f":"job_titles8[[#This Row],[WCI]]","v":9999},"9999-12-31",{"$f":"job_titles8[[#This Row],[WCI Rate]]","v":0},null,"C","2017-12-01","9999-12-31",1,"CSCD Probation Officer III",20052344,"CSCD20",9999,0,48530.77,54350.400000000001,88013,"COURT SERVICES"]
[{"$f":"job_titles8[[#This Row],[Extended object ID]]","v":20052345},{"$f":"job_titles8[[#This Row],[WCI]]","v":9999},"9999-12-31",{"$f":"job_titles8[[#This Row],[WCI Rate]]","v":0},null,"C","2017-12-01","9999-12-31",1,"CSCD Planner I",20052345,"CSCD21",9999,0,51934.48,58156.800000000003,88008,"PLANNING & RESEARCH"]
[{"$f":"job_titles8[[#This Row],[Extended object ID]]","v":20052346},{"$f":"job_titles8[[#This Row],[WCI]]","v":9999},"9999-12-31",{"$f":"job_titles8[[#This Row],[WCI Rate]]","v":0},null,"C","2017-12-01","9999-12-31",1,"CSCD Probation Officer IV",20052346,"CSCD22",9999,0,55578.85,62254.400000000001,88013,"COURT SERVICES"]
[{"$f":"job_titles8[[#This Row],[Extended object ID]]","v":20052347},{"$f":"job_titles8[[#This Row],[WCI]]","v":9999},"9999-12-31",{"$f":"job_titles8[[#This Row],[WCI Rate]]","v":0},null,"C","2017-12-01","9999-12-31",1,"CSCD Planner II",20052347,"CSCD24",9999,0,63638.43,71281.600000000006,88008,"PLANNING & RESEARCH"]
[{"$f":"job_titles8[[#This Row],[Extended object ID]]","v":20052348},{"$f":"job_titles8[[#This Row],[WCI]]","v":9999},"9999-12-31",{"$f":"job_titles8[[#This Row],[WCI Rate]]","v":0},null,"C","2017-12-01","9999-12-31",1,"CSCD Chemical Dependency Counselor I",20052348,"CSCD16",9999,0,37024,41475.199999999997,88011,"SOCIAL SVCS"]
[{"$f":"job_titles8[[#This Row],[Extended object ID]]","v":20052349},{"$f":"job_titles8[[#This Row],[WCI]]","v":9999},"9999-12-31",{"$f":"job_titles8[[#This Row],[WCI Rate]]","v":0},null,"C","2017-12-01","9999-12-31",1,"CSCD Chemical Dependency Counselor II",20052349,"CSCD18",9999,0,42382.080000000002,47465.599999999999,88011,"SOCIAL SVCS"]
[{"$f":"job_titles8[[#This Row],[Extended object ID]]","v":20052350},{"$f":"job_titles8[[#This Row],[WCI]]","v":9999},"9999-12-31",{"$f":"job_titles8[[#This Row],[WCI Rate]]","v":0},null,"C","2017-12-01","9999-12-31",1,"CSCD Counselor I",20052350,"CSCD17",9999,0,39615.06,44366.400000000001,88011,"SOCIAL SVCS"]
[{"$f":"job_titles8[[#This Row],[Extended object ID]]","v":20052351},{"$f":"job_titles8[[#This Row],[WCI]]","v":9999},"9999-12-31",{"$f":"job_titles8[[#This Row],[WCI Rate]]","v":0},null,"C","2017-12-01","9999-12-31",1,"CSCD Counselor II",20052351,"CSCD19",9999,0,45346.5,50793.599999999999,88011,"SOCIAL SVCS"]
[{"$f":"job_titles8[[#This Row],[Extended object ID]]","v":20052352},{"$f":"job_titles8[[#This Row],[WCI]]","v":9999},"9999-12-31",{"$f":"job_titles8[[#This Row],[WCI Rate]]","v":0},null,"C","2017-12-01","9999-12-31",1,"CSCD Counselor III",20052352,"CSCD20",9999,0,48530.77,54350.400000000001,88011,"SOCIAL SVCS"]
[{"$f":"job_titles8[[#This Row],[Extended object ID]]","v":20052353},{"$f":"job_titles8[[#This Row],[WCI]]","v":9999},"9999-12-31",{"$f":"job_titles8[[#This Row],[WCI Rate]]","v":0},null,"C","2017-12-01","9999-12-31",1,"CSCD Counselor IV",20052353,"CSCD22",9999,0,55578.85,62254.400000000001,88011,"SOCIAL SVCS"]
[{"$f":"job_titles8[[#This Row],[Extended object ID]]","v":20052376},{"$f":"job_titles8[[#This Row],[WCI]]","v":8810},"9999-12-31",{"$f":"job_titles8[[#This Row],[WCI Rate]]","v":1.6000000000000001E-3},null,"C","2017-12-01","9999-12-31",1,"Pur HUB Program Director",20052376,"C21",8810,1.6000000000000001E-3,106310.9,175412.99,88027,"PUR PURCHASING"]
[{"$f":"job_titles8[[#This Row],[Extended object ID]]","v":20052401},{"$f":"job_titles8[[#This Row],[WCI]]","v":9999},"9999-12-31",{"$f":"job_titles8[[#This Row],[WCI Rate]]","v":0},null,"C","2017-12-01","9999-12-31",1,"CSCD Case Work Specialist IV",20052401,"CSCD19",9999,0,45346.5,50793.599999999999,88013,"COURT SERVICES"]
[{"$f":"job_titles8[[#This Row],[Extended object ID]]","v":20052402},{"$f":"job_titles8[[#This Row],[WCI]]","v":9999},"9999-12-31",{"$f":"job_titles8[[#This Row],[WCI Rate]]","v":0},null,"C","2017-12-01","9999-12-31",1,"CSCD Intake Specialist III",20052402,"CSCD17",9999,0,39615.06,44366.400000000001,88013,"COURT SERVICES"]
[{"$f":"job_titles8[[#This Row],[Extended object ID]]","v":20052426},{"$f":"job_titles8[[#This Row],[WCI]]","v":8810},"9999-12-31",{"$f":"job_titles8[[#This Row],[WCI Rate]]","v":1.6000000000000001E-3},null,"C","2018-02-23","9999-12-31",1,"County Executive TNR Succession",20052426,"GRD35",8810,1.6000000000000001E-3,133996.29999999999,214394.09,88007,"COUNTY EXECUTIVES"]
[{"$f":"job_titles8[[#This Row],[Extended object ID]]","v":20052451},{"$f":"job_titles8[[#This Row],[WCI]]","v":8810},"9999-12-31",{"$f":"job_titles8[[#This Row],[WCI Rate]]","v":1.6000000000000001E-3},null,"C","2018-03-06","9999-12-31",1,"Safety Specialist I",20052451,"C07",8810,1.6000000000000001E-3,50398.3,68037.710000000006,88016,"HUMAN RESOURCES"]
[{"$f":"job_titles8[[#This Row],[Extended object ID]]","v":20052452},{"$f":"job_titles8[[#This Row],[WCI]]","v":8810},"9999-12-31",{"$f":"job_titles8[[#This Row],[WCI Rate]]","v":1.6000000000000001E-3},null,"C","2018-03-20","9999-12-31",1,"Chief of Staff to County Commissioner",20052452,"C14",8810,1.6000000000000001E-3,66183.97,105894.35,88004,"ADMINISTRATIVE SUPP"]
[{"$f":"job_titles8[[#This Row],[Extended object ID]]","v":20052453},{"$f":"job_titles8[[#This Row],[WCI]]","v":8810},"9999-12-31",{"$f":"job_titles8[[#This Row],[WCI Rate]]","v":1.6000000000000001E-3},null,"C","2018-03-20","9999-12-31",1,"Agenda Coordinator",20052453,"C12",8810,1.6000000000000001E-3,60437.1,90655.66,88004,"ADMINISTRATIVE SUPP"]
[{"$f":"job_titles8[[#This Row],[Extended object ID]]","v":20052476},{"$f":"job_titles8[[#This Row],[WCI]]","v":8810},"9999-12-31",{"$f":"job_titles8[[#This Row],[WCI Rate]]","v":1.6000000000000001E-3},null,"C","2018-03-28","9999-12-31",1,"Elections Early Voting Worker",20052476,"NCF01",8810,1.6000000000000001E-3,15080,500000,88020,"TEMP/SEASONAL"]
[{"$f":"job_titles8[[#This Row],[Extended object ID]]","v":20052477},{"$f":"job_titles8[[#This Row],[WCI]]","v":8810},"9999-12-31",{"$f":"job_titles8[[#This Row],[WCI Rate]]","v":1.6000000000000001E-3},null,"C","2018-03-28","9999-12-31",1,"Elections Operations Clerk",20052477,"NCF01",8810,1.6000000000000001E-3,15080,500000,88020,"TEMP/SEASONAL"]
[{"$f":"job_titles8[[#This Row],[Extended object ID]]","v":20052501},{"$f":"job_titles8[[#This Row],[WCI]]","v":8832},"9999-12-31",{"$f":"job_titles8[[#This Row],[WCI Rate]]","v":1.9E-3},null,"C","2018-04-10","9999-12-31",1,"EMS Training Captain",20052501,"C16",8832,1.9E-3,75776.03,121241.65,88003,"MEDICAL"]
[{"$f":"job_titles8[[#This Row],[Extended object ID]]","v":20052551},{"$f":"job_titles8[[#This Row],[WCI]]","v":7720},"9999-12-31",{"$f":"job_titles8[[#This Row],[WCI Rate]]","v":1.55E-2},null,"C","2018-05-01","9999-12-31",1,"Park Ranger Cadet",20052551,"GRD59",7720,1.55E-2,57000,57000,88012,"PUBLIC SAF/EMG MGMT"]
[{"$f":"job_titles8[[#This Row],[Extended object ID]]","v":20052576},{"$f":"job_titles8[[#This Row],[WCI]]","v":8810},"9999-12-31",{"$f":"job_titles8[[#This Row],[WCI Rate]]","v":1.6000000000000001E-3},null,"C","2018-06-01","9999-12-31",1,"Executive Asst Succession",20052576,"GRD20",8810,1.6000000000000001E-3,48530.77,72796.259999999995,88004,"ADMINISTRATIVE SUPP"]
[{"$f":"job_titles8[[#This Row],[Extended object ID]]","v":20052601},{"$f":"job_titles8[[#This Row],[WCI]]","v":8810},"9999-12-31",{"$f":"job_titles8[[#This Row],[WCI Rate]]","v":1.6000000000000001E-3},null,"C","2018-06-19","9999-12-31",1,"Chief Information Security Officer",20052601,"C25",8810,1.6000000000000001E-3,139356.15,229937.65,88021,"INFORMATION TECH"]
[{"$f":"job_titles8[[#This Row],[Extended object ID]]","v":20052626},{"$f":"job_titles8[[#This Row],[WCI]]","v":9999},"9999-12-31",{"$f":"job_titles8[[#This Row],[WCI Rate]]","v":0},null,"C","2018-07-01","9999-12-31",1,"CSCD Case Work Specialist III",20052626,"CSCD17",9999,0,39615.06,44366.400000000001,88013,"COURT SERVICES"]
[{"$f":"job_titles8[[#This Row],[Extended object ID]]","v":20052651},{"$f":"job_titles8[[#This Row],[WCI]]","v":9102},"9999-12-31",{"$f":"job_titles8[[#This Row],[WCI Rate]]","v":2.0799999999999999E-2},null,"C","2018-07-10","9999-12-31",1,"Environmental Supervisor",20052651,"C14",9102,2.0799999999999999E-2,66183.97,105894.35,88015,"PROFESSIONAL SUPP"]
[{"$f":"job_titles8[[#This Row],[Extended object ID]]","v":20052652},{"$f":"job_titles8[[#This Row],[WCI]]","v":8810},"9999-12-31",{"$f":"job_titles8[[#This Row],[WCI Rate]]","v":1.6000000000000001E-3},null,"C","2018-07-16","9999-12-31",1,"Fleet Div Mgr Sn",20052652,"GRD26",8810,1.6000000000000001E-3,72861.570000000007,116578.59,88014,"MANAGEMENT"]
[{"$f":"job_titles8[[#This Row],[Extended object ID]]","v":20052676},{"$f":"job_titles8[[#This Row],[WCI]]","v":7720},"9999-12-31",{"$f":"job_titles8[[#This Row],[WCI Rate]]","v":1.55E-2},null,"C",-36522,"9999-12-31",1,"Major Succession",20052676,"GRD31",7720,1.55E-2,102222.02,163555.18,88012,"PUBLIC SAF/EMG MGMT"]
[{"$f":"job_titles8[[#This Row],[Extended object ID]]","v":20052703},{"$f":"job_titles8[[#This Row],[WCI]]","v":8810},"9999-12-31",{"$f":"job_titles8[[#This Row],[WCI Rate]]","v":1.6000000000000001E-3},null,"C","2018-10-01","9999-12-31",1,"Aud Auditor Assoc III",20052703,"AUD20",8810,1.6000000000000001E-3,58978,100263,88026,"AUDITOR"]
[{"$f":"job_titles8[[#This Row],[Extended object ID]]","v":20052726},{"$f":"job_titles8[[#This Row],[WCI]]","v":8810},"9999-12-31",{"$f":"job_titles8[[#This Row],[WCI Rate]]","v":1.6000000000000001E-3},null,"C","2018-09-01","9999-12-31",1,"Dept Safety Program Administrator",20052726,"C14",8810,1.6000000000000001E-3,66183.97,105894.35,88016,"HUMAN RESOURCES"]
[{"$f":"job_titles8[[#This Row],[Extended object ID]]","v":20052751},{"$f":"job_titles8[[#This Row],[WCI]]","v":8810},"9999-12-31",{"$f":"job_titles8[[#This Row],[WCI Rate]]","v":1.6000000000000001E-3},null,"C","2018-09-01","9999-12-31",1,"Pur Contract Compliance Monitor",20052751,"C10",8810,1.6000000000000001E-3,55877.5,82698.7,88027,"PUR PURCHASING"]
[{"$f":"job_titles8[[#This Row],[Extended object ID]]","v":20052776},{"$f":"job_titles8[[#This Row],[WCI]]","v":8810},"9999-12-31",{"$f":"job_titles8[[#This Row],[WCI Rate]]","v":1.6000000000000001E-3},null,"C","2018-09-25","9999-12-31",1,"Constable Communications Specialist",20052776,"C07",8810,1.6000000000000001E-3,50398.3,68037.710000000006,88012,"PUBLIC SAF/EMG MGMT"]
[{"$f":"job_titles8[[#This Row],[Extended object ID]]","v":20052777},{"$f":"job_titles8[[#This Row],[WCI]]","v":8810},"9999-12-31",{"$f":"job_titles8[[#This Row],[WCI Rate]]","v":1.6000000000000001E-3},null,"C","2018-09-25","9999-12-31",1,"Constable Communications Specialist Supv",20052777,"C10",8810,1.6000000000000001E-3,55877.5,82698.7,88012,"PUBLIC SAF/EMG MGMT"]
[{"$f":"job_titles8[[#This Row],[Extended object ID]]","v":20052801},{"$f":"job_titles8[[#This Row],[WCI]]","v":7720},"9999-12-31",{"$f":"job_titles8[[#This Row],[WCI Rate]]","v":1.55E-2},null,"C","2018-10-02","9999-12-31",1,"Assistant Parking Coordinator",20052801,"C04",7720,1.55E-2,45898.78,59668.41,88004,"ADMINISTRATIVE SUPP"]
[{"$f":"job_titles8[[#This Row],[Extended object ID]]","v":20052827},{"$f":"job_titles8[[#This Row],[WCI]]","v":9015},"9999-12-31",{"$f":"job_titles8[[#This Row],[WCI Rate]]","v":1.8800000000000001E-2},null,"C","2018-10-02","9999-12-31",1,"Custodial Services Superintendent",20052827,"C08",9015,1.8800000000000001E-2,52162.239999999998,75635.25,88014,"MANAGEMENT"]
[{"$f":"job_titles8[[#This Row],[Extended object ID]]","v":20052828},{"$f":"job_titles8[[#This Row],[WCI]]","v":7720},"9999-12-31",{"$f":"job_titles8[[#This Row],[WCI Rate]]","v":1.55E-2},null,"C","2018-10-02","9999-12-31",1,"Building Security Superintendent",20052828,"C10",7720,1.55E-2,55877.5,82698.7,88014,"MANAGEMENT"]
[{"$f":"job_titles8[[#This Row],[Extended object ID]]","v":20052829},{"$f":"job_titles8[[#This Row],[WCI]]","v":9102},"9999-12-31",{"$f":"job_titles8[[#This Row],[WCI Rate]]","v":2.0799999999999999E-2},null,"C","2018-10-02","9999-12-31",1,"Natural Resources Specialist Senior",20052829,"C11",9102,2.0799999999999999E-2,58112.6,87168.9,88015,"PROFESSIONAL SUPP"]
[{"$f":"job_titles8[[#This Row],[Extended object ID]]","v":20052830},{"$f":"job_titles8[[#This Row],[WCI]]","v":8810},"9999-12-31",{"$f":"job_titles8[[#This Row],[WCI Rate]]","v":1.6000000000000001E-3},null,"C","2018-10-02","9999-12-31",1,"Compliance and Privacy Analyst II",20052830,"C14",8810,1.6000000000000001E-3,66183.97,105894.35,88015,"PROFESSIONAL SUPP"]
[{"$f":"job_titles8[[#This Row],[Extended object ID]]","v":20052851},{"$f":"job_titles8[[#This Row],[WCI]]","v":8810},"9999-12-31",{"$f":"job_titles8[[#This Row],[WCI Rate]]","v":1.6000000000000001E-3},null,"C","2018-10-30","9999-12-31",1,"Assistant Archivist",20052851,"C08",8810,1.6000000000000001E-3,52162.239999999998,75635.25,88015,"PROFESSIONAL SUPP"]
[{"$f":"job_titles8[[#This Row],[Extended object ID]]","v":20052876},{"$f":"job_titles8[[#This Row],[WCI]]","v":8810},"9999-12-31",{"$f":"job_titles8[[#This Row],[WCI Rate]]","v":1.6000000000000001E-3},null,"C","2018-11-13","9999-12-31",1,"Information Systems Auditor",20052876,"C18",8810,1.6000000000000001E-3,86761.41,138818.25,88021,"INFORMATION TECH"]
[{"$f":"job_titles8[[#This Row],[Extended object ID]]","v":20052877},{"$f":"job_titles8[[#This Row],[WCI]]","v":8810},"9999-12-31",{"$f":"job_titles8[[#This Row],[WCI Rate]]","v":1.6000000000000001E-3},null,"C","2018-11-13","9999-12-31",1,"Information Security Architect",20052877,"C20",8810,1.6000000000000001E-3,99345.18,158952.29,88021,"INFORMATION TECH"]
[{"$f":"job_titles8[[#This Row],[Extended object ID]]","v":20052878},{"$f":"job_titles8[[#This Row],[WCI]]","v":8810},"9999-12-31",{"$f":"job_titles8[[#This Row],[WCI Rate]]","v":1.6000000000000001E-3},null,"C","2018-11-27","9999-12-31",1,"Community and Economic Development Spc",20052878,"C11",8810,1.6000000000000001E-3,58112.6,87168.9,88015,"PROFESSIONAL SUPP"]
[{"$f":"job_titles8[[#This Row],[Extended object ID]]","v":20052902},{"$f":"job_titles8[[#This Row],[WCI]]","v":8810},"9999-12-31",{"$f":"job_titles8[[#This Row],[WCI Rate]]","v":1.6000000000000001E-3},null,"C","2018-12-04","9999-12-31",1,"County/District Clerk Asst Div Dir",20052902,"C13",8810,1.6000000000000001E-3,62854.59,100567.34,88014,"MANAGEMENT"]
[{"$f":"job_titles8[[#This Row],[Extended object ID]]","v":20052926},{"$f":"job_titles8[[#This Row],[WCI]]","v":8810},"9999-12-31",{"$f":"job_titles8[[#This Row],[WCI Rate]]","v":1.6000000000000001E-3},null,"C","2018-12-11","9999-12-31",1,"Veterans Services Officer Assistant Sr",20052926,"C11",8810,1.6000000000000001E-3,58112.6,87168.9,88015,"PROFESSIONAL SUPP"]
[{"$f":"job_titles8[[#This Row],[Extended object ID]]","v":20052951},{"$f":"job_titles8[[#This Row],[WCI]]","v":8810},"9999-12-31",{"$f":"job_titles8[[#This Row],[WCI Rate]]","v":1.6000000000000001E-3},null,"C","2019-01-16","9999-12-31",1,"Pur Operations Project Manager I",20052951,"C18",8810,1.6000000000000001E-3,86761.41,138818.25,88027,"PUR PURCHASING"]
[{"$f":"job_titles8[[#This Row],[Extended object ID]]","v":20052976},{"$f":"job_titles8[[#This Row],[WCI]]","v":8810},"9999-12-31",{"$f":"job_titles8[[#This Row],[WCI Rate]]","v":1.6000000000000001E-3},null,"C","2019-02-19","9999-12-31",1,"Park Operations Specialist",20052976,"C03",8810,1.6000000000000001E-3,44561.919999999998,57930.5,88001,"MAINTENANCE"]
[{"$f":"job_titles8[[#This Row],[Extended object ID]]","v":20052977},{"$f":"job_titles8[[#This Row],[WCI]]","v":9015},"9999-12-31",{"$f":"job_titles8[[#This Row],[WCI Rate]]","v":1.8800000000000001E-2},null,"C","2019-02-19","9999-12-31",1,"Building Maintenance & Repr Asst Div Mgr",20052977,"C12",9015,1.8800000000000001E-2,60437.1,90655.66,88014,"MANAGEMENT"]
[{"$f":"job_titles8[[#This Row],[Extended object ID]]","v":20053026},{"$f":"job_titles8[[#This Row],[WCI]]","v":7422},"9999-12-31",{"$f":"job_titles8[[#This Row],[WCI Rate]]","v":1.3299999999999999E-2},null,"C","2019-02-15","9999-12-31",1,"Aircraft Mechanic Sr Succession",20053026,"GRD24",7422,1.3299999999999999E-2,63638.43,101821.41,88012,"PUBLIC SAF/EMG MGMT"]
[{"$f":"job_titles8[[#This Row],[Extended object ID]]","v":20053027},{"$f":"job_titles8[[#This Row],[WCI]]","v":8810},"9999-12-31",{"$f":"job_titles8[[#This Row],[WCI Rate]]","v":1.6000000000000001E-3},null,"C","2019-03-12","9999-12-31",1,"Chief Deputy/Director of EMS Succession",20053027,"GRD30",8810,1.6000000000000001E-3,95524.21,152838.82,88012,"PUBLIC SAF/EMG MGMT"]
[{"$f":"job_titles8[[#This Row],[Extended object ID]]","v":20053051},{"$f":"job_titles8[[#This Row],[WCI]]","v":8810},"9999-12-31",{"$f":"job_titles8[[#This Row],[WCI Rate]]","v":1.6000000000000001E-3},null,"C","2019-03-12","9999-12-31",1,"Elections Coord Sr",20053051,"C09",8810,1.6000000000000001E-3,53987.92,78282.490000000005,88004,"ADMINISTRATIVE SUPP"]
[{"$f":"job_titles8[[#This Row],[Extended object ID]]","v":20053052},{"$f":"job_titles8[[#This Row],[WCI]]","v":7720},"9999-12-31",{"$f":"job_titles8[[#This Row],[WCI Rate]]","v":1.55E-2},null,"C","2019-03-12","9999-12-31",1,"Sheriff Fleet Services Coord",20053052,"C11",7720,1.55E-2,58112.6,87168.9,88002,"SKILLED TRADES"]
[{"$f":"job_titles8[[#This Row],[Extended object ID]]","v":20053053},{"$f":"job_titles8[[#This Row],[WCI]]","v":7720},"9999-12-31",{"$f":"job_titles8[[#This Row],[WCI Rate]]","v":1.55E-2},null,"C","2019-03-12","9999-12-31",1,"Crime Scene & Evidence Manager",20053053,"C16",7720,1.55E-2,75776.03,121241.65,88012,"PUBLIC SAF/EMG MGMT"]
[{"$f":"job_titles8[[#This Row],[Extended object ID]]","v":20053076},{"$f":"job_titles8[[#This Row],[WCI]]","v":8810},"9999-12-31",{"$f":"job_titles8[[#This Row],[WCI Rate]]","v":1.6000000000000001E-3},null,"C","2019-04-02","9999-12-31",1,"IT Disaster Recovery Analyst",20053076,"C18",8810,1.6000000000000001E-3,86761.41,138818.25,88021,"INFORMATION TECH"]
[{"$f":"job_titles8[[#This Row],[Extended object ID]]","v":20053102},{"$f":"job_titles8[[#This Row],[WCI]]","v":9999},"9999-12-31",{"$f":"job_titles8[[#This Row],[WCI Rate]]","v":0},null,"C","2019-04-15","9999-12-31",1,"CSCD Psychologist",20053102,"CSCD26",9999,0,72861.570000000007,81619.199999999997,88011,"SOCIAL SVCS"]
[{"$f":"job_titles8[[#This Row],[Extended object ID]]","v":20053126},{"$f":"job_titles8[[#This Row],[WCI]]","v":7720},"9999-12-31",{"$f":"job_titles8[[#This Row],[WCI Rate]]","v":1.55E-2},null,"C","2019-04-30","9999-12-31",1,"Investigator Senior",20053126,"GRD67",7720,1.55E-2,88009.1,88009.1,88025,"POPS NON-TCSO"]
[{"$f":"job_titles8[[#This Row],[Extended object ID]]","v":20053151},{"$f":"job_titles8[[#This Row],[WCI]]","v":7720},"9999-12-31",{"$f":"job_titles8[[#This Row],[WCI Rate]]","v":1.55E-2},null,"C","2019-05-19","9999-12-31",1,"Crime Scene & Evidence Manager Sn",20053151,"GRD26",7720,1.55E-2,72861.570000000007,116578.59,88012,"PUBLIC SAF/EMG MGMT"]
[{"$f":"job_titles8[[#This Row],[Extended object ID]]","v":20053176},{"$f":"job_titles8[[#This Row],[WCI]]","v":9999},"9999-12-31",{"$f":"job_titles8[[#This Row],[WCI Rate]]","v":0},null,"C","2019-06-03","9999-12-31",1,"CSCD Re-Entry Program Coord",20053176,"CSCD20",9999,0,48530.77,54350.400000000001,88011,"SOCIAL SVCS"]
[{"$f":"job_titles8[[#This Row],[Extended object ID]]","v":20053251},{"$f":"job_titles8[[#This Row],[WCI]]","v":8810},"9999-12-31",{"$f":"job_titles8[[#This Row],[WCI Rate]]","v":1.6000000000000001E-3},null,"C","2019-08-13","9999-12-31",1,"Technology & Operations Chief Deputy",20053251,"C23",8810,1.6000000000000001E-3,121718.94,200836.25,88014,"MANAGEMENT"]
[{"$f":"job_titles8[[#This Row],[Extended object ID]]","v":20053276},{"$f":"job_titles8[[#This Row],[WCI]]","v":8810},"9999-12-31",{"$f":"job_titles8[[#This Row],[WCI Rate]]","v":1.6000000000000001E-3},null,"C","2019-09-10","9999-12-31",1,"Pur Operations Consultant",20053276,"C20",8810,1.6000000000000001E-3,99345.18,158952.29,88027,"PUR PURCHASING"]
[{"$f":"job_titles8[[#This Row],[Extended object ID]]","v":20053277},{"$f":"job_titles8[[#This Row],[WCI]]","v":8810},"9999-12-31",{"$f":"job_titles8[[#This Row],[WCI Rate]]","v":1.6000000000000001E-3},null,"C","2019-09-30","9999-12-31",1,"Judicial Executive Assistant",20053277,"C10",8810,1.6000000000000001E-3,55877.5,82698.7,88004,"ADMINISTRATIVE SUPP"]
[{"$f":"job_titles8[[#This Row],[Extended object ID]]","v":20053278},{"$f":"job_titles8[[#This Row],[WCI]]","v":8810},"9999-12-31",{"$f":"job_titles8[[#This Row],[WCI Rate]]","v":1.6000000000000001E-3},null,"C","2019-09-30","9999-12-31",1,"Risk Safety Analyst I",20053278,"C10",8810,1.6000000000000001E-3,55877.5,82698.7,88016,"HUMAN RESOURCES"]
[{"$f":"job_titles8[[#This Row],[Extended object ID]]","v":20053279},{"$f":"job_titles8[[#This Row],[WCI]]","v":8810},"9999-12-31",{"$f":"job_titles8[[#This Row],[WCI Rate]]","v":1.6000000000000001E-3},null,"C","2019-09-30","9999-12-31",1,"Risk Safety Analyst II",20053279,"C12",8810,1.6000000000000001E-3,60437.1,90655.66,88016,"HUMAN RESOURCES"]
[{"$f":"job_titles8[[#This Row],[Extended object ID]]","v":20053280},{"$f":"job_titles8[[#This Row],[WCI]]","v":8810},"9999-12-31",{"$f":"job_titles8[[#This Row],[WCI Rate]]","v":1.6000000000000001E-3},null,"C","2019-09-30","9999-12-31",1,"Risk Safety Analyst Sr",20053280,"C14",8810,1.6000000000000001E-3,66183.97,105894.35,88016,"HUMAN RESOURCES"]
[{"$f":"job_titles8[[#This Row],[Extended object ID]]","v":20053281},{"$f":"job_titles8[[#This Row],[WCI]]","v":8810},"9999-12-31",{"$f":"job_titles8[[#This Row],[WCI Rate]]","v":1.6000000000000001E-3},null,"C","2019-09-30","9999-12-31",1,"Chief Counsel",20053281,"C24",8810,1.6000000000000001E-3,130239.35,214894.92,88014,"MANAGEMENT"]
[{"$f":"job_titles8[[#This Row],[Extended object ID]]","v":20053282},{"$f":"job_titles8[[#This Row],[WCI]]","v":8810},"9999-12-31",{"$f":"job_titles8[[#This Row],[WCI Rate]]","v":1.6000000000000001E-3},null,"C","2019-09-30","9999-12-31",1,"Law Library Director",20053282,"C16",8810,1.6000000000000001E-3,75776.03,121241.65,88014,"MANAGEMENT"]
[{"$f":"job_titles8[[#This Row],[Extended object ID]]","v":20053283},{"$f":"job_titles8[[#This Row],[WCI]]","v":8833},"9999-12-31",{"$f":"job_titles8[[#This Row],[WCI Rate]]","v":4.7999999999999996E-3},null,"C","2019-09-30","9999-12-31",1,"Autopsy Tech Chief Deputy",20053283,"C09",8833,4.7999999999999996E-3,53987.92,78282.490000000005,88003,"MEDICAL"]
[{"$f":"job_titles8[[#This Row],[Extended object ID]]","v":20053284},{"$f":"job_titles8[[#This Row],[WCI]]","v":8833},"9999-12-31",{"$f":"job_titles8[[#This Row],[WCI Rate]]","v":4.7999999999999996E-3},null,"C","2019-09-30","9999-12-31",1,"ME Deputy",20053284,"NCF01",8833,4.7999999999999996E-3,15080,500000,88003,"MEDICAL"]
[{"$f":"job_titles8[[#This Row],[Extended object ID]]","v":20053285},{"$f":"job_titles8[[#This Row],[WCI]]","v":7720},"9999-12-31",{"$f":"job_titles8[[#This Row],[WCI Rate]]","v":1.55E-2},null,"C","2019-09-30","9999-12-31",1,"Corrections Maintenance Worker",20053285,"C07",7720,1.55E-2,50398.3,68037.710000000006,88001,"MAINTENANCE"]
[{"$f":"job_titles8[[#This Row],[Extended object ID]]","v":20053286},{"$f":"job_titles8[[#This Row],[WCI]]","v":8810},"9999-12-31",{"$f":"job_titles8[[#This Row],[WCI Rate]]","v":1.6000000000000001E-3},null,"C","2019-09-30","9999-12-31",1,"Multimedia Information Specialist",20053286,"C09",8810,1.6000000000000001E-3,53987.92,78282.490000000005,88012,"PUBLIC SAF/EMG MGMT",null,"66135.205000000002"]
[{"$f":"job_titles8[[#This Row],[Extended object ID]]","v":20053287},{"$f":"job_titles8[[#This Row],[WCI]]","v":7720},"9999-12-31",{"$f":"job_titles8[[#This Row],[WCI Rate]]","v":1.55E-2},null,"C","2019-09-30","9999-12-31",1,"Crime Analyst",20053287,"C10",7720,1.55E-2,55877.5,82698.7,88012,"PUBLIC SAF/EMG MGMT",null,"69288.100000000006"]
[{"$f":"job_titles8[[#This Row],[Extended object ID]]","v":20053288},{"$f":"job_titles8[[#This Row],[WCI]]","v":7720},"9999-12-31",{"$f":"job_titles8[[#This Row],[WCI Rate]]","v":1.55E-2},null,"C","2019-09-30","9999-12-31",1,"Crime Analyst Sr",20053288,"C12",7720,1.55E-2,60437.1,90655.66,88012,"PUBLIC SAF/EMG MGMT"]
[{"$f":"job_titles8[[#This Row],[Extended object ID]]","v":20053289},{"$f":"job_titles8[[#This Row],[WCI]]","v":8810},"9999-12-31",{"$f":"job_titles8[[#This Row],[WCI Rate]]","v":1.6000000000000001E-3},null,"C","2019-09-30","9999-12-31",1,"Director of Policy and Analytics",20053289,"C18",8810,1.6000000000000001E-3,86761.41,138818.25,88014,"MANAGEMENT"]
[{"$f":"job_titles8[[#This Row],[Extended object ID]]","v":20053290},{"$f":"job_titles8[[#This Row],[WCI]]","v":9102},"9999-12-31",{"$f":"job_titles8[[#This Row],[WCI Rate]]","v":2.0799999999999999E-2},null,"C","2019-09-30","9999-12-31",1,"Park Land Management Technician",20053290,"C06",9102,2.0799999999999999E-2,48694.01,65736.92,88015,"PROFESSIONAL SUPP"]
[{"$f":"job_titles8[[#This Row],[Extended object ID]]","v":20053291},{"$f":"job_titles8[[#This Row],[WCI]]","v":9102},"9999-12-31",{"$f":"job_titles8[[#This Row],[WCI Rate]]","v":2.0799999999999999E-2},null,"C","2019-09-30","9999-12-31",1,"Park Land Management Supervisor",20053291,"C12",9102,2.0799999999999999E-2,60437.1,90655.66,88015,"PROFESSIONAL SUPP"]
[{"$f":"job_titles8[[#This Row],[Extended object ID]]","v":20053292},{"$f":"job_titles8[[#This Row],[WCI]]","v":8810},"9999-12-31",{"$f":"job_titles8[[#This Row],[WCI Rate]]","v":1.6000000000000001E-3},null,"C","2019-09-30","9999-12-31",1,"Development Services Division Manager",20053292,"C16",8810,1.6000000000000001E-3,75776.03,121241.65,88014,"MANAGEMENT"]
[{"$f":"job_titles8[[#This Row],[Extended object ID]]","v":20053293},{"$f":"job_titles8[[#This Row],[WCI]]","v":8810},"9999-12-31",{"$f":"job_titles8[[#This Row],[WCI Rate]]","v":1.6000000000000001E-3},null,"C","2019-09-30","9999-12-31",1,"Veterans Services Specialist",20053293,"C06",8810,1.6000000000000001E-3,48694.01,65736.92,88015,"PROFESSIONAL SUPP"]
[{"$f":"job_titles8[[#This Row],[Extended object ID]]","v":20053301},{"$f":"job_titles8[[#This Row],[WCI]]","v":8810},"9999-12-31",{"$f":"job_titles8[[#This Row],[WCI Rate]]","v":1.6000000000000001E-3},null,"C","2019-08-13","9999-12-31",1,"Applications Mgr Succession",20053301,"GRD30",8810,1.6000000000000001E-3,95524.21,152838.82,88021,"INFORMATION TECH"]
[{"$f":"job_titles8[[#This Row],[Extended object ID]]","v":20053302},{"$f":"job_titles8[[#This Row],[WCI]]","v":8810},"9999-12-31",{"$f":"job_titles8[[#This Row],[WCI Rate]]","v":1.6000000000000001E-3},null,"C","2019-09-30","9999-12-31",1,"County Executive for Tch and Ops",20053302,"C28",8810,1.6000000000000001E-3,170717.4,281683.71999999997,88007,"COUNTY EXECUTIVES"]
[{"$f":"job_titles8[[#This Row],[Extended object ID]]","v":20053303},{"$f":"job_titles8[[#This Row],[WCI]]","v":8810},"9999-12-31",{"$f":"job_titles8[[#This Row],[WCI Rate]]","v":1.6000000000000001E-3},null,"C","2019-10-01","9999-12-31",1,"Supportive Case Manager",20053303,"C10",8810,1.6000000000000001E-3,55877.5,82698.7,88011,"SOCIAL SVCS"]
[{"$f":"job_titles8[[#This Row],[Extended object ID]]","v":20053326},{"$f":"job_titles8[[#This Row],[WCI]]","v":8810},"9999-12-31",{"$f":"job_titles8[[#This Row],[WCI Rate]]","v":1.6000000000000001E-3},null,"C","2019-09-16","9999-12-31",1,"Business Analyst III Succession",20053326,"GRD26",8810,1.6000000000000001E-3,72861.570000000007,116578.59,0,"0"]
[{"$f":"job_titles8[[#This Row],[Extended object ID]]","v":20053351},{"$f":"job_titles8[[#This Row],[WCI]]","v":8810},"9999-12-31",{"$f":"job_titles8[[#This Row],[WCI Rate]]","v":1.6000000000000001E-3},null,"C","2019-09-17","9999-12-31",1,"Senior Capital Analyst",20053351,"C18",8810,1.6000000000000001E-3,86761.41,138818.25,88005,"FINANCE"]
[{"$f":"job_titles8[[#This Row],[Extended object ID]]","v":20053352},{"$f":"job_titles8[[#This Row],[WCI]]","v":0},"9999-12-31",{"$f":"job_titles8[[#This Row],[WCI Rate]]","v":0},null,"C","2019-09-03","9999-12-31",5,"County Executive for Tch and Ops",20053352,null,null,null,null,null,0,"0"]
[{"$f":"job_titles8[[#This Row],[Extended object ID]]","v":20053376},{"$f":"job_titles8[[#This Row],[WCI]]","v":9999},"9999-12-31",{"$f":"job_titles8[[#This Row],[WCI Rate]]","v":0},null,"C","2019-09-18","9999-12-31",1,"CSCD Training Specialist Sr - PO",20053376,"CSCD22",9999,0,55578.85,62254.400000000001,88016,"HUMAN RESOURCES"]
[{"$f":"job_titles8[[#This Row],[Extended object ID]]","v":20053377},{"$f":"job_titles8[[#This Row],[WCI]]","v":8810},"9999-12-31",{"$f":"job_titles8[[#This Row],[WCI Rate]]","v":1.6000000000000001E-3},null,"C","2019-09-25","9999-12-31",1,"Div Chief Clinical Performance & Edu",20053377,"C19",8810,1.6000000000000001E-3,92836.33,148538.12,88012,"PUBLIC SAF/EMG MGMT"]
[{"$f":"job_titles8[[#This Row],[Extended object ID]]","v":20053378},{"$f":"job_titles8[[#This Row],[WCI]]","v":7422},"9999-12-31",{"$f":"job_titles8[[#This Row],[WCI Rate]]","v":1.3299999999999999E-2},null,"C","2019-09-25","9999-12-31",1,"Asst Chief Pilot",20053378,"C19",7422,1.3299999999999999E-2,92836.33,148538.12,88012,"PUBLIC SAF/EMG MGMT"]
[{"$f":"job_titles8[[#This Row],[Extended object ID]]","v":20053401},{"$f":"job_titles8[[#This Row],[WCI]]","v":5506},"9999-12-31",{"$f":"job_titles8[[#This Row],[WCI Rate]]","v":4.3700000000000003E-2},null,"C","2019-10-01","9999-12-31",1,"Road Maintenance Worker Lead",20053401,"C07",5506,4.3700000000000003E-2,50398.3,68037.710000000006,88001,"MAINTENANCE"]
[{"$f":"job_titles8[[#This Row],[Extended object ID]]","v":20053402},{"$f":"job_titles8[[#This Row],[WCI]]","v":5506},"9999-12-31",{"$f":"job_titles8[[#This Row],[WCI Rate]]","v":4.3700000000000003E-2},null,"C","2019-10-01","9999-12-31",1,"Equipment Operator Foreman",20053402,"C11",5506,4.3700000000000003E-2,58112.6,87168.9,88002,"SKILLED TRADES"]
[{"$f":"job_titles8[[#This Row],[Extended object ID]]","v":20053403},{"$f":"job_titles8[[#This Row],[WCI]]","v":7422},"9999-12-31",{"$f":"job_titles8[[#This Row],[WCI Rate]]","v":1.3299999999999999E-2},null,"C","2019-10-03","9999-12-31",1,"Aircraft Maintenance Dir Succession",20053403,"GRD27",7422,1.3299999999999999E-2,77956.53,124730.53,88012,"PUBLIC SAF/EMG MGMT"]
[{"$f":"job_titles8[[#This Row],[Extended object ID]]","v":20053426},{"$f":"job_titles8[[#This Row],[WCI]]","v":7720},"9999-12-31",{"$f":"job_titles8[[#This Row],[WCI Rate]]","v":1.55E-2},null,"C","2019-10-01","9999-12-31",1,"Crime Scene Specialist Lead",20053426,"C11",7720,1.55E-2,58112.6,87168.9,88012,"PUBLIC SAF/EMG MGMT"]
[{"$f":"job_titles8[[#This Row],[Extended object ID]]","v":20053427},{"$f":"job_titles8[[#This Row],[WCI]]","v":9102},"9999-12-31",{"$f":"job_titles8[[#This Row],[WCI Rate]]","v":2.0799999999999999E-2},null,"C","2019-11-19","9999-12-31",1,"Parks Manager",20053427,"C13",9102,2.0799999999999999E-2,62854.59,100567.34,88014,"MANAGEMENT"]
[{"$f":"job_titles8[[#This Row],[Extended object ID]]","v":20053428},{"$f":"job_titles8[[#This Row],[WCI]]","v":0},"9999-12-31",{"$f":"job_titles8[[#This Row],[WCI Rate]]","v":0},null,"C","2019-10-17","9999-12-31",1,"Executive Asst Succession",20053428,null,null,null,null,null,0,"0"]
[{"$f":"job_titles8[[#This Row],[Extended object ID]]","v":20053451},{"$f":"job_titles8[[#This Row],[WCI]]","v":8810},"9999-12-31",{"$f":"job_titles8[[#This Row],[WCI Rate]]","v":1.6000000000000001E-3},null,"C","2019-10-15","9999-12-31",1,"Chief Public Defender",20053451,"C26",8810,1.6000000000000001E-3,149111.1,246033.32,88014,"MANAGEMENT"]
[{"$f":"job_titles8[[#This Row],[Extended object ID]]","v":20053452},{"$f":"job_titles8[[#This Row],[WCI]]","v":8810},"9999-12-31",{"$f":"job_titles8[[#This Row],[WCI Rate]]","v":1.6000000000000001E-3},null,"C","2019-10-15","9999-12-31",1,"Information Technology Director",20053452,"C24",8810,1.6000000000000001E-3,130239.35,214894.92,88021,"INFORMATION TECH"]
[{"$f":"job_titles8[[#This Row],[Extended object ID]]","v":20053476},{"$f":"job_titles8[[#This Row],[WCI]]","v":8810},"9999-12-31",{"$f":"job_titles8[[#This Row],[WCI Rate]]","v":1.6000000000000001E-3},null,"C","2019-10-29","9999-12-31",1,"ME Chief Operations Officer",20053476,"C21",8810,1.6000000000000001E-3,106310.9,175412.99,88014,"MANAGEMENT"]
[{"$f":"job_titles8[[#This Row],[Extended object ID]]","v":20053477},{"$f":"job_titles8[[#This Row],[WCI]]","v":8810},"9999-12-31",{"$f":"job_titles8[[#This Row],[WCI Rate]]","v":1.6000000000000001E-3},null,"C","2019-11-01","9999-12-31",1,"Pur Project Manager II",20053477,"C19",8810,1.6000000000000001E-3,92836.33,148538.12,88027,"PUR PURCHASING"]
[{"$f":"job_titles8[[#This Row],[Extended object ID]]","v":20053479},{"$f":"job_titles8[[#This Row],[WCI]]","v":8810},"9999-12-31",{"$f":"job_titles8[[#This Row],[WCI Rate]]","v":1.6000000000000001E-3},null,"C","2019-11-01","9999-12-31",1,"Pur Community Liaison",20053479,"C11",8810,1.6000000000000001E-3,58112.6,87168.9,88027,"PUR PURCHASING"]
[{"$f":"job_titles8[[#This Row],[Extended object ID]]","v":20053480},{"$f":"job_titles8[[#This Row],[WCI]]","v":8810},"9999-12-31",{"$f":"job_titles8[[#This Row],[WCI Rate]]","v":1.6000000000000001E-3},null,"C","2019-11-01","9999-12-31",1,"Pur Operations Specialist I",20053480,"C09",8810,1.6000000000000001E-3,53987.92,78282.490000000005,88027,"PUR PURCHASING"]
[{"$f":"job_titles8[[#This Row],[Extended object ID]]","v":20053481},{"$f":"job_titles8[[#This Row],[WCI]]","v":8810},"9999-12-31",{"$f":"job_titles8[[#This Row],[WCI Rate]]","v":1.6000000000000001E-3},null,"C","2019-11-01","9999-12-31",1,"Pur Procurement Specialist I",20053481,"C10",8810,1.6000000000000001E-3,55877.5,82698.7,88027,"PUR PURCHASING"]
[{"$f":"job_titles8[[#This Row],[Extended object ID]]","v":20053482},{"$f":"job_titles8[[#This Row],[WCI]]","v":8810},"9999-12-31",{"$f":"job_titles8[[#This Row],[WCI Rate]]","v":1.6000000000000001E-3},null,"C","2019-11-01","9999-12-31",1,"Pur Procurement Specialist II",20053482,"C13",8810,1.6000000000000001E-3,62854.59,100567.34,88027,"PUR PURCHASING"]
[{"$f":"job_titles8[[#This Row],[Extended object ID]]","v":20053483},{"$f":"job_titles8[[#This Row],[WCI]]","v":8810},"9999-12-31",{"$f":"job_titles8[[#This Row],[WCI Rate]]","v":1.6000000000000001E-3},null,"C","2019-11-01","9999-12-31",1,"Pur Procurement Specialist III",20053483,"C16",8810,1.6000000000000001E-3,75776.03,121241.65,88027,"PUR PURCHASING"]
[{"$f":"job_titles8[[#This Row],[Extended object ID]]","v":20053484},{"$f":"job_titles8[[#This Row],[WCI]]","v":8810},"9999-12-31",{"$f":"job_titles8[[#This Row],[WCI Rate]]","v":1.6000000000000001E-3},null,"C","2019-11-01","9999-12-31",1,"Pur Senior Procurement Specialist",20053484,"C19",8810,1.6000000000000001E-3,92836.33,148538.12,88027,"PUR PURCHASING"]
[{"$f":"job_titles8[[#This Row],[Extended object ID]]","v":20053501},{"$f":"job_titles8[[#This Row],[WCI]]","v":8601},"9999-12-31",{"$f":"job_titles8[[#This Row],[WCI Rate]]","v":1.8E-3},null,"C","2019-11-05","9999-12-31",1,"Architectural Asst",20053501,"C10",8601,1.8E-3,55877.5,82698.7,88009,"ENGINEERING & ARCHITECTURAL"]
[{"$f":"job_titles8[[#This Row],[Extended object ID]]","v":20053526},{"$f":"job_titles8[[#This Row],[WCI]]","v":8810},"9999-12-31",{"$f":"job_titles8[[#This Row],[WCI Rate]]","v":1.6000000000000001E-3},null,"C","2019-12-10","9999-12-31",1,"JvP Dir of Accreditation & Compliance",20053526,"C19",8810,1.6000000000000001E-3,92836.33,148538.12,88014,"MANAGEMENT"]
[{"$f":"job_titles8[[#This Row],[Extended object ID]]","v":20053551},{"$f":"job_titles8[[#This Row],[WCI]]","v":8810},"9999-12-31",{"$f":"job_titles8[[#This Row],[WCI Rate]]","v":1.6000000000000001E-3},null,"C","2019-12-31","9999-12-31",1,"Video Engineer",20053551,"C13",8810,1.6000000000000001E-3,62854.59,100567.34,88019,"PUBLIC INFORMATION"]
[{"$f":"job_titles8[[#This Row],[Extended object ID]]","v":20053552},{"$f":"job_titles8[[#This Row],[WCI]]","v":8810},"9999-12-31",{"$f":"job_titles8[[#This Row],[WCI Rate]]","v":1.6000000000000001E-3},null,"C","2019-12-06","9999-12-31",1,"Financial Analyst Lead Succession",20053552,"GRD24",8810,1.6000000000000001E-3,63638.43,101821.41,88005,"FINANCE"]
[{"$f":"job_titles8[[#This Row],[Extended object ID]]","v":20053553},{"$f":"job_titles8[[#This Row],[WCI]]","v":7720},"9999-12-31",{"$f":"job_titles8[[#This Row],[WCI Rate]]","v":1.55E-2},null,"C","2019-12-31","9999-12-31",1,"Juvenile Probation Security Center Coord",20053553,"C06",7720,1.55E-2,48694.01,65736.92,88001,"MAINTENANCE"]
[{"$f":"job_titles8[[#This Row],[Extended object ID]]","v":20053576},{"$f":"job_titles8[[#This Row],[WCI]]","v":8810},"9999-12-31",{"$f":"job_titles8[[#This Row],[WCI Rate]]","v":1.6000000000000001E-3},null,"C","2020-01-14","9999-12-31",1,"Probate Auditor Sr",20053576,"C12",8810,1.6000000000000001E-3,60437.1,90655.66,88005,"FINANCE"]
[{"$f":"job_titles8[[#This Row],[Extended object ID]]","v":20053602},{"$f":"job_titles8[[#This Row],[WCI]]","v":9015},"9999-12-31",{"$f":"job_titles8[[#This Row],[WCI Rate]]","v":1.8800000000000001E-2},null,"C","2020-01-14","9999-12-31",1,"Chiller/Boiler Specialist",20053602,"C10",9015,1.8800000000000001E-2,55877.5,82698.7,88002,"SKILLED TRADES"]
[{"$f":"job_titles8[[#This Row],[Extended object ID]]","v":20053626},{"$f":"job_titles8[[#This Row],[WCI]]","v":8832},"9999-12-31",{"$f":"job_titles8[[#This Row],[WCI Rate]]","v":1.9E-3},null,"C","2020-02-25","9999-12-31",1,"Medical Assistant Sr",20053626,"C06",8832,1.9E-3,48694.01,65736.92,88003,"MEDICAL"]
[{"$f":"job_titles8[[#This Row],[Extended object ID]]","v":20053651},{"$f":"job_titles8[[#This Row],[WCI]]","v":8810},"9999-12-31",{"$f":"job_titles8[[#This Row],[WCI Rate]]","v":1.6000000000000001E-3},null,"C","2020-03-09","9999-12-31",1,"Pur Operations Project Coordinator I",20053651,"C13",8810,1.6000000000000001E-3,62854.59,100567.34,88027,"PUR PURCHASING"]
[{"$f":"job_titles8[[#This Row],[Extended object ID]]","v":20053676},{"$f":"job_titles8[[#This Row],[WCI]]","v":8810},"9999-12-31",{"$f":"job_titles8[[#This Row],[WCI Rate]]","v":1.6000000000000001E-3},null,"C","2020-03-31","9999-12-31",1,"Business Continuity Planner",20053676,"C13",8810,1.6000000000000001E-3,62854.59,100567.34,88012,"PUBLIC SAF/EMG MGMT"]
[{"$f":"job_titles8[[#This Row],[Extended object ID]]","v":20053701},{"$f":"job_titles8[[#This Row],[WCI]]","v":7422},"9999-12-31",{"$f":"job_titles8[[#This Row],[WCI Rate]]","v":1.3299999999999999E-2},null,"C","2020-04-03","9999-12-31",1,"Flight Registered Nurse Succession",20053701,"GRD25",7422,1.3299999999999999E-2,68095.87,108953.31,88003,"MEDICAL"]
[{"$f":"job_titles8[[#This Row],[Extended object ID]]","v":20053726},{"$f":"job_titles8[[#This Row],[WCI]]","v":8810},"9999-12-31",{"$f":"job_titles8[[#This Row],[WCI Rate]]","v":1.6000000000000001E-3},null,"C","2020-06-09","9999-12-31",1,"Legal Director",20053726,"C24",8810,1.6000000000000001E-3,130239.35,214894.92,88014,"MANAGEMENT"]
[{"$f":"job_titles8[[#This Row],[Extended object ID]]","v":20053727},{"$f":"job_titles8[[#This Row],[WCI]]","v":8810},"9999-12-31",{"$f":"job_titles8[[#This Row],[WCI Rate]]","v":1.6000000000000001E-3},null,"C","2020-06-09","9999-12-31",1,"Director of Holistic Practice",20053727,"C24",8810,1.6000000000000001E-3,130239.35,214894.92,88014,"MANAGEMENT"]
[{"$f":"job_titles8[[#This Row],[Extended object ID]]","v":20053728},{"$f":"job_titles8[[#This Row],[WCI]]","v":8810},"9999-12-31",{"$f":"job_titles8[[#This Row],[WCI Rate]]","v":1.6000000000000001E-3},null,"C","2020-06-09","9999-12-31",1,"Director of Trials and Training",20053728,"C24",8810,1.6000000000000001E-3,130239.35,214894.92,88014,"MANAGEMENT"]
[{"$f":"job_titles8[[#This Row],[Extended object ID]]","v":20053751},{"$f":"job_titles8[[#This Row],[WCI]]","v":8601},"9999-12-31",{"$f":"job_titles8[[#This Row],[WCI Rate]]","v":1.8E-3},null,"C","2020-06-16","9999-12-31",1,"Facilities Project Inspector",20053751,"C09",8601,1.8E-3,53987.92,78282.490000000005,88009,"ENGINEERING & ARCHITECTURAL"]
[{"$f":"job_titles8[[#This Row],[Extended object ID]]","v":20053776},{"$f":"job_titles8[[#This Row],[WCI]]","v":8810},"9999-12-31",{"$f":"job_titles8[[#This Row],[WCI Rate]]","v":1.6000000000000001E-3},null,"C","2020-08-11","9999-12-31",1,"Human Resources Mgmt Dir Succession",20053776,"GRD32",8810,1.6000000000000001E-3,109380.75,175009.12,88014,"MANAGEMENT"]
[{"$f":"job_titles8[[#This Row],[Extended object ID]]","v":20053801},{"$f":"job_titles8[[#This Row],[WCI]]","v":8810},"9999-12-31",{"$f":"job_titles8[[#This Row],[WCI Rate]]","v":1.6000000000000001E-3},null,"C","2020-08-25","9999-12-31",1,"Community Liaison Supervisor",20053801,"C11",8810,1.6000000000000001E-3,58112.6,87168.9,88014,"MANAGEMENT"]
[{"$f":"job_titles8[[#This Row],[Extended object ID]]","v":20053802},{"$f":"job_titles8[[#This Row],[WCI]]","v":8810},"9999-12-31",{"$f":"job_titles8[[#This Row],[WCI Rate]]","v":1.6000000000000001E-3},null,"C","2020-10-01","9999-12-31",1,"Aud Data Scientist",20053802,"AUD25",8810,1.6000000000000001E-3,86659,147320,88026,"AUDITOR"]
[{"$f":"job_titles8[[#This Row],[Extended object ID]]","v":20053803},{"$f":"job_titles8[[#This Row],[WCI]]","v":8810},"9999-12-31",{"$f":"job_titles8[[#This Row],[WCI Rate]]","v":1.6000000000000001E-3},null,"C","2020-10-01","9999-12-31",1,"Aud Senior Data Scientist",20053803,"AUD27",8810,1.6000000000000001E-3,101079,171834,88026,"AUDITOR"]
[{"$f":"job_titles8[[#This Row],[Extended object ID]]","v":20053804},{"$f":"job_titles8[[#This Row],[WCI]]","v":8810},"9999-12-31",{"$f":"job_titles8[[#This Row],[WCI Rate]]","v":1.6000000000000001E-3},null,"C","2020-10-01","9999-12-31",1,"Aud Lead Data Scientist",20053804,"AUD28",8810,1.6000000000000001E-3,109165,185580,88026,"AUDITOR"]
[{"$f":"job_titles8[[#This Row],[Extended object ID]]","v":20053826},{"$f":"job_titles8[[#This Row],[WCI]]","v":7422},"9999-12-31",{"$f":"job_titles8[[#This Row],[WCI Rate]]","v":1.3299999999999999E-2},null,"C","2020-09-08","9999-12-31",1,"STAR Flight Outreach Coordinator",20053826,"C14",7422,1.3299999999999999E-2,66183.97,105894.35,88012,"PUBLIC SAF/EMG MGMT"]
[{"$f":"job_titles8[[#This Row],[Extended object ID]]","v":20053827},{"$f":"job_titles8[[#This Row],[WCI]]","v":8810},"9999-12-31",{"$f":"job_titles8[[#This Row],[WCI Rate]]","v":1.6000000000000001E-3},null,"C","2020-09-15","9999-12-31",1,"Records Management Officer",20053827,"C17",8810,1.6000000000000001E-3,81074.789999999994,129719.67,88014,"MANAGEMENT"]
[{"$f":"job_titles8[[#This Row],[Extended object ID]]","v":20053851},{"$f":"job_titles8[[#This Row],[WCI]]","v":8810},"9999-12-31",{"$f":"job_titles8[[#This Row],[WCI Rate]]","v":1.6000000000000001E-3},null,"C","1950-01-01","9999-12-31",1,"Aud County Auditor Chief Asst II Sn",20053851,"AUD31",8810,1.6000000000000001E-3,145298,247007,88026,"AUDITOR"]
[{"$f":"job_titles8[[#This Row],[Extended object ID]]","v":20053876},{"$f":"job_titles8[[#This Row],[WCI]]","v":8810},"9999-12-31",{"$f":"job_titles8[[#This Row],[WCI Rate]]","v":1.6000000000000001E-3},null,"C","2020-10-01","9999-12-31",1,"Pur Operations Program Coordinator",20053876,"C15",8810,1.6000000000000001E-3,70819.7,113311.53,88027,"PUR PURCHASING"]
[{"$f":"job_titles8[[#This Row],[Extended object ID]]","v":20053901},{"$f":"job_titles8[[#This Row],[WCI]]","v":8810},"9999-12-31",{"$f":"job_titles8[[#This Row],[WCI Rate]]","v":1.6000000000000001E-3},null,"C","2020-10-13","9999-12-31",1,"Administrative Investigator",20053901,"C11",8810,1.6000000000000001E-3,58112.6,87168.9,88013,"COURT SERVICES"]
[{"$f":"job_titles8[[#This Row],[Extended object ID]]","v":20053926},{"$f":"job_titles8[[#This Row],[WCI]]","v":0},"9999-12-31",{"$f":"job_titles8[[#This Row],[WCI Rate]]","v":0},null,"C","2020-10-01","9999-12-31",5,"Audit business Long",20053926,"AUD26",null,null,93592,159105,88026,"AUDITOR"]
[{"$f":"job_titles8[[#This Row],[Extended object ID]]","v":20053951},{"$f":"job_titles8[[#This Row],[WCI]]","v":8810},"9999-12-31",{"$f":"job_titles8[[#This Row],[WCI Rate]]","v":1.6000000000000001E-3},null,"C","2020-12-15","9999-12-31",1,"Pur Operations Specialist II",20053951,"C12",8810,1.6000000000000001E-3,60437.1,90655.66,88027,"PUR PURCHASING"]
[{"$f":"job_titles8[[#This Row],[Extended object ID]]","v":20053952},{"$f":"job_titles8[[#This Row],[WCI]]","v":8810},"9999-12-31",{"$f":"job_titles8[[#This Row],[WCI Rate]]","v":1.6000000000000001E-3},null,"C","2020-12-15","9999-12-31",1,"Pur Operations Project Coordinator II",20053952,"C15",8810,1.6000000000000001E-3,70819.7,113311.53,88027,"PUR PURCHASING"]
[{"$f":"job_titles8[[#This Row],[Extended object ID]]","v":20053976},{"$f":"job_titles8[[#This Row],[WCI]]","v":8810},"9999-12-31",{"$f":"job_titles8[[#This Row],[WCI Rate]]","v":1.6000000000000001E-3},null,"C","2021-01-12","9999-12-31",1,"Virtual Training Coordinator",20053976,"C10",8810,1.6000000000000001E-3,55877.5,82698.7,88017,"EDUCATION & TRAINING"]
[{"$f":"job_titles8[[#This Row],[Extended object ID]]","v":20054001},{"$f":"job_titles8[[#This Row],[WCI]]","v":0},"9999-12-31",{"$f":"job_titles8[[#This Row],[WCI Rate]]","v":0},null,"C","2021-01-12","9999-12-31",5,"Court Clerk I",20054001,null,null,null,null,null,0,"0"]
[{"$f":"job_titles8[[#This Row],[Extended object ID]]","v":20054026},{"$f":"job_titles8[[#This Row],[WCI]]","v":8810},"9999-12-31",{"$f":"job_titles8[[#This Row],[WCI Rate]]","v":1.6000000000000001E-3},null,"C","2021-01-26","9999-12-31",1,"Human Resources Mgr II Succession",20054026,"GRD27",8810,1.6000000000000001E-3,77956.53,124730.53,88016,"HUMAN RESOURCES"]
[{"$f":"job_titles8[[#This Row],[Extended object ID]]","v":20054051},{"$f":"job_titles8[[#This Row],[WCI]]","v":8810},"9999-12-31",{"$f":"job_titles8[[#This Row],[WCI Rate]]","v":1.6000000000000001E-3},null,"C","2021-02-09","9999-12-31",1,"Constable Communications Specialist Sr",20054051,"C08",8810,1.6000000000000001E-3,52162.239999999998,75635.25,88012,"PUBLIC SAF/EMG MGMT"]
[{"$f":"job_titles8[[#This Row],[Extended object ID]]","v":20054052},{"$f":"job_titles8[[#This Row],[WCI]]","v":7422},"9999-12-31",{"$f":"job_titles8[[#This Row],[WCI Rate]]","v":1.3299999999999999E-2},null,"C","2021-02-09","9999-12-31",1,"Clinic Supv Chief Succession",20054052,"GRD27",7422,1.3299999999999999E-2,77956.53,124730.53,88012,"PUBLIC SAF/EMG MGMT"]
[{"$f":"job_titles8[[#This Row],[Extended object ID]]","v":20054076},{"$f":"job_titles8[[#This Row],[WCI]]","v":8810},"9999-12-31",{"$f":"job_titles8[[#This Row],[WCI Rate]]","v":1.6000000000000001E-3},null,"C","2021-04-13","9999-12-31",1,"Aud Business Consultant II Succession",20054076,"AUD28",8810,1.6000000000000001E-3,109165,185580,88026,"AUDITOR"]
[{"$f":"job_titles8[[#This Row],[Extended object ID]]","v":20054101},{"$f":"job_titles8[[#This Row],[WCI]]","v":8810},"9999-12-31",{"$f":"job_titles8[[#This Row],[WCI Rate]]","v":1.6000000000000001E-3},null,"C","2021-05-11","9999-12-31",1,"Training Supervisor",20054101,"C14",8810,1.6000000000000001E-3,66183.97,105894.35,88016,"HUMAN RESOURCES"]
[{"$f":"job_titles8[[#This Row],[Extended object ID]]","v":20054102},{"$f":"job_titles8[[#This Row],[WCI]]","v":7720},"9999-12-31",{"$f":"job_titles8[[#This Row],[WCI Rate]]","v":1.55E-2},null,"C","2021-05-11","9999-12-31",1,"Building Security Guard Sr",20054102,"C05",7720,1.55E-2,47275.74,61458.46,88001,"MAINTENANCE"]
[{"$f":"job_titles8[[#This Row],[Extended object ID]]","v":20054103},{"$f":"job_titles8[[#This Row],[WCI]]","v":8810},"9999-12-31",{"$f":"job_titles8[[#This Row],[WCI Rate]]","v":1.6000000000000001E-3},null,"C","2021-05-11","9999-12-31",1,"Work Order Coordinator",20054103,"C06",8810,1.6000000000000001E-3,48694.01,65736.92,88001,"MAINTENANCE"]
[{"$f":"job_titles8[[#This Row],[Extended object ID]]","v":20054104},{"$f":"job_titles8[[#This Row],[WCI]]","v":8810},"9999-12-31",{"$f":"job_titles8[[#This Row],[WCI Rate]]","v":1.6000000000000001E-3},null,"C","2021-05-18","9999-12-31",1,"Building Automation System Specialist",20054104,"C10",8810,1.6000000000000001E-3,55877.5,82698.7,88002,"SKILLED TRADES"]
[{"$f":"job_titles8[[#This Row],[Extended object ID]]","v":20054126},{"$f":"job_titles8[[#This Row],[WCI]]","v":7720},"9999-12-31",{"$f":"job_titles8[[#This Row],[WCI Rate]]","v":1.55E-2},null,"C","2021-06-08","9999-12-31",1,"Investigations & Morgue Operations Chief",20054126,"C17",7720,1.55E-2,81074.789999999994,129719.67,88012,"PUBLIC SAF/EMG MGMT"]
[{"$f":"job_titles8[[#This Row],[Extended object ID]]","v":20054127},{"$f":"job_titles8[[#This Row],[WCI]]","v":8810},"9999-12-31",{"$f":"job_titles8[[#This Row],[WCI Rate]]","v":1.6000000000000001E-3},null,"C","2021-06-08","9999-12-31",1,"Planning & Budget Ld Operational Analyst",20054127,"C18",8810,1.6000000000000001E-3,86761.41,138818.25,88005,"FINANCE"]
[{"$f":"job_titles8[[#This Row],[Extended object ID]]","v":20054151},{"$f":"job_titles8[[#This Row],[WCI]]","v":0},"9999-12-31",{"$f":"job_titles8[[#This Row],[WCI Rate]]","v":0},null,"C","2021-06-15","9999-12-31",2,"Executive Asst-Elected OfficialSn",20054151,"GRD22",null,null,55578.85,83368.27,0,"0"]
[{"$f":"job_titles8[[#This Row],[Extended object ID]]","v":20054152},{"$f":"job_titles8[[#This Row],[WCI]]","v":8810},"9999-12-31",{"$f":"job_titles8[[#This Row],[WCI Rate]]","v":1.6000000000000001E-3},null,"C","2021-06-15","9999-12-31",1,"Executive Asst-Elected OfficialSn",20054152,"GRD22",8810,1.6000000000000001E-3,55578.85,83368.27,88004,"ADMINISTRATIVE SUPP"]
[{"$f":"job_titles8[[#This Row],[Extended object ID]]","v":20054153},{"$f":"job_titles8[[#This Row],[WCI]]","v":8810},"9999-12-31",{"$f":"job_titles8[[#This Row],[WCI Rate]]","v":1.6000000000000001E-3},null,"C","2021-06-22","9999-12-31",1,"Building Energy Manager",20054153,"C14",8810,1.6000000000000001E-3,66183.97,105894.35,88002,"SKILLED TRADES"]
[{"$f":"job_titles8[[#This Row],[Extended object ID]]","v":20054176},{"$f":"job_titles8[[#This Row],[WCI]]","v":8810},"9999-12-31",{"$f":"job_titles8[[#This Row],[WCI Rate]]","v":1.6000000000000001E-3},null,"C","2021-07-20","9999-12-31",1,"Diversity, Equity, and Inclusion Officer",20054176,"C18",8810,1.6000000000000001E-3,86761.41,138818.25,88014,"MANAGEMENT"]
[{"$f":"job_titles8[[#This Row],[Extended object ID]]","v":20054177},{"$f":"job_titles8[[#This Row],[WCI]]","v":8810},"9999-12-31",{"$f":"job_titles8[[#This Row],[WCI Rate]]","v":1.6000000000000001E-3},null,"C","2021-07-20","9999-12-31",1,"Community Engagement Specialist",20054177,"C11",8810,1.6000000000000001E-3,58112.6,87168.9,88015,"PROFESSIONAL SUPP"]
[{"$f":"job_titles8[[#This Row],[Extended object ID]]","v":20054201},{"$f":"job_titles8[[#This Row],[WCI]]","v":8810},"9999-12-31",{"$f":"job_titles8[[#This Row],[WCI Rate]]","v":1.6000000000000001E-3},null,"C","2021-08-17","9999-12-31",1,"Compliance and Privacy Analyst I",20054201,"C13",8810,1.6000000000000001E-3,62854.59,100567.34,88015,"PROFESSIONAL SUPP"]
[{"$f":"job_titles8[[#This Row],[Extended object ID]]","v":20054202},{"$f":"job_titles8[[#This Row],[WCI]]","v":8810},"9999-12-31",{"$f":"job_titles8[[#This Row],[WCI Rate]]","v":1.6000000000000001E-3},null,"C","2021-08-17","9999-12-31",1,"Compliance and Privacy Analyst Sr",20054202,"C16",8810,1.6000000000000001E-3,75776.03,121241.65,88015,"PROFESSIONAL SUPP"]
[{"$f":"job_titles8[[#This Row],[Extended object ID]]","v":20054226},{"$f":"job_titles8[[#This Row],[WCI]]","v":8810},"9999-12-31",{"$f":"job_titles8[[#This Row],[WCI Rate]]","v":1.6000000000000001E-3},null,"C","2021-08-24","9999-12-31",1,"Chief Deputy Emergency Services",20054226,"C22",8810,1.6000000000000001E-3,113755.98,187697.37,88012,"PUBLIC SAF/EMG MGMT"]
[{"$f":"job_titles8[[#This Row],[Extended object ID]]","v":20054251},{"$f":"job_titles8[[#This Row],[WCI]]","v":8832},"9999-12-31",{"$f":"job_titles8[[#This Row],[WCI Rate]]","v":1.9E-3},null,"C","2021-09-14","9999-12-31",1,"X-Ray Technician",20054251,"C10",8832,1.9E-3,55877.5,82698.7,88003,"MEDICAL"]
[{"$f":"job_titles8[[#This Row],[Extended object ID]]","v":20054276},{"$f":"job_titles8[[#This Row],[WCI]]","v":8810},"9999-12-31",{"$f":"job_titles8[[#This Row],[WCI Rate]]","v":1.6000000000000001E-3},null,"C","2021-09-21","9999-12-31",1,"PkDivAsstDirPbcSftRsrcProtctn",20054276,"C18",8810,1.6000000000000001E-3,86761.41,138818.25,88014,"MANAGEMENT"]
[{"$f":"job_titles8[[#This Row],[Extended object ID]]","v":20054277},{"$f":"job_titles8[[#This Row],[WCI]]","v":7720},"9999-12-31",{"$f":"job_titles8[[#This Row],[WCI Rate]]","v":1.55E-2},null,"C","2021-09-21","9999-12-31",1,"Park Ranger Investigator",20054277,"GRD65",7720,1.55E-2,79983.070000000007,79983.070000000007,88025,"POPS NON-TCSO"]
[{"$f":"job_titles8[[#This Row],[Extended object ID]]","v":20054278},{"$f":"job_titles8[[#This Row],[WCI]]","v":8810},"9999-12-31",{"$f":"job_titles8[[#This Row],[WCI Rate]]","v":1.6000000000000001E-3},null,"C","2021-09-23","9999-12-31",1,"CSCD Social Worker",20054278,"CSCD21",8810,1.6000000000000001E-3,51934.48,58156.800000000003,88011,"SOCIAL SVCS"]
[{"$f":"job_titles8[[#This Row],[Extended object ID]]","v":20054301},{"$f":"job_titles8[[#This Row],[WCI]]","v":0},"9999-12-31",{"$f":"job_titles8[[#This Row],[WCI Rate]]","v":0},null,"C","2021-10-04","9999-12-31",5,"Financial Mgr Succession",20054301,"GRD27",null,null,77956.53,124730.53,0,"0"]
[{"$f":"job_titles8[[#This Row],[Extended object ID]]","v":20054326},{"$f":"job_titles8[[#This Row],[WCI]]","v":0},"9999-12-31",{"$f":"job_titles8[[#This Row],[WCI Rate]]","v":0},null,"C","2021-09-21","9999-12-31",2,"Financial Mgr Succession",20054326,"GRD27",null,null,77956.53,124730.53,0,"0"]
[{"$f":"job_titles8[[#This Row],[Extended object ID]]","v":20054327},{"$f":"job_titles8[[#This Row],[WCI]]","v":8810},"9999-12-31",{"$f":"job_titles8[[#This Row],[WCI Rate]]","v":1.6000000000000001E-3},null,"C","2021-09-21","9999-12-31",1,"Financial Mgr Succession",20054327,"GRD27",8810,1.6000000000000001E-3,77956.53,124730.53,88005,"FINANCE"]
[{"$f":"job_titles8[[#This Row],[Extended object ID]]","v":20054351},{"$f":"job_titles8[[#This Row],[WCI]]","v":8810},"9999-12-31",{"$f":"job_titles8[[#This Row],[WCI Rate]]","v":1.6000000000000001E-3},null,"C","2021-09-28","9999-12-31",1,"Tax Specialist IV",20054351,"C09",8810,1.6000000000000001E-3,53987.92,78282.490000000005,88004,"ADMINISTRATIVE SUPP"]
[{"$f":"job_titles8[[#This Row],[Extended object ID]]","v":20054352},{"$f":"job_titles8[[#This Row],[WCI]]","v":8810},"9999-12-31",{"$f":"job_titles8[[#This Row],[WCI Rate]]","v":1.6000000000000001E-3},null,"C","2021-09-01","9999-12-31",1,"Division Manager",20054352,"C14",8810,1.6000000000000001E-3,66183.97,105894.35,88014,"MANAGEMENT"]
[{"$f":"job_titles8[[#This Row],[Extended object ID]]","v":20054376},{"$f":"job_titles8[[#This Row],[WCI]]","v":8810},"9999-12-31",{"$f":"job_titles8[[#This Row],[WCI Rate]]","v":1.6000000000000001E-3},null,"C","2021-10-02","9999-12-31",1,"Program Generalist Sr",20054376,"C12",8810,1.6000000000000001E-3,60437.1,90655.66,88016,"HUMAN RESOURCES"]
[{"$f":"job_titles8[[#This Row],[Extended object ID]]","v":20054377},{"$f":"job_titles8[[#This Row],[WCI]]","v":8810},"9999-12-31",{"$f":"job_titles8[[#This Row],[WCI Rate]]","v":1.6000000000000001E-3},null,"C","2021-10-02","9999-12-31",1,"Asst HR Dir Tal Plan Engage",20054377,"C21",8810,1.6000000000000001E-3,106310.9,175412.99,88014,"MANAGEMENT"]
[{"$f":"job_titles8[[#This Row],[Extended object ID]]","v":20054378},{"$f":"job_titles8[[#This Row],[WCI]]","v":8810},"9999-12-31",{"$f":"job_titles8[[#This Row],[WCI Rate]]","v":1.6000000000000001E-3},null,"C","2021-10-02","9999-12-31",1,"Assistant HR Director, Total Rewards",20054378,"C21",8810,1.6000000000000001E-3,106310.9,175412.99,88014,"MANAGEMENT"]
[{"$f":"job_titles8[[#This Row],[Extended object ID]]","v":20054401},{"$f":"job_titles8[[#This Row],[WCI]]","v":8810},"9999-12-31",{"$f":"job_titles8[[#This Row],[WCI Rate]]","v":1.6000000000000001E-3},null,"C","2021-10-02","9999-12-31",1,"Human Resources Finance and Adm Mgr",20054401,"C17",8810,1.6000000000000001E-3,81074.789999999994,129719.67,88016,"HUMAN RESOURCES"]
[{"$f":"job_titles8[[#This Row],[Extended object ID]]","v":20054402},{"$f":"job_titles8[[#This Row],[WCI]]","v":8810},"9999-12-31",{"$f":"job_titles8[[#This Row],[WCI Rate]]","v":1.6000000000000001E-3},null,"C","2021-10-02","9999-12-31",1,"Talent Planning & Engagement Manager",20054402,"C19",8810,1.6000000000000001E-3,92836.33,148538.12,88016,"HUMAN RESOURCES"]
[{"$f":"job_titles8[[#This Row],[Extended object ID]]","v":20054403},{"$f":"job_titles8[[#This Row],[WCI]]","v":8810},"9999-12-31",{"$f":"job_titles8[[#This Row],[WCI Rate]]","v":1.6000000000000001E-3},null,"C","2021-10-02","9999-12-31",1,"Senior Recruiter",20054403,"C14",8810,1.6000000000000001E-3,66183.97,105894.35,88016,"HUMAN RESOURCES"]
[{"$f":"job_titles8[[#This Row],[Extended object ID]]","v":20054404},{"$f":"job_titles8[[#This Row],[WCI]]","v":8810},"9999-12-31",{"$f":"job_titles8[[#This Row],[WCI Rate]]","v":1.6000000000000001E-3},null,"C","2021-10-02","9999-12-31",1,"Employee Relations Partner II",20054404,"C12",8810,1.6000000000000001E-3,60437.1,90655.66,88016,"HUMAN RESOURCES"]
[{"$f":"job_titles8[[#This Row],[Extended object ID]]","v":20054426},{"$f":"job_titles8[[#This Row],[WCI]]","v":8810},"9999-12-31",{"$f":"job_titles8[[#This Row],[WCI Rate]]","v":1.6000000000000001E-3},null,"C","2021-10-02","9999-12-31",1,"Compensation Manager",20054426,"C18",8810,1.6000000000000001E-3,86761.41,138818.25,88016,"HUMAN RESOURCES"]
[{"$f":"job_titles8[[#This Row],[Extended object ID]]","v":20054427},{"$f":"job_titles8[[#This Row],[WCI]]","v":8810},"9999-12-31",{"$f":"job_titles8[[#This Row],[WCI Rate]]","v":1.6000000000000001E-3},null,"C","2021-10-02","9999-12-31",1,"Compensation Analyst Sr",20054427,"C15",8810,1.6000000000000001E-3,70819.7,113311.53,88016,"HUMAN RESOURCES"]
[{"$f":"job_titles8[[#This Row],[Extended object ID]]","v":20054451},{"$f":"job_titles8[[#This Row],[WCI]]","v":8832},"9999-12-31",{"$f":"job_titles8[[#This Row],[WCI Rate]]","v":1.9E-3},null,"C","2021-10-02","9999-12-31",1,"Clinic Operations Officer",20054451,"C16",8832,1.9E-3,75776.03,121241.65,88014,"MANAGEMENT"]
[{"$f":"job_titles8[[#This Row],[Extended object ID]]","v":20054452},{"$f":"job_titles8[[#This Row],[WCI]]","v":8810},"9999-12-31",{"$f":"job_titles8[[#This Row],[WCI Rate]]","v":1.6000000000000001E-3},null,"C","2021-10-02","9999-12-31",1,"Compensation Analyst I",20054452,"C10",8810,1.6000000000000001E-3,55877.5,82698.7,88016,"HUMAN RESOURCES"]
[{"$f":"job_titles8[[#This Row],[Extended object ID]]","v":20054453},{"$f":"job_titles8[[#This Row],[WCI]]","v":8810},"9999-12-31",{"$f":"job_titles8[[#This Row],[WCI Rate]]","v":1.6000000000000001E-3},null,"C","2021-10-02","9999-12-31",1,"HRIS Analyst",20054453,"C10",8810,1.6000000000000001E-3,55877.5,82698.7,88016,"HUMAN RESOURCES"]
[{"$f":"job_titles8[[#This Row],[Extended object ID]]","v":20054454},{"$f":"job_titles8[[#This Row],[WCI]]","v":8810},"9999-12-31",{"$f":"job_titles8[[#This Row],[WCI Rate]]","v":1.6000000000000001E-3},null,"C","2021-10-02","9999-12-31",1,"Compensation Analyst II",20054454,"C12",8810,1.6000000000000001E-3,60437.1,90655.66,88016,"HUMAN RESOURCES"]
[{"$f":"job_titles8[[#This Row],[Extended object ID]]","v":20054455},{"$f":"job_titles8[[#This Row],[WCI]]","v":8810},"9999-12-31",{"$f":"job_titles8[[#This Row],[WCI Rate]]","v":1.6000000000000001E-3},null,"C","2021-10-02","9999-12-31",1,"Employee Relations Partner Sr",20054455,"C14",8810,1.6000000000000001E-3,66183.97,105894.35,88016,"HUMAN RESOURCES"]
[{"$f":"job_titles8[[#This Row],[Extended object ID]]","v":20054456},{"$f":"job_titles8[[#This Row],[WCI]]","v":8810},"9999-12-31",{"$f":"job_titles8[[#This Row],[WCI Rate]]","v":1.6000000000000001E-3},null,"C","2021-10-02","9999-12-31",1,"Benefits Manager",20054456,"C18",8810,1.6000000000000001E-3,86761.41,138818.25,88016,"HUMAN RESOURCES"]
[{"$f":"job_titles8[[#This Row],[Extended object ID]]","v":20054457},{"$f":"job_titles8[[#This Row],[WCI]]","v":8810},"9999-12-31",{"$f":"job_titles8[[#This Row],[WCI Rate]]","v":1.6000000000000001E-3},null,"C","2021-10-02","9999-12-31",1,"Risk Manager",20054457,"C18",8810,1.6000000000000001E-3,86761.41,138818.25,88016,"HUMAN RESOURCES"]
[{"$f":"job_titles8[[#This Row],[Extended object ID]]","v":20054458},{"$f":"job_titles8[[#This Row],[WCI]]","v":8810},"9999-12-31",{"$f":"job_titles8[[#This Row],[WCI Rate]]","v":1.6000000000000001E-3},null,"C","2021-10-02","9999-12-31",1,"Learning & Development Coordinator Sr",20054458,"C14",8810,1.6000000000000001E-3,66183.97,105894.35,88016,"HUMAN RESOURCES"]
[{"$f":"job_titles8[[#This Row],[Extended object ID]]","v":20054459},{"$f":"job_titles8[[#This Row],[WCI]]","v":7720},"9999-12-31",{"$f":"job_titles8[[#This Row],[WCI Rate]]","v":1.55E-2},null,"C","2021-10-19","9999-12-31",1,"Crime Analyst Supervisor",20054459,"C14",7720,1.55E-2,66183.97,105894.35,88012,"PUBLIC SAF/EMG MGMT"]
[{"$f":"job_titles8[[#This Row],[Extended object ID]]","v":20054460},{"$f":"job_titles8[[#This Row],[WCI]]","v":8810},"9999-12-31",{"$f":"job_titles8[[#This Row],[WCI Rate]]","v":1.6000000000000001E-3},null,"C","2021-10-02","9999-12-31",1,"Juvenile Probation Finance Director",20054460,"C20",8810,1.6000000000000001E-3,99345.18,158952.29,88014,"MANAGEMENT"]
[{"$f":"job_titles8[[#This Row],[Extended object ID]]","v":20054476},{"$f":"job_titles8[[#This Row],[WCI]]","v":9102},"9999-12-31",{"$f":"job_titles8[[#This Row],[WCI Rate]]","v":2.0799999999999999E-2},null,"C","2021-10-19","9999-12-31",1,"Park Maintenance Foreman",20054476,"C06",9102,2.0799999999999999E-2,48694.01,65736.92,88001,"MAINTENANCE"]
[{"$f":"job_titles8[[#This Row],[Extended object ID]]","v":20054477},{"$f":"job_titles8[[#This Row],[WCI]]","v":7720},"9999-12-31",{"$f":"job_titles8[[#This Row],[WCI Rate]]","v":1.55E-2},null,"C","2021-10-19","9999-12-31",1,"Wildfire Mitigation Specialist",20054477,"C14",7720,1.55E-2,66183.97,105894.35,88012,"PUBLIC SAF/EMG MGMT"]
[{"$f":"job_titles8[[#This Row],[Extended object ID]]","v":20054478},{"$f":"job_titles8[[#This Row],[WCI]]","v":7720},"9999-12-31",{"$f":"job_titles8[[#This Row],[WCI Rate]]","v":1.55E-2},null,"C","2021-10-19","9999-12-31",1,"Wildfire Mitigation Officer",20054478,"C16",7720,1.55E-2,75776.03,121241.65,88012,"PUBLIC SAF/EMG MGMT"]
[{"$f":"job_titles8[[#This Row],[Extended object ID]]","v":20054501},{"$f":"job_titles8[[#This Row],[WCI]]","v":8810},"9999-12-31",{"$f":"job_titles8[[#This Row],[WCI Rate]]","v":1.6000000000000001E-3},null,"C","2021-10-02","9999-12-31",1,"Retirement Specialist",20054501,"C10",8810,1.6000000000000001E-3,55877.5,82698.7,88016,"HUMAN RESOURCES"]
[{"$f":"job_titles8[[#This Row],[Extended object ID]]","v":20054502},{"$f":"job_titles8[[#This Row],[WCI]]","v":8810},"9999-12-31",{"$f":"job_titles8[[#This Row],[WCI Rate]]","v":1.6000000000000001E-3},null,"C","2021-10-02","9999-12-31",1,"Employee Relations Partner I",20054502,"C10",8810,1.6000000000000001E-3,55877.5,82698.7,88016,"HUMAN RESOURCES"]
[{"$f":"job_titles8[[#This Row],[Extended object ID]]","v":20054526},{"$f":"job_titles8[[#This Row],[WCI]]","v":8810},"9999-12-31",{"$f":"job_titles8[[#This Row],[WCI Rate]]","v":1.6000000000000001E-3},null,"C","2021-10-28","9999-12-31",1,"Emergency Radio Communications Mgr Sn",20054526,"GRD29",8810,1.6000000000000001E-3,89265.7,142825.07,88021,"INFORMATION TECH"]
[{"$f":"job_titles8[[#This Row],[Extended object ID]]","v":20054551},{"$f":"job_titles8[[#This Row],[WCI]]","v":8810},"9999-12-31",{"$f":"job_titles8[[#This Row],[WCI Rate]]","v":1.6000000000000001E-3},null,"C","2021-11-16","9999-12-31",1,"Planner Sr Succession",20054551,"GRD23",8810,1.6000000000000001E-3,59466.58,95146.48,88008,"PLANNING & RESEARCH"]
[{"$f":"job_titles8[[#This Row],[Extended object ID]]","v":20054552},{"$f":"job_titles8[[#This Row],[WCI]]","v":8601},"9999-12-31",{"$f":"job_titles8[[#This Row],[WCI Rate]]","v":1.8E-3},null,"C","2021-11-16","9999-12-31",1,"Public Works Dir Succession",20054552,"GRD33",8601,1.8E-3,117037.44,187259.76,88014,"MANAGEMENT"]
[{"$f":"job_titles8[[#This Row],[Extended object ID]]","v":20054576},{"$f":"job_titles8[[#This Row],[WCI]]","v":7720},"9999-12-31",{"$f":"job_titles8[[#This Row],[WCI Rate]]","v":1.55E-2},null,"C","2021-12-07","9999-12-31",1,"Constable Corporal",20054576,"GRD65",7720,1.55E-2,79983.070000000007,79983.070000000007,88025,"POPS NON-TCSO"]
[{"$f":"job_titles8[[#This Row],[Extended object ID]]","v":20054577},{"$f":"job_titles8[[#This Row],[WCI]]","v":7720},"9999-12-31",{"$f":"job_titles8[[#This Row],[WCI Rate]]","v":1.55E-2},null,"C","2021-12-07","9999-12-31",1,"Park Ranger Corporal",20054577,"GRD65",7720,1.55E-2,79983.070000000007,79983.070000000007,88025,"POPS NON-TCSO"]
[{"$f":"job_titles8[[#This Row],[Extended object ID]]","v":20054601},{"$f":"job_titles8[[#This Row],[WCI]]","v":7720},"9999-12-31",{"$f":"job_titles8[[#This Row],[WCI Rate]]","v":1.55E-2},null,"C","2021-12-21","9999-12-31",1,"Social Services JV Supervision Ofr I",20054601,"C05",7720,1.55E-2,47275.74,61458.46,88013,"COURT SERVICES"]
[{"$f":"job_titles8[[#This Row],[Extended object ID]]","v":20054602},{"$f":"job_titles8[[#This Row],[WCI]]","v":7720},"9999-12-31",{"$f":"job_titles8[[#This Row],[WCI Rate]]","v":1.55E-2},null,"C","2021-12-21","9999-12-31",1,"Social Services JV Supervision Ofr II",20054602,"C06",7720,1.55E-2,48694.01,65736.92,88013,"COURT SERVICES"]
[{"$f":"job_titles8[[#This Row],[Extended object ID]]","v":20054603},{"$f":"job_titles8[[#This Row],[WCI]]","v":8601},"9999-12-31",{"$f":"job_titles8[[#This Row],[WCI Rate]]","v":1.8E-3},null,"C","2021-12-21","9999-12-31",1,"Facilities Mechanical Engineer",20054603,"C16",8601,1.8E-3,75776.03,121241.65,88009,"ENGINEERING & ARCHITECTURAL"]
[{"$f":"job_titles8[[#This Row],[Extended object ID]]","v":20054626},{"$f":"job_titles8[[#This Row],[WCI]]","v":8810},"9999-12-31",{"$f":"job_titles8[[#This Row],[WCI Rate]]","v":1.6000000000000001E-3},null,"C","2022-02-08","9999-12-31",1,"Corporate Privacy Officer",20054626,"C24",8810,1.6000000000000001E-3,130239.35,214894.92,88014,"MANAGEMENT"]
[{"$f":"job_titles8[[#This Row],[Extended object ID]]","v":20054651},{"$f":"job_titles8[[#This Row],[WCI]]","v":8810},"9999-12-31",{"$f":"job_titles8[[#This Row],[WCI Rate]]","v":1.6000000000000001E-3},null,"C","2022-02-14","9999-12-31",1,"County Executive HHS Succession",20054651,"GRD36",8810,1.6000000000000001E-3,143376.06,229401.74,88007,"COUNTY EXECUTIVES"]
[{"$f":"job_titles8[[#This Row],[Extended object ID]]","v":20054676},{"$f":"job_titles8[[#This Row],[WCI]]","v":8810},"9999-12-31",{"$f":"job_titles8[[#This Row],[WCI Rate]]","v":1.6000000000000001E-3},null,"C","2022-01-01","9999-12-31",1,"Archives Program Manager",20054676,"C13",8810,1.6000000000000001E-3,62854.59,100567.34,88014,"MANAGEMENT"]
[{"$f":"job_titles8[[#This Row],[Extended object ID]]","v":20054701},{"$f":"job_titles8[[#This Row],[WCI]]","v":8810},"9999-12-31",{"$f":"job_titles8[[#This Row],[WCI Rate]]","v":1.6000000000000001E-3},null,"C","2022-02-15","9999-12-31",1,"Financial Mgr Sr Succession",20054701,"C19",8810,1.6000000000000001E-3,92836.33,148538.12,88005,"FINANCE"]
[{"$f":"job_titles8[[#This Row],[Extended object ID]]","v":20054726},{"$f":"job_titles8[[#This Row],[WCI]]","v":8810},"9999-12-31",{"$f":"job_titles8[[#This Row],[WCI Rate]]","v":1.6000000000000001E-3},null,"C","2022-03-01","9999-12-31",1,"Electronic Security Supervisor",20054726,"C14",8810,1.6000000000000001E-3,66183.97,105894.35,88014,"MANAGEMENT"]
[{"$f":"job_titles8[[#This Row],[Extended object ID]]","v":20054751},{"$f":"job_titles8[[#This Row],[WCI]]","v":9015},"9999-12-31",{"$f":"job_titles8[[#This Row],[WCI Rate]]","v":1.8800000000000001E-2},null,"C","2022-03-02","9999-12-31",1,"Juvenile Facilities Division Director",20054751,"C17",9015,1.8800000000000001E-2,81074.789999999994,129719.67,88014,"MANAGEMENT"]
[{"$f":"job_titles8[[#This Row],[Extended object ID]]","v":20054776},{"$f":"job_titles8[[#This Row],[WCI]]","v":8810},"9999-12-31",{"$f":"job_titles8[[#This Row],[WCI Rate]]","v":1.6000000000000001E-3},null,"C","2022-01-01","9999-12-31",1,"Communications Director",20054776,"C20",8810,1.6000000000000001E-3,99345.18,158952.29,88014,"MANAGEMENT"]
[{"$f":"job_titles8[[#This Row],[Extended object ID]]","v":20054801},{"$f":"job_titles8[[#This Row],[WCI]]","v":8810},"9999-12-31",{"$f":"job_titles8[[#This Row],[WCI Rate]]","v":1.6000000000000001E-3},null,"C","2022-04-12","9999-12-31",1,"Recruiter I",20054801,"C10",8810,1.6000000000000001E-3,55877.5,82698.7,88016,"HUMAN RESOURCES"]
[{"$f":"job_titles8[[#This Row],[Extended object ID]]","v":20054802},{"$f":"job_titles8[[#This Row],[WCI]]","v":8810},"9999-12-31",{"$f":"job_titles8[[#This Row],[WCI Rate]]","v":1.6000000000000001E-3},null,"C","2022-04-12","9999-12-31",1,"Recruiter II",20054802,"C12",8810,1.6000000000000001E-3,60437.1,90655.66,88016,"HUMAN RESOURCES"]
[{"$f":"job_titles8[[#This Row],[Extended object ID]]","v":20054804},{"$f":"job_titles8[[#This Row],[WCI]]","v":8810},"9999-12-31",{"$f":"job_titles8[[#This Row],[WCI Rate]]","v":1.6000000000000001E-3},null,"C","2022-04-20","9999-12-31",1,"AUD Fin/TP Support Mgr Succession",20054804,"AUD30",8810,1.6000000000000001E-3,132089,224552,88026,"AUDITOR"]
[{"$f":"job_titles8[[#This Row],[Extended object ID]]","v":20054826},{"$f":"job_titles8[[#This Row],[WCI]]","v":8810},"9999-12-31",{"$f":"job_titles8[[#This Row],[WCI Rate]]","v":1.6000000000000001E-3},null,"C","2022-04-19","9999-12-31",1,"TCSO Sr Recruiter",20054826,"C14",8810,1.6000000000000001E-3,66183.97,105894.35,88016,"HUMAN RESOURCES"]
[{"$f":"job_titles8[[#This Row],[Extended object ID]]","v":20054827},{"$f":"job_titles8[[#This Row],[WCI]]","v":8810},"9999-12-31",{"$f":"job_titles8[[#This Row],[WCI Rate]]","v":1.6000000000000001E-3},null,"C","2022-04-16","9999-12-31",1,"Telecomm 911 Mgr Succession",20054827,"GRD25",8810,1.6000000000000001E-3,68095.87,108953.31,88012,"PUBLIC SAF/EMG MGMT"]
[{"$f":"job_titles8[[#This Row],[Extended object ID]]","v":20054851},{"$f":"job_titles8[[#This Row],[WCI]]","v":8810},"9999-12-31",{"$f":"job_titles8[[#This Row],[WCI Rate]]","v":1.6000000000000001E-3},null,"C","2022-05-03","9999-12-31",1,"Racial and Social Justice Officer",20054851,"C18",8810,1.6000000000000001E-3,86761.41,138818.25,88014,"MANAGEMENT"]
[{"$f":"job_titles8[[#This Row],[Extended object ID]]","v":20054876},{"$f":"job_titles8[[#This Row],[WCI]]","v":8810},"9999-12-31",{"$f":"job_titles8[[#This Row],[WCI Rate]]","v":1.6000000000000001E-3},null,"C","2022-05-03","9999-12-31",1,"Public Information & Social Media Spc",20054876,"C11",8810,1.6000000000000001E-3,58112.6,87168.9,88019,"PUBLIC INFORMATION"]
[{"$f":"job_titles8[[#This Row],[Extended object ID]]","v":20054901},{"$f":"job_titles8[[#This Row],[WCI]]","v":5606},"9999-12-31",{"$f":"job_titles8[[#This Row],[WCI Rate]]","v":5.5999999999999999E-3},null,"C","2022-05-24","9999-12-31",1,"Graphic Fabrication Tech",20054901,"C06",5606,5.5999999999999999E-3,48694.01,65736.92,88002,"SKILLED TRADES"]
[{"$f":"job_titles8[[#This Row],[Extended object ID]]","v":20054926},{"$f":"job_titles8[[#This Row],[WCI]]","v":8810},"9999-12-31",{"$f":"job_titles8[[#This Row],[WCI Rate]]","v":1.6000000000000001E-3},null,"C","2022-07-01","9999-12-31",1,"IT Dpt Div Mgr Succession",20054926,"GRD30",8810,1.6000000000000001E-3,95524.21,152838.82,88021,"INFORMATION TECH"]
[{"$f":"job_titles8[[#This Row],[Extended object ID]]","v":20054927},{"$f":"job_titles8[[#This Row],[WCI]]","v":7720},"9999-12-31",{"$f":"job_titles8[[#This Row],[WCI Rate]]","v":1.55E-2},null,"C","2022-06-21","9999-12-31",1,"Sheriff Deputy-Facilities",20054927,"GRD84",7720,1.55E-2,62908.959999999999,62908.959999999999,88024,"POPS TCSO"]
[{"$f":"job_titles8[[#This Row],[Extended object ID]]","v":20054951},{"$f":"job_titles8[[#This Row],[WCI]]","v":8810},"9999-12-31",{"$f":"job_titles8[[#This Row],[WCI Rate]]","v":1.6000000000000001E-3},null,"C","2022-06-28","9999-12-31",1,"Judicial Executive Assistant Succession",20054951,"GRD20",8810,1.6000000000000001E-3,48530.77,72796.259999999995,88004,"ADMINISTRATIVE SUPP"]
[{"$f":"job_titles8[[#This Row],[Extended object ID]]","v":20054976},{"$f":"job_titles8[[#This Row],[WCI]]","v":8810},"9999-12-31",{"$f":"job_titles8[[#This Row],[WCI Rate]]","v":1.6000000000000001E-3},null,"C","2022-06-28","9999-12-31",1,"County Executive JPS Succession",20054976,"GRD36",8810,1.6000000000000001E-3,143376.06,229401.74,88007,"COUNTY EXECUTIVES"]
[{"$f":"job_titles8[[#This Row],[Extended object ID]]","v":20055001},{"$f":"job_titles8[[#This Row],[WCI]]","v":8810},"9999-12-31",{"$f":"job_titles8[[#This Row],[WCI Rate]]","v":1.6000000000000001E-3},null,"C","2022-08-09","9999-12-31",1,"County/District Clerk Div Dir Succession",20055001,"GRD27",8810,1.6000000000000001E-3,77956.53,124730.53,88014,"MANAGEMENT"]
[{"$f":"job_titles8[[#This Row],[Extended object ID]]","v":20055026},{"$f":"job_titles8[[#This Row],[WCI]]","v":8810},"9999-12-31",{"$f":"job_titles8[[#This Row],[WCI Rate]]","v":1.6000000000000001E-3},null,"C","2022-08-02","9999-12-31",1,"Customer Support Supervisor Succession",20055026,"GRD26",8810,1.6000000000000001E-3,72861.570000000007,116578.59,0,"0"]
[{"$f":"job_titles8[[#This Row],[Extended object ID]]","v":20055051},{"$f":"job_titles8[[#This Row],[WCI]]","v":7422},"9999-12-31",{"$f":"job_titles8[[#This Row],[WCI Rate]]","v":1.3299999999999999E-2},null,"C","2022-09-20","9999-12-31",1,"Helicopter Pilot Succession",20055051,"GRD28",7422,1.3299999999999999E-2,83424.429999999993,133479.01,88012,"PUBLIC SAF/EMG MGMT"]
[{"$f":"job_titles8[[#This Row],[Extended object ID]]","v":20055052},{"$f":"job_titles8[[#This Row],[WCI]]","v":8810},"9999-12-31",{"$f":"job_titles8[[#This Row],[WCI Rate]]","v":1.6000000000000001E-3},null,"C","2022-09-20","9999-12-31",1,"Social Services Program Adm Succession",20055052,"GRD24",8810,1.6000000000000001E-3,63638.43,101821.41,88011,"SOCIAL SVCS"]
[{"$f":"job_titles8[[#This Row],[Extended object ID]]","v":20055053},{"$f":"job_titles8[[#This Row],[WCI]]","v":8810},"9999-12-31",{"$f":"job_titles8[[#This Row],[WCI Rate]]","v":1.6000000000000001E-3},null,"C","2022-09-20","9999-12-31",1,"Telecomm 911 Asst Mgr",20055053,"C13",8810,1.6000000000000001E-3,62854.59,100567.34,88012,"PUBLIC SAF/EMG MGMT"]
[{"$f":"job_titles8[[#This Row],[Extended object ID]]","v":20055076},{"$f":"job_titles8[[#This Row],[WCI]]","v":7720},"9999-12-31",{"$f":"job_titles8[[#This Row],[WCI Rate]]","v":1.55E-2},null,"C","2022-10-01","9999-12-31",1,"LE Sheriff Cadet",20055076,"GRD71",7720,1.55E-2,60000,60000,88024,"POPS TCSO"]
[{"$f":"job_titles8[[#This Row],[Extended object ID]]","v":20055101},{"$f":"job_titles8[[#This Row],[WCI]]","v":8832},"9999-12-31",{"$f":"job_titles8[[#This Row],[WCI Rate]]","v":1.9E-3},null,"C","2022-09-20","9999-12-31",1,"Chief Psychiatrist",20055101,"NCF01",8832,1.9E-3,15080,500000,88003,"MEDICAL"]
[{"$f":"job_titles8[[#This Row],[Extended object ID]]","v":20055102},{"$f":"job_titles8[[#This Row],[WCI]]","v":8810},"9999-12-31",{"$f":"job_titles8[[#This Row],[WCI Rate]]","v":1.6000000000000001E-3},null,"C","2022-09-27","9999-12-31",1,"Investigations Supervisor",20055102,"C18",8810,1.6000000000000001E-3,86761.41,138818.25,88013,"COURT SERVICES"]
[{"$f":"job_titles8[[#This Row],[Extended object ID]]","v":20055126},{"$f":"job_titles8[[#This Row],[WCI]]","v":8810},"9999-12-31",{"$f":"job_titles8[[#This Row],[WCI Rate]]","v":1.6000000000000001E-3},null,"C","2022-10-11","9999-12-31",1,"Office Mgr Sr Succession",20055126,"C13",8810,1.6000000000000001E-3,62854.59,100567.34,88014,"MANAGEMENT"]
[{"$f":"job_titles8[[#This Row],[Extended object ID]]","v":20055151},{"$f":"job_titles8[[#This Row],[WCI]]","v":5506},"9999-12-31",{"$f":"job_titles8[[#This Row],[WCI Rate]]","v":4.3700000000000003E-2},null,"C","2022-10-11","9999-12-31",1,"Road Maintenance Worker Trainee",20055151,"C02",5506,4.3700000000000003E-2,43264,56243.199999999997,88001,"MAINTENANCE"]
[{"$f":"job_titles8[[#This Row],[Extended object ID]]","v":20055176},{"$f":"job_titles8[[#This Row],[WCI]]","v":8810},"9999-12-31",{"$f":"job_titles8[[#This Row],[WCI Rate]]","v":1.6000000000000001E-3},null,"C","2022-10-18","9999-12-31",1,"Technical Writer",20055176,"C12",8810,1.6000000000000001E-3,60437.1,90655.66,88021,"INFORMATION TECH"]
[{"$f":"job_titles8[[#This Row],[Extended object ID]]","v":20055177},{"$f":"job_titles8[[#This Row],[WCI]]","v":8810},"9999-12-31",{"$f":"job_titles8[[#This Row],[WCI Rate]]","v":1.6000000000000001E-3},null,"C","2022-10-18","9999-12-31",1,"Data Architect",20055177,"C20",8810,1.6000000000000001E-3,99345.18,158952.29,88021,"INFORMATION TECH"]
[{"$f":"job_titles8[[#This Row],[Extended object ID]]","v":20055178},{"$f":"job_titles8[[#This Row],[WCI]]","v":8810},"9999-12-31",{"$f":"job_titles8[[#This Row],[WCI Rate]]","v":1.6000000000000001E-3},null,"C","2022-10-18","9999-12-31",1,"StarFt Director of Aviation Operations",20055178,"C21",8810,1.6000000000000001E-3,106310.9,175412.99,88012,"PUBLIC SAF/EMG MGMT"]
[{"$f":"job_titles8[[#This Row],[Extended object ID]]","v":20055179},{"$f":"job_titles8[[#This Row],[WCI]]","v":8810},"9999-12-31",{"$f":"job_titles8[[#This Row],[WCI Rate]]","v":1.6000000000000001E-3},null,"C","2022-10-18","9999-12-31",1,"StarFt Director of Medical Operations",20055179,"C21",8810,1.6000000000000001E-3,106310.9,175412.99,88012,"PUBLIC SAF/EMG MGMT"]
[{"$f":"job_titles8[[#This Row],[Extended object ID]]","v":20055201},{"$f":"job_titles8[[#This Row],[WCI]]","v":8810},"9999-12-31",{"$f":"job_titles8[[#This Row],[WCI Rate]]","v":1.6000000000000001E-3},null,"C","2022-10-25","9999-12-31",1,"Risk Management Supervisor",20055201,"C16",8810,1.6000000000000001E-3,75776.03,121241.65,88016,"HUMAN RESOURCES"]
[{"$f":"job_titles8[[#This Row],[Extended object ID]]","v":20055226},{"$f":"job_titles8[[#This Row],[WCI]]","v":7720},"9999-12-31",{"$f":"job_titles8[[#This Row],[WCI Rate]]","v":1.55E-2},null,"C","2022-10-02","9999-12-31",1,"Digital Forensic Analyst",20055226,"C12",7720,1.55E-2,60437.1,90655.66,88012,"PUBLIC SAF/EMG MGMT"]
[{"$f":"job_titles8[[#This Row],[Extended object ID]]","v":20055227},{"$f":"job_titles8[[#This Row],[WCI]]","v":7720},"9999-12-31",{"$f":"job_titles8[[#This Row],[WCI Rate]]","v":1.55E-2},null,"C","2022-10-25","9999-12-31",1,"Forensic Media Evidence Specialist",20055227,"C12",7720,1.55E-2,60437.1,90655.66,88012,"PUBLIC SAF/EMG MGMT"]
[{"$f":"job_titles8[[#This Row],[Extended object ID]]","v":20055251},{"$f":"job_titles8[[#This Row],[WCI]]","v":8810},"9999-12-31",{"$f":"job_titles8[[#This Row],[WCI Rate]]","v":1.6000000000000001E-3},null,"C","2022-11-01","9999-12-31",1,"Trauma Informed Care Program Adm",20055251,"C17",8810,1.6000000000000001E-3,81074.789999999994,129719.67,88011,"SOCIAL SVCS"]
[{"$f":"job_titles8[[#This Row],[Extended object ID]]","v":20055276},{"$f":"job_titles8[[#This Row],[WCI]]","v":8810},"9999-12-31",{"$f":"job_titles8[[#This Row],[WCI Rate]]","v":1.6000000000000001E-3},null,"C","2022-10-02","9999-12-31",1,"Chief Deputy Emergency Management Coord",20055276,"C15",8810,1.6000000000000001E-3,70819.7,113311.53,88012,"PUBLIC SAF/EMG MGMT"]
[{"$f":"job_titles8[[#This Row],[Extended object ID]]","v":20055277},{"$f":"job_titles8[[#This Row],[WCI]]","v":8810},"9999-12-31",{"$f":"job_titles8[[#This Row],[WCI Rate]]","v":1.6000000000000001E-3},null,"C","2022-10-02","9999-12-31",1,"Imaging Production Tech Senior",20055277,"C05",8810,1.6000000000000001E-3,47275.74,61458.46,88018,"IMAGING & GRAPHICS"]
[{"$f":"job_titles8[[#This Row],[Extended object ID]]","v":20055278},{"$f":"job_titles8[[#This Row],[WCI]]","v":4299},"9999-12-31",{"$f":"job_titles8[[#This Row],[WCI Rate]]","v":1.24E-2},null,"C","2022-10-02","9999-12-31",1,"Reprographics Production Tech Lead",20055278,"C05",4299,1.24E-2,47275.74,61458.46,88018,"IMAGING & GRAPHICS"]
[{"$f":"job_titles8[[#This Row],[Extended object ID]]","v":20055301},{"$f":"job_titles8[[#This Row],[WCI]]","v":8810},"9999-12-31",{"$f":"job_titles8[[#This Row],[WCI Rate]]","v":1.6000000000000001E-3},null,"C","2022-11-15","9999-12-31",1,"Corporations Operations Specialist",20055301,"C10",8810,1.6000000000000001E-3,55877.5,82698.7,88004,"ADMINISTRATIVE SUPP"]
[{"$f":"job_titles8[[#This Row],[Extended object ID]]","v":20055302},{"$f":"job_titles8[[#This Row],[WCI]]","v":8810},"9999-12-31",{"$f":"job_titles8[[#This Row],[WCI Rate]]","v":1.6000000000000001E-3},null,"C","2022-11-15","9999-12-31",1,"Corporations Project Coordinator",20055302,"C13",8810,1.6000000000000001E-3,62854.59,100567.34,88015,"PROFESSIONAL SUPP"]
[{"$f":"job_titles8[[#This Row],[Extended object ID]]","v":20055326},{"$f":"job_titles8[[#This Row],[WCI]]","v":8810},"9999-12-31",{"$f":"job_titles8[[#This Row],[WCI Rate]]","v":1.6000000000000001E-3},null,"C","2022-11-15","9999-12-31",1,"Customer Support Mgr Succession",20055326,"C18",8810,1.6000000000000001E-3,86761.41,138818.25,88021,"INFORMATION TECH"]
[{"$f":"job_titles8[[#This Row],[Extended object ID]]","v":20055351},{"$f":"job_titles8[[#This Row],[WCI]]","v":8810},"9999-12-31",{"$f":"job_titles8[[#This Row],[WCI Rate]]","v":1.6000000000000001E-3},null,"C","2022-12-06","9999-12-31",1,"Support Services Supervisor",20055351,"C11",8810,1.6000000000000001E-3,58112.6,87168.9,88018,"IMAGING & GRAPHICS"]
[{"$f":"job_titles8[[#This Row],[Extended object ID]]","v":20055376},{"$f":"job_titles8[[#This Row],[WCI]]","v":0},"9999-12-31",{"$f":"job_titles8[[#This Row],[WCI Rate]]","v":0},null,"C","2022-12-06","9999-12-31",1,"Right Of Way Agent Succession",20055376,"C12",null,null,60437.1,90655.66,88015,"PROFESSIONAL SUPP"]
[{"$f":"job_titles8[[#This Row],[Extended object ID]]","v":20055377},{"$f":"job_titles8[[#This Row],[WCI]]","v":8810},"9999-12-31",{"$f":"job_titles8[[#This Row],[WCI Rate]]","v":1.6000000000000001E-3},null,"C","1900-01-01","9999-12-31",1,"Administrative Assoc Succession",20055377,"C09",8810,1.6000000000000001E-3,53987.92,78282.490000000005,88004,"ADMINISTRATIVE SUPP"]
[{"$f":"job_titles8[[#This Row],[Extended object ID]]","v":20055378},{"$f":"job_titles8[[#This Row],[WCI]]","v":7720},"9999-12-31",{"$f":"job_titles8[[#This Row],[WCI Rate]]","v":1.55E-2},null,"C","2022-12-13","9999-12-31",1,"Park Ranger Lieutenant",20055378,"GRD68",7720,1.55E-2,91089.42,91089.42,88025,"POPS NON-TCSO"]
[{"$f":"job_titles8[[#This Row],[Extended object ID]]","v":20055379},{"$f":"job_titles8[[#This Row],[WCI]]","v":8810},"9999-12-31",{"$f":"job_titles8[[#This Row],[WCI Rate]]","v":1.6000000000000001E-3},null,"C","2022-12-13","9999-12-31",1,"Court Legal Mgmt Adm Dir Succession",20055379,"C21",8810,1.6000000000000001E-3,106310.9,175412.99,88014,"MANAGEMENT"]
[{"$f":"job_titles8[[#This Row],[Extended object ID]]","v":20055401},{"$f":"job_titles8[[#This Row],[WCI]]","v":8810},"9999-12-31",{"$f":"job_titles8[[#This Row],[WCI Rate]]","v":1.6000000000000001E-3},null,"C","2023-01-03","9999-12-31",1,"Grants Administrator",20055401,"C18",8810,1.6000000000000001E-3,86761.41,138818.25,88015,"PROFESSIONAL SUPP"]
[{"$f":"job_titles8[[#This Row],[Extended object ID]]","v":20055402},{"$f":"job_titles8[[#This Row],[WCI]]","v":8810},"9999-12-31",{"$f":"job_titles8[[#This Row],[WCI Rate]]","v":1.6000000000000001E-3},null,"C","2023-01-03","9999-12-31",1,"Grants Manager",20055402,"C14",8810,1.6000000000000001E-3,66183.97,105894.35,88015,"PROFESSIONAL SUPP"]
[{"$f":"job_titles8[[#This Row],[Extended object ID]]","v":20055426},{"$f":"job_titles8[[#This Row],[WCI]]","v":8810},"9999-12-31",{"$f":"job_titles8[[#This Row],[WCI Rate]]","v":1.6000000000000001E-3},null,"C","2023-01-01","9999-12-31",1,"Security Center Supervisor",20055426,"C08",8810,1.6000000000000001E-3,52162.239999999998,75635.25,88001,"MAINTENANCE"]
[{"$f":"job_titles8[[#This Row],[Extended object ID]]","v":20055451},{"$f":"job_titles8[[#This Row],[WCI]]","v":8810},"9999-12-31",{"$f":"job_titles8[[#This Row],[WCI Rate]]","v":1.6000000000000001E-3},null,"C","2023-02-07","9999-12-31",1,"Court Services Program Mgr Succession",20055451,"C14",8810,1.6000000000000001E-3,66183.97,105894.35,88014,"MANAGEMENT"]
[{"$f":"job_titles8[[#This Row],[Extended object ID]]","v":20055452},{"$f":"job_titles8[[#This Row],[WCI]]","v":8810},"9999-12-31",{"$f":"job_titles8[[#This Row],[WCI Rate]]","v":1.6000000000000001E-3},null,"C","2023-02-07","9999-12-31",1,"HIPAA Compliance and Privacy Auditor",20055452,"C16",8810,1.6000000000000001E-3,75776.03,121241.65,88015,"PROFESSIONAL SUPP"]
[{"$f":"job_titles8[[#This Row],[Extended object ID]]","v":20055453},{"$f":"job_titles8[[#This Row],[WCI]]","v":8810},"9999-12-31",{"$f":"job_titles8[[#This Row],[WCI Rate]]","v":1.6000000000000001E-3},null,"C","2023-01-31","9999-12-31",1,"Strategic Advisor",20055453,"C18",8810,1.6000000000000001E-3,86761.41,138818.25,88014,"MANAGEMENT"]
[{"$f":"job_titles8[[#This Row],[Extended object ID]]","v":20055476},{"$f":"job_titles8[[#This Row],[WCI]]","v":7720},"9999-12-31",{"$f":"job_titles8[[#This Row],[WCI Rate]]","v":1.55E-2},null,"C","2023-02-28","9999-12-31",1,"Constable Cadet",20055476,"GRD59",7720,1.55E-2,57000,57000,88025,"POPS NON-TCSO"]
[{"$f":"job_titles8[[#This Row],[Extended object ID]]","v":20055501},{"$f":"job_titles8[[#This Row],[WCI]]","v":9999},"9999-12-31",{"$f":"job_titles8[[#This Row],[WCI Rate]]","v":0},null,"C","2023-03-13","9999-12-31",1,"CSCD Clinical Mental Health Pf II",20055501,"CSCD22",9999,0,55578.85,62254.400000000001,88011,"SOCIAL SVCS"]
[{"$f":"job_titles8[[#This Row],[Extended object ID]]","v":20055526},{"$f":"job_titles8[[#This Row],[WCI]]","v":8810},"9999-12-31",{"$f":"job_titles8[[#This Row],[WCI Rate]]","v":1.6000000000000001E-3},null,"C","2023-03-15","9999-12-31",1,"Aud Business Support Manager-ERP",20055526,"AUD30",8810,1.6000000000000001E-3,132089,224552,88026,"AUDITOR"]
[{"$f":"job_titles8[[#This Row],[Extended object ID]]","v":20055551},{"$f":"job_titles8[[#This Row],[WCI]]","v":8292},"9999-12-31",{"$f":"job_titles8[[#This Row],[WCI Rate]]","v":0},null,"C","2023-04-10","9999-12-31",1,"Warehouse Manager",20055551,"C11",8292,0,58112.6,87168.9,88014,"MANAGEMENT"]
[{"$f":"job_titles8[[#This Row],[Extended object ID]]","v":20055576},{"$f":"job_titles8[[#This Row],[WCI]]","v":8810},"9999-12-31",{"$f":"job_titles8[[#This Row],[WCI Rate]]","v":1.6000000000000001E-3},null,"C","2023-05-23","9999-12-31",1,"Aud Fin Aud Anly VI Succession",20055576,"AUD27",8810,1.6000000000000001E-3,101079,171834,88026,"AUDITOR"]
[{"$f":"job_titles8[[#This Row],[Extended object ID]]","v":20055601},{"$f":"job_titles8[[#This Row],[WCI]]","v":8810},"9999-12-31",{"$f":"job_titles8[[#This Row],[WCI Rate]]","v":1.6000000000000001E-3},null,"C","2023-06-26","9999-12-31",1,"Paralegal Sr Succession",20055601,"C11",8810,1.6000000000000001E-3,58112.6,87168.9,88004,"ADMINISTRATIVE SUPP"]
[{"$f":"job_titles8[[#This Row],[Extended object ID]]","v":20055626},{"$f":"job_titles8[[#This Row],[WCI]]","v":8810},"9999-12-31",{"$f":"job_titles8[[#This Row],[WCI Rate]]","v":1.6000000000000001E-3},null,"C","2023-07-11","9999-12-31",1,"Trauma Informed Care Specialist",20055626,"C11",8810,1.6000000000000001E-3,58112.6,87168.9,88011,"SOCIAL SVCS"]
[{"$f":"job_titles8[[#This Row],[Extended object ID]]","v":20055651},{"$f":"job_titles8[[#This Row],[WCI]]","v":8810},"9999-12-31",{"$f":"job_titles8[[#This Row],[WCI Rate]]","v":1.6000000000000001E-3},null,"C","2023-07-25","9999-12-31",1,"County Executive CLgS",20055651,"C27",8810,1.6000000000000001E-3,159548.98000000001,263255.82,88007,"COUNTY EXECUTIVES"]
[{"$f":"job_titles8[[#This Row],[Extended object ID]]","v":20055652},{"$f":"job_titles8[[#This Row],[WCI]]","v":8810},"9999-12-31",{"$f":"job_titles8[[#This Row],[WCI Rate]]","v":1.6000000000000001E-3},null,"C","2023-07-25","9999-12-31",1,"County Executive DDPPM",20055652,"C27",8810,1.6000000000000001E-3,159548.98000000001,263255.82,88007,"COUNTY EXECUTIVES"]
[{"$f":"job_titles8[[#This Row],[Extended object ID]]","v":20055676},{"$f":"job_titles8[[#This Row],[WCI]]","v":8810},"9999-12-31",{"$f":"job_titles8[[#This Row],[WCI Rate]]","v":1.6000000000000001E-3},null,"C","2023-08-08","9999-12-31",1,"CC Specialist Succession",20055676,"C08",8810,1.6000000000000001E-3,52162.239999999998,75635.25,88004,"ADMINISTRATIVE SUPP"]
[{"$f":"job_titles8[[#This Row],[Extended object ID]]","v":20055701},{"$f":"job_titles8[[#This Row],[WCI]]","v":9102},"9999-12-31",{"$f":"job_titles8[[#This Row],[WCI Rate]]","v":2.0799999999999999E-2},null,"C","2023-09-19","9999-12-31",1,"Park Land Resource Manager",20055701,"C16",9102,2.0799999999999999E-2,75776.03,121241.65,88014,"MANAGEMENT"]
[{"$f":"job_titles8[[#This Row],[Extended object ID]]","v":20055726},{"$f":"job_titles8[[#This Row],[WCI]]","v":8810},"9999-12-31",{"$f":"job_titles8[[#This Row],[WCI Rate]]","v":1.6000000000000001E-3},null,"C","2023-09-26","9999-12-31",1,"Visitor Center Outreach Coordinator",20055726,"C10",8810,1.6000000000000001E-3,55877.5,82698.7,88015,"PROFESSIONAL SUPP"]
[{"$f":"job_titles8[[#This Row],[Extended object ID]]","v":20055727},{"$f":"job_titles8[[#This Row],[WCI]]","v":8810},"9999-12-31",{"$f":"job_titles8[[#This Row],[WCI Rate]]","v":1.6000000000000001E-3},null,"C","2023-09-26","9999-12-31",1,"BCP Visitor Center Manager",20055727,"C13",8810,1.6000000000000001E-3,62854.59,100567.34,88015,"PROFESSIONAL SUPP"]
[{"$f":"job_titles8[[#This Row],[Extended object ID]]","v":20055751},{"$f":"job_titles8[[#This Row],[WCI]]","v":8810},"9999-12-31",{"$f":"job_titles8[[#This Row],[WCI Rate]]","v":1.6000000000000001E-3},null,"C","2023-10-01","9999-12-31",1,"Aud Fin Aud Anly IV Succession",20055751,"AUD25",8810,1.6000000000000001E-3,86659,147320,88026,"AUDITOR"]
[{"$f":"job_titles8[[#This Row],[Extended object ID]]","v":20055776},{"$f":"job_titles8[[#This Row],[WCI]]","v":9999},"9999-12-31",{"$f":"job_titles8[[#This Row],[WCI Rate]]","v":0},null,"C","2023-10-20","9999-12-31",1,"CSCD Probation Officer Court",20055776,"CSCD20",9999,0,48530.77,54350.400000000001,88013,"COURT SERVICES"]
[{"$f":"job_titles8[[#This Row],[Extended object ID]]","v":20055777},{"$f":"job_titles8[[#This Row],[WCI]]","v":9999},"9999-12-31",{"$f":"job_titles8[[#This Row],[WCI Rate]]","v":0},null,"C","2023-10-20","9999-12-31",1,"CSCD Probation Officer Substance Use",20055777,"CSCD20",9999,0,48530.77,54350.400000000001,88013,"COURT SERVICES"]
[{"$f":"job_titles8[[#This Row],[Extended object ID]]","v":20055778},{"$f":"job_titles8[[#This Row],[WCI]]","v":8810},"9999-12-31",{"$f":"job_titles8[[#This Row],[WCI Rate]]","v":1.6000000000000001E-3},null,"C","2023-10-31","9999-12-31",1,"Aud Business Consultant I Succession",20055778,"AUD26",8810,1.6000000000000001E-3,93592,159105,88026,"AUDITOR"]
[{"$f":"job_titles8[[#This Row],[Extended object ID]]","v":20055801},{"$f":"job_titles8[[#This Row],[WCI]]","v":8810},"9999-12-31",{"$f":"job_titles8[[#This Row],[WCI Rate]]","v":1.6000000000000001E-3},null,"C","2023-10-24","9999-12-31",1,"Admin Services Div Dir Sr Succession",20055801,"C19",8810,1.6000000000000001E-3,92836.33,148538.12,88014,"MANAGEMENT"]
[{"$f":"job_titles8[[#This Row],[Extended object ID]]","v":20055802},{"$f":"job_titles8[[#This Row],[WCI]]","v":5506},"9999-12-31",{"$f":"job_titles8[[#This Row],[WCI Rate]]","v":4.3700000000000003E-2},null,"C","2023-10-02","9999-12-31",1,"Road Maintenance Worker II",20055802,"C05",5506,4.3700000000000003E-2,47275.74,61458.46,88001,"MAINTENANCE"]
[{"$f":"job_titles8[[#This Row],[Extended object ID]]","v":20055803},{"$f":"job_titles8[[#This Row],[WCI]]","v":5506},"9999-12-31",{"$f":"job_titles8[[#This Row],[WCI Rate]]","v":4.3700000000000003E-2},null,"C","2023-10-02","9999-12-31",1,"Road Maintenance Worker III",20055803,"C06",5506,4.3700000000000003E-2,48694.01,65736.92,88001,"MAINTENANCE"]
[{"$f":"job_titles8[[#This Row],[Extended object ID]]","v":20055804},{"$f":"job_titles8[[#This Row],[WCI]]","v":5506},"9999-12-31",{"$f":"job_titles8[[#This Row],[WCI Rate]]","v":4.3700000000000003E-2},null,"C","2023-10-02","9999-12-31",1,"Equipment Operator III",20055804,"C10",5506,4.3700000000000003E-2,55877.5,82698.7,88002,"SKILLED TRADES"]
[{"$f":"job_titles8[[#This Row],[Extended object ID]]","v":20055826},{"$f":"job_titles8[[#This Row],[WCI]]","v":8810},"9999-12-31",{"$f":"job_titles8[[#This Row],[WCI Rate]]","v":1.6000000000000001E-3},null,"C","2023-11-28","9999-12-31",1,"County Clerk Asst Deputy Chief",20055826,"C20",8810,1.6000000000000001E-3,99345.18,158952.29,88014,"MANAGEMENT"]
[{"$f":"job_titles8[[#This Row],[Extended object ID]]","v":20055851},{"$f":"job_titles8[[#This Row],[WCI]]","v":8601},"9999-12-31",{"$f":"job_titles8[[#This Row],[WCI Rate]]","v":1.8E-3},null,"C","2023-12-12","9999-12-31",1,"Hydrogeologist Sr",20055851,"C15",8601,1.8E-3,70819.7,113311.53,88009,"ENGINEERING & ARCHITECTURAL"]
[{"$f":"job_titles8[[#This Row],[Extended object ID]]","v":20055876},{"$f":"job_titles8[[#This Row],[WCI]]","v":0},"9999-12-31",{"$f":"job_titles8[[#This Row],[WCI Rate]]","v":0},null,"C","2023-12-19","9999-12-31",1,"Legal Secretary Sr Succession",20055876,"C08",null,null,52162.239999999998,75635.25,88004,"ADMINISTRATIVE SUPP"]
[{"$f":"job_titles8[[#This Row],[Extended object ID]]","v":20055901},{"$f":"job_titles8[[#This Row],[WCI]]","v":8810},"9999-12-31",{"$f":"job_titles8[[#This Row],[WCI Rate]]","v":1.6000000000000001E-3},null,"C","2024-01-09","9999-12-31",1,"Natural Resources Program Mgr Succession",20055901,"C16",8810,1.6000000000000001E-3,75776.03,121241.65,88015,"PROFESSIONAL SUPP"]
[{"$f":"job_titles8[[#This Row],[Extended object ID]]","v":20055926},{"$f":"job_titles8[[#This Row],[WCI]]","v":8810},"9999-12-31",{"$f":"job_titles8[[#This Row],[WCI Rate]]","v":1.6000000000000001E-3},null,"C","2024-01-09","9999-12-31",1,"PID Managing Director",20055926,"C18",8810,1.6000000000000001E-3,86761.41,138818.25,88014,"MANAGEMENT"]
[{"$f":"job_titles8[[#This Row],[Extended object ID]]","v":20055951},{"$f":"job_titles8[[#This Row],[WCI]]","v":8810},"9999-12-31",{"$f":"job_titles8[[#This Row],[WCI Rate]]","v":1.6000000000000001E-3},null,"C","2024-01-11","9999-12-31",1,"Parks Div Dir Succession",20055951,"C22",8810,1.6000000000000001E-3,113755.98,187697.37,88014,"MANAGEMENT"]
[{"$f":"job_titles8[[#This Row],[Extended object ID]]","v":0},{"$f":"job_titles8[[#This Row],[WCI]]","v":0},"9999-12-31",{"$f":"job_titles8[[#This Row],[WCI Rate]]","v":0},null,null,null,null,null,null,null,null,null,null,null,null,0,"0"]
[{"$f":"job_titles8[[#This Row],[Extended object ID]]","v":0},{"$f":"job_titles8[[#This Row],[WCI]]","v":0},"9999-12-31",{"$f":"job_titles8[[#This Row],[WCI Rate]]","v":0},null,null,null,null,null,null,null,null,null,null,null,null,0,"0"]
[{"$f":"job_titles8[[#This Row],[Extended object ID]]","v":0},{"$f":"job_titles8[[#This Row],[WCI]]","v":0},"9999-12-31",{"$f":"job_titles8[[#This Row],[WCI Rate]]","v":0},null,null,null,null,null,null,null,null,null,null,null,null,0,"0"]
[{"$f":"job_titles8[[#This Row],[Extended object ID]]","v":0},{"$f":"job_titles8[[#This Row],[WCI]]","v":0},"9999-12-31",{"$f":"job_titles8[[#This Row],[WCI Rate]]","v":0},null,null,null,null,null,null,null,null,null,null,null,null,0,"0"]
[{"$f":"job_titles8[[#This Row],[Extended object ID]]","v":0},{"$f":"job_titles8[[#This Row],[WCI]]","v":0},"9999-12-31",{"$f":"job_titles8[[#This Row],[WCI Rate]]","v":0},null,null,null,null,null,null,null,null,null,null,null,null,0,"0"]
[{"$f":"job_titles8[[#This Row],[Extended object ID]]","v":0},{"$f":"job_titles8[[#This Row],[WCI]]","v":0},"9999-12-31",{"$f":"job_titles8[[#This Row],[WCI Rate]]","v":0},null,null,null,null,null,null,null,null,null,null,null,null,0,"0"]
[{"$f":"job_titles8[[#This Row],[Extended object ID]]","v":0},{"$f":"job_titles8[[#This Row],[WCI]]","v":0},"9999-12-31",{"$f":"job_titles8[[#This Row],[WCI Rate]]","v":0},null,null,null,null,null,null,null,null,null,null,null,null,0,"0"]
[{"$f":"job_titles8[[#This Row],[Extended object ID]]","v":0},{"$f":"job_titles8[[#This Row],[WCI]]","v":0},"9999-12-31",{"$f":"job_titles8[[#This Row],[WCI Rate]]","v":0},null,null,null,null,null,null,null,null,null,null,null,null,0,"0"]
[{"$f":"job_titles8[[#This Row],[Extended object ID]]","v":0},{"$f":"job_titles8[[#This Row],[WCI]]","v":0},"9999-12-31",{"$f":"job_titles8[[#This Row],[WCI Rate]]","v":0},null,null,null,null,null,null,null,null,null,null,null,null,0,"0"]
[{"$f":"job_titles8[[#This Row],[Extended object ID]]","v":0},{"$f":"job_titles8[[#This Row],[WCI]]","v":0},"9999-12-31",{"$f":"job_titles8[[#This Row],[WCI Rate]]","v":0},null,null,null,null,null,null,null,null,null,null,null,null,0,"0"]
[{"$f":"job_titles8[[#This Row],[Extended object ID]]","v":0},{"$f":"job_titles8[[#This Row],[WCI]]","v":0},"9999-12-31",{"$f":"job_titles8[[#This Row],[WCI Rate]]","v":0},null,null,null,null,null,null,null,null,null,null,null,null,0,"0"]
[{"$f":"job_titles8[[#This Row],[Extended object ID]]","v":0},{"$f":"job_titles8[[#This Row],[WCI]]","v":0},"9999-12-31",{"$f":"job_titles8[[#This Row],[WCI Rate]]","v":0},null,null,null,null,null,null,null,null,null,null,null,null,0,"0"]
[{"$f":"job_titles8[[#This Row],[Extended object ID]]","v":0},{"$f":"job_titles8[[#This Row],[WCI]]","v":0},"9999-12-31",{"$f":"job_titles8[[#This Row],[WCI Rate]]","v":0},null,null,null,null,null,null,null,null,null,null,null,null,0,"0"]
[{"$f":"job_titles8[[#This Row],[Extended object ID]]","v":0},{"$f":"job_titles8[[#This Row],[WCI]]","v":0},"9999-12-31",{"$f":"job_titles8[[#This Row],[WCI Rate]]","v":0},null,null,null,null,null,null,null,null,null,null,null,null,0,"0"]
[{"$f":"job_titles8[[#This Row],[Extended object ID]]","v":0},{"$f":"job_titles8[[#This Row],[WCI]]","v":0},"9999-12-31",{"$f":"job_titles8[[#This Row],[WCI Rate]]","v":0},null,null,null,null,null,null,null,null,null,null,null,null,0,"0"]
[{"$f":"job_titles8[[#This Row],[Extended object ID]]","v":0},{"$f":"job_titles8[[#This Row],[WCI]]","v":0},"9999-12-31",{"$f":"job_titles8[[#This Row],[WCI Rate]]","v":0},null,null,null,null,null,null,null,null,null,null,null,null,0,"0"]
[{"$f":"job_titles8[[#This Row],[Extended object ID]]","v":0},{"$f":"job_titles8[[#This Row],[WCI]]","v":0},"9999-12-31",{"$f":"job_titles8[[#This Row],[WCI Rate]]","v":0},null,null,null,null,null,null,null,null,null,null,null,null,0,"0"]
[{"$f":"job_titles8[[#This Row],[Extended object ID]]","v":0},{"$f":"job_titles8[[#This Row],[WCI]]","v":0},"9999-12-31",{"$f":"job_titles8[[#This Row],[WCI Rate]]","v":0},null,null,null,null,null,null,null,null,null,null,null,null,0,"0"]
[{"$f":"job_titles8[[#This Row],[Extended object ID]]","v":0},{"$f":"job_titles8[[#This Row],[WCI]]","v":0},"9999-12-31",{"$f":"job_titles8[[#This Row],[WCI Rate]]","v":0},null,null,null,null,null,null,null,null,null,null,null,null,0,"0"]
[{"$f":"job_titles8[[#This Row],[Extended object ID]]","v":0},{"$f":"job_titles8[[#This Row],[WCI]]","v":0},"9999-12-31",{"$f":"job_titles8[[#This Row],[WCI Rate]]","v":0},null,null,null,null,null,null,null,null,null,null,null,null,0,"0"]
[{"$f":"job_titles8[[#This Row],[Extended object ID]]","v":0},{"$f":"job_titles8[[#This Row],[WCI]]","v":0},"9999-12-31",{"$f":"job_titles8[[#This Row],[WCI Rate]]","v":0},null,null,null,null,null,null,null,null,null,null,null,null,0,"0"]
[{"$f":"job_titles8[[#This Row],[Extended object ID]]","v":0},{"$f":"job_titles8[[#This Row],[WCI]]","v":0},"9999-12-31",{"$f":"job_titles8[[#This Row],[WCI Rate]]","v":0},null,null,null,null,null,null,null,null,null,null,null,null,0,"0"]
[{"$f":"job_titles8[[#This Row],[Extended object ID]]","v":0},{"$f":"job_titles8[[#This Row],[WCI]]","v":0},"9999-12-31",{"$f":"job_titles8[[#This Row],[WCI Rate]]","v":0},null,null,null,null,null,null,null,null,null,null,null,null,0,"0"]
[{"$f":"job_titles8[[#This Row],[Extended object ID]]","v":0},{"$f":"job_titles8[[#This Row],[WCI]]","v":0},"9999-12-31",{"$f":"job_titles8[[#This Row],[WCI Rate]]","v":0},null,null,null,null,null,null,null,null,null,null,null,null,0,"0"]
[{"$f":"job_titles8[[#This Row],[Extended object ID]]","v":0},{"$f":"job_titles8[[#This Row],[WCI]]","v":0},"9999-12-31",{"$f":"job_titles8[[#This Row],[WCI Rate]]","v":0},null,null,null,null,null,null,null,null,null,null,null,null,0,"0"]
[{"$f":"job_titles8[[#This Row],[Extended object ID]]","v":0},{"$f":"job_titles8[[#This Row],[WCI]]","v":0},"9999-12-31",{"$f":"job_titles8[[#This Row],[WCI Rate]]","v":0},null,null,null,null,null,null,null,null,null,null,null,null,0,"0"]
[{"$f":"job_titles8[[#This Row],[Extended object ID]]","v":0},{"$f":"job_titles8[[#This Row],[WCI]]","v":0},"9999-12-31",{"$f":"job_titles8[[#This Row],[WCI Rate]]","v":0},null,null,null,null,null,null,null,null,null,null,null,null,0,"0"]
[{"$f":"job_titles8[[#This Row],[Extended object ID]]","v":0},{"$f":"job_titles8[[#This Row],[WCI]]","v":0},"9999-12-31",{"$f":"job_titles8[[#This Row],[WCI Rate]]","v":0},null,null,null,null,null,null,null,null,null,null,null,null,0,"0"]
[{"$f":"job_titles8[[#This Row],[Extended object ID]]","v":0},{"$f":"job_titles8[[#This Row],[WCI]]","v":0},"9999-12-31",{"$f":"job_titles8[[#This Row],[WCI Rate]]","v":0},null,null,null,null,null,null,null,null,null,null,null,null,0,"0"]
[{"$f":"job_titles8[[#This Row],[Extended object ID]]","v":0},{"$f":"job_titles8[[#This Row],[WCI]]","v":0},"9999-12-31",{"$f":"job_titles8[[#This Row],[WCI Rate]]","v":0},null,null,null,null,null,null,null,null,null,null,null,null,0,"0"]
[{"$f":"job_titles8[[#This Row],[Extended object ID]]","v":0},{"$f":"job_titles8[[#This Row],[WCI]]","v":0},"9999-12-31",{"$f":"job_titles8[[#This Row],[WCI Rate]]","v":0},null,null,null,null,null,null,null,null,null,null,null,null,0,"0"]
[{"$f":"job_titles8[[#This Row],[Extended object ID]]","v":0},{"$f":"job_titles8[[#This Row],[WCI]]","v":0},"9999-12-31",{"$f":"job_titles8[[#This Row],[WCI Rate]]","v":0},null,null,null,null,null,null,null,null,null,null,null,null,0,"0"]
[{"$f":"job_titles8[[#This Row],[Extended object ID]]","v":0},{"$f":"job_titles8[[#This Row],[WCI]]","v":0},"9999-12-31",{"$f":"job_titles8[[#This Row],[WCI Rate]]","v":0},null,null,null,null,null,null,null,null,null,null,null,null,0,"0"]
[{"$f":"job_titles8[[#This Row],[Extended object ID]]","v":0},{"$f":"job_titles8[[#This Row],[WCI]]","v":0},"9999-12-31",{"$f":"job_titles8[[#This Row],[WCI Rate]]","v":0},null,null,null,null,null,null,null,null,null,null,null,null,0,"0"]
[{"$f":"job_titles8[[#This Row],[Extended object ID]]","v":0},{"$f":"job_titles8[[#This Row],[WCI]]","v":0},"9999-12-31",{"$f":"job_titles8[[#This Row],[WCI Rate]]","v":0},null,null,null,null,null,null,null,null,null,null,null,null,0,"0"]
[{"$f":"job_titles8[[#This Row],[Extended object ID]]","v":0},{"$f":"job_titles8[[#This Row],[WCI]]","v":0},"9999-12-31",{"$f":"job_titles8[[#This Row],[WCI Rate]]","v":0},null,null,null,null,null,null,null,null,null,null,null,null,0,"0"]
[{"$f":"job_titles8[[#This Row],[Extended object ID]]","v":0},{"$f":"job_titles8[[#This Row],[WCI]]","v":0},"9999-12-31",{"$f":"job_titles8[[#This Row],[WCI Rate]]","v":0},null,null,null,null,null,null,null,null,null,null,null,null,0,"0"]
[{"$f":"job_titles8[[#This Row],[Extended object ID]]","v":0},{"$f":"job_titles8[[#This Row],[WCI]]","v":0},"9999-12-31",{"$f":"job_titles8[[#This Row],[WCI Rate]]","v":0},null,null,null,null,null,null,null,null,null,null,null,null,0,"0"]
[{"$f":"job_titles8[[#This Row],[Extended object ID]]","v":0},{"$f":"job_titles8[[#This Row],[WCI]]","v":0},"9999-12-31",{"$f":"job_titles8[[#This Row],[WCI Rate]]","v":0},null,null,null,null,null,null,null,null,null,null,null,null,0,"0"]
[{"$f":"job_titles8[[#This Row],[Extended object ID]]","v":0},{"$f":"job_titles8[[#This Row],[WCI]]","v":0},"9999-12-31",{"$f":"job_titles8[[#This Row],[WCI Rate]]","v":0},null,null,null,null,null,null,null,null,null,null,null,null,0,"0"]
[{"$f":"job_titles8[[#This Row],[Extended object ID]]","v":0},{"$f":"job_titles8[[#This Row],[WCI]]","v":0},"9999-12-31",{"$f":"job_titles8[[#This Row],[WCI Rate]]","v":0},null,null,null,null,null,null,null,null,null,null,null,null,0,"0"]
[{"$f":"job_titles8[[#This Row],[Extended object ID]]","v":0},{"$f":"job_titles8[[#This Row],[WCI]]","v":0},"9999-12-31",{"$f":"job_titles8[[#This Row],[WCI Rate]]","v":0},null,null,null,null,null,null,null,null,null,null,null,null,0,"0"]
[{"$f":"job_titles8[[#This Row],[Extended object ID]]","v":0},{"$f":"job_titles8[[#This Row],[WCI]]","v":0},"9999-12-31",{"$f":"job_titles8[[#This Row],[WCI Rate]]","v":0},null,null,null,null,null,null,null,null,null,null,null,null,0,"0"]
[{"$f":"job_titles8[[#This Row],[Extended object ID]]","v":0},{"$f":"job_titles8[[#This Row],[WCI]]","v":0},"9999-12-31",{"$f":"job_titles8[[#This Row],[WCI Rate]]","v":0},null,null,null,null,null,null,null,null,null,null,null,null,0,"0"]
[{"$f":"job_titles8[[#This Row],[Extended object ID]]","v":0},{"$f":"job_titles8[[#This Row],[WCI]]","v":0},"9999-12-31",{"$f":"job_titles8[[#This Row],[WCI Rate]]","v":0},null,null,null,null,null,null,null,null,null,null,null,null,0,"0"]
[{"$f":"job_titles8[[#This Row],[Extended object ID]]","v":0},{"$f":"job_titles8[[#This Row],[WCI]]","v":0},"9999-12-31",{"$f":"job_titles8[[#This Row],[WCI Rate]]","v":0},null,null,null,null,null,null,null,null,null,null,null,null,0,"0"]
[{"$f":"job_titles8[[#This Row],[Extended object ID]]","v":0},{"$f":"job_titles8[[#This Row],[WCI]]","v":0},"9999-12-31",{"$f":"job_titles8[[#This Row],[WCI Rate]]","v":0},null,null,null,null,null,null,null,null,null,null,null,null,0,"0"]
[{"$f":"job_titles8[[#This Row],[Extended object ID]]","v":0},{"$f":"job_titles8[[#This Row],[WCI]]","v":0},"9999-12-31",{"$f":"job_titles8[[#This Row],[WCI Rate]]","v":0},null,null,null,null,null,null,null,null,null,null,null,null,0,"0"]
[{"$f":"job_titles8[[#This Row],[Extended object ID]]","v":0},{"$f":"job_titles8[[#This Row],[WCI]]","v":0},"9999-12-31",{"$f":"job_titles8[[#This Row],[WCI Rate]]","v":0},null,null,null,null,null,null,null,null,null,null,null,null,0,"0"]
[{"$f":"job_titles8[[#This Row],[Extended object ID]]","v":0},{"$f":"job_titles8[[#This Row],[WCI]]","v":0},"9999-12-31",{"$f":"job_titles8[[#This Row],[WCI Rate]]","v":0},null,null,null,null,null,null,null,null,null,null,null,null,0,"0"]
[{"$f":"job_titles8[[#This Row],[Extended object ID]]","v":0},{"$f":"job_titles8[[#This Row],[WCI]]","v":0},"9999-12-31",{"$f":"job_titles8[[#This Row],[WCI Rate]]","v":0},null,null,null,null,null,null,null,null,null,null,null,null,0,"0"]
[{"$f":"job_titles8[[#This Row],[Extended object ID]]","v":0},{"$f":"job_titles8[[#This Row],[WCI]]","v":0},"9999-12-31",{"$f":"job_titles8[[#This Row],[WCI Rate]]","v":0},null,null,null,null,null,null,null,null,null,null,null,null,0,"0"]
[{"$f":"job_titles8[[#This Row],[Extended object ID]]","v":0},{"$f":"job_titles8[[#This Row],[WCI]]","v":0},"9999-12-31",{"$f":"job_titles8[[#This Row],[WCI Rate]]","v":0},null,null,null,null,null,null,null,null,null,null,null,null,0,"0"]
[{"$f":"job_titles8[[#This Row],[Extended object ID]]","v":0},{"$f":"job_titles8[[#This Row],[WCI]]","v":0},"9999-12-31",{"$f":"job_titles8[[#This Row],[WCI Rate]]","v":0},null,null,null,null,null,null,null,null,null,null,null,null,0,"0"]
[{"$f":"job_titles8[[#This Row],[Extended object ID]]","v":0},{"$f":"job_titles8[[#This Row],[WCI]]","v":0},"9999-12-31",{"$f":"job_titles8[[#This Row],[WCI Rate]]","v":0},null,null,null,null,null,null,null,null,null,null,null,null,0,"0"]
[{"$f":"job_titles8[[#This Row],[Extended object ID]]","v":0},{"$f":"job_titles8[[#This Row],[WCI]]","v":0},"9999-12-31",{"$f":"job_titles8[[#This Row],[WCI Rate]]","v":0},null,null,null,null,null,null,null,null,null,null,null,null,0,"0"]
[{"$f":"job_titles8[[#This Row],[Extended object ID]]","v":0},{"$f":"job_titles8[[#This Row],[WCI]]","v":0},"9999-12-31",{"$f":"job_titles8[[#This Row],[WCI Rate]]","v":0},null,null,null,null,null,null,null,null,null,null,null,null,0,"0"]
[{"$f":"job_titles8[[#This Row],[Extended object ID]]","v":0},{"$f":"job_titles8[[#This Row],[WCI]]","v":0},"9999-12-31",{"$f":"job_titles8[[#This Row],[WCI Rate]]","v":0},null,null,null,null,null,null,null,null,null,null,null,null,0,"0"]
[{"$f":"job_titles8[[#This Row],[Extended object ID]]","v":0},{"$f":"job_titles8[[#This Row],[WCI]]","v":0},"9999-12-31",{"$f":"job_titles8[[#This Row],[WCI Rate]]","v":0},null,null,null,null,null,null,null,null,null,null,null,null,0,"0"]
[{"$f":"job_titles8[[#This Row],[Extended object ID]]","v":0},{"$f":"job_titles8[[#This Row],[WCI]]","v":0},"9999-12-31",{"$f":"job_titles8[[#This Row],[WCI Rate]]","v":0},null,null,null,null,null,null,null,null,null,null,null,null,0,"0"]
[{"$f":"job_titles8[[#This Row],[Extended object ID]]","v":0},{"$f":"job_titles8[[#This Row],[WCI]]","v":0},"9999-12-31",{"$f":"job_titles8[[#This Row],[WCI Rate]]","v":0},null,null,null,null,null,null,null,null,null,null,null,null,0,"0"]
[{"$f":"job_titles8[[#This Row],[Extended object ID]]","v":0},{"$f":"job_titles8[[#This Row],[WCI]]","v":0},"9999-12-31",{"$f":"job_titles8[[#This Row],[WCI Rate]]","v":0},null,null,null,null,null,null,null,null,null,null,null,null,0,"0"]
[{"$f":"job_titles8[[#This Row],[Extended object ID]]","v":0},{"$f":"job_titles8[[#This Row],[WCI]]","v":0},"9999-12-31",{"$f":"job_titles8[[#This Row],[WCI Rate]]","v":0},null,null,null,null,null,null,null,null,null,null,null,null,0,"0"]
[{"$f":"job_titles8[[#This Row],[Extended object ID]]","v":0},{"$f":"job_titles8[[#This Row],[WCI]]","v":0},"9999-12-31",{"$f":"job_titles8[[#This Row],[WCI Rate]]","v":0},null,null,null,null,null,null,null,null,null,null,null,null,0,"0"]
[{"$f":"job_titles8[[#This Row],[Extended object ID]]","v":0},{"$f":"job_titles8[[#This Row],[WCI]]","v":0},"9999-12-31",{"$f":"job_titles8[[#This Row],[WCI Rate]]","v":0},null,null,null,null,null,null,null,null,null,null,null,null,0,"0"]
[{"$f":"job_titles8[[#This Row],[Extended object ID]]","v":0},{"$f":"job_titles8[[#This Row],[WCI]]","v":0},"9999-12-31",{"$f":"job_titles8[[#This Row],[WCI Rate]]","v":0},null,null,null,null,null,null,null,null,null,null,null,null,0,"0"]
[{"$f":"job_titles8[[#This Row],[Extended object ID]]","v":0},{"$f":"job_titles8[[#This Row],[WCI]]","v":0},"9999-12-31",{"$f":"job_titles8[[#This Row],[WCI Rate]]","v":0},null,null,null,null,null,null,null,null,null,null,null,null,0,"0"]
[{"$f":"job_titles8[[#This Row],[Extended object ID]]","v":0},{"$f":"job_titles8[[#This Row],[WCI]]","v":0},"9999-12-31",{"$f":"job_titles8[[#This Row],[WCI Rate]]","v":0},null,null,null,null,null,null,null,null,null,null,null,null,0,"0"]
[{"$f":"job_titles8[[#This Row],[Extended object ID]]","v":0},{"$f":"job_titles8[[#This Row],[WCI]]","v":0},"9999-12-31",{"$f":"job_titles8[[#This Row],[WCI Rate]]","v":0},null,null,null,null,null,null,null,null,null,null,null,null,0,"0"]
[{"$f":"job_titles8[[#This Row],[Extended object ID]]","v":0},{"$f":"job_titles8[[#This Row],[WCI]]","v":0},"9999-12-31",{"$f":"job_titles8[[#This Row],[WCI Rate]]","v":0},null,null,null,null,null,null,null,null,null,null,null,null,0,"0"]
[{"$f":"job_titles8[[#This Row],[Extended object ID]]","v":0},{"$f":"job_titles8[[#This Row],[WCI]]","v":0},"9999-12-31",{"$f":"job_titles8[[#This Row],[WCI Rate]]","v":0},null,null,null,null,null,null,null,null,null,null,null,null,0,"0"]
[{"$f":"job_titles8[[#This Row],[Extended object ID]]","v":0},{"$f":"job_titles8[[#This Row],[WCI]]","v":0},"9999-12-31",{"$f":"job_titles8[[#This Row],[WCI Rate]]","v":0},null,null,null,null,null,null,null,null,null,null,null,null,0,"0"]
[{"$f":"job_titles8[[#This Row],[Extended object ID]]","v":0},{"$f":"job_titles8[[#This Row],[WCI]]","v":0},"9999-12-31",{"$f":"job_titles8[[#This Row],[WCI Rate]]","v":0},null,null,null,null,null,null,null,null,null,null,null,null,0,"0"]
[{"$f":"job_titles8[[#This Row],[Extended object ID]]","v":0},{"$f":"job_titles8[[#This Row],[WCI]]","v":0},"9999-12-31",{"$f":"job_titles8[[#This Row],[WCI Rate]]","v":0},null,null,null,null,null,null,null,null,null,null,null,null,0,"0"]
[{"$f":"job_titles8[[#This Row],[Extended object ID]]","v":0},{"$f":"job_titles8[[#This Row],[WCI]]","v":0},"9999-12-31",{"$f":"job_titles8[[#This Row],[WCI Rate]]","v":0},null,null,null,null,null,null,null,null,null,null,null,null,0,"0"]
[{"$f":"job_titles8[[#This Row],[Extended object ID]]","v":0},{"$f":"job_titles8[[#This Row],[WCI]]","v":0},"9999-12-31",{"$f":"job_titles8[[#This Row],[WCI Rate]]","v":0},null,null,null,null,null,null,null,null,null,null,null,null,0,"0"]
[{"$f":"job_titles8[[#This Row],[Extended object ID]]","v":0},{"$f":"job_titles8[[#This Row],[WCI]]","v":0},"9999-12-31",{"$f":"job_titles8[[#This Row],[WCI Rate]]","v":0},null,null,null,null,null,null,null,null,null,null,null,null,0,"0"]
[{"$f":"job_titles8[[#This Row],[Extended object ID]]","v":0},{"$f":"job_titles8[[#This Row],[WCI]]","v":0},"9999-12-31",{"$f":"job_titles8[[#This Row],[WCI Rate]]","v":0},null,null,null,null,null,null,null,null,null,null,null,null,0,"0"]
[{"$f":"job_titles8[[#This Row],[Extended object ID]]","v":0},{"$f":"job_titles8[[#This Row],[WCI]]","v":0},"9999-12-31",{"$f":"job_titles8[[#This Row],[WCI Rate]]","v":0},null,null,null,null,null,null,null,null,null,null,null,null,0,"0"]
[{"$f":"job_titles8[[#This Row],[Extended object ID]]","v":0},{"$f":"job_titles8[[#This Row],[WCI]]","v":0},"9999-12-31",{"$f":"job_titles8[[#This Row],[WCI Rate]]","v":0},null,null,null,null,null,null,null,null,null,null,null,null,0,"0"]
[{"$f":"job_titles8[[#This Row],[Extended object ID]]","v":0},{"$f":"job_titles8[[#This Row],[WCI]]","v":0},"9999-12-31",{"$f":"job_titles8[[#This Row],[WCI Rate]]","v":0},null,null,null,null,null,null,null,null,null,null,null,null,0,"0"]
[{"$f":"job_titles8[[#This Row],[Extended object ID]]","v":0},{"$f":"job_titles8[[#This Row],[WCI]]","v":0},"9999-12-31",{"$f":"job_titles8[[#This Row],[WCI Rate]]","v":0},null,null,null,null,null,null,null,null,null,null,null,null,0,"0"]
[{"$f":"job_titles8[[#This Row],[Extended object ID]]","v":0},{"$f":"job_titles8[[#This Row],[WCI]]","v":0},"9999-12-31",{"$f":"job_titles8[[#This Row],[WCI Rate]]","v":0},null,null,null,null,null,null,null,null,null,null,null,null,0,"0"]
[{"$f":"job_titles8[[#This Row],[Extended object ID]]","v":0},{"$f":"job_titles8[[#This Row],[WCI]]","v":0},"9999-12-31",{"$f":"job_titles8[[#This Row],[WCI Rate]]","v":0},null,null,null,null,null,null,null,null,null,null,null,null,0,"0"]
[{"$f":"job_titles8[[#This Row],[Extended object ID]]","v":0},{"$f":"job_titles8[[#This Row],[WCI]]","v":0},"9999-12-31",{"$f":"job_titles8[[#This Row],[WCI Rate]]","v":0},null,null,null,null,null,null,null,null,null,null,null,null,0,"0"]
[{"$f":"job_titles8[[#This Row],[Extended object ID]]","v":0},{"$f":"job_titles8[[#This Row],[WCI]]","v":0},"9999-12-31",{"$f":"job_titles8[[#This Row],[WCI Rate]]","v":0},null,null,null,null,null,null,null,null,null,null,null,null,0,"0"]
[{"$f":"job_titles8[[#This Row],[Extended object ID]]","v":0},{"$f":"job_titles8[[#This Row],[WCI]]","v":0},"9999-12-31",{"$f":"job_titles8[[#This Row],[WCI Rate]]","v":0},null,null,null,null,null,null,null,null,null,null,null,null,0,"0"]
[{"$f":"job_titles8[[#This Row],[Extended object ID]]","v":0},{"$f":"job_titles8[[#This Row],[WCI]]","v":0},"9999-12-31",{"$f":"job_titles8[[#This Row],[WCI Rate]]","v":0},null,null,null,null,null,null,null,null,null,null,null,null,0,"0"]
[{"$f":"job_titles8[[#This Row],[Extended object ID]]","v":0},{"$f":"job_titles8[[#This Row],[WCI]]","v":0},"9999-12-31",{"$f":"job_titles8[[#This Row],[WCI Rate]]","v":0},null,null,null,null,null,null,null,null,null,null,null,null,0,"0"]
[{"$f":"job_titles8[[#This Row],[Extended object ID]]","v":0},{"$f":"job_titles8[[#This Row],[WCI]]","v":0},"9999-12-31",{"$f":"job_titles8[[#This Row],[WCI Rate]]","v":0},null,null,null,null,null,null,null,null,null,null,null,null,0,"0"]
[{"$f":"job_titles8[[#This Row],[Extended object ID]]","v":0},{"$f":"job_titles8[[#This Row],[WCI]]","v":0},"9999-12-31",{"$f":"job_titles8[[#This Row],[WCI Rate]]","v":0},null,null,null,null,null,null,null,null,null,null,null,null,0,"0"]
[{"$f":"job_titles8[[#This Row],[Extended object ID]]","v":0},{"$f":"job_titles8[[#This Row],[WCI]]","v":0},"9999-12-31",{"$f":"job_titles8[[#This Row],[WCI Rate]]","v":0},null,null,null,null,null,null,null,null,null,null,null,null,0,"0"]
[{"$f":"job_titles8[[#This Row],[Extended object ID]]","v":0},{"$f":"job_titles8[[#This Row],[WCI]]","v":0},"9999-12-31",{"$f":"job_titles8[[#This Row],[WCI Rate]]","v":0},null,null,null,null,null,null,null,null,null,null,null,null,0,"0"]
[{"$f":"job_titles8[[#This Row],[Extended object ID]]","v":0},{"$f":"job_titles8[[#This Row],[WCI]]","v":0},"9999-12-31",{"$f":"job_titles8[[#This Row],[WCI Rate]]","v":0},null,null,null,null,null,null,null,null,null,null,null,null,0,"0"]
[{"$f":"job_titles8[[#This Row],[Extended object ID]]","v":0},{"$f":"job_titles8[[#This Row],[WCI]]","v":0},"9999-12-31",{"$f":"job_titles8[[#This Row],[WCI Rate]]","v":0},null,null,null,null,null,null,null,null,null,null,null,null,0,"0"]
[null,null,null,null,null,null,null,null,null,null,null,null,null,null,null,null,0,"0"]
[null,null,null,null,null,null,null,null,null,null,null,null,null,null,null,null,0,"0"]
[null,null,null,null,null,null,null,null,null,null,null,null,null,null,null,null,0,"0"]
[null,null,null,null,null,null,null,null,null,null,null,null,null,null,null,null,0,"0"]
[null,null,null,null,null,null,null,null,null,null,null,null,null,null,null,null,0,"0"]
[null,null,null,null,null,null,null,null,null,null,null,null,null,null,null,null,0,"0"]
[null,null,null,null,null,null,null,null,null,null,null,null,null,null,null,null,0,"0"]
[null,null,null,null,null,null,null,null,null,null,null,null,null,null,null,null,0,"0"]
[null,null,null,null,null,null,null,null,null,null,null,null,null,null,null,null,0,"0"]
[null,null,null,null,null,null,null,null,null,null,null,null,null,null,null,null,0,"0"]
[null,null,null,null,null,null,null,null,null,null,null,null,null,null,null,null,0,"0"]